{"text_format":"1","workbook":"xlsx","n_sheets":15,"sheets":["Contest Rules","Dashboard","Selectors","Migration Chart Data","Notes","Demographics","Migration","Distances","Distances Chart Data","Distances Chart Data Backup","Migration 2010","Migration 2011","Migration 2012","r-AttributeofDestination","r-AttributeofOrigin"],"not_rendered":{"charts":3,"images":0,"macros":1,"external_links":0,"defined_names":31,"comments":0,"pivot_tables":0},"unopened":[],"bounds":{"document_bytes":16777216,"sheet_cells":100000,"rows_first":2000,"rows_last":500,"rows_between":2000,"halvings":0,"cell_chars":16384,"cell_head_chars":4096},"cells_cut":0,"cells_raw":0,"read":"whole","date_system":"1900"}

{"sheet":"Contest Rules","index":0,"n_rows":49,"n_cols":7,"rows_kept":49,"cut":false,"hidden":true,"merged":[[46,2,46,13],[18,6,18,9],[48,2,48,7]]}
[null,"Excel Datavis Contest - Chandoo.org - 2014"]
[]
[null,"Contest Rules"]
[]
[null,null,"Make a dashboard or set of charts."]
[null,null,"Help us understand state to state migration trends and interesting facts"]
[null,null,"Use any standard Excel feature (no add-ins, no Power Pivot etc.)"]
[null,null,"You can use Macros & VBA to add interaction to charts. (Code must be commented clearly and sources should be credited)"]
[null,null,"You can add additional demographic or economic data as long as,"]
[null,null,"You use publicly available data sources"]
[null,null,"You provide links to the data sources and credit them"]
[null,null,"Examples: Percaptia income, weather or living conditions"]
[null,null,"You may ignore the Margin of Error data (provided in extreme right in the data tables). "]
[null,null,"You may submit more than one entry. For voting & selecting winners only 1 entry from each individual is considered."]
[]
[null,"Important Dates"]
[]
[null,null,"Contest start date",null,"9th of April, 2014"]
[null,null,"Last date for submission",null,"20th of April, 2014",null,{"$f":"DATE(2014,4,20)-TODAY()","v":1}]
[]
[null,"How to submit your entry?"]
[]
[null,null,"Email"]
[null,null,"Send to: chandoo.d@gmail.com"]
[null,null,"Subject: Datavis contest 2014"]
[null,null,"Include: Your workbook, Your name, Email Address & Version of Excel used to make it"]
[]
[null,null,"Facebook"]
[null,null,"Join chandoo.org fan page (Click here)"]
[null,null,"Send your entry as a message (with workbook as attachment)"]
[null,null,"Include: Your workbook, Your name, Email Address & Version of Excel used to make it"]
[]
[null,"What do you get?"]
[null,null,"First prize"]
[null,null,"iPad (Latest version) 16 GB"]
[]
[null,null,"Second prize"]
[null,null,"iPad Mini (latest version) 16 GB"]
[]
[null,null,"Third prize (2 nos)"]
[null,null,"Samsung Galaxy Tab 3"]
[]
[null,"How winners are selected"]
[null,null,"Winners will be selected by voting and a panel of judges (to be revealed). If there is a tie, Judges' decision will be given more weightage."]
[]
[null,"Fine Print"]
[null,null,"Prizes will be delivered thru Amazon.com. If you are located in a country where shipping Amazon goods is not possible (or prohibitively expensive) you will be offered a choice of either getting money payment or purchase from a local website.\n\nYou also agree that Chandoo.org reserves the right to showcase your files, share them, use them in courses & training programs or any other publication as deemed fit. You agree to share the copy-right of your workbook with Chandoo.org indefinetly for no compensation.\n\nChandoo.org may get in touch with you if we need any clarifications or we are unable to use your file.\n\nChandoo.org reserves the right to disqualify a contest entry based on sole discretion."]
[null,null,"For updates on rules, dates & policies, please click below link:"]
[null,null,"http://chandoo.org/wp/2014/04/09/visualize-state-migration-contest/"]

{"sheet":"Dashboard","index":1,"n_rows":27,"n_cols":1,"rows_kept":27,"cut":false,"hidden":false,"merged":[]}
[]
[]
[]
[]
[]
[]
[]
[]
[]
[]
[]
[]
[]
[]
[]
[]
[]
[]
[]
[]
[]
[]
[]
[{"$f":"IF(selMiles=1,CONCATENATE(\"Travelled <\",'Distances Chart Data'!E4,\" Miles\"),CONCATENATE(\"Travelled <\",'Distances Chart Data'!E5,\" KM\"))","v":"Travelled <800 KM"}]
[{"$f":"IF(selMiles=1,CONCATENATE(\"Travelled \",'Distances Chart Data'!E4,\"-\",'Distances Chart Data'!G4,\" Miles\"),CONCATENATE(\"Travelled \",'Distances Chart Data'!E5,\"-\",'Distances Chart Data'!G5,\" KM\"))","v":"Travelled 800-3200 KM"}]
[{"$f":"IF(selMiles=1,CONCATENATE(\"Travelled >\",'Distances Chart Data'!G4,\" Miles\"),CONCATENATE(\"Travelled >\",'Distances Chart Data'!G5,\" KM\"))","v":"Travelled >3200 KM"}]
[{"$f":"IF(selYear=1,CONCATENATE(\"Emigration and Immigration by State, \",\"2010\"),IF(selYear=2,CONCATENATE(\"Emigration and Immigration by State, \",\"2011\"),CONCATENATE(\"Emigration and Immigration by State, \",\"2012\")))","v":"Emigration and Immigration by State, 2012"}]

{"sheet":"Selectors","index":2,"n_rows":56,"n_cols":9,"rows_kept":56,"cut":false,"hidden":true,"merged":[]}
[]
[null,"Year:","State:","Demographic:","Destination or Origin:","Within or Across States:","Miles or KM:","Scroller","Sort By:"]
[null,3,1,25,2,2,2,0,2]
[null,null,"In United States","% Persons under 5 years, 2012"]
[null,null,{"$f":"IF(selDest=1,CONCATENATE(\"To \",'Migration 2012'!B11),CONCATENATE(\"From \",'Migration 2012'!B11))","v":"From Alabama"},"% Persons under 18 years, 2012"]
[null,null,{"$f":"IF(selDest=1,CONCATENATE(\"To \",'Migration 2012'!B12),CONCATENATE(\"From \",'Migration 2012'!B12))","v":"From Alaska"},"% Persons 65 years and over, 2012"]
[null,null,{"$f":"IF(selDest=1,CONCATENATE(\"To \",'Migration 2012'!B13),CONCATENATE(\"From \",'Migration 2012'!B13))","v":"From Arizona"},"% Female persons, 2012"]
[null,null,{"$f":"IF(selDest=1,CONCATENATE(\"To \",'Migration 2012'!B14),CONCATENATE(\"From \",'Migration 2012'!B14))","v":"From Arkansas"},"% White alone, 2012"]
[null,null,{"$f":"IF(selDest=1,CONCATENATE(\"To \",'Migration 2012'!B15),CONCATENATE(\"From \",'Migration 2012'!B15))","v":"From California"},"% Black or African American alone, 2012"]
[null,null,{"$f":"IF(selDest=1,CONCATENATE(\"To \",'Migration 2012'!B16),CONCATENATE(\"From \",'Migration 2012'!B16))","v":"From Colorado"},"% American Indian and Alaska Native alone, 2012"]
[null,null,{"$f":"IF(selDest=1,CONCATENATE(\"To \",'Migration 2012'!B17),CONCATENATE(\"From \",'Migration 2012'!B17))","v":"From Connecticut"},"% Asian alone, 2012"]
[null,null,{"$f":"IF(selDest=1,CONCATENATE(\"To \",'Migration 2012'!B18),CONCATENATE(\"From \",'Migration 2012'!B18))","v":"From Delaware"},"% Native Hawaiian and Other Pacific Islander alone, 2012"]
[null,null,{"$f":"IF(selDest=1,CONCATENATE(\"To \",'Migration 2012'!B19),CONCATENATE(\"From \",'Migration 2012'!B19))","v":"From District of Columbia"},"% Two or More Races, 2012"]
[null,null,{"$f":"IF(selDest=1,CONCATENATE(\"To \",'Migration 2012'!B20),CONCATENATE(\"From \",'Migration 2012'!B20))","v":"From Florida"},"% Hispanic or Latino, 2012"]
[null,null,{"$f":"IF(selDest=1,CONCATENATE(\"To \",'Migration 2012'!B21),CONCATENATE(\"From \",'Migration 2012'!B21))","v":"From Georgia"},"% White alone, not Hispanic or Latino, 2012"]
[null,null,{"$f":"IF(selDest=1,CONCATENATE(\"To \",'Migration 2012'!B22),CONCATENATE(\"From \",'Migration 2012'!B22))","v":"From Hawaii"},"% Living in same house 1 year & over, 2008-2012"]
[null,null,{"$f":"IF(selDest=1,CONCATENATE(\"To \",'Migration 2012'!B23),CONCATENATE(\"From \",'Migration 2012'!B23))","v":"From Idaho"},"% Foreign born persons, 2008-2012"]
[null,null,{"$f":"IF(selDest=1,CONCATENATE(\"To \",'Migration 2012'!B24),CONCATENATE(\"From \",'Migration 2012'!B24))","v":"From Illinois"},"% Language other than English spoken at home, for ages 5+, 2008-2012"]
[null,null,{"$f":"IF(selDest=1,CONCATENATE(\"To \",'Migration 2012'!B25),CONCATENATE(\"From \",'Migration 2012'!B25))","v":"From Indiana"},"% High school graduate or higher, for ages 25+, 2008-2012"]
[null,null,{"$f":"IF(selDest=1,CONCATENATE(\"To \",'Migration 2012'!B26),CONCATENATE(\"From \",'Migration 2012'!B26))","v":"From Iowa"},"% Bachelor's degree or higher, for ages 25+, 2008-2012"]
[null,null,{"$f":"IF(selDest=1,CONCATENATE(\"To \",'Migration 2012'!B27),CONCATENATE(\"From \",'Migration 2012'!B27))","v":"From Kansas"},"Veterans, 2008-2012"]
[null,null,{"$f":"IF(selDest=1,CONCATENATE(\"To \",'Migration 2012'!B28),CONCATENATE(\"From \",'Migration 2012'!B28))","v":"From Kentucky"},"Mean travel time to work (minutes), for workers ages 16+, 2008-2012"]
[null,null,{"$f":"IF(selDest=1,CONCATENATE(\"To \",'Migration 2012'!B29),CONCATENATE(\"From \",'Migration 2012'!B29))","v":"From Louisiana"},"Housing units, 2012"]
[null,null,{"$f":"IF(selDest=1,CONCATENATE(\"To \",'Migration 2012'!B30),CONCATENATE(\"From \",'Migration 2012'!B30))","v":"From Maine"},"Homeownership rate, 2008-2012"]
[null,null,{"$f":"IF(selDest=1,CONCATENATE(\"To \",'Migration 2012'!B31),CONCATENATE(\"From \",'Migration 2012'!B31))","v":"From Maryland"},"% Housing units in multi-unit structures, 2008-2012"]
[null,null,{"$f":"IF(selDest=1,CONCATENATE(\"To \",'Migration 2012'!B32),CONCATENATE(\"From \",'Migration 2012'!B32))","v":"From Massachusetts"},"Median value of owner-occupied housing units, 2008-2012"]
[null,null,{"$f":"IF(selDest=1,CONCATENATE(\"To \",'Migration 2012'!B33),CONCATENATE(\"From \",'Migration 2012'!B33))","v":"From Michigan"},"Number of Households, 2008-2012"]
[null,null,{"$f":"IF(selDest=1,CONCATENATE(\"To \",'Migration 2012'!B34),CONCATENATE(\"From \",'Migration 2012'!B34))","v":"From Minnesota"},"Persons per household, 2008-2012"]
[null,null,{"$f":"IF(selDest=1,CONCATENATE(\"To \",'Migration 2012'!B35),CONCATENATE(\"From \",'Migration 2012'!B35))","v":"From Mississippi"},"Per capita money income in past 12 months (2012 dollars), 2008-2012"]
[null,null,{"$f":"IF(selDest=1,CONCATENATE(\"To \",'Migration 2012'!B36),CONCATENATE(\"From \",'Migration 2012'!B36))","v":"From Missouri"},"Median household income, 2008-2012"]
[null,null,{"$f":"IF(selDest=1,CONCATENATE(\"To \",'Migration 2012'!B37),CONCATENATE(\"From \",'Migration 2012'!B37))","v":"From Montana"},"Persons below poverty level, percent, 2008-2012"]
[null,null,{"$f":"IF(selDest=1,CONCATENATE(\"To \",'Migration 2012'!B38),CONCATENATE(\"From \",'Migration 2012'!B38))","v":"From Nebraska"},"Private nonfarm establishments, 2011"]
[null,null,{"$f":"IF(selDest=1,CONCATENATE(\"To \",'Migration 2012'!B39),CONCATENATE(\"From \",'Migration 2012'!B39))","v":"From Nevada"},"Private nonfarm employment,  2011"]
[null,null,{"$f":"IF(selDest=1,CONCATENATE(\"To \",'Migration 2012'!B40),CONCATENATE(\"From \",'Migration 2012'!B40))","v":"From New Hampshire"},"% Change in private nonfarm employment, 2010-2011"]
[null,null,{"$f":"IF(selDest=1,CONCATENATE(\"To \",'Migration 2012'!B41),CONCATENATE(\"From \",'Migration 2012'!B41))","v":"From New Jersey"},"Nonemployer establishments, 2011"]
[null,null,{"$f":"IF(selDest=1,CONCATENATE(\"To \",'Migration 2012'!B42),CONCATENATE(\"From \",'Migration 2012'!B42))","v":"From New Mexico"},"Total number of firms, 2007"]
[null,null,{"$f":"IF(selDest=1,CONCATENATE(\"To \",'Migration 2012'!B43),CONCATENATE(\"From \",'Migration 2012'!B43))","v":"From New York"},"% Black-owned firms, 2007"]
[null,null,{"$f":"IF(selDest=1,CONCATENATE(\"To \",'Migration 2012'!B44),CONCATENATE(\"From \",'Migration 2012'!B44))","v":"From North Carolina"},"% American Indian- and Alaska Native-owned firms, 2007"]
[null,null,{"$f":"IF(selDest=1,CONCATENATE(\"To \",'Migration 2012'!B45),CONCATENATE(\"From \",'Migration 2012'!B45))","v":"From North Dakota"},"% Asian-owned firms, 2007"]
[null,null,{"$f":"IF(selDest=1,CONCATENATE(\"To \",'Migration 2012'!B46),CONCATENATE(\"From \",'Migration 2012'!B46))","v":"From Ohio"},"% Native Hawaiian- and Other Pacific Islander-owned firms, 2007"]
[null,null,{"$f":"IF(selDest=1,CONCATENATE(\"To \",'Migration 2012'!B47),CONCATENATE(\"From \",'Migration 2012'!B47))","v":"From Oklahoma"},"% Hispanic-owned firms, 2007"]
[null,null,{"$f":"IF(selDest=1,CONCATENATE(\"To \",'Migration 2012'!B48),CONCATENATE(\"From \",'Migration 2012'!B48))","v":"From Oregon"},"% Women-owned firms, 2007"]
[null,null,{"$f":"IF(selDest=1,CONCATENATE(\"To \",'Migration 2012'!B49),CONCATENATE(\"From \",'Migration 2012'!B49))","v":"From Pennsylvania"},"Manufacturers shipments, 2007 ($1,000)"]
[null,null,{"$f":"IF(selDest=1,CONCATENATE(\"To \",'Migration 2012'!B50),CONCATENATE(\"From \",'Migration 2012'!B50))","v":"From Rhode Island"},"Merchant wholesaler sales, 2007 ($1,000)"]
[null,null,{"$f":"IF(selDest=1,CONCATENATE(\"To \",'Migration 2012'!B51),CONCATENATE(\"From \",'Migration 2012'!B51))","v":"From South Carolina"},"Retail sales, 2007 ($1,000)"]
[null,null,{"$f":"IF(selDest=1,CONCATENATE(\"To \",'Migration 2012'!B52),CONCATENATE(\"From \",'Migration 2012'!B52))","v":"From South Dakota"},"Retail sales per capita, 2007"]
[null,null,{"$f":"IF(selDest=1,CONCATENATE(\"To \",'Migration 2012'!B53),CONCATENATE(\"From \",'Migration 2012'!B53))","v":"From Tennessee"},"Accommodation and food services sales, 2007 ($1,000)"]
[null,null,{"$f":"IF(selDest=1,CONCATENATE(\"To \",'Migration 2012'!B54),CONCATENATE(\"From \",'Migration 2012'!B54))","v":"From Texas"},"Building permits, 2012"]
[null,null,{"$f":"IF(selDest=1,CONCATENATE(\"To \",'Migration 2012'!B55),CONCATENATE(\"From \",'Migration 2012'!B55))","v":"From Utah"},"Land area in square miles, 2010"]
[null,null,{"$f":"IF(selDest=1,CONCATENATE(\"To \",'Migration 2012'!B56),CONCATENATE(\"From \",'Migration 2012'!B56))","v":"From Vermont"},"Population per square mile, 2010"]
[null,null,{"$f":"IF(selDest=1,CONCATENATE(\"To \",'Migration 2012'!B57),CONCATENATE(\"From \",'Migration 2012'!B57))","v":"From Virginia"}]
[null,null,{"$f":"IF(selDest=1,CONCATENATE(\"To \",'Migration 2012'!B58),CONCATENATE(\"From \",'Migration 2012'!B58))","v":"From Washington"}]
[null,null,{"$f":"IF(selDest=1,CONCATENATE(\"To \",'Migration 2012'!B59),CONCATENATE(\"From \",'Migration 2012'!B59))","v":"From West Virginia"}]
[null,null,{"$f":"IF(selDest=1,CONCATENATE(\"To \",'Migration 2012'!B60),CONCATENATE(\"From \",'Migration 2012'!B60))","v":"From Wisconsin"}]
[null,null,{"$f":"IF(selDest=1,CONCATENATE(\"To \",'Migration 2012'!B61),CONCATENATE(\"From \",'Migration 2012'!B61))","v":"From Wyoming"}]
[null,null,{"$f":"IF(selDest=1,CONCATENATE(\"To \",'Migration 2012'!B62),CONCATENATE(\"From \",'Migration 2012'!B62))","v":"From Puerto Rico"}]

{"sheet":"Migration Chart Data","index":3,"n_rows":54,"n_cols":8,"rows_kept":54,"cut":false,"hidden":true,"merged":[]}
[]
[null,{"$f":"Migration!A4","v":"No:"},{"$f":"Migration!B4","v":"Origin:"},{"$f":"Migration!C4","v":"Total Migration Away From Origin, 2012"},null,"No:","Origin:","Total Migration Away From Origin, 2012"]
[null,{"$f":"Migration!A5","v":1},{"$f":"Migration!B5","v":"Alabama"},{"$f":"IF(ISNUMBER(Migration!C5),Migration!C5,0)","v":109210},null,5,"California",566986]
[null,{"$f":"Migration!A6","v":2},{"$f":"Migration!B6","v":"Alaska"},{"$f":"IF(ISNUMBER(Migration!C6),Migration!C6,0)","v":84068},null,10,"Florida",428325]
[null,{"$f":"Migration!A7","v":3},{"$f":"Migration!B7","v":"Arizona"},{"$f":"IF(ISNUMBER(Migration!C7),Migration!C7,0)","v":206842},null,33,"New York",405864]
[null,{"$f":"Migration!A8","v":4},{"$f":"Migration!B8","v":"Arkansas"},{"$f":"IF(ISNUMBER(Migration!C8),Migration!C8,0)","v":64967},null,44,"Texas",402187]
[null,{"$f":"Migration!A9","v":5},{"$f":"Migration!B9","v":"California"},{"$f":"IF(ISNUMBER(Migration!C9),Migration!C9,0)","v":566986},null,14,"Illinois",277953]
[null,{"$f":"Migration!A10","v":6},{"$f":"Migration!B10","v":"Colorado"},{"$f":"IF(ISNUMBER(Migration!C10),Migration!C10,0)","v":161530},null,11,"Georgia",252262]
[null,{"$f":"Migration!A11","v":7},{"$f":"Migration!B11","v":"Connecticut"},{"$f":"IF(ISNUMBER(Migration!C11),Migration!C11,0)","v":87023},null,34,"North Carolina",238663]
[null,{"$f":"Migration!A12","v":8},{"$f":"Migration!B12","v":"Delaware"},{"$f":"IF(ISNUMBER(Migration!C12),Migration!C12,0)","v":25149},null,47,"Virginia",238540]
[null,{"$f":"Migration!A13","v":9},{"$f":"Migration!B13","v":"District of Columbia "},{"$f":"IF(ISNUMBER(Migration!C13),Migration!C13,0)","v":59513},null,39,"Pennsylvania",237156]
[null,{"$f":"Migration!A14","v":10},{"$f":"Migration!B14","v":"Florida"},{"$f":"IF(ISNUMBER(Migration!C14),Migration!C14,0)","v":428325},null,31,"New Jersey",219202]
[null,{"$f":"Migration!A15","v":11},{"$f":"Migration!B15","v":"Georgia"},{"$f":"IF(ISNUMBER(Migration!C15),Migration!C15,0)","v":252262},null,3,"Arizona",206842]
[null,{"$f":"Migration!A16","v":12},{"$f":"Migration!B16","v":"Hawaii"},{"$f":"IF(ISNUMBER(Migration!C16),Migration!C16,0)","v":61509},null,36,"Ohio",199202]
[null,{"$f":"Migration!A17","v":13},{"$f":"Migration!B17","v":"Idaho"},{"$f":"IF(ISNUMBER(Migration!C17),Migration!C17,0)","v":55191},null,48,"Washington",180462]
[null,{"$f":"Migration!A18","v":14},{"$f":"Migration!B18","v":"Illinois"},{"$f":"IF(ISNUMBER(Migration!C18),Migration!C18,0)","v":277953},null,23,"Michigan",175733]
[null,{"$f":"Migration!A19","v":15},{"$f":"Migration!B19","v":"Indiana"},{"$f":"IF(ISNUMBER(Migration!C19),Migration!C19,0)","v":144597},null,43,"Tennessee",163843]
[null,{"$f":"Migration!A20","v":16},{"$f":"Migration!B20","v":"Iowa"},{"$f":"IF(ISNUMBER(Migration!C20),Migration!C20,0)","v":73325},null,6,"Colorado",161530]
[null,{"$f":"Migration!A21","v":17},{"$f":"Migration!B21","v":"Kansas"},{"$f":"IF(ISNUMBER(Migration!C21),Migration!C21,0)","v":93134},null,22,"Massachusetts",158156]
[null,{"$f":"Migration!A22","v":18},{"$f":"Migration!B22","v":"Kentucky"},{"$f":"IF(ISNUMBER(Migration!C22),Migration!C22,0)","v":103004},null,21,"Maryland",157664]
[null,{"$f":"Migration!A23","v":19},{"$f":"Migration!B23","v":"Louisiana"},{"$f":"IF(ISNUMBER(Migration!C23),Migration!C23,0)","v":95956},null,15,"Indiana",144597]
[null,{"$f":"Migration!A24","v":20},{"$f":"Migration!B24","v":"Maine"},{"$f":"IF(ISNUMBER(Migration!C24),Migration!C24,0)","v":38574},null,26,"Missouri",142754]
[null,{"$f":"Migration!A25","v":21},{"$f":"Migration!B25","v":"Maryland"},{"$f":"IF(ISNUMBER(Migration!C25),Migration!C25,0)","v":157664},null,41,"South Carolina",127418]
[null,{"$f":"Migration!A26","v":22},{"$f":"Migration!B26","v":"Massachusetts"},{"$f":"IF(ISNUMBER(Migration!C26),Migration!C26,0)","v":158156},null,24,"Minnesota",115946]
[null,{"$f":"Migration!A27","v":23},{"$f":"Migration!B27","v":"Michigan"},{"$f":"IF(ISNUMBER(Migration!C27),Migration!C27,0)","v":175733},null,1,"Alabama",109210]
[null,{"$f":"Migration!A28","v":24},{"$f":"Migration!B28","v":"Minnesota"},{"$f":"IF(ISNUMBER(Migration!C28),Migration!C28,0)","v":115946},null,38,"Oregon",108182]
[null,{"$f":"Migration!A29","v":25},{"$f":"Migration!B29","v":"Mississippi"},{"$f":"IF(ISNUMBER(Migration!C29),Migration!C29,0)","v":66947},null,18,"Kentucky",103004]
[null,{"$f":"Migration!A30","v":26},{"$f":"Migration!B30","v":"Missouri"},{"$f":"IF(ISNUMBER(Migration!C30),Migration!C30,0)","v":142754},null,37,"Oklahoma",102572]
[null,{"$f":"Migration!A31","v":27},{"$f":"Migration!B31","v":"Montana"},{"$f":"IF(ISNUMBER(Migration!C31),Migration!C31,0)","v":33832},null,29,"Nevada",98882]
[null,{"$f":"Migration!A32","v":28},{"$f":"Migration!B32","v":"Nebraska"},{"$f":"IF(ISNUMBER(Migration!C32),Migration!C32,0)","v":48816},null,50,"Wisconsin",97724]
[null,{"$f":"Migration!A33","v":29},{"$f":"Migration!B33","v":"Nevada"},{"$f":"IF(ISNUMBER(Migration!C33),Migration!C33,0)","v":98882},null,19,"Louisiana",95956]
[null,{"$f":"Migration!A34","v":30},{"$f":"Migration!B34","v":"New Hampshire"},{"$f":"IF(ISNUMBER(Migration!C34),Migration!C34,0)","v":38696},null,17,"Kansas",93134]
[null,{"$f":"Migration!A35","v":31},{"$f":"Migration!B35","v":"New Jersey"},{"$f":"IF(ISNUMBER(Migration!C35),Migration!C35,0)","v":219202},null,7,"Connecticut",87023]
[null,{"$f":"Migration!A36","v":32},{"$f":"Migration!B36","v":"New Mexico"},{"$f":"IF(ISNUMBER(Migration!C36),Migration!C36,0)","v":63921},null,2,"Alaska",84068]
[null,{"$f":"Migration!A37","v":33},{"$f":"Migration!B37","v":"New York"},{"$f":"IF(ISNUMBER(Migration!C37),Migration!C37,0)","v":405864},null,45,"Utah",82165]
[null,{"$f":"Migration!A38","v":34},{"$f":"Migration!B38","v":"North Carolina"},{"$f":"IF(ISNUMBER(Migration!C38),Migration!C38,0)","v":238663},null,52,"Puerto Rico",74500]
[null,{"$f":"Migration!A39","v":35},{"$f":"Migration!B39","v":"North Dakota"},{"$f":"IF(ISNUMBER(Migration!C39),Migration!C39,0)","v":23959},null,16,"Iowa",73325]
[null,{"$f":"Migration!A40","v":36},{"$f":"Migration!B40","v":"Ohio"},{"$f":"IF(ISNUMBER(Migration!C40),Migration!C40,0)","v":199202},null,25,"Mississippi",66947]
[null,{"$f":"Migration!A41","v":37},{"$f":"Migration!B41","v":"Oklahoma"},{"$f":"IF(ISNUMBER(Migration!C41),Migration!C41,0)","v":102572},null,4,"Arkansas",64967]
[null,{"$f":"Migration!A42","v":38},{"$f":"Migration!B42","v":"Oregon"},{"$f":"IF(ISNUMBER(Migration!C42),Migration!C42,0)","v":108182},null,32,"New Mexico",63921]
[null,{"$f":"Migration!A43","v":39},{"$f":"Migration!B43","v":"Pennsylvania"},{"$f":"IF(ISNUMBER(Migration!C43),Migration!C43,0)","v":237156},null,12,"Hawaii",61509]
[null,{"$f":"Migration!A44","v":40},{"$f":"Migration!B44","v":"Rhode Island"},{"$f":"IF(ISNUMBER(Migration!C44),Migration!C44,0)","v":30498},null,9,"District of Columbia ",59513]
[null,{"$f":"Migration!A45","v":41},{"$f":"Migration!B45","v":"South Carolina"},{"$f":"IF(ISNUMBER(Migration!C45),Migration!C45,0)","v":127418},null,13,"Idaho",55191]
[null,{"$f":"Migration!A46","v":42},{"$f":"Migration!B46","v":"South Dakota"},{"$f":"IF(ISNUMBER(Migration!C46),Migration!C46,0)","v":22534},null,28,"Nebraska",48816]
[null,{"$f":"Migration!A47","v":43},{"$f":"Migration!B47","v":"Tennessee"},{"$f":"IF(ISNUMBER(Migration!C47),Migration!C47,0)","v":163843},null,49,"West Virginia",47425]
[null,{"$f":"Migration!A48","v":44},{"$f":"Migration!B48","v":"Texas"},{"$f":"IF(ISNUMBER(Migration!C48),Migration!C48,0)","v":402187},null,30,"New Hampshire",38696]
[null,{"$f":"Migration!A49","v":45},{"$f":"Migration!B49","v":"Utah"},{"$f":"IF(ISNUMBER(Migration!C49),Migration!C49,0)","v":82165},null,20,"Maine",38574]
[null,{"$f":"Migration!A50","v":46},{"$f":"Migration!B50","v":"Vermont"},{"$f":"IF(ISNUMBER(Migration!C50),Migration!C50,0)","v":20056},null,27,"Montana",33832]
[null,{"$f":"Migration!A51","v":47},{"$f":"Migration!B51","v":"Virginia"},{"$f":"IF(ISNUMBER(Migration!C51),Migration!C51,0)","v":238540},null,51,"Wyoming",32228]
[null,{"$f":"Migration!A52","v":48},{"$f":"Migration!B52","v":"Washington"},{"$f":"IF(ISNUMBER(Migration!C52),Migration!C52,0)","v":180462},null,40,"Rhode Island",30498]
[null,{"$f":"Migration!A53","v":49},{"$f":"Migration!B53","v":"West Virginia"},{"$f":"IF(ISNUMBER(Migration!C53),Migration!C53,0)","v":47425},null,8,"Delaware",25149]
[null,{"$f":"Migration!A54","v":50},{"$f":"Migration!B54","v":"Wisconsin"},{"$f":"IF(ISNUMBER(Migration!C54),Migration!C54,0)","v":97724},null,35,"North Dakota",23959]
[null,{"$f":"Migration!A55","v":51},{"$f":"Migration!B55","v":"Wyoming"},{"$f":"IF(ISNUMBER(Migration!C55),Migration!C55,0)","v":32228},null,42,"South Dakota",22534]
[null,{"$f":"Migration!A56","v":52},{"$f":"Migration!B56","v":"Puerto Rico"},{"$f":"IF(ISNUMBER(Migration!C56),Migration!C56,0)","v":74500},null,46,"Vermont",20056]

{"sheet":"Notes","index":4,"n_rows":9,"n_cols":5,"rows_kept":9,"cut":false,"hidden":false,"merged":[]}
[]
[null,"Key Lessons:",null,null,"URL:"]
[null,"Distance Calculation (Formula, and Radius of Earth in Miles or KM)",null,null,"http://www.mrexcel.com/forum/excel-questions/600040-calculating-distance-excel.html"]
[null,"Butterfly Chart",null,null,"http://usefulgyaan.wordpress.com/2013/07/04/custom-charts-in-excel-butterfly-chart/"]
[]
[null,"Data:",null,null,"URL:"]
[null,"Dataset: U.S. Census Bureau: State and County QuickFacts, 2007-2013",null,null,"Source: http://quickfacts.census.gov/qfd/download_data.html"]
[null,"Capitals of States (For Calculating ZIP Codes)",null,null,"http://en.wikipedia.org/wiki/List_of_capitals_in_the_United_States"]
[null,"ZIP Codes (Used to Calculate Approx. Distance Between States)",null,null,"http://stevemorse.org/jcal/latlonbatch.html?direction=forward"]

{"sheet":"Demographics","index":5,"n_rows":62,"n_cols":58,"rows_kept":62,"cut":false,"hidden":true,"merged":[[1,1,1,4],[2,1,2,4],[3,1,3,4],[4,1,4,4]]}
[]
[null,"Table 4: Demographics of USA, 2007-2013"]
[null,"Dataset: U.S. Census Bureau: State and County QuickFacts, 2007-2013, some data omitted"]
[null,"Source: http://quickfacts.census.gov/qfd/download_data.html"]
[null,"Data unavailable for: District of Columbia and Peurto Rico"]
[]
[]
[]
[null,"State and County code","Population, 2012 estimate                                                               ABS    0    313873685       78 313873685 CENSUS","Population, 2010 (April 1) estimates base                                               ABS    0    308747716       82 308747716 CENSUS","Population, percent change - April 1, 2010 to July 1, 2013                              PCT    1          2.4    -18.6      46.4 CENSUS","Population, percent change - April 1, 2010 to July 1, 2012                              PCT    1          1.7    -18.1      25.7 CENSUS","% Persons under 5 years, 2012","% Persons under 18 years, 2012","% Persons 65 years and over, 2012","% Female persons, 2012","% White alone, 2012","% Black or African American alone, 2012","% American Indian and Alaska Native alone, 2012","% Asian alone, 2012","% Native Hawaiian and Other Pacific Islander alone, 2012","% Two or More Races, 2012","% Hispanic or Latino, 2012","% White alone, not Hispanic or Latino, 2012","% Living in same house 1 year & over, 2008-2012","% Foreign born persons, 2008-2012","% Language other than English spoken at home, for ages 5+, 2008-2012","% High school graduate or higher, for ages 25+, 2008-2012","% Bachelor's degree or higher, for ages 25+, 2008-2012","Veterans, 2008-2012","Mean travel time to work (minutes), for workers ages 16+, 2008-2012","Housing units, 2012","Homeownership rate, 2008-2012","% Housing units in multi-unit structures, 2008-2012","Median value of owner-occupied housing units, 2008-2012","Number of Households, 2008-2012","Persons per household, 2008-2012","Per capita money income in past 12 months (2012 dollars), 2008-2012","Median household income, 2008-2012","Persons below poverty level, percent, 2008-2012","Private nonfarm establishments, 2011","Private nonfarm employment,  2011","% Change in private nonfarm employment, 2010-2011","Nonemployer establishments, 2011","Total number of firms, 2007","% Black-owned firms, 2007","% American Indian- and Alaska Native-owned firms, 2007","% Asian-owned firms, 2007","% Native Hawaiian- and Other Pacific Islander-owned firms, 2007","% Hispanic-owned firms, 2007","% Women-owned firms, 2007","Manufacturers shipments, 2007 ($1,000)","Merchant wholesaler sales, 2007 ($1,000)","Retail sales, 2007 ($1,000)","Retail sales per capita, 2007","Accommodation and food services sales, 2007 ($1,000)","Building permits, 2012","Land area in square miles, 2010","Population per square mile, 2010",null,null,{"$f":"Migration!C4","v":"Total Migration Away From Origin, 2012"},{"$f":"INDEX(Table1[[#All],[% Persons under 5 years, 2012]:[Population per square mile, 2010]],ROW(A1)-1,selDem)","v":"Persons per household, 2008-2012"}]
[null,"United States",313873685,308747716,2.4,1.7,6.4,23.5,13.7,50.8,77.900000000000006,13.1,1.2,5.0999999999999996,0.2,2.4,16.899999999999999,63,84.8,12.9,20.5,85.7,28.5,21853912,25.4,132452405,65.5,25.9,181400,115226802,2.61,28051,53046,14.9,7354043,113425965,1.3,22491080,27092908,7.1,0.9,5.7,0.1,8.3000000000000007,28.8,5319456312,4174286516,3917663456,12990,613795732,829658,3531905.43,87.4,null,"Alabama",{"$f":"Migration!C5","v":109210},{"$f":"INDEX(Table1[[#All],[% Persons under 5 years, 2012]:[Population per square mile, 2010]],ROW(A3),selDem)","v":2.54},{"$f":"CORREL(BD10:BD59,BE10:BE59)","v":0.41006050397468169}]
[null,"Alabama",4817528,4779758,1.1000000000000001,0.8,6.3,23.3,14.5,51.5,70,26.5,0.7,1.2,0.1,1.5,4.0999999999999996,66.599999999999994,84.9,3.5,5.2,82.6,22.3,398343,24.1,2189545,70.2,15.8,122300,1837576,2.54,23587,43160,18.100000000000001,97743,1573138,0.3,321641,382350,14.8,0.8,1.8,0.1,1.2,28.1,112858843,52252752,57344851,12364,6426342,13506,50645.33,94.4,null,"Alaska",{"$f":"Migration!C6","v":84068},{"$f":"INDEX(Table1[[#All],[% Persons under 5 years, 2012]:[Population per square mile, 2010]],ROW(A4),selDem)","v":2.71},{"$f":"IF(selState>1,CONCATENATE(\"Correlation coefficient (r) value between \",IF(selYear=1,\"2010\",IF(selYear=2,\"2011\",\"2012\")),\" \",BD9,\", and the \",IF(selDest=1,\"Origin\",\"Destination\"),\"'s \",BE9,\":\"),CONCATENATE(\"Correlation coefficient (r) value between \",BD9,\", and the State's \",BE9,\":\"))","v":"Correlation coefficient (r) value between Total Migration Away From Origin, 2012, and the State's Persons per household, 2008-2012:"}]
[null,"Alaska",730307,710231,3.5,2.8,7.5,25.6,8.5,47.9,67.5,3.7,14.8,5.7,1.2,7.1,6.1,63.1,79.7,6.9,16.3,91.6,27.5,72090,18.600000000000001,307594,64.400000000000006,24.2,237900,252991,2.71,32537,69917,9.6,20119,254996,0.1,53334,68728,1.5,10,3.1,0.3,0,25.9,8204030,4563605,9303387,13635,1851293,994,570640.94999999995,1.2,null,"Arizona",{"$f":"Migration!C7","v":206842},{"$f":"INDEX(Table1[[#All],[% Persons under 5 years, 2012]:[Population per square mile, 2010]],ROW(A5),selDem)","v":2.66},{"$f":"CONCATENATE(\"X: [\",BD9,\"],\nY: [\",BE9,\"]\")","v":"X: [Total Migration Away From Origin, 2012],\nY: [Persons per household, 2008-2012]"}]
[null,"Arizona",6551149,6392015,3.7,2.5,6.7,24.7,14.8,50.3,84.3,4.5,5.3,3.1,0.3,2.5,30.2,57.1,80.400000000000006,13.6,26.9,85.4,26.6,530693,24.6,2871423,65.5,20.6,175900,2357158,2.66,25571,50256,17.2,130305,2108561,2.1,408650,491529,2,1.9,3.3,0,10.7,28.1,57977827,57573459,86758801,13637,13268514,21726,113594.08,56.3,null,"Arkansas",{"$f":"Migration!C8","v":64967},{"$f":"INDEX(Table1[[#All],[% Persons under 5 years, 2012]:[Population per square mile, 2010]],ROW(A6),selDem)","v":2.5099999999999998},{"$f":"CONCATENATE(\"r = \",LEFT(BF10,5))","v":"r = 0.410"}]
[null,"Arkansas",2949828,2915916,1.5,1.2,6.6,24.1,15,50.9,80,15.6,0.9,1.4,0.3,1.8,6.8,73.900000000000006,83,4.4000000000000004,7.1,83.3,19.8,242151,21.3,1328170,67.2,15.4,106300,1128797,2.5099999999999998,22007,40531,18.7,64471,980644,1.6,193329,238994,5.5,1.1000000000000001,1.4,0.1,2.2999999999999998,24.5,60735582,29659789,32974282,11602,3559795,8231,52035.48,56,null,"California",{"$f":"Migration!C9","v":566986},{"$f":"INDEX(Table1[[#All],[% Persons under 5 years, 2012]:[Population per square mile, 2010]],ROW(A7),selDem)","v":2.93}]
[null,"California",37999878,37253959,2.9,2,6.7,24.3,12.1,50.3,73.7,6.6,1.7,13.9,0.5,3.6,38.200000000000003,39.4,84.2,27.1,43.5,81,30.5,1952910,27.1,13707386,56,30.9,383900,12466331,2.93,29551,61400,15.3,849316,12698427,1.3,2887014,3425510,4,1.3,14.9,0.3,16.5,30.3,491372092,598456486,455032270,12561,80852787,58549,155779.22,239.1,null,"Colorado",{"$f":"Migration!C10","v":161530},{"$f":"INDEX(Table1[[#All],[% Persons under 5 years, 2012]:[Population per square mile, 2010]],ROW(A8),selDem)","v":2.5099999999999998}]
[null,"Colorado",5189458,5029196,4.8,3.2,6.5,23.7,11.8,49.8,88.1,4.3,1.6,3,0.2,2.8,21,69.599999999999994,80.8,9.6999999999999993,16.8,89.9,36.700000000000003,405895,24.4,2230459,65.900000000000006,25.8,236800,1962753,2.5099999999999998,31039,58244,12.9,150889,1972271,0.9,434910,547770,1.7,0.8,2.6,0.1,6.2,29.2,46331953,53598986,65896788,13609,11440395,23301,103641.89,48.5,null,"Connecticut",{"$f":"Migration!C11","v":87023},{"$f":"INDEX(Table1[[#All],[% Persons under 5 years, 2012]:[Population per square mile, 2010]],ROW(A9),selDem)","v":2.54}]
[null,"Connecticut",3591765,3574097,0.6,0.5,5.4,22.1,14.8,51.3,82,11.2,0.5,4.2,0.1,2.1,14.2,70.3,87.9,13.5,21.2,89,36.200000000000003,228291,24.8,1487910,68.3,34.5,285900,1360184,2.54,37807,69519,10,88040,1442620,0.4,259835,332150,4.4000000000000004,0.5,3.3,0,4.2,28.1,58404898,107917037,52165480,14953,9138437,4669,4842.3599999999997,738.1,null,"Delaware",{"$f":"Migration!C12","v":25149},{"$f":"INDEX(Table1[[#All],[% Persons under 5 years, 2012]:[Population per square mile, 2010]],ROW(A10),selDem)","v":2.62}]
[null,"Delaware",917053,897936,3.1,2.1,6.1,22.4,15.3,51.5,71.400000000000006,22,0.7,3.5,0.1,2.4,8.6,64.599999999999994,85.8,8.3000000000000007,12.3,87.7,28.5,76752,24.8,410321,72.7,17.7,241100,334076,2.62,29733,60119,11.5,24132,359602,0.2,55418,74573,8.6999999999999993,0,4,0,2.1,26.1,25679939,5727401,14202083,16421,1910770,4091,1948.54,460.8,null,"Florida",{"$f":"Migration!C13","v":59513},{"$f":"INDEX(Table1[[#All],[% Persons under 5 years, 2012]:[Population per square mile, 2010]],ROW(A12),selDem)","v":2.58}]
[null,"District of Columbia ",null,null,null,null,null,null,null,null,null,null,null,null,null,null,null,null,null,null,null,null,null,null,null,null,null,null,null,null,null,null,null,null,null,null,null,null,null,null,null,null,null,null,null,null,null,null,null,null,null,null,null,null,"Georgia",{"$f":"Migration!C14","v":428325},{"$f":"INDEX(Table1[[#All],[% Persons under 5 years, 2012]:[Population per square mile, 2010]],ROW(A13),selDem)","v":2.7}]
[null,"Florida",19320749,18802690,4,2.8,5.5,20.7,18.2,51.1,78.3,16.600000000000001,0.5,2.7,0.1,1.9,23.2,57,83.7,19.3,27.3,85.8,26.2,1606758,25.8,9031051,68.099999999999994,30.1,170800,7147013,2.58,26451,47309,15.6,490851,6732639,1.6,1717627,2009589,9,0.5,3.2,0.1,22.4,28.9,104832907,221641518,262341127,14353,41922059,64810,53624.76,350.6,null,"Hawaii",{"$f":"Migration!C15","v":252262},{"$f":"INDEX(Table1[[#All],[% Persons under 5 years, 2012]:[Population per square mile, 2010]],ROW(A14),selDem)","v":2.95}]
[null,"Georgia",9915646,9687663,3.1,2.4,6.8,25.1,11.5,51.1,62.8,31.2,0.5,3.5,0.1,1.8,9.1999999999999993,55.1,83.3,9.6999999999999993,13.1,84.4,27.8,701808,27,4107482,66,20.5,156400,3508477,2.7,25309,49604,17.399999999999999,214635,3328033,0.4,786848,901105,20.399999999999999,0.7,5.0999999999999996,0.1,3.6,30.9,144280774,141962359,117516907,12326,16976235,24350,57513.49,168.4,null,"Idaho",{"$f":"Migration!C16","v":61509},{"$f":"INDEX(Table1[[#All],[% Persons under 5 years, 2012]:[Population per square mile, 2010]],ROW(A15),selDem)","v":2.66}]
[null,"Hawaii",1390090,1360301,3.2,2.2000000000000002,6.4,21.8,15.1,49.6,26.1,2.1,0.4,38.299999999999997,10.1,23,9.5,22.8,84.9,18.100000000000001,25.7,90.3,29.6,112589,25.8,524343,58.2,38.6,517000,447453,2.95,29227,67492,10.8,31472,485548,1.4,94118,120374,0.9,1.3,47.2,9.5,3.6,31,8799266,8894672,17611851,13793,8042210,2993,6422.63,211.8,null,"Illinois",{"$f":"Migration!C17","v":55191},{"$f":"INDEX(Table1[[#All],[% Persons under 5 years, 2012]:[Population per square mile, 2010]],ROW(A16),selDem)","v":2.62}]
[null,"Idaho",1595590,1567652,2.8,1.8,7.3,26.7,13.3,50,93.8,0.8,1.7,1.4,0.2,2.2000000000000002,11.6,83.5,82.3,6,10.4,88.6,24.7,125905,20.100000000000001,673054,70.099999999999994,15.1,167100,577648,2.66,22581,47015,15.1,42399,482722,-1.1000000000000001,113472,151671,0.2,0.9,0.8,0,2.6,23.5,18010976,14286715,20526631,13691,2415951,6265,82643.12,19,null,"Indiana",{"$f":"Migration!C18","v":277953},{"$f":"INDEX(Table1[[#All],[% Persons under 5 years, 2012]:[Population per square mile, 2010]],ROW(A17),selDem)","v":2.54}]
[null,"Illinois",12868192,12830632,0.4,0.3,6.3,23.8,13.2,50.9,77.900000000000006,14.8,0.6,5,0.1,1.7,16.3,63,86.8,13.8,22.2,87,31.1,755256,28.1,5295329,68,32.9,190800,4774275,2.62,29519,56853,13.7,312437,5038462,1.2,920076,1123817,9.5,0.5,5.3,0.1,5,30.5,257760713,231082768,165450520,12947,25469026,13797,55518.93,231.1,null,"Iowa",{"$f":"Migration!C19","v":144597},{"$f":"INDEX(Table1[[#All],[% Persons under 5 years, 2012]:[Population per square mile, 2010]],ROW(A18),selDem)","v":2.41}]
[null,"Indiana",6537782,6483797,1.3,0.8,6.5,24.3,13.6,50.8,86.6,9.4,0.4,1.8,0.1,1.8,6.3,81,84.7,4.5999999999999996,8.1,87,23,468648,23.2,2808256,70.599999999999994,18.5,123400,2478846,2.54,24558,48374,14.7,143479,2440507,1.7,386889,482847,4.5999999999999996,0.5,1.8,0,1.8,26.8,221877814,67634947,78745589,12408,11669759,13781,35826.11,181,null,"Kansas",{"$f":"Migration!C20","v":73325},{"$f":"INDEX(Table1[[#All],[% Persons under 5 years, 2012]:[Population per square mile, 2010]],ROW(A19),selDem)","v":2.5}]
[null,"Iowa",3075039,3046857,1.4,0.9,6.4,23.5,15.3,50.4,92.8,3.2,0.5,2,0.1,1.6,5.3,88,84.7,4.3,7.1,90.7,25.3,233698,18.7,1345738,72.599999999999994,18.399999999999999,123000,1223509,2.41,26545,51129,12.2,80113,1263665,0.8,202971,259931,0.8,0.2,1.1000000000000001,0.1,0.9,25.5,97592051,41068338,39234649,13172,4737719,9501,55857.13,54.5,null,"Kentucky",{"$f":"Migration!C21","v":93134},{"$f":"INDEX(Table1[[#All],[% Persons under 5 years, 2012]:[Population per square mile, 2010]],ROW(A20),selDem)","v":2.4900000000000002}]
[null,"Kansas",2885398,2853116,1.4,1.1000000000000001,7,25.1,13.7,50.3,87.2,6.2,1.2,2.6,0.1,2.7,11,77.5,83,6.5,10.9,89.7,30,218511,18.899999999999999,1238719,68.2,17.600000000000001,127400,1109391,2.5,26845,51273,13.2,73598,1113423,-1.2,186495,237040,2.4,0.9,2,0,2.4,27.5,76751828,45863865,34538332,12444,4192347,6252,81758.720000000001,34.9,null,"Louisiana",{"$f":"Migration!C22","v":103004},{"$f":"INDEX(Table1[[#All],[% Persons under 5 years, 2012]:[Population per square mile, 2010]],ROW(A21),selDem)","v":2.59}]
[null,"Kentucky",4379730,4339357,1.3,0.9,6.4,23.2,14,50.7,88.6,8.1,0.3,1.3,0.1,1.6,3.2,85.9,84.9,3.2,4.8,82.4,21,319678,22.7,1937312,68.7,18,120000,1691716,2.4900000000000002,23210,42610,18.600000000000001,89770,1463173,0.4,275059,337600,3.1,0.3,1.6,0,1.1000000000000001,25.6,119105421,74680759,50405925,11843,6300866,9725,39486.339999999997,109.9,null,"Maine",{"$f":"Migration!C23","v":95956},{"$f":"INDEX(Table1[[#All],[% Persons under 5 years, 2012]:[Population per square mile, 2010]],ROW(A22),selDem)","v":2.34}]
[null,"Louisiana",4602134,4533372,2,1.5,6.8,24.3,12.9,51.1,63.7,32.4,0.7,1.7,0.1,1.4,4.5,59.9,85.5,3.7,8.6999999999999993,82.2,21.4,313006,24.9,1986981,67.400000000000006,18.3,137700,1696499,2.59,24264,44673,18.7,103216,1617229,1.1000000000000001,336328,375808,15.9,0.7,2.8,0,2.9,27.4,205054723,51415553,56543203,12921,9729869,13018,43203.9,104.9,null,"Maryland",{"$f":"Migration!C24","v":38574},{"$f":"INDEX(Table1[[#All],[% Persons under 5 years, 2012]:[Population per square mile, 2010]],ROW(A23),selDem)","v":2.64}]
[null,"Maine",1328501,1328361,0,0,5,20,17,51.1,95.3,1.3,0.7,1.1000000000000001,0,1.5,1.4,94.1,86.3,3.3,7,90.6,27.3,130685,23.3,724224,72.099999999999994,19.399999999999999,175600,553208,2.34,26464,48219,13.3,40112,479728,-0.3,110500,150389,0.5,0.5,0.7,0,0.7,25.6,16363192,8823719,20444031,15520,2515827,3001,30842.92,43.1,null,"Massachusetts",{"$f":"Migration!C25","v":157664},{"$f":"INDEX(Table1[[#All],[% Persons under 5 years, 2012]:[Population per square mile, 2010]],ROW(A24),selDem)","v":2.5}]
[null,"Maryland",5884868,5773623,2.7,1.9,6.2,22.8,13,51.6,60.8,30,0.5,6,0.1,2.5,8.6999999999999993,53.9,86.6,13.8,16.5,88.5,36.299999999999997,438387,31.8,2395571,68.099999999999994,25.5,304900,2138806,2.64,36056,72999,9.4,133248,2104022,1.4,432590,528112,19.3,0.6,6.8,0.1,4.9000000000000004,32.6,41456097,51276797,75664186,13429,10758428,15217,9707.24,594.79999999999995,null,"Michigan",{"$f":"Migration!C26","v":158156},{"$f":"INDEX(Table1[[#All],[% Persons under 5 years, 2012]:[Population per square mile, 2010]],ROW(A25),selDem)","v":2.5299999999999998}]
[null,"Massachusetts",6645303,6547629,2.2000000000000002,1.5,5.5,21.1,14.4,51.5,83.7,7.9,0.5,5.8,0.1,2,10.1,75.8,86.7,14.8,21.7,89.1,39,400874,27.7,2810245,63.2,41.6,335500,2525694,2.5,35485,66658,11,169146,2960712,1.1000000000000001,479776,596790,3.4,0.4,4.5,0,3.3,29.8,86428959,95275672,88082966,13553,14917210,11111,7800.06,839.4,null,"Minnesota",{"$f":"Migration!C27","v":175733},{"$f":"INDEX(Table1[[#All],[% Persons under 5 years, 2012]:[Population per square mile, 2010]],ROW(A26),selDem)","v":2.46}]
[null,"Michigan",9882519,9883701,0.1,0,5.8,22.9,14.6,50.9,80.099999999999994,14.3,0.7,2.6,0,2.2000000000000002,4.5999999999999996,76.2,85.4,6,9,88.7,25.5,692582,23.9,4525004,72.8,18,128600,3818931,2.5299999999999998,25547,48471,16.3,217344,3379035,2.8,687228,816972,8.9,0.7,2.6,0.1,1.3,30.4,234455768,107109349,109102594,10855,14536648,11692,56538.9,174.8,null,"Mississippi",{"$f":"Migration!C28","v":115946},{"$f":"INDEX(Table1[[#All],[% Persons under 5 years, 2012]:[Population per square mile, 2010]],ROW(A27),selDem)","v":2.64}]
[null,"Minnesota",5379646,5303925,2.2000000000000002,1.4,6.5,23.7,13.6,50.3,86.5,5.5,1.3,4.4000000000000004,0.1,2.2000000000000002,4.9000000000000004,82.4,85.5,7.2,10.6,91.9,32.200000000000003,377522,22.7,2361352,73,21.6,194300,2101875,2.46,30656,59126,11.2,144606,2393746,1.5,387440,496657,2.5,0.6,2.2999999999999998,0,1,26.8,107563060,82878056,71384103,13751,10423660,16095,79626.740000000005,66.599999999999994,null,"Missouri",{"$f":"Migration!C29","v":66947},{"$f":"INDEX(Table1[[#All],[% Persons under 5 years, 2012]:[Population per square mile, 2010]],ROW(A28),selDem)","v":2.46}]
[null,"Mississippi",2986450,2967299,0.8,0.6,6.8,25,13.5,51.4,59.9,37.4,0.6,0.9,0.1,1.1000000000000001,2.9,57.6,85.6,2.2000000000000002,3.9,81,20,207673,23.9,1283850,69.900000000000006,13.6,100200,1087791,2.64,20670,38882,22.3,58592,887772,0.6,198171,225977,18,0.3,1.8,0,0.8,26.9,59869456,23003585,33751407,11552,7045097,6039,46923.27,63.2,null,"Montana",{"$f":"Migration!C30","v":142754},{"$f":"INDEX(Table1[[#All],[% Persons under 5 years, 2012]:[Population per square mile, 2010]],ROW(A29),selDem)","v":2.37}]
[null,"Missouri",6024522,5988923,0.9,0.6,6.3,23.3,14.7,51,83.9,11.7,0.5,1.8,0.1,2,3.7,80.599999999999994,83.6,3.9,6.1,87.2,25.8,494876,23.2,2719951,69,19.7,138400,2358270,2.46,25546,47333,15,147274,2298295,0.3,395523,501064,4.9000000000000004,0.6,1.9,0.1,1.2,26.1,110907604,81032913,76575216,12957,11070634,12297,68741.52,87.1,null,"Nebraska",{"$f":"Migration!C31","v":33832},{"$f":"INDEX(Table1[[#All],[% Persons under 5 years, 2012]:[Population per square mile, 2010]],ROW(A30),selDem)","v":2.46}]
[null,"Montana",1005494,989417,2.6,1.6,6.1,22.1,15.7,49.8,89.7,0.6,6.5,0.7,0.1,2.5,3.1,87.2,83.6,2,4.5999999999999996,91.9,28.5,97991,18,486141,68.5,16.600000000000001,183000,405508,2.37,25002,45456,14.8,35687,336110,-0.7,84070,114398,0.2,2,0.6,0,1,24.6,10638145,8202782,14686854,15343,2079426,2736,145545.79999999999,6.8,null,"Nevada",{"$f":"Migration!C32","v":48816},{"$f":"INDEX(Table1[[#All],[% Persons under 5 years, 2012]:[Population per square mile, 2010]],ROW(A31),selDem)","v":2.69}]
[null,"Nebraska",1855350,1826341,2.2999999999999998,1.6,7.1,25,13.9,50.3,89.9,4.8,1.3,2,0.1,1.9,9.6999999999999993,81.400000000000006,83.2,6.2,10.4,90.4,28.1,146852,18.100000000000001,804266,67.599999999999994,19.7,126700,721026,2.46,26523,51381,12.4,51553,797681,3.7,125943,159665,1.8,0.4,1.4,0,1.9,25.7,40157999,24019868,26486612,14965,2685580,6116,76824.17,23.8,null,"New Hampshire",{"$f":"Migration!C33","v":98882},{"$f":"INDEX(Table1[[#All],[% Persons under 5 years, 2012]:[Population per square mile, 2010]],ROW(A32),selDem)","v":2.4700000000000002}]
[null,"Nevada",2754354,2700552,3.3,2,6.6,24.1,13.1,49.6,77.099999999999994,8.9,1.6,7.9,0.7,3.8,27.3,52.9,77.7,19.2,29,84.4,22.2,229570,23.8,1182870,57.8,29.9,190900,992896,2.69,27003,54083,14.2,58777,1000610,-0.2,180711,221260,3.9,0.8,7.9,0.3,8.1,28.6,15735787,19255893,37433983,14579,28815533,9071,109781.18,24.6,null,"New Jersey",{"$f":"Migration!C34","v":38696},{"$f":"INDEX(Table1[[#All],[% Persons under 5 years, 2012]:[Population per square mile, 2010]],ROW(A33),selDem)","v":2.7}]
[null,"New Hampshire",1321617,1316469,0.5,0.4,5,20.8,14.7,50.6,94.4,1.4,0.3,2.4,0,1.5,3,91.9,86.7,5.3,7.9,91.4,33.4,115415,26.2,617001,72,25.6,245600,516845,2.4700000000000002,32758,64925,8.4,37031,554001,-1.5,102712,137815,0.5,0.4,1.6,0,1,25.8,18592406,14564458,25353874,19246,2630968,2296,8952.65,147,null,"New Mexico",{"$f":"Migration!C35","v":219202},{"$f":"INDEX(Table1[[#All],[% Persons under 5 years, 2012]:[Population per square mile, 2010]],ROW(A34),selDem)","v":2.63}]
[null,"New Jersey",8867749,8791909,1.2,0.9,6,22.9,14.1,51.2,73.8,14.7,0.6,9,0.1,1.9,18.5,58.2,90,20.8,29.6,87.9,35.4,457724,30.3,3574558,66.2,35.9,337900,3186878,2.7,35928,71637,9.9,226878,3377848,0.3,615142,781622,7.7,0.4,8.6999999999999993,0.1,8.6999999999999993,27.3,116608094,233413004,124813580,14453,19993613,17939,7354.22,1195.5,null,"New York",{"$f":"Migration!C36","v":63921},{"$f":"INDEX(Table1[[#All],[% Persons under 5 years, 2012]:[Population per square mile, 2010]],ROW(A35),selDem)","v":2.6}]
[null,"New Mexico",2083540,2059183,1.3,1.2,6.9,24.7,14.1,50.5,83.2,2.4,10.199999999999999,1.6,0.2,2.4,47,39.799999999999997,84.8,9.8000000000000007,36,83.4,25.6,175832,21.7,906802,68.900000000000006,15,161500,763844,2.63,23749,44886,19.5,43860,597568,-0.4,121017,157231,1.2,5.3,2.1,0.1,23.6,31.7,17122725,10589286,24469997,12429,3734300,4672,121298.15,17,null,"North Carolina",{"$f":"Migration!C37","v":405864},{"$f":"INDEX(Table1[[#All],[% Persons under 5 years, 2012]:[Population per square mile, 2010]],ROW(A36),selDem)","v":2.5099999999999998}]
[null,"New York",19576125,19378105,1.4,1,6,21.8,14.1,51.5,71.2,17.5,1,8,0.1,2.2000000000000002,18.2,57.6,88.7,22,29.8,84.9,32.799999999999997,957004,31.5,8123051,54.5,50.5,295300,7230896,2.6,32104,57683,14.9,521537,7369731,1.4,1596899,1956733,10.4,0.7,10.1,0.1,9.9,30.4,162720173,313461904,230718065,11879,39813499,24872,47126.400000000001,411.2,null,"North Dakota",{"$f":"Migration!C38","v":238663},{"$f":"INDEX(Table1[[#All],[% Persons under 5 years, 2012]:[Population per square mile, 2010]],ROW(A37),selDem)","v":2.2999999999999998}]
[null,"North Carolina",9748364,9535471,3.3,2.2000000000000002,6.4,23.4,13.8,51.3,71.900000000000006,22,1.5,2.5,0.1,2,8.6999999999999993,64.7,84.4,7.5,10.8,84.5,26.8,738926,23.5,4375234,67.099999999999994,17.100000000000001,153600,3693221,2.5099999999999998,25285,46450,16.8,215113,3284592,1.5,656617,798791,10.5,1,2.5,0.1,2.7,28.2,205867299,88795885,114578173,12641,16126939,48692,48617.91,196.1,null,"Ohio",{"$f":"Migration!C39","v":23959},{"$f":"INDEX(Table1[[#All],[% Persons under 5 years, 2012]:[Population per square mile, 2010]],ROW(A38),selDem)","v":2.46}]
[null,"North Dakota",701345,672591,7.6,4.3,6.6,22.1,14.4,49.2,90.1,1.5,5.5,1.1000000000000001,0.1,1.8,2.5,88.1,82.9,2.5,5.2,90.5,27.1,54782,16.5,329258,66.400000000000006,25.6,123900,282667,2.2999999999999998,28700,51641,12.1,22370,306064,3.8,49831,61546,0.3,1.6,0.7,0,0.5,24.8,11349799,13099348,10527300,16495,1214201,10340,69000.800000000003,9.6999999999999993,null,"Oklahoma",{"$f":"Migration!C40","v":199202},{"$f":"INDEX(Table1[[#All],[% Persons under 5 years, 2012]:[Population per square mile, 2010]],ROW(A39),selDem)","v":2.5299999999999998}]
[null,"Ohio",11553031,11536503,0.3,0.1,6,23.1,14.8,51.1,83.4,12.5,0.3,1.8,0,2,3.3,80.7,85.4,3.9,6.6,88.2,24.7,893168,23,5128619,68,22.9,133700,4555709,2.46,25857,48246,15.4,250476,4432849,1.8,742500,897939,5.8,0.3,2,0,1.1000000000000001,27.7,295890890,135575279,138816008,12049,17779905,16905,40860.69,282.3,null,"Oregon",{"$f":"Migration!C41","v":102572},{"$f":"INDEX(Table1[[#All],[% Persons under 5 years, 2012]:[Population per square mile, 2010]],ROW(A40),selDem)","v":2.48}]
[null,"Oklahoma",3815780,3751357,2.6,1.7,6.9,24.6,14,50.5,75.5,7.6,9,1.9,0.2,5.8,9.3000000000000007,67.900000000000006,82.1,5.5,9.1999999999999993,86.2,23.2,322008,21,1677617,67.5,15.1,110800,1439292,2.5299999999999998,24046,44891,16.600000000000001,89749,1261590,1.6,265596,333797,3.1,6.3,2,0,2.2999999999999998,25.3,60681358,48074682,43095353,11931,5106585,11930,68594.92,54.7,null,"Pennsylvania",{"$f":"Migration!C42","v":108182},{"$f":"INDEX(Table1[[#All],[% Persons under 5 years, 2012]:[Population per square mile, 2010]],ROW(A41),selDem)","v":2.4700000000000002}]
[null,"Oregon",3899801,3831073,2.6,1.8,6,22.1,14.9,50.5,88.3,2,1.8,4,0.4,3.5,12.2,77.8,82.1,9.8000000000000007,14.7,89.2,29.2,333395,22.4,1682502,62.5,23.2,246100,1512718,2.48,26702,50036,15.5,106340,1341841,-0.7,259810,348154,1.2,1.2,3.6,0.2,3.3,29.8,66880653,51910777,50370919,13494,7555764,10608,95988.01,39.9,null,"Rhode Island",{"$f":"Migration!C43","v":237156},{"$f":"INDEX(Table1[[#All],[% Persons under 5 years, 2012]:[Population per square mile, 2010]],ROW(A42),selDem)","v":2.46}]
[null,"Pennsylvania",12764475,12702379,0.6,0.5,5.6,21.5,16,51.2,83.5,11.4,0.3,3,0.1,1.7,6.1,78.8,87.8,5.8,10.199999999999999,88.3,27,981865,25.8,5572466,70.099999999999994,20.6,164900,4959633,2.4700000000000002,28190,52267,13.1,295720,5078111,2,772193,981501,4.5999999999999996,0.3,3.2,0,2.2999999999999998,27,234840418,142859202,166842778,13323,19625449,18796,44742.7,283.89999999999998,null,"South Carolina",{"$f":"Migration!C44","v":30498},{"$f":"INDEX(Table1[[#All],[% Persons under 5 years, 2012]:[Population per square mile, 2010]],ROW(A43),selDem)","v":2.54}]
[null,"Rhode Island",1050304,1052567,-0.1,-0.2,5.2,20.6,15.1,51.6,85.9,7.3,0.9,3.2,0.2,2.5,13.2,75.900000000000006,86.3,13,21,84.8,30.8,74982,23.4,462564,61.2,40.700000000000003,259400,410639,2.46,30005,56102,13.2,28181,406222,1.8,73060,96822,3.3,0.4,2.1,0,6,27.3,12061517,9182788,12286485,11646,2148674,731,1033.81,1018.1,null,"South Dakota",{"$f":"Migration!C45","v":127418},{"$f":"INDEX(Table1[[#All],[% Persons under 5 years, 2012]:[Population per square mile, 2010]],ROW(A44),selDem)","v":2.44}]
[null,"South Carolina",4723417,4625360,3.2,2.1,6.3,22.9,14.7,51.4,68.400000000000006,28,0.5,1.4,0.1,1.6,5.3,64,84.7,4.8,6.8,84,24.6,396873,23.4,2156705,69.5,17.7,137400,1768255,2.54,23906,44623,17.600000000000001,100481,1521123,1.2,301675,360397,12.1,0.5,1.8,0.1,1.7,27.6,93977455,40498047,54298410,12273,8383463,18708,30060.7,153.9,null,"Tennessee",{"$f":"Migration!C46","v":22534},{"$f":"INDEX(Table1[[#All],[% Persons under 5 years, 2012]:[Population per square mile, 2010]],ROW(A45),selDem)","v":2.5099999999999998}]
[null,"South Dakota",834047,814180,3.8,2.4,7.1,24.5,14.7,49.8,86.2,1.7,8.9,1.1000000000000001,0.1,2.1,3.1,83.8,83.9,2.6,6.7,90.1,26,69787,16.8,368175,68.599999999999994,18.600000000000001,129800,320467,2.44,25570,49091,13.8,25494,326749,-0.7,61356,76997,0.3,2.2000000000000002,0.6,0,0.8,22.2,13051128,11400476,12266218,15390,1622751,4178,75811,10.7,null,"Texas",{"$f":"Migration!C47","v":163843},{"$f":"INDEX(Table1[[#All],[% Persons under 5 years, 2012]:[Population per square mile, 2010]],ROW(A46),selDem)","v":2.8}]
[null,"Tennessee",6454914,6346113,2.4,1.7,6.3,23.1,14.2,51.2,79.3,17,0.4,1.6,0.1,1.6,4.8,75.099999999999994,84.4,4.5,6.6,83.9,23.5,493980,24.1,2834620,68.400000000000006,18.2,138700,2468841,2.5099999999999998,24294,44140,17.3,129489,2300542,1.6,473451,545348,8.4,0.5,2,0.1,1.6,25.9,140447760,80116528,77547291,12563,10626759,20147,41234.9,153.9,null,"Utah",{"$f":"Migration!C48","v":402187},{"$f":"INDEX(Table1[[#All],[% Persons under 5 years, 2012]:[Population per square mile, 2010]],ROW(A47),selDem)","v":3.09}]
[null,"Texas",26060796,25145561,5.2,3.6,7.5,26.8,10.9,50.3,80.599999999999994,12.3,1,4.2,0.1,1.7,38.200000000000003,44.5,82.6,16.3,34.6,80.8,26.3,1611660,24.9,10154230,63.9,24.1,128000,8782598,2.8,25809,51563,17.399999999999999,525420,8987663,2.2999999999999998,1975620,2164852,7.1,0.9,5.3,0.1,20.7,28.2,593541502,424238194,311334781,13061,42054592,135514,261231.71,96.3,null,"Vermont",{"$f":"Migration!C49","v":82165},{"$f":"INDEX(Table1[[#All],[% Persons under 5 years, 2012]:[Population per square mile, 2010]],ROW(A48),selDem)","v":2.34}]
[null,"Utah",2854871,2763885,5,3.3,9,31.1,9.5,49.7,91.8,1.3,1.5,2.2000000000000002,1,2.2999999999999998,13.3,79.900000000000006,82.6,8.3000000000000007,14.4,90.6,29.9,146524,21.5,996693,70.400000000000006,21.3,217800,880873,3.09,23794,58164,12.1,68747,1029103,0.8,196634,246393,0.5,0.6,1.9,0.3,3.7,24.9,42431657,25417368,36574240,13730,3980570,13007,82169.62,33.6,null,"Virginia",{"$f":"Migration!C50","v":20056},{"$f":"INDEX(Table1[[#All],[% Persons under 5 years, 2012]:[Population per square mile, 2010]],ROW(A49),selDem)","v":2.59}]
[null,"Vermont",625953,625745,0.1,0,4.9000000000000004,19.8,15.7,50.7,95.4,1.1000000000000001,0.4,1.4,0,1.7,1.6,94,86.3,4,5.3,91.3,34.200000000000003,50705,22.1,324084,71.2,23.1,215800,256830,2.34,28846,54168,11.6,21190,264208,0,60067,78729,0,0.5,0.8,0,0.6,26,10751461,5121694,9310119,15005,1367630,1301,9216.66,67.900000000000006,null,"Washington",{"$f":"Migration!C51","v":238540},{"$f":"INDEX(Table1[[#All],[% Persons under 5 years, 2012]:[Population per square mile, 2010]],ROW(A50),selDem)","v":2.52}]
[null,"Virginia",8186628,8001031,3.2,2.2999999999999998,6.2,22.7,13,50.9,71.099999999999994,19.7,0.5,6,0.1,2.6,8.4,64.099999999999994,84.7,11.1,14.7,86.9,34.700000000000003,734151,27.5,3398286,67.8,21.5,249700,3006219,2.59,33326,63636,11.1,191063,3029030,1,521053,638643,9.9,0.5,7,0.1,4.5,30.1,92417797,60513396,105663299,13687,15340483,27278,39490.089999999997,202.6,null,"West Virginia",{"$f":"Migration!C52","v":180462},{"$f":"INDEX(Table1[[#All],[% Persons under 5 years, 2012]:[Population per square mile, 2010]],ROW(A51),selDem)","v":2.4300000000000002}]
[null,"Washington",6895318,6724543,3.7,2.5,6.4,23,13.2,50.1,81.599999999999994,3.9,1.8,7.7,0.7,4.3,11.7,71.599999999999994,82.6,13,18.2,90,31.6,594914,25.5,2914607,63.8,25.7,272900,2619995,2.52,30661,59374,12.9,173511,2355123,1.2,409989,551340,0,1.2,6.8,0.2,3.2,28.7,112053283,76790966,92968519,14380,12389422,28118,66455.520000000004,101.2,null,"Wisconsin",{"$f":"Migration!C53","v":47425},{"$f":"INDEX(Table1[[#All],[% Persons under 5 years, 2012]:[Population per square mile, 2010]],ROW(A52),selDem)","v":2.42}]
[null,"West Virginia",1856680,1852999,0.1,0.2,5.6,20.7,16.8,50.7,94,3.5,0.2,0.7,0,1.5,1.3,92.9,87.9,1.4,2.4,83.4,17.899999999999999,164979,25.4,882802,73.7,12,97300,742674,2.4300000000000002,22482,40400,17.600000000000001,38150,568344,1.4,90273,120381,0,0,1.3,0,0.7,28.1,25080573,11036467,20538829,11340,2553258,2718,24038.21,77.099999999999994,null,"Wyoming",{"$f":"Migration!C54","v":97724},{"$f":"INDEX(Table1[[#All],[% Persons under 5 years, 2012]:[Population per square mile, 2010]],ROW(A53),selDem)","v":2.48}]
[null,"Wisconsin",5724554,5686983,1,0.7,6.1,23,14.4,50.4,88.2,6.5,1.1000000000000001,2.5,0,1.7,6.2,82.8,85.8,4.5999999999999996,8.6,90.2,26.4,423264,21.6,2632581,68.599999999999994,25.3,169000,2286339,2.42,27426,52627,12.5,138045,2354284,1.4,334657,433797,2.6,0.6,1.6,0,1.3,25.9,163563195,59996244,72283321,12904,9247311,12041,54157.8,105]
[null,"Wyoming",576626,563626,3.4,2.2999999999999998,6.7,23.5,13.1,48.9,93.1,1.5,2.6,0.9,0.1,1.8,9.5,84.6,81.8,3.2,6.8,92.1,24.3,51203,18.5,265162,70.3,16.100000000000001,184400,221479,2.48,28858,56573,11,20329,208385,1.6,45633,61179,0.2,0.8,0.7,0,2.8,25.5,8834810,6352890,8957553,17114,1469008,2110,97093.14,5.8]
[null,"Puerto Rico"]

{"sheet":"Migration","index":6,"n_rows":56,"n_cols":56,"rows_kept":56,"cut":false,"hidden":true,"merged":[]}
[null,null,null,"Population",null,null,"Total Migration Within State",null,null,"Total Migration Away from Origin",null,null,"Total Migration to Destination",null,null,"Destinations from State",null,null,"Origins to State",null,null,"Total Migration to Destination","Total Migration Away From Origin","Total Migration Within State","Total Migration Away From Origin","State Destinations","State Origins","State Migration"]
[null,null,null,1,2,3,1,2,3,1,2,3,1,2,3,1,2,3,1,2,3,1,2,1,2,1,2]
[]
["No:",{"$f":"IF(selDest=2,\"Origin:\",\"Destination:\")","v":"Origin:"},{"$f":"IF(selState=1,HLOOKUP(selWithin,$X$2:$Y$56,ROW(B4)-1,FALSE),AB4)","v":"Total Migration Away From Origin, 2012"},"Population 2010","Population 2011","Population 2012","Total Migration Within State, 2010","Total Migration Within State, 2011","Total Migration Within State, 2012","Total Migration Away From Origin, 2010","Total Migration Away From Origin, 2011","Total Migration Away From Origin, 2012","Total Migration to Destination, 2010","Total Migration to Destination, 2011","Total Migration to Destination, 2012",{"$f":"CONCATENATE(\"Migration \",OFFSET(Selectors!C4,selState-1,))","v":"Migration In United States"},{"$f":"CONCATENATE(\"Migration \",OFFSET(Selectors!C4,selState-1,))","v":"Migration In United States"},{"$f":"CONCATENATE(\"Migration \",OFFSET(Selectors!C4,selState-1,))","v":"Migration In United States"},{"$f":"CONCATENATE(\"Migration \",OFFSET(Selectors!C4,selState-1,))","v":"Migration In United States"},{"$f":"CONCATENATE(\"Migration \",OFFSET(Selectors!C4,selState-1,))","v":"Migration In United States"},{"$f":"CONCATENATE(\"Migration \",OFFSET(Selectors!C4,selState-1,))","v":"Migration In United States"},{"$f":"HLOOKUP(selYear,$M$2:$O$56,ROW(B4)-1,FALSE)","v":"Total Migration to Destination, 2012"},{"$f":"HLOOKUP(selYear,$J$2:$L$56,ROW(B4)-1,FALSE)","v":"Total Migration Away From Origin, 2012"},{"$f":"HLOOKUP(selYear,$G$2:$I$56,ROW(B4)-1,FALSE)","v":"Total Migration Within State, 2012"},{"$f":"HLOOKUP(selDest,$V$2:$W$56,ROW(B4)-1,FALSE)","v":"Total Migration Away From Origin, 2012"},{"$f":"HLOOKUP(selYear,$P$2:$R$56,ROW(A3),FALSE)","v":"Migration In United States"},{"$f":"HLOOKUP(selYear,$S$2:$U$56,ROW(B3),FALSE)","v":"Migration In United States"},{"$f":"HLOOKUP(selDest,$Z$2:$AA$56,ROW(A3),FALSE)","v":"Migration In United States"}]
[1,"Alabama",109210,{"$f":"'Migration 2010'!C11","v":4729509},{"$f":"'Migration 2011'!C11","v":4745278},{"$f":"'Migration 2012'!C11","v":4764428},{"$f":"'Migration 2010'!G11","v":620465},{"$f":"'Migration 2011'!G11","v":588293},{"$f":"'Migration 2012'!G11","v":590326},{"$f":"HLOOKUP($B5,'Migration 2010'!$I$9:$BI$62,2,FALSE)","v":99221},{"$f":"HLOOKUP($B5,'Migration 2011'!$I$9:$BI$62,2,FALSE)","v":106806},{"$f":"HLOOKUP($B5,'Migration 2012'!$I$9:$BI$62,2,FALSE)","v":109210},{"$f":"('Migration 2010'!I11)","v":108723},{"$f":"('Migration 2011'!I11)","v":117726},{"$f":"('Migration 2012'!I11)","v":104600},{"$f":"OFFSET('Migration 2010'!$J$11,(ROW(A1)-1),selState-2)","v":108723},{"$f":"OFFSET('Migration 2011'!$J$11,(ROW(A1)-1),selState-2)","v":117726},{"$f":"OFFSET('Migration 2012'!$J$11,(ROW(A1)-1),selState-2)","v":104600},{"$f":"OFFSET('Migration 2010'!$J$11,selState-2,ROW(A1)-1)","v":99221},{"$f":"OFFSET('Migration 2011'!$J$11,selState-2,ROW(A1)-1)","v":106806},{"$f":"OFFSET('Migration 2012'!$J$11,selState-2,ROW(A1)-1)","v":109210},{"$f":"HLOOKUP(selYear,$M$2:$O$56,ROW(B5)-1,FALSE)","v":104600},{"$f":"HLOOKUP(selYear,$J$2:$L$56,ROW(B5)-1,FALSE)","v":109210},590326,109210,104600,109210,109210]
[2,"Alaska",84068,{"$f":"'Migration 2010'!C12","v":702974},{"$f":"'Migration 2011'!C12","v":711962},{"$f":"'Migration 2012'!C12","v":721186},{"$f":"'Migration 2010'!G12","v":95878},{"$f":"'Migration 2011'!G12","v":100280},{"$f":"'Migration 2012'!G12","v":90613},{"$f":"HLOOKUP($B6,'Migration 2010'!$I$9:$BI$62,2,FALSE)","v":94692},{"$f":"HLOOKUP($B6,'Migration 2011'!$I$9:$BI$62,2,FALSE)","v":88850},{"$f":"HLOOKUP($B6,'Migration 2012'!$I$9:$BI$62,2,FALSE)","v":84068},{"$f":"('Migration 2010'!I12)","v":36326},{"$f":"('Migration 2011'!I12)","v":35084},{"$f":"('Migration 2012'!I12)","v":33415},{"$f":"OFFSET('Migration 2010'!$J$11,(ROW(A2)-1),selState-2)","v":36326},{"$f":"OFFSET('Migration 2011'!$J$11,(ROW(A2)-1),selState-2)","v":35084},{"$f":"OFFSET('Migration 2012'!$J$11,(ROW(A2)-1),selState-2)","v":33415},{"$f":"OFFSET('Migration 2010'!$J$11,selState-2,ROW(A2)-1)","v":94692},{"$f":"OFFSET('Migration 2011'!$J$11,selState-2,ROW(A2)-1)","v":88850},{"$f":"OFFSET('Migration 2012'!$J$11,selState-2,ROW(A2)-1)","v":84068},33415,84068,90613,84068,33415,84068,84068]
[3,"Arizona",206842,{"$f":"'Migration 2010'!C13","v":6332786},{"$f":"'Migration 2011'!C13","v":6402301},{"$f":"'Migration 2012'!C13","v":6468907},{"$f":"'Migration 2010'!G13","v":1001991},{"$f":"'Migration 2011'!G13","v":1028366},{"$f":"'Migration 2012'!G13","v":953789},{"$f":"HLOOKUP($B7,'Migration 2010'!$I$9:$BI$62,2,FALSE)","v":176768},{"$f":"HLOOKUP($B7,'Migration 2011'!$I$9:$BI$62,2,FALSE)","v":211816},{"$f":"HLOOKUP($B7,'Migration 2012'!$I$9:$BI$62,2,FALSE)","v":206842},{"$f":"('Migration 2010'!I13)","v":222725},{"$f":"('Migration 2011'!I13)","v":222877},{"$f":"('Migration 2012'!I13)","v":232457},{"$f":"OFFSET('Migration 2010'!$J$11,(ROW(A3)-1),selState-2)","v":222725},{"$f":"OFFSET('Migration 2011'!$J$11,(ROW(A3)-1),selState-2)","v":222877},{"$f":"OFFSET('Migration 2012'!$J$11,(ROW(A3)-1),selState-2)","v":232457},{"$f":"OFFSET('Migration 2010'!$J$11,selState-2,ROW(A3)-1)","v":176768},{"$f":"OFFSET('Migration 2011'!$J$11,selState-2,ROW(A3)-1)","v":211816},{"$f":"OFFSET('Migration 2012'!$J$11,selState-2,ROW(A3)-1)","v":206842},232457,206842,953789,206842,232457,206842,206842]
[4,"Arkansas",64967,{"$f":"'Migration 2010'!C14","v":2888304},{"$f":"'Migration 2011'!C14","v":2906632},{"$f":"'Migration 2012'!C14","v":2912680},{"$f":"'Migration 2010'!G14","v":412997},{"$f":"'Migration 2011'!G14","v":405831},{"$f":"'Migration 2012'!G14","v":373046},{"$f":"HLOOKUP($B8,'Migration 2010'!$I$9:$BI$62,2,FALSE)","v":64264},{"$f":"HLOOKUP($B8,'Migration 2011'!$I$9:$BI$62,2,FALSE)","v":77226},{"$f":"HLOOKUP($B8,'Migration 2012'!$I$9:$BI$62,2,FALSE)","v":64967},{"$f":"('Migration 2010'!I14)","v":79127},{"$f":"('Migration 2011'!I14)","v":69845},{"$f":"('Migration 2012'!I14)","v":76948},{"$f":"OFFSET('Migration 2010'!$J$11,(ROW(A4)-1),selState-2)","v":79127},{"$f":"OFFSET('Migration 2011'!$J$11,(ROW(A4)-1),selState-2)","v":69845},{"$f":"OFFSET('Migration 2012'!$J$11,(ROW(A4)-1),selState-2)","v":76948},{"$f":"OFFSET('Migration 2010'!$J$11,selState-2,ROW(A4)-1)","v":64264},{"$f":"OFFSET('Migration 2011'!$J$11,selState-2,ROW(A4)-1)","v":77226},{"$f":"OFFSET('Migration 2012'!$J$11,selState-2,ROW(A4)-1)","v":64967},76948,64967,373046,64967,76948,64967,64967]
[5,"California",566986,{"$f":"'Migration 2010'!C15","v":36907897},{"$f":"'Migration 2011'!C15","v":37222678},{"$f":"'Migration 2012'!C15","v":37572738},{"$f":"'Migration 2010'!G15","v":5413287},{"$f":"'Migration 2011'!G15","v":5271168},{"$f":"'Migration 2012'!G15","v":5046618},{"$f":"HLOOKUP($B9,'Migration 2010'!$I$9:$BI$62,2,FALSE)","v":573988},{"$f":"HLOOKUP($B9,'Migration 2011'!$I$9:$BI$62,2,FALSE)","v":562343},{"$f":"HLOOKUP($B9,'Migration 2012'!$I$9:$BI$62,2,FALSE)","v":566986},{"$f":"('Migration 2010'!I15)","v":444749},{"$f":"('Migration 2011'!I15)","v":468428},{"$f":"('Migration 2012'!I15)","v":493641},{"$f":"OFFSET('Migration 2010'!$J$11,(ROW(A5)-1),selState-2)","v":444749},{"$f":"OFFSET('Migration 2011'!$J$11,(ROW(A5)-1),selState-2)","v":468428},{"$f":"OFFSET('Migration 2012'!$J$11,(ROW(A5)-1),selState-2)","v":493641},{"$f":"OFFSET('Migration 2010'!$J$11,selState-2,ROW(A5)-1)","v":573988},{"$f":"OFFSET('Migration 2011'!$J$11,selState-2,ROW(A5)-1)","v":562343},{"$f":"OFFSET('Migration 2012'!$J$11,selState-2,ROW(A5)-1)","v":566986},493641,566986,5046618,566986,493641,566986,566986,null,null,null,null,null,null,null,null,null,null,null,null,null,null,null,null,null,null,null,null,null,null,null,null,null,null,null,{"$f":"Migration!Y4:Y56","v":566986}]
[6,"Colorado",161530,{"$f":"'Migration 2010'!C16","v":4988190},{"$f":"'Migration 2011'!C16","v":5048443},{"$f":"'Migration 2012'!C16","v":5123944},{"$f":"'Migration 2010'!G16","v":725413},{"$f":"'Migration 2011'!G16","v":763233},{"$f":"'Migration 2012'!G16","v":751921},{"$f":"HLOOKUP($B10,'Migration 2010'!$I$9:$BI$62,2,FALSE)","v":140620},{"$f":"HLOOKUP($B10,'Migration 2011'!$I$9:$BI$62,2,FALSE)","v":160623},{"$f":"HLOOKUP($B10,'Migration 2012'!$I$9:$BI$62,2,FALSE)","v":161530},{"$f":"('Migration 2010'!I16)","v":186366},{"$f":"('Migration 2011'!I16)","v":202124},{"$f":"('Migration 2012'!I16)","v":205060},{"$f":"OFFSET('Migration 2010'!$J$11,(ROW(A6)-1),selState-2)","v":186366},{"$f":"OFFSET('Migration 2011'!$J$11,(ROW(A6)-1),selState-2)","v":202124},{"$f":"OFFSET('Migration 2012'!$J$11,(ROW(A6)-1),selState-2)","v":205060},{"$f":"OFFSET('Migration 2010'!$J$11,selState-2,ROW(A6)-1)","v":140620},{"$f":"OFFSET('Migration 2011'!$J$11,selState-2,ROW(A6)-1)","v":160623},{"$f":"OFFSET('Migration 2012'!$J$11,selState-2,ROW(A6)-1)","v":161530},205060,161530,751921,161530,205060,161530,161530]
[7,"Connecticut",87023,{"$f":"'Migration 2010'!C17","v":3541146},{"$f":"'Migration 2011'!C17","v":3548667},{"$f":"'Migration 2012'!C17","v":3555319},{"$f":"'Migration 2010'!G17","v":342904},{"$f":"'Migration 2011'!G17","v":316883},{"$f":"'Migration 2012'!G17","v":334918},{"$f":"HLOOKUP($B11,'Migration 2010'!$I$9:$BI$62,2,FALSE)","v":89360},{"$f":"HLOOKUP($B11,'Migration 2011'!$I$9:$BI$62,2,FALSE)","v":91295},{"$f":"HLOOKUP($B11,'Migration 2012'!$I$9:$BI$62,2,FALSE)","v":87023},{"$f":"('Migration 2010'!I17)","v":77333},{"$f":"('Migration 2011'!I17)","v":71502},{"$f":"('Migration 2012'!I17)","v":80311},{"$f":"OFFSET('Migration 2010'!$J$11,(ROW(A7)-1),selState-2)","v":77333},{"$f":"OFFSET('Migration 2011'!$J$11,(ROW(A7)-1),selState-2)","v":71502},{"$f":"OFFSET('Migration 2012'!$J$11,(ROW(A7)-1),selState-2)","v":80311},{"$f":"OFFSET('Migration 2010'!$J$11,selState-2,ROW(A7)-1)","v":89360},{"$f":"OFFSET('Migration 2011'!$J$11,selState-2,ROW(A7)-1)","v":91295},{"$f":"OFFSET('Migration 2012'!$J$11,selState-2,ROW(A7)-1)","v":87023},80311,87023,334918,87023,80311,87023,87023]
[8,"Delaware",25149,{"$f":"'Migration 2010'!C18","v":889812},{"$f":"'Migration 2011'!C18","v":897187},{"$f":"'Migration 2012'!C18","v":906576},{"$f":"'Migration 2010'!G18","v":90001},{"$f":"'Migration 2011'!G18","v":83156},{"$f":"'Migration 2012'!G18","v":86003},{"$f":"HLOOKUP($B12,'Migration 2010'!$I$9:$BI$62,2,FALSE)","v":30055},{"$f":"HLOOKUP($B12,'Migration 2011'!$I$9:$BI$62,2,FALSE)","v":26631},{"$f":"HLOOKUP($B12,'Migration 2012'!$I$9:$BI$62,2,FALSE)","v":25149},{"$f":"('Migration 2010'!I18)","v":30759},{"$f":"('Migration 2011'!I18)","v":33912},{"$f":"('Migration 2012'!I18)","v":34757},{"$f":"OFFSET('Migration 2010'!$J$11,(ROW(A8)-1),selState-2)","v":30759},{"$f":"OFFSET('Migration 2011'!$J$11,(ROW(A8)-1),selState-2)","v":33912},{"$f":"OFFSET('Migration 2012'!$J$11,(ROW(A8)-1),selState-2)","v":34757},{"$f":"OFFSET('Migration 2010'!$J$11,selState-2,ROW(A8)-1)","v":30055},{"$f":"OFFSET('Migration 2011'!$J$11,selState-2,ROW(A8)-1)","v":26631},{"$f":"OFFSET('Migration 2012'!$J$11,selState-2,ROW(A8)-1)","v":25149},34757,25149,86003,25149,34757,25149,25149]
[9,"District of Columbia ",59513,{"$f":"'Migration 2010'!C19","v":596747},{"$f":"'Migration 2011'!C19","v":611608},{"$f":"'Migration 2012'!C19","v":624847},{"$f":"'Migration 2010'!G19","v":63766},{"$f":"'Migration 2011'!G19","v":66519},{"$f":"'Migration 2012'!G19","v":61992},{"$f":"HLOOKUP($B13,'Migration 2010'!$I$9:$BI$62,2,FALSE)","v":56052},{"$f":"HLOOKUP($B13,'Migration 2011'!$I$9:$BI$62,2,FALSE)","v":49732},{"$f":"HLOOKUP($B13,'Migration 2012'!$I$9:$BI$62,2,FALSE)","v":59513},{"$f":"('Migration 2010'!I19)","v":51244},{"$f":"('Migration 2011'!I19)","v":48066},{"$f":"('Migration 2012'!I19)","v":53830},{"$f":"OFFSET('Migration 2010'!$J$11,(ROW(A9)-1),selState-2)","v":51244},{"$f":"OFFSET('Migration 2011'!$J$11,(ROW(A9)-1),selState-2)","v":48066},{"$f":"OFFSET('Migration 2012'!$J$11,(ROW(A9)-1),selState-2)","v":53830},{"$f":"OFFSET('Migration 2010'!$J$11,selState-2,ROW(A9)-1)","v":56052},{"$f":"OFFSET('Migration 2011'!$J$11,selState-2,ROW(A9)-1)","v":49732},{"$f":"OFFSET('Migration 2012'!$J$11,selState-2,ROW(A9)-1)","v":59513},53830,59513,61992,59513,53830,59513,59513]
[10,"Florida",428325,{"$f":"'Migration 2010'!C20","v":18647600},{"$f":"'Migration 2011'!C20","v":18863948},{"$f":"'Migration 2012'!C20","v":19114620},{"$f":"'Migration 2010'!G20","v":2459530},{"$f":"'Migration 2011'!G20","v":2454255},{"$f":"'Migration 2012'!G20","v":2380288},{"$f":"HLOOKUP($B14,'Migration 2010'!$I$9:$BI$62,2,FALSE)","v":427853},{"$f":"HLOOKUP($B14,'Migration 2011'!$I$9:$BI$62,2,FALSE)","v":437202},{"$f":"HLOOKUP($B14,'Migration 2012'!$I$9:$BI$62,2,FALSE)","v":428325},{"$f":"('Migration 2010'!I20)","v":482889},{"$f":"('Migration 2011'!I20)","v":498597},{"$f":"('Migration 2012'!I20)","v":537148},{"$f":"OFFSET('Migration 2010'!$J$11,(ROW(A10)-1),selState-2)","v":482889},{"$f":"OFFSET('Migration 2011'!$J$11,(ROW(A10)-1),selState-2)","v":498597},{"$f":"OFFSET('Migration 2012'!$J$11,(ROW(A10)-1),selState-2)","v":537148},{"$f":"OFFSET('Migration 2010'!$J$11,selState-2,ROW(A10)-1)","v":427853},{"$f":"OFFSET('Migration 2011'!$J$11,selState-2,ROW(A10)-1)","v":437202},{"$f":"OFFSET('Migration 2012'!$J$11,selState-2,ROW(A10)-1)","v":428325},537148,428325,2380288,428325,537148,428325,428325]
[11,"Georgia",252262,{"$f":"'Migration 2010'!C21","v":9587237},{"$f":"'Migration 2011'!C21","v":9699859},{"$f":"'Migration 2012'!C21","v":9796547},{"$f":"'Migration 2010'!G21","v":1278548},{"$f":"'Migration 2011'!G21","v":1289450},{"$f":"'Migration 2012'!G21","v":1236302},{"$f":"HLOOKUP($B15,'Migration 2010'!$I$9:$BI$62,2,FALSE)","v":244992},{"$f":"HLOOKUP($B15,'Migration 2011'!$I$9:$BI$62,2,FALSE)","v":248892},{"$f":"HLOOKUP($B15,'Migration 2012'!$I$9:$BI$62,2,FALSE)","v":252262},{"$f":"('Migration 2010'!I21)","v":249459},{"$f":"('Migration 2011'!I21)","v":271077},{"$f":"('Migration 2012'!I21)","v":277466},{"$f":"OFFSET('Migration 2010'!$J$11,(ROW(A11)-1),selState-2)","v":249459},{"$f":"OFFSET('Migration 2011'!$J$11,(ROW(A11)-1),selState-2)","v":271077},{"$f":"OFFSET('Migration 2012'!$J$11,(ROW(A11)-1),selState-2)","v":277466},{"$f":"OFFSET('Migration 2010'!$J$11,selState-2,ROW(A11)-1)","v":244992},{"$f":"OFFSET('Migration 2011'!$J$11,selState-2,ROW(A11)-1)","v":248892},{"$f":"OFFSET('Migration 2012'!$J$11,selState-2,ROW(A11)-1)","v":252262},277466,252262,1236302,252262,277466,252262,252262]
[12,"Hawaii",61509,{"$f":"'Migration 2010'!C22","v":1346274},{"$f":"'Migration 2011'!C22","v":1357806},{"$f":"'Migration 2012'!C22","v":1374852},{"$f":"'Migration 2010'!G22","v":134315},{"$f":"'Migration 2011'!G22","v":122727},{"$f":"'Migration 2012'!G22","v":134827},{"$f":"HLOOKUP($B16,'Migration 2010'!$I$9:$BI$62,2,FALSE)","v":49218},{"$f":"HLOOKUP($B16,'Migration 2011'!$I$9:$BI$62,2,FALSE)","v":61940},{"$f":"HLOOKUP($B16,'Migration 2012'!$I$9:$BI$62,2,FALSE)","v":61509},{"$f":"('Migration 2010'!I22)","v":53581},{"$f":"('Migration 2011'!I22)","v":57542},{"$f":"('Migration 2012'!I22)","v":55145},{"$f":"OFFSET('Migration 2010'!$J$11,(ROW(A12)-1),selState-2)","v":53581},{"$f":"OFFSET('Migration 2011'!$J$11,(ROW(A12)-1),selState-2)","v":57542},{"$f":"OFFSET('Migration 2012'!$J$11,(ROW(A12)-1),selState-2)","v":55145},{"$f":"OFFSET('Migration 2010'!$J$11,selState-2,ROW(A12)-1)","v":49218},{"$f":"OFFSET('Migration 2011'!$J$11,selState-2,ROW(A12)-1)","v":61940},{"$f":"OFFSET('Migration 2012'!$J$11,selState-2,ROW(A12)-1)","v":61509},55145,61509,134827,61509,55145,61509,61509]
[13,"Idaho",55191,{"$f":"'Migration 2010'!C23","v":1550967},{"$f":"'Migration 2011'!C23","v":1559637},{"$f":"'Migration 2012'!C23","v":1573036},{"$f":"'Migration 2010'!G23","v":209272},{"$f":"'Migration 2011'!G23","v":208434},{"$f":"'Migration 2012'!G23","v":210151},{"$f":"HLOOKUP($B17,'Migration 2010'!$I$9:$BI$62,2,FALSE)","v":53122},{"$f":"HLOOKUP($B17,'Migration 2011'!$I$9:$BI$62,2,FALSE)","v":57831},{"$f":"HLOOKUP($B17,'Migration 2012'!$I$9:$BI$62,2,FALSE)","v":55191},{"$f":"('Migration 2010'!I23)","v":55638},{"$f":"('Migration 2011'!I23)","v":60336},{"$f":"('Migration 2012'!I23)","v":59283},{"$f":"OFFSET('Migration 2010'!$J$11,(ROW(A13)-1),selState-2)","v":55638},{"$f":"OFFSET('Migration 2011'!$J$11,(ROW(A13)-1),selState-2)","v":60336},{"$f":"OFFSET('Migration 2012'!$J$11,(ROW(A13)-1),selState-2)","v":59283},{"$f":"OFFSET('Migration 2010'!$J$11,selState-2,ROW(A13)-1)","v":53122},{"$f":"OFFSET('Migration 2011'!$J$11,selState-2,ROW(A13)-1)","v":57831},{"$f":"OFFSET('Migration 2012'!$J$11,selState-2,ROW(A13)-1)","v":55191},59283,55191,210151,55191,59283,55191,55191]
[14,"Illinois",277953,{"$f":"'Migration 2010'!C24","v":12680126},{"$f":"'Migration 2011'!C24","v":12718402},{"$f":"'Migration 2012'!C24","v":12725119},{"$f":"'Migration 2010'!G24","v":1404525},{"$f":"'Migration 2011'!G24","v":1353853},{"$f":"'Migration 2012'!G24","v":1441191},{"$f":"HLOOKUP($B18,'Migration 2010'!$I$9:$BI$62,2,FALSE)","v":277579},{"$f":"HLOOKUP($B18,'Migration 2011'!$I$9:$BI$62,2,FALSE)","v":269008},{"$f":"HLOOKUP($B18,'Migration 2012'!$I$9:$BI$62,2,FALSE)","v":277953},{"$f":"('Migration 2010'!I24)","v":203959},{"$f":"('Migration 2011'!I24)","v":216204},{"$f":"('Migration 2012'!I24)","v":208755},{"$f":"OFFSET('Migration 2010'!$J$11,(ROW(A14)-1),selState-2)","v":203959},{"$f":"OFFSET('Migration 2011'!$J$11,(ROW(A14)-1),selState-2)","v":216204},{"$f":"OFFSET('Migration 2012'!$J$11,(ROW(A14)-1),selState-2)","v":208755},{"$f":"OFFSET('Migration 2010'!$J$11,selState-2,ROW(A14)-1)","v":277579},{"$f":"OFFSET('Migration 2011'!$J$11,selState-2,ROW(A14)-1)","v":269008},{"$f":"OFFSET('Migration 2012'!$J$11,selState-2,ROW(A14)-1)","v":277953},208755,277953,1441191,277953,208755,277953,277953]
[15,"Indiana",144597,{"$f":"'Migration 2010'!C25","v":6414862},{"$f":"'Migration 2011'!C25","v":6437155},{"$f":"'Migration 2012'!C25","v":6457067},{"$f":"'Migration 2010'!G25","v":833086},{"$f":"'Migration 2011'!G25","v":809158},{"$f":"'Migration 2012'!G25","v":805228},{"$f":"HLOOKUP($B19,'Migration 2010'!$I$9:$BI$62,2,FALSE)","v":130170},{"$f":"HLOOKUP($B19,'Migration 2011'!$I$9:$BI$62,2,FALSE)","v":143228},{"$f":"HLOOKUP($B19,'Migration 2012'!$I$9:$BI$62,2,FALSE)","v":144597},{"$f":"('Migration 2010'!I25)","v":127353},{"$f":"('Migration 2011'!I25)","v":127874},{"$f":"('Migration 2012'!I25)","v":134137},{"$f":"OFFSET('Migration 2010'!$J$11,(ROW(A15)-1),selState-2)","v":127353},{"$f":"OFFSET('Migration 2011'!$J$11,(ROW(A15)-1),selState-2)","v":127874},{"$f":"OFFSET('Migration 2012'!$J$11,(ROW(A15)-1),selState-2)","v":134137},{"$f":"OFFSET('Migration 2010'!$J$11,selState-2,ROW(A15)-1)","v":130170},{"$f":"OFFSET('Migration 2011'!$J$11,selState-2,ROW(A15)-1)","v":143228},{"$f":"OFFSET('Migration 2012'!$J$11,selState-2,ROW(A15)-1)","v":144597},134137,144597,805228,144597,134137,144597,144597]
[16,"Iowa",73325,{"$f":"'Migration 2010'!C26","v":3013053},{"$f":"'Migration 2011'!C26","v":3027718},{"$f":"'Migration 2012'!C26","v":3035469},{"$f":"'Migration 2010'!G26","v":375650},{"$f":"'Migration 2011'!G26","v":370554},{"$f":"'Migration 2012'!G26","v":362938},{"$f":"HLOOKUP($B20,'Migration 2010'!$I$9:$BI$62,2,FALSE)","v":66922},{"$f":"HLOOKUP($B20,'Migration 2011'!$I$9:$BI$62,2,FALSE)","v":74516},{"$f":"HLOOKUP($B20,'Migration 2012'!$I$9:$BI$62,2,FALSE)","v":73325},{"$f":"('Migration 2010'!I26)","v":72557},{"$f":"('Migration 2011'!I26)","v":70405},{"$f":"('Migration 2012'!I26)","v":75760},{"$f":"OFFSET('Migration 2010'!$J$11,(ROW(A16)-1),selState-2)","v":72557},{"$f":"OFFSET('Migration 2011'!$J$11,(ROW(A16)-1),selState-2)","v":70405},{"$f":"OFFSET('Migration 2012'!$J$11,(ROW(A16)-1),selState-2)","v":75760},{"$f":"OFFSET('Migration 2010'!$J$11,selState-2,ROW(A16)-1)","v":66922},{"$f":"OFFSET('Migration 2011'!$J$11,selState-2,ROW(A16)-1)","v":74516},{"$f":"OFFSET('Migration 2012'!$J$11,selState-2,ROW(A16)-1)","v":73325},75760,73325,362938,73325,75760,73325,73325]
[17,"Kansas",93134,{"$f":"'Migration 2010'!C27","v":2820894},{"$f":"'Migration 2011'!C27","v":2833584},{"$f":"'Migration 2012'!C27","v":2848708},{"$f":"'Migration 2010'!G27","v":372161},{"$f":"'Migration 2011'!G27","v":362782},{"$f":"'Migration 2012'!G27","v":381695},{"$f":"HLOOKUP($B21,'Migration 2010'!$I$9:$BI$62,2,FALSE)","v":90681},{"$f":"HLOOKUP($B21,'Migration 2011'!$I$9:$BI$62,2,FALSE)","v":94180},{"$f":"HLOOKUP($B21,'Migration 2012'!$I$9:$BI$62,2,FALSE)","v":93134},{"$f":"('Migration 2010'!I27)","v":95059},{"$f":"('Migration 2011'!I27)","v":83640},{"$f":"('Migration 2012'!I27)","v":88284},{"$f":"OFFSET('Migration 2010'!$J$11,(ROW(A17)-1),selState-2)","v":95059},{"$f":"OFFSET('Migration 2011'!$J$11,(ROW(A17)-1),selState-2)","v":83640},{"$f":"OFFSET('Migration 2012'!$J$11,(ROW(A17)-1),selState-2)","v":88284},{"$f":"OFFSET('Migration 2010'!$J$11,selState-2,ROW(A17)-1)","v":90681},{"$f":"OFFSET('Migration 2011'!$J$11,selState-2,ROW(A17)-1)","v":94180},{"$f":"OFFSET('Migration 2012'!$J$11,selState-2,ROW(A17)-1)","v":93134},88284,93134,381695,93134,88284,93134,93134]
[18,"Kentucky",103004,{"$f":"'Migration 2010'!C28","v":4296639},{"$f":"'Migration 2011'!C28","v":4316297},{"$f":"'Migration 2012'!C28","v":4328626},{"$f":"'Migration 2010'!G28","v":519887},{"$f":"'Migration 2011'!G28","v":505741},{"$f":"'Migration 2012'!G28","v":521511},{"$f":"HLOOKUP($B22,'Migration 2010'!$I$9:$BI$62,2,FALSE)","v":92999},{"$f":"HLOOKUP($B22,'Migration 2011'!$I$9:$BI$62,2,FALSE)","v":99256},{"$f":"HLOOKUP($B22,'Migration 2012'!$I$9:$BI$62,2,FALSE)","v":103004},{"$f":"('Migration 2010'!I28)","v":118443},{"$f":"('Migration 2011'!I28)","v":110031},{"$f":"('Migration 2012'!I28)","v":112787},{"$f":"OFFSET('Migration 2010'!$J$11,(ROW(A18)-1),selState-2)","v":118443},{"$f":"OFFSET('Migration 2011'!$J$11,(ROW(A18)-1),selState-2)","v":110031},{"$f":"OFFSET('Migration 2012'!$J$11,(ROW(A18)-1),selState-2)","v":112787},{"$f":"OFFSET('Migration 2010'!$J$11,selState-2,ROW(A18)-1)","v":92999},{"$f":"OFFSET('Migration 2011'!$J$11,selState-2,ROW(A18)-1)","v":99256},{"$f":"OFFSET('Migration 2012'!$J$11,selState-2,ROW(A18)-1)","v":103004},112787,103004,521511,103004,112787,103004,103004]
[19,"Louisiana",95956,{"$f":"'Migration 2010'!C29","v":4483529},{"$f":"'Migration 2011'!C29","v":4518629},{"$f":"'Migration 2012'!C29","v":4545914},{"$f":"'Migration 2010'!G29","v":547291},{"$f":"'Migration 2011'!G29","v":538691},{"$f":"'Migration 2012'!G29","v":528406},{"$f":"HLOOKUP($B23,'Migration 2010'!$I$9:$BI$62,2,FALSE)","v":88131},{"$f":"HLOOKUP($B23,'Migration 2011'!$I$9:$BI$62,2,FALSE)","v":86593},{"$f":"HLOOKUP($B23,'Migration 2012'!$I$9:$BI$62,2,FALSE)","v":95956},{"$f":"('Migration 2010'!I29)","v":97889},{"$f":"('Migration 2011'!I29)","v":99138},{"$f":"('Migration 2012'!I29)","v":91215},{"$f":"OFFSET('Migration 2010'!$J$11,(ROW(A19)-1),selState-2)","v":97889},{"$f":"OFFSET('Migration 2011'!$J$11,(ROW(A19)-1),selState-2)","v":99138},{"$f":"OFFSET('Migration 2012'!$J$11,(ROW(A19)-1),selState-2)","v":91215},{"$f":"OFFSET('Migration 2010'!$J$11,selState-2,ROW(A19)-1)","v":88131},{"$f":"OFFSET('Migration 2011'!$J$11,selState-2,ROW(A19)-1)","v":86593},{"$f":"OFFSET('Migration 2012'!$J$11,selState-2,ROW(A19)-1)","v":95956},91215,95956,528406,95956,91215,95956,95956]
[20,"Maine",38574,{"$f":"'Migration 2010'!C30","v":1313902},{"$f":"'Migration 2011'!C30","v":1315833},{"$f":"'Migration 2012'!C30","v":1315586},{"$f":"'Migration 2010'!G30","v":146735},{"$f":"'Migration 2011'!G30","v":157102},{"$f":"'Migration 2012'!G30","v":151438},{"$f":"HLOOKUP($B24,'Migration 2010'!$I$9:$BI$62,2,FALSE)","v":32209},{"$f":"HLOOKUP($B24,'Migration 2011'!$I$9:$BI$62,2,FALSE)","v":33729},{"$f":"HLOOKUP($B24,'Migration 2012'!$I$9:$BI$62,2,FALSE)","v":38574},{"$f":"('Migration 2010'!I30)","v":27758},{"$f":"('Migration 2011'!I30)","v":33818},{"$f":"('Migration 2012'!I30)","v":27523},{"$f":"OFFSET('Migration 2010'!$J$11,(ROW(A20)-1),selState-2)","v":27758},{"$f":"OFFSET('Migration 2011'!$J$11,(ROW(A20)-1),selState-2)","v":33818},{"$f":"OFFSET('Migration 2012'!$J$11,(ROW(A20)-1),selState-2)","v":27523},{"$f":"OFFSET('Migration 2010'!$J$11,selState-2,ROW(A20)-1)","v":32209},{"$f":"OFFSET('Migration 2011'!$J$11,selState-2,ROW(A20)-1)","v":33729},{"$f":"OFFSET('Migration 2012'!$J$11,selState-2,ROW(A20)-1)","v":38574},27523,38574,151438,38574,27523,38574,38574]
[21,"Maryland",157664,{"$f":"'Migration 2010'!C31","v":5716785},{"$f":"'Migration 2011'!C31","v":5759087},{"$f":"'Migration 2012'!C31","v":5816472},{"$f":"'Migration 2010'!G31","v":588879},{"$f":"'Migration 2011'!G31","v":553895},{"$f":"'Migration 2012'!G31","v":549973},{"$f":"HLOOKUP($B25,'Migration 2010'!$I$9:$BI$62,2,FALSE)","v":159866},{"$f":"HLOOKUP($B25,'Migration 2011'!$I$9:$BI$62,2,FALSE)","v":165041},{"$f":"HLOOKUP($B25,'Migration 2012'!$I$9:$BI$62,2,FALSE)","v":157664},{"$f":"('Migration 2010'!I31)","v":164484},{"$f":"('Migration 2011'!I31)","v":153979},{"$f":"('Migration 2012'!I31)","v":154983},{"$f":"OFFSET('Migration 2010'!$J$11,(ROW(A21)-1),selState-2)","v":164484},{"$f":"OFFSET('Migration 2011'!$J$11,(ROW(A21)-1),selState-2)","v":153979},{"$f":"OFFSET('Migration 2012'!$J$11,(ROW(A21)-1),selState-2)","v":154983},{"$f":"OFFSET('Migration 2010'!$J$11,selState-2,ROW(A21)-1)","v":159866},{"$f":"OFFSET('Migration 2011'!$J$11,selState-2,ROW(A21)-1)","v":165041},{"$f":"OFFSET('Migration 2012'!$J$11,selState-2,ROW(A21)-1)","v":157664},154983,157664,549973,157664,154983,157664,157664]
[22,"Massachusetts",158156,{"$f":"'Migration 2010'!C32","v":6489250},{"$f":"'Migration 2011'!C32","v":6515057},{"$f":"'Migration 2012'!C32","v":6580641},{"$f":"'Migration 2010'!G32","v":706624},{"$f":"'Migration 2011'!G32","v":656441},{"$f":"'Migration 2012'!G32","v":626380},{"$f":"HLOOKUP($B26,'Migration 2010'!$I$9:$BI$62,2,FALSE)","v":144152},{"$f":"HLOOKUP($B26,'Migration 2011'!$I$9:$BI$62,2,FALSE)","v":145869},{"$f":"HLOOKUP($B26,'Migration 2012'!$I$9:$BI$62,2,FALSE)","v":158156},{"$f":"('Migration 2010'!I32)","v":140162},{"$f":"('Migration 2011'!I32)","v":139830},{"$f":"('Migration 2012'!I32)","v":142577},{"$f":"OFFSET('Migration 2010'!$J$11,(ROW(A22)-1),selState-2)","v":140162},{"$f":"OFFSET('Migration 2011'!$J$11,(ROW(A22)-1),selState-2)","v":139830},{"$f":"OFFSET('Migration 2012'!$J$11,(ROW(A22)-1),selState-2)","v":142577},{"$f":"OFFSET('Migration 2010'!$J$11,selState-2,ROW(A22)-1)","v":144152},{"$f":"OFFSET('Migration 2011'!$J$11,selState-2,ROW(A22)-1)","v":145869},{"$f":"OFFSET('Migration 2012'!$J$11,selState-2,ROW(A22)-1)","v":158156},142577,158156,626380,158156,142577,158156,158156]
[23,"Michigan",175733,{"$f":"'Migration 2010'!C33","v":9762127},{"$f":"'Migration 2011'!C33","v":9766574},{"$f":"'Migration 2012'!C33","v":9778980},{"$f":"'Migration 2010'!G33","v":1291901},{"$f":"'Migration 2011'!G33","v":1242917},{"$f":"'Migration 2012'!G33","v":1268105},{"$f":"HLOOKUP($B27,'Migration 2010'!$I$9:$BI$62,2,FALSE)","v":178207},{"$f":"HLOOKUP($B27,'Migration 2011'!$I$9:$BI$62,2,FALSE)","v":186505},{"$f":"HLOOKUP($B27,'Migration 2012'!$I$9:$BI$62,2,FALSE)","v":175733},{"$f":"('Migration 2010'!I33)","v":116149},{"$f":"('Migration 2011'!I33)","v":139158},{"$f":"('Migration 2012'!I33)","v":133981},{"$f":"OFFSET('Migration 2010'!$J$11,(ROW(A23)-1),selState-2)","v":116149},{"$f":"OFFSET('Migration 2011'!$J$11,(ROW(A23)-1),selState-2)","v":139158},{"$f":"OFFSET('Migration 2012'!$J$11,(ROW(A23)-1),selState-2)","v":133981},{"$f":"OFFSET('Migration 2010'!$J$11,selState-2,ROW(A23)-1)","v":178207},{"$f":"OFFSET('Migration 2011'!$J$11,selState-2,ROW(A23)-1)","v":186505},{"$f":"OFFSET('Migration 2012'!$J$11,selState-2,ROW(A23)-1)","v":175733},133981,175733,1268105,175733,133981,175733,175733]
[24,"Minnesota",115946,{"$f":"'Migration 2010'!C34","v":5244256},{"$f":"'Migration 2011'!C34","v":5277329},{"$f":"'Migration 2012'!C34","v":5315228},{"$f":"'Migration 2010'!G34","v":647946},{"$f":"'Migration 2011'!G34","v":646176},{"$f":"'Migration 2012'!G34","v":653012},{"$f":"HLOOKUP($B28,'Migration 2010'!$I$9:$BI$62,2,FALSE)","v":104765},{"$f":"HLOOKUP($B28,'Migration 2011'!$I$9:$BI$62,2,FALSE)","v":103253},{"$f":"HLOOKUP($B28,'Migration 2012'!$I$9:$BI$62,2,FALSE)","v":115946},{"$f":"('Migration 2010'!I34)","v":89872},{"$f":"('Migration 2011'!I34)","v":101029},{"$f":"('Migration 2012'!I34)","v":101042},{"$f":"OFFSET('Migration 2010'!$J$11,(ROW(A24)-1),selState-2)","v":89872},{"$f":"OFFSET('Migration 2011'!$J$11,(ROW(A24)-1),selState-2)","v":101029},{"$f":"OFFSET('Migration 2012'!$J$11,(ROW(A24)-1),selState-2)","v":101042},{"$f":"OFFSET('Migration 2010'!$J$11,selState-2,ROW(A24)-1)","v":104765},{"$f":"OFFSET('Migration 2011'!$J$11,selState-2,ROW(A24)-1)","v":103253},{"$f":"OFFSET('Migration 2012'!$J$11,selState-2,ROW(A24)-1)","v":115946},101042,115946,653012,115946,101042,115946,115946]
[25,"Mississippi",66947,{"$f":"'Migration 2010'!C35","v":2931228},{"$f":"'Migration 2011'!C35","v":2943021},{"$f":"'Migration 2012'!C35","v":2947696},{"$f":"'Migration 2010'!G35","v":340266},{"$f":"'Migration 2011'!G35","v":332934},{"$f":"'Migration 2012'!G35","v":339807},{"$f":"HLOOKUP($B29,'Migration 2010'!$I$9:$BI$62,2,FALSE)","v":68363},{"$f":"HLOOKUP($B29,'Migration 2011'!$I$9:$BI$62,2,FALSE)","v":68597},{"$f":"HLOOKUP($B29,'Migration 2012'!$I$9:$BI$62,2,FALSE)","v":66947},{"$f":"('Migration 2010'!I35)","v":72321},{"$f":"('Migration 2011'!I35)","v":68511},{"$f":"('Migration 2012'!I35)","v":73500},{"$f":"OFFSET('Migration 2010'!$J$11,(ROW(A25)-1),selState-2)","v":72321},{"$f":"OFFSET('Migration 2011'!$J$11,(ROW(A25)-1),selState-2)","v":68511},{"$f":"OFFSET('Migration 2012'!$J$11,(ROW(A25)-1),selState-2)","v":73500},{"$f":"OFFSET('Migration 2010'!$J$11,selState-2,ROW(A25)-1)","v":68363},{"$f":"OFFSET('Migration 2011'!$J$11,selState-2,ROW(A25)-1)","v":68597},{"$f":"OFFSET('Migration 2012'!$J$11,selState-2,ROW(A25)-1)","v":66947},73500,66947,339807,66947,73500,66947,66947]
[26,"Missouri",142754,{"$f":"'Migration 2010'!C36","v":5920858},{"$f":"'Migration 2011'!C36","v":5937896},{"$f":"'Migration 2012'!C36","v":5951913},{"$f":"'Migration 2010'!G36","v":786726},{"$f":"'Migration 2011'!G36","v":801046},{"$f":"'Migration 2012'!G36","v":801093},{"$f":"HLOOKUP($B30,'Migration 2010'!$I$9:$BI$62,2,FALSE)","v":148055},{"$f":"HLOOKUP($B30,'Migration 2011'!$I$9:$BI$62,2,FALSE)","v":138404},{"$f":"HLOOKUP($B30,'Migration 2012'!$I$9:$BI$62,2,FALSE)","v":142754},{"$f":"('Migration 2010'!I36)","v":145226},{"$f":"('Migration 2011'!I36)","v":149439},{"$f":"('Migration 2012'!I36)","v":162930},{"$f":"OFFSET('Migration 2010'!$J$11,(ROW(A26)-1),selState-2)","v":145226},{"$f":"OFFSET('Migration 2011'!$J$11,(ROW(A26)-1),selState-2)","v":149439},{"$f":"OFFSET('Migration 2012'!$J$11,(ROW(A26)-1),selState-2)","v":162930},{"$f":"OFFSET('Migration 2010'!$J$11,selState-2,ROW(A26)-1)","v":148055},{"$f":"OFFSET('Migration 2011'!$J$11,selState-2,ROW(A26)-1)","v":138404},{"$f":"OFFSET('Migration 2012'!$J$11,selState-2,ROW(A26)-1)","v":142754},162930,142754,801093,142754,162930,142754,142754]
[27,"Montana",33832,{"$f":"'Migration 2010'!C37","v":978507},{"$f":"'Migration 2011'!C37","v":987076},{"$f":"'Migration 2012'!C37","v":995544},{"$f":"'Migration 2010'!G37","v":117752},{"$f":"'Migration 2011'!G37","v":122210},{"$f":"'Migration 2012'!G37","v":126463},{"$f":"HLOOKUP($B31,'Migration 2010'!$I$9:$BI$62,2,FALSE)","v":35870},{"$f":"HLOOKUP($B31,'Migration 2011'!$I$9:$BI$62,2,FALSE)","v":31204},{"$f":"HLOOKUP($B31,'Migration 2012'!$I$9:$BI$62,2,FALSE)","v":33832},{"$f":"('Migration 2010'!I37)","v":35630},{"$f":"('Migration 2011'!I37)","v":33553},{"$f":"('Migration 2012'!I37)","v":37690},{"$f":"OFFSET('Migration 2010'!$J$11,(ROW(A27)-1),selState-2)","v":35630},{"$f":"OFFSET('Migration 2011'!$J$11,(ROW(A27)-1),selState-2)","v":33553},{"$f":"OFFSET('Migration 2012'!$J$11,(ROW(A27)-1),selState-2)","v":37690},{"$f":"OFFSET('Migration 2010'!$J$11,selState-2,ROW(A27)-1)","v":35870},{"$f":"OFFSET('Migration 2011'!$J$11,selState-2,ROW(A27)-1)","v":31204},{"$f":"OFFSET('Migration 2012'!$J$11,selState-2,ROW(A27)-1)","v":33832},37690,33832,126463,33832,37690,33832,33832]
[28,"Nebraska",48816,{"$f":"'Migration 2010'!C38","v":1802697},{"$f":"'Migration 2011'!C38","v":1817126},{"$f":"'Migration 2012'!C38","v":1829420},{"$f":"'Migration 2010'!G38","v":247005},{"$f":"'Migration 2011'!G38","v":253269},{"$f":"'Migration 2012'!G38","v":237937},{"$f":"HLOOKUP($B32,'Migration 2010'!$I$9:$BI$62,2,FALSE)","v":43531},{"$f":"HLOOKUP($B32,'Migration 2011'!$I$9:$BI$62,2,FALSE)","v":52809},{"$f":"HLOOKUP($B32,'Migration 2012'!$I$9:$BI$62,2,FALSE)","v":48816},{"$f":"('Migration 2010'!I38)","v":51290},{"$f":"('Migration 2011'!I38)","v":52070},{"$f":"('Migration 2012'!I38)","v":43266},{"$f":"OFFSET('Migration 2010'!$J$11,(ROW(A28)-1),selState-2)","v":51290},{"$f":"OFFSET('Migration 2011'!$J$11,(ROW(A28)-1),selState-2)","v":52070},{"$f":"OFFSET('Migration 2012'!$J$11,(ROW(A28)-1),selState-2)","v":43266},{"$f":"OFFSET('Migration 2010'!$J$11,selState-2,ROW(A28)-1)","v":43531},{"$f":"OFFSET('Migration 2011'!$J$11,selState-2,ROW(A28)-1)","v":52809},{"$f":"OFFSET('Migration 2012'!$J$11,selState-2,ROW(A28)-1)","v":48816},43266,48816,237937,48816,43266,48816,48816]
[29,"Nevada",98882,{"$f":"'Migration 2010'!C39","v":2667364},{"$f":"'Migration 2011'!C39","v":2688336},{"$f":"'Migration 2012'!C39","v":2725280},{"$f":"'Migration 2010'!G39","v":517261},{"$f":"'Migration 2011'!G39","v":480317},{"$f":"'Migration 2012'!G39","v":481496},{"$f":"HLOOKUP($B33,'Migration 2010'!$I$9:$BI$62,2,FALSE)","v":109409},{"$f":"HLOOKUP($B33,'Migration 2011'!$I$9:$BI$62,2,FALSE)","v":115943},{"$f":"HLOOKUP($B33,'Migration 2012'!$I$9:$BI$62,2,FALSE)","v":98882},{"$f":"('Migration 2010'!I39)","v":102677},{"$f":"('Migration 2011'!I39)","v":110345},{"$f":"('Migration 2012'!I39)","v":124285},{"$f":"OFFSET('Migration 2010'!$J$11,(ROW(A29)-1),selState-2)","v":102677},{"$f":"OFFSET('Migration 2011'!$J$11,(ROW(A29)-1),selState-2)","v":110345},{"$f":"OFFSET('Migration 2012'!$J$11,(ROW(A29)-1),selState-2)","v":124285},{"$f":"OFFSET('Migration 2010'!$J$11,selState-2,ROW(A29)-1)","v":109409},{"$f":"OFFSET('Migration 2011'!$J$11,selState-2,ROW(A29)-1)","v":115943},{"$f":"OFFSET('Migration 2012'!$J$11,selState-2,ROW(A29)-1)","v":98882},124285,98882,481496,98882,124285,98882,98882]
[30,"New Hampshire",38696,{"$f":"'Migration 2010'!C40","v":1303865},{"$f":"'Migration 2011'!C40","v":1305678},{"$f":"'Migration 2012'!C40","v":1309203},{"$f":"'Migration 2010'!G40","v":141213},{"$f":"'Migration 2011'!G40","v":122129},{"$f":"'Migration 2012'!G40","v":125118},{"$f":"HLOOKUP($B34,'Migration 2010'!$I$9:$BI$62,2,FALSE)","v":38399},{"$f":"HLOOKUP($B34,'Migration 2011'!$I$9:$BI$62,2,FALSE)","v":43277},{"$f":"HLOOKUP($B34,'Migration 2012'!$I$9:$BI$62,2,FALSE)","v":38696},{"$f":"('Migration 2010'!I40)","v":39367},{"$f":"('Migration 2011'!I40)","v":37000},{"$f":"('Migration 2012'!I40)","v":50484},{"$f":"OFFSET('Migration 2010'!$J$11,(ROW(A30)-1),selState-2)","v":39367},{"$f":"OFFSET('Migration 2011'!$J$11,(ROW(A30)-1),selState-2)","v":37000},{"$f":"OFFSET('Migration 2012'!$J$11,(ROW(A30)-1),selState-2)","v":50484},{"$f":"OFFSET('Migration 2010'!$J$11,selState-2,ROW(A30)-1)","v":38399},{"$f":"OFFSET('Migration 2011'!$J$11,selState-2,ROW(A30)-1)","v":43277},{"$f":"OFFSET('Migration 2012'!$J$11,selState-2,ROW(A30)-1)","v":38696},50484,38696,125118,38696,50484,38696,38696]
[31,"New Jersey",219202,{"$f":"'Migration 2010'!C41","v":8709933},{"$f":"'Migration 2011'!C41","v":8719952},{"$f":"'Migration 2012'!C41","v":8772744},{"$f":"'Migration 2010'!G41","v":684482},{"$f":"'Migration 2011'!G41","v":693380},{"$f":"'Migration 2012'!G41","v":655465},{"$f":"HLOOKUP($B35,'Migration 2010'!$I$9:$BI$62,2,FALSE)","v":193972},{"$f":"HLOOKUP($B35,'Migration 2011'!$I$9:$BI$62,2,FALSE)","v":216369},{"$f":"HLOOKUP($B35,'Migration 2012'!$I$9:$BI$62,2,FALSE)","v":219202},{"$f":"('Migration 2010'!I41)","v":127369},{"$f":"('Migration 2011'!I41)","v":140194},{"$f":"('Migration 2012'!I41)","v":130223},{"$f":"OFFSET('Migration 2010'!$J$11,(ROW(A31)-1),selState-2)","v":127369},{"$f":"OFFSET('Migration 2011'!$J$11,(ROW(A31)-1),selState-2)","v":140194},{"$f":"OFFSET('Migration 2012'!$J$11,(ROW(A31)-1),selState-2)","v":130223},{"$f":"OFFSET('Migration 2010'!$J$11,selState-2,ROW(A31)-1)","v":193972},{"$f":"OFFSET('Migration 2011'!$J$11,selState-2,ROW(A31)-1)","v":216369},{"$f":"OFFSET('Migration 2012'!$J$11,selState-2,ROW(A31)-1)","v":219202},130223,219202,655465,219202,130223,219202,219202]
[32,"New Mexico",{"$f":"IF(selState=1,HLOOKUP(selWithin,$X$2:$Y$56,ROW(B36)-1,FALSE),AB36)","v":63921},{"$f":"'Migration 2010'!C42","v":2039549},{"$f":"'Migration 2011'!C42","v":2055293},{"$f":"'Migration 2012'!C42","v":2060595},{"$f":"'Migration 2010'!G42","v":220663},{"$f":"'Migration 2011'!G42","v":228218},{"$f":"'Migration 2012'!G42","v":226243},{"$f":"HLOOKUP($B36,'Migration 2010'!$I$9:$BI$62,2,FALSE)","v":50438},{"$f":"HLOOKUP($B36,'Migration 2011'!$I$9:$BI$62,2,FALSE)","v":61431},{"$f":"HLOOKUP($B36,'Migration 2012'!$I$9:$BI$62,2,FALSE)","v":63921},{"$f":"('Migration 2010'!I42)","v":73605},{"$f":"('Migration 2011'!I42)","v":62130},{"$f":"('Migration 2012'!I42)","v":54693},{"$f":"OFFSET('Migration 2010'!$J$11,(ROW(A32)-1),selState-2)","v":73605},{"$f":"OFFSET('Migration 2011'!$J$11,(ROW(A32)-1),selState-2)","v":62130},{"$f":"OFFSET('Migration 2012'!$J$11,(ROW(A32)-1),selState-2)","v":54693},{"$f":"OFFSET('Migration 2010'!$J$11,selState-2,ROW(A32)-1)","v":50438},{"$f":"OFFSET('Migration 2011'!$J$11,selState-2,ROW(A32)-1)","v":61431},{"$f":"OFFSET('Migration 2012'!$J$11,selState-2,ROW(A32)-1)","v":63921},{"$f":"HLOOKUP(selYear,$M$2:$O$56,ROW(B36)-1,FALSE)","v":54693},{"$f":"HLOOKUP(selYear,$J$2:$L$56,ROW(B36)-1,FALSE)","v":63921},{"$f":"HLOOKUP(selYear,$G$2:$I$56,ROW(B36)-1,FALSE)","v":226243},{"$f":"HLOOKUP(selDest,$V$2:$W$56,ROW(B36)-1,FALSE)","v":63921},{"$f":"HLOOKUP(selYear,$P$2:$R$56,ROW(A35),FALSE)","v":54693},{"$f":"HLOOKUP(selYear,$S$2:$U$56,ROW(B35),FALSE)","v":63921},{"$f":"HLOOKUP(selDest,$Z$2:$AA$56,ROW(A35),FALSE)","v":63921}]
[33,"New York",405864,{"$f":"'Migration 2010'!C43","v":19171916},{"$f":"'Migration 2011'!C43","v":19248685},{"$f":"'Migration 2012'!C43","v":19352153},{"$f":"'Migration 2010'!G43","v":1779540},{"$f":"'Migration 2011'!G43","v":1756105},{"$f":"'Migration 2012'!G43","v":1723117},{"$f":"HLOOKUP($B37,'Migration 2010'!$I$9:$BI$62,2,FALSE)","v":363139},{"$f":"HLOOKUP($B37,'Migration 2011'!$I$9:$BI$62,2,FALSE)","v":377800},{"$f":"HLOOKUP($B37,'Migration 2012'!$I$9:$BI$62,2,FALSE)","v":405864},{"$f":"('Migration 2010'!I43)","v":269427},{"$f":"('Migration 2011'!I43)","v":282209},{"$f":"('Migration 2012'!I43)","v":270053},{"$f":"OFFSET('Migration 2010'!$J$11,(ROW(A33)-1),selState-2)","v":269427},{"$f":"OFFSET('Migration 2011'!$J$11,(ROW(A33)-1),selState-2)","v":282209},{"$f":"OFFSET('Migration 2012'!$J$11,(ROW(A33)-1),selState-2)","v":270053},{"$f":"OFFSET('Migration 2010'!$J$11,selState-2,ROW(A33)-1)","v":363139},{"$f":"OFFSET('Migration 2011'!$J$11,selState-2,ROW(A33)-1)","v":377800},{"$f":"OFFSET('Migration 2012'!$J$11,selState-2,ROW(A33)-1)","v":405864},270053,405864,1723117,405864,270053,405864,405864]
[34,"North Carolina",238663,{"$f":"'Migration 2010'!C44","v":9443000},{"$f":"'Migration 2011'!C44","v":9539412},{"$f":"'Migration 2012'!C44","v":9640490},{"$f":"'Migration 2010'!G44","v":1141001},{"$f":"'Migration 2011'!G44","v":1160510},{"$f":"'Migration 2012'!G44","v":1149080},{"$f":"HLOOKUP($B38,'Migration 2010'!$I$9:$BI$62,2,FALSE)","v":207025},{"$f":"HLOOKUP($B38,'Migration 2011'!$I$9:$BI$62,2,FALSE)","v":225147},{"$f":"HLOOKUP($B38,'Migration 2012'!$I$9:$BI$62,2,FALSE)","v":238663},{"$f":"('Migration 2010'!I44)","v":263256},{"$f":"('Migration 2011'!I44)","v":265291},{"$f":"('Migration 2012'!I44)","v":273149},{"$f":"OFFSET('Migration 2010'!$J$11,(ROW(A34)-1),selState-2)","v":263256},{"$f":"OFFSET('Migration 2011'!$J$11,(ROW(A34)-1),selState-2)","v":265291},{"$f":"OFFSET('Migration 2012'!$J$11,(ROW(A34)-1),selState-2)","v":273149},{"$f":"OFFSET('Migration 2010'!$J$11,selState-2,ROW(A34)-1)","v":207025},{"$f":"OFFSET('Migration 2011'!$J$11,selState-2,ROW(A34)-1)","v":225147},{"$f":"OFFSET('Migration 2012'!$J$11,selState-2,ROW(A34)-1)","v":238663},273149,238663,1149080,238663,273149,238663,238663]
[35,"North Dakota",23959,{"$f":"'Migration 2010'!C45","v":665654},{"$f":"'Migration 2011'!C45","v":675161},{"$f":"'Migration 2012'!C45","v":689838},{"$f":"'Migration 2010'!G45","v":75720},{"$f":"'Migration 2011'!G45","v":79837},{"$f":"'Migration 2012'!G45","v":84294},{"$f":"HLOOKUP($B39,'Migration 2010'!$I$9:$BI$62,2,FALSE)","v":24450},{"$f":"HLOOKUP($B39,'Migration 2011'!$I$9:$BI$62,2,FALSE)","v":26563},{"$f":"HLOOKUP($B39,'Migration 2012'!$I$9:$BI$62,2,FALSE)","v":23959},{"$f":"('Migration 2010'!I45)","v":30100},{"$f":"('Migration 2011'!I45)","v":32510},{"$f":"('Migration 2012'!I45)","v":38213},{"$f":"OFFSET('Migration 2010'!$J$11,(ROW(A35)-1),selState-2)","v":30100},{"$f":"OFFSET('Migration 2011'!$J$11,(ROW(A35)-1),selState-2)","v":32510},{"$f":"OFFSET('Migration 2012'!$J$11,(ROW(A35)-1),selState-2)","v":38213},{"$f":"OFFSET('Migration 2010'!$J$11,selState-2,ROW(A35)-1)","v":24450},{"$f":"OFFSET('Migration 2011'!$J$11,selState-2,ROW(A35)-1)","v":26563},{"$f":"OFFSET('Migration 2012'!$J$11,selState-2,ROW(A35)-1)","v":23959},38213,23959,84294,23959,38213,23959,23959]
[36,"Ohio",199202,{"$f":"'Migration 2010'!C46","v":11405101},{"$f":"'Migration 2011'!C46","v":11418944},{"$f":"'Migration 2012'!C46","v":11414635},{"$f":"'Migration 2010'!G46","v":1453401},{"$f":"'Migration 2011'!G46","v":1425709},{"$f":"'Migration 2012'!G46","v":1440815},{"$f":"HLOOKUP($B40,'Migration 2010'!$I$9:$BI$62,2,FALSE)","v":188013},{"$f":"HLOOKUP($B40,'Migration 2011'!$I$9:$BI$62,2,FALSE)","v":206049},{"$f":"HLOOKUP($B40,'Migration 2012'!$I$9:$BI$62,2,FALSE)","v":199202},{"$f":"('Migration 2010'!I46)","v":172633},{"$f":"('Migration 2011'!I46)","v":191778},{"$f":"('Migration 2012'!I46)","v":196391},{"$f":"OFFSET('Migration 2010'!$J$11,(ROW(A36)-1),selState-2)","v":172633},{"$f":"OFFSET('Migration 2011'!$J$11,(ROW(A36)-1),selState-2)","v":191778},{"$f":"OFFSET('Migration 2012'!$J$11,(ROW(A36)-1),selState-2)","v":196391},{"$f":"OFFSET('Migration 2010'!$J$11,selState-2,ROW(A36)-1)","v":188013},{"$f":"OFFSET('Migration 2011'!$J$11,selState-2,ROW(A36)-1)","v":206049},{"$f":"OFFSET('Migration 2012'!$J$11,selState-2,ROW(A36)-1)","v":199202},196391,199202,1440815,199202,196391,199202,199202]
[37,"Oklahoma",102572,{"$f":"'Migration 2010'!C47","v":3716264},{"$f":"'Migration 2011'!C47","v":3742698},{"$f":"'Migration 2012'!C47","v":3762311},{"$f":"'Migration 2010'!G47","v":528824},{"$f":"'Migration 2011'!G47","v":528498},{"$f":"'Migration 2012'!G47","v":531347},{"$f":"HLOOKUP($B41,'Migration 2010'!$I$9:$BI$62,2,FALSE)","v":90616},{"$f":"HLOOKUP($B41,'Migration 2011'!$I$9:$BI$62,2,FALSE)","v":81009},{"$f":"HLOOKUP($B41,'Migration 2012'!$I$9:$BI$62,2,FALSE)","v":102572},{"$f":"('Migration 2010'!I47)","v":106511},{"$f":"('Migration 2011'!I47)","v":108878},{"$f":"('Migration 2012'!I47)","v":108972},{"$f":"OFFSET('Migration 2010'!$J$11,(ROW(A37)-1),selState-2)","v":106511},{"$f":"OFFSET('Migration 2011'!$J$11,(ROW(A37)-1),selState-2)","v":108878},{"$f":"OFFSET('Migration 2012'!$J$11,(ROW(A37)-1),selState-2)","v":108972},{"$f":"OFFSET('Migration 2010'!$J$11,selState-2,ROW(A37)-1)","v":90616},{"$f":"OFFSET('Migration 2011'!$J$11,selState-2,ROW(A37)-1)","v":81009},{"$f":"OFFSET('Migration 2012'!$J$11,selState-2,ROW(A37)-1)","v":102572},108972,102572,531347,102572,108972,102572,102572]
[38,"Oregon",108182,{"$f":"'Migration 2010'!C48","v":3794008},{"$f":"'Migration 2011'!C48","v":3828714},{"$f":"'Migration 2012'!C48","v":3857465},{"$f":"'Migration 2010'!G48","v":545841},{"$f":"'Migration 2011'!G48","v":549332},{"$f":"'Migration 2012'!G48","v":560673},{"$f":"HLOOKUP($B42,'Migration 2010'!$I$9:$BI$62,2,FALSE)","v":100185},{"$f":"HLOOKUP($B42,'Migration 2011'!$I$9:$BI$62,2,FALSE)","v":109795},{"$f":"HLOOKUP($B42,'Migration 2012'!$I$9:$BI$62,2,FALSE)","v":108182},{"$f":"('Migration 2010'!I48)","v":116700},{"$f":"('Migration 2011'!I48)","v":127906},{"$f":"('Migration 2012'!I48)","v":118925},{"$f":"OFFSET('Migration 2010'!$J$11,(ROW(A38)-1),selState-2)","v":116700},{"$f":"OFFSET('Migration 2011'!$J$11,(ROW(A38)-1),selState-2)","v":127906},{"$f":"OFFSET('Migration 2012'!$J$11,(ROW(A38)-1),selState-2)","v":118925},{"$f":"OFFSET('Migration 2010'!$J$11,selState-2,ROW(A38)-1)","v":100185},{"$f":"OFFSET('Migration 2011'!$J$11,selState-2,ROW(A38)-1)","v":109795},{"$f":"OFFSET('Migration 2012'!$J$11,selState-2,ROW(A38)-1)","v":108182},118925,108182,560673,108182,118925,108182,108182]
[39,"Pennsylvania",237156,{"$f":"'Migration 2010'!C49","v":12577555},{"$f":"'Migration 2011'!C49","v":12610486},{"$f":"'Migration 2012'!C49","v":12630082},{"$f":"'Migration 2010'!G49","v":1239199},{"$f":"'Migration 2011'!G49","v":1224564},{"$f":"'Migration 2012'!G49","v":1252378},{"$f":"HLOOKUP($B43,'Migration 2010'!$I$9:$BI$62,2,FALSE)","v":209810},{"$f":"HLOOKUP($B43,'Migration 2011'!$I$9:$BI$62,2,FALSE)","v":215127},{"$f":"HLOOKUP($B43,'Migration 2012'!$I$9:$BI$62,2,FALSE)","v":237156},{"$f":"('Migration 2010'!I49)","v":235580},{"$f":"('Migration 2011'!I49)","v":234291},{"$f":"('Migration 2012'!I49)","v":215500},{"$f":"OFFSET('Migration 2010'!$J$11,(ROW(A39)-1),selState-2)","v":235580},{"$f":"OFFSET('Migration 2011'!$J$11,(ROW(A39)-1),selState-2)","v":234291},{"$f":"OFFSET('Migration 2012'!$J$11,(ROW(A39)-1),selState-2)","v":215500},{"$f":"OFFSET('Migration 2010'!$J$11,selState-2,ROW(A39)-1)","v":209810},{"$f":"OFFSET('Migration 2011'!$J$11,selState-2,ROW(A39)-1)","v":215127},{"$f":"OFFSET('Migration 2012'!$J$11,selState-2,ROW(A39)-1)","v":237156},215500,237156,1252378,237156,215500,237156,237156]
[40,"Rhode Island",30498,{"$f":"'Migration 2010'!C50","v":1042240},{"$f":"'Migration 2011'!C50","v":1040022},{"$f":"'Migration 2012'!C50","v":1040527},{"$f":"'Migration 2010'!G50","v":99603},{"$f":"'Migration 2011'!G50","v":101689},{"$f":"'Migration 2012'!G50","v":101165},{"$f":"HLOOKUP($B44,'Migration 2010'!$I$9:$BI$62,2,FALSE)","v":24948},{"$f":"HLOOKUP($B44,'Migration 2011'!$I$9:$BI$62,2,FALSE)","v":31065},{"$f":"HLOOKUP($B44,'Migration 2012'!$I$9:$BI$62,2,FALSE)","v":30498},{"$f":"('Migration 2010'!I50)","v":32059},{"$f":"('Migration 2011'!I50)","v":26769},{"$f":"('Migration 2012'!I50)","v":33446},{"$f":"OFFSET('Migration 2010'!$J$11,(ROW(A40)-1),selState-2)","v":32059},{"$f":"OFFSET('Migration 2011'!$J$11,(ROW(A40)-1),selState-2)","v":26769},{"$f":"OFFSET('Migration 2012'!$J$11,(ROW(A40)-1),selState-2)","v":33446},{"$f":"OFFSET('Migration 2010'!$J$11,selState-2,ROW(A40)-1)","v":24948},{"$f":"OFFSET('Migration 2011'!$J$11,selState-2,ROW(A40)-1)","v":31065},{"$f":"OFFSET('Migration 2012'!$J$11,selState-2,ROW(A40)-1)","v":30498},33446,30498,101165,30498,33446,30498,30498]
[41,"South Carolina",127418,{"$f":"'Migration 2010'!C51","v":4577399},{"$f":"'Migration 2011'!C51","v":4624180},{"$f":"'Migration 2012'!C51","v":4668886},{"$f":"'Migration 2010'!G51","v":537961},{"$f":"'Migration 2011'!G51","v":546666},{"$f":"'Migration 2012'!G51","v":564350},{"$f":"HLOOKUP($B45,'Migration 2010'!$I$9:$BI$62,2,FALSE)","v":117569},{"$f":"HLOOKUP($B45,'Migration 2011'!$I$9:$BI$62,2,FALSE)","v":121426},{"$f":"HLOOKUP($B45,'Migration 2012'!$I$9:$BI$62,2,FALSE)","v":127418},{"$f":"('Migration 2010'!I51)","v":152441},{"$f":"('Migration 2011'!I51)","v":157644},{"$f":"('Migration 2012'!I51)","v":156705},{"$f":"OFFSET('Migration 2010'!$J$11,(ROW(A41)-1),selState-2)","v":152441},{"$f":"OFFSET('Migration 2011'!$J$11,(ROW(A41)-1),selState-2)","v":157644},{"$f":"OFFSET('Migration 2012'!$J$11,(ROW(A41)-1),selState-2)","v":156705},{"$f":"OFFSET('Migration 2010'!$J$11,selState-2,ROW(A41)-1)","v":117569},{"$f":"OFFSET('Migration 2011'!$J$11,selState-2,ROW(A41)-1)","v":121426},{"$f":"OFFSET('Migration 2012'!$J$11,selState-2,ROW(A41)-1)","v":127418},156705,127418,564350,127418,156705,127418,127418]
[42,"South Dakota",22534,{"$f":"'Migration 2010'!C52","v":805616},{"$f":"'Migration 2011'!C52","v":814175},{"$f":"'Migration 2012'!C52","v":821669},{"$f":"'Migration 2010'!G52","v":96805},{"$f":"'Migration 2011'!G52","v":94655},{"$f":"'Migration 2012'!G52","v":115606},{"$f":"HLOOKUP($B46,'Migration 2010'!$I$9:$BI$62,2,FALSE)","v":27915},{"$f":"HLOOKUP($B46,'Migration 2011'!$I$9:$BI$62,2,FALSE)","v":29383},{"$f":"HLOOKUP($B46,'Migration 2012'!$I$9:$BI$62,2,FALSE)","v":22534},{"$f":"('Migration 2010'!I52)","v":25777},{"$f":"('Migration 2011'!I52)","v":27506},{"$f":"('Migration 2012'!I52)","v":26051},{"$f":"OFFSET('Migration 2010'!$J$11,(ROW(A42)-1),selState-2)","v":25777},{"$f":"OFFSET('Migration 2011'!$J$11,(ROW(A42)-1),selState-2)","v":27506},{"$f":"OFFSET('Migration 2012'!$J$11,(ROW(A42)-1),selState-2)","v":26051},{"$f":"OFFSET('Migration 2010'!$J$11,selState-2,ROW(A42)-1)","v":27915},{"$f":"OFFSET('Migration 2011'!$J$11,selState-2,ROW(A42)-1)","v":29383},{"$f":"OFFSET('Migration 2012'!$J$11,selState-2,ROW(A42)-1)","v":22534},26051,22534,115606,22534,26051,22534,22534]
[43,"Tennessee",163843,{"$f":"'Migration 2010'!C53","v":6282706},{"$f":"'Migration 2011'!C53","v":6333466},{"$f":"'Migration 2012'!C53","v":6378278},{"$f":"'Migration 2010'!G53","v":801355},{"$f":"'Migration 2011'!G53","v":794556},{"$f":"'Migration 2012'!G53","v":783077},{"$f":"HLOOKUP($B47,'Migration 2010'!$I$9:$BI$62,2,FALSE)","v":143135},{"$f":"HLOOKUP($B47,'Migration 2011'!$I$9:$BI$62,2,FALSE)","v":154243},{"$f":"HLOOKUP($B47,'Migration 2012'!$I$9:$BI$62,2,FALSE)","v":163843},{"$f":"('Migration 2010'!I53)","v":159778},{"$f":"('Migration 2011'!I53)","v":170969},{"$f":"('Migration 2012'!I53)","v":177098},{"$f":"OFFSET('Migration 2010'!$J$11,(ROW(A43)-1),selState-2)","v":159778},{"$f":"OFFSET('Migration 2011'!$J$11,(ROW(A43)-1),selState-2)","v":170969},{"$f":"OFFSET('Migration 2012'!$J$11,(ROW(A43)-1),selState-2)","v":177098},{"$f":"OFFSET('Migration 2010'!$J$11,selState-2,ROW(A43)-1)","v":143135},{"$f":"OFFSET('Migration 2011'!$J$11,selState-2,ROW(A43)-1)","v":154243},{"$f":"OFFSET('Migration 2012'!$J$11,selState-2,ROW(A43)-1)","v":163843},177098,163843,783077,163843,177098,163843,163843]
[44,"Texas",402187,{"$f":"'Migration 2010'!C54","v":24899075},{"$f":"'Migration 2011'!C54","v":25327104},{"$f":"'Migration 2012'!C54","v":25711791},{"$f":"'Migration 2010'!G54","v":3740344},{"$f":"'Migration 2011'!G54","v":3648260},{"$f":"'Migration 2012'!G54","v":3656070},{"$f":"HLOOKUP($B48,'Migration 2010'!$I$9:$BI$62,2,FALSE)","v":411641},{"$f":"HLOOKUP($B48,'Migration 2011'!$I$9:$BI$62,2,FALSE)","v":404839},{"$f":"HLOOKUP($B48,'Migration 2012'!$I$9:$BI$62,2,FALSE)","v":402187},{"$f":"('Migration 2010'!I54)","v":486558},{"$f":"('Migration 2011'!I54)","v":514726},{"$f":"('Migration 2012'!I54)","v":507752},{"$f":"OFFSET('Migration 2010'!$J$11,(ROW(A44)-1),selState-2)","v":486558},{"$f":"OFFSET('Migration 2011'!$J$11,(ROW(A44)-1),selState-2)","v":514726},{"$f":"OFFSET('Migration 2012'!$J$11,(ROW(A44)-1),selState-2)","v":507752},{"$f":"OFFSET('Migration 2010'!$J$11,selState-2,ROW(A44)-1)","v":411641},{"$f":"OFFSET('Migration 2011'!$J$11,selState-2,ROW(A44)-1)","v":404839},{"$f":"OFFSET('Migration 2012'!$J$11,selState-2,ROW(A44)-1)","v":402187},507752,402187,3656070,402187,507752,402187,402187]
[45,"Utah",82165,{"$f":"'Migration 2010'!C55","v":2724064},{"$f":"'Migration 2011'!C55","v":2769627},{"$f":"'Migration 2012'!C55","v":2805440},{"$f":"'Migration 2010'!G55","v":388410},{"$f":"'Migration 2011'!G55","v":373984},{"$f":"'Migration 2012'!G55","v":373980},{"$f":"HLOOKUP($B49,'Migration 2010'!$I$9:$BI$62,2,FALSE)","v":75541},{"$f":"HLOOKUP($B49,'Migration 2011'!$I$9:$BI$62,2,FALSE)","v":73211},{"$f":"HLOOKUP($B49,'Migration 2012'!$I$9:$BI$62,2,FALSE)","v":82165},{"$f":"('Migration 2010'!I55)","v":77780},{"$f":"('Migration 2011'!I55)","v":85217},{"$f":"('Migration 2012'!I55)","v":87870},{"$f":"OFFSET('Migration 2010'!$J$11,(ROW(A45)-1),selState-2)","v":77780},{"$f":"OFFSET('Migration 2011'!$J$11,(ROW(A45)-1),selState-2)","v":85217},{"$f":"OFFSET('Migration 2012'!$J$11,(ROW(A45)-1),selState-2)","v":87870},{"$f":"OFFSET('Migration 2010'!$J$11,selState-2,ROW(A45)-1)","v":75541},{"$f":"OFFSET('Migration 2011'!$J$11,selState-2,ROW(A45)-1)","v":73211},{"$f":"OFFSET('Migration 2012'!$J$11,selState-2,ROW(A45)-1)","v":82165},87870,82165,373980,82165,87870,82165,82165]
[46,"Vermont",20056,{"$f":"'Migration 2010'!C56","v":619363},{"$f":"'Migration 2011'!C56","v":621354},{"$f":"'Migration 2012'!C56","v":620224},{"$f":"'Migration 2010'!G56","v":59032},{"$f":"'Migration 2011'!G56","v":60719},{"$f":"'Migration 2012'!G56","v":61242},{"$f":"HLOOKUP($B50,'Migration 2010'!$I$9:$BI$62,2,FALSE)","v":18380},{"$f":"HLOOKUP($B50,'Migration 2011'!$I$9:$BI$62,2,FALSE)","v":18172},{"$f":"HLOOKUP($B50,'Migration 2012'!$I$9:$BI$62,2,FALSE)","v":20056},{"$f":"('Migration 2010'!I56)","v":22529},{"$f":"('Migration 2011'!I56)","v":20463},{"$f":"('Migration 2012'!I56)","v":24431},{"$f":"OFFSET('Migration 2010'!$J$11,(ROW(A46)-1),selState-2)","v":22529},{"$f":"OFFSET('Migration 2011'!$J$11,(ROW(A46)-1),selState-2)","v":20463},{"$f":"OFFSET('Migration 2012'!$J$11,(ROW(A46)-1),selState-2)","v":24431},{"$f":"OFFSET('Migration 2010'!$J$11,selState-2,ROW(A46)-1)","v":18380},{"$f":"OFFSET('Migration 2011'!$J$11,selState-2,ROW(A46)-1)","v":18172},{"$f":"OFFSET('Migration 2012'!$J$11,selState-2,ROW(A46)-1)","v":20056},24431,20056,61242,20056,24431,20056,20056]
[47,"Virginia",238540,{"$f":"'Migration 2010'!C57","v":7930773},{"$f":"'Migration 2011'!C57","v":7996552},{"$f":"'Migration 2012'!C57","v":8085389},{"$f":"'Migration 2010'!G57","v":870491},{"$f":"'Migration 2011'!G57","v":889751},{"$f":"'Migration 2012'!G57","v":915242},{"$f":"HLOOKUP($B51,'Migration 2010'!$I$9:$BI$62,2,FALSE)","v":232002},{"$f":"HLOOKUP($B51,'Migration 2011'!$I$9:$BI$62,2,FALSE)","v":229227},{"$f":"HLOOKUP($B51,'Migration 2012'!$I$9:$BI$62,2,FALSE)","v":238540},{"$f":"('Migration 2010'!I57)","v":259507},{"$f":"('Migration 2011'!I57)","v":257130},{"$f":"('Migration 2012'!I57)","v":250653},{"$f":"OFFSET('Migration 2010'!$J$11,(ROW(A47)-1),selState-2)","v":259507},{"$f":"OFFSET('Migration 2011'!$J$11,(ROW(A47)-1),selState-2)","v":257130},{"$f":"OFFSET('Migration 2012'!$J$11,(ROW(A47)-1),selState-2)","v":250653},{"$f":"OFFSET('Migration 2010'!$J$11,selState-2,ROW(A47)-1)","v":232002},{"$f":"OFFSET('Migration 2011'!$J$11,selState-2,ROW(A47)-1)","v":229227},{"$f":"OFFSET('Migration 2012'!$J$11,selState-2,ROW(A47)-1)","v":238540},250653,238540,915242,238540,250653,238540,238540]
[48,"Washington",180462,{"$f":"'Migration 2010'!C58","v":6661321},{"$f":"'Migration 2011'!C58","v":6748474},{"$f":"'Migration 2012'!C58","v":6815763},{"$f":"'Migration 2010'!G58","v":946923},{"$f":"'Migration 2011'!G58","v":919925},{"$f":"'Migration 2012'!G58","v":904695},{"$f":"HLOOKUP($B52,'Migration 2010'!$I$9:$BI$62,2,FALSE)","v":166162},{"$f":"HLOOKUP($B52,'Migration 2011'!$I$9:$BI$62,2,FALSE)","v":190644},{"$f":"HLOOKUP($B52,'Migration 2012'!$I$9:$BI$62,2,FALSE)","v":180462},{"$f":"('Migration 2010'!I58)","v":191784},{"$f":"('Migration 2011'!I58)","v":208507},{"$f":"('Migration 2012'!I58)","v":215494},{"$f":"OFFSET('Migration 2010'!$J$11,(ROW(A48)-1),selState-2)","v":191784},{"$f":"OFFSET('Migration 2011'!$J$11,(ROW(A48)-1),selState-2)","v":208507},{"$f":"OFFSET('Migration 2012'!$J$11,(ROW(A48)-1),selState-2)","v":215494},{"$f":"OFFSET('Migration 2010'!$J$11,selState-2,ROW(A48)-1)","v":166162},{"$f":"OFFSET('Migration 2011'!$J$11,selState-2,ROW(A48)-1)","v":190644},{"$f":"OFFSET('Migration 2012'!$J$11,selState-2,ROW(A48)-1)","v":180462},215494,180462,904695,180462,215494,180462,180462]
[49,"West Virginia",47425,{"$f":"'Migration 2010'!C59","v":1833535},{"$f":"'Migration 2011'!C59","v":1836614},{"$f":"'Migration 2012'!C59","v":1837518},{"$f":"'Migration 2010'!G59","v":166168},{"$f":"'Migration 2011'!G59","v":172262},{"$f":"'Migration 2012'!G59","v":174112},{"$f":"HLOOKUP($B53,'Migration 2010'!$I$9:$BI$62,2,FALSE)","v":49349},{"$f":"HLOOKUP($B53,'Migration 2011'!$I$9:$BI$62,2,FALSE)","v":45956},{"$f":"HLOOKUP($B53,'Migration 2012'!$I$9:$BI$62,2,FALSE)","v":47425},{"$f":"('Migration 2010'!I59)","v":39609},{"$f":"('Migration 2011'!I59)","v":50068},{"$f":"('Migration 2012'!I59)","v":47125},{"$f":"OFFSET('Migration 2010'!$J$11,(ROW(A49)-1),selState-2)","v":39609},{"$f":"OFFSET('Migration 2011'!$J$11,(ROW(A49)-1),selState-2)","v":50068},{"$f":"OFFSET('Migration 2012'!$J$11,(ROW(A49)-1),selState-2)","v":47125},{"$f":"OFFSET('Migration 2010'!$J$11,selState-2,ROW(A49)-1)","v":49349},{"$f":"OFFSET('Migration 2011'!$J$11,selState-2,ROW(A49)-1)","v":45956},{"$f":"OFFSET('Migration 2012'!$J$11,selState-2,ROW(A49)-1)","v":47425},47125,47425,174112,47425,47125,{"$f":"HLOOKUP(selYear,$S$2:$U$56,ROW(B52),FALSE)","v":47425},{"$f":"HLOOKUP(selDest,$Z$2:$AA$56,ROW(A52),FALSE)","v":47425}]
[50,"Wisconsin",97724,{"$f":"'Migration 2010'!C60","v":5623196},{"$f":"'Migration 2011'!C60","v":5647213},{"$f":"'Migration 2012'!C60","v":5660677},{"$f":"'Migration 2010'!G60","v":691592},{"$f":"'Migration 2011'!G60","v":675623},{"$f":"'Migration 2012'!G60","v":693737},{"$f":"HLOOKUP($B54,'Migration 2010'!$I$9:$BI$62,2,FALSE)","v":111240},{"$f":"HLOOKUP($B54,'Migration 2011'!$I$9:$BI$62,2,FALSE)","v":105370},{"$f":"HLOOKUP($B54,'Migration 2012'!$I$9:$BI$62,2,FALSE)","v":97724},{"$f":"('Migration 2010'!I60)","v":93065},{"$f":"('Migration 2011'!I60)","v":109439},{"$f":"('Migration 2012'!I60)","v":99192},{"$f":"OFFSET('Migration 2010'!$J$11,(ROW(A50)-1),selState-2)","v":93065},{"$f":"OFFSET('Migration 2011'!$J$11,(ROW(A50)-1),selState-2)","v":109439},{"$f":"OFFSET('Migration 2012'!$J$11,(ROW(A50)-1),selState-2)","v":99192},{"$f":"OFFSET('Migration 2010'!$J$11,selState-2,ROW(A50)-1)","v":111240},{"$f":"OFFSET('Migration 2011'!$J$11,selState-2,ROW(A50)-1)","v":105370},{"$f":"OFFSET('Migration 2012'!$J$11,selState-2,ROW(A50)-1)","v":97724},99192,97724,693737,97724,99192,97724,{"$f":"HLOOKUP(selDest,$Z$2:$AA$56,ROW(A53),FALSE)","v":97724}]
[51,"Wyoming",32228,{"$f":"'Migration 2010'!C61","v":556954},{"$f":"'Migration 2011'!C61","v":561389},{"$f":"'Migration 2012'!C61","v":569734},{"$f":"'Migration 2010'!G61","v":82255},{"$f":"'Migration 2011'!G61","v":66648},{"$f":"'Migration 2012'!G61","v":77324},{"$f":"HLOOKUP($B55,'Migration 2010'!$I$9:$BI$62,2,FALSE)","v":28186},{"$f":"HLOOKUP($B55,'Migration 2011'!$I$9:$BI$62,2,FALSE)","v":31991},{"$f":"HLOOKUP($B55,'Migration 2012'!$I$9:$BI$62,2,FALSE)","v":32228},{"$f":"('Migration 2010'!I61)","v":28046},{"$f":"('Migration 2011'!I61)","v":30651},{"$f":"('Migration 2012'!I61)","v":31149},{"$f":"OFFSET('Migration 2010'!$J$11,(ROW(A51)-1),selState-2)","v":28046},{"$f":"OFFSET('Migration 2011'!$J$11,(ROW(A51)-1),selState-2)","v":30651},{"$f":"OFFSET('Migration 2012'!$J$11,(ROW(A51)-1),selState-2)","v":31149},{"$f":"OFFSET('Migration 2010'!$J$11,selState-2,ROW(A51)-1)","v":28186},{"$f":"OFFSET('Migration 2011'!$J$11,selState-2,ROW(A51)-1)","v":31991},{"$f":"OFFSET('Migration 2012'!$J$11,selState-2,ROW(A51)-1)","v":32228},31149,32228,77324,32228,31149,32228,{"$f":"HLOOKUP(selDest,$Z$2:$AA$56,ROW(A54),FALSE)","v":32228}]
[52,"Puerto Rico",74500,{"$f":"'Migration 2010'!C62","v":3676493},{"$f":"'Migration 2011'!C62","v":3669195},{"$f":"'Migration 2012'!C62","v":3628402},{"$f":"'Migration 2010'!G62","v":247593},{"$f":"'Migration 2011'!G62","v":238263},{"$f":"'Migration 2012'!G62","v":238042},{"$f":"HLOOKUP($B56,'Migration 2010'!$I$9:$BI$62,2,FALSE)","v":59885},{"$f":"HLOOKUP($B56,'Migration 2011'!$I$9:$BI$62,2,FALSE)","v":76218},{"$f":"HLOOKUP($B56,'Migration 2012'!$I$9:$BI$62,2,FALSE)","v":74500},{"$f":"('Migration 2010'!I62)","v":31732},{"$f":"('Migration 2011'!I62)","v":22649},{"$f":"('Migration 2012'!I62)","v":20044},{"$f":"OFFSET('Migration 2010'!$J$11,(ROW(A52)-1),selState-2)","v":31732},{"$f":"OFFSET('Migration 2011'!$J$11,(ROW(A52)-1),selState-2)","v":22649},{"$f":"OFFSET('Migration 2012'!$J$11,(ROW(A52)-1),selState-2)","v":20044},{"$f":"OFFSET('Migration 2010'!$J$11,selState-2,ROW(A52)-1)","v":59885},{"$f":"OFFSET('Migration 2011'!$J$11,selState-2,ROW(A52)-1)","v":76218},{"$f":"OFFSET('Migration 2012'!$J$11,selState-2,ROW(A52)-1)","v":74500},20044,74500,238042,74500,20044,74500,{"$f":"HLOOKUP(selDest,$Z$2:$AA$56,ROW(A55),FALSE)","v":74500}]

{"sheet":"Distances","index":7,"n_rows":54,"n_cols":68,"rows_kept":54,"cut":false,"hidden":true,"merged":[]}
[]
[null,{"$f":"IF(selMiles=1,3959,IF(selMiles=2,6371,\"\"))","v":6371},"Alabama","Alaska","Arizona","Arkansas","California","Colorado","Connecticut","Delaware","District of Columbia ","Florida","Georgia","Hawaii","Idaho","Illinois","Indiana","Iowa","Kansas","Kentucky","Louisiana","Maine","Maryland","Massachusetts","Michigan","Minnesota","Mississippi","Missouri","Montana","Nebraska","Nevada","New Hampshire","New Jersey","New Mexico","New York","North Carolina","North Dakota","Ohio","Oklahoma","Oregon","Pennsylvania","Rhode Island","South Carolina","South Dakota","Tennessee","Texas","Utah","Vermont","Virginia","Washington","West Virginia","Wisconsin","Wyoming","Puerto Rico",null,null,"Latitude","Longitude",null,"Full Coordinates","Full Name",null,"State","Abbreviation","Capital",null,"Latitude","Longitude"]
[null,"Alabama",{"$f":"ACOS(COS(RADIANS(90-VLOOKUP($B3,$BD$3:$BF$54,2,FALSE)))*COS(RADIANS(90-VLOOKUP(C$2,$BD$3:$BF$54,2,FALSE)))+SIN(RADIANS(90-VLOOKUP($B3,$BD$3:$BF$54,2,FALSE)))*SIN(RADIANS(90-VLOOKUP(C$2,$BD$3:$BF$54,2,FALSE)))*COS(RADIANS(VLOOKUP($B3,$BD$3:$BF$54,3,FALSE)-VLOOKUP(C$2,$BD$3:$BF$54,3,FALSE))))*$B$2","v":0},4591.1455235330859,2405.8803034834723,618.12229700072089,3226.2364114080619,1867.5292910024314,1593.4294259110197,1229.3275211266823,1110.1479372385711,283.99959157998404,{"$f":"ACOS(COS(RADIANS(90-VLOOKUP($B3,$BD$3:$BF$54,2,FALSE)))*COS(RADIANS(90-VLOOKUP(M$2,$BD$3:$BF$54,2,FALSE)))+SIN(RADIANS(90-VLOOKUP($B3,$BD$3:$BF$54,2,FALSE)))*SIN(RADIANS(90-VLOOKUP(M$2,$BD$3:$BF$54,2,FALSE)))*COS(RADIANS(VLOOKUP($B3,$BD$3:$BF$54,3,FALSE)-VLOOKUP(M$2,$BD$3:$BF$54,3,FALSE))))*$B$2","v":234.98110075312508},7083.2010833871009,2886.1579347142383,882.41962217495961,825.64030838270583,1216.0344270337639,1128.9252934114859,663.53674288742286,508.80965504765231,1952.8005205942188,{"$f":"ACOS(COS(RADIANS(90-VLOOKUP($B3,$BD$3:$BF$54,2,FALSE)))*COS(RADIANS(90-VLOOKUP(W$2,$BD$3:$BF$54,2,FALSE)))+SIN(RADIANS(90-VLOOKUP($B3,$BD$3:$BF$54,2,FALSE)))*SIN(RADIANS(90-VLOOKUP(W$2,$BD$3:$BF$54,2,FALSE)))*COS(RADIANS(VLOOKUP($B3,$BD$3:$BF$54,3,FALSE)-VLOOKUP(W$2,$BD$3:$BF$54,3,FALSE))))*$B$2","v":1149.85235308288},1741.3505861665758,1165.1226890004104,1520.6416997633191,365.25940775518842,874.71481645190352,2700.1151418420445,1319.3767294680031,3097.1401461151731,1766.0658411108218,{"$f":"ACOS(COS(RADIANS(90-VLOOKUP($B3,$BD$3:$BF$54,2,FALSE)))*COS(RADIANS(90-VLOOKUP(AG$2,$BD$3:$BF$54,2,FALSE)))+SIN(RADIANS(90-VLOOKUP($B3,$BD$3:$BF$54,2,FALSE)))*SIN(RADIANS(90-VLOOKUP(AG$2,$BD$3:$BF$54,2,FALSE)))*COS(RADIANS(VLOOKUP($B3,$BD$3:$BF$54,3,FALSE)-VLOOKUP(AG$2,$BD$3:$BF$54,3,FALSE))))*$B$2","v":1352.3978650000347},1846.8364016622813,1588.1698747109153,799.98682163694173,2026.0923303107431,896.4504355767823,1093.8170794999151,3448.9262414159343,1216.5981679570104,1683.6131116421407,{"$f":"ACOS(COS(RADIANS(90-VLOOKUP($B3,$BD$3:$BF$54,2,FALSE)))*COS(RADIANS(90-VLOOKUP(AQ$2,$BD$3:$BF$54,2,FALSE)))+SIN(RADIANS(90-VLOOKUP($B3,$BD$3:$BF$54,2,FALSE)))*SIN(RADIANS(90-VLOOKUP(AQ$2,$BD$3:$BF$54,2,FALSE)))*COS(RADIANS(VLOOKUP($B3,$BD$3:$BF$54,3,FALSE)-VLOOKUP(AQ$2,$BD$3:$BF$54,3,FALSE))))*$B$2","v":521.1173517097983},1809.8790428649763,427.07878139219707,1113.2457424159384,2460.8939767401657,1779.5881730117349,990.57620333645798,3490.3918275073056,789.08645526105477,1223.949126842982,1914.3964476400085,2542.121042438484,null,"Alabama",32.343798999999997,-86.273166023294394,null,"32.343799, -86.2731660232944",{"$f":"CONCATENATE(BM3,\", \",BL3)","v":"Montgomery, AL"},null,"Alabama","AL","Montgomery",null,{"$f":"LEFT(BH3,FIND(\",\",BH3)-1)","v":"32.343799"},{"$f":"RIGHT(BH3,LEN(BH3)-FIND(\",\",BH3)-1)","v":"-86.2731660232944"}]
[null,"Alaska",4591.1455235330859,0,3226.7182187295825,4045.0639596847063,2398.4576583161574,2934.0169718671782,4581.8492244645022,4626.1956402472188,4562.3900831018782,4873.7174213673907,4572.2597385336057,4524.2225480371526,2058.3318278356323,3756.0955455239032,3958.1732096958967,3384.2711809440621,3482.5194599498104,4162.154222782091,4497.1426906149145,4552.4890757826961,4584.3289352297425,4629.8066943900358,3813.4404718674496,3147.8947329459979,4371.0291439954653,3716.4589686325103,1982.2773248711653,3279.1288573711076,2372.1254743785448,4535.9255778229099,4585.827007359344,3265.9794596392917,4450.2364379315713,4726.6770240679152,2570.015214098612,4124.8830426915792,3701.3410369073399,1675.7926613165355,4456.6415599508464,4651.6136166541519,4741.5930104338904,2782.9066382663295,4227.0374747673723,4175.0283162262112,2514.3628481798582,4394.6861305513103,4648.5198891250784,1469.2546847476135,4336.7976302738052,3506.7339039331678,2816.940705281721,7011.2289674877493,null,"Alaska",58.3019496,-134.41973400000001,null,"58.3019496, -134.419734","Juneau, AK",null,"Alaska","AK","Juneau",null,{"$f":"LEFT(BH4,FIND(\",\",BH4)-1)","v":"58.3019496"},{"$f":"RIGHT(BH4,LEN(BH4)-FIND(\",\",BH4)-1)","v":"-134.419734"}]
[null,"Arizona",2405.8803034834723,3226.7182187295825,0,1824.4893058229468,999.87724872382898,942.67108632110876,3556.9156382747556,3313.1265843111983,3186.8424557186304,2635.8412329283365,2556.478183465113,4677.383611056156,1185.7755538156875,2115.6645833747766,2407.8509593697872,1858.0527449936192,1593.7518361893426,2499.0710238634292,1998.1730972952791,3807.5621770904445,3229.6396475049846,3693.663560031544,2605.1227997046049,2066.8348308067334,2044.5300211008387,1874.1160544950551,1461.5868857451485,1588.3817115275583,936.94480488632962,3658.9970123413759,3380.3857950382003,614.37325796181335,3474.7051468136506,3055.9107084072716,1764.634192272393,2677.7873284327211,1351.8837627137561,1585.6978436415998,3198.7108147137369,3662.9797286600356,2860.1917009535873,1578.8159665288058,2322.8695658738629,1397.4289228384446,813.24852348117395,3585.3172155636948,3150.8644305302196,1764.642130703784,2782.3179028062068,2241.4448176849878,1068.3256268323287,4847.3771869547109,null,"Arizona",33.448377200000003,-112.07403739999999,null,"33.4483772, -112.0740374","Phoenix, AZ",null,"Arizona","AZ","Phoenix",null,"33.4483772","-112.0740374"]
[null,"Arkansas",618.12229700072089,4045.0639596847063,1824.4893058229468,0,2611.1182724258447,1251.7888691564256,1875.1578702948671,1565.6659986932239,1435.8800752193888,889.71013614702815,734.29346927069923,6495.6798584468688,2274.0237760503073,608.53657561375496,778.25476366086355,769.67519573425375,565.26464850389311,765.97478239714678,489.34308152265743,2193.6876700923867,1479.7117970785707,2023.6275354735483,1111.9202569967447,1136.7222249200361,326.0463131695173,426.02693319520426,2113.0846720250529,775.07485312865276,2480.4880633734538,2017.8767356004685,1659.8842801024387,1243.2459408391153,1827.2459007694245,1243.6514832102198,1517.8574678683715,1004.307018163926,482.47652045997796,2837.0595257502723,1488.2133154441688,1978.1863783477859,1035.7111312841687,1272.2254720009303,523.67947203149504,713.34507534109025,1843.4739424946281,1987.0714692880372,1367.9897951181492,2886.9394288473968,1031.941230574613,959.41176413570759,1306.6960663669529,3158.0915158947537,null,"Arkansas",34.746480900000002,-92.289594800000003,null,"34.7464809, -92.2895948","Little Rock, AR",null,"Arkansas","AR","Little Rock",null,"34.7464809","-92.2895948"]
[null,"California",3226.2364114080619,2398.4576583161574,999.87724872382898,2611.1182724258447,0,1412.6415907210612,4094.2549190569539,3923.5224800991714,3807.6625036532828,3484.3036538708898,3334.2469731815545,3971.2578863595982,713.38137568792183,2719.8237969103134,3015.3571160026145,2372.8374176978791,2215.006176471501,3155.9902167928085,2888.8664030412669,4274.9596679532779,3847.0426844373292,4213.0425847691486,3112.8653189658007,2434.6590910293116,2885.2743136244712,2522.8873449865946,1177.7512389494691,2117.9116620114978,153.23510285514138,4157.0797411833719,3961.7188383185689,1395.5867564575369,3989.9300934074558,3760.063318073629,1908.7193721704346,3277.9830678030025,2132.4831173477892,733.21274930033337,3782.7416620319823,4196.644517210003,3616.2881651534212,1859.1376935677092,3045.939771171455,2337.6772693790617,844.44997541312352,4055.9981740548833,3807.6490971656749,961.52652596215057,3428.5495782997727,2718.5847196451859,1436.110539877908,5743.1452183051551,null,"California",38.473225900000003,-121.2980707,null,"38.4732259, -121.2980707","Sacramento, CA",null,"California","CA","Sacramento",null,"38.4732259","-121.2980707"]
[null,"Colorado",1867.5292910024314,2934.0169718671782,942.67108632110876,1251.7888691564256,1412.6415907210612,0,2713.5852116526385,2518.9663911199373,2400.5143995374428,2141.4915842473683,1946.7035437171655,5375.1763749098973,1025.5177145136201,1309.5103141428385,1606.4527063357727,980.97841092017029,803.0813455083312,1743.359338454625,1624.432682607156,2928.9096204940965,2440.7044235168023,2840.7660628704448,1735.8958969557705,1133.8915975809487,1558.5268876892223,1111.1664454039239,951.95107317597081,715.17026808049479,1269.421995663846,2794.3272797442082,2564.8199565040732,458.30347802530343,2617.9426127420284,2348.5984599912595,856.15196024224326,1872.086510492579,810.50523031364241,1587.8775150029253,2384.0044406746501,2818.1440163926559,2216.2783785917472,641.10406710239283,1642.3138690723001,1241.2460599715891,596.86387887649266,2706.5812946264768,2395.8587728127422,1653.6085600800641,2016.7781633074453,1350.6588173350065,156.38540711816114,4409.4206025899775,null,"Colorado",39.739153600000002,-104.9847034,null,"39.7391536, -104.9847034","Denver, CO",null,"Colorado","CO","Denver",null,"39.7391536","-104.9847034"]
[null,"Connecticut",1593.4294259110197,4581.8492244645022,3556.9156382747556,1875.1578702948671,4094.2549190569539,2713.5852116526385,0,376.16593332048382,484.30497682421537,1631.0525246645097,1358.7669476016672,8062.5034509093939,3521.5048207071136,1441.6713383616036,1154.4339084307044,1732.6574234274397,1963.5688907781855,1109.8448114508201,2074.28832834388,368.81252986709995,446.88180191777394,150.01130593748195,981.66846664516652,1682.931140242556,1860.7839621146591,1689.0227326583567,3149.5125605903545,1999.8572477386986,3943.2204890630774,186.11308792831738,243.54556439840582,2942.6726066835581,131.83739585389134,841.45455465587418,2292.0020091798219,889.29237761316699,2258.5253966445821,4020.0398222675699,389.4256910748461,106.12319287324556,1130.9690314589275,2254.6290394622256,1365.4499849949868,2576.4577343758601,3249.8446158583406,277.52448619067007,620.96354529919904,3961.5091241124901,850.03036842734468,1375.6819634751616,2662.9510608863498,2667.7709458385907,null,"Connecticut",41.765599000000002,-72.690585007411201,null,"41.765599, -72.6905850074112","Hartford, CT",null,"Connecticut","CT","Hartford",null,"41.765599","-72.6905850074112"]
[null,"Delaware",1229.3275211266823,4626.1956402472188,3313.1265843111983,1565.6659986932239,3923.5224800991714,2518.9663911199373,376.16593332048382,0,129.78939929835451,1255.4056770517509,994.40389149085047,7893.0812149295834,3395.2833306489861,1212.7120794773805,914.83561235840432,1552.2316433154949,1735.4298195273,818.1044282481472,1720.5375016632113,744.90567500002942,85.954312804481788,517.74339661321631,855.73485995726367,1583.4364158175351,1515.9044672249561,1440.8494197444509,3057.8053953585527,1806.3270318857055,3775.4694175149416,560.2456242676551,135.40306186246031,2700.5047085218371,415.86884781823539,465.36167180237931,2211.5304151869859,646.92710669155053,1982.694823418333,3917.9665054753236,169.55651033621385,456.79879682905579,755.3081672560802,2129.8133538955403,1043.9728411128583,2250.3128619056552,3082.474458454104,617.75029909363138,245.29394870089473,3882.0580768410018,537.23006426362042,1238.1681159097991,2487.9267382968742,2476.5886749831557,null,"Delaware",39.158168000000003,-75.524368199999998,null,"39.158168, -75.5243682","Dover, DE",null,"Delaware","DE","Dover",null,"39.158168","-75.5243682"]
[null,"District of Columbia ",1110.1479372385711,4562.3900831018782,3186.8424557186304,1435.8800752193888,3807.6625036532828,2400.5143995374428,484.30497682421537,129.78939929835451,1.3425878504835786E-4,1151.8458508218541,875.25486472369357,7775.5785519488645,3288.8942357347019,1092.0614079297022,794.33640789833578,1439.4217423386924,1612.9622944767741,689.85161294093677,1596.7455792811181,849.07614276280435,43.844450213710267,631.31621846401788,766.27034364265126,1489.9630412797719,1389.4834323335549,1316.1166594103113,2959.9492779500774,1689.761257126049,3660.2843169160433,662.2464671108105,242.25000081796682,2574.7674281594054,498.57817561996205,375.68960598477918,2119.1632834142706,529.82070321964818,1854.1211346930011,3816.2021992454565,152.87192532944371,573.64882626462361,653.32073365017993,2026.8338691064478,914.31964230305107,2121.4361198301917,2968.1512514847282,700.2906387728267,155.65995019623355,3785.6541326359193,408.07231416805394,1138.1664436972871,2373.1362035404204,2505.8121089751808,null,"District of Columbia ",38.893736400000002,-76.987811396374397,null,"38.8937364, -76.9878113963744","District of Columbia, USA",null,null,null,null,null,"38.8937364","-76.9878113963744"]
[null,"Florida",283.99959157998404,4873.7174213673907,2635.8412329283365,889.71013614702815,3484.3036538708898,2141.4915842473683,1631.0525246645097,1255.4056770517509,1151.8458508218541,0,368.31185800189098,7307.7336802131485,3163.1084878647043,1148.9280896426042,1051.3641714507053,1494.9218621133034,1412.4303240642723,864.89264286493187,658.82898641865575,1999.0342475303698,1185.8045045195652,1772.6365512979598,1367.4354557897473,1787.9790462785875,599.47197849246936,1157.4118060844373,2983.3838375957052,1603.3614960433817,3358.3144423057061,1812.8657258581013,1387.7842040406751,2095.8841438892919,1648.8416365729652,792.77561924203337,2307.0035070761401,1065.3728813085943,1354.5331600620993,3726.1102815900072,1281.0572180425586,1710.2796637161211,500.10954273389279,2093.3008241313742,677.28926672776595,1291.1458810626482,2732.1798685371709,1848.5373280787612,1010.1850733581117,3771.1083365936229,912.55551334573011,1476.0653882447539,2193.1734128437574,2269.2012095302985,null,"Florida",30.438083200000001,-84.280933200000007,null,"30.4380832, -84.2809332",{"$f":"CONCATENATE(BM12,\", \",BL12)","v":"Tallahassee, FL"},null,"Florida","FL","Tallahassee",null,"30.4380832","-84.2809332"]
[null,"Georgia",{"$f":"ACOS(COS(RADIANS(90-VLOOKUP($B13,$BD$3:$BF$54,2,FALSE)))*COS(RADIANS(90-VLOOKUP(C$2,$BD$3:$BF$54,2,FALSE)))+SIN(RADIANS(90-VLOOKUP($B13,$BD$3:$BF$54,2,FALSE)))*SIN(RADIANS(90-VLOOKUP(C$2,$BD$3:$BF$54,2,FALSE)))*COS(RADIANS(VLOOKUP($B13,$BD$3:$BF$54,3,FALSE)-VLOOKUP(C$2,$BD$3:$BF$54,3,FALSE))))*$B$2","v":234.98110075312508},4572.2597385336057,2556.478183465113,734.29346927069923,3334.2469731815545,1946.7035437171655,1358.7669476016672,994.40389149085047,875.25486472369357,368.31185800189098,{"$f":"ACOS(COS(RADIANS(90-VLOOKUP($B13,$BD$3:$BF$54,2,FALSE)))*COS(RADIANS(90-VLOOKUP(M$2,$BD$3:$BF$54,2,FALSE)))+SIN(RADIANS(90-VLOOKUP($B13,$BD$3:$BF$54,2,FALSE)))*SIN(RADIANS(90-VLOOKUP(M$2,$BD$3:$BF$54,2,FALSE)))*COS(RADIANS(VLOOKUP($B13,$BD$3:$BF$54,3,FALSE)-VLOOKUP(M$2,$BD$3:$BF$54,3,FALSE))))*$B$2","v":0},7229.8390173573725,2949.0059685745741,819.11460059340709,687.5477819141164,1189.3606200994702,1168.2433924176178,496.92108054551903,734.93292238755248,1719.0387050177171,{"$f":"ACOS(COS(RADIANS(90-VLOOKUP($B13,$BD$3:$BF$54,2,FALSE)))*COS(RADIANS(90-VLOOKUP(W$2,$BD$3:$BF$54,2,FALSE)))+SIN(RADIANS(90-VLOOKUP($B13,$BD$3:$BF$54,2,FALSE)))*SIN(RADIANS(90-VLOOKUP(W$2,$BD$3:$BF$54,2,FALSE)))*COS(RADIANS(VLOOKUP($B13,$BD$3:$BF$54,3,FALSE)-VLOOKUP(W$2,$BD$3:$BF$54,3,FALSE))))*$B$2","v":914.88017643448438},1506.5169763973556,999.15355189119168,1451.405614005482,557.90674811571625,880.54932557467441,2727.5559917925816,1337.5537891222575,3199.822642119419,1532.1800203817193,{"$f":"ACOS(COS(RADIANS(90-VLOOKUP($B13,$BD$3:$BF$54,2,FALSE)))*COS(RADIANS(90-VLOOKUP(AG$2,$BD$3:$BF$54,2,FALSE)))+SIN(RADIANS(90-VLOOKUP($B13,$BD$3:$BF$54,2,FALSE)))*SIN(RADIANS(90-VLOOKUP(AG$2,$BD$3:$BF$54,2,FALSE)))*COS(RADIANS(VLOOKUP($B13,$BD$3:$BF$54,3,FALSE)-VLOOKUP(AG$2,$BD$3:$BF$54,3,FALSE))))*$B$2","v":1117.4996519434044},1977.1643413396725,1355.5735576933253,571.71507746103475,2002.6582274501127,701.81683157720386,1215.8042901133601,3508.9351001218961,983.68008081962353,1448.6573020995158,{"$f":"ACOS(COS(RADIANS(90-VLOOKUP($B13,$BD$3:$BF$54,2,FALSE)))*COS(RADIANS(90-VLOOKUP(AQ$2,$BD$3:$BF$54,2,FALSE)))+SIN(RADIANS(90-VLOOKUP($B13,$BD$3:$BF$54,2,FALSE)))*SIN(RADIANS(90-VLOOKUP(AQ$2,$BD$3:$BF$54,2,FALSE)))*COS(RADIANS(VLOOKUP($B13,$BD$3:$BF$54,3,FALSE)-VLOOKUP(AQ$2,$BD$3:$BF$54,3,FALSE))))*$B$2","v":311.01546382362875},1808.9635631450938,345.24009845474433,1315.9641354425651,2543.5590995215853,1548.5785813343757,756.37313800040283,3534.4300422073993,568.37728427568004,1123.9845221968606,1975.6348222863692,2490.0212222474138,null,"Georgia",33.749098699999998,-84.390184899999994,null,"33.7490987, -84.3901849","Atlanta, GA",null,"Georgia","GA","Atlanta",null,"33.7490987","-84.3901849"]
[null,"Hawaii",7083.2010833871009,4524.2225480371526,4677.383611056156,6495.6798584468688,3971.2578863595982,5375.1763749098973,8062.5034509093939,7893.0812149295834,7775.5785519488645,7307.7336802131485,7229.8390173573725,0,4559.8077972407564,6684.5345339277164,6981.6290633576127,6343.912039732998,6169.9655649286606,7112.2917739050063,6658.4338490046448,8224.840467549051,7815.5612763274985,8177.7028221884466,7082.2517435620321,6389.1422936590216,6721.0718023685849,6475.0459879592599,4976.4454429006801,6086.7609903385464,4120.9917084322224,8117.3903452492268,7932.962522861967,5255.0053038172664,7955.2178716971603,7703.3127734307491,5815.5835890970884,7246.6055269467251,6015.79134330344,4120.689095196969,7753.823923414423,8163.9106154990168,7529.1669199250118,5812.8034408265175,6974.6882214621864,6033.4852732207,4815.0760924845163,8009.6902139723243,7768.1711226074767,4244.0722737510978,7389.6509093349969,6687.3935186269064,5407.2112227144853,9449.3183835458804,null,"Hawaii",21.304546999999999,-157.85567639999999,null,"21.304547, -157.8556764","Honolulu, HI",null,"Hawaii","HI","Honolulu",null,"21.304547","-157.8556764"]
[null,"Idaho",2886.1579347142383,2058.3318278356323,1185.7755538156875,2274.0237760503073,713.38137568792183,1025.5177145136201,3521.5048207071136,3395.2833306489861,3288.8942357347019,3163.1084878647043,2949.0059685745741,4559.8077972407564,0,2235.2675127901407,2517.0391655163917,1857.590730704067,1782.2223501260951,2683.8726679372439,2645.5617372487081,3665.9805498519618,3325.0844920602103,3628.9651367230022,2552.7643624434977,1838.831015750776,2583.8063833687806,2081.9565071357351,465.33111431173126,1635.2819181887737,577.20587657555711,3563.9446284386941,3415.5821824111786,1243.0247952882185,3408.3618159716357,3299.2414683948318,1256.7207160879996,2763.8679238852192,1834.2819723922296,563.0359534851724,3242.7272144413992,3619.9424241844777,3201.3640098357832,1269.0227904221802,2627.998113464465,2202.6864635753514,476.35443449397042,3452.3730855299418,3312.010895329825,646.48184927569446,2938.1998023545148,2160.2302804457318,973.86203725968267,5427.5409828549591,null,"Idaho",43.615046,-116.2044429,null,"43.615046, -116.2044429","Boise, ID",null,"Idaho","ID","Boise",null,"43.615046","-116.2044429"]
[null,"Illinois",882.41962217495961,3756.0955455239032,2115.6645833747766,608.53657561375496,2719.8237969103134,1309.5103141428385,1441.6713383616036,1212.7120794773805,1092.0614079297022,1148.9280896426042,819.11460059340709,6684.5345339277164,2235.2675127901407,0,297.90525745840756,388.6948461997419,524.77798405956526,448.87591173949465,1048.4603792711603,1710.1763774973579,1132.8656689909958,1580.2359312085832,535.93161537868946,639.18889251229621,822.88239451027596,256.85781958423246,1957.4449535191491,605.72743377307995,2573.9789252624428,1551.3928044058468,1268.5175290929615,1501.3057724609755,1363.9467822889728,1064.3046251859816,1189.5639143735623,567.05652048356365,843.59098935199393,2781.1905339845239,1086.5348724451082,1547.7837014760721,1000.0200395498777,1018.0326066800214,476.17249960572337,1289.4989588891324,1885.1637002119651,1491.1751529720475,1088.4857541522115,2779.6713741149547,709.75325574542967,364.8973213408791,1290.7160820545978,3277.6114214896365,null,"Illinois",39.7989763,-89.644368799999995,null,"39.7989763, -89.6443688","Springfield, IL",null,"Illinois","IL","Springfield",null,"39.7989763","-89.6443688"]
[null,"Indiana",825.64030838270583,3958.1732096958967,2407.8509593697872,778.25476366086355,3015.3571160026145,1606.4527063357727,1154.4339084307044,914.83561235840432,794.33640789833578,1051.3641714507053,687.5477819141164,6981.6290633576127,2517.0391655163917,297.90525745840756,0,659.50707829826138,821.36131858482372,206.65817789579523,1130.8592325346383,1440.7327845401951,835.00704362021213,1296.3312145916639,355.89818103650828,810.27925913738318,893.51532036332503,535.09839751936101,2219.086484794027,898.24660870201637,2868.8316178723098,1274.5126160674586,973.05107173185706,1793.6485187931191,1084.746434512683,795.38727815076243,1415.6747602783535,270.31922681153435,1107.8043766611877,3056.8511430910789,791.16020505729841,1260.4502168599158,786.3908219123889,1276.1143762848235,404.60596149016737,1490.2203430040813,2178.3942074162555,1226.2882260907527,796.68171117459565,3044.99094802951,421.20708063382398,455.44964798565945,1583.31523033543,3054.9842940152475,null,"Indiana",39.768379500000002,-86.158044700000005,null,"39.7683795, -86.1580447","Indianapolis, IN",null,"Indiana","IN","Indianapolis",null,"39.7683795","-86.1580447"]
[null,"Iowa",1216.0344270337639,3384.2711809440621,1858.0527449936192,769.67519573425375,2372.8374176978791,980.97841092017029,1732.6574234274397,1552.2316433154949,1439.4217423386924,1494.9218621133034,1189.3606200994702,6343.912039732998,1857.590730704067,388.6948461997419,659.50707829826138,0,332.85684570135226,834.19240679780296,1258.0189372846705,1955.3443680726682,1477.5877669991669,1860.1220416548583,756.14796269930321,375.74570995084605,1065.3528042830546,356.56774963505546,1569.0624309272159,270.9910281284258,2224.0024683269885,1815.5525501003517,1589.2464366432546,1254.5524289508389,1637.5177774492386,1447.9598200446858,814.30115080030544,910.36782228259233,760.82106611767415,2398.2976724535292,1409.9225857061176,1837.1671133429584,1387.5001413494099,629.49957675143855,844.37555983439518,1312.2999747901663,1530.4854296755318,1732.7167484274228,1454.8460118554272,2392.212520233973,1080.7116207679189,384.05290986791942,936.73243147393964,3663.3376780860331,null,"Iowa",41.591064099999997,-93.6037149,null,"41.5910641, -93.6037149","Des Moines, IA",null,"Iowa","IA","Des Moines",null,"41.5910641","-93.6037149"]
[null,"Kansas",1128.9252934114859,3482.5194599498104,1593.7518361893426,565.26464850389311,2215.006176471501,803.0813455083312,1963.5688907781855,1735.4298195273,1612.9622944767741,1412.4303240642723,1168.2433924176178,6169.9655649286606,1782.2223501260951,524.77798405956526,821.36131858482372,332.85684570135226,0,942.73741752892897,1041.1754435054468,2218.5947609109389,1654.4524975914564,2099.9126174964431,1019.6918041644061,689.76640266036816,889.94255202815918,308.08789196784249,1571.2708421474908,212.21189052542891,2072.4695469675389,2066.3284349965152,1793.2895193384252,980.0227209117661,1881.2175559896145,1545.5189033352274,957.20747608923944,1091.3942128047215,429.96753106691676,2341.0386694789099,1611.3052105985385,2069.5768245830259,1421.55617594515,707.06930516908164,846.96141212392683,994.09512734465477,1393.9831933475336,1997.2249259201044,1598.2225065311509,2368.2349754510369,1219.9855931477746,691.61561979298097,811.25206247930146,3655.1805826343689,null,"Kansas",39.049011100000001,-95.677555699999999,null,"39.0490111, -95.6775557","Topeka, KS",null,"Kansas","KS","Topeka",null,"39.0490111","-95.6775557"]
[null,"Kentucky",663.53674288742286,4162.154222782091,2499.0710238634292,765.97478239714678,3155.9902167928085,1743.359338454625,1109.8448114508201,818.1044282481472,689.85161294093677,864.89264286493187,496.92108054551903,7112.2917739050063,2683.8726679372439,448.87591173949465,206.65817789579523,834.19240679780296,942.73741752892897,0,1036.3608572855137,1429.8768308314343,733.22691785560448,1257.9205004329681,504.74740795171095,1014.6693510130258,802.71961212036615,637.46244517015509,2402.5096452090779,1051.4489538826722,3011.9835267925619,1252.458366301978,900.57847433724032,1888.5525504075124,1062.0757904914096,615.45294372008959,1612.7230251632188,253.92190254258495,1164.6439469373788,3229.9975027148776,724.93046428935793,1213.4929045405975,580.43288317389852,1460.489136034734,282.390258310734,1473.1299688549834,2326.8834125664625,1227.4187963852978,656.94157248855595,3226.3666699032069,283.25624861688613,662.00071475079369,1734.2197448393476,2853.1451766304813,null,"Kentucky",38.200905499999998,-84.873283599999993,null,"38.2009055, -84.8732836","Frankfort, KY",null,"Kentucky","KY","Frankfort",null,"38.2009055","-84.8732836"]
[null,"Louisiana",508.80965504765231,4497.1426906149145,1998.1730972952791,489.34308152265743,2888.8664030412669,1624.432682607156,2074.28832834388,1720.5375016632113,1596.7455792811181,658.82898641865575,734.93292238755248,6658.4338490046448,2645.5617372487081,1048.4603792711603,1130.8592325346383,1258.0189372846705,1041.1754435054468,1036.3608572855137,0,2424.6122490372845,1638.2327225783943,2223.8300953738321,1486.2283921538285,1621.2262568240178,237.37561853378045,908.35610348820489,2538.4687850796922,1253.3204146081582,2771.9625893960929,2239.6272667101111,1837.6800911147407,1493.4846457728686,2055.5294257173482,1306.1429813510608,1998.3471686819032,1289.9382905631676,814.6453415704018,3204.3732017954035,1688.87071988618,2168.9833421535145,1029.8855892533866,1745.057630191335,754.11603288726599,632.4248844775293,2188.962766684996,2238.2517248003778,1487.8946544296875,3278.0407448046312,1237.3622585753119,1412.4659085565158,1708.2421331434221,2858.3194037669582,null,"Louisiana",30.450746200000001,-91.154550999999998,null,"30.4507462, -91.154551","Baton Rouge, LA",null,"Louisiana","LA","Baton Rouge",null,"30.4507462","-91.154551"]
[null,"Maine",1952.8005205942188,4552.4890757826961,3807.5621770904445,2193.6876700923867,4274.9596679532779,2928.9096204940965,368.81252986709995,744.90567500002942,849.07614276280435,1999.0342475303698,1719.0387050177171,8224.840467549051,3665.9805498519618,1710.1763774973579,1440.7327845401951,1955.3443680726682,2218.5947609109389,1429.8768308314343,2424.6122490372845,0,813.5012801988205,240.2804608595045,1202.5088939103496,1840.5370249446623,2205.3608560854063,1965.0628516275319,3266.357953249641,2226.2985491710938,4122.2851682123555,187.02406178630619,611.33238511111949,3196.5423415742312,369.98829398598747,1210.2444538829495,2413.8958512819322,1190.7730517089842,2547.0816107876235,4137.2157072973741,737.07711553347633,306.66732227884773,1499.0908637592954,2417.0374848250749,1698.4167258445698,2903.0008121057258,3434.7723334476791,222.62790117301358,989.35540382792021,4057.7926152504319,1189.3528356168549,1578.3883648499045,2861.9165624352377,2896.5954217258181,null,"Maine",44.310532199999997,-69.779329500000003,null,"44.3105322, -69.7793295","Augusta, ME",null,"Maine","ME","Augusta",null,"44.3105322","-69.7793295"]
[null,"Maryland",{"$f":"ACOS(COS(RADIANS(90-VLOOKUP($B23,$BD$3:$BF$54,2,FALSE)))*COS(RADIANS(90-VLOOKUP(C$2,$BD$3:$BF$54,2,FALSE)))+SIN(RADIANS(90-VLOOKUP($B23,$BD$3:$BF$54,2,FALSE)))*SIN(RADIANS(90-VLOOKUP(C$2,$BD$3:$BF$54,2,FALSE)))*COS(RADIANS(VLOOKUP($B23,$BD$3:$BF$54,3,FALSE)-VLOOKUP(C$2,$BD$3:$BF$54,3,FALSE))))*$B$2","v":1149.85235308288},4584.3289352297425,3229.6396475049846,1479.7117970785707,3847.0426844373292,2440.7044235168023,446.88180191777394,85.954312804481788,43.844450213710267,1185.8045045195652,{"$f":"ACOS(COS(RADIANS(90-VLOOKUP($B23,$BD$3:$BF$54,2,FALSE)))*COS(RADIANS(90-VLOOKUP(M$2,$BD$3:$BF$54,2,FALSE)))+SIN(RADIANS(90-VLOOKUP($B23,$BD$3:$BF$54,2,FALSE)))*SIN(RADIANS(90-VLOOKUP(M$2,$BD$3:$BF$54,2,FALSE)))*COS(RADIANS(VLOOKUP($B23,$BD$3:$BF$54,3,FALSE)-VLOOKUP(M$2,$BD$3:$BF$54,3,FALSE))))*$B$2","v":914.88017643448438},7815.5612763274985,3325.0844920602103,1132.8656689909958,835.00704362021213,1477.5877669991669,1654.4524975914564,733.22691785560448,1638.2327225783943,813.5012801988205,{"$f":"ACOS(COS(RADIANS(90-VLOOKUP($B23,$BD$3:$BF$54,2,FALSE)))*COS(RADIANS(90-VLOOKUP(W$2,$BD$3:$BF$54,2,FALSE)))+SIN(RADIANS(90-VLOOKUP($B23,$BD$3:$BF$54,2,FALSE)))*SIN(RADIANS(90-VLOOKUP(W$2,$BD$3:$BF$54,2,FALSE)))*COS(RADIANS(VLOOKUP($B23,$BD$3:$BF$54,3,FALSE)-VLOOKUP(W$2,$BD$3:$BF$54,3,FALSE))))*$B$2","v":0},592.55694506930593,795.79567268015921,1521.4669292394353,1431.9488280372022,1358.3494114901844,2993.2371944570468,1729.2552913868499,3699.4354965126763,627.0917430357996,{"$f":"ACOS(COS(RADIANS(90-VLOOKUP($B23,$BD$3:$BF$54,2,FALSE)))*COS(RADIANS(90-VLOOKUP(AG$2,$BD$3:$BF$54,2,FALSE)))+SIN(RADIANS(90-VLOOKUP($B23,$BD$3:$BF$54,2,FALSE)))*SIN(RADIANS(90-VLOOKUP(AG$2,$BD$3:$BF$54,2,FALSE)))*COS(RADIANS(VLOOKUP($B23,$BD$3:$BF$54,3,FALSE)-VLOOKUP(AG$2,$BD$3:$BF$54,3,FALSE))))*$B$2","v":203.56148998035593},2617.3795237284357,468.81204787756235,402.9998696370983,2150.4673779854083,569.08863780249703,1897.6326527313265,3850.8691869794311,147.09164875042038,533.82181941771034,{"$f":"ACOS(COS(RADIANS(90-VLOOKUP($B23,$BD$3:$BF$54,2,FALSE)))*COS(RADIANS(90-VLOOKUP(AQ$2,$BD$3:$BF$54,2,FALSE)))+SIN(RADIANS(90-VLOOKUP($B23,$BD$3:$BF$54,2,FALSE)))*SIN(RADIANS(90-VLOOKUP(AQ$2,$BD$3:$BF$54,2,FALSE)))*COS(RADIANS(VLOOKUP($B23,$BD$3:$BF$54,3,FALSE)-VLOOKUP(AQ$2,$BD$3:$BF$54,3,FALSE))))*$B$2","v":686.25857636217063},2061.7424520184836,958.07364360915381,2164.8664462628767,3006.986928078652,671.30324341758831,179.99955101529474,3818.5175889228722,451.73269469583403,1171.7737920387819,2412.0932063130431,2494.5445977216737,null,"Maryland",38.9786401,-76.492785999999995,null,"38.9786401, -76.492786","Annapolis, MD",null,"Maryland","MD","Annapolis",null,"38.9786401","-76.492786"]
[null,"Massachusetts",1741.3505861665758,4629.8066943900358,3693.663560031544,2023.6275354735483,4213.0425847691486,2840.7660628704448,150.01130593748195,517.74339661321631,631.31621846401788,1772.6365512979598,1506.5169763973556,8177.7028221884466,3628.9651367230022,1580.2359312085832,1296.3312145916639,1860.1220416548583,2099.9126174964431,1257.9205004329681,2223.8300953738321,240.2804608595045,592.55694506930593,0,1105.1737549552115,1790.7702609940425,2010.7399997546265,1829.7935271385275,3247.7274578792271,2128.9496251643855,4061.4266564438108,101.8847296978867,389.18445096046372,3079.7816431780161,223.29403286912665,980.73369893081042,2390.2432725136855,1033.60812943363,2402.4811085985762,4119.3565909089539,539.31187972236501,66.395973205831794,1272.6791370019789,2365.6876529031906,1515.1004498778407,2725.9144999202263,3369.1326885333219,244.23218490788955,762.95843782161899,4053.9279580567686,999.85212522921597,1496.1300854176147,2785.5477126315686,2700.4752506475324,null,"Massachusetts",42.360482300000001,-71.059567799999996,null,"42.3604823, -71.0595678","Boston, MA",null,"Massachusetts","MA","Boston",null,"42.3604823","-71.0595678"]
[null,"Michigan",1165.1226890004104,3813.4404718674496,2605.1227997046049,1111.9202569967447,3112.8653189658007,1735.8958969557705,981.66846664516652,855.73485995726367,766.27034364265126,1367.4354557897473,999.15355189119168,7082.2517435620321,2552.7643624434977,535.93161537868946,355.89818103650828,756.14796269930321,1019.6918041644061,504.74740795171095,1486.2283921538285,1202.5088939103496,795.79567268015921,1105.1737549552115,0,727.92772809932774,1248.9762457138741,791.08972890579992,2203.5437030045828,1026.3049785219218,2962.0488581217073,1059.4350407083487,863.43937643950721,1994.7858656648125,882.14916012878609,925.3310089677633,1355.8114824401664,334.37151002788858,1377.1711060561574,3066.8815532761414,694.79012660257638,1084.8597345321596,1018.1600812357432,1283.8119041661059,755.07275647198526,1814.7329458747893,2268.4172872813288,980.19569819382684,836.18597987316934,3026.8150606569588,546.31079144062505,395.03662023278088,1681.4790270706753,3212.2098082870161,null,"Michigan",42.7337712,-84.555380499999998,null,"42.7337712, -84.5553805","Lansing, MI",null,"Michigan","MI","Lansing",null,"42.7337712","-84.5553805"]
[null,"Minnesota",1520.6416997633191,3147.8947329459979,2066.8348308067334,1136.7222249200361,2434.6590910293116,1133.8915975809487,1682.931140242556,1583.4364158175351,1489.9630412797719,1787.9790462785875,1451.405614005482,6389.1422936590216,1838.831015750776,639.18889251229621,810.27925913738318,375.74570995084605,689.76640266036816,1014.6693510130258,1621.2262568240178,1840.5370249446623,1521.4669292394353,1790.7702609940425,727.92772809932774,0,1417.2657339263492,712.87572526632937,1476.2645128243526,545.2247936659594,2281.8786044461349,1728.2850429501639,1588.3119527019564,1495.0233153125503,1569.6726540562415,1589.8206992126711,629.22993555113521,995.98208224550478,1118.408470915477,2342.1628325591387,1422.4923361165413,1781.1114602048851,1594.8526158408133,576.82417383592372,1112.9826720697761,1681.9325961954701,1596.6727992143385,1622.4536579093997,1543.539155214854,2298.8954736956084,1200.7401954061168,363.10461775340065,1041.0150582853294,3864.6427069161978,null,"Minnesota",44.950403700000003,-93.101502600000003,null,"44.9504037, -93.1015026","Saint Paul, MN",null,"Minnesota","MN","Saint Paul",null,"44.9504037","-93.1015026"]
[null,"Mississippi",365.25940775518842,4371.0291439954653,2044.5300211008387,326.0463131695173,2885.2743136244712,1558.5268876892223,1860.7839621146591,1515.9044672249561,1389.4834323335549,599.47197849246936,557.90674811571625,6721.0718023685849,2583.8063833687806,822.88239451027596,893.51532036332503,1065.3528042830546,889.94255202815918,802.71961212036615,237.37561853378045,2205.3608560854063,1431.9488280372022,2010.7399997546265,1248.9762457138741,1417.2657339263492,0,709.37240307252853,2436.5704047100139,1098.0622759527289,2760.2227984591909,2021.7160651787062,1628.002095339632,1496.5560145485456,1835.5044244634553,1124.4042298250185,1837.5887480206859,1056.627792111643,758.97666215894014,3146.390859479679,1472.7799304673031,1957.912334338035,867.07558145150495,1596.0854319334512,520.40565281969475,758.08526671709353,2142.9476112445846,2014.3780053398727,1290.7251170281754,3203.3995037667728,1016.0175931301736,1187.779537448728,1623.1118715400994,2862.9937759915315,null,"Mississippi",32.410405500000003,-90.162093605421703,null,"32.4104055, -90.1620936054217","Jackson, MS",null,"Mississippi","MS","Jackson",null,"32.4104055","-90.1620936054217"]
[null,"Missouri",874.71481645190352,3716.4589686325103,1874.1160544950551,426.02693319520426,2522.8873449865946,1111.1664454039239,1689.0227326583567,1440.8494197444509,1316.1166594103113,1157.4118060844373,880.54932557467441,6475.0459879592599,2081.9565071357351,256.85781958423246,535.09839751936101,356.56774963505546,308.08789196784249,637.46244517015509,908.35610348820489,1965.0628516275319,1358.3494114901844,1829.7935271385275,791.08972890579992,712.87572526632937,709.37240307252853,9.4935297966003418E-5,1847.0069659194482,457.05262047326005,2380.5372671868818,1804.0966195962519,1506.3625314590588,1260.4235207278875,1615.6208259124107,1237.4420553415271,1153.0560135006772,804.13857447724877,586.80903833573154,2637.954053252497,1324.8187623896622,1795.1008572735946,1119.4194797568405,936.61373691743404,547.33738039428465,1054.8848610332934,1701.3606348910387,1746.7667112811309,1294.229309018981,2655.9284632215849,917.49919701088743,552.41733408794244,1115.335836218034,3370.4076486117469,null,"Missouri",38.576702599999997,-92.173516500000005,null,"38.5767026, -92.1735165","Jefferson City, MO",null,"Missouri","MO","Jefferson City",null,"38.5767026","-92.1735165"]
[null,"Montana",2700.1151418420445,1982.2773248711653,1461.5868857451485,2113.0846720250529,1177.7512389494691,951.95107317597081,3149.5125605903545,3057.8053953585527,2959.9492779500774,2983.3838375957052,2727.5559917925816,4976.4454429006801,465.33111431173126,1957.4449535191491,2219.086484794027,1569.0624309272159,1571.2708421474908,2402.5096452090779,2538.4687850796922,3266.357953249641,2993.2371944570468,3247.7274578792271,2203.5437030045828,1476.2645128243526,2436.5704047100139,1847.0069659194482,{"$error":"#NUM!"},1390.061580779595,1037.7689652556901,3176.574012580636,3064.4706086942947,1314.7766094572073,3030.8509899622231,3013.6573077185267,857.69347423675151,2447.4468813447479,1730.1244223665346,871.83527295806766,2898.3336717513403,3244.1808480469253,2951.8673000409281,943.00332562506355,2390.6674723581941,2193.1894318489467,648.60062000780601,3058.1204631957144,3000.1382258327299,826.85716144999424,2636.8541883445178,1821.7943264965943,837.30815356558571,5217.2167271439712,null,"Montana",46.592712200000001,-112.036109,null,"46.5927122, -112.036109","Helena, MT",null,"Montana","MT","Helena",null,"46.5927122","-112.036109"]
[null,"Nebraska",1319.3767294680031,3279.1288573711076,1588.3817115275583,775.07485312865276,2117.9116620114978,715.17026808049479,1999.8572477386986,1806.3270318857055,1689.761257126049,1603.3614960433817,1337.5537891222575,6086.7609903385464,1635.2819181887737,605.72743377307995,898.24660870201637,270.9910281284258,212.21189052542891,1051.4489538826722,1253.3204146081582,2226.2985491710938,1729.2552913868499,2128.9496251643855,1026.3049785219218,545.2247936659594,1098.0622759527289,457.05262047326005,1390.061580779595,0,1970.8407701824981,2085.6990350616775,1849.8505554736478,988.37805618434231,1906.6911097619895,1665.7623917121834,745.02872710340364,1160.1666827797133,597.25499930226363,2187.1082304911529,1669.2526360041693,2104.7684076869614,1570.9669353793445,498.25596826071916,1002.8079490658084,1174.7780600154749,1280.211129653507,2003.6723163726645,1693.5321620673878,2199.8616261698085,1315.221269819283,653.11704996144647,685.28833775607302,3827.4600117540249,null,"Nebraska",40.800055399999998,-96.667400499999999,null,"40.8000554, -96.6674005","Lincoln, NE",null,"Nebraska","NE","Lincoln",null,"40.8000554","-96.6674005"]
[null,"Nevada",3097.1401461151731,2372.1254743785448,936.94480488632962,2480.4880633734538,153.23510285514138,1269.421995663846,3943.2204890630774,3775.4694175149416,3660.2843169160433,3358.3144423057061,3199.822642119419,4120.9917084322224,577.20587657555711,2573.9789252624428,2868.8316178723098,2224.0024683269885,2072.4695469675389,3011.9835267925619,2771.9625893960929,4122.2851682123555,3699.4354965126763,4061.4266564438108,2962.0488581217073,2281.8786044461349,2760.2227984591909,2380.5372671868818,1037.7689652556901,1970.8407701824981,0,4005.0081090178096,3812.3464434382399,1279.4140859250176,3838.3717675858825,3617.9786582358424,1756.1389869840684,3130.4922797720565,2004.3957984096462,696.34327908508794,3633.6994262987864,4045.4218328128559,3478.9375478694074,1706.1651196316595,2907.1958996807234,2234.6095130673143,694.08777221457967,3903.47193357475,3662.2677904884645,911.72996376684375,3283.2422136399523,2567.5504568109745,1287.554823818861,5621.4065469481238,null,"Nevada",39.163798399999997,-119.76740340000001,null,"39.1637984, -119.7674034","Carson City, NV",null,"Nevada","NV","Carson City",null,"39.1637984","-119.7674034"]
[null,"New Hampshire",1766.0658411108218,4535.9255778229099,3658.9970123413759,2017.8767356004685,4157.0797411833719,2794.3272797442082,186.11308792831738,560.2456242676551,662.2464671108105,1812.8657258581013,1532.1800203817193,8117.3903452492268,3563.9446284386941,1551.3928044058468,1274.5126160674586,1815.5525501003517,2066.3284349965152,1252.458366301978,2239.6272667101111,187.02406178630619,627.0917430357996,101.8847296978867,1059.4350407083487,1728.2850429501639,2021.7160651787062,1804.0966195962519,3176.574012580636,2085.6990350616775,4005.0081090178096,0,425.78819219618867,3046.1270472265023,190.85819639795071,1025.46569175181,2319.9355284616881,1018.3763331824121,2382.3122412283983,4048.4091957905962,551.10301857074001,154.13197537700739,1313.1058146466803,2304.6322122298143,1517.5999877828381,2725.0241813994321,3314.1487325031421,143.75775187171277,803.82915993895801,3978.7755500980279,1006.1117272859071,1445.3378537753463,2734.2958018263662,2800.6282167870268,null,"New Hampshire",43.207106000000003,-71.537021600000003,null,"43.207106, -71.5370216","Concord, NH",null,"New Hampshire","NH","Concord",null,"43.207106","-71.5370216"]
[null,"New Jersey",{"$f":"ACOS(COS(RADIANS(90-VLOOKUP($B33,$BD$3:$BF$54,2,FALSE)))*COS(RADIANS(90-VLOOKUP(C$2,$BD$3:$BF$54,2,FALSE)))+SIN(RADIANS(90-VLOOKUP($B33,$BD$3:$BF$54,2,FALSE)))*SIN(RADIANS(90-VLOOKUP(C$2,$BD$3:$BF$54,2,FALSE)))*COS(RADIANS(VLOOKUP($B33,$BD$3:$BF$54,3,FALSE)-VLOOKUP(C$2,$BD$3:$BF$54,3,FALSE))))*$B$2","v":1352.3978650000347},4585.827007359344,3380.3857950382003,1659.8842801024387,3961.7188383185689,2564.8199565040732,243.54556439840582,135.40306186246031,242.25000081796682,1387.7842040406751,{"$f":"ACOS(COS(RADIANS(90-VLOOKUP($B33,$BD$3:$BF$54,2,FALSE)))*COS(RADIANS(90-VLOOKUP(M$2,$BD$3:$BF$54,2,FALSE)))+SIN(RADIANS(90-VLOOKUP($B33,$BD$3:$BF$54,2,FALSE)))*SIN(RADIANS(90-VLOOKUP(M$2,$BD$3:$BF$54,2,FALSE)))*COS(RADIANS(VLOOKUP($B33,$BD$3:$BF$54,3,FALSE)-VLOOKUP(M$2,$BD$3:$BF$54,3,FALSE))))*$B$2","v":1117.4996519434044},7932.962522861967,3415.5821824111786,1268.5175290929615,973.05107173185706,1589.2464366432546,1793.2895193384252,900.57847433724032,1837.6800911147407,611.33238511111949,{"$f":"ACOS(COS(RADIANS(90-VLOOKUP($B33,$BD$3:$BF$54,2,FALSE)))*COS(RADIANS(90-VLOOKUP(W$2,$BD$3:$BF$54,2,FALSE)))+SIN(RADIANS(90-VLOOKUP($B33,$BD$3:$BF$54,2,FALSE)))*SIN(RADIANS(90-VLOOKUP(W$2,$BD$3:$BF$54,2,FALSE)))*COS(RADIANS(VLOOKUP($B33,$BD$3:$BF$54,3,FALSE)-VLOOKUP(W$2,$BD$3:$BF$54,3,FALSE))))*$B$2","v":203.56148998035593},389.18445096046372,863.43937643950721,1588.3119527019564,1628.002095339632,1506.3625314590588,3064.4706086942947,1849.8505554736478,3812.3464434382399,425.78819219618867,{"$f":"ACOS(COS(RADIANS(90-VLOOKUP($B33,$BD$3:$BF$54,2,FALSE)))*COS(RADIANS(90-VLOOKUP(AG$2,$BD$3:$BF$54,2,FALSE)))+SIN(RADIANS(90-VLOOKUP($B33,$BD$3:$BF$54,2,FALSE)))*SIN(RADIANS(90-VLOOKUP(AG$2,$BD$3:$BF$54,2,FALSE)))*COS(RADIANS(VLOOKUP($B33,$BD$3:$BF$54,3,FALSE)-VLOOKUP(AG$2,$BD$3:$BF$54,3,FALSE))))*$B$2","v":9.4935297966003418E-5},2766.3895208326339,282.90866405982302,599.78934121668397,2211.9472700981737,702.79074856441378,2062.0845160355934,3929.7343946595774,181.98562994041052,331.59008834467801,{"$f":"ACOS(COS(RADIANS(90-VLOOKUP($B33,$BD$3:$BF$54,2,FALSE)))*COS(RADIANS(90-VLOOKUP(AQ$2,$BD$3:$BF$54,2,FALSE)))+SIN(RADIANS(90-VLOOKUP($B33,$BD$3:$BF$54,2,FALSE)))*SIN(RADIANS(90-VLOOKUP(AQ$2,$BD$3:$BF$54,2,FALSE)))*COS(RADIANS(VLOOKUP($B33,$BD$3:$BF$54,3,FALSE)-VLOOKUP(AQ$2,$BD$3:$BF$54,3,FALSE))))*$B$2","v":887.77820435371189},2146.9134533914712,1142.8260470454377,2353.4879383536645,3118.3496265653948,483.62721370503021,378.09009493555067,3885.3197028957056,628.1515350913885,1255.5217874701789,2525.7989686609462,2559.1357145732327,null,"New Jersey",40.217057500000003,-74.7429463,null,"40.2170575, -74.7429463","Trenton, NJ",null,"New Jersey","NJ","Trenton",null,"40.2170575","-74.7429463"]
[null,"New Mexico",1846.8364016622813,3265.9794596392917,614.37325796181335,1243.2459408391153,1395.5867564575369,458.30347802530343,2942.6726066835581,2700.5047085218371,2574.7674281594054,2095.8841438892919,1977.1643413396725,5255.0053038172664,1243.0247952882185,1501.3057724609755,1793.6485187931191,1254.5524289508389,980.0227209117661,1888.5525504075124,1493.4846457728686,3196.5423415742312,2617.3795237284357,3079.7816431780161,1994.7858656648125,1495.0233153125503,1496.5560145485456,1260.4235207278875,1314.7766094572073,988.37805618434231,1279.4140859250176,3046.1270472265023,2766.3895208326339,0,2861.2392277200274,2455.9800890138254,1308.7985065578259,2063.6859228581002,761.43407270418152,1771.5595736273931,2584.6431770190579,3048.7504072303564,2274.25306157145,1075.4998517826086,1723.5736826298335,972.41189030476949,766.89735750229522,2974.6092037776816,2542.6480070947823,1888.8117419357211,2171.6027990245402,1638.5845891691256,614.09508972386857,4348.2082840641642,null,"New Mexico",35.6869996,-105.9377997,null,"35.6869996, -105.9377997","Santa Fe, NM",null,"New Mexico","NM","Santa Fe",null,"35.6869996","-105.9377997"]
[null,"New York",1588.1698747109153,4450.2364379315713,3474.7051468136506,1827.2459007694245,3989.9300934074558,2617.9426127420284,131.83739585389134,415.86884781823539,498.57817561996205,1648.8416365729652,1355.5735576933253,7955.2178716971603,3408.3618159716357,1363.9467822889728,1084.746434512683,1637.5177774492386,1881.2175559896145,1062.0757904914096,2055.5294257173482,369.98829398598747,468.81204787756235,223.29403286912665,882.14916012878609,1569.6726540562415,1835.5044244634553,1615.6208259124107,3030.8509899622231,1906.6911097619895,3838.3717675858825,190.85819639795071,282.90866405982302,2861.2392277200274,0,871.81082511895181,2173.1588809267823,827.57765787370056,2192.5006886023202,3902.0801758742746,371.97537461853375,213.61924506723247,1151.5563637764185,2143.8343731145983,1328.755344000549,2534.9469092298577,3145.9520789240028,202.65033987976514,648.78850924150208,3840.1608956725499,819.49035919309097,1272.8360745964064,2562.2629221701313,2787.0888136462509,null,"New York",42.651167399999999,-73.754968000000005,null,"42.6511674, -73.754968","Albany, NY",null,"New York","NY","Albany",null,"42.6511674","-73.754968"]
[null,"North Carolina",799.98682163694173,4726.6770240679152,3055.9107084072716,1243.6514832102198,3760.063318073629,2348.5984599912595,841.45455465587418,465.36167180237931,375.68960598477918,792.77561924203337,571.71507746103475,7703.3127734307491,3299.2414683948318,1064.3046251859816,795.38727815076243,1447.9598200446858,1545.5189033352274,615.45294372008959,1306.1429813510608,1210.2444538829495,402.9998696370983,980.73369893081042,925.3310089677633,1589.8206992126711,1124.4042298250185,1237.4420553415271,3013.6573077185267,1665.7623917121834,3617.9786582358424,1025.46569175181,599.78934121668397,2455.9800890138254,871.81082511895181,0,2207.3997436860568,602.15349916484797,1704.2234590039179,3845.2137484760756,521.87620064957719,917.85240004991044,294.78079189832482,2070.6979469384287,733.11745886207484,1879.694483437205,2936.9625598452972,1074.2644464285099,223.07904049544285,3838.8851124855664,390.13696701052282,1226.8065580788277,2346.3631738804384,2288.8529643790121,null,"North Carolina",35.780401500000004,-78.639077900000004,null,"35.7804015, -78.6390779","Raleigh, NC",null,"North Carolina","NC","Raleigh",null,"35.7804015","-78.6390779"]
[null,"North Dakota",2026.0923303107431,2570.015214098612,1764.634192272393,1517.8574678683715,1908.7193721704346,856.15196024224326,2292.0020091798219,2211.5304151869859,2119.1632834142706,2307.0035070761401,2002.6582274501127,5815.5835890970884,1256.7207160879996,1189.5639143735623,1415.6747602783535,814.30115080030544,957.20747608923944,1612.7230251632188,1998.3471686819032,2413.8958512819322,2150.4673779854083,2390.2432725136855,1355.8114824401664,629.22993555113521,1837.5887480206859,1153.0560135006772,857.69347423675151,745.02872710340364,1756.1389869840684,2319.9355284616881,2211.9472700981737,1308.7985065578259,2173.1588809267823,2207.3997436860568,0,1621.0362607982872,1289.655473490639,1729.1195607320908,2049.2248491742916,2386.49004362908,2185.3388884522501,273.39755844725238,1657.4255821918555,1857.381413894956,1115.0400903950756,2203.2877091667724,2171.1115420583824,1673.4845641414697,1821.1926597311679,987.40000999363099,707.99559973730675,4463.7340175863574,null,"North Dakota",46.808326800000003,-100.7837392,null,"46.8083268, -100.7837392","Bismarck, ND",null,"North Dakota","ND","Bismarck",null,"46.8083268","-100.7837392"]
[null,"Ohio",896.4504355767823,4124.8830426915792,2677.7873284327211,1004.307018163926,3277.9830678030025,1872.086510492579,889.29237761316699,646.92710669155053,529.82070321964818,1065.3728813085943,701.81683157720386,7246.6055269467251,2763.8679238852192,567.05652048356365,270.31922681153435,910.36782228259233,1091.3942128047215,253.92190254258495,1289.9382905631676,1190.7730517089842,569.08863780249703,1033.60812943363,334.37151002788858,995.98208224550478,1056.627792111643,804.13857447724877,2447.4468813447479,1160.1666827797133,3130.4922797720565,1018.3763331824121,702.79074856441378,2063.6859228581002,827.57765787370056,602.15349916484797,1621.0362607982872,0,1369.2479176809982,3296.4617656833702,520.96372159628083,994.95020365753271,685.45311180370106,1508.0946830202133,536.24931607444796,1716.2246954555894,2438.3453615868625,982.7661101488801,552.69660953333209,3274.2855576802326,214.53901176629975,633.90629902920307,1843.316457401633,2890.6485976355698,null,"Ohio",39.962260100000002,-83.000706500000007,null,"39.9622601, -83.0007065","Columbus, OH",null,"Ohio","OH","Columbus",null,"39.9622601","-83.0007065"]
[null,"Oklahoma",1093.8170794999151,3701.3410369073399,1351.8837627137561,482.47652045997796,2132.4831173477892,810.50523031364241,2258.5253966445821,1982.694823418333,1854.1211346930011,1354.5331600620993,1215.8042901133601,6015.79134330344,1834.2819723922296,843.59098935199393,1107.8043766611877,760.82106611767415,429.96753106691676,1164.6439469373788,814.6453415704018,2547.0816107876235,1897.6326527313265,2402.4811085985762,1377.1711060561574,1118.408470915477,758.97666215894014,586.80903833573154,1730.1244223665346,597.25499930226363,2004.3957984096462,2382.3122412283983,2062.0845160355934,761.43407270418152,2192.5006886023202,1704.2234590039179,1289.655473490639,1369.2479176809982,0,2395.1519493790315,1883.0939024759227,2364.1038237779467,1513.4411300591098,1018.2171815525795,971.4432601502657,578.54776910231305,1385.7558631493366,2330.3318646168395,1806.3972397890957,2463.8486402403396,1446.256539188671,1096.7806921785277,895.54805939057019,3621.7092711383248,null,"Oklahoma",35.4707419,-97.519880599999993,null,"35.4707419, -97.5198806","Oklahoma City, OK",null,"Oklahoma","OK","Oklahoma City",null,"35.4707419","-97.5198806"]
[null,"Oregon",3448.9262414159343,1675.7926613165355,1585.6978436415998,2837.0595257502723,733.21274930033337,1587.8775150029253,4020.0398222675699,3917.9665054753236,3816.2021992454565,3726.1102815900072,3508.9351001218961,4120.689095196969,563.0359534851724,2781.1905339845239,3056.8511430910789,2398.2976724535292,2341.0386694789099,3229.9975027148776,3204.3732017954035,4137.2157072973741,3850.8691869794311,4119.3565909089539,3066.8815532761414,2342.1628325591387,3146.390859479679,2637.954053252497,871.83527295806766,2187.1082304911529,696.34327908508794,4048.4091957905962,3929.7343946595774,1771.5595736273931,3902.0801758742746,3845.2137484760756,1729.1195607320908,3296.4617656833702,2395.1519493790315,0,3761.0275002410394,4115.286491388315,3756.9333196438338,1789.4373899807294,3184.9561381617591,2741.7690085483719,1019.017366129043,3929.7084171413794,3847.7356704906533,234.02413245009186,3477.7026875650604,2679.8066993018933,1535.5235080195753,5989.9219271912007,null,"Oregon",44.939156500000003,-123.03312099999999,null,"44.9391565, -123.033121","Salem, OR",null,"Oregon","OR","Salem",null,"44.9391565","-123.033121"]
[null,"Pennsylvania",1216.5981679570104,4456.6415599508464,3198.7108147137369,1488.2133154441688,3782.7416620319823,2384.0044406746501,389.4256910748461,169.55651033621385,152.87192532944371,1281.0572180425586,983.68008081962353,7753.823923414423,3242.7272144413992,1086.5348724451082,791.16020505729841,1409.9225857061176,1611.3052105985385,724.93046428935793,1688.87071988618,737.07711553347633,147.09164875042038,539.31187972236501,694.79012660257638,1422.4923361165413,1472.7799304673031,1324.8187623896622,2898.3336717513403,1669.2526360041693,3633.6994262987864,551.10301857074001,181.98562994041052,2584.6431770190579,371.97537461853375,521.87620064957719,2049.2248491742916,520.96372159628083,1883.0939024759227,3761.0275002410394,0,490.48094370215887,787.56873747367365,1975.081178686507,976.19325741607429,2187.4009587697865,2939.8674739532153,568.19130200948541,307.00239737344896,3721.3219072940133,460.6195489357396,1082.8063556477227,2346.6512332750785,2637.7299236644812,null,"Pennsylvania",40.266310699999998,-76.886112199999999,null,"40.2663107, -76.8861122","Harrisburg, PA",null,"Pennsylvania","PA","Harrisburg",null,"40.2663107","-76.8861122"]
[null,"Rhode Island",1683.6131116421407,4651.6136166541519,3662.9797286600356,1978.1863783477859,4196.644517210003,2818.1440163926559,106.12319287324556,456.79879682905579,573.64882626462361,1710.2796637161211,1448.6573020995158,8163.9106154990168,3619.9424241844777,1547.7837014760721,1260.4502168599158,1837.1671133429584,2069.5768245830259,1213.4929045405975,2168.9833421535145,306.66732227884773,533.82181941771034,66.395973205831794,1084.8597345321596,1781.1114602048851,1957.912334338035,1795.1008572735946,3244.1808480469253,2104.7684076869614,4045.4218328128559,154.13197537700739,331.59008834467801,3048.7504072303564,213.61924506723247,917.85240004991044,2386.49004362908,994.95020365753271,2364.1038237779467,4115.286491388315,490.48094370215887,0,1210.5813506685763,2354.2031580156427,1466.4194406372953,2677.7330634120644,3352.3257703425793,286.86779573607282,701.51560922798933,4053.7798845382549,950.63789444220379,1478.1638396674111,2766.3384943563242,2648.2475984651546,null,"Rhode Island",41.823989099999999,-71.4128343,null,"41.8239891, -71.4128343","Providence, RI",null,"Rhode Island","RI","Providence",null,"41.8239891","-71.4128343"]
[null,"South Carolina",{"$f":"ACOS(COS(RADIANS(90-VLOOKUP($B43,$BD$3:$BF$54,2,FALSE)))*COS(RADIANS(90-VLOOKUP(C$2,$BD$3:$BF$54,2,FALSE)))+SIN(RADIANS(90-VLOOKUP($B43,$BD$3:$BF$54,2,FALSE)))*SIN(RADIANS(90-VLOOKUP(C$2,$BD$3:$BF$54,2,FALSE)))*COS(RADIANS(VLOOKUP($B43,$BD$3:$BF$54,3,FALSE)-VLOOKUP(C$2,$BD$3:$BF$54,3,FALSE))))*$B$2","v":521.1173517097983},4741.5930104338904,2860.1917009535873,1035.7111312841687,3616.2881651534212,2216.2783785917472,1130.9690314589275,755.3081672560802,653.32073365017993,500.10954273389279,{"$f":"ACOS(COS(RADIANS(90-VLOOKUP($B43,$BD$3:$BF$54,2,FALSE)))*COS(RADIANS(90-VLOOKUP(M$2,$BD$3:$BF$54,2,FALSE)))+SIN(RADIANS(90-VLOOKUP($B43,$BD$3:$BF$54,2,FALSE)))*SIN(RADIANS(90-VLOOKUP(M$2,$BD$3:$BF$54,2,FALSE)))*COS(RADIANS(VLOOKUP($B43,$BD$3:$BF$54,3,FALSE)-VLOOKUP(M$2,$BD$3:$BF$54,3,FALSE))))*$B$2","v":311.01546382362875},7529.1669199250118,3201.3640098357832,1000.0200395498777,786.3908219123889,1387.5001413494099,1421.55617594515,580.43288317389852,1029.8855892533866,1499.0908637592954,{"$f":"ACOS(COS(RADIANS(90-VLOOKUP($B43,$BD$3:$BF$54,2,FALSE)))*COS(RADIANS(90-VLOOKUP(W$2,$BD$3:$BF$54,2,FALSE)))+SIN(RADIANS(90-VLOOKUP($B43,$BD$3:$BF$54,2,FALSE)))*SIN(RADIANS(90-VLOOKUP(W$2,$BD$3:$BF$54,2,FALSE)))*COS(RADIANS(VLOOKUP($B43,$BD$3:$BF$54,3,FALSE)-VLOOKUP(W$2,$BD$3:$BF$54,3,FALSE))))*$B$2","v":686.25857636217063},1272.6791370019789,1018.1600812357432,1594.8526158408133,867.07558145150495,1119.4194797568405,2951.8673000409281,1570.9669353793445,3478.9375478694074,1313.1058146466803,{"$f":"ACOS(COS(RADIANS(90-VLOOKUP($B43,$BD$3:$BF$54,2,FALSE)))*COS(RADIANS(90-VLOOKUP(AG$2,$BD$3:$BF$54,2,FALSE)))+SIN(RADIANS(90-VLOOKUP($B43,$BD$3:$BF$54,2,FALSE)))*SIN(RADIANS(90-VLOOKUP(AG$2,$BD$3:$BF$54,2,FALSE)))*COS(RADIANS(VLOOKUP($B43,$BD$3:$BF$54,3,FALSE)-VLOOKUP(AG$2,$BD$3:$BF$54,3,FALSE))))*$B$2","v":887.77820435371189},2274.25306157145,1151.5563637764185,294.78079189832482,2185.3388884522501,685.45311180370106,1513.4411300591098,3756.9333196438338,787.56873747367365,1210.5813506685763,{"$f":"ACOS(COS(RADIANS(90-VLOOKUP($B43,$BD$3:$BF$54,2,FALSE)))*COS(RADIANS(90-VLOOKUP(AQ$2,$BD$3:$BF$54,2,FALSE)))+SIN(RADIANS(90-VLOOKUP($B43,$BD$3:$BF$54,2,FALSE)))*SIN(RADIANS(90-VLOOKUP(AQ$2,$BD$3:$BF$54,2,FALSE)))*COS(RADIANS(VLOOKUP($B43,$BD$3:$BF$54,3,FALSE)-VLOOKUP(AQ$2,$BD$3:$BF$54,3,FALSE))))*$B$2","v":9.4935297966003418E-5},2016.7955438561935,574.78265322414768,1624.9030291014255,2811.9768685050021,1352.46637932564,510.07553143424963,3769.1616214513197,486.59696495936754,1241.6927454614718,2232.7528212139428,2278.5525536525533,null,"South Carolina",34.000710400000003,-81.034814400000002,null,"34.0007104, -81.0348144","Columbia, SC",null,"South Carolina","SC","Columbia",null,"34.0007104","-81.0348144"]
[null,"South Dakota",1809.8790428649763,2782.9066382663295,1578.8159665288058,1272.2254720009303,1859.1376935677092,641.10406710239283,2254.6290394622256,2129.8133538955403,2026.8338691064478,2093.3008241313742,1808.9635631450938,5812.8034408265175,1269.0227904221802,1018.0326066800214,1276.1143762848235,629.49957675143855,707.06930516908164,1460.489136034734,1745.057630191335,2417.0374848250749,2061.7424520184836,2365.6876529031906,1283.8119041661059,576.82417383592372,1596.0854319334512,936.61373691743404,943.00332562506355,498.25596826071916,1706.1651196316595,2304.6322122298143,2146.9134533914712,1075.4998517826086,2143.8343731145983,2070.6979469384287,273.39755844725238,1508.0946830202133,1018.2171815525795,1789.4373899807294,1975.081178686507,2354.2031580156427,2016.7955438561935,9.4935297966003418E-5,1466.2373576090959,1584.1666117788666,1025.5310315953527,2199.2469110636839,2060.3099313539128,1769.0072456809182,1694.4543527933208,892.29540417518422,511.72438493299569,4291.0418932336734,null,"South Dakota",44.368315600000003,-100.3509665,null,"44.3683156, -100.3509665","Pierre, SD",null,"South Dakota","SD","Pierre",null,"44.3683156","-100.3509665"]
[null,"Tennessee",427.07878139219707,4227.0374747673723,2322.8695658738629,523.67947203149504,3045.939771171455,1642.3138690723001,1365.4499849949868,1043.9728411128583,914.31964230305107,677.28926672776595,345.24009845474433,6974.6882214621864,2627.998113464465,476.17249960572337,404.60596149016737,844.37555983439518,846.96141212392683,282.390258310734,754.11603288726599,1698.4167258445698,958.07364360915381,1515.1004498778407,755.07275647198526,1112.9826720697761,520.40565281969475,547.33738039428465,2390.6674723581941,1002.8079490658084,2907.1958996807234,1517.5999877828381,1142.8260470454377,1723.5736826298335,1328.755344000549,733.11745886207484,1657.4255821918555,536.24931607444796,971.4432601502657,3184.9561381617591,976.19325741607429,1466.4194406372953,574.78265322414768,1466.2373576090959,0,1211.3385594443225,2237.5333171842358,1501.2744021848821,844.66037605297652,3202.6320882396067,515.80196575408513,800.35782358851827,1658.2132132958593,2827.2248049175901,null,"Tennessee",36.1622257,-86.774341899999996,null,"36.1622257, -86.7743419","Nashville, TN",null,"Tennessee","TN","Nashville",null,"36.1622257","-86.7743419"]
[null,"Texas",1113.2457424159384,4175.0283162262112,1397.4289228384446,713.34507534109025,2337.6772693790617,1241.2460599715891,2576.4577343758601,2250.3128619056552,2121.4361198301917,1291.1458810626482,1315.9641354425651,6033.4852732207,2202.6864635753514,1289.4989588891324,1490.2203430040813,1312.2999747901663,994.09512734465477,1473.1299688549834,632.4248844775293,2903.0008121057258,2164.8664462628767,2725.9144999202263,1814.7329458747893,1681.9325961954701,758.08526671709353,1054.8848610332934,2193.1894318489467,1174.7780600154749,2234.6095130673143,2725.0241813994321,2353.4879383536645,972.41189030476949,2534.9469092298577,1879.694483437205,1857.381413894956,1716.2246954555894,578.54776910231305,2741.7690085483719,2187.4009587697865,2677.7330634120644,1624.9030291014255,1584.1666117788666,1211.3385594443225,0,1727.8777067090496,2698.665779774471,2035.5404015438462,2848.7839950605685,1727.1401583375891,1605.0776582005424,1365.8662882902836,3451.6921030647763,null,"Texas",30.271128600000001,-97.743699500000005,null,"30.2711286, -97.7436995","Austin, TX",null,"Texas","TX","Austin",null,"30.2711286","-97.7436995"]
[null,"Utah",2460.8939767401657,2514.3628481798582,813.24852348117395,1843.4739424946281,844.44997541312352,596.86387887649266,3249.8446158583406,3082.474458454104,2968.1512514847282,2732.1798685371709,2543.5590995215853,4815.0760924845163,476.35443449397042,1885.1637002119651,2178.3942074162555,1530.4854296755318,1393.9831933475336,2326.8834125664625,2188.962766684996,3434.7723334476791,3006.986928078652,3369.1326885333219,2268.4172872813288,1596.6727992143385,2142.9476112445846,1701.3606348910387,648.60062000780601,1280.211129653507,694.08777221457967,3314.1487325031421,3118.3496265653948,766.89735750229522,3145.9520789240028,2936.9625598452972,1115.0400903950756,2438.3453615868625,1385.7558631493366,1019.017366129043,2939.8674739532153,3352.3257703425793,2811.9768685050021,1025.5310315953527,2237.5333171842358,1727.8777067090496,9.4935297966003418E-5,3214.9488398338162,2973.5465091824021,1122.6895317342558,2594.9158048593727,1874.2016057917053,595.16245881388852,5001.3047224918946,null,"Utah",40.760646700000002,-111.89109000000001,null,"40.7606467, -111.89109","Salt Lake City, UT",null,"Utah","UT","Salt Lake City",null,"40.7606467","-111.89109"]
[null,"Vermont",1779.5881730117349,4394.6861305513103,3585.3172155636948,1987.0714692880372,4055.9981740548833,2706.5812946264768,277.52448619067007,617.75029909363138,700.2906387728267,1848.5373280787612,1548.5785813343757,8009.6902139723243,3452.3730855299418,1491.1751529720475,1226.2882260907527,1732.7167484274228,1997.2249259201044,1227.4187963852978,2238.2517248003778,222.62790117301358,671.30324341758831,244.23218490788955,980.19569819382684,1622.4536579093997,2014.3780053398727,1746.7667112811309,3058.1204631957144,2003.6723163726645,3903.47193357475,143.75775187171277,483.62721370503021,2974.6092037776816,202.65033987976514,1074.2644464285099,2203.2877091667724,982.7661101488801,2330.3318646168395,3929.7084171413794,568.19130200948541,286.86779573607282,1352.46637932564,2199.2469110636839,1501.2744021848821,2698.665779774471,3214.9488398338162,0,851.3013529580619,3855.4160150766857,1001.0888752958139,1355.9762611167587,2640.5010907388682,2933.5862718293693,null,"Vermont",44.260015000000003,-72.575359899999995,null,"44.260015, -72.5753599","Montpelier, VT",null,"Vermont","VT","Montpelier",null,"44.260015","-72.5753599"]
[null,"Virginia",990.57620333645798,4648.5198891250784,3150.8644305302196,1367.9897951181492,3807.6490971656749,2395.8587728127422,620.96354529919904,245.29394870089473,155.65995019623355,1010.1850733581117,756.37313800040283,7768.1711226074767,3312.010895329825,1088.4857541522115,796.68171117459565,1454.8460118554272,1598.2225065311509,656.94157248855595,1487.8946544296875,989.35540382792021,179.99955101529474,762.95843782161899,836.18597987316934,1543.539155214854,1290.7251170281754,1294.229309018981,3000.1382258327299,1693.5321620673878,3662.2677904884645,803.82915993895801,378.09009493555067,2542.6480070947823,648.78850924150208,223.07904049544285,2171.1115420583824,552.69660953333209,1806.3972397890957,3847.7356704906533,307.00239737344896,701.51560922798933,510.07553143424963,2060.3099313539128,844.66037605297652,2035.5404015438462,2973.5465091824021,851.3013529580619,0,3826.9803031369042,379.10699545922148,1183.8949289850927,2378.8145154920749,2393.4146865151292,null,"Virginia",37.538508700000001,-77.434280000000001,null,"37.5385087, -77.43428","Richmond, VA",null,"Virginia","VA","Richmond",null,"37.5385087","-77.43428"]
[null,"Washington",3490.3918275073056,1469.2546847476135,1764.642130703784,2886.9394288473968,961.52652596215057,1653.6085600800641,3961.5091241124901,3882.0580768410018,3785.6541326359193,3771.1083365936229,3534.4300422073993,4244.0722737510978,646.48184927569446,2779.6713741149547,3044.99094802951,2392.212520233973,2368.2349754510369,3226.3666699032069,3278.0407448046312,4057.7926152504319,3818.5175889228722,4053.9279580567686,3026.8150606569588,2298.8954736956084,3203.3995037667728,2655.9284632215849,826.85716144999424,2199.8616261698085,911.72996376684375,3978.7755500980279,3885.3197028957056,1888.8117419357211,3840.1608956725499,3838.8851124855664,1673.4845641414697,3274.2855576802326,2463.8486402403396,234.02413245009186,3721.3219072940133,4053.7798845382549,3769.1616214513197,1769.0072456809182,3202.6320882396067,2848.7839950605685,1122.6895317342558,3855.4160150766857,3826.9803031369042,0,3463.3609147265815,2647.7207698459465,1580.5514064720294,6023.3301804385383,null,"Washington",47.041480399999998,-122.891333,null,"47.0414804, -122.891333","Olympia, WA",null,"Washington","WA","Olympia",null,"47.0414804","-122.891333"]
[null,"West Virginia",789.08645526105477,4336.7976302738052,2782.3179028062068,1031.941230574613,3428.5495782997727,2016.7781633074453,850.03036842734468,537.23006426362042,408.07231416805394,912.55551334573011,568.37728427568004,7389.6509093349969,2938.1998023545148,709.75325574542967,421.20708063382398,1080.7116207679189,1219.9855931477746,283.25624861688613,1237.3622585753119,1189.3528356168549,451.73269469583403,999.85212522921597,546.31079144062505,1200.7401954061168,1016.0175931301736,917.49919701088743,2636.8541883445178,1315.221269819283,3283.2422136399523,1006.1117272859071,628.1515350913885,2171.6027990245402,819.49035919309097,390.13696701052282,1821.1926597311679,214.53901176629975,1446.256539188671,3477.7026875650604,460.6195489357396,950.63789444220379,486.59696495936754,1694.4543527933208,515.80196575408513,1727.1401583375891,2594.9158048593727,1001.0888752958139,379.10699545922148,3463.3609147265815,9.4935297966003418E-5,837.63599824027722,2000.4043644795127,2677.0945042200474,null,"West Virginia",38.350024500000004,-81.6337762,null,"38.3500245, -81.6337762","Charleston, WV",null,"West Virginia","WV","Charleston",null,"38.3500245","-81.6337762"]
[null,"Wisconsin",1223.949126842982,3506.7339039331678,2241.4448176849878,959.41176413570759,2718.5847196451859,1350.6588173350065,1375.6819634751616,1238.1681159097991,1138.1664436972871,1476.0653882447539,1123.9845221968606,6687.3935186269064,2160.2302804457318,364.8973213408791,455.44964798565945,384.05290986791942,691.61561979298097,662.00071475079369,1412.4659085565158,1578.3883648499045,1171.7737920387819,1496.1300854176147,395.03662023278088,363.10461775340065,1187.779537448728,552.41733408794244,1821.7943264965943,653.11704996144647,2567.5504568109745,1445.3378537753463,1255.5217874701789,1638.5845891691256,1272.8360745964064,1226.8065580788277,987.40000999363099,633.90629902920307,1096.7806921785277,2679.8066993018933,1082.8063556477227,1478.1638396674111,1241.6927454614718,892.29540417518422,800.35782358851827,1605.0776582005424,1874.2016057917053,1355.9762611167587,1183.8949289850927,2647.7207698459465,837.63599824027722,0,1289.548604185243,3504.5990514581367,null,"Wisconsin",43.074761000000002,-89.383761300000003,null,"43.074761, -89.3837613","Madison, WI",null,"Wisconsin","WI","Madison",null,"43.074761","-89.3837613"]
[null,"Wyoming",1914.3964476400085,2816.940705281721,1068.3256268323287,1306.6960663669529,1436.110539877908,156.38540711816114,2662.9510608863498,2487.9267382968742,2373.1362035404204,2193.1734128437574,1975.6348222863692,5407.2112227144853,973.86203725968267,1290.7160820545978,1583.31523033543,936.73243147393964,811.25206247930146,1734.2197448393476,1708.2421331434221,2861.9165624352377,2412.0932063130431,2785.5477126315686,1681.4790270706753,1041.0150582853294,1623.1118715400994,1115.335836218034,837.30815356558571,685.28833775607302,1287.554823818861,2734.2958018263662,2525.7989686609462,614.09508972386857,2562.2629221701313,2346.3631738804384,707.99559973730675,1843.316457401633,895.54805939057019,1535.5235080195753,2346.6512332750785,2766.3384943563242,2232.7528212139428,511.72438493299569,1658.2132132958593,1365.8662882902836,595.16245881388852,2640.5010907388682,2378.8145154920749,1580.5514064720294,2000.4043644795127,1289.548604185243,0,4454.4798494324004,null,"Wyoming",41.139981400000003,-104.8202462,null,"41.1399814, -104.8202462","Cheyenne, WY",null,"Wyoming","WY","Cheyenne",null,"41.1399814","-104.8202462"]
[null,"Puerto Rico",2542.121042438484,7011.2289674877493,4847.3771869547109,3158.0915158947537,5743.1452183051551,4409.4206025899775,2667.7709458385907,2476.5886749831557,2505.8121089751808,2269.2012095302985,2490.0212222474138,9449.3183835458804,5427.5409828549591,3277.6114214896365,3054.9842940152475,3663.3376780860331,3655.1805826343689,2853.1451766304813,2858.3194037669582,2896.5954217258181,2494.5445977216737,2700.4752506475324,3212.2098082870161,3864.6427069161978,2862.9937759915315,3370.4076486117469,5217.2167271439712,3827.4600117540249,5621.4065469481238,2800.6282167870268,2559.1357145732327,4348.2082840641642,2787.0888136462509,2288.8529643790121,4463.7340175863574,2890.6485976355698,3621.7092711383248,5989.9219271912007,2637.7299236644812,2648.2475984651546,2278.5525536525533,4291.0418932336734,2827.2248049175901,3451.6921030647763,5001.3047224918946,2933.5862718293693,2393.4146865151292,6023.3301804385383,2677.0945042200474,3504.5990514581367,4454.4798494324004,0,null,"Puerto Rico",18.446418600000001,-66.075506899999993,null,"18.4464186, -66.0755069","San Juan, PR",null,"Puerto Rico","PR","San Juan",null,"18.4464186","-66.0755069"]

{"sheet":"Distances Chart Data","index":8,"n_rows":59,"n_cols":67,"rows_kept":59,"cut":false,"hidden":true,"merged":[]}
[null,null,null,null,10,11,12,13,14,15,20,21,22,23,24,25,30,31,32,33,34,35,null,null,null,null,null,"Selected Year",null,null,null,null,null,null,null,null,null,null,null,null,null,null,null,null,"Selected Year",null,null,null,null,null,null,null,null,null,null,null,null,null,"Selected Year"]
[]
[null,null,null,null,"From State","From State","From State","To State","To State","To State","From State","From State","From State","To State","To State","To State","From State","From State","From State","To State","To State","To State",null,null,null,null,null,"From State","From State","From State","To State","To State","To State",null,null,null,null,null,null,null,null,null,null,null,"From State","From State","From State","To State","To State","To State",null,null,null,null,null,null,null,null,"From State","From State","From State","To State","To State","To State"]
[null,null,null,"Miles",500,null,2000,500,null,2000]
[null,null,null,"KM",{"$f":"1.6*$E$4","v":800},null,{"$f":"1.6*$G$4","v":3200},{"$f":"1.6*$H$4","v":800},null,{"$f":"1.6*$J$4","v":3200}]
[]
[null,"State","Number Migrated From State","Number Migrated To State",{"$f":"IF(selMiles=1,CONCATENATE(\"Travelled <\",$E$4,$D$4,\" \",$E$3),CONCATENATE(\"Travelled <\",$E$5,$D$5,\" \",$E$3))","v":"Travelled <800KM From State"},{"$f":"IF(selMiles=1,CONCATENATE(\"Travelled \",$E$4,\"-\",$G$4,$D$4,\" \",$E$3),CONCATENATE(\"Travelled \",$E$5,\"-\",$G$5,$D$5,\" \",$E$3))","v":"Travelled 800-3200KM From State"},{"$f":"IF(selMiles=1,CONCATENATE(\"Travelled >\",$G$4,$D$4,\" \",$G$3),CONCATENATE(\"Travelled >\",$G$5,$D$5,\" \",$G$3))","v":"Travelled >3200KM From State"},{"$f":"IF(selMiles=1,CONCATENATE(\"Travelled <\",$E$4,$D$4,\" \",$H$3),CONCATENATE(\"Travelled <\",$E$5,$D$5,\" \",$H$3))","v":"Travelled <800KM To State"},{"$f":"IF(selMiles=1,CONCATENATE(\"Travelled \",$E$4,\"-\",$G$4,$D$4,\" \",$H$3),CONCATENATE(\"Travelled \",$E$5,\"-\",$G$5,$D$5,\" \",$H$3))","v":"Travelled 800-3200KM To State"},{"$f":"IF(selMiles=1,CONCATENATE(\"Travelled >\",$G$4,$D$4,\" \",$J$3),CONCATENATE(\"Travelled >\",$G$5,$D$5,\" \",$J$3))","v":"Travelled >3200KM To State"},{"$f":"IF(selMiles=1,CONCATENATE(\"Travelled <\",$E$4,$D$4,\" \",$E$3),CONCATENATE(\"Travelled <\",$E$5,$D$5,\" \",$E$3))","v":"Travelled <800KM From State"},{"$f":"IF(selMiles=1,CONCATENATE(\"Travelled \",$E$4,\"-\",$G$4,$D$4,\" \",$E$3),CONCATENATE(\"Travelled \",$E$5,\"-\",$G$5,$D$5,\" \",$E$3))","v":"Travelled 800-3200KM From State"},{"$f":"IF(selMiles=1,CONCATENATE(\"Travelled >\",$G$4,$D$4,\" \",$G$3),CONCATENATE(\"Travelled >\",$G$5,$D$5,\" \",$G$3))","v":"Travelled >3200KM From State"},{"$f":"IF(selMiles=1,CONCATENATE(\"Travelled <\",$E$4,$D$4,\" \",$H$3),CONCATENATE(\"Travelled <\",$E$5,$D$5,\" \",$H$3))","v":"Travelled <800KM To State"},{"$f":"IF(selMiles=1,CONCATENATE(\"Travelled \",$E$4,\"-\",$G$4,$D$4,\" \",$H$3),CONCATENATE(\"Travelled \",$E$5,\"-\",$G$5,$D$5,\" \",$H$3))","v":"Travelled 800-3200KM To State"},{"$f":"IF(selMiles=1,CONCATENATE(\"Travelled >\",$G$4,$D$4,\" \",$J$3),CONCATENATE(\"Travelled >\",$G$5,$D$5,\" \",$J$3))","v":"Travelled >3200KM To State"},{"$f":"IF(selMiles=1,CONCATENATE(\"Travelled <\",$E$4,$D$4,\" \",$E$3),CONCATENATE(\"Travelled <\",$E$5,$D$5,\" \",$E$3))","v":"Travelled <800KM From State"},{"$f":"IF(selMiles=1,CONCATENATE(\"Travelled \",$E$4,\"-\",$G$4,$D$4,\" \",$E$3),CONCATENATE(\"Travelled \",$E$5,\"-\",$G$5,$D$5,\" \",$E$3))","v":"Travelled 800-3200KM From State"},{"$f":"IF(selMiles=1,CONCATENATE(\"Travelled >\",$G$4,$D$4,\" \",$G$3),CONCATENATE(\"Travelled >\",$G$5,$D$5,\" \",$G$3))","v":"Travelled >3200KM From State"},{"$f":"IF(selMiles=1,CONCATENATE(\"Travelled <\",$E$4,$D$4,\" \",$H$3),CONCATENATE(\"Travelled <\",$E$5,$D$5,\" \",$H$3))","v":"Travelled <800KM To State"},{"$f":"IF(selMiles=1,CONCATENATE(\"Travelled \",$E$4,\"-\",$G$4,$D$4,\" \",$H$3),CONCATENATE(\"Travelled \",$E$5,\"-\",$G$5,$D$5,\" \",$H$3))","v":"Travelled 800-3200KM To State"},{"$f":"IF(selMiles=1,CONCATENATE(\"Travelled >\",$G$4,$D$4,\" \",$J$3),CONCATENATE(\"Travelled >\",$G$5,$D$5,\" \",$J$3))","v":"Travelled >3200KM To State"},null,null,{"$f":"BD7","v":"State"},"Number Migrated From State","Number Migrated To State","Travelled <800KM From State","Travelled 800-3200KM From State","Travelled >3200KM From State","Travelled <800KM To State","Travelled 800-3200KM To State","Travelled >3200KM To State","Gap Left","Gap Right","Gap Middle",null,"Y-axis","X-axis",null,null,"State","Number Migrated From State","Number Migrated To State",{"$f":"HLOOKUP(selYear*10,$E$1:$V$59,ROW($A$7),FALSE)","v":"Travelled <800KM From State"},{"$f":"HLOOKUP((selYear*10)+1,$E$1:$V$59,ROW($A$7),FALSE)","v":"Travelled 800-3200KM From State"},{"$f":"HLOOKUP((selYear*10)+2,$E$1:$V$59,ROW($A$7),FALSE)","v":"Travelled >3200KM From State"},{"$f":"HLOOKUP((selYear*10)+3,$E$1:$V$59,ROW($A$7),FALSE)","v":"Travelled <800KM To State"},{"$f":"HLOOKUP((selYear*10)+4,$E$1:$V$59,ROW($A$7),FALSE)","v":"Travelled 800-3200KM To State"},{"$f":"HLOOKUP((selYear*10)+5,$E$1:$V$59,ROW($A$7),FALSE)","v":"Travelled >3200KM To State"},"Gap Left","Gap Right","Gap Middle",null,null,"State","Number Migrated From State","Number Migrated To State","Travelled <800KM From State","Travelled 800-3200KM From State","Travelled >3200KM From State","Travelled <800KM To State","Travelled 800-3200KM To State","Travelled >3200KM To State","Gap Left","Gap Right","Gap Middle"]
[1,{"$f":"Distances!$B$3","v":"Alabama"},{"$f":"Migration!$W$5","v":109210},{"$f":"Migration!$V$5","v":104600},{"$f":"SUMIFS(INDIRECT(\"'Migration 2010'!\"&ADDRESS(11,ROW(A10))&\":\"&ADDRESS(62,ROW(A10))),INDIRECT(\"Distances!\"&ADDRESS(3,ROW(A3))&\":\"&ADDRESS(54,ROW(A3))),\"<\"&IF(selMiles=1,$E$4,$E$5))","v":61005},{"$f":"SUMIFS(INDIRECT(\"'Migration 2010'!\"&ADDRESS(11,ROW(A10))&\":\"&ADDRESS(62,ROW(A10))),INDIRECT(\"Distances!\"&ADDRESS(3,ROW(A3))&\":\"&ADDRESS(54,ROW(A3))),\">=\"&IF(selMiles=1,$E$4,$E$5),INDIRECT(\"Distances!\"&ADDRESS(3,ROW(A3))&\":\"&ADDRESS(54,ROW(A3))),\"<\"&IF(selMiles=1,$G$4,$G$5))","v":32533},{"$f":"SUMIFS(INDIRECT(\"'Migration 2010'!\"&ADDRESS(11,ROW(A10))&\":\"&ADDRESS(62,ROW(A10))),INDIRECT(\"Distances!\"&ADDRESS(3,ROW(A3))&\":\"&ADDRESS(54,ROW(A3))),\">\"&IF(selMiles=1,$G$4,$G$5))","v":6312},{"$f":"SUMIFS(INDIRECT(\"'Migration 2010'!\"&ADDRESS(ROW(A11),10)&\":\"&ADDRESS(ROW(A11),61)),INDIRECT(\"Distances!\"&ADDRESS(ROW(A3),3)&\":\"&ADDRESS(ROW(A3),54)),\"<\"&IF(selMiles=1,$E$4,$E$5))","v":61477},{"$f":"SUMIFS(INDIRECT(\"'Migration 2010'!\"&ADDRESS(ROW(A11),10)&\":\"&ADDRESS(ROW(A11),61)),INDIRECT(\"Distances!\"&ADDRESS(ROW(A3),3)&\":\"&ADDRESS(ROW(A3),54)),\">=\"&IF(selMiles=1,E$4,$E$5),INDIRECT(\"Distances!\"&ADDRESS(ROW(A3),3)&\":\"&ADDRESS(ROW(A3),54)),\"<\"&IF(selMiles=1,$G$4,$G$5))","v":38711},{"$f":"SUMIFS(INDIRECT(\"'Migration 2010'!\"&ADDRESS(ROW(A11),10)&\":\"&ADDRESS(ROW(A11),61)),INDIRECT(\"Distances!\"&ADDRESS(ROW(A3),3)&\":\"&ADDRESS(ROW(A3),54)),\">\"&IF(selMiles=1,$G$4,$G$5))","v":8763},{"$f":"SUMIFS(INDIRECT(\"'Migration 2011'!\"&ADDRESS(11,ROW(F10))&\":\"&ADDRESS(62,ROW(F10))),INDIRECT(\"Distances!\"&ADDRESS(3,ROW(F3))&\":\"&ADDRESS(54,ROW(F3))),\"<\"&IF(selMiles=1,$E$4,$E$5))","v":63003},{"$f":"SUMIFS(INDIRECT(\"'Migration 2011'!\"&ADDRESS(11,ROW(F10))&\":\"&ADDRESS(62,ROW(F10))),INDIRECT(\"Distances!\"&ADDRESS(3,ROW(F3))&\":\"&ADDRESS(54,ROW(F3))),\">=\"&IF(selMiles=1,$E$4,$E$5),INDIRECT(\"Distances!\"&ADDRESS(3,ROW(F3))&\":\"&ADDRESS(54,ROW(F3))),\"<\"&IF(selMiles=1,$G$4,$G$5))","v":37811},{"$f":"SUMIFS(INDIRECT(\"'Migration 2011'!\"&ADDRESS(11,ROW(F10))&\":\"&ADDRESS(62,ROW(F10))),INDIRECT(\"Distances!\"&ADDRESS(3,ROW(F3))&\":\"&ADDRESS(54,ROW(F3))),\">\"&IF(selMiles=1,$G$4,$G$5))","v":6027},{"$f":"SUMIFS(INDIRECT(\"'Migration 2011'!\"&ADDRESS(ROW(F11),10)&\":\"&ADDRESS(ROW(F11),61)),INDIRECT(\"Distances!\"&ADDRESS(ROW(F3),3)&\":\"&ADDRESS(ROW(F3),54)),\"<\"&IF(selMiles=1,$E$4,$E$5))","v":63603},{"$f":"SUMIFS(INDIRECT(\"'Migration 2011'!\"&ADDRESS(ROW(F11),10)&\":\"&ADDRESS(ROW(F11),61)),INDIRECT(\"Distances!\"&ADDRESS(ROW(F3),3)&\":\"&ADDRESS(ROW(F3),54)),\">=\"&IF(selMiles=1,E$4,$E$5),INDIRECT(\"Distances!\"&ADDRESS(ROW(F3),3)&\":\"&ADDRESS(ROW(F3),54)),\"<\"&IF(selMiles=1,$G$4,$G$5))","v":45483},{"$f":"SUMIFS(INDIRECT(\"'Migration 2011'!\"&ADDRESS(ROW(F11),10)&\":\"&ADDRESS(ROW(F11),61)),INDIRECT(\"Distances!\"&ADDRESS(ROW(F3),3)&\":\"&ADDRESS(ROW(F3),54)),\">\"&IF(selMiles=1,$G$4,$G$5))","v":9209},{"$f":"SUMIFS(INDIRECT(\"'Migration 2012'!\"&ADDRESS(11,ROW(L10))&\":\"&ADDRESS(62,ROW(L10))),INDIRECT(\"Distances!\"&ADDRESS(3,ROW(L3))&\":\"&ADDRESS(54,ROW(L3))),\"<\"&IF(selMiles=1,$E$4,$E$5))","v":63031},{"$f":"SUMIFS(INDIRECT(\"'Migration 2012'!\"&ADDRESS(11,ROW(L10))&\":\"&ADDRESS(62,ROW(L10))),INDIRECT(\"Distances!\"&ADDRESS(3,ROW(L3))&\":\"&ADDRESS(54,ROW(L3))),\">=\"&IF(selMiles=1,$E$4,$E$5),INDIRECT(\"Distances!\"&ADDRESS(3,ROW(L3))&\":\"&ADDRESS(54,ROW(L3))),\"<\"&IF(selMiles=1,$G$4,$G$5))","v":40093},{"$f":"SUMIFS(INDIRECT(\"'Migration 2012'!\"&ADDRESS(11,ROW(L10))&\":\"&ADDRESS(62,ROW(L10))),INDIRECT(\"Distances!\"&ADDRESS(3,ROW(L3))&\":\"&ADDRESS(54,ROW(L3))),\">\"&IF(selMiles=1,$G$4,$G$5))","v":6094},{"$f":"SUMIFS(INDIRECT(\"'Migration 2012'!\"&ADDRESS(ROW(L11),10)&\":\"&ADDRESS(ROW(L11),61)),INDIRECT(\"Distances!\"&ADDRESS(ROW(L3),3)&\":\"&ADDRESS(ROW(L3),54)),\"<\"&IF(selMiles=1,$E$4,$E$5))","v":60986},{"$f":"SUMIFS(INDIRECT(\"'Migration 2012'!\"&ADDRESS(ROW(L11),10)&\":\"&ADDRESS(ROW(L11),61)),INDIRECT(\"Distances!\"&ADDRESS(ROW(L3),3)&\":\"&ADDRESS(ROW(L3),54)),\">=\"&IF(selMiles=1,E$4,$E$5),INDIRECT(\"Distances!\"&ADDRESS(ROW(L3),3)&\":\"&ADDRESS(ROW(L3),54)),\"<\"&IF(selMiles=1,$G$4,$G$5))","v":38291},{"$f":"SUMIFS(INDIRECT(\"'Migration 2012'!\"&ADDRESS(ROW(L11),10)&\":\"&ADDRESS(ROW(L11),61)),INDIRECT(\"Distances!\"&ADDRESS(ROW(L3),3)&\":\"&ADDRESS(ROW(L3),54)),\">\"&IF(selMiles=1,$G$4,$G$5))","v":5942},null,{"$f":"INDEX($BC$8:$BO$59,ROW(A1)+selScroll,1)","v":44},{"$f":"INDEX($BC$8:$BO$59,ROW(B1)+selScroll,2)","v":"Texas"},{"$f":"INDEX($BC$8:$BO$59,ROW(B1)+selScroll,3)","v":411641},{"$f":"INDEX($BC$8:$BO$59,ROW(B1)+selScroll,4)","v":486558},{"$f":"INDEX($BC$8:$BO$59,ROW(B1)+selScroll,5)","v":68993},{"$f":"INDEX($BC$8:$BO$59,ROW(B1)+selScroll,6)","v":328406},{"$f":"INDEX($BC$8:$BO$59,ROW(B1)+selScroll,7)","v":5148},{"$f":"INDEX($BC$8:$BO$59,ROW(B1)+selScroll,8)","v":75815},{"$f":"INDEX($BC$8:$BO$59,ROW(B1)+selScroll,9)","v":420138},{"$f":"INDEX($BC$8:$BO$59,ROW(B1)+selScroll,10)","v":16234},{"$f":"INDEX($BC$8:$BO$59,ROW(B1)+selScroll,11)","v":197453},{"$f":"INDEX($BC$8:$BO$59,ROW(B1)+selScroll,12)","v":87813},{"$f":"BO8","v":100000},null,{"$f":"-50000","v":-50000},100000,null,1,{"$f":"INDEX($B$8:$B$59,ROW(A1))","v":"Alabama"},99221,108723,{"$f":"HLOOKUP(selYear*10,$E$1:$V$59,ROW(A8),FALSE)","v":63031},{"$f":"HLOOKUP((selYear*10)+1,$E$1:$V$59,ROW(A8),FALSE)","v":40093},{"$f":"HLOOKUP((selYear*10)+2,$E$1:$V$59,ROW(A8),FALSE)","v":6094},{"$f":"HLOOKUP((selYear*10)+3,$E$1:$V$59,ROW(A8),FALSE)","v":60986},{"$f":"HLOOKUP((selYear*10)+4,$E$1:$V$59,ROW(A8),FALSE)","v":38291},{"$f":"HLOOKUP((selYear*10)+5,$E$1:$V$59,ROW(A8),FALSE)","v":5942},{"$f":"600000-AS8-AT8-AU8","v":490782},{"$f":"600000-AV8-AW8-AX8","v":494781},100000,null,44,"Texas",411641,486558,68993,328406,5148,75815,420138,16234,197453,87813,100000]
[2,{"$f":"Distances!$B$4","v":"Alaska"},{"$f":"Migration!$W$6","v":84068},{"$f":"Migration!$V$6","v":33415},0,27958,66890,0,14286,22059,0,28727,60501,{"$f":"SUMIFS(INDIRECT(\"'Migration 2011'!\"&ADDRESS(ROW(F12),10)&\":\"&ADDRESS(ROW(F12),61)),INDIRECT(\"Distances!\"&ADDRESS(ROW(F4),3)&\":\"&ADDRESS(ROW(F4),54)),\"<\"&IF(selMiles=1,$E$4,$E$5))","v":0},{"$f":"SUMIFS(INDIRECT(\"'Migration 2011'!\"&ADDRESS(ROW(F12),10)&\":\"&ADDRESS(ROW(F12),61)),INDIRECT(\"Distances!\"&ADDRESS(ROW(F4),3)&\":\"&ADDRESS(ROW(F4),54)),\">=\"&IF(selMiles=1,E$4,$E$5),INDIRECT(\"Distances!\"&ADDRESS(ROW(F4),3)&\":\"&ADDRESS(ROW(F4),54)),\"<\"&IF(selMiles=1,$G$4,$G$5))","v":14447},{"$f":"SUMIFS(INDIRECT(\"'Migration 2011'!\"&ADDRESS(ROW(F12),10)&\":\"&ADDRESS(ROW(F12),61)),INDIRECT(\"Distances!\"&ADDRESS(ROW(F4),3)&\":\"&ADDRESS(ROW(F4),54)),\">\"&IF(selMiles=1,$G$4,$G$5))","v":21681},0,26235,57890,0,{"$f":"SUMIFS(INDIRECT(\"'Migration 2012'!\"&ADDRESS(ROW(L12),10)&\":\"&ADDRESS(ROW(L12),61)),INDIRECT(\"Distances!\"&ADDRESS(ROW(L4),3)&\":\"&ADDRESS(ROW(L4),54)),\">=\"&IF(selMiles=1,E$4,$E$5),INDIRECT(\"Distances!\"&ADDRESS(ROW(L4),3)&\":\"&ADDRESS(ROW(L4),54)),\"<\"&IF(selMiles=1,$G$4,$G$5))","v":13682},19758,null,10,"Florida",427853,482889,118882,273449,40186,123167,392249,43370,167483,41214,100000,null,{"$f":"$AL$8+10000","v":-40000},{"$f":"$AM$8+100000","v":200000},null,2,{"$f":"INDEX($B$8:$B$59,ROW(A2))","v":"Alaska"},94692,36326,0,26235,57890,0,13682,19758,515875,566560,100000,null,10,"Florida",427853,482889,118882,273449,40186,123167,392249,43370,167483,41214,100000]
[3,{"$f":"Distances!$B$5","v":"Arizona"},{"$f":"Migration!$W$7","v":206842},{"$f":"Migration!$V$7","v":232457},6117,159018,11921,4419,199509,19396,7444,187415,17186,4610,{"$f":"SUMIFS(INDIRECT(\"'Migration 2011'!\"&ADDRESS(ROW(F13),10)&\":\"&ADDRESS(ROW(F13),61)),INDIRECT(\"Distances!\"&ADDRESS(ROW(F5),3)&\":\"&ADDRESS(ROW(F5),54)),\">=\"&IF(selMiles=1,E$4,$E$5),INDIRECT(\"Distances!\"&ADDRESS(ROW(F5),3)&\":\"&ADDRESS(ROW(F5),54)),\"<\"&IF(selMiles=1,$G$4,$G$5))","v":198972},20166,6391,184615,15890,6946,{"$f":"SUMIFS(INDIRECT(\"'Migration 2012'!\"&ADDRESS(ROW(L13),10)&\":\"&ADDRESS(ROW(L13),61)),INDIRECT(\"Distances!\"&ADDRESS(ROW(L5),3)&\":\"&ADDRESS(ROW(L5),54)),\">=\"&IF(selMiles=1,E$4,$E$5),INDIRECT(\"Distances!\"&ADDRESS(ROW(L5),3)&\":\"&ADDRESS(ROW(L5),54)),\"<\"&IF(selMiles=1,$G$4,$G$5))","v":201759},25543,null,5,"California",573988,444749,92120,307733,167652,56023,257159,182782,32495,104036,100000,null,{"$f":"$AL$9+10000","v":-30000},{"$f":"$AM$9+100000","v":300000},null,3,"Arizona",176768,222725,6391,184615,15890,6946,201759,25543,393104,365752,100000,null,5,"California",573988,444749,92120,307733,167652,56023,257159,182782,32495,104036,100000]
[4,{"$f":"Distances!$B$6","v":"Arkansas"},{"$f":"Migration!$W$8","v":64967},{"$f":"Migration!$V$8","v":76948},45461,18756,47,54962,23189,1063,53610,23184,432,46742,{"$f":"SUMIFS(INDIRECT(\"'Migration 2011'!\"&ADDRESS(ROW(F14),10)&\":\"&ADDRESS(ROW(F14),61)),INDIRECT(\"Distances!\"&ADDRESS(ROW(F6),3)&\":\"&ADDRESS(ROW(F6),54)),\">=\"&IF(selMiles=1,E$4,$E$5),INDIRECT(\"Distances!\"&ADDRESS(ROW(F6),3)&\":\"&ADDRESS(ROW(F6),54)),\"<\"&IF(selMiles=1,$G$4,$G$5))","v":23059},573,45965,18875,220,52212,{"$f":"SUMIFS(INDIRECT(\"'Migration 2012'!\"&ADDRESS(ROW(L14),10)&\":\"&ADDRESS(ROW(L14),61)),INDIRECT(\"Distances!\"&ADDRESS(ROW(L6),3)&\":\"&ADDRESS(ROW(L6),54)),\">=\"&IF(selMiles=1,E$4,$E$5),INDIRECT(\"Distances!\"&ADDRESS(ROW(L6),3)&\":\"&ADDRESS(ROW(L6),54)),\"<\"&IF(selMiles=1,$G$4,$G$5))","v":23881},855,null,33,"New York",363139,269427,164257,189740,54181,124901,113228,39245,191822,322626,100000,null,{"$f":"$AL$10+10000","v":-20000},{"$f":"$AM$10+100000","v":400000},null,4,"Arkansas",64264,79127,45965,18875,220,52212,23881,855,534940,523052,100000,null,33,"New York",363139,269427,164257,189740,54181,124901,113228,39245,191822,322626,100000]
[5,{"$f":"Distances!$B$7","v":"California"},{"$f":"Migration!$W$9","v":566986},{"$f":"Migration!$V$9","v":493641},78594,315915,180656,54356,232812,158804,83349,301344,177857,59120,{"$f":"SUMIFS(INDIRECT(\"'Migration 2011'!\"&ADDRESS(ROW(F15),10)&\":\"&ADDRESS(ROW(F15),61)),INDIRECT(\"Distances!\"&ADDRESS(ROW(F7),3)&\":\"&ADDRESS(ROW(F7),54)),\">=\"&IF(selMiles=1,E$4,$E$5),INDIRECT(\"Distances!\"&ADDRESS(ROW(F7),3)&\":\"&ADDRESS(ROW(F7),54)),\"<\"&IF(selMiles=1,$G$4,$G$5))","v":247823},162829,92120,307733,167652,56023,{"$f":"SUMIFS(INDIRECT(\"'Migration 2012'!\"&ADDRESS(ROW(L15),10)&\":\"&ADDRESS(ROW(L15),61)),INDIRECT(\"Distances!\"&ADDRESS(ROW(L7),3)&\":\"&ADDRESS(ROW(L7),54)),\">=\"&IF(selMiles=1,E$4,$E$5),INDIRECT(\"Distances!\"&ADDRESS(ROW(L7),3)&\":\"&ADDRESS(ROW(L7),54)),\"<\"&IF(selMiles=1,$G$4,$G$5))","v":257159},182782,null,34,"North Carolina",207025,263256,136464,81327,21510,163748,85310,26116,360699,324826,100000,null,{"$f":"$AL$11+10000","v":-10000},{"$f":"$AM$11+100000","v":500000},null,5,"California",573988,444749,92120,307733,167652,56023,257159,182782,32495,104036,100000,null,34,"North Carolina",207025,263256,136464,81327,21510,163748,85310,26116,360699,324826,100000]
[6,{"$f":"Distances!$B$8","v":"Colorado"},{"$f":"Migration!$W$10","v":161530},{"$f":"Migration!$V$10","v":205060},16218,123329,1461,18999,165012,3229,20682,138991,950,21517,{"$f":"SUMIFS(INDIRECT(\"'Migration 2011'!\"&ADDRESS(ROW(F16),10)&\":\"&ADDRESS(ROW(F16),61)),INDIRECT(\"Distances!\"&ADDRESS(ROW(F8),3)&\":\"&ADDRESS(ROW(F8),54)),\">=\"&IF(selMiles=1,E$4,$E$5),INDIRECT(\"Distances!\"&ADDRESS(ROW(F8),3)&\":\"&ADDRESS(ROW(F8),54)),\"<\"&IF(selMiles=1,$G$4,$G$5))","v":178755},2328,19496,140818,1216,23748,{"$f":"SUMIFS(INDIRECT(\"'Migration 2012'!\"&ADDRESS(ROW(L16),10)&\":\"&ADDRESS(ROW(L16),61)),INDIRECT(\"Distances!\"&ADDRESS(ROW(L8),3)&\":\"&ADDRESS(ROW(L8),54)),\">=\"&IF(selMiles=1,E$4,$E$5),INDIRECT(\"Distances!\"&ADDRESS(ROW(L8),3)&\":\"&ADDRESS(ROW(L8),54)),\"<\"&IF(selMiles=1,$G$4,$G$5))","v":178776},3680,null,47,"Virginia",232002,259507,125219,89803,24202,143499,79835,27835,360776,348831,100000,null,{"$f":"$AL$12+10000","v":0},{"$f":"$AM$12+100000","v":600000},null,6,"Colorado",140620,186366,19496,140818,1216,23748,178776,3680,438470,393796,100000,null,47,"Virginia",232002,259507,125219,89803,24202,143499,79835,27835,360776,348831,100000]
[7,{"$f":"Distances!$B$9","v":"Connecticut"},{"$f":"Migration!$W$11","v":87023},{"$f":"Migration!$V$11","v":80311},50701,32462,7096,42176,28481,8703,47489,37112,8543,44250,{"$f":"SUMIFS(INDIRECT(\"'Migration 2011'!\"&ADDRESS(ROW(F17),10)&\":\"&ADDRESS(ROW(F17),61)),INDIRECT(\"Distances!\"&ADDRESS(ROW(F9),3)&\":\"&ADDRESS(ROW(F9),54)),\">=\"&IF(selMiles=1,E$4,$E$5),INDIRECT(\"Distances!\"&ADDRESS(ROW(F9),3)&\":\"&ADDRESS(ROW(F9),54)),\"<\"&IF(selMiles=1,$G$4,$G$5))","v":20441},8916,46219,30191,10983,48223,{"$f":"SUMIFS(INDIRECT(\"'Migration 2012'!\"&ADDRESS(ROW(L17),10)&\":\"&ADDRESS(ROW(L17),61)),INDIRECT(\"Distances!\"&ADDRESS(ROW(L9),3)&\":\"&ADDRESS(ROW(L9),54)),\">=\"&IF(selMiles=1,E$4,$E$5),INDIRECT(\"Distances!\"&ADDRESS(ROW(L9),3)&\":\"&ADDRESS(ROW(L9),54)),\"<\"&IF(selMiles=1,$G$4,$G$5))","v":26199},9117,null,11,"Georgia",244992,249459,147877,84056,20561,148965,109576,20655,347506,320804,100000,null,0,{"$f":"$AM$13+100000","v":700000},null,7,"Connecticut",89360,77333,46219,30191,10983,48223,26199,9117,512607,516461,100000,null,11,"Georgia",244992,249459,147877,84056,20561,148965,109576,20655,347506,320804,100000]
[8,{"$f":"Distances!$B$10","v":"Delaware"},{"$f":"Migration!$W$12","v":25149},{"$f":"Migration!$V$12","v":34757},20199,8273,1583,24628,6121,964,19115,4997,2532,25871,{"$f":"SUMIFS(INDIRECT(\"'Migration 2011'!\"&ADDRESS(ROW(F18),10)&\":\"&ADDRESS(ROW(F18),61)),INDIRECT(\"Distances!\"&ADDRESS(ROW(F10),3)&\":\"&ADDRESS(ROW(F10),54)),\">=\"&IF(selMiles=1,E$4,$E$5),INDIRECT(\"Distances!\"&ADDRESS(ROW(F10),3)&\":\"&ADDRESS(ROW(F10),54)),\"<\"&IF(selMiles=1,$G$4,$G$5))","v":6356},2693,19061,4497,1591,27525,{"$f":"SUMIFS(INDIRECT(\"'Migration 2012'!\"&ADDRESS(ROW(L18),10)&\":\"&ADDRESS(ROW(L18),61)),INDIRECT(\"Distances!\"&ADDRESS(ROW(L10),3)&\":\"&ADDRESS(ROW(L10),54)),\">=\"&IF(selMiles=1,E$4,$E$5),INDIRECT(\"Distances!\"&ADDRESS(ROW(L10),3)&\":\"&ADDRESS(ROW(L10),54)),\"<\"&IF(selMiles=1,$G$4,$G$5))","v":3554},3734,null,39,"Pennsylvania",209810,235580,143890,77700,17879,152991,56701,13655,360531,376653,100000,null,{"$f":"$AL$14+10000","v":10000},{"$f":"$AM$14+100000","v":800000},null,8,"Delaware",30055,30759,19061,4497,1591,27525,3554,3734,574851,565187,100000,null,39,"Pennsylvania",209810,235580,143890,77700,17879,152991,56701,13655,360531,376653,100000]
[9,{"$f":"Distances!$B$11","v":"District of Columbia "},{"$f":"Migration!$W$13","v":59513},{"$f":"Migration!$V$13","v":53830},44565,7186,4301,37125,8438,5681,35830,8822,5292,34870,{"$f":"SUMIFS(INDIRECT(\"'Migration 2011'!\"&ADDRESS(ROW(F19),10)&\":\"&ADDRESS(ROW(F19),61)),INDIRECT(\"Distances!\"&ADDRESS(ROW(F11),3)&\":\"&ADDRESS(ROW(F11),54)),\">=\"&IF(selMiles=1,E$4,$E$5),INDIRECT(\"Distances!\"&ADDRESS(ROW(F11),3)&\":\"&ADDRESS(ROW(F11),54)),\"<\"&IF(selMiles=1,$G$4,$G$5))","v":8059},5137,46170,7505,5838,36610,{"$f":"SUMIFS(INDIRECT(\"'Migration 2012'!\"&ADDRESS(ROW(L19),10)&\":\"&ADDRESS(ROW(L19),61)),INDIRECT(\"Distances!\"&ADDRESS(ROW(L11),3)&\":\"&ADDRESS(ROW(L11),54)),\">=\"&IF(selMiles=1,E$4,$E$5),INDIRECT(\"Distances!\"&ADDRESS(ROW(L11),3)&\":\"&ADDRESS(ROW(L11),54)),\"<\"&IF(selMiles=1,$G$4,$G$5))","v":10210},7010,null,3,"Arizona",176768,222725,6391,184615,15890,6946,201759,25543,393104,365752,100000,null,{"$f":"$AL$15+10000","v":20000},{"$f":"$AM$15+100000","v":900000},null,9,"District of Columbia ",56052,51244,46170,7505,5838,36610,10210,7010,540487,546170,100000,null,3,"Arizona",176768,222725,6391,184615,15890,6946,201759,25543,393104,365752,100000]
[10,{"$f":"Distances!$B$12","v":"Florida"},{"$f":"Migration!$W$14","v":428325},{"$f":"Migration!$V$14","v":537148},138382,262227,38506,109355,344186,42316,133085,271888,38843,108949,{"$f":"SUMIFS(INDIRECT(\"'Migration 2011'!\"&ADDRESS(ROW(F20),10)&\":\"&ADDRESS(ROW(F20),61)),INDIRECT(\"Distances!\"&ADDRESS(ROW(F12),3)&\":\"&ADDRESS(ROW(F12),54)),\">=\"&IF(selMiles=1,E$4,$E$5),INDIRECT(\"Distances!\"&ADDRESS(ROW(F12),3)&\":\"&ADDRESS(ROW(F12),54)),\"<\"&IF(selMiles=1,$G$4,$G$5))","v":364614},46645,118882,273449,40186,123167,{"$f":"SUMIFS(INDIRECT(\"'Migration 2012'!\"&ADDRESS(ROW(L20),10)&\":\"&ADDRESS(ROW(L20),61)),INDIRECT(\"Distances!\"&ADDRESS(ROW(L12),3)&\":\"&ADDRESS(ROW(L12),54)),\">=\"&IF(selMiles=1,E$4,$E$5),INDIRECT(\"Distances!\"&ADDRESS(ROW(L12),3)&\":\"&ADDRESS(ROW(L12),54)),\"<\"&IF(selMiles=1,$G$4,$G$5))","v":392249},43370,null,14,"Illinois",277579,203959,128374,149203,1397,92796,112840,5168,321026,389196,100000,null,{"$f":"$AL$16+10000","v":30000},{"$f":"$AM$16+100000","v":1000000},null,10,"Florida",427853,482889,118882,273449,40186,123167,392249,43370,167483,41214,100000,null,14,"Illinois",277579,203959,128374,149203,1397,92796,112840,5168,321026,389196,100000]
[11,{"$f":"Distances!$B$13","v":"Georgia"},{"$f":"Migration!$W$15","v":252262},{"$f":"Migration!$V$15","v":277466},145388,83932,15879,142981,88556,18932,136634,85476,27029,152217,{"$f":"SUMIFS(INDIRECT(\"'Migration 2011'!\"&ADDRESS(ROW(F21),10)&\":\"&ADDRESS(ROW(F21),61)),INDIRECT(\"Distances!\"&ADDRESS(ROW(F13),3)&\":\"&ADDRESS(ROW(F13),54)),\">=\"&IF(selMiles=1,E$4,$E$5),INDIRECT(\"Distances!\"&ADDRESS(ROW(F13),3)&\":\"&ADDRESS(ROW(F13),54)),\"<\"&IF(selMiles=1,$G$4,$G$5))","v":99033},21462,147877,84056,20561,148965,{"$f":"SUMIFS(INDIRECT(\"'Migration 2012'!\"&ADDRESS(ROW(L21),10)&\":\"&ADDRESS(ROW(L21),61)),INDIRECT(\"Distances!\"&ADDRESS(ROW(L13),3)&\":\"&ADDRESS(ROW(L13),54)),\">=\"&IF(selMiles=1,E$4,$E$5),INDIRECT(\"Distances!\"&ADDRESS(ROW(L13),3)&\":\"&ADDRESS(ROW(L13),54)),\"<\"&IF(selMiles=1,$G$4,$G$5))","v":109576},20655,null,48,"Washington",166162,191784,31622,102186,46654,36129,115694,64696,419538,383481,100000,null,{"$f":"$AL$17+10000","v":40000},{"$f":"$AM$17+100000","v":1100000},null,11,"Georgia",244992,249459,147877,84056,20561,148965,109576,20655,347506,320804,100000,null,48,"Washington",166162,191784,31622,102186,46654,36129,115694,64696,419538,383481,100000]
[12,{"$f":"Distances!$B$14","v":"Hawaii"},{"$f":"Migration!$W$16","v":61509},{"$f":"Migration!$V$16","v":55145},0,0,49218,0,0,53581,0,0,61940,0,{"$f":"SUMIFS(INDIRECT(\"'Migration 2011'!\"&ADDRESS(ROW(F22),10)&\":\"&ADDRESS(ROW(F22),61)),INDIRECT(\"Distances!\"&ADDRESS(ROW(F14),3)&\":\"&ADDRESS(ROW(F14),54)),\">=\"&IF(selMiles=1,E$4,$E$5),INDIRECT(\"Distances!\"&ADDRESS(ROW(F14),3)&\":\"&ADDRESS(ROW(F14),54)),\"<\"&IF(selMiles=1,$G$4,$G$5))","v":0},57780,0,0,61619,0,{"$f":"SUMIFS(INDIRECT(\"'Migration 2012'!\"&ADDRESS(ROW(L22),10)&\":\"&ADDRESS(ROW(L22),61)),INDIRECT(\"Distances!\"&ADDRESS(ROW(L14),3)&\":\"&ADDRESS(ROW(L14),54)),\">=\"&IF(selMiles=1,E$4,$E$5),INDIRECT(\"Distances!\"&ADDRESS(ROW(L14),3)&\":\"&ADDRESS(ROW(L14),54)),\"<\"&IF(selMiles=1,$G$4,$G$5))","v":0},55481,null,6,"Colorado",140620,186366,19496,140818,1216,23748,178776,3680,438470,393796,100000,null,{"$f":"$AL$18+10000","v":50000},{"$f":"$AM$18+100000","v":1200000},null,12,"Hawaii",49218,53581,0,0,61619,0,0,55481,538381,544519,100000,null,6,"Colorado",140620,186366,19496,140818,1216,23748,178776,3680,438470,393796,100000]
[13,{"$f":"Distances!$B$15","v":"Idaho"},{"$f":"Migration!$W$17","v":55191},{"$f":"Migration!$V$17","v":59283},33345,16301,3476,34643,19089,2139,34937,19142,3765,36424,{"$f":"SUMIFS(INDIRECT(\"'Migration 2011'!\"&ADDRESS(ROW(F23),10)&\":\"&ADDRESS(ROW(F23),61)),INDIRECT(\"Distances!\"&ADDRESS(ROW(F15),3)&\":\"&ADDRESS(ROW(F15),54)),\">=\"&IF(selMiles=1,E$4,$E$5),INDIRECT(\"Distances!\"&ADDRESS(ROW(F15),3)&\":\"&ADDRESS(ROW(F15),54)),\"<\"&IF(selMiles=1,$G$4,$G$5))","v":21064},3097,31045,20524,3622,38593,{"$f":"SUMIFS(INDIRECT(\"'Migration 2012'!\"&ADDRESS(ROW(L23),10)&\":\"&ADDRESS(ROW(L23),61)),INDIRECT(\"Distances!\"&ADDRESS(ROW(L15),3)&\":\"&ADDRESS(ROW(L15),54)),\">=\"&IF(selMiles=1,E$4,$E$5),INDIRECT(\"Distances!\"&ADDRESS(ROW(L15),3)&\":\"&ADDRESS(ROW(L15),54)),\"<\"&IF(selMiles=1,$G$4,$G$5))","v":17147},3679,null,null,null,null,null,null,null,null,null,null,null,null,null,null,null,null,{"$f":"$AM$19+100000","v":1300000},null,13,"Idaho",53122,55638,31045,20524,3622,38593,17147,3679,544809,540581,100000,null,36,"Ohio",188013,172633,108016,74058,17456,110071,72029,15694,400470,402206,100000]
[14,{"$f":"Distances!$B$16","v":"Illinois"},{"$f":"Migration!$W$18","v":277953},{"$f":"Migration!$V$18","v":208755},127087,149389,2745,95836,105135,5043,129667,136472,3493,99150,{"$f":"SUMIFS(INDIRECT(\"'Migration 2011'!\"&ADDRESS(ROW(F24),10)&\":\"&ADDRESS(ROW(F24),61)),INDIRECT(\"Distances!\"&ADDRESS(ROW(F16),3)&\":\"&ADDRESS(ROW(F16),54)),\">=\"&IF(selMiles=1,E$4,$E$5),INDIRECT(\"Distances!\"&ADDRESS(ROW(F16),3)&\":\"&ADDRESS(ROW(F16),54)),\"<\"&IF(selMiles=1,$G$4,$G$5))","v":111666},7775,128374,149203,1397,92796,{"$f":"SUMIFS(INDIRECT(\"'Migration 2012'!\"&ADDRESS(ROW(L24),10)&\":\"&ADDRESS(ROW(L24),61)),INDIRECT(\"Distances!\"&ADDRESS(ROW(L16),3)&\":\"&ADDRESS(ROW(L16),54)),\">=\"&IF(selMiles=1,E$4,$E$5),INDIRECT(\"Distances!\"&ADDRESS(ROW(L16),3)&\":\"&ADDRESS(ROW(L16),54)),\"<\"&IF(selMiles=1,$G$4,$G$5))","v":112840},5168,null,null,null,null,null,null,null,null,null,null,null,null,null,null,null,null,{"$f":"$AM$20+100000","v":1400000},null,14,"Illinois",277579,203959,128374,149203,1397,92796,112840,5168,321026,389196,100000,null,21,"Maryland",159866,164484,103797,37378,16597,103191,37587,14499,442228,444723,100000]
[15,{"$f":"Distances!$B$17","v":"Indiana"},{"$f":"Migration!$W$19","v":144597},{"$f":"Migration!$V$19","v":134137},79130,50948,201,85633,41848,444,85641,57788,583,78398,{"$f":"SUMIFS(INDIRECT(\"'Migration 2011'!\"&ADDRESS(ROW(F25),10)&\":\"&ADDRESS(ROW(F25),61)),INDIRECT(\"Distances!\"&ADDRESS(ROW(F17),3)&\":\"&ADDRESS(ROW(F17),54)),\">=\"&IF(selMiles=1,E$4,$E$5),INDIRECT(\"Distances!\"&ADDRESS(ROW(F17),3)&\":\"&ADDRESS(ROW(F17),54)),\"<\"&IF(selMiles=1,$G$4,$G$5))","v":48180},1428,88128,56038,552,86147,{"$f":"SUMIFS(INDIRECT(\"'Migration 2012'!\"&ADDRESS(ROW(L25),10)&\":\"&ADDRESS(ROW(L25),61)),INDIRECT(\"Distances!\"&ADDRESS(ROW(L17),3)&\":\"&ADDRESS(ROW(L17),54)),\">=\"&IF(selMiles=1,E$4,$E$5),INDIRECT(\"Distances!\"&ADDRESS(ROW(L17),3)&\":\"&ADDRESS(ROW(L17),54)),\"<\"&IF(selMiles=1,$G$4,$G$5))","v":46791},1335,null,null,null,null,null,null,null,null,null,null,null,null,null,null,null,null,null,null,15,"Indiana",130170,127353,88128,56038,552,86147,46791,1335,455282,465727,100000,null,43,"Tennessee",143135,159778,104629,54258,4971,112835,60765,4215,436142,422185,100000]
[16,{"$f":"Distances!$B$18","v":"Iowa"},{"$f":"Migration!$W$20","v":73325},{"$f":"Migration!$V$20","v":75760},35864,30728,330,45686,25486,1534,42830,30889,797,39654,{"$f":"SUMIFS(INDIRECT(\"'Migration 2011'!\"&ADDRESS(ROW(F26),10)&\":\"&ADDRESS(ROW(F26),61)),INDIRECT(\"Distances!\"&ADDRESS(ROW(F18),3)&\":\"&ADDRESS(ROW(F18),54)),\">=\"&IF(selMiles=1,E$4,$E$5),INDIRECT(\"Distances!\"&ADDRESS(ROW(F18),3)&\":\"&ADDRESS(ROW(F18),54)),\"<\"&IF(selMiles=1,$G$4,$G$5))","v":29485},1323,40817,32411,97,41601,{"$f":"SUMIFS(INDIRECT(\"'Migration 2012'!\"&ADDRESS(ROW(L26),10)&\":\"&ADDRESS(ROW(L26),61)),INDIRECT(\"Distances!\"&ADDRESS(ROW(L18),3)&\":\"&ADDRESS(ROW(L18),54)),\">=\"&IF(selMiles=1,E$4,$E$5),INDIRECT(\"Distances!\"&ADDRESS(ROW(L18),3)&\":\"&ADDRESS(ROW(L18),54)),\"<\"&IF(selMiles=1,$G$4,$G$5))","v":32687},2258,null,null,null,null,null,null,null,null,null,null,null,null,null,null,null,null,null,null,16,"Iowa",66922,72557,40817,32411,97,41601,32687,2258,526675,523454,100000,null,41,"South Carolina",117569,152441,82628,35783,9011,92131,54676,10968,472578,442225,100000]
[17,{"$f":"Distances!$B$19","v":"Kansas"},{"$f":"Migration!$W$21","v":93134},{"$f":"Migration!$V$21","v":88284},40426,49762,605,43191,50690,1246,36035,57270,913,35852,{"$f":"SUMIFS(INDIRECT(\"'Migration 2011'!\"&ADDRESS(ROW(F27),10)&\":\"&ADDRESS(ROW(F27),61)),INDIRECT(\"Distances!\"&ADDRESS(ROW(F19),3)&\":\"&ADDRESS(ROW(F19),54)),\">=\"&IF(selMiles=1,E$4,$E$5),INDIRECT(\"Distances!\"&ADDRESS(ROW(F19),3)&\":\"&ADDRESS(ROW(F19),54)),\"<\"&IF(selMiles=1,$G$4,$G$5))","v":47393},1170,36833,54945,1499,40265,{"$f":"SUMIFS(INDIRECT(\"'Migration 2012'!\"&ADDRESS(ROW(L27),10)&\":\"&ADDRESS(ROW(L27),61)),INDIRECT(\"Distances!\"&ADDRESS(ROW(L19),3)&\":\"&ADDRESS(ROW(L19),54)),\">=\"&IF(selMiles=1,E$4,$E$5),INDIRECT(\"Distances!\"&ADDRESS(ROW(L19),3)&\":\"&ADDRESS(ROW(L19),54)),\"<\"&IF(selMiles=1,$G$4,$G$5))","v":47537},564,null,null,null,null,null,null,null,null,null,null,null,null,null,null,null,null,null,null,17,"Kansas",90681,95059,36833,54945,1499,40265,47537,564,506723,511634,100000,null,26,"Missouri",148055,145226,72405,68586,1763,84011,74619,5126,457246,436244,100000]
[18,{"$f":"Distances!$B$20","v":"Kentucky"},{"$f":"Migration!$W$22","v":103004},{"$f":"Migration!$V$22","v":112787},61832,29000,2421,77422,36766,4434,67964,29695,1597,78471,{"$f":"SUMIFS(INDIRECT(\"'Migration 2011'!\"&ADDRESS(ROW(F28),10)&\":\"&ADDRESS(ROW(F28),61)),INDIRECT(\"Distances!\"&ADDRESS(ROW(F20),3)&\":\"&ADDRESS(ROW(F20),54)),\">=\"&IF(selMiles=1,E$4,$E$5),INDIRECT(\"Distances!\"&ADDRESS(ROW(F20),3)&\":\"&ADDRESS(ROW(F20),54)),\"<\"&IF(selMiles=1,$G$4,$G$5))","v":30109},1643,68513,32312,2216,78914,{"$f":"SUMIFS(INDIRECT(\"'Migration 2012'!\"&ADDRESS(ROW(L28),10)&\":\"&ADDRESS(ROW(L28),61)),INDIRECT(\"Distances!\"&ADDRESS(ROW(L20),3)&\":\"&ADDRESS(ROW(L20),54)),\">=\"&IF(selMiles=1,E$4,$E$5),INDIRECT(\"Distances!\"&ADDRESS(ROW(L20),3)&\":\"&ADDRESS(ROW(L20),54)),\"<\"&IF(selMiles=1,$G$4,$G$5))","v":30806},3237,null,null,null,null,null,null,null,null,null,null,null,null,null,null,null,null,null,null,18,"Kentucky",92999,118443,68513,32312,2216,78914,30806,3237,496959,487043,100000,null,22,"Massachusetts",144152,140162,81496,55111,23807,80273,44388,21972,439586,453367,100000]
[19,{"$f":"Distances!$B$21","v":"Louisiana"},{"$f":"Migration!$W$23","v":95956},{"$f":"Migration!$V$23","v":91215},57931,29110,1199,58301,36354,3636,51721,32600,2272,58499,{"$f":"SUMIFS(INDIRECT(\"'Migration 2011'!\"&ADDRESS(ROW(F29),10)&\":\"&ADDRESS(ROW(F29),61)),INDIRECT(\"Distances!\"&ADDRESS(ROW(F21),3)&\":\"&ADDRESS(ROW(F21),54)),\">=\"&IF(selMiles=1,E$4,$E$5),INDIRECT(\"Distances!\"&ADDRESS(ROW(F21),3)&\":\"&ADDRESS(ROW(F21),54)),\"<\"&IF(selMiles=1,$G$4,$G$5))","v":37450},3582,57095,36720,2200,50613,{"$f":"SUMIFS(INDIRECT(\"'Migration 2012'!\"&ADDRESS(ROW(L29),10)&\":\"&ADDRESS(ROW(L29),61)),INDIRECT(\"Distances!\"&ADDRESS(ROW(L21),3)&\":\"&ADDRESS(ROW(L21),54)),\">=\"&IF(selMiles=1,E$4,$E$5),INDIRECT(\"Distances!\"&ADDRESS(ROW(L21),3)&\":\"&ADDRESS(ROW(L21),54)),\"<\"&IF(selMiles=1,$G$4,$G$5))","v":38700},2557,null,null,null,null,null,null,null,null,null,null,null,null,null,null,null,null,null,null,19,"Louisiana",88131,97889,57095,36720,2200,50613,38700,2557,503985,508130,100000,null,31,"New Jersey",193972,127369,133138,69028,18958,89729,33401,9667,378876,467203,100000]
[20,{"$f":"Distances!$B$22","v":"Maine"},{"$f":"Migration!$W$24","v":38574},{"$f":"Migration!$V$24","v":27523},13987,14379,3843,13529,11236,3197,12042,18221,3466,16504,{"$f":"SUMIFS(INDIRECT(\"'Migration 2011'!\"&ADDRESS(ROW(F30),10)&\":\"&ADDRESS(ROW(F30),61)),INDIRECT(\"Distances!\"&ADDRESS(ROW(F22),3)&\":\"&ADDRESS(ROW(F22),54)),\">=\"&IF(selMiles=1,E$4,$E$5),INDIRECT(\"Distances!\"&ADDRESS(ROW(F22),3)&\":\"&ADDRESS(ROW(F22),54)),\"<\"&IF(selMiles=1,$G$4,$G$5))","v":15110},2269,15174,19579,3821,14517,{"$f":"SUMIFS(INDIRECT(\"'Migration 2012'!\"&ADDRESS(ROW(L30),10)&\":\"&ADDRESS(ROW(L30),61)),INDIRECT(\"Distances!\"&ADDRESS(ROW(L22),3)&\":\"&ADDRESS(ROW(L22),54)),\">=\"&IF(selMiles=1,E$4,$E$5),INDIRECT(\"Distances!\"&ADDRESS(ROW(L22),3)&\":\"&ADDRESS(ROW(L22),54)),\"<\"&IF(selMiles=1,$G$4,$G$5))","v":10455},2589,null,null,null,null,null,null,null,null,null,null,null,null,null,null,null,null,null,null,20,"Maine",32209,27758,15174,19579,3821,14517,10455,2589,561426,572439,100000,null,15,"Indiana",130170,127353,88128,56038,552,86147,46791,1335,455282,465727,100000]
[21,{"$f":"Distances!$B$23","v":"Maryland"},{"$f":"Migration!$W$25","v":157664},{"$f":"Migration!$V$25","v":154983},103392,41176,15357,114760,34311,16025,103525,48035,13551,103703,{"$f":"SUMIFS(INDIRECT(\"'Migration 2011'!\"&ADDRESS(ROW(F31),10)&\":\"&ADDRESS(ROW(F31),61)),INDIRECT(\"Distances!\"&ADDRESS(ROW(F23),3)&\":\"&ADDRESS(ROW(F23),54)),\">=\"&IF(selMiles=1,E$4,$E$5),INDIRECT(\"Distances!\"&ADDRESS(ROW(F23),3)&\":\"&ADDRESS(ROW(F23),54)),\"<\"&IF(selMiles=1,$G$4,$G$5))","v":36379},14676,103797,37378,16597,103191,{"$f":"SUMIFS(INDIRECT(\"'Migration 2012'!\"&ADDRESS(ROW(L31),10)&\":\"&ADDRESS(ROW(L31),61)),INDIRECT(\"Distances!\"&ADDRESS(ROW(L23),3)&\":\"&ADDRESS(ROW(L23),54)),\">=\"&IF(selMiles=1,E$4,$E$5),INDIRECT(\"Distances!\"&ADDRESS(ROW(L23),3)&\":\"&ADDRESS(ROW(L23),54)),\"<\"&IF(selMiles=1,$G$4,$G$5))","v":37587},14499,null,null,null,null,null,null,null,null,null,null,null,null,null,null,null,null,null,null,21,"Maryland",159866,164484,103797,37378,16597,103191,37587,14499,442228,444723,100000,null,18,"Kentucky",92999,118443,68513,32312,2216,78914,30806,3237,496959,487043,100000]
[22,{"$f":"Distances!$B$24","v":"Massachusetts"},{"$f":"Migration!$W$26","v":158156},{"$f":"Migration!$V$26","v":142577},70109,56625,19422,76237,44573,22437,76064,55373,15844,79011,{"$f":"SUMIFS(INDIRECT(\"'Migration 2011'!\"&ADDRESS(ROW(F32),10)&\":\"&ADDRESS(ROW(F32),61)),INDIRECT(\"Distances!\"&ADDRESS(ROW(F24),3)&\":\"&ADDRESS(ROW(F24),54)),\">=\"&IF(selMiles=1,E$4,$E$5),INDIRECT(\"Distances!\"&ADDRESS(ROW(F24),3)&\":\"&ADDRESS(ROW(F24),54)),\"<\"&IF(selMiles=1,$G$4,$G$5))","v":48131},17101,81496,55111,23807,80273,{"$f":"SUMIFS(INDIRECT(\"'Migration 2012'!\"&ADDRESS(ROW(L32),10)&\":\"&ADDRESS(ROW(L32),61)),INDIRECT(\"Distances!\"&ADDRESS(ROW(L24),3)&\":\"&ADDRESS(ROW(L24),54)),\">=\"&IF(selMiles=1,E$4,$E$5),INDIRECT(\"Distances!\"&ADDRESS(ROW(L24),3)&\":\"&ADDRESS(ROW(L24),54)),\"<\"&IF(selMiles=1,$G$4,$G$5))","v":44388},21972,null,null,null,null,null,null,null,null,null,null,null,null,null,null,null,null,null,null,22,"Massachusetts",144152,140162,81496,55111,23807,80273,44388,21972,439586,453367,100000,null,38,"Oregon",100185,116700,56313,37627,14242,64114,37202,17761,491818,480923,100000]
[23,{"$f":"Distances!$B$25","v":"Michigan"},{"$f":"Migration!$W$27","v":175733},{"$f":"Migration!$V$27","v":133981},68870,107787,1639,50972,63824,2785,65015,119416,2162,49952,{"$f":"SUMIFS(INDIRECT(\"'Migration 2011'!\"&ADDRESS(ROW(F33),10)&\":\"&ADDRESS(ROW(F33),61)),INDIRECT(\"Distances!\"&ADDRESS(ROW(F25),3)&\":\"&ADDRESS(ROW(F25),54)),\">=\"&IF(selMiles=1,E$4,$E$5),INDIRECT(\"Distances!\"&ADDRESS(ROW(F25),3)&\":\"&ADDRESS(ROW(F25),54)),\"<\"&IF(selMiles=1,$G$4,$G$5))","v":85120},4994,68315,106534,1319,53670,{"$f":"SUMIFS(INDIRECT(\"'Migration 2012'!\"&ADDRESS(ROW(L33),10)&\":\"&ADDRESS(ROW(L33),61)),INDIRECT(\"Distances!\"&ADDRESS(ROW(L25),3)&\":\"&ADDRESS(ROW(L25),54)),\">=\"&IF(selMiles=1,E$4,$E$5),INDIRECT(\"Distances!\"&ADDRESS(ROW(L25),3)&\":\"&ADDRESS(ROW(L25),54)),\"<\"&IF(selMiles=1,$G$4,$G$5))","v":78868},2225,null,null,null,null,null,null,null,null,null,null,null,null,null,null,null,null,null,null,23,"Michigan",178207,116149,68315,106534,1319,53670,78868,2225,423832,465237,100000,null,23,"Michigan",178207,116149,68315,106534,1319,53670,78868,2225,423832,465237,100000]
[24,{"$f":"Distances!$B$26","v":"Minnesota"},{"$f":"Migration!$W$28","v":115946},{"$f":"Migration!$V$28","v":101042},52362,51927,526,46052,43593,266,52474,49846,933,55569,{"$f":"SUMIFS(INDIRECT(\"'Migration 2011'!\"&ADDRESS(ROW(F34),10)&\":\"&ADDRESS(ROW(F34),61)),INDIRECT(\"Distances!\"&ADDRESS(ROW(F26),3)&\":\"&ADDRESS(ROW(F26),54)),\">=\"&IF(selMiles=1,E$4,$E$5),INDIRECT(\"Distances!\"&ADDRESS(ROW(F26),3)&\":\"&ADDRESS(ROW(F26),54)),\"<\"&IF(selMiles=1,$G$4,$G$5))","v":44559},955,57928,57826,192,46685,{"$f":"SUMIFS(INDIRECT(\"'Migration 2012'!\"&ADDRESS(ROW(L34),10)&\":\"&ADDRESS(ROW(L34),61)),INDIRECT(\"Distances!\"&ADDRESS(ROW(L26),3)&\":\"&ADDRESS(ROW(L26),54)),\">=\"&IF(selMiles=1,E$4,$E$5),INDIRECT(\"Distances!\"&ADDRESS(ROW(L26),3)&\":\"&ADDRESS(ROW(L26),54)),\"<\"&IF(selMiles=1,$G$4,$G$5))","v":53080},1411,null,null,null,null,null,null,null,null,null,null,null,null,null,null,null,null,null,null,24,"Minnesota",104765,89872,57928,57826,192,46685,53080,1411,484054,498824,100000,null,1,"Alabama",99221,108723,63031,40093,6094,60986,38291,5942,490782,494781,100000]
[25,{"$f":"Distances!$B$27","v":"Mississippi"},{"$f":"Migration!$W$29","v":66947},{"$f":"Migration!$V$29","v":73500},47056,20243,1234,45000,26159,1976,43546,23043,2035,42737,{"$f":"SUMIFS(INDIRECT(\"'Migration 2011'!\"&ADDRESS(ROW(F35),10)&\":\"&ADDRESS(ROW(F35),61)),INDIRECT(\"Distances!\"&ADDRESS(ROW(F27),3)&\":\"&ADDRESS(ROW(F27),54)),\">=\"&IF(selMiles=1,E$4,$E$5),INDIRECT(\"Distances!\"&ADDRESS(ROW(F27),3)&\":\"&ADDRESS(ROW(F27),54)),\"<\"&IF(selMiles=1,$G$4,$G$5))","v":25320},772,44132,22100,715,45823,{"$f":"SUMIFS(INDIRECT(\"'Migration 2012'!\"&ADDRESS(ROW(L35),10)&\":\"&ADDRESS(ROW(L35),61)),INDIRECT(\"Distances!\"&ADDRESS(ROW(L27),3)&\":\"&ADDRESS(ROW(L27),54)),\">=\"&IF(selMiles=1,E$4,$E$5),INDIRECT(\"Distances!\"&ADDRESS(ROW(L27),3)&\":\"&ADDRESS(ROW(L27),54)),\"<\"&IF(selMiles=1,$G$4,$G$5))","v":27141},617,null,null,null,null,null,null,null,null,null,null,null,null,null,null,null,null,null,null,25,"Mississippi",68363,72321,44132,22100,715,45823,27141,617,533053,526419,100000,null,37,"Oklahoma",90616,106511,53618,47524,1430,48042,59462,1468,497428,491028,100000]
[26,{"$f":"Distances!$B$28","v":"Missouri"},{"$f":"Migration!$W$30","v":142754},{"$f":"Migration!$V$30","v":162930},78796,69089,391,77115,66680,2298,70451,66724,1330,80030,{"$f":"SUMIFS(INDIRECT(\"'Migration 2011'!\"&ADDRESS(ROW(F36),10)&\":\"&ADDRESS(ROW(F36),61)),INDIRECT(\"Distances!\"&ADDRESS(ROW(F28),3)&\":\"&ADDRESS(ROW(F28),54)),\">=\"&IF(selMiles=1,E$4,$E$5),INDIRECT(\"Distances!\"&ADDRESS(ROW(F28),3)&\":\"&ADDRESS(ROW(F28),54)),\"<\"&IF(selMiles=1,$G$4,$G$5))","v":66495},3623,72405,68586,1763,84011,{"$f":"SUMIFS(INDIRECT(\"'Migration 2012'!\"&ADDRESS(ROW(L36),10)&\":\"&ADDRESS(ROW(L36),61)),INDIRECT(\"Distances!\"&ADDRESS(ROW(L28),3)&\":\"&ADDRESS(ROW(L28),54)),\">=\"&IF(selMiles=1,E$4,$E$5),INDIRECT(\"Distances!\"&ADDRESS(ROW(L28),3)&\":\"&ADDRESS(ROW(L28),54)),\"<\"&IF(selMiles=1,$G$4,$G$5))","v":74619},5126,null,null,null,null,null,null,null,null,null,null,null,null,null,null,null,null,null,null,26,"Missouri",148055,145226,72405,68586,1763,84011,74619,5126,457246,436244,100000,null,29,"Nevada",109409,102677,41829,46110,10943,59187,48071,17264,501118,475478,100000]
[27,{"$f":"Distances!$B$29","v":"Montana"},{"$f":"Migration!$W$31","v":33832},{"$f":"Migration!$V$31","v":37690},3438,31619,813,2422,33073,146,2843,27670,691,2775,{"$f":"SUMIFS(INDIRECT(\"'Migration 2011'!\"&ADDRESS(ROW(F37),10)&\":\"&ADDRESS(ROW(F37),61)),INDIRECT(\"Distances!\"&ADDRESS(ROW(F29),3)&\":\"&ADDRESS(ROW(F29),54)),\">=\"&IF(selMiles=1,E$4,$E$5),INDIRECT(\"Distances!\"&ADDRESS(ROW(F29),3)&\":\"&ADDRESS(ROW(F29),54)),\"<\"&IF(selMiles=1,$G$4,$G$5))","v":30665},466,4857,28795,180,3645,{"$f":"SUMIFS(INDIRECT(\"'Migration 2012'!\"&ADDRESS(ROW(L37),10)&\":\"&ADDRESS(ROW(L37),61)),INDIRECT(\"Distances!\"&ADDRESS(ROW(L29),3)&\":\"&ADDRESS(ROW(L29),54)),\">=\"&IF(selMiles=1,E$4,$E$5),INDIRECT(\"Distances!\"&ADDRESS(ROW(L29),3)&\":\"&ADDRESS(ROW(L29),54)),\"<\"&IF(selMiles=1,$G$4,$G$5))","v":33167},878,null,null,null,null,null,null,null,null,null,null,null,null,null,null,null,null,null,null,27,"Montana",35870,35630,4857,28795,180,3645,33167,878,566168,562310,100000,null,19,"Louisiana",88131,97889,57095,36720,2200,50613,38700,2557,503985,508130,100000]
[28,{"$f":"Distances!$B$30","v":"Nebraska"},{"$f":"Migration!$W$32","v":48816},{"$f":"Migration!$V$32","v":43266},21817,21499,215,26612,24386,292,26834,25879,96,26810,{"$f":"SUMIFS(INDIRECT(\"'Migration 2011'!\"&ADDRESS(ROW(F38),10)&\":\"&ADDRESS(ROW(F38),61)),INDIRECT(\"Distances!\"&ADDRESS(ROW(F30),3)&\":\"&ADDRESS(ROW(F30),54)),\">=\"&IF(selMiles=1,E$4,$E$5),INDIRECT(\"Distances!\"&ADDRESS(ROW(F30),3)&\":\"&ADDRESS(ROW(F30),54)),\"<\"&IF(selMiles=1,$G$4,$G$5))","v":24264},996,25720,21826,1270,22033,{"$f":"SUMIFS(INDIRECT(\"'Migration 2012'!\"&ADDRESS(ROW(L38),10)&\":\"&ADDRESS(ROW(L38),61)),INDIRECT(\"Distances!\"&ADDRESS(ROW(L30),3)&\":\"&ADDRESS(ROW(L30),54)),\">=\"&IF(selMiles=1,E$4,$E$5),INDIRECT(\"Distances!\"&ADDRESS(ROW(L30),3)&\":\"&ADDRESS(ROW(L30),54)),\"<\"&IF(selMiles=1,$G$4,$G$5))","v":20442},791,null,null,null,null,null,null,null,null,null,null,null,null,null,null,null,null,null,null,28,"Nebraska",43531,51290,25720,21826,1270,22033,20442,791,551184,556734,100000,null,17,"Kansas",90681,95059,36833,54945,1499,40265,47537,564,506723,511634,100000]
[29,{"$f":"Distances!$B$31","v":"Nevada"},{"$f":"Migration!$W$33","v":98882},{"$f":"Migration!$V$33","v":124285},37188,52662,19559,44287,40161,18731,51277,49758,14908,49099,{"$f":"SUMIFS(INDIRECT(\"'Migration 2011'!\"&ADDRESS(ROW(F39),10)&\":\"&ADDRESS(ROW(F39),61)),INDIRECT(\"Distances!\"&ADDRESS(ROW(F31),3)&\":\"&ADDRESS(ROW(F31),54)),\">=\"&IF(selMiles=1,E$4,$E$5),INDIRECT(\"Distances!\"&ADDRESS(ROW(F31),3)&\":\"&ADDRESS(ROW(F31),54)),\"<\"&IF(selMiles=1,$G$4,$G$5))","v":44110},17289,41829,46110,10943,59187,{"$f":"SUMIFS(INDIRECT(\"'Migration 2012'!\"&ADDRESS(ROW(L39),10)&\":\"&ADDRESS(ROW(L39),61)),INDIRECT(\"Distances!\"&ADDRESS(ROW(L31),3)&\":\"&ADDRESS(ROW(L31),54)),\">=\"&IF(selMiles=1,E$4,$E$5),INDIRECT(\"Distances!\"&ADDRESS(ROW(L31),3)&\":\"&ADDRESS(ROW(L31),54)),\"<\"&IF(selMiles=1,$G$4,$G$5))","v":48071},17264,null,null,null,null,null,null,null,null,null,null,null,null,null,null,null,null,null,null,29,"Nevada",109409,102677,41829,46110,10943,59187,48071,17264,501118,475478,100000,null,50,"Wisconsin",111240,93065,47941,49282,1490,57800,40823,1544,501287,499833,100000]
[30,{"$f":"Distances!$B$32","v":"New Hampshire"},{"$f":"Migration!$W$34","v":38696},{"$f":"Migration!$V$34","v":50484},23826,11316,3257,27705,8222,3496,25892,13894,3491,26059,{"$f":"SUMIFS(INDIRECT(\"'Migration 2011'!\"&ADDRESS(ROW(F40),10)&\":\"&ADDRESS(ROW(F40),61)),INDIRECT(\"Distances!\"&ADDRESS(ROW(F32),3)&\":\"&ADDRESS(ROW(F32),54)),\">=\"&IF(selMiles=1,E$4,$E$5),INDIRECT(\"Distances!\"&ADDRESS(ROW(F32),3)&\":\"&ADDRESS(ROW(F32),54)),\"<\"&IF(selMiles=1,$G$4,$G$5))","v":9178},1763,26943,8683,3070,35181,{"$f":"SUMIFS(INDIRECT(\"'Migration 2012'!\"&ADDRESS(ROW(L40),10)&\":\"&ADDRESS(ROW(L40),61)),INDIRECT(\"Distances!\"&ADDRESS(ROW(L32),3)&\":\"&ADDRESS(ROW(L32),54)),\">=\"&IF(selMiles=1,E$4,$E$5),INDIRECT(\"Distances!\"&ADDRESS(ROW(L32),3)&\":\"&ADDRESS(ROW(L32),54)),\"<\"&IF(selMiles=1,$G$4,$G$5))","v":12046},3332,null,null,null,null,null,null,null,null,null,null,null,null,null,null,null,null,null,null,30,"New Hampshire",38399,39367,26943,8683,3070,35181,12046,3332,561304,549441,100000,null,24,"Minnesota",104765,89872,57928,57826,192,46685,53080,1411,484054,498824,100000]
[31,{"$f":"Distances!$B$33","v":"New Jersey"},{"$f":"Migration!$W$35","v":219202},{"$f":"Migration!$V$35","v":130223},122085,57495,15636,83786,32603,13712,132925,67940,17654,86262,{"$f":"SUMIFS(INDIRECT(\"'Migration 2011'!\"&ADDRESS(ROW(F41),10)&\":\"&ADDRESS(ROW(F41),61)),INDIRECT(\"Distances!\"&ADDRESS(ROW(F33),3)&\":\"&ADDRESS(ROW(F33),54)),\">=\"&IF(selMiles=1,E$4,$E$5),INDIRECT(\"Distances!\"&ADDRESS(ROW(F33),3)&\":\"&ADDRESS(ROW(F33),54)),\"<\"&IF(selMiles=1,$G$4,$G$5))","v":43043},15201,133138,69028,18958,89729,{"$f":"SUMIFS(INDIRECT(\"'Migration 2012'!\"&ADDRESS(ROW(L41),10)&\":\"&ADDRESS(ROW(L41),61)),INDIRECT(\"Distances!\"&ADDRESS(ROW(L33),3)&\":\"&ADDRESS(ROW(L33),54)),\">=\"&IF(selMiles=1,E$4,$E$5),INDIRECT(\"Distances!\"&ADDRESS(ROW(L33),3)&\":\"&ADDRESS(ROW(L33),54)),\"<\"&IF(selMiles=1,$G$4,$G$5))","v":33401},9667,null,null,null,null,null,null,null,null,null,null,null,null,null,null,null,null,null,null,31,"New Jersey",193972,127369,133138,69028,18958,89729,33401,9667,378876,467203,100000,null,4,"Arkansas",64264,79127,45965,18875,220,52212,23881,855,534940,523052,100000]
[32,{"$f":"Distances!$B$34","v":"New Mexico"},{"$f":"Migration!$W$36","v":63921},{"$f":"Migration!$V$36","v":54693},12288,37718,796,12504,60010,1723,15593,45258,631,13789,{"$f":"SUMIFS(INDIRECT(\"'Migration 2011'!\"&ADDRESS(ROW(F42),10)&\":\"&ADDRESS(ROW(F42),61)),INDIRECT(\"Distances!\"&ADDRESS(ROW(F34),3)&\":\"&ADDRESS(ROW(F34),54)),\">=\"&IF(selMiles=1,E$4,$E$5),INDIRECT(\"Distances!\"&ADDRESS(ROW(F34),3)&\":\"&ADDRESS(ROW(F34),54)),\"<\"&IF(selMiles=1,$G$4,$G$5))","v":47844},596,16000,47374,575,13724,{"$f":"SUMIFS(INDIRECT(\"'Migration 2012'!\"&ADDRESS(ROW(L42),10)&\":\"&ADDRESS(ROW(L42),61)),INDIRECT(\"Distances!\"&ADDRESS(ROW(L34),3)&\":\"&ADDRESS(ROW(L34),54)),\">=\"&IF(selMiles=1,E$4,$E$5),INDIRECT(\"Distances!\"&ADDRESS(ROW(L34),3)&\":\"&ADDRESS(ROW(L34),54)),\"<\"&IF(selMiles=1,$G$4,$G$5))","v":40481},917,null,null,null,null,null,null,null,null,null,null,null,null,null,null,null,null,null,null,32,"New Mexico",50438,73605,16000,47374,575,13724,40481,917,536051,544878,100000,null,45,"Utah",75541,77780,20972,57100,4093,19829,63683,4597,517835,511891,100000]
[33,{"$f":"Distances!$B$35","v":"New York"},{"$f":"Migration!$W$37","v":405864},{"$f":"Migration!$V$37","v":270053},{"$f":"SUMIFS(INDIRECT(\"'Migration 2010'!\"&ADDRESS(11,ROW(A42))&\":\"&ADDRESS(62,ROW(A42))),INDIRECT(\"Distances!\"&ADDRESS(3,ROW(A35))&\":\"&ADDRESS(54,ROW(A35))),\"<\"&IF(selMiles=1,$E$4,$E$5))","v":162388},{"$f":"SUMIFS(INDIRECT(\"'Migration 2010'!\"&ADDRESS(11,ROW(A42))&\":\"&ADDRESS(62,ROW(A42))),INDIRECT(\"Distances!\"&ADDRESS(3,ROW(A35))&\":\"&ADDRESS(54,ROW(A35))),\">=\"&IF(selMiles=1,$E$4,$E$5),INDIRECT(\"Distances!\"&ADDRESS(3,ROW(A35))&\":\"&ADDRESS(54,ROW(A35))),\"<\"&IF(selMiles=1,$G$4,$G$5))","v":168289},{"$f":"SUMIFS(INDIRECT(\"'Migration 2010'!\"&ADDRESS(11,ROW(A42))&\":\"&ADDRESS(62,ROW(A42))),INDIRECT(\"Distances!\"&ADDRESS(3,ROW(A35))&\":\"&ADDRESS(54,ROW(A35))),\">\"&IF(selMiles=1,$G$4,$G$5))","v":37230},{"$f":"SUMIFS(INDIRECT(\"'Migration 2010'!\"&ADDRESS(ROW(A43),10)&\":\"&ADDRESS(ROW(A43),61)),INDIRECT(\"Distances!\"&ADDRESS(ROW(A35),3)&\":\"&ADDRESS(ROW(A35),54)),\"<\"&IF(selMiles=1,$E$4,$E$5))","v":117138},{"$f":"SUMIFS(INDIRECT(\"'Migration 2010'!\"&ADDRESS(ROW(A43),10)&\":\"&ADDRESS(ROW(A43),61)),INDIRECT(\"Distances!\"&ADDRESS(ROW(A35),3)&\":\"&ADDRESS(ROW(A35),54)),\">=\"&IF(selMiles=1,E$4,$E$5),INDIRECT(\"Distances!\"&ADDRESS(ROW(A35),3)&\":\"&ADDRESS(ROW(A35),54)),\"<\"&IF(selMiles=1,$G$4,$G$5))","v":118812},{"$f":"SUMIFS(INDIRECT(\"'Migration 2010'!\"&ADDRESS(ROW(A43),10)&\":\"&ADDRESS(ROW(A43),61)),INDIRECT(\"Distances!\"&ADDRESS(ROW(A35),3)&\":\"&ADDRESS(ROW(A35),54)),\">\"&IF(selMiles=1,$G$4,$G$5))","v":40217},{"$f":"SUMIFS(INDIRECT(\"'Migration 2011'!\"&ADDRESS(11,ROW(F42))&\":\"&ADDRESS(62,ROW(F42))),INDIRECT(\"Distances!\"&ADDRESS(3,ROW(F35))&\":\"&ADDRESS(54,ROW(F35))),\"<\"&IF(selMiles=1,$E$4,$E$5))","v":147387},{"$f":"SUMIFS(INDIRECT(\"'Migration 2011'!\"&ADDRESS(11,ROW(F42))&\":\"&ADDRESS(62,ROW(F42))),INDIRECT(\"Distances!\"&ADDRESS(3,ROW(F35))&\":\"&ADDRESS(54,ROW(F35))),\">=\"&IF(selMiles=1,$E$4,$E$5),INDIRECT(\"Distances!\"&ADDRESS(3,ROW(F35))&\":\"&ADDRESS(54,ROW(F35))),\"<\"&IF(selMiles=1,$G$4,$G$5))","v":189830},{"$f":"SUMIFS(INDIRECT(\"'Migration 2011'!\"&ADDRESS(11,ROW(F42))&\":\"&ADDRESS(62,ROW(F42))),INDIRECT(\"Distances!\"&ADDRESS(3,ROW(F35))&\":\"&ADDRESS(54,ROW(F35))),\">\"&IF(selMiles=1,$G$4,$G$5))","v":43198},{"$f":"SUMIFS(INDIRECT(\"'Migration 2011'!\"&ADDRESS(ROW(F43),10)&\":\"&ADDRESS(ROW(F43),61)),INDIRECT(\"Distances!\"&ADDRESS(ROW(F35),3)&\":\"&ADDRESS(ROW(F35),54)),\"<\"&IF(selMiles=1,$E$4,$E$5))","v":129640},{"$f":"SUMIFS(INDIRECT(\"'Migration 2011'!\"&ADDRESS(ROW(F43),10)&\":\"&ADDRESS(ROW(F43),61)),INDIRECT(\"Distances!\"&ADDRESS(ROW(F35),3)&\":\"&ADDRESS(ROW(F35),54)),\">=\"&IF(selMiles=1,E$4,$E$5),INDIRECT(\"Distances!\"&ADDRESS(ROW(F35),3)&\":\"&ADDRESS(ROW(F35),54)),\"<\"&IF(selMiles=1,$G$4,$G$5))","v":120049},{"$f":"SUMIFS(INDIRECT(\"'Migration 2011'!\"&ADDRESS(ROW(F43),10)&\":\"&ADDRESS(ROW(F43),61)),INDIRECT(\"Distances!\"&ADDRESS(ROW(F35),3)&\":\"&ADDRESS(ROW(F35),54)),\">\"&IF(selMiles=1,$G$4,$G$5))","v":43102},{"$f":"SUMIFS(INDIRECT(\"'Migration 2012'!\"&ADDRESS(11,ROW(L42))&\":\"&ADDRESS(62,ROW(L42))),INDIRECT(\"Distances!\"&ADDRESS(3,ROW(L35))&\":\"&ADDRESS(54,ROW(L35))),\"<\"&IF(selMiles=1,$E$4,$E$5))","v":164257},{"$f":"SUMIFS(INDIRECT(\"'Migration 2012'!\"&ADDRESS(11,ROW(L42))&\":\"&ADDRESS(62,ROW(L42))),INDIRECT(\"Distances!\"&ADDRESS(3,ROW(L35))&\":\"&ADDRESS(54,ROW(L35))),\">=\"&IF(selMiles=1,$E$4,$E$5),INDIRECT(\"Distances!\"&ADDRESS(3,ROW(L35))&\":\"&ADDRESS(54,ROW(L35))),\"<\"&IF(selMiles=1,$G$4,$G$5))","v":189740},{"$f":"SUMIFS(INDIRECT(\"'Migration 2012'!\"&ADDRESS(11,ROW(L42))&\":\"&ADDRESS(62,ROW(L42))),INDIRECT(\"Distances!\"&ADDRESS(3,ROW(L35))&\":\"&ADDRESS(54,ROW(L35))),\">\"&IF(selMiles=1,$G$4,$G$5))","v":54181},{"$f":"SUMIFS(INDIRECT(\"'Migration 2012'!\"&ADDRESS(ROW(L43),10)&\":\"&ADDRESS(ROW(L43),61)),INDIRECT(\"Distances!\"&ADDRESS(ROW(L35),3)&\":\"&ADDRESS(ROW(L35),54)),\"<\"&IF(selMiles=1,$E$4,$E$5))","v":124901},{"$f":"SUMIFS(INDIRECT(\"'Migration 2012'!\"&ADDRESS(ROW(L43),10)&\":\"&ADDRESS(ROW(L43),61)),INDIRECT(\"Distances!\"&ADDRESS(ROW(L35),3)&\":\"&ADDRESS(ROW(L35),54)),\">=\"&IF(selMiles=1,E$4,$E$5),INDIRECT(\"Distances!\"&ADDRESS(ROW(L35),3)&\":\"&ADDRESS(ROW(L35),54)),\"<\"&IF(selMiles=1,$G$4,$G$5))","v":113228},{"$f":"SUMIFS(INDIRECT(\"'Migration 2012'!\"&ADDRESS(ROW(L43),10)&\":\"&ADDRESS(ROW(L43),61)),INDIRECT(\"Distances!\"&ADDRESS(ROW(L35),3)&\":\"&ADDRESS(ROW(L35),54)),\">\"&IF(selMiles=1,$G$4,$G$5))","v":39245},null,null,null,null,null,null,null,null,null,null,null,null,null,null,null,null,null,null,33,"New York",363139,269427,{"$f":"HLOOKUP(selYear*10,$E$1:$V$59,ROW(A40),FALSE)","v":164257},{"$f":"HLOOKUP((selYear*10)+1,$E$1:$V$59,ROW(A40),FALSE)","v":189740},{"$f":"HLOOKUP((selYear*10)+2,$E$1:$V$59,ROW(A40),FALSE)","v":54181},{"$f":"HLOOKUP((selYear*10)+3,$E$1:$V$59,ROW(A40),FALSE)","v":124901},{"$f":"HLOOKUP((selYear*10)+4,$E$1:$V$59,ROW(A40),FALSE)","v":113228},{"$f":"HLOOKUP((selYear*10)+5,$E$1:$V$59,ROW(A40),FALSE)","v":39245},{"$f":"600000-AS40-AT40-AU40","v":191822},{"$f":"600000-AV40-AW40-AX40","v":322626},100000,null,7,"Connecticut",89360,77333,46219,30191,10983,48223,26199,9117,512607,516461,100000]
[34,{"$f":"Distances!$B$36","v":"North Carolina"},{"$f":"Migration!$W$38","v":238663},{"$f":"Migration!$V$38","v":273149},122414,68682,16075,156151,83079,25976,138943,68354,18050,153672,{"$f":"SUMIFS(INDIRECT(\"'Migration 2011'!\"&ADDRESS(ROW(F44),10)&\":\"&ADDRESS(ROW(F44),61)),INDIRECT(\"Distances!\"&ADDRESS(ROW(F36),3)&\":\"&ADDRESS(ROW(F36),54)),\">=\"&IF(selMiles=1,E$4,$E$5),INDIRECT(\"Distances!\"&ADDRESS(ROW(F36),3)&\":\"&ADDRESS(ROW(F36),54)),\"<\"&IF(selMiles=1,$G$4,$G$5))","v":85100},27363,136464,81327,21510,163748,{"$f":"SUMIFS(INDIRECT(\"'Migration 2012'!\"&ADDRESS(ROW(L44),10)&\":\"&ADDRESS(ROW(L44),61)),INDIRECT(\"Distances!\"&ADDRESS(ROW(L36),3)&\":\"&ADDRESS(ROW(L36),54)),\">=\"&IF(selMiles=1,E$4,$E$5),INDIRECT(\"Distances!\"&ADDRESS(ROW(L36),3)&\":\"&ADDRESS(ROW(L36),54)),\"<\"&IF(selMiles=1,$G$4,$G$5))","v":85310},26116,null,null,null,null,null,null,null,null,null,null,null,null,null,null,null,null,null,null,34,"North Carolina",207025,263256,136464,81327,21510,163748,85310,26116,360699,324826,100000,null,32,"New Mexico",50438,73605,16000,47374,575,13724,40481,917,536051,544878,100000]
[35,{"$f":"Distances!$B$37","v":"North Dakota"},{"$f":"Migration!$W$39","v":23959},{"$f":"Migration!$V$39","v":38213},10346,14035,69,13935,16112,53,10163,16368,32,13894,{"$f":"SUMIFS(INDIRECT(\"'Migration 2011'!\"&ADDRESS(ROW(F45),10)&\":\"&ADDRESS(ROW(F45),61)),INDIRECT(\"Distances!\"&ADDRESS(ROW(F37),3)&\":\"&ADDRESS(ROW(F37),54)),\">=\"&IF(selMiles=1,E$4,$E$5),INDIRECT(\"Distances!\"&ADDRESS(ROW(F37),3)&\":\"&ADDRESS(ROW(F37),54)),\"<\"&IF(selMiles=1,$G$4,$G$5))","v":18478},214,9232,14727,0,18326,{"$f":"SUMIFS(INDIRECT(\"'Migration 2012'!\"&ADDRESS(ROW(L45),10)&\":\"&ADDRESS(ROW(L45),61)),INDIRECT(\"Distances!\"&ADDRESS(ROW(L37),3)&\":\"&ADDRESS(ROW(L37),54)),\">=\"&IF(selMiles=1,E$4,$E$5),INDIRECT(\"Distances!\"&ADDRESS(ROW(L37),3)&\":\"&ADDRESS(ROW(L37),54)),\"<\"&IF(selMiles=1,$G$4,$G$5))","v":19727},160,null,null,null,null,null,null,null,null,null,null,null,null,null,null,null,null,null,null,35,"North Dakota",24450,30100,9232,14727,0,18326,19727,160,576041,561787,100000,null,16,"Iowa",66922,72557,40817,32411,97,41601,32687,2258,526675,523454,100000]
[36,{"$f":"Distances!$B$38","v":"Ohio"},{"$f":"Migration!$W$40","v":199202},{"$f":"Migration!$V$40","v":196391},107721,67142,13219,99418,61457,13898,117690,72961,15398,104412,{"$f":"SUMIFS(INDIRECT(\"'Migration 2011'!\"&ADDRESS(ROW(F46),10)&\":\"&ADDRESS(ROW(F46),61)),INDIRECT(\"Distances!\"&ADDRESS(ROW(F38),3)&\":\"&ADDRESS(ROW(F38),54)),\">=\"&IF(selMiles=1,E$4,$E$5),INDIRECT(\"Distances!\"&ADDRESS(ROW(F38),3)&\":\"&ADDRESS(ROW(F38),54)),\"<\"&IF(selMiles=1,$G$4,$G$5))","v":73955},15018,108016,74058,17456,110071,{"$f":"SUMIFS(INDIRECT(\"'Migration 2012'!\"&ADDRESS(ROW(L46),10)&\":\"&ADDRESS(ROW(L46),61)),INDIRECT(\"Distances!\"&ADDRESS(ROW(L38),3)&\":\"&ADDRESS(ROW(L38),54)),\">=\"&IF(selMiles=1,E$4,$E$5),INDIRECT(\"Distances!\"&ADDRESS(ROW(L38),3)&\":\"&ADDRESS(ROW(L38),54)),\"<\"&IF(selMiles=1,$G$4,$G$5))","v":72029},15694,null,null,null,null,null,null,null,null,null,null,null,null,null,null,null,null,null,null,36,"Ohio",188013,172633,108016,74058,17456,110071,72029,15694,400470,402206,100000,null,25,"Mississippi",68363,72321,44132,22100,715,45823,27141,617,533053,526419,100000]
[37,{"$f":"Distances!$B$39","v":"Oklahoma"},{"$f":"Migration!$W$41","v":102572},{"$f":"Migration!$V$41","v":108972},47017,42087,1512,49630,54711,2379,36745,42963,1380,52057,{"$f":"SUMIFS(INDIRECT(\"'Migration 2011'!\"&ADDRESS(ROW(F47),10)&\":\"&ADDRESS(ROW(F47),61)),INDIRECT(\"Distances!\"&ADDRESS(ROW(F39),3)&\":\"&ADDRESS(ROW(F39),54)),\">=\"&IF(selMiles=1,E$4,$E$5),INDIRECT(\"Distances!\"&ADDRESS(ROW(F39),3)&\":\"&ADDRESS(ROW(F39),54)),\"<\"&IF(selMiles=1,$G$4,$G$5))","v":55544},1382,53618,47524,1430,48042,{"$f":"SUMIFS(INDIRECT(\"'Migration 2012'!\"&ADDRESS(ROW(L47),10)&\":\"&ADDRESS(ROW(L47),61)),INDIRECT(\"Distances!\"&ADDRESS(ROW(L39),3)&\":\"&ADDRESS(ROW(L39),54)),\">=\"&IF(selMiles=1,E$4,$E$5),INDIRECT(\"Distances!\"&ADDRESS(ROW(L39),3)&\":\"&ADDRESS(ROW(L39),54)),\"<\"&IF(selMiles=1,$G$4,$G$5))","v":59462},1468,null,null,null,null,null,null,null,null,null,null,null,null,null,null,null,null,null,null,37,"Oklahoma",90616,106511,53618,47524,1430,48042,59462,1468,497428,491028,100000,null,13,"Idaho",53122,55638,31045,20524,3622,38593,17147,3679,544809,540581,100000]
[38,{"$f":"Distances!$B$40","v":"Oregon"},{"$f":"Migration!$W$42","v":108182},{"$f":"Migration!$V$42","v":118925},52979,30017,17189,63917,33950,19654,56194,32790,20811,69534,{"$f":"SUMIFS(INDIRECT(\"'Migration 2011'!\"&ADDRESS(ROW(F48),10)&\":\"&ADDRESS(ROW(F48),61)),INDIRECT(\"Distances!\"&ADDRESS(ROW(F40),3)&\":\"&ADDRESS(ROW(F40),54)),\">=\"&IF(selMiles=1,E$4,$E$5),INDIRECT(\"Distances!\"&ADDRESS(ROW(F40),3)&\":\"&ADDRESS(ROW(F40),54)),\"<\"&IF(selMiles=1,$G$4,$G$5))","v":36977},21399,56313,37627,14242,64114,{"$f":"SUMIFS(INDIRECT(\"'Migration 2012'!\"&ADDRESS(ROW(L48),10)&\":\"&ADDRESS(ROW(L48),61)),INDIRECT(\"Distances!\"&ADDRESS(ROW(L40),3)&\":\"&ADDRESS(ROW(L40),54)),\">=\"&IF(selMiles=1,E$4,$E$5),INDIRECT(\"Distances!\"&ADDRESS(ROW(L40),3)&\":\"&ADDRESS(ROW(L40),54)),\"<\"&IF(selMiles=1,$G$4,$G$5))","v":37202},17761,null,null,null,null,null,null,null,null,null,null,null,null,null,null,null,null,null,null,38,"Oregon",100185,116700,56313,37627,14242,64114,37202,17761,491818,480923,100000,null,12,"Hawaii",49218,53581,0,0,61619,0,0,55481,538381,544519,100000]
[39,{"$f":"Distances!$B$41","v":"Pennsylvania"},{"$f":"Migration!$W$43","v":237156},{"$f":"Migration!$V$43","v":215500},128286,66092,16948,155792,65866,20197,136128,66563,14414,156833,{"$f":"SUMIFS(INDIRECT(\"'Migration 2011'!\"&ADDRESS(ROW(F49),10)&\":\"&ADDRESS(ROW(F49),61)),INDIRECT(\"Distances!\"&ADDRESS(ROW(F41),3)&\":\"&ADDRESS(ROW(F41),54)),\">=\"&IF(selMiles=1,E$4,$E$5),INDIRECT(\"Distances!\"&ADDRESS(ROW(F41),3)&\":\"&ADDRESS(ROW(F41),54)),\"<\"&IF(selMiles=1,$G$4,$G$5))","v":61680},18501,143890,77700,17879,152991,{"$f":"SUMIFS(INDIRECT(\"'Migration 2012'!\"&ADDRESS(ROW(L49),10)&\":\"&ADDRESS(ROW(L49),61)),INDIRECT(\"Distances!\"&ADDRESS(ROW(L41),3)&\":\"&ADDRESS(ROW(L41),54)),\">=\"&IF(selMiles=1,E$4,$E$5),INDIRECT(\"Distances!\"&ADDRESS(ROW(L41),3)&\":\"&ADDRESS(ROW(L41),54)),\"<\"&IF(selMiles=1,$G$4,$G$5))","v":56701},13655,null,null,null,null,null,null,null,null,null,null,null,null,null,null,null,null,null,null,39,"Pennsylvania",209810,235580,143890,77700,17879,152991,56701,13655,360531,376653,100000,null,28,"Nebraska",43531,51290,25720,21826,1270,22033,20442,791,551184,556734,100000]
[40,{"$f":"Distances!$B$42","v":"Rhode Island"},{"$f":"Migration!$W$44","v":30498},{"$f":"Migration!$V$44","v":33446},15632,8040,1960,23114,6469,2752,17843,11930,1782,18200,{"$f":"SUMIFS(INDIRECT(\"'Migration 2011'!\"&ADDRESS(ROW(F50),10)&\":\"&ADDRESS(ROW(F50),61)),INDIRECT(\"Distances!\"&ADDRESS(ROW(F42),3)&\":\"&ADDRESS(ROW(F42),54)),\">=\"&IF(selMiles=1,E$4,$E$5),INDIRECT(\"Distances!\"&ADDRESS(ROW(F42),3)&\":\"&ADDRESS(ROW(F42),54)),\"<\"&IF(selMiles=1,$G$4,$G$5))","v":6092},2770,17913,9880,3329,23726,{"$f":"SUMIFS(INDIRECT(\"'Migration 2012'!\"&ADDRESS(ROW(L50),10)&\":\"&ADDRESS(ROW(L50),61)),INDIRECT(\"Distances!\"&ADDRESS(ROW(L42),3)&\":\"&ADDRESS(ROW(L42),54)),\">=\"&IF(selMiles=1,E$4,$E$5),INDIRECT(\"Distances!\"&ADDRESS(ROW(L42),3)&\":\"&ADDRESS(ROW(L42),54)),\"<\"&IF(selMiles=1,$G$4,$G$5))","v":7026},2810,null,null,null,null,null,null,null,null,null,null,null,null,null,null,null,null,null,null,40,"Rhode Island",24948,32059,17913,9880,3329,23726,7026,2810,568878,566438,100000,null,9,"District of Columbia ",56052,51244,46170,7505,5838,36610,10210,7010,540487,546170,100000]
[41,{"$f":"Distances!$B$43","v":"South Carolina"},{"$f":"Migration!$W$45","v":127418},{"$f":"Migration!$V$45","v":156705},73585,34286,9807,89256,50784,12670,80679,31016,9734,91605,{"$f":"SUMIFS(INDIRECT(\"'Migration 2011'!\"&ADDRESS(ROW(F51),10)&\":\"&ADDRESS(ROW(F51),61)),INDIRECT(\"Distances!\"&ADDRESS(ROW(F43),3)&\":\"&ADDRESS(ROW(F43),54)),\">=\"&IF(selMiles=1,E$4,$E$5),INDIRECT(\"Distances!\"&ADDRESS(ROW(F43),3)&\":\"&ADDRESS(ROW(F43),54)),\"<\"&IF(selMiles=1,$G$4,$G$5))","v":54065},14140,82628,35783,9011,92131,{"$f":"SUMIFS(INDIRECT(\"'Migration 2012'!\"&ADDRESS(ROW(L51),10)&\":\"&ADDRESS(ROW(L51),61)),INDIRECT(\"Distances!\"&ADDRESS(ROW(L43),3)&\":\"&ADDRESS(ROW(L43),54)),\">=\"&IF(selMiles=1,E$4,$E$5),INDIRECT(\"Distances!\"&ADDRESS(ROW(L43),3)&\":\"&ADDRESS(ROW(L43),54)),\"<\"&IF(selMiles=1,$G$4,$G$5))","v":54676},10968,null,null,null,null,null,null,null,null,null,null,null,null,null,null,null,null,null,null,41,"South Carolina",117569,152441,82628,35783,9011,92131,54676,10968,472578,442225,100000,null,49,"West Virginia",49349,39609,35191,9724,2518,37817,7040,2347,552567,552796,100000]
[42,{"$f":"Distances!$B$44","v":"South Dakota"},{"$f":"Migration!$W$46","v":22534},{"$f":"Migration!$V$46","v":26051},11660,15988,267,14441,11261,75,14926,14457,113,16344,{"$f":"SUMIFS(INDIRECT(\"'Migration 2011'!\"&ADDRESS(ROW(F52),10)&\":\"&ADDRESS(ROW(F52),61)),INDIRECT(\"Distances!\"&ADDRESS(ROW(F44),3)&\":\"&ADDRESS(ROW(F44),54)),\">=\"&IF(selMiles=1,E$4,$E$5),INDIRECT(\"Distances!\"&ADDRESS(ROW(F44),3)&\":\"&ADDRESS(ROW(F44),54)),\"<\"&IF(selMiles=1,$G$4,$G$5))","v":11162},0,10946,11129,459,13035,{"$f":"SUMIFS(INDIRECT(\"'Migration 2012'!\"&ADDRESS(ROW(L52),10)&\":\"&ADDRESS(ROW(L52),61)),INDIRECT(\"Distances!\"&ADDRESS(ROW(L44),3)&\":\"&ADDRESS(ROW(L44),54)),\">=\"&IF(selMiles=1,E$4,$E$5),INDIRECT(\"Distances!\"&ADDRESS(ROW(L44),3)&\":\"&ADDRESS(ROW(L44),54)),\"<\"&IF(selMiles=1,$G$4,$G$5))","v":13008},142,null,null,null,null,null,null,null,null,null,null,null,null,null,null,null,null,null,null,42,"South Dakota",27915,25777,10946,11129,459,13035,13008,142,577466,573815,100000,null,30,"New Hampshire",38399,39367,26943,8683,3070,35181,12046,3332,561304,549441,100000]
[43,{"$f":"Distances!$B$45","v":"Tennessee"},{"$f":"Migration!$W$47","v":163843},{"$f":"Migration!$V$47","v":177098},92057,49700,1408,98012,59768,1998,98830,52271,3366,120903,{"$f":"SUMIFS(INDIRECT(\"'Migration 2011'!\"&ADDRESS(ROW(F53),10)&\":\"&ADDRESS(ROW(F53),61)),INDIRECT(\"Distances!\"&ADDRESS(ROW(F45),3)&\":\"&ADDRESS(ROW(F45),54)),\">=\"&IF(selMiles=1,E$4,$E$5),INDIRECT(\"Distances!\"&ADDRESS(ROW(F45),3)&\":\"&ADDRESS(ROW(F45),54)),\"<\"&IF(selMiles=1,$G$4,$G$5))","v":47587},3562,104629,54258,4971,112835,{"$f":"SUMIFS(INDIRECT(\"'Migration 2012'!\"&ADDRESS(ROW(L53),10)&\":\"&ADDRESS(ROW(L53),61)),INDIRECT(\"Distances!\"&ADDRESS(ROW(L45),3)&\":\"&ADDRESS(ROW(L45),54)),\">=\"&IF(selMiles=1,E$4,$E$5),INDIRECT(\"Distances!\"&ADDRESS(ROW(L45),3)&\":\"&ADDRESS(ROW(L45),54)),\"<\"&IF(selMiles=1,$G$4,$G$5))","v":60765},4215,null,null,null,null,null,null,null,null,null,null,null,null,null,null,null,null,null,null,43,"Tennessee",143135,159778,104629,54258,4971,112835,60765,4215,436142,422185,100000,null,2,"Alaska",94692,36326,0,26235,57890,0,13682,19758,515875,566560,100000]
[44,{"$f":"Distances!$B$46","v":"Texas"},{"$f":"Migration!$W$48","v":402187},{"$f":"Migration!$V$48","v":507752},73834,326990,11794,77142,394085,19511,81897,317443,5943,67324,{"$f":"SUMIFS(INDIRECT(\"'Migration 2011'!\"&ADDRESS(ROW(F54),10)&\":\"&ADDRESS(ROW(F54),61)),INDIRECT(\"Distances!\"&ADDRESS(ROW(F46),3)&\":\"&ADDRESS(ROW(F46),54)),\">=\"&IF(selMiles=1,E$4,$E$5),INDIRECT(\"Distances!\"&ADDRESS(ROW(F46),3)&\":\"&ADDRESS(ROW(F46),54)),\"<\"&IF(selMiles=1,$G$4,$G$5))","v":434626},18001,68993,328406,5148,75815,{"$f":"SUMIFS(INDIRECT(\"'Migration 2012'!\"&ADDRESS(ROW(L54),10)&\":\"&ADDRESS(ROW(L54),61)),INDIRECT(\"Distances!\"&ADDRESS(ROW(L46),3)&\":\"&ADDRESS(ROW(L46),54)),\">=\"&IF(selMiles=1,E$4,$E$5),INDIRECT(\"Distances!\"&ADDRESS(ROW(L46),3)&\":\"&ADDRESS(ROW(L46),54)),\"<\"&IF(selMiles=1,$G$4,$G$5))","v":420138},16234,null,null,null,null,null,null,null,null,null,null,null,null,null,null,null,null,null,null,44,"Texas",411641,486558,68993,328406,5148,75815,420138,16234,197453,87813,100000,null,27,"Montana",35870,35630,4857,28795,180,3645,33167,878,566168,562310,100000]
[45,{"$f":"Distances!$B$47","v":"Utah"},{"$f":"Migration!$W$49","v":82165},{"$f":"Migration!$V$49","v":87870},23053,51145,2225,20801,55237,2125,16955,53567,2689,19845,{"$f":"SUMIFS(INDIRECT(\"'Migration 2011'!\"&ADDRESS(ROW(F55),10)&\":\"&ADDRESS(ROW(F55),61)),INDIRECT(\"Distances!\"&ADDRESS(ROW(F47),3)&\":\"&ADDRESS(ROW(F47),54)),\">=\"&IF(selMiles=1,E$4,$E$5),INDIRECT(\"Distances!\"&ADDRESS(ROW(F47),3)&\":\"&ADDRESS(ROW(F47),54)),\"<\"&IF(selMiles=1,$G$4,$G$5))","v":61994},3378,20972,57100,4093,19829,{"$f":"SUMIFS(INDIRECT(\"'Migration 2012'!\"&ADDRESS(ROW(L55),10)&\":\"&ADDRESS(ROW(L55),61)),INDIRECT(\"Distances!\"&ADDRESS(ROW(L47),3)&\":\"&ADDRESS(ROW(L47),54)),\">=\"&IF(selMiles=1,E$4,$E$5),INDIRECT(\"Distances!\"&ADDRESS(ROW(L47),3)&\":\"&ADDRESS(ROW(L47),54)),\"<\"&IF(selMiles=1,$G$4,$G$5))","v":63683},4597,null,null,null,null,null,null,null,null,null,null,null,null,null,null,null,null,null,null,45,"Utah",75541,77780,20972,57100,4093,19829,63683,4597,517835,511891,100000,null,40,"Rhode Island",24948,32059,17913,9880,3329,23726,7026,2810,568878,566438,100000]
[46,{"$f":"Distances!$B$48","v":"Vermont"},{"$f":"Migration!$W$50","v":20056},{"$f":"Migration!$V$50","v":24431},8763,6144,3473,14424,6520,1585,11038,5904,1230,13019,{"$f":"SUMIFS(INDIRECT(\"'Migration 2011'!\"&ADDRESS(ROW(F56),10)&\":\"&ADDRESS(ROW(F56),61)),INDIRECT(\"Distances!\"&ADDRESS(ROW(F48),3)&\":\"&ADDRESS(ROW(F48),54)),\">=\"&IF(selMiles=1,E$4,$E$5),INDIRECT(\"Distances!\"&ADDRESS(ROW(F48),3)&\":\"&ADDRESS(ROW(F48),54)),\"<\"&IF(selMiles=1,$G$4,$G$5))","v":5134},2329,11272,7204,1580,16587,{"$f":"SUMIFS(INDIRECT(\"'Migration 2012'!\"&ADDRESS(ROW(L56),10)&\":\"&ADDRESS(ROW(L56),61)),INDIRECT(\"Distances!\"&ADDRESS(ROW(L48),3)&\":\"&ADDRESS(ROW(L48),54)),\">=\"&IF(selMiles=1,E$4,$E$5),INDIRECT(\"Distances!\"&ADDRESS(ROW(L48),3)&\":\"&ADDRESS(ROW(L48),54)),\"<\"&IF(selMiles=1,$G$4,$G$5))","v":6284},1560,null,null,null,null,null,null,null,null,null,null,null,null,null,null,null,null,null,null,46,"Vermont",18380,22529,11272,7204,1580,16587,6284,1560,579944,575569,100000,null,52,"Puerto Rico",59885,31732,0,56444,18056,0,16328,3716,525500,579956,100000]
[47,{"$f":"Distances!$B$49","v":"Virginia"},{"$f":"Migration!$W$51","v":238540},{"$f":"Migration!$V$51","v":250653},126469,77502,28423,144466,85199,31148,123074,79409,27821,137340,{"$f":"SUMIFS(INDIRECT(\"'Migration 2011'!\"&ADDRESS(ROW(F57),10)&\":\"&ADDRESS(ROW(F57),61)),INDIRECT(\"Distances!\"&ADDRESS(ROW(F49),3)&\":\"&ADDRESS(ROW(F49),54)),\">=\"&IF(selMiles=1,E$4,$E$5),INDIRECT(\"Distances!\"&ADDRESS(ROW(F49),3)&\":\"&ADDRESS(ROW(F49),54)),\"<\"&IF(selMiles=1,$G$4,$G$5))","v":85257},35755,125219,89803,24202,143499,{"$f":"SUMIFS(INDIRECT(\"'Migration 2012'!\"&ADDRESS(ROW(L57),10)&\":\"&ADDRESS(ROW(L57),61)),INDIRECT(\"Distances!\"&ADDRESS(ROW(L49),3)&\":\"&ADDRESS(ROW(L49),54)),\">=\"&IF(selMiles=1,E$4,$E$5),INDIRECT(\"Distances!\"&ADDRESS(ROW(L49),3)&\":\"&ADDRESS(ROW(L49),54)),\"<\"&IF(selMiles=1,$G$4,$G$5))","v":79835},27835,null,null,null,null,null,null,null,null,null,null,null,null,null,null,null,null,null,null,47,"Virginia",232002,259507,125219,89803,24202,143499,79835,27835,360776,348831,100000,null,8,"Delaware",30055,30759,19061,4497,1591,27525,3554,3734,574851,565187,100000]
[48,{"$f":"Distances!$B$50","v":"Washington"},{"$f":"Migration!$W$52","v":180462},{"$f":"Migration!$V$52","v":215494},33669,90522,41971,38896,107049,45839,30853,109051,50781,40063,{"$f":"SUMIFS(INDIRECT(\"'Migration 2011'!\"&ADDRESS(ROW(F58),10)&\":\"&ADDRESS(ROW(F58),61)),INDIRECT(\"Distances!\"&ADDRESS(ROW(F50),3)&\":\"&ADDRESS(ROW(F50),54)),\">=\"&IF(selMiles=1,E$4,$E$5),INDIRECT(\"Distances!\"&ADDRESS(ROW(F50),3)&\":\"&ADDRESS(ROW(F50),54)),\"<\"&IF(selMiles=1,$G$4,$G$5))","v":111284},58243,31622,102186,46654,36129,{"$f":"SUMIFS(INDIRECT(\"'Migration 2012'!\"&ADDRESS(ROW(L58),10)&\":\"&ADDRESS(ROW(L58),61)),INDIRECT(\"Distances!\"&ADDRESS(ROW(L50),3)&\":\"&ADDRESS(ROW(L50),54)),\">=\"&IF(selMiles=1,E$4,$E$5),INDIRECT(\"Distances!\"&ADDRESS(ROW(L50),3)&\":\"&ADDRESS(ROW(L50),54)),\"<\"&IF(selMiles=1,$G$4,$G$5))","v":115694},64696,null,null,null,null,null,null,null,null,null,null,null,null,null,null,null,null,null,null,48,"Washington",166162,191784,31622,102186,46654,36129,115694,64696,419538,383481,100000,null,35,"North Dakota",24450,30100,9232,14727,0,18326,19727,160,576041,561787,100000]
[49,{"$f":"Distances!$B$51","v":"West Virginia"},{"$f":"Migration!$W$53","v":47425},{"$f":"Migration!$V$53","v":47125},35471,11614,2405,31138,6350,2303,34226,10288,1456,37946,{"$f":"SUMIFS(INDIRECT(\"'Migration 2011'!\"&ADDRESS(ROW(F59),10)&\":\"&ADDRESS(ROW(F59),61)),INDIRECT(\"Distances!\"&ADDRESS(ROW(F51),3)&\":\"&ADDRESS(ROW(F51),54)),\">=\"&IF(selMiles=1,E$4,$E$5),INDIRECT(\"Distances!\"&ADDRESS(ROW(F51),3)&\":\"&ADDRESS(ROW(F51),54)),\"<\"&IF(selMiles=1,$G$4,$G$5))","v":10107},2695,35191,9724,2518,37817,{"$f":"SUMIFS(INDIRECT(\"'Migration 2012'!\"&ADDRESS(ROW(L59),10)&\":\"&ADDRESS(ROW(L59),61)),INDIRECT(\"Distances!\"&ADDRESS(ROW(L51),3)&\":\"&ADDRESS(ROW(L51),54)),\">=\"&IF(selMiles=1,E$4,$E$5),INDIRECT(\"Distances!\"&ADDRESS(ROW(L51),3)&\":\"&ADDRESS(ROW(L51),54)),\"<\"&IF(selMiles=1,$G$4,$G$5))","v":7040},2347,null,null,null,null,null,null,null,null,null,null,null,null,null,null,null,null,null,null,49,"West Virginia",49349,39609,35191,9724,2518,37817,7040,2347,552567,552796,100000,null,51,"Wyoming",28186,28046,10174,22004,50,10642,20507,16,567772,568835,100000]
[50,{"$f":"Distances!$B$52","v":"Wisconsin"},{"$f":"Migration!$W$54","v":97724},{"$f":"Migration!$V$54","v":99192},51425,58489,1911,53502,38215,1869,49311,55889,399,61783,{"$f":"SUMIFS(INDIRECT(\"'Migration 2011'!\"&ADDRESS(ROW(F60),10)&\":\"&ADDRESS(ROW(F60),61)),INDIRECT(\"Distances!\"&ADDRESS(ROW(F52),3)&\":\"&ADDRESS(ROW(F52),54)),\">=\"&IF(selMiles=1,E$4,$E$5),INDIRECT(\"Distances!\"&ADDRESS(ROW(F52),3)&\":\"&ADDRESS(ROW(F52),54)),\"<\"&IF(selMiles=1,$G$4,$G$5))","v":46116},2268,47941,49282,1490,57800,{"$f":"SUMIFS(INDIRECT(\"'Migration 2012'!\"&ADDRESS(ROW(L60),10)&\":\"&ADDRESS(ROW(L60),61)),INDIRECT(\"Distances!\"&ADDRESS(ROW(L52),3)&\":\"&ADDRESS(ROW(L52),54)),\">=\"&IF(selMiles=1,E$4,$E$5),INDIRECT(\"Distances!\"&ADDRESS(ROW(L52),3)&\":\"&ADDRESS(ROW(L52),54)),\"<\"&IF(selMiles=1,$G$4,$G$5))","v":40823},1544,null,null,null,null,null,null,null,null,null,null,null,null,null,null,null,null,null,null,50,"Wisconsin",111240,93065,47941,49282,1490,57800,40823,1544,501287,499833,100000,null,20,"Maine",32209,27758,15174,19579,3821,14517,10455,2589,561426,572439,100000]
[51,{"$f":"Distances!$B$53","v":"Wyoming"},{"$f":"Migration!$W$55","v":32228},{"$f":"Migration!$V$55","v":31149},9641,18527,18,10525,17496,25,6697,25280,14,12185,{"$f":"SUMIFS(INDIRECT(\"'Migration 2011'!\"&ADDRESS(ROW(F61),10)&\":\"&ADDRESS(ROW(F61),61)),INDIRECT(\"Distances!\"&ADDRESS(ROW(F53),3)&\":\"&ADDRESS(ROW(F53),54)),\">=\"&IF(selMiles=1,E$4,$E$5),INDIRECT(\"Distances!\"&ADDRESS(ROW(F53),3)&\":\"&ADDRESS(ROW(F53),54)),\"<\"&IF(selMiles=1,$G$4,$G$5))","v":18466},0,10174,22004,50,10642,{"$f":"SUMIFS(INDIRECT(\"'Migration 2012'!\"&ADDRESS(ROW(L61),10)&\":\"&ADDRESS(ROW(L61),61)),INDIRECT(\"Distances!\"&ADDRESS(ROW(L53),3)&\":\"&ADDRESS(ROW(L53),54)),\">=\"&IF(selMiles=1,E$4,$E$5),INDIRECT(\"Distances!\"&ADDRESS(ROW(L53),3)&\":\"&ADDRESS(ROW(L53),54)),\"<\"&IF(selMiles=1,$G$4,$G$5))","v":20507},16,null,null,null,null,null,null,null,null,null,null,null,null,null,null,null,null,null,null,51,"Wyoming",28186,28046,10174,22004,50,10642,20507,16,567772,568835,100000,null,42,"South Dakota",27915,25777,10946,11129,459,13035,13008,142,577466,573815,100000]
[52,{"$f":"Distances!$B$54","v":"Puerto Rico"},{"$f":"Migration!$W$56","v":74500},{"$f":"Migration!$V$56","v":20044},0,45068,14817,0,24801,6931,0,59280,16938,0,{"$f":"SUMIFS(INDIRECT(\"'Migration 2011'!\"&ADDRESS(ROW(F62),10)&\":\"&ADDRESS(ROW(F62),61)),INDIRECT(\"Distances!\"&ADDRESS(ROW(F54),3)&\":\"&ADDRESS(ROW(F54),54)),\">=\"&IF(selMiles=1,E$4,$E$5),INDIRECT(\"Distances!\"&ADDRESS(ROW(F54),3)&\":\"&ADDRESS(ROW(F54),54)),\"<\"&IF(selMiles=1,$G$4,$G$5))","v":20014},2635,0,56444,18056,0,{"$f":"SUMIFS(INDIRECT(\"'Migration 2012'!\"&ADDRESS(ROW(L62),10)&\":\"&ADDRESS(ROW(L62),61)),INDIRECT(\"Distances!\"&ADDRESS(ROW(L54),3)&\":\"&ADDRESS(ROW(L54),54)),\">=\"&IF(selMiles=1,E$4,$E$5),INDIRECT(\"Distances!\"&ADDRESS(ROW(L54),3)&\":\"&ADDRESS(ROW(L54),54)),\"<\"&IF(selMiles=1,$G$4,$G$5))","v":16328},3716,null,null,null,null,null,null,null,null,null,null,null,null,null,null,null,null,null,null,52,"Puerto Rico",59885,31732,0,56444,18056,0,16328,3716,525500,579956,100000,null,46,"Vermont",18380,22529,11272,7204,1580,16587,6284,1560,579944,575569,100000]

{"sheet":"Distances Chart Data Backup","index":9,"n_rows":59,"n_cols":35,"rows_kept":59,"cut":false,"hidden":true,"merged":[]}
[null,null,null,null,10,11,12,13,14,15,20,21,22,23,24,25,30,31,32,33,34,35,"Selected Year"]
[]
[null,null,null,null,"From State","From State","From State","To State","To State","To State","From State","From State","From State","To State","To State","To State","From State","From State","From State","To State","To State","To State","From State","From State","From State","To State","To State","To State"]
[null,null,null,"Miles",500,null,2000,500,null,2000]
[null,null,null,"KM",{"$f":"1.6*E4","v":800},null,{"$f":"1.6*G4","v":3200},800,null,3200]
[]
[null,"State","Number Migrated From State","Number Migrated To State",{"$f":"IF(selMiles=1,CONCATENATE(\"Travelled <\",$E$4,$D$4,\" \",$E$3),CONCATENATE(\"Travelled <\",$E$5,$D$5,\" \",$E$3))","v":"Travelled <800KM From State"},{"$f":"IF(selMiles=1,CONCATENATE(\"Travelled \",$E$4,\"-\",$G$4,$D$4,\" \",$E$3),CONCATENATE(\"Travelled \",$E$5,\"-\",$G$5,$D$5,\" \",$E$3))","v":"Travelled 800-3200KM From State"},{"$f":"IF(selMiles=1,CONCATENATE(\"Travelled >\",$G$4,$D$4,\" \",$G$3),CONCATENATE(\"Travelled >\",$G$5,$D$5,\" \",$G$3))","v":"Travelled >3200KM From State"},{"$f":"IF(selMiles=1,CONCATENATE(\"Travelled <\",$E$4,$D$4,\" \",$H$3),CONCATENATE(\"Travelled <\",$E$5,$D$5,\" \",$H$3))","v":"Travelled <800KM To State"},{"$f":"IF(selMiles=1,CONCATENATE(\"Travelled \",$E$4,\"-\",$G$4,$D$4,\" \",$H$3),CONCATENATE(\"Travelled \",$E$5,\"-\",$G$5,$D$5,\" \",$H$3))","v":"Travelled 800-3200KM To State"},{"$f":"IF(selMiles=1,CONCATENATE(\"Travelled >\",$G$4,$D$4,\" \",$J$3),CONCATENATE(\"Travelled >\",$G$5,$D$5,\" \",$J$3))","v":"Travelled >3200KM To State"},{"$f":"IF(selMiles=1,CONCATENATE(\"Travelled <\",$E$4,$D$4,\" \",$E$3),CONCATENATE(\"Travelled <\",$E$5,$D$5,\" \",$E$3))","v":"Travelled <800KM From State"},{"$f":"IF(selMiles=1,CONCATENATE(\"Travelled \",$E$4,\"-\",$G$4,$D$4,\" \",$E$3),CONCATENATE(\"Travelled \",$E$5,\"-\",$G$5,$D$5,\" \",$E$3))","v":"Travelled 800-3200KM From State"},{"$f":"IF(selMiles=1,CONCATENATE(\"Travelled >\",$G$4,$D$4,\" \",$G$3),CONCATENATE(\"Travelled >\",$G$5,$D$5,\" \",$G$3))","v":"Travelled >3200KM From State"},{"$f":"IF(selMiles=1,CONCATENATE(\"Travelled <\",$E$4,$D$4,\" \",$H$3),CONCATENATE(\"Travelled <\",$E$5,$D$5,\" \",$H$3))","v":"Travelled <800KM To State"},{"$f":"IF(selMiles=1,CONCATENATE(\"Travelled \",$E$4,\"-\",$G$4,$D$4,\" \",$H$3),CONCATENATE(\"Travelled \",$E$5,\"-\",$G$5,$D$5,\" \",$H$3))","v":"Travelled 800-3200KM To State"},{"$f":"IF(selMiles=1,CONCATENATE(\"Travelled >\",$G$4,$D$4,\" \",$J$3),CONCATENATE(\"Travelled >\",$G$5,$D$5,\" \",$J$3))","v":"Travelled >3200KM To State"},{"$f":"IF(selMiles=1,CONCATENATE(\"Travelled <\",$E$4,$D$4,\" \",$E$3),CONCATENATE(\"Travelled <\",$E$5,$D$5,\" \",$E$3))","v":"Travelled <800KM From State"},{"$f":"IF(selMiles=1,CONCATENATE(\"Travelled \",$E$4,\"-\",$G$4,$D$4,\" \",$E$3),CONCATENATE(\"Travelled \",$E$5,\"-\",$G$5,$D$5,\" \",$E$3))","v":"Travelled 800-3200KM From State"},{"$f":"IF(selMiles=1,CONCATENATE(\"Travelled >\",$G$4,$D$4,\" \",$G$3),CONCATENATE(\"Travelled >\",$G$5,$D$5,\" \",$G$3))","v":"Travelled >3200KM From State"},{"$f":"IF(selMiles=1,CONCATENATE(\"Travelled <\",$E$4,$D$4,\" \",$H$3),CONCATENATE(\"Travelled <\",$E$5,$D$5,\" \",$H$3))","v":"Travelled <800KM To State"},{"$f":"IF(selMiles=1,CONCATENATE(\"Travelled \",$E$4,\"-\",$G$4,$D$4,\" \",$H$3),CONCATENATE(\"Travelled \",$E$5,\"-\",$G$5,$D$5,\" \",$H$3))","v":"Travelled 800-3200KM To State"},{"$f":"IF(selMiles=1,CONCATENATE(\"Travelled >\",$G$4,$D$4,\" \",$J$3),CONCATENATE(\"Travelled >\",$G$5,$D$5,\" \",$J$3))","v":"Travelled >3200KM To State"},{"$f":"HLOOKUP(selYear*10,$E$1:$V$59,ROW($A7),FALSE)","v":"Travelled <800KM From State"},{"$f":"HLOOKUP((selYear*10)+1,$E$1:$V$59,ROW($A7),FALSE)","v":"Travelled 800-3200KM From State"},{"$f":"HLOOKUP((selYear*10)+2,$E$1:$V$59,ROW($A7),FALSE)","v":"Travelled >3200KM From State"},{"$f":"HLOOKUP((selYear*10)+3,$E$1:$V$59,ROW($A7),FALSE)","v":"Travelled <800KM To State"},{"$f":"HLOOKUP((selYear*10)+4,$E$1:$V$59,ROW($A7),FALSE)","v":"Travelled 800-3200KM To State"},{"$f":"HLOOKUP((selYear*10)+5,$E$1:$V$59,ROW($A7),FALSE)","v":"Travelled >3200KM To State"},"Gap Left","Gap Right","Gap Middle",null,"State","Y-axis","X-axis"]
[null,{"$f":"Distances!B3","v":"Alabama"},{"$f":"Migration!W5","v":109210},{"$f":"Migration!V5","v":104600},{"$f":"SUMIFS(INDIRECT(\"'Migration 2010'!\"&ADDRESS(11,ROW(A10))&\":\"&ADDRESS(62,ROW(A10))),INDIRECT(\"Distances!\"&ADDRESS(3,ROW(A3))&\":\"&ADDRESS(54,ROW(A3))),\"<\"&IF(selMiles=1,$E$4,$E$5))","v":61005},{"$f":"SUMIFS(INDIRECT(\"'Migration 2010'!\"&ADDRESS(11,ROW(A10))&\":\"&ADDRESS(62,ROW(A10))),INDIRECT(\"Distances!\"&ADDRESS(3,ROW(A3))&\":\"&ADDRESS(54,ROW(A3))),\">=\"&IF(selMiles=1,$E$4,$E$5),INDIRECT(\"Distances!\"&ADDRESS(3,ROW(A3))&\":\"&ADDRESS(54,ROW(A3))),\"<\"&IF(selMiles=1,$G$4,$G$5))","v":32533},{"$f":"SUMIFS(INDIRECT(\"'Migration 2010'!\"&ADDRESS(11,ROW(A10))&\":\"&ADDRESS(62,ROW(A10))),INDIRECT(\"Distances!\"&ADDRESS(3,ROW(A3))&\":\"&ADDRESS(54,ROW(A3))),\">\"&IF(selMiles=1,$G$4,$G$5))","v":6312},{"$f":"SUMIFS(INDIRECT(\"'Migration 2010'!\"&ADDRESS(ROW(A11),10)&\":\"&ADDRESS(ROW(A11),61)),INDIRECT(\"Distances!\"&ADDRESS(ROW(A3),3)&\":\"&ADDRESS(ROW(A3),54)),\"<\"&IF(selMiles=1,$E$4,$E$5))","v":61477},{"$f":"SUMIFS(INDIRECT(\"'Migration 2010'!\"&ADDRESS(ROW(A11),10)&\":\"&ADDRESS(ROW(A11),61)),INDIRECT(\"Distances!\"&ADDRESS(ROW(A3),3)&\":\"&ADDRESS(ROW(A3),54)),\">=\"&IF(selMiles=1,E$4,$E$5),INDIRECT(\"Distances!\"&ADDRESS(ROW(A3),3)&\":\"&ADDRESS(ROW(A3),54)),\"<\"&IF(selMiles=1,$G$4,$G$5))","v":38711},{"$f":"SUMIFS(INDIRECT(\"'Migration 2010'!\"&ADDRESS(ROW(A11),10)&\":\"&ADDRESS(ROW(A11),61)),INDIRECT(\"Distances!\"&ADDRESS(ROW(A3),3)&\":\"&ADDRESS(ROW(A3),54)),\">\"&IF(selMiles=1,$G$4,$G$5))","v":8763},{"$f":"SUMIFS(INDIRECT(\"'Migration 2011'!\"&ADDRESS(11,ROW(F10))&\":\"&ADDRESS(62,ROW(F10))),INDIRECT(\"Distances!\"&ADDRESS(3,ROW(F3))&\":\"&ADDRESS(54,ROW(F3))),\"<\"&IF(selMiles=1,$E$4,$E$5))","v":63003},{"$f":"SUMIFS(INDIRECT(\"'Migration 2011'!\"&ADDRESS(11,ROW(F10))&\":\"&ADDRESS(62,ROW(F10))),INDIRECT(\"Distances!\"&ADDRESS(3,ROW(F3))&\":\"&ADDRESS(54,ROW(F3))),\">=\"&IF(selMiles=1,$E$4,$E$5),INDIRECT(\"Distances!\"&ADDRESS(3,ROW(F3))&\":\"&ADDRESS(54,ROW(F3))),\"<\"&IF(selMiles=1,$G$4,$G$5))","v":37811},{"$f":"SUMIFS(INDIRECT(\"'Migration 2011'!\"&ADDRESS(11,ROW(F10))&\":\"&ADDRESS(62,ROW(F10))),INDIRECT(\"Distances!\"&ADDRESS(3,ROW(F3))&\":\"&ADDRESS(54,ROW(F3))),\">\"&IF(selMiles=1,$G$4,$G$5))","v":6027},{"$f":"SUMIFS(INDIRECT(\"'Migration 2011'!\"&ADDRESS(ROW(F11),10)&\":\"&ADDRESS(ROW(F11),61)),INDIRECT(\"Distances!\"&ADDRESS(ROW(F3),3)&\":\"&ADDRESS(ROW(F3),54)),\"<\"&IF(selMiles=1,$E$4,$E$5))","v":63603},{"$f":"SUMIFS(INDIRECT(\"'Migration 2011'!\"&ADDRESS(ROW(F11),10)&\":\"&ADDRESS(ROW(F11),61)),INDIRECT(\"Distances!\"&ADDRESS(ROW(F3),3)&\":\"&ADDRESS(ROW(F3),54)),\">=\"&IF(selMiles=1,K$4,$E$5),INDIRECT(\"Distances!\"&ADDRESS(ROW(F3),3)&\":\"&ADDRESS(ROW(F3),54)),\"<\"&IF(selMiles=1,$G$4,$G$5))","v":45483},{"$f":"SUMIFS(INDIRECT(\"'Migration 2011'!\"&ADDRESS(ROW(F11),10)&\":\"&ADDRESS(ROW(F11),61)),INDIRECT(\"Distances!\"&ADDRESS(ROW(F3),3)&\":\"&ADDRESS(ROW(F3),54)),\">\"&IF(selMiles=1,$G$4,$G$5))","v":9209},{"$f":"SUMIFS(INDIRECT(\"'Migration 2012'!\"&ADDRESS(11,ROW(L10))&\":\"&ADDRESS(62,ROW(L10))),INDIRECT(\"Distances!\"&ADDRESS(3,ROW(L3))&\":\"&ADDRESS(54,ROW(L3))),\"<\"&IF(selMiles=1,$E$4,$E$5))","v":63031},{"$f":"SUMIFS(INDIRECT(\"'Migration 2012'!\"&ADDRESS(11,ROW(L10))&\":\"&ADDRESS(62,ROW(L10))),INDIRECT(\"Distances!\"&ADDRESS(3,ROW(L3))&\":\"&ADDRESS(54,ROW(L3))),\">=\"&IF(selMiles=1,$E$4,$E$5),INDIRECT(\"Distances!\"&ADDRESS(3,ROW(L3))&\":\"&ADDRESS(54,ROW(L3))),\"<\"&IF(selMiles=1,$G$4,$G$5))","v":40093},{"$f":"SUMIFS(INDIRECT(\"'Migration 2012'!\"&ADDRESS(11,ROW(L10))&\":\"&ADDRESS(62,ROW(L10))),INDIRECT(\"Distances!\"&ADDRESS(3,ROW(L3))&\":\"&ADDRESS(54,ROW(L3))),\">\"&IF(selMiles=1,$G$4,$G$5))","v":6094},{"$f":"SUMIFS(INDIRECT(\"'Migration 2012'!\"&ADDRESS(ROW(L11),10)&\":\"&ADDRESS(ROW(L11),61)),INDIRECT(\"Distances!\"&ADDRESS(ROW(L3),3)&\":\"&ADDRESS(ROW(L3),54)),\"<\"&IF(selMiles=1,$E$4,$E$5))","v":60986},{"$f":"SUMIFS(INDIRECT(\"'Migration 2012'!\"&ADDRESS(ROW(L11),10)&\":\"&ADDRESS(ROW(L11),61)),INDIRECT(\"Distances!\"&ADDRESS(ROW(L3),3)&\":\"&ADDRESS(ROW(L3),54)),\">=\"&IF(selMiles=1,Q$4,$E$5),INDIRECT(\"Distances!\"&ADDRESS(ROW(L3),3)&\":\"&ADDRESS(ROW(L3),54)),\"<\"&IF(selMiles=1,$G$4,$G$5))","v":38291},{"$f":"SUMIFS(INDIRECT(\"'Migration 2012'!\"&ADDRESS(ROW(L11),10)&\":\"&ADDRESS(ROW(L11),61)),INDIRECT(\"Distances!\"&ADDRESS(ROW(L3),3)&\":\"&ADDRESS(ROW(L3),54)),\">\"&IF(selMiles=1,$G$4,$G$5))","v":5942},{"$f":"HLOOKUP(selYear*10,$E$1:$V$59,ROW($A8)+selScroll,FALSE)","v":63031},{"$f":"HLOOKUP((selYear*10)+1,$E$1:$V$59,ROW($A8)+selScroll,FALSE)","v":40093},{"$f":"HLOOKUP((selYear*10)+2,$E$1:$V$59,ROW($A8)+selScroll,FALSE)","v":6094},{"$f":"HLOOKUP((selYear*10)+3,$E$1:$V$59,ROW($A8)+selScroll,FALSE)","v":60986},{"$f":"HLOOKUP((selYear*10)+4,$E$1:$V$59,ROW($A8)+selScroll,FALSE)","v":38291},{"$f":"HLOOKUP((selYear*10)+5,$E$1:$V$59,ROW($A8)+selScroll,FALSE)","v":5942},{"$f":"600000-W8-X8-Y8","v":490782},{"$f":"600000-Z8-AA8-AB8","v":494781},100000,null,{"$f":"INDEX($B$8:$B$59,ROW(A1)+selScroll)","v":"Alabama"},{"$f":"-50000","v":-50000},100000]
[null,{"$f":"Distances!B4","v":"Alaska"},{"$f":"Migration!W6","v":84068},{"$f":"Migration!V6","v":33415},0,27958,66890,0,14286,22059,0,28727,60501,0,14447,21681,0,26235,57890,0,13682,19758,0,26235,57890,0,13682,19758,{"$f":"600000-W9-X9-Y9","v":515875},{"$f":"600000-Z9-AA9-AB9","v":566560},100000,null,"Alaska",{"$f":"AH8+10000","v":-40000},{"$f":"AI8+100000","v":200000}]
[null,{"$f":"Distances!B5","v":"Arizona"},{"$f":"Migration!W7","v":206842},{"$f":"Migration!V7","v":232457},6117,159018,11921,4419,199509,19396,7444,187415,17186,4610,198972,20166,6391,184615,15890,6946,201759,25543,6391,184615,15890,6946,201759,25543,393104,365752,100000,null,"Arizona",-30000,{"$f":"AI9+100000","v":300000}]
[null,{"$f":"Distances!B6","v":"Arkansas"},{"$f":"Migration!W8","v":64967},{"$f":"Migration!V8","v":76948},45461,18756,47,54962,23189,1063,53610,23184,432,46742,23059,573,45965,18875,220,52212,23881,855,45965,18875,220,52212,23881,855,534940,523052,100000,null,"Arkansas",-20000,400000]
[null,{"$f":"Distances!B7","v":"California"},{"$f":"Migration!W9","v":566986},{"$f":"Migration!V9","v":493641},78594,315915,180656,54356,232812,158804,83349,301344,177857,59120,247823,162829,92120,307733,167652,56023,257159,182782,92120,307733,167652,56023,257159,182782,32495,104036,100000,null,"California",-10000,500000]
[null,{"$f":"Distances!B8","v":"Colorado"},{"$f":"Migration!W10","v":161530},{"$f":"Migration!V10","v":205060},16218,123329,1461,18999,165012,3229,20682,138991,950,21517,178755,2328,19496,140818,1216,23748,178776,3680,19496,140818,1216,23748,178776,3680,438470,393796,100000,null,"Colorado",0,600000]
[null,{"$f":"Distances!B9","v":"Connecticut"},{"$f":"Migration!W11","v":87023},{"$f":"Migration!V11","v":80311},50701,32462,7096,42176,28481,8703,47489,37112,8543,44250,20441,8916,46219,30191,10983,48223,26199,9117,46219,30191,10983,48223,26199,9117,512607,516461,100000,null,"Connecticut",0,700000]
[null,{"$f":"Distances!B10","v":"Delaware"},{"$f":"Migration!W12","v":25149},{"$f":"Migration!V12","v":34757},20199,8273,1583,24628,6121,964,19115,4997,2532,25871,6356,2693,19061,4497,1591,27525,3554,3734,19061,4497,1591,27525,3554,3734,574851,565187,100000,null,"Delaware",10000,800000]
[null,{"$f":"Distances!B11","v":"District of Columbia "},{"$f":"Migration!W13","v":59513},{"$f":"Migration!V13","v":53830},44565,7186,4301,37125,8438,5681,35830,8822,5292,34870,8059,5137,46170,7505,5838,36610,10210,7010,46170,7505,5838,36610,10210,7010,540487,546170,100000,null,"District of Columbia ",20000,900000]
[null,{"$f":"Distances!B12","v":"Florida"},{"$f":"Migration!W14","v":428325},{"$f":"Migration!V14","v":537148},138382,262227,38506,109355,344186,42316,133085,271888,38843,108949,364614,46645,118882,273449,40186,123167,392249,43370,118882,273449,40186,123167,392249,43370,167483,41214,100000,null,"Florida",30000,1000000]
[null,{"$f":"Distances!B13","v":"Georgia"},{"$f":"Migration!W15","v":252262},{"$f":"Migration!V15","v":277466},145388,83932,15879,142981,88556,18932,136634,85476,27029,152217,99033,21462,147877,84056,20561,148965,109576,20655,147877,84056,20561,148965,109576,20655,347506,320804,100000,null,"Georgia",40000,1100000]
[null,{"$f":"Distances!B14","v":"Hawaii"},{"$f":"Migration!W16","v":61509},{"$f":"Migration!V16","v":55145},0,0,49218,0,0,53581,0,0,61940,0,0,57780,0,0,61619,0,0,55481,0,0,61619,0,0,55481,538381,544519,100000,null,"Hawaii",50000,1200000]
[null,{"$f":"Distances!B15","v":"Idaho"},{"$f":"Migration!W17","v":55191},{"$f":"Migration!V17","v":59283},33345,16301,3476,34643,19089,2139,34937,19142,3765,36424,21064,3097,31045,20524,3622,38593,17147,3679,null,null,null,null,null,null,null,null,null,null,null,null,1300000]
[null,{"$f":"Distances!B16","v":"Illinois"},{"$f":"Migration!W18","v":277953},{"$f":"Migration!V18","v":208755},127087,149389,2745,95836,105135,5043,129667,136472,3493,99150,111666,7775,128374,149203,1397,92796,112840,5168,null,null,null,null,null,null,null,null,null,null,null,null,{"$f":"AI20+100000","v":1400000}]
[null,{"$f":"Distances!B17","v":"Indiana"},{"$f":"Migration!W19","v":144597},{"$f":"Migration!V19","v":134137},79130,50948,201,85633,41848,444,85641,57788,583,78398,48180,1428,88128,56038,552,86147,46791,1335]
[null,{"$f":"Distances!B18","v":"Iowa"},{"$f":"Migration!W20","v":73325},{"$f":"Migration!V20","v":75760},35864,30728,330,45686,25486,1534,42830,30889,797,39654,29485,1323,40817,32411,97,41601,32687,2258]
[null,{"$f":"Distances!B19","v":"Kansas"},{"$f":"Migration!W21","v":93134},{"$f":"Migration!V21","v":88284},40426,49762,605,43191,50690,1246,36035,57270,913,35852,47393,1170,36833,54945,1499,40265,47537,564]
[null,{"$f":"Distances!B20","v":"Kentucky"},{"$f":"Migration!W22","v":103004},{"$f":"Migration!V22","v":112787},61832,29000,2421,77422,36766,4434,67964,29695,1597,78471,30109,1643,68513,32312,2216,78914,30806,3237]
[null,{"$f":"Distances!B21","v":"Louisiana"},{"$f":"Migration!W23","v":95956},{"$f":"Migration!V23","v":91215},57931,29110,1199,58301,36354,3636,51721,32600,2272,58499,37450,3582,57095,36720,2200,50613,38700,2557]
[null,{"$f":"Distances!B22","v":"Maine"},{"$f":"Migration!W24","v":38574},{"$f":"Migration!V24","v":27523},13987,14379,3843,13529,11236,3197,12042,18221,3466,16504,15110,2269,15174,19579,3821,14517,10455,2589]
[null,{"$f":"Distances!B23","v":"Maryland"},{"$f":"Migration!W25","v":157664},{"$f":"Migration!V25","v":154983},103392,41176,15357,114760,34311,16025,103525,48035,13551,103703,36379,14676,103797,37378,16597,103191,37587,14499]
[null,{"$f":"Distances!B24","v":"Massachusetts"},{"$f":"Migration!W26","v":158156},{"$f":"Migration!V26","v":142577},70109,56625,19422,76237,44573,22437,76064,55373,15844,79011,48131,17101,81496,55111,23807,80273,44388,21972]
[null,{"$f":"Distances!B25","v":"Michigan"},{"$f":"Migration!W27","v":175733},{"$f":"Migration!V27","v":133981},68870,107787,1639,50972,63824,2785,65015,119416,2162,49952,85120,4994,68315,106534,1319,53670,78868,2225]
[null,{"$f":"Distances!B26","v":"Minnesota"},{"$f":"Migration!W28","v":115946},{"$f":"Migration!V28","v":101042},52362,51927,526,46052,43593,266,52474,49846,933,55569,44559,955,57928,57826,192,46685,53080,1411]
[null,{"$f":"Distances!B27","v":"Mississippi"},{"$f":"Migration!W29","v":66947},{"$f":"Migration!V29","v":73500},47056,20243,1234,45000,26159,1976,43546,23043,2035,42737,25320,772,44132,22100,715,45823,27141,617]
[null,{"$f":"Distances!B28","v":"Missouri"},{"$f":"Migration!W30","v":142754},{"$f":"Migration!V30","v":162930},78796,69089,391,77115,66680,2298,70451,66724,1330,80030,66495,3623,72405,68586,1763,84011,74619,5126]
[null,{"$f":"Distances!B29","v":"Montana"},{"$f":"Migration!W31","v":33832},{"$f":"Migration!V31","v":37690},3438,31619,813,2422,33073,146,2843,27670,691,2775,30665,466,4857,28795,180,3645,33167,878]
[null,{"$f":"Distances!B30","v":"Nebraska"},{"$f":"Migration!W32","v":48816},{"$f":"Migration!V32","v":43266},21817,21499,215,26612,24386,292,26834,25879,96,26810,24264,996,25720,21826,1270,22033,20442,791]
[null,{"$f":"Distances!B31","v":"Nevada"},{"$f":"Migration!W33","v":98882},{"$f":"Migration!V33","v":124285},37188,52662,19559,44287,40161,18731,51277,49758,14908,49099,44110,17289,41829,46110,10943,59187,48071,17264]
[null,{"$f":"Distances!B32","v":"New Hampshire"},{"$f":"Migration!W34","v":38696},{"$f":"Migration!V34","v":50484},23826,11316,3257,27705,8222,3496,25892,13894,3491,26059,9178,1763,26943,8683,3070,35181,12046,3332]
[null,{"$f":"Distances!B33","v":"New Jersey"},{"$f":"Migration!W35","v":219202},{"$f":"Migration!V35","v":130223},122085,57495,15636,83786,32603,13712,132925,67940,17654,86262,43043,15201,133138,69028,18958,89729,33401,9667]
[null,{"$f":"Distances!B34","v":"New Mexico"},{"$f":"Migration!W36","v":63921},{"$f":"Migration!V36","v":54693},12288,37718,796,12504,60010,1723,15593,45258,631,13789,47844,596,16000,47374,575,13724,40481,917]
[null,{"$f":"Distances!B35","v":"New York"},{"$f":"Migration!W37","v":405864},{"$f":"Migration!V37","v":270053},{"$f":"SUMIFS(INDIRECT(\"'Migration 2010'!\"&ADDRESS(11,ROW(A42))&\":\"&ADDRESS(62,ROW(A42))),INDIRECT(\"Distances!\"&ADDRESS(3,ROW(A35))&\":\"&ADDRESS(54,ROW(A35))),\"<\"&IF(selMiles=1,$E$4,$E$5))","v":162388},{"$f":"SUMIFS(INDIRECT(\"'Migration 2010'!\"&ADDRESS(11,ROW(A42))&\":\"&ADDRESS(62,ROW(A42))),INDIRECT(\"Distances!\"&ADDRESS(3,ROW(A35))&\":\"&ADDRESS(54,ROW(A35))),\">=\"&IF(selMiles=1,$E$4,$E$5),INDIRECT(\"Distances!\"&ADDRESS(3,ROW(A35))&\":\"&ADDRESS(54,ROW(A35))),\"<\"&IF(selMiles=1,$G$4,$G$5))","v":168289},{"$f":"SUMIFS(INDIRECT(\"'Migration 2010'!\"&ADDRESS(11,ROW(A42))&\":\"&ADDRESS(62,ROW(A42))),INDIRECT(\"Distances!\"&ADDRESS(3,ROW(A35))&\":\"&ADDRESS(54,ROW(A35))),\">\"&IF(selMiles=1,$G$4,$G$5))","v":37230},{"$f":"SUMIFS(INDIRECT(\"'Migration 2010'!\"&ADDRESS(ROW(A43),10)&\":\"&ADDRESS(ROW(A43),61)),INDIRECT(\"Distances!\"&ADDRESS(ROW(A35),3)&\":\"&ADDRESS(ROW(A35),54)),\"<\"&IF(selMiles=1,$E$4,$E$5))","v":117138},{"$f":"SUMIFS(INDIRECT(\"'Migration 2010'!\"&ADDRESS(ROW(A43),10)&\":\"&ADDRESS(ROW(A43),61)),INDIRECT(\"Distances!\"&ADDRESS(ROW(A35),3)&\":\"&ADDRESS(ROW(A35),54)),\">=\"&IF(selMiles=1,E$4,$E$5),INDIRECT(\"Distances!\"&ADDRESS(ROW(A35),3)&\":\"&ADDRESS(ROW(A35),54)),\"<\"&IF(selMiles=1,$G$4,$G$5))","v":118812},{"$f":"SUMIFS(INDIRECT(\"'Migration 2010'!\"&ADDRESS(ROW(A43),10)&\":\"&ADDRESS(ROW(A43),61)),INDIRECT(\"Distances!\"&ADDRESS(ROW(A35),3)&\":\"&ADDRESS(ROW(A35),54)),\">\"&IF(selMiles=1,$G$4,$G$5))","v":40217},{"$f":"SUMIFS(INDIRECT(\"'Migration 2011'!\"&ADDRESS(11,ROW(F42))&\":\"&ADDRESS(62,ROW(F42))),INDIRECT(\"Distances!\"&ADDRESS(3,ROW(F35))&\":\"&ADDRESS(54,ROW(F35))),\"<\"&IF(selMiles=1,$E$4,$E$5))","v":147387},{"$f":"SUMIFS(INDIRECT(\"'Migration 2011'!\"&ADDRESS(11,ROW(F42))&\":\"&ADDRESS(62,ROW(F42))),INDIRECT(\"Distances!\"&ADDRESS(3,ROW(F35))&\":\"&ADDRESS(54,ROW(F35))),\">=\"&IF(selMiles=1,$E$4,$E$5),INDIRECT(\"Distances!\"&ADDRESS(3,ROW(F35))&\":\"&ADDRESS(54,ROW(F35))),\"<\"&IF(selMiles=1,$G$4,$G$5))","v":189830},{"$f":"SUMIFS(INDIRECT(\"'Migration 2011'!\"&ADDRESS(11,ROW(F42))&\":\"&ADDRESS(62,ROW(F42))),INDIRECT(\"Distances!\"&ADDRESS(3,ROW(F35))&\":\"&ADDRESS(54,ROW(F35))),\">\"&IF(selMiles=1,$G$4,$G$5))","v":43198},{"$f":"SUMIFS(INDIRECT(\"'Migration 2011'!\"&ADDRESS(ROW(F43),10)&\":\"&ADDRESS(ROW(F43),61)),INDIRECT(\"Distances!\"&ADDRESS(ROW(F35),3)&\":\"&ADDRESS(ROW(F35),54)),\"<\"&IF(selMiles=1,$E$4,$E$5))","v":129640},{"$f":"SUMIFS(INDIRECT(\"'Migration 2011'!\"&ADDRESS(ROW(F43),10)&\":\"&ADDRESS(ROW(F43),61)),INDIRECT(\"Distances!\"&ADDRESS(ROW(F35),3)&\":\"&ADDRESS(ROW(F35),54)),\">=\"&IF(selMiles=1,K$4,$E$5),INDIRECT(\"Distances!\"&ADDRESS(ROW(F35),3)&\":\"&ADDRESS(ROW(F35),54)),\"<\"&IF(selMiles=1,$G$4,$G$5))","v":120049},{"$f":"SUMIFS(INDIRECT(\"'Migration 2011'!\"&ADDRESS(ROW(F43),10)&\":\"&ADDRESS(ROW(F43),61)),INDIRECT(\"Distances!\"&ADDRESS(ROW(F35),3)&\":\"&ADDRESS(ROW(F35),54)),\">\"&IF(selMiles=1,$G$4,$G$5))","v":43102},{"$f":"SUMIFS(INDIRECT(\"'Migration 2012'!\"&ADDRESS(11,ROW(L42))&\":\"&ADDRESS(62,ROW(L42))),INDIRECT(\"Distances!\"&ADDRESS(3,ROW(L35))&\":\"&ADDRESS(54,ROW(L35))),\"<\"&IF(selMiles=1,$E$4,$E$5))","v":164257},{"$f":"SUMIFS(INDIRECT(\"'Migration 2012'!\"&ADDRESS(11,ROW(L42))&\":\"&ADDRESS(62,ROW(L42))),INDIRECT(\"Distances!\"&ADDRESS(3,ROW(L35))&\":\"&ADDRESS(54,ROW(L35))),\">=\"&IF(selMiles=1,$E$4,$E$5),INDIRECT(\"Distances!\"&ADDRESS(3,ROW(L35))&\":\"&ADDRESS(54,ROW(L35))),\"<\"&IF(selMiles=1,$G$4,$G$5))","v":189740},{"$f":"SUMIFS(INDIRECT(\"'Migration 2012'!\"&ADDRESS(11,ROW(L42))&\":\"&ADDRESS(62,ROW(L42))),INDIRECT(\"Distances!\"&ADDRESS(3,ROW(L35))&\":\"&ADDRESS(54,ROW(L35))),\">\"&IF(selMiles=1,$G$4,$G$5))","v":54181},{"$f":"SUMIFS(INDIRECT(\"'Migration 2012'!\"&ADDRESS(ROW(L43),10)&\":\"&ADDRESS(ROW(L43),61)),INDIRECT(\"Distances!\"&ADDRESS(ROW(L35),3)&\":\"&ADDRESS(ROW(L35),54)),\"<\"&IF(selMiles=1,$E$4,$E$5))","v":124901},{"$f":"SUMIFS(INDIRECT(\"'Migration 2012'!\"&ADDRESS(ROW(L43),10)&\":\"&ADDRESS(ROW(L43),61)),INDIRECT(\"Distances!\"&ADDRESS(ROW(L35),3)&\":\"&ADDRESS(ROW(L35),54)),\">=\"&IF(selMiles=1,Q$4,$E$5),INDIRECT(\"Distances!\"&ADDRESS(ROW(L35),3)&\":\"&ADDRESS(ROW(L35),54)),\"<\"&IF(selMiles=1,$G$4,$G$5))","v":113228},{"$f":"SUMIFS(INDIRECT(\"'Migration 2012'!\"&ADDRESS(ROW(L43),10)&\":\"&ADDRESS(ROW(L43),61)),INDIRECT(\"Distances!\"&ADDRESS(ROW(L35),3)&\":\"&ADDRESS(ROW(L35),54)),\">\"&IF(selMiles=1,$G$4,$G$5))","v":39245}]
[null,{"$f":"Distances!B36","v":"North Carolina"},{"$f":"Migration!W38","v":238663},{"$f":"Migration!V38","v":273149},122414,68682,16075,156151,83079,25976,138943,68354,18050,153672,85100,27363,136464,81327,21510,163748,85310,26116]
[null,{"$f":"Distances!B37","v":"North Dakota"},{"$f":"Migration!W39","v":23959},{"$f":"Migration!V39","v":38213},10346,14035,69,13935,16112,53,10163,16368,32,13894,18478,214,9232,14727,0,18326,19727,160]
[null,{"$f":"Distances!B38","v":"Ohio"},{"$f":"Migration!W40","v":199202},{"$f":"Migration!V40","v":196391},107721,67142,13219,99418,61457,13898,117690,72961,15398,104412,73955,15018,108016,74058,17456,110071,72029,15694]
[null,{"$f":"Distances!B39","v":"Oklahoma"},{"$f":"Migration!W41","v":102572},{"$f":"Migration!V41","v":108972},47017,42087,1512,49630,54711,2379,36745,42963,1380,52057,55544,1382,53618,47524,1430,48042,59462,1468]
[null,{"$f":"Distances!B40","v":"Oregon"},{"$f":"Migration!W42","v":108182},{"$f":"Migration!V42","v":118925},52979,30017,17189,63917,33950,19654,56194,32790,20811,69534,36977,21399,56313,37627,14242,64114,37202,17761]
[null,{"$f":"Distances!B41","v":"Pennsylvania"},{"$f":"Migration!W43","v":237156},{"$f":"Migration!V43","v":215500},128286,66092,16948,155792,65866,20197,136128,66563,14414,156833,61680,18501,143890,77700,17879,152991,56701,13655]
[null,{"$f":"Distances!B42","v":"Rhode Island"},{"$f":"Migration!W44","v":30498},{"$f":"Migration!V44","v":33446},15632,8040,1960,23114,6469,2752,17843,11930,1782,18200,6092,2770,17913,9880,3329,23726,7026,2810]
[null,{"$f":"Distances!B43","v":"South Carolina"},{"$f":"Migration!W45","v":127418},{"$f":"Migration!V45","v":156705},73585,34286,9807,89256,50784,12670,80679,31016,9734,91605,54065,14140,82628,35783,9011,92131,54676,10968]
[null,{"$f":"Distances!B44","v":"South Dakota"},{"$f":"Migration!W46","v":22534},{"$f":"Migration!V46","v":26051},11660,15988,267,14441,11261,75,14926,14457,113,16344,11162,0,10946,11129,459,13035,13008,142]
[null,{"$f":"Distances!B45","v":"Tennessee"},{"$f":"Migration!W47","v":163843},{"$f":"Migration!V47","v":177098},92057,49700,1408,98012,59768,1998,98830,52271,3366,120903,47587,3562,104629,54258,4971,112835,60765,4215]
[null,{"$f":"Distances!B46","v":"Texas"},{"$f":"Migration!W48","v":402187},{"$f":"Migration!V48","v":507752},73834,326990,11794,77142,394085,19511,81897,317443,5943,67324,434626,18001,68993,328406,5148,75815,420138,16234]
[null,{"$f":"Distances!B47","v":"Utah"},{"$f":"Migration!W49","v":82165},{"$f":"Migration!V49","v":87870},23053,51145,2225,20801,55237,2125,16955,53567,2689,19845,61994,3378,20972,57100,4093,19829,63683,4597]
[null,{"$f":"Distances!B48","v":"Vermont"},{"$f":"Migration!W50","v":20056},{"$f":"Migration!V50","v":24431},8763,6144,3473,14424,6520,1585,11038,5904,1230,13019,5134,2329,11272,7204,1580,16587,6284,1560]
[null,{"$f":"Distances!B49","v":"Virginia"},{"$f":"Migration!W51","v":238540},{"$f":"Migration!V51","v":250653},126469,77502,28423,144466,85199,31148,123074,79409,27821,137340,85257,35755,125219,89803,24202,143499,79835,27835]
[null,{"$f":"Distances!B50","v":"Washington"},{"$f":"Migration!W52","v":180462},{"$f":"Migration!V52","v":215494},33669,90522,41971,38896,107049,45839,30853,109051,50781,40063,111284,58243,31622,102186,46654,36129,115694,64696]
[null,{"$f":"Distances!B51","v":"West Virginia"},{"$f":"Migration!W53","v":47425},{"$f":"Migration!V53","v":47125},35471,11614,2405,31138,6350,2303,34226,10288,1456,37946,10107,2695,35191,9724,2518,37817,7040,2347]
[null,{"$f":"Distances!B52","v":"Wisconsin"},{"$f":"Migration!W54","v":97724},{"$f":"Migration!V54","v":99192},51425,58489,1911,53502,38215,1869,49311,55889,399,61783,46116,2268,47941,49282,1490,57800,40823,1544]
[null,{"$f":"Distances!B53","v":"Wyoming"},{"$f":"Migration!W55","v":32228},{"$f":"Migration!V55","v":31149},9641,18527,18,10525,17496,25,6697,25280,14,12185,18466,0,10174,22004,50,10642,20507,16]
[null,{"$f":"Distances!B54","v":"Puerto Rico"},{"$f":"Migration!W56","v":74500},{"$f":"Migration!V56","v":20044},0,45068,14817,0,24801,6931,0,59280,16938,0,20014,2635,0,56444,18056,0,16328,3716]

{"sheet":"Migration 2010","index":10,"n_rows":120,"n_cols":114,"rows_kept":120,"cut":false,"hidden":true,"merged":[[6,2,7,3],[6,4,7,5],[6,6,7,7]]}
[]
[null,"Table 3  State-to-State Migration Flows*: 2010"]
[null,"Dataset: 2010 American Community Survey 1-Year Estimates"]
[null,"Universe: Population 1 year and over"]
[null,"Source: http://www.census.gov/hhes/migration/files/acs/st-to-st/State_to_State_Migrations_Table_2010.xls"]
[null,null,null,null,null,null,null,null,"ESTIMATES",null,null,null,null,null,null,null,null,null,null,null,null,null,null,null,null,null,null,null,null,null,null,null,null,null,null,null,null,null,null,null,null,null,null,null,null,null,null,null,null,null,null,null,null,null,null,null,null,null,null,null,null,"Margin of Error"]
[null,"Current residence in --","Population 1 year and over",null,"Same residence 1 year ago",null,"Different residence, same state 1 year ago",null,1,2,3,4,5,6,7,8,9,10,11,12,13,14,15,16,17,18,19,20,21,22,23,24,25,26,27,28,29,30,31,32,33,34,35,36,37,38,39,40,41,42,43,44,45,46,47,48,49,50,51,52,53,1,2,3,4,5,6,7,8,9,10,11,12,13,14,15,16,17,18,19,20,21,22,23,24,25,26,27,28,29,30,31,32,33,34,35,36,37,38,39,40,41,42,43,44,45,46,47,48,49,50,51,52,53]
[null,null,null,null,null,null,null,null,"State of Residence Last year (Estimate)",null,null,null,null,null,null,null,null,null,null,null,null,null,null,null,null,null,null,null,null,null,null,null,null,null,null,null,null,null,null,null,null,null,null,null,null,null,null,null,null,null,null,null,null,null,null,null,null,null,null,null,null,"State of Residence Last year (Margin of Error)"]
[null,null,"Estimate","MOE","Estimate","MOE","Estimate","MOE","TOTAL","Alabama","Alaska","Arizona","Arkansas","California","Colorado","Connecticut","Delaware","District of Columbia ","Florida","Georgia","Hawaii","Idaho","Illinois","Indiana","Iowa","Kansas","Kentucky","Louisiana","Maine","Maryland","Massachusetts","Michigan","Minnesota","Mississippi","Missouri","Montana","Nebraska","Nevada","New Hampshire","New Jersey","New Mexico","New York","North Carolina","North Dakota","Ohio","Oklahoma","Oregon","Pennsylvania","Rhode Island","South Carolina","South Dakota","Tennessee","Texas","Utah","Vermont","Virginia","Washington","West Virginia","Wisconsin","Wyoming","Puerto Rico","TOTAL","Alabama","Alaska","Arizona","Arkansas","California","Colorado","Connecticut","Delaware","District of Columbia ","Florida","Georgia","Hawaii","Idaho","Illinois","Indiana","Iowa","Kansas","Kentucky","Louisiana","Maine","Maryland","Massachusetts","Michigan","Minnesota","Mississippi","Missouri","Montana","Nebraska","Nevada","New Hampshire","New Jersey","New Mexico","New York","North Carolina","North Dakota","Ohio","Oklahoma","Oregon","Pennsylvania","Rhode Island","South Carolina","South Dakota","Tennessee","Texas","Utah","Vermont","Virginia","Washington","West Virginia","Wisconsin","Wyoming","Puerto Rico"]
[null,"United States",305628607,29823,258552348,236128,38582885,213239,{"$f":"HLOOKUP(I$7,$I$66:$DJ$120,ROWS($A$10:$A10)+2,FALSE)","v":6743229},{"$f":"HLOOKUP(J$7,$I$66:$DJ$120,ROWS($A$10:$A10)+2,FALSE)","v":99221},{"$f":"HLOOKUP(K$7,$I$66:$DJ$120,ROWS($A$10:$A10)+2,FALSE)","v":94692},{"$f":"HLOOKUP(L$7,$I$66:$DJ$120,ROWS($A$10:$A10)+2,FALSE)","v":176768},{"$f":"HLOOKUP(M$7,$I$66:$DJ$120,ROWS($A$10:$A10)+2,FALSE)","v":64264},{"$f":"HLOOKUP(N$7,$I$66:$DJ$120,ROWS($A$10:$A10)+2,FALSE)","v":573988},{"$f":"HLOOKUP(O$7,$I$66:$DJ$120,ROWS($A$10:$A10)+2,FALSE)","v":140620},{"$f":"HLOOKUP(P$7,$I$66:$DJ$120,ROWS($A$10:$A10)+2,FALSE)","v":89360},{"$f":"HLOOKUP(Q$7,$I$66:$DJ$120,ROWS($A$10:$A10)+2,FALSE)","v":30055},{"$f":"HLOOKUP(R$7,$I$66:$DJ$120,ROWS($A$10:$A10)+2,FALSE)","v":56052},{"$f":"HLOOKUP(S$7,$I$66:$DJ$120,ROWS($A$10:$A10)+2,FALSE)","v":427853},{"$f":"HLOOKUP(T$7,$I$66:$DJ$120,ROWS($A$10:$A10)+2,FALSE)","v":244992},{"$f":"HLOOKUP(U$7,$I$66:$DJ$120,ROWS($A$10:$A10)+2,FALSE)","v":49218},{"$f":"HLOOKUP(V$7,$I$66:$DJ$120,ROWS($A$10:$A10)+2,FALSE)","v":53122},{"$f":"HLOOKUP(W$7,$I$66:$DJ$120,ROWS($A$10:$A10)+2,FALSE)","v":277579},{"$f":"HLOOKUP(X$7,$I$66:$DJ$120,ROWS($A$10:$A10)+2,FALSE)","v":130170},{"$f":"HLOOKUP(Y$7,$I$66:$DJ$120,ROWS($A$10:$A10)+2,FALSE)","v":66922},{"$f":"HLOOKUP(Z$7,$I$66:$DJ$120,ROWS($A$10:$A10)+2,FALSE)","v":90681},{"$f":"HLOOKUP(AA$7,$I$66:$DJ$120,ROWS($A$10:$A10)+2,FALSE)","v":92999},{"$f":"HLOOKUP(AB$7,$I$66:$DJ$120,ROWS($A$10:$A10)+2,FALSE)","v":88131},{"$f":"HLOOKUP(AC$7,$I$66:$DJ$120,ROWS($A$10:$A10)+2,FALSE)","v":32209},{"$f":"HLOOKUP(AD$7,$I$66:$DJ$120,ROWS($A$10:$A10)+2,FALSE)","v":159866},{"$f":"HLOOKUP(AE$7,$I$66:$DJ$120,ROWS($A$10:$A10)+2,FALSE)","v":144152},{"$f":"HLOOKUP(AF$7,$I$66:$DJ$120,ROWS($A$10:$A10)+2,FALSE)","v":178207},{"$f":"HLOOKUP(AG$7,$I$66:$DJ$120,ROWS($A$10:$A10)+2,FALSE)","v":104765},{"$f":"HLOOKUP(AH$7,$I$66:$DJ$120,ROWS($A$10:$A10)+2,FALSE)","v":68363},{"$f":"HLOOKUP(AI$7,$I$66:$DJ$120,ROWS($A$10:$A10)+2,FALSE)","v":148055},{"$f":"HLOOKUP(AJ$7,$I$66:$DJ$120,ROWS($A$10:$A10)+2,FALSE)","v":35870},{"$f":"HLOOKUP(AK$7,$I$66:$DJ$120,ROWS($A$10:$A10)+2,FALSE)","v":43531},{"$f":"HLOOKUP(AL$7,$I$66:$DJ$120,ROWS($A$10:$A10)+2,FALSE)","v":109409},{"$f":"HLOOKUP(AM$7,$I$66:$DJ$120,ROWS($A$10:$A10)+2,FALSE)","v":38399},{"$f":"HLOOKUP(AN$7,$I$66:$DJ$120,ROWS($A$10:$A10)+2,FALSE)","v":193972},{"$f":"HLOOKUP(AO$7,$I$66:$DJ$120,ROWS($A$10:$A10)+2,FALSE)","v":50438},{"$f":"HLOOKUP(AP$7,$I$66:$DJ$120,ROWS($A$10:$A10)+2,FALSE)","v":363139},{"$f":"HLOOKUP(AQ$7,$I$66:$DJ$120,ROWS($A$10:$A10)+2,FALSE)","v":207025},{"$f":"HLOOKUP(AR$7,$I$66:$DJ$120,ROWS($A$10:$A10)+2,FALSE)","v":24450},{"$f":"HLOOKUP(AS$7,$I$66:$DJ$120,ROWS($A$10:$A10)+2,FALSE)","v":188013},{"$f":"HLOOKUP(AT$7,$I$66:$DJ$120,ROWS($A$10:$A10)+2,FALSE)","v":90616},{"$f":"HLOOKUP(AU$7,$I$66:$DJ$120,ROWS($A$10:$A10)+2,FALSE)","v":100185},{"$f":"HLOOKUP(AV$7,$I$66:$DJ$120,ROWS($A$10:$A10)+2,FALSE)","v":209810},{"$f":"HLOOKUP(AW$7,$I$66:$DJ$120,ROWS($A$10:$A10)+2,FALSE)","v":24948},{"$f":"HLOOKUP(AX$7,$I$66:$DJ$120,ROWS($A$10:$A10)+2,FALSE)","v":117569},{"$f":"HLOOKUP(AY$7,$I$66:$DJ$120,ROWS($A$10:$A10)+2,FALSE)","v":27915},{"$f":"HLOOKUP(AZ$7,$I$66:$DJ$120,ROWS($A$10:$A10)+2,FALSE)","v":143135},{"$f":"HLOOKUP(BA$7,$I$66:$DJ$120,ROWS($A$10:$A10)+2,FALSE)","v":411641},{"$f":"HLOOKUP(BB$7,$I$66:$DJ$120,ROWS($A$10:$A10)+2,FALSE)","v":75541},{"$f":"HLOOKUP(BC$7,$I$66:$DJ$120,ROWS($A$10:$A10)+2,FALSE)","v":18380},{"$f":"HLOOKUP(BD$7,$I$66:$DJ$120,ROWS($A$10:$A10)+2,FALSE)","v":232002},{"$f":"HLOOKUP(BE$7,$I$66:$DJ$120,ROWS($A$10:$A10)+2,FALSE)","v":166162},{"$f":"HLOOKUP(BF$7,$I$66:$DJ$120,ROWS($A$10:$A10)+2,FALSE)","v":49349},{"$f":"HLOOKUP(BG$7,$I$66:$DJ$120,ROWS($A$10:$A10)+2,FALSE)","v":111240},{"$f":"HLOOKUP(BH$7,$I$66:$DJ$120,ROWS($A$10:$A10)+2,FALSE)","v":28186},{"$f":"HLOOKUP(BI$7,$I$66:$DJ$120,ROWS($A$10:$A10)+2,FALSE)","v":59885},{"$f":"HLOOKUP(BJ$7+0.5,$I$66:$DJ$120,ROWS($A$10:$A10)+2,FALSE)","v":69387},{"$f":"HLOOKUP(BK$7+0.5,$I$66:$DJ$120,ROWS($A$10:$A10)+2,FALSE)","v":8532},{"$f":"HLOOKUP(BL$7+0.5,$I$66:$DJ$120,ROWS($A$10:$A10)+2,FALSE)","v":9780},{"$f":"HLOOKUP(BM$7+0.5,$I$66:$DJ$120,ROWS($A$10:$A10)+2,FALSE)","v":9764},{"$f":"HLOOKUP(BN$7+0.5,$I$66:$DJ$120,ROWS($A$10:$A10)+2,FALSE)","v":6502},{"$f":"HLOOKUP(BO$7+0.5,$I$66:$DJ$120,ROWS($A$10:$A10)+2,FALSE)","v":20898},{"$f":"HLOOKUP(BP$7+0.5,$I$66:$DJ$120,ROWS($A$10:$A10)+2,FALSE)","v":8392},{"$f":"HLOOKUP(BQ$7+0.5,$I$66:$DJ$120,ROWS($A$10:$A10)+2,FALSE)","v":8104},{"$f":"HLOOKUP(BR$7+0.5,$I$66:$DJ$120,ROWS($A$10:$A10)+2,FALSE)","v":4817},{"$f":"HLOOKUP(BS$7+0.5,$I$66:$DJ$120,ROWS($A$10:$A10)+2,FALSE)","v":5274},{"$f":"HLOOKUP(BT$7+0.5,$I$66:$DJ$120,ROWS($A$10:$A10)+2,FALSE)","v":16117},{"$f":"HLOOKUP(BU$7+0.5,$I$66:$DJ$120,ROWS($A$10:$A10)+2,FALSE)","v":13712},{"$f":"HLOOKUP(BV$7+0.5,$I$66:$DJ$120,ROWS($A$10:$A10)+2,FALSE)","v":5580},{"$f":"HLOOKUP(BW$7+0.5,$I$66:$DJ$120,ROWS($A$10:$A10)+2,FALSE)","v":6197},{"$f":"HLOOKUP(BX$7+0.5,$I$66:$DJ$120,ROWS($A$10:$A10)+2,FALSE)","v":14177},{"$f":"HLOOKUP(BY$7+0.5,$I$66:$DJ$120,ROWS($A$10:$A10)+2,FALSE)","v":9685},{"$f":"HLOOKUP(BZ$7+0.5,$I$66:$DJ$120,ROWS($A$10:$A10)+2,FALSE)","v":5441},{"$f":"HLOOKUP(CA$7+0.5,$I$66:$DJ$120,ROWS($A$10:$A10)+2,FALSE)","v":7300},{"$f":"HLOOKUP(CB$7+0.5,$I$66:$DJ$120,ROWS($A$10:$A10)+2,FALSE)","v":8240},{"$f":"HLOOKUP(CC$7+0.5,$I$66:$DJ$120,ROWS($A$10:$A10)+2,FALSE)","v":8540},{"$f":"HLOOKUP(CD$7+0.5,$I$66:$DJ$120,ROWS($A$10:$A10)+2,FALSE)","v":4475},{"$f":"HLOOKUP(CE$7+0.5,$I$66:$DJ$120,ROWS($A$10:$A10)+2,FALSE)","v":9741},{"$f":"HLOOKUP(CF$7+0.5,$I$66:$DJ$120,ROWS($A$10:$A10)+2,FALSE)","v":8102},{"$f":"HLOOKUP(CG$7+0.5,$I$66:$DJ$120,ROWS($A$10:$A10)+2,FALSE)","v":11238},{"$f":"HLOOKUP(CH$7+0.5,$I$66:$DJ$120,ROWS($A$10:$A10)+2,FALSE)","v":7734},{"$f":"HLOOKUP(CI$7+0.5,$I$66:$DJ$120,ROWS($A$10:$A10)+2,FALSE)","v":7286},{"$f":"HLOOKUP(CJ$7+0.5,$I$66:$DJ$120,ROWS($A$10:$A10)+2,FALSE)","v":11141},{"$f":"HLOOKUP(CK$7+0.5,$I$66:$DJ$120,ROWS($A$10:$A10)+2,FALSE)","v":4482},{"$f":"HLOOKUP(CL$7+0.5,$I$66:$DJ$120,ROWS($A$10:$A10)+2,FALSE)","v":5996},{"$f":"HLOOKUP(CM$7+0.5,$I$66:$DJ$120,ROWS($A$10:$A10)+2,FALSE)","v":10422},{"$f":"HLOOKUP(CN$7+0.5,$I$66:$DJ$120,ROWS($A$10:$A10)+2,FALSE)","v":4262},{"$f":"HLOOKUP(CO$7+0.5,$I$66:$DJ$120,ROWS($A$10:$A10)+2,FALSE)","v":11560},{"$f":"HLOOKUP(CP$7+0.5,$I$66:$DJ$120,ROWS($A$10:$A10)+2,FALSE)","v":5032},{"$f":"HLOOKUP(CQ$7+0.5,$I$66:$DJ$120,ROWS($A$10:$A10)+2,FALSE)","v":16245},{"$f":"HLOOKUP(CR$7+0.5,$I$66:$DJ$120,ROWS($A$10:$A10)+2,FALSE)","v":11068},{"$f":"HLOOKUP(CS$7+0.5,$I$66:$DJ$120,ROWS($A$10:$A10)+2,FALSE)","v":3757},{"$f":"HLOOKUP(CT$7+0.5,$I$66:$DJ$120,ROWS($A$10:$A10)+2,FALSE)","v":11207},{"$f":"HLOOKUP(CU$7+0.5,$I$66:$DJ$120,ROWS($A$10:$A10)+2,FALSE)","v":7414},{"$f":"HLOOKUP(CV$7+0.5,$I$66:$DJ$120,ROWS($A$10:$A10)+2,FALSE)","v":8825},{"$f":"HLOOKUP(CW$7+0.5,$I$66:$DJ$120,ROWS($A$10:$A10)+2,FALSE)","v":10357},{"$f":"HLOOKUP(CX$7+0.5,$I$66:$DJ$120,ROWS($A$10:$A10)+2,FALSE)","v":3127},{"$f":"HLOOKUP(CY$7+0.5,$I$66:$DJ$120,ROWS($A$10:$A10)+2,FALSE)","v":9315},{"$f":"HLOOKUP(CZ$7+0.5,$I$66:$DJ$120,ROWS($A$10:$A10)+2,FALSE)","v":3665},{"$f":"HLOOKUP(DA$7+0.5,$I$66:$DJ$120,ROWS($A$10:$A10)+2,FALSE)","v":9159},{"$f":"HLOOKUP(DB$7+0.5,$I$66:$DJ$120,ROWS($A$10:$A10)+2,FALSE)","v":16805},{"$f":"HLOOKUP(DC$7+0.5,$I$66:$DJ$120,ROWS($A$10:$A10)+2,FALSE)","v":7183},{"$f":"HLOOKUP(DD$7+0.5,$I$66:$DJ$120,ROWS($A$10:$A10)+2,FALSE)","v":3009},{"$f":"HLOOKUP(DE$7+0.5,$I$66:$DJ$120,ROWS($A$10:$A10)+2,FALSE)","v":11248},{"$f":"HLOOKUP(DF$7+0.5,$I$66:$DJ$120,ROWS($A$10:$A10)+2,FALSE)","v":10010},{"$f":"HLOOKUP(DG$7+0.5,$I$66:$DJ$120,ROWS($A$10:$A10)+2,FALSE)","v":5605},{"$f":"HLOOKUP(DH$7+0.5,$I$66:$DJ$120,ROWS($A$10:$A10)+2,FALSE)","v":9166},{"$f":"HLOOKUP(DI$7+0.5,$I$66:$DJ$120,ROWS($A$10:$A10)+2,FALSE)","v":3185},{"$f":"HLOOKUP(DJ$7+0.5,$I$66:$DJ$120,ROWS($A$10:$A10)+2,FALSE)","v":6923}]
[null,"Alabama",4729509,3716,3987155,21708,620465,21448,{"$f":"HLOOKUP(I$7,$I$66:$DJ$120,ROWS($A$10:$A11)+2,FALSE)","v":108723},{"$f":"HLOOKUP(J$7,$I$66:$DJ$120,ROWS($A$10:$A11)+2,FALSE)","v":"N/A"},{"$f":"HLOOKUP(K$7,$I$66:$DJ$120,ROWS($A$10:$A11)+2,FALSE)","v":3013},{"$f":"HLOOKUP(L$7,$I$66:$DJ$120,ROWS($A$10:$A11)+2,FALSE)","v":676},{"$f":"HLOOKUP(M$7,$I$66:$DJ$120,ROWS($A$10:$A11)+2,FALSE)","v":1481},{"$f":"HLOOKUP(N$7,$I$66:$DJ$120,ROWS($A$10:$A11)+2,FALSE)","v":3827},{"$f":"HLOOKUP(O$7,$I$66:$DJ$120,ROWS($A$10:$A11)+2,FALSE)","v":1278},{"$f":"HLOOKUP(P$7,$I$66:$DJ$120,ROWS($A$10:$A11)+2,FALSE)","v":454},{"$f":"HLOOKUP(Q$7,$I$66:$DJ$120,ROWS($A$10:$A11)+2,FALSE)","v":811},{"$f":"HLOOKUP(R$7,$I$66:$DJ$120,ROWS($A$10:$A11)+2,FALSE)","v":211},{"$f":"HLOOKUP(S$7,$I$66:$DJ$120,ROWS($A$10:$A11)+2,FALSE)","v":15062},{"$f":"HLOOKUP(T$7,$I$66:$DJ$120,ROWS($A$10:$A11)+2,FALSE)","v":21644},{"$f":"HLOOKUP(U$7,$I$66:$DJ$120,ROWS($A$10:$A11)+2,FALSE)","v":267},{"$f":"HLOOKUP(V$7,$I$66:$DJ$120,ROWS($A$10:$A11)+2,FALSE)","v":304},{"$f":"HLOOKUP(W$7,$I$66:$DJ$120,ROWS($A$10:$A11)+2,FALSE)","v":2503},{"$f":"HLOOKUP(X$7,$I$66:$DJ$120,ROWS($A$10:$A11)+2,FALSE)","v":3945},{"$f":"HLOOKUP(Y$7,$I$66:$DJ$120,ROWS($A$10:$A11)+2,FALSE)","v":669},{"$f":"HLOOKUP(Z$7,$I$66:$DJ$120,ROWS($A$10:$A11)+2,FALSE)","v":649},{"$f":"HLOOKUP(AA$7,$I$66:$DJ$120,ROWS($A$10:$A11)+2,FALSE)","v":1967},{"$f":"HLOOKUP(AB$7,$I$66:$DJ$120,ROWS($A$10:$A11)+2,FALSE)","v":1901},{"$f":"HLOOKUP(AC$7,$I$66:$DJ$120,ROWS($A$10:$A11)+2,FALSE)","v":97},{"$f":"HLOOKUP(AD$7,$I$66:$DJ$120,ROWS($A$10:$A11)+2,FALSE)","v":716},{"$f":"HLOOKUP(AE$7,$I$66:$DJ$120,ROWS($A$10:$A11)+2,FALSE)","v":435},{"$f":"HLOOKUP(AF$7,$I$66:$DJ$120,ROWS($A$10:$A11)+2,FALSE)","v":2334},{"$f":"HLOOKUP(AG$7,$I$66:$DJ$120,ROWS($A$10:$A11)+2,FALSE)","v":386},{"$f":"HLOOKUP(AH$7,$I$66:$DJ$120,ROWS($A$10:$A11)+2,FALSE)","v":7233},{"$f":"HLOOKUP(AI$7,$I$66:$DJ$120,ROWS($A$10:$A11)+2,FALSE)","v":1373},{"$f":"HLOOKUP(AJ$7,$I$66:$DJ$120,ROWS($A$10:$A11)+2,FALSE)","v":229},{"$f":"HLOOKUP(AK$7,$I$66:$DJ$120,ROWS($A$10:$A11)+2,FALSE)","v":169},{"$f":"HLOOKUP(AL$7,$I$66:$DJ$120,ROWS($A$10:$A11)+2,FALSE)","v":265},{"$f":"HLOOKUP(AM$7,$I$66:$DJ$120,ROWS($A$10:$A11)+2,FALSE)","v":0},{"$f":"HLOOKUP(AN$7,$I$66:$DJ$120,ROWS($A$10:$A11)+2,FALSE)","v":356},{"$f":"HLOOKUP(AO$7,$I$66:$DJ$120,ROWS($A$10:$A11)+2,FALSE)","v":650},{"$f":"HLOOKUP(AP$7,$I$66:$DJ$120,ROWS($A$10:$A11)+2,FALSE)","v":3686},{"$f":"HLOOKUP(AQ$7,$I$66:$DJ$120,ROWS($A$10:$A11)+2,FALSE)","v":2371},{"$f":"HLOOKUP(AR$7,$I$66:$DJ$120,ROWS($A$10:$A11)+2,FALSE)","v":169},{"$f":"HLOOKUP(AS$7,$I$66:$DJ$120,ROWS($A$10:$A11)+2,FALSE)","v":2222},{"$f":"HLOOKUP(AT$7,$I$66:$DJ$120,ROWS($A$10:$A11)+2,FALSE)","v":880},{"$f":"HLOOKUP(AU$7,$I$66:$DJ$120,ROWS($A$10:$A11)+2,FALSE)","v":485},{"$f":"HLOOKUP(AV$7,$I$66:$DJ$120,ROWS($A$10:$A11)+2,FALSE)","v":1477},{"$f":"HLOOKUP(AW$7,$I$66:$DJ$120,ROWS($A$10:$A11)+2,FALSE)","v":0},{"$f":"HLOOKUP(AX$7,$I$66:$DJ$120,ROWS($A$10:$A11)+2,FALSE)","v":2368},{"$f":"HLOOKUP(AY$7,$I$66:$DJ$120,ROWS($A$10:$A11)+2,FALSE)","v":31},{"$f":"HLOOKUP(AZ$7,$I$66:$DJ$120,ROWS($A$10:$A11)+2,FALSE)","v":7409},{"$f":"HLOOKUP(BA$7,$I$66:$DJ$120,ROWS($A$10:$A11)+2,FALSE)","v":6500},{"$f":"HLOOKUP(BB$7,$I$66:$DJ$120,ROWS($A$10:$A11)+2,FALSE)","v":1336},{"$f":"HLOOKUP(BC$7,$I$66:$DJ$120,ROWS($A$10:$A11)+2,FALSE)","v":0},{"$f":"HLOOKUP(BD$7,$I$66:$DJ$120,ROWS($A$10:$A11)+2,FALSE)","v":2490},{"$f":"HLOOKUP(BE$7,$I$66:$DJ$120,ROWS($A$10:$A11)+2,FALSE)","v":1171},{"$f":"HLOOKUP(BF$7,$I$66:$DJ$120,ROWS($A$10:$A11)+2,FALSE)","v":41},{"$f":"HLOOKUP(BG$7,$I$66:$DJ$120,ROWS($A$10:$A11)+2,FALSE)","v":1155},{"$f":"HLOOKUP(BH$7,$I$66:$DJ$120,ROWS($A$10:$A11)+2,FALSE)","v":27},{"$f":"HLOOKUP(BI$7,$I$66:$DJ$120,ROWS($A$10:$A11)+2,FALSE)","v":228},{"$f":"HLOOKUP(BJ$7+0.5,$I$66:$DJ$120,ROWS($A$10:$A11)+2,FALSE)","v":8781},{"$f":"HLOOKUP(BK$7+0.5,$I$66:$DJ$120,ROWS($A$10:$A11)+2,FALSE)","v":"N/A"},{"$f":"HLOOKUP(BL$7+0.5,$I$66:$DJ$120,ROWS($A$10:$A11)+2,FALSE)","v":1452},{"$f":"HLOOKUP(BM$7+0.5,$I$66:$DJ$120,ROWS($A$10:$A11)+2,FALSE)","v":606},{"$f":"HLOOKUP(BN$7+0.5,$I$66:$DJ$120,ROWS($A$10:$A11)+2,FALSE)","v":1038},{"$f":"HLOOKUP(BO$7+0.5,$I$66:$DJ$120,ROWS($A$10:$A11)+2,FALSE)","v":1660},{"$f":"HLOOKUP(BP$7+0.5,$I$66:$DJ$120,ROWS($A$10:$A11)+2,FALSE)","v":778},{"$f":"HLOOKUP(BQ$7+0.5,$I$66:$DJ$120,ROWS($A$10:$A11)+2,FALSE)","v":694},{"$f":"HLOOKUP(BR$7+0.5,$I$66:$DJ$120,ROWS($A$10:$A11)+2,FALSE)","v":694},{"$f":"HLOOKUP(BS$7+0.5,$I$66:$DJ$120,ROWS($A$10:$A11)+2,FALSE)","v":186},{"$f":"HLOOKUP(BT$7+0.5,$I$66:$DJ$120,ROWS($A$10:$A11)+2,FALSE)","v":3138},{"$f":"HLOOKUP(BU$7+0.5,$I$66:$DJ$120,ROWS($A$10:$A11)+2,FALSE)","v":3955},{"$f":"HLOOKUP(BV$7+0.5,$I$66:$DJ$120,ROWS($A$10:$A11)+2,FALSE)","v":440},{"$f":"HLOOKUP(BW$7+0.5,$I$66:$DJ$120,ROWS($A$10:$A11)+2,FALSE)","v":399},{"$f":"HLOOKUP(BX$7+0.5,$I$66:$DJ$120,ROWS($A$10:$A11)+2,FALSE)","v":1224},{"$f":"HLOOKUP(BY$7+0.5,$I$66:$DJ$120,ROWS($A$10:$A11)+2,FALSE)","v":1979},{"$f":"HLOOKUP(BZ$7+0.5,$I$66:$DJ$120,ROWS($A$10:$A11)+2,FALSE)","v":882},{"$f":"HLOOKUP(CA$7+0.5,$I$66:$DJ$120,ROWS($A$10:$A11)+2,FALSE)","v":516},{"$f":"HLOOKUP(CB$7+0.5,$I$66:$DJ$120,ROWS($A$10:$A11)+2,FALSE)","v":1192},{"$f":"HLOOKUP(CC$7+0.5,$I$66:$DJ$120,ROWS($A$10:$A11)+2,FALSE)","v":868},{"$f":"HLOOKUP(CD$7+0.5,$I$66:$DJ$120,ROWS($A$10:$A11)+2,FALSE)","v":158},{"$f":"HLOOKUP(CE$7+0.5,$I$66:$DJ$120,ROWS($A$10:$A11)+2,FALSE)","v":458},{"$f":"HLOOKUP(CF$7+0.5,$I$66:$DJ$120,ROWS($A$10:$A11)+2,FALSE)","v":396},{"$f":"HLOOKUP(CG$7+0.5,$I$66:$DJ$120,ROWS($A$10:$A11)+2,FALSE)","v":1294},{"$f":"HLOOKUP(CH$7+0.5,$I$66:$DJ$120,ROWS($A$10:$A11)+2,FALSE)","v":358},{"$f":"HLOOKUP(CI$7+0.5,$I$66:$DJ$120,ROWS($A$10:$A11)+2,FALSE)","v":2367},{"$f":"HLOOKUP(CJ$7+0.5,$I$66:$DJ$120,ROWS($A$10:$A11)+2,FALSE)","v":1180},{"$f":"HLOOKUP(CK$7+0.5,$I$66:$DJ$120,ROWS($A$10:$A11)+2,FALSE)","v":182},{"$f":"HLOOKUP(CL$7+0.5,$I$66:$DJ$120,ROWS($A$10:$A11)+2,FALSE)","v":286},{"$f":"HLOOKUP(CM$7+0.5,$I$66:$DJ$120,ROWS($A$10:$A11)+2,FALSE)","v":297},{"$f":"HLOOKUP(CN$7+0.5,$I$66:$DJ$120,ROWS($A$10:$A11)+2,FALSE)","v":273},{"$f":"HLOOKUP(CO$7+0.5,$I$66:$DJ$120,ROWS($A$10:$A11)+2,FALSE)","v":285},{"$f":"HLOOKUP(CP$7+0.5,$I$66:$DJ$120,ROWS($A$10:$A11)+2,FALSE)","v":749},{"$f":"HLOOKUP(CQ$7+0.5,$I$66:$DJ$120,ROWS($A$10:$A11)+2,FALSE)","v":2920},{"$f":"HLOOKUP(CR$7+0.5,$I$66:$DJ$120,ROWS($A$10:$A11)+2,FALSE)","v":945},{"$f":"HLOOKUP(CS$7+0.5,$I$66:$DJ$120,ROWS($A$10:$A11)+2,FALSE)","v":213},{"$f":"HLOOKUP(CT$7+0.5,$I$66:$DJ$120,ROWS($A$10:$A11)+2,FALSE)","v":931},{"$f":"HLOOKUP(CU$7+0.5,$I$66:$DJ$120,ROWS($A$10:$A11)+2,FALSE)","v":609},{"$f":"HLOOKUP(CV$7+0.5,$I$66:$DJ$120,ROWS($A$10:$A11)+2,FALSE)","v":435},{"$f":"HLOOKUP(CW$7+0.5,$I$66:$DJ$120,ROWS($A$10:$A11)+2,FALSE)","v":696},{"$f":"HLOOKUP(CX$7+0.5,$I$66:$DJ$120,ROWS($A$10:$A11)+2,FALSE)","v":273},{"$f":"HLOOKUP(CY$7+0.5,$I$66:$DJ$120,ROWS($A$10:$A11)+2,FALSE)","v":1142},{"$f":"HLOOKUP(CZ$7+0.5,$I$66:$DJ$120,ROWS($A$10:$A11)+2,FALSE)","v":62},{"$f":"HLOOKUP(DA$7+0.5,$I$66:$DJ$120,ROWS($A$10:$A11)+2,FALSE)","v":1926},{"$f":"HLOOKUP(DB$7+0.5,$I$66:$DJ$120,ROWS($A$10:$A11)+2,FALSE)","v":2016},{"$f":"HLOOKUP(DC$7+0.5,$I$66:$DJ$120,ROWS($A$10:$A11)+2,FALSE)","v":1129},{"$f":"HLOOKUP(DD$7+0.5,$I$66:$DJ$120,ROWS($A$10:$A11)+2,FALSE)","v":273},{"$f":"HLOOKUP(DE$7+0.5,$I$66:$DJ$120,ROWS($A$10:$A11)+2,FALSE)","v":1026},{"$f":"HLOOKUP(DF$7+0.5,$I$66:$DJ$120,ROWS($A$10:$A11)+2,FALSE)","v":756},{"$f":"HLOOKUP(DG$7+0.5,$I$66:$DJ$120,ROWS($A$10:$A11)+2,FALSE)","v":73},{"$f":"HLOOKUP(DH$7+0.5,$I$66:$DJ$120,ROWS($A$10:$A11)+2,FALSE)","v":895},{"$f":"HLOOKUP(DI$7+0.5,$I$66:$DJ$120,ROWS($A$10:$A11)+2,FALSE)","v":52},{"$f":"HLOOKUP(DJ$7+0.5,$I$66:$DJ$120,ROWS($A$10:$A11)+2,FALSE)","v":265}]
[null,"Alaska",702974,1600,565031,7596,95878,7984,{"$f":"HLOOKUP(I$7,$I$66:$DJ$120,ROWS($A$10:$A12)+2,FALSE)","v":36326},{"$f":"HLOOKUP(J$7,$I$66:$DJ$120,ROWS($A$10:$A12)+2,FALSE)","v":477},{"$f":"HLOOKUP(K$7,$I$66:$DJ$120,ROWS($A$10:$A12)+2,FALSE)","v":"N/A"},{"$f":"HLOOKUP(L$7,$I$66:$DJ$120,ROWS($A$10:$A12)+2,FALSE)","v":1354},{"$f":"HLOOKUP(M$7,$I$66:$DJ$120,ROWS($A$10:$A12)+2,FALSE)","v":47},{"$f":"HLOOKUP(N$7,$I$66:$DJ$120,ROWS($A$10:$A12)+2,FALSE)","v":3906},{"$f":"HLOOKUP(O$7,$I$66:$DJ$120,ROWS($A$10:$A12)+2,FALSE)","v":1930},{"$f":"HLOOKUP(P$7,$I$66:$DJ$120,ROWS($A$10:$A12)+2,FALSE)","v":0},{"$f":"HLOOKUP(Q$7,$I$66:$DJ$120,ROWS($A$10:$A12)+2,FALSE)","v":0},{"$f":"HLOOKUP(R$7,$I$66:$DJ$120,ROWS($A$10:$A12)+2,FALSE)","v":14},{"$f":"HLOOKUP(S$7,$I$66:$DJ$120,ROWS($A$10:$A12)+2,FALSE)","v":2315},{"$f":"HLOOKUP(T$7,$I$66:$DJ$120,ROWS($A$10:$A12)+2,FALSE)","v":1251},{"$f":"HLOOKUP(U$7,$I$66:$DJ$120,ROWS($A$10:$A12)+2,FALSE)","v":1705},{"$f":"HLOOKUP(V$7,$I$66:$DJ$120,ROWS($A$10:$A12)+2,FALSE)","v":895},{"$f":"HLOOKUP(W$7,$I$66:$DJ$120,ROWS($A$10:$A12)+2,FALSE)","v":388},{"$f":"HLOOKUP(X$7,$I$66:$DJ$120,ROWS($A$10:$A12)+2,FALSE)","v":9},{"$f":"HLOOKUP(Y$7,$I$66:$DJ$120,ROWS($A$10:$A12)+2,FALSE)","v":262},{"$f":"HLOOKUP(Z$7,$I$66:$DJ$120,ROWS($A$10:$A12)+2,FALSE)","v":106},{"$f":"HLOOKUP(AA$7,$I$66:$DJ$120,ROWS($A$10:$A12)+2,FALSE)","v":1440},{"$f":"HLOOKUP(AB$7,$I$66:$DJ$120,ROWS($A$10:$A12)+2,FALSE)","v":100},{"$f":"HLOOKUP(AC$7,$I$66:$DJ$120,ROWS($A$10:$A12)+2,FALSE)","v":574},{"$f":"HLOOKUP(AD$7,$I$66:$DJ$120,ROWS($A$10:$A12)+2,FALSE)","v":704},{"$f":"HLOOKUP(AE$7,$I$66:$DJ$120,ROWS($A$10:$A12)+2,FALSE)","v":107},{"$f":"HLOOKUP(AF$7,$I$66:$DJ$120,ROWS($A$10:$A12)+2,FALSE)","v":923},{"$f":"HLOOKUP(AG$7,$I$66:$DJ$120,ROWS($A$10:$A12)+2,FALSE)","v":530},{"$f":"HLOOKUP(AH$7,$I$66:$DJ$120,ROWS($A$10:$A12)+2,FALSE)","v":263},{"$f":"HLOOKUP(AI$7,$I$66:$DJ$120,ROWS($A$10:$A12)+2,FALSE)","v":0},{"$f":"HLOOKUP(AJ$7,$I$66:$DJ$120,ROWS($A$10:$A12)+2,FALSE)","v":616},{"$f":"HLOOKUP(AK$7,$I$66:$DJ$120,ROWS($A$10:$A12)+2,FALSE)","v":215},{"$f":"HLOOKUP(AL$7,$I$66:$DJ$120,ROWS($A$10:$A12)+2,FALSE)","v":240},{"$f":"HLOOKUP(AM$7,$I$66:$DJ$120,ROWS($A$10:$A12)+2,FALSE)","v":316},{"$f":"HLOOKUP(AN$7,$I$66:$DJ$120,ROWS($A$10:$A12)+2,FALSE)","v":413},{"$f":"HLOOKUP(AO$7,$I$66:$DJ$120,ROWS($A$10:$A12)+2,FALSE)","v":421},{"$f":"HLOOKUP(AP$7,$I$66:$DJ$120,ROWS($A$10:$A12)+2,FALSE)","v":255},{"$f":"HLOOKUP(AQ$7,$I$66:$DJ$120,ROWS($A$10:$A12)+2,FALSE)","v":698},{"$f":"HLOOKUP(AR$7,$I$66:$DJ$120,ROWS($A$10:$A12)+2,FALSE)","v":69},{"$f":"HLOOKUP(AS$7,$I$66:$DJ$120,ROWS($A$10:$A12)+2,FALSE)","v":156},{"$f":"HLOOKUP(AT$7,$I$66:$DJ$120,ROWS($A$10:$A12)+2,FALSE)","v":1455},{"$f":"HLOOKUP(AU$7,$I$66:$DJ$120,ROWS($A$10:$A12)+2,FALSE)","v":1793},{"$f":"HLOOKUP(AV$7,$I$66:$DJ$120,ROWS($A$10:$A12)+2,FALSE)","v":126},{"$f":"HLOOKUP(AW$7,$I$66:$DJ$120,ROWS($A$10:$A12)+2,FALSE)","v":0},{"$f":"HLOOKUP(AX$7,$I$66:$DJ$120,ROWS($A$10:$A12)+2,FALSE)","v":121},{"$f":"HLOOKUP(AY$7,$I$66:$DJ$120,ROWS($A$10:$A12)+2,FALSE)","v":531},{"$f":"HLOOKUP(AZ$7,$I$66:$DJ$120,ROWS($A$10:$A12)+2,FALSE)","v":477},{"$f":"HLOOKUP(BA$7,$I$66:$DJ$120,ROWS($A$10:$A12)+2,FALSE)","v":4123},{"$f":"HLOOKUP(BB$7,$I$66:$DJ$120,ROWS($A$10:$A12)+2,FALSE)","v":1274},{"$f":"HLOOKUP(BC$7,$I$66:$DJ$120,ROWS($A$10:$A12)+2,FALSE)","v":353},{"$f":"HLOOKUP(BD$7,$I$66:$DJ$120,ROWS($A$10:$A12)+2,FALSE)","v":714},{"$f":"HLOOKUP(BE$7,$I$66:$DJ$120,ROWS($A$10:$A12)+2,FALSE)","v":2421},{"$f":"HLOOKUP(BF$7,$I$66:$DJ$120,ROWS($A$10:$A12)+2,FALSE)","v":0},{"$f":"HLOOKUP(BG$7,$I$66:$DJ$120,ROWS($A$10:$A12)+2,FALSE)","v":158},{"$f":"HLOOKUP(BH$7,$I$66:$DJ$120,ROWS($A$10:$A12)+2,FALSE)","v":81},{"$f":"HLOOKUP(BI$7,$I$66:$DJ$120,ROWS($A$10:$A12)+2,FALSE)","v":19},{"$f":"HLOOKUP(BJ$7+0.5,$I$66:$DJ$120,ROWS($A$10:$A12)+2,FALSE)","v":3708},{"$f":"HLOOKUP(BK$7+0.5,$I$66:$DJ$120,ROWS($A$10:$A12)+2,FALSE)","v":790},{"$f":"HLOOKUP(BL$7+0.5,$I$66:$DJ$120,ROWS($A$10:$A12)+2,FALSE)","v":"N/A"},{"$f":"HLOOKUP(BM$7+0.5,$I$66:$DJ$120,ROWS($A$10:$A12)+2,FALSE)","v":805},{"$f":"HLOOKUP(BN$7+0.5,$I$66:$DJ$120,ROWS($A$10:$A12)+2,FALSE)","v":78},{"$f":"HLOOKUP(BO$7+0.5,$I$66:$DJ$120,ROWS($A$10:$A12)+2,FALSE)","v":1041},{"$f":"HLOOKUP(BP$7+0.5,$I$66:$DJ$120,ROWS($A$10:$A12)+2,FALSE)","v":866},{"$f":"HLOOKUP(BQ$7+0.5,$I$66:$DJ$120,ROWS($A$10:$A12)+2,FALSE)","v":246},{"$f":"HLOOKUP(BR$7+0.5,$I$66:$DJ$120,ROWS($A$10:$A12)+2,FALSE)","v":246},{"$f":"HLOOKUP(BS$7+0.5,$I$66:$DJ$120,ROWS($A$10:$A12)+2,FALSE)","v":23},{"$f":"HLOOKUP(BT$7+0.5,$I$66:$DJ$120,ROWS($A$10:$A12)+2,FALSE)","v":1026},{"$f":"HLOOKUP(BU$7+0.5,$I$66:$DJ$120,ROWS($A$10:$A12)+2,FALSE)","v":902},{"$f":"HLOOKUP(BV$7+0.5,$I$66:$DJ$120,ROWS($A$10:$A12)+2,FALSE)","v":1289},{"$f":"HLOOKUP(BW$7+0.5,$I$66:$DJ$120,ROWS($A$10:$A12)+2,FALSE)","v":524},{"$f":"HLOOKUP(BX$7+0.5,$I$66:$DJ$120,ROWS($A$10:$A12)+2,FALSE)","v":293},{"$f":"HLOOKUP(BY$7+0.5,$I$66:$DJ$120,ROWS($A$10:$A12)+2,FALSE)","v":24},{"$f":"HLOOKUP(BZ$7+0.5,$I$66:$DJ$120,ROWS($A$10:$A12)+2,FALSE)","v":349},{"$f":"HLOOKUP(CA$7+0.5,$I$66:$DJ$120,ROWS($A$10:$A12)+2,FALSE)","v":107},{"$f":"HLOOKUP(CB$7+0.5,$I$66:$DJ$120,ROWS($A$10:$A12)+2,FALSE)","v":1506},{"$f":"HLOOKUP(CC$7+0.5,$I$66:$DJ$120,ROWS($A$10:$A12)+2,FALSE)","v":171},{"$f":"HLOOKUP(CD$7+0.5,$I$66:$DJ$120,ROWS($A$10:$A12)+2,FALSE)","v":655},{"$f":"HLOOKUP(CE$7+0.5,$I$66:$DJ$120,ROWS($A$10:$A12)+2,FALSE)","v":460},{"$f":"HLOOKUP(CF$7+0.5,$I$66:$DJ$120,ROWS($A$10:$A12)+2,FALSE)","v":183},{"$f":"HLOOKUP(CG$7+0.5,$I$66:$DJ$120,ROWS($A$10:$A12)+2,FALSE)","v":814},{"$f":"HLOOKUP(CH$7+0.5,$I$66:$DJ$120,ROWS($A$10:$A12)+2,FALSE)","v":409},{"$f":"HLOOKUP(CI$7+0.5,$I$66:$DJ$120,ROWS($A$10:$A12)+2,FALSE)","v":386},{"$f":"HLOOKUP(CJ$7+0.5,$I$66:$DJ$120,ROWS($A$10:$A12)+2,FALSE)","v":246},{"$f":"HLOOKUP(CK$7+0.5,$I$66:$DJ$120,ROWS($A$10:$A12)+2,FALSE)","v":507},{"$f":"HLOOKUP(CL$7+0.5,$I$66:$DJ$120,ROWS($A$10:$A12)+2,FALSE)","v":259},{"$f":"HLOOKUP(CM$7+0.5,$I$66:$DJ$120,ROWS($A$10:$A12)+2,FALSE)","v":247},{"$f":"HLOOKUP(CN$7+0.5,$I$66:$DJ$120,ROWS($A$10:$A12)+2,FALSE)","v":368},{"$f":"HLOOKUP(CO$7+0.5,$I$66:$DJ$120,ROWS($A$10:$A12)+2,FALSE)","v":501},{"$f":"HLOOKUP(CP$7+0.5,$I$66:$DJ$120,ROWS($A$10:$A12)+2,FALSE)","v":446},{"$f":"HLOOKUP(CQ$7+0.5,$I$66:$DJ$120,ROWS($A$10:$A12)+2,FALSE)","v":206},{"$f":"HLOOKUP(CR$7+0.5,$I$66:$DJ$120,ROWS($A$10:$A12)+2,FALSE)","v":587},{"$f":"HLOOKUP(CS$7+0.5,$I$66:$DJ$120,ROWS($A$10:$A12)+2,FALSE)","v":89},{"$f":"HLOOKUP(CT$7+0.5,$I$66:$DJ$120,ROWS($A$10:$A12)+2,FALSE)","v":213},{"$f":"HLOOKUP(CU$7+0.5,$I$66:$DJ$120,ROWS($A$10:$A12)+2,FALSE)","v":971},{"$f":"HLOOKUP(CV$7+0.5,$I$66:$DJ$120,ROWS($A$10:$A12)+2,FALSE)","v":1104},{"$f":"HLOOKUP(CW$7+0.5,$I$66:$DJ$120,ROWS($A$10:$A12)+2,FALSE)","v":164},{"$f":"HLOOKUP(CX$7+0.5,$I$66:$DJ$120,ROWS($A$10:$A12)+2,FALSE)","v":246},{"$f":"HLOOKUP(CY$7+0.5,$I$66:$DJ$120,ROWS($A$10:$A12)+2,FALSE)","v":153},{"$f":"HLOOKUP(CZ$7+0.5,$I$66:$DJ$120,ROWS($A$10:$A12)+2,FALSE)","v":817},{"$f":"HLOOKUP(DA$7+0.5,$I$66:$DJ$120,ROWS($A$10:$A12)+2,FALSE)","v":341},{"$f":"HLOOKUP(DB$7+0.5,$I$66:$DJ$120,ROWS($A$10:$A12)+2,FALSE)","v":1774},{"$f":"HLOOKUP(DC$7+0.5,$I$66:$DJ$120,ROWS($A$10:$A12)+2,FALSE)","v":926},{"$f":"HLOOKUP(DD$7+0.5,$I$66:$DJ$120,ROWS($A$10:$A12)+2,FALSE)","v":429},{"$f":"HLOOKUP(DE$7+0.5,$I$66:$DJ$120,ROWS($A$10:$A12)+2,FALSE)","v":681},{"$f":"HLOOKUP(DF$7+0.5,$I$66:$DJ$120,ROWS($A$10:$A12)+2,FALSE)","v":790},{"$f":"HLOOKUP(DG$7+0.5,$I$66:$DJ$120,ROWS($A$10:$A12)+2,FALSE)","v":246},{"$f":"HLOOKUP(DH$7+0.5,$I$66:$DJ$120,ROWS($A$10:$A12)+2,FALSE)","v":198},{"$f":"HLOOKUP(DI$7+0.5,$I$66:$DJ$120,ROWS($A$10:$A12)+2,FALSE)","v":131},{"$f":"HLOOKUP(DJ$7+0.5,$I$66:$DJ$120,ROWS($A$10:$A12)+2,FALSE)","v":30}]
[null,"Arizona",6332786,4439,5069002,35057,1001991,32027,{"$f":"HLOOKUP(I$7,$I$66:$DJ$120,ROWS($A$10:$A13)+2,FALSE)","v":222725},{"$f":"HLOOKUP(J$7,$I$66:$DJ$120,ROWS($A$10:$A13)+2,FALSE)","v":416},{"$f":"HLOOKUP(K$7,$I$66:$DJ$120,ROWS($A$10:$A13)+2,FALSE)","v":3109},{"$f":"HLOOKUP(L$7,$I$66:$DJ$120,ROWS($A$10:$A13)+2,FALSE)","v":"N/A"},{"$f":"HLOOKUP(M$7,$I$66:$DJ$120,ROWS($A$10:$A13)+2,FALSE)","v":689},{"$f":"HLOOKUP(N$7,$I$66:$DJ$120,ROWS($A$10:$A13)+2,FALSE)","v":47164},{"$f":"HLOOKUP(O$7,$I$66:$DJ$120,ROWS($A$10:$A13)+2,FALSE)","v":7687},{"$f":"HLOOKUP(P$7,$I$66:$DJ$120,ROWS($A$10:$A13)+2,FALSE)","v":479},{"$f":"HLOOKUP(Q$7,$I$66:$DJ$120,ROWS($A$10:$A13)+2,FALSE)","v":738},{"$f":"HLOOKUP(R$7,$I$66:$DJ$120,ROWS($A$10:$A13)+2,FALSE)","v":0},{"$f":"HLOOKUP(S$7,$I$66:$DJ$120,ROWS($A$10:$A13)+2,FALSE)","v":7712},{"$f":"HLOOKUP(T$7,$I$66:$DJ$120,ROWS($A$10:$A13)+2,FALSE)","v":4261},{"$f":"HLOOKUP(U$7,$I$66:$DJ$120,ROWS($A$10:$A13)+2,FALSE)","v":1966},{"$f":"HLOOKUP(V$7,$I$66:$DJ$120,ROWS($A$10:$A13)+2,FALSE)","v":2147},{"$f":"HLOOKUP(W$7,$I$66:$DJ$120,ROWS($A$10:$A13)+2,FALSE)","v":12250},{"$f":"HLOOKUP(X$7,$I$66:$DJ$120,ROWS($A$10:$A13)+2,FALSE)","v":2690},{"$f":"HLOOKUP(Y$7,$I$66:$DJ$120,ROWS($A$10:$A13)+2,FALSE)","v":3008},{"$f":"HLOOKUP(Z$7,$I$66:$DJ$120,ROWS($A$10:$A13)+2,FALSE)","v":1935},{"$f":"HLOOKUP(AA$7,$I$66:$DJ$120,ROWS($A$10:$A13)+2,FALSE)","v":1705},{"$f":"HLOOKUP(AB$7,$I$66:$DJ$120,ROWS($A$10:$A13)+2,FALSE)","v":2014},{"$f":"HLOOKUP(AC$7,$I$66:$DJ$120,ROWS($A$10:$A13)+2,FALSE)","v":241},{"$f":"HLOOKUP(AD$7,$I$66:$DJ$120,ROWS($A$10:$A13)+2,FALSE)","v":1284},{"$f":"HLOOKUP(AE$7,$I$66:$DJ$120,ROWS($A$10:$A13)+2,FALSE)","v":1449},{"$f":"HLOOKUP(AF$7,$I$66:$DJ$120,ROWS($A$10:$A13)+2,FALSE)","v":6354},{"$f":"HLOOKUP(AG$7,$I$66:$DJ$120,ROWS($A$10:$A13)+2,FALSE)","v":5421},{"$f":"HLOOKUP(AH$7,$I$66:$DJ$120,ROWS($A$10:$A13)+2,FALSE)","v":272},{"$f":"HLOOKUP(AI$7,$I$66:$DJ$120,ROWS($A$10:$A13)+2,FALSE)","v":4567},{"$f":"HLOOKUP(AJ$7,$I$66:$DJ$120,ROWS($A$10:$A13)+2,FALSE)","v":1343},{"$f":"HLOOKUP(AK$7,$I$66:$DJ$120,ROWS($A$10:$A13)+2,FALSE)","v":1750},{"$f":"HLOOKUP(AL$7,$I$66:$DJ$120,ROWS($A$10:$A13)+2,FALSE)","v":10342},{"$f":"HLOOKUP(AM$7,$I$66:$DJ$120,ROWS($A$10:$A13)+2,FALSE)","v":64},{"$f":"HLOOKUP(AN$7,$I$66:$DJ$120,ROWS($A$10:$A13)+2,FALSE)","v":1782},{"$f":"HLOOKUP(AO$7,$I$66:$DJ$120,ROWS($A$10:$A13)+2,FALSE)","v":4419},{"$f":"HLOOKUP(AP$7,$I$66:$DJ$120,ROWS($A$10:$A13)+2,FALSE)","v":6618},{"$f":"HLOOKUP(AQ$7,$I$66:$DJ$120,ROWS($A$10:$A13)+2,FALSE)","v":4463},{"$f":"HLOOKUP(AR$7,$I$66:$DJ$120,ROWS($A$10:$A13)+2,FALSE)","v":826},{"$f":"HLOOKUP(AS$7,$I$66:$DJ$120,ROWS($A$10:$A13)+2,FALSE)","v":5225},{"$f":"HLOOKUP(AT$7,$I$66:$DJ$120,ROWS($A$10:$A13)+2,FALSE)","v":2910},{"$f":"HLOOKUP(AU$7,$I$66:$DJ$120,ROWS($A$10:$A13)+2,FALSE)","v":5430},{"$f":"HLOOKUP(AV$7,$I$66:$DJ$120,ROWS($A$10:$A13)+2,FALSE)","v":5535},{"$f":"HLOOKUP(AW$7,$I$66:$DJ$120,ROWS($A$10:$A13)+2,FALSE)","v":403},{"$f":"HLOOKUP(AX$7,$I$66:$DJ$120,ROWS($A$10:$A13)+2,FALSE)","v":2310},{"$f":"HLOOKUP(AY$7,$I$66:$DJ$120,ROWS($A$10:$A13)+2,FALSE)","v":1351},{"$f":"HLOOKUP(AZ$7,$I$66:$DJ$120,ROWS($A$10:$A13)+2,FALSE)","v":3061},{"$f":"HLOOKUP(BA$7,$I$66:$DJ$120,ROWS($A$10:$A13)+2,FALSE)","v":14705},{"$f":"HLOOKUP(BB$7,$I$66:$DJ$120,ROWS($A$10:$A13)+2,FALSE)","v":7164},{"$f":"HLOOKUP(BC$7,$I$66:$DJ$120,ROWS($A$10:$A13)+2,FALSE)","v":664},{"$f":"HLOOKUP(BD$7,$I$66:$DJ$120,ROWS($A$10:$A13)+2,FALSE)","v":3413},{"$f":"HLOOKUP(BE$7,$I$66:$DJ$120,ROWS($A$10:$A13)+2,FALSE)","v":12645},{"$f":"HLOOKUP(BF$7,$I$66:$DJ$120,ROWS($A$10:$A13)+2,FALSE)","v":595},{"$f":"HLOOKUP(BG$7,$I$66:$DJ$120,ROWS($A$10:$A13)+2,FALSE)","v":5556},{"$f":"HLOOKUP(BH$7,$I$66:$DJ$120,ROWS($A$10:$A13)+2,FALSE)","v":593},{"$f":"HLOOKUP(BI$7,$I$66:$DJ$120,ROWS($A$10:$A13)+2,FALSE)","v":599},{"$f":"HLOOKUP(BJ$7+0.5,$I$66:$DJ$120,ROWS($A$10:$A13)+2,FALSE)","v":11873},{"$f":"HLOOKUP(BK$7+0.5,$I$66:$DJ$120,ROWS($A$10:$A13)+2,FALSE)","v":305},{"$f":"HLOOKUP(BL$7+0.5,$I$66:$DJ$120,ROWS($A$10:$A13)+2,FALSE)","v":1297},{"$f":"HLOOKUP(BM$7+0.5,$I$66:$DJ$120,ROWS($A$10:$A13)+2,FALSE)","v":"N/A"},{"$f":"HLOOKUP(BN$7+0.5,$I$66:$DJ$120,ROWS($A$10:$A13)+2,FALSE)","v":415},{"$f":"HLOOKUP(BO$7+0.5,$I$66:$DJ$120,ROWS($A$10:$A13)+2,FALSE)","v":6018},{"$f":"HLOOKUP(BP$7+0.5,$I$66:$DJ$120,ROWS($A$10:$A13)+2,FALSE)","v":2494},{"$f":"HLOOKUP(BQ$7+0.5,$I$66:$DJ$120,ROWS($A$10:$A13)+2,FALSE)","v":386},{"$f":"HLOOKUP(BR$7+0.5,$I$66:$DJ$120,ROWS($A$10:$A13)+2,FALSE)","v":774},{"$f":"HLOOKUP(BS$7+0.5,$I$66:$DJ$120,ROWS($A$10:$A13)+2,FALSE)","v":305},{"$f":"HLOOKUP(BT$7+0.5,$I$66:$DJ$120,ROWS($A$10:$A13)+2,FALSE)","v":2149},{"$f":"HLOOKUP(BU$7+0.5,$I$66:$DJ$120,ROWS($A$10:$A13)+2,FALSE)","v":1828},{"$f":"HLOOKUP(BV$7+0.5,$I$66:$DJ$120,ROWS($A$10:$A13)+2,FALSE)","v":928},{"$f":"HLOOKUP(BW$7+0.5,$I$66:$DJ$120,ROWS($A$10:$A13)+2,FALSE)","v":984},{"$f":"HLOOKUP(BX$7+0.5,$I$66:$DJ$120,ROWS($A$10:$A13)+2,FALSE)","v":3263},{"$f":"HLOOKUP(BY$7+0.5,$I$66:$DJ$120,ROWS($A$10:$A13)+2,FALSE)","v":1358},{"$f":"HLOOKUP(BZ$7+0.5,$I$66:$DJ$120,ROWS($A$10:$A13)+2,FALSE)","v":1405},{"$f":"HLOOKUP(CA$7+0.5,$I$66:$DJ$120,ROWS($A$10:$A13)+2,FALSE)","v":1008},{"$f":"HLOOKUP(CB$7+0.5,$I$66:$DJ$120,ROWS($A$10:$A13)+2,FALSE)","v":928},{"$f":"HLOOKUP(CC$7+0.5,$I$66:$DJ$120,ROWS($A$10:$A13)+2,FALSE)","v":1697},{"$f":"HLOOKUP(CD$7+0.5,$I$66:$DJ$120,ROWS($A$10:$A13)+2,FALSE)","v":308},{"$f":"HLOOKUP(CE$7+0.5,$I$66:$DJ$120,ROWS($A$10:$A13)+2,FALSE)","v":1052},{"$f":"HLOOKUP(CF$7+0.5,$I$66:$DJ$120,ROWS($A$10:$A13)+2,FALSE)","v":975},{"$f":"HLOOKUP(CG$7+0.5,$I$66:$DJ$120,ROWS($A$10:$A13)+2,FALSE)","v":1796},{"$f":"HLOOKUP(CH$7+0.5,$I$66:$DJ$120,ROWS($A$10:$A13)+2,FALSE)","v":1542},{"$f":"HLOOKUP(CI$7+0.5,$I$66:$DJ$120,ROWS($A$10:$A13)+2,FALSE)","v":238},{"$f":"HLOOKUP(CJ$7+0.5,$I$66:$DJ$120,ROWS($A$10:$A13)+2,FALSE)","v":1621},{"$f":"HLOOKUP(CK$7+0.5,$I$66:$DJ$120,ROWS($A$10:$A13)+2,FALSE)","v":1038},{"$f":"HLOOKUP(CL$7+0.5,$I$66:$DJ$120,ROWS($A$10:$A13)+2,FALSE)","v":1130},{"$f":"HLOOKUP(CM$7+0.5,$I$66:$DJ$120,ROWS($A$10:$A13)+2,FALSE)","v":3881},{"$f":"HLOOKUP(CN$7+0.5,$I$66:$DJ$120,ROWS($A$10:$A13)+2,FALSE)","v":105},{"$f":"HLOOKUP(CO$7+0.5,$I$66:$DJ$120,ROWS($A$10:$A13)+2,FALSE)","v":762},{"$f":"HLOOKUP(CP$7+0.5,$I$66:$DJ$120,ROWS($A$10:$A13)+2,FALSE)","v":1430},{"$f":"HLOOKUP(CQ$7+0.5,$I$66:$DJ$120,ROWS($A$10:$A13)+2,FALSE)","v":2661},{"$f":"HLOOKUP(CR$7+0.5,$I$66:$DJ$120,ROWS($A$10:$A13)+2,FALSE)","v":1627},{"$f":"HLOOKUP(CS$7+0.5,$I$66:$DJ$120,ROWS($A$10:$A13)+2,FALSE)","v":612},{"$f":"HLOOKUP(CT$7+0.5,$I$66:$DJ$120,ROWS($A$10:$A13)+2,FALSE)","v":1513},{"$f":"HLOOKUP(CU$7+0.5,$I$66:$DJ$120,ROWS($A$10:$A13)+2,FALSE)","v":1310},{"$f":"HLOOKUP(CV$7+0.5,$I$66:$DJ$120,ROWS($A$10:$A13)+2,FALSE)","v":1887},{"$f":"HLOOKUP(CW$7+0.5,$I$66:$DJ$120,ROWS($A$10:$A13)+2,FALSE)","v":2842},{"$f":"HLOOKUP(CX$7+0.5,$I$66:$DJ$120,ROWS($A$10:$A13)+2,FALSE)","v":336},{"$f":"HLOOKUP(CY$7+0.5,$I$66:$DJ$120,ROWS($A$10:$A13)+2,FALSE)","v":1189},{"$f":"HLOOKUP(CZ$7+0.5,$I$66:$DJ$120,ROWS($A$10:$A13)+2,FALSE)","v":843},{"$f":"HLOOKUP(DA$7+0.5,$I$66:$DJ$120,ROWS($A$10:$A13)+2,FALSE)","v":1643},{"$f":"HLOOKUP(DB$7+0.5,$I$66:$DJ$120,ROWS($A$10:$A13)+2,FALSE)","v":3301},{"$f":"HLOOKUP(DC$7+0.5,$I$66:$DJ$120,ROWS($A$10:$A13)+2,FALSE)","v":3154},{"$f":"HLOOKUP(DD$7+0.5,$I$66:$DJ$120,ROWS($A$10:$A13)+2,FALSE)","v":498},{"$f":"HLOOKUP(DE$7+0.5,$I$66:$DJ$120,ROWS($A$10:$A13)+2,FALSE)","v":1613},{"$f":"HLOOKUP(DF$7+0.5,$I$66:$DJ$120,ROWS($A$10:$A13)+2,FALSE)","v":2459},{"$f":"HLOOKUP(DG$7+0.5,$I$66:$DJ$120,ROWS($A$10:$A13)+2,FALSE)","v":563},{"$f":"HLOOKUP(DH$7+0.5,$I$66:$DJ$120,ROWS($A$10:$A13)+2,FALSE)","v":1827},{"$f":"HLOOKUP(DI$7+0.5,$I$66:$DJ$120,ROWS($A$10:$A13)+2,FALSE)","v":393},{"$f":"HLOOKUP(DJ$7+0.5,$I$66:$DJ$120,ROWS($A$10:$A13)+2,FALSE)","v":771}]
[null,"Arkansas",2888304,2453,2387806,18627,412997,17485,{"$f":"HLOOKUP(I$7,$I$66:$DJ$120,ROWS($A$10:$A14)+2,FALSE)","v":79127},{"$f":"HLOOKUP(J$7,$I$66:$DJ$120,ROWS($A$10:$A14)+2,FALSE)","v":1405},{"$f":"HLOOKUP(K$7,$I$66:$DJ$120,ROWS($A$10:$A14)+2,FALSE)","v":934},{"$f":"HLOOKUP(L$7,$I$66:$DJ$120,ROWS($A$10:$A14)+2,FALSE)","v":777},{"$f":"HLOOKUP(M$7,$I$66:$DJ$120,ROWS($A$10:$A14)+2,FALSE)","v":"N/A"},{"$f":"HLOOKUP(N$7,$I$66:$DJ$120,ROWS($A$10:$A14)+2,FALSE)","v":4457},{"$f":"HLOOKUP(O$7,$I$66:$DJ$120,ROWS($A$10:$A14)+2,FALSE)","v":2535},{"$f":"HLOOKUP(P$7,$I$66:$DJ$120,ROWS($A$10:$A14)+2,FALSE)","v":451},{"$f":"HLOOKUP(Q$7,$I$66:$DJ$120,ROWS($A$10:$A14)+2,FALSE)","v":0},{"$f":"HLOOKUP(R$7,$I$66:$DJ$120,ROWS($A$10:$A14)+2,FALSE)","v":154},{"$f":"HLOOKUP(S$7,$I$66:$DJ$120,ROWS($A$10:$A14)+2,FALSE)","v":3578},{"$f":"HLOOKUP(T$7,$I$66:$DJ$120,ROWS($A$10:$A14)+2,FALSE)","v":3921},{"$f":"HLOOKUP(U$7,$I$66:$DJ$120,ROWS($A$10:$A14)+2,FALSE)","v":129},{"$f":"HLOOKUP(V$7,$I$66:$DJ$120,ROWS($A$10:$A14)+2,FALSE)","v":618},{"$f":"HLOOKUP(W$7,$I$66:$DJ$120,ROWS($A$10:$A14)+2,FALSE)","v":3221},{"$f":"HLOOKUP(X$7,$I$66:$DJ$120,ROWS($A$10:$A14)+2,FALSE)","v":722},{"$f":"HLOOKUP(Y$7,$I$66:$DJ$120,ROWS($A$10:$A14)+2,FALSE)","v":85},{"$f":"HLOOKUP(Z$7,$I$66:$DJ$120,ROWS($A$10:$A14)+2,FALSE)","v":3611},{"$f":"HLOOKUP(AA$7,$I$66:$DJ$120,ROWS($A$10:$A14)+2,FALSE)","v":2540},{"$f":"HLOOKUP(AB$7,$I$66:$DJ$120,ROWS($A$10:$A14)+2,FALSE)","v":4012},{"$f":"HLOOKUP(AC$7,$I$66:$DJ$120,ROWS($A$10:$A14)+2,FALSE)","v":0},{"$f":"HLOOKUP(AD$7,$I$66:$DJ$120,ROWS($A$10:$A14)+2,FALSE)","v":306},{"$f":"HLOOKUP(AE$7,$I$66:$DJ$120,ROWS($A$10:$A14)+2,FALSE)","v":190},{"$f":"HLOOKUP(AF$7,$I$66:$DJ$120,ROWS($A$10:$A14)+2,FALSE)","v":1506},{"$f":"HLOOKUP(AG$7,$I$66:$DJ$120,ROWS($A$10:$A14)+2,FALSE)","v":222},{"$f":"HLOOKUP(AH$7,$I$66:$DJ$120,ROWS($A$10:$A14)+2,FALSE)","v":2764},{"$f":"HLOOKUP(AI$7,$I$66:$DJ$120,ROWS($A$10:$A14)+2,FALSE)","v":7320},{"$f":"HLOOKUP(AJ$7,$I$66:$DJ$120,ROWS($A$10:$A14)+2,FALSE)","v":85},{"$f":"HLOOKUP(AK$7,$I$66:$DJ$120,ROWS($A$10:$A14)+2,FALSE)","v":394},{"$f":"HLOOKUP(AL$7,$I$66:$DJ$120,ROWS($A$10:$A14)+2,FALSE)","v":67},{"$f":"HLOOKUP(AM$7,$I$66:$DJ$120,ROWS($A$10:$A14)+2,FALSE)","v":0},{"$f":"HLOOKUP(AN$7,$I$66:$DJ$120,ROWS($A$10:$A14)+2,FALSE)","v":77},{"$f":"HLOOKUP(AO$7,$I$66:$DJ$120,ROWS($A$10:$A14)+2,FALSE)","v":0},{"$f":"HLOOKUP(AP$7,$I$66:$DJ$120,ROWS($A$10:$A14)+2,FALSE)","v":289},{"$f":"HLOOKUP(AQ$7,$I$66:$DJ$120,ROWS($A$10:$A14)+2,FALSE)","v":1561},{"$f":"HLOOKUP(AR$7,$I$66:$DJ$120,ROWS($A$10:$A14)+2,FALSE)","v":0},{"$f":"HLOOKUP(AS$7,$I$66:$DJ$120,ROWS($A$10:$A14)+2,FALSE)","v":1137},{"$f":"HLOOKUP(AT$7,$I$66:$DJ$120,ROWS($A$10:$A14)+2,FALSE)","v":8607},{"$f":"HLOOKUP(AU$7,$I$66:$DJ$120,ROWS($A$10:$A14)+2,FALSE)","v":239},{"$f":"HLOOKUP(AV$7,$I$66:$DJ$120,ROWS($A$10:$A14)+2,FALSE)","v":731},{"$f":"HLOOKUP(AW$7,$I$66:$DJ$120,ROWS($A$10:$A14)+2,FALSE)","v":0},{"$f":"HLOOKUP(AX$7,$I$66:$DJ$120,ROWS($A$10:$A14)+2,FALSE)","v":1496},{"$f":"HLOOKUP(AY$7,$I$66:$DJ$120,ROWS($A$10:$A14)+2,FALSE)","v":243},{"$f":"HLOOKUP(AZ$7,$I$66:$DJ$120,ROWS($A$10:$A14)+2,FALSE)","v":2653},{"$f":"HLOOKUP(BA$7,$I$66:$DJ$120,ROWS($A$10:$A14)+2,FALSE)","v":13707},{"$f":"HLOOKUP(BB$7,$I$66:$DJ$120,ROWS($A$10:$A14)+2,FALSE)","v":361},{"$f":"HLOOKUP(BC$7,$I$66:$DJ$120,ROWS($A$10:$A14)+2,FALSE)","v":0},{"$f":"HLOOKUP(BD$7,$I$66:$DJ$120,ROWS($A$10:$A14)+2,FALSE)","v":494},{"$f":"HLOOKUP(BE$7,$I$66:$DJ$120,ROWS($A$10:$A14)+2,FALSE)","v":264},{"$f":"HLOOKUP(BF$7,$I$66:$DJ$120,ROWS($A$10:$A14)+2,FALSE)","v":0},{"$f":"HLOOKUP(BG$7,$I$66:$DJ$120,ROWS($A$10:$A14)+2,FALSE)","v":821},{"$f":"HLOOKUP(BH$7,$I$66:$DJ$120,ROWS($A$10:$A14)+2,FALSE)","v":443},{"$f":"HLOOKUP(BI$7,$I$66:$DJ$120,ROWS($A$10:$A14)+2,FALSE)","v":87},{"$f":"HLOOKUP(BJ$7+0.5,$I$66:$DJ$120,ROWS($A$10:$A14)+2,FALSE)","v":7901},{"$f":"HLOOKUP(BK$7+0.5,$I$66:$DJ$120,ROWS($A$10:$A14)+2,FALSE)","v":1001},{"$f":"HLOOKUP(BL$7+0.5,$I$66:$DJ$120,ROWS($A$10:$A14)+2,FALSE)","v":798},{"$f":"HLOOKUP(BM$7+0.5,$I$66:$DJ$120,ROWS($A$10:$A14)+2,FALSE)","v":557},{"$f":"HLOOKUP(BN$7+0.5,$I$66:$DJ$120,ROWS($A$10:$A14)+2,FALSE)","v":"N/A"},{"$f":"HLOOKUP(BO$7+0.5,$I$66:$DJ$120,ROWS($A$10:$A14)+2,FALSE)","v":1991},{"$f":"HLOOKUP(BP$7+0.5,$I$66:$DJ$120,ROWS($A$10:$A14)+2,FALSE)","v":1149},{"$f":"HLOOKUP(BQ$7+0.5,$I$66:$DJ$120,ROWS($A$10:$A14)+2,FALSE)","v":315},{"$f":"HLOOKUP(BR$7+0.5,$I$66:$DJ$120,ROWS($A$10:$A14)+2,FALSE)","v":273},{"$f":"HLOOKUP(BS$7+0.5,$I$66:$DJ$120,ROWS($A$10:$A14)+2,FALSE)","v":264},{"$f":"HLOOKUP(BT$7+0.5,$I$66:$DJ$120,ROWS($A$10:$A14)+2,FALSE)","v":1239},{"$f":"HLOOKUP(BU$7+0.5,$I$66:$DJ$120,ROWS($A$10:$A14)+2,FALSE)","v":2077},{"$f":"HLOOKUP(BV$7+0.5,$I$66:$DJ$120,ROWS($A$10:$A14)+2,FALSE)","v":166},{"$f":"HLOOKUP(BW$7+0.5,$I$66:$DJ$120,ROWS($A$10:$A14)+2,FALSE)","v":754},{"$f":"HLOOKUP(BX$7+0.5,$I$66:$DJ$120,ROWS($A$10:$A14)+2,FALSE)","v":1474},{"$f":"HLOOKUP(BY$7+0.5,$I$66:$DJ$120,ROWS($A$10:$A14)+2,FALSE)","v":498},{"$f":"HLOOKUP(BZ$7+0.5,$I$66:$DJ$120,ROWS($A$10:$A14)+2,FALSE)","v":143},{"$f":"HLOOKUP(CA$7+0.5,$I$66:$DJ$120,ROWS($A$10:$A14)+2,FALSE)","v":1704},{"$f":"HLOOKUP(CB$7+0.5,$I$66:$DJ$120,ROWS($A$10:$A14)+2,FALSE)","v":1895},{"$f":"HLOOKUP(CC$7+0.5,$I$66:$DJ$120,ROWS($A$10:$A14)+2,FALSE)","v":1625},{"$f":"HLOOKUP(CD$7+0.5,$I$66:$DJ$120,ROWS($A$10:$A14)+2,FALSE)","v":273},{"$f":"HLOOKUP(CE$7+0.5,$I$66:$DJ$120,ROWS($A$10:$A14)+2,FALSE)","v":254},{"$f":"HLOOKUP(CF$7+0.5,$I$66:$DJ$120,ROWS($A$10:$A14)+2,FALSE)","v":196},{"$f":"HLOOKUP(CG$7+0.5,$I$66:$DJ$120,ROWS($A$10:$A14)+2,FALSE)","v":674},{"$f":"HLOOKUP(CH$7+0.5,$I$66:$DJ$120,ROWS($A$10:$A14)+2,FALSE)","v":153},{"$f":"HLOOKUP(CI$7+0.5,$I$66:$DJ$120,ROWS($A$10:$A14)+2,FALSE)","v":1337},{"$f":"HLOOKUP(CJ$7+0.5,$I$66:$DJ$120,ROWS($A$10:$A14)+2,FALSE)","v":2181},{"$f":"HLOOKUP(CK$7+0.5,$I$66:$DJ$120,ROWS($A$10:$A14)+2,FALSE)","v":159},{"$f":"HLOOKUP(CL$7+0.5,$I$66:$DJ$120,ROWS($A$10:$A14)+2,FALSE)","v":538},{"$f":"HLOOKUP(CM$7+0.5,$I$66:$DJ$120,ROWS($A$10:$A14)+2,FALSE)","v":104},{"$f":"HLOOKUP(CN$7+0.5,$I$66:$DJ$120,ROWS($A$10:$A14)+2,FALSE)","v":273},{"$f":"HLOOKUP(CO$7+0.5,$I$66:$DJ$120,ROWS($A$10:$A14)+2,FALSE)","v":130},{"$f":"HLOOKUP(CP$7+0.5,$I$66:$DJ$120,ROWS($A$10:$A14)+2,FALSE)","v":273},{"$f":"HLOOKUP(CQ$7+0.5,$I$66:$DJ$120,ROWS($A$10:$A14)+2,FALSE)","v":336},{"$f":"HLOOKUP(CR$7+0.5,$I$66:$DJ$120,ROWS($A$10:$A14)+2,FALSE)","v":900},{"$f":"HLOOKUP(CS$7+0.5,$I$66:$DJ$120,ROWS($A$10:$A14)+2,FALSE)","v":273},{"$f":"HLOOKUP(CT$7+0.5,$I$66:$DJ$120,ROWS($A$10:$A14)+2,FALSE)","v":811},{"$f":"HLOOKUP(CU$7+0.5,$I$66:$DJ$120,ROWS($A$10:$A14)+2,FALSE)","v":3434},{"$f":"HLOOKUP(CV$7+0.5,$I$66:$DJ$120,ROWS($A$10:$A14)+2,FALSE)","v":174},{"$f":"HLOOKUP(CW$7+0.5,$I$66:$DJ$120,ROWS($A$10:$A14)+2,FALSE)","v":570},{"$f":"HLOOKUP(CX$7+0.5,$I$66:$DJ$120,ROWS($A$10:$A14)+2,FALSE)","v":273},{"$f":"HLOOKUP(CY$7+0.5,$I$66:$DJ$120,ROWS($A$10:$A14)+2,FALSE)","v":983},{"$f":"HLOOKUP(CZ$7+0.5,$I$66:$DJ$120,ROWS($A$10:$A14)+2,FALSE)","v":264},{"$f":"HLOOKUP(DA$7+0.5,$I$66:$DJ$120,ROWS($A$10:$A14)+2,FALSE)","v":1121},{"$f":"HLOOKUP(DB$7+0.5,$I$66:$DJ$120,ROWS($A$10:$A14)+2,FALSE)","v":2911},{"$f":"HLOOKUP(DC$7+0.5,$I$66:$DJ$120,ROWS($A$10:$A14)+2,FALSE)","v":322},{"$f":"HLOOKUP(DD$7+0.5,$I$66:$DJ$120,ROWS($A$10:$A14)+2,FALSE)","v":273},{"$f":"HLOOKUP(DE$7+0.5,$I$66:$DJ$120,ROWS($A$10:$A14)+2,FALSE)","v":382},{"$f":"HLOOKUP(DF$7+0.5,$I$66:$DJ$120,ROWS($A$10:$A14)+2,FALSE)","v":228},{"$f":"HLOOKUP(DG$7+0.5,$I$66:$DJ$120,ROWS($A$10:$A14)+2,FALSE)","v":273},{"$f":"HLOOKUP(DH$7+0.5,$I$66:$DJ$120,ROWS($A$10:$A14)+2,FALSE)","v":503},{"$f":"HLOOKUP(DI$7+0.5,$I$66:$DJ$120,ROWS($A$10:$A14)+2,FALSE)","v":513},{"$f":"HLOOKUP(DJ$7+0.5,$I$66:$DJ$120,ROWS($A$10:$A14)+2,FALSE)","v":146}]
[null,"California",36907897,10889,30790221,71574,5413287,66460,{"$f":"HLOOKUP(I$7,$I$66:$DJ$120,ROWS($A$10:$A15)+2,FALSE)","v":444749},{"$f":"HLOOKUP(J$7,$I$66:$DJ$120,ROWS($A$10:$A15)+2,FALSE)","v":3364},{"$f":"HLOOKUP(K$7,$I$66:$DJ$120,ROWS($A$10:$A15)+2,FALSE)","v":9579},{"$f":"HLOOKUP(L$7,$I$66:$DJ$120,ROWS($A$10:$A15)+2,FALSE)","v":33854},{"$f":"HLOOKUP(M$7,$I$66:$DJ$120,ROWS($A$10:$A15)+2,FALSE)","v":4172},{"$f":"HLOOKUP(N$7,$I$66:$DJ$120,ROWS($A$10:$A15)+2,FALSE)","v":"N/A"},{"$f":"HLOOKUP(O$7,$I$66:$DJ$120,ROWS($A$10:$A15)+2,FALSE)","v":15662},{"$f":"HLOOKUP(P$7,$I$66:$DJ$120,ROWS($A$10:$A15)+2,FALSE)","v":4631},{"$f":"HLOOKUP(Q$7,$I$66:$DJ$120,ROWS($A$10:$A15)+2,FALSE)","v":643},{"$f":"HLOOKUP(R$7,$I$66:$DJ$120,ROWS($A$10:$A15)+2,FALSE)","v":3683},{"$f":"HLOOKUP(S$7,$I$66:$DJ$120,ROWS($A$10:$A15)+2,FALSE)","v":20362},{"$f":"HLOOKUP(T$7,$I$66:$DJ$120,ROWS($A$10:$A15)+2,FALSE)","v":8820},{"$f":"HLOOKUP(U$7,$I$66:$DJ$120,ROWS($A$10:$A15)+2,FALSE)","v":9528},{"$f":"HLOOKUP(V$7,$I$66:$DJ$120,ROWS($A$10:$A15)+2,FALSE)","v":5719},{"$f":"HLOOKUP(W$7,$I$66:$DJ$120,ROWS($A$10:$A15)+2,FALSE)","v":16482},{"$f":"HLOOKUP(X$7,$I$66:$DJ$120,ROWS($A$10:$A15)+2,FALSE)","v":6550},{"$f":"HLOOKUP(Y$7,$I$66:$DJ$120,ROWS($A$10:$A15)+2,FALSE)","v":3163},{"$f":"HLOOKUP(Z$7,$I$66:$DJ$120,ROWS($A$10:$A15)+2,FALSE)","v":3857},{"$f":"HLOOKUP(AA$7,$I$66:$DJ$120,ROWS($A$10:$A15)+2,FALSE)","v":3394},{"$f":"HLOOKUP(AB$7,$I$66:$DJ$120,ROWS($A$10:$A15)+2,FALSE)","v":2989},{"$f":"HLOOKUP(AC$7,$I$66:$DJ$120,ROWS($A$10:$A15)+2,FALSE)","v":1796},{"$f":"HLOOKUP(AD$7,$I$66:$DJ$120,ROWS($A$10:$A15)+2,FALSE)","v":10626},{"$f":"HLOOKUP(AE$7,$I$66:$DJ$120,ROWS($A$10:$A15)+2,FALSE)","v":11969},{"$f":"HLOOKUP(AF$7,$I$66:$DJ$120,ROWS($A$10:$A15)+2,FALSE)","v":10435},{"$f":"HLOOKUP(AG$7,$I$66:$DJ$120,ROWS($A$10:$A15)+2,FALSE)","v":5095},{"$f":"HLOOKUP(AH$7,$I$66:$DJ$120,ROWS($A$10:$A15)+2,FALSE)","v":2757},{"$f":"HLOOKUP(AI$7,$I$66:$DJ$120,ROWS($A$10:$A15)+2,FALSE)","v":6921},{"$f":"HLOOKUP(AJ$7,$I$66:$DJ$120,ROWS($A$10:$A15)+2,FALSE)","v":3009},{"$f":"HLOOKUP(AK$7,$I$66:$DJ$120,ROWS($A$10:$A15)+2,FALSE)","v":3062},{"$f":"HLOOKUP(AL$7,$I$66:$DJ$120,ROWS($A$10:$A15)+2,FALSE)","v":27724},{"$f":"HLOOKUP(AM$7,$I$66:$DJ$120,ROWS($A$10:$A15)+2,FALSE)","v":1614},{"$f":"HLOOKUP(AN$7,$I$66:$DJ$120,ROWS($A$10:$A15)+2,FALSE)","v":10108},{"$f":"HLOOKUP(AO$7,$I$66:$DJ$120,ROWS($A$10:$A15)+2,FALSE)","v":4632},{"$f":"HLOOKUP(AP$7,$I$66:$DJ$120,ROWS($A$10:$A15)+2,FALSE)","v":20981},{"$f":"HLOOKUP(AQ$7,$I$66:$DJ$120,ROWS($A$10:$A15)+2,FALSE)","v":9593},{"$f":"HLOOKUP(AR$7,$I$66:$DJ$120,ROWS($A$10:$A15)+2,FALSE)","v":392},{"$f":"HLOOKUP(AS$7,$I$66:$DJ$120,ROWS($A$10:$A15)+2,FALSE)","v":8170},{"$f":"HLOOKUP(AT$7,$I$66:$DJ$120,ROWS($A$10:$A15)+2,FALSE)","v":5708},{"$f":"HLOOKUP(AU$7,$I$66:$DJ$120,ROWS($A$10:$A15)+2,FALSE)","v":20913},{"$f":"HLOOKUP(AV$7,$I$66:$DJ$120,ROWS($A$10:$A15)+2,FALSE)","v":9948},{"$f":"HLOOKUP(AW$7,$I$66:$DJ$120,ROWS($A$10:$A15)+2,FALSE)","v":526},{"$f":"HLOOKUP(AX$7,$I$66:$DJ$120,ROWS($A$10:$A15)+2,FALSE)","v":5016},{"$f":"HLOOKUP(AY$7,$I$66:$DJ$120,ROWS($A$10:$A15)+2,FALSE)","v":1604},{"$f":"HLOOKUP(AZ$7,$I$66:$DJ$120,ROWS($A$10:$A15)+2,FALSE)","v":4349},{"$f":"HLOOKUP(BA$7,$I$66:$DJ$120,ROWS($A$10:$A15)+2,FALSE)","v":36582},{"$f":"HLOOKUP(BB$7,$I$66:$DJ$120,ROWS($A$10:$A15)+2,FALSE)","v":10653},{"$f":"HLOOKUP(BC$7,$I$66:$DJ$120,ROWS($A$10:$A15)+2,FALSE)","v":525},{"$f":"HLOOKUP(BD$7,$I$66:$DJ$120,ROWS($A$10:$A15)+2,FALSE)","v":14232},{"$f":"HLOOKUP(BE$7,$I$66:$DJ$120,ROWS($A$10:$A15)+2,FALSE)","v":30544},{"$f":"HLOOKUP(BF$7,$I$66:$DJ$120,ROWS($A$10:$A15)+2,FALSE)","v":1446},{"$f":"HLOOKUP(BG$7,$I$66:$DJ$120,ROWS($A$10:$A15)+2,FALSE)","v":6031},{"$f":"HLOOKUP(BH$7,$I$66:$DJ$120,ROWS($A$10:$A15)+2,FALSE)","v":1336},{"$f":"HLOOKUP(BI$7,$I$66:$DJ$120,ROWS($A$10:$A15)+2,FALSE)","v":1223},{"$f":"HLOOKUP(BJ$7+0.5,$I$66:$DJ$120,ROWS($A$10:$A15)+2,FALSE)","v":18415},{"$f":"HLOOKUP(BK$7+0.5,$I$66:$DJ$120,ROWS($A$10:$A15)+2,FALSE)","v":1977},{"$f":"HLOOKUP(BL$7+0.5,$I$66:$DJ$120,ROWS($A$10:$A15)+2,FALSE)","v":2911},{"$f":"HLOOKUP(BM$7+0.5,$I$66:$DJ$120,ROWS($A$10:$A15)+2,FALSE)","v":4816},{"$f":"HLOOKUP(BN$7+0.5,$I$66:$DJ$120,ROWS($A$10:$A15)+2,FALSE)","v":1340},{"$f":"HLOOKUP(BO$7+0.5,$I$66:$DJ$120,ROWS($A$10:$A15)+2,FALSE)","v":"N/A"},{"$f":"HLOOKUP(BP$7+0.5,$I$66:$DJ$120,ROWS($A$10:$A15)+2,FALSE)","v":3236},{"$f":"HLOOKUP(BQ$7+0.5,$I$66:$DJ$120,ROWS($A$10:$A15)+2,FALSE)","v":1802},{"$f":"HLOOKUP(BR$7+0.5,$I$66:$DJ$120,ROWS($A$10:$A15)+2,FALSE)","v":408},{"$f":"HLOOKUP(BS$7+0.5,$I$66:$DJ$120,ROWS($A$10:$A15)+2,FALSE)","v":1306},{"$f":"HLOOKUP(BT$7+0.5,$I$66:$DJ$120,ROWS($A$10:$A15)+2,FALSE)","v":4008},{"$f":"HLOOKUP(BU$7+0.5,$I$66:$DJ$120,ROWS($A$10:$A15)+2,FALSE)","v":2545},{"$f":"HLOOKUP(BV$7+0.5,$I$66:$DJ$120,ROWS($A$10:$A15)+2,FALSE)","v":2191},{"$f":"HLOOKUP(BW$7+0.5,$I$66:$DJ$120,ROWS($A$10:$A15)+2,FALSE)","v":1572},{"$f":"HLOOKUP(BX$7+0.5,$I$66:$DJ$120,ROWS($A$10:$A15)+2,FALSE)","v":2806},{"$f":"HLOOKUP(BY$7+0.5,$I$66:$DJ$120,ROWS($A$10:$A15)+2,FALSE)","v":1860},{"$f":"HLOOKUP(BZ$7+0.5,$I$66:$DJ$120,ROWS($A$10:$A15)+2,FALSE)","v":1259},{"$f":"HLOOKUP(CA$7+0.5,$I$66:$DJ$120,ROWS($A$10:$A15)+2,FALSE)","v":1813},{"$f":"HLOOKUP(CB$7+0.5,$I$66:$DJ$120,ROWS($A$10:$A15)+2,FALSE)","v":1797},{"$f":"HLOOKUP(CC$7+0.5,$I$66:$DJ$120,ROWS($A$10:$A15)+2,FALSE)","v":1207},{"$f":"HLOOKUP(CD$7+0.5,$I$66:$DJ$120,ROWS($A$10:$A15)+2,FALSE)","v":1139},{"$f":"HLOOKUP(CE$7+0.5,$I$66:$DJ$120,ROWS($A$10:$A15)+2,FALSE)","v":2848},{"$f":"HLOOKUP(CF$7+0.5,$I$66:$DJ$120,ROWS($A$10:$A15)+2,FALSE)","v":2774},{"$f":"HLOOKUP(CG$7+0.5,$I$66:$DJ$120,ROWS($A$10:$A15)+2,FALSE)","v":2487},{"$f":"HLOOKUP(CH$7+0.5,$I$66:$DJ$120,ROWS($A$10:$A15)+2,FALSE)","v":1319},{"$f":"HLOOKUP(CI$7+0.5,$I$66:$DJ$120,ROWS($A$10:$A15)+2,FALSE)","v":1338},{"$f":"HLOOKUP(CJ$7+0.5,$I$66:$DJ$120,ROWS($A$10:$A15)+2,FALSE)","v":2357},{"$f":"HLOOKUP(CK$7+0.5,$I$66:$DJ$120,ROWS($A$10:$A15)+2,FALSE)","v":1511},{"$f":"HLOOKUP(CL$7+0.5,$I$66:$DJ$120,ROWS($A$10:$A15)+2,FALSE)","v":1860},{"$f":"HLOOKUP(CM$7+0.5,$I$66:$DJ$120,ROWS($A$10:$A15)+2,FALSE)","v":4878},{"$f":"HLOOKUP(CN$7+0.5,$I$66:$DJ$120,ROWS($A$10:$A15)+2,FALSE)","v":1059},{"$f":"HLOOKUP(CO$7+0.5,$I$66:$DJ$120,ROWS($A$10:$A15)+2,FALSE)","v":2848},{"$f":"HLOOKUP(CP$7+0.5,$I$66:$DJ$120,ROWS($A$10:$A15)+2,FALSE)","v":1266},{"$f":"HLOOKUP(CQ$7+0.5,$I$66:$DJ$120,ROWS($A$10:$A15)+2,FALSE)","v":2977},{"$f":"HLOOKUP(CR$7+0.5,$I$66:$DJ$120,ROWS($A$10:$A15)+2,FALSE)","v":2005},{"$f":"HLOOKUP(CS$7+0.5,$I$66:$DJ$120,ROWS($A$10:$A15)+2,FALSE)","v":343},{"$f":"HLOOKUP(CT$7+0.5,$I$66:$DJ$120,ROWS($A$10:$A15)+2,FALSE)","v":2399},{"$f":"HLOOKUP(CU$7+0.5,$I$66:$DJ$120,ROWS($A$10:$A15)+2,FALSE)","v":1591},{"$f":"HLOOKUP(CV$7+0.5,$I$66:$DJ$120,ROWS($A$10:$A15)+2,FALSE)","v":3580},{"$f":"HLOOKUP(CW$7+0.5,$I$66:$DJ$120,ROWS($A$10:$A15)+2,FALSE)","v":1991},{"$f":"HLOOKUP(CX$7+0.5,$I$66:$DJ$120,ROWS($A$10:$A15)+2,FALSE)","v":264},{"$f":"HLOOKUP(CY$7+0.5,$I$66:$DJ$120,ROWS($A$10:$A15)+2,FALSE)","v":2183},{"$f":"HLOOKUP(CZ$7+0.5,$I$66:$DJ$120,ROWS($A$10:$A15)+2,FALSE)","v":1117},{"$f":"HLOOKUP(DA$7+0.5,$I$66:$DJ$120,ROWS($A$10:$A15)+2,FALSE)","v":1174},{"$f":"HLOOKUP(DB$7+0.5,$I$66:$DJ$120,ROWS($A$10:$A15)+2,FALSE)","v":5299},{"$f":"HLOOKUP(DC$7+0.5,$I$66:$DJ$120,ROWS($A$10:$A15)+2,FALSE)","v":2235},{"$f":"HLOOKUP(DD$7+0.5,$I$66:$DJ$120,ROWS($A$10:$A15)+2,FALSE)","v":369},{"$f":"HLOOKUP(DE$7+0.5,$I$66:$DJ$120,ROWS($A$10:$A15)+2,FALSE)","v":2597},{"$f":"HLOOKUP(DF$7+0.5,$I$66:$DJ$120,ROWS($A$10:$A15)+2,FALSE)","v":4481},{"$f":"HLOOKUP(DG$7+0.5,$I$66:$DJ$120,ROWS($A$10:$A15)+2,FALSE)","v":919},{"$f":"HLOOKUP(DH$7+0.5,$I$66:$DJ$120,ROWS($A$10:$A15)+2,FALSE)","v":2181},{"$f":"HLOOKUP(DI$7+0.5,$I$66:$DJ$120,ROWS($A$10:$A15)+2,FALSE)","v":664},{"$f":"HLOOKUP(DJ$7+0.5,$I$66:$DJ$120,ROWS($A$10:$A15)+2,FALSE)","v":1128}]
[null,"Colorado",4988190,3936,4042039,25546,725413,23003,{"$f":"HLOOKUP(I$7,$I$66:$DJ$120,ROWS($A$10:$A16)+2,FALSE)","v":186366},{"$f":"HLOOKUP(J$7,$I$66:$DJ$120,ROWS($A$10:$A16)+2,FALSE)","v":954},{"$f":"HLOOKUP(K$7,$I$66:$DJ$120,ROWS($A$10:$A16)+2,FALSE)","v":2225},{"$f":"HLOOKUP(L$7,$I$66:$DJ$120,ROWS($A$10:$A16)+2,FALSE)","v":12287},{"$f":"HLOOKUP(M$7,$I$66:$DJ$120,ROWS($A$10:$A16)+2,FALSE)","v":1034},{"$f":"HLOOKUP(N$7,$I$66:$DJ$120,ROWS($A$10:$A16)+2,FALSE)","v":26089},{"$f":"HLOOKUP(O$7,$I$66:$DJ$120,ROWS($A$10:$A16)+2,FALSE)","v":"N/A"},{"$f":"HLOOKUP(P$7,$I$66:$DJ$120,ROWS($A$10:$A16)+2,FALSE)","v":459},{"$f":"HLOOKUP(Q$7,$I$66:$DJ$120,ROWS($A$10:$A16)+2,FALSE)","v":486},{"$f":"HLOOKUP(R$7,$I$66:$DJ$120,ROWS($A$10:$A16)+2,FALSE)","v":479},{"$f":"HLOOKUP(S$7,$I$66:$DJ$120,ROWS($A$10:$A16)+2,FALSE)","v":8849},{"$f":"HLOOKUP(T$7,$I$66:$DJ$120,ROWS($A$10:$A16)+2,FALSE)","v":6445},{"$f":"HLOOKUP(U$7,$I$66:$DJ$120,ROWS($A$10:$A16)+2,FALSE)","v":2355},{"$f":"HLOOKUP(V$7,$I$66:$DJ$120,ROWS($A$10:$A16)+2,FALSE)","v":839},{"$f":"HLOOKUP(W$7,$I$66:$DJ$120,ROWS($A$10:$A16)+2,FALSE)","v":6950},{"$f":"HLOOKUP(X$7,$I$66:$DJ$120,ROWS($A$10:$A16)+2,FALSE)","v":3296},{"$f":"HLOOKUP(Y$7,$I$66:$DJ$120,ROWS($A$10:$A16)+2,FALSE)","v":2140},{"$f":"HLOOKUP(Z$7,$I$66:$DJ$120,ROWS($A$10:$A16)+2,FALSE)","v":4308},{"$f":"HLOOKUP(AA$7,$I$66:$DJ$120,ROWS($A$10:$A16)+2,FALSE)","v":1961},{"$f":"HLOOKUP(AB$7,$I$66:$DJ$120,ROWS($A$10:$A16)+2,FALSE)","v":968},{"$f":"HLOOKUP(AC$7,$I$66:$DJ$120,ROWS($A$10:$A16)+2,FALSE)","v":532},{"$f":"HLOOKUP(AD$7,$I$66:$DJ$120,ROWS($A$10:$A16)+2,FALSE)","v":1532},{"$f":"HLOOKUP(AE$7,$I$66:$DJ$120,ROWS($A$10:$A16)+2,FALSE)","v":2242},{"$f":"HLOOKUP(AF$7,$I$66:$DJ$120,ROWS($A$10:$A16)+2,FALSE)","v":4587},{"$f":"HLOOKUP(AG$7,$I$66:$DJ$120,ROWS($A$10:$A16)+2,FALSE)","v":2878},{"$f":"HLOOKUP(AH$7,$I$66:$DJ$120,ROWS($A$10:$A16)+2,FALSE)","v":1277},{"$f":"HLOOKUP(AI$7,$I$66:$DJ$120,ROWS($A$10:$A16)+2,FALSE)","v":1978},{"$f":"HLOOKUP(AJ$7,$I$66:$DJ$120,ROWS($A$10:$A16)+2,FALSE)","v":2042},{"$f":"HLOOKUP(AK$7,$I$66:$DJ$120,ROWS($A$10:$A16)+2,FALSE)","v":4065},{"$f":"HLOOKUP(AL$7,$I$66:$DJ$120,ROWS($A$10:$A16)+2,FALSE)","v":4131},{"$f":"HLOOKUP(AM$7,$I$66:$DJ$120,ROWS($A$10:$A16)+2,FALSE)","v":791},{"$f":"HLOOKUP(AN$7,$I$66:$DJ$120,ROWS($A$10:$A16)+2,FALSE)","v":1259},{"$f":"HLOOKUP(AO$7,$I$66:$DJ$120,ROWS($A$10:$A16)+2,FALSE)","v":3921},{"$f":"HLOOKUP(AP$7,$I$66:$DJ$120,ROWS($A$10:$A16)+2,FALSE)","v":4594},{"$f":"HLOOKUP(AQ$7,$I$66:$DJ$120,ROWS($A$10:$A16)+2,FALSE)","v":2940},{"$f":"HLOOKUP(AR$7,$I$66:$DJ$120,ROWS($A$10:$A16)+2,FALSE)","v":802},{"$f":"HLOOKUP(AS$7,$I$66:$DJ$120,ROWS($A$10:$A16)+2,FALSE)","v":2838},{"$f":"HLOOKUP(AT$7,$I$66:$DJ$120,ROWS($A$10:$A16)+2,FALSE)","v":3464},{"$f":"HLOOKUP(AU$7,$I$66:$DJ$120,ROWS($A$10:$A16)+2,FALSE)","v":4330},{"$f":"HLOOKUP(AV$7,$I$66:$DJ$120,ROWS($A$10:$A16)+2,FALSE)","v":3928},{"$f":"HLOOKUP(AW$7,$I$66:$DJ$120,ROWS($A$10:$A16)+2,FALSE)","v":192},{"$f":"HLOOKUP(AX$7,$I$66:$DJ$120,ROWS($A$10:$A16)+2,FALSE)","v":1231},{"$f":"HLOOKUP(AY$7,$I$66:$DJ$120,ROWS($A$10:$A16)+2,FALSE)","v":1847},{"$f":"HLOOKUP(AZ$7,$I$66:$DJ$120,ROWS($A$10:$A16)+2,FALSE)","v":1628},{"$f":"HLOOKUP(BA$7,$I$66:$DJ$120,ROWS($A$10:$A16)+2,FALSE)","v":22253},{"$f":"HLOOKUP(BB$7,$I$66:$DJ$120,ROWS($A$10:$A16)+2,FALSE)","v":4748},{"$f":"HLOOKUP(BC$7,$I$66:$DJ$120,ROWS($A$10:$A16)+2,FALSE)","v":350},{"$f":"HLOOKUP(BD$7,$I$66:$DJ$120,ROWS($A$10:$A16)+2,FALSE)","v":2739},{"$f":"HLOOKUP(BE$7,$I$66:$DJ$120,ROWS($A$10:$A16)+2,FALSE)","v":7583},{"$f":"HLOOKUP(BF$7,$I$66:$DJ$120,ROWS($A$10:$A16)+2,FALSE)","v":623},{"$f":"HLOOKUP(BG$7,$I$66:$DJ$120,ROWS($A$10:$A16)+2,FALSE)","v":2499},{"$f":"HLOOKUP(BH$7,$I$66:$DJ$120,ROWS($A$10:$A16)+2,FALSE)","v":4418},{"$f":"HLOOKUP(BI$7,$I$66:$DJ$120,ROWS($A$10:$A16)+2,FALSE)","v":874},{"$f":"HLOOKUP(BJ$7+0.5,$I$66:$DJ$120,ROWS($A$10:$A16)+2,FALSE)","v":9897},{"$f":"HLOOKUP(BK$7+0.5,$I$66:$DJ$120,ROWS($A$10:$A16)+2,FALSE)","v":803},{"$f":"HLOOKUP(BL$7+0.5,$I$66:$DJ$120,ROWS($A$10:$A16)+2,FALSE)","v":1220},{"$f":"HLOOKUP(BM$7+0.5,$I$66:$DJ$120,ROWS($A$10:$A16)+2,FALSE)","v":2324},{"$f":"HLOOKUP(BN$7+0.5,$I$66:$DJ$120,ROWS($A$10:$A16)+2,FALSE)","v":739},{"$f":"HLOOKUP(BO$7+0.5,$I$66:$DJ$120,ROWS($A$10:$A16)+2,FALSE)","v":4183},{"$f":"HLOOKUP(BP$7+0.5,$I$66:$DJ$120,ROWS($A$10:$A16)+2,FALSE)","v":"N/A"},{"$f":"HLOOKUP(BQ$7+0.5,$I$66:$DJ$120,ROWS($A$10:$A16)+2,FALSE)","v":360},{"$f":"HLOOKUP(BR$7+0.5,$I$66:$DJ$120,ROWS($A$10:$A16)+2,FALSE)","v":486},{"$f":"HLOOKUP(BS$7+0.5,$I$66:$DJ$120,ROWS($A$10:$A16)+2,FALSE)","v":381},{"$f":"HLOOKUP(BT$7+0.5,$I$66:$DJ$120,ROWS($A$10:$A16)+2,FALSE)","v":2300},{"$f":"HLOOKUP(BU$7+0.5,$I$66:$DJ$120,ROWS($A$10:$A16)+2,FALSE)","v":2553},{"$f":"HLOOKUP(BV$7+0.5,$I$66:$DJ$120,ROWS($A$10:$A16)+2,FALSE)","v":1220},{"$f":"HLOOKUP(BW$7+0.5,$I$66:$DJ$120,ROWS($A$10:$A16)+2,FALSE)","v":572},{"$f":"HLOOKUP(BX$7+0.5,$I$66:$DJ$120,ROWS($A$10:$A16)+2,FALSE)","v":1968},{"$f":"HLOOKUP(BY$7+0.5,$I$66:$DJ$120,ROWS($A$10:$A16)+2,FALSE)","v":1584},{"$f":"HLOOKUP(BZ$7+0.5,$I$66:$DJ$120,ROWS($A$10:$A16)+2,FALSE)","v":1179},{"$f":"HLOOKUP(CA$7+0.5,$I$66:$DJ$120,ROWS($A$10:$A16)+2,FALSE)","v":1577},{"$f":"HLOOKUP(CB$7+0.5,$I$66:$DJ$120,ROWS($A$10:$A16)+2,FALSE)","v":1194},{"$f":"HLOOKUP(CC$7+0.5,$I$66:$DJ$120,ROWS($A$10:$A16)+2,FALSE)","v":664},{"$f":"HLOOKUP(CD$7+0.5,$I$66:$DJ$120,ROWS($A$10:$A16)+2,FALSE)","v":385},{"$f":"HLOOKUP(CE$7+0.5,$I$66:$DJ$120,ROWS($A$10:$A16)+2,FALSE)","v":978},{"$f":"HLOOKUP(CF$7+0.5,$I$66:$DJ$120,ROWS($A$10:$A16)+2,FALSE)","v":778},{"$f":"HLOOKUP(CG$7+0.5,$I$66:$DJ$120,ROWS($A$10:$A16)+2,FALSE)","v":1679},{"$f":"HLOOKUP(CH$7+0.5,$I$66:$DJ$120,ROWS($A$10:$A16)+2,FALSE)","v":1093},{"$f":"HLOOKUP(CI$7+0.5,$I$66:$DJ$120,ROWS($A$10:$A16)+2,FALSE)","v":883},{"$f":"HLOOKUP(CJ$7+0.5,$I$66:$DJ$120,ROWS($A$10:$A16)+2,FALSE)","v":803},{"$f":"HLOOKUP(CK$7+0.5,$I$66:$DJ$120,ROWS($A$10:$A16)+2,FALSE)","v":1490},{"$f":"HLOOKUP(CL$7+0.5,$I$66:$DJ$120,ROWS($A$10:$A16)+2,FALSE)","v":1455},{"$f":"HLOOKUP(CM$7+0.5,$I$66:$DJ$120,ROWS($A$10:$A16)+2,FALSE)","v":1784},{"$f":"HLOOKUP(CN$7+0.5,$I$66:$DJ$120,ROWS($A$10:$A16)+2,FALSE)","v":521},{"$f":"HLOOKUP(CO$7+0.5,$I$66:$DJ$120,ROWS($A$10:$A16)+2,FALSE)","v":537},{"$f":"HLOOKUP(CP$7+0.5,$I$66:$DJ$120,ROWS($A$10:$A16)+2,FALSE)","v":1326},{"$f":"HLOOKUP(CQ$7+0.5,$I$66:$DJ$120,ROWS($A$10:$A16)+2,FALSE)","v":1518},{"$f":"HLOOKUP(CR$7+0.5,$I$66:$DJ$120,ROWS($A$10:$A16)+2,FALSE)","v":1376},{"$f":"HLOOKUP(CS$7+0.5,$I$66:$DJ$120,ROWS($A$10:$A16)+2,FALSE)","v":598},{"$f":"HLOOKUP(CT$7+0.5,$I$66:$DJ$120,ROWS($A$10:$A16)+2,FALSE)","v":1325},{"$f":"HLOOKUP(CU$7+0.5,$I$66:$DJ$120,ROWS($A$10:$A16)+2,FALSE)","v":1440},{"$f":"HLOOKUP(CV$7+0.5,$I$66:$DJ$120,ROWS($A$10:$A16)+2,FALSE)","v":1962},{"$f":"HLOOKUP(CW$7+0.5,$I$66:$DJ$120,ROWS($A$10:$A16)+2,FALSE)","v":1124},{"$f":"HLOOKUP(CX$7+0.5,$I$66:$DJ$120,ROWS($A$10:$A16)+2,FALSE)","v":248},{"$f":"HLOOKUP(CY$7+0.5,$I$66:$DJ$120,ROWS($A$10:$A16)+2,FALSE)","v":796},{"$f":"HLOOKUP(CZ$7+0.5,$I$66:$DJ$120,ROWS($A$10:$A16)+2,FALSE)","v":826},{"$f":"HLOOKUP(DA$7+0.5,$I$66:$DJ$120,ROWS($A$10:$A16)+2,FALSE)","v":706},{"$f":"HLOOKUP(DB$7+0.5,$I$66:$DJ$120,ROWS($A$10:$A16)+2,FALSE)","v":4494},{"$f":"HLOOKUP(DC$7+0.5,$I$66:$DJ$120,ROWS($A$10:$A16)+2,FALSE)","v":1658},{"$f":"HLOOKUP(DD$7+0.5,$I$66:$DJ$120,ROWS($A$10:$A16)+2,FALSE)","v":246},{"$f":"HLOOKUP(DE$7+0.5,$I$66:$DJ$120,ROWS($A$10:$A16)+2,FALSE)","v":1077},{"$f":"HLOOKUP(DF$7+0.5,$I$66:$DJ$120,ROWS($A$10:$A16)+2,FALSE)","v":3004},{"$f":"HLOOKUP(DG$7+0.5,$I$66:$DJ$120,ROWS($A$10:$A16)+2,FALSE)","v":493},{"$f":"HLOOKUP(DH$7+0.5,$I$66:$DJ$120,ROWS($A$10:$A16)+2,FALSE)","v":1153},{"$f":"HLOOKUP(DI$7+0.5,$I$66:$DJ$120,ROWS($A$10:$A16)+2,FALSE)","v":1439},{"$f":"HLOOKUP(DJ$7+0.5,$I$66:$DJ$120,ROWS($A$10:$A16)+2,FALSE)","v":880}]
[null,"Connecticut",3541146,2779,3100742,16358,342904,15404,{"$f":"HLOOKUP(I$7,$I$66:$DJ$120,ROWS($A$10:$A17)+2,FALSE)","v":77333},{"$f":"HLOOKUP(J$7,$I$66:$DJ$120,ROWS($A$10:$A17)+2,FALSE)","v":896},{"$f":"HLOOKUP(K$7,$I$66:$DJ$120,ROWS($A$10:$A17)+2,FALSE)","v":0},{"$f":"HLOOKUP(L$7,$I$66:$DJ$120,ROWS($A$10:$A17)+2,FALSE)","v":664},{"$f":"HLOOKUP(M$7,$I$66:$DJ$120,ROWS($A$10:$A17)+2,FALSE)","v":334},{"$f":"HLOOKUP(N$7,$I$66:$DJ$120,ROWS($A$10:$A17)+2,FALSE)","v":4479},{"$f":"HLOOKUP(O$7,$I$66:$DJ$120,ROWS($A$10:$A17)+2,FALSE)","v":547},{"$f":"HLOOKUP(P$7,$I$66:$DJ$120,ROWS($A$10:$A17)+2,FALSE)","v":"N/A"},{"$f":"HLOOKUP(Q$7,$I$66:$DJ$120,ROWS($A$10:$A17)+2,FALSE)","v":149},{"$f":"HLOOKUP(R$7,$I$66:$DJ$120,ROWS($A$10:$A17)+2,FALSE)","v":331},{"$f":"HLOOKUP(S$7,$I$66:$DJ$120,ROWS($A$10:$A17)+2,FALSE)","v":9207},{"$f":"HLOOKUP(T$7,$I$66:$DJ$120,ROWS($A$10:$A17)+2,FALSE)","v":748},{"$f":"HLOOKUP(U$7,$I$66:$DJ$120,ROWS($A$10:$A17)+2,FALSE)","v":182},{"$f":"HLOOKUP(V$7,$I$66:$DJ$120,ROWS($A$10:$A17)+2,FALSE)","v":147},{"$f":"HLOOKUP(W$7,$I$66:$DJ$120,ROWS($A$10:$A17)+2,FALSE)","v":3391},{"$f":"HLOOKUP(X$7,$I$66:$DJ$120,ROWS($A$10:$A17)+2,FALSE)","v":1074},{"$f":"HLOOKUP(Y$7,$I$66:$DJ$120,ROWS($A$10:$A17)+2,FALSE)","v":108},{"$f":"HLOOKUP(Z$7,$I$66:$DJ$120,ROWS($A$10:$A17)+2,FALSE)","v":0},{"$f":"HLOOKUP(AA$7,$I$66:$DJ$120,ROWS($A$10:$A17)+2,FALSE)","v":400},{"$f":"HLOOKUP(AB$7,$I$66:$DJ$120,ROWS($A$10:$A17)+2,FALSE)","v":0},{"$f":"HLOOKUP(AC$7,$I$66:$DJ$120,ROWS($A$10:$A17)+2,FALSE)","v":528},{"$f":"HLOOKUP(AD$7,$I$66:$DJ$120,ROWS($A$10:$A17)+2,FALSE)","v":1531},{"$f":"HLOOKUP(AE$7,$I$66:$DJ$120,ROWS($A$10:$A17)+2,FALSE)","v":8510},{"$f":"HLOOKUP(AF$7,$I$66:$DJ$120,ROWS($A$10:$A17)+2,FALSE)","v":770},{"$f":"HLOOKUP(AG$7,$I$66:$DJ$120,ROWS($A$10:$A17)+2,FALSE)","v":934},{"$f":"HLOOKUP(AH$7,$I$66:$DJ$120,ROWS($A$10:$A17)+2,FALSE)","v":67},{"$f":"HLOOKUP(AI$7,$I$66:$DJ$120,ROWS($A$10:$A17)+2,FALSE)","v":42},{"$f":"HLOOKUP(AJ$7,$I$66:$DJ$120,ROWS($A$10:$A17)+2,FALSE)","v":0},{"$f":"HLOOKUP(AK$7,$I$66:$DJ$120,ROWS($A$10:$A17)+2,FALSE)","v":0},{"$f":"HLOOKUP(AL$7,$I$66:$DJ$120,ROWS($A$10:$A17)+2,FALSE)","v":507},{"$f":"HLOOKUP(AM$7,$I$66:$DJ$120,ROWS($A$10:$A17)+2,FALSE)","v":1049},{"$f":"HLOOKUP(AN$7,$I$66:$DJ$120,ROWS($A$10:$A17)+2,FALSE)","v":3475},{"$f":"HLOOKUP(AO$7,$I$66:$DJ$120,ROWS($A$10:$A17)+2,FALSE)","v":112},{"$f":"HLOOKUP(AP$7,$I$66:$DJ$120,ROWS($A$10:$A17)+2,FALSE)","v":20727},{"$f":"HLOOKUP(AQ$7,$I$66:$DJ$120,ROWS($A$10:$A17)+2,FALSE)","v":1345},{"$f":"HLOOKUP(AR$7,$I$66:$DJ$120,ROWS($A$10:$A17)+2,FALSE)","v":0},{"$f":"HLOOKUP(AS$7,$I$66:$DJ$120,ROWS($A$10:$A17)+2,FALSE)","v":1296},{"$f":"HLOOKUP(AT$7,$I$66:$DJ$120,ROWS($A$10:$A17)+2,FALSE)","v":145},{"$f":"HLOOKUP(AU$7,$I$66:$DJ$120,ROWS($A$10:$A17)+2,FALSE)","v":640},{"$f":"HLOOKUP(AV$7,$I$66:$DJ$120,ROWS($A$10:$A17)+2,FALSE)","v":1955},{"$f":"HLOOKUP(AW$7,$I$66:$DJ$120,ROWS($A$10:$A17)+2,FALSE)","v":1728},{"$f":"HLOOKUP(AX$7,$I$66:$DJ$120,ROWS($A$10:$A17)+2,FALSE)","v":1140},{"$f":"HLOOKUP(AY$7,$I$66:$DJ$120,ROWS($A$10:$A17)+2,FALSE)","v":0},{"$f":"HLOOKUP(AZ$7,$I$66:$DJ$120,ROWS($A$10:$A17)+2,FALSE)","v":430},{"$f":"HLOOKUP(BA$7,$I$66:$DJ$120,ROWS($A$10:$A17)+2,FALSE)","v":1887},{"$f":"HLOOKUP(BB$7,$I$66:$DJ$120,ROWS($A$10:$A17)+2,FALSE)","v":0},{"$f":"HLOOKUP(BC$7,$I$66:$DJ$120,ROWS($A$10:$A17)+2,FALSE)","v":458},{"$f":"HLOOKUP(BD$7,$I$66:$DJ$120,ROWS($A$10:$A17)+2,FALSE)","v":1735},{"$f":"HLOOKUP(BE$7,$I$66:$DJ$120,ROWS($A$10:$A17)+2,FALSE)","v":2084},{"$f":"HLOOKUP(BF$7,$I$66:$DJ$120,ROWS($A$10:$A17)+2,FALSE)","v":442},{"$f":"HLOOKUP(BG$7,$I$66:$DJ$120,ROWS($A$10:$A17)+2,FALSE)","v":1092},{"$f":"HLOOKUP(BH$7,$I$66:$DJ$120,ROWS($A$10:$A17)+2,FALSE)","v":47},{"$f":"HLOOKUP(BI$7,$I$66:$DJ$120,ROWS($A$10:$A17)+2,FALSE)","v":2027},{"$f":"HLOOKUP(BJ$7+0.5,$I$66:$DJ$120,ROWS($A$10:$A17)+2,FALSE)","v":6651},{"$f":"HLOOKUP(BK$7+0.5,$I$66:$DJ$120,ROWS($A$10:$A17)+2,FALSE)","v":891},{"$f":"HLOOKUP(BL$7+0.5,$I$66:$DJ$120,ROWS($A$10:$A17)+2,FALSE)","v":281},{"$f":"HLOOKUP(BM$7+0.5,$I$66:$DJ$120,ROWS($A$10:$A17)+2,FALSE)","v":484},{"$f":"HLOOKUP(BN$7+0.5,$I$66:$DJ$120,ROWS($A$10:$A17)+2,FALSE)","v":517},{"$f":"HLOOKUP(BO$7+0.5,$I$66:$DJ$120,ROWS($A$10:$A17)+2,FALSE)","v":1653},{"$f":"HLOOKUP(BP$7+0.5,$I$66:$DJ$120,ROWS($A$10:$A17)+2,FALSE)","v":487},{"$f":"HLOOKUP(BQ$7+0.5,$I$66:$DJ$120,ROWS($A$10:$A17)+2,FALSE)","v":"N/A"},{"$f":"HLOOKUP(BR$7+0.5,$I$66:$DJ$120,ROWS($A$10:$A17)+2,FALSE)","v":227},{"$f":"HLOOKUP(BS$7+0.5,$I$66:$DJ$120,ROWS($A$10:$A17)+2,FALSE)","v":343},{"$f":"HLOOKUP(BT$7+0.5,$I$66:$DJ$120,ROWS($A$10:$A17)+2,FALSE)","v":2532},{"$f":"HLOOKUP(BU$7+0.5,$I$66:$DJ$120,ROWS($A$10:$A17)+2,FALSE)","v":467},{"$f":"HLOOKUP(BV$7+0.5,$I$66:$DJ$120,ROWS($A$10:$A17)+2,FALSE)","v":171},{"$f":"HLOOKUP(BW$7+0.5,$I$66:$DJ$120,ROWS($A$10:$A17)+2,FALSE)","v":130},{"$f":"HLOOKUP(BX$7+0.5,$I$66:$DJ$120,ROWS($A$10:$A17)+2,FALSE)","v":1847},{"$f":"HLOOKUP(BY$7+0.5,$I$66:$DJ$120,ROWS($A$10:$A17)+2,FALSE)","v":798},{"$f":"HLOOKUP(BZ$7+0.5,$I$66:$DJ$120,ROWS($A$10:$A17)+2,FALSE)","v":131},{"$f":"HLOOKUP(CA$7+0.5,$I$66:$DJ$120,ROWS($A$10:$A17)+2,FALSE)","v":281},{"$f":"HLOOKUP(CB$7+0.5,$I$66:$DJ$120,ROWS($A$10:$A17)+2,FALSE)","v":430},{"$f":"HLOOKUP(CC$7+0.5,$I$66:$DJ$120,ROWS($A$10:$A17)+2,FALSE)","v":281},{"$f":"HLOOKUP(CD$7+0.5,$I$66:$DJ$120,ROWS($A$10:$A17)+2,FALSE)","v":447},{"$f":"HLOOKUP(CE$7+0.5,$I$66:$DJ$120,ROWS($A$10:$A17)+2,FALSE)","v":814},{"$f":"HLOOKUP(CF$7+0.5,$I$66:$DJ$120,ROWS($A$10:$A17)+2,FALSE)","v":2107},{"$f":"HLOOKUP(CG$7+0.5,$I$66:$DJ$120,ROWS($A$10:$A17)+2,FALSE)","v":486},{"$f":"HLOOKUP(CH$7+0.5,$I$66:$DJ$120,ROWS($A$10:$A17)+2,FALSE)","v":659},{"$f":"HLOOKUP(CI$7+0.5,$I$66:$DJ$120,ROWS($A$10:$A17)+2,FALSE)","v":111},{"$f":"HLOOKUP(CJ$7+0.5,$I$66:$DJ$120,ROWS($A$10:$A17)+2,FALSE)","v":68},{"$f":"HLOOKUP(CK$7+0.5,$I$66:$DJ$120,ROWS($A$10:$A17)+2,FALSE)","v":281},{"$f":"HLOOKUP(CL$7+0.5,$I$66:$DJ$120,ROWS($A$10:$A17)+2,FALSE)","v":281},{"$f":"HLOOKUP(CM$7+0.5,$I$66:$DJ$120,ROWS($A$10:$A17)+2,FALSE)","v":424},{"$f":"HLOOKUP(CN$7+0.5,$I$66:$DJ$120,ROWS($A$10:$A17)+2,FALSE)","v":628},{"$f":"HLOOKUP(CO$7+0.5,$I$66:$DJ$120,ROWS($A$10:$A17)+2,FALSE)","v":1175},{"$f":"HLOOKUP(CP$7+0.5,$I$66:$DJ$120,ROWS($A$10:$A17)+2,FALSE)","v":189},{"$f":"HLOOKUP(CQ$7+0.5,$I$66:$DJ$120,ROWS($A$10:$A17)+2,FALSE)","v":3325},{"$f":"HLOOKUP(CR$7+0.5,$I$66:$DJ$120,ROWS($A$10:$A17)+2,FALSE)","v":587},{"$f":"HLOOKUP(CS$7+0.5,$I$66:$DJ$120,ROWS($A$10:$A17)+2,FALSE)","v":281},{"$f":"HLOOKUP(CT$7+0.5,$I$66:$DJ$120,ROWS($A$10:$A17)+2,FALSE)","v":710},{"$f":"HLOOKUP(CU$7+0.5,$I$66:$DJ$120,ROWS($A$10:$A17)+2,FALSE)","v":171},{"$f":"HLOOKUP(CV$7+0.5,$I$66:$DJ$120,ROWS($A$10:$A17)+2,FALSE)","v":592},{"$f":"HLOOKUP(CW$7+0.5,$I$66:$DJ$120,ROWS($A$10:$A17)+2,FALSE)","v":808},{"$f":"HLOOKUP(CX$7+0.5,$I$66:$DJ$120,ROWS($A$10:$A17)+2,FALSE)","v":796},{"$f":"HLOOKUP(CY$7+0.5,$I$66:$DJ$120,ROWS($A$10:$A17)+2,FALSE)","v":627},{"$f":"HLOOKUP(CZ$7+0.5,$I$66:$DJ$120,ROWS($A$10:$A17)+2,FALSE)","v":281},{"$f":"HLOOKUP(DA$7+0.5,$I$66:$DJ$120,ROWS($A$10:$A17)+2,FALSE)","v":389},{"$f":"HLOOKUP(DB$7+0.5,$I$66:$DJ$120,ROWS($A$10:$A17)+2,FALSE)","v":1100},{"$f":"HLOOKUP(DC$7+0.5,$I$66:$DJ$120,ROWS($A$10:$A17)+2,FALSE)","v":281},{"$f":"HLOOKUP(DD$7+0.5,$I$66:$DJ$120,ROWS($A$10:$A17)+2,FALSE)","v":419},{"$f":"HLOOKUP(DE$7+0.5,$I$66:$DJ$120,ROWS($A$10:$A17)+2,FALSE)","v":691},{"$f":"HLOOKUP(DF$7+0.5,$I$66:$DJ$120,ROWS($A$10:$A17)+2,FALSE)","v":1631},{"$f":"HLOOKUP(DG$7+0.5,$I$66:$DJ$120,ROWS($A$10:$A17)+2,FALSE)","v":674},{"$f":"HLOOKUP(DH$7+0.5,$I$66:$DJ$120,ROWS($A$10:$A17)+2,FALSE)","v":1321},{"$f":"HLOOKUP(DI$7+0.5,$I$66:$DJ$120,ROWS($A$10:$A17)+2,FALSE)","v":78},{"$f":"HLOOKUP(DJ$7+0.5,$I$66:$DJ$120,ROWS($A$10:$A17)+2,FALSE)","v":1233}]
[null,"Delaware",889812,1573,764640,9145,90001,8498,{"$f":"HLOOKUP(I$7,$I$66:$DJ$120,ROWS($A$10:$A18)+2,FALSE)","v":30759},{"$f":"HLOOKUP(J$7,$I$66:$DJ$120,ROWS($A$10:$A18)+2,FALSE)","v":128},{"$f":"HLOOKUP(K$7,$I$66:$DJ$120,ROWS($A$10:$A18)+2,FALSE)","v":68},{"$f":"HLOOKUP(L$7,$I$66:$DJ$120,ROWS($A$10:$A18)+2,FALSE)","v":60},{"$f":"HLOOKUP(M$7,$I$66:$DJ$120,ROWS($A$10:$A18)+2,FALSE)","v":0},{"$f":"HLOOKUP(N$7,$I$66:$DJ$120,ROWS($A$10:$A18)+2,FALSE)","v":353},{"$f":"HLOOKUP(O$7,$I$66:$DJ$120,ROWS($A$10:$A18)+2,FALSE)","v":178},{"$f":"HLOOKUP(P$7,$I$66:$DJ$120,ROWS($A$10:$A18)+2,FALSE)","v":714},{"$f":"HLOOKUP(Q$7,$I$66:$DJ$120,ROWS($A$10:$A18)+2,FALSE)","v":"N/A"},{"$f":"HLOOKUP(R$7,$I$66:$DJ$120,ROWS($A$10:$A18)+2,FALSE)","v":432},{"$f":"HLOOKUP(S$7,$I$66:$DJ$120,ROWS($A$10:$A18)+2,FALSE)","v":2362},{"$f":"HLOOKUP(T$7,$I$66:$DJ$120,ROWS($A$10:$A18)+2,FALSE)","v":585},{"$f":"HLOOKUP(U$7,$I$66:$DJ$120,ROWS($A$10:$A18)+2,FALSE)","v":0},{"$f":"HLOOKUP(V$7,$I$66:$DJ$120,ROWS($A$10:$A18)+2,FALSE)","v":0},{"$f":"HLOOKUP(W$7,$I$66:$DJ$120,ROWS($A$10:$A18)+2,FALSE)","v":612},{"$f":"HLOOKUP(X$7,$I$66:$DJ$120,ROWS($A$10:$A18)+2,FALSE)","v":0},{"$f":"HLOOKUP(Y$7,$I$66:$DJ$120,ROWS($A$10:$A18)+2,FALSE)","v":0},{"$f":"HLOOKUP(Z$7,$I$66:$DJ$120,ROWS($A$10:$A18)+2,FALSE)","v":28},{"$f":"HLOOKUP(AA$7,$I$66:$DJ$120,ROWS($A$10:$A18)+2,FALSE)","v":163},{"$f":"HLOOKUP(AB$7,$I$66:$DJ$120,ROWS($A$10:$A18)+2,FALSE)","v":0},{"$f":"HLOOKUP(AC$7,$I$66:$DJ$120,ROWS($A$10:$A18)+2,FALSE)","v":294},{"$f":"HLOOKUP(AD$7,$I$66:$DJ$120,ROWS($A$10:$A18)+2,FALSE)","v":4969},{"$f":"HLOOKUP(AE$7,$I$66:$DJ$120,ROWS($A$10:$A18)+2,FALSE)","v":689},{"$f":"HLOOKUP(AF$7,$I$66:$DJ$120,ROWS($A$10:$A18)+2,FALSE)","v":61},{"$f":"HLOOKUP(AG$7,$I$66:$DJ$120,ROWS($A$10:$A18)+2,FALSE)","v":55},{"$f":"HLOOKUP(AH$7,$I$66:$DJ$120,ROWS($A$10:$A18)+2,FALSE)","v":0},{"$f":"HLOOKUP(AI$7,$I$66:$DJ$120,ROWS($A$10:$A18)+2,FALSE)","v":539},{"$f":"HLOOKUP(AJ$7,$I$66:$DJ$120,ROWS($A$10:$A18)+2,FALSE)","v":73},{"$f":"HLOOKUP(AK$7,$I$66:$DJ$120,ROWS($A$10:$A18)+2,FALSE)","v":0},{"$f":"HLOOKUP(AL$7,$I$66:$DJ$120,ROWS($A$10:$A18)+2,FALSE)","v":106},{"$f":"HLOOKUP(AM$7,$I$66:$DJ$120,ROWS($A$10:$A18)+2,FALSE)","v":139},{"$f":"HLOOKUP(AN$7,$I$66:$DJ$120,ROWS($A$10:$A18)+2,FALSE)","v":3678},{"$f":"HLOOKUP(AO$7,$I$66:$DJ$120,ROWS($A$10:$A18)+2,FALSE)","v":59},{"$f":"HLOOKUP(AP$7,$I$66:$DJ$120,ROWS($A$10:$A18)+2,FALSE)","v":4251},{"$f":"HLOOKUP(AQ$7,$I$66:$DJ$120,ROWS($A$10:$A18)+2,FALSE)","v":424},{"$f":"HLOOKUP(AR$7,$I$66:$DJ$120,ROWS($A$10:$A18)+2,FALSE)","v":0},{"$f":"HLOOKUP(AS$7,$I$66:$DJ$120,ROWS($A$10:$A18)+2,FALSE)","v":325},{"$f":"HLOOKUP(AT$7,$I$66:$DJ$120,ROWS($A$10:$A18)+2,FALSE)","v":0},{"$f":"HLOOKUP(AU$7,$I$66:$DJ$120,ROWS($A$10:$A18)+2,FALSE)","v":0},{"$f":"HLOOKUP(AV$7,$I$66:$DJ$120,ROWS($A$10:$A18)+2,FALSE)","v":7318},{"$f":"HLOOKUP(AW$7,$I$66:$DJ$120,ROWS($A$10:$A18)+2,FALSE)","v":149},{"$f":"HLOOKUP(AX$7,$I$66:$DJ$120,ROWS($A$10:$A18)+2,FALSE)","v":195},{"$f":"HLOOKUP(AY$7,$I$66:$DJ$120,ROWS($A$10:$A18)+2,FALSE)","v":0},{"$f":"HLOOKUP(AZ$7,$I$66:$DJ$120,ROWS($A$10:$A18)+2,FALSE)","v":146},{"$f":"HLOOKUP(BA$7,$I$66:$DJ$120,ROWS($A$10:$A18)+2,FALSE)","v":178},{"$f":"HLOOKUP(BB$7,$I$66:$DJ$120,ROWS($A$10:$A18)+2,FALSE)","v":0},{"$f":"HLOOKUP(BC$7,$I$66:$DJ$120,ROWS($A$10:$A18)+2,FALSE)","v":0},{"$f":"HLOOKUP(BD$7,$I$66:$DJ$120,ROWS($A$10:$A18)+2,FALSE)","v":1051},{"$f":"HLOOKUP(BE$7,$I$66:$DJ$120,ROWS($A$10:$A18)+2,FALSE)","v":377},{"$f":"HLOOKUP(BF$7,$I$66:$DJ$120,ROWS($A$10:$A18)+2,FALSE)","v":0},{"$f":"HLOOKUP(BG$7,$I$66:$DJ$120,ROWS($A$10:$A18)+2,FALSE)","v":0},{"$f":"HLOOKUP(BH$7,$I$66:$DJ$120,ROWS($A$10:$A18)+2,FALSE)","v":0},{"$f":"HLOOKUP(BI$7,$I$66:$DJ$120,ROWS($A$10:$A18)+2,FALSE)","v":954},{"$f":"HLOOKUP(BJ$7+0.5,$I$66:$DJ$120,ROWS($A$10:$A18)+2,FALSE)","v":4030},{"$f":"HLOOKUP(BK$7+0.5,$I$66:$DJ$120,ROWS($A$10:$A18)+2,FALSE)","v":211},{"$f":"HLOOKUP(BL$7+0.5,$I$66:$DJ$120,ROWS($A$10:$A18)+2,FALSE)","v":111},{"$f":"HLOOKUP(BM$7+0.5,$I$66:$DJ$120,ROWS($A$10:$A18)+2,FALSE)","v":78},{"$f":"HLOOKUP(BN$7+0.5,$I$66:$DJ$120,ROWS($A$10:$A18)+2,FALSE)","v":265},{"$f":"HLOOKUP(BO$7+0.5,$I$66:$DJ$120,ROWS($A$10:$A18)+2,FALSE)","v":290},{"$f":"HLOOKUP(BP$7+0.5,$I$66:$DJ$120,ROWS($A$10:$A18)+2,FALSE)","v":249},{"$f":"HLOOKUP(BQ$7+0.5,$I$66:$DJ$120,ROWS($A$10:$A18)+2,FALSE)","v":693},{"$f":"HLOOKUP(BR$7+0.5,$I$66:$DJ$120,ROWS($A$10:$A18)+2,FALSE)","v":"N/A"},{"$f":"HLOOKUP(BS$7+0.5,$I$66:$DJ$120,ROWS($A$10:$A18)+2,FALSE)","v":467},{"$f":"HLOOKUP(BT$7+0.5,$I$66:$DJ$120,ROWS($A$10:$A18)+2,FALSE)","v":996},{"$f":"HLOOKUP(BU$7+0.5,$I$66:$DJ$120,ROWS($A$10:$A18)+2,FALSE)","v":575},{"$f":"HLOOKUP(BV$7+0.5,$I$66:$DJ$120,ROWS($A$10:$A18)+2,FALSE)","v":265},{"$f":"HLOOKUP(BW$7+0.5,$I$66:$DJ$120,ROWS($A$10:$A18)+2,FALSE)","v":265},{"$f":"HLOOKUP(BX$7+0.5,$I$66:$DJ$120,ROWS($A$10:$A18)+2,FALSE)","v":583},{"$f":"HLOOKUP(BY$7+0.5,$I$66:$DJ$120,ROWS($A$10:$A18)+2,FALSE)","v":265},{"$f":"HLOOKUP(BZ$7+0.5,$I$66:$DJ$120,ROWS($A$10:$A18)+2,FALSE)","v":265},{"$f":"HLOOKUP(CA$7+0.5,$I$66:$DJ$120,ROWS($A$10:$A18)+2,FALSE)","v":47},{"$f":"HLOOKUP(CB$7+0.5,$I$66:$DJ$120,ROWS($A$10:$A18)+2,FALSE)","v":273},{"$f":"HLOOKUP(CC$7+0.5,$I$66:$DJ$120,ROWS($A$10:$A18)+2,FALSE)","v":265},{"$f":"HLOOKUP(CD$7+0.5,$I$66:$DJ$120,ROWS($A$10:$A18)+2,FALSE)","v":406},{"$f":"HLOOKUP(CE$7+0.5,$I$66:$DJ$120,ROWS($A$10:$A18)+2,FALSE)","v":1144},{"$f":"HLOOKUP(CF$7+0.5,$I$66:$DJ$120,ROWS($A$10:$A18)+2,FALSE)","v":538},{"$f":"HLOOKUP(CG$7+0.5,$I$66:$DJ$120,ROWS($A$10:$A18)+2,FALSE)","v":102},{"$f":"HLOOKUP(CH$7+0.5,$I$66:$DJ$120,ROWS($A$10:$A18)+2,FALSE)","v":92},{"$f":"HLOOKUP(CI$7+0.5,$I$66:$DJ$120,ROWS($A$10:$A18)+2,FALSE)","v":265},{"$f":"HLOOKUP(CJ$7+0.5,$I$66:$DJ$120,ROWS($A$10:$A18)+2,FALSE)","v":842},{"$f":"HLOOKUP(CK$7+0.5,$I$66:$DJ$120,ROWS($A$10:$A18)+2,FALSE)","v":120},{"$f":"HLOOKUP(CL$7+0.5,$I$66:$DJ$120,ROWS($A$10:$A18)+2,FALSE)","v":265},{"$f":"HLOOKUP(CM$7+0.5,$I$66:$DJ$120,ROWS($A$10:$A18)+2,FALSE)","v":183},{"$f":"HLOOKUP(CN$7+0.5,$I$66:$DJ$120,ROWS($A$10:$A18)+2,FALSE)","v":246},{"$f":"HLOOKUP(CO$7+0.5,$I$66:$DJ$120,ROWS($A$10:$A18)+2,FALSE)","v":935},{"$f":"HLOOKUP(CP$7+0.5,$I$66:$DJ$120,ROWS($A$10:$A18)+2,FALSE)","v":98},{"$f":"HLOOKUP(CQ$7+0.5,$I$66:$DJ$120,ROWS($A$10:$A18)+2,FALSE)","v":1555},{"$f":"HLOOKUP(CR$7+0.5,$I$66:$DJ$120,ROWS($A$10:$A18)+2,FALSE)","v":466},{"$f":"HLOOKUP(CS$7+0.5,$I$66:$DJ$120,ROWS($A$10:$A18)+2,FALSE)","v":265},{"$f":"HLOOKUP(CT$7+0.5,$I$66:$DJ$120,ROWS($A$10:$A18)+2,FALSE)","v":339},{"$f":"HLOOKUP(CU$7+0.5,$I$66:$DJ$120,ROWS($A$10:$A18)+2,FALSE)","v":265},{"$f":"HLOOKUP(CV$7+0.5,$I$66:$DJ$120,ROWS($A$10:$A18)+2,FALSE)","v":265},{"$f":"HLOOKUP(CW$7+0.5,$I$66:$DJ$120,ROWS($A$10:$A18)+2,FALSE)","v":2368},{"$f":"HLOOKUP(CX$7+0.5,$I$66:$DJ$120,ROWS($A$10:$A18)+2,FALSE)","v":241},{"$f":"HLOOKUP(CY$7+0.5,$I$66:$DJ$120,ROWS($A$10:$A18)+2,FALSE)","v":272},{"$f":"HLOOKUP(CZ$7+0.5,$I$66:$DJ$120,ROWS($A$10:$A18)+2,FALSE)","v":265},{"$f":"HLOOKUP(DA$7+0.5,$I$66:$DJ$120,ROWS($A$10:$A18)+2,FALSE)","v":248},{"$f":"HLOOKUP(DB$7+0.5,$I$66:$DJ$120,ROWS($A$10:$A18)+2,FALSE)","v":313},{"$f":"HLOOKUP(DC$7+0.5,$I$66:$DJ$120,ROWS($A$10:$A18)+2,FALSE)","v":265},{"$f":"HLOOKUP(DD$7+0.5,$I$66:$DJ$120,ROWS($A$10:$A18)+2,FALSE)","v":265},{"$f":"HLOOKUP(DE$7+0.5,$I$66:$DJ$120,ROWS($A$10:$A18)+2,FALSE)","v":538},{"$f":"HLOOKUP(DF$7+0.5,$I$66:$DJ$120,ROWS($A$10:$A18)+2,FALSE)","v":280},{"$f":"HLOOKUP(DG$7+0.5,$I$66:$DJ$120,ROWS($A$10:$A18)+2,FALSE)","v":265},{"$f":"HLOOKUP(DH$7+0.5,$I$66:$DJ$120,ROWS($A$10:$A18)+2,FALSE)","v":265},{"$f":"HLOOKUP(DI$7+0.5,$I$66:$DJ$120,ROWS($A$10:$A18)+2,FALSE)","v":265},{"$f":"HLOOKUP(DJ$7+0.5,$I$66:$DJ$120,ROWS($A$10:$A18)+2,FALSE)","v":1095}]
[null,"District of Columbia ",596747,1124,474676,8281,63766,6163,{"$f":"HLOOKUP(I$7,$I$66:$DJ$120,ROWS($A$10:$A19)+2,FALSE)","v":51244},{"$f":"HLOOKUP(J$7,$I$66:$DJ$120,ROWS($A$10:$A19)+2,FALSE)","v":360},{"$f":"HLOOKUP(K$7,$I$66:$DJ$120,ROWS($A$10:$A19)+2,FALSE)","v":591},{"$f":"HLOOKUP(L$7,$I$66:$DJ$120,ROWS($A$10:$A19)+2,FALSE)","v":662},{"$f":"HLOOKUP(M$7,$I$66:$DJ$120,ROWS($A$10:$A19)+2,FALSE)","v":155},{"$f":"HLOOKUP(N$7,$I$66:$DJ$120,ROWS($A$10:$A19)+2,FALSE)","v":4205},{"$f":"HLOOKUP(O$7,$I$66:$DJ$120,ROWS($A$10:$A19)+2,FALSE)","v":656},{"$f":"HLOOKUP(P$7,$I$66:$DJ$120,ROWS($A$10:$A19)+2,FALSE)","v":926},{"$f":"HLOOKUP(Q$7,$I$66:$DJ$120,ROWS($A$10:$A19)+2,FALSE)","v":0},{"$f":"HLOOKUP(R$7,$I$66:$DJ$120,ROWS($A$10:$A19)+2,FALSE)","v":"N/A"},{"$f":"HLOOKUP(S$7,$I$66:$DJ$120,ROWS($A$10:$A19)+2,FALSE)","v":1100},{"$f":"HLOOKUP(T$7,$I$66:$DJ$120,ROWS($A$10:$A19)+2,FALSE)","v":1597},{"$f":"HLOOKUP(U$7,$I$66:$DJ$120,ROWS($A$10:$A19)+2,FALSE)","v":0},{"$f":"HLOOKUP(V$7,$I$66:$DJ$120,ROWS($A$10:$A19)+2,FALSE)","v":0},{"$f":"HLOOKUP(W$7,$I$66:$DJ$120,ROWS($A$10:$A19)+2,FALSE)","v":615},{"$f":"HLOOKUP(X$7,$I$66:$DJ$120,ROWS($A$10:$A19)+2,FALSE)","v":711},{"$f":"HLOOKUP(Y$7,$I$66:$DJ$120,ROWS($A$10:$A19)+2,FALSE)","v":392},{"$f":"HLOOKUP(Z$7,$I$66:$DJ$120,ROWS($A$10:$A19)+2,FALSE)","v":83},{"$f":"HLOOKUP(AA$7,$I$66:$DJ$120,ROWS($A$10:$A19)+2,FALSE)","v":94},{"$f":"HLOOKUP(AB$7,$I$66:$DJ$120,ROWS($A$10:$A19)+2,FALSE)","v":0},{"$f":"HLOOKUP(AC$7,$I$66:$DJ$120,ROWS($A$10:$A19)+2,FALSE)","v":76},{"$f":"HLOOKUP(AD$7,$I$66:$DJ$120,ROWS($A$10:$A19)+2,FALSE)","v":13503},{"$f":"HLOOKUP(AE$7,$I$66:$DJ$120,ROWS($A$10:$A19)+2,FALSE)","v":1376},{"$f":"HLOOKUP(AF$7,$I$66:$DJ$120,ROWS($A$10:$A19)+2,FALSE)","v":126},{"$f":"HLOOKUP(AG$7,$I$66:$DJ$120,ROWS($A$10:$A19)+2,FALSE)","v":87},{"$f":"HLOOKUP(AH$7,$I$66:$DJ$120,ROWS($A$10:$A19)+2,FALSE)","v":0},{"$f":"HLOOKUP(AI$7,$I$66:$DJ$120,ROWS($A$10:$A19)+2,FALSE)","v":272},{"$f":"HLOOKUP(AJ$7,$I$66:$DJ$120,ROWS($A$10:$A19)+2,FALSE)","v":0},{"$f":"HLOOKUP(AK$7,$I$66:$DJ$120,ROWS($A$10:$A19)+2,FALSE)","v":62},{"$f":"HLOOKUP(AL$7,$I$66:$DJ$120,ROWS($A$10:$A19)+2,FALSE)","v":0},{"$f":"HLOOKUP(AM$7,$I$66:$DJ$120,ROWS($A$10:$A19)+2,FALSE)","v":137},{"$f":"HLOOKUP(AN$7,$I$66:$DJ$120,ROWS($A$10:$A19)+2,FALSE)","v":1924},{"$f":"HLOOKUP(AO$7,$I$66:$DJ$120,ROWS($A$10:$A19)+2,FALSE)","v":61},{"$f":"HLOOKUP(AP$7,$I$66:$DJ$120,ROWS($A$10:$A19)+2,FALSE)","v":3852},{"$f":"HLOOKUP(AQ$7,$I$66:$DJ$120,ROWS($A$10:$A19)+2,FALSE)","v":1897},{"$f":"HLOOKUP(AR$7,$I$66:$DJ$120,ROWS($A$10:$A19)+2,FALSE)","v":98},{"$f":"HLOOKUP(AS$7,$I$66:$DJ$120,ROWS($A$10:$A19)+2,FALSE)","v":598},{"$f":"HLOOKUP(AT$7,$I$66:$DJ$120,ROWS($A$10:$A19)+2,FALSE)","v":0},{"$f":"HLOOKUP(AU$7,$I$66:$DJ$120,ROWS($A$10:$A19)+2,FALSE)","v":601},{"$f":"HLOOKUP(AV$7,$I$66:$DJ$120,ROWS($A$10:$A19)+2,FALSE)","v":2378},{"$f":"HLOOKUP(AW$7,$I$66:$DJ$120,ROWS($A$10:$A19)+2,FALSE)","v":249},{"$f":"HLOOKUP(AX$7,$I$66:$DJ$120,ROWS($A$10:$A19)+2,FALSE)","v":380},{"$f":"HLOOKUP(AY$7,$I$66:$DJ$120,ROWS($A$10:$A19)+2,FALSE)","v":0},{"$f":"HLOOKUP(AZ$7,$I$66:$DJ$120,ROWS($A$10:$A19)+2,FALSE)","v":591},{"$f":"HLOOKUP(BA$7,$I$66:$DJ$120,ROWS($A$10:$A19)+2,FALSE)","v":1180},{"$f":"HLOOKUP(BB$7,$I$66:$DJ$120,ROWS($A$10:$A19)+2,FALSE)","v":0},{"$f":"HLOOKUP(BC$7,$I$66:$DJ$120,ROWS($A$10:$A19)+2,FALSE)","v":199},{"$f":"HLOOKUP(BD$7,$I$66:$DJ$120,ROWS($A$10:$A19)+2,FALSE)","v":7915},{"$f":"HLOOKUP(BE$7,$I$66:$DJ$120,ROWS($A$10:$A19)+2,FALSE)","v":284},{"$f":"HLOOKUP(BF$7,$I$66:$DJ$120,ROWS($A$10:$A19)+2,FALSE)","v":860},{"$f":"HLOOKUP(BG$7,$I$66:$DJ$120,ROWS($A$10:$A19)+2,FALSE)","v":391},{"$f":"HLOOKUP(BH$7,$I$66:$DJ$120,ROWS($A$10:$A19)+2,FALSE)","v":0},{"$f":"HLOOKUP(BI$7,$I$66:$DJ$120,ROWS($A$10:$A19)+2,FALSE)","v":0},{"$f":"HLOOKUP(BJ$7+0.5,$I$66:$DJ$120,ROWS($A$10:$A19)+2,FALSE)","v":4828},{"$f":"HLOOKUP(BK$7+0.5,$I$66:$DJ$120,ROWS($A$10:$A19)+2,FALSE)","v":418},{"$f":"HLOOKUP(BL$7+0.5,$I$66:$DJ$120,ROWS($A$10:$A19)+2,FALSE)","v":529},{"$f":"HLOOKUP(BM$7+0.5,$I$66:$DJ$120,ROWS($A$10:$A19)+2,FALSE)","v":466},{"$f":"HLOOKUP(BN$7+0.5,$I$66:$DJ$120,ROWS($A$10:$A19)+2,FALSE)","v":195},{"$f":"HLOOKUP(BO$7+0.5,$I$66:$DJ$120,ROWS($A$10:$A19)+2,FALSE)","v":1255},{"$f":"HLOOKUP(BP$7+0.5,$I$66:$DJ$120,ROWS($A$10:$A19)+2,FALSE)","v":637},{"$f":"HLOOKUP(BQ$7+0.5,$I$66:$DJ$120,ROWS($A$10:$A19)+2,FALSE)","v":592},{"$f":"HLOOKUP(BR$7+0.5,$I$66:$DJ$120,ROWS($A$10:$A19)+2,FALSE)","v":292},{"$f":"HLOOKUP(BS$7+0.5,$I$66:$DJ$120,ROWS($A$10:$A19)+2,FALSE)","v":"N/A"},{"$f":"HLOOKUP(BT$7+0.5,$I$66:$DJ$120,ROWS($A$10:$A19)+2,FALSE)","v":609},{"$f":"HLOOKUP(BU$7+0.5,$I$66:$DJ$120,ROWS($A$10:$A19)+2,FALSE)","v":795},{"$f":"HLOOKUP(BV$7+0.5,$I$66:$DJ$120,ROWS($A$10:$A19)+2,FALSE)","v":292},{"$f":"HLOOKUP(BW$7+0.5,$I$66:$DJ$120,ROWS($A$10:$A19)+2,FALSE)","v":292},{"$f":"HLOOKUP(BX$7+0.5,$I$66:$DJ$120,ROWS($A$10:$A19)+2,FALSE)","v":373},{"$f":"HLOOKUP(BY$7+0.5,$I$66:$DJ$120,ROWS($A$10:$A19)+2,FALSE)","v":461},{"$f":"HLOOKUP(BZ$7+0.5,$I$66:$DJ$120,ROWS($A$10:$A19)+2,FALSE)","v":377},{"$f":"HLOOKUP(CA$7+0.5,$I$66:$DJ$120,ROWS($A$10:$A19)+2,FALSE)","v":137},{"$f":"HLOOKUP(CB$7+0.5,$I$66:$DJ$120,ROWS($A$10:$A19)+2,FALSE)","v":155},{"$f":"HLOOKUP(CC$7+0.5,$I$66:$DJ$120,ROWS($A$10:$A19)+2,FALSE)","v":292},{"$f":"HLOOKUP(CD$7+0.5,$I$66:$DJ$120,ROWS($A$10:$A19)+2,FALSE)","v":121},{"$f":"HLOOKUP(CE$7+0.5,$I$66:$DJ$120,ROWS($A$10:$A19)+2,FALSE)","v":2647},{"$f":"HLOOKUP(CF$7+0.5,$I$66:$DJ$120,ROWS($A$10:$A19)+2,FALSE)","v":540},{"$f":"HLOOKUP(CG$7+0.5,$I$66:$DJ$120,ROWS($A$10:$A19)+2,FALSE)","v":153},{"$f":"HLOOKUP(CH$7+0.5,$I$66:$DJ$120,ROWS($A$10:$A19)+2,FALSE)","v":105},{"$f":"HLOOKUP(CI$7+0.5,$I$66:$DJ$120,ROWS($A$10:$A19)+2,FALSE)","v":292},{"$f":"HLOOKUP(CJ$7+0.5,$I$66:$DJ$120,ROWS($A$10:$A19)+2,FALSE)","v":371},{"$f":"HLOOKUP(CK$7+0.5,$I$66:$DJ$120,ROWS($A$10:$A19)+2,FALSE)","v":292},{"$f":"HLOOKUP(CL$7+0.5,$I$66:$DJ$120,ROWS($A$10:$A19)+2,FALSE)","v":103},{"$f":"HLOOKUP(CM$7+0.5,$I$66:$DJ$120,ROWS($A$10:$A19)+2,FALSE)","v":292},{"$f":"HLOOKUP(CN$7+0.5,$I$66:$DJ$120,ROWS($A$10:$A19)+2,FALSE)","v":136},{"$f":"HLOOKUP(CO$7+0.5,$I$66:$DJ$120,ROWS($A$10:$A19)+2,FALSE)","v":694},{"$f":"HLOOKUP(CP$7+0.5,$I$66:$DJ$120,ROWS($A$10:$A19)+2,FALSE)","v":100},{"$f":"HLOOKUP(CQ$7+0.5,$I$66:$DJ$120,ROWS($A$10:$A19)+2,FALSE)","v":1325},{"$f":"HLOOKUP(CR$7+0.5,$I$66:$DJ$120,ROWS($A$10:$A19)+2,FALSE)","v":1089},{"$f":"HLOOKUP(CS$7+0.5,$I$66:$DJ$120,ROWS($A$10:$A19)+2,FALSE)","v":165},{"$f":"HLOOKUP(CT$7+0.5,$I$66:$DJ$120,ROWS($A$10:$A19)+2,FALSE)","v":359},{"$f":"HLOOKUP(CU$7+0.5,$I$66:$DJ$120,ROWS($A$10:$A19)+2,FALSE)","v":292},{"$f":"HLOOKUP(CV$7+0.5,$I$66:$DJ$120,ROWS($A$10:$A19)+2,FALSE)","v":520},{"$f":"HLOOKUP(CW$7+0.5,$I$66:$DJ$120,ROWS($A$10:$A19)+2,FALSE)","v":771},{"$f":"HLOOKUP(CX$7+0.5,$I$66:$DJ$120,ROWS($A$10:$A19)+2,FALSE)","v":206},{"$f":"HLOOKUP(CY$7+0.5,$I$66:$DJ$120,ROWS($A$10:$A19)+2,FALSE)","v":339},{"$f":"HLOOKUP(CZ$7+0.5,$I$66:$DJ$120,ROWS($A$10:$A19)+2,FALSE)","v":292},{"$f":"HLOOKUP(DA$7+0.5,$I$66:$DJ$120,ROWS($A$10:$A19)+2,FALSE)","v":543},{"$f":"HLOOKUP(DB$7+0.5,$I$66:$DJ$120,ROWS($A$10:$A19)+2,FALSE)","v":605},{"$f":"HLOOKUP(DC$7+0.5,$I$66:$DJ$120,ROWS($A$10:$A19)+2,FALSE)","v":292},{"$f":"HLOOKUP(DD$7+0.5,$I$66:$DJ$120,ROWS($A$10:$A19)+2,FALSE)","v":245},{"$f":"HLOOKUP(DE$7+0.5,$I$66:$DJ$120,ROWS($A$10:$A19)+2,FALSE)","v":1638},{"$f":"HLOOKUP(DF$7+0.5,$I$66:$DJ$120,ROWS($A$10:$A19)+2,FALSE)","v":220},{"$f":"HLOOKUP(DG$7+0.5,$I$66:$DJ$120,ROWS($A$10:$A19)+2,FALSE)","v":754},{"$f":"HLOOKUP(DH$7+0.5,$I$66:$DJ$120,ROWS($A$10:$A19)+2,FALSE)","v":325},{"$f":"HLOOKUP(DI$7+0.5,$I$66:$DJ$120,ROWS($A$10:$A19)+2,FALSE)","v":292},{"$f":"HLOOKUP(DJ$7+0.5,$I$66:$DJ$120,ROWS($A$10:$A19)+2,FALSE)","v":292}]
[null,"Florida",18647600,7733,15554008,45602,2459530,38387,{"$f":"HLOOKUP(I$7,$I$66:$DJ$120,ROWS($A$10:$A20)+2,FALSE)","v":482889},{"$f":"HLOOKUP(J$7,$I$66:$DJ$120,ROWS($A$10:$A20)+2,FALSE)","v":15830},{"$f":"HLOOKUP(K$7,$I$66:$DJ$120,ROWS($A$10:$A20)+2,FALSE)","v":5887},{"$f":"HLOOKUP(L$7,$I$66:$DJ$120,ROWS($A$10:$A20)+2,FALSE)","v":3907},{"$f":"HLOOKUP(M$7,$I$66:$DJ$120,ROWS($A$10:$A20)+2,FALSE)","v":3611},{"$f":"HLOOKUP(N$7,$I$66:$DJ$120,ROWS($A$10:$A20)+2,FALSE)","v":22130},{"$f":"HLOOKUP(O$7,$I$66:$DJ$120,ROWS($A$10:$A20)+2,FALSE)","v":6428},{"$f":"HLOOKUP(P$7,$I$66:$DJ$120,ROWS($A$10:$A20)+2,FALSE)","v":11183},{"$f":"HLOOKUP(Q$7,$I$66:$DJ$120,ROWS($A$10:$A20)+2,FALSE)","v":3099},{"$f":"HLOOKUP(R$7,$I$66:$DJ$120,ROWS($A$10:$A20)+2,FALSE)","v":1110},{"$f":"HLOOKUP(S$7,$I$66:$DJ$120,ROWS($A$10:$A20)+2,FALSE)","v":"N/A"},{"$f":"HLOOKUP(T$7,$I$66:$DJ$120,ROWS($A$10:$A20)+2,FALSE)","v":35615},{"$f":"HLOOKUP(U$7,$I$66:$DJ$120,ROWS($A$10:$A20)+2,FALSE)","v":2021},{"$f":"HLOOKUP(V$7,$I$66:$DJ$120,ROWS($A$10:$A20)+2,FALSE)","v":884},{"$f":"HLOOKUP(W$7,$I$66:$DJ$120,ROWS($A$10:$A20)+2,FALSE)","v":17432},{"$f":"HLOOKUP(X$7,$I$66:$DJ$120,ROWS($A$10:$A20)+2,FALSE)","v":9030},{"$f":"HLOOKUP(Y$7,$I$66:$DJ$120,ROWS($A$10:$A20)+2,FALSE)","v":2921},{"$f":"HLOOKUP(Z$7,$I$66:$DJ$120,ROWS($A$10:$A20)+2,FALSE)","v":4136},{"$f":"HLOOKUP(AA$7,$I$66:$DJ$120,ROWS($A$10:$A20)+2,FALSE)","v":6321},{"$f":"HLOOKUP(AB$7,$I$66:$DJ$120,ROWS($A$10:$A20)+2,FALSE)","v":7232},{"$f":"HLOOKUP(AC$7,$I$66:$DJ$120,ROWS($A$10:$A20)+2,FALSE)","v":5497},{"$f":"HLOOKUP(AD$7,$I$66:$DJ$120,ROWS($A$10:$A20)+2,FALSE)","v":13241},{"$f":"HLOOKUP(AE$7,$I$66:$DJ$120,ROWS($A$10:$A20)+2,FALSE)","v":13900},{"$f":"HLOOKUP(AF$7,$I$66:$DJ$120,ROWS($A$10:$A20)+2,FALSE)","v":21359},{"$f":"HLOOKUP(AG$7,$I$66:$DJ$120,ROWS($A$10:$A20)+2,FALSE)","v":5439},{"$f":"HLOOKUP(AH$7,$I$66:$DJ$120,ROWS($A$10:$A20)+2,FALSE)","v":7929},{"$f":"HLOOKUP(AI$7,$I$66:$DJ$120,ROWS($A$10:$A20)+2,FALSE)","v":7984},{"$f":"HLOOKUP(AJ$7,$I$66:$DJ$120,ROWS($A$10:$A20)+2,FALSE)","v":338},{"$f":"HLOOKUP(AK$7,$I$66:$DJ$120,ROWS($A$10:$A20)+2,FALSE)","v":1544},{"$f":"HLOOKUP(AL$7,$I$66:$DJ$120,ROWS($A$10:$A20)+2,FALSE)","v":7050},{"$f":"HLOOKUP(AM$7,$I$66:$DJ$120,ROWS($A$10:$A20)+2,FALSE)","v":3645},{"$f":"HLOOKUP(AN$7,$I$66:$DJ$120,ROWS($A$10:$A20)+2,FALSE)","v":22344},{"$f":"HLOOKUP(AO$7,$I$66:$DJ$120,ROWS($A$10:$A20)+2,FALSE)","v":900},{"$f":"HLOOKUP(AP$7,$I$66:$DJ$120,ROWS($A$10:$A20)+2,FALSE)","v":55011},{"$f":"HLOOKUP(AQ$7,$I$66:$DJ$120,ROWS($A$10:$A20)+2,FALSE)","v":19108},{"$f":"HLOOKUP(AR$7,$I$66:$DJ$120,ROWS($A$10:$A20)+2,FALSE)","v":794},{"$f":"HLOOKUP(AS$7,$I$66:$DJ$120,ROWS($A$10:$A20)+2,FALSE)","v":21047},{"$f":"HLOOKUP(AT$7,$I$66:$DJ$120,ROWS($A$10:$A20)+2,FALSE)","v":3466},{"$f":"HLOOKUP(AU$7,$I$66:$DJ$120,ROWS($A$10:$A20)+2,FALSE)","v":1655},{"$f":"HLOOKUP(AV$7,$I$66:$DJ$120,ROWS($A$10:$A20)+2,FALSE)","v":19935},{"$f":"HLOOKUP(AW$7,$I$66:$DJ$120,ROWS($A$10:$A20)+2,FALSE)","v":1982},{"$f":"HLOOKUP(AX$7,$I$66:$DJ$120,ROWS($A$10:$A20)+2,FALSE)","v":10759},{"$f":"HLOOKUP(AY$7,$I$66:$DJ$120,ROWS($A$10:$A20)+2,FALSE)","v":430},{"$f":"HLOOKUP(AZ$7,$I$66:$DJ$120,ROWS($A$10:$A20)+2,FALSE)","v":12882},{"$f":"HLOOKUP(BA$7,$I$66:$DJ$120,ROWS($A$10:$A20)+2,FALSE)","v":24039},{"$f":"HLOOKUP(BB$7,$I$66:$DJ$120,ROWS($A$10:$A20)+2,FALSE)","v":2833},{"$f":"HLOOKUP(BC$7,$I$66:$DJ$120,ROWS($A$10:$A20)+2,FALSE)","v":1442},{"$f":"HLOOKUP(BD$7,$I$66:$DJ$120,ROWS($A$10:$A20)+2,FALSE)","v":20080},{"$f":"HLOOKUP(BE$7,$I$66:$DJ$120,ROWS($A$10:$A20)+2,FALSE)","v":3573},{"$f":"HLOOKUP(BF$7,$I$66:$DJ$120,ROWS($A$10:$A20)+2,FALSE)","v":5634},{"$f":"HLOOKUP(BG$7,$I$66:$DJ$120,ROWS($A$10:$A20)+2,FALSE)","v":8081},{"$f":"HLOOKUP(BH$7,$I$66:$DJ$120,ROWS($A$10:$A20)+2,FALSE)","v":191},{"$f":"HLOOKUP(BI$7,$I$66:$DJ$120,ROWS($A$10:$A20)+2,FALSE)","v":12968},{"$f":"HLOOKUP(BJ$7+0.5,$I$66:$DJ$120,ROWS($A$10:$A20)+2,FALSE)","v":22701},{"$f":"HLOOKUP(BK$7+0.5,$I$66:$DJ$120,ROWS($A$10:$A20)+2,FALSE)","v":3829},{"$f":"HLOOKUP(BL$7+0.5,$I$66:$DJ$120,ROWS($A$10:$A20)+2,FALSE)","v":2502},{"$f":"HLOOKUP(BM$7+0.5,$I$66:$DJ$120,ROWS($A$10:$A20)+2,FALSE)","v":1463},{"$f":"HLOOKUP(BN$7+0.5,$I$66:$DJ$120,ROWS($A$10:$A20)+2,FALSE)","v":1562},{"$f":"HLOOKUP(BO$7+0.5,$I$66:$DJ$120,ROWS($A$10:$A20)+2,FALSE)","v":3867},{"$f":"HLOOKUP(BP$7+0.5,$I$66:$DJ$120,ROWS($A$10:$A20)+2,FALSE)","v":1941},{"$f":"HLOOKUP(BQ$7+0.5,$I$66:$DJ$120,ROWS($A$10:$A20)+2,FALSE)","v":2730},{"$f":"HLOOKUP(BR$7+0.5,$I$66:$DJ$120,ROWS($A$10:$A20)+2,FALSE)","v":1603},{"$f":"HLOOKUP(BS$7+0.5,$I$66:$DJ$120,ROWS($A$10:$A20)+2,FALSE)","v":564},{"$f":"HLOOKUP(BT$7+0.5,$I$66:$DJ$120,ROWS($A$10:$A20)+2,FALSE)","v":"N/A"},{"$f":"HLOOKUP(BU$7+0.5,$I$66:$DJ$120,ROWS($A$10:$A20)+2,FALSE)","v":5500},{"$f":"HLOOKUP(BV$7+0.5,$I$66:$DJ$120,ROWS($A$10:$A20)+2,FALSE)","v":990},{"$f":"HLOOKUP(BW$7+0.5,$I$66:$DJ$120,ROWS($A$10:$A20)+2,FALSE)","v":747},{"$f":"HLOOKUP(BX$7+0.5,$I$66:$DJ$120,ROWS($A$10:$A20)+2,FALSE)","v":3007},{"$f":"HLOOKUP(BY$7+0.5,$I$66:$DJ$120,ROWS($A$10:$A20)+2,FALSE)","v":2849},{"$f":"HLOOKUP(BZ$7+0.5,$I$66:$DJ$120,ROWS($A$10:$A20)+2,FALSE)","v":1091},{"$f":"HLOOKUP(CA$7+0.5,$I$66:$DJ$120,ROWS($A$10:$A20)+2,FALSE)","v":2062},{"$f":"HLOOKUP(CB$7+0.5,$I$66:$DJ$120,ROWS($A$10:$A20)+2,FALSE)","v":1902},{"$f":"HLOOKUP(CC$7+0.5,$I$66:$DJ$120,ROWS($A$10:$A20)+2,FALSE)","v":2781},{"$f":"HLOOKUP(CD$7+0.5,$I$66:$DJ$120,ROWS($A$10:$A20)+2,FALSE)","v":1861},{"$f":"HLOOKUP(CE$7+0.5,$I$66:$DJ$120,ROWS($A$10:$A20)+2,FALSE)","v":2929},{"$f":"HLOOKUP(CF$7+0.5,$I$66:$DJ$120,ROWS($A$10:$A20)+2,FALSE)","v":2269},{"$f":"HLOOKUP(CG$7+0.5,$I$66:$DJ$120,ROWS($A$10:$A20)+2,FALSE)","v":4622},{"$f":"HLOOKUP(CH$7+0.5,$I$66:$DJ$120,ROWS($A$10:$A20)+2,FALSE)","v":2349},{"$f":"HLOOKUP(CI$7+0.5,$I$66:$DJ$120,ROWS($A$10:$A20)+2,FALSE)","v":3596},{"$f":"HLOOKUP(CJ$7+0.5,$I$66:$DJ$120,ROWS($A$10:$A20)+2,FALSE)","v":2232},{"$f":"HLOOKUP(CK$7+0.5,$I$66:$DJ$120,ROWS($A$10:$A20)+2,FALSE)","v":289},{"$f":"HLOOKUP(CL$7+0.5,$I$66:$DJ$120,ROWS($A$10:$A20)+2,FALSE)","v":1314},{"$f":"HLOOKUP(CM$7+0.5,$I$66:$DJ$120,ROWS($A$10:$A20)+2,FALSE)","v":3281},{"$f":"HLOOKUP(CN$7+0.5,$I$66:$DJ$120,ROWS($A$10:$A20)+2,FALSE)","v":1193},{"$f":"HLOOKUP(CO$7+0.5,$I$66:$DJ$120,ROWS($A$10:$A20)+2,FALSE)","v":3256},{"$f":"HLOOKUP(CP$7+0.5,$I$66:$DJ$120,ROWS($A$10:$A20)+2,FALSE)","v":872},{"$f":"HLOOKUP(CQ$7+0.5,$I$66:$DJ$120,ROWS($A$10:$A20)+2,FALSE)","v":6848},{"$f":"HLOOKUP(CR$7+0.5,$I$66:$DJ$120,ROWS($A$10:$A20)+2,FALSE)","v":3464},{"$f":"HLOOKUP(CS$7+0.5,$I$66:$DJ$120,ROWS($A$10:$A20)+2,FALSE)","v":720},{"$f":"HLOOKUP(CT$7+0.5,$I$66:$DJ$120,ROWS($A$10:$A20)+2,FALSE)","v":3825},{"$f":"HLOOKUP(CU$7+0.5,$I$66:$DJ$120,ROWS($A$10:$A20)+2,FALSE)","v":1518},{"$f":"HLOOKUP(CV$7+0.5,$I$66:$DJ$120,ROWS($A$10:$A20)+2,FALSE)","v":1187},{"$f":"HLOOKUP(CW$7+0.5,$I$66:$DJ$120,ROWS($A$10:$A20)+2,FALSE)","v":3976},{"$f":"HLOOKUP(CX$7+0.5,$I$66:$DJ$120,ROWS($A$10:$A20)+2,FALSE)","v":813},{"$f":"HLOOKUP(CY$7+0.5,$I$66:$DJ$120,ROWS($A$10:$A20)+2,FALSE)","v":2906},{"$f":"HLOOKUP(CZ$7+0.5,$I$66:$DJ$120,ROWS($A$10:$A20)+2,FALSE)","v":473},{"$f":"HLOOKUP(DA$7+0.5,$I$66:$DJ$120,ROWS($A$10:$A20)+2,FALSE)","v":2482},{"$f":"HLOOKUP(DB$7+0.5,$I$66:$DJ$120,ROWS($A$10:$A20)+2,FALSE)","v":5038},{"$f":"HLOOKUP(DC$7+0.5,$I$66:$DJ$120,ROWS($A$10:$A20)+2,FALSE)","v":1249},{"$f":"HLOOKUP(DD$7+0.5,$I$66:$DJ$120,ROWS($A$10:$A20)+2,FALSE)","v":935},{"$f":"HLOOKUP(DE$7+0.5,$I$66:$DJ$120,ROWS($A$10:$A20)+2,FALSE)","v":4137},{"$f":"HLOOKUP(DF$7+0.5,$I$66:$DJ$120,ROWS($A$10:$A20)+2,FALSE)","v":1239},{"$f":"HLOOKUP(DG$7+0.5,$I$66:$DJ$120,ROWS($A$10:$A20)+2,FALSE)","v":2872},{"$f":"HLOOKUP(DH$7+0.5,$I$66:$DJ$120,ROWS($A$10:$A20)+2,FALSE)","v":2929},{"$f":"HLOOKUP(DI$7+0.5,$I$66:$DJ$120,ROWS($A$10:$A20)+2,FALSE)","v":258},{"$f":"HLOOKUP(DJ$7+0.5,$I$66:$DJ$120,ROWS($A$10:$A20)+2,FALSE)","v":4149}]
[null,"Georgia",9587237,5924,8015409,37393,1278548,36794,{"$f":"HLOOKUP(I$7,$I$66:$DJ$120,ROWS($A$10:$A21)+2,FALSE)","v":249459},{"$f":"HLOOKUP(J$7,$I$66:$DJ$120,ROWS($A$10:$A21)+2,FALSE)","v":13840},{"$f":"HLOOKUP(K$7,$I$66:$DJ$120,ROWS($A$10:$A21)+2,FALSE)","v":3645},{"$f":"HLOOKUP(L$7,$I$66:$DJ$120,ROWS($A$10:$A21)+2,FALSE)","v":2554},{"$f":"HLOOKUP(M$7,$I$66:$DJ$120,ROWS($A$10:$A21)+2,FALSE)","v":599},{"$f":"HLOOKUP(N$7,$I$66:$DJ$120,ROWS($A$10:$A21)+2,FALSE)","v":8909},{"$f":"HLOOKUP(O$7,$I$66:$DJ$120,ROWS($A$10:$A21)+2,FALSE)","v":3224},{"$f":"HLOOKUP(P$7,$I$66:$DJ$120,ROWS($A$10:$A21)+2,FALSE)","v":2619},{"$f":"HLOOKUP(Q$7,$I$66:$DJ$120,ROWS($A$10:$A21)+2,FALSE)","v":837},{"$f":"HLOOKUP(R$7,$I$66:$DJ$120,ROWS($A$10:$A21)+2,FALSE)","v":1708},{"$f":"HLOOKUP(S$7,$I$66:$DJ$120,ROWS($A$10:$A21)+2,FALSE)","v":49901},{"$f":"HLOOKUP(T$7,$I$66:$DJ$120,ROWS($A$10:$A21)+2,FALSE)","v":"N/A"},{"$f":"HLOOKUP(U$7,$I$66:$DJ$120,ROWS($A$10:$A21)+2,FALSE)","v":1040},{"$f":"HLOOKUP(V$7,$I$66:$DJ$120,ROWS($A$10:$A21)+2,FALSE)","v":414},{"$f":"HLOOKUP(W$7,$I$66:$DJ$120,ROWS($A$10:$A21)+2,FALSE)","v":9736},{"$f":"HLOOKUP(X$7,$I$66:$DJ$120,ROWS($A$10:$A21)+2,FALSE)","v":2649},{"$f":"HLOOKUP(Y$7,$I$66:$DJ$120,ROWS($A$10:$A21)+2,FALSE)","v":1096},{"$f":"HLOOKUP(Z$7,$I$66:$DJ$120,ROWS($A$10:$A21)+2,FALSE)","v":1355},{"$f":"HLOOKUP(AA$7,$I$66:$DJ$120,ROWS($A$10:$A21)+2,FALSE)","v":6525},{"$f":"HLOOKUP(AB$7,$I$66:$DJ$120,ROWS($A$10:$A21)+2,FALSE)","v":3645},{"$f":"HLOOKUP(AC$7,$I$66:$DJ$120,ROWS($A$10:$A21)+2,FALSE)","v":0},{"$f":"HLOOKUP(AD$7,$I$66:$DJ$120,ROWS($A$10:$A21)+2,FALSE)","v":5382},{"$f":"HLOOKUP(AE$7,$I$66:$DJ$120,ROWS($A$10:$A21)+2,FALSE)","v":3910},{"$f":"HLOOKUP(AF$7,$I$66:$DJ$120,ROWS($A$10:$A21)+2,FALSE)","v":6857},{"$f":"HLOOKUP(AG$7,$I$66:$DJ$120,ROWS($A$10:$A21)+2,FALSE)","v":1169},{"$f":"HLOOKUP(AH$7,$I$66:$DJ$120,ROWS($A$10:$A21)+2,FALSE)","v":2380},{"$f":"HLOOKUP(AI$7,$I$66:$DJ$120,ROWS($A$10:$A21)+2,FALSE)","v":3072},{"$f":"HLOOKUP(AJ$7,$I$66:$DJ$120,ROWS($A$10:$A21)+2,FALSE)","v":52},{"$f":"HLOOKUP(AK$7,$I$66:$DJ$120,ROWS($A$10:$A21)+2,FALSE)","v":148},{"$f":"HLOOKUP(AL$7,$I$66:$DJ$120,ROWS($A$10:$A21)+2,FALSE)","v":1155},{"$f":"HLOOKUP(AM$7,$I$66:$DJ$120,ROWS($A$10:$A21)+2,FALSE)","v":162},{"$f":"HLOOKUP(AN$7,$I$66:$DJ$120,ROWS($A$10:$A21)+2,FALSE)","v":4151},{"$f":"HLOOKUP(AO$7,$I$66:$DJ$120,ROWS($A$10:$A21)+2,FALSE)","v":826},{"$f":"HLOOKUP(AP$7,$I$66:$DJ$120,ROWS($A$10:$A21)+2,FALSE)","v":12472},{"$f":"HLOOKUP(AQ$7,$I$66:$DJ$120,ROWS($A$10:$A21)+2,FALSE)","v":15361},{"$f":"HLOOKUP(AR$7,$I$66:$DJ$120,ROWS($A$10:$A21)+2,FALSE)","v":0},{"$f":"HLOOKUP(AS$7,$I$66:$DJ$120,ROWS($A$10:$A21)+2,FALSE)","v":9323},{"$f":"HLOOKUP(AT$7,$I$66:$DJ$120,ROWS($A$10:$A21)+2,FALSE)","v":2070},{"$f":"HLOOKUP(AU$7,$I$66:$DJ$120,ROWS($A$10:$A21)+2,FALSE)","v":843},{"$f":"HLOOKUP(AV$7,$I$66:$DJ$120,ROWS($A$10:$A21)+2,FALSE)","v":6294},{"$f":"HLOOKUP(AW$7,$I$66:$DJ$120,ROWS($A$10:$A21)+2,FALSE)","v":43},{"$f":"HLOOKUP(AX$7,$I$66:$DJ$120,ROWS($A$10:$A21)+2,FALSE)","v":15562},{"$f":"HLOOKUP(AY$7,$I$66:$DJ$120,ROWS($A$10:$A21)+2,FALSE)","v":557},{"$f":"HLOOKUP(AZ$7,$I$66:$DJ$120,ROWS($A$10:$A21)+2,FALSE)","v":14445},{"$f":"HLOOKUP(BA$7,$I$66:$DJ$120,ROWS($A$10:$A21)+2,FALSE)","v":11424},{"$f":"HLOOKUP(BB$7,$I$66:$DJ$120,ROWS($A$10:$A21)+2,FALSE)","v":380},{"$f":"HLOOKUP(BC$7,$I$66:$DJ$120,ROWS($A$10:$A21)+2,FALSE)","v":361},{"$f":"HLOOKUP(BD$7,$I$66:$DJ$120,ROWS($A$10:$A21)+2,FALSE)","v":8393},{"$f":"HLOOKUP(BE$7,$I$66:$DJ$120,ROWS($A$10:$A21)+2,FALSE)","v":4495},{"$f":"HLOOKUP(BF$7,$I$66:$DJ$120,ROWS($A$10:$A21)+2,FALSE)","v":358},{"$f":"HLOOKUP(BG$7,$I$66:$DJ$120,ROWS($A$10:$A21)+2,FALSE)","v":3416},{"$f":"HLOOKUP(BH$7,$I$66:$DJ$120,ROWS($A$10:$A21)+2,FALSE)","v":102},{"$f":"HLOOKUP(BI$7,$I$66:$DJ$120,ROWS($A$10:$A21)+2,FALSE)","v":1010},{"$f":"HLOOKUP(BJ$7+0.5,$I$66:$DJ$120,ROWS($A$10:$A21)+2,FALSE)","v":15858},{"$f":"HLOOKUP(BK$7+0.5,$I$66:$DJ$120,ROWS($A$10:$A21)+2,FALSE)","v":2473},{"$f":"HLOOKUP(BL$7+0.5,$I$66:$DJ$120,ROWS($A$10:$A21)+2,FALSE)","v":1932},{"$f":"HLOOKUP(BM$7+0.5,$I$66:$DJ$120,ROWS($A$10:$A21)+2,FALSE)","v":1303},{"$f":"HLOOKUP(BN$7+0.5,$I$66:$DJ$120,ROWS($A$10:$A21)+2,FALSE)","v":436},{"$f":"HLOOKUP(BO$7+0.5,$I$66:$DJ$120,ROWS($A$10:$A21)+2,FALSE)","v":2412},{"$f":"HLOOKUP(BP$7+0.5,$I$66:$DJ$120,ROWS($A$10:$A21)+2,FALSE)","v":2058},{"$f":"HLOOKUP(BQ$7+0.5,$I$66:$DJ$120,ROWS($A$10:$A21)+2,FALSE)","v":1473},{"$f":"HLOOKUP(BR$7+0.5,$I$66:$DJ$120,ROWS($A$10:$A21)+2,FALSE)","v":753},{"$f":"HLOOKUP(BS$7+0.5,$I$66:$DJ$120,ROWS($A$10:$A21)+2,FALSE)","v":1278},{"$f":"HLOOKUP(BT$7+0.5,$I$66:$DJ$120,ROWS($A$10:$A21)+2,FALSE)","v":5558},{"$f":"HLOOKUP(BU$7+0.5,$I$66:$DJ$120,ROWS($A$10:$A21)+2,FALSE)","v":"N/A"},{"$f":"HLOOKUP(BV$7+0.5,$I$66:$DJ$120,ROWS($A$10:$A21)+2,FALSE)","v":658},{"$f":"HLOOKUP(BW$7+0.5,$I$66:$DJ$120,ROWS($A$10:$A21)+2,FALSE)","v":478},{"$f":"HLOOKUP(BX$7+0.5,$I$66:$DJ$120,ROWS($A$10:$A21)+2,FALSE)","v":3665},{"$f":"HLOOKUP(BY$7+0.5,$I$66:$DJ$120,ROWS($A$10:$A21)+2,FALSE)","v":1023},{"$f":"HLOOKUP(BZ$7+0.5,$I$66:$DJ$120,ROWS($A$10:$A21)+2,FALSE)","v":821},{"$f":"HLOOKUP(CA$7+0.5,$I$66:$DJ$120,ROWS($A$10:$A21)+2,FALSE)","v":1097},{"$f":"HLOOKUP(CB$7+0.5,$I$66:$DJ$120,ROWS($A$10:$A21)+2,FALSE)","v":2248},{"$f":"HLOOKUP(CC$7+0.5,$I$66:$DJ$120,ROWS($A$10:$A21)+2,FALSE)","v":1604},{"$f":"HLOOKUP(CD$7+0.5,$I$66:$DJ$120,ROWS($A$10:$A21)+2,FALSE)","v":300},{"$f":"HLOOKUP(CE$7+0.5,$I$66:$DJ$120,ROWS($A$10:$A21)+2,FALSE)","v":1767},{"$f":"HLOOKUP(CF$7+0.5,$I$66:$DJ$120,ROWS($A$10:$A21)+2,FALSE)","v":2127},{"$f":"HLOOKUP(CG$7+0.5,$I$66:$DJ$120,ROWS($A$10:$A21)+2,FALSE)","v":1831},{"$f":"HLOOKUP(CH$7+0.5,$I$66:$DJ$120,ROWS($A$10:$A21)+2,FALSE)","v":718},{"$f":"HLOOKUP(CI$7+0.5,$I$66:$DJ$120,ROWS($A$10:$A21)+2,FALSE)","v":959},{"$f":"HLOOKUP(CJ$7+0.5,$I$66:$DJ$120,ROWS($A$10:$A21)+2,FALSE)","v":1087},{"$f":"HLOOKUP(CK$7+0.5,$I$66:$DJ$120,ROWS($A$10:$A21)+2,FALSE)","v":92},{"$f":"HLOOKUP(CL$7+0.5,$I$66:$DJ$120,ROWS($A$10:$A21)+2,FALSE)","v":139},{"$f":"HLOOKUP(CM$7+0.5,$I$66:$DJ$120,ROWS($A$10:$A21)+2,FALSE)","v":684},{"$f":"HLOOKUP(CN$7+0.5,$I$66:$DJ$120,ROWS($A$10:$A21)+2,FALSE)","v":161},{"$f":"HLOOKUP(CO$7+0.5,$I$66:$DJ$120,ROWS($A$10:$A21)+2,FALSE)","v":1203},{"$f":"HLOOKUP(CP$7+0.5,$I$66:$DJ$120,ROWS($A$10:$A21)+2,FALSE)","v":509},{"$f":"HLOOKUP(CQ$7+0.5,$I$66:$DJ$120,ROWS($A$10:$A21)+2,FALSE)","v":2568},{"$f":"HLOOKUP(CR$7+0.5,$I$66:$DJ$120,ROWS($A$10:$A21)+2,FALSE)","v":3426},{"$f":"HLOOKUP(CS$7+0.5,$I$66:$DJ$120,ROWS($A$10:$A21)+2,FALSE)","v":300},{"$f":"HLOOKUP(CT$7+0.5,$I$66:$DJ$120,ROWS($A$10:$A21)+2,FALSE)","v":2446},{"$f":"HLOOKUP(CU$7+0.5,$I$66:$DJ$120,ROWS($A$10:$A21)+2,FALSE)","v":1458},{"$f":"HLOOKUP(CV$7+0.5,$I$66:$DJ$120,ROWS($A$10:$A21)+2,FALSE)","v":626},{"$f":"HLOOKUP(CW$7+0.5,$I$66:$DJ$120,ROWS($A$10:$A21)+2,FALSE)","v":1914},{"$f":"HLOOKUP(CX$7+0.5,$I$66:$DJ$120,ROWS($A$10:$A21)+2,FALSE)","v":70},{"$f":"HLOOKUP(CY$7+0.5,$I$66:$DJ$120,ROWS($A$10:$A21)+2,FALSE)","v":3592},{"$f":"HLOOKUP(CZ$7+0.5,$I$66:$DJ$120,ROWS($A$10:$A21)+2,FALSE)","v":540},{"$f":"HLOOKUP(DA$7+0.5,$I$66:$DJ$120,ROWS($A$10:$A21)+2,FALSE)","v":3273},{"$f":"HLOOKUP(DB$7+0.5,$I$66:$DJ$120,ROWS($A$10:$A21)+2,FALSE)","v":2574},{"$f":"HLOOKUP(DC$7+0.5,$I$66:$DJ$120,ROWS($A$10:$A21)+2,FALSE)","v":291},{"$f":"HLOOKUP(DD$7+0.5,$I$66:$DJ$120,ROWS($A$10:$A21)+2,FALSE)","v":458},{"$f":"HLOOKUP(DE$7+0.5,$I$66:$DJ$120,ROWS($A$10:$A21)+2,FALSE)","v":2087},{"$f":"HLOOKUP(DF$7+0.5,$I$66:$DJ$120,ROWS($A$10:$A21)+2,FALSE)","v":2034},{"$f":"HLOOKUP(DG$7+0.5,$I$66:$DJ$120,ROWS($A$10:$A21)+2,FALSE)","v":295},{"$f":"HLOOKUP(DH$7+0.5,$I$66:$DJ$120,ROWS($A$10:$A21)+2,FALSE)","v":2022},{"$f":"HLOOKUP(DI$7+0.5,$I$66:$DJ$120,ROWS($A$10:$A21)+2,FALSE)","v":118},{"$f":"HLOOKUP(DJ$7+0.5,$I$66:$DJ$120,ROWS($A$10:$A21)+2,FALSE)","v":742}]
[null,"Hawaii",1346274,1690,1140572,10422,134315,9295,{"$f":"HLOOKUP(I$7,$I$66:$DJ$120,ROWS($A$10:$A22)+2,FALSE)","v":53581},{"$f":"HLOOKUP(J$7,$I$66:$DJ$120,ROWS($A$10:$A22)+2,FALSE)","v":749},{"$f":"HLOOKUP(K$7,$I$66:$DJ$120,ROWS($A$10:$A22)+2,FALSE)","v":743},{"$f":"HLOOKUP(L$7,$I$66:$DJ$120,ROWS($A$10:$A22)+2,FALSE)","v":1398},{"$f":"HLOOKUP(M$7,$I$66:$DJ$120,ROWS($A$10:$A22)+2,FALSE)","v":0},{"$f":"HLOOKUP(N$7,$I$66:$DJ$120,ROWS($A$10:$A22)+2,FALSE)","v":12677},{"$f":"HLOOKUP(O$7,$I$66:$DJ$120,ROWS($A$10:$A22)+2,FALSE)","v":1073},{"$f":"HLOOKUP(P$7,$I$66:$DJ$120,ROWS($A$10:$A22)+2,FALSE)","v":307},{"$f":"HLOOKUP(Q$7,$I$66:$DJ$120,ROWS($A$10:$A22)+2,FALSE)","v":0},{"$f":"HLOOKUP(R$7,$I$66:$DJ$120,ROWS($A$10:$A22)+2,FALSE)","v":0},{"$f":"HLOOKUP(S$7,$I$66:$DJ$120,ROWS($A$10:$A22)+2,FALSE)","v":4599},{"$f":"HLOOKUP(T$7,$I$66:$DJ$120,ROWS($A$10:$A22)+2,FALSE)","v":2013},{"$f":"HLOOKUP(U$7,$I$66:$DJ$120,ROWS($A$10:$A22)+2,FALSE)","v":"N/A"},{"$f":"HLOOKUP(V$7,$I$66:$DJ$120,ROWS($A$10:$A22)+2,FALSE)","v":42},{"$f":"HLOOKUP(W$7,$I$66:$DJ$120,ROWS($A$10:$A22)+2,FALSE)","v":715},{"$f":"HLOOKUP(X$7,$I$66:$DJ$120,ROWS($A$10:$A22)+2,FALSE)","v":192},{"$f":"HLOOKUP(Y$7,$I$66:$DJ$120,ROWS($A$10:$A22)+2,FALSE)","v":68},{"$f":"HLOOKUP(Z$7,$I$66:$DJ$120,ROWS($A$10:$A22)+2,FALSE)","v":387},{"$f":"HLOOKUP(AA$7,$I$66:$DJ$120,ROWS($A$10:$A22)+2,FALSE)","v":95},{"$f":"HLOOKUP(AB$7,$I$66:$DJ$120,ROWS($A$10:$A22)+2,FALSE)","v":88},{"$f":"HLOOKUP(AC$7,$I$66:$DJ$120,ROWS($A$10:$A22)+2,FALSE)","v":89},{"$f":"HLOOKUP(AD$7,$I$66:$DJ$120,ROWS($A$10:$A22)+2,FALSE)","v":990},{"$f":"HLOOKUP(AE$7,$I$66:$DJ$120,ROWS($A$10:$A22)+2,FALSE)","v":1283},{"$f":"HLOOKUP(AF$7,$I$66:$DJ$120,ROWS($A$10:$A22)+2,FALSE)","v":627},{"$f":"HLOOKUP(AG$7,$I$66:$DJ$120,ROWS($A$10:$A22)+2,FALSE)","v":476},{"$f":"HLOOKUP(AH$7,$I$66:$DJ$120,ROWS($A$10:$A22)+2,FALSE)","v":234},{"$f":"HLOOKUP(AI$7,$I$66:$DJ$120,ROWS($A$10:$A22)+2,FALSE)","v":170},{"$f":"HLOOKUP(AJ$7,$I$66:$DJ$120,ROWS($A$10:$A22)+2,FALSE)","v":150},{"$f":"HLOOKUP(AK$7,$I$66:$DJ$120,ROWS($A$10:$A22)+2,FALSE)","v":0},{"$f":"HLOOKUP(AL$7,$I$66:$DJ$120,ROWS($A$10:$A22)+2,FALSE)","v":1925},{"$f":"HLOOKUP(AM$7,$I$66:$DJ$120,ROWS($A$10:$A22)+2,FALSE)","v":496},{"$f":"HLOOKUP(AN$7,$I$66:$DJ$120,ROWS($A$10:$A22)+2,FALSE)","v":443},{"$f":"HLOOKUP(AO$7,$I$66:$DJ$120,ROWS($A$10:$A22)+2,FALSE)","v":11},{"$f":"HLOOKUP(AP$7,$I$66:$DJ$120,ROWS($A$10:$A22)+2,FALSE)","v":1339},{"$f":"HLOOKUP(AQ$7,$I$66:$DJ$120,ROWS($A$10:$A22)+2,FALSE)","v":1510},{"$f":"HLOOKUP(AR$7,$I$66:$DJ$120,ROWS($A$10:$A22)+2,FALSE)","v":69},{"$f":"HLOOKUP(AS$7,$I$66:$DJ$120,ROWS($A$10:$A22)+2,FALSE)","v":625},{"$f":"HLOOKUP(AT$7,$I$66:$DJ$120,ROWS($A$10:$A22)+2,FALSE)","v":57},{"$f":"HLOOKUP(AU$7,$I$66:$DJ$120,ROWS($A$10:$A22)+2,FALSE)","v":1834},{"$f":"HLOOKUP(AV$7,$I$66:$DJ$120,ROWS($A$10:$A22)+2,FALSE)","v":553},{"$f":"HLOOKUP(AW$7,$I$66:$DJ$120,ROWS($A$10:$A22)+2,FALSE)","v":644},{"$f":"HLOOKUP(AX$7,$I$66:$DJ$120,ROWS($A$10:$A22)+2,FALSE)","v":322},{"$f":"HLOOKUP(AY$7,$I$66:$DJ$120,ROWS($A$10:$A22)+2,FALSE)","v":267},{"$f":"HLOOKUP(AZ$7,$I$66:$DJ$120,ROWS($A$10:$A22)+2,FALSE)","v":142},{"$f":"HLOOKUP(BA$7,$I$66:$DJ$120,ROWS($A$10:$A22)+2,FALSE)","v":6694},{"$f":"HLOOKUP(BB$7,$I$66:$DJ$120,ROWS($A$10:$A22)+2,FALSE)","v":467},{"$f":"HLOOKUP(BC$7,$I$66:$DJ$120,ROWS($A$10:$A22)+2,FALSE)","v":0},{"$f":"HLOOKUP(BD$7,$I$66:$DJ$120,ROWS($A$10:$A22)+2,FALSE)","v":2644},{"$f":"HLOOKUP(BE$7,$I$66:$DJ$120,ROWS($A$10:$A22)+2,FALSE)","v":2705},{"$f":"HLOOKUP(BF$7,$I$66:$DJ$120,ROWS($A$10:$A22)+2,FALSE)","v":483},{"$f":"HLOOKUP(BG$7,$I$66:$DJ$120,ROWS($A$10:$A22)+2,FALSE)","v":1168},{"$f":"HLOOKUP(BH$7,$I$66:$DJ$120,ROWS($A$10:$A22)+2,FALSE)","v":18},{"$f":"HLOOKUP(BI$7,$I$66:$DJ$120,ROWS($A$10:$A22)+2,FALSE)","v":0},{"$f":"HLOOKUP(BJ$7+0.5,$I$66:$DJ$120,ROWS($A$10:$A22)+2,FALSE)","v":6065},{"$f":"HLOOKUP(BK$7+0.5,$I$66:$DJ$120,ROWS($A$10:$A22)+2,FALSE)","v":542},{"$f":"HLOOKUP(BL$7+0.5,$I$66:$DJ$120,ROWS($A$10:$A22)+2,FALSE)","v":609},{"$f":"HLOOKUP(BM$7+0.5,$I$66:$DJ$120,ROWS($A$10:$A22)+2,FALSE)","v":849},{"$f":"HLOOKUP(BN$7+0.5,$I$66:$DJ$120,ROWS($A$10:$A22)+2,FALSE)","v":275},{"$f":"HLOOKUP(BO$7+0.5,$I$66:$DJ$120,ROWS($A$10:$A22)+2,FALSE)","v":2325},{"$f":"HLOOKUP(BP$7+0.5,$I$66:$DJ$120,ROWS($A$10:$A22)+2,FALSE)","v":667},{"$f":"HLOOKUP(BQ$7+0.5,$I$66:$DJ$120,ROWS($A$10:$A22)+2,FALSE)","v":392},{"$f":"HLOOKUP(BR$7+0.5,$I$66:$DJ$120,ROWS($A$10:$A22)+2,FALSE)","v":275},{"$f":"HLOOKUP(BS$7+0.5,$I$66:$DJ$120,ROWS($A$10:$A22)+2,FALSE)","v":275},{"$f":"HLOOKUP(BT$7+0.5,$I$66:$DJ$120,ROWS($A$10:$A22)+2,FALSE)","v":2610},{"$f":"HLOOKUP(BU$7+0.5,$I$66:$DJ$120,ROWS($A$10:$A22)+2,FALSE)","v":1185},{"$f":"HLOOKUP(BV$7+0.5,$I$66:$DJ$120,ROWS($A$10:$A22)+2,FALSE)","v":"N/A"},{"$f":"HLOOKUP(BW$7+0.5,$I$66:$DJ$120,ROWS($A$10:$A22)+2,FALSE)","v":70},{"$f":"HLOOKUP(BX$7+0.5,$I$66:$DJ$120,ROWS($A$10:$A22)+2,FALSE)","v":412},{"$f":"HLOOKUP(BY$7+0.5,$I$66:$DJ$120,ROWS($A$10:$A22)+2,FALSE)","v":209},{"$f":"HLOOKUP(BZ$7+0.5,$I$66:$DJ$120,ROWS($A$10:$A22)+2,FALSE)","v":118},{"$f":"HLOOKUP(CA$7+0.5,$I$66:$DJ$120,ROWS($A$10:$A22)+2,FALSE)","v":345},{"$f":"HLOOKUP(CB$7+0.5,$I$66:$DJ$120,ROWS($A$10:$A22)+2,FALSE)","v":159},{"$f":"HLOOKUP(CC$7+0.5,$I$66:$DJ$120,ROWS($A$10:$A22)+2,FALSE)","v":151},{"$f":"HLOOKUP(CD$7+0.5,$I$66:$DJ$120,ROWS($A$10:$A22)+2,FALSE)","v":145},{"$f":"HLOOKUP(CE$7+0.5,$I$66:$DJ$120,ROWS($A$10:$A22)+2,FALSE)","v":737},{"$f":"HLOOKUP(CF$7+0.5,$I$66:$DJ$120,ROWS($A$10:$A22)+2,FALSE)","v":944},{"$f":"HLOOKUP(CG$7+0.5,$I$66:$DJ$120,ROWS($A$10:$A22)+2,FALSE)","v":548},{"$f":"HLOOKUP(CH$7+0.5,$I$66:$DJ$120,ROWS($A$10:$A22)+2,FALSE)","v":350},{"$f":"HLOOKUP(CI$7+0.5,$I$66:$DJ$120,ROWS($A$10:$A22)+2,FALSE)","v":368},{"$f":"HLOOKUP(CJ$7+0.5,$I$66:$DJ$120,ROWS($A$10:$A22)+2,FALSE)","v":171},{"$f":"HLOOKUP(CK$7+0.5,$I$66:$DJ$120,ROWS($A$10:$A22)+2,FALSE)","v":261},{"$f":"HLOOKUP(CL$7+0.5,$I$66:$DJ$120,ROWS($A$10:$A22)+2,FALSE)","v":275},{"$f":"HLOOKUP(CM$7+0.5,$I$66:$DJ$120,ROWS($A$10:$A22)+2,FALSE)","v":1184},{"$f":"HLOOKUP(CN$7+0.5,$I$66:$DJ$120,ROWS($A$10:$A22)+2,FALSE)","v":685},{"$f":"HLOOKUP(CO$7+0.5,$I$66:$DJ$120,ROWS($A$10:$A22)+2,FALSE)","v":417},{"$f":"HLOOKUP(CP$7+0.5,$I$66:$DJ$120,ROWS($A$10:$A22)+2,FALSE)","v":19},{"$f":"HLOOKUP(CQ$7+0.5,$I$66:$DJ$120,ROWS($A$10:$A22)+2,FALSE)","v":794},{"$f":"HLOOKUP(CR$7+0.5,$I$66:$DJ$120,ROWS($A$10:$A22)+2,FALSE)","v":994},{"$f":"HLOOKUP(CS$7+0.5,$I$66:$DJ$120,ROWS($A$10:$A22)+2,FALSE)","v":116},{"$f":"HLOOKUP(CT$7+0.5,$I$66:$DJ$120,ROWS($A$10:$A22)+2,FALSE)","v":515},{"$f":"HLOOKUP(CU$7+0.5,$I$66:$DJ$120,ROWS($A$10:$A22)+2,FALSE)","v":94},{"$f":"HLOOKUP(CV$7+0.5,$I$66:$DJ$120,ROWS($A$10:$A22)+2,FALSE)","v":958},{"$f":"HLOOKUP(CW$7+0.5,$I$66:$DJ$120,ROWS($A$10:$A22)+2,FALSE)","v":478},{"$f":"HLOOKUP(CX$7+0.5,$I$66:$DJ$120,ROWS($A$10:$A22)+2,FALSE)","v":829},{"$f":"HLOOKUP(CY$7+0.5,$I$66:$DJ$120,ROWS($A$10:$A22)+2,FALSE)","v":378},{"$f":"HLOOKUP(CZ$7+0.5,$I$66:$DJ$120,ROWS($A$10:$A22)+2,FALSE)","v":380},{"$f":"HLOOKUP(DA$7+0.5,$I$66:$DJ$120,ROWS($A$10:$A22)+2,FALSE)","v":205},{"$f":"HLOOKUP(DB$7+0.5,$I$66:$DJ$120,ROWS($A$10:$A22)+2,FALSE)","v":2760},{"$f":"HLOOKUP(DC$7+0.5,$I$66:$DJ$120,ROWS($A$10:$A22)+2,FALSE)","v":369},{"$f":"HLOOKUP(DD$7+0.5,$I$66:$DJ$120,ROWS($A$10:$A22)+2,FALSE)","v":275},{"$f":"HLOOKUP(DE$7+0.5,$I$66:$DJ$120,ROWS($A$10:$A22)+2,FALSE)","v":1136},{"$f":"HLOOKUP(DF$7+0.5,$I$66:$DJ$120,ROWS($A$10:$A22)+2,FALSE)","v":883},{"$f":"HLOOKUP(DG$7+0.5,$I$66:$DJ$120,ROWS($A$10:$A22)+2,FALSE)","v":782},{"$f":"HLOOKUP(DH$7+0.5,$I$66:$DJ$120,ROWS($A$10:$A22)+2,FALSE)","v":1133},{"$f":"HLOOKUP(DI$7+0.5,$I$66:$DJ$120,ROWS($A$10:$A22)+2,FALSE)","v":33},{"$f":"HLOOKUP(DJ$7+0.5,$I$66:$DJ$120,ROWS($A$10:$A22)+2,FALSE)","v":275}]
[null,"Idaho",1550967,1954,1279856,12606,209272,10887,{"$f":"HLOOKUP(I$7,$I$66:$DJ$120,ROWS($A$10:$A23)+2,FALSE)","v":55638},{"$f":"HLOOKUP(J$7,$I$66:$DJ$120,ROWS($A$10:$A23)+2,FALSE)","v":376},{"$f":"HLOOKUP(K$7,$I$66:$DJ$120,ROWS($A$10:$A23)+2,FALSE)","v":3264},{"$f":"HLOOKUP(L$7,$I$66:$DJ$120,ROWS($A$10:$A23)+2,FALSE)","v":3086},{"$f":"HLOOKUP(M$7,$I$66:$DJ$120,ROWS($A$10:$A23)+2,FALSE)","v":45},{"$f":"HLOOKUP(N$7,$I$66:$DJ$120,ROWS($A$10:$A23)+2,FALSE)","v":8932},{"$f":"HLOOKUP(O$7,$I$66:$DJ$120,ROWS($A$10:$A23)+2,FALSE)","v":1372},{"$f":"HLOOKUP(P$7,$I$66:$DJ$120,ROWS($A$10:$A23)+2,FALSE)","v":0},{"$f":"HLOOKUP(Q$7,$I$66:$DJ$120,ROWS($A$10:$A23)+2,FALSE)","v":0},{"$f":"HLOOKUP(R$7,$I$66:$DJ$120,ROWS($A$10:$A23)+2,FALSE)","v":144},{"$f":"HLOOKUP(S$7,$I$66:$DJ$120,ROWS($A$10:$A23)+2,FALSE)","v":612},{"$f":"HLOOKUP(T$7,$I$66:$DJ$120,ROWS($A$10:$A23)+2,FALSE)","v":313},{"$f":"HLOOKUP(U$7,$I$66:$DJ$120,ROWS($A$10:$A23)+2,FALSE)","v":123},{"$f":"HLOOKUP(V$7,$I$66:$DJ$120,ROWS($A$10:$A23)+2,FALSE)","v":"N/A"},{"$f":"HLOOKUP(W$7,$I$66:$DJ$120,ROWS($A$10:$A23)+2,FALSE)","v":169},{"$f":"HLOOKUP(X$7,$I$66:$DJ$120,ROWS($A$10:$A23)+2,FALSE)","v":132},{"$f":"HLOOKUP(Y$7,$I$66:$DJ$120,ROWS($A$10:$A23)+2,FALSE)","v":773},{"$f":"HLOOKUP(Z$7,$I$66:$DJ$120,ROWS($A$10:$A23)+2,FALSE)","v":422},{"$f":"HLOOKUP(AA$7,$I$66:$DJ$120,ROWS($A$10:$A23)+2,FALSE)","v":315},{"$f":"HLOOKUP(AB$7,$I$66:$DJ$120,ROWS($A$10:$A23)+2,FALSE)","v":59},{"$f":"HLOOKUP(AC$7,$I$66:$DJ$120,ROWS($A$10:$A23)+2,FALSE)","v":202},{"$f":"HLOOKUP(AD$7,$I$66:$DJ$120,ROWS($A$10:$A23)+2,FALSE)","v":44},{"$f":"HLOOKUP(AE$7,$I$66:$DJ$120,ROWS($A$10:$A23)+2,FALSE)","v":115},{"$f":"HLOOKUP(AF$7,$I$66:$DJ$120,ROWS($A$10:$A23)+2,FALSE)","v":427},{"$f":"HLOOKUP(AG$7,$I$66:$DJ$120,ROWS($A$10:$A23)+2,FALSE)","v":465},{"$f":"HLOOKUP(AH$7,$I$66:$DJ$120,ROWS($A$10:$A23)+2,FALSE)","v":37},{"$f":"HLOOKUP(AI$7,$I$66:$DJ$120,ROWS($A$10:$A23)+2,FALSE)","v":425},{"$f":"HLOOKUP(AJ$7,$I$66:$DJ$120,ROWS($A$10:$A23)+2,FALSE)","v":1509},{"$f":"HLOOKUP(AK$7,$I$66:$DJ$120,ROWS($A$10:$A23)+2,FALSE)","v":0},{"$f":"HLOOKUP(AL$7,$I$66:$DJ$120,ROWS($A$10:$A23)+2,FALSE)","v":2110},{"$f":"HLOOKUP(AM$7,$I$66:$DJ$120,ROWS($A$10:$A23)+2,FALSE)","v":109},{"$f":"HLOOKUP(AN$7,$I$66:$DJ$120,ROWS($A$10:$A23)+2,FALSE)","v":97},{"$f":"HLOOKUP(AO$7,$I$66:$DJ$120,ROWS($A$10:$A23)+2,FALSE)","v":694},{"$f":"HLOOKUP(AP$7,$I$66:$DJ$120,ROWS($A$10:$A23)+2,FALSE)","v":155},{"$f":"HLOOKUP(AQ$7,$I$66:$DJ$120,ROWS($A$10:$A23)+2,FALSE)","v":134},{"$f":"HLOOKUP(AR$7,$I$66:$DJ$120,ROWS($A$10:$A23)+2,FALSE)","v":96},{"$f":"HLOOKUP(AS$7,$I$66:$DJ$120,ROWS($A$10:$A23)+2,FALSE)","v":325},{"$f":"HLOOKUP(AT$7,$I$66:$DJ$120,ROWS($A$10:$A23)+2,FALSE)","v":711},{"$f":"HLOOKUP(AU$7,$I$66:$DJ$120,ROWS($A$10:$A23)+2,FALSE)","v":3202},{"$f":"HLOOKUP(AV$7,$I$66:$DJ$120,ROWS($A$10:$A23)+2,FALSE)","v":172},{"$f":"HLOOKUP(AW$7,$I$66:$DJ$120,ROWS($A$10:$A23)+2,FALSE)","v":0},{"$f":"HLOOKUP(AX$7,$I$66:$DJ$120,ROWS($A$10:$A23)+2,FALSE)","v":0},{"$f":"HLOOKUP(AY$7,$I$66:$DJ$120,ROWS($A$10:$A23)+2,FALSE)","v":296},{"$f":"HLOOKUP(AZ$7,$I$66:$DJ$120,ROWS($A$10:$A23)+2,FALSE)","v":1153},{"$f":"HLOOKUP(BA$7,$I$66:$DJ$120,ROWS($A$10:$A23)+2,FALSE)","v":1746},{"$f":"HLOOKUP(BB$7,$I$66:$DJ$120,ROWS($A$10:$A23)+2,FALSE)","v":8014},{"$f":"HLOOKUP(BC$7,$I$66:$DJ$120,ROWS($A$10:$A23)+2,FALSE)","v":0},{"$f":"HLOOKUP(BD$7,$I$66:$DJ$120,ROWS($A$10:$A23)+2,FALSE)","v":611},{"$f":"HLOOKUP(BE$7,$I$66:$DJ$120,ROWS($A$10:$A23)+2,FALSE)","v":10876},{"$f":"HLOOKUP(BF$7,$I$66:$DJ$120,ROWS($A$10:$A23)+2,FALSE)","v":133},{"$f":"HLOOKUP(BG$7,$I$66:$DJ$120,ROWS($A$10:$A23)+2,FALSE)","v":233},{"$f":"HLOOKUP(BH$7,$I$66:$DJ$120,ROWS($A$10:$A23)+2,FALSE)","v":1410},{"$f":"HLOOKUP(BI$7,$I$66:$DJ$120,ROWS($A$10:$A23)+2,FALSE)","v":233},{"$f":"HLOOKUP(BJ$7+0.5,$I$66:$DJ$120,ROWS($A$10:$A23)+2,FALSE)","v":6079},{"$f":"HLOOKUP(BK$7+0.5,$I$66:$DJ$120,ROWS($A$10:$A23)+2,FALSE)","v":369},{"$f":"HLOOKUP(BL$7+0.5,$I$66:$DJ$120,ROWS($A$10:$A23)+2,FALSE)","v":1813},{"$f":"HLOOKUP(BM$7+0.5,$I$66:$DJ$120,ROWS($A$10:$A23)+2,FALSE)","v":2015},{"$f":"HLOOKUP(BN$7+0.5,$I$66:$DJ$120,ROWS($A$10:$A23)+2,FALSE)","v":73},{"$f":"HLOOKUP(BO$7+0.5,$I$66:$DJ$120,ROWS($A$10:$A23)+2,FALSE)","v":2415},{"$f":"HLOOKUP(BP$7+0.5,$I$66:$DJ$120,ROWS($A$10:$A23)+2,FALSE)","v":867},{"$f":"HLOOKUP(BQ$7+0.5,$I$66:$DJ$120,ROWS($A$10:$A23)+2,FALSE)","v":267},{"$f":"HLOOKUP(BR$7+0.5,$I$66:$DJ$120,ROWS($A$10:$A23)+2,FALSE)","v":267},{"$f":"HLOOKUP(BS$7+0.5,$I$66:$DJ$120,ROWS($A$10:$A23)+2,FALSE)","v":233},{"$f":"HLOOKUP(BT$7+0.5,$I$66:$DJ$120,ROWS($A$10:$A23)+2,FALSE)","v":508},{"$f":"HLOOKUP(BU$7+0.5,$I$66:$DJ$120,ROWS($A$10:$A23)+2,FALSE)","v":280},{"$f":"HLOOKUP(BV$7+0.5,$I$66:$DJ$120,ROWS($A$10:$A23)+2,FALSE)","v":206},{"$f":"HLOOKUP(BW$7+0.5,$I$66:$DJ$120,ROWS($A$10:$A23)+2,FALSE)","v":"N/A"},{"$f":"HLOOKUP(BX$7+0.5,$I$66:$DJ$120,ROWS($A$10:$A23)+2,FALSE)","v":236},{"$f":"HLOOKUP(BY$7+0.5,$I$66:$DJ$120,ROWS($A$10:$A23)+2,FALSE)","v":133},{"$f":"HLOOKUP(BZ$7+0.5,$I$66:$DJ$120,ROWS($A$10:$A23)+2,FALSE)","v":470},{"$f":"HLOOKUP(CA$7+0.5,$I$66:$DJ$120,ROWS($A$10:$A23)+2,FALSE)","v":415},{"$f":"HLOOKUP(CB$7+0.5,$I$66:$DJ$120,ROWS($A$10:$A23)+2,FALSE)","v":272},{"$f":"HLOOKUP(CC$7+0.5,$I$66:$DJ$120,ROWS($A$10:$A23)+2,FALSE)","v":102},{"$f":"HLOOKUP(CD$7+0.5,$I$66:$DJ$120,ROWS($A$10:$A23)+2,FALSE)","v":272},{"$f":"HLOOKUP(CE$7+0.5,$I$66:$DJ$120,ROWS($A$10:$A23)+2,FALSE)","v":73},{"$f":"HLOOKUP(CF$7+0.5,$I$66:$DJ$120,ROWS($A$10:$A23)+2,FALSE)","v":135},{"$f":"HLOOKUP(CG$7+0.5,$I$66:$DJ$120,ROWS($A$10:$A23)+2,FALSE)","v":363},{"$f":"HLOOKUP(CH$7+0.5,$I$66:$DJ$120,ROWS($A$10:$A23)+2,FALSE)","v":613},{"$f":"HLOOKUP(CI$7+0.5,$I$66:$DJ$120,ROWS($A$10:$A23)+2,FALSE)","v":61},{"$f":"HLOOKUP(CJ$7+0.5,$I$66:$DJ$120,ROWS($A$10:$A23)+2,FALSE)","v":345},{"$f":"HLOOKUP(CK$7+0.5,$I$66:$DJ$120,ROWS($A$10:$A23)+2,FALSE)","v":584},{"$f":"HLOOKUP(CL$7+0.5,$I$66:$DJ$120,ROWS($A$10:$A23)+2,FALSE)","v":267},{"$f":"HLOOKUP(CM$7+0.5,$I$66:$DJ$120,ROWS($A$10:$A23)+2,FALSE)","v":1061},{"$f":"HLOOKUP(CN$7+0.5,$I$66:$DJ$120,ROWS($A$10:$A23)+2,FALSE)","v":147},{"$f":"HLOOKUP(CO$7+0.5,$I$66:$DJ$120,ROWS($A$10:$A23)+2,FALSE)","v":148},{"$f":"HLOOKUP(CP$7+0.5,$I$66:$DJ$120,ROWS($A$10:$A23)+2,FALSE)","v":811},{"$f":"HLOOKUP(CQ$7+0.5,$I$66:$DJ$120,ROWS($A$10:$A23)+2,FALSE)","v":169},{"$f":"HLOOKUP(CR$7+0.5,$I$66:$DJ$120,ROWS($A$10:$A23)+2,FALSE)","v":164},{"$f":"HLOOKUP(CS$7+0.5,$I$66:$DJ$120,ROWS($A$10:$A23)+2,FALSE)","v":112},{"$f":"HLOOKUP(CT$7+0.5,$I$66:$DJ$120,ROWS($A$10:$A23)+2,FALSE)","v":261},{"$f":"HLOOKUP(CU$7+0.5,$I$66:$DJ$120,ROWS($A$10:$A23)+2,FALSE)","v":702},{"$f":"HLOOKUP(CV$7+0.5,$I$66:$DJ$120,ROWS($A$10:$A23)+2,FALSE)","v":1259},{"$f":"HLOOKUP(CW$7+0.5,$I$66:$DJ$120,ROWS($A$10:$A23)+2,FALSE)","v":206},{"$f":"HLOOKUP(CX$7+0.5,$I$66:$DJ$120,ROWS($A$10:$A23)+2,FALSE)","v":267},{"$f":"HLOOKUP(CY$7+0.5,$I$66:$DJ$120,ROWS($A$10:$A23)+2,FALSE)","v":267},{"$f":"HLOOKUP(CZ$7+0.5,$I$66:$DJ$120,ROWS($A$10:$A23)+2,FALSE)","v":375},{"$f":"HLOOKUP(DA$7+0.5,$I$66:$DJ$120,ROWS($A$10:$A23)+2,FALSE)","v":995},{"$f":"HLOOKUP(DB$7+0.5,$I$66:$DJ$120,ROWS($A$10:$A23)+2,FALSE)","v":951},{"$f":"HLOOKUP(DC$7+0.5,$I$66:$DJ$120,ROWS($A$10:$A23)+2,FALSE)","v":2403},{"$f":"HLOOKUP(DD$7+0.5,$I$66:$DJ$120,ROWS($A$10:$A23)+2,FALSE)","v":267},{"$f":"HLOOKUP(DE$7+0.5,$I$66:$DJ$120,ROWS($A$10:$A23)+2,FALSE)","v":662},{"$f":"HLOOKUP(DF$7+0.5,$I$66:$DJ$120,ROWS($A$10:$A23)+2,FALSE)","v":2438},{"$f":"HLOOKUP(DG$7+0.5,$I$66:$DJ$120,ROWS($A$10:$A23)+2,FALSE)","v":158},{"$f":"HLOOKUP(DH$7+0.5,$I$66:$DJ$120,ROWS($A$10:$A23)+2,FALSE)","v":292},{"$f":"HLOOKUP(DI$7+0.5,$I$66:$DJ$120,ROWS($A$10:$A23)+2,FALSE)","v":723},{"$f":"HLOOKUP(DJ$7+0.5,$I$66:$DJ$120,ROWS($A$10:$A23)+2,FALSE)","v":374}]
[null,"Illinois",12680126,5467,11009852,32636,1404525,28126,{"$f":"HLOOKUP(I$7,$I$66:$DJ$120,ROWS($A$10:$A24)+2,FALSE)","v":203959},{"$f":"HLOOKUP(J$7,$I$66:$DJ$120,ROWS($A$10:$A24)+2,FALSE)","v":1397},{"$f":"HLOOKUP(K$7,$I$66:$DJ$120,ROWS($A$10:$A24)+2,FALSE)","v":1764},{"$f":"HLOOKUP(L$7,$I$66:$DJ$120,ROWS($A$10:$A24)+2,FALSE)","v":5921},{"$f":"HLOOKUP(M$7,$I$66:$DJ$120,ROWS($A$10:$A24)+2,FALSE)","v":1194},{"$f":"HLOOKUP(N$7,$I$66:$DJ$120,ROWS($A$10:$A24)+2,FALSE)","v":16205},{"$f":"HLOOKUP(O$7,$I$66:$DJ$120,ROWS($A$10:$A24)+2,FALSE)","v":3850},{"$f":"HLOOKUP(P$7,$I$66:$DJ$120,ROWS($A$10:$A24)+2,FALSE)","v":2264},{"$f":"HLOOKUP(Q$7,$I$66:$DJ$120,ROWS($A$10:$A24)+2,FALSE)","v":56},{"$f":"HLOOKUP(R$7,$I$66:$DJ$120,ROWS($A$10:$A24)+2,FALSE)","v":1047},{"$f":"HLOOKUP(S$7,$I$66:$DJ$120,ROWS($A$10:$A24)+2,FALSE)","v":8051},{"$f":"HLOOKUP(T$7,$I$66:$DJ$120,ROWS($A$10:$A24)+2,FALSE)","v":6781},{"$f":"HLOOKUP(U$7,$I$66:$DJ$120,ROWS($A$10:$A24)+2,FALSE)","v":1224},{"$f":"HLOOKUP(V$7,$I$66:$DJ$120,ROWS($A$10:$A24)+2,FALSE)","v":313},{"$f":"HLOOKUP(W$7,$I$66:$DJ$120,ROWS($A$10:$A24)+2,FALSE)","v":"N/A"},{"$f":"HLOOKUP(X$7,$I$66:$DJ$120,ROWS($A$10:$A24)+2,FALSE)","v":21918},{"$f":"HLOOKUP(Y$7,$I$66:$DJ$120,ROWS($A$10:$A24)+2,FALSE)","v":9141},{"$f":"HLOOKUP(Z$7,$I$66:$DJ$120,ROWS($A$10:$A24)+2,FALSE)","v":1970},{"$f":"HLOOKUP(AA$7,$I$66:$DJ$120,ROWS($A$10:$A24)+2,FALSE)","v":2921},{"$f":"HLOOKUP(AB$7,$I$66:$DJ$120,ROWS($A$10:$A24)+2,FALSE)","v":1419},{"$f":"HLOOKUP(AC$7,$I$66:$DJ$120,ROWS($A$10:$A24)+2,FALSE)","v":55},{"$f":"HLOOKUP(AD$7,$I$66:$DJ$120,ROWS($A$10:$A24)+2,FALSE)","v":1985},{"$f":"HLOOKUP(AE$7,$I$66:$DJ$120,ROWS($A$10:$A24)+2,FALSE)","v":2811},{"$f":"HLOOKUP(AF$7,$I$66:$DJ$120,ROWS($A$10:$A24)+2,FALSE)","v":11865},{"$f":"HLOOKUP(AG$7,$I$66:$DJ$120,ROWS($A$10:$A24)+2,FALSE)","v":4300},{"$f":"HLOOKUP(AH$7,$I$66:$DJ$120,ROWS($A$10:$A24)+2,FALSE)","v":1093},{"$f":"HLOOKUP(AI$7,$I$66:$DJ$120,ROWS($A$10:$A24)+2,FALSE)","v":16703},{"$f":"HLOOKUP(AJ$7,$I$66:$DJ$120,ROWS($A$10:$A24)+2,FALSE)","v":928},{"$f":"HLOOKUP(AK$7,$I$66:$DJ$120,ROWS($A$10:$A24)+2,FALSE)","v":546},{"$f":"HLOOKUP(AL$7,$I$66:$DJ$120,ROWS($A$10:$A24)+2,FALSE)","v":2541},{"$f":"HLOOKUP(AM$7,$I$66:$DJ$120,ROWS($A$10:$A24)+2,FALSE)","v":206},{"$f":"HLOOKUP(AN$7,$I$66:$DJ$120,ROWS($A$10:$A24)+2,FALSE)","v":2331},{"$f":"HLOOKUP(AO$7,$I$66:$DJ$120,ROWS($A$10:$A24)+2,FALSE)","v":996},{"$f":"HLOOKUP(AP$7,$I$66:$DJ$120,ROWS($A$10:$A24)+2,FALSE)","v":8479},{"$f":"HLOOKUP(AQ$7,$I$66:$DJ$120,ROWS($A$10:$A24)+2,FALSE)","v":5504},{"$f":"HLOOKUP(AR$7,$I$66:$DJ$120,ROWS($A$10:$A24)+2,FALSE)","v":1112},{"$f":"HLOOKUP(AS$7,$I$66:$DJ$120,ROWS($A$10:$A24)+2,FALSE)","v":5103},{"$f":"HLOOKUP(AT$7,$I$66:$DJ$120,ROWS($A$10:$A24)+2,FALSE)","v":1459},{"$f":"HLOOKUP(AU$7,$I$66:$DJ$120,ROWS($A$10:$A24)+2,FALSE)","v":1224},{"$f":"HLOOKUP(AV$7,$I$66:$DJ$120,ROWS($A$10:$A24)+2,FALSE)","v":5190},{"$f":"HLOOKUP(AW$7,$I$66:$DJ$120,ROWS($A$10:$A24)+2,FALSE)","v":838},{"$f":"HLOOKUP(AX$7,$I$66:$DJ$120,ROWS($A$10:$A24)+2,FALSE)","v":1565},{"$f":"HLOOKUP(AY$7,$I$66:$DJ$120,ROWS($A$10:$A24)+2,FALSE)","v":292},{"$f":"HLOOKUP(AZ$7,$I$66:$DJ$120,ROWS($A$10:$A24)+2,FALSE)","v":3999},{"$f":"HLOOKUP(BA$7,$I$66:$DJ$120,ROWS($A$10:$A24)+2,FALSE)","v":12245},{"$f":"HLOOKUP(BB$7,$I$66:$DJ$120,ROWS($A$10:$A24)+2,FALSE)","v":658},{"$f":"HLOOKUP(BC$7,$I$66:$DJ$120,ROWS($A$10:$A24)+2,FALSE)","v":260},{"$f":"HLOOKUP(BD$7,$I$66:$DJ$120,ROWS($A$10:$A24)+2,FALSE)","v":3831},{"$f":"HLOOKUP(BE$7,$I$66:$DJ$120,ROWS($A$10:$A24)+2,FALSE)","v":1642},{"$f":"HLOOKUP(BF$7,$I$66:$DJ$120,ROWS($A$10:$A24)+2,FALSE)","v":812},{"$f":"HLOOKUP(BG$7,$I$66:$DJ$120,ROWS($A$10:$A24)+2,FALSE)","v":15364},{"$f":"HLOOKUP(BH$7,$I$66:$DJ$120,ROWS($A$10:$A24)+2,FALSE)","v":586},{"$f":"HLOOKUP(BI$7,$I$66:$DJ$120,ROWS($A$10:$A24)+2,FALSE)","v":2055},{"$f":"HLOOKUP(BJ$7+0.5,$I$66:$DJ$120,ROWS($A$10:$A24)+2,FALSE)","v":11573},{"$f":"HLOOKUP(BK$7+0.5,$I$66:$DJ$120,ROWS($A$10:$A24)+2,FALSE)","v":596},{"$f":"HLOOKUP(BL$7+0.5,$I$66:$DJ$120,ROWS($A$10:$A24)+2,FALSE)","v":1078},{"$f":"HLOOKUP(BM$7+0.5,$I$66:$DJ$120,ROWS($A$10:$A24)+2,FALSE)","v":1897},{"$f":"HLOOKUP(BN$7+0.5,$I$66:$DJ$120,ROWS($A$10:$A24)+2,FALSE)","v":665},{"$f":"HLOOKUP(BO$7+0.5,$I$66:$DJ$120,ROWS($A$10:$A24)+2,FALSE)","v":3236},{"$f":"HLOOKUP(BP$7+0.5,$I$66:$DJ$120,ROWS($A$10:$A24)+2,FALSE)","v":1360},{"$f":"HLOOKUP(BQ$7+0.5,$I$66:$DJ$120,ROWS($A$10:$A24)+2,FALSE)","v":1125},{"$f":"HLOOKUP(BR$7+0.5,$I$66:$DJ$120,ROWS($A$10:$A24)+2,FALSE)","v":57},{"$f":"HLOOKUP(BS$7+0.5,$I$66:$DJ$120,ROWS($A$10:$A24)+2,FALSE)","v":581},{"$f":"HLOOKUP(BT$7+0.5,$I$66:$DJ$120,ROWS($A$10:$A24)+2,FALSE)","v":1715},{"$f":"HLOOKUP(BU$7+0.5,$I$66:$DJ$120,ROWS($A$10:$A24)+2,FALSE)","v":2524},{"$f":"HLOOKUP(BV$7+0.5,$I$66:$DJ$120,ROWS($A$10:$A24)+2,FALSE)","v":776},{"$f":"HLOOKUP(BW$7+0.5,$I$66:$DJ$120,ROWS($A$10:$A24)+2,FALSE)","v":258},{"$f":"HLOOKUP(BX$7+0.5,$I$66:$DJ$120,ROWS($A$10:$A24)+2,FALSE)","v":"N/A"},{"$f":"HLOOKUP(BY$7+0.5,$I$66:$DJ$120,ROWS($A$10:$A24)+2,FALSE)","v":4147},{"$f":"HLOOKUP(BZ$7+0.5,$I$66:$DJ$120,ROWS($A$10:$A24)+2,FALSE)","v":1866},{"$f":"HLOOKUP(CA$7+0.5,$I$66:$DJ$120,ROWS($A$10:$A24)+2,FALSE)","v":991},{"$f":"HLOOKUP(CB$7+0.5,$I$66:$DJ$120,ROWS($A$10:$A24)+2,FALSE)","v":831},{"$f":"HLOOKUP(CC$7+0.5,$I$66:$DJ$120,ROWS($A$10:$A24)+2,FALSE)","v":687},{"$f":"HLOOKUP(CD$7+0.5,$I$66:$DJ$120,ROWS($A$10:$A24)+2,FALSE)","v":93},{"$f":"HLOOKUP(CE$7+0.5,$I$66:$DJ$120,ROWS($A$10:$A24)+2,FALSE)","v":1210},{"$f":"HLOOKUP(CF$7+0.5,$I$66:$DJ$120,ROWS($A$10:$A24)+2,FALSE)","v":1111},{"$f":"HLOOKUP(CG$7+0.5,$I$66:$DJ$120,ROWS($A$10:$A24)+2,FALSE)","v":2138},{"$f":"HLOOKUP(CH$7+0.5,$I$66:$DJ$120,ROWS($A$10:$A24)+2,FALSE)","v":1815},{"$f":"HLOOKUP(CI$7+0.5,$I$66:$DJ$120,ROWS($A$10:$A24)+2,FALSE)","v":861},{"$f":"HLOOKUP(CJ$7+0.5,$I$66:$DJ$120,ROWS($A$10:$A24)+2,FALSE)","v":3325},{"$f":"HLOOKUP(CK$7+0.5,$I$66:$DJ$120,ROWS($A$10:$A24)+2,FALSE)","v":937},{"$f":"HLOOKUP(CL$7+0.5,$I$66:$DJ$120,ROWS($A$10:$A24)+2,FALSE)","v":373},{"$f":"HLOOKUP(CM$7+0.5,$I$66:$DJ$120,ROWS($A$10:$A24)+2,FALSE)","v":1214},{"$f":"HLOOKUP(CN$7+0.5,$I$66:$DJ$120,ROWS($A$10:$A24)+2,FALSE)","v":202},{"$f":"HLOOKUP(CO$7+0.5,$I$66:$DJ$120,ROWS($A$10:$A24)+2,FALSE)","v":1262},{"$f":"HLOOKUP(CP$7+0.5,$I$66:$DJ$120,ROWS($A$10:$A24)+2,FALSE)","v":709},{"$f":"HLOOKUP(CQ$7+0.5,$I$66:$DJ$120,ROWS($A$10:$A24)+2,FALSE)","v":2555},{"$f":"HLOOKUP(CR$7+0.5,$I$66:$DJ$120,ROWS($A$10:$A24)+2,FALSE)","v":2479},{"$f":"HLOOKUP(CS$7+0.5,$I$66:$DJ$120,ROWS($A$10:$A24)+2,FALSE)","v":788},{"$f":"HLOOKUP(CT$7+0.5,$I$66:$DJ$120,ROWS($A$10:$A24)+2,FALSE)","v":1201},{"$f":"HLOOKUP(CU$7+0.5,$I$66:$DJ$120,ROWS($A$10:$A24)+2,FALSE)","v":777},{"$f":"HLOOKUP(CV$7+0.5,$I$66:$DJ$120,ROWS($A$10:$A24)+2,FALSE)","v":789},{"$f":"HLOOKUP(CW$7+0.5,$I$66:$DJ$120,ROWS($A$10:$A24)+2,FALSE)","v":1822},{"$f":"HLOOKUP(CX$7+0.5,$I$66:$DJ$120,ROWS($A$10:$A24)+2,FALSE)","v":643},{"$f":"HLOOKUP(CY$7+0.5,$I$66:$DJ$120,ROWS($A$10:$A24)+2,FALSE)","v":787},{"$f":"HLOOKUP(CZ$7+0.5,$I$66:$DJ$120,ROWS($A$10:$A24)+2,FALSE)","v":264},{"$f":"HLOOKUP(DA$7+0.5,$I$66:$DJ$120,ROWS($A$10:$A24)+2,FALSE)","v":1131},{"$f":"HLOOKUP(DB$7+0.5,$I$66:$DJ$120,ROWS($A$10:$A24)+2,FALSE)","v":3113},{"$f":"HLOOKUP(DC$7+0.5,$I$66:$DJ$120,ROWS($A$10:$A24)+2,FALSE)","v":427},{"$f":"HLOOKUP(DD$7+0.5,$I$66:$DJ$120,ROWS($A$10:$A24)+2,FALSE)","v":257},{"$f":"HLOOKUP(DE$7+0.5,$I$66:$DJ$120,ROWS($A$10:$A24)+2,FALSE)","v":1241},{"$f":"HLOOKUP(DF$7+0.5,$I$66:$DJ$120,ROWS($A$10:$A24)+2,FALSE)","v":707},{"$f":"HLOOKUP(DG$7+0.5,$I$66:$DJ$120,ROWS($A$10:$A24)+2,FALSE)","v":523},{"$f":"HLOOKUP(DH$7+0.5,$I$66:$DJ$120,ROWS($A$10:$A24)+2,FALSE)","v":2866},{"$f":"HLOOKUP(DI$7+0.5,$I$66:$DJ$120,ROWS($A$10:$A24)+2,FALSE)","v":432},{"$f":"HLOOKUP(DJ$7+0.5,$I$66:$DJ$120,ROWS($A$10:$A24)+2,FALSE)","v":820}]
[null,"Indiana",6414862,4257,5431015,24897,833086,22796,{"$f":"HLOOKUP(I$7,$I$66:$DJ$120,ROWS($A$10:$A25)+2,FALSE)","v":127353},{"$f":"HLOOKUP(J$7,$I$66:$DJ$120,ROWS($A$10:$A25)+2,FALSE)","v":1502},{"$f":"HLOOKUP(K$7,$I$66:$DJ$120,ROWS($A$10:$A25)+2,FALSE)","v":177},{"$f":"HLOOKUP(L$7,$I$66:$DJ$120,ROWS($A$10:$A25)+2,FALSE)","v":2210},{"$f":"HLOOKUP(M$7,$I$66:$DJ$120,ROWS($A$10:$A25)+2,FALSE)","v":1548},{"$f":"HLOOKUP(N$7,$I$66:$DJ$120,ROWS($A$10:$A25)+2,FALSE)","v":8959},{"$f":"HLOOKUP(O$7,$I$66:$DJ$120,ROWS($A$10:$A25)+2,FALSE)","v":1362},{"$f":"HLOOKUP(P$7,$I$66:$DJ$120,ROWS($A$10:$A25)+2,FALSE)","v":544},{"$f":"HLOOKUP(Q$7,$I$66:$DJ$120,ROWS($A$10:$A25)+2,FALSE)","v":0},{"$f":"HLOOKUP(R$7,$I$66:$DJ$120,ROWS($A$10:$A25)+2,FALSE)","v":181},{"$f":"HLOOKUP(S$7,$I$66:$DJ$120,ROWS($A$10:$A25)+2,FALSE)","v":5496},{"$f":"HLOOKUP(T$7,$I$66:$DJ$120,ROWS($A$10:$A25)+2,FALSE)","v":1623},{"$f":"HLOOKUP(U$7,$I$66:$DJ$120,ROWS($A$10:$A25)+2,FALSE)","v":267},{"$f":"HLOOKUP(V$7,$I$66:$DJ$120,ROWS($A$10:$A25)+2,FALSE)","v":772},{"$f":"HLOOKUP(W$7,$I$66:$DJ$120,ROWS($A$10:$A25)+2,FALSE)","v":27950},{"$f":"HLOOKUP(X$7,$I$66:$DJ$120,ROWS($A$10:$A25)+2,FALSE)","v":"N/A"},{"$f":"HLOOKUP(Y$7,$I$66:$DJ$120,ROWS($A$10:$A25)+2,FALSE)","v":1885},{"$f":"HLOOKUP(Z$7,$I$66:$DJ$120,ROWS($A$10:$A25)+2,FALSE)","v":1582},{"$f":"HLOOKUP(AA$7,$I$66:$DJ$120,ROWS($A$10:$A25)+2,FALSE)","v":10643},{"$f":"HLOOKUP(AB$7,$I$66:$DJ$120,ROWS($A$10:$A25)+2,FALSE)","v":749},{"$f":"HLOOKUP(AC$7,$I$66:$DJ$120,ROWS($A$10:$A25)+2,FALSE)","v":30},{"$f":"HLOOKUP(AD$7,$I$66:$DJ$120,ROWS($A$10:$A25)+2,FALSE)","v":1641},{"$f":"HLOOKUP(AE$7,$I$66:$DJ$120,ROWS($A$10:$A25)+2,FALSE)","v":103},{"$f":"HLOOKUP(AF$7,$I$66:$DJ$120,ROWS($A$10:$A25)+2,FALSE)","v":9361},{"$f":"HLOOKUP(AG$7,$I$66:$DJ$120,ROWS($A$10:$A25)+2,FALSE)","v":916},{"$f":"HLOOKUP(AH$7,$I$66:$DJ$120,ROWS($A$10:$A25)+2,FALSE)","v":270},{"$f":"HLOOKUP(AI$7,$I$66:$DJ$120,ROWS($A$10:$A25)+2,FALSE)","v":3893},{"$f":"HLOOKUP(AJ$7,$I$66:$DJ$120,ROWS($A$10:$A25)+2,FALSE)","v":164},{"$f":"HLOOKUP(AK$7,$I$66:$DJ$120,ROWS($A$10:$A25)+2,FALSE)","v":705},{"$f":"HLOOKUP(AL$7,$I$66:$DJ$120,ROWS($A$10:$A25)+2,FALSE)","v":227},{"$f":"HLOOKUP(AM$7,$I$66:$DJ$120,ROWS($A$10:$A25)+2,FALSE)","v":114},{"$f":"HLOOKUP(AN$7,$I$66:$DJ$120,ROWS($A$10:$A25)+2,FALSE)","v":1876},{"$f":"HLOOKUP(AO$7,$I$66:$DJ$120,ROWS($A$10:$A25)+2,FALSE)","v":188},{"$f":"HLOOKUP(AP$7,$I$66:$DJ$120,ROWS($A$10:$A25)+2,FALSE)","v":2564},{"$f":"HLOOKUP(AQ$7,$I$66:$DJ$120,ROWS($A$10:$A25)+2,FALSE)","v":2828},{"$f":"HLOOKUP(AR$7,$I$66:$DJ$120,ROWS($A$10:$A25)+2,FALSE)","v":0},{"$f":"HLOOKUP(AS$7,$I$66:$DJ$120,ROWS($A$10:$A25)+2,FALSE)","v":13272},{"$f":"HLOOKUP(AT$7,$I$66:$DJ$120,ROWS($A$10:$A25)+2,FALSE)","v":681},{"$f":"HLOOKUP(AU$7,$I$66:$DJ$120,ROWS($A$10:$A25)+2,FALSE)","v":423},{"$f":"HLOOKUP(AV$7,$I$66:$DJ$120,ROWS($A$10:$A25)+2,FALSE)","v":2668},{"$f":"HLOOKUP(AW$7,$I$66:$DJ$120,ROWS($A$10:$A25)+2,FALSE)","v":174},{"$f":"HLOOKUP(AX$7,$I$66:$DJ$120,ROWS($A$10:$A25)+2,FALSE)","v":584},{"$f":"HLOOKUP(AY$7,$I$66:$DJ$120,ROWS($A$10:$A25)+2,FALSE)","v":216},{"$f":"HLOOKUP(AZ$7,$I$66:$DJ$120,ROWS($A$10:$A25)+2,FALSE)","v":3093},{"$f":"HLOOKUP(BA$7,$I$66:$DJ$120,ROWS($A$10:$A25)+2,FALSE)","v":6335},{"$f":"HLOOKUP(BB$7,$I$66:$DJ$120,ROWS($A$10:$A25)+2,FALSE)","v":444},{"$f":"HLOOKUP(BC$7,$I$66:$DJ$120,ROWS($A$10:$A25)+2,FALSE)","v":45},{"$f":"HLOOKUP(BD$7,$I$66:$DJ$120,ROWS($A$10:$A25)+2,FALSE)","v":3673},{"$f":"HLOOKUP(BE$7,$I$66:$DJ$120,ROWS($A$10:$A25)+2,FALSE)","v":571},{"$f":"HLOOKUP(BF$7,$I$66:$DJ$120,ROWS($A$10:$A25)+2,FALSE)","v":669},{"$f":"HLOOKUP(BG$7,$I$66:$DJ$120,ROWS($A$10:$A25)+2,FALSE)","v":1762},{"$f":"HLOOKUP(BH$7,$I$66:$DJ$120,ROWS($A$10:$A25)+2,FALSE)","v":413},{"$f":"HLOOKUP(BI$7,$I$66:$DJ$120,ROWS($A$10:$A25)+2,FALSE)","v":572},{"$f":"HLOOKUP(BJ$7+0.5,$I$66:$DJ$120,ROWS($A$10:$A25)+2,FALSE)","v":8463},{"$f":"HLOOKUP(BK$7+0.5,$I$66:$DJ$120,ROWS($A$10:$A25)+2,FALSE)","v":1110},{"$f":"HLOOKUP(BL$7+0.5,$I$66:$DJ$120,ROWS($A$10:$A25)+2,FALSE)","v":143},{"$f":"HLOOKUP(BM$7+0.5,$I$66:$DJ$120,ROWS($A$10:$A25)+2,FALSE)","v":914},{"$f":"HLOOKUP(BN$7+0.5,$I$66:$DJ$120,ROWS($A$10:$A25)+2,FALSE)","v":1104},{"$f":"HLOOKUP(BO$7+0.5,$I$66:$DJ$120,ROWS($A$10:$A25)+2,FALSE)","v":2863},{"$f":"HLOOKUP(BP$7+0.5,$I$66:$DJ$120,ROWS($A$10:$A25)+2,FALSE)","v":658},{"$f":"HLOOKUP(BQ$7+0.5,$I$66:$DJ$120,ROWS($A$10:$A25)+2,FALSE)","v":404},{"$f":"HLOOKUP(BR$7+0.5,$I$66:$DJ$120,ROWS($A$10:$A25)+2,FALSE)","v":267},{"$f":"HLOOKUP(BS$7+0.5,$I$66:$DJ$120,ROWS($A$10:$A25)+2,FALSE)","v":156},{"$f":"HLOOKUP(BT$7+0.5,$I$66:$DJ$120,ROWS($A$10:$A25)+2,FALSE)","v":1564},{"$f":"HLOOKUP(BU$7+0.5,$I$66:$DJ$120,ROWS($A$10:$A25)+2,FALSE)","v":913},{"$f":"HLOOKUP(BV$7+0.5,$I$66:$DJ$120,ROWS($A$10:$A25)+2,FALSE)","v":316},{"$f":"HLOOKUP(BW$7+0.5,$I$66:$DJ$120,ROWS($A$10:$A25)+2,FALSE)","v":604},{"$f":"HLOOKUP(BX$7+0.5,$I$66:$DJ$120,ROWS($A$10:$A25)+2,FALSE)","v":4658},{"$f":"HLOOKUP(BY$7+0.5,$I$66:$DJ$120,ROWS($A$10:$A25)+2,FALSE)","v":"N/A"},{"$f":"HLOOKUP(BZ$7+0.5,$I$66:$DJ$120,ROWS($A$10:$A25)+2,FALSE)","v":1191},{"$f":"HLOOKUP(CA$7+0.5,$I$66:$DJ$120,ROWS($A$10:$A25)+2,FALSE)","v":996},{"$f":"HLOOKUP(CB$7+0.5,$I$66:$DJ$120,ROWS($A$10:$A25)+2,FALSE)","v":2402},{"$f":"HLOOKUP(CC$7+0.5,$I$66:$DJ$120,ROWS($A$10:$A25)+2,FALSE)","v":599},{"$f":"HLOOKUP(CD$7+0.5,$I$66:$DJ$120,ROWS($A$10:$A25)+2,FALSE)","v":50},{"$f":"HLOOKUP(CE$7+0.5,$I$66:$DJ$120,ROWS($A$10:$A25)+2,FALSE)","v":950},{"$f":"HLOOKUP(CF$7+0.5,$I$66:$DJ$120,ROWS($A$10:$A25)+2,FALSE)","v":135},{"$f":"HLOOKUP(CG$7+0.5,$I$66:$DJ$120,ROWS($A$10:$A25)+2,FALSE)","v":1837},{"$f":"HLOOKUP(CH$7+0.5,$I$66:$DJ$120,ROWS($A$10:$A25)+2,FALSE)","v":385},{"$f":"HLOOKUP(CI$7+0.5,$I$66:$DJ$120,ROWS($A$10:$A25)+2,FALSE)","v":255},{"$f":"HLOOKUP(CJ$7+0.5,$I$66:$DJ$120,ROWS($A$10:$A25)+2,FALSE)","v":2531},{"$f":"HLOOKUP(CK$7+0.5,$I$66:$DJ$120,ROWS($A$10:$A25)+2,FALSE)","v":201},{"$f":"HLOOKUP(CL$7+0.5,$I$66:$DJ$120,ROWS($A$10:$A25)+2,FALSE)","v":654},{"$f":"HLOOKUP(CM$7+0.5,$I$66:$DJ$120,ROWS($A$10:$A25)+2,FALSE)","v":239},{"$f":"HLOOKUP(CN$7+0.5,$I$66:$DJ$120,ROWS($A$10:$A25)+2,FALSE)","v":134},{"$f":"HLOOKUP(CO$7+0.5,$I$66:$DJ$120,ROWS($A$10:$A25)+2,FALSE)","v":1526},{"$f":"HLOOKUP(CP$7+0.5,$I$66:$DJ$120,ROWS($A$10:$A25)+2,FALSE)","v":229},{"$f":"HLOOKUP(CQ$7+0.5,$I$66:$DJ$120,ROWS($A$10:$A25)+2,FALSE)","v":952},{"$f":"HLOOKUP(CR$7+0.5,$I$66:$DJ$120,ROWS($A$10:$A25)+2,FALSE)","v":1141},{"$f":"HLOOKUP(CS$7+0.5,$I$66:$DJ$120,ROWS($A$10:$A25)+2,FALSE)","v":267},{"$f":"HLOOKUP(CT$7+0.5,$I$66:$DJ$120,ROWS($A$10:$A25)+2,FALSE)","v":2750},{"$f":"HLOOKUP(CU$7+0.5,$I$66:$DJ$120,ROWS($A$10:$A25)+2,FALSE)","v":563},{"$f":"HLOOKUP(CV$7+0.5,$I$66:$DJ$120,ROWS($A$10:$A25)+2,FALSE)","v":380},{"$f":"HLOOKUP(CW$7+0.5,$I$66:$DJ$120,ROWS($A$10:$A25)+2,FALSE)","v":1128},{"$f":"HLOOKUP(CX$7+0.5,$I$66:$DJ$120,ROWS($A$10:$A25)+2,FALSE)","v":284},{"$f":"HLOOKUP(CY$7+0.5,$I$66:$DJ$120,ROWS($A$10:$A25)+2,FALSE)","v":405},{"$f":"HLOOKUP(CZ$7+0.5,$I$66:$DJ$120,ROWS($A$10:$A25)+2,FALSE)","v":258},{"$f":"HLOOKUP(DA$7+0.5,$I$66:$DJ$120,ROWS($A$10:$A25)+2,FALSE)","v":1261},{"$f":"HLOOKUP(DB$7+0.5,$I$66:$DJ$120,ROWS($A$10:$A25)+2,FALSE)","v":1643},{"$f":"HLOOKUP(DC$7+0.5,$I$66:$DJ$120,ROWS($A$10:$A25)+2,FALSE)","v":432},{"$f":"HLOOKUP(DD$7+0.5,$I$66:$DJ$120,ROWS($A$10:$A25)+2,FALSE)","v":73},{"$f":"HLOOKUP(DE$7+0.5,$I$66:$DJ$120,ROWS($A$10:$A25)+2,FALSE)","v":1633},{"$f":"HLOOKUP(DF$7+0.5,$I$66:$DJ$120,ROWS($A$10:$A25)+2,FALSE)","v":340},{"$f":"HLOOKUP(DG$7+0.5,$I$66:$DJ$120,ROWS($A$10:$A25)+2,FALSE)","v":562},{"$f":"HLOOKUP(DH$7+0.5,$I$66:$DJ$120,ROWS($A$10:$A25)+2,FALSE)","v":893},{"$f":"HLOOKUP(DI$7+0.5,$I$66:$DJ$120,ROWS($A$10:$A25)+2,FALSE)","v":403},{"$f":"HLOOKUP(DJ$7+0.5,$I$66:$DJ$120,ROWS($A$10:$A25)+2,FALSE)","v":457}]
[null,"Iowa",3013053,2381,2553210,15158,375650,12448,{"$f":"HLOOKUP(I$7,$I$66:$DJ$120,ROWS($A$10:$A26)+2,FALSE)","v":72557},{"$f":"HLOOKUP(J$7,$I$66:$DJ$120,ROWS($A$10:$A26)+2,FALSE)","v":330},{"$f":"HLOOKUP(K$7,$I$66:$DJ$120,ROWS($A$10:$A26)+2,FALSE)","v":519},{"$f":"HLOOKUP(L$7,$I$66:$DJ$120,ROWS($A$10:$A26)+2,FALSE)","v":1483},{"$f":"HLOOKUP(M$7,$I$66:$DJ$120,ROWS($A$10:$A26)+2,FALSE)","v":247},{"$f":"HLOOKUP(N$7,$I$66:$DJ$120,ROWS($A$10:$A26)+2,FALSE)","v":2847},{"$f":"HLOOKUP(O$7,$I$66:$DJ$120,ROWS($A$10:$A26)+2,FALSE)","v":2554},{"$f":"HLOOKUP(P$7,$I$66:$DJ$120,ROWS($A$10:$A26)+2,FALSE)","v":114},{"$f":"HLOOKUP(Q$7,$I$66:$DJ$120,ROWS($A$10:$A26)+2,FALSE)","v":0},{"$f":"HLOOKUP(R$7,$I$66:$DJ$120,ROWS($A$10:$A26)+2,FALSE)","v":53},{"$f":"HLOOKUP(S$7,$I$66:$DJ$120,ROWS($A$10:$A26)+2,FALSE)","v":1364},{"$f":"HLOOKUP(T$7,$I$66:$DJ$120,ROWS($A$10:$A26)+2,FALSE)","v":973},{"$f":"HLOOKUP(U$7,$I$66:$DJ$120,ROWS($A$10:$A26)+2,FALSE)","v":866},{"$f":"HLOOKUP(V$7,$I$66:$DJ$120,ROWS($A$10:$A26)+2,FALSE)","v":315},{"$f":"HLOOKUP(W$7,$I$66:$DJ$120,ROWS($A$10:$A26)+2,FALSE)","v":17016},{"$f":"HLOOKUP(X$7,$I$66:$DJ$120,ROWS($A$10:$A26)+2,FALSE)","v":1710},{"$f":"HLOOKUP(Y$7,$I$66:$DJ$120,ROWS($A$10:$A26)+2,FALSE)","v":"N/A"},{"$f":"HLOOKUP(Z$7,$I$66:$DJ$120,ROWS($A$10:$A26)+2,FALSE)","v":1520},{"$f":"HLOOKUP(AA$7,$I$66:$DJ$120,ROWS($A$10:$A26)+2,FALSE)","v":334},{"$f":"HLOOKUP(AB$7,$I$66:$DJ$120,ROWS($A$10:$A26)+2,FALSE)","v":315},{"$f":"HLOOKUP(AC$7,$I$66:$DJ$120,ROWS($A$10:$A26)+2,FALSE)","v":0},{"$f":"HLOOKUP(AD$7,$I$66:$DJ$120,ROWS($A$10:$A26)+2,FALSE)","v":134},{"$f":"HLOOKUP(AE$7,$I$66:$DJ$120,ROWS($A$10:$A26)+2,FALSE)","v":189},{"$f":"HLOOKUP(AF$7,$I$66:$DJ$120,ROWS($A$10:$A26)+2,FALSE)","v":1439},{"$f":"HLOOKUP(AG$7,$I$66:$DJ$120,ROWS($A$10:$A26)+2,FALSE)","v":7564},{"$f":"HLOOKUP(AH$7,$I$66:$DJ$120,ROWS($A$10:$A26)+2,FALSE)","v":117},{"$f":"HLOOKUP(AI$7,$I$66:$DJ$120,ROWS($A$10:$A26)+2,FALSE)","v":6031},{"$f":"HLOOKUP(AJ$7,$I$66:$DJ$120,ROWS($A$10:$A26)+2,FALSE)","v":836},{"$f":"HLOOKUP(AK$7,$I$66:$DJ$120,ROWS($A$10:$A26)+2,FALSE)","v":4783},{"$f":"HLOOKUP(AL$7,$I$66:$DJ$120,ROWS($A$10:$A26)+2,FALSE)","v":623},{"$f":"HLOOKUP(AM$7,$I$66:$DJ$120,ROWS($A$10:$A26)+2,FALSE)","v":381},{"$f":"HLOOKUP(AN$7,$I$66:$DJ$120,ROWS($A$10:$A26)+2,FALSE)","v":472},{"$f":"HLOOKUP(AO$7,$I$66:$DJ$120,ROWS($A$10:$A26)+2,FALSE)","v":492},{"$f":"HLOOKUP(AP$7,$I$66:$DJ$120,ROWS($A$10:$A26)+2,FALSE)","v":273},{"$f":"HLOOKUP(AQ$7,$I$66:$DJ$120,ROWS($A$10:$A26)+2,FALSE)","v":1123},{"$f":"HLOOKUP(AR$7,$I$66:$DJ$120,ROWS($A$10:$A26)+2,FALSE)","v":601},{"$f":"HLOOKUP(AS$7,$I$66:$DJ$120,ROWS($A$10:$A26)+2,FALSE)","v":632},{"$f":"HLOOKUP(AT$7,$I$66:$DJ$120,ROWS($A$10:$A26)+2,FALSE)","v":679},{"$f":"HLOOKUP(AU$7,$I$66:$DJ$120,ROWS($A$10:$A26)+2,FALSE)","v":1071},{"$f":"HLOOKUP(AV$7,$I$66:$DJ$120,ROWS($A$10:$A26)+2,FALSE)","v":378},{"$f":"HLOOKUP(AW$7,$I$66:$DJ$120,ROWS($A$10:$A26)+2,FALSE)","v":0},{"$f":"HLOOKUP(AX$7,$I$66:$DJ$120,ROWS($A$10:$A26)+2,FALSE)","v":591},{"$f":"HLOOKUP(AY$7,$I$66:$DJ$120,ROWS($A$10:$A26)+2,FALSE)","v":1992},{"$f":"HLOOKUP(AZ$7,$I$66:$DJ$120,ROWS($A$10:$A26)+2,FALSE)","v":1617},{"$f":"HLOOKUP(BA$7,$I$66:$DJ$120,ROWS($A$10:$A26)+2,FALSE)","v":4131},{"$f":"HLOOKUP(BB$7,$I$66:$DJ$120,ROWS($A$10:$A26)+2,FALSE)","v":146},{"$f":"HLOOKUP(BC$7,$I$66:$DJ$120,ROWS($A$10:$A26)+2,FALSE)","v":45},{"$f":"HLOOKUP(BD$7,$I$66:$DJ$120,ROWS($A$10:$A26)+2,FALSE)","v":303},{"$f":"HLOOKUP(BE$7,$I$66:$DJ$120,ROWS($A$10:$A26)+2,FALSE)","v":538},{"$f":"HLOOKUP(BF$7,$I$66:$DJ$120,ROWS($A$10:$A26)+2,FALSE)","v":0},{"$f":"HLOOKUP(BG$7,$I$66:$DJ$120,ROWS($A$10:$A26)+2,FALSE)","v":2705},{"$f":"HLOOKUP(BH$7,$I$66:$DJ$120,ROWS($A$10:$A26)+2,FALSE)","v":111},{"$f":"HLOOKUP(BI$7,$I$66:$DJ$120,ROWS($A$10:$A26)+2,FALSE)","v":149},{"$f":"HLOOKUP(BJ$7+0.5,$I$66:$DJ$120,ROWS($A$10:$A26)+2,FALSE)","v":5707},{"$f":"HLOOKUP(BK$7+0.5,$I$66:$DJ$120,ROWS($A$10:$A26)+2,FALSE)","v":202},{"$f":"HLOOKUP(BL$7+0.5,$I$66:$DJ$120,ROWS($A$10:$A26)+2,FALSE)","v":407},{"$f":"HLOOKUP(BM$7+0.5,$I$66:$DJ$120,ROWS($A$10:$A26)+2,FALSE)","v":623},{"$f":"HLOOKUP(BN$7+0.5,$I$66:$DJ$120,ROWS($A$10:$A26)+2,FALSE)","v":190},{"$f":"HLOOKUP(BO$7+0.5,$I$66:$DJ$120,ROWS($A$10:$A26)+2,FALSE)","v":1227},{"$f":"HLOOKUP(BP$7+0.5,$I$66:$DJ$120,ROWS($A$10:$A26)+2,FALSE)","v":865},{"$f":"HLOOKUP(BQ$7+0.5,$I$66:$DJ$120,ROWS($A$10:$A26)+2,FALSE)","v":155},{"$f":"HLOOKUP(BR$7+0.5,$I$66:$DJ$120,ROWS($A$10:$A26)+2,FALSE)","v":228},{"$f":"HLOOKUP(BS$7+0.5,$I$66:$DJ$120,ROWS($A$10:$A26)+2,FALSE)","v":85},{"$f":"HLOOKUP(BT$7+0.5,$I$66:$DJ$120,ROWS($A$10:$A26)+2,FALSE)","v":573},{"$f":"HLOOKUP(BU$7+0.5,$I$66:$DJ$120,ROWS($A$10:$A26)+2,FALSE)","v":472},{"$f":"HLOOKUP(BV$7+0.5,$I$66:$DJ$120,ROWS($A$10:$A26)+2,FALSE)","v":651},{"$f":"HLOOKUP(BW$7+0.5,$I$66:$DJ$120,ROWS($A$10:$A26)+2,FALSE)","v":415},{"$f":"HLOOKUP(BX$7+0.5,$I$66:$DJ$120,ROWS($A$10:$A26)+2,FALSE)","v":2840},{"$f":"HLOOKUP(BY$7+0.5,$I$66:$DJ$120,ROWS($A$10:$A26)+2,FALSE)","v":917},{"$f":"HLOOKUP(BZ$7+0.5,$I$66:$DJ$120,ROWS($A$10:$A26)+2,FALSE)","v":"N/A"},{"$f":"HLOOKUP(CA$7+0.5,$I$66:$DJ$120,ROWS($A$10:$A26)+2,FALSE)","v":741},{"$f":"HLOOKUP(CB$7+0.5,$I$66:$DJ$120,ROWS($A$10:$A26)+2,FALSE)","v":377},{"$f":"HLOOKUP(CC$7+0.5,$I$66:$DJ$120,ROWS($A$10:$A26)+2,FALSE)","v":384},{"$f":"HLOOKUP(CD$7+0.5,$I$66:$DJ$120,ROWS($A$10:$A26)+2,FALSE)","v":228},{"$f":"HLOOKUP(CE$7+0.5,$I$66:$DJ$120,ROWS($A$10:$A26)+2,FALSE)","v":156},{"$f":"HLOOKUP(CF$7+0.5,$I$66:$DJ$120,ROWS($A$10:$A26)+2,FALSE)","v":175},{"$f":"HLOOKUP(CG$7+0.5,$I$66:$DJ$120,ROWS($A$10:$A26)+2,FALSE)","v":652},{"$f":"HLOOKUP(CH$7+0.5,$I$66:$DJ$120,ROWS($A$10:$A26)+2,FALSE)","v":1722},{"$f":"HLOOKUP(CI$7+0.5,$I$66:$DJ$120,ROWS($A$10:$A26)+2,FALSE)","v":138},{"$f":"HLOOKUP(CJ$7+0.5,$I$66:$DJ$120,ROWS($A$10:$A26)+2,FALSE)","v":2253},{"$f":"HLOOKUP(CK$7+0.5,$I$66:$DJ$120,ROWS($A$10:$A26)+2,FALSE)","v":743},{"$f":"HLOOKUP(CL$7+0.5,$I$66:$DJ$120,ROWS($A$10:$A26)+2,FALSE)","v":1799},{"$f":"HLOOKUP(CM$7+0.5,$I$66:$DJ$120,ROWS($A$10:$A26)+2,FALSE)","v":371},{"$f":"HLOOKUP(CN$7+0.5,$I$66:$DJ$120,ROWS($A$10:$A26)+2,FALSE)","v":531},{"$f":"HLOOKUP(CO$7+0.5,$I$66:$DJ$120,ROWS($A$10:$A26)+2,FALSE)","v":405},{"$f":"HLOOKUP(CP$7+0.5,$I$66:$DJ$120,ROWS($A$10:$A26)+2,FALSE)","v":490},{"$f":"HLOOKUP(CQ$7+0.5,$I$66:$DJ$120,ROWS($A$10:$A26)+2,FALSE)","v":270},{"$f":"HLOOKUP(CR$7+0.5,$I$66:$DJ$120,ROWS($A$10:$A26)+2,FALSE)","v":744},{"$f":"HLOOKUP(CS$7+0.5,$I$66:$DJ$120,ROWS($A$10:$A26)+2,FALSE)","v":617},{"$f":"HLOOKUP(CT$7+0.5,$I$66:$DJ$120,ROWS($A$10:$A26)+2,FALSE)","v":421},{"$f":"HLOOKUP(CU$7+0.5,$I$66:$DJ$120,ROWS($A$10:$A26)+2,FALSE)","v":491},{"$f":"HLOOKUP(CV$7+0.5,$I$66:$DJ$120,ROWS($A$10:$A26)+2,FALSE)","v":568},{"$f":"HLOOKUP(CW$7+0.5,$I$66:$DJ$120,ROWS($A$10:$A26)+2,FALSE)","v":242},{"$f":"HLOOKUP(CX$7+0.5,$I$66:$DJ$120,ROWS($A$10:$A26)+2,FALSE)","v":228},{"$f":"HLOOKUP(CY$7+0.5,$I$66:$DJ$120,ROWS($A$10:$A26)+2,FALSE)","v":442},{"$f":"HLOOKUP(CZ$7+0.5,$I$66:$DJ$120,ROWS($A$10:$A26)+2,FALSE)","v":980},{"$f":"HLOOKUP(DA$7+0.5,$I$66:$DJ$120,ROWS($A$10:$A26)+2,FALSE)","v":1222},{"$f":"HLOOKUP(DB$7+0.5,$I$66:$DJ$120,ROWS($A$10:$A26)+2,FALSE)","v":1470},{"$f":"HLOOKUP(DC$7+0.5,$I$66:$DJ$120,ROWS($A$10:$A26)+2,FALSE)","v":156},{"$f":"HLOOKUP(DD$7+0.5,$I$66:$DJ$120,ROWS($A$10:$A26)+2,FALSE)","v":81},{"$f":"HLOOKUP(DE$7+0.5,$I$66:$DJ$120,ROWS($A$10:$A26)+2,FALSE)","v":329},{"$f":"HLOOKUP(DF$7+0.5,$I$66:$DJ$120,ROWS($A$10:$A26)+2,FALSE)","v":365},{"$f":"HLOOKUP(DG$7+0.5,$I$66:$DJ$120,ROWS($A$10:$A26)+2,FALSE)","v":228},{"$f":"HLOOKUP(DH$7+0.5,$I$66:$DJ$120,ROWS($A$10:$A26)+2,FALSE)","v":1206},{"$f":"HLOOKUP(DI$7+0.5,$I$66:$DJ$120,ROWS($A$10:$A26)+2,FALSE)","v":119},{"$f":"HLOOKUP(DJ$7+0.5,$I$66:$DJ$120,ROWS($A$10:$A26)+2,FALSE)","v":176}]
[null,"Kansas",2820894,2731,2341401,17752,372161,15608,{"$f":"HLOOKUP(I$7,$I$66:$DJ$120,ROWS($A$10:$A27)+2,FALSE)","v":95059},{"$f":"HLOOKUP(J$7,$I$66:$DJ$120,ROWS($A$10:$A27)+2,FALSE)","v":44},{"$f":"HLOOKUP(K$7,$I$66:$DJ$120,ROWS($A$10:$A27)+2,FALSE)","v":1050},{"$f":"HLOOKUP(L$7,$I$66:$DJ$120,ROWS($A$10:$A27)+2,FALSE)","v":2238},{"$f":"HLOOKUP(M$7,$I$66:$DJ$120,ROWS($A$10:$A27)+2,FALSE)","v":1596},{"$f":"HLOOKUP(N$7,$I$66:$DJ$120,ROWS($A$10:$A27)+2,FALSE)","v":6125},{"$f":"HLOOKUP(O$7,$I$66:$DJ$120,ROWS($A$10:$A27)+2,FALSE)","v":6022},{"$f":"HLOOKUP(P$7,$I$66:$DJ$120,ROWS($A$10:$A27)+2,FALSE)","v":85},{"$f":"HLOOKUP(Q$7,$I$66:$DJ$120,ROWS($A$10:$A27)+2,FALSE)","v":238},{"$f":"HLOOKUP(R$7,$I$66:$DJ$120,ROWS($A$10:$A27)+2,FALSE)","v":0},{"$f":"HLOOKUP(S$7,$I$66:$DJ$120,ROWS($A$10:$A27)+2,FALSE)","v":2863},{"$f":"HLOOKUP(T$7,$I$66:$DJ$120,ROWS($A$10:$A27)+2,FALSE)","v":1916},{"$f":"HLOOKUP(U$7,$I$66:$DJ$120,ROWS($A$10:$A27)+2,FALSE)","v":128},{"$f":"HLOOKUP(V$7,$I$66:$DJ$120,ROWS($A$10:$A27)+2,FALSE)","v":398},{"$f":"HLOOKUP(W$7,$I$66:$DJ$120,ROWS($A$10:$A27)+2,FALSE)","v":2943},{"$f":"HLOOKUP(X$7,$I$66:$DJ$120,ROWS($A$10:$A27)+2,FALSE)","v":1544},{"$f":"HLOOKUP(Y$7,$I$66:$DJ$120,ROWS($A$10:$A27)+2,FALSE)","v":1875},{"$f":"HLOOKUP(Z$7,$I$66:$DJ$120,ROWS($A$10:$A27)+2,FALSE)","v":"N/A"},{"$f":"HLOOKUP(AA$7,$I$66:$DJ$120,ROWS($A$10:$A27)+2,FALSE)","v":1048},{"$f":"HLOOKUP(AB$7,$I$66:$DJ$120,ROWS($A$10:$A27)+2,FALSE)","v":890},{"$f":"HLOOKUP(AC$7,$I$66:$DJ$120,ROWS($A$10:$A27)+2,FALSE)","v":0},{"$f":"HLOOKUP(AD$7,$I$66:$DJ$120,ROWS($A$10:$A27)+2,FALSE)","v":1369},{"$f":"HLOOKUP(AE$7,$I$66:$DJ$120,ROWS($A$10:$A27)+2,FALSE)","v":100},{"$f":"HLOOKUP(AF$7,$I$66:$DJ$120,ROWS($A$10:$A27)+2,FALSE)","v":806},{"$f":"HLOOKUP(AG$7,$I$66:$DJ$120,ROWS($A$10:$A27)+2,FALSE)","v":1562},{"$f":"HLOOKUP(AH$7,$I$66:$DJ$120,ROWS($A$10:$A27)+2,FALSE)","v":167},{"$f":"HLOOKUP(AI$7,$I$66:$DJ$120,ROWS($A$10:$A27)+2,FALSE)","v":23384},{"$f":"HLOOKUP(AJ$7,$I$66:$DJ$120,ROWS($A$10:$A27)+2,FALSE)","v":289},{"$f":"HLOOKUP(AK$7,$I$66:$DJ$120,ROWS($A$10:$A27)+2,FALSE)","v":2678},{"$f":"HLOOKUP(AL$7,$I$66:$DJ$120,ROWS($A$10:$A27)+2,FALSE)","v":1318},{"$f":"HLOOKUP(AM$7,$I$66:$DJ$120,ROWS($A$10:$A27)+2,FALSE)","v":76},{"$f":"HLOOKUP(AN$7,$I$66:$DJ$120,ROWS($A$10:$A27)+2,FALSE)","v":1743},{"$f":"HLOOKUP(AO$7,$I$66:$DJ$120,ROWS($A$10:$A27)+2,FALSE)","v":873},{"$f":"HLOOKUP(AP$7,$I$66:$DJ$120,ROWS($A$10:$A27)+2,FALSE)","v":2390},{"$f":"HLOOKUP(AQ$7,$I$66:$DJ$120,ROWS($A$10:$A27)+2,FALSE)","v":1083},{"$f":"HLOOKUP(AR$7,$I$66:$DJ$120,ROWS($A$10:$A27)+2,FALSE)","v":225},{"$f":"HLOOKUP(AS$7,$I$66:$DJ$120,ROWS($A$10:$A27)+2,FALSE)","v":1509},{"$f":"HLOOKUP(AT$7,$I$66:$DJ$120,ROWS($A$10:$A27)+2,FALSE)","v":7568},{"$f":"HLOOKUP(AU$7,$I$66:$DJ$120,ROWS($A$10:$A27)+2,FALSE)","v":514},{"$f":"HLOOKUP(AV$7,$I$66:$DJ$120,ROWS($A$10:$A27)+2,FALSE)","v":563},{"$f":"HLOOKUP(AW$7,$I$66:$DJ$120,ROWS($A$10:$A27)+2,FALSE)","v":39},{"$f":"HLOOKUP(AX$7,$I$66:$DJ$120,ROWS($A$10:$A27)+2,FALSE)","v":137},{"$f":"HLOOKUP(AY$7,$I$66:$DJ$120,ROWS($A$10:$A27)+2,FALSE)","v":352},{"$f":"HLOOKUP(AZ$7,$I$66:$DJ$120,ROWS($A$10:$A27)+2,FALSE)","v":1152},{"$f":"HLOOKUP(BA$7,$I$66:$DJ$120,ROWS($A$10:$A27)+2,FALSE)","v":9217},{"$f":"HLOOKUP(BB$7,$I$66:$DJ$120,ROWS($A$10:$A27)+2,FALSE)","v":238},{"$f":"HLOOKUP(BC$7,$I$66:$DJ$120,ROWS($A$10:$A27)+2,FALSE)","v":75},{"$f":"HLOOKUP(BD$7,$I$66:$DJ$120,ROWS($A$10:$A27)+2,FALSE)","v":1648},{"$f":"HLOOKUP(BE$7,$I$66:$DJ$120,ROWS($A$10:$A27)+2,FALSE)","v":1175},{"$f":"HLOOKUP(BF$7,$I$66:$DJ$120,ROWS($A$10:$A27)+2,FALSE)","v":0},{"$f":"HLOOKUP(BG$7,$I$66:$DJ$120,ROWS($A$10:$A27)+2,FALSE)","v":1233},{"$f":"HLOOKUP(BH$7,$I$66:$DJ$120,ROWS($A$10:$A27)+2,FALSE)","v":573},{"$f":"HLOOKUP(BI$7,$I$66:$DJ$120,ROWS($A$10:$A27)+2,FALSE)","v":68},{"$f":"HLOOKUP(BJ$7+0.5,$I$66:$DJ$120,ROWS($A$10:$A27)+2,FALSE)","v":7804},{"$f":"HLOOKUP(BK$7+0.5,$I$66:$DJ$120,ROWS($A$10:$A27)+2,FALSE)","v":75},{"$f":"HLOOKUP(BL$7+0.5,$I$66:$DJ$120,ROWS($A$10:$A27)+2,FALSE)","v":697},{"$f":"HLOOKUP(BM$7+0.5,$I$66:$DJ$120,ROWS($A$10:$A27)+2,FALSE)","v":878},{"$f":"HLOOKUP(BN$7+0.5,$I$66:$DJ$120,ROWS($A$10:$A27)+2,FALSE)","v":1073},{"$f":"HLOOKUP(BO$7+0.5,$I$66:$DJ$120,ROWS($A$10:$A27)+2,FALSE)","v":1459},{"$f":"HLOOKUP(BP$7+0.5,$I$66:$DJ$120,ROWS($A$10:$A27)+2,FALSE)","v":2519},{"$f":"HLOOKUP(BQ$7+0.5,$I$66:$DJ$120,ROWS($A$10:$A27)+2,FALSE)","v":140},{"$f":"HLOOKUP(BR$7+0.5,$I$66:$DJ$120,ROWS($A$10:$A27)+2,FALSE)","v":275},{"$f":"HLOOKUP(BS$7+0.5,$I$66:$DJ$120,ROWS($A$10:$A27)+2,FALSE)","v":248},{"$f":"HLOOKUP(BT$7+0.5,$I$66:$DJ$120,ROWS($A$10:$A27)+2,FALSE)","v":1848},{"$f":"HLOOKUP(BU$7+0.5,$I$66:$DJ$120,ROWS($A$10:$A27)+2,FALSE)","v":1039},{"$f":"HLOOKUP(BV$7+0.5,$I$66:$DJ$120,ROWS($A$10:$A27)+2,FALSE)","v":154},{"$f":"HLOOKUP(BW$7+0.5,$I$66:$DJ$120,ROWS($A$10:$A27)+2,FALSE)","v":407},{"$f":"HLOOKUP(BX$7+0.5,$I$66:$DJ$120,ROWS($A$10:$A27)+2,FALSE)","v":1096},{"$f":"HLOOKUP(BY$7+0.5,$I$66:$DJ$120,ROWS($A$10:$A27)+2,FALSE)","v":859},{"$f":"HLOOKUP(BZ$7+0.5,$I$66:$DJ$120,ROWS($A$10:$A27)+2,FALSE)","v":1184},{"$f":"HLOOKUP(CA$7+0.5,$I$66:$DJ$120,ROWS($A$10:$A27)+2,FALSE)","v":"N/A"},{"$f":"HLOOKUP(CB$7+0.5,$I$66:$DJ$120,ROWS($A$10:$A27)+2,FALSE)","v":1402},{"$f":"HLOOKUP(CC$7+0.5,$I$66:$DJ$120,ROWS($A$10:$A27)+2,FALSE)","v":580},{"$f":"HLOOKUP(CD$7+0.5,$I$66:$DJ$120,ROWS($A$10:$A27)+2,FALSE)","v":248},{"$f":"HLOOKUP(CE$7+0.5,$I$66:$DJ$120,ROWS($A$10:$A27)+2,FALSE)","v":1103},{"$f":"HLOOKUP(CF$7+0.5,$I$66:$DJ$120,ROWS($A$10:$A27)+2,FALSE)","v":120},{"$f":"HLOOKUP(CG$7+0.5,$I$66:$DJ$120,ROWS($A$10:$A27)+2,FALSE)","v":457},{"$f":"HLOOKUP(CH$7+0.5,$I$66:$DJ$120,ROWS($A$10:$A27)+2,FALSE)","v":1147},{"$f":"HLOOKUP(CI$7+0.5,$I$66:$DJ$120,ROWS($A$10:$A27)+2,FALSE)","v":146},{"$f":"HLOOKUP(CJ$7+0.5,$I$66:$DJ$120,ROWS($A$10:$A27)+2,FALSE)","v":3524},{"$f":"HLOOKUP(CK$7+0.5,$I$66:$DJ$120,ROWS($A$10:$A27)+2,FALSE)","v":318},{"$f":"HLOOKUP(CL$7+0.5,$I$66:$DJ$120,ROWS($A$10:$A27)+2,FALSE)","v":875},{"$f":"HLOOKUP(CM$7+0.5,$I$66:$DJ$120,ROWS($A$10:$A27)+2,FALSE)","v":1245},{"$f":"HLOOKUP(CN$7+0.5,$I$66:$DJ$120,ROWS($A$10:$A27)+2,FALSE)","v":130},{"$f":"HLOOKUP(CO$7+0.5,$I$66:$DJ$120,ROWS($A$10:$A27)+2,FALSE)","v":1236},{"$f":"HLOOKUP(CP$7+0.5,$I$66:$DJ$120,ROWS($A$10:$A27)+2,FALSE)","v":580},{"$f":"HLOOKUP(CQ$7+0.5,$I$66:$DJ$120,ROWS($A$10:$A27)+2,FALSE)","v":1235},{"$f":"HLOOKUP(CR$7+0.5,$I$66:$DJ$120,ROWS($A$10:$A27)+2,FALSE)","v":649},{"$f":"HLOOKUP(CS$7+0.5,$I$66:$DJ$120,ROWS($A$10:$A27)+2,FALSE)","v":373},{"$f":"HLOOKUP(CT$7+0.5,$I$66:$DJ$120,ROWS($A$10:$A27)+2,FALSE)","v":1127},{"$f":"HLOOKUP(CU$7+0.5,$I$66:$DJ$120,ROWS($A$10:$A27)+2,FALSE)","v":2302},{"$f":"HLOOKUP(CV$7+0.5,$I$66:$DJ$120,ROWS($A$10:$A27)+2,FALSE)","v":610},{"$f":"HLOOKUP(CW$7+0.5,$I$66:$DJ$120,ROWS($A$10:$A27)+2,FALSE)","v":537},{"$f":"HLOOKUP(CX$7+0.5,$I$66:$DJ$120,ROWS($A$10:$A27)+2,FALSE)","v":79},{"$f":"HLOOKUP(CY$7+0.5,$I$66:$DJ$120,ROWS($A$10:$A27)+2,FALSE)","v":211},{"$f":"HLOOKUP(CZ$7+0.5,$I$66:$DJ$120,ROWS($A$10:$A27)+2,FALSE)","v":227},{"$f":"HLOOKUP(DA$7+0.5,$I$66:$DJ$120,ROWS($A$10:$A27)+2,FALSE)","v":821},{"$f":"HLOOKUP(DB$7+0.5,$I$66:$DJ$120,ROWS($A$10:$A27)+2,FALSE)","v":2824},{"$f":"HLOOKUP(DC$7+0.5,$I$66:$DJ$120,ROWS($A$10:$A27)+2,FALSE)","v":298},{"$f":"HLOOKUP(DD$7+0.5,$I$66:$DJ$120,ROWS($A$10:$A27)+2,FALSE)","v":126},{"$f":"HLOOKUP(DE$7+0.5,$I$66:$DJ$120,ROWS($A$10:$A27)+2,FALSE)","v":934},{"$f":"HLOOKUP(DF$7+0.5,$I$66:$DJ$120,ROWS($A$10:$A27)+2,FALSE)","v":792},{"$f":"HLOOKUP(DG$7+0.5,$I$66:$DJ$120,ROWS($A$10:$A27)+2,FALSE)","v":248},{"$f":"HLOOKUP(DH$7+0.5,$I$66:$DJ$120,ROWS($A$10:$A27)+2,FALSE)","v":898},{"$f":"HLOOKUP(DI$7+0.5,$I$66:$DJ$120,ROWS($A$10:$A27)+2,FALSE)","v":531},{"$f":"HLOOKUP(DJ$7+0.5,$I$66:$DJ$120,ROWS($A$10:$A27)+2,FALSE)","v":88}]
[null,"Kentucky",4296639,3389,3638259,20337,519887,18955,{"$f":"HLOOKUP(I$7,$I$66:$DJ$120,ROWS($A$10:$A28)+2,FALSE)","v":118443},{"$f":"HLOOKUP(J$7,$I$66:$DJ$120,ROWS($A$10:$A28)+2,FALSE)","v":2161},{"$f":"HLOOKUP(K$7,$I$66:$DJ$120,ROWS($A$10:$A28)+2,FALSE)","v":3017},{"$f":"HLOOKUP(L$7,$I$66:$DJ$120,ROWS($A$10:$A28)+2,FALSE)","v":2598},{"$f":"HLOOKUP(M$7,$I$66:$DJ$120,ROWS($A$10:$A28)+2,FALSE)","v":558},{"$f":"HLOOKUP(N$7,$I$66:$DJ$120,ROWS($A$10:$A28)+2,FALSE)","v":3779},{"$f":"HLOOKUP(O$7,$I$66:$DJ$120,ROWS($A$10:$A28)+2,FALSE)","v":329},{"$f":"HLOOKUP(P$7,$I$66:$DJ$120,ROWS($A$10:$A28)+2,FALSE)","v":698},{"$f":"HLOOKUP(Q$7,$I$66:$DJ$120,ROWS($A$10:$A28)+2,FALSE)","v":38},{"$f":"HLOOKUP(R$7,$I$66:$DJ$120,ROWS($A$10:$A28)+2,FALSE)","v":147},{"$f":"HLOOKUP(S$7,$I$66:$DJ$120,ROWS($A$10:$A28)+2,FALSE)","v":10119},{"$f":"HLOOKUP(T$7,$I$66:$DJ$120,ROWS($A$10:$A28)+2,FALSE)","v":6397},{"$f":"HLOOKUP(U$7,$I$66:$DJ$120,ROWS($A$10:$A28)+2,FALSE)","v":520},{"$f":"HLOOKUP(V$7,$I$66:$DJ$120,ROWS($A$10:$A28)+2,FALSE)","v":71},{"$f":"HLOOKUP(W$7,$I$66:$DJ$120,ROWS($A$10:$A28)+2,FALSE)","v":4659},{"$f":"HLOOKUP(X$7,$I$66:$DJ$120,ROWS($A$10:$A28)+2,FALSE)","v":11906},{"$f":"HLOOKUP(Y$7,$I$66:$DJ$120,ROWS($A$10:$A28)+2,FALSE)","v":656},{"$f":"HLOOKUP(Z$7,$I$66:$DJ$120,ROWS($A$10:$A28)+2,FALSE)","v":1109},{"$f":"HLOOKUP(AA$7,$I$66:$DJ$120,ROWS($A$10:$A28)+2,FALSE)","v":"N/A"},{"$f":"HLOOKUP(AB$7,$I$66:$DJ$120,ROWS($A$10:$A28)+2,FALSE)","v":437},{"$f":"HLOOKUP(AC$7,$I$66:$DJ$120,ROWS($A$10:$A28)+2,FALSE)","v":0},{"$f":"HLOOKUP(AD$7,$I$66:$DJ$120,ROWS($A$10:$A28)+2,FALSE)","v":1395},{"$f":"HLOOKUP(AE$7,$I$66:$DJ$120,ROWS($A$10:$A28)+2,FALSE)","v":1036},{"$f":"HLOOKUP(AF$7,$I$66:$DJ$120,ROWS($A$10:$A28)+2,FALSE)","v":4672},{"$f":"HLOOKUP(AG$7,$I$66:$DJ$120,ROWS($A$10:$A28)+2,FALSE)","v":930},{"$f":"HLOOKUP(AH$7,$I$66:$DJ$120,ROWS($A$10:$A28)+2,FALSE)","v":1442},{"$f":"HLOOKUP(AI$7,$I$66:$DJ$120,ROWS($A$10:$A28)+2,FALSE)","v":3153},{"$f":"HLOOKUP(AJ$7,$I$66:$DJ$120,ROWS($A$10:$A28)+2,FALSE)","v":0},{"$f":"HLOOKUP(AK$7,$I$66:$DJ$120,ROWS($A$10:$A28)+2,FALSE)","v":858},{"$f":"HLOOKUP(AL$7,$I$66:$DJ$120,ROWS($A$10:$A28)+2,FALSE)","v":76},{"$f":"HLOOKUP(AM$7,$I$66:$DJ$120,ROWS($A$10:$A28)+2,FALSE)","v":0},{"$f":"HLOOKUP(AN$7,$I$66:$DJ$120,ROWS($A$10:$A28)+2,FALSE)","v":1147},{"$f":"HLOOKUP(AO$7,$I$66:$DJ$120,ROWS($A$10:$A28)+2,FALSE)","v":122},{"$f":"HLOOKUP(AP$7,$I$66:$DJ$120,ROWS($A$10:$A28)+2,FALSE)","v":2057},{"$f":"HLOOKUP(AQ$7,$I$66:$DJ$120,ROWS($A$10:$A28)+2,FALSE)","v":3758},{"$f":"HLOOKUP(AR$7,$I$66:$DJ$120,ROWS($A$10:$A28)+2,FALSE)","v":0},{"$f":"HLOOKUP(AS$7,$I$66:$DJ$120,ROWS($A$10:$A28)+2,FALSE)","v":15598},{"$f":"HLOOKUP(AT$7,$I$66:$DJ$120,ROWS($A$10:$A28)+2,FALSE)","v":1153},{"$f":"HLOOKUP(AU$7,$I$66:$DJ$120,ROWS($A$10:$A28)+2,FALSE)","v":181},{"$f":"HLOOKUP(AV$7,$I$66:$DJ$120,ROWS($A$10:$A28)+2,FALSE)","v":2618},{"$f":"HLOOKUP(AW$7,$I$66:$DJ$120,ROWS($A$10:$A28)+2,FALSE)","v":289},{"$f":"HLOOKUP(AX$7,$I$66:$DJ$120,ROWS($A$10:$A28)+2,FALSE)","v":1286},{"$f":"HLOOKUP(AY$7,$I$66:$DJ$120,ROWS($A$10:$A28)+2,FALSE)","v":163},{"$f":"HLOOKUP(AZ$7,$I$66:$DJ$120,ROWS($A$10:$A28)+2,FALSE)","v":11153},{"$f":"HLOOKUP(BA$7,$I$66:$DJ$120,ROWS($A$10:$A28)+2,FALSE)","v":5758},{"$f":"HLOOKUP(BB$7,$I$66:$DJ$120,ROWS($A$10:$A28)+2,FALSE)","v":905},{"$f":"HLOOKUP(BC$7,$I$66:$DJ$120,ROWS($A$10:$A28)+2,FALSE)","v":525},{"$f":"HLOOKUP(BD$7,$I$66:$DJ$120,ROWS($A$10:$A28)+2,FALSE)","v":3671},{"$f":"HLOOKUP(BE$7,$I$66:$DJ$120,ROWS($A$10:$A28)+2,FALSE)","v":716},{"$f":"HLOOKUP(BF$7,$I$66:$DJ$120,ROWS($A$10:$A28)+2,FALSE)","v":2297},{"$f":"HLOOKUP(BG$7,$I$66:$DJ$120,ROWS($A$10:$A28)+2,FALSE)","v":1993},{"$f":"HLOOKUP(BH$7,$I$66:$DJ$120,ROWS($A$10:$A28)+2,FALSE)","v":292},{"$f":"HLOOKUP(BI$7,$I$66:$DJ$120,ROWS($A$10:$A28)+2,FALSE)","v":179},{"$f":"HLOOKUP(BJ$7+0.5,$I$66:$DJ$120,ROWS($A$10:$A28)+2,FALSE)","v":8947},{"$f":"HLOOKUP(BK$7+0.5,$I$66:$DJ$120,ROWS($A$10:$A28)+2,FALSE)","v":871},{"$f":"HLOOKUP(BL$7+0.5,$I$66:$DJ$120,ROWS($A$10:$A28)+2,FALSE)","v":2024},{"$f":"HLOOKUP(BM$7+0.5,$I$66:$DJ$120,ROWS($A$10:$A28)+2,FALSE)","v":1483},{"$f":"HLOOKUP(BN$7+0.5,$I$66:$DJ$120,ROWS($A$10:$A28)+2,FALSE)","v":547},{"$f":"HLOOKUP(BO$7+0.5,$I$66:$DJ$120,ROWS($A$10:$A28)+2,FALSE)","v":1387},{"$f":"HLOOKUP(BP$7+0.5,$I$66:$DJ$120,ROWS($A$10:$A28)+2,FALSE)","v":363},{"$f":"HLOOKUP(BQ$7+0.5,$I$66:$DJ$120,ROWS($A$10:$A28)+2,FALSE)","v":710},{"$f":"HLOOKUP(BR$7+0.5,$I$66:$DJ$120,ROWS($A$10:$A28)+2,FALSE)","v":64},{"$f":"HLOOKUP(BS$7+0.5,$I$66:$DJ$120,ROWS($A$10:$A28)+2,FALSE)","v":210},{"$f":"HLOOKUP(BT$7+0.5,$I$66:$DJ$120,ROWS($A$10:$A28)+2,FALSE)","v":2893},{"$f":"HLOOKUP(BU$7+0.5,$I$66:$DJ$120,ROWS($A$10:$A28)+2,FALSE)","v":2093},{"$f":"HLOOKUP(BV$7+0.5,$I$66:$DJ$120,ROWS($A$10:$A28)+2,FALSE)","v":520},{"$f":"HLOOKUP(BW$7+0.5,$I$66:$DJ$120,ROWS($A$10:$A28)+2,FALSE)","v":119},{"$f":"HLOOKUP(BX$7+0.5,$I$66:$DJ$120,ROWS($A$10:$A28)+2,FALSE)","v":1887},{"$f":"HLOOKUP(BY$7+0.5,$I$66:$DJ$120,ROWS($A$10:$A28)+2,FALSE)","v":2334},{"$f":"HLOOKUP(BZ$7+0.5,$I$66:$DJ$120,ROWS($A$10:$A28)+2,FALSE)","v":788},{"$f":"HLOOKUP(CA$7+0.5,$I$66:$DJ$120,ROWS($A$10:$A28)+2,FALSE)","v":1031},{"$f":"HLOOKUP(CB$7+0.5,$I$66:$DJ$120,ROWS($A$10:$A28)+2,FALSE)","v":"N/A"},{"$f":"HLOOKUP(CC$7+0.5,$I$66:$DJ$120,ROWS($A$10:$A28)+2,FALSE)","v":435},{"$f":"HLOOKUP(CD$7+0.5,$I$66:$DJ$120,ROWS($A$10:$A28)+2,FALSE)","v":271},{"$f":"HLOOKUP(CE$7+0.5,$I$66:$DJ$120,ROWS($A$10:$A28)+2,FALSE)","v":995},{"$f":"HLOOKUP(CF$7+0.5,$I$66:$DJ$120,ROWS($A$10:$A28)+2,FALSE)","v":738},{"$f":"HLOOKUP(CG$7+0.5,$I$66:$DJ$120,ROWS($A$10:$A28)+2,FALSE)","v":1897},{"$f":"HLOOKUP(CH$7+0.5,$I$66:$DJ$120,ROWS($A$10:$A28)+2,FALSE)","v":781},{"$f":"HLOOKUP(CI$7+0.5,$I$66:$DJ$120,ROWS($A$10:$A28)+2,FALSE)","v":917},{"$f":"HLOOKUP(CJ$7+0.5,$I$66:$DJ$120,ROWS($A$10:$A28)+2,FALSE)","v":1147},{"$f":"HLOOKUP(CK$7+0.5,$I$66:$DJ$120,ROWS($A$10:$A28)+2,FALSE)","v":271},{"$f":"HLOOKUP(CL$7+0.5,$I$66:$DJ$120,ROWS($A$10:$A28)+2,FALSE)","v":809},{"$f":"HLOOKUP(CM$7+0.5,$I$66:$DJ$120,ROWS($A$10:$A28)+2,FALSE)","v":129},{"$f":"HLOOKUP(CN$7+0.5,$I$66:$DJ$120,ROWS($A$10:$A28)+2,FALSE)","v":271},{"$f":"HLOOKUP(CO$7+0.5,$I$66:$DJ$120,ROWS($A$10:$A28)+2,FALSE)","v":807},{"$f":"HLOOKUP(CP$7+0.5,$I$66:$DJ$120,ROWS($A$10:$A28)+2,FALSE)","v":189},{"$f":"HLOOKUP(CQ$7+0.5,$I$66:$DJ$120,ROWS($A$10:$A28)+2,FALSE)","v":1057},{"$f":"HLOOKUP(CR$7+0.5,$I$66:$DJ$120,ROWS($A$10:$A28)+2,FALSE)","v":1216},{"$f":"HLOOKUP(CS$7+0.5,$I$66:$DJ$120,ROWS($A$10:$A28)+2,FALSE)","v":271},{"$f":"HLOOKUP(CT$7+0.5,$I$66:$DJ$120,ROWS($A$10:$A28)+2,FALSE)","v":2549},{"$f":"HLOOKUP(CU$7+0.5,$I$66:$DJ$120,ROWS($A$10:$A28)+2,FALSE)","v":900},{"$f":"HLOOKUP(CV$7+0.5,$I$66:$DJ$120,ROWS($A$10:$A28)+2,FALSE)","v":220},{"$f":"HLOOKUP(CW$7+0.5,$I$66:$DJ$120,ROWS($A$10:$A28)+2,FALSE)","v":1480},{"$f":"HLOOKUP(CX$7+0.5,$I$66:$DJ$120,ROWS($A$10:$A28)+2,FALSE)","v":381},{"$f":"HLOOKUP(CY$7+0.5,$I$66:$DJ$120,ROWS($A$10:$A28)+2,FALSE)","v":741},{"$f":"HLOOKUP(CZ$7+0.5,$I$66:$DJ$120,ROWS($A$10:$A28)+2,FALSE)","v":262},{"$f":"HLOOKUP(DA$7+0.5,$I$66:$DJ$120,ROWS($A$10:$A28)+2,FALSE)","v":3003},{"$f":"HLOOKUP(DB$7+0.5,$I$66:$DJ$120,ROWS($A$10:$A28)+2,FALSE)","v":1631},{"$f":"HLOOKUP(DC$7+0.5,$I$66:$DJ$120,ROWS($A$10:$A28)+2,FALSE)","v":721},{"$f":"HLOOKUP(DD$7+0.5,$I$66:$DJ$120,ROWS($A$10:$A28)+2,FALSE)","v":515},{"$f":"HLOOKUP(DE$7+0.5,$I$66:$DJ$120,ROWS($A$10:$A28)+2,FALSE)","v":1981},{"$f":"HLOOKUP(DF$7+0.5,$I$66:$DJ$120,ROWS($A$10:$A28)+2,FALSE)","v":599},{"$f":"HLOOKUP(DG$7+0.5,$I$66:$DJ$120,ROWS($A$10:$A28)+2,FALSE)","v":1276},{"$f":"HLOOKUP(DH$7+0.5,$I$66:$DJ$120,ROWS($A$10:$A28)+2,FALSE)","v":1413},{"$f":"HLOOKUP(DI$7+0.5,$I$66:$DJ$120,ROWS($A$10:$A28)+2,FALSE)","v":462},{"$f":"HLOOKUP(DJ$7+0.5,$I$66:$DJ$120,ROWS($A$10:$A28)+2,FALSE)","v":240}]
[null,"Louisiana",4483529,3720,3826390,25103,547291,22645,{"$f":"HLOOKUP(I$7,$I$66:$DJ$120,ROWS($A$10:$A29)+2,FALSE)","v":97889},{"$f":"HLOOKUP(J$7,$I$66:$DJ$120,ROWS($A$10:$A29)+2,FALSE)","v":5740},{"$f":"HLOOKUP(K$7,$I$66:$DJ$120,ROWS($A$10:$A29)+2,FALSE)","v":1504},{"$f":"HLOOKUP(L$7,$I$66:$DJ$120,ROWS($A$10:$A29)+2,FALSE)","v":1960},{"$f":"HLOOKUP(M$7,$I$66:$DJ$120,ROWS($A$10:$A29)+2,FALSE)","v":2382},{"$f":"HLOOKUP(N$7,$I$66:$DJ$120,ROWS($A$10:$A29)+2,FALSE)","v":5751},{"$f":"HLOOKUP(O$7,$I$66:$DJ$120,ROWS($A$10:$A29)+2,FALSE)","v":1215},{"$f":"HLOOKUP(P$7,$I$66:$DJ$120,ROWS($A$10:$A29)+2,FALSE)","v":89},{"$f":"HLOOKUP(Q$7,$I$66:$DJ$120,ROWS($A$10:$A29)+2,FALSE)","v":0},{"$f":"HLOOKUP(R$7,$I$66:$DJ$120,ROWS($A$10:$A29)+2,FALSE)","v":264},{"$f":"HLOOKUP(S$7,$I$66:$DJ$120,ROWS($A$10:$A29)+2,FALSE)","v":9394},{"$f":"HLOOKUP(T$7,$I$66:$DJ$120,ROWS($A$10:$A29)+2,FALSE)","v":5766},{"$f":"HLOOKUP(U$7,$I$66:$DJ$120,ROWS($A$10:$A29)+2,FALSE)","v":342},{"$f":"HLOOKUP(V$7,$I$66:$DJ$120,ROWS($A$10:$A29)+2,FALSE)","v":202},{"$f":"HLOOKUP(W$7,$I$66:$DJ$120,ROWS($A$10:$A29)+2,FALSE)","v":2131},{"$f":"HLOOKUP(X$7,$I$66:$DJ$120,ROWS($A$10:$A29)+2,FALSE)","v":948},{"$f":"HLOOKUP(Y$7,$I$66:$DJ$120,ROWS($A$10:$A29)+2,FALSE)","v":625},{"$f":"HLOOKUP(Z$7,$I$66:$DJ$120,ROWS($A$10:$A29)+2,FALSE)","v":706},{"$f":"HLOOKUP(AA$7,$I$66:$DJ$120,ROWS($A$10:$A29)+2,FALSE)","v":1656},{"$f":"HLOOKUP(AB$7,$I$66:$DJ$120,ROWS($A$10:$A29)+2,FALSE)","v":"N/A"},{"$f":"HLOOKUP(AC$7,$I$66:$DJ$120,ROWS($A$10:$A29)+2,FALSE)","v":162},{"$f":"HLOOKUP(AD$7,$I$66:$DJ$120,ROWS($A$10:$A29)+2,FALSE)","v":963},{"$f":"HLOOKUP(AE$7,$I$66:$DJ$120,ROWS($A$10:$A29)+2,FALSE)","v":995},{"$f":"HLOOKUP(AF$7,$I$66:$DJ$120,ROWS($A$10:$A29)+2,FALSE)","v":1301},{"$f":"HLOOKUP(AG$7,$I$66:$DJ$120,ROWS($A$10:$A29)+2,FALSE)","v":569},{"$f":"HLOOKUP(AH$7,$I$66:$DJ$120,ROWS($A$10:$A29)+2,FALSE)","v":7032},{"$f":"HLOOKUP(AI$7,$I$66:$DJ$120,ROWS($A$10:$A29)+2,FALSE)","v":2852},{"$f":"HLOOKUP(AJ$7,$I$66:$DJ$120,ROWS($A$10:$A29)+2,FALSE)","v":40},{"$f":"HLOOKUP(AK$7,$I$66:$DJ$120,ROWS($A$10:$A29)+2,FALSE)","v":119},{"$f":"HLOOKUP(AL$7,$I$66:$DJ$120,ROWS($A$10:$A29)+2,FALSE)","v":1552},{"$f":"HLOOKUP(AM$7,$I$66:$DJ$120,ROWS($A$10:$A29)+2,FALSE)","v":462},{"$f":"HLOOKUP(AN$7,$I$66:$DJ$120,ROWS($A$10:$A29)+2,FALSE)","v":171},{"$f":"HLOOKUP(AO$7,$I$66:$DJ$120,ROWS($A$10:$A29)+2,FALSE)","v":294},{"$f":"HLOOKUP(AP$7,$I$66:$DJ$120,ROWS($A$10:$A29)+2,FALSE)","v":2161},{"$f":"HLOOKUP(AQ$7,$I$66:$DJ$120,ROWS($A$10:$A29)+2,FALSE)","v":1443},{"$f":"HLOOKUP(AR$7,$I$66:$DJ$120,ROWS($A$10:$A29)+2,FALSE)","v":438},{"$f":"HLOOKUP(AS$7,$I$66:$DJ$120,ROWS($A$10:$A29)+2,FALSE)","v":1100},{"$f":"HLOOKUP(AT$7,$I$66:$DJ$120,ROWS($A$10:$A29)+2,FALSE)","v":1074},{"$f":"HLOOKUP(AU$7,$I$66:$DJ$120,ROWS($A$10:$A29)+2,FALSE)","v":281},{"$f":"HLOOKUP(AV$7,$I$66:$DJ$120,ROWS($A$10:$A29)+2,FALSE)","v":1350},{"$f":"HLOOKUP(AW$7,$I$66:$DJ$120,ROWS($A$10:$A29)+2,FALSE)","v":0},{"$f":"HLOOKUP(AX$7,$I$66:$DJ$120,ROWS($A$10:$A29)+2,FALSE)","v":1130},{"$f":"HLOOKUP(AY$7,$I$66:$DJ$120,ROWS($A$10:$A29)+2,FALSE)","v":0},{"$f":"HLOOKUP(AZ$7,$I$66:$DJ$120,ROWS($A$10:$A29)+2,FALSE)","v":1853},{"$f":"HLOOKUP(BA$7,$I$66:$DJ$120,ROWS($A$10:$A29)+2,FALSE)","v":26134},{"$f":"HLOOKUP(BB$7,$I$66:$DJ$120,ROWS($A$10:$A29)+2,FALSE)","v":473},{"$f":"HLOOKUP(BC$7,$I$66:$DJ$120,ROWS($A$10:$A29)+2,FALSE)","v":0},{"$f":"HLOOKUP(BD$7,$I$66:$DJ$120,ROWS($A$10:$A29)+2,FALSE)","v":1278},{"$f":"HLOOKUP(BE$7,$I$66:$DJ$120,ROWS($A$10:$A29)+2,FALSE)","v":1509},{"$f":"HLOOKUP(BF$7,$I$66:$DJ$120,ROWS($A$10:$A29)+2,FALSE)","v":210},{"$f":"HLOOKUP(BG$7,$I$66:$DJ$120,ROWS($A$10:$A29)+2,FALSE)","v":237},{"$f":"HLOOKUP(BH$7,$I$66:$DJ$120,ROWS($A$10:$A29)+2,FALSE)","v":31},{"$f":"HLOOKUP(BI$7,$I$66:$DJ$120,ROWS($A$10:$A29)+2,FALSE)","v":402},{"$f":"HLOOKUP(BJ$7+0.5,$I$66:$DJ$120,ROWS($A$10:$A29)+2,FALSE)","v":8319},{"$f":"HLOOKUP(BK$7+0.5,$I$66:$DJ$120,ROWS($A$10:$A29)+2,FALSE)","v":2537},{"$f":"HLOOKUP(BL$7+0.5,$I$66:$DJ$120,ROWS($A$10:$A29)+2,FALSE)","v":922},{"$f":"HLOOKUP(BM$7+0.5,$I$66:$DJ$120,ROWS($A$10:$A29)+2,FALSE)","v":1204},{"$f":"HLOOKUP(BN$7+0.5,$I$66:$DJ$120,ROWS($A$10:$A29)+2,FALSE)","v":1114},{"$f":"HLOOKUP(BO$7+0.5,$I$66:$DJ$120,ROWS($A$10:$A29)+2,FALSE)","v":1933},{"$f":"HLOOKUP(BP$7+0.5,$I$66:$DJ$120,ROWS($A$10:$A29)+2,FALSE)","v":567},{"$f":"HLOOKUP(BQ$7+0.5,$I$66:$DJ$120,ROWS($A$10:$A29)+2,FALSE)","v":120},{"$f":"HLOOKUP(BR$7+0.5,$I$66:$DJ$120,ROWS($A$10:$A29)+2,FALSE)","v":281},{"$f":"HLOOKUP(BS$7+0.5,$I$66:$DJ$120,ROWS($A$10:$A29)+2,FALSE)","v":228},{"$f":"HLOOKUP(BT$7+0.5,$I$66:$DJ$120,ROWS($A$10:$A29)+2,FALSE)","v":2799},{"$f":"HLOOKUP(BU$7+0.5,$I$66:$DJ$120,ROWS($A$10:$A29)+2,FALSE)","v":1868},{"$f":"HLOOKUP(BV$7+0.5,$I$66:$DJ$120,ROWS($A$10:$A29)+2,FALSE)","v":502},{"$f":"HLOOKUP(BW$7+0.5,$I$66:$DJ$120,ROWS($A$10:$A29)+2,FALSE)","v":205},{"$f":"HLOOKUP(BX$7+0.5,$I$66:$DJ$120,ROWS($A$10:$A29)+2,FALSE)","v":1394},{"$f":"HLOOKUP(BY$7+0.5,$I$66:$DJ$120,ROWS($A$10:$A29)+2,FALSE)","v":651},{"$f":"HLOOKUP(BZ$7+0.5,$I$66:$DJ$120,ROWS($A$10:$A29)+2,FALSE)","v":656},{"$f":"HLOOKUP(CA$7+0.5,$I$66:$DJ$120,ROWS($A$10:$A29)+2,FALSE)","v":483},{"$f":"HLOOKUP(CB$7+0.5,$I$66:$DJ$120,ROWS($A$10:$A29)+2,FALSE)","v":1093},{"$f":"HLOOKUP(CC$7+0.5,$I$66:$DJ$120,ROWS($A$10:$A29)+2,FALSE)","v":"N/A"},{"$f":"HLOOKUP(CD$7+0.5,$I$66:$DJ$120,ROWS($A$10:$A29)+2,FALSE)","v":269},{"$f":"HLOOKUP(CE$7+0.5,$I$66:$DJ$120,ROWS($A$10:$A29)+2,FALSE)","v":699},{"$f":"HLOOKUP(CF$7+0.5,$I$66:$DJ$120,ROWS($A$10:$A29)+2,FALSE)","v":702},{"$f":"HLOOKUP(CG$7+0.5,$I$66:$DJ$120,ROWS($A$10:$A29)+2,FALSE)","v":886},{"$f":"HLOOKUP(CH$7+0.5,$I$66:$DJ$120,ROWS($A$10:$A29)+2,FALSE)","v":513},{"$f":"HLOOKUP(CI$7+0.5,$I$66:$DJ$120,ROWS($A$10:$A29)+2,FALSE)","v":2217},{"$f":"HLOOKUP(CJ$7+0.5,$I$66:$DJ$120,ROWS($A$10:$A29)+2,FALSE)","v":1534},{"$f":"HLOOKUP(CK$7+0.5,$I$66:$DJ$120,ROWS($A$10:$A29)+2,FALSE)","v":72},{"$f":"HLOOKUP(CL$7+0.5,$I$66:$DJ$120,ROWS($A$10:$A29)+2,FALSE)","v":193},{"$f":"HLOOKUP(CM$7+0.5,$I$66:$DJ$120,ROWS($A$10:$A29)+2,FALSE)","v":785},{"$f":"HLOOKUP(CN$7+0.5,$I$66:$DJ$120,ROWS($A$10:$A29)+2,FALSE)","v":427},{"$f":"HLOOKUP(CO$7+0.5,$I$66:$DJ$120,ROWS($A$10:$A29)+2,FALSE)","v":249},{"$f":"HLOOKUP(CP$7+0.5,$I$66:$DJ$120,ROWS($A$10:$A29)+2,FALSE)","v":256},{"$f":"HLOOKUP(CQ$7+0.5,$I$66:$DJ$120,ROWS($A$10:$A29)+2,FALSE)","v":822},{"$f":"HLOOKUP(CR$7+0.5,$I$66:$DJ$120,ROWS($A$10:$A29)+2,FALSE)","v":686},{"$f":"HLOOKUP(CS$7+0.5,$I$66:$DJ$120,ROWS($A$10:$A29)+2,FALSE)","v":514},{"$f":"HLOOKUP(CT$7+0.5,$I$66:$DJ$120,ROWS($A$10:$A29)+2,FALSE)","v":774},{"$f":"HLOOKUP(CU$7+0.5,$I$66:$DJ$120,ROWS($A$10:$A29)+2,FALSE)","v":675},{"$f":"HLOOKUP(CV$7+0.5,$I$66:$DJ$120,ROWS($A$10:$A29)+2,FALSE)","v":277},{"$f":"HLOOKUP(CW$7+0.5,$I$66:$DJ$120,ROWS($A$10:$A29)+2,FALSE)","v":747},{"$f":"HLOOKUP(CX$7+0.5,$I$66:$DJ$120,ROWS($A$10:$A29)+2,FALSE)","v":281},{"$f":"HLOOKUP(CY$7+0.5,$I$66:$DJ$120,ROWS($A$10:$A29)+2,FALSE)","v":706},{"$f":"HLOOKUP(CZ$7+0.5,$I$66:$DJ$120,ROWS($A$10:$A29)+2,FALSE)","v":281},{"$f":"HLOOKUP(DA$7+0.5,$I$66:$DJ$120,ROWS($A$10:$A29)+2,FALSE)","v":621},{"$f":"HLOOKUP(DB$7+0.5,$I$66:$DJ$120,ROWS($A$10:$A29)+2,FALSE)","v":3903},{"$f":"HLOOKUP(DC$7+0.5,$I$66:$DJ$120,ROWS($A$10:$A29)+2,FALSE)","v":380},{"$f":"HLOOKUP(DD$7+0.5,$I$66:$DJ$120,ROWS($A$10:$A29)+2,FALSE)","v":281},{"$f":"HLOOKUP(DE$7+0.5,$I$66:$DJ$120,ROWS($A$10:$A29)+2,FALSE)","v":733},{"$f":"HLOOKUP(DF$7+0.5,$I$66:$DJ$120,ROWS($A$10:$A29)+2,FALSE)","v":1126},{"$f":"HLOOKUP(DG$7+0.5,$I$66:$DJ$120,ROWS($A$10:$A29)+2,FALSE)","v":254},{"$f":"HLOOKUP(DH$7+0.5,$I$66:$DJ$120,ROWS($A$10:$A29)+2,FALSE)","v":229},{"$f":"HLOOKUP(DI$7+0.5,$I$66:$DJ$120,ROWS($A$10:$A29)+2,FALSE)","v":67},{"$f":"HLOOKUP(DJ$7+0.5,$I$66:$DJ$120,ROWS($A$10:$A29)+2,FALSE)","v":285}]
[null,"Maine",1313902,1878,1136780,8034,146735,7677,{"$f":"HLOOKUP(I$7,$I$66:$DJ$120,ROWS($A$10:$A30)+2,FALSE)","v":27758},{"$f":"HLOOKUP(J$7,$I$66:$DJ$120,ROWS($A$10:$A30)+2,FALSE)","v":402},{"$f":"HLOOKUP(K$7,$I$66:$DJ$120,ROWS($A$10:$A30)+2,FALSE)","v":424},{"$f":"HLOOKUP(L$7,$I$66:$DJ$120,ROWS($A$10:$A30)+2,FALSE)","v":254},{"$f":"HLOOKUP(M$7,$I$66:$DJ$120,ROWS($A$10:$A30)+2,FALSE)","v":67},{"$f":"HLOOKUP(N$7,$I$66:$DJ$120,ROWS($A$10:$A30)+2,FALSE)","v":1066},{"$f":"HLOOKUP(O$7,$I$66:$DJ$120,ROWS($A$10:$A30)+2,FALSE)","v":478},{"$f":"HLOOKUP(P$7,$I$66:$DJ$120,ROWS($A$10:$A30)+2,FALSE)","v":1361},{"$f":"HLOOKUP(Q$7,$I$66:$DJ$120,ROWS($A$10:$A30)+2,FALSE)","v":174},{"$f":"HLOOKUP(R$7,$I$66:$DJ$120,ROWS($A$10:$A30)+2,FALSE)","v":55},{"$f":"HLOOKUP(S$7,$I$66:$DJ$120,ROWS($A$10:$A30)+2,FALSE)","v":3025},{"$f":"HLOOKUP(T$7,$I$66:$DJ$120,ROWS($A$10:$A30)+2,FALSE)","v":844},{"$f":"HLOOKUP(U$7,$I$66:$DJ$120,ROWS($A$10:$A30)+2,FALSE)","v":62},{"$f":"HLOOKUP(V$7,$I$66:$DJ$120,ROWS($A$10:$A30)+2,FALSE)","v":0},{"$f":"HLOOKUP(W$7,$I$66:$DJ$120,ROWS($A$10:$A30)+2,FALSE)","v":311},{"$f":"HLOOKUP(X$7,$I$66:$DJ$120,ROWS($A$10:$A30)+2,FALSE)","v":259},{"$f":"HLOOKUP(Y$7,$I$66:$DJ$120,ROWS($A$10:$A30)+2,FALSE)","v":337},{"$f":"HLOOKUP(Z$7,$I$66:$DJ$120,ROWS($A$10:$A30)+2,FALSE)","v":56},{"$f":"HLOOKUP(AA$7,$I$66:$DJ$120,ROWS($A$10:$A30)+2,FALSE)","v":484},{"$f":"HLOOKUP(AB$7,$I$66:$DJ$120,ROWS($A$10:$A30)+2,FALSE)","v":115},{"$f":"HLOOKUP(AC$7,$I$66:$DJ$120,ROWS($A$10:$A30)+2,FALSE)","v":"N/A"},{"$f":"HLOOKUP(AD$7,$I$66:$DJ$120,ROWS($A$10:$A30)+2,FALSE)","v":243},{"$f":"HLOOKUP(AE$7,$I$66:$DJ$120,ROWS($A$10:$A30)+2,FALSE)","v":3521},{"$f":"HLOOKUP(AF$7,$I$66:$DJ$120,ROWS($A$10:$A30)+2,FALSE)","v":122},{"$f":"HLOOKUP(AG$7,$I$66:$DJ$120,ROWS($A$10:$A30)+2,FALSE)","v":91},{"$f":"HLOOKUP(AH$7,$I$66:$DJ$120,ROWS($A$10:$A30)+2,FALSE)","v":0},{"$f":"HLOOKUP(AI$7,$I$66:$DJ$120,ROWS($A$10:$A30)+2,FALSE)","v":201},{"$f":"HLOOKUP(AJ$7,$I$66:$DJ$120,ROWS($A$10:$A30)+2,FALSE)","v":275},{"$f":"HLOOKUP(AK$7,$I$66:$DJ$120,ROWS($A$10:$A30)+2,FALSE)","v":204},{"$f":"HLOOKUP(AL$7,$I$66:$DJ$120,ROWS($A$10:$A30)+2,FALSE)","v":345},{"$f":"HLOOKUP(AM$7,$I$66:$DJ$120,ROWS($A$10:$A30)+2,FALSE)","v":4058},{"$f":"HLOOKUP(AN$7,$I$66:$DJ$120,ROWS($A$10:$A30)+2,FALSE)","v":902},{"$f":"HLOOKUP(AO$7,$I$66:$DJ$120,ROWS($A$10:$A30)+2,FALSE)","v":234},{"$f":"HLOOKUP(AP$7,$I$66:$DJ$120,ROWS($A$10:$A30)+2,FALSE)","v":2339},{"$f":"HLOOKUP(AQ$7,$I$66:$DJ$120,ROWS($A$10:$A30)+2,FALSE)","v":1001},{"$f":"HLOOKUP(AR$7,$I$66:$DJ$120,ROWS($A$10:$A30)+2,FALSE)","v":55},{"$f":"HLOOKUP(AS$7,$I$66:$DJ$120,ROWS($A$10:$A30)+2,FALSE)","v":315},{"$f":"HLOOKUP(AT$7,$I$66:$DJ$120,ROWS($A$10:$A30)+2,FALSE)","v":124},{"$f":"HLOOKUP(AU$7,$I$66:$DJ$120,ROWS($A$10:$A30)+2,FALSE)","v":0},{"$f":"HLOOKUP(AV$7,$I$66:$DJ$120,ROWS($A$10:$A30)+2,FALSE)","v":375},{"$f":"HLOOKUP(AW$7,$I$66:$DJ$120,ROWS($A$10:$A30)+2,FALSE)","v":379},{"$f":"HLOOKUP(AX$7,$I$66:$DJ$120,ROWS($A$10:$A30)+2,FALSE)","v":148},{"$f":"HLOOKUP(AY$7,$I$66:$DJ$120,ROWS($A$10:$A30)+2,FALSE)","v":0},{"$f":"HLOOKUP(AZ$7,$I$66:$DJ$120,ROWS($A$10:$A30)+2,FALSE)","v":249},{"$f":"HLOOKUP(BA$7,$I$66:$DJ$120,ROWS($A$10:$A30)+2,FALSE)","v":458},{"$f":"HLOOKUP(BB$7,$I$66:$DJ$120,ROWS($A$10:$A30)+2,FALSE)","v":390},{"$f":"HLOOKUP(BC$7,$I$66:$DJ$120,ROWS($A$10:$A30)+2,FALSE)","v":420},{"$f":"HLOOKUP(BD$7,$I$66:$DJ$120,ROWS($A$10:$A30)+2,FALSE)","v":654},{"$f":"HLOOKUP(BE$7,$I$66:$DJ$120,ROWS($A$10:$A30)+2,FALSE)","v":381},{"$f":"HLOOKUP(BF$7,$I$66:$DJ$120,ROWS($A$10:$A30)+2,FALSE)","v":0},{"$f":"HLOOKUP(BG$7,$I$66:$DJ$120,ROWS($A$10:$A30)+2,FALSE)","v":0},{"$f":"HLOOKUP(BH$7,$I$66:$DJ$120,ROWS($A$10:$A30)+2,FALSE)","v":500},{"$f":"HLOOKUP(BI$7,$I$66:$DJ$120,ROWS($A$10:$A30)+2,FALSE)","v":204},{"$f":"HLOOKUP(BJ$7+0.5,$I$66:$DJ$120,ROWS($A$10:$A30)+2,FALSE)","v":3059},{"$f":"HLOOKUP(BK$7+0.5,$I$66:$DJ$120,ROWS($A$10:$A30)+2,FALSE)","v":311},{"$f":"HLOOKUP(BL$7+0.5,$I$66:$DJ$120,ROWS($A$10:$A30)+2,FALSE)","v":439},{"$f":"HLOOKUP(BM$7+0.5,$I$66:$DJ$120,ROWS($A$10:$A30)+2,FALSE)","v":290},{"$f":"HLOOKUP(BN$7+0.5,$I$66:$DJ$120,ROWS($A$10:$A30)+2,FALSE)","v":112},{"$f":"HLOOKUP(BO$7+0.5,$I$66:$DJ$120,ROWS($A$10:$A30)+2,FALSE)","v":740},{"$f":"HLOOKUP(BP$7+0.5,$I$66:$DJ$120,ROWS($A$10:$A30)+2,FALSE)","v":377},{"$f":"HLOOKUP(BQ$7+0.5,$I$66:$DJ$120,ROWS($A$10:$A30)+2,FALSE)","v":689},{"$f":"HLOOKUP(BR$7+0.5,$I$66:$DJ$120,ROWS($A$10:$A30)+2,FALSE)","v":229},{"$f":"HLOOKUP(BS$7+0.5,$I$66:$DJ$120,ROWS($A$10:$A30)+2,FALSE)","v":89},{"$f":"HLOOKUP(BT$7+0.5,$I$66:$DJ$120,ROWS($A$10:$A30)+2,FALSE)","v":924},{"$f":"HLOOKUP(BU$7+0.5,$I$66:$DJ$120,ROWS($A$10:$A30)+2,FALSE)","v":817},{"$f":"HLOOKUP(BV$7+0.5,$I$66:$DJ$120,ROWS($A$10:$A30)+2,FALSE)","v":102},{"$f":"HLOOKUP(BW$7+0.5,$I$66:$DJ$120,ROWS($A$10:$A30)+2,FALSE)","v":230},{"$f":"HLOOKUP(BX$7+0.5,$I$66:$DJ$120,ROWS($A$10:$A30)+2,FALSE)","v":251},{"$f":"HLOOKUP(BY$7+0.5,$I$66:$DJ$120,ROWS($A$10:$A30)+2,FALSE)","v":379},{"$f":"HLOOKUP(BZ$7+0.5,$I$66:$DJ$120,ROWS($A$10:$A30)+2,FALSE)","v":561},{"$f":"HLOOKUP(CA$7+0.5,$I$66:$DJ$120,ROWS($A$10:$A30)+2,FALSE)","v":92},{"$f":"HLOOKUP(CB$7+0.5,$I$66:$DJ$120,ROWS($A$10:$A30)+2,FALSE)","v":643},{"$f":"HLOOKUP(CC$7+0.5,$I$66:$DJ$120,ROWS($A$10:$A30)+2,FALSE)","v":211},{"$f":"HLOOKUP(CD$7+0.5,$I$66:$DJ$120,ROWS($A$10:$A30)+2,FALSE)","v":"N/A"},{"$f":"HLOOKUP(CE$7+0.5,$I$66:$DJ$120,ROWS($A$10:$A30)+2,FALSE)","v":223},{"$f":"HLOOKUP(CF$7+0.5,$I$66:$DJ$120,ROWS($A$10:$A30)+2,FALSE)","v":958},{"$f":"HLOOKUP(CG$7+0.5,$I$66:$DJ$120,ROWS($A$10:$A30)+2,FALSE)","v":133},{"$f":"HLOOKUP(CH$7+0.5,$I$66:$DJ$120,ROWS($A$10:$A30)+2,FALSE)","v":109},{"$f":"HLOOKUP(CI$7+0.5,$I$66:$DJ$120,ROWS($A$10:$A30)+2,FALSE)","v":230},{"$f":"HLOOKUP(CJ$7+0.5,$I$66:$DJ$120,ROWS($A$10:$A30)+2,FALSE)","v":260},{"$f":"HLOOKUP(CK$7+0.5,$I$66:$DJ$120,ROWS($A$10:$A30)+2,FALSE)","v":335},{"$f":"HLOOKUP(CL$7+0.5,$I$66:$DJ$120,ROWS($A$10:$A30)+2,FALSE)","v":283},{"$f":"HLOOKUP(CM$7+0.5,$I$66:$DJ$120,ROWS($A$10:$A30)+2,FALSE)","v":344},{"$f":"HLOOKUP(CN$7+0.5,$I$66:$DJ$120,ROWS($A$10:$A30)+2,FALSE)","v":1966},{"$f":"HLOOKUP(CO$7+0.5,$I$66:$DJ$120,ROWS($A$10:$A30)+2,FALSE)","v":508},{"$f":"HLOOKUP(CP$7+0.5,$I$66:$DJ$120,ROWS($A$10:$A30)+2,FALSE)","v":298},{"$f":"HLOOKUP(CQ$7+0.5,$I$66:$DJ$120,ROWS($A$10:$A30)+2,FALSE)","v":962},{"$f":"HLOOKUP(CR$7+0.5,$I$66:$DJ$120,ROWS($A$10:$A30)+2,FALSE)","v":1161},{"$f":"HLOOKUP(CS$7+0.5,$I$66:$DJ$120,ROWS($A$10:$A30)+2,FALSE)","v":89},{"$f":"HLOOKUP(CT$7+0.5,$I$66:$DJ$120,ROWS($A$10:$A30)+2,FALSE)","v":362},{"$f":"HLOOKUP(CU$7+0.5,$I$66:$DJ$120,ROWS($A$10:$A30)+2,FALSE)","v":215},{"$f":"HLOOKUP(CV$7+0.5,$I$66:$DJ$120,ROWS($A$10:$A30)+2,FALSE)","v":230},{"$f":"HLOOKUP(CW$7+0.5,$I$66:$DJ$120,ROWS($A$10:$A30)+2,FALSE)","v":287},{"$f":"HLOOKUP(CX$7+0.5,$I$66:$DJ$120,ROWS($A$10:$A30)+2,FALSE)","v":284},{"$f":"HLOOKUP(CY$7+0.5,$I$66:$DJ$120,ROWS($A$10:$A30)+2,FALSE)","v":160},{"$f":"HLOOKUP(CZ$7+0.5,$I$66:$DJ$120,ROWS($A$10:$A30)+2,FALSE)","v":230},{"$f":"HLOOKUP(DA$7+0.5,$I$66:$DJ$120,ROWS($A$10:$A30)+2,FALSE)","v":231},{"$f":"HLOOKUP(DB$7+0.5,$I$66:$DJ$120,ROWS($A$10:$A30)+2,FALSE)","v":327},{"$f":"HLOOKUP(DC$7+0.5,$I$66:$DJ$120,ROWS($A$10:$A30)+2,FALSE)","v":427},{"$f":"HLOOKUP(DD$7+0.5,$I$66:$DJ$120,ROWS($A$10:$A30)+2,FALSE)","v":368},{"$f":"HLOOKUP(DE$7+0.5,$I$66:$DJ$120,ROWS($A$10:$A30)+2,FALSE)","v":307},{"$f":"HLOOKUP(DF$7+0.5,$I$66:$DJ$120,ROWS($A$10:$A30)+2,FALSE)","v":533},{"$f":"HLOOKUP(DG$7+0.5,$I$66:$DJ$120,ROWS($A$10:$A30)+2,FALSE)","v":230},{"$f":"HLOOKUP(DH$7+0.5,$I$66:$DJ$120,ROWS($A$10:$A30)+2,FALSE)","v":230},{"$f":"HLOOKUP(DI$7+0.5,$I$66:$DJ$120,ROWS($A$10:$A30)+2,FALSE)","v":766},{"$f":"HLOOKUP(DJ$7+0.5,$I$66:$DJ$120,ROWS($A$10:$A30)+2,FALSE)","v":355}]
[null,"Maryland",5716785,3648,4917637,22981,588879,20180,{"$f":"HLOOKUP(I$7,$I$66:$DJ$120,ROWS($A$10:$A31)+2,FALSE)","v":164484},{"$f":"HLOOKUP(J$7,$I$66:$DJ$120,ROWS($A$10:$A31)+2,FALSE)","v":1641},{"$f":"HLOOKUP(K$7,$I$66:$DJ$120,ROWS($A$10:$A31)+2,FALSE)","v":2672},{"$f":"HLOOKUP(L$7,$I$66:$DJ$120,ROWS($A$10:$A31)+2,FALSE)","v":1124},{"$f":"HLOOKUP(M$7,$I$66:$DJ$120,ROWS($A$10:$A31)+2,FALSE)","v":273},{"$f":"HLOOKUP(N$7,$I$66:$DJ$120,ROWS($A$10:$A31)+2,FALSE)","v":8206},{"$f":"HLOOKUP(O$7,$I$66:$DJ$120,ROWS($A$10:$A31)+2,FALSE)","v":2501},{"$f":"HLOOKUP(P$7,$I$66:$DJ$120,ROWS($A$10:$A31)+2,FALSE)","v":1603},{"$f":"HLOOKUP(Q$7,$I$66:$DJ$120,ROWS($A$10:$A31)+2,FALSE)","v":8340},{"$f":"HLOOKUP(R$7,$I$66:$DJ$120,ROWS($A$10:$A31)+2,FALSE)","v":23202},{"$f":"HLOOKUP(S$7,$I$66:$DJ$120,ROWS($A$10:$A31)+2,FALSE)","v":6564},{"$f":"HLOOKUP(T$7,$I$66:$DJ$120,ROWS($A$10:$A31)+2,FALSE)","v":3454},{"$f":"HLOOKUP(U$7,$I$66:$DJ$120,ROWS($A$10:$A31)+2,FALSE)","v":422},{"$f":"HLOOKUP(V$7,$I$66:$DJ$120,ROWS($A$10:$A31)+2,FALSE)","v":357},{"$f":"HLOOKUP(W$7,$I$66:$DJ$120,ROWS($A$10:$A31)+2,FALSE)","v":3300},{"$f":"HLOOKUP(X$7,$I$66:$DJ$120,ROWS($A$10:$A31)+2,FALSE)","v":431},{"$f":"HLOOKUP(Y$7,$I$66:$DJ$120,ROWS($A$10:$A31)+2,FALSE)","v":160},{"$f":"HLOOKUP(Z$7,$I$66:$DJ$120,ROWS($A$10:$A31)+2,FALSE)","v":781},{"$f":"HLOOKUP(AA$7,$I$66:$DJ$120,ROWS($A$10:$A31)+2,FALSE)","v":396},{"$f":"HLOOKUP(AB$7,$I$66:$DJ$120,ROWS($A$10:$A31)+2,FALSE)","v":1376},{"$f":"HLOOKUP(AC$7,$I$66:$DJ$120,ROWS($A$10:$A31)+2,FALSE)","v":53},{"$f":"HLOOKUP(AD$7,$I$66:$DJ$120,ROWS($A$10:$A31)+2,FALSE)","v":"N/A"},{"$f":"HLOOKUP(AE$7,$I$66:$DJ$120,ROWS($A$10:$A31)+2,FALSE)","v":1983},{"$f":"HLOOKUP(AF$7,$I$66:$DJ$120,ROWS($A$10:$A31)+2,FALSE)","v":3572},{"$f":"HLOOKUP(AG$7,$I$66:$DJ$120,ROWS($A$10:$A31)+2,FALSE)","v":820},{"$f":"HLOOKUP(AH$7,$I$66:$DJ$120,ROWS($A$10:$A31)+2,FALSE)","v":403},{"$f":"HLOOKUP(AI$7,$I$66:$DJ$120,ROWS($A$10:$A31)+2,FALSE)","v":1147},{"$f":"HLOOKUP(AJ$7,$I$66:$DJ$120,ROWS($A$10:$A31)+2,FALSE)","v":86},{"$f":"HLOOKUP(AK$7,$I$66:$DJ$120,ROWS($A$10:$A31)+2,FALSE)","v":54},{"$f":"HLOOKUP(AL$7,$I$66:$DJ$120,ROWS($A$10:$A31)+2,FALSE)","v":979},{"$f":"HLOOKUP(AM$7,$I$66:$DJ$120,ROWS($A$10:$A31)+2,FALSE)","v":1369},{"$f":"HLOOKUP(AN$7,$I$66:$DJ$120,ROWS($A$10:$A31)+2,FALSE)","v":9058},{"$f":"HLOOKUP(AO$7,$I$66:$DJ$120,ROWS($A$10:$A31)+2,FALSE)","v":238},{"$f":"HLOOKUP(AP$7,$I$66:$DJ$120,ROWS($A$10:$A31)+2,FALSE)","v":10736},{"$f":"HLOOKUP(AQ$7,$I$66:$DJ$120,ROWS($A$10:$A31)+2,FALSE)","v":5787},{"$f":"HLOOKUP(AR$7,$I$66:$DJ$120,ROWS($A$10:$A31)+2,FALSE)","v":0},{"$f":"HLOOKUP(AS$7,$I$66:$DJ$120,ROWS($A$10:$A31)+2,FALSE)","v":3277},{"$f":"HLOOKUP(AT$7,$I$66:$DJ$120,ROWS($A$10:$A31)+2,FALSE)","v":607},{"$f":"HLOOKUP(AU$7,$I$66:$DJ$120,ROWS($A$10:$A31)+2,FALSE)","v":723},{"$f":"HLOOKUP(AV$7,$I$66:$DJ$120,ROWS($A$10:$A31)+2,FALSE)","v":13467},{"$f":"HLOOKUP(AW$7,$I$66:$DJ$120,ROWS($A$10:$A31)+2,FALSE)","v":782},{"$f":"HLOOKUP(AX$7,$I$66:$DJ$120,ROWS($A$10:$A31)+2,FALSE)","v":1710},{"$f":"HLOOKUP(AY$7,$I$66:$DJ$120,ROWS($A$10:$A31)+2,FALSE)","v":49},{"$f":"HLOOKUP(AZ$7,$I$66:$DJ$120,ROWS($A$10:$A31)+2,FALSE)","v":2669},{"$f":"HLOOKUP(BA$7,$I$66:$DJ$120,ROWS($A$10:$A31)+2,FALSE)","v":5883},{"$f":"HLOOKUP(BB$7,$I$66:$DJ$120,ROWS($A$10:$A31)+2,FALSE)","v":655},{"$f":"HLOOKUP(BC$7,$I$66:$DJ$120,ROWS($A$10:$A31)+2,FALSE)","v":350},{"$f":"HLOOKUP(BD$7,$I$66:$DJ$120,ROWS($A$10:$A31)+2,FALSE)","v":24765},{"$f":"HLOOKUP(BE$7,$I$66:$DJ$120,ROWS($A$10:$A31)+2,FALSE)","v":1542},{"$f":"HLOOKUP(BF$7,$I$66:$DJ$120,ROWS($A$10:$A31)+2,FALSE)","v":4363},{"$f":"HLOOKUP(BG$7,$I$66:$DJ$120,ROWS($A$10:$A31)+2,FALSE)","v":324},{"$f":"HLOOKUP(BH$7,$I$66:$DJ$120,ROWS($A$10:$A31)+2,FALSE)","v":230},{"$f":"HLOOKUP(BI$7,$I$66:$DJ$120,ROWS($A$10:$A31)+2,FALSE)","v":612},{"$f":"HLOOKUP(BJ$7+0.5,$I$66:$DJ$120,ROWS($A$10:$A31)+2,FALSE)","v":9180},{"$f":"HLOOKUP(BK$7+0.5,$I$66:$DJ$120,ROWS($A$10:$A31)+2,FALSE)","v":1004},{"$f":"HLOOKUP(BL$7+0.5,$I$66:$DJ$120,ROWS($A$10:$A31)+2,FALSE)","v":1268},{"$f":"HLOOKUP(BM$7+0.5,$I$66:$DJ$120,ROWS($A$10:$A31)+2,FALSE)","v":770},{"$f":"HLOOKUP(BN$7+0.5,$I$66:$DJ$120,ROWS($A$10:$A31)+2,FALSE)","v":418},{"$f":"HLOOKUP(BO$7+0.5,$I$66:$DJ$120,ROWS($A$10:$A31)+2,FALSE)","v":2230},{"$f":"HLOOKUP(BP$7+0.5,$I$66:$DJ$120,ROWS($A$10:$A31)+2,FALSE)","v":1523},{"$f":"HLOOKUP(BQ$7+0.5,$I$66:$DJ$120,ROWS($A$10:$A31)+2,FALSE)","v":798},{"$f":"HLOOKUP(BR$7+0.5,$I$66:$DJ$120,ROWS($A$10:$A31)+2,FALSE)","v":3099},{"$f":"HLOOKUP(BS$7+0.5,$I$66:$DJ$120,ROWS($A$10:$A31)+2,FALSE)","v":3764},{"$f":"HLOOKUP(BT$7+0.5,$I$66:$DJ$120,ROWS($A$10:$A31)+2,FALSE)","v":1906},{"$f":"HLOOKUP(BU$7+0.5,$I$66:$DJ$120,ROWS($A$10:$A31)+2,FALSE)","v":1271},{"$f":"HLOOKUP(BV$7+0.5,$I$66:$DJ$120,ROWS($A$10:$A31)+2,FALSE)","v":439},{"$f":"HLOOKUP(BW$7+0.5,$I$66:$DJ$120,ROWS($A$10:$A31)+2,FALSE)","v":415},{"$f":"HLOOKUP(BX$7+0.5,$I$66:$DJ$120,ROWS($A$10:$A31)+2,FALSE)","v":1310},{"$f":"HLOOKUP(BY$7+0.5,$I$66:$DJ$120,ROWS($A$10:$A31)+2,FALSE)","v":330},{"$f":"HLOOKUP(BZ$7+0.5,$I$66:$DJ$120,ROWS($A$10:$A31)+2,FALSE)","v":190},{"$f":"HLOOKUP(CA$7+0.5,$I$66:$DJ$120,ROWS($A$10:$A31)+2,FALSE)","v":822},{"$f":"HLOOKUP(CB$7+0.5,$I$66:$DJ$120,ROWS($A$10:$A31)+2,FALSE)","v":362},{"$f":"HLOOKUP(CC$7+0.5,$I$66:$DJ$120,ROWS($A$10:$A31)+2,FALSE)","v":695},{"$f":"HLOOKUP(CD$7+0.5,$I$66:$DJ$120,ROWS($A$10:$A31)+2,FALSE)","v":96},{"$f":"HLOOKUP(CE$7+0.5,$I$66:$DJ$120,ROWS($A$10:$A31)+2,FALSE)","v":"N/A"},{"$f":"HLOOKUP(CF$7+0.5,$I$66:$DJ$120,ROWS($A$10:$A31)+2,FALSE)","v":730},{"$f":"HLOOKUP(CG$7+0.5,$I$66:$DJ$120,ROWS($A$10:$A31)+2,FALSE)","v":1269},{"$f":"HLOOKUP(CH$7+0.5,$I$66:$DJ$120,ROWS($A$10:$A31)+2,FALSE)","v":543},{"$f":"HLOOKUP(CI$7+0.5,$I$66:$DJ$120,ROWS($A$10:$A31)+2,FALSE)","v":383},{"$f":"HLOOKUP(CJ$7+0.5,$I$66:$DJ$120,ROWS($A$10:$A31)+2,FALSE)","v":633},{"$f":"HLOOKUP(CK$7+0.5,$I$66:$DJ$120,ROWS($A$10:$A31)+2,FALSE)","v":106},{"$f":"HLOOKUP(CL$7+0.5,$I$66:$DJ$120,ROWS($A$10:$A31)+2,FALSE)","v":88},{"$f":"HLOOKUP(CM$7+0.5,$I$66:$DJ$120,ROWS($A$10:$A31)+2,FALSE)","v":800},{"$f":"HLOOKUP(CN$7+0.5,$I$66:$DJ$120,ROWS($A$10:$A31)+2,FALSE)","v":1276},{"$f":"HLOOKUP(CO$7+0.5,$I$66:$DJ$120,ROWS($A$10:$A31)+2,FALSE)","v":2330},{"$f":"HLOOKUP(CP$7+0.5,$I$66:$DJ$120,ROWS($A$10:$A31)+2,FALSE)","v":287},{"$f":"HLOOKUP(CQ$7+0.5,$I$66:$DJ$120,ROWS($A$10:$A31)+2,FALSE)","v":2103},{"$f":"HLOOKUP(CR$7+0.5,$I$66:$DJ$120,ROWS($A$10:$A31)+2,FALSE)","v":2059},{"$f":"HLOOKUP(CS$7+0.5,$I$66:$DJ$120,ROWS($A$10:$A31)+2,FALSE)","v":289},{"$f":"HLOOKUP(CT$7+0.5,$I$66:$DJ$120,ROWS($A$10:$A31)+2,FALSE)","v":1497},{"$f":"HLOOKUP(CU$7+0.5,$I$66:$DJ$120,ROWS($A$10:$A31)+2,FALSE)","v":541},{"$f":"HLOOKUP(CV$7+0.5,$I$66:$DJ$120,ROWS($A$10:$A31)+2,FALSE)","v":654},{"$f":"HLOOKUP(CW$7+0.5,$I$66:$DJ$120,ROWS($A$10:$A31)+2,FALSE)","v":3147},{"$f":"HLOOKUP(CX$7+0.5,$I$66:$DJ$120,ROWS($A$10:$A31)+2,FALSE)","v":626},{"$f":"HLOOKUP(CY$7+0.5,$I$66:$DJ$120,ROWS($A$10:$A31)+2,FALSE)","v":852},{"$f":"HLOOKUP(CZ$7+0.5,$I$66:$DJ$120,ROWS($A$10:$A31)+2,FALSE)","v":81},{"$f":"HLOOKUP(DA$7+0.5,$I$66:$DJ$120,ROWS($A$10:$A31)+2,FALSE)","v":1332},{"$f":"HLOOKUP(DB$7+0.5,$I$66:$DJ$120,ROWS($A$10:$A31)+2,FALSE)","v":1511},{"$f":"HLOOKUP(DC$7+0.5,$I$66:$DJ$120,ROWS($A$10:$A31)+2,FALSE)","v":451},{"$f":"HLOOKUP(DD$7+0.5,$I$66:$DJ$120,ROWS($A$10:$A31)+2,FALSE)","v":328},{"$f":"HLOOKUP(DE$7+0.5,$I$66:$DJ$120,ROWS($A$10:$A31)+2,FALSE)","v":4735},{"$f":"HLOOKUP(DF$7+0.5,$I$66:$DJ$120,ROWS($A$10:$A31)+2,FALSE)","v":1004},{"$f":"HLOOKUP(DG$7+0.5,$I$66:$DJ$120,ROWS($A$10:$A31)+2,FALSE)","v":1701},{"$f":"HLOOKUP(DH$7+0.5,$I$66:$DJ$120,ROWS($A$10:$A31)+2,FALSE)","v":241},{"$f":"HLOOKUP(DI$7+0.5,$I$66:$DJ$120,ROWS($A$10:$A31)+2,FALSE)","v":299},{"$f":"HLOOKUP(DJ$7+0.5,$I$66:$DJ$120,ROWS($A$10:$A31)+2,FALSE)","v":678}]
[null,"Massachusetts",6489250,3528,5583650,23686,706624,22760,{"$f":"HLOOKUP(I$7,$I$66:$DJ$120,ROWS($A$10:$A32)+2,FALSE)","v":140162},{"$f":"HLOOKUP(J$7,$I$66:$DJ$120,ROWS($A$10:$A32)+2,FALSE)","v":583},{"$f":"HLOOKUP(K$7,$I$66:$DJ$120,ROWS($A$10:$A32)+2,FALSE)","v":1891},{"$f":"HLOOKUP(L$7,$I$66:$DJ$120,ROWS($A$10:$A32)+2,FALSE)","v":1572},{"$f":"HLOOKUP(M$7,$I$66:$DJ$120,ROWS($A$10:$A32)+2,FALSE)","v":206},{"$f":"HLOOKUP(N$7,$I$66:$DJ$120,ROWS($A$10:$A32)+2,FALSE)","v":14971},{"$f":"HLOOKUP(O$7,$I$66:$DJ$120,ROWS($A$10:$A32)+2,FALSE)","v":1051},{"$f":"HLOOKUP(P$7,$I$66:$DJ$120,ROWS($A$10:$A32)+2,FALSE)","v":13270},{"$f":"HLOOKUP(Q$7,$I$66:$DJ$120,ROWS($A$10:$A32)+2,FALSE)","v":131},{"$f":"HLOOKUP(R$7,$I$66:$DJ$120,ROWS($A$10:$A32)+2,FALSE)","v":1539},{"$f":"HLOOKUP(S$7,$I$66:$DJ$120,ROWS($A$10:$A32)+2,FALSE)","v":11118},{"$f":"HLOOKUP(T$7,$I$66:$DJ$120,ROWS($A$10:$A32)+2,FALSE)","v":1409},{"$f":"HLOOKUP(U$7,$I$66:$DJ$120,ROWS($A$10:$A32)+2,FALSE)","v":682},{"$f":"HLOOKUP(V$7,$I$66:$DJ$120,ROWS($A$10:$A32)+2,FALSE)","v":79},{"$f":"HLOOKUP(W$7,$I$66:$DJ$120,ROWS($A$10:$A32)+2,FALSE)","v":2842},{"$f":"HLOOKUP(X$7,$I$66:$DJ$120,ROWS($A$10:$A32)+2,FALSE)","v":1891},{"$f":"HLOOKUP(Y$7,$I$66:$DJ$120,ROWS($A$10:$A32)+2,FALSE)","v":307},{"$f":"HLOOKUP(Z$7,$I$66:$DJ$120,ROWS($A$10:$A32)+2,FALSE)","v":0},{"$f":"HLOOKUP(AA$7,$I$66:$DJ$120,ROWS($A$10:$A32)+2,FALSE)","v":340},{"$f":"HLOOKUP(AB$7,$I$66:$DJ$120,ROWS($A$10:$A32)+2,FALSE)","v":0},{"$f":"HLOOKUP(AC$7,$I$66:$DJ$120,ROWS($A$10:$A32)+2,FALSE)","v":4666},{"$f":"HLOOKUP(AD$7,$I$66:$DJ$120,ROWS($A$10:$A32)+2,FALSE)","v":3660},{"$f":"HLOOKUP(AE$7,$I$66:$DJ$120,ROWS($A$10:$A32)+2,FALSE)","v":"N/A"},{"$f":"HLOOKUP(AF$7,$I$66:$DJ$120,ROWS($A$10:$A32)+2,FALSE)","v":1624},{"$f":"HLOOKUP(AG$7,$I$66:$DJ$120,ROWS($A$10:$A32)+2,FALSE)","v":2185},{"$f":"HLOOKUP(AH$7,$I$66:$DJ$120,ROWS($A$10:$A32)+2,FALSE)","v":453},{"$f":"HLOOKUP(AI$7,$I$66:$DJ$120,ROWS($A$10:$A32)+2,FALSE)","v":1957},{"$f":"HLOOKUP(AJ$7,$I$66:$DJ$120,ROWS($A$10:$A32)+2,FALSE)","v":388},{"$f":"HLOOKUP(AK$7,$I$66:$DJ$120,ROWS($A$10:$A32)+2,FALSE)","v":46},{"$f":"HLOOKUP(AL$7,$I$66:$DJ$120,ROWS($A$10:$A32)+2,FALSE)","v":792},{"$f":"HLOOKUP(AM$7,$I$66:$DJ$120,ROWS($A$10:$A32)+2,FALSE)","v":9911},{"$f":"HLOOKUP(AN$7,$I$66:$DJ$120,ROWS($A$10:$A32)+2,FALSE)","v":4709},{"$f":"HLOOKUP(AO$7,$I$66:$DJ$120,ROWS($A$10:$A32)+2,FALSE)","v":161},{"$f":"HLOOKUP(AP$7,$I$66:$DJ$120,ROWS($A$10:$A32)+2,FALSE)","v":20002},{"$f":"HLOOKUP(AQ$7,$I$66:$DJ$120,ROWS($A$10:$A32)+2,FALSE)","v":2798},{"$f":"HLOOKUP(AR$7,$I$66:$DJ$120,ROWS($A$10:$A32)+2,FALSE)","v":0},{"$f":"HLOOKUP(AS$7,$I$66:$DJ$120,ROWS($A$10:$A32)+2,FALSE)","v":2163},{"$f":"HLOOKUP(AT$7,$I$66:$DJ$120,ROWS($A$10:$A32)+2,FALSE)","v":158},{"$f":"HLOOKUP(AU$7,$I$66:$DJ$120,ROWS($A$10:$A32)+2,FALSE)","v":228},{"$f":"HLOOKUP(AV$7,$I$66:$DJ$120,ROWS($A$10:$A32)+2,FALSE)","v":5316},{"$f":"HLOOKUP(AW$7,$I$66:$DJ$120,ROWS($A$10:$A32)+2,FALSE)","v":6965},{"$f":"HLOOKUP(AX$7,$I$66:$DJ$120,ROWS($A$10:$A32)+2,FALSE)","v":1659},{"$f":"HLOOKUP(AY$7,$I$66:$DJ$120,ROWS($A$10:$A32)+2,FALSE)","v":0},{"$f":"HLOOKUP(AZ$7,$I$66:$DJ$120,ROWS($A$10:$A32)+2,FALSE)","v":918},{"$f":"HLOOKUP(BA$7,$I$66:$DJ$120,ROWS($A$10:$A32)+2,FALSE)","v":7073},{"$f":"HLOOKUP(BB$7,$I$66:$DJ$120,ROWS($A$10:$A32)+2,FALSE)","v":207},{"$f":"HLOOKUP(BC$7,$I$66:$DJ$120,ROWS($A$10:$A32)+2,FALSE)","v":1526},{"$f":"HLOOKUP(BD$7,$I$66:$DJ$120,ROWS($A$10:$A32)+2,FALSE)","v":4542},{"$f":"HLOOKUP(BE$7,$I$66:$DJ$120,ROWS($A$10:$A32)+2,FALSE)","v":1627},{"$f":"HLOOKUP(BF$7,$I$66:$DJ$120,ROWS($A$10:$A32)+2,FALSE)","v":0},{"$f":"HLOOKUP(BG$7,$I$66:$DJ$120,ROWS($A$10:$A32)+2,FALSE)","v":546},{"$f":"HLOOKUP(BH$7,$I$66:$DJ$120,ROWS($A$10:$A32)+2,FALSE)","v":0},{"$f":"HLOOKUP(BI$7,$I$66:$DJ$120,ROWS($A$10:$A32)+2,FALSE)","v":3085},{"$f":"HLOOKUP(BJ$7+0.5,$I$66:$DJ$120,ROWS($A$10:$A32)+2,FALSE)","v":8906},{"$f":"HLOOKUP(BK$7+0.5,$I$66:$DJ$120,ROWS($A$10:$A32)+2,FALSE)","v":382},{"$f":"HLOOKUP(BL$7+0.5,$I$66:$DJ$120,ROWS($A$10:$A32)+2,FALSE)","v":1205},{"$f":"HLOOKUP(BM$7+0.5,$I$66:$DJ$120,ROWS($A$10:$A32)+2,FALSE)","v":1170},{"$f":"HLOOKUP(BN$7+0.5,$I$66:$DJ$120,ROWS($A$10:$A32)+2,FALSE)","v":343},{"$f":"HLOOKUP(BO$7+0.5,$I$66:$DJ$120,ROWS($A$10:$A32)+2,FALSE)","v":3388},{"$f":"HLOOKUP(BP$7+0.5,$I$66:$DJ$120,ROWS($A$10:$A32)+2,FALSE)","v":527},{"$f":"HLOOKUP(BQ$7+0.5,$I$66:$DJ$120,ROWS($A$10:$A32)+2,FALSE)","v":2422},{"$f":"HLOOKUP(BR$7+0.5,$I$66:$DJ$120,ROWS($A$10:$A32)+2,FALSE)","v":214},{"$f":"HLOOKUP(BS$7+0.5,$I$66:$DJ$120,ROWS($A$10:$A32)+2,FALSE)","v":649},{"$f":"HLOOKUP(BT$7+0.5,$I$66:$DJ$120,ROWS($A$10:$A32)+2,FALSE)","v":2520},{"$f":"HLOOKUP(BU$7+0.5,$I$66:$DJ$120,ROWS($A$10:$A32)+2,FALSE)","v":612},{"$f":"HLOOKUP(BV$7+0.5,$I$66:$DJ$120,ROWS($A$10:$A32)+2,FALSE)","v":598},{"$f":"HLOOKUP(BW$7+0.5,$I$66:$DJ$120,ROWS($A$10:$A32)+2,FALSE)","v":128},{"$f":"HLOOKUP(BX$7+0.5,$I$66:$DJ$120,ROWS($A$10:$A32)+2,FALSE)","v":1071},{"$f":"HLOOKUP(BY$7+0.5,$I$66:$DJ$120,ROWS($A$10:$A32)+2,FALSE)","v":857},{"$f":"HLOOKUP(BZ$7+0.5,$I$66:$DJ$120,ROWS($A$10:$A32)+2,FALSE)","v":253},{"$f":"HLOOKUP(CA$7+0.5,$I$66:$DJ$120,ROWS($A$10:$A32)+2,FALSE)","v":285},{"$f":"HLOOKUP(CB$7+0.5,$I$66:$DJ$120,ROWS($A$10:$A32)+2,FALSE)","v":397},{"$f":"HLOOKUP(CC$7+0.5,$I$66:$DJ$120,ROWS($A$10:$A32)+2,FALSE)","v":285},{"$f":"HLOOKUP(CD$7+0.5,$I$66:$DJ$120,ROWS($A$10:$A32)+2,FALSE)","v":1266},{"$f":"HLOOKUP(CE$7+0.5,$I$66:$DJ$120,ROWS($A$10:$A32)+2,FALSE)","v":1356},{"$f":"HLOOKUP(CF$7+0.5,$I$66:$DJ$120,ROWS($A$10:$A32)+2,FALSE)","v":"N/A"},{"$f":"HLOOKUP(CG$7+0.5,$I$66:$DJ$120,ROWS($A$10:$A32)+2,FALSE)","v":931},{"$f":"HLOOKUP(CH$7+0.5,$I$66:$DJ$120,ROWS($A$10:$A32)+2,FALSE)","v":2035},{"$f":"HLOOKUP(CI$7+0.5,$I$66:$DJ$120,ROWS($A$10:$A32)+2,FALSE)","v":534},{"$f":"HLOOKUP(CJ$7+0.5,$I$66:$DJ$120,ROWS($A$10:$A32)+2,FALSE)","v":1987},{"$f":"HLOOKUP(CK$7+0.5,$I$66:$DJ$120,ROWS($A$10:$A32)+2,FALSE)","v":356},{"$f":"HLOOKUP(CL$7+0.5,$I$66:$DJ$120,ROWS($A$10:$A32)+2,FALSE)","v":77},{"$f":"HLOOKUP(CM$7+0.5,$I$66:$DJ$120,ROWS($A$10:$A32)+2,FALSE)","v":705},{"$f":"HLOOKUP(CN$7+0.5,$I$66:$DJ$120,ROWS($A$10:$A32)+2,FALSE)","v":1876},{"$f":"HLOOKUP(CO$7+0.5,$I$66:$DJ$120,ROWS($A$10:$A32)+2,FALSE)","v":1295},{"$f":"HLOOKUP(CP$7+0.5,$I$66:$DJ$120,ROWS($A$10:$A32)+2,FALSE)","v":271},{"$f":"HLOOKUP(CQ$7+0.5,$I$66:$DJ$120,ROWS($A$10:$A32)+2,FALSE)","v":3186},{"$f":"HLOOKUP(CR$7+0.5,$I$66:$DJ$120,ROWS($A$10:$A32)+2,FALSE)","v":1277},{"$f":"HLOOKUP(CS$7+0.5,$I$66:$DJ$120,ROWS($A$10:$A32)+2,FALSE)","v":285},{"$f":"HLOOKUP(CT$7+0.5,$I$66:$DJ$120,ROWS($A$10:$A32)+2,FALSE)","v":975},{"$f":"HLOOKUP(CU$7+0.5,$I$66:$DJ$120,ROWS($A$10:$A32)+2,FALSE)","v":204},{"$f":"HLOOKUP(CV$7+0.5,$I$66:$DJ$120,ROWS($A$10:$A32)+2,FALSE)","v":217},{"$f":"HLOOKUP(CW$7+0.5,$I$66:$DJ$120,ROWS($A$10:$A32)+2,FALSE)","v":1681},{"$f":"HLOOKUP(CX$7+0.5,$I$66:$DJ$120,ROWS($A$10:$A32)+2,FALSE)","v":1573},{"$f":"HLOOKUP(CY$7+0.5,$I$66:$DJ$120,ROWS($A$10:$A32)+2,FALSE)","v":1086},{"$f":"HLOOKUP(CZ$7+0.5,$I$66:$DJ$120,ROWS($A$10:$A32)+2,FALSE)","v":285},{"$f":"HLOOKUP(DA$7+0.5,$I$66:$DJ$120,ROWS($A$10:$A32)+2,FALSE)","v":591},{"$f":"HLOOKUP(DB$7+0.5,$I$66:$DJ$120,ROWS($A$10:$A32)+2,FALSE)","v":2465},{"$f":"HLOOKUP(DC$7+0.5,$I$66:$DJ$120,ROWS($A$10:$A32)+2,FALSE)","v":159},{"$f":"HLOOKUP(DD$7+0.5,$I$66:$DJ$120,ROWS($A$10:$A32)+2,FALSE)","v":673},{"$f":"HLOOKUP(DE$7+0.5,$I$66:$DJ$120,ROWS($A$10:$A32)+2,FALSE)","v":1704},{"$f":"HLOOKUP(DF$7+0.5,$I$66:$DJ$120,ROWS($A$10:$A32)+2,FALSE)","v":791},{"$f":"HLOOKUP(DG$7+0.5,$I$66:$DJ$120,ROWS($A$10:$A32)+2,FALSE)","v":285},{"$f":"HLOOKUP(DH$7+0.5,$I$66:$DJ$120,ROWS($A$10:$A32)+2,FALSE)","v":404},{"$f":"HLOOKUP(DI$7+0.5,$I$66:$DJ$120,ROWS($A$10:$A32)+2,FALSE)","v":285},{"$f":"HLOOKUP(DJ$7+0.5,$I$66:$DJ$120,ROWS($A$10:$A32)+2,FALSE)","v":1219}]
[null,"Michigan",9762127,4595,8310098,29394,1291901,28130,{"$f":"HLOOKUP(I$7,$I$66:$DJ$120,ROWS($A$10:$A33)+2,FALSE)","v":116149},{"$f":"HLOOKUP(J$7,$I$66:$DJ$120,ROWS($A$10:$A33)+2,FALSE)","v":2403},{"$f":"HLOOKUP(K$7,$I$66:$DJ$120,ROWS($A$10:$A33)+2,FALSE)","v":1040},{"$f":"HLOOKUP(L$7,$I$66:$DJ$120,ROWS($A$10:$A33)+2,FALSE)","v":3197},{"$f":"HLOOKUP(M$7,$I$66:$DJ$120,ROWS($A$10:$A33)+2,FALSE)","v":636},{"$f":"HLOOKUP(N$7,$I$66:$DJ$120,ROWS($A$10:$A33)+2,FALSE)","v":6726},{"$f":"HLOOKUP(O$7,$I$66:$DJ$120,ROWS($A$10:$A33)+2,FALSE)","v":2031},{"$f":"HLOOKUP(P$7,$I$66:$DJ$120,ROWS($A$10:$A33)+2,FALSE)","v":277},{"$f":"HLOOKUP(Q$7,$I$66:$DJ$120,ROWS($A$10:$A33)+2,FALSE)","v":167},{"$f":"HLOOKUP(R$7,$I$66:$DJ$120,ROWS($A$10:$A33)+2,FALSE)","v":471},{"$f":"HLOOKUP(S$7,$I$66:$DJ$120,ROWS($A$10:$A33)+2,FALSE)","v":11646},{"$f":"HLOOKUP(T$7,$I$66:$DJ$120,ROWS($A$10:$A33)+2,FALSE)","v":3913},{"$f":"HLOOKUP(U$7,$I$66:$DJ$120,ROWS($A$10:$A33)+2,FALSE)","v":313},{"$f":"HLOOKUP(V$7,$I$66:$DJ$120,ROWS($A$10:$A33)+2,FALSE)","v":66},{"$f":"HLOOKUP(W$7,$I$66:$DJ$120,ROWS($A$10:$A33)+2,FALSE)","v":10651},{"$f":"HLOOKUP(X$7,$I$66:$DJ$120,ROWS($A$10:$A33)+2,FALSE)","v":7816},{"$f":"HLOOKUP(Y$7,$I$66:$DJ$120,ROWS($A$10:$A33)+2,FALSE)","v":758},{"$f":"HLOOKUP(Z$7,$I$66:$DJ$120,ROWS($A$10:$A33)+2,FALSE)","v":640},{"$f":"HLOOKUP(AA$7,$I$66:$DJ$120,ROWS($A$10:$A33)+2,FALSE)","v":2353},{"$f":"HLOOKUP(AB$7,$I$66:$DJ$120,ROWS($A$10:$A33)+2,FALSE)","v":1342},{"$f":"HLOOKUP(AC$7,$I$66:$DJ$120,ROWS($A$10:$A33)+2,FALSE)","v":645},{"$f":"HLOOKUP(AD$7,$I$66:$DJ$120,ROWS($A$10:$A33)+2,FALSE)","v":620},{"$f":"HLOOKUP(AE$7,$I$66:$DJ$120,ROWS($A$10:$A33)+2,FALSE)","v":1206},{"$f":"HLOOKUP(AF$7,$I$66:$DJ$120,ROWS($A$10:$A33)+2,FALSE)","v":"N/A"},{"$f":"HLOOKUP(AG$7,$I$66:$DJ$120,ROWS($A$10:$A33)+2,FALSE)","v":1275},{"$f":"HLOOKUP(AH$7,$I$66:$DJ$120,ROWS($A$10:$A33)+2,FALSE)","v":656},{"$f":"HLOOKUP(AI$7,$I$66:$DJ$120,ROWS($A$10:$A33)+2,FALSE)","v":2921},{"$f":"HLOOKUP(AJ$7,$I$66:$DJ$120,ROWS($A$10:$A33)+2,FALSE)","v":312},{"$f":"HLOOKUP(AK$7,$I$66:$DJ$120,ROWS($A$10:$A33)+2,FALSE)","v":213},{"$f":"HLOOKUP(AL$7,$I$66:$DJ$120,ROWS($A$10:$A33)+2,FALSE)","v":1874},{"$f":"HLOOKUP(AM$7,$I$66:$DJ$120,ROWS($A$10:$A33)+2,FALSE)","v":437},{"$f":"HLOOKUP(AN$7,$I$66:$DJ$120,ROWS($A$10:$A33)+2,FALSE)","v":1676},{"$f":"HLOOKUP(AO$7,$I$66:$DJ$120,ROWS($A$10:$A33)+2,FALSE)","v":669},{"$f":"HLOOKUP(AP$7,$I$66:$DJ$120,ROWS($A$10:$A33)+2,FALSE)","v":3135},{"$f":"HLOOKUP(AQ$7,$I$66:$DJ$120,ROWS($A$10:$A33)+2,FALSE)","v":2444},{"$f":"HLOOKUP(AR$7,$I$66:$DJ$120,ROWS($A$10:$A33)+2,FALSE)","v":53},{"$f":"HLOOKUP(AS$7,$I$66:$DJ$120,ROWS($A$10:$A33)+2,FALSE)","v":9783},{"$f":"HLOOKUP(AT$7,$I$66:$DJ$120,ROWS($A$10:$A33)+2,FALSE)","v":2276},{"$f":"HLOOKUP(AU$7,$I$66:$DJ$120,ROWS($A$10:$A33)+2,FALSE)","v":537},{"$f":"HLOOKUP(AV$7,$I$66:$DJ$120,ROWS($A$10:$A33)+2,FALSE)","v":3134},{"$f":"HLOOKUP(AW$7,$I$66:$DJ$120,ROWS($A$10:$A33)+2,FALSE)","v":653},{"$f":"HLOOKUP(AX$7,$I$66:$DJ$120,ROWS($A$10:$A33)+2,FALSE)","v":1446},{"$f":"HLOOKUP(AY$7,$I$66:$DJ$120,ROWS($A$10:$A33)+2,FALSE)","v":706},{"$f":"HLOOKUP(AZ$7,$I$66:$DJ$120,ROWS($A$10:$A33)+2,FALSE)","v":4453},{"$f":"HLOOKUP(BA$7,$I$66:$DJ$120,ROWS($A$10:$A33)+2,FALSE)","v":7184},{"$f":"HLOOKUP(BB$7,$I$66:$DJ$120,ROWS($A$10:$A33)+2,FALSE)","v":545},{"$f":"HLOOKUP(BC$7,$I$66:$DJ$120,ROWS($A$10:$A33)+2,FALSE)","v":45},{"$f":"HLOOKUP(BD$7,$I$66:$DJ$120,ROWS($A$10:$A33)+2,FALSE)","v":2073},{"$f":"HLOOKUP(BE$7,$I$66:$DJ$120,ROWS($A$10:$A33)+2,FALSE)","v":1427},{"$f":"HLOOKUP(BF$7,$I$66:$DJ$120,ROWS($A$10:$A33)+2,FALSE)","v":446},{"$f":"HLOOKUP(BG$7,$I$66:$DJ$120,ROWS($A$10:$A33)+2,FALSE)","v":6291},{"$f":"HLOOKUP(BH$7,$I$66:$DJ$120,ROWS($A$10:$A33)+2,FALSE)","v":568},{"$f":"HLOOKUP(BI$7,$I$66:$DJ$120,ROWS($A$10:$A33)+2,FALSE)","v":1432},{"$f":"HLOOKUP(BJ$7+0.5,$I$66:$DJ$120,ROWS($A$10:$A33)+2,FALSE)","v":8123},{"$f":"HLOOKUP(BK$7+0.5,$I$66:$DJ$120,ROWS($A$10:$A33)+2,FALSE)","v":1803},{"$f":"HLOOKUP(BL$7+0.5,$I$66:$DJ$120,ROWS($A$10:$A33)+2,FALSE)","v":758},{"$f":"HLOOKUP(BM$7+0.5,$I$66:$DJ$120,ROWS($A$10:$A33)+2,FALSE)","v":1076},{"$f":"HLOOKUP(BN$7+0.5,$I$66:$DJ$120,ROWS($A$10:$A33)+2,FALSE)","v":434},{"$f":"HLOOKUP(BO$7+0.5,$I$66:$DJ$120,ROWS($A$10:$A33)+2,FALSE)","v":2018},{"$f":"HLOOKUP(BP$7+0.5,$I$66:$DJ$120,ROWS($A$10:$A33)+2,FALSE)","v":695},{"$f":"HLOOKUP(BQ$7+0.5,$I$66:$DJ$120,ROWS($A$10:$A33)+2,FALSE)","v":303},{"$f":"HLOOKUP(BR$7+0.5,$I$66:$DJ$120,ROWS($A$10:$A33)+2,FALSE)","v":160},{"$f":"HLOOKUP(BS$7+0.5,$I$66:$DJ$120,ROWS($A$10:$A33)+2,FALSE)","v":272},{"$f":"HLOOKUP(BT$7+0.5,$I$66:$DJ$120,ROWS($A$10:$A33)+2,FALSE)","v":2178},{"$f":"HLOOKUP(BU$7+0.5,$I$66:$DJ$120,ROWS($A$10:$A33)+2,FALSE)","v":1925},{"$f":"HLOOKUP(BV$7+0.5,$I$66:$DJ$120,ROWS($A$10:$A33)+2,FALSE)","v":337},{"$f":"HLOOKUP(BW$7+0.5,$I$66:$DJ$120,ROWS($A$10:$A33)+2,FALSE)","v":79},{"$f":"HLOOKUP(BX$7+0.5,$I$66:$DJ$120,ROWS($A$10:$A33)+2,FALSE)","v":1903},{"$f":"HLOOKUP(BY$7+0.5,$I$66:$DJ$120,ROWS($A$10:$A33)+2,FALSE)","v":2004},{"$f":"HLOOKUP(BZ$7+0.5,$I$66:$DJ$120,ROWS($A$10:$A33)+2,FALSE)","v":493},{"$f":"HLOOKUP(CA$7+0.5,$I$66:$DJ$120,ROWS($A$10:$A33)+2,FALSE)","v":469},{"$f":"HLOOKUP(CB$7+0.5,$I$66:$DJ$120,ROWS($A$10:$A33)+2,FALSE)","v":1473},{"$f":"HLOOKUP(CC$7+0.5,$I$66:$DJ$120,ROWS($A$10:$A33)+2,FALSE)","v":747},{"$f":"HLOOKUP(CD$7+0.5,$I$66:$DJ$120,ROWS($A$10:$A33)+2,FALSE)","v":477},{"$f":"HLOOKUP(CE$7+0.5,$I$66:$DJ$120,ROWS($A$10:$A33)+2,FALSE)","v":428},{"$f":"HLOOKUP(CF$7+0.5,$I$66:$DJ$120,ROWS($A$10:$A33)+2,FALSE)","v":574},{"$f":"HLOOKUP(CG$7+0.5,$I$66:$DJ$120,ROWS($A$10:$A33)+2,FALSE)","v":"N/A"},{"$f":"HLOOKUP(CH$7+0.5,$I$66:$DJ$120,ROWS($A$10:$A33)+2,FALSE)","v":646},{"$f":"HLOOKUP(CI$7+0.5,$I$66:$DJ$120,ROWS($A$10:$A33)+2,FALSE)","v":474},{"$f":"HLOOKUP(CJ$7+0.5,$I$66:$DJ$120,ROWS($A$10:$A33)+2,FALSE)","v":1486},{"$f":"HLOOKUP(CK$7+0.5,$I$66:$DJ$120,ROWS($A$10:$A33)+2,FALSE)","v":235},{"$f":"HLOOKUP(CL$7+0.5,$I$66:$DJ$120,ROWS($A$10:$A33)+2,FALSE)","v":214},{"$f":"HLOOKUP(CM$7+0.5,$I$66:$DJ$120,ROWS($A$10:$A33)+2,FALSE)","v":1028},{"$f":"HLOOKUP(CN$7+0.5,$I$66:$DJ$120,ROWS($A$10:$A33)+2,FALSE)","v":357},{"$f":"HLOOKUP(CO$7+0.5,$I$66:$DJ$120,ROWS($A$10:$A33)+2,FALSE)","v":861},{"$f":"HLOOKUP(CP$7+0.5,$I$66:$DJ$120,ROWS($A$10:$A33)+2,FALSE)","v":411},{"$f":"HLOOKUP(CQ$7+0.5,$I$66:$DJ$120,ROWS($A$10:$A33)+2,FALSE)","v":871},{"$f":"HLOOKUP(CR$7+0.5,$I$66:$DJ$120,ROWS($A$10:$A33)+2,FALSE)","v":903},{"$f":"HLOOKUP(CS$7+0.5,$I$66:$DJ$120,ROWS($A$10:$A33)+2,FALSE)","v":71},{"$f":"HLOOKUP(CT$7+0.5,$I$66:$DJ$120,ROWS($A$10:$A33)+2,FALSE)","v":1851},{"$f":"HLOOKUP(CU$7+0.5,$I$66:$DJ$120,ROWS($A$10:$A33)+2,FALSE)","v":1296},{"$f":"HLOOKUP(CV$7+0.5,$I$66:$DJ$120,ROWS($A$10:$A33)+2,FALSE)","v":341},{"$f":"HLOOKUP(CW$7+0.5,$I$66:$DJ$120,ROWS($A$10:$A33)+2,FALSE)","v":1226},{"$f":"HLOOKUP(CX$7+0.5,$I$66:$DJ$120,ROWS($A$10:$A33)+2,FALSE)","v":702},{"$f":"HLOOKUP(CY$7+0.5,$I$66:$DJ$120,ROWS($A$10:$A33)+2,FALSE)","v":869},{"$f":"HLOOKUP(CZ$7+0.5,$I$66:$DJ$120,ROWS($A$10:$A33)+2,FALSE)","v":521},{"$f":"HLOOKUP(DA$7+0.5,$I$66:$DJ$120,ROWS($A$10:$A33)+2,FALSE)","v":1559},{"$f":"HLOOKUP(DB$7+0.5,$I$66:$DJ$120,ROWS($A$10:$A33)+2,FALSE)","v":2265},{"$f":"HLOOKUP(DC$7+0.5,$I$66:$DJ$120,ROWS($A$10:$A33)+2,FALSE)","v":388},{"$f":"HLOOKUP(DD$7+0.5,$I$66:$DJ$120,ROWS($A$10:$A33)+2,FALSE)","v":77},{"$f":"HLOOKUP(DE$7+0.5,$I$66:$DJ$120,ROWS($A$10:$A33)+2,FALSE)","v":807},{"$f":"HLOOKUP(DF$7+0.5,$I$66:$DJ$120,ROWS($A$10:$A33)+2,FALSE)","v":666},{"$f":"HLOOKUP(DG$7+0.5,$I$66:$DJ$120,ROWS($A$10:$A33)+2,FALSE)","v":319},{"$f":"HLOOKUP(DH$7+0.5,$I$66:$DJ$120,ROWS($A$10:$A33)+2,FALSE)","v":1731},{"$f":"HLOOKUP(DI$7+0.5,$I$66:$DJ$120,ROWS($A$10:$A33)+2,FALSE)","v":429},{"$f":"HLOOKUP(DJ$7+0.5,$I$66:$DJ$120,ROWS($A$10:$A33)+2,FALSE)","v":1082}]
[null,"Minnesota",5244256,3049,4480630,17843,647946,16565,{"$f":"HLOOKUP(I$7,$I$66:$DJ$120,ROWS($A$10:$A34)+2,FALSE)","v":89872},{"$f":"HLOOKUP(J$7,$I$66:$DJ$120,ROWS($A$10:$A34)+2,FALSE)","v":266},{"$f":"HLOOKUP(K$7,$I$66:$DJ$120,ROWS($A$10:$A34)+2,FALSE)","v":1169},{"$f":"HLOOKUP(L$7,$I$66:$DJ$120,ROWS($A$10:$A34)+2,FALSE)","v":4165},{"$f":"HLOOKUP(M$7,$I$66:$DJ$120,ROWS($A$10:$A34)+2,FALSE)","v":279},{"$f":"HLOOKUP(N$7,$I$66:$DJ$120,ROWS($A$10:$A34)+2,FALSE)","v":6233},{"$f":"HLOOKUP(O$7,$I$66:$DJ$120,ROWS($A$10:$A34)+2,FALSE)","v":2521},{"$f":"HLOOKUP(P$7,$I$66:$DJ$120,ROWS($A$10:$A34)+2,FALSE)","v":211},{"$f":"HLOOKUP(Q$7,$I$66:$DJ$120,ROWS($A$10:$A34)+2,FALSE)","v":176},{"$f":"HLOOKUP(R$7,$I$66:$DJ$120,ROWS($A$10:$A34)+2,FALSE)","v":306},{"$f":"HLOOKUP(S$7,$I$66:$DJ$120,ROWS($A$10:$A34)+2,FALSE)","v":2575},{"$f":"HLOOKUP(T$7,$I$66:$DJ$120,ROWS($A$10:$A34)+2,FALSE)","v":1776},{"$f":"HLOOKUP(U$7,$I$66:$DJ$120,ROWS($A$10:$A34)+2,FALSE)","v":227},{"$f":"HLOOKUP(V$7,$I$66:$DJ$120,ROWS($A$10:$A34)+2,FALSE)","v":231},{"$f":"HLOOKUP(W$7,$I$66:$DJ$120,ROWS($A$10:$A34)+2,FALSE)","v":6641},{"$f":"HLOOKUP(X$7,$I$66:$DJ$120,ROWS($A$10:$A34)+2,FALSE)","v":1120},{"$f":"HLOOKUP(Y$7,$I$66:$DJ$120,ROWS($A$10:$A34)+2,FALSE)","v":4948},{"$f":"HLOOKUP(Z$7,$I$66:$DJ$120,ROWS($A$10:$A34)+2,FALSE)","v":1067},{"$f":"HLOOKUP(AA$7,$I$66:$DJ$120,ROWS($A$10:$A34)+2,FALSE)","v":402},{"$f":"HLOOKUP(AB$7,$I$66:$DJ$120,ROWS($A$10:$A34)+2,FALSE)","v":519},{"$f":"HLOOKUP(AC$7,$I$66:$DJ$120,ROWS($A$10:$A34)+2,FALSE)","v":172},{"$f":"HLOOKUP(AD$7,$I$66:$DJ$120,ROWS($A$10:$A34)+2,FALSE)","v":1259},{"$f":"HLOOKUP(AE$7,$I$66:$DJ$120,ROWS($A$10:$A34)+2,FALSE)","v":1092},{"$f":"HLOOKUP(AF$7,$I$66:$DJ$120,ROWS($A$10:$A34)+2,FALSE)","v":2631},{"$f":"HLOOKUP(AG$7,$I$66:$DJ$120,ROWS($A$10:$A34)+2,FALSE)","v":"N/A"},{"$f":"HLOOKUP(AH$7,$I$66:$DJ$120,ROWS($A$10:$A34)+2,FALSE)","v":196},{"$f":"HLOOKUP(AI$7,$I$66:$DJ$120,ROWS($A$10:$A34)+2,FALSE)","v":1549},{"$f":"HLOOKUP(AJ$7,$I$66:$DJ$120,ROWS($A$10:$A34)+2,FALSE)","v":1020},{"$f":"HLOOKUP(AK$7,$I$66:$DJ$120,ROWS($A$10:$A34)+2,FALSE)","v":734},{"$f":"HLOOKUP(AL$7,$I$66:$DJ$120,ROWS($A$10:$A34)+2,FALSE)","v":540},{"$f":"HLOOKUP(AM$7,$I$66:$DJ$120,ROWS($A$10:$A34)+2,FALSE)","v":183},{"$f":"HLOOKUP(AN$7,$I$66:$DJ$120,ROWS($A$10:$A34)+2,FALSE)","v":513},{"$f":"HLOOKUP(AO$7,$I$66:$DJ$120,ROWS($A$10:$A34)+2,FALSE)","v":151},{"$f":"HLOOKUP(AP$7,$I$66:$DJ$120,ROWS($A$10:$A34)+2,FALSE)","v":1309},{"$f":"HLOOKUP(AQ$7,$I$66:$DJ$120,ROWS($A$10:$A34)+2,FALSE)","v":1673},{"$f":"HLOOKUP(AR$7,$I$66:$DJ$120,ROWS($A$10:$A34)+2,FALSE)","v":7316},{"$f":"HLOOKUP(AS$7,$I$66:$DJ$120,ROWS($A$10:$A34)+2,FALSE)","v":1035},{"$f":"HLOOKUP(AT$7,$I$66:$DJ$120,ROWS($A$10:$A34)+2,FALSE)","v":284},{"$f":"HLOOKUP(AU$7,$I$66:$DJ$120,ROWS($A$10:$A34)+2,FALSE)","v":738},{"$f":"HLOOKUP(AV$7,$I$66:$DJ$120,ROWS($A$10:$A34)+2,FALSE)","v":730},{"$f":"HLOOKUP(AW$7,$I$66:$DJ$120,ROWS($A$10:$A34)+2,FALSE)","v":123},{"$f":"HLOOKUP(AX$7,$I$66:$DJ$120,ROWS($A$10:$A34)+2,FALSE)","v":1597},{"$f":"HLOOKUP(AY$7,$I$66:$DJ$120,ROWS($A$10:$A34)+2,FALSE)","v":3237},{"$f":"HLOOKUP(AZ$7,$I$66:$DJ$120,ROWS($A$10:$A34)+2,FALSE)","v":1155},{"$f":"HLOOKUP(BA$7,$I$66:$DJ$120,ROWS($A$10:$A34)+2,FALSE)","v":2619},{"$f":"HLOOKUP(BB$7,$I$66:$DJ$120,ROWS($A$10:$A34)+2,FALSE)","v":1013},{"$f":"HLOOKUP(BC$7,$I$66:$DJ$120,ROWS($A$10:$A34)+2,FALSE)","v":0},{"$f":"HLOOKUP(BD$7,$I$66:$DJ$120,ROWS($A$10:$A34)+2,FALSE)","v":2371},{"$f":"HLOOKUP(BE$7,$I$66:$DJ$120,ROWS($A$10:$A34)+2,FALSE)","v":1328},{"$f":"HLOOKUP(BF$7,$I$66:$DJ$120,ROWS($A$10:$A34)+2,FALSE)","v":200},{"$f":"HLOOKUP(BG$7,$I$66:$DJ$120,ROWS($A$10:$A34)+2,FALSE)","v":17929},{"$f":"HLOOKUP(BH$7,$I$66:$DJ$120,ROWS($A$10:$A34)+2,FALSE)","v":343},{"$f":"HLOOKUP(BI$7,$I$66:$DJ$120,ROWS($A$10:$A34)+2,FALSE)","v":39},{"$f":"HLOOKUP(BJ$7+0.5,$I$66:$DJ$120,ROWS($A$10:$A34)+2,FALSE)","v":6022},{"$f":"HLOOKUP(BK$7+0.5,$I$66:$DJ$120,ROWS($A$10:$A34)+2,FALSE)","v":342},{"$f":"HLOOKUP(BL$7+0.5,$I$66:$DJ$120,ROWS($A$10:$A34)+2,FALSE)","v":851},{"$f":"HLOOKUP(BM$7+0.5,$I$66:$DJ$120,ROWS($A$10:$A34)+2,FALSE)","v":1655},{"$f":"HLOOKUP(BN$7+0.5,$I$66:$DJ$120,ROWS($A$10:$A34)+2,FALSE)","v":321},{"$f":"HLOOKUP(BO$7+0.5,$I$66:$DJ$120,ROWS($A$10:$A34)+2,FALSE)","v":1680},{"$f":"HLOOKUP(BP$7+0.5,$I$66:$DJ$120,ROWS($A$10:$A34)+2,FALSE)","v":1122},{"$f":"HLOOKUP(BQ$7+0.5,$I$66:$DJ$120,ROWS($A$10:$A34)+2,FALSE)","v":259},{"$f":"HLOOKUP(BR$7+0.5,$I$66:$DJ$120,ROWS($A$10:$A34)+2,FALSE)","v":171},{"$f":"HLOOKUP(BS$7+0.5,$I$66:$DJ$120,ROWS($A$10:$A34)+2,FALSE)","v":353},{"$f":"HLOOKUP(BT$7+0.5,$I$66:$DJ$120,ROWS($A$10:$A34)+2,FALSE)","v":951},{"$f":"HLOOKUP(BU$7+0.5,$I$66:$DJ$120,ROWS($A$10:$A34)+2,FALSE)","v":1237},{"$f":"HLOOKUP(BV$7+0.5,$I$66:$DJ$120,ROWS($A$10:$A34)+2,FALSE)","v":253},{"$f":"HLOOKUP(BW$7+0.5,$I$66:$DJ$120,ROWS($A$10:$A34)+2,FALSE)","v":314},{"$f":"HLOOKUP(BX$7+0.5,$I$66:$DJ$120,ROWS($A$10:$A34)+2,FALSE)","v":2137},{"$f":"HLOOKUP(BY$7+0.5,$I$66:$DJ$120,ROWS($A$10:$A34)+2,FALSE)","v":433},{"$f":"HLOOKUP(BZ$7+0.5,$I$66:$DJ$120,ROWS($A$10:$A34)+2,FALSE)","v":2094},{"$f":"HLOOKUP(CA$7+0.5,$I$66:$DJ$120,ROWS($A$10:$A34)+2,FALSE)","v":576},{"$f":"HLOOKUP(CB$7+0.5,$I$66:$DJ$120,ROWS($A$10:$A34)+2,FALSE)","v":273},{"$f":"HLOOKUP(CC$7+0.5,$I$66:$DJ$120,ROWS($A$10:$A34)+2,FALSE)","v":402},{"$f":"HLOOKUP(CD$7+0.5,$I$66:$DJ$120,ROWS($A$10:$A34)+2,FALSE)","v":199},{"$f":"HLOOKUP(CE$7+0.5,$I$66:$DJ$120,ROWS($A$10:$A34)+2,FALSE)","v":797},{"$f":"HLOOKUP(CF$7+0.5,$I$66:$DJ$120,ROWS($A$10:$A34)+2,FALSE)","v":531},{"$f":"HLOOKUP(CG$7+0.5,$I$66:$DJ$120,ROWS($A$10:$A34)+2,FALSE)","v":1867},{"$f":"HLOOKUP(CH$7+0.5,$I$66:$DJ$120,ROWS($A$10:$A34)+2,FALSE)","v":"N/A"},{"$f":"HLOOKUP(CI$7+0.5,$I$66:$DJ$120,ROWS($A$10:$A34)+2,FALSE)","v":169},{"$f":"HLOOKUP(CJ$7+0.5,$I$66:$DJ$120,ROWS($A$10:$A34)+2,FALSE)","v":898},{"$f":"HLOOKUP(CK$7+0.5,$I$66:$DJ$120,ROWS($A$10:$A34)+2,FALSE)","v":547},{"$f":"HLOOKUP(CL$7+0.5,$I$66:$DJ$120,ROWS($A$10:$A34)+2,FALSE)","v":415},{"$f":"HLOOKUP(CM$7+0.5,$I$66:$DJ$120,ROWS($A$10:$A34)+2,FALSE)","v":364},{"$f":"HLOOKUP(CN$7+0.5,$I$66:$DJ$120,ROWS($A$10:$A34)+2,FALSE)","v":142},{"$f":"HLOOKUP(CO$7+0.5,$I$66:$DJ$120,ROWS($A$10:$A34)+2,FALSE)","v":416},{"$f":"HLOOKUP(CP$7+0.5,$I$66:$DJ$120,ROWS($A$10:$A34)+2,FALSE)","v":137},{"$f":"HLOOKUP(CQ$7+0.5,$I$66:$DJ$120,ROWS($A$10:$A34)+2,FALSE)","v":650},{"$f":"HLOOKUP(CR$7+0.5,$I$66:$DJ$120,ROWS($A$10:$A34)+2,FALSE)","v":808},{"$f":"HLOOKUP(CS$7+0.5,$I$66:$DJ$120,ROWS($A$10:$A34)+2,FALSE)","v":1621},{"$f":"HLOOKUP(CT$7+0.5,$I$66:$DJ$120,ROWS($A$10:$A34)+2,FALSE)","v":669},{"$f":"HLOOKUP(CU$7+0.5,$I$66:$DJ$120,ROWS($A$10:$A34)+2,FALSE)","v":299},{"$f":"HLOOKUP(CV$7+0.5,$I$66:$DJ$120,ROWS($A$10:$A34)+2,FALSE)","v":390},{"$f":"HLOOKUP(CW$7+0.5,$I$66:$DJ$120,ROWS($A$10:$A34)+2,FALSE)","v":459},{"$f":"HLOOKUP(CX$7+0.5,$I$66:$DJ$120,ROWS($A$10:$A34)+2,FALSE)","v":148},{"$f":"HLOOKUP(CY$7+0.5,$I$66:$DJ$120,ROWS($A$10:$A34)+2,FALSE)","v":1554},{"$f":"HLOOKUP(CZ$7+0.5,$I$66:$DJ$120,ROWS($A$10:$A34)+2,FALSE)","v":922},{"$f":"HLOOKUP(DA$7+0.5,$I$66:$DJ$120,ROWS($A$10:$A34)+2,FALSE)","v":1037},{"$f":"HLOOKUP(DB$7+0.5,$I$66:$DJ$120,ROWS($A$10:$A34)+2,FALSE)","v":1241},{"$f":"HLOOKUP(DC$7+0.5,$I$66:$DJ$120,ROWS($A$10:$A34)+2,FALSE)","v":792},{"$f":"HLOOKUP(DD$7+0.5,$I$66:$DJ$120,ROWS($A$10:$A34)+2,FALSE)","v":211},{"$f":"HLOOKUP(DE$7+0.5,$I$66:$DJ$120,ROWS($A$10:$A34)+2,FALSE)","v":1485},{"$f":"HLOOKUP(DF$7+0.5,$I$66:$DJ$120,ROWS($A$10:$A34)+2,FALSE)","v":604},{"$f":"HLOOKUP(DG$7+0.5,$I$66:$DJ$120,ROWS($A$10:$A34)+2,FALSE)","v":211},{"$f":"HLOOKUP(DH$7+0.5,$I$66:$DJ$120,ROWS($A$10:$A34)+2,FALSE)","v":2252},{"$f":"HLOOKUP(DI$7+0.5,$I$66:$DJ$120,ROWS($A$10:$A34)+2,FALSE)","v":280},{"$f":"HLOOKUP(DJ$7+0.5,$I$66:$DJ$120,ROWS($A$10:$A34)+2,FALSE)","v":62}]
[null,"Mississippi",2931228,3253,2510729,16977,340266,16300,{"$f":"HLOOKUP(I$7,$I$66:$DJ$120,ROWS($A$10:$A35)+2,FALSE)","v":72321},{"$f":"HLOOKUP(J$7,$I$66:$DJ$120,ROWS($A$10:$A35)+2,FALSE)","v":8306},{"$f":"HLOOKUP(K$7,$I$66:$DJ$120,ROWS($A$10:$A35)+2,FALSE)","v":1192},{"$f":"HLOOKUP(L$7,$I$66:$DJ$120,ROWS($A$10:$A35)+2,FALSE)","v":187},{"$f":"HLOOKUP(M$7,$I$66:$DJ$120,ROWS($A$10:$A35)+2,FALSE)","v":4941},{"$f":"HLOOKUP(N$7,$I$66:$DJ$120,ROWS($A$10:$A35)+2,FALSE)","v":3000},{"$f":"HLOOKUP(O$7,$I$66:$DJ$120,ROWS($A$10:$A35)+2,FALSE)","v":1167},{"$f":"HLOOKUP(P$7,$I$66:$DJ$120,ROWS($A$10:$A35)+2,FALSE)","v":71},{"$f":"HLOOKUP(Q$7,$I$66:$DJ$120,ROWS($A$10:$A35)+2,FALSE)","v":0},{"$f":"HLOOKUP(R$7,$I$66:$DJ$120,ROWS($A$10:$A35)+2,FALSE)","v":0},{"$f":"HLOOKUP(S$7,$I$66:$DJ$120,ROWS($A$10:$A35)+2,FALSE)","v":4814},{"$f":"HLOOKUP(T$7,$I$66:$DJ$120,ROWS($A$10:$A35)+2,FALSE)","v":4014},{"$f":"HLOOKUP(U$7,$I$66:$DJ$120,ROWS($A$10:$A35)+2,FALSE)","v":276},{"$f":"HLOOKUP(V$7,$I$66:$DJ$120,ROWS($A$10:$A35)+2,FALSE)","v":121},{"$f":"HLOOKUP(W$7,$I$66:$DJ$120,ROWS($A$10:$A35)+2,FALSE)","v":3030},{"$f":"HLOOKUP(X$7,$I$66:$DJ$120,ROWS($A$10:$A35)+2,FALSE)","v":1403},{"$f":"HLOOKUP(Y$7,$I$66:$DJ$120,ROWS($A$10:$A35)+2,FALSE)","v":114},{"$f":"HLOOKUP(Z$7,$I$66:$DJ$120,ROWS($A$10:$A35)+2,FALSE)","v":330},{"$f":"HLOOKUP(AA$7,$I$66:$DJ$120,ROWS($A$10:$A35)+2,FALSE)","v":407},{"$f":"HLOOKUP(AB$7,$I$66:$DJ$120,ROWS($A$10:$A35)+2,FALSE)","v":7390},{"$f":"HLOOKUP(AC$7,$I$66:$DJ$120,ROWS($A$10:$A35)+2,FALSE)","v":0},{"$f":"HLOOKUP(AD$7,$I$66:$DJ$120,ROWS($A$10:$A35)+2,FALSE)","v":649},{"$f":"HLOOKUP(AE$7,$I$66:$DJ$120,ROWS($A$10:$A35)+2,FALSE)","v":107},{"$f":"HLOOKUP(AF$7,$I$66:$DJ$120,ROWS($A$10:$A35)+2,FALSE)","v":2495},{"$f":"HLOOKUP(AG$7,$I$66:$DJ$120,ROWS($A$10:$A35)+2,FALSE)","v":863},{"$f":"HLOOKUP(AH$7,$I$66:$DJ$120,ROWS($A$10:$A35)+2,FALSE)","v":"N/A"},{"$f":"HLOOKUP(AI$7,$I$66:$DJ$120,ROWS($A$10:$A35)+2,FALSE)","v":959},{"$f":"HLOOKUP(AJ$7,$I$66:$DJ$120,ROWS($A$10:$A35)+2,FALSE)","v":314},{"$f":"HLOOKUP(AK$7,$I$66:$DJ$120,ROWS($A$10:$A35)+2,FALSE)","v":0},{"$f":"HLOOKUP(AL$7,$I$66:$DJ$120,ROWS($A$10:$A35)+2,FALSE)","v":408},{"$f":"HLOOKUP(AM$7,$I$66:$DJ$120,ROWS($A$10:$A35)+2,FALSE)","v":0},{"$f":"HLOOKUP(AN$7,$I$66:$DJ$120,ROWS($A$10:$A35)+2,FALSE)","v":403},{"$f":"HLOOKUP(AO$7,$I$66:$DJ$120,ROWS($A$10:$A35)+2,FALSE)","v":633},{"$f":"HLOOKUP(AP$7,$I$66:$DJ$120,ROWS($A$10:$A35)+2,FALSE)","v":1026},{"$f":"HLOOKUP(AQ$7,$I$66:$DJ$120,ROWS($A$10:$A35)+2,FALSE)","v":2227},{"$f":"HLOOKUP(AR$7,$I$66:$DJ$120,ROWS($A$10:$A35)+2,FALSE)","v":0},{"$f":"HLOOKUP(AS$7,$I$66:$DJ$120,ROWS($A$10:$A35)+2,FALSE)","v":1312},{"$f":"HLOOKUP(AT$7,$I$66:$DJ$120,ROWS($A$10:$A35)+2,FALSE)","v":663},{"$f":"HLOOKUP(AU$7,$I$66:$DJ$120,ROWS($A$10:$A35)+2,FALSE)","v":0},{"$f":"HLOOKUP(AV$7,$I$66:$DJ$120,ROWS($A$10:$A35)+2,FALSE)","v":750},{"$f":"HLOOKUP(AW$7,$I$66:$DJ$120,ROWS($A$10:$A35)+2,FALSE)","v":145},{"$f":"HLOOKUP(AX$7,$I$66:$DJ$120,ROWS($A$10:$A35)+2,FALSE)","v":1860},{"$f":"HLOOKUP(AY$7,$I$66:$DJ$120,ROWS($A$10:$A35)+2,FALSE)","v":56},{"$f":"HLOOKUP(AZ$7,$I$66:$DJ$120,ROWS($A$10:$A35)+2,FALSE)","v":8158},{"$f":"HLOOKUP(BA$7,$I$66:$DJ$120,ROWS($A$10:$A35)+2,FALSE)","v":5755},{"$f":"HLOOKUP(BB$7,$I$66:$DJ$120,ROWS($A$10:$A35)+2,FALSE)","v":232},{"$f":"HLOOKUP(BC$7,$I$66:$DJ$120,ROWS($A$10:$A35)+2,FALSE)","v":0},{"$f":"HLOOKUP(BD$7,$I$66:$DJ$120,ROWS($A$10:$A35)+2,FALSE)","v":572},{"$f":"HLOOKUP(BE$7,$I$66:$DJ$120,ROWS($A$10:$A35)+2,FALSE)","v":508},{"$f":"HLOOKUP(BF$7,$I$66:$DJ$120,ROWS($A$10:$A35)+2,FALSE)","v":94},{"$f":"HLOOKUP(BG$7,$I$66:$DJ$120,ROWS($A$10:$A35)+2,FALSE)","v":879},{"$f":"HLOOKUP(BH$7,$I$66:$DJ$120,ROWS($A$10:$A35)+2,FALSE)","v":490},{"$f":"HLOOKUP(BI$7,$I$66:$DJ$120,ROWS($A$10:$A35)+2,FALSE)","v":814},{"$f":"HLOOKUP(BJ$7+0.5,$I$66:$DJ$120,ROWS($A$10:$A35)+2,FALSE)","v":5412},{"$f":"HLOOKUP(BK$7+0.5,$I$66:$DJ$120,ROWS($A$10:$A35)+2,FALSE)","v":2433},{"$f":"HLOOKUP(BL$7+0.5,$I$66:$DJ$120,ROWS($A$10:$A35)+2,FALSE)","v":1055},{"$f":"HLOOKUP(BM$7+0.5,$I$66:$DJ$120,ROWS($A$10:$A35)+2,FALSE)","v":188},{"$f":"HLOOKUP(BN$7+0.5,$I$66:$DJ$120,ROWS($A$10:$A35)+2,FALSE)","v":2495},{"$f":"HLOOKUP(BO$7+0.5,$I$66:$DJ$120,ROWS($A$10:$A35)+2,FALSE)","v":1221},{"$f":"HLOOKUP(BP$7+0.5,$I$66:$DJ$120,ROWS($A$10:$A35)+2,FALSE)","v":854},{"$f":"HLOOKUP(BQ$7+0.5,$I$66:$DJ$120,ROWS($A$10:$A35)+2,FALSE)","v":140},{"$f":"HLOOKUP(BR$7+0.5,$I$66:$DJ$120,ROWS($A$10:$A35)+2,FALSE)","v":287},{"$f":"HLOOKUP(BS$7+0.5,$I$66:$DJ$120,ROWS($A$10:$A35)+2,FALSE)","v":287},{"$f":"HLOOKUP(BT$7+0.5,$I$66:$DJ$120,ROWS($A$10:$A35)+2,FALSE)","v":1372},{"$f":"HLOOKUP(BU$7+0.5,$I$66:$DJ$120,ROWS($A$10:$A35)+2,FALSE)","v":1632},{"$f":"HLOOKUP(BV$7+0.5,$I$66:$DJ$120,ROWS($A$10:$A35)+2,FALSE)","v":383},{"$f":"HLOOKUP(BW$7+0.5,$I$66:$DJ$120,ROWS($A$10:$A35)+2,FALSE)","v":172},{"$f":"HLOOKUP(BX$7+0.5,$I$66:$DJ$120,ROWS($A$10:$A35)+2,FALSE)","v":1391},{"$f":"HLOOKUP(BY$7+0.5,$I$66:$DJ$120,ROWS($A$10:$A35)+2,FALSE)","v":1445},{"$f":"HLOOKUP(BZ$7+0.5,$I$66:$DJ$120,ROWS($A$10:$A35)+2,FALSE)","v":136},{"$f":"HLOOKUP(CA$7+0.5,$I$66:$DJ$120,ROWS($A$10:$A35)+2,FALSE)","v":360},{"$f":"HLOOKUP(CB$7+0.5,$I$66:$DJ$120,ROWS($A$10:$A35)+2,FALSE)","v":350},{"$f":"HLOOKUP(CC$7+0.5,$I$66:$DJ$120,ROWS($A$10:$A35)+2,FALSE)","v":1780},{"$f":"HLOOKUP(CD$7+0.5,$I$66:$DJ$120,ROWS($A$10:$A35)+2,FALSE)","v":287},{"$f":"HLOOKUP(CE$7+0.5,$I$66:$DJ$120,ROWS($A$10:$A35)+2,FALSE)","v":529},{"$f":"HLOOKUP(CF$7+0.5,$I$66:$DJ$120,ROWS($A$10:$A35)+2,FALSE)","v":154},{"$f":"HLOOKUP(CG$7+0.5,$I$66:$DJ$120,ROWS($A$10:$A35)+2,FALSE)","v":1469},{"$f":"HLOOKUP(CH$7+0.5,$I$66:$DJ$120,ROWS($A$10:$A35)+2,FALSE)","v":996},{"$f":"HLOOKUP(CI$7+0.5,$I$66:$DJ$120,ROWS($A$10:$A35)+2,FALSE)","v":"N/A"},{"$f":"HLOOKUP(CJ$7+0.5,$I$66:$DJ$120,ROWS($A$10:$A35)+2,FALSE)","v":544},{"$f":"HLOOKUP(CK$7+0.5,$I$66:$DJ$120,ROWS($A$10:$A35)+2,FALSE)","v":278},{"$f":"HLOOKUP(CL$7+0.5,$I$66:$DJ$120,ROWS($A$10:$A35)+2,FALSE)","v":287},{"$f":"HLOOKUP(CM$7+0.5,$I$66:$DJ$120,ROWS($A$10:$A35)+2,FALSE)","v":323},{"$f":"HLOOKUP(CN$7+0.5,$I$66:$DJ$120,ROWS($A$10:$A35)+2,FALSE)","v":287},{"$f":"HLOOKUP(CO$7+0.5,$I$66:$DJ$120,ROWS($A$10:$A35)+2,FALSE)","v":398},{"$f":"HLOOKUP(CP$7+0.5,$I$66:$DJ$120,ROWS($A$10:$A35)+2,FALSE)","v":669},{"$f":"HLOOKUP(CQ$7+0.5,$I$66:$DJ$120,ROWS($A$10:$A35)+2,FALSE)","v":524},{"$f":"HLOOKUP(CR$7+0.5,$I$66:$DJ$120,ROWS($A$10:$A35)+2,FALSE)","v":1080},{"$f":"HLOOKUP(CS$7+0.5,$I$66:$DJ$120,ROWS($A$10:$A35)+2,FALSE)","v":287},{"$f":"HLOOKUP(CT$7+0.5,$I$66:$DJ$120,ROWS($A$10:$A35)+2,FALSE)","v":783},{"$f":"HLOOKUP(CU$7+0.5,$I$66:$DJ$120,ROWS($A$10:$A35)+2,FALSE)","v":520},{"$f":"HLOOKUP(CV$7+0.5,$I$66:$DJ$120,ROWS($A$10:$A35)+2,FALSE)","v":287},{"$f":"HLOOKUP(CW$7+0.5,$I$66:$DJ$120,ROWS($A$10:$A35)+2,FALSE)","v":499},{"$f":"HLOOKUP(CX$7+0.5,$I$66:$DJ$120,ROWS($A$10:$A35)+2,FALSE)","v":241},{"$f":"HLOOKUP(CY$7+0.5,$I$66:$DJ$120,ROWS($A$10:$A35)+2,FALSE)","v":982},{"$f":"HLOOKUP(CZ$7+0.5,$I$66:$DJ$120,ROWS($A$10:$A35)+2,FALSE)","v":99},{"$f":"HLOOKUP(DA$7+0.5,$I$66:$DJ$120,ROWS($A$10:$A35)+2,FALSE)","v":2173},{"$f":"HLOOKUP(DB$7+0.5,$I$66:$DJ$120,ROWS($A$10:$A35)+2,FALSE)","v":1663},{"$f":"HLOOKUP(DC$7+0.5,$I$66:$DJ$120,ROWS($A$10:$A35)+2,FALSE)","v":229},{"$f":"HLOOKUP(DD$7+0.5,$I$66:$DJ$120,ROWS($A$10:$A35)+2,FALSE)","v":287},{"$f":"HLOOKUP(DE$7+0.5,$I$66:$DJ$120,ROWS($A$10:$A35)+2,FALSE)","v":350},{"$f":"HLOOKUP(DF$7+0.5,$I$66:$DJ$120,ROWS($A$10:$A35)+2,FALSE)","v":492},{"$f":"HLOOKUP(DG$7+0.5,$I$66:$DJ$120,ROWS($A$10:$A35)+2,FALSE)","v":177},{"$f":"HLOOKUP(DH$7+0.5,$I$66:$DJ$120,ROWS($A$10:$A35)+2,FALSE)","v":630},{"$f":"HLOOKUP(DI$7+0.5,$I$66:$DJ$120,ROWS($A$10:$A35)+2,FALSE)","v":422},{"$f":"HLOOKUP(DJ$7+0.5,$I$66:$DJ$120,ROWS($A$10:$A35)+2,FALSE)","v":728}]
[null,"Missouri",5920858,4730,4968921,23164,786726,21904,{"$f":"HLOOKUP(I$7,$I$66:$DJ$120,ROWS($A$10:$A36)+2,FALSE)","v":145226},{"$f":"HLOOKUP(J$7,$I$66:$DJ$120,ROWS($A$10:$A36)+2,FALSE)","v":819},{"$f":"HLOOKUP(K$7,$I$66:$DJ$120,ROWS($A$10:$A36)+2,FALSE)","v":1051},{"$f":"HLOOKUP(L$7,$I$66:$DJ$120,ROWS($A$10:$A36)+2,FALSE)","v":2988},{"$f":"HLOOKUP(M$7,$I$66:$DJ$120,ROWS($A$10:$A36)+2,FALSE)","v":4381},{"$f":"HLOOKUP(N$7,$I$66:$DJ$120,ROWS($A$10:$A36)+2,FALSE)","v":9840},{"$f":"HLOOKUP(O$7,$I$66:$DJ$120,ROWS($A$10:$A36)+2,FALSE)","v":1903},{"$f":"HLOOKUP(P$7,$I$66:$DJ$120,ROWS($A$10:$A36)+2,FALSE)","v":243},{"$f":"HLOOKUP(Q$7,$I$66:$DJ$120,ROWS($A$10:$A36)+2,FALSE)","v":314},{"$f":"HLOOKUP(R$7,$I$66:$DJ$120,ROWS($A$10:$A36)+2,FALSE)","v":478},{"$f":"HLOOKUP(S$7,$I$66:$DJ$120,ROWS($A$10:$A36)+2,FALSE)","v":8317},{"$f":"HLOOKUP(T$7,$I$66:$DJ$120,ROWS($A$10:$A36)+2,FALSE)","v":2492},{"$f":"HLOOKUP(U$7,$I$66:$DJ$120,ROWS($A$10:$A36)+2,FALSE)","v":380},{"$f":"HLOOKUP(V$7,$I$66:$DJ$120,ROWS($A$10:$A36)+2,FALSE)","v":830},{"$f":"HLOOKUP(W$7,$I$66:$DJ$120,ROWS($A$10:$A36)+2,FALSE)","v":21277},{"$f":"HLOOKUP(X$7,$I$66:$DJ$120,ROWS($A$10:$A36)+2,FALSE)","v":3351},{"$f":"HLOOKUP(Y$7,$I$66:$DJ$120,ROWS($A$10:$A36)+2,FALSE)","v":4708},{"$f":"HLOOKUP(Z$7,$I$66:$DJ$120,ROWS($A$10:$A36)+2,FALSE)","v":23427},{"$f":"HLOOKUP(AA$7,$I$66:$DJ$120,ROWS($A$10:$A36)+2,FALSE)","v":2552},{"$f":"HLOOKUP(AB$7,$I$66:$DJ$120,ROWS($A$10:$A36)+2,FALSE)","v":2238},{"$f":"HLOOKUP(AC$7,$I$66:$DJ$120,ROWS($A$10:$A36)+2,FALSE)","v":171},{"$f":"HLOOKUP(AD$7,$I$66:$DJ$120,ROWS($A$10:$A36)+2,FALSE)","v":1359},{"$f":"HLOOKUP(AE$7,$I$66:$DJ$120,ROWS($A$10:$A36)+2,FALSE)","v":1395},{"$f":"HLOOKUP(AF$7,$I$66:$DJ$120,ROWS($A$10:$A36)+2,FALSE)","v":2610},{"$f":"HLOOKUP(AG$7,$I$66:$DJ$120,ROWS($A$10:$A36)+2,FALSE)","v":1701},{"$f":"HLOOKUP(AH$7,$I$66:$DJ$120,ROWS($A$10:$A36)+2,FALSE)","v":1183},{"$f":"HLOOKUP(AI$7,$I$66:$DJ$120,ROWS($A$10:$A36)+2,FALSE)","v":"N/A"},{"$f":"HLOOKUP(AJ$7,$I$66:$DJ$120,ROWS($A$10:$A36)+2,FALSE)","v":220},{"$f":"HLOOKUP(AK$7,$I$66:$DJ$120,ROWS($A$10:$A36)+2,FALSE)","v":2636},{"$f":"HLOOKUP(AL$7,$I$66:$DJ$120,ROWS($A$10:$A36)+2,FALSE)","v":1060},{"$f":"HLOOKUP(AM$7,$I$66:$DJ$120,ROWS($A$10:$A36)+2,FALSE)","v":108},{"$f":"HLOOKUP(AN$7,$I$66:$DJ$120,ROWS($A$10:$A36)+2,FALSE)","v":1320},{"$f":"HLOOKUP(AO$7,$I$66:$DJ$120,ROWS($A$10:$A36)+2,FALSE)","v":150},{"$f":"HLOOKUP(AP$7,$I$66:$DJ$120,ROWS($A$10:$A36)+2,FALSE)","v":2630},{"$f":"HLOOKUP(AQ$7,$I$66:$DJ$120,ROWS($A$10:$A36)+2,FALSE)","v":1825},{"$f":"HLOOKUP(AR$7,$I$66:$DJ$120,ROWS($A$10:$A36)+2,FALSE)","v":848},{"$f":"HLOOKUP(AS$7,$I$66:$DJ$120,ROWS($A$10:$A36)+2,FALSE)","v":2163},{"$f":"HLOOKUP(AT$7,$I$66:$DJ$120,ROWS($A$10:$A36)+2,FALSE)","v":4647},{"$f":"HLOOKUP(AU$7,$I$66:$DJ$120,ROWS($A$10:$A36)+2,FALSE)","v":314},{"$f":"HLOOKUP(AV$7,$I$66:$DJ$120,ROWS($A$10:$A36)+2,FALSE)","v":1639},{"$f":"HLOOKUP(AW$7,$I$66:$DJ$120,ROWS($A$10:$A36)+2,FALSE)","v":0},{"$f":"HLOOKUP(AX$7,$I$66:$DJ$120,ROWS($A$10:$A36)+2,FALSE)","v":954},{"$f":"HLOOKUP(AY$7,$I$66:$DJ$120,ROWS($A$10:$A36)+2,FALSE)","v":512},{"$f":"HLOOKUP(AZ$7,$I$66:$DJ$120,ROWS($A$10:$A36)+2,FALSE)","v":3311},{"$f":"HLOOKUP(BA$7,$I$66:$DJ$120,ROWS($A$10:$A36)+2,FALSE)","v":12884},{"$f":"HLOOKUP(BB$7,$I$66:$DJ$120,ROWS($A$10:$A36)+2,FALSE)","v":1319},{"$f":"HLOOKUP(BC$7,$I$66:$DJ$120,ROWS($A$10:$A36)+2,FALSE)","v":498},{"$f":"HLOOKUP(BD$7,$I$66:$DJ$120,ROWS($A$10:$A36)+2,FALSE)","v":3206},{"$f":"HLOOKUP(BE$7,$I$66:$DJ$120,ROWS($A$10:$A36)+2,FALSE)","v":1107},{"$f":"HLOOKUP(BF$7,$I$66:$DJ$120,ROWS($A$10:$A36)+2,FALSE)","v":177},{"$f":"HLOOKUP(BG$7,$I$66:$DJ$120,ROWS($A$10:$A36)+2,FALSE)","v":1331},{"$f":"HLOOKUP(BH$7,$I$66:$DJ$120,ROWS($A$10:$A36)+2,FALSE)","v":359},{"$f":"HLOOKUP(BI$7,$I$66:$DJ$120,ROWS($A$10:$A36)+2,FALSE)","v":867},{"$f":"HLOOKUP(BJ$7+0.5,$I$66:$DJ$120,ROWS($A$10:$A36)+2,FALSE)","v":7633},{"$f":"HLOOKUP(BK$7+0.5,$I$66:$DJ$120,ROWS($A$10:$A36)+2,FALSE)","v":561},{"$f":"HLOOKUP(BL$7+0.5,$I$66:$DJ$120,ROWS($A$10:$A36)+2,FALSE)","v":822},{"$f":"HLOOKUP(BM$7+0.5,$I$66:$DJ$120,ROWS($A$10:$A36)+2,FALSE)","v":1145},{"$f":"HLOOKUP(BN$7+0.5,$I$66:$DJ$120,ROWS($A$10:$A36)+2,FALSE)","v":1133},{"$f":"HLOOKUP(BO$7+0.5,$I$66:$DJ$120,ROWS($A$10:$A36)+2,FALSE)","v":2218},{"$f":"HLOOKUP(BP$7+0.5,$I$66:$DJ$120,ROWS($A$10:$A36)+2,FALSE)","v":781},{"$f":"HLOOKUP(BQ$7+0.5,$I$66:$DJ$120,ROWS($A$10:$A36)+2,FALSE)","v":282},{"$f":"HLOOKUP(BR$7+0.5,$I$66:$DJ$120,ROWS($A$10:$A36)+2,FALSE)","v":322},{"$f":"HLOOKUP(BS$7+0.5,$I$66:$DJ$120,ROWS($A$10:$A36)+2,FALSE)","v":322},{"$f":"HLOOKUP(BT$7+0.5,$I$66:$DJ$120,ROWS($A$10:$A36)+2,FALSE)","v":2320},{"$f":"HLOOKUP(BU$7+0.5,$I$66:$DJ$120,ROWS($A$10:$A36)+2,FALSE)","v":1119},{"$f":"HLOOKUP(BV$7+0.5,$I$66:$DJ$120,ROWS($A$10:$A36)+2,FALSE)","v":294},{"$f":"HLOOKUP(BW$7+0.5,$I$66:$DJ$120,ROWS($A$10:$A36)+2,FALSE)","v":909},{"$f":"HLOOKUP(BX$7+0.5,$I$66:$DJ$120,ROWS($A$10:$A36)+2,FALSE)","v":3689},{"$f":"HLOOKUP(BY$7+0.5,$I$66:$DJ$120,ROWS($A$10:$A36)+2,FALSE)","v":1123},{"$f":"HLOOKUP(BZ$7+0.5,$I$66:$DJ$120,ROWS($A$10:$A36)+2,FALSE)","v":1328},{"$f":"HLOOKUP(CA$7+0.5,$I$66:$DJ$120,ROWS($A$10:$A36)+2,FALSE)","v":3689},{"$f":"HLOOKUP(CB$7+0.5,$I$66:$DJ$120,ROWS($A$10:$A36)+2,FALSE)","v":1075},{"$f":"HLOOKUP(CC$7+0.5,$I$66:$DJ$120,ROWS($A$10:$A36)+2,FALSE)","v":2007},{"$f":"HLOOKUP(CD$7+0.5,$I$66:$DJ$120,ROWS($A$10:$A36)+2,FALSE)","v":179},{"$f":"HLOOKUP(CE$7+0.5,$I$66:$DJ$120,ROWS($A$10:$A36)+2,FALSE)","v":812},{"$f":"HLOOKUP(CF$7+0.5,$I$66:$DJ$120,ROWS($A$10:$A36)+2,FALSE)","v":931},{"$f":"HLOOKUP(CG$7+0.5,$I$66:$DJ$120,ROWS($A$10:$A36)+2,FALSE)","v":954},{"$f":"HLOOKUP(CH$7+0.5,$I$66:$DJ$120,ROWS($A$10:$A36)+2,FALSE)","v":810},{"$f":"HLOOKUP(CI$7+0.5,$I$66:$DJ$120,ROWS($A$10:$A36)+2,FALSE)","v":510},{"$f":"HLOOKUP(CJ$7+0.5,$I$66:$DJ$120,ROWS($A$10:$A36)+2,FALSE)","v":"N/A"},{"$f":"HLOOKUP(CK$7+0.5,$I$66:$DJ$120,ROWS($A$10:$A36)+2,FALSE)","v":192},{"$f":"HLOOKUP(CL$7+0.5,$I$66:$DJ$120,ROWS($A$10:$A36)+2,FALSE)","v":1240},{"$f":"HLOOKUP(CM$7+0.5,$I$66:$DJ$120,ROWS($A$10:$A36)+2,FALSE)","v":648},{"$f":"HLOOKUP(CN$7+0.5,$I$66:$DJ$120,ROWS($A$10:$A36)+2,FALSE)","v":180},{"$f":"HLOOKUP(CO$7+0.5,$I$66:$DJ$120,ROWS($A$10:$A36)+2,FALSE)","v":804},{"$f":"HLOOKUP(CP$7+0.5,$I$66:$DJ$120,ROWS($A$10:$A36)+2,FALSE)","v":147},{"$f":"HLOOKUP(CQ$7+0.5,$I$66:$DJ$120,ROWS($A$10:$A36)+2,FALSE)","v":1474},{"$f":"HLOOKUP(CR$7+0.5,$I$66:$DJ$120,ROWS($A$10:$A36)+2,FALSE)","v":760},{"$f":"HLOOKUP(CS$7+0.5,$I$66:$DJ$120,ROWS($A$10:$A36)+2,FALSE)","v":1186},{"$f":"HLOOKUP(CT$7+0.5,$I$66:$DJ$120,ROWS($A$10:$A36)+2,FALSE)","v":847},{"$f":"HLOOKUP(CU$7+0.5,$I$66:$DJ$120,ROWS($A$10:$A36)+2,FALSE)","v":1478},{"$f":"HLOOKUP(CV$7+0.5,$I$66:$DJ$120,ROWS($A$10:$A36)+2,FALSE)","v":204},{"$f":"HLOOKUP(CW$7+0.5,$I$66:$DJ$120,ROWS($A$10:$A36)+2,FALSE)","v":755},{"$f":"HLOOKUP(CX$7+0.5,$I$66:$DJ$120,ROWS($A$10:$A36)+2,FALSE)","v":259},{"$f":"HLOOKUP(CY$7+0.5,$I$66:$DJ$120,ROWS($A$10:$A36)+2,FALSE)","v":578},{"$f":"HLOOKUP(CZ$7+0.5,$I$66:$DJ$120,ROWS($A$10:$A36)+2,FALSE)","v":445},{"$f":"HLOOKUP(DA$7+0.5,$I$66:$DJ$120,ROWS($A$10:$A36)+2,FALSE)","v":1272},{"$f":"HLOOKUP(DB$7+0.5,$I$66:$DJ$120,ROWS($A$10:$A36)+2,FALSE)","v":3043},{"$f":"HLOOKUP(DC$7+0.5,$I$66:$DJ$120,ROWS($A$10:$A36)+2,FALSE)","v":664},{"$f":"HLOOKUP(DD$7+0.5,$I$66:$DJ$120,ROWS($A$10:$A36)+2,FALSE)","v":524},{"$f":"HLOOKUP(DE$7+0.5,$I$66:$DJ$120,ROWS($A$10:$A36)+2,FALSE)","v":1413},{"$f":"HLOOKUP(DF$7+0.5,$I$66:$DJ$120,ROWS($A$10:$A36)+2,FALSE)","v":748},{"$f":"HLOOKUP(DG$7+0.5,$I$66:$DJ$120,ROWS($A$10:$A36)+2,FALSE)","v":231},{"$f":"HLOOKUP(DH$7+0.5,$I$66:$DJ$120,ROWS($A$10:$A36)+2,FALSE)","v":693},{"$f":"HLOOKUP(DI$7+0.5,$I$66:$DJ$120,ROWS($A$10:$A36)+2,FALSE)","v":496},{"$f":"HLOOKUP(DJ$7+0.5,$I$66:$DJ$120,ROWS($A$10:$A36)+2,FALSE)","v":658}]
[null,"Montana",978507,1744,821709,7063,117752,6986,{"$f":"HLOOKUP(I$7,$I$66:$DJ$120,ROWS($A$10:$A37)+2,FALSE)","v":35630},{"$f":"HLOOKUP(J$7,$I$66:$DJ$120,ROWS($A$10:$A37)+2,FALSE)","v":212},{"$f":"HLOOKUP(K$7,$I$66:$DJ$120,ROWS($A$10:$A37)+2,FALSE)","v":650},{"$f":"HLOOKUP(L$7,$I$66:$DJ$120,ROWS($A$10:$A37)+2,FALSE)","v":1909},{"$f":"HLOOKUP(M$7,$I$66:$DJ$120,ROWS($A$10:$A37)+2,FALSE)","v":672},{"$f":"HLOOKUP(N$7,$I$66:$DJ$120,ROWS($A$10:$A37)+2,FALSE)","v":5756},{"$f":"HLOOKUP(O$7,$I$66:$DJ$120,ROWS($A$10:$A37)+2,FALSE)","v":2185},{"$f":"HLOOKUP(P$7,$I$66:$DJ$120,ROWS($A$10:$A37)+2,FALSE)","v":128},{"$f":"HLOOKUP(Q$7,$I$66:$DJ$120,ROWS($A$10:$A37)+2,FALSE)","v":71},{"$f":"HLOOKUP(R$7,$I$66:$DJ$120,ROWS($A$10:$A37)+2,FALSE)","v":0},{"$f":"HLOOKUP(S$7,$I$66:$DJ$120,ROWS($A$10:$A37)+2,FALSE)","v":1373},{"$f":"HLOOKUP(T$7,$I$66:$DJ$120,ROWS($A$10:$A37)+2,FALSE)","v":46},{"$f":"HLOOKUP(U$7,$I$66:$DJ$120,ROWS($A$10:$A37)+2,FALSE)","v":0},{"$f":"HLOOKUP(V$7,$I$66:$DJ$120,ROWS($A$10:$A37)+2,FALSE)","v":1458},{"$f":"HLOOKUP(W$7,$I$66:$DJ$120,ROWS($A$10:$A37)+2,FALSE)","v":1094},{"$f":"HLOOKUP(X$7,$I$66:$DJ$120,ROWS($A$10:$A37)+2,FALSE)","v":251},{"$f":"HLOOKUP(Y$7,$I$66:$DJ$120,ROWS($A$10:$A37)+2,FALSE)","v":169},{"$f":"HLOOKUP(Z$7,$I$66:$DJ$120,ROWS($A$10:$A37)+2,FALSE)","v":60},{"$f":"HLOOKUP(AA$7,$I$66:$DJ$120,ROWS($A$10:$A37)+2,FALSE)","v":321},{"$f":"HLOOKUP(AB$7,$I$66:$DJ$120,ROWS($A$10:$A37)+2,FALSE)","v":85},{"$f":"HLOOKUP(AC$7,$I$66:$DJ$120,ROWS($A$10:$A37)+2,FALSE)","v":76},{"$f":"HLOOKUP(AD$7,$I$66:$DJ$120,ROWS($A$10:$A37)+2,FALSE)","v":51},{"$f":"HLOOKUP(AE$7,$I$66:$DJ$120,ROWS($A$10:$A37)+2,FALSE)","v":59},{"$f":"HLOOKUP(AF$7,$I$66:$DJ$120,ROWS($A$10:$A37)+2,FALSE)","v":648},{"$f":"HLOOKUP(AG$7,$I$66:$DJ$120,ROWS($A$10:$A37)+2,FALSE)","v":1323},{"$f":"HLOOKUP(AH$7,$I$66:$DJ$120,ROWS($A$10:$A37)+2,FALSE)","v":242},{"$f":"HLOOKUP(AI$7,$I$66:$DJ$120,ROWS($A$10:$A37)+2,FALSE)","v":564},{"$f":"HLOOKUP(AJ$7,$I$66:$DJ$120,ROWS($A$10:$A37)+2,FALSE)","v":"N/A"},{"$f":"HLOOKUP(AK$7,$I$66:$DJ$120,ROWS($A$10:$A37)+2,FALSE)","v":340},{"$f":"HLOOKUP(AL$7,$I$66:$DJ$120,ROWS($A$10:$A37)+2,FALSE)","v":548},{"$f":"HLOOKUP(AM$7,$I$66:$DJ$120,ROWS($A$10:$A37)+2,FALSE)","v":0},{"$f":"HLOOKUP(AN$7,$I$66:$DJ$120,ROWS($A$10:$A37)+2,FALSE)","v":0},{"$f":"HLOOKUP(AO$7,$I$66:$DJ$120,ROWS($A$10:$A37)+2,FALSE)","v":660},{"$f":"HLOOKUP(AP$7,$I$66:$DJ$120,ROWS($A$10:$A37)+2,FALSE)","v":246},{"$f":"HLOOKUP(AQ$7,$I$66:$DJ$120,ROWS($A$10:$A37)+2,FALSE)","v":1072},{"$f":"HLOOKUP(AR$7,$I$66:$DJ$120,ROWS($A$10:$A37)+2,FALSE)","v":1677},{"$f":"HLOOKUP(AS$7,$I$66:$DJ$120,ROWS($A$10:$A37)+2,FALSE)","v":89},{"$f":"HLOOKUP(AT$7,$I$66:$DJ$120,ROWS($A$10:$A37)+2,FALSE)","v":182},{"$f":"HLOOKUP(AU$7,$I$66:$DJ$120,ROWS($A$10:$A37)+2,FALSE)","v":1620},{"$f":"HLOOKUP(AV$7,$I$66:$DJ$120,ROWS($A$10:$A37)+2,FALSE)","v":419},{"$f":"HLOOKUP(AW$7,$I$66:$DJ$120,ROWS($A$10:$A37)+2,FALSE)","v":0},{"$f":"HLOOKUP(AX$7,$I$66:$DJ$120,ROWS($A$10:$A37)+2,FALSE)","v":110},{"$f":"HLOOKUP(AY$7,$I$66:$DJ$120,ROWS($A$10:$A37)+2,FALSE)","v":295},{"$f":"HLOOKUP(AZ$7,$I$66:$DJ$120,ROWS($A$10:$A37)+2,FALSE)","v":111},{"$f":"HLOOKUP(BA$7,$I$66:$DJ$120,ROWS($A$10:$A37)+2,FALSE)","v":2101},{"$f":"HLOOKUP(BB$7,$I$66:$DJ$120,ROWS($A$10:$A37)+2,FALSE)","v":964},{"$f":"HLOOKUP(BC$7,$I$66:$DJ$120,ROWS($A$10:$A37)+2,FALSE)","v":0},{"$f":"HLOOKUP(BD$7,$I$66:$DJ$120,ROWS($A$10:$A37)+2,FALSE)","v":497},{"$f":"HLOOKUP(BE$7,$I$66:$DJ$120,ROWS($A$10:$A37)+2,FALSE)","v":3250},{"$f":"HLOOKUP(BF$7,$I$66:$DJ$120,ROWS($A$10:$A37)+2,FALSE)","v":0},{"$f":"HLOOKUP(BG$7,$I$66:$DJ$120,ROWS($A$10:$A37)+2,FALSE)","v":357},{"$f":"HLOOKUP(BH$7,$I$66:$DJ$120,ROWS($A$10:$A37)+2,FALSE)","v":1689},{"$f":"HLOOKUP(BI$7,$I$66:$DJ$120,ROWS($A$10:$A37)+2,FALSE)","v":11},{"$f":"HLOOKUP(BJ$7+0.5,$I$66:$DJ$120,ROWS($A$10:$A37)+2,FALSE)","v":3807},{"$f":"HLOOKUP(BK$7+0.5,$I$66:$DJ$120,ROWS($A$10:$A37)+2,FALSE)","v":332},{"$f":"HLOOKUP(BL$7+0.5,$I$66:$DJ$120,ROWS($A$10:$A37)+2,FALSE)","v":561},{"$f":"HLOOKUP(BM$7+0.5,$I$66:$DJ$120,ROWS($A$10:$A37)+2,FALSE)","v":1125},{"$f":"HLOOKUP(BN$7+0.5,$I$66:$DJ$120,ROWS($A$10:$A37)+2,FALSE)","v":487},{"$f":"HLOOKUP(BO$7+0.5,$I$66:$DJ$120,ROWS($A$10:$A37)+2,FALSE)","v":1903},{"$f":"HLOOKUP(BP$7+0.5,$I$66:$DJ$120,ROWS($A$10:$A37)+2,FALSE)","v":870},{"$f":"HLOOKUP(BQ$7+0.5,$I$66:$DJ$120,ROWS($A$10:$A37)+2,FALSE)","v":148},{"$f":"HLOOKUP(BR$7+0.5,$I$66:$DJ$120,ROWS($A$10:$A37)+2,FALSE)","v":120},{"$f":"HLOOKUP(BS$7+0.5,$I$66:$DJ$120,ROWS($A$10:$A37)+2,FALSE)","v":237},{"$f":"HLOOKUP(BT$7+0.5,$I$66:$DJ$120,ROWS($A$10:$A37)+2,FALSE)","v":1173},{"$f":"HLOOKUP(BU$7+0.5,$I$66:$DJ$120,ROWS($A$10:$A37)+2,FALSE)","v":87},{"$f":"HLOOKUP(BV$7+0.5,$I$66:$DJ$120,ROWS($A$10:$A37)+2,FALSE)","v":237},{"$f":"HLOOKUP(BW$7+0.5,$I$66:$DJ$120,ROWS($A$10:$A37)+2,FALSE)","v":859},{"$f":"HLOOKUP(BX$7+0.5,$I$66:$DJ$120,ROWS($A$10:$A37)+2,FALSE)","v":789},{"$f":"HLOOKUP(BY$7+0.5,$I$66:$DJ$120,ROWS($A$10:$A37)+2,FALSE)","v":233},{"$f":"HLOOKUP(BZ$7+0.5,$I$66:$DJ$120,ROWS($A$10:$A37)+2,FALSE)","v":198},{"$f":"HLOOKUP(CA$7+0.5,$I$66:$DJ$120,ROWS($A$10:$A37)+2,FALSE)","v":93},{"$f":"HLOOKUP(CB$7+0.5,$I$66:$DJ$120,ROWS($A$10:$A37)+2,FALSE)","v":490},{"$f":"HLOOKUP(CC$7+0.5,$I$66:$DJ$120,ROWS($A$10:$A37)+2,FALSE)","v":118},{"$f":"HLOOKUP(CD$7+0.5,$I$66:$DJ$120,ROWS($A$10:$A37)+2,FALSE)","v":102},{"$f":"HLOOKUP(CE$7+0.5,$I$66:$DJ$120,ROWS($A$10:$A37)+2,FALSE)","v":86},{"$f":"HLOOKUP(CF$7+0.5,$I$66:$DJ$120,ROWS($A$10:$A37)+2,FALSE)","v":97},{"$f":"HLOOKUP(CG$7+0.5,$I$66:$DJ$120,ROWS($A$10:$A37)+2,FALSE)","v":534},{"$f":"HLOOKUP(CH$7+0.5,$I$66:$DJ$120,ROWS($A$10:$A37)+2,FALSE)","v":603},{"$f":"HLOOKUP(CI$7+0.5,$I$66:$DJ$120,ROWS($A$10:$A37)+2,FALSE)","v":356},{"$f":"HLOOKUP(CJ$7+0.5,$I$66:$DJ$120,ROWS($A$10:$A37)+2,FALSE)","v":481},{"$f":"HLOOKUP(CK$7+0.5,$I$66:$DJ$120,ROWS($A$10:$A37)+2,FALSE)","v":"N/A"},{"$f":"HLOOKUP(CL$7+0.5,$I$66:$DJ$120,ROWS($A$10:$A37)+2,FALSE)","v":424},{"$f":"HLOOKUP(CM$7+0.5,$I$66:$DJ$120,ROWS($A$10:$A37)+2,FALSE)","v":386},{"$f":"HLOOKUP(CN$7+0.5,$I$66:$DJ$120,ROWS($A$10:$A37)+2,FALSE)","v":237},{"$f":"HLOOKUP(CO$7+0.5,$I$66:$DJ$120,ROWS($A$10:$A37)+2,FALSE)","v":237},{"$f":"HLOOKUP(CP$7+0.5,$I$66:$DJ$120,ROWS($A$10:$A37)+2,FALSE)","v":688},{"$f":"HLOOKUP(CQ$7+0.5,$I$66:$DJ$120,ROWS($A$10:$A37)+2,FALSE)","v":282},{"$f":"HLOOKUP(CR$7+0.5,$I$66:$DJ$120,ROWS($A$10:$A37)+2,FALSE)","v":1127},{"$f":"HLOOKUP(CS$7+0.5,$I$66:$DJ$120,ROWS($A$10:$A37)+2,FALSE)","v":1012},{"$f":"HLOOKUP(CT$7+0.5,$I$66:$DJ$120,ROWS($A$10:$A37)+2,FALSE)","v":118},{"$f":"HLOOKUP(CU$7+0.5,$I$66:$DJ$120,ROWS($A$10:$A37)+2,FALSE)","v":174},{"$f":"HLOOKUP(CV$7+0.5,$I$66:$DJ$120,ROWS($A$10:$A37)+2,FALSE)","v":861},{"$f":"HLOOKUP(CW$7+0.5,$I$66:$DJ$120,ROWS($A$10:$A37)+2,FALSE)","v":319},{"$f":"HLOOKUP(CX$7+0.5,$I$66:$DJ$120,ROWS($A$10:$A37)+2,FALSE)","v":237},{"$f":"HLOOKUP(CY$7+0.5,$I$66:$DJ$120,ROWS($A$10:$A37)+2,FALSE)","v":150},{"$f":"HLOOKUP(CZ$7+0.5,$I$66:$DJ$120,ROWS($A$10:$A37)+2,FALSE)","v":258},{"$f":"HLOOKUP(DA$7+0.5,$I$66:$DJ$120,ROWS($A$10:$A37)+2,FALSE)","v":193},{"$f":"HLOOKUP(DB$7+0.5,$I$66:$DJ$120,ROWS($A$10:$A37)+2,FALSE)","v":1013},{"$f":"HLOOKUP(DC$7+0.5,$I$66:$DJ$120,ROWS($A$10:$A37)+2,FALSE)","v":618},{"$f":"HLOOKUP(DD$7+0.5,$I$66:$DJ$120,ROWS($A$10:$A37)+2,FALSE)","v":237},{"$f":"HLOOKUP(DE$7+0.5,$I$66:$DJ$120,ROWS($A$10:$A37)+2,FALSE)","v":401},{"$f":"HLOOKUP(DF$7+0.5,$I$66:$DJ$120,ROWS($A$10:$A37)+2,FALSE)","v":1281},{"$f":"HLOOKUP(DG$7+0.5,$I$66:$DJ$120,ROWS($A$10:$A37)+2,FALSE)","v":237},{"$f":"HLOOKUP(DH$7+0.5,$I$66:$DJ$120,ROWS($A$10:$A37)+2,FALSE)","v":267},{"$f":"HLOOKUP(DI$7+0.5,$I$66:$DJ$120,ROWS($A$10:$A37)+2,FALSE)","v":672},{"$f":"HLOOKUP(DJ$7+0.5,$I$66:$DJ$120,ROWS($A$10:$A37)+2,FALSE)","v":19}]
[null,"Nebraska",1802697,2153,1497138,11336,247005,9960,{"$f":"HLOOKUP(I$7,$I$66:$DJ$120,ROWS($A$10:$A38)+2,FALSE)","v":51290},{"$f":"HLOOKUP(J$7,$I$66:$DJ$120,ROWS($A$10:$A38)+2,FALSE)","v":232},{"$f":"HLOOKUP(K$7,$I$66:$DJ$120,ROWS($A$10:$A38)+2,FALSE)","v":35},{"$f":"HLOOKUP(L$7,$I$66:$DJ$120,ROWS($A$10:$A38)+2,FALSE)","v":2322},{"$f":"HLOOKUP(M$7,$I$66:$DJ$120,ROWS($A$10:$A38)+2,FALSE)","v":674},{"$f":"HLOOKUP(N$7,$I$66:$DJ$120,ROWS($A$10:$A38)+2,FALSE)","v":4430},{"$f":"HLOOKUP(O$7,$I$66:$DJ$120,ROWS($A$10:$A38)+2,FALSE)","v":4182},{"$f":"HLOOKUP(P$7,$I$66:$DJ$120,ROWS($A$10:$A38)+2,FALSE)","v":361},{"$f":"HLOOKUP(Q$7,$I$66:$DJ$120,ROWS($A$10:$A38)+2,FALSE)","v":177},{"$f":"HLOOKUP(R$7,$I$66:$DJ$120,ROWS($A$10:$A38)+2,FALSE)","v":0},{"$f":"HLOOKUP(S$7,$I$66:$DJ$120,ROWS($A$10:$A38)+2,FALSE)","v":1775},{"$f":"HLOOKUP(T$7,$I$66:$DJ$120,ROWS($A$10:$A38)+2,FALSE)","v":1202},{"$f":"HLOOKUP(U$7,$I$66:$DJ$120,ROWS($A$10:$A38)+2,FALSE)","v":257},{"$f":"HLOOKUP(V$7,$I$66:$DJ$120,ROWS($A$10:$A38)+2,FALSE)","v":127},{"$f":"HLOOKUP(W$7,$I$66:$DJ$120,ROWS($A$10:$A38)+2,FALSE)","v":1820},{"$f":"HLOOKUP(X$7,$I$66:$DJ$120,ROWS($A$10:$A38)+2,FALSE)","v":639},{"$f":"HLOOKUP(Y$7,$I$66:$DJ$120,ROWS($A$10:$A38)+2,FALSE)","v":5536},{"$f":"HLOOKUP(Z$7,$I$66:$DJ$120,ROWS($A$10:$A38)+2,FALSE)","v":2484},{"$f":"HLOOKUP(AA$7,$I$66:$DJ$120,ROWS($A$10:$A38)+2,FALSE)","v":153},{"$f":"HLOOKUP(AB$7,$I$66:$DJ$120,ROWS($A$10:$A38)+2,FALSE)","v":89},{"$f":"HLOOKUP(AC$7,$I$66:$DJ$120,ROWS($A$10:$A38)+2,FALSE)","v":0},{"$f":"HLOOKUP(AD$7,$I$66:$DJ$120,ROWS($A$10:$A38)+2,FALSE)","v":77},{"$f":"HLOOKUP(AE$7,$I$66:$DJ$120,ROWS($A$10:$A38)+2,FALSE)","v":100},{"$f":"HLOOKUP(AF$7,$I$66:$DJ$120,ROWS($A$10:$A38)+2,FALSE)","v":726},{"$f":"HLOOKUP(AG$7,$I$66:$DJ$120,ROWS($A$10:$A38)+2,FALSE)","v":2254},{"$f":"HLOOKUP(AH$7,$I$66:$DJ$120,ROWS($A$10:$A38)+2,FALSE)","v":823},{"$f":"HLOOKUP(AI$7,$I$66:$DJ$120,ROWS($A$10:$A38)+2,FALSE)","v":2723},{"$f":"HLOOKUP(AJ$7,$I$66:$DJ$120,ROWS($A$10:$A38)+2,FALSE)","v":112},{"$f":"HLOOKUP(AK$7,$I$66:$DJ$120,ROWS($A$10:$A38)+2,FALSE)","v":"N/A"},{"$f":"HLOOKUP(AL$7,$I$66:$DJ$120,ROWS($A$10:$A38)+2,FALSE)","v":232},{"$f":"HLOOKUP(AM$7,$I$66:$DJ$120,ROWS($A$10:$A38)+2,FALSE)","v":0},{"$f":"HLOOKUP(AN$7,$I$66:$DJ$120,ROWS($A$10:$A38)+2,FALSE)","v":143},{"$f":"HLOOKUP(AO$7,$I$66:$DJ$120,ROWS($A$10:$A38)+2,FALSE)","v":831},{"$f":"HLOOKUP(AP$7,$I$66:$DJ$120,ROWS($A$10:$A38)+2,FALSE)","v":111},{"$f":"HLOOKUP(AQ$7,$I$66:$DJ$120,ROWS($A$10:$A38)+2,FALSE)","v":442},{"$f":"HLOOKUP(AR$7,$I$66:$DJ$120,ROWS($A$10:$A38)+2,FALSE)","v":777},{"$f":"HLOOKUP(AS$7,$I$66:$DJ$120,ROWS($A$10:$A38)+2,FALSE)","v":1232},{"$f":"HLOOKUP(AT$7,$I$66:$DJ$120,ROWS($A$10:$A38)+2,FALSE)","v":702},{"$f":"HLOOKUP(AU$7,$I$66:$DJ$120,ROWS($A$10:$A38)+2,FALSE)","v":506},{"$f":"HLOOKUP(AV$7,$I$66:$DJ$120,ROWS($A$10:$A38)+2,FALSE)","v":345},{"$f":"HLOOKUP(AW$7,$I$66:$DJ$120,ROWS($A$10:$A38)+2,FALSE)","v":0},{"$f":"HLOOKUP(AX$7,$I$66:$DJ$120,ROWS($A$10:$A38)+2,FALSE)","v":65},{"$f":"HLOOKUP(AY$7,$I$66:$DJ$120,ROWS($A$10:$A38)+2,FALSE)","v":2936},{"$f":"HLOOKUP(AZ$7,$I$66:$DJ$120,ROWS($A$10:$A38)+2,FALSE)","v":77},{"$f":"HLOOKUP(BA$7,$I$66:$DJ$120,ROWS($A$10:$A38)+2,FALSE)","v":4445},{"$f":"HLOOKUP(BB$7,$I$66:$DJ$120,ROWS($A$10:$A38)+2,FALSE)","v":537},{"$f":"HLOOKUP(BC$7,$I$66:$DJ$120,ROWS($A$10:$A38)+2,FALSE)","v":0},{"$f":"HLOOKUP(BD$7,$I$66:$DJ$120,ROWS($A$10:$A38)+2,FALSE)","v":772},{"$f":"HLOOKUP(BE$7,$I$66:$DJ$120,ROWS($A$10:$A38)+2,FALSE)","v":1230},{"$f":"HLOOKUP(BF$7,$I$66:$DJ$120,ROWS($A$10:$A38)+2,FALSE)","v":73},{"$f":"HLOOKUP(BG$7,$I$66:$DJ$120,ROWS($A$10:$A38)+2,FALSE)","v":1046},{"$f":"HLOOKUP(BH$7,$I$66:$DJ$120,ROWS($A$10:$A38)+2,FALSE)","v":1478},{"$f":"HLOOKUP(BI$7,$I$66:$DJ$120,ROWS($A$10:$A38)+2,FALSE)","v":0},{"$f":"HLOOKUP(BJ$7+0.5,$I$66:$DJ$120,ROWS($A$10:$A38)+2,FALSE)","v":4521},{"$f":"HLOOKUP(BK$7+0.5,$I$66:$DJ$120,ROWS($A$10:$A38)+2,FALSE)","v":262},{"$f":"HLOOKUP(BL$7+0.5,$I$66:$DJ$120,ROWS($A$10:$A38)+2,FALSE)","v":46},{"$f":"HLOOKUP(BM$7+0.5,$I$66:$DJ$120,ROWS($A$10:$A38)+2,FALSE)","v":1501},{"$f":"HLOOKUP(BN$7+0.5,$I$66:$DJ$120,ROWS($A$10:$A38)+2,FALSE)","v":587},{"$f":"HLOOKUP(BO$7+0.5,$I$66:$DJ$120,ROWS($A$10:$A38)+2,FALSE)","v":1419},{"$f":"HLOOKUP(BP$7+0.5,$I$66:$DJ$120,ROWS($A$10:$A38)+2,FALSE)","v":1393},{"$f":"HLOOKUP(BQ$7+0.5,$I$66:$DJ$120,ROWS($A$10:$A38)+2,FALSE)","v":562},{"$f":"HLOOKUP(BR$7+0.5,$I$66:$DJ$120,ROWS($A$10:$A38)+2,FALSE)","v":235},{"$f":"HLOOKUP(BS$7+0.5,$I$66:$DJ$120,ROWS($A$10:$A38)+2,FALSE)","v":228},{"$f":"HLOOKUP(BT$7+0.5,$I$66:$DJ$120,ROWS($A$10:$A38)+2,FALSE)","v":992},{"$f":"HLOOKUP(BU$7+0.5,$I$66:$DJ$120,ROWS($A$10:$A38)+2,FALSE)","v":870},{"$f":"HLOOKUP(BV$7+0.5,$I$66:$DJ$120,ROWS($A$10:$A38)+2,FALSE)","v":213},{"$f":"HLOOKUP(BW$7+0.5,$I$66:$DJ$120,ROWS($A$10:$A38)+2,FALSE)","v":135},{"$f":"HLOOKUP(BX$7+0.5,$I$66:$DJ$120,ROWS($A$10:$A38)+2,FALSE)","v":1218},{"$f":"HLOOKUP(BY$7+0.5,$I$66:$DJ$120,ROWS($A$10:$A38)+2,FALSE)","v":453},{"$f":"HLOOKUP(BZ$7+0.5,$I$66:$DJ$120,ROWS($A$10:$A38)+2,FALSE)","v":1473},{"$f":"HLOOKUP(CA$7+0.5,$I$66:$DJ$120,ROWS($A$10:$A38)+2,FALSE)","v":869},{"$f":"HLOOKUP(CB$7+0.5,$I$66:$DJ$120,ROWS($A$10:$A38)+2,FALSE)","v":166},{"$f":"HLOOKUP(CC$7+0.5,$I$66:$DJ$120,ROWS($A$10:$A38)+2,FALSE)","v":166},{"$f":"HLOOKUP(CD$7+0.5,$I$66:$DJ$120,ROWS($A$10:$A38)+2,FALSE)","v":228},{"$f":"HLOOKUP(CE$7+0.5,$I$66:$DJ$120,ROWS($A$10:$A38)+2,FALSE)","v":100},{"$f":"HLOOKUP(CF$7+0.5,$I$66:$DJ$120,ROWS($A$10:$A38)+2,FALSE)","v":167},{"$f":"HLOOKUP(CG$7+0.5,$I$66:$DJ$120,ROWS($A$10:$A38)+2,FALSE)","v":440},{"$f":"HLOOKUP(CH$7+0.5,$I$66:$DJ$120,ROWS($A$10:$A38)+2,FALSE)","v":1114},{"$f":"HLOOKUP(CI$7+0.5,$I$66:$DJ$120,ROWS($A$10:$A38)+2,FALSE)","v":865},{"$f":"HLOOKUP(CJ$7+0.5,$I$66:$DJ$120,ROWS($A$10:$A38)+2,FALSE)","v":1319},{"$f":"HLOOKUP(CK$7+0.5,$I$66:$DJ$120,ROWS($A$10:$A38)+2,FALSE)","v":160},{"$f":"HLOOKUP(CL$7+0.5,$I$66:$DJ$120,ROWS($A$10:$A38)+2,FALSE)","v":"N/A"},{"$f":"HLOOKUP(CM$7+0.5,$I$66:$DJ$120,ROWS($A$10:$A38)+2,FALSE)","v":180},{"$f":"HLOOKUP(CN$7+0.5,$I$66:$DJ$120,ROWS($A$10:$A38)+2,FALSE)","v":228},{"$f":"HLOOKUP(CO$7+0.5,$I$66:$DJ$120,ROWS($A$10:$A38)+2,FALSE)","v":171},{"$f":"HLOOKUP(CP$7+0.5,$I$66:$DJ$120,ROWS($A$10:$A38)+2,FALSE)","v":805},{"$f":"HLOOKUP(CQ$7+0.5,$I$66:$DJ$120,ROWS($A$10:$A38)+2,FALSE)","v":115},{"$f":"HLOOKUP(CR$7+0.5,$I$66:$DJ$120,ROWS($A$10:$A38)+2,FALSE)","v":284},{"$f":"HLOOKUP(CS$7+0.5,$I$66:$DJ$120,ROWS($A$10:$A38)+2,FALSE)","v":978},{"$f":"HLOOKUP(CT$7+0.5,$I$66:$DJ$120,ROWS($A$10:$A38)+2,FALSE)","v":966},{"$f":"HLOOKUP(CU$7+0.5,$I$66:$DJ$120,ROWS($A$10:$A38)+2,FALSE)","v":393},{"$f":"HLOOKUP(CV$7+0.5,$I$66:$DJ$120,ROWS($A$10:$A38)+2,FALSE)","v":385},{"$f":"HLOOKUP(CW$7+0.5,$I$66:$DJ$120,ROWS($A$10:$A38)+2,FALSE)","v":347},{"$f":"HLOOKUP(CX$7+0.5,$I$66:$DJ$120,ROWS($A$10:$A38)+2,FALSE)","v":228},{"$f":"HLOOKUP(CY$7+0.5,$I$66:$DJ$120,ROWS($A$10:$A38)+2,FALSE)","v":105},{"$f":"HLOOKUP(CZ$7+0.5,$I$66:$DJ$120,ROWS($A$10:$A38)+2,FALSE)","v":1369},{"$f":"HLOOKUP(DA$7+0.5,$I$66:$DJ$120,ROWS($A$10:$A38)+2,FALSE)","v":129},{"$f":"HLOOKUP(DB$7+0.5,$I$66:$DJ$120,ROWS($A$10:$A38)+2,FALSE)","v":1562},{"$f":"HLOOKUP(DC$7+0.5,$I$66:$DJ$120,ROWS($A$10:$A38)+2,FALSE)","v":495},{"$f":"HLOOKUP(DD$7+0.5,$I$66:$DJ$120,ROWS($A$10:$A38)+2,FALSE)","v":228},{"$f":"HLOOKUP(DE$7+0.5,$I$66:$DJ$120,ROWS($A$10:$A38)+2,FALSE)","v":604},{"$f":"HLOOKUP(DF$7+0.5,$I$66:$DJ$120,ROWS($A$10:$A38)+2,FALSE)","v":793},{"$f":"HLOOKUP(DG$7+0.5,$I$66:$DJ$120,ROWS($A$10:$A38)+2,FALSE)","v":89},{"$f":"HLOOKUP(DH$7+0.5,$I$66:$DJ$120,ROWS($A$10:$A38)+2,FALSE)","v":585},{"$f":"HLOOKUP(DI$7+0.5,$I$66:$DJ$120,ROWS($A$10:$A38)+2,FALSE)","v":545},{"$f":"HLOOKUP(DJ$7+0.5,$I$66:$DJ$120,ROWS($A$10:$A38)+2,FALSE)","v":228}]
[null,"Nevada",2667364,3181,2030410,22983,517261,21311,{"$f":"HLOOKUP(I$7,$I$66:$DJ$120,ROWS($A$10:$A39)+2,FALSE)","v":102677},{"$f":"HLOOKUP(J$7,$I$66:$DJ$120,ROWS($A$10:$A39)+2,FALSE)","v":150},{"$f":"HLOOKUP(K$7,$I$66:$DJ$120,ROWS($A$10:$A39)+2,FALSE)","v":511},{"$f":"HLOOKUP(L$7,$I$66:$DJ$120,ROWS($A$10:$A39)+2,FALSE)","v":7818},{"$f":"HLOOKUP(M$7,$I$66:$DJ$120,ROWS($A$10:$A39)+2,FALSE)","v":530},{"$f":"HLOOKUP(N$7,$I$66:$DJ$120,ROWS($A$10:$A39)+2,FALSE)","v":35472},{"$f":"HLOOKUP(O$7,$I$66:$DJ$120,ROWS($A$10:$A39)+2,FALSE)","v":2935},{"$f":"HLOOKUP(P$7,$I$66:$DJ$120,ROWS($A$10:$A39)+2,FALSE)","v":648},{"$f":"HLOOKUP(Q$7,$I$66:$DJ$120,ROWS($A$10:$A39)+2,FALSE)","v":0},{"$f":"HLOOKUP(R$7,$I$66:$DJ$120,ROWS($A$10:$A39)+2,FALSE)","v":0},{"$f":"HLOOKUP(S$7,$I$66:$DJ$120,ROWS($A$10:$A39)+2,FALSE)","v":3579},{"$f":"HLOOKUP(T$7,$I$66:$DJ$120,ROWS($A$10:$A39)+2,FALSE)","v":1187},{"$f":"HLOOKUP(U$7,$I$66:$DJ$120,ROWS($A$10:$A39)+2,FALSE)","v":4363},{"$f":"HLOOKUP(V$7,$I$66:$DJ$120,ROWS($A$10:$A39)+2,FALSE)","v":1686},{"$f":"HLOOKUP(W$7,$I$66:$DJ$120,ROWS($A$10:$A39)+2,FALSE)","v":1711},{"$f":"HLOOKUP(X$7,$I$66:$DJ$120,ROWS($A$10:$A39)+2,FALSE)","v":739},{"$f":"HLOOKUP(Y$7,$I$66:$DJ$120,ROWS($A$10:$A39)+2,FALSE)","v":543},{"$f":"HLOOKUP(Z$7,$I$66:$DJ$120,ROWS($A$10:$A39)+2,FALSE)","v":453},{"$f":"HLOOKUP(AA$7,$I$66:$DJ$120,ROWS($A$10:$A39)+2,FALSE)","v":569},{"$f":"HLOOKUP(AB$7,$I$66:$DJ$120,ROWS($A$10:$A39)+2,FALSE)","v":733},{"$f":"HLOOKUP(AC$7,$I$66:$DJ$120,ROWS($A$10:$A39)+2,FALSE)","v":0},{"$f":"HLOOKUP(AD$7,$I$66:$DJ$120,ROWS($A$10:$A39)+2,FALSE)","v":485},{"$f":"HLOOKUP(AE$7,$I$66:$DJ$120,ROWS($A$10:$A39)+2,FALSE)","v":1275},{"$f":"HLOOKUP(AF$7,$I$66:$DJ$120,ROWS($A$10:$A39)+2,FALSE)","v":2202},{"$f":"HLOOKUP(AG$7,$I$66:$DJ$120,ROWS($A$10:$A39)+2,FALSE)","v":805},{"$f":"HLOOKUP(AH$7,$I$66:$DJ$120,ROWS($A$10:$A39)+2,FALSE)","v":946},{"$f":"HLOOKUP(AI$7,$I$66:$DJ$120,ROWS($A$10:$A39)+2,FALSE)","v":1747},{"$f":"HLOOKUP(AJ$7,$I$66:$DJ$120,ROWS($A$10:$A39)+2,FALSE)","v":770},{"$f":"HLOOKUP(AK$7,$I$66:$DJ$120,ROWS($A$10:$A39)+2,FALSE)","v":1129},{"$f":"HLOOKUP(AL$7,$I$66:$DJ$120,ROWS($A$10:$A39)+2,FALSE)","v":"N/A"},{"$f":"HLOOKUP(AM$7,$I$66:$DJ$120,ROWS($A$10:$A39)+2,FALSE)","v":59},{"$f":"HLOOKUP(AN$7,$I$66:$DJ$120,ROWS($A$10:$A39)+2,FALSE)","v":1528},{"$f":"HLOOKUP(AO$7,$I$66:$DJ$120,ROWS($A$10:$A39)+2,FALSE)","v":1220},{"$f":"HLOOKUP(AP$7,$I$66:$DJ$120,ROWS($A$10:$A39)+2,FALSE)","v":1204},{"$f":"HLOOKUP(AQ$7,$I$66:$DJ$120,ROWS($A$10:$A39)+2,FALSE)","v":957},{"$f":"HLOOKUP(AR$7,$I$66:$DJ$120,ROWS($A$10:$A39)+2,FALSE)","v":37},{"$f":"HLOOKUP(AS$7,$I$66:$DJ$120,ROWS($A$10:$A39)+2,FALSE)","v":1554},{"$f":"HLOOKUP(AT$7,$I$66:$DJ$120,ROWS($A$10:$A39)+2,FALSE)","v":886},{"$f":"HLOOKUP(AU$7,$I$66:$DJ$120,ROWS($A$10:$A39)+2,FALSE)","v":2629},{"$f":"HLOOKUP(AV$7,$I$66:$DJ$120,ROWS($A$10:$A39)+2,FALSE)","v":1567},{"$f":"HLOOKUP(AW$7,$I$66:$DJ$120,ROWS($A$10:$A39)+2,FALSE)","v":167},{"$f":"HLOOKUP(AX$7,$I$66:$DJ$120,ROWS($A$10:$A39)+2,FALSE)","v":312},{"$f":"HLOOKUP(AY$7,$I$66:$DJ$120,ROWS($A$10:$A39)+2,FALSE)","v":1203},{"$f":"HLOOKUP(AZ$7,$I$66:$DJ$120,ROWS($A$10:$A39)+2,FALSE)","v":706},{"$f":"HLOOKUP(BA$7,$I$66:$DJ$120,ROWS($A$10:$A39)+2,FALSE)","v":5224},{"$f":"HLOOKUP(BB$7,$I$66:$DJ$120,ROWS($A$10:$A39)+2,FALSE)","v":4500},{"$f":"HLOOKUP(BC$7,$I$66:$DJ$120,ROWS($A$10:$A39)+2,FALSE)","v":197},{"$f":"HLOOKUP(BD$7,$I$66:$DJ$120,ROWS($A$10:$A39)+2,FALSE)","v":1832},{"$f":"HLOOKUP(BE$7,$I$66:$DJ$120,ROWS($A$10:$A39)+2,FALSE)","v":3290},{"$f":"HLOOKUP(BF$7,$I$66:$DJ$120,ROWS($A$10:$A39)+2,FALSE)","v":56},{"$f":"HLOOKUP(BG$7,$I$66:$DJ$120,ROWS($A$10:$A39)+2,FALSE)","v":419},{"$f":"HLOOKUP(BH$7,$I$66:$DJ$120,ROWS($A$10:$A39)+2,FALSE)","v":144},{"$f":"HLOOKUP(BI$7,$I$66:$DJ$120,ROWS($A$10:$A39)+2,FALSE)","v":502},{"$f":"HLOOKUP(BJ$7+0.5,$I$66:$DJ$120,ROWS($A$10:$A39)+2,FALSE)","v":8786},{"$f":"HLOOKUP(BK$7+0.5,$I$66:$DJ$120,ROWS($A$10:$A39)+2,FALSE)","v":246},{"$f":"HLOOKUP(BL$7+0.5,$I$66:$DJ$120,ROWS($A$10:$A39)+2,FALSE)","v":659},{"$f":"HLOOKUP(BM$7+0.5,$I$66:$DJ$120,ROWS($A$10:$A39)+2,FALSE)","v":2342},{"$f":"HLOOKUP(BN$7+0.5,$I$66:$DJ$120,ROWS($A$10:$A39)+2,FALSE)","v":421},{"$f":"HLOOKUP(BO$7+0.5,$I$66:$DJ$120,ROWS($A$10:$A39)+2,FALSE)","v":5381},{"$f":"HLOOKUP(BP$7+0.5,$I$66:$DJ$120,ROWS($A$10:$A39)+2,FALSE)","v":1969},{"$f":"HLOOKUP(BQ$7+0.5,$I$66:$DJ$120,ROWS($A$10:$A39)+2,FALSE)","v":868},{"$f":"HLOOKUP(BR$7+0.5,$I$66:$DJ$120,ROWS($A$10:$A39)+2,FALSE)","v":309},{"$f":"HLOOKUP(BS$7+0.5,$I$66:$DJ$120,ROWS($A$10:$A39)+2,FALSE)","v":309},{"$f":"HLOOKUP(BT$7+0.5,$I$66:$DJ$120,ROWS($A$10:$A39)+2,FALSE)","v":2182},{"$f":"HLOOKUP(BU$7+0.5,$I$66:$DJ$120,ROWS($A$10:$A39)+2,FALSE)","v":1333},{"$f":"HLOOKUP(BV$7+0.5,$I$66:$DJ$120,ROWS($A$10:$A39)+2,FALSE)","v":2688},{"$f":"HLOOKUP(BW$7+0.5,$I$66:$DJ$120,ROWS($A$10:$A39)+2,FALSE)","v":984},{"$f":"HLOOKUP(BX$7+0.5,$I$66:$DJ$120,ROWS($A$10:$A39)+2,FALSE)","v":927},{"$f":"HLOOKUP(BY$7+0.5,$I$66:$DJ$120,ROWS($A$10:$A39)+2,FALSE)","v":545},{"$f":"HLOOKUP(BZ$7+0.5,$I$66:$DJ$120,ROWS($A$10:$A39)+2,FALSE)","v":371},{"$f":"HLOOKUP(CA$7+0.5,$I$66:$DJ$120,ROWS($A$10:$A39)+2,FALSE)","v":654},{"$f":"HLOOKUP(CB$7+0.5,$I$66:$DJ$120,ROWS($A$10:$A39)+2,FALSE)","v":668},{"$f":"HLOOKUP(CC$7+0.5,$I$66:$DJ$120,ROWS($A$10:$A39)+2,FALSE)","v":757},{"$f":"HLOOKUP(CD$7+0.5,$I$66:$DJ$120,ROWS($A$10:$A39)+2,FALSE)","v":309},{"$f":"HLOOKUP(CE$7+0.5,$I$66:$DJ$120,ROWS($A$10:$A39)+2,FALSE)","v":402},{"$f":"HLOOKUP(CF$7+0.5,$I$66:$DJ$120,ROWS($A$10:$A39)+2,FALSE)","v":752},{"$f":"HLOOKUP(CG$7+0.5,$I$66:$DJ$120,ROWS($A$10:$A39)+2,FALSE)","v":861},{"$f":"HLOOKUP(CH$7+0.5,$I$66:$DJ$120,ROWS($A$10:$A39)+2,FALSE)","v":528},{"$f":"HLOOKUP(CI$7+0.5,$I$66:$DJ$120,ROWS($A$10:$A39)+2,FALSE)","v":748},{"$f":"HLOOKUP(CJ$7+0.5,$I$66:$DJ$120,ROWS($A$10:$A39)+2,FALSE)","v":1218},{"$f":"HLOOKUP(CK$7+0.5,$I$66:$DJ$120,ROWS($A$10:$A39)+2,FALSE)","v":742},{"$f":"HLOOKUP(CL$7+0.5,$I$66:$DJ$120,ROWS($A$10:$A39)+2,FALSE)","v":951},{"$f":"HLOOKUP(CM$7+0.5,$I$66:$DJ$120,ROWS($A$10:$A39)+2,FALSE)","v":"N/A"},{"$f":"HLOOKUP(CN$7+0.5,$I$66:$DJ$120,ROWS($A$10:$A39)+2,FALSE)","v":97},{"$f":"HLOOKUP(CO$7+0.5,$I$66:$DJ$120,ROWS($A$10:$A39)+2,FALSE)","v":1205},{"$f":"HLOOKUP(CP$7+0.5,$I$66:$DJ$120,ROWS($A$10:$A39)+2,FALSE)","v":715},{"$f":"HLOOKUP(CQ$7+0.5,$I$66:$DJ$120,ROWS($A$10:$A39)+2,FALSE)","v":753},{"$f":"HLOOKUP(CR$7+0.5,$I$66:$DJ$120,ROWS($A$10:$A39)+2,FALSE)","v":531},{"$f":"HLOOKUP(CS$7+0.5,$I$66:$DJ$120,ROWS($A$10:$A39)+2,FALSE)","v":64},{"$f":"HLOOKUP(CT$7+0.5,$I$66:$DJ$120,ROWS($A$10:$A39)+2,FALSE)","v":852},{"$f":"HLOOKUP(CU$7+0.5,$I$66:$DJ$120,ROWS($A$10:$A39)+2,FALSE)","v":600},{"$f":"HLOOKUP(CV$7+0.5,$I$66:$DJ$120,ROWS($A$10:$A39)+2,FALSE)","v":1056},{"$f":"HLOOKUP(CW$7+0.5,$I$66:$DJ$120,ROWS($A$10:$A39)+2,FALSE)","v":752},{"$f":"HLOOKUP(CX$7+0.5,$I$66:$DJ$120,ROWS($A$10:$A39)+2,FALSE)","v":223},{"$f":"HLOOKUP(CY$7+0.5,$I$66:$DJ$120,ROWS($A$10:$A39)+2,FALSE)","v":291},{"$f":"HLOOKUP(CZ$7+0.5,$I$66:$DJ$120,ROWS($A$10:$A39)+2,FALSE)","v":803},{"$f":"HLOOKUP(DA$7+0.5,$I$66:$DJ$120,ROWS($A$10:$A39)+2,FALSE)","v":681},{"$f":"HLOOKUP(DB$7+0.5,$I$66:$DJ$120,ROWS($A$10:$A39)+2,FALSE)","v":2241},{"$f":"HLOOKUP(DC$7+0.5,$I$66:$DJ$120,ROWS($A$10:$A39)+2,FALSE)","v":2410},{"$f":"HLOOKUP(DD$7+0.5,$I$66:$DJ$120,ROWS($A$10:$A39)+2,FALSE)","v":328},{"$f":"HLOOKUP(DE$7+0.5,$I$66:$DJ$120,ROWS($A$10:$A39)+2,FALSE)","v":1429},{"$f":"HLOOKUP(DF$7+0.5,$I$66:$DJ$120,ROWS($A$10:$A39)+2,FALSE)","v":1219},{"$f":"HLOOKUP(DG$7+0.5,$I$66:$DJ$120,ROWS($A$10:$A39)+2,FALSE)","v":101},{"$f":"HLOOKUP(DH$7+0.5,$I$66:$DJ$120,ROWS($A$10:$A39)+2,FALSE)","v":244},{"$f":"HLOOKUP(DI$7+0.5,$I$66:$DJ$120,ROWS($A$10:$A39)+2,FALSE)","v":144},{"$f":"HLOOKUP(DJ$7+0.5,$I$66:$DJ$120,ROWS($A$10:$A39)+2,FALSE)","v":618}]
[null,"New Hampshire",1303865,1720,1118359,9822,141213,9061,{"$f":"HLOOKUP(I$7,$I$66:$DJ$120,ROWS($A$10:$A40)+2,FALSE)","v":39367},{"$f":"HLOOKUP(J$7,$I$66:$DJ$120,ROWS($A$10:$A40)+2,FALSE)","v":152},{"$f":"HLOOKUP(K$7,$I$66:$DJ$120,ROWS($A$10:$A40)+2,FALSE)","v":0},{"$f":"HLOOKUP(L$7,$I$66:$DJ$120,ROWS($A$10:$A40)+2,FALSE)","v":544},{"$f":"HLOOKUP(M$7,$I$66:$DJ$120,ROWS($A$10:$A40)+2,FALSE)","v":0},{"$f":"HLOOKUP(N$7,$I$66:$DJ$120,ROWS($A$10:$A40)+2,FALSE)","v":1692},{"$f":"HLOOKUP(O$7,$I$66:$DJ$120,ROWS($A$10:$A40)+2,FALSE)","v":240},{"$f":"HLOOKUP(P$7,$I$66:$DJ$120,ROWS($A$10:$A40)+2,FALSE)","v":3134},{"$f":"HLOOKUP(Q$7,$I$66:$DJ$120,ROWS($A$10:$A40)+2,FALSE)","v":0},{"$f":"HLOOKUP(R$7,$I$66:$DJ$120,ROWS($A$10:$A40)+2,FALSE)","v":298},{"$f":"HLOOKUP(S$7,$I$66:$DJ$120,ROWS($A$10:$A40)+2,FALSE)","v":1659},{"$f":"HLOOKUP(T$7,$I$66:$DJ$120,ROWS($A$10:$A40)+2,FALSE)","v":0},{"$f":"HLOOKUP(U$7,$I$66:$DJ$120,ROWS($A$10:$A40)+2,FALSE)","v":51},{"$f":"HLOOKUP(V$7,$I$66:$DJ$120,ROWS($A$10:$A40)+2,FALSE)","v":66},{"$f":"HLOOKUP(W$7,$I$66:$DJ$120,ROWS($A$10:$A40)+2,FALSE)","v":850},{"$f":"HLOOKUP(X$7,$I$66:$DJ$120,ROWS($A$10:$A40)+2,FALSE)","v":23},{"$f":"HLOOKUP(Y$7,$I$66:$DJ$120,ROWS($A$10:$A40)+2,FALSE)","v":109},{"$f":"HLOOKUP(Z$7,$I$66:$DJ$120,ROWS($A$10:$A40)+2,FALSE)","v":57},{"$f":"HLOOKUP(AA$7,$I$66:$DJ$120,ROWS($A$10:$A40)+2,FALSE)","v":0},{"$f":"HLOOKUP(AB$7,$I$66:$DJ$120,ROWS($A$10:$A40)+2,FALSE)","v":19},{"$f":"HLOOKUP(AC$7,$I$66:$DJ$120,ROWS($A$10:$A40)+2,FALSE)","v":3242},{"$f":"HLOOKUP(AD$7,$I$66:$DJ$120,ROWS($A$10:$A40)+2,FALSE)","v":49},{"$f":"HLOOKUP(AE$7,$I$66:$DJ$120,ROWS($A$10:$A40)+2,FALSE)","v":13752},{"$f":"HLOOKUP(AF$7,$I$66:$DJ$120,ROWS($A$10:$A40)+2,FALSE)","v":230},{"$f":"HLOOKUP(AG$7,$I$66:$DJ$120,ROWS($A$10:$A40)+2,FALSE)","v":240},{"$f":"HLOOKUP(AH$7,$I$66:$DJ$120,ROWS($A$10:$A40)+2,FALSE)","v":25},{"$f":"HLOOKUP(AI$7,$I$66:$DJ$120,ROWS($A$10:$A40)+2,FALSE)","v":295},{"$f":"HLOOKUP(AJ$7,$I$66:$DJ$120,ROWS($A$10:$A40)+2,FALSE)","v":486},{"$f":"HLOOKUP(AK$7,$I$66:$DJ$120,ROWS($A$10:$A40)+2,FALSE)","v":0},{"$f":"HLOOKUP(AL$7,$I$66:$DJ$120,ROWS($A$10:$A40)+2,FALSE)","v":95},{"$f":"HLOOKUP(AM$7,$I$66:$DJ$120,ROWS($A$10:$A40)+2,FALSE)","v":"N/A"},{"$f":"HLOOKUP(AN$7,$I$66:$DJ$120,ROWS($A$10:$A40)+2,FALSE)","v":540},{"$f":"HLOOKUP(AO$7,$I$66:$DJ$120,ROWS($A$10:$A40)+2,FALSE)","v":276},{"$f":"HLOOKUP(AP$7,$I$66:$DJ$120,ROWS($A$10:$A40)+2,FALSE)","v":2462},{"$f":"HLOOKUP(AQ$7,$I$66:$DJ$120,ROWS($A$10:$A40)+2,FALSE)","v":471},{"$f":"HLOOKUP(AR$7,$I$66:$DJ$120,ROWS($A$10:$A40)+2,FALSE)","v":0},{"$f":"HLOOKUP(AS$7,$I$66:$DJ$120,ROWS($A$10:$A40)+2,FALSE)","v":28},{"$f":"HLOOKUP(AT$7,$I$66:$DJ$120,ROWS($A$10:$A40)+2,FALSE)","v":0},{"$f":"HLOOKUP(AU$7,$I$66:$DJ$120,ROWS($A$10:$A40)+2,FALSE)","v":508},{"$f":"HLOOKUP(AV$7,$I$66:$DJ$120,ROWS($A$10:$A40)+2,FALSE)","v":674},{"$f":"HLOOKUP(AW$7,$I$66:$DJ$120,ROWS($A$10:$A40)+2,FALSE)","v":988},{"$f":"HLOOKUP(AX$7,$I$66:$DJ$120,ROWS($A$10:$A40)+2,FALSE)","v":51},{"$f":"HLOOKUP(AY$7,$I$66:$DJ$120,ROWS($A$10:$A40)+2,FALSE)","v":0},{"$f":"HLOOKUP(AZ$7,$I$66:$DJ$120,ROWS($A$10:$A40)+2,FALSE)","v":372},{"$f":"HLOOKUP(BA$7,$I$66:$DJ$120,ROWS($A$10:$A40)+2,FALSE)","v":1570},{"$f":"HLOOKUP(BB$7,$I$66:$DJ$120,ROWS($A$10:$A40)+2,FALSE)","v":279},{"$f":"HLOOKUP(BC$7,$I$66:$DJ$120,ROWS($A$10:$A40)+2,FALSE)","v":2566},{"$f":"HLOOKUP(BD$7,$I$66:$DJ$120,ROWS($A$10:$A40)+2,FALSE)","v":745},{"$f":"HLOOKUP(BE$7,$I$66:$DJ$120,ROWS($A$10:$A40)+2,FALSE)","v":261},{"$f":"HLOOKUP(BF$7,$I$66:$DJ$120,ROWS($A$10:$A40)+2,FALSE)","v":0},{"$f":"HLOOKUP(BG$7,$I$66:$DJ$120,ROWS($A$10:$A40)+2,FALSE)","v":268},{"$f":"HLOOKUP(BH$7,$I$66:$DJ$120,ROWS($A$10:$A40)+2,FALSE)","v":0},{"$f":"HLOOKUP(BI$7,$I$66:$DJ$120,ROWS($A$10:$A40)+2,FALSE)","v":56},{"$f":"HLOOKUP(BJ$7+0.5,$I$66:$DJ$120,ROWS($A$10:$A40)+2,FALSE)","v":4220},{"$f":"HLOOKUP(BK$7+0.5,$I$66:$DJ$120,ROWS($A$10:$A40)+2,FALSE)","v":235},{"$f":"HLOOKUP(BL$7+0.5,$I$66:$DJ$120,ROWS($A$10:$A40)+2,FALSE)","v":257},{"$f":"HLOOKUP(BM$7+0.5,$I$66:$DJ$120,ROWS($A$10:$A40)+2,FALSE)","v":383},{"$f":"HLOOKUP(BN$7+0.5,$I$66:$DJ$120,ROWS($A$10:$A40)+2,FALSE)","v":257},{"$f":"HLOOKUP(BO$7+0.5,$I$66:$DJ$120,ROWS($A$10:$A40)+2,FALSE)","v":969},{"$f":"HLOOKUP(BP$7+0.5,$I$66:$DJ$120,ROWS($A$10:$A40)+2,FALSE)","v":250},{"$f":"HLOOKUP(BQ$7+0.5,$I$66:$DJ$120,ROWS($A$10:$A40)+2,FALSE)","v":1187},{"$f":"HLOOKUP(BR$7+0.5,$I$66:$DJ$120,ROWS($A$10:$A40)+2,FALSE)","v":257},{"$f":"HLOOKUP(BS$7+0.5,$I$66:$DJ$120,ROWS($A$10:$A40)+2,FALSE)","v":389},{"$f":"HLOOKUP(BT$7+0.5,$I$66:$DJ$120,ROWS($A$10:$A40)+2,FALSE)","v":699},{"$f":"HLOOKUP(BU$7+0.5,$I$66:$DJ$120,ROWS($A$10:$A40)+2,FALSE)","v":257},{"$f":"HLOOKUP(BV$7+0.5,$I$66:$DJ$120,ROWS($A$10:$A40)+2,FALSE)","v":83},{"$f":"HLOOKUP(BW$7+0.5,$I$66:$DJ$120,ROWS($A$10:$A40)+2,FALSE)","v":113},{"$f":"HLOOKUP(BX$7+0.5,$I$66:$DJ$120,ROWS($A$10:$A40)+2,FALSE)","v":741},{"$f":"HLOOKUP(BY$7+0.5,$I$66:$DJ$120,ROWS($A$10:$A40)+2,FALSE)","v":37},{"$f":"HLOOKUP(BZ$7+0.5,$I$66:$DJ$120,ROWS($A$10:$A40)+2,FALSE)","v":124},{"$f":"HLOOKUP(CA$7+0.5,$I$66:$DJ$120,ROWS($A$10:$A40)+2,FALSE)","v":100},{"$f":"HLOOKUP(CB$7+0.5,$I$66:$DJ$120,ROWS($A$10:$A40)+2,FALSE)","v":257},{"$f":"HLOOKUP(CC$7+0.5,$I$66:$DJ$120,ROWS($A$10:$A40)+2,FALSE)","v":33},{"$f":"HLOOKUP(CD$7+0.5,$I$66:$DJ$120,ROWS($A$10:$A40)+2,FALSE)","v":983},{"$f":"HLOOKUP(CE$7+0.5,$I$66:$DJ$120,ROWS($A$10:$A40)+2,FALSE)","v":81},{"$f":"HLOOKUP(CF$7+0.5,$I$66:$DJ$120,ROWS($A$10:$A40)+2,FALSE)","v":2615},{"$f":"HLOOKUP(CG$7+0.5,$I$66:$DJ$120,ROWS($A$10:$A40)+2,FALSE)","v":222},{"$f":"HLOOKUP(CH$7+0.5,$I$66:$DJ$120,ROWS($A$10:$A40)+2,FALSE)","v":270},{"$f":"HLOOKUP(CI$7+0.5,$I$66:$DJ$120,ROWS($A$10:$A40)+2,FALSE)","v":41},{"$f":"HLOOKUP(CJ$7+0.5,$I$66:$DJ$120,ROWS($A$10:$A40)+2,FALSE)","v":387},{"$f":"HLOOKUP(CK$7+0.5,$I$66:$DJ$120,ROWS($A$10:$A40)+2,FALSE)","v":638},{"$f":"HLOOKUP(CL$7+0.5,$I$66:$DJ$120,ROWS($A$10:$A40)+2,FALSE)","v":257},{"$f":"HLOOKUP(CM$7+0.5,$I$66:$DJ$120,ROWS($A$10:$A40)+2,FALSE)","v":123},{"$f":"HLOOKUP(CN$7+0.5,$I$66:$DJ$120,ROWS($A$10:$A40)+2,FALSE)","v":"N/A"},{"$f":"HLOOKUP(CO$7+0.5,$I$66:$DJ$120,ROWS($A$10:$A40)+2,FALSE)","v":365},{"$f":"HLOOKUP(CP$7+0.5,$I$66:$DJ$120,ROWS($A$10:$A40)+2,FALSE)","v":394},{"$f":"HLOOKUP(CQ$7+0.5,$I$66:$DJ$120,ROWS($A$10:$A40)+2,FALSE)","v":997},{"$f":"HLOOKUP(CR$7+0.5,$I$66:$DJ$120,ROWS($A$10:$A40)+2,FALSE)","v":439},{"$f":"HLOOKUP(CS$7+0.5,$I$66:$DJ$120,ROWS($A$10:$A40)+2,FALSE)","v":257},{"$f":"HLOOKUP(CT$7+0.5,$I$66:$DJ$120,ROWS($A$10:$A40)+2,FALSE)","v":35},{"$f":"HLOOKUP(CU$7+0.5,$I$66:$DJ$120,ROWS($A$10:$A40)+2,FALSE)","v":257},{"$f":"HLOOKUP(CV$7+0.5,$I$66:$DJ$120,ROWS($A$10:$A40)+2,FALSE)","v":544},{"$f":"HLOOKUP(CW$7+0.5,$I$66:$DJ$120,ROWS($A$10:$A40)+2,FALSE)","v":406},{"$f":"HLOOKUP(CX$7+0.5,$I$66:$DJ$120,ROWS($A$10:$A40)+2,FALSE)","v":677},{"$f":"HLOOKUP(CY$7+0.5,$I$66:$DJ$120,ROWS($A$10:$A40)+2,FALSE)","v":85},{"$f":"HLOOKUP(CZ$7+0.5,$I$66:$DJ$120,ROWS($A$10:$A40)+2,FALSE)","v":257},{"$f":"HLOOKUP(DA$7+0.5,$I$66:$DJ$120,ROWS($A$10:$A40)+2,FALSE)","v":387},{"$f":"HLOOKUP(DB$7+0.5,$I$66:$DJ$120,ROWS($A$10:$A40)+2,FALSE)","v":1644},{"$f":"HLOOKUP(DC$7+0.5,$I$66:$DJ$120,ROWS($A$10:$A40)+2,FALSE)","v":223},{"$f":"HLOOKUP(DD$7+0.5,$I$66:$DJ$120,ROWS($A$10:$A40)+2,FALSE)","v":1011},{"$f":"HLOOKUP(DE$7+0.5,$I$66:$DJ$120,ROWS($A$10:$A40)+2,FALSE)","v":807},{"$f":"HLOOKUP(DF$7+0.5,$I$66:$DJ$120,ROWS($A$10:$A40)+2,FALSE)","v":434},{"$f":"HLOOKUP(DG$7+0.5,$I$66:$DJ$120,ROWS($A$10:$A40)+2,FALSE)","v":257},{"$f":"HLOOKUP(DH$7+0.5,$I$66:$DJ$120,ROWS($A$10:$A40)+2,FALSE)","v":418},{"$f":"HLOOKUP(DI$7+0.5,$I$66:$DJ$120,ROWS($A$10:$A40)+2,FALSE)","v":257},{"$f":"HLOOKUP(DJ$7+0.5,$I$66:$DJ$120,ROWS($A$10:$A40)+2,FALSE)","v":93}]
[null,"New Jersey",8709933,4515,7841470,25935,684482,23318,{"$f":"HLOOKUP(I$7,$I$66:$DJ$120,ROWS($A$10:$A41)+2,FALSE)","v":127369},{"$f":"HLOOKUP(J$7,$I$66:$DJ$120,ROWS($A$10:$A41)+2,FALSE)","v":616},{"$f":"HLOOKUP(K$7,$I$66:$DJ$120,ROWS($A$10:$A41)+2,FALSE)","v":383},{"$f":"HLOOKUP(L$7,$I$66:$DJ$120,ROWS($A$10:$A41)+2,FALSE)","v":1625},{"$f":"HLOOKUP(M$7,$I$66:$DJ$120,ROWS($A$10:$A41)+2,FALSE)","v":258},{"$f":"HLOOKUP(N$7,$I$66:$DJ$120,ROWS($A$10:$A41)+2,FALSE)","v":8777},{"$f":"HLOOKUP(O$7,$I$66:$DJ$120,ROWS($A$10:$A41)+2,FALSE)","v":807},{"$f":"HLOOKUP(P$7,$I$66:$DJ$120,ROWS($A$10:$A41)+2,FALSE)","v":2503},{"$f":"HLOOKUP(Q$7,$I$66:$DJ$120,ROWS($A$10:$A41)+2,FALSE)","v":1543},{"$f":"HLOOKUP(R$7,$I$66:$DJ$120,ROWS($A$10:$A41)+2,FALSE)","v":431},{"$f":"HLOOKUP(S$7,$I$66:$DJ$120,ROWS($A$10:$A41)+2,FALSE)","v":9841},{"$f":"HLOOKUP(T$7,$I$66:$DJ$120,ROWS($A$10:$A41)+2,FALSE)","v":4588},{"$f":"HLOOKUP(U$7,$I$66:$DJ$120,ROWS($A$10:$A41)+2,FALSE)","v":385},{"$f":"HLOOKUP(V$7,$I$66:$DJ$120,ROWS($A$10:$A41)+2,FALSE)","v":91},{"$f":"HLOOKUP(W$7,$I$66:$DJ$120,ROWS($A$10:$A41)+2,FALSE)","v":2656},{"$f":"HLOOKUP(X$7,$I$66:$DJ$120,ROWS($A$10:$A41)+2,FALSE)","v":402},{"$f":"HLOOKUP(Y$7,$I$66:$DJ$120,ROWS($A$10:$A41)+2,FALSE)","v":332},{"$f":"HLOOKUP(Z$7,$I$66:$DJ$120,ROWS($A$10:$A41)+2,FALSE)","v":442},{"$f":"HLOOKUP(AA$7,$I$66:$DJ$120,ROWS($A$10:$A41)+2,FALSE)","v":91},{"$f":"HLOOKUP(AB$7,$I$66:$DJ$120,ROWS($A$10:$A41)+2,FALSE)","v":249},{"$f":"HLOOKUP(AC$7,$I$66:$DJ$120,ROWS($A$10:$A41)+2,FALSE)","v":95},{"$f":"HLOOKUP(AD$7,$I$66:$DJ$120,ROWS($A$10:$A41)+2,FALSE)","v":4231},{"$f":"HLOOKUP(AE$7,$I$66:$DJ$120,ROWS($A$10:$A41)+2,FALSE)","v":2626},{"$f":"HLOOKUP(AF$7,$I$66:$DJ$120,ROWS($A$10:$A41)+2,FALSE)","v":1070},{"$f":"HLOOKUP(AG$7,$I$66:$DJ$120,ROWS($A$10:$A41)+2,FALSE)","v":322},{"$f":"HLOOKUP(AH$7,$I$66:$DJ$120,ROWS($A$10:$A41)+2,FALSE)","v":450},{"$f":"HLOOKUP(AI$7,$I$66:$DJ$120,ROWS($A$10:$A41)+2,FALSE)","v":727},{"$f":"HLOOKUP(AJ$7,$I$66:$DJ$120,ROWS($A$10:$A41)+2,FALSE)","v":122},{"$f":"HLOOKUP(AK$7,$I$66:$DJ$120,ROWS($A$10:$A41)+2,FALSE)","v":261},{"$f":"HLOOKUP(AL$7,$I$66:$DJ$120,ROWS($A$10:$A41)+2,FALSE)","v":874},{"$f":"HLOOKUP(AM$7,$I$66:$DJ$120,ROWS($A$10:$A41)+2,FALSE)","v":705},{"$f":"HLOOKUP(AN$7,$I$66:$DJ$120,ROWS($A$10:$A41)+2,FALSE)","v":"N/A"},{"$f":"HLOOKUP(AO$7,$I$66:$DJ$120,ROWS($A$10:$A41)+2,FALSE)","v":421},{"$f":"HLOOKUP(AP$7,$I$66:$DJ$120,ROWS($A$10:$A41)+2,FALSE)","v":41374},{"$f":"HLOOKUP(AQ$7,$I$66:$DJ$120,ROWS($A$10:$A41)+2,FALSE)","v":3052},{"$f":"HLOOKUP(AR$7,$I$66:$DJ$120,ROWS($A$10:$A41)+2,FALSE)","v":0},{"$f":"HLOOKUP(AS$7,$I$66:$DJ$120,ROWS($A$10:$A41)+2,FALSE)","v":1584},{"$f":"HLOOKUP(AT$7,$I$66:$DJ$120,ROWS($A$10:$A41)+2,FALSE)","v":32},{"$f":"HLOOKUP(AU$7,$I$66:$DJ$120,ROWS($A$10:$A41)+2,FALSE)","v":613},{"$f":"HLOOKUP(AV$7,$I$66:$DJ$120,ROWS($A$10:$A41)+2,FALSE)","v":22225},{"$f":"HLOOKUP(AW$7,$I$66:$DJ$120,ROWS($A$10:$A41)+2,FALSE)","v":332},{"$f":"HLOOKUP(AX$7,$I$66:$DJ$120,ROWS($A$10:$A41)+2,FALSE)","v":1134},{"$f":"HLOOKUP(AY$7,$I$66:$DJ$120,ROWS($A$10:$A41)+2,FALSE)","v":0},{"$f":"HLOOKUP(AZ$7,$I$66:$DJ$120,ROWS($A$10:$A41)+2,FALSE)","v":852},{"$f":"HLOOKUP(BA$7,$I$66:$DJ$120,ROWS($A$10:$A41)+2,FALSE)","v":3434},{"$f":"HLOOKUP(BB$7,$I$66:$DJ$120,ROWS($A$10:$A41)+2,FALSE)","v":178},{"$f":"HLOOKUP(BC$7,$I$66:$DJ$120,ROWS($A$10:$A41)+2,FALSE)","v":57},{"$f":"HLOOKUP(BD$7,$I$66:$DJ$120,ROWS($A$10:$A41)+2,FALSE)","v":2670},{"$f":"HLOOKUP(BE$7,$I$66:$DJ$120,ROWS($A$10:$A41)+2,FALSE)","v":964},{"$f":"HLOOKUP(BF$7,$I$66:$DJ$120,ROWS($A$10:$A41)+2,FALSE)","v":358},{"$f":"HLOOKUP(BG$7,$I$66:$DJ$120,ROWS($A$10:$A41)+2,FALSE)","v":586},{"$f":"HLOOKUP(BH$7,$I$66:$DJ$120,ROWS($A$10:$A41)+2,FALSE)","v":0},{"$f":"HLOOKUP(BI$7,$I$66:$DJ$120,ROWS($A$10:$A41)+2,FALSE)","v":2732},{"$f":"HLOOKUP(BJ$7+0.5,$I$66:$DJ$120,ROWS($A$10:$A41)+2,FALSE)","v":8536},{"$f":"HLOOKUP(BK$7+0.5,$I$66:$DJ$120,ROWS($A$10:$A41)+2,FALSE)","v":406},{"$f":"HLOOKUP(BL$7+0.5,$I$66:$DJ$120,ROWS($A$10:$A41)+2,FALSE)","v":407},{"$f":"HLOOKUP(BM$7+0.5,$I$66:$DJ$120,ROWS($A$10:$A41)+2,FALSE)","v":847},{"$f":"HLOOKUP(BN$7+0.5,$I$66:$DJ$120,ROWS($A$10:$A41)+2,FALSE)","v":346},{"$f":"HLOOKUP(BO$7+0.5,$I$66:$DJ$120,ROWS($A$10:$A41)+2,FALSE)","v":2628},{"$f":"HLOOKUP(BP$7+0.5,$I$66:$DJ$120,ROWS($A$10:$A41)+2,FALSE)","v":590},{"$f":"HLOOKUP(BQ$7+0.5,$I$66:$DJ$120,ROWS($A$10:$A41)+2,FALSE)","v":1323},{"$f":"HLOOKUP(BR$7+0.5,$I$66:$DJ$120,ROWS($A$10:$A41)+2,FALSE)","v":702},{"$f":"HLOOKUP(BS$7+0.5,$I$66:$DJ$120,ROWS($A$10:$A41)+2,FALSE)","v":335},{"$f":"HLOOKUP(BT$7+0.5,$I$66:$DJ$120,ROWS($A$10:$A41)+2,FALSE)","v":2289},{"$f":"HLOOKUP(BU$7+0.5,$I$66:$DJ$120,ROWS($A$10:$A41)+2,FALSE)","v":2901},{"$f":"HLOOKUP(BV$7+0.5,$I$66:$DJ$120,ROWS($A$10:$A41)+2,FALSE)","v":422},{"$f":"HLOOKUP(BW$7+0.5,$I$66:$DJ$120,ROWS($A$10:$A41)+2,FALSE)","v":148},{"$f":"HLOOKUP(BX$7+0.5,$I$66:$DJ$120,ROWS($A$10:$A41)+2,FALSE)","v":995},{"$f":"HLOOKUP(BY$7+0.5,$I$66:$DJ$120,ROWS($A$10:$A41)+2,FALSE)","v":471},{"$f":"HLOOKUP(BZ$7+0.5,$I$66:$DJ$120,ROWS($A$10:$A41)+2,FALSE)","v":331},{"$f":"HLOOKUP(CA$7+0.5,$I$66:$DJ$120,ROWS($A$10:$A41)+2,FALSE)","v":403},{"$f":"HLOOKUP(CB$7+0.5,$I$66:$DJ$120,ROWS($A$10:$A41)+2,FALSE)","v":147},{"$f":"HLOOKUP(CC$7+0.5,$I$66:$DJ$120,ROWS($A$10:$A41)+2,FALSE)","v":264},{"$f":"HLOOKUP(CD$7+0.5,$I$66:$DJ$120,ROWS($A$10:$A41)+2,FALSE)","v":112},{"$f":"HLOOKUP(CE$7+0.5,$I$66:$DJ$120,ROWS($A$10:$A41)+2,FALSE)","v":2100},{"$f":"HLOOKUP(CF$7+0.5,$I$66:$DJ$120,ROWS($A$10:$A41)+2,FALSE)","v":973},{"$f":"HLOOKUP(CG$7+0.5,$I$66:$DJ$120,ROWS($A$10:$A41)+2,FALSE)","v":578},{"$f":"HLOOKUP(CH$7+0.5,$I$66:$DJ$120,ROWS($A$10:$A41)+2,FALSE)","v":274},{"$f":"HLOOKUP(CI$7+0.5,$I$66:$DJ$120,ROWS($A$10:$A41)+2,FALSE)","v":478},{"$f":"HLOOKUP(CJ$7+0.5,$I$66:$DJ$120,ROWS($A$10:$A41)+2,FALSE)","v":417},{"$f":"HLOOKUP(CK$7+0.5,$I$66:$DJ$120,ROWS($A$10:$A41)+2,FALSE)","v":206},{"$f":"HLOOKUP(CL$7+0.5,$I$66:$DJ$120,ROWS($A$10:$A41)+2,FALSE)","v":361},{"$f":"HLOOKUP(CM$7+0.5,$I$66:$DJ$120,ROWS($A$10:$A41)+2,FALSE)","v":616},{"$f":"HLOOKUP(CN$7+0.5,$I$66:$DJ$120,ROWS($A$10:$A41)+2,FALSE)","v":380},{"$f":"HLOOKUP(CO$7+0.5,$I$66:$DJ$120,ROWS($A$10:$A41)+2,FALSE)","v":"N/A"},{"$f":"HLOOKUP(CP$7+0.5,$I$66:$DJ$120,ROWS($A$10:$A41)+2,FALSE)","v":281},{"$f":"HLOOKUP(CQ$7+0.5,$I$66:$DJ$120,ROWS($A$10:$A41)+2,FALSE)","v":5068},{"$f":"HLOOKUP(CR$7+0.5,$I$66:$DJ$120,ROWS($A$10:$A41)+2,FALSE)","v":1042},{"$f":"HLOOKUP(CS$7+0.5,$I$66:$DJ$120,ROWS($A$10:$A41)+2,FALSE)","v":281},{"$f":"HLOOKUP(CT$7+0.5,$I$66:$DJ$120,ROWS($A$10:$A41)+2,FALSE)","v":1069},{"$f":"HLOOKUP(CU$7+0.5,$I$66:$DJ$120,ROWS($A$10:$A41)+2,FALSE)","v":51},{"$f":"HLOOKUP(CV$7+0.5,$I$66:$DJ$120,ROWS($A$10:$A41)+2,FALSE)","v":578},{"$f":"HLOOKUP(CW$7+0.5,$I$66:$DJ$120,ROWS($A$10:$A41)+2,FALSE)","v":3517},{"$f":"HLOOKUP(CX$7+0.5,$I$66:$DJ$120,ROWS($A$10:$A41)+2,FALSE)","v":376},{"$f":"HLOOKUP(CY$7+0.5,$I$66:$DJ$120,ROWS($A$10:$A41)+2,FALSE)","v":598},{"$f":"HLOOKUP(CZ$7+0.5,$I$66:$DJ$120,ROWS($A$10:$A41)+2,FALSE)","v":281},{"$f":"HLOOKUP(DA$7+0.5,$I$66:$DJ$120,ROWS($A$10:$A41)+2,FALSE)","v":631},{"$f":"HLOOKUP(DB$7+0.5,$I$66:$DJ$120,ROWS($A$10:$A41)+2,FALSE)","v":1520},{"$f":"HLOOKUP(DC$7+0.5,$I$66:$DJ$120,ROWS($A$10:$A41)+2,FALSE)","v":205},{"$f":"HLOOKUP(DD$7+0.5,$I$66:$DJ$120,ROWS($A$10:$A41)+2,FALSE)","v":98},{"$f":"HLOOKUP(DE$7+0.5,$I$66:$DJ$120,ROWS($A$10:$A41)+2,FALSE)","v":1099},{"$f":"HLOOKUP(DF$7+0.5,$I$66:$DJ$120,ROWS($A$10:$A41)+2,FALSE)","v":617},{"$f":"HLOOKUP(DG$7+0.5,$I$66:$DJ$120,ROWS($A$10:$A41)+2,FALSE)","v":353},{"$f":"HLOOKUP(DH$7+0.5,$I$66:$DJ$120,ROWS($A$10:$A41)+2,FALSE)","v":571},{"$f":"HLOOKUP(DI$7+0.5,$I$66:$DJ$120,ROWS($A$10:$A41)+2,FALSE)","v":281},{"$f":"HLOOKUP(DJ$7+0.5,$I$66:$DJ$120,ROWS($A$10:$A41)+2,FALSE)","v":1263}]
[null,"New Mexico",2039549,2727,1735950,14043,220663,12854,{"$f":"HLOOKUP(I$7,$I$66:$DJ$120,ROWS($A$10:$A42)+2,FALSE)","v":73605},{"$f":"HLOOKUP(J$7,$I$66:$DJ$120,ROWS($A$10:$A42)+2,FALSE)","v":751},{"$f":"HLOOKUP(K$7,$I$66:$DJ$120,ROWS($A$10:$A42)+2,FALSE)","v":969},{"$f":"HLOOKUP(L$7,$I$66:$DJ$120,ROWS($A$10:$A42)+2,FALSE)","v":6117},{"$f":"HLOOKUP(M$7,$I$66:$DJ$120,ROWS($A$10:$A42)+2,FALSE)","v":77},{"$f":"HLOOKUP(N$7,$I$66:$DJ$120,ROWS($A$10:$A42)+2,FALSE)","v":6547},{"$f":"HLOOKUP(O$7,$I$66:$DJ$120,ROWS($A$10:$A42)+2,FALSE)","v":2852},{"$f":"HLOOKUP(P$7,$I$66:$DJ$120,ROWS($A$10:$A42)+2,FALSE)","v":25},{"$f":"HLOOKUP(Q$7,$I$66:$DJ$120,ROWS($A$10:$A42)+2,FALSE)","v":391},{"$f":"HLOOKUP(R$7,$I$66:$DJ$120,ROWS($A$10:$A42)+2,FALSE)","v":56},{"$f":"HLOOKUP(S$7,$I$66:$DJ$120,ROWS($A$10:$A42)+2,FALSE)","v":3259},{"$f":"HLOOKUP(T$7,$I$66:$DJ$120,ROWS($A$10:$A42)+2,FALSE)","v":1977},{"$f":"HLOOKUP(U$7,$I$66:$DJ$120,ROWS($A$10:$A42)+2,FALSE)","v":122},{"$f":"HLOOKUP(V$7,$I$66:$DJ$120,ROWS($A$10:$A42)+2,FALSE)","v":755},{"$f":"HLOOKUP(W$7,$I$66:$DJ$120,ROWS($A$10:$A42)+2,FALSE)","v":526},{"$f":"HLOOKUP(X$7,$I$66:$DJ$120,ROWS($A$10:$A42)+2,FALSE)","v":465},{"$f":"HLOOKUP(Y$7,$I$66:$DJ$120,ROWS($A$10:$A42)+2,FALSE)","v":0},{"$f":"HLOOKUP(Z$7,$I$66:$DJ$120,ROWS($A$10:$A42)+2,FALSE)","v":751},{"$f":"HLOOKUP(AA$7,$I$66:$DJ$120,ROWS($A$10:$A42)+2,FALSE)","v":739},{"$f":"HLOOKUP(AB$7,$I$66:$DJ$120,ROWS($A$10:$A42)+2,FALSE)","v":65},{"$f":"HLOOKUP(AC$7,$I$66:$DJ$120,ROWS($A$10:$A42)+2,FALSE)","v":94},{"$f":"HLOOKUP(AD$7,$I$66:$DJ$120,ROWS($A$10:$A42)+2,FALSE)","v":1968},{"$f":"HLOOKUP(AE$7,$I$66:$DJ$120,ROWS($A$10:$A42)+2,FALSE)","v":2076},{"$f":"HLOOKUP(AF$7,$I$66:$DJ$120,ROWS($A$10:$A42)+2,FALSE)","v":1460},{"$f":"HLOOKUP(AG$7,$I$66:$DJ$120,ROWS($A$10:$A42)+2,FALSE)","v":179},{"$f":"HLOOKUP(AH$7,$I$66:$DJ$120,ROWS($A$10:$A42)+2,FALSE)","v":719},{"$f":"HLOOKUP(AI$7,$I$66:$DJ$120,ROWS($A$10:$A42)+2,FALSE)","v":138},{"$f":"HLOOKUP(AJ$7,$I$66:$DJ$120,ROWS($A$10:$A42)+2,FALSE)","v":1003},{"$f":"HLOOKUP(AK$7,$I$66:$DJ$120,ROWS($A$10:$A42)+2,FALSE)","v":530},{"$f":"HLOOKUP(AL$7,$I$66:$DJ$120,ROWS($A$10:$A42)+2,FALSE)","v":4192},{"$f":"HLOOKUP(AM$7,$I$66:$DJ$120,ROWS($A$10:$A42)+2,FALSE)","v":79},{"$f":"HLOOKUP(AN$7,$I$66:$DJ$120,ROWS($A$10:$A42)+2,FALSE)","v":160},{"$f":"HLOOKUP(AO$7,$I$66:$DJ$120,ROWS($A$10:$A42)+2,FALSE)","v":"N/A"},{"$f":"HLOOKUP(AP$7,$I$66:$DJ$120,ROWS($A$10:$A42)+2,FALSE)","v":784},{"$f":"HLOOKUP(AQ$7,$I$66:$DJ$120,ROWS($A$10:$A42)+2,FALSE)","v":1793},{"$f":"HLOOKUP(AR$7,$I$66:$DJ$120,ROWS($A$10:$A42)+2,FALSE)","v":79},{"$f":"HLOOKUP(AS$7,$I$66:$DJ$120,ROWS($A$10:$A42)+2,FALSE)","v":1712},{"$f":"HLOOKUP(AT$7,$I$66:$DJ$120,ROWS($A$10:$A42)+2,FALSE)","v":1182},{"$f":"HLOOKUP(AU$7,$I$66:$DJ$120,ROWS($A$10:$A42)+2,FALSE)","v":1659},{"$f":"HLOOKUP(AV$7,$I$66:$DJ$120,ROWS($A$10:$A42)+2,FALSE)","v":809},{"$f":"HLOOKUP(AW$7,$I$66:$DJ$120,ROWS($A$10:$A42)+2,FALSE)","v":46},{"$f":"HLOOKUP(AX$7,$I$66:$DJ$120,ROWS($A$10:$A42)+2,FALSE)","v":152},{"$f":"HLOOKUP(AY$7,$I$66:$DJ$120,ROWS($A$10:$A42)+2,FALSE)","v":204},{"$f":"HLOOKUP(AZ$7,$I$66:$DJ$120,ROWS($A$10:$A42)+2,FALSE)","v":1269},{"$f":"HLOOKUP(BA$7,$I$66:$DJ$120,ROWS($A$10:$A42)+2,FALSE)","v":18511},{"$f":"HLOOKUP(BB$7,$I$66:$DJ$120,ROWS($A$10:$A42)+2,FALSE)","v":1601},{"$f":"HLOOKUP(BC$7,$I$66:$DJ$120,ROWS($A$10:$A42)+2,FALSE)","v":309},{"$f":"HLOOKUP(BD$7,$I$66:$DJ$120,ROWS($A$10:$A42)+2,FALSE)","v":290},{"$f":"HLOOKUP(BE$7,$I$66:$DJ$120,ROWS($A$10:$A42)+2,FALSE)","v":3004},{"$f":"HLOOKUP(BF$7,$I$66:$DJ$120,ROWS($A$10:$A42)+2,FALSE)","v":0},{"$f":"HLOOKUP(BG$7,$I$66:$DJ$120,ROWS($A$10:$A42)+2,FALSE)","v":407},{"$f":"HLOOKUP(BH$7,$I$66:$DJ$120,ROWS($A$10:$A42)+2,FALSE)","v":752},{"$f":"HLOOKUP(BI$7,$I$66:$DJ$120,ROWS($A$10:$A42)+2,FALSE)","v":632},{"$f":"HLOOKUP(BJ$7+0.5,$I$66:$DJ$120,ROWS($A$10:$A42)+2,FALSE)","v":7703},{"$f":"HLOOKUP(BK$7+0.5,$I$66:$DJ$120,ROWS($A$10:$A42)+2,FALSE)","v":550},{"$f":"HLOOKUP(BL$7+0.5,$I$66:$DJ$120,ROWS($A$10:$A42)+2,FALSE)","v":801},{"$f":"HLOOKUP(BM$7+0.5,$I$66:$DJ$120,ROWS($A$10:$A42)+2,FALSE)","v":2902},{"$f":"HLOOKUP(BN$7+0.5,$I$66:$DJ$120,ROWS($A$10:$A42)+2,FALSE)","v":109},{"$f":"HLOOKUP(BO$7+0.5,$I$66:$DJ$120,ROWS($A$10:$A42)+2,FALSE)","v":2252},{"$f":"HLOOKUP(BP$7+0.5,$I$66:$DJ$120,ROWS($A$10:$A42)+2,FALSE)","v":1095},{"$f":"HLOOKUP(BQ$7+0.5,$I$66:$DJ$120,ROWS($A$10:$A42)+2,FALSE)","v":41},{"$f":"HLOOKUP(BR$7+0.5,$I$66:$DJ$120,ROWS($A$10:$A42)+2,FALSE)","v":444},{"$f":"HLOOKUP(BS$7+0.5,$I$66:$DJ$120,ROWS($A$10:$A42)+2,FALSE)","v":95},{"$f":"HLOOKUP(BT$7+0.5,$I$66:$DJ$120,ROWS($A$10:$A42)+2,FALSE)","v":1428},{"$f":"HLOOKUP(BU$7+0.5,$I$66:$DJ$120,ROWS($A$10:$A42)+2,FALSE)","v":1097},{"$f":"HLOOKUP(BV$7+0.5,$I$66:$DJ$120,ROWS($A$10:$A42)+2,FALSE)","v":185},{"$f":"HLOOKUP(BW$7+0.5,$I$66:$DJ$120,ROWS($A$10:$A42)+2,FALSE)","v":565},{"$f":"HLOOKUP(BX$7+0.5,$I$66:$DJ$120,ROWS($A$10:$A42)+2,FALSE)","v":362},{"$f":"HLOOKUP(BY$7+0.5,$I$66:$DJ$120,ROWS($A$10:$A42)+2,FALSE)","v":458},{"$f":"HLOOKUP(BZ$7+0.5,$I$66:$DJ$120,ROWS($A$10:$A42)+2,FALSE)","v":285},{"$f":"HLOOKUP(CA$7+0.5,$I$66:$DJ$120,ROWS($A$10:$A42)+2,FALSE)","v":581},{"$f":"HLOOKUP(CB$7+0.5,$I$66:$DJ$120,ROWS($A$10:$A42)+2,FALSE)","v":1131},{"$f":"HLOOKUP(CC$7+0.5,$I$66:$DJ$120,ROWS($A$10:$A42)+2,FALSE)","v":87},{"$f":"HLOOKUP(CD$7+0.5,$I$66:$DJ$120,ROWS($A$10:$A42)+2,FALSE)","v":155},{"$f":"HLOOKUP(CE$7+0.5,$I$66:$DJ$120,ROWS($A$10:$A42)+2,FALSE)","v":1112},{"$f":"HLOOKUP(CF$7+0.5,$I$66:$DJ$120,ROWS($A$10:$A42)+2,FALSE)","v":1567},{"$f":"HLOOKUP(CG$7+0.5,$I$66:$DJ$120,ROWS($A$10:$A42)+2,FALSE)","v":843},{"$f":"HLOOKUP(CH$7+0.5,$I$66:$DJ$120,ROWS($A$10:$A42)+2,FALSE)","v":231},{"$f":"HLOOKUP(CI$7+0.5,$I$66:$DJ$120,ROWS($A$10:$A42)+2,FALSE)","v":630},{"$f":"HLOOKUP(CJ$7+0.5,$I$66:$DJ$120,ROWS($A$10:$A42)+2,FALSE)","v":211},{"$f":"HLOOKUP(CK$7+0.5,$I$66:$DJ$120,ROWS($A$10:$A42)+2,FALSE)","v":1419},{"$f":"HLOOKUP(CL$7+0.5,$I$66:$DJ$120,ROWS($A$10:$A42)+2,FALSE)","v":726},{"$f":"HLOOKUP(CM$7+0.5,$I$66:$DJ$120,ROWS($A$10:$A42)+2,FALSE)","v":2452},{"$f":"HLOOKUP(CN$7+0.5,$I$66:$DJ$120,ROWS($A$10:$A42)+2,FALSE)","v":130},{"$f":"HLOOKUP(CO$7+0.5,$I$66:$DJ$120,ROWS($A$10:$A42)+2,FALSE)","v":200},{"$f":"HLOOKUP(CP$7+0.5,$I$66:$DJ$120,ROWS($A$10:$A42)+2,FALSE)","v":"N/A"},{"$f":"HLOOKUP(CQ$7+0.5,$I$66:$DJ$120,ROWS($A$10:$A42)+2,FALSE)","v":581},{"$f":"HLOOKUP(CR$7+0.5,$I$66:$DJ$120,ROWS($A$10:$A42)+2,FALSE)","v":844},{"$f":"HLOOKUP(CS$7+0.5,$I$66:$DJ$120,ROWS($A$10:$A42)+2,FALSE)","v":150},{"$f":"HLOOKUP(CT$7+0.5,$I$66:$DJ$120,ROWS($A$10:$A42)+2,FALSE)","v":883},{"$f":"HLOOKUP(CU$7+0.5,$I$66:$DJ$120,ROWS($A$10:$A42)+2,FALSE)","v":854},{"$f":"HLOOKUP(CV$7+0.5,$I$66:$DJ$120,ROWS($A$10:$A42)+2,FALSE)","v":1403},{"$f":"HLOOKUP(CW$7+0.5,$I$66:$DJ$120,ROWS($A$10:$A42)+2,FALSE)","v":526},{"$f":"HLOOKUP(CX$7+0.5,$I$66:$DJ$120,ROWS($A$10:$A42)+2,FALSE)","v":81},{"$f":"HLOOKUP(CY$7+0.5,$I$66:$DJ$120,ROWS($A$10:$A42)+2,FALSE)","v":182},{"$f":"HLOOKUP(CZ$7+0.5,$I$66:$DJ$120,ROWS($A$10:$A42)+2,FALSE)","v":322},{"$f":"HLOOKUP(DA$7+0.5,$I$66:$DJ$120,ROWS($A$10:$A42)+2,FALSE)","v":801},{"$f":"HLOOKUP(DB$7+0.5,$I$66:$DJ$120,ROWS($A$10:$A42)+2,FALSE)","v":3785},{"$f":"HLOOKUP(DC$7+0.5,$I$66:$DJ$120,ROWS($A$10:$A42)+2,FALSE)","v":1033},{"$f":"HLOOKUP(DD$7+0.5,$I$66:$DJ$120,ROWS($A$10:$A42)+2,FALSE)","v":435},{"$f":"HLOOKUP(DE$7+0.5,$I$66:$DJ$120,ROWS($A$10:$A42)+2,FALSE)","v":249},{"$f":"HLOOKUP(DF$7+0.5,$I$66:$DJ$120,ROWS($A$10:$A42)+2,FALSE)","v":1315},{"$f":"HLOOKUP(DG$7+0.5,$I$66:$DJ$120,ROWS($A$10:$A42)+2,FALSE)","v":285},{"$f":"HLOOKUP(DH$7+0.5,$I$66:$DJ$120,ROWS($A$10:$A42)+2,FALSE)","v":339},{"$f":"HLOOKUP(DI$7+0.5,$I$66:$DJ$120,ROWS($A$10:$A42)+2,FALSE)","v":727},{"$f":"HLOOKUP(DJ$7+0.5,$I$66:$DJ$120,ROWS($A$10:$A42)+2,FALSE)","v":678}]
[null,"New York",19171916,7371,16976205,41292,1779540,36331,{"$f":"HLOOKUP(I$7,$I$66:$DJ$120,ROWS($A$10:$A43)+2,FALSE)","v":269427},{"$f":"HLOOKUP(J$7,$I$66:$DJ$120,ROWS($A$10:$A43)+2,FALSE)","v":1310},{"$f":"HLOOKUP(K$7,$I$66:$DJ$120,ROWS($A$10:$A43)+2,FALSE)","v":5070},{"$f":"HLOOKUP(L$7,$I$66:$DJ$120,ROWS($A$10:$A43)+2,FALSE)","v":2649},{"$f":"HLOOKUP(M$7,$I$66:$DJ$120,ROWS($A$10:$A43)+2,FALSE)","v":362},{"$f":"HLOOKUP(N$7,$I$66:$DJ$120,ROWS($A$10:$A43)+2,FALSE)","v":25177},{"$f":"HLOOKUP(O$7,$I$66:$DJ$120,ROWS($A$10:$A43)+2,FALSE)","v":3135},{"$f":"HLOOKUP(P$7,$I$66:$DJ$120,ROWS($A$10:$A43)+2,FALSE)","v":15338},{"$f":"HLOOKUP(Q$7,$I$66:$DJ$120,ROWS($A$10:$A43)+2,FALSE)","v":2603},{"$f":"HLOOKUP(R$7,$I$66:$DJ$120,ROWS($A$10:$A43)+2,FALSE)","v":1983},{"$f":"HLOOKUP(S$7,$I$66:$DJ$120,ROWS($A$10:$A43)+2,FALSE)","v":30553},{"$f":"HLOOKUP(T$7,$I$66:$DJ$120,ROWS($A$10:$A43)+2,FALSE)","v":7676},{"$f":"HLOOKUP(U$7,$I$66:$DJ$120,ROWS($A$10:$A43)+2,FALSE)","v":259},{"$f":"HLOOKUP(V$7,$I$66:$DJ$120,ROWS($A$10:$A43)+2,FALSE)","v":198},{"$f":"HLOOKUP(W$7,$I$66:$DJ$120,ROWS($A$10:$A43)+2,FALSE)","v":6533},{"$f":"HLOOKUP(X$7,$I$66:$DJ$120,ROWS($A$10:$A43)+2,FALSE)","v":2497},{"$f":"HLOOKUP(Y$7,$I$66:$DJ$120,ROWS($A$10:$A43)+2,FALSE)","v":477},{"$f":"HLOOKUP(Z$7,$I$66:$DJ$120,ROWS($A$10:$A43)+2,FALSE)","v":1189},{"$f":"HLOOKUP(AA$7,$I$66:$DJ$120,ROWS($A$10:$A43)+2,FALSE)","v":804},{"$f":"HLOOKUP(AB$7,$I$66:$DJ$120,ROWS($A$10:$A43)+2,FALSE)","v":1321},{"$f":"HLOOKUP(AC$7,$I$66:$DJ$120,ROWS($A$10:$A43)+2,FALSE)","v":2270},{"$f":"HLOOKUP(AD$7,$I$66:$DJ$120,ROWS($A$10:$A43)+2,FALSE)","v":5912},{"$f":"HLOOKUP(AE$7,$I$66:$DJ$120,ROWS($A$10:$A43)+2,FALSE)","v":16855},{"$f":"HLOOKUP(AF$7,$I$66:$DJ$120,ROWS($A$10:$A43)+2,FALSE)","v":4779},{"$f":"HLOOKUP(AG$7,$I$66:$DJ$120,ROWS($A$10:$A43)+2,FALSE)","v":1649},{"$f":"HLOOKUP(AH$7,$I$66:$DJ$120,ROWS($A$10:$A43)+2,FALSE)","v":872},{"$f":"HLOOKUP(AI$7,$I$66:$DJ$120,ROWS($A$10:$A43)+2,FALSE)","v":1870},{"$f":"HLOOKUP(AJ$7,$I$66:$DJ$120,ROWS($A$10:$A43)+2,FALSE)","v":237},{"$f":"HLOOKUP(AK$7,$I$66:$DJ$120,ROWS($A$10:$A43)+2,FALSE)","v":886},{"$f":"HLOOKUP(AL$7,$I$66:$DJ$120,ROWS($A$10:$A43)+2,FALSE)","v":2077},{"$f":"HLOOKUP(AM$7,$I$66:$DJ$120,ROWS($A$10:$A43)+2,FALSE)","v":2636},{"$f":"HLOOKUP(AN$7,$I$66:$DJ$120,ROWS($A$10:$A43)+2,FALSE)","v":35333},{"$f":"HLOOKUP(AO$7,$I$66:$DJ$120,ROWS($A$10:$A43)+2,FALSE)","v":829},{"$f":"HLOOKUP(AP$7,$I$66:$DJ$120,ROWS($A$10:$A43)+2,FALSE)","v":"N/A"},{"$f":"HLOOKUP(AQ$7,$I$66:$DJ$120,ROWS($A$10:$A43)+2,FALSE)","v":13322},{"$f":"HLOOKUP(AR$7,$I$66:$DJ$120,ROWS($A$10:$A43)+2,FALSE)","v":0},{"$f":"HLOOKUP(AS$7,$I$66:$DJ$120,ROWS($A$10:$A43)+2,FALSE)","v":6510},{"$f":"HLOOKUP(AT$7,$I$66:$DJ$120,ROWS($A$10:$A43)+2,FALSE)","v":2298},{"$f":"HLOOKUP(AU$7,$I$66:$DJ$120,ROWS($A$10:$A43)+2,FALSE)","v":2284},{"$f":"HLOOKUP(AV$7,$I$66:$DJ$120,ROWS($A$10:$A43)+2,FALSE)","v":20514},{"$f":"HLOOKUP(AW$7,$I$66:$DJ$120,ROWS($A$10:$A43)+2,FALSE)","v":1913},{"$f":"HLOOKUP(AX$7,$I$66:$DJ$120,ROWS($A$10:$A43)+2,FALSE)","v":7161},{"$f":"HLOOKUP(AY$7,$I$66:$DJ$120,ROWS($A$10:$A43)+2,FALSE)","v":521},{"$f":"HLOOKUP(AZ$7,$I$66:$DJ$120,ROWS($A$10:$A43)+2,FALSE)","v":1730},{"$f":"HLOOKUP(BA$7,$I$66:$DJ$120,ROWS($A$10:$A43)+2,FALSE)","v":9692},{"$f":"HLOOKUP(BB$7,$I$66:$DJ$120,ROWS($A$10:$A43)+2,FALSE)","v":910},{"$f":"HLOOKUP(BC$7,$I$66:$DJ$120,ROWS($A$10:$A43)+2,FALSE)","v":2900},{"$f":"HLOOKUP(BD$7,$I$66:$DJ$120,ROWS($A$10:$A43)+2,FALSE)","v":8881},{"$f":"HLOOKUP(BE$7,$I$66:$DJ$120,ROWS($A$10:$A43)+2,FALSE)","v":2503},{"$f":"HLOOKUP(BF$7,$I$66:$DJ$120,ROWS($A$10:$A43)+2,FALSE)","v":444},{"$f":"HLOOKUP(BG$7,$I$66:$DJ$120,ROWS($A$10:$A43)+2,FALSE)","v":2354},{"$f":"HLOOKUP(BH$7,$I$66:$DJ$120,ROWS($A$10:$A43)+2,FALSE)","v":151},{"$f":"HLOOKUP(BI$7,$I$66:$DJ$120,ROWS($A$10:$A43)+2,FALSE)","v":6740},{"$f":"HLOOKUP(BJ$7+0.5,$I$66:$DJ$120,ROWS($A$10:$A43)+2,FALSE)","v":14924},{"$f":"HLOOKUP(BK$7+0.5,$I$66:$DJ$120,ROWS($A$10:$A43)+2,FALSE)","v":924},{"$f":"HLOOKUP(BL$7+0.5,$I$66:$DJ$120,ROWS($A$10:$A43)+2,FALSE)","v":2375},{"$f":"HLOOKUP(BM$7+0.5,$I$66:$DJ$120,ROWS($A$10:$A43)+2,FALSE)","v":799},{"$f":"HLOOKUP(BN$7+0.5,$I$66:$DJ$120,ROWS($A$10:$A43)+2,FALSE)","v":249},{"$f":"HLOOKUP(BO$7+0.5,$I$66:$DJ$120,ROWS($A$10:$A43)+2,FALSE)","v":4560},{"$f":"HLOOKUP(BP$7+0.5,$I$66:$DJ$120,ROWS($A$10:$A43)+2,FALSE)","v":1173},{"$f":"HLOOKUP(BQ$7+0.5,$I$66:$DJ$120,ROWS($A$10:$A43)+2,FALSE)","v":2651},{"$f":"HLOOKUP(BR$7+0.5,$I$66:$DJ$120,ROWS($A$10:$A43)+2,FALSE)","v":1828},{"$f":"HLOOKUP(BS$7+0.5,$I$66:$DJ$120,ROWS($A$10:$A43)+2,FALSE)","v":820},{"$f":"HLOOKUP(BT$7+0.5,$I$66:$DJ$120,ROWS($A$10:$A43)+2,FALSE)","v":4156},{"$f":"HLOOKUP(BU$7+0.5,$I$66:$DJ$120,ROWS($A$10:$A43)+2,FALSE)","v":1970},{"$f":"HLOOKUP(BV$7+0.5,$I$66:$DJ$120,ROWS($A$10:$A43)+2,FALSE)","v":195},{"$f":"HLOOKUP(BW$7+0.5,$I$66:$DJ$120,ROWS($A$10:$A43)+2,FALSE)","v":198},{"$f":"HLOOKUP(BX$7+0.5,$I$66:$DJ$120,ROWS($A$10:$A43)+2,FALSE)","v":2144},{"$f":"HLOOKUP(BY$7+0.5,$I$66:$DJ$120,ROWS($A$10:$A43)+2,FALSE)","v":1311},{"$f":"HLOOKUP(BZ$7+0.5,$I$66:$DJ$120,ROWS($A$10:$A43)+2,FALSE)","v":319},{"$f":"HLOOKUP(CA$7+0.5,$I$66:$DJ$120,ROWS($A$10:$A43)+2,FALSE)","v":712},{"$f":"HLOOKUP(CB$7+0.5,$I$66:$DJ$120,ROWS($A$10:$A43)+2,FALSE)","v":500},{"$f":"HLOOKUP(CC$7+0.5,$I$66:$DJ$120,ROWS($A$10:$A43)+2,FALSE)","v":847},{"$f":"HLOOKUP(CD$7+0.5,$I$66:$DJ$120,ROWS($A$10:$A43)+2,FALSE)","v":1705},{"$f":"HLOOKUP(CE$7+0.5,$I$66:$DJ$120,ROWS($A$10:$A43)+2,FALSE)","v":1583},{"$f":"HLOOKUP(CF$7+0.5,$I$66:$DJ$120,ROWS($A$10:$A43)+2,FALSE)","v":3094},{"$f":"HLOOKUP(CG$7+0.5,$I$66:$DJ$120,ROWS($A$10:$A43)+2,FALSE)","v":1496},{"$f":"HLOOKUP(CH$7+0.5,$I$66:$DJ$120,ROWS($A$10:$A43)+2,FALSE)","v":1086},{"$f":"HLOOKUP(CI$7+0.5,$I$66:$DJ$120,ROWS($A$10:$A43)+2,FALSE)","v":381},{"$f":"HLOOKUP(CJ$7+0.5,$I$66:$DJ$120,ROWS($A$10:$A43)+2,FALSE)","v":961},{"$f":"HLOOKUP(CK$7+0.5,$I$66:$DJ$120,ROWS($A$10:$A43)+2,FALSE)","v":210},{"$f":"HLOOKUP(CL$7+0.5,$I$66:$DJ$120,ROWS($A$10:$A43)+2,FALSE)","v":564},{"$f":"HLOOKUP(CM$7+0.5,$I$66:$DJ$120,ROWS($A$10:$A43)+2,FALSE)","v":810},{"$f":"HLOOKUP(CN$7+0.5,$I$66:$DJ$120,ROWS($A$10:$A43)+2,FALSE)","v":1065},{"$f":"HLOOKUP(CO$7+0.5,$I$66:$DJ$120,ROWS($A$10:$A43)+2,FALSE)","v":4610},{"$f":"HLOOKUP(CP$7+0.5,$I$66:$DJ$120,ROWS($A$10:$A43)+2,FALSE)","v":596},{"$f":"HLOOKUP(CQ$7+0.5,$I$66:$DJ$120,ROWS($A$10:$A43)+2,FALSE)","v":"N/A"},{"$f":"HLOOKUP(CR$7+0.5,$I$66:$DJ$120,ROWS($A$10:$A43)+2,FALSE)","v":3003},{"$f":"HLOOKUP(CS$7+0.5,$I$66:$DJ$120,ROWS($A$10:$A43)+2,FALSE)","v":275},{"$f":"HLOOKUP(CT$7+0.5,$I$66:$DJ$120,ROWS($A$10:$A43)+2,FALSE)","v":1610},{"$f":"HLOOKUP(CU$7+0.5,$I$66:$DJ$120,ROWS($A$10:$A43)+2,FALSE)","v":1033},{"$f":"HLOOKUP(CV$7+0.5,$I$66:$DJ$120,ROWS($A$10:$A43)+2,FALSE)","v":1098},{"$f":"HLOOKUP(CW$7+0.5,$I$66:$DJ$120,ROWS($A$10:$A43)+2,FALSE)","v":3022},{"$f":"HLOOKUP(CX$7+0.5,$I$66:$DJ$120,ROWS($A$10:$A43)+2,FALSE)","v":1041},{"$f":"HLOOKUP(CY$7+0.5,$I$66:$DJ$120,ROWS($A$10:$A43)+2,FALSE)","v":2607},{"$f":"HLOOKUP(CZ$7+0.5,$I$66:$DJ$120,ROWS($A$10:$A43)+2,FALSE)","v":509},{"$f":"HLOOKUP(DA$7+0.5,$I$66:$DJ$120,ROWS($A$10:$A43)+2,FALSE)","v":835},{"$f":"HLOOKUP(DB$7+0.5,$I$66:$DJ$120,ROWS($A$10:$A43)+2,FALSE)","v":2018},{"$f":"HLOOKUP(DC$7+0.5,$I$66:$DJ$120,ROWS($A$10:$A43)+2,FALSE)","v":988},{"$f":"HLOOKUP(DD$7+0.5,$I$66:$DJ$120,ROWS($A$10:$A43)+2,FALSE)","v":908},{"$f":"HLOOKUP(DE$7+0.5,$I$66:$DJ$120,ROWS($A$10:$A43)+2,FALSE)","v":1939},{"$f":"HLOOKUP(DF$7+0.5,$I$66:$DJ$120,ROWS($A$10:$A43)+2,FALSE)","v":976},{"$f":"HLOOKUP(DG$7+0.5,$I$66:$DJ$120,ROWS($A$10:$A43)+2,FALSE)","v":285},{"$f":"HLOOKUP(DH$7+0.5,$I$66:$DJ$120,ROWS($A$10:$A43)+2,FALSE)","v":1588},{"$f":"HLOOKUP(DI$7+0.5,$I$66:$DJ$120,ROWS($A$10:$A43)+2,FALSE)","v":148},{"$f":"HLOOKUP(DJ$7+0.5,$I$66:$DJ$120,ROWS($A$10:$A43)+2,FALSE)","v":2049}]
[null,"North Carolina",9443000,5070,7982017,29580,1141001,25307,{"$f":"HLOOKUP(I$7,$I$66:$DJ$120,ROWS($A$10:$A44)+2,FALSE)","v":263256},{"$f":"HLOOKUP(J$7,$I$66:$DJ$120,ROWS($A$10:$A44)+2,FALSE)","v":3044},{"$f":"HLOOKUP(K$7,$I$66:$DJ$120,ROWS($A$10:$A44)+2,FALSE)","v":1618},{"$f":"HLOOKUP(L$7,$I$66:$DJ$120,ROWS($A$10:$A44)+2,FALSE)","v":2847},{"$f":"HLOOKUP(M$7,$I$66:$DJ$120,ROWS($A$10:$A44)+2,FALSE)","v":550},{"$f":"HLOOKUP(N$7,$I$66:$DJ$120,ROWS($A$10:$A44)+2,FALSE)","v":16699},{"$f":"HLOOKUP(O$7,$I$66:$DJ$120,ROWS($A$10:$A44)+2,FALSE)","v":1842},{"$f":"HLOOKUP(P$7,$I$66:$DJ$120,ROWS($A$10:$A44)+2,FALSE)","v":3752},{"$f":"HLOOKUP(Q$7,$I$66:$DJ$120,ROWS($A$10:$A44)+2,FALSE)","v":479},{"$f":"HLOOKUP(R$7,$I$66:$DJ$120,ROWS($A$10:$A44)+2,FALSE)","v":1691},{"$f":"HLOOKUP(S$7,$I$66:$DJ$120,ROWS($A$10:$A44)+2,FALSE)","v":28983},{"$f":"HLOOKUP(T$7,$I$66:$DJ$120,ROWS($A$10:$A44)+2,FALSE)","v":15943},{"$f":"HLOOKUP(U$7,$I$66:$DJ$120,ROWS($A$10:$A44)+2,FALSE)","v":1567},{"$f":"HLOOKUP(V$7,$I$66:$DJ$120,ROWS($A$10:$A44)+2,FALSE)","v":724},{"$f":"HLOOKUP(W$7,$I$66:$DJ$120,ROWS($A$10:$A44)+2,FALSE)","v":5657},{"$f":"HLOOKUP(X$7,$I$66:$DJ$120,ROWS($A$10:$A44)+2,FALSE)","v":4132},{"$f":"HLOOKUP(Y$7,$I$66:$DJ$120,ROWS($A$10:$A44)+2,FALSE)","v":1077},{"$f":"HLOOKUP(Z$7,$I$66:$DJ$120,ROWS($A$10:$A44)+2,FALSE)","v":2192},{"$f":"HLOOKUP(AA$7,$I$66:$DJ$120,ROWS($A$10:$A44)+2,FALSE)","v":4419},{"$f":"HLOOKUP(AB$7,$I$66:$DJ$120,ROWS($A$10:$A44)+2,FALSE)","v":2180},{"$f":"HLOOKUP(AC$7,$I$66:$DJ$120,ROWS($A$10:$A44)+2,FALSE)","v":2259},{"$f":"HLOOKUP(AD$7,$I$66:$DJ$120,ROWS($A$10:$A44)+2,FALSE)","v":9881},{"$f":"HLOOKUP(AE$7,$I$66:$DJ$120,ROWS($A$10:$A44)+2,FALSE)","v":4052},{"$f":"HLOOKUP(AF$7,$I$66:$DJ$120,ROWS($A$10:$A44)+2,FALSE)","v":5789},{"$f":"HLOOKUP(AG$7,$I$66:$DJ$120,ROWS($A$10:$A44)+2,FALSE)","v":1839},{"$f":"HLOOKUP(AH$7,$I$66:$DJ$120,ROWS($A$10:$A44)+2,FALSE)","v":1187},{"$f":"HLOOKUP(AI$7,$I$66:$DJ$120,ROWS($A$10:$A44)+2,FALSE)","v":1932},{"$f":"HLOOKUP(AJ$7,$I$66:$DJ$120,ROWS($A$10:$A44)+2,FALSE)","v":230},{"$f":"HLOOKUP(AK$7,$I$66:$DJ$120,ROWS($A$10:$A44)+2,FALSE)","v":516},{"$f":"HLOOKUP(AL$7,$I$66:$DJ$120,ROWS($A$10:$A44)+2,FALSE)","v":698},{"$f":"HLOOKUP(AM$7,$I$66:$DJ$120,ROWS($A$10:$A44)+2,FALSE)","v":2130},{"$f":"HLOOKUP(AN$7,$I$66:$DJ$120,ROWS($A$10:$A44)+2,FALSE)","v":7195},{"$f":"HLOOKUP(AO$7,$I$66:$DJ$120,ROWS($A$10:$A44)+2,FALSE)","v":1186},{"$f":"HLOOKUP(AP$7,$I$66:$DJ$120,ROWS($A$10:$A44)+2,FALSE)","v":19406},{"$f":"HLOOKUP(AQ$7,$I$66:$DJ$120,ROWS($A$10:$A44)+2,FALSE)","v":"N/A"},{"$f":"HLOOKUP(AR$7,$I$66:$DJ$120,ROWS($A$10:$A44)+2,FALSE)","v":243},{"$f":"HLOOKUP(AS$7,$I$66:$DJ$120,ROWS($A$10:$A44)+2,FALSE)","v":8661},{"$f":"HLOOKUP(AT$7,$I$66:$DJ$120,ROWS($A$10:$A44)+2,FALSE)","v":1453},{"$f":"HLOOKUP(AU$7,$I$66:$DJ$120,ROWS($A$10:$A44)+2,FALSE)","v":1796},{"$f":"HLOOKUP(AV$7,$I$66:$DJ$120,ROWS($A$10:$A44)+2,FALSE)","v":11155},{"$f":"HLOOKUP(AW$7,$I$66:$DJ$120,ROWS($A$10:$A44)+2,FALSE)","v":97},{"$f":"HLOOKUP(AX$7,$I$66:$DJ$120,ROWS($A$10:$A44)+2,FALSE)","v":23196},{"$f":"HLOOKUP(AY$7,$I$66:$DJ$120,ROWS($A$10:$A44)+2,FALSE)","v":362},{"$f":"HLOOKUP(AZ$7,$I$66:$DJ$120,ROWS($A$10:$A44)+2,FALSE)","v":8685},{"$f":"HLOOKUP(BA$7,$I$66:$DJ$120,ROWS($A$10:$A44)+2,FALSE)","v":14329},{"$f":"HLOOKUP(BB$7,$I$66:$DJ$120,ROWS($A$10:$A44)+2,FALSE)","v":790},{"$f":"HLOOKUP(BC$7,$I$66:$DJ$120,ROWS($A$10:$A44)+2,FALSE)","v":350},{"$f":"HLOOKUP(BD$7,$I$66:$DJ$120,ROWS($A$10:$A44)+2,FALSE)","v":25662},{"$f":"HLOOKUP(BE$7,$I$66:$DJ$120,ROWS($A$10:$A44)+2,FALSE)","v":2874},{"$f":"HLOOKUP(BF$7,$I$66:$DJ$120,ROWS($A$10:$A44)+2,FALSE)","v":3025},{"$f":"HLOOKUP(BG$7,$I$66:$DJ$120,ROWS($A$10:$A44)+2,FALSE)","v":2012},{"$f":"HLOOKUP(BH$7,$I$66:$DJ$120,ROWS($A$10:$A44)+2,FALSE)","v":870},{"$f":"HLOOKUP(BI$7,$I$66:$DJ$120,ROWS($A$10:$A44)+2,FALSE)","v":1950},{"$f":"HLOOKUP(BJ$7+0.5,$I$66:$DJ$120,ROWS($A$10:$A44)+2,FALSE)","v":13976},{"$f":"HLOOKUP(BK$7+0.5,$I$66:$DJ$120,ROWS($A$10:$A44)+2,FALSE)","v":1381},{"$f":"HLOOKUP(BL$7+0.5,$I$66:$DJ$120,ROWS($A$10:$A44)+2,FALSE)","v":1103},{"$f":"HLOOKUP(BM$7+0.5,$I$66:$DJ$120,ROWS($A$10:$A44)+2,FALSE)","v":1062},{"$f":"HLOOKUP(BN$7+0.5,$I$66:$DJ$120,ROWS($A$10:$A44)+2,FALSE)","v":306},{"$f":"HLOOKUP(BO$7+0.5,$I$66:$DJ$120,ROWS($A$10:$A44)+2,FALSE)","v":3085},{"$f":"HLOOKUP(BP$7+0.5,$I$66:$DJ$120,ROWS($A$10:$A44)+2,FALSE)","v":1052},{"$f":"HLOOKUP(BQ$7+0.5,$I$66:$DJ$120,ROWS($A$10:$A44)+2,FALSE)","v":1748},{"$f":"HLOOKUP(BR$7+0.5,$I$66:$DJ$120,ROWS($A$10:$A44)+2,FALSE)","v":354},{"$f":"HLOOKUP(BS$7+0.5,$I$66:$DJ$120,ROWS($A$10:$A44)+2,FALSE)","v":548},{"$f":"HLOOKUP(BT$7+0.5,$I$66:$DJ$120,ROWS($A$10:$A44)+2,FALSE)","v":4184},{"$f":"HLOOKUP(BU$7+0.5,$I$66:$DJ$120,ROWS($A$10:$A44)+2,FALSE)","v":3370},{"$f":"HLOOKUP(BV$7+0.5,$I$66:$DJ$120,ROWS($A$10:$A44)+2,FALSE)","v":871},{"$f":"HLOOKUP(BW$7+0.5,$I$66:$DJ$120,ROWS($A$10:$A44)+2,FALSE)","v":564},{"$f":"HLOOKUP(BX$7+0.5,$I$66:$DJ$120,ROWS($A$10:$A44)+2,FALSE)","v":1875},{"$f":"HLOOKUP(BY$7+0.5,$I$66:$DJ$120,ROWS($A$10:$A44)+2,FALSE)","v":1280},{"$f":"HLOOKUP(BZ$7+0.5,$I$66:$DJ$120,ROWS($A$10:$A44)+2,FALSE)","v":806},{"$f":"HLOOKUP(CA$7+0.5,$I$66:$DJ$120,ROWS($A$10:$A44)+2,FALSE)","v":1266},{"$f":"HLOOKUP(CB$7+0.5,$I$66:$DJ$120,ROWS($A$10:$A44)+2,FALSE)","v":1984},{"$f":"HLOOKUP(CC$7+0.5,$I$66:$DJ$120,ROWS($A$10:$A44)+2,FALSE)","v":1222},{"$f":"HLOOKUP(CD$7+0.5,$I$66:$DJ$120,ROWS($A$10:$A44)+2,FALSE)","v":990},{"$f":"HLOOKUP(CE$7+0.5,$I$66:$DJ$120,ROWS($A$10:$A44)+2,FALSE)","v":2730},{"$f":"HLOOKUP(CF$7+0.5,$I$66:$DJ$120,ROWS($A$10:$A44)+2,FALSE)","v":1420},{"$f":"HLOOKUP(CG$7+0.5,$I$66:$DJ$120,ROWS($A$10:$A44)+2,FALSE)","v":2071},{"$f":"HLOOKUP(CH$7+0.5,$I$66:$DJ$120,ROWS($A$10:$A44)+2,FALSE)","v":844},{"$f":"HLOOKUP(CI$7+0.5,$I$66:$DJ$120,ROWS($A$10:$A44)+2,FALSE)","v":818},{"$f":"HLOOKUP(CJ$7+0.5,$I$66:$DJ$120,ROWS($A$10:$A44)+2,FALSE)","v":965},{"$f":"HLOOKUP(CK$7+0.5,$I$66:$DJ$120,ROWS($A$10:$A44)+2,FALSE)","v":274},{"$f":"HLOOKUP(CL$7+0.5,$I$66:$DJ$120,ROWS($A$10:$A44)+2,FALSE)","v":357},{"$f":"HLOOKUP(CM$7+0.5,$I$66:$DJ$120,ROWS($A$10:$A44)+2,FALSE)","v":639},{"$f":"HLOOKUP(CN$7+0.5,$I$66:$DJ$120,ROWS($A$10:$A44)+2,FALSE)","v":1440},{"$f":"HLOOKUP(CO$7+0.5,$I$66:$DJ$120,ROWS($A$10:$A44)+2,FALSE)","v":1847},{"$f":"HLOOKUP(CP$7+0.5,$I$66:$DJ$120,ROWS($A$10:$A44)+2,FALSE)","v":1065},{"$f":"HLOOKUP(CQ$7+0.5,$I$66:$DJ$120,ROWS($A$10:$A44)+2,FALSE)","v":3099},{"$f":"HLOOKUP(CR$7+0.5,$I$66:$DJ$120,ROWS($A$10:$A44)+2,FALSE)","v":"N/A"},{"$f":"HLOOKUP(CS$7+0.5,$I$66:$DJ$120,ROWS($A$10:$A44)+2,FALSE)","v":402},{"$f":"HLOOKUP(CT$7+0.5,$I$66:$DJ$120,ROWS($A$10:$A44)+2,FALSE)","v":2362},{"$f":"HLOOKUP(CU$7+0.5,$I$66:$DJ$120,ROWS($A$10:$A44)+2,FALSE)","v":717},{"$f":"HLOOKUP(CV$7+0.5,$I$66:$DJ$120,ROWS($A$10:$A44)+2,FALSE)","v":1013},{"$f":"HLOOKUP(CW$7+0.5,$I$66:$DJ$120,ROWS($A$10:$A44)+2,FALSE)","v":2465},{"$f":"HLOOKUP(CX$7+0.5,$I$66:$DJ$120,ROWS($A$10:$A44)+2,FALSE)","v":161},{"$f":"HLOOKUP(CY$7+0.5,$I$66:$DJ$120,ROWS($A$10:$A44)+2,FALSE)","v":4788},{"$f":"HLOOKUP(CZ$7+0.5,$I$66:$DJ$120,ROWS($A$10:$A44)+2,FALSE)","v":304},{"$f":"HLOOKUP(DA$7+0.5,$I$66:$DJ$120,ROWS($A$10:$A44)+2,FALSE)","v":2249},{"$f":"HLOOKUP(DB$7+0.5,$I$66:$DJ$120,ROWS($A$10:$A44)+2,FALSE)","v":3409},{"$f":"HLOOKUP(DC$7+0.5,$I$66:$DJ$120,ROWS($A$10:$A44)+2,FALSE)","v":551},{"$f":"HLOOKUP(DD$7+0.5,$I$66:$DJ$120,ROWS($A$10:$A44)+2,FALSE)","v":244},{"$f":"HLOOKUP(DE$7+0.5,$I$66:$DJ$120,ROWS($A$10:$A44)+2,FALSE)","v":3825},{"$f":"HLOOKUP(DF$7+0.5,$I$66:$DJ$120,ROWS($A$10:$A44)+2,FALSE)","v":1166},{"$f":"HLOOKUP(DG$7+0.5,$I$66:$DJ$120,ROWS($A$10:$A44)+2,FALSE)","v":1129},{"$f":"HLOOKUP(DH$7+0.5,$I$66:$DJ$120,ROWS($A$10:$A44)+2,FALSE)","v":910},{"$f":"HLOOKUP(DI$7+0.5,$I$66:$DJ$120,ROWS($A$10:$A44)+2,FALSE)","v":819},{"$f":"HLOOKUP(DJ$7+0.5,$I$66:$DJ$120,ROWS($A$10:$A44)+2,FALSE)","v":1463}]
[null,"North Dakota",665654,1209,556222,6833,75720,5430,{"$f":"HLOOKUP(I$7,$I$66:$DJ$120,ROWS($A$10:$A45)+2,FALSE)","v":30100},{"$f":"HLOOKUP(J$7,$I$66:$DJ$120,ROWS($A$10:$A45)+2,FALSE)","v":109},{"$f":"HLOOKUP(K$7,$I$66:$DJ$120,ROWS($A$10:$A45)+2,FALSE)","v":1066},{"$f":"HLOOKUP(L$7,$I$66:$DJ$120,ROWS($A$10:$A45)+2,FALSE)","v":662},{"$f":"HLOOKUP(M$7,$I$66:$DJ$120,ROWS($A$10:$A45)+2,FALSE)","v":168},{"$f":"HLOOKUP(N$7,$I$66:$DJ$120,ROWS($A$10:$A45)+2,FALSE)","v":1411},{"$f":"HLOOKUP(O$7,$I$66:$DJ$120,ROWS($A$10:$A45)+2,FALSE)","v":873},{"$f":"HLOOKUP(P$7,$I$66:$DJ$120,ROWS($A$10:$A45)+2,FALSE)","v":30},{"$f":"HLOOKUP(Q$7,$I$66:$DJ$120,ROWS($A$10:$A45)+2,FALSE)","v":0},{"$f":"HLOOKUP(R$7,$I$66:$DJ$120,ROWS($A$10:$A45)+2,FALSE)","v":175},{"$f":"HLOOKUP(S$7,$I$66:$DJ$120,ROWS($A$10:$A45)+2,FALSE)","v":492},{"$f":"HLOOKUP(T$7,$I$66:$DJ$120,ROWS($A$10:$A45)+2,FALSE)","v":799},{"$f":"HLOOKUP(U$7,$I$66:$DJ$120,ROWS($A$10:$A45)+2,FALSE)","v":53},{"$f":"HLOOKUP(V$7,$I$66:$DJ$120,ROWS($A$10:$A45)+2,FALSE)","v":69},{"$f":"HLOOKUP(W$7,$I$66:$DJ$120,ROWS($A$10:$A45)+2,FALSE)","v":39},{"$f":"HLOOKUP(X$7,$I$66:$DJ$120,ROWS($A$10:$A45)+2,FALSE)","v":45},{"$f":"HLOOKUP(Y$7,$I$66:$DJ$120,ROWS($A$10:$A45)+2,FALSE)","v":289},{"$f":"HLOOKUP(Z$7,$I$66:$DJ$120,ROWS($A$10:$A45)+2,FALSE)","v":114},{"$f":"HLOOKUP(AA$7,$I$66:$DJ$120,ROWS($A$10:$A45)+2,FALSE)","v":97},{"$f":"HLOOKUP(AB$7,$I$66:$DJ$120,ROWS($A$10:$A45)+2,FALSE)","v":374},{"$f":"HLOOKUP(AC$7,$I$66:$DJ$120,ROWS($A$10:$A45)+2,FALSE)","v":0},{"$f":"HLOOKUP(AD$7,$I$66:$DJ$120,ROWS($A$10:$A45)+2,FALSE)","v":121},{"$f":"HLOOKUP(AE$7,$I$66:$DJ$120,ROWS($A$10:$A45)+2,FALSE)","v":52},{"$f":"HLOOKUP(AF$7,$I$66:$DJ$120,ROWS($A$10:$A45)+2,FALSE)","v":298},{"$f":"HLOOKUP(AG$7,$I$66:$DJ$120,ROWS($A$10:$A45)+2,FALSE)","v":12350},{"$f":"HLOOKUP(AH$7,$I$66:$DJ$120,ROWS($A$10:$A45)+2,FALSE)","v":0},{"$f":"HLOOKUP(AI$7,$I$66:$DJ$120,ROWS($A$10:$A45)+2,FALSE)","v":197},{"$f":"HLOOKUP(AJ$7,$I$66:$DJ$120,ROWS($A$10:$A45)+2,FALSE)","v":1236},{"$f":"HLOOKUP(AK$7,$I$66:$DJ$120,ROWS($A$10:$A45)+2,FALSE)","v":328},{"$f":"HLOOKUP(AL$7,$I$66:$DJ$120,ROWS($A$10:$A45)+2,FALSE)","v":382},{"$f":"HLOOKUP(AM$7,$I$66:$DJ$120,ROWS($A$10:$A45)+2,FALSE)","v":0},{"$f":"HLOOKUP(AN$7,$I$66:$DJ$120,ROWS($A$10:$A45)+2,FALSE)","v":144},{"$f":"HLOOKUP(AO$7,$I$66:$DJ$120,ROWS($A$10:$A45)+2,FALSE)","v":380},{"$f":"HLOOKUP(AP$7,$I$66:$DJ$120,ROWS($A$10:$A45)+2,FALSE)","v":188},{"$f":"HLOOKUP(AQ$7,$I$66:$DJ$120,ROWS($A$10:$A45)+2,FALSE)","v":637},{"$f":"HLOOKUP(AR$7,$I$66:$DJ$120,ROWS($A$10:$A45)+2,FALSE)","v":"N/A"},{"$f":"HLOOKUP(AS$7,$I$66:$DJ$120,ROWS($A$10:$A45)+2,FALSE)","v":134},{"$f":"HLOOKUP(AT$7,$I$66:$DJ$120,ROWS($A$10:$A45)+2,FALSE)","v":108},{"$f":"HLOOKUP(AU$7,$I$66:$DJ$120,ROWS($A$10:$A45)+2,FALSE)","v":313},{"$f":"HLOOKUP(AV$7,$I$66:$DJ$120,ROWS($A$10:$A45)+2,FALSE)","v":392},{"$f":"HLOOKUP(AW$7,$I$66:$DJ$120,ROWS($A$10:$A45)+2,FALSE)","v":0},{"$f":"HLOOKUP(AX$7,$I$66:$DJ$120,ROWS($A$10:$A45)+2,FALSE)","v":0},{"$f":"HLOOKUP(AY$7,$I$66:$DJ$120,ROWS($A$10:$A45)+2,FALSE)","v":1038},{"$f":"HLOOKUP(AZ$7,$I$66:$DJ$120,ROWS($A$10:$A45)+2,FALSE)","v":273},{"$f":"HLOOKUP(BA$7,$I$66:$DJ$120,ROWS($A$10:$A45)+2,FALSE)","v":2513},{"$f":"HLOOKUP(BB$7,$I$66:$DJ$120,ROWS($A$10:$A45)+2,FALSE)","v":462},{"$f":"HLOOKUP(BC$7,$I$66:$DJ$120,ROWS($A$10:$A45)+2,FALSE)","v":0},{"$f":"HLOOKUP(BD$7,$I$66:$DJ$120,ROWS($A$10:$A45)+2,FALSE)","v":25},{"$f":"HLOOKUP(BE$7,$I$66:$DJ$120,ROWS($A$10:$A45)+2,FALSE)","v":696},{"$f":"HLOOKUP(BF$7,$I$66:$DJ$120,ROWS($A$10:$A45)+2,FALSE)","v":0},{"$f":"HLOOKUP(BG$7,$I$66:$DJ$120,ROWS($A$10:$A45)+2,FALSE)","v":749},{"$f":"HLOOKUP(BH$7,$I$66:$DJ$120,ROWS($A$10:$A45)+2,FALSE)","v":219},{"$f":"HLOOKUP(BI$7,$I$66:$DJ$120,ROWS($A$10:$A45)+2,FALSE)","v":0},{"$f":"HLOOKUP(BJ$7+0.5,$I$66:$DJ$120,ROWS($A$10:$A45)+2,FALSE)","v":3890},{"$f":"HLOOKUP(BK$7+0.5,$I$66:$DJ$120,ROWS($A$10:$A45)+2,FALSE)","v":108},{"$f":"HLOOKUP(BL$7+0.5,$I$66:$DJ$120,ROWS($A$10:$A45)+2,FALSE)","v":823},{"$f":"HLOOKUP(BM$7+0.5,$I$66:$DJ$120,ROWS($A$10:$A45)+2,FALSE)","v":481},{"$f":"HLOOKUP(BN$7+0.5,$I$66:$DJ$120,ROWS($A$10:$A45)+2,FALSE)","v":206},{"$f":"HLOOKUP(BO$7+0.5,$I$66:$DJ$120,ROWS($A$10:$A45)+2,FALSE)","v":873},{"$f":"HLOOKUP(BP$7+0.5,$I$66:$DJ$120,ROWS($A$10:$A45)+2,FALSE)","v":614},{"$f":"HLOOKUP(BQ$7+0.5,$I$66:$DJ$120,ROWS($A$10:$A45)+2,FALSE)","v":47},{"$f":"HLOOKUP(BR$7+0.5,$I$66:$DJ$120,ROWS($A$10:$A45)+2,FALSE)","v":211},{"$f":"HLOOKUP(BS$7+0.5,$I$66:$DJ$120,ROWS($A$10:$A45)+2,FALSE)","v":275},{"$f":"HLOOKUP(BT$7+0.5,$I$66:$DJ$120,ROWS($A$10:$A45)+2,FALSE)","v":376},{"$f":"HLOOKUP(BU$7+0.5,$I$66:$DJ$120,ROWS($A$10:$A45)+2,FALSE)","v":837},{"$f":"HLOOKUP(BV$7+0.5,$I$66:$DJ$120,ROWS($A$10:$A45)+2,FALSE)","v":84},{"$f":"HLOOKUP(BW$7+0.5,$I$66:$DJ$120,ROWS($A$10:$A45)+2,FALSE)","v":82},{"$f":"HLOOKUP(BX$7+0.5,$I$66:$DJ$120,ROWS($A$10:$A45)+2,FALSE)","v":54},{"$f":"HLOOKUP(BY$7+0.5,$I$66:$DJ$120,ROWS($A$10:$A45)+2,FALSE)","v":77},{"$f":"HLOOKUP(BZ$7+0.5,$I$66:$DJ$120,ROWS($A$10:$A45)+2,FALSE)","v":376},{"$f":"HLOOKUP(CA$7+0.5,$I$66:$DJ$120,ROWS($A$10:$A45)+2,FALSE)","v":154},{"$f":"HLOOKUP(CB$7+0.5,$I$66:$DJ$120,ROWS($A$10:$A45)+2,FALSE)","v":85},{"$f":"HLOOKUP(CC$7+0.5,$I$66:$DJ$120,ROWS($A$10:$A45)+2,FALSE)","v":422},{"$f":"HLOOKUP(CD$7+0.5,$I$66:$DJ$120,ROWS($A$10:$A45)+2,FALSE)","v":211},{"$f":"HLOOKUP(CE$7+0.5,$I$66:$DJ$120,ROWS($A$10:$A45)+2,FALSE)","v":94},{"$f":"HLOOKUP(CF$7+0.5,$I$66:$DJ$120,ROWS($A$10:$A45)+2,FALSE)","v":84},{"$f":"HLOOKUP(CG$7+0.5,$I$66:$DJ$120,ROWS($A$10:$A45)+2,FALSE)","v":250},{"$f":"HLOOKUP(CH$7+0.5,$I$66:$DJ$120,ROWS($A$10:$A45)+2,FALSE)","v":2469},{"$f":"HLOOKUP(CI$7+0.5,$I$66:$DJ$120,ROWS($A$10:$A45)+2,FALSE)","v":211},{"$f":"HLOOKUP(CJ$7+0.5,$I$66:$DJ$120,ROWS($A$10:$A45)+2,FALSE)","v":208},{"$f":"HLOOKUP(CK$7+0.5,$I$66:$DJ$120,ROWS($A$10:$A45)+2,FALSE)","v":733},{"$f":"HLOOKUP(CL$7+0.5,$I$66:$DJ$120,ROWS($A$10:$A45)+2,FALSE)","v":316},{"$f":"HLOOKUP(CM$7+0.5,$I$66:$DJ$120,ROWS($A$10:$A45)+2,FALSE)","v":357},{"$f":"HLOOKUP(CN$7+0.5,$I$66:$DJ$120,ROWS($A$10:$A45)+2,FALSE)","v":211},{"$f":"HLOOKUP(CO$7+0.5,$I$66:$DJ$120,ROWS($A$10:$A45)+2,FALSE)","v":183},{"$f":"HLOOKUP(CP$7+0.5,$I$66:$DJ$120,ROWS($A$10:$A45)+2,FALSE)","v":517},{"$f":"HLOOKUP(CQ$7+0.5,$I$66:$DJ$120,ROWS($A$10:$A45)+2,FALSE)","v":224},{"$f":"HLOOKUP(CR$7+0.5,$I$66:$DJ$120,ROWS($A$10:$A45)+2,FALSE)","v":680},{"$f":"HLOOKUP(CS$7+0.5,$I$66:$DJ$120,ROWS($A$10:$A45)+2,FALSE)","v":"N/A"},{"$f":"HLOOKUP(CT$7+0.5,$I$66:$DJ$120,ROWS($A$10:$A45)+2,FALSE)","v":167},{"$f":"HLOOKUP(CU$7+0.5,$I$66:$DJ$120,ROWS($A$10:$A45)+2,FALSE)","v":120},{"$f":"HLOOKUP(CV$7+0.5,$I$66:$DJ$120,ROWS($A$10:$A45)+2,FALSE)","v":439},{"$f":"HLOOKUP(CW$7+0.5,$I$66:$DJ$120,ROWS($A$10:$A45)+2,FALSE)","v":377},{"$f":"HLOOKUP(CX$7+0.5,$I$66:$DJ$120,ROWS($A$10:$A45)+2,FALSE)","v":211},{"$f":"HLOOKUP(CY$7+0.5,$I$66:$DJ$120,ROWS($A$10:$A45)+2,FALSE)","v":211},{"$f":"HLOOKUP(CZ$7+0.5,$I$66:$DJ$120,ROWS($A$10:$A45)+2,FALSE)","v":510},{"$f":"HLOOKUP(DA$7+0.5,$I$66:$DJ$120,ROWS($A$10:$A45)+2,FALSE)","v":270},{"$f":"HLOOKUP(DB$7+0.5,$I$66:$DJ$120,ROWS($A$10:$A45)+2,FALSE)","v":1293},{"$f":"HLOOKUP(DC$7+0.5,$I$66:$DJ$120,ROWS($A$10:$A45)+2,FALSE)","v":431},{"$f":"HLOOKUP(DD$7+0.5,$I$66:$DJ$120,ROWS($A$10:$A45)+2,FALSE)","v":211},{"$f":"HLOOKUP(DE$7+0.5,$I$66:$DJ$120,ROWS($A$10:$A45)+2,FALSE)","v":39},{"$f":"HLOOKUP(DF$7+0.5,$I$66:$DJ$120,ROWS($A$10:$A45)+2,FALSE)","v":344},{"$f":"HLOOKUP(DG$7+0.5,$I$66:$DJ$120,ROWS($A$10:$A45)+2,FALSE)","v":211},{"$f":"HLOOKUP(DH$7+0.5,$I$66:$DJ$120,ROWS($A$10:$A45)+2,FALSE)","v":480},{"$f":"HLOOKUP(DI$7+0.5,$I$66:$DJ$120,ROWS($A$10:$A45)+2,FALSE)","v":206},{"$f":"HLOOKUP(DJ$7+0.5,$I$66:$DJ$120,ROWS($A$10:$A45)+2,FALSE)","v":211}]
[null,"Ohio",11405101,4931,9745227,23258,1453401,23324,{"$f":"HLOOKUP(I$7,$I$66:$DJ$120,ROWS($A$10:$A46)+2,FALSE)","v":172633},{"$f":"HLOOKUP(J$7,$I$66:$DJ$120,ROWS($A$10:$A46)+2,FALSE)","v":1289},{"$f":"HLOOKUP(K$7,$I$66:$DJ$120,ROWS($A$10:$A46)+2,FALSE)","v":1556},{"$f":"HLOOKUP(L$7,$I$66:$DJ$120,ROWS($A$10:$A46)+2,FALSE)","v":4715},{"$f":"HLOOKUP(M$7,$I$66:$DJ$120,ROWS($A$10:$A46)+2,FALSE)","v":434},{"$f":"HLOOKUP(N$7,$I$66:$DJ$120,ROWS($A$10:$A46)+2,FALSE)","v":8997},{"$f":"HLOOKUP(O$7,$I$66:$DJ$120,ROWS($A$10:$A46)+2,FALSE)","v":2859},{"$f":"HLOOKUP(P$7,$I$66:$DJ$120,ROWS($A$10:$A46)+2,FALSE)","v":1307},{"$f":"HLOOKUP(Q$7,$I$66:$DJ$120,ROWS($A$10:$A46)+2,FALSE)","v":15},{"$f":"HLOOKUP(R$7,$I$66:$DJ$120,ROWS($A$10:$A46)+2,FALSE)","v":972},{"$f":"HLOOKUP(S$7,$I$66:$DJ$120,ROWS($A$10:$A46)+2,FALSE)","v":16495},{"$f":"HLOOKUP(T$7,$I$66:$DJ$120,ROWS($A$10:$A46)+2,FALSE)","v":9502},{"$f":"HLOOKUP(U$7,$I$66:$DJ$120,ROWS($A$10:$A46)+2,FALSE)","v":436},{"$f":"HLOOKUP(V$7,$I$66:$DJ$120,ROWS($A$10:$A46)+2,FALSE)","v":564},{"$f":"HLOOKUP(W$7,$I$66:$DJ$120,ROWS($A$10:$A46)+2,FALSE)","v":7092},{"$f":"HLOOKUP(X$7,$I$66:$DJ$120,ROWS($A$10:$A46)+2,FALSE)","v":9438},{"$f":"HLOOKUP(Y$7,$I$66:$DJ$120,ROWS($A$10:$A46)+2,FALSE)","v":1270},{"$f":"HLOOKUP(Z$7,$I$66:$DJ$120,ROWS($A$10:$A46)+2,FALSE)","v":1016},{"$f":"HLOOKUP(AA$7,$I$66:$DJ$120,ROWS($A$10:$A46)+2,FALSE)","v":9159},{"$f":"HLOOKUP(AB$7,$I$66:$DJ$120,ROWS($A$10:$A46)+2,FALSE)","v":743},{"$f":"HLOOKUP(AC$7,$I$66:$DJ$120,ROWS($A$10:$A46)+2,FALSE)","v":291},{"$f":"HLOOKUP(AD$7,$I$66:$DJ$120,ROWS($A$10:$A46)+2,FALSE)","v":3828},{"$f":"HLOOKUP(AE$7,$I$66:$DJ$120,ROWS($A$10:$A46)+2,FALSE)","v":3686},{"$f":"HLOOKUP(AF$7,$I$66:$DJ$120,ROWS($A$10:$A46)+2,FALSE)","v":15130},{"$f":"HLOOKUP(AG$7,$I$66:$DJ$120,ROWS($A$10:$A46)+2,FALSE)","v":2298},{"$f":"HLOOKUP(AH$7,$I$66:$DJ$120,ROWS($A$10:$A46)+2,FALSE)","v":89},{"$f":"HLOOKUP(AI$7,$I$66:$DJ$120,ROWS($A$10:$A46)+2,FALSE)","v":1171},{"$f":"HLOOKUP(AJ$7,$I$66:$DJ$120,ROWS($A$10:$A46)+2,FALSE)","v":460},{"$f":"HLOOKUP(AK$7,$I$66:$DJ$120,ROWS($A$10:$A46)+2,FALSE)","v":1531},{"$f":"HLOOKUP(AL$7,$I$66:$DJ$120,ROWS($A$10:$A46)+2,FALSE)","v":2240},{"$f":"HLOOKUP(AM$7,$I$66:$DJ$120,ROWS($A$10:$A46)+2,FALSE)","v":175},{"$f":"HLOOKUP(AN$7,$I$66:$DJ$120,ROWS($A$10:$A46)+2,FALSE)","v":2465},{"$f":"HLOOKUP(AO$7,$I$66:$DJ$120,ROWS($A$10:$A46)+2,FALSE)","v":515},{"$f":"HLOOKUP(AP$7,$I$66:$DJ$120,ROWS($A$10:$A46)+2,FALSE)","v":5988},{"$f":"HLOOKUP(AQ$7,$I$66:$DJ$120,ROWS($A$10:$A46)+2,FALSE)","v":5985},{"$f":"HLOOKUP(AR$7,$I$66:$DJ$120,ROWS($A$10:$A46)+2,FALSE)","v":26},{"$f":"HLOOKUP(AS$7,$I$66:$DJ$120,ROWS($A$10:$A46)+2,FALSE)","v":"N/A"},{"$f":"HLOOKUP(AT$7,$I$66:$DJ$120,ROWS($A$10:$A46)+2,FALSE)","v":1228},{"$f":"HLOOKUP(AU$7,$I$66:$DJ$120,ROWS($A$10:$A46)+2,FALSE)","v":342},{"$f":"HLOOKUP(AV$7,$I$66:$DJ$120,ROWS($A$10:$A46)+2,FALSE)","v":12012},{"$f":"HLOOKUP(AW$7,$I$66:$DJ$120,ROWS($A$10:$A46)+2,FALSE)","v":444},{"$f":"HLOOKUP(AX$7,$I$66:$DJ$120,ROWS($A$10:$A46)+2,FALSE)","v":2479},{"$f":"HLOOKUP(AY$7,$I$66:$DJ$120,ROWS($A$10:$A46)+2,FALSE)","v":207},{"$f":"HLOOKUP(AZ$7,$I$66:$DJ$120,ROWS($A$10:$A46)+2,FALSE)","v":4987},{"$f":"HLOOKUP(BA$7,$I$66:$DJ$120,ROWS($A$10:$A46)+2,FALSE)","v":7465},{"$f":"HLOOKUP(BB$7,$I$66:$DJ$120,ROWS($A$10:$A46)+2,FALSE)","v":485},{"$f":"HLOOKUP(BC$7,$I$66:$DJ$120,ROWS($A$10:$A46)+2,FALSE)","v":182},{"$f":"HLOOKUP(BD$7,$I$66:$DJ$120,ROWS($A$10:$A46)+2,FALSE)","v":6769},{"$f":"HLOOKUP(BE$7,$I$66:$DJ$120,ROWS($A$10:$A46)+2,FALSE)","v":2567},{"$f":"HLOOKUP(BF$7,$I$66:$DJ$120,ROWS($A$10:$A46)+2,FALSE)","v":7814},{"$f":"HLOOKUP(BG$7,$I$66:$DJ$120,ROWS($A$10:$A46)+2,FALSE)","v":1771},{"$f":"HLOOKUP(BH$7,$I$66:$DJ$120,ROWS($A$10:$A46)+2,FALSE)","v":144},{"$f":"HLOOKUP(BI$7,$I$66:$DJ$120,ROWS($A$10:$A46)+2,FALSE)","v":2140},{"$f":"HLOOKUP(BJ$7+0.5,$I$66:$DJ$120,ROWS($A$10:$A46)+2,FALSE)","v":10673},{"$f":"HLOOKUP(BK$7+0.5,$I$66:$DJ$120,ROWS($A$10:$A46)+2,FALSE)","v":751},{"$f":"HLOOKUP(BL$7+0.5,$I$66:$DJ$120,ROWS($A$10:$A46)+2,FALSE)","v":1531},{"$f":"HLOOKUP(BM$7+0.5,$I$66:$DJ$120,ROWS($A$10:$A46)+2,FALSE)","v":2132},{"$f":"HLOOKUP(BN$7+0.5,$I$66:$DJ$120,ROWS($A$10:$A46)+2,FALSE)","v":504},{"$f":"HLOOKUP(BO$7+0.5,$I$66:$DJ$120,ROWS($A$10:$A46)+2,FALSE)","v":1767},{"$f":"HLOOKUP(BP$7+0.5,$I$66:$DJ$120,ROWS($A$10:$A46)+2,FALSE)","v":1134},{"$f":"HLOOKUP(BQ$7+0.5,$I$66:$DJ$120,ROWS($A$10:$A46)+2,FALSE)","v":819},{"$f":"HLOOKUP(BR$7+0.5,$I$66:$DJ$120,ROWS($A$10:$A46)+2,FALSE)","v":25},{"$f":"HLOOKUP(BS$7+0.5,$I$66:$DJ$120,ROWS($A$10:$A46)+2,FALSE)","v":768},{"$f":"HLOOKUP(BT$7+0.5,$I$66:$DJ$120,ROWS($A$10:$A46)+2,FALSE)","v":2765},{"$f":"HLOOKUP(BU$7+0.5,$I$66:$DJ$120,ROWS($A$10:$A46)+2,FALSE)","v":2685},{"$f":"HLOOKUP(BV$7+0.5,$I$66:$DJ$120,ROWS($A$10:$A46)+2,FALSE)","v":331},{"$f":"HLOOKUP(BW$7+0.5,$I$66:$DJ$120,ROWS($A$10:$A46)+2,FALSE)","v":694},{"$f":"HLOOKUP(BX$7+0.5,$I$66:$DJ$120,ROWS($A$10:$A46)+2,FALSE)","v":1635},{"$f":"HLOOKUP(BY$7+0.5,$I$66:$DJ$120,ROWS($A$10:$A46)+2,FALSE)","v":2077},{"$f":"HLOOKUP(BZ$7+0.5,$I$66:$DJ$120,ROWS($A$10:$A46)+2,FALSE)","v":757},{"$f":"HLOOKUP(CA$7+0.5,$I$66:$DJ$120,ROWS($A$10:$A46)+2,FALSE)","v":494},{"$f":"HLOOKUP(CB$7+0.5,$I$66:$DJ$120,ROWS($A$10:$A46)+2,FALSE)","v":1874},{"$f":"HLOOKUP(CC$7+0.5,$I$66:$DJ$120,ROWS($A$10:$A46)+2,FALSE)","v":511},{"$f":"HLOOKUP(CD$7+0.5,$I$66:$DJ$120,ROWS($A$10:$A46)+2,FALSE)","v":238},{"$f":"HLOOKUP(CE$7+0.5,$I$66:$DJ$120,ROWS($A$10:$A46)+2,FALSE)","v":1666},{"$f":"HLOOKUP(CF$7+0.5,$I$66:$DJ$120,ROWS($A$10:$A46)+2,FALSE)","v":1712},{"$f":"HLOOKUP(CG$7+0.5,$I$66:$DJ$120,ROWS($A$10:$A46)+2,FALSE)","v":3104},{"$f":"HLOOKUP(CH$7+0.5,$I$66:$DJ$120,ROWS($A$10:$A46)+2,FALSE)","v":1327},{"$f":"HLOOKUP(CI$7+0.5,$I$66:$DJ$120,ROWS($A$10:$A46)+2,FALSE)","v":105},{"$f":"HLOOKUP(CJ$7+0.5,$I$66:$DJ$120,ROWS($A$10:$A46)+2,FALSE)","v":569},{"$f":"HLOOKUP(CK$7+0.5,$I$66:$DJ$120,ROWS($A$10:$A46)+2,FALSE)","v":450},{"$f":"HLOOKUP(CL$7+0.5,$I$66:$DJ$120,ROWS($A$10:$A46)+2,FALSE)","v":983},{"$f":"HLOOKUP(CM$7+0.5,$I$66:$DJ$120,ROWS($A$10:$A46)+2,FALSE)","v":1351},{"$f":"HLOOKUP(CN$7+0.5,$I$66:$DJ$120,ROWS($A$10:$A46)+2,FALSE)","v":205},{"$f":"HLOOKUP(CO$7+0.5,$I$66:$DJ$120,ROWS($A$10:$A46)+2,FALSE)","v":1028},{"$f":"HLOOKUP(CP$7+0.5,$I$66:$DJ$120,ROWS($A$10:$A46)+2,FALSE)","v":380},{"$f":"HLOOKUP(CQ$7+0.5,$I$66:$DJ$120,ROWS($A$10:$A46)+2,FALSE)","v":1895},{"$f":"HLOOKUP(CR$7+0.5,$I$66:$DJ$120,ROWS($A$10:$A46)+2,FALSE)","v":1492},{"$f":"HLOOKUP(CS$7+0.5,$I$66:$DJ$120,ROWS($A$10:$A46)+2,FALSE)","v":53},{"$f":"HLOOKUP(CT$7+0.5,$I$66:$DJ$120,ROWS($A$10:$A46)+2,FALSE)","v":"N/A"},{"$f":"HLOOKUP(CU$7+0.5,$I$66:$DJ$120,ROWS($A$10:$A46)+2,FALSE)","v":1044},{"$f":"HLOOKUP(CV$7+0.5,$I$66:$DJ$120,ROWS($A$10:$A46)+2,FALSE)","v":306},{"$f":"HLOOKUP(CW$7+0.5,$I$66:$DJ$120,ROWS($A$10:$A46)+2,FALSE)","v":2269},{"$f":"HLOOKUP(CX$7+0.5,$I$66:$DJ$120,ROWS($A$10:$A46)+2,FALSE)","v":314},{"$f":"HLOOKUP(CY$7+0.5,$I$66:$DJ$120,ROWS($A$10:$A46)+2,FALSE)","v":1021},{"$f":"HLOOKUP(CZ$7+0.5,$I$66:$DJ$120,ROWS($A$10:$A46)+2,FALSE)","v":215},{"$f":"HLOOKUP(DA$7+0.5,$I$66:$DJ$120,ROWS($A$10:$A46)+2,FALSE)","v":2031},{"$f":"HLOOKUP(DB$7+0.5,$I$66:$DJ$120,ROWS($A$10:$A46)+2,FALSE)","v":2241},{"$f":"HLOOKUP(DC$7+0.5,$I$66:$DJ$120,ROWS($A$10:$A46)+2,FALSE)","v":318},{"$f":"HLOOKUP(DD$7+0.5,$I$66:$DJ$120,ROWS($A$10:$A46)+2,FALSE)","v":173},{"$f":"HLOOKUP(DE$7+0.5,$I$66:$DJ$120,ROWS($A$10:$A46)+2,FALSE)","v":1705},{"$f":"HLOOKUP(DF$7+0.5,$I$66:$DJ$120,ROWS($A$10:$A46)+2,FALSE)","v":905},{"$f":"HLOOKUP(DG$7+0.5,$I$66:$DJ$120,ROWS($A$10:$A46)+2,FALSE)","v":2197},{"$f":"HLOOKUP(DH$7+0.5,$I$66:$DJ$120,ROWS($A$10:$A46)+2,FALSE)","v":934},{"$f":"HLOOKUP(DI$7+0.5,$I$66:$DJ$120,ROWS($A$10:$A46)+2,FALSE)","v":187},{"$f":"HLOOKUP(DJ$7+0.5,$I$66:$DJ$120,ROWS($A$10:$A46)+2,FALSE)","v":1360}]
[null,"Oklahoma",3716264,3181,3065497,21363,528824,18463,{"$f":"HLOOKUP(I$7,$I$66:$DJ$120,ROWS($A$10:$A47)+2,FALSE)","v":106511},{"$f":"HLOOKUP(J$7,$I$66:$DJ$120,ROWS($A$10:$A47)+2,FALSE)","v":1612},{"$f":"HLOOKUP(K$7,$I$66:$DJ$120,ROWS($A$10:$A47)+2,FALSE)","v":1397},{"$f":"HLOOKUP(L$7,$I$66:$DJ$120,ROWS($A$10:$A47)+2,FALSE)","v":2759},{"$f":"HLOOKUP(M$7,$I$66:$DJ$120,ROWS($A$10:$A47)+2,FALSE)","v":5873},{"$f":"HLOOKUP(N$7,$I$66:$DJ$120,ROWS($A$10:$A47)+2,FALSE)","v":9429},{"$f":"HLOOKUP(O$7,$I$66:$DJ$120,ROWS($A$10:$A47)+2,FALSE)","v":3184},{"$f":"HLOOKUP(P$7,$I$66:$DJ$120,ROWS($A$10:$A47)+2,FALSE)","v":68},{"$f":"HLOOKUP(Q$7,$I$66:$DJ$120,ROWS($A$10:$A47)+2,FALSE)","v":109},{"$f":"HLOOKUP(R$7,$I$66:$DJ$120,ROWS($A$10:$A47)+2,FALSE)","v":0},{"$f":"HLOOKUP(S$7,$I$66:$DJ$120,ROWS($A$10:$A47)+2,FALSE)","v":5438},{"$f":"HLOOKUP(T$7,$I$66:$DJ$120,ROWS($A$10:$A47)+2,FALSE)","v":3159},{"$f":"HLOOKUP(U$7,$I$66:$DJ$120,ROWS($A$10:$A47)+2,FALSE)","v":773},{"$f":"HLOOKUP(V$7,$I$66:$DJ$120,ROWS($A$10:$A47)+2,FALSE)","v":611},{"$f":"HLOOKUP(W$7,$I$66:$DJ$120,ROWS($A$10:$A47)+2,FALSE)","v":2679},{"$f":"HLOOKUP(X$7,$I$66:$DJ$120,ROWS($A$10:$A47)+2,FALSE)","v":957},{"$f":"HLOOKUP(Y$7,$I$66:$DJ$120,ROWS($A$10:$A47)+2,FALSE)","v":1108},{"$f":"HLOOKUP(Z$7,$I$66:$DJ$120,ROWS($A$10:$A47)+2,FALSE)","v":5024},{"$f":"HLOOKUP(AA$7,$I$66:$DJ$120,ROWS($A$10:$A47)+2,FALSE)","v":877},{"$f":"HLOOKUP(AB$7,$I$66:$DJ$120,ROWS($A$10:$A47)+2,FALSE)","v":2208},{"$f":"HLOOKUP(AC$7,$I$66:$DJ$120,ROWS($A$10:$A47)+2,FALSE)","v":298},{"$f":"HLOOKUP(AD$7,$I$66:$DJ$120,ROWS($A$10:$A47)+2,FALSE)","v":382},{"$f":"HLOOKUP(AE$7,$I$66:$DJ$120,ROWS($A$10:$A47)+2,FALSE)","v":465},{"$f":"HLOOKUP(AF$7,$I$66:$DJ$120,ROWS($A$10:$A47)+2,FALSE)","v":1047},{"$f":"HLOOKUP(AG$7,$I$66:$DJ$120,ROWS($A$10:$A47)+2,FALSE)","v":599},{"$f":"HLOOKUP(AH$7,$I$66:$DJ$120,ROWS($A$10:$A47)+2,FALSE)","v":1733},{"$f":"HLOOKUP(AI$7,$I$66:$DJ$120,ROWS($A$10:$A47)+2,FALSE)","v":4102},{"$f":"HLOOKUP(AJ$7,$I$66:$DJ$120,ROWS($A$10:$A47)+2,FALSE)","v":448},{"$f":"HLOOKUP(AK$7,$I$66:$DJ$120,ROWS($A$10:$A47)+2,FALSE)","v":829},{"$f":"HLOOKUP(AL$7,$I$66:$DJ$120,ROWS($A$10:$A47)+2,FALSE)","v":1079},{"$f":"HLOOKUP(AM$7,$I$66:$DJ$120,ROWS($A$10:$A47)+2,FALSE)","v":69},{"$f":"HLOOKUP(AN$7,$I$66:$DJ$120,ROWS($A$10:$A47)+2,FALSE)","v":890},{"$f":"HLOOKUP(AO$7,$I$66:$DJ$120,ROWS($A$10:$A47)+2,FALSE)","v":2723},{"$f":"HLOOKUP(AP$7,$I$66:$DJ$120,ROWS($A$10:$A47)+2,FALSE)","v":1118},{"$f":"HLOOKUP(AQ$7,$I$66:$DJ$120,ROWS($A$10:$A47)+2,FALSE)","v":1991},{"$f":"HLOOKUP(AR$7,$I$66:$DJ$120,ROWS($A$10:$A47)+2,FALSE)","v":139},{"$f":"HLOOKUP(AS$7,$I$66:$DJ$120,ROWS($A$10:$A47)+2,FALSE)","v":1385},{"$f":"HLOOKUP(AT$7,$I$66:$DJ$120,ROWS($A$10:$A47)+2,FALSE)","v":"N/A"},{"$f":"HLOOKUP(AU$7,$I$66:$DJ$120,ROWS($A$10:$A47)+2,FALSE)","v":398},{"$f":"HLOOKUP(AV$7,$I$66:$DJ$120,ROWS($A$10:$A47)+2,FALSE)","v":1316},{"$f":"HLOOKUP(AW$7,$I$66:$DJ$120,ROWS($A$10:$A47)+2,FALSE)","v":119},{"$f":"HLOOKUP(AX$7,$I$66:$DJ$120,ROWS($A$10:$A47)+2,FALSE)","v":596},{"$f":"HLOOKUP(AY$7,$I$66:$DJ$120,ROWS($A$10:$A47)+2,FALSE)","v":83},{"$f":"HLOOKUP(AZ$7,$I$66:$DJ$120,ROWS($A$10:$A47)+2,FALSE)","v":1872},{"$f":"HLOOKUP(BA$7,$I$66:$DJ$120,ROWS($A$10:$A47)+2,FALSE)","v":28238},{"$f":"HLOOKUP(BB$7,$I$66:$DJ$120,ROWS($A$10:$A47)+2,FALSE)","v":428},{"$f":"HLOOKUP(BC$7,$I$66:$DJ$120,ROWS($A$10:$A47)+2,FALSE)","v":93},{"$f":"HLOOKUP(BD$7,$I$66:$DJ$120,ROWS($A$10:$A47)+2,FALSE)","v":2286},{"$f":"HLOOKUP(BE$7,$I$66:$DJ$120,ROWS($A$10:$A47)+2,FALSE)","v":2035},{"$f":"HLOOKUP(BF$7,$I$66:$DJ$120,ROWS($A$10:$A47)+2,FALSE)","v":221},{"$f":"HLOOKUP(BG$7,$I$66:$DJ$120,ROWS($A$10:$A47)+2,FALSE)","v":551},{"$f":"HLOOKUP(BH$7,$I$66:$DJ$120,ROWS($A$10:$A47)+2,FALSE)","v":1713},{"$f":"HLOOKUP(BI$7,$I$66:$DJ$120,ROWS($A$10:$A47)+2,FALSE)","v":209},{"$f":"HLOOKUP(BJ$7+0.5,$I$66:$DJ$120,ROWS($A$10:$A47)+2,FALSE)","v":8108},{"$f":"HLOOKUP(BK$7+0.5,$I$66:$DJ$120,ROWS($A$10:$A47)+2,FALSE)","v":1283},{"$f":"HLOOKUP(BL$7+0.5,$I$66:$DJ$120,ROWS($A$10:$A47)+2,FALSE)","v":1554},{"$f":"HLOOKUP(BM$7+0.5,$I$66:$DJ$120,ROWS($A$10:$A47)+2,FALSE)","v":1013},{"$f":"HLOOKUP(BN$7+0.5,$I$66:$DJ$120,ROWS($A$10:$A47)+2,FALSE)","v":1827},{"$f":"HLOOKUP(BO$7+0.5,$I$66:$DJ$120,ROWS($A$10:$A47)+2,FALSE)","v":2426},{"$f":"HLOOKUP(BP$7+0.5,$I$66:$DJ$120,ROWS($A$10:$A47)+2,FALSE)","v":1286},{"$f":"HLOOKUP(BQ$7+0.5,$I$66:$DJ$120,ROWS($A$10:$A47)+2,FALSE)","v":129},{"$f":"HLOOKUP(BR$7+0.5,$I$66:$DJ$120,ROWS($A$10:$A47)+2,FALSE)","v":164},{"$f":"HLOOKUP(BS$7+0.5,$I$66:$DJ$120,ROWS($A$10:$A47)+2,FALSE)","v":253},{"$f":"HLOOKUP(BT$7+0.5,$I$66:$DJ$120,ROWS($A$10:$A47)+2,FALSE)","v":1371},{"$f":"HLOOKUP(BU$7+0.5,$I$66:$DJ$120,ROWS($A$10:$A47)+2,FALSE)","v":1688},{"$f":"HLOOKUP(BV$7+0.5,$I$66:$DJ$120,ROWS($A$10:$A47)+2,FALSE)","v":864},{"$f":"HLOOKUP(BW$7+0.5,$I$66:$DJ$120,ROWS($A$10:$A47)+2,FALSE)","v":668},{"$f":"HLOOKUP(BX$7+0.5,$I$66:$DJ$120,ROWS($A$10:$A47)+2,FALSE)","v":1529},{"$f":"HLOOKUP(BY$7+0.5,$I$66:$DJ$120,ROWS($A$10:$A47)+2,FALSE)","v":550},{"$f":"HLOOKUP(BZ$7+0.5,$I$66:$DJ$120,ROWS($A$10:$A47)+2,FALSE)","v":660},{"$f":"HLOOKUP(CA$7+0.5,$I$66:$DJ$120,ROWS($A$10:$A47)+2,FALSE)","v":2088},{"$f":"HLOOKUP(CB$7+0.5,$I$66:$DJ$120,ROWS($A$10:$A47)+2,FALSE)","v":607},{"$f":"HLOOKUP(CC$7+0.5,$I$66:$DJ$120,ROWS($A$10:$A47)+2,FALSE)","v":808},{"$f":"HLOOKUP(CD$7+0.5,$I$66:$DJ$120,ROWS($A$10:$A47)+2,FALSE)","v":278},{"$f":"HLOOKUP(CE$7+0.5,$I$66:$DJ$120,ROWS($A$10:$A47)+2,FALSE)","v":407},{"$f":"HLOOKUP(CF$7+0.5,$I$66:$DJ$120,ROWS($A$10:$A47)+2,FALSE)","v":481},{"$f":"HLOOKUP(CG$7+0.5,$I$66:$DJ$120,ROWS($A$10:$A47)+2,FALSE)","v":478},{"$f":"HLOOKUP(CH$7+0.5,$I$66:$DJ$120,ROWS($A$10:$A47)+2,FALSE)","v":369},{"$f":"HLOOKUP(CI$7+0.5,$I$66:$DJ$120,ROWS($A$10:$A47)+2,FALSE)","v":789},{"$f":"HLOOKUP(CJ$7+0.5,$I$66:$DJ$120,ROWS($A$10:$A47)+2,FALSE)","v":1427},{"$f":"HLOOKUP(CK$7+0.5,$I$66:$DJ$120,ROWS($A$10:$A47)+2,FALSE)","v":342},{"$f":"HLOOKUP(CL$7+0.5,$I$66:$DJ$120,ROWS($A$10:$A47)+2,FALSE)","v":530},{"$f":"HLOOKUP(CM$7+0.5,$I$66:$DJ$120,ROWS($A$10:$A47)+2,FALSE)","v":598},{"$f":"HLOOKUP(CN$7+0.5,$I$66:$DJ$120,ROWS($A$10:$A47)+2,FALSE)","v":131},{"$f":"HLOOKUP(CO$7+0.5,$I$66:$DJ$120,ROWS($A$10:$A47)+2,FALSE)","v":890},{"$f":"HLOOKUP(CP$7+0.5,$I$66:$DJ$120,ROWS($A$10:$A47)+2,FALSE)","v":1280},{"$f":"HLOOKUP(CQ$7+0.5,$I$66:$DJ$120,ROWS($A$10:$A47)+2,FALSE)","v":743},{"$f":"HLOOKUP(CR$7+0.5,$I$66:$DJ$120,ROWS($A$10:$A47)+2,FALSE)","v":1219},{"$f":"HLOOKUP(CS$7+0.5,$I$66:$DJ$120,ROWS($A$10:$A47)+2,FALSE)","v":136},{"$f":"HLOOKUP(CT$7+0.5,$I$66:$DJ$120,ROWS($A$10:$A47)+2,FALSE)","v":681},{"$f":"HLOOKUP(CU$7+0.5,$I$66:$DJ$120,ROWS($A$10:$A47)+2,FALSE)","v":"N/A"},{"$f":"HLOOKUP(CV$7+0.5,$I$66:$DJ$120,ROWS($A$10:$A47)+2,FALSE)","v":300},{"$f":"HLOOKUP(CW$7+0.5,$I$66:$DJ$120,ROWS($A$10:$A47)+2,FALSE)","v":1283},{"$f":"HLOOKUP(CX$7+0.5,$I$66:$DJ$120,ROWS($A$10:$A47)+2,FALSE)","v":137},{"$f":"HLOOKUP(CY$7+0.5,$I$66:$DJ$120,ROWS($A$10:$A47)+2,FALSE)","v":377},{"$f":"HLOOKUP(CZ$7+0.5,$I$66:$DJ$120,ROWS($A$10:$A47)+2,FALSE)","v":135},{"$f":"HLOOKUP(DA$7+0.5,$I$66:$DJ$120,ROWS($A$10:$A47)+2,FALSE)","v":895},{"$f":"HLOOKUP(DB$7+0.5,$I$66:$DJ$120,ROWS($A$10:$A47)+2,FALSE)","v":4132},{"$f":"HLOOKUP(DC$7+0.5,$I$66:$DJ$120,ROWS($A$10:$A47)+2,FALSE)","v":454},{"$f":"HLOOKUP(DD$7+0.5,$I$66:$DJ$120,ROWS($A$10:$A47)+2,FALSE)","v":109},{"$f":"HLOOKUP(DE$7+0.5,$I$66:$DJ$120,ROWS($A$10:$A47)+2,FALSE)","v":1049},{"$f":"HLOOKUP(DF$7+0.5,$I$66:$DJ$120,ROWS($A$10:$A47)+2,FALSE)","v":1130},{"$f":"HLOOKUP(DG$7+0.5,$I$66:$DJ$120,ROWS($A$10:$A47)+2,FALSE)","v":270},{"$f":"HLOOKUP(DH$7+0.5,$I$66:$DJ$120,ROWS($A$10:$A47)+2,FALSE)","v":396},{"$f":"HLOOKUP(DI$7+0.5,$I$66:$DJ$120,ROWS($A$10:$A47)+2,FALSE)","v":1012},{"$f":"HLOOKUP(DJ$7+0.5,$I$66:$DJ$120,ROWS($A$10:$A47)+2,FALSE)","v":222}]
[null,"Oregon",3794008,3282,3110896,20156,545841,17758,{"$f":"HLOOKUP(I$7,$I$66:$DJ$120,ROWS($A$10:$A48)+2,FALSE)","v":116700},{"$f":"HLOOKUP(J$7,$I$66:$DJ$120,ROWS($A$10:$A48)+2,FALSE)","v":400},{"$f":"HLOOKUP(K$7,$I$66:$DJ$120,ROWS($A$10:$A48)+2,FALSE)","v":2027},{"$f":"HLOOKUP(L$7,$I$66:$DJ$120,ROWS($A$10:$A48)+2,FALSE)","v":5264},{"$f":"HLOOKUP(M$7,$I$66:$DJ$120,ROWS($A$10:$A48)+2,FALSE)","v":246},{"$f":"HLOOKUP(N$7,$I$66:$DJ$120,ROWS($A$10:$A48)+2,FALSE)","v":34190},{"$f":"HLOOKUP(O$7,$I$66:$DJ$120,ROWS($A$10:$A48)+2,FALSE)","v":2050},{"$f":"HLOOKUP(P$7,$I$66:$DJ$120,ROWS($A$10:$A48)+2,FALSE)","v":270},{"$f":"HLOOKUP(Q$7,$I$66:$DJ$120,ROWS($A$10:$A48)+2,FALSE)","v":0},{"$f":"HLOOKUP(R$7,$I$66:$DJ$120,ROWS($A$10:$A48)+2,FALSE)","v":217},{"$f":"HLOOKUP(S$7,$I$66:$DJ$120,ROWS($A$10:$A48)+2,FALSE)","v":2273},{"$f":"HLOOKUP(T$7,$I$66:$DJ$120,ROWS($A$10:$A48)+2,FALSE)","v":688},{"$f":"HLOOKUP(U$7,$I$66:$DJ$120,ROWS($A$10:$A48)+2,FALSE)","v":2323},{"$f":"HLOOKUP(V$7,$I$66:$DJ$120,ROWS($A$10:$A48)+2,FALSE)","v":4129},{"$f":"HLOOKUP(W$7,$I$66:$DJ$120,ROWS($A$10:$A48)+2,FALSE)","v":1565},{"$f":"HLOOKUP(X$7,$I$66:$DJ$120,ROWS($A$10:$A48)+2,FALSE)","v":317},{"$f":"HLOOKUP(Y$7,$I$66:$DJ$120,ROWS($A$10:$A48)+2,FALSE)","v":161},{"$f":"HLOOKUP(Z$7,$I$66:$DJ$120,ROWS($A$10:$A48)+2,FALSE)","v":678},{"$f":"HLOOKUP(AA$7,$I$66:$DJ$120,ROWS($A$10:$A48)+2,FALSE)","v":0},{"$f":"HLOOKUP(AB$7,$I$66:$DJ$120,ROWS($A$10:$A48)+2,FALSE)","v":0},{"$f":"HLOOKUP(AC$7,$I$66:$DJ$120,ROWS($A$10:$A48)+2,FALSE)","v":0},{"$f":"HLOOKUP(AD$7,$I$66:$DJ$120,ROWS($A$10:$A48)+2,FALSE)","v":595},{"$f":"HLOOKUP(AE$7,$I$66:$DJ$120,ROWS($A$10:$A48)+2,FALSE)","v":1471},{"$f":"HLOOKUP(AF$7,$I$66:$DJ$120,ROWS($A$10:$A48)+2,FALSE)","v":1159},{"$f":"HLOOKUP(AG$7,$I$66:$DJ$120,ROWS($A$10:$A48)+2,FALSE)","v":668},{"$f":"HLOOKUP(AH$7,$I$66:$DJ$120,ROWS($A$10:$A48)+2,FALSE)","v":735},{"$f":"HLOOKUP(AI$7,$I$66:$DJ$120,ROWS($A$10:$A48)+2,FALSE)","v":1786},{"$f":"HLOOKUP(AJ$7,$I$66:$DJ$120,ROWS($A$10:$A48)+2,FALSE)","v":3386},{"$f":"HLOOKUP(AK$7,$I$66:$DJ$120,ROWS($A$10:$A48)+2,FALSE)","v":777},{"$f":"HLOOKUP(AL$7,$I$66:$DJ$120,ROWS($A$10:$A48)+2,FALSE)","v":2805},{"$f":"HLOOKUP(AM$7,$I$66:$DJ$120,ROWS($A$10:$A48)+2,FALSE)","v":317},{"$f":"HLOOKUP(AN$7,$I$66:$DJ$120,ROWS($A$10:$A48)+2,FALSE)","v":544},{"$f":"HLOOKUP(AO$7,$I$66:$DJ$120,ROWS($A$10:$A48)+2,FALSE)","v":981},{"$f":"HLOOKUP(AP$7,$I$66:$DJ$120,ROWS($A$10:$A48)+2,FALSE)","v":2538},{"$f":"HLOOKUP(AQ$7,$I$66:$DJ$120,ROWS($A$10:$A48)+2,FALSE)","v":1040},{"$f":"HLOOKUP(AR$7,$I$66:$DJ$120,ROWS($A$10:$A48)+2,FALSE)","v":592},{"$f":"HLOOKUP(AS$7,$I$66:$DJ$120,ROWS($A$10:$A48)+2,FALSE)","v":1541},{"$f":"HLOOKUP(AT$7,$I$66:$DJ$120,ROWS($A$10:$A48)+2,FALSE)","v":821},{"$f":"HLOOKUP(AU$7,$I$66:$DJ$120,ROWS($A$10:$A48)+2,FALSE)","v":"N/A"},{"$f":"HLOOKUP(AV$7,$I$66:$DJ$120,ROWS($A$10:$A48)+2,FALSE)","v":1689},{"$f":"HLOOKUP(AW$7,$I$66:$DJ$120,ROWS($A$10:$A48)+2,FALSE)","v":0},{"$f":"HLOOKUP(AX$7,$I$66:$DJ$120,ROWS($A$10:$A48)+2,FALSE)","v":989},{"$f":"HLOOKUP(AY$7,$I$66:$DJ$120,ROWS($A$10:$A48)+2,FALSE)","v":741},{"$f":"HLOOKUP(AZ$7,$I$66:$DJ$120,ROWS($A$10:$A48)+2,FALSE)","v":787},{"$f":"HLOOKUP(BA$7,$I$66:$DJ$120,ROWS($A$10:$A48)+2,FALSE)","v":3826},{"$f":"HLOOKUP(BB$7,$I$66:$DJ$120,ROWS($A$10:$A48)+2,FALSE)","v":2879},{"$f":"HLOOKUP(BC$7,$I$66:$DJ$120,ROWS($A$10:$A48)+2,FALSE)","v":456},{"$f":"HLOOKUP(BD$7,$I$66:$DJ$120,ROWS($A$10:$A48)+2,FALSE)","v":1124},{"$f":"HLOOKUP(BE$7,$I$66:$DJ$120,ROWS($A$10:$A48)+2,FALSE)","v":22793},{"$f":"HLOOKUP(BF$7,$I$66:$DJ$120,ROWS($A$10:$A48)+2,FALSE)","v":358},{"$f":"HLOOKUP(BG$7,$I$66:$DJ$120,ROWS($A$10:$A48)+2,FALSE)","v":1981},{"$f":"HLOOKUP(BH$7,$I$66:$DJ$120,ROWS($A$10:$A48)+2,FALSE)","v":523},{"$f":"HLOOKUP(BI$7,$I$66:$DJ$120,ROWS($A$10:$A48)+2,FALSE)","v":821},{"$f":"HLOOKUP(BJ$7+0.5,$I$66:$DJ$120,ROWS($A$10:$A48)+2,FALSE)","v":7898},{"$f":"HLOOKUP(BK$7+0.5,$I$66:$DJ$120,ROWS($A$10:$A48)+2,FALSE)","v":290},{"$f":"HLOOKUP(BL$7+0.5,$I$66:$DJ$120,ROWS($A$10:$A48)+2,FALSE)","v":910},{"$f":"HLOOKUP(BM$7+0.5,$I$66:$DJ$120,ROWS($A$10:$A48)+2,FALSE)","v":1539},{"$f":"HLOOKUP(BN$7+0.5,$I$66:$DJ$120,ROWS($A$10:$A48)+2,FALSE)","v":217},{"$f":"HLOOKUP(BO$7+0.5,$I$66:$DJ$120,ROWS($A$10:$A48)+2,FALSE)","v":4899},{"$f":"HLOOKUP(BP$7+0.5,$I$66:$DJ$120,ROWS($A$10:$A48)+2,FALSE)","v":924},{"$f":"HLOOKUP(BQ$7+0.5,$I$66:$DJ$120,ROWS($A$10:$A48)+2,FALSE)","v":273},{"$f":"HLOOKUP(BR$7+0.5,$I$66:$DJ$120,ROWS($A$10:$A48)+2,FALSE)","v":277},{"$f":"HLOOKUP(BS$7+0.5,$I$66:$DJ$120,ROWS($A$10:$A48)+2,FALSE)","v":239},{"$f":"HLOOKUP(BT$7+0.5,$I$66:$DJ$120,ROWS($A$10:$A48)+2,FALSE)","v":1051},{"$f":"HLOOKUP(BU$7+0.5,$I$66:$DJ$120,ROWS($A$10:$A48)+2,FALSE)","v":572},{"$f":"HLOOKUP(BV$7+0.5,$I$66:$DJ$120,ROWS($A$10:$A48)+2,FALSE)","v":1117},{"$f":"HLOOKUP(BW$7+0.5,$I$66:$DJ$120,ROWS($A$10:$A48)+2,FALSE)","v":1397},{"$f":"HLOOKUP(BX$7+0.5,$I$66:$DJ$120,ROWS($A$10:$A48)+2,FALSE)","v":862},{"$f":"HLOOKUP(BY$7+0.5,$I$66:$DJ$120,ROWS($A$10:$A48)+2,FALSE)","v":319},{"$f":"HLOOKUP(BZ$7+0.5,$I$66:$DJ$120,ROWS($A$10:$A48)+2,FALSE)","v":176},{"$f":"HLOOKUP(CA$7+0.5,$I$66:$DJ$120,ROWS($A$10:$A48)+2,FALSE)","v":685},{"$f":"HLOOKUP(CB$7+0.5,$I$66:$DJ$120,ROWS($A$10:$A48)+2,FALSE)","v":277},{"$f":"HLOOKUP(CC$7+0.5,$I$66:$DJ$120,ROWS($A$10:$A48)+2,FALSE)","v":277},{"$f":"HLOOKUP(CD$7+0.5,$I$66:$DJ$120,ROWS($A$10:$A48)+2,FALSE)","v":277},{"$f":"HLOOKUP(CE$7+0.5,$I$66:$DJ$120,ROWS($A$10:$A48)+2,FALSE)","v":405},{"$f":"HLOOKUP(CF$7+0.5,$I$66:$DJ$120,ROWS($A$10:$A48)+2,FALSE)","v":1154},{"$f":"HLOOKUP(CG$7+0.5,$I$66:$DJ$120,ROWS($A$10:$A48)+2,FALSE)","v":783},{"$f":"HLOOKUP(CH$7+0.5,$I$66:$DJ$120,ROWS($A$10:$A48)+2,FALSE)","v":442},{"$f":"HLOOKUP(CI$7+0.5,$I$66:$DJ$120,ROWS($A$10:$A48)+2,FALSE)","v":770},{"$f":"HLOOKUP(CJ$7+0.5,$I$66:$DJ$120,ROWS($A$10:$A48)+2,FALSE)","v":992},{"$f":"HLOOKUP(CK$7+0.5,$I$66:$DJ$120,ROWS($A$10:$A48)+2,FALSE)","v":1956},{"$f":"HLOOKUP(CL$7+0.5,$I$66:$DJ$120,ROWS($A$10:$A48)+2,FALSE)","v":574},{"$f":"HLOOKUP(CM$7+0.5,$I$66:$DJ$120,ROWS($A$10:$A48)+2,FALSE)","v":1436},{"$f":"HLOOKUP(CN$7+0.5,$I$66:$DJ$120,ROWS($A$10:$A48)+2,FALSE)","v":280},{"$f":"HLOOKUP(CO$7+0.5,$I$66:$DJ$120,ROWS($A$10:$A48)+2,FALSE)","v":582},{"$f":"HLOOKUP(CP$7+0.5,$I$66:$DJ$120,ROWS($A$10:$A48)+2,FALSE)","v":679},{"$f":"HLOOKUP(CQ$7+0.5,$I$66:$DJ$120,ROWS($A$10:$A48)+2,FALSE)","v":1146},{"$f":"HLOOKUP(CR$7+0.5,$I$66:$DJ$120,ROWS($A$10:$A48)+2,FALSE)","v":758},{"$f":"HLOOKUP(CS$7+0.5,$I$66:$DJ$120,ROWS($A$10:$A48)+2,FALSE)","v":521},{"$f":"HLOOKUP(CT$7+0.5,$I$66:$DJ$120,ROWS($A$10:$A48)+2,FALSE)","v":902},{"$f":"HLOOKUP(CU$7+0.5,$I$66:$DJ$120,ROWS($A$10:$A48)+2,FALSE)","v":683},{"$f":"HLOOKUP(CV$7+0.5,$I$66:$DJ$120,ROWS($A$10:$A48)+2,FALSE)","v":"N/A"},{"$f":"HLOOKUP(CW$7+0.5,$I$66:$DJ$120,ROWS($A$10:$A48)+2,FALSE)","v":1185},{"$f":"HLOOKUP(CX$7+0.5,$I$66:$DJ$120,ROWS($A$10:$A48)+2,FALSE)","v":277},{"$f":"HLOOKUP(CY$7+0.5,$I$66:$DJ$120,ROWS($A$10:$A48)+2,FALSE)","v":1271},{"$f":"HLOOKUP(CZ$7+0.5,$I$66:$DJ$120,ROWS($A$10:$A48)+2,FALSE)","v":581},{"$f":"HLOOKUP(DA$7+0.5,$I$66:$DJ$120,ROWS($A$10:$A48)+2,FALSE)","v":455},{"$f":"HLOOKUP(DB$7+0.5,$I$66:$DJ$120,ROWS($A$10:$A48)+2,FALSE)","v":1484},{"$f":"HLOOKUP(DC$7+0.5,$I$66:$DJ$120,ROWS($A$10:$A48)+2,FALSE)","v":1047},{"$f":"HLOOKUP(DD$7+0.5,$I$66:$DJ$120,ROWS($A$10:$A48)+2,FALSE)","v":405},{"$f":"HLOOKUP(DE$7+0.5,$I$66:$DJ$120,ROWS($A$10:$A48)+2,FALSE)","v":593},{"$f":"HLOOKUP(DF$7+0.5,$I$66:$DJ$120,ROWS($A$10:$A48)+2,FALSE)","v":3575},{"$f":"HLOOKUP(DG$7+0.5,$I$66:$DJ$120,ROWS($A$10:$A48)+2,FALSE)","v":308},{"$f":"HLOOKUP(DH$7+0.5,$I$66:$DJ$120,ROWS($A$10:$A48)+2,FALSE)","v":1181},{"$f":"HLOOKUP(DI$7+0.5,$I$66:$DJ$120,ROWS($A$10:$A48)+2,FALSE)","v":336},{"$f":"HLOOKUP(DJ$7+0.5,$I$66:$DJ$120,ROWS($A$10:$A48)+2,FALSE)","v":847}]
[null,"Pennsylvania",12577555,4619,11053022,29699,1239199,26490,{"$f":"HLOOKUP(I$7,$I$66:$DJ$120,ROWS($A$10:$A49)+2,FALSE)","v":235580},{"$f":"HLOOKUP(J$7,$I$66:$DJ$120,ROWS($A$10:$A49)+2,FALSE)","v":369},{"$f":"HLOOKUP(K$7,$I$66:$DJ$120,ROWS($A$10:$A49)+2,FALSE)","v":2185},{"$f":"HLOOKUP(L$7,$I$66:$DJ$120,ROWS($A$10:$A49)+2,FALSE)","v":3668},{"$f":"HLOOKUP(M$7,$I$66:$DJ$120,ROWS($A$10:$A49)+2,FALSE)","v":807},{"$f":"HLOOKUP(N$7,$I$66:$DJ$120,ROWS($A$10:$A49)+2,FALSE)","v":12077},{"$f":"HLOOKUP(O$7,$I$66:$DJ$120,ROWS($A$10:$A49)+2,FALSE)","v":3657},{"$f":"HLOOKUP(P$7,$I$66:$DJ$120,ROWS($A$10:$A49)+2,FALSE)","v":4007},{"$f":"HLOOKUP(Q$7,$I$66:$DJ$120,ROWS($A$10:$A49)+2,FALSE)","v":4608},{"$f":"HLOOKUP(R$7,$I$66:$DJ$120,ROWS($A$10:$A49)+2,FALSE)","v":1621},{"$f":"HLOOKUP(S$7,$I$66:$DJ$120,ROWS($A$10:$A49)+2,FALSE)","v":18212},{"$f":"HLOOKUP(T$7,$I$66:$DJ$120,ROWS($A$10:$A49)+2,FALSE)","v":4644},{"$f":"HLOOKUP(U$7,$I$66:$DJ$120,ROWS($A$10:$A49)+2,FALSE)","v":332},{"$f":"HLOOKUP(V$7,$I$66:$DJ$120,ROWS($A$10:$A49)+2,FALSE)","v":380},{"$f":"HLOOKUP(W$7,$I$66:$DJ$120,ROWS($A$10:$A49)+2,FALSE)","v":4490},{"$f":"HLOOKUP(X$7,$I$66:$DJ$120,ROWS($A$10:$A49)+2,FALSE)","v":2018},{"$f":"HLOOKUP(Y$7,$I$66:$DJ$120,ROWS($A$10:$A49)+2,FALSE)","v":227},{"$f":"HLOOKUP(Z$7,$I$66:$DJ$120,ROWS($A$10:$A49)+2,FALSE)","v":1426},{"$f":"HLOOKUP(AA$7,$I$66:$DJ$120,ROWS($A$10:$A49)+2,FALSE)","v":1675},{"$f":"HLOOKUP(AB$7,$I$66:$DJ$120,ROWS($A$10:$A49)+2,FALSE)","v":625},{"$f":"HLOOKUP(AC$7,$I$66:$DJ$120,ROWS($A$10:$A49)+2,FALSE)","v":1621},{"$f":"HLOOKUP(AD$7,$I$66:$DJ$120,ROWS($A$10:$A49)+2,FALSE)","v":18281},{"$f":"HLOOKUP(AE$7,$I$66:$DJ$120,ROWS($A$10:$A49)+2,FALSE)","v":4455},{"$f":"HLOOKUP(AF$7,$I$66:$DJ$120,ROWS($A$10:$A49)+2,FALSE)","v":4961},{"$f":"HLOOKUP(AG$7,$I$66:$DJ$120,ROWS($A$10:$A49)+2,FALSE)","v":1491},{"$f":"HLOOKUP(AH$7,$I$66:$DJ$120,ROWS($A$10:$A49)+2,FALSE)","v":563},{"$f":"HLOOKUP(AI$7,$I$66:$DJ$120,ROWS($A$10:$A49)+2,FALSE)","v":1725},{"$f":"HLOOKUP(AJ$7,$I$66:$DJ$120,ROWS($A$10:$A49)+2,FALSE)","v":339},{"$f":"HLOOKUP(AK$7,$I$66:$DJ$120,ROWS($A$10:$A49)+2,FALSE)","v":551},{"$f":"HLOOKUP(AL$7,$I$66:$DJ$120,ROWS($A$10:$A49)+2,FALSE)","v":1810},{"$f":"HLOOKUP(AM$7,$I$66:$DJ$120,ROWS($A$10:$A49)+2,FALSE)","v":729},{"$f":"HLOOKUP(AN$7,$I$66:$DJ$120,ROWS($A$10:$A49)+2,FALSE)","v":42456},{"$f":"HLOOKUP(AO$7,$I$66:$DJ$120,ROWS($A$10:$A49)+2,FALSE)","v":1250},{"$f":"HLOOKUP(AP$7,$I$66:$DJ$120,ROWS($A$10:$A49)+2,FALSE)","v":30481},{"$f":"HLOOKUP(AQ$7,$I$66:$DJ$120,ROWS($A$10:$A49)+2,FALSE)","v":7611},{"$f":"HLOOKUP(AR$7,$I$66:$DJ$120,ROWS($A$10:$A49)+2,FALSE)","v":521},{"$f":"HLOOKUP(AS$7,$I$66:$DJ$120,ROWS($A$10:$A49)+2,FALSE)","v":14545},{"$f":"HLOOKUP(AT$7,$I$66:$DJ$120,ROWS($A$10:$A49)+2,FALSE)","v":1254},{"$f":"HLOOKUP(AU$7,$I$66:$DJ$120,ROWS($A$10:$A49)+2,FALSE)","v":918},{"$f":"HLOOKUP(AV$7,$I$66:$DJ$120,ROWS($A$10:$A49)+2,FALSE)","v":"N/A"},{"$f":"HLOOKUP(AW$7,$I$66:$DJ$120,ROWS($A$10:$A49)+2,FALSE)","v":377},{"$f":"HLOOKUP(AX$7,$I$66:$DJ$120,ROWS($A$10:$A49)+2,FALSE)","v":1315},{"$f":"HLOOKUP(AY$7,$I$66:$DJ$120,ROWS($A$10:$A49)+2,FALSE)","v":966},{"$f":"HLOOKUP(AZ$7,$I$66:$DJ$120,ROWS($A$10:$A49)+2,FALSE)","v":1611},{"$f":"HLOOKUP(BA$7,$I$66:$DJ$120,ROWS($A$10:$A49)+2,FALSE)","v":7778},{"$f":"HLOOKUP(BB$7,$I$66:$DJ$120,ROWS($A$10:$A49)+2,FALSE)","v":1048},{"$f":"HLOOKUP(BC$7,$I$66:$DJ$120,ROWS($A$10:$A49)+2,FALSE)","v":215},{"$f":"HLOOKUP(BD$7,$I$66:$DJ$120,ROWS($A$10:$A49)+2,FALSE)","v":10558},{"$f":"HLOOKUP(BE$7,$I$66:$DJ$120,ROWS($A$10:$A49)+2,FALSE)","v":2495},{"$f":"HLOOKUP(BF$7,$I$66:$DJ$120,ROWS($A$10:$A49)+2,FALSE)","v":4258},{"$f":"HLOOKUP(BG$7,$I$66:$DJ$120,ROWS($A$10:$A49)+2,FALSE)","v":1300},{"$f":"HLOOKUP(BH$7,$I$66:$DJ$120,ROWS($A$10:$A49)+2,FALSE)","v":1069},{"$f":"HLOOKUP(BI$7,$I$66:$DJ$120,ROWS($A$10:$A49)+2,FALSE)","v":6275},{"$f":"HLOOKUP(BJ$7+0.5,$I$66:$DJ$120,ROWS($A$10:$A49)+2,FALSE)","v":12249},{"$f":"HLOOKUP(BK$7+0.5,$I$66:$DJ$120,ROWS($A$10:$A49)+2,FALSE)","v":368},{"$f":"HLOOKUP(BL$7+0.5,$I$66:$DJ$120,ROWS($A$10:$A49)+2,FALSE)","v":1301},{"$f":"HLOOKUP(BM$7+0.5,$I$66:$DJ$120,ROWS($A$10:$A49)+2,FALSE)","v":1451},{"$f":"HLOOKUP(BN$7+0.5,$I$66:$DJ$120,ROWS($A$10:$A49)+2,FALSE)","v":601},{"$f":"HLOOKUP(BO$7+0.5,$I$66:$DJ$120,ROWS($A$10:$A49)+2,FALSE)","v":2875},{"$f":"HLOOKUP(BP$7+0.5,$I$66:$DJ$120,ROWS($A$10:$A49)+2,FALSE)","v":1375},{"$f":"HLOOKUP(BQ$7+0.5,$I$66:$DJ$120,ROWS($A$10:$A49)+2,FALSE)","v":1559},{"$f":"HLOOKUP(BR$7+0.5,$I$66:$DJ$120,ROWS($A$10:$A49)+2,FALSE)","v":1169},{"$f":"HLOOKUP(BS$7+0.5,$I$66:$DJ$120,ROWS($A$10:$A49)+2,FALSE)","v":866},{"$f":"HLOOKUP(BT$7+0.5,$I$66:$DJ$120,ROWS($A$10:$A49)+2,FALSE)","v":3129},{"$f":"HLOOKUP(BU$7+0.5,$I$66:$DJ$120,ROWS($A$10:$A49)+2,FALSE)","v":1340},{"$f":"HLOOKUP(BV$7+0.5,$I$66:$DJ$120,ROWS($A$10:$A49)+2,FALSE)","v":292},{"$f":"HLOOKUP(BW$7+0.5,$I$66:$DJ$120,ROWS($A$10:$A49)+2,FALSE)","v":408},{"$f":"HLOOKUP(BX$7+0.5,$I$66:$DJ$120,ROWS($A$10:$A49)+2,FALSE)","v":1429},{"$f":"HLOOKUP(BY$7+0.5,$I$66:$DJ$120,ROWS($A$10:$A49)+2,FALSE)","v":739},{"$f":"HLOOKUP(BZ$7+0.5,$I$66:$DJ$120,ROWS($A$10:$A49)+2,FALSE)","v":319},{"$f":"HLOOKUP(CA$7+0.5,$I$66:$DJ$120,ROWS($A$10:$A49)+2,FALSE)","v":1201},{"$f":"HLOOKUP(CB$7+0.5,$I$66:$DJ$120,ROWS($A$10:$A49)+2,FALSE)","v":766},{"$f":"HLOOKUP(CC$7+0.5,$I$66:$DJ$120,ROWS($A$10:$A49)+2,FALSE)","v":382},{"$f":"HLOOKUP(CD$7+0.5,$I$66:$DJ$120,ROWS($A$10:$A49)+2,FALSE)","v":895},{"$f":"HLOOKUP(CE$7+0.5,$I$66:$DJ$120,ROWS($A$10:$A49)+2,FALSE)","v":2839},{"$f":"HLOOKUP(CF$7+0.5,$I$66:$DJ$120,ROWS($A$10:$A49)+2,FALSE)","v":1178},{"$f":"HLOOKUP(CG$7+0.5,$I$66:$DJ$120,ROWS($A$10:$A49)+2,FALSE)","v":2285},{"$f":"HLOOKUP(CH$7+0.5,$I$66:$DJ$120,ROWS($A$10:$A49)+2,FALSE)","v":873},{"$f":"HLOOKUP(CI$7+0.5,$I$66:$DJ$120,ROWS($A$10:$A49)+2,FALSE)","v":498},{"$f":"HLOOKUP(CJ$7+0.5,$I$66:$DJ$120,ROWS($A$10:$A49)+2,FALSE)","v":788},{"$f":"HLOOKUP(CK$7+0.5,$I$66:$DJ$120,ROWS($A$10:$A49)+2,FALSE)","v":290},{"$f":"HLOOKUP(CL$7+0.5,$I$66:$DJ$120,ROWS($A$10:$A49)+2,FALSE)","v":410},{"$f":"HLOOKUP(CM$7+0.5,$I$66:$DJ$120,ROWS($A$10:$A49)+2,FALSE)","v":1177},{"$f":"HLOOKUP(CN$7+0.5,$I$66:$DJ$120,ROWS($A$10:$A49)+2,FALSE)","v":531},{"$f":"HLOOKUP(CO$7+0.5,$I$66:$DJ$120,ROWS($A$10:$A49)+2,FALSE)","v":5218},{"$f":"HLOOKUP(CP$7+0.5,$I$66:$DJ$120,ROWS($A$10:$A49)+2,FALSE)","v":883},{"$f":"HLOOKUP(CQ$7+0.5,$I$66:$DJ$120,ROWS($A$10:$A49)+2,FALSE)","v":3719},{"$f":"HLOOKUP(CR$7+0.5,$I$66:$DJ$120,ROWS($A$10:$A49)+2,FALSE)","v":2053},{"$f":"HLOOKUP(CS$7+0.5,$I$66:$DJ$120,ROWS($A$10:$A49)+2,FALSE)","v":517},{"$f":"HLOOKUP(CT$7+0.5,$I$66:$DJ$120,ROWS($A$10:$A49)+2,FALSE)","v":3377},{"$f":"HLOOKUP(CU$7+0.5,$I$66:$DJ$120,ROWS($A$10:$A49)+2,FALSE)","v":749},{"$f":"HLOOKUP(CV$7+0.5,$I$66:$DJ$120,ROWS($A$10:$A49)+2,FALSE)","v":545},{"$f":"HLOOKUP(CW$7+0.5,$I$66:$DJ$120,ROWS($A$10:$A49)+2,FALSE)","v":"N/A"},{"$f":"HLOOKUP(CX$7+0.5,$I$66:$DJ$120,ROWS($A$10:$A49)+2,FALSE)","v":327},{"$f":"HLOOKUP(CY$7+0.5,$I$66:$DJ$120,ROWS($A$10:$A49)+2,FALSE)","v":651},{"$f":"HLOOKUP(CZ$7+0.5,$I$66:$DJ$120,ROWS($A$10:$A49)+2,FALSE)","v":927},{"$f":"HLOOKUP(DA$7+0.5,$I$66:$DJ$120,ROWS($A$10:$A49)+2,FALSE)","v":626},{"$f":"HLOOKUP(DB$7+0.5,$I$66:$DJ$120,ROWS($A$10:$A49)+2,FALSE)","v":2650},{"$f":"HLOOKUP(DC$7+0.5,$I$66:$DJ$120,ROWS($A$10:$A49)+2,FALSE)","v":684},{"$f":"HLOOKUP(DD$7+0.5,$I$66:$DJ$120,ROWS($A$10:$A49)+2,FALSE)","v":214},{"$f":"HLOOKUP(DE$7+0.5,$I$66:$DJ$120,ROWS($A$10:$A49)+2,FALSE)","v":2596},{"$f":"HLOOKUP(DF$7+0.5,$I$66:$DJ$120,ROWS($A$10:$A49)+2,FALSE)","v":1141},{"$f":"HLOOKUP(DG$7+0.5,$I$66:$DJ$120,ROWS($A$10:$A49)+2,FALSE)","v":1674},{"$f":"HLOOKUP(DH$7+0.5,$I$66:$DJ$120,ROWS($A$10:$A49)+2,FALSE)","v":1081},{"$f":"HLOOKUP(DI$7+0.5,$I$66:$DJ$120,ROWS($A$10:$A49)+2,FALSE)","v":936},{"$f":"HLOOKUP(DJ$7+0.5,$I$66:$DJ$120,ROWS($A$10:$A49)+2,FALSE)","v":2169}]
[null,"Rhode Island",1042240,1435,900283,9035,99603,7344,{"$f":"HLOOKUP(I$7,$I$66:$DJ$120,ROWS($A$10:$A50)+2,FALSE)","v":32059},{"$f":"HLOOKUP(J$7,$I$66:$DJ$120,ROWS($A$10:$A50)+2,FALSE)","v":136},{"$f":"HLOOKUP(K$7,$I$66:$DJ$120,ROWS($A$10:$A50)+2,FALSE)","v":0},{"$f":"HLOOKUP(L$7,$I$66:$DJ$120,ROWS($A$10:$A50)+2,FALSE)","v":324},{"$f":"HLOOKUP(M$7,$I$66:$DJ$120,ROWS($A$10:$A50)+2,FALSE)","v":0},{"$f":"HLOOKUP(N$7,$I$66:$DJ$120,ROWS($A$10:$A50)+2,FALSE)","v":1697},{"$f":"HLOOKUP(O$7,$I$66:$DJ$120,ROWS($A$10:$A50)+2,FALSE)","v":59},{"$f":"HLOOKUP(P$7,$I$66:$DJ$120,ROWS($A$10:$A50)+2,FALSE)","v":4090},{"$f":"HLOOKUP(Q$7,$I$66:$DJ$120,ROWS($A$10:$A50)+2,FALSE)","v":0},{"$f":"HLOOKUP(R$7,$I$66:$DJ$120,ROWS($A$10:$A50)+2,FALSE)","v":146},{"$f":"HLOOKUP(S$7,$I$66:$DJ$120,ROWS($A$10:$A50)+2,FALSE)","v":1336},{"$f":"HLOOKUP(T$7,$I$66:$DJ$120,ROWS($A$10:$A50)+2,FALSE)","v":382},{"$f":"HLOOKUP(U$7,$I$66:$DJ$120,ROWS($A$10:$A50)+2,FALSE)","v":274},{"$f":"HLOOKUP(V$7,$I$66:$DJ$120,ROWS($A$10:$A50)+2,FALSE)","v":0},{"$f":"HLOOKUP(W$7,$I$66:$DJ$120,ROWS($A$10:$A50)+2,FALSE)","v":1210},{"$f":"HLOOKUP(X$7,$I$66:$DJ$120,ROWS($A$10:$A50)+2,FALSE)","v":206},{"$f":"HLOOKUP(Y$7,$I$66:$DJ$120,ROWS($A$10:$A50)+2,FALSE)","v":48},{"$f":"HLOOKUP(Z$7,$I$66:$DJ$120,ROWS($A$10:$A50)+2,FALSE)","v":0},{"$f":"HLOOKUP(AA$7,$I$66:$DJ$120,ROWS($A$10:$A50)+2,FALSE)","v":0},{"$f":"HLOOKUP(AB$7,$I$66:$DJ$120,ROWS($A$10:$A50)+2,FALSE)","v":0},{"$f":"HLOOKUP(AC$7,$I$66:$DJ$120,ROWS($A$10:$A50)+2,FALSE)","v":447},{"$f":"HLOOKUP(AD$7,$I$66:$DJ$120,ROWS($A$10:$A50)+2,FALSE)","v":977},{"$f":"HLOOKUP(AE$7,$I$66:$DJ$120,ROWS($A$10:$A50)+2,FALSE)","v":8639},{"$f":"HLOOKUP(AF$7,$I$66:$DJ$120,ROWS($A$10:$A50)+2,FALSE)","v":77},{"$f":"HLOOKUP(AG$7,$I$66:$DJ$120,ROWS($A$10:$A50)+2,FALSE)","v":47},{"$f":"HLOOKUP(AH$7,$I$66:$DJ$120,ROWS($A$10:$A50)+2,FALSE)","v":0},{"$f":"HLOOKUP(AI$7,$I$66:$DJ$120,ROWS($A$10:$A50)+2,FALSE)","v":47},{"$f":"HLOOKUP(AJ$7,$I$66:$DJ$120,ROWS($A$10:$A50)+2,FALSE)","v":0},{"$f":"HLOOKUP(AK$7,$I$66:$DJ$120,ROWS($A$10:$A50)+2,FALSE)","v":0},{"$f":"HLOOKUP(AL$7,$I$66:$DJ$120,ROWS($A$10:$A50)+2,FALSE)","v":297},{"$f":"HLOOKUP(AM$7,$I$66:$DJ$120,ROWS($A$10:$A50)+2,FALSE)","v":333},{"$f":"HLOOKUP(AN$7,$I$66:$DJ$120,ROWS($A$10:$A50)+2,FALSE)","v":1868},{"$f":"HLOOKUP(AO$7,$I$66:$DJ$120,ROWS($A$10:$A50)+2,FALSE)","v":0},{"$f":"HLOOKUP(AP$7,$I$66:$DJ$120,ROWS($A$10:$A50)+2,FALSE)","v":4583},{"$f":"HLOOKUP(AQ$7,$I$66:$DJ$120,ROWS($A$10:$A50)+2,FALSE)","v":1376},{"$f":"HLOOKUP(AR$7,$I$66:$DJ$120,ROWS($A$10:$A50)+2,FALSE)","v":62},{"$f":"HLOOKUP(AS$7,$I$66:$DJ$120,ROWS($A$10:$A50)+2,FALSE)","v":0},{"$f":"HLOOKUP(AT$7,$I$66:$DJ$120,ROWS($A$10:$A50)+2,FALSE)","v":199},{"$f":"HLOOKUP(AU$7,$I$66:$DJ$120,ROWS($A$10:$A50)+2,FALSE)","v":0},{"$f":"HLOOKUP(AV$7,$I$66:$DJ$120,ROWS($A$10:$A50)+2,FALSE)","v":560},{"$f":"HLOOKUP(AW$7,$I$66:$DJ$120,ROWS($A$10:$A50)+2,FALSE)","v":"N/A"},{"$f":"HLOOKUP(AX$7,$I$66:$DJ$120,ROWS($A$10:$A50)+2,FALSE)","v":61},{"$f":"HLOOKUP(AY$7,$I$66:$DJ$120,ROWS($A$10:$A50)+2,FALSE)","v":48},{"$f":"HLOOKUP(AZ$7,$I$66:$DJ$120,ROWS($A$10:$A50)+2,FALSE)","v":71},{"$f":"HLOOKUP(BA$7,$I$66:$DJ$120,ROWS($A$10:$A50)+2,FALSE)","v":678},{"$f":"HLOOKUP(BB$7,$I$66:$DJ$120,ROWS($A$10:$A50)+2,FALSE)","v":0},{"$f":"HLOOKUP(BC$7,$I$66:$DJ$120,ROWS($A$10:$A50)+2,FALSE)","v":72},{"$f":"HLOOKUP(BD$7,$I$66:$DJ$120,ROWS($A$10:$A50)+2,FALSE)","v":1399},{"$f":"HLOOKUP(BE$7,$I$66:$DJ$120,ROWS($A$10:$A50)+2,FALSE)","v":160},{"$f":"HLOOKUP(BF$7,$I$66:$DJ$120,ROWS($A$10:$A50)+2,FALSE)","v":150},{"$f":"HLOOKUP(BG$7,$I$66:$DJ$120,ROWS($A$10:$A50)+2,FALSE)","v":0},{"$f":"HLOOKUP(BH$7,$I$66:$DJ$120,ROWS($A$10:$A50)+2,FALSE)","v":0},{"$f":"HLOOKUP(BI$7,$I$66:$DJ$120,ROWS($A$10:$A50)+2,FALSE)","v":276},{"$f":"HLOOKUP(BJ$7+0.5,$I$66:$DJ$120,ROWS($A$10:$A50)+2,FALSE)","v":4070},{"$f":"HLOOKUP(BK$7+0.5,$I$66:$DJ$120,ROWS($A$10:$A50)+2,FALSE)","v":214},{"$f":"HLOOKUP(BL$7+0.5,$I$66:$DJ$120,ROWS($A$10:$A50)+2,FALSE)","v":291},{"$f":"HLOOKUP(BM$7+0.5,$I$66:$DJ$120,ROWS($A$10:$A50)+2,FALSE)","v":286},{"$f":"HLOOKUP(BN$7+0.5,$I$66:$DJ$120,ROWS($A$10:$A50)+2,FALSE)","v":291},{"$f":"HLOOKUP(BO$7+0.5,$I$66:$DJ$120,ROWS($A$10:$A50)+2,FALSE)","v":791},{"$f":"HLOOKUP(BP$7+0.5,$I$66:$DJ$120,ROWS($A$10:$A50)+2,FALSE)","v":98},{"$f":"HLOOKUP(BQ$7+0.5,$I$66:$DJ$120,ROWS($A$10:$A50)+2,FALSE)","v":1497},{"$f":"HLOOKUP(BR$7+0.5,$I$66:$DJ$120,ROWS($A$10:$A50)+2,FALSE)","v":291},{"$f":"HLOOKUP(BS$7+0.5,$I$66:$DJ$120,ROWS($A$10:$A50)+2,FALSE)","v":240},{"$f":"HLOOKUP(BT$7+0.5,$I$66:$DJ$120,ROWS($A$10:$A50)+2,FALSE)","v":778},{"$f":"HLOOKUP(BU$7+0.5,$I$66:$DJ$120,ROWS($A$10:$A50)+2,FALSE)","v":377},{"$f":"HLOOKUP(BV$7+0.5,$I$66:$DJ$120,ROWS($A$10:$A50)+2,FALSE)","v":546},{"$f":"HLOOKUP(BW$7+0.5,$I$66:$DJ$120,ROWS($A$10:$A50)+2,FALSE)","v":291},{"$f":"HLOOKUP(BX$7+0.5,$I$66:$DJ$120,ROWS($A$10:$A50)+2,FALSE)","v":768},{"$f":"HLOOKUP(BY$7+0.5,$I$66:$DJ$120,ROWS($A$10:$A50)+2,FALSE)","v":334},{"$f":"HLOOKUP(BZ$7+0.5,$I$66:$DJ$120,ROWS($A$10:$A50)+2,FALSE)","v":79},{"$f":"HLOOKUP(CA$7+0.5,$I$66:$DJ$120,ROWS($A$10:$A50)+2,FALSE)","v":291},{"$f":"HLOOKUP(CB$7+0.5,$I$66:$DJ$120,ROWS($A$10:$A50)+2,FALSE)","v":291},{"$f":"HLOOKUP(CC$7+0.5,$I$66:$DJ$120,ROWS($A$10:$A50)+2,FALSE)","v":291},{"$f":"HLOOKUP(CD$7+0.5,$I$66:$DJ$120,ROWS($A$10:$A50)+2,FALSE)","v":350},{"$f":"HLOOKUP(CE$7+0.5,$I$66:$DJ$120,ROWS($A$10:$A50)+2,FALSE)","v":676},{"$f":"HLOOKUP(CF$7+0.5,$I$66:$DJ$120,ROWS($A$10:$A50)+2,FALSE)","v":1836},{"$f":"HLOOKUP(CG$7+0.5,$I$66:$DJ$120,ROWS($A$10:$A50)+2,FALSE)","v":125},{"$f":"HLOOKUP(CH$7+0.5,$I$66:$DJ$120,ROWS($A$10:$A50)+2,FALSE)","v":78},{"$f":"HLOOKUP(CI$7+0.5,$I$66:$DJ$120,ROWS($A$10:$A50)+2,FALSE)","v":291},{"$f":"HLOOKUP(CJ$7+0.5,$I$66:$DJ$120,ROWS($A$10:$A50)+2,FALSE)","v":78},{"$f":"HLOOKUP(CK$7+0.5,$I$66:$DJ$120,ROWS($A$10:$A50)+2,FALSE)","v":291},{"$f":"HLOOKUP(CL$7+0.5,$I$66:$DJ$120,ROWS($A$10:$A50)+2,FALSE)","v":291},{"$f":"HLOOKUP(CM$7+0.5,$I$66:$DJ$120,ROWS($A$10:$A50)+2,FALSE)","v":259},{"$f":"HLOOKUP(CN$7+0.5,$I$66:$DJ$120,ROWS($A$10:$A50)+2,FALSE)","v":322},{"$f":"HLOOKUP(CO$7+0.5,$I$66:$DJ$120,ROWS($A$10:$A50)+2,FALSE)","v":649},{"$f":"HLOOKUP(CP$7+0.5,$I$66:$DJ$120,ROWS($A$10:$A50)+2,FALSE)","v":291},{"$f":"HLOOKUP(CQ$7+0.5,$I$66:$DJ$120,ROWS($A$10:$A50)+2,FALSE)","v":1398},{"$f":"HLOOKUP(CR$7+0.5,$I$66:$DJ$120,ROWS($A$10:$A50)+2,FALSE)","v":1080},{"$f":"HLOOKUP(CS$7+0.5,$I$66:$DJ$120,ROWS($A$10:$A50)+2,FALSE)","v":103},{"$f":"HLOOKUP(CT$7+0.5,$I$66:$DJ$120,ROWS($A$10:$A50)+2,FALSE)","v":291},{"$f":"HLOOKUP(CU$7+0.5,$I$66:$DJ$120,ROWS($A$10:$A50)+2,FALSE)","v":331},{"$f":"HLOOKUP(CV$7+0.5,$I$66:$DJ$120,ROWS($A$10:$A50)+2,FALSE)","v":291},{"$f":"HLOOKUP(CW$7+0.5,$I$66:$DJ$120,ROWS($A$10:$A50)+2,FALSE)","v":461},{"$f":"HLOOKUP(CX$7+0.5,$I$66:$DJ$120,ROWS($A$10:$A50)+2,FALSE)","v":"N/A"},{"$f":"HLOOKUP(CY$7+0.5,$I$66:$DJ$120,ROWS($A$10:$A50)+2,FALSE)","v":105},{"$f":"HLOOKUP(CZ$7+0.5,$I$66:$DJ$120,ROWS($A$10:$A50)+2,FALSE)","v":78},{"$f":"HLOOKUP(DA$7+0.5,$I$66:$DJ$120,ROWS($A$10:$A50)+2,FALSE)","v":118},{"$f":"HLOOKUP(DB$7+0.5,$I$66:$DJ$120,ROWS($A$10:$A50)+2,FALSE)","v":500},{"$f":"HLOOKUP(DC$7+0.5,$I$66:$DJ$120,ROWS($A$10:$A50)+2,FALSE)","v":291},{"$f":"HLOOKUP(DD$7+0.5,$I$66:$DJ$120,ROWS($A$10:$A50)+2,FALSE)","v":122},{"$f":"HLOOKUP(DE$7+0.5,$I$66:$DJ$120,ROWS($A$10:$A50)+2,FALSE)","v":908},{"$f":"HLOOKUP(DF$7+0.5,$I$66:$DJ$120,ROWS($A$10:$A50)+2,FALSE)","v":206},{"$f":"HLOOKUP(DG$7+0.5,$I$66:$DJ$120,ROWS($A$10:$A50)+2,FALSE)","v":233},{"$f":"HLOOKUP(DH$7+0.5,$I$66:$DJ$120,ROWS($A$10:$A50)+2,FALSE)","v":291},{"$f":"HLOOKUP(DI$7+0.5,$I$66:$DJ$120,ROWS($A$10:$A50)+2,FALSE)","v":291},{"$f":"HLOOKUP(DJ$7+0.5,$I$66:$DJ$120,ROWS($A$10:$A50)+2,FALSE)","v":353}]
[null,"South Carolina",4577399,3786,3870879,23788,537961,21768,{"$f":"HLOOKUP(I$7,$I$66:$DJ$120,ROWS($A$10:$A51)+2,FALSE)","v":152441},{"$f":"HLOOKUP(J$7,$I$66:$DJ$120,ROWS($A$10:$A51)+2,FALSE)","v":1741},{"$f":"HLOOKUP(K$7,$I$66:$DJ$120,ROWS($A$10:$A51)+2,FALSE)","v":1670},{"$f":"HLOOKUP(L$7,$I$66:$DJ$120,ROWS($A$10:$A51)+2,FALSE)","v":1457},{"$f":"HLOOKUP(M$7,$I$66:$DJ$120,ROWS($A$10:$A51)+2,FALSE)","v":365},{"$f":"HLOOKUP(N$7,$I$66:$DJ$120,ROWS($A$10:$A51)+2,FALSE)","v":4691},{"$f":"HLOOKUP(O$7,$I$66:$DJ$120,ROWS($A$10:$A51)+2,FALSE)","v":1867},{"$f":"HLOOKUP(P$7,$I$66:$DJ$120,ROWS($A$10:$A51)+2,FALSE)","v":3998},{"$f":"HLOOKUP(Q$7,$I$66:$DJ$120,ROWS($A$10:$A51)+2,FALSE)","v":249},{"$f":"HLOOKUP(R$7,$I$66:$DJ$120,ROWS($A$10:$A51)+2,FALSE)","v":38},{"$f":"HLOOKUP(S$7,$I$66:$DJ$120,ROWS($A$10:$A51)+2,FALSE)","v":16060},{"$f":"HLOOKUP(T$7,$I$66:$DJ$120,ROWS($A$10:$A51)+2,FALSE)","v":17486},{"$f":"HLOOKUP(U$7,$I$66:$DJ$120,ROWS($A$10:$A51)+2,FALSE)","v":813},{"$f":"HLOOKUP(V$7,$I$66:$DJ$120,ROWS($A$10:$A51)+2,FALSE)","v":233},{"$f":"HLOOKUP(W$7,$I$66:$DJ$120,ROWS($A$10:$A51)+2,FALSE)","v":4253},{"$f":"HLOOKUP(X$7,$I$66:$DJ$120,ROWS($A$10:$A51)+2,FALSE)","v":2174},{"$f":"HLOOKUP(Y$7,$I$66:$DJ$120,ROWS($A$10:$A51)+2,FALSE)","v":703},{"$f":"HLOOKUP(Z$7,$I$66:$DJ$120,ROWS($A$10:$A51)+2,FALSE)","v":514},{"$f":"HLOOKUP(AA$7,$I$66:$DJ$120,ROWS($A$10:$A51)+2,FALSE)","v":2211},{"$f":"HLOOKUP(AB$7,$I$66:$DJ$120,ROWS($A$10:$A51)+2,FALSE)","v":2059},{"$f":"HLOOKUP(AC$7,$I$66:$DJ$120,ROWS($A$10:$A51)+2,FALSE)","v":603},{"$f":"HLOOKUP(AD$7,$I$66:$DJ$120,ROWS($A$10:$A51)+2,FALSE)","v":5184},{"$f":"HLOOKUP(AE$7,$I$66:$DJ$120,ROWS($A$10:$A51)+2,FALSE)","v":3765},{"$f":"HLOOKUP(AF$7,$I$66:$DJ$120,ROWS($A$10:$A51)+2,FALSE)","v":3709},{"$f":"HLOOKUP(AG$7,$I$66:$DJ$120,ROWS($A$10:$A51)+2,FALSE)","v":818},{"$f":"HLOOKUP(AH$7,$I$66:$DJ$120,ROWS($A$10:$A51)+2,FALSE)","v":1175},{"$f":"HLOOKUP(AI$7,$I$66:$DJ$120,ROWS($A$10:$A51)+2,FALSE)","v":1371},{"$f":"HLOOKUP(AJ$7,$I$66:$DJ$120,ROWS($A$10:$A51)+2,FALSE)","v":0},{"$f":"HLOOKUP(AK$7,$I$66:$DJ$120,ROWS($A$10:$A51)+2,FALSE)","v":0},{"$f":"HLOOKUP(AL$7,$I$66:$DJ$120,ROWS($A$10:$A51)+2,FALSE)","v":1173},{"$f":"HLOOKUP(AM$7,$I$66:$DJ$120,ROWS($A$10:$A51)+2,FALSE)","v":486},{"$f":"HLOOKUP(AN$7,$I$66:$DJ$120,ROWS($A$10:$A51)+2,FALSE)","v":4908},{"$f":"HLOOKUP(AO$7,$I$66:$DJ$120,ROWS($A$10:$A51)+2,FALSE)","v":1390},{"$f":"HLOOKUP(AP$7,$I$66:$DJ$120,ROWS($A$10:$A51)+2,FALSE)","v":7912},{"$f":"HLOOKUP(AQ$7,$I$66:$DJ$120,ROWS($A$10:$A51)+2,FALSE)","v":20749},{"$f":"HLOOKUP(AR$7,$I$66:$DJ$120,ROWS($A$10:$A51)+2,FALSE)","v":118},{"$f":"HLOOKUP(AS$7,$I$66:$DJ$120,ROWS($A$10:$A51)+2,FALSE)","v":3883},{"$f":"HLOOKUP(AT$7,$I$66:$DJ$120,ROWS($A$10:$A51)+2,FALSE)","v":1458},{"$f":"HLOOKUP(AU$7,$I$66:$DJ$120,ROWS($A$10:$A51)+2,FALSE)","v":1020},{"$f":"HLOOKUP(AV$7,$I$66:$DJ$120,ROWS($A$10:$A51)+2,FALSE)","v":4689},{"$f":"HLOOKUP(AW$7,$I$66:$DJ$120,ROWS($A$10:$A51)+2,FALSE)","v":154},{"$f":"HLOOKUP(AX$7,$I$66:$DJ$120,ROWS($A$10:$A51)+2,FALSE)","v":"N/A"},{"$f":"HLOOKUP(AY$7,$I$66:$DJ$120,ROWS($A$10:$A51)+2,FALSE)","v":95},{"$f":"HLOOKUP(AZ$7,$I$66:$DJ$120,ROWS($A$10:$A51)+2,FALSE)","v":3816},{"$f":"HLOOKUP(BA$7,$I$66:$DJ$120,ROWS($A$10:$A51)+2,FALSE)","v":4965},{"$f":"HLOOKUP(BB$7,$I$66:$DJ$120,ROWS($A$10:$A51)+2,FALSE)","v":455},{"$f":"HLOOKUP(BC$7,$I$66:$DJ$120,ROWS($A$10:$A51)+2,FALSE)","v":478},{"$f":"HLOOKUP(BD$7,$I$66:$DJ$120,ROWS($A$10:$A51)+2,FALSE)","v":9786},{"$f":"HLOOKUP(BE$7,$I$66:$DJ$120,ROWS($A$10:$A51)+2,FALSE)","v":3070},{"$f":"HLOOKUP(BF$7,$I$66:$DJ$120,ROWS($A$10:$A51)+2,FALSE)","v":1190},{"$f":"HLOOKUP(BG$7,$I$66:$DJ$120,ROWS($A$10:$A51)+2,FALSE)","v":1057},{"$f":"HLOOKUP(BH$7,$I$66:$DJ$120,ROWS($A$10:$A51)+2,FALSE)","v":382},{"$f":"HLOOKUP(BI$7,$I$66:$DJ$120,ROWS($A$10:$A51)+2,FALSE)","v":269},{"$f":"HLOOKUP(BJ$7+0.5,$I$66:$DJ$120,ROWS($A$10:$A51)+2,FALSE)","v":10548},{"$f":"HLOOKUP(BK$7+0.5,$I$66:$DJ$120,ROWS($A$10:$A51)+2,FALSE)","v":721},{"$f":"HLOOKUP(BL$7+0.5,$I$66:$DJ$120,ROWS($A$10:$A51)+2,FALSE)","v":1199},{"$f":"HLOOKUP(BM$7+0.5,$I$66:$DJ$120,ROWS($A$10:$A51)+2,FALSE)","v":870},{"$f":"HLOOKUP(BN$7+0.5,$I$66:$DJ$120,ROWS($A$10:$A51)+2,FALSE)","v":280},{"$f":"HLOOKUP(BO$7+0.5,$I$66:$DJ$120,ROWS($A$10:$A51)+2,FALSE)","v":1983},{"$f":"HLOOKUP(BP$7+0.5,$I$66:$DJ$120,ROWS($A$10:$A51)+2,FALSE)","v":1378},{"$f":"HLOOKUP(BQ$7+0.5,$I$66:$DJ$120,ROWS($A$10:$A51)+2,FALSE)","v":2132},{"$f":"HLOOKUP(BR$7+0.5,$I$66:$DJ$120,ROWS($A$10:$A51)+2,FALSE)","v":274},{"$f":"HLOOKUP(BS$7+0.5,$I$66:$DJ$120,ROWS($A$10:$A51)+2,FALSE)","v":63},{"$f":"HLOOKUP(BT$7+0.5,$I$66:$DJ$120,ROWS($A$10:$A51)+2,FALSE)","v":3907},{"$f":"HLOOKUP(BU$7+0.5,$I$66:$DJ$120,ROWS($A$10:$A51)+2,FALSE)","v":3100},{"$f":"HLOOKUP(BV$7+0.5,$I$66:$DJ$120,ROWS($A$10:$A51)+2,FALSE)","v":521},{"$f":"HLOOKUP(BW$7+0.5,$I$66:$DJ$120,ROWS($A$10:$A51)+2,FALSE)","v":207},{"$f":"HLOOKUP(BX$7+0.5,$I$66:$DJ$120,ROWS($A$10:$A51)+2,FALSE)","v":1651},{"$f":"HLOOKUP(BY$7+0.5,$I$66:$DJ$120,ROWS($A$10:$A51)+2,FALSE)","v":884},{"$f":"HLOOKUP(BZ$7+0.5,$I$66:$DJ$120,ROWS($A$10:$A51)+2,FALSE)","v":870},{"$f":"HLOOKUP(CA$7+0.5,$I$66:$DJ$120,ROWS($A$10:$A51)+2,FALSE)","v":612},{"$f":"HLOOKUP(CB$7+0.5,$I$66:$DJ$120,ROWS($A$10:$A51)+2,FALSE)","v":1215},{"$f":"HLOOKUP(CC$7+0.5,$I$66:$DJ$120,ROWS($A$10:$A51)+2,FALSE)","v":986},{"$f":"HLOOKUP(CD$7+0.5,$I$66:$DJ$120,ROWS($A$10:$A51)+2,FALSE)","v":448},{"$f":"HLOOKUP(CE$7+0.5,$I$66:$DJ$120,ROWS($A$10:$A51)+2,FALSE)","v":2183},{"$f":"HLOOKUP(CF$7+0.5,$I$66:$DJ$120,ROWS($A$10:$A51)+2,FALSE)","v":1826},{"$f":"HLOOKUP(CG$7+0.5,$I$66:$DJ$120,ROWS($A$10:$A51)+2,FALSE)","v":1403},{"$f":"HLOOKUP(CH$7+0.5,$I$66:$DJ$120,ROWS($A$10:$A51)+2,FALSE)","v":463},{"$f":"HLOOKUP(CI$7+0.5,$I$66:$DJ$120,ROWS($A$10:$A51)+2,FALSE)","v":681},{"$f":"HLOOKUP(CJ$7+0.5,$I$66:$DJ$120,ROWS($A$10:$A51)+2,FALSE)","v":797},{"$f":"HLOOKUP(CK$7+0.5,$I$66:$DJ$120,ROWS($A$10:$A51)+2,FALSE)","v":296},{"$f":"HLOOKUP(CL$7+0.5,$I$66:$DJ$120,ROWS($A$10:$A51)+2,FALSE)","v":296},{"$f":"HLOOKUP(CM$7+0.5,$I$66:$DJ$120,ROWS($A$10:$A51)+2,FALSE)","v":793},{"$f":"HLOOKUP(CN$7+0.5,$I$66:$DJ$120,ROWS($A$10:$A51)+2,FALSE)","v":296},{"$f":"HLOOKUP(CO$7+0.5,$I$66:$DJ$120,ROWS($A$10:$A51)+2,FALSE)","v":1660},{"$f":"HLOOKUP(CP$7+0.5,$I$66:$DJ$120,ROWS($A$10:$A51)+2,FALSE)","v":1444},{"$f":"HLOOKUP(CQ$7+0.5,$I$66:$DJ$120,ROWS($A$10:$A51)+2,FALSE)","v":2045},{"$f":"HLOOKUP(CR$7+0.5,$I$66:$DJ$120,ROWS($A$10:$A51)+2,FALSE)","v":3397},{"$f":"HLOOKUP(CS$7+0.5,$I$66:$DJ$120,ROWS($A$10:$A51)+2,FALSE)","v":196},{"$f":"HLOOKUP(CT$7+0.5,$I$66:$DJ$120,ROWS($A$10:$A51)+2,FALSE)","v":1190},{"$f":"HLOOKUP(CU$7+0.5,$I$66:$DJ$120,ROWS($A$10:$A51)+2,FALSE)","v":1353},{"$f":"HLOOKUP(CV$7+0.5,$I$66:$DJ$120,ROWS($A$10:$A51)+2,FALSE)","v":951},{"$f":"HLOOKUP(CW$7+0.5,$I$66:$DJ$120,ROWS($A$10:$A51)+2,FALSE)","v":1531},{"$f":"HLOOKUP(CX$7+0.5,$I$66:$DJ$120,ROWS($A$10:$A51)+2,FALSE)","v":179},{"$f":"HLOOKUP(CY$7+0.5,$I$66:$DJ$120,ROWS($A$10:$A51)+2,FALSE)","v":"N/A"},{"$f":"HLOOKUP(CZ$7+0.5,$I$66:$DJ$120,ROWS($A$10:$A51)+2,FALSE)","v":109},{"$f":"HLOOKUP(DA$7+0.5,$I$66:$DJ$120,ROWS($A$10:$A51)+2,FALSE)","v":1732},{"$f":"HLOOKUP(DB$7+0.5,$I$66:$DJ$120,ROWS($A$10:$A51)+2,FALSE)","v":1539},{"$f":"HLOOKUP(DC$7+0.5,$I$66:$DJ$120,ROWS($A$10:$A51)+2,FALSE)","v":437},{"$f":"HLOOKUP(DD$7+0.5,$I$66:$DJ$120,ROWS($A$10:$A51)+2,FALSE)","v":500},{"$f":"HLOOKUP(DE$7+0.5,$I$66:$DJ$120,ROWS($A$10:$A51)+2,FALSE)","v":2245},{"$f":"HLOOKUP(DF$7+0.5,$I$66:$DJ$120,ROWS($A$10:$A51)+2,FALSE)","v":1589},{"$f":"HLOOKUP(DG$7+0.5,$I$66:$DJ$120,ROWS($A$10:$A51)+2,FALSE)","v":536},{"$f":"HLOOKUP(DH$7+0.5,$I$66:$DJ$120,ROWS($A$10:$A51)+2,FALSE)","v":639},{"$f":"HLOOKUP(DI$7+0.5,$I$66:$DJ$120,ROWS($A$10:$A51)+2,FALSE)","v":524},{"$f":"HLOOKUP(DJ$7+0.5,$I$66:$DJ$120,ROWS($A$10:$A51)+2,FALSE)","v":229}]
[null,"South Dakota",805616,1372,680993,6027,96805,5853,{"$f":"HLOOKUP(I$7,$I$66:$DJ$120,ROWS($A$10:$A52)+2,FALSE)","v":25777},{"$f":"HLOOKUP(J$7,$I$66:$DJ$120,ROWS($A$10:$A52)+2,FALSE)","v":325},{"$f":"HLOOKUP(K$7,$I$66:$DJ$120,ROWS($A$10:$A52)+2,FALSE)","v":25},{"$f":"HLOOKUP(L$7,$I$66:$DJ$120,ROWS($A$10:$A52)+2,FALSE)","v":745},{"$f":"HLOOKUP(M$7,$I$66:$DJ$120,ROWS($A$10:$A52)+2,FALSE)","v":61},{"$f":"HLOOKUP(N$7,$I$66:$DJ$120,ROWS($A$10:$A52)+2,FALSE)","v":1338},{"$f":"HLOOKUP(O$7,$I$66:$DJ$120,ROWS($A$10:$A52)+2,FALSE)","v":807},{"$f":"HLOOKUP(P$7,$I$66:$DJ$120,ROWS($A$10:$A52)+2,FALSE)","v":0},{"$f":"HLOOKUP(Q$7,$I$66:$DJ$120,ROWS($A$10:$A52)+2,FALSE)","v":0},{"$f":"HLOOKUP(R$7,$I$66:$DJ$120,ROWS($A$10:$A52)+2,FALSE)","v":0},{"$f":"HLOOKUP(S$7,$I$66:$DJ$120,ROWS($A$10:$A52)+2,FALSE)","v":251},{"$f":"HLOOKUP(T$7,$I$66:$DJ$120,ROWS($A$10:$A52)+2,FALSE)","v":24},{"$f":"HLOOKUP(U$7,$I$66:$DJ$120,ROWS($A$10:$A52)+2,FALSE)","v":75},{"$f":"HLOOKUP(V$7,$I$66:$DJ$120,ROWS($A$10:$A52)+2,FALSE)","v":457},{"$f":"HLOOKUP(W$7,$I$66:$DJ$120,ROWS($A$10:$A52)+2,FALSE)","v":80},{"$f":"HLOOKUP(X$7,$I$66:$DJ$120,ROWS($A$10:$A52)+2,FALSE)","v":439},{"$f":"HLOOKUP(Y$7,$I$66:$DJ$120,ROWS($A$10:$A52)+2,FALSE)","v":3520},{"$f":"HLOOKUP(Z$7,$I$66:$DJ$120,ROWS($A$10:$A52)+2,FALSE)","v":571},{"$f":"HLOOKUP(AA$7,$I$66:$DJ$120,ROWS($A$10:$A52)+2,FALSE)","v":82},{"$f":"HLOOKUP(AB$7,$I$66:$DJ$120,ROWS($A$10:$A52)+2,FALSE)","v":129},{"$f":"HLOOKUP(AC$7,$I$66:$DJ$120,ROWS($A$10:$A52)+2,FALSE)","v":0},{"$f":"HLOOKUP(AD$7,$I$66:$DJ$120,ROWS($A$10:$A52)+2,FALSE)","v":0},{"$f":"HLOOKUP(AE$7,$I$66:$DJ$120,ROWS($A$10:$A52)+2,FALSE)","v":407},{"$f":"HLOOKUP(AF$7,$I$66:$DJ$120,ROWS($A$10:$A52)+2,FALSE)","v":144},{"$f":"HLOOKUP(AG$7,$I$66:$DJ$120,ROWS($A$10:$A52)+2,FALSE)","v":4615},{"$f":"HLOOKUP(AH$7,$I$66:$DJ$120,ROWS($A$10:$A52)+2,FALSE)","v":201},{"$f":"HLOOKUP(AI$7,$I$66:$DJ$120,ROWS($A$10:$A52)+2,FALSE)","v":252},{"$f":"HLOOKUP(AJ$7,$I$66:$DJ$120,ROWS($A$10:$A52)+2,FALSE)","v":560},{"$f":"HLOOKUP(AK$7,$I$66:$DJ$120,ROWS($A$10:$A52)+2,FALSE)","v":2260},{"$f":"HLOOKUP(AL$7,$I$66:$DJ$120,ROWS($A$10:$A52)+2,FALSE)","v":38},{"$f":"HLOOKUP(AM$7,$I$66:$DJ$120,ROWS($A$10:$A52)+2,FALSE)","v":0},{"$f":"HLOOKUP(AN$7,$I$66:$DJ$120,ROWS($A$10:$A52)+2,FALSE)","v":0},{"$f":"HLOOKUP(AO$7,$I$66:$DJ$120,ROWS($A$10:$A52)+2,FALSE)","v":38},{"$f":"HLOOKUP(AP$7,$I$66:$DJ$120,ROWS($A$10:$A52)+2,FALSE)","v":758},{"$f":"HLOOKUP(AQ$7,$I$66:$DJ$120,ROWS($A$10:$A52)+2,FALSE)","v":262},{"$f":"HLOOKUP(AR$7,$I$66:$DJ$120,ROWS($A$10:$A52)+2,FALSE)","v":2020},{"$f":"HLOOKUP(AS$7,$I$66:$DJ$120,ROWS($A$10:$A52)+2,FALSE)","v":160},{"$f":"HLOOKUP(AT$7,$I$66:$DJ$120,ROWS($A$10:$A52)+2,FALSE)","v":296},{"$f":"HLOOKUP(AU$7,$I$66:$DJ$120,ROWS($A$10:$A52)+2,FALSE)","v":122},{"$f":"HLOOKUP(AV$7,$I$66:$DJ$120,ROWS($A$10:$A52)+2,FALSE)","v":209},{"$f":"HLOOKUP(AW$7,$I$66:$DJ$120,ROWS($A$10:$A52)+2,FALSE)","v":0},{"$f":"HLOOKUP(AX$7,$I$66:$DJ$120,ROWS($A$10:$A52)+2,FALSE)","v":0},{"$f":"HLOOKUP(AY$7,$I$66:$DJ$120,ROWS($A$10:$A52)+2,FALSE)","v":"N/A"},{"$f":"HLOOKUP(AZ$7,$I$66:$DJ$120,ROWS($A$10:$A52)+2,FALSE)","v":0},{"$f":"HLOOKUP(BA$7,$I$66:$DJ$120,ROWS($A$10:$A52)+2,FALSE)","v":1334},{"$f":"HLOOKUP(BB$7,$I$66:$DJ$120,ROWS($A$10:$A52)+2,FALSE)","v":0},{"$f":"HLOOKUP(BC$7,$I$66:$DJ$120,ROWS($A$10:$A52)+2,FALSE)","v":0},{"$f":"HLOOKUP(BD$7,$I$66:$DJ$120,ROWS($A$10:$A52)+2,FALSE)","v":224},{"$f":"HLOOKUP(BE$7,$I$66:$DJ$120,ROWS($A$10:$A52)+2,FALSE)","v":1564},{"$f":"HLOOKUP(BF$7,$I$66:$DJ$120,ROWS($A$10:$A52)+2,FALSE)","v":0},{"$f":"HLOOKUP(BG$7,$I$66:$DJ$120,ROWS($A$10:$A52)+2,FALSE)","v":736},{"$f":"HLOOKUP(BH$7,$I$66:$DJ$120,ROWS($A$10:$A52)+2,FALSE)","v":648},{"$f":"HLOOKUP(BI$7,$I$66:$DJ$120,ROWS($A$10:$A52)+2,FALSE)","v":0},{"$f":"HLOOKUP(BJ$7+0.5,$I$66:$DJ$120,ROWS($A$10:$A52)+2,FALSE)","v":3187},{"$f":"HLOOKUP(BK$7+0.5,$I$66:$DJ$120,ROWS($A$10:$A52)+2,FALSE)","v":333},{"$f":"HLOOKUP(BL$7+0.5,$I$66:$DJ$120,ROWS($A$10:$A52)+2,FALSE)","v":44},{"$f":"HLOOKUP(BM$7+0.5,$I$66:$DJ$120,ROWS($A$10:$A52)+2,FALSE)","v":533},{"$f":"HLOOKUP(BN$7+0.5,$I$66:$DJ$120,ROWS($A$10:$A52)+2,FALSE)","v":120},{"$f":"HLOOKUP(BO$7+0.5,$I$66:$DJ$120,ROWS($A$10:$A52)+2,FALSE)","v":703},{"$f":"HLOOKUP(BP$7+0.5,$I$66:$DJ$120,ROWS($A$10:$A52)+2,FALSE)","v":447},{"$f":"HLOOKUP(BQ$7+0.5,$I$66:$DJ$120,ROWS($A$10:$A52)+2,FALSE)","v":223},{"$f":"HLOOKUP(BR$7+0.5,$I$66:$DJ$120,ROWS($A$10:$A52)+2,FALSE)","v":223},{"$f":"HLOOKUP(BS$7+0.5,$I$66:$DJ$120,ROWS($A$10:$A52)+2,FALSE)","v":223},{"$f":"HLOOKUP(BT$7+0.5,$I$66:$DJ$120,ROWS($A$10:$A52)+2,FALSE)","v":242},{"$f":"HLOOKUP(BU$7+0.5,$I$66:$DJ$120,ROWS($A$10:$A52)+2,FALSE)","v":44},{"$f":"HLOOKUP(BV$7+0.5,$I$66:$DJ$120,ROWS($A$10:$A52)+2,FALSE)","v":123},{"$f":"HLOOKUP(BW$7+0.5,$I$66:$DJ$120,ROWS($A$10:$A52)+2,FALSE)","v":289},{"$f":"HLOOKUP(BX$7+0.5,$I$66:$DJ$120,ROWS($A$10:$A52)+2,FALSE)","v":134},{"$f":"HLOOKUP(BY$7+0.5,$I$66:$DJ$120,ROWS($A$10:$A52)+2,FALSE)","v":381},{"$f":"HLOOKUP(BZ$7+0.5,$I$66:$DJ$120,ROWS($A$10:$A52)+2,FALSE)","v":1429},{"$f":"HLOOKUP(CA$7+0.5,$I$66:$DJ$120,ROWS($A$10:$A52)+2,FALSE)","v":471},{"$f":"HLOOKUP(CB$7+0.5,$I$66:$DJ$120,ROWS($A$10:$A52)+2,FALSE)","v":103},{"$f":"HLOOKUP(CC$7+0.5,$I$66:$DJ$120,ROWS($A$10:$A52)+2,FALSE)","v":196},{"$f":"HLOOKUP(CD$7+0.5,$I$66:$DJ$120,ROWS($A$10:$A52)+2,FALSE)","v":223},{"$f":"HLOOKUP(CE$7+0.5,$I$66:$DJ$120,ROWS($A$10:$A52)+2,FALSE)","v":223},{"$f":"HLOOKUP(CF$7+0.5,$I$66:$DJ$120,ROWS($A$10:$A52)+2,FALSE)","v":471},{"$f":"HLOOKUP(CG$7+0.5,$I$66:$DJ$120,ROWS($A$10:$A52)+2,FALSE)","v":127},{"$f":"HLOOKUP(CH$7+0.5,$I$66:$DJ$120,ROWS($A$10:$A52)+2,FALSE)","v":1629},{"$f":"HLOOKUP(CI$7+0.5,$I$66:$DJ$120,ROWS($A$10:$A52)+2,FALSE)","v":213},{"$f":"HLOOKUP(CJ$7+0.5,$I$66:$DJ$120,ROWS($A$10:$A52)+2,FALSE)","v":210},{"$f":"HLOOKUP(CK$7+0.5,$I$66:$DJ$120,ROWS($A$10:$A52)+2,FALSE)","v":364},{"$f":"HLOOKUP(CL$7+0.5,$I$66:$DJ$120,ROWS($A$10:$A52)+2,FALSE)","v":1028},{"$f":"HLOOKUP(CM$7+0.5,$I$66:$DJ$120,ROWS($A$10:$A52)+2,FALSE)","v":63},{"$f":"HLOOKUP(CN$7+0.5,$I$66:$DJ$120,ROWS($A$10:$A52)+2,FALSE)","v":223},{"$f":"HLOOKUP(CO$7+0.5,$I$66:$DJ$120,ROWS($A$10:$A52)+2,FALSE)","v":223},{"$f":"HLOOKUP(CP$7+0.5,$I$66:$DJ$120,ROWS($A$10:$A52)+2,FALSE)","v":67},{"$f":"HLOOKUP(CQ$7+0.5,$I$66:$DJ$120,ROWS($A$10:$A52)+2,FALSE)","v":469},{"$f":"HLOOKUP(CR$7+0.5,$I$66:$DJ$120,ROWS($A$10:$A52)+2,FALSE)","v":231},{"$f":"HLOOKUP(CS$7+0.5,$I$66:$DJ$120,ROWS($A$10:$A52)+2,FALSE)","v":1029},{"$f":"HLOOKUP(CT$7+0.5,$I$66:$DJ$120,ROWS($A$10:$A52)+2,FALSE)","v":174},{"$f":"HLOOKUP(CU$7+0.5,$I$66:$DJ$120,ROWS($A$10:$A52)+2,FALSE)","v":289},{"$f":"HLOOKUP(CV$7+0.5,$I$66:$DJ$120,ROWS($A$10:$A52)+2,FALSE)","v":136},{"$f":"HLOOKUP(CW$7+0.5,$I$66:$DJ$120,ROWS($A$10:$A52)+2,FALSE)","v":268},{"$f":"HLOOKUP(CX$7+0.5,$I$66:$DJ$120,ROWS($A$10:$A52)+2,FALSE)","v":223},{"$f":"HLOOKUP(CY$7+0.5,$I$66:$DJ$120,ROWS($A$10:$A52)+2,FALSE)","v":223},{"$f":"HLOOKUP(CZ$7+0.5,$I$66:$DJ$120,ROWS($A$10:$A52)+2,FALSE)","v":"N/A"},{"$f":"HLOOKUP(DA$7+0.5,$I$66:$DJ$120,ROWS($A$10:$A52)+2,FALSE)","v":223},{"$f":"HLOOKUP(DB$7+0.5,$I$66:$DJ$120,ROWS($A$10:$A52)+2,FALSE)","v":812},{"$f":"HLOOKUP(DC$7+0.5,$I$66:$DJ$120,ROWS($A$10:$A52)+2,FALSE)","v":223},{"$f":"HLOOKUP(DD$7+0.5,$I$66:$DJ$120,ROWS($A$10:$A52)+2,FALSE)","v":223},{"$f":"HLOOKUP(DE$7+0.5,$I$66:$DJ$120,ROWS($A$10:$A52)+2,FALSE)","v":217},{"$f":"HLOOKUP(DF$7+0.5,$I$66:$DJ$120,ROWS($A$10:$A52)+2,FALSE)","v":973},{"$f":"HLOOKUP(DG$7+0.5,$I$66:$DJ$120,ROWS($A$10:$A52)+2,FALSE)","v":223},{"$f":"HLOOKUP(DH$7+0.5,$I$66:$DJ$120,ROWS($A$10:$A52)+2,FALSE)","v":533},{"$f":"HLOOKUP(DI$7+0.5,$I$66:$DJ$120,ROWS($A$10:$A52)+2,FALSE)","v":549},{"$f":"HLOOKUP(DJ$7+0.5,$I$66:$DJ$120,ROWS($A$10:$A52)+2,FALSE)","v":223}]
[null,"Tennessee",6282706,4009,5299496,24505,801355,21988,{"$f":"HLOOKUP(I$7,$I$66:$DJ$120,ROWS($A$10:$A53)+2,FALSE)","v":159778},{"$f":"HLOOKUP(J$7,$I$66:$DJ$120,ROWS($A$10:$A53)+2,FALSE)","v":8897},{"$f":"HLOOKUP(K$7,$I$66:$DJ$120,ROWS($A$10:$A53)+2,FALSE)","v":343},{"$f":"HLOOKUP(L$7,$I$66:$DJ$120,ROWS($A$10:$A53)+2,FALSE)","v":2291},{"$f":"HLOOKUP(M$7,$I$66:$DJ$120,ROWS($A$10:$A53)+2,FALSE)","v":4736},{"$f":"HLOOKUP(N$7,$I$66:$DJ$120,ROWS($A$10:$A53)+2,FALSE)","v":8019},{"$f":"HLOOKUP(O$7,$I$66:$DJ$120,ROWS($A$10:$A53)+2,FALSE)","v":1858},{"$f":"HLOOKUP(P$7,$I$66:$DJ$120,ROWS($A$10:$A53)+2,FALSE)","v":765},{"$f":"HLOOKUP(Q$7,$I$66:$DJ$120,ROWS($A$10:$A53)+2,FALSE)","v":248},{"$f":"HLOOKUP(R$7,$I$66:$DJ$120,ROWS($A$10:$A53)+2,FALSE)","v":394},{"$f":"HLOOKUP(S$7,$I$66:$DJ$120,ROWS($A$10:$A53)+2,FALSE)","v":14168},{"$f":"HLOOKUP(T$7,$I$66:$DJ$120,ROWS($A$10:$A53)+2,FALSE)","v":11065},{"$f":"HLOOKUP(U$7,$I$66:$DJ$120,ROWS($A$10:$A53)+2,FALSE)","v":243},{"$f":"HLOOKUP(V$7,$I$66:$DJ$120,ROWS($A$10:$A53)+2,FALSE)","v":333},{"$f":"HLOOKUP(W$7,$I$66:$DJ$120,ROWS($A$10:$A53)+2,FALSE)","v":3162},{"$f":"HLOOKUP(X$7,$I$66:$DJ$120,ROWS($A$10:$A53)+2,FALSE)","v":4764},{"$f":"HLOOKUP(Y$7,$I$66:$DJ$120,ROWS($A$10:$A53)+2,FALSE)","v":1052},{"$f":"HLOOKUP(Z$7,$I$66:$DJ$120,ROWS($A$10:$A53)+2,FALSE)","v":2506},{"$f":"HLOOKUP(AA$7,$I$66:$DJ$120,ROWS($A$10:$A53)+2,FALSE)","v":11188},{"$f":"HLOOKUP(AB$7,$I$66:$DJ$120,ROWS($A$10:$A53)+2,FALSE)","v":2602},{"$f":"HLOOKUP(AC$7,$I$66:$DJ$120,ROWS($A$10:$A53)+2,FALSE)","v":84},{"$f":"HLOOKUP(AD$7,$I$66:$DJ$120,ROWS($A$10:$A53)+2,FALSE)","v":1450},{"$f":"HLOOKUP(AE$7,$I$66:$DJ$120,ROWS($A$10:$A53)+2,FALSE)","v":1733},{"$f":"HLOOKUP(AF$7,$I$66:$DJ$120,ROWS($A$10:$A53)+2,FALSE)","v":5529},{"$f":"HLOOKUP(AG$7,$I$66:$DJ$120,ROWS($A$10:$A53)+2,FALSE)","v":1504},{"$f":"HLOOKUP(AH$7,$I$66:$DJ$120,ROWS($A$10:$A53)+2,FALSE)","v":9029},{"$f":"HLOOKUP(AI$7,$I$66:$DJ$120,ROWS($A$10:$A53)+2,FALSE)","v":4342},{"$f":"HLOOKUP(AJ$7,$I$66:$DJ$120,ROWS($A$10:$A53)+2,FALSE)","v":290},{"$f":"HLOOKUP(AK$7,$I$66:$DJ$120,ROWS($A$10:$A53)+2,FALSE)","v":187},{"$f":"HLOOKUP(AL$7,$I$66:$DJ$120,ROWS($A$10:$A53)+2,FALSE)","v":2433},{"$f":"HLOOKUP(AM$7,$I$66:$DJ$120,ROWS($A$10:$A53)+2,FALSE)","v":197},{"$f":"HLOOKUP(AN$7,$I$66:$DJ$120,ROWS($A$10:$A53)+2,FALSE)","v":2230},{"$f":"HLOOKUP(AO$7,$I$66:$DJ$120,ROWS($A$10:$A53)+2,FALSE)","v":621},{"$f":"HLOOKUP(AP$7,$I$66:$DJ$120,ROWS($A$10:$A53)+2,FALSE)","v":4800},{"$f":"HLOOKUP(AQ$7,$I$66:$DJ$120,ROWS($A$10:$A53)+2,FALSE)","v":7102},{"$f":"HLOOKUP(AR$7,$I$66:$DJ$120,ROWS($A$10:$A53)+2,FALSE)","v":0},{"$f":"HLOOKUP(AS$7,$I$66:$DJ$120,ROWS($A$10:$A53)+2,FALSE)","v":4462},{"$f":"HLOOKUP(AT$7,$I$66:$DJ$120,ROWS($A$10:$A53)+2,FALSE)","v":669},{"$f":"HLOOKUP(AU$7,$I$66:$DJ$120,ROWS($A$10:$A53)+2,FALSE)","v":430},{"$f":"HLOOKUP(AV$7,$I$66:$DJ$120,ROWS($A$10:$A53)+2,FALSE)","v":2562},{"$f":"HLOOKUP(AW$7,$I$66:$DJ$120,ROWS($A$10:$A53)+2,FALSE)","v":805},{"$f":"HLOOKUP(AX$7,$I$66:$DJ$120,ROWS($A$10:$A53)+2,FALSE)","v":4765},{"$f":"HLOOKUP(AY$7,$I$66:$DJ$120,ROWS($A$10:$A53)+2,FALSE)","v":63},{"$f":"HLOOKUP(AZ$7,$I$66:$DJ$120,ROWS($A$10:$A53)+2,FALSE)","v":"N/A"},{"$f":"HLOOKUP(BA$7,$I$66:$DJ$120,ROWS($A$10:$A53)+2,FALSE)","v":8701},{"$f":"HLOOKUP(BB$7,$I$66:$DJ$120,ROWS($A$10:$A53)+2,FALSE)","v":2062},{"$f":"HLOOKUP(BC$7,$I$66:$DJ$120,ROWS($A$10:$A53)+2,FALSE)","v":0},{"$f":"HLOOKUP(BD$7,$I$66:$DJ$120,ROWS($A$10:$A53)+2,FALSE)","v":8650},{"$f":"HLOOKUP(BE$7,$I$66:$DJ$120,ROWS($A$10:$A53)+2,FALSE)","v":1412},{"$f":"HLOOKUP(BF$7,$I$66:$DJ$120,ROWS($A$10:$A53)+2,FALSE)","v":2201},{"$f":"HLOOKUP(BG$7,$I$66:$DJ$120,ROWS($A$10:$A53)+2,FALSE)","v":2831},{"$f":"HLOOKUP(BH$7,$I$66:$DJ$120,ROWS($A$10:$A53)+2,FALSE)","v":0},{"$f":"HLOOKUP(BI$7,$I$66:$DJ$120,ROWS($A$10:$A53)+2,FALSE)","v":0},{"$f":"HLOOKUP(BJ$7+0.5,$I$66:$DJ$120,ROWS($A$10:$A53)+2,FALSE)","v":11597},{"$f":"HLOOKUP(BK$7+0.5,$I$66:$DJ$120,ROWS($A$10:$A53)+2,FALSE)","v":2131},{"$f":"HLOOKUP(BL$7+0.5,$I$66:$DJ$120,ROWS($A$10:$A53)+2,FALSE)","v":300},{"$f":"HLOOKUP(BM$7+0.5,$I$66:$DJ$120,ROWS($A$10:$A53)+2,FALSE)","v":1160},{"$f":"HLOOKUP(BN$7+0.5,$I$66:$DJ$120,ROWS($A$10:$A53)+2,FALSE)","v":1836},{"$f":"HLOOKUP(BO$7+0.5,$I$66:$DJ$120,ROWS($A$10:$A53)+2,FALSE)","v":2431},{"$f":"HLOOKUP(BP$7+0.5,$I$66:$DJ$120,ROWS($A$10:$A53)+2,FALSE)","v":1182},{"$f":"HLOOKUP(BQ$7+0.5,$I$66:$DJ$120,ROWS($A$10:$A53)+2,FALSE)","v":713},{"$f":"HLOOKUP(BR$7+0.5,$I$66:$DJ$120,ROWS($A$10:$A53)+2,FALSE)","v":254},{"$f":"HLOOKUP(BS$7+0.5,$I$66:$DJ$120,ROWS($A$10:$A53)+2,FALSE)","v":484},{"$f":"HLOOKUP(BT$7+0.5,$I$66:$DJ$120,ROWS($A$10:$A53)+2,FALSE)","v":3004},{"$f":"HLOOKUP(BU$7+0.5,$I$66:$DJ$120,ROWS($A$10:$A53)+2,FALSE)","v":2592},{"$f":"HLOOKUP(BV$7+0.5,$I$66:$DJ$120,ROWS($A$10:$A53)+2,FALSE)","v":402},{"$f":"HLOOKUP(BW$7+0.5,$I$66:$DJ$120,ROWS($A$10:$A53)+2,FALSE)","v":374},{"$f":"HLOOKUP(BX$7+0.5,$I$66:$DJ$120,ROWS($A$10:$A53)+2,FALSE)","v":1151},{"$f":"HLOOKUP(BY$7+0.5,$I$66:$DJ$120,ROWS($A$10:$A53)+2,FALSE)","v":1593},{"$f":"HLOOKUP(BZ$7+0.5,$I$66:$DJ$120,ROWS($A$10:$A53)+2,FALSE)","v":864},{"$f":"HLOOKUP(CA$7+0.5,$I$66:$DJ$120,ROWS($A$10:$A53)+2,FALSE)","v":2041},{"$f":"HLOOKUP(CB$7+0.5,$I$66:$DJ$120,ROWS($A$10:$A53)+2,FALSE)","v":3378},{"$f":"HLOOKUP(CC$7+0.5,$I$66:$DJ$120,ROWS($A$10:$A53)+2,FALSE)","v":1490},{"$f":"HLOOKUP(CD$7+0.5,$I$66:$DJ$120,ROWS($A$10:$A53)+2,FALSE)","v":138},{"$f":"HLOOKUP(CE$7+0.5,$I$66:$DJ$120,ROWS($A$10:$A53)+2,FALSE)","v":701},{"$f":"HLOOKUP(CF$7+0.5,$I$66:$DJ$120,ROWS($A$10:$A53)+2,FALSE)","v":904},{"$f":"HLOOKUP(CG$7+0.5,$I$66:$DJ$120,ROWS($A$10:$A53)+2,FALSE)","v":1806},{"$f":"HLOOKUP(CH$7+0.5,$I$66:$DJ$120,ROWS($A$10:$A53)+2,FALSE)","v":1160},{"$f":"HLOOKUP(CI$7+0.5,$I$66:$DJ$120,ROWS($A$10:$A53)+2,FALSE)","v":2461},{"$f":"HLOOKUP(CJ$7+0.5,$I$66:$DJ$120,ROWS($A$10:$A53)+2,FALSE)","v":1588},{"$f":"HLOOKUP(CK$7+0.5,$I$66:$DJ$120,ROWS($A$10:$A53)+2,FALSE)","v":243},{"$f":"HLOOKUP(CL$7+0.5,$I$66:$DJ$120,ROWS($A$10:$A53)+2,FALSE)","v":177},{"$f":"HLOOKUP(CM$7+0.5,$I$66:$DJ$120,ROWS($A$10:$A53)+2,FALSE)","v":1517},{"$f":"HLOOKUP(CN$7+0.5,$I$66:$DJ$120,ROWS($A$10:$A53)+2,FALSE)","v":238},{"$f":"HLOOKUP(CO$7+0.5,$I$66:$DJ$120,ROWS($A$10:$A53)+2,FALSE)","v":1219},{"$f":"HLOOKUP(CP$7+0.5,$I$66:$DJ$120,ROWS($A$10:$A53)+2,FALSE)","v":543},{"$f":"HLOOKUP(CQ$7+0.5,$I$66:$DJ$120,ROWS($A$10:$A53)+2,FALSE)","v":1691},{"$f":"HLOOKUP(CR$7+0.5,$I$66:$DJ$120,ROWS($A$10:$A53)+2,FALSE)","v":1676},{"$f":"HLOOKUP(CS$7+0.5,$I$66:$DJ$120,ROWS($A$10:$A53)+2,FALSE)","v":287},{"$f":"HLOOKUP(CT$7+0.5,$I$66:$DJ$120,ROWS($A$10:$A53)+2,FALSE)","v":2091},{"$f":"HLOOKUP(CU$7+0.5,$I$66:$DJ$120,ROWS($A$10:$A53)+2,FALSE)","v":482},{"$f":"HLOOKUP(CV$7+0.5,$I$66:$DJ$120,ROWS($A$10:$A53)+2,FALSE)","v":497},{"$f":"HLOOKUP(CW$7+0.5,$I$66:$DJ$120,ROWS($A$10:$A53)+2,FALSE)","v":1256},{"$f":"HLOOKUP(CX$7+0.5,$I$66:$DJ$120,ROWS($A$10:$A53)+2,FALSE)","v":913},{"$f":"HLOOKUP(CY$7+0.5,$I$66:$DJ$120,ROWS($A$10:$A53)+2,FALSE)","v":2102},{"$f":"HLOOKUP(CZ$7+0.5,$I$66:$DJ$120,ROWS($A$10:$A53)+2,FALSE)","v":112},{"$f":"HLOOKUP(DA$7+0.5,$I$66:$DJ$120,ROWS($A$10:$A53)+2,FALSE)","v":"N/A"},{"$f":"HLOOKUP(DB$7+0.5,$I$66:$DJ$120,ROWS($A$10:$A53)+2,FALSE)","v":2089},{"$f":"HLOOKUP(DC$7+0.5,$I$66:$DJ$120,ROWS($A$10:$A53)+2,FALSE)","v":1241},{"$f":"HLOOKUP(DD$7+0.5,$I$66:$DJ$120,ROWS($A$10:$A53)+2,FALSE)","v":287},{"$f":"HLOOKUP(DE$7+0.5,$I$66:$DJ$120,ROWS($A$10:$A53)+2,FALSE)","v":2526},{"$f":"HLOOKUP(DF$7+0.5,$I$66:$DJ$120,ROWS($A$10:$A53)+2,FALSE)","v":911},{"$f":"HLOOKUP(DG$7+0.5,$I$66:$DJ$120,ROWS($A$10:$A53)+2,FALSE)","v":1455},{"$f":"HLOOKUP(DH$7+0.5,$I$66:$DJ$120,ROWS($A$10:$A53)+2,FALSE)","v":1402},{"$f":"HLOOKUP(DI$7+0.5,$I$66:$DJ$120,ROWS($A$10:$A53)+2,FALSE)","v":287},{"$f":"HLOOKUP(DJ$7+0.5,$I$66:$DJ$120,ROWS($A$10:$A53)+2,FALSE)","v":287}]
[null,"Texas",24899075,8102,20500156,52416,3740344,51566,{"$f":"HLOOKUP(I$7,$I$66:$DJ$120,ROWS($A$10:$A54)+2,FALSE)","v":486558},{"$f":"HLOOKUP(J$7,$I$66:$DJ$120,ROWS($A$10:$A54)+2,FALSE)","v":8636},{"$f":"HLOOKUP(K$7,$I$66:$DJ$120,ROWS($A$10:$A54)+2,FALSE)","v":11613},{"$f":"HLOOKUP(L$7,$I$66:$DJ$120,ROWS($A$10:$A54)+2,FALSE)","v":16521},{"$f":"HLOOKUP(M$7,$I$66:$DJ$120,ROWS($A$10:$A54)+2,FALSE)","v":15251},{"$f":"HLOOKUP(N$7,$I$66:$DJ$120,ROWS($A$10:$A54)+2,FALSE)","v":68959},{"$f":"HLOOKUP(O$7,$I$66:$DJ$120,ROWS($A$10:$A54)+2,FALSE)","v":16361},{"$f":"HLOOKUP(P$7,$I$66:$DJ$120,ROWS($A$10:$A54)+2,FALSE)","v":924},{"$f":"HLOOKUP(Q$7,$I$66:$DJ$120,ROWS($A$10:$A54)+2,FALSE)","v":704},{"$f":"HLOOKUP(R$7,$I$66:$DJ$120,ROWS($A$10:$A54)+2,FALSE)","v":460},{"$f":"HLOOKUP(S$7,$I$66:$DJ$120,ROWS($A$10:$A54)+2,FALSE)","v":26668},{"$f":"HLOOKUP(T$7,$I$66:$DJ$120,ROWS($A$10:$A54)+2,FALSE)","v":16671},{"$f":"HLOOKUP(U$7,$I$66:$DJ$120,ROWS($A$10:$A54)+2,FALSE)","v":3718},{"$f":"HLOOKUP(V$7,$I$66:$DJ$120,ROWS($A$10:$A54)+2,FALSE)","v":2033},{"$f":"HLOOKUP(W$7,$I$66:$DJ$120,ROWS($A$10:$A54)+2,FALSE)","v":20169},{"$f":"HLOOKUP(X$7,$I$66:$DJ$120,ROWS($A$10:$A54)+2,FALSE)","v":6985},{"$f":"HLOOKUP(Y$7,$I$66:$DJ$120,ROWS($A$10:$A54)+2,FALSE)","v":3946},{"$f":"HLOOKUP(Z$7,$I$66:$DJ$120,ROWS($A$10:$A54)+2,FALSE)","v":11598},{"$f":"HLOOKUP(AA$7,$I$66:$DJ$120,ROWS($A$10:$A54)+2,FALSE)","v":5153},{"$f":"HLOOKUP(AB$7,$I$66:$DJ$120,ROWS($A$10:$A54)+2,FALSE)","v":31149},{"$f":"HLOOKUP(AC$7,$I$66:$DJ$120,ROWS($A$10:$A54)+2,FALSE)","v":1318},{"$f":"HLOOKUP(AD$7,$I$66:$DJ$120,ROWS($A$10:$A54)+2,FALSE)","v":4724},{"$f":"HLOOKUP(AE$7,$I$66:$DJ$120,ROWS($A$10:$A54)+2,FALSE)","v":7139},{"$f":"HLOOKUP(AF$7,$I$66:$DJ$120,ROWS($A$10:$A54)+2,FALSE)","v":13775},{"$f":"HLOOKUP(AG$7,$I$66:$DJ$120,ROWS($A$10:$A54)+2,FALSE)","v":6088},{"$f":"HLOOKUP(AH$7,$I$66:$DJ$120,ROWS($A$10:$A54)+2,FALSE)","v":7773},{"$f":"HLOOKUP(AI$7,$I$66:$DJ$120,ROWS($A$10:$A54)+2,FALSE)","v":12061},{"$f":"HLOOKUP(AJ$7,$I$66:$DJ$120,ROWS($A$10:$A54)+2,FALSE)","v":1027},{"$f":"HLOOKUP(AK$7,$I$66:$DJ$120,ROWS($A$10:$A54)+2,FALSE)","v":4893},{"$f":"HLOOKUP(AL$7,$I$66:$DJ$120,ROWS($A$10:$A54)+2,FALSE)","v":8324},{"$f":"HLOOKUP(AM$7,$I$66:$DJ$120,ROWS($A$10:$A54)+2,FALSE)","v":1067},{"$f":"HLOOKUP(AN$7,$I$66:$DJ$120,ROWS($A$10:$A54)+2,FALSE)","v":7058},{"$f":"HLOOKUP(AO$7,$I$66:$DJ$120,ROWS($A$10:$A54)+2,FALSE)","v":11752},{"$f":"HLOOKUP(AP$7,$I$66:$DJ$120,ROWS($A$10:$A54)+2,FALSE)","v":16624},{"$f":"HLOOKUP(AQ$7,$I$66:$DJ$120,ROWS($A$10:$A54)+2,FALSE)","v":12183},{"$f":"HLOOKUP(AR$7,$I$66:$DJ$120,ROWS($A$10:$A54)+2,FALSE)","v":2452},{"$f":"HLOOKUP(AS$7,$I$66:$DJ$120,ROWS($A$10:$A54)+2,FALSE)","v":8317},{"$f":"HLOOKUP(AT$7,$I$66:$DJ$120,ROWS($A$10:$A54)+2,FALSE)","v":22969},{"$f":"HLOOKUP(AU$7,$I$66:$DJ$120,ROWS($A$10:$A54)+2,FALSE)","v":4373},{"$f":"HLOOKUP(AV$7,$I$66:$DJ$120,ROWS($A$10:$A54)+2,FALSE)","v":7161},{"$f":"HLOOKUP(AW$7,$I$66:$DJ$120,ROWS($A$10:$A54)+2,FALSE)","v":975},{"$f":"HLOOKUP(AX$7,$I$66:$DJ$120,ROWS($A$10:$A54)+2,FALSE)","v":5249},{"$f":"HLOOKUP(AY$7,$I$66:$DJ$120,ROWS($A$10:$A54)+2,FALSE)","v":1936},{"$f":"HLOOKUP(AZ$7,$I$66:$DJ$120,ROWS($A$10:$A54)+2,FALSE)","v":13044},{"$f":"HLOOKUP(BA$7,$I$66:$DJ$120,ROWS($A$10:$A54)+2,FALSE)","v":"N/A"},{"$f":"HLOOKUP(BB$7,$I$66:$DJ$120,ROWS($A$10:$A54)+2,FALSE)","v":4123},{"$f":"HLOOKUP(BC$7,$I$66:$DJ$120,ROWS($A$10:$A54)+2,FALSE)","v":52},{"$f":"HLOOKUP(BD$7,$I$66:$DJ$120,ROWS($A$10:$A54)+2,FALSE)","v":13713},{"$f":"HLOOKUP(BE$7,$I$66:$DJ$120,ROWS($A$10:$A54)+2,FALSE)","v":8847},{"$f":"HLOOKUP(BF$7,$I$66:$DJ$120,ROWS($A$10:$A54)+2,FALSE)","v":2221},{"$f":"HLOOKUP(BG$7,$I$66:$DJ$120,ROWS($A$10:$A54)+2,FALSE)","v":5927},{"$f":"HLOOKUP(BH$7,$I$66:$DJ$120,ROWS($A$10:$A54)+2,FALSE)","v":1874},{"$f":"HLOOKUP(BI$7,$I$66:$DJ$120,ROWS($A$10:$A54)+2,FALSE)","v":4180},{"$f":"HLOOKUP(BJ$7+0.5,$I$66:$DJ$120,ROWS($A$10:$A54)+2,FALSE)","v":20955},{"$f":"HLOOKUP(BK$7+0.5,$I$66:$DJ$120,ROWS($A$10:$A54)+2,FALSE)","v":2633},{"$f":"HLOOKUP(BL$7+0.5,$I$66:$DJ$120,ROWS($A$10:$A54)+2,FALSE)","v":3256},{"$f":"HLOOKUP(BM$7+0.5,$I$66:$DJ$120,ROWS($A$10:$A54)+2,FALSE)","v":3719},{"$f":"HLOOKUP(BN$7+0.5,$I$66:$DJ$120,ROWS($A$10:$A54)+2,FALSE)","v":3182},{"$f":"HLOOKUP(BO$7+0.5,$I$66:$DJ$120,ROWS($A$10:$A54)+2,FALSE)","v":7058},{"$f":"HLOOKUP(BP$7+0.5,$I$66:$DJ$120,ROWS($A$10:$A54)+2,FALSE)","v":3311},{"$f":"HLOOKUP(BQ$7+0.5,$I$66:$DJ$120,ROWS($A$10:$A54)+2,FALSE)","v":551},{"$f":"HLOOKUP(BR$7+0.5,$I$66:$DJ$120,ROWS($A$10:$A54)+2,FALSE)","v":533},{"$f":"HLOOKUP(BS$7+0.5,$I$66:$DJ$120,ROWS($A$10:$A54)+2,FALSE)","v":400},{"$f":"HLOOKUP(BT$7+0.5,$I$66:$DJ$120,ROWS($A$10:$A54)+2,FALSE)","v":4238},{"$f":"HLOOKUP(BU$7+0.5,$I$66:$DJ$120,ROWS($A$10:$A54)+2,FALSE)","v":3792},{"$f":"HLOOKUP(BV$7+0.5,$I$66:$DJ$120,ROWS($A$10:$A54)+2,FALSE)","v":1263},{"$f":"HLOOKUP(BW$7+0.5,$I$66:$DJ$120,ROWS($A$10:$A54)+2,FALSE)","v":1171},{"$f":"HLOOKUP(BX$7+0.5,$I$66:$DJ$120,ROWS($A$10:$A54)+2,FALSE)","v":3942},{"$f":"HLOOKUP(BY$7+0.5,$I$66:$DJ$120,ROWS($A$10:$A54)+2,FALSE)","v":2350},{"$f":"HLOOKUP(BZ$7+0.5,$I$66:$DJ$120,ROWS($A$10:$A54)+2,FALSE)","v":1452},{"$f":"HLOOKUP(CA$7+0.5,$I$66:$DJ$120,ROWS($A$10:$A54)+2,FALSE)","v":2743},{"$f":"HLOOKUP(CB$7+0.5,$I$66:$DJ$120,ROWS($A$10:$A54)+2,FALSE)","v":1839},{"$f":"HLOOKUP(CC$7+0.5,$I$66:$DJ$120,ROWS($A$10:$A54)+2,FALSE)","v":5628},{"$f":"HLOOKUP(CD$7+0.5,$I$66:$DJ$120,ROWS($A$10:$A54)+2,FALSE)","v":889},{"$f":"HLOOKUP(CE$7+0.5,$I$66:$DJ$120,ROWS($A$10:$A54)+2,FALSE)","v":1564},{"$f":"HLOOKUP(CF$7+0.5,$I$66:$DJ$120,ROWS($A$10:$A54)+2,FALSE)","v":2275},{"$f":"HLOOKUP(CG$7+0.5,$I$66:$DJ$120,ROWS($A$10:$A54)+2,FALSE)","v":3091},{"$f":"HLOOKUP(CH$7+0.5,$I$66:$DJ$120,ROWS($A$10:$A54)+2,FALSE)","v":2182},{"$f":"HLOOKUP(CI$7+0.5,$I$66:$DJ$120,ROWS($A$10:$A54)+2,FALSE)","v":2477},{"$f":"HLOOKUP(CJ$7+0.5,$I$66:$DJ$120,ROWS($A$10:$A54)+2,FALSE)","v":2517},{"$f":"HLOOKUP(CK$7+0.5,$I$66:$DJ$120,ROWS($A$10:$A54)+2,FALSE)","v":614},{"$f":"HLOOKUP(CL$7+0.5,$I$66:$DJ$120,ROWS($A$10:$A54)+2,FALSE)","v":2391},{"$f":"HLOOKUP(CM$7+0.5,$I$66:$DJ$120,ROWS($A$10:$A54)+2,FALSE)","v":2790},{"$f":"HLOOKUP(CN$7+0.5,$I$66:$DJ$120,ROWS($A$10:$A54)+2,FALSE)","v":637},{"$f":"HLOOKUP(CO$7+0.5,$I$66:$DJ$120,ROWS($A$10:$A54)+2,FALSE)","v":2884},{"$f":"HLOOKUP(CP$7+0.5,$I$66:$DJ$120,ROWS($A$10:$A54)+2,FALSE)","v":2780},{"$f":"HLOOKUP(CQ$7+0.5,$I$66:$DJ$120,ROWS($A$10:$A54)+2,FALSE)","v":4092},{"$f":"HLOOKUP(CR$7+0.5,$I$66:$DJ$120,ROWS($A$10:$A54)+2,FALSE)","v":3708},{"$f":"HLOOKUP(CS$7+0.5,$I$66:$DJ$120,ROWS($A$10:$A54)+2,FALSE)","v":1624},{"$f":"HLOOKUP(CT$7+0.5,$I$66:$DJ$120,ROWS($A$10:$A54)+2,FALSE)","v":1971},{"$f":"HLOOKUP(CU$7+0.5,$I$66:$DJ$120,ROWS($A$10:$A54)+2,FALSE)","v":4302},{"$f":"HLOOKUP(CV$7+0.5,$I$66:$DJ$120,ROWS($A$10:$A54)+2,FALSE)","v":1618},{"$f":"HLOOKUP(CW$7+0.5,$I$66:$DJ$120,ROWS($A$10:$A54)+2,FALSE)","v":2092},{"$f":"HLOOKUP(CX$7+0.5,$I$66:$DJ$120,ROWS($A$10:$A54)+2,FALSE)","v":613},{"$f":"HLOOKUP(CY$7+0.5,$I$66:$DJ$120,ROWS($A$10:$A54)+2,FALSE)","v":1965},{"$f":"HLOOKUP(CZ$7+0.5,$I$66:$DJ$120,ROWS($A$10:$A54)+2,FALSE)","v":836},{"$f":"HLOOKUP(DA$7+0.5,$I$66:$DJ$120,ROWS($A$10:$A54)+2,FALSE)","v":3538},{"$f":"HLOOKUP(DB$7+0.5,$I$66:$DJ$120,ROWS($A$10:$A54)+2,FALSE)","v":"N/A"},{"$f":"HLOOKUP(DC$7+0.5,$I$66:$DJ$120,ROWS($A$10:$A54)+2,FALSE)","v":1574},{"$f":"HLOOKUP(DD$7+0.5,$I$66:$DJ$120,ROWS($A$10:$A54)+2,FALSE)","v":88},{"$f":"HLOOKUP(DE$7+0.5,$I$66:$DJ$120,ROWS($A$10:$A54)+2,FALSE)","v":2694},{"$f":"HLOOKUP(DF$7+0.5,$I$66:$DJ$120,ROWS($A$10:$A54)+2,FALSE)","v":2397},{"$f":"HLOOKUP(DG$7+0.5,$I$66:$DJ$120,ROWS($A$10:$A54)+2,FALSE)","v":1231},{"$f":"HLOOKUP(DH$7+0.5,$I$66:$DJ$120,ROWS($A$10:$A54)+2,FALSE)","v":1723},{"$f":"HLOOKUP(DI$7+0.5,$I$66:$DJ$120,ROWS($A$10:$A54)+2,FALSE)","v":1022},{"$f":"HLOOKUP(DJ$7+0.5,$I$66:$DJ$120,ROWS($A$10:$A54)+2,FALSE)","v":2074}]
[null,"Utah",2724064,2775,2240636,18397,388410,17535,{"$f":"HLOOKUP(I$7,$I$66:$DJ$120,ROWS($A$10:$A55)+2,FALSE)","v":77780},{"$f":"HLOOKUP(J$7,$I$66:$DJ$120,ROWS($A$10:$A55)+2,FALSE)","v":93},{"$f":"HLOOKUP(K$7,$I$66:$DJ$120,ROWS($A$10:$A55)+2,FALSE)","v":1798},{"$f":"HLOOKUP(L$7,$I$66:$DJ$120,ROWS($A$10:$A55)+2,FALSE)","v":8147},{"$f":"HLOOKUP(M$7,$I$66:$DJ$120,ROWS($A$10:$A55)+2,FALSE)","v":316},{"$f":"HLOOKUP(N$7,$I$66:$DJ$120,ROWS($A$10:$A55)+2,FALSE)","v":12187},{"$f":"HLOOKUP(O$7,$I$66:$DJ$120,ROWS($A$10:$A55)+2,FALSE)","v":3987},{"$f":"HLOOKUP(P$7,$I$66:$DJ$120,ROWS($A$10:$A55)+2,FALSE)","v":119},{"$f":"HLOOKUP(Q$7,$I$66:$DJ$120,ROWS($A$10:$A55)+2,FALSE)","v":0},{"$f":"HLOOKUP(R$7,$I$66:$DJ$120,ROWS($A$10:$A55)+2,FALSE)","v":138},{"$f":"HLOOKUP(S$7,$I$66:$DJ$120,ROWS($A$10:$A55)+2,FALSE)","v":2097},{"$f":"HLOOKUP(T$7,$I$66:$DJ$120,ROWS($A$10:$A55)+2,FALSE)","v":966},{"$f":"HLOOKUP(U$7,$I$66:$DJ$120,ROWS($A$10:$A55)+2,FALSE)","v":932},{"$f":"HLOOKUP(V$7,$I$66:$DJ$120,ROWS($A$10:$A55)+2,FALSE)","v":7692},{"$f":"HLOOKUP(W$7,$I$66:$DJ$120,ROWS($A$10:$A55)+2,FALSE)","v":1831},{"$f":"HLOOKUP(X$7,$I$66:$DJ$120,ROWS($A$10:$A55)+2,FALSE)","v":517},{"$f":"HLOOKUP(Y$7,$I$66:$DJ$120,ROWS($A$10:$A55)+2,FALSE)","v":483},{"$f":"HLOOKUP(Z$7,$I$66:$DJ$120,ROWS($A$10:$A55)+2,FALSE)","v":299},{"$f":"HLOOKUP(AA$7,$I$66:$DJ$120,ROWS($A$10:$A55)+2,FALSE)","v":235},{"$f":"HLOOKUP(AB$7,$I$66:$DJ$120,ROWS($A$10:$A55)+2,FALSE)","v":46},{"$f":"HLOOKUP(AC$7,$I$66:$DJ$120,ROWS($A$10:$A55)+2,FALSE)","v":148},{"$f":"HLOOKUP(AD$7,$I$66:$DJ$120,ROWS($A$10:$A55)+2,FALSE)","v":426},{"$f":"HLOOKUP(AE$7,$I$66:$DJ$120,ROWS($A$10:$A55)+2,FALSE)","v":246},{"$f":"HLOOKUP(AF$7,$I$66:$DJ$120,ROWS($A$10:$A55)+2,FALSE)","v":261},{"$f":"HLOOKUP(AG$7,$I$66:$DJ$120,ROWS($A$10:$A55)+2,FALSE)","v":914},{"$f":"HLOOKUP(AH$7,$I$66:$DJ$120,ROWS($A$10:$A55)+2,FALSE)","v":127},{"$f":"HLOOKUP(AI$7,$I$66:$DJ$120,ROWS($A$10:$A55)+2,FALSE)","v":1255},{"$f":"HLOOKUP(AJ$7,$I$66:$DJ$120,ROWS($A$10:$A55)+2,FALSE)","v":1929},{"$f":"HLOOKUP(AK$7,$I$66:$DJ$120,ROWS($A$10:$A55)+2,FALSE)","v":118},{"$f":"HLOOKUP(AL$7,$I$66:$DJ$120,ROWS($A$10:$A55)+2,FALSE)","v":4549},{"$f":"HLOOKUP(AM$7,$I$66:$DJ$120,ROWS($A$10:$A55)+2,FALSE)","v":0},{"$f":"HLOOKUP(AN$7,$I$66:$DJ$120,ROWS($A$10:$A55)+2,FALSE)","v":247},{"$f":"HLOOKUP(AO$7,$I$66:$DJ$120,ROWS($A$10:$A55)+2,FALSE)","v":518},{"$f":"HLOOKUP(AP$7,$I$66:$DJ$120,ROWS($A$10:$A55)+2,FALSE)","v":1462},{"$f":"HLOOKUP(AQ$7,$I$66:$DJ$120,ROWS($A$10:$A55)+2,FALSE)","v":1167},{"$f":"HLOOKUP(AR$7,$I$66:$DJ$120,ROWS($A$10:$A55)+2,FALSE)","v":0},{"$f":"HLOOKUP(AS$7,$I$66:$DJ$120,ROWS($A$10:$A55)+2,FALSE)","v":1527},{"$f":"HLOOKUP(AT$7,$I$66:$DJ$120,ROWS($A$10:$A55)+2,FALSE)","v":886},{"$f":"HLOOKUP(AU$7,$I$66:$DJ$120,ROWS($A$10:$A55)+2,FALSE)","v":2525},{"$f":"HLOOKUP(AV$7,$I$66:$DJ$120,ROWS($A$10:$A55)+2,FALSE)","v":557},{"$f":"HLOOKUP(AW$7,$I$66:$DJ$120,ROWS($A$10:$A55)+2,FALSE)","v":0},{"$f":"HLOOKUP(AX$7,$I$66:$DJ$120,ROWS($A$10:$A55)+2,FALSE)","v":838},{"$f":"HLOOKUP(AY$7,$I$66:$DJ$120,ROWS($A$10:$A55)+2,FALSE)","v":875},{"$f":"HLOOKUP(AZ$7,$I$66:$DJ$120,ROWS($A$10:$A55)+2,FALSE)","v":459},{"$f":"HLOOKUP(BA$7,$I$66:$DJ$120,ROWS($A$10:$A55)+2,FALSE)","v":5305},{"$f":"HLOOKUP(BB$7,$I$66:$DJ$120,ROWS($A$10:$A55)+2,FALSE)","v":"N/A"},{"$f":"HLOOKUP(BC$7,$I$66:$DJ$120,ROWS($A$10:$A55)+2,FALSE)","v":297},{"$f":"HLOOKUP(BD$7,$I$66:$DJ$120,ROWS($A$10:$A55)+2,FALSE)","v":3005},{"$f":"HLOOKUP(BE$7,$I$66:$DJ$120,ROWS($A$10:$A55)+2,FALSE)","v":3792},{"$f":"HLOOKUP(BF$7,$I$66:$DJ$120,ROWS($A$10:$A55)+2,FALSE)","v":0},{"$f":"HLOOKUP(BG$7,$I$66:$DJ$120,ROWS($A$10:$A55)+2,FALSE)","v":338},{"$f":"HLOOKUP(BH$7,$I$66:$DJ$120,ROWS($A$10:$A55)+2,FALSE)","v":2126},{"$f":"HLOOKUP(BI$7,$I$66:$DJ$120,ROWS($A$10:$A55)+2,FALSE)","v":383},{"$f":"HLOOKUP(BJ$7+0.5,$I$66:$DJ$120,ROWS($A$10:$A55)+2,FALSE)","v":6769},{"$f":"HLOOKUP(BK$7+0.5,$I$66:$DJ$120,ROWS($A$10:$A55)+2,FALSE)","v":114},{"$f":"HLOOKUP(BL$7+0.5,$I$66:$DJ$120,ROWS($A$10:$A55)+2,FALSE)","v":1320},{"$f":"HLOOKUP(BM$7+0.5,$I$66:$DJ$120,ROWS($A$10:$A55)+2,FALSE)","v":2522},{"$f":"HLOOKUP(BN$7+0.5,$I$66:$DJ$120,ROWS($A$10:$A55)+2,FALSE)","v":262},{"$f":"HLOOKUP(BO$7+0.5,$I$66:$DJ$120,ROWS($A$10:$A55)+2,FALSE)","v":2104},{"$f":"HLOOKUP(BP$7+0.5,$I$66:$DJ$120,ROWS($A$10:$A55)+2,FALSE)","v":1226},{"$f":"HLOOKUP(BQ$7+0.5,$I$66:$DJ$120,ROWS($A$10:$A55)+2,FALSE)","v":148},{"$f":"HLOOKUP(BR$7+0.5,$I$66:$DJ$120,ROWS($A$10:$A55)+2,FALSE)","v":267},{"$f":"HLOOKUP(BS$7+0.5,$I$66:$DJ$120,ROWS($A$10:$A55)+2,FALSE)","v":168},{"$f":"HLOOKUP(BT$7+0.5,$I$66:$DJ$120,ROWS($A$10:$A55)+2,FALSE)","v":1007},{"$f":"HLOOKUP(BU$7+0.5,$I$66:$DJ$120,ROWS($A$10:$A55)+2,FALSE)","v":644},{"$f":"HLOOKUP(BV$7+0.5,$I$66:$DJ$120,ROWS($A$10:$A55)+2,FALSE)","v":930},{"$f":"HLOOKUP(BW$7+0.5,$I$66:$DJ$120,ROWS($A$10:$A55)+2,FALSE)","v":2177},{"$f":"HLOOKUP(BX$7+0.5,$I$66:$DJ$120,ROWS($A$10:$A55)+2,FALSE)","v":767},{"$f":"HLOOKUP(BY$7+0.5,$I$66:$DJ$120,ROWS($A$10:$A55)+2,FALSE)","v":475},{"$f":"HLOOKUP(BZ$7+0.5,$I$66:$DJ$120,ROWS($A$10:$A55)+2,FALSE)","v":348},{"$f":"HLOOKUP(CA$7+0.5,$I$66:$DJ$120,ROWS($A$10:$A55)+2,FALSE)","v":340},{"$f":"HLOOKUP(CB$7+0.5,$I$66:$DJ$120,ROWS($A$10:$A55)+2,FALSE)","v":266},{"$f":"HLOOKUP(CC$7+0.5,$I$66:$DJ$120,ROWS($A$10:$A55)+2,FALSE)","v":98},{"$f":"HLOOKUP(CD$7+0.5,$I$66:$DJ$120,ROWS($A$10:$A55)+2,FALSE)","v":237},{"$f":"HLOOKUP(CE$7+0.5,$I$66:$DJ$120,ROWS($A$10:$A55)+2,FALSE)","v":302},{"$f":"HLOOKUP(CF$7+0.5,$I$66:$DJ$120,ROWS($A$10:$A55)+2,FALSE)","v":253},{"$f":"HLOOKUP(CG$7+0.5,$I$66:$DJ$120,ROWS($A$10:$A55)+2,FALSE)","v":243},{"$f":"HLOOKUP(CH$7+0.5,$I$66:$DJ$120,ROWS($A$10:$A55)+2,FALSE)","v":545},{"$f":"HLOOKUP(CI$7+0.5,$I$66:$DJ$120,ROWS($A$10:$A55)+2,FALSE)","v":134},{"$f":"HLOOKUP(CJ$7+0.5,$I$66:$DJ$120,ROWS($A$10:$A55)+2,FALSE)","v":929},{"$f":"HLOOKUP(CK$7+0.5,$I$66:$DJ$120,ROWS($A$10:$A55)+2,FALSE)","v":1099},{"$f":"HLOOKUP(CL$7+0.5,$I$66:$DJ$120,ROWS($A$10:$A55)+2,FALSE)","v":121},{"$f":"HLOOKUP(CM$7+0.5,$I$66:$DJ$120,ROWS($A$10:$A55)+2,FALSE)","v":1568},{"$f":"HLOOKUP(CN$7+0.5,$I$66:$DJ$120,ROWS($A$10:$A55)+2,FALSE)","v":267},{"$f":"HLOOKUP(CO$7+0.5,$I$66:$DJ$120,ROWS($A$10:$A55)+2,FALSE)","v":240},{"$f":"HLOOKUP(CP$7+0.5,$I$66:$DJ$120,ROWS($A$10:$A55)+2,FALSE)","v":480},{"$f":"HLOOKUP(CQ$7+0.5,$I$66:$DJ$120,ROWS($A$10:$A55)+2,FALSE)","v":752},{"$f":"HLOOKUP(CR$7+0.5,$I$66:$DJ$120,ROWS($A$10:$A55)+2,FALSE)","v":840},{"$f":"HLOOKUP(CS$7+0.5,$I$66:$DJ$120,ROWS($A$10:$A55)+2,FALSE)","v":267},{"$f":"HLOOKUP(CT$7+0.5,$I$66:$DJ$120,ROWS($A$10:$A55)+2,FALSE)","v":1163},{"$f":"HLOOKUP(CU$7+0.5,$I$66:$DJ$120,ROWS($A$10:$A55)+2,FALSE)","v":947},{"$f":"HLOOKUP(CV$7+0.5,$I$66:$DJ$120,ROWS($A$10:$A55)+2,FALSE)","v":1094},{"$f":"HLOOKUP(CW$7+0.5,$I$66:$DJ$120,ROWS($A$10:$A55)+2,FALSE)","v":347},{"$f":"HLOOKUP(CX$7+0.5,$I$66:$DJ$120,ROWS($A$10:$A55)+2,FALSE)","v":267},{"$f":"HLOOKUP(CY$7+0.5,$I$66:$DJ$120,ROWS($A$10:$A55)+2,FALSE)","v":716},{"$f":"HLOOKUP(CZ$7+0.5,$I$66:$DJ$120,ROWS($A$10:$A55)+2,FALSE)","v":1215},{"$f":"HLOOKUP(DA$7+0.5,$I$66:$DJ$120,ROWS($A$10:$A55)+2,FALSE)","v":385},{"$f":"HLOOKUP(DB$7+0.5,$I$66:$DJ$120,ROWS($A$10:$A55)+2,FALSE)","v":1508},{"$f":"HLOOKUP(DC$7+0.5,$I$66:$DJ$120,ROWS($A$10:$A55)+2,FALSE)","v":"N/A"},{"$f":"HLOOKUP(DD$7+0.5,$I$66:$DJ$120,ROWS($A$10:$A55)+2,FALSE)","v":494},{"$f":"HLOOKUP(DE$7+0.5,$I$66:$DJ$120,ROWS($A$10:$A55)+2,FALSE)","v":2000},{"$f":"HLOOKUP(DF$7+0.5,$I$66:$DJ$120,ROWS($A$10:$A55)+2,FALSE)","v":1538},{"$f":"HLOOKUP(DG$7+0.5,$I$66:$DJ$120,ROWS($A$10:$A55)+2,FALSE)","v":267},{"$f":"HLOOKUP(DH$7+0.5,$I$66:$DJ$120,ROWS($A$10:$A55)+2,FALSE)","v":323},{"$f":"HLOOKUP(DI$7+0.5,$I$66:$DJ$120,ROWS($A$10:$A55)+2,FALSE)","v":1168},{"$f":"HLOOKUP(DJ$7+0.5,$I$66:$DJ$120,ROWS($A$10:$A55)+2,FALSE)","v":446}]
[null,"Vermont",619363,779,534975,5691,59032,4857,{"$f":"HLOOKUP(I$7,$I$66:$DJ$120,ROWS($A$10:$A56)+2,FALSE)","v":22529},{"$f":"HLOOKUP(J$7,$I$66:$DJ$120,ROWS($A$10:$A56)+2,FALSE)","v":0},{"$f":"HLOOKUP(K$7,$I$66:$DJ$120,ROWS($A$10:$A56)+2,FALSE)","v":184},{"$f":"HLOOKUP(L$7,$I$66:$DJ$120,ROWS($A$10:$A56)+2,FALSE)","v":65},{"$f":"HLOOKUP(M$7,$I$66:$DJ$120,ROWS($A$10:$A56)+2,FALSE)","v":0},{"$f":"HLOOKUP(N$7,$I$66:$DJ$120,ROWS($A$10:$A56)+2,FALSE)","v":1001},{"$f":"HLOOKUP(O$7,$I$66:$DJ$120,ROWS($A$10:$A56)+2,FALSE)","v":326},{"$f":"HLOOKUP(P$7,$I$66:$DJ$120,ROWS($A$10:$A56)+2,FALSE)","v":1287},{"$f":"HLOOKUP(Q$7,$I$66:$DJ$120,ROWS($A$10:$A56)+2,FALSE)","v":87},{"$f":"HLOOKUP(R$7,$I$66:$DJ$120,ROWS($A$10:$A56)+2,FALSE)","v":9},{"$f":"HLOOKUP(S$7,$I$66:$DJ$120,ROWS($A$10:$A56)+2,FALSE)","v":2063},{"$f":"HLOOKUP(T$7,$I$66:$DJ$120,ROWS($A$10:$A56)+2,FALSE)","v":496},{"$f":"HLOOKUP(U$7,$I$66:$DJ$120,ROWS($A$10:$A56)+2,FALSE)","v":49},{"$f":"HLOOKUP(V$7,$I$66:$DJ$120,ROWS($A$10:$A56)+2,FALSE)","v":0},{"$f":"HLOOKUP(W$7,$I$66:$DJ$120,ROWS($A$10:$A56)+2,FALSE)","v":370},{"$f":"HLOOKUP(X$7,$I$66:$DJ$120,ROWS($A$10:$A56)+2,FALSE)","v":0},{"$f":"HLOOKUP(Y$7,$I$66:$DJ$120,ROWS($A$10:$A56)+2,FALSE)","v":91},{"$f":"HLOOKUP(Z$7,$I$66:$DJ$120,ROWS($A$10:$A56)+2,FALSE)","v":0},{"$f":"HLOOKUP(AA$7,$I$66:$DJ$120,ROWS($A$10:$A56)+2,FALSE)","v":176},{"$f":"HLOOKUP(AB$7,$I$66:$DJ$120,ROWS($A$10:$A56)+2,FALSE)","v":0},{"$f":"HLOOKUP(AC$7,$I$66:$DJ$120,ROWS($A$10:$A56)+2,FALSE)","v":824},{"$f":"HLOOKUP(AD$7,$I$66:$DJ$120,ROWS($A$10:$A56)+2,FALSE)","v":300},{"$f":"HLOOKUP(AE$7,$I$66:$DJ$120,ROWS($A$10:$A56)+2,FALSE)","v":3599},{"$f":"HLOOKUP(AF$7,$I$66:$DJ$120,ROWS($A$10:$A56)+2,FALSE)","v":201},{"$f":"HLOOKUP(AG$7,$I$66:$DJ$120,ROWS($A$10:$A56)+2,FALSE)","v":85},{"$f":"HLOOKUP(AH$7,$I$66:$DJ$120,ROWS($A$10:$A56)+2,FALSE)","v":0},{"$f":"HLOOKUP(AI$7,$I$66:$DJ$120,ROWS($A$10:$A56)+2,FALSE)","v":51},{"$f":"HLOOKUP(AJ$7,$I$66:$DJ$120,ROWS($A$10:$A56)+2,FALSE)","v":236},{"$f":"HLOOKUP(AK$7,$I$66:$DJ$120,ROWS($A$10:$A56)+2,FALSE)","v":0},{"$f":"HLOOKUP(AL$7,$I$66:$DJ$120,ROWS($A$10:$A56)+2,FALSE)","v":58},{"$f":"HLOOKUP(AM$7,$I$66:$DJ$120,ROWS($A$10:$A56)+2,FALSE)","v":2760},{"$f":"HLOOKUP(AN$7,$I$66:$DJ$120,ROWS($A$10:$A56)+2,FALSE)","v":751},{"$f":"HLOOKUP(AO$7,$I$66:$DJ$120,ROWS($A$10:$A56)+2,FALSE)","v":0},{"$f":"HLOOKUP(AP$7,$I$66:$DJ$120,ROWS($A$10:$A56)+2,FALSE)","v":4056},{"$f":"HLOOKUP(AQ$7,$I$66:$DJ$120,ROWS($A$10:$A56)+2,FALSE)","v":539},{"$f":"HLOOKUP(AR$7,$I$66:$DJ$120,ROWS($A$10:$A56)+2,FALSE)","v":30},{"$f":"HLOOKUP(AS$7,$I$66:$DJ$120,ROWS($A$10:$A56)+2,FALSE)","v":50},{"$f":"HLOOKUP(AT$7,$I$66:$DJ$120,ROWS($A$10:$A56)+2,FALSE)","v":0},{"$f":"HLOOKUP(AU$7,$I$66:$DJ$120,ROWS($A$10:$A56)+2,FALSE)","v":100},{"$f":"HLOOKUP(AV$7,$I$66:$DJ$120,ROWS($A$10:$A56)+2,FALSE)","v":524},{"$f":"HLOOKUP(AW$7,$I$66:$DJ$120,ROWS($A$10:$A56)+2,FALSE)","v":227},{"$f":"HLOOKUP(AX$7,$I$66:$DJ$120,ROWS($A$10:$A56)+2,FALSE)","v":134},{"$f":"HLOOKUP(AY$7,$I$66:$DJ$120,ROWS($A$10:$A56)+2,FALSE)","v":153},{"$f":"HLOOKUP(AZ$7,$I$66:$DJ$120,ROWS($A$10:$A56)+2,FALSE)","v":125},{"$f":"HLOOKUP(BA$7,$I$66:$DJ$120,ROWS($A$10:$A56)+2,FALSE)","v":565},{"$f":"HLOOKUP(BB$7,$I$66:$DJ$120,ROWS($A$10:$A56)+2,FALSE)","v":0},{"$f":"HLOOKUP(BC$7,$I$66:$DJ$120,ROWS($A$10:$A56)+2,FALSE)","v":"N/A"},{"$f":"HLOOKUP(BD$7,$I$66:$DJ$120,ROWS($A$10:$A56)+2,FALSE)","v":400},{"$f":"HLOOKUP(BE$7,$I$66:$DJ$120,ROWS($A$10:$A56)+2,FALSE)","v":128},{"$f":"HLOOKUP(BF$7,$I$66:$DJ$120,ROWS($A$10:$A56)+2,FALSE)","v":0},{"$f":"HLOOKUP(BG$7,$I$66:$DJ$120,ROWS($A$10:$A56)+2,FALSE)","v":377},{"$f":"HLOOKUP(BH$7,$I$66:$DJ$120,ROWS($A$10:$A56)+2,FALSE)","v":52},{"$f":"HLOOKUP(BI$7,$I$66:$DJ$120,ROWS($A$10:$A56)+2,FALSE)","v":0},{"$f":"HLOOKUP(BJ$7+0.5,$I$66:$DJ$120,ROWS($A$10:$A56)+2,FALSE)","v":2945},{"$f":"HLOOKUP(BK$7+0.5,$I$66:$DJ$120,ROWS($A$10:$A56)+2,FALSE)","v":211},{"$f":"HLOOKUP(BL$7+0.5,$I$66:$DJ$120,ROWS($A$10:$A56)+2,FALSE)","v":181},{"$f":"HLOOKUP(BM$7+0.5,$I$66:$DJ$120,ROWS($A$10:$A56)+2,FALSE)","v":76},{"$f":"HLOOKUP(BN$7+0.5,$I$66:$DJ$120,ROWS($A$10:$A56)+2,FALSE)","v":211},{"$f":"HLOOKUP(BO$7+0.5,$I$66:$DJ$120,ROWS($A$10:$A56)+2,FALSE)","v":506},{"$f":"HLOOKUP(BP$7+0.5,$I$66:$DJ$120,ROWS($A$10:$A56)+2,FALSE)","v":238},{"$f":"HLOOKUP(BQ$7+0.5,$I$66:$DJ$120,ROWS($A$10:$A56)+2,FALSE)","v":585},{"$f":"HLOOKUP(BR$7+0.5,$I$66:$DJ$120,ROWS($A$10:$A56)+2,FALSE)","v":111},{"$f":"HLOOKUP(BS$7+0.5,$I$66:$DJ$120,ROWS($A$10:$A56)+2,FALSE)","v":15},{"$f":"HLOOKUP(BT$7+0.5,$I$66:$DJ$120,ROWS($A$10:$A56)+2,FALSE)","v":1237},{"$f":"HLOOKUP(BU$7+0.5,$I$66:$DJ$120,ROWS($A$10:$A56)+2,FALSE)","v":395},{"$f":"HLOOKUP(BV$7+0.5,$I$66:$DJ$120,ROWS($A$10:$A56)+2,FALSE)","v":71},{"$f":"HLOOKUP(BW$7+0.5,$I$66:$DJ$120,ROWS($A$10:$A56)+2,FALSE)","v":211},{"$f":"HLOOKUP(BX$7+0.5,$I$66:$DJ$120,ROWS($A$10:$A56)+2,FALSE)","v":415},{"$f":"HLOOKUP(BY$7+0.5,$I$66:$DJ$120,ROWS($A$10:$A56)+2,FALSE)","v":211},{"$f":"HLOOKUP(BZ$7+0.5,$I$66:$DJ$120,ROWS($A$10:$A56)+2,FALSE)","v":93},{"$f":"HLOOKUP(CA$7+0.5,$I$66:$DJ$120,ROWS($A$10:$A56)+2,FALSE)","v":211},{"$f":"HLOOKUP(CB$7+0.5,$I$66:$DJ$120,ROWS($A$10:$A56)+2,FALSE)","v":146},{"$f":"HLOOKUP(CC$7+0.5,$I$66:$DJ$120,ROWS($A$10:$A56)+2,FALSE)","v":211},{"$f":"HLOOKUP(CD$7+0.5,$I$66:$DJ$120,ROWS($A$10:$A56)+2,FALSE)","v":365},{"$f":"HLOOKUP(CE$7+0.5,$I$66:$DJ$120,ROWS($A$10:$A56)+2,FALSE)","v":294},{"$f":"HLOOKUP(CF$7+0.5,$I$66:$DJ$120,ROWS($A$10:$A56)+2,FALSE)","v":1075},{"$f":"HLOOKUP(CG$7+0.5,$I$66:$DJ$120,ROWS($A$10:$A56)+2,FALSE)","v":209},{"$f":"HLOOKUP(CH$7+0.5,$I$66:$DJ$120,ROWS($A$10:$A56)+2,FALSE)","v":116},{"$f":"HLOOKUP(CI$7+0.5,$I$66:$DJ$120,ROWS($A$10:$A56)+2,FALSE)","v":211},{"$f":"HLOOKUP(CJ$7+0.5,$I$66:$DJ$120,ROWS($A$10:$A56)+2,FALSE)","v":86},{"$f":"HLOOKUP(CK$7+0.5,$I$66:$DJ$120,ROWS($A$10:$A56)+2,FALSE)","v":207},{"$f":"HLOOKUP(CL$7+0.5,$I$66:$DJ$120,ROWS($A$10:$A56)+2,FALSE)","v":211},{"$f":"HLOOKUP(CM$7+0.5,$I$66:$DJ$120,ROWS($A$10:$A56)+2,FALSE)","v":75},{"$f":"HLOOKUP(CN$7+0.5,$I$66:$DJ$120,ROWS($A$10:$A56)+2,FALSE)","v":827},{"$f":"HLOOKUP(CO$7+0.5,$I$66:$DJ$120,ROWS($A$10:$A56)+2,FALSE)","v":390},{"$f":"HLOOKUP(CP$7+0.5,$I$66:$DJ$120,ROWS($A$10:$A56)+2,FALSE)","v":211},{"$f":"HLOOKUP(CQ$7+0.5,$I$66:$DJ$120,ROWS($A$10:$A56)+2,FALSE)","v":1050},{"$f":"HLOOKUP(CR$7+0.5,$I$66:$DJ$120,ROWS($A$10:$A56)+2,FALSE)","v":455},{"$f":"HLOOKUP(CS$7+0.5,$I$66:$DJ$120,ROWS($A$10:$A56)+2,FALSE)","v":50},{"$f":"HLOOKUP(CT$7+0.5,$I$66:$DJ$120,ROWS($A$10:$A56)+2,FALSE)","v":65},{"$f":"HLOOKUP(CU$7+0.5,$I$66:$DJ$120,ROWS($A$10:$A56)+2,FALSE)","v":211},{"$f":"HLOOKUP(CV$7+0.5,$I$66:$DJ$120,ROWS($A$10:$A56)+2,FALSE)","v":122},{"$f":"HLOOKUP(CW$7+0.5,$I$66:$DJ$120,ROWS($A$10:$A56)+2,FALSE)","v":339},{"$f":"HLOOKUP(CX$7+0.5,$I$66:$DJ$120,ROWS($A$10:$A56)+2,FALSE)","v":154},{"$f":"HLOOKUP(CY$7+0.5,$I$66:$DJ$120,ROWS($A$10:$A56)+2,FALSE)","v":157},{"$f":"HLOOKUP(CZ$7+0.5,$I$66:$DJ$120,ROWS($A$10:$A56)+2,FALSE)","v":214},{"$f":"HLOOKUP(DA$7+0.5,$I$66:$DJ$120,ROWS($A$10:$A56)+2,FALSE)","v":104},{"$f":"HLOOKUP(DB$7+0.5,$I$66:$DJ$120,ROWS($A$10:$A56)+2,FALSE)","v":449},{"$f":"HLOOKUP(DC$7+0.5,$I$66:$DJ$120,ROWS($A$10:$A56)+2,FALSE)","v":211},{"$f":"HLOOKUP(DD$7+0.5,$I$66:$DJ$120,ROWS($A$10:$A56)+2,FALSE)","v":"N/A"},{"$f":"HLOOKUP(DE$7+0.5,$I$66:$DJ$120,ROWS($A$10:$A56)+2,FALSE)","v":361},{"$f":"HLOOKUP(DF$7+0.5,$I$66:$DJ$120,ROWS($A$10:$A56)+2,FALSE)","v":115},{"$f":"HLOOKUP(DG$7+0.5,$I$66:$DJ$120,ROWS($A$10:$A56)+2,FALSE)","v":211},{"$f":"HLOOKUP(DH$7+0.5,$I$66:$DJ$120,ROWS($A$10:$A56)+2,FALSE)","v":488},{"$f":"HLOOKUP(DI$7+0.5,$I$66:$DJ$120,ROWS($A$10:$A56)+2,FALSE)","v":86},{"$f":"HLOOKUP(DJ$7+0.5,$I$66:$DJ$120,ROWS($A$10:$A56)+2,FALSE)","v":211}]
[null,"Virginia",7930773,4735,6752310,28251,870491,21599,{"$f":"HLOOKUP(I$7,$I$66:$DJ$120,ROWS($A$10:$A57)+2,FALSE)","v":259507},{"$f":"HLOOKUP(J$7,$I$66:$DJ$120,ROWS($A$10:$A57)+2,FALSE)","v":2671},{"$f":"HLOOKUP(K$7,$I$66:$DJ$120,ROWS($A$10:$A57)+2,FALSE)","v":3296},{"$f":"HLOOKUP(L$7,$I$66:$DJ$120,ROWS($A$10:$A57)+2,FALSE)","v":3807},{"$f":"HLOOKUP(M$7,$I$66:$DJ$120,ROWS($A$10:$A57)+2,FALSE)","v":1233},{"$f":"HLOOKUP(N$7,$I$66:$DJ$120,ROWS($A$10:$A57)+2,FALSE)","v":17088},{"$f":"HLOOKUP(O$7,$I$66:$DJ$120,ROWS($A$10:$A57)+2,FALSE)","v":3229},{"$f":"HLOOKUP(P$7,$I$66:$DJ$120,ROWS($A$10:$A57)+2,FALSE)","v":2468},{"$f":"HLOOKUP(Q$7,$I$66:$DJ$120,ROWS($A$10:$A57)+2,FALSE)","v":1265},{"$f":"HLOOKUP(R$7,$I$66:$DJ$120,ROWS($A$10:$A57)+2,FALSE)","v":10593},{"$f":"HLOOKUP(S$7,$I$66:$DJ$120,ROWS($A$10:$A57)+2,FALSE)","v":18165},{"$f":"HLOOKUP(T$7,$I$66:$DJ$120,ROWS($A$10:$A57)+2,FALSE)","v":11927},{"$f":"HLOOKUP(U$7,$I$66:$DJ$120,ROWS($A$10:$A57)+2,FALSE)","v":2347},{"$f":"HLOOKUP(V$7,$I$66:$DJ$120,ROWS($A$10:$A57)+2,FALSE)","v":1159},{"$f":"HLOOKUP(W$7,$I$66:$DJ$120,ROWS($A$10:$A57)+2,FALSE)","v":7576},{"$f":"HLOOKUP(X$7,$I$66:$DJ$120,ROWS($A$10:$A57)+2,FALSE)","v":2892},{"$f":"HLOOKUP(Y$7,$I$66:$DJ$120,ROWS($A$10:$A57)+2,FALSE)","v":1135},{"$f":"HLOOKUP(Z$7,$I$66:$DJ$120,ROWS($A$10:$A57)+2,FALSE)","v":2103},{"$f":"HLOOKUP(AA$7,$I$66:$DJ$120,ROWS($A$10:$A57)+2,FALSE)","v":2051},{"$f":"HLOOKUP(AB$7,$I$66:$DJ$120,ROWS($A$10:$A57)+2,FALSE)","v":2148},{"$f":"HLOOKUP(AC$7,$I$66:$DJ$120,ROWS($A$10:$A57)+2,FALSE)","v":1494},{"$f":"HLOOKUP(AD$7,$I$66:$DJ$120,ROWS($A$10:$A57)+2,FALSE)","v":24822},{"$f":"HLOOKUP(AE$7,$I$66:$DJ$120,ROWS($A$10:$A57)+2,FALSE)","v":4104},{"$f":"HLOOKUP(AF$7,$I$66:$DJ$120,ROWS($A$10:$A57)+2,FALSE)","v":5733},{"$f":"HLOOKUP(AG$7,$I$66:$DJ$120,ROWS($A$10:$A57)+2,FALSE)","v":462},{"$f":"HLOOKUP(AH$7,$I$66:$DJ$120,ROWS($A$10:$A57)+2,FALSE)","v":1858},{"$f":"HLOOKUP(AI$7,$I$66:$DJ$120,ROWS($A$10:$A57)+2,FALSE)","v":4262},{"$f":"HLOOKUP(AJ$7,$I$66:$DJ$120,ROWS($A$10:$A57)+2,FALSE)","v":866},{"$f":"HLOOKUP(AK$7,$I$66:$DJ$120,ROWS($A$10:$A57)+2,FALSE)","v":523},{"$f":"HLOOKUP(AL$7,$I$66:$DJ$120,ROWS($A$10:$A57)+2,FALSE)","v":748},{"$f":"HLOOKUP(AM$7,$I$66:$DJ$120,ROWS($A$10:$A57)+2,FALSE)","v":372},{"$f":"HLOOKUP(AN$7,$I$66:$DJ$120,ROWS($A$10:$A57)+2,FALSE)","v":6825},{"$f":"HLOOKUP(AO$7,$I$66:$DJ$120,ROWS($A$10:$A57)+2,FALSE)","v":1098},{"$f":"HLOOKUP(AP$7,$I$66:$DJ$120,ROWS($A$10:$A57)+2,FALSE)","v":17525},{"$f":"HLOOKUP(AQ$7,$I$66:$DJ$120,ROWS($A$10:$A57)+2,FALSE)","v":23829},{"$f":"HLOOKUP(AR$7,$I$66:$DJ$120,ROWS($A$10:$A57)+2,FALSE)","v":201},{"$f":"HLOOKUP(AS$7,$I$66:$DJ$120,ROWS($A$10:$A57)+2,FALSE)","v":7708},{"$f":"HLOOKUP(AT$7,$I$66:$DJ$120,ROWS($A$10:$A57)+2,FALSE)","v":781},{"$f":"HLOOKUP(AU$7,$I$66:$DJ$120,ROWS($A$10:$A57)+2,FALSE)","v":2137},{"$f":"HLOOKUP(AV$7,$I$66:$DJ$120,ROWS($A$10:$A57)+2,FALSE)","v":11796},{"$f":"HLOOKUP(AW$7,$I$66:$DJ$120,ROWS($A$10:$A57)+2,FALSE)","v":1543},{"$f":"HLOOKUP(AX$7,$I$66:$DJ$120,ROWS($A$10:$A57)+2,FALSE)","v":8339},{"$f":"HLOOKUP(AY$7,$I$66:$DJ$120,ROWS($A$10:$A57)+2,FALSE)","v":98},{"$f":"HLOOKUP(AZ$7,$I$66:$DJ$120,ROWS($A$10:$A57)+2,FALSE)","v":5842},{"$f":"HLOOKUP(BA$7,$I$66:$DJ$120,ROWS($A$10:$A57)+2,FALSE)","v":12938},{"$f":"HLOOKUP(BB$7,$I$66:$DJ$120,ROWS($A$10:$A57)+2,FALSE)","v":1551},{"$f":"HLOOKUP(BC$7,$I$66:$DJ$120,ROWS($A$10:$A57)+2,FALSE)","v":676},{"$f":"HLOOKUP(BD$7,$I$66:$DJ$120,ROWS($A$10:$A57)+2,FALSE)","v":"N/A"},{"$f":"HLOOKUP(BE$7,$I$66:$DJ$120,ROWS($A$10:$A57)+2,FALSE)","v":4373},{"$f":"HLOOKUP(BF$7,$I$66:$DJ$120,ROWS($A$10:$A57)+2,FALSE)","v":6779},{"$f":"HLOOKUP(BG$7,$I$66:$DJ$120,ROWS($A$10:$A57)+2,FALSE)","v":2648},{"$f":"HLOOKUP(BH$7,$I$66:$DJ$120,ROWS($A$10:$A57)+2,FALSE)","v":423},{"$f":"HLOOKUP(BI$7,$I$66:$DJ$120,ROWS($A$10:$A57)+2,FALSE)","v":1306},{"$f":"HLOOKUP(BJ$7+0.5,$I$66:$DJ$120,ROWS($A$10:$A57)+2,FALSE)","v":12319},{"$f":"HLOOKUP(BK$7+0.5,$I$66:$DJ$120,ROWS($A$10:$A57)+2,FALSE)","v":1201},{"$f":"HLOOKUP(BL$7+0.5,$I$66:$DJ$120,ROWS($A$10:$A57)+2,FALSE)","v":1952},{"$f":"HLOOKUP(BM$7+0.5,$I$66:$DJ$120,ROWS($A$10:$A57)+2,FALSE)","v":1454},{"$f":"HLOOKUP(BN$7+0.5,$I$66:$DJ$120,ROWS($A$10:$A57)+2,FALSE)","v":1034},{"$f":"HLOOKUP(BO$7+0.5,$I$66:$DJ$120,ROWS($A$10:$A57)+2,FALSE)","v":3674},{"$f":"HLOOKUP(BP$7+0.5,$I$66:$DJ$120,ROWS($A$10:$A57)+2,FALSE)","v":1571},{"$f":"HLOOKUP(BQ$7+0.5,$I$66:$DJ$120,ROWS($A$10:$A57)+2,FALSE)","v":921},{"$f":"HLOOKUP(BR$7+0.5,$I$66:$DJ$120,ROWS($A$10:$A57)+2,FALSE)","v":828},{"$f":"HLOOKUP(BS$7+0.5,$I$66:$DJ$120,ROWS($A$10:$A57)+2,FALSE)","v":2299},{"$f":"HLOOKUP(BT$7+0.5,$I$66:$DJ$120,ROWS($A$10:$A57)+2,FALSE)","v":3554},{"$f":"HLOOKUP(BU$7+0.5,$I$66:$DJ$120,ROWS($A$10:$A57)+2,FALSE)","v":3210},{"$f":"HLOOKUP(BV$7+0.5,$I$66:$DJ$120,ROWS($A$10:$A57)+2,FALSE)","v":1394},{"$f":"HLOOKUP(BW$7+0.5,$I$66:$DJ$120,ROWS($A$10:$A57)+2,FALSE)","v":787},{"$f":"HLOOKUP(BX$7+0.5,$I$66:$DJ$120,ROWS($A$10:$A57)+2,FALSE)","v":2202},{"$f":"HLOOKUP(BY$7+0.5,$I$66:$DJ$120,ROWS($A$10:$A57)+2,FALSE)","v":1856},{"$f":"HLOOKUP(BZ$7+0.5,$I$66:$DJ$120,ROWS($A$10:$A57)+2,FALSE)","v":758},{"$f":"HLOOKUP(CA$7+0.5,$I$66:$DJ$120,ROWS($A$10:$A57)+2,FALSE)","v":1418},{"$f":"HLOOKUP(CB$7+0.5,$I$66:$DJ$120,ROWS($A$10:$A57)+2,FALSE)","v":1056},{"$f":"HLOOKUP(CC$7+0.5,$I$66:$DJ$120,ROWS($A$10:$A57)+2,FALSE)","v":926},{"$f":"HLOOKUP(CD$7+0.5,$I$66:$DJ$120,ROWS($A$10:$A57)+2,FALSE)","v":932},{"$f":"HLOOKUP(CE$7+0.5,$I$66:$DJ$120,ROWS($A$10:$A57)+2,FALSE)","v":4371},{"$f":"HLOOKUP(CF$7+0.5,$I$66:$DJ$120,ROWS($A$10:$A57)+2,FALSE)","v":1347},{"$f":"HLOOKUP(CG$7+0.5,$I$66:$DJ$120,ROWS($A$10:$A57)+2,FALSE)","v":2245},{"$f":"HLOOKUP(CH$7+0.5,$I$66:$DJ$120,ROWS($A$10:$A57)+2,FALSE)","v":292},{"$f":"HLOOKUP(CI$7+0.5,$I$66:$DJ$120,ROWS($A$10:$A57)+2,FALSE)","v":1007},{"$f":"HLOOKUP(CJ$7+0.5,$I$66:$DJ$120,ROWS($A$10:$A57)+2,FALSE)","v":2141},{"$f":"HLOOKUP(CK$7+0.5,$I$66:$DJ$120,ROWS($A$10:$A57)+2,FALSE)","v":1090},{"$f":"HLOOKUP(CL$7+0.5,$I$66:$DJ$120,ROWS($A$10:$A57)+2,FALSE)","v":475},{"$f":"HLOOKUP(CM$7+0.5,$I$66:$DJ$120,ROWS($A$10:$A57)+2,FALSE)","v":469},{"$f":"HLOOKUP(CN$7+0.5,$I$66:$DJ$120,ROWS($A$10:$A57)+2,FALSE)","v":515},{"$f":"HLOOKUP(CO$7+0.5,$I$66:$DJ$120,ROWS($A$10:$A57)+2,FALSE)","v":1687},{"$f":"HLOOKUP(CP$7+0.5,$I$66:$DJ$120,ROWS($A$10:$A57)+2,FALSE)","v":735},{"$f":"HLOOKUP(CQ$7+0.5,$I$66:$DJ$120,ROWS($A$10:$A57)+2,FALSE)","v":3087},{"$f":"HLOOKUP(CR$7+0.5,$I$66:$DJ$120,ROWS($A$10:$A57)+2,FALSE)","v":4041},{"$f":"HLOOKUP(CS$7+0.5,$I$66:$DJ$120,ROWS($A$10:$A57)+2,FALSE)","v":325},{"$f":"HLOOKUP(CT$7+0.5,$I$66:$DJ$120,ROWS($A$10:$A57)+2,FALSE)","v":2181},{"$f":"HLOOKUP(CU$7+0.5,$I$66:$DJ$120,ROWS($A$10:$A57)+2,FALSE)","v":611},{"$f":"HLOOKUP(CV$7+0.5,$I$66:$DJ$120,ROWS($A$10:$A57)+2,FALSE)","v":2081},{"$f":"HLOOKUP(CW$7+0.5,$I$66:$DJ$120,ROWS($A$10:$A57)+2,FALSE)","v":2546},{"$f":"HLOOKUP(CX$7+0.5,$I$66:$DJ$120,ROWS($A$10:$A57)+2,FALSE)","v":1150},{"$f":"HLOOKUP(CY$7+0.5,$I$66:$DJ$120,ROWS($A$10:$A57)+2,FALSE)","v":2247},{"$f":"HLOOKUP(CZ$7+0.5,$I$66:$DJ$120,ROWS($A$10:$A57)+2,FALSE)","v":179},{"$f":"HLOOKUP(DA$7+0.5,$I$66:$DJ$120,ROWS($A$10:$A57)+2,FALSE)","v":1776},{"$f":"HLOOKUP(DB$7+0.5,$I$66:$DJ$120,ROWS($A$10:$A57)+2,FALSE)","v":3212},{"$f":"HLOOKUP(DC$7+0.5,$I$66:$DJ$120,ROWS($A$10:$A57)+2,FALSE)","v":822},{"$f":"HLOOKUP(DD$7+0.5,$I$66:$DJ$120,ROWS($A$10:$A57)+2,FALSE)","v":599},{"$f":"HLOOKUP(DE$7+0.5,$I$66:$DJ$120,ROWS($A$10:$A57)+2,FALSE)","v":"N/A"},{"$f":"HLOOKUP(DF$7+0.5,$I$66:$DJ$120,ROWS($A$10:$A57)+2,FALSE)","v":1700},{"$f":"HLOOKUP(DG$7+0.5,$I$66:$DJ$120,ROWS($A$10:$A57)+2,FALSE)","v":2481},{"$f":"HLOOKUP(DH$7+0.5,$I$66:$DJ$120,ROWS($A$10:$A57)+2,FALSE)","v":1525},{"$f":"HLOOKUP(DI$7+0.5,$I$66:$DJ$120,ROWS($A$10:$A57)+2,FALSE)","v":429},{"$f":"HLOOKUP(DJ$7+0.5,$I$66:$DJ$120,ROWS($A$10:$A57)+2,FALSE)","v":872}]
[null,"Washington",6661321,4568,5464985,26926,946923,24983,{"$f":"HLOOKUP(I$7,$I$66:$DJ$120,ROWS($A$10:$A58)+2,FALSE)","v":191784},{"$f":"HLOOKUP(J$7,$I$66:$DJ$120,ROWS($A$10:$A58)+2,FALSE)","v":1322},{"$f":"HLOOKUP(K$7,$I$66:$DJ$120,ROWS($A$10:$A58)+2,FALSE)","v":5644},{"$f":"HLOOKUP(L$7,$I$66:$DJ$120,ROWS($A$10:$A58)+2,FALSE)","v":5971},{"$f":"HLOOKUP(M$7,$I$66:$DJ$120,ROWS($A$10:$A58)+2,FALSE)","v":658},{"$f":"HLOOKUP(N$7,$I$66:$DJ$120,ROWS($A$10:$A58)+2,FALSE)","v":39468},{"$f":"HLOOKUP(O$7,$I$66:$DJ$120,ROWS($A$10:$A58)+2,FALSE)","v":4883},{"$f":"HLOOKUP(P$7,$I$66:$DJ$120,ROWS($A$10:$A58)+2,FALSE)","v":642},{"$f":"HLOOKUP(Q$7,$I$66:$DJ$120,ROWS($A$10:$A58)+2,FALSE)","v":202},{"$f":"HLOOKUP(R$7,$I$66:$DJ$120,ROWS($A$10:$A58)+2,FALSE)","v":243},{"$f":"HLOOKUP(S$7,$I$66:$DJ$120,ROWS($A$10:$A58)+2,FALSE)","v":5378},{"$f":"HLOOKUP(T$7,$I$66:$DJ$120,ROWS($A$10:$A58)+2,FALSE)","v":3107},{"$f":"HLOOKUP(U$7,$I$66:$DJ$120,ROWS($A$10:$A58)+2,FALSE)","v":4246},{"$f":"HLOOKUP(V$7,$I$66:$DJ$120,ROWS($A$10:$A58)+2,FALSE)","v":12661},{"$f":"HLOOKUP(W$7,$I$66:$DJ$120,ROWS($A$10:$A58)+2,FALSE)","v":3931},{"$f":"HLOOKUP(X$7,$I$66:$DJ$120,ROWS($A$10:$A58)+2,FALSE)","v":1912},{"$f":"HLOOKUP(Y$7,$I$66:$DJ$120,ROWS($A$10:$A58)+2,FALSE)","v":1685},{"$f":"HLOOKUP(Z$7,$I$66:$DJ$120,ROWS($A$10:$A58)+2,FALSE)","v":1694},{"$f":"HLOOKUP(AA$7,$I$66:$DJ$120,ROWS($A$10:$A58)+2,FALSE)","v":886},{"$f":"HLOOKUP(AB$7,$I$66:$DJ$120,ROWS($A$10:$A58)+2,FALSE)","v":1011},{"$f":"HLOOKUP(AC$7,$I$66:$DJ$120,ROWS($A$10:$A58)+2,FALSE)","v":717},{"$f":"HLOOKUP(AD$7,$I$66:$DJ$120,ROWS($A$10:$A58)+2,FALSE)","v":629},{"$f":"HLOOKUP(AE$7,$I$66:$DJ$120,ROWS($A$10:$A58)+2,FALSE)","v":1448},{"$f":"HLOOKUP(AF$7,$I$66:$DJ$120,ROWS($A$10:$A58)+2,FALSE)","v":2871},{"$f":"HLOOKUP(AG$7,$I$66:$DJ$120,ROWS($A$10:$A58)+2,FALSE)","v":1323},{"$f":"HLOOKUP(AH$7,$I$66:$DJ$120,ROWS($A$10:$A58)+2,FALSE)","v":737},{"$f":"HLOOKUP(AI$7,$I$66:$DJ$120,ROWS($A$10:$A58)+2,FALSE)","v":3727},{"$f":"HLOOKUP(AJ$7,$I$66:$DJ$120,ROWS($A$10:$A58)+2,FALSE)","v":5094},{"$f":"HLOOKUP(AK$7,$I$66:$DJ$120,ROWS($A$10:$A58)+2,FALSE)","v":323},{"$f":"HLOOKUP(AL$7,$I$66:$DJ$120,ROWS($A$10:$A58)+2,FALSE)","v":5310},{"$f":"HLOOKUP(AM$7,$I$66:$DJ$120,ROWS($A$10:$A58)+2,FALSE)","v":282},{"$f":"HLOOKUP(AN$7,$I$66:$DJ$120,ROWS($A$10:$A58)+2,FALSE)","v":721},{"$f":"HLOOKUP(AO$7,$I$66:$DJ$120,ROWS($A$10:$A58)+2,FALSE)","v":1012},{"$f":"HLOOKUP(AP$7,$I$66:$DJ$120,ROWS($A$10:$A58)+2,FALSE)","v":4140},{"$f":"HLOOKUP(AQ$7,$I$66:$DJ$120,ROWS($A$10:$A58)+2,FALSE)","v":2143},{"$f":"HLOOKUP(AR$7,$I$66:$DJ$120,ROWS($A$10:$A58)+2,FALSE)","v":515},{"$f":"HLOOKUP(AS$7,$I$66:$DJ$120,ROWS($A$10:$A58)+2,FALSE)","v":2727},{"$f":"HLOOKUP(AT$7,$I$66:$DJ$120,ROWS($A$10:$A58)+2,FALSE)","v":1986},{"$f":"HLOOKUP(AU$7,$I$66:$DJ$120,ROWS($A$10:$A58)+2,FALSE)","v":26235},{"$f":"HLOOKUP(AV$7,$I$66:$DJ$120,ROWS($A$10:$A58)+2,FALSE)","v":2893},{"$f":"HLOOKUP(AW$7,$I$66:$DJ$120,ROWS($A$10:$A58)+2,FALSE)","v":220},{"$f":"HLOOKUP(AX$7,$I$66:$DJ$120,ROWS($A$10:$A58)+2,FALSE)","v":3047},{"$f":"HLOOKUP(AY$7,$I$66:$DJ$120,ROWS($A$10:$A58)+2,FALSE)","v":866},{"$f":"HLOOKUP(AZ$7,$I$66:$DJ$120,ROWS($A$10:$A58)+2,FALSE)","v":789},{"$f":"HLOOKUP(BA$7,$I$66:$DJ$120,ROWS($A$10:$A58)+2,FALSE)","v":11338},{"$f":"HLOOKUP(BB$7,$I$66:$DJ$120,ROWS($A$10:$A58)+2,FALSE)","v":4020},{"$f":"HLOOKUP(BC$7,$I$66:$DJ$120,ROWS($A$10:$A58)+2,FALSE)","v":981},{"$f":"HLOOKUP(BD$7,$I$66:$DJ$120,ROWS($A$10:$A58)+2,FALSE)","v":7266},{"$f":"HLOOKUP(BE$7,$I$66:$DJ$120,ROWS($A$10:$A58)+2,FALSE)","v":"N/A"},{"$f":"HLOOKUP(BF$7,$I$66:$DJ$120,ROWS($A$10:$A58)+2,FALSE)","v":62},{"$f":"HLOOKUP(BG$7,$I$66:$DJ$120,ROWS($A$10:$A58)+2,FALSE)","v":2180},{"$f":"HLOOKUP(BH$7,$I$66:$DJ$120,ROWS($A$10:$A58)+2,FALSE)","v":638},{"$f":"HLOOKUP(BI$7,$I$66:$DJ$120,ROWS($A$10:$A58)+2,FALSE)","v":0},{"$f":"HLOOKUP(BJ$7+0.5,$I$66:$DJ$120,ROWS($A$10:$A58)+2,FALSE)","v":12094},{"$f":"HLOOKUP(BK$7+0.5,$I$66:$DJ$120,ROWS($A$10:$A58)+2,FALSE)","v":1150},{"$f":"HLOOKUP(BL$7+0.5,$I$66:$DJ$120,ROWS($A$10:$A58)+2,FALSE)","v":2055},{"$f":"HLOOKUP(BM$7+0.5,$I$66:$DJ$120,ROWS($A$10:$A58)+2,FALSE)","v":2284},{"$f":"HLOOKUP(BN$7+0.5,$I$66:$DJ$120,ROWS($A$10:$A58)+2,FALSE)","v":531},{"$f":"HLOOKUP(BO$7+0.5,$I$66:$DJ$120,ROWS($A$10:$A58)+2,FALSE)","v":5451},{"$f":"HLOOKUP(BP$7+0.5,$I$66:$DJ$120,ROWS($A$10:$A58)+2,FALSE)","v":1316},{"$f":"HLOOKUP(BQ$7+0.5,$I$66:$DJ$120,ROWS($A$10:$A58)+2,FALSE)","v":450},{"$f":"HLOOKUP(BR$7+0.5,$I$66:$DJ$120,ROWS($A$10:$A58)+2,FALSE)","v":198},{"$f":"HLOOKUP(BS$7+0.5,$I$66:$DJ$120,ROWS($A$10:$A58)+2,FALSE)","v":260},{"$f":"HLOOKUP(BT$7+0.5,$I$66:$DJ$120,ROWS($A$10:$A58)+2,FALSE)","v":1314},{"$f":"HLOOKUP(BU$7+0.5,$I$66:$DJ$120,ROWS($A$10:$A58)+2,FALSE)","v":1650},{"$f":"HLOOKUP(BV$7+0.5,$I$66:$DJ$120,ROWS($A$10:$A58)+2,FALSE)","v":1482},{"$f":"HLOOKUP(BW$7+0.5,$I$66:$DJ$120,ROWS($A$10:$A58)+2,FALSE)","v":3237},{"$f":"HLOOKUP(BX$7+0.5,$I$66:$DJ$120,ROWS($A$10:$A58)+2,FALSE)","v":1438},{"$f":"HLOOKUP(BY$7+0.5,$I$66:$DJ$120,ROWS($A$10:$A58)+2,FALSE)","v":1321},{"$f":"HLOOKUP(BZ$7+0.5,$I$66:$DJ$120,ROWS($A$10:$A58)+2,FALSE)","v":993},{"$f":"HLOOKUP(CA$7+0.5,$I$66:$DJ$120,ROWS($A$10:$A58)+2,FALSE)","v":1174},{"$f":"HLOOKUP(CB$7+0.5,$I$66:$DJ$120,ROWS($A$10:$A58)+2,FALSE)","v":626},{"$f":"HLOOKUP(CC$7+0.5,$I$66:$DJ$120,ROWS($A$10:$A58)+2,FALSE)","v":588},{"$f":"HLOOKUP(CD$7+0.5,$I$66:$DJ$120,ROWS($A$10:$A58)+2,FALSE)","v":653},{"$f":"HLOOKUP(CE$7+0.5,$I$66:$DJ$120,ROWS($A$10:$A58)+2,FALSE)","v":445},{"$f":"HLOOKUP(CF$7+0.5,$I$66:$DJ$120,ROWS($A$10:$A58)+2,FALSE)","v":796},{"$f":"HLOOKUP(CG$7+0.5,$I$66:$DJ$120,ROWS($A$10:$A58)+2,FALSE)","v":1443},{"$f":"HLOOKUP(CH$7+0.5,$I$66:$DJ$120,ROWS($A$10:$A58)+2,FALSE)","v":656},{"$f":"HLOOKUP(CI$7+0.5,$I$66:$DJ$120,ROWS($A$10:$A58)+2,FALSE)","v":784},{"$f":"HLOOKUP(CJ$7+0.5,$I$66:$DJ$120,ROWS($A$10:$A58)+2,FALSE)","v":2288},{"$f":"HLOOKUP(CK$7+0.5,$I$66:$DJ$120,ROWS($A$10:$A58)+2,FALSE)","v":1449},{"$f":"HLOOKUP(CL$7+0.5,$I$66:$DJ$120,ROWS($A$10:$A58)+2,FALSE)","v":245},{"$f":"HLOOKUP(CM$7+0.5,$I$66:$DJ$120,ROWS($A$10:$A58)+2,FALSE)","v":1954},{"$f":"HLOOKUP(CN$7+0.5,$I$66:$DJ$120,ROWS($A$10:$A58)+2,FALSE)","v":305},{"$f":"HLOOKUP(CO$7+0.5,$I$66:$DJ$120,ROWS($A$10:$A58)+2,FALSE)","v":604},{"$f":"HLOOKUP(CP$7+0.5,$I$66:$DJ$120,ROWS($A$10:$A58)+2,FALSE)","v":599},{"$f":"HLOOKUP(CQ$7+0.5,$I$66:$DJ$120,ROWS($A$10:$A58)+2,FALSE)","v":1494},{"$f":"HLOOKUP(CR$7+0.5,$I$66:$DJ$120,ROWS($A$10:$A58)+2,FALSE)","v":1189},{"$f":"HLOOKUP(CS$7+0.5,$I$66:$DJ$120,ROWS($A$10:$A58)+2,FALSE)","v":426},{"$f":"HLOOKUP(CT$7+0.5,$I$66:$DJ$120,ROWS($A$10:$A58)+2,FALSE)","v":1146},{"$f":"HLOOKUP(CU$7+0.5,$I$66:$DJ$120,ROWS($A$10:$A58)+2,FALSE)","v":1131},{"$f":"HLOOKUP(CV$7+0.5,$I$66:$DJ$120,ROWS($A$10:$A58)+2,FALSE)","v":4414},{"$f":"HLOOKUP(CW$7+0.5,$I$66:$DJ$120,ROWS($A$10:$A58)+2,FALSE)","v":1410},{"$f":"HLOOKUP(CX$7+0.5,$I$66:$DJ$120,ROWS($A$10:$A58)+2,FALSE)","v":197},{"$f":"HLOOKUP(CY$7+0.5,$I$66:$DJ$120,ROWS($A$10:$A58)+2,FALSE)","v":1800},{"$f":"HLOOKUP(CZ$7+0.5,$I$66:$DJ$120,ROWS($A$10:$A58)+2,FALSE)","v":729},{"$f":"HLOOKUP(DA$7+0.5,$I$66:$DJ$120,ROWS($A$10:$A58)+2,FALSE)","v":511},{"$f":"HLOOKUP(DB$7+0.5,$I$66:$DJ$120,ROWS($A$10:$A58)+2,FALSE)","v":3003},{"$f":"HLOOKUP(DC$7+0.5,$I$66:$DJ$120,ROWS($A$10:$A58)+2,FALSE)","v":1681},{"$f":"HLOOKUP(DD$7+0.5,$I$66:$DJ$120,ROWS($A$10:$A58)+2,FALSE)","v":803},{"$f":"HLOOKUP(DE$7+0.5,$I$66:$DJ$120,ROWS($A$10:$A58)+2,FALSE)","v":2764},{"$f":"HLOOKUP(DF$7+0.5,$I$66:$DJ$120,ROWS($A$10:$A58)+2,FALSE)","v":"N/A"},{"$f":"HLOOKUP(DG$7+0.5,$I$66:$DJ$120,ROWS($A$10:$A58)+2,FALSE)","v":107},{"$f":"HLOOKUP(DH$7+0.5,$I$66:$DJ$120,ROWS($A$10:$A58)+2,FALSE)","v":1074},{"$f":"HLOOKUP(DI$7+0.5,$I$66:$DJ$120,ROWS($A$10:$A58)+2,FALSE)","v":524},{"$f":"HLOOKUP(DJ$7+0.5,$I$66:$DJ$120,ROWS($A$10:$A58)+2,FALSE)","v":277}]
[null,"West Virginia",1833535,1890,1625125,9824,166168,9198,{"$f":"HLOOKUP(I$7,$I$66:$DJ$120,ROWS($A$10:$A59)+2,FALSE)","v":39609},{"$f":"HLOOKUP(J$7,$I$66:$DJ$120,ROWS($A$10:$A59)+2,FALSE)","v":41},{"$f":"HLOOKUP(K$7,$I$66:$DJ$120,ROWS($A$10:$A59)+2,FALSE)","v":1326},{"$f":"HLOOKUP(L$7,$I$66:$DJ$120,ROWS($A$10:$A59)+2,FALSE)","v":0},{"$f":"HLOOKUP(M$7,$I$66:$DJ$120,ROWS($A$10:$A59)+2,FALSE)","v":0},{"$f":"HLOOKUP(N$7,$I$66:$DJ$120,ROWS($A$10:$A59)+2,FALSE)","v":760},{"$f":"HLOOKUP(O$7,$I$66:$DJ$120,ROWS($A$10:$A59)+2,FALSE)","v":608},{"$f":"HLOOKUP(P$7,$I$66:$DJ$120,ROWS($A$10:$A59)+2,FALSE)","v":84},{"$f":"HLOOKUP(Q$7,$I$66:$DJ$120,ROWS($A$10:$A59)+2,FALSE)","v":556},{"$f":"HLOOKUP(R$7,$I$66:$DJ$120,ROWS($A$10:$A59)+2,FALSE)","v":480},{"$f":"HLOOKUP(S$7,$I$66:$DJ$120,ROWS($A$10:$A59)+2,FALSE)","v":1842},{"$f":"HLOOKUP(T$7,$I$66:$DJ$120,ROWS($A$10:$A59)+2,FALSE)","v":485},{"$f":"HLOOKUP(U$7,$I$66:$DJ$120,ROWS($A$10:$A59)+2,FALSE)","v":0},{"$f":"HLOOKUP(V$7,$I$66:$DJ$120,ROWS($A$10:$A59)+2,FALSE)","v":88},{"$f":"HLOOKUP(W$7,$I$66:$DJ$120,ROWS($A$10:$A59)+2,FALSE)","v":356},{"$f":"HLOOKUP(X$7,$I$66:$DJ$120,ROWS($A$10:$A59)+2,FALSE)","v":366},{"$f":"HLOOKUP(Y$7,$I$66:$DJ$120,ROWS($A$10:$A59)+2,FALSE)","v":0},{"$f":"HLOOKUP(Z$7,$I$66:$DJ$120,ROWS($A$10:$A59)+2,FALSE)","v":161},{"$f":"HLOOKUP(AA$7,$I$66:$DJ$120,ROWS($A$10:$A59)+2,FALSE)","v":851},{"$f":"HLOOKUP(AB$7,$I$66:$DJ$120,ROWS($A$10:$A59)+2,FALSE)","v":60},{"$f":"HLOOKUP(AC$7,$I$66:$DJ$120,ROWS($A$10:$A59)+2,FALSE)","v":0},{"$f":"HLOOKUP(AD$7,$I$66:$DJ$120,ROWS($A$10:$A59)+2,FALSE)","v":4249},{"$f":"HLOOKUP(AE$7,$I$66:$DJ$120,ROWS($A$10:$A59)+2,FALSE)","v":191},{"$f":"HLOOKUP(AF$7,$I$66:$DJ$120,ROWS($A$10:$A59)+2,FALSE)","v":657},{"$f":"HLOOKUP(AG$7,$I$66:$DJ$120,ROWS($A$10:$A59)+2,FALSE)","v":0},{"$f":"HLOOKUP(AH$7,$I$66:$DJ$120,ROWS($A$10:$A59)+2,FALSE)","v":44},{"$f":"HLOOKUP(AI$7,$I$66:$DJ$120,ROWS($A$10:$A59)+2,FALSE)","v":160},{"$f":"HLOOKUP(AJ$7,$I$66:$DJ$120,ROWS($A$10:$A59)+2,FALSE)","v":39},{"$f":"HLOOKUP(AK$7,$I$66:$DJ$120,ROWS($A$10:$A59)+2,FALSE)","v":0},{"$f":"HLOOKUP(AL$7,$I$66:$DJ$120,ROWS($A$10:$A59)+2,FALSE)","v":25},{"$f":"HLOOKUP(AM$7,$I$66:$DJ$120,ROWS($A$10:$A59)+2,FALSE)","v":107},{"$f":"HLOOKUP(AN$7,$I$66:$DJ$120,ROWS($A$10:$A59)+2,FALSE)","v":906},{"$f":"HLOOKUP(AO$7,$I$66:$DJ$120,ROWS($A$10:$A59)+2,FALSE)","v":0},{"$f":"HLOOKUP(AP$7,$I$66:$DJ$120,ROWS($A$10:$A59)+2,FALSE)","v":611},{"$f":"HLOOKUP(AQ$7,$I$66:$DJ$120,ROWS($A$10:$A59)+2,FALSE)","v":2552},{"$f":"HLOOKUP(AR$7,$I$66:$DJ$120,ROWS($A$10:$A59)+2,FALSE)","v":268},{"$f":"HLOOKUP(AS$7,$I$66:$DJ$120,ROWS($A$10:$A59)+2,FALSE)","v":7925},{"$f":"HLOOKUP(AT$7,$I$66:$DJ$120,ROWS($A$10:$A59)+2,FALSE)","v":229},{"$f":"HLOOKUP(AU$7,$I$66:$DJ$120,ROWS($A$10:$A59)+2,FALSE)","v":0},{"$f":"HLOOKUP(AV$7,$I$66:$DJ$120,ROWS($A$10:$A59)+2,FALSE)","v":4908},{"$f":"HLOOKUP(AW$7,$I$66:$DJ$120,ROWS($A$10:$A59)+2,FALSE)","v":238},{"$f":"HLOOKUP(AX$7,$I$66:$DJ$120,ROWS($A$10:$A59)+2,FALSE)","v":647},{"$f":"HLOOKUP(AY$7,$I$66:$DJ$120,ROWS($A$10:$A59)+2,FALSE)","v":0},{"$f":"HLOOKUP(AZ$7,$I$66:$DJ$120,ROWS($A$10:$A59)+2,FALSE)","v":1160},{"$f":"HLOOKUP(BA$7,$I$66:$DJ$120,ROWS($A$10:$A59)+2,FALSE)","v":968},{"$f":"HLOOKUP(BB$7,$I$66:$DJ$120,ROWS($A$10:$A59)+2,FALSE)","v":112},{"$f":"HLOOKUP(BC$7,$I$66:$DJ$120,ROWS($A$10:$A59)+2,FALSE)","v":208},{"$f":"HLOOKUP(BD$7,$I$66:$DJ$120,ROWS($A$10:$A59)+2,FALSE)","v":4999},{"$f":"HLOOKUP(BE$7,$I$66:$DJ$120,ROWS($A$10:$A59)+2,FALSE)","v":192},{"$f":"HLOOKUP(BF$7,$I$66:$DJ$120,ROWS($A$10:$A59)+2,FALSE)","v":"N/A"},{"$f":"HLOOKUP(BG$7,$I$66:$DJ$120,ROWS($A$10:$A59)+2,FALSE)","v":150},{"$f":"HLOOKUP(BH$7,$I$66:$DJ$120,ROWS($A$10:$A59)+2,FALSE)","v":0},{"$f":"HLOOKUP(BI$7,$I$66:$DJ$120,ROWS($A$10:$A59)+2,FALSE)","v":182},{"$f":"HLOOKUP(BJ$7+0.5,$I$66:$DJ$120,ROWS($A$10:$A59)+2,FALSE)","v":4590},{"$f":"HLOOKUP(BK$7+0.5,$I$66:$DJ$120,ROWS($A$10:$A59)+2,FALSE)","v":69},{"$f":"HLOOKUP(BL$7+0.5,$I$66:$DJ$120,ROWS($A$10:$A59)+2,FALSE)","v":1210},{"$f":"HLOOKUP(BM$7+0.5,$I$66:$DJ$120,ROWS($A$10:$A59)+2,FALSE)","v":269},{"$f":"HLOOKUP(BN$7+0.5,$I$66:$DJ$120,ROWS($A$10:$A59)+2,FALSE)","v":269},{"$f":"HLOOKUP(BO$7+0.5,$I$66:$DJ$120,ROWS($A$10:$A59)+2,FALSE)","v":511},{"$f":"HLOOKUP(BP$7+0.5,$I$66:$DJ$120,ROWS($A$10:$A59)+2,FALSE)","v":553},{"$f":"HLOOKUP(BQ$7+0.5,$I$66:$DJ$120,ROWS($A$10:$A59)+2,FALSE)","v":148},{"$f":"HLOOKUP(BR$7+0.5,$I$66:$DJ$120,ROWS($A$10:$A59)+2,FALSE)","v":506},{"$f":"HLOOKUP(BS$7+0.5,$I$66:$DJ$120,ROWS($A$10:$A59)+2,FALSE)","v":466},{"$f":"HLOOKUP(BT$7+0.5,$I$66:$DJ$120,ROWS($A$10:$A59)+2,FALSE)","v":825},{"$f":"HLOOKUP(BU$7+0.5,$I$66:$DJ$120,ROWS($A$10:$A59)+2,FALSE)","v":354},{"$f":"HLOOKUP(BV$7+0.5,$I$66:$DJ$120,ROWS($A$10:$A59)+2,FALSE)","v":269},{"$f":"HLOOKUP(BW$7+0.5,$I$66:$DJ$120,ROWS($A$10:$A59)+2,FALSE)","v":158},{"$f":"HLOOKUP(BX$7+0.5,$I$66:$DJ$120,ROWS($A$10:$A59)+2,FALSE)","v":338},{"$f":"HLOOKUP(BY$7+0.5,$I$66:$DJ$120,ROWS($A$10:$A59)+2,FALSE)","v":311},{"$f":"HLOOKUP(BZ$7+0.5,$I$66:$DJ$120,ROWS($A$10:$A59)+2,FALSE)","v":269},{"$f":"HLOOKUP(CA$7+0.5,$I$66:$DJ$120,ROWS($A$10:$A59)+2,FALSE)","v":198},{"$f":"HLOOKUP(CB$7+0.5,$I$66:$DJ$120,ROWS($A$10:$A59)+2,FALSE)","v":732},{"$f":"HLOOKUP(CC$7+0.5,$I$66:$DJ$120,ROWS($A$10:$A59)+2,FALSE)","v":117},{"$f":"HLOOKUP(CD$7+0.5,$I$66:$DJ$120,ROWS($A$10:$A59)+2,FALSE)","v":269},{"$f":"HLOOKUP(CE$7+0.5,$I$66:$DJ$120,ROWS($A$10:$A59)+2,FALSE)","v":1182},{"$f":"HLOOKUP(CF$7+0.5,$I$66:$DJ$120,ROWS($A$10:$A59)+2,FALSE)","v":169},{"$f":"HLOOKUP(CG$7+0.5,$I$66:$DJ$120,ROWS($A$10:$A59)+2,FALSE)","v":379},{"$f":"HLOOKUP(CH$7+0.5,$I$66:$DJ$120,ROWS($A$10:$A59)+2,FALSE)","v":269},{"$f":"HLOOKUP(CI$7+0.5,$I$66:$DJ$120,ROWS($A$10:$A59)+2,FALSE)","v":75},{"$f":"HLOOKUP(CJ$7+0.5,$I$66:$DJ$120,ROWS($A$10:$A59)+2,FALSE)","v":190},{"$f":"HLOOKUP(CK$7+0.5,$I$66:$DJ$120,ROWS($A$10:$A59)+2,FALSE)","v":62},{"$f":"HLOOKUP(CL$7+0.5,$I$66:$DJ$120,ROWS($A$10:$A59)+2,FALSE)","v":269},{"$f":"HLOOKUP(CM$7+0.5,$I$66:$DJ$120,ROWS($A$10:$A59)+2,FALSE)","v":42},{"$f":"HLOOKUP(CN$7+0.5,$I$66:$DJ$120,ROWS($A$10:$A59)+2,FALSE)","v":185},{"$f":"HLOOKUP(CO$7+0.5,$I$66:$DJ$120,ROWS($A$10:$A59)+2,FALSE)","v":537},{"$f":"HLOOKUP(CP$7+0.5,$I$66:$DJ$120,ROWS($A$10:$A59)+2,FALSE)","v":269},{"$f":"HLOOKUP(CQ$7+0.5,$I$66:$DJ$120,ROWS($A$10:$A59)+2,FALSE)","v":416},{"$f":"HLOOKUP(CR$7+0.5,$I$66:$DJ$120,ROWS($A$10:$A59)+2,FALSE)","v":985},{"$f":"HLOOKUP(CS$7+0.5,$I$66:$DJ$120,ROWS($A$10:$A59)+2,FALSE)","v":399},{"$f":"HLOOKUP(CT$7+0.5,$I$66:$DJ$120,ROWS($A$10:$A59)+2,FALSE)","v":2201},{"$f":"HLOOKUP(CU$7+0.5,$I$66:$DJ$120,ROWS($A$10:$A59)+2,FALSE)","v":363},{"$f":"HLOOKUP(CV$7+0.5,$I$66:$DJ$120,ROWS($A$10:$A59)+2,FALSE)","v":269},{"$f":"HLOOKUP(CW$7+0.5,$I$66:$DJ$120,ROWS($A$10:$A59)+2,FALSE)","v":1396},{"$f":"HLOOKUP(CX$7+0.5,$I$66:$DJ$120,ROWS($A$10:$A59)+2,FALSE)","v":292},{"$f":"HLOOKUP(CY$7+0.5,$I$66:$DJ$120,ROWS($A$10:$A59)+2,FALSE)","v":493},{"$f":"HLOOKUP(CZ$7+0.5,$I$66:$DJ$120,ROWS($A$10:$A59)+2,FALSE)","v":269},{"$f":"HLOOKUP(DA$7+0.5,$I$66:$DJ$120,ROWS($A$10:$A59)+2,FALSE)","v":833},{"$f":"HLOOKUP(DB$7+0.5,$I$66:$DJ$120,ROWS($A$10:$A59)+2,FALSE)","v":650},{"$f":"HLOOKUP(DC$7+0.5,$I$66:$DJ$120,ROWS($A$10:$A59)+2,FALSE)","v":144},{"$f":"HLOOKUP(DD$7+0.5,$I$66:$DJ$120,ROWS($A$10:$A59)+2,FALSE)","v":205},{"$f":"HLOOKUP(DE$7+0.5,$I$66:$DJ$120,ROWS($A$10:$A59)+2,FALSE)","v":1573},{"$f":"HLOOKUP(DF$7+0.5,$I$66:$DJ$120,ROWS($A$10:$A59)+2,FALSE)","v":199},{"$f":"HLOOKUP(DG$7+0.5,$I$66:$DJ$120,ROWS($A$10:$A59)+2,FALSE)","v":"N/A"},{"$f":"HLOOKUP(DH$7+0.5,$I$66:$DJ$120,ROWS($A$10:$A59)+2,FALSE)","v":188},{"$f":"HLOOKUP(DI$7+0.5,$I$66:$DJ$120,ROWS($A$10:$A59)+2,FALSE)","v":269},{"$f":"HLOOKUP(DJ$7+0.5,$I$66:$DJ$120,ROWS($A$10:$A59)+2,FALSE)","v":232}]
[null,"Wisconsin",5623196,3124,4824045,20412,691592,17462,{"$f":"HLOOKUP(I$7,$I$66:$DJ$120,ROWS($A$10:$A60)+2,FALSE)","v":93065},{"$f":"HLOOKUP(J$7,$I$66:$DJ$120,ROWS($A$10:$A60)+2,FALSE)","v":552},{"$f":"HLOOKUP(K$7,$I$66:$DJ$120,ROWS($A$10:$A60)+2,FALSE)","v":798},{"$f":"HLOOKUP(L$7,$I$66:$DJ$120,ROWS($A$10:$A60)+2,FALSE)","v":1854},{"$f":"HLOOKUP(M$7,$I$66:$DJ$120,ROWS($A$10:$A60)+2,FALSE)","v":518},{"$f":"HLOOKUP(N$7,$I$66:$DJ$120,ROWS($A$10:$A60)+2,FALSE)","v":4506},{"$f":"HLOOKUP(O$7,$I$66:$DJ$120,ROWS($A$10:$A60)+2,FALSE)","v":1890},{"$f":"HLOOKUP(P$7,$I$66:$DJ$120,ROWS($A$10:$A60)+2,FALSE)","v":359},{"$f":"HLOOKUP(Q$7,$I$66:$DJ$120,ROWS($A$10:$A60)+2,FALSE)","v":351},{"$f":"HLOOKUP(R$7,$I$66:$DJ$120,ROWS($A$10:$A60)+2,FALSE)","v":98},{"$f":"HLOOKUP(S$7,$I$66:$DJ$120,ROWS($A$10:$A60)+2,FALSE)","v":4492},{"$f":"HLOOKUP(T$7,$I$66:$DJ$120,ROWS($A$10:$A60)+2,FALSE)","v":1656},{"$f":"HLOOKUP(U$7,$I$66:$DJ$120,ROWS($A$10:$A60)+2,FALSE)","v":550},{"$f":"HLOOKUP(V$7,$I$66:$DJ$120,ROWS($A$10:$A60)+2,FALSE)","v":902},{"$f":"HLOOKUP(W$7,$I$66:$DJ$120,ROWS($A$10:$A60)+2,FALSE)","v":20299},{"$f":"HLOOKUP(X$7,$I$66:$DJ$120,ROWS($A$10:$A60)+2,FALSE)","v":2563},{"$f":"HLOOKUP(Y$7,$I$66:$DJ$120,ROWS($A$10:$A60)+2,FALSE)","v":2300},{"$f":"HLOOKUP(Z$7,$I$66:$DJ$120,ROWS($A$10:$A60)+2,FALSE)","v":752},{"$f":"HLOOKUP(AA$7,$I$66:$DJ$120,ROWS($A$10:$A60)+2,FALSE)","v":287},{"$f":"HLOOKUP(AB$7,$I$66:$DJ$120,ROWS($A$10:$A60)+2,FALSE)","v":331},{"$f":"HLOOKUP(AC$7,$I$66:$DJ$120,ROWS($A$10:$A60)+2,FALSE)","v":448},{"$f":"HLOOKUP(AD$7,$I$66:$DJ$120,ROWS($A$10:$A60)+2,FALSE)","v":1088},{"$f":"HLOOKUP(AE$7,$I$66:$DJ$120,ROWS($A$10:$A60)+2,FALSE)","v":992},{"$f":"HLOOKUP(AF$7,$I$66:$DJ$120,ROWS($A$10:$A60)+2,FALSE)","v":6317},{"$f":"HLOOKUP(AG$7,$I$66:$DJ$120,ROWS($A$10:$A60)+2,FALSE)","v":16741},{"$f":"HLOOKUP(AH$7,$I$66:$DJ$120,ROWS($A$10:$A60)+2,FALSE)","v":810},{"$f":"HLOOKUP(AI$7,$I$66:$DJ$120,ROWS($A$10:$A60)+2,FALSE)","v":1716},{"$f":"HLOOKUP(AJ$7,$I$66:$DJ$120,ROWS($A$10:$A60)+2,FALSE)","v":154},{"$f":"HLOOKUP(AK$7,$I$66:$DJ$120,ROWS($A$10:$A60)+2,FALSE)","v":853},{"$f":"HLOOKUP(AL$7,$I$66:$DJ$120,ROWS($A$10:$A60)+2,FALSE)","v":1049},{"$f":"HLOOKUP(AM$7,$I$66:$DJ$120,ROWS($A$10:$A60)+2,FALSE)","v":69},{"$f":"HLOOKUP(AN$7,$I$66:$DJ$120,ROWS($A$10:$A60)+2,FALSE)","v":632},{"$f":"HLOOKUP(AO$7,$I$66:$DJ$120,ROWS($A$10:$A60)+2,FALSE)","v":123},{"$f":"HLOOKUP(AP$7,$I$66:$DJ$120,ROWS($A$10:$A60)+2,FALSE)","v":1291},{"$f":"HLOOKUP(AQ$7,$I$66:$DJ$120,ROWS($A$10:$A60)+2,FALSE)","v":1817},{"$f":"HLOOKUP(AR$7,$I$66:$DJ$120,ROWS($A$10:$A60)+2,FALSE)","v":497},{"$f":"HLOOKUP(AS$7,$I$66:$DJ$120,ROWS($A$10:$A60)+2,FALSE)","v":1674},{"$f":"HLOOKUP(AT$7,$I$66:$DJ$120,ROWS($A$10:$A60)+2,FALSE)","v":89},{"$f":"HLOOKUP(AU$7,$I$66:$DJ$120,ROWS($A$10:$A60)+2,FALSE)","v":1444},{"$f":"HLOOKUP(AV$7,$I$66:$DJ$120,ROWS($A$10:$A60)+2,FALSE)","v":2211},{"$f":"HLOOKUP(AW$7,$I$66:$DJ$120,ROWS($A$10:$A60)+2,FALSE)","v":0},{"$f":"HLOOKUP(AX$7,$I$66:$DJ$120,ROWS($A$10:$A60)+2,FALSE)","v":1142},{"$f":"HLOOKUP(AY$7,$I$66:$DJ$120,ROWS($A$10:$A60)+2,FALSE)","v":235},{"$f":"HLOOKUP(AZ$7,$I$66:$DJ$120,ROWS($A$10:$A60)+2,FALSE)","v":856},{"$f":"HLOOKUP(BA$7,$I$66:$DJ$120,ROWS($A$10:$A60)+2,FALSE)","v":3039},{"$f":"HLOOKUP(BB$7,$I$66:$DJ$120,ROWS($A$10:$A60)+2,FALSE)","v":476},{"$f":"HLOOKUP(BC$7,$I$66:$DJ$120,ROWS($A$10:$A60)+2,FALSE)","v":75},{"$f":"HLOOKUP(BD$7,$I$66:$DJ$120,ROWS($A$10:$A60)+2,FALSE)","v":771},{"$f":"HLOOKUP(BE$7,$I$66:$DJ$120,ROWS($A$10:$A60)+2,FALSE)","v":1013},{"$f":"HLOOKUP(BF$7,$I$66:$DJ$120,ROWS($A$10:$A60)+2,FALSE)","v":256},{"$f":"HLOOKUP(BG$7,$I$66:$DJ$120,ROWS($A$10:$A60)+2,FALSE)","v":"N/A"},{"$f":"HLOOKUP(BH$7,$I$66:$DJ$120,ROWS($A$10:$A60)+2,FALSE)","v":129},{"$f":"HLOOKUP(BI$7,$I$66:$DJ$120,ROWS($A$10:$A60)+2,FALSE)","v":521},{"$f":"HLOOKUP(BJ$7+0.5,$I$66:$DJ$120,ROWS($A$10:$A60)+2,FALSE)","v":6949},{"$f":"HLOOKUP(BK$7+0.5,$I$66:$DJ$120,ROWS($A$10:$A60)+2,FALSE)","v":523},{"$f":"HLOOKUP(BL$7+0.5,$I$66:$DJ$120,ROWS($A$10:$A60)+2,FALSE)","v":549},{"$f":"HLOOKUP(BM$7+0.5,$I$66:$DJ$120,ROWS($A$10:$A60)+2,FALSE)","v":674},{"$f":"HLOOKUP(BN$7+0.5,$I$66:$DJ$120,ROWS($A$10:$A60)+2,FALSE)","v":299},{"$f":"HLOOKUP(BO$7+0.5,$I$66:$DJ$120,ROWS($A$10:$A60)+2,FALSE)","v":1080},{"$f":"HLOOKUP(BP$7+0.5,$I$66:$DJ$120,ROWS($A$10:$A60)+2,FALSE)","v":806},{"$f":"HLOOKUP(BQ$7+0.5,$I$66:$DJ$120,ROWS($A$10:$A60)+2,FALSE)","v":356},{"$f":"HLOOKUP(BR$7+0.5,$I$66:$DJ$120,ROWS($A$10:$A60)+2,FALSE)","v":522},{"$f":"HLOOKUP(BS$7+0.5,$I$66:$DJ$120,ROWS($A$10:$A60)+2,FALSE)","v":118},{"$f":"HLOOKUP(BT$7+0.5,$I$66:$DJ$120,ROWS($A$10:$A60)+2,FALSE)","v":1416},{"$f":"HLOOKUP(BU$7+0.5,$I$66:$DJ$120,ROWS($A$10:$A60)+2,FALSE)","v":684},{"$f":"HLOOKUP(BV$7+0.5,$I$66:$DJ$120,ROWS($A$10:$A60)+2,FALSE)","v":532},{"$f":"HLOOKUP(BW$7+0.5,$I$66:$DJ$120,ROWS($A$10:$A60)+2,FALSE)","v":771},{"$f":"HLOOKUP(BX$7+0.5,$I$66:$DJ$120,ROWS($A$10:$A60)+2,FALSE)","v":3115},{"$f":"HLOOKUP(BY$7+0.5,$I$66:$DJ$120,ROWS($A$10:$A60)+2,FALSE)","v":921},{"$f":"HLOOKUP(BZ$7+0.5,$I$66:$DJ$120,ROWS($A$10:$A60)+2,FALSE)","v":936},{"$f":"HLOOKUP(CA$7+0.5,$I$66:$DJ$120,ROWS($A$10:$A60)+2,FALSE)","v":696},{"$f":"HLOOKUP(CB$7+0.5,$I$66:$DJ$120,ROWS($A$10:$A60)+2,FALSE)","v":215},{"$f":"HLOOKUP(CC$7+0.5,$I$66:$DJ$120,ROWS($A$10:$A60)+2,FALSE)","v":302},{"$f":"HLOOKUP(CD$7+0.5,$I$66:$DJ$120,ROWS($A$10:$A60)+2,FALSE)","v":427},{"$f":"HLOOKUP(CE$7+0.5,$I$66:$DJ$120,ROWS($A$10:$A60)+2,FALSE)","v":700},{"$f":"HLOOKUP(CF$7+0.5,$I$66:$DJ$120,ROWS($A$10:$A60)+2,FALSE)","v":1121},{"$f":"HLOOKUP(CG$7+0.5,$I$66:$DJ$120,ROWS($A$10:$A60)+2,FALSE)","v":1567},{"$f":"HLOOKUP(CH$7+0.5,$I$66:$DJ$120,ROWS($A$10:$A60)+2,FALSE)","v":2575},{"$f":"HLOOKUP(CI$7+0.5,$I$66:$DJ$120,ROWS($A$10:$A60)+2,FALSE)","v":987},{"$f":"HLOOKUP(CJ$7+0.5,$I$66:$DJ$120,ROWS($A$10:$A60)+2,FALSE)","v":890},{"$f":"HLOOKUP(CK$7+0.5,$I$66:$DJ$120,ROWS($A$10:$A60)+2,FALSE)","v":164},{"$f":"HLOOKUP(CL$7+0.5,$I$66:$DJ$120,ROWS($A$10:$A60)+2,FALSE)","v":685},{"$f":"HLOOKUP(CM$7+0.5,$I$66:$DJ$120,ROWS($A$10:$A60)+2,FALSE)","v":897},{"$f":"HLOOKUP(CN$7+0.5,$I$66:$DJ$120,ROWS($A$10:$A60)+2,FALSE)","v":116},{"$f":"HLOOKUP(CO$7+0.5,$I$66:$DJ$120,ROWS($A$10:$A60)+2,FALSE)","v":422},{"$f":"HLOOKUP(CP$7+0.5,$I$66:$DJ$120,ROWS($A$10:$A60)+2,FALSE)","v":115},{"$f":"HLOOKUP(CQ$7+0.5,$I$66:$DJ$120,ROWS($A$10:$A60)+2,FALSE)","v":512},{"$f":"HLOOKUP(CR$7+0.5,$I$66:$DJ$120,ROWS($A$10:$A60)+2,FALSE)","v":1007},{"$f":"HLOOKUP(CS$7+0.5,$I$66:$DJ$120,ROWS($A$10:$A60)+2,FALSE)","v":373},{"$f":"HLOOKUP(CT$7+0.5,$I$66:$DJ$120,ROWS($A$10:$A60)+2,FALSE)","v":1063},{"$f":"HLOOKUP(CU$7+0.5,$I$66:$DJ$120,ROWS($A$10:$A60)+2,FALSE)","v":137},{"$f":"HLOOKUP(CV$7+0.5,$I$66:$DJ$120,ROWS($A$10:$A60)+2,FALSE)","v":768},{"$f":"HLOOKUP(CW$7+0.5,$I$66:$DJ$120,ROWS($A$10:$A60)+2,FALSE)","v":1428},{"$f":"HLOOKUP(CX$7+0.5,$I$66:$DJ$120,ROWS($A$10:$A60)+2,FALSE)","v":218},{"$f":"HLOOKUP(CY$7+0.5,$I$66:$DJ$120,ROWS($A$10:$A60)+2,FALSE)","v":626},{"$f":"HLOOKUP(CZ$7+0.5,$I$66:$DJ$120,ROWS($A$10:$A60)+2,FALSE)","v":159},{"$f":"HLOOKUP(DA$7+0.5,$I$66:$DJ$120,ROWS($A$10:$A60)+2,FALSE)","v":469},{"$f":"HLOOKUP(DB$7+0.5,$I$66:$DJ$120,ROWS($A$10:$A60)+2,FALSE)","v":983},{"$f":"HLOOKUP(DC$7+0.5,$I$66:$DJ$120,ROWS($A$10:$A60)+2,FALSE)","v":398},{"$f":"HLOOKUP(DD$7+0.5,$I$66:$DJ$120,ROWS($A$10:$A60)+2,FALSE)","v":123},{"$f":"HLOOKUP(DE$7+0.5,$I$66:$DJ$120,ROWS($A$10:$A60)+2,FALSE)","v":543},{"$f":"HLOOKUP(DF$7+0.5,$I$66:$DJ$120,ROWS($A$10:$A60)+2,FALSE)","v":634},{"$f":"HLOOKUP(DG$7+0.5,$I$66:$DJ$120,ROWS($A$10:$A60)+2,FALSE)","v":229},{"$f":"HLOOKUP(DH$7+0.5,$I$66:$DJ$120,ROWS($A$10:$A60)+2,FALSE)","v":"N/A"},{"$f":"HLOOKUP(DI$7+0.5,$I$66:$DJ$120,ROWS($A$10:$A60)+2,FALSE)","v":104},{"$f":"HLOOKUP(DJ$7+0.5,$I$66:$DJ$120,ROWS($A$10:$A60)+2,FALSE)","v":478}]
[null,"Wyoming",556954,1133,444614,8794,82255,8679,{"$f":"HLOOKUP(I$7,$I$66:$DJ$120,ROWS($A$10:$A61)+2,FALSE)","v":28046},{"$f":"HLOOKUP(J$7,$I$66:$DJ$120,ROWS($A$10:$A61)+2,FALSE)","v":172},{"$f":"HLOOKUP(K$7,$I$66:$DJ$120,ROWS($A$10:$A61)+2,FALSE)","v":0},{"$f":"HLOOKUP(L$7,$I$66:$DJ$120,ROWS($A$10:$A61)+2,FALSE)","v":1511},{"$f":"HLOOKUP(M$7,$I$66:$DJ$120,ROWS($A$10:$A61)+2,FALSE)","v":0},{"$f":"HLOOKUP(N$7,$I$66:$DJ$120,ROWS($A$10:$A61)+2,FALSE)","v":2784},{"$f":"HLOOKUP(O$7,$I$66:$DJ$120,ROWS($A$10:$A61)+2,FALSE)","v":4390},{"$f":"HLOOKUP(P$7,$I$66:$DJ$120,ROWS($A$10:$A61)+2,FALSE)","v":0},{"$f":"HLOOKUP(Q$7,$I$66:$DJ$120,ROWS($A$10:$A61)+2,FALSE)","v":0},{"$f":"HLOOKUP(R$7,$I$66:$DJ$120,ROWS($A$10:$A61)+2,FALSE)","v":0},{"$f":"HLOOKUP(S$7,$I$66:$DJ$120,ROWS($A$10:$A61)+2,FALSE)","v":396},{"$f":"HLOOKUP(T$7,$I$66:$DJ$120,ROWS($A$10:$A61)+2,FALSE)","v":745},{"$f":"HLOOKUP(U$7,$I$66:$DJ$120,ROWS($A$10:$A61)+2,FALSE)","v":25},{"$f":"HLOOKUP(V$7,$I$66:$DJ$120,ROWS($A$10:$A61)+2,FALSE)","v":942},{"$f":"HLOOKUP(W$7,$I$66:$DJ$120,ROWS($A$10:$A61)+2,FALSE)","v":415},{"$f":"HLOOKUP(X$7,$I$66:$DJ$120,ROWS($A$10:$A61)+2,FALSE)","v":132},{"$f":"HLOOKUP(Y$7,$I$66:$DJ$120,ROWS($A$10:$A61)+2,FALSE)","v":462},{"$f":"HLOOKUP(Z$7,$I$66:$DJ$120,ROWS($A$10:$A61)+2,FALSE)","v":532},{"$f":"HLOOKUP(AA$7,$I$66:$DJ$120,ROWS($A$10:$A61)+2,FALSE)","v":519},{"$f":"HLOOKUP(AB$7,$I$66:$DJ$120,ROWS($A$10:$A61)+2,FALSE)","v":107},{"$f":"HLOOKUP(AC$7,$I$66:$DJ$120,ROWS($A$10:$A61)+2,FALSE)","v":0},{"$f":"HLOOKUP(AD$7,$I$66:$DJ$120,ROWS($A$10:$A61)+2,FALSE)","v":51},{"$f":"HLOOKUP(AE$7,$I$66:$DJ$120,ROWS($A$10:$A61)+2,FALSE)","v":252},{"$f":"HLOOKUP(AF$7,$I$66:$DJ$120,ROWS($A$10:$A61)+2,FALSE)","v":570},{"$f":"HLOOKUP(AG$7,$I$66:$DJ$120,ROWS($A$10:$A61)+2,FALSE)","v":218},{"$f":"HLOOKUP(AH$7,$I$66:$DJ$120,ROWS($A$10:$A61)+2,FALSE)","v":0},{"$f":"HLOOKUP(AI$7,$I$66:$DJ$120,ROWS($A$10:$A61)+2,FALSE)","v":421},{"$f":"HLOOKUP(AJ$7,$I$66:$DJ$120,ROWS($A$10:$A61)+2,FALSE)","v":2528},{"$f":"HLOOKUP(AK$7,$I$66:$DJ$120,ROWS($A$10:$A61)+2,FALSE)","v":1711},{"$f":"HLOOKUP(AL$7,$I$66:$DJ$120,ROWS($A$10:$A61)+2,FALSE)","v":416},{"$f":"HLOOKUP(AM$7,$I$66:$DJ$120,ROWS($A$10:$A61)+2,FALSE)","v":0},{"$f":"HLOOKUP(AN$7,$I$66:$DJ$120,ROWS($A$10:$A61)+2,FALSE)","v":0},{"$f":"HLOOKUP(AO$7,$I$66:$DJ$120,ROWS($A$10:$A61)+2,FALSE)","v":707},{"$f":"HLOOKUP(AP$7,$I$66:$DJ$120,ROWS($A$10:$A61)+2,FALSE)","v":146},{"$f":"HLOOKUP(AQ$7,$I$66:$DJ$120,ROWS($A$10:$A61)+2,FALSE)","v":34},{"$f":"HLOOKUP(AR$7,$I$66:$DJ$120,ROWS($A$10:$A61)+2,FALSE)","v":233},{"$f":"HLOOKUP(AS$7,$I$66:$DJ$120,ROWS($A$10:$A61)+2,FALSE)","v":56},{"$f":"HLOOKUP(AT$7,$I$66:$DJ$120,ROWS($A$10:$A61)+2,FALSE)","v":62},{"$f":"HLOOKUP(AU$7,$I$66:$DJ$120,ROWS($A$10:$A61)+2,FALSE)","v":14},{"$f":"HLOOKUP(AV$7,$I$66:$DJ$120,ROWS($A$10:$A61)+2,FALSE)","v":95},{"$f":"HLOOKUP(AW$7,$I$66:$DJ$120,ROWS($A$10:$A61)+2,FALSE)","v":0},{"$f":"HLOOKUP(AX$7,$I$66:$DJ$120,ROWS($A$10:$A61)+2,FALSE)","v":220},{"$f":"HLOOKUP(AY$7,$I$66:$DJ$120,ROWS($A$10:$A61)+2,FALSE)","v":258},{"$f":"HLOOKUP(AZ$7,$I$66:$DJ$120,ROWS($A$10:$A61)+2,FALSE)","v":495},{"$f":"HLOOKUP(BA$7,$I$66:$DJ$120,ROWS($A$10:$A61)+2,FALSE)","v":1990},{"$f":"HLOOKUP(BB$7,$I$66:$DJ$120,ROWS($A$10:$A61)+2,FALSE)","v":3226},{"$f":"HLOOKUP(BC$7,$I$66:$DJ$120,ROWS($A$10:$A61)+2,FALSE)","v":75},{"$f":"HLOOKUP(BD$7,$I$66:$DJ$120,ROWS($A$10:$A61)+2,FALSE)","v":580},{"$f":"HLOOKUP(BE$7,$I$66:$DJ$120,ROWS($A$10:$A61)+2,FALSE)","v":556},{"$f":"HLOOKUP(BF$7,$I$66:$DJ$120,ROWS($A$10:$A61)+2,FALSE)","v":0},{"$f":"HLOOKUP(BG$7,$I$66:$DJ$120,ROWS($A$10:$A61)+2,FALSE)","v":0},{"$f":"HLOOKUP(BH$7,$I$66:$DJ$120,ROWS($A$10:$A61)+2,FALSE)","v":"N/A"},{"$f":"HLOOKUP(BI$7,$I$66:$DJ$120,ROWS($A$10:$A61)+2,FALSE)","v":0},{"$f":"HLOOKUP(BJ$7+0.5,$I$66:$DJ$120,ROWS($A$10:$A61)+2,FALSE)","v":4226},{"$f":"HLOOKUP(BK$7+0.5,$I$66:$DJ$120,ROWS($A$10:$A61)+2,FALSE)","v":257},{"$f":"HLOOKUP(BL$7+0.5,$I$66:$DJ$120,ROWS($A$10:$A61)+2,FALSE)","v":269},{"$f":"HLOOKUP(BM$7+0.5,$I$66:$DJ$120,ROWS($A$10:$A61)+2,FALSE)","v":915},{"$f":"HLOOKUP(BN$7+0.5,$I$66:$DJ$120,ROWS($A$10:$A61)+2,FALSE)","v":269},{"$f":"HLOOKUP(BO$7+0.5,$I$66:$DJ$120,ROWS($A$10:$A61)+2,FALSE)","v":1647},{"$f":"HLOOKUP(BP$7+0.5,$I$66:$DJ$120,ROWS($A$10:$A61)+2,FALSE)","v":1357},{"$f":"HLOOKUP(BQ$7+0.5,$I$66:$DJ$120,ROWS($A$10:$A61)+2,FALSE)","v":269},{"$f":"HLOOKUP(BR$7+0.5,$I$66:$DJ$120,ROWS($A$10:$A61)+2,FALSE)","v":269},{"$f":"HLOOKUP(BS$7+0.5,$I$66:$DJ$120,ROWS($A$10:$A61)+2,FALSE)","v":269},{"$f":"HLOOKUP(BT$7+0.5,$I$66:$DJ$120,ROWS($A$10:$A61)+2,FALSE)","v":347},{"$f":"HLOOKUP(BU$7+0.5,$I$66:$DJ$120,ROWS($A$10:$A61)+2,FALSE)","v":553},{"$f":"HLOOKUP(BV$7+0.5,$I$66:$DJ$120,ROWS($A$10:$A61)+2,FALSE)","v":41},{"$f":"HLOOKUP(BW$7+0.5,$I$66:$DJ$120,ROWS($A$10:$A61)+2,FALSE)","v":849},{"$f":"HLOOKUP(BX$7+0.5,$I$66:$DJ$120,ROWS($A$10:$A61)+2,FALSE)","v":444},{"$f":"HLOOKUP(BY$7+0.5,$I$66:$DJ$120,ROWS($A$10:$A61)+2,FALSE)","v":217},{"$f":"HLOOKUP(BZ$7+0.5,$I$66:$DJ$120,ROWS($A$10:$A61)+2,FALSE)","v":641},{"$f":"HLOOKUP(CA$7+0.5,$I$66:$DJ$120,ROWS($A$10:$A61)+2,FALSE)","v":514},{"$f":"HLOOKUP(CB$7+0.5,$I$66:$DJ$120,ROWS($A$10:$A61)+2,FALSE)","v":743},{"$f":"HLOOKUP(CC$7+0.5,$I$66:$DJ$120,ROWS($A$10:$A61)+2,FALSE)","v":144},{"$f":"HLOOKUP(CD$7+0.5,$I$66:$DJ$120,ROWS($A$10:$A61)+2,FALSE)","v":269},{"$f":"HLOOKUP(CE$7+0.5,$I$66:$DJ$120,ROWS($A$10:$A61)+2,FALSE)","v":92},{"$f":"HLOOKUP(CF$7+0.5,$I$66:$DJ$120,ROWS($A$10:$A61)+2,FALSE)","v":470},{"$f":"HLOOKUP(CG$7+0.5,$I$66:$DJ$120,ROWS($A$10:$A61)+2,FALSE)","v":597},{"$f":"HLOOKUP(CH$7+0.5,$I$66:$DJ$120,ROWS($A$10:$A61)+2,FALSE)","v":277},{"$f":"HLOOKUP(CI$7+0.5,$I$66:$DJ$120,ROWS($A$10:$A61)+2,FALSE)","v":269},{"$f":"HLOOKUP(CJ$7+0.5,$I$66:$DJ$120,ROWS($A$10:$A61)+2,FALSE)","v":418},{"$f":"HLOOKUP(CK$7+0.5,$I$66:$DJ$120,ROWS($A$10:$A61)+2,FALSE)","v":1395},{"$f":"HLOOKUP(CL$7+0.5,$I$66:$DJ$120,ROWS($A$10:$A61)+2,FALSE)","v":1394},{"$f":"HLOOKUP(CM$7+0.5,$I$66:$DJ$120,ROWS($A$10:$A61)+2,FALSE)","v":383},{"$f":"HLOOKUP(CN$7+0.5,$I$66:$DJ$120,ROWS($A$10:$A61)+2,FALSE)","v":269},{"$f":"HLOOKUP(CO$7+0.5,$I$66:$DJ$120,ROWS($A$10:$A61)+2,FALSE)","v":269},{"$f":"HLOOKUP(CP$7+0.5,$I$66:$DJ$120,ROWS($A$10:$A61)+2,FALSE)","v":527},{"$f":"HLOOKUP(CQ$7+0.5,$I$66:$DJ$120,ROWS($A$10:$A61)+2,FALSE)","v":144},{"$f":"HLOOKUP(CR$7+0.5,$I$66:$DJ$120,ROWS($A$10:$A61)+2,FALSE)","v":84},{"$f":"HLOOKUP(CS$7+0.5,$I$66:$DJ$120,ROWS($A$10:$A61)+2,FALSE)","v":228},{"$f":"HLOOKUP(CT$7+0.5,$I$66:$DJ$120,ROWS($A$10:$A61)+2,FALSE)","v":90},{"$f":"HLOOKUP(CU$7+0.5,$I$66:$DJ$120,ROWS($A$10:$A61)+2,FALSE)","v":79},{"$f":"HLOOKUP(CV$7+0.5,$I$66:$DJ$120,ROWS($A$10:$A61)+2,FALSE)","v":25},{"$f":"HLOOKUP(CW$7+0.5,$I$66:$DJ$120,ROWS($A$10:$A61)+2,FALSE)","v":118},{"$f":"HLOOKUP(CX$7+0.5,$I$66:$DJ$120,ROWS($A$10:$A61)+2,FALSE)","v":269},{"$f":"HLOOKUP(CY$7+0.5,$I$66:$DJ$120,ROWS($A$10:$A61)+2,FALSE)","v":235},{"$f":"HLOOKUP(CZ$7+0.5,$I$66:$DJ$120,ROWS($A$10:$A61)+2,FALSE)","v":183},{"$f":"HLOOKUP(DA$7+0.5,$I$66:$DJ$120,ROWS($A$10:$A61)+2,FALSE)","v":638},{"$f":"HLOOKUP(DB$7+0.5,$I$66:$DJ$120,ROWS($A$10:$A61)+2,FALSE)","v":1143},{"$f":"HLOOKUP(DC$7+0.5,$I$66:$DJ$120,ROWS($A$10:$A61)+2,FALSE)","v":1437},{"$f":"HLOOKUP(DD$7+0.5,$I$66:$DJ$120,ROWS($A$10:$A61)+2,FALSE)","v":137},{"$f":"HLOOKUP(DE$7+0.5,$I$66:$DJ$120,ROWS($A$10:$A61)+2,FALSE)","v":459},{"$f":"HLOOKUP(DF$7+0.5,$I$66:$DJ$120,ROWS($A$10:$A61)+2,FALSE)","v":469},{"$f":"HLOOKUP(DG$7+0.5,$I$66:$DJ$120,ROWS($A$10:$A61)+2,FALSE)","v":269},{"$f":"HLOOKUP(DH$7+0.5,$I$66:$DJ$120,ROWS($A$10:$A61)+2,FALSE)","v":269},{"$f":"HLOOKUP(DI$7+0.5,$I$66:$DJ$120,ROWS($A$10:$A61)+2,FALSE)","v":"N/A"},{"$f":"HLOOKUP(DJ$7+0.5,$I$66:$DJ$120,ROWS($A$10:$A61)+2,FALSE)","v":269}]
[null,"Puerto Rico",3676493,2933,3392179,13112,247593,12844,{"$f":"HLOOKUP(I$7,$I$66:$DJ$120,ROWS($A$10:$A62)+2,FALSE)","v":31732},{"$f":"HLOOKUP(J$7,$I$66:$DJ$120,ROWS($A$10:$A62)+2,FALSE)","v":629},{"$f":"HLOOKUP(K$7,$I$66:$DJ$120,ROWS($A$10:$A62)+2,FALSE)","v":156},{"$f":"HLOOKUP(L$7,$I$66:$DJ$120,ROWS($A$10:$A62)+2,FALSE)","v":288},{"$f":"HLOOKUP(M$7,$I$66:$DJ$120,ROWS($A$10:$A62)+2,FALSE)","v":0},{"$f":"HLOOKUP(N$7,$I$66:$DJ$120,ROWS($A$10:$A62)+2,FALSE)","v":1177},{"$f":"HLOOKUP(O$7,$I$66:$DJ$120,ROWS($A$10:$A62)+2,FALSE)","v":388},{"$f":"HLOOKUP(P$7,$I$66:$DJ$120,ROWS($A$10:$A62)+2,FALSE)","v":899},{"$f":"HLOOKUP(Q$7,$I$66:$DJ$120,ROWS($A$10:$A62)+2,FALSE)","v":0},{"$f":"HLOOKUP(R$7,$I$66:$DJ$120,ROWS($A$10:$A62)+2,FALSE)","v":0},{"$f":"HLOOKUP(S$7,$I$66:$DJ$120,ROWS($A$10:$A62)+2,FALSE)","v":11262},{"$f":"HLOOKUP(T$7,$I$66:$DJ$120,ROWS($A$10:$A62)+2,FALSE)","v":207},{"$f":"HLOOKUP(U$7,$I$66:$DJ$120,ROWS($A$10:$A62)+2,FALSE)","v":0},{"$f":"HLOOKUP(V$7,$I$66:$DJ$120,ROWS($A$10:$A62)+2,FALSE)","v":0},{"$f":"HLOOKUP(W$7,$I$66:$DJ$120,ROWS($A$10:$A62)+2,FALSE)","v":1642},{"$f":"HLOOKUP(X$7,$I$66:$DJ$120,ROWS($A$10:$A62)+2,FALSE)","v":109},{"$f":"HLOOKUP(Y$7,$I$66:$DJ$120,ROWS($A$10:$A62)+2,FALSE)","v":0},{"$f":"HLOOKUP(Z$7,$I$66:$DJ$120,ROWS($A$10:$A62)+2,FALSE)","v":112},{"$f":"HLOOKUP(AA$7,$I$66:$DJ$120,ROWS($A$10:$A62)+2,FALSE)","v":254},{"$f":"HLOOKUP(AB$7,$I$66:$DJ$120,ROWS($A$10:$A62)+2,FALSE)","v":109},{"$f":"HLOOKUP(AC$7,$I$66:$DJ$120,ROWS($A$10:$A62)+2,FALSE)","v":0},{"$f":"HLOOKUP(AD$7,$I$66:$DJ$120,ROWS($A$10:$A62)+2,FALSE)","v":59},{"$f":"HLOOKUP(AE$7,$I$66:$DJ$120,ROWS($A$10:$A62)+2,FALSE)","v":2004},{"$f":"HLOOKUP(AF$7,$I$66:$DJ$120,ROWS($A$10:$A62)+2,FALSE)","v":89},{"$f":"HLOOKUP(AG$7,$I$66:$DJ$120,ROWS($A$10:$A62)+2,FALSE)","v":50},{"$f":"HLOOKUP(AH$7,$I$66:$DJ$120,ROWS($A$10:$A62)+2,FALSE)","v":170},{"$f":"HLOOKUP(AI$7,$I$66:$DJ$120,ROWS($A$10:$A62)+2,FALSE)","v":221},{"$f":"HLOOKUP(AJ$7,$I$66:$DJ$120,ROWS($A$10:$A62)+2,FALSE)","v":0},{"$f":"HLOOKUP(AK$7,$I$66:$DJ$120,ROWS($A$10:$A62)+2,FALSE)","v":0},{"$f":"HLOOKUP(AL$7,$I$66:$DJ$120,ROWS($A$10:$A62)+2,FALSE)","v":0},{"$f":"HLOOKUP(AM$7,$I$66:$DJ$120,ROWS($A$10:$A62)+2,FALSE)","v":0},{"$f":"HLOOKUP(AN$7,$I$66:$DJ$120,ROWS($A$10:$A62)+2,FALSE)","v":1244},{"$f":"HLOOKUP(AO$7,$I$66:$DJ$120,ROWS($A$10:$A62)+2,FALSE)","v":364},{"$f":"HLOOKUP(AP$7,$I$66:$DJ$120,ROWS($A$10:$A62)+2,FALSE)","v":4768},{"$f":"HLOOKUP(AQ$7,$I$66:$DJ$120,ROWS($A$10:$A62)+2,FALSE)","v":146},{"$f":"HLOOKUP(AR$7,$I$66:$DJ$120,ROWS($A$10:$A62)+2,FALSE)","v":0},{"$f":"HLOOKUP(AS$7,$I$66:$DJ$120,ROWS($A$10:$A62)+2,FALSE)","v":69},{"$f":"HLOOKUP(AT$7,$I$66:$DJ$120,ROWS($A$10:$A62)+2,FALSE)","v":0},{"$f":"HLOOKUP(AU$7,$I$66:$DJ$120,ROWS($A$10:$A62)+2,FALSE)","v":0},{"$f":"HLOOKUP(AV$7,$I$66:$DJ$120,ROWS($A$10:$A62)+2,FALSE)","v":1516},{"$f":"HLOOKUP(AW$7,$I$66:$DJ$120,ROWS($A$10:$A62)+2,FALSE)","v":684},{"$f":"HLOOKUP(AX$7,$I$66:$DJ$120,ROWS($A$10:$A62)+2,FALSE)","v":109},{"$f":"HLOOKUP(AY$7,$I$66:$DJ$120,ROWS($A$10:$A62)+2,FALSE)","v":0},{"$f":"HLOOKUP(AZ$7,$I$66:$DJ$120,ROWS($A$10:$A62)+2,FALSE)","v":30},{"$f":"HLOOKUP(BA$7,$I$66:$DJ$120,ROWS($A$10:$A62)+2,FALSE)","v":977},{"$f":"HLOOKUP(BB$7,$I$66:$DJ$120,ROWS($A$10:$A62)+2,FALSE)","v":882},{"$f":"HLOOKUP(BC$7,$I$66:$DJ$120,ROWS($A$10:$A62)+2,FALSE)","v":0},{"$f":"HLOOKUP(BD$7,$I$66:$DJ$120,ROWS($A$10:$A62)+2,FALSE)","v":392},{"$f":"HLOOKUP(BE$7,$I$66:$DJ$120,ROWS($A$10:$A62)+2,FALSE)","v":0},{"$f":"HLOOKUP(BF$7,$I$66:$DJ$120,ROWS($A$10:$A62)+2,FALSE)","v":141},{"$f":"HLOOKUP(BG$7,$I$66:$DJ$120,ROWS($A$10:$A62)+2,FALSE)","v":585},{"$f":"HLOOKUP(BH$7,$I$66:$DJ$120,ROWS($A$10:$A62)+2,FALSE)","v":0},{"$f":"HLOOKUP(BI$7,$I$66:$DJ$120,ROWS($A$10:$A62)+2,FALSE)","v":"N/A"},{"$f":"HLOOKUP(BJ$7+0.5,$I$66:$DJ$120,ROWS($A$10:$A62)+2,FALSE)","v":4381},{"$f":"HLOOKUP(BK$7+0.5,$I$66:$DJ$120,ROWS($A$10:$A62)+2,FALSE)","v":711},{"$f":"HLOOKUP(BL$7+0.5,$I$66:$DJ$120,ROWS($A$10:$A62)+2,FALSE)","v":259},{"$f":"HLOOKUP(BM$7+0.5,$I$66:$DJ$120,ROWS($A$10:$A62)+2,FALSE)","v":356},{"$f":"HLOOKUP(BN$7+0.5,$I$66:$DJ$120,ROWS($A$10:$A62)+2,FALSE)","v":285},{"$f":"HLOOKUP(BO$7+0.5,$I$66:$DJ$120,ROWS($A$10:$A62)+2,FALSE)","v":949},{"$f":"HLOOKUP(BP$7+0.5,$I$66:$DJ$120,ROWS($A$10:$A62)+2,FALSE)","v":492},{"$f":"HLOOKUP(BQ$7+0.5,$I$66:$DJ$120,ROWS($A$10:$A62)+2,FALSE)","v":653},{"$f":"HLOOKUP(BR$7+0.5,$I$66:$DJ$120,ROWS($A$10:$A62)+2,FALSE)","v":285},{"$f":"HLOOKUP(BS$7+0.5,$I$66:$DJ$120,ROWS($A$10:$A62)+2,FALSE)","v":285},{"$f":"HLOOKUP(BT$7+0.5,$I$66:$DJ$120,ROWS($A$10:$A62)+2,FALSE)","v":2512},{"$f":"HLOOKUP(BU$7+0.5,$I$66:$DJ$120,ROWS($A$10:$A62)+2,FALSE)","v":334},{"$f":"HLOOKUP(BV$7+0.5,$I$66:$DJ$120,ROWS($A$10:$A62)+2,FALSE)","v":285},{"$f":"HLOOKUP(BW$7+0.5,$I$66:$DJ$120,ROWS($A$10:$A62)+2,FALSE)","v":285},{"$f":"HLOOKUP(BX$7+0.5,$I$66:$DJ$120,ROWS($A$10:$A62)+2,FALSE)","v":1175},{"$f":"HLOOKUP(BY$7+0.5,$I$66:$DJ$120,ROWS($A$10:$A62)+2,FALSE)","v":173},{"$f":"HLOOKUP(BZ$7+0.5,$I$66:$DJ$120,ROWS($A$10:$A62)+2,FALSE)","v":285},{"$f":"HLOOKUP(CA$7+0.5,$I$66:$DJ$120,ROWS($A$10:$A62)+2,FALSE)","v":184},{"$f":"HLOOKUP(CB$7+0.5,$I$66:$DJ$120,ROWS($A$10:$A62)+2,FALSE)","v":211},{"$f":"HLOOKUP(CC$7+0.5,$I$66:$DJ$120,ROWS($A$10:$A62)+2,FALSE)","v":130},{"$f":"HLOOKUP(CD$7+0.5,$I$66:$DJ$120,ROWS($A$10:$A62)+2,FALSE)","v":285},{"$f":"HLOOKUP(CE$7+0.5,$I$66:$DJ$120,ROWS($A$10:$A62)+2,FALSE)","v":106},{"$f":"HLOOKUP(CF$7+0.5,$I$66:$DJ$120,ROWS($A$10:$A62)+2,FALSE)","v":960},{"$f":"HLOOKUP(CG$7+0.5,$I$66:$DJ$120,ROWS($A$10:$A62)+2,FALSE)","v":149},{"$f":"HLOOKUP(CH$7+0.5,$I$66:$DJ$120,ROWS($A$10:$A62)+2,FALSE)","v":83},{"$f":"HLOOKUP(CI$7+0.5,$I$66:$DJ$120,ROWS($A$10:$A62)+2,FALSE)","v":198},{"$f":"HLOOKUP(CJ$7+0.5,$I$66:$DJ$120,ROWS($A$10:$A62)+2,FALSE)","v":258},{"$f":"HLOOKUP(CK$7+0.5,$I$66:$DJ$120,ROWS($A$10:$A62)+2,FALSE)","v":285},{"$f":"HLOOKUP(CL$7+0.5,$I$66:$DJ$120,ROWS($A$10:$A62)+2,FALSE)","v":285},{"$f":"HLOOKUP(CM$7+0.5,$I$66:$DJ$120,ROWS($A$10:$A62)+2,FALSE)","v":285},{"$f":"HLOOKUP(CN$7+0.5,$I$66:$DJ$120,ROWS($A$10:$A62)+2,FALSE)","v":285},{"$f":"HLOOKUP(CO$7+0.5,$I$66:$DJ$120,ROWS($A$10:$A62)+2,FALSE)","v":830},{"$f":"HLOOKUP(CP$7+0.5,$I$66:$DJ$120,ROWS($A$10:$A62)+2,FALSE)","v":603},{"$f":"HLOOKUP(CQ$7+0.5,$I$66:$DJ$120,ROWS($A$10:$A62)+2,FALSE)","v":1546},{"$f":"HLOOKUP(CR$7+0.5,$I$66:$DJ$120,ROWS($A$10:$A62)+2,FALSE)","v":240},{"$f":"HLOOKUP(CS$7+0.5,$I$66:$DJ$120,ROWS($A$10:$A62)+2,FALSE)","v":285},{"$f":"HLOOKUP(CT$7+0.5,$I$66:$DJ$120,ROWS($A$10:$A62)+2,FALSE)","v":127},{"$f":"HLOOKUP(CU$7+0.5,$I$66:$DJ$120,ROWS($A$10:$A62)+2,FALSE)","v":285},{"$f":"HLOOKUP(CV$7+0.5,$I$66:$DJ$120,ROWS($A$10:$A62)+2,FALSE)","v":285},{"$f":"HLOOKUP(CW$7+0.5,$I$66:$DJ$120,ROWS($A$10:$A62)+2,FALSE)","v":772},{"$f":"HLOOKUP(CX$7+0.5,$I$66:$DJ$120,ROWS($A$10:$A62)+2,FALSE)","v":829},{"$f":"HLOOKUP(CY$7+0.5,$I$66:$DJ$120,ROWS($A$10:$A62)+2,FALSE)","v":173},{"$f":"HLOOKUP(CZ$7+0.5,$I$66:$DJ$120,ROWS($A$10:$A62)+2,FALSE)","v":285},{"$f":"HLOOKUP(DA$7+0.5,$I$66:$DJ$120,ROWS($A$10:$A62)+2,FALSE)","v":56},{"$f":"HLOOKUP(DB$7+0.5,$I$66:$DJ$120,ROWS($A$10:$A62)+2,FALSE)","v":742},{"$f":"HLOOKUP(DC$7+0.5,$I$66:$DJ$120,ROWS($A$10:$A62)+2,FALSE)","v":1289},{"$f":"HLOOKUP(DD$7+0.5,$I$66:$DJ$120,ROWS($A$10:$A62)+2,FALSE)","v":285},{"$f":"HLOOKUP(DE$7+0.5,$I$66:$DJ$120,ROWS($A$10:$A62)+2,FALSE)","v":320},{"$f":"HLOOKUP(DF$7+0.5,$I$66:$DJ$120,ROWS($A$10:$A62)+2,FALSE)","v":285},{"$f":"HLOOKUP(DG$7+0.5,$I$66:$DJ$120,ROWS($A$10:$A62)+2,FALSE)","v":135},{"$f":"HLOOKUP(DH$7+0.5,$I$66:$DJ$120,ROWS($A$10:$A62)+2,FALSE)","v":815},{"$f":"HLOOKUP(DI$7+0.5,$I$66:$DJ$120,ROWS($A$10:$A62)+2,FALSE)","v":285},{"$f":"HLOOKUP(DJ$7+0.5,$I$66:$DJ$120,ROWS($A$10:$A62)+2,FALSE)","v":"N/A"}]
[]
[]
[]
[null,null,null,null,null,null,null,null,1,1.5,2,2.5,3,3.5,4,4.5,5,5.5,6,6.5,7,7.5,8,8.5,9,9.5,10,10.5,11,11.5,12,12.5,13,13.5,14,14.5,15,15.5,16,16.5,17,17.5,18,18.5,19,19.5,20,20.5,21,21.5,22,22.5,23,23.5,24,24.5,25,25.5,26,26.5,27,27.5,28,28.5,29,29.5,30,30.5,31,31.5,32,32.5,33,33.5,34,34.5,35,35.5,36,36.5,37,37.5,38,38.5,39,39.5,40,40.5,41,41.5,42,42.5,43,43.5,44,44.5,45,45.5,46,46.5,47,47.5,48,48.5,49,49.5,50,50.5,51,51.5,52,52.5,53,53.5]
[null,null,null,null,null,null,null,null,"Estimate","MOE","Estimate","MOE","Estimate","MOE","Estimate","MOE","Estimate","MOE","Estimate","MOE","Estimate","MOE","Estimate","MOE","Estimate","MOE","Estimate","MOE","Estimate","MOE","Estimate","MOE","Estimate","MOE","Estimate","MOE","Estimate","MOE","Estimate","MOE","Estimate","MOE","Estimate","MOE","Estimate","MOE","Estimate","MOE","Estimate","MOE","Estimate","MOE","Estimate","MOE","Estimate","MOE","Estimate","MOE","Estimate","MOE","Estimate","MOE","Estimate","MOE","Estimate","MOE","Estimate","MOE","Estimate","MOE","Estimate","MOE","Estimate","MOE","Estimate","MOE","Estimate","MOE","Estimate","MOE","Estimate","MOE","Estimate","MOE","Estimate","MOE","Estimate","MOE","Estimate","MOE","Estimate","MOE","Estimate","MOE","Estimate","MOE","Estimate","MOE","Estimate","MOE","Estimate","MOE","Estimate","MOE","Estimate","MOE","Estimate","MOE","Estimate","MOE","Estimate","MOE","Estimate","MOE"]
[null,null,null,null,null,null,null,null,6743229,69387,99221,8532,94692,9780,176768,9764,64264,6502,573988,20898,140620,8392,89360,8104,30055,4817,56052,5274,427853,16117,244992,13712,49218,5580,53122,6197,277579,14177,130170,9685,66922,5441,90681,7300,92999,8240,88131,8540,32209,4475,159866,9741,144152,8102,178207,11238,104765,7734,68363,7286,148055,11141,35870,4482,43531,5996,109409,10422,38399,4262,193972,11560,50438,5032,363139,16245,207025,11068,24450,3757,188013,11207,90616,7414,100185,8825,209810,10357,24948,3127,117569,9315,27915,3665,143135,9159,411641,16805,75541,7183,18380,3009,232002,11248,166162,10010,49349,5605,111240,9166,28186,3185,59885,6923]
[null,null,null,null,null,null,null,null,108723,8781,"N/A","N/A",3013,1452,676,606,1481,1038,3827,1660,1278,778,454,694,811,694,211,186,15062,3138,21644,3955,267,440,304,399,2503,1224,3945,1979,669,882,649,516,1967,1192,1901,868,97,158,716,458,435,396,2334,1294,386,358,7233,2367,1373,1180,229,182,169,286,265,297,0,273,356,285,650,749,3686,2920,2371,945,169,213,2222,931,880,609,485,435,1477,696,0,273,2368,1142,31,62,7409,1926,6500,2016,1336,1129,0,273,2490,1026,1171,756,41,73,1155,895,27,52,228,265]
[null,null,null,null,null,null,null,null,36326,3708,477,790,"N/A","N/A",1354,805,47,78,3906,1041,1930,866,0,246,0,246,14,23,2315,1026,1251,902,1705,1289,895,524,388,293,9,24,262,349,106,107,1440,1506,100,171,574,655,704,460,107,183,923,814,530,409,263,386,0,246,616,507,215,259,240,247,316,368,413,501,421,446,255,206,698,587,69,89,156,213,1455,971,1793,1104,126,164,0,246,121,153,531,817,477,341,4123,1774,1274,926,353,429,714,681,2421,790,0,246,158,198,81,131,19,30]
[null,null,null,null,null,null,null,null,222725,11873,416,305,3109,1297,"N/A","N/A",689,415,47164,6018,7687,2494,479,386,738,774,0,305,7712,2149,4261,1828,1966,928,2147,984,12250,3263,2690,1358,3008,1405,1935,1008,1705,928,2014,1697,241,308,1284,1052,1449,975,6354,1796,5421,1542,272,238,4567,1621,1343,1038,1750,1130,10342,3881,64,105,1782,762,4419,1430,6618,2661,4463,1627,826,612,5225,1513,2910,1310,5430,1887,5535,2842,403,336,2310,1189,1351,843,3061,1643,14705,3301,7164,3154,664,498,3413,1613,12645,2459,595,563,5556,1827,593,393,599,771]
[null,null,null,null,null,null,null,null,79127,7901,1405,1001,934,798,777,557,"N/A","N/A",4457,1991,2535,1149,451,315,0,273,154,264,3578,1239,3921,2077,129,166,618,754,3221,1474,722,498,85,143,3611,1704,2540,1895,4012,1625,0,273,306,254,190,196,1506,674,222,153,2764,1337,7320,2181,85,159,394,538,67,104,0,273,77,130,0,273,289,336,1561,900,0,273,1137,811,8607,3434,239,174,731,570,0,273,1496,983,243,264,2653,1121,13707,2911,361,322,0,273,494,382,264,228,0,273,821,503,443,513,87,146]
[null,null,null,null,null,null,null,null,444749,18415,3364,1977,9579,2911,33854,4816,4172,1340,"N/A","N/A",15662,3236,4631,1802,643,408,3683,1306,20362,4008,8820,2545,9528,2191,5719,1572,16482,2806,6550,1860,3163,1259,3857,1813,3394,1797,2989,1207,1796,1139,10626,2848,11969,2774,10435,2487,5095,1319,2757,1338,6921,2357,3009,1511,3062,1860,27724,4878,1614,1059,10108,2848,4632,1266,20981,2977,9593,2005,392,343,8170,2399,5708,1591,20913,3580,9948,1991,526,264,5016,2183,1604,1117,4349,1174,36582,5299,10653,2235,525,369,14232,2597,30544,4481,1446,919,6031,2181,1336,664,1223,1128]
[null,null,null,null,null,null,null,null,186366,9897,954,803,2225,1220,12287,2324,1034,739,26089,4183,"N/A","N/A",459,360,486,486,479,381,8849,2300,6445,2553,2355,1220,839,572,6950,1968,3296,1584,2140,1179,4308,1577,1961,1194,968,664,532,385,1532,978,2242,778,4587,1679,2878,1093,1277,883,1978,803,2042,1490,4065,1455,4131,1784,791,521,1259,537,3921,1326,4594,1518,2940,1376,802,598,2838,1325,3464,1440,4330,1962,3928,1124,192,248,1231,796,1847,826,1628,706,22253,4494,4748,1658,350,246,2739,1077,7583,3004,623,493,2499,1153,4418,1439,874,880]
[null,null,null,null,null,null,null,null,77333,6651,896,891,0,281,664,484,334,517,4479,1653,547,487,"N/A","N/A",149,227,331,343,9207,2532,748,467,182,171,147,130,3391,1847,1074,798,108,131,0,281,400,430,0,281,528,447,1531,814,8510,2107,770,486,934,659,67,111,42,68,0,281,0,281,507,424,1049,628,3475,1175,112,189,20727,3325,1345,587,0,281,1296,710,145,171,640,592,1955,808,1728,796,1140,627,0,281,430,389,1887,1100,0,281,458,419,1735,691,2084,1631,442,674,1092,1321,47,78,2027,1233]
[null,null,null,null,null,null,null,null,30759,4030,128,211,68,111,60,78,0,265,353,290,178,249,714,693,"N/A","N/A",432,467,2362,996,585,575,0,265,0,265,612,583,0,265,0,265,28,47,163,273,0,265,294,406,4969,1144,689,538,61,102,55,92,0,265,539,842,73,120,0,265,106,183,139,246,3678,935,59,98,4251,1555,424,466,0,265,325,339,0,265,0,265,7318,2368,149,241,195,272,0,265,146,248,178,313,0,265,0,265,1051,538,377,280,0,265,0,265,0,265,954,1095]
[null,null,null,null,null,null,null,null,51244,4828,360,418,591,529,662,466,155,195,4205,1255,656,637,926,592,0,292,"N/A","N/A",1100,609,1597,795,0,292,0,292,615,373,711,461,392,377,83,137,94,155,0,292,76,121,13503,2647,1376,540,126,153,87,105,0,292,272,371,0,292,62,103,0,292,137,136,1924,694,61,100,3852,1325,1897,1089,98,165,598,359,0,292,601,520,2378,771,249,206,380,339,0,292,591,543,1180,605,0,292,199,245,7915,1638,284,220,860,754,391,325,0,292,0,292]
[null,null,null,null,null,null,null,null,482889,22701,15830,3829,5887,2502,3907,1463,3611,1562,22130,3867,6428,1941,11183,2730,3099,1603,1110,564,"N/A","N/A",35615,5500,2021,990,884,747,17432,3007,9030,2849,2921,1091,4136,2062,6321,1902,7232,2781,5497,1861,13241,2929,13900,2269,21359,4622,5439,2349,7929,3596,7984,2232,338,289,1544,1314,7050,3281,3645,1193,22344,3256,900,872,55011,6848,19108,3464,794,720,21047,3825,3466,1518,1655,1187,19935,3976,1982,813,10759,2906,430,473,12882,2482,24039,5038,2833,1249,1442,935,20080,4137,3573,1239,5634,2872,8081,2929,191,258,12968,4149]
[null,null,null,null,null,null,null,null,249459,15858,13840,2473,3645,1932,2554,1303,599,436,8909,2412,3224,2058,2619,1473,837,753,1708,1278,49901,5558,"N/A","N/A",1040,658,414,478,9736,3665,2649,1023,1096,821,1355,1097,6525,2248,3645,1604,0,300,5382,1767,3910,2127,6857,1831,1169,718,2380,959,3072,1087,52,92,148,139,1155,684,162,161,4151,1203,826,509,12472,2568,15361,3426,0,300,9323,2446,2070,1458,843,626,6294,1914,43,70,15562,3592,557,540,14445,3273,11424,2574,380,291,361,458,8393,2087,4495,2034,358,295,3416,2022,102,118,1010,742]
[null,null,null,null,null,null,null,null,53581,6065,749,542,743,609,1398,849,0,275,12677,2325,1073,667,307,392,0,275,0,275,4599,2610,2013,1185,"N/A","N/A",42,70,715,412,192,209,68,118,387,345,95,159,88,151,89,145,990,737,1283,944,627,548,476,350,234,368,170,171,150,261,0,275,1925,1184,496,685,443,417,11,19,1339,794,1510,994,69,116,625,515,57,94,1834,958,553,478,644,829,322,378,267,380,142,205,6694,2760,467,369,0,275,2644,1136,2705,883,483,782,1168,1133,18,33,0,275]
[null,null,null,null,null,null,null,null,55638,6079,376,369,3264,1813,3086,2015,45,73,8932,2415,1372,867,0,267,0,267,144,233,612,508,313,280,123,206,"N/A","N/A",169,236,132,133,773,470,422,415,315,272,59,102,202,272,44,73,115,135,427,363,465,613,37,61,425,345,1509,584,0,267,2110,1061,109,147,97,148,694,811,155,169,134,164,96,112,325,261,711,702,3202,1259,172,206,0,267,0,267,296,375,1153,995,1746,951,8014,2403,0,267,611,662,10876,2438,133,158,233,292,1410,723,233,374]
[null,null,null,null,null,null,null,null,203959,11573,1397,596,1764,1078,5921,1897,1194,665,16205,3236,3850,1360,2264,1125,56,57,1047,581,8051,1715,6781,2524,1224,776,313,258,"N/A","N/A",21918,4147,9141,1866,1970,991,2921,831,1419,687,55,93,1985,1210,2811,1111,11865,2138,4300,1815,1093,861,16703,3325,928,937,546,373,2541,1214,206,202,2331,1262,996,709,8479,2555,5504,2479,1112,788,5103,1201,1459,777,1224,789,5190,1822,838,643,1565,787,292,264,3999,1131,12245,3113,658,427,260,257,3831,1241,1642,707,812,523,15364,2866,586,432,2055,820]
[null,null,null,null,null,null,null,null,127353,8463,1502,1110,177,143,2210,914,1548,1104,8959,2863,1362,658,544,404,0,267,181,156,5496,1564,1623,913,267,316,772,604,27950,4658,"N/A","N/A",1885,1191,1582,996,10643,2402,749,599,30,50,1641,950,103,135,9361,1837,916,385,270,255,3893,2531,164,201,705,654,227,239,114,134,1876,1526,188,229,2564,952,2828,1141,0,267,13272,2750,681,563,423,380,2668,1128,174,284,584,405,216,258,3093,1261,6335,1643,444,432,45,73,3673,1633,571,340,669,562,1762,893,413,403,572,457]
[null,null,null,null,null,null,null,null,72557,5707,330,202,519,407,1483,623,247,190,2847,1227,2554,865,114,155,0,228,53,85,1364,573,973,472,866,651,315,415,17016,2840,1710,917,"N/A","N/A",1520,741,334,377,315,384,0,228,134,156,189,175,1439,652,7564,1722,117,138,6031,2253,836,743,4783,1799,623,371,381,531,472,405,492,490,273,270,1123,744,601,617,632,421,679,491,1071,568,378,242,0,228,591,442,1992,980,1617,1222,4131,1470,146,156,45,81,303,329,538,365,0,228,2705,1206,111,119,149,176]
[null,null,null,null,null,null,null,null,95059,7804,44,75,1050,697,2238,878,1596,1073,6125,1459,6022,2519,85,140,238,275,0,248,2863,1848,1916,1039,128,154,398,407,2943,1096,1544,859,1875,1184,"N/A","N/A",1048,1402,890,580,0,248,1369,1103,100,120,806,457,1562,1147,167,146,23384,3524,289,318,2678,875,1318,1245,76,130,1743,1236,873,580,2390,1235,1083,649,225,373,1509,1127,7568,2302,514,610,563,537,39,79,137,211,352,227,1152,821,9217,2824,238,298,75,126,1648,934,1175,792,0,248,1233,898,573,531,68,88]
[null,null,null,null,null,null,null,null,118443,8947,2161,871,3017,2024,2598,1483,558,547,3779,1387,329,363,698,710,38,64,147,210,10119,2893,6397,2093,520,520,71,119,4659,1887,11906,2334,656,788,1109,1031,"N/A","N/A",437,435,0,271,1395,995,1036,738,4672,1897,930,781,1442,917,3153,1147,0,271,858,809,76,129,0,271,1147,807,122,189,2057,1057,3758,1216,0,271,15598,2549,1153,900,181,220,2618,1480,289,381,1286,741,163,262,11153,3003,5758,1631,905,721,525,515,3671,1981,716,599,2297,1276,1993,1413,292,462,179,240]
[null,null,null,null,null,null,null,null,97889,8319,5740,2537,1504,922,1960,1204,2382,1114,5751,1933,1215,567,89,120,0,281,264,228,9394,2799,5766,1868,342,502,202,205,2131,1394,948,651,625,656,706,483,1656,1093,"N/A","N/A",162,269,963,699,995,702,1301,886,569,513,7032,2217,2852,1534,40,72,119,193,1552,785,462,427,171,249,294,256,2161,822,1443,686,438,514,1100,774,1074,675,281,277,1350,747,0,281,1130,706,0,281,1853,621,26134,3903,473,380,0,281,1278,733,1509,1126,210,254,237,229,31,67,402,285]
[null,null,null,null,null,null,null,null,27758,3059,402,311,424,439,254,290,67,112,1066,740,478,377,1361,689,174,229,55,89,3025,924,844,817,62,102,0,230,311,251,259,379,337,561,56,92,484,643,115,211,"N/A","N/A",243,223,3521,958,122,133,91,109,0,230,201,260,275,335,204,283,345,344,4058,1966,902,508,234,298,2339,962,1001,1161,55,89,315,362,124,215,0,230,375,287,379,284,148,160,0,230,249,231,458,327,390,427,420,368,654,307,381,533,0,230,0,230,500,766,204,355]
[null,null,null,null,null,null,null,null,164484,9180,1641,1004,2672,1268,1124,770,273,418,8206,2230,2501,1523,1603,798,8340,3099,23202,3764,6564,1906,3454,1271,422,439,357,415,3300,1310,431,330,160,190,781,822,396,362,1376,695,53,96,"N/A","N/A",1983,730,3572,1269,820,543,403,383,1147,633,86,106,54,88,979,800,1369,1276,9058,2330,238,287,10736,2103,5787,2059,0,289,3277,1497,607,541,723,654,13467,3147,782,626,1710,852,49,81,2669,1332,5883,1511,655,451,350,328,24765,4735,1542,1004,4363,1701,324,241,230,299,612,678]
[null,null,null,null,null,null,null,null,140162,8906,583,382,1891,1205,1572,1170,206,343,14971,3388,1051,527,13270,2422,131,214,1539,649,11118,2520,1409,612,682,598,79,128,2842,1071,1891,857,307,253,0,285,340,397,0,285,4666,1266,3660,1356,"N/A","N/A",1624,931,2185,2035,453,534,1957,1987,388,356,46,77,792,705,9911,1876,4709,1295,161,271,20002,3186,2798,1277,0,285,2163,975,158,204,228,217,5316,1681,6965,1573,1659,1086,0,285,918,591,7073,2465,207,159,1526,673,4542,1704,1627,791,0,285,546,404,0,285,3085,1219]
[null,null,null,null,null,null,null,null,116149,8123,2403,1803,1040,758,3197,1076,636,434,6726,2018,2031,695,277,303,167,160,471,272,11646,2178,3913,1925,313,337,66,79,10651,1903,7816,2004,758,493,640,469,2353,1473,1342,747,645,477,620,428,1206,574,"N/A","N/A",1275,646,656,474,2921,1486,312,235,213,214,1874,1028,437,357,1676,861,669,411,3135,871,2444,903,53,71,9783,1851,2276,1296,537,341,3134,1226,653,702,1446,869,706,521,4453,1559,7184,2265,545,388,45,77,2073,807,1427,666,446,319,6291,1731,568,429,1432,1082]
[null,null,null,null,null,null,null,null,89872,6022,266,342,1169,851,4165,1655,279,321,6233,1680,2521,1122,211,259,176,171,306,353,2575,951,1776,1237,227,253,231,314,6641,2137,1120,433,4948,2094,1067,576,402,273,519,402,172,199,1259,797,1092,531,2631,1867,"N/A","N/A",196,169,1549,898,1020,547,734,415,540,364,183,142,513,416,151,137,1309,650,1673,808,7316,1621,1035,669,284,299,738,390,730,459,123,148,1597,1554,3237,922,1155,1037,2619,1241,1013,792,0,211,2371,1485,1328,604,200,211,17929,2252,343,280,39,62]
[null,null,null,null,null,null,null,null,72321,5412,8306,2433,1192,1055,187,188,4941,2495,3000,1221,1167,854,71,140,0,287,0,287,4814,1372,4014,1632,276,383,121,172,3030,1391,1403,1445,114,136,330,360,407,350,7390,1780,0,287,649,529,107,154,2495,1469,863,996,"N/A","N/A",959,544,314,278,0,287,408,323,0,287,403,398,633,669,1026,524,2227,1080,0,287,1312,783,663,520,0,287,750,499,145,241,1860,982,56,99,8158,2173,5755,1663,232,229,0,287,572,350,508,492,94,177,879,630,490,422,814,728]
[null,null,null,null,null,null,null,null,145226,7633,819,561,1051,822,2988,1145,4381,1133,9840,2218,1903,781,243,282,314,322,478,322,8317,2320,2492,1119,380,294,830,909,21277,3689,3351,1123,4708,1328,23427,3689,2552,1075,2238,2007,171,179,1359,812,1395,931,2610,954,1701,810,1183,510,"N/A","N/A",220,192,2636,1240,1060,648,108,180,1320,804,150,147,2630,1474,1825,760,848,1186,2163,847,4647,1478,314,204,1639,755,0,259,954,578,512,445,3311,1272,12884,3043,1319,664,498,524,3206,1413,1107,748,177,231,1331,693,359,496,867,658]
[null,null,null,null,null,null,null,null,35630,3807,212,332,650,561,1909,1125,672,487,5756,1903,2185,870,128,148,71,120,0,237,1373,1173,46,87,0,237,1458,859,1094,789,251,233,169,198,60,93,321,490,85,118,76,102,51,86,59,97,648,534,1323,603,242,356,564,481,"N/A","N/A",340,424,548,386,0,237,0,237,660,688,246,282,1072,1127,1677,1012,89,118,182,174,1620,861,419,319,0,237,110,150,295,258,111,193,2101,1013,964,618,0,237,497,401,3250,1281,0,237,357,267,1689,672,11,19]
[null,null,null,null,null,null,null,null,51290,4521,232,262,35,46,2322,1501,674,587,4430,1419,4182,1393,361,562,177,235,0,228,1775,992,1202,870,257,213,127,135,1820,1218,639,453,5536,1473,2484,869,153,166,89,166,0,228,77,100,100,167,726,440,2254,1114,823,865,2723,1319,112,160,"N/A","N/A",232,180,0,228,143,171,831,805,111,115,442,284,777,978,1232,966,702,393,506,385,345,347,0,228,65,105,2936,1369,77,129,4445,1562,537,495,0,228,772,604,1230,793,73,89,1046,585,1478,545,0,228]
[null,null,null,null,null,null,null,null,102677,8786,150,246,511,659,7818,2342,530,421,35472,5381,2935,1969,648,868,0,309,0,309,3579,2182,1187,1333,4363,2688,1686,984,1711,927,739,545,543,371,453,654,569,668,733,757,0,309,485,402,1275,752,2202,861,805,528,946,748,1747,1218,770,742,1129,951,"N/A","N/A",59,97,1528,1205,1220,715,1204,753,957,531,37,64,1554,852,886,600,2629,1056,1567,752,167,223,312,291,1203,803,706,681,5224,2241,4500,2410,197,328,1832,1429,3290,1219,56,101,419,244,144,144,502,618]
[null,null,null,null,null,null,null,null,39367,4220,152,235,0,257,544,383,0,257,1692,969,240,250,3134,1187,0,257,298,389,1659,699,0,257,51,83,66,113,850,741,23,37,109,124,57,100,0,257,19,33,3242,983,49,81,13752,2615,230,222,240,270,25,41,295,387,486,638,0,257,95,123,"N/A","N/A",540,365,276,394,2462,997,471,439,0,257,28,35,0,257,508,544,674,406,988,677,51,85,0,257,372,387,1570,1644,279,223,2566,1011,745,807,261,434,0,257,268,418,0,257,56,93]
[null,null,null,null,null,null,null,null,127369,8536,616,406,383,407,1625,847,258,346,8777,2628,807,590,2503,1323,1543,702,431,335,9841,2289,4588,2901,385,422,91,148,2656,995,402,471,332,331,442,403,91,147,249,264,95,112,4231,2100,2626,973,1070,578,322,274,450,478,727,417,122,206,261,361,874,616,705,380,"N/A","N/A",421,281,41374,5068,3052,1042,0,281,1584,1069,32,51,613,578,22225,3517,332,376,1134,598,0,281,852,631,3434,1520,178,205,57,98,2670,1099,964,617,358,353,586,571,0,281,2732,1263]
[null,null,null,null,null,null,null,null,73605,7703,751,550,969,801,6117,2902,77,109,6547,2252,2852,1095,25,41,391,444,56,95,3259,1428,1977,1097,122,185,755,565,526,362,465,458,0,285,751,581,739,1131,65,87,94,155,1968,1112,2076,1567,1460,843,179,231,719,630,138,211,1003,1419,530,726,4192,2452,79,130,160,200,"N/A","N/A",784,581,1793,844,79,150,1712,883,1182,854,1659,1403,809,526,46,81,152,182,204,322,1269,801,18511,3785,1601,1033,309,435,290,249,3004,1315,0,285,407,339,752,727,632,678]
[null,null,null,null,null,null,null,null,269427,14924,1310,924,5070,2375,2649,799,362,249,25177,4560,3135,1173,15338,2651,2603,1828,1983,820,30553,4156,7676,1970,259,195,198,198,6533,2144,2497,1311,477,319,1189,712,804,500,1321,847,2270,1705,5912,1583,16855,3094,4779,1496,1649,1086,872,381,1870,961,237,210,886,564,2077,810,2636,1065,35333,4610,829,596,"N/A","N/A",13322,3003,0,275,6510,1610,2298,1033,2284,1098,20514,3022,1913,1041,7161,2607,521,509,1730,835,9692,2018,910,988,2900,908,8881,1939,2503,976,444,285,2354,1588,151,148,6740,2049]
[null,null,null,null,null,null,null,null,263256,13976,3044,1381,1618,1103,2847,1062,550,306,16699,3085,1842,1052,3752,1748,479,354,1691,548,28983,4184,15943,3370,1567,871,724,564,5657,1875,4132,1280,1077,806,2192,1266,4419,1984,2180,1222,2259,990,9881,2730,4052,1420,5789,2071,1839,844,1187,818,1932,965,230,274,516,357,698,639,2130,1440,7195,1847,1186,1065,19406,3099,"N/A","N/A",243,402,8661,2362,1453,717,1796,1013,11155,2465,97,161,23196,4788,362,304,8685,2249,14329,3409,790,551,350,244,25662,3825,2874,1166,3025,1129,2012,910,870,819,1950,1463]
[null,null,null,null,null,null,null,null,30100,3890,109,108,1066,823,662,481,168,206,1411,873,873,614,30,47,0,211,175,275,492,376,799,837,53,84,69,82,39,54,45,77,289,376,114,154,97,85,374,422,0,211,121,94,52,84,298,250,12350,2469,0,211,197,208,1236,733,328,316,382,357,0,211,144,183,380,517,188,224,637,680,"N/A","N/A",134,167,108,120,313,439,392,377,0,211,0,211,1038,510,273,270,2513,1293,462,431,0,211,25,39,696,344,0,211,749,480,219,206,0,211]
[null,null,null,null,null,null,null,null,172633,10673,1289,751,1556,1531,4715,2132,434,504,8997,1767,2859,1134,1307,819,15,25,972,768,16495,2765,9502,2685,436,331,564,694,7092,1635,9438,2077,1270,757,1016,494,9159,1874,743,511,291,238,3828,1666,3686,1712,15130,3104,2298,1327,89,105,1171,569,460,450,1531,983,2240,1351,175,205,2465,1028,515,380,5988,1895,5985,1492,26,53,"N/A","N/A",1228,1044,342,306,12012,2269,444,314,2479,1021,207,215,4987,2031,7465,2241,485,318,182,173,6769,1705,2567,905,7814,2197,1771,934,144,187,2140,1360]
[null,null,null,null,null,null,null,null,106511,8108,1612,1283,1397,1554,2759,1013,5873,1827,9429,2426,3184,1286,68,129,109,164,0,253,5438,1371,3159,1688,773,864,611,668,2679,1529,957,550,1108,660,5024,2088,877,607,2208,808,298,278,382,407,465,481,1047,478,599,369,1733,789,4102,1427,448,342,829,530,1079,598,69,131,890,890,2723,1280,1118,743,1991,1219,139,136,1385,681,"N/A","N/A",398,300,1316,1283,119,137,596,377,83,135,1872,895,28238,4132,428,454,93,109,2286,1049,2035,1130,221,270,551,396,1713,1012,209,222]
[null,null,null,null,null,null,null,null,116700,7898,400,290,2027,910,5264,1539,246,217,34190,4899,2050,924,270,273,0,277,217,239,2273,1051,688,572,2323,1117,4129,1397,1565,862,317,319,161,176,678,685,0,277,0,277,0,277,595,405,1471,1154,1159,783,668,442,735,770,1786,992,3386,1956,777,574,2805,1436,317,280,544,582,981,679,2538,1146,1040,758,592,521,1541,902,821,683,"N/A","N/A",1689,1185,0,277,989,1271,741,581,787,455,3826,1484,2879,1047,456,405,1124,593,22793,3575,358,308,1981,1181,523,336,821,847]
[null,null,null,null,null,null,null,null,235580,12249,369,368,2185,1301,3668,1451,807,601,12077,2875,3657,1375,4007,1559,4608,1169,1621,866,18212,3129,4644,1340,332,292,380,408,4490,1429,2018,739,227,319,1426,1201,1675,766,625,382,1621,895,18281,2839,4455,1178,4961,2285,1491,873,563,498,1725,788,339,290,551,410,1810,1177,729,531,42456,5218,1250,883,30481,3719,7611,2053,521,517,14545,3377,1254,749,918,545,"N/A","N/A",377,327,1315,651,966,927,1611,626,7778,2650,1048,684,215,214,10558,2596,2495,1141,4258,1674,1300,1081,1069,936,6275,2169]
[null,null,null,null,null,null,null,null,32059,4070,136,214,0,291,324,286,0,291,1697,791,59,98,4090,1497,0,291,146,240,1336,778,382,377,274,546,0,291,1210,768,206,334,48,79,0,291,0,291,0,291,447,350,977,676,8639,1836,77,125,47,78,0,291,47,78,0,291,0,291,297,259,333,322,1868,649,0,291,4583,1398,1376,1080,62,103,0,291,199,331,0,291,560,461,"N/A","N/A",61,105,48,78,71,118,678,500,0,291,72,122,1399,908,160,206,150,233,0,291,0,291,276,353]
[null,null,null,null,null,null,null,null,152441,10548,1741,721,1670,1199,1457,870,365,280,4691,1983,1867,1378,3998,2132,249,274,38,63,16060,3907,17486,3100,813,521,233,207,4253,1651,2174,884,703,870,514,612,2211,1215,2059,986,603,448,5184,2183,3765,1826,3709,1403,818,463,1175,681,1371,797,0,296,0,296,1173,793,486,296,4908,1660,1390,1444,7912,2045,20749,3397,118,196,3883,1190,1458,1353,1020,951,4689,1531,154,179,"N/A","N/A",95,109,3816,1732,4965,1539,455,437,478,500,9786,2245,3070,1589,1190,536,1057,639,382,524,269,229]
[null,null,null,null,null,null,null,null,25777,3187,325,333,25,44,745,533,61,120,1338,703,807,447,0,223,0,223,0,223,251,242,24,44,75,123,457,289,80,134,439,381,3520,1429,571,471,82,103,129,196,0,223,0,223,407,471,144,127,4615,1629,201,213,252,210,560,364,2260,1028,38,63,0,223,0,223,38,67,758,469,262,231,2020,1029,160,174,296,289,122,136,209,268,0,223,0,223,"N/A","N/A",0,223,1334,812,0,223,0,223,224,217,1564,973,0,223,736,533,648,549,0,223]
[null,null,null,null,null,null,null,null,159778,11597,8897,2131,343,300,2291,1160,4736,1836,8019,2431,1858,1182,765,713,248,254,394,484,14168,3004,11065,2592,243,402,333,374,3162,1151,4764,1593,1052,864,2506,2041,11188,3378,2602,1490,84,138,1450,701,1733,904,5529,1806,1504,1160,9029,2461,4342,1588,290,243,187,177,2433,1517,197,238,2230,1219,621,543,4800,1691,7102,1676,0,287,4462,2091,669,482,430,497,2562,1256,805,913,4765,2102,63,112,"N/A","N/A",8701,2089,2062,1241,0,287,8650,2526,1412,911,2201,1455,2831,1402,0,287,0,287]
[null,null,null,null,null,null,null,null,486558,20955,8636,2633,11613,3256,16521,3719,15251,3182,68959,7058,16361,3311,924,551,704,533,460,400,26668,4238,16671,3792,3718,1263,2033,1171,20169,3942,6985,2350,3946,1452,11598,2743,5153,1839,31149,5628,1318,889,4724,1564,7139,2275,13775,3091,6088,2182,7773,2477,12061,2517,1027,614,4893,2391,8324,2790,1067,637,7058,2884,11752,2780,16624,4092,12183,3708,2452,1624,8317,1971,22969,4302,4373,1618,7161,2092,975,613,5249,1965,1936,836,13044,3538,"N/A","N/A",4123,1574,52,88,13713,2694,8847,2397,2221,1231,5927,1723,1874,1022,4180,2074]
[null,null,null,null,null,null,null,null,77780,6769,93,114,1798,1320,8147,2522,316,262,12187,2104,3987,1226,119,148,0,267,138,168,2097,1007,966,644,932,930,7692,2177,1831,767,517,475,483,348,299,340,235,266,46,98,148,237,426,302,246,253,261,243,914,545,127,134,1255,929,1929,1099,118,121,4549,1568,0,267,247,240,518,480,1462,752,1167,840,0,267,1527,1163,886,947,2525,1094,557,347,0,267,838,716,875,1215,459,385,5305,1508,"N/A","N/A",297,494,3005,2000,3792,1538,0,267,338,323,2126,1168,383,446]
[null,null,null,null,null,null,null,null,22529,2945,0,211,184,181,65,76,0,211,1001,506,326,238,1287,585,87,111,9,15,2063,1237,496,395,49,71,0,211,370,415,0,211,91,93,0,211,176,146,0,211,824,365,300,294,3599,1075,201,209,85,116,0,211,51,86,236,207,0,211,58,75,2760,827,751,390,0,211,4056,1050,539,455,30,50,50,65,0,211,100,122,524,339,227,154,134,157,153,214,125,104,565,449,0,211,"N/A","N/A",400,361,128,115,0,211,377,488,52,86,0,211]
[null,null,null,null,null,null,null,null,259507,12319,2671,1201,3296,1952,3807,1454,1233,1034,17088,3674,3229,1571,2468,921,1265,828,10593,2299,18165,3554,11927,3210,2347,1394,1159,787,7576,2202,2892,1856,1135,758,2103,1418,2051,1056,2148,926,1494,932,24822,4371,4104,1347,5733,2245,462,292,1858,1007,4262,2141,866,1090,523,475,748,469,372,515,6825,1687,1098,735,17525,3087,23829,4041,201,325,7708,2181,781,611,2137,2081,11796,2546,1543,1150,8339,2247,98,179,5842,1776,12938,3212,1551,822,676,599,"N/A","N/A",4373,1700,6779,2481,2648,1525,423,429,1306,872]
[null,null,null,null,null,null,null,null,191784,12094,1322,1150,5644,2055,5971,2284,658,531,39468,5451,4883,1316,642,450,202,198,243,260,5378,1314,3107,1650,4246,1482,12661,3237,3931,1438,1912,1321,1685,993,1694,1174,886,626,1011,588,717,653,629,445,1448,796,2871,1443,1323,656,737,784,3727,2288,5094,1449,323,245,5310,1954,282,305,721,604,1012,599,4140,1494,2143,1189,515,426,2727,1146,1986,1131,26235,4414,2893,1410,220,197,3047,1800,866,729,789,511,11338,3003,4020,1681,981,803,7266,2764,"N/A","N/A",62,107,2180,1074,638,524,0,277]
[null,null,null,null,null,null,null,null,39609,4590,41,69,1326,1210,0,269,0,269,760,511,608,553,84,148,556,506,480,466,1842,825,485,354,0,269,88,158,356,338,366,311,0,269,161,198,851,732,60,117,0,269,4249,1182,191,169,657,379,0,269,44,75,160,190,39,62,0,269,25,42,107,185,906,537,0,269,611,416,2552,985,268,399,7925,2201,229,363,0,269,4908,1396,238,292,647,493,0,269,1160,833,968,650,112,144,208,205,4999,1573,192,199,"N/A","N/A",150,188,0,269,182,232]
[null,null,null,null,null,null,null,null,93065,6949,552,523,798,549,1854,674,518,299,4506,1080,1890,806,359,356,351,522,98,118,4492,1416,1656,684,550,532,902,771,20299,3115,2563,921,2300,936,752,696,287,215,331,302,448,427,1088,700,992,1121,6317,1567,16741,2575,810,987,1716,890,154,164,853,685,1049,897,69,116,632,422,123,115,1291,512,1817,1007,497,373,1674,1063,89,137,1444,768,2211,1428,0,218,1142,626,235,159,856,469,3039,983,476,398,75,123,771,543,1013,634,256,229,"N/A","N/A",129,104,521,478]
[null,null,null,null,null,null,null,null,28046,4226,172,257,0,269,1511,915,0,269,2784,1647,4390,1357,0,269,0,269,0,269,396,347,745,553,25,41,942,849,415,444,132,217,462,641,532,514,519,743,107,144,0,269,51,92,252,470,570,597,218,277,0,269,421,418,2528,1395,1711,1394,416,383,0,269,0,269,707,527,146,144,34,84,233,228,56,90,62,79,14,25,95,118,0,269,220,235,258,183,495,638,1990,1143,3226,1437,75,137,580,459,556,469,0,269,0,269,"N/A","N/A",0,269]
[null,null,null,null,null,null,null,null,31732,4381,629,711,156,259,288,356,0,285,1177,949,388,492,899,653,0,285,0,285,11262,2512,207,334,0,285,0,285,1642,1175,109,173,0,285,112,184,254,211,109,130,0,285,59,106,2004,960,89,149,50,83,170,198,221,258,0,285,0,285,0,285,0,285,1244,830,364,603,4768,1546,146,240,0,285,69,127,0,285,0,285,1516,772,684,829,109,173,0,285,30,56,977,742,882,1289,0,285,392,320,0,285,141,135,585,815,0,285,"N/A","N/A"]

{"sheet":"Migration 2011","index":11,"n_rows":120,"n_cols":114,"rows_kept":120,"cut":false,"hidden":true,"merged":[[6,2,7,3],[6,4,7,5],[6,6,7,7]]}
[]
[null,"Table 2  State-to-State Migration Flows*: 2011"]
[null,"Dataset: 2011 American Community Survey 1-Year Estimates"]
[null,"Universe: Population 1 year and over"]
[null,"Source: http://www.census.gov/hhes/migration/files/acs/st-to-st/State_to_State_Migrations_Table_2011.xls"]
[null,null,null,null,null,null,null,null,"ESTIMATES",null,null,null,null,null,null,null,null,null,null,null,null,null,null,null,null,null,null,null,null,null,null,null,null,null,null,null,null,null,null,null,null,null,null,null,null,null,null,null,null,null,null,null,null,null,null,null,null,null,null,null,null,"Margin of Error"]
[null,"Current residence in --","Population 1 year and over",null,"Same residence 1 year ago",null,"Different residence, same state 1 year ago",null,1,2,3,4,5,6,7,8,9,10,11,12,13,14,15,16,17,18,19,20,21,22,23,24,25,26,27,28,29,30,31,32,33,34,35,36,37,38,39,40,41,42,43,44,45,46,47,48,49,50,51,52,53,1,2,3,4,5,6,7,8,9,10,11,12,13,14,15,16,17,18,19,20,21,22,23,24,25,26,27,28,29,30,31,32,33,34,35,36,37,38,39,40,41,42,43,44,45,46,47,48,49,50,51,52,53]
[null,null,null,null,null,null,null,null,"State of Residence Last year (Estimate)",null,null,null,null,null,null,null,null,null,null,null,null,null,null,null,null,null,null,null,null,null,null,null,null,null,null,null,null,null,null,null,null,null,null,null,null,null,null,null,null,null,null,null,null,null,null,null,null,null,null,null,null,"State of Residence Last year (Margin of Error)"]
[null,null,"Estimate","MOE","Estimate","MOE","Estimate","MOE","TOTAL","Alabama","Alaska","Arizona","Arkansas","California","Colorado","Connecticut","Delaware","District of Columbia ","Florida","Georgia","Hawaii","Idaho","Illinois","Indiana","Iowa","Kansas","Kentucky","Louisiana","Maine","Maryland","Massachusetts","Michigan","Minnesota","Mississippi","Missouri","Montana","Nebraska","Nevada","New Hampshire","New Jersey","New Mexico","New York","North Carolina","North Dakota","Ohio","Oklahoma","Oregon","Pennsylvania","Rhode Island","South Carolina","South Dakota","Tennessee","Texas","Utah","Vermont","Virginia","Washington","West Virginia","Wisconsin","Wyoming","Puerto Rico","TOTAL","Alabama","Alaska","Arizona","Arkansas","California","Colorado","Connecticut","Delaware","District of Columbia ","Florida","Georgia","Hawaii","Idaho","Illinois","Indiana","Iowa","Kansas","Kentucky","Louisiana","Maine","Maryland","Massachusetts","Michigan","Minnesota","Mississippi","Missouri","Montana","Nebraska","Nevada","New Hampshire","New Jersey","New Mexico","New York","North Carolina","North Dakota","Ohio","Oklahoma","Oregon","Pennsylvania","Rhode Island","South Carolina","South Dakota","Tennessee","Texas","Utah","Vermont","Virginia","Washington","West Virginia","Wisconsin","Wyoming","Puerto Rico"]
[null,"United States",307900319,29996,261087925,263315,37998701,233440,{"$f":"HLOOKUP(I$7,$I$66:$DJ$120,ROWS($A$10:$A10)+2,FALSE)","v":6987416},{"$f":"HLOOKUP(J$7,$I$66:$DJ$120,ROWS($A$10:$A10)+2,FALSE)","v":106806},{"$f":"HLOOKUP(K$7,$I$66:$DJ$120,ROWS($A$10:$A10)+2,FALSE)","v":88850},{"$f":"HLOOKUP(L$7,$I$66:$DJ$120,ROWS($A$10:$A10)+2,FALSE)","v":211816},{"$f":"HLOOKUP(M$7,$I$66:$DJ$120,ROWS($A$10:$A10)+2,FALSE)","v":77226},{"$f":"HLOOKUP(N$7,$I$66:$DJ$120,ROWS($A$10:$A10)+2,FALSE)","v":562343},{"$f":"HLOOKUP(O$7,$I$66:$DJ$120,ROWS($A$10:$A10)+2,FALSE)","v":160623},{"$f":"HLOOKUP(P$7,$I$66:$DJ$120,ROWS($A$10:$A10)+2,FALSE)","v":91295},{"$f":"HLOOKUP(Q$7,$I$66:$DJ$120,ROWS($A$10:$A10)+2,FALSE)","v":26631},{"$f":"HLOOKUP(R$7,$I$66:$DJ$120,ROWS($A$10:$A10)+2,FALSE)","v":49732},{"$f":"HLOOKUP(S$7,$I$66:$DJ$120,ROWS($A$10:$A10)+2,FALSE)","v":437202},{"$f":"HLOOKUP(T$7,$I$66:$DJ$120,ROWS($A$10:$A10)+2,FALSE)","v":248892},{"$f":"HLOOKUP(U$7,$I$66:$DJ$120,ROWS($A$10:$A10)+2,FALSE)","v":61940},{"$f":"HLOOKUP(V$7,$I$66:$DJ$120,ROWS($A$10:$A10)+2,FALSE)","v":57831},{"$f":"HLOOKUP(W$7,$I$66:$DJ$120,ROWS($A$10:$A10)+2,FALSE)","v":269008},{"$f":"HLOOKUP(X$7,$I$66:$DJ$120,ROWS($A$10:$A10)+2,FALSE)","v":143228},{"$f":"HLOOKUP(Y$7,$I$66:$DJ$120,ROWS($A$10:$A10)+2,FALSE)","v":74516},{"$f":"HLOOKUP(Z$7,$I$66:$DJ$120,ROWS($A$10:$A10)+2,FALSE)","v":94180},{"$f":"HLOOKUP(AA$7,$I$66:$DJ$120,ROWS($A$10:$A10)+2,FALSE)","v":99256},{"$f":"HLOOKUP(AB$7,$I$66:$DJ$120,ROWS($A$10:$A10)+2,FALSE)","v":86593},{"$f":"HLOOKUP(AC$7,$I$66:$DJ$120,ROWS($A$10:$A10)+2,FALSE)","v":33729},{"$f":"HLOOKUP(AD$7,$I$66:$DJ$120,ROWS($A$10:$A10)+2,FALSE)","v":165041},{"$f":"HLOOKUP(AE$7,$I$66:$DJ$120,ROWS($A$10:$A10)+2,FALSE)","v":145869},{"$f":"HLOOKUP(AF$7,$I$66:$DJ$120,ROWS($A$10:$A10)+2,FALSE)","v":186505},{"$f":"HLOOKUP(AG$7,$I$66:$DJ$120,ROWS($A$10:$A10)+2,FALSE)","v":103253},{"$f":"HLOOKUP(AH$7,$I$66:$DJ$120,ROWS($A$10:$A10)+2,FALSE)","v":68597},{"$f":"HLOOKUP(AI$7,$I$66:$DJ$120,ROWS($A$10:$A10)+2,FALSE)","v":138404},{"$f":"HLOOKUP(AJ$7,$I$66:$DJ$120,ROWS($A$10:$A10)+2,FALSE)","v":31204},{"$f":"HLOOKUP(AK$7,$I$66:$DJ$120,ROWS($A$10:$A10)+2,FALSE)","v":52809},{"$f":"HLOOKUP(AL$7,$I$66:$DJ$120,ROWS($A$10:$A10)+2,FALSE)","v":115943},{"$f":"HLOOKUP(AM$7,$I$66:$DJ$120,ROWS($A$10:$A10)+2,FALSE)","v":43277},{"$f":"HLOOKUP(AN$7,$I$66:$DJ$120,ROWS($A$10:$A10)+2,FALSE)","v":216369},{"$f":"HLOOKUP(AO$7,$I$66:$DJ$120,ROWS($A$10:$A10)+2,FALSE)","v":61431},{"$f":"HLOOKUP(AP$7,$I$66:$DJ$120,ROWS($A$10:$A10)+2,FALSE)","v":377800},{"$f":"HLOOKUP(AQ$7,$I$66:$DJ$120,ROWS($A$10:$A10)+2,FALSE)","v":225147},{"$f":"HLOOKUP(AR$7,$I$66:$DJ$120,ROWS($A$10:$A10)+2,FALSE)","v":26563},{"$f":"HLOOKUP(AS$7,$I$66:$DJ$120,ROWS($A$10:$A10)+2,FALSE)","v":206049},{"$f":"HLOOKUP(AT$7,$I$66:$DJ$120,ROWS($A$10:$A10)+2,FALSE)","v":81009},{"$f":"HLOOKUP(AU$7,$I$66:$DJ$120,ROWS($A$10:$A10)+2,FALSE)","v":109795},{"$f":"HLOOKUP(AV$7,$I$66:$DJ$120,ROWS($A$10:$A10)+2,FALSE)","v":215127},{"$f":"HLOOKUP(AW$7,$I$66:$DJ$120,ROWS($A$10:$A10)+2,FALSE)","v":31065},{"$f":"HLOOKUP(AX$7,$I$66:$DJ$120,ROWS($A$10:$A10)+2,FALSE)","v":121426},{"$f":"HLOOKUP(AY$7,$I$66:$DJ$120,ROWS($A$10:$A10)+2,FALSE)","v":29383},{"$f":"HLOOKUP(AZ$7,$I$66:$DJ$120,ROWS($A$10:$A10)+2,FALSE)","v":154243},{"$f":"HLOOKUP(BA$7,$I$66:$DJ$120,ROWS($A$10:$A10)+2,FALSE)","v":404839},{"$f":"HLOOKUP(BB$7,$I$66:$DJ$120,ROWS($A$10:$A10)+2,FALSE)","v":73211},{"$f":"HLOOKUP(BC$7,$I$66:$DJ$120,ROWS($A$10:$A10)+2,FALSE)","v":18172},{"$f":"HLOOKUP(BD$7,$I$66:$DJ$120,ROWS($A$10:$A10)+2,FALSE)","v":229227},{"$f":"HLOOKUP(BE$7,$I$66:$DJ$120,ROWS($A$10:$A10)+2,FALSE)","v":190644},{"$f":"HLOOKUP(BF$7,$I$66:$DJ$120,ROWS($A$10:$A10)+2,FALSE)","v":45956},{"$f":"HLOOKUP(BG$7,$I$66:$DJ$120,ROWS($A$10:$A10)+2,FALSE)","v":105370},{"$f":"HLOOKUP(BH$7,$I$66:$DJ$120,ROWS($A$10:$A10)+2,FALSE)","v":31991},{"$f":"HLOOKUP(BI$7,$I$66:$DJ$120,ROWS($A$10:$A10)+2,FALSE)","v":76218},{"$f":"HLOOKUP(BJ$7+0.5,$I$66:$DJ$120,ROWS($A$10:$A10)+2,FALSE)","v":77858},{"$f":"HLOOKUP(BK$7+0.5,$I$66:$DJ$120,ROWS($A$10:$A10)+2,FALSE)","v":10575},{"$f":"HLOOKUP(BL$7+0.5,$I$66:$DJ$120,ROWS($A$10:$A10)+2,FALSE)","v":10161},{"$f":"HLOOKUP(BM$7+0.5,$I$66:$DJ$120,ROWS($A$10:$A10)+2,FALSE)","v":17644},{"$f":"HLOOKUP(BN$7+0.5,$I$66:$DJ$120,ROWS($A$10:$A10)+2,FALSE)","v":6899},{"$f":"HLOOKUP(BO$7+0.5,$I$66:$DJ$120,ROWS($A$10:$A10)+2,FALSE)","v":20646},{"$f":"HLOOKUP(BP$7+0.5,$I$66:$DJ$120,ROWS($A$10:$A10)+2,FALSE)","v":10427},{"$f":"HLOOKUP(BQ$7+0.5,$I$66:$DJ$120,ROWS($A$10:$A10)+2,FALSE)","v":7653},{"$f":"HLOOKUP(BR$7+0.5,$I$66:$DJ$120,ROWS($A$10:$A10)+2,FALSE)","v":3629},{"$f":"HLOOKUP(BS$7+0.5,$I$66:$DJ$120,ROWS($A$10:$A10)+2,FALSE)","v":4949},{"$f":"HLOOKUP(BT$7+0.5,$I$66:$DJ$120,ROWS($A$10:$A10)+2,FALSE)","v":19015},{"$f":"HLOOKUP(BU$7+0.5,$I$66:$DJ$120,ROWS($A$10:$A10)+2,FALSE)","v":13318},{"$f":"HLOOKUP(BV$7+0.5,$I$66:$DJ$120,ROWS($A$10:$A10)+2,FALSE)","v":7295},{"$f":"HLOOKUP(BW$7+0.5,$I$66:$DJ$120,ROWS($A$10:$A10)+2,FALSE)","v":7401},{"$f":"HLOOKUP(BX$7+0.5,$I$66:$DJ$120,ROWS($A$10:$A10)+2,FALSE)","v":13750},{"$f":"HLOOKUP(BY$7+0.5,$I$66:$DJ$120,ROWS($A$10:$A10)+2,FALSE)","v":10568},{"$f":"HLOOKUP(BZ$7+0.5,$I$66:$DJ$120,ROWS($A$10:$A10)+2,FALSE)","v":6398},{"$f":"HLOOKUP(CA$7+0.5,$I$66:$DJ$120,ROWS($A$10:$A10)+2,FALSE)","v":10699},{"$f":"HLOOKUP(CB$7+0.5,$I$66:$DJ$120,ROWS($A$10:$A10)+2,FALSE)","v":7329},{"$f":"HLOOKUP(CC$7+0.5,$I$66:$DJ$120,ROWS($A$10:$A10)+2,FALSE)","v":8952},{"$f":"HLOOKUP(CD$7+0.5,$I$66:$DJ$120,ROWS($A$10:$A10)+2,FALSE)","v":4154},{"$f":"HLOOKUP(CE$7+0.5,$I$66:$DJ$120,ROWS($A$10:$A10)+2,FALSE)","v":11278},{"$f":"HLOOKUP(CF$7+0.5,$I$66:$DJ$120,ROWS($A$10:$A10)+2,FALSE)","v":10414},{"$f":"HLOOKUP(CG$7+0.5,$I$66:$DJ$120,ROWS($A$10:$A10)+2,FALSE)","v":13304},{"$f":"HLOOKUP(CH$7+0.5,$I$66:$DJ$120,ROWS($A$10:$A10)+2,FALSE)","v":6978},{"$f":"HLOOKUP(CI$7+0.5,$I$66:$DJ$120,ROWS($A$10:$A10)+2,FALSE)","v":7559},{"$f":"HLOOKUP(CJ$7+0.5,$I$66:$DJ$120,ROWS($A$10:$A10)+2,FALSE)","v":11145},{"$f":"HLOOKUP(CK$7+0.5,$I$66:$DJ$120,ROWS($A$10:$A10)+2,FALSE)","v":4179},{"$f":"HLOOKUP(CL$7+0.5,$I$66:$DJ$120,ROWS($A$10:$A10)+2,FALSE)","v":6362},{"$f":"HLOOKUP(CM$7+0.5,$I$66:$DJ$120,ROWS($A$10:$A10)+2,FALSE)","v":8686},{"$f":"HLOOKUP(CN$7+0.5,$I$66:$DJ$120,ROWS($A$10:$A10)+2,FALSE)","v":4875},{"$f":"HLOOKUP(CO$7+0.5,$I$66:$DJ$120,ROWS($A$10:$A10)+2,FALSE)","v":12474},{"$f":"HLOOKUP(CP$7+0.5,$I$66:$DJ$120,ROWS($A$10:$A10)+2,FALSE)","v":5579},{"$f":"HLOOKUP(CQ$7+0.5,$I$66:$DJ$120,ROWS($A$10:$A10)+2,FALSE)","v":15333},{"$f":"HLOOKUP(CR$7+0.5,$I$66:$DJ$120,ROWS($A$10:$A10)+2,FALSE)","v":14191},{"$f":"HLOOKUP(CS$7+0.5,$I$66:$DJ$120,ROWS($A$10:$A10)+2,FALSE)","v":3090},{"$f":"HLOOKUP(CT$7+0.5,$I$66:$DJ$120,ROWS($A$10:$A10)+2,FALSE)","v":11406},{"$f":"HLOOKUP(CU$7+0.5,$I$66:$DJ$120,ROWS($A$10:$A10)+2,FALSE)","v":8616},{"$f":"HLOOKUP(CV$7+0.5,$I$66:$DJ$120,ROWS($A$10:$A10)+2,FALSE)","v":8590},{"$f":"HLOOKUP(CW$7+0.5,$I$66:$DJ$120,ROWS($A$10:$A10)+2,FALSE)","v":11482},{"$f":"HLOOKUP(CX$7+0.5,$I$66:$DJ$120,ROWS($A$10:$A10)+2,FALSE)","v":4192},{"$f":"HLOOKUP(CY$7+0.5,$I$66:$DJ$120,ROWS($A$10:$A10)+2,FALSE)","v":9952},{"$f":"HLOOKUP(CZ$7+0.5,$I$66:$DJ$120,ROWS($A$10:$A10)+2,FALSE)","v":4358},{"$f":"HLOOKUP(DA$7+0.5,$I$66:$DJ$120,ROWS($A$10:$A10)+2,FALSE)","v":9679},{"$f":"HLOOKUP(DB$7+0.5,$I$66:$DJ$120,ROWS($A$10:$A10)+2,FALSE)","v":17998},{"$f":"HLOOKUP(DC$7+0.5,$I$66:$DJ$120,ROWS($A$10:$A10)+2,FALSE)","v":7130},{"$f":"HLOOKUP(DD$7+0.5,$I$66:$DJ$120,ROWS($A$10:$A10)+2,FALSE)","v":2845},{"$f":"HLOOKUP(DE$7+0.5,$I$66:$DJ$120,ROWS($A$10:$A10)+2,FALSE)","v":11582},{"$f":"HLOOKUP(DF$7+0.5,$I$66:$DJ$120,ROWS($A$10:$A10)+2,FALSE)","v":11567},{"$f":"HLOOKUP(DG$7+0.5,$I$66:$DJ$120,ROWS($A$10:$A10)+2,FALSE)","v":5684},{"$f":"HLOOKUP(DH$7+0.5,$I$66:$DJ$120,ROWS($A$10:$A10)+2,FALSE)","v":8011},{"$f":"HLOOKUP(DI$7+0.5,$I$66:$DJ$120,ROWS($A$10:$A10)+2,FALSE)","v":4631},{"$f":"HLOOKUP(DJ$7+0.5,$I$66:$DJ$120,ROWS($A$10:$A10)+2,FALSE)","v":8799}]
[null,"Alabama",4745278,4078,4024442,22751,588293,20366,{"$f":"HLOOKUP(I$7,$I$66:$DJ$120,ROWS($A$10:$A11)+2,FALSE)","v":117726},{"$f":"HLOOKUP(J$7,$I$66:$DJ$120,ROWS($A$10:$A11)+2,FALSE)","v":"N/A"},{"$f":"HLOOKUP(K$7,$I$66:$DJ$120,ROWS($A$10:$A11)+2,FALSE)","v":1771},{"$f":"HLOOKUP(L$7,$I$66:$DJ$120,ROWS($A$10:$A11)+2,FALSE)","v":1677},{"$f":"HLOOKUP(M$7,$I$66:$DJ$120,ROWS($A$10:$A11)+2,FALSE)","v":1642},{"$f":"HLOOKUP(N$7,$I$66:$DJ$120,ROWS($A$10:$A11)+2,FALSE)","v":3389},{"$f":"HLOOKUP(O$7,$I$66:$DJ$120,ROWS($A$10:$A11)+2,FALSE)","v":348},{"$f":"HLOOKUP(P$7,$I$66:$DJ$120,ROWS($A$10:$A11)+2,FALSE)","v":2921},{"$f":"HLOOKUP(Q$7,$I$66:$DJ$120,ROWS($A$10:$A11)+2,FALSE)","v":232},{"$f":"HLOOKUP(R$7,$I$66:$DJ$120,ROWS($A$10:$A11)+2,FALSE)","v":399},{"$f":"HLOOKUP(S$7,$I$66:$DJ$120,ROWS($A$10:$A11)+2,FALSE)","v":20063},{"$f":"HLOOKUP(T$7,$I$66:$DJ$120,ROWS($A$10:$A11)+2,FALSE)","v":19346},{"$f":"HLOOKUP(U$7,$I$66:$DJ$120,ROWS($A$10:$A11)+2,FALSE)","v":1259},{"$f":"HLOOKUP(V$7,$I$66:$DJ$120,ROWS($A$10:$A11)+2,FALSE)","v":137},{"$f":"HLOOKUP(W$7,$I$66:$DJ$120,ROWS($A$10:$A11)+2,FALSE)","v":6991},{"$f":"HLOOKUP(X$7,$I$66:$DJ$120,ROWS($A$10:$A11)+2,FALSE)","v":1434},{"$f":"HLOOKUP(Y$7,$I$66:$DJ$120,ROWS($A$10:$A11)+2,FALSE)","v":30},{"$f":"HLOOKUP(Z$7,$I$66:$DJ$120,ROWS($A$10:$A11)+2,FALSE)","v":842},{"$f":"HLOOKUP(AA$7,$I$66:$DJ$120,ROWS($A$10:$A11)+2,FALSE)","v":2686},{"$f":"HLOOKUP(AB$7,$I$66:$DJ$120,ROWS($A$10:$A11)+2,FALSE)","v":2413},{"$f":"HLOOKUP(AC$7,$I$66:$DJ$120,ROWS($A$10:$A11)+2,FALSE)","v":626},{"$f":"HLOOKUP(AD$7,$I$66:$DJ$120,ROWS($A$10:$A11)+2,FALSE)","v":1606},{"$f":"HLOOKUP(AE$7,$I$66:$DJ$120,ROWS($A$10:$A11)+2,FALSE)","v":112},{"$f":"HLOOKUP(AF$7,$I$66:$DJ$120,ROWS($A$10:$A11)+2,FALSE)","v":2797},{"$f":"HLOOKUP(AG$7,$I$66:$DJ$120,ROWS($A$10:$A11)+2,FALSE)","v":327},{"$f":"HLOOKUP(AH$7,$I$66:$DJ$120,ROWS($A$10:$A11)+2,FALSE)","v":3945},{"$f":"HLOOKUP(AI$7,$I$66:$DJ$120,ROWS($A$10:$A11)+2,FALSE)","v":1086},{"$f":"HLOOKUP(AJ$7,$I$66:$DJ$120,ROWS($A$10:$A11)+2,FALSE)","v":317},{"$f":"HLOOKUP(AK$7,$I$66:$DJ$120,ROWS($A$10:$A11)+2,FALSE)","v":770},{"$f":"HLOOKUP(AL$7,$I$66:$DJ$120,ROWS($A$10:$A11)+2,FALSE)","v":257},{"$f":"HLOOKUP(AM$7,$I$66:$DJ$120,ROWS($A$10:$A11)+2,FALSE)","v":64},{"$f":"HLOOKUP(AN$7,$I$66:$DJ$120,ROWS($A$10:$A11)+2,FALSE)","v":1996},{"$f":"HLOOKUP(AO$7,$I$66:$DJ$120,ROWS($A$10:$A11)+2,FALSE)","v":119},{"$f":"HLOOKUP(AP$7,$I$66:$DJ$120,ROWS($A$10:$A11)+2,FALSE)","v":1108},{"$f":"HLOOKUP(AQ$7,$I$66:$DJ$120,ROWS($A$10:$A11)+2,FALSE)","v":2697},{"$f":"HLOOKUP(AR$7,$I$66:$DJ$120,ROWS($A$10:$A11)+2,FALSE)","v":284},{"$f":"HLOOKUP(AS$7,$I$66:$DJ$120,ROWS($A$10:$A11)+2,FALSE)","v":2596},{"$f":"HLOOKUP(AT$7,$I$66:$DJ$120,ROWS($A$10:$A11)+2,FALSE)","v":973},{"$f":"HLOOKUP(AU$7,$I$66:$DJ$120,ROWS($A$10:$A11)+2,FALSE)","v":169},{"$f":"HLOOKUP(AV$7,$I$66:$DJ$120,ROWS($A$10:$A11)+2,FALSE)","v":1075},{"$f":"HLOOKUP(AW$7,$I$66:$DJ$120,ROWS($A$10:$A11)+2,FALSE)","v":0},{"$f":"HLOOKUP(AX$7,$I$66:$DJ$120,ROWS($A$10:$A11)+2,FALSE)","v":2036},{"$f":"HLOOKUP(AY$7,$I$66:$DJ$120,ROWS($A$10:$A11)+2,FALSE)","v":90},{"$f":"HLOOKUP(AZ$7,$I$66:$DJ$120,ROWS($A$10:$A11)+2,FALSE)","v":8710},{"$f":"HLOOKUP(BA$7,$I$66:$DJ$120,ROWS($A$10:$A11)+2,FALSE)","v":7973},{"$f":"HLOOKUP(BB$7,$I$66:$DJ$120,ROWS($A$10:$A11)+2,FALSE)","v":300},{"$f":"HLOOKUP(BC$7,$I$66:$DJ$120,ROWS($A$10:$A11)+2,FALSE)","v":66},{"$f":"HLOOKUP(BD$7,$I$66:$DJ$120,ROWS($A$10:$A11)+2,FALSE)","v":4935},{"$f":"HLOOKUP(BE$7,$I$66:$DJ$120,ROWS($A$10:$A11)+2,FALSE)","v":2621},{"$f":"HLOOKUP(BF$7,$I$66:$DJ$120,ROWS($A$10:$A11)+2,FALSE)","v":65},{"$f":"HLOOKUP(BG$7,$I$66:$DJ$120,ROWS($A$10:$A11)+2,FALSE)","v":417},{"$f":"HLOOKUP(BH$7,$I$66:$DJ$120,ROWS($A$10:$A11)+2,FALSE)","v":9},{"$f":"HLOOKUP(BI$7,$I$66:$DJ$120,ROWS($A$10:$A11)+2,FALSE)","v":569},{"$f":"HLOOKUP(BJ$7+0.5,$I$66:$DJ$120,ROWS($A$10:$A11)+2,FALSE)","v":9414},{"$f":"HLOOKUP(BK$7+0.5,$I$66:$DJ$120,ROWS($A$10:$A11)+2,FALSE)","v":"N/A"},{"$f":"HLOOKUP(BL$7+0.5,$I$66:$DJ$120,ROWS($A$10:$A11)+2,FALSE)","v":1098},{"$f":"HLOOKUP(BM$7+0.5,$I$66:$DJ$120,ROWS($A$10:$A11)+2,FALSE)","v":1060},{"$f":"HLOOKUP(BN$7+0.5,$I$66:$DJ$120,ROWS($A$10:$A11)+2,FALSE)","v":1063},{"$f":"HLOOKUP(BO$7+0.5,$I$66:$DJ$120,ROWS($A$10:$A11)+2,FALSE)","v":1286},{"$f":"HLOOKUP(BP$7+0.5,$I$66:$DJ$120,ROWS($A$10:$A11)+2,FALSE)","v":295},{"$f":"HLOOKUP(BQ$7+0.5,$I$66:$DJ$120,ROWS($A$10:$A11)+2,FALSE)","v":3231},{"$f":"HLOOKUP(BR$7+0.5,$I$66:$DJ$120,ROWS($A$10:$A11)+2,FALSE)","v":301},{"$f":"HLOOKUP(BS$7+0.5,$I$66:$DJ$120,ROWS($A$10:$A11)+2,FALSE)","v":359},{"$f":"HLOOKUP(BT$7+0.5,$I$66:$DJ$120,ROWS($A$10:$A11)+2,FALSE)","v":4141},{"$f":"HLOOKUP(BU$7+0.5,$I$66:$DJ$120,ROWS($A$10:$A11)+2,FALSE)","v":3711},{"$f":"HLOOKUP(BV$7+0.5,$I$66:$DJ$120,ROWS($A$10:$A11)+2,FALSE)","v":1292},{"$f":"HLOOKUP(BW$7+0.5,$I$66:$DJ$120,ROWS($A$10:$A11)+2,FALSE)","v":173},{"$f":"HLOOKUP(BX$7+0.5,$I$66:$DJ$120,ROWS($A$10:$A11)+2,FALSE)","v":3376},{"$f":"HLOOKUP(BY$7+0.5,$I$66:$DJ$120,ROWS($A$10:$A11)+2,FALSE)","v":634},{"$f":"HLOOKUP(BZ$7+0.5,$I$66:$DJ$120,ROWS($A$10:$A11)+2,FALSE)","v":52},{"$f":"HLOOKUP(CA$7+0.5,$I$66:$DJ$120,ROWS($A$10:$A11)+2,FALSE)","v":632},{"$f":"HLOOKUP(CB$7+0.5,$I$66:$DJ$120,ROWS($A$10:$A11)+2,FALSE)","v":856},{"$f":"HLOOKUP(CC$7+0.5,$I$66:$DJ$120,ROWS($A$10:$A11)+2,FALSE)","v":972},{"$f":"HLOOKUP(CD$7+0.5,$I$66:$DJ$120,ROWS($A$10:$A11)+2,FALSE)","v":378},{"$f":"HLOOKUP(CE$7+0.5,$I$66:$DJ$120,ROWS($A$10:$A11)+2,FALSE)","v":987},{"$f":"HLOOKUP(CF$7+0.5,$I$66:$DJ$120,ROWS($A$10:$A11)+2,FALSE)","v":146},{"$f":"HLOOKUP(CG$7+0.5,$I$66:$DJ$120,ROWS($A$10:$A11)+2,FALSE)","v":1250},{"$f":"HLOOKUP(CH$7+0.5,$I$66:$DJ$120,ROWS($A$10:$A11)+2,FALSE)","v":342},{"$f":"HLOOKUP(CI$7+0.5,$I$66:$DJ$120,ROWS($A$10:$A11)+2,FALSE)","v":1492},{"$f":"HLOOKUP(CJ$7+0.5,$I$66:$DJ$120,ROWS($A$10:$A11)+2,FALSE)","v":536},{"$f":"HLOOKUP(CK$7+0.5,$I$66:$DJ$120,ROWS($A$10:$A11)+2,FALSE)","v":463},{"$f":"HLOOKUP(CL$7+0.5,$I$66:$DJ$120,ROWS($A$10:$A11)+2,FALSE)","v":638},{"$f":"HLOOKUP(CM$7+0.5,$I$66:$DJ$120,ROWS($A$10:$A11)+2,FALSE)","v":333},{"$f":"HLOOKUP(CN$7+0.5,$I$66:$DJ$120,ROWS($A$10:$A11)+2,FALSE)","v":109},{"$f":"HLOOKUP(CO$7+0.5,$I$66:$DJ$120,ROWS($A$10:$A11)+2,FALSE)","v":2284},{"$f":"HLOOKUP(CP$7+0.5,$I$66:$DJ$120,ROWS($A$10:$A11)+2,FALSE)","v":184},{"$f":"HLOOKUP(CQ$7+0.5,$I$66:$DJ$120,ROWS($A$10:$A11)+2,FALSE)","v":442},{"$f":"HLOOKUP(CR$7+0.5,$I$66:$DJ$120,ROWS($A$10:$A11)+2,FALSE)","v":1820},{"$f":"HLOOKUP(CS$7+0.5,$I$66:$DJ$120,ROWS($A$10:$A11)+2,FALSE)","v":333},{"$f":"HLOOKUP(CT$7+0.5,$I$66:$DJ$120,ROWS($A$10:$A11)+2,FALSE)","v":958},{"$f":"HLOOKUP(CU$7+0.5,$I$66:$DJ$120,ROWS($A$10:$A11)+2,FALSE)","v":840},{"$f":"HLOOKUP(CV$7+0.5,$I$66:$DJ$120,ROWS($A$10:$A11)+2,FALSE)","v":182},{"$f":"HLOOKUP(CW$7+0.5,$I$66:$DJ$120,ROWS($A$10:$A11)+2,FALSE)","v":474},{"$f":"HLOOKUP(CX$7+0.5,$I$66:$DJ$120,ROWS($A$10:$A11)+2,FALSE)","v":190},{"$f":"HLOOKUP(CY$7+0.5,$I$66:$DJ$120,ROWS($A$10:$A11)+2,FALSE)","v":973},{"$f":"HLOOKUP(CZ$7+0.5,$I$66:$DJ$120,ROWS($A$10:$A11)+2,FALSE)","v":98},{"$f":"HLOOKUP(DA$7+0.5,$I$66:$DJ$120,ROWS($A$10:$A11)+2,FALSE)","v":2300},{"$f":"HLOOKUP(DB$7+0.5,$I$66:$DJ$120,ROWS($A$10:$A11)+2,FALSE)","v":2240},{"$f":"HLOOKUP(DC$7+0.5,$I$66:$DJ$120,ROWS($A$10:$A11)+2,FALSE)","v":390},{"$f":"HLOOKUP(DD$7+0.5,$I$66:$DJ$120,ROWS($A$10:$A11)+2,FALSE)","v":108},{"$f":"HLOOKUP(DE$7+0.5,$I$66:$DJ$120,ROWS($A$10:$A11)+2,FALSE)","v":2151},{"$f":"HLOOKUP(DF$7+0.5,$I$66:$DJ$120,ROWS($A$10:$A11)+2,FALSE)","v":1272},{"$f":"HLOOKUP(DG$7+0.5,$I$66:$DJ$120,ROWS($A$10:$A11)+2,FALSE)","v":110},{"$f":"HLOOKUP(DH$7+0.5,$I$66:$DJ$120,ROWS($A$10:$A11)+2,FALSE)","v":457},{"$f":"HLOOKUP(DI$7+0.5,$I$66:$DJ$120,ROWS($A$10:$A11)+2,FALSE)","v":15},{"$f":"HLOOKUP(DJ$7+0.5,$I$66:$DJ$120,ROWS($A$10:$A11)+2,FALSE)","v":601}]
[null,"Alaska",711962,1401,571857,8892,100280,8388,{"$f":"HLOOKUP(I$7,$I$66:$DJ$120,ROWS($A$10:$A12)+2,FALSE)","v":35084},{"$f":"HLOOKUP(J$7,$I$66:$DJ$120,ROWS($A$10:$A12)+2,FALSE)","v":93},{"$f":"HLOOKUP(K$7,$I$66:$DJ$120,ROWS($A$10:$A12)+2,FALSE)","v":"N/A"},{"$f":"HLOOKUP(L$7,$I$66:$DJ$120,ROWS($A$10:$A12)+2,FALSE)","v":2467},{"$f":"HLOOKUP(M$7,$I$66:$DJ$120,ROWS($A$10:$A12)+2,FALSE)","v":190},{"$f":"HLOOKUP(N$7,$I$66:$DJ$120,ROWS($A$10:$A12)+2,FALSE)","v":3098},{"$f":"HLOOKUP(O$7,$I$66:$DJ$120,ROWS($A$10:$A12)+2,FALSE)","v":1583},{"$f":"HLOOKUP(P$7,$I$66:$DJ$120,ROWS($A$10:$A12)+2,FALSE)","v":138},{"$f":"HLOOKUP(Q$7,$I$66:$DJ$120,ROWS($A$10:$A12)+2,FALSE)","v":11},{"$f":"HLOOKUP(R$7,$I$66:$DJ$120,ROWS($A$10:$A12)+2,FALSE)","v":140},{"$f":"HLOOKUP(S$7,$I$66:$DJ$120,ROWS($A$10:$A12)+2,FALSE)","v":1188},{"$f":"HLOOKUP(T$7,$I$66:$DJ$120,ROWS($A$10:$A12)+2,FALSE)","v":556},{"$f":"HLOOKUP(U$7,$I$66:$DJ$120,ROWS($A$10:$A12)+2,FALSE)","v":1366},{"$f":"HLOOKUP(V$7,$I$66:$DJ$120,ROWS($A$10:$A12)+2,FALSE)","v":475},{"$f":"HLOOKUP(W$7,$I$66:$DJ$120,ROWS($A$10:$A12)+2,FALSE)","v":985},{"$f":"HLOOKUP(X$7,$I$66:$DJ$120,ROWS($A$10:$A12)+2,FALSE)","v":181},{"$f":"HLOOKUP(Y$7,$I$66:$DJ$120,ROWS($A$10:$A12)+2,FALSE)","v":319},{"$f":"HLOOKUP(Z$7,$I$66:$DJ$120,ROWS($A$10:$A12)+2,FALSE)","v":750},{"$f":"HLOOKUP(AA$7,$I$66:$DJ$120,ROWS($A$10:$A12)+2,FALSE)","v":237},{"$f":"HLOOKUP(AB$7,$I$66:$DJ$120,ROWS($A$10:$A12)+2,FALSE)","v":1077},{"$f":"HLOOKUP(AC$7,$I$66:$DJ$120,ROWS($A$10:$A12)+2,FALSE)","v":0},{"$f":"HLOOKUP(AD$7,$I$66:$DJ$120,ROWS($A$10:$A12)+2,FALSE)","v":216},{"$f":"HLOOKUP(AE$7,$I$66:$DJ$120,ROWS($A$10:$A12)+2,FALSE)","v":141},{"$f":"HLOOKUP(AF$7,$I$66:$DJ$120,ROWS($A$10:$A12)+2,FALSE)","v":771},{"$f":"HLOOKUP(AG$7,$I$66:$DJ$120,ROWS($A$10:$A12)+2,FALSE)","v":593},{"$f":"HLOOKUP(AH$7,$I$66:$DJ$120,ROWS($A$10:$A12)+2,FALSE)","v":554},{"$f":"HLOOKUP(AI$7,$I$66:$DJ$120,ROWS($A$10:$A12)+2,FALSE)","v":921},{"$f":"HLOOKUP(AJ$7,$I$66:$DJ$120,ROWS($A$10:$A12)+2,FALSE)","v":248},{"$f":"HLOOKUP(AK$7,$I$66:$DJ$120,ROWS($A$10:$A12)+2,FALSE)","v":5},{"$f":"HLOOKUP(AL$7,$I$66:$DJ$120,ROWS($A$10:$A12)+2,FALSE)","v":532},{"$f":"HLOOKUP(AM$7,$I$66:$DJ$120,ROWS($A$10:$A12)+2,FALSE)","v":520},{"$f":"HLOOKUP(AN$7,$I$66:$DJ$120,ROWS($A$10:$A12)+2,FALSE)","v":128},{"$f":"HLOOKUP(AO$7,$I$66:$DJ$120,ROWS($A$10:$A12)+2,FALSE)","v":226},{"$f":"HLOOKUP(AP$7,$I$66:$DJ$120,ROWS($A$10:$A12)+2,FALSE)","v":940},{"$f":"HLOOKUP(AQ$7,$I$66:$DJ$120,ROWS($A$10:$A12)+2,FALSE)","v":470},{"$f":"HLOOKUP(AR$7,$I$66:$DJ$120,ROWS($A$10:$A12)+2,FALSE)","v":0},{"$f":"HLOOKUP(AS$7,$I$66:$DJ$120,ROWS($A$10:$A12)+2,FALSE)","v":319},{"$f":"HLOOKUP(AT$7,$I$66:$DJ$120,ROWS($A$10:$A12)+2,FALSE)","v":616},{"$f":"HLOOKUP(AU$7,$I$66:$DJ$120,ROWS($A$10:$A12)+2,FALSE)","v":2161},{"$f":"HLOOKUP(AV$7,$I$66:$DJ$120,ROWS($A$10:$A12)+2,FALSE)","v":378},{"$f":"HLOOKUP(AW$7,$I$66:$DJ$120,ROWS($A$10:$A12)+2,FALSE)","v":0},{"$f":"HLOOKUP(AX$7,$I$66:$DJ$120,ROWS($A$10:$A12)+2,FALSE)","v":186},{"$f":"HLOOKUP(AY$7,$I$66:$DJ$120,ROWS($A$10:$A12)+2,FALSE)","v":301},{"$f":"HLOOKUP(AZ$7,$I$66:$DJ$120,ROWS($A$10:$A12)+2,FALSE)","v":388},{"$f":"HLOOKUP(BA$7,$I$66:$DJ$120,ROWS($A$10:$A12)+2,FALSE)","v":2492},{"$f":"HLOOKUP(BB$7,$I$66:$DJ$120,ROWS($A$10:$A12)+2,FALSE)","v":662},{"$f":"HLOOKUP(BC$7,$I$66:$DJ$120,ROWS($A$10:$A12)+2,FALSE)","v":68},{"$f":"HLOOKUP(BD$7,$I$66:$DJ$120,ROWS($A$10:$A12)+2,FALSE)","v":1488},{"$f":"HLOOKUP(BE$7,$I$66:$DJ$120,ROWS($A$10:$A12)+2,FALSE)","v":4548},{"$f":"HLOOKUP(BF$7,$I$66:$DJ$120,ROWS($A$10:$A12)+2,FALSE)","v":89},{"$f":"HLOOKUP(BG$7,$I$66:$DJ$120,ROWS($A$10:$A12)+2,FALSE)","v":23},{"$f":"HLOOKUP(BH$7,$I$66:$DJ$120,ROWS($A$10:$A12)+2,FALSE)","v":246},{"$f":"HLOOKUP(BI$7,$I$66:$DJ$120,ROWS($A$10:$A12)+2,FALSE)","v":1044},{"$f":"HLOOKUP(BJ$7+0.5,$I$66:$DJ$120,ROWS($A$10:$A12)+2,FALSE)","v":4168},{"$f":"HLOOKUP(BK$7+0.5,$I$66:$DJ$120,ROWS($A$10:$A12)+2,FALSE)","v":113},{"$f":"HLOOKUP(BL$7+0.5,$I$66:$DJ$120,ROWS($A$10:$A12)+2,FALSE)","v":"N/A"},{"$f":"HLOOKUP(BM$7+0.5,$I$66:$DJ$120,ROWS($A$10:$A12)+2,FALSE)","v":1902},{"$f":"HLOOKUP(BN$7+0.5,$I$66:$DJ$120,ROWS($A$10:$A12)+2,FALSE)","v":258},{"$f":"HLOOKUP(BO$7+0.5,$I$66:$DJ$120,ROWS($A$10:$A12)+2,FALSE)","v":1921},{"$f":"HLOOKUP(BP$7+0.5,$I$66:$DJ$120,ROWS($A$10:$A12)+2,FALSE)","v":727},{"$f":"HLOOKUP(BQ$7+0.5,$I$66:$DJ$120,ROWS($A$10:$A12)+2,FALSE)","v":167},{"$f":"HLOOKUP(BR$7+0.5,$I$66:$DJ$120,ROWS($A$10:$A12)+2,FALSE)","v":24},{"$f":"HLOOKUP(BS$7+0.5,$I$66:$DJ$120,ROWS($A$10:$A12)+2,FALSE)","v":220},{"$f":"HLOOKUP(BT$7+0.5,$I$66:$DJ$120,ROWS($A$10:$A12)+2,FALSE)","v":476},{"$f":"HLOOKUP(BU$7+0.5,$I$66:$DJ$120,ROWS($A$10:$A12)+2,FALSE)","v":419},{"$f":"HLOOKUP(BV$7+0.5,$I$66:$DJ$120,ROWS($A$10:$A12)+2,FALSE)","v":703},{"$f":"HLOOKUP(BW$7+0.5,$I$66:$DJ$120,ROWS($A$10:$A12)+2,FALSE)","v":253},{"$f":"HLOOKUP(BX$7+0.5,$I$66:$DJ$120,ROWS($A$10:$A12)+2,FALSE)","v":686},{"$f":"HLOOKUP(BY$7+0.5,$I$66:$DJ$120,ROWS($A$10:$A12)+2,FALSE)","v":156},{"$f":"HLOOKUP(BZ$7+0.5,$I$66:$DJ$120,ROWS($A$10:$A12)+2,FALSE)","v":374},{"$f":"HLOOKUP(CA$7+0.5,$I$66:$DJ$120,ROWS($A$10:$A12)+2,FALSE)","v":741},{"$f":"HLOOKUP(CB$7+0.5,$I$66:$DJ$120,ROWS($A$10:$A12)+2,FALSE)","v":354},{"$f":"HLOOKUP(CC$7+0.5,$I$66:$DJ$120,ROWS($A$10:$A12)+2,FALSE)","v":1276},{"$f":"HLOOKUP(CD$7+0.5,$I$66:$DJ$120,ROWS($A$10:$A12)+2,FALSE)","v":149},{"$f":"HLOOKUP(CE$7+0.5,$I$66:$DJ$120,ROWS($A$10:$A12)+2,FALSE)","v":155},{"$f":"HLOOKUP(CF$7+0.5,$I$66:$DJ$120,ROWS($A$10:$A12)+2,FALSE)","v":120},{"$f":"HLOOKUP(CG$7+0.5,$I$66:$DJ$120,ROWS($A$10:$A12)+2,FALSE)","v":435},{"$f":"HLOOKUP(CH$7+0.5,$I$66:$DJ$120,ROWS($A$10:$A12)+2,FALSE)","v":568},{"$f":"HLOOKUP(CI$7+0.5,$I$66:$DJ$120,ROWS($A$10:$A12)+2,FALSE)","v":904},{"$f":"HLOOKUP(CJ$7+0.5,$I$66:$DJ$120,ROWS($A$10:$A12)+2,FALSE)","v":1014},{"$f":"HLOOKUP(CK$7+0.5,$I$66:$DJ$120,ROWS($A$10:$A12)+2,FALSE)","v":185},{"$f":"HLOOKUP(CL$7+0.5,$I$66:$DJ$120,ROWS($A$10:$A12)+2,FALSE)","v":12},{"$f":"HLOOKUP(CM$7+0.5,$I$66:$DJ$120,ROWS($A$10:$A12)+2,FALSE)","v":485},{"$f":"HLOOKUP(CN$7+0.5,$I$66:$DJ$120,ROWS($A$10:$A12)+2,FALSE)","v":744},{"$f":"HLOOKUP(CO$7+0.5,$I$66:$DJ$120,ROWS($A$10:$A12)+2,FALSE)","v":136},{"$f":"HLOOKUP(CP$7+0.5,$I$66:$DJ$120,ROWS($A$10:$A12)+2,FALSE)","v":188},{"$f":"HLOOKUP(CQ$7+0.5,$I$66:$DJ$120,ROWS($A$10:$A12)+2,FALSE)","v":613},{"$f":"HLOOKUP(CR$7+0.5,$I$66:$DJ$120,ROWS($A$10:$A12)+2,FALSE)","v":404},{"$f":"HLOOKUP(CS$7+0.5,$I$66:$DJ$120,ROWS($A$10:$A12)+2,FALSE)","v":149},{"$f":"HLOOKUP(CT$7+0.5,$I$66:$DJ$120,ROWS($A$10:$A12)+2,FALSE)","v":286},{"$f":"HLOOKUP(CU$7+0.5,$I$66:$DJ$120,ROWS($A$10:$A12)+2,FALSE)","v":733},{"$f":"HLOOKUP(CV$7+0.5,$I$66:$DJ$120,ROWS($A$10:$A12)+2,FALSE)","v":841},{"$f":"HLOOKUP(CW$7+0.5,$I$66:$DJ$120,ROWS($A$10:$A12)+2,FALSE)","v":371},{"$f":"HLOOKUP(CX$7+0.5,$I$66:$DJ$120,ROWS($A$10:$A12)+2,FALSE)","v":149},{"$f":"HLOOKUP(CY$7+0.5,$I$66:$DJ$120,ROWS($A$10:$A12)+2,FALSE)","v":182},{"$f":"HLOOKUP(CZ$7+0.5,$I$66:$DJ$120,ROWS($A$10:$A12)+2,FALSE)","v":343},{"$f":"HLOOKUP(DA$7+0.5,$I$66:$DJ$120,ROWS($A$10:$A12)+2,FALSE)","v":308},{"$f":"HLOOKUP(DB$7+0.5,$I$66:$DJ$120,ROWS($A$10:$A12)+2,FALSE)","v":1105},{"$f":"HLOOKUP(DC$7+0.5,$I$66:$DJ$120,ROWS($A$10:$A12)+2,FALSE)","v":731},{"$f":"HLOOKUP(DD$7+0.5,$I$66:$DJ$120,ROWS($A$10:$A12)+2,FALSE)","v":105},{"$f":"HLOOKUP(DE$7+0.5,$I$66:$DJ$120,ROWS($A$10:$A12)+2,FALSE)","v":1112},{"$f":"HLOOKUP(DF$7+0.5,$I$66:$DJ$120,ROWS($A$10:$A12)+2,FALSE)","v":1520},{"$f":"HLOOKUP(DG$7+0.5,$I$66:$DJ$120,ROWS($A$10:$A12)+2,FALSE)","v":75},{"$f":"HLOOKUP(DH$7+0.5,$I$66:$DJ$120,ROWS($A$10:$A12)+2,FALSE)","v":35},{"$f":"HLOOKUP(DI$7+0.5,$I$66:$DJ$120,ROWS($A$10:$A12)+2,FALSE)","v":272},{"$f":"HLOOKUP(DJ$7+0.5,$I$66:$DJ$120,ROWS($A$10:$A12)+2,FALSE)","v":962}]
[null,"Arizona",6402301,5660,5107496,39045,1028366,36556,{"$f":"HLOOKUP(I$7,$I$66:$DJ$120,ROWS($A$10:$A13)+2,FALSE)","v":222877},{"$f":"HLOOKUP(J$7,$I$66:$DJ$120,ROWS($A$10:$A13)+2,FALSE)","v":833},{"$f":"HLOOKUP(K$7,$I$66:$DJ$120,ROWS($A$10:$A13)+2,FALSE)","v":5001},{"$f":"HLOOKUP(L$7,$I$66:$DJ$120,ROWS($A$10:$A13)+2,FALSE)","v":"N/A"},{"$f":"HLOOKUP(M$7,$I$66:$DJ$120,ROWS($A$10:$A13)+2,FALSE)","v":1066},{"$f":"HLOOKUP(N$7,$I$66:$DJ$120,ROWS($A$10:$A13)+2,FALSE)","v":49635},{"$f":"HLOOKUP(O$7,$I$66:$DJ$120,ROWS($A$10:$A13)+2,FALSE)","v":10189},{"$f":"HLOOKUP(P$7,$I$66:$DJ$120,ROWS($A$10:$A13)+2,FALSE)","v":1875},{"$f":"HLOOKUP(Q$7,$I$66:$DJ$120,ROWS($A$10:$A13)+2,FALSE)","v":0},{"$f":"HLOOKUP(R$7,$I$66:$DJ$120,ROWS($A$10:$A13)+2,FALSE)","v":389},{"$f":"HLOOKUP(S$7,$I$66:$DJ$120,ROWS($A$10:$A13)+2,FALSE)","v":3732},{"$f":"HLOOKUP(T$7,$I$66:$DJ$120,ROWS($A$10:$A13)+2,FALSE)","v":2206},{"$f":"HLOOKUP(U$7,$I$66:$DJ$120,ROWS($A$10:$A13)+2,FALSE)","v":2199},{"$f":"HLOOKUP(V$7,$I$66:$DJ$120,ROWS($A$10:$A13)+2,FALSE)","v":2190},{"$f":"HLOOKUP(W$7,$I$66:$DJ$120,ROWS($A$10:$A13)+2,FALSE)","v":10035},{"$f":"HLOOKUP(X$7,$I$66:$DJ$120,ROWS($A$10:$A13)+2,FALSE)","v":5855},{"$f":"HLOOKUP(Y$7,$I$66:$DJ$120,ROWS($A$10:$A13)+2,FALSE)","v":4526},{"$f":"HLOOKUP(Z$7,$I$66:$DJ$120,ROWS($A$10:$A13)+2,FALSE)","v":1708},{"$f":"HLOOKUP(AA$7,$I$66:$DJ$120,ROWS($A$10:$A13)+2,FALSE)","v":2134},{"$f":"HLOOKUP(AB$7,$I$66:$DJ$120,ROWS($A$10:$A13)+2,FALSE)","v":844},{"$f":"HLOOKUP(AC$7,$I$66:$DJ$120,ROWS($A$10:$A13)+2,FALSE)","v":0},{"$f":"HLOOKUP(AD$7,$I$66:$DJ$120,ROWS($A$10:$A13)+2,FALSE)","v":1918},{"$f":"HLOOKUP(AE$7,$I$66:$DJ$120,ROWS($A$10:$A13)+2,FALSE)","v":743},{"$f":"HLOOKUP(AF$7,$I$66:$DJ$120,ROWS($A$10:$A13)+2,FALSE)","v":9396},{"$f":"HLOOKUP(AG$7,$I$66:$DJ$120,ROWS($A$10:$A13)+2,FALSE)","v":3297},{"$f":"HLOOKUP(AH$7,$I$66:$DJ$120,ROWS($A$10:$A13)+2,FALSE)","v":1226},{"$f":"HLOOKUP(AI$7,$I$66:$DJ$120,ROWS($A$10:$A13)+2,FALSE)","v":3872},{"$f":"HLOOKUP(AJ$7,$I$66:$DJ$120,ROWS($A$10:$A13)+2,FALSE)","v":2431},{"$f":"HLOOKUP(AK$7,$I$66:$DJ$120,ROWS($A$10:$A13)+2,FALSE)","v":1393},{"$f":"HLOOKUP(AL$7,$I$66:$DJ$120,ROWS($A$10:$A13)+2,FALSE)","v":8756},{"$f":"HLOOKUP(AM$7,$I$66:$DJ$120,ROWS($A$10:$A13)+2,FALSE)","v":228},{"$f":"HLOOKUP(AN$7,$I$66:$DJ$120,ROWS($A$10:$A13)+2,FALSE)","v":3379},{"$f":"HLOOKUP(AO$7,$I$66:$DJ$120,ROWS($A$10:$A13)+2,FALSE)","v":4610},{"$f":"HLOOKUP(AP$7,$I$66:$DJ$120,ROWS($A$10:$A13)+2,FALSE)","v":3880},{"$f":"HLOOKUP(AQ$7,$I$66:$DJ$120,ROWS($A$10:$A13)+2,FALSE)","v":2548},{"$f":"HLOOKUP(AR$7,$I$66:$DJ$120,ROWS($A$10:$A13)+2,FALSE)","v":1159},{"$f":"HLOOKUP(AS$7,$I$66:$DJ$120,ROWS($A$10:$A13)+2,FALSE)","v":4682},{"$f":"HLOOKUP(AT$7,$I$66:$DJ$120,ROWS($A$10:$A13)+2,FALSE)","v":3219},{"$f":"HLOOKUP(AU$7,$I$66:$DJ$120,ROWS($A$10:$A13)+2,FALSE)","v":4613},{"$f":"HLOOKUP(AV$7,$I$66:$DJ$120,ROWS($A$10:$A13)+2,FALSE)","v":3436},{"$f":"HLOOKUP(AW$7,$I$66:$DJ$120,ROWS($A$10:$A13)+2,FALSE)","v":72},{"$f":"HLOOKUP(AX$7,$I$66:$DJ$120,ROWS($A$10:$A13)+2,FALSE)","v":1774},{"$f":"HLOOKUP(AY$7,$I$66:$DJ$120,ROWS($A$10:$A13)+2,FALSE)","v":1657},{"$f":"HLOOKUP(AZ$7,$I$66:$DJ$120,ROWS($A$10:$A13)+2,FALSE)","v":1680},{"$f":"HLOOKUP(BA$7,$I$66:$DJ$120,ROWS($A$10:$A13)+2,FALSE)","v":12688},{"$f":"HLOOKUP(BB$7,$I$66:$DJ$120,ROWS($A$10:$A13)+2,FALSE)","v":10577},{"$f":"HLOOKUP(BC$7,$I$66:$DJ$120,ROWS($A$10:$A13)+2,FALSE)","v":0},{"$f":"HLOOKUP(BD$7,$I$66:$DJ$120,ROWS($A$10:$A13)+2,FALSE)","v":2233},{"$f":"HLOOKUP(BE$7,$I$66:$DJ$120,ROWS($A$10:$A13)+2,FALSE)","v":13940},{"$f":"HLOOKUP(BF$7,$I$66:$DJ$120,ROWS($A$10:$A13)+2,FALSE)","v":70},{"$f":"HLOOKUP(BG$7,$I$66:$DJ$120,ROWS($A$10:$A13)+2,FALSE)","v":6473},{"$f":"HLOOKUP(BH$7,$I$66:$DJ$120,ROWS($A$10:$A13)+2,FALSE)","v":2510},{"$f":"HLOOKUP(BI$7,$I$66:$DJ$120,ROWS($A$10:$A13)+2,FALSE)","v":871},{"$f":"HLOOKUP(BJ$7+0.5,$I$66:$DJ$120,ROWS($A$10:$A13)+2,FALSE)","v":14358},{"$f":"HLOOKUP(BK$7+0.5,$I$66:$DJ$120,ROWS($A$10:$A13)+2,FALSE)","v":587},{"$f":"HLOOKUP(BL$7+0.5,$I$66:$DJ$120,ROWS($A$10:$A13)+2,FALSE)","v":2214},{"$f":"HLOOKUP(BM$7+0.5,$I$66:$DJ$120,ROWS($A$10:$A13)+2,FALSE)","v":"N/A"},{"$f":"HLOOKUP(BN$7+0.5,$I$66:$DJ$120,ROWS($A$10:$A13)+2,FALSE)","v":740},{"$f":"HLOOKUP(BO$7+0.5,$I$66:$DJ$120,ROWS($A$10:$A13)+2,FALSE)","v":8755},{"$f":"HLOOKUP(BP$7+0.5,$I$66:$DJ$120,ROWS($A$10:$A13)+2,FALSE)","v":2958},{"$f":"HLOOKUP(BQ$7+0.5,$I$66:$DJ$120,ROWS($A$10:$A13)+2,FALSE)","v":1213},{"$f":"HLOOKUP(BR$7+0.5,$I$66:$DJ$120,ROWS($A$10:$A13)+2,FALSE)","v":229},{"$f":"HLOOKUP(BS$7+0.5,$I$66:$DJ$120,ROWS($A$10:$A13)+2,FALSE)","v":389},{"$f":"HLOOKUP(BT$7+0.5,$I$66:$DJ$120,ROWS($A$10:$A13)+2,FALSE)","v":1842},{"$f":"HLOOKUP(BU$7+0.5,$I$66:$DJ$120,ROWS($A$10:$A13)+2,FALSE)","v":1147},{"$f":"HLOOKUP(BV$7+0.5,$I$66:$DJ$120,ROWS($A$10:$A13)+2,FALSE)","v":1109},{"$f":"HLOOKUP(BW$7+0.5,$I$66:$DJ$120,ROWS($A$10:$A13)+2,FALSE)","v":1183},{"$f":"HLOOKUP(BX$7+0.5,$I$66:$DJ$120,ROWS($A$10:$A13)+2,FALSE)","v":4129},{"$f":"HLOOKUP(BY$7+0.5,$I$66:$DJ$120,ROWS($A$10:$A13)+2,FALSE)","v":1956},{"$f":"HLOOKUP(BZ$7+0.5,$I$66:$DJ$120,ROWS($A$10:$A13)+2,FALSE)","v":1745},{"$f":"HLOOKUP(CA$7+0.5,$I$66:$DJ$120,ROWS($A$10:$A13)+2,FALSE)","v":883},{"$f":"HLOOKUP(CB$7+0.5,$I$66:$DJ$120,ROWS($A$10:$A13)+2,FALSE)","v":1257},{"$f":"HLOOKUP(CC$7+0.5,$I$66:$DJ$120,ROWS($A$10:$A13)+2,FALSE)","v":867},{"$f":"HLOOKUP(CD$7+0.5,$I$66:$DJ$120,ROWS($A$10:$A13)+2,FALSE)","v":229},{"$f":"HLOOKUP(CE$7+0.5,$I$66:$DJ$120,ROWS($A$10:$A13)+2,FALSE)","v":1096},{"$f":"HLOOKUP(CF$7+0.5,$I$66:$DJ$120,ROWS($A$10:$A13)+2,FALSE)","v":430},{"$f":"HLOOKUP(CG$7+0.5,$I$66:$DJ$120,ROWS($A$10:$A13)+2,FALSE)","v":5283},{"$f":"HLOOKUP(CH$7+0.5,$I$66:$DJ$120,ROWS($A$10:$A13)+2,FALSE)","v":1064},{"$f":"HLOOKUP(CI$7+0.5,$I$66:$DJ$120,ROWS($A$10:$A13)+2,FALSE)","v":1492},{"$f":"HLOOKUP(CJ$7+0.5,$I$66:$DJ$120,ROWS($A$10:$A13)+2,FALSE)","v":1689},{"$f":"HLOOKUP(CK$7+0.5,$I$66:$DJ$120,ROWS($A$10:$A13)+2,FALSE)","v":1191},{"$f":"HLOOKUP(CL$7+0.5,$I$66:$DJ$120,ROWS($A$10:$A13)+2,FALSE)","v":798},{"$f":"HLOOKUP(CM$7+0.5,$I$66:$DJ$120,ROWS($A$10:$A13)+2,FALSE)","v":3417},{"$f":"HLOOKUP(CN$7+0.5,$I$66:$DJ$120,ROWS($A$10:$A13)+2,FALSE)","v":229},{"$f":"HLOOKUP(CO$7+0.5,$I$66:$DJ$120,ROWS($A$10:$A13)+2,FALSE)","v":1757},{"$f":"HLOOKUP(CP$7+0.5,$I$66:$DJ$120,ROWS($A$10:$A13)+2,FALSE)","v":1448},{"$f":"HLOOKUP(CQ$7+0.5,$I$66:$DJ$120,ROWS($A$10:$A13)+2,FALSE)","v":1363},{"$f":"HLOOKUP(CR$7+0.5,$I$66:$DJ$120,ROWS($A$10:$A13)+2,FALSE)","v":1269},{"$f":"HLOOKUP(CS$7+0.5,$I$66:$DJ$120,ROWS($A$10:$A13)+2,FALSE)","v":891},{"$f":"HLOOKUP(CT$7+0.5,$I$66:$DJ$120,ROWS($A$10:$A13)+2,FALSE)","v":2116},{"$f":"HLOOKUP(CU$7+0.5,$I$66:$DJ$120,ROWS($A$10:$A13)+2,FALSE)","v":1761},{"$f":"HLOOKUP(CV$7+0.5,$I$66:$DJ$120,ROWS($A$10:$A13)+2,FALSE)","v":1465},{"$f":"HLOOKUP(CW$7+0.5,$I$66:$DJ$120,ROWS($A$10:$A13)+2,FALSE)","v":1476},{"$f":"HLOOKUP(CX$7+0.5,$I$66:$DJ$120,ROWS($A$10:$A13)+2,FALSE)","v":131},{"$f":"HLOOKUP(CY$7+0.5,$I$66:$DJ$120,ROWS($A$10:$A13)+2,FALSE)","v":1932},{"$f":"HLOOKUP(CZ$7+0.5,$I$66:$DJ$120,ROWS($A$10:$A13)+2,FALSE)","v":1589},{"$f":"HLOOKUP(DA$7+0.5,$I$66:$DJ$120,ROWS($A$10:$A13)+2,FALSE)","v":647},{"$f":"HLOOKUP(DB$7+0.5,$I$66:$DJ$120,ROWS($A$10:$A13)+2,FALSE)","v":2976},{"$f":"HLOOKUP(DC$7+0.5,$I$66:$DJ$120,ROWS($A$10:$A13)+2,FALSE)","v":3336},{"$f":"HLOOKUP(DD$7+0.5,$I$66:$DJ$120,ROWS($A$10:$A13)+2,FALSE)","v":229},{"$f":"HLOOKUP(DE$7+0.5,$I$66:$DJ$120,ROWS($A$10:$A13)+2,FALSE)","v":1094},{"$f":"HLOOKUP(DF$7+0.5,$I$66:$DJ$120,ROWS($A$10:$A13)+2,FALSE)","v":5479},{"$f":"HLOOKUP(DG$7+0.5,$I$66:$DJ$120,ROWS($A$10:$A13)+2,FALSE)","v":118},{"$f":"HLOOKUP(DH$7+0.5,$I$66:$DJ$120,ROWS($A$10:$A13)+2,FALSE)","v":2066},{"$f":"HLOOKUP(DI$7+0.5,$I$66:$DJ$120,ROWS($A$10:$A13)+2,FALSE)","v":1288},{"$f":"HLOOKUP(DJ$7+0.5,$I$66:$DJ$120,ROWS($A$10:$A13)+2,FALSE)","v":639}]
[null,"Arkansas",2906632,2928,2421746,18606,405831,18050,{"$f":"HLOOKUP(I$7,$I$66:$DJ$120,ROWS($A$10:$A14)+2,FALSE)","v":69845},{"$f":"HLOOKUP(J$7,$I$66:$DJ$120,ROWS($A$10:$A14)+2,FALSE)","v":691},{"$f":"HLOOKUP(K$7,$I$66:$DJ$120,ROWS($A$10:$A14)+2,FALSE)","v":560},{"$f":"HLOOKUP(L$7,$I$66:$DJ$120,ROWS($A$10:$A14)+2,FALSE)","v":439},{"$f":"HLOOKUP(M$7,$I$66:$DJ$120,ROWS($A$10:$A14)+2,FALSE)","v":"N/A"},{"$f":"HLOOKUP(N$7,$I$66:$DJ$120,ROWS($A$10:$A14)+2,FALSE)","v":4077},{"$f":"HLOOKUP(O$7,$I$66:$DJ$120,ROWS($A$10:$A14)+2,FALSE)","v":746},{"$f":"HLOOKUP(P$7,$I$66:$DJ$120,ROWS($A$10:$A14)+2,FALSE)","v":519},{"$f":"HLOOKUP(Q$7,$I$66:$DJ$120,ROWS($A$10:$A14)+2,FALSE)","v":79},{"$f":"HLOOKUP(R$7,$I$66:$DJ$120,ROWS($A$10:$A14)+2,FALSE)","v":0},{"$f":"HLOOKUP(S$7,$I$66:$DJ$120,ROWS($A$10:$A14)+2,FALSE)","v":3067},{"$f":"HLOOKUP(T$7,$I$66:$DJ$120,ROWS($A$10:$A14)+2,FALSE)","v":1446},{"$f":"HLOOKUP(U$7,$I$66:$DJ$120,ROWS($A$10:$A14)+2,FALSE)","v":13},{"$f":"HLOOKUP(V$7,$I$66:$DJ$120,ROWS($A$10:$A14)+2,FALSE)","v":179},{"$f":"HLOOKUP(W$7,$I$66:$DJ$120,ROWS($A$10:$A14)+2,FALSE)","v":3684},{"$f":"HLOOKUP(X$7,$I$66:$DJ$120,ROWS($A$10:$A14)+2,FALSE)","v":1362},{"$f":"HLOOKUP(Y$7,$I$66:$DJ$120,ROWS($A$10:$A14)+2,FALSE)","v":851},{"$f":"HLOOKUP(Z$7,$I$66:$DJ$120,ROWS($A$10:$A14)+2,FALSE)","v":2008},{"$f":"HLOOKUP(AA$7,$I$66:$DJ$120,ROWS($A$10:$A14)+2,FALSE)","v":213},{"$f":"HLOOKUP(AB$7,$I$66:$DJ$120,ROWS($A$10:$A14)+2,FALSE)","v":2120},{"$f":"HLOOKUP(AC$7,$I$66:$DJ$120,ROWS($A$10:$A14)+2,FALSE)","v":30},{"$f":"HLOOKUP(AD$7,$I$66:$DJ$120,ROWS($A$10:$A14)+2,FALSE)","v":133},{"$f":"HLOOKUP(AE$7,$I$66:$DJ$120,ROWS($A$10:$A14)+2,FALSE)","v":781},{"$f":"HLOOKUP(AF$7,$I$66:$DJ$120,ROWS($A$10:$A14)+2,FALSE)","v":1881},{"$f":"HLOOKUP(AG$7,$I$66:$DJ$120,ROWS($A$10:$A14)+2,FALSE)","v":232},{"$f":"HLOOKUP(AH$7,$I$66:$DJ$120,ROWS($A$10:$A14)+2,FALSE)","v":1731},{"$f":"HLOOKUP(AI$7,$I$66:$DJ$120,ROWS($A$10:$A14)+2,FALSE)","v":7314},{"$f":"HLOOKUP(AJ$7,$I$66:$DJ$120,ROWS($A$10:$A14)+2,FALSE)","v":713},{"$f":"HLOOKUP(AK$7,$I$66:$DJ$120,ROWS($A$10:$A14)+2,FALSE)","v":332},{"$f":"HLOOKUP(AL$7,$I$66:$DJ$120,ROWS($A$10:$A14)+2,FALSE)","v":641},{"$f":"HLOOKUP(AM$7,$I$66:$DJ$120,ROWS($A$10:$A14)+2,FALSE)","v":52},{"$f":"HLOOKUP(AN$7,$I$66:$DJ$120,ROWS($A$10:$A14)+2,FALSE)","v":341},{"$f":"HLOOKUP(AO$7,$I$66:$DJ$120,ROWS($A$10:$A14)+2,FALSE)","v":775},{"$f":"HLOOKUP(AP$7,$I$66:$DJ$120,ROWS($A$10:$A14)+2,FALSE)","v":674},{"$f":"HLOOKUP(AQ$7,$I$66:$DJ$120,ROWS($A$10:$A14)+2,FALSE)","v":1664},{"$f":"HLOOKUP(AR$7,$I$66:$DJ$120,ROWS($A$10:$A14)+2,FALSE)","v":214},{"$f":"HLOOKUP(AS$7,$I$66:$DJ$120,ROWS($A$10:$A14)+2,FALSE)","v":174},{"$f":"HLOOKUP(AT$7,$I$66:$DJ$120,ROWS($A$10:$A14)+2,FALSE)","v":3761},{"$f":"HLOOKUP(AU$7,$I$66:$DJ$120,ROWS($A$10:$A14)+2,FALSE)","v":632},{"$f":"HLOOKUP(AV$7,$I$66:$DJ$120,ROWS($A$10:$A14)+2,FALSE)","v":567},{"$f":"HLOOKUP(AW$7,$I$66:$DJ$120,ROWS($A$10:$A14)+2,FALSE)","v":0},{"$f":"HLOOKUP(AX$7,$I$66:$DJ$120,ROWS($A$10:$A14)+2,FALSE)","v":235},{"$f":"HLOOKUP(AY$7,$I$66:$DJ$120,ROWS($A$10:$A14)+2,FALSE)","v":0},{"$f":"HLOOKUP(AZ$7,$I$66:$DJ$120,ROWS($A$10:$A14)+2,FALSE)","v":6462},{"$f":"HLOOKUP(BA$7,$I$66:$DJ$120,ROWS($A$10:$A14)+2,FALSE)","v":14767},{"$f":"HLOOKUP(BB$7,$I$66:$DJ$120,ROWS($A$10:$A14)+2,FALSE)","v":0},{"$f":"HLOOKUP(BC$7,$I$66:$DJ$120,ROWS($A$10:$A14)+2,FALSE)","v":0},{"$f":"HLOOKUP(BD$7,$I$66:$DJ$120,ROWS($A$10:$A14)+2,FALSE)","v":1245},{"$f":"HLOOKUP(BE$7,$I$66:$DJ$120,ROWS($A$10:$A14)+2,FALSE)","v":1477},{"$f":"HLOOKUP(BF$7,$I$66:$DJ$120,ROWS($A$10:$A14)+2,FALSE)","v":24},{"$f":"HLOOKUP(BG$7,$I$66:$DJ$120,ROWS($A$10:$A14)+2,FALSE)","v":687},{"$f":"HLOOKUP(BH$7,$I$66:$DJ$120,ROWS($A$10:$A14)+2,FALSE)","v":252},{"$f":"HLOOKUP(BI$7,$I$66:$DJ$120,ROWS($A$10:$A14)+2,FALSE)","v":529},{"$f":"HLOOKUP(BJ$7+0.5,$I$66:$DJ$120,ROWS($A$10:$A14)+2,FALSE)","v":7292},{"$f":"HLOOKUP(BK$7+0.5,$I$66:$DJ$120,ROWS($A$10:$A14)+2,FALSE)","v":573},{"$f":"HLOOKUP(BL$7+0.5,$I$66:$DJ$120,ROWS($A$10:$A14)+2,FALSE)","v":669},{"$f":"HLOOKUP(BM$7+0.5,$I$66:$DJ$120,ROWS($A$10:$A14)+2,FALSE)","v":381},{"$f":"HLOOKUP(BN$7+0.5,$I$66:$DJ$120,ROWS($A$10:$A14)+2,FALSE)","v":"N/A"},{"$f":"HLOOKUP(BO$7+0.5,$I$66:$DJ$120,ROWS($A$10:$A14)+2,FALSE)","v":2327},{"$f":"HLOOKUP(BP$7+0.5,$I$66:$DJ$120,ROWS($A$10:$A14)+2,FALSE)","v":451},{"$f":"HLOOKUP(BQ$7+0.5,$I$66:$DJ$120,ROWS($A$10:$A14)+2,FALSE)","v":654},{"$f":"HLOOKUP(BR$7+0.5,$I$66:$DJ$120,ROWS($A$10:$A14)+2,FALSE)","v":141},{"$f":"HLOOKUP(BS$7+0.5,$I$66:$DJ$120,ROWS($A$10:$A14)+2,FALSE)","v":192},{"$f":"HLOOKUP(BT$7+0.5,$I$66:$DJ$120,ROWS($A$10:$A14)+2,FALSE)","v":1273},{"$f":"HLOOKUP(BU$7+0.5,$I$66:$DJ$120,ROWS($A$10:$A14)+2,FALSE)","v":759},{"$f":"HLOOKUP(BV$7+0.5,$I$66:$DJ$120,ROWS($A$10:$A14)+2,FALSE)","v":27},{"$f":"HLOOKUP(BW$7+0.5,$I$66:$DJ$120,ROWS($A$10:$A14)+2,FALSE)","v":271},{"$f":"HLOOKUP(BX$7+0.5,$I$66:$DJ$120,ROWS($A$10:$A14)+2,FALSE)","v":2143},{"$f":"HLOOKUP(BY$7+0.5,$I$66:$DJ$120,ROWS($A$10:$A14)+2,FALSE)","v":1007},{"$f":"HLOOKUP(BZ$7+0.5,$I$66:$DJ$120,ROWS($A$10:$A14)+2,FALSE)","v":773},{"$f":"HLOOKUP(CA$7+0.5,$I$66:$DJ$120,ROWS($A$10:$A14)+2,FALSE)","v":1142},{"$f":"HLOOKUP(CB$7+0.5,$I$66:$DJ$120,ROWS($A$10:$A14)+2,FALSE)","v":311},{"$f":"HLOOKUP(CC$7+0.5,$I$66:$DJ$120,ROWS($A$10:$A14)+2,FALSE)","v":1015},{"$f":"HLOOKUP(CD$7+0.5,$I$66:$DJ$120,ROWS($A$10:$A14)+2,FALSE)","v":53},{"$f":"HLOOKUP(CE$7+0.5,$I$66:$DJ$120,ROWS($A$10:$A14)+2,FALSE)","v":176},{"$f":"HLOOKUP(CF$7+0.5,$I$66:$DJ$120,ROWS($A$10:$A14)+2,FALSE)","v":901},{"$f":"HLOOKUP(CG$7+0.5,$I$66:$DJ$120,ROWS($A$10:$A14)+2,FALSE)","v":1130},{"$f":"HLOOKUP(CH$7+0.5,$I$66:$DJ$120,ROWS($A$10:$A14)+2,FALSE)","v":396},{"$f":"HLOOKUP(CI$7+0.5,$I$66:$DJ$120,ROWS($A$10:$A14)+2,FALSE)","v":864},{"$f":"HLOOKUP(CJ$7+0.5,$I$66:$DJ$120,ROWS($A$10:$A14)+2,FALSE)","v":2602},{"$f":"HLOOKUP(CK$7+0.5,$I$66:$DJ$120,ROWS($A$10:$A14)+2,FALSE)","v":858},{"$f":"HLOOKUP(CL$7+0.5,$I$66:$DJ$120,ROWS($A$10:$A14)+2,FALSE)","v":417},{"$f":"HLOOKUP(CM$7+0.5,$I$66:$DJ$120,ROWS($A$10:$A14)+2,FALSE)","v":525},{"$f":"HLOOKUP(CN$7+0.5,$I$66:$DJ$120,ROWS($A$10:$A14)+2,FALSE)","v":69},{"$f":"HLOOKUP(CO$7+0.5,$I$66:$DJ$120,ROWS($A$10:$A14)+2,FALSE)","v":220},{"$f":"HLOOKUP(CP$7+0.5,$I$66:$DJ$120,ROWS($A$10:$A14)+2,FALSE)","v":680},{"$f":"HLOOKUP(CQ$7+0.5,$I$66:$DJ$120,ROWS($A$10:$A14)+2,FALSE)","v":362},{"$f":"HLOOKUP(CR$7+0.5,$I$66:$DJ$120,ROWS($A$10:$A14)+2,FALSE)","v":1220},{"$f":"HLOOKUP(CS$7+0.5,$I$66:$DJ$120,ROWS($A$10:$A14)+2,FALSE)","v":248},{"$f":"HLOOKUP(CT$7+0.5,$I$66:$DJ$120,ROWS($A$10:$A14)+2,FALSE)","v":176},{"$f":"HLOOKUP(CU$7+0.5,$I$66:$DJ$120,ROWS($A$10:$A14)+2,FALSE)","v":1456},{"$f":"HLOOKUP(CV$7+0.5,$I$66:$DJ$120,ROWS($A$10:$A14)+2,FALSE)","v":587},{"$f":"HLOOKUP(CW$7+0.5,$I$66:$DJ$120,ROWS($A$10:$A14)+2,FALSE)","v":628},{"$f":"HLOOKUP(CX$7+0.5,$I$66:$DJ$120,ROWS($A$10:$A14)+2,FALSE)","v":192},{"$f":"HLOOKUP(CY$7+0.5,$I$66:$DJ$120,ROWS($A$10:$A14)+2,FALSE)","v":269},{"$f":"HLOOKUP(CZ$7+0.5,$I$66:$DJ$120,ROWS($A$10:$A14)+2,FALSE)","v":192},{"$f":"HLOOKUP(DA$7+0.5,$I$66:$DJ$120,ROWS($A$10:$A14)+2,FALSE)","v":2269},{"$f":"HLOOKUP(DB$7+0.5,$I$66:$DJ$120,ROWS($A$10:$A14)+2,FALSE)","v":2746},{"$f":"HLOOKUP(DC$7+0.5,$I$66:$DJ$120,ROWS($A$10:$A14)+2,FALSE)","v":192},{"$f":"HLOOKUP(DD$7+0.5,$I$66:$DJ$120,ROWS($A$10:$A14)+2,FALSE)","v":192},{"$f":"HLOOKUP(DE$7+0.5,$I$66:$DJ$120,ROWS($A$10:$A14)+2,FALSE)","v":769},{"$f":"HLOOKUP(DF$7+0.5,$I$66:$DJ$120,ROWS($A$10:$A14)+2,FALSE)","v":636},{"$f":"HLOOKUP(DG$7+0.5,$I$66:$DJ$120,ROWS($A$10:$A14)+2,FALSE)","v":45},{"$f":"HLOOKUP(DH$7+0.5,$I$66:$DJ$120,ROWS($A$10:$A14)+2,FALSE)","v":632},{"$f":"HLOOKUP(DI$7+0.5,$I$66:$DJ$120,ROWS($A$10:$A14)+2,FALSE)","v":399},{"$f":"HLOOKUP(DJ$7+0.5,$I$66:$DJ$120,ROWS($A$10:$A14)+2,FALSE)","v":507}]
[null,"California",37222678,9999,31213310,71183,5271168,68394,{"$f":"HLOOKUP(I$7,$I$66:$DJ$120,ROWS($A$10:$A15)+2,FALSE)","v":468428},{"$f":"HLOOKUP(J$7,$I$66:$DJ$120,ROWS($A$10:$A15)+2,FALSE)","v":2087},{"$f":"HLOOKUP(K$7,$I$66:$DJ$120,ROWS($A$10:$A15)+2,FALSE)","v":7358},{"$f":"HLOOKUP(L$7,$I$66:$DJ$120,ROWS($A$10:$A15)+2,FALSE)","v":35650},{"$f":"HLOOKUP(M$7,$I$66:$DJ$120,ROWS($A$10:$A15)+2,FALSE)","v":2648},{"$f":"HLOOKUP(N$7,$I$66:$DJ$120,ROWS($A$10:$A15)+2,FALSE)","v":"N/A"},{"$f":"HLOOKUP(O$7,$I$66:$DJ$120,ROWS($A$10:$A15)+2,FALSE)","v":21245},{"$f":"HLOOKUP(P$7,$I$66:$DJ$120,ROWS($A$10:$A15)+2,FALSE)","v":3073},{"$f":"HLOOKUP(Q$7,$I$66:$DJ$120,ROWS($A$10:$A15)+2,FALSE)","v":1302},{"$f":"HLOOKUP(R$7,$I$66:$DJ$120,ROWS($A$10:$A15)+2,FALSE)","v":3240},{"$f":"HLOOKUP(S$7,$I$66:$DJ$120,ROWS($A$10:$A15)+2,FALSE)","v":22094},{"$f":"HLOOKUP(T$7,$I$66:$DJ$120,ROWS($A$10:$A15)+2,FALSE)","v":13303},{"$f":"HLOOKUP(U$7,$I$66:$DJ$120,ROWS($A$10:$A15)+2,FALSE)","v":9864},{"$f":"HLOOKUP(V$7,$I$66:$DJ$120,ROWS($A$10:$A15)+2,FALSE)","v":4796},{"$f":"HLOOKUP(W$7,$I$66:$DJ$120,ROWS($A$10:$A15)+2,FALSE)","v":20834},{"$f":"HLOOKUP(X$7,$I$66:$DJ$120,ROWS($A$10:$A15)+2,FALSE)","v":4673},{"$f":"HLOOKUP(Y$7,$I$66:$DJ$120,ROWS($A$10:$A15)+2,FALSE)","v":3324},{"$f":"HLOOKUP(Z$7,$I$66:$DJ$120,ROWS($A$10:$A15)+2,FALSE)","v":2810},{"$f":"HLOOKUP(AA$7,$I$66:$DJ$120,ROWS($A$10:$A15)+2,FALSE)","v":1201},{"$f":"HLOOKUP(AB$7,$I$66:$DJ$120,ROWS($A$10:$A15)+2,FALSE)","v":3600},{"$f":"HLOOKUP(AC$7,$I$66:$DJ$120,ROWS($A$10:$A15)+2,FALSE)","v":1658},{"$f":"HLOOKUP(AD$7,$I$66:$DJ$120,ROWS($A$10:$A15)+2,FALSE)","v":7793},{"$f":"HLOOKUP(AE$7,$I$66:$DJ$120,ROWS($A$10:$A15)+2,FALSE)","v":10244},{"$f":"HLOOKUP(AF$7,$I$66:$DJ$120,ROWS($A$10:$A15)+2,FALSE)","v":12069},{"$f":"HLOOKUP(AG$7,$I$66:$DJ$120,ROWS($A$10:$A15)+2,FALSE)","v":5687},{"$f":"HLOOKUP(AH$7,$I$66:$DJ$120,ROWS($A$10:$A15)+2,FALSE)","v":2092},{"$f":"HLOOKUP(AI$7,$I$66:$DJ$120,ROWS($A$10:$A15)+2,FALSE)","v":7677},{"$f":"HLOOKUP(AJ$7,$I$66:$DJ$120,ROWS($A$10:$A15)+2,FALSE)","v":2599},{"$f":"HLOOKUP(AK$7,$I$66:$DJ$120,ROWS($A$10:$A15)+2,FALSE)","v":1955},{"$f":"HLOOKUP(AL$7,$I$66:$DJ$120,ROWS($A$10:$A15)+2,FALSE)","v":36159},{"$f":"HLOOKUP(AM$7,$I$66:$DJ$120,ROWS($A$10:$A15)+2,FALSE)","v":1222},{"$f":"HLOOKUP(AN$7,$I$66:$DJ$120,ROWS($A$10:$A15)+2,FALSE)","v":8053},{"$f":"HLOOKUP(AO$7,$I$66:$DJ$120,ROWS($A$10:$A15)+2,FALSE)","v":5904},{"$f":"HLOOKUP(AP$7,$I$66:$DJ$120,ROWS($A$10:$A15)+2,FALSE)","v":25629},{"$f":"HLOOKUP(AQ$7,$I$66:$DJ$120,ROWS($A$10:$A15)+2,FALSE)","v":8708},{"$f":"HLOOKUP(AR$7,$I$66:$DJ$120,ROWS($A$10:$A15)+2,FALSE)","v":1392},{"$f":"HLOOKUP(AS$7,$I$66:$DJ$120,ROWS($A$10:$A15)+2,FALSE)","v":10474},{"$f":"HLOOKUP(AT$7,$I$66:$DJ$120,ROWS($A$10:$A15)+2,FALSE)","v":5113},{"$f":"HLOOKUP(AU$7,$I$66:$DJ$120,ROWS($A$10:$A15)+2,FALSE)","v":18165},{"$f":"HLOOKUP(AV$7,$I$66:$DJ$120,ROWS($A$10:$A15)+2,FALSE)","v":8550},{"$f":"HLOOKUP(AW$7,$I$66:$DJ$120,ROWS($A$10:$A15)+2,FALSE)","v":1103},{"$f":"HLOOKUP(AX$7,$I$66:$DJ$120,ROWS($A$10:$A15)+2,FALSE)","v":5758},{"$f":"HLOOKUP(AY$7,$I$66:$DJ$120,ROWS($A$10:$A15)+2,FALSE)","v":1004},{"$f":"HLOOKUP(AZ$7,$I$66:$DJ$120,ROWS($A$10:$A15)+2,FALSE)","v":8761},{"$f":"HLOOKUP(BA$7,$I$66:$DJ$120,ROWS($A$10:$A15)+2,FALSE)","v":37087},{"$f":"HLOOKUP(BB$7,$I$66:$DJ$120,ROWS($A$10:$A15)+2,FALSE)","v":8944},{"$f":"HLOOKUP(BC$7,$I$66:$DJ$120,ROWS($A$10:$A15)+2,FALSE)","v":745},{"$f":"HLOOKUP(BD$7,$I$66:$DJ$120,ROWS($A$10:$A15)+2,FALSE)","v":15753},{"$f":"HLOOKUP(BE$7,$I$66:$DJ$120,ROWS($A$10:$A15)+2,FALSE)","v":36481},{"$f":"HLOOKUP(BF$7,$I$66:$DJ$120,ROWS($A$10:$A15)+2,FALSE)","v":832},{"$f":"HLOOKUP(BG$7,$I$66:$DJ$120,ROWS($A$10:$A15)+2,FALSE)","v":5668},{"$f":"HLOOKUP(BH$7,$I$66:$DJ$120,ROWS($A$10:$A15)+2,FALSE)","v":2047},{"$f":"HLOOKUP(BI$7,$I$66:$DJ$120,ROWS($A$10:$A15)+2,FALSE)","v":1344},{"$f":"HLOOKUP(BJ$7+0.5,$I$66:$DJ$120,ROWS($A$10:$A15)+2,FALSE)","v":17921},{"$f":"HLOOKUP(BK$7+0.5,$I$66:$DJ$120,ROWS($A$10:$A15)+2,FALSE)","v":927},{"$f":"HLOOKUP(BL$7+0.5,$I$66:$DJ$120,ROWS($A$10:$A15)+2,FALSE)","v":2501},{"$f":"HLOOKUP(BM$7+0.5,$I$66:$DJ$120,ROWS($A$10:$A15)+2,FALSE)","v":4362},{"$f":"HLOOKUP(BN$7+0.5,$I$66:$DJ$120,ROWS($A$10:$A15)+2,FALSE)","v":1019},{"$f":"HLOOKUP(BO$7+0.5,$I$66:$DJ$120,ROWS($A$10:$A15)+2,FALSE)","v":"N/A"},{"$f":"HLOOKUP(BP$7+0.5,$I$66:$DJ$120,ROWS($A$10:$A15)+2,FALSE)","v":3867},{"$f":"HLOOKUP(BQ$7+0.5,$I$66:$DJ$120,ROWS($A$10:$A15)+2,FALSE)","v":1222},{"$f":"HLOOKUP(BR$7+0.5,$I$66:$DJ$120,ROWS($A$10:$A15)+2,FALSE)","v":1343},{"$f":"HLOOKUP(BS$7+0.5,$I$66:$DJ$120,ROWS($A$10:$A15)+2,FALSE)","v":1457},{"$f":"HLOOKUP(BT$7+0.5,$I$66:$DJ$120,ROWS($A$10:$A15)+2,FALSE)","v":4333},{"$f":"HLOOKUP(BU$7+0.5,$I$66:$DJ$120,ROWS($A$10:$A15)+2,FALSE)","v":3042},{"$f":"HLOOKUP(BV$7+0.5,$I$66:$DJ$120,ROWS($A$10:$A15)+2,FALSE)","v":2683},{"$f":"HLOOKUP(BW$7+0.5,$I$66:$DJ$120,ROWS($A$10:$A15)+2,FALSE)","v":1560},{"$f":"HLOOKUP(BX$7+0.5,$I$66:$DJ$120,ROWS($A$10:$A15)+2,FALSE)","v":3496},{"$f":"HLOOKUP(BY$7+0.5,$I$66:$DJ$120,ROWS($A$10:$A15)+2,FALSE)","v":1297},{"$f":"HLOOKUP(BZ$7+0.5,$I$66:$DJ$120,ROWS($A$10:$A15)+2,FALSE)","v":1701},{"$f":"HLOOKUP(CA$7+0.5,$I$66:$DJ$120,ROWS($A$10:$A15)+2,FALSE)","v":1256},{"$f":"HLOOKUP(CB$7+0.5,$I$66:$DJ$120,ROWS($A$10:$A15)+2,FALSE)","v":507},{"$f":"HLOOKUP(CC$7+0.5,$I$66:$DJ$120,ROWS($A$10:$A15)+2,FALSE)","v":1751},{"$f":"HLOOKUP(CD$7+0.5,$I$66:$DJ$120,ROWS($A$10:$A15)+2,FALSE)","v":1175},{"$f":"HLOOKUP(CE$7+0.5,$I$66:$DJ$120,ROWS($A$10:$A15)+2,FALSE)","v":1924},{"$f":"HLOOKUP(CF$7+0.5,$I$66:$DJ$120,ROWS($A$10:$A15)+2,FALSE)","v":2069},{"$f":"HLOOKUP(CG$7+0.5,$I$66:$DJ$120,ROWS($A$10:$A15)+2,FALSE)","v":4117},{"$f":"HLOOKUP(CH$7+0.5,$I$66:$DJ$120,ROWS($A$10:$A15)+2,FALSE)","v":1375},{"$f":"HLOOKUP(CI$7+0.5,$I$66:$DJ$120,ROWS($A$10:$A15)+2,FALSE)","v":896},{"$f":"HLOOKUP(CJ$7+0.5,$I$66:$DJ$120,ROWS($A$10:$A15)+2,FALSE)","v":1995},{"$f":"HLOOKUP(CK$7+0.5,$I$66:$DJ$120,ROWS($A$10:$A15)+2,FALSE)","v":1492},{"$f":"HLOOKUP(CL$7+0.5,$I$66:$DJ$120,ROWS($A$10:$A15)+2,FALSE)","v":821},{"$f":"HLOOKUP(CM$7+0.5,$I$66:$DJ$120,ROWS($A$10:$A15)+2,FALSE)","v":5100},{"$f":"HLOOKUP(CN$7+0.5,$I$66:$DJ$120,ROWS($A$10:$A15)+2,FALSE)","v":869},{"$f":"HLOOKUP(CO$7+0.5,$I$66:$DJ$120,ROWS($A$10:$A15)+2,FALSE)","v":2169},{"$f":"HLOOKUP(CP$7+0.5,$I$66:$DJ$120,ROWS($A$10:$A15)+2,FALSE)","v":2207},{"$f":"HLOOKUP(CQ$7+0.5,$I$66:$DJ$120,ROWS($A$10:$A15)+2,FALSE)","v":3287},{"$f":"HLOOKUP(CR$7+0.5,$I$66:$DJ$120,ROWS($A$10:$A15)+2,FALSE)","v":2611},{"$f":"HLOOKUP(CS$7+0.5,$I$66:$DJ$120,ROWS($A$10:$A15)+2,FALSE)","v":898},{"$f":"HLOOKUP(CT$7+0.5,$I$66:$DJ$120,ROWS($A$10:$A15)+2,FALSE)","v":3555},{"$f":"HLOOKUP(CU$7+0.5,$I$66:$DJ$120,ROWS($A$10:$A15)+2,FALSE)","v":1763},{"$f":"HLOOKUP(CV$7+0.5,$I$66:$DJ$120,ROWS($A$10:$A15)+2,FALSE)","v":2845},{"$f":"HLOOKUP(CW$7+0.5,$I$66:$DJ$120,ROWS($A$10:$A15)+2,FALSE)","v":2017},{"$f":"HLOOKUP(CX$7+0.5,$I$66:$DJ$120,ROWS($A$10:$A15)+2,FALSE)","v":545},{"$f":"HLOOKUP(CY$7+0.5,$I$66:$DJ$120,ROWS($A$10:$A15)+2,FALSE)","v":2383},{"$f":"HLOOKUP(CZ$7+0.5,$I$66:$DJ$120,ROWS($A$10:$A15)+2,FALSE)","v":686},{"$f":"HLOOKUP(DA$7+0.5,$I$66:$DJ$120,ROWS($A$10:$A15)+2,FALSE)","v":2325},{"$f":"HLOOKUP(DB$7+0.5,$I$66:$DJ$120,ROWS($A$10:$A15)+2,FALSE)","v":5877},{"$f":"HLOOKUP(DC$7+0.5,$I$66:$DJ$120,ROWS($A$10:$A15)+2,FALSE)","v":2725},{"$f":"HLOOKUP(DD$7+0.5,$I$66:$DJ$120,ROWS($A$10:$A15)+2,FALSE)","v":504},{"$f":"HLOOKUP(DE$7+0.5,$I$66:$DJ$120,ROWS($A$10:$A15)+2,FALSE)","v":2373},{"$f":"HLOOKUP(DF$7+0.5,$I$66:$DJ$120,ROWS($A$10:$A15)+2,FALSE)","v":6266},{"$f":"HLOOKUP(DG$7+0.5,$I$66:$DJ$120,ROWS($A$10:$A15)+2,FALSE)","v":463},{"$f":"HLOOKUP(DH$7+0.5,$I$66:$DJ$120,ROWS($A$10:$A15)+2,FALSE)","v":1495},{"$f":"HLOOKUP(DI$7+0.5,$I$66:$DJ$120,ROWS($A$10:$A15)+2,FALSE)","v":1810},{"$f":"HLOOKUP(DJ$7+0.5,$I$66:$DJ$120,ROWS($A$10:$A15)+2,FALSE)","v":635}]
[null,"Colorado",5048443,4037,4048042,22888,763233,18937,{"$f":"HLOOKUP(I$7,$I$66:$DJ$120,ROWS($A$10:$A16)+2,FALSE)","v":202124},{"$f":"HLOOKUP(J$7,$I$66:$DJ$120,ROWS($A$10:$A16)+2,FALSE)","v":2340},{"$f":"HLOOKUP(K$7,$I$66:$DJ$120,ROWS($A$10:$A16)+2,FALSE)","v":3191},{"$f":"HLOOKUP(L$7,$I$66:$DJ$120,ROWS($A$10:$A16)+2,FALSE)","v":12338},{"$f":"HLOOKUP(M$7,$I$66:$DJ$120,ROWS($A$10:$A16)+2,FALSE)","v":1615},{"$f":"HLOOKUP(N$7,$I$66:$DJ$120,ROWS($A$10:$A16)+2,FALSE)","v":23234},{"$f":"HLOOKUP(O$7,$I$66:$DJ$120,ROWS($A$10:$A16)+2,FALSE)","v":"N/A"},{"$f":"HLOOKUP(P$7,$I$66:$DJ$120,ROWS($A$10:$A16)+2,FALSE)","v":1567},{"$f":"HLOOKUP(Q$7,$I$66:$DJ$120,ROWS($A$10:$A16)+2,FALSE)","v":501},{"$f":"HLOOKUP(R$7,$I$66:$DJ$120,ROWS($A$10:$A16)+2,FALSE)","v":298},{"$f":"HLOOKUP(S$7,$I$66:$DJ$120,ROWS($A$10:$A16)+2,FALSE)","v":8075},{"$f":"HLOOKUP(T$7,$I$66:$DJ$120,ROWS($A$10:$A16)+2,FALSE)","v":3250},{"$f":"HLOOKUP(U$7,$I$66:$DJ$120,ROWS($A$10:$A16)+2,FALSE)","v":1852},{"$f":"HLOOKUP(V$7,$I$66:$DJ$120,ROWS($A$10:$A16)+2,FALSE)","v":1578},{"$f":"HLOOKUP(W$7,$I$66:$DJ$120,ROWS($A$10:$A16)+2,FALSE)","v":6027},{"$f":"HLOOKUP(X$7,$I$66:$DJ$120,ROWS($A$10:$A16)+2,FALSE)","v":2116},{"$f":"HLOOKUP(Y$7,$I$66:$DJ$120,ROWS($A$10:$A16)+2,FALSE)","v":3510},{"$f":"HLOOKUP(Z$7,$I$66:$DJ$120,ROWS($A$10:$A16)+2,FALSE)","v":3718},{"$f":"HLOOKUP(AA$7,$I$66:$DJ$120,ROWS($A$10:$A16)+2,FALSE)","v":1361},{"$f":"HLOOKUP(AB$7,$I$66:$DJ$120,ROWS($A$10:$A16)+2,FALSE)","v":908},{"$f":"HLOOKUP(AC$7,$I$66:$DJ$120,ROWS($A$10:$A16)+2,FALSE)","v":1358},{"$f":"HLOOKUP(AD$7,$I$66:$DJ$120,ROWS($A$10:$A16)+2,FALSE)","v":3303},{"$f":"HLOOKUP(AE$7,$I$66:$DJ$120,ROWS($A$10:$A16)+2,FALSE)","v":2157},{"$f":"HLOOKUP(AF$7,$I$66:$DJ$120,ROWS($A$10:$A16)+2,FALSE)","v":3225},{"$f":"HLOOKUP(AG$7,$I$66:$DJ$120,ROWS($A$10:$A16)+2,FALSE)","v":3055},{"$f":"HLOOKUP(AH$7,$I$66:$DJ$120,ROWS($A$10:$A16)+2,FALSE)","v":879},{"$f":"HLOOKUP(AI$7,$I$66:$DJ$120,ROWS($A$10:$A16)+2,FALSE)","v":4552},{"$f":"HLOOKUP(AJ$7,$I$66:$DJ$120,ROWS($A$10:$A16)+2,FALSE)","v":4079},{"$f":"HLOOKUP(AK$7,$I$66:$DJ$120,ROWS($A$10:$A16)+2,FALSE)","v":4582},{"$f":"HLOOKUP(AL$7,$I$66:$DJ$120,ROWS($A$10:$A16)+2,FALSE)","v":4061},{"$f":"HLOOKUP(AM$7,$I$66:$DJ$120,ROWS($A$10:$A16)+2,FALSE)","v":489},{"$f":"HLOOKUP(AN$7,$I$66:$DJ$120,ROWS($A$10:$A16)+2,FALSE)","v":2863},{"$f":"HLOOKUP(AO$7,$I$66:$DJ$120,ROWS($A$10:$A16)+2,FALSE)","v":8797},{"$f":"HLOOKUP(AP$7,$I$66:$DJ$120,ROWS($A$10:$A16)+2,FALSE)","v":3998},{"$f":"HLOOKUP(AQ$7,$I$66:$DJ$120,ROWS($A$10:$A16)+2,FALSE)","v":4756},{"$f":"HLOOKUP(AR$7,$I$66:$DJ$120,ROWS($A$10:$A16)+2,FALSE)","v":2249},{"$f":"HLOOKUP(AS$7,$I$66:$DJ$120,ROWS($A$10:$A16)+2,FALSE)","v":5527},{"$f":"HLOOKUP(AT$7,$I$66:$DJ$120,ROWS($A$10:$A16)+2,FALSE)","v":3824},{"$f":"HLOOKUP(AU$7,$I$66:$DJ$120,ROWS($A$10:$A16)+2,FALSE)","v":5543},{"$f":"HLOOKUP(AV$7,$I$66:$DJ$120,ROWS($A$10:$A16)+2,FALSE)","v":3348},{"$f":"HLOOKUP(AW$7,$I$66:$DJ$120,ROWS($A$10:$A16)+2,FALSE)","v":435},{"$f":"HLOOKUP(AX$7,$I$66:$DJ$120,ROWS($A$10:$A16)+2,FALSE)","v":718},{"$f":"HLOOKUP(AY$7,$I$66:$DJ$120,ROWS($A$10:$A16)+2,FALSE)","v":1340},{"$f":"HLOOKUP(AZ$7,$I$66:$DJ$120,ROWS($A$10:$A16)+2,FALSE)","v":3193},{"$f":"HLOOKUP(BA$7,$I$66:$DJ$120,ROWS($A$10:$A16)+2,FALSE)","v":22390},{"$f":"HLOOKUP(BB$7,$I$66:$DJ$120,ROWS($A$10:$A16)+2,FALSE)","v":3856},{"$f":"HLOOKUP(BC$7,$I$66:$DJ$120,ROWS($A$10:$A16)+2,FALSE)","v":914},{"$f":"HLOOKUP(BD$7,$I$66:$DJ$120,ROWS($A$10:$A16)+2,FALSE)","v":6281},{"$f":"HLOOKUP(BE$7,$I$66:$DJ$120,ROWS($A$10:$A16)+2,FALSE)","v":5524},{"$f":"HLOOKUP(BF$7,$I$66:$DJ$120,ROWS($A$10:$A16)+2,FALSE)","v":412},{"$f":"HLOOKUP(BG$7,$I$66:$DJ$120,ROWS($A$10:$A16)+2,FALSE)","v":3995},{"$f":"HLOOKUP(BH$7,$I$66:$DJ$120,ROWS($A$10:$A16)+2,FALSE)","v":2942},{"$f":"HLOOKUP(BI$7,$I$66:$DJ$120,ROWS($A$10:$A16)+2,FALSE)","v":476},{"$f":"HLOOKUP(BJ$7+0.5,$I$66:$DJ$120,ROWS($A$10:$A16)+2,FALSE)","v":11431},{"$f":"HLOOKUP(BK$7+0.5,$I$66:$DJ$120,ROWS($A$10:$A16)+2,FALSE)","v":1681},{"$f":"HLOOKUP(BL$7+0.5,$I$66:$DJ$120,ROWS($A$10:$A16)+2,FALSE)","v":1622},{"$f":"HLOOKUP(BM$7+0.5,$I$66:$DJ$120,ROWS($A$10:$A16)+2,FALSE)","v":3704},{"$f":"HLOOKUP(BN$7+0.5,$I$66:$DJ$120,ROWS($A$10:$A16)+2,FALSE)","v":1191},{"$f":"HLOOKUP(BO$7+0.5,$I$66:$DJ$120,ROWS($A$10:$A16)+2,FALSE)","v":3742},{"$f":"HLOOKUP(BP$7+0.5,$I$66:$DJ$120,ROWS($A$10:$A16)+2,FALSE)","v":"N/A"},{"$f":"HLOOKUP(BQ$7+0.5,$I$66:$DJ$120,ROWS($A$10:$A16)+2,FALSE)","v":838},{"$f":"HLOOKUP(BR$7+0.5,$I$66:$DJ$120,ROWS($A$10:$A16)+2,FALSE)","v":556},{"$f":"HLOOKUP(BS$7+0.5,$I$66:$DJ$120,ROWS($A$10:$A16)+2,FALSE)","v":301},{"$f":"HLOOKUP(BT$7+0.5,$I$66:$DJ$120,ROWS($A$10:$A16)+2,FALSE)","v":2090},{"$f":"HLOOKUP(BU$7+0.5,$I$66:$DJ$120,ROWS($A$10:$A16)+2,FALSE)","v":1254},{"$f":"HLOOKUP(BV$7+0.5,$I$66:$DJ$120,ROWS($A$10:$A16)+2,FALSE)","v":832},{"$f":"HLOOKUP(BW$7+0.5,$I$66:$DJ$120,ROWS($A$10:$A16)+2,FALSE)","v":766},{"$f":"HLOOKUP(BX$7+0.5,$I$66:$DJ$120,ROWS($A$10:$A16)+2,FALSE)","v":1536},{"$f":"HLOOKUP(BY$7+0.5,$I$66:$DJ$120,ROWS($A$10:$A16)+2,FALSE)","v":1289},{"$f":"HLOOKUP(BZ$7+0.5,$I$66:$DJ$120,ROWS($A$10:$A16)+2,FALSE)","v":1495},{"$f":"HLOOKUP(CA$7+0.5,$I$66:$DJ$120,ROWS($A$10:$A16)+2,FALSE)","v":1495},{"$f":"HLOOKUP(CB$7+0.5,$I$66:$DJ$120,ROWS($A$10:$A16)+2,FALSE)","v":1028},{"$f":"HLOOKUP(CC$7+0.5,$I$66:$DJ$120,ROWS($A$10:$A16)+2,FALSE)","v":550},{"$f":"HLOOKUP(CD$7+0.5,$I$66:$DJ$120,ROWS($A$10:$A16)+2,FALSE)","v":1235},{"$f":"HLOOKUP(CE$7+0.5,$I$66:$DJ$120,ROWS($A$10:$A16)+2,FALSE)","v":1416},{"$f":"HLOOKUP(CF$7+0.5,$I$66:$DJ$120,ROWS($A$10:$A16)+2,FALSE)","v":1085},{"$f":"HLOOKUP(CG$7+0.5,$I$66:$DJ$120,ROWS($A$10:$A16)+2,FALSE)","v":1061},{"$f":"HLOOKUP(CH$7+0.5,$I$66:$DJ$120,ROWS($A$10:$A16)+2,FALSE)","v":1092},{"$f":"HLOOKUP(CI$7+0.5,$I$66:$DJ$120,ROWS($A$10:$A16)+2,FALSE)","v":621},{"$f":"HLOOKUP(CJ$7+0.5,$I$66:$DJ$120,ROWS($A$10:$A16)+2,FALSE)","v":1382},{"$f":"HLOOKUP(CK$7+0.5,$I$66:$DJ$120,ROWS($A$10:$A16)+2,FALSE)","v":1579},{"$f":"HLOOKUP(CL$7+0.5,$I$66:$DJ$120,ROWS($A$10:$A16)+2,FALSE)","v":1961},{"$f":"HLOOKUP(CM$7+0.5,$I$66:$DJ$120,ROWS($A$10:$A16)+2,FALSE)","v":1432},{"$f":"HLOOKUP(CN$7+0.5,$I$66:$DJ$120,ROWS($A$10:$A16)+2,FALSE)","v":396},{"$f":"HLOOKUP(CO$7+0.5,$I$66:$DJ$120,ROWS($A$10:$A16)+2,FALSE)","v":1788},{"$f":"HLOOKUP(CP$7+0.5,$I$66:$DJ$120,ROWS($A$10:$A16)+2,FALSE)","v":2308},{"$f":"HLOOKUP(CQ$7+0.5,$I$66:$DJ$120,ROWS($A$10:$A16)+2,FALSE)","v":1621},{"$f":"HLOOKUP(CR$7+0.5,$I$66:$DJ$120,ROWS($A$10:$A16)+2,FALSE)","v":1686},{"$f":"HLOOKUP(CS$7+0.5,$I$66:$DJ$120,ROWS($A$10:$A16)+2,FALSE)","v":1245},{"$f":"HLOOKUP(CT$7+0.5,$I$66:$DJ$120,ROWS($A$10:$A16)+2,FALSE)","v":2388},{"$f":"HLOOKUP(CU$7+0.5,$I$66:$DJ$120,ROWS($A$10:$A16)+2,FALSE)","v":2137},{"$f":"HLOOKUP(CV$7+0.5,$I$66:$DJ$120,ROWS($A$10:$A16)+2,FALSE)","v":2105},{"$f":"HLOOKUP(CW$7+0.5,$I$66:$DJ$120,ROWS($A$10:$A16)+2,FALSE)","v":1302},{"$f":"HLOOKUP(CX$7+0.5,$I$66:$DJ$120,ROWS($A$10:$A16)+2,FALSE)","v":560},{"$f":"HLOOKUP(CY$7+0.5,$I$66:$DJ$120,ROWS($A$10:$A16)+2,FALSE)","v":480},{"$f":"HLOOKUP(CZ$7+0.5,$I$66:$DJ$120,ROWS($A$10:$A16)+2,FALSE)","v":1037},{"$f":"HLOOKUP(DA$7+0.5,$I$66:$DJ$120,ROWS($A$10:$A16)+2,FALSE)","v":1472},{"$f":"HLOOKUP(DB$7+0.5,$I$66:$DJ$120,ROWS($A$10:$A16)+2,FALSE)","v":4287},{"$f":"HLOOKUP(DC$7+0.5,$I$66:$DJ$120,ROWS($A$10:$A16)+2,FALSE)","v":1446},{"$f":"HLOOKUP(DD$7+0.5,$I$66:$DJ$120,ROWS($A$10:$A16)+2,FALSE)","v":772},{"$f":"HLOOKUP(DE$7+0.5,$I$66:$DJ$120,ROWS($A$10:$A16)+2,FALSE)","v":2671},{"$f":"HLOOKUP(DF$7+0.5,$I$66:$DJ$120,ROWS($A$10:$A16)+2,FALSE)","v":2092},{"$f":"HLOOKUP(DG$7+0.5,$I$66:$DJ$120,ROWS($A$10:$A16)+2,FALSE)","v":490},{"$f":"HLOOKUP(DH$7+0.5,$I$66:$DJ$120,ROWS($A$10:$A16)+2,FALSE)","v":1774},{"$f":"HLOOKUP(DI$7+0.5,$I$66:$DJ$120,ROWS($A$10:$A16)+2,FALSE)","v":923},{"$f":"HLOOKUP(DJ$7+0.5,$I$66:$DJ$120,ROWS($A$10:$A16)+2,FALSE)","v":556}]
[null,"Connecticut",3548667,2644,3139496,16755,316883,15392,{"$f":"HLOOKUP(I$7,$I$66:$DJ$120,ROWS($A$10:$A17)+2,FALSE)","v":71502},{"$f":"HLOOKUP(J$7,$I$66:$DJ$120,ROWS($A$10:$A17)+2,FALSE)","v":101},{"$f":"HLOOKUP(K$7,$I$66:$DJ$120,ROWS($A$10:$A17)+2,FALSE)","v":180},{"$f":"HLOOKUP(L$7,$I$66:$DJ$120,ROWS($A$10:$A17)+2,FALSE)","v":1387},{"$f":"HLOOKUP(M$7,$I$66:$DJ$120,ROWS($A$10:$A17)+2,FALSE)","v":84},{"$f":"HLOOKUP(N$7,$I$66:$DJ$120,ROWS($A$10:$A17)+2,FALSE)","v":3699},{"$f":"HLOOKUP(O$7,$I$66:$DJ$120,ROWS($A$10:$A17)+2,FALSE)","v":1502},{"$f":"HLOOKUP(P$7,$I$66:$DJ$120,ROWS($A$10:$A17)+2,FALSE)","v":"N/A"},{"$f":"HLOOKUP(Q$7,$I$66:$DJ$120,ROWS($A$10:$A17)+2,FALSE)","v":62},{"$f":"HLOOKUP(R$7,$I$66:$DJ$120,ROWS($A$10:$A17)+2,FALSE)","v":607},{"$f":"HLOOKUP(S$7,$I$66:$DJ$120,ROWS($A$10:$A17)+2,FALSE)","v":4771},{"$f":"HLOOKUP(T$7,$I$66:$DJ$120,ROWS($A$10:$A17)+2,FALSE)","v":2000},{"$f":"HLOOKUP(U$7,$I$66:$DJ$120,ROWS($A$10:$A17)+2,FALSE)","v":587},{"$f":"HLOOKUP(V$7,$I$66:$DJ$120,ROWS($A$10:$A17)+2,FALSE)","v":133},{"$f":"HLOOKUP(W$7,$I$66:$DJ$120,ROWS($A$10:$A17)+2,FALSE)","v":1843},{"$f":"HLOOKUP(X$7,$I$66:$DJ$120,ROWS($A$10:$A17)+2,FALSE)","v":168},{"$f":"HLOOKUP(Y$7,$I$66:$DJ$120,ROWS($A$10:$A17)+2,FALSE)","v":67},{"$f":"HLOOKUP(Z$7,$I$66:$DJ$120,ROWS($A$10:$A17)+2,FALSE)","v":16},{"$f":"HLOOKUP(AA$7,$I$66:$DJ$120,ROWS($A$10:$A17)+2,FALSE)","v":0},{"$f":"HLOOKUP(AB$7,$I$66:$DJ$120,ROWS($A$10:$A17)+2,FALSE)","v":315},{"$f":"HLOOKUP(AC$7,$I$66:$DJ$120,ROWS($A$10:$A17)+2,FALSE)","v":259},{"$f":"HLOOKUP(AD$7,$I$66:$DJ$120,ROWS($A$10:$A17)+2,FALSE)","v":1267},{"$f":"HLOOKUP(AE$7,$I$66:$DJ$120,ROWS($A$10:$A17)+2,FALSE)","v":8691},{"$f":"HLOOKUP(AF$7,$I$66:$DJ$120,ROWS($A$10:$A17)+2,FALSE)","v":692},{"$f":"HLOOKUP(AG$7,$I$66:$DJ$120,ROWS($A$10:$A17)+2,FALSE)","v":76},{"$f":"HLOOKUP(AH$7,$I$66:$DJ$120,ROWS($A$10:$A17)+2,FALSE)","v":69},{"$f":"HLOOKUP(AI$7,$I$66:$DJ$120,ROWS($A$10:$A17)+2,FALSE)","v":365},{"$f":"HLOOKUP(AJ$7,$I$66:$DJ$120,ROWS($A$10:$A17)+2,FALSE)","v":206},{"$f":"HLOOKUP(AK$7,$I$66:$DJ$120,ROWS($A$10:$A17)+2,FALSE)","v":62},{"$f":"HLOOKUP(AL$7,$I$66:$DJ$120,ROWS($A$10:$A17)+2,FALSE)","v":160},{"$f":"HLOOKUP(AM$7,$I$66:$DJ$120,ROWS($A$10:$A17)+2,FALSE)","v":1221},{"$f":"HLOOKUP(AN$7,$I$66:$DJ$120,ROWS($A$10:$A17)+2,FALSE)","v":3809},{"$f":"HLOOKUP(AO$7,$I$66:$DJ$120,ROWS($A$10:$A17)+2,FALSE)","v":265},{"$f":"HLOOKUP(AP$7,$I$66:$DJ$120,ROWS($A$10:$A17)+2,FALSE)","v":20015},{"$f":"HLOOKUP(AQ$7,$I$66:$DJ$120,ROWS($A$10:$A17)+2,FALSE)","v":1029},{"$f":"HLOOKUP(AR$7,$I$66:$DJ$120,ROWS($A$10:$A17)+2,FALSE)","v":0},{"$f":"HLOOKUP(AS$7,$I$66:$DJ$120,ROWS($A$10:$A17)+2,FALSE)","v":1383},{"$f":"HLOOKUP(AT$7,$I$66:$DJ$120,ROWS($A$10:$A17)+2,FALSE)","v":217},{"$f":"HLOOKUP(AU$7,$I$66:$DJ$120,ROWS($A$10:$A17)+2,FALSE)","v":117},{"$f":"HLOOKUP(AV$7,$I$66:$DJ$120,ROWS($A$10:$A17)+2,FALSE)","v":3668},{"$f":"HLOOKUP(AW$7,$I$66:$DJ$120,ROWS($A$10:$A17)+2,FALSE)","v":1488},{"$f":"HLOOKUP(AX$7,$I$66:$DJ$120,ROWS($A$10:$A17)+2,FALSE)","v":997},{"$f":"HLOOKUP(AY$7,$I$66:$DJ$120,ROWS($A$10:$A17)+2,FALSE)","v":0},{"$f":"HLOOKUP(AZ$7,$I$66:$DJ$120,ROWS($A$10:$A17)+2,FALSE)","v":123},{"$f":"HLOOKUP(BA$7,$I$66:$DJ$120,ROWS($A$10:$A17)+2,FALSE)","v":1214},{"$f":"HLOOKUP(BB$7,$I$66:$DJ$120,ROWS($A$10:$A17)+2,FALSE)","v":398},{"$f":"HLOOKUP(BC$7,$I$66:$DJ$120,ROWS($A$10:$A17)+2,FALSE)","v":608},{"$f":"HLOOKUP(BD$7,$I$66:$DJ$120,ROWS($A$10:$A17)+2,FALSE)","v":2555},{"$f":"HLOOKUP(BE$7,$I$66:$DJ$120,ROWS($A$10:$A17)+2,FALSE)","v":2255},{"$f":"HLOOKUP(BF$7,$I$66:$DJ$120,ROWS($A$10:$A17)+2,FALSE)","v":46},{"$f":"HLOOKUP(BG$7,$I$66:$DJ$120,ROWS($A$10:$A17)+2,FALSE)","v":660},{"$f":"HLOOKUP(BH$7,$I$66:$DJ$120,ROWS($A$10:$A17)+2,FALSE)","v":65},{"$f":"HLOOKUP(BI$7,$I$66:$DJ$120,ROWS($A$10:$A17)+2,FALSE)","v":2105},{"$f":"HLOOKUP(BJ$7+0.5,$I$66:$DJ$120,ROWS($A$10:$A17)+2,FALSE)","v":6552},{"$f":"HLOOKUP(BK$7+0.5,$I$66:$DJ$120,ROWS($A$10:$A17)+2,FALSE)","v":120},{"$f":"HLOOKUP(BL$7+0.5,$I$66:$DJ$120,ROWS($A$10:$A17)+2,FALSE)","v":299},{"$f":"HLOOKUP(BM$7+0.5,$I$66:$DJ$120,ROWS($A$10:$A17)+2,FALSE)","v":939},{"$f":"HLOOKUP(BN$7+0.5,$I$66:$DJ$120,ROWS($A$10:$A17)+2,FALSE)","v":178},{"$f":"HLOOKUP(BO$7+0.5,$I$66:$DJ$120,ROWS($A$10:$A17)+2,FALSE)","v":1455},{"$f":"HLOOKUP(BP$7+0.5,$I$66:$DJ$120,ROWS($A$10:$A17)+2,FALSE)","v":618},{"$f":"HLOOKUP(BQ$7+0.5,$I$66:$DJ$120,ROWS($A$10:$A17)+2,FALSE)","v":"N/A"},{"$f":"HLOOKUP(BR$7+0.5,$I$66:$DJ$120,ROWS($A$10:$A17)+2,FALSE)","v":132},{"$f":"HLOOKUP(BS$7+0.5,$I$66:$DJ$120,ROWS($A$10:$A17)+2,FALSE)","v":373},{"$f":"HLOOKUP(BT$7+0.5,$I$66:$DJ$120,ROWS($A$10:$A17)+2,FALSE)","v":1275},{"$f":"HLOOKUP(BU$7+0.5,$I$66:$DJ$120,ROWS($A$10:$A17)+2,FALSE)","v":988},{"$f":"HLOOKUP(BV$7+0.5,$I$66:$DJ$120,ROWS($A$10:$A17)+2,FALSE)","v":523},{"$f":"HLOOKUP(BW$7+0.5,$I$66:$DJ$120,ROWS($A$10:$A17)+2,FALSE)","v":224},{"$f":"HLOOKUP(BX$7+0.5,$I$66:$DJ$120,ROWS($A$10:$A17)+2,FALSE)","v":965},{"$f":"HLOOKUP(BY$7+0.5,$I$66:$DJ$120,ROWS($A$10:$A17)+2,FALSE)","v":214},{"$f":"HLOOKUP(BZ$7+0.5,$I$66:$DJ$120,ROWS($A$10:$A17)+2,FALSE)","v":120},{"$f":"HLOOKUP(CA$7+0.5,$I$66:$DJ$120,ROWS($A$10:$A17)+2,FALSE)","v":36},{"$f":"HLOOKUP(CB$7+0.5,$I$66:$DJ$120,ROWS($A$10:$A17)+2,FALSE)","v":198},{"$f":"HLOOKUP(CC$7+0.5,$I$66:$DJ$120,ROWS($A$10:$A17)+2,FALSE)","v":238},{"$f":"HLOOKUP(CD$7+0.5,$I$66:$DJ$120,ROWS($A$10:$A17)+2,FALSE)","v":193},{"$f":"HLOOKUP(CE$7+0.5,$I$66:$DJ$120,ROWS($A$10:$A17)+2,FALSE)","v":744},{"$f":"HLOOKUP(CF$7+0.5,$I$66:$DJ$120,ROWS($A$10:$A17)+2,FALSE)","v":1998},{"$f":"HLOOKUP(CG$7+0.5,$I$66:$DJ$120,ROWS($A$10:$A17)+2,FALSE)","v":736},{"$f":"HLOOKUP(CH$7+0.5,$I$66:$DJ$120,ROWS($A$10:$A17)+2,FALSE)","v":120},{"$f":"HLOOKUP(CI$7+0.5,$I$66:$DJ$120,ROWS($A$10:$A17)+2,FALSE)","v":116},{"$f":"HLOOKUP(CJ$7+0.5,$I$66:$DJ$120,ROWS($A$10:$A17)+2,FALSE)","v":297},{"$f":"HLOOKUP(CK$7+0.5,$I$66:$DJ$120,ROWS($A$10:$A17)+2,FALSE)","v":277},{"$f":"HLOOKUP(CL$7+0.5,$I$66:$DJ$120,ROWS($A$10:$A17)+2,FALSE)","v":103},{"$f":"HLOOKUP(CM$7+0.5,$I$66:$DJ$120,ROWS($A$10:$A17)+2,FALSE)","v":189},{"$f":"HLOOKUP(CN$7+0.5,$I$66:$DJ$120,ROWS($A$10:$A17)+2,FALSE)","v":803},{"$f":"HLOOKUP(CO$7+0.5,$I$66:$DJ$120,ROWS($A$10:$A17)+2,FALSE)","v":1324},{"$f":"HLOOKUP(CP$7+0.5,$I$66:$DJ$120,ROWS($A$10:$A17)+2,FALSE)","v":225},{"$f":"HLOOKUP(CQ$7+0.5,$I$66:$DJ$120,ROWS($A$10:$A17)+2,FALSE)","v":4005},{"$f":"HLOOKUP(CR$7+0.5,$I$66:$DJ$120,ROWS($A$10:$A17)+2,FALSE)","v":593},{"$f":"HLOOKUP(CS$7+0.5,$I$66:$DJ$120,ROWS($A$10:$A17)+2,FALSE)","v":198},{"$f":"HLOOKUP(CT$7+0.5,$I$66:$DJ$120,ROWS($A$10:$A17)+2,FALSE)","v":791},{"$f":"HLOOKUP(CU$7+0.5,$I$66:$DJ$120,ROWS($A$10:$A17)+2,FALSE)","v":211},{"$f":"HLOOKUP(CV$7+0.5,$I$66:$DJ$120,ROWS($A$10:$A17)+2,FALSE)","v":161},{"$f":"HLOOKUP(CW$7+0.5,$I$66:$DJ$120,ROWS($A$10:$A17)+2,FALSE)","v":1639},{"$f":"HLOOKUP(CX$7+0.5,$I$66:$DJ$120,ROWS($A$10:$A17)+2,FALSE)","v":645},{"$f":"HLOOKUP(CY$7+0.5,$I$66:$DJ$120,ROWS($A$10:$A17)+2,FALSE)","v":476},{"$f":"HLOOKUP(CZ$7+0.5,$I$66:$DJ$120,ROWS($A$10:$A17)+2,FALSE)","v":198},{"$f":"HLOOKUP(DA$7+0.5,$I$66:$DJ$120,ROWS($A$10:$A17)+2,FALSE)","v":141},{"$f":"HLOOKUP(DB$7+0.5,$I$66:$DJ$120,ROWS($A$10:$A17)+2,FALSE)","v":646},{"$f":"HLOOKUP(DC$7+0.5,$I$66:$DJ$120,ROWS($A$10:$A17)+2,FALSE)","v":359},{"$f":"HLOOKUP(DD$7+0.5,$I$66:$DJ$120,ROWS($A$10:$A17)+2,FALSE)","v":354},{"$f":"HLOOKUP(DE$7+0.5,$I$66:$DJ$120,ROWS($A$10:$A17)+2,FALSE)","v":1053},{"$f":"HLOOKUP(DF$7+0.5,$I$66:$DJ$120,ROWS($A$10:$A17)+2,FALSE)","v":1469},{"$f":"HLOOKUP(DG$7+0.5,$I$66:$DJ$120,ROWS($A$10:$A17)+2,FALSE)","v":77},{"$f":"HLOOKUP(DH$7+0.5,$I$66:$DJ$120,ROWS($A$10:$A17)+2,FALSE)","v":898},{"$f":"HLOOKUP(DI$7+0.5,$I$66:$DJ$120,ROWS($A$10:$A17)+2,FALSE)","v":110},{"$f":"HLOOKUP(DJ$7+0.5,$I$66:$DJ$120,ROWS($A$10:$A17)+2,FALSE)","v":1756}]
[null,"Delaware",897187,1369,775414,8584,83156,6851,{"$f":"HLOOKUP(I$7,$I$66:$DJ$120,ROWS($A$10:$A18)+2,FALSE)","v":33912},{"$f":"HLOOKUP(J$7,$I$66:$DJ$120,ROWS($A$10:$A18)+2,FALSE)","v":81},{"$f":"HLOOKUP(K$7,$I$66:$DJ$120,ROWS($A$10:$A18)+2,FALSE)","v":329},{"$f":"HLOOKUP(L$7,$I$66:$DJ$120,ROWS($A$10:$A18)+2,FALSE)","v":541},{"$f":"HLOOKUP(M$7,$I$66:$DJ$120,ROWS($A$10:$A18)+2,FALSE)","v":0},{"$f":"HLOOKUP(N$7,$I$66:$DJ$120,ROWS($A$10:$A18)+2,FALSE)","v":699},{"$f":"HLOOKUP(O$7,$I$66:$DJ$120,ROWS($A$10:$A18)+2,FALSE)","v":169},{"$f":"HLOOKUP(P$7,$I$66:$DJ$120,ROWS($A$10:$A18)+2,FALSE)","v":66},{"$f":"HLOOKUP(Q$7,$I$66:$DJ$120,ROWS($A$10:$A18)+2,FALSE)","v":"N/A"},{"$f":"HLOOKUP(R$7,$I$66:$DJ$120,ROWS($A$10:$A18)+2,FALSE)","v":154},{"$f":"HLOOKUP(S$7,$I$66:$DJ$120,ROWS($A$10:$A18)+2,FALSE)","v":810},{"$f":"HLOOKUP(T$7,$I$66:$DJ$120,ROWS($A$10:$A18)+2,FALSE)","v":639},{"$f":"HLOOKUP(U$7,$I$66:$DJ$120,ROWS($A$10:$A18)+2,FALSE)","v":201},{"$f":"HLOOKUP(V$7,$I$66:$DJ$120,ROWS($A$10:$A18)+2,FALSE)","v":441},{"$f":"HLOOKUP(W$7,$I$66:$DJ$120,ROWS($A$10:$A18)+2,FALSE)","v":34},{"$f":"HLOOKUP(X$7,$I$66:$DJ$120,ROWS($A$10:$A18)+2,FALSE)","v":210},{"$f":"HLOOKUP(Y$7,$I$66:$DJ$120,ROWS($A$10:$A18)+2,FALSE)","v":0},{"$f":"HLOOKUP(Z$7,$I$66:$DJ$120,ROWS($A$10:$A18)+2,FALSE)","v":7},{"$f":"HLOOKUP(AA$7,$I$66:$DJ$120,ROWS($A$10:$A18)+2,FALSE)","v":305},{"$f":"HLOOKUP(AB$7,$I$66:$DJ$120,ROWS($A$10:$A18)+2,FALSE)","v":0},{"$f":"HLOOKUP(AC$7,$I$66:$DJ$120,ROWS($A$10:$A18)+2,FALSE)","v":0},{"$f":"HLOOKUP(AD$7,$I$66:$DJ$120,ROWS($A$10:$A18)+2,FALSE)","v":4238},{"$f":"HLOOKUP(AE$7,$I$66:$DJ$120,ROWS($A$10:$A18)+2,FALSE)","v":806},{"$f":"HLOOKUP(AF$7,$I$66:$DJ$120,ROWS($A$10:$A18)+2,FALSE)","v":43},{"$f":"HLOOKUP(AG$7,$I$66:$DJ$120,ROWS($A$10:$A18)+2,FALSE)","v":201},{"$f":"HLOOKUP(AH$7,$I$66:$DJ$120,ROWS($A$10:$A18)+2,FALSE)","v":0},{"$f":"HLOOKUP(AI$7,$I$66:$DJ$120,ROWS($A$10:$A18)+2,FALSE)","v":713},{"$f":"HLOOKUP(AJ$7,$I$66:$DJ$120,ROWS($A$10:$A18)+2,FALSE)","v":0},{"$f":"HLOOKUP(AK$7,$I$66:$DJ$120,ROWS($A$10:$A18)+2,FALSE)","v":12},{"$f":"HLOOKUP(AL$7,$I$66:$DJ$120,ROWS($A$10:$A18)+2,FALSE)","v":0},{"$f":"HLOOKUP(AM$7,$I$66:$DJ$120,ROWS($A$10:$A18)+2,FALSE)","v":0},{"$f":"HLOOKUP(AN$7,$I$66:$DJ$120,ROWS($A$10:$A18)+2,FALSE)","v":6297},{"$f":"HLOOKUP(AO$7,$I$66:$DJ$120,ROWS($A$10:$A18)+2,FALSE)","v":0},{"$f":"HLOOKUP(AP$7,$I$66:$DJ$120,ROWS($A$10:$A18)+2,FALSE)","v":3141},{"$f":"HLOOKUP(AQ$7,$I$66:$DJ$120,ROWS($A$10:$A18)+2,FALSE)","v":388},{"$f":"HLOOKUP(AR$7,$I$66:$DJ$120,ROWS($A$10:$A18)+2,FALSE)","v":0},{"$f":"HLOOKUP(AS$7,$I$66:$DJ$120,ROWS($A$10:$A18)+2,FALSE)","v":664},{"$f":"HLOOKUP(AT$7,$I$66:$DJ$120,ROWS($A$10:$A18)+2,FALSE)","v":27},{"$f":"HLOOKUP(AU$7,$I$66:$DJ$120,ROWS($A$10:$A18)+2,FALSE)","v":0},{"$f":"HLOOKUP(AV$7,$I$66:$DJ$120,ROWS($A$10:$A18)+2,FALSE)","v":8571},{"$f":"HLOOKUP(AW$7,$I$66:$DJ$120,ROWS($A$10:$A18)+2,FALSE)","v":131},{"$f":"HLOOKUP(AX$7,$I$66:$DJ$120,ROWS($A$10:$A18)+2,FALSE)","v":153},{"$f":"HLOOKUP(AY$7,$I$66:$DJ$120,ROWS($A$10:$A18)+2,FALSE)","v":0},{"$f":"HLOOKUP(AZ$7,$I$66:$DJ$120,ROWS($A$10:$A18)+2,FALSE)","v":221},{"$f":"HLOOKUP(BA$7,$I$66:$DJ$120,ROWS($A$10:$A18)+2,FALSE)","v":883},{"$f":"HLOOKUP(BB$7,$I$66:$DJ$120,ROWS($A$10:$A18)+2,FALSE)","v":475},{"$f":"HLOOKUP(BC$7,$I$66:$DJ$120,ROWS($A$10:$A18)+2,FALSE)","v":0},{"$f":"HLOOKUP(BD$7,$I$66:$DJ$120,ROWS($A$10:$A18)+2,FALSE)","v":1064},{"$f":"HLOOKUP(BE$7,$I$66:$DJ$120,ROWS($A$10:$A18)+2,FALSE)","v":482},{"$f":"HLOOKUP(BF$7,$I$66:$DJ$120,ROWS($A$10:$A18)+2,FALSE)","v":198},{"$f":"HLOOKUP(BG$7,$I$66:$DJ$120,ROWS($A$10:$A18)+2,FALSE)","v":55},{"$f":"HLOOKUP(BH$7,$I$66:$DJ$120,ROWS($A$10:$A18)+2,FALSE)","v":463},{"$f":"HLOOKUP(BI$7,$I$66:$DJ$120,ROWS($A$10:$A18)+2,FALSE)","v":1008},{"$f":"HLOOKUP(BJ$7+0.5,$I$66:$DJ$120,ROWS($A$10:$A18)+2,FALSE)","v":3955},{"$f":"HLOOKUP(BK$7+0.5,$I$66:$DJ$120,ROWS($A$10:$A18)+2,FALSE)","v":135},{"$f":"HLOOKUP(BL$7+0.5,$I$66:$DJ$120,ROWS($A$10:$A18)+2,FALSE)","v":544},{"$f":"HLOOKUP(BM$7+0.5,$I$66:$DJ$120,ROWS($A$10:$A18)+2,FALSE)","v":728},{"$f":"HLOOKUP(BN$7+0.5,$I$66:$DJ$120,ROWS($A$10:$A18)+2,FALSE)","v":192},{"$f":"HLOOKUP(BO$7+0.5,$I$66:$DJ$120,ROWS($A$10:$A18)+2,FALSE)","v":594},{"$f":"HLOOKUP(BP$7+0.5,$I$66:$DJ$120,ROWS($A$10:$A18)+2,FALSE)","v":218},{"$f":"HLOOKUP(BQ$7+0.5,$I$66:$DJ$120,ROWS($A$10:$A18)+2,FALSE)","v":94},{"$f":"HLOOKUP(BR$7+0.5,$I$66:$DJ$120,ROWS($A$10:$A18)+2,FALSE)","v":"N/A"},{"$f":"HLOOKUP(BS$7+0.5,$I$66:$DJ$120,ROWS($A$10:$A18)+2,FALSE)","v":144},{"$f":"HLOOKUP(BT$7+0.5,$I$66:$DJ$120,ROWS($A$10:$A18)+2,FALSE)","v":449},{"$f":"HLOOKUP(BU$7+0.5,$I$66:$DJ$120,ROWS($A$10:$A18)+2,FALSE)","v":422},{"$f":"HLOOKUP(BV$7+0.5,$I$66:$DJ$120,ROWS($A$10:$A18)+2,FALSE)","v":171},{"$f":"HLOOKUP(BW$7+0.5,$I$66:$DJ$120,ROWS($A$10:$A18)+2,FALSE)","v":347},{"$f":"HLOOKUP(BX$7+0.5,$I$66:$DJ$120,ROWS($A$10:$A18)+2,FALSE)","v":35},{"$f":"HLOOKUP(BY$7+0.5,$I$66:$DJ$120,ROWS($A$10:$A18)+2,FALSE)","v":235},{"$f":"HLOOKUP(BZ$7+0.5,$I$66:$DJ$120,ROWS($A$10:$A18)+2,FALSE)","v":192},{"$f":"HLOOKUP(CA$7+0.5,$I$66:$DJ$120,ROWS($A$10:$A18)+2,FALSE)","v":17},{"$f":"HLOOKUP(CB$7+0.5,$I$66:$DJ$120,ROWS($A$10:$A18)+2,FALSE)","v":391},{"$f":"HLOOKUP(CC$7+0.5,$I$66:$DJ$120,ROWS($A$10:$A18)+2,FALSE)","v":192},{"$f":"HLOOKUP(CD$7+0.5,$I$66:$DJ$120,ROWS($A$10:$A18)+2,FALSE)","v":192},{"$f":"HLOOKUP(CE$7+0.5,$I$66:$DJ$120,ROWS($A$10:$A18)+2,FALSE)","v":1274},{"$f":"HLOOKUP(CF$7+0.5,$I$66:$DJ$120,ROWS($A$10:$A18)+2,FALSE)","v":558},{"$f":"HLOOKUP(CG$7+0.5,$I$66:$DJ$120,ROWS($A$10:$A18)+2,FALSE)","v":71},{"$f":"HLOOKUP(CH$7+0.5,$I$66:$DJ$120,ROWS($A$10:$A18)+2,FALSE)","v":299},{"$f":"HLOOKUP(CI$7+0.5,$I$66:$DJ$120,ROWS($A$10:$A18)+2,FALSE)","v":192},{"$f":"HLOOKUP(CJ$7+0.5,$I$66:$DJ$120,ROWS($A$10:$A18)+2,FALSE)","v":684},{"$f":"HLOOKUP(CK$7+0.5,$I$66:$DJ$120,ROWS($A$10:$A18)+2,FALSE)","v":192},{"$f":"HLOOKUP(CL$7+0.5,$I$66:$DJ$120,ROWS($A$10:$A18)+2,FALSE)","v":28},{"$f":"HLOOKUP(CM$7+0.5,$I$66:$DJ$120,ROWS($A$10:$A18)+2,FALSE)","v":192},{"$f":"HLOOKUP(CN$7+0.5,$I$66:$DJ$120,ROWS($A$10:$A18)+2,FALSE)","v":192},{"$f":"HLOOKUP(CO$7+0.5,$I$66:$DJ$120,ROWS($A$10:$A18)+2,FALSE)","v":1765},{"$f":"HLOOKUP(CP$7+0.5,$I$66:$DJ$120,ROWS($A$10:$A18)+2,FALSE)","v":192},{"$f":"HLOOKUP(CQ$7+0.5,$I$66:$DJ$120,ROWS($A$10:$A18)+2,FALSE)","v":1083},{"$f":"HLOOKUP(CR$7+0.5,$I$66:$DJ$120,ROWS($A$10:$A18)+2,FALSE)","v":256},{"$f":"HLOOKUP(CS$7+0.5,$I$66:$DJ$120,ROWS($A$10:$A18)+2,FALSE)","v":192},{"$f":"HLOOKUP(CT$7+0.5,$I$66:$DJ$120,ROWS($A$10:$A18)+2,FALSE)","v":608},{"$f":"HLOOKUP(CU$7+0.5,$I$66:$DJ$120,ROWS($A$10:$A18)+2,FALSE)","v":45},{"$f":"HLOOKUP(CV$7+0.5,$I$66:$DJ$120,ROWS($A$10:$A18)+2,FALSE)","v":192},{"$f":"HLOOKUP(CW$7+0.5,$I$66:$DJ$120,ROWS($A$10:$A18)+2,FALSE)","v":1728},{"$f":"HLOOKUP(CX$7+0.5,$I$66:$DJ$120,ROWS($A$10:$A18)+2,FALSE)","v":217},{"$f":"HLOOKUP(CY$7+0.5,$I$66:$DJ$120,ROWS($A$10:$A18)+2,FALSE)","v":179},{"$f":"HLOOKUP(CZ$7+0.5,$I$66:$DJ$120,ROWS($A$10:$A18)+2,FALSE)","v":192},{"$f":"HLOOKUP(DA$7+0.5,$I$66:$DJ$120,ROWS($A$10:$A18)+2,FALSE)","v":259},{"$f":"HLOOKUP(DB$7+0.5,$I$66:$DJ$120,ROWS($A$10:$A18)+2,FALSE)","v":755},{"$f":"HLOOKUP(DC$7+0.5,$I$66:$DJ$120,ROWS($A$10:$A18)+2,FALSE)","v":738},{"$f":"HLOOKUP(DD$7+0.5,$I$66:$DJ$120,ROWS($A$10:$A18)+2,FALSE)","v":192},{"$f":"HLOOKUP(DE$7+0.5,$I$66:$DJ$120,ROWS($A$10:$A18)+2,FALSE)","v":512},{"$f":"HLOOKUP(DF$7+0.5,$I$66:$DJ$120,ROWS($A$10:$A18)+2,FALSE)","v":530},{"$f":"HLOOKUP(DG$7+0.5,$I$66:$DJ$120,ROWS($A$10:$A18)+2,FALSE)","v":174},{"$f":"HLOOKUP(DH$7+0.5,$I$66:$DJ$120,ROWS($A$10:$A18)+2,FALSE)","v":96},{"$f":"HLOOKUP(DI$7+0.5,$I$66:$DJ$120,ROWS($A$10:$A18)+2,FALSE)","v":527},{"$f":"HLOOKUP(DJ$7+0.5,$I$66:$DJ$120,ROWS($A$10:$A18)+2,FALSE)","v":971}]
[null,"District of Columbia ",611608,1403,489659,6701,66519,6073,{"$f":"HLOOKUP(I$7,$I$66:$DJ$120,ROWS($A$10:$A19)+2,FALSE)","v":48066},{"$f":"HLOOKUP(J$7,$I$66:$DJ$120,ROWS($A$10:$A19)+2,FALSE)","v":13},{"$f":"HLOOKUP(K$7,$I$66:$DJ$120,ROWS($A$10:$A19)+2,FALSE)","v":135},{"$f":"HLOOKUP(L$7,$I$66:$DJ$120,ROWS($A$10:$A19)+2,FALSE)","v":43},{"$f":"HLOOKUP(M$7,$I$66:$DJ$120,ROWS($A$10:$A19)+2,FALSE)","v":81},{"$f":"HLOOKUP(N$7,$I$66:$DJ$120,ROWS($A$10:$A19)+2,FALSE)","v":3797},{"$f":"HLOOKUP(O$7,$I$66:$DJ$120,ROWS($A$10:$A19)+2,FALSE)","v":452},{"$f":"HLOOKUP(P$7,$I$66:$DJ$120,ROWS($A$10:$A19)+2,FALSE)","v":981},{"$f":"HLOOKUP(Q$7,$I$66:$DJ$120,ROWS($A$10:$A19)+2,FALSE)","v":128},{"$f":"HLOOKUP(R$7,$I$66:$DJ$120,ROWS($A$10:$A19)+2,FALSE)","v":"N/A"},{"$f":"HLOOKUP(S$7,$I$66:$DJ$120,ROWS($A$10:$A19)+2,FALSE)","v":1254},{"$f":"HLOOKUP(T$7,$I$66:$DJ$120,ROWS($A$10:$A19)+2,FALSE)","v":937},{"$f":"HLOOKUP(U$7,$I$66:$DJ$120,ROWS($A$10:$A19)+2,FALSE)","v":372},{"$f":"HLOOKUP(V$7,$I$66:$DJ$120,ROWS($A$10:$A19)+2,FALSE)","v":68},{"$f":"HLOOKUP(W$7,$I$66:$DJ$120,ROWS($A$10:$A19)+2,FALSE)","v":1397},{"$f":"HLOOKUP(X$7,$I$66:$DJ$120,ROWS($A$10:$A19)+2,FALSE)","v":128},{"$f":"HLOOKUP(Y$7,$I$66:$DJ$120,ROWS($A$10:$A19)+2,FALSE)","v":241},{"$f":"HLOOKUP(Z$7,$I$66:$DJ$120,ROWS($A$10:$A19)+2,FALSE)","v":6},{"$f":"HLOOKUP(AA$7,$I$66:$DJ$120,ROWS($A$10:$A19)+2,FALSE)","v":297},{"$f":"HLOOKUP(AB$7,$I$66:$DJ$120,ROWS($A$10:$A19)+2,FALSE)","v":0},{"$f":"HLOOKUP(AC$7,$I$66:$DJ$120,ROWS($A$10:$A19)+2,FALSE)","v":0},{"$f":"HLOOKUP(AD$7,$I$66:$DJ$120,ROWS($A$10:$A19)+2,FALSE)","v":14129},{"$f":"HLOOKUP(AE$7,$I$66:$DJ$120,ROWS($A$10:$A19)+2,FALSE)","v":2048},{"$f":"HLOOKUP(AF$7,$I$66:$DJ$120,ROWS($A$10:$A19)+2,FALSE)","v":1108},{"$f":"HLOOKUP(AG$7,$I$66:$DJ$120,ROWS($A$10:$A19)+2,FALSE)","v":409},{"$f":"HLOOKUP(AH$7,$I$66:$DJ$120,ROWS($A$10:$A19)+2,FALSE)","v":83},{"$f":"HLOOKUP(AI$7,$I$66:$DJ$120,ROWS($A$10:$A19)+2,FALSE)","v":112},{"$f":"HLOOKUP(AJ$7,$I$66:$DJ$120,ROWS($A$10:$A19)+2,FALSE)","v":38},{"$f":"HLOOKUP(AK$7,$I$66:$DJ$120,ROWS($A$10:$A19)+2,FALSE)","v":79},{"$f":"HLOOKUP(AL$7,$I$66:$DJ$120,ROWS($A$10:$A19)+2,FALSE)","v":238},{"$f":"HLOOKUP(AM$7,$I$66:$DJ$120,ROWS($A$10:$A19)+2,FALSE)","v":145},{"$f":"HLOOKUP(AN$7,$I$66:$DJ$120,ROWS($A$10:$A19)+2,FALSE)","v":1035},{"$f":"HLOOKUP(AO$7,$I$66:$DJ$120,ROWS($A$10:$A19)+2,FALSE)","v":0},{"$f":"HLOOKUP(AP$7,$I$66:$DJ$120,ROWS($A$10:$A19)+2,FALSE)","v":2313},{"$f":"HLOOKUP(AQ$7,$I$66:$DJ$120,ROWS($A$10:$A19)+2,FALSE)","v":1716},{"$f":"HLOOKUP(AR$7,$I$66:$DJ$120,ROWS($A$10:$A19)+2,FALSE)","v":285},{"$f":"HLOOKUP(AS$7,$I$66:$DJ$120,ROWS($A$10:$A19)+2,FALSE)","v":306},{"$f":"HLOOKUP(AT$7,$I$66:$DJ$120,ROWS($A$10:$A19)+2,FALSE)","v":0},{"$f":"HLOOKUP(AU$7,$I$66:$DJ$120,ROWS($A$10:$A19)+2,FALSE)","v":51},{"$f":"HLOOKUP(AV$7,$I$66:$DJ$120,ROWS($A$10:$A19)+2,FALSE)","v":1589},{"$f":"HLOOKUP(AW$7,$I$66:$DJ$120,ROWS($A$10:$A19)+2,FALSE)","v":50},{"$f":"HLOOKUP(AX$7,$I$66:$DJ$120,ROWS($A$10:$A19)+2,FALSE)","v":357},{"$f":"HLOOKUP(AY$7,$I$66:$DJ$120,ROWS($A$10:$A19)+2,FALSE)","v":104},{"$f":"HLOOKUP(AZ$7,$I$66:$DJ$120,ROWS($A$10:$A19)+2,FALSE)","v":421},{"$f":"HLOOKUP(BA$7,$I$66:$DJ$120,ROWS($A$10:$A19)+2,FALSE)","v":1083},{"$f":"HLOOKUP(BB$7,$I$66:$DJ$120,ROWS($A$10:$A19)+2,FALSE)","v":75},{"$f":"HLOOKUP(BC$7,$I$66:$DJ$120,ROWS($A$10:$A19)+2,FALSE)","v":445},{"$f":"HLOOKUP(BD$7,$I$66:$DJ$120,ROWS($A$10:$A19)+2,FALSE)","v":7975},{"$f":"HLOOKUP(BE$7,$I$66:$DJ$120,ROWS($A$10:$A19)+2,FALSE)","v":476},{"$f":"HLOOKUP(BF$7,$I$66:$DJ$120,ROWS($A$10:$A19)+2,FALSE)","v":120},{"$f":"HLOOKUP(BG$7,$I$66:$DJ$120,ROWS($A$10:$A19)+2,FALSE)","v":946},{"$f":"HLOOKUP(BH$7,$I$66:$DJ$120,ROWS($A$10:$A19)+2,FALSE)","v":0},{"$f":"HLOOKUP(BI$7,$I$66:$DJ$120,ROWS($A$10:$A19)+2,FALSE)","v":0},{"$f":"HLOOKUP(BJ$7+0.5,$I$66:$DJ$120,ROWS($A$10:$A19)+2,FALSE)","v":4295},{"$f":"HLOOKUP(BK$7+0.5,$I$66:$DJ$120,ROWS($A$10:$A19)+2,FALSE)","v":29},{"$f":"HLOOKUP(BL$7+0.5,$I$66:$DJ$120,ROWS($A$10:$A19)+2,FALSE)","v":217},{"$f":"HLOOKUP(BM$7+0.5,$I$66:$DJ$120,ROWS($A$10:$A19)+2,FALSE)","v":71},{"$f":"HLOOKUP(BN$7+0.5,$I$66:$DJ$120,ROWS($A$10:$A19)+2,FALSE)","v":93},{"$f":"HLOOKUP(BO$7+0.5,$I$66:$DJ$120,ROWS($A$10:$A19)+2,FALSE)","v":1233},{"$f":"HLOOKUP(BP$7+0.5,$I$66:$DJ$120,ROWS($A$10:$A19)+2,FALSE)","v":321},{"$f":"HLOOKUP(BQ$7+0.5,$I$66:$DJ$120,ROWS($A$10:$A19)+2,FALSE)","v":472},{"$f":"HLOOKUP(BR$7+0.5,$I$66:$DJ$120,ROWS($A$10:$A19)+2,FALSE)","v":125},{"$f":"HLOOKUP(BS$7+0.5,$I$66:$DJ$120,ROWS($A$10:$A19)+2,FALSE)","v":"N/A"},{"$f":"HLOOKUP(BT$7+0.5,$I$66:$DJ$120,ROWS($A$10:$A19)+2,FALSE)","v":651},{"$f":"HLOOKUP(BU$7+0.5,$I$66:$DJ$120,ROWS($A$10:$A19)+2,FALSE)","v":572},{"$f":"HLOOKUP(BV$7+0.5,$I$66:$DJ$120,ROWS($A$10:$A19)+2,FALSE)","v":396},{"$f":"HLOOKUP(BW$7+0.5,$I$66:$DJ$120,ROWS($A$10:$A19)+2,FALSE)","v":113},{"$f":"HLOOKUP(BX$7+0.5,$I$66:$DJ$120,ROWS($A$10:$A19)+2,FALSE)","v":814},{"$f":"HLOOKUP(BY$7+0.5,$I$66:$DJ$120,ROWS($A$10:$A19)+2,FALSE)","v":147},{"$f":"HLOOKUP(BZ$7+0.5,$I$66:$DJ$120,ROWS($A$10:$A19)+2,FALSE)","v":284},{"$f":"HLOOKUP(CA$7+0.5,$I$66:$DJ$120,ROWS($A$10:$A19)+2,FALSE)","v":19},{"$f":"HLOOKUP(CB$7+0.5,$I$66:$DJ$120,ROWS($A$10:$A19)+2,FALSE)","v":260},{"$f":"HLOOKUP(CC$7+0.5,$I$66:$DJ$120,ROWS($A$10:$A19)+2,FALSE)","v":200},{"$f":"HLOOKUP(CD$7+0.5,$I$66:$DJ$120,ROWS($A$10:$A19)+2,FALSE)","v":200},{"$f":"HLOOKUP(CE$7+0.5,$I$66:$DJ$120,ROWS($A$10:$A19)+2,FALSE)","v":2971},{"$f":"HLOOKUP(CF$7+0.5,$I$66:$DJ$120,ROWS($A$10:$A19)+2,FALSE)","v":789},{"$f":"HLOOKUP(CG$7+0.5,$I$66:$DJ$120,ROWS($A$10:$A19)+2,FALSE)","v":554},{"$f":"HLOOKUP(CH$7+0.5,$I$66:$DJ$120,ROWS($A$10:$A19)+2,FALSE)","v":457},{"$f":"HLOOKUP(CI$7+0.5,$I$66:$DJ$120,ROWS($A$10:$A19)+2,FALSE)","v":99},{"$f":"HLOOKUP(CJ$7+0.5,$I$66:$DJ$120,ROWS($A$10:$A19)+2,FALSE)","v":184},{"$f":"HLOOKUP(CK$7+0.5,$I$66:$DJ$120,ROWS($A$10:$A19)+2,FALSE)","v":64},{"$f":"HLOOKUP(CL$7+0.5,$I$66:$DJ$120,ROWS($A$10:$A19)+2,FALSE)","v":110},{"$f":"HLOOKUP(CM$7+0.5,$I$66:$DJ$120,ROWS($A$10:$A19)+2,FALSE)","v":282},{"$f":"HLOOKUP(CN$7+0.5,$I$66:$DJ$120,ROWS($A$10:$A19)+2,FALSE)","v":139},{"$f":"HLOOKUP(CO$7+0.5,$I$66:$DJ$120,ROWS($A$10:$A19)+2,FALSE)","v":605},{"$f":"HLOOKUP(CP$7+0.5,$I$66:$DJ$120,ROWS($A$10:$A19)+2,FALSE)","v":200},{"$f":"HLOOKUP(CQ$7+0.5,$I$66:$DJ$120,ROWS($A$10:$A19)+2,FALSE)","v":697},{"$f":"HLOOKUP(CR$7+0.5,$I$66:$DJ$120,ROWS($A$10:$A19)+2,FALSE)","v":760},{"$f":"HLOOKUP(CS$7+0.5,$I$66:$DJ$120,ROWS($A$10:$A19)+2,FALSE)","v":360},{"$f":"HLOOKUP(CT$7+0.5,$I$66:$DJ$120,ROWS($A$10:$A19)+2,FALSE)","v":224},{"$f":"HLOOKUP(CU$7+0.5,$I$66:$DJ$120,ROWS($A$10:$A19)+2,FALSE)","v":200},{"$f":"HLOOKUP(CV$7+0.5,$I$66:$DJ$120,ROWS($A$10:$A19)+2,FALSE)","v":64},{"$f":"HLOOKUP(CW$7+0.5,$I$66:$DJ$120,ROWS($A$10:$A19)+2,FALSE)","v":757},{"$f":"HLOOKUP(CX$7+0.5,$I$66:$DJ$120,ROWS($A$10:$A19)+2,FALSE)","v":63},{"$f":"HLOOKUP(CY$7+0.5,$I$66:$DJ$120,ROWS($A$10:$A19)+2,FALSE)","v":329},{"$f":"HLOOKUP(CZ$7+0.5,$I$66:$DJ$120,ROWS($A$10:$A19)+2,FALSE)","v":129},{"$f":"HLOOKUP(DA$7+0.5,$I$66:$DJ$120,ROWS($A$10:$A19)+2,FALSE)","v":358},{"$f":"HLOOKUP(DB$7+0.5,$I$66:$DJ$120,ROWS($A$10:$A19)+2,FALSE)","v":491},{"$f":"HLOOKUP(DC$7+0.5,$I$66:$DJ$120,ROWS($A$10:$A19)+2,FALSE)","v":118},{"$f":"HLOOKUP(DD$7+0.5,$I$66:$DJ$120,ROWS($A$10:$A19)+2,FALSE)","v":489},{"$f":"HLOOKUP(DE$7+0.5,$I$66:$DJ$120,ROWS($A$10:$A19)+2,FALSE)","v":1285},{"$f":"HLOOKUP(DF$7+0.5,$I$66:$DJ$120,ROWS($A$10:$A19)+2,FALSE)","v":300},{"$f":"HLOOKUP(DG$7+0.5,$I$66:$DJ$120,ROWS($A$10:$A19)+2,FALSE)","v":138},{"$f":"HLOOKUP(DH$7+0.5,$I$66:$DJ$120,ROWS($A$10:$A19)+2,FALSE)","v":668},{"$f":"HLOOKUP(DI$7+0.5,$I$66:$DJ$120,ROWS($A$10:$A19)+2,FALSE)","v":200},{"$f":"HLOOKUP(DJ$7+0.5,$I$66:$DJ$120,ROWS($A$10:$A19)+2,FALSE)","v":200}]
[null,"Florida",18863948,8536,15742168,59355,2454255,53419,{"$f":"HLOOKUP(I$7,$I$66:$DJ$120,ROWS($A$10:$A20)+2,FALSE)","v":498597},{"$f":"HLOOKUP(J$7,$I$66:$DJ$120,ROWS($A$10:$A20)+2,FALSE)","v":12635},{"$f":"HLOOKUP(K$7,$I$66:$DJ$120,ROWS($A$10:$A20)+2,FALSE)","v":7405},{"$f":"HLOOKUP(L$7,$I$66:$DJ$120,ROWS($A$10:$A20)+2,FALSE)","v":8451},{"$f":"HLOOKUP(M$7,$I$66:$DJ$120,ROWS($A$10:$A20)+2,FALSE)","v":3025},{"$f":"HLOOKUP(N$7,$I$66:$DJ$120,ROWS($A$10:$A20)+2,FALSE)","v":22420},{"$f":"HLOOKUP(O$7,$I$66:$DJ$120,ROWS($A$10:$A20)+2,FALSE)","v":9383},{"$f":"HLOOKUP(P$7,$I$66:$DJ$120,ROWS($A$10:$A20)+2,FALSE)","v":11704},{"$f":"HLOOKUP(Q$7,$I$66:$DJ$120,ROWS($A$10:$A20)+2,FALSE)","v":1264},{"$f":"HLOOKUP(R$7,$I$66:$DJ$120,ROWS($A$10:$A20)+2,FALSE)","v":891},{"$f":"HLOOKUP(S$7,$I$66:$DJ$120,ROWS($A$10:$A20)+2,FALSE)","v":"N/A"},{"$f":"HLOOKUP(T$7,$I$66:$DJ$120,ROWS($A$10:$A20)+2,FALSE)","v":38658},{"$f":"HLOOKUP(U$7,$I$66:$DJ$120,ROWS($A$10:$A20)+2,FALSE)","v":3639},{"$f":"HLOOKUP(V$7,$I$66:$DJ$120,ROWS($A$10:$A20)+2,FALSE)","v":312},{"$f":"HLOOKUP(W$7,$I$66:$DJ$120,ROWS($A$10:$A20)+2,FALSE)","v":19152},{"$f":"HLOOKUP(X$7,$I$66:$DJ$120,ROWS($A$10:$A20)+2,FALSE)","v":11472},{"$f":"HLOOKUP(Y$7,$I$66:$DJ$120,ROWS($A$10:$A20)+2,FALSE)","v":1846},{"$f":"HLOOKUP(Z$7,$I$66:$DJ$120,ROWS($A$10:$A20)+2,FALSE)","v":2661},{"$f":"HLOOKUP(AA$7,$I$66:$DJ$120,ROWS($A$10:$A20)+2,FALSE)","v":5441},{"$f":"HLOOKUP(AB$7,$I$66:$DJ$120,ROWS($A$10:$A20)+2,FALSE)","v":6094},{"$f":"HLOOKUP(AC$7,$I$66:$DJ$120,ROWS($A$10:$A20)+2,FALSE)","v":4689},{"$f":"HLOOKUP(AD$7,$I$66:$DJ$120,ROWS($A$10:$A20)+2,FALSE)","v":15410},{"$f":"HLOOKUP(AE$7,$I$66:$DJ$120,ROWS($A$10:$A20)+2,FALSE)","v":13701},{"$f":"HLOOKUP(AF$7,$I$66:$DJ$120,ROWS($A$10:$A20)+2,FALSE)","v":19640},{"$f":"HLOOKUP(AG$7,$I$66:$DJ$120,ROWS($A$10:$A20)+2,FALSE)","v":4663},{"$f":"HLOOKUP(AH$7,$I$66:$DJ$120,ROWS($A$10:$A20)+2,FALSE)","v":5175},{"$f":"HLOOKUP(AI$7,$I$66:$DJ$120,ROWS($A$10:$A20)+2,FALSE)","v":7114},{"$f":"HLOOKUP(AJ$7,$I$66:$DJ$120,ROWS($A$10:$A20)+2,FALSE)","v":559},{"$f":"HLOOKUP(AK$7,$I$66:$DJ$120,ROWS($A$10:$A20)+2,FALSE)","v":3857},{"$f":"HLOOKUP(AL$7,$I$66:$DJ$120,ROWS($A$10:$A20)+2,FALSE)","v":3527},{"$f":"HLOOKUP(AM$7,$I$66:$DJ$120,ROWS($A$10:$A20)+2,FALSE)","v":4324},{"$f":"HLOOKUP(AN$7,$I$66:$DJ$120,ROWS($A$10:$A20)+2,FALSE)","v":25206},{"$f":"HLOOKUP(AO$7,$I$66:$DJ$120,ROWS($A$10:$A20)+2,FALSE)","v":1376},{"$f":"HLOOKUP(AP$7,$I$66:$DJ$120,ROWS($A$10:$A20)+2,FALSE)","v":59288},{"$f":"HLOOKUP(AQ$7,$I$66:$DJ$120,ROWS($A$10:$A20)+2,FALSE)","v":23983},{"$f":"HLOOKUP(AR$7,$I$66:$DJ$120,ROWS($A$10:$A20)+2,FALSE)","v":514},{"$f":"HLOOKUP(AS$7,$I$66:$DJ$120,ROWS($A$10:$A20)+2,FALSE)","v":18191},{"$f":"HLOOKUP(AT$7,$I$66:$DJ$120,ROWS($A$10:$A20)+2,FALSE)","v":2600},{"$f":"HLOOKUP(AU$7,$I$66:$DJ$120,ROWS($A$10:$A20)+2,FALSE)","v":3315},{"$f":"HLOOKUP(AV$7,$I$66:$DJ$120,ROWS($A$10:$A20)+2,FALSE)","v":20821},{"$f":"HLOOKUP(AW$7,$I$66:$DJ$120,ROWS($A$10:$A20)+2,FALSE)","v":5002},{"$f":"HLOOKUP(AX$7,$I$66:$DJ$120,ROWS($A$10:$A20)+2,FALSE)","v":11953},{"$f":"HLOOKUP(AY$7,$I$66:$DJ$120,ROWS($A$10:$A20)+2,FALSE)","v":716},{"$f":"HLOOKUP(AZ$7,$I$66:$DJ$120,ROWS($A$10:$A20)+2,FALSE)","v":10451},{"$f":"HLOOKUP(BA$7,$I$66:$DJ$120,ROWS($A$10:$A20)+2,FALSE)","v":25532},{"$f":"HLOOKUP(BB$7,$I$66:$DJ$120,ROWS($A$10:$A20)+2,FALSE)","v":2343},{"$f":"HLOOKUP(BC$7,$I$66:$DJ$120,ROWS($A$10:$A20)+2,FALSE)","v":2019},{"$f":"HLOOKUP(BD$7,$I$66:$DJ$120,ROWS($A$10:$A20)+2,FALSE)","v":16614},{"$f":"HLOOKUP(BE$7,$I$66:$DJ$120,ROWS($A$10:$A20)+2,FALSE)","v":6339},{"$f":"HLOOKUP(BF$7,$I$66:$DJ$120,ROWS($A$10:$A20)+2,FALSE)","v":4964},{"$f":"HLOOKUP(BG$7,$I$66:$DJ$120,ROWS($A$10:$A20)+2,FALSE)","v":7412},{"$f":"HLOOKUP(BH$7,$I$66:$DJ$120,ROWS($A$10:$A20)+2,FALSE)","v":846},{"$f":"HLOOKUP(BI$7,$I$66:$DJ$120,ROWS($A$10:$A20)+2,FALSE)","v":21611},{"$f":"HLOOKUP(BJ$7+0.5,$I$66:$DJ$120,ROWS($A$10:$A20)+2,FALSE)","v":22483},{"$f":"HLOOKUP(BK$7+0.5,$I$66:$DJ$120,ROWS($A$10:$A20)+2,FALSE)","v":3566},{"$f":"HLOOKUP(BL$7+0.5,$I$66:$DJ$120,ROWS($A$10:$A20)+2,FALSE)","v":3412},{"$f":"HLOOKUP(BM$7+0.5,$I$66:$DJ$120,ROWS($A$10:$A20)+2,FALSE)","v":3258},{"$f":"HLOOKUP(BN$7+0.5,$I$66:$DJ$120,ROWS($A$10:$A20)+2,FALSE)","v":1241},{"$f":"HLOOKUP(BO$7+0.5,$I$66:$DJ$120,ROWS($A$10:$A20)+2,FALSE)","v":4065},{"$f":"HLOOKUP(BP$7+0.5,$I$66:$DJ$120,ROWS($A$10:$A20)+2,FALSE)","v":2988},{"$f":"HLOOKUP(BQ$7+0.5,$I$66:$DJ$120,ROWS($A$10:$A20)+2,FALSE)","v":3121},{"$f":"HLOOKUP(BR$7+0.5,$I$66:$DJ$120,ROWS($A$10:$A20)+2,FALSE)","v":949},{"$f":"HLOOKUP(BS$7+0.5,$I$66:$DJ$120,ROWS($A$10:$A20)+2,FALSE)","v":495},{"$f":"HLOOKUP(BT$7+0.5,$I$66:$DJ$120,ROWS($A$10:$A20)+2,FALSE)","v":"N/A"},{"$f":"HLOOKUP(BU$7+0.5,$I$66:$DJ$120,ROWS($A$10:$A20)+2,FALSE)","v":6270},{"$f":"HLOOKUP(BV$7+0.5,$I$66:$DJ$120,ROWS($A$10:$A20)+2,FALSE)","v":2081},{"$f":"HLOOKUP(BW$7+0.5,$I$66:$DJ$120,ROWS($A$10:$A20)+2,FALSE)","v":268},{"$f":"HLOOKUP(BX$7+0.5,$I$66:$DJ$120,ROWS($A$10:$A20)+2,FALSE)","v":3962},{"$f":"HLOOKUP(BY$7+0.5,$I$66:$DJ$120,ROWS($A$10:$A20)+2,FALSE)","v":3254},{"$f":"HLOOKUP(BZ$7+0.5,$I$66:$DJ$120,ROWS($A$10:$A20)+2,FALSE)","v":1137},{"$f":"HLOOKUP(CA$7+0.5,$I$66:$DJ$120,ROWS($A$10:$A20)+2,FALSE)","v":1410},{"$f":"HLOOKUP(CB$7+0.5,$I$66:$DJ$120,ROWS($A$10:$A20)+2,FALSE)","v":1674},{"$f":"HLOOKUP(CC$7+0.5,$I$66:$DJ$120,ROWS($A$10:$A20)+2,FALSE)","v":2316},{"$f":"HLOOKUP(CD$7+0.5,$I$66:$DJ$120,ROWS($A$10:$A20)+2,FALSE)","v":2049},{"$f":"HLOOKUP(CE$7+0.5,$I$66:$DJ$120,ROWS($A$10:$A20)+2,FALSE)","v":3515},{"$f":"HLOOKUP(CF$7+0.5,$I$66:$DJ$120,ROWS($A$10:$A20)+2,FALSE)","v":3380},{"$f":"HLOOKUP(CG$7+0.5,$I$66:$DJ$120,ROWS($A$10:$A20)+2,FALSE)","v":3920},{"$f":"HLOOKUP(CH$7+0.5,$I$66:$DJ$120,ROWS($A$10:$A20)+2,FALSE)","v":1888},{"$f":"HLOOKUP(CI$7+0.5,$I$66:$DJ$120,ROWS($A$10:$A20)+2,FALSE)","v":1968},{"$f":"HLOOKUP(CJ$7+0.5,$I$66:$DJ$120,ROWS($A$10:$A20)+2,FALSE)","v":2753},{"$f":"HLOOKUP(CK$7+0.5,$I$66:$DJ$120,ROWS($A$10:$A20)+2,FALSE)","v":424},{"$f":"HLOOKUP(CL$7+0.5,$I$66:$DJ$120,ROWS($A$10:$A20)+2,FALSE)","v":2208},{"$f":"HLOOKUP(CM$7+0.5,$I$66:$DJ$120,ROWS($A$10:$A20)+2,FALSE)","v":1810},{"$f":"HLOOKUP(CN$7+0.5,$I$66:$DJ$120,ROWS($A$10:$A20)+2,FALSE)","v":1798},{"$f":"HLOOKUP(CO$7+0.5,$I$66:$DJ$120,ROWS($A$10:$A20)+2,FALSE)","v":6219},{"$f":"HLOOKUP(CP$7+0.5,$I$66:$DJ$120,ROWS($A$10:$A20)+2,FALSE)","v":781},{"$f":"HLOOKUP(CQ$7+0.5,$I$66:$DJ$120,ROWS($A$10:$A20)+2,FALSE)","v":7171},{"$f":"HLOOKUP(CR$7+0.5,$I$66:$DJ$120,ROWS($A$10:$A20)+2,FALSE)","v":5251},{"$f":"HLOOKUP(CS$7+0.5,$I$66:$DJ$120,ROWS($A$10:$A20)+2,FALSE)","v":600},{"$f":"HLOOKUP(CT$7+0.5,$I$66:$DJ$120,ROWS($A$10:$A20)+2,FALSE)","v":3264},{"$f":"HLOOKUP(CU$7+0.5,$I$66:$DJ$120,ROWS($A$10:$A20)+2,FALSE)","v":1168},{"$f":"HLOOKUP(CV$7+0.5,$I$66:$DJ$120,ROWS($A$10:$A20)+2,FALSE)","v":2046},{"$f":"HLOOKUP(CW$7+0.5,$I$66:$DJ$120,ROWS($A$10:$A20)+2,FALSE)","v":4267},{"$f":"HLOOKUP(CX$7+0.5,$I$66:$DJ$120,ROWS($A$10:$A20)+2,FALSE)","v":2668},{"$f":"HLOOKUP(CY$7+0.5,$I$66:$DJ$120,ROWS($A$10:$A20)+2,FALSE)","v":2956},{"$f":"HLOOKUP(CZ$7+0.5,$I$66:$DJ$120,ROWS($A$10:$A20)+2,FALSE)","v":1027},{"$f":"HLOOKUP(DA$7+0.5,$I$66:$DJ$120,ROWS($A$10:$A20)+2,FALSE)","v":4102},{"$f":"HLOOKUP(DB$7+0.5,$I$66:$DJ$120,ROWS($A$10:$A20)+2,FALSE)","v":4638},{"$f":"HLOOKUP(DC$7+0.5,$I$66:$DJ$120,ROWS($A$10:$A20)+2,FALSE)","v":1891},{"$f":"HLOOKUP(DD$7+0.5,$I$66:$DJ$120,ROWS($A$10:$A20)+2,FALSE)","v":1616},{"$f":"HLOOKUP(DE$7+0.5,$I$66:$DJ$120,ROWS($A$10:$A20)+2,FALSE)","v":3087},{"$f":"HLOOKUP(DF$7+0.5,$I$66:$DJ$120,ROWS($A$10:$A20)+2,FALSE)","v":2687},{"$f":"HLOOKUP(DG$7+0.5,$I$66:$DJ$120,ROWS($A$10:$A20)+2,FALSE)","v":2202},{"$f":"HLOOKUP(DH$7+0.5,$I$66:$DJ$120,ROWS($A$10:$A20)+2,FALSE)","v":2467},{"$f":"HLOOKUP(DI$7+0.5,$I$66:$DJ$120,ROWS($A$10:$A20)+2,FALSE)","v":725},{"$f":"HLOOKUP(DJ$7+0.5,$I$66:$DJ$120,ROWS($A$10:$A20)+2,FALSE)","v":5621}]
[null,"Georgia",9699859,5580,8095407,40769,1289450,37444,{"$f":"HLOOKUP(I$7,$I$66:$DJ$120,ROWS($A$10:$A21)+2,FALSE)","v":271077},{"$f":"HLOOKUP(J$7,$I$66:$DJ$120,ROWS($A$10:$A21)+2,FALSE)","v":18799},{"$f":"HLOOKUP(K$7,$I$66:$DJ$120,ROWS($A$10:$A21)+2,FALSE)","v":1079},{"$f":"HLOOKUP(L$7,$I$66:$DJ$120,ROWS($A$10:$A21)+2,FALSE)","v":4292},{"$f":"HLOOKUP(M$7,$I$66:$DJ$120,ROWS($A$10:$A21)+2,FALSE)","v":2112},{"$f":"HLOOKUP(N$7,$I$66:$DJ$120,ROWS($A$10:$A21)+2,FALSE)","v":14949},{"$f":"HLOOKUP(O$7,$I$66:$DJ$120,ROWS($A$10:$A21)+2,FALSE)","v":2325},{"$f":"HLOOKUP(P$7,$I$66:$DJ$120,ROWS($A$10:$A21)+2,FALSE)","v":709},{"$f":"HLOOKUP(Q$7,$I$66:$DJ$120,ROWS($A$10:$A21)+2,FALSE)","v":619},{"$f":"HLOOKUP(R$7,$I$66:$DJ$120,ROWS($A$10:$A21)+2,FALSE)","v":364},{"$f":"HLOOKUP(S$7,$I$66:$DJ$120,ROWS($A$10:$A21)+2,FALSE)","v":42666},{"$f":"HLOOKUP(T$7,$I$66:$DJ$120,ROWS($A$10:$A21)+2,FALSE)","v":"N/A"},{"$f":"HLOOKUP(U$7,$I$66:$DJ$120,ROWS($A$10:$A21)+2,FALSE)","v":1006},{"$f":"HLOOKUP(V$7,$I$66:$DJ$120,ROWS($A$10:$A21)+2,FALSE)","v":126},{"$f":"HLOOKUP(W$7,$I$66:$DJ$120,ROWS($A$10:$A21)+2,FALSE)","v":6080},{"$f":"HLOOKUP(X$7,$I$66:$DJ$120,ROWS($A$10:$A21)+2,FALSE)","v":2442},{"$f":"HLOOKUP(Y$7,$I$66:$DJ$120,ROWS($A$10:$A21)+2,FALSE)","v":950},{"$f":"HLOOKUP(Z$7,$I$66:$DJ$120,ROWS($A$10:$A21)+2,FALSE)","v":4513},{"$f":"HLOOKUP(AA$7,$I$66:$DJ$120,ROWS($A$10:$A21)+2,FALSE)","v":3686},{"$f":"HLOOKUP(AB$7,$I$66:$DJ$120,ROWS($A$10:$A21)+2,FALSE)","v":6541},{"$f":"HLOOKUP(AC$7,$I$66:$DJ$120,ROWS($A$10:$A21)+2,FALSE)","v":408},{"$f":"HLOOKUP(AD$7,$I$66:$DJ$120,ROWS($A$10:$A21)+2,FALSE)","v":3708},{"$f":"HLOOKUP(AE$7,$I$66:$DJ$120,ROWS($A$10:$A21)+2,FALSE)","v":4436},{"$f":"HLOOKUP(AF$7,$I$66:$DJ$120,ROWS($A$10:$A21)+2,FALSE)","v":6992},{"$f":"HLOOKUP(AG$7,$I$66:$DJ$120,ROWS($A$10:$A21)+2,FALSE)","v":1808},{"$f":"HLOOKUP(AH$7,$I$66:$DJ$120,ROWS($A$10:$A21)+2,FALSE)","v":5380},{"$f":"HLOOKUP(AI$7,$I$66:$DJ$120,ROWS($A$10:$A21)+2,FALSE)","v":2514},{"$f":"HLOOKUP(AJ$7,$I$66:$DJ$120,ROWS($A$10:$A21)+2,FALSE)","v":246},{"$f":"HLOOKUP(AK$7,$I$66:$DJ$120,ROWS($A$10:$A21)+2,FALSE)","v":4144},{"$f":"HLOOKUP(AL$7,$I$66:$DJ$120,ROWS($A$10:$A21)+2,FALSE)","v":774},{"$f":"HLOOKUP(AM$7,$I$66:$DJ$120,ROWS($A$10:$A21)+2,FALSE)","v":132},{"$f":"HLOOKUP(AN$7,$I$66:$DJ$120,ROWS($A$10:$A21)+2,FALSE)","v":8371},{"$f":"HLOOKUP(AO$7,$I$66:$DJ$120,ROWS($A$10:$A21)+2,FALSE)","v":791},{"$f":"HLOOKUP(AP$7,$I$66:$DJ$120,ROWS($A$10:$A21)+2,FALSE)","v":14454},{"$f":"HLOOKUP(AQ$7,$I$66:$DJ$120,ROWS($A$10:$A21)+2,FALSE)","v":19138},{"$f":"HLOOKUP(AR$7,$I$66:$DJ$120,ROWS($A$10:$A21)+2,FALSE)","v":201},{"$f":"HLOOKUP(AS$7,$I$66:$DJ$120,ROWS($A$10:$A21)+2,FALSE)","v":6863},{"$f":"HLOOKUP(AT$7,$I$66:$DJ$120,ROWS($A$10:$A21)+2,FALSE)","v":1632},{"$f":"HLOOKUP(AU$7,$I$66:$DJ$120,ROWS($A$10:$A21)+2,FALSE)","v":727},{"$f":"HLOOKUP(AV$7,$I$66:$DJ$120,ROWS($A$10:$A21)+2,FALSE)","v":5791},{"$f":"HLOOKUP(AW$7,$I$66:$DJ$120,ROWS($A$10:$A21)+2,FALSE)","v":337},{"$f":"HLOOKUP(AX$7,$I$66:$DJ$120,ROWS($A$10:$A21)+2,FALSE)","v":16914},{"$f":"HLOOKUP(AY$7,$I$66:$DJ$120,ROWS($A$10:$A21)+2,FALSE)","v":536},{"$f":"HLOOKUP(AZ$7,$I$66:$DJ$120,ROWS($A$10:$A21)+2,FALSE)","v":16898},{"$f":"HLOOKUP(BA$7,$I$66:$DJ$120,ROWS($A$10:$A21)+2,FALSE)","v":15760},{"$f":"HLOOKUP(BB$7,$I$66:$DJ$120,ROWS($A$10:$A21)+2,FALSE)","v":793},{"$f":"HLOOKUP(BC$7,$I$66:$DJ$120,ROWS($A$10:$A21)+2,FALSE)","v":361},{"$f":"HLOOKUP(BD$7,$I$66:$DJ$120,ROWS($A$10:$A21)+2,FALSE)","v":9438},{"$f":"HLOOKUP(BE$7,$I$66:$DJ$120,ROWS($A$10:$A21)+2,FALSE)","v":3701},{"$f":"HLOOKUP(BF$7,$I$66:$DJ$120,ROWS($A$10:$A21)+2,FALSE)","v":1340},{"$f":"HLOOKUP(BG$7,$I$66:$DJ$120,ROWS($A$10:$A21)+2,FALSE)","v":2727},{"$f":"HLOOKUP(BH$7,$I$66:$DJ$120,ROWS($A$10:$A21)+2,FALSE)","v":504},{"$f":"HLOOKUP(BI$7,$I$66:$DJ$120,ROWS($A$10:$A21)+2,FALSE)","v":1635},{"$f":"HLOOKUP(BJ$7+0.5,$I$66:$DJ$120,ROWS($A$10:$A21)+2,FALSE)","v":15123},{"$f":"HLOOKUP(BK$7+0.5,$I$66:$DJ$120,ROWS($A$10:$A21)+2,FALSE)","v":5015},{"$f":"HLOOKUP(BL$7+0.5,$I$66:$DJ$120,ROWS($A$10:$A21)+2,FALSE)","v":765},{"$f":"HLOOKUP(BM$7+0.5,$I$66:$DJ$120,ROWS($A$10:$A21)+2,FALSE)","v":1849},{"$f":"HLOOKUP(BN$7+0.5,$I$66:$DJ$120,ROWS($A$10:$A21)+2,FALSE)","v":1366},{"$f":"HLOOKUP(BO$7+0.5,$I$66:$DJ$120,ROWS($A$10:$A21)+2,FALSE)","v":3387},{"$f":"HLOOKUP(BP$7+0.5,$I$66:$DJ$120,ROWS($A$10:$A21)+2,FALSE)","v":1399},{"$f":"HLOOKUP(BQ$7+0.5,$I$66:$DJ$120,ROWS($A$10:$A21)+2,FALSE)","v":455},{"$f":"HLOOKUP(BR$7+0.5,$I$66:$DJ$120,ROWS($A$10:$A21)+2,FALSE)","v":606},{"$f":"HLOOKUP(BS$7+0.5,$I$66:$DJ$120,ROWS($A$10:$A21)+2,FALSE)","v":283},{"$f":"HLOOKUP(BT$7+0.5,$I$66:$DJ$120,ROWS($A$10:$A21)+2,FALSE)","v":5232},{"$f":"HLOOKUP(BU$7+0.5,$I$66:$DJ$120,ROWS($A$10:$A21)+2,FALSE)","v":"N/A"},{"$f":"HLOOKUP(BV$7+0.5,$I$66:$DJ$120,ROWS($A$10:$A21)+2,FALSE)","v":883},{"$f":"HLOOKUP(BW$7+0.5,$I$66:$DJ$120,ROWS($A$10:$A21)+2,FALSE)","v":139},{"$f":"HLOOKUP(BX$7+0.5,$I$66:$DJ$120,ROWS($A$10:$A21)+2,FALSE)","v":1774},{"$f":"HLOOKUP(BY$7+0.5,$I$66:$DJ$120,ROWS($A$10:$A21)+2,FALSE)","v":1297},{"$f":"HLOOKUP(BZ$7+0.5,$I$66:$DJ$120,ROWS($A$10:$A21)+2,FALSE)","v":528},{"$f":"HLOOKUP(CA$7+0.5,$I$66:$DJ$120,ROWS($A$10:$A21)+2,FALSE)","v":2909},{"$f":"HLOOKUP(CB$7+0.5,$I$66:$DJ$120,ROWS($A$10:$A21)+2,FALSE)","v":1708},{"$f":"HLOOKUP(CC$7+0.5,$I$66:$DJ$120,ROWS($A$10:$A21)+2,FALSE)","v":3121},{"$f":"HLOOKUP(CD$7+0.5,$I$66:$DJ$120,ROWS($A$10:$A21)+2,FALSE)","v":269},{"$f":"HLOOKUP(CE$7+0.5,$I$66:$DJ$120,ROWS($A$10:$A21)+2,FALSE)","v":1807},{"$f":"HLOOKUP(CF$7+0.5,$I$66:$DJ$120,ROWS($A$10:$A21)+2,FALSE)","v":1979},{"$f":"HLOOKUP(CG$7+0.5,$I$66:$DJ$120,ROWS($A$10:$A21)+2,FALSE)","v":2441},{"$f":"HLOOKUP(CH$7+0.5,$I$66:$DJ$120,ROWS($A$10:$A21)+2,FALSE)","v":1416},{"$f":"HLOOKUP(CI$7+0.5,$I$66:$DJ$120,ROWS($A$10:$A21)+2,FALSE)","v":3077},{"$f":"HLOOKUP(CJ$7+0.5,$I$66:$DJ$120,ROWS($A$10:$A21)+2,FALSE)","v":989},{"$f":"HLOOKUP(CK$7+0.5,$I$66:$DJ$120,ROWS($A$10:$A21)+2,FALSE)","v":211},{"$f":"HLOOKUP(CL$7+0.5,$I$66:$DJ$120,ROWS($A$10:$A21)+2,FALSE)","v":3300},{"$f":"HLOOKUP(CM$7+0.5,$I$66:$DJ$120,ROWS($A$10:$A21)+2,FALSE)","v":559},{"$f":"HLOOKUP(CN$7+0.5,$I$66:$DJ$120,ROWS($A$10:$A21)+2,FALSE)","v":150},{"$f":"HLOOKUP(CO$7+0.5,$I$66:$DJ$120,ROWS($A$10:$A21)+2,FALSE)","v":3016},{"$f":"HLOOKUP(CP$7+0.5,$I$66:$DJ$120,ROWS($A$10:$A21)+2,FALSE)","v":421},{"$f":"HLOOKUP(CQ$7+0.5,$I$66:$DJ$120,ROWS($A$10:$A21)+2,FALSE)","v":4681},{"$f":"HLOOKUP(CR$7+0.5,$I$66:$DJ$120,ROWS($A$10:$A21)+2,FALSE)","v":3931},{"$f":"HLOOKUP(CS$7+0.5,$I$66:$DJ$120,ROWS($A$10:$A21)+2,FALSE)","v":221},{"$f":"HLOOKUP(CT$7+0.5,$I$66:$DJ$120,ROWS($A$10:$A21)+2,FALSE)","v":1986},{"$f":"HLOOKUP(CU$7+0.5,$I$66:$DJ$120,ROWS($A$10:$A21)+2,FALSE)","v":1107},{"$f":"HLOOKUP(CV$7+0.5,$I$66:$DJ$120,ROWS($A$10:$A21)+2,FALSE)","v":472},{"$f":"HLOOKUP(CW$7+0.5,$I$66:$DJ$120,ROWS($A$10:$A21)+2,FALSE)","v":1896},{"$f":"HLOOKUP(CX$7+0.5,$I$66:$DJ$120,ROWS($A$10:$A21)+2,FALSE)","v":504},{"$f":"HLOOKUP(CY$7+0.5,$I$66:$DJ$120,ROWS($A$10:$A21)+2,FALSE)","v":5257},{"$f":"HLOOKUP(CZ$7+0.5,$I$66:$DJ$120,ROWS($A$10:$A21)+2,FALSE)","v":730},{"$f":"HLOOKUP(DA$7+0.5,$I$66:$DJ$120,ROWS($A$10:$A21)+2,FALSE)","v":3610},{"$f":"HLOOKUP(DB$7+0.5,$I$66:$DJ$120,ROWS($A$10:$A21)+2,FALSE)","v":3421},{"$f":"HLOOKUP(DC$7+0.5,$I$66:$DJ$120,ROWS($A$10:$A21)+2,FALSE)","v":1061},{"$f":"HLOOKUP(DD$7+0.5,$I$66:$DJ$120,ROWS($A$10:$A21)+2,FALSE)","v":334},{"$f":"HLOOKUP(DE$7+0.5,$I$66:$DJ$120,ROWS($A$10:$A21)+2,FALSE)","v":3336},{"$f":"HLOOKUP(DF$7+0.5,$I$66:$DJ$120,ROWS($A$10:$A21)+2,FALSE)","v":1532},{"$f":"HLOOKUP(DG$7+0.5,$I$66:$DJ$120,ROWS($A$10:$A21)+2,FALSE)","v":778},{"$f":"HLOOKUP(DH$7+0.5,$I$66:$DJ$120,ROWS($A$10:$A21)+2,FALSE)","v":1401},{"$f":"HLOOKUP(DI$7+0.5,$I$66:$DJ$120,ROWS($A$10:$A21)+2,FALSE)","v":775},{"$f":"HLOOKUP(DJ$7+0.5,$I$66:$DJ$120,ROWS($A$10:$A21)+2,FALSE)","v":841}]
[null,"Hawaii",1357806,1803,1160948,10743,122727,8676,{"$f":"HLOOKUP(I$7,$I$66:$DJ$120,ROWS($A$10:$A22)+2,FALSE)","v":57542},{"$f":"HLOOKUP(J$7,$I$66:$DJ$120,ROWS($A$10:$A22)+2,FALSE)","v":1268},{"$f":"HLOOKUP(K$7,$I$66:$DJ$120,ROWS($A$10:$A22)+2,FALSE)","v":844},{"$f":"HLOOKUP(L$7,$I$66:$DJ$120,ROWS($A$10:$A22)+2,FALSE)","v":2900},{"$f":"HLOOKUP(M$7,$I$66:$DJ$120,ROWS($A$10:$A22)+2,FALSE)","v":242},{"$f":"HLOOKUP(N$7,$I$66:$DJ$120,ROWS($A$10:$A22)+2,FALSE)","v":10173},{"$f":"HLOOKUP(O$7,$I$66:$DJ$120,ROWS($A$10:$A22)+2,FALSE)","v":950},{"$f":"HLOOKUP(P$7,$I$66:$DJ$120,ROWS($A$10:$A22)+2,FALSE)","v":731},{"$f":"HLOOKUP(Q$7,$I$66:$DJ$120,ROWS($A$10:$A22)+2,FALSE)","v":784},{"$f":"HLOOKUP(R$7,$I$66:$DJ$120,ROWS($A$10:$A22)+2,FALSE)","v":222},{"$f":"HLOOKUP(S$7,$I$66:$DJ$120,ROWS($A$10:$A22)+2,FALSE)","v":3160},{"$f":"HLOOKUP(T$7,$I$66:$DJ$120,ROWS($A$10:$A22)+2,FALSE)","v":2519},{"$f":"HLOOKUP(U$7,$I$66:$DJ$120,ROWS($A$10:$A22)+2,FALSE)","v":"N/A"},{"$f":"HLOOKUP(V$7,$I$66:$DJ$120,ROWS($A$10:$A22)+2,FALSE)","v":112},{"$f":"HLOOKUP(W$7,$I$66:$DJ$120,ROWS($A$10:$A22)+2,FALSE)","v":1884},{"$f":"HLOOKUP(X$7,$I$66:$DJ$120,ROWS($A$10:$A22)+2,FALSE)","v":402},{"$f":"HLOOKUP(Y$7,$I$66:$DJ$120,ROWS($A$10:$A22)+2,FALSE)","v":478},{"$f":"HLOOKUP(Z$7,$I$66:$DJ$120,ROWS($A$10:$A22)+2,FALSE)","v":125},{"$f":"HLOOKUP(AA$7,$I$66:$DJ$120,ROWS($A$10:$A22)+2,FALSE)","v":18},{"$f":"HLOOKUP(AB$7,$I$66:$DJ$120,ROWS($A$10:$A22)+2,FALSE)","v":179},{"$f":"HLOOKUP(AC$7,$I$66:$DJ$120,ROWS($A$10:$A22)+2,FALSE)","v":106},{"$f":"HLOOKUP(AD$7,$I$66:$DJ$120,ROWS($A$10:$A22)+2,FALSE)","v":341},{"$f":"HLOOKUP(AE$7,$I$66:$DJ$120,ROWS($A$10:$A22)+2,FALSE)","v":92},{"$f":"HLOOKUP(AF$7,$I$66:$DJ$120,ROWS($A$10:$A22)+2,FALSE)","v":1303},{"$f":"HLOOKUP(AG$7,$I$66:$DJ$120,ROWS($A$10:$A22)+2,FALSE)","v":933},{"$f":"HLOOKUP(AH$7,$I$66:$DJ$120,ROWS($A$10:$A22)+2,FALSE)","v":371},{"$f":"HLOOKUP(AI$7,$I$66:$DJ$120,ROWS($A$10:$A22)+2,FALSE)","v":308},{"$f":"HLOOKUP(AJ$7,$I$66:$DJ$120,ROWS($A$10:$A22)+2,FALSE)","v":85},{"$f":"HLOOKUP(AK$7,$I$66:$DJ$120,ROWS($A$10:$A22)+2,FALSE)","v":91},{"$f":"HLOOKUP(AL$7,$I$66:$DJ$120,ROWS($A$10:$A22)+2,FALSE)","v":1548},{"$f":"HLOOKUP(AM$7,$I$66:$DJ$120,ROWS($A$10:$A22)+2,FALSE)","v":107},{"$f":"HLOOKUP(AN$7,$I$66:$DJ$120,ROWS($A$10:$A22)+2,FALSE)","v":564},{"$f":"HLOOKUP(AO$7,$I$66:$DJ$120,ROWS($A$10:$A22)+2,FALSE)","v":354},{"$f":"HLOOKUP(AP$7,$I$66:$DJ$120,ROWS($A$10:$A22)+2,FALSE)","v":4246},{"$f":"HLOOKUP(AQ$7,$I$66:$DJ$120,ROWS($A$10:$A22)+2,FALSE)","v":2307},{"$f":"HLOOKUP(AR$7,$I$66:$DJ$120,ROWS($A$10:$A22)+2,FALSE)","v":32},{"$f":"HLOOKUP(AS$7,$I$66:$DJ$120,ROWS($A$10:$A22)+2,FALSE)","v":970},{"$f":"HLOOKUP(AT$7,$I$66:$DJ$120,ROWS($A$10:$A22)+2,FALSE)","v":685},{"$f":"HLOOKUP(AU$7,$I$66:$DJ$120,ROWS($A$10:$A22)+2,FALSE)","v":2030},{"$f":"HLOOKUP(AV$7,$I$66:$DJ$120,ROWS($A$10:$A22)+2,FALSE)","v":870},{"$f":"HLOOKUP(AW$7,$I$66:$DJ$120,ROWS($A$10:$A22)+2,FALSE)","v":58},{"$f":"HLOOKUP(AX$7,$I$66:$DJ$120,ROWS($A$10:$A22)+2,FALSE)","v":1681},{"$f":"HLOOKUP(AY$7,$I$66:$DJ$120,ROWS($A$10:$A22)+2,FALSE)","v":0},{"$f":"HLOOKUP(AZ$7,$I$66:$DJ$120,ROWS($A$10:$A22)+2,FALSE)","v":636},{"$f":"HLOOKUP(BA$7,$I$66:$DJ$120,ROWS($A$10:$A22)+2,FALSE)","v":3007},{"$f":"HLOOKUP(BB$7,$I$66:$DJ$120,ROWS($A$10:$A22)+2,FALSE)","v":1040},{"$f":"HLOOKUP(BC$7,$I$66:$DJ$120,ROWS($A$10:$A22)+2,FALSE)","v":0},{"$f":"HLOOKUP(BD$7,$I$66:$DJ$120,ROWS($A$10:$A22)+2,FALSE)","v":2523},{"$f":"HLOOKUP(BE$7,$I$66:$DJ$120,ROWS($A$10:$A22)+2,FALSE)","v":3790},{"$f":"HLOOKUP(BF$7,$I$66:$DJ$120,ROWS($A$10:$A22)+2,FALSE)","v":312},{"$f":"HLOOKUP(BG$7,$I$66:$DJ$120,ROWS($A$10:$A22)+2,FALSE)","v":147},{"$f":"HLOOKUP(BH$7,$I$66:$DJ$120,ROWS($A$10:$A22)+2,FALSE)","v":14},{"$f":"HLOOKUP(BI$7,$I$66:$DJ$120,ROWS($A$10:$A22)+2,FALSE)","v":238},{"$f":"HLOOKUP(BJ$7+0.5,$I$66:$DJ$120,ROWS($A$10:$A22)+2,FALSE)","v":5083},{"$f":"HLOOKUP(BK$7+0.5,$I$66:$DJ$120,ROWS($A$10:$A22)+2,FALSE)","v":846},{"$f":"HLOOKUP(BL$7+0.5,$I$66:$DJ$120,ROWS($A$10:$A22)+2,FALSE)","v":670},{"$f":"HLOOKUP(BM$7+0.5,$I$66:$DJ$120,ROWS($A$10:$A22)+2,FALSE)","v":1208},{"$f":"HLOOKUP(BN$7+0.5,$I$66:$DJ$120,ROWS($A$10:$A22)+2,FALSE)","v":260},{"$f":"HLOOKUP(BO$7+0.5,$I$66:$DJ$120,ROWS($A$10:$A22)+2,FALSE)","v":2201},{"$f":"HLOOKUP(BP$7+0.5,$I$66:$DJ$120,ROWS($A$10:$A22)+2,FALSE)","v":493},{"$f":"HLOOKUP(BQ$7+0.5,$I$66:$DJ$120,ROWS($A$10:$A22)+2,FALSE)","v":739},{"$f":"HLOOKUP(BR$7+0.5,$I$66:$DJ$120,ROWS($A$10:$A22)+2,FALSE)","v":877},{"$f":"HLOOKUP(BS$7+0.5,$I$66:$DJ$120,ROWS($A$10:$A22)+2,FALSE)","v":275},{"$f":"HLOOKUP(BT$7+0.5,$I$66:$DJ$120,ROWS($A$10:$A22)+2,FALSE)","v":1311},{"$f":"HLOOKUP(BU$7+0.5,$I$66:$DJ$120,ROWS($A$10:$A22)+2,FALSE)","v":956},{"$f":"HLOOKUP(BV$7+0.5,$I$66:$DJ$120,ROWS($A$10:$A22)+2,FALSE)","v":"N/A"},{"$f":"HLOOKUP(BW$7+0.5,$I$66:$DJ$120,ROWS($A$10:$A22)+2,FALSE)","v":199},{"$f":"HLOOKUP(BX$7+0.5,$I$66:$DJ$120,ROWS($A$10:$A22)+2,FALSE)","v":728},{"$f":"HLOOKUP(BY$7+0.5,$I$66:$DJ$120,ROWS($A$10:$A22)+2,FALSE)","v":280},{"$f":"HLOOKUP(BZ$7+0.5,$I$66:$DJ$120,ROWS($A$10:$A22)+2,FALSE)","v":504},{"$f":"HLOOKUP(CA$7+0.5,$I$66:$DJ$120,ROWS($A$10:$A22)+2,FALSE)","v":154},{"$f":"HLOOKUP(CB$7+0.5,$I$66:$DJ$120,ROWS($A$10:$A22)+2,FALSE)","v":36},{"$f":"HLOOKUP(CC$7+0.5,$I$66:$DJ$120,ROWS($A$10:$A22)+2,FALSE)","v":270},{"$f":"HLOOKUP(CD$7+0.5,$I$66:$DJ$120,ROWS($A$10:$A22)+2,FALSE)","v":161},{"$f":"HLOOKUP(CE$7+0.5,$I$66:$DJ$120,ROWS($A$10:$A22)+2,FALSE)","v":212},{"$f":"HLOOKUP(CF$7+0.5,$I$66:$DJ$120,ROWS($A$10:$A22)+2,FALSE)","v":123},{"$f":"HLOOKUP(CG$7+0.5,$I$66:$DJ$120,ROWS($A$10:$A22)+2,FALSE)","v":1067},{"$f":"HLOOKUP(CH$7+0.5,$I$66:$DJ$120,ROWS($A$10:$A22)+2,FALSE)","v":750},{"$f":"HLOOKUP(CI$7+0.5,$I$66:$DJ$120,ROWS($A$10:$A22)+2,FALSE)","v":391},{"$f":"HLOOKUP(CJ$7+0.5,$I$66:$DJ$120,ROWS($A$10:$A22)+2,FALSE)","v":219},{"$f":"HLOOKUP(CK$7+0.5,$I$66:$DJ$120,ROWS($A$10:$A22)+2,FALSE)","v":140},{"$f":"HLOOKUP(CL$7+0.5,$I$66:$DJ$120,ROWS($A$10:$A22)+2,FALSE)","v":95},{"$f":"HLOOKUP(CM$7+0.5,$I$66:$DJ$120,ROWS($A$10:$A22)+2,FALSE)","v":795},{"$f":"HLOOKUP(CN$7+0.5,$I$66:$DJ$120,ROWS($A$10:$A22)+2,FALSE)","v":141},{"$f":"HLOOKUP(CO$7+0.5,$I$66:$DJ$120,ROWS($A$10:$A22)+2,FALSE)","v":697},{"$f":"HLOOKUP(CP$7+0.5,$I$66:$DJ$120,ROWS($A$10:$A22)+2,FALSE)","v":366},{"$f":"HLOOKUP(CQ$7+0.5,$I$66:$DJ$120,ROWS($A$10:$A22)+2,FALSE)","v":2556},{"$f":"HLOOKUP(CR$7+0.5,$I$66:$DJ$120,ROWS($A$10:$A22)+2,FALSE)","v":1256},{"$f":"HLOOKUP(CS$7+0.5,$I$66:$DJ$120,ROWS($A$10:$A22)+2,FALSE)","v":54},{"$f":"HLOOKUP(CT$7+0.5,$I$66:$DJ$120,ROWS($A$10:$A22)+2,FALSE)","v":677},{"$f":"HLOOKUP(CU$7+0.5,$I$66:$DJ$120,ROWS($A$10:$A22)+2,FALSE)","v":502},{"$f":"HLOOKUP(CV$7+0.5,$I$66:$DJ$120,ROWS($A$10:$A22)+2,FALSE)","v":1378},{"$f":"HLOOKUP(CW$7+0.5,$I$66:$DJ$120,ROWS($A$10:$A22)+2,FALSE)","v":468},{"$f":"HLOOKUP(CX$7+0.5,$I$66:$DJ$120,ROWS($A$10:$A22)+2,FALSE)","v":70},{"$f":"HLOOKUP(CY$7+0.5,$I$66:$DJ$120,ROWS($A$10:$A22)+2,FALSE)","v":919},{"$f":"HLOOKUP(CZ$7+0.5,$I$66:$DJ$120,ROWS($A$10:$A22)+2,FALSE)","v":187},{"$f":"HLOOKUP(DA$7+0.5,$I$66:$DJ$120,ROWS($A$10:$A22)+2,FALSE)","v":1018},{"$f":"HLOOKUP(DB$7+0.5,$I$66:$DJ$120,ROWS($A$10:$A22)+2,FALSE)","v":1122},{"$f":"HLOOKUP(DC$7+0.5,$I$66:$DJ$120,ROWS($A$10:$A22)+2,FALSE)","v":872},{"$f":"HLOOKUP(DD$7+0.5,$I$66:$DJ$120,ROWS($A$10:$A22)+2,FALSE)","v":187},{"$f":"HLOOKUP(DE$7+0.5,$I$66:$DJ$120,ROWS($A$10:$A22)+2,FALSE)","v":1318},{"$f":"HLOOKUP(DF$7+0.5,$I$66:$DJ$120,ROWS($A$10:$A22)+2,FALSE)","v":1075},{"$f":"HLOOKUP(DG$7+0.5,$I$66:$DJ$120,ROWS($A$10:$A22)+2,FALSE)","v":306},{"$f":"HLOOKUP(DH$7+0.5,$I$66:$DJ$120,ROWS($A$10:$A22)+2,FALSE)","v":159},{"$f":"HLOOKUP(DI$7+0.5,$I$66:$DJ$120,ROWS($A$10:$A22)+2,FALSE)","v":23},{"$f":"HLOOKUP(DJ$7+0.5,$I$66:$DJ$120,ROWS($A$10:$A22)+2,FALSE)","v":398}]
[null,"Idaho",1559637,2674,1284530,13188,208434,13285,{"$f":"HLOOKUP(I$7,$I$66:$DJ$120,ROWS($A$10:$A23)+2,FALSE)","v":60336},{"$f":"HLOOKUP(J$7,$I$66:$DJ$120,ROWS($A$10:$A23)+2,FALSE)","v":263},{"$f":"HLOOKUP(K$7,$I$66:$DJ$120,ROWS($A$10:$A23)+2,FALSE)","v":4510},{"$f":"HLOOKUP(L$7,$I$66:$DJ$120,ROWS($A$10:$A23)+2,FALSE)","v":3543},{"$f":"HLOOKUP(M$7,$I$66:$DJ$120,ROWS($A$10:$A23)+2,FALSE)","v":224},{"$f":"HLOOKUP(N$7,$I$66:$DJ$120,ROWS($A$10:$A23)+2,FALSE)","v":9021},{"$f":"HLOOKUP(O$7,$I$66:$DJ$120,ROWS($A$10:$A23)+2,FALSE)","v":1813},{"$f":"HLOOKUP(P$7,$I$66:$DJ$120,ROWS($A$10:$A23)+2,FALSE)","v":0},{"$f":"HLOOKUP(Q$7,$I$66:$DJ$120,ROWS($A$10:$A23)+2,FALSE)","v":0},{"$f":"HLOOKUP(R$7,$I$66:$DJ$120,ROWS($A$10:$A23)+2,FALSE)","v":0},{"$f":"HLOOKUP(S$7,$I$66:$DJ$120,ROWS($A$10:$A23)+2,FALSE)","v":1733},{"$f":"HLOOKUP(T$7,$I$66:$DJ$120,ROWS($A$10:$A23)+2,FALSE)","v":275},{"$f":"HLOOKUP(U$7,$I$66:$DJ$120,ROWS($A$10:$A23)+2,FALSE)","v":254},{"$f":"HLOOKUP(V$7,$I$66:$DJ$120,ROWS($A$10:$A23)+2,FALSE)","v":"N/A"},{"$f":"HLOOKUP(W$7,$I$66:$DJ$120,ROWS($A$10:$A23)+2,FALSE)","v":390},{"$f":"HLOOKUP(X$7,$I$66:$DJ$120,ROWS($A$10:$A23)+2,FALSE)","v":296},{"$f":"HLOOKUP(Y$7,$I$66:$DJ$120,ROWS($A$10:$A23)+2,FALSE)","v":318},{"$f":"HLOOKUP(Z$7,$I$66:$DJ$120,ROWS($A$10:$A23)+2,FALSE)","v":479},{"$f":"HLOOKUP(AA$7,$I$66:$DJ$120,ROWS($A$10:$A23)+2,FALSE)","v":120},{"$f":"HLOOKUP(AB$7,$I$66:$DJ$120,ROWS($A$10:$A23)+2,FALSE)","v":51},{"$f":"HLOOKUP(AC$7,$I$66:$DJ$120,ROWS($A$10:$A23)+2,FALSE)","v":0},{"$f":"HLOOKUP(AD$7,$I$66:$DJ$120,ROWS($A$10:$A23)+2,FALSE)","v":0},{"$f":"HLOOKUP(AE$7,$I$66:$DJ$120,ROWS($A$10:$A23)+2,FALSE)","v":396},{"$f":"HLOOKUP(AF$7,$I$66:$DJ$120,ROWS($A$10:$A23)+2,FALSE)","v":615},{"$f":"HLOOKUP(AG$7,$I$66:$DJ$120,ROWS($A$10:$A23)+2,FALSE)","v":566},{"$f":"HLOOKUP(AH$7,$I$66:$DJ$120,ROWS($A$10:$A23)+2,FALSE)","v":62},{"$f":"HLOOKUP(AI$7,$I$66:$DJ$120,ROWS($A$10:$A23)+2,FALSE)","v":384},{"$f":"HLOOKUP(AJ$7,$I$66:$DJ$120,ROWS($A$10:$A23)+2,FALSE)","v":1602},{"$f":"HLOOKUP(AK$7,$I$66:$DJ$120,ROWS($A$10:$A23)+2,FALSE)","v":439},{"$f":"HLOOKUP(AL$7,$I$66:$DJ$120,ROWS($A$10:$A23)+2,FALSE)","v":3581},{"$f":"HLOOKUP(AM$7,$I$66:$DJ$120,ROWS($A$10:$A23)+2,FALSE)","v":129},{"$f":"HLOOKUP(AN$7,$I$66:$DJ$120,ROWS($A$10:$A23)+2,FALSE)","v":84},{"$f":"HLOOKUP(AO$7,$I$66:$DJ$120,ROWS($A$10:$A23)+2,FALSE)","v":141},{"$f":"HLOOKUP(AP$7,$I$66:$DJ$120,ROWS($A$10:$A23)+2,FALSE)","v":419},{"$f":"HLOOKUP(AQ$7,$I$66:$DJ$120,ROWS($A$10:$A23)+2,FALSE)","v":263},{"$f":"HLOOKUP(AR$7,$I$66:$DJ$120,ROWS($A$10:$A23)+2,FALSE)","v":1201},{"$f":"HLOOKUP(AS$7,$I$66:$DJ$120,ROWS($A$10:$A23)+2,FALSE)","v":260},{"$f":"HLOOKUP(AT$7,$I$66:$DJ$120,ROWS($A$10:$A23)+2,FALSE)","v":288},{"$f":"HLOOKUP(AU$7,$I$66:$DJ$120,ROWS($A$10:$A23)+2,FALSE)","v":7170},{"$f":"HLOOKUP(AV$7,$I$66:$DJ$120,ROWS($A$10:$A23)+2,FALSE)","v":343},{"$f":"HLOOKUP(AW$7,$I$66:$DJ$120,ROWS($A$10:$A23)+2,FALSE)","v":0},{"$f":"HLOOKUP(AX$7,$I$66:$DJ$120,ROWS($A$10:$A23)+2,FALSE)","v":55},{"$f":"HLOOKUP(AY$7,$I$66:$DJ$120,ROWS($A$10:$A23)+2,FALSE)","v":842},{"$f":"HLOOKUP(AZ$7,$I$66:$DJ$120,ROWS($A$10:$A23)+2,FALSE)","v":296},{"$f":"HLOOKUP(BA$7,$I$66:$DJ$120,ROWS($A$10:$A23)+2,FALSE)","v":1303},{"$f":"HLOOKUP(BB$7,$I$66:$DJ$120,ROWS($A$10:$A23)+2,FALSE)","v":6059},{"$f":"HLOOKUP(BC$7,$I$66:$DJ$120,ROWS($A$10:$A23)+2,FALSE)","v":0},{"$f":"HLOOKUP(BD$7,$I$66:$DJ$120,ROWS($A$10:$A23)+2,FALSE)","v":905},{"$f":"HLOOKUP(BE$7,$I$66:$DJ$120,ROWS($A$10:$A23)+2,FALSE)","v":8991},{"$f":"HLOOKUP(BF$7,$I$66:$DJ$120,ROWS($A$10:$A23)+2,FALSE)","v":0},{"$f":"HLOOKUP(BG$7,$I$66:$DJ$120,ROWS($A$10:$A23)+2,FALSE)","v":165},{"$f":"HLOOKUP(BH$7,$I$66:$DJ$120,ROWS($A$10:$A23)+2,FALSE)","v":487},{"$f":"HLOOKUP(BI$7,$I$66:$DJ$120,ROWS($A$10:$A23)+2,FALSE)","v":249},{"$f":"HLOOKUP(BJ$7+0.5,$I$66:$DJ$120,ROWS($A$10:$A23)+2,FALSE)","v":6293},{"$f":"HLOOKUP(BK$7+0.5,$I$66:$DJ$120,ROWS($A$10:$A23)+2,FALSE)","v":259},{"$f":"HLOOKUP(BL$7+0.5,$I$66:$DJ$120,ROWS($A$10:$A23)+2,FALSE)","v":2938},{"$f":"HLOOKUP(BM$7+0.5,$I$66:$DJ$120,ROWS($A$10:$A23)+2,FALSE)","v":1771},{"$f":"HLOOKUP(BN$7+0.5,$I$66:$DJ$120,ROWS($A$10:$A23)+2,FALSE)","v":188},{"$f":"HLOOKUP(BO$7+0.5,$I$66:$DJ$120,ROWS($A$10:$A23)+2,FALSE)","v":2484},{"$f":"HLOOKUP(BP$7+0.5,$I$66:$DJ$120,ROWS($A$10:$A23)+2,FALSE)","v":1022},{"$f":"HLOOKUP(BQ$7+0.5,$I$66:$DJ$120,ROWS($A$10:$A23)+2,FALSE)","v":195},{"$f":"HLOOKUP(BR$7+0.5,$I$66:$DJ$120,ROWS($A$10:$A23)+2,FALSE)","v":195},{"$f":"HLOOKUP(BS$7+0.5,$I$66:$DJ$120,ROWS($A$10:$A23)+2,FALSE)","v":195},{"$f":"HLOOKUP(BT$7+0.5,$I$66:$DJ$120,ROWS($A$10:$A23)+2,FALSE)","v":1210},{"$f":"HLOOKUP(BU$7+0.5,$I$66:$DJ$120,ROWS($A$10:$A23)+2,FALSE)","v":234},{"$f":"HLOOKUP(BV$7+0.5,$I$66:$DJ$120,ROWS($A$10:$A23)+2,FALSE)","v":314},{"$f":"HLOOKUP(BW$7+0.5,$I$66:$DJ$120,ROWS($A$10:$A23)+2,FALSE)","v":"N/A"},{"$f":"HLOOKUP(BX$7+0.5,$I$66:$DJ$120,ROWS($A$10:$A23)+2,FALSE)","v":342},{"$f":"HLOOKUP(BY$7+0.5,$I$66:$DJ$120,ROWS($A$10:$A23)+2,FALSE)","v":352},{"$f":"HLOOKUP(BZ$7+0.5,$I$66:$DJ$120,ROWS($A$10:$A23)+2,FALSE)","v":424},{"$f":"HLOOKUP(CA$7+0.5,$I$66:$DJ$120,ROWS($A$10:$A23)+2,FALSE)","v":503},{"$f":"HLOOKUP(CB$7+0.5,$I$66:$DJ$120,ROWS($A$10:$A23)+2,FALSE)","v":170},{"$f":"HLOOKUP(CC$7+0.5,$I$66:$DJ$120,ROWS($A$10:$A23)+2,FALSE)","v":110},{"$f":"HLOOKUP(CD$7+0.5,$I$66:$DJ$120,ROWS($A$10:$A23)+2,FALSE)","v":195},{"$f":"HLOOKUP(CE$7+0.5,$I$66:$DJ$120,ROWS($A$10:$A23)+2,FALSE)","v":195},{"$f":"HLOOKUP(CF$7+0.5,$I$66:$DJ$120,ROWS($A$10:$A23)+2,FALSE)","v":625},{"$f":"HLOOKUP(CG$7+0.5,$I$66:$DJ$120,ROWS($A$10:$A23)+2,FALSE)","v":524},{"$f":"HLOOKUP(CH$7+0.5,$I$66:$DJ$120,ROWS($A$10:$A23)+2,FALSE)","v":352},{"$f":"HLOOKUP(CI$7+0.5,$I$66:$DJ$120,ROWS($A$10:$A23)+2,FALSE)","v":106},{"$f":"HLOOKUP(CJ$7+0.5,$I$66:$DJ$120,ROWS($A$10:$A23)+2,FALSE)","v":304},{"$f":"HLOOKUP(CK$7+0.5,$I$66:$DJ$120,ROWS($A$10:$A23)+2,FALSE)","v":828},{"$f":"HLOOKUP(CL$7+0.5,$I$66:$DJ$120,ROWS($A$10:$A23)+2,FALSE)","v":591},{"$f":"HLOOKUP(CM$7+0.5,$I$66:$DJ$120,ROWS($A$10:$A23)+2,FALSE)","v":1400},{"$f":"HLOOKUP(CN$7+0.5,$I$66:$DJ$120,ROWS($A$10:$A23)+2,FALSE)","v":123},{"$f":"HLOOKUP(CO$7+0.5,$I$66:$DJ$120,ROWS($A$10:$A23)+2,FALSE)","v":78},{"$f":"HLOOKUP(CP$7+0.5,$I$66:$DJ$120,ROWS($A$10:$A23)+2,FALSE)","v":229},{"$f":"HLOOKUP(CQ$7+0.5,$I$66:$DJ$120,ROWS($A$10:$A23)+2,FALSE)","v":399},{"$f":"HLOOKUP(CR$7+0.5,$I$66:$DJ$120,ROWS($A$10:$A23)+2,FALSE)","v":435},{"$f":"HLOOKUP(CS$7+0.5,$I$66:$DJ$120,ROWS($A$10:$A23)+2,FALSE)","v":1099},{"$f":"HLOOKUP(CT$7+0.5,$I$66:$DJ$120,ROWS($A$10:$A23)+2,FALSE)","v":212},{"$f":"HLOOKUP(CU$7+0.5,$I$66:$DJ$120,ROWS($A$10:$A23)+2,FALSE)","v":243},{"$f":"HLOOKUP(CV$7+0.5,$I$66:$DJ$120,ROWS($A$10:$A23)+2,FALSE)","v":1894},{"$f":"HLOOKUP(CW$7+0.5,$I$66:$DJ$120,ROWS($A$10:$A23)+2,FALSE)","v":265},{"$f":"HLOOKUP(CX$7+0.5,$I$66:$DJ$120,ROWS($A$10:$A23)+2,FALSE)","v":195},{"$f":"HLOOKUP(CY$7+0.5,$I$66:$DJ$120,ROWS($A$10:$A23)+2,FALSE)","v":90},{"$f":"HLOOKUP(CZ$7+0.5,$I$66:$DJ$120,ROWS($A$10:$A23)+2,FALSE)","v":1132},{"$f":"HLOOKUP(DA$7+0.5,$I$66:$DJ$120,ROWS($A$10:$A23)+2,FALSE)","v":356},{"$f":"HLOOKUP(DB$7+0.5,$I$66:$DJ$120,ROWS($A$10:$A23)+2,FALSE)","v":952},{"$f":"HLOOKUP(DC$7+0.5,$I$66:$DJ$120,ROWS($A$10:$A23)+2,FALSE)","v":2187},{"$f":"HLOOKUP(DD$7+0.5,$I$66:$DJ$120,ROWS($A$10:$A23)+2,FALSE)","v":195},{"$f":"HLOOKUP(DE$7+0.5,$I$66:$DJ$120,ROWS($A$10:$A23)+2,FALSE)","v":707},{"$f":"HLOOKUP(DF$7+0.5,$I$66:$DJ$120,ROWS($A$10:$A23)+2,FALSE)","v":2313},{"$f":"HLOOKUP(DG$7+0.5,$I$66:$DJ$120,ROWS($A$10:$A23)+2,FALSE)","v":195},{"$f":"HLOOKUP(DH$7+0.5,$I$66:$DJ$120,ROWS($A$10:$A23)+2,FALSE)","v":174},{"$f":"HLOOKUP(DI$7+0.5,$I$66:$DJ$120,ROWS($A$10:$A23)+2,FALSE)","v":340},{"$f":"HLOOKUP(DJ$7+0.5,$I$66:$DJ$120,ROWS($A$10:$A23)+2,FALSE)","v":412}]
[null,"Illinois",12718402,5792,11076528,31383,1353853,28856,{"$f":"HLOOKUP(I$7,$I$66:$DJ$120,ROWS($A$10:$A24)+2,FALSE)","v":216204},{"$f":"HLOOKUP(J$7,$I$66:$DJ$120,ROWS($A$10:$A24)+2,FALSE)","v":2823},{"$f":"HLOOKUP(K$7,$I$66:$DJ$120,ROWS($A$10:$A24)+2,FALSE)","v":4119},{"$f":"HLOOKUP(L$7,$I$66:$DJ$120,ROWS($A$10:$A24)+2,FALSE)","v":7657},{"$f":"HLOOKUP(M$7,$I$66:$DJ$120,ROWS($A$10:$A24)+2,FALSE)","v":3185},{"$f":"HLOOKUP(N$7,$I$66:$DJ$120,ROWS($A$10:$A24)+2,FALSE)","v":13930},{"$f":"HLOOKUP(O$7,$I$66:$DJ$120,ROWS($A$10:$A24)+2,FALSE)","v":3271},{"$f":"HLOOKUP(P$7,$I$66:$DJ$120,ROWS($A$10:$A24)+2,FALSE)","v":1819},{"$f":"HLOOKUP(Q$7,$I$66:$DJ$120,ROWS($A$10:$A24)+2,FALSE)","v":277},{"$f":"HLOOKUP(R$7,$I$66:$DJ$120,ROWS($A$10:$A24)+2,FALSE)","v":1440},{"$f":"HLOOKUP(S$7,$I$66:$DJ$120,ROWS($A$10:$A24)+2,FALSE)","v":17548},{"$f":"HLOOKUP(T$7,$I$66:$DJ$120,ROWS($A$10:$A24)+2,FALSE)","v":6042},{"$f":"HLOOKUP(U$7,$I$66:$DJ$120,ROWS($A$10:$A24)+2,FALSE)","v":1269},{"$f":"HLOOKUP(V$7,$I$66:$DJ$120,ROWS($A$10:$A24)+2,FALSE)","v":393},{"$f":"HLOOKUP(W$7,$I$66:$DJ$120,ROWS($A$10:$A24)+2,FALSE)","v":"N/A"},{"$f":"HLOOKUP(X$7,$I$66:$DJ$120,ROWS($A$10:$A24)+2,FALSE)","v":23491},{"$f":"HLOOKUP(Y$7,$I$66:$DJ$120,ROWS($A$10:$A24)+2,FALSE)","v":8420},{"$f":"HLOOKUP(Z$7,$I$66:$DJ$120,ROWS($A$10:$A24)+2,FALSE)","v":2533},{"$f":"HLOOKUP(AA$7,$I$66:$DJ$120,ROWS($A$10:$A24)+2,FALSE)","v":5569},{"$f":"HLOOKUP(AB$7,$I$66:$DJ$120,ROWS($A$10:$A24)+2,FALSE)","v":1315},{"$f":"HLOOKUP(AC$7,$I$66:$DJ$120,ROWS($A$10:$A24)+2,FALSE)","v":693},{"$f":"HLOOKUP(AD$7,$I$66:$DJ$120,ROWS($A$10:$A24)+2,FALSE)","v":2565},{"$f":"HLOOKUP(AE$7,$I$66:$DJ$120,ROWS($A$10:$A24)+2,FALSE)","v":3507},{"$f":"HLOOKUP(AF$7,$I$66:$DJ$120,ROWS($A$10:$A24)+2,FALSE)","v":10274},{"$f":"HLOOKUP(AG$7,$I$66:$DJ$120,ROWS($A$10:$A24)+2,FALSE)","v":4496},{"$f":"HLOOKUP(AH$7,$I$66:$DJ$120,ROWS($A$10:$A24)+2,FALSE)","v":1521},{"$f":"HLOOKUP(AI$7,$I$66:$DJ$120,ROWS($A$10:$A24)+2,FALSE)","v":13889},{"$f":"HLOOKUP(AJ$7,$I$66:$DJ$120,ROWS($A$10:$A24)+2,FALSE)","v":304},{"$f":"HLOOKUP(AK$7,$I$66:$DJ$120,ROWS($A$10:$A24)+2,FALSE)","v":827},{"$f":"HLOOKUP(AL$7,$I$66:$DJ$120,ROWS($A$10:$A24)+2,FALSE)","v":2454},{"$f":"HLOOKUP(AM$7,$I$66:$DJ$120,ROWS($A$10:$A24)+2,FALSE)","v":590},{"$f":"HLOOKUP(AN$7,$I$66:$DJ$120,ROWS($A$10:$A24)+2,FALSE)","v":3009},{"$f":"HLOOKUP(AO$7,$I$66:$DJ$120,ROWS($A$10:$A24)+2,FALSE)","v":1573},{"$f":"HLOOKUP(AP$7,$I$66:$DJ$120,ROWS($A$10:$A24)+2,FALSE)","v":6412},{"$f":"HLOOKUP(AQ$7,$I$66:$DJ$120,ROWS($A$10:$A24)+2,FALSE)","v":4057},{"$f":"HLOOKUP(AR$7,$I$66:$DJ$120,ROWS($A$10:$A24)+2,FALSE)","v":105},{"$f":"HLOOKUP(AS$7,$I$66:$DJ$120,ROWS($A$10:$A24)+2,FALSE)","v":8384},{"$f":"HLOOKUP(AT$7,$I$66:$DJ$120,ROWS($A$10:$A24)+2,FALSE)","v":1002},{"$f":"HLOOKUP(AU$7,$I$66:$DJ$120,ROWS($A$10:$A24)+2,FALSE)","v":792},{"$f":"HLOOKUP(AV$7,$I$66:$DJ$120,ROWS($A$10:$A24)+2,FALSE)","v":3012},{"$f":"HLOOKUP(AW$7,$I$66:$DJ$120,ROWS($A$10:$A24)+2,FALSE)","v":278},{"$f":"HLOOKUP(AX$7,$I$66:$DJ$120,ROWS($A$10:$A24)+2,FALSE)","v":1582},{"$f":"HLOOKUP(AY$7,$I$66:$DJ$120,ROWS($A$10:$A24)+2,FALSE)","v":1318},{"$f":"HLOOKUP(AZ$7,$I$66:$DJ$120,ROWS($A$10:$A24)+2,FALSE)","v":3223},{"$f":"HLOOKUP(BA$7,$I$66:$DJ$120,ROWS($A$10:$A24)+2,FALSE)","v":11011},{"$f":"HLOOKUP(BB$7,$I$66:$DJ$120,ROWS($A$10:$A24)+2,FALSE)","v":951},{"$f":"HLOOKUP(BC$7,$I$66:$DJ$120,ROWS($A$10:$A24)+2,FALSE)","v":49},{"$f":"HLOOKUP(BD$7,$I$66:$DJ$120,ROWS($A$10:$A24)+2,FALSE)","v":5233},{"$f":"HLOOKUP(BE$7,$I$66:$DJ$120,ROWS($A$10:$A24)+2,FALSE)","v":3075},{"$f":"HLOOKUP(BF$7,$I$66:$DJ$120,ROWS($A$10:$A24)+2,FALSE)","v":352},{"$f":"HLOOKUP(BG$7,$I$66:$DJ$120,ROWS($A$10:$A24)+2,FALSE)","v":14507},{"$f":"HLOOKUP(BH$7,$I$66:$DJ$120,ROWS($A$10:$A24)+2,FALSE)","v":58},{"$f":"HLOOKUP(BI$7,$I$66:$DJ$120,ROWS($A$10:$A24)+2,FALSE)","v":2387},{"$f":"HLOOKUP(BJ$7+0.5,$I$66:$DJ$120,ROWS($A$10:$A24)+2,FALSE)","v":11862},{"$f":"HLOOKUP(BK$7+0.5,$I$66:$DJ$120,ROWS($A$10:$A24)+2,FALSE)","v":1526},{"$f":"HLOOKUP(BL$7+0.5,$I$66:$DJ$120,ROWS($A$10:$A24)+2,FALSE)","v":3153},{"$f":"HLOOKUP(BM$7+0.5,$I$66:$DJ$120,ROWS($A$10:$A24)+2,FALSE)","v":1987},{"$f":"HLOOKUP(BN$7+0.5,$I$66:$DJ$120,ROWS($A$10:$A24)+2,FALSE)","v":1513},{"$f":"HLOOKUP(BO$7+0.5,$I$66:$DJ$120,ROWS($A$10:$A24)+2,FALSE)","v":2863},{"$f":"HLOOKUP(BP$7+0.5,$I$66:$DJ$120,ROWS($A$10:$A24)+2,FALSE)","v":1390},{"$f":"HLOOKUP(BQ$7+0.5,$I$66:$DJ$120,ROWS($A$10:$A24)+2,FALSE)","v":959},{"$f":"HLOOKUP(BR$7+0.5,$I$66:$DJ$120,ROWS($A$10:$A24)+2,FALSE)","v":303},{"$f":"HLOOKUP(BS$7+0.5,$I$66:$DJ$120,ROWS($A$10:$A24)+2,FALSE)","v":708},{"$f":"HLOOKUP(BT$7+0.5,$I$66:$DJ$120,ROWS($A$10:$A24)+2,FALSE)","v":3370},{"$f":"HLOOKUP(BU$7+0.5,$I$66:$DJ$120,ROWS($A$10:$A24)+2,FALSE)","v":2192},{"$f":"HLOOKUP(BV$7+0.5,$I$66:$DJ$120,ROWS($A$10:$A24)+2,FALSE)","v":735},{"$f":"HLOOKUP(BW$7+0.5,$I$66:$DJ$120,ROWS($A$10:$A24)+2,FALSE)","v":356},{"$f":"HLOOKUP(BX$7+0.5,$I$66:$DJ$120,ROWS($A$10:$A24)+2,FALSE)","v":"N/A"},{"$f":"HLOOKUP(BY$7+0.5,$I$66:$DJ$120,ROWS($A$10:$A24)+2,FALSE)","v":5269},{"$f":"HLOOKUP(BZ$7+0.5,$I$66:$DJ$120,ROWS($A$10:$A24)+2,FALSE)","v":1581},{"$f":"HLOOKUP(CA$7+0.5,$I$66:$DJ$120,ROWS($A$10:$A24)+2,FALSE)","v":1130},{"$f":"HLOOKUP(CB$7+0.5,$I$66:$DJ$120,ROWS($A$10:$A24)+2,FALSE)","v":1718},{"$f":"HLOOKUP(CC$7+0.5,$I$66:$DJ$120,ROWS($A$10:$A24)+2,FALSE)","v":761},{"$f":"HLOOKUP(CD$7+0.5,$I$66:$DJ$120,ROWS($A$10:$A24)+2,FALSE)","v":510},{"$f":"HLOOKUP(CE$7+0.5,$I$66:$DJ$120,ROWS($A$10:$A24)+2,FALSE)","v":916},{"$f":"HLOOKUP(CF$7+0.5,$I$66:$DJ$120,ROWS($A$10:$A24)+2,FALSE)","v":1540},{"$f":"HLOOKUP(CG$7+0.5,$I$66:$DJ$120,ROWS($A$10:$A24)+2,FALSE)","v":2032},{"$f":"HLOOKUP(CH$7+0.5,$I$66:$DJ$120,ROWS($A$10:$A24)+2,FALSE)","v":1177},{"$f":"HLOOKUP(CI$7+0.5,$I$66:$DJ$120,ROWS($A$10:$A24)+2,FALSE)","v":581},{"$f":"HLOOKUP(CJ$7+0.5,$I$66:$DJ$120,ROWS($A$10:$A24)+2,FALSE)","v":2736},{"$f":"HLOOKUP(CK$7+0.5,$I$66:$DJ$120,ROWS($A$10:$A24)+2,FALSE)","v":275},{"$f":"HLOOKUP(CL$7+0.5,$I$66:$DJ$120,ROWS($A$10:$A24)+2,FALSE)","v":520},{"$f":"HLOOKUP(CM$7+0.5,$I$66:$DJ$120,ROWS($A$10:$A24)+2,FALSE)","v":1187},{"$f":"HLOOKUP(CN$7+0.5,$I$66:$DJ$120,ROWS($A$10:$A24)+2,FALSE)","v":334},{"$f":"HLOOKUP(CO$7+0.5,$I$66:$DJ$120,ROWS($A$10:$A24)+2,FALSE)","v":1033},{"$f":"HLOOKUP(CP$7+0.5,$I$66:$DJ$120,ROWS($A$10:$A24)+2,FALSE)","v":1619},{"$f":"HLOOKUP(CQ$7+0.5,$I$66:$DJ$120,ROWS($A$10:$A24)+2,FALSE)","v":1874},{"$f":"HLOOKUP(CR$7+0.5,$I$66:$DJ$120,ROWS($A$10:$A24)+2,FALSE)","v":1663},{"$f":"HLOOKUP(CS$7+0.5,$I$66:$DJ$120,ROWS($A$10:$A24)+2,FALSE)","v":115},{"$f":"HLOOKUP(CT$7+0.5,$I$66:$DJ$120,ROWS($A$10:$A24)+2,FALSE)","v":1627},{"$f":"HLOOKUP(CU$7+0.5,$I$66:$DJ$120,ROWS($A$10:$A24)+2,FALSE)","v":552},{"$f":"HLOOKUP(CV$7+0.5,$I$66:$DJ$120,ROWS($A$10:$A24)+2,FALSE)","v":426},{"$f":"HLOOKUP(CW$7+0.5,$I$66:$DJ$120,ROWS($A$10:$A24)+2,FALSE)","v":1197},{"$f":"HLOOKUP(CX$7+0.5,$I$66:$DJ$120,ROWS($A$10:$A24)+2,FALSE)","v":266},{"$f":"HLOOKUP(CY$7+0.5,$I$66:$DJ$120,ROWS($A$10:$A24)+2,FALSE)","v":783},{"$f":"HLOOKUP(CZ$7+0.5,$I$66:$DJ$120,ROWS($A$10:$A24)+2,FALSE)","v":1474},{"$f":"HLOOKUP(DA$7+0.5,$I$66:$DJ$120,ROWS($A$10:$A24)+2,FALSE)","v":1222},{"$f":"HLOOKUP(DB$7+0.5,$I$66:$DJ$120,ROWS($A$10:$A24)+2,FALSE)","v":2803},{"$f":"HLOOKUP(DC$7+0.5,$I$66:$DJ$120,ROWS($A$10:$A24)+2,FALSE)","v":595},{"$f":"HLOOKUP(DD$7+0.5,$I$66:$DJ$120,ROWS($A$10:$A24)+2,FALSE)","v":81},{"$f":"HLOOKUP(DE$7+0.5,$I$66:$DJ$120,ROWS($A$10:$A24)+2,FALSE)","v":2524},{"$f":"HLOOKUP(DF$7+0.5,$I$66:$DJ$120,ROWS($A$10:$A24)+2,FALSE)","v":1254},{"$f":"HLOOKUP(DG$7+0.5,$I$66:$DJ$120,ROWS($A$10:$A24)+2,FALSE)","v":288},{"$f":"HLOOKUP(DH$7+0.5,$I$66:$DJ$120,ROWS($A$10:$A24)+2,FALSE)","v":2936},{"$f":"HLOOKUP(DI$7+0.5,$I$66:$DJ$120,ROWS($A$10:$A24)+2,FALSE)","v":76},{"$f":"HLOOKUP(DJ$7+0.5,$I$66:$DJ$120,ROWS($A$10:$A24)+2,FALSE)","v":715}]
[null,"Indiana",6437155,3841,5478683,24180,809158,21392,{"$f":"HLOOKUP(I$7,$I$66:$DJ$120,ROWS($A$10:$A25)+2,FALSE)","v":127874},{"$f":"HLOOKUP(J$7,$I$66:$DJ$120,ROWS($A$10:$A25)+2,FALSE)","v":1562},{"$f":"HLOOKUP(K$7,$I$66:$DJ$120,ROWS($A$10:$A25)+2,FALSE)","v":371},{"$f":"HLOOKUP(L$7,$I$66:$DJ$120,ROWS($A$10:$A25)+2,FALSE)","v":3975},{"$f":"HLOOKUP(M$7,$I$66:$DJ$120,ROWS($A$10:$A25)+2,FALSE)","v":2016},{"$f":"HLOOKUP(N$7,$I$66:$DJ$120,ROWS($A$10:$A25)+2,FALSE)","v":7649},{"$f":"HLOOKUP(O$7,$I$66:$DJ$120,ROWS($A$10:$A25)+2,FALSE)","v":1930},{"$f":"HLOOKUP(P$7,$I$66:$DJ$120,ROWS($A$10:$A25)+2,FALSE)","v":1227},{"$f":"HLOOKUP(Q$7,$I$66:$DJ$120,ROWS($A$10:$A25)+2,FALSE)","v":79},{"$f":"HLOOKUP(R$7,$I$66:$DJ$120,ROWS($A$10:$A25)+2,FALSE)","v":0},{"$f":"HLOOKUP(S$7,$I$66:$DJ$120,ROWS($A$10:$A25)+2,FALSE)","v":8595},{"$f":"HLOOKUP(T$7,$I$66:$DJ$120,ROWS($A$10:$A25)+2,FALSE)","v":2543},{"$f":"HLOOKUP(U$7,$I$66:$DJ$120,ROWS($A$10:$A25)+2,FALSE)","v":1057},{"$f":"HLOOKUP(V$7,$I$66:$DJ$120,ROWS($A$10:$A25)+2,FALSE)","v":1368},{"$f":"HLOOKUP(W$7,$I$66:$DJ$120,ROWS($A$10:$A25)+2,FALSE)","v":23071},{"$f":"HLOOKUP(X$7,$I$66:$DJ$120,ROWS($A$10:$A25)+2,FALSE)","v":"N/A"},{"$f":"HLOOKUP(Y$7,$I$66:$DJ$120,ROWS($A$10:$A25)+2,FALSE)","v":916},{"$f":"HLOOKUP(Z$7,$I$66:$DJ$120,ROWS($A$10:$A25)+2,FALSE)","v":1321},{"$f":"HLOOKUP(AA$7,$I$66:$DJ$120,ROWS($A$10:$A25)+2,FALSE)","v":10177},{"$f":"HLOOKUP(AB$7,$I$66:$DJ$120,ROWS($A$10:$A25)+2,FALSE)","v":2241},{"$f":"HLOOKUP(AC$7,$I$66:$DJ$120,ROWS($A$10:$A25)+2,FALSE)","v":275},{"$f":"HLOOKUP(AD$7,$I$66:$DJ$120,ROWS($A$10:$A25)+2,FALSE)","v":480},{"$f":"HLOOKUP(AE$7,$I$66:$DJ$120,ROWS($A$10:$A25)+2,FALSE)","v":952},{"$f":"HLOOKUP(AF$7,$I$66:$DJ$120,ROWS($A$10:$A25)+2,FALSE)","v":7896},{"$f":"HLOOKUP(AG$7,$I$66:$DJ$120,ROWS($A$10:$A25)+2,FALSE)","v":1168},{"$f":"HLOOKUP(AH$7,$I$66:$DJ$120,ROWS($A$10:$A25)+2,FALSE)","v":469},{"$f":"HLOOKUP(AI$7,$I$66:$DJ$120,ROWS($A$10:$A25)+2,FALSE)","v":1824},{"$f":"HLOOKUP(AJ$7,$I$66:$DJ$120,ROWS($A$10:$A25)+2,FALSE)","v":34},{"$f":"HLOOKUP(AK$7,$I$66:$DJ$120,ROWS($A$10:$A25)+2,FALSE)","v":622},{"$f":"HLOOKUP(AL$7,$I$66:$DJ$120,ROWS($A$10:$A25)+2,FALSE)","v":511},{"$f":"HLOOKUP(AM$7,$I$66:$DJ$120,ROWS($A$10:$A25)+2,FALSE)","v":90},{"$f":"HLOOKUP(AN$7,$I$66:$DJ$120,ROWS($A$10:$A25)+2,FALSE)","v":651},{"$f":"HLOOKUP(AO$7,$I$66:$DJ$120,ROWS($A$10:$A25)+2,FALSE)","v":504},{"$f":"HLOOKUP(AP$7,$I$66:$DJ$120,ROWS($A$10:$A25)+2,FALSE)","v":2518},{"$f":"HLOOKUP(AQ$7,$I$66:$DJ$120,ROWS($A$10:$A25)+2,FALSE)","v":3038},{"$f":"HLOOKUP(AR$7,$I$66:$DJ$120,ROWS($A$10:$A25)+2,FALSE)","v":70},{"$f":"HLOOKUP(AS$7,$I$66:$DJ$120,ROWS($A$10:$A25)+2,FALSE)","v":11109},{"$f":"HLOOKUP(AT$7,$I$66:$DJ$120,ROWS($A$10:$A25)+2,FALSE)","v":844},{"$f":"HLOOKUP(AU$7,$I$66:$DJ$120,ROWS($A$10:$A25)+2,FALSE)","v":505},{"$f":"HLOOKUP(AV$7,$I$66:$DJ$120,ROWS($A$10:$A25)+2,FALSE)","v":3998},{"$f":"HLOOKUP(AW$7,$I$66:$DJ$120,ROWS($A$10:$A25)+2,FALSE)","v":49},{"$f":"HLOOKUP(AX$7,$I$66:$DJ$120,ROWS($A$10:$A25)+2,FALSE)","v":3306},{"$f":"HLOOKUP(AY$7,$I$66:$DJ$120,ROWS($A$10:$A25)+2,FALSE)","v":235},{"$f":"HLOOKUP(AZ$7,$I$66:$DJ$120,ROWS($A$10:$A25)+2,FALSE)","v":3879},{"$f":"HLOOKUP(BA$7,$I$66:$DJ$120,ROWS($A$10:$A25)+2,FALSE)","v":6326},{"$f":"HLOOKUP(BB$7,$I$66:$DJ$120,ROWS($A$10:$A25)+2,FALSE)","v":123},{"$f":"HLOOKUP(BC$7,$I$66:$DJ$120,ROWS($A$10:$A25)+2,FALSE)","v":530},{"$f":"HLOOKUP(BD$7,$I$66:$DJ$120,ROWS($A$10:$A25)+2,FALSE)","v":1486},{"$f":"HLOOKUP(BE$7,$I$66:$DJ$120,ROWS($A$10:$A25)+2,FALSE)","v":1028},{"$f":"HLOOKUP(BF$7,$I$66:$DJ$120,ROWS($A$10:$A25)+2,FALSE)","v":216},{"$f":"HLOOKUP(BG$7,$I$66:$DJ$120,ROWS($A$10:$A25)+2,FALSE)","v":2923},{"$f":"HLOOKUP(BH$7,$I$66:$DJ$120,ROWS($A$10:$A25)+2,FALSE)","v":117},{"$f":"HLOOKUP(BI$7,$I$66:$DJ$120,ROWS($A$10:$A25)+2,FALSE)","v":132},{"$f":"HLOOKUP(BJ$7+0.5,$I$66:$DJ$120,ROWS($A$10:$A25)+2,FALSE)","v":8918},{"$f":"HLOOKUP(BK$7+0.5,$I$66:$DJ$120,ROWS($A$10:$A25)+2,FALSE)","v":1293},{"$f":"HLOOKUP(BL$7+0.5,$I$66:$DJ$120,ROWS($A$10:$A25)+2,FALSE)","v":324},{"$f":"HLOOKUP(BM$7+0.5,$I$66:$DJ$120,ROWS($A$10:$A25)+2,FALSE)","v":1427},{"$f":"HLOOKUP(BN$7+0.5,$I$66:$DJ$120,ROWS($A$10:$A25)+2,FALSE)","v":1321},{"$f":"HLOOKUP(BO$7+0.5,$I$66:$DJ$120,ROWS($A$10:$A25)+2,FALSE)","v":2229},{"$f":"HLOOKUP(BP$7+0.5,$I$66:$DJ$120,ROWS($A$10:$A25)+2,FALSE)","v":759},{"$f":"HLOOKUP(BQ$7+0.5,$I$66:$DJ$120,ROWS($A$10:$A25)+2,FALSE)","v":698},{"$f":"HLOOKUP(BR$7+0.5,$I$66:$DJ$120,ROWS($A$10:$A25)+2,FALSE)","v":134},{"$f":"HLOOKUP(BS$7+0.5,$I$66:$DJ$120,ROWS($A$10:$A25)+2,FALSE)","v":190},{"$f":"HLOOKUP(BT$7+0.5,$I$66:$DJ$120,ROWS($A$10:$A25)+2,FALSE)","v":3053},{"$f":"HLOOKUP(BU$7+0.5,$I$66:$DJ$120,ROWS($A$10:$A25)+2,FALSE)","v":1176},{"$f":"HLOOKUP(BV$7+0.5,$I$66:$DJ$120,ROWS($A$10:$A25)+2,FALSE)","v":717},{"$f":"HLOOKUP(BW$7+0.5,$I$66:$DJ$120,ROWS($A$10:$A25)+2,FALSE)","v":1278},{"$f":"HLOOKUP(BX$7+0.5,$I$66:$DJ$120,ROWS($A$10:$A25)+2,FALSE)","v":4221},{"$f":"HLOOKUP(BY$7+0.5,$I$66:$DJ$120,ROWS($A$10:$A25)+2,FALSE)","v":"N/A"},{"$f":"HLOOKUP(BZ$7+0.5,$I$66:$DJ$120,ROWS($A$10:$A25)+2,FALSE)","v":468},{"$f":"HLOOKUP(CA$7+0.5,$I$66:$DJ$120,ROWS($A$10:$A25)+2,FALSE)","v":946},{"$f":"HLOOKUP(CB$7+0.5,$I$66:$DJ$120,ROWS($A$10:$A25)+2,FALSE)","v":2220},{"$f":"HLOOKUP(CC$7+0.5,$I$66:$DJ$120,ROWS($A$10:$A25)+2,FALSE)","v":1537},{"$f":"HLOOKUP(CD$7+0.5,$I$66:$DJ$120,ROWS($A$10:$A25)+2,FALSE)","v":388},{"$f":"HLOOKUP(CE$7+0.5,$I$66:$DJ$120,ROWS($A$10:$A25)+2,FALSE)","v":256},{"$f":"HLOOKUP(CF$7+0.5,$I$66:$DJ$120,ROWS($A$10:$A25)+2,FALSE)","v":703},{"$f":"HLOOKUP(CG$7+0.5,$I$66:$DJ$120,ROWS($A$10:$A25)+2,FALSE)","v":1777},{"$f":"HLOOKUP(CH$7+0.5,$I$66:$DJ$120,ROWS($A$10:$A25)+2,FALSE)","v":568},{"$f":"HLOOKUP(CI$7+0.5,$I$66:$DJ$120,ROWS($A$10:$A25)+2,FALSE)","v":366},{"$f":"HLOOKUP(CJ$7+0.5,$I$66:$DJ$120,ROWS($A$10:$A25)+2,FALSE)","v":1033},{"$f":"HLOOKUP(CK$7+0.5,$I$66:$DJ$120,ROWS($A$10:$A25)+2,FALSE)","v":62},{"$f":"HLOOKUP(CL$7+0.5,$I$66:$DJ$120,ROWS($A$10:$A25)+2,FALSE)","v":491},{"$f":"HLOOKUP(CM$7+0.5,$I$66:$DJ$120,ROWS($A$10:$A25)+2,FALSE)","v":338},{"$f":"HLOOKUP(CN$7+0.5,$I$66:$DJ$120,ROWS($A$10:$A25)+2,FALSE)","v":152},{"$f":"HLOOKUP(CO$7+0.5,$I$66:$DJ$120,ROWS($A$10:$A25)+2,FALSE)","v":348},{"$f":"HLOOKUP(CP$7+0.5,$I$66:$DJ$120,ROWS($A$10:$A25)+2,FALSE)","v":410},{"$f":"HLOOKUP(CQ$7+0.5,$I$66:$DJ$120,ROWS($A$10:$A25)+2,FALSE)","v":816},{"$f":"HLOOKUP(CR$7+0.5,$I$66:$DJ$120,ROWS($A$10:$A25)+2,FALSE)","v":1840},{"$f":"HLOOKUP(CS$7+0.5,$I$66:$DJ$120,ROWS($A$10:$A25)+2,FALSE)","v":94},{"$f":"HLOOKUP(CT$7+0.5,$I$66:$DJ$120,ROWS($A$10:$A25)+2,FALSE)","v":2141},{"$f":"HLOOKUP(CU$7+0.5,$I$66:$DJ$120,ROWS($A$10:$A25)+2,FALSE)","v":522},{"$f":"HLOOKUP(CV$7+0.5,$I$66:$DJ$120,ROWS($A$10:$A25)+2,FALSE)","v":617},{"$f":"HLOOKUP(CW$7+0.5,$I$66:$DJ$120,ROWS($A$10:$A25)+2,FALSE)","v":1871},{"$f":"HLOOKUP(CX$7+0.5,$I$66:$DJ$120,ROWS($A$10:$A25)+2,FALSE)","v":84},{"$f":"HLOOKUP(CY$7+0.5,$I$66:$DJ$120,ROWS($A$10:$A25)+2,FALSE)","v":1917},{"$f":"HLOOKUP(CZ$7+0.5,$I$66:$DJ$120,ROWS($A$10:$A25)+2,FALSE)","v":231},{"$f":"HLOOKUP(DA$7+0.5,$I$66:$DJ$120,ROWS($A$10:$A25)+2,FALSE)","v":1292},{"$f":"HLOOKUP(DB$7+0.5,$I$66:$DJ$120,ROWS($A$10:$A25)+2,FALSE)","v":2074},{"$f":"HLOOKUP(DC$7+0.5,$I$66:$DJ$120,ROWS($A$10:$A25)+2,FALSE)","v":127},{"$f":"HLOOKUP(DD$7+0.5,$I$66:$DJ$120,ROWS($A$10:$A25)+2,FALSE)","v":349},{"$f":"HLOOKUP(DE$7+0.5,$I$66:$DJ$120,ROWS($A$10:$A25)+2,FALSE)","v":853},{"$f":"HLOOKUP(DF$7+0.5,$I$66:$DJ$120,ROWS($A$10:$A25)+2,FALSE)","v":744},{"$f":"HLOOKUP(DG$7+0.5,$I$66:$DJ$120,ROWS($A$10:$A25)+2,FALSE)","v":194},{"$f":"HLOOKUP(DH$7+0.5,$I$66:$DJ$120,ROWS($A$10:$A25)+2,FALSE)","v":1307},{"$f":"HLOOKUP(DI$7+0.5,$I$66:$DJ$120,ROWS($A$10:$A25)+2,FALSE)","v":170},{"$f":"HLOOKUP(DJ$7+0.5,$I$66:$DJ$120,ROWS($A$10:$A25)+2,FALSE)","v":220}]
[null,"Iowa",3027718,2514,2573313,16682,370554,15638,{"$f":"HLOOKUP(I$7,$I$66:$DJ$120,ROWS($A$10:$A26)+2,FALSE)","v":70405},{"$f":"HLOOKUP(J$7,$I$66:$DJ$120,ROWS($A$10:$A26)+2,FALSE)","v":207},{"$f":"HLOOKUP(K$7,$I$66:$DJ$120,ROWS($A$10:$A26)+2,FALSE)","v":967},{"$f":"HLOOKUP(L$7,$I$66:$DJ$120,ROWS($A$10:$A26)+2,FALSE)","v":1411},{"$f":"HLOOKUP(M$7,$I$66:$DJ$120,ROWS($A$10:$A26)+2,FALSE)","v":433},{"$f":"HLOOKUP(N$7,$I$66:$DJ$120,ROWS($A$10:$A26)+2,FALSE)","v":3297},{"$f":"HLOOKUP(O$7,$I$66:$DJ$120,ROWS($A$10:$A26)+2,FALSE)","v":2891},{"$f":"HLOOKUP(P$7,$I$66:$DJ$120,ROWS($A$10:$A26)+2,FALSE)","v":424},{"$f":"HLOOKUP(Q$7,$I$66:$DJ$120,ROWS($A$10:$A26)+2,FALSE)","v":0},{"$f":"HLOOKUP(R$7,$I$66:$DJ$120,ROWS($A$10:$A26)+2,FALSE)","v":0},{"$f":"HLOOKUP(S$7,$I$66:$DJ$120,ROWS($A$10:$A26)+2,FALSE)","v":707},{"$f":"HLOOKUP(T$7,$I$66:$DJ$120,ROWS($A$10:$A26)+2,FALSE)","v":1938},{"$f":"HLOOKUP(U$7,$I$66:$DJ$120,ROWS($A$10:$A26)+2,FALSE)","v":299},{"$f":"HLOOKUP(V$7,$I$66:$DJ$120,ROWS($A$10:$A26)+2,FALSE)","v":161},{"$f":"HLOOKUP(W$7,$I$66:$DJ$120,ROWS($A$10:$A26)+2,FALSE)","v":13725},{"$f":"HLOOKUP(X$7,$I$66:$DJ$120,ROWS($A$10:$A26)+2,FALSE)","v":349},{"$f":"HLOOKUP(Y$7,$I$66:$DJ$120,ROWS($A$10:$A26)+2,FALSE)","v":"N/A"},{"$f":"HLOOKUP(Z$7,$I$66:$DJ$120,ROWS($A$10:$A26)+2,FALSE)","v":1776},{"$f":"HLOOKUP(AA$7,$I$66:$DJ$120,ROWS($A$10:$A26)+2,FALSE)","v":387},{"$f":"HLOOKUP(AB$7,$I$66:$DJ$120,ROWS($A$10:$A26)+2,FALSE)","v":228},{"$f":"HLOOKUP(AC$7,$I$66:$DJ$120,ROWS($A$10:$A26)+2,FALSE)","v":26},{"$f":"HLOOKUP(AD$7,$I$66:$DJ$120,ROWS($A$10:$A26)+2,FALSE)","v":487},{"$f":"HLOOKUP(AE$7,$I$66:$DJ$120,ROWS($A$10:$A26)+2,FALSE)","v":466},{"$f":"HLOOKUP(AF$7,$I$66:$DJ$120,ROWS($A$10:$A26)+2,FALSE)","v":1687},{"$f":"HLOOKUP(AG$7,$I$66:$DJ$120,ROWS($A$10:$A26)+2,FALSE)","v":5634},{"$f":"HLOOKUP(AH$7,$I$66:$DJ$120,ROWS($A$10:$A26)+2,FALSE)","v":408},{"$f":"HLOOKUP(AI$7,$I$66:$DJ$120,ROWS($A$10:$A26)+2,FALSE)","v":3649},{"$f":"HLOOKUP(AJ$7,$I$66:$DJ$120,ROWS($A$10:$A26)+2,FALSE)","v":370},{"$f":"HLOOKUP(AK$7,$I$66:$DJ$120,ROWS($A$10:$A26)+2,FALSE)","v":6490},{"$f":"HLOOKUP(AL$7,$I$66:$DJ$120,ROWS($A$10:$A26)+2,FALSE)","v":2009},{"$f":"HLOOKUP(AM$7,$I$66:$DJ$120,ROWS($A$10:$A26)+2,FALSE)","v":0},{"$f":"HLOOKUP(AN$7,$I$66:$DJ$120,ROWS($A$10:$A26)+2,FALSE)","v":185},{"$f":"HLOOKUP(AO$7,$I$66:$DJ$120,ROWS($A$10:$A26)+2,FALSE)","v":421},{"$f":"HLOOKUP(AP$7,$I$66:$DJ$120,ROWS($A$10:$A26)+2,FALSE)","v":2361},{"$f":"HLOOKUP(AQ$7,$I$66:$DJ$120,ROWS($A$10:$A26)+2,FALSE)","v":1760},{"$f":"HLOOKUP(AR$7,$I$66:$DJ$120,ROWS($A$10:$A26)+2,FALSE)","v":604},{"$f":"HLOOKUP(AS$7,$I$66:$DJ$120,ROWS($A$10:$A26)+2,FALSE)","v":993},{"$f":"HLOOKUP(AT$7,$I$66:$DJ$120,ROWS($A$10:$A26)+2,FALSE)","v":532},{"$f":"HLOOKUP(AU$7,$I$66:$DJ$120,ROWS($A$10:$A26)+2,FALSE)","v":811},{"$f":"HLOOKUP(AV$7,$I$66:$DJ$120,ROWS($A$10:$A26)+2,FALSE)","v":388},{"$f":"HLOOKUP(AW$7,$I$66:$DJ$120,ROWS($A$10:$A26)+2,FALSE)","v":65},{"$f":"HLOOKUP(AX$7,$I$66:$DJ$120,ROWS($A$10:$A26)+2,FALSE)","v":172},{"$f":"HLOOKUP(AY$7,$I$66:$DJ$120,ROWS($A$10:$A26)+2,FALSE)","v":2842},{"$f":"HLOOKUP(AZ$7,$I$66:$DJ$120,ROWS($A$10:$A26)+2,FALSE)","v":623},{"$f":"HLOOKUP(BA$7,$I$66:$DJ$120,ROWS($A$10:$A26)+2,FALSE)","v":2334},{"$f":"HLOOKUP(BB$7,$I$66:$DJ$120,ROWS($A$10:$A26)+2,FALSE)","v":1482},{"$f":"HLOOKUP(BC$7,$I$66:$DJ$120,ROWS($A$10:$A26)+2,FALSE)","v":38},{"$f":"HLOOKUP(BD$7,$I$66:$DJ$120,ROWS($A$10:$A26)+2,FALSE)","v":720},{"$f":"HLOOKUP(BE$7,$I$66:$DJ$120,ROWS($A$10:$A26)+2,FALSE)","v":856},{"$f":"HLOOKUP(BF$7,$I$66:$DJ$120,ROWS($A$10:$A26)+2,FALSE)","v":115},{"$f":"HLOOKUP(BG$7,$I$66:$DJ$120,ROWS($A$10:$A26)+2,FALSE)","v":2537},{"$f":"HLOOKUP(BH$7,$I$66:$DJ$120,ROWS($A$10:$A26)+2,FALSE)","v":140},{"$f":"HLOOKUP(BI$7,$I$66:$DJ$120,ROWS($A$10:$A26)+2,FALSE)","v":57},{"$f":"HLOOKUP(BJ$7+0.5,$I$66:$DJ$120,ROWS($A$10:$A26)+2,FALSE)","v":5539},{"$f":"HLOOKUP(BK$7+0.5,$I$66:$DJ$120,ROWS($A$10:$A26)+2,FALSE)","v":259},{"$f":"HLOOKUP(BL$7+0.5,$I$66:$DJ$120,ROWS($A$10:$A26)+2,FALSE)","v":651},{"$f":"HLOOKUP(BM$7+0.5,$I$66:$DJ$120,ROWS($A$10:$A26)+2,FALSE)","v":726},{"$f":"HLOOKUP(BN$7+0.5,$I$66:$DJ$120,ROWS($A$10:$A26)+2,FALSE)","v":317},{"$f":"HLOOKUP(BO$7+0.5,$I$66:$DJ$120,ROWS($A$10:$A26)+2,FALSE)","v":1022},{"$f":"HLOOKUP(BP$7+0.5,$I$66:$DJ$120,ROWS($A$10:$A26)+2,FALSE)","v":1129},{"$f":"HLOOKUP(BQ$7+0.5,$I$66:$DJ$120,ROWS($A$10:$A26)+2,FALSE)","v":628},{"$f":"HLOOKUP(BR$7+0.5,$I$66:$DJ$120,ROWS($A$10:$A26)+2,FALSE)","v":155},{"$f":"HLOOKUP(BS$7+0.5,$I$66:$DJ$120,ROWS($A$10:$A26)+2,FALSE)","v":155},{"$f":"HLOOKUP(BT$7+0.5,$I$66:$DJ$120,ROWS($A$10:$A26)+2,FALSE)","v":455},{"$f":"HLOOKUP(BU$7+0.5,$I$66:$DJ$120,ROWS($A$10:$A26)+2,FALSE)","v":1485},{"$f":"HLOOKUP(BV$7+0.5,$I$66:$DJ$120,ROWS($A$10:$A26)+2,FALSE)","v":454},{"$f":"HLOOKUP(BW$7+0.5,$I$66:$DJ$120,ROWS($A$10:$A26)+2,FALSE)","v":175},{"$f":"HLOOKUP(BX$7+0.5,$I$66:$DJ$120,ROWS($A$10:$A26)+2,FALSE)","v":2238},{"$f":"HLOOKUP(BY$7+0.5,$I$66:$DJ$120,ROWS($A$10:$A26)+2,FALSE)","v":204},{"$f":"HLOOKUP(BZ$7+0.5,$I$66:$DJ$120,ROWS($A$10:$A26)+2,FALSE)","v":"N/A"},{"$f":"HLOOKUP(CA$7+0.5,$I$66:$DJ$120,ROWS($A$10:$A26)+2,FALSE)","v":819},{"$f":"HLOOKUP(CB$7+0.5,$I$66:$DJ$120,ROWS($A$10:$A26)+2,FALSE)","v":303},{"$f":"HLOOKUP(CC$7+0.5,$I$66:$DJ$120,ROWS($A$10:$A26)+2,FALSE)","v":223},{"$f":"HLOOKUP(CD$7+0.5,$I$66:$DJ$120,ROWS($A$10:$A26)+2,FALSE)","v":43},{"$f":"HLOOKUP(CE$7+0.5,$I$66:$DJ$120,ROWS($A$10:$A26)+2,FALSE)","v":319},{"$f":"HLOOKUP(CF$7+0.5,$I$66:$DJ$120,ROWS($A$10:$A26)+2,FALSE)","v":632},{"$f":"HLOOKUP(CG$7+0.5,$I$66:$DJ$120,ROWS($A$10:$A26)+2,FALSE)","v":954},{"$f":"HLOOKUP(CH$7+0.5,$I$66:$DJ$120,ROWS($A$10:$A26)+2,FALSE)","v":1117},{"$f":"HLOOKUP(CI$7+0.5,$I$66:$DJ$120,ROWS($A$10:$A26)+2,FALSE)","v":306},{"$f":"HLOOKUP(CJ$7+0.5,$I$66:$DJ$120,ROWS($A$10:$A26)+2,FALSE)","v":1188},{"$f":"HLOOKUP(CK$7+0.5,$I$66:$DJ$120,ROWS($A$10:$A26)+2,FALSE)","v":338},{"$f":"HLOOKUP(CL$7+0.5,$I$66:$DJ$120,ROWS($A$10:$A26)+2,FALSE)","v":1780},{"$f":"HLOOKUP(CM$7+0.5,$I$66:$DJ$120,ROWS($A$10:$A26)+2,FALSE)","v":1634},{"$f":"HLOOKUP(CN$7+0.5,$I$66:$DJ$120,ROWS($A$10:$A26)+2,FALSE)","v":155},{"$f":"HLOOKUP(CO$7+0.5,$I$66:$DJ$120,ROWS($A$10:$A26)+2,FALSE)","v":209},{"$f":"HLOOKUP(CP$7+0.5,$I$66:$DJ$120,ROWS($A$10:$A26)+2,FALSE)","v":347},{"$f":"HLOOKUP(CQ$7+0.5,$I$66:$DJ$120,ROWS($A$10:$A26)+2,FALSE)","v":1104},{"$f":"HLOOKUP(CR$7+0.5,$I$66:$DJ$120,ROWS($A$10:$A26)+2,FALSE)","v":1268},{"$f":"HLOOKUP(CS$7+0.5,$I$66:$DJ$120,ROWS($A$10:$A26)+2,FALSE)","v":377},{"$f":"HLOOKUP(CT$7+0.5,$I$66:$DJ$120,ROWS($A$10:$A26)+2,FALSE)","v":482},{"$f":"HLOOKUP(CU$7+0.5,$I$66:$DJ$120,ROWS($A$10:$A26)+2,FALSE)","v":417},{"$f":"HLOOKUP(CV$7+0.5,$I$66:$DJ$120,ROWS($A$10:$A26)+2,FALSE)","v":476},{"$f":"HLOOKUP(CW$7+0.5,$I$66:$DJ$120,ROWS($A$10:$A26)+2,FALSE)","v":292},{"$f":"HLOOKUP(CX$7+0.5,$I$66:$DJ$120,ROWS($A$10:$A26)+2,FALSE)","v":108},{"$f":"HLOOKUP(CY$7+0.5,$I$66:$DJ$120,ROWS($A$10:$A26)+2,FALSE)","v":200},{"$f":"HLOOKUP(CZ$7+0.5,$I$66:$DJ$120,ROWS($A$10:$A26)+2,FALSE)","v":965},{"$f":"HLOOKUP(DA$7+0.5,$I$66:$DJ$120,ROWS($A$10:$A26)+2,FALSE)","v":529},{"$f":"HLOOKUP(DB$7+0.5,$I$66:$DJ$120,ROWS($A$10:$A26)+2,FALSE)","v":1235},{"$f":"HLOOKUP(DC$7+0.5,$I$66:$DJ$120,ROWS($A$10:$A26)+2,FALSE)","v":940},{"$f":"HLOOKUP(DD$7+0.5,$I$66:$DJ$120,ROWS($A$10:$A26)+2,FALSE)","v":71},{"$f":"HLOOKUP(DE$7+0.5,$I$66:$DJ$120,ROWS($A$10:$A26)+2,FALSE)","v":854},{"$f":"HLOOKUP(DF$7+0.5,$I$66:$DJ$120,ROWS($A$10:$A26)+2,FALSE)","v":577},{"$f":"HLOOKUP(DG$7+0.5,$I$66:$DJ$120,ROWS($A$10:$A26)+2,FALSE)","v":181},{"$f":"HLOOKUP(DH$7+0.5,$I$66:$DJ$120,ROWS($A$10:$A26)+2,FALSE)","v":850},{"$f":"HLOOKUP(DI$7+0.5,$I$66:$DJ$120,ROWS($A$10:$A26)+2,FALSE)","v":117},{"$f":"HLOOKUP(DJ$7+0.5,$I$66:$DJ$120,ROWS($A$10:$A26)+2,FALSE)","v":115}]
[null,"Kansas",2833584,2851,2372033,15236,362782,14847,{"$f":"HLOOKUP(I$7,$I$66:$DJ$120,ROWS($A$10:$A27)+2,FALSE)","v":83640},{"$f":"HLOOKUP(J$7,$I$66:$DJ$120,ROWS($A$10:$A27)+2,FALSE)","v":434},{"$f":"HLOOKUP(K$7,$I$66:$DJ$120,ROWS($A$10:$A27)+2,FALSE)","v":108},{"$f":"HLOOKUP(L$7,$I$66:$DJ$120,ROWS($A$10:$A27)+2,FALSE)","v":2028},{"$f":"HLOOKUP(M$7,$I$66:$DJ$120,ROWS($A$10:$A27)+2,FALSE)","v":998},{"$f":"HLOOKUP(N$7,$I$66:$DJ$120,ROWS($A$10:$A27)+2,FALSE)","v":4743},{"$f":"HLOOKUP(O$7,$I$66:$DJ$120,ROWS($A$10:$A27)+2,FALSE)","v":5030},{"$f":"HLOOKUP(P$7,$I$66:$DJ$120,ROWS($A$10:$A27)+2,FALSE)","v":412},{"$f":"HLOOKUP(Q$7,$I$66:$DJ$120,ROWS($A$10:$A27)+2,FALSE)","v":74},{"$f":"HLOOKUP(R$7,$I$66:$DJ$120,ROWS($A$10:$A27)+2,FALSE)","v":128},{"$f":"HLOOKUP(S$7,$I$66:$DJ$120,ROWS($A$10:$A27)+2,FALSE)","v":1581},{"$f":"HLOOKUP(T$7,$I$66:$DJ$120,ROWS($A$10:$A27)+2,FALSE)","v":1146},{"$f":"HLOOKUP(U$7,$I$66:$DJ$120,ROWS($A$10:$A27)+2,FALSE)","v":287},{"$f":"HLOOKUP(V$7,$I$66:$DJ$120,ROWS($A$10:$A27)+2,FALSE)","v":264},{"$f":"HLOOKUP(W$7,$I$66:$DJ$120,ROWS($A$10:$A27)+2,FALSE)","v":2760},{"$f":"HLOOKUP(X$7,$I$66:$DJ$120,ROWS($A$10:$A27)+2,FALSE)","v":863},{"$f":"HLOOKUP(Y$7,$I$66:$DJ$120,ROWS($A$10:$A27)+2,FALSE)","v":1715},{"$f":"HLOOKUP(Z$7,$I$66:$DJ$120,ROWS($A$10:$A27)+2,FALSE)","v":"N/A"},{"$f":"HLOOKUP(AA$7,$I$66:$DJ$120,ROWS($A$10:$A27)+2,FALSE)","v":1167},{"$f":"HLOOKUP(AB$7,$I$66:$DJ$120,ROWS($A$10:$A27)+2,FALSE)","v":519},{"$f":"HLOOKUP(AC$7,$I$66:$DJ$120,ROWS($A$10:$A27)+2,FALSE)","v":481},{"$f":"HLOOKUP(AD$7,$I$66:$DJ$120,ROWS($A$10:$A27)+2,FALSE)","v":3180},{"$f":"HLOOKUP(AE$7,$I$66:$DJ$120,ROWS($A$10:$A27)+2,FALSE)","v":28},{"$f":"HLOOKUP(AF$7,$I$66:$DJ$120,ROWS($A$10:$A27)+2,FALSE)","v":1947},{"$f":"HLOOKUP(AG$7,$I$66:$DJ$120,ROWS($A$10:$A27)+2,FALSE)","v":679},{"$f":"HLOOKUP(AH$7,$I$66:$DJ$120,ROWS($A$10:$A27)+2,FALSE)","v":1517},{"$f":"HLOOKUP(AI$7,$I$66:$DJ$120,ROWS($A$10:$A27)+2,FALSE)","v":22033},{"$f":"HLOOKUP(AJ$7,$I$66:$DJ$120,ROWS($A$10:$A27)+2,FALSE)","v":270},{"$f":"HLOOKUP(AK$7,$I$66:$DJ$120,ROWS($A$10:$A27)+2,FALSE)","v":1648},{"$f":"HLOOKUP(AL$7,$I$66:$DJ$120,ROWS($A$10:$A27)+2,FALSE)","v":657},{"$f":"HLOOKUP(AM$7,$I$66:$DJ$120,ROWS($A$10:$A27)+2,FALSE)","v":27},{"$f":"HLOOKUP(AN$7,$I$66:$DJ$120,ROWS($A$10:$A27)+2,FALSE)","v":1189},{"$f":"HLOOKUP(AO$7,$I$66:$DJ$120,ROWS($A$10:$A27)+2,FALSE)","v":769},{"$f":"HLOOKUP(AP$7,$I$66:$DJ$120,ROWS($A$10:$A27)+2,FALSE)","v":780},{"$f":"HLOOKUP(AQ$7,$I$66:$DJ$120,ROWS($A$10:$A27)+2,FALSE)","v":1223},{"$f":"HLOOKUP(AR$7,$I$66:$DJ$120,ROWS($A$10:$A27)+2,FALSE)","v":379},{"$f":"HLOOKUP(AS$7,$I$66:$DJ$120,ROWS($A$10:$A27)+2,FALSE)","v":1616},{"$f":"HLOOKUP(AT$7,$I$66:$DJ$120,ROWS($A$10:$A27)+2,FALSE)","v":5022},{"$f":"HLOOKUP(AU$7,$I$66:$DJ$120,ROWS($A$10:$A27)+2,FALSE)","v":285},{"$f":"HLOOKUP(AV$7,$I$66:$DJ$120,ROWS($A$10:$A27)+2,FALSE)","v":1494},{"$f":"HLOOKUP(AW$7,$I$66:$DJ$120,ROWS($A$10:$A27)+2,FALSE)","v":180},{"$f":"HLOOKUP(AX$7,$I$66:$DJ$120,ROWS($A$10:$A27)+2,FALSE)","v":1102},{"$f":"HLOOKUP(AY$7,$I$66:$DJ$120,ROWS($A$10:$A27)+2,FALSE)","v":104},{"$f":"HLOOKUP(AZ$7,$I$66:$DJ$120,ROWS($A$10:$A27)+2,FALSE)","v":1066},{"$f":"HLOOKUP(BA$7,$I$66:$DJ$120,ROWS($A$10:$A27)+2,FALSE)","v":6575},{"$f":"HLOOKUP(BB$7,$I$66:$DJ$120,ROWS($A$10:$A27)+2,FALSE)","v":196},{"$f":"HLOOKUP(BC$7,$I$66:$DJ$120,ROWS($A$10:$A27)+2,FALSE)","v":0},{"$f":"HLOOKUP(BD$7,$I$66:$DJ$120,ROWS($A$10:$A27)+2,FALSE)","v":1986},{"$f":"HLOOKUP(BE$7,$I$66:$DJ$120,ROWS($A$10:$A27)+2,FALSE)","v":772},{"$f":"HLOOKUP(BF$7,$I$66:$DJ$120,ROWS($A$10:$A27)+2,FALSE)","v":0},{"$f":"HLOOKUP(BG$7,$I$66:$DJ$120,ROWS($A$10:$A27)+2,FALSE)","v":893},{"$f":"HLOOKUP(BH$7,$I$66:$DJ$120,ROWS($A$10:$A27)+2,FALSE)","v":1285},{"$f":"HLOOKUP(BI$7,$I$66:$DJ$120,ROWS($A$10:$A27)+2,FALSE)","v":775},{"$f":"HLOOKUP(BJ$7+0.5,$I$66:$DJ$120,ROWS($A$10:$A27)+2,FALSE)","v":7144},{"$f":"HLOOKUP(BK$7+0.5,$I$66:$DJ$120,ROWS($A$10:$A27)+2,FALSE)","v":310},{"$f":"HLOOKUP(BL$7+0.5,$I$66:$DJ$120,ROWS($A$10:$A27)+2,FALSE)","v":84},{"$f":"HLOOKUP(BM$7+0.5,$I$66:$DJ$120,ROWS($A$10:$A27)+2,FALSE)","v":858},{"$f":"HLOOKUP(BN$7+0.5,$I$66:$DJ$120,ROWS($A$10:$A27)+2,FALSE)","v":697},{"$f":"HLOOKUP(BO$7+0.5,$I$66:$DJ$120,ROWS($A$10:$A27)+2,FALSE)","v":2121},{"$f":"HLOOKUP(BP$7+0.5,$I$66:$DJ$120,ROWS($A$10:$A27)+2,FALSE)","v":1611},{"$f":"HLOOKUP(BQ$7+0.5,$I$66:$DJ$120,ROWS($A$10:$A27)+2,FALSE)","v":519},{"$f":"HLOOKUP(BR$7+0.5,$I$66:$DJ$120,ROWS($A$10:$A27)+2,FALSE)","v":85},{"$f":"HLOOKUP(BS$7+0.5,$I$66:$DJ$120,ROWS($A$10:$A27)+2,FALSE)","v":141},{"$f":"HLOOKUP(BT$7+0.5,$I$66:$DJ$120,ROWS($A$10:$A27)+2,FALSE)","v":790},{"$f":"HLOOKUP(BU$7+0.5,$I$66:$DJ$120,ROWS($A$10:$A27)+2,FALSE)","v":666},{"$f":"HLOOKUP(BV$7+0.5,$I$66:$DJ$120,ROWS($A$10:$A27)+2,FALSE)","v":282},{"$f":"HLOOKUP(BW$7+0.5,$I$66:$DJ$120,ROWS($A$10:$A27)+2,FALSE)","v":358},{"$f":"HLOOKUP(BX$7+0.5,$I$66:$DJ$120,ROWS($A$10:$A27)+2,FALSE)","v":1019},{"$f":"HLOOKUP(BY$7+0.5,$I$66:$DJ$120,ROWS($A$10:$A27)+2,FALSE)","v":458},{"$f":"HLOOKUP(BZ$7+0.5,$I$66:$DJ$120,ROWS($A$10:$A27)+2,FALSE)","v":888},{"$f":"HLOOKUP(CA$7+0.5,$I$66:$DJ$120,ROWS($A$10:$A27)+2,FALSE)","v":"N/A"},{"$f":"HLOOKUP(CB$7+0.5,$I$66:$DJ$120,ROWS($A$10:$A27)+2,FALSE)","v":770},{"$f":"HLOOKUP(CC$7+0.5,$I$66:$DJ$120,ROWS($A$10:$A27)+2,FALSE)","v":338},{"$f":"HLOOKUP(CD$7+0.5,$I$66:$DJ$120,ROWS($A$10:$A27)+2,FALSE)","v":527},{"$f":"HLOOKUP(CE$7+0.5,$I$66:$DJ$120,ROWS($A$10:$A27)+2,FALSE)","v":2454},{"$f":"HLOOKUP(CF$7+0.5,$I$66:$DJ$120,ROWS($A$10:$A27)+2,FALSE)","v":49},{"$f":"HLOOKUP(CG$7+0.5,$I$66:$DJ$120,ROWS($A$10:$A27)+2,FALSE)","v":1003},{"$f":"HLOOKUP(CH$7+0.5,$I$66:$DJ$120,ROWS($A$10:$A27)+2,FALSE)","v":418},{"$f":"HLOOKUP(CI$7+0.5,$I$66:$DJ$120,ROWS($A$10:$A27)+2,FALSE)","v":1370},{"$f":"HLOOKUP(CJ$7+0.5,$I$66:$DJ$120,ROWS($A$10:$A27)+2,FALSE)","v":4568},{"$f":"HLOOKUP(CK$7+0.5,$I$66:$DJ$120,ROWS($A$10:$A27)+2,FALSE)","v":255},{"$f":"HLOOKUP(CL$7+0.5,$I$66:$DJ$120,ROWS($A$10:$A27)+2,FALSE)","v":701},{"$f":"HLOOKUP(CM$7+0.5,$I$66:$DJ$120,ROWS($A$10:$A27)+2,FALSE)","v":359},{"$f":"HLOOKUP(CN$7+0.5,$I$66:$DJ$120,ROWS($A$10:$A27)+2,FALSE)","v":37},{"$f":"HLOOKUP(CO$7+0.5,$I$66:$DJ$120,ROWS($A$10:$A27)+2,FALSE)","v":724},{"$f":"HLOOKUP(CP$7+0.5,$I$66:$DJ$120,ROWS($A$10:$A27)+2,FALSE)","v":810},{"$f":"HLOOKUP(CQ$7+0.5,$I$66:$DJ$120,ROWS($A$10:$A27)+2,FALSE)","v":411},{"$f":"HLOOKUP(CR$7+0.5,$I$66:$DJ$120,ROWS($A$10:$A27)+2,FALSE)","v":840},{"$f":"HLOOKUP(CS$7+0.5,$I$66:$DJ$120,ROWS($A$10:$A27)+2,FALSE)","v":558},{"$f":"HLOOKUP(CT$7+0.5,$I$66:$DJ$120,ROWS($A$10:$A27)+2,FALSE)","v":901},{"$f":"HLOOKUP(CU$7+0.5,$I$66:$DJ$120,ROWS($A$10:$A27)+2,FALSE)","v":1204},{"$f":"HLOOKUP(CV$7+0.5,$I$66:$DJ$120,ROWS($A$10:$A27)+2,FALSE)","v":284},{"$f":"HLOOKUP(CW$7+0.5,$I$66:$DJ$120,ROWS($A$10:$A27)+2,FALSE)","v":1815},{"$f":"HLOOKUP(CX$7+0.5,$I$66:$DJ$120,ROWS($A$10:$A27)+2,FALSE)","v":261},{"$f":"HLOOKUP(CY$7+0.5,$I$66:$DJ$120,ROWS($A$10:$A27)+2,FALSE)","v":670},{"$f":"HLOOKUP(CZ$7+0.5,$I$66:$DJ$120,ROWS($A$10:$A27)+2,FALSE)","v":147},{"$f":"HLOOKUP(DA$7+0.5,$I$66:$DJ$120,ROWS($A$10:$A27)+2,FALSE)","v":496},{"$f":"HLOOKUP(DB$7+0.5,$I$66:$DJ$120,ROWS($A$10:$A27)+2,FALSE)","v":1436},{"$f":"HLOOKUP(DC$7+0.5,$I$66:$DJ$120,ROWS($A$10:$A27)+2,FALSE)","v":265},{"$f":"HLOOKUP(DD$7+0.5,$I$66:$DJ$120,ROWS($A$10:$A27)+2,FALSE)","v":168},{"$f":"HLOOKUP(DE$7+0.5,$I$66:$DJ$120,ROWS($A$10:$A27)+2,FALSE)","v":1018},{"$f":"HLOOKUP(DF$7+0.5,$I$66:$DJ$120,ROWS($A$10:$A27)+2,FALSE)","v":459},{"$f":"HLOOKUP(DG$7+0.5,$I$66:$DJ$120,ROWS($A$10:$A27)+2,FALSE)","v":168},{"$f":"HLOOKUP(DH$7+0.5,$I$66:$DJ$120,ROWS($A$10:$A27)+2,FALSE)","v":575},{"$f":"HLOOKUP(DI$7+0.5,$I$66:$DJ$120,ROWS($A$10:$A27)+2,FALSE)","v":791},{"$f":"HLOOKUP(DJ$7+0.5,$I$66:$DJ$120,ROWS($A$10:$A27)+2,FALSE)","v":1013}]
[null,"Kentucky",4316297,3382,3686232,19523,505741,18525,{"$f":"HLOOKUP(I$7,$I$66:$DJ$120,ROWS($A$10:$A28)+2,FALSE)","v":110031},{"$f":"HLOOKUP(J$7,$I$66:$DJ$120,ROWS($A$10:$A28)+2,FALSE)","v":925},{"$f":"HLOOKUP(K$7,$I$66:$DJ$120,ROWS($A$10:$A28)+2,FALSE)","v":0},{"$f":"HLOOKUP(L$7,$I$66:$DJ$120,ROWS($A$10:$A28)+2,FALSE)","v":1818},{"$f":"HLOOKUP(M$7,$I$66:$DJ$120,ROWS($A$10:$A28)+2,FALSE)","v":1058},{"$f":"HLOOKUP(N$7,$I$66:$DJ$120,ROWS($A$10:$A28)+2,FALSE)","v":2130},{"$f":"HLOOKUP(O$7,$I$66:$DJ$120,ROWS($A$10:$A28)+2,FALSE)","v":221},{"$f":"HLOOKUP(P$7,$I$66:$DJ$120,ROWS($A$10:$A28)+2,FALSE)","v":176},{"$f":"HLOOKUP(Q$7,$I$66:$DJ$120,ROWS($A$10:$A28)+2,FALSE)","v":0},{"$f":"HLOOKUP(R$7,$I$66:$DJ$120,ROWS($A$10:$A28)+2,FALSE)","v":201},{"$f":"HLOOKUP(S$7,$I$66:$DJ$120,ROWS($A$10:$A28)+2,FALSE)","v":7400},{"$f":"HLOOKUP(T$7,$I$66:$DJ$120,ROWS($A$10:$A28)+2,FALSE)","v":2725},{"$f":"HLOOKUP(U$7,$I$66:$DJ$120,ROWS($A$10:$A28)+2,FALSE)","v":63},{"$f":"HLOOKUP(V$7,$I$66:$DJ$120,ROWS($A$10:$A28)+2,FALSE)","v":36},{"$f":"HLOOKUP(W$7,$I$66:$DJ$120,ROWS($A$10:$A28)+2,FALSE)","v":4273},{"$f":"HLOOKUP(X$7,$I$66:$DJ$120,ROWS($A$10:$A28)+2,FALSE)","v":11071},{"$f":"HLOOKUP(Y$7,$I$66:$DJ$120,ROWS($A$10:$A28)+2,FALSE)","v":536},{"$f":"HLOOKUP(Z$7,$I$66:$DJ$120,ROWS($A$10:$A28)+2,FALSE)","v":253},{"$f":"HLOOKUP(AA$7,$I$66:$DJ$120,ROWS($A$10:$A28)+2,FALSE)","v":"N/A"},{"$f":"HLOOKUP(AB$7,$I$66:$DJ$120,ROWS($A$10:$A28)+2,FALSE)","v":1399},{"$f":"HLOOKUP(AC$7,$I$66:$DJ$120,ROWS($A$10:$A28)+2,FALSE)","v":71},{"$f":"HLOOKUP(AD$7,$I$66:$DJ$120,ROWS($A$10:$A28)+2,FALSE)","v":2076},{"$f":"HLOOKUP(AE$7,$I$66:$DJ$120,ROWS($A$10:$A28)+2,FALSE)","v":1019},{"$f":"HLOOKUP(AF$7,$I$66:$DJ$120,ROWS($A$10:$A28)+2,FALSE)","v":3178},{"$f":"HLOOKUP(AG$7,$I$66:$DJ$120,ROWS($A$10:$A28)+2,FALSE)","v":475},{"$f":"HLOOKUP(AH$7,$I$66:$DJ$120,ROWS($A$10:$A28)+2,FALSE)","v":1248},{"$f":"HLOOKUP(AI$7,$I$66:$DJ$120,ROWS($A$10:$A28)+2,FALSE)","v":2793},{"$f":"HLOOKUP(AJ$7,$I$66:$DJ$120,ROWS($A$10:$A28)+2,FALSE)","v":216},{"$f":"HLOOKUP(AK$7,$I$66:$DJ$120,ROWS($A$10:$A28)+2,FALSE)","v":471},{"$f":"HLOOKUP(AL$7,$I$66:$DJ$120,ROWS($A$10:$A28)+2,FALSE)","v":1358},{"$f":"HLOOKUP(AM$7,$I$66:$DJ$120,ROWS($A$10:$A28)+2,FALSE)","v":52},{"$f":"HLOOKUP(AN$7,$I$66:$DJ$120,ROWS($A$10:$A28)+2,FALSE)","v":1289},{"$f":"HLOOKUP(AO$7,$I$66:$DJ$120,ROWS($A$10:$A28)+2,FALSE)","v":553},{"$f":"HLOOKUP(AP$7,$I$66:$DJ$120,ROWS($A$10:$A28)+2,FALSE)","v":2174},{"$f":"HLOOKUP(AQ$7,$I$66:$DJ$120,ROWS($A$10:$A28)+2,FALSE)","v":3916},{"$f":"HLOOKUP(AR$7,$I$66:$DJ$120,ROWS($A$10:$A28)+2,FALSE)","v":117},{"$f":"HLOOKUP(AS$7,$I$66:$DJ$120,ROWS($A$10:$A28)+2,FALSE)","v":19617},{"$f":"HLOOKUP(AT$7,$I$66:$DJ$120,ROWS($A$10:$A28)+2,FALSE)","v":1256},{"$f":"HLOOKUP(AU$7,$I$66:$DJ$120,ROWS($A$10:$A28)+2,FALSE)","v":459},{"$f":"HLOOKUP(AV$7,$I$66:$DJ$120,ROWS($A$10:$A28)+2,FALSE)","v":1490},{"$f":"HLOOKUP(AW$7,$I$66:$DJ$120,ROWS($A$10:$A28)+2,FALSE)","v":640},{"$f":"HLOOKUP(AX$7,$I$66:$DJ$120,ROWS($A$10:$A28)+2,FALSE)","v":1387},{"$f":"HLOOKUP(AY$7,$I$66:$DJ$120,ROWS($A$10:$A28)+2,FALSE)","v":0},{"$f":"HLOOKUP(AZ$7,$I$66:$DJ$120,ROWS($A$10:$A28)+2,FALSE)","v":16852},{"$f":"HLOOKUP(BA$7,$I$66:$DJ$120,ROWS($A$10:$A28)+2,FALSE)","v":4661},{"$f":"HLOOKUP(BB$7,$I$66:$DJ$120,ROWS($A$10:$A28)+2,FALSE)","v":140},{"$f":"HLOOKUP(BC$7,$I$66:$DJ$120,ROWS($A$10:$A28)+2,FALSE)","v":151},{"$f":"HLOOKUP(BD$7,$I$66:$DJ$120,ROWS($A$10:$A28)+2,FALSE)","v":5154},{"$f":"HLOOKUP(BE$7,$I$66:$DJ$120,ROWS($A$10:$A28)+2,FALSE)","v":1121},{"$f":"HLOOKUP(BF$7,$I$66:$DJ$120,ROWS($A$10:$A28)+2,FALSE)","v":1174},{"$f":"HLOOKUP(BG$7,$I$66:$DJ$120,ROWS($A$10:$A28)+2,FALSE)","v":581},{"$f":"HLOOKUP(BH$7,$I$66:$DJ$120,ROWS($A$10:$A28)+2,FALSE)","v":57},{"$f":"HLOOKUP(BI$7,$I$66:$DJ$120,ROWS($A$10:$A28)+2,FALSE)","v":192},{"$f":"HLOOKUP(BJ$7+0.5,$I$66:$DJ$120,ROWS($A$10:$A28)+2,FALSE)","v":9177},{"$f":"HLOOKUP(BK$7+0.5,$I$66:$DJ$120,ROWS($A$10:$A28)+2,FALSE)","v":441},{"$f":"HLOOKUP(BL$7+0.5,$I$66:$DJ$120,ROWS($A$10:$A28)+2,FALSE)","v":189},{"$f":"HLOOKUP(BM$7+0.5,$I$66:$DJ$120,ROWS($A$10:$A28)+2,FALSE)","v":916},{"$f":"HLOOKUP(BN$7+0.5,$I$66:$DJ$120,ROWS($A$10:$A28)+2,FALSE)","v":778},{"$f":"HLOOKUP(BO$7+0.5,$I$66:$DJ$120,ROWS($A$10:$A28)+2,FALSE)","v":1154},{"$f":"HLOOKUP(BP$7+0.5,$I$66:$DJ$120,ROWS($A$10:$A28)+2,FALSE)","v":197},{"$f":"HLOOKUP(BQ$7+0.5,$I$66:$DJ$120,ROWS($A$10:$A28)+2,FALSE)","v":251},{"$f":"HLOOKUP(BR$7+0.5,$I$66:$DJ$120,ROWS($A$10:$A28)+2,FALSE)","v":189},{"$f":"HLOOKUP(BS$7+0.5,$I$66:$DJ$120,ROWS($A$10:$A28)+2,FALSE)","v":248},{"$f":"HLOOKUP(BT$7+0.5,$I$66:$DJ$120,ROWS($A$10:$A28)+2,FALSE)","v":1965},{"$f":"HLOOKUP(BU$7+0.5,$I$66:$DJ$120,ROWS($A$10:$A28)+2,FALSE)","v":892},{"$f":"HLOOKUP(BV$7+0.5,$I$66:$DJ$120,ROWS($A$10:$A28)+2,FALSE)","v":80},{"$f":"HLOOKUP(BW$7+0.5,$I$66:$DJ$120,ROWS($A$10:$A28)+2,FALSE)","v":69},{"$f":"HLOOKUP(BX$7+0.5,$I$66:$DJ$120,ROWS($A$10:$A28)+2,FALSE)","v":1415},{"$f":"HLOOKUP(BY$7+0.5,$I$66:$DJ$120,ROWS($A$10:$A28)+2,FALSE)","v":2846},{"$f":"HLOOKUP(BZ$7+0.5,$I$66:$DJ$120,ROWS($A$10:$A28)+2,FALSE)","v":410},{"$f":"HLOOKUP(CA$7+0.5,$I$66:$DJ$120,ROWS($A$10:$A28)+2,FALSE)","v":212},{"$f":"HLOOKUP(CB$7+0.5,$I$66:$DJ$120,ROWS($A$10:$A28)+2,FALSE)","v":"N/A"},{"$f":"HLOOKUP(CC$7+0.5,$I$66:$DJ$120,ROWS($A$10:$A28)+2,FALSE)","v":906},{"$f":"HLOOKUP(CD$7+0.5,$I$66:$DJ$120,ROWS($A$10:$A28)+2,FALSE)","v":137},{"$f":"HLOOKUP(CE$7+0.5,$I$66:$DJ$120,ROWS($A$10:$A28)+2,FALSE)","v":1444},{"$f":"HLOOKUP(CF$7+0.5,$I$66:$DJ$120,ROWS($A$10:$A28)+2,FALSE)","v":885},{"$f":"HLOOKUP(CG$7+0.5,$I$66:$DJ$120,ROWS($A$10:$A28)+2,FALSE)","v":1248},{"$f":"HLOOKUP(CH$7+0.5,$I$66:$DJ$120,ROWS($A$10:$A28)+2,FALSE)","v":415},{"$f":"HLOOKUP(CI$7+0.5,$I$66:$DJ$120,ROWS($A$10:$A28)+2,FALSE)","v":868},{"$f":"HLOOKUP(CJ$7+0.5,$I$66:$DJ$120,ROWS($A$10:$A28)+2,FALSE)","v":1158},{"$f":"HLOOKUP(CK$7+0.5,$I$66:$DJ$120,ROWS($A$10:$A28)+2,FALSE)","v":238},{"$f":"HLOOKUP(CL$7+0.5,$I$66:$DJ$120,ROWS($A$10:$A28)+2,FALSE)","v":517},{"$f":"HLOOKUP(CM$7+0.5,$I$66:$DJ$120,ROWS($A$10:$A28)+2,FALSE)","v":976},{"$f":"HLOOKUP(CN$7+0.5,$I$66:$DJ$120,ROWS($A$10:$A28)+2,FALSE)","v":84},{"$f":"HLOOKUP(CO$7+0.5,$I$66:$DJ$120,ROWS($A$10:$A28)+2,FALSE)","v":1472},{"$f":"HLOOKUP(CP$7+0.5,$I$66:$DJ$120,ROWS($A$10:$A28)+2,FALSE)","v":370},{"$f":"HLOOKUP(CQ$7+0.5,$I$66:$DJ$120,ROWS($A$10:$A28)+2,FALSE)","v":1660},{"$f":"HLOOKUP(CR$7+0.5,$I$66:$DJ$120,ROWS($A$10:$A28)+2,FALSE)","v":1965},{"$f":"HLOOKUP(CS$7+0.5,$I$66:$DJ$120,ROWS($A$10:$A28)+2,FALSE)","v":195},{"$f":"HLOOKUP(CT$7+0.5,$I$66:$DJ$120,ROWS($A$10:$A28)+2,FALSE)","v":3115},{"$f":"HLOOKUP(CU$7+0.5,$I$66:$DJ$120,ROWS($A$10:$A28)+2,FALSE)","v":853},{"$f":"HLOOKUP(CV$7+0.5,$I$66:$DJ$120,ROWS($A$10:$A28)+2,FALSE)","v":328},{"$f":"HLOOKUP(CW$7+0.5,$I$66:$DJ$120,ROWS($A$10:$A28)+2,FALSE)","v":598},{"$f":"HLOOKUP(CX$7+0.5,$I$66:$DJ$120,ROWS($A$10:$A28)+2,FALSE)","v":876},{"$f":"HLOOKUP(CY$7+0.5,$I$66:$DJ$120,ROWS($A$10:$A28)+2,FALSE)","v":814},{"$f":"HLOOKUP(CZ$7+0.5,$I$66:$DJ$120,ROWS($A$10:$A28)+2,FALSE)","v":189},{"$f":"HLOOKUP(DA$7+0.5,$I$66:$DJ$120,ROWS($A$10:$A28)+2,FALSE)","v":3762},{"$f":"HLOOKUP(DB$7+0.5,$I$66:$DJ$120,ROWS($A$10:$A28)+2,FALSE)","v":1468},{"$f":"HLOOKUP(DC$7+0.5,$I$66:$DJ$120,ROWS($A$10:$A28)+2,FALSE)","v":202},{"$f":"HLOOKUP(DD$7+0.5,$I$66:$DJ$120,ROWS($A$10:$A28)+2,FALSE)","v":152},{"$f":"HLOOKUP(DE$7+0.5,$I$66:$DJ$120,ROWS($A$10:$A28)+2,FALSE)","v":1719},{"$f":"HLOOKUP(DF$7+0.5,$I$66:$DJ$120,ROWS($A$10:$A28)+2,FALSE)","v":614},{"$f":"HLOOKUP(DG$7+0.5,$I$66:$DJ$120,ROWS($A$10:$A28)+2,FALSE)","v":566},{"$f":"HLOOKUP(DH$7+0.5,$I$66:$DJ$120,ROWS($A$10:$A28)+2,FALSE)","v":414},{"$f":"HLOOKUP(DI$7+0.5,$I$66:$DJ$120,ROWS($A$10:$A28)+2,FALSE)","v":93},{"$f":"HLOOKUP(DJ$7+0.5,$I$66:$DJ$120,ROWS($A$10:$A28)+2,FALSE)","v":262}]
[null,"Louisiana",4518629,3250,3865118,18789,538691,17818,{"$f":"HLOOKUP(I$7,$I$66:$DJ$120,ROWS($A$10:$A29)+2,FALSE)","v":99138},{"$f":"HLOOKUP(J$7,$I$66:$DJ$120,ROWS($A$10:$A29)+2,FALSE)","v":3065},{"$f":"HLOOKUP(K$7,$I$66:$DJ$120,ROWS($A$10:$A29)+2,FALSE)","v":288},{"$f":"HLOOKUP(L$7,$I$66:$DJ$120,ROWS($A$10:$A29)+2,FALSE)","v":2010},{"$f":"HLOOKUP(M$7,$I$66:$DJ$120,ROWS($A$10:$A29)+2,FALSE)","v":2774},{"$f":"HLOOKUP(N$7,$I$66:$DJ$120,ROWS($A$10:$A29)+2,FALSE)","v":3957},{"$f":"HLOOKUP(O$7,$I$66:$DJ$120,ROWS($A$10:$A29)+2,FALSE)","v":1202},{"$f":"HLOOKUP(P$7,$I$66:$DJ$120,ROWS($A$10:$A29)+2,FALSE)","v":358},{"$f":"HLOOKUP(Q$7,$I$66:$DJ$120,ROWS($A$10:$A29)+2,FALSE)","v":0},{"$f":"HLOOKUP(R$7,$I$66:$DJ$120,ROWS($A$10:$A29)+2,FALSE)","v":195},{"$f":"HLOOKUP(S$7,$I$66:$DJ$120,ROWS($A$10:$A29)+2,FALSE)","v":5193},{"$f":"HLOOKUP(T$7,$I$66:$DJ$120,ROWS($A$10:$A29)+2,FALSE)","v":4425},{"$f":"HLOOKUP(U$7,$I$66:$DJ$120,ROWS($A$10:$A29)+2,FALSE)","v":688},{"$f":"HLOOKUP(V$7,$I$66:$DJ$120,ROWS($A$10:$A29)+2,FALSE)","v":230},{"$f":"HLOOKUP(W$7,$I$66:$DJ$120,ROWS($A$10:$A29)+2,FALSE)","v":1189},{"$f":"HLOOKUP(X$7,$I$66:$DJ$120,ROWS($A$10:$A29)+2,FALSE)","v":1549},{"$f":"HLOOKUP(Y$7,$I$66:$DJ$120,ROWS($A$10:$A29)+2,FALSE)","v":468},{"$f":"HLOOKUP(Z$7,$I$66:$DJ$120,ROWS($A$10:$A29)+2,FALSE)","v":312},{"$f":"HLOOKUP(AA$7,$I$66:$DJ$120,ROWS($A$10:$A29)+2,FALSE)","v":1520},{"$f":"HLOOKUP(AB$7,$I$66:$DJ$120,ROWS($A$10:$A29)+2,FALSE)","v":"N/A"},{"$f":"HLOOKUP(AC$7,$I$66:$DJ$120,ROWS($A$10:$A29)+2,FALSE)","v":120},{"$f":"HLOOKUP(AD$7,$I$66:$DJ$120,ROWS($A$10:$A29)+2,FALSE)","v":1221},{"$f":"HLOOKUP(AE$7,$I$66:$DJ$120,ROWS($A$10:$A29)+2,FALSE)","v":439},{"$f":"HLOOKUP(AF$7,$I$66:$DJ$120,ROWS($A$10:$A29)+2,FALSE)","v":1163},{"$f":"HLOOKUP(AG$7,$I$66:$DJ$120,ROWS($A$10:$A29)+2,FALSE)","v":698},{"$f":"HLOOKUP(AH$7,$I$66:$DJ$120,ROWS($A$10:$A29)+2,FALSE)","v":10255},{"$f":"HLOOKUP(AI$7,$I$66:$DJ$120,ROWS($A$10:$A29)+2,FALSE)","v":1375},{"$f":"HLOOKUP(AJ$7,$I$66:$DJ$120,ROWS($A$10:$A29)+2,FALSE)","v":278},{"$f":"HLOOKUP(AK$7,$I$66:$DJ$120,ROWS($A$10:$A29)+2,FALSE)","v":176},{"$f":"HLOOKUP(AL$7,$I$66:$DJ$120,ROWS($A$10:$A29)+2,FALSE)","v":994},{"$f":"HLOOKUP(AM$7,$I$66:$DJ$120,ROWS($A$10:$A29)+2,FALSE)","v":15},{"$f":"HLOOKUP(AN$7,$I$66:$DJ$120,ROWS($A$10:$A29)+2,FALSE)","v":453},{"$f":"HLOOKUP(AO$7,$I$66:$DJ$120,ROWS($A$10:$A29)+2,FALSE)","v":1028},{"$f":"HLOOKUP(AP$7,$I$66:$DJ$120,ROWS($A$10:$A29)+2,FALSE)","v":1360},{"$f":"HLOOKUP(AQ$7,$I$66:$DJ$120,ROWS($A$10:$A29)+2,FALSE)","v":2134},{"$f":"HLOOKUP(AR$7,$I$66:$DJ$120,ROWS($A$10:$A29)+2,FALSE)","v":277},{"$f":"HLOOKUP(AS$7,$I$66:$DJ$120,ROWS($A$10:$A29)+2,FALSE)","v":2641},{"$f":"HLOOKUP(AT$7,$I$66:$DJ$120,ROWS($A$10:$A29)+2,FALSE)","v":4235},{"$f":"HLOOKUP(AU$7,$I$66:$DJ$120,ROWS($A$10:$A29)+2,FALSE)","v":1531},{"$f":"HLOOKUP(AV$7,$I$66:$DJ$120,ROWS($A$10:$A29)+2,FALSE)","v":455},{"$f":"HLOOKUP(AW$7,$I$66:$DJ$120,ROWS($A$10:$A29)+2,FALSE)","v":268},{"$f":"HLOOKUP(AX$7,$I$66:$DJ$120,ROWS($A$10:$A29)+2,FALSE)","v":1573},{"$f":"HLOOKUP(AY$7,$I$66:$DJ$120,ROWS($A$10:$A29)+2,FALSE)","v":37},{"$f":"HLOOKUP(AZ$7,$I$66:$DJ$120,ROWS($A$10:$A29)+2,FALSE)","v":2495},{"$f":"HLOOKUP(BA$7,$I$66:$DJ$120,ROWS($A$10:$A29)+2,FALSE)","v":30292},{"$f":"HLOOKUP(BB$7,$I$66:$DJ$120,ROWS($A$10:$A29)+2,FALSE)","v":179},{"$f":"HLOOKUP(BC$7,$I$66:$DJ$120,ROWS($A$10:$A29)+2,FALSE)","v":87},{"$f":"HLOOKUP(BD$7,$I$66:$DJ$120,ROWS($A$10:$A29)+2,FALSE)","v":2055},{"$f":"HLOOKUP(BE$7,$I$66:$DJ$120,ROWS($A$10:$A29)+2,FALSE)","v":1075},{"$f":"HLOOKUP(BF$7,$I$66:$DJ$120,ROWS($A$10:$A29)+2,FALSE)","v":110},{"$f":"HLOOKUP(BG$7,$I$66:$DJ$120,ROWS($A$10:$A29)+2,FALSE)","v":339},{"$f":"HLOOKUP(BH$7,$I$66:$DJ$120,ROWS($A$10:$A29)+2,FALSE)","v":357},{"$f":"HLOOKUP(BI$7,$I$66:$DJ$120,ROWS($A$10:$A29)+2,FALSE)","v":393},{"$f":"HLOOKUP(BJ$7+0.5,$I$66:$DJ$120,ROWS($A$10:$A29)+2,FALSE)","v":7082},{"$f":"HLOOKUP(BK$7+0.5,$I$66:$DJ$120,ROWS($A$10:$A29)+2,FALSE)","v":1401},{"$f":"HLOOKUP(BL$7+0.5,$I$66:$DJ$120,ROWS($A$10:$A29)+2,FALSE)","v":266},{"$f":"HLOOKUP(BM$7+0.5,$I$66:$DJ$120,ROWS($A$10:$A29)+2,FALSE)","v":1529},{"$f":"HLOOKUP(BN$7+0.5,$I$66:$DJ$120,ROWS($A$10:$A29)+2,FALSE)","v":1144},{"$f":"HLOOKUP(BO$7+0.5,$I$66:$DJ$120,ROWS($A$10:$A29)+2,FALSE)","v":898},{"$f":"HLOOKUP(BP$7+0.5,$I$66:$DJ$120,ROWS($A$10:$A29)+2,FALSE)","v":983},{"$f":"HLOOKUP(BQ$7+0.5,$I$66:$DJ$120,ROWS($A$10:$A29)+2,FALSE)","v":264},{"$f":"HLOOKUP(BR$7+0.5,$I$66:$DJ$120,ROWS($A$10:$A29)+2,FALSE)","v":198},{"$f":"HLOOKUP(BS$7+0.5,$I$66:$DJ$120,ROWS($A$10:$A29)+2,FALSE)","v":168},{"$f":"HLOOKUP(BT$7+0.5,$I$66:$DJ$120,ROWS($A$10:$A29)+2,FALSE)","v":2120},{"$f":"HLOOKUP(BU$7+0.5,$I$66:$DJ$120,ROWS($A$10:$A29)+2,FALSE)","v":1541},{"$f":"HLOOKUP(BV$7+0.5,$I$66:$DJ$120,ROWS($A$10:$A29)+2,FALSE)","v":808},{"$f":"HLOOKUP(BW$7+0.5,$I$66:$DJ$120,ROWS($A$10:$A29)+2,FALSE)","v":269},{"$f":"HLOOKUP(BX$7+0.5,$I$66:$DJ$120,ROWS($A$10:$A29)+2,FALSE)","v":417},{"$f":"HLOOKUP(BY$7+0.5,$I$66:$DJ$120,ROWS($A$10:$A29)+2,FALSE)","v":827},{"$f":"HLOOKUP(BZ$7+0.5,$I$66:$DJ$120,ROWS($A$10:$A29)+2,FALSE)","v":441},{"$f":"HLOOKUP(CA$7+0.5,$I$66:$DJ$120,ROWS($A$10:$A29)+2,FALSE)","v":466},{"$f":"HLOOKUP(CB$7+0.5,$I$66:$DJ$120,ROWS($A$10:$A29)+2,FALSE)","v":1286},{"$f":"HLOOKUP(CC$7+0.5,$I$66:$DJ$120,ROWS($A$10:$A29)+2,FALSE)","v":"N/A"},{"$f":"HLOOKUP(CD$7+0.5,$I$66:$DJ$120,ROWS($A$10:$A29)+2,FALSE)","v":163},{"$f":"HLOOKUP(CE$7+0.5,$I$66:$DJ$120,ROWS($A$10:$A29)+2,FALSE)","v":1058},{"$f":"HLOOKUP(CF$7+0.5,$I$66:$DJ$120,ROWS($A$10:$A29)+2,FALSE)","v":255},{"$f":"HLOOKUP(CG$7+0.5,$I$66:$DJ$120,ROWS($A$10:$A29)+2,FALSE)","v":875},{"$f":"HLOOKUP(CH$7+0.5,$I$66:$DJ$120,ROWS($A$10:$A29)+2,FALSE)","v":445},{"$f":"HLOOKUP(CI$7+0.5,$I$66:$DJ$120,ROWS($A$10:$A29)+2,FALSE)","v":2829},{"$f":"HLOOKUP(CJ$7+0.5,$I$66:$DJ$120,ROWS($A$10:$A29)+2,FALSE)","v":565},{"$f":"HLOOKUP(CK$7+0.5,$I$66:$DJ$120,ROWS($A$10:$A29)+2,FALSE)","v":364},{"$f":"HLOOKUP(CL$7+0.5,$I$66:$DJ$120,ROWS($A$10:$A29)+2,FALSE)","v":198},{"$f":"HLOOKUP(CM$7+0.5,$I$66:$DJ$120,ROWS($A$10:$A29)+2,FALSE)","v":623},{"$f":"HLOOKUP(CN$7+0.5,$I$66:$DJ$120,ROWS($A$10:$A29)+2,FALSE)","v":26},{"$f":"HLOOKUP(CO$7+0.5,$I$66:$DJ$120,ROWS($A$10:$A29)+2,FALSE)","v":269},{"$f":"HLOOKUP(CP$7+0.5,$I$66:$DJ$120,ROWS($A$10:$A29)+2,FALSE)","v":867},{"$f":"HLOOKUP(CQ$7+0.5,$I$66:$DJ$120,ROWS($A$10:$A29)+2,FALSE)","v":849},{"$f":"HLOOKUP(CR$7+0.5,$I$66:$DJ$120,ROWS($A$10:$A29)+2,FALSE)","v":1242},{"$f":"HLOOKUP(CS$7+0.5,$I$66:$DJ$120,ROWS($A$10:$A29)+2,FALSE)","v":359},{"$f":"HLOOKUP(CT$7+0.5,$I$66:$DJ$120,ROWS($A$10:$A29)+2,FALSE)","v":2281},{"$f":"HLOOKUP(CU$7+0.5,$I$66:$DJ$120,ROWS($A$10:$A29)+2,FALSE)","v":3044},{"$f":"HLOOKUP(CV$7+0.5,$I$66:$DJ$120,ROWS($A$10:$A29)+2,FALSE)","v":1577},{"$f":"HLOOKUP(CW$7+0.5,$I$66:$DJ$120,ROWS($A$10:$A29)+2,FALSE)","v":473},{"$f":"HLOOKUP(CX$7+0.5,$I$66:$DJ$120,ROWS($A$10:$A29)+2,FALSE)","v":395},{"$f":"HLOOKUP(CY$7+0.5,$I$66:$DJ$120,ROWS($A$10:$A29)+2,FALSE)","v":1149},{"$f":"HLOOKUP(CZ$7+0.5,$I$66:$DJ$120,ROWS($A$10:$A29)+2,FALSE)","v":47},{"$f":"HLOOKUP(DA$7+0.5,$I$66:$DJ$120,ROWS($A$10:$A29)+2,FALSE)","v":938},{"$f":"HLOOKUP(DB$7+0.5,$I$66:$DJ$120,ROWS($A$10:$A29)+2,FALSE)","v":5028},{"$f":"HLOOKUP(DC$7+0.5,$I$66:$DJ$120,ROWS($A$10:$A29)+2,FALSE)","v":275},{"$f":"HLOOKUP(DD$7+0.5,$I$66:$DJ$120,ROWS($A$10:$A29)+2,FALSE)","v":149},{"$f":"HLOOKUP(DE$7+0.5,$I$66:$DJ$120,ROWS($A$10:$A29)+2,FALSE)","v":1060},{"$f":"HLOOKUP(DF$7+0.5,$I$66:$DJ$120,ROWS($A$10:$A29)+2,FALSE)","v":504},{"$f":"HLOOKUP(DG$7+0.5,$I$66:$DJ$120,ROWS($A$10:$A29)+2,FALSE)","v":123},{"$f":"HLOOKUP(DH$7+0.5,$I$66:$DJ$120,ROWS($A$10:$A29)+2,FALSE)","v":372},{"$f":"HLOOKUP(DI$7+0.5,$I$66:$DJ$120,ROWS($A$10:$A29)+2,FALSE)","v":541},{"$f":"HLOOKUP(DJ$7+0.5,$I$66:$DJ$120,ROWS($A$10:$A29)+2,FALSE)","v":384}]
[null,"Maine",1315833,1456,1120364,10400,157102,9401,{"$f":"HLOOKUP(I$7,$I$66:$DJ$120,ROWS($A$10:$A30)+2,FALSE)","v":33818},{"$f":"HLOOKUP(J$7,$I$66:$DJ$120,ROWS($A$10:$A30)+2,FALSE)","v":634},{"$f":"HLOOKUP(K$7,$I$66:$DJ$120,ROWS($A$10:$A30)+2,FALSE)","v":37},{"$f":"HLOOKUP(L$7,$I$66:$DJ$120,ROWS($A$10:$A30)+2,FALSE)","v":325},{"$f":"HLOOKUP(M$7,$I$66:$DJ$120,ROWS($A$10:$A30)+2,FALSE)","v":38},{"$f":"HLOOKUP(N$7,$I$66:$DJ$120,ROWS($A$10:$A30)+2,FALSE)","v":829},{"$f":"HLOOKUP(O$7,$I$66:$DJ$120,ROWS($A$10:$A30)+2,FALSE)","v":290},{"$f":"HLOOKUP(P$7,$I$66:$DJ$120,ROWS($A$10:$A30)+2,FALSE)","v":2481},{"$f":"HLOOKUP(Q$7,$I$66:$DJ$120,ROWS($A$10:$A30)+2,FALSE)","v":238},{"$f":"HLOOKUP(R$7,$I$66:$DJ$120,ROWS($A$10:$A30)+2,FALSE)","v":239},{"$f":"HLOOKUP(S$7,$I$66:$DJ$120,ROWS($A$10:$A30)+2,FALSE)","v":4304},{"$f":"HLOOKUP(T$7,$I$66:$DJ$120,ROWS($A$10:$A30)+2,FALSE)","v":507},{"$f":"HLOOKUP(U$7,$I$66:$DJ$120,ROWS($A$10:$A30)+2,FALSE)","v":177},{"$f":"HLOOKUP(V$7,$I$66:$DJ$120,ROWS($A$10:$A30)+2,FALSE)","v":0},{"$f":"HLOOKUP(W$7,$I$66:$DJ$120,ROWS($A$10:$A30)+2,FALSE)","v":675},{"$f":"HLOOKUP(X$7,$I$66:$DJ$120,ROWS($A$10:$A30)+2,FALSE)","v":164},{"$f":"HLOOKUP(Y$7,$I$66:$DJ$120,ROWS($A$10:$A30)+2,FALSE)","v":275},{"$f":"HLOOKUP(Z$7,$I$66:$DJ$120,ROWS($A$10:$A30)+2,FALSE)","v":523},{"$f":"HLOOKUP(AA$7,$I$66:$DJ$120,ROWS($A$10:$A30)+2,FALSE)","v":158},{"$f":"HLOOKUP(AB$7,$I$66:$DJ$120,ROWS($A$10:$A30)+2,FALSE)","v":138},{"$f":"HLOOKUP(AC$7,$I$66:$DJ$120,ROWS($A$10:$A30)+2,FALSE)","v":"N/A"},{"$f":"HLOOKUP(AD$7,$I$66:$DJ$120,ROWS($A$10:$A30)+2,FALSE)","v":52},{"$f":"HLOOKUP(AE$7,$I$66:$DJ$120,ROWS($A$10:$A30)+2,FALSE)","v":4439},{"$f":"HLOOKUP(AF$7,$I$66:$DJ$120,ROWS($A$10:$A30)+2,FALSE)","v":702},{"$f":"HLOOKUP(AG$7,$I$66:$DJ$120,ROWS($A$10:$A30)+2,FALSE)","v":296},{"$f":"HLOOKUP(AH$7,$I$66:$DJ$120,ROWS($A$10:$A30)+2,FALSE)","v":0},{"$f":"HLOOKUP(AI$7,$I$66:$DJ$120,ROWS($A$10:$A30)+2,FALSE)","v":325},{"$f":"HLOOKUP(AJ$7,$I$66:$DJ$120,ROWS($A$10:$A30)+2,FALSE)","v":10},{"$f":"HLOOKUP(AK$7,$I$66:$DJ$120,ROWS($A$10:$A30)+2,FALSE)","v":0},{"$f":"HLOOKUP(AL$7,$I$66:$DJ$120,ROWS($A$10:$A30)+2,FALSE)","v":150},{"$f":"HLOOKUP(AM$7,$I$66:$DJ$120,ROWS($A$10:$A30)+2,FALSE)","v":4302},{"$f":"HLOOKUP(AN$7,$I$66:$DJ$120,ROWS($A$10:$A30)+2,FALSE)","v":694},{"$f":"HLOOKUP(AO$7,$I$66:$DJ$120,ROWS($A$10:$A30)+2,FALSE)","v":144},{"$f":"HLOOKUP(AP$7,$I$66:$DJ$120,ROWS($A$10:$A30)+2,FALSE)","v":2589},{"$f":"HLOOKUP(AQ$7,$I$66:$DJ$120,ROWS($A$10:$A30)+2,FALSE)","v":1439},{"$f":"HLOOKUP(AR$7,$I$66:$DJ$120,ROWS($A$10:$A30)+2,FALSE)","v":19},{"$f":"HLOOKUP(AS$7,$I$66:$DJ$120,ROWS($A$10:$A30)+2,FALSE)","v":483},{"$f":"HLOOKUP(AT$7,$I$66:$DJ$120,ROWS($A$10:$A30)+2,FALSE)","v":25},{"$f":"HLOOKUP(AU$7,$I$66:$DJ$120,ROWS($A$10:$A30)+2,FALSE)","v":471},{"$f":"HLOOKUP(AV$7,$I$66:$DJ$120,ROWS($A$10:$A30)+2,FALSE)","v":915},{"$f":"HLOOKUP(AW$7,$I$66:$DJ$120,ROWS($A$10:$A30)+2,FALSE)","v":234},{"$f":"HLOOKUP(AX$7,$I$66:$DJ$120,ROWS($A$10:$A30)+2,FALSE)","v":587},{"$f":"HLOOKUP(AY$7,$I$66:$DJ$120,ROWS($A$10:$A30)+2,FALSE)","v":42},{"$f":"HLOOKUP(AZ$7,$I$66:$DJ$120,ROWS($A$10:$A30)+2,FALSE)","v":394},{"$f":"HLOOKUP(BA$7,$I$66:$DJ$120,ROWS($A$10:$A30)+2,FALSE)","v":1637},{"$f":"HLOOKUP(BB$7,$I$66:$DJ$120,ROWS($A$10:$A30)+2,FALSE)","v":182},{"$f":"HLOOKUP(BC$7,$I$66:$DJ$120,ROWS($A$10:$A30)+2,FALSE)","v":612},{"$f":"HLOOKUP(BD$7,$I$66:$DJ$120,ROWS($A$10:$A30)+2,FALSE)","v":570},{"$f":"HLOOKUP(BE$7,$I$66:$DJ$120,ROWS($A$10:$A30)+2,FALSE)","v":88},{"$f":"HLOOKUP(BF$7,$I$66:$DJ$120,ROWS($A$10:$A30)+2,FALSE)","v":43},{"$f":"HLOOKUP(BG$7,$I$66:$DJ$120,ROWS($A$10:$A30)+2,FALSE)","v":321},{"$f":"HLOOKUP(BH$7,$I$66:$DJ$120,ROWS($A$10:$A30)+2,FALSE)","v":21},{"$f":"HLOOKUP(BI$7,$I$66:$DJ$120,ROWS($A$10:$A30)+2,FALSE)","v":65},{"$f":"HLOOKUP(BJ$7+0.5,$I$66:$DJ$120,ROWS($A$10:$A30)+2,FALSE)","v":4248},{"$f":"HLOOKUP(BK$7+0.5,$I$66:$DJ$120,ROWS($A$10:$A30)+2,FALSE)","v":541},{"$f":"HLOOKUP(BL$7+0.5,$I$66:$DJ$120,ROWS($A$10:$A30)+2,FALSE)","v":43},{"$f":"HLOOKUP(BM$7+0.5,$I$66:$DJ$120,ROWS($A$10:$A30)+2,FALSE)","v":301},{"$f":"HLOOKUP(BN$7+0.5,$I$66:$DJ$120,ROWS($A$10:$A30)+2,FALSE)","v":67},{"$f":"HLOOKUP(BO$7+0.5,$I$66:$DJ$120,ROWS($A$10:$A30)+2,FALSE)","v":428},{"$f":"HLOOKUP(BP$7+0.5,$I$66:$DJ$120,ROWS($A$10:$A30)+2,FALSE)","v":222},{"$f":"HLOOKUP(BQ$7+0.5,$I$66:$DJ$120,ROWS($A$10:$A30)+2,FALSE)","v":668},{"$f":"HLOOKUP(BR$7+0.5,$I$66:$DJ$120,ROWS($A$10:$A30)+2,FALSE)","v":228},{"$f":"HLOOKUP(BS$7+0.5,$I$66:$DJ$120,ROWS($A$10:$A30)+2,FALSE)","v":177},{"$f":"HLOOKUP(BT$7+0.5,$I$66:$DJ$120,ROWS($A$10:$A30)+2,FALSE)","v":1908},{"$f":"HLOOKUP(BU$7+0.5,$I$66:$DJ$120,ROWS($A$10:$A30)+2,FALSE)","v":415},{"$f":"HLOOKUP(BV$7+0.5,$I$66:$DJ$120,ROWS($A$10:$A30)+2,FALSE)","v":214},{"$f":"HLOOKUP(BW$7+0.5,$I$66:$DJ$120,ROWS($A$10:$A30)+2,FALSE)","v":157},{"$f":"HLOOKUP(BX$7+0.5,$I$66:$DJ$120,ROWS($A$10:$A30)+2,FALSE)","v":358},{"$f":"HLOOKUP(BY$7+0.5,$I$66:$DJ$120,ROWS($A$10:$A30)+2,FALSE)","v":157},{"$f":"HLOOKUP(BZ$7+0.5,$I$66:$DJ$120,ROWS($A$10:$A30)+2,FALSE)","v":452},{"$f":"HLOOKUP(CA$7+0.5,$I$66:$DJ$120,ROWS($A$10:$A30)+2,FALSE)","v":641},{"$f":"HLOOKUP(CB$7+0.5,$I$66:$DJ$120,ROWS($A$10:$A30)+2,FALSE)","v":217},{"$f":"HLOOKUP(CC$7+0.5,$I$66:$DJ$120,ROWS($A$10:$A30)+2,FALSE)","v":218},{"$f":"HLOOKUP(CD$7+0.5,$I$66:$DJ$120,ROWS($A$10:$A30)+2,FALSE)","v":"N/A"},{"$f":"HLOOKUP(CE$7+0.5,$I$66:$DJ$120,ROWS($A$10:$A30)+2,FALSE)","v":105},{"$f":"HLOOKUP(CF$7+0.5,$I$66:$DJ$120,ROWS($A$10:$A30)+2,FALSE)","v":1293},{"$f":"HLOOKUP(CG$7+0.5,$I$66:$DJ$120,ROWS($A$10:$A30)+2,FALSE)","v":703},{"$f":"HLOOKUP(CH$7+0.5,$I$66:$DJ$120,ROWS($A$10:$A30)+2,FALSE)","v":307},{"$f":"HLOOKUP(CI$7+0.5,$I$66:$DJ$120,ROWS($A$10:$A30)+2,FALSE)","v":157},{"$f":"HLOOKUP(CJ$7+0.5,$I$66:$DJ$120,ROWS($A$10:$A30)+2,FALSE)","v":228},{"$f":"HLOOKUP(CK$7+0.5,$I$66:$DJ$120,ROWS($A$10:$A30)+2,FALSE)","v":18},{"$f":"HLOOKUP(CL$7+0.5,$I$66:$DJ$120,ROWS($A$10:$A30)+2,FALSE)","v":157},{"$f":"HLOOKUP(CM$7+0.5,$I$66:$DJ$120,ROWS($A$10:$A30)+2,FALSE)","v":250},{"$f":"HLOOKUP(CN$7+0.5,$I$66:$DJ$120,ROWS($A$10:$A30)+2,FALSE)","v":1394},{"$f":"HLOOKUP(CO$7+0.5,$I$66:$DJ$120,ROWS($A$10:$A30)+2,FALSE)","v":498},{"$f":"HLOOKUP(CP$7+0.5,$I$66:$DJ$120,ROWS($A$10:$A30)+2,FALSE)","v":191},{"$f":"HLOOKUP(CQ$7+0.5,$I$66:$DJ$120,ROWS($A$10:$A30)+2,FALSE)","v":1633},{"$f":"HLOOKUP(CR$7+0.5,$I$66:$DJ$120,ROWS($A$10:$A30)+2,FALSE)","v":1059},{"$f":"HLOOKUP(CS$7+0.5,$I$66:$DJ$120,ROWS($A$10:$A30)+2,FALSE)","v":31},{"$f":"HLOOKUP(CT$7+0.5,$I$66:$DJ$120,ROWS($A$10:$A30)+2,FALSE)","v":530},{"$f":"HLOOKUP(CU$7+0.5,$I$66:$DJ$120,ROWS($A$10:$A30)+2,FALSE)","v":48},{"$f":"HLOOKUP(CV$7+0.5,$I$66:$DJ$120,ROWS($A$10:$A30)+2,FALSE)","v":406},{"$f":"HLOOKUP(CW$7+0.5,$I$66:$DJ$120,ROWS($A$10:$A30)+2,FALSE)","v":418},{"$f":"HLOOKUP(CX$7+0.5,$I$66:$DJ$120,ROWS($A$10:$A30)+2,FALSE)","v":282},{"$f":"HLOOKUP(CY$7+0.5,$I$66:$DJ$120,ROWS($A$10:$A30)+2,FALSE)","v":429},{"$f":"HLOOKUP(CZ$7+0.5,$I$66:$DJ$120,ROWS($A$10:$A30)+2,FALSE)","v":89},{"$f":"HLOOKUP(DA$7+0.5,$I$66:$DJ$120,ROWS($A$10:$A30)+2,FALSE)","v":513},{"$f":"HLOOKUP(DB$7+0.5,$I$66:$DJ$120,ROWS($A$10:$A30)+2,FALSE)","v":1115},{"$f":"HLOOKUP(DC$7+0.5,$I$66:$DJ$120,ROWS($A$10:$A30)+2,FALSE)","v":202},{"$f":"HLOOKUP(DD$7+0.5,$I$66:$DJ$120,ROWS($A$10:$A30)+2,FALSE)","v":341},{"$f":"HLOOKUP(DE$7+0.5,$I$66:$DJ$120,ROWS($A$10:$A30)+2,FALSE)","v":337},{"$f":"HLOOKUP(DF$7+0.5,$I$66:$DJ$120,ROWS($A$10:$A30)+2,FALSE)","v":131},{"$f":"HLOOKUP(DG$7+0.5,$I$66:$DJ$120,ROWS($A$10:$A30)+2,FALSE)","v":73},{"$f":"HLOOKUP(DH$7+0.5,$I$66:$DJ$120,ROWS($A$10:$A30)+2,FALSE)","v":408},{"$f":"HLOOKUP(DI$7+0.5,$I$66:$DJ$120,ROWS($A$10:$A30)+2,FALSE)","v":37},{"$f":"HLOOKUP(DJ$7+0.5,$I$66:$DJ$120,ROWS($A$10:$A30)+2,FALSE)","v":64}]
[null,"Maryland",5759087,4326,5008452,20478,553895,18323,{"$f":"HLOOKUP(I$7,$I$66:$DJ$120,ROWS($A$10:$A31)+2,FALSE)","v":153979},{"$f":"HLOOKUP(J$7,$I$66:$DJ$120,ROWS($A$10:$A31)+2,FALSE)","v":228},{"$f":"HLOOKUP(K$7,$I$66:$DJ$120,ROWS($A$10:$A31)+2,FALSE)","v":671},{"$f":"HLOOKUP(L$7,$I$66:$DJ$120,ROWS($A$10:$A31)+2,FALSE)","v":945},{"$f":"HLOOKUP(M$7,$I$66:$DJ$120,ROWS($A$10:$A31)+2,FALSE)","v":423},{"$f":"HLOOKUP(N$7,$I$66:$DJ$120,ROWS($A$10:$A31)+2,FALSE)","v":8595},{"$f":"HLOOKUP(O$7,$I$66:$DJ$120,ROWS($A$10:$A31)+2,FALSE)","v":1796},{"$f":"HLOOKUP(P$7,$I$66:$DJ$120,ROWS($A$10:$A31)+2,FALSE)","v":1608},{"$f":"HLOOKUP(Q$7,$I$66:$DJ$120,ROWS($A$10:$A31)+2,FALSE)","v":6652},{"$f":"HLOOKUP(R$7,$I$66:$DJ$120,ROWS($A$10:$A31)+2,FALSE)","v":18492},{"$f":"HLOOKUP(S$7,$I$66:$DJ$120,ROWS($A$10:$A31)+2,FALSE)","v":7825},{"$f":"HLOOKUP(T$7,$I$66:$DJ$120,ROWS($A$10:$A31)+2,FALSE)","v":7113},{"$f":"HLOOKUP(U$7,$I$66:$DJ$120,ROWS($A$10:$A31)+2,FALSE)","v":1170},{"$f":"HLOOKUP(V$7,$I$66:$DJ$120,ROWS($A$10:$A31)+2,FALSE)","v":389},{"$f":"HLOOKUP(W$7,$I$66:$DJ$120,ROWS($A$10:$A31)+2,FALSE)","v":2392},{"$f":"HLOOKUP(X$7,$I$66:$DJ$120,ROWS($A$10:$A31)+2,FALSE)","v":1318},{"$f":"HLOOKUP(Y$7,$I$66:$DJ$120,ROWS($A$10:$A31)+2,FALSE)","v":110},{"$f":"HLOOKUP(Z$7,$I$66:$DJ$120,ROWS($A$10:$A31)+2,FALSE)","v":689},{"$f":"HLOOKUP(AA$7,$I$66:$DJ$120,ROWS($A$10:$A31)+2,FALSE)","v":848},{"$f":"HLOOKUP(AB$7,$I$66:$DJ$120,ROWS($A$10:$A31)+2,FALSE)","v":860},{"$f":"HLOOKUP(AC$7,$I$66:$DJ$120,ROWS($A$10:$A31)+2,FALSE)","v":1526},{"$f":"HLOOKUP(AD$7,$I$66:$DJ$120,ROWS($A$10:$A31)+2,FALSE)","v":"N/A"},{"$f":"HLOOKUP(AE$7,$I$66:$DJ$120,ROWS($A$10:$A31)+2,FALSE)","v":3470},{"$f":"HLOOKUP(AF$7,$I$66:$DJ$120,ROWS($A$10:$A31)+2,FALSE)","v":2077},{"$f":"HLOOKUP(AG$7,$I$66:$DJ$120,ROWS($A$10:$A31)+2,FALSE)","v":810},{"$f":"HLOOKUP(AH$7,$I$66:$DJ$120,ROWS($A$10:$A31)+2,FALSE)","v":1109},{"$f":"HLOOKUP(AI$7,$I$66:$DJ$120,ROWS($A$10:$A31)+2,FALSE)","v":1469},{"$f":"HLOOKUP(AJ$7,$I$66:$DJ$120,ROWS($A$10:$A31)+2,FALSE)","v":73},{"$f":"HLOOKUP(AK$7,$I$66:$DJ$120,ROWS($A$10:$A31)+2,FALSE)","v":0},{"$f":"HLOOKUP(AL$7,$I$66:$DJ$120,ROWS($A$10:$A31)+2,FALSE)","v":1105},{"$f":"HLOOKUP(AM$7,$I$66:$DJ$120,ROWS($A$10:$A31)+2,FALSE)","v":232},{"$f":"HLOOKUP(AN$7,$I$66:$DJ$120,ROWS($A$10:$A31)+2,FALSE)","v":9627},{"$f":"HLOOKUP(AO$7,$I$66:$DJ$120,ROWS($A$10:$A31)+2,FALSE)","v":797},{"$f":"HLOOKUP(AP$7,$I$66:$DJ$120,ROWS($A$10:$A31)+2,FALSE)","v":9222},{"$f":"HLOOKUP(AQ$7,$I$66:$DJ$120,ROWS($A$10:$A31)+2,FALSE)","v":6686},{"$f":"HLOOKUP(AR$7,$I$66:$DJ$120,ROWS($A$10:$A31)+2,FALSE)","v":0},{"$f":"HLOOKUP(AS$7,$I$66:$DJ$120,ROWS($A$10:$A31)+2,FALSE)","v":3396},{"$f":"HLOOKUP(AT$7,$I$66:$DJ$120,ROWS($A$10:$A31)+2,FALSE)","v":845},{"$f":"HLOOKUP(AU$7,$I$66:$DJ$120,ROWS($A$10:$A31)+2,FALSE)","v":276},{"$f":"HLOOKUP(AV$7,$I$66:$DJ$120,ROWS($A$10:$A31)+2,FALSE)","v":14158},{"$f":"HLOOKUP(AW$7,$I$66:$DJ$120,ROWS($A$10:$A31)+2,FALSE)","v":197},{"$f":"HLOOKUP(AX$7,$I$66:$DJ$120,ROWS($A$10:$A31)+2,FALSE)","v":2882},{"$f":"HLOOKUP(AY$7,$I$66:$DJ$120,ROWS($A$10:$A31)+2,FALSE)","v":0},{"$f":"HLOOKUP(AZ$7,$I$66:$DJ$120,ROWS($A$10:$A31)+2,FALSE)","v":1942},{"$f":"HLOOKUP(BA$7,$I$66:$DJ$120,ROWS($A$10:$A31)+2,FALSE)","v":3619},{"$f":"HLOOKUP(BB$7,$I$66:$DJ$120,ROWS($A$10:$A31)+2,FALSE)","v":223},{"$f":"HLOOKUP(BC$7,$I$66:$DJ$120,ROWS($A$10:$A31)+2,FALSE)","v":40},{"$f":"HLOOKUP(BD$7,$I$66:$DJ$120,ROWS($A$10:$A31)+2,FALSE)","v":22089},{"$f":"HLOOKUP(BE$7,$I$66:$DJ$120,ROWS($A$10:$A31)+2,FALSE)","v":1525},{"$f":"HLOOKUP(BF$7,$I$66:$DJ$120,ROWS($A$10:$A31)+2,FALSE)","v":2027},{"$f":"HLOOKUP(BG$7,$I$66:$DJ$120,ROWS($A$10:$A31)+2,FALSE)","v":353},{"$f":"HLOOKUP(BH$7,$I$66:$DJ$120,ROWS($A$10:$A31)+2,FALSE)","v":80},{"$f":"HLOOKUP(BI$7,$I$66:$DJ$120,ROWS($A$10:$A31)+2,FALSE)","v":779},{"$f":"HLOOKUP(BJ$7+0.5,$I$66:$DJ$120,ROWS($A$10:$A31)+2,FALSE)","v":9033},{"$f":"HLOOKUP(BK$7+0.5,$I$66:$DJ$120,ROWS($A$10:$A31)+2,FALSE)","v":128},{"$f":"HLOOKUP(BL$7+0.5,$I$66:$DJ$120,ROWS($A$10:$A31)+2,FALSE)","v":493},{"$f":"HLOOKUP(BM$7+0.5,$I$66:$DJ$120,ROWS($A$10:$A31)+2,FALSE)","v":604},{"$f":"HLOOKUP(BN$7+0.5,$I$66:$DJ$120,ROWS($A$10:$A31)+2,FALSE)","v":528},{"$f":"HLOOKUP(BO$7+0.5,$I$66:$DJ$120,ROWS($A$10:$A31)+2,FALSE)","v":1773},{"$f":"HLOOKUP(BP$7+0.5,$I$66:$DJ$120,ROWS($A$10:$A31)+2,FALSE)","v":837},{"$f":"HLOOKUP(BQ$7+0.5,$I$66:$DJ$120,ROWS($A$10:$A31)+2,FALSE)","v":903},{"$f":"HLOOKUP(BR$7+0.5,$I$66:$DJ$120,ROWS($A$10:$A31)+2,FALSE)","v":1916},{"$f":"HLOOKUP(BS$7+0.5,$I$66:$DJ$120,ROWS($A$10:$A31)+2,FALSE)","v":3025},{"$f":"HLOOKUP(BT$7+0.5,$I$66:$DJ$120,ROWS($A$10:$A31)+2,FALSE)","v":1691},{"$f":"HLOOKUP(BU$7+0.5,$I$66:$DJ$120,ROWS($A$10:$A31)+2,FALSE)","v":1789},{"$f":"HLOOKUP(BV$7+0.5,$I$66:$DJ$120,ROWS($A$10:$A31)+2,FALSE)","v":815},{"$f":"HLOOKUP(BW$7+0.5,$I$66:$DJ$120,ROWS($A$10:$A31)+2,FALSE)","v":366},{"$f":"HLOOKUP(BX$7+0.5,$I$66:$DJ$120,ROWS($A$10:$A31)+2,FALSE)","v":1052},{"$f":"HLOOKUP(BY$7+0.5,$I$66:$DJ$120,ROWS($A$10:$A31)+2,FALSE)","v":791},{"$f":"HLOOKUP(BZ$7+0.5,$I$66:$DJ$120,ROWS($A$10:$A31)+2,FALSE)","v":146},{"$f":"HLOOKUP(CA$7+0.5,$I$66:$DJ$120,ROWS($A$10:$A31)+2,FALSE)","v":551},{"$f":"HLOOKUP(CB$7+0.5,$I$66:$DJ$120,ROWS($A$10:$A31)+2,FALSE)","v":671},{"$f":"HLOOKUP(CC$7+0.5,$I$66:$DJ$120,ROWS($A$10:$A31)+2,FALSE)","v":484},{"$f":"HLOOKUP(CD$7+0.5,$I$66:$DJ$120,ROWS($A$10:$A31)+2,FALSE)","v":1245},{"$f":"HLOOKUP(CE$7+0.5,$I$66:$DJ$120,ROWS($A$10:$A31)+2,FALSE)","v":"N/A"},{"$f":"HLOOKUP(CF$7+0.5,$I$66:$DJ$120,ROWS($A$10:$A31)+2,FALSE)","v":1341},{"$f":"HLOOKUP(CG$7+0.5,$I$66:$DJ$120,ROWS($A$10:$A31)+2,FALSE)","v":1273},{"$f":"HLOOKUP(CH$7+0.5,$I$66:$DJ$120,ROWS($A$10:$A31)+2,FALSE)","v":503},{"$f":"HLOOKUP(CI$7+0.5,$I$66:$DJ$120,ROWS($A$10:$A31)+2,FALSE)","v":825},{"$f":"HLOOKUP(CJ$7+0.5,$I$66:$DJ$120,ROWS($A$10:$A31)+2,FALSE)","v":944},{"$f":"HLOOKUP(CK$7+0.5,$I$66:$DJ$120,ROWS($A$10:$A31)+2,FALSE)","v":103},{"$f":"HLOOKUP(CL$7+0.5,$I$66:$DJ$120,ROWS($A$10:$A31)+2,FALSE)","v":204},{"$f":"HLOOKUP(CM$7+0.5,$I$66:$DJ$120,ROWS($A$10:$A31)+2,FALSE)","v":1033},{"$f":"HLOOKUP(CN$7+0.5,$I$66:$DJ$120,ROWS($A$10:$A31)+2,FALSE)","v":160},{"$f":"HLOOKUP(CO$7+0.5,$I$66:$DJ$120,ROWS($A$10:$A31)+2,FALSE)","v":1880},{"$f":"HLOOKUP(CP$7+0.5,$I$66:$DJ$120,ROWS($A$10:$A31)+2,FALSE)","v":676},{"$f":"HLOOKUP(CQ$7+0.5,$I$66:$DJ$120,ROWS($A$10:$A31)+2,FALSE)","v":2041},{"$f":"HLOOKUP(CR$7+0.5,$I$66:$DJ$120,ROWS($A$10:$A31)+2,FALSE)","v":2008},{"$f":"HLOOKUP(CS$7+0.5,$I$66:$DJ$120,ROWS($A$10:$A31)+2,FALSE)","v":204},{"$f":"HLOOKUP(CT$7+0.5,$I$66:$DJ$120,ROWS($A$10:$A31)+2,FALSE)","v":1110},{"$f":"HLOOKUP(CU$7+0.5,$I$66:$DJ$120,ROWS($A$10:$A31)+2,FALSE)","v":592},{"$f":"HLOOKUP(CV$7+0.5,$I$66:$DJ$120,ROWS($A$10:$A31)+2,FALSE)","v":247},{"$f":"HLOOKUP(CW$7+0.5,$I$66:$DJ$120,ROWS($A$10:$A31)+2,FALSE)","v":3380},{"$f":"HLOOKUP(CX$7+0.5,$I$66:$DJ$120,ROWS($A$10:$A31)+2,FALSE)","v":162},{"$f":"HLOOKUP(CY$7+0.5,$I$66:$DJ$120,ROWS($A$10:$A31)+2,FALSE)","v":1696},{"$f":"HLOOKUP(CZ$7+0.5,$I$66:$DJ$120,ROWS($A$10:$A31)+2,FALSE)","v":204},{"$f":"HLOOKUP(DA$7+0.5,$I$66:$DJ$120,ROWS($A$10:$A31)+2,FALSE)","v":1093},{"$f":"HLOOKUP(DB$7+0.5,$I$66:$DJ$120,ROWS($A$10:$A31)+2,FALSE)","v":1102},{"$f":"HLOOKUP(DC$7+0.5,$I$66:$DJ$120,ROWS($A$10:$A31)+2,FALSE)","v":230},{"$f":"HLOOKUP(DD$7+0.5,$I$66:$DJ$120,ROWS($A$10:$A31)+2,FALSE)","v":69},{"$f":"HLOOKUP(DE$7+0.5,$I$66:$DJ$120,ROWS($A$10:$A31)+2,FALSE)","v":3805},{"$f":"HLOOKUP(DF$7+0.5,$I$66:$DJ$120,ROWS($A$10:$A31)+2,FALSE)","v":611},{"$f":"HLOOKUP(DG$7+0.5,$I$66:$DJ$120,ROWS($A$10:$A31)+2,FALSE)","v":859},{"$f":"HLOOKUP(DH$7+0.5,$I$66:$DJ$120,ROWS($A$10:$A31)+2,FALSE)","v":514},{"$f":"HLOOKUP(DI$7+0.5,$I$66:$DJ$120,ROWS($A$10:$A31)+2,FALSE)","v":132},{"$f":"HLOOKUP(DJ$7+0.5,$I$66:$DJ$120,ROWS($A$10:$A31)+2,FALSE)","v":654}]
[null,"Massachusetts",6515057,3680,5658768,20357,656441,18778,{"$f":"HLOOKUP(I$7,$I$66:$DJ$120,ROWS($A$10:$A32)+2,FALSE)","v":139830},{"$f":"HLOOKUP(J$7,$I$66:$DJ$120,ROWS($A$10:$A32)+2,FALSE)","v":1201},{"$f":"HLOOKUP(K$7,$I$66:$DJ$120,ROWS($A$10:$A32)+2,FALSE)","v":225},{"$f":"HLOOKUP(L$7,$I$66:$DJ$120,ROWS($A$10:$A32)+2,FALSE)","v":1017},{"$f":"HLOOKUP(M$7,$I$66:$DJ$120,ROWS($A$10:$A32)+2,FALSE)","v":167},{"$f":"HLOOKUP(N$7,$I$66:$DJ$120,ROWS($A$10:$A32)+2,FALSE)","v":11556},{"$f":"HLOOKUP(O$7,$I$66:$DJ$120,ROWS($A$10:$A32)+2,FALSE)","v":1388},{"$f":"HLOOKUP(P$7,$I$66:$DJ$120,ROWS($A$10:$A32)+2,FALSE)","v":9445},{"$f":"HLOOKUP(Q$7,$I$66:$DJ$120,ROWS($A$10:$A32)+2,FALSE)","v":399},{"$f":"HLOOKUP(R$7,$I$66:$DJ$120,ROWS($A$10:$A32)+2,FALSE)","v":676},{"$f":"HLOOKUP(S$7,$I$66:$DJ$120,ROWS($A$10:$A32)+2,FALSE)","v":11396},{"$f":"HLOOKUP(T$7,$I$66:$DJ$120,ROWS($A$10:$A32)+2,FALSE)","v":3264},{"$f":"HLOOKUP(U$7,$I$66:$DJ$120,ROWS($A$10:$A32)+2,FALSE)","v":733},{"$f":"HLOOKUP(V$7,$I$66:$DJ$120,ROWS($A$10:$A32)+2,FALSE)","v":412},{"$f":"HLOOKUP(W$7,$I$66:$DJ$120,ROWS($A$10:$A32)+2,FALSE)","v":2991},{"$f":"HLOOKUP(X$7,$I$66:$DJ$120,ROWS($A$10:$A32)+2,FALSE)","v":640},{"$f":"HLOOKUP(Y$7,$I$66:$DJ$120,ROWS($A$10:$A32)+2,FALSE)","v":138},{"$f":"HLOOKUP(Z$7,$I$66:$DJ$120,ROWS($A$10:$A32)+2,FALSE)","v":969},{"$f":"HLOOKUP(AA$7,$I$66:$DJ$120,ROWS($A$10:$A32)+2,FALSE)","v":180},{"$f":"HLOOKUP(AB$7,$I$66:$DJ$120,ROWS($A$10:$A32)+2,FALSE)","v":977},{"$f":"HLOOKUP(AC$7,$I$66:$DJ$120,ROWS($A$10:$A32)+2,FALSE)","v":4006},{"$f":"HLOOKUP(AD$7,$I$66:$DJ$120,ROWS($A$10:$A32)+2,FALSE)","v":2762},{"$f":"HLOOKUP(AE$7,$I$66:$DJ$120,ROWS($A$10:$A32)+2,FALSE)","v":"N/A"},{"$f":"HLOOKUP(AF$7,$I$66:$DJ$120,ROWS($A$10:$A32)+2,FALSE)","v":2629},{"$f":"HLOOKUP(AG$7,$I$66:$DJ$120,ROWS($A$10:$A32)+2,FALSE)","v":862},{"$f":"HLOOKUP(AH$7,$I$66:$DJ$120,ROWS($A$10:$A32)+2,FALSE)","v":356},{"$f":"HLOOKUP(AI$7,$I$66:$DJ$120,ROWS($A$10:$A32)+2,FALSE)","v":1261},{"$f":"HLOOKUP(AJ$7,$I$66:$DJ$120,ROWS($A$10:$A32)+2,FALSE)","v":596},{"$f":"HLOOKUP(AK$7,$I$66:$DJ$120,ROWS($A$10:$A32)+2,FALSE)","v":637},{"$f":"HLOOKUP(AL$7,$I$66:$DJ$120,ROWS($A$10:$A32)+2,FALSE)","v":163},{"$f":"HLOOKUP(AM$7,$I$66:$DJ$120,ROWS($A$10:$A32)+2,FALSE)","v":12010},{"$f":"HLOOKUP(AN$7,$I$66:$DJ$120,ROWS($A$10:$A32)+2,FALSE)","v":8332},{"$f":"HLOOKUP(AO$7,$I$66:$DJ$120,ROWS($A$10:$A32)+2,FALSE)","v":199},{"$f":"HLOOKUP(AP$7,$I$66:$DJ$120,ROWS($A$10:$A32)+2,FALSE)","v":19431},{"$f":"HLOOKUP(AQ$7,$I$66:$DJ$120,ROWS($A$10:$A32)+2,FALSE)","v":3964},{"$f":"HLOOKUP(AR$7,$I$66:$DJ$120,ROWS($A$10:$A32)+2,FALSE)","v":61},{"$f":"HLOOKUP(AS$7,$I$66:$DJ$120,ROWS($A$10:$A32)+2,FALSE)","v":1757},{"$f":"HLOOKUP(AT$7,$I$66:$DJ$120,ROWS($A$10:$A32)+2,FALSE)","v":90},{"$f":"HLOOKUP(AU$7,$I$66:$DJ$120,ROWS($A$10:$A32)+2,FALSE)","v":178},{"$f":"HLOOKUP(AV$7,$I$66:$DJ$120,ROWS($A$10:$A32)+2,FALSE)","v":6538},{"$f":"HLOOKUP(AW$7,$I$66:$DJ$120,ROWS($A$10:$A32)+2,FALSE)","v":10182},{"$f":"HLOOKUP(AX$7,$I$66:$DJ$120,ROWS($A$10:$A32)+2,FALSE)","v":1621},{"$f":"HLOOKUP(AY$7,$I$66:$DJ$120,ROWS($A$10:$A32)+2,FALSE)","v":44},{"$f":"HLOOKUP(AZ$7,$I$66:$DJ$120,ROWS($A$10:$A32)+2,FALSE)","v":371},{"$f":"HLOOKUP(BA$7,$I$66:$DJ$120,ROWS($A$10:$A32)+2,FALSE)","v":5203},{"$f":"HLOOKUP(BB$7,$I$66:$DJ$120,ROWS($A$10:$A32)+2,FALSE)","v":548},{"$f":"HLOOKUP(BC$7,$I$66:$DJ$120,ROWS($A$10:$A32)+2,FALSE)","v":2246},{"$f":"HLOOKUP(BD$7,$I$66:$DJ$120,ROWS($A$10:$A32)+2,FALSE)","v":2984},{"$f":"HLOOKUP(BE$7,$I$66:$DJ$120,ROWS($A$10:$A32)+2,FALSE)","v":1673},{"$f":"HLOOKUP(BF$7,$I$66:$DJ$120,ROWS($A$10:$A32)+2,FALSE)","v":911},{"$f":"HLOOKUP(BG$7,$I$66:$DJ$120,ROWS($A$10:$A32)+2,FALSE)","v":441},{"$f":"HLOOKUP(BH$7,$I$66:$DJ$120,ROWS($A$10:$A32)+2,FALSE)","v":0},{"$f":"HLOOKUP(BI$7,$I$66:$DJ$120,ROWS($A$10:$A32)+2,FALSE)","v":4413},{"$f":"HLOOKUP(BJ$7+0.5,$I$66:$DJ$120,ROWS($A$10:$A32)+2,FALSE)","v":8282},{"$f":"HLOOKUP(BK$7+0.5,$I$66:$DJ$120,ROWS($A$10:$A32)+2,FALSE)","v":1083},{"$f":"HLOOKUP(BL$7+0.5,$I$66:$DJ$120,ROWS($A$10:$A32)+2,FALSE)","v":345},{"$f":"HLOOKUP(BM$7+0.5,$I$66:$DJ$120,ROWS($A$10:$A32)+2,FALSE)","v":518},{"$f":"HLOOKUP(BN$7+0.5,$I$66:$DJ$120,ROWS($A$10:$A32)+2,FALSE)","v":201},{"$f":"HLOOKUP(BO$7+0.5,$I$66:$DJ$120,ROWS($A$10:$A32)+2,FALSE)","v":2290},{"$f":"HLOOKUP(BP$7+0.5,$I$66:$DJ$120,ROWS($A$10:$A32)+2,FALSE)","v":972},{"$f":"HLOOKUP(BQ$7+0.5,$I$66:$DJ$120,ROWS($A$10:$A32)+2,FALSE)","v":1884},{"$f":"HLOOKUP(BR$7+0.5,$I$66:$DJ$120,ROWS($A$10:$A32)+2,FALSE)","v":579},{"$f":"HLOOKUP(BS$7+0.5,$I$66:$DJ$120,ROWS($A$10:$A32)+2,FALSE)","v":358},{"$f":"HLOOKUP(BT$7+0.5,$I$66:$DJ$120,ROWS($A$10:$A32)+2,FALSE)","v":2715},{"$f":"HLOOKUP(BU$7+0.5,$I$66:$DJ$120,ROWS($A$10:$A32)+2,FALSE)","v":1666},{"$f":"HLOOKUP(BV$7+0.5,$I$66:$DJ$120,ROWS($A$10:$A32)+2,FALSE)","v":860},{"$f":"HLOOKUP(BW$7+0.5,$I$66:$DJ$120,ROWS($A$10:$A32)+2,FALSE)","v":695},{"$f":"HLOOKUP(BX$7+0.5,$I$66:$DJ$120,ROWS($A$10:$A32)+2,FALSE)","v":899},{"$f":"HLOOKUP(BY$7+0.5,$I$66:$DJ$120,ROWS($A$10:$A32)+2,FALSE)","v":456},{"$f":"HLOOKUP(BZ$7+0.5,$I$66:$DJ$120,ROWS($A$10:$A32)+2,FALSE)","v":136},{"$f":"HLOOKUP(CA$7+0.5,$I$66:$DJ$120,ROWS($A$10:$A32)+2,FALSE)","v":867},{"$f":"HLOOKUP(CB$7+0.5,$I$66:$DJ$120,ROWS($A$10:$A32)+2,FALSE)","v":203},{"$f":"HLOOKUP(CC$7+0.5,$I$66:$DJ$120,ROWS($A$10:$A32)+2,FALSE)","v":1200},{"$f":"HLOOKUP(CD$7+0.5,$I$66:$DJ$120,ROWS($A$10:$A32)+2,FALSE)","v":1526},{"$f":"HLOOKUP(CE$7+0.5,$I$66:$DJ$120,ROWS($A$10:$A32)+2,FALSE)","v":2048},{"$f":"HLOOKUP(CF$7+0.5,$I$66:$DJ$120,ROWS($A$10:$A32)+2,FALSE)","v":"N/A"},{"$f":"HLOOKUP(CG$7+0.5,$I$66:$DJ$120,ROWS($A$10:$A32)+2,FALSE)","v":1245},{"$f":"HLOOKUP(CH$7+0.5,$I$66:$DJ$120,ROWS($A$10:$A32)+2,FALSE)","v":537},{"$f":"HLOOKUP(CI$7+0.5,$I$66:$DJ$120,ROWS($A$10:$A32)+2,FALSE)","v":567},{"$f":"HLOOKUP(CJ$7+0.5,$I$66:$DJ$120,ROWS($A$10:$A32)+2,FALSE)","v":654},{"$f":"HLOOKUP(CK$7+0.5,$I$66:$DJ$120,ROWS($A$10:$A32)+2,FALSE)","v":719},{"$f":"HLOOKUP(CL$7+0.5,$I$66:$DJ$120,ROWS($A$10:$A32)+2,FALSE)","v":727},{"$f":"HLOOKUP(CM$7+0.5,$I$66:$DJ$120,ROWS($A$10:$A32)+2,FALSE)","v":158},{"$f":"HLOOKUP(CN$7+0.5,$I$66:$DJ$120,ROWS($A$10:$A32)+2,FALSE)","v":2630},{"$f":"HLOOKUP(CO$7+0.5,$I$66:$DJ$120,ROWS($A$10:$A32)+2,FALSE)","v":1949},{"$f":"HLOOKUP(CP$7+0.5,$I$66:$DJ$120,ROWS($A$10:$A32)+2,FALSE)","v":276},{"$f":"HLOOKUP(CQ$7+0.5,$I$66:$DJ$120,ROWS($A$10:$A32)+2,FALSE)","v":3914},{"$f":"HLOOKUP(CR$7+0.5,$I$66:$DJ$120,ROWS($A$10:$A32)+2,FALSE)","v":1384},{"$f":"HLOOKUP(CS$7+0.5,$I$66:$DJ$120,ROWS($A$10:$A32)+2,FALSE)","v":111},{"$f":"HLOOKUP(CT$7+0.5,$I$66:$DJ$120,ROWS($A$10:$A32)+2,FALSE)","v":681},{"$f":"HLOOKUP(CU$7+0.5,$I$66:$DJ$120,ROWS($A$10:$A32)+2,FALSE)","v":123},{"$f":"HLOOKUP(CV$7+0.5,$I$66:$DJ$120,ROWS($A$10:$A32)+2,FALSE)","v":220},{"$f":"HLOOKUP(CW$7+0.5,$I$66:$DJ$120,ROWS($A$10:$A32)+2,FALSE)","v":1883},{"$f":"HLOOKUP(CX$7+0.5,$I$66:$DJ$120,ROWS($A$10:$A32)+2,FALSE)","v":2144},{"$f":"HLOOKUP(CY$7+0.5,$I$66:$DJ$120,ROWS($A$10:$A32)+2,FALSE)","v":989},{"$f":"HLOOKUP(CZ$7+0.5,$I$66:$DJ$120,ROWS($A$10:$A32)+2,FALSE)","v":72},{"$f":"HLOOKUP(DA$7+0.5,$I$66:$DJ$120,ROWS($A$10:$A32)+2,FALSE)","v":355},{"$f":"HLOOKUP(DB$7+0.5,$I$66:$DJ$120,ROWS($A$10:$A32)+2,FALSE)","v":1491},{"$f":"HLOOKUP(DC$7+0.5,$I$66:$DJ$120,ROWS($A$10:$A32)+2,FALSE)","v":411},{"$f":"HLOOKUP(DD$7+0.5,$I$66:$DJ$120,ROWS($A$10:$A32)+2,FALSE)","v":944},{"$f":"HLOOKUP(DE$7+0.5,$I$66:$DJ$120,ROWS($A$10:$A32)+2,FALSE)","v":1241},{"$f":"HLOOKUP(DF$7+0.5,$I$66:$DJ$120,ROWS($A$10:$A32)+2,FALSE)","v":741},{"$f":"HLOOKUP(DG$7+0.5,$I$66:$DJ$120,ROWS($A$10:$A32)+2,FALSE)","v":855},{"$f":"HLOOKUP(DH$7+0.5,$I$66:$DJ$120,ROWS($A$10:$A32)+2,FALSE)","v":311},{"$f":"HLOOKUP(DI$7+0.5,$I$66:$DJ$120,ROWS($A$10:$A32)+2,FALSE)","v":204},{"$f":"HLOOKUP(DJ$7+0.5,$I$66:$DJ$120,ROWS($A$10:$A32)+2,FALSE)","v":1542}]
[null,"Michigan",9766574,4376,8340767,29076,1242917,25401,{"$f":"HLOOKUP(I$7,$I$66:$DJ$120,ROWS($A$10:$A33)+2,FALSE)","v":139158},{"$f":"HLOOKUP(J$7,$I$66:$DJ$120,ROWS($A$10:$A33)+2,FALSE)","v":3527},{"$f":"HLOOKUP(K$7,$I$66:$DJ$120,ROWS($A$10:$A33)+2,FALSE)","v":3456},{"$f":"HLOOKUP(L$7,$I$66:$DJ$120,ROWS($A$10:$A33)+2,FALSE)","v":3840},{"$f":"HLOOKUP(M$7,$I$66:$DJ$120,ROWS($A$10:$A33)+2,FALSE)","v":2054},{"$f":"HLOOKUP(N$7,$I$66:$DJ$120,ROWS($A$10:$A33)+2,FALSE)","v":7793},{"$f":"HLOOKUP(O$7,$I$66:$DJ$120,ROWS($A$10:$A33)+2,FALSE)","v":3425},{"$f":"HLOOKUP(P$7,$I$66:$DJ$120,ROWS($A$10:$A33)+2,FALSE)","v":1656},{"$f":"HLOOKUP(Q$7,$I$66:$DJ$120,ROWS($A$10:$A33)+2,FALSE)","v":0},{"$f":"HLOOKUP(R$7,$I$66:$DJ$120,ROWS($A$10:$A33)+2,FALSE)","v":256},{"$f":"HLOOKUP(S$7,$I$66:$DJ$120,ROWS($A$10:$A33)+2,FALSE)","v":17712},{"$f":"HLOOKUP(T$7,$I$66:$DJ$120,ROWS($A$10:$A33)+2,FALSE)","v":4254},{"$f":"HLOOKUP(U$7,$I$66:$DJ$120,ROWS($A$10:$A33)+2,FALSE)","v":630},{"$f":"HLOOKUP(V$7,$I$66:$DJ$120,ROWS($A$10:$A33)+2,FALSE)","v":882},{"$f":"HLOOKUP(W$7,$I$66:$DJ$120,ROWS($A$10:$A33)+2,FALSE)","v":9897},{"$f":"HLOOKUP(X$7,$I$66:$DJ$120,ROWS($A$10:$A33)+2,FALSE)","v":7668},{"$f":"HLOOKUP(Y$7,$I$66:$DJ$120,ROWS($A$10:$A33)+2,FALSE)","v":1709},{"$f":"HLOOKUP(Z$7,$I$66:$DJ$120,ROWS($A$10:$A33)+2,FALSE)","v":1148},{"$f":"HLOOKUP(AA$7,$I$66:$DJ$120,ROWS($A$10:$A33)+2,FALSE)","v":2578},{"$f":"HLOOKUP(AB$7,$I$66:$DJ$120,ROWS($A$10:$A33)+2,FALSE)","v":955},{"$f":"HLOOKUP(AC$7,$I$66:$DJ$120,ROWS($A$10:$A33)+2,FALSE)","v":599},{"$f":"HLOOKUP(AD$7,$I$66:$DJ$120,ROWS($A$10:$A33)+2,FALSE)","v":1035},{"$f":"HLOOKUP(AE$7,$I$66:$DJ$120,ROWS($A$10:$A33)+2,FALSE)","v":2861},{"$f":"HLOOKUP(AF$7,$I$66:$DJ$120,ROWS($A$10:$A33)+2,FALSE)","v":"N/A"},{"$f":"HLOOKUP(AG$7,$I$66:$DJ$120,ROWS($A$10:$A33)+2,FALSE)","v":2671},{"$f":"HLOOKUP(AH$7,$I$66:$DJ$120,ROWS($A$10:$A33)+2,FALSE)","v":715},{"$f":"HLOOKUP(AI$7,$I$66:$DJ$120,ROWS($A$10:$A33)+2,FALSE)","v":2509},{"$f":"HLOOKUP(AJ$7,$I$66:$DJ$120,ROWS($A$10:$A33)+2,FALSE)","v":84},{"$f":"HLOOKUP(AK$7,$I$66:$DJ$120,ROWS($A$10:$A33)+2,FALSE)","v":439},{"$f":"HLOOKUP(AL$7,$I$66:$DJ$120,ROWS($A$10:$A33)+2,FALSE)","v":1215},{"$f":"HLOOKUP(AM$7,$I$66:$DJ$120,ROWS($A$10:$A33)+2,FALSE)","v":73},{"$f":"HLOOKUP(AN$7,$I$66:$DJ$120,ROWS($A$10:$A33)+2,FALSE)","v":1849},{"$f":"HLOOKUP(AO$7,$I$66:$DJ$120,ROWS($A$10:$A33)+2,FALSE)","v":508},{"$f":"HLOOKUP(AP$7,$I$66:$DJ$120,ROWS($A$10:$A33)+2,FALSE)","v":6087},{"$f":"HLOOKUP(AQ$7,$I$66:$DJ$120,ROWS($A$10:$A33)+2,FALSE)","v":3405},{"$f":"HLOOKUP(AR$7,$I$66:$DJ$120,ROWS($A$10:$A33)+2,FALSE)","v":159},{"$f":"HLOOKUP(AS$7,$I$66:$DJ$120,ROWS($A$10:$A33)+2,FALSE)","v":11224},{"$f":"HLOOKUP(AT$7,$I$66:$DJ$120,ROWS($A$10:$A33)+2,FALSE)","v":917},{"$f":"HLOOKUP(AU$7,$I$66:$DJ$120,ROWS($A$10:$A33)+2,FALSE)","v":647},{"$f":"HLOOKUP(AV$7,$I$66:$DJ$120,ROWS($A$10:$A33)+2,FALSE)","v":2864},{"$f":"HLOOKUP(AW$7,$I$66:$DJ$120,ROWS($A$10:$A33)+2,FALSE)","v":385},{"$f":"HLOOKUP(AX$7,$I$66:$DJ$120,ROWS($A$10:$A33)+2,FALSE)","v":2185},{"$f":"HLOOKUP(AY$7,$I$66:$DJ$120,ROWS($A$10:$A33)+2,FALSE)","v":571},{"$f":"HLOOKUP(AZ$7,$I$66:$DJ$120,ROWS($A$10:$A33)+2,FALSE)","v":3106},{"$f":"HLOOKUP(BA$7,$I$66:$DJ$120,ROWS($A$10:$A33)+2,FALSE)","v":9935},{"$f":"HLOOKUP(BB$7,$I$66:$DJ$120,ROWS($A$10:$A33)+2,FALSE)","v":642},{"$f":"HLOOKUP(BC$7,$I$66:$DJ$120,ROWS($A$10:$A33)+2,FALSE)","v":0},{"$f":"HLOOKUP(BD$7,$I$66:$DJ$120,ROWS($A$10:$A33)+2,FALSE)","v":2327},{"$f":"HLOOKUP(BE$7,$I$66:$DJ$120,ROWS($A$10:$A33)+2,FALSE)","v":1430},{"$f":"HLOOKUP(BF$7,$I$66:$DJ$120,ROWS($A$10:$A33)+2,FALSE)","v":417},{"$f":"HLOOKUP(BG$7,$I$66:$DJ$120,ROWS($A$10:$A33)+2,FALSE)","v":4018},{"$f":"HLOOKUP(BH$7,$I$66:$DJ$120,ROWS($A$10:$A33)+2,FALSE)","v":841},{"$f":"HLOOKUP(BI$7,$I$66:$DJ$120,ROWS($A$10:$A33)+2,FALSE)","v":908},{"$f":"HLOOKUP(BJ$7+0.5,$I$66:$DJ$120,ROWS($A$10:$A33)+2,FALSE)","v":8465},{"$f":"HLOOKUP(BK$7+0.5,$I$66:$DJ$120,ROWS($A$10:$A33)+2,FALSE)","v":2060},{"$f":"HLOOKUP(BL$7+0.5,$I$66:$DJ$120,ROWS($A$10:$A33)+2,FALSE)","v":1793},{"$f":"HLOOKUP(BM$7+0.5,$I$66:$DJ$120,ROWS($A$10:$A33)+2,FALSE)","v":1382},{"$f":"HLOOKUP(BN$7+0.5,$I$66:$DJ$120,ROWS($A$10:$A33)+2,FALSE)","v":1024},{"$f":"HLOOKUP(BO$7+0.5,$I$66:$DJ$120,ROWS($A$10:$A33)+2,FALSE)","v":1752},{"$f":"HLOOKUP(BP$7+0.5,$I$66:$DJ$120,ROWS($A$10:$A33)+2,FALSE)","v":1462},{"$f":"HLOOKUP(BQ$7+0.5,$I$66:$DJ$120,ROWS($A$10:$A33)+2,FALSE)","v":1087},{"$f":"HLOOKUP(BR$7+0.5,$I$66:$DJ$120,ROWS($A$10:$A33)+2,FALSE)","v":167},{"$f":"HLOOKUP(BS$7+0.5,$I$66:$DJ$120,ROWS($A$10:$A33)+2,FALSE)","v":259},{"$f":"HLOOKUP(BT$7+0.5,$I$66:$DJ$120,ROWS($A$10:$A33)+2,FALSE)","v":3844},{"$f":"HLOOKUP(BU$7+0.5,$I$66:$DJ$120,ROWS($A$10:$A33)+2,FALSE)","v":1566},{"$f":"HLOOKUP(BV$7+0.5,$I$66:$DJ$120,ROWS($A$10:$A33)+2,FALSE)","v":469},{"$f":"HLOOKUP(BW$7+0.5,$I$66:$DJ$120,ROWS($A$10:$A33)+2,FALSE)","v":675},{"$f":"HLOOKUP(BX$7+0.5,$I$66:$DJ$120,ROWS($A$10:$A33)+2,FALSE)","v":1863},{"$f":"HLOOKUP(BY$7+0.5,$I$66:$DJ$120,ROWS($A$10:$A33)+2,FALSE)","v":1841},{"$f":"HLOOKUP(BZ$7+0.5,$I$66:$DJ$120,ROWS($A$10:$A33)+2,FALSE)","v":1026},{"$f":"HLOOKUP(CA$7+0.5,$I$66:$DJ$120,ROWS($A$10:$A33)+2,FALSE)","v":867},{"$f":"HLOOKUP(CB$7+0.5,$I$66:$DJ$120,ROWS($A$10:$A33)+2,FALSE)","v":1158},{"$f":"HLOOKUP(CC$7+0.5,$I$66:$DJ$120,ROWS($A$10:$A33)+2,FALSE)","v":556},{"$f":"HLOOKUP(CD$7+0.5,$I$66:$DJ$120,ROWS($A$10:$A33)+2,FALSE)","v":735},{"$f":"HLOOKUP(CE$7+0.5,$I$66:$DJ$120,ROWS($A$10:$A33)+2,FALSE)","v":431},{"$f":"HLOOKUP(CF$7+0.5,$I$66:$DJ$120,ROWS($A$10:$A33)+2,FALSE)","v":1135},{"$f":"HLOOKUP(CG$7+0.5,$I$66:$DJ$120,ROWS($A$10:$A33)+2,FALSE)","v":"N/A"},{"$f":"HLOOKUP(CH$7+0.5,$I$66:$DJ$120,ROWS($A$10:$A33)+2,FALSE)","v":1085},{"$f":"HLOOKUP(CI$7+0.5,$I$66:$DJ$120,ROWS($A$10:$A33)+2,FALSE)","v":558},{"$f":"HLOOKUP(CJ$7+0.5,$I$66:$DJ$120,ROWS($A$10:$A33)+2,FALSE)","v":1200},{"$f":"HLOOKUP(CK$7+0.5,$I$66:$DJ$120,ROWS($A$10:$A33)+2,FALSE)","v":105},{"$f":"HLOOKUP(CL$7+0.5,$I$66:$DJ$120,ROWS($A$10:$A33)+2,FALSE)","v":312},{"$f":"HLOOKUP(CM$7+0.5,$I$66:$DJ$120,ROWS($A$10:$A33)+2,FALSE)","v":610},{"$f":"HLOOKUP(CN$7+0.5,$I$66:$DJ$120,ROWS($A$10:$A33)+2,FALSE)","v":120},{"$f":"HLOOKUP(CO$7+0.5,$I$66:$DJ$120,ROWS($A$10:$A33)+2,FALSE)","v":779},{"$f":"HLOOKUP(CP$7+0.5,$I$66:$DJ$120,ROWS($A$10:$A33)+2,FALSE)","v":367},{"$f":"HLOOKUP(CQ$7+0.5,$I$66:$DJ$120,ROWS($A$10:$A33)+2,FALSE)","v":2170},{"$f":"HLOOKUP(CR$7+0.5,$I$66:$DJ$120,ROWS($A$10:$A33)+2,FALSE)","v":1427},{"$f":"HLOOKUP(CS$7+0.5,$I$66:$DJ$120,ROWS($A$10:$A33)+2,FALSE)","v":164},{"$f":"HLOOKUP(CT$7+0.5,$I$66:$DJ$120,ROWS($A$10:$A33)+2,FALSE)","v":2069},{"$f":"HLOOKUP(CU$7+0.5,$I$66:$DJ$120,ROWS($A$10:$A33)+2,FALSE)","v":570},{"$f":"HLOOKUP(CV$7+0.5,$I$66:$DJ$120,ROWS($A$10:$A33)+2,FALSE)","v":324},{"$f":"HLOOKUP(CW$7+0.5,$I$66:$DJ$120,ROWS($A$10:$A33)+2,FALSE)","v":1095},{"$f":"HLOOKUP(CX$7+0.5,$I$66:$DJ$120,ROWS($A$10:$A33)+2,FALSE)","v":377},{"$f":"HLOOKUP(CY$7+0.5,$I$66:$DJ$120,ROWS($A$10:$A33)+2,FALSE)","v":1094},{"$f":"HLOOKUP(CZ$7+0.5,$I$66:$DJ$120,ROWS($A$10:$A33)+2,FALSE)","v":599},{"$f":"HLOOKUP(DA$7+0.5,$I$66:$DJ$120,ROWS($A$10:$A33)+2,FALSE)","v":973},{"$f":"HLOOKUP(DB$7+0.5,$I$66:$DJ$120,ROWS($A$10:$A33)+2,FALSE)","v":2208},{"$f":"HLOOKUP(DC$7+0.5,$I$66:$DJ$120,ROWS($A$10:$A33)+2,FALSE)","v":582},{"$f":"HLOOKUP(DD$7+0.5,$I$66:$DJ$120,ROWS($A$10:$A33)+2,FALSE)","v":167},{"$f":"HLOOKUP(DE$7+0.5,$I$66:$DJ$120,ROWS($A$10:$A33)+2,FALSE)","v":834},{"$f":"HLOOKUP(DF$7+0.5,$I$66:$DJ$120,ROWS($A$10:$A33)+2,FALSE)","v":669},{"$f":"HLOOKUP(DG$7+0.5,$I$66:$DJ$120,ROWS($A$10:$A33)+2,FALSE)","v":301},{"$f":"HLOOKUP(DH$7+0.5,$I$66:$DJ$120,ROWS($A$10:$A33)+2,FALSE)","v":1002},{"$f":"HLOOKUP(DI$7+0.5,$I$66:$DJ$120,ROWS($A$10:$A33)+2,FALSE)","v":655},{"$f":"HLOOKUP(DJ$7+0.5,$I$66:$DJ$120,ROWS($A$10:$A33)+2,FALSE)","v":857}]
[null,"Minnesota",5277329,3380,4505462,20788,646176,19647,{"$f":"HLOOKUP(I$7,$I$66:$DJ$120,ROWS($A$10:$A34)+2,FALSE)","v":101029},{"$f":"HLOOKUP(J$7,$I$66:$DJ$120,ROWS($A$10:$A34)+2,FALSE)","v":123},{"$f":"HLOOKUP(K$7,$I$66:$DJ$120,ROWS($A$10:$A34)+2,FALSE)","v":893},{"$f":"HLOOKUP(L$7,$I$66:$DJ$120,ROWS($A$10:$A34)+2,FALSE)","v":2314},{"$f":"HLOOKUP(M$7,$I$66:$DJ$120,ROWS($A$10:$A34)+2,FALSE)","v":951},{"$f":"HLOOKUP(N$7,$I$66:$DJ$120,ROWS($A$10:$A34)+2,FALSE)","v":6638},{"$f":"HLOOKUP(O$7,$I$66:$DJ$120,ROWS($A$10:$A34)+2,FALSE)","v":2662},{"$f":"HLOOKUP(P$7,$I$66:$DJ$120,ROWS($A$10:$A34)+2,FALSE)","v":74},{"$f":"HLOOKUP(Q$7,$I$66:$DJ$120,ROWS($A$10:$A34)+2,FALSE)","v":86},{"$f":"HLOOKUP(R$7,$I$66:$DJ$120,ROWS($A$10:$A34)+2,FALSE)","v":367},{"$f":"HLOOKUP(S$7,$I$66:$DJ$120,ROWS($A$10:$A34)+2,FALSE)","v":2820},{"$f":"HLOOKUP(T$7,$I$66:$DJ$120,ROWS($A$10:$A34)+2,FALSE)","v":840},{"$f":"HLOOKUP(U$7,$I$66:$DJ$120,ROWS($A$10:$A34)+2,FALSE)","v":901},{"$f":"HLOOKUP(V$7,$I$66:$DJ$120,ROWS($A$10:$A34)+2,FALSE)","v":402},{"$f":"HLOOKUP(W$7,$I$66:$DJ$120,ROWS($A$10:$A34)+2,FALSE)","v":8209},{"$f":"HLOOKUP(X$7,$I$66:$DJ$120,ROWS($A$10:$A34)+2,FALSE)","v":786},{"$f":"HLOOKUP(Y$7,$I$66:$DJ$120,ROWS($A$10:$A34)+2,FALSE)","v":6175},{"$f":"HLOOKUP(Z$7,$I$66:$DJ$120,ROWS($A$10:$A34)+2,FALSE)","v":606},{"$f":"HLOOKUP(AA$7,$I$66:$DJ$120,ROWS($A$10:$A34)+2,FALSE)","v":755},{"$f":"HLOOKUP(AB$7,$I$66:$DJ$120,ROWS($A$10:$A34)+2,FALSE)","v":573},{"$f":"HLOOKUP(AC$7,$I$66:$DJ$120,ROWS($A$10:$A34)+2,FALSE)","v":321},{"$f":"HLOOKUP(AD$7,$I$66:$DJ$120,ROWS($A$10:$A34)+2,FALSE)","v":424},{"$f":"HLOOKUP(AE$7,$I$66:$DJ$120,ROWS($A$10:$A34)+2,FALSE)","v":970},{"$f":"HLOOKUP(AF$7,$I$66:$DJ$120,ROWS($A$10:$A34)+2,FALSE)","v":5164},{"$f":"HLOOKUP(AG$7,$I$66:$DJ$120,ROWS($A$10:$A34)+2,FALSE)","v":"N/A"},{"$f":"HLOOKUP(AH$7,$I$66:$DJ$120,ROWS($A$10:$A34)+2,FALSE)","v":549},{"$f":"HLOOKUP(AI$7,$I$66:$DJ$120,ROWS($A$10:$A34)+2,FALSE)","v":1345},{"$f":"HLOOKUP(AJ$7,$I$66:$DJ$120,ROWS($A$10:$A34)+2,FALSE)","v":1457},{"$f":"HLOOKUP(AK$7,$I$66:$DJ$120,ROWS($A$10:$A34)+2,FALSE)","v":1936},{"$f":"HLOOKUP(AL$7,$I$66:$DJ$120,ROWS($A$10:$A34)+2,FALSE)","v":2682},{"$f":"HLOOKUP(AM$7,$I$66:$DJ$120,ROWS($A$10:$A34)+2,FALSE)","v":21},{"$f":"HLOOKUP(AN$7,$I$66:$DJ$120,ROWS($A$10:$A34)+2,FALSE)","v":631},{"$f":"HLOOKUP(AO$7,$I$66:$DJ$120,ROWS($A$10:$A34)+2,FALSE)","v":540},{"$f":"HLOOKUP(AP$7,$I$66:$DJ$120,ROWS($A$10:$A34)+2,FALSE)","v":2416},{"$f":"HLOOKUP(AQ$7,$I$66:$DJ$120,ROWS($A$10:$A34)+2,FALSE)","v":845},{"$f":"HLOOKUP(AR$7,$I$66:$DJ$120,ROWS($A$10:$A34)+2,FALSE)","v":7574},{"$f":"HLOOKUP(AS$7,$I$66:$DJ$120,ROWS($A$10:$A34)+2,FALSE)","v":1961},{"$f":"HLOOKUP(AT$7,$I$66:$DJ$120,ROWS($A$10:$A34)+2,FALSE)","v":546},{"$f":"HLOOKUP(AU$7,$I$66:$DJ$120,ROWS($A$10:$A34)+2,FALSE)","v":1800},{"$f":"HLOOKUP(AV$7,$I$66:$DJ$120,ROWS($A$10:$A34)+2,FALSE)","v":870},{"$f":"HLOOKUP(AW$7,$I$66:$DJ$120,ROWS($A$10:$A34)+2,FALSE)","v":0},{"$f":"HLOOKUP(AX$7,$I$66:$DJ$120,ROWS($A$10:$A34)+2,FALSE)","v":447},{"$f":"HLOOKUP(AY$7,$I$66:$DJ$120,ROWS($A$10:$A34)+2,FALSE)","v":5305},{"$f":"HLOOKUP(AZ$7,$I$66:$DJ$120,ROWS($A$10:$A34)+2,FALSE)","v":874},{"$f":"HLOOKUP(BA$7,$I$66:$DJ$120,ROWS($A$10:$A34)+2,FALSE)","v":3062},{"$f":"HLOOKUP(BB$7,$I$66:$DJ$120,ROWS($A$10:$A34)+2,FALSE)","v":919},{"$f":"HLOOKUP(BC$7,$I$66:$DJ$120,ROWS($A$10:$A34)+2,FALSE)","v":177},{"$f":"HLOOKUP(BD$7,$I$66:$DJ$120,ROWS($A$10:$A34)+2,FALSE)","v":1034},{"$f":"HLOOKUP(BE$7,$I$66:$DJ$120,ROWS($A$10:$A34)+2,FALSE)","v":1413},{"$f":"HLOOKUP(BF$7,$I$66:$DJ$120,ROWS($A$10:$A34)+2,FALSE)","v":92},{"$f":"HLOOKUP(BG$7,$I$66:$DJ$120,ROWS($A$10:$A34)+2,FALSE)","v":19255},{"$f":"HLOOKUP(BH$7,$I$66:$DJ$120,ROWS($A$10:$A34)+2,FALSE)","v":224},{"$f":"HLOOKUP(BI$7,$I$66:$DJ$120,ROWS($A$10:$A34)+2,FALSE)","v":54},{"$f":"HLOOKUP(BJ$7+0.5,$I$66:$DJ$120,ROWS($A$10:$A34)+2,FALSE)","v":7052},{"$f":"HLOOKUP(BK$7+0.5,$I$66:$DJ$120,ROWS($A$10:$A34)+2,FALSE)","v":150},{"$f":"HLOOKUP(BL$7+0.5,$I$66:$DJ$120,ROWS($A$10:$A34)+2,FALSE)","v":619},{"$f":"HLOOKUP(BM$7+0.5,$I$66:$DJ$120,ROWS($A$10:$A34)+2,FALSE)","v":1071},{"$f":"HLOOKUP(BN$7+0.5,$I$66:$DJ$120,ROWS($A$10:$A34)+2,FALSE)","v":599},{"$f":"HLOOKUP(BO$7+0.5,$I$66:$DJ$120,ROWS($A$10:$A34)+2,FALSE)","v":2072},{"$f":"HLOOKUP(BP$7+0.5,$I$66:$DJ$120,ROWS($A$10:$A34)+2,FALSE)","v":1023},{"$f":"HLOOKUP(BQ$7+0.5,$I$66:$DJ$120,ROWS($A$10:$A34)+2,FALSE)","v":131},{"$f":"HLOOKUP(BR$7+0.5,$I$66:$DJ$120,ROWS($A$10:$A34)+2,FALSE)","v":143},{"$f":"HLOOKUP(BS$7+0.5,$I$66:$DJ$120,ROWS($A$10:$A34)+2,FALSE)","v":391},{"$f":"HLOOKUP(BT$7+0.5,$I$66:$DJ$120,ROWS($A$10:$A34)+2,FALSE)","v":806},{"$f":"HLOOKUP(BU$7+0.5,$I$66:$DJ$120,ROWS($A$10:$A34)+2,FALSE)","v":467},{"$f":"HLOOKUP(BV$7+0.5,$I$66:$DJ$120,ROWS($A$10:$A34)+2,FALSE)","v":634},{"$f":"HLOOKUP(BW$7+0.5,$I$66:$DJ$120,ROWS($A$10:$A34)+2,FALSE)","v":328},{"$f":"HLOOKUP(BX$7+0.5,$I$66:$DJ$120,ROWS($A$10:$A34)+2,FALSE)","v":2632},{"$f":"HLOOKUP(BY$7+0.5,$I$66:$DJ$120,ROWS($A$10:$A34)+2,FALSE)","v":470},{"$f":"HLOOKUP(BZ$7+0.5,$I$66:$DJ$120,ROWS($A$10:$A34)+2,FALSE)","v":1326},{"$f":"HLOOKUP(CA$7+0.5,$I$66:$DJ$120,ROWS($A$10:$A34)+2,FALSE)","v":324},{"$f":"HLOOKUP(CB$7+0.5,$I$66:$DJ$120,ROWS($A$10:$A34)+2,FALSE)","v":580},{"$f":"HLOOKUP(CC$7+0.5,$I$66:$DJ$120,ROWS($A$10:$A34)+2,FALSE)","v":599},{"$f":"HLOOKUP(CD$7+0.5,$I$66:$DJ$120,ROWS($A$10:$A34)+2,FALSE)","v":343},{"$f":"HLOOKUP(CE$7+0.5,$I$66:$DJ$120,ROWS($A$10:$A34)+2,FALSE)","v":382},{"$f":"HLOOKUP(CF$7+0.5,$I$66:$DJ$120,ROWS($A$10:$A34)+2,FALSE)","v":422},{"$f":"HLOOKUP(CG$7+0.5,$I$66:$DJ$120,ROWS($A$10:$A34)+2,FALSE)","v":2149},{"$f":"HLOOKUP(CH$7+0.5,$I$66:$DJ$120,ROWS($A$10:$A34)+2,FALSE)","v":"N/A"},{"$f":"HLOOKUP(CI$7+0.5,$I$66:$DJ$120,ROWS($A$10:$A34)+2,FALSE)","v":593},{"$f":"HLOOKUP(CJ$7+0.5,$I$66:$DJ$120,ROWS($A$10:$A34)+2,FALSE)","v":712},{"$f":"HLOOKUP(CK$7+0.5,$I$66:$DJ$120,ROWS($A$10:$A34)+2,FALSE)","v":859},{"$f":"HLOOKUP(CL$7+0.5,$I$66:$DJ$120,ROWS($A$10:$A34)+2,FALSE)","v":821},{"$f":"HLOOKUP(CM$7+0.5,$I$66:$DJ$120,ROWS($A$10:$A34)+2,FALSE)","v":1858},{"$f":"HLOOKUP(CN$7+0.5,$I$66:$DJ$120,ROWS($A$10:$A34)+2,FALSE)","v":26},{"$f":"HLOOKUP(CO$7+0.5,$I$66:$DJ$120,ROWS($A$10:$A34)+2,FALSE)","v":522},{"$f":"HLOOKUP(CP$7+0.5,$I$66:$DJ$120,ROWS($A$10:$A34)+2,FALSE)","v":319},{"$f":"HLOOKUP(CQ$7+0.5,$I$66:$DJ$120,ROWS($A$10:$A34)+2,FALSE)","v":913},{"$f":"HLOOKUP(CR$7+0.5,$I$66:$DJ$120,ROWS($A$10:$A34)+2,FALSE)","v":520},{"$f":"HLOOKUP(CS$7+0.5,$I$66:$DJ$120,ROWS($A$10:$A34)+2,FALSE)","v":1390},{"$f":"HLOOKUP(CT$7+0.5,$I$66:$DJ$120,ROWS($A$10:$A34)+2,FALSE)","v":1059},{"$f":"HLOOKUP(CU$7+0.5,$I$66:$DJ$120,ROWS($A$10:$A34)+2,FALSE)","v":399},{"$f":"HLOOKUP(CV$7+0.5,$I$66:$DJ$120,ROWS($A$10:$A34)+2,FALSE)","v":1169},{"$f":"HLOOKUP(CW$7+0.5,$I$66:$DJ$120,ROWS($A$10:$A34)+2,FALSE)","v":509},{"$f":"HLOOKUP(CX$7+0.5,$I$66:$DJ$120,ROWS($A$10:$A34)+2,FALSE)","v":143},{"$f":"HLOOKUP(CY$7+0.5,$I$66:$DJ$120,ROWS($A$10:$A34)+2,FALSE)","v":428},{"$f":"HLOOKUP(CZ$7+0.5,$I$66:$DJ$120,ROWS($A$10:$A34)+2,FALSE)","v":1596},{"$f":"HLOOKUP(DA$7+0.5,$I$66:$DJ$120,ROWS($A$10:$A34)+2,FALSE)","v":489},{"$f":"HLOOKUP(DB$7+0.5,$I$66:$DJ$120,ROWS($A$10:$A34)+2,FALSE)","v":1108},{"$f":"HLOOKUP(DC$7+0.5,$I$66:$DJ$120,ROWS($A$10:$A34)+2,FALSE)","v":742},{"$f":"HLOOKUP(DD$7+0.5,$I$66:$DJ$120,ROWS($A$10:$A34)+2,FALSE)","v":161},{"$f":"HLOOKUP(DE$7+0.5,$I$66:$DJ$120,ROWS($A$10:$A34)+2,FALSE)","v":420},{"$f":"HLOOKUP(DF$7+0.5,$I$66:$DJ$120,ROWS($A$10:$A34)+2,FALSE)","v":656},{"$f":"HLOOKUP(DG$7+0.5,$I$66:$DJ$120,ROWS($A$10:$A34)+2,FALSE)","v":98},{"$f":"HLOOKUP(DH$7+0.5,$I$66:$DJ$120,ROWS($A$10:$A34)+2,FALSE)","v":2960},{"$f":"HLOOKUP(DI$7+0.5,$I$66:$DJ$120,ROWS($A$10:$A34)+2,FALSE)","v":178},{"$f":"HLOOKUP(DJ$7+0.5,$I$66:$DJ$120,ROWS($A$10:$A34)+2,FALSE)","v":91}]
[null,"Mississippi",2943021,3088,2534036,16620,332934,15960,{"$f":"HLOOKUP(I$7,$I$66:$DJ$120,ROWS($A$10:$A35)+2,FALSE)","v":68511},{"$f":"HLOOKUP(J$7,$I$66:$DJ$120,ROWS($A$10:$A35)+2,FALSE)","v":8922},{"$f":"HLOOKUP(K$7,$I$66:$DJ$120,ROWS($A$10:$A35)+2,FALSE)","v":117},{"$f":"HLOOKUP(L$7,$I$66:$DJ$120,ROWS($A$10:$A35)+2,FALSE)","v":556},{"$f":"HLOOKUP(M$7,$I$66:$DJ$120,ROWS($A$10:$A35)+2,FALSE)","v":2315},{"$f":"HLOOKUP(N$7,$I$66:$DJ$120,ROWS($A$10:$A35)+2,FALSE)","v":4723},{"$f":"HLOOKUP(O$7,$I$66:$DJ$120,ROWS($A$10:$A35)+2,FALSE)","v":484},{"$f":"HLOOKUP(P$7,$I$66:$DJ$120,ROWS($A$10:$A35)+2,FALSE)","v":54},{"$f":"HLOOKUP(Q$7,$I$66:$DJ$120,ROWS($A$10:$A35)+2,FALSE)","v":0},{"$f":"HLOOKUP(R$7,$I$66:$DJ$120,ROWS($A$10:$A35)+2,FALSE)","v":415},{"$f":"HLOOKUP(S$7,$I$66:$DJ$120,ROWS($A$10:$A35)+2,FALSE)","v":6152},{"$f":"HLOOKUP(T$7,$I$66:$DJ$120,ROWS($A$10:$A35)+2,FALSE)","v":3136},{"$f":"HLOOKUP(U$7,$I$66:$DJ$120,ROWS($A$10:$A35)+2,FALSE)","v":369},{"$f":"HLOOKUP(V$7,$I$66:$DJ$120,ROWS($A$10:$A35)+2,FALSE)","v":55},{"$f":"HLOOKUP(W$7,$I$66:$DJ$120,ROWS($A$10:$A35)+2,FALSE)","v":2068},{"$f":"HLOOKUP(X$7,$I$66:$DJ$120,ROWS($A$10:$A35)+2,FALSE)","v":611},{"$f":"HLOOKUP(Y$7,$I$66:$DJ$120,ROWS($A$10:$A35)+2,FALSE)","v":650},{"$f":"HLOOKUP(Z$7,$I$66:$DJ$120,ROWS($A$10:$A35)+2,FALSE)","v":66},{"$f":"HLOOKUP(AA$7,$I$66:$DJ$120,ROWS($A$10:$A35)+2,FALSE)","v":1626},{"$f":"HLOOKUP(AB$7,$I$66:$DJ$120,ROWS($A$10:$A35)+2,FALSE)","v":7139},{"$f":"HLOOKUP(AC$7,$I$66:$DJ$120,ROWS($A$10:$A35)+2,FALSE)","v":0},{"$f":"HLOOKUP(AD$7,$I$66:$DJ$120,ROWS($A$10:$A35)+2,FALSE)","v":265},{"$f":"HLOOKUP(AE$7,$I$66:$DJ$120,ROWS($A$10:$A35)+2,FALSE)","v":1445},{"$f":"HLOOKUP(AF$7,$I$66:$DJ$120,ROWS($A$10:$A35)+2,FALSE)","v":1610},{"$f":"HLOOKUP(AG$7,$I$66:$DJ$120,ROWS($A$10:$A35)+2,FALSE)","v":614},{"$f":"HLOOKUP(AH$7,$I$66:$DJ$120,ROWS($A$10:$A35)+2,FALSE)","v":"N/A"},{"$f":"HLOOKUP(AI$7,$I$66:$DJ$120,ROWS($A$10:$A35)+2,FALSE)","v":1581},{"$f":"HLOOKUP(AJ$7,$I$66:$DJ$120,ROWS($A$10:$A35)+2,FALSE)","v":0},{"$f":"HLOOKUP(AK$7,$I$66:$DJ$120,ROWS($A$10:$A35)+2,FALSE)","v":118},{"$f":"HLOOKUP(AL$7,$I$66:$DJ$120,ROWS($A$10:$A35)+2,FALSE)","v":84},{"$f":"HLOOKUP(AM$7,$I$66:$DJ$120,ROWS($A$10:$A35)+2,FALSE)","v":65},{"$f":"HLOOKUP(AN$7,$I$66:$DJ$120,ROWS($A$10:$A35)+2,FALSE)","v":269},{"$f":"HLOOKUP(AO$7,$I$66:$DJ$120,ROWS($A$10:$A35)+2,FALSE)","v":1075},{"$f":"HLOOKUP(AP$7,$I$66:$DJ$120,ROWS($A$10:$A35)+2,FALSE)","v":364},{"$f":"HLOOKUP(AQ$7,$I$66:$DJ$120,ROWS($A$10:$A35)+2,FALSE)","v":483},{"$f":"HLOOKUP(AR$7,$I$66:$DJ$120,ROWS($A$10:$A35)+2,FALSE)","v":0},{"$f":"HLOOKUP(AS$7,$I$66:$DJ$120,ROWS($A$10:$A35)+2,FALSE)","v":991},{"$f":"HLOOKUP(AT$7,$I$66:$DJ$120,ROWS($A$10:$A35)+2,FALSE)","v":566},{"$f":"HLOOKUP(AU$7,$I$66:$DJ$120,ROWS($A$10:$A35)+2,FALSE)","v":74},{"$f":"HLOOKUP(AV$7,$I$66:$DJ$120,ROWS($A$10:$A35)+2,FALSE)","v":2568},{"$f":"HLOOKUP(AW$7,$I$66:$DJ$120,ROWS($A$10:$A35)+2,FALSE)","v":41},{"$f":"HLOOKUP(AX$7,$I$66:$DJ$120,ROWS($A$10:$A35)+2,FALSE)","v":398},{"$f":"HLOOKUP(AY$7,$I$66:$DJ$120,ROWS($A$10:$A35)+2,FALSE)","v":6},{"$f":"HLOOKUP(AZ$7,$I$66:$DJ$120,ROWS($A$10:$A35)+2,FALSE)","v":7683},{"$f":"HLOOKUP(BA$7,$I$66:$DJ$120,ROWS($A$10:$A35)+2,FALSE)","v":5243},{"$f":"HLOOKUP(BB$7,$I$66:$DJ$120,ROWS($A$10:$A35)+2,FALSE)","v":332},{"$f":"HLOOKUP(BC$7,$I$66:$DJ$120,ROWS($A$10:$A35)+2,FALSE)","v":0},{"$f":"HLOOKUP(BD$7,$I$66:$DJ$120,ROWS($A$10:$A35)+2,FALSE)","v":1453},{"$f":"HLOOKUP(BE$7,$I$66:$DJ$120,ROWS($A$10:$A35)+2,FALSE)","v":286},{"$f":"HLOOKUP(BF$7,$I$66:$DJ$120,ROWS($A$10:$A35)+2,FALSE)","v":303},{"$f":"HLOOKUP(BG$7,$I$66:$DJ$120,ROWS($A$10:$A35)+2,FALSE)","v":1136},{"$f":"HLOOKUP(BH$7,$I$66:$DJ$120,ROWS($A$10:$A35)+2,FALSE)","v":0},{"$f":"HLOOKUP(BI$7,$I$66:$DJ$120,ROWS($A$10:$A35)+2,FALSE)","v":318},{"$f":"HLOOKUP(BJ$7+0.5,$I$66:$DJ$120,ROWS($A$10:$A35)+2,FALSE)","v":5606},{"$f":"HLOOKUP(BK$7+0.5,$I$66:$DJ$120,ROWS($A$10:$A35)+2,FALSE)","v":2639},{"$f":"HLOOKUP(BL$7+0.5,$I$66:$DJ$120,ROWS($A$10:$A35)+2,FALSE)","v":102},{"$f":"HLOOKUP(BM$7+0.5,$I$66:$DJ$120,ROWS($A$10:$A35)+2,FALSE)","v":405},{"$f":"HLOOKUP(BN$7+0.5,$I$66:$DJ$120,ROWS($A$10:$A35)+2,FALSE)","v":1360},{"$f":"HLOOKUP(BO$7+0.5,$I$66:$DJ$120,ROWS($A$10:$A35)+2,FALSE)","v":1290},{"$f":"HLOOKUP(BP$7+0.5,$I$66:$DJ$120,ROWS($A$10:$A35)+2,FALSE)","v":453},{"$f":"HLOOKUP(BQ$7+0.5,$I$66:$DJ$120,ROWS($A$10:$A35)+2,FALSE)","v":74},{"$f":"HLOOKUP(BR$7+0.5,$I$66:$DJ$120,ROWS($A$10:$A35)+2,FALSE)","v":206},{"$f":"HLOOKUP(BS$7+0.5,$I$66:$DJ$120,ROWS($A$10:$A35)+2,FALSE)","v":434},{"$f":"HLOOKUP(BT$7+0.5,$I$66:$DJ$120,ROWS($A$10:$A35)+2,FALSE)","v":2463},{"$f":"HLOOKUP(BU$7+0.5,$I$66:$DJ$120,ROWS($A$10:$A35)+2,FALSE)","v":1397},{"$f":"HLOOKUP(BV$7+0.5,$I$66:$DJ$120,ROWS($A$10:$A35)+2,FALSE)","v":429},{"$f":"HLOOKUP(BW$7+0.5,$I$66:$DJ$120,ROWS($A$10:$A35)+2,FALSE)","v":82},{"$f":"HLOOKUP(BX$7+0.5,$I$66:$DJ$120,ROWS($A$10:$A35)+2,FALSE)","v":853},{"$f":"HLOOKUP(BY$7+0.5,$I$66:$DJ$120,ROWS($A$10:$A35)+2,FALSE)","v":411},{"$f":"HLOOKUP(BZ$7+0.5,$I$66:$DJ$120,ROWS($A$10:$A35)+2,FALSE)","v":603},{"$f":"HLOOKUP(CA$7+0.5,$I$66:$DJ$120,ROWS($A$10:$A35)+2,FALSE)","v":90},{"$f":"HLOOKUP(CB$7+0.5,$I$66:$DJ$120,ROWS($A$10:$A35)+2,FALSE)","v":841},{"$f":"HLOOKUP(CC$7+0.5,$I$66:$DJ$120,ROWS($A$10:$A35)+2,FALSE)","v":1767},{"$f":"HLOOKUP(CD$7+0.5,$I$66:$DJ$120,ROWS($A$10:$A35)+2,FALSE)","v":206},{"$f":"HLOOKUP(CE$7+0.5,$I$66:$DJ$120,ROWS($A$10:$A35)+2,FALSE)","v":239},{"$f":"HLOOKUP(CF$7+0.5,$I$66:$DJ$120,ROWS($A$10:$A35)+2,FALSE)","v":1561},{"$f":"HLOOKUP(CG$7+0.5,$I$66:$DJ$120,ROWS($A$10:$A35)+2,FALSE)","v":900},{"$f":"HLOOKUP(CH$7+0.5,$I$66:$DJ$120,ROWS($A$10:$A35)+2,FALSE)","v":615},{"$f":"HLOOKUP(CI$7+0.5,$I$66:$DJ$120,ROWS($A$10:$A35)+2,FALSE)","v":"N/A"},{"$f":"HLOOKUP(CJ$7+0.5,$I$66:$DJ$120,ROWS($A$10:$A35)+2,FALSE)","v":973},{"$f":"HLOOKUP(CK$7+0.5,$I$66:$DJ$120,ROWS($A$10:$A35)+2,FALSE)","v":206},{"$f":"HLOOKUP(CL$7+0.5,$I$66:$DJ$120,ROWS($A$10:$A35)+2,FALSE)","v":198},{"$f":"HLOOKUP(CM$7+0.5,$I$66:$DJ$120,ROWS($A$10:$A35)+2,FALSE)","v":141},{"$f":"HLOOKUP(CN$7+0.5,$I$66:$DJ$120,ROWS($A$10:$A35)+2,FALSE)","v":135},{"$f":"HLOOKUP(CO$7+0.5,$I$66:$DJ$120,ROWS($A$10:$A35)+2,FALSE)","v":293},{"$f":"HLOOKUP(CP$7+0.5,$I$66:$DJ$120,ROWS($A$10:$A35)+2,FALSE)","v":1040},{"$f":"HLOOKUP(CQ$7+0.5,$I$66:$DJ$120,ROWS($A$10:$A35)+2,FALSE)","v":449},{"$f":"HLOOKUP(CR$7+0.5,$I$66:$DJ$120,ROWS($A$10:$A35)+2,FALSE)","v":299},{"$f":"HLOOKUP(CS$7+0.5,$I$66:$DJ$120,ROWS($A$10:$A35)+2,FALSE)","v":206},{"$f":"HLOOKUP(CT$7+0.5,$I$66:$DJ$120,ROWS($A$10:$A35)+2,FALSE)","v":536},{"$f":"HLOOKUP(CU$7+0.5,$I$66:$DJ$120,ROWS($A$10:$A35)+2,FALSE)","v":362},{"$f":"HLOOKUP(CV$7+0.5,$I$66:$DJ$120,ROWS($A$10:$A35)+2,FALSE)","v":107},{"$f":"HLOOKUP(CW$7+0.5,$I$66:$DJ$120,ROWS($A$10:$A35)+2,FALSE)","v":1700},{"$f":"HLOOKUP(CX$7+0.5,$I$66:$DJ$120,ROWS($A$10:$A35)+2,FALSE)","v":89},{"$f":"HLOOKUP(CY$7+0.5,$I$66:$DJ$120,ROWS($A$10:$A35)+2,FALSE)","v":320},{"$f":"HLOOKUP(CZ$7+0.5,$I$66:$DJ$120,ROWS($A$10:$A35)+2,FALSE)","v":15},{"$f":"HLOOKUP(DA$7+0.5,$I$66:$DJ$120,ROWS($A$10:$A35)+2,FALSE)","v":2248},{"$f":"HLOOKUP(DB$7+0.5,$I$66:$DJ$120,ROWS($A$10:$A35)+2,FALSE)","v":1807},{"$f":"HLOOKUP(DC$7+0.5,$I$66:$DJ$120,ROWS($A$10:$A35)+2,FALSE)","v":520},{"$f":"HLOOKUP(DD$7+0.5,$I$66:$DJ$120,ROWS($A$10:$A35)+2,FALSE)","v":206},{"$f":"HLOOKUP(DE$7+0.5,$I$66:$DJ$120,ROWS($A$10:$A35)+2,FALSE)","v":805},{"$f":"HLOOKUP(DF$7+0.5,$I$66:$DJ$120,ROWS($A$10:$A35)+2,FALSE)","v":252},{"$f":"HLOOKUP(DG$7+0.5,$I$66:$DJ$120,ROWS($A$10:$A35)+2,FALSE)","v":411},{"$f":"HLOOKUP(DH$7+0.5,$I$66:$DJ$120,ROWS($A$10:$A35)+2,FALSE)","v":1061},{"$f":"HLOOKUP(DI$7+0.5,$I$66:$DJ$120,ROWS($A$10:$A35)+2,FALSE)","v":206},{"$f":"HLOOKUP(DJ$7+0.5,$I$66:$DJ$120,ROWS($A$10:$A35)+2,FALSE)","v":411}]
[null,"Missouri",5937896,4110,4963040,26160,801046,25054,{"$f":"HLOOKUP(I$7,$I$66:$DJ$120,ROWS($A$10:$A36)+2,FALSE)","v":149439},{"$f":"HLOOKUP(J$7,$I$66:$DJ$120,ROWS($A$10:$A36)+2,FALSE)","v":1395},{"$f":"HLOOKUP(K$7,$I$66:$DJ$120,ROWS($A$10:$A36)+2,FALSE)","v":2043},{"$f":"HLOOKUP(L$7,$I$66:$DJ$120,ROWS($A$10:$A36)+2,FALSE)","v":2356},{"$f":"HLOOKUP(M$7,$I$66:$DJ$120,ROWS($A$10:$A36)+2,FALSE)","v":6168},{"$f":"HLOOKUP(N$7,$I$66:$DJ$120,ROWS($A$10:$A36)+2,FALSE)","v":8386},{"$f":"HLOOKUP(O$7,$I$66:$DJ$120,ROWS($A$10:$A36)+2,FALSE)","v":3144},{"$f":"HLOOKUP(P$7,$I$66:$DJ$120,ROWS($A$10:$A36)+2,FALSE)","v":1516},{"$f":"HLOOKUP(Q$7,$I$66:$DJ$120,ROWS($A$10:$A36)+2,FALSE)","v":0},{"$f":"HLOOKUP(R$7,$I$66:$DJ$120,ROWS($A$10:$A36)+2,FALSE)","v":215},{"$f":"HLOOKUP(S$7,$I$66:$DJ$120,ROWS($A$10:$A36)+2,FALSE)","v":4513},{"$f":"HLOOKUP(T$7,$I$66:$DJ$120,ROWS($A$10:$A36)+2,FALSE)","v":2964},{"$f":"HLOOKUP(U$7,$I$66:$DJ$120,ROWS($A$10:$A36)+2,FALSE)","v":871},{"$f":"HLOOKUP(V$7,$I$66:$DJ$120,ROWS($A$10:$A36)+2,FALSE)","v":560},{"$f":"HLOOKUP(W$7,$I$66:$DJ$120,ROWS($A$10:$A36)+2,FALSE)","v":20161},{"$f":"HLOOKUP(X$7,$I$66:$DJ$120,ROWS($A$10:$A36)+2,FALSE)","v":4404},{"$f":"HLOOKUP(Y$7,$I$66:$DJ$120,ROWS($A$10:$A36)+2,FALSE)","v":4811},{"$f":"HLOOKUP(Z$7,$I$66:$DJ$120,ROWS($A$10:$A36)+2,FALSE)","v":20884},{"$f":"HLOOKUP(AA$7,$I$66:$DJ$120,ROWS($A$10:$A36)+2,FALSE)","v":1993},{"$f":"HLOOKUP(AB$7,$I$66:$DJ$120,ROWS($A$10:$A36)+2,FALSE)","v":1728},{"$f":"HLOOKUP(AC$7,$I$66:$DJ$120,ROWS($A$10:$A36)+2,FALSE)","v":291},{"$f":"HLOOKUP(AD$7,$I$66:$DJ$120,ROWS($A$10:$A36)+2,FALSE)","v":716},{"$f":"HLOOKUP(AE$7,$I$66:$DJ$120,ROWS($A$10:$A36)+2,FALSE)","v":463},{"$f":"HLOOKUP(AF$7,$I$66:$DJ$120,ROWS($A$10:$A36)+2,FALSE)","v":2830},{"$f":"HLOOKUP(AG$7,$I$66:$DJ$120,ROWS($A$10:$A36)+2,FALSE)","v":2026},{"$f":"HLOOKUP(AH$7,$I$66:$DJ$120,ROWS($A$10:$A36)+2,FALSE)","v":1641},{"$f":"HLOOKUP(AI$7,$I$66:$DJ$120,ROWS($A$10:$A36)+2,FALSE)","v":"N/A"},{"$f":"HLOOKUP(AJ$7,$I$66:$DJ$120,ROWS($A$10:$A36)+2,FALSE)","v":845},{"$f":"HLOOKUP(AK$7,$I$66:$DJ$120,ROWS($A$10:$A36)+2,FALSE)","v":4860},{"$f":"HLOOKUP(AL$7,$I$66:$DJ$120,ROWS($A$10:$A36)+2,FALSE)","v":1544},{"$f":"HLOOKUP(AM$7,$I$66:$DJ$120,ROWS($A$10:$A36)+2,FALSE)","v":769},{"$f":"HLOOKUP(AN$7,$I$66:$DJ$120,ROWS($A$10:$A36)+2,FALSE)","v":1114},{"$f":"HLOOKUP(AO$7,$I$66:$DJ$120,ROWS($A$10:$A36)+2,FALSE)","v":1016},{"$f":"HLOOKUP(AP$7,$I$66:$DJ$120,ROWS($A$10:$A36)+2,FALSE)","v":2904},{"$f":"HLOOKUP(AQ$7,$I$66:$DJ$120,ROWS($A$10:$A36)+2,FALSE)","v":3669},{"$f":"HLOOKUP(AR$7,$I$66:$DJ$120,ROWS($A$10:$A36)+2,FALSE)","v":977},{"$f":"HLOOKUP(AS$7,$I$66:$DJ$120,ROWS($A$10:$A36)+2,FALSE)","v":3240},{"$f":"HLOOKUP(AT$7,$I$66:$DJ$120,ROWS($A$10:$A36)+2,FALSE)","v":6073},{"$f":"HLOOKUP(AU$7,$I$66:$DJ$120,ROWS($A$10:$A36)+2,FALSE)","v":777},{"$f":"HLOOKUP(AV$7,$I$66:$DJ$120,ROWS($A$10:$A36)+2,FALSE)","v":1810},{"$f":"HLOOKUP(AW$7,$I$66:$DJ$120,ROWS($A$10:$A36)+2,FALSE)","v":359},{"$f":"HLOOKUP(AX$7,$I$66:$DJ$120,ROWS($A$10:$A36)+2,FALSE)","v":267},{"$f":"HLOOKUP(AY$7,$I$66:$DJ$120,ROWS($A$10:$A36)+2,FALSE)","v":361},{"$f":"HLOOKUP(AZ$7,$I$66:$DJ$120,ROWS($A$10:$A36)+2,FALSE)","v":2676},{"$f":"HLOOKUP(BA$7,$I$66:$DJ$120,ROWS($A$10:$A36)+2,FALSE)","v":10293},{"$f":"HLOOKUP(BB$7,$I$66:$DJ$120,ROWS($A$10:$A36)+2,FALSE)","v":1697},{"$f":"HLOOKUP(BC$7,$I$66:$DJ$120,ROWS($A$10:$A36)+2,FALSE)","v":88},{"$f":"HLOOKUP(BD$7,$I$66:$DJ$120,ROWS($A$10:$A36)+2,FALSE)","v":2684},{"$f":"HLOOKUP(BE$7,$I$66:$DJ$120,ROWS($A$10:$A36)+2,FALSE)","v":2518},{"$f":"HLOOKUP(BF$7,$I$66:$DJ$120,ROWS($A$10:$A36)+2,FALSE)","v":196},{"$f":"HLOOKUP(BG$7,$I$66:$DJ$120,ROWS($A$10:$A36)+2,FALSE)","v":1503},{"$f":"HLOOKUP(BH$7,$I$66:$DJ$120,ROWS($A$10:$A36)+2,FALSE)","v":1120},{"$f":"HLOOKUP(BI$7,$I$66:$DJ$120,ROWS($A$10:$A36)+2,FALSE)","v":709},{"$f":"HLOOKUP(BJ$7+0.5,$I$66:$DJ$120,ROWS($A$10:$A36)+2,FALSE)","v":9288},{"$f":"HLOOKUP(BK$7+0.5,$I$66:$DJ$120,ROWS($A$10:$A36)+2,FALSE)","v":654},{"$f":"HLOOKUP(BL$7+0.5,$I$66:$DJ$120,ROWS($A$10:$A36)+2,FALSE)","v":2471},{"$f":"HLOOKUP(BM$7+0.5,$I$66:$DJ$120,ROWS($A$10:$A36)+2,FALSE)","v":1028},{"$f":"HLOOKUP(BN$7+0.5,$I$66:$DJ$120,ROWS($A$10:$A36)+2,FALSE)","v":1528},{"$f":"HLOOKUP(BO$7+0.5,$I$66:$DJ$120,ROWS($A$10:$A36)+2,FALSE)","v":1909},{"$f":"HLOOKUP(BP$7+0.5,$I$66:$DJ$120,ROWS($A$10:$A36)+2,FALSE)","v":1163},{"$f":"HLOOKUP(BQ$7+0.5,$I$66:$DJ$120,ROWS($A$10:$A36)+2,FALSE)","v":1078},{"$f":"HLOOKUP(BR$7+0.5,$I$66:$DJ$120,ROWS($A$10:$A36)+2,FALSE)","v":184},{"$f":"HLOOKUP(BS$7+0.5,$I$66:$DJ$120,ROWS($A$10:$A36)+2,FALSE)","v":254},{"$f":"HLOOKUP(BT$7+0.5,$I$66:$DJ$120,ROWS($A$10:$A36)+2,FALSE)","v":1398},{"$f":"HLOOKUP(BU$7+0.5,$I$66:$DJ$120,ROWS($A$10:$A36)+2,FALSE)","v":972},{"$f":"HLOOKUP(BV$7+0.5,$I$66:$DJ$120,ROWS($A$10:$A36)+2,FALSE)","v":517},{"$f":"HLOOKUP(BW$7+0.5,$I$66:$DJ$120,ROWS($A$10:$A36)+2,FALSE)","v":439},{"$f":"HLOOKUP(BX$7+0.5,$I$66:$DJ$120,ROWS($A$10:$A36)+2,FALSE)","v":3086},{"$f":"HLOOKUP(BY$7+0.5,$I$66:$DJ$120,ROWS($A$10:$A36)+2,FALSE)","v":1588},{"$f":"HLOOKUP(BZ$7+0.5,$I$66:$DJ$120,ROWS($A$10:$A36)+2,FALSE)","v":1405},{"$f":"HLOOKUP(CA$7+0.5,$I$66:$DJ$120,ROWS($A$10:$A36)+2,FALSE)","v":4170},{"$f":"HLOOKUP(CB$7+0.5,$I$66:$DJ$120,ROWS($A$10:$A36)+2,FALSE)","v":803},{"$f":"HLOOKUP(CC$7+0.5,$I$66:$DJ$120,ROWS($A$10:$A36)+2,FALSE)","v":905},{"$f":"HLOOKUP(CD$7+0.5,$I$66:$DJ$120,ROWS($A$10:$A36)+2,FALSE)","v":295},{"$f":"HLOOKUP(CE$7+0.5,$I$66:$DJ$120,ROWS($A$10:$A36)+2,FALSE)","v":317},{"$f":"HLOOKUP(CF$7+0.5,$I$66:$DJ$120,ROWS($A$10:$A36)+2,FALSE)","v":306},{"$f":"HLOOKUP(CG$7+0.5,$I$66:$DJ$120,ROWS($A$10:$A36)+2,FALSE)","v":1176},{"$f":"HLOOKUP(CH$7+0.5,$I$66:$DJ$120,ROWS($A$10:$A36)+2,FALSE)","v":809},{"$f":"HLOOKUP(CI$7+0.5,$I$66:$DJ$120,ROWS($A$10:$A36)+2,FALSE)","v":884},{"$f":"HLOOKUP(CJ$7+0.5,$I$66:$DJ$120,ROWS($A$10:$A36)+2,FALSE)","v":"N/A"},{"$f":"HLOOKUP(CK$7+0.5,$I$66:$DJ$120,ROWS($A$10:$A36)+2,FALSE)","v":541},{"$f":"HLOOKUP(CL$7+0.5,$I$66:$DJ$120,ROWS($A$10:$A36)+2,FALSE)","v":1645},{"$f":"HLOOKUP(CM$7+0.5,$I$66:$DJ$120,ROWS($A$10:$A36)+2,FALSE)","v":830},{"$f":"HLOOKUP(CN$7+0.5,$I$66:$DJ$120,ROWS($A$10:$A36)+2,FALSE)","v":750},{"$f":"HLOOKUP(CO$7+0.5,$I$66:$DJ$120,ROWS($A$10:$A36)+2,FALSE)","v":755},{"$f":"HLOOKUP(CP$7+0.5,$I$66:$DJ$120,ROWS($A$10:$A36)+2,FALSE)","v":718},{"$f":"HLOOKUP(CQ$7+0.5,$I$66:$DJ$120,ROWS($A$10:$A36)+2,FALSE)","v":1260},{"$f":"HLOOKUP(CR$7+0.5,$I$66:$DJ$120,ROWS($A$10:$A36)+2,FALSE)","v":1527},{"$f":"HLOOKUP(CS$7+0.5,$I$66:$DJ$120,ROWS($A$10:$A36)+2,FALSE)","v":446},{"$f":"HLOOKUP(CT$7+0.5,$I$66:$DJ$120,ROWS($A$10:$A36)+2,FALSE)","v":1684},{"$f":"HLOOKUP(CU$7+0.5,$I$66:$DJ$120,ROWS($A$10:$A36)+2,FALSE)","v":2312},{"$f":"HLOOKUP(CV$7+0.5,$I$66:$DJ$120,ROWS($A$10:$A36)+2,FALSE)","v":538},{"$f":"HLOOKUP(CW$7+0.5,$I$66:$DJ$120,ROWS($A$10:$A36)+2,FALSE)","v":1085},{"$f":"HLOOKUP(CX$7+0.5,$I$66:$DJ$120,ROWS($A$10:$A36)+2,FALSE)","v":424},{"$f":"HLOOKUP(CY$7+0.5,$I$66:$DJ$120,ROWS($A$10:$A36)+2,FALSE)","v":237},{"$f":"HLOOKUP(CZ$7+0.5,$I$66:$DJ$120,ROWS($A$10:$A36)+2,FALSE)","v":296},{"$f":"HLOOKUP(DA$7+0.5,$I$66:$DJ$120,ROWS($A$10:$A36)+2,FALSE)","v":1056},{"$f":"HLOOKUP(DB$7+0.5,$I$66:$DJ$120,ROWS($A$10:$A36)+2,FALSE)","v":2994},{"$f":"HLOOKUP(DC$7+0.5,$I$66:$DJ$120,ROWS($A$10:$A36)+2,FALSE)","v":946},{"$f":"HLOOKUP(DD$7+0.5,$I$66:$DJ$120,ROWS($A$10:$A36)+2,FALSE)","v":195},{"$f":"HLOOKUP(DE$7+0.5,$I$66:$DJ$120,ROWS($A$10:$A36)+2,FALSE)","v":1493},{"$f":"HLOOKUP(DF$7+0.5,$I$66:$DJ$120,ROWS($A$10:$A36)+2,FALSE)","v":843},{"$f":"HLOOKUP(DG$7+0.5,$I$66:$DJ$120,ROWS($A$10:$A36)+2,FALSE)","v":214},{"$f":"HLOOKUP(DH$7+0.5,$I$66:$DJ$120,ROWS($A$10:$A36)+2,FALSE)","v":671},{"$f":"HLOOKUP(DI$7+0.5,$I$66:$DJ$120,ROWS($A$10:$A36)+2,FALSE)","v":900},{"$f":"HLOOKUP(DJ$7+0.5,$I$66:$DJ$120,ROWS($A$10:$A36)+2,FALSE)","v":463}]
[null,"Montana",987076,1359,828254,8593,122210,8386,{"$f":"HLOOKUP(I$7,$I$66:$DJ$120,ROWS($A$10:$A37)+2,FALSE)","v":33553},{"$f":"HLOOKUP(J$7,$I$66:$DJ$120,ROWS($A$10:$A37)+2,FALSE)","v":449},{"$f":"HLOOKUP(K$7,$I$66:$DJ$120,ROWS($A$10:$A37)+2,FALSE)","v":1118},{"$f":"HLOOKUP(L$7,$I$66:$DJ$120,ROWS($A$10:$A37)+2,FALSE)","v":1971},{"$f":"HLOOKUP(M$7,$I$66:$DJ$120,ROWS($A$10:$A37)+2,FALSE)","v":49},{"$f":"HLOOKUP(N$7,$I$66:$DJ$120,ROWS($A$10:$A37)+2,FALSE)","v":3033},{"$f":"HLOOKUP(O$7,$I$66:$DJ$120,ROWS($A$10:$A37)+2,FALSE)","v":2856},{"$f":"HLOOKUP(P$7,$I$66:$DJ$120,ROWS($A$10:$A37)+2,FALSE)","v":58},{"$f":"HLOOKUP(Q$7,$I$66:$DJ$120,ROWS($A$10:$A37)+2,FALSE)","v":365},{"$f":"HLOOKUP(R$7,$I$66:$DJ$120,ROWS($A$10:$A37)+2,FALSE)","v":0},{"$f":"HLOOKUP(S$7,$I$66:$DJ$120,ROWS($A$10:$A37)+2,FALSE)","v":291},{"$f":"HLOOKUP(T$7,$I$66:$DJ$120,ROWS($A$10:$A37)+2,FALSE)","v":231},{"$f":"HLOOKUP(U$7,$I$66:$DJ$120,ROWS($A$10:$A37)+2,FALSE)","v":32},{"$f":"HLOOKUP(V$7,$I$66:$DJ$120,ROWS($A$10:$A37)+2,FALSE)","v":1543},{"$f":"HLOOKUP(W$7,$I$66:$DJ$120,ROWS($A$10:$A37)+2,FALSE)","v":765},{"$f":"HLOOKUP(X$7,$I$66:$DJ$120,ROWS($A$10:$A37)+2,FALSE)","v":646},{"$f":"HLOOKUP(Y$7,$I$66:$DJ$120,ROWS($A$10:$A37)+2,FALSE)","v":417},{"$f":"HLOOKUP(Z$7,$I$66:$DJ$120,ROWS($A$10:$A37)+2,FALSE)","v":845},{"$f":"HLOOKUP(AA$7,$I$66:$DJ$120,ROWS($A$10:$A37)+2,FALSE)","v":0},{"$f":"HLOOKUP(AB$7,$I$66:$DJ$120,ROWS($A$10:$A37)+2,FALSE)","v":0},{"$f":"HLOOKUP(AC$7,$I$66:$DJ$120,ROWS($A$10:$A37)+2,FALSE)","v":71},{"$f":"HLOOKUP(AD$7,$I$66:$DJ$120,ROWS($A$10:$A37)+2,FALSE)","v":57},{"$f":"HLOOKUP(AE$7,$I$66:$DJ$120,ROWS($A$10:$A37)+2,FALSE)","v":10},{"$f":"HLOOKUP(AF$7,$I$66:$DJ$120,ROWS($A$10:$A37)+2,FALSE)","v":353},{"$f":"HLOOKUP(AG$7,$I$66:$DJ$120,ROWS($A$10:$A37)+2,FALSE)","v":969},{"$f":"HLOOKUP(AH$7,$I$66:$DJ$120,ROWS($A$10:$A37)+2,FALSE)","v":0},{"$f":"HLOOKUP(AI$7,$I$66:$DJ$120,ROWS($A$10:$A37)+2,FALSE)","v":158},{"$f":"HLOOKUP(AJ$7,$I$66:$DJ$120,ROWS($A$10:$A37)+2,FALSE)","v":"N/A"},{"$f":"HLOOKUP(AK$7,$I$66:$DJ$120,ROWS($A$10:$A37)+2,FALSE)","v":384},{"$f":"HLOOKUP(AL$7,$I$66:$DJ$120,ROWS($A$10:$A37)+2,FALSE)","v":688},{"$f":"HLOOKUP(AM$7,$I$66:$DJ$120,ROWS($A$10:$A37)+2,FALSE)","v":0},{"$f":"HLOOKUP(AN$7,$I$66:$DJ$120,ROWS($A$10:$A37)+2,FALSE)","v":889},{"$f":"HLOOKUP(AO$7,$I$66:$DJ$120,ROWS($A$10:$A37)+2,FALSE)","v":264},{"$f":"HLOOKUP(AP$7,$I$66:$DJ$120,ROWS($A$10:$A37)+2,FALSE)","v":422},{"$f":"HLOOKUP(AQ$7,$I$66:$DJ$120,ROWS($A$10:$A37)+2,FALSE)","v":1173},{"$f":"HLOOKUP(AR$7,$I$66:$DJ$120,ROWS($A$10:$A37)+2,FALSE)","v":360},{"$f":"HLOOKUP(AS$7,$I$66:$DJ$120,ROWS($A$10:$A37)+2,FALSE)","v":321},{"$f":"HLOOKUP(AT$7,$I$66:$DJ$120,ROWS($A$10:$A37)+2,FALSE)","v":96},{"$f":"HLOOKUP(AU$7,$I$66:$DJ$120,ROWS($A$10:$A37)+2,FALSE)","v":1959},{"$f":"HLOOKUP(AV$7,$I$66:$DJ$120,ROWS($A$10:$A37)+2,FALSE)","v":840},{"$f":"HLOOKUP(AW$7,$I$66:$DJ$120,ROWS($A$10:$A37)+2,FALSE)","v":0},{"$f":"HLOOKUP(AX$7,$I$66:$DJ$120,ROWS($A$10:$A37)+2,FALSE)","v":77},{"$f":"HLOOKUP(AY$7,$I$66:$DJ$120,ROWS($A$10:$A37)+2,FALSE)","v":227},{"$f":"HLOOKUP(AZ$7,$I$66:$DJ$120,ROWS($A$10:$A37)+2,FALSE)","v":266},{"$f":"HLOOKUP(BA$7,$I$66:$DJ$120,ROWS($A$10:$A37)+2,FALSE)","v":1329},{"$f":"HLOOKUP(BB$7,$I$66:$DJ$120,ROWS($A$10:$A37)+2,FALSE)","v":1232},{"$f":"HLOOKUP(BC$7,$I$66:$DJ$120,ROWS($A$10:$A37)+2,FALSE)","v":53},{"$f":"HLOOKUP(BD$7,$I$66:$DJ$120,ROWS($A$10:$A37)+2,FALSE)","v":278},{"$f":"HLOOKUP(BE$7,$I$66:$DJ$120,ROWS($A$10:$A37)+2,FALSE)","v":3835},{"$f":"HLOOKUP(BF$7,$I$66:$DJ$120,ROWS($A$10:$A37)+2,FALSE)","v":14},{"$f":"HLOOKUP(BG$7,$I$66:$DJ$120,ROWS($A$10:$A37)+2,FALSE)","v":146},{"$f":"HLOOKUP(BH$7,$I$66:$DJ$120,ROWS($A$10:$A37)+2,FALSE)","v":2413},{"$f":"HLOOKUP(BI$7,$I$66:$DJ$120,ROWS($A$10:$A37)+2,FALSE)","v":353},{"$f":"HLOOKUP(BJ$7+0.5,$I$66:$DJ$120,ROWS($A$10:$A37)+2,FALSE)","v":4015},{"$f":"HLOOKUP(BK$7+0.5,$I$66:$DJ$120,ROWS($A$10:$A37)+2,FALSE)","v":318},{"$f":"HLOOKUP(BL$7+0.5,$I$66:$DJ$120,ROWS($A$10:$A37)+2,FALSE)","v":921},{"$f":"HLOOKUP(BM$7+0.5,$I$66:$DJ$120,ROWS($A$10:$A37)+2,FALSE)","v":1358},{"$f":"HLOOKUP(BN$7+0.5,$I$66:$DJ$120,ROWS($A$10:$A37)+2,FALSE)","v":70},{"$f":"HLOOKUP(BO$7+0.5,$I$66:$DJ$120,ROWS($A$10:$A37)+2,FALSE)","v":1110},{"$f":"HLOOKUP(BP$7+0.5,$I$66:$DJ$120,ROWS($A$10:$A37)+2,FALSE)","v":1265},{"$f":"HLOOKUP(BQ$7+0.5,$I$66:$DJ$120,ROWS($A$10:$A37)+2,FALSE)","v":72},{"$f":"HLOOKUP(BR$7+0.5,$I$66:$DJ$120,ROWS($A$10:$A37)+2,FALSE)","v":392},{"$f":"HLOOKUP(BS$7+0.5,$I$66:$DJ$120,ROWS($A$10:$A37)+2,FALSE)","v":165},{"$f":"HLOOKUP(BT$7+0.5,$I$66:$DJ$120,ROWS($A$10:$A37)+2,FALSE)","v":235},{"$f":"HLOOKUP(BU$7+0.5,$I$66:$DJ$120,ROWS($A$10:$A37)+2,FALSE)","v":193},{"$f":"HLOOKUP(BV$7+0.5,$I$66:$DJ$120,ROWS($A$10:$A37)+2,FALSE)","v":35},{"$f":"HLOOKUP(BW$7+0.5,$I$66:$DJ$120,ROWS($A$10:$A37)+2,FALSE)","v":1005},{"$f":"HLOOKUP(BX$7+0.5,$I$66:$DJ$120,ROWS($A$10:$A37)+2,FALSE)","v":526},{"$f":"HLOOKUP(BY$7+0.5,$I$66:$DJ$120,ROWS($A$10:$A37)+2,FALSE)","v":646},{"$f":"HLOOKUP(BZ$7+0.5,$I$66:$DJ$120,ROWS($A$10:$A37)+2,FALSE)","v":307},{"$f":"HLOOKUP(CA$7+0.5,$I$66:$DJ$120,ROWS($A$10:$A37)+2,FALSE)","v":492},{"$f":"HLOOKUP(CB$7+0.5,$I$66:$DJ$120,ROWS($A$10:$A37)+2,FALSE)","v":165},{"$f":"HLOOKUP(CC$7+0.5,$I$66:$DJ$120,ROWS($A$10:$A37)+2,FALSE)","v":165},{"$f":"HLOOKUP(CD$7+0.5,$I$66:$DJ$120,ROWS($A$10:$A37)+2,FALSE)","v":127},{"$f":"HLOOKUP(CE$7+0.5,$I$66:$DJ$120,ROWS($A$10:$A37)+2,FALSE)","v":71},{"$f":"HLOOKUP(CF$7+0.5,$I$66:$DJ$120,ROWS($A$10:$A37)+2,FALSE)","v":18},{"$f":"HLOOKUP(CG$7+0.5,$I$66:$DJ$120,ROWS($A$10:$A37)+2,FALSE)","v":295},{"$f":"HLOOKUP(CH$7+0.5,$I$66:$DJ$120,ROWS($A$10:$A37)+2,FALSE)","v":634},{"$f":"HLOOKUP(CI$7+0.5,$I$66:$DJ$120,ROWS($A$10:$A37)+2,FALSE)","v":165},{"$f":"HLOOKUP(CJ$7+0.5,$I$66:$DJ$120,ROWS($A$10:$A37)+2,FALSE)","v":220},{"$f":"HLOOKUP(CK$7+0.5,$I$66:$DJ$120,ROWS($A$10:$A37)+2,FALSE)","v":"N/A"},{"$f":"HLOOKUP(CL$7+0.5,$I$66:$DJ$120,ROWS($A$10:$A37)+2,FALSE)","v":392},{"$f":"HLOOKUP(CM$7+0.5,$I$66:$DJ$120,ROWS($A$10:$A37)+2,FALSE)","v":543},{"$f":"HLOOKUP(CN$7+0.5,$I$66:$DJ$120,ROWS($A$10:$A37)+2,FALSE)","v":165},{"$f":"HLOOKUP(CO$7+0.5,$I$66:$DJ$120,ROWS($A$10:$A37)+2,FALSE)","v":589},{"$f":"HLOOKUP(CP$7+0.5,$I$66:$DJ$120,ROWS($A$10:$A37)+2,FALSE)","v":389},{"$f":"HLOOKUP(CQ$7+0.5,$I$66:$DJ$120,ROWS($A$10:$A37)+2,FALSE)","v":377},{"$f":"HLOOKUP(CR$7+0.5,$I$66:$DJ$120,ROWS($A$10:$A37)+2,FALSE)","v":982},{"$f":"HLOOKUP(CS$7+0.5,$I$66:$DJ$120,ROWS($A$10:$A37)+2,FALSE)","v":250},{"$f":"HLOOKUP(CT$7+0.5,$I$66:$DJ$120,ROWS($A$10:$A37)+2,FALSE)","v":409},{"$f":"HLOOKUP(CU$7+0.5,$I$66:$DJ$120,ROWS($A$10:$A37)+2,FALSE)","v":127},{"$f":"HLOOKUP(CV$7+0.5,$I$66:$DJ$120,ROWS($A$10:$A37)+2,FALSE)","v":914},{"$f":"HLOOKUP(CW$7+0.5,$I$66:$DJ$120,ROWS($A$10:$A37)+2,FALSE)","v":640},{"$f":"HLOOKUP(CX$7+0.5,$I$66:$DJ$120,ROWS($A$10:$A37)+2,FALSE)","v":165},{"$f":"HLOOKUP(CY$7+0.5,$I$66:$DJ$120,ROWS($A$10:$A37)+2,FALSE)","v":92},{"$f":"HLOOKUP(CZ$7+0.5,$I$66:$DJ$120,ROWS($A$10:$A37)+2,FALSE)","v":233},{"$f":"HLOOKUP(DA$7+0.5,$I$66:$DJ$120,ROWS($A$10:$A37)+2,FALSE)","v":237},{"$f":"HLOOKUP(DB$7+0.5,$I$66:$DJ$120,ROWS($A$10:$A37)+2,FALSE)","v":643},{"$f":"HLOOKUP(DC$7+0.5,$I$66:$DJ$120,ROWS($A$10:$A37)+2,FALSE)","v":623},{"$f":"HLOOKUP(DD$7+0.5,$I$66:$DJ$120,ROWS($A$10:$A37)+2,FALSE)","v":71},{"$f":"HLOOKUP(DE$7+0.5,$I$66:$DJ$120,ROWS($A$10:$A37)+2,FALSE)","v":288},{"$f":"HLOOKUP(DF$7+0.5,$I$66:$DJ$120,ROWS($A$10:$A37)+2,FALSE)","v":1160},{"$f":"HLOOKUP(DG$7+0.5,$I$66:$DJ$120,ROWS($A$10:$A37)+2,FALSE)","v":28},{"$f":"HLOOKUP(DH$7+0.5,$I$66:$DJ$120,ROWS($A$10:$A37)+2,FALSE)","v":184},{"$f":"HLOOKUP(DI$7+0.5,$I$66:$DJ$120,ROWS($A$10:$A37)+2,FALSE)","v":1709},{"$f":"HLOOKUP(DJ$7+0.5,$I$66:$DJ$120,ROWS($A$10:$A37)+2,FALSE)","v":522}]
[null,"Nebraska",1817126,2304,1505191,11978,253269,10841,{"$f":"HLOOKUP(I$7,$I$66:$DJ$120,ROWS($A$10:$A38)+2,FALSE)","v":52070},{"$f":"HLOOKUP(J$7,$I$66:$DJ$120,ROWS($A$10:$A38)+2,FALSE)","v":169},{"$f":"HLOOKUP(K$7,$I$66:$DJ$120,ROWS($A$10:$A38)+2,FALSE)","v":721},{"$f":"HLOOKUP(L$7,$I$66:$DJ$120,ROWS($A$10:$A38)+2,FALSE)","v":1646},{"$f":"HLOOKUP(M$7,$I$66:$DJ$120,ROWS($A$10:$A38)+2,FALSE)","v":161},{"$f":"HLOOKUP(N$7,$I$66:$DJ$120,ROWS($A$10:$A38)+2,FALSE)","v":5124},{"$f":"HLOOKUP(O$7,$I$66:$DJ$120,ROWS($A$10:$A38)+2,FALSE)","v":3245},{"$f":"HLOOKUP(P$7,$I$66:$DJ$120,ROWS($A$10:$A38)+2,FALSE)","v":381},{"$f":"HLOOKUP(Q$7,$I$66:$DJ$120,ROWS($A$10:$A38)+2,FALSE)","v":0},{"$f":"HLOOKUP(R$7,$I$66:$DJ$120,ROWS($A$10:$A38)+2,FALSE)","v":29},{"$f":"HLOOKUP(S$7,$I$66:$DJ$120,ROWS($A$10:$A38)+2,FALSE)","v":1105},{"$f":"HLOOKUP(T$7,$I$66:$DJ$120,ROWS($A$10:$A38)+2,FALSE)","v":434},{"$f":"HLOOKUP(U$7,$I$66:$DJ$120,ROWS($A$10:$A38)+2,FALSE)","v":275},{"$f":"HLOOKUP(V$7,$I$66:$DJ$120,ROWS($A$10:$A38)+2,FALSE)","v":506},{"$f":"HLOOKUP(W$7,$I$66:$DJ$120,ROWS($A$10:$A38)+2,FALSE)","v":1415},{"$f":"HLOOKUP(X$7,$I$66:$DJ$120,ROWS($A$10:$A38)+2,FALSE)","v":615},{"$f":"HLOOKUP(Y$7,$I$66:$DJ$120,ROWS($A$10:$A38)+2,FALSE)","v":9575},{"$f":"HLOOKUP(Z$7,$I$66:$DJ$120,ROWS($A$10:$A38)+2,FALSE)","v":3040},{"$f":"HLOOKUP(AA$7,$I$66:$DJ$120,ROWS($A$10:$A38)+2,FALSE)","v":352},{"$f":"HLOOKUP(AB$7,$I$66:$DJ$120,ROWS($A$10:$A38)+2,FALSE)","v":222},{"$f":"HLOOKUP(AC$7,$I$66:$DJ$120,ROWS($A$10:$A38)+2,FALSE)","v":122},{"$f":"HLOOKUP(AD$7,$I$66:$DJ$120,ROWS($A$10:$A38)+2,FALSE)","v":318},{"$f":"HLOOKUP(AE$7,$I$66:$DJ$120,ROWS($A$10:$A38)+2,FALSE)","v":0},{"$f":"HLOOKUP(AF$7,$I$66:$DJ$120,ROWS($A$10:$A38)+2,FALSE)","v":683},{"$f":"HLOOKUP(AG$7,$I$66:$DJ$120,ROWS($A$10:$A38)+2,FALSE)","v":1455},{"$f":"HLOOKUP(AH$7,$I$66:$DJ$120,ROWS($A$10:$A38)+2,FALSE)","v":424},{"$f":"HLOOKUP(AI$7,$I$66:$DJ$120,ROWS($A$10:$A38)+2,FALSE)","v":1848},{"$f":"HLOOKUP(AJ$7,$I$66:$DJ$120,ROWS($A$10:$A38)+2,FALSE)","v":64},{"$f":"HLOOKUP(AK$7,$I$66:$DJ$120,ROWS($A$10:$A38)+2,FALSE)","v":"N/A"},{"$f":"HLOOKUP(AL$7,$I$66:$DJ$120,ROWS($A$10:$A38)+2,FALSE)","v":240},{"$f":"HLOOKUP(AM$7,$I$66:$DJ$120,ROWS($A$10:$A38)+2,FALSE)","v":0},{"$f":"HLOOKUP(AN$7,$I$66:$DJ$120,ROWS($A$10:$A38)+2,FALSE)","v":119},{"$f":"HLOOKUP(AO$7,$I$66:$DJ$120,ROWS($A$10:$A38)+2,FALSE)","v":242},{"$f":"HLOOKUP(AP$7,$I$66:$DJ$120,ROWS($A$10:$A38)+2,FALSE)","v":544},{"$f":"HLOOKUP(AQ$7,$I$66:$DJ$120,ROWS($A$10:$A38)+2,FALSE)","v":829},{"$f":"HLOOKUP(AR$7,$I$66:$DJ$120,ROWS($A$10:$A38)+2,FALSE)","v":292},{"$f":"HLOOKUP(AS$7,$I$66:$DJ$120,ROWS($A$10:$A38)+2,FALSE)","v":268},{"$f":"HLOOKUP(AT$7,$I$66:$DJ$120,ROWS($A$10:$A38)+2,FALSE)","v":1255},{"$f":"HLOOKUP(AU$7,$I$66:$DJ$120,ROWS($A$10:$A38)+2,FALSE)","v":1556},{"$f":"HLOOKUP(AV$7,$I$66:$DJ$120,ROWS($A$10:$A38)+2,FALSE)","v":252},{"$f":"HLOOKUP(AW$7,$I$66:$DJ$120,ROWS($A$10:$A38)+2,FALSE)","v":0},{"$f":"HLOOKUP(AX$7,$I$66:$DJ$120,ROWS($A$10:$A38)+2,FALSE)","v":243},{"$f":"HLOOKUP(AY$7,$I$66:$DJ$120,ROWS($A$10:$A38)+2,FALSE)","v":2999},{"$f":"HLOOKUP(AZ$7,$I$66:$DJ$120,ROWS($A$10:$A38)+2,FALSE)","v":226},{"$f":"HLOOKUP(BA$7,$I$66:$DJ$120,ROWS($A$10:$A38)+2,FALSE)","v":5343},{"$f":"HLOOKUP(BB$7,$I$66:$DJ$120,ROWS($A$10:$A38)+2,FALSE)","v":734},{"$f":"HLOOKUP(BC$7,$I$66:$DJ$120,ROWS($A$10:$A38)+2,FALSE)","v":0},{"$f":"HLOOKUP(BD$7,$I$66:$DJ$120,ROWS($A$10:$A38)+2,FALSE)","v":615},{"$f":"HLOOKUP(BE$7,$I$66:$DJ$120,ROWS($A$10:$A38)+2,FALSE)","v":835},{"$f":"HLOOKUP(BF$7,$I$66:$DJ$120,ROWS($A$10:$A38)+2,FALSE)","v":24},{"$f":"HLOOKUP(BG$7,$I$66:$DJ$120,ROWS($A$10:$A38)+2,FALSE)","v":560},{"$f":"HLOOKUP(BH$7,$I$66:$DJ$120,ROWS($A$10:$A38)+2,FALSE)","v":965},{"$f":"HLOOKUP(BI$7,$I$66:$DJ$120,ROWS($A$10:$A38)+2,FALSE)","v":0},{"$f":"HLOOKUP(BJ$7+0.5,$I$66:$DJ$120,ROWS($A$10:$A38)+2,FALSE)","v":5507},{"$f":"HLOOKUP(BK$7+0.5,$I$66:$DJ$120,ROWS($A$10:$A38)+2,FALSE)","v":271},{"$f":"HLOOKUP(BL$7+0.5,$I$66:$DJ$120,ROWS($A$10:$A38)+2,FALSE)","v":785},{"$f":"HLOOKUP(BM$7+0.5,$I$66:$DJ$120,ROWS($A$10:$A38)+2,FALSE)","v":898},{"$f":"HLOOKUP(BN$7+0.5,$I$66:$DJ$120,ROWS($A$10:$A38)+2,FALSE)","v":146},{"$f":"HLOOKUP(BO$7+0.5,$I$66:$DJ$120,ROWS($A$10:$A38)+2,FALSE)","v":1727},{"$f":"HLOOKUP(BP$7+0.5,$I$66:$DJ$120,ROWS($A$10:$A38)+2,FALSE)","v":962},{"$f":"HLOOKUP(BQ$7+0.5,$I$66:$DJ$120,ROWS($A$10:$A38)+2,FALSE)","v":372},{"$f":"HLOOKUP(BR$7+0.5,$I$66:$DJ$120,ROWS($A$10:$A38)+2,FALSE)","v":155},{"$f":"HLOOKUP(BS$7+0.5,$I$66:$DJ$120,ROWS($A$10:$A38)+2,FALSE)","v":48},{"$f":"HLOOKUP(BT$7+0.5,$I$66:$DJ$120,ROWS($A$10:$A38)+2,FALSE)","v":499},{"$f":"HLOOKUP(BU$7+0.5,$I$66:$DJ$120,ROWS($A$10:$A38)+2,FALSE)","v":358},{"$f":"HLOOKUP(BV$7+0.5,$I$66:$DJ$120,ROWS($A$10:$A38)+2,FALSE)","v":215},{"$f":"HLOOKUP(BW$7+0.5,$I$66:$DJ$120,ROWS($A$10:$A38)+2,FALSE)","v":464},{"$f":"HLOOKUP(BX$7+0.5,$I$66:$DJ$120,ROWS($A$10:$A38)+2,FALSE)","v":777},{"$f":"HLOOKUP(BY$7+0.5,$I$66:$DJ$120,ROWS($A$10:$A38)+2,FALSE)","v":541},{"$f":"HLOOKUP(BZ$7+0.5,$I$66:$DJ$120,ROWS($A$10:$A38)+2,FALSE)","v":2602},{"$f":"HLOOKUP(CA$7+0.5,$I$66:$DJ$120,ROWS($A$10:$A38)+2,FALSE)","v":1210},{"$f":"HLOOKUP(CB$7+0.5,$I$66:$DJ$120,ROWS($A$10:$A38)+2,FALSE)","v":457},{"$f":"HLOOKUP(CC$7+0.5,$I$66:$DJ$120,ROWS($A$10:$A38)+2,FALSE)","v":253},{"$f":"HLOOKUP(CD$7+0.5,$I$66:$DJ$120,ROWS($A$10:$A38)+2,FALSE)","v":127},{"$f":"HLOOKUP(CE$7+0.5,$I$66:$DJ$120,ROWS($A$10:$A38)+2,FALSE)","v":344},{"$f":"HLOOKUP(CF$7+0.5,$I$66:$DJ$120,ROWS($A$10:$A38)+2,FALSE)","v":155},{"$f":"HLOOKUP(CG$7+0.5,$I$66:$DJ$120,ROWS($A$10:$A38)+2,FALSE)","v":435},{"$f":"HLOOKUP(CH$7+0.5,$I$66:$DJ$120,ROWS($A$10:$A38)+2,FALSE)","v":1009},{"$f":"HLOOKUP(CI$7+0.5,$I$66:$DJ$120,ROWS($A$10:$A38)+2,FALSE)","v":430},{"$f":"HLOOKUP(CJ$7+0.5,$I$66:$DJ$120,ROWS($A$10:$A38)+2,FALSE)","v":771},{"$f":"HLOOKUP(CK$7+0.5,$I$66:$DJ$120,ROWS($A$10:$A38)+2,FALSE)","v":88},{"$f":"HLOOKUP(CL$7+0.5,$I$66:$DJ$120,ROWS($A$10:$A38)+2,FALSE)","v":"N/A"},{"$f":"HLOOKUP(CM$7+0.5,$I$66:$DJ$120,ROWS($A$10:$A38)+2,FALSE)","v":165},{"$f":"HLOOKUP(CN$7+0.5,$I$66:$DJ$120,ROWS($A$10:$A38)+2,FALSE)","v":155},{"$f":"HLOOKUP(CO$7+0.5,$I$66:$DJ$120,ROWS($A$10:$A38)+2,FALSE)","v":101},{"$f":"HLOOKUP(CP$7+0.5,$I$66:$DJ$120,ROWS($A$10:$A38)+2,FALSE)","v":326},{"$f":"HLOOKUP(CQ$7+0.5,$I$66:$DJ$120,ROWS($A$10:$A38)+2,FALSE)","v":349},{"$f":"HLOOKUP(CR$7+0.5,$I$66:$DJ$120,ROWS($A$10:$A38)+2,FALSE)","v":872},{"$f":"HLOOKUP(CS$7+0.5,$I$66:$DJ$120,ROWS($A$10:$A38)+2,FALSE)","v":213},{"$f":"HLOOKUP(CT$7+0.5,$I$66:$DJ$120,ROWS($A$10:$A38)+2,FALSE)","v":250},{"$f":"HLOOKUP(CU$7+0.5,$I$66:$DJ$120,ROWS($A$10:$A38)+2,FALSE)","v":884},{"$f":"HLOOKUP(CV$7+0.5,$I$66:$DJ$120,ROWS($A$10:$A38)+2,FALSE)","v":1249},{"$f":"HLOOKUP(CW$7+0.5,$I$66:$DJ$120,ROWS($A$10:$A38)+2,FALSE)","v":179},{"$f":"HLOOKUP(CX$7+0.5,$I$66:$DJ$120,ROWS($A$10:$A38)+2,FALSE)","v":155},{"$f":"HLOOKUP(CY$7+0.5,$I$66:$DJ$120,ROWS($A$10:$A38)+2,FALSE)","v":285},{"$f":"HLOOKUP(CZ$7+0.5,$I$66:$DJ$120,ROWS($A$10:$A38)+2,FALSE)","v":1280},{"$f":"HLOOKUP(DA$7+0.5,$I$66:$DJ$120,ROWS($A$10:$A38)+2,FALSE)","v":244},{"$f":"HLOOKUP(DB$7+0.5,$I$66:$DJ$120,ROWS($A$10:$A38)+2,FALSE)","v":2737},{"$f":"HLOOKUP(DC$7+0.5,$I$66:$DJ$120,ROWS($A$10:$A38)+2,FALSE)","v":507},{"$f":"HLOOKUP(DD$7+0.5,$I$66:$DJ$120,ROWS($A$10:$A38)+2,FALSE)","v":155},{"$f":"HLOOKUP(DE$7+0.5,$I$66:$DJ$120,ROWS($A$10:$A38)+2,FALSE)","v":478},{"$f":"HLOOKUP(DF$7+0.5,$I$66:$DJ$120,ROWS($A$10:$A38)+2,FALSE)","v":593},{"$f":"HLOOKUP(DG$7+0.5,$I$66:$DJ$120,ROWS($A$10:$A38)+2,FALSE)","v":40},{"$f":"HLOOKUP(DH$7+0.5,$I$66:$DJ$120,ROWS($A$10:$A38)+2,FALSE)","v":427},{"$f":"HLOOKUP(DI$7+0.5,$I$66:$DJ$120,ROWS($A$10:$A38)+2,FALSE)","v":421},{"$f":"HLOOKUP(DJ$7+0.5,$I$66:$DJ$120,ROWS($A$10:$A38)+2,FALSE)","v":155}]
[null,"Nevada",2688336,3578,2084668,23272,480317,23514,{"$f":"HLOOKUP(I$7,$I$66:$DJ$120,ROWS($A$10:$A39)+2,FALSE)","v":110345},{"$f":"HLOOKUP(J$7,$I$66:$DJ$120,ROWS($A$10:$A39)+2,FALSE)","v":280},{"$f":"HLOOKUP(K$7,$I$66:$DJ$120,ROWS($A$10:$A39)+2,FALSE)","v":597},{"$f":"HLOOKUP(L$7,$I$66:$DJ$120,ROWS($A$10:$A39)+2,FALSE)","v":10142},{"$f":"HLOOKUP(M$7,$I$66:$DJ$120,ROWS($A$10:$A39)+2,FALSE)","v":310},{"$f":"HLOOKUP(N$7,$I$66:$DJ$120,ROWS($A$10:$A39)+2,FALSE)","v":40114},{"$f":"HLOOKUP(O$7,$I$66:$DJ$120,ROWS($A$10:$A39)+2,FALSE)","v":2714},{"$f":"HLOOKUP(P$7,$I$66:$DJ$120,ROWS($A$10:$A39)+2,FALSE)","v":189},{"$f":"HLOOKUP(Q$7,$I$66:$DJ$120,ROWS($A$10:$A39)+2,FALSE)","v":184},{"$f":"HLOOKUP(R$7,$I$66:$DJ$120,ROWS($A$10:$A39)+2,FALSE)","v":983},{"$f":"HLOOKUP(S$7,$I$66:$DJ$120,ROWS($A$10:$A39)+2,FALSE)","v":2923},{"$f":"HLOOKUP(T$7,$I$66:$DJ$120,ROWS($A$10:$A39)+2,FALSE)","v":1731},{"$f":"HLOOKUP(U$7,$I$66:$DJ$120,ROWS($A$10:$A39)+2,FALSE)","v":4093},{"$f":"HLOOKUP(V$7,$I$66:$DJ$120,ROWS($A$10:$A39)+2,FALSE)","v":3929},{"$f":"HLOOKUP(W$7,$I$66:$DJ$120,ROWS($A$10:$A39)+2,FALSE)","v":1668},{"$f":"HLOOKUP(X$7,$I$66:$DJ$120,ROWS($A$10:$A39)+2,FALSE)","v":855},{"$f":"HLOOKUP(Y$7,$I$66:$DJ$120,ROWS($A$10:$A39)+2,FALSE)","v":114},{"$f":"HLOOKUP(Z$7,$I$66:$DJ$120,ROWS($A$10:$A39)+2,FALSE)","v":602},{"$f":"HLOOKUP(AA$7,$I$66:$DJ$120,ROWS($A$10:$A39)+2,FALSE)","v":628},{"$f":"HLOOKUP(AB$7,$I$66:$DJ$120,ROWS($A$10:$A39)+2,FALSE)","v":78},{"$f":"HLOOKUP(AC$7,$I$66:$DJ$120,ROWS($A$10:$A39)+2,FALSE)","v":49},{"$f":"HLOOKUP(AD$7,$I$66:$DJ$120,ROWS($A$10:$A39)+2,FALSE)","v":931},{"$f":"HLOOKUP(AE$7,$I$66:$DJ$120,ROWS($A$10:$A39)+2,FALSE)","v":256},{"$f":"HLOOKUP(AF$7,$I$66:$DJ$120,ROWS($A$10:$A39)+2,FALSE)","v":1663},{"$f":"HLOOKUP(AG$7,$I$66:$DJ$120,ROWS($A$10:$A39)+2,FALSE)","v":1055},{"$f":"HLOOKUP(AH$7,$I$66:$DJ$120,ROWS($A$10:$A39)+2,FALSE)","v":203},{"$f":"HLOOKUP(AI$7,$I$66:$DJ$120,ROWS($A$10:$A39)+2,FALSE)","v":335},{"$f":"HLOOKUP(AJ$7,$I$66:$DJ$120,ROWS($A$10:$A39)+2,FALSE)","v":1137},{"$f":"HLOOKUP(AK$7,$I$66:$DJ$120,ROWS($A$10:$A39)+2,FALSE)","v":32},{"$f":"HLOOKUP(AL$7,$I$66:$DJ$120,ROWS($A$10:$A39)+2,FALSE)","v":"N/A"},{"$f":"HLOOKUP(AM$7,$I$66:$DJ$120,ROWS($A$10:$A39)+2,FALSE)","v":0},{"$f":"HLOOKUP(AN$7,$I$66:$DJ$120,ROWS($A$10:$A39)+2,FALSE)","v":2118},{"$f":"HLOOKUP(AO$7,$I$66:$DJ$120,ROWS($A$10:$A39)+2,FALSE)","v":2136},{"$f":"HLOOKUP(AP$7,$I$66:$DJ$120,ROWS($A$10:$A39)+2,FALSE)","v":1516},{"$f":"HLOOKUP(AQ$7,$I$66:$DJ$120,ROWS($A$10:$A39)+2,FALSE)","v":1333},{"$f":"HLOOKUP(AR$7,$I$66:$DJ$120,ROWS($A$10:$A39)+2,FALSE)","v":0},{"$f":"HLOOKUP(AS$7,$I$66:$DJ$120,ROWS($A$10:$A39)+2,FALSE)","v":1354},{"$f":"HLOOKUP(AT$7,$I$66:$DJ$120,ROWS($A$10:$A39)+2,FALSE)","v":258},{"$f":"HLOOKUP(AU$7,$I$66:$DJ$120,ROWS($A$10:$A39)+2,FALSE)","v":1691},{"$f":"HLOOKUP(AV$7,$I$66:$DJ$120,ROWS($A$10:$A39)+2,FALSE)","v":570},{"$f":"HLOOKUP(AW$7,$I$66:$DJ$120,ROWS($A$10:$A39)+2,FALSE)","v":86},{"$f":"HLOOKUP(AX$7,$I$66:$DJ$120,ROWS($A$10:$A39)+2,FALSE)","v":165},{"$f":"HLOOKUP(AY$7,$I$66:$DJ$120,ROWS($A$10:$A39)+2,FALSE)","v":588},{"$f":"HLOOKUP(AZ$7,$I$66:$DJ$120,ROWS($A$10:$A39)+2,FALSE)","v":96},{"$f":"HLOOKUP(BA$7,$I$66:$DJ$120,ROWS($A$10:$A39)+2,FALSE)","v":7249},{"$f":"HLOOKUP(BB$7,$I$66:$DJ$120,ROWS($A$10:$A39)+2,FALSE)","v":3365},{"$f":"HLOOKUP(BC$7,$I$66:$DJ$120,ROWS($A$10:$A39)+2,FALSE)","v":0},{"$f":"HLOOKUP(BD$7,$I$66:$DJ$120,ROWS($A$10:$A39)+2,FALSE)","v":1740},{"$f":"HLOOKUP(BE$7,$I$66:$DJ$120,ROWS($A$10:$A39)+2,FALSE)","v":4680},{"$f":"HLOOKUP(BF$7,$I$66:$DJ$120,ROWS($A$10:$A39)+2,FALSE)","v":0},{"$f":"HLOOKUP(BG$7,$I$66:$DJ$120,ROWS($A$10:$A39)+2,FALSE)","v":2672},{"$f":"HLOOKUP(BH$7,$I$66:$DJ$120,ROWS($A$10:$A39)+2,FALSE)","v":933},{"$f":"HLOOKUP(BI$7,$I$66:$DJ$120,ROWS($A$10:$A39)+2,FALSE)","v":153},{"$f":"HLOOKUP(BJ$7+0.5,$I$66:$DJ$120,ROWS($A$10:$A39)+2,FALSE)","v":9419},{"$f":"HLOOKUP(BK$7+0.5,$I$66:$DJ$120,ROWS($A$10:$A39)+2,FALSE)","v":330},{"$f":"HLOOKUP(BL$7+0.5,$I$66:$DJ$120,ROWS($A$10:$A39)+2,FALSE)","v":525},{"$f":"HLOOKUP(BM$7+0.5,$I$66:$DJ$120,ROWS($A$10:$A39)+2,FALSE)","v":4338},{"$f":"HLOOKUP(BN$7+0.5,$I$66:$DJ$120,ROWS($A$10:$A39)+2,FALSE)","v":358},{"$f":"HLOOKUP(BO$7+0.5,$I$66:$DJ$120,ROWS($A$10:$A39)+2,FALSE)","v":5354},{"$f":"HLOOKUP(BP$7+0.5,$I$66:$DJ$120,ROWS($A$10:$A39)+2,FALSE)","v":1470},{"$f":"HLOOKUP(BQ$7+0.5,$I$66:$DJ$120,ROWS($A$10:$A39)+2,FALSE)","v":163},{"$f":"HLOOKUP(BR$7+0.5,$I$66:$DJ$120,ROWS($A$10:$A39)+2,FALSE)","v":226},{"$f":"HLOOKUP(BS$7+0.5,$I$66:$DJ$120,ROWS($A$10:$A39)+2,FALSE)","v":1261},{"$f":"HLOOKUP(BT$7+0.5,$I$66:$DJ$120,ROWS($A$10:$A39)+2,FALSE)","v":1608},{"$f":"HLOOKUP(BU$7+0.5,$I$66:$DJ$120,ROWS($A$10:$A39)+2,FALSE)","v":909},{"$f":"HLOOKUP(BV$7+0.5,$I$66:$DJ$120,ROWS($A$10:$A39)+2,FALSE)","v":2643},{"$f":"HLOOKUP(BW$7+0.5,$I$66:$DJ$120,ROWS($A$10:$A39)+2,FALSE)","v":1734},{"$f":"HLOOKUP(BX$7+0.5,$I$66:$DJ$120,ROWS($A$10:$A39)+2,FALSE)","v":1031},{"$f":"HLOOKUP(BY$7+0.5,$I$66:$DJ$120,ROWS($A$10:$A39)+2,FALSE)","v":781},{"$f":"HLOOKUP(BZ$7+0.5,$I$66:$DJ$120,ROWS($A$10:$A39)+2,FALSE)","v":188},{"$f":"HLOOKUP(CA$7+0.5,$I$66:$DJ$120,ROWS($A$10:$A39)+2,FALSE)","v":734},{"$f":"HLOOKUP(CB$7+0.5,$I$66:$DJ$120,ROWS($A$10:$A39)+2,FALSE)","v":620},{"$f":"HLOOKUP(CC$7+0.5,$I$66:$DJ$120,ROWS($A$10:$A39)+2,FALSE)","v":128},{"$f":"HLOOKUP(CD$7+0.5,$I$66:$DJ$120,ROWS($A$10:$A39)+2,FALSE)","v":80},{"$f":"HLOOKUP(CE$7+0.5,$I$66:$DJ$120,ROWS($A$10:$A39)+2,FALSE)","v":701},{"$f":"HLOOKUP(CF$7+0.5,$I$66:$DJ$120,ROWS($A$10:$A39)+2,FALSE)","v":255},{"$f":"HLOOKUP(CG$7+0.5,$I$66:$DJ$120,ROWS($A$10:$A39)+2,FALSE)","v":831},{"$f":"HLOOKUP(CH$7+0.5,$I$66:$DJ$120,ROWS($A$10:$A39)+2,FALSE)","v":1329},{"$f":"HLOOKUP(CI$7+0.5,$I$66:$DJ$120,ROWS($A$10:$A39)+2,FALSE)","v":279},{"$f":"HLOOKUP(CJ$7+0.5,$I$66:$DJ$120,ROWS($A$10:$A39)+2,FALSE)","v":237},{"$f":"HLOOKUP(CK$7+0.5,$I$66:$DJ$120,ROWS($A$10:$A39)+2,FALSE)","v":740},{"$f":"HLOOKUP(CL$7+0.5,$I$66:$DJ$120,ROWS($A$10:$A39)+2,FALSE)","v":37},{"$f":"HLOOKUP(CM$7+0.5,$I$66:$DJ$120,ROWS($A$10:$A39)+2,FALSE)","v":"N/A"},{"$f":"HLOOKUP(CN$7+0.5,$I$66:$DJ$120,ROWS($A$10:$A39)+2,FALSE)","v":234},{"$f":"HLOOKUP(CO$7+0.5,$I$66:$DJ$120,ROWS($A$10:$A39)+2,FALSE)","v":1709},{"$f":"HLOOKUP(CP$7+0.5,$I$66:$DJ$120,ROWS($A$10:$A39)+2,FALSE)","v":1429},{"$f":"HLOOKUP(CQ$7+0.5,$I$66:$DJ$120,ROWS($A$10:$A39)+2,FALSE)","v":819},{"$f":"HLOOKUP(CR$7+0.5,$I$66:$DJ$120,ROWS($A$10:$A39)+2,FALSE)","v":895},{"$f":"HLOOKUP(CS$7+0.5,$I$66:$DJ$120,ROWS($A$10:$A39)+2,FALSE)","v":234},{"$f":"HLOOKUP(CT$7+0.5,$I$66:$DJ$120,ROWS($A$10:$A39)+2,FALSE)","v":894},{"$f":"HLOOKUP(CU$7+0.5,$I$66:$DJ$120,ROWS($A$10:$A39)+2,FALSE)","v":254},{"$f":"HLOOKUP(CV$7+0.5,$I$66:$DJ$120,ROWS($A$10:$A39)+2,FALSE)","v":695},{"$f":"HLOOKUP(CW$7+0.5,$I$66:$DJ$120,ROWS($A$10:$A39)+2,FALSE)","v":581},{"$f":"HLOOKUP(CX$7+0.5,$I$66:$DJ$120,ROWS($A$10:$A39)+2,FALSE)","v":148},{"$f":"HLOOKUP(CY$7+0.5,$I$66:$DJ$120,ROWS($A$10:$A39)+2,FALSE)","v":273},{"$f":"HLOOKUP(CZ$7+0.5,$I$66:$DJ$120,ROWS($A$10:$A39)+2,FALSE)","v":557},{"$f":"HLOOKUP(DA$7+0.5,$I$66:$DJ$120,ROWS($A$10:$A39)+2,FALSE)","v":150},{"$f":"HLOOKUP(DB$7+0.5,$I$66:$DJ$120,ROWS($A$10:$A39)+2,FALSE)","v":3923},{"$f":"HLOOKUP(DC$7+0.5,$I$66:$DJ$120,ROWS($A$10:$A39)+2,FALSE)","v":2105},{"$f":"HLOOKUP(DD$7+0.5,$I$66:$DJ$120,ROWS($A$10:$A39)+2,FALSE)","v":234},{"$f":"HLOOKUP(DE$7+0.5,$I$66:$DJ$120,ROWS($A$10:$A39)+2,FALSE)","v":1369},{"$f":"HLOOKUP(DF$7+0.5,$I$66:$DJ$120,ROWS($A$10:$A39)+2,FALSE)","v":1646},{"$f":"HLOOKUP(DG$7+0.5,$I$66:$DJ$120,ROWS($A$10:$A39)+2,FALSE)","v":234},{"$f":"HLOOKUP(DH$7+0.5,$I$66:$DJ$120,ROWS($A$10:$A39)+2,FALSE)","v":2369},{"$f":"HLOOKUP(DI$7+0.5,$I$66:$DJ$120,ROWS($A$10:$A39)+2,FALSE)","v":702},{"$f":"HLOOKUP(DJ$7+0.5,$I$66:$DJ$120,ROWS($A$10:$A39)+2,FALSE)","v":258}]
[null,"New Hampshire",1305678,2046,1141236,9064,122129,8186,{"$f":"HLOOKUP(I$7,$I$66:$DJ$120,ROWS($A$10:$A40)+2,FALSE)","v":37000},{"$f":"HLOOKUP(J$7,$I$66:$DJ$120,ROWS($A$10:$A40)+2,FALSE)","v":193},{"$f":"HLOOKUP(K$7,$I$66:$DJ$120,ROWS($A$10:$A40)+2,FALSE)","v":0},{"$f":"HLOOKUP(L$7,$I$66:$DJ$120,ROWS($A$10:$A40)+2,FALSE)","v":246},{"$f":"HLOOKUP(M$7,$I$66:$DJ$120,ROWS($A$10:$A40)+2,FALSE)","v":22},{"$f":"HLOOKUP(N$7,$I$66:$DJ$120,ROWS($A$10:$A40)+2,FALSE)","v":547},{"$f":"HLOOKUP(O$7,$I$66:$DJ$120,ROWS($A$10:$A40)+2,FALSE)","v":403},{"$f":"HLOOKUP(P$7,$I$66:$DJ$120,ROWS($A$10:$A40)+2,FALSE)","v":1617},{"$f":"HLOOKUP(Q$7,$I$66:$DJ$120,ROWS($A$10:$A40)+2,FALSE)","v":20},{"$f":"HLOOKUP(R$7,$I$66:$DJ$120,ROWS($A$10:$A40)+2,FALSE)","v":68},{"$f":"HLOOKUP(S$7,$I$66:$DJ$120,ROWS($A$10:$A40)+2,FALSE)","v":1970},{"$f":"HLOOKUP(T$7,$I$66:$DJ$120,ROWS($A$10:$A40)+2,FALSE)","v":535},{"$f":"HLOOKUP(U$7,$I$66:$DJ$120,ROWS($A$10:$A40)+2,FALSE)","v":0},{"$f":"HLOOKUP(V$7,$I$66:$DJ$120,ROWS($A$10:$A40)+2,FALSE)","v":0},{"$f":"HLOOKUP(W$7,$I$66:$DJ$120,ROWS($A$10:$A40)+2,FALSE)","v":478},{"$f":"HLOOKUP(X$7,$I$66:$DJ$120,ROWS($A$10:$A40)+2,FALSE)","v":470},{"$f":"HLOOKUP(Y$7,$I$66:$DJ$120,ROWS($A$10:$A40)+2,FALSE)","v":47},{"$f":"HLOOKUP(Z$7,$I$66:$DJ$120,ROWS($A$10:$A40)+2,FALSE)","v":0},{"$f":"HLOOKUP(AA$7,$I$66:$DJ$120,ROWS($A$10:$A40)+2,FALSE)","v":0},{"$f":"HLOOKUP(AB$7,$I$66:$DJ$120,ROWS($A$10:$A40)+2,FALSE)","v":0},{"$f":"HLOOKUP(AC$7,$I$66:$DJ$120,ROWS($A$10:$A40)+2,FALSE)","v":3080},{"$f":"HLOOKUP(AD$7,$I$66:$DJ$120,ROWS($A$10:$A40)+2,FALSE)","v":222},{"$f":"HLOOKUP(AE$7,$I$66:$DJ$120,ROWS($A$10:$A40)+2,FALSE)","v":15526},{"$f":"HLOOKUP(AF$7,$I$66:$DJ$120,ROWS($A$10:$A40)+2,FALSE)","v":155},{"$f":"HLOOKUP(AG$7,$I$66:$DJ$120,ROWS($A$10:$A40)+2,FALSE)","v":104},{"$f":"HLOOKUP(AH$7,$I$66:$DJ$120,ROWS($A$10:$A40)+2,FALSE)","v":160},{"$f":"HLOOKUP(AI$7,$I$66:$DJ$120,ROWS($A$10:$A40)+2,FALSE)","v":153},{"$f":"HLOOKUP(AJ$7,$I$66:$DJ$120,ROWS($A$10:$A40)+2,FALSE)","v":230},{"$f":"HLOOKUP(AK$7,$I$66:$DJ$120,ROWS($A$10:$A40)+2,FALSE)","v":33},{"$f":"HLOOKUP(AL$7,$I$66:$DJ$120,ROWS($A$10:$A40)+2,FALSE)","v":186},{"$f":"HLOOKUP(AM$7,$I$66:$DJ$120,ROWS($A$10:$A40)+2,FALSE)","v":"N/A"},{"$f":"HLOOKUP(AN$7,$I$66:$DJ$120,ROWS($A$10:$A40)+2,FALSE)","v":294},{"$f":"HLOOKUP(AO$7,$I$66:$DJ$120,ROWS($A$10:$A40)+2,FALSE)","v":186},{"$f":"HLOOKUP(AP$7,$I$66:$DJ$120,ROWS($A$10:$A40)+2,FALSE)","v":1471},{"$f":"HLOOKUP(AQ$7,$I$66:$DJ$120,ROWS($A$10:$A40)+2,FALSE)","v":1297},{"$f":"HLOOKUP(AR$7,$I$66:$DJ$120,ROWS($A$10:$A40)+2,FALSE)","v":47},{"$f":"HLOOKUP(AS$7,$I$66:$DJ$120,ROWS($A$10:$A40)+2,FALSE)","v":248},{"$f":"HLOOKUP(AT$7,$I$66:$DJ$120,ROWS($A$10:$A40)+2,FALSE)","v":0},{"$f":"HLOOKUP(AU$7,$I$66:$DJ$120,ROWS($A$10:$A40)+2,FALSE)","v":198},{"$f":"HLOOKUP(AV$7,$I$66:$DJ$120,ROWS($A$10:$A40)+2,FALSE)","v":1015},{"$f":"HLOOKUP(AW$7,$I$66:$DJ$120,ROWS($A$10:$A40)+2,FALSE)","v":608},{"$f":"HLOOKUP(AX$7,$I$66:$DJ$120,ROWS($A$10:$A40)+2,FALSE)","v":588},{"$f":"HLOOKUP(AY$7,$I$66:$DJ$120,ROWS($A$10:$A40)+2,FALSE)","v":86},{"$f":"HLOOKUP(AZ$7,$I$66:$DJ$120,ROWS($A$10:$A40)+2,FALSE)","v":126},{"$f":"HLOOKUP(BA$7,$I$66:$DJ$120,ROWS($A$10:$A40)+2,FALSE)","v":605},{"$f":"HLOOKUP(BB$7,$I$66:$DJ$120,ROWS($A$10:$A40)+2,FALSE)","v":158},{"$f":"HLOOKUP(BC$7,$I$66:$DJ$120,ROWS($A$10:$A40)+2,FALSE)","v":2138},{"$f":"HLOOKUP(BD$7,$I$66:$DJ$120,ROWS($A$10:$A40)+2,FALSE)","v":880},{"$f":"HLOOKUP(BE$7,$I$66:$DJ$120,ROWS($A$10:$A40)+2,FALSE)","v":428},{"$f":"HLOOKUP(BF$7,$I$66:$DJ$120,ROWS($A$10:$A40)+2,FALSE)","v":0},{"$f":"HLOOKUP(BG$7,$I$66:$DJ$120,ROWS($A$10:$A40)+2,FALSE)","v":0},{"$f":"HLOOKUP(BH$7,$I$66:$DJ$120,ROWS($A$10:$A40)+2,FALSE)","v":162},{"$f":"HLOOKUP(BI$7,$I$66:$DJ$120,ROWS($A$10:$A40)+2,FALSE)","v":0},{"$f":"HLOOKUP(BJ$7+0.5,$I$66:$DJ$120,ROWS($A$10:$A40)+2,FALSE)","v":3717},{"$f":"HLOOKUP(BK$7+0.5,$I$66:$DJ$120,ROWS($A$10:$A40)+2,FALSE)","v":237},{"$f":"HLOOKUP(BL$7+0.5,$I$66:$DJ$120,ROWS($A$10:$A40)+2,FALSE)","v":184},{"$f":"HLOOKUP(BM$7+0.5,$I$66:$DJ$120,ROWS($A$10:$A40)+2,FALSE)","v":210},{"$f":"HLOOKUP(BN$7+0.5,$I$66:$DJ$120,ROWS($A$10:$A40)+2,FALSE)","v":37},{"$f":"HLOOKUP(BO$7+0.5,$I$66:$DJ$120,ROWS($A$10:$A40)+2,FALSE)","v":334},{"$f":"HLOOKUP(BP$7+0.5,$I$66:$DJ$120,ROWS($A$10:$A40)+2,FALSE)","v":313},{"$f":"HLOOKUP(BQ$7+0.5,$I$66:$DJ$120,ROWS($A$10:$A40)+2,FALSE)","v":519},{"$f":"HLOOKUP(BR$7+0.5,$I$66:$DJ$120,ROWS($A$10:$A40)+2,FALSE)","v":32},{"$f":"HLOOKUP(BS$7+0.5,$I$66:$DJ$120,ROWS($A$10:$A40)+2,FALSE)","v":112},{"$f":"HLOOKUP(BT$7+0.5,$I$66:$DJ$120,ROWS($A$10:$A40)+2,FALSE)","v":813},{"$f":"HLOOKUP(BU$7+0.5,$I$66:$DJ$120,ROWS($A$10:$A40)+2,FALSE)","v":449},{"$f":"HLOOKUP(BV$7+0.5,$I$66:$DJ$120,ROWS($A$10:$A40)+2,FALSE)","v":184},{"$f":"HLOOKUP(BW$7+0.5,$I$66:$DJ$120,ROWS($A$10:$A40)+2,FALSE)","v":184},{"$f":"HLOOKUP(BX$7+0.5,$I$66:$DJ$120,ROWS($A$10:$A40)+2,FALSE)","v":402},{"$f":"HLOOKUP(BY$7+0.5,$I$66:$DJ$120,ROWS($A$10:$A40)+2,FALSE)","v":394},{"$f":"HLOOKUP(BZ$7+0.5,$I$66:$DJ$120,ROWS($A$10:$A40)+2,FALSE)","v":78},{"$f":"HLOOKUP(CA$7+0.5,$I$66:$DJ$120,ROWS($A$10:$A40)+2,FALSE)","v":184},{"$f":"HLOOKUP(CB$7+0.5,$I$66:$DJ$120,ROWS($A$10:$A40)+2,FALSE)","v":184},{"$f":"HLOOKUP(CC$7+0.5,$I$66:$DJ$120,ROWS($A$10:$A40)+2,FALSE)","v":184},{"$f":"HLOOKUP(CD$7+0.5,$I$66:$DJ$120,ROWS($A$10:$A40)+2,FALSE)","v":1064},{"$f":"HLOOKUP(CE$7+0.5,$I$66:$DJ$120,ROWS($A$10:$A40)+2,FALSE)","v":177},{"$f":"HLOOKUP(CF$7+0.5,$I$66:$DJ$120,ROWS($A$10:$A40)+2,FALSE)","v":2811},{"$f":"HLOOKUP(CG$7+0.5,$I$66:$DJ$120,ROWS($A$10:$A40)+2,FALSE)","v":165},{"$f":"HLOOKUP(CH$7+0.5,$I$66:$DJ$120,ROWS($A$10:$A40)+2,FALSE)","v":145},{"$f":"HLOOKUP(CI$7+0.5,$I$66:$DJ$120,ROWS($A$10:$A40)+2,FALSE)","v":258},{"$f":"HLOOKUP(CJ$7+0.5,$I$66:$DJ$120,ROWS($A$10:$A40)+2,FALSE)","v":181},{"$f":"HLOOKUP(CK$7+0.5,$I$66:$DJ$120,ROWS($A$10:$A40)+2,FALSE)","v":378},{"$f":"HLOOKUP(CL$7+0.5,$I$66:$DJ$120,ROWS($A$10:$A40)+2,FALSE)","v":54},{"$f":"HLOOKUP(CM$7+0.5,$I$66:$DJ$120,ROWS($A$10:$A40)+2,FALSE)","v":231},{"$f":"HLOOKUP(CN$7+0.5,$I$66:$DJ$120,ROWS($A$10:$A40)+2,FALSE)","v":"N/A"},{"$f":"HLOOKUP(CO$7+0.5,$I$66:$DJ$120,ROWS($A$10:$A40)+2,FALSE)","v":247},{"$f":"HLOOKUP(CP$7+0.5,$I$66:$DJ$120,ROWS($A$10:$A40)+2,FALSE)","v":179},{"$f":"HLOOKUP(CQ$7+0.5,$I$66:$DJ$120,ROWS($A$10:$A40)+2,FALSE)","v":510},{"$f":"HLOOKUP(CR$7+0.5,$I$66:$DJ$120,ROWS($A$10:$A40)+2,FALSE)","v":649},{"$f":"HLOOKUP(CS$7+0.5,$I$66:$DJ$120,ROWS($A$10:$A40)+2,FALSE)","v":79},{"$f":"HLOOKUP(CT$7+0.5,$I$66:$DJ$120,ROWS($A$10:$A40)+2,FALSE)","v":223},{"$f":"HLOOKUP(CU$7+0.5,$I$66:$DJ$120,ROWS($A$10:$A40)+2,FALSE)","v":184},{"$f":"HLOOKUP(CV$7+0.5,$I$66:$DJ$120,ROWS($A$10:$A40)+2,FALSE)","v":267},{"$f":"HLOOKUP(CW$7+0.5,$I$66:$DJ$120,ROWS($A$10:$A40)+2,FALSE)","v":569},{"$f":"HLOOKUP(CX$7+0.5,$I$66:$DJ$120,ROWS($A$10:$A40)+2,FALSE)","v":301},{"$f":"HLOOKUP(CY$7+0.5,$I$66:$DJ$120,ROWS($A$10:$A40)+2,FALSE)","v":757},{"$f":"HLOOKUP(CZ$7+0.5,$I$66:$DJ$120,ROWS($A$10:$A40)+2,FALSE)","v":102},{"$f":"HLOOKUP(DA$7+0.5,$I$66:$DJ$120,ROWS($A$10:$A40)+2,FALSE)","v":159},{"$f":"HLOOKUP(DB$7+0.5,$I$66:$DJ$120,ROWS($A$10:$A40)+2,FALSE)","v":438},{"$f":"HLOOKUP(DC$7+0.5,$I$66:$DJ$120,ROWS($A$10:$A40)+2,FALSE)","v":271},{"$f":"HLOOKUP(DD$7+0.5,$I$66:$DJ$120,ROWS($A$10:$A40)+2,FALSE)","v":991},{"$f":"HLOOKUP(DE$7+0.5,$I$66:$DJ$120,ROWS($A$10:$A40)+2,FALSE)","v":575},{"$f":"HLOOKUP(DF$7+0.5,$I$66:$DJ$120,ROWS($A$10:$A40)+2,FALSE)","v":497},{"$f":"HLOOKUP(DG$7+0.5,$I$66:$DJ$120,ROWS($A$10:$A40)+2,FALSE)","v":184},{"$f":"HLOOKUP(DH$7+0.5,$I$66:$DJ$120,ROWS($A$10:$A40)+2,FALSE)","v":184},{"$f":"HLOOKUP(DI$7+0.5,$I$66:$DJ$120,ROWS($A$10:$A40)+2,FALSE)","v":218},{"$f":"HLOOKUP(DJ$7+0.5,$I$66:$DJ$120,ROWS($A$10:$A40)+2,FALSE)","v":184}]
[null,"New Jersey",8719952,4595,7825661,21158,693380,21063,{"$f":"HLOOKUP(I$7,$I$66:$DJ$120,ROWS($A$10:$A41)+2,FALSE)","v":140194},{"$f":"HLOOKUP(J$7,$I$66:$DJ$120,ROWS($A$10:$A41)+2,FALSE)","v":189},{"$f":"HLOOKUP(K$7,$I$66:$DJ$120,ROWS($A$10:$A41)+2,FALSE)","v":1198},{"$f":"HLOOKUP(L$7,$I$66:$DJ$120,ROWS($A$10:$A41)+2,FALSE)","v":3784},{"$f":"HLOOKUP(M$7,$I$66:$DJ$120,ROWS($A$10:$A41)+2,FALSE)","v":57},{"$f":"HLOOKUP(N$7,$I$66:$DJ$120,ROWS($A$10:$A41)+2,FALSE)","v":5986},{"$f":"HLOOKUP(O$7,$I$66:$DJ$120,ROWS($A$10:$A41)+2,FALSE)","v":2203},{"$f":"HLOOKUP(P$7,$I$66:$DJ$120,ROWS($A$10:$A41)+2,FALSE)","v":1924},{"$f":"HLOOKUP(Q$7,$I$66:$DJ$120,ROWS($A$10:$A41)+2,FALSE)","v":2100},{"$f":"HLOOKUP(R$7,$I$66:$DJ$120,ROWS($A$10:$A41)+2,FALSE)","v":781},{"$f":"HLOOKUP(S$7,$I$66:$DJ$120,ROWS($A$10:$A41)+2,FALSE)","v":12907},{"$f":"HLOOKUP(T$7,$I$66:$DJ$120,ROWS($A$10:$A41)+2,FALSE)","v":4268},{"$f":"HLOOKUP(U$7,$I$66:$DJ$120,ROWS($A$10:$A41)+2,FALSE)","v":264},{"$f":"HLOOKUP(V$7,$I$66:$DJ$120,ROWS($A$10:$A41)+2,FALSE)","v":256},{"$f":"HLOOKUP(W$7,$I$66:$DJ$120,ROWS($A$10:$A41)+2,FALSE)","v":3690},{"$f":"HLOOKUP(X$7,$I$66:$DJ$120,ROWS($A$10:$A41)+2,FALSE)","v":718},{"$f":"HLOOKUP(Y$7,$I$66:$DJ$120,ROWS($A$10:$A41)+2,FALSE)","v":332},{"$f":"HLOOKUP(Z$7,$I$66:$DJ$120,ROWS($A$10:$A41)+2,FALSE)","v":317},{"$f":"HLOOKUP(AA$7,$I$66:$DJ$120,ROWS($A$10:$A41)+2,FALSE)","v":102},{"$f":"HLOOKUP(AB$7,$I$66:$DJ$120,ROWS($A$10:$A41)+2,FALSE)","v":871},{"$f":"HLOOKUP(AC$7,$I$66:$DJ$120,ROWS($A$10:$A41)+2,FALSE)","v":624},{"$f":"HLOOKUP(AD$7,$I$66:$DJ$120,ROWS($A$10:$A41)+2,FALSE)","v":5335},{"$f":"HLOOKUP(AE$7,$I$66:$DJ$120,ROWS($A$10:$A41)+2,FALSE)","v":4675},{"$f":"HLOOKUP(AF$7,$I$66:$DJ$120,ROWS($A$10:$A41)+2,FALSE)","v":1889},{"$f":"HLOOKUP(AG$7,$I$66:$DJ$120,ROWS($A$10:$A41)+2,FALSE)","v":1261},{"$f":"HLOOKUP(AH$7,$I$66:$DJ$120,ROWS($A$10:$A41)+2,FALSE)","v":510},{"$f":"HLOOKUP(AI$7,$I$66:$DJ$120,ROWS($A$10:$A41)+2,FALSE)","v":583},{"$f":"HLOOKUP(AJ$7,$I$66:$DJ$120,ROWS($A$10:$A41)+2,FALSE)","v":49},{"$f":"HLOOKUP(AK$7,$I$66:$DJ$120,ROWS($A$10:$A41)+2,FALSE)","v":312},{"$f":"HLOOKUP(AL$7,$I$66:$DJ$120,ROWS($A$10:$A41)+2,FALSE)","v":899},{"$f":"HLOOKUP(AM$7,$I$66:$DJ$120,ROWS($A$10:$A41)+2,FALSE)","v":499},{"$f":"HLOOKUP(AN$7,$I$66:$DJ$120,ROWS($A$10:$A41)+2,FALSE)","v":"N/A"},{"$f":"HLOOKUP(AO$7,$I$66:$DJ$120,ROWS($A$10:$A41)+2,FALSE)","v":355},{"$f":"HLOOKUP(AP$7,$I$66:$DJ$120,ROWS($A$10:$A41)+2,FALSE)","v":40815},{"$f":"HLOOKUP(AQ$7,$I$66:$DJ$120,ROWS($A$10:$A41)+2,FALSE)","v":2482},{"$f":"HLOOKUP(AR$7,$I$66:$DJ$120,ROWS($A$10:$A41)+2,FALSE)","v":61},{"$f":"HLOOKUP(AS$7,$I$66:$DJ$120,ROWS($A$10:$A41)+2,FALSE)","v":1121},{"$f":"HLOOKUP(AT$7,$I$66:$DJ$120,ROWS($A$10:$A41)+2,FALSE)","v":773},{"$f":"HLOOKUP(AU$7,$I$66:$DJ$120,ROWS($A$10:$A41)+2,FALSE)","v":360},{"$f":"HLOOKUP(AV$7,$I$66:$DJ$120,ROWS($A$10:$A41)+2,FALSE)","v":19733},{"$f":"HLOOKUP(AW$7,$I$66:$DJ$120,ROWS($A$10:$A41)+2,FALSE)","v":463},{"$f":"HLOOKUP(AX$7,$I$66:$DJ$120,ROWS($A$10:$A41)+2,FALSE)","v":1586},{"$f":"HLOOKUP(AY$7,$I$66:$DJ$120,ROWS($A$10:$A41)+2,FALSE)","v":0},{"$f":"HLOOKUP(AZ$7,$I$66:$DJ$120,ROWS($A$10:$A41)+2,FALSE)","v":1412},{"$f":"HLOOKUP(BA$7,$I$66:$DJ$120,ROWS($A$10:$A41)+2,FALSE)","v":3801},{"$f":"HLOOKUP(BB$7,$I$66:$DJ$120,ROWS($A$10:$A41)+2,FALSE)","v":256},{"$f":"HLOOKUP(BC$7,$I$66:$DJ$120,ROWS($A$10:$A41)+2,FALSE)","v":0},{"$f":"HLOOKUP(BD$7,$I$66:$DJ$120,ROWS($A$10:$A41)+2,FALSE)","v":4458},{"$f":"HLOOKUP(BE$7,$I$66:$DJ$120,ROWS($A$10:$A41)+2,FALSE)","v":2454},{"$f":"HLOOKUP(BF$7,$I$66:$DJ$120,ROWS($A$10:$A41)+2,FALSE)","v":1252},{"$f":"HLOOKUP(BG$7,$I$66:$DJ$120,ROWS($A$10:$A41)+2,FALSE)","v":214},{"$f":"HLOOKUP(BH$7,$I$66:$DJ$120,ROWS($A$10:$A41)+2,FALSE)","v":15},{"$f":"HLOOKUP(BI$7,$I$66:$DJ$120,ROWS($A$10:$A41)+2,FALSE)","v":4312},{"$f":"HLOOKUP(BJ$7+0.5,$I$66:$DJ$120,ROWS($A$10:$A41)+2,FALSE)","v":8607},{"$f":"HLOOKUP(BK$7+0.5,$I$66:$DJ$120,ROWS($A$10:$A41)+2,FALSE)","v":209},{"$f":"HLOOKUP(BL$7+0.5,$I$66:$DJ$120,ROWS($A$10:$A41)+2,FALSE)","v":790},{"$f":"HLOOKUP(BM$7+0.5,$I$66:$DJ$120,ROWS($A$10:$A41)+2,FALSE)","v":2287},{"$f":"HLOOKUP(BN$7+0.5,$I$66:$DJ$120,ROWS($A$10:$A41)+2,FALSE)","v":97},{"$f":"HLOOKUP(BO$7+0.5,$I$66:$DJ$120,ROWS($A$10:$A41)+2,FALSE)","v":1519},{"$f":"HLOOKUP(BP$7+0.5,$I$66:$DJ$120,ROWS($A$10:$A41)+2,FALSE)","v":1931},{"$f":"HLOOKUP(BQ$7+0.5,$I$66:$DJ$120,ROWS($A$10:$A41)+2,FALSE)","v":845},{"$f":"HLOOKUP(BR$7+0.5,$I$66:$DJ$120,ROWS($A$10:$A41)+2,FALSE)","v":1025},{"$f":"HLOOKUP(BS$7+0.5,$I$66:$DJ$120,ROWS($A$10:$A41)+2,FALSE)","v":409},{"$f":"HLOOKUP(BT$7+0.5,$I$66:$DJ$120,ROWS($A$10:$A41)+2,FALSE)","v":3313},{"$f":"HLOOKUP(BU$7+0.5,$I$66:$DJ$120,ROWS($A$10:$A41)+2,FALSE)","v":2025},{"$f":"HLOOKUP(BV$7+0.5,$I$66:$DJ$120,ROWS($A$10:$A41)+2,FALSE)","v":307},{"$f":"HLOOKUP(BW$7+0.5,$I$66:$DJ$120,ROWS($A$10:$A41)+2,FALSE)","v":262},{"$f":"HLOOKUP(BX$7+0.5,$I$66:$DJ$120,ROWS($A$10:$A41)+2,FALSE)","v":1572},{"$f":"HLOOKUP(BY$7+0.5,$I$66:$DJ$120,ROWS($A$10:$A41)+2,FALSE)","v":436},{"$f":"HLOOKUP(BZ$7+0.5,$I$66:$DJ$120,ROWS($A$10:$A41)+2,FALSE)","v":441},{"$f":"HLOOKUP(CA$7+0.5,$I$66:$DJ$120,ROWS($A$10:$A41)+2,FALSE)","v":306},{"$f":"HLOOKUP(CB$7+0.5,$I$66:$DJ$120,ROWS($A$10:$A41)+2,FALSE)","v":125},{"$f":"HLOOKUP(CC$7+0.5,$I$66:$DJ$120,ROWS($A$10:$A41)+2,FALSE)","v":590},{"$f":"HLOOKUP(CD$7+0.5,$I$66:$DJ$120,ROWS($A$10:$A41)+2,FALSE)","v":629},{"$f":"HLOOKUP(CE$7+0.5,$I$66:$DJ$120,ROWS($A$10:$A41)+2,FALSE)","v":2324},{"$f":"HLOOKUP(CF$7+0.5,$I$66:$DJ$120,ROWS($A$10:$A41)+2,FALSE)","v":1356},{"$f":"HLOOKUP(CG$7+0.5,$I$66:$DJ$120,ROWS($A$10:$A41)+2,FALSE)","v":1056},{"$f":"HLOOKUP(CH$7+0.5,$I$66:$DJ$120,ROWS($A$10:$A41)+2,FALSE)","v":1200},{"$f":"HLOOKUP(CI$7+0.5,$I$66:$DJ$120,ROWS($A$10:$A41)+2,FALSE)","v":677},{"$f":"HLOOKUP(CJ$7+0.5,$I$66:$DJ$120,ROWS($A$10:$A41)+2,FALSE)","v":544},{"$f":"HLOOKUP(CK$7+0.5,$I$66:$DJ$120,ROWS($A$10:$A41)+2,FALSE)","v":80},{"$f":"HLOOKUP(CL$7+0.5,$I$66:$DJ$120,ROWS($A$10:$A41)+2,FALSE)","v":429},{"$f":"HLOOKUP(CM$7+0.5,$I$66:$DJ$120,ROWS($A$10:$A41)+2,FALSE)","v":566},{"$f":"HLOOKUP(CN$7+0.5,$I$66:$DJ$120,ROWS($A$10:$A41)+2,FALSE)","v":360},{"$f":"HLOOKUP(CO$7+0.5,$I$66:$DJ$120,ROWS($A$10:$A41)+2,FALSE)","v":"N/A"},{"$f":"HLOOKUP(CP$7+0.5,$I$66:$DJ$120,ROWS($A$10:$A41)+2,FALSE)","v":537},{"$f":"HLOOKUP(CQ$7+0.5,$I$66:$DJ$120,ROWS($A$10:$A41)+2,FALSE)","v":4703},{"$f":"HLOOKUP(CR$7+0.5,$I$66:$DJ$120,ROWS($A$10:$A41)+2,FALSE)","v":1416},{"$f":"HLOOKUP(CS$7+0.5,$I$66:$DJ$120,ROWS($A$10:$A41)+2,FALSE)","v":103},{"$f":"HLOOKUP(CT$7+0.5,$I$66:$DJ$120,ROWS($A$10:$A41)+2,FALSE)","v":608},{"$f":"HLOOKUP(CU$7+0.5,$I$66:$DJ$120,ROWS($A$10:$A41)+2,FALSE)","v":707},{"$f":"HLOOKUP(CV$7+0.5,$I$66:$DJ$120,ROWS($A$10:$A41)+2,FALSE)","v":331},{"$f":"HLOOKUP(CW$7+0.5,$I$66:$DJ$120,ROWS($A$10:$A41)+2,FALSE)","v":2951},{"$f":"HLOOKUP(CX$7+0.5,$I$66:$DJ$120,ROWS($A$10:$A41)+2,FALSE)","v":319},{"$f":"HLOOKUP(CY$7+0.5,$I$66:$DJ$120,ROWS($A$10:$A41)+2,FALSE)","v":789},{"$f":"HLOOKUP(CZ$7+0.5,$I$66:$DJ$120,ROWS($A$10:$A41)+2,FALSE)","v":198},{"$f":"HLOOKUP(DA$7+0.5,$I$66:$DJ$120,ROWS($A$10:$A41)+2,FALSE)","v":782},{"$f":"HLOOKUP(DB$7+0.5,$I$66:$DJ$120,ROWS($A$10:$A41)+2,FALSE)","v":1818},{"$f":"HLOOKUP(DC$7+0.5,$I$66:$DJ$120,ROWS($A$10:$A41)+2,FALSE)","v":229},{"$f":"HLOOKUP(DD$7+0.5,$I$66:$DJ$120,ROWS($A$10:$A41)+2,FALSE)","v":198},{"$f":"HLOOKUP(DE$7+0.5,$I$66:$DJ$120,ROWS($A$10:$A41)+2,FALSE)","v":1750},{"$f":"HLOOKUP(DF$7+0.5,$I$66:$DJ$120,ROWS($A$10:$A41)+2,FALSE)","v":1946},{"$f":"HLOOKUP(DG$7+0.5,$I$66:$DJ$120,ROWS($A$10:$A41)+2,FALSE)","v":1293},{"$f":"HLOOKUP(DH$7+0.5,$I$66:$DJ$120,ROWS($A$10:$A41)+2,FALSE)","v":259},{"$f":"HLOOKUP(DI$7+0.5,$I$66:$DJ$120,ROWS($A$10:$A41)+2,FALSE)","v":29},{"$f":"HLOOKUP(DJ$7+0.5,$I$66:$DJ$120,ROWS($A$10:$A41)+2,FALSE)","v":1535}]
[null,"New Mexico",2055293,2718,1753413,15690,228218,13801,{"$f":"HLOOKUP(I$7,$I$66:$DJ$120,ROWS($A$10:$A42)+2,FALSE)","v":62130},{"$f":"HLOOKUP(J$7,$I$66:$DJ$120,ROWS($A$10:$A42)+2,FALSE)","v":410},{"$f":"HLOOKUP(K$7,$I$66:$DJ$120,ROWS($A$10:$A42)+2,FALSE)","v":416},{"$f":"HLOOKUP(L$7,$I$66:$DJ$120,ROWS($A$10:$A42)+2,FALSE)","v":7444},{"$f":"HLOOKUP(M$7,$I$66:$DJ$120,ROWS($A$10:$A42)+2,FALSE)","v":682},{"$f":"HLOOKUP(N$7,$I$66:$DJ$120,ROWS($A$10:$A42)+2,FALSE)","v":7066},{"$f":"HLOOKUP(O$7,$I$66:$DJ$120,ROWS($A$10:$A42)+2,FALSE)","v":5525},{"$f":"HLOOKUP(P$7,$I$66:$DJ$120,ROWS($A$10:$A42)+2,FALSE)","v":0},{"$f":"HLOOKUP(Q$7,$I$66:$DJ$120,ROWS($A$10:$A42)+2,FALSE)","v":0},{"$f":"HLOOKUP(R$7,$I$66:$DJ$120,ROWS($A$10:$A42)+2,FALSE)","v":212},{"$f":"HLOOKUP(S$7,$I$66:$DJ$120,ROWS($A$10:$A42)+2,FALSE)","v":2806},{"$f":"HLOOKUP(T$7,$I$66:$DJ$120,ROWS($A$10:$A42)+2,FALSE)","v":676},{"$f":"HLOOKUP(U$7,$I$66:$DJ$120,ROWS($A$10:$A42)+2,FALSE)","v":81},{"$f":"HLOOKUP(V$7,$I$66:$DJ$120,ROWS($A$10:$A42)+2,FALSE)","v":355},{"$f":"HLOOKUP(W$7,$I$66:$DJ$120,ROWS($A$10:$A42)+2,FALSE)","v":466},{"$f":"HLOOKUP(X$7,$I$66:$DJ$120,ROWS($A$10:$A42)+2,FALSE)","v":2030},{"$f":"HLOOKUP(Y$7,$I$66:$DJ$120,ROWS($A$10:$A42)+2,FALSE)","v":0},{"$f":"HLOOKUP(Z$7,$I$66:$DJ$120,ROWS($A$10:$A42)+2,FALSE)","v":1333},{"$f":"HLOOKUP(AA$7,$I$66:$DJ$120,ROWS($A$10:$A42)+2,FALSE)","v":87},{"$f":"HLOOKUP(AB$7,$I$66:$DJ$120,ROWS($A$10:$A42)+2,FALSE)","v":184},{"$f":"HLOOKUP(AC$7,$I$66:$DJ$120,ROWS($A$10:$A42)+2,FALSE)","v":510},{"$f":"HLOOKUP(AD$7,$I$66:$DJ$120,ROWS($A$10:$A42)+2,FALSE)","v":2277},{"$f":"HLOOKUP(AE$7,$I$66:$DJ$120,ROWS($A$10:$A42)+2,FALSE)","v":252},{"$f":"HLOOKUP(AF$7,$I$66:$DJ$120,ROWS($A$10:$A42)+2,FALSE)","v":908},{"$f":"HLOOKUP(AG$7,$I$66:$DJ$120,ROWS($A$10:$A42)+2,FALSE)","v":438},{"$f":"HLOOKUP(AH$7,$I$66:$DJ$120,ROWS($A$10:$A42)+2,FALSE)","v":556},{"$f":"HLOOKUP(AI$7,$I$66:$DJ$120,ROWS($A$10:$A42)+2,FALSE)","v":1183},{"$f":"HLOOKUP(AJ$7,$I$66:$DJ$120,ROWS($A$10:$A42)+2,FALSE)","v":544},{"$f":"HLOOKUP(AK$7,$I$66:$DJ$120,ROWS($A$10:$A42)+2,FALSE)","v":353},{"$f":"HLOOKUP(AL$7,$I$66:$DJ$120,ROWS($A$10:$A42)+2,FALSE)","v":2099},{"$f":"HLOOKUP(AM$7,$I$66:$DJ$120,ROWS($A$10:$A42)+2,FALSE)","v":114},{"$f":"HLOOKUP(AN$7,$I$66:$DJ$120,ROWS($A$10:$A42)+2,FALSE)","v":245},{"$f":"HLOOKUP(AO$7,$I$66:$DJ$120,ROWS($A$10:$A42)+2,FALSE)","v":"N/A"},{"$f":"HLOOKUP(AP$7,$I$66:$DJ$120,ROWS($A$10:$A42)+2,FALSE)","v":1445},{"$f":"HLOOKUP(AQ$7,$I$66:$DJ$120,ROWS($A$10:$A42)+2,FALSE)","v":522},{"$f":"HLOOKUP(AR$7,$I$66:$DJ$120,ROWS($A$10:$A42)+2,FALSE)","v":264},{"$f":"HLOOKUP(AS$7,$I$66:$DJ$120,ROWS($A$10:$A42)+2,FALSE)","v":1742},{"$f":"HLOOKUP(AT$7,$I$66:$DJ$120,ROWS($A$10:$A42)+2,FALSE)","v":234},{"$f":"HLOOKUP(AU$7,$I$66:$DJ$120,ROWS($A$10:$A42)+2,FALSE)","v":916},{"$f":"HLOOKUP(AV$7,$I$66:$DJ$120,ROWS($A$10:$A42)+2,FALSE)","v":492},{"$f":"HLOOKUP(AW$7,$I$66:$DJ$120,ROWS($A$10:$A42)+2,FALSE)","v":0},{"$f":"HLOOKUP(AX$7,$I$66:$DJ$120,ROWS($A$10:$A42)+2,FALSE)","v":145},{"$f":"HLOOKUP(AY$7,$I$66:$DJ$120,ROWS($A$10:$A42)+2,FALSE)","v":240},{"$f":"HLOOKUP(AZ$7,$I$66:$DJ$120,ROWS($A$10:$A42)+2,FALSE)","v":899},{"$f":"HLOOKUP(BA$7,$I$66:$DJ$120,ROWS($A$10:$A42)+2,FALSE)","v":13633},{"$f":"HLOOKUP(BB$7,$I$66:$DJ$120,ROWS($A$10:$A42)+2,FALSE)","v":303},{"$f":"HLOOKUP(BC$7,$I$66:$DJ$120,ROWS($A$10:$A42)+2,FALSE)","v":71},{"$f":"HLOOKUP(BD$7,$I$66:$DJ$120,ROWS($A$10:$A42)+2,FALSE)","v":425},{"$f":"HLOOKUP(BE$7,$I$66:$DJ$120,ROWS($A$10:$A42)+2,FALSE)","v":924},{"$f":"HLOOKUP(BF$7,$I$66:$DJ$120,ROWS($A$10:$A42)+2,FALSE)","v":0},{"$f":"HLOOKUP(BG$7,$I$66:$DJ$120,ROWS($A$10:$A42)+2,FALSE)","v":340},{"$f":"HLOOKUP(BH$7,$I$66:$DJ$120,ROWS($A$10:$A42)+2,FALSE)","v":283},{"$f":"HLOOKUP(BI$7,$I$66:$DJ$120,ROWS($A$10:$A42)+2,FALSE)","v":99},{"$f":"HLOOKUP(BJ$7+0.5,$I$66:$DJ$120,ROWS($A$10:$A42)+2,FALSE)","v":7330},{"$f":"HLOOKUP(BK$7+0.5,$I$66:$DJ$120,ROWS($A$10:$A42)+2,FALSE)","v":494},{"$f":"HLOOKUP(BL$7+0.5,$I$66:$DJ$120,ROWS($A$10:$A42)+2,FALSE)","v":446},{"$f":"HLOOKUP(BM$7+0.5,$I$66:$DJ$120,ROWS($A$10:$A42)+2,FALSE)","v":3409},{"$f":"HLOOKUP(BN$7+0.5,$I$66:$DJ$120,ROWS($A$10:$A42)+2,FALSE)","v":607},{"$f":"HLOOKUP(BO$7+0.5,$I$66:$DJ$120,ROWS($A$10:$A42)+2,FALSE)","v":2324},{"$f":"HLOOKUP(BP$7+0.5,$I$66:$DJ$120,ROWS($A$10:$A42)+2,FALSE)","v":1537},{"$f":"HLOOKUP(BQ$7+0.5,$I$66:$DJ$120,ROWS($A$10:$A42)+2,FALSE)","v":198},{"$f":"HLOOKUP(BR$7+0.5,$I$66:$DJ$120,ROWS($A$10:$A42)+2,FALSE)","v":198},{"$f":"HLOOKUP(BS$7+0.5,$I$66:$DJ$120,ROWS($A$10:$A42)+2,FALSE)","v":336},{"$f":"HLOOKUP(BT$7+0.5,$I$66:$DJ$120,ROWS($A$10:$A42)+2,FALSE)","v":1557},{"$f":"HLOOKUP(BU$7+0.5,$I$66:$DJ$120,ROWS($A$10:$A42)+2,FALSE)","v":406},{"$f":"HLOOKUP(BV$7+0.5,$I$66:$DJ$120,ROWS($A$10:$A42)+2,FALSE)","v":128},{"$f":"HLOOKUP(BW$7+0.5,$I$66:$DJ$120,ROWS($A$10:$A42)+2,FALSE)","v":326},{"$f":"HLOOKUP(BX$7+0.5,$I$66:$DJ$120,ROWS($A$10:$A42)+2,FALSE)","v":315},{"$f":"HLOOKUP(BY$7+0.5,$I$66:$DJ$120,ROWS($A$10:$A42)+2,FALSE)","v":2244},{"$f":"HLOOKUP(BZ$7+0.5,$I$66:$DJ$120,ROWS($A$10:$A42)+2,FALSE)","v":198},{"$f":"HLOOKUP(CA$7+0.5,$I$66:$DJ$120,ROWS($A$10:$A42)+2,FALSE)","v":1078},{"$f":"HLOOKUP(CB$7+0.5,$I$66:$DJ$120,ROWS($A$10:$A42)+2,FALSE)","v":152},{"$f":"HLOOKUP(CC$7+0.5,$I$66:$DJ$120,ROWS($A$10:$A42)+2,FALSE)","v":244},{"$f":"HLOOKUP(CD$7+0.5,$I$66:$DJ$120,ROWS($A$10:$A42)+2,FALSE)","v":384},{"$f":"HLOOKUP(CE$7+0.5,$I$66:$DJ$120,ROWS($A$10:$A42)+2,FALSE)","v":1964},{"$f":"HLOOKUP(CF$7+0.5,$I$66:$DJ$120,ROWS($A$10:$A42)+2,FALSE)","v":213},{"$f":"HLOOKUP(CG$7+0.5,$I$66:$DJ$120,ROWS($A$10:$A42)+2,FALSE)","v":699},{"$f":"HLOOKUP(CH$7+0.5,$I$66:$DJ$120,ROWS($A$10:$A42)+2,FALSE)","v":435},{"$f":"HLOOKUP(CI$7+0.5,$I$66:$DJ$120,ROWS($A$10:$A42)+2,FALSE)","v":553},{"$f":"HLOOKUP(CJ$7+0.5,$I$66:$DJ$120,ROWS($A$10:$A42)+2,FALSE)","v":877},{"$f":"HLOOKUP(CK$7+0.5,$I$66:$DJ$120,ROWS($A$10:$A42)+2,FALSE)","v":340},{"$f":"HLOOKUP(CL$7+0.5,$I$66:$DJ$120,ROWS($A$10:$A42)+2,FALSE)","v":312},{"$f":"HLOOKUP(CM$7+0.5,$I$66:$DJ$120,ROWS($A$10:$A42)+2,FALSE)","v":1159},{"$f":"HLOOKUP(CN$7+0.5,$I$66:$DJ$120,ROWS($A$10:$A42)+2,FALSE)","v":130},{"$f":"HLOOKUP(CO$7+0.5,$I$66:$DJ$120,ROWS($A$10:$A42)+2,FALSE)","v":229},{"$f":"HLOOKUP(CP$7+0.5,$I$66:$DJ$120,ROWS($A$10:$A42)+2,FALSE)","v":"N/A"},{"$f":"HLOOKUP(CQ$7+0.5,$I$66:$DJ$120,ROWS($A$10:$A42)+2,FALSE)","v":781},{"$f":"HLOOKUP(CR$7+0.5,$I$66:$DJ$120,ROWS($A$10:$A42)+2,FALSE)","v":300},{"$f":"HLOOKUP(CS$7+0.5,$I$66:$DJ$120,ROWS($A$10:$A42)+2,FALSE)","v":310},{"$f":"HLOOKUP(CT$7+0.5,$I$66:$DJ$120,ROWS($A$10:$A42)+2,FALSE)","v":1115},{"$f":"HLOOKUP(CU$7+0.5,$I$66:$DJ$120,ROWS($A$10:$A42)+2,FALSE)","v":203},{"$f":"HLOOKUP(CV$7+0.5,$I$66:$DJ$120,ROWS($A$10:$A42)+2,FALSE)","v":655},{"$f":"HLOOKUP(CW$7+0.5,$I$66:$DJ$120,ROWS($A$10:$A42)+2,FALSE)","v":284},{"$f":"HLOOKUP(CX$7+0.5,$I$66:$DJ$120,ROWS($A$10:$A42)+2,FALSE)","v":198},{"$f":"HLOOKUP(CY$7+0.5,$I$66:$DJ$120,ROWS($A$10:$A42)+2,FALSE)","v":204},{"$f":"HLOOKUP(CZ$7+0.5,$I$66:$DJ$120,ROWS($A$10:$A42)+2,FALSE)","v":281},{"$f":"HLOOKUP(DA$7+0.5,$I$66:$DJ$120,ROWS($A$10:$A42)+2,FALSE)","v":577},{"$f":"HLOOKUP(DB$7+0.5,$I$66:$DJ$120,ROWS($A$10:$A42)+2,FALSE)","v":3724},{"$f":"HLOOKUP(DC$7+0.5,$I$66:$DJ$120,ROWS($A$10:$A42)+2,FALSE)","v":218},{"$f":"HLOOKUP(DD$7+0.5,$I$66:$DJ$120,ROWS($A$10:$A42)+2,FALSE)","v":120},{"$f":"HLOOKUP(DE$7+0.5,$I$66:$DJ$120,ROWS($A$10:$A42)+2,FALSE)","v":337},{"$f":"HLOOKUP(DF$7+0.5,$I$66:$DJ$120,ROWS($A$10:$A42)+2,FALSE)","v":616},{"$f":"HLOOKUP(DG$7+0.5,$I$66:$DJ$120,ROWS($A$10:$A42)+2,FALSE)","v":198},{"$f":"HLOOKUP(DH$7+0.5,$I$66:$DJ$120,ROWS($A$10:$A42)+2,FALSE)","v":342},{"$f":"HLOOKUP(DI$7+0.5,$I$66:$DJ$120,ROWS($A$10:$A42)+2,FALSE)","v":313},{"$f":"HLOOKUP(DJ$7+0.5,$I$66:$DJ$120,ROWS($A$10:$A42)+2,FALSE)","v":158}]
[null,"New York",19248685,7023,17055260,37016,1756105,32216,{"$f":"HLOOKUP(I$7,$I$66:$DJ$120,ROWS($A$10:$A43)+2,FALSE)","v":282209},{"$f":"HLOOKUP(J$7,$I$66:$DJ$120,ROWS($A$10:$A43)+2,FALSE)","v":1812},{"$f":"HLOOKUP(K$7,$I$66:$DJ$120,ROWS($A$10:$A43)+2,FALSE)","v":6124},{"$f":"HLOOKUP(L$7,$I$66:$DJ$120,ROWS($A$10:$A43)+2,FALSE)","v":2821},{"$f":"HLOOKUP(M$7,$I$66:$DJ$120,ROWS($A$10:$A43)+2,FALSE)","v":1041},{"$f":"HLOOKUP(N$7,$I$66:$DJ$120,ROWS($A$10:$A43)+2,FALSE)","v":25761},{"$f":"HLOOKUP(O$7,$I$66:$DJ$120,ROWS($A$10:$A43)+2,FALSE)","v":3724},{"$f":"HLOOKUP(P$7,$I$66:$DJ$120,ROWS($A$10:$A43)+2,FALSE)","v":15123},{"$f":"HLOOKUP(Q$7,$I$66:$DJ$120,ROWS($A$10:$A43)+2,FALSE)","v":1124},{"$f":"HLOOKUP(R$7,$I$66:$DJ$120,ROWS($A$10:$A43)+2,FALSE)","v":3702},{"$f":"HLOOKUP(S$7,$I$66:$DJ$120,ROWS($A$10:$A43)+2,FALSE)","v":29344},{"$f":"HLOOKUP(T$7,$I$66:$DJ$120,ROWS($A$10:$A43)+2,FALSE)","v":10584},{"$f":"HLOOKUP(U$7,$I$66:$DJ$120,ROWS($A$10:$A43)+2,FALSE)","v":1002},{"$f":"HLOOKUP(V$7,$I$66:$DJ$120,ROWS($A$10:$A43)+2,FALSE)","v":434},{"$f":"HLOOKUP(W$7,$I$66:$DJ$120,ROWS($A$10:$A43)+2,FALSE)","v":6914},{"$f":"HLOOKUP(X$7,$I$66:$DJ$120,ROWS($A$10:$A43)+2,FALSE)","v":2198},{"$f":"HLOOKUP(Y$7,$I$66:$DJ$120,ROWS($A$10:$A43)+2,FALSE)","v":928},{"$f":"HLOOKUP(Z$7,$I$66:$DJ$120,ROWS($A$10:$A43)+2,FALSE)","v":838},{"$f":"HLOOKUP(AA$7,$I$66:$DJ$120,ROWS($A$10:$A43)+2,FALSE)","v":2414},{"$f":"HLOOKUP(AB$7,$I$66:$DJ$120,ROWS($A$10:$A43)+2,FALSE)","v":1495},{"$f":"HLOOKUP(AC$7,$I$66:$DJ$120,ROWS($A$10:$A43)+2,FALSE)","v":2915},{"$f":"HLOOKUP(AD$7,$I$66:$DJ$120,ROWS($A$10:$A43)+2,FALSE)","v":5037},{"$f":"HLOOKUP(AE$7,$I$66:$DJ$120,ROWS($A$10:$A43)+2,FALSE)","v":14646},{"$f":"HLOOKUP(AF$7,$I$66:$DJ$120,ROWS($A$10:$A43)+2,FALSE)","v":3936},{"$f":"HLOOKUP(AG$7,$I$66:$DJ$120,ROWS($A$10:$A43)+2,FALSE)","v":1824},{"$f":"HLOOKUP(AH$7,$I$66:$DJ$120,ROWS($A$10:$A43)+2,FALSE)","v":401},{"$f":"HLOOKUP(AI$7,$I$66:$DJ$120,ROWS($A$10:$A43)+2,FALSE)","v":1417},{"$f":"HLOOKUP(AJ$7,$I$66:$DJ$120,ROWS($A$10:$A43)+2,FALSE)","v":391},{"$f":"HLOOKUP(AK$7,$I$66:$DJ$120,ROWS($A$10:$A43)+2,FALSE)","v":579},{"$f":"HLOOKUP(AL$7,$I$66:$DJ$120,ROWS($A$10:$A43)+2,FALSE)","v":1785},{"$f":"HLOOKUP(AM$7,$I$66:$DJ$120,ROWS($A$10:$A43)+2,FALSE)","v":2972},{"$f":"HLOOKUP(AN$7,$I$66:$DJ$120,ROWS($A$10:$A43)+2,FALSE)","v":41450},{"$f":"HLOOKUP(AO$7,$I$66:$DJ$120,ROWS($A$10:$A43)+2,FALSE)","v":461},{"$f":"HLOOKUP(AP$7,$I$66:$DJ$120,ROWS($A$10:$A43)+2,FALSE)","v":"N/A"},{"$f":"HLOOKUP(AQ$7,$I$66:$DJ$120,ROWS($A$10:$A43)+2,FALSE)","v":9336},{"$f":"HLOOKUP(AR$7,$I$66:$DJ$120,ROWS($A$10:$A43)+2,FALSE)","v":374},{"$f":"HLOOKUP(AS$7,$I$66:$DJ$120,ROWS($A$10:$A43)+2,FALSE)","v":5191},{"$f":"HLOOKUP(AT$7,$I$66:$DJ$120,ROWS($A$10:$A43)+2,FALSE)","v":1425},{"$f":"HLOOKUP(AU$7,$I$66:$DJ$120,ROWS($A$10:$A43)+2,FALSE)","v":2189},{"$f":"HLOOKUP(AV$7,$I$66:$DJ$120,ROWS($A$10:$A43)+2,FALSE)","v":26596},{"$f":"HLOOKUP(AW$7,$I$66:$DJ$120,ROWS($A$10:$A43)+2,FALSE)","v":1393},{"$f":"HLOOKUP(AX$7,$I$66:$DJ$120,ROWS($A$10:$A43)+2,FALSE)","v":6947},{"$f":"HLOOKUP(AY$7,$I$66:$DJ$120,ROWS($A$10:$A43)+2,FALSE)","v":112},{"$f":"HLOOKUP(AZ$7,$I$66:$DJ$120,ROWS($A$10:$A43)+2,FALSE)","v":2660},{"$f":"HLOOKUP(BA$7,$I$66:$DJ$120,ROWS($A$10:$A43)+2,FALSE)","v":9151},{"$f":"HLOOKUP(BB$7,$I$66:$DJ$120,ROWS($A$10:$A43)+2,FALSE)","v":773},{"$f":"HLOOKUP(BC$7,$I$66:$DJ$120,ROWS($A$10:$A43)+2,FALSE)","v":3882},{"$f":"HLOOKUP(BD$7,$I$66:$DJ$120,ROWS($A$10:$A43)+2,FALSE)","v":10800},{"$f":"HLOOKUP(BE$7,$I$66:$DJ$120,ROWS($A$10:$A43)+2,FALSE)","v":2986},{"$f":"HLOOKUP(BF$7,$I$66:$DJ$120,ROWS($A$10:$A43)+2,FALSE)","v":631},{"$f":"HLOOKUP(BG$7,$I$66:$DJ$120,ROWS($A$10:$A43)+2,FALSE)","v":1878},{"$f":"HLOOKUP(BH$7,$I$66:$DJ$120,ROWS($A$10:$A43)+2,FALSE)","v":688},{"$f":"HLOOKUP(BI$7,$I$66:$DJ$120,ROWS($A$10:$A43)+2,FALSE)","v":10582},{"$f":"HLOOKUP(BJ$7+0.5,$I$66:$DJ$120,ROWS($A$10:$A43)+2,FALSE)","v":11956},{"$f":"HLOOKUP(BK$7+0.5,$I$66:$DJ$120,ROWS($A$10:$A43)+2,FALSE)","v":1002},{"$f":"HLOOKUP(BL$7+0.5,$I$66:$DJ$120,ROWS($A$10:$A43)+2,FALSE)","v":2270},{"$f":"HLOOKUP(BM$7+0.5,$I$66:$DJ$120,ROWS($A$10:$A43)+2,FALSE)","v":1100},{"$f":"HLOOKUP(BN$7+0.5,$I$66:$DJ$120,ROWS($A$10:$A43)+2,FALSE)","v":734},{"$f":"HLOOKUP(BO$7+0.5,$I$66:$DJ$120,ROWS($A$10:$A43)+2,FALSE)","v":3856},{"$f":"HLOOKUP(BP$7+0.5,$I$66:$DJ$120,ROWS($A$10:$A43)+2,FALSE)","v":1151},{"$f":"HLOOKUP(BQ$7+0.5,$I$66:$DJ$120,ROWS($A$10:$A43)+2,FALSE)","v":3667},{"$f":"HLOOKUP(BR$7+0.5,$I$66:$DJ$120,ROWS($A$10:$A43)+2,FALSE)","v":588},{"$f":"HLOOKUP(BS$7+0.5,$I$66:$DJ$120,ROWS($A$10:$A43)+2,FALSE)","v":1051},{"$f":"HLOOKUP(BT$7+0.5,$I$66:$DJ$120,ROWS($A$10:$A43)+2,FALSE)","v":4718},{"$f":"HLOOKUP(BU$7+0.5,$I$66:$DJ$120,ROWS($A$10:$A43)+2,FALSE)","v":2320},{"$f":"HLOOKUP(BV$7+0.5,$I$66:$DJ$120,ROWS($A$10:$A43)+2,FALSE)","v":973},{"$f":"HLOOKUP(BW$7+0.5,$I$66:$DJ$120,ROWS($A$10:$A43)+2,FALSE)","v":377},{"$f":"HLOOKUP(BX$7+0.5,$I$66:$DJ$120,ROWS($A$10:$A43)+2,FALSE)","v":1720},{"$f":"HLOOKUP(BY$7+0.5,$I$66:$DJ$120,ROWS($A$10:$A43)+2,FALSE)","v":958},{"$f":"HLOOKUP(BZ$7+0.5,$I$66:$DJ$120,ROWS($A$10:$A43)+2,FALSE)","v":783},{"$f":"HLOOKUP(CA$7+0.5,$I$66:$DJ$120,ROWS($A$10:$A43)+2,FALSE)","v":397},{"$f":"HLOOKUP(CB$7+0.5,$I$66:$DJ$120,ROWS($A$10:$A43)+2,FALSE)","v":1223},{"$f":"HLOOKUP(CC$7+0.5,$I$66:$DJ$120,ROWS($A$10:$A43)+2,FALSE)","v":916},{"$f":"HLOOKUP(CD$7+0.5,$I$66:$DJ$120,ROWS($A$10:$A43)+2,FALSE)","v":1114},{"$f":"HLOOKUP(CE$7+0.5,$I$66:$DJ$120,ROWS($A$10:$A43)+2,FALSE)","v":1192},{"$f":"HLOOKUP(CF$7+0.5,$I$66:$DJ$120,ROWS($A$10:$A43)+2,FALSE)","v":2367},{"$f":"HLOOKUP(CG$7+0.5,$I$66:$DJ$120,ROWS($A$10:$A43)+2,FALSE)","v":947},{"$f":"HLOOKUP(CH$7+0.5,$I$66:$DJ$120,ROWS($A$10:$A43)+2,FALSE)","v":678},{"$f":"HLOOKUP(CI$7+0.5,$I$66:$DJ$120,ROWS($A$10:$A43)+2,FALSE)","v":266},{"$f":"HLOOKUP(CJ$7+0.5,$I$66:$DJ$120,ROWS($A$10:$A43)+2,FALSE)","v":595},{"$f":"HLOOKUP(CK$7+0.5,$I$66:$DJ$120,ROWS($A$10:$A43)+2,FALSE)","v":282},{"$f":"HLOOKUP(CL$7+0.5,$I$66:$DJ$120,ROWS($A$10:$A43)+2,FALSE)","v":553},{"$f":"HLOOKUP(CM$7+0.5,$I$66:$DJ$120,ROWS($A$10:$A43)+2,FALSE)","v":1037},{"$f":"HLOOKUP(CN$7+0.5,$I$66:$DJ$120,ROWS($A$10:$A43)+2,FALSE)","v":1172},{"$f":"HLOOKUP(CO$7+0.5,$I$66:$DJ$120,ROWS($A$10:$A43)+2,FALSE)","v":4170},{"$f":"HLOOKUP(CP$7+0.5,$I$66:$DJ$120,ROWS($A$10:$A43)+2,FALSE)","v":276},{"$f":"HLOOKUP(CQ$7+0.5,$I$66:$DJ$120,ROWS($A$10:$A43)+2,FALSE)","v":"N/A"},{"$f":"HLOOKUP(CR$7+0.5,$I$66:$DJ$120,ROWS($A$10:$A43)+2,FALSE)","v":1874},{"$f":"HLOOKUP(CS$7+0.5,$I$66:$DJ$120,ROWS($A$10:$A43)+2,FALSE)","v":266},{"$f":"HLOOKUP(CT$7+0.5,$I$66:$DJ$120,ROWS($A$10:$A43)+2,FALSE)","v":1717},{"$f":"HLOOKUP(CU$7+0.5,$I$66:$DJ$120,ROWS($A$10:$A43)+2,FALSE)","v":887},{"$f":"HLOOKUP(CV$7+0.5,$I$66:$DJ$120,ROWS($A$10:$A43)+2,FALSE)","v":977},{"$f":"HLOOKUP(CW$7+0.5,$I$66:$DJ$120,ROWS($A$10:$A43)+2,FALSE)","v":3427},{"$f":"HLOOKUP(CX$7+0.5,$I$66:$DJ$120,ROWS($A$10:$A43)+2,FALSE)","v":663},{"$f":"HLOOKUP(CY$7+0.5,$I$66:$DJ$120,ROWS($A$10:$A43)+2,FALSE)","v":2791},{"$f":"HLOOKUP(CZ$7+0.5,$I$66:$DJ$120,ROWS($A$10:$A43)+2,FALSE)","v":121},{"$f":"HLOOKUP(DA$7+0.5,$I$66:$DJ$120,ROWS($A$10:$A43)+2,FALSE)","v":1051},{"$f":"HLOOKUP(DB$7+0.5,$I$66:$DJ$120,ROWS($A$10:$A43)+2,FALSE)","v":2132},{"$f":"HLOOKUP(DC$7+0.5,$I$66:$DJ$120,ROWS($A$10:$A43)+2,FALSE)","v":482},{"$f":"HLOOKUP(DD$7+0.5,$I$66:$DJ$120,ROWS($A$10:$A43)+2,FALSE)","v":1242},{"$f":"HLOOKUP(DE$7+0.5,$I$66:$DJ$120,ROWS($A$10:$A43)+2,FALSE)","v":2343},{"$f":"HLOOKUP(DF$7+0.5,$I$66:$DJ$120,ROWS($A$10:$A43)+2,FALSE)","v":1367},{"$f":"HLOOKUP(DG$7+0.5,$I$66:$DJ$120,ROWS($A$10:$A43)+2,FALSE)","v":470},{"$f":"HLOOKUP(DH$7+0.5,$I$66:$DJ$120,ROWS($A$10:$A43)+2,FALSE)","v":1014},{"$f":"HLOOKUP(DI$7+0.5,$I$66:$DJ$120,ROWS($A$10:$A43)+2,FALSE)","v":645},{"$f":"HLOOKUP(DJ$7+0.5,$I$66:$DJ$120,ROWS($A$10:$A43)+2,FALSE)","v":3796}]
[null,"North Carolina",9539412,5364,8070238,36924,1160510,33476,{"$f":"HLOOKUP(I$7,$I$66:$DJ$120,ROWS($A$10:$A44)+2,FALSE)","v":265291},{"$f":"HLOOKUP(J$7,$I$66:$DJ$120,ROWS($A$10:$A44)+2,FALSE)","v":5420},{"$f":"HLOOKUP(K$7,$I$66:$DJ$120,ROWS($A$10:$A44)+2,FALSE)","v":3991},{"$f":"HLOOKUP(L$7,$I$66:$DJ$120,ROWS($A$10:$A44)+2,FALSE)","v":4286},{"$f":"HLOOKUP(M$7,$I$66:$DJ$120,ROWS($A$10:$A44)+2,FALSE)","v":327},{"$f":"HLOOKUP(N$7,$I$66:$DJ$120,ROWS($A$10:$A44)+2,FALSE)","v":15373},{"$f":"HLOOKUP(O$7,$I$66:$DJ$120,ROWS($A$10:$A44)+2,FALSE)","v":3919},{"$f":"HLOOKUP(P$7,$I$66:$DJ$120,ROWS($A$10:$A44)+2,FALSE)","v":1975},{"$f":"HLOOKUP(Q$7,$I$66:$DJ$120,ROWS($A$10:$A44)+2,FALSE)","v":954},{"$f":"HLOOKUP(R$7,$I$66:$DJ$120,ROWS($A$10:$A44)+2,FALSE)","v":1135},{"$f":"HLOOKUP(S$7,$I$66:$DJ$120,ROWS($A$10:$A44)+2,FALSE)","v":28044},{"$f":"HLOOKUP(T$7,$I$66:$DJ$120,ROWS($A$10:$A44)+2,FALSE)","v":16192},{"$f":"HLOOKUP(U$7,$I$66:$DJ$120,ROWS($A$10:$A44)+2,FALSE)","v":1806},{"$f":"HLOOKUP(V$7,$I$66:$DJ$120,ROWS($A$10:$A44)+2,FALSE)","v":675},{"$f":"HLOOKUP(W$7,$I$66:$DJ$120,ROWS($A$10:$A44)+2,FALSE)","v":5971},{"$f":"HLOOKUP(X$7,$I$66:$DJ$120,ROWS($A$10:$A44)+2,FALSE)","v":3228},{"$f":"HLOOKUP(Y$7,$I$66:$DJ$120,ROWS($A$10:$A44)+2,FALSE)","v":654},{"$f":"HLOOKUP(Z$7,$I$66:$DJ$120,ROWS($A$10:$A44)+2,FALSE)","v":4995},{"$f":"HLOOKUP(AA$7,$I$66:$DJ$120,ROWS($A$10:$A44)+2,FALSE)","v":1637},{"$f":"HLOOKUP(AB$7,$I$66:$DJ$120,ROWS($A$10:$A44)+2,FALSE)","v":2936},{"$f":"HLOOKUP(AC$7,$I$66:$DJ$120,ROWS($A$10:$A44)+2,FALSE)","v":824},{"$f":"HLOOKUP(AD$7,$I$66:$DJ$120,ROWS($A$10:$A44)+2,FALSE)","v":10485},{"$f":"HLOOKUP(AE$7,$I$66:$DJ$120,ROWS($A$10:$A44)+2,FALSE)","v":9053},{"$f":"HLOOKUP(AF$7,$I$66:$DJ$120,ROWS($A$10:$A44)+2,FALSE)","v":7530},{"$f":"HLOOKUP(AG$7,$I$66:$DJ$120,ROWS($A$10:$A44)+2,FALSE)","v":1294},{"$f":"HLOOKUP(AH$7,$I$66:$DJ$120,ROWS($A$10:$A44)+2,FALSE)","v":1273},{"$f":"HLOOKUP(AI$7,$I$66:$DJ$120,ROWS($A$10:$A44)+2,FALSE)","v":2638},{"$f":"HLOOKUP(AJ$7,$I$66:$DJ$120,ROWS($A$10:$A44)+2,FALSE)","v":563},{"$f":"HLOOKUP(AK$7,$I$66:$DJ$120,ROWS($A$10:$A44)+2,FALSE)","v":1056},{"$f":"HLOOKUP(AL$7,$I$66:$DJ$120,ROWS($A$10:$A44)+2,FALSE)","v":1048},{"$f":"HLOOKUP(AM$7,$I$66:$DJ$120,ROWS($A$10:$A44)+2,FALSE)","v":2078},{"$f":"HLOOKUP(AN$7,$I$66:$DJ$120,ROWS($A$10:$A44)+2,FALSE)","v":10374},{"$f":"HLOOKUP(AO$7,$I$66:$DJ$120,ROWS($A$10:$A44)+2,FALSE)","v":1737},{"$f":"HLOOKUP(AP$7,$I$66:$DJ$120,ROWS($A$10:$A44)+2,FALSE)","v":18321},{"$f":"HLOOKUP(AQ$7,$I$66:$DJ$120,ROWS($A$10:$A44)+2,FALSE)","v":"N/A"},{"$f":"HLOOKUP(AR$7,$I$66:$DJ$120,ROWS($A$10:$A44)+2,FALSE)","v":189},{"$f":"HLOOKUP(AS$7,$I$66:$DJ$120,ROWS($A$10:$A44)+2,FALSE)","v":10187},{"$f":"HLOOKUP(AT$7,$I$66:$DJ$120,ROWS($A$10:$A44)+2,FALSE)","v":1390},{"$f":"HLOOKUP(AU$7,$I$66:$DJ$120,ROWS($A$10:$A44)+2,FALSE)","v":1175},{"$f":"HLOOKUP(AV$7,$I$66:$DJ$120,ROWS($A$10:$A44)+2,FALSE)","v":9450},{"$f":"HLOOKUP(AW$7,$I$66:$DJ$120,ROWS($A$10:$A44)+2,FALSE)","v":444},{"$f":"HLOOKUP(AX$7,$I$66:$DJ$120,ROWS($A$10:$A44)+2,FALSE)","v":20427},{"$f":"HLOOKUP(AY$7,$I$66:$DJ$120,ROWS($A$10:$A44)+2,FALSE)","v":565},{"$f":"HLOOKUP(AZ$7,$I$66:$DJ$120,ROWS($A$10:$A44)+2,FALSE)","v":6057},{"$f":"HLOOKUP(BA$7,$I$66:$DJ$120,ROWS($A$10:$A44)+2,FALSE)","v":6621},{"$f":"HLOOKUP(BB$7,$I$66:$DJ$120,ROWS($A$10:$A44)+2,FALSE)","v":961},{"$f":"HLOOKUP(BC$7,$I$66:$DJ$120,ROWS($A$10:$A44)+2,FALSE)","v":212},{"$f":"HLOOKUP(BD$7,$I$66:$DJ$120,ROWS($A$10:$A44)+2,FALSE)","v":27302},{"$f":"HLOOKUP(BE$7,$I$66:$DJ$120,ROWS($A$10:$A44)+2,FALSE)","v":3295},{"$f":"HLOOKUP(BF$7,$I$66:$DJ$120,ROWS($A$10:$A44)+2,FALSE)","v":2780},{"$f":"HLOOKUP(BG$7,$I$66:$DJ$120,ROWS($A$10:$A44)+2,FALSE)","v":2291},{"$f":"HLOOKUP(BH$7,$I$66:$DJ$120,ROWS($A$10:$A44)+2,FALSE)","v":153},{"$f":"HLOOKUP(BI$7,$I$66:$DJ$120,ROWS($A$10:$A44)+2,FALSE)","v":844},{"$f":"HLOOKUP(BJ$7+0.5,$I$66:$DJ$120,ROWS($A$10:$A44)+2,FALSE)","v":16660},{"$f":"HLOOKUP(BK$7+0.5,$I$66:$DJ$120,ROWS($A$10:$A44)+2,FALSE)","v":2338},{"$f":"HLOOKUP(BL$7+0.5,$I$66:$DJ$120,ROWS($A$10:$A44)+2,FALSE)","v":2185},{"$f":"HLOOKUP(BM$7+0.5,$I$66:$DJ$120,ROWS($A$10:$A44)+2,FALSE)","v":2860},{"$f":"HLOOKUP(BN$7+0.5,$I$66:$DJ$120,ROWS($A$10:$A44)+2,FALSE)","v":322},{"$f":"HLOOKUP(BO$7+0.5,$I$66:$DJ$120,ROWS($A$10:$A44)+2,FALSE)","v":5531},{"$f":"HLOOKUP(BP$7+0.5,$I$66:$DJ$120,ROWS($A$10:$A44)+2,FALSE)","v":1645},{"$f":"HLOOKUP(BQ$7+0.5,$I$66:$DJ$120,ROWS($A$10:$A44)+2,FALSE)","v":820},{"$f":"HLOOKUP(BR$7+0.5,$I$66:$DJ$120,ROWS($A$10:$A44)+2,FALSE)","v":600},{"$f":"HLOOKUP(BS$7+0.5,$I$66:$DJ$120,ROWS($A$10:$A44)+2,FALSE)","v":591},{"$f":"HLOOKUP(BT$7+0.5,$I$66:$DJ$120,ROWS($A$10:$A44)+2,FALSE)","v":4471},{"$f":"HLOOKUP(BU$7+0.5,$I$66:$DJ$120,ROWS($A$10:$A44)+2,FALSE)","v":3163},{"$f":"HLOOKUP(BV$7+0.5,$I$66:$DJ$120,ROWS($A$10:$A44)+2,FALSE)","v":1362},{"$f":"HLOOKUP(BW$7+0.5,$I$66:$DJ$120,ROWS($A$10:$A44)+2,FALSE)","v":615},{"$f":"HLOOKUP(BX$7+0.5,$I$66:$DJ$120,ROWS($A$10:$A44)+2,FALSE)","v":2065},{"$f":"HLOOKUP(BY$7+0.5,$I$66:$DJ$120,ROWS($A$10:$A44)+2,FALSE)","v":1379},{"$f":"HLOOKUP(BZ$7+0.5,$I$66:$DJ$120,ROWS($A$10:$A44)+2,FALSE)","v":530},{"$f":"HLOOKUP(CA$7+0.5,$I$66:$DJ$120,ROWS($A$10:$A44)+2,FALSE)","v":4644},{"$f":"HLOOKUP(CB$7+0.5,$I$66:$DJ$120,ROWS($A$10:$A44)+2,FALSE)","v":786},{"$f":"HLOOKUP(CC$7+0.5,$I$66:$DJ$120,ROWS($A$10:$A44)+2,FALSE)","v":1135},{"$f":"HLOOKUP(CD$7+0.5,$I$66:$DJ$120,ROWS($A$10:$A44)+2,FALSE)","v":663},{"$f":"HLOOKUP(CE$7+0.5,$I$66:$DJ$120,ROWS($A$10:$A44)+2,FALSE)","v":2304},{"$f":"HLOOKUP(CF$7+0.5,$I$66:$DJ$120,ROWS($A$10:$A44)+2,FALSE)","v":4920},{"$f":"HLOOKUP(CG$7+0.5,$I$66:$DJ$120,ROWS($A$10:$A44)+2,FALSE)","v":2879},{"$f":"HLOOKUP(CH$7+0.5,$I$66:$DJ$120,ROWS($A$10:$A44)+2,FALSE)","v":825},{"$f":"HLOOKUP(CI$7+0.5,$I$66:$DJ$120,ROWS($A$10:$A44)+2,FALSE)","v":829},{"$f":"HLOOKUP(CJ$7+0.5,$I$66:$DJ$120,ROWS($A$10:$A44)+2,FALSE)","v":1150},{"$f":"HLOOKUP(CK$7+0.5,$I$66:$DJ$120,ROWS($A$10:$A44)+2,FALSE)","v":549},{"$f":"HLOOKUP(CL$7+0.5,$I$66:$DJ$120,ROWS($A$10:$A44)+2,FALSE)","v":1334},{"$f":"HLOOKUP(CM$7+0.5,$I$66:$DJ$120,ROWS($A$10:$A44)+2,FALSE)","v":716},{"$f":"HLOOKUP(CN$7+0.5,$I$66:$DJ$120,ROWS($A$10:$A44)+2,FALSE)","v":1738},{"$f":"HLOOKUP(CO$7+0.5,$I$66:$DJ$120,ROWS($A$10:$A44)+2,FALSE)","v":2643},{"$f":"HLOOKUP(CP$7+0.5,$I$66:$DJ$120,ROWS($A$10:$A44)+2,FALSE)","v":1297},{"$f":"HLOOKUP(CQ$7+0.5,$I$66:$DJ$120,ROWS($A$10:$A44)+2,FALSE)","v":3621},{"$f":"HLOOKUP(CR$7+0.5,$I$66:$DJ$120,ROWS($A$10:$A44)+2,FALSE)","v":"N/A"},{"$f":"HLOOKUP(CS$7+0.5,$I$66:$DJ$120,ROWS($A$10:$A44)+2,FALSE)","v":272},{"$f":"HLOOKUP(CT$7+0.5,$I$66:$DJ$120,ROWS($A$10:$A44)+2,FALSE)","v":3649},{"$f":"HLOOKUP(CU$7+0.5,$I$66:$DJ$120,ROWS($A$10:$A44)+2,FALSE)","v":684},{"$f":"HLOOKUP(CV$7+0.5,$I$66:$DJ$120,ROWS($A$10:$A44)+2,FALSE)","v":826},{"$f":"HLOOKUP(CW$7+0.5,$I$66:$DJ$120,ROWS($A$10:$A44)+2,FALSE)","v":2770},{"$f":"HLOOKUP(CX$7+0.5,$I$66:$DJ$120,ROWS($A$10:$A44)+2,FALSE)","v":384},{"$f":"HLOOKUP(CY$7+0.5,$I$66:$DJ$120,ROWS($A$10:$A44)+2,FALSE)","v":3260},{"$f":"HLOOKUP(CZ$7+0.5,$I$66:$DJ$120,ROWS($A$10:$A44)+2,FALSE)","v":609},{"$f":"HLOOKUP(DA$7+0.5,$I$66:$DJ$120,ROWS($A$10:$A44)+2,FALSE)","v":2083},{"$f":"HLOOKUP(DB$7+0.5,$I$66:$DJ$120,ROWS($A$10:$A44)+2,FALSE)","v":2034},{"$f":"HLOOKUP(DC$7+0.5,$I$66:$DJ$120,ROWS($A$10:$A44)+2,FALSE)","v":692},{"$f":"HLOOKUP(DD$7+0.5,$I$66:$DJ$120,ROWS($A$10:$A44)+2,FALSE)","v":345},{"$f":"HLOOKUP(DE$7+0.5,$I$66:$DJ$120,ROWS($A$10:$A44)+2,FALSE)","v":4012},{"$f":"HLOOKUP(DF$7+0.5,$I$66:$DJ$120,ROWS($A$10:$A44)+2,FALSE)","v":1566},{"$f":"HLOOKUP(DG$7+0.5,$I$66:$DJ$120,ROWS($A$10:$A44)+2,FALSE)","v":1517},{"$f":"HLOOKUP(DH$7+0.5,$I$66:$DJ$120,ROWS($A$10:$A44)+2,FALSE)","v":1192},{"$f":"HLOOKUP(DI$7+0.5,$I$66:$DJ$120,ROWS($A$10:$A44)+2,FALSE)","v":228},{"$f":"HLOOKUP(DJ$7+0.5,$I$66:$DJ$120,ROWS($A$10:$A44)+2,FALSE)","v":447}]
[null,"North Dakota",675161,1047,559906,6503,79837,6140,{"$f":"HLOOKUP(I$7,$I$66:$DJ$120,ROWS($A$10:$A45)+2,FALSE)","v":32510},{"$f":"HLOOKUP(J$7,$I$66:$DJ$120,ROWS($A$10:$A45)+2,FALSE)","v":97},{"$f":"HLOOKUP(K$7,$I$66:$DJ$120,ROWS($A$10:$A45)+2,FALSE)","v":393},{"$f":"HLOOKUP(L$7,$I$66:$DJ$120,ROWS($A$10:$A45)+2,FALSE)","v":1313},{"$f":"HLOOKUP(M$7,$I$66:$DJ$120,ROWS($A$10:$A45)+2,FALSE)","v":249},{"$f":"HLOOKUP(N$7,$I$66:$DJ$120,ROWS($A$10:$A45)+2,FALSE)","v":1356},{"$f":"HLOOKUP(O$7,$I$66:$DJ$120,ROWS($A$10:$A45)+2,FALSE)","v":1229},{"$f":"HLOOKUP(P$7,$I$66:$DJ$120,ROWS($A$10:$A45)+2,FALSE)","v":0},{"$f":"HLOOKUP(Q$7,$I$66:$DJ$120,ROWS($A$10:$A45)+2,FALSE)","v":84},{"$f":"HLOOKUP(R$7,$I$66:$DJ$120,ROWS($A$10:$A45)+2,FALSE)","v":0},{"$f":"HLOOKUP(S$7,$I$66:$DJ$120,ROWS($A$10:$A45)+2,FALSE)","v":459},{"$f":"HLOOKUP(T$7,$I$66:$DJ$120,ROWS($A$10:$A45)+2,FALSE)","v":364},{"$f":"HLOOKUP(U$7,$I$66:$DJ$120,ROWS($A$10:$A45)+2,FALSE)","v":138},{"$f":"HLOOKUP(V$7,$I$66:$DJ$120,ROWS($A$10:$A45)+2,FALSE)","v":1209},{"$f":"HLOOKUP(W$7,$I$66:$DJ$120,ROWS($A$10:$A45)+2,FALSE)","v":571},{"$f":"HLOOKUP(X$7,$I$66:$DJ$120,ROWS($A$10:$A45)+2,FALSE)","v":130},{"$f":"HLOOKUP(Y$7,$I$66:$DJ$120,ROWS($A$10:$A45)+2,FALSE)","v":208},{"$f":"HLOOKUP(Z$7,$I$66:$DJ$120,ROWS($A$10:$A45)+2,FALSE)","v":75},{"$f":"HLOOKUP(AA$7,$I$66:$DJ$120,ROWS($A$10:$A45)+2,FALSE)","v":0},{"$f":"HLOOKUP(AB$7,$I$66:$DJ$120,ROWS($A$10:$A45)+2,FALSE)","v":422},{"$f":"HLOOKUP(AC$7,$I$66:$DJ$120,ROWS($A$10:$A45)+2,FALSE)","v":50},{"$f":"HLOOKUP(AD$7,$I$66:$DJ$120,ROWS($A$10:$A45)+2,FALSE)","v":10},{"$f":"HLOOKUP(AE$7,$I$66:$DJ$120,ROWS($A$10:$A45)+2,FALSE)","v":369},{"$f":"HLOOKUP(AF$7,$I$66:$DJ$120,ROWS($A$10:$A45)+2,FALSE)","v":328},{"$f":"HLOOKUP(AG$7,$I$66:$DJ$120,ROWS($A$10:$A45)+2,FALSE)","v":12244},{"$f":"HLOOKUP(AH$7,$I$66:$DJ$120,ROWS($A$10:$A45)+2,FALSE)","v":80},{"$f":"HLOOKUP(AI$7,$I$66:$DJ$120,ROWS($A$10:$A45)+2,FALSE)","v":330},{"$f":"HLOOKUP(AJ$7,$I$66:$DJ$120,ROWS($A$10:$A45)+2,FALSE)","v":1227},{"$f":"HLOOKUP(AK$7,$I$66:$DJ$120,ROWS($A$10:$A45)+2,FALSE)","v":218},{"$f":"HLOOKUP(AL$7,$I$66:$DJ$120,ROWS($A$10:$A45)+2,FALSE)","v":845},{"$f":"HLOOKUP(AM$7,$I$66:$DJ$120,ROWS($A$10:$A45)+2,FALSE)","v":0},{"$f":"HLOOKUP(AN$7,$I$66:$DJ$120,ROWS($A$10:$A45)+2,FALSE)","v":183},{"$f":"HLOOKUP(AO$7,$I$66:$DJ$120,ROWS($A$10:$A45)+2,FALSE)","v":99},{"$f":"HLOOKUP(AP$7,$I$66:$DJ$120,ROWS($A$10:$A45)+2,FALSE)","v":264},{"$f":"HLOOKUP(AQ$7,$I$66:$DJ$120,ROWS($A$10:$A45)+2,FALSE)","v":900},{"$f":"HLOOKUP(AR$7,$I$66:$DJ$120,ROWS($A$10:$A45)+2,FALSE)","v":"N/A"},{"$f":"HLOOKUP(AS$7,$I$66:$DJ$120,ROWS($A$10:$A45)+2,FALSE)","v":286},{"$f":"HLOOKUP(AT$7,$I$66:$DJ$120,ROWS($A$10:$A45)+2,FALSE)","v":59},{"$f":"HLOOKUP(AU$7,$I$66:$DJ$120,ROWS($A$10:$A45)+2,FALSE)","v":264},{"$f":"HLOOKUP(AV$7,$I$66:$DJ$120,ROWS($A$10:$A45)+2,FALSE)","v":652},{"$f":"HLOOKUP(AW$7,$I$66:$DJ$120,ROWS($A$10:$A45)+2,FALSE)","v":0},{"$f":"HLOOKUP(AX$7,$I$66:$DJ$120,ROWS($A$10:$A45)+2,FALSE)","v":1},{"$f":"HLOOKUP(AY$7,$I$66:$DJ$120,ROWS($A$10:$A45)+2,FALSE)","v":1293},{"$f":"HLOOKUP(AZ$7,$I$66:$DJ$120,ROWS($A$10:$A45)+2,FALSE)","v":113},{"$f":"HLOOKUP(BA$7,$I$66:$DJ$120,ROWS($A$10:$A45)+2,FALSE)","v":1862},{"$f":"HLOOKUP(BB$7,$I$66:$DJ$120,ROWS($A$10:$A45)+2,FALSE)","v":429},{"$f":"HLOOKUP(BC$7,$I$66:$DJ$120,ROWS($A$10:$A45)+2,FALSE)","v":0},{"$f":"HLOOKUP(BD$7,$I$66:$DJ$120,ROWS($A$10:$A45)+2,FALSE)","v":166},{"$f":"HLOOKUP(BE$7,$I$66:$DJ$120,ROWS($A$10:$A45)+2,FALSE)","v":404},{"$f":"HLOOKUP(BF$7,$I$66:$DJ$120,ROWS($A$10:$A45)+2,FALSE)","v":0},{"$f":"HLOOKUP(BG$7,$I$66:$DJ$120,ROWS($A$10:$A45)+2,FALSE)","v":1398},{"$f":"HLOOKUP(BH$7,$I$66:$DJ$120,ROWS($A$10:$A45)+2,FALSE)","v":139},{"$f":"HLOOKUP(BI$7,$I$66:$DJ$120,ROWS($A$10:$A45)+2,FALSE)","v":76},{"$f":"HLOOKUP(BJ$7+0.5,$I$66:$DJ$120,ROWS($A$10:$A45)+2,FALSE)","v":3641},{"$f":"HLOOKUP(BK$7+0.5,$I$66:$DJ$120,ROWS($A$10:$A45)+2,FALSE)","v":125},{"$f":"HLOOKUP(BL$7+0.5,$I$66:$DJ$120,ROWS($A$10:$A45)+2,FALSE)","v":365},{"$f":"HLOOKUP(BM$7+0.5,$I$66:$DJ$120,ROWS($A$10:$A45)+2,FALSE)","v":613},{"$f":"HLOOKUP(BN$7+0.5,$I$66:$DJ$120,ROWS($A$10:$A45)+2,FALSE)","v":293},{"$f":"HLOOKUP(BO$7+0.5,$I$66:$DJ$120,ROWS($A$10:$A45)+2,FALSE)","v":1011},{"$f":"HLOOKUP(BP$7+0.5,$I$66:$DJ$120,ROWS($A$10:$A45)+2,FALSE)","v":612},{"$f":"HLOOKUP(BQ$7+0.5,$I$66:$DJ$120,ROWS($A$10:$A45)+2,FALSE)","v":143},{"$f":"HLOOKUP(BR$7+0.5,$I$66:$DJ$120,ROWS($A$10:$A45)+2,FALSE)","v":100},{"$f":"HLOOKUP(BS$7+0.5,$I$66:$DJ$120,ROWS($A$10:$A45)+2,FALSE)","v":143},{"$f":"HLOOKUP(BT$7+0.5,$I$66:$DJ$120,ROWS($A$10:$A45)+2,FALSE)","v":303},{"$f":"HLOOKUP(BU$7+0.5,$I$66:$DJ$120,ROWS($A$10:$A45)+2,FALSE)","v":410},{"$f":"HLOOKUP(BV$7+0.5,$I$66:$DJ$120,ROWS($A$10:$A45)+2,FALSE)","v":216},{"$f":"HLOOKUP(BW$7+0.5,$I$66:$DJ$120,ROWS($A$10:$A45)+2,FALSE)","v":817},{"$f":"HLOOKUP(BX$7+0.5,$I$66:$DJ$120,ROWS($A$10:$A45)+2,FALSE)","v":504},{"$f":"HLOOKUP(BY$7+0.5,$I$66:$DJ$120,ROWS($A$10:$A45)+2,FALSE)","v":171},{"$f":"HLOOKUP(BZ$7+0.5,$I$66:$DJ$120,ROWS($A$10:$A45)+2,FALSE)","v":178},{"$f":"HLOOKUP(CA$7+0.5,$I$66:$DJ$120,ROWS($A$10:$A45)+2,FALSE)","v":96},{"$f":"HLOOKUP(CB$7+0.5,$I$66:$DJ$120,ROWS($A$10:$A45)+2,FALSE)","v":143},{"$f":"HLOOKUP(CC$7+0.5,$I$66:$DJ$120,ROWS($A$10:$A45)+2,FALSE)","v":441},{"$f":"HLOOKUP(CD$7+0.5,$I$66:$DJ$120,ROWS($A$10:$A45)+2,FALSE)","v":72},{"$f":"HLOOKUP(CE$7+0.5,$I$66:$DJ$120,ROWS($A$10:$A45)+2,FALSE)","v":16},{"$f":"HLOOKUP(CF$7+0.5,$I$66:$DJ$120,ROWS($A$10:$A45)+2,FALSE)","v":359},{"$f":"HLOOKUP(CG$7+0.5,$I$66:$DJ$120,ROWS($A$10:$A45)+2,FALSE)","v":324},{"$f":"HLOOKUP(CH$7+0.5,$I$66:$DJ$120,ROWS($A$10:$A45)+2,FALSE)","v":2374},{"$f":"HLOOKUP(CI$7+0.5,$I$66:$DJ$120,ROWS($A$10:$A45)+2,FALSE)","v":143},{"$f":"HLOOKUP(CJ$7+0.5,$I$66:$DJ$120,ROWS($A$10:$A45)+2,FALSE)","v":284},{"$f":"HLOOKUP(CK$7+0.5,$I$66:$DJ$120,ROWS($A$10:$A45)+2,FALSE)","v":612},{"$f":"HLOOKUP(CL$7+0.5,$I$66:$DJ$120,ROWS($A$10:$A45)+2,FALSE)","v":170},{"$f":"HLOOKUP(CM$7+0.5,$I$66:$DJ$120,ROWS($A$10:$A45)+2,FALSE)","v":860},{"$f":"HLOOKUP(CN$7+0.5,$I$66:$DJ$120,ROWS($A$10:$A45)+2,FALSE)","v":143},{"$f":"HLOOKUP(CO$7+0.5,$I$66:$DJ$120,ROWS($A$10:$A45)+2,FALSE)","v":306},{"$f":"HLOOKUP(CP$7+0.5,$I$66:$DJ$120,ROWS($A$10:$A45)+2,FALSE)","v":112},{"$f":"HLOOKUP(CQ$7+0.5,$I$66:$DJ$120,ROWS($A$10:$A45)+2,FALSE)","v":233},{"$f":"HLOOKUP(CR$7+0.5,$I$66:$DJ$120,ROWS($A$10:$A45)+2,FALSE)","v":678},{"$f":"HLOOKUP(CS$7+0.5,$I$66:$DJ$120,ROWS($A$10:$A45)+2,FALSE)","v":"N/A"},{"$f":"HLOOKUP(CT$7+0.5,$I$66:$DJ$120,ROWS($A$10:$A45)+2,FALSE)","v":248},{"$f":"HLOOKUP(CU$7+0.5,$I$66:$DJ$120,ROWS($A$10:$A45)+2,FALSE)","v":68},{"$f":"HLOOKUP(CV$7+0.5,$I$66:$DJ$120,ROWS($A$10:$A45)+2,FALSE)","v":256},{"$f":"HLOOKUP(CW$7+0.5,$I$66:$DJ$120,ROWS($A$10:$A45)+2,FALSE)","v":637},{"$f":"HLOOKUP(CX$7+0.5,$I$66:$DJ$120,ROWS($A$10:$A45)+2,FALSE)","v":143},{"$f":"HLOOKUP(CY$7+0.5,$I$66:$DJ$120,ROWS($A$10:$A45)+2,FALSE)","v":2},{"$f":"HLOOKUP(CZ$7+0.5,$I$66:$DJ$120,ROWS($A$10:$A45)+2,FALSE)","v":714},{"$f":"HLOOKUP(DA$7+0.5,$I$66:$DJ$120,ROWS($A$10:$A45)+2,FALSE)","v":120},{"$f":"HLOOKUP(DB$7+0.5,$I$66:$DJ$120,ROWS($A$10:$A45)+2,FALSE)","v":1029},{"$f":"HLOOKUP(DC$7+0.5,$I$66:$DJ$120,ROWS($A$10:$A45)+2,FALSE)","v":427},{"$f":"HLOOKUP(DD$7+0.5,$I$66:$DJ$120,ROWS($A$10:$A45)+2,FALSE)","v":143},{"$f":"HLOOKUP(DE$7+0.5,$I$66:$DJ$120,ROWS($A$10:$A45)+2,FALSE)","v":202},{"$f":"HLOOKUP(DF$7+0.5,$I$66:$DJ$120,ROWS($A$10:$A45)+2,FALSE)","v":312},{"$f":"HLOOKUP(DG$7+0.5,$I$66:$DJ$120,ROWS($A$10:$A45)+2,FALSE)","v":143},{"$f":"HLOOKUP(DH$7+0.5,$I$66:$DJ$120,ROWS($A$10:$A45)+2,FALSE)","v":601},{"$f":"HLOOKUP(DI$7+0.5,$I$66:$DJ$120,ROWS($A$10:$A45)+2,FALSE)","v":102},{"$f":"HLOOKUP(DJ$7+0.5,$I$66:$DJ$120,ROWS($A$10:$A45)+2,FALSE)","v":110}]
[null,"Ohio",11418944,4418,9764366,32087,1425709,29701,{"$f":"HLOOKUP(I$7,$I$66:$DJ$120,ROWS($A$10:$A46)+2,FALSE)","v":191778},{"$f":"HLOOKUP(J$7,$I$66:$DJ$120,ROWS($A$10:$A46)+2,FALSE)","v":1567},{"$f":"HLOOKUP(K$7,$I$66:$DJ$120,ROWS($A$10:$A46)+2,FALSE)","v":1637},{"$f":"HLOOKUP(L$7,$I$66:$DJ$120,ROWS($A$10:$A46)+2,FALSE)","v":6763},{"$f":"HLOOKUP(M$7,$I$66:$DJ$120,ROWS($A$10:$A46)+2,FALSE)","v":1952},{"$f":"HLOOKUP(N$7,$I$66:$DJ$120,ROWS($A$10:$A46)+2,FALSE)","v":9032},{"$f":"HLOOKUP(O$7,$I$66:$DJ$120,ROWS($A$10:$A46)+2,FALSE)","v":2690},{"$f":"HLOOKUP(P$7,$I$66:$DJ$120,ROWS($A$10:$A46)+2,FALSE)","v":1189},{"$f":"HLOOKUP(Q$7,$I$66:$DJ$120,ROWS($A$10:$A46)+2,FALSE)","v":263},{"$f":"HLOOKUP(R$7,$I$66:$DJ$120,ROWS($A$10:$A46)+2,FALSE)","v":587},{"$f":"HLOOKUP(S$7,$I$66:$DJ$120,ROWS($A$10:$A46)+2,FALSE)","v":16492},{"$f":"HLOOKUP(T$7,$I$66:$DJ$120,ROWS($A$10:$A46)+2,FALSE)","v":4290},{"$f":"HLOOKUP(U$7,$I$66:$DJ$120,ROWS($A$10:$A46)+2,FALSE)","v":1044},{"$f":"HLOOKUP(V$7,$I$66:$DJ$120,ROWS($A$10:$A46)+2,FALSE)","v":312},{"$f":"HLOOKUP(W$7,$I$66:$DJ$120,ROWS($A$10:$A46)+2,FALSE)","v":7027},{"$f":"HLOOKUP(X$7,$I$66:$DJ$120,ROWS($A$10:$A46)+2,FALSE)","v":11588},{"$f":"HLOOKUP(Y$7,$I$66:$DJ$120,ROWS($A$10:$A46)+2,FALSE)","v":1146},{"$f":"HLOOKUP(Z$7,$I$66:$DJ$120,ROWS($A$10:$A46)+2,FALSE)","v":657},{"$f":"HLOOKUP(AA$7,$I$66:$DJ$120,ROWS($A$10:$A46)+2,FALSE)","v":12744},{"$f":"HLOOKUP(AB$7,$I$66:$DJ$120,ROWS($A$10:$A46)+2,FALSE)","v":1872},{"$f":"HLOOKUP(AC$7,$I$66:$DJ$120,ROWS($A$10:$A46)+2,FALSE)","v":0},{"$f":"HLOOKUP(AD$7,$I$66:$DJ$120,ROWS($A$10:$A46)+2,FALSE)","v":4982},{"$f":"HLOOKUP(AE$7,$I$66:$DJ$120,ROWS($A$10:$A46)+2,FALSE)","v":2101},{"$f":"HLOOKUP(AF$7,$I$66:$DJ$120,ROWS($A$10:$A46)+2,FALSE)","v":14330},{"$f":"HLOOKUP(AG$7,$I$66:$DJ$120,ROWS($A$10:$A46)+2,FALSE)","v":1788},{"$f":"HLOOKUP(AH$7,$I$66:$DJ$120,ROWS($A$10:$A46)+2,FALSE)","v":691},{"$f":"HLOOKUP(AI$7,$I$66:$DJ$120,ROWS($A$10:$A46)+2,FALSE)","v":2003},{"$f":"HLOOKUP(AJ$7,$I$66:$DJ$120,ROWS($A$10:$A46)+2,FALSE)","v":101},{"$f":"HLOOKUP(AK$7,$I$66:$DJ$120,ROWS($A$10:$A46)+2,FALSE)","v":1176},{"$f":"HLOOKUP(AL$7,$I$66:$DJ$120,ROWS($A$10:$A46)+2,FALSE)","v":1851},{"$f":"HLOOKUP(AM$7,$I$66:$DJ$120,ROWS($A$10:$A46)+2,FALSE)","v":1992},{"$f":"HLOOKUP(AN$7,$I$66:$DJ$120,ROWS($A$10:$A46)+2,FALSE)","v":3936},{"$f":"HLOOKUP(AO$7,$I$66:$DJ$120,ROWS($A$10:$A46)+2,FALSE)","v":255},{"$f":"HLOOKUP(AP$7,$I$66:$DJ$120,ROWS($A$10:$A46)+2,FALSE)","v":8784},{"$f":"HLOOKUP(AQ$7,$I$66:$DJ$120,ROWS($A$10:$A46)+2,FALSE)","v":4572},{"$f":"HLOOKUP(AR$7,$I$66:$DJ$120,ROWS($A$10:$A46)+2,FALSE)","v":204},{"$f":"HLOOKUP(AS$7,$I$66:$DJ$120,ROWS($A$10:$A46)+2,FALSE)","v":"N/A"},{"$f":"HLOOKUP(AT$7,$I$66:$DJ$120,ROWS($A$10:$A46)+2,FALSE)","v":2333},{"$f":"HLOOKUP(AU$7,$I$66:$DJ$120,ROWS($A$10:$A46)+2,FALSE)","v":1326},{"$f":"HLOOKUP(AV$7,$I$66:$DJ$120,ROWS($A$10:$A46)+2,FALSE)","v":14292},{"$f":"HLOOKUP(AW$7,$I$66:$DJ$120,ROWS($A$10:$A46)+2,FALSE)","v":369},{"$f":"HLOOKUP(AX$7,$I$66:$DJ$120,ROWS($A$10:$A46)+2,FALSE)","v":3826},{"$f":"HLOOKUP(AY$7,$I$66:$DJ$120,ROWS($A$10:$A46)+2,FALSE)","v":34},{"$f":"HLOOKUP(AZ$7,$I$66:$DJ$120,ROWS($A$10:$A46)+2,FALSE)","v":6468},{"$f":"HLOOKUP(BA$7,$I$66:$DJ$120,ROWS($A$10:$A46)+2,FALSE)","v":11987},{"$f":"HLOOKUP(BB$7,$I$66:$DJ$120,ROWS($A$10:$A46)+2,FALSE)","v":691},{"$f":"HLOOKUP(BC$7,$I$66:$DJ$120,ROWS($A$10:$A46)+2,FALSE)","v":68},{"$f":"HLOOKUP(BD$7,$I$66:$DJ$120,ROWS($A$10:$A46)+2,FALSE)","v":5425},{"$f":"HLOOKUP(BE$7,$I$66:$DJ$120,ROWS($A$10:$A46)+2,FALSE)","v":1979},{"$f":"HLOOKUP(BF$7,$I$66:$DJ$120,ROWS($A$10:$A46)+2,FALSE)","v":7548},{"$f":"HLOOKUP(BG$7,$I$66:$DJ$120,ROWS($A$10:$A46)+2,FALSE)","v":2534},{"$f":"HLOOKUP(BH$7,$I$66:$DJ$120,ROWS($A$10:$A46)+2,FALSE)","v":1280},{"$f":"HLOOKUP(BI$7,$I$66:$DJ$120,ROWS($A$10:$A46)+2,FALSE)","v":1607},{"$f":"HLOOKUP(BJ$7+0.5,$I$66:$DJ$120,ROWS($A$10:$A46)+2,FALSE)","v":11799},{"$f":"HLOOKUP(BK$7+0.5,$I$66:$DJ$120,ROWS($A$10:$A46)+2,FALSE)","v":705},{"$f":"HLOOKUP(BL$7+0.5,$I$66:$DJ$120,ROWS($A$10:$A46)+2,FALSE)","v":1579},{"$f":"HLOOKUP(BM$7+0.5,$I$66:$DJ$120,ROWS($A$10:$A46)+2,FALSE)","v":3193},{"$f":"HLOOKUP(BN$7+0.5,$I$66:$DJ$120,ROWS($A$10:$A46)+2,FALSE)","v":1128},{"$f":"HLOOKUP(BO$7+0.5,$I$66:$DJ$120,ROWS($A$10:$A46)+2,FALSE)","v":1771},{"$f":"HLOOKUP(BP$7+0.5,$I$66:$DJ$120,ROWS($A$10:$A46)+2,FALSE)","v":1023},{"$f":"HLOOKUP(BQ$7+0.5,$I$66:$DJ$120,ROWS($A$10:$A46)+2,FALSE)","v":663},{"$f":"HLOOKUP(BR$7+0.5,$I$66:$DJ$120,ROWS($A$10:$A46)+2,FALSE)","v":270},{"$f":"HLOOKUP(BS$7+0.5,$I$66:$DJ$120,ROWS($A$10:$A46)+2,FALSE)","v":449},{"$f":"HLOOKUP(BT$7+0.5,$I$66:$DJ$120,ROWS($A$10:$A46)+2,FALSE)","v":3173},{"$f":"HLOOKUP(BU$7+0.5,$I$66:$DJ$120,ROWS($A$10:$A46)+2,FALSE)","v":1143},{"$f":"HLOOKUP(BV$7+0.5,$I$66:$DJ$120,ROWS($A$10:$A46)+2,FALSE)","v":694},{"$f":"HLOOKUP(BW$7+0.5,$I$66:$DJ$120,ROWS($A$10:$A46)+2,FALSE)","v":223},{"$f":"HLOOKUP(BX$7+0.5,$I$66:$DJ$120,ROWS($A$10:$A46)+2,FALSE)","v":1504},{"$f":"HLOOKUP(BY$7+0.5,$I$66:$DJ$120,ROWS($A$10:$A46)+2,FALSE)","v":2147},{"$f":"HLOOKUP(BZ$7+0.5,$I$66:$DJ$120,ROWS($A$10:$A46)+2,FALSE)","v":614},{"$f":"HLOOKUP(CA$7+0.5,$I$66:$DJ$120,ROWS($A$10:$A46)+2,FALSE)","v":519},{"$f":"HLOOKUP(CB$7+0.5,$I$66:$DJ$120,ROWS($A$10:$A46)+2,FALSE)","v":3507},{"$f":"HLOOKUP(CC$7+0.5,$I$66:$DJ$120,ROWS($A$10:$A46)+2,FALSE)","v":1784},{"$f":"HLOOKUP(CD$7+0.5,$I$66:$DJ$120,ROWS($A$10:$A46)+2,FALSE)","v":187},{"$f":"HLOOKUP(CE$7+0.5,$I$66:$DJ$120,ROWS($A$10:$A46)+2,FALSE)","v":1578},{"$f":"HLOOKUP(CF$7+0.5,$I$66:$DJ$120,ROWS($A$10:$A46)+2,FALSE)","v":1008},{"$f":"HLOOKUP(CG$7+0.5,$I$66:$DJ$120,ROWS($A$10:$A46)+2,FALSE)","v":2896},{"$f":"HLOOKUP(CH$7+0.5,$I$66:$DJ$120,ROWS($A$10:$A46)+2,FALSE)","v":784},{"$f":"HLOOKUP(CI$7+0.5,$I$66:$DJ$120,ROWS($A$10:$A46)+2,FALSE)","v":462},{"$f":"HLOOKUP(CJ$7+0.5,$I$66:$DJ$120,ROWS($A$10:$A46)+2,FALSE)","v":873},{"$f":"HLOOKUP(CK$7+0.5,$I$66:$DJ$120,ROWS($A$10:$A46)+2,FALSE)","v":172},{"$f":"HLOOKUP(CL$7+0.5,$I$66:$DJ$120,ROWS($A$10:$A46)+2,FALSE)","v":616},{"$f":"HLOOKUP(CM$7+0.5,$I$66:$DJ$120,ROWS($A$10:$A46)+2,FALSE)","v":1107},{"$f":"HLOOKUP(CN$7+0.5,$I$66:$DJ$120,ROWS($A$10:$A46)+2,FALSE)","v":1509},{"$f":"HLOOKUP(CO$7+0.5,$I$66:$DJ$120,ROWS($A$10:$A46)+2,FALSE)","v":1643},{"$f":"HLOOKUP(CP$7+0.5,$I$66:$DJ$120,ROWS($A$10:$A46)+2,FALSE)","v":287},{"$f":"HLOOKUP(CQ$7+0.5,$I$66:$DJ$120,ROWS($A$10:$A46)+2,FALSE)","v":2659},{"$f":"HLOOKUP(CR$7+0.5,$I$66:$DJ$120,ROWS($A$10:$A46)+2,FALSE)","v":1270},{"$f":"HLOOKUP(CS$7+0.5,$I$66:$DJ$120,ROWS($A$10:$A46)+2,FALSE)","v":270},{"$f":"HLOOKUP(CT$7+0.5,$I$66:$DJ$120,ROWS($A$10:$A46)+2,FALSE)","v":"N/A"},{"$f":"HLOOKUP(CU$7+0.5,$I$66:$DJ$120,ROWS($A$10:$A46)+2,FALSE)","v":1263},{"$f":"HLOOKUP(CV$7+0.5,$I$66:$DJ$120,ROWS($A$10:$A46)+2,FALSE)","v":614},{"$f":"HLOOKUP(CW$7+0.5,$I$66:$DJ$120,ROWS($A$10:$A46)+2,FALSE)","v":2842},{"$f":"HLOOKUP(CX$7+0.5,$I$66:$DJ$120,ROWS($A$10:$A46)+2,FALSE)","v":353},{"$f":"HLOOKUP(CY$7+0.5,$I$66:$DJ$120,ROWS($A$10:$A46)+2,FALSE)","v":1192},{"$f":"HLOOKUP(CZ$7+0.5,$I$66:$DJ$120,ROWS($A$10:$A46)+2,FALSE)","v":68},{"$f":"HLOOKUP(DA$7+0.5,$I$66:$DJ$120,ROWS($A$10:$A46)+2,FALSE)","v":2336},{"$f":"HLOOKUP(DB$7+0.5,$I$66:$DJ$120,ROWS($A$10:$A46)+2,FALSE)","v":4302},{"$f":"HLOOKUP(DC$7+0.5,$I$66:$DJ$120,ROWS($A$10:$A46)+2,FALSE)","v":469},{"$f":"HLOOKUP(DD$7+0.5,$I$66:$DJ$120,ROWS($A$10:$A46)+2,FALSE)","v":77},{"$f":"HLOOKUP(DE$7+0.5,$I$66:$DJ$120,ROWS($A$10:$A46)+2,FALSE)","v":2020},{"$f":"HLOOKUP(DF$7+0.5,$I$66:$DJ$120,ROWS($A$10:$A46)+2,FALSE)","v":965},{"$f":"HLOOKUP(DG$7+0.5,$I$66:$DJ$120,ROWS($A$10:$A46)+2,FALSE)","v":1866},{"$f":"HLOOKUP(DH$7+0.5,$I$66:$DJ$120,ROWS($A$10:$A46)+2,FALSE)","v":1620},{"$f":"HLOOKUP(DI$7+0.5,$I$66:$DJ$120,ROWS($A$10:$A46)+2,FALSE)","v":793},{"$f":"HLOOKUP(DJ$7+0.5,$I$66:$DJ$120,ROWS($A$10:$A46)+2,FALSE)","v":1062}]
[null,"Oklahoma",3742698,2585,3089041,15209,528498,15584,{"$f":"HLOOKUP(I$7,$I$66:$DJ$120,ROWS($A$10:$A47)+2,FALSE)","v":108878},{"$f":"HLOOKUP(J$7,$I$66:$DJ$120,ROWS($A$10:$A47)+2,FALSE)","v":591},{"$f":"HLOOKUP(K$7,$I$66:$DJ$120,ROWS($A$10:$A47)+2,FALSE)","v":1137},{"$f":"HLOOKUP(L$7,$I$66:$DJ$120,ROWS($A$10:$A47)+2,FALSE)","v":3770},{"$f":"HLOOKUP(M$7,$I$66:$DJ$120,ROWS($A$10:$A47)+2,FALSE)","v":6894},{"$f":"HLOOKUP(N$7,$I$66:$DJ$120,ROWS($A$10:$A47)+2,FALSE)","v":8233},{"$f":"HLOOKUP(O$7,$I$66:$DJ$120,ROWS($A$10:$A47)+2,FALSE)","v":3273},{"$f":"HLOOKUP(P$7,$I$66:$DJ$120,ROWS($A$10:$A47)+2,FALSE)","v":97},{"$f":"HLOOKUP(Q$7,$I$66:$DJ$120,ROWS($A$10:$A47)+2,FALSE)","v":66},{"$f":"HLOOKUP(R$7,$I$66:$DJ$120,ROWS($A$10:$A47)+2,FALSE)","v":191},{"$f":"HLOOKUP(S$7,$I$66:$DJ$120,ROWS($A$10:$A47)+2,FALSE)","v":6056},{"$f":"HLOOKUP(T$7,$I$66:$DJ$120,ROWS($A$10:$A47)+2,FALSE)","v":3514},{"$f":"HLOOKUP(U$7,$I$66:$DJ$120,ROWS($A$10:$A47)+2,FALSE)","v":140},{"$f":"HLOOKUP(V$7,$I$66:$DJ$120,ROWS($A$10:$A47)+2,FALSE)","v":21},{"$f":"HLOOKUP(W$7,$I$66:$DJ$120,ROWS($A$10:$A47)+2,FALSE)","v":2179},{"$f":"HLOOKUP(X$7,$I$66:$DJ$120,ROWS($A$10:$A47)+2,FALSE)","v":2113},{"$f":"HLOOKUP(Y$7,$I$66:$DJ$120,ROWS($A$10:$A47)+2,FALSE)","v":580},{"$f":"HLOOKUP(Z$7,$I$66:$DJ$120,ROWS($A$10:$A47)+2,FALSE)","v":4626},{"$f":"HLOOKUP(AA$7,$I$66:$DJ$120,ROWS($A$10:$A47)+2,FALSE)","v":1398},{"$f":"HLOOKUP(AB$7,$I$66:$DJ$120,ROWS($A$10:$A47)+2,FALSE)","v":1934},{"$f":"HLOOKUP(AC$7,$I$66:$DJ$120,ROWS($A$10:$A47)+2,FALSE)","v":271},{"$f":"HLOOKUP(AD$7,$I$66:$DJ$120,ROWS($A$10:$A47)+2,FALSE)","v":432},{"$f":"HLOOKUP(AE$7,$I$66:$DJ$120,ROWS($A$10:$A47)+2,FALSE)","v":160},{"$f":"HLOOKUP(AF$7,$I$66:$DJ$120,ROWS($A$10:$A47)+2,FALSE)","v":1038},{"$f":"HLOOKUP(AG$7,$I$66:$DJ$120,ROWS($A$10:$A47)+2,FALSE)","v":497},{"$f":"HLOOKUP(AH$7,$I$66:$DJ$120,ROWS($A$10:$A47)+2,FALSE)","v":199},{"$f":"HLOOKUP(AI$7,$I$66:$DJ$120,ROWS($A$10:$A47)+2,FALSE)","v":5781},{"$f":"HLOOKUP(AJ$7,$I$66:$DJ$120,ROWS($A$10:$A47)+2,FALSE)","v":803},{"$f":"HLOOKUP(AK$7,$I$66:$DJ$120,ROWS($A$10:$A47)+2,FALSE)","v":1979},{"$f":"HLOOKUP(AL$7,$I$66:$DJ$120,ROWS($A$10:$A47)+2,FALSE)","v":705},{"$f":"HLOOKUP(AM$7,$I$66:$DJ$120,ROWS($A$10:$A47)+2,FALSE)","v":0},{"$f":"HLOOKUP(AN$7,$I$66:$DJ$120,ROWS($A$10:$A47)+2,FALSE)","v":391},{"$f":"HLOOKUP(AO$7,$I$66:$DJ$120,ROWS($A$10:$A47)+2,FALSE)","v":403},{"$f":"HLOOKUP(AP$7,$I$66:$DJ$120,ROWS($A$10:$A47)+2,FALSE)","v":1858},{"$f":"HLOOKUP(AQ$7,$I$66:$DJ$120,ROWS($A$10:$A47)+2,FALSE)","v":1322},{"$f":"HLOOKUP(AR$7,$I$66:$DJ$120,ROWS($A$10:$A47)+2,FALSE)","v":928},{"$f":"HLOOKUP(AS$7,$I$66:$DJ$120,ROWS($A$10:$A47)+2,FALSE)","v":1608},{"$f":"HLOOKUP(AT$7,$I$66:$DJ$120,ROWS($A$10:$A47)+2,FALSE)","v":"N/A"},{"$f":"HLOOKUP(AU$7,$I$66:$DJ$120,ROWS($A$10:$A47)+2,FALSE)","v":917},{"$f":"HLOOKUP(AV$7,$I$66:$DJ$120,ROWS($A$10:$A47)+2,FALSE)","v":1116},{"$f":"HLOOKUP(AW$7,$I$66:$DJ$120,ROWS($A$10:$A47)+2,FALSE)","v":152},{"$f":"HLOOKUP(AX$7,$I$66:$DJ$120,ROWS($A$10:$A47)+2,FALSE)","v":2015},{"$f":"HLOOKUP(AY$7,$I$66:$DJ$120,ROWS($A$10:$A47)+2,FALSE)","v":600},{"$f":"HLOOKUP(AZ$7,$I$66:$DJ$120,ROWS($A$10:$A47)+2,FALSE)","v":1700},{"$f":"HLOOKUP(BA$7,$I$66:$DJ$120,ROWS($A$10:$A47)+2,FALSE)","v":31595},{"$f":"HLOOKUP(BB$7,$I$66:$DJ$120,ROWS($A$10:$A47)+2,FALSE)","v":587},{"$f":"HLOOKUP(BC$7,$I$66:$DJ$120,ROWS($A$10:$A47)+2,FALSE)","v":0},{"$f":"HLOOKUP(BD$7,$I$66:$DJ$120,ROWS($A$10:$A47)+2,FALSE)","v":1013},{"$f":"HLOOKUP(BE$7,$I$66:$DJ$120,ROWS($A$10:$A47)+2,FALSE)","v":1246},{"$f":"HLOOKUP(BF$7,$I$66:$DJ$120,ROWS($A$10:$A47)+2,FALSE)","v":44},{"$f":"HLOOKUP(BG$7,$I$66:$DJ$120,ROWS($A$10:$A47)+2,FALSE)","v":942},{"$f":"HLOOKUP(BH$7,$I$66:$DJ$120,ROWS($A$10:$A47)+2,FALSE)","v":1763},{"$f":"HLOOKUP(BI$7,$I$66:$DJ$120,ROWS($A$10:$A47)+2,FALSE)","v":105},{"$f":"HLOOKUP(BJ$7+0.5,$I$66:$DJ$120,ROWS($A$10:$A47)+2,FALSE)","v":7998},{"$f":"HLOOKUP(BK$7+0.5,$I$66:$DJ$120,ROWS($A$10:$A47)+2,FALSE)","v":368},{"$f":"HLOOKUP(BL$7+0.5,$I$66:$DJ$120,ROWS($A$10:$A47)+2,FALSE)","v":857},{"$f":"HLOOKUP(BM$7+0.5,$I$66:$DJ$120,ROWS($A$10:$A47)+2,FALSE)","v":1522},{"$f":"HLOOKUP(BN$7+0.5,$I$66:$DJ$120,ROWS($A$10:$A47)+2,FALSE)","v":2060},{"$f":"HLOOKUP(BO$7+0.5,$I$66:$DJ$120,ROWS($A$10:$A47)+2,FALSE)","v":2583},{"$f":"HLOOKUP(BP$7+0.5,$I$66:$DJ$120,ROWS($A$10:$A47)+2,FALSE)","v":1511},{"$f":"HLOOKUP(BQ$7+0.5,$I$66:$DJ$120,ROWS($A$10:$A47)+2,FALSE)","v":138},{"$f":"HLOOKUP(BR$7+0.5,$I$66:$DJ$120,ROWS($A$10:$A47)+2,FALSE)","v":110},{"$f":"HLOOKUP(BS$7+0.5,$I$66:$DJ$120,ROWS($A$10:$A47)+2,FALSE)","v":234},{"$f":"HLOOKUP(BT$7+0.5,$I$66:$DJ$120,ROWS($A$10:$A47)+2,FALSE)","v":1588},{"$f":"HLOOKUP(BU$7+0.5,$I$66:$DJ$120,ROWS($A$10:$A47)+2,FALSE)","v":1642},{"$f":"HLOOKUP(BV$7+0.5,$I$66:$DJ$120,ROWS($A$10:$A47)+2,FALSE)","v":148},{"$f":"HLOOKUP(BW$7+0.5,$I$66:$DJ$120,ROWS($A$10:$A47)+2,FALSE)","v":35},{"$f":"HLOOKUP(BX$7+0.5,$I$66:$DJ$120,ROWS($A$10:$A47)+2,FALSE)","v":1297},{"$f":"HLOOKUP(BY$7+0.5,$I$66:$DJ$120,ROWS($A$10:$A47)+2,FALSE)","v":1098},{"$f":"HLOOKUP(BZ$7+0.5,$I$66:$DJ$120,ROWS($A$10:$A47)+2,FALSE)","v":536},{"$f":"HLOOKUP(CA$7+0.5,$I$66:$DJ$120,ROWS($A$10:$A47)+2,FALSE)","v":1250},{"$f":"HLOOKUP(CB$7+0.5,$I$66:$DJ$120,ROWS($A$10:$A47)+2,FALSE)","v":747},{"$f":"HLOOKUP(CC$7+0.5,$I$66:$DJ$120,ROWS($A$10:$A47)+2,FALSE)","v":727},{"$f":"HLOOKUP(CD$7+0.5,$I$66:$DJ$120,ROWS($A$10:$A47)+2,FALSE)","v":425},{"$f":"HLOOKUP(CE$7+0.5,$I$66:$DJ$120,ROWS($A$10:$A47)+2,FALSE)","v":312},{"$f":"HLOOKUP(CF$7+0.5,$I$66:$DJ$120,ROWS($A$10:$A47)+2,FALSE)","v":103},{"$f":"HLOOKUP(CG$7+0.5,$I$66:$DJ$120,ROWS($A$10:$A47)+2,FALSE)","v":848},{"$f":"HLOOKUP(CH$7+0.5,$I$66:$DJ$120,ROWS($A$10:$A47)+2,FALSE)","v":341},{"$f":"HLOOKUP(CI$7+0.5,$I$66:$DJ$120,ROWS($A$10:$A47)+2,FALSE)","v":202},{"$f":"HLOOKUP(CJ$7+0.5,$I$66:$DJ$120,ROWS($A$10:$A47)+2,FALSE)","v":1311},{"$f":"HLOOKUP(CK$7+0.5,$I$66:$DJ$120,ROWS($A$10:$A47)+2,FALSE)","v":793},{"$f":"HLOOKUP(CL$7+0.5,$I$66:$DJ$120,ROWS($A$10:$A47)+2,FALSE)","v":1196},{"$f":"HLOOKUP(CM$7+0.5,$I$66:$DJ$120,ROWS($A$10:$A47)+2,FALSE)","v":532},{"$f":"HLOOKUP(CN$7+0.5,$I$66:$DJ$120,ROWS($A$10:$A47)+2,FALSE)","v":163},{"$f":"HLOOKUP(CO$7+0.5,$I$66:$DJ$120,ROWS($A$10:$A47)+2,FALSE)","v":333},{"$f":"HLOOKUP(CP$7+0.5,$I$66:$DJ$120,ROWS($A$10:$A47)+2,FALSE)","v":259},{"$f":"HLOOKUP(CQ$7+0.5,$I$66:$DJ$120,ROWS($A$10:$A47)+2,FALSE)","v":925},{"$f":"HLOOKUP(CR$7+0.5,$I$66:$DJ$120,ROWS($A$10:$A47)+2,FALSE)","v":800},{"$f":"HLOOKUP(CS$7+0.5,$I$66:$DJ$120,ROWS($A$10:$A47)+2,FALSE)","v":805},{"$f":"HLOOKUP(CT$7+0.5,$I$66:$DJ$120,ROWS($A$10:$A47)+2,FALSE)","v":791},{"$f":"HLOOKUP(CU$7+0.5,$I$66:$DJ$120,ROWS($A$10:$A47)+2,FALSE)","v":"N/A"},{"$f":"HLOOKUP(CV$7+0.5,$I$66:$DJ$120,ROWS($A$10:$A47)+2,FALSE)","v":713},{"$f":"HLOOKUP(CW$7+0.5,$I$66:$DJ$120,ROWS($A$10:$A47)+2,FALSE)","v":492},{"$f":"HLOOKUP(CX$7+0.5,$I$66:$DJ$120,ROWS($A$10:$A47)+2,FALSE)","v":179},{"$f":"HLOOKUP(CY$7+0.5,$I$66:$DJ$120,ROWS($A$10:$A47)+2,FALSE)","v":971},{"$f":"HLOOKUP(CZ$7+0.5,$I$66:$DJ$120,ROWS($A$10:$A47)+2,FALSE)","v":379},{"$f":"HLOOKUP(DA$7+0.5,$I$66:$DJ$120,ROWS($A$10:$A47)+2,FALSE)","v":1101},{"$f":"HLOOKUP(DB$7+0.5,$I$66:$DJ$120,ROWS($A$10:$A47)+2,FALSE)","v":4987},{"$f":"HLOOKUP(DC$7+0.5,$I$66:$DJ$120,ROWS($A$10:$A47)+2,FALSE)","v":450},{"$f":"HLOOKUP(DD$7+0.5,$I$66:$DJ$120,ROWS($A$10:$A47)+2,FALSE)","v":163},{"$f":"HLOOKUP(DE$7+0.5,$I$66:$DJ$120,ROWS($A$10:$A47)+2,FALSE)","v":610},{"$f":"HLOOKUP(DF$7+0.5,$I$66:$DJ$120,ROWS($A$10:$A47)+2,FALSE)","v":620},{"$f":"HLOOKUP(DG$7+0.5,$I$66:$DJ$120,ROWS($A$10:$A47)+2,FALSE)","v":68},{"$f":"HLOOKUP(DH$7+0.5,$I$66:$DJ$120,ROWS($A$10:$A47)+2,FALSE)","v":474},{"$f":"HLOOKUP(DI$7+0.5,$I$66:$DJ$120,ROWS($A$10:$A47)+2,FALSE)","v":1572},{"$f":"HLOOKUP(DJ$7+0.5,$I$66:$DJ$120,ROWS($A$10:$A47)+2,FALSE)","v":139}]
[null,"Oregon",3828714,3857,3128121,20096,549332,19087,{"$f":"HLOOKUP(I$7,$I$66:$DJ$120,ROWS($A$10:$A48)+2,FALSE)","v":127906},{"$f":"HLOOKUP(J$7,$I$66:$DJ$120,ROWS($A$10:$A48)+2,FALSE)","v":758},{"$f":"HLOOKUP(K$7,$I$66:$DJ$120,ROWS($A$10:$A48)+2,FALSE)","v":1935},{"$f":"HLOOKUP(L$7,$I$66:$DJ$120,ROWS($A$10:$A48)+2,FALSE)","v":7911},{"$f":"HLOOKUP(M$7,$I$66:$DJ$120,ROWS($A$10:$A48)+2,FALSE)","v":988},{"$f":"HLOOKUP(N$7,$I$66:$DJ$120,ROWS($A$10:$A48)+2,FALSE)","v":34214},{"$f":"HLOOKUP(O$7,$I$66:$DJ$120,ROWS($A$10:$A48)+2,FALSE)","v":2110},{"$f":"HLOOKUP(P$7,$I$66:$DJ$120,ROWS($A$10:$A48)+2,FALSE)","v":949},{"$f":"HLOOKUP(Q$7,$I$66:$DJ$120,ROWS($A$10:$A48)+2,FALSE)","v":251},{"$f":"HLOOKUP(R$7,$I$66:$DJ$120,ROWS($A$10:$A48)+2,FALSE)","v":349},{"$f":"HLOOKUP(S$7,$I$66:$DJ$120,ROWS($A$10:$A48)+2,FALSE)","v":3384},{"$f":"HLOOKUP(T$7,$I$66:$DJ$120,ROWS($A$10:$A48)+2,FALSE)","v":1946},{"$f":"HLOOKUP(U$7,$I$66:$DJ$120,ROWS($A$10:$A48)+2,FALSE)","v":2491},{"$f":"HLOOKUP(V$7,$I$66:$DJ$120,ROWS($A$10:$A48)+2,FALSE)","v":6236},{"$f":"HLOOKUP(W$7,$I$66:$DJ$120,ROWS($A$10:$A48)+2,FALSE)","v":1350},{"$f":"HLOOKUP(X$7,$I$66:$DJ$120,ROWS($A$10:$A48)+2,FALSE)","v":1371},{"$f":"HLOOKUP(Y$7,$I$66:$DJ$120,ROWS($A$10:$A48)+2,FALSE)","v":659},{"$f":"HLOOKUP(Z$7,$I$66:$DJ$120,ROWS($A$10:$A48)+2,FALSE)","v":1263},{"$f":"HLOOKUP(AA$7,$I$66:$DJ$120,ROWS($A$10:$A48)+2,FALSE)","v":71},{"$f":"HLOOKUP(AB$7,$I$66:$DJ$120,ROWS($A$10:$A48)+2,FALSE)","v":0},{"$f":"HLOOKUP(AC$7,$I$66:$DJ$120,ROWS($A$10:$A48)+2,FALSE)","v":269},{"$f":"HLOOKUP(AD$7,$I$66:$DJ$120,ROWS($A$10:$A48)+2,FALSE)","v":453},{"$f":"HLOOKUP(AE$7,$I$66:$DJ$120,ROWS($A$10:$A48)+2,FALSE)","v":1423},{"$f":"HLOOKUP(AF$7,$I$66:$DJ$120,ROWS($A$10:$A48)+2,FALSE)","v":1652},{"$f":"HLOOKUP(AG$7,$I$66:$DJ$120,ROWS($A$10:$A48)+2,FALSE)","v":1413},{"$f":"HLOOKUP(AH$7,$I$66:$DJ$120,ROWS($A$10:$A48)+2,FALSE)","v":7},{"$f":"HLOOKUP(AI$7,$I$66:$DJ$120,ROWS($A$10:$A48)+2,FALSE)","v":1172},{"$f":"HLOOKUP(AJ$7,$I$66:$DJ$120,ROWS($A$10:$A48)+2,FALSE)","v":1079},{"$f":"HLOOKUP(AK$7,$I$66:$DJ$120,ROWS($A$10:$A48)+2,FALSE)","v":324},{"$f":"HLOOKUP(AL$7,$I$66:$DJ$120,ROWS($A$10:$A48)+2,FALSE)","v":7222},{"$f":"HLOOKUP(AM$7,$I$66:$DJ$120,ROWS($A$10:$A48)+2,FALSE)","v":427},{"$f":"HLOOKUP(AN$7,$I$66:$DJ$120,ROWS($A$10:$A48)+2,FALSE)","v":1322},{"$f":"HLOOKUP(AO$7,$I$66:$DJ$120,ROWS($A$10:$A48)+2,FALSE)","v":537},{"$f":"HLOOKUP(AP$7,$I$66:$DJ$120,ROWS($A$10:$A48)+2,FALSE)","v":2056},{"$f":"HLOOKUP(AQ$7,$I$66:$DJ$120,ROWS($A$10:$A48)+2,FALSE)","v":1099},{"$f":"HLOOKUP(AR$7,$I$66:$DJ$120,ROWS($A$10:$A48)+2,FALSE)","v":313},{"$f":"HLOOKUP(AS$7,$I$66:$DJ$120,ROWS($A$10:$A48)+2,FALSE)","v":949},{"$f":"HLOOKUP(AT$7,$I$66:$DJ$120,ROWS($A$10:$A48)+2,FALSE)","v":2034},{"$f":"HLOOKUP(AU$7,$I$66:$DJ$120,ROWS($A$10:$A48)+2,FALSE)","v":"N/A"},{"$f":"HLOOKUP(AV$7,$I$66:$DJ$120,ROWS($A$10:$A48)+2,FALSE)","v":1407},{"$f":"HLOOKUP(AW$7,$I$66:$DJ$120,ROWS($A$10:$A48)+2,FALSE)","v":0},{"$f":"HLOOKUP(AX$7,$I$66:$DJ$120,ROWS($A$10:$A48)+2,FALSE)","v":370},{"$f":"HLOOKUP(AY$7,$I$66:$DJ$120,ROWS($A$10:$A48)+2,FALSE)","v":417},{"$f":"HLOOKUP(AZ$7,$I$66:$DJ$120,ROWS($A$10:$A48)+2,FALSE)","v":673},{"$f":"HLOOKUP(BA$7,$I$66:$DJ$120,ROWS($A$10:$A48)+2,FALSE)","v":4498},{"$f":"HLOOKUP(BB$7,$I$66:$DJ$120,ROWS($A$10:$A48)+2,FALSE)","v":3443},{"$f":"HLOOKUP(BC$7,$I$66:$DJ$120,ROWS($A$10:$A48)+2,FALSE)","v":176},{"$f":"HLOOKUP(BD$7,$I$66:$DJ$120,ROWS($A$10:$A48)+2,FALSE)","v":1179},{"$f":"HLOOKUP(BE$7,$I$66:$DJ$120,ROWS($A$10:$A48)+2,FALSE)","v":21862},{"$f":"HLOOKUP(BF$7,$I$66:$DJ$120,ROWS($A$10:$A48)+2,FALSE)","v":66},{"$f":"HLOOKUP(BG$7,$I$66:$DJ$120,ROWS($A$10:$A48)+2,FALSE)","v":914},{"$f":"HLOOKUP(BH$7,$I$66:$DJ$120,ROWS($A$10:$A48)+2,FALSE)","v":914},{"$f":"HLOOKUP(BI$7,$I$66:$DJ$120,ROWS($A$10:$A48)+2,FALSE)","v":4},{"$f":"HLOOKUP(BJ$7+0.5,$I$66:$DJ$120,ROWS($A$10:$A48)+2,FALSE)","v":9071},{"$f":"HLOOKUP(BK$7+0.5,$I$66:$DJ$120,ROWS($A$10:$A48)+2,FALSE)","v":1071},{"$f":"HLOOKUP(BL$7+0.5,$I$66:$DJ$120,ROWS($A$10:$A48)+2,FALSE)","v":1062},{"$f":"HLOOKUP(BM$7+0.5,$I$66:$DJ$120,ROWS($A$10:$A48)+2,FALSE)","v":3054},{"$f":"HLOOKUP(BN$7+0.5,$I$66:$DJ$120,ROWS($A$10:$A48)+2,FALSE)","v":1155},{"$f":"HLOOKUP(BO$7+0.5,$I$66:$DJ$120,ROWS($A$10:$A48)+2,FALSE)","v":4555},{"$f":"HLOOKUP(BP$7+0.5,$I$66:$DJ$120,ROWS($A$10:$A48)+2,FALSE)","v":659},{"$f":"HLOOKUP(BQ$7+0.5,$I$66:$DJ$120,ROWS($A$10:$A48)+2,FALSE)","v":564},{"$f":"HLOOKUP(BR$7+0.5,$I$66:$DJ$120,ROWS($A$10:$A48)+2,FALSE)","v":264},{"$f":"HLOOKUP(BS$7+0.5,$I$66:$DJ$120,ROWS($A$10:$A48)+2,FALSE)","v":291},{"$f":"HLOOKUP(BT$7+0.5,$I$66:$DJ$120,ROWS($A$10:$A48)+2,FALSE)","v":1934},{"$f":"HLOOKUP(BU$7+0.5,$I$66:$DJ$120,ROWS($A$10:$A48)+2,FALSE)","v":1914},{"$f":"HLOOKUP(BV$7+0.5,$I$66:$DJ$120,ROWS($A$10:$A48)+2,FALSE)","v":1173},{"$f":"HLOOKUP(BW$7+0.5,$I$66:$DJ$120,ROWS($A$10:$A48)+2,FALSE)","v":2097},{"$f":"HLOOKUP(BX$7+0.5,$I$66:$DJ$120,ROWS($A$10:$A48)+2,FALSE)","v":663},{"$f":"HLOOKUP(BY$7+0.5,$I$66:$DJ$120,ROWS($A$10:$A48)+2,FALSE)","v":1707},{"$f":"HLOOKUP(BZ$7+0.5,$I$66:$DJ$120,ROWS($A$10:$A48)+2,FALSE)","v":627},{"$f":"HLOOKUP(CA$7+0.5,$I$66:$DJ$120,ROWS($A$10:$A48)+2,FALSE)","v":1355},{"$f":"HLOOKUP(CB$7+0.5,$I$66:$DJ$120,ROWS($A$10:$A48)+2,FALSE)","v":118},{"$f":"HLOOKUP(CC$7+0.5,$I$66:$DJ$120,ROWS($A$10:$A48)+2,FALSE)","v":203},{"$f":"HLOOKUP(CD$7+0.5,$I$66:$DJ$120,ROWS($A$10:$A48)+2,FALSE)","v":320},{"$f":"HLOOKUP(CE$7+0.5,$I$66:$DJ$120,ROWS($A$10:$A48)+2,FALSE)","v":482},{"$f":"HLOOKUP(CF$7+0.5,$I$66:$DJ$120,ROWS($A$10:$A48)+2,FALSE)","v":768},{"$f":"HLOOKUP(CG$7+0.5,$I$66:$DJ$120,ROWS($A$10:$A48)+2,FALSE)","v":1174},{"$f":"HLOOKUP(CH$7+0.5,$I$66:$DJ$120,ROWS($A$10:$A48)+2,FALSE)","v":863},{"$f":"HLOOKUP(CI$7+0.5,$I$66:$DJ$120,ROWS($A$10:$A48)+2,FALSE)","v":14},{"$f":"HLOOKUP(CJ$7+0.5,$I$66:$DJ$120,ROWS($A$10:$A48)+2,FALSE)","v":664},{"$f":"HLOOKUP(CK$7+0.5,$I$66:$DJ$120,ROWS($A$10:$A48)+2,FALSE)","v":784},{"$f":"HLOOKUP(CL$7+0.5,$I$66:$DJ$120,ROWS($A$10:$A48)+2,FALSE)","v":342},{"$f":"HLOOKUP(CM$7+0.5,$I$66:$DJ$120,ROWS($A$10:$A48)+2,FALSE)","v":3426},{"$f":"HLOOKUP(CN$7+0.5,$I$66:$DJ$120,ROWS($A$10:$A48)+2,FALSE)","v":404},{"$f":"HLOOKUP(CO$7+0.5,$I$66:$DJ$120,ROWS($A$10:$A48)+2,FALSE)","v":771},{"$f":"HLOOKUP(CP$7+0.5,$I$66:$DJ$120,ROWS($A$10:$A48)+2,FALSE)","v":449},{"$f":"HLOOKUP(CQ$7+0.5,$I$66:$DJ$120,ROWS($A$10:$A48)+2,FALSE)","v":850},{"$f":"HLOOKUP(CR$7+0.5,$I$66:$DJ$120,ROWS($A$10:$A48)+2,FALSE)","v":740},{"$f":"HLOOKUP(CS$7+0.5,$I$66:$DJ$120,ROWS($A$10:$A48)+2,FALSE)","v":340},{"$f":"HLOOKUP(CT$7+0.5,$I$66:$DJ$120,ROWS($A$10:$A48)+2,FALSE)","v":789},{"$f":"HLOOKUP(CU$7+0.5,$I$66:$DJ$120,ROWS($A$10:$A48)+2,FALSE)","v":1244},{"$f":"HLOOKUP(CV$7+0.5,$I$66:$DJ$120,ROWS($A$10:$A48)+2,FALSE)","v":"N/A"},{"$f":"HLOOKUP(CW$7+0.5,$I$66:$DJ$120,ROWS($A$10:$A48)+2,FALSE)","v":775},{"$f":"HLOOKUP(CX$7+0.5,$I$66:$DJ$120,ROWS($A$10:$A48)+2,FALSE)","v":203},{"$f":"HLOOKUP(CY$7+0.5,$I$66:$DJ$120,ROWS($A$10:$A48)+2,FALSE)","v":292},{"$f":"HLOOKUP(CZ$7+0.5,$I$66:$DJ$120,ROWS($A$10:$A48)+2,FALSE)","v":395},{"$f":"HLOOKUP(DA$7+0.5,$I$66:$DJ$120,ROWS($A$10:$A48)+2,FALSE)","v":420},{"$f":"HLOOKUP(DB$7+0.5,$I$66:$DJ$120,ROWS($A$10:$A48)+2,FALSE)","v":2398},{"$f":"HLOOKUP(DC$7+0.5,$I$66:$DJ$120,ROWS($A$10:$A48)+2,FALSE)","v":1781},{"$f":"HLOOKUP(DD$7+0.5,$I$66:$DJ$120,ROWS($A$10:$A48)+2,FALSE)","v":203},{"$f":"HLOOKUP(DE$7+0.5,$I$66:$DJ$120,ROWS($A$10:$A48)+2,FALSE)","v":619},{"$f":"HLOOKUP(DF$7+0.5,$I$66:$DJ$120,ROWS($A$10:$A48)+2,FALSE)","v":3732},{"$f":"HLOOKUP(DG$7+0.5,$I$66:$DJ$120,ROWS($A$10:$A48)+2,FALSE)","v":115},{"$f":"HLOOKUP(DH$7+0.5,$I$66:$DJ$120,ROWS($A$10:$A48)+2,FALSE)","v":697},{"$f":"HLOOKUP(DI$7+0.5,$I$66:$DJ$120,ROWS($A$10:$A48)+2,FALSE)","v":880},{"$f":"HLOOKUP(DJ$7+0.5,$I$66:$DJ$120,ROWS($A$10:$A48)+2,FALSE)","v":8}]
[null,"Pennsylvania",12610486,5092,11099077,27780,1224564,25195,{"$f":"HLOOKUP(I$7,$I$66:$DJ$120,ROWS($A$10:$A49)+2,FALSE)","v":234291},{"$f":"HLOOKUP(J$7,$I$66:$DJ$120,ROWS($A$10:$A49)+2,FALSE)","v":1332},{"$f":"HLOOKUP(K$7,$I$66:$DJ$120,ROWS($A$10:$A49)+2,FALSE)","v":759},{"$f":"HLOOKUP(L$7,$I$66:$DJ$120,ROWS($A$10:$A49)+2,FALSE)","v":2278},{"$f":"HLOOKUP(M$7,$I$66:$DJ$120,ROWS($A$10:$A49)+2,FALSE)","v":582},{"$f":"HLOOKUP(N$7,$I$66:$DJ$120,ROWS($A$10:$A49)+2,FALSE)","v":10672},{"$f":"HLOOKUP(O$7,$I$66:$DJ$120,ROWS($A$10:$A49)+2,FALSE)","v":2491},{"$f":"HLOOKUP(P$7,$I$66:$DJ$120,ROWS($A$10:$A49)+2,FALSE)","v":4150},{"$f":"HLOOKUP(Q$7,$I$66:$DJ$120,ROWS($A$10:$A49)+2,FALSE)","v":5177},{"$f":"HLOOKUP(R$7,$I$66:$DJ$120,ROWS($A$10:$A49)+2,FALSE)","v":1401},{"$f":"HLOOKUP(S$7,$I$66:$DJ$120,ROWS($A$10:$A49)+2,FALSE)","v":19299},{"$f":"HLOOKUP(T$7,$I$66:$DJ$120,ROWS($A$10:$A49)+2,FALSE)","v":4627},{"$f":"HLOOKUP(U$7,$I$66:$DJ$120,ROWS($A$10:$A49)+2,FALSE)","v":495},{"$f":"HLOOKUP(V$7,$I$66:$DJ$120,ROWS($A$10:$A49)+2,FALSE)","v":236},{"$f":"HLOOKUP(W$7,$I$66:$DJ$120,ROWS($A$10:$A49)+2,FALSE)","v":3902},{"$f":"HLOOKUP(X$7,$I$66:$DJ$120,ROWS($A$10:$A49)+2,FALSE)","v":4086},{"$f":"HLOOKUP(Y$7,$I$66:$DJ$120,ROWS($A$10:$A49)+2,FALSE)","v":1176},{"$f":"HLOOKUP(Z$7,$I$66:$DJ$120,ROWS($A$10:$A49)+2,FALSE)","v":2323},{"$f":"HLOOKUP(AA$7,$I$66:$DJ$120,ROWS($A$10:$A49)+2,FALSE)","v":4013},{"$f":"HLOOKUP(AB$7,$I$66:$DJ$120,ROWS($A$10:$A49)+2,FALSE)","v":615},{"$f":"HLOOKUP(AC$7,$I$66:$DJ$120,ROWS($A$10:$A49)+2,FALSE)","v":608},{"$f":"HLOOKUP(AD$7,$I$66:$DJ$120,ROWS($A$10:$A49)+2,FALSE)","v":17751},{"$f":"HLOOKUP(AE$7,$I$66:$DJ$120,ROWS($A$10:$A49)+2,FALSE)","v":6284},{"$f":"HLOOKUP(AF$7,$I$66:$DJ$120,ROWS($A$10:$A49)+2,FALSE)","v":4406},{"$f":"HLOOKUP(AG$7,$I$66:$DJ$120,ROWS($A$10:$A49)+2,FALSE)","v":853},{"$f":"HLOOKUP(AH$7,$I$66:$DJ$120,ROWS($A$10:$A49)+2,FALSE)","v":1238},{"$f":"HLOOKUP(AI$7,$I$66:$DJ$120,ROWS($A$10:$A49)+2,FALSE)","v":1761},{"$f":"HLOOKUP(AJ$7,$I$66:$DJ$120,ROWS($A$10:$A49)+2,FALSE)","v":338},{"$f":"HLOOKUP(AK$7,$I$66:$DJ$120,ROWS($A$10:$A49)+2,FALSE)","v":582},{"$f":"HLOOKUP(AL$7,$I$66:$DJ$120,ROWS($A$10:$A49)+2,FALSE)","v":1057},{"$f":"HLOOKUP(AM$7,$I$66:$DJ$120,ROWS($A$10:$A49)+2,FALSE)","v":1326},{"$f":"HLOOKUP(AN$7,$I$66:$DJ$120,ROWS($A$10:$A49)+2,FALSE)","v":36133},{"$f":"HLOOKUP(AO$7,$I$66:$DJ$120,ROWS($A$10:$A49)+2,FALSE)","v":325},{"$f":"HLOOKUP(AP$7,$I$66:$DJ$120,ROWS($A$10:$A49)+2,FALSE)","v":29436},{"$f":"HLOOKUP(AQ$7,$I$66:$DJ$120,ROWS($A$10:$A49)+2,FALSE)","v":11254},{"$f":"HLOOKUP(AR$7,$I$66:$DJ$120,ROWS($A$10:$A49)+2,FALSE)","v":195},{"$f":"HLOOKUP(AS$7,$I$66:$DJ$120,ROWS($A$10:$A49)+2,FALSE)","v":13075},{"$f":"HLOOKUP(AT$7,$I$66:$DJ$120,ROWS($A$10:$A49)+2,FALSE)","v":283},{"$f":"HLOOKUP(AU$7,$I$66:$DJ$120,ROWS($A$10:$A49)+2,FALSE)","v":1594},{"$f":"HLOOKUP(AV$7,$I$66:$DJ$120,ROWS($A$10:$A49)+2,FALSE)","v":"N/A"},{"$f":"HLOOKUP(AW$7,$I$66:$DJ$120,ROWS($A$10:$A49)+2,FALSE)","v":799},{"$f":"HLOOKUP(AX$7,$I$66:$DJ$120,ROWS($A$10:$A49)+2,FALSE)","v":3438},{"$f":"HLOOKUP(AY$7,$I$66:$DJ$120,ROWS($A$10:$A49)+2,FALSE)","v":142},{"$f":"HLOOKUP(AZ$7,$I$66:$DJ$120,ROWS($A$10:$A49)+2,FALSE)","v":3742},{"$f":"HLOOKUP(BA$7,$I$66:$DJ$120,ROWS($A$10:$A49)+2,FALSE)","v":7006},{"$f":"HLOOKUP(BB$7,$I$66:$DJ$120,ROWS($A$10:$A49)+2,FALSE)","v":1246},{"$f":"HLOOKUP(BC$7,$I$66:$DJ$120,ROWS($A$10:$A49)+2,FALSE)","v":446},{"$f":"HLOOKUP(BD$7,$I$66:$DJ$120,ROWS($A$10:$A49)+2,FALSE)","v":8419},{"$f":"HLOOKUP(BE$7,$I$66:$DJ$120,ROWS($A$10:$A49)+2,FALSE)","v":3688},{"$f":"HLOOKUP(BF$7,$I$66:$DJ$120,ROWS($A$10:$A49)+2,FALSE)","v":4631},{"$f":"HLOOKUP(BG$7,$I$66:$DJ$120,ROWS($A$10:$A49)+2,FALSE)","v":2426},{"$f":"HLOOKUP(BH$7,$I$66:$DJ$120,ROWS($A$10:$A49)+2,FALSE)","v":195},{"$f":"HLOOKUP(BI$7,$I$66:$DJ$120,ROWS($A$10:$A49)+2,FALSE)","v":2723},{"$f":"HLOOKUP(BJ$7+0.5,$I$66:$DJ$120,ROWS($A$10:$A49)+2,FALSE)","v":11246},{"$f":"HLOOKUP(BK$7+0.5,$I$66:$DJ$120,ROWS($A$10:$A49)+2,FALSE)","v":684},{"$f":"HLOOKUP(BL$7+0.5,$I$66:$DJ$120,ROWS($A$10:$A49)+2,FALSE)","v":664},{"$f":"HLOOKUP(BM$7+0.5,$I$66:$DJ$120,ROWS($A$10:$A49)+2,FALSE)","v":917},{"$f":"HLOOKUP(BN$7+0.5,$I$66:$DJ$120,ROWS($A$10:$A49)+2,FALSE)","v":601},{"$f":"HLOOKUP(BO$7+0.5,$I$66:$DJ$120,ROWS($A$10:$A49)+2,FALSE)","v":2349},{"$f":"HLOOKUP(BP$7+0.5,$I$66:$DJ$120,ROWS($A$10:$A49)+2,FALSE)","v":1027},{"$f":"HLOOKUP(BQ$7+0.5,$I$66:$DJ$120,ROWS($A$10:$A49)+2,FALSE)","v":993},{"$f":"HLOOKUP(BR$7+0.5,$I$66:$DJ$120,ROWS($A$10:$A49)+2,FALSE)","v":1304},{"$f":"HLOOKUP(BS$7+0.5,$I$66:$DJ$120,ROWS($A$10:$A49)+2,FALSE)","v":584},{"$f":"HLOOKUP(BT$7+0.5,$I$66:$DJ$120,ROWS($A$10:$A49)+2,FALSE)","v":3790},{"$f":"HLOOKUP(BU$7+0.5,$I$66:$DJ$120,ROWS($A$10:$A49)+2,FALSE)","v":1185},{"$f":"HLOOKUP(BV$7+0.5,$I$66:$DJ$120,ROWS($A$10:$A49)+2,FALSE)","v":369},{"$f":"HLOOKUP(BW$7+0.5,$I$66:$DJ$120,ROWS($A$10:$A49)+2,FALSE)","v":223},{"$f":"HLOOKUP(BX$7+0.5,$I$66:$DJ$120,ROWS($A$10:$A49)+2,FALSE)","v":1438},{"$f":"HLOOKUP(BY$7+0.5,$I$66:$DJ$120,ROWS($A$10:$A49)+2,FALSE)","v":1429},{"$f":"HLOOKUP(BZ$7+0.5,$I$66:$DJ$120,ROWS($A$10:$A49)+2,FALSE)","v":960},{"$f":"HLOOKUP(CA$7+0.5,$I$66:$DJ$120,ROWS($A$10:$A49)+2,FALSE)","v":1449},{"$f":"HLOOKUP(CB$7+0.5,$I$66:$DJ$120,ROWS($A$10:$A49)+2,FALSE)","v":1826},{"$f":"HLOOKUP(CC$7+0.5,$I$66:$DJ$120,ROWS($A$10:$A49)+2,FALSE)","v":294},{"$f":"HLOOKUP(CD$7+0.5,$I$66:$DJ$120,ROWS($A$10:$A49)+2,FALSE)","v":328},{"$f":"HLOOKUP(CE$7+0.5,$I$66:$DJ$120,ROWS($A$10:$A49)+2,FALSE)","v":3723},{"$f":"HLOOKUP(CF$7+0.5,$I$66:$DJ$120,ROWS($A$10:$A49)+2,FALSE)","v":1711},{"$f":"HLOOKUP(CG$7+0.5,$I$66:$DJ$120,ROWS($A$10:$A49)+2,FALSE)","v":1278},{"$f":"HLOOKUP(CH$7+0.5,$I$66:$DJ$120,ROWS($A$10:$A49)+2,FALSE)","v":592},{"$f":"HLOOKUP(CI$7+0.5,$I$66:$DJ$120,ROWS($A$10:$A49)+2,FALSE)","v":943},{"$f":"HLOOKUP(CJ$7+0.5,$I$66:$DJ$120,ROWS($A$10:$A49)+2,FALSE)","v":1063},{"$f":"HLOOKUP(CK$7+0.5,$I$66:$DJ$120,ROWS($A$10:$A49)+2,FALSE)","v":308},{"$f":"HLOOKUP(CL$7+0.5,$I$66:$DJ$120,ROWS($A$10:$A49)+2,FALSE)","v":439},{"$f":"HLOOKUP(CM$7+0.5,$I$66:$DJ$120,ROWS($A$10:$A49)+2,FALSE)","v":501},{"$f":"HLOOKUP(CN$7+0.5,$I$66:$DJ$120,ROWS($A$10:$A49)+2,FALSE)","v":520},{"$f":"HLOOKUP(CO$7+0.5,$I$66:$DJ$120,ROWS($A$10:$A49)+2,FALSE)","v":4167},{"$f":"HLOOKUP(CP$7+0.5,$I$66:$DJ$120,ROWS($A$10:$A49)+2,FALSE)","v":405},{"$f":"HLOOKUP(CQ$7+0.5,$I$66:$DJ$120,ROWS($A$10:$A49)+2,FALSE)","v":3921},{"$f":"HLOOKUP(CR$7+0.5,$I$66:$DJ$120,ROWS($A$10:$A49)+2,FALSE)","v":3103},{"$f":"HLOOKUP(CS$7+0.5,$I$66:$DJ$120,ROWS($A$10:$A49)+2,FALSE)","v":208},{"$f":"HLOOKUP(CT$7+0.5,$I$66:$DJ$120,ROWS($A$10:$A49)+2,FALSE)","v":2133},{"$f":"HLOOKUP(CU$7+0.5,$I$66:$DJ$120,ROWS($A$10:$A49)+2,FALSE)","v":220},{"$f":"HLOOKUP(CV$7+0.5,$I$66:$DJ$120,ROWS($A$10:$A49)+2,FALSE)","v":1022},{"$f":"HLOOKUP(CW$7+0.5,$I$66:$DJ$120,ROWS($A$10:$A49)+2,FALSE)","v":"N/A"},{"$f":"HLOOKUP(CX$7+0.5,$I$66:$DJ$120,ROWS($A$10:$A49)+2,FALSE)","v":558},{"$f":"HLOOKUP(CY$7+0.5,$I$66:$DJ$120,ROWS($A$10:$A49)+2,FALSE)","v":1057},{"$f":"HLOOKUP(CZ$7+0.5,$I$66:$DJ$120,ROWS($A$10:$A49)+2,FALSE)","v":140},{"$f":"HLOOKUP(DA$7+0.5,$I$66:$DJ$120,ROWS($A$10:$A49)+2,FALSE)","v":1402},{"$f":"HLOOKUP(DB$7+0.5,$I$66:$DJ$120,ROWS($A$10:$A49)+2,FALSE)","v":1441},{"$f":"HLOOKUP(DC$7+0.5,$I$66:$DJ$120,ROWS($A$10:$A49)+2,FALSE)","v":776},{"$f":"HLOOKUP(DD$7+0.5,$I$66:$DJ$120,ROWS($A$10:$A49)+2,FALSE)","v":327},{"$f":"HLOOKUP(DE$7+0.5,$I$66:$DJ$120,ROWS($A$10:$A49)+2,FALSE)","v":1530},{"$f":"HLOOKUP(DF$7+0.5,$I$66:$DJ$120,ROWS($A$10:$A49)+2,FALSE)","v":1533},{"$f":"HLOOKUP(DG$7+0.5,$I$66:$DJ$120,ROWS($A$10:$A49)+2,FALSE)","v":1483},{"$f":"HLOOKUP(DH$7+0.5,$I$66:$DJ$120,ROWS($A$10:$A49)+2,FALSE)","v":1046},{"$f":"HLOOKUP(DI$7+0.5,$I$66:$DJ$120,ROWS($A$10:$A49)+2,FALSE)","v":237},{"$f":"HLOOKUP(DJ$7+0.5,$I$66:$DJ$120,ROWS($A$10:$A49)+2,FALSE)","v":1294}]
[null,"Rhode Island",1040022,1440,903786,8645,101689,7813,{"$f":"HLOOKUP(I$7,$I$66:$DJ$120,ROWS($A$10:$A50)+2,FALSE)","v":26769},{"$f":"HLOOKUP(J$7,$I$66:$DJ$120,ROWS($A$10:$A50)+2,FALSE)","v":0},{"$f":"HLOOKUP(K$7,$I$66:$DJ$120,ROWS($A$10:$A50)+2,FALSE)","v":0},{"$f":"HLOOKUP(L$7,$I$66:$DJ$120,ROWS($A$10:$A50)+2,FALSE)","v":214},{"$f":"HLOOKUP(M$7,$I$66:$DJ$120,ROWS($A$10:$A50)+2,FALSE)","v":0},{"$f":"HLOOKUP(N$7,$I$66:$DJ$120,ROWS($A$10:$A50)+2,FALSE)","v":1949},{"$f":"HLOOKUP(O$7,$I$66:$DJ$120,ROWS($A$10:$A50)+2,FALSE)","v":301},{"$f":"HLOOKUP(P$7,$I$66:$DJ$120,ROWS($A$10:$A50)+2,FALSE)","v":2613},{"$f":"HLOOKUP(Q$7,$I$66:$DJ$120,ROWS($A$10:$A50)+2,FALSE)","v":0},{"$f":"HLOOKUP(R$7,$I$66:$DJ$120,ROWS($A$10:$A50)+2,FALSE)","v":0},{"$f":"HLOOKUP(S$7,$I$66:$DJ$120,ROWS($A$10:$A50)+2,FALSE)","v":2230},{"$f":"HLOOKUP(T$7,$I$66:$DJ$120,ROWS($A$10:$A50)+2,FALSE)","v":476},{"$f":"HLOOKUP(U$7,$I$66:$DJ$120,ROWS($A$10:$A50)+2,FALSE)","v":0},{"$f":"HLOOKUP(V$7,$I$66:$DJ$120,ROWS($A$10:$A50)+2,FALSE)","v":107},{"$f":"HLOOKUP(W$7,$I$66:$DJ$120,ROWS($A$10:$A50)+2,FALSE)","v":373},{"$f":"HLOOKUP(X$7,$I$66:$DJ$120,ROWS($A$10:$A50)+2,FALSE)","v":41},{"$f":"HLOOKUP(Y$7,$I$66:$DJ$120,ROWS($A$10:$A50)+2,FALSE)","v":82},{"$f":"HLOOKUP(Z$7,$I$66:$DJ$120,ROWS($A$10:$A50)+2,FALSE)","v":374},{"$f":"HLOOKUP(AA$7,$I$66:$DJ$120,ROWS($A$10:$A50)+2,FALSE)","v":211},{"$f":"HLOOKUP(AB$7,$I$66:$DJ$120,ROWS($A$10:$A50)+2,FALSE)","v":121},{"$f":"HLOOKUP(AC$7,$I$66:$DJ$120,ROWS($A$10:$A50)+2,FALSE)","v":228},{"$f":"HLOOKUP(AD$7,$I$66:$DJ$120,ROWS($A$10:$A50)+2,FALSE)","v":472},{"$f":"HLOOKUP(AE$7,$I$66:$DJ$120,ROWS($A$10:$A50)+2,FALSE)","v":7715},{"$f":"HLOOKUP(AF$7,$I$66:$DJ$120,ROWS($A$10:$A50)+2,FALSE)","v":178},{"$f":"HLOOKUP(AG$7,$I$66:$DJ$120,ROWS($A$10:$A50)+2,FALSE)","v":27},{"$f":"HLOOKUP(AH$7,$I$66:$DJ$120,ROWS($A$10:$A50)+2,FALSE)","v":0},{"$f":"HLOOKUP(AI$7,$I$66:$DJ$120,ROWS($A$10:$A50)+2,FALSE)","v":109},{"$f":"HLOOKUP(AJ$7,$I$66:$DJ$120,ROWS($A$10:$A50)+2,FALSE)","v":0},{"$f":"HLOOKUP(AK$7,$I$66:$DJ$120,ROWS($A$10:$A50)+2,FALSE)","v":0},{"$f":"HLOOKUP(AL$7,$I$66:$DJ$120,ROWS($A$10:$A50)+2,FALSE)","v":0},{"$f":"HLOOKUP(AM$7,$I$66:$DJ$120,ROWS($A$10:$A50)+2,FALSE)","v":941},{"$f":"HLOOKUP(AN$7,$I$66:$DJ$120,ROWS($A$10:$A50)+2,FALSE)","v":1224},{"$f":"HLOOKUP(AO$7,$I$66:$DJ$120,ROWS($A$10:$A50)+2,FALSE)","v":93},{"$f":"HLOOKUP(AP$7,$I$66:$DJ$120,ROWS($A$10:$A50)+2,FALSE)","v":2776},{"$f":"HLOOKUP(AQ$7,$I$66:$DJ$120,ROWS($A$10:$A50)+2,FALSE)","v":259},{"$f":"HLOOKUP(AR$7,$I$66:$DJ$120,ROWS($A$10:$A50)+2,FALSE)","v":0},{"$f":"HLOOKUP(AS$7,$I$66:$DJ$120,ROWS($A$10:$A50)+2,FALSE)","v":60},{"$f":"HLOOKUP(AT$7,$I$66:$DJ$120,ROWS($A$10:$A50)+2,FALSE)","v":0},{"$f":"HLOOKUP(AU$7,$I$66:$DJ$120,ROWS($A$10:$A50)+2,FALSE)","v":57},{"$f":"HLOOKUP(AV$7,$I$66:$DJ$120,ROWS($A$10:$A50)+2,FALSE)","v":1125},{"$f":"HLOOKUP(AW$7,$I$66:$DJ$120,ROWS($A$10:$A50)+2,FALSE)","v":"N/A"},{"$f":"HLOOKUP(AX$7,$I$66:$DJ$120,ROWS($A$10:$A50)+2,FALSE)","v":223},{"$f":"HLOOKUP(AY$7,$I$66:$DJ$120,ROWS($A$10:$A50)+2,FALSE)","v":0},{"$f":"HLOOKUP(AZ$7,$I$66:$DJ$120,ROWS($A$10:$A50)+2,FALSE)","v":210},{"$f":"HLOOKUP(BA$7,$I$66:$DJ$120,ROWS($A$10:$A50)+2,FALSE)","v":207},{"$f":"HLOOKUP(BB$7,$I$66:$DJ$120,ROWS($A$10:$A50)+2,FALSE)","v":181},{"$f":"HLOOKUP(BC$7,$I$66:$DJ$120,ROWS($A$10:$A50)+2,FALSE)","v":621},{"$f":"HLOOKUP(BD$7,$I$66:$DJ$120,ROWS($A$10:$A50)+2,FALSE)","v":485},{"$f":"HLOOKUP(BE$7,$I$66:$DJ$120,ROWS($A$10:$A50)+2,FALSE)","v":262},{"$f":"HLOOKUP(BF$7,$I$66:$DJ$120,ROWS($A$10:$A50)+2,FALSE)","v":199},{"$f":"HLOOKUP(BG$7,$I$66:$DJ$120,ROWS($A$10:$A50)+2,FALSE)","v":2},{"$f":"HLOOKUP(BH$7,$I$66:$DJ$120,ROWS($A$10:$A50)+2,FALSE)","v":23},{"$f":"HLOOKUP(BI$7,$I$66:$DJ$120,ROWS($A$10:$A50)+2,FALSE)","v":293},{"$f":"HLOOKUP(BJ$7+0.5,$I$66:$DJ$120,ROWS($A$10:$A50)+2,FALSE)","v":2836},{"$f":"HLOOKUP(BK$7+0.5,$I$66:$DJ$120,ROWS($A$10:$A50)+2,FALSE)","v":207},{"$f":"HLOOKUP(BL$7+0.5,$I$66:$DJ$120,ROWS($A$10:$A50)+2,FALSE)","v":207},{"$f":"HLOOKUP(BM$7+0.5,$I$66:$DJ$120,ROWS($A$10:$A50)+2,FALSE)","v":348},{"$f":"HLOOKUP(BN$7+0.5,$I$66:$DJ$120,ROWS($A$10:$A50)+2,FALSE)","v":207},{"$f":"HLOOKUP(BO$7+0.5,$I$66:$DJ$120,ROWS($A$10:$A50)+2,FALSE)","v":734},{"$f":"HLOOKUP(BP$7+0.5,$I$66:$DJ$120,ROWS($A$10:$A50)+2,FALSE)","v":271},{"$f":"HLOOKUP(BQ$7+0.5,$I$66:$DJ$120,ROWS($A$10:$A50)+2,FALSE)","v":984},{"$f":"HLOOKUP(BR$7+0.5,$I$66:$DJ$120,ROWS($A$10:$A50)+2,FALSE)","v":207},{"$f":"HLOOKUP(BS$7+0.5,$I$66:$DJ$120,ROWS($A$10:$A50)+2,FALSE)","v":207},{"$f":"HLOOKUP(BT$7+0.5,$I$66:$DJ$120,ROWS($A$10:$A50)+2,FALSE)","v":915},{"$f":"HLOOKUP(BU$7+0.5,$I$66:$DJ$120,ROWS($A$10:$A50)+2,FALSE)","v":361},{"$f":"HLOOKUP(BV$7+0.5,$I$66:$DJ$120,ROWS($A$10:$A50)+2,FALSE)","v":207},{"$f":"HLOOKUP(BW$7+0.5,$I$66:$DJ$120,ROWS($A$10:$A50)+2,FALSE)","v":199},{"$f":"HLOOKUP(BX$7+0.5,$I$66:$DJ$120,ROWS($A$10:$A50)+2,FALSE)","v":375},{"$f":"HLOOKUP(BY$7+0.5,$I$66:$DJ$120,ROWS($A$10:$A50)+2,FALSE)","v":95},{"$f":"HLOOKUP(BZ$7+0.5,$I$66:$DJ$120,ROWS($A$10:$A50)+2,FALSE)","v":145},{"$f":"HLOOKUP(CA$7+0.5,$I$66:$DJ$120,ROWS($A$10:$A50)+2,FALSE)","v":433},{"$f":"HLOOKUP(CB$7+0.5,$I$66:$DJ$120,ROWS($A$10:$A50)+2,FALSE)","v":318},{"$f":"HLOOKUP(CC$7+0.5,$I$66:$DJ$120,ROWS($A$10:$A50)+2,FALSE)","v":185},{"$f":"HLOOKUP(CD$7+0.5,$I$66:$DJ$120,ROWS($A$10:$A50)+2,FALSE)","v":177},{"$f":"HLOOKUP(CE$7+0.5,$I$66:$DJ$120,ROWS($A$10:$A50)+2,FALSE)","v":323},{"$f":"HLOOKUP(CF$7+0.5,$I$66:$DJ$120,ROWS($A$10:$A50)+2,FALSE)","v":1532},{"$f":"HLOOKUP(CG$7+0.5,$I$66:$DJ$120,ROWS($A$10:$A50)+2,FALSE)","v":117},{"$f":"HLOOKUP(CH$7+0.5,$I$66:$DJ$120,ROWS($A$10:$A50)+2,FALSE)","v":60},{"$f":"HLOOKUP(CI$7+0.5,$I$66:$DJ$120,ROWS($A$10:$A50)+2,FALSE)","v":207},{"$f":"HLOOKUP(CJ$7+0.5,$I$66:$DJ$120,ROWS($A$10:$A50)+2,FALSE)","v":163},{"$f":"HLOOKUP(CK$7+0.5,$I$66:$DJ$120,ROWS($A$10:$A50)+2,FALSE)","v":207},{"$f":"HLOOKUP(CL$7+0.5,$I$66:$DJ$120,ROWS($A$10:$A50)+2,FALSE)","v":207},{"$f":"HLOOKUP(CM$7+0.5,$I$66:$DJ$120,ROWS($A$10:$A50)+2,FALSE)","v":207},{"$f":"HLOOKUP(CN$7+0.5,$I$66:$DJ$120,ROWS($A$10:$A50)+2,FALSE)","v":745},{"$f":"HLOOKUP(CO$7+0.5,$I$66:$DJ$120,ROWS($A$10:$A50)+2,FALSE)","v":501},{"$f":"HLOOKUP(CP$7+0.5,$I$66:$DJ$120,ROWS($A$10:$A50)+2,FALSE)","v":153},{"$f":"HLOOKUP(CQ$7+0.5,$I$66:$DJ$120,ROWS($A$10:$A50)+2,FALSE)","v":1118},{"$f":"HLOOKUP(CR$7+0.5,$I$66:$DJ$120,ROWS($A$10:$A50)+2,FALSE)","v":212},{"$f":"HLOOKUP(CS$7+0.5,$I$66:$DJ$120,ROWS($A$10:$A50)+2,FALSE)","v":207},{"$f":"HLOOKUP(CT$7+0.5,$I$66:$DJ$120,ROWS($A$10:$A50)+2,FALSE)","v":89},{"$f":"HLOOKUP(CU$7+0.5,$I$66:$DJ$120,ROWS($A$10:$A50)+2,FALSE)","v":207},{"$f":"HLOOKUP(CV$7+0.5,$I$66:$DJ$120,ROWS($A$10:$A50)+2,FALSE)","v":94},{"$f":"HLOOKUP(CW$7+0.5,$I$66:$DJ$120,ROWS($A$10:$A50)+2,FALSE)","v":725},{"$f":"HLOOKUP(CX$7+0.5,$I$66:$DJ$120,ROWS($A$10:$A50)+2,FALSE)","v":"N/A"},{"$f":"HLOOKUP(CY$7+0.5,$I$66:$DJ$120,ROWS($A$10:$A50)+2,FALSE)","v":232},{"$f":"HLOOKUP(CZ$7+0.5,$I$66:$DJ$120,ROWS($A$10:$A50)+2,FALSE)","v":207},{"$f":"HLOOKUP(DA$7+0.5,$I$66:$DJ$120,ROWS($A$10:$A50)+2,FALSE)","v":187},{"$f":"HLOOKUP(DB$7+0.5,$I$66:$DJ$120,ROWS($A$10:$A50)+2,FALSE)","v":153},{"$f":"HLOOKUP(DC$7+0.5,$I$66:$DJ$120,ROWS($A$10:$A50)+2,FALSE)","v":267},{"$f":"HLOOKUP(DD$7+0.5,$I$66:$DJ$120,ROWS($A$10:$A50)+2,FALSE)","v":328},{"$f":"HLOOKUP(DE$7+0.5,$I$66:$DJ$120,ROWS($A$10:$A50)+2,FALSE)","v":448},{"$f":"HLOOKUP(DF$7+0.5,$I$66:$DJ$120,ROWS($A$10:$A50)+2,FALSE)","v":277},{"$f":"HLOOKUP(DG$7+0.5,$I$66:$DJ$120,ROWS($A$10:$A50)+2,FALSE)","v":253},{"$f":"HLOOKUP(DH$7+0.5,$I$66:$DJ$120,ROWS($A$10:$A50)+2,FALSE)","v":5},{"$f":"HLOOKUP(DI$7+0.5,$I$66:$DJ$120,ROWS($A$10:$A50)+2,FALSE)","v":47},{"$f":"HLOOKUP(DJ$7+0.5,$I$66:$DJ$120,ROWS($A$10:$A50)+2,FALSE)","v":292}]
[null,"South Carolina",4624180,3871,3899705,25459,546666,21151,{"$f":"HLOOKUP(I$7,$I$66:$DJ$120,ROWS($A$10:$A51)+2,FALSE)","v":157644},{"$f":"HLOOKUP(J$7,$I$66:$DJ$120,ROWS($A$10:$A51)+2,FALSE)","v":2999},{"$f":"HLOOKUP(K$7,$I$66:$DJ$120,ROWS($A$10:$A51)+2,FALSE)","v":2421},{"$f":"HLOOKUP(L$7,$I$66:$DJ$120,ROWS($A$10:$A51)+2,FALSE)","v":1971},{"$f":"HLOOKUP(M$7,$I$66:$DJ$120,ROWS($A$10:$A51)+2,FALSE)","v":1333},{"$f":"HLOOKUP(N$7,$I$66:$DJ$120,ROWS($A$10:$A51)+2,FALSE)","v":6592},{"$f":"HLOOKUP(O$7,$I$66:$DJ$120,ROWS($A$10:$A51)+2,FALSE)","v":1000},{"$f":"HLOOKUP(P$7,$I$66:$DJ$120,ROWS($A$10:$A51)+2,FALSE)","v":1752},{"$f":"HLOOKUP(Q$7,$I$66:$DJ$120,ROWS($A$10:$A51)+2,FALSE)","v":841},{"$f":"HLOOKUP(R$7,$I$66:$DJ$120,ROWS($A$10:$A51)+2,FALSE)","v":589},{"$f":"HLOOKUP(S$7,$I$66:$DJ$120,ROWS($A$10:$A51)+2,FALSE)","v":15476},{"$f":"HLOOKUP(T$7,$I$66:$DJ$120,ROWS($A$10:$A51)+2,FALSE)","v":16355},{"$f":"HLOOKUP(U$7,$I$66:$DJ$120,ROWS($A$10:$A51)+2,FALSE)","v":712},{"$f":"HLOOKUP(V$7,$I$66:$DJ$120,ROWS($A$10:$A51)+2,FALSE)","v":55},{"$f":"HLOOKUP(W$7,$I$66:$DJ$120,ROWS($A$10:$A51)+2,FALSE)","v":2371},{"$f":"HLOOKUP(X$7,$I$66:$DJ$120,ROWS($A$10:$A51)+2,FALSE)","v":3249},{"$f":"HLOOKUP(Y$7,$I$66:$DJ$120,ROWS($A$10:$A51)+2,FALSE)","v":1379},{"$f":"HLOOKUP(Z$7,$I$66:$DJ$120,ROWS($A$10:$A51)+2,FALSE)","v":1885},{"$f":"HLOOKUP(AA$7,$I$66:$DJ$120,ROWS($A$10:$A51)+2,FALSE)","v":2454},{"$f":"HLOOKUP(AB$7,$I$66:$DJ$120,ROWS($A$10:$A51)+2,FALSE)","v":878},{"$f":"HLOOKUP(AC$7,$I$66:$DJ$120,ROWS($A$10:$A51)+2,FALSE)","v":652},{"$f":"HLOOKUP(AD$7,$I$66:$DJ$120,ROWS($A$10:$A51)+2,FALSE)","v":3807},{"$f":"HLOOKUP(AE$7,$I$66:$DJ$120,ROWS($A$10:$A51)+2,FALSE)","v":730},{"$f":"HLOOKUP(AF$7,$I$66:$DJ$120,ROWS($A$10:$A51)+2,FALSE)","v":4483},{"$f":"HLOOKUP(AG$7,$I$66:$DJ$120,ROWS($A$10:$A51)+2,FALSE)","v":471},{"$f":"HLOOKUP(AH$7,$I$66:$DJ$120,ROWS($A$10:$A51)+2,FALSE)","v":2163},{"$f":"HLOOKUP(AI$7,$I$66:$DJ$120,ROWS($A$10:$A51)+2,FALSE)","v":1522},{"$f":"HLOOKUP(AJ$7,$I$66:$DJ$120,ROWS($A$10:$A51)+2,FALSE)","v":915},{"$f":"HLOOKUP(AK$7,$I$66:$DJ$120,ROWS($A$10:$A51)+2,FALSE)","v":204},{"$f":"HLOOKUP(AL$7,$I$66:$DJ$120,ROWS($A$10:$A51)+2,FALSE)","v":1017},{"$f":"HLOOKUP(AM$7,$I$66:$DJ$120,ROWS($A$10:$A51)+2,FALSE)","v":372},{"$f":"HLOOKUP(AN$7,$I$66:$DJ$120,ROWS($A$10:$A51)+2,FALSE)","v":4241},{"$f":"HLOOKUP(AO$7,$I$66:$DJ$120,ROWS($A$10:$A51)+2,FALSE)","v":598},{"$f":"HLOOKUP(AP$7,$I$66:$DJ$120,ROWS($A$10:$A51)+2,FALSE)","v":11317},{"$f":"HLOOKUP(AQ$7,$I$66:$DJ$120,ROWS($A$10:$A51)+2,FALSE)","v":23102},{"$f":"HLOOKUP(AR$7,$I$66:$DJ$120,ROWS($A$10:$A51)+2,FALSE)","v":271},{"$f":"HLOOKUP(AS$7,$I$66:$DJ$120,ROWS($A$10:$A51)+2,FALSE)","v":6327},{"$f":"HLOOKUP(AT$7,$I$66:$DJ$120,ROWS($A$10:$A51)+2,FALSE)","v":1008},{"$f":"HLOOKUP(AU$7,$I$66:$DJ$120,ROWS($A$10:$A51)+2,FALSE)","v":833},{"$f":"HLOOKUP(AV$7,$I$66:$DJ$120,ROWS($A$10:$A51)+2,FALSE)","v":3523},{"$f":"HLOOKUP(AW$7,$I$66:$DJ$120,ROWS($A$10:$A51)+2,FALSE)","v":453},{"$f":"HLOOKUP(AX$7,$I$66:$DJ$120,ROWS($A$10:$A51)+2,FALSE)","v":"N/A"},{"$f":"HLOOKUP(AY$7,$I$66:$DJ$120,ROWS($A$10:$A51)+2,FALSE)","v":62},{"$f":"HLOOKUP(AZ$7,$I$66:$DJ$120,ROWS($A$10:$A51)+2,FALSE)","v":3324},{"$f":"HLOOKUP(BA$7,$I$66:$DJ$120,ROWS($A$10:$A51)+2,FALSE)","v":8623},{"$f":"HLOOKUP(BB$7,$I$66:$DJ$120,ROWS($A$10:$A51)+2,FALSE)","v":181},{"$f":"HLOOKUP(BC$7,$I$66:$DJ$120,ROWS($A$10:$A51)+2,FALSE)","v":91},{"$f":"HLOOKUP(BD$7,$I$66:$DJ$120,ROWS($A$10:$A51)+2,FALSE)","v":7879},{"$f":"HLOOKUP(BE$7,$I$66:$DJ$120,ROWS($A$10:$A51)+2,FALSE)","v":2510},{"$f":"HLOOKUP(BF$7,$I$66:$DJ$120,ROWS($A$10:$A51)+2,FALSE)","v":1680},{"$f":"HLOOKUP(BG$7,$I$66:$DJ$120,ROWS($A$10:$A51)+2,FALSE)","v":341},{"$f":"HLOOKUP(BH$7,$I$66:$DJ$120,ROWS($A$10:$A51)+2,FALSE)","v":632},{"$f":"HLOOKUP(BI$7,$I$66:$DJ$120,ROWS($A$10:$A51)+2,FALSE)","v":2166},{"$f":"HLOOKUP(BJ$7+0.5,$I$66:$DJ$120,ROWS($A$10:$A51)+2,FALSE)","v":12647},{"$f":"HLOOKUP(BK$7+0.5,$I$66:$DJ$120,ROWS($A$10:$A51)+2,FALSE)","v":1543},{"$f":"HLOOKUP(BL$7+0.5,$I$66:$DJ$120,ROWS($A$10:$A51)+2,FALSE)","v":1281},{"$f":"HLOOKUP(BM$7+0.5,$I$66:$DJ$120,ROWS($A$10:$A51)+2,FALSE)","v":1391},{"$f":"HLOOKUP(BN$7+0.5,$I$66:$DJ$120,ROWS($A$10:$A51)+2,FALSE)","v":1301},{"$f":"HLOOKUP(BO$7+0.5,$I$66:$DJ$120,ROWS($A$10:$A51)+2,FALSE)","v":1789},{"$f":"HLOOKUP(BP$7+0.5,$I$66:$DJ$120,ROWS($A$10:$A51)+2,FALSE)","v":598},{"$f":"HLOOKUP(BQ$7+0.5,$I$66:$DJ$120,ROWS($A$10:$A51)+2,FALSE)","v":1005},{"$f":"HLOOKUP(BR$7+0.5,$I$66:$DJ$120,ROWS($A$10:$A51)+2,FALSE)","v":746},{"$f":"HLOOKUP(BS$7+0.5,$I$66:$DJ$120,ROWS($A$10:$A51)+2,FALSE)","v":681},{"$f":"HLOOKUP(BT$7+0.5,$I$66:$DJ$120,ROWS($A$10:$A51)+2,FALSE)","v":4230},{"$f":"HLOOKUP(BU$7+0.5,$I$66:$DJ$120,ROWS($A$10:$A51)+2,FALSE)","v":2798},{"$f":"HLOOKUP(BV$7+0.5,$I$66:$DJ$120,ROWS($A$10:$A51)+2,FALSE)","v":626},{"$f":"HLOOKUP(BW$7+0.5,$I$66:$DJ$120,ROWS($A$10:$A51)+2,FALSE)","v":68},{"$f":"HLOOKUP(BX$7+0.5,$I$66:$DJ$120,ROWS($A$10:$A51)+2,FALSE)","v":831},{"$f":"HLOOKUP(BY$7+0.5,$I$66:$DJ$120,ROWS($A$10:$A51)+2,FALSE)","v":1601},{"$f":"HLOOKUP(BZ$7+0.5,$I$66:$DJ$120,ROWS($A$10:$A51)+2,FALSE)","v":1468},{"$f":"HLOOKUP(CA$7+0.5,$I$66:$DJ$120,ROWS($A$10:$A51)+2,FALSE)","v":1445},{"$f":"HLOOKUP(CB$7+0.5,$I$66:$DJ$120,ROWS($A$10:$A51)+2,FALSE)","v":1692},{"$f":"HLOOKUP(CC$7+0.5,$I$66:$DJ$120,ROWS($A$10:$A51)+2,FALSE)","v":486},{"$f":"HLOOKUP(CD$7+0.5,$I$66:$DJ$120,ROWS($A$10:$A51)+2,FALSE)","v":566},{"$f":"HLOOKUP(CE$7+0.5,$I$66:$DJ$120,ROWS($A$10:$A51)+2,FALSE)","v":1261},{"$f":"HLOOKUP(CF$7+0.5,$I$66:$DJ$120,ROWS($A$10:$A51)+2,FALSE)","v":447},{"$f":"HLOOKUP(CG$7+0.5,$I$66:$DJ$120,ROWS($A$10:$A51)+2,FALSE)","v":1737},{"$f":"HLOOKUP(CH$7+0.5,$I$66:$DJ$120,ROWS($A$10:$A51)+2,FALSE)","v":393},{"$f":"HLOOKUP(CI$7+0.5,$I$66:$DJ$120,ROWS($A$10:$A51)+2,FALSE)","v":1979},{"$f":"HLOOKUP(CJ$7+0.5,$I$66:$DJ$120,ROWS($A$10:$A51)+2,FALSE)","v":1671},{"$f":"HLOOKUP(CK$7+0.5,$I$66:$DJ$120,ROWS($A$10:$A51)+2,FALSE)","v":999},{"$f":"HLOOKUP(CL$7+0.5,$I$66:$DJ$120,ROWS($A$10:$A51)+2,FALSE)","v":329},{"$f":"HLOOKUP(CM$7+0.5,$I$66:$DJ$120,ROWS($A$10:$A51)+2,FALSE)","v":722},{"$f":"HLOOKUP(CN$7+0.5,$I$66:$DJ$120,ROWS($A$10:$A51)+2,FALSE)","v":280},{"$f":"HLOOKUP(CO$7+0.5,$I$66:$DJ$120,ROWS($A$10:$A51)+2,FALSE)","v":1445},{"$f":"HLOOKUP(CP$7+0.5,$I$66:$DJ$120,ROWS($A$10:$A51)+2,FALSE)","v":609},{"$f":"HLOOKUP(CQ$7+0.5,$I$66:$DJ$120,ROWS($A$10:$A51)+2,FALSE)","v":3991},{"$f":"HLOOKUP(CR$7+0.5,$I$66:$DJ$120,ROWS($A$10:$A51)+2,FALSE)","v":4356},{"$f":"HLOOKUP(CS$7+0.5,$I$66:$DJ$120,ROWS($A$10:$A51)+2,FALSE)","v":213},{"$f":"HLOOKUP(CT$7+0.5,$I$66:$DJ$120,ROWS($A$10:$A51)+2,FALSE)","v":2177},{"$f":"HLOOKUP(CU$7+0.5,$I$66:$DJ$120,ROWS($A$10:$A51)+2,FALSE)","v":934},{"$f":"HLOOKUP(CV$7+0.5,$I$66:$DJ$120,ROWS($A$10:$A51)+2,FALSE)","v":583},{"$f":"HLOOKUP(CW$7+0.5,$I$66:$DJ$120,ROWS($A$10:$A51)+2,FALSE)","v":1139},{"$f":"HLOOKUP(CX$7+0.5,$I$66:$DJ$120,ROWS($A$10:$A51)+2,FALSE)","v":360},{"$f":"HLOOKUP(CY$7+0.5,$I$66:$DJ$120,ROWS($A$10:$A51)+2,FALSE)","v":"N/A"},{"$f":"HLOOKUP(CZ$7+0.5,$I$66:$DJ$120,ROWS($A$10:$A51)+2,FALSE)","v":107},{"$f":"HLOOKUP(DA$7+0.5,$I$66:$DJ$120,ROWS($A$10:$A51)+2,FALSE)","v":1252},{"$f":"HLOOKUP(DB$7+0.5,$I$66:$DJ$120,ROWS($A$10:$A51)+2,FALSE)","v":4005},{"$f":"HLOOKUP(DC$7+0.5,$I$66:$DJ$120,ROWS($A$10:$A51)+2,FALSE)","v":188},{"$f":"HLOOKUP(DD$7+0.5,$I$66:$DJ$120,ROWS($A$10:$A51)+2,FALSE)","v":115},{"$f":"HLOOKUP(DE$7+0.5,$I$66:$DJ$120,ROWS($A$10:$A51)+2,FALSE)","v":2193},{"$f":"HLOOKUP(DF$7+0.5,$I$66:$DJ$120,ROWS($A$10:$A51)+2,FALSE)","v":1257},{"$f":"HLOOKUP(DG$7+0.5,$I$66:$DJ$120,ROWS($A$10:$A51)+2,FALSE)","v":1114},{"$f":"HLOOKUP(DH$7+0.5,$I$66:$DJ$120,ROWS($A$10:$A51)+2,FALSE)","v":291},{"$f":"HLOOKUP(DI$7+0.5,$I$66:$DJ$120,ROWS($A$10:$A51)+2,FALSE)","v":647},{"$f":"HLOOKUP(DJ$7+0.5,$I$66:$DJ$120,ROWS($A$10:$A51)+2,FALSE)","v":1534}]
[null,"South Dakota",814175,1297,688436,7824,94655,6542,{"$f":"HLOOKUP(I$7,$I$66:$DJ$120,ROWS($A$10:$A52)+2,FALSE)","v":27506},{"$f":"HLOOKUP(J$7,$I$66:$DJ$120,ROWS($A$10:$A52)+2,FALSE)","v":0},{"$f":"HLOOKUP(K$7,$I$66:$DJ$120,ROWS($A$10:$A52)+2,FALSE)","v":554},{"$f":"HLOOKUP(L$7,$I$66:$DJ$120,ROWS($A$10:$A52)+2,FALSE)","v":1422},{"$f":"HLOOKUP(M$7,$I$66:$DJ$120,ROWS($A$10:$A52)+2,FALSE)","v":659},{"$f":"HLOOKUP(N$7,$I$66:$DJ$120,ROWS($A$10:$A52)+2,FALSE)","v":1286},{"$f":"HLOOKUP(O$7,$I$66:$DJ$120,ROWS($A$10:$A52)+2,FALSE)","v":1021},{"$f":"HLOOKUP(P$7,$I$66:$DJ$120,ROWS($A$10:$A52)+2,FALSE)","v":0},{"$f":"HLOOKUP(Q$7,$I$66:$DJ$120,ROWS($A$10:$A52)+2,FALSE)","v":0},{"$f":"HLOOKUP(R$7,$I$66:$DJ$120,ROWS($A$10:$A52)+2,FALSE)","v":0},{"$f":"HLOOKUP(S$7,$I$66:$DJ$120,ROWS($A$10:$A52)+2,FALSE)","v":101},{"$f":"HLOOKUP(T$7,$I$66:$DJ$120,ROWS($A$10:$A52)+2,FALSE)","v":69},{"$f":"HLOOKUP(U$7,$I$66:$DJ$120,ROWS($A$10:$A52)+2,FALSE)","v":0},{"$f":"HLOOKUP(V$7,$I$66:$DJ$120,ROWS($A$10:$A52)+2,FALSE)","v":186},{"$f":"HLOOKUP(W$7,$I$66:$DJ$120,ROWS($A$10:$A52)+2,FALSE)","v":267},{"$f":"HLOOKUP(X$7,$I$66:$DJ$120,ROWS($A$10:$A52)+2,FALSE)","v":285},{"$f":"HLOOKUP(Y$7,$I$66:$DJ$120,ROWS($A$10:$A52)+2,FALSE)","v":4772},{"$f":"HLOOKUP(Z$7,$I$66:$DJ$120,ROWS($A$10:$A52)+2,FALSE)","v":144},{"$f":"HLOOKUP(AA$7,$I$66:$DJ$120,ROWS($A$10:$A52)+2,FALSE)","v":211},{"$f":"HLOOKUP(AB$7,$I$66:$DJ$120,ROWS($A$10:$A52)+2,FALSE)","v":0},{"$f":"HLOOKUP(AC$7,$I$66:$DJ$120,ROWS($A$10:$A52)+2,FALSE)","v":0},{"$f":"HLOOKUP(AD$7,$I$66:$DJ$120,ROWS($A$10:$A52)+2,FALSE)","v":254},{"$f":"HLOOKUP(AE$7,$I$66:$DJ$120,ROWS($A$10:$A52)+2,FALSE)","v":113},{"$f":"HLOOKUP(AF$7,$I$66:$DJ$120,ROWS($A$10:$A52)+2,FALSE)","v":239},{"$f":"HLOOKUP(AG$7,$I$66:$DJ$120,ROWS($A$10:$A52)+2,FALSE)","v":5342},{"$f":"HLOOKUP(AH$7,$I$66:$DJ$120,ROWS($A$10:$A52)+2,FALSE)","v":129},{"$f":"HLOOKUP(AI$7,$I$66:$DJ$120,ROWS($A$10:$A52)+2,FALSE)","v":354},{"$f":"HLOOKUP(AJ$7,$I$66:$DJ$120,ROWS($A$10:$A52)+2,FALSE)","v":232},{"$f":"HLOOKUP(AK$7,$I$66:$DJ$120,ROWS($A$10:$A52)+2,FALSE)","v":1695},{"$f":"HLOOKUP(AL$7,$I$66:$DJ$120,ROWS($A$10:$A52)+2,FALSE)","v":110},{"$f":"HLOOKUP(AM$7,$I$66:$DJ$120,ROWS($A$10:$A52)+2,FALSE)","v":0},{"$f":"HLOOKUP(AN$7,$I$66:$DJ$120,ROWS($A$10:$A52)+2,FALSE)","v":441},{"$f":"HLOOKUP(AO$7,$I$66:$DJ$120,ROWS($A$10:$A52)+2,FALSE)","v":513},{"$f":"HLOOKUP(AP$7,$I$66:$DJ$120,ROWS($A$10:$A52)+2,FALSE)","v":6},{"$f":"HLOOKUP(AQ$7,$I$66:$DJ$120,ROWS($A$10:$A52)+2,FALSE)","v":166},{"$f":"HLOOKUP(AR$7,$I$66:$DJ$120,ROWS($A$10:$A52)+2,FALSE)","v":2060},{"$f":"HLOOKUP(AS$7,$I$66:$DJ$120,ROWS($A$10:$A52)+2,FALSE)","v":84},{"$f":"HLOOKUP(AT$7,$I$66:$DJ$120,ROWS($A$10:$A52)+2,FALSE)","v":40},{"$f":"HLOOKUP(AU$7,$I$66:$DJ$120,ROWS($A$10:$A52)+2,FALSE)","v":15},{"$f":"HLOOKUP(AV$7,$I$66:$DJ$120,ROWS($A$10:$A52)+2,FALSE)","v":57},{"$f":"HLOOKUP(AW$7,$I$66:$DJ$120,ROWS($A$10:$A52)+2,FALSE)","v":7},{"$f":"HLOOKUP(AX$7,$I$66:$DJ$120,ROWS($A$10:$A52)+2,FALSE)","v":529},{"$f":"HLOOKUP(AY$7,$I$66:$DJ$120,ROWS($A$10:$A52)+2,FALSE)","v":"N/A"},{"$f":"HLOOKUP(AZ$7,$I$66:$DJ$120,ROWS($A$10:$A52)+2,FALSE)","v":0},{"$f":"HLOOKUP(BA$7,$I$66:$DJ$120,ROWS($A$10:$A52)+2,FALSE)","v":1156},{"$f":"HLOOKUP(BB$7,$I$66:$DJ$120,ROWS($A$10:$A52)+2,FALSE)","v":560},{"$f":"HLOOKUP(BC$7,$I$66:$DJ$120,ROWS($A$10:$A52)+2,FALSE)","v":0},{"$f":"HLOOKUP(BD$7,$I$66:$DJ$120,ROWS($A$10:$A52)+2,FALSE)","v":79},{"$f":"HLOOKUP(BE$7,$I$66:$DJ$120,ROWS($A$10:$A52)+2,FALSE)","v":557},{"$f":"HLOOKUP(BF$7,$I$66:$DJ$120,ROWS($A$10:$A52)+2,FALSE)","v":0},{"$f":"HLOOKUP(BG$7,$I$66:$DJ$120,ROWS($A$10:$A52)+2,FALSE)","v":481},{"$f":"HLOOKUP(BH$7,$I$66:$DJ$120,ROWS($A$10:$A52)+2,FALSE)","v":1310},{"$f":"HLOOKUP(BI$7,$I$66:$DJ$120,ROWS($A$10:$A52)+2,FALSE)","v":0},{"$f":"HLOOKUP(BJ$7+0.5,$I$66:$DJ$120,ROWS($A$10:$A52)+2,FALSE)","v":3893},{"$f":"HLOOKUP(BK$7+0.5,$I$66:$DJ$120,ROWS($A$10:$A52)+2,FALSE)","v":155},{"$f":"HLOOKUP(BL$7+0.5,$I$66:$DJ$120,ROWS($A$10:$A52)+2,FALSE)","v":492},{"$f":"HLOOKUP(BM$7+0.5,$I$66:$DJ$120,ROWS($A$10:$A52)+2,FALSE)","v":1445},{"$f":"HLOOKUP(BN$7+0.5,$I$66:$DJ$120,ROWS($A$10:$A52)+2,FALSE)","v":778},{"$f":"HLOOKUP(BO$7+0.5,$I$66:$DJ$120,ROWS($A$10:$A52)+2,FALSE)","v":622},{"$f":"HLOOKUP(BP$7+0.5,$I$66:$DJ$120,ROWS($A$10:$A52)+2,FALSE)","v":604},{"$f":"HLOOKUP(BQ$7+0.5,$I$66:$DJ$120,ROWS($A$10:$A52)+2,FALSE)","v":155},{"$f":"HLOOKUP(BR$7+0.5,$I$66:$DJ$120,ROWS($A$10:$A52)+2,FALSE)","v":155},{"$f":"HLOOKUP(BS$7+0.5,$I$66:$DJ$120,ROWS($A$10:$A52)+2,FALSE)","v":155},{"$f":"HLOOKUP(BT$7+0.5,$I$66:$DJ$120,ROWS($A$10:$A52)+2,FALSE)","v":102},{"$f":"HLOOKUP(BU$7+0.5,$I$66:$DJ$120,ROWS($A$10:$A52)+2,FALSE)","v":104},{"$f":"HLOOKUP(BV$7+0.5,$I$66:$DJ$120,ROWS($A$10:$A52)+2,FALSE)","v":155},{"$f":"HLOOKUP(BW$7+0.5,$I$66:$DJ$120,ROWS($A$10:$A52)+2,FALSE)","v":262},{"$f":"HLOOKUP(BX$7+0.5,$I$66:$DJ$120,ROWS($A$10:$A52)+2,FALSE)","v":235},{"$f":"HLOOKUP(BY$7+0.5,$I$66:$DJ$120,ROWS($A$10:$A52)+2,FALSE)","v":378},{"$f":"HLOOKUP(BZ$7+0.5,$I$66:$DJ$120,ROWS($A$10:$A52)+2,FALSE)","v":1898},{"$f":"HLOOKUP(CA$7+0.5,$I$66:$DJ$120,ROWS($A$10:$A52)+2,FALSE)","v":212},{"$f":"HLOOKUP(CB$7+0.5,$I$66:$DJ$120,ROWS($A$10:$A52)+2,FALSE)","v":208},{"$f":"HLOOKUP(CC$7+0.5,$I$66:$DJ$120,ROWS($A$10:$A52)+2,FALSE)","v":155},{"$f":"HLOOKUP(CD$7+0.5,$I$66:$DJ$120,ROWS($A$10:$A52)+2,FALSE)","v":155},{"$f":"HLOOKUP(CE$7+0.5,$I$66:$DJ$120,ROWS($A$10:$A52)+2,FALSE)","v":222},{"$f":"HLOOKUP(CF$7+0.5,$I$66:$DJ$120,ROWS($A$10:$A52)+2,FALSE)","v":179},{"$f":"HLOOKUP(CG$7+0.5,$I$66:$DJ$120,ROWS($A$10:$A52)+2,FALSE)","v":201},{"$f":"HLOOKUP(CH$7+0.5,$I$66:$DJ$120,ROWS($A$10:$A52)+2,FALSE)","v":1981},{"$f":"HLOOKUP(CI$7+0.5,$I$66:$DJ$120,ROWS($A$10:$A52)+2,FALSE)","v":155},{"$f":"HLOOKUP(CJ$7+0.5,$I$66:$DJ$120,ROWS($A$10:$A52)+2,FALSE)","v":294},{"$f":"HLOOKUP(CK$7+0.5,$I$66:$DJ$120,ROWS($A$10:$A52)+2,FALSE)","v":258},{"$f":"HLOOKUP(CL$7+0.5,$I$66:$DJ$120,ROWS($A$10:$A52)+2,FALSE)","v":784},{"$f":"HLOOKUP(CM$7+0.5,$I$66:$DJ$120,ROWS($A$10:$A52)+2,FALSE)","v":177},{"$f":"HLOOKUP(CN$7+0.5,$I$66:$DJ$120,ROWS($A$10:$A52)+2,FALSE)","v":155},{"$f":"HLOOKUP(CO$7+0.5,$I$66:$DJ$120,ROWS($A$10:$A52)+2,FALSE)","v":473},{"$f":"HLOOKUP(CP$7+0.5,$I$66:$DJ$120,ROWS($A$10:$A52)+2,FALSE)","v":571},{"$f":"HLOOKUP(CQ$7+0.5,$I$66:$DJ$120,ROWS($A$10:$A52)+2,FALSE)","v":11},{"$f":"HLOOKUP(CR$7+0.5,$I$66:$DJ$120,ROWS($A$10:$A52)+2,FALSE)","v":257},{"$f":"HLOOKUP(CS$7+0.5,$I$66:$DJ$120,ROWS($A$10:$A52)+2,FALSE)","v":1025},{"$f":"HLOOKUP(CT$7+0.5,$I$66:$DJ$120,ROWS($A$10:$A52)+2,FALSE)","v":102},{"$f":"HLOOKUP(CU$7+0.5,$I$66:$DJ$120,ROWS($A$10:$A52)+2,FALSE)","v":46},{"$f":"HLOOKUP(CV$7+0.5,$I$66:$DJ$120,ROWS($A$10:$A52)+2,FALSE)","v":26},{"$f":"HLOOKUP(CW$7+0.5,$I$66:$DJ$120,ROWS($A$10:$A52)+2,FALSE)","v":77},{"$f":"HLOOKUP(CX$7+0.5,$I$66:$DJ$120,ROWS($A$10:$A52)+2,FALSE)","v":12},{"$f":"HLOOKUP(CY$7+0.5,$I$66:$DJ$120,ROWS($A$10:$A52)+2,FALSE)","v":706},{"$f":"HLOOKUP(CZ$7+0.5,$I$66:$DJ$120,ROWS($A$10:$A52)+2,FALSE)","v":"N/A"},{"$f":"HLOOKUP(DA$7+0.5,$I$66:$DJ$120,ROWS($A$10:$A52)+2,FALSE)","v":155},{"$f":"HLOOKUP(DB$7+0.5,$I$66:$DJ$120,ROWS($A$10:$A52)+2,FALSE)","v":384},{"$f":"HLOOKUP(DC$7+0.5,$I$66:$DJ$120,ROWS($A$10:$A52)+2,FALSE)","v":567},{"$f":"HLOOKUP(DD$7+0.5,$I$66:$DJ$120,ROWS($A$10:$A52)+2,FALSE)","v":155},{"$f":"HLOOKUP(DE$7+0.5,$I$66:$DJ$120,ROWS($A$10:$A52)+2,FALSE)","v":92},{"$f":"HLOOKUP(DF$7+0.5,$I$66:$DJ$120,ROWS($A$10:$A52)+2,FALSE)","v":780},{"$f":"HLOOKUP(DG$7+0.5,$I$66:$DJ$120,ROWS($A$10:$A52)+2,FALSE)","v":155},{"$f":"HLOOKUP(DH$7+0.5,$I$66:$DJ$120,ROWS($A$10:$A52)+2,FALSE)","v":594},{"$f":"HLOOKUP(DI$7+0.5,$I$66:$DJ$120,ROWS($A$10:$A52)+2,FALSE)","v":880},{"$f":"HLOOKUP(DJ$7+0.5,$I$66:$DJ$120,ROWS($A$10:$A52)+2,FALSE)","v":155}]
[null,"Tennessee",6333466,4450,5342978,29750,794556,26578,{"$f":"HLOOKUP(I$7,$I$66:$DJ$120,ROWS($A$10:$A53)+2,FALSE)","v":170969},{"$f":"HLOOKUP(J$7,$I$66:$DJ$120,ROWS($A$10:$A53)+2,FALSE)","v":9326},{"$f":"HLOOKUP(K$7,$I$66:$DJ$120,ROWS($A$10:$A53)+2,FALSE)","v":531},{"$f":"HLOOKUP(L$7,$I$66:$DJ$120,ROWS($A$10:$A53)+2,FALSE)","v":1346},{"$f":"HLOOKUP(M$7,$I$66:$DJ$120,ROWS($A$10:$A53)+2,FALSE)","v":7393},{"$f":"HLOOKUP(N$7,$I$66:$DJ$120,ROWS($A$10:$A53)+2,FALSE)","v":7130},{"$f":"HLOOKUP(O$7,$I$66:$DJ$120,ROWS($A$10:$A53)+2,FALSE)","v":1372},{"$f":"HLOOKUP(P$7,$I$66:$DJ$120,ROWS($A$10:$A53)+2,FALSE)","v":150},{"$f":"HLOOKUP(Q$7,$I$66:$DJ$120,ROWS($A$10:$A53)+2,FALSE)","v":155},{"$f":"HLOOKUP(R$7,$I$66:$DJ$120,ROWS($A$10:$A53)+2,FALSE)","v":307},{"$f":"HLOOKUP(S$7,$I$66:$DJ$120,ROWS($A$10:$A53)+2,FALSE)","v":15491},{"$f":"HLOOKUP(T$7,$I$66:$DJ$120,ROWS($A$10:$A53)+2,FALSE)","v":17507},{"$f":"HLOOKUP(U$7,$I$66:$DJ$120,ROWS($A$10:$A53)+2,FALSE)","v":179},{"$f":"HLOOKUP(V$7,$I$66:$DJ$120,ROWS($A$10:$A53)+2,FALSE)","v":0},{"$f":"HLOOKUP(W$7,$I$66:$DJ$120,ROWS($A$10:$A53)+2,FALSE)","v":8593},{"$f":"HLOOKUP(X$7,$I$66:$DJ$120,ROWS($A$10:$A53)+2,FALSE)","v":5645},{"$f":"HLOOKUP(Y$7,$I$66:$DJ$120,ROWS($A$10:$A53)+2,FALSE)","v":387},{"$f":"HLOOKUP(Z$7,$I$66:$DJ$120,ROWS($A$10:$A53)+2,FALSE)","v":1805},{"$f":"HLOOKUP(AA$7,$I$66:$DJ$120,ROWS($A$10:$A53)+2,FALSE)","v":13884},{"$f":"HLOOKUP(AB$7,$I$66:$DJ$120,ROWS($A$10:$A53)+2,FALSE)","v":1901},{"$f":"HLOOKUP(AC$7,$I$66:$DJ$120,ROWS($A$10:$A53)+2,FALSE)","v":9},{"$f":"HLOOKUP(AD$7,$I$66:$DJ$120,ROWS($A$10:$A53)+2,FALSE)","v":1135},{"$f":"HLOOKUP(AE$7,$I$66:$DJ$120,ROWS($A$10:$A53)+2,FALSE)","v":1690},{"$f":"HLOOKUP(AF$7,$I$66:$DJ$120,ROWS($A$10:$A53)+2,FALSE)","v":5983},{"$f":"HLOOKUP(AG$7,$I$66:$DJ$120,ROWS($A$10:$A53)+2,FALSE)","v":445},{"$f":"HLOOKUP(AH$7,$I$66:$DJ$120,ROWS($A$10:$A53)+2,FALSE)","v":9172},{"$f":"HLOOKUP(AI$7,$I$66:$DJ$120,ROWS($A$10:$A53)+2,FALSE)","v":3795},{"$f":"HLOOKUP(AJ$7,$I$66:$DJ$120,ROWS($A$10:$A53)+2,FALSE)","v":43},{"$f":"HLOOKUP(AK$7,$I$66:$DJ$120,ROWS($A$10:$A53)+2,FALSE)","v":631},{"$f":"HLOOKUP(AL$7,$I$66:$DJ$120,ROWS($A$10:$A53)+2,FALSE)","v":883},{"$f":"HLOOKUP(AM$7,$I$66:$DJ$120,ROWS($A$10:$A53)+2,FALSE)","v":132},{"$f":"HLOOKUP(AN$7,$I$66:$DJ$120,ROWS($A$10:$A53)+2,FALSE)","v":1396},{"$f":"HLOOKUP(AO$7,$I$66:$DJ$120,ROWS($A$10:$A53)+2,FALSE)","v":381},{"$f":"HLOOKUP(AP$7,$I$66:$DJ$120,ROWS($A$10:$A53)+2,FALSE)","v":4921},{"$f":"HLOOKUP(AQ$7,$I$66:$DJ$120,ROWS($A$10:$A53)+2,FALSE)","v":9353},{"$f":"HLOOKUP(AR$7,$I$66:$DJ$120,ROWS($A$10:$A53)+2,FALSE)","v":50},{"$f":"HLOOKUP(AS$7,$I$66:$DJ$120,ROWS($A$10:$A53)+2,FALSE)","v":5944},{"$f":"HLOOKUP(AT$7,$I$66:$DJ$120,ROWS($A$10:$A53)+2,FALSE)","v":3166},{"$f":"HLOOKUP(AU$7,$I$66:$DJ$120,ROWS($A$10:$A53)+2,FALSE)","v":726},{"$f":"HLOOKUP(AV$7,$I$66:$DJ$120,ROWS($A$10:$A53)+2,FALSE)","v":3360},{"$f":"HLOOKUP(AW$7,$I$66:$DJ$120,ROWS($A$10:$A53)+2,FALSE)","v":14},{"$f":"HLOOKUP(AX$7,$I$66:$DJ$120,ROWS($A$10:$A53)+2,FALSE)","v":5531},{"$f":"HLOOKUP(AY$7,$I$66:$DJ$120,ROWS($A$10:$A53)+2,FALSE)","v":181},{"$f":"HLOOKUP(AZ$7,$I$66:$DJ$120,ROWS($A$10:$A53)+2,FALSE)","v":"N/A"},{"$f":"HLOOKUP(BA$7,$I$66:$DJ$120,ROWS($A$10:$A53)+2,FALSE)","v":7009},{"$f":"HLOOKUP(BB$7,$I$66:$DJ$120,ROWS($A$10:$A53)+2,FALSE)","v":200},{"$f":"HLOOKUP(BC$7,$I$66:$DJ$120,ROWS($A$10:$A53)+2,FALSE)","v":38},{"$f":"HLOOKUP(BD$7,$I$66:$DJ$120,ROWS($A$10:$A53)+2,FALSE)","v":6098},{"$f":"HLOOKUP(BE$7,$I$66:$DJ$120,ROWS($A$10:$A53)+2,FALSE)","v":2852},{"$f":"HLOOKUP(BF$7,$I$66:$DJ$120,ROWS($A$10:$A53)+2,FALSE)","v":1385},{"$f":"HLOOKUP(BG$7,$I$66:$DJ$120,ROWS($A$10:$A53)+2,FALSE)","v":1213},{"$f":"HLOOKUP(BH$7,$I$66:$DJ$120,ROWS($A$10:$A53)+2,FALSE)","v":131},{"$f":"HLOOKUP(BI$7,$I$66:$DJ$120,ROWS($A$10:$A53)+2,FALSE)","v":1083},{"$f":"HLOOKUP(BJ$7+0.5,$I$66:$DJ$120,ROWS($A$10:$A53)+2,FALSE)","v":13046},{"$f":"HLOOKUP(BK$7+0.5,$I$66:$DJ$120,ROWS($A$10:$A53)+2,FALSE)","v":2717},{"$f":"HLOOKUP(BL$7+0.5,$I$66:$DJ$120,ROWS($A$10:$A53)+2,FALSE)","v":465},{"$f":"HLOOKUP(BM$7+0.5,$I$66:$DJ$120,ROWS($A$10:$A53)+2,FALSE)","v":1176},{"$f":"HLOOKUP(BN$7+0.5,$I$66:$DJ$120,ROWS($A$10:$A53)+2,FALSE)","v":3038},{"$f":"HLOOKUP(BO$7+0.5,$I$66:$DJ$120,ROWS($A$10:$A53)+2,FALSE)","v":2041},{"$f":"HLOOKUP(BP$7+0.5,$I$66:$DJ$120,ROWS($A$10:$A53)+2,FALSE)","v":902},{"$f":"HLOOKUP(BQ$7+0.5,$I$66:$DJ$120,ROWS($A$10:$A53)+2,FALSE)","v":163},{"$f":"HLOOKUP(BR$7+0.5,$I$66:$DJ$120,ROWS($A$10:$A53)+2,FALSE)","v":191},{"$f":"HLOOKUP(BS$7+0.5,$I$66:$DJ$120,ROWS($A$10:$A53)+2,FALSE)","v":186},{"$f":"HLOOKUP(BT$7+0.5,$I$66:$DJ$120,ROWS($A$10:$A53)+2,FALSE)","v":3282},{"$f":"HLOOKUP(BU$7+0.5,$I$66:$DJ$120,ROWS($A$10:$A53)+2,FALSE)","v":4897},{"$f":"HLOOKUP(BV$7+0.5,$I$66:$DJ$120,ROWS($A$10:$A53)+2,FALSE)","v":230},{"$f":"HLOOKUP(BW$7+0.5,$I$66:$DJ$120,ROWS($A$10:$A53)+2,FALSE)","v":208},{"$f":"HLOOKUP(BX$7+0.5,$I$66:$DJ$120,ROWS($A$10:$A53)+2,FALSE)","v":2245},{"$f":"HLOOKUP(BY$7+0.5,$I$66:$DJ$120,ROWS($A$10:$A53)+2,FALSE)","v":1932},{"$f":"HLOOKUP(BZ$7+0.5,$I$66:$DJ$120,ROWS($A$10:$A53)+2,FALSE)","v":432},{"$f":"HLOOKUP(CA$7+0.5,$I$66:$DJ$120,ROWS($A$10:$A53)+2,FALSE)","v":1529},{"$f":"HLOOKUP(CB$7+0.5,$I$66:$DJ$120,ROWS($A$10:$A53)+2,FALSE)","v":2654},{"$f":"HLOOKUP(CC$7+0.5,$I$66:$DJ$120,ROWS($A$10:$A53)+2,FALSE)","v":908},{"$f":"HLOOKUP(CD$7+0.5,$I$66:$DJ$120,ROWS($A$10:$A53)+2,FALSE)","v":17},{"$f":"HLOOKUP(CE$7+0.5,$I$66:$DJ$120,ROWS($A$10:$A53)+2,FALSE)","v":675},{"$f":"HLOOKUP(CF$7+0.5,$I$66:$DJ$120,ROWS($A$10:$A53)+2,FALSE)","v":1886},{"$f":"HLOOKUP(CG$7+0.5,$I$66:$DJ$120,ROWS($A$10:$A53)+2,FALSE)","v":2441},{"$f":"HLOOKUP(CH$7+0.5,$I$66:$DJ$120,ROWS($A$10:$A53)+2,FALSE)","v":315},{"$f":"HLOOKUP(CI$7+0.5,$I$66:$DJ$120,ROWS($A$10:$A53)+2,FALSE)","v":2752},{"$f":"HLOOKUP(CJ$7+0.5,$I$66:$DJ$120,ROWS($A$10:$A53)+2,FALSE)","v":1409},{"$f":"HLOOKUP(CK$7+0.5,$I$66:$DJ$120,ROWS($A$10:$A53)+2,FALSE)","v":69},{"$f":"HLOOKUP(CL$7+0.5,$I$66:$DJ$120,ROWS($A$10:$A53)+2,FALSE)","v":660},{"$f":"HLOOKUP(CM$7+0.5,$I$66:$DJ$120,ROWS($A$10:$A53)+2,FALSE)","v":816},{"$f":"HLOOKUP(CN$7+0.5,$I$66:$DJ$120,ROWS($A$10:$A53)+2,FALSE)","v":134},{"$f":"HLOOKUP(CO$7+0.5,$I$66:$DJ$120,ROWS($A$10:$A53)+2,FALSE)","v":850},{"$f":"HLOOKUP(CP$7+0.5,$I$66:$DJ$120,ROWS($A$10:$A53)+2,FALSE)","v":330},{"$f":"HLOOKUP(CQ$7+0.5,$I$66:$DJ$120,ROWS($A$10:$A53)+2,FALSE)","v":1493},{"$f":"HLOOKUP(CR$7+0.5,$I$66:$DJ$120,ROWS($A$10:$A53)+2,FALSE)","v":2989},{"$f":"HLOOKUP(CS$7+0.5,$I$66:$DJ$120,ROWS($A$10:$A53)+2,FALSE)","v":92},{"$f":"HLOOKUP(CT$7+0.5,$I$66:$DJ$120,ROWS($A$10:$A53)+2,FALSE)","v":2044},{"$f":"HLOOKUP(CU$7+0.5,$I$66:$DJ$120,ROWS($A$10:$A53)+2,FALSE)","v":3444},{"$f":"HLOOKUP(CV$7+0.5,$I$66:$DJ$120,ROWS($A$10:$A53)+2,FALSE)","v":610},{"$f":"HLOOKUP(CW$7+0.5,$I$66:$DJ$120,ROWS($A$10:$A53)+2,FALSE)","v":1716},{"$f":"HLOOKUP(CX$7+0.5,$I$66:$DJ$120,ROWS($A$10:$A53)+2,FALSE)","v":31},{"$f":"HLOOKUP(CY$7+0.5,$I$66:$DJ$120,ROWS($A$10:$A53)+2,FALSE)","v":1883},{"$f":"HLOOKUP(CZ$7+0.5,$I$66:$DJ$120,ROWS($A$10:$A53)+2,FALSE)","v":156},{"$f":"HLOOKUP(DA$7+0.5,$I$66:$DJ$120,ROWS($A$10:$A53)+2,FALSE)","v":"N/A"},{"$f":"HLOOKUP(DB$7+0.5,$I$66:$DJ$120,ROWS($A$10:$A53)+2,FALSE)","v":1999},{"$f":"HLOOKUP(DC$7+0.5,$I$66:$DJ$120,ROWS($A$10:$A53)+2,FALSE)","v":223},{"$f":"HLOOKUP(DD$7+0.5,$I$66:$DJ$120,ROWS($A$10:$A53)+2,FALSE)","v":64},{"$f":"HLOOKUP(DE$7+0.5,$I$66:$DJ$120,ROWS($A$10:$A53)+2,FALSE)","v":1279},{"$f":"HLOOKUP(DF$7+0.5,$I$66:$DJ$120,ROWS($A$10:$A53)+2,FALSE)","v":2746},{"$f":"HLOOKUP(DG$7+0.5,$I$66:$DJ$120,ROWS($A$10:$A53)+2,FALSE)","v":764},{"$f":"HLOOKUP(DH$7+0.5,$I$66:$DJ$120,ROWS($A$10:$A53)+2,FALSE)","v":631},{"$f":"HLOOKUP(DI$7+0.5,$I$66:$DJ$120,ROWS($A$10:$A53)+2,FALSE)","v":214},{"$f":"HLOOKUP(DJ$7+0.5,$I$66:$DJ$120,ROWS($A$10:$A53)+2,FALSE)","v":1191}]
[null,"Texas",25327104,10987,20984855,65490,3648260,63784,{"$f":"HLOOKUP(I$7,$I$66:$DJ$120,ROWS($A$10:$A54)+2,FALSE)","v":514726},{"$f":"HLOOKUP(J$7,$I$66:$DJ$120,ROWS($A$10:$A54)+2,FALSE)","v":8747},{"$f":"HLOOKUP(K$7,$I$66:$DJ$120,ROWS($A$10:$A54)+2,FALSE)","v":6670},{"$f":"HLOOKUP(L$7,$I$66:$DJ$120,ROWS($A$10:$A54)+2,FALSE)","v":20073},{"$f":"HLOOKUP(M$7,$I$66:$DJ$120,ROWS($A$10:$A54)+2,FALSE)","v":16461},{"$f":"HLOOKUP(N$7,$I$66:$DJ$120,ROWS($A$10:$A54)+2,FALSE)","v":58992},{"$f":"HLOOKUP(O$7,$I$66:$DJ$120,ROWS($A$10:$A54)+2,FALSE)","v":19126},{"$f":"HLOOKUP(P$7,$I$66:$DJ$120,ROWS($A$10:$A54)+2,FALSE)","v":2927},{"$f":"HLOOKUP(Q$7,$I$66:$DJ$120,ROWS($A$10:$A54)+2,FALSE)","v":884},{"$f":"HLOOKUP(R$7,$I$66:$DJ$120,ROWS($A$10:$A54)+2,FALSE)","v":2276},{"$f":"HLOOKUP(S$7,$I$66:$DJ$120,ROWS($A$10:$A54)+2,FALSE)","v":35777},{"$f":"HLOOKUP(T$7,$I$66:$DJ$120,ROWS($A$10:$A54)+2,FALSE)","v":17401},{"$f":"HLOOKUP(U$7,$I$66:$DJ$120,ROWS($A$10:$A54)+2,FALSE)","v":6106},{"$f":"HLOOKUP(V$7,$I$66:$DJ$120,ROWS($A$10:$A54)+2,FALSE)","v":4379},{"$f":"HLOOKUP(W$7,$I$66:$DJ$120,ROWS($A$10:$A54)+2,FALSE)","v":15064},{"$f":"HLOOKUP(X$7,$I$66:$DJ$120,ROWS($A$10:$A54)+2,FALSE)","v":10265},{"$f":"HLOOKUP(Y$7,$I$66:$DJ$120,ROWS($A$10:$A54)+2,FALSE)","v":3236},{"$f":"HLOOKUP(Z$7,$I$66:$DJ$120,ROWS($A$10:$A54)+2,FALSE)","v":12766},{"$f":"HLOOKUP(AA$7,$I$66:$DJ$120,ROWS($A$10:$A54)+2,FALSE)","v":6616},{"$f":"HLOOKUP(AB$7,$I$66:$DJ$120,ROWS($A$10:$A54)+2,FALSE)","v":25513},{"$f":"HLOOKUP(AC$7,$I$66:$DJ$120,ROWS($A$10:$A54)+2,FALSE)","v":1357},{"$f":"HLOOKUP(AD$7,$I$66:$DJ$120,ROWS($A$10:$A54)+2,FALSE)","v":9443},{"$f":"HLOOKUP(AE$7,$I$66:$DJ$120,ROWS($A$10:$A54)+2,FALSE)","v":5035},{"$f":"HLOOKUP(AF$7,$I$66:$DJ$120,ROWS($A$10:$A54)+2,FALSE)","v":15654},{"$f":"HLOOKUP(AG$7,$I$66:$DJ$120,ROWS($A$10:$A54)+2,FALSE)","v":7691},{"$f":"HLOOKUP(AH$7,$I$66:$DJ$120,ROWS($A$10:$A54)+2,FALSE)","v":6048},{"$f":"HLOOKUP(AI$7,$I$66:$DJ$120,ROWS($A$10:$A54)+2,FALSE)","v":13473},{"$f":"HLOOKUP(AJ$7,$I$66:$DJ$120,ROWS($A$10:$A54)+2,FALSE)","v":537},{"$f":"HLOOKUP(AK$7,$I$66:$DJ$120,ROWS($A$10:$A54)+2,FALSE)","v":3837},{"$f":"HLOOKUP(AL$7,$I$66:$DJ$120,ROWS($A$10:$A54)+2,FALSE)","v":7793},{"$f":"HLOOKUP(AM$7,$I$66:$DJ$120,ROWS($A$10:$A54)+2,FALSE)","v":459},{"$f":"HLOOKUP(AN$7,$I$66:$DJ$120,ROWS($A$10:$A54)+2,FALSE)","v":7578},{"$f":"HLOOKUP(AO$7,$I$66:$DJ$120,ROWS($A$10:$A54)+2,FALSE)","v":15225},{"$f":"HLOOKUP(AP$7,$I$66:$DJ$120,ROWS($A$10:$A54)+2,FALSE)","v":26155},{"$f":"HLOOKUP(AQ$7,$I$66:$DJ$120,ROWS($A$10:$A54)+2,FALSE)","v":14956},{"$f":"HLOOKUP(AR$7,$I$66:$DJ$120,ROWS($A$10:$A54)+2,FALSE)","v":809},{"$f":"HLOOKUP(AS$7,$I$66:$DJ$120,ROWS($A$10:$A54)+2,FALSE)","v":12315},{"$f":"HLOOKUP(AT$7,$I$66:$DJ$120,ROWS($A$10:$A54)+2,FALSE)","v":19302},{"$f":"HLOOKUP(AU$7,$I$66:$DJ$120,ROWS($A$10:$A54)+2,FALSE)","v":3743},{"$f":"HLOOKUP(AV$7,$I$66:$DJ$120,ROWS($A$10:$A54)+2,FALSE)","v":9107},{"$f":"HLOOKUP(AW$7,$I$66:$DJ$120,ROWS($A$10:$A54)+2,FALSE)","v":1297},{"$f":"HLOOKUP(AX$7,$I$66:$DJ$120,ROWS($A$10:$A54)+2,FALSE)","v":4075},{"$f":"HLOOKUP(AY$7,$I$66:$DJ$120,ROWS($A$10:$A54)+2,FALSE)","v":1486},{"$f":"HLOOKUP(AZ$7,$I$66:$DJ$120,ROWS($A$10:$A54)+2,FALSE)","v":10788},{"$f":"HLOOKUP(BA$7,$I$66:$DJ$120,ROWS($A$10:$A54)+2,FALSE)","v":"N/A"},{"$f":"HLOOKUP(BB$7,$I$66:$DJ$120,ROWS($A$10:$A54)+2,FALSE)","v":5234},{"$f":"HLOOKUP(BC$7,$I$66:$DJ$120,ROWS($A$10:$A54)+2,FALSE)","v":349},{"$f":"HLOOKUP(BD$7,$I$66:$DJ$120,ROWS($A$10:$A54)+2,FALSE)","v":13231},{"$f":"HLOOKUP(BE$7,$I$66:$DJ$120,ROWS($A$10:$A54)+2,FALSE)","v":15325},{"$f":"HLOOKUP(BF$7,$I$66:$DJ$120,ROWS($A$10:$A54)+2,FALSE)","v":663},{"$f":"HLOOKUP(BG$7,$I$66:$DJ$120,ROWS($A$10:$A54)+2,FALSE)","v":5982},{"$f":"HLOOKUP(BH$7,$I$66:$DJ$120,ROWS($A$10:$A54)+2,FALSE)","v":2500},{"$f":"HLOOKUP(BI$7,$I$66:$DJ$120,ROWS($A$10:$A54)+2,FALSE)","v":5225},{"$f":"HLOOKUP(BJ$7+0.5,$I$66:$DJ$120,ROWS($A$10:$A54)+2,FALSE)","v":23860},{"$f":"HLOOKUP(BK$7+0.5,$I$66:$DJ$120,ROWS($A$10:$A54)+2,FALSE)","v":2609},{"$f":"HLOOKUP(BL$7+0.5,$I$66:$DJ$120,ROWS($A$10:$A54)+2,FALSE)","v":2828},{"$f":"HLOOKUP(BM$7+0.5,$I$66:$DJ$120,ROWS($A$10:$A54)+2,FALSE)","v":5295},{"$f":"HLOOKUP(BN$7+0.5,$I$66:$DJ$120,ROWS($A$10:$A54)+2,FALSE)","v":3965},{"$f":"HLOOKUP(BO$7+0.5,$I$66:$DJ$120,ROWS($A$10:$A54)+2,FALSE)","v":7044},{"$f":"HLOOKUP(BP$7+0.5,$I$66:$DJ$120,ROWS($A$10:$A54)+2,FALSE)","v":3821},{"$f":"HLOOKUP(BQ$7+0.5,$I$66:$DJ$120,ROWS($A$10:$A54)+2,FALSE)","v":1710},{"$f":"HLOOKUP(BR$7+0.5,$I$66:$DJ$120,ROWS($A$10:$A54)+2,FALSE)","v":658},{"$f":"HLOOKUP(BS$7+0.5,$I$66:$DJ$120,ROWS($A$10:$A54)+2,FALSE)","v":1540},{"$f":"HLOOKUP(BT$7+0.5,$I$66:$DJ$120,ROWS($A$10:$A54)+2,FALSE)","v":6888},{"$f":"HLOOKUP(BU$7+0.5,$I$66:$DJ$120,ROWS($A$10:$A54)+2,FALSE)","v":3608},{"$f":"HLOOKUP(BV$7+0.5,$I$66:$DJ$120,ROWS($A$10:$A54)+2,FALSE)","v":2623},{"$f":"HLOOKUP(BW$7+0.5,$I$66:$DJ$120,ROWS($A$10:$A54)+2,FALSE)","v":3119},{"$f":"HLOOKUP(BX$7+0.5,$I$66:$DJ$120,ROWS($A$10:$A54)+2,FALSE)","v":3097},{"$f":"HLOOKUP(BY$7+0.5,$I$66:$DJ$120,ROWS($A$10:$A54)+2,FALSE)","v":3693},{"$f":"HLOOKUP(BZ$7+0.5,$I$66:$DJ$120,ROWS($A$10:$A54)+2,FALSE)","v":1628},{"$f":"HLOOKUP(CA$7+0.5,$I$66:$DJ$120,ROWS($A$10:$A54)+2,FALSE)","v":4731},{"$f":"HLOOKUP(CB$7+0.5,$I$66:$DJ$120,ROWS($A$10:$A54)+2,FALSE)","v":2648},{"$f":"HLOOKUP(CC$7+0.5,$I$66:$DJ$120,ROWS($A$10:$A54)+2,FALSE)","v":5283},{"$f":"HLOOKUP(CD$7+0.5,$I$66:$DJ$120,ROWS($A$10:$A54)+2,FALSE)","v":1052},{"$f":"HLOOKUP(CE$7+0.5,$I$66:$DJ$120,ROWS($A$10:$A54)+2,FALSE)","v":3323},{"$f":"HLOOKUP(CF$7+0.5,$I$66:$DJ$120,ROWS($A$10:$A54)+2,FALSE)","v":1644},{"$f":"HLOOKUP(CG$7+0.5,$I$66:$DJ$120,ROWS($A$10:$A54)+2,FALSE)","v":4327},{"$f":"HLOOKUP(CH$7+0.5,$I$66:$DJ$120,ROWS($A$10:$A54)+2,FALSE)","v":2576},{"$f":"HLOOKUP(CI$7+0.5,$I$66:$DJ$120,ROWS($A$10:$A54)+2,FALSE)","v":2921},{"$f":"HLOOKUP(CJ$7+0.5,$I$66:$DJ$120,ROWS($A$10:$A54)+2,FALSE)","v":3950},{"$f":"HLOOKUP(CK$7+0.5,$I$66:$DJ$120,ROWS($A$10:$A54)+2,FALSE)","v":423},{"$f":"HLOOKUP(CL$7+0.5,$I$66:$DJ$120,ROWS($A$10:$A54)+2,FALSE)","v":2060},{"$f":"HLOOKUP(CM$7+0.5,$I$66:$DJ$120,ROWS($A$10:$A54)+2,FALSE)","v":2927},{"$f":"HLOOKUP(CN$7+0.5,$I$66:$DJ$120,ROWS($A$10:$A54)+2,FALSE)","v":334},{"$f":"HLOOKUP(CO$7+0.5,$I$66:$DJ$120,ROWS($A$10:$A54)+2,FALSE)","v":2982},{"$f":"HLOOKUP(CP$7+0.5,$I$66:$DJ$120,ROWS($A$10:$A54)+2,FALSE)","v":2786},{"$f":"HLOOKUP(CQ$7+0.5,$I$66:$DJ$120,ROWS($A$10:$A54)+2,FALSE)","v":6509},{"$f":"HLOOKUP(CR$7+0.5,$I$66:$DJ$120,ROWS($A$10:$A54)+2,FALSE)","v":4396},{"$f":"HLOOKUP(CS$7+0.5,$I$66:$DJ$120,ROWS($A$10:$A54)+2,FALSE)","v":652},{"$f":"HLOOKUP(CT$7+0.5,$I$66:$DJ$120,ROWS($A$10:$A54)+2,FALSE)","v":2730},{"$f":"HLOOKUP(CU$7+0.5,$I$66:$DJ$120,ROWS($A$10:$A54)+2,FALSE)","v":4804},{"$f":"HLOOKUP(CV$7+0.5,$I$66:$DJ$120,ROWS($A$10:$A54)+2,FALSE)","v":1552},{"$f":"HLOOKUP(CW$7+0.5,$I$66:$DJ$120,ROWS($A$10:$A54)+2,FALSE)","v":2433},{"$f":"HLOOKUP(CX$7+0.5,$I$66:$DJ$120,ROWS($A$10:$A54)+2,FALSE)","v":1223},{"$f":"HLOOKUP(CY$7+0.5,$I$66:$DJ$120,ROWS($A$10:$A54)+2,FALSE)","v":1969},{"$f":"HLOOKUP(CZ$7+0.5,$I$66:$DJ$120,ROWS($A$10:$A54)+2,FALSE)","v":1045},{"$f":"HLOOKUP(DA$7+0.5,$I$66:$DJ$120,ROWS($A$10:$A54)+2,FALSE)","v":3114},{"$f":"HLOOKUP(DB$7+0.5,$I$66:$DJ$120,ROWS($A$10:$A54)+2,FALSE)","v":"N/A"},{"$f":"HLOOKUP(DC$7+0.5,$I$66:$DJ$120,ROWS($A$10:$A54)+2,FALSE)","v":2551},{"$f":"HLOOKUP(DD$7+0.5,$I$66:$DJ$120,ROWS($A$10:$A54)+2,FALSE)","v":344},{"$f":"HLOOKUP(DE$7+0.5,$I$66:$DJ$120,ROWS($A$10:$A54)+2,FALSE)","v":3158},{"$f":"HLOOKUP(DF$7+0.5,$I$66:$DJ$120,ROWS($A$10:$A54)+2,FALSE)","v":3090},{"$f":"HLOOKUP(DG$7+0.5,$I$66:$DJ$120,ROWS($A$10:$A54)+2,FALSE)","v":563},{"$f":"HLOOKUP(DH$7+0.5,$I$66:$DJ$120,ROWS($A$10:$A54)+2,FALSE)","v":2396},{"$f":"HLOOKUP(DI$7+0.5,$I$66:$DJ$120,ROWS($A$10:$A54)+2,FALSE)","v":1485},{"$f":"HLOOKUP(DJ$7+0.5,$I$66:$DJ$120,ROWS($A$10:$A54)+2,FALSE)","v":2173}]
[null,"Utah",2769627,2949,2295961,19215,373984,17246,{"$f":"HLOOKUP(I$7,$I$66:$DJ$120,ROWS($A$10:$A55)+2,FALSE)","v":85217},{"$f":"HLOOKUP(J$7,$I$66:$DJ$120,ROWS($A$10:$A55)+2,FALSE)","v":486},{"$f":"HLOOKUP(K$7,$I$66:$DJ$120,ROWS($A$10:$A55)+2,FALSE)","v":2151},{"$f":"HLOOKUP(L$7,$I$66:$DJ$120,ROWS($A$10:$A55)+2,FALSE)","v":6585},{"$f":"HLOOKUP(M$7,$I$66:$DJ$120,ROWS($A$10:$A55)+2,FALSE)","v":422},{"$f":"HLOOKUP(N$7,$I$66:$DJ$120,ROWS($A$10:$A55)+2,FALSE)","v":18237},{"$f":"HLOOKUP(O$7,$I$66:$DJ$120,ROWS($A$10:$A55)+2,FALSE)","v":3986},{"$f":"HLOOKUP(P$7,$I$66:$DJ$120,ROWS($A$10:$A55)+2,FALSE)","v":562},{"$f":"HLOOKUP(Q$7,$I$66:$DJ$120,ROWS($A$10:$A55)+2,FALSE)","v":0},{"$f":"HLOOKUP(R$7,$I$66:$DJ$120,ROWS($A$10:$A55)+2,FALSE)","v":132},{"$f":"HLOOKUP(S$7,$I$66:$DJ$120,ROWS($A$10:$A55)+2,FALSE)","v":1643},{"$f":"HLOOKUP(T$7,$I$66:$DJ$120,ROWS($A$10:$A55)+2,FALSE)","v":1052},{"$f":"HLOOKUP(U$7,$I$66:$DJ$120,ROWS($A$10:$A55)+2,FALSE)","v":1701},{"$f":"HLOOKUP(V$7,$I$66:$DJ$120,ROWS($A$10:$A55)+2,FALSE)","v":7538},{"$f":"HLOOKUP(W$7,$I$66:$DJ$120,ROWS($A$10:$A55)+2,FALSE)","v":1447},{"$f":"HLOOKUP(X$7,$I$66:$DJ$120,ROWS($A$10:$A55)+2,FALSE)","v":545},{"$f":"HLOOKUP(Y$7,$I$66:$DJ$120,ROWS($A$10:$A55)+2,FALSE)","v":290},{"$f":"HLOOKUP(Z$7,$I$66:$DJ$120,ROWS($A$10:$A55)+2,FALSE)","v":1146},{"$f":"HLOOKUP(AA$7,$I$66:$DJ$120,ROWS($A$10:$A55)+2,FALSE)","v":611},{"$f":"HLOOKUP(AB$7,$I$66:$DJ$120,ROWS($A$10:$A55)+2,FALSE)","v":494},{"$f":"HLOOKUP(AC$7,$I$66:$DJ$120,ROWS($A$10:$A55)+2,FALSE)","v":0},{"$f":"HLOOKUP(AD$7,$I$66:$DJ$120,ROWS($A$10:$A55)+2,FALSE)","v":342},{"$f":"HLOOKUP(AE$7,$I$66:$DJ$120,ROWS($A$10:$A55)+2,FALSE)","v":959},{"$f":"HLOOKUP(AF$7,$I$66:$DJ$120,ROWS($A$10:$A55)+2,FALSE)","v":1099},{"$f":"HLOOKUP(AG$7,$I$66:$DJ$120,ROWS($A$10:$A55)+2,FALSE)","v":939},{"$f":"HLOOKUP(AH$7,$I$66:$DJ$120,ROWS($A$10:$A55)+2,FALSE)","v":143},{"$f":"HLOOKUP(AI$7,$I$66:$DJ$120,ROWS($A$10:$A55)+2,FALSE)","v":511},{"$f":"HLOOKUP(AJ$7,$I$66:$DJ$120,ROWS($A$10:$A55)+2,FALSE)","v":1241},{"$f":"HLOOKUP(AK$7,$I$66:$DJ$120,ROWS($A$10:$A55)+2,FALSE)","v":195},{"$f":"HLOOKUP(AL$7,$I$66:$DJ$120,ROWS($A$10:$A55)+2,FALSE)","v":4315},{"$f":"HLOOKUP(AM$7,$I$66:$DJ$120,ROWS($A$10:$A55)+2,FALSE)","v":34},{"$f":"HLOOKUP(AN$7,$I$66:$DJ$120,ROWS($A$10:$A55)+2,FALSE)","v":506},{"$f":"HLOOKUP(AO$7,$I$66:$DJ$120,ROWS($A$10:$A55)+2,FALSE)","v":1707},{"$f":"HLOOKUP(AP$7,$I$66:$DJ$120,ROWS($A$10:$A55)+2,FALSE)","v":1937},{"$f":"HLOOKUP(AQ$7,$I$66:$DJ$120,ROWS($A$10:$A55)+2,FALSE)","v":1653},{"$f":"HLOOKUP(AR$7,$I$66:$DJ$120,ROWS($A$10:$A55)+2,FALSE)","v":2},{"$f":"HLOOKUP(AS$7,$I$66:$DJ$120,ROWS($A$10:$A55)+2,FALSE)","v":2584},{"$f":"HLOOKUP(AT$7,$I$66:$DJ$120,ROWS($A$10:$A55)+2,FALSE)","v":150},{"$f":"HLOOKUP(AU$7,$I$66:$DJ$120,ROWS($A$10:$A55)+2,FALSE)","v":2037},{"$f":"HLOOKUP(AV$7,$I$66:$DJ$120,ROWS($A$10:$A55)+2,FALSE)","v":1496},{"$f":"HLOOKUP(AW$7,$I$66:$DJ$120,ROWS($A$10:$A55)+2,FALSE)","v":0},{"$f":"HLOOKUP(AX$7,$I$66:$DJ$120,ROWS($A$10:$A55)+2,FALSE)","v":309},{"$f":"HLOOKUP(AY$7,$I$66:$DJ$120,ROWS($A$10:$A55)+2,FALSE)","v":128},{"$f":"HLOOKUP(AZ$7,$I$66:$DJ$120,ROWS($A$10:$A55)+2,FALSE)","v":549},{"$f":"HLOOKUP(BA$7,$I$66:$DJ$120,ROWS($A$10:$A55)+2,FALSE)","v":4507},{"$f":"HLOOKUP(BB$7,$I$66:$DJ$120,ROWS($A$10:$A55)+2,FALSE)","v":"N/A"},{"$f":"HLOOKUP(BC$7,$I$66:$DJ$120,ROWS($A$10:$A55)+2,FALSE)","v":122},{"$f":"HLOOKUP(BD$7,$I$66:$DJ$120,ROWS($A$10:$A55)+2,FALSE)","v":2413},{"$f":"HLOOKUP(BE$7,$I$66:$DJ$120,ROWS($A$10:$A55)+2,FALSE)","v":4825},{"$f":"HLOOKUP(BF$7,$I$66:$DJ$120,ROWS($A$10:$A55)+2,FALSE)","v":270},{"$f":"HLOOKUP(BG$7,$I$66:$DJ$120,ROWS($A$10:$A55)+2,FALSE)","v":158},{"$f":"HLOOKUP(BH$7,$I$66:$DJ$120,ROWS($A$10:$A55)+2,FALSE)","v":1058},{"$f":"HLOOKUP(BI$7,$I$66:$DJ$120,ROWS($A$10:$A55)+2,FALSE)","v":0},{"$f":"HLOOKUP(BJ$7+0.5,$I$66:$DJ$120,ROWS($A$10:$A55)+2,FALSE)","v":7587},{"$f":"HLOOKUP(BK$7+0.5,$I$66:$DJ$120,ROWS($A$10:$A55)+2,FALSE)","v":558},{"$f":"HLOOKUP(BL$7+0.5,$I$66:$DJ$120,ROWS($A$10:$A55)+2,FALSE)","v":1259},{"$f":"HLOOKUP(BM$7+0.5,$I$66:$DJ$120,ROWS($A$10:$A55)+2,FALSE)","v":2560},{"$f":"HLOOKUP(BN$7+0.5,$I$66:$DJ$120,ROWS($A$10:$A55)+2,FALSE)","v":455},{"$f":"HLOOKUP(BO$7+0.5,$I$66:$DJ$120,ROWS($A$10:$A55)+2,FALSE)","v":4113},{"$f":"HLOOKUP(BP$7+0.5,$I$66:$DJ$120,ROWS($A$10:$A55)+2,FALSE)","v":1191},{"$f":"HLOOKUP(BQ$7+0.5,$I$66:$DJ$120,ROWS($A$10:$A55)+2,FALSE)","v":590},{"$f":"HLOOKUP(BR$7+0.5,$I$66:$DJ$120,ROWS($A$10:$A55)+2,FALSE)","v":192},{"$f":"HLOOKUP(BS$7+0.5,$I$66:$DJ$120,ROWS($A$10:$A55)+2,FALSE)","v":141},{"$f":"HLOOKUP(BT$7+0.5,$I$66:$DJ$120,ROWS($A$10:$A55)+2,FALSE)","v":960},{"$f":"HLOOKUP(BU$7+0.5,$I$66:$DJ$120,ROWS($A$10:$A55)+2,FALSE)","v":595},{"$f":"HLOOKUP(BV$7+0.5,$I$66:$DJ$120,ROWS($A$10:$A55)+2,FALSE)","v":997},{"$f":"HLOOKUP(BW$7+0.5,$I$66:$DJ$120,ROWS($A$10:$A55)+2,FALSE)","v":3248},{"$f":"HLOOKUP(BX$7+0.5,$I$66:$DJ$120,ROWS($A$10:$A55)+2,FALSE)","v":825},{"$f":"HLOOKUP(BY$7+0.5,$I$66:$DJ$120,ROWS($A$10:$A55)+2,FALSE)","v":398},{"$f":"HLOOKUP(BZ$7+0.5,$I$66:$DJ$120,ROWS($A$10:$A55)+2,FALSE)","v":250},{"$f":"HLOOKUP(CA$7+0.5,$I$66:$DJ$120,ROWS($A$10:$A55)+2,FALSE)","v":829},{"$f":"HLOOKUP(CB$7+0.5,$I$66:$DJ$120,ROWS($A$10:$A55)+2,FALSE)","v":529},{"$f":"HLOOKUP(CC$7+0.5,$I$66:$DJ$120,ROWS($A$10:$A55)+2,FALSE)","v":402},{"$f":"HLOOKUP(CD$7+0.5,$I$66:$DJ$120,ROWS($A$10:$A55)+2,FALSE)","v":192},{"$f":"HLOOKUP(CE$7+0.5,$I$66:$DJ$120,ROWS($A$10:$A55)+2,FALSE)","v":301},{"$f":"HLOOKUP(CF$7+0.5,$I$66:$DJ$120,ROWS($A$10:$A55)+2,FALSE)","v":638},{"$f":"HLOOKUP(CG$7+0.5,$I$66:$DJ$120,ROWS($A$10:$A55)+2,FALSE)","v":724},{"$f":"HLOOKUP(CH$7+0.5,$I$66:$DJ$120,ROWS($A$10:$A55)+2,FALSE)","v":634},{"$f":"HLOOKUP(CI$7+0.5,$I$66:$DJ$120,ROWS($A$10:$A55)+2,FALSE)","v":163},{"$f":"HLOOKUP(CJ$7+0.5,$I$66:$DJ$120,ROWS($A$10:$A55)+2,FALSE)","v":372},{"$f":"HLOOKUP(CK$7+0.5,$I$66:$DJ$120,ROWS($A$10:$A55)+2,FALSE)","v":623},{"$f":"HLOOKUP(CL$7+0.5,$I$66:$DJ$120,ROWS($A$10:$A55)+2,FALSE)","v":178},{"$f":"HLOOKUP(CM$7+0.5,$I$66:$DJ$120,ROWS($A$10:$A55)+2,FALSE)","v":1358},{"$f":"HLOOKUP(CN$7+0.5,$I$66:$DJ$120,ROWS($A$10:$A55)+2,FALSE)","v":42},{"$f":"HLOOKUP(CO$7+0.5,$I$66:$DJ$120,ROWS($A$10:$A55)+2,FALSE)","v":485},{"$f":"HLOOKUP(CP$7+0.5,$I$66:$DJ$120,ROWS($A$10:$A55)+2,FALSE)","v":1068},{"$f":"HLOOKUP(CQ$7+0.5,$I$66:$DJ$120,ROWS($A$10:$A55)+2,FALSE)","v":1299},{"$f":"HLOOKUP(CR$7+0.5,$I$66:$DJ$120,ROWS($A$10:$A55)+2,FALSE)","v":1181},{"$f":"HLOOKUP(CS$7+0.5,$I$66:$DJ$120,ROWS($A$10:$A55)+2,FALSE)","v":5},{"$f":"HLOOKUP(CT$7+0.5,$I$66:$DJ$120,ROWS($A$10:$A55)+2,FALSE)","v":1124},{"$f":"HLOOKUP(CU$7+0.5,$I$66:$DJ$120,ROWS($A$10:$A55)+2,FALSE)","v":218},{"$f":"HLOOKUP(CV$7+0.5,$I$66:$DJ$120,ROWS($A$10:$A55)+2,FALSE)","v":1026},{"$f":"HLOOKUP(CW$7+0.5,$I$66:$DJ$120,ROWS($A$10:$A55)+2,FALSE)","v":808},{"$f":"HLOOKUP(CX$7+0.5,$I$66:$DJ$120,ROWS($A$10:$A55)+2,FALSE)","v":192},{"$f":"HLOOKUP(CY$7+0.5,$I$66:$DJ$120,ROWS($A$10:$A55)+2,FALSE)","v":259},{"$f":"HLOOKUP(CZ$7+0.5,$I$66:$DJ$120,ROWS($A$10:$A55)+2,FALSE)","v":146},{"$f":"HLOOKUP(DA$7+0.5,$I$66:$DJ$120,ROWS($A$10:$A55)+2,FALSE)","v":419},{"$f":"HLOOKUP(DB$7+0.5,$I$66:$DJ$120,ROWS($A$10:$A55)+2,FALSE)","v":1517},{"$f":"HLOOKUP(DC$7+0.5,$I$66:$DJ$120,ROWS($A$10:$A55)+2,FALSE)","v":"N/A"},{"$f":"HLOOKUP(DD$7+0.5,$I$66:$DJ$120,ROWS($A$10:$A55)+2,FALSE)","v":205},{"$f":"HLOOKUP(DE$7+0.5,$I$66:$DJ$120,ROWS($A$10:$A55)+2,FALSE)","v":1459},{"$f":"HLOOKUP(DF$7+0.5,$I$66:$DJ$120,ROWS($A$10:$A55)+2,FALSE)","v":2196},{"$f":"HLOOKUP(DG$7+0.5,$I$66:$DJ$120,ROWS($A$10:$A55)+2,FALSE)","v":268},{"$f":"HLOOKUP(DH$7+0.5,$I$66:$DJ$120,ROWS($A$10:$A55)+2,FALSE)","v":153},{"$f":"HLOOKUP(DI$7+0.5,$I$66:$DJ$120,ROWS($A$10:$A55)+2,FALSE)","v":609},{"$f":"HLOOKUP(DJ$7+0.5,$I$66:$DJ$120,ROWS($A$10:$A55)+2,FALSE)","v":192}]
[null,"Vermont",621354,940,537304,5021,60719,4634,{"$f":"HLOOKUP(I$7,$I$66:$DJ$120,ROWS($A$10:$A56)+2,FALSE)","v":20463},{"$f":"HLOOKUP(J$7,$I$66:$DJ$120,ROWS($A$10:$A56)+2,FALSE)","v":0},{"$f":"HLOOKUP(K$7,$I$66:$DJ$120,ROWS($A$10:$A56)+2,FALSE)","v":580},{"$f":"HLOOKUP(L$7,$I$66:$DJ$120,ROWS($A$10:$A56)+2,FALSE)","v":310},{"$f":"HLOOKUP(M$7,$I$66:$DJ$120,ROWS($A$10:$A56)+2,FALSE)","v":0},{"$f":"HLOOKUP(N$7,$I$66:$DJ$120,ROWS($A$10:$A56)+2,FALSE)","v":819},{"$f":"HLOOKUP(O$7,$I$66:$DJ$120,ROWS($A$10:$A56)+2,FALSE)","v":529},{"$f":"HLOOKUP(P$7,$I$66:$DJ$120,ROWS($A$10:$A56)+2,FALSE)","v":2105},{"$f":"HLOOKUP(Q$7,$I$66:$DJ$120,ROWS($A$10:$A56)+2,FALSE)","v":107},{"$f":"HLOOKUP(R$7,$I$66:$DJ$120,ROWS($A$10:$A56)+2,FALSE)","v":27},{"$f":"HLOOKUP(S$7,$I$66:$DJ$120,ROWS($A$10:$A56)+2,FALSE)","v":366},{"$f":"HLOOKUP(T$7,$I$66:$DJ$120,ROWS($A$10:$A56)+2,FALSE)","v":101},{"$f":"HLOOKUP(U$7,$I$66:$DJ$120,ROWS($A$10:$A56)+2,FALSE)","v":143},{"$f":"HLOOKUP(V$7,$I$66:$DJ$120,ROWS($A$10:$A56)+2,FALSE)","v":0},{"$f":"HLOOKUP(W$7,$I$66:$DJ$120,ROWS($A$10:$A56)+2,FALSE)","v":386},{"$f":"HLOOKUP(X$7,$I$66:$DJ$120,ROWS($A$10:$A56)+2,FALSE)","v":258},{"$f":"HLOOKUP(Y$7,$I$66:$DJ$120,ROWS($A$10:$A56)+2,FALSE)","v":0},{"$f":"HLOOKUP(Z$7,$I$66:$DJ$120,ROWS($A$10:$A56)+2,FALSE)","v":7},{"$f":"HLOOKUP(AA$7,$I$66:$DJ$120,ROWS($A$10:$A56)+2,FALSE)","v":627},{"$f":"HLOOKUP(AB$7,$I$66:$DJ$120,ROWS($A$10:$A56)+2,FALSE)","v":41},{"$f":"HLOOKUP(AC$7,$I$66:$DJ$120,ROWS($A$10:$A56)+2,FALSE)","v":322},{"$f":"HLOOKUP(AD$7,$I$66:$DJ$120,ROWS($A$10:$A56)+2,FALSE)","v":361},{"$f":"HLOOKUP(AE$7,$I$66:$DJ$120,ROWS($A$10:$A56)+2,FALSE)","v":2378},{"$f":"HLOOKUP(AF$7,$I$66:$DJ$120,ROWS($A$10:$A56)+2,FALSE)","v":335},{"$f":"HLOOKUP(AG$7,$I$66:$DJ$120,ROWS($A$10:$A56)+2,FALSE)","v":206},{"$f":"HLOOKUP(AH$7,$I$66:$DJ$120,ROWS($A$10:$A56)+2,FALSE)","v":0},{"$f":"HLOOKUP(AI$7,$I$66:$DJ$120,ROWS($A$10:$A56)+2,FALSE)","v":69},{"$f":"HLOOKUP(AJ$7,$I$66:$DJ$120,ROWS($A$10:$A56)+2,FALSE)","v":0},{"$f":"HLOOKUP(AK$7,$I$66:$DJ$120,ROWS($A$10:$A56)+2,FALSE)","v":0},{"$f":"HLOOKUP(AL$7,$I$66:$DJ$120,ROWS($A$10:$A56)+2,FALSE)","v":15},{"$f":"HLOOKUP(AM$7,$I$66:$DJ$120,ROWS($A$10:$A56)+2,FALSE)","v":2244},{"$f":"HLOOKUP(AN$7,$I$66:$DJ$120,ROWS($A$10:$A56)+2,FALSE)","v":962},{"$f":"HLOOKUP(AO$7,$I$66:$DJ$120,ROWS($A$10:$A56)+2,FALSE)","v":56},{"$f":"HLOOKUP(AP$7,$I$66:$DJ$120,ROWS($A$10:$A56)+2,FALSE)","v":3723},{"$f":"HLOOKUP(AQ$7,$I$66:$DJ$120,ROWS($A$10:$A56)+2,FALSE)","v":250},{"$f":"HLOOKUP(AR$7,$I$66:$DJ$120,ROWS($A$10:$A56)+2,FALSE)","v":0},{"$f":"HLOOKUP(AS$7,$I$66:$DJ$120,ROWS($A$10:$A56)+2,FALSE)","v":383},{"$f":"HLOOKUP(AT$7,$I$66:$DJ$120,ROWS($A$10:$A56)+2,FALSE)","v":0},{"$f":"HLOOKUP(AU$7,$I$66:$DJ$120,ROWS($A$10:$A56)+2,FALSE)","v":124},{"$f":"HLOOKUP(AV$7,$I$66:$DJ$120,ROWS($A$10:$A56)+2,FALSE)","v":389},{"$f":"HLOOKUP(AW$7,$I$66:$DJ$120,ROWS($A$10:$A56)+2,FALSE)","v":401},{"$f":"HLOOKUP(AX$7,$I$66:$DJ$120,ROWS($A$10:$A56)+2,FALSE)","v":21},{"$f":"HLOOKUP(AY$7,$I$66:$DJ$120,ROWS($A$10:$A56)+2,FALSE)","v":0},{"$f":"HLOOKUP(AZ$7,$I$66:$DJ$120,ROWS($A$10:$A56)+2,FALSE)","v":327},{"$f":"HLOOKUP(BA$7,$I$66:$DJ$120,ROWS($A$10:$A56)+2,FALSE)","v":185},{"$f":"HLOOKUP(BB$7,$I$66:$DJ$120,ROWS($A$10:$A56)+2,FALSE)","v":182},{"$f":"HLOOKUP(BC$7,$I$66:$DJ$120,ROWS($A$10:$A56)+2,FALSE)","v":"N/A"},{"$f":"HLOOKUP(BD$7,$I$66:$DJ$120,ROWS($A$10:$A56)+2,FALSE)","v":740},{"$f":"HLOOKUP(BE$7,$I$66:$DJ$120,ROWS($A$10:$A56)+2,FALSE)","v":156},{"$f":"HLOOKUP(BF$7,$I$66:$DJ$120,ROWS($A$10:$A56)+2,FALSE)","v":53},{"$f":"HLOOKUP(BG$7,$I$66:$DJ$120,ROWS($A$10:$A56)+2,FALSE)","v":137},{"$f":"HLOOKUP(BH$7,$I$66:$DJ$120,ROWS($A$10:$A56)+2,FALSE)","v":38},{"$f":"HLOOKUP(BI$7,$I$66:$DJ$120,ROWS($A$10:$A56)+2,FALSE)","v":19},{"$f":"HLOOKUP(BJ$7+0.5,$I$66:$DJ$120,ROWS($A$10:$A56)+2,FALSE)","v":1946},{"$f":"HLOOKUP(BK$7+0.5,$I$66:$DJ$120,ROWS($A$10:$A56)+2,FALSE)","v":145},{"$f":"HLOOKUP(BL$7+0.5,$I$66:$DJ$120,ROWS($A$10:$A56)+2,FALSE)","v":441},{"$f":"HLOOKUP(BM$7+0.5,$I$66:$DJ$120,ROWS($A$10:$A56)+2,FALSE)","v":325},{"$f":"HLOOKUP(BN$7+0.5,$I$66:$DJ$120,ROWS($A$10:$A56)+2,FALSE)","v":145},{"$f":"HLOOKUP(BO$7+0.5,$I$66:$DJ$120,ROWS($A$10:$A56)+2,FALSE)","v":508},{"$f":"HLOOKUP(BP$7+0.5,$I$66:$DJ$120,ROWS($A$10:$A56)+2,FALSE)","v":493},{"$f":"HLOOKUP(BQ$7+0.5,$I$66:$DJ$120,ROWS($A$10:$A56)+2,FALSE)","v":608},{"$f":"HLOOKUP(BR$7+0.5,$I$66:$DJ$120,ROWS($A$10:$A56)+2,FALSE)","v":135},{"$f":"HLOOKUP(BS$7+0.5,$I$66:$DJ$120,ROWS($A$10:$A56)+2,FALSE)","v":53},{"$f":"HLOOKUP(BT$7+0.5,$I$66:$DJ$120,ROWS($A$10:$A56)+2,FALSE)","v":199},{"$f":"HLOOKUP(BU$7+0.5,$I$66:$DJ$120,ROWS($A$10:$A56)+2,FALSE)","v":99},{"$f":"HLOOKUP(BV$7+0.5,$I$66:$DJ$120,ROWS($A$10:$A56)+2,FALSE)","v":85},{"$f":"HLOOKUP(BW$7+0.5,$I$66:$DJ$120,ROWS($A$10:$A56)+2,FALSE)","v":145},{"$f":"HLOOKUP(BX$7+0.5,$I$66:$DJ$120,ROWS($A$10:$A56)+2,FALSE)","v":245},{"$f":"HLOOKUP(BY$7+0.5,$I$66:$DJ$120,ROWS($A$10:$A56)+2,FALSE)","v":210},{"$f":"HLOOKUP(BZ$7+0.5,$I$66:$DJ$120,ROWS($A$10:$A56)+2,FALSE)","v":145},{"$f":"HLOOKUP(CA$7+0.5,$I$66:$DJ$120,ROWS($A$10:$A56)+2,FALSE)","v":13},{"$f":"HLOOKUP(CB$7+0.5,$I$66:$DJ$120,ROWS($A$10:$A56)+2,FALSE)","v":660},{"$f":"HLOOKUP(CC$7+0.5,$I$66:$DJ$120,ROWS($A$10:$A56)+2,FALSE)","v":74},{"$f":"HLOOKUP(CD$7+0.5,$I$66:$DJ$120,ROWS($A$10:$A56)+2,FALSE)","v":200},{"$f":"HLOOKUP(CE$7+0.5,$I$66:$DJ$120,ROWS($A$10:$A56)+2,FALSE)","v":233},{"$f":"HLOOKUP(CF$7+0.5,$I$66:$DJ$120,ROWS($A$10:$A56)+2,FALSE)","v":606},{"$f":"HLOOKUP(CG$7+0.5,$I$66:$DJ$120,ROWS($A$10:$A56)+2,FALSE)","v":345},{"$f":"HLOOKUP(CH$7+0.5,$I$66:$DJ$120,ROWS($A$10:$A56)+2,FALSE)","v":255},{"$f":"HLOOKUP(CI$7+0.5,$I$66:$DJ$120,ROWS($A$10:$A56)+2,FALSE)","v":145},{"$f":"HLOOKUP(CJ$7+0.5,$I$66:$DJ$120,ROWS($A$10:$A56)+2,FALSE)","v":86},{"$f":"HLOOKUP(CK$7+0.5,$I$66:$DJ$120,ROWS($A$10:$A56)+2,FALSE)","v":145},{"$f":"HLOOKUP(CL$7+0.5,$I$66:$DJ$120,ROWS($A$10:$A56)+2,FALSE)","v":145},{"$f":"HLOOKUP(CM$7+0.5,$I$66:$DJ$120,ROWS($A$10:$A56)+2,FALSE)","v":26},{"$f":"HLOOKUP(CN$7+0.5,$I$66:$DJ$120,ROWS($A$10:$A56)+2,FALSE)","v":783},{"$f":"HLOOKUP(CO$7+0.5,$I$66:$DJ$120,ROWS($A$10:$A56)+2,FALSE)","v":305},{"$f":"HLOOKUP(CP$7+0.5,$I$66:$DJ$120,ROWS($A$10:$A56)+2,FALSE)","v":105},{"$f":"HLOOKUP(CQ$7+0.5,$I$66:$DJ$120,ROWS($A$10:$A56)+2,FALSE)","v":904},{"$f":"HLOOKUP(CR$7+0.5,$I$66:$DJ$120,ROWS($A$10:$A56)+2,FALSE)","v":193},{"$f":"HLOOKUP(CS$7+0.5,$I$66:$DJ$120,ROWS($A$10:$A56)+2,FALSE)","v":145},{"$f":"HLOOKUP(CT$7+0.5,$I$66:$DJ$120,ROWS($A$10:$A56)+2,FALSE)","v":485},{"$f":"HLOOKUP(CU$7+0.5,$I$66:$DJ$120,ROWS($A$10:$A56)+2,FALSE)","v":145},{"$f":"HLOOKUP(CV$7+0.5,$I$66:$DJ$120,ROWS($A$10:$A56)+2,FALSE)","v":128},{"$f":"HLOOKUP(CW$7+0.5,$I$66:$DJ$120,ROWS($A$10:$A56)+2,FALSE)","v":231},{"$f":"HLOOKUP(CX$7+0.5,$I$66:$DJ$120,ROWS($A$10:$A56)+2,FALSE)","v":411},{"$f":"HLOOKUP(CY$7+0.5,$I$66:$DJ$120,ROWS($A$10:$A56)+2,FALSE)","v":36},{"$f":"HLOOKUP(CZ$7+0.5,$I$66:$DJ$120,ROWS($A$10:$A56)+2,FALSE)","v":145},{"$f":"HLOOKUP(DA$7+0.5,$I$66:$DJ$120,ROWS($A$10:$A56)+2,FALSE)","v":498},{"$f":"HLOOKUP(DB$7+0.5,$I$66:$DJ$120,ROWS($A$10:$A56)+2,FALSE)","v":147},{"$f":"HLOOKUP(DC$7+0.5,$I$66:$DJ$120,ROWS($A$10:$A56)+2,FALSE)","v":212},{"$f":"HLOOKUP(DD$7+0.5,$I$66:$DJ$120,ROWS($A$10:$A56)+2,FALSE)","v":"N/A"},{"$f":"HLOOKUP(DE$7+0.5,$I$66:$DJ$120,ROWS($A$10:$A56)+2,FALSE)","v":420},{"$f":"HLOOKUP(DF$7+0.5,$I$66:$DJ$120,ROWS($A$10:$A56)+2,FALSE)","v":159},{"$f":"HLOOKUP(DG$7+0.5,$I$66:$DJ$120,ROWS($A$10:$A56)+2,FALSE)","v":81},{"$f":"HLOOKUP(DH$7+0.5,$I$66:$DJ$120,ROWS($A$10:$A56)+2,FALSE)","v":115},{"$f":"HLOOKUP(DI$7+0.5,$I$66:$DJ$120,ROWS($A$10:$A56)+2,FALSE)","v":62},{"$f":"HLOOKUP(DJ$7+0.5,$I$66:$DJ$120,ROWS($A$10:$A56)+2,FALSE)","v":45}]
[null,"Virginia",7996552,5256,6789620,30962,889751,30111,{"$f":"HLOOKUP(I$7,$I$66:$DJ$120,ROWS($A$10:$A57)+2,FALSE)","v":257130},{"$f":"HLOOKUP(J$7,$I$66:$DJ$120,ROWS($A$10:$A57)+2,FALSE)","v":4930},{"$f":"HLOOKUP(K$7,$I$66:$DJ$120,ROWS($A$10:$A57)+2,FALSE)","v":3202},{"$f":"HLOOKUP(L$7,$I$66:$DJ$120,ROWS($A$10:$A57)+2,FALSE)","v":4679},{"$f":"HLOOKUP(M$7,$I$66:$DJ$120,ROWS($A$10:$A57)+2,FALSE)","v":645},{"$f":"HLOOKUP(N$7,$I$66:$DJ$120,ROWS($A$10:$A57)+2,FALSE)","v":19371},{"$f":"HLOOKUP(O$7,$I$66:$DJ$120,ROWS($A$10:$A57)+2,FALSE)","v":4908},{"$f":"HLOOKUP(P$7,$I$66:$DJ$120,ROWS($A$10:$A57)+2,FALSE)","v":5376},{"$f":"HLOOKUP(Q$7,$I$66:$DJ$120,ROWS($A$10:$A57)+2,FALSE)","v":961},{"$f":"HLOOKUP(R$7,$I$66:$DJ$120,ROWS($A$10:$A57)+2,FALSE)","v":6854},{"$f":"HLOOKUP(S$7,$I$66:$DJ$120,ROWS($A$10:$A57)+2,FALSE)","v":17773},{"$f":"HLOOKUP(T$7,$I$66:$DJ$120,ROWS($A$10:$A57)+2,FALSE)","v":8715},{"$f":"HLOOKUP(U$7,$I$66:$DJ$120,ROWS($A$10:$A57)+2,FALSE)","v":2917},{"$f":"HLOOKUP(V$7,$I$66:$DJ$120,ROWS($A$10:$A57)+2,FALSE)","v":434},{"$f":"HLOOKUP(W$7,$I$66:$DJ$120,ROWS($A$10:$A57)+2,FALSE)","v":4000},{"$f":"HLOOKUP(X$7,$I$66:$DJ$120,ROWS($A$10:$A57)+2,FALSE)","v":2703},{"$f":"HLOOKUP(Y$7,$I$66:$DJ$120,ROWS($A$10:$A57)+2,FALSE)","v":1503},{"$f":"HLOOKUP(Z$7,$I$66:$DJ$120,ROWS($A$10:$A57)+2,FALSE)","v":892},{"$f":"HLOOKUP(AA$7,$I$66:$DJ$120,ROWS($A$10:$A57)+2,FALSE)","v":3630},{"$f":"HLOOKUP(AB$7,$I$66:$DJ$120,ROWS($A$10:$A57)+2,FALSE)","v":2496},{"$f":"HLOOKUP(AC$7,$I$66:$DJ$120,ROWS($A$10:$A57)+2,FALSE)","v":2855},{"$f":"HLOOKUP(AD$7,$I$66:$DJ$120,ROWS($A$10:$A57)+2,FALSE)","v":22051},{"$f":"HLOOKUP(AE$7,$I$66:$DJ$120,ROWS($A$10:$A57)+2,FALSE)","v":5386},{"$f":"HLOOKUP(AF$7,$I$66:$DJ$120,ROWS($A$10:$A57)+2,FALSE)","v":7323},{"$f":"HLOOKUP(AG$7,$I$66:$DJ$120,ROWS($A$10:$A57)+2,FALSE)","v":834},{"$f":"HLOOKUP(AH$7,$I$66:$DJ$120,ROWS($A$10:$A57)+2,FALSE)","v":1682},{"$f":"HLOOKUP(AI$7,$I$66:$DJ$120,ROWS($A$10:$A57)+2,FALSE)","v":2277},{"$f":"HLOOKUP(AJ$7,$I$66:$DJ$120,ROWS($A$10:$A57)+2,FALSE)","v":617},{"$f":"HLOOKUP(AK$7,$I$66:$DJ$120,ROWS($A$10:$A57)+2,FALSE)","v":256},{"$f":"HLOOKUP(AL$7,$I$66:$DJ$120,ROWS($A$10:$A57)+2,FALSE)","v":1717},{"$f":"HLOOKUP(AM$7,$I$66:$DJ$120,ROWS($A$10:$A57)+2,FALSE)","v":1344},{"$f":"HLOOKUP(AN$7,$I$66:$DJ$120,ROWS($A$10:$A57)+2,FALSE)","v":7327},{"$f":"HLOOKUP(AO$7,$I$66:$DJ$120,ROWS($A$10:$A57)+2,FALSE)","v":1014},{"$f":"HLOOKUP(AP$7,$I$66:$DJ$120,ROWS($A$10:$A57)+2,FALSE)","v":12455},{"$f":"HLOOKUP(AQ$7,$I$66:$DJ$120,ROWS($A$10:$A57)+2,FALSE)","v":22753},{"$f":"HLOOKUP(AR$7,$I$66:$DJ$120,ROWS($A$10:$A57)+2,FALSE)","v":462},{"$f":"HLOOKUP(AS$7,$I$66:$DJ$120,ROWS($A$10:$A57)+2,FALSE)","v":9570},{"$f":"HLOOKUP(AT$7,$I$66:$DJ$120,ROWS($A$10:$A57)+2,FALSE)","v":853},{"$f":"HLOOKUP(AU$7,$I$66:$DJ$120,ROWS($A$10:$A57)+2,FALSE)","v":3499},{"$f":"HLOOKUP(AV$7,$I$66:$DJ$120,ROWS($A$10:$A57)+2,FALSE)","v":12009},{"$f":"HLOOKUP(AW$7,$I$66:$DJ$120,ROWS($A$10:$A57)+2,FALSE)","v":1897},{"$f":"HLOOKUP(AX$7,$I$66:$DJ$120,ROWS($A$10:$A57)+2,FALSE)","v":6612},{"$f":"HLOOKUP(AY$7,$I$66:$DJ$120,ROWS($A$10:$A57)+2,FALSE)","v":908},{"$f":"HLOOKUP(AZ$7,$I$66:$DJ$120,ROWS($A$10:$A57)+2,FALSE)","v":7482},{"$f":"HLOOKUP(BA$7,$I$66:$DJ$120,ROWS($A$10:$A57)+2,FALSE)","v":11655},{"$f":"HLOOKUP(BB$7,$I$66:$DJ$120,ROWS($A$10:$A57)+2,FALSE)","v":1426},{"$f":"HLOOKUP(BC$7,$I$66:$DJ$120,ROWS($A$10:$A57)+2,FALSE)","v":173},{"$f":"HLOOKUP(BD$7,$I$66:$DJ$120,ROWS($A$10:$A57)+2,FALSE)","v":"N/A"},{"$f":"HLOOKUP(BE$7,$I$66:$DJ$120,ROWS($A$10:$A57)+2,FALSE)","v":4615},{"$f":"HLOOKUP(BF$7,$I$66:$DJ$120,ROWS($A$10:$A57)+2,FALSE)","v":9041},{"$f":"HLOOKUP(BG$7,$I$66:$DJ$120,ROWS($A$10:$A57)+2,FALSE)","v":858},{"$f":"HLOOKUP(BH$7,$I$66:$DJ$120,ROWS($A$10:$A57)+2,FALSE)","v":190},{"$f":"HLOOKUP(BI$7,$I$66:$DJ$120,ROWS($A$10:$A57)+2,FALSE)","v":1222},{"$f":"HLOOKUP(BJ$7+0.5,$I$66:$DJ$120,ROWS($A$10:$A57)+2,FALSE)","v":14025},{"$f":"HLOOKUP(BK$7+0.5,$I$66:$DJ$120,ROWS($A$10:$A57)+2,FALSE)","v":2057},{"$f":"HLOOKUP(BL$7+0.5,$I$66:$DJ$120,ROWS($A$10:$A57)+2,FALSE)","v":1687},{"$f":"HLOOKUP(BM$7+0.5,$I$66:$DJ$120,ROWS($A$10:$A57)+2,FALSE)","v":2151},{"$f":"HLOOKUP(BN$7+0.5,$I$66:$DJ$120,ROWS($A$10:$A57)+2,FALSE)","v":606},{"$f":"HLOOKUP(BO$7+0.5,$I$66:$DJ$120,ROWS($A$10:$A57)+2,FALSE)","v":4241},{"$f":"HLOOKUP(BP$7+0.5,$I$66:$DJ$120,ROWS($A$10:$A57)+2,FALSE)","v":2334},{"$f":"HLOOKUP(BQ$7+0.5,$I$66:$DJ$120,ROWS($A$10:$A57)+2,FALSE)","v":2730},{"$f":"HLOOKUP(BR$7+0.5,$I$66:$DJ$120,ROWS($A$10:$A57)+2,FALSE)","v":652},{"$f":"HLOOKUP(BS$7+0.5,$I$66:$DJ$120,ROWS($A$10:$A57)+2,FALSE)","v":1711},{"$f":"HLOOKUP(BT$7+0.5,$I$66:$DJ$120,ROWS($A$10:$A57)+2,FALSE)","v":3494},{"$f":"HLOOKUP(BU$7+0.5,$I$66:$DJ$120,ROWS($A$10:$A57)+2,FALSE)","v":1962},{"$f":"HLOOKUP(BV$7+0.5,$I$66:$DJ$120,ROWS($A$10:$A57)+2,FALSE)","v":1400},{"$f":"HLOOKUP(BW$7+0.5,$I$66:$DJ$120,ROWS($A$10:$A57)+2,FALSE)","v":430},{"$f":"HLOOKUP(BX$7+0.5,$I$66:$DJ$120,ROWS($A$10:$A57)+2,FALSE)","v":1213},{"$f":"HLOOKUP(BY$7+0.5,$I$66:$DJ$120,ROWS($A$10:$A57)+2,FALSE)","v":1067},{"$f":"HLOOKUP(BZ$7+0.5,$I$66:$DJ$120,ROWS($A$10:$A57)+2,FALSE)","v":899},{"$f":"HLOOKUP(CA$7+0.5,$I$66:$DJ$120,ROWS($A$10:$A57)+2,FALSE)","v":645},{"$f":"HLOOKUP(CB$7+0.5,$I$66:$DJ$120,ROWS($A$10:$A57)+2,FALSE)","v":1551},{"$f":"HLOOKUP(CC$7+0.5,$I$66:$DJ$120,ROWS($A$10:$A57)+2,FALSE)","v":1642},{"$f":"HLOOKUP(CD$7+0.5,$I$66:$DJ$120,ROWS($A$10:$A57)+2,FALSE)","v":1930},{"$f":"HLOOKUP(CE$7+0.5,$I$66:$DJ$120,ROWS($A$10:$A57)+2,FALSE)","v":3143},{"$f":"HLOOKUP(CF$7+0.5,$I$66:$DJ$120,ROWS($A$10:$A57)+2,FALSE)","v":2316},{"$f":"HLOOKUP(CG$7+0.5,$I$66:$DJ$120,ROWS($A$10:$A57)+2,FALSE)","v":3026},{"$f":"HLOOKUP(CH$7+0.5,$I$66:$DJ$120,ROWS($A$10:$A57)+2,FALSE)","v":361},{"$f":"HLOOKUP(CI$7+0.5,$I$66:$DJ$120,ROWS($A$10:$A57)+2,FALSE)","v":1191},{"$f":"HLOOKUP(CJ$7+0.5,$I$66:$DJ$120,ROWS($A$10:$A57)+2,FALSE)","v":1178},{"$f":"HLOOKUP(CK$7+0.5,$I$66:$DJ$120,ROWS($A$10:$A57)+2,FALSE)","v":714},{"$f":"HLOOKUP(CL$7+0.5,$I$66:$DJ$120,ROWS($A$10:$A57)+2,FALSE)","v":289},{"$f":"HLOOKUP(CM$7+0.5,$I$66:$DJ$120,ROWS($A$10:$A57)+2,FALSE)","v":961},{"$f":"HLOOKUP(CN$7+0.5,$I$66:$DJ$120,ROWS($A$10:$A57)+2,FALSE)","v":798},{"$f":"HLOOKUP(CO$7+0.5,$I$66:$DJ$120,ROWS($A$10:$A57)+2,FALSE)","v":2046},{"$f":"HLOOKUP(CP$7+0.5,$I$66:$DJ$120,ROWS($A$10:$A57)+2,FALSE)","v":604},{"$f":"HLOOKUP(CQ$7+0.5,$I$66:$DJ$120,ROWS($A$10:$A57)+2,FALSE)","v":2816},{"$f":"HLOOKUP(CR$7+0.5,$I$66:$DJ$120,ROWS($A$10:$A57)+2,FALSE)","v":4584},{"$f":"HLOOKUP(CS$7+0.5,$I$66:$DJ$120,ROWS($A$10:$A57)+2,FALSE)","v":729},{"$f":"HLOOKUP(CT$7+0.5,$I$66:$DJ$120,ROWS($A$10:$A57)+2,FALSE)","v":2217},{"$f":"HLOOKUP(CU$7+0.5,$I$66:$DJ$120,ROWS($A$10:$A57)+2,FALSE)","v":477},{"$f":"HLOOKUP(CV$7+0.5,$I$66:$DJ$120,ROWS($A$10:$A57)+2,FALSE)","v":1935},{"$f":"HLOOKUP(CW$7+0.5,$I$66:$DJ$120,ROWS($A$10:$A57)+2,FALSE)","v":2497},{"$f":"HLOOKUP(CX$7+0.5,$I$66:$DJ$120,ROWS($A$10:$A57)+2,FALSE)","v":1477},{"$f":"HLOOKUP(CY$7+0.5,$I$66:$DJ$120,ROWS($A$10:$A57)+2,FALSE)","v":2032},{"$f":"HLOOKUP(CZ$7+0.5,$I$66:$DJ$120,ROWS($A$10:$A57)+2,FALSE)","v":841},{"$f":"HLOOKUP(DA$7+0.5,$I$66:$DJ$120,ROWS($A$10:$A57)+2,FALSE)","v":2452},{"$f":"HLOOKUP(DB$7+0.5,$I$66:$DJ$120,ROWS($A$10:$A57)+2,FALSE)","v":3004},{"$f":"HLOOKUP(DC$7+0.5,$I$66:$DJ$120,ROWS($A$10:$A57)+2,FALSE)","v":641},{"$f":"HLOOKUP(DD$7+0.5,$I$66:$DJ$120,ROWS($A$10:$A57)+2,FALSE)","v":138},{"$f":"HLOOKUP(DE$7+0.5,$I$66:$DJ$120,ROWS($A$10:$A57)+2,FALSE)","v":"N/A"},{"$f":"HLOOKUP(DF$7+0.5,$I$66:$DJ$120,ROWS($A$10:$A57)+2,FALSE)","v":1717},{"$f":"HLOOKUP(DG$7+0.5,$I$66:$DJ$120,ROWS($A$10:$A57)+2,FALSE)","v":2596},{"$f":"HLOOKUP(DH$7+0.5,$I$66:$DJ$120,ROWS($A$10:$A57)+2,FALSE)","v":745},{"$f":"HLOOKUP(DI$7+0.5,$I$66:$DJ$120,ROWS($A$10:$A57)+2,FALSE)","v":274},{"$f":"HLOOKUP(DJ$7+0.5,$I$66:$DJ$120,ROWS($A$10:$A57)+2,FALSE)","v":779}]
[null,"Washington",6748474,4248,5565069,27197,919925,27221,{"$f":"HLOOKUP(I$7,$I$66:$DJ$120,ROWS($A$10:$A58)+2,FALSE)","v":208507},{"$f":"HLOOKUP(J$7,$I$66:$DJ$120,ROWS($A$10:$A58)+2,FALSE)","v":1821},{"$f":"HLOOKUP(K$7,$I$66:$DJ$120,ROWS($A$10:$A58)+2,FALSE)","v":5266},{"$f":"HLOOKUP(L$7,$I$66:$DJ$120,ROWS($A$10:$A58)+2,FALSE)","v":12397},{"$f":"HLOOKUP(M$7,$I$66:$DJ$120,ROWS($A$10:$A58)+2,FALSE)","v":756},{"$f":"HLOOKUP(N$7,$I$66:$DJ$120,ROWS($A$10:$A58)+2,FALSE)","v":38421},{"$f":"HLOOKUP(O$7,$I$66:$DJ$120,ROWS($A$10:$A58)+2,FALSE)","v":3938},{"$f":"HLOOKUP(P$7,$I$66:$DJ$120,ROWS($A$10:$A58)+2,FALSE)","v":1026},{"$f":"HLOOKUP(Q$7,$I$66:$DJ$120,ROWS($A$10:$A58)+2,FALSE)","v":0},{"$f":"HLOOKUP(R$7,$I$66:$DJ$120,ROWS($A$10:$A58)+2,FALSE)","v":358},{"$f":"HLOOKUP(S$7,$I$66:$DJ$120,ROWS($A$10:$A58)+2,FALSE)","v":6094},{"$f":"HLOOKUP(T$7,$I$66:$DJ$120,ROWS($A$10:$A58)+2,FALSE)","v":8705},{"$f":"HLOOKUP(U$7,$I$66:$DJ$120,ROWS($A$10:$A58)+2,FALSE)","v":5940},{"$f":"HLOOKUP(V$7,$I$66:$DJ$120,ROWS($A$10:$A58)+2,FALSE)","v":10895},{"$f":"HLOOKUP(W$7,$I$66:$DJ$120,ROWS($A$10:$A58)+2,FALSE)","v":2062},{"$f":"HLOOKUP(X$7,$I$66:$DJ$120,ROWS($A$10:$A58)+2,FALSE)","v":2303},{"$f":"HLOOKUP(Y$7,$I$66:$DJ$120,ROWS($A$10:$A58)+2,FALSE)","v":1000},{"$f":"HLOOKUP(Z$7,$I$66:$DJ$120,ROWS($A$10:$A58)+2,FALSE)","v":2820},{"$f":"HLOOKUP(AA$7,$I$66:$DJ$120,ROWS($A$10:$A58)+2,FALSE)","v":1271},{"$f":"HLOOKUP(AB$7,$I$66:$DJ$120,ROWS($A$10:$A58)+2,FALSE)","v":1016},{"$f":"HLOOKUP(AC$7,$I$66:$DJ$120,ROWS($A$10:$A58)+2,FALSE)","v":1313},{"$f":"HLOOKUP(AD$7,$I$66:$DJ$120,ROWS($A$10:$A58)+2,FALSE)","v":1899},{"$f":"HLOOKUP(AE$7,$I$66:$DJ$120,ROWS($A$10:$A58)+2,FALSE)","v":1580},{"$f":"HLOOKUP(AF$7,$I$66:$DJ$120,ROWS($A$10:$A58)+2,FALSE)","v":3720},{"$f":"HLOOKUP(AG$7,$I$66:$DJ$120,ROWS($A$10:$A58)+2,FALSE)","v":1543},{"$f":"HLOOKUP(AH$7,$I$66:$DJ$120,ROWS($A$10:$A58)+2,FALSE)","v":1110},{"$f":"HLOOKUP(AI$7,$I$66:$DJ$120,ROWS($A$10:$A58)+2,FALSE)","v":3307},{"$f":"HLOOKUP(AJ$7,$I$66:$DJ$120,ROWS($A$10:$A58)+2,FALSE)","v":2125},{"$f":"HLOOKUP(AK$7,$I$66:$DJ$120,ROWS($A$10:$A58)+2,FALSE)","v":673},{"$f":"HLOOKUP(AL$7,$I$66:$DJ$120,ROWS($A$10:$A58)+2,FALSE)","v":4925},{"$f":"HLOOKUP(AM$7,$I$66:$DJ$120,ROWS($A$10:$A58)+2,FALSE)","v":824},{"$f":"HLOOKUP(AN$7,$I$66:$DJ$120,ROWS($A$10:$A58)+2,FALSE)","v":2006},{"$f":"HLOOKUP(AO$7,$I$66:$DJ$120,ROWS($A$10:$A58)+2,FALSE)","v":1569},{"$f":"HLOOKUP(AP$7,$I$66:$DJ$120,ROWS($A$10:$A58)+2,FALSE)","v":4512},{"$f":"HLOOKUP(AQ$7,$I$66:$DJ$120,ROWS($A$10:$A58)+2,FALSE)","v":3870},{"$f":"HLOOKUP(AR$7,$I$66:$DJ$120,ROWS($A$10:$A58)+2,FALSE)","v":189},{"$f":"HLOOKUP(AS$7,$I$66:$DJ$120,ROWS($A$10:$A58)+2,FALSE)","v":2686},{"$f":"HLOOKUP(AT$7,$I$66:$DJ$120,ROWS($A$10:$A58)+2,FALSE)","v":765},{"$f":"HLOOKUP(AU$7,$I$66:$DJ$120,ROWS($A$10:$A58)+2,FALSE)","v":29168},{"$f":"HLOOKUP(AV$7,$I$66:$DJ$120,ROWS($A$10:$A58)+2,FALSE)","v":2296},{"$f":"HLOOKUP(AW$7,$I$66:$DJ$120,ROWS($A$10:$A58)+2,FALSE)","v":463},{"$f":"HLOOKUP(AX$7,$I$66:$DJ$120,ROWS($A$10:$A58)+2,FALSE)","v":1519},{"$f":"HLOOKUP(AY$7,$I$66:$DJ$120,ROWS($A$10:$A58)+2,FALSE)","v":227},{"$f":"HLOOKUP(AZ$7,$I$66:$DJ$120,ROWS($A$10:$A58)+2,FALSE)","v":2342},{"$f":"HLOOKUP(BA$7,$I$66:$DJ$120,ROWS($A$10:$A58)+2,FALSE)","v":15491},{"$f":"HLOOKUP(BB$7,$I$66:$DJ$120,ROWS($A$10:$A58)+2,FALSE)","v":4789},{"$f":"HLOOKUP(BC$7,$I$66:$DJ$120,ROWS($A$10:$A58)+2,FALSE)","v":119},{"$f":"HLOOKUP(BD$7,$I$66:$DJ$120,ROWS($A$10:$A58)+2,FALSE)","v":4233},{"$f":"HLOOKUP(BE$7,$I$66:$DJ$120,ROWS($A$10:$A58)+2,FALSE)","v":"N/A"},{"$f":"HLOOKUP(BF$7,$I$66:$DJ$120,ROWS($A$10:$A58)+2,FALSE)","v":157},{"$f":"HLOOKUP(BG$7,$I$66:$DJ$120,ROWS($A$10:$A58)+2,FALSE)","v":1491},{"$f":"HLOOKUP(BH$7,$I$66:$DJ$120,ROWS($A$10:$A58)+2,FALSE)","v":1507},{"$f":"HLOOKUP(BI$7,$I$66:$DJ$120,ROWS($A$10:$A58)+2,FALSE)","v":1083},{"$f":"HLOOKUP(BJ$7+0.5,$I$66:$DJ$120,ROWS($A$10:$A58)+2,FALSE)","v":13639},{"$f":"HLOOKUP(BK$7+0.5,$I$66:$DJ$120,ROWS($A$10:$A58)+2,FALSE)","v":1049},{"$f":"HLOOKUP(BL$7+0.5,$I$66:$DJ$120,ROWS($A$10:$A58)+2,FALSE)","v":2233},{"$f":"HLOOKUP(BM$7+0.5,$I$66:$DJ$120,ROWS($A$10:$A58)+2,FALSE)","v":3133},{"$f":"HLOOKUP(BN$7+0.5,$I$66:$DJ$120,ROWS($A$10:$A58)+2,FALSE)","v":565},{"$f":"HLOOKUP(BO$7+0.5,$I$66:$DJ$120,ROWS($A$10:$A58)+2,FALSE)","v":4474},{"$f":"HLOOKUP(BP$7+0.5,$I$66:$DJ$120,ROWS($A$10:$A58)+2,FALSE)","v":1215},{"$f":"HLOOKUP(BQ$7+0.5,$I$66:$DJ$120,ROWS($A$10:$A58)+2,FALSE)","v":533},{"$f":"HLOOKUP(BR$7+0.5,$I$66:$DJ$120,ROWS($A$10:$A58)+2,FALSE)","v":201},{"$f":"HLOOKUP(BS$7+0.5,$I$66:$DJ$120,ROWS($A$10:$A58)+2,FALSE)","v":254},{"$f":"HLOOKUP(BT$7+0.5,$I$66:$DJ$120,ROWS($A$10:$A58)+2,FALSE)","v":1777},{"$f":"HLOOKUP(BU$7+0.5,$I$66:$DJ$120,ROWS($A$10:$A58)+2,FALSE)","v":3348},{"$f":"HLOOKUP(BV$7+0.5,$I$66:$DJ$120,ROWS($A$10:$A58)+2,FALSE)","v":2264},{"$f":"HLOOKUP(BW$7+0.5,$I$66:$DJ$120,ROWS($A$10:$A58)+2,FALSE)","v":4263},{"$f":"HLOOKUP(BX$7+0.5,$I$66:$DJ$120,ROWS($A$10:$A58)+2,FALSE)","v":821},{"$f":"HLOOKUP(BY$7+0.5,$I$66:$DJ$120,ROWS($A$10:$A58)+2,FALSE)","v":1315},{"$f":"HLOOKUP(BZ$7+0.5,$I$66:$DJ$120,ROWS($A$10:$A58)+2,FALSE)","v":465},{"$f":"HLOOKUP(CA$7+0.5,$I$66:$DJ$120,ROWS($A$10:$A58)+2,FALSE)","v":1740},{"$f":"HLOOKUP(CB$7+0.5,$I$66:$DJ$120,ROWS($A$10:$A58)+2,FALSE)","v":936},{"$f":"HLOOKUP(CC$7+0.5,$I$66:$DJ$120,ROWS($A$10:$A58)+2,FALSE)","v":1018},{"$f":"HLOOKUP(CD$7+0.5,$I$66:$DJ$120,ROWS($A$10:$A58)+2,FALSE)","v":1689},{"$f":"HLOOKUP(CE$7+0.5,$I$66:$DJ$120,ROWS($A$10:$A58)+2,FALSE)","v":808},{"$f":"HLOOKUP(CF$7+0.5,$I$66:$DJ$120,ROWS($A$10:$A58)+2,FALSE)","v":757},{"$f":"HLOOKUP(CG$7+0.5,$I$66:$DJ$120,ROWS($A$10:$A58)+2,FALSE)","v":1212},{"$f":"HLOOKUP(CH$7+0.5,$I$66:$DJ$120,ROWS($A$10:$A58)+2,FALSE)","v":898},{"$f":"HLOOKUP(CI$7+0.5,$I$66:$DJ$120,ROWS($A$10:$A58)+2,FALSE)","v":762},{"$f":"HLOOKUP(CJ$7+0.5,$I$66:$DJ$120,ROWS($A$10:$A58)+2,FALSE)","v":2181},{"$f":"HLOOKUP(CK$7+0.5,$I$66:$DJ$120,ROWS($A$10:$A58)+2,FALSE)","v":934},{"$f":"HLOOKUP(CL$7+0.5,$I$66:$DJ$120,ROWS($A$10:$A58)+2,FALSE)","v":441},{"$f":"HLOOKUP(CM$7+0.5,$I$66:$DJ$120,ROWS($A$10:$A58)+2,FALSE)","v":1696},{"$f":"HLOOKUP(CN$7+0.5,$I$66:$DJ$120,ROWS($A$10:$A58)+2,FALSE)","v":605},{"$f":"HLOOKUP(CO$7+0.5,$I$66:$DJ$120,ROWS($A$10:$A58)+2,FALSE)","v":987},{"$f":"HLOOKUP(CP$7+0.5,$I$66:$DJ$120,ROWS($A$10:$A58)+2,FALSE)","v":1254},{"$f":"HLOOKUP(CQ$7+0.5,$I$66:$DJ$120,ROWS($A$10:$A58)+2,FALSE)","v":1322},{"$f":"HLOOKUP(CR$7+0.5,$I$66:$DJ$120,ROWS($A$10:$A58)+2,FALSE)","v":1452},{"$f":"HLOOKUP(CS$7+0.5,$I$66:$DJ$120,ROWS($A$10:$A58)+2,FALSE)","v":304},{"$f":"HLOOKUP(CT$7+0.5,$I$66:$DJ$120,ROWS($A$10:$A58)+2,FALSE)","v":1217},{"$f":"HLOOKUP(CU$7+0.5,$I$66:$DJ$120,ROWS($A$10:$A58)+2,FALSE)","v":573},{"$f":"HLOOKUP(CV$7+0.5,$I$66:$DJ$120,ROWS($A$10:$A58)+2,FALSE)","v":5436},{"$f":"HLOOKUP(CW$7+0.5,$I$66:$DJ$120,ROWS($A$10:$A58)+2,FALSE)","v":1378},{"$f":"HLOOKUP(CX$7+0.5,$I$66:$DJ$120,ROWS($A$10:$A58)+2,FALSE)","v":319},{"$f":"HLOOKUP(CY$7+0.5,$I$66:$DJ$120,ROWS($A$10:$A58)+2,FALSE)","v":1267},{"$f":"HLOOKUP(CZ$7+0.5,$I$66:$DJ$120,ROWS($A$10:$A58)+2,FALSE)","v":225},{"$f":"HLOOKUP(DA$7+0.5,$I$66:$DJ$120,ROWS($A$10:$A58)+2,FALSE)","v":1116},{"$f":"HLOOKUP(DB$7+0.5,$I$66:$DJ$120,ROWS($A$10:$A58)+2,FALSE)","v":4361},{"$f":"HLOOKUP(DC$7+0.5,$I$66:$DJ$120,ROWS($A$10:$A58)+2,FALSE)","v":1640},{"$f":"HLOOKUP(DD$7+0.5,$I$66:$DJ$120,ROWS($A$10:$A58)+2,FALSE)","v":196},{"$f":"HLOOKUP(DE$7+0.5,$I$66:$DJ$120,ROWS($A$10:$A58)+2,FALSE)","v":1698},{"$f":"HLOOKUP(DF$7+0.5,$I$66:$DJ$120,ROWS($A$10:$A58)+2,FALSE)","v":"N/A"},{"$f":"HLOOKUP(DG$7+0.5,$I$66:$DJ$120,ROWS($A$10:$A58)+2,FALSE)","v":186},{"$f":"HLOOKUP(DH$7+0.5,$I$66:$DJ$120,ROWS($A$10:$A58)+2,FALSE)","v":892},{"$f":"HLOOKUP(DI$7+0.5,$I$66:$DJ$120,ROWS($A$10:$A58)+2,FALSE)","v":870},{"$f":"HLOOKUP(DJ$7+0.5,$I$66:$DJ$120,ROWS($A$10:$A58)+2,FALSE)","v":1061}]
[null,"West Virginia",1836614,1681,1609110,9854,172262,8430,{"$f":"HLOOKUP(I$7,$I$66:$DJ$120,ROWS($A$10:$A59)+2,FALSE)","v":50068},{"$f":"HLOOKUP(J$7,$I$66:$DJ$120,ROWS($A$10:$A59)+2,FALSE)","v":221},{"$f":"HLOOKUP(K$7,$I$66:$DJ$120,ROWS($A$10:$A59)+2,FALSE)","v":598},{"$f":"HLOOKUP(L$7,$I$66:$DJ$120,ROWS($A$10:$A59)+2,FALSE)","v":50},{"$f":"HLOOKUP(M$7,$I$66:$DJ$120,ROWS($A$10:$A59)+2,FALSE)","v":225},{"$f":"HLOOKUP(N$7,$I$66:$DJ$120,ROWS($A$10:$A59)+2,FALSE)","v":1442},{"$f":"HLOOKUP(O$7,$I$66:$DJ$120,ROWS($A$10:$A59)+2,FALSE)","v":124},{"$f":"HLOOKUP(P$7,$I$66:$DJ$120,ROWS($A$10:$A59)+2,FALSE)","v":594},{"$f":"HLOOKUP(Q$7,$I$66:$DJ$120,ROWS($A$10:$A59)+2,FALSE)","v":89},{"$f":"HLOOKUP(R$7,$I$66:$DJ$120,ROWS($A$10:$A59)+2,FALSE)","v":300},{"$f":"HLOOKUP(S$7,$I$66:$DJ$120,ROWS($A$10:$A59)+2,FALSE)","v":2949},{"$f":"HLOOKUP(T$7,$I$66:$DJ$120,ROWS($A$10:$A59)+2,FALSE)","v":1296},{"$f":"HLOOKUP(U$7,$I$66:$DJ$120,ROWS($A$10:$A59)+2,FALSE)","v":147},{"$f":"HLOOKUP(V$7,$I$66:$DJ$120,ROWS($A$10:$A59)+2,FALSE)","v":120},{"$f":"HLOOKUP(W$7,$I$66:$DJ$120,ROWS($A$10:$A59)+2,FALSE)","v":1331},{"$f":"HLOOKUP(X$7,$I$66:$DJ$120,ROWS($A$10:$A59)+2,FALSE)","v":210},{"$f":"HLOOKUP(Y$7,$I$66:$DJ$120,ROWS($A$10:$A59)+2,FALSE)","v":0},{"$f":"HLOOKUP(Z$7,$I$66:$DJ$120,ROWS($A$10:$A59)+2,FALSE)","v":0},{"$f":"HLOOKUP(AA$7,$I$66:$DJ$120,ROWS($A$10:$A59)+2,FALSE)","v":515},{"$f":"HLOOKUP(AB$7,$I$66:$DJ$120,ROWS($A$10:$A59)+2,FALSE)","v":326},{"$f":"HLOOKUP(AC$7,$I$66:$DJ$120,ROWS($A$10:$A59)+2,FALSE)","v":45},{"$f":"HLOOKUP(AD$7,$I$66:$DJ$120,ROWS($A$10:$A59)+2,FALSE)","v":7515},{"$f":"HLOOKUP(AE$7,$I$66:$DJ$120,ROWS($A$10:$A59)+2,FALSE)","v":236},{"$f":"HLOOKUP(AF$7,$I$66:$DJ$120,ROWS($A$10:$A59)+2,FALSE)","v":459},{"$f":"HLOOKUP(AG$7,$I$66:$DJ$120,ROWS($A$10:$A59)+2,FALSE)","v":0},{"$f":"HLOOKUP(AH$7,$I$66:$DJ$120,ROWS($A$10:$A59)+2,FALSE)","v":0},{"$f":"HLOOKUP(AI$7,$I$66:$DJ$120,ROWS($A$10:$A59)+2,FALSE)","v":309},{"$f":"HLOOKUP(AJ$7,$I$66:$DJ$120,ROWS($A$10:$A59)+2,FALSE)","v":60},{"$f":"HLOOKUP(AK$7,$I$66:$DJ$120,ROWS($A$10:$A59)+2,FALSE)","v":78},{"$f":"HLOOKUP(AL$7,$I$66:$DJ$120,ROWS($A$10:$A59)+2,FALSE)","v":293},{"$f":"HLOOKUP(AM$7,$I$66:$DJ$120,ROWS($A$10:$A59)+2,FALSE)","v":160},{"$f":"HLOOKUP(AN$7,$I$66:$DJ$120,ROWS($A$10:$A59)+2,FALSE)","v":1431},{"$f":"HLOOKUP(AO$7,$I$66:$DJ$120,ROWS($A$10:$A59)+2,FALSE)","v":0},{"$f":"HLOOKUP(AP$7,$I$66:$DJ$120,ROWS($A$10:$A59)+2,FALSE)","v":2017},{"$f":"HLOOKUP(AQ$7,$I$66:$DJ$120,ROWS($A$10:$A59)+2,FALSE)","v":3865},{"$f":"HLOOKUP(AR$7,$I$66:$DJ$120,ROWS($A$10:$A59)+2,FALSE)","v":0},{"$f":"HLOOKUP(AS$7,$I$66:$DJ$120,ROWS($A$10:$A59)+2,FALSE)","v":8545},{"$f":"HLOOKUP(AT$7,$I$66:$DJ$120,ROWS($A$10:$A59)+2,FALSE)","v":97},{"$f":"HLOOKUP(AU$7,$I$66:$DJ$120,ROWS($A$10:$A59)+2,FALSE)","v":132},{"$f":"HLOOKUP(AV$7,$I$66:$DJ$120,ROWS($A$10:$A59)+2,FALSE)","v":4205},{"$f":"HLOOKUP(AW$7,$I$66:$DJ$120,ROWS($A$10:$A59)+2,FALSE)","v":284},{"$f":"HLOOKUP(AX$7,$I$66:$DJ$120,ROWS($A$10:$A59)+2,FALSE)","v":1857},{"$f":"HLOOKUP(AY$7,$I$66:$DJ$120,ROWS($A$10:$A59)+2,FALSE)","v":0},{"$f":"HLOOKUP(AZ$7,$I$66:$DJ$120,ROWS($A$10:$A59)+2,FALSE)","v":546},{"$f":"HLOOKUP(BA$7,$I$66:$DJ$120,ROWS($A$10:$A59)+2,FALSE)","v":1574},{"$f":"HLOOKUP(BB$7,$I$66:$DJ$120,ROWS($A$10:$A59)+2,FALSE)","v":114},{"$f":"HLOOKUP(BC$7,$I$66:$DJ$120,ROWS($A$10:$A59)+2,FALSE)","v":23},{"$f":"HLOOKUP(BD$7,$I$66:$DJ$120,ROWS($A$10:$A59)+2,FALSE)","v":5561},{"$f":"HLOOKUP(BE$7,$I$66:$DJ$120,ROWS($A$10:$A59)+2,FALSE)","v":83},{"$f":"HLOOKUP(BF$7,$I$66:$DJ$120,ROWS($A$10:$A59)+2,FALSE)","v":"N/A"},{"$f":"HLOOKUP(BG$7,$I$66:$DJ$120,ROWS($A$10:$A59)+2,FALSE)","v":42},{"$f":"HLOOKUP(BH$7,$I$66:$DJ$120,ROWS($A$10:$A59)+2,FALSE)","v":0},{"$f":"HLOOKUP(BI$7,$I$66:$DJ$120,ROWS($A$10:$A59)+2,FALSE)","v":680},{"$f":"HLOOKUP(BJ$7+0.5,$I$66:$DJ$120,ROWS($A$10:$A59)+2,FALSE)","v":4934},{"$f":"HLOOKUP(BK$7+0.5,$I$66:$DJ$120,ROWS($A$10:$A59)+2,FALSE)","v":228},{"$f":"HLOOKUP(BL$7+0.5,$I$66:$DJ$120,ROWS($A$10:$A59)+2,FALSE)","v":566},{"$f":"HLOOKUP(BM$7+0.5,$I$66:$DJ$120,ROWS($A$10:$A59)+2,FALSE)","v":95},{"$f":"HLOOKUP(BN$7+0.5,$I$66:$DJ$120,ROWS($A$10:$A59)+2,FALSE)","v":361},{"$f":"HLOOKUP(BO$7+0.5,$I$66:$DJ$120,ROWS($A$10:$A59)+2,FALSE)","v":1085},{"$f":"HLOOKUP(BP$7+0.5,$I$66:$DJ$120,ROWS($A$10:$A59)+2,FALSE)","v":160},{"$f":"HLOOKUP(BQ$7+0.5,$I$66:$DJ$120,ROWS($A$10:$A59)+2,FALSE)","v":401},{"$f":"HLOOKUP(BR$7+0.5,$I$66:$DJ$120,ROWS($A$10:$A59)+2,FALSE)","v":102},{"$f":"HLOOKUP(BS$7+0.5,$I$66:$DJ$120,ROWS($A$10:$A59)+2,FALSE)","v":231},{"$f":"HLOOKUP(BT$7+0.5,$I$66:$DJ$120,ROWS($A$10:$A59)+2,FALSE)","v":1076},{"$f":"HLOOKUP(BU$7+0.5,$I$66:$DJ$120,ROWS($A$10:$A59)+2,FALSE)","v":898},{"$f":"HLOOKUP(BV$7+0.5,$I$66:$DJ$120,ROWS($A$10:$A59)+2,FALSE)","v":248},{"$f":"HLOOKUP(BW$7+0.5,$I$66:$DJ$120,ROWS($A$10:$A59)+2,FALSE)","v":127},{"$f":"HLOOKUP(BX$7+0.5,$I$66:$DJ$120,ROWS($A$10:$A59)+2,FALSE)","v":1134},{"$f":"HLOOKUP(BY$7+0.5,$I$66:$DJ$120,ROWS($A$10:$A59)+2,FALSE)","v":200},{"$f":"HLOOKUP(BZ$7+0.5,$I$66:$DJ$120,ROWS($A$10:$A59)+2,FALSE)","v":184},{"$f":"HLOOKUP(CA$7+0.5,$I$66:$DJ$120,ROWS($A$10:$A59)+2,FALSE)","v":184},{"$f":"HLOOKUP(CB$7+0.5,$I$66:$DJ$120,ROWS($A$10:$A59)+2,FALSE)","v":259},{"$f":"HLOOKUP(CC$7+0.5,$I$66:$DJ$120,ROWS($A$10:$A59)+2,FALSE)","v":313},{"$f":"HLOOKUP(CD$7+0.5,$I$66:$DJ$120,ROWS($A$10:$A59)+2,FALSE)","v":75},{"$f":"HLOOKUP(CE$7+0.5,$I$66:$DJ$120,ROWS($A$10:$A59)+2,FALSE)","v":2257},{"$f":"HLOOKUP(CF$7+0.5,$I$66:$DJ$120,ROWS($A$10:$A59)+2,FALSE)","v":196},{"$f":"HLOOKUP(CG$7+0.5,$I$66:$DJ$120,ROWS($A$10:$A59)+2,FALSE)","v":263},{"$f":"HLOOKUP(CH$7+0.5,$I$66:$DJ$120,ROWS($A$10:$A59)+2,FALSE)","v":184},{"$f":"HLOOKUP(CI$7+0.5,$I$66:$DJ$120,ROWS($A$10:$A59)+2,FALSE)","v":184},{"$f":"HLOOKUP(CJ$7+0.5,$I$66:$DJ$120,ROWS($A$10:$A59)+2,FALSE)","v":345},{"$f":"HLOOKUP(CK$7+0.5,$I$66:$DJ$120,ROWS($A$10:$A59)+2,FALSE)","v":101},{"$f":"HLOOKUP(CL$7+0.5,$I$66:$DJ$120,ROWS($A$10:$A59)+2,FALSE)","v":140},{"$f":"HLOOKUP(CM$7+0.5,$I$66:$DJ$120,ROWS($A$10:$A59)+2,FALSE)","v":235},{"$f":"HLOOKUP(CN$7+0.5,$I$66:$DJ$120,ROWS($A$10:$A59)+2,FALSE)","v":223},{"$f":"HLOOKUP(CO$7+0.5,$I$66:$DJ$120,ROWS($A$10:$A59)+2,FALSE)","v":611},{"$f":"HLOOKUP(CP$7+0.5,$I$66:$DJ$120,ROWS($A$10:$A59)+2,FALSE)","v":184},{"$f":"HLOOKUP(CQ$7+0.5,$I$66:$DJ$120,ROWS($A$10:$A59)+2,FALSE)","v":866},{"$f":"HLOOKUP(CR$7+0.5,$I$66:$DJ$120,ROWS($A$10:$A59)+2,FALSE)","v":1241},{"$f":"HLOOKUP(CS$7+0.5,$I$66:$DJ$120,ROWS($A$10:$A59)+2,FALSE)","v":184},{"$f":"HLOOKUP(CT$7+0.5,$I$66:$DJ$120,ROWS($A$10:$A59)+2,FALSE)","v":1913},{"$f":"HLOOKUP(CU$7+0.5,$I$66:$DJ$120,ROWS($A$10:$A59)+2,FALSE)","v":113},{"$f":"HLOOKUP(CV$7+0.5,$I$66:$DJ$120,ROWS($A$10:$A59)+2,FALSE)","v":203},{"$f":"HLOOKUP(CW$7+0.5,$I$66:$DJ$120,ROWS($A$10:$A59)+2,FALSE)","v":1569},{"$f":"HLOOKUP(CX$7+0.5,$I$66:$DJ$120,ROWS($A$10:$A59)+2,FALSE)","v":344},{"$f":"HLOOKUP(CY$7+0.5,$I$66:$DJ$120,ROWS($A$10:$A59)+2,FALSE)","v":1316},{"$f":"HLOOKUP(CZ$7+0.5,$I$66:$DJ$120,ROWS($A$10:$A59)+2,FALSE)","v":184},{"$f":"HLOOKUP(DA$7+0.5,$I$66:$DJ$120,ROWS($A$10:$A59)+2,FALSE)","v":449},{"$f":"HLOOKUP(DB$7+0.5,$I$66:$DJ$120,ROWS($A$10:$A59)+2,FALSE)","v":1047},{"$f":"HLOOKUP(DC$7+0.5,$I$66:$DJ$120,ROWS($A$10:$A59)+2,FALSE)","v":216},{"$f":"HLOOKUP(DD$7+0.5,$I$66:$DJ$120,ROWS($A$10:$A59)+2,FALSE)","v":33},{"$f":"HLOOKUP(DE$7+0.5,$I$66:$DJ$120,ROWS($A$10:$A59)+2,FALSE)","v":1534},{"$f":"HLOOKUP(DF$7+0.5,$I$66:$DJ$120,ROWS($A$10:$A59)+2,FALSE)","v":137},{"$f":"HLOOKUP(DG$7+0.5,$I$66:$DJ$120,ROWS($A$10:$A59)+2,FALSE)","v":"N/A"},{"$f":"HLOOKUP(DH$7+0.5,$I$66:$DJ$120,ROWS($A$10:$A59)+2,FALSE)","v":69},{"$f":"HLOOKUP(DI$7+0.5,$I$66:$DJ$120,ROWS($A$10:$A59)+2,FALSE)","v":184},{"$f":"HLOOKUP(DJ$7+0.5,$I$66:$DJ$120,ROWS($A$10:$A59)+2,FALSE)","v":450}]
[null,"Wisconsin",5647213,2653,4846550,18735,675623,19411,{"$f":"HLOOKUP(I$7,$I$66:$DJ$120,ROWS($A$10:$A60)+2,FALSE)","v":109439},{"$f":"HLOOKUP(J$7,$I$66:$DJ$120,ROWS($A$10:$A60)+2,FALSE)","v":708},{"$f":"HLOOKUP(K$7,$I$66:$DJ$120,ROWS($A$10:$A60)+2,FALSE)","v":432},{"$f":"HLOOKUP(L$7,$I$66:$DJ$120,ROWS($A$10:$A60)+2,FALSE)","v":4045},{"$f":"HLOOKUP(M$7,$I$66:$DJ$120,ROWS($A$10:$A60)+2,FALSE)","v":335},{"$f":"HLOOKUP(N$7,$I$66:$DJ$120,ROWS($A$10:$A60)+2,FALSE)","v":6637},{"$f":"HLOOKUP(O$7,$I$66:$DJ$120,ROWS($A$10:$A60)+2,FALSE)","v":2592},{"$f":"HLOOKUP(P$7,$I$66:$DJ$120,ROWS($A$10:$A60)+2,FALSE)","v":993},{"$f":"HLOOKUP(Q$7,$I$66:$DJ$120,ROWS($A$10:$A60)+2,FALSE)","v":219},{"$f":"HLOOKUP(R$7,$I$66:$DJ$120,ROWS($A$10:$A60)+2,FALSE)","v":123},{"$f":"HLOOKUP(S$7,$I$66:$DJ$120,ROWS($A$10:$A60)+2,FALSE)","v":4338},{"$f":"HLOOKUP(T$7,$I$66:$DJ$120,ROWS($A$10:$A60)+2,FALSE)","v":1745},{"$f":"HLOOKUP(U$7,$I$66:$DJ$120,ROWS($A$10:$A60)+2,FALSE)","v":1108},{"$f":"HLOOKUP(V$7,$I$66:$DJ$120,ROWS($A$10:$A60)+2,FALSE)","v":566},{"$f":"HLOOKUP(W$7,$I$66:$DJ$120,ROWS($A$10:$A60)+2,FALSE)","v":25521},{"$f":"HLOOKUP(X$7,$I$66:$DJ$120,ROWS($A$10:$A60)+2,FALSE)","v":4017},{"$f":"HLOOKUP(Y$7,$I$66:$DJ$120,ROWS($A$10:$A60)+2,FALSE)","v":3306},{"$f":"HLOOKUP(Z$7,$I$66:$DJ$120,ROWS($A$10:$A60)+2,FALSE)","v":418},{"$f":"HLOOKUP(AA$7,$I$66:$DJ$120,ROWS($A$10:$A60)+2,FALSE)","v":1040},{"$f":"HLOOKUP(AB$7,$I$66:$DJ$120,ROWS($A$10:$A60)+2,FALSE)","v":850},{"$f":"HLOOKUP(AC$7,$I$66:$DJ$120,ROWS($A$10:$A60)+2,FALSE)","v":12},{"$f":"HLOOKUP(AD$7,$I$66:$DJ$120,ROWS($A$10:$A60)+2,FALSE)","v":147},{"$f":"HLOOKUP(AE$7,$I$66:$DJ$120,ROWS($A$10:$A60)+2,FALSE)","v":733},{"$f":"HLOOKUP(AF$7,$I$66:$DJ$120,ROWS($A$10:$A60)+2,FALSE)","v":5623},{"$f":"HLOOKUP(AG$7,$I$66:$DJ$120,ROWS($A$10:$A60)+2,FALSE)","v":17927},{"$f":"HLOOKUP(AH$7,$I$66:$DJ$120,ROWS($A$10:$A60)+2,FALSE)","v":983},{"$f":"HLOOKUP(AI$7,$I$66:$DJ$120,ROWS($A$10:$A60)+2,FALSE)","v":2090},{"$f":"HLOOKUP(AJ$7,$I$66:$DJ$120,ROWS($A$10:$A60)+2,FALSE)","v":143},{"$f":"HLOOKUP(AK$7,$I$66:$DJ$120,ROWS($A$10:$A60)+2,FALSE)","v":483},{"$f":"HLOOKUP(AL$7,$I$66:$DJ$120,ROWS($A$10:$A60)+2,FALSE)","v":663},{"$f":"HLOOKUP(AM$7,$I$66:$DJ$120,ROWS($A$10:$A60)+2,FALSE)","v":480},{"$f":"HLOOKUP(AN$7,$I$66:$DJ$120,ROWS($A$10:$A60)+2,FALSE)","v":378},{"$f":"HLOOKUP(AO$7,$I$66:$DJ$120,ROWS($A$10:$A60)+2,FALSE)","v":714},{"$f":"HLOOKUP(AP$7,$I$66:$DJ$120,ROWS($A$10:$A60)+2,FALSE)","v":2213},{"$f":"HLOOKUP(AQ$7,$I$66:$DJ$120,ROWS($A$10:$A60)+2,FALSE)","v":2120},{"$f":"HLOOKUP(AR$7,$I$66:$DJ$120,ROWS($A$10:$A60)+2,FALSE)","v":1383},{"$f":"HLOOKUP(AS$7,$I$66:$DJ$120,ROWS($A$10:$A60)+2,FALSE)","v":1358},{"$f":"HLOOKUP(AT$7,$I$66:$DJ$120,ROWS($A$10:$A60)+2,FALSE)","v":118},{"$f":"HLOOKUP(AU$7,$I$66:$DJ$120,ROWS($A$10:$A60)+2,FALSE)","v":1057},{"$f":"HLOOKUP(AV$7,$I$66:$DJ$120,ROWS($A$10:$A60)+2,FALSE)","v":1294},{"$f":"HLOOKUP(AW$7,$I$66:$DJ$120,ROWS($A$10:$A60)+2,FALSE)","v":368},{"$f":"HLOOKUP(AX$7,$I$66:$DJ$120,ROWS($A$10:$A60)+2,FALSE)","v":377},{"$f":"HLOOKUP(AY$7,$I$66:$DJ$120,ROWS($A$10:$A60)+2,FALSE)","v":590},{"$f":"HLOOKUP(AZ$7,$I$66:$DJ$120,ROWS($A$10:$A60)+2,FALSE)","v":744},{"$f":"HLOOKUP(BA$7,$I$66:$DJ$120,ROWS($A$10:$A60)+2,FALSE)","v":1984},{"$f":"HLOOKUP(BB$7,$I$66:$DJ$120,ROWS($A$10:$A60)+2,FALSE)","v":890},{"$f":"HLOOKUP(BC$7,$I$66:$DJ$120,ROWS($A$10:$A60)+2,FALSE)","v":342},{"$f":"HLOOKUP(BD$7,$I$66:$DJ$120,ROWS($A$10:$A60)+2,FALSE)","v":2573},{"$f":"HLOOKUP(BE$7,$I$66:$DJ$120,ROWS($A$10:$A60)+2,FALSE)","v":1555},{"$f":"HLOOKUP(BF$7,$I$66:$DJ$120,ROWS($A$10:$A60)+2,FALSE)","v":1090},{"$f":"HLOOKUP(BG$7,$I$66:$DJ$120,ROWS($A$10:$A60)+2,FALSE)","v":"N/A"},{"$f":"HLOOKUP(BH$7,$I$66:$DJ$120,ROWS($A$10:$A60)+2,FALSE)","v":14},{"$f":"HLOOKUP(BI$7,$I$66:$DJ$120,ROWS($A$10:$A60)+2,FALSE)","v":728},{"$f":"HLOOKUP(BJ$7+0.5,$I$66:$DJ$120,ROWS($A$10:$A60)+2,FALSE)","v":8715},{"$f":"HLOOKUP(BK$7+0.5,$I$66:$DJ$120,ROWS($A$10:$A60)+2,FALSE)","v":761},{"$f":"HLOOKUP(BL$7+0.5,$I$66:$DJ$120,ROWS($A$10:$A60)+2,FALSE)","v":323},{"$f":"HLOOKUP(BM$7+0.5,$I$66:$DJ$120,ROWS($A$10:$A60)+2,FALSE)","v":1532},{"$f":"HLOOKUP(BN$7+0.5,$I$66:$DJ$120,ROWS($A$10:$A60)+2,FALSE)","v":285},{"$f":"HLOOKUP(BO$7+0.5,$I$66:$DJ$120,ROWS($A$10:$A60)+2,FALSE)","v":2054},{"$f":"HLOOKUP(BP$7+0.5,$I$66:$DJ$120,ROWS($A$10:$A60)+2,FALSE)","v":1457},{"$f":"HLOOKUP(BQ$7+0.5,$I$66:$DJ$120,ROWS($A$10:$A60)+2,FALSE)","v":1397},{"$f":"HLOOKUP(BR$7+0.5,$I$66:$DJ$120,ROWS($A$10:$A60)+2,FALSE)","v":276},{"$f":"HLOOKUP(BS$7+0.5,$I$66:$DJ$120,ROWS($A$10:$A60)+2,FALSE)","v":170},{"$f":"HLOOKUP(BT$7+0.5,$I$66:$DJ$120,ROWS($A$10:$A60)+2,FALSE)","v":1103},{"$f":"HLOOKUP(BU$7+0.5,$I$66:$DJ$120,ROWS($A$10:$A60)+2,FALSE)","v":1106},{"$f":"HLOOKUP(BV$7+0.5,$I$66:$DJ$120,ROWS($A$10:$A60)+2,FALSE)","v":1597},{"$f":"HLOOKUP(BW$7+0.5,$I$66:$DJ$120,ROWS($A$10:$A60)+2,FALSE)","v":434},{"$f":"HLOOKUP(BX$7+0.5,$I$66:$DJ$120,ROWS($A$10:$A60)+2,FALSE)","v":4568},{"$f":"HLOOKUP(BY$7+0.5,$I$66:$DJ$120,ROWS($A$10:$A60)+2,FALSE)","v":2027},{"$f":"HLOOKUP(BZ$7+0.5,$I$66:$DJ$120,ROWS($A$10:$A60)+2,FALSE)","v":1757},{"$f":"HLOOKUP(CA$7+0.5,$I$66:$DJ$120,ROWS($A$10:$A60)+2,FALSE)","v":446},{"$f":"HLOOKUP(CB$7+0.5,$I$66:$DJ$120,ROWS($A$10:$A60)+2,FALSE)","v":570},{"$f":"HLOOKUP(CC$7+0.5,$I$66:$DJ$120,ROWS($A$10:$A60)+2,FALSE)","v":563},{"$f":"HLOOKUP(CD$7+0.5,$I$66:$DJ$120,ROWS($A$10:$A60)+2,FALSE)","v":21},{"$f":"HLOOKUP(CE$7+0.5,$I$66:$DJ$120,ROWS($A$10:$A60)+2,FALSE)","v":141},{"$f":"HLOOKUP(CF$7+0.5,$I$66:$DJ$120,ROWS($A$10:$A60)+2,FALSE)","v":578},{"$f":"HLOOKUP(CG$7+0.5,$I$66:$DJ$120,ROWS($A$10:$A60)+2,FALSE)","v":1353},{"$f":"HLOOKUP(CH$7+0.5,$I$66:$DJ$120,ROWS($A$10:$A60)+2,FALSE)","v":2244},{"$f":"HLOOKUP(CI$7+0.5,$I$66:$DJ$120,ROWS($A$10:$A60)+2,FALSE)","v":924},{"$f":"HLOOKUP(CJ$7+0.5,$I$66:$DJ$120,ROWS($A$10:$A60)+2,FALSE)","v":1117},{"$f":"HLOOKUP(CK$7+0.5,$I$66:$DJ$120,ROWS($A$10:$A60)+2,FALSE)","v":93},{"$f":"HLOOKUP(CL$7+0.5,$I$66:$DJ$120,ROWS($A$10:$A60)+2,FALSE)","v":405},{"$f":"HLOOKUP(CM$7+0.5,$I$66:$DJ$120,ROWS($A$10:$A60)+2,FALSE)","v":345},{"$f":"HLOOKUP(CN$7+0.5,$I$66:$DJ$120,ROWS($A$10:$A60)+2,FALSE)","v":364},{"$f":"HLOOKUP(CO$7+0.5,$I$66:$DJ$120,ROWS($A$10:$A60)+2,FALSE)","v":352},{"$f":"HLOOKUP(CP$7+0.5,$I$66:$DJ$120,ROWS($A$10:$A60)+2,FALSE)","v":502},{"$f":"HLOOKUP(CQ$7+0.5,$I$66:$DJ$120,ROWS($A$10:$A60)+2,FALSE)","v":835},{"$f":"HLOOKUP(CR$7+0.5,$I$66:$DJ$120,ROWS($A$10:$A60)+2,FALSE)","v":967},{"$f":"HLOOKUP(CS$7+0.5,$I$66:$DJ$120,ROWS($A$10:$A60)+2,FALSE)","v":1273},{"$f":"HLOOKUP(CT$7+0.5,$I$66:$DJ$120,ROWS($A$10:$A60)+2,FALSE)","v":628},{"$f":"HLOOKUP(CU$7+0.5,$I$66:$DJ$120,ROWS($A$10:$A60)+2,FALSE)","v":119},{"$f":"HLOOKUP(CV$7+0.5,$I$66:$DJ$120,ROWS($A$10:$A60)+2,FALSE)","v":680},{"$f":"HLOOKUP(CW$7+0.5,$I$66:$DJ$120,ROWS($A$10:$A60)+2,FALSE)","v":781},{"$f":"HLOOKUP(CX$7+0.5,$I$66:$DJ$120,ROWS($A$10:$A60)+2,FALSE)","v":407},{"$f":"HLOOKUP(CY$7+0.5,$I$66:$DJ$120,ROWS($A$10:$A60)+2,FALSE)","v":312},{"$f":"HLOOKUP(CZ$7+0.5,$I$66:$DJ$120,ROWS($A$10:$A60)+2,FALSE)","v":487},{"$f":"HLOOKUP(DA$7+0.5,$I$66:$DJ$120,ROWS($A$10:$A60)+2,FALSE)","v":527},{"$f":"HLOOKUP(DB$7+0.5,$I$66:$DJ$120,ROWS($A$10:$A60)+2,FALSE)","v":836},{"$f":"HLOOKUP(DC$7+0.5,$I$66:$DJ$120,ROWS($A$10:$A60)+2,FALSE)","v":652},{"$f":"HLOOKUP(DD$7+0.5,$I$66:$DJ$120,ROWS($A$10:$A60)+2,FALSE)","v":311},{"$f":"HLOOKUP(DE$7+0.5,$I$66:$DJ$120,ROWS($A$10:$A60)+2,FALSE)","v":1465},{"$f":"HLOOKUP(DF$7+0.5,$I$66:$DJ$120,ROWS($A$10:$A60)+2,FALSE)","v":1071},{"$f":"HLOOKUP(DG$7+0.5,$I$66:$DJ$120,ROWS($A$10:$A60)+2,FALSE)","v":1630},{"$f":"HLOOKUP(DH$7+0.5,$I$66:$DJ$120,ROWS($A$10:$A60)+2,FALSE)","v":"N/A"},{"$f":"HLOOKUP(DI$7+0.5,$I$66:$DJ$120,ROWS($A$10:$A60)+2,FALSE)","v":23},{"$f":"HLOOKUP(DJ$7+0.5,$I$66:$DJ$120,ROWS($A$10:$A60)+2,FALSE)","v":715}]
[null,"Wyoming",561389,1021,462808,7194,66648,5771,{"$f":"HLOOKUP(I$7,$I$66:$DJ$120,ROWS($A$10:$A61)+2,FALSE)","v":30651},{"$f":"HLOOKUP(J$7,$I$66:$DJ$120,ROWS($A$10:$A61)+2,FALSE)","v":51},{"$f":"HLOOKUP(K$7,$I$66:$DJ$120,ROWS($A$10:$A61)+2,FALSE)","v":761},{"$f":"HLOOKUP(L$7,$I$66:$DJ$120,ROWS($A$10:$A61)+2,FALSE)","v":369},{"$f":"HLOOKUP(M$7,$I$66:$DJ$120,ROWS($A$10:$A61)+2,FALSE)","v":174},{"$f":"HLOOKUP(N$7,$I$66:$DJ$120,ROWS($A$10:$A61)+2,FALSE)","v":2539},{"$f":"HLOOKUP(O$7,$I$66:$DJ$120,ROWS($A$10:$A61)+2,FALSE)","v":6905},{"$f":"HLOOKUP(P$7,$I$66:$DJ$120,ROWS($A$10:$A61)+2,FALSE)","v":11},{"$f":"HLOOKUP(Q$7,$I$66:$DJ$120,ROWS($A$10:$A61)+2,FALSE)","v":0},{"$f":"HLOOKUP(R$7,$I$66:$DJ$120,ROWS($A$10:$A61)+2,FALSE)","v":0},{"$f":"HLOOKUP(S$7,$I$66:$DJ$120,ROWS($A$10:$A61)+2,FALSE)","v":1525},{"$f":"HLOOKUP(T$7,$I$66:$DJ$120,ROWS($A$10:$A61)+2,FALSE)","v":46},{"$f":"HLOOKUP(U$7,$I$66:$DJ$120,ROWS($A$10:$A61)+2,FALSE)","v":0},{"$f":"HLOOKUP(V$7,$I$66:$DJ$120,ROWS($A$10:$A61)+2,FALSE)","v":2140},{"$f":"HLOOKUP(W$7,$I$66:$DJ$120,ROWS($A$10:$A61)+2,FALSE)","v":450},{"$f":"HLOOKUP(X$7,$I$66:$DJ$120,ROWS($A$10:$A61)+2,FALSE)","v":6},{"$f":"HLOOKUP(Y$7,$I$66:$DJ$120,ROWS($A$10:$A61)+2,FALSE)","v":342},{"$f":"HLOOKUP(Z$7,$I$66:$DJ$120,ROWS($A$10:$A61)+2,FALSE)","v":286},{"$f":"HLOOKUP(AA$7,$I$66:$DJ$120,ROWS($A$10:$A61)+2,FALSE)","v":83},{"$f":"HLOOKUP(AB$7,$I$66:$DJ$120,ROWS($A$10:$A61)+2,FALSE)","v":114},{"$f":"HLOOKUP(AC$7,$I$66:$DJ$120,ROWS($A$10:$A61)+2,FALSE)","v":0},{"$f":"HLOOKUP(AD$7,$I$66:$DJ$120,ROWS($A$10:$A61)+2,FALSE)","v":0},{"$f":"HLOOKUP(AE$7,$I$66:$DJ$120,ROWS($A$10:$A61)+2,FALSE)","v":152},{"$f":"HLOOKUP(AF$7,$I$66:$DJ$120,ROWS($A$10:$A61)+2,FALSE)","v":849},{"$f":"HLOOKUP(AG$7,$I$66:$DJ$120,ROWS($A$10:$A61)+2,FALSE)","v":357},{"$f":"HLOOKUP(AH$7,$I$66:$DJ$120,ROWS($A$10:$A61)+2,FALSE)","v":70},{"$f":"HLOOKUP(AI$7,$I$66:$DJ$120,ROWS($A$10:$A61)+2,FALSE)","v":241},{"$f":"HLOOKUP(AJ$7,$I$66:$DJ$120,ROWS($A$10:$A61)+2,FALSE)","v":1105},{"$f":"HLOOKUP(AK$7,$I$66:$DJ$120,ROWS($A$10:$A61)+2,FALSE)","v":1784},{"$f":"HLOOKUP(AL$7,$I$66:$DJ$120,ROWS($A$10:$A61)+2,FALSE)","v":427},{"$f":"HLOOKUP(AM$7,$I$66:$DJ$120,ROWS($A$10:$A61)+2,FALSE)","v":0},{"$f":"HLOOKUP(AN$7,$I$66:$DJ$120,ROWS($A$10:$A61)+2,FALSE)","v":7},{"$f":"HLOOKUP(AO$7,$I$66:$DJ$120,ROWS($A$10:$A61)+2,FALSE)","v":76},{"$f":"HLOOKUP(AP$7,$I$66:$DJ$120,ROWS($A$10:$A61)+2,FALSE)","v":113},{"$f":"HLOOKUP(AQ$7,$I$66:$DJ$120,ROWS($A$10:$A61)+2,FALSE)","v":395},{"$f":"HLOOKUP(AR$7,$I$66:$DJ$120,ROWS($A$10:$A61)+2,FALSE)","v":237},{"$f":"HLOOKUP(AS$7,$I$66:$DJ$120,ROWS($A$10:$A61)+2,FALSE)","v":22},{"$f":"HLOOKUP(AT$7,$I$66:$DJ$120,ROWS($A$10:$A61)+2,FALSE)","v":462},{"$f":"HLOOKUP(AU$7,$I$66:$DJ$120,ROWS($A$10:$A61)+2,FALSE)","v":960},{"$f":"HLOOKUP(AV$7,$I$66:$DJ$120,ROWS($A$10:$A61)+2,FALSE)","v":284},{"$f":"HLOOKUP(AW$7,$I$66:$DJ$120,ROWS($A$10:$A61)+2,FALSE)","v":13},{"$f":"HLOOKUP(AX$7,$I$66:$DJ$120,ROWS($A$10:$A61)+2,FALSE)","v":219},{"$f":"HLOOKUP(AY$7,$I$66:$DJ$120,ROWS($A$10:$A61)+2,FALSE)","v":1043},{"$f":"HLOOKUP(AZ$7,$I$66:$DJ$120,ROWS($A$10:$A61)+2,FALSE)","v":69},{"$f":"HLOOKUP(BA$7,$I$66:$DJ$120,ROWS($A$10:$A61)+2,FALSE)","v":1398},{"$f":"HLOOKUP(BB$7,$I$66:$DJ$120,ROWS($A$10:$A61)+2,FALSE)","v":2140},{"$f":"HLOOKUP(BC$7,$I$66:$DJ$120,ROWS($A$10:$A61)+2,FALSE)","v":4},{"$f":"HLOOKUP(BD$7,$I$66:$DJ$120,ROWS($A$10:$A61)+2,FALSE)","v":451},{"$f":"HLOOKUP(BE$7,$I$66:$DJ$120,ROWS($A$10:$A61)+2,FALSE)","v":1803},{"$f":"HLOOKUP(BF$7,$I$66:$DJ$120,ROWS($A$10:$A61)+2,FALSE)","v":0},{"$f":"HLOOKUP(BG$7,$I$66:$DJ$120,ROWS($A$10:$A61)+2,FALSE)","v":168},{"$f":"HLOOKUP(BH$7,$I$66:$DJ$120,ROWS($A$10:$A61)+2,FALSE)","v":"N/A"},{"$f":"HLOOKUP(BI$7,$I$66:$DJ$120,ROWS($A$10:$A61)+2,FALSE)","v":0},{"$f":"HLOOKUP(BJ$7+0.5,$I$66:$DJ$120,ROWS($A$10:$A61)+2,FALSE)","v":4428},{"$f":"HLOOKUP(BK$7+0.5,$I$66:$DJ$120,ROWS($A$10:$A61)+2,FALSE)","v":62},{"$f":"HLOOKUP(BL$7+0.5,$I$66:$DJ$120,ROWS($A$10:$A61)+2,FALSE)","v":597},{"$f":"HLOOKUP(BM$7+0.5,$I$66:$DJ$120,ROWS($A$10:$A61)+2,FALSE)","v":276},{"$f":"HLOOKUP(BN$7+0.5,$I$66:$DJ$120,ROWS($A$10:$A61)+2,FALSE)","v":191},{"$f":"HLOOKUP(BO$7+0.5,$I$66:$DJ$120,ROWS($A$10:$A61)+2,FALSE)","v":1151},{"$f":"HLOOKUP(BP$7+0.5,$I$66:$DJ$120,ROWS($A$10:$A61)+2,FALSE)","v":2099},{"$f":"HLOOKUP(BQ$7+0.5,$I$66:$DJ$120,ROWS($A$10:$A61)+2,FALSE)","v":22},{"$f":"HLOOKUP(BR$7+0.5,$I$66:$DJ$120,ROWS($A$10:$A61)+2,FALSE)","v":189},{"$f":"HLOOKUP(BS$7+0.5,$I$66:$DJ$120,ROWS($A$10:$A61)+2,FALSE)","v":189},{"$f":"HLOOKUP(BT$7+0.5,$I$66:$DJ$120,ROWS($A$10:$A61)+2,FALSE)","v":1206},{"$f":"HLOOKUP(BU$7+0.5,$I$66:$DJ$120,ROWS($A$10:$A61)+2,FALSE)","v":80},{"$f":"HLOOKUP(BV$7+0.5,$I$66:$DJ$120,ROWS($A$10:$A61)+2,FALSE)","v":189},{"$f":"HLOOKUP(BW$7+0.5,$I$66:$DJ$120,ROWS($A$10:$A61)+2,FALSE)","v":1161},{"$f":"HLOOKUP(BX$7+0.5,$I$66:$DJ$120,ROWS($A$10:$A61)+2,FALSE)","v":409},{"$f":"HLOOKUP(BY$7+0.5,$I$66:$DJ$120,ROWS($A$10:$A61)+2,FALSE)","v":14},{"$f":"HLOOKUP(BZ$7+0.5,$I$66:$DJ$120,ROWS($A$10:$A61)+2,FALSE)","v":323},{"$f":"HLOOKUP(CA$7+0.5,$I$66:$DJ$120,ROWS($A$10:$A61)+2,FALSE)","v":364},{"$f":"HLOOKUP(CB$7+0.5,$I$66:$DJ$120,ROWS($A$10:$A61)+2,FALSE)","v":140},{"$f":"HLOOKUP(CC$7+0.5,$I$66:$DJ$120,ROWS($A$10:$A61)+2,FALSE)","v":204},{"$f":"HLOOKUP(CD$7+0.5,$I$66:$DJ$120,ROWS($A$10:$A61)+2,FALSE)","v":189},{"$f":"HLOOKUP(CE$7+0.5,$I$66:$DJ$120,ROWS($A$10:$A61)+2,FALSE)","v":189},{"$f":"HLOOKUP(CF$7+0.5,$I$66:$DJ$120,ROWS($A$10:$A61)+2,FALSE)","v":226},{"$f":"HLOOKUP(CG$7+0.5,$I$66:$DJ$120,ROWS($A$10:$A61)+2,FALSE)","v":545},{"$f":"HLOOKUP(CH$7+0.5,$I$66:$DJ$120,ROWS($A$10:$A61)+2,FALSE)","v":355},{"$f":"HLOOKUP(CI$7+0.5,$I$66:$DJ$120,ROWS($A$10:$A61)+2,FALSE)","v":117},{"$f":"HLOOKUP(CJ$7+0.5,$I$66:$DJ$120,ROWS($A$10:$A61)+2,FALSE)","v":274},{"$f":"HLOOKUP(CK$7+0.5,$I$66:$DJ$120,ROWS($A$10:$A61)+2,FALSE)","v":531},{"$f":"HLOOKUP(CL$7+0.5,$I$66:$DJ$120,ROWS($A$10:$A61)+2,FALSE)","v":957},{"$f":"HLOOKUP(CM$7+0.5,$I$66:$DJ$120,ROWS($A$10:$A61)+2,FALSE)","v":656},{"$f":"HLOOKUP(CN$7+0.5,$I$66:$DJ$120,ROWS($A$10:$A61)+2,FALSE)","v":189},{"$f":"HLOOKUP(CO$7+0.5,$I$66:$DJ$120,ROWS($A$10:$A61)+2,FALSE)","v":16},{"$f":"HLOOKUP(CP$7+0.5,$I$66:$DJ$120,ROWS($A$10:$A61)+2,FALSE)","v":101},{"$f":"HLOOKUP(CQ$7+0.5,$I$66:$DJ$120,ROWS($A$10:$A61)+2,FALSE)","v":149},{"$f":"HLOOKUP(CR$7+0.5,$I$66:$DJ$120,ROWS($A$10:$A61)+2,FALSE)","v":457},{"$f":"HLOOKUP(CS$7+0.5,$I$66:$DJ$120,ROWS($A$10:$A61)+2,FALSE)","v":313},{"$f":"HLOOKUP(CT$7+0.5,$I$66:$DJ$120,ROWS($A$10:$A61)+2,FALSE)","v":40},{"$f":"HLOOKUP(CU$7+0.5,$I$66:$DJ$120,ROWS($A$10:$A61)+2,FALSE)","v":555},{"$f":"HLOOKUP(CV$7+0.5,$I$66:$DJ$120,ROWS($A$10:$A61)+2,FALSE)","v":851},{"$f":"HLOOKUP(CW$7+0.5,$I$66:$DJ$120,ROWS($A$10:$A61)+2,FALSE)","v":254},{"$f":"HLOOKUP(CX$7+0.5,$I$66:$DJ$120,ROWS($A$10:$A61)+2,FALSE)","v":28},{"$f":"HLOOKUP(CY$7+0.5,$I$66:$DJ$120,ROWS($A$10:$A61)+2,FALSE)","v":307},{"$f":"HLOOKUP(CZ$7+0.5,$I$66:$DJ$120,ROWS($A$10:$A61)+2,FALSE)","v":1077},{"$f":"HLOOKUP(DA$7+0.5,$I$66:$DJ$120,ROWS($A$10:$A61)+2,FALSE)","v":66},{"$f":"HLOOKUP(DB$7+0.5,$I$66:$DJ$120,ROWS($A$10:$A61)+2,FALSE)","v":927},{"$f":"HLOOKUP(DC$7+0.5,$I$66:$DJ$120,ROWS($A$10:$A61)+2,FALSE)","v":1003},{"$f":"HLOOKUP(DD$7+0.5,$I$66:$DJ$120,ROWS($A$10:$A61)+2,FALSE)","v":8},{"$f":"HLOOKUP(DE$7+0.5,$I$66:$DJ$120,ROWS($A$10:$A61)+2,FALSE)","v":634},{"$f":"HLOOKUP(DF$7+0.5,$I$66:$DJ$120,ROWS($A$10:$A61)+2,FALSE)","v":1343},{"$f":"HLOOKUP(DG$7+0.5,$I$66:$DJ$120,ROWS($A$10:$A61)+2,FALSE)","v":189},{"$f":"HLOOKUP(DH$7+0.5,$I$66:$DJ$120,ROWS($A$10:$A61)+2,FALSE)","v":260},{"$f":"HLOOKUP(DI$7+0.5,$I$66:$DJ$120,ROWS($A$10:$A61)+2,FALSE)","v":"N/A"},{"$f":"HLOOKUP(DJ$7+0.5,$I$66:$DJ$120,ROWS($A$10:$A61)+2,FALSE)","v":189}]
[null,"Puerto Rico",3669195,3034,3403602,12450,238263,11889,{"$f":"HLOOKUP(I$7,$I$66:$DJ$120,ROWS($A$10:$A62)+2,FALSE)","v":22649},{"$f":"HLOOKUP(J$7,$I$66:$DJ$120,ROWS($A$10:$A62)+2,FALSE)","v":35},{"$f":"HLOOKUP(K$7,$I$66:$DJ$120,ROWS($A$10:$A62)+2,FALSE)","v":378},{"$f":"HLOOKUP(L$7,$I$66:$DJ$120,ROWS($A$10:$A62)+2,FALSE)","v":229},{"$f":"HLOOKUP(M$7,$I$66:$DJ$120,ROWS($A$10:$A62)+2,FALSE)","v":0},{"$f":"HLOOKUP(N$7,$I$66:$DJ$120,ROWS($A$10:$A62)+2,FALSE)","v":207},{"$f":"HLOOKUP(O$7,$I$66:$DJ$120,ROWS($A$10:$A62)+2,FALSE)","v":0},{"$f":"HLOOKUP(P$7,$I$66:$DJ$120,ROWS($A$10:$A62)+2,FALSE)","v":1849},{"$f":"HLOOKUP(Q$7,$I$66:$DJ$120,ROWS($A$10:$A62)+2,FALSE)","v":13},{"$f":"HLOOKUP(R$7,$I$66:$DJ$120,ROWS($A$10:$A62)+2,FALSE)","v":212},{"$f":"HLOOKUP(S$7,$I$66:$DJ$120,ROWS($A$10:$A62)+2,FALSE)","v":6614},{"$f":"HLOOKUP(T$7,$I$66:$DJ$120,ROWS($A$10:$A62)+2,FALSE)","v":247},{"$f":"HLOOKUP(U$7,$I$66:$DJ$120,ROWS($A$10:$A62)+2,FALSE)","v":0},{"$f":"HLOOKUP(V$7,$I$66:$DJ$120,ROWS($A$10:$A62)+2,FALSE)","v":13},{"$f":"HLOOKUP(W$7,$I$66:$DJ$120,ROWS($A$10:$A62)+2,FALSE)","v":624},{"$f":"HLOOKUP(X$7,$I$66:$DJ$120,ROWS($A$10:$A62)+2,FALSE)","v":784},{"$f":"HLOOKUP(Y$7,$I$66:$DJ$120,ROWS($A$10:$A62)+2,FALSE)","v":0},{"$f":"HLOOKUP(Z$7,$I$66:$DJ$120,ROWS($A$10:$A62)+2,FALSE)","v":38},{"$f":"HLOOKUP(AA$7,$I$66:$DJ$120,ROWS($A$10:$A62)+2,FALSE)","v":0},{"$f":"HLOOKUP(AB$7,$I$66:$DJ$120,ROWS($A$10:$A62)+2,FALSE)","v":0},{"$f":"HLOOKUP(AC$7,$I$66:$DJ$120,ROWS($A$10:$A62)+2,FALSE)","v":0},{"$f":"HLOOKUP(AD$7,$I$66:$DJ$120,ROWS($A$10:$A62)+2,FALSE)","v":70},{"$f":"HLOOKUP(AE$7,$I$66:$DJ$120,ROWS($A$10:$A62)+2,FALSE)","v":1412},{"$f":"HLOOKUP(AF$7,$I$66:$DJ$120,ROWS($A$10:$A62)+2,FALSE)","v":88},{"$f":"HLOOKUP(AG$7,$I$66:$DJ$120,ROWS($A$10:$A62)+2,FALSE)","v":0},{"$f":"HLOOKUP(AH$7,$I$66:$DJ$120,ROWS($A$10:$A62)+2,FALSE)","v":27},{"$f":"HLOOKUP(AI$7,$I$66:$DJ$120,ROWS($A$10:$A62)+2,FALSE)","v":101},{"$f":"HLOOKUP(AJ$7,$I$66:$DJ$120,ROWS($A$10:$A62)+2,FALSE)","v":0},{"$f":"HLOOKUP(AK$7,$I$66:$DJ$120,ROWS($A$10:$A62)+2,FALSE)","v":0},{"$f":"HLOOKUP(AL$7,$I$66:$DJ$120,ROWS($A$10:$A62)+2,FALSE)","v":0},{"$f":"HLOOKUP(AM$7,$I$66:$DJ$120,ROWS($A$10:$A62)+2,FALSE)","v":0},{"$f":"HLOOKUP(AN$7,$I$66:$DJ$120,ROWS($A$10:$A62)+2,FALSE)","v":2150},{"$f":"HLOOKUP(AO$7,$I$66:$DJ$120,ROWS($A$10:$A62)+2,FALSE)","v":51},{"$f":"HLOOKUP(AP$7,$I$66:$DJ$120,ROWS($A$10:$A62)+2,FALSE)","v":2615},{"$f":"HLOOKUP(AQ$7,$I$66:$DJ$120,ROWS($A$10:$A62)+2,FALSE)","v":200},{"$f":"HLOOKUP(AR$7,$I$66:$DJ$120,ROWS($A$10:$A62)+2,FALSE)","v":0},{"$f":"HLOOKUP(AS$7,$I$66:$DJ$120,ROWS($A$10:$A62)+2,FALSE)","v":0},{"$f":"HLOOKUP(AT$7,$I$66:$DJ$120,ROWS($A$10:$A62)+2,FALSE)","v":79},{"$f":"HLOOKUP(AU$7,$I$66:$DJ$120,ROWS($A$10:$A62)+2,FALSE)","v":0},{"$f":"HLOOKUP(AV$7,$I$66:$DJ$120,ROWS($A$10:$A62)+2,FALSE)","v":1978},{"$f":"HLOOKUP(AW$7,$I$66:$DJ$120,ROWS($A$10:$A62)+2,FALSE)","v":490},{"$f":"HLOOKUP(AX$7,$I$66:$DJ$120,ROWS($A$10:$A62)+2,FALSE)","v":3},{"$f":"HLOOKUP(AY$7,$I$66:$DJ$120,ROWS($A$10:$A62)+2,FALSE)","v":113},{"$f":"HLOOKUP(AZ$7,$I$66:$DJ$120,ROWS($A$10:$A62)+2,FALSE)","v":224},{"$f":"HLOOKUP(BA$7,$I$66:$DJ$120,ROWS($A$10:$A62)+2,FALSE)","v":444},{"$f":"HLOOKUP(BB$7,$I$66:$DJ$120,ROWS($A$10:$A62)+2,FALSE)","v":0},{"$f":"HLOOKUP(BC$7,$I$66:$DJ$120,ROWS($A$10:$A62)+2,FALSE)","v":0},{"$f":"HLOOKUP(BD$7,$I$66:$DJ$120,ROWS($A$10:$A62)+2,FALSE)","v":1077},{"$f":"HLOOKUP(BE$7,$I$66:$DJ$120,ROWS($A$10:$A62)+2,FALSE)","v":41},{"$f":"HLOOKUP(BF$7,$I$66:$DJ$120,ROWS($A$10:$A62)+2,FALSE)","v":14},{"$f":"HLOOKUP(BG$7,$I$66:$DJ$120,ROWS($A$10:$A62)+2,FALSE)","v":229},{"$f":"HLOOKUP(BH$7,$I$66:$DJ$120,ROWS($A$10:$A62)+2,FALSE)","v":0},{"$f":"HLOOKUP(BI$7,$I$66:$DJ$120,ROWS($A$10:$A62)+2,FALSE)","v":"N/A"},{"$f":"HLOOKUP(BJ$7+0.5,$I$66:$DJ$120,ROWS($A$10:$A62)+2,FALSE)","v":3662},{"$f":"HLOOKUP(BK$7+0.5,$I$66:$DJ$120,ROWS($A$10:$A62)+2,FALSE)","v":59},{"$f":"HLOOKUP(BL$7+0.5,$I$66:$DJ$120,ROWS($A$10:$A62)+2,FALSE)","v":457},{"$f":"HLOOKUP(BM$7+0.5,$I$66:$DJ$120,ROWS($A$10:$A62)+2,FALSE)","v":363},{"$f":"HLOOKUP(BN$7+0.5,$I$66:$DJ$120,ROWS($A$10:$A62)+2,FALSE)","v":210},{"$f":"HLOOKUP(BO$7+0.5,$I$66:$DJ$120,ROWS($A$10:$A62)+2,FALSE)","v":222},{"$f":"HLOOKUP(BP$7+0.5,$I$66:$DJ$120,ROWS($A$10:$A62)+2,FALSE)","v":210},{"$f":"HLOOKUP(BQ$7+0.5,$I$66:$DJ$120,ROWS($A$10:$A62)+2,FALSE)","v":928},{"$f":"HLOOKUP(BR$7+0.5,$I$66:$DJ$120,ROWS($A$10:$A62)+2,FALSE)","v":25},{"$f":"HLOOKUP(BS$7+0.5,$I$66:$DJ$120,ROWS($A$10:$A62)+2,FALSE)","v":315},{"$f":"HLOOKUP(BT$7+0.5,$I$66:$DJ$120,ROWS($A$10:$A62)+2,FALSE)","v":2336},{"$f":"HLOOKUP(BU$7+0.5,$I$66:$DJ$120,ROWS($A$10:$A62)+2,FALSE)","v":195},{"$f":"HLOOKUP(BV$7+0.5,$I$66:$DJ$120,ROWS($A$10:$A62)+2,FALSE)","v":210},{"$f":"HLOOKUP(BW$7+0.5,$I$66:$DJ$120,ROWS($A$10:$A62)+2,FALSE)","v":24},{"$f":"HLOOKUP(BX$7+0.5,$I$66:$DJ$120,ROWS($A$10:$A62)+2,FALSE)","v":537},{"$f":"HLOOKUP(BY$7+0.5,$I$66:$DJ$120,ROWS($A$10:$A62)+2,FALSE)","v":895},{"$f":"HLOOKUP(BZ$7+0.5,$I$66:$DJ$120,ROWS($A$10:$A62)+2,FALSE)","v":210},{"$f":"HLOOKUP(CA$7+0.5,$I$66:$DJ$120,ROWS($A$10:$A62)+2,FALSE)","v":62},{"$f":"HLOOKUP(CB$7+0.5,$I$66:$DJ$120,ROWS($A$10:$A62)+2,FALSE)","v":210},{"$f":"HLOOKUP(CC$7+0.5,$I$66:$DJ$120,ROWS($A$10:$A62)+2,FALSE)","v":210},{"$f":"HLOOKUP(CD$7+0.5,$I$66:$DJ$120,ROWS($A$10:$A62)+2,FALSE)","v":210},{"$f":"HLOOKUP(CE$7+0.5,$I$66:$DJ$120,ROWS($A$10:$A62)+2,FALSE)","v":124},{"$f":"HLOOKUP(CF$7+0.5,$I$66:$DJ$120,ROWS($A$10:$A62)+2,FALSE)","v":904},{"$f":"HLOOKUP(CG$7+0.5,$I$66:$DJ$120,ROWS($A$10:$A62)+2,FALSE)","v":127},{"$f":"HLOOKUP(CH$7+0.5,$I$66:$DJ$120,ROWS($A$10:$A62)+2,FALSE)","v":210},{"$f":"HLOOKUP(CI$7+0.5,$I$66:$DJ$120,ROWS($A$10:$A62)+2,FALSE)","v":35},{"$f":"HLOOKUP(CJ$7+0.5,$I$66:$DJ$120,ROWS($A$10:$A62)+2,FALSE)","v":165},{"$f":"HLOOKUP(CK$7+0.5,$I$66:$DJ$120,ROWS($A$10:$A62)+2,FALSE)","v":210},{"$f":"HLOOKUP(CL$7+0.5,$I$66:$DJ$120,ROWS($A$10:$A62)+2,FALSE)","v":210},{"$f":"HLOOKUP(CM$7+0.5,$I$66:$DJ$120,ROWS($A$10:$A62)+2,FALSE)","v":210},{"$f":"HLOOKUP(CN$7+0.5,$I$66:$DJ$120,ROWS($A$10:$A62)+2,FALSE)","v":210},{"$f":"HLOOKUP(CO$7+0.5,$I$66:$DJ$120,ROWS($A$10:$A62)+2,FALSE)","v":1149},{"$f":"HLOOKUP(CP$7+0.5,$I$66:$DJ$120,ROWS($A$10:$A62)+2,FALSE)","v":94},{"$f":"HLOOKUP(CQ$7+0.5,$I$66:$DJ$120,ROWS($A$10:$A62)+2,FALSE)","v":1171},{"$f":"HLOOKUP(CR$7+0.5,$I$66:$DJ$120,ROWS($A$10:$A62)+2,FALSE)","v":195},{"$f":"HLOOKUP(CS$7+0.5,$I$66:$DJ$120,ROWS($A$10:$A62)+2,FALSE)","v":210},{"$f":"HLOOKUP(CT$7+0.5,$I$66:$DJ$120,ROWS($A$10:$A62)+2,FALSE)","v":210},{"$f":"HLOOKUP(CU$7+0.5,$I$66:$DJ$120,ROWS($A$10:$A62)+2,FALSE)","v":117},{"$f":"HLOOKUP(CV$7+0.5,$I$66:$DJ$120,ROWS($A$10:$A62)+2,FALSE)","v":210},{"$f":"HLOOKUP(CW$7+0.5,$I$66:$DJ$120,ROWS($A$10:$A62)+2,FALSE)","v":1059},{"$f":"HLOOKUP(CX$7+0.5,$I$66:$DJ$120,ROWS($A$10:$A62)+2,FALSE)","v":718},{"$f":"HLOOKUP(CY$7+0.5,$I$66:$DJ$120,ROWS($A$10:$A62)+2,FALSE)","v":6},{"$f":"HLOOKUP(CZ$7+0.5,$I$66:$DJ$120,ROWS($A$10:$A62)+2,FALSE)","v":139},{"$f":"HLOOKUP(DA$7+0.5,$I$66:$DJ$120,ROWS($A$10:$A62)+2,FALSE)","v":368},{"$f":"HLOOKUP(DB$7+0.5,$I$66:$DJ$120,ROWS($A$10:$A62)+2,FALSE)","v":334},{"$f":"HLOOKUP(DC$7+0.5,$I$66:$DJ$120,ROWS($A$10:$A62)+2,FALSE)","v":210},{"$f":"HLOOKUP(DD$7+0.5,$I$66:$DJ$120,ROWS($A$10:$A62)+2,FALSE)","v":210},{"$f":"HLOOKUP(DE$7+0.5,$I$66:$DJ$120,ROWS($A$10:$A62)+2,FALSE)","v":1097},{"$f":"HLOOKUP(DF$7+0.5,$I$66:$DJ$120,ROWS($A$10:$A62)+2,FALSE)","v":42},{"$f":"HLOOKUP(DG$7+0.5,$I$66:$DJ$120,ROWS($A$10:$A62)+2,FALSE)","v":25},{"$f":"HLOOKUP(DH$7+0.5,$I$66:$DJ$120,ROWS($A$10:$A62)+2,FALSE)","v":373},{"$f":"HLOOKUP(DI$7+0.5,$I$66:$DJ$120,ROWS($A$10:$A62)+2,FALSE)","v":210},{"$f":"HLOOKUP(DJ$7+0.5,$I$66:$DJ$120,ROWS($A$10:$A62)+2,FALSE)","v":"N/A"}]
[]
[]
[]
[null,null,null,null,null,null,null,null,1,1.5,2,2.5,3,3.5,4,4.5,5,5.5,6,6.5,7,7.5,8,8.5,9,9.5,10,10.5,11,11.5,12,12.5,13,13.5,14,14.5,15,15.5,16,16.5,17,17.5,18,18.5,19,19.5,20,20.5,21,21.5,22,22.5,23,23.5,24,24.5,25,25.5,26,26.5,27,27.5,28,28.5,29,29.5,30,30.5,31,31.5,32,32.5,33,33.5,34,34.5,35,35.5,36,36.5,37,37.5,38,38.5,39,39.5,40,40.5,41,41.5,42,42.5,43,43.5,44,44.5,45,45.5,46,46.5,47,47.5,48,48.5,49,49.5,50,50.5,51,51.5,52,52.5,53,53.5]
[null,null,null,null,null,null,null,null,"Estimate","MOE","Estimate","MOE","Estimate","MOE","Estimate","MOE","Estimate","MOE","Estimate","MOE","Estimate","MOE","Estimate","MOE","Estimate","MOE","Estimate","MOE","Estimate","MOE","Estimate","MOE","Estimate","MOE","Estimate","MOE","Estimate","MOE","Estimate","MOE","Estimate","MOE","Estimate","MOE","Estimate","MOE","Estimate","MOE","Estimate","MOE","Estimate","MOE","Estimate","MOE","Estimate","MOE","Estimate","MOE","Estimate","MOE","Estimate","MOE","Estimate","MOE","Estimate","MOE","Estimate","MOE","Estimate","MOE","Estimate","MOE","Estimate","MOE","Estimate","MOE","Estimate","MOE","Estimate","MOE","Estimate","MOE","Estimate","MOE","Estimate","MOE","Estimate","MOE","Estimate","MOE","Estimate","MOE","Estimate","MOE","Estimate","MOE","Estimate","MOE","Estimate","MOE","Estimate","MOE","Estimate","MOE","Estimate","MOE","Estimate","MOE","Estimate","MOE","Estimate","MOE","Estimate","MOE"]
[null,null,null,null,null,null,null,null,6987416,77858,106806,10575,88850,10161,211816,17644,77226,6899,562343,20646,160623,10427,91295,7653,26631,3629,49732,4949,437202,19015,248892,13318,61940,7295,57831,7401,269008,13750,143228,10568,74516,6398,94180,10699,99256,7329,86593,8952,33729,4154,165041,11278,145869,10414,186505,13304,103253,6978,68597,7559,138404,11145,31204,4179,52809,6362,115943,8686,43277,4875,216369,12474,61431,5579,377800,15333,225147,14191,26563,3090,206049,11406,81009,8616,109795,8590,215127,11482,31065,4192,121426,9952,29383,4358,154243,9679,404839,17998,73211,7130,18172,2845,229227,11582,190644,11567,45956,5684,105370,8011,31991,4631,76218,8799]
[null,null,null,null,null,null,null,null,117726,9414,"N/A","N/A",1771,1098,1677,1060,1642,1063,3389,1286,348,295,2921,3231,232,301,399,359,20063,4141,19346,3711,1259,1292,137,173,6991,3376,1434,634,30,52,842,632,2686,856,2413,972,626,378,1606,987,112,146,2797,1250,327,342,3945,1492,1086,536,317,463,770,638,257,333,64,109,1996,2284,119,184,1108,442,2697,1820,284,333,2596,958,973,840,169,182,1075,474,0,190,2036,973,90,98,8710,2300,7973,2240,300,390,66,108,4935,2151,2621,1272,65,110,417,457,9,15,569,601]
[null,null,null,null,null,null,null,null,35084,4168,93,113,"N/A","N/A",2467,1902,190,258,3098,1921,1583,727,138,167,11,24,140,220,1188,476,556,419,1366,703,475,253,985,686,181,156,319,374,750,741,237,354,1077,1276,0,149,216,155,141,120,771,435,593,568,554,904,921,1014,248,185,5,12,532,485,520,744,128,136,226,188,940,613,470,404,0,149,319,286,616,733,2161,841,378,371,0,149,186,182,301,343,388,308,2492,1105,662,731,68,105,1488,1112,4548,1520,89,75,23,35,246,272,1044,962]
[null,null,null,null,null,null,null,null,222877,14358,833,587,5001,2214,"N/A","N/A",1066,740,49635,8755,10189,2958,1875,1213,0,229,389,389,3732,1842,2206,1147,2199,1109,2190,1183,10035,4129,5855,1956,4526,1745,1708,883,2134,1257,844,867,0,229,1918,1096,743,430,9396,5283,3297,1064,1226,1492,3872,1689,2431,1191,1393,798,8756,3417,228,229,3379,1757,4610,1448,3880,1363,2548,1269,1159,891,4682,2116,3219,1761,4613,1465,3436,1476,72,131,1774,1932,1657,1589,1680,647,12688,2976,10577,3336,0,229,2233,1094,13940,5479,70,118,6473,2066,2510,1288,871,639]
[null,null,null,null,null,null,null,null,69845,7292,691,573,560,669,439,381,"N/A","N/A",4077,2327,746,451,519,654,79,141,0,192,3067,1273,1446,759,13,27,179,271,3684,2143,1362,1007,851,773,2008,1142,213,311,2120,1015,30,53,133,176,781,901,1881,1130,232,396,1731,864,7314,2602,713,858,332,417,641,525,52,69,341,220,775,680,674,362,1664,1220,214,248,174,176,3761,1456,632,587,567,628,0,192,235,269,0,192,6462,2269,14767,2746,0,192,0,192,1245,769,1477,636,24,45,687,632,252,399,529,507]
[null,null,null,null,null,null,null,null,468428,17921,2087,927,7358,2501,35650,4362,2648,1019,"N/A","N/A",21245,3867,3073,1222,1302,1343,3240,1457,22094,4333,13303,3042,9864,2683,4796,1560,20834,3496,4673,1297,3324,1701,2810,1256,1201,507,3600,1751,1658,1175,7793,1924,10244,2069,12069,4117,5687,1375,2092,896,7677,1995,2599,1492,1955,821,36159,5100,1222,869,8053,2169,5904,2207,25629,3287,8708,2611,1392,898,10474,3555,5113,1763,18165,2845,8550,2017,1103,545,5758,2383,1004,686,8761,2325,37087,5877,8944,2725,745,504,15753,2373,36481,6266,832,463,5668,1495,2047,1810,1344,635]
[null,null,null,null,null,null,null,null,202124,11431,2340,1681,3191,1622,12338,3704,1615,1191,23234,3742,"N/A","N/A",1567,838,501,556,298,301,8075,2090,3250,1254,1852,832,1578,766,6027,1536,2116,1289,3510,1495,3718,1495,1361,1028,908,550,1358,1235,3303,1416,2157,1085,3225,1061,3055,1092,879,621,4552,1382,4079,1579,4582,1961,4061,1432,489,396,2863,1788,8797,2308,3998,1621,4756,1686,2249,1245,5527,2388,3824,2137,5543,2105,3348,1302,435,560,718,480,1340,1037,3193,1472,22390,4287,3856,1446,914,772,6281,2671,5524,2092,412,490,3995,1774,2942,923,476,556]
[null,null,null,null,null,null,null,null,71502,6552,101,120,180,299,1387,939,84,178,3699,1455,1502,618,"N/A","N/A",62,132,607,373,4771,1275,2000,988,587,523,133,224,1843,965,168,214,67,120,16,36,0,198,315,238,259,193,1267,744,8691,1998,692,736,76,120,69,116,365,297,206,277,62,103,160,189,1221,803,3809,1324,265,225,20015,4005,1029,593,0,198,1383,791,217,211,117,161,3668,1639,1488,645,997,476,0,198,123,141,1214,646,398,359,608,354,2555,1053,2255,1469,46,77,660,898,65,110,2105,1756]
[null,null,null,null,null,null,null,null,33912,3955,81,135,329,544,541,728,0,192,699,594,169,218,66,94,"N/A","N/A",154,144,810,449,639,422,201,171,441,347,34,35,210,235,0,192,7,17,305,391,0,192,0,192,4238,1274,806,558,43,71,201,299,0,192,713,684,0,192,12,28,0,192,0,192,6297,1765,0,192,3141,1083,388,256,0,192,664,608,27,45,0,192,8571,1728,131,217,153,179,0,192,221,259,883,755,475,738,0,192,1064,512,482,530,198,174,55,96,463,527,1008,971]
[null,null,null,null,null,null,null,null,48066,4295,13,29,135,217,43,71,81,93,3797,1233,452,321,981,472,128,125,"N/A","N/A",1254,651,937,572,372,396,68,113,1397,814,128,147,241,284,6,19,297,260,0,200,0,200,14129,2971,2048,789,1108,554,409,457,83,99,112,184,38,64,79,110,238,282,145,139,1035,605,0,200,2313,697,1716,760,285,360,306,224,0,200,51,64,1589,757,50,63,357,329,104,129,421,358,1083,491,75,118,445,489,7975,1285,476,300,120,138,946,668,0,200,0,200]
[null,null,null,null,null,null,null,null,498597,22483,12635,3566,7405,3412,8451,3258,3025,1241,22420,4065,9383,2988,11704,3121,1264,949,891,495,"N/A","N/A",38658,6270,3639,2081,312,268,19152,3962,11472,3254,1846,1137,2661,1410,5441,1674,6094,2316,4689,2049,15410,3515,13701,3380,19640,3920,4663,1888,5175,1968,7114,2753,559,424,3857,2208,3527,1810,4324,1798,25206,6219,1376,781,59288,7171,23983,5251,514,600,18191,3264,2600,1168,3315,2046,20821,4267,5002,2668,11953,2956,716,1027,10451,4102,25532,4638,2343,1891,2019,1616,16614,3087,6339,2687,4964,2202,7412,2467,846,725,21611,5621]
[null,null,null,null,null,null,null,null,271077,15123,18799,5015,1079,765,4292,1849,2112,1366,14949,3387,2325,1399,709,455,619,606,364,283,42666,5232,"N/A","N/A",1006,883,126,139,6080,1774,2442,1297,950,528,4513,2909,3686,1708,6541,3121,408,269,3708,1807,4436,1979,6992,2441,1808,1416,5380,3077,2514,989,246,211,4144,3300,774,559,132,150,8371,3016,791,421,14454,4681,19138,3931,201,221,6863,1986,1632,1107,727,472,5791,1896,337,504,16914,5257,536,730,16898,3610,15760,3421,793,1061,361,334,9438,3336,3701,1532,1340,778,2727,1401,504,775,1635,841]
[null,null,null,null,null,null,null,null,57542,5083,1268,846,844,670,2900,1208,242,260,10173,2201,950,493,731,739,784,877,222,275,3160,1311,2519,956,"N/A","N/A",112,199,1884,728,402,280,478,504,125,154,18,36,179,270,106,161,341,212,92,123,1303,1067,933,750,371,391,308,219,85,140,91,95,1548,795,107,141,564,697,354,366,4246,2556,2307,1256,32,54,970,677,685,502,2030,1378,870,468,58,70,1681,919,0,187,636,1018,3007,1122,1040,872,0,187,2523,1318,3790,1075,312,306,147,159,14,23,238,398]
[null,null,null,null,null,null,null,null,60336,6293,263,259,4510,2938,3543,1771,224,188,9021,2484,1813,1022,0,195,0,195,0,195,1733,1210,275,234,254,314,"N/A","N/A",390,342,296,352,318,424,479,503,120,170,51,110,0,195,0,195,396,625,615,524,566,352,62,106,384,304,1602,828,439,591,3581,1400,129,123,84,78,141,229,419,399,263,435,1201,1099,260,212,288,243,7170,1894,343,265,0,195,55,90,842,1132,296,356,1303,952,6059,2187,0,195,905,707,8991,2313,0,195,165,174,487,340,249,412]
[null,null,null,null,null,null,null,null,216204,11862,2823,1526,4119,3153,7657,1987,3185,1513,13930,2863,3271,1390,1819,959,277,303,1440,708,17548,3370,6042,2192,1269,735,393,356,"N/A","N/A",23491,5269,8420,1581,2533,1130,5569,1718,1315,761,693,510,2565,916,3507,1540,10274,2032,4496,1177,1521,581,13889,2736,304,275,827,520,2454,1187,590,334,3009,1033,1573,1619,6412,1874,4057,1663,105,115,8384,1627,1002,552,792,426,3012,1197,278,266,1582,783,1318,1474,3223,1222,11011,2803,951,595,49,81,5233,2524,3075,1254,352,288,14507,2936,58,76,2387,715]
[null,null,null,null,null,null,null,null,127874,8918,1562,1293,371,324,3975,1427,2016,1321,7649,2229,1930,759,1227,698,79,134,0,190,8595,3053,2543,1176,1057,717,1368,1278,23071,4221,"N/A","N/A",916,468,1321,946,10177,2220,2241,1537,275,388,480,256,952,703,7896,1777,1168,568,469,366,1824,1033,34,62,622,491,511,338,90,152,651,348,504,410,2518,816,3038,1840,70,94,11109,2141,844,522,505,617,3998,1871,49,84,3306,1917,235,231,3879,1292,6326,2074,123,127,530,349,1486,853,1028,744,216,194,2923,1307,117,170,132,220]
[null,null,null,null,null,null,null,null,70405,5539,207,259,967,651,1411,726,433,317,3297,1022,2891,1129,424,628,0,155,0,155,707,455,1938,1485,299,454,161,175,13725,2238,349,204,"N/A","N/A",1776,819,387,303,228,223,26,43,487,319,466,632,1687,954,5634,1117,408,306,3649,1188,370,338,6490,1780,2009,1634,0,155,185,209,421,347,2361,1104,1760,1268,604,377,993,482,532,417,811,476,388,292,65,108,172,200,2842,965,623,529,2334,1235,1482,940,38,71,720,854,856,577,115,181,2537,850,140,117,57,115]
[null,null,null,null,null,null,null,null,83640,7144,434,310,108,84,2028,858,998,697,4743,2121,5030,1611,412,519,74,85,128,141,1581,790,1146,666,287,282,264,358,2760,1019,863,458,1715,888,"N/A","N/A",1167,770,519,338,481,527,3180,2454,28,49,1947,1003,679,418,1517,1370,22033,4568,270,255,1648,701,657,359,27,37,1189,724,769,810,780,411,1223,840,379,558,1616,901,5022,1204,285,284,1494,1815,180,261,1102,670,104,147,1066,496,6575,1436,196,265,0,168,1986,1018,772,459,0,168,893,575,1285,791,775,1013]
[null,null,null,null,null,null,null,null,110031,9177,925,441,0,189,1818,916,1058,778,2130,1154,221,197,176,251,0,189,201,248,7400,1965,2725,892,63,80,36,69,4273,1415,11071,2846,536,410,253,212,"N/A","N/A",1399,906,71,137,2076,1444,1019,885,3178,1248,475,415,1248,868,2793,1158,216,238,471,517,1358,976,52,84,1289,1472,553,370,2174,1660,3916,1965,117,195,19617,3115,1256,853,459,328,1490,598,640,876,1387,814,0,189,16852,3762,4661,1468,140,202,151,152,5154,1719,1121,614,1174,566,581,414,57,93,192,262]
[null,null,null,null,null,null,null,null,99138,7082,3065,1401,288,266,2010,1529,2774,1144,3957,898,1202,983,358,264,0,198,195,168,5193,2120,4425,1541,688,808,230,269,1189,417,1549,827,468,441,312,466,1520,1286,"N/A","N/A",120,163,1221,1058,439,255,1163,875,698,445,10255,2829,1375,565,278,364,176,198,994,623,15,26,453,269,1028,867,1360,849,2134,1242,277,359,2641,2281,4235,3044,1531,1577,455,473,268,395,1573,1149,37,47,2495,938,30292,5028,179,275,87,149,2055,1060,1075,504,110,123,339,372,357,541,393,384]
[null,null,null,null,null,null,null,null,33818,4248,634,541,37,43,325,301,38,67,829,428,290,222,2481,668,238,228,239,177,4304,1908,507,415,177,214,0,157,675,358,164,157,275,452,523,641,158,217,138,218,"N/A","N/A",52,105,4439,1293,702,703,296,307,0,157,325,228,10,18,0,157,150,250,4302,1394,694,498,144,191,2589,1633,1439,1059,19,31,483,530,25,48,471,406,915,418,234,282,587,429,42,89,394,513,1637,1115,182,202,612,341,570,337,88,131,43,73,321,408,21,37,65,64]
[null,null,null,null,null,null,null,null,153979,9033,228,128,671,493,945,604,423,528,8595,1773,1796,837,1608,903,6652,1916,18492,3025,7825,1691,7113,1789,1170,815,389,366,2392,1052,1318,791,110,146,689,551,848,671,860,484,1526,1245,"N/A","N/A",3470,1341,2077,1273,810,503,1109,825,1469,944,73,103,0,204,1105,1033,232,160,9627,1880,797,676,9222,2041,6686,2008,0,204,3396,1110,845,592,276,247,14158,3380,197,162,2882,1696,0,204,1942,1093,3619,1102,223,230,40,69,22089,3805,1525,611,2027,859,353,514,80,132,779,654]
[null,null,null,null,null,null,null,null,139830,8282,1201,1083,225,345,1017,518,167,201,11556,2290,1388,972,9445,1884,399,579,676,358,11396,2715,3264,1666,733,860,412,695,2991,899,640,456,138,136,969,867,180,203,977,1200,4006,1526,2762,2048,"N/A","N/A",2629,1245,862,537,356,567,1261,654,596,719,637,727,163,158,12010,2630,8332,1949,199,276,19431,3914,3964,1384,61,111,1757,681,90,123,178,220,6538,1883,10182,2144,1621,989,44,72,371,355,5203,1491,548,411,2246,944,2984,1241,1673,741,911,855,441,311,0,204,4413,1542]
[null,null,null,null,null,null,null,null,139158,8465,3527,2060,3456,1793,3840,1382,2054,1024,7793,1752,3425,1462,1656,1087,0,167,256,259,17712,3844,4254,1566,630,469,882,675,9897,1863,7668,1841,1709,1026,1148,867,2578,1158,955,556,599,735,1035,431,2861,1135,"N/A","N/A",2671,1085,715,558,2509,1200,84,105,439,312,1215,610,73,120,1849,779,508,367,6087,2170,3405,1427,159,164,11224,2069,917,570,647,324,2864,1095,385,377,2185,1094,571,599,3106,973,9935,2208,642,582,0,167,2327,834,1430,669,417,301,4018,1002,841,655,908,857]
[null,null,null,null,null,null,null,null,101029,7052,123,150,893,619,2314,1071,951,599,6638,2072,2662,1023,74,131,86,143,367,391,2820,806,840,467,901,634,402,328,8209,2632,786,470,6175,1326,606,324,755,580,573,599,321,343,424,382,970,422,5164,2149,"N/A","N/A",549,593,1345,712,1457,859,1936,821,2682,1858,21,26,631,522,540,319,2416,913,845,520,7574,1390,1961,1059,546,399,1800,1169,870,509,0,143,447,428,5305,1596,874,489,3062,1108,919,742,177,161,1034,420,1413,656,92,98,19255,2960,224,178,54,91]
[null,null,null,null,null,null,null,null,68511,5606,8922,2639,117,102,556,405,2315,1360,4723,1290,484,453,54,74,0,206,415,434,6152,2463,3136,1397,369,429,55,82,2068,853,611,411,650,603,66,90,1626,841,7139,1767,0,206,265,239,1445,1561,1610,900,614,615,"N/A","N/A",1581,973,0,206,118,198,84,141,65,135,269,293,1075,1040,364,449,483,299,0,206,991,536,566,362,74,107,2568,1700,41,89,398,320,6,15,7683,2248,5243,1807,332,520,0,206,1453,805,286,252,303,411,1136,1061,0,206,318,411]
[null,null,null,null,null,null,null,null,149439,9288,1395,654,2043,2471,2356,1028,6168,1528,8386,1909,3144,1163,1516,1078,0,184,215,254,4513,1398,2964,972,871,517,560,439,20161,3086,4404,1588,4811,1405,20884,4170,1993,803,1728,905,291,295,716,317,463,306,2830,1176,2026,809,1641,884,"N/A","N/A",845,541,4860,1645,1544,830,769,750,1114,755,1016,718,2904,1260,3669,1527,977,446,3240,1684,6073,2312,777,538,1810,1085,359,424,267,237,361,296,2676,1056,10293,2994,1697,946,88,195,2684,1493,2518,843,196,214,1503,671,1120,900,709,463]
[null,null,null,null,null,null,null,null,33553,4015,449,318,1118,921,1971,1358,49,70,3033,1110,2856,1265,58,72,365,392,0,165,291,235,231,193,32,35,1543,1005,765,526,646,646,417,307,845,492,0,165,0,165,71,127,57,71,10,18,353,295,969,634,0,165,158,220,"N/A","N/A",384,392,688,543,0,165,889,589,264,389,422,377,1173,982,360,250,321,409,96,127,1959,914,840,640,0,165,77,92,227,233,266,237,1329,643,1232,623,53,71,278,288,3835,1160,14,28,146,184,2413,1709,353,522]
[null,null,null,null,null,null,null,null,52070,5507,169,271,721,785,1646,898,161,146,5124,1727,3245,962,381,372,0,155,29,48,1105,499,434,358,275,215,506,464,1415,777,615,541,9575,2602,3040,1210,352,457,222,253,122,127,318,344,0,155,683,435,1455,1009,424,430,1848,771,64,88,"N/A","N/A",240,165,0,155,119,101,242,326,544,349,829,872,292,213,268,250,1255,884,1556,1249,252,179,0,155,243,285,2999,1280,226,244,5343,2737,734,507,0,155,615,478,835,593,24,40,560,427,965,421,0,155]
[null,null,null,null,null,null,null,null,110345,9419,280,330,597,525,10142,4338,310,358,40114,5354,2714,1470,189,163,184,226,983,1261,2923,1608,1731,909,4093,2643,3929,1734,1668,1031,855,781,114,188,602,734,628,620,78,128,49,80,931,701,256,255,1663,831,1055,1329,203,279,335,237,1137,740,32,37,"N/A","N/A",0,234,2118,1709,2136,1429,1516,819,1333,895,0,234,1354,894,258,254,1691,695,570,581,86,148,165,273,588,557,96,150,7249,3923,3365,2105,0,234,1740,1369,4680,1646,0,234,2672,2369,933,702,153,258]
[null,null,null,null,null,null,null,null,37000,3717,193,237,0,184,246,210,22,37,547,334,403,313,1617,519,20,32,68,112,1970,813,535,449,0,184,0,184,478,402,470,394,47,78,0,184,0,184,0,184,3080,1064,222,177,15526,2811,155,165,104,145,160,258,153,181,230,378,33,54,186,231,"N/A","N/A",294,247,186,179,1471,510,1297,649,47,79,248,223,0,184,198,267,1015,569,608,301,588,757,86,102,126,159,605,438,158,271,2138,991,880,575,428,497,0,184,0,184,162,218,0,184]
[null,null,null,null,null,null,null,null,140194,8607,189,209,1198,790,3784,2287,57,97,5986,1519,2203,1931,1924,845,2100,1025,781,409,12907,3313,4268,2025,264,307,256,262,3690,1572,718,436,332,441,317,306,102,125,871,590,624,629,5335,2324,4675,1356,1889,1056,1261,1200,510,677,583,544,49,80,312,429,899,566,499,360,"N/A","N/A",355,537,40815,4703,2482,1416,61,103,1121,608,773,707,360,331,19733,2951,463,319,1586,789,0,198,1412,782,3801,1818,256,229,0,198,4458,1750,2454,1946,1252,1293,214,259,15,29,4312,1535]
[null,null,null,null,null,null,null,null,62130,7330,410,494,416,446,7444,3409,682,607,7066,2324,5525,1537,0,198,0,198,212,336,2806,1557,676,406,81,128,355,326,466,315,2030,2244,0,198,1333,1078,87,152,184,244,510,384,2277,1964,252,213,908,699,438,435,556,553,1183,877,544,340,353,312,2099,1159,114,130,245,229,"N/A","N/A",1445,781,522,300,264,310,1742,1115,234,203,916,655,492,284,0,198,145,204,240,281,899,577,13633,3724,303,218,71,120,425,337,924,616,0,198,340,342,283,313,99,158]
[null,null,null,null,null,null,null,null,282209,11956,1812,1002,6124,2270,2821,1100,1041,734,25761,3856,3724,1151,15123,3667,1124,588,3702,1051,29344,4718,10584,2320,1002,973,434,377,6914,1720,2198,958,928,783,838,397,2414,1223,1495,916,2915,1114,5037,1192,14646,2367,3936,947,1824,678,401,266,1417,595,391,282,579,553,1785,1037,2972,1172,41450,4170,461,276,"N/A","N/A",9336,1874,374,266,5191,1717,1425,887,2189,977,26596,3427,1393,663,6947,2791,112,121,2660,1051,9151,2132,773,482,3882,1242,10800,2343,2986,1367,631,470,1878,1014,688,645,10582,3796]
[null,null,null,null,null,null,null,null,265291,16660,5420,2338,3991,2185,4286,2860,327,322,15373,5531,3919,1645,1975,820,954,600,1135,591,28044,4471,16192,3163,1806,1362,675,615,5971,2065,3228,1379,654,530,4995,4644,1637,786,2936,1135,824,663,10485,2304,9053,4920,7530,2879,1294,825,1273,829,2638,1150,563,549,1056,1334,1048,716,2078,1738,10374,2643,1737,1297,18321,3621,"N/A","N/A",189,272,10187,3649,1390,684,1175,826,9450,2770,444,384,20427,3260,565,609,6057,2083,6621,2034,961,692,212,345,27302,4012,3295,1566,2780,1517,2291,1192,153,228,844,447]
[null,null,null,null,null,null,null,null,32510,3641,97,125,393,365,1313,613,249,293,1356,1011,1229,612,0,143,84,100,0,143,459,303,364,410,138,216,1209,817,571,504,130,171,208,178,75,96,0,143,422,441,50,72,10,16,369,359,328,324,12244,2374,80,143,330,284,1227,612,218,170,845,860,0,143,183,306,99,112,264,233,900,678,"N/A","N/A",286,248,59,68,264,256,652,637,0,143,1,2,1293,714,113,120,1862,1029,429,427,0,143,166,202,404,312,0,143,1398,601,139,102,76,110]
[null,null,null,null,null,null,null,null,191778,11799,1567,705,1637,1579,6763,3193,1952,1128,9032,1771,2690,1023,1189,663,263,270,587,449,16492,3173,4290,1143,1044,694,312,223,7027,1504,11588,2147,1146,614,657,519,12744,3507,1872,1784,0,187,4982,1578,2101,1008,14330,2896,1788,784,691,462,2003,873,101,172,1176,616,1851,1107,1992,1509,3936,1643,255,287,8784,2659,4572,1270,204,270,"N/A","N/A",2333,1263,1326,614,14292,2842,369,353,3826,1192,34,68,6468,2336,11987,4302,691,469,68,77,5425,2020,1979,965,7548,1866,2534,1620,1280,793,1607,1062]
[null,null,null,null,null,null,null,null,108878,7998,591,368,1137,857,3770,1522,6894,2060,8233,2583,3273,1511,97,138,66,110,191,234,6056,1588,3514,1642,140,148,21,35,2179,1297,2113,1098,580,536,4626,1250,1398,747,1934,727,271,425,432,312,160,103,1038,848,497,341,199,202,5781,1311,803,793,1979,1196,705,532,0,163,391,333,403,259,1858,925,1322,800,928,805,1608,791,"N/A","N/A",917,713,1116,492,152,179,2015,971,600,379,1700,1101,31595,4987,587,450,0,163,1013,610,1246,620,44,68,942,474,1763,1572,105,139]
[null,null,null,null,null,null,null,null,127906,9071,758,1071,1935,1062,7911,3054,988,1155,34214,4555,2110,659,949,564,251,264,349,291,3384,1934,1946,1914,2491,1173,6236,2097,1350,663,1371,1707,659,627,1263,1355,71,118,0,203,269,320,453,482,1423,768,1652,1174,1413,863,7,14,1172,664,1079,784,324,342,7222,3426,427,404,1322,771,537,449,2056,850,1099,740,313,340,949,789,2034,1244,"N/A","N/A",1407,775,0,203,370,292,417,395,673,420,4498,2398,3443,1781,176,203,1179,619,21862,3732,66,115,914,697,914,880,4,8]
[null,null,null,null,null,null,null,null,234291,11246,1332,684,759,664,2278,917,582,601,10672,2349,2491,1027,4150,993,5177,1304,1401,584,19299,3790,4627,1185,495,369,236,223,3902,1438,4086,1429,1176,960,2323,1449,4013,1826,615,294,608,328,17751,3723,6284,1711,4406,1278,853,592,1238,943,1761,1063,338,308,582,439,1057,501,1326,520,36133,4167,325,405,29436,3921,11254,3103,195,208,13075,2133,283,220,1594,1022,"N/A","N/A",799,558,3438,1057,142,140,3742,1402,7006,1441,1246,776,446,327,8419,1530,3688,1533,4631,1483,2426,1046,195,237,2723,1294]
[null,null,null,null,null,null,null,null,26769,2836,0,207,0,207,214,348,0,207,1949,734,301,271,2613,984,0,207,0,207,2230,915,476,361,0,207,107,199,373,375,41,95,82,145,374,433,211,318,121,185,228,177,472,323,7715,1532,178,117,27,60,0,207,109,163,0,207,0,207,0,207,941,745,1224,501,93,153,2776,1118,259,212,0,207,60,89,0,207,57,94,1125,725,"N/A","N/A",223,232,0,207,210,187,207,153,181,267,621,328,485,448,262,277,199,253,2,5,23,47,293,292]
[null,null,null,null,null,null,null,null,157644,12647,2999,1543,2421,1281,1971,1391,1333,1301,6592,1789,1000,598,1752,1005,841,746,589,681,15476,4230,16355,2798,712,626,55,68,2371,831,3249,1601,1379,1468,1885,1445,2454,1692,878,486,652,566,3807,1261,730,447,4483,1737,471,393,2163,1979,1522,1671,915,999,204,329,1017,722,372,280,4241,1445,598,609,11317,3991,23102,4356,271,213,6327,2177,1008,934,833,583,3523,1139,453,360,"N/A","N/A",62,107,3324,1252,8623,4005,181,188,91,115,7879,2193,2510,1257,1680,1114,341,291,632,647,2166,1534]
[null,null,null,null,null,null,null,null,27506,3893,0,155,554,492,1422,1445,659,778,1286,622,1021,604,0,155,0,155,0,155,101,102,69,104,0,155,186,262,267,235,285,378,4772,1898,144,212,211,208,0,155,0,155,254,222,113,179,239,201,5342,1981,129,155,354,294,232,258,1695,784,110,177,0,155,441,473,513,571,6,11,166,257,2060,1025,84,102,40,46,15,26,57,77,7,12,529,706,"N/A","N/A",0,155,1156,384,560,567,0,155,79,92,557,780,0,155,481,594,1310,880,0,155]
[null,null,null,null,null,null,null,null,170969,13046,9326,2717,531,465,1346,1176,7393,3038,7130,2041,1372,902,150,163,155,191,307,186,15491,3282,17507,4897,179,230,0,208,8593,2245,5645,1932,387,432,1805,1529,13884,2654,1901,908,9,17,1135,675,1690,1886,5983,2441,445,315,9172,2752,3795,1409,43,69,631,660,883,816,132,134,1396,850,381,330,4921,1493,9353,2989,50,92,5944,2044,3166,3444,726,610,3360,1716,14,31,5531,1883,181,156,"N/A","N/A",7009,1999,200,223,38,64,6098,1279,2852,2746,1385,764,1213,631,131,214,1083,1191]
[null,null,null,null,null,null,null,null,514726,23860,8747,2609,6670,2828,20073,5295,16461,3965,58992,7044,19126,3821,2927,1710,884,658,2276,1540,35777,6888,17401,3608,6106,2623,4379,3119,15064,3097,10265,3693,3236,1628,12766,4731,6616,2648,25513,5283,1357,1052,9443,3323,5035,1644,15654,4327,7691,2576,6048,2921,13473,3950,537,423,3837,2060,7793,2927,459,334,7578,2982,15225,2786,26155,6509,14956,4396,809,652,12315,2730,19302,4804,3743,1552,9107,2433,1297,1223,4075,1969,1486,1045,10788,3114,"N/A","N/A",5234,2551,349,344,13231,3158,15325,3090,663,563,5982,2396,2500,1485,5225,2173]
[null,null,null,null,null,null,null,null,85217,7587,486,558,2151,1259,6585,2560,422,455,18237,4113,3986,1191,562,590,0,192,132,141,1643,960,1052,595,1701,997,7538,3248,1447,825,545,398,290,250,1146,829,611,529,494,402,0,192,342,301,959,638,1099,724,939,634,143,163,511,372,1241,623,195,178,4315,1358,34,42,506,485,1707,1068,1937,1299,1653,1181,2,5,2584,1124,150,218,2037,1026,1496,808,0,192,309,259,128,146,549,419,4507,1517,"N/A","N/A",122,205,2413,1459,4825,2196,270,268,158,153,1058,609,0,192]
[null,null,null,null,null,null,null,null,20463,1946,0,145,580,441,310,325,0,145,819,508,529,493,2105,608,107,135,27,53,366,199,101,99,143,85,0,145,386,245,258,210,0,145,7,13,627,660,41,74,322,200,361,233,2378,606,335,345,206,255,0,145,69,86,0,145,0,145,15,26,2244,783,962,305,56,105,3723,904,250,193,0,145,383,485,0,145,124,128,389,231,401,411,21,36,0,145,327,498,185,147,182,212,"N/A","N/A",740,420,156,159,53,81,137,115,38,62,19,45]
[null,null,null,null,null,null,null,null,257130,14025,4930,2057,3202,1687,4679,2151,645,606,19371,4241,4908,2334,5376,2730,961,652,6854,1711,17773,3494,8715,1962,2917,1400,434,430,4000,1213,2703,1067,1503,899,892,645,3630,1551,2496,1642,2855,1930,22051,3143,5386,2316,7323,3026,834,361,1682,1191,2277,1178,617,714,256,289,1717,961,1344,798,7327,2046,1014,604,12455,2816,22753,4584,462,729,9570,2217,853,477,3499,1935,12009,2497,1897,1477,6612,2032,908,841,7482,2452,11655,3004,1426,641,173,138,"N/A","N/A",4615,1717,9041,2596,858,745,190,274,1222,779]
[null,null,null,null,null,null,null,null,208507,13639,1821,1049,5266,2233,12397,3133,756,565,38421,4474,3938,1215,1026,533,0,201,358,254,6094,1777,8705,3348,5940,2264,10895,4263,2062,821,2303,1315,1000,465,2820,1740,1271,936,1016,1018,1313,1689,1899,808,1580,757,3720,1212,1543,898,1110,762,3307,2181,2125,934,673,441,4925,1696,824,605,2006,987,1569,1254,4512,1322,3870,1452,189,304,2686,1217,765,573,29168,5436,2296,1378,463,319,1519,1267,227,225,2342,1116,15491,4361,4789,1640,119,196,4233,1698,"N/A","N/A",157,186,1491,892,1507,870,1083,1061]
[null,null,null,null,null,null,null,null,50068,4934,221,228,598,566,50,95,225,361,1442,1085,124,160,594,401,89,102,300,231,2949,1076,1296,898,147,248,120,127,1331,1134,210,200,0,184,0,184,515,259,326,313,45,75,7515,2257,236,196,459,263,0,184,0,184,309,345,60,101,78,140,293,235,160,223,1431,611,0,184,2017,866,3865,1241,0,184,8545,1913,97,113,132,203,4205,1569,284,344,1857,1316,0,184,546,449,1574,1047,114,216,23,33,5561,1534,83,137,"N/A","N/A",42,69,0,184,680,450]
[null,null,null,null,null,null,null,null,109439,8715,708,761,432,323,4045,1532,335,285,6637,2054,2592,1457,993,1397,219,276,123,170,4338,1103,1745,1106,1108,1597,566,434,25521,4568,4017,2027,3306,1757,418,446,1040,570,850,563,12,21,147,141,733,578,5623,1353,17927,2244,983,924,2090,1117,143,93,483,405,663,345,480,364,378,352,714,502,2213,835,2120,967,1383,1273,1358,628,118,119,1057,680,1294,781,368,407,377,312,590,487,744,527,1984,836,890,652,342,311,2573,1465,1555,1071,1090,1630,"N/A","N/A",14,23,728,715]
[null,null,null,null,null,null,null,null,30651,4428,51,62,761,597,369,276,174,191,2539,1151,6905,2099,11,22,0,189,0,189,1525,1206,46,80,0,189,2140,1161,450,409,6,14,342,323,286,364,83,140,114,204,0,189,0,189,152,226,849,545,357,355,70,117,241,274,1105,531,1784,957,427,656,0,189,7,16,76,101,113,149,395,457,237,313,22,40,462,555,960,851,284,254,13,28,219,307,1043,1077,69,66,1398,927,2140,1003,4,8,451,634,1803,1343,0,189,168,260,"N/A","N/A",0,189]
[null,null,null,null,null,null,null,null,22649,3662,35,59,378,457,229,363,0,210,207,222,0,210,1849,928,13,25,212,315,6614,2336,247,195,0,210,13,24,624,537,784,895,0,210,38,62,0,210,0,210,0,210,70,124,1412,904,88,127,0,210,27,35,101,165,0,210,0,210,0,210,0,210,2150,1149,51,94,2615,1171,200,195,0,210,0,210,79,117,0,210,1978,1059,490,718,3,6,113,139,224,368,444,334,0,210,0,210,1077,1097,41,42,14,25,229,373,0,210,"N/A","N/A"]

{"sheet":"Migration 2012","index":12,"n_rows":120,"n_cols":114,"rows_kept":120,"cut":false,"hidden":true,"merged":[[6,2,7,3],[6,4,7,5],[6,6,7,7]]}
[]
[null,"Table 1.  State-to-State Migration Flows*: 2012"]
[null,"Dataset: 2012 American Community Survey 1-Year Estimates"]
[null,"Universe: Population 1 year and over"]
[null,"Source: http://www.census.gov/hhes/migration/files/acs/st-to-st/State_to_State_Migrations_Table_2012.xls"]
[null,null,null,null,null,null,null,null,"ESTIMATES",null,null,null,null,null,null,null,null,null,null,null,null,null,null,null,null,null,null,null,null,null,null,null,null,null,null,null,null,null,null,null,null,null,null,null,null,null,null,null,null,null,null,null,null,null,null,null,null,null,null,null,null,"Margin of Error"]
[null,"Current residence in --","Population 1 year and over",null,"Same residence 1 year ago",null,"Different residence, same state 1 year ago",null,1,2,3,4,5,6,7,8,9,10,11,12,13,14,15,16,17,18,19,20,21,22,23,24,25,26,27,28,29,30,31,32,33,34,35,36,37,38,39,40,41,42,43,44,45,46,47,48,49,50,51,52,53,1,2,3,4,5,6,7,8,9,10,11,12,13,14,15,16,17,18,19,20,21,22,23,24,25,26,27,28,29,30,31,32,33,34,35,36,37,38,39,40,41,42,43,44,45,46,47,48,49,50,51,52,53]
[null,null,null,null,null,null,null,null,"State of Residence Last year (Estimate)",null,null,null,null,null,null,null,null,null,null,null,null,null,null,null,null,null,null,null,null,null,null,null,null,null,null,null,null,null,null,null,null,null,null,null,null,null,null,null,null,null,null,null,null,null,null,null,null,null,null,null,null,"State of Residence Last year (Margin of Error)"]
[null,"Column1","Estimate","MOE","Estimate2","MOE3","Estimate4","MOE5","TOTAL","Alabama","Alaska","Arizona","Arkansas","California","Colorado","Connecticut","Delaware","District of Columbia ","Florida","Georgia","Hawaii","Idaho","Illinois","Indiana","Iowa","Kansas","Kentucky","Louisiana","Maine","Maryland","Massachusetts","Michigan","Minnesota","Mississippi","Missouri","Montana","Nebraska","Nevada","New Hampshire","New Jersey","New Mexico","New York","North Carolina","North Dakota","Ohio","Oklahoma","Oregon","Pennsylvania","Rhode Island","South Carolina","South Dakota","Tennessee","Texas","Utah","Vermont","Virginia","Washington","West Virginia","Wisconsin","Wyoming","Puerto Rico","TOTAL6","Alabama7","Alaska8","Arizona9","Arkansas10","California11","Colorado12","Connecticut13","Delaware14","District of Columbia 15","Florida16","Georgia17","Hawaii18","Idaho19","Illinois20","Indiana21","Iowa22","Kansas23","Kentucky24","Louisiana25","Maine26","Maryland27","Massachusetts28","Michigan29","Minnesota30","Mississippi31","Missouri32","Montana33","Nebraska34","Nevada35","New Hampshire36","New Jersey37","New Mexico38","New York39","North Carolina40","North Dakota41","Ohio42","Oklahoma43","Oregon44","Pennsylvania45","Rhode Island46","South Carolina47","South Dakota48","Tennessee49","Texas50","Utah51","Vermont52","Virginia53","Washington54","West Virginia55","Wisconsin56","Wyoming57","Puerto Rico58"]
[null,"United States",310212755,25814,263612596,229733,37696597,211307,{"$f":"HLOOKUP(I$7,$I$66:$DJ$120,ROWS($A$10:$A10)+2,FALSE)","v":7070345},{"$f":"HLOOKUP(J$7,$I$66:$DJ$120,ROWS($A$10:$A10)+2,FALSE)","v":109210},{"$f":"HLOOKUP(K$7,$I$66:$DJ$120,ROWS($A$10:$A10)+2,FALSE)","v":84068},{"$f":"HLOOKUP(L$7,$I$66:$DJ$120,ROWS($A$10:$A10)+2,FALSE)","v":206842},{"$f":"HLOOKUP(M$7,$I$66:$DJ$120,ROWS($A$10:$A10)+2,FALSE)","v":64967},{"$f":"HLOOKUP(N$7,$I$66:$DJ$120,ROWS($A$10:$A10)+2,FALSE)","v":566986},{"$f":"HLOOKUP(O$7,$I$66:$DJ$120,ROWS($A$10:$A10)+2,FALSE)","v":161530},{"$f":"HLOOKUP(P$7,$I$66:$DJ$120,ROWS($A$10:$A10)+2,FALSE)","v":87023},{"$f":"HLOOKUP(Q$7,$I$66:$DJ$120,ROWS($A$10:$A10)+2,FALSE)","v":25149},{"$f":"HLOOKUP(R$7,$I$66:$DJ$120,ROWS($A$10:$A10)+2,FALSE)","v":59513},{"$f":"HLOOKUP(S$7,$I$66:$DJ$120,ROWS($A$10:$A10)+2,FALSE)","v":428325},{"$f":"HLOOKUP(T$7,$I$66:$DJ$120,ROWS($A$10:$A10)+2,FALSE)","v":252262},{"$f":"HLOOKUP(U$7,$I$66:$DJ$120,ROWS($A$10:$A10)+2,FALSE)","v":61509},{"$f":"HLOOKUP(V$7,$I$66:$DJ$120,ROWS($A$10:$A10)+2,FALSE)","v":55191},{"$f":"HLOOKUP(W$7,$I$66:$DJ$120,ROWS($A$10:$A10)+2,FALSE)","v":277953},{"$f":"HLOOKUP(X$7,$I$66:$DJ$120,ROWS($A$10:$A10)+2,FALSE)","v":144597},{"$f":"HLOOKUP(Y$7,$I$66:$DJ$120,ROWS($A$10:$A10)+2,FALSE)","v":73325},{"$f":"HLOOKUP(Z$7,$I$66:$DJ$120,ROWS($A$10:$A10)+2,FALSE)","v":93134},{"$f":"HLOOKUP(AA$7,$I$66:$DJ$120,ROWS($A$10:$A10)+2,FALSE)","v":103004},{"$f":"HLOOKUP(AB$7,$I$66:$DJ$120,ROWS($A$10:$A10)+2,FALSE)","v":95956},{"$f":"HLOOKUP(AC$7,$I$66:$DJ$120,ROWS($A$10:$A10)+2,FALSE)","v":38574},{"$f":"HLOOKUP(AD$7,$I$66:$DJ$120,ROWS($A$10:$A10)+2,FALSE)","v":157664},{"$f":"HLOOKUP(AE$7,$I$66:$DJ$120,ROWS($A$10:$A10)+2,FALSE)","v":158156},{"$f":"HLOOKUP(AF$7,$I$66:$DJ$120,ROWS($A$10:$A10)+2,FALSE)","v":175733},{"$f":"HLOOKUP(AG$7,$I$66:$DJ$120,ROWS($A$10:$A10)+2,FALSE)","v":115946},{"$f":"HLOOKUP(AH$7,$I$66:$DJ$120,ROWS($A$10:$A10)+2,FALSE)","v":66947},{"$f":"HLOOKUP(AI$7,$I$66:$DJ$120,ROWS($A$10:$A10)+2,FALSE)","v":142754},{"$f":"HLOOKUP(AJ$7,$I$66:$DJ$120,ROWS($A$10:$A10)+2,FALSE)","v":33832},{"$f":"HLOOKUP(AK$7,$I$66:$DJ$120,ROWS($A$10:$A10)+2,FALSE)","v":48816},{"$f":"HLOOKUP(AL$7,$I$66:$DJ$120,ROWS($A$10:$A10)+2,FALSE)","v":98882},{"$f":"HLOOKUP(AM$7,$I$66:$DJ$120,ROWS($A$10:$A10)+2,FALSE)","v":38696},{"$f":"HLOOKUP(AN$7,$I$66:$DJ$120,ROWS($A$10:$A10)+2,FALSE)","v":219202},{"$f":"HLOOKUP(AO$7,$I$66:$DJ$120,ROWS($A$10:$A10)+2,FALSE)","v":63921},{"$f":"HLOOKUP(AP$7,$I$66:$DJ$120,ROWS($A$10:$A10)+2,FALSE)","v":405864},{"$f":"HLOOKUP(AQ$7,$I$66:$DJ$120,ROWS($A$10:$A10)+2,FALSE)","v":238663},{"$f":"HLOOKUP(AR$7,$I$66:$DJ$120,ROWS($A$10:$A10)+2,FALSE)","v":23959},{"$f":"HLOOKUP(AS$7,$I$66:$DJ$120,ROWS($A$10:$A10)+2,FALSE)","v":199202},{"$f":"HLOOKUP(AT$7,$I$66:$DJ$120,ROWS($A$10:$A10)+2,FALSE)","v":102572},{"$f":"HLOOKUP(AU$7,$I$66:$DJ$120,ROWS($A$10:$A10)+2,FALSE)","v":108182},{"$f":"HLOOKUP(AV$7,$I$66:$DJ$120,ROWS($A$10:$A10)+2,FALSE)","v":237156},{"$f":"HLOOKUP(AW$7,$I$66:$DJ$120,ROWS($A$10:$A10)+2,FALSE)","v":30498},{"$f":"HLOOKUP(AX$7,$I$66:$DJ$120,ROWS($A$10:$A10)+2,FALSE)","v":127418},{"$f":"HLOOKUP(AY$7,$I$66:$DJ$120,ROWS($A$10:$A10)+2,FALSE)","v":22534},{"$f":"HLOOKUP(AZ$7,$I$66:$DJ$120,ROWS($A$10:$A10)+2,FALSE)","v":163843},{"$f":"HLOOKUP(BA$7,$I$66:$DJ$120,ROWS($A$10:$A10)+2,FALSE)","v":402187},{"$f":"HLOOKUP(BB$7,$I$66:$DJ$120,ROWS($A$10:$A10)+2,FALSE)","v":82165},{"$f":"HLOOKUP(BC$7,$I$66:$DJ$120,ROWS($A$10:$A10)+2,FALSE)","v":20056},{"$f":"HLOOKUP(BD$7,$I$66:$DJ$120,ROWS($A$10:$A10)+2,FALSE)","v":238540},{"$f":"HLOOKUP(BE$7,$I$66:$DJ$120,ROWS($A$10:$A10)+2,FALSE)","v":180462},{"$f":"HLOOKUP(BF$7,$I$66:$DJ$120,ROWS($A$10:$A10)+2,FALSE)","v":47425},{"$f":"HLOOKUP(BG$7,$I$66:$DJ$120,ROWS($A$10:$A10)+2,FALSE)","v":97724},{"$f":"HLOOKUP(BH$7,$I$66:$DJ$120,ROWS($A$10:$A10)+2,FALSE)","v":32228},{"$f":"HLOOKUP(BI$7,$I$66:$DJ$120,ROWS($A$10:$A10)+2,FALSE)","v":74500},{"$f":"HLOOKUP(BJ$7+0.5,$I$66:$DJ$120,ROWS($A$10:$A10)+2,FALSE)","v":58599},{"$f":"HLOOKUP(BK$7+0.5,$I$66:$DJ$120,ROWS($A$10:$A10)+2,FALSE)","v":9027},{"$f":"HLOOKUP(BL$7+0.5,$I$66:$DJ$120,ROWS($A$10:$A10)+2,FALSE)","v":7600},{"$f":"HLOOKUP(BM$7+0.5,$I$66:$DJ$120,ROWS($A$10:$A10)+2,FALSE)","v":12859},{"$f":"HLOOKUP(BN$7+0.5,$I$66:$DJ$120,ROWS($A$10:$A10)+2,FALSE)","v":6563},{"$f":"HLOOKUP(BO$7+0.5,$I$66:$DJ$120,ROWS($A$10:$A10)+2,FALSE)","v":19755},{"$f":"HLOOKUP(BP$7+0.5,$I$66:$DJ$120,ROWS($A$10:$A10)+2,FALSE)","v":10348},{"$f":"HLOOKUP(BQ$7+0.5,$I$66:$DJ$120,ROWS($A$10:$A10)+2,FALSE)","v":5968},{"$f":"HLOOKUP(BR$7+0.5,$I$66:$DJ$120,ROWS($A$10:$A10)+2,FALSE)","v":3775},{"$f":"HLOOKUP(BS$7+0.5,$I$66:$DJ$120,ROWS($A$10:$A10)+2,FALSE)","v":6154},{"$f":"HLOOKUP(BT$7+0.5,$I$66:$DJ$120,ROWS($A$10:$A10)+2,FALSE)","v":18406},{"$f":"HLOOKUP(BU$7+0.5,$I$66:$DJ$120,ROWS($A$10:$A10)+2,FALSE)","v":12868},{"$f":"HLOOKUP(BV$7+0.5,$I$66:$DJ$120,ROWS($A$10:$A10)+2,FALSE)","v":6100},{"$f":"HLOOKUP(BW$7+0.5,$I$66:$DJ$120,ROWS($A$10:$A10)+2,FALSE)","v":6257},{"$f":"HLOOKUP(BX$7+0.5,$I$66:$DJ$120,ROWS($A$10:$A10)+2,FALSE)","v":12722},{"$f":"HLOOKUP(BY$7+0.5,$I$66:$DJ$120,ROWS($A$10:$A10)+2,FALSE)","v":8929},{"$f":"HLOOKUP(BZ$7+0.5,$I$66:$DJ$120,ROWS($A$10:$A10)+2,FALSE)","v":6129},{"$f":"HLOOKUP(CA$7+0.5,$I$66:$DJ$120,ROWS($A$10:$A10)+2,FALSE)","v":7286},{"$f":"HLOOKUP(CB$7+0.5,$I$66:$DJ$120,ROWS($A$10:$A10)+2,FALSE)","v":7490},{"$f":"HLOOKUP(CC$7+0.5,$I$66:$DJ$120,ROWS($A$10:$A10)+2,FALSE)","v":7745},{"$f":"HLOOKUP(CD$7+0.5,$I$66:$DJ$120,ROWS($A$10:$A10)+2,FALSE)","v":5351},{"$f":"HLOOKUP(CE$7+0.5,$I$66:$DJ$120,ROWS($A$10:$A10)+2,FALSE)","v":9686},{"$f":"HLOOKUP(CF$7+0.5,$I$66:$DJ$120,ROWS($A$10:$A10)+2,FALSE)","v":10755},{"$f":"HLOOKUP(CG$7+0.5,$I$66:$DJ$120,ROWS($A$10:$A10)+2,FALSE)","v":9302},{"$f":"HLOOKUP(CH$7+0.5,$I$66:$DJ$120,ROWS($A$10:$A10)+2,FALSE)","v":8402},{"$f":"HLOOKUP(CI$7+0.5,$I$66:$DJ$120,ROWS($A$10:$A10)+2,FALSE)","v":7206},{"$f":"HLOOKUP(CJ$7+0.5,$I$66:$DJ$120,ROWS($A$10:$A10)+2,FALSE)","v":9402},{"$f":"HLOOKUP(CK$7+0.5,$I$66:$DJ$120,ROWS($A$10:$A10)+2,FALSE)","v":4879},{"$f":"HLOOKUP(CL$7+0.5,$I$66:$DJ$120,ROWS($A$10:$A10)+2,FALSE)","v":4967},{"$f":"HLOOKUP(CM$7+0.5,$I$66:$DJ$120,ROWS($A$10:$A10)+2,FALSE)","v":9332},{"$f":"HLOOKUP(CN$7+0.5,$I$66:$DJ$120,ROWS($A$10:$A10)+2,FALSE)","v":3364},{"$f":"HLOOKUP(CO$7+0.5,$I$66:$DJ$120,ROWS($A$10:$A10)+2,FALSE)","v":11087},{"$f":"HLOOKUP(CP$7+0.5,$I$66:$DJ$120,ROWS($A$10:$A10)+2,FALSE)","v":5867},{"$f":"HLOOKUP(CQ$7+0.5,$I$66:$DJ$120,ROWS($A$10:$A10)+2,FALSE)","v":15692},{"$f":"HLOOKUP(CR$7+0.5,$I$66:$DJ$120,ROWS($A$10:$A10)+2,FALSE)","v":13414},{"$f":"HLOOKUP(CS$7+0.5,$I$66:$DJ$120,ROWS($A$10:$A10)+2,FALSE)","v":3373},{"$f":"HLOOKUP(CT$7+0.5,$I$66:$DJ$120,ROWS($A$10:$A10)+2,FALSE)","v":10288},{"$f":"HLOOKUP(CU$7+0.5,$I$66:$DJ$120,ROWS($A$10:$A10)+2,FALSE)","v":9213},{"$f":"HLOOKUP(CV$7+0.5,$I$66:$DJ$120,ROWS($A$10:$A10)+2,FALSE)","v":7867},{"$f":"HLOOKUP(CW$7+0.5,$I$66:$DJ$120,ROWS($A$10:$A10)+2,FALSE)","v":10246},{"$f":"HLOOKUP(CX$7+0.5,$I$66:$DJ$120,ROWS($A$10:$A10)+2,FALSE)","v":3414},{"$f":"HLOOKUP(CY$7+0.5,$I$66:$DJ$120,ROWS($A$10:$A10)+2,FALSE)","v":8502},{"$f":"HLOOKUP(CZ$7+0.5,$I$66:$DJ$120,ROWS($A$10:$A10)+2,FALSE)","v":2998},{"$f":"HLOOKUP(DA$7+0.5,$I$66:$DJ$120,ROWS($A$10:$A10)+2,FALSE)","v":8717},{"$f":"HLOOKUP(DB$7+0.5,$I$66:$DJ$120,ROWS($A$10:$A10)+2,FALSE)","v":15471},{"$f":"HLOOKUP(DC$7+0.5,$I$66:$DJ$120,ROWS($A$10:$A10)+2,FALSE)","v":8304},{"$f":"HLOOKUP(DD$7+0.5,$I$66:$DJ$120,ROWS($A$10:$A10)+2,FALSE)","v":2967},{"$f":"HLOOKUP(DE$7+0.5,$I$66:$DJ$120,ROWS($A$10:$A10)+2,FALSE)","v":11611},{"$f":"HLOOKUP(DF$7+0.5,$I$66:$DJ$120,ROWS($A$10:$A10)+2,FALSE)","v":9674},{"$f":"HLOOKUP(DG$7+0.5,$I$66:$DJ$120,ROWS($A$10:$A10)+2,FALSE)","v":5262},{"$f":"HLOOKUP(DH$7+0.5,$I$66:$DJ$120,ROWS($A$10:$A10)+2,FALSE)","v":5859},{"$f":"HLOOKUP(DI$7+0.5,$I$66:$DJ$120,ROWS($A$10:$A10)+2,FALSE)","v":5150},{"$f":"HLOOKUP(DJ$7+0.5,$I$66:$DJ$120,ROWS($A$10:$A10)+2,FALSE)","v":8156}]
[null,"Alabama",4764428,3589,4054260,21464,590326,19701,{"$f":"HLOOKUP(I$7,$I$66:$DJ$120,ROWS($A$10:$A11)+2,FALSE)","v":104600},{"$f":"HLOOKUP(J$7,$I$66:$DJ$120,ROWS($A$10:$A11)+2,FALSE)","v":"N/A"},{"$f":"HLOOKUP(K$7,$I$66:$DJ$120,ROWS($A$10:$A11)+2,FALSE)","v":1004},{"$f":"HLOOKUP(L$7,$I$66:$DJ$120,ROWS($A$10:$A11)+2,FALSE)","v":962},{"$f":"HLOOKUP(M$7,$I$66:$DJ$120,ROWS($A$10:$A11)+2,FALSE)","v":660},{"$f":"HLOOKUP(N$7,$I$66:$DJ$120,ROWS($A$10:$A11)+2,FALSE)","v":3077},{"$f":"HLOOKUP(O$7,$I$66:$DJ$120,ROWS($A$10:$A11)+2,FALSE)","v":1386},{"$f":"HLOOKUP(P$7,$I$66:$DJ$120,ROWS($A$10:$A11)+2,FALSE)","v":284},{"$f":"HLOOKUP(Q$7,$I$66:$DJ$120,ROWS($A$10:$A11)+2,FALSE)","v":42},{"$f":"HLOOKUP(R$7,$I$66:$DJ$120,ROWS($A$10:$A11)+2,FALSE)","v":162},{"$f":"HLOOKUP(S$7,$I$66:$DJ$120,ROWS($A$10:$A11)+2,FALSE)","v":11244},{"$f":"HLOOKUP(T$7,$I$66:$DJ$120,ROWS($A$10:$A11)+2,FALSE)","v":19920},{"$f":"HLOOKUP(U$7,$I$66:$DJ$120,ROWS($A$10:$A11)+2,FALSE)","v":627},{"$f":"HLOOKUP(V$7,$I$66:$DJ$120,ROWS($A$10:$A11)+2,FALSE)","v":493},{"$f":"HLOOKUP(W$7,$I$66:$DJ$120,ROWS($A$10:$A11)+2,FALSE)","v":2722},{"$f":"HLOOKUP(X$7,$I$66:$DJ$120,ROWS($A$10:$A11)+2,FALSE)","v":1347},{"$f":"HLOOKUP(Y$7,$I$66:$DJ$120,ROWS($A$10:$A11)+2,FALSE)","v":345},{"$f":"HLOOKUP(Z$7,$I$66:$DJ$120,ROWS($A$10:$A11)+2,FALSE)","v":865},{"$f":"HLOOKUP(AA$7,$I$66:$DJ$120,ROWS($A$10:$A11)+2,FALSE)","v":2495},{"$f":"HLOOKUP(AB$7,$I$66:$DJ$120,ROWS($A$10:$A11)+2,FALSE)","v":3104},{"$f":"HLOOKUP(AC$7,$I$66:$DJ$120,ROWS($A$10:$A11)+2,FALSE)","v":67},{"$f":"HLOOKUP(AD$7,$I$66:$DJ$120,ROWS($A$10:$A11)+2,FALSE)","v":1513},{"$f":"HLOOKUP(AE$7,$I$66:$DJ$120,ROWS($A$10:$A11)+2,FALSE)","v":334},{"$f":"HLOOKUP(AF$7,$I$66:$DJ$120,ROWS($A$10:$A11)+2,FALSE)","v":2298},{"$f":"HLOOKUP(AG$7,$I$66:$DJ$120,ROWS($A$10:$A11)+2,FALSE)","v":752},{"$f":"HLOOKUP(AH$7,$I$66:$DJ$120,ROWS($A$10:$A11)+2,FALSE)","v":4952},{"$f":"HLOOKUP(AI$7,$I$66:$DJ$120,ROWS($A$10:$A11)+2,FALSE)","v":1555},{"$f":"HLOOKUP(AJ$7,$I$66:$DJ$120,ROWS($A$10:$A11)+2,FALSE)","v":101},{"$f":"HLOOKUP(AK$7,$I$66:$DJ$120,ROWS($A$10:$A11)+2,FALSE)","v":151},{"$f":"HLOOKUP(AL$7,$I$66:$DJ$120,ROWS($A$10:$A11)+2,FALSE)","v":1009},{"$f":"HLOOKUP(AM$7,$I$66:$DJ$120,ROWS($A$10:$A11)+2,FALSE)","v":161},{"$f":"HLOOKUP(AN$7,$I$66:$DJ$120,ROWS($A$10:$A11)+2,FALSE)","v":1702},{"$f":"HLOOKUP(AO$7,$I$66:$DJ$120,ROWS($A$10:$A11)+2,FALSE)","v":459},{"$f":"HLOOKUP(AP$7,$I$66:$DJ$120,ROWS($A$10:$A11)+2,FALSE)","v":2709},{"$f":"HLOOKUP(AQ$7,$I$66:$DJ$120,ROWS($A$10:$A11)+2,FALSE)","v":5133},{"$f":"HLOOKUP(AR$7,$I$66:$DJ$120,ROWS($A$10:$A11)+2,FALSE)","v":228},{"$f":"HLOOKUP(AS$7,$I$66:$DJ$120,ROWS($A$10:$A11)+2,FALSE)","v":1411},{"$f":"HLOOKUP(AT$7,$I$66:$DJ$120,ROWS($A$10:$A11)+2,FALSE)","v":194},{"$f":"HLOOKUP(AU$7,$I$66:$DJ$120,ROWS($A$10:$A11)+2,FALSE)","v":200},{"$f":"HLOOKUP(AV$7,$I$66:$DJ$120,ROWS($A$10:$A11)+2,FALSE)","v":1837},{"$f":"HLOOKUP(AW$7,$I$66:$DJ$120,ROWS($A$10:$A11)+2,FALSE)","v":0},{"$f":"HLOOKUP(AX$7,$I$66:$DJ$120,ROWS($A$10:$A11)+2,FALSE)","v":2811},{"$f":"HLOOKUP(AY$7,$I$66:$DJ$120,ROWS($A$10:$A11)+2,FALSE)","v":518},{"$f":"HLOOKUP(AZ$7,$I$66:$DJ$120,ROWS($A$10:$A11)+2,FALSE)","v":10539},{"$f":"HLOOKUP(BA$7,$I$66:$DJ$120,ROWS($A$10:$A11)+2,FALSE)","v":7468},{"$f":"HLOOKUP(BB$7,$I$66:$DJ$120,ROWS($A$10:$A11)+2,FALSE)","v":579},{"$f":"HLOOKUP(BC$7,$I$66:$DJ$120,ROWS($A$10:$A11)+2,FALSE)","v":0},{"$f":"HLOOKUP(BD$7,$I$66:$DJ$120,ROWS($A$10:$A11)+2,FALSE)","v":3170},{"$f":"HLOOKUP(BE$7,$I$66:$DJ$120,ROWS($A$10:$A11)+2,FALSE)","v":1034},{"$f":"HLOOKUP(BF$7,$I$66:$DJ$120,ROWS($A$10:$A11)+2,FALSE)","v":128},{"$f":"HLOOKUP(BG$7,$I$66:$DJ$120,ROWS($A$10:$A11)+2,FALSE)","v":760},{"$f":"HLOOKUP(BH$7,$I$66:$DJ$120,ROWS($A$10:$A11)+2,FALSE)","v":88},{"$f":"HLOOKUP(BI$7,$I$66:$DJ$120,ROWS($A$10:$A11)+2,FALSE)","v":619},{"$f":"HLOOKUP(BJ$7+0.5,$I$66:$DJ$120,ROWS($A$10:$A11)+2,FALSE)","v":8482},{"$f":"HLOOKUP(BK$7+0.5,$I$66:$DJ$120,ROWS($A$10:$A11)+2,FALSE)","v":"N/A"},{"$f":"HLOOKUP(BL$7+0.5,$I$66:$DJ$120,ROWS($A$10:$A11)+2,FALSE)","v":829},{"$f":"HLOOKUP(BM$7+0.5,$I$66:$DJ$120,ROWS($A$10:$A11)+2,FALSE)","v":583},{"$f":"HLOOKUP(BN$7+0.5,$I$66:$DJ$120,ROWS($A$10:$A11)+2,FALSE)","v":382},{"$f":"HLOOKUP(BO$7+0.5,$I$66:$DJ$120,ROWS($A$10:$A11)+2,FALSE)","v":1037},{"$f":"HLOOKUP(BP$7+0.5,$I$66:$DJ$120,ROWS($A$10:$A11)+2,FALSE)","v":1393},{"$f":"HLOOKUP(BQ$7+0.5,$I$66:$DJ$120,ROWS($A$10:$A11)+2,FALSE)","v":256},{"$f":"HLOOKUP(BR$7+0.5,$I$66:$DJ$120,ROWS($A$10:$A11)+2,FALSE)","v":68},{"$f":"HLOOKUP(BS$7+0.5,$I$66:$DJ$120,ROWS($A$10:$A11)+2,FALSE)","v":195},{"$f":"HLOOKUP(BT$7+0.5,$I$66:$DJ$120,ROWS($A$10:$A11)+2,FALSE)","v":2476},{"$f":"HLOOKUP(BU$7+0.5,$I$66:$DJ$120,ROWS($A$10:$A11)+2,FALSE)","v":3636},{"$f":"HLOOKUP(BV$7+0.5,$I$66:$DJ$120,ROWS($A$10:$A11)+2,FALSE)","v":477},{"$f":"HLOOKUP(BW$7+0.5,$I$66:$DJ$120,ROWS($A$10:$A11)+2,FALSE)","v":456},{"$f":"HLOOKUP(BX$7+0.5,$I$66:$DJ$120,ROWS($A$10:$A11)+2,FALSE)","v":1030},{"$f":"HLOOKUP(BY$7+0.5,$I$66:$DJ$120,ROWS($A$10:$A11)+2,FALSE)","v":536},{"$f":"HLOOKUP(BZ$7+0.5,$I$66:$DJ$120,ROWS($A$10:$A11)+2,FALSE)","v":337},{"$f":"HLOOKUP(CA$7+0.5,$I$66:$DJ$120,ROWS($A$10:$A11)+2,FALSE)","v":760},{"$f":"HLOOKUP(CB$7+0.5,$I$66:$DJ$120,ROWS($A$10:$A11)+2,FALSE)","v":981},{"$f":"HLOOKUP(CC$7+0.5,$I$66:$DJ$120,ROWS($A$10:$A11)+2,FALSE)","v":1216},{"$f":"HLOOKUP(CD$7+0.5,$I$66:$DJ$120,ROWS($A$10:$A11)+2,FALSE)","v":82},{"$f":"HLOOKUP(CE$7+0.5,$I$66:$DJ$120,ROWS($A$10:$A11)+2,FALSE)","v":847},{"$f":"HLOOKUP(CF$7+0.5,$I$66:$DJ$120,ROWS($A$10:$A11)+2,FALSE)","v":272},{"$f":"HLOOKUP(CG$7+0.5,$I$66:$DJ$120,ROWS($A$10:$A11)+2,FALSE)","v":881},{"$f":"HLOOKUP(CH$7+0.5,$I$66:$DJ$120,ROWS($A$10:$A11)+2,FALSE)","v":716},{"$f":"HLOOKUP(CI$7+0.5,$I$66:$DJ$120,ROWS($A$10:$A11)+2,FALSE)","v":1703},{"$f":"HLOOKUP(CJ$7+0.5,$I$66:$DJ$120,ROWS($A$10:$A11)+2,FALSE)","v":836},{"$f":"HLOOKUP(CK$7+0.5,$I$66:$DJ$120,ROWS($A$10:$A11)+2,FALSE)","v":132},{"$f":"HLOOKUP(CL$7+0.5,$I$66:$DJ$120,ROWS($A$10:$A11)+2,FALSE)","v":167},{"$f":"HLOOKUP(CM$7+0.5,$I$66:$DJ$120,ROWS($A$10:$A11)+2,FALSE)","v":824},{"$f":"HLOOKUP(CN$7+0.5,$I$66:$DJ$120,ROWS($A$10:$A11)+2,FALSE)","v":166},{"$f":"HLOOKUP(CO$7+0.5,$I$66:$DJ$120,ROWS($A$10:$A11)+2,FALSE)","v":1200},{"$f":"HLOOKUP(CP$7+0.5,$I$66:$DJ$120,ROWS($A$10:$A11)+2,FALSE)","v":576},{"$f":"HLOOKUP(CQ$7+0.5,$I$66:$DJ$120,ROWS($A$10:$A11)+2,FALSE)","v":1188},{"$f":"HLOOKUP(CR$7+0.5,$I$66:$DJ$120,ROWS($A$10:$A11)+2,FALSE)","v":1788},{"$f":"HLOOKUP(CS$7+0.5,$I$66:$DJ$120,ROWS($A$10:$A11)+2,FALSE)","v":194},{"$f":"HLOOKUP(CT$7+0.5,$I$66:$DJ$120,ROWS($A$10:$A11)+2,FALSE)","v":576},{"$f":"HLOOKUP(CU$7+0.5,$I$66:$DJ$120,ROWS($A$10:$A11)+2,FALSE)","v":157},{"$f":"HLOOKUP(CV$7+0.5,$I$66:$DJ$120,ROWS($A$10:$A11)+2,FALSE)","v":169},{"$f":"HLOOKUP(CW$7+0.5,$I$66:$DJ$120,ROWS($A$10:$A11)+2,FALSE)","v":736},{"$f":"HLOOKUP(CX$7+0.5,$I$66:$DJ$120,ROWS($A$10:$A11)+2,FALSE)","v":184},{"$f":"HLOOKUP(CY$7+0.5,$I$66:$DJ$120,ROWS($A$10:$A11)+2,FALSE)","v":1951},{"$f":"HLOOKUP(CZ$7+0.5,$I$66:$DJ$120,ROWS($A$10:$A11)+2,FALSE)","v":758},{"$f":"HLOOKUP(DA$7+0.5,$I$66:$DJ$120,ROWS($A$10:$A11)+2,FALSE)","v":2731},{"$f":"HLOOKUP(DB$7+0.5,$I$66:$DJ$120,ROWS($A$10:$A11)+2,FALSE)","v":2136},{"$f":"HLOOKUP(DC$7+0.5,$I$66:$DJ$120,ROWS($A$10:$A11)+2,FALSE)","v":713},{"$f":"HLOOKUP(DD$7+0.5,$I$66:$DJ$120,ROWS($A$10:$A11)+2,FALSE)","v":184},{"$f":"HLOOKUP(DE$7+0.5,$I$66:$DJ$120,ROWS($A$10:$A11)+2,FALSE)","v":1577},{"$f":"HLOOKUP(DF$7+0.5,$I$66:$DJ$120,ROWS($A$10:$A11)+2,FALSE)","v":684},{"$f":"HLOOKUP(DG$7+0.5,$I$66:$DJ$120,ROWS($A$10:$A11)+2,FALSE)","v":156},{"$f":"HLOOKUP(DH$7+0.5,$I$66:$DJ$120,ROWS($A$10:$A11)+2,FALSE)","v":605},{"$f":"HLOOKUP(DI$7+0.5,$I$66:$DJ$120,ROWS($A$10:$A11)+2,FALSE)","v":107},{"$f":"HLOOKUP(DJ$7+0.5,$I$66:$DJ$120,ROWS($A$10:$A11)+2,FALSE)","v":551}]
[null,"Alaska",721186,1290,592551,8741,90613,7239,{"$f":"HLOOKUP(I$7,$I$66:$DJ$120,ROWS($A$10:$A12)+2,FALSE)","v":33415},{"$f":"HLOOKUP(J$7,$I$66:$DJ$120,ROWS($A$10:$A12)+2,FALSE)","v":1097},{"$f":"HLOOKUP(K$7,$I$66:$DJ$120,ROWS($A$10:$A12)+2,FALSE)","v":"N/A"},{"$f":"HLOOKUP(L$7,$I$66:$DJ$120,ROWS($A$10:$A12)+2,FALSE)","v":1520},{"$f":"HLOOKUP(M$7,$I$66:$DJ$120,ROWS($A$10:$A12)+2,FALSE)","v":196},{"$f":"HLOOKUP(N$7,$I$66:$DJ$120,ROWS($A$10:$A12)+2,FALSE)","v":3494},{"$f":"HLOOKUP(O$7,$I$66:$DJ$120,ROWS($A$10:$A12)+2,FALSE)","v":556},{"$f":"HLOOKUP(P$7,$I$66:$DJ$120,ROWS($A$10:$A12)+2,FALSE)","v":0},{"$f":"HLOOKUP(Q$7,$I$66:$DJ$120,ROWS($A$10:$A12)+2,FALSE)","v":0},{"$f":"HLOOKUP(R$7,$I$66:$DJ$120,ROWS($A$10:$A12)+2,FALSE)","v":356},{"$f":"HLOOKUP(S$7,$I$66:$DJ$120,ROWS($A$10:$A12)+2,FALSE)","v":1991},{"$f":"HLOOKUP(T$7,$I$66:$DJ$120,ROWS($A$10:$A12)+2,FALSE)","v":928},{"$f":"HLOOKUP(U$7,$I$66:$DJ$120,ROWS($A$10:$A12)+2,FALSE)","v":1376},{"$f":"HLOOKUP(V$7,$I$66:$DJ$120,ROWS($A$10:$A12)+2,FALSE)","v":538},{"$f":"HLOOKUP(W$7,$I$66:$DJ$120,ROWS($A$10:$A12)+2,FALSE)","v":58},{"$f":"HLOOKUP(X$7,$I$66:$DJ$120,ROWS($A$10:$A12)+2,FALSE)","v":260},{"$f":"HLOOKUP(Y$7,$I$66:$DJ$120,ROWS($A$10:$A12)+2,FALSE)","v":13},{"$f":"HLOOKUP(Z$7,$I$66:$DJ$120,ROWS($A$10:$A12)+2,FALSE)","v":221},{"$f":"HLOOKUP(AA$7,$I$66:$DJ$120,ROWS($A$10:$A12)+2,FALSE)","v":161},{"$f":"HLOOKUP(AB$7,$I$66:$DJ$120,ROWS($A$10:$A12)+2,FALSE)","v":120},{"$f":"HLOOKUP(AC$7,$I$66:$DJ$120,ROWS($A$10:$A12)+2,FALSE)","v":66},{"$f":"HLOOKUP(AD$7,$I$66:$DJ$120,ROWS($A$10:$A12)+2,FALSE)","v":508},{"$f":"HLOOKUP(AE$7,$I$66:$DJ$120,ROWS($A$10:$A12)+2,FALSE)","v":297},{"$f":"HLOOKUP(AF$7,$I$66:$DJ$120,ROWS($A$10:$A12)+2,FALSE)","v":563},{"$f":"HLOOKUP(AG$7,$I$66:$DJ$120,ROWS($A$10:$A12)+2,FALSE)","v":192},{"$f":"HLOOKUP(AH$7,$I$66:$DJ$120,ROWS($A$10:$A12)+2,FALSE)","v":56},{"$f":"HLOOKUP(AI$7,$I$66:$DJ$120,ROWS($A$10:$A12)+2,FALSE)","v":819},{"$f":"HLOOKUP(AJ$7,$I$66:$DJ$120,ROWS($A$10:$A12)+2,FALSE)","v":371},{"$f":"HLOOKUP(AK$7,$I$66:$DJ$120,ROWS($A$10:$A12)+2,FALSE)","v":1195},{"$f":"HLOOKUP(AL$7,$I$66:$DJ$120,ROWS($A$10:$A12)+2,FALSE)","v":803},{"$f":"HLOOKUP(AM$7,$I$66:$DJ$120,ROWS($A$10:$A12)+2,FALSE)","v":118},{"$f":"HLOOKUP(AN$7,$I$66:$DJ$120,ROWS($A$10:$A12)+2,FALSE)","v":116},{"$f":"HLOOKUP(AO$7,$I$66:$DJ$120,ROWS($A$10:$A12)+2,FALSE)","v":263},{"$f":"HLOOKUP(AP$7,$I$66:$DJ$120,ROWS($A$10:$A12)+2,FALSE)","v":736},{"$f":"HLOOKUP(AQ$7,$I$66:$DJ$120,ROWS($A$10:$A12)+2,FALSE)","v":920},{"$f":"HLOOKUP(AR$7,$I$66:$DJ$120,ROWS($A$10:$A12)+2,FALSE)","v":264},{"$f":"HLOOKUP(AS$7,$I$66:$DJ$120,ROWS($A$10:$A12)+2,FALSE)","v":1316},{"$f":"HLOOKUP(AT$7,$I$66:$DJ$120,ROWS($A$10:$A12)+2,FALSE)","v":335},{"$f":"HLOOKUP(AU$7,$I$66:$DJ$120,ROWS($A$10:$A12)+2,FALSE)","v":3174},{"$f":"HLOOKUP(AV$7,$I$66:$DJ$120,ROWS($A$10:$A12)+2,FALSE)","v":255},{"$f":"HLOOKUP(AW$7,$I$66:$DJ$120,ROWS($A$10:$A12)+2,FALSE)","v":0},{"$f":"HLOOKUP(AX$7,$I$66:$DJ$120,ROWS($A$10:$A12)+2,FALSE)","v":384},{"$f":"HLOOKUP(AY$7,$I$66:$DJ$120,ROWS($A$10:$A12)+2,FALSE)","v":99},{"$f":"HLOOKUP(AZ$7,$I$66:$DJ$120,ROWS($A$10:$A12)+2,FALSE)","v":451},{"$f":"HLOOKUP(BA$7,$I$66:$DJ$120,ROWS($A$10:$A12)+2,FALSE)","v":1488},{"$f":"HLOOKUP(BB$7,$I$66:$DJ$120,ROWS($A$10:$A12)+2,FALSE)","v":330},{"$f":"HLOOKUP(BC$7,$I$66:$DJ$120,ROWS($A$10:$A12)+2,FALSE)","v":79},{"$f":"HLOOKUP(BD$7,$I$66:$DJ$120,ROWS($A$10:$A12)+2,FALSE)","v":1265},{"$f":"HLOOKUP(BE$7,$I$66:$DJ$120,ROWS($A$10:$A12)+2,FALSE)","v":3725},{"$f":"HLOOKUP(BF$7,$I$66:$DJ$120,ROWS($A$10:$A12)+2,FALSE)","v":0},{"$f":"HLOOKUP(BG$7,$I$66:$DJ$120,ROWS($A$10:$A12)+2,FALSE)","v":206},{"$f":"HLOOKUP(BH$7,$I$66:$DJ$120,ROWS($A$10:$A12)+2,FALSE)","v":136},{"$f":"HLOOKUP(BI$7,$I$66:$DJ$120,ROWS($A$10:$A12)+2,FALSE)","v":25},{"$f":"HLOOKUP(BJ$7+0.5,$I$66:$DJ$120,ROWS($A$10:$A12)+2,FALSE)","v":4385},{"$f":"HLOOKUP(BK$7+0.5,$I$66:$DJ$120,ROWS($A$10:$A12)+2,FALSE)","v":825},{"$f":"HLOOKUP(BL$7+0.5,$I$66:$DJ$120,ROWS($A$10:$A12)+2,FALSE)","v":"N/A"},{"$f":"HLOOKUP(BM$7+0.5,$I$66:$DJ$120,ROWS($A$10:$A12)+2,FALSE)","v":1441},{"$f":"HLOOKUP(BN$7+0.5,$I$66:$DJ$120,ROWS($A$10:$A12)+2,FALSE)","v":202},{"$f":"HLOOKUP(BO$7+0.5,$I$66:$DJ$120,ROWS($A$10:$A12)+2,FALSE)","v":1643},{"$f":"HLOOKUP(BP$7+0.5,$I$66:$DJ$120,ROWS($A$10:$A12)+2,FALSE)","v":279},{"$f":"HLOOKUP(BQ$7+0.5,$I$66:$DJ$120,ROWS($A$10:$A12)+2,FALSE)","v":143},{"$f":"HLOOKUP(BR$7+0.5,$I$66:$DJ$120,ROWS($A$10:$A12)+2,FALSE)","v":143},{"$f":"HLOOKUP(BS$7+0.5,$I$66:$DJ$120,ROWS($A$10:$A12)+2,FALSE)","v":459},{"$f":"HLOOKUP(BT$7+0.5,$I$66:$DJ$120,ROWS($A$10:$A12)+2,FALSE)","v":942},{"$f":"HLOOKUP(BU$7+0.5,$I$66:$DJ$120,ROWS($A$10:$A12)+2,FALSE)","v":894},{"$f":"HLOOKUP(BV$7+0.5,$I$66:$DJ$120,ROWS($A$10:$A12)+2,FALSE)","v":805},{"$f":"HLOOKUP(BW$7+0.5,$I$66:$DJ$120,ROWS($A$10:$A12)+2,FALSE)","v":387},{"$f":"HLOOKUP(BX$7+0.5,$I$66:$DJ$120,ROWS($A$10:$A12)+2,FALSE)","v":118},{"$f":"HLOOKUP(BY$7+0.5,$I$66:$DJ$120,ROWS($A$10:$A12)+2,FALSE)","v":235},{"$f":"HLOOKUP(BZ$7+0.5,$I$66:$DJ$120,ROWS($A$10:$A12)+2,FALSE)","v":24},{"$f":"HLOOKUP(CA$7+0.5,$I$66:$DJ$120,ROWS($A$10:$A12)+2,FALSE)","v":272},{"$f":"HLOOKUP(CB$7+0.5,$I$66:$DJ$120,ROWS($A$10:$A12)+2,FALSE)","v":196},{"$f":"HLOOKUP(CC$7+0.5,$I$66:$DJ$120,ROWS($A$10:$A12)+2,FALSE)","v":145},{"$f":"HLOOKUP(CD$7+0.5,$I$66:$DJ$120,ROWS($A$10:$A12)+2,FALSE)","v":62},{"$f":"HLOOKUP(CE$7+0.5,$I$66:$DJ$120,ROWS($A$10:$A12)+2,FALSE)","v":591},{"$f":"HLOOKUP(CF$7+0.5,$I$66:$DJ$120,ROWS($A$10:$A12)+2,FALSE)","v":289},{"$f":"HLOOKUP(CG$7+0.5,$I$66:$DJ$120,ROWS($A$10:$A12)+2,FALSE)","v":426},{"$f":"HLOOKUP(CH$7+0.5,$I$66:$DJ$120,ROWS($A$10:$A12)+2,FALSE)","v":191},{"$f":"HLOOKUP(CI$7+0.5,$I$66:$DJ$120,ROWS($A$10:$A12)+2,FALSE)","v":76},{"$f":"HLOOKUP(CJ$7+0.5,$I$66:$DJ$120,ROWS($A$10:$A12)+2,FALSE)","v":628},{"$f":"HLOOKUP(CK$7+0.5,$I$66:$DJ$120,ROWS($A$10:$A12)+2,FALSE)","v":334},{"$f":"HLOOKUP(CL$7+0.5,$I$66:$DJ$120,ROWS($A$10:$A12)+2,FALSE)","v":1128},{"$f":"HLOOKUP(CM$7+0.5,$I$66:$DJ$120,ROWS($A$10:$A12)+2,FALSE)","v":382},{"$f":"HLOOKUP(CN$7+0.5,$I$66:$DJ$120,ROWS($A$10:$A12)+2,FALSE)","v":206},{"$f":"HLOOKUP(CO$7+0.5,$I$66:$DJ$120,ROWS($A$10:$A12)+2,FALSE)","v":156},{"$f":"HLOOKUP(CP$7+0.5,$I$66:$DJ$120,ROWS($A$10:$A12)+2,FALSE)","v":219},{"$f":"HLOOKUP(CQ$7+0.5,$I$66:$DJ$120,ROWS($A$10:$A12)+2,FALSE)","v":576},{"$f":"HLOOKUP(CR$7+0.5,$I$66:$DJ$120,ROWS($A$10:$A12)+2,FALSE)","v":784},{"$f":"HLOOKUP(CS$7+0.5,$I$66:$DJ$120,ROWS($A$10:$A12)+2,FALSE)","v":359},{"$f":"HLOOKUP(CT$7+0.5,$I$66:$DJ$120,ROWS($A$10:$A12)+2,FALSE)","v":757},{"$f":"HLOOKUP(CU$7+0.5,$I$66:$DJ$120,ROWS($A$10:$A12)+2,FALSE)","v":252},{"$f":"HLOOKUP(CV$7+0.5,$I$66:$DJ$120,ROWS($A$10:$A12)+2,FALSE)","v":1510},{"$f":"HLOOKUP(CW$7+0.5,$I$66:$DJ$120,ROWS($A$10:$A12)+2,FALSE)","v":240},{"$f":"HLOOKUP(CX$7+0.5,$I$66:$DJ$120,ROWS($A$10:$A12)+2,FALSE)","v":143},{"$f":"HLOOKUP(CY$7+0.5,$I$66:$DJ$120,ROWS($A$10:$A12)+2,FALSE)","v":394},{"$f":"HLOOKUP(CZ$7+0.5,$I$66:$DJ$120,ROWS($A$10:$A12)+2,FALSE)","v":123},{"$f":"HLOOKUP(DA$7+0.5,$I$66:$DJ$120,ROWS($A$10:$A12)+2,FALSE)","v":413},{"$f":"HLOOKUP(DB$7+0.5,$I$66:$DJ$120,ROWS($A$10:$A12)+2,FALSE)","v":760},{"$f":"HLOOKUP(DC$7+0.5,$I$66:$DJ$120,ROWS($A$10:$A12)+2,FALSE)","v":347},{"$f":"HLOOKUP(DD$7+0.5,$I$66:$DJ$120,ROWS($A$10:$A12)+2,FALSE)","v":108},{"$f":"HLOOKUP(DE$7+0.5,$I$66:$DJ$120,ROWS($A$10:$A12)+2,FALSE)","v":674},{"$f":"HLOOKUP(DF$7+0.5,$I$66:$DJ$120,ROWS($A$10:$A12)+2,FALSE)","v":1488},{"$f":"HLOOKUP(DG$7+0.5,$I$66:$DJ$120,ROWS($A$10:$A12)+2,FALSE)","v":143},{"$f":"HLOOKUP(DH$7+0.5,$I$66:$DJ$120,ROWS($A$10:$A12)+2,FALSE)","v":261},{"$f":"HLOOKUP(DI$7+0.5,$I$66:$DJ$120,ROWS($A$10:$A12)+2,FALSE)","v":217},{"$f":"HLOOKUP(DJ$7+0.5,$I$66:$DJ$120,ROWS($A$10:$A12)+2,FALSE)","v":43}]
[null,"Arizona",6468907,3874,5242674,32185,953789,28803,{"$f":"HLOOKUP(I$7,$I$66:$DJ$120,ROWS($A$10:$A13)+2,FALSE)","v":232457},{"$f":"HLOOKUP(J$7,$I$66:$DJ$120,ROWS($A$10:$A13)+2,FALSE)","v":1331},{"$f":"HLOOKUP(K$7,$I$66:$DJ$120,ROWS($A$10:$A13)+2,FALSE)","v":3717},{"$f":"HLOOKUP(L$7,$I$66:$DJ$120,ROWS($A$10:$A13)+2,FALSE)","v":"N/A"},{"$f":"HLOOKUP(M$7,$I$66:$DJ$120,ROWS($A$10:$A13)+2,FALSE)","v":1214},{"$f":"HLOOKUP(N$7,$I$66:$DJ$120,ROWS($A$10:$A13)+2,FALSE)","v":44889},{"$f":"HLOOKUP(O$7,$I$66:$DJ$120,ROWS($A$10:$A13)+2,FALSE)","v":13790},{"$f":"HLOOKUP(P$7,$I$66:$DJ$120,ROWS($A$10:$A13)+2,FALSE)","v":417},{"$f":"HLOOKUP(Q$7,$I$66:$DJ$120,ROWS($A$10:$A13)+2,FALSE)","v":246},{"$f":"HLOOKUP(R$7,$I$66:$DJ$120,ROWS($A$10:$A13)+2,FALSE)","v":36},{"$f":"HLOOKUP(S$7,$I$66:$DJ$120,ROWS($A$10:$A13)+2,FALSE)","v":5553},{"$f":"HLOOKUP(T$7,$I$66:$DJ$120,ROWS($A$10:$A13)+2,FALSE)","v":2263},{"$f":"HLOOKUP(U$7,$I$66:$DJ$120,ROWS($A$10:$A13)+2,FALSE)","v":2491},{"$f":"HLOOKUP(V$7,$I$66:$DJ$120,ROWS($A$10:$A13)+2,FALSE)","v":2934},{"$f":"HLOOKUP(W$7,$I$66:$DJ$120,ROWS($A$10:$A13)+2,FALSE)","v":10744},{"$f":"HLOOKUP(X$7,$I$66:$DJ$120,ROWS($A$10:$A13)+2,FALSE)","v":2930},{"$f":"HLOOKUP(Y$7,$I$66:$DJ$120,ROWS($A$10:$A13)+2,FALSE)","v":2702},{"$f":"HLOOKUP(Z$7,$I$66:$DJ$120,ROWS($A$10:$A13)+2,FALSE)","v":2498},{"$f":"HLOOKUP(AA$7,$I$66:$DJ$120,ROWS($A$10:$A13)+2,FALSE)","v":1328},{"$f":"HLOOKUP(AB$7,$I$66:$DJ$120,ROWS($A$10:$A13)+2,FALSE)","v":724},{"$f":"HLOOKUP(AC$7,$I$66:$DJ$120,ROWS($A$10:$A13)+2,FALSE)","v":616},{"$f":"HLOOKUP(AD$7,$I$66:$DJ$120,ROWS($A$10:$A13)+2,FALSE)","v":3007},{"$f":"HLOOKUP(AE$7,$I$66:$DJ$120,ROWS($A$10:$A13)+2,FALSE)","v":1961},{"$f":"HLOOKUP(AF$7,$I$66:$DJ$120,ROWS($A$10:$A13)+2,FALSE)","v":9598},{"$f":"HLOOKUP(AG$7,$I$66:$DJ$120,ROWS($A$10:$A13)+2,FALSE)","v":8570},{"$f":"HLOOKUP(AH$7,$I$66:$DJ$120,ROWS($A$10:$A13)+2,FALSE)","v":293},{"$f":"HLOOKUP(AI$7,$I$66:$DJ$120,ROWS($A$10:$A13)+2,FALSE)","v":2595},{"$f":"HLOOKUP(AJ$7,$I$66:$DJ$120,ROWS($A$10:$A13)+2,FALSE)","v":1118},{"$f":"HLOOKUP(AK$7,$I$66:$DJ$120,ROWS($A$10:$A13)+2,FALSE)","v":2293},{"$f":"HLOOKUP(AL$7,$I$66:$DJ$120,ROWS($A$10:$A13)+2,FALSE)","v":6712},{"$f":"HLOOKUP(AM$7,$I$66:$DJ$120,ROWS($A$10:$A13)+2,FALSE)","v":510},{"$f":"HLOOKUP(AN$7,$I$66:$DJ$120,ROWS($A$10:$A13)+2,FALSE)","v":2564},{"$f":"HLOOKUP(AO$7,$I$66:$DJ$120,ROWS($A$10:$A13)+2,FALSE)","v":6946},{"$f":"HLOOKUP(AP$7,$I$66:$DJ$120,ROWS($A$10:$A13)+2,FALSE)","v":7402},{"$f":"HLOOKUP(AQ$7,$I$66:$DJ$120,ROWS($A$10:$A13)+2,FALSE)","v":2721},{"$f":"HLOOKUP(AR$7,$I$66:$DJ$120,ROWS($A$10:$A13)+2,FALSE)","v":877},{"$f":"HLOOKUP(AS$7,$I$66:$DJ$120,ROWS($A$10:$A13)+2,FALSE)","v":7906},{"$f":"HLOOKUP(AT$7,$I$66:$DJ$120,ROWS($A$10:$A13)+2,FALSE)","v":1626},{"$f":"HLOOKUP(AU$7,$I$66:$DJ$120,ROWS($A$10:$A13)+2,FALSE)","v":8587},{"$f":"HLOOKUP(AV$7,$I$66:$DJ$120,ROWS($A$10:$A13)+2,FALSE)","v":4280},{"$f":"HLOOKUP(AW$7,$I$66:$DJ$120,ROWS($A$10:$A13)+2,FALSE)","v":614},{"$f":"HLOOKUP(AX$7,$I$66:$DJ$120,ROWS($A$10:$A13)+2,FALSE)","v":1070},{"$f":"HLOOKUP(AY$7,$I$66:$DJ$120,ROWS($A$10:$A13)+2,FALSE)","v":1472},{"$f":"HLOOKUP(AZ$7,$I$66:$DJ$120,ROWS($A$10:$A13)+2,FALSE)","v":5075},{"$f":"HLOOKUP(BA$7,$I$66:$DJ$120,ROWS($A$10:$A13)+2,FALSE)","v":14788},{"$f":"HLOOKUP(BB$7,$I$66:$DJ$120,ROWS($A$10:$A13)+2,FALSE)","v":5916},{"$f":"HLOOKUP(BC$7,$I$66:$DJ$120,ROWS($A$10:$A13)+2,FALSE)","v":207},{"$f":"HLOOKUP(BD$7,$I$66:$DJ$120,ROWS($A$10:$A13)+2,FALSE)","v":2763},{"$f":"HLOOKUP(BE$7,$I$66:$DJ$120,ROWS($A$10:$A13)+2,FALSE)","v":13247},{"$f":"HLOOKUP(BF$7,$I$66:$DJ$120,ROWS($A$10:$A13)+2,FALSE)","v":765},{"$f":"HLOOKUP(BG$7,$I$66:$DJ$120,ROWS($A$10:$A13)+2,FALSE)","v":3765},{"$f":"HLOOKUP(BH$7,$I$66:$DJ$120,ROWS($A$10:$A13)+2,FALSE)","v":2786},{"$f":"HLOOKUP(BI$7,$I$66:$DJ$120,ROWS($A$10:$A13)+2,FALSE)","v":1791},{"$f":"HLOOKUP(BJ$7+0.5,$I$66:$DJ$120,ROWS($A$10:$A13)+2,FALSE)","v":14183},{"$f":"HLOOKUP(BK$7+0.5,$I$66:$DJ$120,ROWS($A$10:$A13)+2,FALSE)","v":1286},{"$f":"HLOOKUP(BL$7+0.5,$I$66:$DJ$120,ROWS($A$10:$A13)+2,FALSE)","v":1505},{"$f":"HLOOKUP(BM$7+0.5,$I$66:$DJ$120,ROWS($A$10:$A13)+2,FALSE)","v":"N/A"},{"$f":"HLOOKUP(BN$7+0.5,$I$66:$DJ$120,ROWS($A$10:$A13)+2,FALSE)","v":659},{"$f":"HLOOKUP(BO$7+0.5,$I$66:$DJ$120,ROWS($A$10:$A13)+2,FALSE)","v":5435},{"$f":"HLOOKUP(BP$7+0.5,$I$66:$DJ$120,ROWS($A$10:$A13)+2,FALSE)","v":6133},{"$f":"HLOOKUP(BQ$7+0.5,$I$66:$DJ$120,ROWS($A$10:$A13)+2,FALSE)","v":309},{"$f":"HLOOKUP(BR$7+0.5,$I$66:$DJ$120,ROWS($A$10:$A13)+2,FALSE)","v":215},{"$f":"HLOOKUP(BS$7+0.5,$I$66:$DJ$120,ROWS($A$10:$A13)+2,FALSE)","v":60},{"$f":"HLOOKUP(BT$7+0.5,$I$66:$DJ$120,ROWS($A$10:$A13)+2,FALSE)","v":2160},{"$f":"HLOOKUP(BU$7+0.5,$I$66:$DJ$120,ROWS($A$10:$A13)+2,FALSE)","v":961},{"$f":"HLOOKUP(BV$7+0.5,$I$66:$DJ$120,ROWS($A$10:$A13)+2,FALSE)","v":1285},{"$f":"HLOOKUP(BW$7+0.5,$I$66:$DJ$120,ROWS($A$10:$A13)+2,FALSE)","v":1362},{"$f":"HLOOKUP(BX$7+0.5,$I$66:$DJ$120,ROWS($A$10:$A13)+2,FALSE)","v":2614},{"$f":"HLOOKUP(BY$7+0.5,$I$66:$DJ$120,ROWS($A$10:$A13)+2,FALSE)","v":1447},{"$f":"HLOOKUP(BZ$7+0.5,$I$66:$DJ$120,ROWS($A$10:$A13)+2,FALSE)","v":1000},{"$f":"HLOOKUP(CA$7+0.5,$I$66:$DJ$120,ROWS($A$10:$A13)+2,FALSE)","v":852},{"$f":"HLOOKUP(CB$7+0.5,$I$66:$DJ$120,ROWS($A$10:$A13)+2,FALSE)","v":997},{"$f":"HLOOKUP(CC$7+0.5,$I$66:$DJ$120,ROWS($A$10:$A13)+2,FALSE)","v":442},{"$f":"HLOOKUP(CD$7+0.5,$I$66:$DJ$120,ROWS($A$10:$A13)+2,FALSE)","v":593},{"$f":"HLOOKUP(CE$7+0.5,$I$66:$DJ$120,ROWS($A$10:$A13)+2,FALSE)","v":1288},{"$f":"HLOOKUP(CF$7+0.5,$I$66:$DJ$120,ROWS($A$10:$A13)+2,FALSE)","v":1083},{"$f":"HLOOKUP(CG$7+0.5,$I$66:$DJ$120,ROWS($A$10:$A13)+2,FALSE)","v":3471},{"$f":"HLOOKUP(CH$7+0.5,$I$66:$DJ$120,ROWS($A$10:$A13)+2,FALSE)","v":3050},{"$f":"HLOOKUP(CI$7+0.5,$I$66:$DJ$120,ROWS($A$10:$A13)+2,FALSE)","v":215},{"$f":"HLOOKUP(CJ$7+0.5,$I$66:$DJ$120,ROWS($A$10:$A13)+2,FALSE)","v":1099},{"$f":"HLOOKUP(CK$7+0.5,$I$66:$DJ$120,ROWS($A$10:$A13)+2,FALSE)","v":536},{"$f":"HLOOKUP(CL$7+0.5,$I$66:$DJ$120,ROWS($A$10:$A13)+2,FALSE)","v":1037},{"$f":"HLOOKUP(CM$7+0.5,$I$66:$DJ$120,ROWS($A$10:$A13)+2,FALSE)","v":2202},{"$f":"HLOOKUP(CN$7+0.5,$I$66:$DJ$120,ROWS($A$10:$A13)+2,FALSE)","v":443},{"$f":"HLOOKUP(CO$7+0.5,$I$66:$DJ$120,ROWS($A$10:$A13)+2,FALSE)","v":1085},{"$f":"HLOOKUP(CP$7+0.5,$I$66:$DJ$120,ROWS($A$10:$A13)+2,FALSE)","v":1907},{"$f":"HLOOKUP(CQ$7+0.5,$I$66:$DJ$120,ROWS($A$10:$A13)+2,FALSE)","v":2615},{"$f":"HLOOKUP(CR$7+0.5,$I$66:$DJ$120,ROWS($A$10:$A13)+2,FALSE)","v":939},{"$f":"HLOOKUP(CS$7+0.5,$I$66:$DJ$120,ROWS($A$10:$A13)+2,FALSE)","v":444},{"$f":"HLOOKUP(CT$7+0.5,$I$66:$DJ$120,ROWS($A$10:$A13)+2,FALSE)","v":2239},{"$f":"HLOOKUP(CU$7+0.5,$I$66:$DJ$120,ROWS($A$10:$A13)+2,FALSE)","v":838},{"$f":"HLOOKUP(CV$7+0.5,$I$66:$DJ$120,ROWS($A$10:$A13)+2,FALSE)","v":3200},{"$f":"HLOOKUP(CW$7+0.5,$I$66:$DJ$120,ROWS($A$10:$A13)+2,FALSE)","v":1395},{"$f":"HLOOKUP(CX$7+0.5,$I$66:$DJ$120,ROWS($A$10:$A13)+2,FALSE)","v":687},{"$f":"HLOOKUP(CY$7+0.5,$I$66:$DJ$120,ROWS($A$10:$A13)+2,FALSE)","v":573},{"$f":"HLOOKUP(CZ$7+0.5,$I$66:$DJ$120,ROWS($A$10:$A13)+2,FALSE)","v":776},{"$f":"HLOOKUP(DA$7+0.5,$I$66:$DJ$120,ROWS($A$10:$A13)+2,FALSE)","v":1919},{"$f":"HLOOKUP(DB$7+0.5,$I$66:$DJ$120,ROWS($A$10:$A13)+2,FALSE)","v":3541},{"$f":"HLOOKUP(DC$7+0.5,$I$66:$DJ$120,ROWS($A$10:$A13)+2,FALSE)","v":1789},{"$f":"HLOOKUP(DD$7+0.5,$I$66:$DJ$120,ROWS($A$10:$A13)+2,FALSE)","v":291},{"$f":"HLOOKUP(DE$7+0.5,$I$66:$DJ$120,ROWS($A$10:$A13)+2,FALSE)","v":1031},{"$f":"HLOOKUP(DF$7+0.5,$I$66:$DJ$120,ROWS($A$10:$A13)+2,FALSE)","v":2448},{"$f":"HLOOKUP(DG$7+0.5,$I$66:$DJ$120,ROWS($A$10:$A13)+2,FALSE)","v":734},{"$f":"HLOOKUP(DH$7+0.5,$I$66:$DJ$120,ROWS($A$10:$A13)+2,FALSE)","v":1168},{"$f":"HLOOKUP(DI$7+0.5,$I$66:$DJ$120,ROWS($A$10:$A13)+2,FALSE)","v":1401},{"$f":"HLOOKUP(DJ$7+0.5,$I$66:$DJ$120,ROWS($A$10:$A13)+2,FALSE)","v":1662}]
[null,"Arkansas",2912680,2753,2453347,16841,373046,14543,{"$f":"HLOOKUP(I$7,$I$66:$DJ$120,ROWS($A$10:$A14)+2,FALSE)","v":76948},{"$f":"HLOOKUP(J$7,$I$66:$DJ$120,ROWS($A$10:$A14)+2,FALSE)","v":374},{"$f":"HLOOKUP(K$7,$I$66:$DJ$120,ROWS($A$10:$A14)+2,FALSE)","v":855},{"$f":"HLOOKUP(L$7,$I$66:$DJ$120,ROWS($A$10:$A14)+2,FALSE)","v":1677},{"$f":"HLOOKUP(M$7,$I$66:$DJ$120,ROWS($A$10:$A14)+2,FALSE)","v":"N/A"},{"$f":"HLOOKUP(N$7,$I$66:$DJ$120,ROWS($A$10:$A14)+2,FALSE)","v":3525},{"$f":"HLOOKUP(O$7,$I$66:$DJ$120,ROWS($A$10:$A14)+2,FALSE)","v":603},{"$f":"HLOOKUP(P$7,$I$66:$DJ$120,ROWS($A$10:$A14)+2,FALSE)","v":185},{"$f":"HLOOKUP(Q$7,$I$66:$DJ$120,ROWS($A$10:$A14)+2,FALSE)","v":0},{"$f":"HLOOKUP(R$7,$I$66:$DJ$120,ROWS($A$10:$A14)+2,FALSE)","v":205},{"$f":"HLOOKUP(S$7,$I$66:$DJ$120,ROWS($A$10:$A14)+2,FALSE)","v":2682},{"$f":"HLOOKUP(T$7,$I$66:$DJ$120,ROWS($A$10:$A14)+2,FALSE)","v":1525},{"$f":"HLOOKUP(U$7,$I$66:$DJ$120,ROWS($A$10:$A14)+2,FALSE)","v":0},{"$f":"HLOOKUP(V$7,$I$66:$DJ$120,ROWS($A$10:$A14)+2,FALSE)","v":0},{"$f":"HLOOKUP(W$7,$I$66:$DJ$120,ROWS($A$10:$A14)+2,FALSE)","v":3576},{"$f":"HLOOKUP(X$7,$I$66:$DJ$120,ROWS($A$10:$A14)+2,FALSE)","v":1172},{"$f":"HLOOKUP(Y$7,$I$66:$DJ$120,ROWS($A$10:$A14)+2,FALSE)","v":409},{"$f":"HLOOKUP(Z$7,$I$66:$DJ$120,ROWS($A$10:$A14)+2,FALSE)","v":1033},{"$f":"HLOOKUP(AA$7,$I$66:$DJ$120,ROWS($A$10:$A14)+2,FALSE)","v":1310},{"$f":"HLOOKUP(AB$7,$I$66:$DJ$120,ROWS($A$10:$A14)+2,FALSE)","v":3953},{"$f":"HLOOKUP(AC$7,$I$66:$DJ$120,ROWS($A$10:$A14)+2,FALSE)","v":17},{"$f":"HLOOKUP(AD$7,$I$66:$DJ$120,ROWS($A$10:$A14)+2,FALSE)","v":169},{"$f":"HLOOKUP(AE$7,$I$66:$DJ$120,ROWS($A$10:$A14)+2,FALSE)","v":254},{"$f":"HLOOKUP(AF$7,$I$66:$DJ$120,ROWS($A$10:$A14)+2,FALSE)","v":1283},{"$f":"HLOOKUP(AG$7,$I$66:$DJ$120,ROWS($A$10:$A14)+2,FALSE)","v":295},{"$f":"HLOOKUP(AH$7,$I$66:$DJ$120,ROWS($A$10:$A14)+2,FALSE)","v":3689},{"$f":"HLOOKUP(AI$7,$I$66:$DJ$120,ROWS($A$10:$A14)+2,FALSE)","v":9105},{"$f":"HLOOKUP(AJ$7,$I$66:$DJ$120,ROWS($A$10:$A14)+2,FALSE)","v":258},{"$f":"HLOOKUP(AK$7,$I$66:$DJ$120,ROWS($A$10:$A14)+2,FALSE)","v":166},{"$f":"HLOOKUP(AL$7,$I$66:$DJ$120,ROWS($A$10:$A14)+2,FALSE)","v":121},{"$f":"HLOOKUP(AM$7,$I$66:$DJ$120,ROWS($A$10:$A14)+2,FALSE)","v":0},{"$f":"HLOOKUP(AN$7,$I$66:$DJ$120,ROWS($A$10:$A14)+2,FALSE)","v":157},{"$f":"HLOOKUP(AO$7,$I$66:$DJ$120,ROWS($A$10:$A14)+2,FALSE)","v":547},{"$f":"HLOOKUP(AP$7,$I$66:$DJ$120,ROWS($A$10:$A14)+2,FALSE)","v":2262},{"$f":"HLOOKUP(AQ$7,$I$66:$DJ$120,ROWS($A$10:$A14)+2,FALSE)","v":3057},{"$f":"HLOOKUP(AR$7,$I$66:$DJ$120,ROWS($A$10:$A14)+2,FALSE)","v":0},{"$f":"HLOOKUP(AS$7,$I$66:$DJ$120,ROWS($A$10:$A14)+2,FALSE)","v":1135},{"$f":"HLOOKUP(AT$7,$I$66:$DJ$120,ROWS($A$10:$A14)+2,FALSE)","v":9938},{"$f":"HLOOKUP(AU$7,$I$66:$DJ$120,ROWS($A$10:$A14)+2,FALSE)","v":193},{"$f":"HLOOKUP(AV$7,$I$66:$DJ$120,ROWS($A$10:$A14)+2,FALSE)","v":516},{"$f":"HLOOKUP(AW$7,$I$66:$DJ$120,ROWS($A$10:$A14)+2,FALSE)","v":59},{"$f":"HLOOKUP(AX$7,$I$66:$DJ$120,ROWS($A$10:$A14)+2,FALSE)","v":52},{"$f":"HLOOKUP(AY$7,$I$66:$DJ$120,ROWS($A$10:$A14)+2,FALSE)","v":673},{"$f":"HLOOKUP(AZ$7,$I$66:$DJ$120,ROWS($A$10:$A14)+2,FALSE)","v":4195},{"$f":"HLOOKUP(BA$7,$I$66:$DJ$120,ROWS($A$10:$A14)+2,FALSE)","v":11767},{"$f":"HLOOKUP(BB$7,$I$66:$DJ$120,ROWS($A$10:$A14)+2,FALSE)","v":269},{"$f":"HLOOKUP(BC$7,$I$66:$DJ$120,ROWS($A$10:$A14)+2,FALSE)","v":0},{"$f":"HLOOKUP(BD$7,$I$66:$DJ$120,ROWS($A$10:$A14)+2,FALSE)","v":1159},{"$f":"HLOOKUP(BE$7,$I$66:$DJ$120,ROWS($A$10:$A14)+2,FALSE)","v":251},{"$f":"HLOOKUP(BF$7,$I$66:$DJ$120,ROWS($A$10:$A14)+2,FALSE)","v":84},{"$f":"HLOOKUP(BG$7,$I$66:$DJ$120,ROWS($A$10:$A14)+2,FALSE)","v":695},{"$f":"HLOOKUP(BH$7,$I$66:$DJ$120,ROWS($A$10:$A14)+2,FALSE)","v":1498},{"$f":"HLOOKUP(BI$7,$I$66:$DJ$120,ROWS($A$10:$A14)+2,FALSE)","v":0},{"$f":"HLOOKUP(BJ$7+0.5,$I$66:$DJ$120,ROWS($A$10:$A14)+2,FALSE)","v":7223},{"$f":"HLOOKUP(BK$7+0.5,$I$66:$DJ$120,ROWS($A$10:$A14)+2,FALSE)","v":293},{"$f":"HLOOKUP(BL$7+0.5,$I$66:$DJ$120,ROWS($A$10:$A14)+2,FALSE)","v":906},{"$f":"HLOOKUP(BM$7+0.5,$I$66:$DJ$120,ROWS($A$10:$A14)+2,FALSE)","v":954},{"$f":"HLOOKUP(BN$7+0.5,$I$66:$DJ$120,ROWS($A$10:$A14)+2,FALSE)","v":"N/A"},{"$f":"HLOOKUP(BO$7+0.5,$I$66:$DJ$120,ROWS($A$10:$A14)+2,FALSE)","v":1202},{"$f":"HLOOKUP(BP$7+0.5,$I$66:$DJ$120,ROWS($A$10:$A14)+2,FALSE)","v":369},{"$f":"HLOOKUP(BQ$7+0.5,$I$66:$DJ$120,ROWS($A$10:$A14)+2,FALSE)","v":264},{"$f":"HLOOKUP(BR$7+0.5,$I$66:$DJ$120,ROWS($A$10:$A14)+2,FALSE)","v":184},{"$f":"HLOOKUP(BS$7+0.5,$I$66:$DJ$120,ROWS($A$10:$A14)+2,FALSE)","v":232},{"$f":"HLOOKUP(BT$7+0.5,$I$66:$DJ$120,ROWS($A$10:$A14)+2,FALSE)","v":1052},{"$f":"HLOOKUP(BU$7+0.5,$I$66:$DJ$120,ROWS($A$10:$A14)+2,FALSE)","v":1006},{"$f":"HLOOKUP(BV$7+0.5,$I$66:$DJ$120,ROWS($A$10:$A14)+2,FALSE)","v":184},{"$f":"HLOOKUP(BW$7+0.5,$I$66:$DJ$120,ROWS($A$10:$A14)+2,FALSE)","v":184},{"$f":"HLOOKUP(BX$7+0.5,$I$66:$DJ$120,ROWS($A$10:$A14)+2,FALSE)","v":1286},{"$f":"HLOOKUP(BY$7+0.5,$I$66:$DJ$120,ROWS($A$10:$A14)+2,FALSE)","v":587},{"$f":"HLOOKUP(BZ$7+0.5,$I$66:$DJ$120,ROWS($A$10:$A14)+2,FALSE)","v":330},{"$f":"HLOOKUP(CA$7+0.5,$I$66:$DJ$120,ROWS($A$10:$A14)+2,FALSE)","v":539},{"$f":"HLOOKUP(CB$7+0.5,$I$66:$DJ$120,ROWS($A$10:$A14)+2,FALSE)","v":884},{"$f":"HLOOKUP(CC$7+0.5,$I$66:$DJ$120,ROWS($A$10:$A14)+2,FALSE)","v":1340},{"$f":"HLOOKUP(CD$7+0.5,$I$66:$DJ$120,ROWS($A$10:$A14)+2,FALSE)","v":39},{"$f":"HLOOKUP(CE$7+0.5,$I$66:$DJ$120,ROWS($A$10:$A14)+2,FALSE)","v":209},{"$f":"HLOOKUP(CF$7+0.5,$I$66:$DJ$120,ROWS($A$10:$A14)+2,FALSE)","v":262},{"$f":"HLOOKUP(CG$7+0.5,$I$66:$DJ$120,ROWS($A$10:$A14)+2,FALSE)","v":607},{"$f":"HLOOKUP(CH$7+0.5,$I$66:$DJ$120,ROWS($A$10:$A14)+2,FALSE)","v":285},{"$f":"HLOOKUP(CI$7+0.5,$I$66:$DJ$120,ROWS($A$10:$A14)+2,FALSE)","v":2537},{"$f":"HLOOKUP(CJ$7+0.5,$I$66:$DJ$120,ROWS($A$10:$A14)+2,FALSE)","v":2916},{"$f":"HLOOKUP(CK$7+0.5,$I$66:$DJ$120,ROWS($A$10:$A14)+2,FALSE)","v":293},{"$f":"HLOOKUP(CL$7+0.5,$I$66:$DJ$120,ROWS($A$10:$A14)+2,FALSE)","v":201},{"$f":"HLOOKUP(CM$7+0.5,$I$66:$DJ$120,ROWS($A$10:$A14)+2,FALSE)","v":161},{"$f":"HLOOKUP(CN$7+0.5,$I$66:$DJ$120,ROWS($A$10:$A14)+2,FALSE)","v":184},{"$f":"HLOOKUP(CO$7+0.5,$I$66:$DJ$120,ROWS($A$10:$A14)+2,FALSE)","v":171},{"$f":"HLOOKUP(CP$7+0.5,$I$66:$DJ$120,ROWS($A$10:$A14)+2,FALSE)","v":482},{"$f":"HLOOKUP(CQ$7+0.5,$I$66:$DJ$120,ROWS($A$10:$A14)+2,FALSE)","v":1559},{"$f":"HLOOKUP(CR$7+0.5,$I$66:$DJ$120,ROWS($A$10:$A14)+2,FALSE)","v":2173},{"$f":"HLOOKUP(CS$7+0.5,$I$66:$DJ$120,ROWS($A$10:$A14)+2,FALSE)","v":184},{"$f":"HLOOKUP(CT$7+0.5,$I$66:$DJ$120,ROWS($A$10:$A14)+2,FALSE)","v":626},{"$f":"HLOOKUP(CU$7+0.5,$I$66:$DJ$120,ROWS($A$10:$A14)+2,FALSE)","v":2371},{"$f":"HLOOKUP(CV$7+0.5,$I$66:$DJ$120,ROWS($A$10:$A14)+2,FALSE)","v":179},{"$f":"HLOOKUP(CW$7+0.5,$I$66:$DJ$120,ROWS($A$10:$A14)+2,FALSE)","v":475},{"$f":"HLOOKUP(CX$7+0.5,$I$66:$DJ$120,ROWS($A$10:$A14)+2,FALSE)","v":103},{"$f":"HLOOKUP(CY$7+0.5,$I$66:$DJ$120,ROWS($A$10:$A14)+2,FALSE)","v":71},{"$f":"HLOOKUP(CZ$7+0.5,$I$66:$DJ$120,ROWS($A$10:$A14)+2,FALSE)","v":588},{"$f":"HLOOKUP(DA$7+0.5,$I$66:$DJ$120,ROWS($A$10:$A14)+2,FALSE)","v":1127},{"$f":"HLOOKUP(DB$7+0.5,$I$66:$DJ$120,ROWS($A$10:$A14)+2,FALSE)","v":2841},{"$f":"HLOOKUP(DC$7+0.5,$I$66:$DJ$120,ROWS($A$10:$A14)+2,FALSE)","v":216},{"$f":"HLOOKUP(DD$7+0.5,$I$66:$DJ$120,ROWS($A$10:$A14)+2,FALSE)","v":184},{"$f":"HLOOKUP(DE$7+0.5,$I$66:$DJ$120,ROWS($A$10:$A14)+2,FALSE)","v":824},{"$f":"HLOOKUP(DF$7+0.5,$I$66:$DJ$120,ROWS($A$10:$A14)+2,FALSE)","v":226},{"$f":"HLOOKUP(DG$7+0.5,$I$66:$DJ$120,ROWS($A$10:$A14)+2,FALSE)","v":148},{"$f":"HLOOKUP(DH$7+0.5,$I$66:$DJ$120,ROWS($A$10:$A14)+2,FALSE)","v":467},{"$f":"HLOOKUP(DI$7+0.5,$I$66:$DJ$120,ROWS($A$10:$A14)+2,FALSE)","v":2098},{"$f":"HLOOKUP(DJ$7+0.5,$I$66:$DJ$120,ROWS($A$10:$A14)+2,FALSE)","v":184}]
[null,"California",37572738,10274,31777868,67939,5046618,65422,{"$f":"HLOOKUP(I$7,$I$66:$DJ$120,ROWS($A$10:$A15)+2,FALSE)","v":493641},{"$f":"HLOOKUP(J$7,$I$66:$DJ$120,ROWS($A$10:$A15)+2,FALSE)","v":2509},{"$f":"HLOOKUP(K$7,$I$66:$DJ$120,ROWS($A$10:$A15)+2,FALSE)","v":6995},{"$f":"HLOOKUP(L$7,$I$66:$DJ$120,ROWS($A$10:$A15)+2,FALSE)","v":38916},{"$f":"HLOOKUP(M$7,$I$66:$DJ$120,ROWS($A$10:$A15)+2,FALSE)","v":3472},{"$f":"HLOOKUP(N$7,$I$66:$DJ$120,ROWS($A$10:$A15)+2,FALSE)","v":"N/A"},{"$f":"HLOOKUP(O$7,$I$66:$DJ$120,ROWS($A$10:$A15)+2,FALSE)","v":15150},{"$f":"HLOOKUP(P$7,$I$66:$DJ$120,ROWS($A$10:$A15)+2,FALSE)","v":6764},{"$f":"HLOOKUP(Q$7,$I$66:$DJ$120,ROWS($A$10:$A15)+2,FALSE)","v":474},{"$f":"HLOOKUP(R$7,$I$66:$DJ$120,ROWS($A$10:$A15)+2,FALSE)","v":3199},{"$f":"HLOOKUP(S$7,$I$66:$DJ$120,ROWS($A$10:$A15)+2,FALSE)","v":21004},{"$f":"HLOOKUP(T$7,$I$66:$DJ$120,ROWS($A$10:$A15)+2,FALSE)","v":10790},{"$f":"HLOOKUP(U$7,$I$66:$DJ$120,ROWS($A$10:$A15)+2,FALSE)","v":11906},{"$f":"HLOOKUP(V$7,$I$66:$DJ$120,ROWS($A$10:$A15)+2,FALSE)","v":5331},{"$f":"HLOOKUP(W$7,$I$66:$DJ$120,ROWS($A$10:$A15)+2,FALSE)","v":21251},{"$f":"HLOOKUP(X$7,$I$66:$DJ$120,ROWS($A$10:$A15)+2,FALSE)","v":5891},{"$f":"HLOOKUP(Y$7,$I$66:$DJ$120,ROWS($A$10:$A15)+2,FALSE)","v":2284},{"$f":"HLOOKUP(Z$7,$I$66:$DJ$120,ROWS($A$10:$A15)+2,FALSE)","v":2790},{"$f":"HLOOKUP(AA$7,$I$66:$DJ$120,ROWS($A$10:$A15)+2,FALSE)","v":3763},{"$f":"HLOOKUP(AB$7,$I$66:$DJ$120,ROWS($A$10:$A15)+2,FALSE)","v":5180},{"$f":"HLOOKUP(AC$7,$I$66:$DJ$120,ROWS($A$10:$A15)+2,FALSE)","v":1256},{"$f":"HLOOKUP(AD$7,$I$66:$DJ$120,ROWS($A$10:$A15)+2,FALSE)","v":7902},{"$f":"HLOOKUP(AE$7,$I$66:$DJ$120,ROWS($A$10:$A15)+2,FALSE)","v":14356},{"$f":"HLOOKUP(AF$7,$I$66:$DJ$120,ROWS($A$10:$A15)+2,FALSE)","v":8921},{"$f":"HLOOKUP(AG$7,$I$66:$DJ$120,ROWS($A$10:$A15)+2,FALSE)","v":8539},{"$f":"HLOOKUP(AH$7,$I$66:$DJ$120,ROWS($A$10:$A15)+2,FALSE)","v":2556},{"$f":"HLOOKUP(AI$7,$I$66:$DJ$120,ROWS($A$10:$A15)+2,FALSE)","v":6729},{"$f":"HLOOKUP(AJ$7,$I$66:$DJ$120,ROWS($A$10:$A15)+2,FALSE)","v":3060},{"$f":"HLOOKUP(AK$7,$I$66:$DJ$120,ROWS($A$10:$A15)+2,FALSE)","v":3302},{"$f":"HLOOKUP(AL$7,$I$66:$DJ$120,ROWS($A$10:$A15)+2,FALSE)","v":27968},{"$f":"HLOOKUP(AM$7,$I$66:$DJ$120,ROWS($A$10:$A15)+2,FALSE)","v":1327},{"$f":"HLOOKUP(AN$7,$I$66:$DJ$120,ROWS($A$10:$A15)+2,FALSE)","v":12057},{"$f":"HLOOKUP(AO$7,$I$66:$DJ$120,ROWS($A$10:$A15)+2,FALSE)","v":5921},{"$f":"HLOOKUP(AP$7,$I$66:$DJ$120,ROWS($A$10:$A15)+2,FALSE)","v":31261},{"$f":"HLOOKUP(AQ$7,$I$66:$DJ$120,ROWS($A$10:$A15)+2,FALSE)","v":11195},{"$f":"HLOOKUP(AR$7,$I$66:$DJ$120,ROWS($A$10:$A15)+2,FALSE)","v":1827},{"$f":"HLOOKUP(AS$7,$I$66:$DJ$120,ROWS($A$10:$A15)+2,FALSE)","v":10653},{"$f":"HLOOKUP(AT$7,$I$66:$DJ$120,ROWS($A$10:$A15)+2,FALSE)","v":6671},{"$f":"HLOOKUP(AU$7,$I$66:$DJ$120,ROWS($A$10:$A15)+2,FALSE)","v":22724},{"$f":"HLOOKUP(AV$7,$I$66:$DJ$120,ROWS($A$10:$A15)+2,FALSE)","v":10466},{"$f":"HLOOKUP(AW$7,$I$66:$DJ$120,ROWS($A$10:$A15)+2,FALSE)","v":1648},{"$f":"HLOOKUP(AX$7,$I$66:$DJ$120,ROWS($A$10:$A15)+2,FALSE)","v":4110},{"$f":"HLOOKUP(AY$7,$I$66:$DJ$120,ROWS($A$10:$A15)+2,FALSE)","v":826},{"$f":"HLOOKUP(AZ$7,$I$66:$DJ$120,ROWS($A$10:$A15)+2,FALSE)","v":5802},{"$f":"HLOOKUP(BA$7,$I$66:$DJ$120,ROWS($A$10:$A15)+2,FALSE)","v":43005},{"$f":"HLOOKUP(BB$7,$I$66:$DJ$120,ROWS($A$10:$A15)+2,FALSE)","v":12172},{"$f":"HLOOKUP(BC$7,$I$66:$DJ$120,ROWS($A$10:$A15)+2,FALSE)","v":544},{"$f":"HLOOKUP(BD$7,$I$66:$DJ$120,ROWS($A$10:$A15)+2,FALSE)","v":15625},{"$f":"HLOOKUP(BE$7,$I$66:$DJ$120,ROWS($A$10:$A15)+2,FALSE)","v":34569},{"$f":"HLOOKUP(BF$7,$I$66:$DJ$120,ROWS($A$10:$A15)+2,FALSE)","v":1413},{"$f":"HLOOKUP(BG$7,$I$66:$DJ$120,ROWS($A$10:$A15)+2,FALSE)","v":5681},{"$f":"HLOOKUP(BH$7,$I$66:$DJ$120,ROWS($A$10:$A15)+2,FALSE)","v":1886},{"$f":"HLOOKUP(BI$7,$I$66:$DJ$120,ROWS($A$10:$A15)+2,FALSE)","v":2323},{"$f":"HLOOKUP(BJ$7+0.5,$I$66:$DJ$120,ROWS($A$10:$A15)+2,FALSE)","v":19652},{"$f":"HLOOKUP(BK$7+0.5,$I$66:$DJ$120,ROWS($A$10:$A15)+2,FALSE)","v":983},{"$f":"HLOOKUP(BL$7+0.5,$I$66:$DJ$120,ROWS($A$10:$A15)+2,FALSE)","v":1948},{"$f":"HLOOKUP(BM$7+0.5,$I$66:$DJ$120,ROWS($A$10:$A15)+2,FALSE)","v":5726},{"$f":"HLOOKUP(BN$7+0.5,$I$66:$DJ$120,ROWS($A$10:$A15)+2,FALSE)","v":1354},{"$f":"HLOOKUP(BO$7+0.5,$I$66:$DJ$120,ROWS($A$10:$A15)+2,FALSE)","v":"N/A"},{"$f":"HLOOKUP(BP$7+0.5,$I$66:$DJ$120,ROWS($A$10:$A15)+2,FALSE)","v":2598},{"$f":"HLOOKUP(BQ$7+0.5,$I$66:$DJ$120,ROWS($A$10:$A15)+2,FALSE)","v":2194},{"$f":"HLOOKUP(BR$7+0.5,$I$66:$DJ$120,ROWS($A$10:$A15)+2,FALSE)","v":413},{"$f":"HLOOKUP(BS$7+0.5,$I$66:$DJ$120,ROWS($A$10:$A15)+2,FALSE)","v":1061},{"$f":"HLOOKUP(BT$7+0.5,$I$66:$DJ$120,ROWS($A$10:$A15)+2,FALSE)","v":3394},{"$f":"HLOOKUP(BU$7+0.5,$I$66:$DJ$120,ROWS($A$10:$A15)+2,FALSE)","v":2458},{"$f":"HLOOKUP(BV$7+0.5,$I$66:$DJ$120,ROWS($A$10:$A15)+2,FALSE)","v":2720},{"$f":"HLOOKUP(BW$7+0.5,$I$66:$DJ$120,ROWS($A$10:$A15)+2,FALSE)","v":1519},{"$f":"HLOOKUP(BX$7+0.5,$I$66:$DJ$120,ROWS($A$10:$A15)+2,FALSE)","v":3521},{"$f":"HLOOKUP(BY$7+0.5,$I$66:$DJ$120,ROWS($A$10:$A15)+2,FALSE)","v":1629},{"$f":"HLOOKUP(BZ$7+0.5,$I$66:$DJ$120,ROWS($A$10:$A15)+2,FALSE)","v":987},{"$f":"HLOOKUP(CA$7+0.5,$I$66:$DJ$120,ROWS($A$10:$A15)+2,FALSE)","v":984},{"$f":"HLOOKUP(CB$7+0.5,$I$66:$DJ$120,ROWS($A$10:$A15)+2,FALSE)","v":1292},{"$f":"HLOOKUP(CC$7+0.5,$I$66:$DJ$120,ROWS($A$10:$A15)+2,FALSE)","v":1525},{"$f":"HLOOKUP(CD$7+0.5,$I$66:$DJ$120,ROWS($A$10:$A15)+2,FALSE)","v":951},{"$f":"HLOOKUP(CE$7+0.5,$I$66:$DJ$120,ROWS($A$10:$A15)+2,FALSE)","v":2347},{"$f":"HLOOKUP(CF$7+0.5,$I$66:$DJ$120,ROWS($A$10:$A15)+2,FALSE)","v":2682},{"$f":"HLOOKUP(CG$7+0.5,$I$66:$DJ$120,ROWS($A$10:$A15)+2,FALSE)","v":2069},{"$f":"HLOOKUP(CH$7+0.5,$I$66:$DJ$120,ROWS($A$10:$A15)+2,FALSE)","v":1942},{"$f":"HLOOKUP(CI$7+0.5,$I$66:$DJ$120,ROWS($A$10:$A15)+2,FALSE)","v":993},{"$f":"HLOOKUP(CJ$7+0.5,$I$66:$DJ$120,ROWS($A$10:$A15)+2,FALSE)","v":1595},{"$f":"HLOOKUP(CK$7+0.5,$I$66:$DJ$120,ROWS($A$10:$A15)+2,FALSE)","v":1275},{"$f":"HLOOKUP(CL$7+0.5,$I$66:$DJ$120,ROWS($A$10:$A15)+2,FALSE)","v":2007},{"$f":"HLOOKUP(CM$7+0.5,$I$66:$DJ$120,ROWS($A$10:$A15)+2,FALSE)","v":3857},{"$f":"HLOOKUP(CN$7+0.5,$I$66:$DJ$120,ROWS($A$10:$A15)+2,FALSE)","v":615},{"$f":"HLOOKUP(CO$7+0.5,$I$66:$DJ$120,ROWS($A$10:$A15)+2,FALSE)","v":2447},{"$f":"HLOOKUP(CP$7+0.5,$I$66:$DJ$120,ROWS($A$10:$A15)+2,FALSE)","v":2240},{"$f":"HLOOKUP(CQ$7+0.5,$I$66:$DJ$120,ROWS($A$10:$A15)+2,FALSE)","v":5136},{"$f":"HLOOKUP(CR$7+0.5,$I$66:$DJ$120,ROWS($A$10:$A15)+2,FALSE)","v":2366},{"$f":"HLOOKUP(CS$7+0.5,$I$66:$DJ$120,ROWS($A$10:$A15)+2,FALSE)","v":1272},{"$f":"HLOOKUP(CT$7+0.5,$I$66:$DJ$120,ROWS($A$10:$A15)+2,FALSE)","v":2869},{"$f":"HLOOKUP(CU$7+0.5,$I$66:$DJ$120,ROWS($A$10:$A15)+2,FALSE)","v":1795},{"$f":"HLOOKUP(CV$7+0.5,$I$66:$DJ$120,ROWS($A$10:$A15)+2,FALSE)","v":3271},{"$f":"HLOOKUP(CW$7+0.5,$I$66:$DJ$120,ROWS($A$10:$A15)+2,FALSE)","v":2392},{"$f":"HLOOKUP(CX$7+0.5,$I$66:$DJ$120,ROWS($A$10:$A15)+2,FALSE)","v":697},{"$f":"HLOOKUP(CY$7+0.5,$I$66:$DJ$120,ROWS($A$10:$A15)+2,FALSE)","v":1492},{"$f":"HLOOKUP(CZ$7+0.5,$I$66:$DJ$120,ROWS($A$10:$A15)+2,FALSE)","v":674},{"$f":"HLOOKUP(DA$7+0.5,$I$66:$DJ$120,ROWS($A$10:$A15)+2,FALSE)","v":1880},{"$f":"HLOOKUP(DB$7+0.5,$I$66:$DJ$120,ROWS($A$10:$A15)+2,FALSE)","v":5519},{"$f":"HLOOKUP(DC$7+0.5,$I$66:$DJ$120,ROWS($A$10:$A15)+2,FALSE)","v":2457},{"$f":"HLOOKUP(DD$7+0.5,$I$66:$DJ$120,ROWS($A$10:$A15)+2,FALSE)","v":345},{"$f":"HLOOKUP(DE$7+0.5,$I$66:$DJ$120,ROWS($A$10:$A15)+2,FALSE)","v":3457},{"$f":"HLOOKUP(DF$7+0.5,$I$66:$DJ$120,ROWS($A$10:$A15)+2,FALSE)","v":4540},{"$f":"HLOOKUP(DG$7+0.5,$I$66:$DJ$120,ROWS($A$10:$A15)+2,FALSE)","v":1135},{"$f":"HLOOKUP(DH$7+0.5,$I$66:$DJ$120,ROWS($A$10:$A15)+2,FALSE)","v":1716},{"$f":"HLOOKUP(DI$7+0.5,$I$66:$DJ$120,ROWS($A$10:$A15)+2,FALSE)","v":1117},{"$f":"HLOOKUP(DJ$7+0.5,$I$66:$DJ$120,ROWS($A$10:$A15)+2,FALSE)","v":1076}]
[null,"Colorado",5123944,2939,4131357,21752,751921,19587,{"$f":"HLOOKUP(I$7,$I$66:$DJ$120,ROWS($A$10:$A16)+2,FALSE)","v":205060},{"$f":"HLOOKUP(J$7,$I$66:$DJ$120,ROWS($A$10:$A16)+2,FALSE)","v":3108},{"$f":"HLOOKUP(K$7,$I$66:$DJ$120,ROWS($A$10:$A16)+2,FALSE)","v":3457},{"$f":"HLOOKUP(L$7,$I$66:$DJ$120,ROWS($A$10:$A16)+2,FALSE)","v":10589},{"$f":"HLOOKUP(M$7,$I$66:$DJ$120,ROWS($A$10:$A16)+2,FALSE)","v":1043},{"$f":"HLOOKUP(N$7,$I$66:$DJ$120,ROWS($A$10:$A16)+2,FALSE)","v":22152},{"$f":"HLOOKUP(O$7,$I$66:$DJ$120,ROWS($A$10:$A16)+2,FALSE)","v":"N/A"},{"$f":"HLOOKUP(P$7,$I$66:$DJ$120,ROWS($A$10:$A16)+2,FALSE)","v":1317},{"$f":"HLOOKUP(Q$7,$I$66:$DJ$120,ROWS($A$10:$A16)+2,FALSE)","v":70},{"$f":"HLOOKUP(R$7,$I$66:$DJ$120,ROWS($A$10:$A16)+2,FALSE)","v":488},{"$f":"HLOOKUP(S$7,$I$66:$DJ$120,ROWS($A$10:$A16)+2,FALSE)","v":8615},{"$f":"HLOOKUP(T$7,$I$66:$DJ$120,ROWS($A$10:$A16)+2,FALSE)","v":5834},{"$f":"HLOOKUP(U$7,$I$66:$DJ$120,ROWS($A$10:$A16)+2,FALSE)","v":2536},{"$f":"HLOOKUP(V$7,$I$66:$DJ$120,ROWS($A$10:$A16)+2,FALSE)","v":2660},{"$f":"HLOOKUP(W$7,$I$66:$DJ$120,ROWS($A$10:$A16)+2,FALSE)","v":6374},{"$f":"HLOOKUP(X$7,$I$66:$DJ$120,ROWS($A$10:$A16)+2,FALSE)","v":4336},{"$f":"HLOOKUP(Y$7,$I$66:$DJ$120,ROWS($A$10:$A16)+2,FALSE)","v":2776},{"$f":"HLOOKUP(Z$7,$I$66:$DJ$120,ROWS($A$10:$A16)+2,FALSE)","v":5283},{"$f":"HLOOKUP(AA$7,$I$66:$DJ$120,ROWS($A$10:$A16)+2,FALSE)","v":2500},{"$f":"HLOOKUP(AB$7,$I$66:$DJ$120,ROWS($A$10:$A16)+2,FALSE)","v":5048},{"$f":"HLOOKUP(AC$7,$I$66:$DJ$120,ROWS($A$10:$A16)+2,FALSE)","v":20},{"$f":"HLOOKUP(AD$7,$I$66:$DJ$120,ROWS($A$10:$A16)+2,FALSE)","v":2844},{"$f":"HLOOKUP(AE$7,$I$66:$DJ$120,ROWS($A$10:$A16)+2,FALSE)","v":5939},{"$f":"HLOOKUP(AF$7,$I$66:$DJ$120,ROWS($A$10:$A16)+2,FALSE)","v":3343},{"$f":"HLOOKUP(AG$7,$I$66:$DJ$120,ROWS($A$10:$A16)+2,FALSE)","v":2992},{"$f":"HLOOKUP(AH$7,$I$66:$DJ$120,ROWS($A$10:$A16)+2,FALSE)","v":835},{"$f":"HLOOKUP(AI$7,$I$66:$DJ$120,ROWS($A$10:$A16)+2,FALSE)","v":3771},{"$f":"HLOOKUP(AJ$7,$I$66:$DJ$120,ROWS($A$10:$A16)+2,FALSE)","v":2021},{"$f":"HLOOKUP(AK$7,$I$66:$DJ$120,ROWS($A$10:$A16)+2,FALSE)","v":4472},{"$f":"HLOOKUP(AL$7,$I$66:$DJ$120,ROWS($A$10:$A16)+2,FALSE)","v":3789},{"$f":"HLOOKUP(AM$7,$I$66:$DJ$120,ROWS($A$10:$A16)+2,FALSE)","v":679},{"$f":"HLOOKUP(AN$7,$I$66:$DJ$120,ROWS($A$10:$A16)+2,FALSE)","v":2464},{"$f":"HLOOKUP(AO$7,$I$66:$DJ$120,ROWS($A$10:$A16)+2,FALSE)","v":6520},{"$f":"HLOOKUP(AP$7,$I$66:$DJ$120,ROWS($A$10:$A16)+2,FALSE)","v":7250},{"$f":"HLOOKUP(AQ$7,$I$66:$DJ$120,ROWS($A$10:$A16)+2,FALSE)","v":4378},{"$f":"HLOOKUP(AR$7,$I$66:$DJ$120,ROWS($A$10:$A16)+2,FALSE)","v":1918},{"$f":"HLOOKUP(AS$7,$I$66:$DJ$120,ROWS($A$10:$A16)+2,FALSE)","v":4533},{"$f":"HLOOKUP(AT$7,$I$66:$DJ$120,ROWS($A$10:$A16)+2,FALSE)","v":4582},{"$f":"HLOOKUP(AU$7,$I$66:$DJ$120,ROWS($A$10:$A16)+2,FALSE)","v":2419},{"$f":"HLOOKUP(AV$7,$I$66:$DJ$120,ROWS($A$10:$A16)+2,FALSE)","v":3950},{"$f":"HLOOKUP(AW$7,$I$66:$DJ$120,ROWS($A$10:$A16)+2,FALSE)","v":137},{"$f":"HLOOKUP(AX$7,$I$66:$DJ$120,ROWS($A$10:$A16)+2,FALSE)","v":2383},{"$f":"HLOOKUP(AY$7,$I$66:$DJ$120,ROWS($A$10:$A16)+2,FALSE)","v":756},{"$f":"HLOOKUP(AZ$7,$I$66:$DJ$120,ROWS($A$10:$A16)+2,FALSE)","v":2535},{"$f":"HLOOKUP(BA$7,$I$66:$DJ$120,ROWS($A$10:$A16)+2,FALSE)","v":17355},{"$f":"HLOOKUP(BB$7,$I$66:$DJ$120,ROWS($A$10:$A16)+2,FALSE)","v":6398},{"$f":"HLOOKUP(BC$7,$I$66:$DJ$120,ROWS($A$10:$A16)+2,FALSE)","v":503},{"$f":"HLOOKUP(BD$7,$I$66:$DJ$120,ROWS($A$10:$A16)+2,FALSE)","v":3796},{"$f":"HLOOKUP(BE$7,$I$66:$DJ$120,ROWS($A$10:$A16)+2,FALSE)","v":4853},{"$f":"HLOOKUP(BF$7,$I$66:$DJ$120,ROWS($A$10:$A16)+2,FALSE)","v":837},{"$f":"HLOOKUP(BG$7,$I$66:$DJ$120,ROWS($A$10:$A16)+2,FALSE)","v":3000},{"$f":"HLOOKUP(BH$7,$I$66:$DJ$120,ROWS($A$10:$A16)+2,FALSE)","v":5602},{"$f":"HLOOKUP(BI$7,$I$66:$DJ$120,ROWS($A$10:$A16)+2,FALSE)","v":1144},{"$f":"HLOOKUP(BJ$7+0.5,$I$66:$DJ$120,ROWS($A$10:$A16)+2,FALSE)","v":11855},{"$f":"HLOOKUP(BK$7+0.5,$I$66:$DJ$120,ROWS($A$10:$A16)+2,FALSE)","v":1610},{"$f":"HLOOKUP(BL$7+0.5,$I$66:$DJ$120,ROWS($A$10:$A16)+2,FALSE)","v":1695},{"$f":"HLOOKUP(BM$7+0.5,$I$66:$DJ$120,ROWS($A$10:$A16)+2,FALSE)","v":2218},{"$f":"HLOOKUP(BN$7+0.5,$I$66:$DJ$120,ROWS($A$10:$A16)+2,FALSE)","v":580},{"$f":"HLOOKUP(BO$7+0.5,$I$66:$DJ$120,ROWS($A$10:$A16)+2,FALSE)","v":4260},{"$f":"HLOOKUP(BP$7+0.5,$I$66:$DJ$120,ROWS($A$10:$A16)+2,FALSE)","v":"N/A"},{"$f":"HLOOKUP(BQ$7+0.5,$I$66:$DJ$120,ROWS($A$10:$A16)+2,FALSE)","v":677},{"$f":"HLOOKUP(BR$7+0.5,$I$66:$DJ$120,ROWS($A$10:$A16)+2,FALSE)","v":133},{"$f":"HLOOKUP(BS$7+0.5,$I$66:$DJ$120,ROWS($A$10:$A16)+2,FALSE)","v":387},{"$f":"HLOOKUP(BT$7+0.5,$I$66:$DJ$120,ROWS($A$10:$A16)+2,FALSE)","v":1907},{"$f":"HLOOKUP(BU$7+0.5,$I$66:$DJ$120,ROWS($A$10:$A16)+2,FALSE)","v":2086},{"$f":"HLOOKUP(BV$7+0.5,$I$66:$DJ$120,ROWS($A$10:$A16)+2,FALSE)","v":1020},{"$f":"HLOOKUP(BW$7+0.5,$I$66:$DJ$120,ROWS($A$10:$A16)+2,FALSE)","v":1468},{"$f":"HLOOKUP(BX$7+0.5,$I$66:$DJ$120,ROWS($A$10:$A16)+2,FALSE)","v":1617},{"$f":"HLOOKUP(BY$7+0.5,$I$66:$DJ$120,ROWS($A$10:$A16)+2,FALSE)","v":2128},{"$f":"HLOOKUP(BZ$7+0.5,$I$66:$DJ$120,ROWS($A$10:$A16)+2,FALSE)","v":1486},{"$f":"HLOOKUP(CA$7+0.5,$I$66:$DJ$120,ROWS($A$10:$A16)+2,FALSE)","v":1843},{"$f":"HLOOKUP(CB$7+0.5,$I$66:$DJ$120,ROWS($A$10:$A16)+2,FALSE)","v":2135},{"$f":"HLOOKUP(CC$7+0.5,$I$66:$DJ$120,ROWS($A$10:$A16)+2,FALSE)","v":2468},{"$f":"HLOOKUP(CD$7+0.5,$I$66:$DJ$120,ROWS($A$10:$A16)+2,FALSE)","v":40},{"$f":"HLOOKUP(CE$7+0.5,$I$66:$DJ$120,ROWS($A$10:$A16)+2,FALSE)","v":1196},{"$f":"HLOOKUP(CF$7+0.5,$I$66:$DJ$120,ROWS($A$10:$A16)+2,FALSE)","v":2238},{"$f":"HLOOKUP(CG$7+0.5,$I$66:$DJ$120,ROWS($A$10:$A16)+2,FALSE)","v":1293},{"$f":"HLOOKUP(CH$7+0.5,$I$66:$DJ$120,ROWS($A$10:$A16)+2,FALSE)","v":909},{"$f":"HLOOKUP(CI$7+0.5,$I$66:$DJ$120,ROWS($A$10:$A16)+2,FALSE)","v":522},{"$f":"HLOOKUP(CJ$7+0.5,$I$66:$DJ$120,ROWS($A$10:$A16)+2,FALSE)","v":1262},{"$f":"HLOOKUP(CK$7+0.5,$I$66:$DJ$120,ROWS($A$10:$A16)+2,FALSE)","v":923},{"$f":"HLOOKUP(CL$7+0.5,$I$66:$DJ$120,ROWS($A$10:$A16)+2,FALSE)","v":1729},{"$f":"HLOOKUP(CM$7+0.5,$I$66:$DJ$120,ROWS($A$10:$A16)+2,FALSE)","v":1433},{"$f":"HLOOKUP(CN$7+0.5,$I$66:$DJ$120,ROWS($A$10:$A16)+2,FALSE)","v":308},{"$f":"HLOOKUP(CO$7+0.5,$I$66:$DJ$120,ROWS($A$10:$A16)+2,FALSE)","v":1179},{"$f":"HLOOKUP(CP$7+0.5,$I$66:$DJ$120,ROWS($A$10:$A16)+2,FALSE)","v":1851},{"$f":"HLOOKUP(CQ$7+0.5,$I$66:$DJ$120,ROWS($A$10:$A16)+2,FALSE)","v":2604},{"$f":"HLOOKUP(CR$7+0.5,$I$66:$DJ$120,ROWS($A$10:$A16)+2,FALSE)","v":1678},{"$f":"HLOOKUP(CS$7+0.5,$I$66:$DJ$120,ROWS($A$10:$A16)+2,FALSE)","v":1071},{"$f":"HLOOKUP(CT$7+0.5,$I$66:$DJ$120,ROWS($A$10:$A16)+2,FALSE)","v":2214},{"$f":"HLOOKUP(CU$7+0.5,$I$66:$DJ$120,ROWS($A$10:$A16)+2,FALSE)","v":2102},{"$f":"HLOOKUP(CV$7+0.5,$I$66:$DJ$120,ROWS($A$10:$A16)+2,FALSE)","v":836},{"$f":"HLOOKUP(CW$7+0.5,$I$66:$DJ$120,ROWS($A$10:$A16)+2,FALSE)","v":1530},{"$f":"HLOOKUP(CX$7+0.5,$I$66:$DJ$120,ROWS($A$10:$A16)+2,FALSE)","v":153},{"$f":"HLOOKUP(CY$7+0.5,$I$66:$DJ$120,ROWS($A$10:$A16)+2,FALSE)","v":1479},{"$f":"HLOOKUP(CZ$7+0.5,$I$66:$DJ$120,ROWS($A$10:$A16)+2,FALSE)","v":553},{"$f":"HLOOKUP(DA$7+0.5,$I$66:$DJ$120,ROWS($A$10:$A16)+2,FALSE)","v":1135},{"$f":"HLOOKUP(DB$7+0.5,$I$66:$DJ$120,ROWS($A$10:$A16)+2,FALSE)","v":3352},{"$f":"HLOOKUP(DC$7+0.5,$I$66:$DJ$120,ROWS($A$10:$A16)+2,FALSE)","v":2035},{"$f":"HLOOKUP(DD$7+0.5,$I$66:$DJ$120,ROWS($A$10:$A16)+2,FALSE)","v":371},{"$f":"HLOOKUP(DE$7+0.5,$I$66:$DJ$120,ROWS($A$10:$A16)+2,FALSE)","v":1568},{"$f":"HLOOKUP(DF$7+0.5,$I$66:$DJ$120,ROWS($A$10:$A16)+2,FALSE)","v":1401},{"$f":"HLOOKUP(DG$7+0.5,$I$66:$DJ$120,ROWS($A$10:$A16)+2,FALSE)","v":429},{"$f":"HLOOKUP(DH$7+0.5,$I$66:$DJ$120,ROWS($A$10:$A16)+2,FALSE)","v":1006},{"$f":"HLOOKUP(DI$7+0.5,$I$66:$DJ$120,ROWS($A$10:$A16)+2,FALSE)","v":2808},{"$f":"HLOOKUP(DJ$7+0.5,$I$66:$DJ$120,ROWS($A$10:$A16)+2,FALSE)","v":903}]
[null,"Connecticut",3555319,2447,3114940,16188,334918,14546,{"$f":"HLOOKUP(I$7,$I$66:$DJ$120,ROWS($A$10:$A17)+2,FALSE)","v":80311},{"$f":"HLOOKUP(J$7,$I$66:$DJ$120,ROWS($A$10:$A17)+2,FALSE)","v":46},{"$f":"HLOOKUP(K$7,$I$66:$DJ$120,ROWS($A$10:$A17)+2,FALSE)","v":439},{"$f":"HLOOKUP(L$7,$I$66:$DJ$120,ROWS($A$10:$A17)+2,FALSE)","v":3167},{"$f":"HLOOKUP(M$7,$I$66:$DJ$120,ROWS($A$10:$A17)+2,FALSE)","v":200},{"$f":"HLOOKUP(N$7,$I$66:$DJ$120,ROWS($A$10:$A17)+2,FALSE)","v":3161},{"$f":"HLOOKUP(O$7,$I$66:$DJ$120,ROWS($A$10:$A17)+2,FALSE)","v":367},{"$f":"HLOOKUP(P$7,$I$66:$DJ$120,ROWS($A$10:$A17)+2,FALSE)","v":"N/A"},{"$f":"HLOOKUP(Q$7,$I$66:$DJ$120,ROWS($A$10:$A17)+2,FALSE)","v":22},{"$f":"HLOOKUP(R$7,$I$66:$DJ$120,ROWS($A$10:$A17)+2,FALSE)","v":288},{"$f":"HLOOKUP(S$7,$I$66:$DJ$120,ROWS($A$10:$A17)+2,FALSE)","v":6578},{"$f":"HLOOKUP(T$7,$I$66:$DJ$120,ROWS($A$10:$A17)+2,FALSE)","v":1702},{"$f":"HLOOKUP(U$7,$I$66:$DJ$120,ROWS($A$10:$A17)+2,FALSE)","v":408},{"$f":"HLOOKUP(V$7,$I$66:$DJ$120,ROWS($A$10:$A17)+2,FALSE)","v":97},{"$f":"HLOOKUP(W$7,$I$66:$DJ$120,ROWS($A$10:$A17)+2,FALSE)","v":912},{"$f":"HLOOKUP(X$7,$I$66:$DJ$120,ROWS($A$10:$A17)+2,FALSE)","v":53},{"$f":"HLOOKUP(Y$7,$I$66:$DJ$120,ROWS($A$10:$A17)+2,FALSE)","v":0},{"$f":"HLOOKUP(Z$7,$I$66:$DJ$120,ROWS($A$10:$A17)+2,FALSE)","v":0},{"$f":"HLOOKUP(AA$7,$I$66:$DJ$120,ROWS($A$10:$A17)+2,FALSE)","v":124},{"$f":"HLOOKUP(AB$7,$I$66:$DJ$120,ROWS($A$10:$A17)+2,FALSE)","v":909},{"$f":"HLOOKUP(AC$7,$I$66:$DJ$120,ROWS($A$10:$A17)+2,FALSE)","v":1224},{"$f":"HLOOKUP(AD$7,$I$66:$DJ$120,ROWS($A$10:$A17)+2,FALSE)","v":1752},{"$f":"HLOOKUP(AE$7,$I$66:$DJ$120,ROWS($A$10:$A17)+2,FALSE)","v":8743},{"$f":"HLOOKUP(AF$7,$I$66:$DJ$120,ROWS($A$10:$A17)+2,FALSE)","v":753},{"$f":"HLOOKUP(AG$7,$I$66:$DJ$120,ROWS($A$10:$A17)+2,FALSE)","v":605},{"$f":"HLOOKUP(AH$7,$I$66:$DJ$120,ROWS($A$10:$A17)+2,FALSE)","v":276},{"$f":"HLOOKUP(AI$7,$I$66:$DJ$120,ROWS($A$10:$A17)+2,FALSE)","v":358},{"$f":"HLOOKUP(AJ$7,$I$66:$DJ$120,ROWS($A$10:$A17)+2,FALSE)","v":50},{"$f":"HLOOKUP(AK$7,$I$66:$DJ$120,ROWS($A$10:$A17)+2,FALSE)","v":45},{"$f":"HLOOKUP(AL$7,$I$66:$DJ$120,ROWS($A$10:$A17)+2,FALSE)","v":172},{"$f":"HLOOKUP(AM$7,$I$66:$DJ$120,ROWS($A$10:$A17)+2,FALSE)","v":1009},{"$f":"HLOOKUP(AN$7,$I$66:$DJ$120,ROWS($A$10:$A17)+2,FALSE)","v":5665},{"$f":"HLOOKUP(AO$7,$I$66:$DJ$120,ROWS($A$10:$A17)+2,FALSE)","v":444},{"$f":"HLOOKUP(AP$7,$I$66:$DJ$120,ROWS($A$10:$A17)+2,FALSE)","v":23310},{"$f":"HLOOKUP(AQ$7,$I$66:$DJ$120,ROWS($A$10:$A17)+2,FALSE)","v":3379},{"$f":"HLOOKUP(AR$7,$I$66:$DJ$120,ROWS($A$10:$A17)+2,FALSE)","v":0},{"$f":"HLOOKUP(AS$7,$I$66:$DJ$120,ROWS($A$10:$A17)+2,FALSE)","v":287},{"$f":"HLOOKUP(AT$7,$I$66:$DJ$120,ROWS($A$10:$A17)+2,FALSE)","v":415},{"$f":"HLOOKUP(AU$7,$I$66:$DJ$120,ROWS($A$10:$A17)+2,FALSE)","v":35},{"$f":"HLOOKUP(AV$7,$I$66:$DJ$120,ROWS($A$10:$A17)+2,FALSE)","v":2214},{"$f":"HLOOKUP(AW$7,$I$66:$DJ$120,ROWS($A$10:$A17)+2,FALSE)","v":1558},{"$f":"HLOOKUP(AX$7,$I$66:$DJ$120,ROWS($A$10:$A17)+2,FALSE)","v":940},{"$f":"HLOOKUP(AY$7,$I$66:$DJ$120,ROWS($A$10:$A17)+2,FALSE)","v":0},{"$f":"HLOOKUP(AZ$7,$I$66:$DJ$120,ROWS($A$10:$A17)+2,FALSE)","v":260},{"$f":"HLOOKUP(BA$7,$I$66:$DJ$120,ROWS($A$10:$A17)+2,FALSE)","v":3279},{"$f":"HLOOKUP(BB$7,$I$66:$DJ$120,ROWS($A$10:$A17)+2,FALSE)","v":45},{"$f":"HLOOKUP(BC$7,$I$66:$DJ$120,ROWS($A$10:$A17)+2,FALSE)","v":709},{"$f":"HLOOKUP(BD$7,$I$66:$DJ$120,ROWS($A$10:$A17)+2,FALSE)","v":1729},{"$f":"HLOOKUP(BE$7,$I$66:$DJ$120,ROWS($A$10:$A17)+2,FALSE)","v":1593},{"$f":"HLOOKUP(BF$7,$I$66:$DJ$120,ROWS($A$10:$A17)+2,FALSE)","v":174},{"$f":"HLOOKUP(BG$7,$I$66:$DJ$120,ROWS($A$10:$A17)+2,FALSE)","v":711},{"$f":"HLOOKUP(BH$7,$I$66:$DJ$120,ROWS($A$10:$A17)+2,FALSE)","v":104},{"$f":"HLOOKUP(BI$7,$I$66:$DJ$120,ROWS($A$10:$A17)+2,FALSE)","v":3228},{"$f":"HLOOKUP(BJ$7+0.5,$I$66:$DJ$120,ROWS($A$10:$A17)+2,FALSE)","v":6574},{"$f":"HLOOKUP(BK$7+0.5,$I$66:$DJ$120,ROWS($A$10:$A17)+2,FALSE)","v":103},{"$f":"HLOOKUP(BL$7+0.5,$I$66:$DJ$120,ROWS($A$10:$A17)+2,FALSE)","v":511},{"$f":"HLOOKUP(BM$7+0.5,$I$66:$DJ$120,ROWS($A$10:$A17)+2,FALSE)","v":3028},{"$f":"HLOOKUP(BN$7+0.5,$I$66:$DJ$120,ROWS($A$10:$A17)+2,FALSE)","v":228},{"$f":"HLOOKUP(BO$7+0.5,$I$66:$DJ$120,ROWS($A$10:$A17)+2,FALSE)","v":1015},{"$f":"HLOOKUP(BP$7+0.5,$I$66:$DJ$120,ROWS($A$10:$A17)+2,FALSE)","v":341},{"$f":"HLOOKUP(BQ$7+0.5,$I$66:$DJ$120,ROWS($A$10:$A17)+2,FALSE)","v":"N/A"},{"$f":"HLOOKUP(BR$7+0.5,$I$66:$DJ$120,ROWS($A$10:$A17)+2,FALSE)","v":36},{"$f":"HLOOKUP(BS$7+0.5,$I$66:$DJ$120,ROWS($A$10:$A17)+2,FALSE)","v":230},{"$f":"HLOOKUP(BT$7+0.5,$I$66:$DJ$120,ROWS($A$10:$A17)+2,FALSE)","v":1844},{"$f":"HLOOKUP(BU$7+0.5,$I$66:$DJ$120,ROWS($A$10:$A17)+2,FALSE)","v":971},{"$f":"HLOOKUP(BV$7+0.5,$I$66:$DJ$120,ROWS($A$10:$A17)+2,FALSE)","v":476},{"$f":"HLOOKUP(BW$7+0.5,$I$66:$DJ$120,ROWS($A$10:$A17)+2,FALSE)","v":155},{"$f":"HLOOKUP(BX$7+0.5,$I$66:$DJ$120,ROWS($A$10:$A17)+2,FALSE)","v":583},{"$f":"HLOOKUP(BY$7+0.5,$I$66:$DJ$120,ROWS($A$10:$A17)+2,FALSE)","v":90},{"$f":"HLOOKUP(BZ$7+0.5,$I$66:$DJ$120,ROWS($A$10:$A17)+2,FALSE)","v":193},{"$f":"HLOOKUP(CA$7+0.5,$I$66:$DJ$120,ROWS($A$10:$A17)+2,FALSE)","v":193},{"$f":"HLOOKUP(CB$7+0.5,$I$66:$DJ$120,ROWS($A$10:$A17)+2,FALSE)","v":159},{"$f":"HLOOKUP(CC$7+0.5,$I$66:$DJ$120,ROWS($A$10:$A17)+2,FALSE)","v":733},{"$f":"HLOOKUP(CD$7+0.5,$I$66:$DJ$120,ROWS($A$10:$A17)+2,FALSE)","v":696},{"$f":"HLOOKUP(CE$7+0.5,$I$66:$DJ$120,ROWS($A$10:$A17)+2,FALSE)","v":748},{"$f":"HLOOKUP(CF$7+0.5,$I$66:$DJ$120,ROWS($A$10:$A17)+2,FALSE)","v":1587},{"$f":"HLOOKUP(CG$7+0.5,$I$66:$DJ$120,ROWS($A$10:$A17)+2,FALSE)","v":539},{"$f":"HLOOKUP(CH$7+0.5,$I$66:$DJ$120,ROWS($A$10:$A17)+2,FALSE)","v":564},{"$f":"HLOOKUP(CI$7+0.5,$I$66:$DJ$120,ROWS($A$10:$A17)+2,FALSE)","v":293},{"$f":"HLOOKUP(CJ$7+0.5,$I$66:$DJ$120,ROWS($A$10:$A17)+2,FALSE)","v":330},{"$f":"HLOOKUP(CK$7+0.5,$I$66:$DJ$120,ROWS($A$10:$A17)+2,FALSE)","v":91},{"$f":"HLOOKUP(CL$7+0.5,$I$66:$DJ$120,ROWS($A$10:$A17)+2,FALSE)","v":74},{"$f":"HLOOKUP(CM$7+0.5,$I$66:$DJ$120,ROWS($A$10:$A17)+2,FALSE)","v":166},{"$f":"HLOOKUP(CN$7+0.5,$I$66:$DJ$120,ROWS($A$10:$A17)+2,FALSE)","v":551},{"$f":"HLOOKUP(CO$7+0.5,$I$66:$DJ$120,ROWS($A$10:$A17)+2,FALSE)","v":1490},{"$f":"HLOOKUP(CP$7+0.5,$I$66:$DJ$120,ROWS($A$10:$A17)+2,FALSE)","v":450},{"$f":"HLOOKUP(CQ$7+0.5,$I$66:$DJ$120,ROWS($A$10:$A17)+2,FALSE)","v":3774},{"$f":"HLOOKUP(CR$7+0.5,$I$66:$DJ$120,ROWS($A$10:$A17)+2,FALSE)","v":1609},{"$f":"HLOOKUP(CS$7+0.5,$I$66:$DJ$120,ROWS($A$10:$A17)+2,FALSE)","v":193},{"$f":"HLOOKUP(CT$7+0.5,$I$66:$DJ$120,ROWS($A$10:$A17)+2,FALSE)","v":254},{"$f":"HLOOKUP(CU$7+0.5,$I$66:$DJ$120,ROWS($A$10:$A17)+2,FALSE)","v":411},{"$f":"HLOOKUP(CV$7+0.5,$I$66:$DJ$120,ROWS($A$10:$A17)+2,FALSE)","v":58},{"$f":"HLOOKUP(CW$7+0.5,$I$66:$DJ$120,ROWS($A$10:$A17)+2,FALSE)","v":1037},{"$f":"HLOOKUP(CX$7+0.5,$I$66:$DJ$120,ROWS($A$10:$A17)+2,FALSE)","v":689},{"$f":"HLOOKUP(CY$7+0.5,$I$66:$DJ$120,ROWS($A$10:$A17)+2,FALSE)","v":665},{"$f":"HLOOKUP(CZ$7+0.5,$I$66:$DJ$120,ROWS($A$10:$A17)+2,FALSE)","v":193},{"$f":"HLOOKUP(DA$7+0.5,$I$66:$DJ$120,ROWS($A$10:$A17)+2,FALSE)","v":216},{"$f":"HLOOKUP(DB$7+0.5,$I$66:$DJ$120,ROWS($A$10:$A17)+2,FALSE)","v":1568},{"$f":"HLOOKUP(DC$7+0.5,$I$66:$DJ$120,ROWS($A$10:$A17)+2,FALSE)","v":69},{"$f":"HLOOKUP(DD$7+0.5,$I$66:$DJ$120,ROWS($A$10:$A17)+2,FALSE)","v":556},{"$f":"HLOOKUP(DE$7+0.5,$I$66:$DJ$120,ROWS($A$10:$A17)+2,FALSE)","v":707},{"$f":"HLOOKUP(DF$7+0.5,$I$66:$DJ$120,ROWS($A$10:$A17)+2,FALSE)","v":1274},{"$f":"HLOOKUP(DG$7+0.5,$I$66:$DJ$120,ROWS($A$10:$A17)+2,FALSE)","v":293},{"$f":"HLOOKUP(DH$7+0.5,$I$66:$DJ$120,ROWS($A$10:$A17)+2,FALSE)","v":684},{"$f":"HLOOKUP(DI$7+0.5,$I$66:$DJ$120,ROWS($A$10:$A17)+2,FALSE)","v":120},{"$f":"HLOOKUP(DJ$7+0.5,$I$66:$DJ$120,ROWS($A$10:$A17)+2,FALSE)","v":1540}]
[null,"Delaware",906576,1624,782216,9177,86003,7626,{"$f":"HLOOKUP(I$7,$I$66:$DJ$120,ROWS($A$10:$A18)+2,FALSE)","v":34757},{"$f":"HLOOKUP(J$7,$I$66:$DJ$120,ROWS($A$10:$A18)+2,FALSE)","v":119},{"$f":"HLOOKUP(K$7,$I$66:$DJ$120,ROWS($A$10:$A18)+2,FALSE)","v":692},{"$f":"HLOOKUP(L$7,$I$66:$DJ$120,ROWS($A$10:$A18)+2,FALSE)","v":188},{"$f":"HLOOKUP(M$7,$I$66:$DJ$120,ROWS($A$10:$A18)+2,FALSE)","v":0},{"$f":"HLOOKUP(N$7,$I$66:$DJ$120,ROWS($A$10:$A18)+2,FALSE)","v":2221},{"$f":"HLOOKUP(O$7,$I$66:$DJ$120,ROWS($A$10:$A18)+2,FALSE)","v":0},{"$f":"HLOOKUP(P$7,$I$66:$DJ$120,ROWS($A$10:$A18)+2,FALSE)","v":1489},{"$f":"HLOOKUP(Q$7,$I$66:$DJ$120,ROWS($A$10:$A18)+2,FALSE)","v":"N/A"},{"$f":"HLOOKUP(R$7,$I$66:$DJ$120,ROWS($A$10:$A18)+2,FALSE)","v":11},{"$f":"HLOOKUP(S$7,$I$66:$DJ$120,ROWS($A$10:$A18)+2,FALSE)","v":715},{"$f":"HLOOKUP(T$7,$I$66:$DJ$120,ROWS($A$10:$A18)+2,FALSE)","v":179},{"$f":"HLOOKUP(U$7,$I$66:$DJ$120,ROWS($A$10:$A18)+2,FALSE)","v":0},{"$f":"HLOOKUP(V$7,$I$66:$DJ$120,ROWS($A$10:$A18)+2,FALSE)","v":32},{"$f":"HLOOKUP(W$7,$I$66:$DJ$120,ROWS($A$10:$A18)+2,FALSE)","v":567},{"$f":"HLOOKUP(X$7,$I$66:$DJ$120,ROWS($A$10:$A18)+2,FALSE)","v":62},{"$f":"HLOOKUP(Y$7,$I$66:$DJ$120,ROWS($A$10:$A18)+2,FALSE)","v":30},{"$f":"HLOOKUP(Z$7,$I$66:$DJ$120,ROWS($A$10:$A18)+2,FALSE)","v":113},{"$f":"HLOOKUP(AA$7,$I$66:$DJ$120,ROWS($A$10:$A18)+2,FALSE)","v":0},{"$f":"HLOOKUP(AB$7,$I$66:$DJ$120,ROWS($A$10:$A18)+2,FALSE)","v":178},{"$f":"HLOOKUP(AC$7,$I$66:$DJ$120,ROWS($A$10:$A18)+2,FALSE)","v":0},{"$f":"HLOOKUP(AD$7,$I$66:$DJ$120,ROWS($A$10:$A18)+2,FALSE)","v":5649},{"$f":"HLOOKUP(AE$7,$I$66:$DJ$120,ROWS($A$10:$A18)+2,FALSE)","v":157},{"$f":"HLOOKUP(AF$7,$I$66:$DJ$120,ROWS($A$10:$A18)+2,FALSE)","v":227},{"$f":"HLOOKUP(AG$7,$I$66:$DJ$120,ROWS($A$10:$A18)+2,FALSE)","v":351},{"$f":"HLOOKUP(AH$7,$I$66:$DJ$120,ROWS($A$10:$A18)+2,FALSE)","v":58},{"$f":"HLOOKUP(AI$7,$I$66:$DJ$120,ROWS($A$10:$A18)+2,FALSE)","v":80},{"$f":"HLOOKUP(AJ$7,$I$66:$DJ$120,ROWS($A$10:$A18)+2,FALSE)","v":0},{"$f":"HLOOKUP(AK$7,$I$66:$DJ$120,ROWS($A$10:$A18)+2,FALSE)","v":91},{"$f":"HLOOKUP(AL$7,$I$66:$DJ$120,ROWS($A$10:$A18)+2,FALSE)","v":572},{"$f":"HLOOKUP(AM$7,$I$66:$DJ$120,ROWS($A$10:$A18)+2,FALSE)","v":99},{"$f":"HLOOKUP(AN$7,$I$66:$DJ$120,ROWS($A$10:$A18)+2,FALSE)","v":5846},{"$f":"HLOOKUP(AO$7,$I$66:$DJ$120,ROWS($A$10:$A18)+2,FALSE)","v":85},{"$f":"HLOOKUP(AP$7,$I$66:$DJ$120,ROWS($A$10:$A18)+2,FALSE)","v":3566},{"$f":"HLOOKUP(AQ$7,$I$66:$DJ$120,ROWS($A$10:$A18)+2,FALSE)","v":1349},{"$f":"HLOOKUP(AR$7,$I$66:$DJ$120,ROWS($A$10:$A18)+2,FALSE)","v":0},{"$f":"HLOOKUP(AS$7,$I$66:$DJ$120,ROWS($A$10:$A18)+2,FALSE)","v":191},{"$f":"HLOOKUP(AT$7,$I$66:$DJ$120,ROWS($A$10:$A18)+2,FALSE)","v":0},{"$f":"HLOOKUP(AU$7,$I$66:$DJ$120,ROWS($A$10:$A18)+2,FALSE)","v":0},{"$f":"HLOOKUP(AV$7,$I$66:$DJ$120,ROWS($A$10:$A18)+2,FALSE)","v":6828},{"$f":"HLOOKUP(AW$7,$I$66:$DJ$120,ROWS($A$10:$A18)+2,FALSE)","v":135},{"$f":"HLOOKUP(AX$7,$I$66:$DJ$120,ROWS($A$10:$A18)+2,FALSE)","v":298},{"$f":"HLOOKUP(AY$7,$I$66:$DJ$120,ROWS($A$10:$A18)+2,FALSE)","v":0},{"$f":"HLOOKUP(AZ$7,$I$66:$DJ$120,ROWS($A$10:$A18)+2,FALSE)","v":344},{"$f":"HLOOKUP(BA$7,$I$66:$DJ$120,ROWS($A$10:$A18)+2,FALSE)","v":133},{"$f":"HLOOKUP(BB$7,$I$66:$DJ$120,ROWS($A$10:$A18)+2,FALSE)","v":166},{"$f":"HLOOKUP(BC$7,$I$66:$DJ$120,ROWS($A$10:$A18)+2,FALSE)","v":0},{"$f":"HLOOKUP(BD$7,$I$66:$DJ$120,ROWS($A$10:$A18)+2,FALSE)","v":1746},{"$f":"HLOOKUP(BE$7,$I$66:$DJ$120,ROWS($A$10:$A18)+2,FALSE)","v":29},{"$f":"HLOOKUP(BF$7,$I$66:$DJ$120,ROWS($A$10:$A18)+2,FALSE)","v":161},{"$f":"HLOOKUP(BG$7,$I$66:$DJ$120,ROWS($A$10:$A18)+2,FALSE)","v":0},{"$f":"HLOOKUP(BH$7,$I$66:$DJ$120,ROWS($A$10:$A18)+2,FALSE)","v":0},{"$f":"HLOOKUP(BI$7,$I$66:$DJ$120,ROWS($A$10:$A18)+2,FALSE)","v":56},{"$f":"HLOOKUP(BJ$7+0.5,$I$66:$DJ$120,ROWS($A$10:$A18)+2,FALSE)","v":4691},{"$f":"HLOOKUP(BK$7+0.5,$I$66:$DJ$120,ROWS($A$10:$A18)+2,FALSE)","v":164},{"$f":"HLOOKUP(BL$7+0.5,$I$66:$DJ$120,ROWS($A$10:$A18)+2,FALSE)","v":920},{"$f":"HLOOKUP(BM$7+0.5,$I$66:$DJ$120,ROWS($A$10:$A18)+2,FALSE)","v":227},{"$f":"HLOOKUP(BN$7+0.5,$I$66:$DJ$120,ROWS($A$10:$A18)+2,FALSE)","v":182},{"$f":"HLOOKUP(BO$7+0.5,$I$66:$DJ$120,ROWS($A$10:$A18)+2,FALSE)","v":2189},{"$f":"HLOOKUP(BP$7+0.5,$I$66:$DJ$120,ROWS($A$10:$A18)+2,FALSE)","v":182},{"$f":"HLOOKUP(BQ$7+0.5,$I$66:$DJ$120,ROWS($A$10:$A18)+2,FALSE)","v":679},{"$f":"HLOOKUP(BR$7+0.5,$I$66:$DJ$120,ROWS($A$10:$A18)+2,FALSE)","v":"N/A"},{"$f":"HLOOKUP(BS$7+0.5,$I$66:$DJ$120,ROWS($A$10:$A18)+2,FALSE)","v":21},{"$f":"HLOOKUP(BT$7+0.5,$I$66:$DJ$120,ROWS($A$10:$A18)+2,FALSE)","v":481},{"$f":"HLOOKUP(BU$7+0.5,$I$66:$DJ$120,ROWS($A$10:$A18)+2,FALSE)","v":224},{"$f":"HLOOKUP(BV$7+0.5,$I$66:$DJ$120,ROWS($A$10:$A18)+2,FALSE)","v":182},{"$f":"HLOOKUP(BW$7+0.5,$I$66:$DJ$120,ROWS($A$10:$A18)+2,FALSE)","v":51},{"$f":"HLOOKUP(BX$7+0.5,$I$66:$DJ$120,ROWS($A$10:$A18)+2,FALSE)","v":468},{"$f":"HLOOKUP(BY$7+0.5,$I$66:$DJ$120,ROWS($A$10:$A18)+2,FALSE)","v":80},{"$f":"HLOOKUP(BZ$7+0.5,$I$66:$DJ$120,ROWS($A$10:$A18)+2,FALSE)","v":49},{"$f":"HLOOKUP(CA$7+0.5,$I$66:$DJ$120,ROWS($A$10:$A18)+2,FALSE)","v":190},{"$f":"HLOOKUP(CB$7+0.5,$I$66:$DJ$120,ROWS($A$10:$A18)+2,FALSE)","v":182},{"$f":"HLOOKUP(CC$7+0.5,$I$66:$DJ$120,ROWS($A$10:$A18)+2,FALSE)","v":266},{"$f":"HLOOKUP(CD$7+0.5,$I$66:$DJ$120,ROWS($A$10:$A18)+2,FALSE)","v":182},{"$f":"HLOOKUP(CE$7+0.5,$I$66:$DJ$120,ROWS($A$10:$A18)+2,FALSE)","v":1598},{"$f":"HLOOKUP(CF$7+0.5,$I$66:$DJ$120,ROWS($A$10:$A18)+2,FALSE)","v":131},{"$f":"HLOOKUP(CG$7+0.5,$I$66:$DJ$120,ROWS($A$10:$A18)+2,FALSE)","v":233},{"$f":"HLOOKUP(CH$7+0.5,$I$66:$DJ$120,ROWS($A$10:$A18)+2,FALSE)","v":390},{"$f":"HLOOKUP(CI$7+0.5,$I$66:$DJ$120,ROWS($A$10:$A18)+2,FALSE)","v":110},{"$f":"HLOOKUP(CJ$7+0.5,$I$66:$DJ$120,ROWS($A$10:$A18)+2,FALSE)","v":138},{"$f":"HLOOKUP(CK$7+0.5,$I$66:$DJ$120,ROWS($A$10:$A18)+2,FALSE)","v":182},{"$f":"HLOOKUP(CL$7+0.5,$I$66:$DJ$120,ROWS($A$10:$A18)+2,FALSE)","v":116},{"$f":"HLOOKUP(CM$7+0.5,$I$66:$DJ$120,ROWS($A$10:$A18)+2,FALSE)","v":474},{"$f":"HLOOKUP(CN$7+0.5,$I$66:$DJ$120,ROWS($A$10:$A18)+2,FALSE)","v":127},{"$f":"HLOOKUP(CO$7+0.5,$I$66:$DJ$120,ROWS($A$10:$A18)+2,FALSE)","v":2122},{"$f":"HLOOKUP(CP$7+0.5,$I$66:$DJ$120,ROWS($A$10:$A18)+2,FALSE)","v":136},{"$f":"HLOOKUP(CQ$7+0.5,$I$66:$DJ$120,ROWS($A$10:$A18)+2,FALSE)","v":1751},{"$f":"HLOOKUP(CR$7+0.5,$I$66:$DJ$120,ROWS($A$10:$A18)+2,FALSE)","v":809},{"$f":"HLOOKUP(CS$7+0.5,$I$66:$DJ$120,ROWS($A$10:$A18)+2,FALSE)","v":182},{"$f":"HLOOKUP(CT$7+0.5,$I$66:$DJ$120,ROWS($A$10:$A18)+2,FALSE)","v":201},{"$f":"HLOOKUP(CU$7+0.5,$I$66:$DJ$120,ROWS($A$10:$A18)+2,FALSE)","v":182},{"$f":"HLOOKUP(CV$7+0.5,$I$66:$DJ$120,ROWS($A$10:$A18)+2,FALSE)","v":182},{"$f":"HLOOKUP(CW$7+0.5,$I$66:$DJ$120,ROWS($A$10:$A18)+2,FALSE)","v":1815},{"$f":"HLOOKUP(CX$7+0.5,$I$66:$DJ$120,ROWS($A$10:$A18)+2,FALSE)","v":185},{"$f":"HLOOKUP(CY$7+0.5,$I$66:$DJ$120,ROWS($A$10:$A18)+2,FALSE)","v":235},{"$f":"HLOOKUP(CZ$7+0.5,$I$66:$DJ$120,ROWS($A$10:$A18)+2,FALSE)","v":182},{"$f":"HLOOKUP(DA$7+0.5,$I$66:$DJ$120,ROWS($A$10:$A18)+2,FALSE)","v":440},{"$f":"HLOOKUP(DB$7+0.5,$I$66:$DJ$120,ROWS($A$10:$A18)+2,FALSE)","v":158},{"$f":"HLOOKUP(DC$7+0.5,$I$66:$DJ$120,ROWS($A$10:$A18)+2,FALSE)","v":279},{"$f":"HLOOKUP(DD$7+0.5,$I$66:$DJ$120,ROWS($A$10:$A18)+2,FALSE)","v":182},{"$f":"HLOOKUP(DE$7+0.5,$I$66:$DJ$120,ROWS($A$10:$A18)+2,FALSE)","v":910},{"$f":"HLOOKUP(DF$7+0.5,$I$66:$DJ$120,ROWS($A$10:$A18)+2,FALSE)","v":49},{"$f":"HLOOKUP(DG$7+0.5,$I$66:$DJ$120,ROWS($A$10:$A18)+2,FALSE)","v":205},{"$f":"HLOOKUP(DH$7+0.5,$I$66:$DJ$120,ROWS($A$10:$A18)+2,FALSE)","v":182},{"$f":"HLOOKUP(DI$7+0.5,$I$66:$DJ$120,ROWS($A$10:$A18)+2,FALSE)","v":182},{"$f":"HLOOKUP(DJ$7+0.5,$I$66:$DJ$120,ROWS($A$10:$A18)+2,FALSE)","v":90}]
[null,"District of Columbia",624847,948,500267,6225,61992,5668,{"$f":"HLOOKUP(I$7,$I$66:$DJ$120,ROWS($A$10:$A19)+2,FALSE)","v":53830},{"$f":"HLOOKUP(J$7,$I$66:$DJ$120,ROWS($A$10:$A19)+2,FALSE)","v":79},{"$f":"HLOOKUP(K$7,$I$66:$DJ$120,ROWS($A$10:$A19)+2,FALSE)","v":1247},{"$f":"HLOOKUP(L$7,$I$66:$DJ$120,ROWS($A$10:$A19)+2,FALSE)","v":902},{"$f":"HLOOKUP(M$7,$I$66:$DJ$120,ROWS($A$10:$A19)+2,FALSE)","v":35},{"$f":"HLOOKUP(N$7,$I$66:$DJ$120,ROWS($A$10:$A19)+2,FALSE)","v":4999},{"$f":"HLOOKUP(O$7,$I$66:$DJ$120,ROWS($A$10:$A19)+2,FALSE)","v":677},{"$f":"HLOOKUP(P$7,$I$66:$DJ$120,ROWS($A$10:$A19)+2,FALSE)","v":618},{"$f":"HLOOKUP(Q$7,$I$66:$DJ$120,ROWS($A$10:$A19)+2,FALSE)","v":78},{"$f":"HLOOKUP(R$7,$I$66:$DJ$120,ROWS($A$10:$A19)+2,FALSE)","v":"N/A"},{"$f":"HLOOKUP(S$7,$I$66:$DJ$120,ROWS($A$10:$A19)+2,FALSE)","v":1705},{"$f":"HLOOKUP(T$7,$I$66:$DJ$120,ROWS($A$10:$A19)+2,FALSE)","v":1079},{"$f":"HLOOKUP(U$7,$I$66:$DJ$120,ROWS($A$10:$A19)+2,FALSE)","v":38},{"$f":"HLOOKUP(V$7,$I$66:$DJ$120,ROWS($A$10:$A19)+2,FALSE)","v":46},{"$f":"HLOOKUP(W$7,$I$66:$DJ$120,ROWS($A$10:$A19)+2,FALSE)","v":795},{"$f":"HLOOKUP(X$7,$I$66:$DJ$120,ROWS($A$10:$A19)+2,FALSE)","v":469},{"$f":"HLOOKUP(Y$7,$I$66:$DJ$120,ROWS($A$10:$A19)+2,FALSE)","v":133},{"$f":"HLOOKUP(Z$7,$I$66:$DJ$120,ROWS($A$10:$A19)+2,FALSE)","v":164},{"$f":"HLOOKUP(AA$7,$I$66:$DJ$120,ROWS($A$10:$A19)+2,FALSE)","v":112},{"$f":"HLOOKUP(AB$7,$I$66:$DJ$120,ROWS($A$10:$A19)+2,FALSE)","v":283},{"$f":"HLOOKUP(AC$7,$I$66:$DJ$120,ROWS($A$10:$A19)+2,FALSE)","v":194},{"$f":"HLOOKUP(AD$7,$I$66:$DJ$120,ROWS($A$10:$A19)+2,FALSE)","v":14120},{"$f":"HLOOKUP(AE$7,$I$66:$DJ$120,ROWS($A$10:$A19)+2,FALSE)","v":1524},{"$f":"HLOOKUP(AF$7,$I$66:$DJ$120,ROWS($A$10:$A19)+2,FALSE)","v":944},{"$f":"HLOOKUP(AG$7,$I$66:$DJ$120,ROWS($A$10:$A19)+2,FALSE)","v":393},{"$f":"HLOOKUP(AH$7,$I$66:$DJ$120,ROWS($A$10:$A19)+2,FALSE)","v":44},{"$f":"HLOOKUP(AI$7,$I$66:$DJ$120,ROWS($A$10:$A19)+2,FALSE)","v":337},{"$f":"HLOOKUP(AJ$7,$I$66:$DJ$120,ROWS($A$10:$A19)+2,FALSE)","v":0},{"$f":"HLOOKUP(AK$7,$I$66:$DJ$120,ROWS($A$10:$A19)+2,FALSE)","v":172},{"$f":"HLOOKUP(AL$7,$I$66:$DJ$120,ROWS($A$10:$A19)+2,FALSE)","v":42},{"$f":"HLOOKUP(AM$7,$I$66:$DJ$120,ROWS($A$10:$A19)+2,FALSE)","v":197},{"$f":"HLOOKUP(AN$7,$I$66:$DJ$120,ROWS($A$10:$A19)+2,FALSE)","v":1451},{"$f":"HLOOKUP(AO$7,$I$66:$DJ$120,ROWS($A$10:$A19)+2,FALSE)","v":116},{"$f":"HLOOKUP(AP$7,$I$66:$DJ$120,ROWS($A$10:$A19)+2,FALSE)","v":3085},{"$f":"HLOOKUP(AQ$7,$I$66:$DJ$120,ROWS($A$10:$A19)+2,FALSE)","v":985},{"$f":"HLOOKUP(AR$7,$I$66:$DJ$120,ROWS($A$10:$A19)+2,FALSE)","v":0},{"$f":"HLOOKUP(AS$7,$I$66:$DJ$120,ROWS($A$10:$A19)+2,FALSE)","v":651},{"$f":"HLOOKUP(AT$7,$I$66:$DJ$120,ROWS($A$10:$A19)+2,FALSE)","v":0},{"$f":"HLOOKUP(AU$7,$I$66:$DJ$120,ROWS($A$10:$A19)+2,FALSE)","v":157},{"$f":"HLOOKUP(AV$7,$I$66:$DJ$120,ROWS($A$10:$A19)+2,FALSE)","v":1494},{"$f":"HLOOKUP(AW$7,$I$66:$DJ$120,ROWS($A$10:$A19)+2,FALSE)","v":635},{"$f":"HLOOKUP(AX$7,$I$66:$DJ$120,ROWS($A$10:$A19)+2,FALSE)","v":150},{"$f":"HLOOKUP(AY$7,$I$66:$DJ$120,ROWS($A$10:$A19)+2,FALSE)","v":0},{"$f":"HLOOKUP(AZ$7,$I$66:$DJ$120,ROWS($A$10:$A19)+2,FALSE)","v":577},{"$f":"HLOOKUP(BA$7,$I$66:$DJ$120,ROWS($A$10:$A19)+2,FALSE)","v":1473},{"$f":"HLOOKUP(BB$7,$I$66:$DJ$120,ROWS($A$10:$A19)+2,FALSE)","v":116},{"$f":"HLOOKUP(BC$7,$I$66:$DJ$120,ROWS($A$10:$A19)+2,FALSE)","v":267},{"$f":"HLOOKUP(BD$7,$I$66:$DJ$120,ROWS($A$10:$A19)+2,FALSE)","v":9537},{"$f":"HLOOKUP(BE$7,$I$66:$DJ$120,ROWS($A$10:$A19)+2,FALSE)","v":481},{"$f":"HLOOKUP(BF$7,$I$66:$DJ$120,ROWS($A$10:$A19)+2,FALSE)","v":293},{"$f":"HLOOKUP(BG$7,$I$66:$DJ$120,ROWS($A$10:$A19)+2,FALSE)","v":721},{"$f":"HLOOKUP(BH$7,$I$66:$DJ$120,ROWS($A$10:$A19)+2,FALSE)","v":215},{"$f":"HLOOKUP(BI$7,$I$66:$DJ$120,ROWS($A$10:$A19)+2,FALSE)","v":0},{"$f":"HLOOKUP(BJ$7+0.5,$I$66:$DJ$120,ROWS($A$10:$A19)+2,FALSE)","v":5001},{"$f":"HLOOKUP(BK$7+0.5,$I$66:$DJ$120,ROWS($A$10:$A19)+2,FALSE)","v":138},{"$f":"HLOOKUP(BL$7+0.5,$I$66:$DJ$120,ROWS($A$10:$A19)+2,FALSE)","v":715},{"$f":"HLOOKUP(BM$7+0.5,$I$66:$DJ$120,ROWS($A$10:$A19)+2,FALSE)","v":646},{"$f":"HLOOKUP(BN$7+0.5,$I$66:$DJ$120,ROWS($A$10:$A19)+2,FALSE)","v":59},{"$f":"HLOOKUP(BO$7+0.5,$I$66:$DJ$120,ROWS($A$10:$A19)+2,FALSE)","v":2108},{"$f":"HLOOKUP(BP$7+0.5,$I$66:$DJ$120,ROWS($A$10:$A19)+2,FALSE)","v":546},{"$f":"HLOOKUP(BQ$7+0.5,$I$66:$DJ$120,ROWS($A$10:$A19)+2,FALSE)","v":439},{"$f":"HLOOKUP(BR$7+0.5,$I$66:$DJ$120,ROWS($A$10:$A19)+2,FALSE)","v":127},{"$f":"HLOOKUP(BS$7+0.5,$I$66:$DJ$120,ROWS($A$10:$A19)+2,FALSE)","v":"N/A"},{"$f":"HLOOKUP(BT$7+0.5,$I$66:$DJ$120,ROWS($A$10:$A19)+2,FALSE)","v":661},{"$f":"HLOOKUP(BU$7+0.5,$I$66:$DJ$120,ROWS($A$10:$A19)+2,FALSE)","v":470},{"$f":"HLOOKUP(BV$7+0.5,$I$66:$DJ$120,ROWS($A$10:$A19)+2,FALSE)","v":87},{"$f":"HLOOKUP(BW$7+0.5,$I$66:$DJ$120,ROWS($A$10:$A19)+2,FALSE)","v":75},{"$f":"HLOOKUP(BX$7+0.5,$I$66:$DJ$120,ROWS($A$10:$A19)+2,FALSE)","v":446},{"$f":"HLOOKUP(BY$7+0.5,$I$66:$DJ$120,ROWS($A$10:$A19)+2,FALSE)","v":379},{"$f":"HLOOKUP(BZ$7+0.5,$I$66:$DJ$120,ROWS($A$10:$A19)+2,FALSE)","v":221},{"$f":"HLOOKUP(CA$7+0.5,$I$66:$DJ$120,ROWS($A$10:$A19)+2,FALSE)","v":267},{"$f":"HLOOKUP(CB$7+0.5,$I$66:$DJ$120,ROWS($A$10:$A19)+2,FALSE)","v":136},{"$f":"HLOOKUP(CC$7+0.5,$I$66:$DJ$120,ROWS($A$10:$A19)+2,FALSE)","v":295},{"$f":"HLOOKUP(CD$7+0.5,$I$66:$DJ$120,ROWS($A$10:$A19)+2,FALSE)","v":244},{"$f":"HLOOKUP(CE$7+0.5,$I$66:$DJ$120,ROWS($A$10:$A19)+2,FALSE)","v":2487},{"$f":"HLOOKUP(CF$7+0.5,$I$66:$DJ$120,ROWS($A$10:$A19)+2,FALSE)","v":717},{"$f":"HLOOKUP(CG$7+0.5,$I$66:$DJ$120,ROWS($A$10:$A19)+2,FALSE)","v":670},{"$f":"HLOOKUP(CH$7+0.5,$I$66:$DJ$120,ROWS($A$10:$A19)+2,FALSE)","v":240},{"$f":"HLOOKUP(CI$7+0.5,$I$66:$DJ$120,ROWS($A$10:$A19)+2,FALSE)","v":74},{"$f":"HLOOKUP(CJ$7+0.5,$I$66:$DJ$120,ROWS($A$10:$A19)+2,FALSE)","v":354},{"$f":"HLOOKUP(CK$7+0.5,$I$66:$DJ$120,ROWS($A$10:$A19)+2,FALSE)","v":197},{"$f":"HLOOKUP(CL$7+0.5,$I$66:$DJ$120,ROWS($A$10:$A19)+2,FALSE)","v":182},{"$f":"HLOOKUP(CM$7+0.5,$I$66:$DJ$120,ROWS($A$10:$A19)+2,FALSE)","v":69},{"$f":"HLOOKUP(CN$7+0.5,$I$66:$DJ$120,ROWS($A$10:$A19)+2,FALSE)","v":183},{"$f":"HLOOKUP(CO$7+0.5,$I$66:$DJ$120,ROWS($A$10:$A19)+2,FALSE)","v":792},{"$f":"HLOOKUP(CP$7+0.5,$I$66:$DJ$120,ROWS($A$10:$A19)+2,FALSE)","v":139},{"$f":"HLOOKUP(CQ$7+0.5,$I$66:$DJ$120,ROWS($A$10:$A19)+2,FALSE)","v":851},{"$f":"HLOOKUP(CR$7+0.5,$I$66:$DJ$120,ROWS($A$10:$A19)+2,FALSE)","v":503},{"$f":"HLOOKUP(CS$7+0.5,$I$66:$DJ$120,ROWS($A$10:$A19)+2,FALSE)","v":197},{"$f":"HLOOKUP(CT$7+0.5,$I$66:$DJ$120,ROWS($A$10:$A19)+2,FALSE)","v":429},{"$f":"HLOOKUP(CU$7+0.5,$I$66:$DJ$120,ROWS($A$10:$A19)+2,FALSE)","v":197},{"$f":"HLOOKUP(CV$7+0.5,$I$66:$DJ$120,ROWS($A$10:$A19)+2,FALSE)","v":182},{"$f":"HLOOKUP(CW$7+0.5,$I$66:$DJ$120,ROWS($A$10:$A19)+2,FALSE)","v":608},{"$f":"HLOOKUP(CX$7+0.5,$I$66:$DJ$120,ROWS($A$10:$A19)+2,FALSE)","v":596},{"$f":"HLOOKUP(CY$7+0.5,$I$66:$DJ$120,ROWS($A$10:$A19)+2,FALSE)","v":140},{"$f":"HLOOKUP(CZ$7+0.5,$I$66:$DJ$120,ROWS($A$10:$A19)+2,FALSE)","v":197},{"$f":"HLOOKUP(DA$7+0.5,$I$66:$DJ$120,ROWS($A$10:$A19)+2,FALSE)","v":478},{"$f":"HLOOKUP(DB$7+0.5,$I$66:$DJ$120,ROWS($A$10:$A19)+2,FALSE)","v":826},{"$f":"HLOOKUP(DC$7+0.5,$I$66:$DJ$120,ROWS($A$10:$A19)+2,FALSE)","v":145},{"$f":"HLOOKUP(DD$7+0.5,$I$66:$DJ$120,ROWS($A$10:$A19)+2,FALSE)","v":250},{"$f":"HLOOKUP(DE$7+0.5,$I$66:$DJ$120,ROWS($A$10:$A19)+2,FALSE)","v":1762},{"$f":"HLOOKUP(DF$7+0.5,$I$66:$DJ$120,ROWS($A$10:$A19)+2,FALSE)","v":358},{"$f":"HLOOKUP(DG$7+0.5,$I$66:$DJ$120,ROWS($A$10:$A19)+2,FALSE)","v":219},{"$f":"HLOOKUP(DH$7+0.5,$I$66:$DJ$120,ROWS($A$10:$A19)+2,FALSE)","v":420},{"$f":"HLOOKUP(DI$7+0.5,$I$66:$DJ$120,ROWS($A$10:$A19)+2,FALSE)","v":303},{"$f":"HLOOKUP(DJ$7+0.5,$I$66:$DJ$120,ROWS($A$10:$A19)+2,FALSE)","v":197}]
[null,"Florida",19114620,6877,16032617,49245,2380288,44658,{"$f":"HLOOKUP(I$7,$I$66:$DJ$120,ROWS($A$10:$A20)+2,FALSE)","v":537148},{"$f":"HLOOKUP(J$7,$I$66:$DJ$120,ROWS($A$10:$A20)+2,FALSE)","v":18599},{"$f":"HLOOKUP(K$7,$I$66:$DJ$120,ROWS($A$10:$A20)+2,FALSE)","v":10704},{"$f":"HLOOKUP(L$7,$I$66:$DJ$120,ROWS($A$10:$A20)+2,FALSE)","v":6473},{"$f":"HLOOKUP(M$7,$I$66:$DJ$120,ROWS($A$10:$A20)+2,FALSE)","v":3321},{"$f":"HLOOKUP(N$7,$I$66:$DJ$120,ROWS($A$10:$A20)+2,FALSE)","v":20386},{"$f":"HLOOKUP(O$7,$I$66:$DJ$120,ROWS($A$10:$A20)+2,FALSE)","v":8766},{"$f":"HLOOKUP(P$7,$I$66:$DJ$120,ROWS($A$10:$A20)+2,FALSE)","v":8975},{"$f":"HLOOKUP(Q$7,$I$66:$DJ$120,ROWS($A$10:$A20)+2,FALSE)","v":1099},{"$f":"HLOOKUP(R$7,$I$66:$DJ$120,ROWS($A$10:$A20)+2,FALSE)","v":780},{"$f":"HLOOKUP(S$7,$I$66:$DJ$120,ROWS($A$10:$A20)+2,FALSE)","v":"N/A"},{"$f":"HLOOKUP(T$7,$I$66:$DJ$120,ROWS($A$10:$A20)+2,FALSE)","v":42754},{"$f":"HLOOKUP(U$7,$I$66:$DJ$120,ROWS($A$10:$A20)+2,FALSE)","v":3177},{"$f":"HLOOKUP(V$7,$I$66:$DJ$120,ROWS($A$10:$A20)+2,FALSE)","v":1268},{"$f":"HLOOKUP(W$7,$I$66:$DJ$120,ROWS($A$10:$A20)+2,FALSE)","v":22565},{"$f":"HLOOKUP(X$7,$I$66:$DJ$120,ROWS($A$10:$A20)+2,FALSE)","v":13803},{"$f":"HLOOKUP(Y$7,$I$66:$DJ$120,ROWS($A$10:$A20)+2,FALSE)","v":3864},{"$f":"HLOOKUP(Z$7,$I$66:$DJ$120,ROWS($A$10:$A20)+2,FALSE)","v":5661},{"$f":"HLOOKUP(AA$7,$I$66:$DJ$120,ROWS($A$10:$A20)+2,FALSE)","v":6912},{"$f":"HLOOKUP(AB$7,$I$66:$DJ$120,ROWS($A$10:$A20)+2,FALSE)","v":5550},{"$f":"HLOOKUP(AC$7,$I$66:$DJ$120,ROWS($A$10:$A20)+2,FALSE)","v":7348},{"$f":"HLOOKUP(AD$7,$I$66:$DJ$120,ROWS($A$10:$A20)+2,FALSE)","v":10442},{"$f":"HLOOKUP(AE$7,$I$66:$DJ$120,ROWS($A$10:$A20)+2,FALSE)","v":15159},{"$f":"HLOOKUP(AF$7,$I$66:$DJ$120,ROWS($A$10:$A20)+2,FALSE)","v":23400},{"$f":"HLOOKUP(AG$7,$I$66:$DJ$120,ROWS($A$10:$A20)+2,FALSE)","v":5460},{"$f":"HLOOKUP(AH$7,$I$66:$DJ$120,ROWS($A$10:$A20)+2,FALSE)","v":5490},{"$f":"HLOOKUP(AI$7,$I$66:$DJ$120,ROWS($A$10:$A20)+2,FALSE)","v":10666},{"$f":"HLOOKUP(AJ$7,$I$66:$DJ$120,ROWS($A$10:$A20)+2,FALSE)","v":1758},{"$f":"HLOOKUP(AK$7,$I$66:$DJ$120,ROWS($A$10:$A20)+2,FALSE)","v":945},{"$f":"HLOOKUP(AL$7,$I$66:$DJ$120,ROWS($A$10:$A20)+2,FALSE)","v":1241},{"$f":"HLOOKUP(AM$7,$I$66:$DJ$120,ROWS($A$10:$A20)+2,FALSE)","v":2362},{"$f":"HLOOKUP(AN$7,$I$66:$DJ$120,ROWS($A$10:$A20)+2,FALSE)","v":27606},{"$f":"HLOOKUP(AO$7,$I$66:$DJ$120,ROWS($A$10:$A20)+2,FALSE)","v":2853},{"$f":"HLOOKUP(AP$7,$I$66:$DJ$120,ROWS($A$10:$A20)+2,FALSE)","v":53009},{"$f":"HLOOKUP(AQ$7,$I$66:$DJ$120,ROWS($A$10:$A20)+2,FALSE)","v":23133},{"$f":"HLOOKUP(AR$7,$I$66:$DJ$120,ROWS($A$10:$A20)+2,FALSE)","v":239},{"$f":"HLOOKUP(AS$7,$I$66:$DJ$120,ROWS($A$10:$A20)+2,FALSE)","v":22927},{"$f":"HLOOKUP(AT$7,$I$66:$DJ$120,ROWS($A$10:$A20)+2,FALSE)","v":3142},{"$f":"HLOOKUP(AU$7,$I$66:$DJ$120,ROWS($A$10:$A20)+2,FALSE)","v":2919},{"$f":"HLOOKUP(AV$7,$I$66:$DJ$120,ROWS($A$10:$A20)+2,FALSE)","v":25659},{"$f":"HLOOKUP(AW$7,$I$66:$DJ$120,ROWS($A$10:$A20)+2,FALSE)","v":3050},{"$f":"HLOOKUP(AX$7,$I$66:$DJ$120,ROWS($A$10:$A20)+2,FALSE)","v":11366},{"$f":"HLOOKUP(AY$7,$I$66:$DJ$120,ROWS($A$10:$A20)+2,FALSE)","v":1070},{"$f":"HLOOKUP(AZ$7,$I$66:$DJ$120,ROWS($A$10:$A20)+2,FALSE)","v":16275},{"$f":"HLOOKUP(BA$7,$I$66:$DJ$120,ROWS($A$10:$A20)+2,FALSE)","v":28564},{"$f":"HLOOKUP(BB$7,$I$66:$DJ$120,ROWS($A$10:$A20)+2,FALSE)","v":2499},{"$f":"HLOOKUP(BC$7,$I$66:$DJ$120,ROWS($A$10:$A20)+2,FALSE)","v":2747},{"$f":"HLOOKUP(BD$7,$I$66:$DJ$120,ROWS($A$10:$A20)+2,FALSE)","v":25697},{"$f":"HLOOKUP(BE$7,$I$66:$DJ$120,ROWS($A$10:$A20)+2,FALSE)","v":4943},{"$f":"HLOOKUP(BF$7,$I$66:$DJ$120,ROWS($A$10:$A20)+2,FALSE)","v":3533},{"$f":"HLOOKUP(BG$7,$I$66:$DJ$120,ROWS($A$10:$A20)+2,FALSE)","v":6216},{"$f":"HLOOKUP(BH$7,$I$66:$DJ$120,ROWS($A$10:$A20)+2,FALSE)","v":773},{"$f":"HLOOKUP(BI$7,$I$66:$DJ$120,ROWS($A$10:$A20)+2,FALSE)","v":21638},{"$f":"HLOOKUP(BJ$7+0.5,$I$66:$DJ$120,ROWS($A$10:$A20)+2,FALSE)","v":19784},{"$f":"HLOOKUP(BK$7+0.5,$I$66:$DJ$120,ROWS($A$10:$A20)+2,FALSE)","v":4762},{"$f":"HLOOKUP(BL$7+0.5,$I$66:$DJ$120,ROWS($A$10:$A20)+2,FALSE)","v":4327},{"$f":"HLOOKUP(BM$7+0.5,$I$66:$DJ$120,ROWS($A$10:$A20)+2,FALSE)","v":1865},{"$f":"HLOOKUP(BN$7+0.5,$I$66:$DJ$120,ROWS($A$10:$A20)+2,FALSE)","v":1136},{"$f":"HLOOKUP(BO$7+0.5,$I$66:$DJ$120,ROWS($A$10:$A20)+2,FALSE)","v":4221},{"$f":"HLOOKUP(BP$7+0.5,$I$66:$DJ$120,ROWS($A$10:$A20)+2,FALSE)","v":2537},{"$f":"HLOOKUP(BQ$7+0.5,$I$66:$DJ$120,ROWS($A$10:$A20)+2,FALSE)","v":1882},{"$f":"HLOOKUP(BR$7+0.5,$I$66:$DJ$120,ROWS($A$10:$A20)+2,FALSE)","v":608},{"$f":"HLOOKUP(BS$7+0.5,$I$66:$DJ$120,ROWS($A$10:$A20)+2,FALSE)","v":481},{"$f":"HLOOKUP(BT$7+0.5,$I$66:$DJ$120,ROWS($A$10:$A20)+2,FALSE)","v":"N/A"},{"$f":"HLOOKUP(BU$7+0.5,$I$66:$DJ$120,ROWS($A$10:$A20)+2,FALSE)","v":6205},{"$f":"HLOOKUP(BV$7+0.5,$I$66:$DJ$120,ROWS($A$10:$A20)+2,FALSE)","v":2730},{"$f":"HLOOKUP(BW$7+0.5,$I$66:$DJ$120,ROWS($A$10:$A20)+2,FALSE)","v":923},{"$f":"HLOOKUP(BX$7+0.5,$I$66:$DJ$120,ROWS($A$10:$A20)+2,FALSE)","v":3828},{"$f":"HLOOKUP(BY$7+0.5,$I$66:$DJ$120,ROWS($A$10:$A20)+2,FALSE)","v":2852},{"$f":"HLOOKUP(BZ$7+0.5,$I$66:$DJ$120,ROWS($A$10:$A20)+2,FALSE)","v":1332},{"$f":"HLOOKUP(CA$7+0.5,$I$66:$DJ$120,ROWS($A$10:$A20)+2,FALSE)","v":3133},{"$f":"HLOOKUP(CB$7+0.5,$I$66:$DJ$120,ROWS($A$10:$A20)+2,FALSE)","v":1607},{"$f":"HLOOKUP(CC$7+0.5,$I$66:$DJ$120,ROWS($A$10:$A20)+2,FALSE)","v":2266},{"$f":"HLOOKUP(CD$7+0.5,$I$66:$DJ$120,ROWS($A$10:$A20)+2,FALSE)","v":3032},{"$f":"HLOOKUP(CE$7+0.5,$I$66:$DJ$120,ROWS($A$10:$A20)+2,FALSE)","v":2378},{"$f":"HLOOKUP(CF$7+0.5,$I$66:$DJ$120,ROWS($A$10:$A20)+2,FALSE)","v":2747},{"$f":"HLOOKUP(CG$7+0.5,$I$66:$DJ$120,ROWS($A$10:$A20)+2,FALSE)","v":3519},{"$f":"HLOOKUP(CH$7+0.5,$I$66:$DJ$120,ROWS($A$10:$A20)+2,FALSE)","v":2185},{"$f":"HLOOKUP(CI$7+0.5,$I$66:$DJ$120,ROWS($A$10:$A20)+2,FALSE)","v":3345},{"$f":"HLOOKUP(CJ$7+0.5,$I$66:$DJ$120,ROWS($A$10:$A20)+2,FALSE)","v":3498},{"$f":"HLOOKUP(CK$7+0.5,$I$66:$DJ$120,ROWS($A$10:$A20)+2,FALSE)","v":2104},{"$f":"HLOOKUP(CL$7+0.5,$I$66:$DJ$120,ROWS($A$10:$A20)+2,FALSE)","v":713},{"$f":"HLOOKUP(CM$7+0.5,$I$66:$DJ$120,ROWS($A$10:$A20)+2,FALSE)","v":515},{"$f":"HLOOKUP(CN$7+0.5,$I$66:$DJ$120,ROWS($A$10:$A20)+2,FALSE)","v":922},{"$f":"HLOOKUP(CO$7+0.5,$I$66:$DJ$120,ROWS($A$10:$A20)+2,FALSE)","v":4242},{"$f":"HLOOKUP(CP$7+0.5,$I$66:$DJ$120,ROWS($A$10:$A20)+2,FALSE)","v":1004},{"$f":"HLOOKUP(CQ$7+0.5,$I$66:$DJ$120,ROWS($A$10:$A20)+2,FALSE)","v":5886},{"$f":"HLOOKUP(CR$7+0.5,$I$66:$DJ$120,ROWS($A$10:$A20)+2,FALSE)","v":3843},{"$f":"HLOOKUP(CS$7+0.5,$I$66:$DJ$120,ROWS($A$10:$A20)+2,FALSE)","v":203},{"$f":"HLOOKUP(CT$7+0.5,$I$66:$DJ$120,ROWS($A$10:$A20)+2,FALSE)","v":4305},{"$f":"HLOOKUP(CU$7+0.5,$I$66:$DJ$120,ROWS($A$10:$A20)+2,FALSE)","v":1301},{"$f":"HLOOKUP(CV$7+0.5,$I$66:$DJ$120,ROWS($A$10:$A20)+2,FALSE)","v":1736},{"$f":"HLOOKUP(CW$7+0.5,$I$66:$DJ$120,ROWS($A$10:$A20)+2,FALSE)","v":4174},{"$f":"HLOOKUP(CX$7+0.5,$I$66:$DJ$120,ROWS($A$10:$A20)+2,FALSE)","v":1458},{"$f":"HLOOKUP(CY$7+0.5,$I$66:$DJ$120,ROWS($A$10:$A20)+2,FALSE)","v":2719},{"$f":"HLOOKUP(CZ$7+0.5,$I$66:$DJ$120,ROWS($A$10:$A20)+2,FALSE)","v":762},{"$f":"HLOOKUP(DA$7+0.5,$I$66:$DJ$120,ROWS($A$10:$A20)+2,FALSE)","v":3583},{"$f":"HLOOKUP(DB$7+0.5,$I$66:$DJ$120,ROWS($A$10:$A20)+2,FALSE)","v":4750},{"$f":"HLOOKUP(DC$7+0.5,$I$66:$DJ$120,ROWS($A$10:$A20)+2,FALSE)","v":1348},{"$f":"HLOOKUP(DD$7+0.5,$I$66:$DJ$120,ROWS($A$10:$A20)+2,FALSE)","v":1190},{"$f":"HLOOKUP(DE$7+0.5,$I$66:$DJ$120,ROWS($A$10:$A20)+2,FALSE)","v":3965},{"$f":"HLOOKUP(DF$7+0.5,$I$66:$DJ$120,ROWS($A$10:$A20)+2,FALSE)","v":1710},{"$f":"HLOOKUP(DG$7+0.5,$I$66:$DJ$120,ROWS($A$10:$A20)+2,FALSE)","v":1587},{"$f":"HLOOKUP(DH$7+0.5,$I$66:$DJ$120,ROWS($A$10:$A20)+2,FALSE)","v":1993},{"$f":"HLOOKUP(DI$7+0.5,$I$66:$DJ$120,ROWS($A$10:$A20)+2,FALSE)","v":567},{"$f":"HLOOKUP(DJ$7+0.5,$I$66:$DJ$120,ROWS($A$10:$A20)+2,FALSE)","v":4641}]
[null,"Georgia",9796547,5863,8231384,34188,1236302,31155,{"$f":"HLOOKUP(I$7,$I$66:$DJ$120,ROWS($A$10:$A21)+2,FALSE)","v":277466},{"$f":"HLOOKUP(J$7,$I$66:$DJ$120,ROWS($A$10:$A21)+2,FALSE)","v":13864},{"$f":"HLOOKUP(K$7,$I$66:$DJ$120,ROWS($A$10:$A21)+2,FALSE)","v":2654},{"$f":"HLOOKUP(L$7,$I$66:$DJ$120,ROWS($A$10:$A21)+2,FALSE)","v":6657},{"$f":"HLOOKUP(M$7,$I$66:$DJ$120,ROWS($A$10:$A21)+2,FALSE)","v":1041},{"$f":"HLOOKUP(N$7,$I$66:$DJ$120,ROWS($A$10:$A21)+2,FALSE)","v":14174},{"$f":"HLOOKUP(O$7,$I$66:$DJ$120,ROWS($A$10:$A21)+2,FALSE)","v":4710},{"$f":"HLOOKUP(P$7,$I$66:$DJ$120,ROWS($A$10:$A21)+2,FALSE)","v":1829},{"$f":"HLOOKUP(Q$7,$I$66:$DJ$120,ROWS($A$10:$A21)+2,FALSE)","v":226},{"$f":"HLOOKUP(R$7,$I$66:$DJ$120,ROWS($A$10:$A21)+2,FALSE)","v":1352},{"$f":"HLOOKUP(S$7,$I$66:$DJ$120,ROWS($A$10:$A21)+2,FALSE)","v":42870},{"$f":"HLOOKUP(T$7,$I$66:$DJ$120,ROWS($A$10:$A21)+2,FALSE)","v":"N/A"},{"$f":"HLOOKUP(U$7,$I$66:$DJ$120,ROWS($A$10:$A21)+2,FALSE)","v":1409},{"$f":"HLOOKUP(V$7,$I$66:$DJ$120,ROWS($A$10:$A21)+2,FALSE)","v":936},{"$f":"HLOOKUP(W$7,$I$66:$DJ$120,ROWS($A$10:$A21)+2,FALSE)","v":7143},{"$f":"HLOOKUP(X$7,$I$66:$DJ$120,ROWS($A$10:$A21)+2,FALSE)","v":5972},{"$f":"HLOOKUP(Y$7,$I$66:$DJ$120,ROWS($A$10:$A21)+2,FALSE)","v":1687},{"$f":"HLOOKUP(Z$7,$I$66:$DJ$120,ROWS($A$10:$A21)+2,FALSE)","v":1497},{"$f":"HLOOKUP(AA$7,$I$66:$DJ$120,ROWS($A$10:$A21)+2,FALSE)","v":6172},{"$f":"HLOOKUP(AB$7,$I$66:$DJ$120,ROWS($A$10:$A21)+2,FALSE)","v":4100},{"$f":"HLOOKUP(AC$7,$I$66:$DJ$120,ROWS($A$10:$A21)+2,FALSE)","v":222},{"$f":"HLOOKUP(AD$7,$I$66:$DJ$120,ROWS($A$10:$A21)+2,FALSE)","v":3619},{"$f":"HLOOKUP(AE$7,$I$66:$DJ$120,ROWS($A$10:$A21)+2,FALSE)","v":4153},{"$f":"HLOOKUP(AF$7,$I$66:$DJ$120,ROWS($A$10:$A21)+2,FALSE)","v":9949},{"$f":"HLOOKUP(AG$7,$I$66:$DJ$120,ROWS($A$10:$A21)+2,FALSE)","v":2237},{"$f":"HLOOKUP(AH$7,$I$66:$DJ$120,ROWS($A$10:$A21)+2,FALSE)","v":3280},{"$f":"HLOOKUP(AI$7,$I$66:$DJ$120,ROWS($A$10:$A21)+2,FALSE)","v":3377},{"$f":"HLOOKUP(AJ$7,$I$66:$DJ$120,ROWS($A$10:$A21)+2,FALSE)","v":251},{"$f":"HLOOKUP(AK$7,$I$66:$DJ$120,ROWS($A$10:$A21)+2,FALSE)","v":1283},{"$f":"HLOOKUP(AL$7,$I$66:$DJ$120,ROWS($A$10:$A21)+2,FALSE)","v":3783},{"$f":"HLOOKUP(AM$7,$I$66:$DJ$120,ROWS($A$10:$A21)+2,FALSE)","v":15},{"$f":"HLOOKUP(AN$7,$I$66:$DJ$120,ROWS($A$10:$A21)+2,FALSE)","v":4920},{"$f":"HLOOKUP(AO$7,$I$66:$DJ$120,ROWS($A$10:$A21)+2,FALSE)","v":915},{"$f":"HLOOKUP(AP$7,$I$66:$DJ$120,ROWS($A$10:$A21)+2,FALSE)","v":13957},{"$f":"HLOOKUP(AQ$7,$I$66:$DJ$120,ROWS($A$10:$A21)+2,FALSE)","v":16009},{"$f":"HLOOKUP(AR$7,$I$66:$DJ$120,ROWS($A$10:$A21)+2,FALSE)","v":207},{"$f":"HLOOKUP(AS$7,$I$66:$DJ$120,ROWS($A$10:$A21)+2,FALSE)","v":7501},{"$f":"HLOOKUP(AT$7,$I$66:$DJ$120,ROWS($A$10:$A21)+2,FALSE)","v":3299},{"$f":"HLOOKUP(AU$7,$I$66:$DJ$120,ROWS($A$10:$A21)+2,FALSE)","v":453},{"$f":"HLOOKUP(AV$7,$I$66:$DJ$120,ROWS($A$10:$A21)+2,FALSE)","v":9076},{"$f":"HLOOKUP(AW$7,$I$66:$DJ$120,ROWS($A$10:$A21)+2,FALSE)","v":440},{"$f":"HLOOKUP(AX$7,$I$66:$DJ$120,ROWS($A$10:$A21)+2,FALSE)","v":18611},{"$f":"HLOOKUP(AY$7,$I$66:$DJ$120,ROWS($A$10:$A21)+2,FALSE)","v":257},{"$f":"HLOOKUP(AZ$7,$I$66:$DJ$120,ROWS($A$10:$A21)+2,FALSE)","v":17606},{"$f":"HLOOKUP(BA$7,$I$66:$DJ$120,ROWS($A$10:$A21)+2,FALSE)","v":16198},{"$f":"HLOOKUP(BB$7,$I$66:$DJ$120,ROWS($A$10:$A21)+2,FALSE)","v":20},{"$f":"HLOOKUP(BC$7,$I$66:$DJ$120,ROWS($A$10:$A21)+2,FALSE)","v":84},{"$f":"HLOOKUP(BD$7,$I$66:$DJ$120,ROWS($A$10:$A21)+2,FALSE)","v":10702},{"$f":"HLOOKUP(BE$7,$I$66:$DJ$120,ROWS($A$10:$A21)+2,FALSE)","v":1965},{"$f":"HLOOKUP(BF$7,$I$66:$DJ$120,ROWS($A$10:$A21)+2,FALSE)","v":1237},{"$f":"HLOOKUP(BG$7,$I$66:$DJ$120,ROWS($A$10:$A21)+2,FALSE)","v":3441},{"$f":"HLOOKUP(BH$7,$I$66:$DJ$120,ROWS($A$10:$A21)+2,FALSE)","v":106},{"$f":"HLOOKUP(BI$7,$I$66:$DJ$120,ROWS($A$10:$A21)+2,FALSE)","v":1730},{"$f":"HLOOKUP(BJ$7+0.5,$I$66:$DJ$120,ROWS($A$10:$A21)+2,FALSE)","v":14075},{"$f":"HLOOKUP(BK$7+0.5,$I$66:$DJ$120,ROWS($A$10:$A21)+2,FALSE)","v":2903},{"$f":"HLOOKUP(BL$7+0.5,$I$66:$DJ$120,ROWS($A$10:$A21)+2,FALSE)","v":1444},{"$f":"HLOOKUP(BM$7+0.5,$I$66:$DJ$120,ROWS($A$10:$A21)+2,FALSE)","v":2675},{"$f":"HLOOKUP(BN$7+0.5,$I$66:$DJ$120,ROWS($A$10:$A21)+2,FALSE)","v":519},{"$f":"HLOOKUP(BO$7+0.5,$I$66:$DJ$120,ROWS($A$10:$A21)+2,FALSE)","v":3182},{"$f":"HLOOKUP(BP$7+0.5,$I$66:$DJ$120,ROWS($A$10:$A21)+2,FALSE)","v":2093},{"$f":"HLOOKUP(BQ$7+0.5,$I$66:$DJ$120,ROWS($A$10:$A21)+2,FALSE)","v":824},{"$f":"HLOOKUP(BR$7+0.5,$I$66:$DJ$120,ROWS($A$10:$A21)+2,FALSE)","v":246},{"$f":"HLOOKUP(BS$7+0.5,$I$66:$DJ$120,ROWS($A$10:$A21)+2,FALSE)","v":994},{"$f":"HLOOKUP(BT$7+0.5,$I$66:$DJ$120,ROWS($A$10:$A21)+2,FALSE)","v":5472},{"$f":"HLOOKUP(BU$7+0.5,$I$66:$DJ$120,ROWS($A$10:$A21)+2,FALSE)","v":"N/A"},{"$f":"HLOOKUP(BV$7+0.5,$I$66:$DJ$120,ROWS($A$10:$A21)+2,FALSE)","v":831},{"$f":"HLOOKUP(BW$7+0.5,$I$66:$DJ$120,ROWS($A$10:$A21)+2,FALSE)","v":797},{"$f":"HLOOKUP(BX$7+0.5,$I$66:$DJ$120,ROWS($A$10:$A21)+2,FALSE)","v":1833},{"$f":"HLOOKUP(BY$7+0.5,$I$66:$DJ$120,ROWS($A$10:$A21)+2,FALSE)","v":2678},{"$f":"HLOOKUP(BZ$7+0.5,$I$66:$DJ$120,ROWS($A$10:$A21)+2,FALSE)","v":1036},{"$f":"HLOOKUP(CA$7+0.5,$I$66:$DJ$120,ROWS($A$10:$A21)+2,FALSE)","v":707},{"$f":"HLOOKUP(CB$7+0.5,$I$66:$DJ$120,ROWS($A$10:$A21)+2,FALSE)","v":1972},{"$f":"HLOOKUP(CC$7+0.5,$I$66:$DJ$120,ROWS($A$10:$A21)+2,FALSE)","v":1490},{"$f":"HLOOKUP(CD$7+0.5,$I$66:$DJ$120,ROWS($A$10:$A21)+2,FALSE)","v":178},{"$f":"HLOOKUP(CE$7+0.5,$I$66:$DJ$120,ROWS($A$10:$A21)+2,FALSE)","v":1621},{"$f":"HLOOKUP(CF$7+0.5,$I$66:$DJ$120,ROWS($A$10:$A21)+2,FALSE)","v":1720},{"$f":"HLOOKUP(CG$7+0.5,$I$66:$DJ$120,ROWS($A$10:$A21)+2,FALSE)","v":3100},{"$f":"HLOOKUP(CH$7+0.5,$I$66:$DJ$120,ROWS($A$10:$A21)+2,FALSE)","v":2164},{"$f":"HLOOKUP(CI$7+0.5,$I$66:$DJ$120,ROWS($A$10:$A21)+2,FALSE)","v":1372},{"$f":"HLOOKUP(CJ$7+0.5,$I$66:$DJ$120,ROWS($A$10:$A21)+2,FALSE)","v":1479},{"$f":"HLOOKUP(CK$7+0.5,$I$66:$DJ$120,ROWS($A$10:$A21)+2,FALSE)","v":224},{"$f":"HLOOKUP(CL$7+0.5,$I$66:$DJ$120,ROWS($A$10:$A21)+2,FALSE)","v":1001},{"$f":"HLOOKUP(CM$7+0.5,$I$66:$DJ$120,ROWS($A$10:$A21)+2,FALSE)","v":2622},{"$f":"HLOOKUP(CN$7+0.5,$I$66:$DJ$120,ROWS($A$10:$A21)+2,FALSE)","v":27},{"$f":"HLOOKUP(CO$7+0.5,$I$66:$DJ$120,ROWS($A$10:$A21)+2,FALSE)","v":1544},{"$f":"HLOOKUP(CP$7+0.5,$I$66:$DJ$120,ROWS($A$10:$A21)+2,FALSE)","v":512},{"$f":"HLOOKUP(CQ$7+0.5,$I$66:$DJ$120,ROWS($A$10:$A21)+2,FALSE)","v":3960},{"$f":"HLOOKUP(CR$7+0.5,$I$66:$DJ$120,ROWS($A$10:$A21)+2,FALSE)","v":2963},{"$f":"HLOOKUP(CS$7+0.5,$I$66:$DJ$120,ROWS($A$10:$A21)+2,FALSE)","v":250},{"$f":"HLOOKUP(CT$7+0.5,$I$66:$DJ$120,ROWS($A$10:$A21)+2,FALSE)","v":2501},{"$f":"HLOOKUP(CU$7+0.5,$I$66:$DJ$120,ROWS($A$10:$A21)+2,FALSE)","v":1818},{"$f":"HLOOKUP(CV$7+0.5,$I$66:$DJ$120,ROWS($A$10:$A21)+2,FALSE)","v":472},{"$f":"HLOOKUP(CW$7+0.5,$I$66:$DJ$120,ROWS($A$10:$A21)+2,FALSE)","v":2622},{"$f":"HLOOKUP(CX$7+0.5,$I$66:$DJ$120,ROWS($A$10:$A21)+2,FALSE)","v":620},{"$f":"HLOOKUP(CY$7+0.5,$I$66:$DJ$120,ROWS($A$10:$A21)+2,FALSE)","v":3871},{"$f":"HLOOKUP(CZ$7+0.5,$I$66:$DJ$120,ROWS($A$10:$A21)+2,FALSE)","v":291},{"$f":"HLOOKUP(DA$7+0.5,$I$66:$DJ$120,ROWS($A$10:$A21)+2,FALSE)","v":4620},{"$f":"HLOOKUP(DB$7+0.5,$I$66:$DJ$120,ROWS($A$10:$A21)+2,FALSE)","v":3367},{"$f":"HLOOKUP(DC$7+0.5,$I$66:$DJ$120,ROWS($A$10:$A21)+2,FALSE)","v":35},{"$f":"HLOOKUP(DD$7+0.5,$I$66:$DJ$120,ROWS($A$10:$A21)+2,FALSE)","v":142},{"$f":"HLOOKUP(DE$7+0.5,$I$66:$DJ$120,ROWS($A$10:$A21)+2,FALSE)","v":2094},{"$f":"HLOOKUP(DF$7+0.5,$I$66:$DJ$120,ROWS($A$10:$A21)+2,FALSE)","v":826},{"$f":"HLOOKUP(DG$7+0.5,$I$66:$DJ$120,ROWS($A$10:$A21)+2,FALSE)","v":625},{"$f":"HLOOKUP(DH$7+0.5,$I$66:$DJ$120,ROWS($A$10:$A21)+2,FALSE)","v":1725},{"$f":"HLOOKUP(DI$7+0.5,$I$66:$DJ$120,ROWS($A$10:$A21)+2,FALSE)","v":154},{"$f":"HLOOKUP(DJ$7+0.5,$I$66:$DJ$120,ROWS($A$10:$A21)+2,FALSE)","v":1190}]
[null,"Hawaii",1374852,1662,1164145,10466,134827,9196,{"$f":"HLOOKUP(I$7,$I$66:$DJ$120,ROWS($A$10:$A22)+2,FALSE)","v":55145},{"$f":"HLOOKUP(J$7,$I$66:$DJ$120,ROWS($A$10:$A22)+2,FALSE)","v":608},{"$f":"HLOOKUP(K$7,$I$66:$DJ$120,ROWS($A$10:$A22)+2,FALSE)","v":1417},{"$f":"HLOOKUP(L$7,$I$66:$DJ$120,ROWS($A$10:$A22)+2,FALSE)","v":1865},{"$f":"HLOOKUP(M$7,$I$66:$DJ$120,ROWS($A$10:$A22)+2,FALSE)","v":24},{"$f":"HLOOKUP(N$7,$I$66:$DJ$120,ROWS($A$10:$A22)+2,FALSE)","v":9756},{"$f":"HLOOKUP(O$7,$I$66:$DJ$120,ROWS($A$10:$A22)+2,FALSE)","v":1216},{"$f":"HLOOKUP(P$7,$I$66:$DJ$120,ROWS($A$10:$A22)+2,FALSE)","v":191},{"$f":"HLOOKUP(Q$7,$I$66:$DJ$120,ROWS($A$10:$A22)+2,FALSE)","v":278},{"$f":"HLOOKUP(R$7,$I$66:$DJ$120,ROWS($A$10:$A22)+2,FALSE)","v":230},{"$f":"HLOOKUP(S$7,$I$66:$DJ$120,ROWS($A$10:$A22)+2,FALSE)","v":2780},{"$f":"HLOOKUP(T$7,$I$66:$DJ$120,ROWS($A$10:$A22)+2,FALSE)","v":1448},{"$f":"HLOOKUP(U$7,$I$66:$DJ$120,ROWS($A$10:$A22)+2,FALSE)","v":"N/A"},{"$f":"HLOOKUP(V$7,$I$66:$DJ$120,ROWS($A$10:$A22)+2,FALSE)","v":404},{"$f":"HLOOKUP(W$7,$I$66:$DJ$120,ROWS($A$10:$A22)+2,FALSE)","v":318},{"$f":"HLOOKUP(X$7,$I$66:$DJ$120,ROWS($A$10:$A22)+2,FALSE)","v":292},{"$f":"HLOOKUP(Y$7,$I$66:$DJ$120,ROWS($A$10:$A22)+2,FALSE)","v":84},{"$f":"HLOOKUP(Z$7,$I$66:$DJ$120,ROWS($A$10:$A22)+2,FALSE)","v":1135},{"$f":"HLOOKUP(AA$7,$I$66:$DJ$120,ROWS($A$10:$A22)+2,FALSE)","v":485},{"$f":"HLOOKUP(AB$7,$I$66:$DJ$120,ROWS($A$10:$A22)+2,FALSE)","v":207},{"$f":"HLOOKUP(AC$7,$I$66:$DJ$120,ROWS($A$10:$A22)+2,FALSE)","v":91},{"$f":"HLOOKUP(AD$7,$I$66:$DJ$120,ROWS($A$10:$A22)+2,FALSE)","v":2491},{"$f":"HLOOKUP(AE$7,$I$66:$DJ$120,ROWS($A$10:$A22)+2,FALSE)","v":1266},{"$f":"HLOOKUP(AF$7,$I$66:$DJ$120,ROWS($A$10:$A22)+2,FALSE)","v":321},{"$f":"HLOOKUP(AG$7,$I$66:$DJ$120,ROWS($A$10:$A22)+2,FALSE)","v":192},{"$f":"HLOOKUP(AH$7,$I$66:$DJ$120,ROWS($A$10:$A22)+2,FALSE)","v":44},{"$f":"HLOOKUP(AI$7,$I$66:$DJ$120,ROWS($A$10:$A22)+2,FALSE)","v":944},{"$f":"HLOOKUP(AJ$7,$I$66:$DJ$120,ROWS($A$10:$A22)+2,FALSE)","v":131},{"$f":"HLOOKUP(AK$7,$I$66:$DJ$120,ROWS($A$10:$A22)+2,FALSE)","v":75},{"$f":"HLOOKUP(AL$7,$I$66:$DJ$120,ROWS($A$10:$A22)+2,FALSE)","v":760},{"$f":"HLOOKUP(AM$7,$I$66:$DJ$120,ROWS($A$10:$A22)+2,FALSE)","v":85},{"$f":"HLOOKUP(AN$7,$I$66:$DJ$120,ROWS($A$10:$A22)+2,FALSE)","v":410},{"$f":"HLOOKUP(AO$7,$I$66:$DJ$120,ROWS($A$10:$A22)+2,FALSE)","v":284},{"$f":"HLOOKUP(AP$7,$I$66:$DJ$120,ROWS($A$10:$A22)+2,FALSE)","v":2382},{"$f":"HLOOKUP(AQ$7,$I$66:$DJ$120,ROWS($A$10:$A22)+2,FALSE)","v":2241},{"$f":"HLOOKUP(AR$7,$I$66:$DJ$120,ROWS($A$10:$A22)+2,FALSE)","v":0},{"$f":"HLOOKUP(AS$7,$I$66:$DJ$120,ROWS($A$10:$A22)+2,FALSE)","v":884},{"$f":"HLOOKUP(AT$7,$I$66:$DJ$120,ROWS($A$10:$A22)+2,FALSE)","v":1095},{"$f":"HLOOKUP(AU$7,$I$66:$DJ$120,ROWS($A$10:$A22)+2,FALSE)","v":1763},{"$f":"HLOOKUP(AV$7,$I$66:$DJ$120,ROWS($A$10:$A22)+2,FALSE)","v":1087},{"$f":"HLOOKUP(AW$7,$I$66:$DJ$120,ROWS($A$10:$A22)+2,FALSE)","v":106},{"$f":"HLOOKUP(AX$7,$I$66:$DJ$120,ROWS($A$10:$A22)+2,FALSE)","v":644},{"$f":"HLOOKUP(AY$7,$I$66:$DJ$120,ROWS($A$10:$A22)+2,FALSE)","v":459},{"$f":"HLOOKUP(AZ$7,$I$66:$DJ$120,ROWS($A$10:$A22)+2,FALSE)","v":1314},{"$f":"HLOOKUP(BA$7,$I$66:$DJ$120,ROWS($A$10:$A22)+2,FALSE)","v":3300},{"$f":"HLOOKUP(BB$7,$I$66:$DJ$120,ROWS($A$10:$A22)+2,FALSE)","v":2183},{"$f":"HLOOKUP(BC$7,$I$66:$DJ$120,ROWS($A$10:$A22)+2,FALSE)","v":0},{"$f":"HLOOKUP(BD$7,$I$66:$DJ$120,ROWS($A$10:$A22)+2,FALSE)","v":1393},{"$f":"HLOOKUP(BE$7,$I$66:$DJ$120,ROWS($A$10:$A22)+2,FALSE)","v":5920},{"$f":"HLOOKUP(BF$7,$I$66:$DJ$120,ROWS($A$10:$A22)+2,FALSE)","v":197},{"$f":"HLOOKUP(BG$7,$I$66:$DJ$120,ROWS($A$10:$A22)+2,FALSE)","v":295},{"$f":"HLOOKUP(BH$7,$I$66:$DJ$120,ROWS($A$10:$A22)+2,FALSE)","v":50},{"$f":"HLOOKUP(BI$7,$I$66:$DJ$120,ROWS($A$10:$A22)+2,FALSE)","v":336},{"$f":"HLOOKUP(BJ$7+0.5,$I$66:$DJ$120,ROWS($A$10:$A22)+2,FALSE)","v":5749},{"$f":"HLOOKUP(BK$7+0.5,$I$66:$DJ$120,ROWS($A$10:$A22)+2,FALSE)","v":479},{"$f":"HLOOKUP(BL$7+0.5,$I$66:$DJ$120,ROWS($A$10:$A22)+2,FALSE)","v":869},{"$f":"HLOOKUP(BM$7+0.5,$I$66:$DJ$120,ROWS($A$10:$A22)+2,FALSE)","v":695},{"$f":"HLOOKUP(BN$7+0.5,$I$66:$DJ$120,ROWS($A$10:$A22)+2,FALSE)","v":54},{"$f":"HLOOKUP(BO$7+0.5,$I$66:$DJ$120,ROWS($A$10:$A22)+2,FALSE)","v":1508},{"$f":"HLOOKUP(BP$7+0.5,$I$66:$DJ$120,ROWS($A$10:$A22)+2,FALSE)","v":574},{"$f":"HLOOKUP(BQ$7+0.5,$I$66:$DJ$120,ROWS($A$10:$A22)+2,FALSE)","v":222},{"$f":"HLOOKUP(BR$7+0.5,$I$66:$DJ$120,ROWS($A$10:$A22)+2,FALSE)","v":253},{"$f":"HLOOKUP(BS$7+0.5,$I$66:$DJ$120,ROWS($A$10:$A22)+2,FALSE)","v":253},{"$f":"HLOOKUP(BT$7+0.5,$I$66:$DJ$120,ROWS($A$10:$A22)+2,FALSE)","v":1227},{"$f":"HLOOKUP(BU$7+0.5,$I$66:$DJ$120,ROWS($A$10:$A22)+2,FALSE)","v":639},{"$f":"HLOOKUP(BV$7+0.5,$I$66:$DJ$120,ROWS($A$10:$A22)+2,FALSE)","v":"N/A"},{"$f":"HLOOKUP(BW$7+0.5,$I$66:$DJ$120,ROWS($A$10:$A22)+2,FALSE)","v":431},{"$f":"HLOOKUP(BX$7+0.5,$I$66:$DJ$120,ROWS($A$10:$A22)+2,FALSE)","v":194},{"$f":"HLOOKUP(BY$7+0.5,$I$66:$DJ$120,ROWS($A$10:$A22)+2,FALSE)","v":261},{"$f":"HLOOKUP(BZ$7+0.5,$I$66:$DJ$120,ROWS($A$10:$A22)+2,FALSE)","v":98},{"$f":"HLOOKUP(CA$7+0.5,$I$66:$DJ$120,ROWS($A$10:$A22)+2,FALSE)","v":709},{"$f":"HLOOKUP(CB$7+0.5,$I$66:$DJ$120,ROWS($A$10:$A22)+2,FALSE)","v":630},{"$f":"HLOOKUP(CC$7+0.5,$I$66:$DJ$120,ROWS($A$10:$A22)+2,FALSE)","v":183},{"$f":"HLOOKUP(CD$7+0.5,$I$66:$DJ$120,ROWS($A$10:$A22)+2,FALSE)","v":147},{"$f":"HLOOKUP(CE$7+0.5,$I$66:$DJ$120,ROWS($A$10:$A22)+2,FALSE)","v":1610},{"$f":"HLOOKUP(CF$7+0.5,$I$66:$DJ$120,ROWS($A$10:$A22)+2,FALSE)","v":962},{"$f":"HLOOKUP(CG$7+0.5,$I$66:$DJ$120,ROWS($A$10:$A22)+2,FALSE)","v":189},{"$f":"HLOOKUP(CH$7+0.5,$I$66:$DJ$120,ROWS($A$10:$A22)+2,FALSE)","v":240},{"$f":"HLOOKUP(CI$7+0.5,$I$66:$DJ$120,ROWS($A$10:$A22)+2,FALSE)","v":52},{"$f":"HLOOKUP(CJ$7+0.5,$I$66:$DJ$120,ROWS($A$10:$A22)+2,FALSE)","v":630},{"$f":"HLOOKUP(CK$7+0.5,$I$66:$DJ$120,ROWS($A$10:$A22)+2,FALSE)","v":172},{"$f":"HLOOKUP(CL$7+0.5,$I$66:$DJ$120,ROWS($A$10:$A22)+2,FALSE)","v":125},{"$f":"HLOOKUP(CM$7+0.5,$I$66:$DJ$120,ROWS($A$10:$A22)+2,FALSE)","v":424},{"$f":"HLOOKUP(CN$7+0.5,$I$66:$DJ$120,ROWS($A$10:$A22)+2,FALSE)","v":119},{"$f":"HLOOKUP(CO$7+0.5,$I$66:$DJ$120,ROWS($A$10:$A22)+2,FALSE)","v":435},{"$f":"HLOOKUP(CP$7+0.5,$I$66:$DJ$120,ROWS($A$10:$A22)+2,FALSE)","v":243},{"$f":"HLOOKUP(CQ$7+0.5,$I$66:$DJ$120,ROWS($A$10:$A22)+2,FALSE)","v":1279},{"$f":"HLOOKUP(CR$7+0.5,$I$66:$DJ$120,ROWS($A$10:$A22)+2,FALSE)","v":1274},{"$f":"HLOOKUP(CS$7+0.5,$I$66:$DJ$120,ROWS($A$10:$A22)+2,FALSE)","v":177},{"$f":"HLOOKUP(CT$7+0.5,$I$66:$DJ$120,ROWS($A$10:$A22)+2,FALSE)","v":995},{"$f":"HLOOKUP(CU$7+0.5,$I$66:$DJ$120,ROWS($A$10:$A22)+2,FALSE)","v":933},{"$f":"HLOOKUP(CV$7+0.5,$I$66:$DJ$120,ROWS($A$10:$A22)+2,FALSE)","v":764},{"$f":"HLOOKUP(CW$7+0.5,$I$66:$DJ$120,ROWS($A$10:$A22)+2,FALSE)","v":770},{"$f":"HLOOKUP(CX$7+0.5,$I$66:$DJ$120,ROWS($A$10:$A22)+2,FALSE)","v":176},{"$f":"HLOOKUP(CY$7+0.5,$I$66:$DJ$120,ROWS($A$10:$A22)+2,FALSE)","v":460},{"$f":"HLOOKUP(CZ$7+0.5,$I$66:$DJ$120,ROWS($A$10:$A22)+2,FALSE)","v":726},{"$f":"HLOOKUP(DA$7+0.5,$I$66:$DJ$120,ROWS($A$10:$A22)+2,FALSE)","v":675},{"$f":"HLOOKUP(DB$7+0.5,$I$66:$DJ$120,ROWS($A$10:$A22)+2,FALSE)","v":1887},{"$f":"HLOOKUP(DC$7+0.5,$I$66:$DJ$120,ROWS($A$10:$A22)+2,FALSE)","v":1283},{"$f":"HLOOKUP(DD$7+0.5,$I$66:$DJ$120,ROWS($A$10:$A22)+2,FALSE)","v":177},{"$f":"HLOOKUP(DE$7+0.5,$I$66:$DJ$120,ROWS($A$10:$A22)+2,FALSE)","v":755},{"$f":"HLOOKUP(DF$7+0.5,$I$66:$DJ$120,ROWS($A$10:$A22)+2,FALSE)","v":1901},{"$f":"HLOOKUP(DG$7+0.5,$I$66:$DJ$120,ROWS($A$10:$A22)+2,FALSE)","v":330},{"$f":"HLOOKUP(DH$7+0.5,$I$66:$DJ$120,ROWS($A$10:$A22)+2,FALSE)","v":234},{"$f":"HLOOKUP(DI$7+0.5,$I$66:$DJ$120,ROWS($A$10:$A22)+2,FALSE)","v":66},{"$f":"HLOOKUP(DJ$7+0.5,$I$66:$DJ$120,ROWS($A$10:$A22)+2,FALSE)","v":436}]
[null,"Idaho",1573036,2184,1296975,12998,210151,11483,{"$f":"HLOOKUP(I$7,$I$66:$DJ$120,ROWS($A$10:$A23)+2,FALSE)","v":59283},{"$f":"HLOOKUP(J$7,$I$66:$DJ$120,ROWS($A$10:$A23)+2,FALSE)","v":575},{"$f":"HLOOKUP(K$7,$I$66:$DJ$120,ROWS($A$10:$A23)+2,FALSE)","v":1198},{"$f":"HLOOKUP(L$7,$I$66:$DJ$120,ROWS($A$10:$A23)+2,FALSE)","v":2424},{"$f":"HLOOKUP(M$7,$I$66:$DJ$120,ROWS($A$10:$A23)+2,FALSE)","v":291},{"$f":"HLOOKUP(N$7,$I$66:$DJ$120,ROWS($A$10:$A23)+2,FALSE)","v":10280},{"$f":"HLOOKUP(O$7,$I$66:$DJ$120,ROWS($A$10:$A23)+2,FALSE)","v":1186},{"$f":"HLOOKUP(P$7,$I$66:$DJ$120,ROWS($A$10:$A23)+2,FALSE)","v":44},{"$f":"HLOOKUP(Q$7,$I$66:$DJ$120,ROWS($A$10:$A23)+2,FALSE)","v":120},{"$f":"HLOOKUP(R$7,$I$66:$DJ$120,ROWS($A$10:$A23)+2,FALSE)","v":116},{"$f":"HLOOKUP(S$7,$I$66:$DJ$120,ROWS($A$10:$A23)+2,FALSE)","v":2014},{"$f":"HLOOKUP(T$7,$I$66:$DJ$120,ROWS($A$10:$A23)+2,FALSE)","v":583},{"$f":"HLOOKUP(U$7,$I$66:$DJ$120,ROWS($A$10:$A23)+2,FALSE)","v":206},{"$f":"HLOOKUP(V$7,$I$66:$DJ$120,ROWS($A$10:$A23)+2,FALSE)","v":"N/A"},{"$f":"HLOOKUP(W$7,$I$66:$DJ$120,ROWS($A$10:$A23)+2,FALSE)","v":532},{"$f":"HLOOKUP(X$7,$I$66:$DJ$120,ROWS($A$10:$A23)+2,FALSE)","v":283},{"$f":"HLOOKUP(Y$7,$I$66:$DJ$120,ROWS($A$10:$A23)+2,FALSE)","v":90},{"$f":"HLOOKUP(Z$7,$I$66:$DJ$120,ROWS($A$10:$A23)+2,FALSE)","v":63},{"$f":"HLOOKUP(AA$7,$I$66:$DJ$120,ROWS($A$10:$A23)+2,FALSE)","v":83},{"$f":"HLOOKUP(AB$7,$I$66:$DJ$120,ROWS($A$10:$A23)+2,FALSE)","v":54},{"$f":"HLOOKUP(AC$7,$I$66:$DJ$120,ROWS($A$10:$A23)+2,FALSE)","v":0},{"$f":"HLOOKUP(AD$7,$I$66:$DJ$120,ROWS($A$10:$A23)+2,FALSE)","v":107},{"$f":"HLOOKUP(AE$7,$I$66:$DJ$120,ROWS($A$10:$A23)+2,FALSE)","v":338},{"$f":"HLOOKUP(AF$7,$I$66:$DJ$120,ROWS($A$10:$A23)+2,FALSE)","v":683},{"$f":"HLOOKUP(AG$7,$I$66:$DJ$120,ROWS($A$10:$A23)+2,FALSE)","v":637},{"$f":"HLOOKUP(AH$7,$I$66:$DJ$120,ROWS($A$10:$A23)+2,FALSE)","v":87},{"$f":"HLOOKUP(AI$7,$I$66:$DJ$120,ROWS($A$10:$A23)+2,FALSE)","v":214},{"$f":"HLOOKUP(AJ$7,$I$66:$DJ$120,ROWS($A$10:$A23)+2,FALSE)","v":3800},{"$f":"HLOOKUP(AK$7,$I$66:$DJ$120,ROWS($A$10:$A23)+2,FALSE)","v":35},{"$f":"HLOOKUP(AL$7,$I$66:$DJ$120,ROWS($A$10:$A23)+2,FALSE)","v":2535},{"$f":"HLOOKUP(AM$7,$I$66:$DJ$120,ROWS($A$10:$A23)+2,FALSE)","v":0},{"$f":"HLOOKUP(AN$7,$I$66:$DJ$120,ROWS($A$10:$A23)+2,FALSE)","v":214},{"$f":"HLOOKUP(AO$7,$I$66:$DJ$120,ROWS($A$10:$A23)+2,FALSE)","v":675},{"$f":"HLOOKUP(AP$7,$I$66:$DJ$120,ROWS($A$10:$A23)+2,FALSE)","v":938},{"$f":"HLOOKUP(AQ$7,$I$66:$DJ$120,ROWS($A$10:$A23)+2,FALSE)","v":817},{"$f":"HLOOKUP(AR$7,$I$66:$DJ$120,ROWS($A$10:$A23)+2,FALSE)","v":0},{"$f":"HLOOKUP(AS$7,$I$66:$DJ$120,ROWS($A$10:$A23)+2,FALSE)","v":1018},{"$f":"HLOOKUP(AT$7,$I$66:$DJ$120,ROWS($A$10:$A23)+2,FALSE)","v":93},{"$f":"HLOOKUP(AU$7,$I$66:$DJ$120,ROWS($A$10:$A23)+2,FALSE)","v":4963},{"$f":"HLOOKUP(AV$7,$I$66:$DJ$120,ROWS($A$10:$A23)+2,FALSE)","v":169},{"$f":"HLOOKUP(AW$7,$I$66:$DJ$120,ROWS($A$10:$A23)+2,FALSE)","v":0},{"$f":"HLOOKUP(AX$7,$I$66:$DJ$120,ROWS($A$10:$A23)+2,FALSE)","v":205},{"$f":"HLOOKUP(AY$7,$I$66:$DJ$120,ROWS($A$10:$A23)+2,FALSE)","v":118},{"$f":"HLOOKUP(AZ$7,$I$66:$DJ$120,ROWS($A$10:$A23)+2,FALSE)","v":1957},{"$f":"HLOOKUP(BA$7,$I$66:$DJ$120,ROWS($A$10:$A23)+2,FALSE)","v":1352},{"$f":"HLOOKUP(BB$7,$I$66:$DJ$120,ROWS($A$10:$A23)+2,FALSE)","v":6617},{"$f":"HLOOKUP(BC$7,$I$66:$DJ$120,ROWS($A$10:$A23)+2,FALSE)","v":0},{"$f":"HLOOKUP(BD$7,$I$66:$DJ$120,ROWS($A$10:$A23)+2,FALSE)","v":269},{"$f":"HLOOKUP(BE$7,$I$66:$DJ$120,ROWS($A$10:$A23)+2,FALSE)","v":10398},{"$f":"HLOOKUP(BF$7,$I$66:$DJ$120,ROWS($A$10:$A23)+2,FALSE)","v":0},{"$f":"HLOOKUP(BG$7,$I$66:$DJ$120,ROWS($A$10:$A23)+2,FALSE)","v":225},{"$f":"HLOOKUP(BH$7,$I$66:$DJ$120,ROWS($A$10:$A23)+2,FALSE)","v":677},{"$f":"HLOOKUP(BI$7,$I$66:$DJ$120,ROWS($A$10:$A23)+2,FALSE)","v":136},{"$f":"HLOOKUP(BJ$7+0.5,$I$66:$DJ$120,ROWS($A$10:$A23)+2,FALSE)","v":6040},{"$f":"HLOOKUP(BK$7+0.5,$I$66:$DJ$120,ROWS($A$10:$A23)+2,FALSE)","v":838},{"$f":"HLOOKUP(BL$7+0.5,$I$66:$DJ$120,ROWS($A$10:$A23)+2,FALSE)","v":790},{"$f":"HLOOKUP(BM$7+0.5,$I$66:$DJ$120,ROWS($A$10:$A23)+2,FALSE)","v":1307},{"$f":"HLOOKUP(BN$7+0.5,$I$66:$DJ$120,ROWS($A$10:$A23)+2,FALSE)","v":268},{"$f":"HLOOKUP(BO$7+0.5,$I$66:$DJ$120,ROWS($A$10:$A23)+2,FALSE)","v":2708},{"$f":"HLOOKUP(BP$7+0.5,$I$66:$DJ$120,ROWS($A$10:$A23)+2,FALSE)","v":614},{"$f":"HLOOKUP(BQ$7+0.5,$I$66:$DJ$120,ROWS($A$10:$A23)+2,FALSE)","v":81},{"$f":"HLOOKUP(BR$7+0.5,$I$66:$DJ$120,ROWS($A$10:$A23)+2,FALSE)","v":199},{"$f":"HLOOKUP(BS$7+0.5,$I$66:$DJ$120,ROWS($A$10:$A23)+2,FALSE)","v":124},{"$f":"HLOOKUP(BT$7+0.5,$I$66:$DJ$120,ROWS($A$10:$A23)+2,FALSE)","v":1608},{"$f":"HLOOKUP(BU$7+0.5,$I$66:$DJ$120,ROWS($A$10:$A23)+2,FALSE)","v":848},{"$f":"HLOOKUP(BV$7+0.5,$I$66:$DJ$120,ROWS($A$10:$A23)+2,FALSE)","v":194},{"$f":"HLOOKUP(BW$7+0.5,$I$66:$DJ$120,ROWS($A$10:$A23)+2,FALSE)","v":"N/A"},{"$f":"HLOOKUP(BX$7+0.5,$I$66:$DJ$120,ROWS($A$10:$A23)+2,FALSE)","v":469},{"$f":"HLOOKUP(BY$7+0.5,$I$66:$DJ$120,ROWS($A$10:$A23)+2,FALSE)","v":282},{"$f":"HLOOKUP(BZ$7+0.5,$I$66:$DJ$120,ROWS($A$10:$A23)+2,FALSE)","v":170},{"$f":"HLOOKUP(CA$7+0.5,$I$66:$DJ$120,ROWS($A$10:$A23)+2,FALSE)","v":69},{"$f":"HLOOKUP(CB$7+0.5,$I$66:$DJ$120,ROWS($A$10:$A23)+2,FALSE)","v":128},{"$f":"HLOOKUP(CC$7+0.5,$I$66:$DJ$120,ROWS($A$10:$A23)+2,FALSE)","v":92},{"$f":"HLOOKUP(CD$7+0.5,$I$66:$DJ$120,ROWS($A$10:$A23)+2,FALSE)","v":187},{"$f":"HLOOKUP(CE$7+0.5,$I$66:$DJ$120,ROWS($A$10:$A23)+2,FALSE)","v":161},{"$f":"HLOOKUP(CF$7+0.5,$I$66:$DJ$120,ROWS($A$10:$A23)+2,FALSE)","v":391},{"$f":"HLOOKUP(CG$7+0.5,$I$66:$DJ$120,ROWS($A$10:$A23)+2,FALSE)","v":777},{"$f":"HLOOKUP(CH$7+0.5,$I$66:$DJ$120,ROWS($A$10:$A23)+2,FALSE)","v":528},{"$f":"HLOOKUP(CI$7+0.5,$I$66:$DJ$120,ROWS($A$10:$A23)+2,FALSE)","v":170},{"$f":"HLOOKUP(CJ$7+0.5,$I$66:$DJ$120,ROWS($A$10:$A23)+2,FALSE)","v":259},{"$f":"HLOOKUP(CK$7+0.5,$I$66:$DJ$120,ROWS($A$10:$A23)+2,FALSE)","v":2162},{"$f":"HLOOKUP(CL$7+0.5,$I$66:$DJ$120,ROWS($A$10:$A23)+2,FALSE)","v":60},{"$f":"HLOOKUP(CM$7+0.5,$I$66:$DJ$120,ROWS($A$10:$A23)+2,FALSE)","v":1031},{"$f":"HLOOKUP(CN$7+0.5,$I$66:$DJ$120,ROWS($A$10:$A23)+2,FALSE)","v":187},{"$f":"HLOOKUP(CO$7+0.5,$I$66:$DJ$120,ROWS($A$10:$A23)+2,FALSE)","v":206},{"$f":"HLOOKUP(CP$7+0.5,$I$66:$DJ$120,ROWS($A$10:$A23)+2,FALSE)","v":554},{"$f":"HLOOKUP(CQ$7+0.5,$I$66:$DJ$120,ROWS($A$10:$A23)+2,FALSE)","v":554},{"$f":"HLOOKUP(CR$7+0.5,$I$66:$DJ$120,ROWS($A$10:$A23)+2,FALSE)","v":843},{"$f":"HLOOKUP(CS$7+0.5,$I$66:$DJ$120,ROWS($A$10:$A23)+2,FALSE)","v":187},{"$f":"HLOOKUP(CT$7+0.5,$I$66:$DJ$120,ROWS($A$10:$A23)+2,FALSE)","v":753},{"$f":"HLOOKUP(CU$7+0.5,$I$66:$DJ$120,ROWS($A$10:$A23)+2,FALSE)","v":108},{"$f":"HLOOKUP(CV$7+0.5,$I$66:$DJ$120,ROWS($A$10:$A23)+2,FALSE)","v":1377},{"$f":"HLOOKUP(CW$7+0.5,$I$66:$DJ$120,ROWS($A$10:$A23)+2,FALSE)","v":181},{"$f":"HLOOKUP(CX$7+0.5,$I$66:$DJ$120,ROWS($A$10:$A23)+2,FALSE)","v":187},{"$f":"HLOOKUP(CY$7+0.5,$I$66:$DJ$120,ROWS($A$10:$A23)+2,FALSE)","v":238},{"$f":"HLOOKUP(CZ$7+0.5,$I$66:$DJ$120,ROWS($A$10:$A23)+2,FALSE)","v":192},{"$f":"HLOOKUP(DA$7+0.5,$I$66:$DJ$120,ROWS($A$10:$A23)+2,FALSE)","v":1539},{"$f":"HLOOKUP(DB$7+0.5,$I$66:$DJ$120,ROWS($A$10:$A23)+2,FALSE)","v":714},{"$f":"HLOOKUP(DC$7+0.5,$I$66:$DJ$120,ROWS($A$10:$A23)+2,FALSE)","v":3016},{"$f":"HLOOKUP(DD$7+0.5,$I$66:$DJ$120,ROWS($A$10:$A23)+2,FALSE)","v":187},{"$f":"HLOOKUP(DE$7+0.5,$I$66:$DJ$120,ROWS($A$10:$A23)+2,FALSE)","v":388},{"$f":"HLOOKUP(DF$7+0.5,$I$66:$DJ$120,ROWS($A$10:$A23)+2,FALSE)","v":1919},{"$f":"HLOOKUP(DG$7+0.5,$I$66:$DJ$120,ROWS($A$10:$A23)+2,FALSE)","v":187},{"$f":"HLOOKUP(DH$7+0.5,$I$66:$DJ$120,ROWS($A$10:$A23)+2,FALSE)","v":272},{"$f":"HLOOKUP(DI$7+0.5,$I$66:$DJ$120,ROWS($A$10:$A23)+2,FALSE)","v":406},{"$f":"HLOOKUP(DJ$7+0.5,$I$66:$DJ$120,ROWS($A$10:$A23)+2,FALSE)","v":228}]
[null,"Illinois",12725119,5939,11009321,31714,1441191,27618,{"$f":"HLOOKUP(I$7,$I$66:$DJ$120,ROWS($A$10:$A24)+2,FALSE)","v":208755},{"$f":"HLOOKUP(J$7,$I$66:$DJ$120,ROWS($A$10:$A24)+2,FALSE)","v":883},{"$f":"HLOOKUP(K$7,$I$66:$DJ$120,ROWS($A$10:$A24)+2,FALSE)","v":2250},{"$f":"HLOOKUP(L$7,$I$66:$DJ$120,ROWS($A$10:$A24)+2,FALSE)","v":7139},{"$f":"HLOOKUP(M$7,$I$66:$DJ$120,ROWS($A$10:$A24)+2,FALSE)","v":1587},{"$f":"HLOOKUP(N$7,$I$66:$DJ$120,ROWS($A$10:$A24)+2,FALSE)","v":14940},{"$f":"HLOOKUP(O$7,$I$66:$DJ$120,ROWS($A$10:$A24)+2,FALSE)","v":3036},{"$f":"HLOOKUP(P$7,$I$66:$DJ$120,ROWS($A$10:$A24)+2,FALSE)","v":955},{"$f":"HLOOKUP(Q$7,$I$66:$DJ$120,ROWS($A$10:$A24)+2,FALSE)","v":234},{"$f":"HLOOKUP(R$7,$I$66:$DJ$120,ROWS($A$10:$A24)+2,FALSE)","v":1066},{"$f":"HLOOKUP(S$7,$I$66:$DJ$120,ROWS($A$10:$A24)+2,FALSE)","v":12687},{"$f":"HLOOKUP(T$7,$I$66:$DJ$120,ROWS($A$10:$A24)+2,FALSE)","v":8745},{"$f":"HLOOKUP(U$7,$I$66:$DJ$120,ROWS($A$10:$A24)+2,FALSE)","v":869},{"$f":"HLOOKUP(V$7,$I$66:$DJ$120,ROWS($A$10:$A24)+2,FALSE)","v":1384},{"$f":"HLOOKUP(W$7,$I$66:$DJ$120,ROWS($A$10:$A24)+2,FALSE)","v":"N/A"},{"$f":"HLOOKUP(X$7,$I$66:$DJ$120,ROWS($A$10:$A24)+2,FALSE)","v":16907},{"$f":"HLOOKUP(Y$7,$I$66:$DJ$120,ROWS($A$10:$A24)+2,FALSE)","v":8529},{"$f":"HLOOKUP(Z$7,$I$66:$DJ$120,ROWS($A$10:$A24)+2,FALSE)","v":2009},{"$f":"HLOOKUP(AA$7,$I$66:$DJ$120,ROWS($A$10:$A24)+2,FALSE)","v":2923},{"$f":"HLOOKUP(AB$7,$I$66:$DJ$120,ROWS($A$10:$A24)+2,FALSE)","v":1229},{"$f":"HLOOKUP(AC$7,$I$66:$DJ$120,ROWS($A$10:$A24)+2,FALSE)","v":526},{"$f":"HLOOKUP(AD$7,$I$66:$DJ$120,ROWS($A$10:$A24)+2,FALSE)","v":1865},{"$f":"HLOOKUP(AE$7,$I$66:$DJ$120,ROWS($A$10:$A24)+2,FALSE)","v":3296},{"$f":"HLOOKUP(AF$7,$I$66:$DJ$120,ROWS($A$10:$A24)+2,FALSE)","v":12583},{"$f":"HLOOKUP(AG$7,$I$66:$DJ$120,ROWS($A$10:$A24)+2,FALSE)","v":6537},{"$f":"HLOOKUP(AH$7,$I$66:$DJ$120,ROWS($A$10:$A24)+2,FALSE)","v":2744},{"$f":"HLOOKUP(AI$7,$I$66:$DJ$120,ROWS($A$10:$A24)+2,FALSE)","v":13264},{"$f":"HLOOKUP(AJ$7,$I$66:$DJ$120,ROWS($A$10:$A24)+2,FALSE)","v":228},{"$f":"HLOOKUP(AK$7,$I$66:$DJ$120,ROWS($A$10:$A24)+2,FALSE)","v":1302},{"$f":"HLOOKUP(AL$7,$I$66:$DJ$120,ROWS($A$10:$A24)+2,FALSE)","v":1478},{"$f":"HLOOKUP(AM$7,$I$66:$DJ$120,ROWS($A$10:$A24)+2,FALSE)","v":283},{"$f":"HLOOKUP(AN$7,$I$66:$DJ$120,ROWS($A$10:$A24)+2,FALSE)","v":2366},{"$f":"HLOOKUP(AO$7,$I$66:$DJ$120,ROWS($A$10:$A24)+2,FALSE)","v":1359},{"$f":"HLOOKUP(AP$7,$I$66:$DJ$120,ROWS($A$10:$A24)+2,FALSE)","v":7561},{"$f":"HLOOKUP(AQ$7,$I$66:$DJ$120,ROWS($A$10:$A24)+2,FALSE)","v":3761},{"$f":"HLOOKUP(AR$7,$I$66:$DJ$120,ROWS($A$10:$A24)+2,FALSE)","v":196},{"$f":"HLOOKUP(AS$7,$I$66:$DJ$120,ROWS($A$10:$A24)+2,FALSE)","v":6872},{"$f":"HLOOKUP(AT$7,$I$66:$DJ$120,ROWS($A$10:$A24)+2,FALSE)","v":1491},{"$f":"HLOOKUP(AU$7,$I$66:$DJ$120,ROWS($A$10:$A24)+2,FALSE)","v":954},{"$f":"HLOOKUP(AV$7,$I$66:$DJ$120,ROWS($A$10:$A24)+2,FALSE)","v":4588},{"$f":"HLOOKUP(AW$7,$I$66:$DJ$120,ROWS($A$10:$A24)+2,FALSE)","v":462},{"$f":"HLOOKUP(AX$7,$I$66:$DJ$120,ROWS($A$10:$A24)+2,FALSE)","v":1583},{"$f":"HLOOKUP(AY$7,$I$66:$DJ$120,ROWS($A$10:$A24)+2,FALSE)","v":394},{"$f":"HLOOKUP(AZ$7,$I$66:$DJ$120,ROWS($A$10:$A24)+2,FALSE)","v":4648},{"$f":"HLOOKUP(BA$7,$I$66:$DJ$120,ROWS($A$10:$A24)+2,FALSE)","v":16780},{"$f":"HLOOKUP(BB$7,$I$66:$DJ$120,ROWS($A$10:$A24)+2,FALSE)","v":1154},{"$f":"HLOOKUP(BC$7,$I$66:$DJ$120,ROWS($A$10:$A24)+2,FALSE)","v":156},{"$f":"HLOOKUP(BD$7,$I$66:$DJ$120,ROWS($A$10:$A24)+2,FALSE)","v":4311},{"$f":"HLOOKUP(BE$7,$I$66:$DJ$120,ROWS($A$10:$A24)+2,FALSE)","v":2704},{"$f":"HLOOKUP(BF$7,$I$66:$DJ$120,ROWS($A$10:$A24)+2,FALSE)","v":1221},{"$f":"HLOOKUP(BG$7,$I$66:$DJ$120,ROWS($A$10:$A24)+2,FALSE)","v":14414},{"$f":"HLOOKUP(BH$7,$I$66:$DJ$120,ROWS($A$10:$A24)+2,FALSE)","v":302},{"$f":"HLOOKUP(BI$7,$I$66:$DJ$120,ROWS($A$10:$A24)+2,FALSE)","v":2049},{"$f":"HLOOKUP(BJ$7+0.5,$I$66:$DJ$120,ROWS($A$10:$A24)+2,FALSE)","v":10844},{"$f":"HLOOKUP(BK$7+0.5,$I$66:$DJ$120,ROWS($A$10:$A24)+2,FALSE)","v":478},{"$f":"HLOOKUP(BL$7+0.5,$I$66:$DJ$120,ROWS($A$10:$A24)+2,FALSE)","v":1511},{"$f":"HLOOKUP(BM$7+0.5,$I$66:$DJ$120,ROWS($A$10:$A24)+2,FALSE)","v":2314},{"$f":"HLOOKUP(BN$7+0.5,$I$66:$DJ$120,ROWS($A$10:$A24)+2,FALSE)","v":643},{"$f":"HLOOKUP(BO$7+0.5,$I$66:$DJ$120,ROWS($A$10:$A24)+2,FALSE)","v":2770},{"$f":"HLOOKUP(BP$7+0.5,$I$66:$DJ$120,ROWS($A$10:$A24)+2,FALSE)","v":1235},{"$f":"HLOOKUP(BQ$7+0.5,$I$66:$DJ$120,ROWS($A$10:$A24)+2,FALSE)","v":634},{"$f":"HLOOKUP(BR$7+0.5,$I$66:$DJ$120,ROWS($A$10:$A24)+2,FALSE)","v":228},{"$f":"HLOOKUP(BS$7+0.5,$I$66:$DJ$120,ROWS($A$10:$A24)+2,FALSE)","v":615},{"$f":"HLOOKUP(BT$7+0.5,$I$66:$DJ$120,ROWS($A$10:$A24)+2,FALSE)","v":2735},{"$f":"HLOOKUP(BU$7+0.5,$I$66:$DJ$120,ROWS($A$10:$A24)+2,FALSE)","v":3894},{"$f":"HLOOKUP(BV$7+0.5,$I$66:$DJ$120,ROWS($A$10:$A24)+2,FALSE)","v":593},{"$f":"HLOOKUP(BW$7+0.5,$I$66:$DJ$120,ROWS($A$10:$A24)+2,FALSE)","v":868},{"$f":"HLOOKUP(BX$7+0.5,$I$66:$DJ$120,ROWS($A$10:$A24)+2,FALSE)","v":"N/A"},{"$f":"HLOOKUP(BY$7+0.5,$I$66:$DJ$120,ROWS($A$10:$A24)+2,FALSE)","v":2654},{"$f":"HLOOKUP(BZ$7+0.5,$I$66:$DJ$120,ROWS($A$10:$A24)+2,FALSE)","v":1959},{"$f":"HLOOKUP(CA$7+0.5,$I$66:$DJ$120,ROWS($A$10:$A24)+2,FALSE)","v":988},{"$f":"HLOOKUP(CB$7+0.5,$I$66:$DJ$120,ROWS($A$10:$A24)+2,FALSE)","v":1049},{"$f":"HLOOKUP(CC$7+0.5,$I$66:$DJ$120,ROWS($A$10:$A24)+2,FALSE)","v":561},{"$f":"HLOOKUP(CD$7+0.5,$I$66:$DJ$120,ROWS($A$10:$A24)+2,FALSE)","v":347},{"$f":"HLOOKUP(CE$7+0.5,$I$66:$DJ$120,ROWS($A$10:$A24)+2,FALSE)","v":755},{"$f":"HLOOKUP(CF$7+0.5,$I$66:$DJ$120,ROWS($A$10:$A24)+2,FALSE)","v":1088},{"$f":"HLOOKUP(CG$7+0.5,$I$66:$DJ$120,ROWS($A$10:$A24)+2,FALSE)","v":3412},{"$f":"HLOOKUP(CH$7+0.5,$I$66:$DJ$120,ROWS($A$10:$A24)+2,FALSE)","v":1781},{"$f":"HLOOKUP(CI$7+0.5,$I$66:$DJ$120,ROWS($A$10:$A24)+2,FALSE)","v":1178},{"$f":"HLOOKUP(CJ$7+0.5,$I$66:$DJ$120,ROWS($A$10:$A24)+2,FALSE)","v":3449},{"$f":"HLOOKUP(CK$7+0.5,$I$66:$DJ$120,ROWS($A$10:$A24)+2,FALSE)","v":183},{"$f":"HLOOKUP(CL$7+0.5,$I$66:$DJ$120,ROWS($A$10:$A24)+2,FALSE)","v":637},{"$f":"HLOOKUP(CM$7+0.5,$I$66:$DJ$120,ROWS($A$10:$A24)+2,FALSE)","v":817},{"$f":"HLOOKUP(CN$7+0.5,$I$66:$DJ$120,ROWS($A$10:$A24)+2,FALSE)","v":255},{"$f":"HLOOKUP(CO$7+0.5,$I$66:$DJ$120,ROWS($A$10:$A24)+2,FALSE)","v":1097},{"$f":"HLOOKUP(CP$7+0.5,$I$66:$DJ$120,ROWS($A$10:$A24)+2,FALSE)","v":1078},{"$f":"HLOOKUP(CQ$7+0.5,$I$66:$DJ$120,ROWS($A$10:$A24)+2,FALSE)","v":2307},{"$f":"HLOOKUP(CR$7+0.5,$I$66:$DJ$120,ROWS($A$10:$A24)+2,FALSE)","v":1150},{"$f":"HLOOKUP(CS$7+0.5,$I$66:$DJ$120,ROWS($A$10:$A24)+2,FALSE)","v":184},{"$f":"HLOOKUP(CT$7+0.5,$I$66:$DJ$120,ROWS($A$10:$A24)+2,FALSE)","v":1834},{"$f":"HLOOKUP(CU$7+0.5,$I$66:$DJ$120,ROWS($A$10:$A24)+2,FALSE)","v":860},{"$f":"HLOOKUP(CV$7+0.5,$I$66:$DJ$120,ROWS($A$10:$A24)+2,FALSE)","v":517},{"$f":"HLOOKUP(CW$7+0.5,$I$66:$DJ$120,ROWS($A$10:$A24)+2,FALSE)","v":1506},{"$f":"HLOOKUP(CX$7+0.5,$I$66:$DJ$120,ROWS($A$10:$A24)+2,FALSE)","v":478},{"$f":"HLOOKUP(CY$7+0.5,$I$66:$DJ$120,ROWS($A$10:$A24)+2,FALSE)","v":875},{"$f":"HLOOKUP(CZ$7+0.5,$I$66:$DJ$120,ROWS($A$10:$A24)+2,FALSE)","v":444},{"$f":"HLOOKUP(DA$7+0.5,$I$66:$DJ$120,ROWS($A$10:$A24)+2,FALSE)","v":1468},{"$f":"HLOOKUP(DB$7+0.5,$I$66:$DJ$120,ROWS($A$10:$A24)+2,FALSE)","v":3035},{"$f":"HLOOKUP(DC$7+0.5,$I$66:$DJ$120,ROWS($A$10:$A24)+2,FALSE)","v":495},{"$f":"HLOOKUP(DD$7+0.5,$I$66:$DJ$120,ROWS($A$10:$A24)+2,FALSE)","v":133},{"$f":"HLOOKUP(DE$7+0.5,$I$66:$DJ$120,ROWS($A$10:$A24)+2,FALSE)","v":1212},{"$f":"HLOOKUP(DF$7+0.5,$I$66:$DJ$120,ROWS($A$10:$A24)+2,FALSE)","v":971},{"$f":"HLOOKUP(DG$7+0.5,$I$66:$DJ$120,ROWS($A$10:$A24)+2,FALSE)","v":1224},{"$f":"HLOOKUP(DH$7+0.5,$I$66:$DJ$120,ROWS($A$10:$A24)+2,FALSE)","v":2249},{"$f":"HLOOKUP(DI$7+0.5,$I$66:$DJ$120,ROWS($A$10:$A24)+2,FALSE)","v":309},{"$f":"HLOOKUP(DJ$7+0.5,$I$66:$DJ$120,ROWS($A$10:$A24)+2,FALSE)","v":1480}]
[null,"Indiana",6457067,4184,5493090,26865,805228,22224,{"$f":"HLOOKUP(I$7,$I$66:$DJ$120,ROWS($A$10:$A25)+2,FALSE)","v":134137},{"$f":"HLOOKUP(J$7,$I$66:$DJ$120,ROWS($A$10:$A25)+2,FALSE)","v":1625},{"$f":"HLOOKUP(K$7,$I$66:$DJ$120,ROWS($A$10:$A25)+2,FALSE)","v":479},{"$f":"HLOOKUP(L$7,$I$66:$DJ$120,ROWS($A$10:$A25)+2,FALSE)","v":2763},{"$f":"HLOOKUP(M$7,$I$66:$DJ$120,ROWS($A$10:$A25)+2,FALSE)","v":564},{"$f":"HLOOKUP(N$7,$I$66:$DJ$120,ROWS($A$10:$A25)+2,FALSE)","v":6033},{"$f":"HLOOKUP(O$7,$I$66:$DJ$120,ROWS($A$10:$A25)+2,FALSE)","v":1225},{"$f":"HLOOKUP(P$7,$I$66:$DJ$120,ROWS($A$10:$A25)+2,FALSE)","v":823},{"$f":"HLOOKUP(Q$7,$I$66:$DJ$120,ROWS($A$10:$A25)+2,FALSE)","v":639},{"$f":"HLOOKUP(R$7,$I$66:$DJ$120,ROWS($A$10:$A25)+2,FALSE)","v":1045},{"$f":"HLOOKUP(S$7,$I$66:$DJ$120,ROWS($A$10:$A25)+2,FALSE)","v":11472},{"$f":"HLOOKUP(T$7,$I$66:$DJ$120,ROWS($A$10:$A25)+2,FALSE)","v":2258},{"$f":"HLOOKUP(U$7,$I$66:$DJ$120,ROWS($A$10:$A25)+2,FALSE)","v":856},{"$f":"HLOOKUP(V$7,$I$66:$DJ$120,ROWS($A$10:$A25)+2,FALSE)","v":186},{"$f":"HLOOKUP(W$7,$I$66:$DJ$120,ROWS($A$10:$A25)+2,FALSE)","v":28436},{"$f":"HLOOKUP(X$7,$I$66:$DJ$120,ROWS($A$10:$A25)+2,FALSE)","v":"N/A"},{"$f":"HLOOKUP(Y$7,$I$66:$DJ$120,ROWS($A$10:$A25)+2,FALSE)","v":1678},{"$f":"HLOOKUP(Z$7,$I$66:$DJ$120,ROWS($A$10:$A25)+2,FALSE)","v":1624},{"$f":"HLOOKUP(AA$7,$I$66:$DJ$120,ROWS($A$10:$A25)+2,FALSE)","v":11177},{"$f":"HLOOKUP(AB$7,$I$66:$DJ$120,ROWS($A$10:$A25)+2,FALSE)","v":736},{"$f":"HLOOKUP(AC$7,$I$66:$DJ$120,ROWS($A$10:$A25)+2,FALSE)","v":0},{"$f":"HLOOKUP(AD$7,$I$66:$DJ$120,ROWS($A$10:$A25)+2,FALSE)","v":1050},{"$f":"HLOOKUP(AE$7,$I$66:$DJ$120,ROWS($A$10:$A25)+2,FALSE)","v":837},{"$f":"HLOOKUP(AF$7,$I$66:$DJ$120,ROWS($A$10:$A25)+2,FALSE)","v":11017},{"$f":"HLOOKUP(AG$7,$I$66:$DJ$120,ROWS($A$10:$A25)+2,FALSE)","v":1543},{"$f":"HLOOKUP(AH$7,$I$66:$DJ$120,ROWS($A$10:$A25)+2,FALSE)","v":1948},{"$f":"HLOOKUP(AI$7,$I$66:$DJ$120,ROWS($A$10:$A25)+2,FALSE)","v":4526},{"$f":"HLOOKUP(AJ$7,$I$66:$DJ$120,ROWS($A$10:$A25)+2,FALSE)","v":134},{"$f":"HLOOKUP(AK$7,$I$66:$DJ$120,ROWS($A$10:$A25)+2,FALSE)","v":591},{"$f":"HLOOKUP(AL$7,$I$66:$DJ$120,ROWS($A$10:$A25)+2,FALSE)","v":1011},{"$f":"HLOOKUP(AM$7,$I$66:$DJ$120,ROWS($A$10:$A25)+2,FALSE)","v":0},{"$f":"HLOOKUP(AN$7,$I$66:$DJ$120,ROWS($A$10:$A25)+2,FALSE)","v":1537},{"$f":"HLOOKUP(AO$7,$I$66:$DJ$120,ROWS($A$10:$A25)+2,FALSE)","v":219},{"$f":"HLOOKUP(AP$7,$I$66:$DJ$120,ROWS($A$10:$A25)+2,FALSE)","v":2316},{"$f":"HLOOKUP(AQ$7,$I$66:$DJ$120,ROWS($A$10:$A25)+2,FALSE)","v":2665},{"$f":"HLOOKUP(AR$7,$I$66:$DJ$120,ROWS($A$10:$A25)+2,FALSE)","v":113},{"$f":"HLOOKUP(AS$7,$I$66:$DJ$120,ROWS($A$10:$A25)+2,FALSE)","v":11235},{"$f":"HLOOKUP(AT$7,$I$66:$DJ$120,ROWS($A$10:$A25)+2,FALSE)","v":1198},{"$f":"HLOOKUP(AU$7,$I$66:$DJ$120,ROWS($A$10:$A25)+2,FALSE)","v":387},{"$f":"HLOOKUP(AV$7,$I$66:$DJ$120,ROWS($A$10:$A25)+2,FALSE)","v":2419},{"$f":"HLOOKUP(AW$7,$I$66:$DJ$120,ROWS($A$10:$A25)+2,FALSE)","v":0},{"$f":"HLOOKUP(AX$7,$I$66:$DJ$120,ROWS($A$10:$A25)+2,FALSE)","v":1414},{"$f":"HLOOKUP(AY$7,$I$66:$DJ$120,ROWS($A$10:$A25)+2,FALSE)","v":111},{"$f":"HLOOKUP(AZ$7,$I$66:$DJ$120,ROWS($A$10:$A25)+2,FALSE)","v":3547},{"$f":"HLOOKUP(BA$7,$I$66:$DJ$120,ROWS($A$10:$A25)+2,FALSE)","v":4490},{"$f":"HLOOKUP(BB$7,$I$66:$DJ$120,ROWS($A$10:$A25)+2,FALSE)","v":105},{"$f":"HLOOKUP(BC$7,$I$66:$DJ$120,ROWS($A$10:$A25)+2,FALSE)","v":0},{"$f":"HLOOKUP(BD$7,$I$66:$DJ$120,ROWS($A$10:$A25)+2,FALSE)","v":1932},{"$f":"HLOOKUP(BE$7,$I$66:$DJ$120,ROWS($A$10:$A25)+2,FALSE)","v":258},{"$f":"HLOOKUP(BF$7,$I$66:$DJ$120,ROWS($A$10:$A25)+2,FALSE)","v":507},{"$f":"HLOOKUP(BG$7,$I$66:$DJ$120,ROWS($A$10:$A25)+2,FALSE)","v":1727},{"$f":"HLOOKUP(BH$7,$I$66:$DJ$120,ROWS($A$10:$A25)+2,FALSE)","v":1681},{"$f":"HLOOKUP(BI$7,$I$66:$DJ$120,ROWS($A$10:$A25)+2,FALSE)","v":136},{"$f":"HLOOKUP(BJ$7+0.5,$I$66:$DJ$120,ROWS($A$10:$A25)+2,FALSE)","v":9664},{"$f":"HLOOKUP(BK$7+0.5,$I$66:$DJ$120,ROWS($A$10:$A25)+2,FALSE)","v":788},{"$f":"HLOOKUP(BL$7+0.5,$I$66:$DJ$120,ROWS($A$10:$A25)+2,FALSE)","v":429},{"$f":"HLOOKUP(BM$7+0.5,$I$66:$DJ$120,ROWS($A$10:$A25)+2,FALSE)","v":1095},{"$f":"HLOOKUP(BN$7+0.5,$I$66:$DJ$120,ROWS($A$10:$A25)+2,FALSE)","v":753},{"$f":"HLOOKUP(BO$7+0.5,$I$66:$DJ$120,ROWS($A$10:$A25)+2,FALSE)","v":1477},{"$f":"HLOOKUP(BP$7+0.5,$I$66:$DJ$120,ROWS($A$10:$A25)+2,FALSE)","v":531},{"$f":"HLOOKUP(BQ$7+0.5,$I$66:$DJ$120,ROWS($A$10:$A25)+2,FALSE)","v":595},{"$f":"HLOOKUP(BR$7+0.5,$I$66:$DJ$120,ROWS($A$10:$A25)+2,FALSE)","v":831},{"$f":"HLOOKUP(BS$7+0.5,$I$66:$DJ$120,ROWS($A$10:$A25)+2,FALSE)","v":733},{"$f":"HLOOKUP(BT$7+0.5,$I$66:$DJ$120,ROWS($A$10:$A25)+2,FALSE)","v":2864},{"$f":"HLOOKUP(BU$7+0.5,$I$66:$DJ$120,ROWS($A$10:$A25)+2,FALSE)","v":1176},{"$f":"HLOOKUP(BV$7+0.5,$I$66:$DJ$120,ROWS($A$10:$A25)+2,FALSE)","v":998},{"$f":"HLOOKUP(BW$7+0.5,$I$66:$DJ$120,ROWS($A$10:$A25)+2,FALSE)","v":176},{"$f":"HLOOKUP(BX$7+0.5,$I$66:$DJ$120,ROWS($A$10:$A25)+2,FALSE)","v":4261},{"$f":"HLOOKUP(BY$7+0.5,$I$66:$DJ$120,ROWS($A$10:$A25)+2,FALSE)","v":"N/A"},{"$f":"HLOOKUP(BZ$7+0.5,$I$66:$DJ$120,ROWS($A$10:$A25)+2,FALSE)","v":860},{"$f":"HLOOKUP(CA$7+0.5,$I$66:$DJ$120,ROWS($A$10:$A25)+2,FALSE)","v":785},{"$f":"HLOOKUP(CB$7+0.5,$I$66:$DJ$120,ROWS($A$10:$A25)+2,FALSE)","v":2929},{"$f":"HLOOKUP(CC$7+0.5,$I$66:$DJ$120,ROWS($A$10:$A25)+2,FALSE)","v":416},{"$f":"HLOOKUP(CD$7+0.5,$I$66:$DJ$120,ROWS($A$10:$A25)+2,FALSE)","v":184},{"$f":"HLOOKUP(CE$7+0.5,$I$66:$DJ$120,ROWS($A$10:$A25)+2,FALSE)","v":648},{"$f":"HLOOKUP(CF$7+0.5,$I$66:$DJ$120,ROWS($A$10:$A25)+2,FALSE)","v":590},{"$f":"HLOOKUP(CG$7+0.5,$I$66:$DJ$120,ROWS($A$10:$A25)+2,FALSE)","v":2594},{"$f":"HLOOKUP(CH$7+0.5,$I$66:$DJ$120,ROWS($A$10:$A25)+2,FALSE)","v":732},{"$f":"HLOOKUP(CI$7+0.5,$I$66:$DJ$120,ROWS($A$10:$A25)+2,FALSE)","v":1655},{"$f":"HLOOKUP(CJ$7+0.5,$I$66:$DJ$120,ROWS($A$10:$A25)+2,FALSE)","v":1802},{"$f":"HLOOKUP(CK$7+0.5,$I$66:$DJ$120,ROWS($A$10:$A25)+2,FALSE)","v":191},{"$f":"HLOOKUP(CL$7+0.5,$I$66:$DJ$120,ROWS($A$10:$A25)+2,FALSE)","v":541},{"$f":"HLOOKUP(CM$7+0.5,$I$66:$DJ$120,ROWS($A$10:$A25)+2,FALSE)","v":549},{"$f":"HLOOKUP(CN$7+0.5,$I$66:$DJ$120,ROWS($A$10:$A25)+2,FALSE)","v":184},{"$f":"HLOOKUP(CO$7+0.5,$I$66:$DJ$120,ROWS($A$10:$A25)+2,FALSE)","v":1034},{"$f":"HLOOKUP(CP$7+0.5,$I$66:$DJ$120,ROWS($A$10:$A25)+2,FALSE)","v":245},{"$f":"HLOOKUP(CQ$7+0.5,$I$66:$DJ$120,ROWS($A$10:$A25)+2,FALSE)","v":724},{"$f":"HLOOKUP(CR$7+0.5,$I$66:$DJ$120,ROWS($A$10:$A25)+2,FALSE)","v":884},{"$f":"HLOOKUP(CS$7+0.5,$I$66:$DJ$120,ROWS($A$10:$A25)+2,FALSE)","v":164},{"$f":"HLOOKUP(CT$7+0.5,$I$66:$DJ$120,ROWS($A$10:$A25)+2,FALSE)","v":2192},{"$f":"HLOOKUP(CU$7+0.5,$I$66:$DJ$120,ROWS($A$10:$A25)+2,FALSE)","v":725},{"$f":"HLOOKUP(CV$7+0.5,$I$66:$DJ$120,ROWS($A$10:$A25)+2,FALSE)","v":239},{"$f":"HLOOKUP(CW$7+0.5,$I$66:$DJ$120,ROWS($A$10:$A25)+2,FALSE)","v":1101},{"$f":"HLOOKUP(CX$7+0.5,$I$66:$DJ$120,ROWS($A$10:$A25)+2,FALSE)","v":184},{"$f":"HLOOKUP(CY$7+0.5,$I$66:$DJ$120,ROWS($A$10:$A25)+2,FALSE)","v":901},{"$f":"HLOOKUP(CZ$7+0.5,$I$66:$DJ$120,ROWS($A$10:$A25)+2,FALSE)","v":147},{"$f":"HLOOKUP(DA$7+0.5,$I$66:$DJ$120,ROWS($A$10:$A25)+2,FALSE)","v":1422},{"$f":"HLOOKUP(DB$7+0.5,$I$66:$DJ$120,ROWS($A$10:$A25)+2,FALSE)","v":1562},{"$f":"HLOOKUP(DC$7+0.5,$I$66:$DJ$120,ROWS($A$10:$A25)+2,FALSE)","v":124},{"$f":"HLOOKUP(DD$7+0.5,$I$66:$DJ$120,ROWS($A$10:$A25)+2,FALSE)","v":184},{"$f":"HLOOKUP(DE$7+0.5,$I$66:$DJ$120,ROWS($A$10:$A25)+2,FALSE)","v":1101},{"$f":"HLOOKUP(DF$7+0.5,$I$66:$DJ$120,ROWS($A$10:$A25)+2,FALSE)","v":221},{"$f":"HLOOKUP(DG$7+0.5,$I$66:$DJ$120,ROWS($A$10:$A25)+2,FALSE)","v":345},{"$f":"HLOOKUP(DH$7+0.5,$I$66:$DJ$120,ROWS($A$10:$A25)+2,FALSE)","v":769},{"$f":"HLOOKUP(DI$7+0.5,$I$66:$DJ$120,ROWS($A$10:$A25)+2,FALSE)","v":2023},{"$f":"HLOOKUP(DJ$7+0.5,$I$66:$DJ$120,ROWS($A$10:$A25)+2,FALSE)","v":194}]
[null,"Iowa",3035469,2721,2585979,14093,362938,11238,{"$f":"HLOOKUP(I$7,$I$66:$DJ$120,ROWS($A$10:$A26)+2,FALSE)","v":75760},{"$f":"HLOOKUP(J$7,$I$66:$DJ$120,ROWS($A$10:$A26)+2,FALSE)","v":503},{"$f":"HLOOKUP(K$7,$I$66:$DJ$120,ROWS($A$10:$A26)+2,FALSE)","v":951},{"$f":"HLOOKUP(L$7,$I$66:$DJ$120,ROWS($A$10:$A26)+2,FALSE)","v":1590},{"$f":"HLOOKUP(M$7,$I$66:$DJ$120,ROWS($A$10:$A26)+2,FALSE)","v":451},{"$f":"HLOOKUP(N$7,$I$66:$DJ$120,ROWS($A$10:$A26)+2,FALSE)","v":3268},{"$f":"HLOOKUP(O$7,$I$66:$DJ$120,ROWS($A$10:$A26)+2,FALSE)","v":3252},{"$f":"HLOOKUP(P$7,$I$66:$DJ$120,ROWS($A$10:$A26)+2,FALSE)","v":112},{"$f":"HLOOKUP(Q$7,$I$66:$DJ$120,ROWS($A$10:$A26)+2,FALSE)","v":0},{"$f":"HLOOKUP(R$7,$I$66:$DJ$120,ROWS($A$10:$A26)+2,FALSE)","v":151},{"$f":"HLOOKUP(S$7,$I$66:$DJ$120,ROWS($A$10:$A26)+2,FALSE)","v":4335},{"$f":"HLOOKUP(T$7,$I$66:$DJ$120,ROWS($A$10:$A26)+2,FALSE)","v":596},{"$f":"HLOOKUP(U$7,$I$66:$DJ$120,ROWS($A$10:$A26)+2,FALSE)","v":521},{"$f":"HLOOKUP(V$7,$I$66:$DJ$120,ROWS($A$10:$A26)+2,FALSE)","v":290},{"$f":"HLOOKUP(W$7,$I$66:$DJ$120,ROWS($A$10:$A26)+2,FALSE)","v":11969},{"$f":"HLOOKUP(X$7,$I$66:$DJ$120,ROWS($A$10:$A26)+2,FALSE)","v":1716},{"$f":"HLOOKUP(Y$7,$I$66:$DJ$120,ROWS($A$10:$A26)+2,FALSE)","v":"N/A"},{"$f":"HLOOKUP(Z$7,$I$66:$DJ$120,ROWS($A$10:$A26)+2,FALSE)","v":918},{"$f":"HLOOKUP(AA$7,$I$66:$DJ$120,ROWS($A$10:$A26)+2,FALSE)","v":819},{"$f":"HLOOKUP(AB$7,$I$66:$DJ$120,ROWS($A$10:$A26)+2,FALSE)","v":763},{"$f":"HLOOKUP(AC$7,$I$66:$DJ$120,ROWS($A$10:$A26)+2,FALSE)","v":78},{"$f":"HLOOKUP(AD$7,$I$66:$DJ$120,ROWS($A$10:$A26)+2,FALSE)","v":419},{"$f":"HLOOKUP(AE$7,$I$66:$DJ$120,ROWS($A$10:$A26)+2,FALSE)","v":585},{"$f":"HLOOKUP(AF$7,$I$66:$DJ$120,ROWS($A$10:$A26)+2,FALSE)","v":946},{"$f":"HLOOKUP(AG$7,$I$66:$DJ$120,ROWS($A$10:$A26)+2,FALSE)","v":7505},{"$f":"HLOOKUP(AH$7,$I$66:$DJ$120,ROWS($A$10:$A26)+2,FALSE)","v":751},{"$f":"HLOOKUP(AI$7,$I$66:$DJ$120,ROWS($A$10:$A26)+2,FALSE)","v":4168},{"$f":"HLOOKUP(AJ$7,$I$66:$DJ$120,ROWS($A$10:$A26)+2,FALSE)","v":452},{"$f":"HLOOKUP(AK$7,$I$66:$DJ$120,ROWS($A$10:$A26)+2,FALSE)","v":7698},{"$f":"HLOOKUP(AL$7,$I$66:$DJ$120,ROWS($A$10:$A26)+2,FALSE)","v":681},{"$f":"HLOOKUP(AM$7,$I$66:$DJ$120,ROWS($A$10:$A26)+2,FALSE)","v":56},{"$f":"HLOOKUP(AN$7,$I$66:$DJ$120,ROWS($A$10:$A26)+2,FALSE)","v":1018},{"$f":"HLOOKUP(AO$7,$I$66:$DJ$120,ROWS($A$10:$A26)+2,FALSE)","v":114},{"$f":"HLOOKUP(AP$7,$I$66:$DJ$120,ROWS($A$10:$A26)+2,FALSE)","v":1230},{"$f":"HLOOKUP(AQ$7,$I$66:$DJ$120,ROWS($A$10:$A26)+2,FALSE)","v":734},{"$f":"HLOOKUP(AR$7,$I$66:$DJ$120,ROWS($A$10:$A26)+2,FALSE)","v":833},{"$f":"HLOOKUP(AS$7,$I$66:$DJ$120,ROWS($A$10:$A26)+2,FALSE)","v":1127},{"$f":"HLOOKUP(AT$7,$I$66:$DJ$120,ROWS($A$10:$A26)+2,FALSE)","v":1465},{"$f":"HLOOKUP(AU$7,$I$66:$DJ$120,ROWS($A$10:$A26)+2,FALSE)","v":348},{"$f":"HLOOKUP(AV$7,$I$66:$DJ$120,ROWS($A$10:$A26)+2,FALSE)","v":451},{"$f":"HLOOKUP(AW$7,$I$66:$DJ$120,ROWS($A$10:$A26)+2,FALSE)","v":0},{"$f":"HLOOKUP(AX$7,$I$66:$DJ$120,ROWS($A$10:$A26)+2,FALSE)","v":943},{"$f":"HLOOKUP(AY$7,$I$66:$DJ$120,ROWS($A$10:$A26)+2,FALSE)","v":1158},{"$f":"HLOOKUP(AZ$7,$I$66:$DJ$120,ROWS($A$10:$A26)+2,FALSE)","v":1148},{"$f":"HLOOKUP(BA$7,$I$66:$DJ$120,ROWS($A$10:$A26)+2,FALSE)","v":3553},{"$f":"HLOOKUP(BB$7,$I$66:$DJ$120,ROWS($A$10:$A26)+2,FALSE)","v":886},{"$f":"HLOOKUP(BC$7,$I$66:$DJ$120,ROWS($A$10:$A26)+2,FALSE)","v":0},{"$f":"HLOOKUP(BD$7,$I$66:$DJ$120,ROWS($A$10:$A26)+2,FALSE)","v":268},{"$f":"HLOOKUP(BE$7,$I$66:$DJ$120,ROWS($A$10:$A26)+2,FALSE)","v":919},{"$f":"HLOOKUP(BF$7,$I$66:$DJ$120,ROWS($A$10:$A26)+2,FALSE)","v":22},{"$f":"HLOOKUP(BG$7,$I$66:$DJ$120,ROWS($A$10:$A26)+2,FALSE)","v":3607},{"$f":"HLOOKUP(BH$7,$I$66:$DJ$120,ROWS($A$10:$A26)+2,FALSE)","v":392},{"$f":"HLOOKUP(BI$7,$I$66:$DJ$120,ROWS($A$10:$A26)+2,FALSE)","v":786},{"$f":"HLOOKUP(BJ$7+0.5,$I$66:$DJ$120,ROWS($A$10:$A26)+2,FALSE)","v":5982},{"$f":"HLOOKUP(BK$7+0.5,$I$66:$DJ$120,ROWS($A$10:$A26)+2,FALSE)","v":400},{"$f":"HLOOKUP(BL$7+0.5,$I$66:$DJ$120,ROWS($A$10:$A26)+2,FALSE)","v":814},{"$f":"HLOOKUP(BM$7+0.5,$I$66:$DJ$120,ROWS($A$10:$A26)+2,FALSE)","v":803},{"$f":"HLOOKUP(BN$7+0.5,$I$66:$DJ$120,ROWS($A$10:$A26)+2,FALSE)","v":237},{"$f":"HLOOKUP(BO$7+0.5,$I$66:$DJ$120,ROWS($A$10:$A26)+2,FALSE)","v":1296},{"$f":"HLOOKUP(BP$7+0.5,$I$66:$DJ$120,ROWS($A$10:$A26)+2,FALSE)","v":1250},{"$f":"HLOOKUP(BQ$7+0.5,$I$66:$DJ$120,ROWS($A$10:$A26)+2,FALSE)","v":135},{"$f":"HLOOKUP(BR$7+0.5,$I$66:$DJ$120,ROWS($A$10:$A26)+2,FALSE)","v":151},{"$f":"HLOOKUP(BS$7+0.5,$I$66:$DJ$120,ROWS($A$10:$A26)+2,FALSE)","v":155},{"$f":"HLOOKUP(BT$7+0.5,$I$66:$DJ$120,ROWS($A$10:$A26)+2,FALSE)","v":2060},{"$f":"HLOOKUP(BU$7+0.5,$I$66:$DJ$120,ROWS($A$10:$A26)+2,FALSE)","v":481},{"$f":"HLOOKUP(BV$7+0.5,$I$66:$DJ$120,ROWS($A$10:$A26)+2,FALSE)","v":476},{"$f":"HLOOKUP(BW$7+0.5,$I$66:$DJ$120,ROWS($A$10:$A26)+2,FALSE)","v":218},{"$f":"HLOOKUP(BX$7+0.5,$I$66:$DJ$120,ROWS($A$10:$A26)+2,FALSE)","v":2313},{"$f":"HLOOKUP(BY$7+0.5,$I$66:$DJ$120,ROWS($A$10:$A26)+2,FALSE)","v":1097},{"$f":"HLOOKUP(BZ$7+0.5,$I$66:$DJ$120,ROWS($A$10:$A26)+2,FALSE)","v":"N/A"},{"$f":"HLOOKUP(CA$7+0.5,$I$66:$DJ$120,ROWS($A$10:$A26)+2,FALSE)","v":500},{"$f":"HLOOKUP(CB$7+0.5,$I$66:$DJ$120,ROWS($A$10:$A26)+2,FALSE)","v":609},{"$f":"HLOOKUP(CC$7+0.5,$I$66:$DJ$120,ROWS($A$10:$A26)+2,FALSE)","v":568},{"$f":"HLOOKUP(CD$7+0.5,$I$66:$DJ$120,ROWS($A$10:$A26)+2,FALSE)","v":125},{"$f":"HLOOKUP(CE$7+0.5,$I$66:$DJ$120,ROWS($A$10:$A26)+2,FALSE)","v":287},{"$f":"HLOOKUP(CF$7+0.5,$I$66:$DJ$120,ROWS($A$10:$A26)+2,FALSE)","v":520},{"$f":"HLOOKUP(CG$7+0.5,$I$66:$DJ$120,ROWS($A$10:$A26)+2,FALSE)","v":497},{"$f":"HLOOKUP(CH$7+0.5,$I$66:$DJ$120,ROWS($A$10:$A26)+2,FALSE)","v":1826},{"$f":"HLOOKUP(CI$7+0.5,$I$66:$DJ$120,ROWS($A$10:$A26)+2,FALSE)","v":621},{"$f":"HLOOKUP(CJ$7+0.5,$I$66:$DJ$120,ROWS($A$10:$A26)+2,FALSE)","v":1021},{"$f":"HLOOKUP(CK$7+0.5,$I$66:$DJ$120,ROWS($A$10:$A26)+2,FALSE)","v":305},{"$f":"HLOOKUP(CL$7+0.5,$I$66:$DJ$120,ROWS($A$10:$A26)+2,FALSE)","v":1806},{"$f":"HLOOKUP(CM$7+0.5,$I$66:$DJ$120,ROWS($A$10:$A26)+2,FALSE)","v":602},{"$f":"HLOOKUP(CN$7+0.5,$I$66:$DJ$120,ROWS($A$10:$A26)+2,FALSE)","v":93},{"$f":"HLOOKUP(CO$7+0.5,$I$66:$DJ$120,ROWS($A$10:$A26)+2,FALSE)","v":767},{"$f":"HLOOKUP(CP$7+0.5,$I$66:$DJ$120,ROWS($A$10:$A26)+2,FALSE)","v":188},{"$f":"HLOOKUP(CQ$7+0.5,$I$66:$DJ$120,ROWS($A$10:$A26)+2,FALSE)","v":819},{"$f":"HLOOKUP(CR$7+0.5,$I$66:$DJ$120,ROWS($A$10:$A26)+2,FALSE)","v":428},{"$f":"HLOOKUP(CS$7+0.5,$I$66:$DJ$120,ROWS($A$10:$A26)+2,FALSE)","v":617},{"$f":"HLOOKUP(CT$7+0.5,$I$66:$DJ$120,ROWS($A$10:$A26)+2,FALSE)","v":692},{"$f":"HLOOKUP(CU$7+0.5,$I$66:$DJ$120,ROWS($A$10:$A26)+2,FALSE)","v":974},{"$f":"HLOOKUP(CV$7+0.5,$I$66:$DJ$120,ROWS($A$10:$A26)+2,FALSE)","v":302},{"$f":"HLOOKUP(CW$7+0.5,$I$66:$DJ$120,ROWS($A$10:$A26)+2,FALSE)","v":353},{"$f":"HLOOKUP(CX$7+0.5,$I$66:$DJ$120,ROWS($A$10:$A26)+2,FALSE)","v":151},{"$f":"HLOOKUP(CY$7+0.5,$I$66:$DJ$120,ROWS($A$10:$A26)+2,FALSE)","v":556},{"$f":"HLOOKUP(CZ$7+0.5,$I$66:$DJ$120,ROWS($A$10:$A26)+2,FALSE)","v":441},{"$f":"HLOOKUP(DA$7+0.5,$I$66:$DJ$120,ROWS($A$10:$A26)+2,FALSE)","v":871},{"$f":"HLOOKUP(DB$7+0.5,$I$66:$DJ$120,ROWS($A$10:$A26)+2,FALSE)","v":1275},{"$f":"HLOOKUP(DC$7+0.5,$I$66:$DJ$120,ROWS($A$10:$A26)+2,FALSE)","v":880},{"$f":"HLOOKUP(DD$7+0.5,$I$66:$DJ$120,ROWS($A$10:$A26)+2,FALSE)","v":151},{"$f":"HLOOKUP(DE$7+0.5,$I$66:$DJ$120,ROWS($A$10:$A26)+2,FALSE)","v":200},{"$f":"HLOOKUP(DF$7+0.5,$I$66:$DJ$120,ROWS($A$10:$A26)+2,FALSE)","v":485},{"$f":"HLOOKUP(DG$7+0.5,$I$66:$DJ$120,ROWS($A$10:$A26)+2,FALSE)","v":41},{"$f":"HLOOKUP(DH$7+0.5,$I$66:$DJ$120,ROWS($A$10:$A26)+2,FALSE)","v":849},{"$f":"HLOOKUP(DI$7+0.5,$I$66:$DJ$120,ROWS($A$10:$A26)+2,FALSE)","v":316},{"$f":"HLOOKUP(DJ$7+0.5,$I$66:$DJ$120,ROWS($A$10:$A26)+2,FALSE)","v":1190}]
[null,"Kansas",2848708,2507,2361899,16878,381695,15902,{"$f":"HLOOKUP(I$7,$I$66:$DJ$120,ROWS($A$10:$A27)+2,FALSE)","v":88284},{"$f":"HLOOKUP(J$7,$I$66:$DJ$120,ROWS($A$10:$A27)+2,FALSE)","v":853},{"$f":"HLOOKUP(K$7,$I$66:$DJ$120,ROWS($A$10:$A27)+2,FALSE)","v":333},{"$f":"HLOOKUP(L$7,$I$66:$DJ$120,ROWS($A$10:$A27)+2,FALSE)","v":3094},{"$f":"HLOOKUP(M$7,$I$66:$DJ$120,ROWS($A$10:$A27)+2,FALSE)","v":2158},{"$f":"HLOOKUP(N$7,$I$66:$DJ$120,ROWS($A$10:$A27)+2,FALSE)","v":5411},{"$f":"HLOOKUP(O$7,$I$66:$DJ$120,ROWS($A$10:$A27)+2,FALSE)","v":3746},{"$f":"HLOOKUP(P$7,$I$66:$DJ$120,ROWS($A$10:$A27)+2,FALSE)","v":210},{"$f":"HLOOKUP(Q$7,$I$66:$DJ$120,ROWS($A$10:$A27)+2,FALSE)","v":0},{"$f":"HLOOKUP(R$7,$I$66:$DJ$120,ROWS($A$10:$A27)+2,FALSE)","v":456},{"$f":"HLOOKUP(S$7,$I$66:$DJ$120,ROWS($A$10:$A27)+2,FALSE)","v":3118},{"$f":"HLOOKUP(T$7,$I$66:$DJ$120,ROWS($A$10:$A27)+2,FALSE)","v":1896},{"$f":"HLOOKUP(U$7,$I$66:$DJ$120,ROWS($A$10:$A27)+2,FALSE)","v":149},{"$f":"HLOOKUP(V$7,$I$66:$DJ$120,ROWS($A$10:$A27)+2,FALSE)","v":456},{"$f":"HLOOKUP(W$7,$I$66:$DJ$120,ROWS($A$10:$A27)+2,FALSE)","v":1702},{"$f":"HLOOKUP(X$7,$I$66:$DJ$120,ROWS($A$10:$A27)+2,FALSE)","v":1679},{"$f":"HLOOKUP(Y$7,$I$66:$DJ$120,ROWS($A$10:$A27)+2,FALSE)","v":1527},{"$f":"HLOOKUP(Z$7,$I$66:$DJ$120,ROWS($A$10:$A27)+2,FALSE)","v":"N/A"},{"$f":"HLOOKUP(AA$7,$I$66:$DJ$120,ROWS($A$10:$A27)+2,FALSE)","v":617},{"$f":"HLOOKUP(AB$7,$I$66:$DJ$120,ROWS($A$10:$A27)+2,FALSE)","v":438},{"$f":"HLOOKUP(AC$7,$I$66:$DJ$120,ROWS($A$10:$A27)+2,FALSE)","v":211},{"$f":"HLOOKUP(AD$7,$I$66:$DJ$120,ROWS($A$10:$A27)+2,FALSE)","v":282},{"$f":"HLOOKUP(AE$7,$I$66:$DJ$120,ROWS($A$10:$A27)+2,FALSE)","v":187},{"$f":"HLOOKUP(AF$7,$I$66:$DJ$120,ROWS($A$10:$A27)+2,FALSE)","v":1125},{"$f":"HLOOKUP(AG$7,$I$66:$DJ$120,ROWS($A$10:$A27)+2,FALSE)","v":682},{"$f":"HLOOKUP(AH$7,$I$66:$DJ$120,ROWS($A$10:$A27)+2,FALSE)","v":452},{"$f":"HLOOKUP(AI$7,$I$66:$DJ$120,ROWS($A$10:$A27)+2,FALSE)","v":21022},{"$f":"HLOOKUP(AJ$7,$I$66:$DJ$120,ROWS($A$10:$A27)+2,FALSE)","v":300},{"$f":"HLOOKUP(AK$7,$I$66:$DJ$120,ROWS($A$10:$A27)+2,FALSE)","v":4126},{"$f":"HLOOKUP(AL$7,$I$66:$DJ$120,ROWS($A$10:$A27)+2,FALSE)","v":851},{"$f":"HLOOKUP(AM$7,$I$66:$DJ$120,ROWS($A$10:$A27)+2,FALSE)","v":0},{"$f":"HLOOKUP(AN$7,$I$66:$DJ$120,ROWS($A$10:$A27)+2,FALSE)","v":267},{"$f":"HLOOKUP(AO$7,$I$66:$DJ$120,ROWS($A$10:$A27)+2,FALSE)","v":1029},{"$f":"HLOOKUP(AP$7,$I$66:$DJ$120,ROWS($A$10:$A27)+2,FALSE)","v":571},{"$f":"HLOOKUP(AQ$7,$I$66:$DJ$120,ROWS($A$10:$A27)+2,FALSE)","v":813},{"$f":"HLOOKUP(AR$7,$I$66:$DJ$120,ROWS($A$10:$A27)+2,FALSE)","v":261},{"$f":"HLOOKUP(AS$7,$I$66:$DJ$120,ROWS($A$10:$A27)+2,FALSE)","v":1310},{"$f":"HLOOKUP(AT$7,$I$66:$DJ$120,ROWS($A$10:$A27)+2,FALSE)","v":8408},{"$f":"HLOOKUP(AU$7,$I$66:$DJ$120,ROWS($A$10:$A27)+2,FALSE)","v":848},{"$f":"HLOOKUP(AV$7,$I$66:$DJ$120,ROWS($A$10:$A27)+2,FALSE)","v":918},{"$f":"HLOOKUP(AW$7,$I$66:$DJ$120,ROWS($A$10:$A27)+2,FALSE)","v":18},{"$f":"HLOOKUP(AX$7,$I$66:$DJ$120,ROWS($A$10:$A27)+2,FALSE)","v":556},{"$f":"HLOOKUP(AY$7,$I$66:$DJ$120,ROWS($A$10:$A27)+2,FALSE)","v":154},{"$f":"HLOOKUP(AZ$7,$I$66:$DJ$120,ROWS($A$10:$A27)+2,FALSE)","v":1542},{"$f":"HLOOKUP(BA$7,$I$66:$DJ$120,ROWS($A$10:$A27)+2,FALSE)","v":8468},{"$f":"HLOOKUP(BB$7,$I$66:$DJ$120,ROWS($A$10:$A27)+2,FALSE)","v":97},{"$f":"HLOOKUP(BC$7,$I$66:$DJ$120,ROWS($A$10:$A27)+2,FALSE)","v":70},{"$f":"HLOOKUP(BD$7,$I$66:$DJ$120,ROWS($A$10:$A27)+2,FALSE)","v":1705},{"$f":"HLOOKUP(BE$7,$I$66:$DJ$120,ROWS($A$10:$A27)+2,FALSE)","v":3265},{"$f":"HLOOKUP(BF$7,$I$66:$DJ$120,ROWS($A$10:$A27)+2,FALSE)","v":139},{"$f":"HLOOKUP(BG$7,$I$66:$DJ$120,ROWS($A$10:$A27)+2,FALSE)","v":486},{"$f":"HLOOKUP(BH$7,$I$66:$DJ$120,ROWS($A$10:$A27)+2,FALSE)","v":278},{"$f":"HLOOKUP(BI$7,$I$66:$DJ$120,ROWS($A$10:$A27)+2,FALSE)","v":82},{"$f":"HLOOKUP(BJ$7+0.5,$I$66:$DJ$120,ROWS($A$10:$A27)+2,FALSE)","v":7145},{"$f":"HLOOKUP(BK$7+0.5,$I$66:$DJ$120,ROWS($A$10:$A27)+2,FALSE)","v":609},{"$f":"HLOOKUP(BL$7+0.5,$I$66:$DJ$120,ROWS($A$10:$A27)+2,FALSE)","v":407},{"$f":"HLOOKUP(BM$7+0.5,$I$66:$DJ$120,ROWS($A$10:$A27)+2,FALSE)","v":1630},{"$f":"HLOOKUP(BN$7+0.5,$I$66:$DJ$120,ROWS($A$10:$A27)+2,FALSE)","v":890},{"$f":"HLOOKUP(BO$7+0.5,$I$66:$DJ$120,ROWS($A$10:$A27)+2,FALSE)","v":2012},{"$f":"HLOOKUP(BP$7+0.5,$I$66:$DJ$120,ROWS($A$10:$A27)+2,FALSE)","v":1360},{"$f":"HLOOKUP(BQ$7+0.5,$I$66:$DJ$120,ROWS($A$10:$A27)+2,FALSE)","v":208},{"$f":"HLOOKUP(BR$7+0.5,$I$66:$DJ$120,ROWS($A$10:$A27)+2,FALSE)","v":165},{"$f":"HLOOKUP(BS$7+0.5,$I$66:$DJ$120,ROWS($A$10:$A27)+2,FALSE)","v":737},{"$f":"HLOOKUP(BT$7+0.5,$I$66:$DJ$120,ROWS($A$10:$A27)+2,FALSE)","v":1380},{"$f":"HLOOKUP(BU$7+0.5,$I$66:$DJ$120,ROWS($A$10:$A27)+2,FALSE)","v":1395},{"$f":"HLOOKUP(BV$7+0.5,$I$66:$DJ$120,ROWS($A$10:$A27)+2,FALSE)","v":156},{"$f":"HLOOKUP(BW$7+0.5,$I$66:$DJ$120,ROWS($A$10:$A27)+2,FALSE)","v":356},{"$f":"HLOOKUP(BX$7+0.5,$I$66:$DJ$120,ROWS($A$10:$A27)+2,FALSE)","v":582},{"$f":"HLOOKUP(BY$7+0.5,$I$66:$DJ$120,ROWS($A$10:$A27)+2,FALSE)","v":839},{"$f":"HLOOKUP(BZ$7+0.5,$I$66:$DJ$120,ROWS($A$10:$A27)+2,FALSE)","v":860},{"$f":"HLOOKUP(CA$7+0.5,$I$66:$DJ$120,ROWS($A$10:$A27)+2,FALSE)","v":"N/A"},{"$f":"HLOOKUP(CB$7+0.5,$I$66:$DJ$120,ROWS($A$10:$A27)+2,FALSE)","v":476},{"$f":"HLOOKUP(CC$7+0.5,$I$66:$DJ$120,ROWS($A$10:$A27)+2,FALSE)","v":408},{"$f":"HLOOKUP(CD$7+0.5,$I$66:$DJ$120,ROWS($A$10:$A27)+2,FALSE)","v":225},{"$f":"HLOOKUP(CE$7+0.5,$I$66:$DJ$120,ROWS($A$10:$A27)+2,FALSE)","v":282},{"$f":"HLOOKUP(CF$7+0.5,$I$66:$DJ$120,ROWS($A$10:$A27)+2,FALSE)","v":203},{"$f":"HLOOKUP(CG$7+0.5,$I$66:$DJ$120,ROWS($A$10:$A27)+2,FALSE)","v":682},{"$f":"HLOOKUP(CH$7+0.5,$I$66:$DJ$120,ROWS($A$10:$A27)+2,FALSE)","v":367},{"$f":"HLOOKUP(CI$7+0.5,$I$66:$DJ$120,ROWS($A$10:$A27)+2,FALSE)","v":501},{"$f":"HLOOKUP(CJ$7+0.5,$I$66:$DJ$120,ROWS($A$10:$A27)+2,FALSE)","v":3073},{"$f":"HLOOKUP(CK$7+0.5,$I$66:$DJ$120,ROWS($A$10:$A27)+2,FALSE)","v":326},{"$f":"HLOOKUP(CL$7+0.5,$I$66:$DJ$120,ROWS($A$10:$A27)+2,FALSE)","v":1245},{"$f":"HLOOKUP(CM$7+0.5,$I$66:$DJ$120,ROWS($A$10:$A27)+2,FALSE)","v":606},{"$f":"HLOOKUP(CN$7+0.5,$I$66:$DJ$120,ROWS($A$10:$A27)+2,FALSE)","v":165},{"$f":"HLOOKUP(CO$7+0.5,$I$66:$DJ$120,ROWS($A$10:$A27)+2,FALSE)","v":228},{"$f":"HLOOKUP(CP$7+0.5,$I$66:$DJ$120,ROWS($A$10:$A27)+2,FALSE)","v":627},{"$f":"HLOOKUP(CQ$7+0.5,$I$66:$DJ$120,ROWS($A$10:$A27)+2,FALSE)","v":367},{"$f":"HLOOKUP(CR$7+0.5,$I$66:$DJ$120,ROWS($A$10:$A27)+2,FALSE)","v":476},{"$f":"HLOOKUP(CS$7+0.5,$I$66:$DJ$120,ROWS($A$10:$A27)+2,FALSE)","v":263},{"$f":"HLOOKUP(CT$7+0.5,$I$66:$DJ$120,ROWS($A$10:$A27)+2,FALSE)","v":638},{"$f":"HLOOKUP(CU$7+0.5,$I$66:$DJ$120,ROWS($A$10:$A27)+2,FALSE)","v":2299},{"$f":"HLOOKUP(CV$7+0.5,$I$66:$DJ$120,ROWS($A$10:$A27)+2,FALSE)","v":557},{"$f":"HLOOKUP(CW$7+0.5,$I$66:$DJ$120,ROWS($A$10:$A27)+2,FALSE)","v":672},{"$f":"HLOOKUP(CX$7+0.5,$I$66:$DJ$120,ROWS($A$10:$A27)+2,FALSE)","v":31},{"$f":"HLOOKUP(CY$7+0.5,$I$66:$DJ$120,ROWS($A$10:$A27)+2,FALSE)","v":375},{"$f":"HLOOKUP(CZ$7+0.5,$I$66:$DJ$120,ROWS($A$10:$A27)+2,FALSE)","v":195},{"$f":"HLOOKUP(DA$7+0.5,$I$66:$DJ$120,ROWS($A$10:$A27)+2,FALSE)","v":825},{"$f":"HLOOKUP(DB$7+0.5,$I$66:$DJ$120,ROWS($A$10:$A27)+2,FALSE)","v":2434},{"$f":"HLOOKUP(DC$7+0.5,$I$66:$DJ$120,ROWS($A$10:$A27)+2,FALSE)","v":106},{"$f":"HLOOKUP(DD$7+0.5,$I$66:$DJ$120,ROWS($A$10:$A27)+2,FALSE)","v":138},{"$f":"HLOOKUP(DE$7+0.5,$I$66:$DJ$120,ROWS($A$10:$A27)+2,FALSE)","v":853},{"$f":"HLOOKUP(DF$7+0.5,$I$66:$DJ$120,ROWS($A$10:$A27)+2,FALSE)","v":1675},{"$f":"HLOOKUP(DG$7+0.5,$I$66:$DJ$120,ROWS($A$10:$A27)+2,FALSE)","v":132},{"$f":"HLOOKUP(DH$7+0.5,$I$66:$DJ$120,ROWS($A$10:$A27)+2,FALSE)","v":530},{"$f":"HLOOKUP(DI$7+0.5,$I$66:$DJ$120,ROWS($A$10:$A27)+2,FALSE)","v":239},{"$f":"HLOOKUP(DJ$7+0.5,$I$66:$DJ$120,ROWS($A$10:$A27)+2,FALSE)","v":147}]
[null,"Kentucky",4328626,2851,3676472,15304,521511,14825,{"$f":"HLOOKUP(I$7,$I$66:$DJ$120,ROWS($A$10:$A28)+2,FALSE)","v":112787},{"$f":"HLOOKUP(J$7,$I$66:$DJ$120,ROWS($A$10:$A28)+2,FALSE)","v":4137},{"$f":"HLOOKUP(K$7,$I$66:$DJ$120,ROWS($A$10:$A28)+2,FALSE)","v":304},{"$f":"HLOOKUP(L$7,$I$66:$DJ$120,ROWS($A$10:$A28)+2,FALSE)","v":1103},{"$f":"HLOOKUP(M$7,$I$66:$DJ$120,ROWS($A$10:$A28)+2,FALSE)","v":518},{"$f":"HLOOKUP(N$7,$I$66:$DJ$120,ROWS($A$10:$A28)+2,FALSE)","v":3415},{"$f":"HLOOKUP(O$7,$I$66:$DJ$120,ROWS($A$10:$A28)+2,FALSE)","v":712},{"$f":"HLOOKUP(P$7,$I$66:$DJ$120,ROWS($A$10:$A28)+2,FALSE)","v":246},{"$f":"HLOOKUP(Q$7,$I$66:$DJ$120,ROWS($A$10:$A28)+2,FALSE)","v":706},{"$f":"HLOOKUP(R$7,$I$66:$DJ$120,ROWS($A$10:$A28)+2,FALSE)","v":254},{"$f":"HLOOKUP(S$7,$I$66:$DJ$120,ROWS($A$10:$A28)+2,FALSE)","v":9232},{"$f":"HLOOKUP(T$7,$I$66:$DJ$120,ROWS($A$10:$A28)+2,FALSE)","v":4173},{"$f":"HLOOKUP(U$7,$I$66:$DJ$120,ROWS($A$10:$A28)+2,FALSE)","v":647},{"$f":"HLOOKUP(V$7,$I$66:$DJ$120,ROWS($A$10:$A28)+2,FALSE)","v":50},{"$f":"HLOOKUP(W$7,$I$66:$DJ$120,ROWS($A$10:$A28)+2,FALSE)","v":4445},{"$f":"HLOOKUP(X$7,$I$66:$DJ$120,ROWS($A$10:$A28)+2,FALSE)","v":12203},{"$f":"HLOOKUP(Y$7,$I$66:$DJ$120,ROWS($A$10:$A28)+2,FALSE)","v":238},{"$f":"HLOOKUP(Z$7,$I$66:$DJ$120,ROWS($A$10:$A28)+2,FALSE)","v":602},{"$f":"HLOOKUP(AA$7,$I$66:$DJ$120,ROWS($A$10:$A28)+2,FALSE)","v":"N/A"},{"$f":"HLOOKUP(AB$7,$I$66:$DJ$120,ROWS($A$10:$A28)+2,FALSE)","v":666},{"$f":"HLOOKUP(AC$7,$I$66:$DJ$120,ROWS($A$10:$A28)+2,FALSE)","v":46},{"$f":"HLOOKUP(AD$7,$I$66:$DJ$120,ROWS($A$10:$A28)+2,FALSE)","v":1120},{"$f":"HLOOKUP(AE$7,$I$66:$DJ$120,ROWS($A$10:$A28)+2,FALSE)","v":419},{"$f":"HLOOKUP(AF$7,$I$66:$DJ$120,ROWS($A$10:$A28)+2,FALSE)","v":7302},{"$f":"HLOOKUP(AG$7,$I$66:$DJ$120,ROWS($A$10:$A28)+2,FALSE)","v":605},{"$f":"HLOOKUP(AH$7,$I$66:$DJ$120,ROWS($A$10:$A28)+2,FALSE)","v":646},{"$f":"HLOOKUP(AI$7,$I$66:$DJ$120,ROWS($A$10:$A28)+2,FALSE)","v":2381},{"$f":"HLOOKUP(AJ$7,$I$66:$DJ$120,ROWS($A$10:$A28)+2,FALSE)","v":0},{"$f":"HLOOKUP(AK$7,$I$66:$DJ$120,ROWS($A$10:$A28)+2,FALSE)","v":723},{"$f":"HLOOKUP(AL$7,$I$66:$DJ$120,ROWS($A$10:$A28)+2,FALSE)","v":301},{"$f":"HLOOKUP(AM$7,$I$66:$DJ$120,ROWS($A$10:$A28)+2,FALSE)","v":84},{"$f":"HLOOKUP(AN$7,$I$66:$DJ$120,ROWS($A$10:$A28)+2,FALSE)","v":496},{"$f":"HLOOKUP(AO$7,$I$66:$DJ$120,ROWS($A$10:$A28)+2,FALSE)","v":554},{"$f":"HLOOKUP(AP$7,$I$66:$DJ$120,ROWS($A$10:$A28)+2,FALSE)","v":5239},{"$f":"HLOOKUP(AQ$7,$I$66:$DJ$120,ROWS($A$10:$A28)+2,FALSE)","v":3643},{"$f":"HLOOKUP(AR$7,$I$66:$DJ$120,ROWS($A$10:$A28)+2,FALSE)","v":122},{"$f":"HLOOKUP(AS$7,$I$66:$DJ$120,ROWS($A$10:$A28)+2,FALSE)","v":17041},{"$f":"HLOOKUP(AT$7,$I$66:$DJ$120,ROWS($A$10:$A28)+2,FALSE)","v":577},{"$f":"HLOOKUP(AU$7,$I$66:$DJ$120,ROWS($A$10:$A28)+2,FALSE)","v":298},{"$f":"HLOOKUP(AV$7,$I$66:$DJ$120,ROWS($A$10:$A28)+2,FALSE)","v":2226},{"$f":"HLOOKUP(AW$7,$I$66:$DJ$120,ROWS($A$10:$A28)+2,FALSE)","v":0},{"$f":"HLOOKUP(AX$7,$I$66:$DJ$120,ROWS($A$10:$A28)+2,FALSE)","v":1347},{"$f":"HLOOKUP(AY$7,$I$66:$DJ$120,ROWS($A$10:$A28)+2,FALSE)","v":0},{"$f":"HLOOKUP(AZ$7,$I$66:$DJ$120,ROWS($A$10:$A28)+2,FALSE)","v":10064},{"$f":"HLOOKUP(BA$7,$I$66:$DJ$120,ROWS($A$10:$A28)+2,FALSE)","v":3345},{"$f":"HLOOKUP(BB$7,$I$66:$DJ$120,ROWS($A$10:$A28)+2,FALSE)","v":464},{"$f":"HLOOKUP(BC$7,$I$66:$DJ$120,ROWS($A$10:$A28)+2,FALSE)","v":45},{"$f":"HLOOKUP(BD$7,$I$66:$DJ$120,ROWS($A$10:$A28)+2,FALSE)","v":3319},{"$f":"HLOOKUP(BE$7,$I$66:$DJ$120,ROWS($A$10:$A28)+2,FALSE)","v":1988},{"$f":"HLOOKUP(BF$7,$I$66:$DJ$120,ROWS($A$10:$A28)+2,FALSE)","v":3346},{"$f":"HLOOKUP(BG$7,$I$66:$DJ$120,ROWS($A$10:$A28)+2,FALSE)","v":1395},{"$f":"HLOOKUP(BH$7,$I$66:$DJ$120,ROWS($A$10:$A28)+2,FALSE)","v":0},{"$f":"HLOOKUP(BI$7,$I$66:$DJ$120,ROWS($A$10:$A28)+2,FALSE)","v":170},{"$f":"HLOOKUP(BJ$7+0.5,$I$66:$DJ$120,ROWS($A$10:$A28)+2,FALSE)","v":7854},{"$f":"HLOOKUP(BK$7+0.5,$I$66:$DJ$120,ROWS($A$10:$A28)+2,FALSE)","v":1628},{"$f":"HLOOKUP(BL$7+0.5,$I$66:$DJ$120,ROWS($A$10:$A28)+2,FALSE)","v":370},{"$f":"HLOOKUP(BM$7+0.5,$I$66:$DJ$120,ROWS($A$10:$A28)+2,FALSE)","v":715},{"$f":"HLOOKUP(BN$7+0.5,$I$66:$DJ$120,ROWS($A$10:$A28)+2,FALSE)","v":299},{"$f":"HLOOKUP(BO$7+0.5,$I$66:$DJ$120,ROWS($A$10:$A28)+2,FALSE)","v":1157},{"$f":"HLOOKUP(BP$7+0.5,$I$66:$DJ$120,ROWS($A$10:$A28)+2,FALSE)","v":572},{"$f":"HLOOKUP(BQ$7+0.5,$I$66:$DJ$120,ROWS($A$10:$A28)+2,FALSE)","v":290},{"$f":"HLOOKUP(BR$7+0.5,$I$66:$DJ$120,ROWS($A$10:$A28)+2,FALSE)","v":774},{"$f":"HLOOKUP(BS$7+0.5,$I$66:$DJ$120,ROWS($A$10:$A28)+2,FALSE)","v":262},{"$f":"HLOOKUP(BT$7+0.5,$I$66:$DJ$120,ROWS($A$10:$A28)+2,FALSE)","v":2697},{"$f":"HLOOKUP(BU$7+0.5,$I$66:$DJ$120,ROWS($A$10:$A28)+2,FALSE)","v":1184},{"$f":"HLOOKUP(BV$7+0.5,$I$66:$DJ$120,ROWS($A$10:$A28)+2,FALSE)","v":665},{"$f":"HLOOKUP(BW$7+0.5,$I$66:$DJ$120,ROWS($A$10:$A28)+2,FALSE)","v":91},{"$f":"HLOOKUP(BX$7+0.5,$I$66:$DJ$120,ROWS($A$10:$A28)+2,FALSE)","v":1359},{"$f":"HLOOKUP(BY$7+0.5,$I$66:$DJ$120,ROWS($A$10:$A28)+2,FALSE)","v":2150},{"$f":"HLOOKUP(BZ$7+0.5,$I$66:$DJ$120,ROWS($A$10:$A28)+2,FALSE)","v":257},{"$f":"HLOOKUP(CA$7+0.5,$I$66:$DJ$120,ROWS($A$10:$A28)+2,FALSE)","v":464},{"$f":"HLOOKUP(CB$7+0.5,$I$66:$DJ$120,ROWS($A$10:$A28)+2,FALSE)","v":"N/A"},{"$f":"HLOOKUP(CC$7+0.5,$I$66:$DJ$120,ROWS($A$10:$A28)+2,FALSE)","v":294},{"$f":"HLOOKUP(CD$7+0.5,$I$66:$DJ$120,ROWS($A$10:$A28)+2,FALSE)","v":80},{"$f":"HLOOKUP(CE$7+0.5,$I$66:$DJ$120,ROWS($A$10:$A28)+2,FALSE)","v":615},{"$f":"HLOOKUP(CF$7+0.5,$I$66:$DJ$120,ROWS($A$10:$A28)+2,FALSE)","v":285},{"$f":"HLOOKUP(CG$7+0.5,$I$66:$DJ$120,ROWS($A$10:$A28)+2,FALSE)","v":1809},{"$f":"HLOOKUP(CH$7+0.5,$I$66:$DJ$120,ROWS($A$10:$A28)+2,FALSE)","v":346},{"$f":"HLOOKUP(CI$7+0.5,$I$66:$DJ$120,ROWS($A$10:$A28)+2,FALSE)","v":467},{"$f":"HLOOKUP(CJ$7+0.5,$I$66:$DJ$120,ROWS($A$10:$A28)+2,FALSE)","v":1021},{"$f":"HLOOKUP(CK$7+0.5,$I$66:$DJ$120,ROWS($A$10:$A28)+2,FALSE)","v":181},{"$f":"HLOOKUP(CL$7+0.5,$I$66:$DJ$120,ROWS($A$10:$A28)+2,FALSE)","v":588},{"$f":"HLOOKUP(CM$7+0.5,$I$66:$DJ$120,ROWS($A$10:$A28)+2,FALSE)","v":294},{"$f":"HLOOKUP(CN$7+0.5,$I$66:$DJ$120,ROWS($A$10:$A28)+2,FALSE)","v":103},{"$f":"HLOOKUP(CO$7+0.5,$I$66:$DJ$120,ROWS($A$10:$A28)+2,FALSE)","v":551},{"$f":"HLOOKUP(CP$7+0.5,$I$66:$DJ$120,ROWS($A$10:$A28)+2,FALSE)","v":348},{"$f":"HLOOKUP(CQ$7+0.5,$I$66:$DJ$120,ROWS($A$10:$A28)+2,FALSE)","v":1774},{"$f":"HLOOKUP(CR$7+0.5,$I$66:$DJ$120,ROWS($A$10:$A28)+2,FALSE)","v":1903},{"$f":"HLOOKUP(CS$7+0.5,$I$66:$DJ$120,ROWS($A$10:$A28)+2,FALSE)","v":192},{"$f":"HLOOKUP(CT$7+0.5,$I$66:$DJ$120,ROWS($A$10:$A28)+2,FALSE)","v":3384},{"$f":"HLOOKUP(CU$7+0.5,$I$66:$DJ$120,ROWS($A$10:$A28)+2,FALSE)","v":437},{"$f":"HLOOKUP(CV$7+0.5,$I$66:$DJ$120,ROWS($A$10:$A28)+2,FALSE)","v":212},{"$f":"HLOOKUP(CW$7+0.5,$I$66:$DJ$120,ROWS($A$10:$A28)+2,FALSE)","v":964},{"$f":"HLOOKUP(CX$7+0.5,$I$66:$DJ$120,ROWS($A$10:$A28)+2,FALSE)","v":181},{"$f":"HLOOKUP(CY$7+0.5,$I$66:$DJ$120,ROWS($A$10:$A28)+2,FALSE)","v":671},{"$f":"HLOOKUP(CZ$7+0.5,$I$66:$DJ$120,ROWS($A$10:$A28)+2,FALSE)","v":181},{"$f":"HLOOKUP(DA$7+0.5,$I$66:$DJ$120,ROWS($A$10:$A28)+2,FALSE)","v":2378},{"$f":"HLOOKUP(DB$7+0.5,$I$66:$DJ$120,ROWS($A$10:$A28)+2,FALSE)","v":1420},{"$f":"HLOOKUP(DC$7+0.5,$I$66:$DJ$120,ROWS($A$10:$A28)+2,FALSE)","v":360},{"$f":"HLOOKUP(DD$7+0.5,$I$66:$DJ$120,ROWS($A$10:$A28)+2,FALSE)","v":81},{"$f":"HLOOKUP(DE$7+0.5,$I$66:$DJ$120,ROWS($A$10:$A28)+2,FALSE)","v":1111},{"$f":"HLOOKUP(DF$7+0.5,$I$66:$DJ$120,ROWS($A$10:$A28)+2,FALSE)","v":998},{"$f":"HLOOKUP(DG$7+0.5,$I$66:$DJ$120,ROWS($A$10:$A28)+2,FALSE)","v":1472},{"$f":"HLOOKUP(DH$7+0.5,$I$66:$DJ$120,ROWS($A$10:$A28)+2,FALSE)","v":845},{"$f":"HLOOKUP(DI$7+0.5,$I$66:$DJ$120,ROWS($A$10:$A28)+2,FALSE)","v":181},{"$f":"HLOOKUP(DJ$7+0.5,$I$66:$DJ$120,ROWS($A$10:$A28)+2,FALSE)","v":197}]
[null,"Louisiana",4545914,4612,3912023,21791,528406,20131,{"$f":"HLOOKUP(I$7,$I$66:$DJ$120,ROWS($A$10:$A29)+2,FALSE)","v":91215},{"$f":"HLOOKUP(J$7,$I$66:$DJ$120,ROWS($A$10:$A29)+2,FALSE)","v":2329},{"$f":"HLOOKUP(K$7,$I$66:$DJ$120,ROWS($A$10:$A29)+2,FALSE)","v":403},{"$f":"HLOOKUP(L$7,$I$66:$DJ$120,ROWS($A$10:$A29)+2,FALSE)","v":2021},{"$f":"HLOOKUP(M$7,$I$66:$DJ$120,ROWS($A$10:$A29)+2,FALSE)","v":3645},{"$f":"HLOOKUP(N$7,$I$66:$DJ$120,ROWS($A$10:$A29)+2,FALSE)","v":5139},{"$f":"HLOOKUP(O$7,$I$66:$DJ$120,ROWS($A$10:$A29)+2,FALSE)","v":1433},{"$f":"HLOOKUP(P$7,$I$66:$DJ$120,ROWS($A$10:$A29)+2,FALSE)","v":164},{"$f":"HLOOKUP(Q$7,$I$66:$DJ$120,ROWS($A$10:$A29)+2,FALSE)","v":0},{"$f":"HLOOKUP(R$7,$I$66:$DJ$120,ROWS($A$10:$A29)+2,FALSE)","v":596},{"$f":"HLOOKUP(S$7,$I$66:$DJ$120,ROWS($A$10:$A29)+2,FALSE)","v":6534},{"$f":"HLOOKUP(T$7,$I$66:$DJ$120,ROWS($A$10:$A29)+2,FALSE)","v":4478},{"$f":"HLOOKUP(U$7,$I$66:$DJ$120,ROWS($A$10:$A29)+2,FALSE)","v":378},{"$f":"HLOOKUP(V$7,$I$66:$DJ$120,ROWS($A$10:$A29)+2,FALSE)","v":265},{"$f":"HLOOKUP(W$7,$I$66:$DJ$120,ROWS($A$10:$A29)+2,FALSE)","v":1229},{"$f":"HLOOKUP(X$7,$I$66:$DJ$120,ROWS($A$10:$A29)+2,FALSE)","v":1359},{"$f":"HLOOKUP(Y$7,$I$66:$DJ$120,ROWS($A$10:$A29)+2,FALSE)","v":544},{"$f":"HLOOKUP(Z$7,$I$66:$DJ$120,ROWS($A$10:$A29)+2,FALSE)","v":420},{"$f":"HLOOKUP(AA$7,$I$66:$DJ$120,ROWS($A$10:$A29)+2,FALSE)","v":1649},{"$f":"HLOOKUP(AB$7,$I$66:$DJ$120,ROWS($A$10:$A29)+2,FALSE)","v":"N/A"},{"$f":"HLOOKUP(AC$7,$I$66:$DJ$120,ROWS($A$10:$A29)+2,FALSE)","v":251},{"$f":"HLOOKUP(AD$7,$I$66:$DJ$120,ROWS($A$10:$A29)+2,FALSE)","v":642},{"$f":"HLOOKUP(AE$7,$I$66:$DJ$120,ROWS($A$10:$A29)+2,FALSE)","v":549},{"$f":"HLOOKUP(AF$7,$I$66:$DJ$120,ROWS($A$10:$A29)+2,FALSE)","v":1080},{"$f":"HLOOKUP(AG$7,$I$66:$DJ$120,ROWS($A$10:$A29)+2,FALSE)","v":330},{"$f":"HLOOKUP(AH$7,$I$66:$DJ$120,ROWS($A$10:$A29)+2,FALSE)","v":6791},{"$f":"HLOOKUP(AI$7,$I$66:$DJ$120,ROWS($A$10:$A29)+2,FALSE)","v":1591},{"$f":"HLOOKUP(AJ$7,$I$66:$DJ$120,ROWS($A$10:$A29)+2,FALSE)","v":428},{"$f":"HLOOKUP(AK$7,$I$66:$DJ$120,ROWS($A$10:$A29)+2,FALSE)","v":745},{"$f":"HLOOKUP(AL$7,$I$66:$DJ$120,ROWS($A$10:$A29)+2,FALSE)","v":931},{"$f":"HLOOKUP(AM$7,$I$66:$DJ$120,ROWS($A$10:$A29)+2,FALSE)","v":11},{"$f":"HLOOKUP(AN$7,$I$66:$DJ$120,ROWS($A$10:$A29)+2,FALSE)","v":975},{"$f":"HLOOKUP(AO$7,$I$66:$DJ$120,ROWS($A$10:$A29)+2,FALSE)","v":150},{"$f":"HLOOKUP(AP$7,$I$66:$DJ$120,ROWS($A$10:$A29)+2,FALSE)","v":2786},{"$f":"HLOOKUP(AQ$7,$I$66:$DJ$120,ROWS($A$10:$A29)+2,FALSE)","v":2284},{"$f":"HLOOKUP(AR$7,$I$66:$DJ$120,ROWS($A$10:$A29)+2,FALSE)","v":64},{"$f":"HLOOKUP(AS$7,$I$66:$DJ$120,ROWS($A$10:$A29)+2,FALSE)","v":1115},{"$f":"HLOOKUP(AT$7,$I$66:$DJ$120,ROWS($A$10:$A29)+2,FALSE)","v":2159},{"$f":"HLOOKUP(AU$7,$I$66:$DJ$120,ROWS($A$10:$A29)+2,FALSE)","v":195},{"$f":"HLOOKUP(AV$7,$I$66:$DJ$120,ROWS($A$10:$A29)+2,FALSE)","v":1239},{"$f":"HLOOKUP(AW$7,$I$66:$DJ$120,ROWS($A$10:$A29)+2,FALSE)","v":737},{"$f":"HLOOKUP(AX$7,$I$66:$DJ$120,ROWS($A$10:$A29)+2,FALSE)","v":1914},{"$f":"HLOOKUP(AY$7,$I$66:$DJ$120,ROWS($A$10:$A29)+2,FALSE)","v":0},{"$f":"HLOOKUP(AZ$7,$I$66:$DJ$120,ROWS($A$10:$A29)+2,FALSE)","v":2348},{"$f":"HLOOKUP(BA$7,$I$66:$DJ$120,ROWS($A$10:$A29)+2,FALSE)","v":24488},{"$f":"HLOOKUP(BB$7,$I$66:$DJ$120,ROWS($A$10:$A29)+2,FALSE)","v":277},{"$f":"HLOOKUP(BC$7,$I$66:$DJ$120,ROWS($A$10:$A29)+2,FALSE)","v":45},{"$f":"HLOOKUP(BD$7,$I$66:$DJ$120,ROWS($A$10:$A29)+2,FALSE)","v":1857},{"$f":"HLOOKUP(BE$7,$I$66:$DJ$120,ROWS($A$10:$A29)+2,FALSE)","v":1581},{"$f":"HLOOKUP(BF$7,$I$66:$DJ$120,ROWS($A$10:$A29)+2,FALSE)","v":238},{"$f":"HLOOKUP(BG$7,$I$66:$DJ$120,ROWS($A$10:$A29)+2,FALSE)","v":682},{"$f":"HLOOKUP(BH$7,$I$66:$DJ$120,ROWS($A$10:$A29)+2,FALSE)","v":146},{"$f":"HLOOKUP(BI$7,$I$66:$DJ$120,ROWS($A$10:$A29)+2,FALSE)","v":655},{"$f":"HLOOKUP(BJ$7+0.5,$I$66:$DJ$120,ROWS($A$10:$A29)+2,FALSE)","v":6941},{"$f":"HLOOKUP(BK$7+0.5,$I$66:$DJ$120,ROWS($A$10:$A29)+2,FALSE)","v":1114},{"$f":"HLOOKUP(BL$7+0.5,$I$66:$DJ$120,ROWS($A$10:$A29)+2,FALSE)","v":467},{"$f":"HLOOKUP(BM$7+0.5,$I$66:$DJ$120,ROWS($A$10:$A29)+2,FALSE)","v":1191},{"$f":"HLOOKUP(BN$7+0.5,$I$66:$DJ$120,ROWS($A$10:$A29)+2,FALSE)","v":2324},{"$f":"HLOOKUP(BO$7+0.5,$I$66:$DJ$120,ROWS($A$10:$A29)+2,FALSE)","v":1438},{"$f":"HLOOKUP(BP$7+0.5,$I$66:$DJ$120,ROWS($A$10:$A29)+2,FALSE)","v":1002},{"$f":"HLOOKUP(BQ$7+0.5,$I$66:$DJ$120,ROWS($A$10:$A29)+2,FALSE)","v":149},{"$f":"HLOOKUP(BR$7+0.5,$I$66:$DJ$120,ROWS($A$10:$A29)+2,FALSE)","v":193},{"$f":"HLOOKUP(BS$7+0.5,$I$66:$DJ$120,ROWS($A$10:$A29)+2,FALSE)","v":517},{"$f":"HLOOKUP(BT$7+0.5,$I$66:$DJ$120,ROWS($A$10:$A29)+2,FALSE)","v":2276},{"$f":"HLOOKUP(BU$7+0.5,$I$66:$DJ$120,ROWS($A$10:$A29)+2,FALSE)","v":1559},{"$f":"HLOOKUP(BV$7+0.5,$I$66:$DJ$120,ROWS($A$10:$A29)+2,FALSE)","v":283},{"$f":"HLOOKUP(BW$7+0.5,$I$66:$DJ$120,ROWS($A$10:$A29)+2,FALSE)","v":242},{"$f":"HLOOKUP(BX$7+0.5,$I$66:$DJ$120,ROWS($A$10:$A29)+2,FALSE)","v":466},{"$f":"HLOOKUP(BY$7+0.5,$I$66:$DJ$120,ROWS($A$10:$A29)+2,FALSE)","v":954},{"$f":"HLOOKUP(BZ$7+0.5,$I$66:$DJ$120,ROWS($A$10:$A29)+2,FALSE)","v":447},{"$f":"HLOOKUP(CA$7+0.5,$I$66:$DJ$120,ROWS($A$10:$A29)+2,FALSE)","v":392},{"$f":"HLOOKUP(CB$7+0.5,$I$66:$DJ$120,ROWS($A$10:$A29)+2,FALSE)","v":1224},{"$f":"HLOOKUP(CC$7+0.5,$I$66:$DJ$120,ROWS($A$10:$A29)+2,FALSE)","v":"N/A"},{"$f":"HLOOKUP(CD$7+0.5,$I$66:$DJ$120,ROWS($A$10:$A29)+2,FALSE)","v":334},{"$f":"HLOOKUP(CE$7+0.5,$I$66:$DJ$120,ROWS($A$10:$A29)+2,FALSE)","v":701},{"$f":"HLOOKUP(CF$7+0.5,$I$66:$DJ$120,ROWS($A$10:$A29)+2,FALSE)","v":354},{"$f":"HLOOKUP(CG$7+0.5,$I$66:$DJ$120,ROWS($A$10:$A29)+2,FALSE)","v":782},{"$f":"HLOOKUP(CH$7+0.5,$I$66:$DJ$120,ROWS($A$10:$A29)+2,FALSE)","v":324},{"$f":"HLOOKUP(CI$7+0.5,$I$66:$DJ$120,ROWS($A$10:$A29)+2,FALSE)","v":1938},{"$f":"HLOOKUP(CJ$7+0.5,$I$66:$DJ$120,ROWS($A$10:$A29)+2,FALSE)","v":684},{"$f":"HLOOKUP(CK$7+0.5,$I$66:$DJ$120,ROWS($A$10:$A29)+2,FALSE)","v":524},{"$f":"HLOOKUP(CL$7+0.5,$I$66:$DJ$120,ROWS($A$10:$A29)+2,FALSE)","v":538},{"$f":"HLOOKUP(CM$7+0.5,$I$66:$DJ$120,ROWS($A$10:$A29)+2,FALSE)","v":682},{"$f":"HLOOKUP(CN$7+0.5,$I$66:$DJ$120,ROWS($A$10:$A29)+2,FALSE)","v":21},{"$f":"HLOOKUP(CO$7+0.5,$I$66:$DJ$120,ROWS($A$10:$A29)+2,FALSE)","v":575},{"$f":"HLOOKUP(CP$7+0.5,$I$66:$DJ$120,ROWS($A$10:$A29)+2,FALSE)","v":188},{"$f":"HLOOKUP(CQ$7+0.5,$I$66:$DJ$120,ROWS($A$10:$A29)+2,FALSE)","v":1105},{"$f":"HLOOKUP(CR$7+0.5,$I$66:$DJ$120,ROWS($A$10:$A29)+2,FALSE)","v":1152},{"$f":"HLOOKUP(CS$7+0.5,$I$66:$DJ$120,ROWS($A$10:$A29)+2,FALSE)","v":113},{"$f":"HLOOKUP(CT$7+0.5,$I$66:$DJ$120,ROWS($A$10:$A29)+2,FALSE)","v":773},{"$f":"HLOOKUP(CU$7+0.5,$I$66:$DJ$120,ROWS($A$10:$A29)+2,FALSE)","v":1365},{"$f":"HLOOKUP(CV$7+0.5,$I$66:$DJ$120,ROWS($A$10:$A29)+2,FALSE)","v":232},{"$f":"HLOOKUP(CW$7+0.5,$I$66:$DJ$120,ROWS($A$10:$A29)+2,FALSE)","v":616},{"$f":"HLOOKUP(CX$7+0.5,$I$66:$DJ$120,ROWS($A$10:$A29)+2,FALSE)","v":695},{"$f":"HLOOKUP(CY$7+0.5,$I$66:$DJ$120,ROWS($A$10:$A29)+2,FALSE)","v":1377},{"$f":"HLOOKUP(CZ$7+0.5,$I$66:$DJ$120,ROWS($A$10:$A29)+2,FALSE)","v":193},{"$f":"HLOOKUP(DA$7+0.5,$I$66:$DJ$120,ROWS($A$10:$A29)+2,FALSE)","v":1546},{"$f":"HLOOKUP(DB$7+0.5,$I$66:$DJ$120,ROWS($A$10:$A29)+2,FALSE)","v":4076},{"$f":"HLOOKUP(DC$7+0.5,$I$66:$DJ$120,ROWS($A$10:$A29)+2,FALSE)","v":288},{"$f":"HLOOKUP(DD$7+0.5,$I$66:$DJ$120,ROWS($A$10:$A29)+2,FALSE)","v":72},{"$f":"HLOOKUP(DE$7+0.5,$I$66:$DJ$120,ROWS($A$10:$A29)+2,FALSE)","v":1033},{"$f":"HLOOKUP(DF$7+0.5,$I$66:$DJ$120,ROWS($A$10:$A29)+2,FALSE)","v":631},{"$f":"HLOOKUP(DG$7+0.5,$I$66:$DJ$120,ROWS($A$10:$A29)+2,FALSE)","v":271},{"$f":"HLOOKUP(DH$7+0.5,$I$66:$DJ$120,ROWS($A$10:$A29)+2,FALSE)","v":474},{"$f":"HLOOKUP(DI$7+0.5,$I$66:$DJ$120,ROWS($A$10:$A29)+2,FALSE)","v":216},{"$f":"HLOOKUP(DJ$7+0.5,$I$66:$DJ$120,ROWS($A$10:$A29)+2,FALSE)","v":507}]
[null,"Maine",1315586,1384,1132344,9895,151438,9223,{"$f":"HLOOKUP(I$7,$I$66:$DJ$120,ROWS($A$10:$A30)+2,FALSE)","v":27523},{"$f":"HLOOKUP(J$7,$I$66:$DJ$120,ROWS($A$10:$A30)+2,FALSE)","v":129},{"$f":"HLOOKUP(K$7,$I$66:$DJ$120,ROWS($A$10:$A30)+2,FALSE)","v":38},{"$f":"HLOOKUP(L$7,$I$66:$DJ$120,ROWS($A$10:$A30)+2,FALSE)","v":230},{"$f":"HLOOKUP(M$7,$I$66:$DJ$120,ROWS($A$10:$A30)+2,FALSE)","v":0},{"$f":"HLOOKUP(N$7,$I$66:$DJ$120,ROWS($A$10:$A30)+2,FALSE)","v":1610},{"$f":"HLOOKUP(O$7,$I$66:$DJ$120,ROWS($A$10:$A30)+2,FALSE)","v":314},{"$f":"HLOOKUP(P$7,$I$66:$DJ$120,ROWS($A$10:$A30)+2,FALSE)","v":1468},{"$f":"HLOOKUP(Q$7,$I$66:$DJ$120,ROWS($A$10:$A30)+2,FALSE)","v":234},{"$f":"HLOOKUP(R$7,$I$66:$DJ$120,ROWS($A$10:$A30)+2,FALSE)","v":32},{"$f":"HLOOKUP(S$7,$I$66:$DJ$120,ROWS($A$10:$A30)+2,FALSE)","v":2926},{"$f":"HLOOKUP(T$7,$I$66:$DJ$120,ROWS($A$10:$A30)+2,FALSE)","v":511},{"$f":"HLOOKUP(U$7,$I$66:$DJ$120,ROWS($A$10:$A30)+2,FALSE)","v":0},{"$f":"HLOOKUP(V$7,$I$66:$DJ$120,ROWS($A$10:$A30)+2,FALSE)","v":143},{"$f":"HLOOKUP(W$7,$I$66:$DJ$120,ROWS($A$10:$A30)+2,FALSE)","v":195},{"$f":"HLOOKUP(X$7,$I$66:$DJ$120,ROWS($A$10:$A30)+2,FALSE)","v":0},{"$f":"HLOOKUP(Y$7,$I$66:$DJ$120,ROWS($A$10:$A30)+2,FALSE)","v":7},{"$f":"HLOOKUP(Z$7,$I$66:$DJ$120,ROWS($A$10:$A30)+2,FALSE)","v":277},{"$f":"HLOOKUP(AA$7,$I$66:$DJ$120,ROWS($A$10:$A30)+2,FALSE)","v":482},{"$f":"HLOOKUP(AB$7,$I$66:$DJ$120,ROWS($A$10:$A30)+2,FALSE)","v":15},{"$f":"HLOOKUP(AC$7,$I$66:$DJ$120,ROWS($A$10:$A30)+2,FALSE)","v":"N/A"},{"$f":"HLOOKUP(AD$7,$I$66:$DJ$120,ROWS($A$10:$A30)+2,FALSE)","v":325},{"$f":"HLOOKUP(AE$7,$I$66:$DJ$120,ROWS($A$10:$A30)+2,FALSE)","v":3887},{"$f":"HLOOKUP(AF$7,$I$66:$DJ$120,ROWS($A$10:$A30)+2,FALSE)","v":116},{"$f":"HLOOKUP(AG$7,$I$66:$DJ$120,ROWS($A$10:$A30)+2,FALSE)","v":430},{"$f":"HLOOKUP(AH$7,$I$66:$DJ$120,ROWS($A$10:$A30)+2,FALSE)","v":79},{"$f":"HLOOKUP(AI$7,$I$66:$DJ$120,ROWS($A$10:$A30)+2,FALSE)","v":69},{"$f":"HLOOKUP(AJ$7,$I$66:$DJ$120,ROWS($A$10:$A30)+2,FALSE)","v":0},{"$f":"HLOOKUP(AK$7,$I$66:$DJ$120,ROWS($A$10:$A30)+2,FALSE)","v":82},{"$f":"HLOOKUP(AL$7,$I$66:$DJ$120,ROWS($A$10:$A30)+2,FALSE)","v":35},{"$f":"HLOOKUP(AM$7,$I$66:$DJ$120,ROWS($A$10:$A30)+2,FALSE)","v":3655},{"$f":"HLOOKUP(AN$7,$I$66:$DJ$120,ROWS($A$10:$A30)+2,FALSE)","v":405},{"$f":"HLOOKUP(AO$7,$I$66:$DJ$120,ROWS($A$10:$A30)+2,FALSE)","v":272},{"$f":"HLOOKUP(AP$7,$I$66:$DJ$120,ROWS($A$10:$A30)+2,FALSE)","v":2519},{"$f":"HLOOKUP(AQ$7,$I$66:$DJ$120,ROWS($A$10:$A30)+2,FALSE)","v":1112},{"$f":"HLOOKUP(AR$7,$I$66:$DJ$120,ROWS($A$10:$A30)+2,FALSE)","v":0},{"$f":"HLOOKUP(AS$7,$I$66:$DJ$120,ROWS($A$10:$A30)+2,FALSE)","v":628},{"$f":"HLOOKUP(AT$7,$I$66:$DJ$120,ROWS($A$10:$A30)+2,FALSE)","v":79},{"$f":"HLOOKUP(AU$7,$I$66:$DJ$120,ROWS($A$10:$A30)+2,FALSE)","v":215},{"$f":"HLOOKUP(AV$7,$I$66:$DJ$120,ROWS($A$10:$A30)+2,FALSE)","v":976},{"$f":"HLOOKUP(AW$7,$I$66:$DJ$120,ROWS($A$10:$A30)+2,FALSE)","v":1024},{"$f":"HLOOKUP(AX$7,$I$66:$DJ$120,ROWS($A$10:$A30)+2,FALSE)","v":173},{"$f":"HLOOKUP(AY$7,$I$66:$DJ$120,ROWS($A$10:$A30)+2,FALSE)","v":0},{"$f":"HLOOKUP(AZ$7,$I$66:$DJ$120,ROWS($A$10:$A30)+2,FALSE)","v":985},{"$f":"HLOOKUP(BA$7,$I$66:$DJ$120,ROWS($A$10:$A30)+2,FALSE)","v":496},{"$f":"HLOOKUP(BB$7,$I$66:$DJ$120,ROWS($A$10:$A30)+2,FALSE)","v":200},{"$f":"HLOOKUP(BC$7,$I$66:$DJ$120,ROWS($A$10:$A30)+2,FALSE)","v":349},{"$f":"HLOOKUP(BD$7,$I$66:$DJ$120,ROWS($A$10:$A30)+2,FALSE)","v":573},{"$f":"HLOOKUP(BE$7,$I$66:$DJ$120,ROWS($A$10:$A30)+2,FALSE)","v":118},{"$f":"HLOOKUP(BF$7,$I$66:$DJ$120,ROWS($A$10:$A30)+2,FALSE)","v":51},{"$f":"HLOOKUP(BG$7,$I$66:$DJ$120,ROWS($A$10:$A30)+2,FALSE)","v":0},{"$f":"HLOOKUP(BH$7,$I$66:$DJ$120,ROWS($A$10:$A30)+2,FALSE)","v":59},{"$f":"HLOOKUP(BI$7,$I$66:$DJ$120,ROWS($A$10:$A30)+2,FALSE)","v":38},{"$f":"HLOOKUP(BJ$7+0.5,$I$66:$DJ$120,ROWS($A$10:$A30)+2,FALSE)","v":3132},{"$f":"HLOOKUP(BK$7+0.5,$I$66:$DJ$120,ROWS($A$10:$A30)+2,FALSE)","v":172},{"$f":"HLOOKUP(BL$7+0.5,$I$66:$DJ$120,ROWS($A$10:$A30)+2,FALSE)","v":48},{"$f":"HLOOKUP(BM$7+0.5,$I$66:$DJ$120,ROWS($A$10:$A30)+2,FALSE)","v":170},{"$f":"HLOOKUP(BN$7+0.5,$I$66:$DJ$120,ROWS($A$10:$A30)+2,FALSE)","v":155},{"$f":"HLOOKUP(BO$7+0.5,$I$66:$DJ$120,ROWS($A$10:$A30)+2,FALSE)","v":860},{"$f":"HLOOKUP(BP$7+0.5,$I$66:$DJ$120,ROWS($A$10:$A30)+2,FALSE)","v":287},{"$f":"HLOOKUP(BQ$7+0.5,$I$66:$DJ$120,ROWS($A$10:$A30)+2,FALSE)","v":620},{"$f":"HLOOKUP(BR$7+0.5,$I$66:$DJ$120,ROWS($A$10:$A30)+2,FALSE)","v":299},{"$f":"HLOOKUP(BS$7+0.5,$I$66:$DJ$120,ROWS($A$10:$A30)+2,FALSE)","v":55},{"$f":"HLOOKUP(BT$7+0.5,$I$66:$DJ$120,ROWS($A$10:$A30)+2,FALSE)","v":1292},{"$f":"HLOOKUP(BU$7+0.5,$I$66:$DJ$120,ROWS($A$10:$A30)+2,FALSE)","v":538},{"$f":"HLOOKUP(BV$7+0.5,$I$66:$DJ$120,ROWS($A$10:$A30)+2,FALSE)","v":155},{"$f":"HLOOKUP(BW$7+0.5,$I$66:$DJ$120,ROWS($A$10:$A30)+2,FALSE)","v":128},{"$f":"HLOOKUP(BX$7+0.5,$I$66:$DJ$120,ROWS($A$10:$A30)+2,FALSE)","v":277},{"$f":"HLOOKUP(BY$7+0.5,$I$66:$DJ$120,ROWS($A$10:$A30)+2,FALSE)","v":155},{"$f":"HLOOKUP(BZ$7+0.5,$I$66:$DJ$120,ROWS($A$10:$A30)+2,FALSE)","v":16},{"$f":"HLOOKUP(CA$7+0.5,$I$66:$DJ$120,ROWS($A$10:$A30)+2,FALSE)","v":401},{"$f":"HLOOKUP(CB$7+0.5,$I$66:$DJ$120,ROWS($A$10:$A30)+2,FALSE)","v":521},{"$f":"HLOOKUP(CC$7+0.5,$I$66:$DJ$120,ROWS($A$10:$A30)+2,FALSE)","v":30},{"$f":"HLOOKUP(CD$7+0.5,$I$66:$DJ$120,ROWS($A$10:$A30)+2,FALSE)","v":"N/A"},{"$f":"HLOOKUP(CE$7+0.5,$I$66:$DJ$120,ROWS($A$10:$A30)+2,FALSE)","v":263},{"$f":"HLOOKUP(CF$7+0.5,$I$66:$DJ$120,ROWS($A$10:$A30)+2,FALSE)","v":1167},{"$f":"HLOOKUP(CG$7+0.5,$I$66:$DJ$120,ROWS($A$10:$A30)+2,FALSE)","v":123},{"$f":"HLOOKUP(CH$7+0.5,$I$66:$DJ$120,ROWS($A$10:$A30)+2,FALSE)","v":359},{"$f":"HLOOKUP(CI$7+0.5,$I$66:$DJ$120,ROWS($A$10:$A30)+2,FALSE)","v":134},{"$f":"HLOOKUP(CJ$7+0.5,$I$66:$DJ$120,ROWS($A$10:$A30)+2,FALSE)","v":112},{"$f":"HLOOKUP(CK$7+0.5,$I$66:$DJ$120,ROWS($A$10:$A30)+2,FALSE)","v":155},{"$f":"HLOOKUP(CL$7+0.5,$I$66:$DJ$120,ROWS($A$10:$A30)+2,FALSE)","v":136},{"$f":"HLOOKUP(CM$7+0.5,$I$66:$DJ$120,ROWS($A$10:$A30)+2,FALSE)","v":56},{"$f":"HLOOKUP(CN$7+0.5,$I$66:$DJ$120,ROWS($A$10:$A30)+2,FALSE)","v":1077},{"$f":"HLOOKUP(CO$7+0.5,$I$66:$DJ$120,ROWS($A$10:$A30)+2,FALSE)","v":281},{"$f":"HLOOKUP(CP$7+0.5,$I$66:$DJ$120,ROWS($A$10:$A30)+2,FALSE)","v":320},{"$f":"HLOOKUP(CQ$7+0.5,$I$66:$DJ$120,ROWS($A$10:$A30)+2,FALSE)","v":1180},{"$f":"HLOOKUP(CR$7+0.5,$I$66:$DJ$120,ROWS($A$10:$A30)+2,FALSE)","v":574},{"$f":"HLOOKUP(CS$7+0.5,$I$66:$DJ$120,ROWS($A$10:$A30)+2,FALSE)","v":155},{"$f":"HLOOKUP(CT$7+0.5,$I$66:$DJ$120,ROWS($A$10:$A30)+2,FALSE)","v":368},{"$f":"HLOOKUP(CU$7+0.5,$I$66:$DJ$120,ROWS($A$10:$A30)+2,FALSE)","v":115},{"$f":"HLOOKUP(CV$7+0.5,$I$66:$DJ$120,ROWS($A$10:$A30)+2,FALSE)","v":255},{"$f":"HLOOKUP(CW$7+0.5,$I$66:$DJ$120,ROWS($A$10:$A30)+2,FALSE)","v":600},{"$f":"HLOOKUP(CX$7+0.5,$I$66:$DJ$120,ROWS($A$10:$A30)+2,FALSE)","v":656},{"$f":"HLOOKUP(CY$7+0.5,$I$66:$DJ$120,ROWS($A$10:$A30)+2,FALSE)","v":143},{"$f":"HLOOKUP(CZ$7+0.5,$I$66:$DJ$120,ROWS($A$10:$A30)+2,FALSE)","v":155},{"$f":"HLOOKUP(DA$7+0.5,$I$66:$DJ$120,ROWS($A$10:$A30)+2,FALSE)","v":1062},{"$f":"HLOOKUP(DB$7+0.5,$I$66:$DJ$120,ROWS($A$10:$A30)+2,FALSE)","v":381},{"$f":"HLOOKUP(DC$7+0.5,$I$66:$DJ$120,ROWS($A$10:$A30)+2,FALSE)","v":183},{"$f":"HLOOKUP(DD$7+0.5,$I$66:$DJ$120,ROWS($A$10:$A30)+2,FALSE)","v":340},{"$f":"HLOOKUP(DE$7+0.5,$I$66:$DJ$120,ROWS($A$10:$A30)+2,FALSE)","v":408},{"$f":"HLOOKUP(DF$7+0.5,$I$66:$DJ$120,ROWS($A$10:$A30)+2,FALSE)","v":137},{"$f":"HLOOKUP(DG$7+0.5,$I$66:$DJ$120,ROWS($A$10:$A30)+2,FALSE)","v":85},{"$f":"HLOOKUP(DH$7+0.5,$I$66:$DJ$120,ROWS($A$10:$A30)+2,FALSE)","v":155},{"$f":"HLOOKUP(DI$7+0.5,$I$66:$DJ$120,ROWS($A$10:$A30)+2,FALSE)","v":81},{"$f":"HLOOKUP(DJ$7+0.5,$I$66:$DJ$120,ROWS($A$10:$A30)+2,FALSE)","v":69}]
[null,"Maryland",5816472,3717,5068457,21604,549973,20595,{"$f":"HLOOKUP(I$7,$I$66:$DJ$120,ROWS($A$10:$A31)+2,FALSE)","v":154983},{"$f":"HLOOKUP(J$7,$I$66:$DJ$120,ROWS($A$10:$A31)+2,FALSE)","v":1261},{"$f":"HLOOKUP(K$7,$I$66:$DJ$120,ROWS($A$10:$A31)+2,FALSE)","v":1947},{"$f":"HLOOKUP(L$7,$I$66:$DJ$120,ROWS($A$10:$A31)+2,FALSE)","v":760},{"$f":"HLOOKUP(M$7,$I$66:$DJ$120,ROWS($A$10:$A31)+2,FALSE)","v":136},{"$f":"HLOOKUP(N$7,$I$66:$DJ$120,ROWS($A$10:$A31)+2,FALSE)","v":8614},{"$f":"HLOOKUP(O$7,$I$66:$DJ$120,ROWS($A$10:$A31)+2,FALSE)","v":1071},{"$f":"HLOOKUP(P$7,$I$66:$DJ$120,ROWS($A$10:$A31)+2,FALSE)","v":881},{"$f":"HLOOKUP(Q$7,$I$66:$DJ$120,ROWS($A$10:$A31)+2,FALSE)","v":4100},{"$f":"HLOOKUP(R$7,$I$66:$DJ$120,ROWS($A$10:$A31)+2,FALSE)","v":21213},{"$f":"HLOOKUP(S$7,$I$66:$DJ$120,ROWS($A$10:$A31)+2,FALSE)","v":9610},{"$f":"HLOOKUP(T$7,$I$66:$DJ$120,ROWS($A$10:$A31)+2,FALSE)","v":4610},{"$f":"HLOOKUP(U$7,$I$66:$DJ$120,ROWS($A$10:$A31)+2,FALSE)","v":610},{"$f":"HLOOKUP(V$7,$I$66:$DJ$120,ROWS($A$10:$A31)+2,FALSE)","v":429},{"$f":"HLOOKUP(W$7,$I$66:$DJ$120,ROWS($A$10:$A31)+2,FALSE)","v":3621},{"$f":"HLOOKUP(X$7,$I$66:$DJ$120,ROWS($A$10:$A31)+2,FALSE)","v":1210},{"$f":"HLOOKUP(Y$7,$I$66:$DJ$120,ROWS($A$10:$A31)+2,FALSE)","v":569},{"$f":"HLOOKUP(Z$7,$I$66:$DJ$120,ROWS($A$10:$A31)+2,FALSE)","v":1726},{"$f":"HLOOKUP(AA$7,$I$66:$DJ$120,ROWS($A$10:$A31)+2,FALSE)","v":715},{"$f":"HLOOKUP(AB$7,$I$66:$DJ$120,ROWS($A$10:$A31)+2,FALSE)","v":606},{"$f":"HLOOKUP(AC$7,$I$66:$DJ$120,ROWS($A$10:$A31)+2,FALSE)","v":332},{"$f":"HLOOKUP(AD$7,$I$66:$DJ$120,ROWS($A$10:$A31)+2,FALSE)","v":"N/A"},{"$f":"HLOOKUP(AE$7,$I$66:$DJ$120,ROWS($A$10:$A31)+2,FALSE)","v":3977},{"$f":"HLOOKUP(AF$7,$I$66:$DJ$120,ROWS($A$10:$A31)+2,FALSE)","v":2167},{"$f":"HLOOKUP(AG$7,$I$66:$DJ$120,ROWS($A$10:$A31)+2,FALSE)","v":1422},{"$f":"HLOOKUP(AH$7,$I$66:$DJ$120,ROWS($A$10:$A31)+2,FALSE)","v":581},{"$f":"HLOOKUP(AI$7,$I$66:$DJ$120,ROWS($A$10:$A31)+2,FALSE)","v":256},{"$f":"HLOOKUP(AJ$7,$I$66:$DJ$120,ROWS($A$10:$A31)+2,FALSE)","v":0},{"$f":"HLOOKUP(AK$7,$I$66:$DJ$120,ROWS($A$10:$A31)+2,FALSE)","v":132},{"$f":"HLOOKUP(AL$7,$I$66:$DJ$120,ROWS($A$10:$A31)+2,FALSE)","v":330},{"$f":"HLOOKUP(AM$7,$I$66:$DJ$120,ROWS($A$10:$A31)+2,FALSE)","v":1124},{"$f":"HLOOKUP(AN$7,$I$66:$DJ$120,ROWS($A$10:$A31)+2,FALSE)","v":6260},{"$f":"HLOOKUP(AO$7,$I$66:$DJ$120,ROWS($A$10:$A31)+2,FALSE)","v":638},{"$f":"HLOOKUP(AP$7,$I$66:$DJ$120,ROWS($A$10:$A31)+2,FALSE)","v":11736},{"$f":"HLOOKUP(AQ$7,$I$66:$DJ$120,ROWS($A$10:$A31)+2,FALSE)","v":7507},{"$f":"HLOOKUP(AR$7,$I$66:$DJ$120,ROWS($A$10:$A31)+2,FALSE)","v":116},{"$f":"HLOOKUP(AS$7,$I$66:$DJ$120,ROWS($A$10:$A31)+2,FALSE)","v":2522},{"$f":"HLOOKUP(AT$7,$I$66:$DJ$120,ROWS($A$10:$A31)+2,FALSE)","v":463},{"$f":"HLOOKUP(AU$7,$I$66:$DJ$120,ROWS($A$10:$A31)+2,FALSE)","v":378},{"$f":"HLOOKUP(AV$7,$I$66:$DJ$120,ROWS($A$10:$A31)+2,FALSE)","v":15485},{"$f":"HLOOKUP(AW$7,$I$66:$DJ$120,ROWS($A$10:$A31)+2,FALSE)","v":82},{"$f":"HLOOKUP(AX$7,$I$66:$DJ$120,ROWS($A$10:$A31)+2,FALSE)","v":2297},{"$f":"HLOOKUP(AY$7,$I$66:$DJ$120,ROWS($A$10:$A31)+2,FALSE)","v":0},{"$f":"HLOOKUP(AZ$7,$I$66:$DJ$120,ROWS($A$10:$A31)+2,FALSE)","v":1800},{"$f":"HLOOKUP(BA$7,$I$66:$DJ$120,ROWS($A$10:$A31)+2,FALSE)","v":5612},{"$f":"HLOOKUP(BB$7,$I$66:$DJ$120,ROWS($A$10:$A31)+2,FALSE)","v":1061},{"$f":"HLOOKUP(BC$7,$I$66:$DJ$120,ROWS($A$10:$A31)+2,FALSE)","v":589},{"$f":"HLOOKUP(BD$7,$I$66:$DJ$120,ROWS($A$10:$A31)+2,FALSE)","v":20579},{"$f":"HLOOKUP(BE$7,$I$66:$DJ$120,ROWS($A$10:$A31)+2,FALSE)","v":1431},{"$f":"HLOOKUP(BF$7,$I$66:$DJ$120,ROWS($A$10:$A31)+2,FALSE)","v":1957},{"$f":"HLOOKUP(BG$7,$I$66:$DJ$120,ROWS($A$10:$A31)+2,FALSE)","v":460},{"$f":"HLOOKUP(BH$7,$I$66:$DJ$120,ROWS($A$10:$A31)+2,FALSE)","v":0},{"$f":"HLOOKUP(BI$7,$I$66:$DJ$120,ROWS($A$10:$A31)+2,FALSE)","v":294},{"$f":"HLOOKUP(BJ$7+0.5,$I$66:$DJ$120,ROWS($A$10:$A31)+2,FALSE)","v":8958},{"$f":"HLOOKUP(BK$7+0.5,$I$66:$DJ$120,ROWS($A$10:$A31)+2,FALSE)","v":713},{"$f":"HLOOKUP(BL$7+0.5,$I$66:$DJ$120,ROWS($A$10:$A31)+2,FALSE)","v":1123},{"$f":"HLOOKUP(BM$7+0.5,$I$66:$DJ$120,ROWS($A$10:$A31)+2,FALSE)","v":359},{"$f":"HLOOKUP(BN$7+0.5,$I$66:$DJ$120,ROWS($A$10:$A31)+2,FALSE)","v":159},{"$f":"HLOOKUP(BO$7+0.5,$I$66:$DJ$120,ROWS($A$10:$A31)+2,FALSE)","v":2155},{"$f":"HLOOKUP(BP$7+0.5,$I$66:$DJ$120,ROWS($A$10:$A31)+2,FALSE)","v":609},{"$f":"HLOOKUP(BQ$7+0.5,$I$66:$DJ$120,ROWS($A$10:$A31)+2,FALSE)","v":516},{"$f":"HLOOKUP(BR$7+0.5,$I$66:$DJ$120,ROWS($A$10:$A31)+2,FALSE)","v":1303},{"$f":"HLOOKUP(BS$7+0.5,$I$66:$DJ$120,ROWS($A$10:$A31)+2,FALSE)","v":3437},{"$f":"HLOOKUP(BT$7+0.5,$I$66:$DJ$120,ROWS($A$10:$A31)+2,FALSE)","v":2515},{"$f":"HLOOKUP(BU$7+0.5,$I$66:$DJ$120,ROWS($A$10:$A31)+2,FALSE)","v":2430},{"$f":"HLOOKUP(BV$7+0.5,$I$66:$DJ$120,ROWS($A$10:$A31)+2,FALSE)","v":474},{"$f":"HLOOKUP(BW$7+0.5,$I$66:$DJ$120,ROWS($A$10:$A31)+2,FALSE)","v":444},{"$f":"HLOOKUP(BX$7+0.5,$I$66:$DJ$120,ROWS($A$10:$A31)+2,FALSE)","v":1647},{"$f":"HLOOKUP(BY$7+0.5,$I$66:$DJ$120,ROWS($A$10:$A31)+2,FALSE)","v":709},{"$f":"HLOOKUP(BZ$7+0.5,$I$66:$DJ$120,ROWS($A$10:$A31)+2,FALSE)","v":389},{"$f":"HLOOKUP(CA$7+0.5,$I$66:$DJ$120,ROWS($A$10:$A31)+2,FALSE)","v":1123},{"$f":"HLOOKUP(CB$7+0.5,$I$66:$DJ$120,ROWS($A$10:$A31)+2,FALSE)","v":602},{"$f":"HLOOKUP(CC$7+0.5,$I$66:$DJ$120,ROWS($A$10:$A31)+2,FALSE)","v":441},{"$f":"HLOOKUP(CD$7+0.5,$I$66:$DJ$120,ROWS($A$10:$A31)+2,FALSE)","v":261},{"$f":"HLOOKUP(CE$7+0.5,$I$66:$DJ$120,ROWS($A$10:$A31)+2,FALSE)","v":"N/A"},{"$f":"HLOOKUP(CF$7+0.5,$I$66:$DJ$120,ROWS($A$10:$A31)+2,FALSE)","v":1805},{"$f":"HLOOKUP(CG$7+0.5,$I$66:$DJ$120,ROWS($A$10:$A31)+2,FALSE)","v":973},{"$f":"HLOOKUP(CH$7+0.5,$I$66:$DJ$120,ROWS($A$10:$A31)+2,FALSE)","v":707},{"$f":"HLOOKUP(CI$7+0.5,$I$66:$DJ$120,ROWS($A$10:$A31)+2,FALSE)","v":706},{"$f":"HLOOKUP(CJ$7+0.5,$I$66:$DJ$120,ROWS($A$10:$A31)+2,FALSE)","v":199},{"$f":"HLOOKUP(CK$7+0.5,$I$66:$DJ$120,ROWS($A$10:$A31)+2,FALSE)","v":190},{"$f":"HLOOKUP(CL$7+0.5,$I$66:$DJ$120,ROWS($A$10:$A31)+2,FALSE)","v":152},{"$f":"HLOOKUP(CM$7+0.5,$I$66:$DJ$120,ROWS($A$10:$A31)+2,FALSE)","v":258},{"$f":"HLOOKUP(CN$7+0.5,$I$66:$DJ$120,ROWS($A$10:$A31)+2,FALSE)","v":820},{"$f":"HLOOKUP(CO$7+0.5,$I$66:$DJ$120,ROWS($A$10:$A31)+2,FALSE)","v":2244},{"$f":"HLOOKUP(CP$7+0.5,$I$66:$DJ$120,ROWS($A$10:$A31)+2,FALSE)","v":453},{"$f":"HLOOKUP(CQ$7+0.5,$I$66:$DJ$120,ROWS($A$10:$A31)+2,FALSE)","v":2585},{"$f":"HLOOKUP(CR$7+0.5,$I$66:$DJ$120,ROWS($A$10:$A31)+2,FALSE)","v":2284},{"$f":"HLOOKUP(CS$7+0.5,$I$66:$DJ$120,ROWS($A$10:$A31)+2,FALSE)","v":94},{"$f":"HLOOKUP(CT$7+0.5,$I$66:$DJ$120,ROWS($A$10:$A31)+2,FALSE)","v":1035},{"$f":"HLOOKUP(CU$7+0.5,$I$66:$DJ$120,ROWS($A$10:$A31)+2,FALSE)","v":447},{"$f":"HLOOKUP(CV$7+0.5,$I$66:$DJ$120,ROWS($A$10:$A31)+2,FALSE)","v":426},{"$f":"HLOOKUP(CW$7+0.5,$I$66:$DJ$120,ROWS($A$10:$A31)+2,FALSE)","v":2922},{"$f":"HLOOKUP(CX$7+0.5,$I$66:$DJ$120,ROWS($A$10:$A31)+2,FALSE)","v":95},{"$f":"HLOOKUP(CY$7+0.5,$I$66:$DJ$120,ROWS($A$10:$A31)+2,FALSE)","v":1139},{"$f":"HLOOKUP(CZ$7+0.5,$I$66:$DJ$120,ROWS($A$10:$A31)+2,FALSE)","v":190},{"$f":"HLOOKUP(DA$7+0.5,$I$66:$DJ$120,ROWS($A$10:$A31)+2,FALSE)","v":986},{"$f":"HLOOKUP(DB$7+0.5,$I$66:$DJ$120,ROWS($A$10:$A31)+2,FALSE)","v":1271},{"$f":"HLOOKUP(DC$7+0.5,$I$66:$DJ$120,ROWS($A$10:$A31)+2,FALSE)","v":831},{"$f":"HLOOKUP(DD$7+0.5,$I$66:$DJ$120,ROWS($A$10:$A31)+2,FALSE)","v":598},{"$f":"HLOOKUP(DE$7+0.5,$I$66:$DJ$120,ROWS($A$10:$A31)+2,FALSE)","v":2668},{"$f":"HLOOKUP(DF$7+0.5,$I$66:$DJ$120,ROWS($A$10:$A31)+2,FALSE)","v":884},{"$f":"HLOOKUP(DG$7+0.5,$I$66:$DJ$120,ROWS($A$10:$A31)+2,FALSE)","v":799},{"$f":"HLOOKUP(DH$7+0.5,$I$66:$DJ$120,ROWS($A$10:$A31)+2,FALSE)","v":371},{"$f":"HLOOKUP(DI$7+0.5,$I$66:$DJ$120,ROWS($A$10:$A31)+2,FALSE)","v":190},{"$f":"HLOOKUP(DJ$7+0.5,$I$66:$DJ$120,ROWS($A$10:$A31)+2,FALSE)","v":249}]
[null,"Massachusetts",6580641,3587,5752166,19793,626380,17354,{"$f":"HLOOKUP(I$7,$I$66:$DJ$120,ROWS($A$10:$A32)+2,FALSE)","v":142577},{"$f":"HLOOKUP(J$7,$I$66:$DJ$120,ROWS($A$10:$A32)+2,FALSE)","v":636},{"$f":"HLOOKUP(K$7,$I$66:$DJ$120,ROWS($A$10:$A32)+2,FALSE)","v":890},{"$f":"HLOOKUP(L$7,$I$66:$DJ$120,ROWS($A$10:$A32)+2,FALSE)","v":1972},{"$f":"HLOOKUP(M$7,$I$66:$DJ$120,ROWS($A$10:$A32)+2,FALSE)","v":394},{"$f":"HLOOKUP(N$7,$I$66:$DJ$120,ROWS($A$10:$A32)+2,FALSE)","v":12770},{"$f":"HLOOKUP(O$7,$I$66:$DJ$120,ROWS($A$10:$A32)+2,FALSE)","v":980},{"$f":"HLOOKUP(P$7,$I$66:$DJ$120,ROWS($A$10:$A32)+2,FALSE)","v":10525},{"$f":"HLOOKUP(Q$7,$I$66:$DJ$120,ROWS($A$10:$A32)+2,FALSE)","v":506},{"$f":"HLOOKUP(R$7,$I$66:$DJ$120,ROWS($A$10:$A32)+2,FALSE)","v":379},{"$f":"HLOOKUP(S$7,$I$66:$DJ$120,ROWS($A$10:$A32)+2,FALSE)","v":12890},{"$f":"HLOOKUP(T$7,$I$66:$DJ$120,ROWS($A$10:$A32)+2,FALSE)","v":2789},{"$f":"HLOOKUP(U$7,$I$66:$DJ$120,ROWS($A$10:$A32)+2,FALSE)","v":1108},{"$f":"HLOOKUP(V$7,$I$66:$DJ$120,ROWS($A$10:$A32)+2,FALSE)","v":188},{"$f":"HLOOKUP(W$7,$I$66:$DJ$120,ROWS($A$10:$A32)+2,FALSE)","v":2886},{"$f":"HLOOKUP(X$7,$I$66:$DJ$120,ROWS($A$10:$A32)+2,FALSE)","v":677},{"$f":"HLOOKUP(Y$7,$I$66:$DJ$120,ROWS($A$10:$A32)+2,FALSE)","v":151},{"$f":"HLOOKUP(Z$7,$I$66:$DJ$120,ROWS($A$10:$A32)+2,FALSE)","v":565},{"$f":"HLOOKUP(AA$7,$I$66:$DJ$120,ROWS($A$10:$A32)+2,FALSE)","v":52},{"$f":"HLOOKUP(AB$7,$I$66:$DJ$120,ROWS($A$10:$A32)+2,FALSE)","v":1556},{"$f":"HLOOKUP(AC$7,$I$66:$DJ$120,ROWS($A$10:$A32)+2,FALSE)","v":3907},{"$f":"HLOOKUP(AD$7,$I$66:$DJ$120,ROWS($A$10:$A32)+2,FALSE)","v":2381},{"$f":"HLOOKUP(AE$7,$I$66:$DJ$120,ROWS($A$10:$A32)+2,FALSE)","v":"N/A"},{"$f":"HLOOKUP(AF$7,$I$66:$DJ$120,ROWS($A$10:$A32)+2,FALSE)","v":1337},{"$f":"HLOOKUP(AG$7,$I$66:$DJ$120,ROWS($A$10:$A32)+2,FALSE)","v":966},{"$f":"HLOOKUP(AH$7,$I$66:$DJ$120,ROWS($A$10:$A32)+2,FALSE)","v":155},{"$f":"HLOOKUP(AI$7,$I$66:$DJ$120,ROWS($A$10:$A32)+2,FALSE)","v":453},{"$f":"HLOOKUP(AJ$7,$I$66:$DJ$120,ROWS($A$10:$A32)+2,FALSE)","v":49},{"$f":"HLOOKUP(AK$7,$I$66:$DJ$120,ROWS($A$10:$A32)+2,FALSE)","v":182},{"$f":"HLOOKUP(AL$7,$I$66:$DJ$120,ROWS($A$10:$A32)+2,FALSE)","v":787},{"$f":"HLOOKUP(AM$7,$I$66:$DJ$120,ROWS($A$10:$A32)+2,FALSE)","v":13331},{"$f":"HLOOKUP(AN$7,$I$66:$DJ$120,ROWS($A$10:$A32)+2,FALSE)","v":8046},{"$f":"HLOOKUP(AO$7,$I$66:$DJ$120,ROWS($A$10:$A32)+2,FALSE)","v":521},{"$f":"HLOOKUP(AP$7,$I$66:$DJ$120,ROWS($A$10:$A32)+2,FALSE)","v":19467},{"$f":"HLOOKUP(AQ$7,$I$66:$DJ$120,ROWS($A$10:$A32)+2,FALSE)","v":2514},{"$f":"HLOOKUP(AR$7,$I$66:$DJ$120,ROWS($A$10:$A32)+2,FALSE)","v":81},{"$f":"HLOOKUP(AS$7,$I$66:$DJ$120,ROWS($A$10:$A32)+2,FALSE)","v":1829},{"$f":"HLOOKUP(AT$7,$I$66:$DJ$120,ROWS($A$10:$A32)+2,FALSE)","v":297},{"$f":"HLOOKUP(AU$7,$I$66:$DJ$120,ROWS($A$10:$A32)+2,FALSE)","v":1528},{"$f":"HLOOKUP(AV$7,$I$66:$DJ$120,ROWS($A$10:$A32)+2,FALSE)","v":8236},{"$f":"HLOOKUP(AW$7,$I$66:$DJ$120,ROWS($A$10:$A32)+2,FALSE)","v":6863},{"$f":"HLOOKUP(AX$7,$I$66:$DJ$120,ROWS($A$10:$A32)+2,FALSE)","v":2477},{"$f":"HLOOKUP(AY$7,$I$66:$DJ$120,ROWS($A$10:$A32)+2,FALSE)","v":194},{"$f":"HLOOKUP(AZ$7,$I$66:$DJ$120,ROWS($A$10:$A32)+2,FALSE)","v":823},{"$f":"HLOOKUP(BA$7,$I$66:$DJ$120,ROWS($A$10:$A32)+2,FALSE)","v":3694},{"$f":"HLOOKUP(BB$7,$I$66:$DJ$120,ROWS($A$10:$A32)+2,FALSE)","v":1027},{"$f":"HLOOKUP(BC$7,$I$66:$DJ$120,ROWS($A$10:$A32)+2,FALSE)","v":2534},{"$f":"HLOOKUP(BD$7,$I$66:$DJ$120,ROWS($A$10:$A32)+2,FALSE)","v":4098},{"$f":"HLOOKUP(BE$7,$I$66:$DJ$120,ROWS($A$10:$A32)+2,FALSE)","v":1653},{"$f":"HLOOKUP(BF$7,$I$66:$DJ$120,ROWS($A$10:$A32)+2,FALSE)","v":385},{"$f":"HLOOKUP(BG$7,$I$66:$DJ$120,ROWS($A$10:$A32)+2,FALSE)","v":584},{"$f":"HLOOKUP(BH$7,$I$66:$DJ$120,ROWS($A$10:$A32)+2,FALSE)","v":264},{"$f":"HLOOKUP(BI$7,$I$66:$DJ$120,ROWS($A$10:$A32)+2,FALSE)","v":4056},{"$f":"HLOOKUP(BJ$7+0.5,$I$66:$DJ$120,ROWS($A$10:$A32)+2,FALSE)","v":7863},{"$f":"HLOOKUP(BK$7+0.5,$I$66:$DJ$120,ROWS($A$10:$A32)+2,FALSE)","v":622},{"$f":"HLOOKUP(BL$7+0.5,$I$66:$DJ$120,ROWS($A$10:$A32)+2,FALSE)","v":600},{"$f":"HLOOKUP(BM$7+0.5,$I$66:$DJ$120,ROWS($A$10:$A32)+2,FALSE)","v":979},{"$f":"HLOOKUP(BN$7+0.5,$I$66:$DJ$120,ROWS($A$10:$A32)+2,FALSE)","v":340},{"$f":"HLOOKUP(BO$7+0.5,$I$66:$DJ$120,ROWS($A$10:$A32)+2,FALSE)","v":2994},{"$f":"HLOOKUP(BP$7+0.5,$I$66:$DJ$120,ROWS($A$10:$A32)+2,FALSE)","v":438},{"$f":"HLOOKUP(BQ$7+0.5,$I$66:$DJ$120,ROWS($A$10:$A32)+2,FALSE)","v":2062},{"$f":"HLOOKUP(BR$7+0.5,$I$66:$DJ$120,ROWS($A$10:$A32)+2,FALSE)","v":505},{"$f":"HLOOKUP(BS$7+0.5,$I$66:$DJ$120,ROWS($A$10:$A32)+2,FALSE)","v":219},{"$f":"HLOOKUP(BT$7+0.5,$I$66:$DJ$120,ROWS($A$10:$A32)+2,FALSE)","v":2568},{"$f":"HLOOKUP(BU$7+0.5,$I$66:$DJ$120,ROWS($A$10:$A32)+2,FALSE)","v":1129},{"$f":"HLOOKUP(BV$7+0.5,$I$66:$DJ$120,ROWS($A$10:$A32)+2,FALSE)","v":564},{"$f":"HLOOKUP(BW$7+0.5,$I$66:$DJ$120,ROWS($A$10:$A32)+2,FALSE)","v":164},{"$f":"HLOOKUP(BX$7+0.5,$I$66:$DJ$120,ROWS($A$10:$A32)+2,FALSE)","v":1041},{"$f":"HLOOKUP(BY$7+0.5,$I$66:$DJ$120,ROWS($A$10:$A32)+2,FALSE)","v":497},{"$f":"HLOOKUP(BZ$7+0.5,$I$66:$DJ$120,ROWS($A$10:$A32)+2,FALSE)","v":251},{"$f":"HLOOKUP(CA$7+0.5,$I$66:$DJ$120,ROWS($A$10:$A32)+2,FALSE)","v":429},{"$f":"HLOOKUP(CB$7+0.5,$I$66:$DJ$120,ROWS($A$10:$A32)+2,FALSE)","v":87},{"$f":"HLOOKUP(CC$7+0.5,$I$66:$DJ$120,ROWS($A$10:$A32)+2,FALSE)","v":742},{"$f":"HLOOKUP(CD$7+0.5,$I$66:$DJ$120,ROWS($A$10:$A32)+2,FALSE)","v":1349},{"$f":"HLOOKUP(CE$7+0.5,$I$66:$DJ$120,ROWS($A$10:$A32)+2,FALSE)","v":895},{"$f":"HLOOKUP(CF$7+0.5,$I$66:$DJ$120,ROWS($A$10:$A32)+2,FALSE)","v":"N/A"},{"$f":"HLOOKUP(CG$7+0.5,$I$66:$DJ$120,ROWS($A$10:$A32)+2,FALSE)","v":680},{"$f":"HLOOKUP(CH$7+0.5,$I$66:$DJ$120,ROWS($A$10:$A32)+2,FALSE)","v":367},{"$f":"HLOOKUP(CI$7+0.5,$I$66:$DJ$120,ROWS($A$10:$A32)+2,FALSE)","v":186},{"$f":"HLOOKUP(CJ$7+0.5,$I$66:$DJ$120,ROWS($A$10:$A32)+2,FALSE)","v":218},{"$f":"HLOOKUP(CK$7+0.5,$I$66:$DJ$120,ROWS($A$10:$A32)+2,FALSE)","v":81},{"$f":"HLOOKUP(CL$7+0.5,$I$66:$DJ$120,ROWS($A$10:$A32)+2,FALSE)","v":189},{"$f":"HLOOKUP(CM$7+0.5,$I$66:$DJ$120,ROWS($A$10:$A32)+2,FALSE)","v":544},{"$f":"HLOOKUP(CN$7+0.5,$I$66:$DJ$120,ROWS($A$10:$A32)+2,FALSE)","v":2144},{"$f":"HLOOKUP(CO$7+0.5,$I$66:$DJ$120,ROWS($A$10:$A32)+2,FALSE)","v":1874},{"$f":"HLOOKUP(CP$7+0.5,$I$66:$DJ$120,ROWS($A$10:$A32)+2,FALSE)","v":364},{"$f":"HLOOKUP(CQ$7+0.5,$I$66:$DJ$120,ROWS($A$10:$A32)+2,FALSE)","v":2432},{"$f":"HLOOKUP(CR$7+0.5,$I$66:$DJ$120,ROWS($A$10:$A32)+2,FALSE)","v":1003},{"$f":"HLOOKUP(CS$7+0.5,$I$66:$DJ$120,ROWS($A$10:$A32)+2,FALSE)","v":133},{"$f":"HLOOKUP(CT$7+0.5,$I$66:$DJ$120,ROWS($A$10:$A32)+2,FALSE)","v":772},{"$f":"HLOOKUP(CU$7+0.5,$I$66:$DJ$120,ROWS($A$10:$A32)+2,FALSE)","v":206},{"$f":"HLOOKUP(CV$7+0.5,$I$66:$DJ$120,ROWS($A$10:$A32)+2,FALSE)","v":1359},{"$f":"HLOOKUP(CW$7+0.5,$I$66:$DJ$120,ROWS($A$10:$A32)+2,FALSE)","v":1924},{"$f":"HLOOKUP(CX$7+0.5,$I$66:$DJ$120,ROWS($A$10:$A32)+2,FALSE)","v":1317},{"$f":"HLOOKUP(CY$7+0.5,$I$66:$DJ$120,ROWS($A$10:$A32)+2,FALSE)","v":1120},{"$f":"HLOOKUP(CZ$7+0.5,$I$66:$DJ$120,ROWS($A$10:$A32)+2,FALSE)","v":326},{"$f":"HLOOKUP(DA$7+0.5,$I$66:$DJ$120,ROWS($A$10:$A32)+2,FALSE)","v":342},{"$f":"HLOOKUP(DB$7+0.5,$I$66:$DJ$120,ROWS($A$10:$A32)+2,FALSE)","v":1078},{"$f":"HLOOKUP(DC$7+0.5,$I$66:$DJ$120,ROWS($A$10:$A32)+2,FALSE)","v":666},{"$f":"HLOOKUP(DD$7+0.5,$I$66:$DJ$120,ROWS($A$10:$A32)+2,FALSE)","v":913},{"$f":"HLOOKUP(DE$7+0.5,$I$66:$DJ$120,ROWS($A$10:$A32)+2,FALSE)","v":1470},{"$f":"HLOOKUP(DF$7+0.5,$I$66:$DJ$120,ROWS($A$10:$A32)+2,FALSE)","v":696},{"$f":"HLOOKUP(DG$7+0.5,$I$66:$DJ$120,ROWS($A$10:$A32)+2,FALSE)","v":569},{"$f":"HLOOKUP(DH$7+0.5,$I$66:$DJ$120,ROWS($A$10:$A32)+2,FALSE)","v":445},{"$f":"HLOOKUP(DI$7+0.5,$I$66:$DJ$120,ROWS($A$10:$A32)+2,FALSE)","v":404},{"$f":"HLOOKUP(DJ$7+0.5,$I$66:$DJ$120,ROWS($A$10:$A32)+2,FALSE)","v":1883}]
[null,"Michigan",9778980,4263,8330990,24803,1268105,23226,{"$f":"HLOOKUP(I$7,$I$66:$DJ$120,ROWS($A$10:$A33)+2,FALSE)","v":133981},{"$f":"HLOOKUP(J$7,$I$66:$DJ$120,ROWS($A$10:$A33)+2,FALSE)","v":2341},{"$f":"HLOOKUP(K$7,$I$66:$DJ$120,ROWS($A$10:$A33)+2,FALSE)","v":1152},{"$f":"HLOOKUP(L$7,$I$66:$DJ$120,ROWS($A$10:$A33)+2,FALSE)","v":7168},{"$f":"HLOOKUP(M$7,$I$66:$DJ$120,ROWS($A$10:$A33)+2,FALSE)","v":906},{"$f":"HLOOKUP(N$7,$I$66:$DJ$120,ROWS($A$10:$A33)+2,FALSE)","v":8085},{"$f":"HLOOKUP(O$7,$I$66:$DJ$120,ROWS($A$10:$A33)+2,FALSE)","v":2363},{"$f":"HLOOKUP(P$7,$I$66:$DJ$120,ROWS($A$10:$A33)+2,FALSE)","v":798},{"$f":"HLOOKUP(Q$7,$I$66:$DJ$120,ROWS($A$10:$A33)+2,FALSE)","v":114},{"$f":"HLOOKUP(R$7,$I$66:$DJ$120,ROWS($A$10:$A33)+2,FALSE)","v":274},{"$f":"HLOOKUP(S$7,$I$66:$DJ$120,ROWS($A$10:$A33)+2,FALSE)","v":13146},{"$f":"HLOOKUP(T$7,$I$66:$DJ$120,ROWS($A$10:$A33)+2,FALSE)","v":4270},{"$f":"HLOOKUP(U$7,$I$66:$DJ$120,ROWS($A$10:$A33)+2,FALSE)","v":291},{"$f":"HLOOKUP(V$7,$I$66:$DJ$120,ROWS($A$10:$A33)+2,FALSE)","v":242},{"$f":"HLOOKUP(W$7,$I$66:$DJ$120,ROWS($A$10:$A33)+2,FALSE)","v":10047},{"$f":"HLOOKUP(X$7,$I$66:$DJ$120,ROWS($A$10:$A33)+2,FALSE)","v":10976},{"$f":"HLOOKUP(Y$7,$I$66:$DJ$120,ROWS($A$10:$A33)+2,FALSE)","v":993},{"$f":"HLOOKUP(Z$7,$I$66:$DJ$120,ROWS($A$10:$A33)+2,FALSE)","v":805},{"$f":"HLOOKUP(AA$7,$I$66:$DJ$120,ROWS($A$10:$A33)+2,FALSE)","v":3409},{"$f":"HLOOKUP(AB$7,$I$66:$DJ$120,ROWS($A$10:$A33)+2,FALSE)","v":1284},{"$f":"HLOOKUP(AC$7,$I$66:$DJ$120,ROWS($A$10:$A33)+2,FALSE)","v":261},{"$f":"HLOOKUP(AD$7,$I$66:$DJ$120,ROWS($A$10:$A33)+2,FALSE)","v":2201},{"$f":"HLOOKUP(AE$7,$I$66:$DJ$120,ROWS($A$10:$A33)+2,FALSE)","v":1720},{"$f":"HLOOKUP(AF$7,$I$66:$DJ$120,ROWS($A$10:$A33)+2,FALSE)","v":"N/A"},{"$f":"HLOOKUP(AG$7,$I$66:$DJ$120,ROWS($A$10:$A33)+2,FALSE)","v":1127},{"$f":"HLOOKUP(AH$7,$I$66:$DJ$120,ROWS($A$10:$A33)+2,FALSE)","v":922},{"$f":"HLOOKUP(AI$7,$I$66:$DJ$120,ROWS($A$10:$A33)+2,FALSE)","v":2206},{"$f":"HLOOKUP(AJ$7,$I$66:$DJ$120,ROWS($A$10:$A33)+2,FALSE)","v":218},{"$f":"HLOOKUP(AK$7,$I$66:$DJ$120,ROWS($A$10:$A33)+2,FALSE)","v":113},{"$f":"HLOOKUP(AL$7,$I$66:$DJ$120,ROWS($A$10:$A33)+2,FALSE)","v":1354},{"$f":"HLOOKUP(AM$7,$I$66:$DJ$120,ROWS($A$10:$A33)+2,FALSE)","v":446},{"$f":"HLOOKUP(AN$7,$I$66:$DJ$120,ROWS($A$10:$A33)+2,FALSE)","v":1617},{"$f":"HLOOKUP(AO$7,$I$66:$DJ$120,ROWS($A$10:$A33)+2,FALSE)","v":1318},{"$f":"HLOOKUP(AP$7,$I$66:$DJ$120,ROWS($A$10:$A33)+2,FALSE)","v":5731},{"$f":"HLOOKUP(AQ$7,$I$66:$DJ$120,ROWS($A$10:$A33)+2,FALSE)","v":3912},{"$f":"HLOOKUP(AR$7,$I$66:$DJ$120,ROWS($A$10:$A33)+2,FALSE)","v":265},{"$f":"HLOOKUP(AS$7,$I$66:$DJ$120,ROWS($A$10:$A33)+2,FALSE)","v":11318},{"$f":"HLOOKUP(AT$7,$I$66:$DJ$120,ROWS($A$10:$A33)+2,FALSE)","v":705},{"$f":"HLOOKUP(AU$7,$I$66:$DJ$120,ROWS($A$10:$A33)+2,FALSE)","v":811},{"$f":"HLOOKUP(AV$7,$I$66:$DJ$120,ROWS($A$10:$A33)+2,FALSE)","v":2739},{"$f":"HLOOKUP(AW$7,$I$66:$DJ$120,ROWS($A$10:$A33)+2,FALSE)","v":68},{"$f":"HLOOKUP(AX$7,$I$66:$DJ$120,ROWS($A$10:$A33)+2,FALSE)","v":1822},{"$f":"HLOOKUP(AY$7,$I$66:$DJ$120,ROWS($A$10:$A33)+2,FALSE)","v":66},{"$f":"HLOOKUP(AZ$7,$I$66:$DJ$120,ROWS($A$10:$A33)+2,FALSE)","v":3259},{"$f":"HLOOKUP(BA$7,$I$66:$DJ$120,ROWS($A$10:$A33)+2,FALSE)","v":8638},{"$f":"HLOOKUP(BB$7,$I$66:$DJ$120,ROWS($A$10:$A33)+2,FALSE)","v":819},{"$f":"HLOOKUP(BC$7,$I$66:$DJ$120,ROWS($A$10:$A33)+2,FALSE)","v":60},{"$f":"HLOOKUP(BD$7,$I$66:$DJ$120,ROWS($A$10:$A33)+2,FALSE)","v":3057},{"$f":"HLOOKUP(BE$7,$I$66:$DJ$120,ROWS($A$10:$A33)+2,FALSE)","v":2146},{"$f":"HLOOKUP(BF$7,$I$66:$DJ$120,ROWS($A$10:$A33)+2,FALSE)","v":353},{"$f":"HLOOKUP(BG$7,$I$66:$DJ$120,ROWS($A$10:$A33)+2,FALSE)","v":4768},{"$f":"HLOOKUP(BH$7,$I$66:$DJ$120,ROWS($A$10:$A33)+2,FALSE)","v":1277},{"$f":"HLOOKUP(BI$7,$I$66:$DJ$120,ROWS($A$10:$A33)+2,FALSE)","v":782},{"$f":"HLOOKUP(BJ$7+0.5,$I$66:$DJ$120,ROWS($A$10:$A33)+2,FALSE)","v":8566},{"$f":"HLOOKUP(BK$7+0.5,$I$66:$DJ$120,ROWS($A$10:$A33)+2,FALSE)","v":1013},{"$f":"HLOOKUP(BL$7+0.5,$I$66:$DJ$120,ROWS($A$10:$A33)+2,FALSE)","v":685},{"$f":"HLOOKUP(BM$7+0.5,$I$66:$DJ$120,ROWS($A$10:$A33)+2,FALSE)","v":3100},{"$f":"HLOOKUP(BN$7+0.5,$I$66:$DJ$120,ROWS($A$10:$A33)+2,FALSE)","v":559},{"$f":"HLOOKUP(BO$7+0.5,$I$66:$DJ$120,ROWS($A$10:$A33)+2,FALSE)","v":1721},{"$f":"HLOOKUP(BP$7+0.5,$I$66:$DJ$120,ROWS($A$10:$A33)+2,FALSE)","v":967},{"$f":"HLOOKUP(BQ$7+0.5,$I$66:$DJ$120,ROWS($A$10:$A33)+2,FALSE)","v":506},{"$f":"HLOOKUP(BR$7+0.5,$I$66:$DJ$120,ROWS($A$10:$A33)+2,FALSE)","v":164},{"$f":"HLOOKUP(BS$7+0.5,$I$66:$DJ$120,ROWS($A$10:$A33)+2,FALSE)","v":282},{"$f":"HLOOKUP(BT$7+0.5,$I$66:$DJ$120,ROWS($A$10:$A33)+2,FALSE)","v":3306},{"$f":"HLOOKUP(BU$7+0.5,$I$66:$DJ$120,ROWS($A$10:$A33)+2,FALSE)","v":1652},{"$f":"HLOOKUP(BV$7+0.5,$I$66:$DJ$120,ROWS($A$10:$A33)+2,FALSE)","v":238},{"$f":"HLOOKUP(BW$7+0.5,$I$66:$DJ$120,ROWS($A$10:$A33)+2,FALSE)","v":371},{"$f":"HLOOKUP(BX$7+0.5,$I$66:$DJ$120,ROWS($A$10:$A33)+2,FALSE)","v":1702},{"$f":"HLOOKUP(BY$7+0.5,$I$66:$DJ$120,ROWS($A$10:$A33)+2,FALSE)","v":2324},{"$f":"HLOOKUP(BZ$7+0.5,$I$66:$DJ$120,ROWS($A$10:$A33)+2,FALSE)","v":495},{"$f":"HLOOKUP(CA$7+0.5,$I$66:$DJ$120,ROWS($A$10:$A33)+2,FALSE)","v":608},{"$f":"HLOOKUP(CB$7+0.5,$I$66:$DJ$120,ROWS($A$10:$A33)+2,FALSE)","v":1388},{"$f":"HLOOKUP(CC$7+0.5,$I$66:$DJ$120,ROWS($A$10:$A33)+2,FALSE)","v":662},{"$f":"HLOOKUP(CD$7+0.5,$I$66:$DJ$120,ROWS($A$10:$A33)+2,FALSE)","v":218},{"$f":"HLOOKUP(CE$7+0.5,$I$66:$DJ$120,ROWS($A$10:$A33)+2,FALSE)","v":1094},{"$f":"HLOOKUP(CF$7+0.5,$I$66:$DJ$120,ROWS($A$10:$A33)+2,FALSE)","v":764},{"$f":"HLOOKUP(CG$7+0.5,$I$66:$DJ$120,ROWS($A$10:$A33)+2,FALSE)","v":"N/A"},{"$f":"HLOOKUP(CH$7+0.5,$I$66:$DJ$120,ROWS($A$10:$A33)+2,FALSE)","v":512},{"$f":"HLOOKUP(CI$7+0.5,$I$66:$DJ$120,ROWS($A$10:$A33)+2,FALSE)","v":671},{"$f":"HLOOKUP(CJ$7+0.5,$I$66:$DJ$120,ROWS($A$10:$A33)+2,FALSE)","v":695},{"$f":"HLOOKUP(CK$7+0.5,$I$66:$DJ$120,ROWS($A$10:$A33)+2,FALSE)","v":171},{"$f":"HLOOKUP(CL$7+0.5,$I$66:$DJ$120,ROWS($A$10:$A33)+2,FALSE)","v":137},{"$f":"HLOOKUP(CM$7+0.5,$I$66:$DJ$120,ROWS($A$10:$A33)+2,FALSE)","v":715},{"$f":"HLOOKUP(CN$7+0.5,$I$66:$DJ$120,ROWS($A$10:$A33)+2,FALSE)","v":342},{"$f":"HLOOKUP(CO$7+0.5,$I$66:$DJ$120,ROWS($A$10:$A33)+2,FALSE)","v":721},{"$f":"HLOOKUP(CP$7+0.5,$I$66:$DJ$120,ROWS($A$10:$A33)+2,FALSE)","v":685},{"$f":"HLOOKUP(CQ$7+0.5,$I$66:$DJ$120,ROWS($A$10:$A33)+2,FALSE)","v":1680},{"$f":"HLOOKUP(CR$7+0.5,$I$66:$DJ$120,ROWS($A$10:$A33)+2,FALSE)","v":1056},{"$f":"HLOOKUP(CS$7+0.5,$I$66:$DJ$120,ROWS($A$10:$A33)+2,FALSE)","v":202},{"$f":"HLOOKUP(CT$7+0.5,$I$66:$DJ$120,ROWS($A$10:$A33)+2,FALSE)","v":2251},{"$f":"HLOOKUP(CU$7+0.5,$I$66:$DJ$120,ROWS($A$10:$A33)+2,FALSE)","v":307},{"$f":"HLOOKUP(CV$7+0.5,$I$66:$DJ$120,ROWS($A$10:$A33)+2,FALSE)","v":440},{"$f":"HLOOKUP(CW$7+0.5,$I$66:$DJ$120,ROWS($A$10:$A33)+2,FALSE)","v":686},{"$f":"HLOOKUP(CX$7+0.5,$I$66:$DJ$120,ROWS($A$10:$A33)+2,FALSE)","v":114},{"$f":"HLOOKUP(CY$7+0.5,$I$66:$DJ$120,ROWS($A$10:$A33)+2,FALSE)","v":797},{"$f":"HLOOKUP(CZ$7+0.5,$I$66:$DJ$120,ROWS($A$10:$A33)+2,FALSE)","v":77},{"$f":"HLOOKUP(DA$7+0.5,$I$66:$DJ$120,ROWS($A$10:$A33)+2,FALSE)","v":997},{"$f":"HLOOKUP(DB$7+0.5,$I$66:$DJ$120,ROWS($A$10:$A33)+2,FALSE)","v":2574},{"$f":"HLOOKUP(DC$7+0.5,$I$66:$DJ$120,ROWS($A$10:$A33)+2,FALSE)","v":534},{"$f":"HLOOKUP(DD$7+0.5,$I$66:$DJ$120,ROWS($A$10:$A33)+2,FALSE)","v":120},{"$f":"HLOOKUP(DE$7+0.5,$I$66:$DJ$120,ROWS($A$10:$A33)+2,FALSE)","v":855},{"$f":"HLOOKUP(DF$7+0.5,$I$66:$DJ$120,ROWS($A$10:$A33)+2,FALSE)","v":839},{"$f":"HLOOKUP(DG$7+0.5,$I$66:$DJ$120,ROWS($A$10:$A33)+2,FALSE)","v":279},{"$f":"HLOOKUP(DH$7+0.5,$I$66:$DJ$120,ROWS($A$10:$A33)+2,FALSE)","v":1111},{"$f":"HLOOKUP(DI$7+0.5,$I$66:$DJ$120,ROWS($A$10:$A33)+2,FALSE)","v":862},{"$f":"HLOOKUP(DJ$7+0.5,$I$66:$DJ$120,ROWS($A$10:$A33)+2,FALSE)","v":797}]
[null,"Minnesota",5315228,2787,4536303,18312,653012,17074,{"$f":"HLOOKUP(I$7,$I$66:$DJ$120,ROWS($A$10:$A34)+2,FALSE)","v":101042},{"$f":"HLOOKUP(J$7,$I$66:$DJ$120,ROWS($A$10:$A34)+2,FALSE)","v":1299},{"$f":"HLOOKUP(K$7,$I$66:$DJ$120,ROWS($A$10:$A34)+2,FALSE)","v":523},{"$f":"HLOOKUP(L$7,$I$66:$DJ$120,ROWS($A$10:$A34)+2,FALSE)","v":3065},{"$f":"HLOOKUP(M$7,$I$66:$DJ$120,ROWS($A$10:$A34)+2,FALSE)","v":375},{"$f":"HLOOKUP(N$7,$I$66:$DJ$120,ROWS($A$10:$A34)+2,FALSE)","v":8086},{"$f":"HLOOKUP(O$7,$I$66:$DJ$120,ROWS($A$10:$A34)+2,FALSE)","v":3565},{"$f":"HLOOKUP(P$7,$I$66:$DJ$120,ROWS($A$10:$A34)+2,FALSE)","v":696},{"$f":"HLOOKUP(Q$7,$I$66:$DJ$120,ROWS($A$10:$A34)+2,FALSE)","v":0},{"$f":"HLOOKUP(R$7,$I$66:$DJ$120,ROWS($A$10:$A34)+2,FALSE)","v":310},{"$f":"HLOOKUP(S$7,$I$66:$DJ$120,ROWS($A$10:$A34)+2,FALSE)","v":2372},{"$f":"HLOOKUP(T$7,$I$66:$DJ$120,ROWS($A$10:$A34)+2,FALSE)","v":2235},{"$f":"HLOOKUP(U$7,$I$66:$DJ$120,ROWS($A$10:$A34)+2,FALSE)","v":1277},{"$f":"HLOOKUP(V$7,$I$66:$DJ$120,ROWS($A$10:$A34)+2,FALSE)","v":575},{"$f":"HLOOKUP(W$7,$I$66:$DJ$120,ROWS($A$10:$A34)+2,FALSE)","v":5896},{"$f":"HLOOKUP(X$7,$I$66:$DJ$120,ROWS($A$10:$A34)+2,FALSE)","v":2026},{"$f":"HLOOKUP(Y$7,$I$66:$DJ$120,ROWS($A$10:$A34)+2,FALSE)","v":7220},{"$f":"HLOOKUP(Z$7,$I$66:$DJ$120,ROWS($A$10:$A34)+2,FALSE)","v":924},{"$f":"HLOOKUP(AA$7,$I$66:$DJ$120,ROWS($A$10:$A34)+2,FALSE)","v":57},{"$f":"HLOOKUP(AB$7,$I$66:$DJ$120,ROWS($A$10:$A34)+2,FALSE)","v":791},{"$f":"HLOOKUP(AC$7,$I$66:$DJ$120,ROWS($A$10:$A34)+2,FALSE)","v":187},{"$f":"HLOOKUP(AD$7,$I$66:$DJ$120,ROWS($A$10:$A34)+2,FALSE)","v":1841},{"$f":"HLOOKUP(AE$7,$I$66:$DJ$120,ROWS($A$10:$A34)+2,FALSE)","v":814},{"$f":"HLOOKUP(AF$7,$I$66:$DJ$120,ROWS($A$10:$A34)+2,FALSE)","v":2212},{"$f":"HLOOKUP(AG$7,$I$66:$DJ$120,ROWS($A$10:$A34)+2,FALSE)","v":"N/A"},{"$f":"HLOOKUP(AH$7,$I$66:$DJ$120,ROWS($A$10:$A34)+2,FALSE)","v":202},{"$f":"HLOOKUP(AI$7,$I$66:$DJ$120,ROWS($A$10:$A34)+2,FALSE)","v":1709},{"$f":"HLOOKUP(AJ$7,$I$66:$DJ$120,ROWS($A$10:$A34)+2,FALSE)","v":1257},{"$f":"HLOOKUP(AK$7,$I$66:$DJ$120,ROWS($A$10:$A34)+2,FALSE)","v":992},{"$f":"HLOOKUP(AL$7,$I$66:$DJ$120,ROWS($A$10:$A34)+2,FALSE)","v":932},{"$f":"HLOOKUP(AM$7,$I$66:$DJ$120,ROWS($A$10:$A34)+2,FALSE)","v":0},{"$f":"HLOOKUP(AN$7,$I$66:$DJ$120,ROWS($A$10:$A34)+2,FALSE)","v":1038},{"$f":"HLOOKUP(AO$7,$I$66:$DJ$120,ROWS($A$10:$A34)+2,FALSE)","v":322},{"$f":"HLOOKUP(AP$7,$I$66:$DJ$120,ROWS($A$10:$A34)+2,FALSE)","v":1849},{"$f":"HLOOKUP(AQ$7,$I$66:$DJ$120,ROWS($A$10:$A34)+2,FALSE)","v":1745},{"$f":"HLOOKUP(AR$7,$I$66:$DJ$120,ROWS($A$10:$A34)+2,FALSE)","v":6672},{"$f":"HLOOKUP(AS$7,$I$66:$DJ$120,ROWS($A$10:$A34)+2,FALSE)","v":2635},{"$f":"HLOOKUP(AT$7,$I$66:$DJ$120,ROWS($A$10:$A34)+2,FALSE)","v":1212},{"$f":"HLOOKUP(AU$7,$I$66:$DJ$120,ROWS($A$10:$A34)+2,FALSE)","v":781},{"$f":"HLOOKUP(AV$7,$I$66:$DJ$120,ROWS($A$10:$A34)+2,FALSE)","v":1106},{"$f":"HLOOKUP(AW$7,$I$66:$DJ$120,ROWS($A$10:$A34)+2,FALSE)","v":299},{"$f":"HLOOKUP(AX$7,$I$66:$DJ$120,ROWS($A$10:$A34)+2,FALSE)","v":1705},{"$f":"HLOOKUP(AY$7,$I$66:$DJ$120,ROWS($A$10:$A34)+2,FALSE)","v":3442},{"$f":"HLOOKUP(AZ$7,$I$66:$DJ$120,ROWS($A$10:$A34)+2,FALSE)","v":1738},{"$f":"HLOOKUP(BA$7,$I$66:$DJ$120,ROWS($A$10:$A34)+2,FALSE)","v":4001},{"$f":"HLOOKUP(BB$7,$I$66:$DJ$120,ROWS($A$10:$A34)+2,FALSE)","v":429},{"$f":"HLOOKUP(BC$7,$I$66:$DJ$120,ROWS($A$10:$A34)+2,FALSE)","v":77},{"$f":"HLOOKUP(BD$7,$I$66:$DJ$120,ROWS($A$10:$A34)+2,FALSE)","v":1037},{"$f":"HLOOKUP(BE$7,$I$66:$DJ$120,ROWS($A$10:$A34)+2,FALSE)","v":1685},{"$f":"HLOOKUP(BF$7,$I$66:$DJ$120,ROWS($A$10:$A34)+2,FALSE)","v":0},{"$f":"HLOOKUP(BG$7,$I$66:$DJ$120,ROWS($A$10:$A34)+2,FALSE)","v":17618},{"$f":"HLOOKUP(BH$7,$I$66:$DJ$120,ROWS($A$10:$A34)+2,FALSE)","v":213},{"$f":"HLOOKUP(BI$7,$I$66:$DJ$120,ROWS($A$10:$A34)+2,FALSE)","v":134},{"$f":"HLOOKUP(BJ$7+0.5,$I$66:$DJ$120,ROWS($A$10:$A34)+2,FALSE)","v":6534},{"$f":"HLOOKUP(BK$7+0.5,$I$66:$DJ$120,ROWS($A$10:$A34)+2,FALSE)","v":919},{"$f":"HLOOKUP(BL$7+0.5,$I$66:$DJ$120,ROWS($A$10:$A34)+2,FALSE)","v":312},{"$f":"HLOOKUP(BM$7+0.5,$I$66:$DJ$120,ROWS($A$10:$A34)+2,FALSE)","v":861},{"$f":"HLOOKUP(BN$7+0.5,$I$66:$DJ$120,ROWS($A$10:$A34)+2,FALSE)","v":222},{"$f":"HLOOKUP(BO$7+0.5,$I$66:$DJ$120,ROWS($A$10:$A34)+2,FALSE)","v":2263},{"$f":"HLOOKUP(BP$7+0.5,$I$66:$DJ$120,ROWS($A$10:$A34)+2,FALSE)","v":1095},{"$f":"HLOOKUP(BQ$7+0.5,$I$66:$DJ$120,ROWS($A$10:$A34)+2,FALSE)","v":360},{"$f":"HLOOKUP(BR$7+0.5,$I$66:$DJ$120,ROWS($A$10:$A34)+2,FALSE)","v":139},{"$f":"HLOOKUP(BS$7+0.5,$I$66:$DJ$120,ROWS($A$10:$A34)+2,FALSE)","v":353},{"$f":"HLOOKUP(BT$7+0.5,$I$66:$DJ$120,ROWS($A$10:$A34)+2,FALSE)","v":752},{"$f":"HLOOKUP(BU$7+0.5,$I$66:$DJ$120,ROWS($A$10:$A34)+2,FALSE)","v":1482},{"$f":"HLOOKUP(BV$7+0.5,$I$66:$DJ$120,ROWS($A$10:$A34)+2,FALSE)","v":1179},{"$f":"HLOOKUP(BW$7+0.5,$I$66:$DJ$120,ROWS($A$10:$A34)+2,FALSE)","v":531},{"$f":"HLOOKUP(BX$7+0.5,$I$66:$DJ$120,ROWS($A$10:$A34)+2,FALSE)","v":1405},{"$f":"HLOOKUP(BY$7+0.5,$I$66:$DJ$120,ROWS($A$10:$A34)+2,FALSE)","v":1057},{"$f":"HLOOKUP(BZ$7+0.5,$I$66:$DJ$120,ROWS($A$10:$A34)+2,FALSE)","v":1774},{"$f":"HLOOKUP(CA$7+0.5,$I$66:$DJ$120,ROWS($A$10:$A34)+2,FALSE)","v":513},{"$f":"HLOOKUP(CB$7+0.5,$I$66:$DJ$120,ROWS($A$10:$A34)+2,FALSE)","v":103},{"$f":"HLOOKUP(CC$7+0.5,$I$66:$DJ$120,ROWS($A$10:$A34)+2,FALSE)","v":858},{"$f":"HLOOKUP(CD$7+0.5,$I$66:$DJ$120,ROWS($A$10:$A34)+2,FALSE)","v":136},{"$f":"HLOOKUP(CE$7+0.5,$I$66:$DJ$120,ROWS($A$10:$A34)+2,FALSE)","v":2080},{"$f":"HLOOKUP(CF$7+0.5,$I$66:$DJ$120,ROWS($A$10:$A34)+2,FALSE)","v":434},{"$f":"HLOOKUP(CG$7+0.5,$I$66:$DJ$120,ROWS($A$10:$A34)+2,FALSE)","v":822},{"$f":"HLOOKUP(CH$7+0.5,$I$66:$DJ$120,ROWS($A$10:$A34)+2,FALSE)","v":"N/A"},{"$f":"HLOOKUP(CI$7+0.5,$I$66:$DJ$120,ROWS($A$10:$A34)+2,FALSE)","v":323},{"$f":"HLOOKUP(CJ$7+0.5,$I$66:$DJ$120,ROWS($A$10:$A34)+2,FALSE)","v":750},{"$f":"HLOOKUP(CK$7+0.5,$I$66:$DJ$120,ROWS($A$10:$A34)+2,FALSE)","v":900},{"$f":"HLOOKUP(CL$7+0.5,$I$66:$DJ$120,ROWS($A$10:$A34)+2,FALSE)","v":477},{"$f":"HLOOKUP(CM$7+0.5,$I$66:$DJ$120,ROWS($A$10:$A34)+2,FALSE)","v":542},{"$f":"HLOOKUP(CN$7+0.5,$I$66:$DJ$120,ROWS($A$10:$A34)+2,FALSE)","v":139},{"$f":"HLOOKUP(CO$7+0.5,$I$66:$DJ$120,ROWS($A$10:$A34)+2,FALSE)","v":546},{"$f":"HLOOKUP(CP$7+0.5,$I$66:$DJ$120,ROWS($A$10:$A34)+2,FALSE)","v":224},{"$f":"HLOOKUP(CQ$7+0.5,$I$66:$DJ$120,ROWS($A$10:$A34)+2,FALSE)","v":732},{"$f":"HLOOKUP(CR$7+0.5,$I$66:$DJ$120,ROWS($A$10:$A34)+2,FALSE)","v":956},{"$f":"HLOOKUP(CS$7+0.5,$I$66:$DJ$120,ROWS($A$10:$A34)+2,FALSE)","v":1485},{"$f":"HLOOKUP(CT$7+0.5,$I$66:$DJ$120,ROWS($A$10:$A34)+2,FALSE)","v":1248},{"$f":"HLOOKUP(CU$7+0.5,$I$66:$DJ$120,ROWS($A$10:$A34)+2,FALSE)","v":894},{"$f":"HLOOKUP(CV$7+0.5,$I$66:$DJ$120,ROWS($A$10:$A34)+2,FALSE)","v":513},{"$f":"HLOOKUP(CW$7+0.5,$I$66:$DJ$120,ROWS($A$10:$A34)+2,FALSE)","v":570},{"$f":"HLOOKUP(CX$7+0.5,$I$66:$DJ$120,ROWS($A$10:$A34)+2,FALSE)","v":226},{"$f":"HLOOKUP(CY$7+0.5,$I$66:$DJ$120,ROWS($A$10:$A34)+2,FALSE)","v":1448},{"$f":"HLOOKUP(CZ$7+0.5,$I$66:$DJ$120,ROWS($A$10:$A34)+2,FALSE)","v":990},{"$f":"HLOOKUP(DA$7+0.5,$I$66:$DJ$120,ROWS($A$10:$A34)+2,FALSE)","v":1141},{"$f":"HLOOKUP(DB$7+0.5,$I$66:$DJ$120,ROWS($A$10:$A34)+2,FALSE)","v":1244},{"$f":"HLOOKUP(DC$7+0.5,$I$66:$DJ$120,ROWS($A$10:$A34)+2,FALSE)","v":312},{"$f":"HLOOKUP(DD$7+0.5,$I$66:$DJ$120,ROWS($A$10:$A34)+2,FALSE)","v":126},{"$f":"HLOOKUP(DE$7+0.5,$I$66:$DJ$120,ROWS($A$10:$A34)+2,FALSE)","v":434},{"$f":"HLOOKUP(DF$7+0.5,$I$66:$DJ$120,ROWS($A$10:$A34)+2,FALSE)","v":678},{"$f":"HLOOKUP(DG$7+0.5,$I$66:$DJ$120,ROWS($A$10:$A34)+2,FALSE)","v":139},{"$f":"HLOOKUP(DH$7+0.5,$I$66:$DJ$120,ROWS($A$10:$A34)+2,FALSE)","v":2358},{"$f":"HLOOKUP(DI$7+0.5,$I$66:$DJ$120,ROWS($A$10:$A34)+2,FALSE)","v":213},{"$f":"HLOOKUP(DJ$7+0.5,$I$66:$DJ$120,ROWS($A$10:$A34)+2,FALSE)","v":136}]
[null,"Mississippi",2947696,2744,2529377,17940,339807,16126,{"$f":"HLOOKUP(I$7,$I$66:$DJ$120,ROWS($A$10:$A35)+2,FALSE)","v":73500},{"$f":"HLOOKUP(J$7,$I$66:$DJ$120,ROWS($A$10:$A35)+2,FALSE)","v":5141},{"$f":"HLOOKUP(K$7,$I$66:$DJ$120,ROWS($A$10:$A35)+2,FALSE)","v":0},{"$f":"HLOOKUP(L$7,$I$66:$DJ$120,ROWS($A$10:$A35)+2,FALSE)","v":710},{"$f":"HLOOKUP(M$7,$I$66:$DJ$120,ROWS($A$10:$A35)+2,FALSE)","v":2680},{"$f":"HLOOKUP(N$7,$I$66:$DJ$120,ROWS($A$10:$A35)+2,FALSE)","v":4371},{"$f":"HLOOKUP(O$7,$I$66:$DJ$120,ROWS($A$10:$A35)+2,FALSE)","v":799},{"$f":"HLOOKUP(P$7,$I$66:$DJ$120,ROWS($A$10:$A35)+2,FALSE)","v":106},{"$f":"HLOOKUP(Q$7,$I$66:$DJ$120,ROWS($A$10:$A35)+2,FALSE)","v":0},{"$f":"HLOOKUP(R$7,$I$66:$DJ$120,ROWS($A$10:$A35)+2,FALSE)","v":97},{"$f":"HLOOKUP(S$7,$I$66:$DJ$120,ROWS($A$10:$A35)+2,FALSE)","v":4676},{"$f":"HLOOKUP(T$7,$I$66:$DJ$120,ROWS($A$10:$A35)+2,FALSE)","v":2669},{"$f":"HLOOKUP(U$7,$I$66:$DJ$120,ROWS($A$10:$A35)+2,FALSE)","v":184},{"$f":"HLOOKUP(V$7,$I$66:$DJ$120,ROWS($A$10:$A35)+2,FALSE)","v":586},{"$f":"HLOOKUP(W$7,$I$66:$DJ$120,ROWS($A$10:$A35)+2,FALSE)","v":2703},{"$f":"HLOOKUP(X$7,$I$66:$DJ$120,ROWS($A$10:$A35)+2,FALSE)","v":1200},{"$f":"HLOOKUP(Y$7,$I$66:$DJ$120,ROWS($A$10:$A35)+2,FALSE)","v":160},{"$f":"HLOOKUP(Z$7,$I$66:$DJ$120,ROWS($A$10:$A35)+2,FALSE)","v":400},{"$f":"HLOOKUP(AA$7,$I$66:$DJ$120,ROWS($A$10:$A35)+2,FALSE)","v":446},{"$f":"HLOOKUP(AB$7,$I$66:$DJ$120,ROWS($A$10:$A35)+2,FALSE)","v":8588},{"$f":"HLOOKUP(AC$7,$I$66:$DJ$120,ROWS($A$10:$A35)+2,FALSE)","v":163},{"$f":"HLOOKUP(AD$7,$I$66:$DJ$120,ROWS($A$10:$A35)+2,FALSE)","v":379},{"$f":"HLOOKUP(AE$7,$I$66:$DJ$120,ROWS($A$10:$A35)+2,FALSE)","v":67},{"$f":"HLOOKUP(AF$7,$I$66:$DJ$120,ROWS($A$10:$A35)+2,FALSE)","v":1768},{"$f":"HLOOKUP(AG$7,$I$66:$DJ$120,ROWS($A$10:$A35)+2,FALSE)","v":568},{"$f":"HLOOKUP(AH$7,$I$66:$DJ$120,ROWS($A$10:$A35)+2,FALSE)","v":"N/A"},{"$f":"HLOOKUP(AI$7,$I$66:$DJ$120,ROWS($A$10:$A35)+2,FALSE)","v":2634},{"$f":"HLOOKUP(AJ$7,$I$66:$DJ$120,ROWS($A$10:$A35)+2,FALSE)","v":166},{"$f":"HLOOKUP(AK$7,$I$66:$DJ$120,ROWS($A$10:$A35)+2,FALSE)","v":138},{"$f":"HLOOKUP(AL$7,$I$66:$DJ$120,ROWS($A$10:$A35)+2,FALSE)","v":526},{"$f":"HLOOKUP(AM$7,$I$66:$DJ$120,ROWS($A$10:$A35)+2,FALSE)","v":60},{"$f":"HLOOKUP(AN$7,$I$66:$DJ$120,ROWS($A$10:$A35)+2,FALSE)","v":2127},{"$f":"HLOOKUP(AO$7,$I$66:$DJ$120,ROWS($A$10:$A35)+2,FALSE)","v":86},{"$f":"HLOOKUP(AP$7,$I$66:$DJ$120,ROWS($A$10:$A35)+2,FALSE)","v":1492},{"$f":"HLOOKUP(AQ$7,$I$66:$DJ$120,ROWS($A$10:$A35)+2,FALSE)","v":1709},{"$f":"HLOOKUP(AR$7,$I$66:$DJ$120,ROWS($A$10:$A35)+2,FALSE)","v":98},{"$f":"HLOOKUP(AS$7,$I$66:$DJ$120,ROWS($A$10:$A35)+2,FALSE)","v":896},{"$f":"HLOOKUP(AT$7,$I$66:$DJ$120,ROWS($A$10:$A35)+2,FALSE)","v":562},{"$f":"HLOOKUP(AU$7,$I$66:$DJ$120,ROWS($A$10:$A35)+2,FALSE)","v":465},{"$f":"HLOOKUP(AV$7,$I$66:$DJ$120,ROWS($A$10:$A35)+2,FALSE)","v":613},{"$f":"HLOOKUP(AW$7,$I$66:$DJ$120,ROWS($A$10:$A35)+2,FALSE)","v":185},{"$f":"HLOOKUP(AX$7,$I$66:$DJ$120,ROWS($A$10:$A35)+2,FALSE)","v":596},{"$f":"HLOOKUP(AY$7,$I$66:$DJ$120,ROWS($A$10:$A35)+2,FALSE)","v":79},{"$f":"HLOOKUP(AZ$7,$I$66:$DJ$120,ROWS($A$10:$A35)+2,FALSE)","v":11643},{"$f":"HLOOKUP(BA$7,$I$66:$DJ$120,ROWS($A$10:$A35)+2,FALSE)","v":7230},{"$f":"HLOOKUP(BB$7,$I$66:$DJ$120,ROWS($A$10:$A35)+2,FALSE)","v":454},{"$f":"HLOOKUP(BC$7,$I$66:$DJ$120,ROWS($A$10:$A35)+2,FALSE)","v":0},{"$f":"HLOOKUP(BD$7,$I$66:$DJ$120,ROWS($A$10:$A35)+2,FALSE)","v":1929},{"$f":"HLOOKUP(BE$7,$I$66:$DJ$120,ROWS($A$10:$A35)+2,FALSE)","v":433},{"$f":"HLOOKUP(BF$7,$I$66:$DJ$120,ROWS($A$10:$A35)+2,FALSE)","v":0},{"$f":"HLOOKUP(BG$7,$I$66:$DJ$120,ROWS($A$10:$A35)+2,FALSE)","v":611},{"$f":"HLOOKUP(BH$7,$I$66:$DJ$120,ROWS($A$10:$A35)+2,FALSE)","v":307},{"$f":"HLOOKUP(BI$7,$I$66:$DJ$120,ROWS($A$10:$A35)+2,FALSE)","v":81},{"$f":"HLOOKUP(BJ$7+0.5,$I$66:$DJ$120,ROWS($A$10:$A35)+2,FALSE)","v":7080},{"$f":"HLOOKUP(BK$7+0.5,$I$66:$DJ$120,ROWS($A$10:$A35)+2,FALSE)","v":1870},{"$f":"HLOOKUP(BL$7+0.5,$I$66:$DJ$120,ROWS($A$10:$A35)+2,FALSE)","v":198},{"$f":"HLOOKUP(BM$7+0.5,$I$66:$DJ$120,ROWS($A$10:$A35)+2,FALSE)","v":509},{"$f":"HLOOKUP(BN$7+0.5,$I$66:$DJ$120,ROWS($A$10:$A35)+2,FALSE)","v":1447},{"$f":"HLOOKUP(BO$7+0.5,$I$66:$DJ$120,ROWS($A$10:$A35)+2,FALSE)","v":1070},{"$f":"HLOOKUP(BP$7+0.5,$I$66:$DJ$120,ROWS($A$10:$A35)+2,FALSE)","v":426},{"$f":"HLOOKUP(BQ$7+0.5,$I$66:$DJ$120,ROWS($A$10:$A35)+2,FALSE)","v":147},{"$f":"HLOOKUP(BR$7+0.5,$I$66:$DJ$120,ROWS($A$10:$A35)+2,FALSE)","v":198},{"$f":"HLOOKUP(BS$7+0.5,$I$66:$DJ$120,ROWS($A$10:$A35)+2,FALSE)","v":164},{"$f":"HLOOKUP(BT$7+0.5,$I$66:$DJ$120,ROWS($A$10:$A35)+2,FALSE)","v":1396},{"$f":"HLOOKUP(BU$7+0.5,$I$66:$DJ$120,ROWS($A$10:$A35)+2,FALSE)","v":865},{"$f":"HLOOKUP(BV$7+0.5,$I$66:$DJ$120,ROWS($A$10:$A35)+2,FALSE)","v":191},{"$f":"HLOOKUP(BW$7+0.5,$I$66:$DJ$120,ROWS($A$10:$A35)+2,FALSE)","v":597},{"$f":"HLOOKUP(BX$7+0.5,$I$66:$DJ$120,ROWS($A$10:$A35)+2,FALSE)","v":933},{"$f":"HLOOKUP(BY$7+0.5,$I$66:$DJ$120,ROWS($A$10:$A35)+2,FALSE)","v":621},{"$f":"HLOOKUP(BZ$7+0.5,$I$66:$DJ$120,ROWS($A$10:$A35)+2,FALSE)","v":275},{"$f":"HLOOKUP(CA$7+0.5,$I$66:$DJ$120,ROWS($A$10:$A35)+2,FALSE)","v":339},{"$f":"HLOOKUP(CB$7+0.5,$I$66:$DJ$120,ROWS($A$10:$A35)+2,FALSE)","v":276},{"$f":"HLOOKUP(CC$7+0.5,$I$66:$DJ$120,ROWS($A$10:$A35)+2,FALSE)","v":2293},{"$f":"HLOOKUP(CD$7+0.5,$I$66:$DJ$120,ROWS($A$10:$A35)+2,FALSE)","v":167},{"$f":"HLOOKUP(CE$7+0.5,$I$66:$DJ$120,ROWS($A$10:$A35)+2,FALSE)","v":262},{"$f":"HLOOKUP(CF$7+0.5,$I$66:$DJ$120,ROWS($A$10:$A35)+2,FALSE)","v":113},{"$f":"HLOOKUP(CG$7+0.5,$I$66:$DJ$120,ROWS($A$10:$A35)+2,FALSE)","v":1071},{"$f":"HLOOKUP(CH$7+0.5,$I$66:$DJ$120,ROWS($A$10:$A35)+2,FALSE)","v":385},{"$f":"HLOOKUP(CI$7+0.5,$I$66:$DJ$120,ROWS($A$10:$A35)+2,FALSE)","v":"N/A"},{"$f":"HLOOKUP(CJ$7+0.5,$I$66:$DJ$120,ROWS($A$10:$A35)+2,FALSE)","v":1581},{"$f":"HLOOKUP(CK$7+0.5,$I$66:$DJ$120,ROWS($A$10:$A35)+2,FALSE)","v":168},{"$f":"HLOOKUP(CL$7+0.5,$I$66:$DJ$120,ROWS($A$10:$A35)+2,FALSE)","v":159},{"$f":"HLOOKUP(CM$7+0.5,$I$66:$DJ$120,ROWS($A$10:$A35)+2,FALSE)","v":342},{"$f":"HLOOKUP(CN$7+0.5,$I$66:$DJ$120,ROWS($A$10:$A35)+2,FALSE)","v":117},{"$f":"HLOOKUP(CO$7+0.5,$I$66:$DJ$120,ROWS($A$10:$A35)+2,FALSE)","v":1495},{"$f":"HLOOKUP(CP$7+0.5,$I$66:$DJ$120,ROWS($A$10:$A35)+2,FALSE)","v":102},{"$f":"HLOOKUP(CQ$7+0.5,$I$66:$DJ$120,ROWS($A$10:$A35)+2,FALSE)","v":660},{"$f":"HLOOKUP(CR$7+0.5,$I$66:$DJ$120,ROWS($A$10:$A35)+2,FALSE)","v":609},{"$f":"HLOOKUP(CS$7+0.5,$I$66:$DJ$120,ROWS($A$10:$A35)+2,FALSE)","v":118},{"$f":"HLOOKUP(CT$7+0.5,$I$66:$DJ$120,ROWS($A$10:$A35)+2,FALSE)","v":703},{"$f":"HLOOKUP(CU$7+0.5,$I$66:$DJ$120,ROWS($A$10:$A35)+2,FALSE)","v":352},{"$f":"HLOOKUP(CV$7+0.5,$I$66:$DJ$120,ROWS($A$10:$A35)+2,FALSE)","v":768},{"$f":"HLOOKUP(CW$7+0.5,$I$66:$DJ$120,ROWS($A$10:$A35)+2,FALSE)","v":434},{"$f":"HLOOKUP(CX$7+0.5,$I$66:$DJ$120,ROWS($A$10:$A35)+2,FALSE)","v":229},{"$f":"HLOOKUP(CY$7+0.5,$I$66:$DJ$120,ROWS($A$10:$A35)+2,FALSE)","v":469},{"$f":"HLOOKUP(CZ$7+0.5,$I$66:$DJ$120,ROWS($A$10:$A35)+2,FALSE)","v":129},{"$f":"HLOOKUP(DA$7+0.5,$I$66:$DJ$120,ROWS($A$10:$A35)+2,FALSE)","v":2856},{"$f":"HLOOKUP(DB$7+0.5,$I$66:$DJ$120,ROWS($A$10:$A35)+2,FALSE)","v":2491},{"$f":"HLOOKUP(DC$7+0.5,$I$66:$DJ$120,ROWS($A$10:$A35)+2,FALSE)","v":724},{"$f":"HLOOKUP(DD$7+0.5,$I$66:$DJ$120,ROWS($A$10:$A35)+2,FALSE)","v":198},{"$f":"HLOOKUP(DE$7+0.5,$I$66:$DJ$120,ROWS($A$10:$A35)+2,FALSE)","v":1285},{"$f":"HLOOKUP(DF$7+0.5,$I$66:$DJ$120,ROWS($A$10:$A35)+2,FALSE)","v":309},{"$f":"HLOOKUP(DG$7+0.5,$I$66:$DJ$120,ROWS($A$10:$A35)+2,FALSE)","v":198},{"$f":"HLOOKUP(DH$7+0.5,$I$66:$DJ$120,ROWS($A$10:$A35)+2,FALSE)","v":521},{"$f":"HLOOKUP(DI$7+0.5,$I$66:$DJ$120,ROWS($A$10:$A35)+2,FALSE)","v":287},{"$f":"HLOOKUP(DJ$7+0.5,$I$66:$DJ$120,ROWS($A$10:$A35)+2,FALSE)","v":108}]
[null,"Missouri",5951913,3866,4965459,21306,801093,19635,{"$f":"HLOOKUP(I$7,$I$66:$DJ$120,ROWS($A$10:$A36)+2,FALSE)","v":162930},{"$f":"HLOOKUP(J$7,$I$66:$DJ$120,ROWS($A$10:$A36)+2,FALSE)","v":1333},{"$f":"HLOOKUP(K$7,$I$66:$DJ$120,ROWS($A$10:$A36)+2,FALSE)","v":2186},{"$f":"HLOOKUP(L$7,$I$66:$DJ$120,ROWS($A$10:$A36)+2,FALSE)","v":2297},{"$f":"HLOOKUP(M$7,$I$66:$DJ$120,ROWS($A$10:$A36)+2,FALSE)","v":9434},{"$f":"HLOOKUP(N$7,$I$66:$DJ$120,ROWS($A$10:$A36)+2,FALSE)","v":10717},{"$f":"HLOOKUP(O$7,$I$66:$DJ$120,ROWS($A$10:$A36)+2,FALSE)","v":3798},{"$f":"HLOOKUP(P$7,$I$66:$DJ$120,ROWS($A$10:$A36)+2,FALSE)","v":410},{"$f":"HLOOKUP(Q$7,$I$66:$DJ$120,ROWS($A$10:$A36)+2,FALSE)","v":234},{"$f":"HLOOKUP(R$7,$I$66:$DJ$120,ROWS($A$10:$A36)+2,FALSE)","v":144},{"$f":"HLOOKUP(S$7,$I$66:$DJ$120,ROWS($A$10:$A36)+2,FALSE)","v":8374},{"$f":"HLOOKUP(T$7,$I$66:$DJ$120,ROWS($A$10:$A36)+2,FALSE)","v":3451},{"$f":"HLOOKUP(U$7,$I$66:$DJ$120,ROWS($A$10:$A36)+2,FALSE)","v":2114},{"$f":"HLOOKUP(V$7,$I$66:$DJ$120,ROWS($A$10:$A36)+2,FALSE)","v":596},{"$f":"HLOOKUP(W$7,$I$66:$DJ$120,ROWS($A$10:$A36)+2,FALSE)","v":22001},{"$f":"HLOOKUP(X$7,$I$66:$DJ$120,ROWS($A$10:$A36)+2,FALSE)","v":4184},{"$f":"HLOOKUP(Y$7,$I$66:$DJ$120,ROWS($A$10:$A36)+2,FALSE)","v":5956},{"$f":"HLOOKUP(Z$7,$I$66:$DJ$120,ROWS($A$10:$A36)+2,FALSE)","v":20218},{"$f":"HLOOKUP(AA$7,$I$66:$DJ$120,ROWS($A$10:$A36)+2,FALSE)","v":2291},{"$f":"HLOOKUP(AB$7,$I$66:$DJ$120,ROWS($A$10:$A36)+2,FALSE)","v":1178},{"$f":"HLOOKUP(AC$7,$I$66:$DJ$120,ROWS($A$10:$A36)+2,FALSE)","v":996},{"$f":"HLOOKUP(AD$7,$I$66:$DJ$120,ROWS($A$10:$A36)+2,FALSE)","v":1246},{"$f":"HLOOKUP(AE$7,$I$66:$DJ$120,ROWS($A$10:$A36)+2,FALSE)","v":810},{"$f":"HLOOKUP(AF$7,$I$66:$DJ$120,ROWS($A$10:$A36)+2,FALSE)","v":2964},{"$f":"HLOOKUP(AG$7,$I$66:$DJ$120,ROWS($A$10:$A36)+2,FALSE)","v":2798},{"$f":"HLOOKUP(AH$7,$I$66:$DJ$120,ROWS($A$10:$A36)+2,FALSE)","v":1110},{"$f":"HLOOKUP(AI$7,$I$66:$DJ$120,ROWS($A$10:$A36)+2,FALSE)","v":"N/A"},{"$f":"HLOOKUP(AJ$7,$I$66:$DJ$120,ROWS($A$10:$A36)+2,FALSE)","v":511},{"$f":"HLOOKUP(AK$7,$I$66:$DJ$120,ROWS($A$10:$A36)+2,FALSE)","v":1999},{"$f":"HLOOKUP(AL$7,$I$66:$DJ$120,ROWS($A$10:$A36)+2,FALSE)","v":836},{"$f":"HLOOKUP(AM$7,$I$66:$DJ$120,ROWS($A$10:$A36)+2,FALSE)","v":35},{"$f":"HLOOKUP(AN$7,$I$66:$DJ$120,ROWS($A$10:$A36)+2,FALSE)","v":960},{"$f":"HLOOKUP(AO$7,$I$66:$DJ$120,ROWS($A$10:$A36)+2,FALSE)","v":451},{"$f":"HLOOKUP(AP$7,$I$66:$DJ$120,ROWS($A$10:$A36)+2,FALSE)","v":2834},{"$f":"HLOOKUP(AQ$7,$I$66:$DJ$120,ROWS($A$10:$A36)+2,FALSE)","v":3988},{"$f":"HLOOKUP(AR$7,$I$66:$DJ$120,ROWS($A$10:$A36)+2,FALSE)","v":636},{"$f":"HLOOKUP(AS$7,$I$66:$DJ$120,ROWS($A$10:$A36)+2,FALSE)","v":3557},{"$f":"HLOOKUP(AT$7,$I$66:$DJ$120,ROWS($A$10:$A36)+2,FALSE)","v":5298},{"$f":"HLOOKUP(AU$7,$I$66:$DJ$120,ROWS($A$10:$A36)+2,FALSE)","v":1186},{"$f":"HLOOKUP(AV$7,$I$66:$DJ$120,ROWS($A$10:$A36)+2,FALSE)","v":1535},{"$f":"HLOOKUP(AW$7,$I$66:$DJ$120,ROWS($A$10:$A36)+2,FALSE)","v":361},{"$f":"HLOOKUP(AX$7,$I$66:$DJ$120,ROWS($A$10:$A36)+2,FALSE)","v":2856},{"$f":"HLOOKUP(AY$7,$I$66:$DJ$120,ROWS($A$10:$A36)+2,FALSE)","v":527},{"$f":"HLOOKUP(AZ$7,$I$66:$DJ$120,ROWS($A$10:$A36)+2,FALSE)","v":3122},{"$f":"HLOOKUP(BA$7,$I$66:$DJ$120,ROWS($A$10:$A36)+2,FALSE)","v":9278},{"$f":"HLOOKUP(BB$7,$I$66:$DJ$120,ROWS($A$10:$A36)+2,FALSE)","v":3287},{"$f":"HLOOKUP(BC$7,$I$66:$DJ$120,ROWS($A$10:$A36)+2,FALSE)","v":318},{"$f":"HLOOKUP(BD$7,$I$66:$DJ$120,ROWS($A$10:$A36)+2,FALSE)","v":2609},{"$f":"HLOOKUP(BE$7,$I$66:$DJ$120,ROWS($A$10:$A36)+2,FALSE)","v":2312},{"$f":"HLOOKUP(BF$7,$I$66:$DJ$120,ROWS($A$10:$A36)+2,FALSE)","v":148},{"$f":"HLOOKUP(BG$7,$I$66:$DJ$120,ROWS($A$10:$A36)+2,FALSE)","v":2636},{"$f":"HLOOKUP(BH$7,$I$66:$DJ$120,ROWS($A$10:$A36)+2,FALSE)","v":810},{"$f":"HLOOKUP(BI$7,$I$66:$DJ$120,ROWS($A$10:$A36)+2,FALSE)","v":826},{"$f":"HLOOKUP(BJ$7+0.5,$I$66:$DJ$120,ROWS($A$10:$A36)+2,FALSE)","v":8034},{"$f":"HLOOKUP(BK$7+0.5,$I$66:$DJ$120,ROWS($A$10:$A36)+2,FALSE)","v":768},{"$f":"HLOOKUP(BL$7+0.5,$I$66:$DJ$120,ROWS($A$10:$A36)+2,FALSE)","v":1289},{"$f":"HLOOKUP(BM$7+0.5,$I$66:$DJ$120,ROWS($A$10:$A36)+2,FALSE)","v":741},{"$f":"HLOOKUP(BN$7+0.5,$I$66:$DJ$120,ROWS($A$10:$A36)+2,FALSE)","v":2224},{"$f":"HLOOKUP(BO$7+0.5,$I$66:$DJ$120,ROWS($A$10:$A36)+2,FALSE)","v":2409},{"$f":"HLOOKUP(BP$7+0.5,$I$66:$DJ$120,ROWS($A$10:$A36)+2,FALSE)","v":1371},{"$f":"HLOOKUP(BQ$7+0.5,$I$66:$DJ$120,ROWS($A$10:$A36)+2,FALSE)","v":331},{"$f":"HLOOKUP(BR$7+0.5,$I$66:$DJ$120,ROWS($A$10:$A36)+2,FALSE)","v":314},{"$f":"HLOOKUP(BS$7+0.5,$I$66:$DJ$120,ROWS($A$10:$A36)+2,FALSE)","v":172},{"$f":"HLOOKUP(BT$7+0.5,$I$66:$DJ$120,ROWS($A$10:$A36)+2,FALSE)","v":1990},{"$f":"HLOOKUP(BU$7+0.5,$I$66:$DJ$120,ROWS($A$10:$A36)+2,FALSE)","v":1391},{"$f":"HLOOKUP(BV$7+0.5,$I$66:$DJ$120,ROWS($A$10:$A36)+2,FALSE)","v":1271},{"$f":"HLOOKUP(BW$7+0.5,$I$66:$DJ$120,ROWS($A$10:$A36)+2,FALSE)","v":478},{"$f":"HLOOKUP(BX$7+0.5,$I$66:$DJ$120,ROWS($A$10:$A36)+2,FALSE)","v":2893},{"$f":"HLOOKUP(BY$7+0.5,$I$66:$DJ$120,ROWS($A$10:$A36)+2,FALSE)","v":1267},{"$f":"HLOOKUP(BZ$7+0.5,$I$66:$DJ$120,ROWS($A$10:$A36)+2,FALSE)","v":1324},{"$f":"HLOOKUP(CA$7+0.5,$I$66:$DJ$120,ROWS($A$10:$A36)+2,FALSE)","v":3673},{"$f":"HLOOKUP(CB$7+0.5,$I$66:$DJ$120,ROWS($A$10:$A36)+2,FALSE)","v":1067},{"$f":"HLOOKUP(CC$7+0.5,$I$66:$DJ$120,ROWS($A$10:$A36)+2,FALSE)","v":651},{"$f":"HLOOKUP(CD$7+0.5,$I$66:$DJ$120,ROWS($A$10:$A36)+2,FALSE)","v":1247},{"$f":"HLOOKUP(CE$7+0.5,$I$66:$DJ$120,ROWS($A$10:$A36)+2,FALSE)","v":717},{"$f":"HLOOKUP(CF$7+0.5,$I$66:$DJ$120,ROWS($A$10:$A36)+2,FALSE)","v":486},{"$f":"HLOOKUP(CG$7+0.5,$I$66:$DJ$120,ROWS($A$10:$A36)+2,FALSE)","v":1169},{"$f":"HLOOKUP(CH$7+0.5,$I$66:$DJ$120,ROWS($A$10:$A36)+2,FALSE)","v":1265},{"$f":"HLOOKUP(CI$7+0.5,$I$66:$DJ$120,ROWS($A$10:$A36)+2,FALSE)","v":532},{"$f":"HLOOKUP(CJ$7+0.5,$I$66:$DJ$120,ROWS($A$10:$A36)+2,FALSE)","v":"N/A"},{"$f":"HLOOKUP(CK$7+0.5,$I$66:$DJ$120,ROWS($A$10:$A36)+2,FALSE)","v":506},{"$f":"HLOOKUP(CL$7+0.5,$I$66:$DJ$120,ROWS($A$10:$A36)+2,FALSE)","v":833},{"$f":"HLOOKUP(CM$7+0.5,$I$66:$DJ$120,ROWS($A$10:$A36)+2,FALSE)","v":366},{"$f":"HLOOKUP(CN$7+0.5,$I$66:$DJ$120,ROWS($A$10:$A36)+2,FALSE)","v":58},{"$f":"HLOOKUP(CO$7+0.5,$I$66:$DJ$120,ROWS($A$10:$A36)+2,FALSE)","v":536},{"$f":"HLOOKUP(CP$7+0.5,$I$66:$DJ$120,ROWS($A$10:$A36)+2,FALSE)","v":309},{"$f":"HLOOKUP(CQ$7+0.5,$I$66:$DJ$120,ROWS($A$10:$A36)+2,FALSE)","v":918},{"$f":"HLOOKUP(CR$7+0.5,$I$66:$DJ$120,ROWS($A$10:$A36)+2,FALSE)","v":1420},{"$f":"HLOOKUP(CS$7+0.5,$I$66:$DJ$120,ROWS($A$10:$A36)+2,FALSE)","v":462},{"$f":"HLOOKUP(CT$7+0.5,$I$66:$DJ$120,ROWS($A$10:$A36)+2,FALSE)","v":1317},{"$f":"HLOOKUP(CU$7+0.5,$I$66:$DJ$120,ROWS($A$10:$A36)+2,FALSE)","v":2199},{"$f":"HLOOKUP(CV$7+0.5,$I$66:$DJ$120,ROWS($A$10:$A36)+2,FALSE)","v":899},{"$f":"HLOOKUP(CW$7+0.5,$I$66:$DJ$120,ROWS($A$10:$A36)+2,FALSE)","v":639},{"$f":"HLOOKUP(CX$7+0.5,$I$66:$DJ$120,ROWS($A$10:$A36)+2,FALSE)","v":582},{"$f":"HLOOKUP(CY$7+0.5,$I$66:$DJ$120,ROWS($A$10:$A36)+2,FALSE)","v":1625},{"$f":"HLOOKUP(CZ$7+0.5,$I$66:$DJ$120,ROWS($A$10:$A36)+2,FALSE)","v":542},{"$f":"HLOOKUP(DA$7+0.5,$I$66:$DJ$120,ROWS($A$10:$A36)+2,FALSE)","v":1350},{"$f":"HLOOKUP(DB$7+0.5,$I$66:$DJ$120,ROWS($A$10:$A36)+2,FALSE)","v":2841},{"$f":"HLOOKUP(DC$7+0.5,$I$66:$DJ$120,ROWS($A$10:$A36)+2,FALSE)","v":1733},{"$f":"HLOOKUP(DD$7+0.5,$I$66:$DJ$120,ROWS($A$10:$A36)+2,FALSE)","v":413},{"$f":"HLOOKUP(DE$7+0.5,$I$66:$DJ$120,ROWS($A$10:$A36)+2,FALSE)","v":1081},{"$f":"HLOOKUP(DF$7+0.5,$I$66:$DJ$120,ROWS($A$10:$A36)+2,FALSE)","v":1093},{"$f":"HLOOKUP(DG$7+0.5,$I$66:$DJ$120,ROWS($A$10:$A36)+2,FALSE)","v":181},{"$f":"HLOOKUP(DH$7+0.5,$I$66:$DJ$120,ROWS($A$10:$A36)+2,FALSE)","v":999},{"$f":"HLOOKUP(DI$7+0.5,$I$66:$DJ$120,ROWS($A$10:$A36)+2,FALSE)","v":452},{"$f":"HLOOKUP(DJ$7+0.5,$I$66:$DJ$120,ROWS($A$10:$A36)+2,FALSE)","v":958}]
[null,"Montana",995544,947,829489,8669,126463,7466,{"$f":"HLOOKUP(I$7,$I$66:$DJ$120,ROWS($A$10:$A37)+2,FALSE)","v":37690},{"$f":"HLOOKUP(J$7,$I$66:$DJ$120,ROWS($A$10:$A37)+2,FALSE)","v":31},{"$f":"HLOOKUP(K$7,$I$66:$DJ$120,ROWS($A$10:$A37)+2,FALSE)","v":726},{"$f":"HLOOKUP(L$7,$I$66:$DJ$120,ROWS($A$10:$A37)+2,FALSE)","v":1548},{"$f":"HLOOKUP(M$7,$I$66:$DJ$120,ROWS($A$10:$A37)+2,FALSE)","v":63},{"$f":"HLOOKUP(N$7,$I$66:$DJ$120,ROWS($A$10:$A37)+2,FALSE)","v":5428},{"$f":"HLOOKUP(O$7,$I$66:$DJ$120,ROWS($A$10:$A37)+2,FALSE)","v":2135},{"$f":"HLOOKUP(P$7,$I$66:$DJ$120,ROWS($A$10:$A37)+2,FALSE)","v":0},{"$f":"HLOOKUP(Q$7,$I$66:$DJ$120,ROWS($A$10:$A37)+2,FALSE)","v":0},{"$f":"HLOOKUP(R$7,$I$66:$DJ$120,ROWS($A$10:$A37)+2,FALSE)","v":0},{"$f":"HLOOKUP(S$7,$I$66:$DJ$120,ROWS($A$10:$A37)+2,FALSE)","v":1875},{"$f":"HLOOKUP(T$7,$I$66:$DJ$120,ROWS($A$10:$A37)+2,FALSE)","v":292},{"$f":"HLOOKUP(U$7,$I$66:$DJ$120,ROWS($A$10:$A37)+2,FALSE)","v":556},{"$f":"HLOOKUP(V$7,$I$66:$DJ$120,ROWS($A$10:$A37)+2,FALSE)","v":3385},{"$f":"HLOOKUP(W$7,$I$66:$DJ$120,ROWS($A$10:$A37)+2,FALSE)","v":542},{"$f":"HLOOKUP(X$7,$I$66:$DJ$120,ROWS($A$10:$A37)+2,FALSE)","v":163},{"$f":"HLOOKUP(Y$7,$I$66:$DJ$120,ROWS($A$10:$A37)+2,FALSE)","v":415},{"$f":"HLOOKUP(Z$7,$I$66:$DJ$120,ROWS($A$10:$A37)+2,FALSE)","v":224},{"$f":"HLOOKUP(AA$7,$I$66:$DJ$120,ROWS($A$10:$A37)+2,FALSE)","v":367},{"$f":"HLOOKUP(AB$7,$I$66:$DJ$120,ROWS($A$10:$A37)+2,FALSE)","v":0},{"$f":"HLOOKUP(AC$7,$I$66:$DJ$120,ROWS($A$10:$A37)+2,FALSE)","v":225},{"$f":"HLOOKUP(AD$7,$I$66:$DJ$120,ROWS($A$10:$A37)+2,FALSE)","v":33},{"$f":"HLOOKUP(AE$7,$I$66:$DJ$120,ROWS($A$10:$A37)+2,FALSE)","v":97},{"$f":"HLOOKUP(AF$7,$I$66:$DJ$120,ROWS($A$10:$A37)+2,FALSE)","v":822},{"$f":"HLOOKUP(AG$7,$I$66:$DJ$120,ROWS($A$10:$A37)+2,FALSE)","v":481},{"$f":"HLOOKUP(AH$7,$I$66:$DJ$120,ROWS($A$10:$A37)+2,FALSE)","v":32},{"$f":"HLOOKUP(AI$7,$I$66:$DJ$120,ROWS($A$10:$A37)+2,FALSE)","v":447},{"$f":"HLOOKUP(AJ$7,$I$66:$DJ$120,ROWS($A$10:$A37)+2,FALSE)","v":"N/A"},{"$f":"HLOOKUP(AK$7,$I$66:$DJ$120,ROWS($A$10:$A37)+2,FALSE)","v":108},{"$f":"HLOOKUP(AL$7,$I$66:$DJ$120,ROWS($A$10:$A37)+2,FALSE)","v":968},{"$f":"HLOOKUP(AM$7,$I$66:$DJ$120,ROWS($A$10:$A37)+2,FALSE)","v":115},{"$f":"HLOOKUP(AN$7,$I$66:$DJ$120,ROWS($A$10:$A37)+2,FALSE)","v":156},{"$f":"HLOOKUP(AO$7,$I$66:$DJ$120,ROWS($A$10:$A37)+2,FALSE)","v":259},{"$f":"HLOOKUP(AP$7,$I$66:$DJ$120,ROWS($A$10:$A37)+2,FALSE)","v":482},{"$f":"HLOOKUP(AQ$7,$I$66:$DJ$120,ROWS($A$10:$A37)+2,FALSE)","v":1082},{"$f":"HLOOKUP(AR$7,$I$66:$DJ$120,ROWS($A$10:$A37)+2,FALSE)","v":977},{"$f":"HLOOKUP(AS$7,$I$66:$DJ$120,ROWS($A$10:$A37)+2,FALSE)","v":402},{"$f":"HLOOKUP(AT$7,$I$66:$DJ$120,ROWS($A$10:$A37)+2,FALSE)","v":1018},{"$f":"HLOOKUP(AU$7,$I$66:$DJ$120,ROWS($A$10:$A37)+2,FALSE)","v":2950},{"$f":"HLOOKUP(AV$7,$I$66:$DJ$120,ROWS($A$10:$A37)+2,FALSE)","v":457},{"$f":"HLOOKUP(AW$7,$I$66:$DJ$120,ROWS($A$10:$A37)+2,FALSE)","v":0},{"$f":"HLOOKUP(AX$7,$I$66:$DJ$120,ROWS($A$10:$A37)+2,FALSE)","v":230},{"$f":"HLOOKUP(AY$7,$I$66:$DJ$120,ROWS($A$10:$A37)+2,FALSE)","v":191},{"$f":"HLOOKUP(AZ$7,$I$66:$DJ$120,ROWS($A$10:$A37)+2,FALSE)","v":45},{"$f":"HLOOKUP(BA$7,$I$66:$DJ$120,ROWS($A$10:$A37)+2,FALSE)","v":1393},{"$f":"HLOOKUP(BB$7,$I$66:$DJ$120,ROWS($A$10:$A37)+2,FALSE)","v":260},{"$f":"HLOOKUP(BC$7,$I$66:$DJ$120,ROWS($A$10:$A37)+2,FALSE)","v":87},{"$f":"HLOOKUP(BD$7,$I$66:$DJ$120,ROWS($A$10:$A37)+2,FALSE)","v":156},{"$f":"HLOOKUP(BE$7,$I$66:$DJ$120,ROWS($A$10:$A37)+2,FALSE)","v":4783},{"$f":"HLOOKUP(BF$7,$I$66:$DJ$120,ROWS($A$10:$A37)+2,FALSE)","v":0},{"$f":"HLOOKUP(BG$7,$I$66:$DJ$120,ROWS($A$10:$A37)+2,FALSE)","v":750},{"$f":"HLOOKUP(BH$7,$I$66:$DJ$120,ROWS($A$10:$A37)+2,FALSE)","v":934},{"$f":"HLOOKUP(BI$7,$I$66:$DJ$120,ROWS($A$10:$A37)+2,FALSE)","v":0},{"$f":"HLOOKUP(BJ$7+0.5,$I$66:$DJ$120,ROWS($A$10:$A37)+2,FALSE)","v":4305},{"$f":"HLOOKUP(BK$7+0.5,$I$66:$DJ$120,ROWS($A$10:$A37)+2,FALSE)","v":55},{"$f":"HLOOKUP(BL$7+0.5,$I$66:$DJ$120,ROWS($A$10:$A37)+2,FALSE)","v":442},{"$f":"HLOOKUP(BM$7+0.5,$I$66:$DJ$120,ROWS($A$10:$A37)+2,FALSE)","v":938},{"$f":"HLOOKUP(BN$7+0.5,$I$66:$DJ$120,ROWS($A$10:$A37)+2,FALSE)","v":102},{"$f":"HLOOKUP(BO$7+0.5,$I$66:$DJ$120,ROWS($A$10:$A37)+2,FALSE)","v":2229},{"$f":"HLOOKUP(BP$7+0.5,$I$66:$DJ$120,ROWS($A$10:$A37)+2,FALSE)","v":896},{"$f":"HLOOKUP(BQ$7+0.5,$I$66:$DJ$120,ROWS($A$10:$A37)+2,FALSE)","v":157},{"$f":"HLOOKUP(BR$7+0.5,$I$66:$DJ$120,ROWS($A$10:$A37)+2,FALSE)","v":157},{"$f":"HLOOKUP(BS$7+0.5,$I$66:$DJ$120,ROWS($A$10:$A37)+2,FALSE)","v":157},{"$f":"HLOOKUP(BT$7+0.5,$I$66:$DJ$120,ROWS($A$10:$A37)+2,FALSE)","v":1029},{"$f":"HLOOKUP(BU$7+0.5,$I$66:$DJ$120,ROWS($A$10:$A37)+2,FALSE)","v":270},{"$f":"HLOOKUP(BV$7+0.5,$I$66:$DJ$120,ROWS($A$10:$A37)+2,FALSE)","v":572},{"$f":"HLOOKUP(BW$7+0.5,$I$66:$DJ$120,ROWS($A$10:$A37)+2,FALSE)","v":1349},{"$f":"HLOOKUP(BX$7+0.5,$I$66:$DJ$120,ROWS($A$10:$A37)+2,FALSE)","v":371},{"$f":"HLOOKUP(BY$7+0.5,$I$66:$DJ$120,ROWS($A$10:$A37)+2,FALSE)","v":164},{"$f":"HLOOKUP(BZ$7+0.5,$I$66:$DJ$120,ROWS($A$10:$A37)+2,FALSE)","v":384},{"$f":"HLOOKUP(CA$7+0.5,$I$66:$DJ$120,ROWS($A$10:$A37)+2,FALSE)","v":268},{"$f":"HLOOKUP(CB$7+0.5,$I$66:$DJ$120,ROWS($A$10:$A37)+2,FALSE)","v":352},{"$f":"HLOOKUP(CC$7+0.5,$I$66:$DJ$120,ROWS($A$10:$A37)+2,FALSE)","v":157},{"$f":"HLOOKUP(CD$7+0.5,$I$66:$DJ$120,ROWS($A$10:$A37)+2,FALSE)","v":269},{"$f":"HLOOKUP(CE$7+0.5,$I$66:$DJ$120,ROWS($A$10:$A37)+2,FALSE)","v":65},{"$f":"HLOOKUP(CF$7+0.5,$I$66:$DJ$120,ROWS($A$10:$A37)+2,FALSE)","v":109},{"$f":"HLOOKUP(CG$7+0.5,$I$66:$DJ$120,ROWS($A$10:$A37)+2,FALSE)","v":760},{"$f":"HLOOKUP(CH$7+0.5,$I$66:$DJ$120,ROWS($A$10:$A37)+2,FALSE)","v":297},{"$f":"HLOOKUP(CI$7+0.5,$I$66:$DJ$120,ROWS($A$10:$A37)+2,FALSE)","v":58},{"$f":"HLOOKUP(CJ$7+0.5,$I$66:$DJ$120,ROWS($A$10:$A37)+2,FALSE)","v":385},{"$f":"HLOOKUP(CK$7+0.5,$I$66:$DJ$120,ROWS($A$10:$A37)+2,FALSE)","v":"N/A"},{"$f":"HLOOKUP(CL$7+0.5,$I$66:$DJ$120,ROWS($A$10:$A37)+2,FALSE)","v":149},{"$f":"HLOOKUP(CM$7+0.5,$I$66:$DJ$120,ROWS($A$10:$A37)+2,FALSE)","v":499},{"$f":"HLOOKUP(CN$7+0.5,$I$66:$DJ$120,ROWS($A$10:$A37)+2,FALSE)","v":177},{"$f":"HLOOKUP(CO$7+0.5,$I$66:$DJ$120,ROWS($A$10:$A37)+2,FALSE)","v":198},{"$f":"HLOOKUP(CP$7+0.5,$I$66:$DJ$120,ROWS($A$10:$A37)+2,FALSE)","v":178},{"$f":"HLOOKUP(CQ$7+0.5,$I$66:$DJ$120,ROWS($A$10:$A37)+2,FALSE)","v":371},{"$f":"HLOOKUP(CR$7+0.5,$I$66:$DJ$120,ROWS($A$10:$A37)+2,FALSE)","v":808},{"$f":"HLOOKUP(CS$7+0.5,$I$66:$DJ$120,ROWS($A$10:$A37)+2,FALSE)","v":604},{"$f":"HLOOKUP(CT$7+0.5,$I$66:$DJ$120,ROWS($A$10:$A37)+2,FALSE)","v":332},{"$f":"HLOOKUP(CU$7+0.5,$I$66:$DJ$120,ROWS($A$10:$A37)+2,FALSE)","v":948},{"$f":"HLOOKUP(CV$7+0.5,$I$66:$DJ$120,ROWS($A$10:$A37)+2,FALSE)","v":1687},{"$f":"HLOOKUP(CW$7+0.5,$I$66:$DJ$120,ROWS($A$10:$A37)+2,FALSE)","v":362},{"$f":"HLOOKUP(CX$7+0.5,$I$66:$DJ$120,ROWS($A$10:$A37)+2,FALSE)","v":157},{"$f":"HLOOKUP(CY$7+0.5,$I$66:$DJ$120,ROWS($A$10:$A37)+2,FALSE)","v":304},{"$f":"HLOOKUP(CZ$7+0.5,$I$66:$DJ$120,ROWS($A$10:$A37)+2,FALSE)","v":142},{"$f":"HLOOKUP(DA$7+0.5,$I$66:$DJ$120,ROWS($A$10:$A37)+2,FALSE)","v":40},{"$f":"HLOOKUP(DB$7+0.5,$I$66:$DJ$120,ROWS($A$10:$A37)+2,FALSE)","v":612},{"$f":"HLOOKUP(DC$7+0.5,$I$66:$DJ$120,ROWS($A$10:$A37)+2,FALSE)","v":261},{"$f":"HLOOKUP(DD$7+0.5,$I$66:$DJ$120,ROWS($A$10:$A37)+2,FALSE)","v":135},{"$f":"HLOOKUP(DE$7+0.5,$I$66:$DJ$120,ROWS($A$10:$A37)+2,FALSE)","v":153},{"$f":"HLOOKUP(DF$7+0.5,$I$66:$DJ$120,ROWS($A$10:$A37)+2,FALSE)","v":1555},{"$f":"HLOOKUP(DG$7+0.5,$I$66:$DJ$120,ROWS($A$10:$A37)+2,FALSE)","v":157},{"$f":"HLOOKUP(DH$7+0.5,$I$66:$DJ$120,ROWS($A$10:$A37)+2,FALSE)","v":425},{"$f":"HLOOKUP(DI$7+0.5,$I$66:$DJ$120,ROWS($A$10:$A37)+2,FALSE)","v":387},{"$f":"HLOOKUP(DJ$7+0.5,$I$66:$DJ$120,ROWS($A$10:$A37)+2,FALSE)","v":157}]
[null,"Nebraska",1829420,2101,1540361,9074,237937,9736,{"$f":"HLOOKUP(I$7,$I$66:$DJ$120,ROWS($A$10:$A38)+2,FALSE)","v":43266},{"$f":"HLOOKUP(J$7,$I$66:$DJ$120,ROWS($A$10:$A38)+2,FALSE)","v":245},{"$f":"HLOOKUP(K$7,$I$66:$DJ$120,ROWS($A$10:$A38)+2,FALSE)","v":626},{"$f":"HLOOKUP(L$7,$I$66:$DJ$120,ROWS($A$10:$A38)+2,FALSE)","v":2406},{"$f":"HLOOKUP(M$7,$I$66:$DJ$120,ROWS($A$10:$A38)+2,FALSE)","v":363},{"$f":"HLOOKUP(N$7,$I$66:$DJ$120,ROWS($A$10:$A38)+2,FALSE)","v":3438},{"$f":"HLOOKUP(O$7,$I$66:$DJ$120,ROWS($A$10:$A38)+2,FALSE)","v":2023},{"$f":"HLOOKUP(P$7,$I$66:$DJ$120,ROWS($A$10:$A38)+2,FALSE)","v":0},{"$f":"HLOOKUP(Q$7,$I$66:$DJ$120,ROWS($A$10:$A38)+2,FALSE)","v":0},{"$f":"HLOOKUP(R$7,$I$66:$DJ$120,ROWS($A$10:$A38)+2,FALSE)","v":0},{"$f":"HLOOKUP(S$7,$I$66:$DJ$120,ROWS($A$10:$A38)+2,FALSE)","v":1368},{"$f":"HLOOKUP(T$7,$I$66:$DJ$120,ROWS($A$10:$A38)+2,FALSE)","v":786},{"$f":"HLOOKUP(U$7,$I$66:$DJ$120,ROWS($A$10:$A38)+2,FALSE)","v":165},{"$f":"HLOOKUP(V$7,$I$66:$DJ$120,ROWS($A$10:$A38)+2,FALSE)","v":315},{"$f":"HLOOKUP(W$7,$I$66:$DJ$120,ROWS($A$10:$A38)+2,FALSE)","v":1193},{"$f":"HLOOKUP(X$7,$I$66:$DJ$120,ROWS($A$10:$A38)+2,FALSE)","v":290},{"$f":"HLOOKUP(Y$7,$I$66:$DJ$120,ROWS($A$10:$A38)+2,FALSE)","v":6815},{"$f":"HLOOKUP(Z$7,$I$66:$DJ$120,ROWS($A$10:$A38)+2,FALSE)","v":3103},{"$f":"HLOOKUP(AA$7,$I$66:$DJ$120,ROWS($A$10:$A38)+2,FALSE)","v":131},{"$f":"HLOOKUP(AB$7,$I$66:$DJ$120,ROWS($A$10:$A38)+2,FALSE)","v":411},{"$f":"HLOOKUP(AC$7,$I$66:$DJ$120,ROWS($A$10:$A38)+2,FALSE)","v":68},{"$f":"HLOOKUP(AD$7,$I$66:$DJ$120,ROWS($A$10:$A38)+2,FALSE)","v":129},{"$f":"HLOOKUP(AE$7,$I$66:$DJ$120,ROWS($A$10:$A38)+2,FALSE)","v":195},{"$f":"HLOOKUP(AF$7,$I$66:$DJ$120,ROWS($A$10:$A38)+2,FALSE)","v":258},{"$f":"HLOOKUP(AG$7,$I$66:$DJ$120,ROWS($A$10:$A38)+2,FALSE)","v":1489},{"$f":"HLOOKUP(AH$7,$I$66:$DJ$120,ROWS($A$10:$A38)+2,FALSE)","v":176},{"$f":"HLOOKUP(AI$7,$I$66:$DJ$120,ROWS($A$10:$A38)+2,FALSE)","v":2223},{"$f":"HLOOKUP(AJ$7,$I$66:$DJ$120,ROWS($A$10:$A38)+2,FALSE)","v":108},{"$f":"HLOOKUP(AK$7,$I$66:$DJ$120,ROWS($A$10:$A38)+2,FALSE)","v":"N/A"},{"$f":"HLOOKUP(AL$7,$I$66:$DJ$120,ROWS($A$10:$A38)+2,FALSE)","v":233},{"$f":"HLOOKUP(AM$7,$I$66:$DJ$120,ROWS($A$10:$A38)+2,FALSE)","v":0},{"$f":"HLOOKUP(AN$7,$I$66:$DJ$120,ROWS($A$10:$A38)+2,FALSE)","v":524},{"$f":"HLOOKUP(AO$7,$I$66:$DJ$120,ROWS($A$10:$A38)+2,FALSE)","v":158},{"$f":"HLOOKUP(AP$7,$I$66:$DJ$120,ROWS($A$10:$A38)+2,FALSE)","v":318},{"$f":"HLOOKUP(AQ$7,$I$66:$DJ$120,ROWS($A$10:$A38)+2,FALSE)","v":874},{"$f":"HLOOKUP(AR$7,$I$66:$DJ$120,ROWS($A$10:$A38)+2,FALSE)","v":497},{"$f":"HLOOKUP(AS$7,$I$66:$DJ$120,ROWS($A$10:$A38)+2,FALSE)","v":563},{"$f":"HLOOKUP(AT$7,$I$66:$DJ$120,ROWS($A$10:$A38)+2,FALSE)","v":587},{"$f":"HLOOKUP(AU$7,$I$66:$DJ$120,ROWS($A$10:$A38)+2,FALSE)","v":106},{"$f":"HLOOKUP(AV$7,$I$66:$DJ$120,ROWS($A$10:$A38)+2,FALSE)","v":702},{"$f":"HLOOKUP(AW$7,$I$66:$DJ$120,ROWS($A$10:$A38)+2,FALSE)","v":0},{"$f":"HLOOKUP(AX$7,$I$66:$DJ$120,ROWS($A$10:$A38)+2,FALSE)","v":456},{"$f":"HLOOKUP(AY$7,$I$66:$DJ$120,ROWS($A$10:$A38)+2,FALSE)","v":2507},{"$f":"HLOOKUP(AZ$7,$I$66:$DJ$120,ROWS($A$10:$A38)+2,FALSE)","v":232},{"$f":"HLOOKUP(BA$7,$I$66:$DJ$120,ROWS($A$10:$A38)+2,FALSE)","v":3130},{"$f":"HLOOKUP(BB$7,$I$66:$DJ$120,ROWS($A$10:$A38)+2,FALSE)","v":229},{"$f":"HLOOKUP(BC$7,$I$66:$DJ$120,ROWS($A$10:$A38)+2,FALSE)","v":79},{"$f":"HLOOKUP(BD$7,$I$66:$DJ$120,ROWS($A$10:$A38)+2,FALSE)","v":1076},{"$f":"HLOOKUP(BE$7,$I$66:$DJ$120,ROWS($A$10:$A38)+2,FALSE)","v":1327},{"$f":"HLOOKUP(BF$7,$I$66:$DJ$120,ROWS($A$10:$A38)+2,FALSE)","v":111},{"$f":"HLOOKUP(BG$7,$I$66:$DJ$120,ROWS($A$10:$A38)+2,FALSE)","v":316},{"$f":"HLOOKUP(BH$7,$I$66:$DJ$120,ROWS($A$10:$A38)+2,FALSE)","v":917},{"$f":"HLOOKUP(BI$7,$I$66:$DJ$120,ROWS($A$10:$A38)+2,FALSE)","v":0},{"$f":"HLOOKUP(BJ$7+0.5,$I$66:$DJ$120,ROWS($A$10:$A38)+2,FALSE)","v":4512},{"$f":"HLOOKUP(BK$7+0.5,$I$66:$DJ$120,ROWS($A$10:$A38)+2,FALSE)","v":275},{"$f":"HLOOKUP(BL$7+0.5,$I$66:$DJ$120,ROWS($A$10:$A38)+2,FALSE)","v":531},{"$f":"HLOOKUP(BM$7+0.5,$I$66:$DJ$120,ROWS($A$10:$A38)+2,FALSE)","v":1120},{"$f":"HLOOKUP(BN$7+0.5,$I$66:$DJ$120,ROWS($A$10:$A38)+2,FALSE)","v":317},{"$f":"HLOOKUP(BO$7+0.5,$I$66:$DJ$120,ROWS($A$10:$A38)+2,FALSE)","v":1425},{"$f":"HLOOKUP(BP$7+0.5,$I$66:$DJ$120,ROWS($A$10:$A38)+2,FALSE)","v":791},{"$f":"HLOOKUP(BQ$7+0.5,$I$66:$DJ$120,ROWS($A$10:$A38)+2,FALSE)","v":149},{"$f":"HLOOKUP(BR$7+0.5,$I$66:$DJ$120,ROWS($A$10:$A38)+2,FALSE)","v":149},{"$f":"HLOOKUP(BS$7+0.5,$I$66:$DJ$120,ROWS($A$10:$A38)+2,FALSE)","v":149},{"$f":"HLOOKUP(BT$7+0.5,$I$66:$DJ$120,ROWS($A$10:$A38)+2,FALSE)","v":978},{"$f":"HLOOKUP(BU$7+0.5,$I$66:$DJ$120,ROWS($A$10:$A38)+2,FALSE)","v":482},{"$f":"HLOOKUP(BV$7+0.5,$I$66:$DJ$120,ROWS($A$10:$A38)+2,FALSE)","v":149},{"$f":"HLOOKUP(BW$7+0.5,$I$66:$DJ$120,ROWS($A$10:$A38)+2,FALSE)","v":374},{"$f":"HLOOKUP(BX$7+0.5,$I$66:$DJ$120,ROWS($A$10:$A38)+2,FALSE)","v":546},{"$f":"HLOOKUP(BY$7+0.5,$I$66:$DJ$120,ROWS($A$10:$A38)+2,FALSE)","v":214},{"$f":"HLOOKUP(BZ$7+0.5,$I$66:$DJ$120,ROWS($A$10:$A38)+2,FALSE)","v":2803},{"$f":"HLOOKUP(CA$7+0.5,$I$66:$DJ$120,ROWS($A$10:$A38)+2,FALSE)","v":822},{"$f":"HLOOKUP(CB$7+0.5,$I$66:$DJ$120,ROWS($A$10:$A38)+2,FALSE)","v":133},{"$f":"HLOOKUP(CC$7+0.5,$I$66:$DJ$120,ROWS($A$10:$A38)+2,FALSE)","v":371},{"$f":"HLOOKUP(CD$7+0.5,$I$66:$DJ$120,ROWS($A$10:$A38)+2,FALSE)","v":90},{"$f":"HLOOKUP(CE$7+0.5,$I$66:$DJ$120,ROWS($A$10:$A38)+2,FALSE)","v":126},{"$f":"HLOOKUP(CF$7+0.5,$I$66:$DJ$120,ROWS($A$10:$A38)+2,FALSE)","v":112},{"$f":"HLOOKUP(CG$7+0.5,$I$66:$DJ$120,ROWS($A$10:$A38)+2,FALSE)","v":197},{"$f":"HLOOKUP(CH$7+0.5,$I$66:$DJ$120,ROWS($A$10:$A38)+2,FALSE)","v":1049},{"$f":"HLOOKUP(CI$7+0.5,$I$66:$DJ$120,ROWS($A$10:$A38)+2,FALSE)","v":132},{"$f":"HLOOKUP(CJ$7+0.5,$I$66:$DJ$120,ROWS($A$10:$A38)+2,FALSE)","v":836},{"$f":"HLOOKUP(CK$7+0.5,$I$66:$DJ$120,ROWS($A$10:$A38)+2,FALSE)","v":156},{"$f":"HLOOKUP(CL$7+0.5,$I$66:$DJ$120,ROWS($A$10:$A38)+2,FALSE)","v":"N/A"},{"$f":"HLOOKUP(CM$7+0.5,$I$66:$DJ$120,ROWS($A$10:$A38)+2,FALSE)","v":178},{"$f":"HLOOKUP(CN$7+0.5,$I$66:$DJ$120,ROWS($A$10:$A38)+2,FALSE)","v":149},{"$f":"HLOOKUP(CO$7+0.5,$I$66:$DJ$120,ROWS($A$10:$A38)+2,FALSE)","v":363},{"$f":"HLOOKUP(CP$7+0.5,$I$66:$DJ$120,ROWS($A$10:$A38)+2,FALSE)","v":187},{"$f":"HLOOKUP(CQ$7+0.5,$I$66:$DJ$120,ROWS($A$10:$A38)+2,FALSE)","v":246},{"$f":"HLOOKUP(CR$7+0.5,$I$66:$DJ$120,ROWS($A$10:$A38)+2,FALSE)","v":414},{"$f":"HLOOKUP(CS$7+0.5,$I$66:$DJ$120,ROWS($A$10:$A38)+2,FALSE)","v":492},{"$f":"HLOOKUP(CT$7+0.5,$I$66:$DJ$120,ROWS($A$10:$A38)+2,FALSE)","v":373},{"$f":"HLOOKUP(CU$7+0.5,$I$66:$DJ$120,ROWS($A$10:$A38)+2,FALSE)","v":408},{"$f":"HLOOKUP(CV$7+0.5,$I$66:$DJ$120,ROWS($A$10:$A38)+2,FALSE)","v":113},{"$f":"HLOOKUP(CW$7+0.5,$I$66:$DJ$120,ROWS($A$10:$A38)+2,FALSE)","v":528},{"$f":"HLOOKUP(CX$7+0.5,$I$66:$DJ$120,ROWS($A$10:$A38)+2,FALSE)","v":149},{"$f":"HLOOKUP(CY$7+0.5,$I$66:$DJ$120,ROWS($A$10:$A38)+2,FALSE)","v":381},{"$f":"HLOOKUP(CZ$7+0.5,$I$66:$DJ$120,ROWS($A$10:$A38)+2,FALSE)","v":677},{"$f":"HLOOKUP(DA$7+0.5,$I$66:$DJ$120,ROWS($A$10:$A38)+2,FALSE)","v":184},{"$f":"HLOOKUP(DB$7+0.5,$I$66:$DJ$120,ROWS($A$10:$A38)+2,FALSE)","v":1218},{"$f":"HLOOKUP(DC$7+0.5,$I$66:$DJ$120,ROWS($A$10:$A38)+2,FALSE)","v":230},{"$f":"HLOOKUP(DD$7+0.5,$I$66:$DJ$120,ROWS($A$10:$A38)+2,FALSE)","v":131},{"$f":"HLOOKUP(DE$7+0.5,$I$66:$DJ$120,ROWS($A$10:$A38)+2,FALSE)","v":758},{"$f":"HLOOKUP(DF$7+0.5,$I$66:$DJ$120,ROWS($A$10:$A38)+2,FALSE)","v":673},{"$f":"HLOOKUP(DG$7+0.5,$I$66:$DJ$120,ROWS($A$10:$A38)+2,FALSE)","v":152},{"$f":"HLOOKUP(DH$7+0.5,$I$66:$DJ$120,ROWS($A$10:$A38)+2,FALSE)","v":218},{"$f":"HLOOKUP(DI$7+0.5,$I$66:$DJ$120,ROWS($A$10:$A38)+2,FALSE)","v":371},{"$f":"HLOOKUP(DJ$7+0.5,$I$66:$DJ$120,ROWS($A$10:$A38)+2,FALSE)","v":149}]
[null,"Nevada",2725280,3005,2105070,21984,481496,19389,{"$f":"HLOOKUP(I$7,$I$66:$DJ$120,ROWS($A$10:$A39)+2,FALSE)","v":124285},{"$f":"HLOOKUP(J$7,$I$66:$DJ$120,ROWS($A$10:$A39)+2,FALSE)","v":761},{"$f":"HLOOKUP(K$7,$I$66:$DJ$120,ROWS($A$10:$A39)+2,FALSE)","v":2161},{"$f":"HLOOKUP(L$7,$I$66:$DJ$120,ROWS($A$10:$A39)+2,FALSE)","v":8748},{"$f":"HLOOKUP(M$7,$I$66:$DJ$120,ROWS($A$10:$A39)+2,FALSE)","v":353},{"$f":"HLOOKUP(N$7,$I$66:$DJ$120,ROWS($A$10:$A39)+2,FALSE)","v":49978},{"$f":"HLOOKUP(O$7,$I$66:$DJ$120,ROWS($A$10:$A39)+2,FALSE)","v":6402},{"$f":"HLOOKUP(P$7,$I$66:$DJ$120,ROWS($A$10:$A39)+2,FALSE)","v":143},{"$f":"HLOOKUP(Q$7,$I$66:$DJ$120,ROWS($A$10:$A39)+2,FALSE)","v":373},{"$f":"HLOOKUP(R$7,$I$66:$DJ$120,ROWS($A$10:$A39)+2,FALSE)","v":468},{"$f":"HLOOKUP(S$7,$I$66:$DJ$120,ROWS($A$10:$A39)+2,FALSE)","v":3381},{"$f":"HLOOKUP(T$7,$I$66:$DJ$120,ROWS($A$10:$A39)+2,FALSE)","v":745},{"$f":"HLOOKUP(U$7,$I$66:$DJ$120,ROWS($A$10:$A39)+2,FALSE)","v":2053},{"$f":"HLOOKUP(V$7,$I$66:$DJ$120,ROWS($A$10:$A39)+2,FALSE)","v":1503},{"$f":"HLOOKUP(W$7,$I$66:$DJ$120,ROWS($A$10:$A39)+2,FALSE)","v":2822},{"$f":"HLOOKUP(X$7,$I$66:$DJ$120,ROWS($A$10:$A39)+2,FALSE)","v":362},{"$f":"HLOOKUP(Y$7,$I$66:$DJ$120,ROWS($A$10:$A39)+2,FALSE)","v":714},{"$f":"HLOOKUP(Z$7,$I$66:$DJ$120,ROWS($A$10:$A39)+2,FALSE)","v":1202},{"$f":"HLOOKUP(AA$7,$I$66:$DJ$120,ROWS($A$10:$A39)+2,FALSE)","v":952},{"$f":"HLOOKUP(AB$7,$I$66:$DJ$120,ROWS($A$10:$A39)+2,FALSE)","v":421},{"$f":"HLOOKUP(AC$7,$I$66:$DJ$120,ROWS($A$10:$A39)+2,FALSE)","v":209},{"$f":"HLOOKUP(AD$7,$I$66:$DJ$120,ROWS($A$10:$A39)+2,FALSE)","v":934},{"$f":"HLOOKUP(AE$7,$I$66:$DJ$120,ROWS($A$10:$A39)+2,FALSE)","v":318},{"$f":"HLOOKUP(AF$7,$I$66:$DJ$120,ROWS($A$10:$A39)+2,FALSE)","v":1235},{"$f":"HLOOKUP(AG$7,$I$66:$DJ$120,ROWS($A$10:$A39)+2,FALSE)","v":1157},{"$f":"HLOOKUP(AH$7,$I$66:$DJ$120,ROWS($A$10:$A39)+2,FALSE)","v":783},{"$f":"HLOOKUP(AI$7,$I$66:$DJ$120,ROWS($A$10:$A39)+2,FALSE)","v":694},{"$f":"HLOOKUP(AJ$7,$I$66:$DJ$120,ROWS($A$10:$A39)+2,FALSE)","v":1086},{"$f":"HLOOKUP(AK$7,$I$66:$DJ$120,ROWS($A$10:$A39)+2,FALSE)","v":714},{"$f":"HLOOKUP(AL$7,$I$66:$DJ$120,ROWS($A$10:$A39)+2,FALSE)","v":"N/A"},{"$f":"HLOOKUP(AM$7,$I$66:$DJ$120,ROWS($A$10:$A39)+2,FALSE)","v":175},{"$f":"HLOOKUP(AN$7,$I$66:$DJ$120,ROWS($A$10:$A39)+2,FALSE)","v":912},{"$f":"HLOOKUP(AO$7,$I$66:$DJ$120,ROWS($A$10:$A39)+2,FALSE)","v":1138},{"$f":"HLOOKUP(AP$7,$I$66:$DJ$120,ROWS($A$10:$A39)+2,FALSE)","v":3521},{"$f":"HLOOKUP(AQ$7,$I$66:$DJ$120,ROWS($A$10:$A39)+2,FALSE)","v":767},{"$f":"HLOOKUP(AR$7,$I$66:$DJ$120,ROWS($A$10:$A39)+2,FALSE)","v":702},{"$f":"HLOOKUP(AS$7,$I$66:$DJ$120,ROWS($A$10:$A39)+2,FALSE)","v":1407},{"$f":"HLOOKUP(AT$7,$I$66:$DJ$120,ROWS($A$10:$A39)+2,FALSE)","v":1520},{"$f":"HLOOKUP(AU$7,$I$66:$DJ$120,ROWS($A$10:$A39)+2,FALSE)","v":3101},{"$f":"HLOOKUP(AV$7,$I$66:$DJ$120,ROWS($A$10:$A39)+2,FALSE)","v":1601},{"$f":"HLOOKUP(AW$7,$I$66:$DJ$120,ROWS($A$10:$A39)+2,FALSE)","v":336},{"$f":"HLOOKUP(AX$7,$I$66:$DJ$120,ROWS($A$10:$A39)+2,FALSE)","v":480},{"$f":"HLOOKUP(AY$7,$I$66:$DJ$120,ROWS($A$10:$A39)+2,FALSE)","v":0},{"$f":"HLOOKUP(AZ$7,$I$66:$DJ$120,ROWS($A$10:$A39)+2,FALSE)","v":1699},{"$f":"HLOOKUP(BA$7,$I$66:$DJ$120,ROWS($A$10:$A39)+2,FALSE)","v":5484},{"$f":"HLOOKUP(BB$7,$I$66:$DJ$120,ROWS($A$10:$A39)+2,FALSE)","v":4605},{"$f":"HLOOKUP(BC$7,$I$66:$DJ$120,ROWS($A$10:$A39)+2,FALSE)","v":121},{"$f":"HLOOKUP(BD$7,$I$66:$DJ$120,ROWS($A$10:$A39)+2,FALSE)","v":1135},{"$f":"HLOOKUP(BE$7,$I$66:$DJ$120,ROWS($A$10:$A39)+2,FALSE)","v":2997},{"$f":"HLOOKUP(BF$7,$I$66:$DJ$120,ROWS($A$10:$A39)+2,FALSE)","v":100},{"$f":"HLOOKUP(BG$7,$I$66:$DJ$120,ROWS($A$10:$A39)+2,FALSE)","v":1046},{"$f":"HLOOKUP(BH$7,$I$66:$DJ$120,ROWS($A$10:$A39)+2,FALSE)","v":766},{"$f":"HLOOKUP(BI$7,$I$66:$DJ$120,ROWS($A$10:$A39)+2,FALSE)","v":237},{"$f":"HLOOKUP(BJ$7+0.5,$I$66:$DJ$120,ROWS($A$10:$A39)+2,FALSE)","v":9956},{"$f":"HLOOKUP(BK$7+0.5,$I$66:$DJ$120,ROWS($A$10:$A39)+2,FALSE)","v":724},{"$f":"HLOOKUP(BL$7+0.5,$I$66:$DJ$120,ROWS($A$10:$A39)+2,FALSE)","v":1047},{"$f":"HLOOKUP(BM$7+0.5,$I$66:$DJ$120,ROWS($A$10:$A39)+2,FALSE)","v":2540},{"$f":"HLOOKUP(BN$7+0.5,$I$66:$DJ$120,ROWS($A$10:$A39)+2,FALSE)","v":404},{"$f":"HLOOKUP(BO$7+0.5,$I$66:$DJ$120,ROWS($A$10:$A39)+2,FALSE)","v":7637},{"$f":"HLOOKUP(BP$7+0.5,$I$66:$DJ$120,ROWS($A$10:$A39)+2,FALSE)","v":2736},{"$f":"HLOOKUP(BQ$7+0.5,$I$66:$DJ$120,ROWS($A$10:$A39)+2,FALSE)","v":181},{"$f":"HLOOKUP(BR$7+0.5,$I$66:$DJ$120,ROWS($A$10:$A39)+2,FALSE)","v":521},{"$f":"HLOOKUP(BS$7+0.5,$I$66:$DJ$120,ROWS($A$10:$A39)+2,FALSE)","v":759},{"$f":"HLOOKUP(BT$7+0.5,$I$66:$DJ$120,ROWS($A$10:$A39)+2,FALSE)","v":1488},{"$f":"HLOOKUP(BU$7+0.5,$I$66:$DJ$120,ROWS($A$10:$A39)+2,FALSE)","v":477},{"$f":"HLOOKUP(BV$7+0.5,$I$66:$DJ$120,ROWS($A$10:$A39)+2,FALSE)","v":949},{"$f":"HLOOKUP(BW$7+0.5,$I$66:$DJ$120,ROWS($A$10:$A39)+2,FALSE)","v":743},{"$f":"HLOOKUP(BX$7+0.5,$I$66:$DJ$120,ROWS($A$10:$A39)+2,FALSE)","v":1412},{"$f":"HLOOKUP(BY$7+0.5,$I$66:$DJ$120,ROWS($A$10:$A39)+2,FALSE)","v":341},{"$f":"HLOOKUP(BZ$7+0.5,$I$66:$DJ$120,ROWS($A$10:$A39)+2,FALSE)","v":592},{"$f":"HLOOKUP(CA$7+0.5,$I$66:$DJ$120,ROWS($A$10:$A39)+2,FALSE)","v":1085},{"$f":"HLOOKUP(CB$7+0.5,$I$66:$DJ$120,ROWS($A$10:$A39)+2,FALSE)","v":651},{"$f":"HLOOKUP(CC$7+0.5,$I$66:$DJ$120,ROWS($A$10:$A39)+2,FALSE)","v":296},{"$f":"HLOOKUP(CD$7+0.5,$I$66:$DJ$120,ROWS($A$10:$A39)+2,FALSE)","v":286},{"$f":"HLOOKUP(CE$7+0.5,$I$66:$DJ$120,ROWS($A$10:$A39)+2,FALSE)","v":689},{"$f":"HLOOKUP(CF$7+0.5,$I$66:$DJ$120,ROWS($A$10:$A39)+2,FALSE)","v":267},{"$f":"HLOOKUP(CG$7+0.5,$I$66:$DJ$120,ROWS($A$10:$A39)+2,FALSE)","v":574},{"$f":"HLOOKUP(CH$7+0.5,$I$66:$DJ$120,ROWS($A$10:$A39)+2,FALSE)","v":718},{"$f":"HLOOKUP(CI$7+0.5,$I$66:$DJ$120,ROWS($A$10:$A39)+2,FALSE)","v":658},{"$f":"HLOOKUP(CJ$7+0.5,$I$66:$DJ$120,ROWS($A$10:$A39)+2,FALSE)","v":516},{"$f":"HLOOKUP(CK$7+0.5,$I$66:$DJ$120,ROWS($A$10:$A39)+2,FALSE)","v":605},{"$f":"HLOOKUP(CL$7+0.5,$I$66:$DJ$120,ROWS($A$10:$A39)+2,FALSE)","v":551},{"$f":"HLOOKUP(CM$7+0.5,$I$66:$DJ$120,ROWS($A$10:$A39)+2,FALSE)","v":"N/A"},{"$f":"HLOOKUP(CN$7+0.5,$I$66:$DJ$120,ROWS($A$10:$A39)+2,FALSE)","v":230},{"$f":"HLOOKUP(CO$7+0.5,$I$66:$DJ$120,ROWS($A$10:$A39)+2,FALSE)","v":600},{"$f":"HLOOKUP(CP$7+0.5,$I$66:$DJ$120,ROWS($A$10:$A39)+2,FALSE)","v":665},{"$f":"HLOOKUP(CQ$7+0.5,$I$66:$DJ$120,ROWS($A$10:$A39)+2,FALSE)","v":1460},{"$f":"HLOOKUP(CR$7+0.5,$I$66:$DJ$120,ROWS($A$10:$A39)+2,FALSE)","v":589},{"$f":"HLOOKUP(CS$7+0.5,$I$66:$DJ$120,ROWS($A$10:$A39)+2,FALSE)","v":661},{"$f":"HLOOKUP(CT$7+0.5,$I$66:$DJ$120,ROWS($A$10:$A39)+2,FALSE)","v":791},{"$f":"HLOOKUP(CU$7+0.5,$I$66:$DJ$120,ROWS($A$10:$A39)+2,FALSE)","v":1384},{"$f":"HLOOKUP(CV$7+0.5,$I$66:$DJ$120,ROWS($A$10:$A39)+2,FALSE)","v":1186},{"$f":"HLOOKUP(CW$7+0.5,$I$66:$DJ$120,ROWS($A$10:$A39)+2,FALSE)","v":1078},{"$f":"HLOOKUP(CX$7+0.5,$I$66:$DJ$120,ROWS($A$10:$A39)+2,FALSE)","v":548},{"$f":"HLOOKUP(CY$7+0.5,$I$66:$DJ$120,ROWS($A$10:$A39)+2,FALSE)","v":403},{"$f":"HLOOKUP(CZ$7+0.5,$I$66:$DJ$120,ROWS($A$10:$A39)+2,FALSE)","v":200},{"$f":"HLOOKUP(DA$7+0.5,$I$66:$DJ$120,ROWS($A$10:$A39)+2,FALSE)","v":822},{"$f":"HLOOKUP(DB$7+0.5,$I$66:$DJ$120,ROWS($A$10:$A39)+2,FALSE)","v":1772},{"$f":"HLOOKUP(DC$7+0.5,$I$66:$DJ$120,ROWS($A$10:$A39)+2,FALSE)","v":1899},{"$f":"HLOOKUP(DD$7+0.5,$I$66:$DJ$120,ROWS($A$10:$A39)+2,FALSE)","v":222},{"$f":"HLOOKUP(DE$7+0.5,$I$66:$DJ$120,ROWS($A$10:$A39)+2,FALSE)","v":832},{"$f":"HLOOKUP(DF$7+0.5,$I$66:$DJ$120,ROWS($A$10:$A39)+2,FALSE)","v":1103},{"$f":"HLOOKUP(DG$7+0.5,$I$66:$DJ$120,ROWS($A$10:$A39)+2,FALSE)","v":161},{"$f":"HLOOKUP(DH$7+0.5,$I$66:$DJ$120,ROWS($A$10:$A39)+2,FALSE)","v":666},{"$f":"HLOOKUP(DI$7+0.5,$I$66:$DJ$120,ROWS($A$10:$A39)+2,FALSE)","v":706},{"$f":"HLOOKUP(DJ$7+0.5,$I$66:$DJ$120,ROWS($A$10:$A39)+2,FALSE)","v":356}]
[null,"New Hampshire",1309203,1504,1127376,9730,125118,9101,{"$f":"HLOOKUP(I$7,$I$66:$DJ$120,ROWS($A$10:$A40)+2,FALSE)","v":50484},{"$f":"HLOOKUP(J$7,$I$66:$DJ$120,ROWS($A$10:$A40)+2,FALSE)","v":0},{"$f":"HLOOKUP(K$7,$I$66:$DJ$120,ROWS($A$10:$A40)+2,FALSE)","v":437},{"$f":"HLOOKUP(L$7,$I$66:$DJ$120,ROWS($A$10:$A40)+2,FALSE)","v":440},{"$f":"HLOOKUP(M$7,$I$66:$DJ$120,ROWS($A$10:$A40)+2,FALSE)","v":0},{"$f":"HLOOKUP(N$7,$I$66:$DJ$120,ROWS($A$10:$A40)+2,FALSE)","v":1514},{"$f":"HLOOKUP(O$7,$I$66:$DJ$120,ROWS($A$10:$A40)+2,FALSE)","v":572},{"$f":"HLOOKUP(P$7,$I$66:$DJ$120,ROWS($A$10:$A40)+2,FALSE)","v":1345},{"$f":"HLOOKUP(Q$7,$I$66:$DJ$120,ROWS($A$10:$A40)+2,FALSE)","v":0},{"$f":"HLOOKUP(R$7,$I$66:$DJ$120,ROWS($A$10:$A40)+2,FALSE)","v":101},{"$f":"HLOOKUP(S$7,$I$66:$DJ$120,ROWS($A$10:$A40)+2,FALSE)","v":2746},{"$f":"HLOOKUP(T$7,$I$66:$DJ$120,ROWS($A$10:$A40)+2,FALSE)","v":470},{"$f":"HLOOKUP(U$7,$I$66:$DJ$120,ROWS($A$10:$A40)+2,FALSE)","v":43},{"$f":"HLOOKUP(V$7,$I$66:$DJ$120,ROWS($A$10:$A40)+2,FALSE)","v":20},{"$f":"HLOOKUP(W$7,$I$66:$DJ$120,ROWS($A$10:$A40)+2,FALSE)","v":673},{"$f":"HLOOKUP(X$7,$I$66:$DJ$120,ROWS($A$10:$A40)+2,FALSE)","v":297},{"$f":"HLOOKUP(Y$7,$I$66:$DJ$120,ROWS($A$10:$A40)+2,FALSE)","v":53},{"$f":"HLOOKUP(Z$7,$I$66:$DJ$120,ROWS($A$10:$A40)+2,FALSE)","v":102},{"$f":"HLOOKUP(AA$7,$I$66:$DJ$120,ROWS($A$10:$A40)+2,FALSE)","v":284},{"$f":"HLOOKUP(AB$7,$I$66:$DJ$120,ROWS($A$10:$A40)+2,FALSE)","v":7},{"$f":"HLOOKUP(AC$7,$I$66:$DJ$120,ROWS($A$10:$A40)+2,FALSE)","v":6118},{"$f":"HLOOKUP(AD$7,$I$66:$DJ$120,ROWS($A$10:$A40)+2,FALSE)","v":33},{"$f":"HLOOKUP(AE$7,$I$66:$DJ$120,ROWS($A$10:$A40)+2,FALSE)","v":18990},{"$f":"HLOOKUP(AF$7,$I$66:$DJ$120,ROWS($A$10:$A40)+2,FALSE)","v":426},{"$f":"HLOOKUP(AG$7,$I$66:$DJ$120,ROWS($A$10:$A40)+2,FALSE)","v":0},{"$f":"HLOOKUP(AH$7,$I$66:$DJ$120,ROWS($A$10:$A40)+2,FALSE)","v":0},{"$f":"HLOOKUP(AI$7,$I$66:$DJ$120,ROWS($A$10:$A40)+2,FALSE)","v":289},{"$f":"HLOOKUP(AJ$7,$I$66:$DJ$120,ROWS($A$10:$A40)+2,FALSE)","v":0},{"$f":"HLOOKUP(AK$7,$I$66:$DJ$120,ROWS($A$10:$A40)+2,FALSE)","v":110},{"$f":"HLOOKUP(AL$7,$I$66:$DJ$120,ROWS($A$10:$A40)+2,FALSE)","v":0},{"$f":"HLOOKUP(AM$7,$I$66:$DJ$120,ROWS($A$10:$A40)+2,FALSE)","v":"N/A"},{"$f":"HLOOKUP(AN$7,$I$66:$DJ$120,ROWS($A$10:$A40)+2,FALSE)","v":591},{"$f":"HLOOKUP(AO$7,$I$66:$DJ$120,ROWS($A$10:$A40)+2,FALSE)","v":223},{"$f":"HLOOKUP(AP$7,$I$66:$DJ$120,ROWS($A$10:$A40)+2,FALSE)","v":2905},{"$f":"HLOOKUP(AQ$7,$I$66:$DJ$120,ROWS($A$10:$A40)+2,FALSE)","v":1609},{"$f":"HLOOKUP(AR$7,$I$66:$DJ$120,ROWS($A$10:$A40)+2,FALSE)","v":0},{"$f":"HLOOKUP(AS$7,$I$66:$DJ$120,ROWS($A$10:$A40)+2,FALSE)","v":324},{"$f":"HLOOKUP(AT$7,$I$66:$DJ$120,ROWS($A$10:$A40)+2,FALSE)","v":186},{"$f":"HLOOKUP(AU$7,$I$66:$DJ$120,ROWS($A$10:$A40)+2,FALSE)","v":208},{"$f":"HLOOKUP(AV$7,$I$66:$DJ$120,ROWS($A$10:$A40)+2,FALSE)","v":890},{"$f":"HLOOKUP(AW$7,$I$66:$DJ$120,ROWS($A$10:$A40)+2,FALSE)","v":1248},{"$f":"HLOOKUP(AX$7,$I$66:$DJ$120,ROWS($A$10:$A40)+2,FALSE)","v":323},{"$f":"HLOOKUP(AY$7,$I$66:$DJ$120,ROWS($A$10:$A40)+2,FALSE)","v":0},{"$f":"HLOOKUP(AZ$7,$I$66:$DJ$120,ROWS($A$10:$A40)+2,FALSE)","v":77},{"$f":"HLOOKUP(BA$7,$I$66:$DJ$120,ROWS($A$10:$A40)+2,FALSE)","v":2150},{"$f":"HLOOKUP(BB$7,$I$66:$DJ$120,ROWS($A$10:$A40)+2,FALSE)","v":557},{"$f":"HLOOKUP(BC$7,$I$66:$DJ$120,ROWS($A$10:$A40)+2,FALSE)","v":2960},{"$f":"HLOOKUP(BD$7,$I$66:$DJ$120,ROWS($A$10:$A40)+2,FALSE)","v":660},{"$f":"HLOOKUP(BE$7,$I$66:$DJ$120,ROWS($A$10:$A40)+2,FALSE)","v":113},{"$f":"HLOOKUP(BF$7,$I$66:$DJ$120,ROWS($A$10:$A40)+2,FALSE)","v":80},{"$f":"HLOOKUP(BG$7,$I$66:$DJ$120,ROWS($A$10:$A40)+2,FALSE)","v":239},{"$f":"HLOOKUP(BH$7,$I$66:$DJ$120,ROWS($A$10:$A40)+2,FALSE)","v":71},{"$f":"HLOOKUP(BI$7,$I$66:$DJ$120,ROWS($A$10:$A40)+2,FALSE)","v":75},{"$f":"HLOOKUP(BJ$7+0.5,$I$66:$DJ$120,ROWS($A$10:$A40)+2,FALSE)","v":5282},{"$f":"HLOOKUP(BK$7+0.5,$I$66:$DJ$120,ROWS($A$10:$A40)+2,FALSE)","v":181},{"$f":"HLOOKUP(BL$7+0.5,$I$66:$DJ$120,ROWS($A$10:$A40)+2,FALSE)","v":378},{"$f":"HLOOKUP(BM$7+0.5,$I$66:$DJ$120,ROWS($A$10:$A40)+2,FALSE)","v":413},{"$f":"HLOOKUP(BN$7+0.5,$I$66:$DJ$120,ROWS($A$10:$A40)+2,FALSE)","v":181},{"$f":"HLOOKUP(BO$7+0.5,$I$66:$DJ$120,ROWS($A$10:$A40)+2,FALSE)","v":935},{"$f":"HLOOKUP(BP$7+0.5,$I$66:$DJ$120,ROWS($A$10:$A40)+2,FALSE)","v":637},{"$f":"HLOOKUP(BQ$7+0.5,$I$66:$DJ$120,ROWS($A$10:$A40)+2,FALSE)","v":478},{"$f":"HLOOKUP(BR$7+0.5,$I$66:$DJ$120,ROWS($A$10:$A40)+2,FALSE)","v":181},{"$f":"HLOOKUP(BS$7+0.5,$I$66:$DJ$120,ROWS($A$10:$A40)+2,FALSE)","v":131},{"$f":"HLOOKUP(BT$7+0.5,$I$66:$DJ$120,ROWS($A$10:$A40)+2,FALSE)","v":1312},{"$f":"HLOOKUP(BU$7+0.5,$I$66:$DJ$120,ROWS($A$10:$A40)+2,FALSE)","v":324},{"$f":"HLOOKUP(BV$7+0.5,$I$66:$DJ$120,ROWS($A$10:$A40)+2,FALSE)","v":78},{"$f":"HLOOKUP(BW$7+0.5,$I$66:$DJ$120,ROWS($A$10:$A40)+2,FALSE)","v":38},{"$f":"HLOOKUP(BX$7+0.5,$I$66:$DJ$120,ROWS($A$10:$A40)+2,FALSE)","v":608},{"$f":"HLOOKUP(BY$7+0.5,$I$66:$DJ$120,ROWS($A$10:$A40)+2,FALSE)","v":365},{"$f":"HLOOKUP(BZ$7+0.5,$I$66:$DJ$120,ROWS($A$10:$A40)+2,FALSE)","v":89},{"$f":"HLOOKUP(CA$7+0.5,$I$66:$DJ$120,ROWS($A$10:$A40)+2,FALSE)","v":161},{"$f":"HLOOKUP(CB$7+0.5,$I$66:$DJ$120,ROWS($A$10:$A40)+2,FALSE)","v":250},{"$f":"HLOOKUP(CC$7+0.5,$I$66:$DJ$120,ROWS($A$10:$A40)+2,FALSE)","v":13},{"$f":"HLOOKUP(CD$7+0.5,$I$66:$DJ$120,ROWS($A$10:$A40)+2,FALSE)","v":1749},{"$f":"HLOOKUP(CE$7+0.5,$I$66:$DJ$120,ROWS($A$10:$A40)+2,FALSE)","v":57},{"$f":"HLOOKUP(CF$7+0.5,$I$66:$DJ$120,ROWS($A$10:$A40)+2,FALSE)","v":3350},{"$f":"HLOOKUP(CG$7+0.5,$I$66:$DJ$120,ROWS($A$10:$A40)+2,FALSE)","v":441},{"$f":"HLOOKUP(CH$7+0.5,$I$66:$DJ$120,ROWS($A$10:$A40)+2,FALSE)","v":181},{"$f":"HLOOKUP(CI$7+0.5,$I$66:$DJ$120,ROWS($A$10:$A40)+2,FALSE)","v":181},{"$f":"HLOOKUP(CJ$7+0.5,$I$66:$DJ$120,ROWS($A$10:$A40)+2,FALSE)","v":262},{"$f":"HLOOKUP(CK$7+0.5,$I$66:$DJ$120,ROWS($A$10:$A40)+2,FALSE)","v":181},{"$f":"HLOOKUP(CL$7+0.5,$I$66:$DJ$120,ROWS($A$10:$A40)+2,FALSE)","v":136},{"$f":"HLOOKUP(CM$7+0.5,$I$66:$DJ$120,ROWS($A$10:$A40)+2,FALSE)","v":181},{"$f":"HLOOKUP(CN$7+0.5,$I$66:$DJ$120,ROWS($A$10:$A40)+2,FALSE)","v":"N/A"},{"$f":"HLOOKUP(CO$7+0.5,$I$66:$DJ$120,ROWS($A$10:$A40)+2,FALSE)","v":330},{"$f":"HLOOKUP(CP$7+0.5,$I$66:$DJ$120,ROWS($A$10:$A40)+2,FALSE)","v":279},{"$f":"HLOOKUP(CQ$7+0.5,$I$66:$DJ$120,ROWS($A$10:$A40)+2,FALSE)","v":1027},{"$f":"HLOOKUP(CR$7+0.5,$I$66:$DJ$120,ROWS($A$10:$A40)+2,FALSE)","v":1456},{"$f":"HLOOKUP(CS$7+0.5,$I$66:$DJ$120,ROWS($A$10:$A40)+2,FALSE)","v":181},{"$f":"HLOOKUP(CT$7+0.5,$I$66:$DJ$120,ROWS($A$10:$A40)+2,FALSE)","v":240},{"$f":"HLOOKUP(CU$7+0.5,$I$66:$DJ$120,ROWS($A$10:$A40)+2,FALSE)","v":266},{"$f":"HLOOKUP(CV$7+0.5,$I$66:$DJ$120,ROWS($A$10:$A40)+2,FALSE)","v":299},{"$f":"HLOOKUP(CW$7+0.5,$I$66:$DJ$120,ROWS($A$10:$A40)+2,FALSE)","v":561},{"$f":"HLOOKUP(CX$7+0.5,$I$66:$DJ$120,ROWS($A$10:$A40)+2,FALSE)","v":819},{"$f":"HLOOKUP(CY$7+0.5,$I$66:$DJ$120,ROWS($A$10:$A40)+2,FALSE)","v":257},{"$f":"HLOOKUP(CZ$7+0.5,$I$66:$DJ$120,ROWS($A$10:$A40)+2,FALSE)","v":181},{"$f":"HLOOKUP(DA$7+0.5,$I$66:$DJ$120,ROWS($A$10:$A40)+2,FALSE)","v":133},{"$f":"HLOOKUP(DB$7+0.5,$I$66:$DJ$120,ROWS($A$10:$A40)+2,FALSE)","v":1715},{"$f":"HLOOKUP(DC$7+0.5,$I$66:$DJ$120,ROWS($A$10:$A40)+2,FALSE)","v":762},{"$f":"HLOOKUP(DD$7+0.5,$I$66:$DJ$120,ROWS($A$10:$A40)+2,FALSE)","v":1339},{"$f":"HLOOKUP(DE$7+0.5,$I$66:$DJ$120,ROWS($A$10:$A40)+2,FALSE)","v":433},{"$f":"HLOOKUP(DF$7+0.5,$I$66:$DJ$120,ROWS($A$10:$A40)+2,FALSE)","v":119},{"$f":"HLOOKUP(DG$7+0.5,$I$66:$DJ$120,ROWS($A$10:$A40)+2,FALSE)","v":131},{"$f":"HLOOKUP(DH$7+0.5,$I$66:$DJ$120,ROWS($A$10:$A40)+2,FALSE)","v":277},{"$f":"HLOOKUP(DI$7+0.5,$I$66:$DJ$120,ROWS($A$10:$A40)+2,FALSE)","v":120},{"$f":"HLOOKUP(DJ$7+0.5,$I$66:$DJ$120,ROWS($A$10:$A40)+2,FALSE)","v":123}]
[null,"New Jersey",8772744,4541,7929570,23298,655465,21808,{"$f":"HLOOKUP(I$7,$I$66:$DJ$120,ROWS($A$10:$A41)+2,FALSE)","v":130223},{"$f":"HLOOKUP(J$7,$I$66:$DJ$120,ROWS($A$10:$A41)+2,FALSE)","v":779},{"$f":"HLOOKUP(K$7,$I$66:$DJ$120,ROWS($A$10:$A41)+2,FALSE)","v":359},{"$f":"HLOOKUP(L$7,$I$66:$DJ$120,ROWS($A$10:$A41)+2,FALSE)","v":1328},{"$f":"HLOOKUP(M$7,$I$66:$DJ$120,ROWS($A$10:$A41)+2,FALSE)","v":57},{"$f":"HLOOKUP(N$7,$I$66:$DJ$120,ROWS($A$10:$A41)+2,FALSE)","v":4330},{"$f":"HLOOKUP(O$7,$I$66:$DJ$120,ROWS($A$10:$A41)+2,FALSE)","v":380},{"$f":"HLOOKUP(P$7,$I$66:$DJ$120,ROWS($A$10:$A41)+2,FALSE)","v":3466},{"$f":"HLOOKUP(Q$7,$I$66:$DJ$120,ROWS($A$10:$A41)+2,FALSE)","v":1921},{"$f":"HLOOKUP(R$7,$I$66:$DJ$120,ROWS($A$10:$A41)+2,FALSE)","v":840},{"$f":"HLOOKUP(S$7,$I$66:$DJ$120,ROWS($A$10:$A41)+2,FALSE)","v":10649},{"$f":"HLOOKUP(T$7,$I$66:$DJ$120,ROWS($A$10:$A41)+2,FALSE)","v":3002},{"$f":"HLOOKUP(U$7,$I$66:$DJ$120,ROWS($A$10:$A41)+2,FALSE)","v":22},{"$f":"HLOOKUP(V$7,$I$66:$DJ$120,ROWS($A$10:$A41)+2,FALSE)","v":113},{"$f":"HLOOKUP(W$7,$I$66:$DJ$120,ROWS($A$10:$A41)+2,FALSE)","v":2052},{"$f":"HLOOKUP(X$7,$I$66:$DJ$120,ROWS($A$10:$A41)+2,FALSE)","v":1039},{"$f":"HLOOKUP(Y$7,$I$66:$DJ$120,ROWS($A$10:$A41)+2,FALSE)","v":357},{"$f":"HLOOKUP(Z$7,$I$66:$DJ$120,ROWS($A$10:$A41)+2,FALSE)","v":426},{"$f":"HLOOKUP(AA$7,$I$66:$DJ$120,ROWS($A$10:$A41)+2,FALSE)","v":631},{"$f":"HLOOKUP(AB$7,$I$66:$DJ$120,ROWS($A$10:$A41)+2,FALSE)","v":339},{"$f":"HLOOKUP(AC$7,$I$66:$DJ$120,ROWS($A$10:$A41)+2,FALSE)","v":430},{"$f":"HLOOKUP(AD$7,$I$66:$DJ$120,ROWS($A$10:$A41)+2,FALSE)","v":3474},{"$f":"HLOOKUP(AE$7,$I$66:$DJ$120,ROWS($A$10:$A41)+2,FALSE)","v":4907},{"$f":"HLOOKUP(AF$7,$I$66:$DJ$120,ROWS($A$10:$A41)+2,FALSE)","v":324},{"$f":"HLOOKUP(AG$7,$I$66:$DJ$120,ROWS($A$10:$A41)+2,FALSE)","v":570},{"$f":"HLOOKUP(AH$7,$I$66:$DJ$120,ROWS($A$10:$A41)+2,FALSE)","v":106},{"$f":"HLOOKUP(AI$7,$I$66:$DJ$120,ROWS($A$10:$A41)+2,FALSE)","v":384},{"$f":"HLOOKUP(AJ$7,$I$66:$DJ$120,ROWS($A$10:$A41)+2,FALSE)","v":67},{"$f":"HLOOKUP(AK$7,$I$66:$DJ$120,ROWS($A$10:$A41)+2,FALSE)","v":35},{"$f":"HLOOKUP(AL$7,$I$66:$DJ$120,ROWS($A$10:$A41)+2,FALSE)","v":908},{"$f":"HLOOKUP(AM$7,$I$66:$DJ$120,ROWS($A$10:$A41)+2,FALSE)","v":126},{"$f":"HLOOKUP(AN$7,$I$66:$DJ$120,ROWS($A$10:$A41)+2,FALSE)","v":"N/A"},{"$f":"HLOOKUP(AO$7,$I$66:$DJ$120,ROWS($A$10:$A41)+2,FALSE)","v":45},{"$f":"HLOOKUP(AP$7,$I$66:$DJ$120,ROWS($A$10:$A41)+2,FALSE)","v":40495},{"$f":"HLOOKUP(AQ$7,$I$66:$DJ$120,ROWS($A$10:$A41)+2,FALSE)","v":3236},{"$f":"HLOOKUP(AR$7,$I$66:$DJ$120,ROWS($A$10:$A41)+2,FALSE)","v":55},{"$f":"HLOOKUP(AS$7,$I$66:$DJ$120,ROWS($A$10:$A41)+2,FALSE)","v":1452},{"$f":"HLOOKUP(AT$7,$I$66:$DJ$120,ROWS($A$10:$A41)+2,FALSE)","v":1540},{"$f":"HLOOKUP(AU$7,$I$66:$DJ$120,ROWS($A$10:$A41)+2,FALSE)","v":760},{"$f":"HLOOKUP(AV$7,$I$66:$DJ$120,ROWS($A$10:$A41)+2,FALSE)","v":23597},{"$f":"HLOOKUP(AW$7,$I$66:$DJ$120,ROWS($A$10:$A41)+2,FALSE)","v":429},{"$f":"HLOOKUP(AX$7,$I$66:$DJ$120,ROWS($A$10:$A41)+2,FALSE)","v":2372},{"$f":"HLOOKUP(AY$7,$I$66:$DJ$120,ROWS($A$10:$A41)+2,FALSE)","v":581},{"$f":"HLOOKUP(AZ$7,$I$66:$DJ$120,ROWS($A$10:$A41)+2,FALSE)","v":1400},{"$f":"HLOOKUP(BA$7,$I$66:$DJ$120,ROWS($A$10:$A41)+2,FALSE)","v":2509},{"$f":"HLOOKUP(BB$7,$I$66:$DJ$120,ROWS($A$10:$A41)+2,FALSE)","v":425},{"$f":"HLOOKUP(BC$7,$I$66:$DJ$120,ROWS($A$10:$A41)+2,FALSE)","v":35},{"$f":"HLOOKUP(BD$7,$I$66:$DJ$120,ROWS($A$10:$A41)+2,FALSE)","v":5024},{"$f":"HLOOKUP(BE$7,$I$66:$DJ$120,ROWS($A$10:$A41)+2,FALSE)","v":1847},{"$f":"HLOOKUP(BF$7,$I$66:$DJ$120,ROWS($A$10:$A41)+2,FALSE)","v":297},{"$f":"HLOOKUP(BG$7,$I$66:$DJ$120,ROWS($A$10:$A41)+2,FALSE)","v":680},{"$f":"HLOOKUP(BH$7,$I$66:$DJ$120,ROWS($A$10:$A41)+2,FALSE)","v":23},{"$f":"HLOOKUP(BI$7,$I$66:$DJ$120,ROWS($A$10:$A41)+2,FALSE)","v":2574},{"$f":"HLOOKUP(BJ$7+0.5,$I$66:$DJ$120,ROWS($A$10:$A41)+2,FALSE)","v":7649},{"$f":"HLOOKUP(BK$7+0.5,$I$66:$DJ$120,ROWS($A$10:$A41)+2,FALSE)","v":509},{"$f":"HLOOKUP(BL$7+0.5,$I$66:$DJ$120,ROWS($A$10:$A41)+2,FALSE)","v":437},{"$f":"HLOOKUP(BM$7+0.5,$I$66:$DJ$120,ROWS($A$10:$A41)+2,FALSE)","v":704},{"$f":"HLOOKUP(BN$7+0.5,$I$66:$DJ$120,ROWS($A$10:$A41)+2,FALSE)","v":70},{"$f":"HLOOKUP(BO$7+0.5,$I$66:$DJ$120,ROWS($A$10:$A41)+2,FALSE)","v":1070},{"$f":"HLOOKUP(BP$7+0.5,$I$66:$DJ$120,ROWS($A$10:$A41)+2,FALSE)","v":264},{"$f":"HLOOKUP(BQ$7+0.5,$I$66:$DJ$120,ROWS($A$10:$A41)+2,FALSE)","v":1711},{"$f":"HLOOKUP(BR$7+0.5,$I$66:$DJ$120,ROWS($A$10:$A41)+2,FALSE)","v":1383},{"$f":"HLOOKUP(BS$7+0.5,$I$66:$DJ$120,ROWS($A$10:$A41)+2,FALSE)","v":637},{"$f":"HLOOKUP(BT$7+0.5,$I$66:$DJ$120,ROWS($A$10:$A41)+2,FALSE)","v":2430},{"$f":"HLOOKUP(BU$7+0.5,$I$66:$DJ$120,ROWS($A$10:$A41)+2,FALSE)","v":1032},{"$f":"HLOOKUP(BV$7+0.5,$I$66:$DJ$120,ROWS($A$10:$A41)+2,FALSE)","v":41},{"$f":"HLOOKUP(BW$7+0.5,$I$66:$DJ$120,ROWS($A$10:$A41)+2,FALSE)","v":134},{"$f":"HLOOKUP(BX$7+0.5,$I$66:$DJ$120,ROWS($A$10:$A41)+2,FALSE)","v":874},{"$f":"HLOOKUP(BY$7+0.5,$I$66:$DJ$120,ROWS($A$10:$A41)+2,FALSE)","v":559},{"$f":"HLOOKUP(BZ$7+0.5,$I$66:$DJ$120,ROWS($A$10:$A41)+2,FALSE)","v":405},{"$f":"HLOOKUP(CA$7+0.5,$I$66:$DJ$120,ROWS($A$10:$A41)+2,FALSE)","v":405},{"$f":"HLOOKUP(CB$7+0.5,$I$66:$DJ$120,ROWS($A$10:$A41)+2,FALSE)","v":614},{"$f":"HLOOKUP(CC$7+0.5,$I$66:$DJ$120,ROWS($A$10:$A41)+2,FALSE)","v":343},{"$f":"HLOOKUP(CD$7+0.5,$I$66:$DJ$120,ROWS($A$10:$A41)+2,FALSE)","v":388},{"$f":"HLOOKUP(CE$7+0.5,$I$66:$DJ$120,ROWS($A$10:$A41)+2,FALSE)","v":1241},{"$f":"HLOOKUP(CF$7+0.5,$I$66:$DJ$120,ROWS($A$10:$A41)+2,FALSE)","v":1730},{"$f":"HLOOKUP(CG$7+0.5,$I$66:$DJ$120,ROWS($A$10:$A41)+2,FALSE)","v":191},{"$f":"HLOOKUP(CH$7+0.5,$I$66:$DJ$120,ROWS($A$10:$A41)+2,FALSE)","v":429},{"$f":"HLOOKUP(CI$7+0.5,$I$66:$DJ$120,ROWS($A$10:$A41)+2,FALSE)","v":165},{"$f":"HLOOKUP(CJ$7+0.5,$I$66:$DJ$120,ROWS($A$10:$A41)+2,FALSE)","v":363},{"$f":"HLOOKUP(CK$7+0.5,$I$66:$DJ$120,ROWS($A$10:$A41)+2,FALSE)","v":112},{"$f":"HLOOKUP(CL$7+0.5,$I$66:$DJ$120,ROWS($A$10:$A41)+2,FALSE)","v":58},{"$f":"HLOOKUP(CM$7+0.5,$I$66:$DJ$120,ROWS($A$10:$A41)+2,FALSE)","v":526},{"$f":"HLOOKUP(CN$7+0.5,$I$66:$DJ$120,ROWS($A$10:$A41)+2,FALSE)","v":219},{"$f":"HLOOKUP(CO$7+0.5,$I$66:$DJ$120,ROWS($A$10:$A41)+2,FALSE)","v":"N/A"},{"$f":"HLOOKUP(CP$7+0.5,$I$66:$DJ$120,ROWS($A$10:$A41)+2,FALSE)","v":75},{"$f":"HLOOKUP(CQ$7+0.5,$I$66:$DJ$120,ROWS($A$10:$A41)+2,FALSE)","v":4293},{"$f":"HLOOKUP(CR$7+0.5,$I$66:$DJ$120,ROWS($A$10:$A41)+2,FALSE)","v":1238},{"$f":"HLOOKUP(CS$7+0.5,$I$66:$DJ$120,ROWS($A$10:$A41)+2,FALSE)","v":93},{"$f":"HLOOKUP(CT$7+0.5,$I$66:$DJ$120,ROWS($A$10:$A41)+2,FALSE)","v":596},{"$f":"HLOOKUP(CU$7+0.5,$I$66:$DJ$120,ROWS($A$10:$A41)+2,FALSE)","v":1537},{"$f":"HLOOKUP(CV$7+0.5,$I$66:$DJ$120,ROWS($A$10:$A41)+2,FALSE)","v":587},{"$f":"HLOOKUP(CW$7+0.5,$I$66:$DJ$120,ROWS($A$10:$A41)+2,FALSE)","v":2976},{"$f":"HLOOKUP(CX$7+0.5,$I$66:$DJ$120,ROWS($A$10:$A41)+2,FALSE)","v":410},{"$f":"HLOOKUP(CY$7+0.5,$I$66:$DJ$120,ROWS($A$10:$A41)+2,FALSE)","v":1386},{"$f":"HLOOKUP(CZ$7+0.5,$I$66:$DJ$120,ROWS($A$10:$A41)+2,FALSE)","v":644},{"$f":"HLOOKUP(DA$7+0.5,$I$66:$DJ$120,ROWS($A$10:$A41)+2,FALSE)","v":612},{"$f":"HLOOKUP(DB$7+0.5,$I$66:$DJ$120,ROWS($A$10:$A41)+2,FALSE)","v":1335},{"$f":"HLOOKUP(DC$7+0.5,$I$66:$DJ$120,ROWS($A$10:$A41)+2,FALSE)","v":341},{"$f":"HLOOKUP(DD$7+0.5,$I$66:$DJ$120,ROWS($A$10:$A41)+2,FALSE)","v":57},{"$f":"HLOOKUP(DE$7+0.5,$I$66:$DJ$120,ROWS($A$10:$A41)+2,FALSE)","v":1899},{"$f":"HLOOKUP(DF$7+0.5,$I$66:$DJ$120,ROWS($A$10:$A41)+2,FALSE)","v":1244},{"$f":"HLOOKUP(DG$7+0.5,$I$66:$DJ$120,ROWS($A$10:$A41)+2,FALSE)","v":201},{"$f":"HLOOKUP(DH$7+0.5,$I$66:$DJ$120,ROWS($A$10:$A41)+2,FALSE)","v":457},{"$f":"HLOOKUP(DI$7+0.5,$I$66:$DJ$120,ROWS($A$10:$A41)+2,FALSE)","v":30},{"$f":"HLOOKUP(DJ$7+0.5,$I$66:$DJ$120,ROWS($A$10:$A41)+2,FALSE)","v":1462}]
[null,"New Mexico",2060595,2119,1769341,11461,226243,12069,{"$f":"HLOOKUP(I$7,$I$66:$DJ$120,ROWS($A$10:$A42)+2,FALSE)","v":54693},{"$f":"HLOOKUP(J$7,$I$66:$DJ$120,ROWS($A$10:$A42)+2,FALSE)","v":787},{"$f":"HLOOKUP(K$7,$I$66:$DJ$120,ROWS($A$10:$A42)+2,FALSE)","v":320},{"$f":"HLOOKUP(L$7,$I$66:$DJ$120,ROWS($A$10:$A42)+2,FALSE)","v":6391},{"$f":"HLOOKUP(M$7,$I$66:$DJ$120,ROWS($A$10:$A42)+2,FALSE)","v":410},{"$f":"HLOOKUP(N$7,$I$66:$DJ$120,ROWS($A$10:$A42)+2,FALSE)","v":4536},{"$f":"HLOOKUP(O$7,$I$66:$DJ$120,ROWS($A$10:$A42)+2,FALSE)","v":4780},{"$f":"HLOOKUP(P$7,$I$66:$DJ$120,ROWS($A$10:$A42)+2,FALSE)","v":280},{"$f":"HLOOKUP(Q$7,$I$66:$DJ$120,ROWS($A$10:$A42)+2,FALSE)","v":100},{"$f":"HLOOKUP(R$7,$I$66:$DJ$120,ROWS($A$10:$A42)+2,FALSE)","v":25},{"$f":"HLOOKUP(S$7,$I$66:$DJ$120,ROWS($A$10:$A42)+2,FALSE)","v":4707},{"$f":"HLOOKUP(T$7,$I$66:$DJ$120,ROWS($A$10:$A42)+2,FALSE)","v":192},{"$f":"HLOOKUP(U$7,$I$66:$DJ$120,ROWS($A$10:$A42)+2,FALSE)","v":168},{"$f":"HLOOKUP(V$7,$I$66:$DJ$120,ROWS($A$10:$A42)+2,FALSE)","v":355},{"$f":"HLOOKUP(W$7,$I$66:$DJ$120,ROWS($A$10:$A42)+2,FALSE)","v":790},{"$f":"HLOOKUP(X$7,$I$66:$DJ$120,ROWS($A$10:$A42)+2,FALSE)","v":660},{"$f":"HLOOKUP(Y$7,$I$66:$DJ$120,ROWS($A$10:$A42)+2,FALSE)","v":384},{"$f":"HLOOKUP(Z$7,$I$66:$DJ$120,ROWS($A$10:$A42)+2,FALSE)","v":672},{"$f":"HLOOKUP(AA$7,$I$66:$DJ$120,ROWS($A$10:$A42)+2,FALSE)","v":159},{"$f":"HLOOKUP(AB$7,$I$66:$DJ$120,ROWS($A$10:$A42)+2,FALSE)","v":790},{"$f":"HLOOKUP(AC$7,$I$66:$DJ$120,ROWS($A$10:$A42)+2,FALSE)","v":57},{"$f":"HLOOKUP(AD$7,$I$66:$DJ$120,ROWS($A$10:$A42)+2,FALSE)","v":505},{"$f":"HLOOKUP(AE$7,$I$66:$DJ$120,ROWS($A$10:$A42)+2,FALSE)","v":303},{"$f":"HLOOKUP(AF$7,$I$66:$DJ$120,ROWS($A$10:$A42)+2,FALSE)","v":602},{"$f":"HLOOKUP(AG$7,$I$66:$DJ$120,ROWS($A$10:$A42)+2,FALSE)","v":284},{"$f":"HLOOKUP(AH$7,$I$66:$DJ$120,ROWS($A$10:$A42)+2,FALSE)","v":451},{"$f":"HLOOKUP(AI$7,$I$66:$DJ$120,ROWS($A$10:$A42)+2,FALSE)","v":1216},{"$f":"HLOOKUP(AJ$7,$I$66:$DJ$120,ROWS($A$10:$A42)+2,FALSE)","v":139},{"$f":"HLOOKUP(AK$7,$I$66:$DJ$120,ROWS($A$10:$A42)+2,FALSE)","v":194},{"$f":"HLOOKUP(AL$7,$I$66:$DJ$120,ROWS($A$10:$A42)+2,FALSE)","v":604},{"$f":"HLOOKUP(AM$7,$I$66:$DJ$120,ROWS($A$10:$A42)+2,FALSE)","v":268},{"$f":"HLOOKUP(AN$7,$I$66:$DJ$120,ROWS($A$10:$A42)+2,FALSE)","v":252},{"$f":"HLOOKUP(AO$7,$I$66:$DJ$120,ROWS($A$10:$A42)+2,FALSE)","v":"N/A"},{"$f":"HLOOKUP(AP$7,$I$66:$DJ$120,ROWS($A$10:$A42)+2,FALSE)","v":1111},{"$f":"HLOOKUP(AQ$7,$I$66:$DJ$120,ROWS($A$10:$A42)+2,FALSE)","v":335},{"$f":"HLOOKUP(AR$7,$I$66:$DJ$120,ROWS($A$10:$A42)+2,FALSE)","v":41},{"$f":"HLOOKUP(AS$7,$I$66:$DJ$120,ROWS($A$10:$A42)+2,FALSE)","v":1178},{"$f":"HLOOKUP(AT$7,$I$66:$DJ$120,ROWS($A$10:$A42)+2,FALSE)","v":1076},{"$f":"HLOOKUP(AU$7,$I$66:$DJ$120,ROWS($A$10:$A42)+2,FALSE)","v":932},{"$f":"HLOOKUP(AV$7,$I$66:$DJ$120,ROWS($A$10:$A42)+2,FALSE)","v":822},{"$f":"HLOOKUP(AW$7,$I$66:$DJ$120,ROWS($A$10:$A42)+2,FALSE)","v":0},{"$f":"HLOOKUP(AX$7,$I$66:$DJ$120,ROWS($A$10:$A42)+2,FALSE)","v":325},{"$f":"HLOOKUP(AY$7,$I$66:$DJ$120,ROWS($A$10:$A42)+2,FALSE)","v":509},{"$f":"HLOOKUP(AZ$7,$I$66:$DJ$120,ROWS($A$10:$A42)+2,FALSE)","v":338},{"$f":"HLOOKUP(BA$7,$I$66:$DJ$120,ROWS($A$10:$A42)+2,FALSE)","v":11955},{"$f":"HLOOKUP(BB$7,$I$66:$DJ$120,ROWS($A$10:$A42)+2,FALSE)","v":1382},{"$f":"HLOOKUP(BC$7,$I$66:$DJ$120,ROWS($A$10:$A42)+2,FALSE)","v":81},{"$f":"HLOOKUP(BD$7,$I$66:$DJ$120,ROWS($A$10:$A42)+2,FALSE)","v":1560},{"$f":"HLOOKUP(BE$7,$I$66:$DJ$120,ROWS($A$10:$A42)+2,FALSE)","v":1251},{"$f":"HLOOKUP(BF$7,$I$66:$DJ$120,ROWS($A$10:$A42)+2,FALSE)","v":0},{"$f":"HLOOKUP(BG$7,$I$66:$DJ$120,ROWS($A$10:$A42)+2,FALSE)","v":321},{"$f":"HLOOKUP(BH$7,$I$66:$DJ$120,ROWS($A$10:$A42)+2,FALSE)","v":95},{"$f":"HLOOKUP(BI$7,$I$66:$DJ$120,ROWS($A$10:$A42)+2,FALSE)","v":429},{"$f":"HLOOKUP(BJ$7+0.5,$I$66:$DJ$120,ROWS($A$10:$A42)+2,FALSE)","v":5877},{"$f":"HLOOKUP(BK$7+0.5,$I$66:$DJ$120,ROWS($A$10:$A42)+2,FALSE)","v":509},{"$f":"HLOOKUP(BL$7+0.5,$I$66:$DJ$120,ROWS($A$10:$A42)+2,FALSE)","v":264},{"$f":"HLOOKUP(BM$7+0.5,$I$66:$DJ$120,ROWS($A$10:$A42)+2,FALSE)","v":1673},{"$f":"HLOOKUP(BN$7+0.5,$I$66:$DJ$120,ROWS($A$10:$A42)+2,FALSE)","v":286},{"$f":"HLOOKUP(BO$7+0.5,$I$66:$DJ$120,ROWS($A$10:$A42)+2,FALSE)","v":1440},{"$f":"HLOOKUP(BP$7+0.5,$I$66:$DJ$120,ROWS($A$10:$A42)+2,FALSE)","v":1546},{"$f":"HLOOKUP(BQ$7+0.5,$I$66:$DJ$120,ROWS($A$10:$A42)+2,FALSE)","v":250},{"$f":"HLOOKUP(BR$7+0.5,$I$66:$DJ$120,ROWS($A$10:$A42)+2,FALSE)","v":136},{"$f":"HLOOKUP(BS$7+0.5,$I$66:$DJ$120,ROWS($A$10:$A42)+2,FALSE)","v":51},{"$f":"HLOOKUP(BT$7+0.5,$I$66:$DJ$120,ROWS($A$10:$A42)+2,FALSE)","v":2184},{"$f":"HLOOKUP(BU$7+0.5,$I$66:$DJ$120,ROWS($A$10:$A42)+2,FALSE)","v":184},{"$f":"HLOOKUP(BV$7+0.5,$I$66:$DJ$120,ROWS($A$10:$A42)+2,FALSE)","v":127},{"$f":"HLOOKUP(BW$7+0.5,$I$66:$DJ$120,ROWS($A$10:$A42)+2,FALSE)","v":352},{"$f":"HLOOKUP(BX$7+0.5,$I$66:$DJ$120,ROWS($A$10:$A42)+2,FALSE)","v":530},{"$f":"HLOOKUP(BY$7+0.5,$I$66:$DJ$120,ROWS($A$10:$A42)+2,FALSE)","v":524},{"$f":"HLOOKUP(BZ$7+0.5,$I$66:$DJ$120,ROWS($A$10:$A42)+2,FALSE)","v":331},{"$f":"HLOOKUP(CA$7+0.5,$I$66:$DJ$120,ROWS($A$10:$A42)+2,FALSE)","v":537},{"$f":"HLOOKUP(CB$7+0.5,$I$66:$DJ$120,ROWS($A$10:$A42)+2,FALSE)","v":160},{"$f":"HLOOKUP(CC$7+0.5,$I$66:$DJ$120,ROWS($A$10:$A42)+2,FALSE)","v":883},{"$f":"HLOOKUP(CD$7+0.5,$I$66:$DJ$120,ROWS($A$10:$A42)+2,FALSE)","v":80},{"$f":"HLOOKUP(CE$7+0.5,$I$66:$DJ$120,ROWS($A$10:$A42)+2,FALSE)","v":355},{"$f":"HLOOKUP(CF$7+0.5,$I$66:$DJ$120,ROWS($A$10:$A42)+2,FALSE)","v":298},{"$f":"HLOOKUP(CG$7+0.5,$I$66:$DJ$120,ROWS($A$10:$A42)+2,FALSE)","v":490},{"$f":"HLOOKUP(CH$7+0.5,$I$66:$DJ$120,ROWS($A$10:$A42)+2,FALSE)","v":428},{"$f":"HLOOKUP(CI$7+0.5,$I$66:$DJ$120,ROWS($A$10:$A42)+2,FALSE)","v":630},{"$f":"HLOOKUP(CJ$7+0.5,$I$66:$DJ$120,ROWS($A$10:$A42)+2,FALSE)","v":793},{"$f":"HLOOKUP(CK$7+0.5,$I$66:$DJ$120,ROWS($A$10:$A42)+2,FALSE)","v":162},{"$f":"HLOOKUP(CL$7+0.5,$I$66:$DJ$120,ROWS($A$10:$A42)+2,FALSE)","v":220},{"$f":"HLOOKUP(CM$7+0.5,$I$66:$DJ$120,ROWS($A$10:$A42)+2,FALSE)","v":853},{"$f":"HLOOKUP(CN$7+0.5,$I$66:$DJ$120,ROWS($A$10:$A42)+2,FALSE)","v":259},{"$f":"HLOOKUP(CO$7+0.5,$I$66:$DJ$120,ROWS($A$10:$A42)+2,FALSE)","v":271},{"$f":"HLOOKUP(CP$7+0.5,$I$66:$DJ$120,ROWS($A$10:$A42)+2,FALSE)","v":"N/A"},{"$f":"HLOOKUP(CQ$7+0.5,$I$66:$DJ$120,ROWS($A$10:$A42)+2,FALSE)","v":618},{"$f":"HLOOKUP(CR$7+0.5,$I$66:$DJ$120,ROWS($A$10:$A42)+2,FALSE)","v":373},{"$f":"HLOOKUP(CS$7+0.5,$I$66:$DJ$120,ROWS($A$10:$A42)+2,FALSE)","v":82},{"$f":"HLOOKUP(CT$7+0.5,$I$66:$DJ$120,ROWS($A$10:$A42)+2,FALSE)","v":1049},{"$f":"HLOOKUP(CU$7+0.5,$I$66:$DJ$120,ROWS($A$10:$A42)+2,FALSE)","v":568},{"$f":"HLOOKUP(CV$7+0.5,$I$66:$DJ$120,ROWS($A$10:$A42)+2,FALSE)","v":481},{"$f":"HLOOKUP(CW$7+0.5,$I$66:$DJ$120,ROWS($A$10:$A42)+2,FALSE)","v":666},{"$f":"HLOOKUP(CX$7+0.5,$I$66:$DJ$120,ROWS($A$10:$A42)+2,FALSE)","v":185},{"$f":"HLOOKUP(CY$7+0.5,$I$66:$DJ$120,ROWS($A$10:$A42)+2,FALSE)","v":260},{"$f":"HLOOKUP(CZ$7+0.5,$I$66:$DJ$120,ROWS($A$10:$A42)+2,FALSE)","v":547},{"$f":"HLOOKUP(DA$7+0.5,$I$66:$DJ$120,ROWS($A$10:$A42)+2,FALSE)","v":274},{"$f":"HLOOKUP(DB$7+0.5,$I$66:$DJ$120,ROWS($A$10:$A42)+2,FALSE)","v":2917},{"$f":"HLOOKUP(DC$7+0.5,$I$66:$DJ$120,ROWS($A$10:$A42)+2,FALSE)","v":889},{"$f":"HLOOKUP(DD$7+0.5,$I$66:$DJ$120,ROWS($A$10:$A42)+2,FALSE)","v":103},{"$f":"HLOOKUP(DE$7+0.5,$I$66:$DJ$120,ROWS($A$10:$A42)+2,FALSE)","v":1330},{"$f":"HLOOKUP(DF$7+0.5,$I$66:$DJ$120,ROWS($A$10:$A42)+2,FALSE)","v":575},{"$f":"HLOOKUP(DG$7+0.5,$I$66:$DJ$120,ROWS($A$10:$A42)+2,FALSE)","v":185},{"$f":"HLOOKUP(DH$7+0.5,$I$66:$DJ$120,ROWS($A$10:$A42)+2,FALSE)","v":514},{"$f":"HLOOKUP(DI$7+0.5,$I$66:$DJ$120,ROWS($A$10:$A42)+2,FALSE)","v":100},{"$f":"HLOOKUP(DJ$7+0.5,$I$66:$DJ$120,ROWS($A$10:$A42)+2,FALSE)","v":466}]
[null,"New York",19352153,6112,17202134,34343,1723117,30910,{"$f":"HLOOKUP(I$7,$I$66:$DJ$120,ROWS($A$10:$A43)+2,FALSE)","v":270053},{"$f":"HLOOKUP(J$7,$I$66:$DJ$120,ROWS($A$10:$A43)+2,FALSE)","v":1364},{"$f":"HLOOKUP(K$7,$I$66:$DJ$120,ROWS($A$10:$A43)+2,FALSE)","v":4002},{"$f":"HLOOKUP(L$7,$I$66:$DJ$120,ROWS($A$10:$A43)+2,FALSE)","v":4146},{"$f":"HLOOKUP(M$7,$I$66:$DJ$120,ROWS($A$10:$A43)+2,FALSE)","v":247},{"$f":"HLOOKUP(N$7,$I$66:$DJ$120,ROWS($A$10:$A43)+2,FALSE)","v":24623},{"$f":"HLOOKUP(O$7,$I$66:$DJ$120,ROWS($A$10:$A43)+2,FALSE)","v":3596},{"$f":"HLOOKUP(P$7,$I$66:$DJ$120,ROWS($A$10:$A43)+2,FALSE)","v":14595},{"$f":"HLOOKUP(Q$7,$I$66:$DJ$120,ROWS($A$10:$A43)+2,FALSE)","v":477},{"$f":"HLOOKUP(R$7,$I$66:$DJ$120,ROWS($A$10:$A43)+2,FALSE)","v":3936},{"$f":"HLOOKUP(S$7,$I$66:$DJ$120,ROWS($A$10:$A43)+2,FALSE)","v":27392},{"$f":"HLOOKUP(T$7,$I$66:$DJ$120,ROWS($A$10:$A43)+2,FALSE)","v":7592},{"$f":"HLOOKUP(U$7,$I$66:$DJ$120,ROWS($A$10:$A43)+2,FALSE)","v":1598},{"$f":"HLOOKUP(V$7,$I$66:$DJ$120,ROWS($A$10:$A43)+2,FALSE)","v":607},{"$f":"HLOOKUP(W$7,$I$66:$DJ$120,ROWS($A$10:$A43)+2,FALSE)","v":8017},{"$f":"HLOOKUP(X$7,$I$66:$DJ$120,ROWS($A$10:$A43)+2,FALSE)","v":3040},{"$f":"HLOOKUP(Y$7,$I$66:$DJ$120,ROWS($A$10:$A43)+2,FALSE)","v":955},{"$f":"HLOOKUP(Z$7,$I$66:$DJ$120,ROWS($A$10:$A43)+2,FALSE)","v":1437},{"$f":"HLOOKUP(AA$7,$I$66:$DJ$120,ROWS($A$10:$A43)+2,FALSE)","v":1753},{"$f":"HLOOKUP(AB$7,$I$66:$DJ$120,ROWS($A$10:$A43)+2,FALSE)","v":1083},{"$f":"HLOOKUP(AC$7,$I$66:$DJ$120,ROWS($A$10:$A43)+2,FALSE)","v":1345},{"$f":"HLOOKUP(AD$7,$I$66:$DJ$120,ROWS($A$10:$A43)+2,FALSE)","v":7321},{"$f":"HLOOKUP(AE$7,$I$66:$DJ$120,ROWS($A$10:$A43)+2,FALSE)","v":15073},{"$f":"HLOOKUP(AF$7,$I$66:$DJ$120,ROWS($A$10:$A43)+2,FALSE)","v":5191},{"$f":"HLOOKUP(AG$7,$I$66:$DJ$120,ROWS($A$10:$A43)+2,FALSE)","v":1059},{"$f":"HLOOKUP(AH$7,$I$66:$DJ$120,ROWS($A$10:$A43)+2,FALSE)","v":773},{"$f":"HLOOKUP(AI$7,$I$66:$DJ$120,ROWS($A$10:$A43)+2,FALSE)","v":3310},{"$f":"HLOOKUP(AJ$7,$I$66:$DJ$120,ROWS($A$10:$A43)+2,FALSE)","v":421},{"$f":"HLOOKUP(AK$7,$I$66:$DJ$120,ROWS($A$10:$A43)+2,FALSE)","v":78},{"$f":"HLOOKUP(AL$7,$I$66:$DJ$120,ROWS($A$10:$A43)+2,FALSE)","v":600},{"$f":"HLOOKUP(AM$7,$I$66:$DJ$120,ROWS($A$10:$A43)+2,FALSE)","v":2760},{"$f":"HLOOKUP(AN$7,$I$66:$DJ$120,ROWS($A$10:$A43)+2,FALSE)","v":42574},{"$f":"HLOOKUP(AO$7,$I$66:$DJ$120,ROWS($A$10:$A43)+2,FALSE)","v":646},{"$f":"HLOOKUP(AP$7,$I$66:$DJ$120,ROWS($A$10:$A43)+2,FALSE)","v":"N/A"},{"$f":"HLOOKUP(AQ$7,$I$66:$DJ$120,ROWS($A$10:$A43)+2,FALSE)","v":10544},{"$f":"HLOOKUP(AR$7,$I$66:$DJ$120,ROWS($A$10:$A43)+2,FALSE)","v":77},{"$f":"HLOOKUP(AS$7,$I$66:$DJ$120,ROWS($A$10:$A43)+2,FALSE)","v":4625},{"$f":"HLOOKUP(AT$7,$I$66:$DJ$120,ROWS($A$10:$A43)+2,FALSE)","v":1327},{"$f":"HLOOKUP(AU$7,$I$66:$DJ$120,ROWS($A$10:$A43)+2,FALSE)","v":1055},{"$f":"HLOOKUP(AV$7,$I$66:$DJ$120,ROWS($A$10:$A43)+2,FALSE)","v":22895},{"$f":"HLOOKUP(AW$7,$I$66:$DJ$120,ROWS($A$10:$A43)+2,FALSE)","v":3222},{"$f":"HLOOKUP(AX$7,$I$66:$DJ$120,ROWS($A$10:$A43)+2,FALSE)","v":5952},{"$f":"HLOOKUP(AY$7,$I$66:$DJ$120,ROWS($A$10:$A43)+2,FALSE)","v":0},{"$f":"HLOOKUP(AZ$7,$I$66:$DJ$120,ROWS($A$10:$A43)+2,FALSE)","v":1279},{"$f":"HLOOKUP(BA$7,$I$66:$DJ$120,ROWS($A$10:$A43)+2,FALSE)","v":11231},{"$f":"HLOOKUP(BB$7,$I$66:$DJ$120,ROWS($A$10:$A43)+2,FALSE)","v":622},{"$f":"HLOOKUP(BC$7,$I$66:$DJ$120,ROWS($A$10:$A43)+2,FALSE)","v":2764},{"$f":"HLOOKUP(BD$7,$I$66:$DJ$120,ROWS($A$10:$A43)+2,FALSE)","v":7939},{"$f":"HLOOKUP(BE$7,$I$66:$DJ$120,ROWS($A$10:$A43)+2,FALSE)","v":2614},{"$f":"HLOOKUP(BF$7,$I$66:$DJ$120,ROWS($A$10:$A43)+2,FALSE)","v":921},{"$f":"HLOOKUP(BG$7,$I$66:$DJ$120,ROWS($A$10:$A43)+2,FALSE)","v":979},{"$f":"HLOOKUP(BH$7,$I$66:$DJ$120,ROWS($A$10:$A43)+2,FALSE)","v":396},{"$f":"HLOOKUP(BI$7,$I$66:$DJ$120,ROWS($A$10:$A43)+2,FALSE)","v":7321},{"$f":"HLOOKUP(BJ$7+0.5,$I$66:$DJ$120,ROWS($A$10:$A43)+2,FALSE)","v":11861},{"$f":"HLOOKUP(BK$7+0.5,$I$66:$DJ$120,ROWS($A$10:$A43)+2,FALSE)","v":864},{"$f":"HLOOKUP(BL$7+0.5,$I$66:$DJ$120,ROWS($A$10:$A43)+2,FALSE)","v":2016},{"$f":"HLOOKUP(BM$7+0.5,$I$66:$DJ$120,ROWS($A$10:$A43)+2,FALSE)","v":2468},{"$f":"HLOOKUP(BN$7+0.5,$I$66:$DJ$120,ROWS($A$10:$A43)+2,FALSE)","v":203},{"$f":"HLOOKUP(BO$7+0.5,$I$66:$DJ$120,ROWS($A$10:$A43)+2,FALSE)","v":2557},{"$f":"HLOOKUP(BP$7+0.5,$I$66:$DJ$120,ROWS($A$10:$A43)+2,FALSE)","v":976},{"$f":"HLOOKUP(BQ$7+0.5,$I$66:$DJ$120,ROWS($A$10:$A43)+2,FALSE)","v":2921},{"$f":"HLOOKUP(BR$7+0.5,$I$66:$DJ$120,ROWS($A$10:$A43)+2,FALSE)","v":284},{"$f":"HLOOKUP(BS$7+0.5,$I$66:$DJ$120,ROWS($A$10:$A43)+2,FALSE)","v":1392},{"$f":"HLOOKUP(BT$7+0.5,$I$66:$DJ$120,ROWS($A$10:$A43)+2,FALSE)","v":3450},{"$f":"HLOOKUP(BU$7+0.5,$I$66:$DJ$120,ROWS($A$10:$A43)+2,FALSE)","v":1925},{"$f":"HLOOKUP(BV$7+0.5,$I$66:$DJ$120,ROWS($A$10:$A43)+2,FALSE)","v":734},{"$f":"HLOOKUP(BW$7+0.5,$I$66:$DJ$120,ROWS($A$10:$A43)+2,FALSE)","v":472},{"$f":"HLOOKUP(BX$7+0.5,$I$66:$DJ$120,ROWS($A$10:$A43)+2,FALSE)","v":2204},{"$f":"HLOOKUP(BY$7+0.5,$I$66:$DJ$120,ROWS($A$10:$A43)+2,FALSE)","v":1128},{"$f":"HLOOKUP(BZ$7+0.5,$I$66:$DJ$120,ROWS($A$10:$A43)+2,FALSE)","v":658},{"$f":"HLOOKUP(CA$7+0.5,$I$66:$DJ$120,ROWS($A$10:$A43)+2,FALSE)","v":906},{"$f":"HLOOKUP(CB$7+0.5,$I$66:$DJ$120,ROWS($A$10:$A43)+2,FALSE)","v":808},{"$f":"HLOOKUP(CC$7+0.5,$I$66:$DJ$120,ROWS($A$10:$A43)+2,FALSE)","v":465},{"$f":"HLOOKUP(CD$7+0.5,$I$66:$DJ$120,ROWS($A$10:$A43)+2,FALSE)","v":536},{"$f":"HLOOKUP(CE$7+0.5,$I$66:$DJ$120,ROWS($A$10:$A43)+2,FALSE)","v":1575},{"$f":"HLOOKUP(CF$7+0.5,$I$66:$DJ$120,ROWS($A$10:$A43)+2,FALSE)","v":2292},{"$f":"HLOOKUP(CG$7+0.5,$I$66:$DJ$120,ROWS($A$10:$A43)+2,FALSE)","v":1445},{"$f":"HLOOKUP(CH$7+0.5,$I$66:$DJ$120,ROWS($A$10:$A43)+2,FALSE)","v":631},{"$f":"HLOOKUP(CI$7+0.5,$I$66:$DJ$120,ROWS($A$10:$A43)+2,FALSE)","v":800},{"$f":"HLOOKUP(CJ$7+0.5,$I$66:$DJ$120,ROWS($A$10:$A43)+2,FALSE)","v":1260},{"$f":"HLOOKUP(CK$7+0.5,$I$66:$DJ$120,ROWS($A$10:$A43)+2,FALSE)","v":424},{"$f":"HLOOKUP(CL$7+0.5,$I$66:$DJ$120,ROWS($A$10:$A43)+2,FALSE)","v":108},{"$f":"HLOOKUP(CM$7+0.5,$I$66:$DJ$120,ROWS($A$10:$A43)+2,FALSE)","v":382},{"$f":"HLOOKUP(CN$7+0.5,$I$66:$DJ$120,ROWS($A$10:$A43)+2,FALSE)","v":1059},{"$f":"HLOOKUP(CO$7+0.5,$I$66:$DJ$120,ROWS($A$10:$A43)+2,FALSE)","v":4802},{"$f":"HLOOKUP(CP$7+0.5,$I$66:$DJ$120,ROWS($A$10:$A43)+2,FALSE)","v":445},{"$f":"HLOOKUP(CQ$7+0.5,$I$66:$DJ$120,ROWS($A$10:$A43)+2,FALSE)","v":"N/A"},{"$f":"HLOOKUP(CR$7+0.5,$I$66:$DJ$120,ROWS($A$10:$A43)+2,FALSE)","v":2568},{"$f":"HLOOKUP(CS$7+0.5,$I$66:$DJ$120,ROWS($A$10:$A43)+2,FALSE)","v":129},{"$f":"HLOOKUP(CT$7+0.5,$I$66:$DJ$120,ROWS($A$10:$A43)+2,FALSE)","v":1103},{"$f":"HLOOKUP(CU$7+0.5,$I$66:$DJ$120,ROWS($A$10:$A43)+2,FALSE)","v":652},{"$f":"HLOOKUP(CV$7+0.5,$I$66:$DJ$120,ROWS($A$10:$A43)+2,FALSE)","v":716},{"$f":"HLOOKUP(CW$7+0.5,$I$66:$DJ$120,ROWS($A$10:$A43)+2,FALSE)","v":3206},{"$f":"HLOOKUP(CX$7+0.5,$I$66:$DJ$120,ROWS($A$10:$A43)+2,FALSE)","v":1538},{"$f":"HLOOKUP(CY$7+0.5,$I$66:$DJ$120,ROWS($A$10:$A43)+2,FALSE)","v":1542},{"$f":"HLOOKUP(CZ$7+0.5,$I$66:$DJ$120,ROWS($A$10:$A43)+2,FALSE)","v":185},{"$f":"HLOOKUP(DA$7+0.5,$I$66:$DJ$120,ROWS($A$10:$A43)+2,FALSE)","v":624},{"$f":"HLOOKUP(DB$7+0.5,$I$66:$DJ$120,ROWS($A$10:$A43)+2,FALSE)","v":2384},{"$f":"HLOOKUP(DC$7+0.5,$I$66:$DJ$120,ROWS($A$10:$A43)+2,FALSE)","v":489},{"$f":"HLOOKUP(DD$7+0.5,$I$66:$DJ$120,ROWS($A$10:$A43)+2,FALSE)","v":1025},{"$f":"HLOOKUP(DE$7+0.5,$I$66:$DJ$120,ROWS($A$10:$A43)+2,FALSE)","v":2109},{"$f":"HLOOKUP(DF$7+0.5,$I$66:$DJ$120,ROWS($A$10:$A43)+2,FALSE)","v":840},{"$f":"HLOOKUP(DG$7+0.5,$I$66:$DJ$120,ROWS($A$10:$A43)+2,FALSE)","v":689},{"$f":"HLOOKUP(DH$7+0.5,$I$66:$DJ$120,ROWS($A$10:$A43)+2,FALSE)","v":507},{"$f":"HLOOKUP(DI$7+0.5,$I$66:$DJ$120,ROWS($A$10:$A43)+2,FALSE)","v":370},{"$f":"HLOOKUP(DJ$7+0.5,$I$66:$DJ$120,ROWS($A$10:$A43)+2,FALSE)","v":1791}]
[null,"North Carolina",9640490,5097,8167830,27074,1149080,24801,{"$f":"HLOOKUP(I$7,$I$66:$DJ$120,ROWS($A$10:$A44)+2,FALSE)","v":273149},{"$f":"HLOOKUP(J$7,$I$66:$DJ$120,ROWS($A$10:$A44)+2,FALSE)","v":4329},{"$f":"HLOOKUP(K$7,$I$66:$DJ$120,ROWS($A$10:$A44)+2,FALSE)","v":1458},{"$f":"HLOOKUP(L$7,$I$66:$DJ$120,ROWS($A$10:$A44)+2,FALSE)","v":3493},{"$f":"HLOOKUP(M$7,$I$66:$DJ$120,ROWS($A$10:$A44)+2,FALSE)","v":861},{"$f":"HLOOKUP(N$7,$I$66:$DJ$120,ROWS($A$10:$A44)+2,FALSE)","v":13883},{"$f":"HLOOKUP(O$7,$I$66:$DJ$120,ROWS($A$10:$A44)+2,FALSE)","v":4790},{"$f":"HLOOKUP(P$7,$I$66:$DJ$120,ROWS($A$10:$A44)+2,FALSE)","v":4914},{"$f":"HLOOKUP(Q$7,$I$66:$DJ$120,ROWS($A$10:$A44)+2,FALSE)","v":2180},{"$f":"HLOOKUP(R$7,$I$66:$DJ$120,ROWS($A$10:$A44)+2,FALSE)","v":1801},{"$f":"HLOOKUP(S$7,$I$66:$DJ$120,ROWS($A$10:$A44)+2,FALSE)","v":26365},{"$f":"HLOOKUP(T$7,$I$66:$DJ$120,ROWS($A$10:$A44)+2,FALSE)","v":16823},{"$f":"HLOOKUP(U$7,$I$66:$DJ$120,ROWS($A$10:$A44)+2,FALSE)","v":1566},{"$f":"HLOOKUP(V$7,$I$66:$DJ$120,ROWS($A$10:$A44)+2,FALSE)","v":334},{"$f":"HLOOKUP(W$7,$I$66:$DJ$120,ROWS($A$10:$A44)+2,FALSE)","v":6378},{"$f":"HLOOKUP(X$7,$I$66:$DJ$120,ROWS($A$10:$A44)+2,FALSE)","v":4532},{"$f":"HLOOKUP(Y$7,$I$66:$DJ$120,ROWS($A$10:$A44)+2,FALSE)","v":775},{"$f":"HLOOKUP(Z$7,$I$66:$DJ$120,ROWS($A$10:$A44)+2,FALSE)","v":1595},{"$f":"HLOOKUP(AA$7,$I$66:$DJ$120,ROWS($A$10:$A44)+2,FALSE)","v":1531},{"$f":"HLOOKUP(AB$7,$I$66:$DJ$120,ROWS($A$10:$A44)+2,FALSE)","v":919},{"$f":"HLOOKUP(AC$7,$I$66:$DJ$120,ROWS($A$10:$A44)+2,FALSE)","v":1259},{"$f":"HLOOKUP(AD$7,$I$66:$DJ$120,ROWS($A$10:$A44)+2,FALSE)","v":9005},{"$f":"HLOOKUP(AE$7,$I$66:$DJ$120,ROWS($A$10:$A44)+2,FALSE)","v":3710},{"$f":"HLOOKUP(AF$7,$I$66:$DJ$120,ROWS($A$10:$A44)+2,FALSE)","v":6161},{"$f":"HLOOKUP(AG$7,$I$66:$DJ$120,ROWS($A$10:$A44)+2,FALSE)","v":1523},{"$f":"HLOOKUP(AH$7,$I$66:$DJ$120,ROWS($A$10:$A44)+2,FALSE)","v":2377},{"$f":"HLOOKUP(AI$7,$I$66:$DJ$120,ROWS($A$10:$A44)+2,FALSE)","v":2623},{"$f":"HLOOKUP(AJ$7,$I$66:$DJ$120,ROWS($A$10:$A44)+2,FALSE)","v":244},{"$f":"HLOOKUP(AK$7,$I$66:$DJ$120,ROWS($A$10:$A44)+2,FALSE)","v":628},{"$f":"HLOOKUP(AL$7,$I$66:$DJ$120,ROWS($A$10:$A44)+2,FALSE)","v":1627},{"$f":"HLOOKUP(AM$7,$I$66:$DJ$120,ROWS($A$10:$A44)+2,FALSE)","v":754},{"$f":"HLOOKUP(AN$7,$I$66:$DJ$120,ROWS($A$10:$A44)+2,FALSE)","v":11468},{"$f":"HLOOKUP(AO$7,$I$66:$DJ$120,ROWS($A$10:$A44)+2,FALSE)","v":1138},{"$f":"HLOOKUP(AP$7,$I$66:$DJ$120,ROWS($A$10:$A44)+2,FALSE)","v":19891},{"$f":"HLOOKUP(AQ$7,$I$66:$DJ$120,ROWS($A$10:$A44)+2,FALSE)","v":"N/A"},{"$f":"HLOOKUP(AR$7,$I$66:$DJ$120,ROWS($A$10:$A44)+2,FALSE)","v":206},{"$f":"HLOOKUP(AS$7,$I$66:$DJ$120,ROWS($A$10:$A44)+2,FALSE)","v":9337},{"$f":"HLOOKUP(AT$7,$I$66:$DJ$120,ROWS($A$10:$A44)+2,FALSE)","v":1263},{"$f":"HLOOKUP(AU$7,$I$66:$DJ$120,ROWS($A$10:$A44)+2,FALSE)","v":1333},{"$f":"HLOOKUP(AV$7,$I$66:$DJ$120,ROWS($A$10:$A44)+2,FALSE)","v":12179},{"$f":"HLOOKUP(AW$7,$I$66:$DJ$120,ROWS($A$10:$A44)+2,FALSE)","v":290},{"$f":"HLOOKUP(AX$7,$I$66:$DJ$120,ROWS($A$10:$A44)+2,FALSE)","v":25532},{"$f":"HLOOKUP(AY$7,$I$66:$DJ$120,ROWS($A$10:$A44)+2,FALSE)","v":351},{"$f":"HLOOKUP(AZ$7,$I$66:$DJ$120,ROWS($A$10:$A44)+2,FALSE)","v":9230},{"$f":"HLOOKUP(BA$7,$I$66:$DJ$120,ROWS($A$10:$A44)+2,FALSE)","v":12638},{"$f":"HLOOKUP(BB$7,$I$66:$DJ$120,ROWS($A$10:$A44)+2,FALSE)","v":1189},{"$f":"HLOOKUP(BC$7,$I$66:$DJ$120,ROWS($A$10:$A44)+2,FALSE)","v":445},{"$f":"HLOOKUP(BD$7,$I$66:$DJ$120,ROWS($A$10:$A44)+2,FALSE)","v":26759},{"$f":"HLOOKUP(BE$7,$I$66:$DJ$120,ROWS($A$10:$A44)+2,FALSE)","v":5915},{"$f":"HLOOKUP(BF$7,$I$66:$DJ$120,ROWS($A$10:$A44)+2,FALSE)","v":2677},{"$f":"HLOOKUP(BG$7,$I$66:$DJ$120,ROWS($A$10:$A44)+2,FALSE)","v":2266},{"$f":"HLOOKUP(BH$7,$I$66:$DJ$120,ROWS($A$10:$A44)+2,FALSE)","v":604},{"$f":"HLOOKUP(BI$7,$I$66:$DJ$120,ROWS($A$10:$A44)+2,FALSE)","v":2025},{"$f":"HLOOKUP(BJ$7+0.5,$I$66:$DJ$120,ROWS($A$10:$A44)+2,FALSE)","v":13136},{"$f":"HLOOKUP(BK$7+0.5,$I$66:$DJ$120,ROWS($A$10:$A44)+2,FALSE)","v":1544},{"$f":"HLOOKUP(BL$7+0.5,$I$66:$DJ$120,ROWS($A$10:$A44)+2,FALSE)","v":925},{"$f":"HLOOKUP(BM$7+0.5,$I$66:$DJ$120,ROWS($A$10:$A44)+2,FALSE)","v":1189},{"$f":"HLOOKUP(BN$7+0.5,$I$66:$DJ$120,ROWS($A$10:$A44)+2,FALSE)","v":649},{"$f":"HLOOKUP(BO$7+0.5,$I$66:$DJ$120,ROWS($A$10:$A44)+2,FALSE)","v":2813},{"$f":"HLOOKUP(BP$7+0.5,$I$66:$DJ$120,ROWS($A$10:$A44)+2,FALSE)","v":2047},{"$f":"HLOOKUP(BQ$7+0.5,$I$66:$DJ$120,ROWS($A$10:$A44)+2,FALSE)","v":1990},{"$f":"HLOOKUP(BR$7+0.5,$I$66:$DJ$120,ROWS($A$10:$A44)+2,FALSE)","v":1732},{"$f":"HLOOKUP(BS$7+0.5,$I$66:$DJ$120,ROWS($A$10:$A44)+2,FALSE)","v":687},{"$f":"HLOOKUP(BT$7+0.5,$I$66:$DJ$120,ROWS($A$10:$A44)+2,FALSE)","v":3750},{"$f":"HLOOKUP(BU$7+0.5,$I$66:$DJ$120,ROWS($A$10:$A44)+2,FALSE)","v":2851},{"$f":"HLOOKUP(BV$7+0.5,$I$66:$DJ$120,ROWS($A$10:$A44)+2,FALSE)","v":921},{"$f":"HLOOKUP(BW$7+0.5,$I$66:$DJ$120,ROWS($A$10:$A44)+2,FALSE)","v":256},{"$f":"HLOOKUP(BX$7+0.5,$I$66:$DJ$120,ROWS($A$10:$A44)+2,FALSE)","v":2177},{"$f":"HLOOKUP(BY$7+0.5,$I$66:$DJ$120,ROWS($A$10:$A44)+2,FALSE)","v":2259},{"$f":"HLOOKUP(BZ$7+0.5,$I$66:$DJ$120,ROWS($A$10:$A44)+2,FALSE)","v":524},{"$f":"HLOOKUP(CA$7+0.5,$I$66:$DJ$120,ROWS($A$10:$A44)+2,FALSE)","v":748},{"$f":"HLOOKUP(CB$7+0.5,$I$66:$DJ$120,ROWS($A$10:$A44)+2,FALSE)","v":794},{"$f":"HLOOKUP(CC$7+0.5,$I$66:$DJ$120,ROWS($A$10:$A44)+2,FALSE)","v":758},{"$f":"HLOOKUP(CD$7+0.5,$I$66:$DJ$120,ROWS($A$10:$A44)+2,FALSE)","v":972},{"$f":"HLOOKUP(CE$7+0.5,$I$66:$DJ$120,ROWS($A$10:$A44)+2,FALSE)","v":2221},{"$f":"HLOOKUP(CF$7+0.5,$I$66:$DJ$120,ROWS($A$10:$A44)+2,FALSE)","v":1158},{"$f":"HLOOKUP(CG$7+0.5,$I$66:$DJ$120,ROWS($A$10:$A44)+2,FALSE)","v":2547},{"$f":"HLOOKUP(CH$7+0.5,$I$66:$DJ$120,ROWS($A$10:$A44)+2,FALSE)","v":838},{"$f":"HLOOKUP(CI$7+0.5,$I$66:$DJ$120,ROWS($A$10:$A44)+2,FALSE)","v":1092},{"$f":"HLOOKUP(CJ$7+0.5,$I$66:$DJ$120,ROWS($A$10:$A44)+2,FALSE)","v":1742},{"$f":"HLOOKUP(CK$7+0.5,$I$66:$DJ$120,ROWS($A$10:$A44)+2,FALSE)","v":306},{"$f":"HLOOKUP(CL$7+0.5,$I$66:$DJ$120,ROWS($A$10:$A44)+2,FALSE)","v":628},{"$f":"HLOOKUP(CM$7+0.5,$I$66:$DJ$120,ROWS($A$10:$A44)+2,FALSE)","v":807},{"$f":"HLOOKUP(CN$7+0.5,$I$66:$DJ$120,ROWS($A$10:$A44)+2,FALSE)","v":525},{"$f":"HLOOKUP(CO$7+0.5,$I$66:$DJ$120,ROWS($A$10:$A44)+2,FALSE)","v":4262},{"$f":"HLOOKUP(CP$7+0.5,$I$66:$DJ$120,ROWS($A$10:$A44)+2,FALSE)","v":705},{"$f":"HLOOKUP(CQ$7+0.5,$I$66:$DJ$120,ROWS($A$10:$A44)+2,FALSE)","v":3951},{"$f":"HLOOKUP(CR$7+0.5,$I$66:$DJ$120,ROWS($A$10:$A44)+2,FALSE)","v":"N/A"},{"$f":"HLOOKUP(CS$7+0.5,$I$66:$DJ$120,ROWS($A$10:$A44)+2,FALSE)","v":232},{"$f":"HLOOKUP(CT$7+0.5,$I$66:$DJ$120,ROWS($A$10:$A44)+2,FALSE)","v":2484},{"$f":"HLOOKUP(CU$7+0.5,$I$66:$DJ$120,ROWS($A$10:$A44)+2,FALSE)","v":753},{"$f":"HLOOKUP(CV$7+0.5,$I$66:$DJ$120,ROWS($A$10:$A44)+2,FALSE)","v":772},{"$f":"HLOOKUP(CW$7+0.5,$I$66:$DJ$120,ROWS($A$10:$A44)+2,FALSE)","v":2356},{"$f":"HLOOKUP(CX$7+0.5,$I$66:$DJ$120,ROWS($A$10:$A44)+2,FALSE)","v":198},{"$f":"HLOOKUP(CY$7+0.5,$I$66:$DJ$120,ROWS($A$10:$A44)+2,FALSE)","v":4732},{"$f":"HLOOKUP(CZ$7+0.5,$I$66:$DJ$120,ROWS($A$10:$A44)+2,FALSE)","v":186},{"$f":"HLOOKUP(DA$7+0.5,$I$66:$DJ$120,ROWS($A$10:$A44)+2,FALSE)","v":2122},{"$f":"HLOOKUP(DB$7+0.5,$I$66:$DJ$120,ROWS($A$10:$A44)+2,FALSE)","v":2381},{"$f":"HLOOKUP(DC$7+0.5,$I$66:$DJ$120,ROWS($A$10:$A44)+2,FALSE)","v":1040},{"$f":"HLOOKUP(DD$7+0.5,$I$66:$DJ$120,ROWS($A$10:$A44)+2,FALSE)","v":291},{"$f":"HLOOKUP(DE$7+0.5,$I$66:$DJ$120,ROWS($A$10:$A44)+2,FALSE)","v":4229},{"$f":"HLOOKUP(DF$7+0.5,$I$66:$DJ$120,ROWS($A$10:$A44)+2,FALSE)","v":2630},{"$f":"HLOOKUP(DG$7+0.5,$I$66:$DJ$120,ROWS($A$10:$A44)+2,FALSE)","v":985},{"$f":"HLOOKUP(DH$7+0.5,$I$66:$DJ$120,ROWS($A$10:$A44)+2,FALSE)","v":980},{"$f":"HLOOKUP(DI$7+0.5,$I$66:$DJ$120,ROWS($A$10:$A44)+2,FALSE)","v":687},{"$f":"HLOOKUP(DJ$7+0.5,$I$66:$DJ$120,ROWS($A$10:$A44)+2,FALSE)","v":1218}]
[null,"North Dakota",689838,1379,563978,6361,84294,5380,{"$f":"HLOOKUP(I$7,$I$66:$DJ$120,ROWS($A$10:$A45)+2,FALSE)","v":38213},{"$f":"HLOOKUP(J$7,$I$66:$DJ$120,ROWS($A$10:$A45)+2,FALSE)","v":83},{"$f":"HLOOKUP(K$7,$I$66:$DJ$120,ROWS($A$10:$A45)+2,FALSE)","v":70},{"$f":"HLOOKUP(L$7,$I$66:$DJ$120,ROWS($A$10:$A45)+2,FALSE)","v":1571},{"$f":"HLOOKUP(M$7,$I$66:$DJ$120,ROWS($A$10:$A45)+2,FALSE)","v":0},{"$f":"HLOOKUP(N$7,$I$66:$DJ$120,ROWS($A$10:$A45)+2,FALSE)","v":999},{"$f":"HLOOKUP(O$7,$I$66:$DJ$120,ROWS($A$10:$A45)+2,FALSE)","v":546},{"$f":"HLOOKUP(P$7,$I$66:$DJ$120,ROWS($A$10:$A45)+2,FALSE)","v":65},{"$f":"HLOOKUP(Q$7,$I$66:$DJ$120,ROWS($A$10:$A45)+2,FALSE)","v":0},{"$f":"HLOOKUP(R$7,$I$66:$DJ$120,ROWS($A$10:$A45)+2,FALSE)","v":70},{"$f":"HLOOKUP(S$7,$I$66:$DJ$120,ROWS($A$10:$A45)+2,FALSE)","v":950},{"$f":"HLOOKUP(T$7,$I$66:$DJ$120,ROWS($A$10:$A45)+2,FALSE)","v":98},{"$f":"HLOOKUP(U$7,$I$66:$DJ$120,ROWS($A$10:$A45)+2,FALSE)","v":160},{"$f":"HLOOKUP(V$7,$I$66:$DJ$120,ROWS($A$10:$A45)+2,FALSE)","v":540},{"$f":"HLOOKUP(W$7,$I$66:$DJ$120,ROWS($A$10:$A45)+2,FALSE)","v":799},{"$f":"HLOOKUP(X$7,$I$66:$DJ$120,ROWS($A$10:$A45)+2,FALSE)","v":55},{"$f":"HLOOKUP(Y$7,$I$66:$DJ$120,ROWS($A$10:$A45)+2,FALSE)","v":458},{"$f":"HLOOKUP(Z$7,$I$66:$DJ$120,ROWS($A$10:$A45)+2,FALSE)","v":161},{"$f":"HLOOKUP(AA$7,$I$66:$DJ$120,ROWS($A$10:$A45)+2,FALSE)","v":22},{"$f":"HLOOKUP(AB$7,$I$66:$DJ$120,ROWS($A$10:$A45)+2,FALSE)","v":18},{"$f":"HLOOKUP(AC$7,$I$66:$DJ$120,ROWS($A$10:$A45)+2,FALSE)","v":98},{"$f":"HLOOKUP(AD$7,$I$66:$DJ$120,ROWS($A$10:$A45)+2,FALSE)","v":232},{"$f":"HLOOKUP(AE$7,$I$66:$DJ$120,ROWS($A$10:$A45)+2,FALSE)","v":187},{"$f":"HLOOKUP(AF$7,$I$66:$DJ$120,ROWS($A$10:$A45)+2,FALSE)","v":757},{"$f":"HLOOKUP(AG$7,$I$66:$DJ$120,ROWS($A$10:$A45)+2,FALSE)","v":15257},{"$f":"HLOOKUP(AH$7,$I$66:$DJ$120,ROWS($A$10:$A45)+2,FALSE)","v":72},{"$f":"HLOOKUP(AI$7,$I$66:$DJ$120,ROWS($A$10:$A45)+2,FALSE)","v":1490},{"$f":"HLOOKUP(AJ$7,$I$66:$DJ$120,ROWS($A$10:$A45)+2,FALSE)","v":1776},{"$f":"HLOOKUP(AK$7,$I$66:$DJ$120,ROWS($A$10:$A45)+2,FALSE)","v":950},{"$f":"HLOOKUP(AL$7,$I$66:$DJ$120,ROWS($A$10:$A45)+2,FALSE)","v":854},{"$f":"HLOOKUP(AM$7,$I$66:$DJ$120,ROWS($A$10:$A45)+2,FALSE)","v":0},{"$f":"HLOOKUP(AN$7,$I$66:$DJ$120,ROWS($A$10:$A45)+2,FALSE)","v":140},{"$f":"HLOOKUP(AO$7,$I$66:$DJ$120,ROWS($A$10:$A45)+2,FALSE)","v":161},{"$f":"HLOOKUP(AP$7,$I$66:$DJ$120,ROWS($A$10:$A45)+2,FALSE)","v":331},{"$f":"HLOOKUP(AQ$7,$I$66:$DJ$120,ROWS($A$10:$A45)+2,FALSE)","v":231},{"$f":"HLOOKUP(AR$7,$I$66:$DJ$120,ROWS($A$10:$A45)+2,FALSE)","v":"N/A"},{"$f":"HLOOKUP(AS$7,$I$66:$DJ$120,ROWS($A$10:$A45)+2,FALSE)","v":6},{"$f":"HLOOKUP(AT$7,$I$66:$DJ$120,ROWS($A$10:$A45)+2,FALSE)","v":280},{"$f":"HLOOKUP(AU$7,$I$66:$DJ$120,ROWS($A$10:$A45)+2,FALSE)","v":724},{"$f":"HLOOKUP(AV$7,$I$66:$DJ$120,ROWS($A$10:$A45)+2,FALSE)","v":114},{"$f":"HLOOKUP(AW$7,$I$66:$DJ$120,ROWS($A$10:$A45)+2,FALSE)","v":244},{"$f":"HLOOKUP(AX$7,$I$66:$DJ$120,ROWS($A$10:$A45)+2,FALSE)","v":14},{"$f":"HLOOKUP(AY$7,$I$66:$DJ$120,ROWS($A$10:$A45)+2,FALSE)","v":1754},{"$f":"HLOOKUP(AZ$7,$I$66:$DJ$120,ROWS($A$10:$A45)+2,FALSE)","v":746},{"$f":"HLOOKUP(BA$7,$I$66:$DJ$120,ROWS($A$10:$A45)+2,FALSE)","v":1414},{"$f":"HLOOKUP(BB$7,$I$66:$DJ$120,ROWS($A$10:$A45)+2,FALSE)","v":43},{"$f":"HLOOKUP(BC$7,$I$66:$DJ$120,ROWS($A$10:$A45)+2,FALSE)","v":758},{"$f":"HLOOKUP(BD$7,$I$66:$DJ$120,ROWS($A$10:$A45)+2,FALSE)","v":403},{"$f":"HLOOKUP(BE$7,$I$66:$DJ$120,ROWS($A$10:$A45)+2,FALSE)","v":1604},{"$f":"HLOOKUP(BF$7,$I$66:$DJ$120,ROWS($A$10:$A45)+2,FALSE)","v":0},{"$f":"HLOOKUP(BG$7,$I$66:$DJ$120,ROWS($A$10:$A45)+2,FALSE)","v":543},{"$f":"HLOOKUP(BH$7,$I$66:$DJ$120,ROWS($A$10:$A45)+2,FALSE)","v":365},{"$f":"HLOOKUP(BI$7,$I$66:$DJ$120,ROWS($A$10:$A45)+2,FALSE)","v":0},{"$f":"HLOOKUP(BJ$7+0.5,$I$66:$DJ$120,ROWS($A$10:$A45)+2,FALSE)","v":3616},{"$f":"HLOOKUP(BK$7+0.5,$I$66:$DJ$120,ROWS($A$10:$A45)+2,FALSE)","v":142},{"$f":"HLOOKUP(BL$7+0.5,$I$66:$DJ$120,ROWS($A$10:$A45)+2,FALSE)","v":105},{"$f":"HLOOKUP(BM$7+0.5,$I$66:$DJ$120,ROWS($A$10:$A45)+2,FALSE)","v":788},{"$f":"HLOOKUP(BN$7+0.5,$I$66:$DJ$120,ROWS($A$10:$A45)+2,FALSE)","v":141},{"$f":"HLOOKUP(BO$7+0.5,$I$66:$DJ$120,ROWS($A$10:$A45)+2,FALSE)","v":460},{"$f":"HLOOKUP(BP$7+0.5,$I$66:$DJ$120,ROWS($A$10:$A45)+2,FALSE)","v":293},{"$f":"HLOOKUP(BQ$7+0.5,$I$66:$DJ$120,ROWS($A$10:$A45)+2,FALSE)","v":100},{"$f":"HLOOKUP(BR$7+0.5,$I$66:$DJ$120,ROWS($A$10:$A45)+2,FALSE)","v":141},{"$f":"HLOOKUP(BS$7+0.5,$I$66:$DJ$120,ROWS($A$10:$A45)+2,FALSE)","v":112},{"$f":"HLOOKUP(BT$7+0.5,$I$66:$DJ$120,ROWS($A$10:$A45)+2,FALSE)","v":860},{"$f":"HLOOKUP(BU$7+0.5,$I$66:$DJ$120,ROWS($A$10:$A45)+2,FALSE)","v":154},{"$f":"HLOOKUP(BV$7+0.5,$I$66:$DJ$120,ROWS($A$10:$A45)+2,FALSE)","v":148},{"$f":"HLOOKUP(BW$7+0.5,$I$66:$DJ$120,ROWS($A$10:$A45)+2,FALSE)","v":521},{"$f":"HLOOKUP(BX$7+0.5,$I$66:$DJ$120,ROWS($A$10:$A45)+2,FALSE)","v":523},{"$f":"HLOOKUP(BY$7+0.5,$I$66:$DJ$120,ROWS($A$10:$A45)+2,FALSE)","v":77},{"$f":"HLOOKUP(BZ$7+0.5,$I$66:$DJ$120,ROWS($A$10:$A45)+2,FALSE)","v":316},{"$f":"HLOOKUP(CA$7+0.5,$I$66:$DJ$120,ROWS($A$10:$A45)+2,FALSE)","v":122},{"$f":"HLOOKUP(CB$7+0.5,$I$66:$DJ$120,ROWS($A$10:$A45)+2,FALSE)","v":44},{"$f":"HLOOKUP(CC$7+0.5,$I$66:$DJ$120,ROWS($A$10:$A45)+2,FALSE)","v":27},{"$f":"HLOOKUP(CD$7+0.5,$I$66:$DJ$120,ROWS($A$10:$A45)+2,FALSE)","v":176},{"$f":"HLOOKUP(CE$7+0.5,$I$66:$DJ$120,ROWS($A$10:$A45)+2,FALSE)","v":311},{"$f":"HLOOKUP(CF$7+0.5,$I$66:$DJ$120,ROWS($A$10:$A45)+2,FALSE)","v":281},{"$f":"HLOOKUP(CG$7+0.5,$I$66:$DJ$120,ROWS($A$10:$A45)+2,FALSE)","v":571},{"$f":"HLOOKUP(CH$7+0.5,$I$66:$DJ$120,ROWS($A$10:$A45)+2,FALSE)","v":2266},{"$f":"HLOOKUP(CI$7+0.5,$I$66:$DJ$120,ROWS($A$10:$A45)+2,FALSE)","v":109},{"$f":"HLOOKUP(CJ$7+0.5,$I$66:$DJ$120,ROWS($A$10:$A45)+2,FALSE)","v":1346},{"$f":"HLOOKUP(CK$7+0.5,$I$66:$DJ$120,ROWS($A$10:$A45)+2,FALSE)","v":709},{"$f":"HLOOKUP(CL$7+0.5,$I$66:$DJ$120,ROWS($A$10:$A45)+2,FALSE)","v":764},{"$f":"HLOOKUP(CM$7+0.5,$I$66:$DJ$120,ROWS($A$10:$A45)+2,FALSE)","v":572},{"$f":"HLOOKUP(CN$7+0.5,$I$66:$DJ$120,ROWS($A$10:$A45)+2,FALSE)","v":141},{"$f":"HLOOKUP(CO$7+0.5,$I$66:$DJ$120,ROWS($A$10:$A45)+2,FALSE)","v":231},{"$f":"HLOOKUP(CP$7+0.5,$I$66:$DJ$120,ROWS($A$10:$A45)+2,FALSE)","v":228},{"$f":"HLOOKUP(CQ$7+0.5,$I$66:$DJ$120,ROWS($A$10:$A45)+2,FALSE)","v":331},{"$f":"HLOOKUP(CR$7+0.5,$I$66:$DJ$120,ROWS($A$10:$A45)+2,FALSE)","v":243},{"$f":"HLOOKUP(CS$7+0.5,$I$66:$DJ$120,ROWS($A$10:$A45)+2,FALSE)","v":"N/A"},{"$f":"HLOOKUP(CT$7+0.5,$I$66:$DJ$120,ROWS($A$10:$A45)+2,FALSE)","v":14},{"$f":"HLOOKUP(CU$7+0.5,$I$66:$DJ$120,ROWS($A$10:$A45)+2,FALSE)","v":260},{"$f":"HLOOKUP(CV$7+0.5,$I$66:$DJ$120,ROWS($A$10:$A45)+2,FALSE)","v":529},{"$f":"HLOOKUP(CW$7+0.5,$I$66:$DJ$120,ROWS($A$10:$A45)+2,FALSE)","v":157},{"$f":"HLOOKUP(CX$7+0.5,$I$66:$DJ$120,ROWS($A$10:$A45)+2,FALSE)","v":255},{"$f":"HLOOKUP(CY$7+0.5,$I$66:$DJ$120,ROWS($A$10:$A45)+2,FALSE)","v":28},{"$f":"HLOOKUP(CZ$7+0.5,$I$66:$DJ$120,ROWS($A$10:$A45)+2,FALSE)","v":822},{"$f":"HLOOKUP(DA$7+0.5,$I$66:$DJ$120,ROWS($A$10:$A45)+2,FALSE)","v":694},{"$f":"HLOOKUP(DB$7+0.5,$I$66:$DJ$120,ROWS($A$10:$A45)+2,FALSE)","v":756},{"$f":"HLOOKUP(DC$7+0.5,$I$66:$DJ$120,ROWS($A$10:$A45)+2,FALSE)","v":60},{"$f":"HLOOKUP(DD$7+0.5,$I$66:$DJ$120,ROWS($A$10:$A45)+2,FALSE)","v":1014},{"$f":"HLOOKUP(DE$7+0.5,$I$66:$DJ$120,ROWS($A$10:$A45)+2,FALSE)","v":309},{"$f":"HLOOKUP(DF$7+0.5,$I$66:$DJ$120,ROWS($A$10:$A45)+2,FALSE)","v":796},{"$f":"HLOOKUP(DG$7+0.5,$I$66:$DJ$120,ROWS($A$10:$A45)+2,FALSE)","v":141},{"$f":"HLOOKUP(DH$7+0.5,$I$66:$DJ$120,ROWS($A$10:$A45)+2,FALSE)","v":327},{"$f":"HLOOKUP(DI$7+0.5,$I$66:$DJ$120,ROWS($A$10:$A45)+2,FALSE)","v":269},{"$f":"HLOOKUP(DJ$7+0.5,$I$66:$DJ$120,ROWS($A$10:$A45)+2,FALSE)","v":141}]
[null,"Ohio",11414635,5725,9735390,29715,1440815,28423,{"$f":"HLOOKUP(I$7,$I$66:$DJ$120,ROWS($A$10:$A46)+2,FALSE)","v":196391},{"$f":"HLOOKUP(J$7,$I$66:$DJ$120,ROWS($A$10:$A46)+2,FALSE)","v":3705},{"$f":"HLOOKUP(K$7,$I$66:$DJ$120,ROWS($A$10:$A46)+2,FALSE)","v":2207},{"$f":"HLOOKUP(L$7,$I$66:$DJ$120,ROWS($A$10:$A46)+2,FALSE)","v":4929},{"$f":"HLOOKUP(M$7,$I$66:$DJ$120,ROWS($A$10:$A46)+2,FALSE)","v":884},{"$f":"HLOOKUP(N$7,$I$66:$DJ$120,ROWS($A$10:$A46)+2,FALSE)","v":8995},{"$f":"HLOOKUP(O$7,$I$66:$DJ$120,ROWS($A$10:$A46)+2,FALSE)","v":3180},{"$f":"HLOOKUP(P$7,$I$66:$DJ$120,ROWS($A$10:$A46)+2,FALSE)","v":1355},{"$f":"HLOOKUP(Q$7,$I$66:$DJ$120,ROWS($A$10:$A46)+2,FALSE)","v":1079},{"$f":"HLOOKUP(R$7,$I$66:$DJ$120,ROWS($A$10:$A46)+2,FALSE)","v":985},{"$f":"HLOOKUP(S$7,$I$66:$DJ$120,ROWS($A$10:$A46)+2,FALSE)","v":16366},{"$f":"HLOOKUP(T$7,$I$66:$DJ$120,ROWS($A$10:$A46)+2,FALSE)","v":8052},{"$f":"HLOOKUP(U$7,$I$66:$DJ$120,ROWS($A$10:$A46)+2,FALSE)","v":1198},{"$f":"HLOOKUP(V$7,$I$66:$DJ$120,ROWS($A$10:$A46)+2,FALSE)","v":412},{"$f":"HLOOKUP(W$7,$I$66:$DJ$120,ROWS($A$10:$A46)+2,FALSE)","v":9510},{"$f":"HLOOKUP(X$7,$I$66:$DJ$120,ROWS($A$10:$A46)+2,FALSE)","v":13534},{"$f":"HLOOKUP(Y$7,$I$66:$DJ$120,ROWS($A$10:$A46)+2,FALSE)","v":1039},{"$f":"HLOOKUP(Z$7,$I$66:$DJ$120,ROWS($A$10:$A46)+2,FALSE)","v":1166},{"$f":"HLOOKUP(AA$7,$I$66:$DJ$120,ROWS($A$10:$A46)+2,FALSE)","v":13227},{"$f":"HLOOKUP(AB$7,$I$66:$DJ$120,ROWS($A$10:$A46)+2,FALSE)","v":2214},{"$f":"HLOOKUP(AC$7,$I$66:$DJ$120,ROWS($A$10:$A46)+2,FALSE)","v":1189},{"$f":"HLOOKUP(AD$7,$I$66:$DJ$120,ROWS($A$10:$A46)+2,FALSE)","v":5026},{"$f":"HLOOKUP(AE$7,$I$66:$DJ$120,ROWS($A$10:$A46)+2,FALSE)","v":2189},{"$f":"HLOOKUP(AF$7,$I$66:$DJ$120,ROWS($A$10:$A46)+2,FALSE)","v":16336},{"$f":"HLOOKUP(AG$7,$I$66:$DJ$120,ROWS($A$10:$A46)+2,FALSE)","v":1122},{"$f":"HLOOKUP(AH$7,$I$66:$DJ$120,ROWS($A$10:$A46)+2,FALSE)","v":1017},{"$f":"HLOOKUP(AI$7,$I$66:$DJ$120,ROWS($A$10:$A46)+2,FALSE)","v":3026},{"$f":"HLOOKUP(AJ$7,$I$66:$DJ$120,ROWS($A$10:$A46)+2,FALSE)","v":276},{"$f":"HLOOKUP(AK$7,$I$66:$DJ$120,ROWS($A$10:$A46)+2,FALSE)","v":1052},{"$f":"HLOOKUP(AL$7,$I$66:$DJ$120,ROWS($A$10:$A46)+2,FALSE)","v":907},{"$f":"HLOOKUP(AM$7,$I$66:$DJ$120,ROWS($A$10:$A46)+2,FALSE)","v":189},{"$f":"HLOOKUP(AN$7,$I$66:$DJ$120,ROWS($A$10:$A46)+2,FALSE)","v":4703},{"$f":"HLOOKUP(AO$7,$I$66:$DJ$120,ROWS($A$10:$A46)+2,FALSE)","v":1361},{"$f":"HLOOKUP(AP$7,$I$66:$DJ$120,ROWS($A$10:$A46)+2,FALSE)","v":8732},{"$f":"HLOOKUP(AQ$7,$I$66:$DJ$120,ROWS($A$10:$A46)+2,FALSE)","v":5498},{"$f":"HLOOKUP(AR$7,$I$66:$DJ$120,ROWS($A$10:$A46)+2,FALSE)","v":453},{"$f":"HLOOKUP(AS$7,$I$66:$DJ$120,ROWS($A$10:$A46)+2,FALSE)","v":"N/A"},{"$f":"HLOOKUP(AT$7,$I$66:$DJ$120,ROWS($A$10:$A46)+2,FALSE)","v":858},{"$f":"HLOOKUP(AU$7,$I$66:$DJ$120,ROWS($A$10:$A46)+2,FALSE)","v":432},{"$f":"HLOOKUP(AV$7,$I$66:$DJ$120,ROWS($A$10:$A46)+2,FALSE)","v":14147},{"$f":"HLOOKUP(AW$7,$I$66:$DJ$120,ROWS($A$10:$A46)+2,FALSE)","v":435},{"$f":"HLOOKUP(AX$7,$I$66:$DJ$120,ROWS($A$10:$A46)+2,FALSE)","v":2445},{"$f":"HLOOKUP(AY$7,$I$66:$DJ$120,ROWS($A$10:$A46)+2,FALSE)","v":47},{"$f":"HLOOKUP(AZ$7,$I$66:$DJ$120,ROWS($A$10:$A46)+2,FALSE)","v":3542},{"$f":"HLOOKUP(BA$7,$I$66:$DJ$120,ROWS($A$10:$A46)+2,FALSE)","v":11760},{"$f":"HLOOKUP(BB$7,$I$66:$DJ$120,ROWS($A$10:$A46)+2,FALSE)","v":197},{"$f":"HLOOKUP(BC$7,$I$66:$DJ$120,ROWS($A$10:$A46)+2,FALSE)","v":364},{"$f":"HLOOKUP(BD$7,$I$66:$DJ$120,ROWS($A$10:$A46)+2,FALSE)","v":3193},{"$f":"HLOOKUP(BE$7,$I$66:$DJ$120,ROWS($A$10:$A46)+2,FALSE)","v":2862},{"$f":"HLOOKUP(BF$7,$I$66:$DJ$120,ROWS($A$10:$A46)+2,FALSE)","v":7820},{"$f":"HLOOKUP(BG$7,$I$66:$DJ$120,ROWS($A$10:$A46)+2,FALSE)","v":974},{"$f":"HLOOKUP(BH$7,$I$66:$DJ$120,ROWS($A$10:$A46)+2,FALSE)","v":202},{"$f":"HLOOKUP(BI$7,$I$66:$DJ$120,ROWS($A$10:$A46)+2,FALSE)","v":1403},{"$f":"HLOOKUP(BJ$7+0.5,$I$66:$DJ$120,ROWS($A$10:$A46)+2,FALSE)","v":9611},{"$f":"HLOOKUP(BK$7+0.5,$I$66:$DJ$120,ROWS($A$10:$A46)+2,FALSE)","v":2297},{"$f":"HLOOKUP(BL$7+0.5,$I$66:$DJ$120,ROWS($A$10:$A46)+2,FALSE)","v":1757},{"$f":"HLOOKUP(BM$7+0.5,$I$66:$DJ$120,ROWS($A$10:$A46)+2,FALSE)","v":1912},{"$f":"HLOOKUP(BN$7+0.5,$I$66:$DJ$120,ROWS($A$10:$A46)+2,FALSE)","v":604},{"$f":"HLOOKUP(BO$7+0.5,$I$66:$DJ$120,ROWS($A$10:$A46)+2,FALSE)","v":1803},{"$f":"HLOOKUP(BP$7+0.5,$I$66:$DJ$120,ROWS($A$10:$A46)+2,FALSE)","v":1230},{"$f":"HLOOKUP(BQ$7+0.5,$I$66:$DJ$120,ROWS($A$10:$A46)+2,FALSE)","v":887},{"$f":"HLOOKUP(BR$7+0.5,$I$66:$DJ$120,ROWS($A$10:$A46)+2,FALSE)","v":696},{"$f":"HLOOKUP(BS$7+0.5,$I$66:$DJ$120,ROWS($A$10:$A46)+2,FALSE)","v":722},{"$f":"HLOOKUP(BT$7+0.5,$I$66:$DJ$120,ROWS($A$10:$A46)+2,FALSE)","v":2560},{"$f":"HLOOKUP(BU$7+0.5,$I$66:$DJ$120,ROWS($A$10:$A46)+2,FALSE)","v":2973},{"$f":"HLOOKUP(BV$7+0.5,$I$66:$DJ$120,ROWS($A$10:$A46)+2,FALSE)","v":591},{"$f":"HLOOKUP(BW$7+0.5,$I$66:$DJ$120,ROWS($A$10:$A46)+2,FALSE)","v":295},{"$f":"HLOOKUP(BX$7+0.5,$I$66:$DJ$120,ROWS($A$10:$A46)+2,FALSE)","v":2157},{"$f":"HLOOKUP(BY$7+0.5,$I$66:$DJ$120,ROWS($A$10:$A46)+2,FALSE)","v":2157},{"$f":"HLOOKUP(BZ$7+0.5,$I$66:$DJ$120,ROWS($A$10:$A46)+2,FALSE)","v":765},{"$f":"HLOOKUP(CA$7+0.5,$I$66:$DJ$120,ROWS($A$10:$A46)+2,FALSE)","v":617},{"$f":"HLOOKUP(CB$7+0.5,$I$66:$DJ$120,ROWS($A$10:$A46)+2,FALSE)","v":2976},{"$f":"HLOOKUP(CC$7+0.5,$I$66:$DJ$120,ROWS($A$10:$A46)+2,FALSE)","v":1011},{"$f":"HLOOKUP(CD$7+0.5,$I$66:$DJ$120,ROWS($A$10:$A46)+2,FALSE)","v":889},{"$f":"HLOOKUP(CE$7+0.5,$I$66:$DJ$120,ROWS($A$10:$A46)+2,FALSE)","v":2570},{"$f":"HLOOKUP(CF$7+0.5,$I$66:$DJ$120,ROWS($A$10:$A46)+2,FALSE)","v":808},{"$f":"HLOOKUP(CG$7+0.5,$I$66:$DJ$120,ROWS($A$10:$A46)+2,FALSE)","v":2656},{"$f":"HLOOKUP(CH$7+0.5,$I$66:$DJ$120,ROWS($A$10:$A46)+2,FALSE)","v":597},{"$f":"HLOOKUP(CI$7+0.5,$I$66:$DJ$120,ROWS($A$10:$A46)+2,FALSE)","v":865},{"$f":"HLOOKUP(CJ$7+0.5,$I$66:$DJ$120,ROWS($A$10:$A46)+2,FALSE)","v":1068},{"$f":"HLOOKUP(CK$7+0.5,$I$66:$DJ$120,ROWS($A$10:$A46)+2,FALSE)","v":292},{"$f":"HLOOKUP(CL$7+0.5,$I$66:$DJ$120,ROWS($A$10:$A46)+2,FALSE)","v":656},{"$f":"HLOOKUP(CM$7+0.5,$I$66:$DJ$120,ROWS($A$10:$A46)+2,FALSE)","v":525},{"$f":"HLOOKUP(CN$7+0.5,$I$66:$DJ$120,ROWS($A$10:$A46)+2,FALSE)","v":156},{"$f":"HLOOKUP(CO$7+0.5,$I$66:$DJ$120,ROWS($A$10:$A46)+2,FALSE)","v":2119},{"$f":"HLOOKUP(CP$7+0.5,$I$66:$DJ$120,ROWS($A$10:$A46)+2,FALSE)","v":817},{"$f":"HLOOKUP(CQ$7+0.5,$I$66:$DJ$120,ROWS($A$10:$A46)+2,FALSE)","v":1741},{"$f":"HLOOKUP(CR$7+0.5,$I$66:$DJ$120,ROWS($A$10:$A46)+2,FALSE)","v":1525},{"$f":"HLOOKUP(CS$7+0.5,$I$66:$DJ$120,ROWS($A$10:$A46)+2,FALSE)","v":346},{"$f":"HLOOKUP(CT$7+0.5,$I$66:$DJ$120,ROWS($A$10:$A46)+2,FALSE)","v":"N/A"},{"$f":"HLOOKUP(CU$7+0.5,$I$66:$DJ$120,ROWS($A$10:$A46)+2,FALSE)","v":417},{"$f":"HLOOKUP(CV$7+0.5,$I$66:$DJ$120,ROWS($A$10:$A46)+2,FALSE)","v":307},{"$f":"HLOOKUP(CW$7+0.5,$I$66:$DJ$120,ROWS($A$10:$A46)+2,FALSE)","v":2612},{"$f":"HLOOKUP(CX$7+0.5,$I$66:$DJ$120,ROWS($A$10:$A46)+2,FALSE)","v":384},{"$f":"HLOOKUP(CY$7+0.5,$I$66:$DJ$120,ROWS($A$10:$A46)+2,FALSE)","v":1029},{"$f":"HLOOKUP(CZ$7+0.5,$I$66:$DJ$120,ROWS($A$10:$A46)+2,FALSE)","v":76},{"$f":"HLOOKUP(DA$7+0.5,$I$66:$DJ$120,ROWS($A$10:$A46)+2,FALSE)","v":1429},{"$f":"HLOOKUP(DB$7+0.5,$I$66:$DJ$120,ROWS($A$10:$A46)+2,FALSE)","v":2739},{"$f":"HLOOKUP(DC$7+0.5,$I$66:$DJ$120,ROWS($A$10:$A46)+2,FALSE)","v":211},{"$f":"HLOOKUP(DD$7+0.5,$I$66:$DJ$120,ROWS($A$10:$A46)+2,FALSE)","v":350},{"$f":"HLOOKUP(DE$7+0.5,$I$66:$DJ$120,ROWS($A$10:$A46)+2,FALSE)","v":1055},{"$f":"HLOOKUP(DF$7+0.5,$I$66:$DJ$120,ROWS($A$10:$A46)+2,FALSE)","v":2150},{"$f":"HLOOKUP(DG$7+0.5,$I$66:$DJ$120,ROWS($A$10:$A46)+2,FALSE)","v":2219},{"$f":"HLOOKUP(DH$7+0.5,$I$66:$DJ$120,ROWS($A$10:$A46)+2,FALSE)","v":725},{"$f":"HLOOKUP(DI$7+0.5,$I$66:$DJ$120,ROWS($A$10:$A46)+2,FALSE)","v":210},{"$f":"HLOOKUP(DJ$7+0.5,$I$66:$DJ$120,ROWS($A$10:$A46)+2,FALSE)","v":910}]
[null,"Oklahoma",3762311,2764,3107367,14635,531347,12812,{"$f":"HLOOKUP(I$7,$I$66:$DJ$120,ROWS($A$10:$A47)+2,FALSE)","v":108972},{"$f":"HLOOKUP(J$7,$I$66:$DJ$120,ROWS($A$10:$A47)+2,FALSE)","v":1030},{"$f":"HLOOKUP(K$7,$I$66:$DJ$120,ROWS($A$10:$A47)+2,FALSE)","v":1279},{"$f":"HLOOKUP(L$7,$I$66:$DJ$120,ROWS($A$10:$A47)+2,FALSE)","v":2974},{"$f":"HLOOKUP(M$7,$I$66:$DJ$120,ROWS($A$10:$A47)+2,FALSE)","v":5777},{"$f":"HLOOKUP(N$7,$I$66:$DJ$120,ROWS($A$10:$A47)+2,FALSE)","v":8950},{"$f":"HLOOKUP(O$7,$I$66:$DJ$120,ROWS($A$10:$A47)+2,FALSE)","v":4717},{"$f":"HLOOKUP(P$7,$I$66:$DJ$120,ROWS($A$10:$A47)+2,FALSE)","v":0},{"$f":"HLOOKUP(Q$7,$I$66:$DJ$120,ROWS($A$10:$A47)+2,FALSE)","v":380},{"$f":"HLOOKUP(R$7,$I$66:$DJ$120,ROWS($A$10:$A47)+2,FALSE)","v":151},{"$f":"HLOOKUP(S$7,$I$66:$DJ$120,ROWS($A$10:$A47)+2,FALSE)","v":5011},{"$f":"HLOOKUP(T$7,$I$66:$DJ$120,ROWS($A$10:$A47)+2,FALSE)","v":2581},{"$f":"HLOOKUP(U$7,$I$66:$DJ$120,ROWS($A$10:$A47)+2,FALSE)","v":189},{"$f":"HLOOKUP(V$7,$I$66:$DJ$120,ROWS($A$10:$A47)+2,FALSE)","v":905},{"$f":"HLOOKUP(W$7,$I$66:$DJ$120,ROWS($A$10:$A47)+2,FALSE)","v":1100},{"$f":"HLOOKUP(X$7,$I$66:$DJ$120,ROWS($A$10:$A47)+2,FALSE)","v":1490},{"$f":"HLOOKUP(Y$7,$I$66:$DJ$120,ROWS($A$10:$A47)+2,FALSE)","v":1088},{"$f":"HLOOKUP(Z$7,$I$66:$DJ$120,ROWS($A$10:$A47)+2,FALSE)","v":7065},{"$f":"HLOOKUP(AA$7,$I$66:$DJ$120,ROWS($A$10:$A47)+2,FALSE)","v":1354},{"$f":"HLOOKUP(AB$7,$I$66:$DJ$120,ROWS($A$10:$A47)+2,FALSE)","v":2562},{"$f":"HLOOKUP(AC$7,$I$66:$DJ$120,ROWS($A$10:$A47)+2,FALSE)","v":167},{"$f":"HLOOKUP(AD$7,$I$66:$DJ$120,ROWS($A$10:$A47)+2,FALSE)","v":750},{"$f":"HLOOKUP(AE$7,$I$66:$DJ$120,ROWS($A$10:$A47)+2,FALSE)","v":1233},{"$f":"HLOOKUP(AF$7,$I$66:$DJ$120,ROWS($A$10:$A47)+2,FALSE)","v":1347},{"$f":"HLOOKUP(AG$7,$I$66:$DJ$120,ROWS($A$10:$A47)+2,FALSE)","v":906},{"$f":"HLOOKUP(AH$7,$I$66:$DJ$120,ROWS($A$10:$A47)+2,FALSE)","v":1850},{"$f":"HLOOKUP(AI$7,$I$66:$DJ$120,ROWS($A$10:$A47)+2,FALSE)","v":5210},{"$f":"HLOOKUP(AJ$7,$I$66:$DJ$120,ROWS($A$10:$A47)+2,FALSE)","v":798},{"$f":"HLOOKUP(AK$7,$I$66:$DJ$120,ROWS($A$10:$A47)+2,FALSE)","v":300},{"$f":"HLOOKUP(AL$7,$I$66:$DJ$120,ROWS($A$10:$A47)+2,FALSE)","v":1101},{"$f":"HLOOKUP(AM$7,$I$66:$DJ$120,ROWS($A$10:$A47)+2,FALSE)","v":549},{"$f":"HLOOKUP(AN$7,$I$66:$DJ$120,ROWS($A$10:$A47)+2,FALSE)","v":1523},{"$f":"HLOOKUP(AO$7,$I$66:$DJ$120,ROWS($A$10:$A47)+2,FALSE)","v":1244},{"$f":"HLOOKUP(AP$7,$I$66:$DJ$120,ROWS($A$10:$A47)+2,FALSE)","v":1981},{"$f":"HLOOKUP(AQ$7,$I$66:$DJ$120,ROWS($A$10:$A47)+2,FALSE)","v":1961},{"$f":"HLOOKUP(AR$7,$I$66:$DJ$120,ROWS($A$10:$A47)+2,FALSE)","v":308},{"$f":"HLOOKUP(AS$7,$I$66:$DJ$120,ROWS($A$10:$A47)+2,FALSE)","v":1148},{"$f":"HLOOKUP(AT$7,$I$66:$DJ$120,ROWS($A$10:$A47)+2,FALSE)","v":"N/A"},{"$f":"HLOOKUP(AU$7,$I$66:$DJ$120,ROWS($A$10:$A47)+2,FALSE)","v":1261},{"$f":"HLOOKUP(AV$7,$I$66:$DJ$120,ROWS($A$10:$A47)+2,FALSE)","v":494},{"$f":"HLOOKUP(AW$7,$I$66:$DJ$120,ROWS($A$10:$A47)+2,FALSE)","v":0},{"$f":"HLOOKUP(AX$7,$I$66:$DJ$120,ROWS($A$10:$A47)+2,FALSE)","v":569},{"$f":"HLOOKUP(AY$7,$I$66:$DJ$120,ROWS($A$10:$A47)+2,FALSE)","v":108},{"$f":"HLOOKUP(AZ$7,$I$66:$DJ$120,ROWS($A$10:$A47)+2,FALSE)","v":2471},{"$f":"HLOOKUP(BA$7,$I$66:$DJ$120,ROWS($A$10:$A47)+2,FALSE)","v":25508},{"$f":"HLOOKUP(BB$7,$I$66:$DJ$120,ROWS($A$10:$A47)+2,FALSE)","v":2588},{"$f":"HLOOKUP(BC$7,$I$66:$DJ$120,ROWS($A$10:$A47)+2,FALSE)","v":197},{"$f":"HLOOKUP(BD$7,$I$66:$DJ$120,ROWS($A$10:$A47)+2,FALSE)","v":1749},{"$f":"HLOOKUP(BE$7,$I$66:$DJ$120,ROWS($A$10:$A47)+2,FALSE)","v":1574},{"$f":"HLOOKUP(BF$7,$I$66:$DJ$120,ROWS($A$10:$A47)+2,FALSE)","v":368},{"$f":"HLOOKUP(BG$7,$I$66:$DJ$120,ROWS($A$10:$A47)+2,FALSE)","v":1061},{"$f":"HLOOKUP(BH$7,$I$66:$DJ$120,ROWS($A$10:$A47)+2,FALSE)","v":45},{"$f":"HLOOKUP(BI$7,$I$66:$DJ$120,ROWS($A$10:$A47)+2,FALSE)","v":0},{"$f":"HLOOKUP(BJ$7+0.5,$I$66:$DJ$120,ROWS($A$10:$A47)+2,FALSE)","v":6570},{"$f":"HLOOKUP(BK$7+0.5,$I$66:$DJ$120,ROWS($A$10:$A47)+2,FALSE)","v":467},{"$f":"HLOOKUP(BL$7+0.5,$I$66:$DJ$120,ROWS($A$10:$A47)+2,FALSE)","v":600},{"$f":"HLOOKUP(BM$7+0.5,$I$66:$DJ$120,ROWS($A$10:$A47)+2,FALSE)","v":1435},{"$f":"HLOOKUP(BN$7+0.5,$I$66:$DJ$120,ROWS($A$10:$A47)+2,FALSE)","v":1187},{"$f":"HLOOKUP(BO$7+0.5,$I$66:$DJ$120,ROWS($A$10:$A47)+2,FALSE)","v":2184},{"$f":"HLOOKUP(BP$7+0.5,$I$66:$DJ$120,ROWS($A$10:$A47)+2,FALSE)","v":1556},{"$f":"HLOOKUP(BQ$7+0.5,$I$66:$DJ$120,ROWS($A$10:$A47)+2,FALSE)","v":149},{"$f":"HLOOKUP(BR$7+0.5,$I$66:$DJ$120,ROWS($A$10:$A47)+2,FALSE)","v":288},{"$f":"HLOOKUP(BS$7+0.5,$I$66:$DJ$120,ROWS($A$10:$A47)+2,FALSE)","v":148},{"$f":"HLOOKUP(BT$7+0.5,$I$66:$DJ$120,ROWS($A$10:$A47)+2,FALSE)","v":1525},{"$f":"HLOOKUP(BU$7+0.5,$I$66:$DJ$120,ROWS($A$10:$A47)+2,FALSE)","v":935},{"$f":"HLOOKUP(BV$7+0.5,$I$66:$DJ$120,ROWS($A$10:$A47)+2,FALSE)","v":295},{"$f":"HLOOKUP(BW$7+0.5,$I$66:$DJ$120,ROWS($A$10:$A47)+2,FALSE)","v":600},{"$f":"HLOOKUP(BX$7+0.5,$I$66:$DJ$120,ROWS($A$10:$A47)+2,FALSE)","v":487},{"$f":"HLOOKUP(BY$7+0.5,$I$66:$DJ$120,ROWS($A$10:$A47)+2,FALSE)","v":936},{"$f":"HLOOKUP(BZ$7+0.5,$I$66:$DJ$120,ROWS($A$10:$A47)+2,FALSE)","v":689},{"$f":"HLOOKUP(CA$7+0.5,$I$66:$DJ$120,ROWS($A$10:$A47)+2,FALSE)","v":1535},{"$f":"HLOOKUP(CB$7+0.5,$I$66:$DJ$120,ROWS($A$10:$A47)+2,FALSE)","v":898},{"$f":"HLOOKUP(CC$7+0.5,$I$66:$DJ$120,ROWS($A$10:$A47)+2,FALSE)","v":1354},{"$f":"HLOOKUP(CD$7+0.5,$I$66:$DJ$120,ROWS($A$10:$A47)+2,FALSE)","v":260},{"$f":"HLOOKUP(CE$7+0.5,$I$66:$DJ$120,ROWS($A$10:$A47)+2,FALSE)","v":685},{"$f":"HLOOKUP(CF$7+0.5,$I$66:$DJ$120,ROWS($A$10:$A47)+2,FALSE)","v":906},{"$f":"HLOOKUP(CG$7+0.5,$I$66:$DJ$120,ROWS($A$10:$A47)+2,FALSE)","v":671},{"$f":"HLOOKUP(CH$7+0.5,$I$66:$DJ$120,ROWS($A$10:$A47)+2,FALSE)","v":469},{"$f":"HLOOKUP(CI$7+0.5,$I$66:$DJ$120,ROWS($A$10:$A47)+2,FALSE)","v":752},{"$f":"HLOOKUP(CJ$7+0.5,$I$66:$DJ$120,ROWS($A$10:$A47)+2,FALSE)","v":1349},{"$f":"HLOOKUP(CK$7+0.5,$I$66:$DJ$120,ROWS($A$10:$A47)+2,FALSE)","v":710},{"$f":"HLOOKUP(CL$7+0.5,$I$66:$DJ$120,ROWS($A$10:$A47)+2,FALSE)","v":208},{"$f":"HLOOKUP(CM$7+0.5,$I$66:$DJ$120,ROWS($A$10:$A47)+2,FALSE)","v":799},{"$f":"HLOOKUP(CN$7+0.5,$I$66:$DJ$120,ROWS($A$10:$A47)+2,FALSE)","v":383},{"$f":"HLOOKUP(CO$7+0.5,$I$66:$DJ$120,ROWS($A$10:$A47)+2,FALSE)","v":748},{"$f":"HLOOKUP(CP$7+0.5,$I$66:$DJ$120,ROWS($A$10:$A47)+2,FALSE)","v":712},{"$f":"HLOOKUP(CQ$7+0.5,$I$66:$DJ$120,ROWS($A$10:$A47)+2,FALSE)","v":936},{"$f":"HLOOKUP(CR$7+0.5,$I$66:$DJ$120,ROWS($A$10:$A47)+2,FALSE)","v":912},{"$f":"HLOOKUP(CS$7+0.5,$I$66:$DJ$120,ROWS($A$10:$A47)+2,FALSE)","v":340},{"$f":"HLOOKUP(CT$7+0.5,$I$66:$DJ$120,ROWS($A$10:$A47)+2,FALSE)","v":533},{"$f":"HLOOKUP(CU$7+0.5,$I$66:$DJ$120,ROWS($A$10:$A47)+2,FALSE)","v":"N/A"},{"$f":"HLOOKUP(CV$7+0.5,$I$66:$DJ$120,ROWS($A$10:$A47)+2,FALSE)","v":771},{"$f":"HLOOKUP(CW$7+0.5,$I$66:$DJ$120,ROWS($A$10:$A47)+2,FALSE)","v":285},{"$f":"HLOOKUP(CX$7+0.5,$I$66:$DJ$120,ROWS($A$10:$A47)+2,FALSE)","v":149},{"$f":"HLOOKUP(CY$7+0.5,$I$66:$DJ$120,ROWS($A$10:$A47)+2,FALSE)","v":346},{"$f":"HLOOKUP(CZ$7+0.5,$I$66:$DJ$120,ROWS($A$10:$A47)+2,FALSE)","v":154},{"$f":"HLOOKUP(DA$7+0.5,$I$66:$DJ$120,ROWS($A$10:$A47)+2,FALSE)","v":1035},{"$f":"HLOOKUP(DB$7+0.5,$I$66:$DJ$120,ROWS($A$10:$A47)+2,FALSE)","v":2960},{"$f":"HLOOKUP(DC$7+0.5,$I$66:$DJ$120,ROWS($A$10:$A47)+2,FALSE)","v":1465},{"$f":"HLOOKUP(DD$7+0.5,$I$66:$DJ$120,ROWS($A$10:$A47)+2,FALSE)","v":316},{"$f":"HLOOKUP(DE$7+0.5,$I$66:$DJ$120,ROWS($A$10:$A47)+2,FALSE)","v":829},{"$f":"HLOOKUP(DF$7+0.5,$I$66:$DJ$120,ROWS($A$10:$A47)+2,FALSE)","v":575},{"$f":"HLOOKUP(DG$7+0.5,$I$66:$DJ$120,ROWS($A$10:$A47)+2,FALSE)","v":298},{"$f":"HLOOKUP(DH$7+0.5,$I$66:$DJ$120,ROWS($A$10:$A47)+2,FALSE)","v":758},{"$f":"HLOOKUP(DI$7+0.5,$I$66:$DJ$120,ROWS($A$10:$A47)+2,FALSE)","v":68},{"$f":"HLOOKUP(DJ$7+0.5,$I$66:$DJ$120,ROWS($A$10:$A47)+2,FALSE)","v":149}]
[null,"Oregon",3857465,2984,3158450,19251,560673,17729,{"$f":"HLOOKUP(I$7,$I$66:$DJ$120,ROWS($A$10:$A48)+2,FALSE)","v":118925},{"$f":"HLOOKUP(J$7,$I$66:$DJ$120,ROWS($A$10:$A48)+2,FALSE)","v":373},{"$f":"HLOOKUP(K$7,$I$66:$DJ$120,ROWS($A$10:$A48)+2,FALSE)","v":2513},{"$f":"HLOOKUP(L$7,$I$66:$DJ$120,ROWS($A$10:$A48)+2,FALSE)","v":7954},{"$f":"HLOOKUP(M$7,$I$66:$DJ$120,ROWS($A$10:$A48)+2,FALSE)","v":165},{"$f":"HLOOKUP(N$7,$I$66:$DJ$120,ROWS($A$10:$A48)+2,FALSE)","v":31862},{"$f":"HLOOKUP(O$7,$I$66:$DJ$120,ROWS($A$10:$A48)+2,FALSE)","v":4472},{"$f":"HLOOKUP(P$7,$I$66:$DJ$120,ROWS($A$10:$A48)+2,FALSE)","v":381},{"$f":"HLOOKUP(Q$7,$I$66:$DJ$120,ROWS($A$10:$A48)+2,FALSE)","v":0},{"$f":"HLOOKUP(R$7,$I$66:$DJ$120,ROWS($A$10:$A48)+2,FALSE)","v":696},{"$f":"HLOOKUP(S$7,$I$66:$DJ$120,ROWS($A$10:$A48)+2,FALSE)","v":1660},{"$f":"HLOOKUP(T$7,$I$66:$DJ$120,ROWS($A$10:$A48)+2,FALSE)","v":1032},{"$f":"HLOOKUP(U$7,$I$66:$DJ$120,ROWS($A$10:$A48)+2,FALSE)","v":2501},{"$f":"HLOOKUP(V$7,$I$66:$DJ$120,ROWS($A$10:$A48)+2,FALSE)","v":5093},{"$f":"HLOOKUP(W$7,$I$66:$DJ$120,ROWS($A$10:$A48)+2,FALSE)","v":1676},{"$f":"HLOOKUP(X$7,$I$66:$DJ$120,ROWS($A$10:$A48)+2,FALSE)","v":1380},{"$f":"HLOOKUP(Y$7,$I$66:$DJ$120,ROWS($A$10:$A48)+2,FALSE)","v":834},{"$f":"HLOOKUP(Z$7,$I$66:$DJ$120,ROWS($A$10:$A48)+2,FALSE)","v":556},{"$f":"HLOOKUP(AA$7,$I$66:$DJ$120,ROWS($A$10:$A48)+2,FALSE)","v":202},{"$f":"HLOOKUP(AB$7,$I$66:$DJ$120,ROWS($A$10:$A48)+2,FALSE)","v":227},{"$f":"HLOOKUP(AC$7,$I$66:$DJ$120,ROWS($A$10:$A48)+2,FALSE)","v":446},{"$f":"HLOOKUP(AD$7,$I$66:$DJ$120,ROWS($A$10:$A48)+2,FALSE)","v":457},{"$f":"HLOOKUP(AE$7,$I$66:$DJ$120,ROWS($A$10:$A48)+2,FALSE)","v":760},{"$f":"HLOOKUP(AF$7,$I$66:$DJ$120,ROWS($A$10:$A48)+2,FALSE)","v":570},{"$f":"HLOOKUP(AG$7,$I$66:$DJ$120,ROWS($A$10:$A48)+2,FALSE)","v":1792},{"$f":"HLOOKUP(AH$7,$I$66:$DJ$120,ROWS($A$10:$A48)+2,FALSE)","v":186},{"$f":"HLOOKUP(AI$7,$I$66:$DJ$120,ROWS($A$10:$A48)+2,FALSE)","v":403},{"$f":"HLOOKUP(AJ$7,$I$66:$DJ$120,ROWS($A$10:$A48)+2,FALSE)","v":2192},{"$f":"HLOOKUP(AK$7,$I$66:$DJ$120,ROWS($A$10:$A48)+2,FALSE)","v":570},{"$f":"HLOOKUP(AL$7,$I$66:$DJ$120,ROWS($A$10:$A48)+2,FALSE)","v":5935},{"$f":"HLOOKUP(AM$7,$I$66:$DJ$120,ROWS($A$10:$A48)+2,FALSE)","v":39},{"$f":"HLOOKUP(AN$7,$I$66:$DJ$120,ROWS($A$10:$A48)+2,FALSE)","v":385},{"$f":"HLOOKUP(AO$7,$I$66:$DJ$120,ROWS($A$10:$A48)+2,FALSE)","v":920},{"$f":"HLOOKUP(AP$7,$I$66:$DJ$120,ROWS($A$10:$A48)+2,FALSE)","v":2379},{"$f":"HLOOKUP(AQ$7,$I$66:$DJ$120,ROWS($A$10:$A48)+2,FALSE)","v":1482},{"$f":"HLOOKUP(AR$7,$I$66:$DJ$120,ROWS($A$10:$A48)+2,FALSE)","v":42},{"$f":"HLOOKUP(AS$7,$I$66:$DJ$120,ROWS($A$10:$A48)+2,FALSE)","v":1411},{"$f":"HLOOKUP(AT$7,$I$66:$DJ$120,ROWS($A$10:$A48)+2,FALSE)","v":725},{"$f":"HLOOKUP(AU$7,$I$66:$DJ$120,ROWS($A$10:$A48)+2,FALSE)","v":"N/A"},{"$f":"HLOOKUP(AV$7,$I$66:$DJ$120,ROWS($A$10:$A48)+2,FALSE)","v":904},{"$f":"HLOOKUP(AW$7,$I$66:$DJ$120,ROWS($A$10:$A48)+2,FALSE)","v":177},{"$f":"HLOOKUP(AX$7,$I$66:$DJ$120,ROWS($A$10:$A48)+2,FALSE)","v":461},{"$f":"HLOOKUP(AY$7,$I$66:$DJ$120,ROWS($A$10:$A48)+2,FALSE)","v":119},{"$f":"HLOOKUP(AZ$7,$I$66:$DJ$120,ROWS($A$10:$A48)+2,FALSE)","v":802},{"$f":"HLOOKUP(BA$7,$I$66:$DJ$120,ROWS($A$10:$A48)+2,FALSE)","v":3347},{"$f":"HLOOKUP(BB$7,$I$66:$DJ$120,ROWS($A$10:$A48)+2,FALSE)","v":4793},{"$f":"HLOOKUP(BC$7,$I$66:$DJ$120,ROWS($A$10:$A48)+2,FALSE)","v":367},{"$f":"HLOOKUP(BD$7,$I$66:$DJ$120,ROWS($A$10:$A48)+2,FALSE)","v":676},{"$f":"HLOOKUP(BE$7,$I$66:$DJ$120,ROWS($A$10:$A48)+2,FALSE)","v":21224},{"$f":"HLOOKUP(BF$7,$I$66:$DJ$120,ROWS($A$10:$A48)+2,FALSE)","v":593},{"$f":"HLOOKUP(BG$7,$I$66:$DJ$120,ROWS($A$10:$A48)+2,FALSE)","v":426},{"$f":"HLOOKUP(BH$7,$I$66:$DJ$120,ROWS($A$10:$A48)+2,FALSE)","v":765},{"$f":"HLOOKUP(BI$7,$I$66:$DJ$120,ROWS($A$10:$A48)+2,FALSE)","v":152},{"$f":"HLOOKUP(BJ$7+0.5,$I$66:$DJ$120,ROWS($A$10:$A48)+2,FALSE)","v":7769},{"$f":"HLOOKUP(BK$7+0.5,$I$66:$DJ$120,ROWS($A$10:$A48)+2,FALSE)","v":425},{"$f":"HLOOKUP(BL$7+0.5,$I$66:$DJ$120,ROWS($A$10:$A48)+2,FALSE)","v":953},{"$f":"HLOOKUP(BM$7+0.5,$I$66:$DJ$120,ROWS($A$10:$A48)+2,FALSE)","v":2060},{"$f":"HLOOKUP(BN$7+0.5,$I$66:$DJ$120,ROWS($A$10:$A48)+2,FALSE)","v":158},{"$f":"HLOOKUP(BO$7+0.5,$I$66:$DJ$120,ROWS($A$10:$A48)+2,FALSE)","v":3767},{"$f":"HLOOKUP(BP$7+0.5,$I$66:$DJ$120,ROWS($A$10:$A48)+2,FALSE)","v":2133},{"$f":"HLOOKUP(BQ$7+0.5,$I$66:$DJ$120,ROWS($A$10:$A48)+2,FALSE)","v":457},{"$f":"HLOOKUP(BR$7+0.5,$I$66:$DJ$120,ROWS($A$10:$A48)+2,FALSE)","v":193},{"$f":"HLOOKUP(BS$7+0.5,$I$66:$DJ$120,ROWS($A$10:$A48)+2,FALSE)","v":919},{"$f":"HLOOKUP(BT$7+0.5,$I$66:$DJ$120,ROWS($A$10:$A48)+2,FALSE)","v":620},{"$f":"HLOOKUP(BU$7+0.5,$I$66:$DJ$120,ROWS($A$10:$A48)+2,FALSE)","v":523},{"$f":"HLOOKUP(BV$7+0.5,$I$66:$DJ$120,ROWS($A$10:$A48)+2,FALSE)","v":813},{"$f":"HLOOKUP(BW$7+0.5,$I$66:$DJ$120,ROWS($A$10:$A48)+2,FALSE)","v":1880},{"$f":"HLOOKUP(BX$7+0.5,$I$66:$DJ$120,ROWS($A$10:$A48)+2,FALSE)","v":1192},{"$f":"HLOOKUP(BY$7+0.5,$I$66:$DJ$120,ROWS($A$10:$A48)+2,FALSE)","v":1000},{"$f":"HLOOKUP(BZ$7+0.5,$I$66:$DJ$120,ROWS($A$10:$A48)+2,FALSE)","v":781},{"$f":"HLOOKUP(CA$7+0.5,$I$66:$DJ$120,ROWS($A$10:$A48)+2,FALSE)","v":534},{"$f":"HLOOKUP(CB$7+0.5,$I$66:$DJ$120,ROWS($A$10:$A48)+2,FALSE)","v":261},{"$f":"HLOOKUP(CC$7+0.5,$I$66:$DJ$120,ROWS($A$10:$A48)+2,FALSE)","v":229},{"$f":"HLOOKUP(CD$7+0.5,$I$66:$DJ$120,ROWS($A$10:$A48)+2,FALSE)","v":353},{"$f":"HLOOKUP(CE$7+0.5,$I$66:$DJ$120,ROWS($A$10:$A48)+2,FALSE)","v":422},{"$f":"HLOOKUP(CF$7+0.5,$I$66:$DJ$120,ROWS($A$10:$A48)+2,FALSE)","v":604},{"$f":"HLOOKUP(CG$7+0.5,$I$66:$DJ$120,ROWS($A$10:$A48)+2,FALSE)","v":338},{"$f":"HLOOKUP(CH$7+0.5,$I$66:$DJ$120,ROWS($A$10:$A48)+2,FALSE)","v":799},{"$f":"HLOOKUP(CI$7+0.5,$I$66:$DJ$120,ROWS($A$10:$A48)+2,FALSE)","v":237},{"$f":"HLOOKUP(CJ$7+0.5,$I$66:$DJ$120,ROWS($A$10:$A48)+2,FALSE)","v":269},{"$f":"HLOOKUP(CK$7+0.5,$I$66:$DJ$120,ROWS($A$10:$A48)+2,FALSE)","v":968},{"$f":"HLOOKUP(CL$7+0.5,$I$66:$DJ$120,ROWS($A$10:$A48)+2,FALSE)","v":448},{"$f":"HLOOKUP(CM$7+0.5,$I$66:$DJ$120,ROWS($A$10:$A48)+2,FALSE)","v":2774},{"$f":"HLOOKUP(CN$7+0.5,$I$66:$DJ$120,ROWS($A$10:$A48)+2,FALSE)","v":65},{"$f":"HLOOKUP(CO$7+0.5,$I$66:$DJ$120,ROWS($A$10:$A48)+2,FALSE)","v":327},{"$f":"HLOOKUP(CP$7+0.5,$I$66:$DJ$120,ROWS($A$10:$A48)+2,FALSE)","v":676},{"$f":"HLOOKUP(CQ$7+0.5,$I$66:$DJ$120,ROWS($A$10:$A48)+2,FALSE)","v":1032},{"$f":"HLOOKUP(CR$7+0.5,$I$66:$DJ$120,ROWS($A$10:$A48)+2,FALSE)","v":1046},{"$f":"HLOOKUP(CS$7+0.5,$I$66:$DJ$120,ROWS($A$10:$A48)+2,FALSE)","v":85},{"$f":"HLOOKUP(CT$7+0.5,$I$66:$DJ$120,ROWS($A$10:$A48)+2,FALSE)","v":789},{"$f":"HLOOKUP(CU$7+0.5,$I$66:$DJ$120,ROWS($A$10:$A48)+2,FALSE)","v":546},{"$f":"HLOOKUP(CV$7+0.5,$I$66:$DJ$120,ROWS($A$10:$A48)+2,FALSE)","v":"N/A"},{"$f":"HLOOKUP(CW$7+0.5,$I$66:$DJ$120,ROWS($A$10:$A48)+2,FALSE)","v":535},{"$f":"HLOOKUP(CX$7+0.5,$I$66:$DJ$120,ROWS($A$10:$A48)+2,FALSE)","v":214},{"$f":"HLOOKUP(CY$7+0.5,$I$66:$DJ$120,ROWS($A$10:$A48)+2,FALSE)","v":364},{"$f":"HLOOKUP(CZ$7+0.5,$I$66:$DJ$120,ROWS($A$10:$A48)+2,FALSE)","v":143},{"$f":"HLOOKUP(DA$7+0.5,$I$66:$DJ$120,ROWS($A$10:$A48)+2,FALSE)","v":583},{"$f":"HLOOKUP(DB$7+0.5,$I$66:$DJ$120,ROWS($A$10:$A48)+2,FALSE)","v":1277},{"$f":"HLOOKUP(DC$7+0.5,$I$66:$DJ$120,ROWS($A$10:$A48)+2,FALSE)","v":2328},{"$f":"HLOOKUP(DD$7+0.5,$I$66:$DJ$120,ROWS($A$10:$A48)+2,FALSE)","v":435},{"$f":"HLOOKUP(DE$7+0.5,$I$66:$DJ$120,ROWS($A$10:$A48)+2,FALSE)","v":510},{"$f":"HLOOKUP(DF$7+0.5,$I$66:$DJ$120,ROWS($A$10:$A48)+2,FALSE)","v":3153},{"$f":"HLOOKUP(DG$7+0.5,$I$66:$DJ$120,ROWS($A$10:$A48)+2,FALSE)","v":502},{"$f":"HLOOKUP(DH$7+0.5,$I$66:$DJ$120,ROWS($A$10:$A48)+2,FALSE)","v":284},{"$f":"HLOOKUP(DI$7+0.5,$I$66:$DJ$120,ROWS($A$10:$A48)+2,FALSE)","v":664},{"$f":"HLOOKUP(DJ$7+0.5,$I$66:$DJ$120,ROWS($A$10:$A48)+2,FALSE)","v":177}]
[null,"Pennsylvania",12630082,4558,11107110,28998,1252378,26347,{"$f":"HLOOKUP(I$7,$I$66:$DJ$120,ROWS($A$10:$A49)+2,FALSE)","v":215500},{"$f":"HLOOKUP(J$7,$I$66:$DJ$120,ROWS($A$10:$A49)+2,FALSE)","v":1926},{"$f":"HLOOKUP(K$7,$I$66:$DJ$120,ROWS($A$10:$A49)+2,FALSE)","v":1658},{"$f":"HLOOKUP(L$7,$I$66:$DJ$120,ROWS($A$10:$A49)+2,FALSE)","v":3529},{"$f":"HLOOKUP(M$7,$I$66:$DJ$120,ROWS($A$10:$A49)+2,FALSE)","v":573},{"$f":"HLOOKUP(N$7,$I$66:$DJ$120,ROWS($A$10:$A49)+2,FALSE)","v":7772},{"$f":"HLOOKUP(O$7,$I$66:$DJ$120,ROWS($A$10:$A49)+2,FALSE)","v":2574},{"$f":"HLOOKUP(P$7,$I$66:$DJ$120,ROWS($A$10:$A49)+2,FALSE)","v":3311},{"$f":"HLOOKUP(Q$7,$I$66:$DJ$120,ROWS($A$10:$A49)+2,FALSE)","v":4814},{"$f":"HLOOKUP(R$7,$I$66:$DJ$120,ROWS($A$10:$A49)+2,FALSE)","v":2921},{"$f":"HLOOKUP(S$7,$I$66:$DJ$120,ROWS($A$10:$A49)+2,FALSE)","v":14631},{"$f":"HLOOKUP(T$7,$I$66:$DJ$120,ROWS($A$10:$A49)+2,FALSE)","v":4337},{"$f":"HLOOKUP(U$7,$I$66:$DJ$120,ROWS($A$10:$A49)+2,FALSE)","v":245},{"$f":"HLOOKUP(V$7,$I$66:$DJ$120,ROWS($A$10:$A49)+2,FALSE)","v":359},{"$f":"HLOOKUP(W$7,$I$66:$DJ$120,ROWS($A$10:$A49)+2,FALSE)","v":3749},{"$f":"HLOOKUP(X$7,$I$66:$DJ$120,ROWS($A$10:$A49)+2,FALSE)","v":1599},{"$f":"HLOOKUP(Y$7,$I$66:$DJ$120,ROWS($A$10:$A49)+2,FALSE)","v":125},{"$f":"HLOOKUP(Z$7,$I$66:$DJ$120,ROWS($A$10:$A49)+2,FALSE)","v":967},{"$f":"HLOOKUP(AA$7,$I$66:$DJ$120,ROWS($A$10:$A49)+2,FALSE)","v":1233},{"$f":"HLOOKUP(AB$7,$I$66:$DJ$120,ROWS($A$10:$A49)+2,FALSE)","v":694},{"$f":"HLOOKUP(AC$7,$I$66:$DJ$120,ROWS($A$10:$A49)+2,FALSE)","v":988},{"$f":"HLOOKUP(AD$7,$I$66:$DJ$120,ROWS($A$10:$A49)+2,FALSE)","v":17529},{"$f":"HLOOKUP(AE$7,$I$66:$DJ$120,ROWS($A$10:$A49)+2,FALSE)","v":5900},{"$f":"HLOOKUP(AF$7,$I$66:$DJ$120,ROWS($A$10:$A49)+2,FALSE)","v":2642},{"$f":"HLOOKUP(AG$7,$I$66:$DJ$120,ROWS($A$10:$A49)+2,FALSE)","v":1169},{"$f":"HLOOKUP(AH$7,$I$66:$DJ$120,ROWS($A$10:$A49)+2,FALSE)","v":55},{"$f":"HLOOKUP(AI$7,$I$66:$DJ$120,ROWS($A$10:$A49)+2,FALSE)","v":1171},{"$f":"HLOOKUP(AJ$7,$I$66:$DJ$120,ROWS($A$10:$A49)+2,FALSE)","v":135},{"$f":"HLOOKUP(AK$7,$I$66:$DJ$120,ROWS($A$10:$A49)+2,FALSE)","v":214},{"$f":"HLOOKUP(AL$7,$I$66:$DJ$120,ROWS($A$10:$A49)+2,FALSE)","v":1600},{"$f":"HLOOKUP(AM$7,$I$66:$DJ$120,ROWS($A$10:$A49)+2,FALSE)","v":1138},{"$f":"HLOOKUP(AN$7,$I$66:$DJ$120,ROWS($A$10:$A49)+2,FALSE)","v":33791},{"$f":"HLOOKUP(AO$7,$I$66:$DJ$120,ROWS($A$10:$A49)+2,FALSE)","v":1001},{"$f":"HLOOKUP(AP$7,$I$66:$DJ$120,ROWS($A$10:$A49)+2,FALSE)","v":32898},{"$f":"HLOOKUP(AQ$7,$I$66:$DJ$120,ROWS($A$10:$A49)+2,FALSE)","v":6380},{"$f":"HLOOKUP(AR$7,$I$66:$DJ$120,ROWS($A$10:$A49)+2,FALSE)","v":166},{"$f":"HLOOKUP(AS$7,$I$66:$DJ$120,ROWS($A$10:$A49)+2,FALSE)","v":14319},{"$f":"HLOOKUP(AT$7,$I$66:$DJ$120,ROWS($A$10:$A49)+2,FALSE)","v":378},{"$f":"HLOOKUP(AU$7,$I$66:$DJ$120,ROWS($A$10:$A49)+2,FALSE)","v":234},{"$f":"HLOOKUP(AV$7,$I$66:$DJ$120,ROWS($A$10:$A49)+2,FALSE)","v":"N/A"},{"$f":"HLOOKUP(AW$7,$I$66:$DJ$120,ROWS($A$10:$A49)+2,FALSE)","v":771},{"$f":"HLOOKUP(AX$7,$I$66:$DJ$120,ROWS($A$10:$A49)+2,FALSE)","v":3023},{"$f":"HLOOKUP(AY$7,$I$66:$DJ$120,ROWS($A$10:$A49)+2,FALSE)","v":159},{"$f":"HLOOKUP(AZ$7,$I$66:$DJ$120,ROWS($A$10:$A49)+2,FALSE)","v":1273},{"$f":"HLOOKUP(BA$7,$I$66:$DJ$120,ROWS($A$10:$A49)+2,FALSE)","v":6768},{"$f":"HLOOKUP(BB$7,$I$66:$DJ$120,ROWS($A$10:$A49)+2,FALSE)","v":1276},{"$f":"HLOOKUP(BC$7,$I$66:$DJ$120,ROWS($A$10:$A49)+2,FALSE)","v":1012},{"$f":"HLOOKUP(BD$7,$I$66:$DJ$120,ROWS($A$10:$A49)+2,FALSE)","v":11960},{"$f":"HLOOKUP(BE$7,$I$66:$DJ$120,ROWS($A$10:$A49)+2,FALSE)","v":1787},{"$f":"HLOOKUP(BF$7,$I$66:$DJ$120,ROWS($A$10:$A49)+2,FALSE)","v":6762},{"$f":"HLOOKUP(BG$7,$I$66:$DJ$120,ROWS($A$10:$A49)+2,FALSE)","v":1550},{"$f":"HLOOKUP(BH$7,$I$66:$DJ$120,ROWS($A$10:$A49)+2,FALSE)","v":434},{"$f":"HLOOKUP(BI$7,$I$66:$DJ$120,ROWS($A$10:$A49)+2,FALSE)","v":7847},{"$f":"HLOOKUP(BJ$7+0.5,$I$66:$DJ$120,ROWS($A$10:$A49)+2,FALSE)","v":8872},{"$f":"HLOOKUP(BK$7+0.5,$I$66:$DJ$120,ROWS($A$10:$A49)+2,FALSE)","v":1318},{"$f":"HLOOKUP(BL$7+0.5,$I$66:$DJ$120,ROWS($A$10:$A49)+2,FALSE)","v":857},{"$f":"HLOOKUP(BM$7+0.5,$I$66:$DJ$120,ROWS($A$10:$A49)+2,FALSE)","v":1256},{"$f":"HLOOKUP(BN$7+0.5,$I$66:$DJ$120,ROWS($A$10:$A49)+2,FALSE)","v":315},{"$f":"HLOOKUP(BO$7+0.5,$I$66:$DJ$120,ROWS($A$10:$A49)+2,FALSE)","v":1558},{"$f":"HLOOKUP(BP$7+0.5,$I$66:$DJ$120,ROWS($A$10:$A49)+2,FALSE)","v":1488},{"$f":"HLOOKUP(BQ$7+0.5,$I$66:$DJ$120,ROWS($A$10:$A49)+2,FALSE)","v":905},{"$f":"HLOOKUP(BR$7+0.5,$I$66:$DJ$120,ROWS($A$10:$A49)+2,FALSE)","v":1468},{"$f":"HLOOKUP(BS$7+0.5,$I$66:$DJ$120,ROWS($A$10:$A49)+2,FALSE)","v":830},{"$f":"HLOOKUP(BT$7+0.5,$I$66:$DJ$120,ROWS($A$10:$A49)+2,FALSE)","v":2565},{"$f":"HLOOKUP(BU$7+0.5,$I$66:$DJ$120,ROWS($A$10:$A49)+2,FALSE)","v":1703},{"$f":"HLOOKUP(BV$7+0.5,$I$66:$DJ$120,ROWS($A$10:$A49)+2,FALSE)","v":180},{"$f":"HLOOKUP(BW$7+0.5,$I$66:$DJ$120,ROWS($A$10:$A49)+2,FALSE)","v":350},{"$f":"HLOOKUP(BX$7+0.5,$I$66:$DJ$120,ROWS($A$10:$A49)+2,FALSE)","v":1137},{"$f":"HLOOKUP(BY$7+0.5,$I$66:$DJ$120,ROWS($A$10:$A49)+2,FALSE)","v":680},{"$f":"HLOOKUP(BZ$7+0.5,$I$66:$DJ$120,ROWS($A$10:$A49)+2,FALSE)","v":177},{"$f":"HLOOKUP(CA$7+0.5,$I$66:$DJ$120,ROWS($A$10:$A49)+2,FALSE)","v":860},{"$f":"HLOOKUP(CB$7+0.5,$I$66:$DJ$120,ROWS($A$10:$A49)+2,FALSE)","v":604},{"$f":"HLOOKUP(CC$7+0.5,$I$66:$DJ$120,ROWS($A$10:$A49)+2,FALSE)","v":431},{"$f":"HLOOKUP(CD$7+0.5,$I$66:$DJ$120,ROWS($A$10:$A49)+2,FALSE)","v":675},{"$f":"HLOOKUP(CE$7+0.5,$I$66:$DJ$120,ROWS($A$10:$A49)+2,FALSE)","v":3084},{"$f":"HLOOKUP(CF$7+0.5,$I$66:$DJ$120,ROWS($A$10:$A49)+2,FALSE)","v":1368},{"$f":"HLOOKUP(CG$7+0.5,$I$66:$DJ$120,ROWS($A$10:$A49)+2,FALSE)","v":1235},{"$f":"HLOOKUP(CH$7+0.5,$I$66:$DJ$120,ROWS($A$10:$A49)+2,FALSE)","v":588},{"$f":"HLOOKUP(CI$7+0.5,$I$66:$DJ$120,ROWS($A$10:$A49)+2,FALSE)","v":49},{"$f":"HLOOKUP(CJ$7+0.5,$I$66:$DJ$120,ROWS($A$10:$A49)+2,FALSE)","v":575},{"$f":"HLOOKUP(CK$7+0.5,$I$66:$DJ$120,ROWS($A$10:$A49)+2,FALSE)","v":169},{"$f":"HLOOKUP(CL$7+0.5,$I$66:$DJ$120,ROWS($A$10:$A49)+2,FALSE)","v":187},{"$f":"HLOOKUP(CM$7+0.5,$I$66:$DJ$120,ROWS($A$10:$A49)+2,FALSE)","v":999},{"$f":"HLOOKUP(CN$7+0.5,$I$66:$DJ$120,ROWS($A$10:$A49)+2,FALSE)","v":609},{"$f":"HLOOKUP(CO$7+0.5,$I$66:$DJ$120,ROWS($A$10:$A49)+2,FALSE)","v":4576},{"$f":"HLOOKUP(CP$7+0.5,$I$66:$DJ$120,ROWS($A$10:$A49)+2,FALSE)","v":740},{"$f":"HLOOKUP(CQ$7+0.5,$I$66:$DJ$120,ROWS($A$10:$A49)+2,FALSE)","v":4482},{"$f":"HLOOKUP(CR$7+0.5,$I$66:$DJ$120,ROWS($A$10:$A49)+2,FALSE)","v":1734},{"$f":"HLOOKUP(CS$7+0.5,$I$66:$DJ$120,ROWS($A$10:$A49)+2,FALSE)","v":195},{"$f":"HLOOKUP(CT$7+0.5,$I$66:$DJ$120,ROWS($A$10:$A49)+2,FALSE)","v":2479},{"$f":"HLOOKUP(CU$7+0.5,$I$66:$DJ$120,ROWS($A$10:$A49)+2,FALSE)","v":253},{"$f":"HLOOKUP(CV$7+0.5,$I$66:$DJ$120,ROWS($A$10:$A49)+2,FALSE)","v":220},{"$f":"HLOOKUP(CW$7+0.5,$I$66:$DJ$120,ROWS($A$10:$A49)+2,FALSE)","v":"N/A"},{"$f":"HLOOKUP(CX$7+0.5,$I$66:$DJ$120,ROWS($A$10:$A49)+2,FALSE)","v":472},{"$f":"HLOOKUP(CY$7+0.5,$I$66:$DJ$120,ROWS($A$10:$A49)+2,FALSE)","v":869},{"$f":"HLOOKUP(CZ$7+0.5,$I$66:$DJ$120,ROWS($A$10:$A49)+2,FALSE)","v":206},{"$f":"HLOOKUP(DA$7+0.5,$I$66:$DJ$120,ROWS($A$10:$A49)+2,FALSE)","v":533},{"$f":"HLOOKUP(DB$7+0.5,$I$66:$DJ$120,ROWS($A$10:$A49)+2,FALSE)","v":1688},{"$f":"HLOOKUP(DC$7+0.5,$I$66:$DJ$120,ROWS($A$10:$A49)+2,FALSE)","v":804},{"$f":"HLOOKUP(DD$7+0.5,$I$66:$DJ$120,ROWS($A$10:$A49)+2,FALSE)","v":873},{"$f":"HLOOKUP(DE$7+0.5,$I$66:$DJ$120,ROWS($A$10:$A49)+2,FALSE)","v":2213},{"$f":"HLOOKUP(DF$7+0.5,$I$66:$DJ$120,ROWS($A$10:$A49)+2,FALSE)","v":1202},{"$f":"HLOOKUP(DG$7+0.5,$I$66:$DJ$120,ROWS($A$10:$A49)+2,FALSE)","v":2075},{"$f":"HLOOKUP(DH$7+0.5,$I$66:$DJ$120,ROWS($A$10:$A49)+2,FALSE)","v":722},{"$f":"HLOOKUP(DI$7+0.5,$I$66:$DJ$120,ROWS($A$10:$A49)+2,FALSE)","v":439},{"$f":"HLOOKUP(DJ$7+0.5,$I$66:$DJ$120,ROWS($A$10:$A49)+2,FALSE)","v":2646}]
[null,"Rhode Island",1040527,1533,899551,9890,101165,8498,{"$f":"HLOOKUP(I$7,$I$66:$DJ$120,ROWS($A$10:$A50)+2,FALSE)","v":33446},{"$f":"HLOOKUP(J$7,$I$66:$DJ$120,ROWS($A$10:$A50)+2,FALSE)","v":20},{"$f":"HLOOKUP(K$7,$I$66:$DJ$120,ROWS($A$10:$A50)+2,FALSE)","v":0},{"$f":"HLOOKUP(L$7,$I$66:$DJ$120,ROWS($A$10:$A50)+2,FALSE)","v":93},{"$f":"HLOOKUP(M$7,$I$66:$DJ$120,ROWS($A$10:$A50)+2,FALSE)","v":0},{"$f":"HLOOKUP(N$7,$I$66:$DJ$120,ROWS($A$10:$A50)+2,FALSE)","v":2146},{"$f":"HLOOKUP(O$7,$I$66:$DJ$120,ROWS($A$10:$A50)+2,FALSE)","v":332},{"$f":"HLOOKUP(P$7,$I$66:$DJ$120,ROWS($A$10:$A50)+2,FALSE)","v":4170},{"$f":"HLOOKUP(Q$7,$I$66:$DJ$120,ROWS($A$10:$A50)+2,FALSE)","v":0},{"$f":"HLOOKUP(R$7,$I$66:$DJ$120,ROWS($A$10:$A50)+2,FALSE)","v":313},{"$f":"HLOOKUP(S$7,$I$66:$DJ$120,ROWS($A$10:$A50)+2,FALSE)","v":2752},{"$f":"HLOOKUP(T$7,$I$66:$DJ$120,ROWS($A$10:$A50)+2,FALSE)","v":168},{"$f":"HLOOKUP(U$7,$I$66:$DJ$120,ROWS($A$10:$A50)+2,FALSE)","v":120},{"$f":"HLOOKUP(V$7,$I$66:$DJ$120,ROWS($A$10:$A50)+2,FALSE)","v":0},{"$f":"HLOOKUP(W$7,$I$66:$DJ$120,ROWS($A$10:$A50)+2,FALSE)","v":385},{"$f":"HLOOKUP(X$7,$I$66:$DJ$120,ROWS($A$10:$A50)+2,FALSE)","v":0},{"$f":"HLOOKUP(Y$7,$I$66:$DJ$120,ROWS($A$10:$A50)+2,FALSE)","v":0},{"$f":"HLOOKUP(Z$7,$I$66:$DJ$120,ROWS($A$10:$A50)+2,FALSE)","v":27},{"$f":"HLOOKUP(AA$7,$I$66:$DJ$120,ROWS($A$10:$A50)+2,FALSE)","v":286},{"$f":"HLOOKUP(AB$7,$I$66:$DJ$120,ROWS($A$10:$A50)+2,FALSE)","v":24},{"$f":"HLOOKUP(AC$7,$I$66:$DJ$120,ROWS($A$10:$A50)+2,FALSE)","v":279},{"$f":"HLOOKUP(AD$7,$I$66:$DJ$120,ROWS($A$10:$A50)+2,FALSE)","v":482},{"$f":"HLOOKUP(AE$7,$I$66:$DJ$120,ROWS($A$10:$A50)+2,FALSE)","v":11253},{"$f":"HLOOKUP(AF$7,$I$66:$DJ$120,ROWS($A$10:$A50)+2,FALSE)","v":230},{"$f":"HLOOKUP(AG$7,$I$66:$DJ$120,ROWS($A$10:$A50)+2,FALSE)","v":131},{"$f":"HLOOKUP(AH$7,$I$66:$DJ$120,ROWS($A$10:$A50)+2,FALSE)","v":0},{"$f":"HLOOKUP(AI$7,$I$66:$DJ$120,ROWS($A$10:$A50)+2,FALSE)","v":210},{"$f":"HLOOKUP(AJ$7,$I$66:$DJ$120,ROWS($A$10:$A50)+2,FALSE)","v":0},{"$f":"HLOOKUP(AK$7,$I$66:$DJ$120,ROWS($A$10:$A50)+2,FALSE)","v":188},{"$f":"HLOOKUP(AL$7,$I$66:$DJ$120,ROWS($A$10:$A50)+2,FALSE)","v":25},{"$f":"HLOOKUP(AM$7,$I$66:$DJ$120,ROWS($A$10:$A50)+2,FALSE)","v":611},{"$f":"HLOOKUP(AN$7,$I$66:$DJ$120,ROWS($A$10:$A50)+2,FALSE)","v":1219},{"$f":"HLOOKUP(AO$7,$I$66:$DJ$120,ROWS($A$10:$A50)+2,FALSE)","v":36},{"$f":"HLOOKUP(AP$7,$I$66:$DJ$120,ROWS($A$10:$A50)+2,FALSE)","v":3603},{"$f":"HLOOKUP(AQ$7,$I$66:$DJ$120,ROWS($A$10:$A50)+2,FALSE)","v":478},{"$f":"HLOOKUP(AR$7,$I$66:$DJ$120,ROWS($A$10:$A50)+2,FALSE)","v":0},{"$f":"HLOOKUP(AS$7,$I$66:$DJ$120,ROWS($A$10:$A50)+2,FALSE)","v":63},{"$f":"HLOOKUP(AT$7,$I$66:$DJ$120,ROWS($A$10:$A50)+2,FALSE)","v":0},{"$f":"HLOOKUP(AU$7,$I$66:$DJ$120,ROWS($A$10:$A50)+2,FALSE)","v":139},{"$f":"HLOOKUP(AV$7,$I$66:$DJ$120,ROWS($A$10:$A50)+2,FALSE)","v":735},{"$f":"HLOOKUP(AW$7,$I$66:$DJ$120,ROWS($A$10:$A50)+2,FALSE)","v":"N/A"},{"$f":"HLOOKUP(AX$7,$I$66:$DJ$120,ROWS($A$10:$A50)+2,FALSE)","v":481},{"$f":"HLOOKUP(AY$7,$I$66:$DJ$120,ROWS($A$10:$A50)+2,FALSE)","v":0},{"$f":"HLOOKUP(AZ$7,$I$66:$DJ$120,ROWS($A$10:$A50)+2,FALSE)","v":120},{"$f":"HLOOKUP(BA$7,$I$66:$DJ$120,ROWS($A$10:$A50)+2,FALSE)","v":823},{"$f":"HLOOKUP(BB$7,$I$66:$DJ$120,ROWS($A$10:$A50)+2,FALSE)","v":0},{"$f":"HLOOKUP(BC$7,$I$66:$DJ$120,ROWS($A$10:$A50)+2,FALSE)","v":53},{"$f":"HLOOKUP(BD$7,$I$66:$DJ$120,ROWS($A$10:$A50)+2,FALSE)","v":1008},{"$f":"HLOOKUP(BE$7,$I$66:$DJ$120,ROWS($A$10:$A50)+2,FALSE)","v":287},{"$f":"HLOOKUP(BF$7,$I$66:$DJ$120,ROWS($A$10:$A50)+2,FALSE)","v":0},{"$f":"HLOOKUP(BG$7,$I$66:$DJ$120,ROWS($A$10:$A50)+2,FALSE)","v":135},{"$f":"HLOOKUP(BH$7,$I$66:$DJ$120,ROWS($A$10:$A50)+2,FALSE)","v":21},{"$f":"HLOOKUP(BI$7,$I$66:$DJ$120,ROWS($A$10:$A50)+2,FALSE)","v":116},{"$f":"HLOOKUP(BJ$7+0.5,$I$66:$DJ$120,ROWS($A$10:$A50)+2,FALSE)","v":3551},{"$f":"HLOOKUP(BK$7+0.5,$I$66:$DJ$120,ROWS($A$10:$A50)+2,FALSE)","v":44},{"$f":"HLOOKUP(BL$7+0.5,$I$66:$DJ$120,ROWS($A$10:$A50)+2,FALSE)","v":200},{"$f":"HLOOKUP(BM$7+0.5,$I$66:$DJ$120,ROWS($A$10:$A50)+2,FALSE)","v":151},{"$f":"HLOOKUP(BN$7+0.5,$I$66:$DJ$120,ROWS($A$10:$A50)+2,FALSE)","v":200},{"$f":"HLOOKUP(BO$7+0.5,$I$66:$DJ$120,ROWS($A$10:$A50)+2,FALSE)","v":811},{"$f":"HLOOKUP(BP$7+0.5,$I$66:$DJ$120,ROWS($A$10:$A50)+2,FALSE)","v":315},{"$f":"HLOOKUP(BQ$7+0.5,$I$66:$DJ$120,ROWS($A$10:$A50)+2,FALSE)","v":1101},{"$f":"HLOOKUP(BR$7+0.5,$I$66:$DJ$120,ROWS($A$10:$A50)+2,FALSE)","v":200},{"$f":"HLOOKUP(BS$7+0.5,$I$66:$DJ$120,ROWS($A$10:$A50)+2,FALSE)","v":381},{"$f":"HLOOKUP(BT$7+0.5,$I$66:$DJ$120,ROWS($A$10:$A50)+2,FALSE)","v":1143},{"$f":"HLOOKUP(BU$7+0.5,$I$66:$DJ$120,ROWS($A$10:$A50)+2,FALSE)","v":211},{"$f":"HLOOKUP(BV$7+0.5,$I$66:$DJ$120,ROWS($A$10:$A50)+2,FALSE)","v":145},{"$f":"HLOOKUP(BW$7+0.5,$I$66:$DJ$120,ROWS($A$10:$A50)+2,FALSE)","v":200},{"$f":"HLOOKUP(BX$7+0.5,$I$66:$DJ$120,ROWS($A$10:$A50)+2,FALSE)","v":382},{"$f":"HLOOKUP(BY$7+0.5,$I$66:$DJ$120,ROWS($A$10:$A50)+2,FALSE)","v":200},{"$f":"HLOOKUP(BZ$7+0.5,$I$66:$DJ$120,ROWS($A$10:$A50)+2,FALSE)","v":200},{"$f":"HLOOKUP(CA$7+0.5,$I$66:$DJ$120,ROWS($A$10:$A50)+2,FALSE)","v":47},{"$f":"HLOOKUP(CB$7+0.5,$I$66:$DJ$120,ROWS($A$10:$A50)+2,FALSE)","v":405},{"$f":"HLOOKUP(CC$7+0.5,$I$66:$DJ$120,ROWS($A$10:$A50)+2,FALSE)","v":45},{"$f":"HLOOKUP(CD$7+0.5,$I$66:$DJ$120,ROWS($A$10:$A50)+2,FALSE)","v":249},{"$f":"HLOOKUP(CE$7+0.5,$I$66:$DJ$120,ROWS($A$10:$A50)+2,FALSE)","v":325},{"$f":"HLOOKUP(CF$7+0.5,$I$66:$DJ$120,ROWS($A$10:$A50)+2,FALSE)","v":1937},{"$f":"HLOOKUP(CG$7+0.5,$I$66:$DJ$120,ROWS($A$10:$A50)+2,FALSE)","v":169},{"$f":"HLOOKUP(CH$7+0.5,$I$66:$DJ$120,ROWS($A$10:$A50)+2,FALSE)","v":131},{"$f":"HLOOKUP(CI$7+0.5,$I$66:$DJ$120,ROWS($A$10:$A50)+2,FALSE)","v":200},{"$f":"HLOOKUP(CJ$7+0.5,$I$66:$DJ$120,ROWS($A$10:$A50)+2,FALSE)","v":158},{"$f":"HLOOKUP(CK$7+0.5,$I$66:$DJ$120,ROWS($A$10:$A50)+2,FALSE)","v":200},{"$f":"HLOOKUP(CL$7+0.5,$I$66:$DJ$120,ROWS($A$10:$A50)+2,FALSE)","v":250},{"$f":"HLOOKUP(CM$7+0.5,$I$66:$DJ$120,ROWS($A$10:$A50)+2,FALSE)","v":48},{"$f":"HLOOKUP(CN$7+0.5,$I$66:$DJ$120,ROWS($A$10:$A50)+2,FALSE)","v":385},{"$f":"HLOOKUP(CO$7+0.5,$I$66:$DJ$120,ROWS($A$10:$A50)+2,FALSE)","v":641},{"$f":"HLOOKUP(CP$7+0.5,$I$66:$DJ$120,ROWS($A$10:$A50)+2,FALSE)","v":58},{"$f":"HLOOKUP(CQ$7+0.5,$I$66:$DJ$120,ROWS($A$10:$A50)+2,FALSE)","v":1335},{"$f":"HLOOKUP(CR$7+0.5,$I$66:$DJ$120,ROWS($A$10:$A50)+2,FALSE)","v":508},{"$f":"HLOOKUP(CS$7+0.5,$I$66:$DJ$120,ROWS($A$10:$A50)+2,FALSE)","v":200},{"$f":"HLOOKUP(CT$7+0.5,$I$66:$DJ$120,ROWS($A$10:$A50)+2,FALSE)","v":80},{"$f":"HLOOKUP(CU$7+0.5,$I$66:$DJ$120,ROWS($A$10:$A50)+2,FALSE)","v":200},{"$f":"HLOOKUP(CV$7+0.5,$I$66:$DJ$120,ROWS($A$10:$A50)+2,FALSE)","v":235},{"$f":"HLOOKUP(CW$7+0.5,$I$66:$DJ$120,ROWS($A$10:$A50)+2,FALSE)","v":552},{"$f":"HLOOKUP(CX$7+0.5,$I$66:$DJ$120,ROWS($A$10:$A50)+2,FALSE)","v":"N/A"},{"$f":"HLOOKUP(CY$7+0.5,$I$66:$DJ$120,ROWS($A$10:$A50)+2,FALSE)","v":609},{"$f":"HLOOKUP(CZ$7+0.5,$I$66:$DJ$120,ROWS($A$10:$A50)+2,FALSE)","v":200},{"$f":"HLOOKUP(DA$7+0.5,$I$66:$DJ$120,ROWS($A$10:$A50)+2,FALSE)","v":199},{"$f":"HLOOKUP(DB$7+0.5,$I$66:$DJ$120,ROWS($A$10:$A50)+2,FALSE)","v":433},{"$f":"HLOOKUP(DC$7+0.5,$I$66:$DJ$120,ROWS($A$10:$A50)+2,FALSE)","v":200},{"$f":"HLOOKUP(DD$7+0.5,$I$66:$DJ$120,ROWS($A$10:$A50)+2,FALSE)","v":76},{"$f":"HLOOKUP(DE$7+0.5,$I$66:$DJ$120,ROWS($A$10:$A50)+2,FALSE)","v":569},{"$f":"HLOOKUP(DF$7+0.5,$I$66:$DJ$120,ROWS($A$10:$A50)+2,FALSE)","v":320},{"$f":"HLOOKUP(DG$7+0.5,$I$66:$DJ$120,ROWS($A$10:$A50)+2,FALSE)","v":200},{"$f":"HLOOKUP(DH$7+0.5,$I$66:$DJ$120,ROWS($A$10:$A50)+2,FALSE)","v":124},{"$f":"HLOOKUP(DI$7+0.5,$I$66:$DJ$120,ROWS($A$10:$A50)+2,FALSE)","v":32},{"$f":"HLOOKUP(DJ$7+0.5,$I$66:$DJ$120,ROWS($A$10:$A50)+2,FALSE)","v":186}]
[null,"South Carolina",4668886,3434,3929626,20572,564350,20053,{"$f":"HLOOKUP(I$7,$I$66:$DJ$120,ROWS($A$10:$A51)+2,FALSE)","v":156705},{"$f":"HLOOKUP(J$7,$I$66:$DJ$120,ROWS($A$10:$A51)+2,FALSE)","v":1665},{"$f":"HLOOKUP(K$7,$I$66:$DJ$120,ROWS($A$10:$A51)+2,FALSE)","v":1244},{"$f":"HLOOKUP(L$7,$I$66:$DJ$120,ROWS($A$10:$A51)+2,FALSE)","v":2222},{"$f":"HLOOKUP(M$7,$I$66:$DJ$120,ROWS($A$10:$A51)+2,FALSE)","v":839},{"$f":"HLOOKUP(N$7,$I$66:$DJ$120,ROWS($A$10:$A51)+2,FALSE)","v":5979},{"$f":"HLOOKUP(O$7,$I$66:$DJ$120,ROWS($A$10:$A51)+2,FALSE)","v":1915},{"$f":"HLOOKUP(P$7,$I$66:$DJ$120,ROWS($A$10:$A51)+2,FALSE)","v":1590},{"$f":"HLOOKUP(Q$7,$I$66:$DJ$120,ROWS($A$10:$A51)+2,FALSE)","v":697},{"$f":"HLOOKUP(R$7,$I$66:$DJ$120,ROWS($A$10:$A51)+2,FALSE)","v":435},{"$f":"HLOOKUP(S$7,$I$66:$DJ$120,ROWS($A$10:$A51)+2,FALSE)","v":11552},{"$f":"HLOOKUP(T$7,$I$66:$DJ$120,ROWS($A$10:$A51)+2,FALSE)","v":18570},{"$f":"HLOOKUP(U$7,$I$66:$DJ$120,ROWS($A$10:$A51)+2,FALSE)","v":638},{"$f":"HLOOKUP(V$7,$I$66:$DJ$120,ROWS($A$10:$A51)+2,FALSE)","v":198},{"$f":"HLOOKUP(W$7,$I$66:$DJ$120,ROWS($A$10:$A51)+2,FALSE)","v":2125},{"$f":"HLOOKUP(X$7,$I$66:$DJ$120,ROWS($A$10:$A51)+2,FALSE)","v":3802},{"$f":"HLOOKUP(Y$7,$I$66:$DJ$120,ROWS($A$10:$A51)+2,FALSE)","v":643},{"$f":"HLOOKUP(Z$7,$I$66:$DJ$120,ROWS($A$10:$A51)+2,FALSE)","v":1064},{"$f":"HLOOKUP(AA$7,$I$66:$DJ$120,ROWS($A$10:$A51)+2,FALSE)","v":1924},{"$f":"HLOOKUP(AB$7,$I$66:$DJ$120,ROWS($A$10:$A51)+2,FALSE)","v":2709},{"$f":"HLOOKUP(AC$7,$I$66:$DJ$120,ROWS($A$10:$A51)+2,FALSE)","v":2077},{"$f":"HLOOKUP(AD$7,$I$66:$DJ$120,ROWS($A$10:$A51)+2,FALSE)","v":3565},{"$f":"HLOOKUP(AE$7,$I$66:$DJ$120,ROWS($A$10:$A51)+2,FALSE)","v":2313},{"$f":"HLOOKUP(AF$7,$I$66:$DJ$120,ROWS($A$10:$A51)+2,FALSE)","v":2966},{"$f":"HLOOKUP(AG$7,$I$66:$DJ$120,ROWS($A$10:$A51)+2,FALSE)","v":757},{"$f":"HLOOKUP(AH$7,$I$66:$DJ$120,ROWS($A$10:$A51)+2,FALSE)","v":1407},{"$f":"HLOOKUP(AI$7,$I$66:$DJ$120,ROWS($A$10:$A51)+2,FALSE)","v":1884},{"$f":"HLOOKUP(AJ$7,$I$66:$DJ$120,ROWS($A$10:$A51)+2,FALSE)","v":93},{"$f":"HLOOKUP(AK$7,$I$66:$DJ$120,ROWS($A$10:$A51)+2,FALSE)","v":158},{"$f":"HLOOKUP(AL$7,$I$66:$DJ$120,ROWS($A$10:$A51)+2,FALSE)","v":1025},{"$f":"HLOOKUP(AM$7,$I$66:$DJ$120,ROWS($A$10:$A51)+2,FALSE)","v":917},{"$f":"HLOOKUP(AN$7,$I$66:$DJ$120,ROWS($A$10:$A51)+2,FALSE)","v":6517},{"$f":"HLOOKUP(AO$7,$I$66:$DJ$120,ROWS($A$10:$A51)+2,FALSE)","v":1052},{"$f":"HLOOKUP(AP$7,$I$66:$DJ$120,ROWS($A$10:$A51)+2,FALSE)","v":10746},{"$f":"HLOOKUP(AQ$7,$I$66:$DJ$120,ROWS($A$10:$A51)+2,FALSE)","v":24764},{"$f":"HLOOKUP(AR$7,$I$66:$DJ$120,ROWS($A$10:$A51)+2,FALSE)","v":656},{"$f":"HLOOKUP(AS$7,$I$66:$DJ$120,ROWS($A$10:$A51)+2,FALSE)","v":4388},{"$f":"HLOOKUP(AT$7,$I$66:$DJ$120,ROWS($A$10:$A51)+2,FALSE)","v":555},{"$f":"HLOOKUP(AU$7,$I$66:$DJ$120,ROWS($A$10:$A51)+2,FALSE)","v":255},{"$f":"HLOOKUP(AV$7,$I$66:$DJ$120,ROWS($A$10:$A51)+2,FALSE)","v":6497},{"$f":"HLOOKUP(AW$7,$I$66:$DJ$120,ROWS($A$10:$A51)+2,FALSE)","v":538},{"$f":"HLOOKUP(AX$7,$I$66:$DJ$120,ROWS($A$10:$A51)+2,FALSE)","v":"N/A"},{"$f":"HLOOKUP(AY$7,$I$66:$DJ$120,ROWS($A$10:$A51)+2,FALSE)","v":816},{"$f":"HLOOKUP(AZ$7,$I$66:$DJ$120,ROWS($A$10:$A51)+2,FALSE)","v":3550},{"$f":"HLOOKUP(BA$7,$I$66:$DJ$120,ROWS($A$10:$A51)+2,FALSE)","v":5351},{"$f":"HLOOKUP(BB$7,$I$66:$DJ$120,ROWS($A$10:$A51)+2,FALSE)","v":566},{"$f":"HLOOKUP(BC$7,$I$66:$DJ$120,ROWS($A$10:$A51)+2,FALSE)","v":298},{"$f":"HLOOKUP(BD$7,$I$66:$DJ$120,ROWS($A$10:$A51)+2,FALSE)","v":9377},{"$f":"HLOOKUP(BE$7,$I$66:$DJ$120,ROWS($A$10:$A51)+2,FALSE)","v":1629},{"$f":"HLOOKUP(BF$7,$I$66:$DJ$120,ROWS($A$10:$A51)+2,FALSE)","v":1345},{"$f":"HLOOKUP(BG$7,$I$66:$DJ$120,ROWS($A$10:$A51)+2,FALSE)","v":832},{"$f":"HLOOKUP(BH$7,$I$66:$DJ$120,ROWS($A$10:$A51)+2,FALSE)","v":0},{"$f":"HLOOKUP(BI$7,$I$66:$DJ$120,ROWS($A$10:$A51)+2,FALSE)","v":1070},{"$f":"HLOOKUP(BJ$7+0.5,$I$66:$DJ$120,ROWS($A$10:$A51)+2,FALSE)","v":9611},{"$f":"HLOOKUP(BK$7+0.5,$I$66:$DJ$120,ROWS($A$10:$A51)+2,FALSE)","v":635},{"$f":"HLOOKUP(BL$7+0.5,$I$66:$DJ$120,ROWS($A$10:$A51)+2,FALSE)","v":1016},{"$f":"HLOOKUP(BM$7+0.5,$I$66:$DJ$120,ROWS($A$10:$A51)+2,FALSE)","v":1160},{"$f":"HLOOKUP(BN$7+0.5,$I$66:$DJ$120,ROWS($A$10:$A51)+2,FALSE)","v":526},{"$f":"HLOOKUP(BO$7+0.5,$I$66:$DJ$120,ROWS($A$10:$A51)+2,FALSE)","v":1473},{"$f":"HLOOKUP(BP$7+0.5,$I$66:$DJ$120,ROWS($A$10:$A51)+2,FALSE)","v":1059},{"$f":"HLOOKUP(BQ$7+0.5,$I$66:$DJ$120,ROWS($A$10:$A51)+2,FALSE)","v":729},{"$f":"HLOOKUP(BR$7+0.5,$I$66:$DJ$120,ROWS($A$10:$A51)+2,FALSE)","v":492},{"$f":"HLOOKUP(BS$7+0.5,$I$66:$DJ$120,ROWS($A$10:$A51)+2,FALSE)","v":352},{"$f":"HLOOKUP(BT$7+0.5,$I$66:$DJ$120,ROWS($A$10:$A51)+2,FALSE)","v":2367},{"$f":"HLOOKUP(BU$7+0.5,$I$66:$DJ$120,ROWS($A$10:$A51)+2,FALSE)","v":3616},{"$f":"HLOOKUP(BV$7+0.5,$I$66:$DJ$120,ROWS($A$10:$A51)+2,FALSE)","v":493},{"$f":"HLOOKUP(BW$7+0.5,$I$66:$DJ$120,ROWS($A$10:$A51)+2,FALSE)","v":321},{"$f":"HLOOKUP(BX$7+0.5,$I$66:$DJ$120,ROWS($A$10:$A51)+2,FALSE)","v":1128},{"$f":"HLOOKUP(BY$7+0.5,$I$66:$DJ$120,ROWS($A$10:$A51)+2,FALSE)","v":1911},{"$f":"HLOOKUP(BZ$7+0.5,$I$66:$DJ$120,ROWS($A$10:$A51)+2,FALSE)","v":437},{"$f":"HLOOKUP(CA$7+0.5,$I$66:$DJ$120,ROWS($A$10:$A51)+2,FALSE)","v":855},{"$f":"HLOOKUP(CB$7+0.5,$I$66:$DJ$120,ROWS($A$10:$A51)+2,FALSE)","v":991},{"$f":"HLOOKUP(CC$7+0.5,$I$66:$DJ$120,ROWS($A$10:$A51)+2,FALSE)","v":2265},{"$f":"HLOOKUP(CD$7+0.5,$I$66:$DJ$120,ROWS($A$10:$A51)+2,FALSE)","v":942},{"$f":"HLOOKUP(CE$7+0.5,$I$66:$DJ$120,ROWS($A$10:$A51)+2,FALSE)","v":1205},{"$f":"HLOOKUP(CF$7+0.5,$I$66:$DJ$120,ROWS($A$10:$A51)+2,FALSE)","v":826},{"$f":"HLOOKUP(CG$7+0.5,$I$66:$DJ$120,ROWS($A$10:$A51)+2,FALSE)","v":1289},{"$f":"HLOOKUP(CH$7+0.5,$I$66:$DJ$120,ROWS($A$10:$A51)+2,FALSE)","v":582},{"$f":"HLOOKUP(CI$7+0.5,$I$66:$DJ$120,ROWS($A$10:$A51)+2,FALSE)","v":802},{"$f":"HLOOKUP(CJ$7+0.5,$I$66:$DJ$120,ROWS($A$10:$A51)+2,FALSE)","v":724},{"$f":"HLOOKUP(CK$7+0.5,$I$66:$DJ$120,ROWS($A$10:$A51)+2,FALSE)","v":127},{"$f":"HLOOKUP(CL$7+0.5,$I$66:$DJ$120,ROWS($A$10:$A51)+2,FALSE)","v":165},{"$f":"HLOOKUP(CM$7+0.5,$I$66:$DJ$120,ROWS($A$10:$A51)+2,FALSE)","v":834},{"$f":"HLOOKUP(CN$7+0.5,$I$66:$DJ$120,ROWS($A$10:$A51)+2,FALSE)","v":696},{"$f":"HLOOKUP(CO$7+0.5,$I$66:$DJ$120,ROWS($A$10:$A51)+2,FALSE)","v":2181},{"$f":"HLOOKUP(CP$7+0.5,$I$66:$DJ$120,ROWS($A$10:$A51)+2,FALSE)","v":1085},{"$f":"HLOOKUP(CQ$7+0.5,$I$66:$DJ$120,ROWS($A$10:$A51)+2,FALSE)","v":3642},{"$f":"HLOOKUP(CR$7+0.5,$I$66:$DJ$120,ROWS($A$10:$A51)+2,FALSE)","v":3907},{"$f":"HLOOKUP(CS$7+0.5,$I$66:$DJ$120,ROWS($A$10:$A51)+2,FALSE)","v":650},{"$f":"HLOOKUP(CT$7+0.5,$I$66:$DJ$120,ROWS($A$10:$A51)+2,FALSE)","v":1326},{"$f":"HLOOKUP(CU$7+0.5,$I$66:$DJ$120,ROWS($A$10:$A51)+2,FALSE)","v":354},{"$f":"HLOOKUP(CV$7+0.5,$I$66:$DJ$120,ROWS($A$10:$A51)+2,FALSE)","v":202},{"$f":"HLOOKUP(CW$7+0.5,$I$66:$DJ$120,ROWS($A$10:$A51)+2,FALSE)","v":2067},{"$f":"HLOOKUP(CX$7+0.5,$I$66:$DJ$120,ROWS($A$10:$A51)+2,FALSE)","v":332},{"$f":"HLOOKUP(CY$7+0.5,$I$66:$DJ$120,ROWS($A$10:$A51)+2,FALSE)","v":"N/A"},{"$f":"HLOOKUP(CZ$7+0.5,$I$66:$DJ$120,ROWS($A$10:$A51)+2,FALSE)","v":1252},{"$f":"HLOOKUP(DA$7+0.5,$I$66:$DJ$120,ROWS($A$10:$A51)+2,FALSE)","v":1136},{"$f":"HLOOKUP(DB$7+0.5,$I$66:$DJ$120,ROWS($A$10:$A51)+2,FALSE)","v":1482},{"$f":"HLOOKUP(DC$7+0.5,$I$66:$DJ$120,ROWS($A$10:$A51)+2,FALSE)","v":425},{"$f":"HLOOKUP(DD$7+0.5,$I$66:$DJ$120,ROWS($A$10:$A51)+2,FALSE)","v":244},{"$f":"HLOOKUP(DE$7+0.5,$I$66:$DJ$120,ROWS($A$10:$A51)+2,FALSE)","v":3040},{"$f":"HLOOKUP(DF$7+0.5,$I$66:$DJ$120,ROWS($A$10:$A51)+2,FALSE)","v":1165},{"$f":"HLOOKUP(DG$7+0.5,$I$66:$DJ$120,ROWS($A$10:$A51)+2,FALSE)","v":720},{"$f":"HLOOKUP(DH$7+0.5,$I$66:$DJ$120,ROWS($A$10:$A51)+2,FALSE)","v":570},{"$f":"HLOOKUP(DI$7+0.5,$I$66:$DJ$120,ROWS($A$10:$A51)+2,FALSE)","v":197},{"$f":"HLOOKUP(DJ$7+0.5,$I$66:$DJ$120,ROWS($A$10:$A51)+2,FALSE)","v":890}]
[null,"South Dakota",821669,1036,676014,7752,115606,7423,{"$f":"HLOOKUP(I$7,$I$66:$DJ$120,ROWS($A$10:$A52)+2,FALSE)","v":26051},{"$f":"HLOOKUP(J$7,$I$66:$DJ$120,ROWS($A$10:$A52)+2,FALSE)","v":0},{"$f":"HLOOKUP(K$7,$I$66:$DJ$120,ROWS($A$10:$A52)+2,FALSE)","v":855},{"$f":"HLOOKUP(L$7,$I$66:$DJ$120,ROWS($A$10:$A52)+2,FALSE)","v":435},{"$f":"HLOOKUP(M$7,$I$66:$DJ$120,ROWS($A$10:$A52)+2,FALSE)","v":227},{"$f":"HLOOKUP(N$7,$I$66:$DJ$120,ROWS($A$10:$A52)+2,FALSE)","v":1494},{"$f":"HLOOKUP(O$7,$I$66:$DJ$120,ROWS($A$10:$A52)+2,FALSE)","v":1744},{"$f":"HLOOKUP(P$7,$I$66:$DJ$120,ROWS($A$10:$A52)+2,FALSE)","v":2},{"$f":"HLOOKUP(Q$7,$I$66:$DJ$120,ROWS($A$10:$A52)+2,FALSE)","v":0},{"$f":"HLOOKUP(R$7,$I$66:$DJ$120,ROWS($A$10:$A52)+2,FALSE)","v":0},{"$f":"HLOOKUP(S$7,$I$66:$DJ$120,ROWS($A$10:$A52)+2,FALSE)","v":970},{"$f":"HLOOKUP(T$7,$I$66:$DJ$120,ROWS($A$10:$A52)+2,FALSE)","v":122},{"$f":"HLOOKUP(U$7,$I$66:$DJ$120,ROWS($A$10:$A52)+2,FALSE)","v":8},{"$f":"HLOOKUP(V$7,$I$66:$DJ$120,ROWS($A$10:$A52)+2,FALSE)","v":78},{"$f":"HLOOKUP(W$7,$I$66:$DJ$120,ROWS($A$10:$A52)+2,FALSE)","v":74},{"$f":"HLOOKUP(X$7,$I$66:$DJ$120,ROWS($A$10:$A52)+2,FALSE)","v":210},{"$f":"HLOOKUP(Y$7,$I$66:$DJ$120,ROWS($A$10:$A52)+2,FALSE)","v":2441},{"$f":"HLOOKUP(Z$7,$I$66:$DJ$120,ROWS($A$10:$A52)+2,FALSE)","v":403},{"$f":"HLOOKUP(AA$7,$I$66:$DJ$120,ROWS($A$10:$A52)+2,FALSE)","v":0},{"$f":"HLOOKUP(AB$7,$I$66:$DJ$120,ROWS($A$10:$A52)+2,FALSE)","v":0},{"$f":"HLOOKUP(AC$7,$I$66:$DJ$120,ROWS($A$10:$A52)+2,FALSE)","v":0},{"$f":"HLOOKUP(AD$7,$I$66:$DJ$120,ROWS($A$10:$A52)+2,FALSE)","v":60},{"$f":"HLOOKUP(AE$7,$I$66:$DJ$120,ROWS($A$10:$A52)+2,FALSE)","v":61},{"$f":"HLOOKUP(AF$7,$I$66:$DJ$120,ROWS($A$10:$A52)+2,FALSE)","v":892},{"$f":"HLOOKUP(AG$7,$I$66:$DJ$120,ROWS($A$10:$A52)+2,FALSE)","v":3568},{"$f":"HLOOKUP(AH$7,$I$66:$DJ$120,ROWS($A$10:$A52)+2,FALSE)","v":34},{"$f":"HLOOKUP(AI$7,$I$66:$DJ$120,ROWS($A$10:$A52)+2,FALSE)","v":474},{"$f":"HLOOKUP(AJ$7,$I$66:$DJ$120,ROWS($A$10:$A52)+2,FALSE)","v":248},{"$f":"HLOOKUP(AK$7,$I$66:$DJ$120,ROWS($A$10:$A52)+2,FALSE)","v":2175},{"$f":"HLOOKUP(AL$7,$I$66:$DJ$120,ROWS($A$10:$A52)+2,FALSE)","v":135},{"$f":"HLOOKUP(AM$7,$I$66:$DJ$120,ROWS($A$10:$A52)+2,FALSE)","v":0},{"$f":"HLOOKUP(AN$7,$I$66:$DJ$120,ROWS($A$10:$A52)+2,FALSE)","v":0},{"$f":"HLOOKUP(AO$7,$I$66:$DJ$120,ROWS($A$10:$A52)+2,FALSE)","v":175},{"$f":"HLOOKUP(AP$7,$I$66:$DJ$120,ROWS($A$10:$A52)+2,FALSE)","v":371},{"$f":"HLOOKUP(AQ$7,$I$66:$DJ$120,ROWS($A$10:$A52)+2,FALSE)","v":240},{"$f":"HLOOKUP(AR$7,$I$66:$DJ$120,ROWS($A$10:$A52)+2,FALSE)","v":1725},{"$f":"HLOOKUP(AS$7,$I$66:$DJ$120,ROWS($A$10:$A52)+2,FALSE)","v":64},{"$f":"HLOOKUP(AT$7,$I$66:$DJ$120,ROWS($A$10:$A52)+2,FALSE)","v":21},{"$f":"HLOOKUP(AU$7,$I$66:$DJ$120,ROWS($A$10:$A52)+2,FALSE)","v":667},{"$f":"HLOOKUP(AV$7,$I$66:$DJ$120,ROWS($A$10:$A52)+2,FALSE)","v":515},{"$f":"HLOOKUP(AW$7,$I$66:$DJ$120,ROWS($A$10:$A52)+2,FALSE)","v":0},{"$f":"HLOOKUP(AX$7,$I$66:$DJ$120,ROWS($A$10:$A52)+2,FALSE)","v":158},{"$f":"HLOOKUP(AY$7,$I$66:$DJ$120,ROWS($A$10:$A52)+2,FALSE)","v":"N/A"},{"$f":"HLOOKUP(AZ$7,$I$66:$DJ$120,ROWS($A$10:$A52)+2,FALSE)","v":507},{"$f":"HLOOKUP(BA$7,$I$66:$DJ$120,ROWS($A$10:$A52)+2,FALSE)","v":1715},{"$f":"HLOOKUP(BB$7,$I$66:$DJ$120,ROWS($A$10:$A52)+2,FALSE)","v":388},{"$f":"HLOOKUP(BC$7,$I$66:$DJ$120,ROWS($A$10:$A52)+2,FALSE)","v":5},{"$f":"HLOOKUP(BD$7,$I$66:$DJ$120,ROWS($A$10:$A52)+2,FALSE)","v":340},{"$f":"HLOOKUP(BE$7,$I$66:$DJ$120,ROWS($A$10:$A52)+2,FALSE)","v":1026},{"$f":"HLOOKUP(BF$7,$I$66:$DJ$120,ROWS($A$10:$A52)+2,FALSE)","v":131},{"$f":"HLOOKUP(BG$7,$I$66:$DJ$120,ROWS($A$10:$A52)+2,FALSE)","v":314},{"$f":"HLOOKUP(BH$7,$I$66:$DJ$120,ROWS($A$10:$A52)+2,FALSE)","v":979},{"$f":"HLOOKUP(BI$7,$I$66:$DJ$120,ROWS($A$10:$A52)+2,FALSE)","v":134},{"$f":"HLOOKUP(BJ$7+0.5,$I$66:$DJ$120,ROWS($A$10:$A52)+2,FALSE)","v":2891},{"$f":"HLOOKUP(BK$7+0.5,$I$66:$DJ$120,ROWS($A$10:$A52)+2,FALSE)","v":147},{"$f":"HLOOKUP(BL$7+0.5,$I$66:$DJ$120,ROWS($A$10:$A52)+2,FALSE)","v":1127},{"$f":"HLOOKUP(BM$7+0.5,$I$66:$DJ$120,ROWS($A$10:$A52)+2,FALSE)","v":333},{"$f":"HLOOKUP(BN$7+0.5,$I$66:$DJ$120,ROWS($A$10:$A52)+2,FALSE)","v":354},{"$f":"HLOOKUP(BO$7+0.5,$I$66:$DJ$120,ROWS($A$10:$A52)+2,FALSE)","v":663},{"$f":"HLOOKUP(BP$7+0.5,$I$66:$DJ$120,ROWS($A$10:$A52)+2,FALSE)","v":839},{"$f":"HLOOKUP(BQ$7+0.5,$I$66:$DJ$120,ROWS($A$10:$A52)+2,FALSE)","v":4},{"$f":"HLOOKUP(BR$7+0.5,$I$66:$DJ$120,ROWS($A$10:$A52)+2,FALSE)","v":147},{"$f":"HLOOKUP(BS$7+0.5,$I$66:$DJ$120,ROWS($A$10:$A52)+2,FALSE)","v":147},{"$f":"HLOOKUP(BT$7+0.5,$I$66:$DJ$120,ROWS($A$10:$A52)+2,FALSE)","v":638},{"$f":"HLOOKUP(BU$7+0.5,$I$66:$DJ$120,ROWS($A$10:$A52)+2,FALSE)","v":130},{"$f":"HLOOKUP(BV$7+0.5,$I$66:$DJ$120,ROWS($A$10:$A52)+2,FALSE)","v":13},{"$f":"HLOOKUP(BW$7+0.5,$I$66:$DJ$120,ROWS($A$10:$A52)+2,FALSE)","v":104},{"$f":"HLOOKUP(BX$7+0.5,$I$66:$DJ$120,ROWS($A$10:$A52)+2,FALSE)","v":102},{"$f":"HLOOKUP(BY$7+0.5,$I$66:$DJ$120,ROWS($A$10:$A52)+2,FALSE)","v":289},{"$f":"HLOOKUP(BZ$7+0.5,$I$66:$DJ$120,ROWS($A$10:$A52)+2,FALSE)","v":932},{"$f":"HLOOKUP(CA$7+0.5,$I$66:$DJ$120,ROWS($A$10:$A52)+2,FALSE)","v":295},{"$f":"HLOOKUP(CB$7+0.5,$I$66:$DJ$120,ROWS($A$10:$A52)+2,FALSE)","v":147},{"$f":"HLOOKUP(CC$7+0.5,$I$66:$DJ$120,ROWS($A$10:$A52)+2,FALSE)","v":147},{"$f":"HLOOKUP(CD$7+0.5,$I$66:$DJ$120,ROWS($A$10:$A52)+2,FALSE)","v":147},{"$f":"HLOOKUP(CE$7+0.5,$I$66:$DJ$120,ROWS($A$10:$A52)+2,FALSE)","v":65},{"$f":"HLOOKUP(CF$7+0.5,$I$66:$DJ$120,ROWS($A$10:$A52)+2,FALSE)","v":101},{"$f":"HLOOKUP(CG$7+0.5,$I$66:$DJ$120,ROWS($A$10:$A52)+2,FALSE)","v":747},{"$f":"HLOOKUP(CH$7+0.5,$I$66:$DJ$120,ROWS($A$10:$A52)+2,FALSE)","v":1023},{"$f":"HLOOKUP(CI$7+0.5,$I$66:$DJ$120,ROWS($A$10:$A52)+2,FALSE)","v":48},{"$f":"HLOOKUP(CJ$7+0.5,$I$66:$DJ$120,ROWS($A$10:$A52)+2,FALSE)","v":274},{"$f":"HLOOKUP(CK$7+0.5,$I$66:$DJ$120,ROWS($A$10:$A52)+2,FALSE)","v":208},{"$f":"HLOOKUP(CL$7+0.5,$I$66:$DJ$120,ROWS($A$10:$A52)+2,FALSE)","v":801},{"$f":"HLOOKUP(CM$7+0.5,$I$66:$DJ$120,ROWS($A$10:$A52)+2,FALSE)","v":171},{"$f":"HLOOKUP(CN$7+0.5,$I$66:$DJ$120,ROWS($A$10:$A52)+2,FALSE)","v":147},{"$f":"HLOOKUP(CO$7+0.5,$I$66:$DJ$120,ROWS($A$10:$A52)+2,FALSE)","v":147},{"$f":"HLOOKUP(CP$7+0.5,$I$66:$DJ$120,ROWS($A$10:$A52)+2,FALSE)","v":187},{"$f":"HLOOKUP(CQ$7+0.5,$I$66:$DJ$120,ROWS($A$10:$A52)+2,FALSE)","v":317},{"$f":"HLOOKUP(CR$7+0.5,$I$66:$DJ$120,ROWS($A$10:$A52)+2,FALSE)","v":220},{"$f":"HLOOKUP(CS$7+0.5,$I$66:$DJ$120,ROWS($A$10:$A52)+2,FALSE)","v":823},{"$f":"HLOOKUP(CT$7+0.5,$I$66:$DJ$120,ROWS($A$10:$A52)+2,FALSE)","v":77},{"$f":"HLOOKUP(CU$7+0.5,$I$66:$DJ$120,ROWS($A$10:$A52)+2,FALSE)","v":36},{"$f":"HLOOKUP(CV$7+0.5,$I$66:$DJ$120,ROWS($A$10:$A52)+2,FALSE)","v":583},{"$f":"HLOOKUP(CW$7+0.5,$I$66:$DJ$120,ROWS($A$10:$A52)+2,FALSE)","v":633},{"$f":"HLOOKUP(CX$7+0.5,$I$66:$DJ$120,ROWS($A$10:$A52)+2,FALSE)","v":147},{"$f":"HLOOKUP(CY$7+0.5,$I$66:$DJ$120,ROWS($A$10:$A52)+2,FALSE)","v":159},{"$f":"HLOOKUP(CZ$7+0.5,$I$66:$DJ$120,ROWS($A$10:$A52)+2,FALSE)","v":"N/A"},{"$f":"HLOOKUP(DA$7+0.5,$I$66:$DJ$120,ROWS($A$10:$A52)+2,FALSE)","v":346},{"$f":"HLOOKUP(DB$7+0.5,$I$66:$DJ$120,ROWS($A$10:$A52)+2,FALSE)","v":1067},{"$f":"HLOOKUP(DC$7+0.5,$I$66:$DJ$120,ROWS($A$10:$A52)+2,FALSE)","v":372},{"$f":"HLOOKUP(DD$7+0.5,$I$66:$DJ$120,ROWS($A$10:$A52)+2,FALSE)","v":9},{"$f":"HLOOKUP(DE$7+0.5,$I$66:$DJ$120,ROWS($A$10:$A52)+2,FALSE)","v":300},{"$f":"HLOOKUP(DF$7+0.5,$I$66:$DJ$120,ROWS($A$10:$A52)+2,FALSE)","v":681},{"$f":"HLOOKUP(DG$7+0.5,$I$66:$DJ$120,ROWS($A$10:$A52)+2,FALSE)","v":216},{"$f":"HLOOKUP(DH$7+0.5,$I$66:$DJ$120,ROWS($A$10:$A52)+2,FALSE)","v":413},{"$f":"HLOOKUP(DI$7+0.5,$I$66:$DJ$120,ROWS($A$10:$A52)+2,FALSE)","v":735},{"$f":"HLOOKUP(DJ$7+0.5,$I$66:$DJ$120,ROWS($A$10:$A52)+2,FALSE)","v":235}]
[null,"Tennessee",6378278,4412,5396833,24470,783077,21860,{"$f":"HLOOKUP(I$7,$I$66:$DJ$120,ROWS($A$10:$A53)+2,FALSE)","v":177098},{"$f":"HLOOKUP(J$7,$I$66:$DJ$120,ROWS($A$10:$A53)+2,FALSE)","v":12116},{"$f":"HLOOKUP(K$7,$I$66:$DJ$120,ROWS($A$10:$A53)+2,FALSE)","v":1281},{"$f":"HLOOKUP(L$7,$I$66:$DJ$120,ROWS($A$10:$A53)+2,FALSE)","v":2250},{"$f":"HLOOKUP(M$7,$I$66:$DJ$120,ROWS($A$10:$A53)+2,FALSE)","v":3306},{"$f":"HLOOKUP(N$7,$I$66:$DJ$120,ROWS($A$10:$A53)+2,FALSE)","v":8396},{"$f":"HLOOKUP(O$7,$I$66:$DJ$120,ROWS($A$10:$A53)+2,FALSE)","v":2473},{"$f":"HLOOKUP(P$7,$I$66:$DJ$120,ROWS($A$10:$A53)+2,FALSE)","v":936},{"$f":"HLOOKUP(Q$7,$I$66:$DJ$120,ROWS($A$10:$A53)+2,FALSE)","v":176},{"$f":"HLOOKUP(R$7,$I$66:$DJ$120,ROWS($A$10:$A53)+2,FALSE)","v":180},{"$f":"HLOOKUP(S$7,$I$66:$DJ$120,ROWS($A$10:$A53)+2,FALSE)","v":15641},{"$f":"HLOOKUP(T$7,$I$66:$DJ$120,ROWS($A$10:$A53)+2,FALSE)","v":16012},{"$f":"HLOOKUP(U$7,$I$66:$DJ$120,ROWS($A$10:$A53)+2,FALSE)","v":1058},{"$f":"HLOOKUP(V$7,$I$66:$DJ$120,ROWS($A$10:$A53)+2,FALSE)","v":787},{"$f":"HLOOKUP(W$7,$I$66:$DJ$120,ROWS($A$10:$A53)+2,FALSE)","v":7094},{"$f":"HLOOKUP(X$7,$I$66:$DJ$120,ROWS($A$10:$A53)+2,FALSE)","v":5591},{"$f":"HLOOKUP(Y$7,$I$66:$DJ$120,ROWS($A$10:$A53)+2,FALSE)","v":617},{"$f":"HLOOKUP(Z$7,$I$66:$DJ$120,ROWS($A$10:$A53)+2,FALSE)","v":2630},{"$f":"HLOOKUP(AA$7,$I$66:$DJ$120,ROWS($A$10:$A53)+2,FALSE)","v":13202},{"$f":"HLOOKUP(AB$7,$I$66:$DJ$120,ROWS($A$10:$A53)+2,FALSE)","v":2452},{"$f":"HLOOKUP(AC$7,$I$66:$DJ$120,ROWS($A$10:$A53)+2,FALSE)","v":1040},{"$f":"HLOOKUP(AD$7,$I$66:$DJ$120,ROWS($A$10:$A53)+2,FALSE)","v":1743},{"$f":"HLOOKUP(AE$7,$I$66:$DJ$120,ROWS($A$10:$A53)+2,FALSE)","v":1525},{"$f":"HLOOKUP(AF$7,$I$66:$DJ$120,ROWS($A$10:$A53)+2,FALSE)","v":4507},{"$f":"HLOOKUP(AG$7,$I$66:$DJ$120,ROWS($A$10:$A53)+2,FALSE)","v":1178},{"$f":"HLOOKUP(AH$7,$I$66:$DJ$120,ROWS($A$10:$A53)+2,FALSE)","v":10568},{"$f":"HLOOKUP(AI$7,$I$66:$DJ$120,ROWS($A$10:$A53)+2,FALSE)","v":2694},{"$f":"HLOOKUP(AJ$7,$I$66:$DJ$120,ROWS($A$10:$A53)+2,FALSE)","v":308},{"$f":"HLOOKUP(AK$7,$I$66:$DJ$120,ROWS($A$10:$A53)+2,FALSE)","v":432},{"$f":"HLOOKUP(AL$7,$I$66:$DJ$120,ROWS($A$10:$A53)+2,FALSE)","v":735},{"$f":"HLOOKUP(AM$7,$I$66:$DJ$120,ROWS($A$10:$A53)+2,FALSE)","v":271},{"$f":"HLOOKUP(AN$7,$I$66:$DJ$120,ROWS($A$10:$A53)+2,FALSE)","v":783},{"$f":"HLOOKUP(AO$7,$I$66:$DJ$120,ROWS($A$10:$A53)+2,FALSE)","v":751},{"$f":"HLOOKUP(AP$7,$I$66:$DJ$120,ROWS($A$10:$A53)+2,FALSE)","v":6279},{"$f":"HLOOKUP(AQ$7,$I$66:$DJ$120,ROWS($A$10:$A53)+2,FALSE)","v":5904},{"$f":"HLOOKUP(AR$7,$I$66:$DJ$120,ROWS($A$10:$A53)+2,FALSE)","v":7},{"$f":"HLOOKUP(AS$7,$I$66:$DJ$120,ROWS($A$10:$A53)+2,FALSE)","v":6200},{"$f":"HLOOKUP(AT$7,$I$66:$DJ$120,ROWS($A$10:$A53)+2,FALSE)","v":2495},{"$f":"HLOOKUP(AU$7,$I$66:$DJ$120,ROWS($A$10:$A53)+2,FALSE)","v":1080},{"$f":"HLOOKUP(AV$7,$I$66:$DJ$120,ROWS($A$10:$A53)+2,FALSE)","v":3329},{"$f":"HLOOKUP(AW$7,$I$66:$DJ$120,ROWS($A$10:$A53)+2,FALSE)","v":26},{"$f":"HLOOKUP(AX$7,$I$66:$DJ$120,ROWS($A$10:$A53)+2,FALSE)","v":4300},{"$f":"HLOOKUP(AY$7,$I$66:$DJ$120,ROWS($A$10:$A53)+2,FALSE)","v":0},{"$f":"HLOOKUP(AZ$7,$I$66:$DJ$120,ROWS($A$10:$A53)+2,FALSE)","v":"N/A"},{"$f":"HLOOKUP(BA$7,$I$66:$DJ$120,ROWS($A$10:$A53)+2,FALSE)","v":8716},{"$f":"HLOOKUP(BB$7,$I$66:$DJ$120,ROWS($A$10:$A53)+2,FALSE)","v":784},{"$f":"HLOOKUP(BC$7,$I$66:$DJ$120,ROWS($A$10:$A53)+2,FALSE)","v":133},{"$f":"HLOOKUP(BD$7,$I$66:$DJ$120,ROWS($A$10:$A53)+2,FALSE)","v":8008},{"$f":"HLOOKUP(BE$7,$I$66:$DJ$120,ROWS($A$10:$A53)+2,FALSE)","v":1876},{"$f":"HLOOKUP(BF$7,$I$66:$DJ$120,ROWS($A$10:$A53)+2,FALSE)","v":3248},{"$f":"HLOOKUP(BG$7,$I$66:$DJ$120,ROWS($A$10:$A53)+2,FALSE)","v":1622},{"$f":"HLOOKUP(BH$7,$I$66:$DJ$120,ROWS($A$10:$A53)+2,FALSE)","v":358},{"$f":"HLOOKUP(BI$7,$I$66:$DJ$120,ROWS($A$10:$A53)+2,FALSE)","v":717},{"$f":"HLOOKUP(BJ$7+0.5,$I$66:$DJ$120,ROWS($A$10:$A53)+2,FALSE)","v":10625},{"$f":"HLOOKUP(BK$7+0.5,$I$66:$DJ$120,ROWS($A$10:$A53)+2,FALSE)","v":3309},{"$f":"HLOOKUP(BL$7+0.5,$I$66:$DJ$120,ROWS($A$10:$A53)+2,FALSE)","v":847},{"$f":"HLOOKUP(BM$7+0.5,$I$66:$DJ$120,ROWS($A$10:$A53)+2,FALSE)","v":907},{"$f":"HLOOKUP(BN$7+0.5,$I$66:$DJ$120,ROWS($A$10:$A53)+2,FALSE)","v":1731},{"$f":"HLOOKUP(BO$7+0.5,$I$66:$DJ$120,ROWS($A$10:$A53)+2,FALSE)","v":2447},{"$f":"HLOOKUP(BP$7+0.5,$I$66:$DJ$120,ROWS($A$10:$A53)+2,FALSE)","v":1156},{"$f":"HLOOKUP(BQ$7+0.5,$I$66:$DJ$120,ROWS($A$10:$A53)+2,FALSE)","v":900},{"$f":"HLOOKUP(BR$7+0.5,$I$66:$DJ$120,ROWS($A$10:$A53)+2,FALSE)","v":222},{"$f":"HLOOKUP(BS$7+0.5,$I$66:$DJ$120,ROWS($A$10:$A53)+2,FALSE)","v":203},{"$f":"HLOOKUP(BT$7+0.5,$I$66:$DJ$120,ROWS($A$10:$A53)+2,FALSE)","v":3639},{"$f":"HLOOKUP(BU$7+0.5,$I$66:$DJ$120,ROWS($A$10:$A53)+2,FALSE)","v":3114},{"$f":"HLOOKUP(BV$7+0.5,$I$66:$DJ$120,ROWS($A$10:$A53)+2,FALSE)","v":1052},{"$f":"HLOOKUP(BW$7+0.5,$I$66:$DJ$120,ROWS($A$10:$A53)+2,FALSE)","v":817},{"$f":"HLOOKUP(BX$7+0.5,$I$66:$DJ$120,ROWS($A$10:$A53)+2,FALSE)","v":1891},{"$f":"HLOOKUP(BY$7+0.5,$I$66:$DJ$120,ROWS($A$10:$A53)+2,FALSE)","v":2209},{"$f":"HLOOKUP(BZ$7+0.5,$I$66:$DJ$120,ROWS($A$10:$A53)+2,FALSE)","v":556},{"$f":"HLOOKUP(CA$7+0.5,$I$66:$DJ$120,ROWS($A$10:$A53)+2,FALSE)","v":1972},{"$f":"HLOOKUP(CB$7+0.5,$I$66:$DJ$120,ROWS($A$10:$A53)+2,FALSE)","v":2695},{"$f":"HLOOKUP(CC$7+0.5,$I$66:$DJ$120,ROWS($A$10:$A53)+2,FALSE)","v":1206},{"$f":"HLOOKUP(CD$7+0.5,$I$66:$DJ$120,ROWS($A$10:$A53)+2,FALSE)","v":589},{"$f":"HLOOKUP(CE$7+0.5,$I$66:$DJ$120,ROWS($A$10:$A53)+2,FALSE)","v":867},{"$f":"HLOOKUP(CF$7+0.5,$I$66:$DJ$120,ROWS($A$10:$A53)+2,FALSE)","v":706},{"$f":"HLOOKUP(CG$7+0.5,$I$66:$DJ$120,ROWS($A$10:$A53)+2,FALSE)","v":1434},{"$f":"HLOOKUP(CH$7+0.5,$I$66:$DJ$120,ROWS($A$10:$A53)+2,FALSE)","v":896},{"$f":"HLOOKUP(CI$7+0.5,$I$66:$DJ$120,ROWS($A$10:$A53)+2,FALSE)","v":2321},{"$f":"HLOOKUP(CJ$7+0.5,$I$66:$DJ$120,ROWS($A$10:$A53)+2,FALSE)","v":1254},{"$f":"HLOOKUP(CK$7+0.5,$I$66:$DJ$120,ROWS($A$10:$A53)+2,FALSE)","v":278},{"$f":"HLOOKUP(CL$7+0.5,$I$66:$DJ$120,ROWS($A$10:$A53)+2,FALSE)","v":389},{"$f":"HLOOKUP(CM$7+0.5,$I$66:$DJ$120,ROWS($A$10:$A53)+2,FALSE)","v":443},{"$f":"HLOOKUP(CN$7+0.5,$I$66:$DJ$120,ROWS($A$10:$A53)+2,FALSE)","v":287},{"$f":"HLOOKUP(CO$7+0.5,$I$66:$DJ$120,ROWS($A$10:$A53)+2,FALSE)","v":507},{"$f":"HLOOKUP(CP$7+0.5,$I$66:$DJ$120,ROWS($A$10:$A53)+2,FALSE)","v":640},{"$f":"HLOOKUP(CQ$7+0.5,$I$66:$DJ$120,ROWS($A$10:$A53)+2,FALSE)","v":2008},{"$f":"HLOOKUP(CR$7+0.5,$I$66:$DJ$120,ROWS($A$10:$A53)+2,FALSE)","v":1834},{"$f":"HLOOKUP(CS$7+0.5,$I$66:$DJ$120,ROWS($A$10:$A53)+2,FALSE)","v":16},{"$f":"HLOOKUP(CT$7+0.5,$I$66:$DJ$120,ROWS($A$10:$A53)+2,FALSE)","v":1742},{"$f":"HLOOKUP(CU$7+0.5,$I$66:$DJ$120,ROWS($A$10:$A53)+2,FALSE)","v":1410},{"$f":"HLOOKUP(CV$7+0.5,$I$66:$DJ$120,ROWS($A$10:$A53)+2,FALSE)","v":589},{"$f":"HLOOKUP(CW$7+0.5,$I$66:$DJ$120,ROWS($A$10:$A53)+2,FALSE)","v":999},{"$f":"HLOOKUP(CX$7+0.5,$I$66:$DJ$120,ROWS($A$10:$A53)+2,FALSE)","v":55},{"$f":"HLOOKUP(CY$7+0.5,$I$66:$DJ$120,ROWS($A$10:$A53)+2,FALSE)","v":1280},{"$f":"HLOOKUP(CZ$7+0.5,$I$66:$DJ$120,ROWS($A$10:$A53)+2,FALSE)","v":193},{"$f":"HLOOKUP(DA$7+0.5,$I$66:$DJ$120,ROWS($A$10:$A53)+2,FALSE)","v":"N/A"},{"$f":"HLOOKUP(DB$7+0.5,$I$66:$DJ$120,ROWS($A$10:$A53)+2,FALSE)","v":2938},{"$f":"HLOOKUP(DC$7+0.5,$I$66:$DJ$120,ROWS($A$10:$A53)+2,FALSE)","v":1131},{"$f":"HLOOKUP(DD$7+0.5,$I$66:$DJ$120,ROWS($A$10:$A53)+2,FALSE)","v":133},{"$f":"HLOOKUP(DE$7+0.5,$I$66:$DJ$120,ROWS($A$10:$A53)+2,FALSE)","v":2159},{"$f":"HLOOKUP(DF$7+0.5,$I$66:$DJ$120,ROWS($A$10:$A53)+2,FALSE)","v":852},{"$f":"HLOOKUP(DG$7+0.5,$I$66:$DJ$120,ROWS($A$10:$A53)+2,FALSE)","v":1760},{"$f":"HLOOKUP(DH$7+0.5,$I$66:$DJ$120,ROWS($A$10:$A53)+2,FALSE)","v":727},{"$f":"HLOOKUP(DI$7+0.5,$I$66:$DJ$120,ROWS($A$10:$A53)+2,FALSE)","v":382},{"$f":"HLOOKUP(DJ$7+0.5,$I$66:$DJ$120,ROWS($A$10:$A53)+2,FALSE)","v":499}]
[null,"Texas",25711791,10124,21354247,60947,3656070,53747,{"$f":"HLOOKUP(I$7,$I$66:$DJ$120,ROWS($A$10:$A54)+2,FALSE)","v":507752},{"$f":"HLOOKUP(J$7,$I$66:$DJ$120,ROWS($A$10:$A54)+2,FALSE)","v":9993},{"$f":"HLOOKUP(K$7,$I$66:$DJ$120,ROWS($A$10:$A54)+2,FALSE)","v":6759},{"$f":"HLOOKUP(L$7,$I$66:$DJ$120,ROWS($A$10:$A54)+2,FALSE)","v":18908},{"$f":"HLOOKUP(M$7,$I$66:$DJ$120,ROWS($A$10:$A54)+2,FALSE)","v":13781},{"$f":"HLOOKUP(N$7,$I$66:$DJ$120,ROWS($A$10:$A54)+2,FALSE)","v":62702},{"$f":"HLOOKUP(O$7,$I$66:$DJ$120,ROWS($A$10:$A54)+2,FALSE)","v":16616},{"$f":"HLOOKUP(P$7,$I$66:$DJ$120,ROWS($A$10:$A54)+2,FALSE)","v":2769},{"$f":"HLOOKUP(Q$7,$I$66:$DJ$120,ROWS($A$10:$A54)+2,FALSE)","v":181},{"$f":"HLOOKUP(R$7,$I$66:$DJ$120,ROWS($A$10:$A54)+2,FALSE)","v":1189},{"$f":"HLOOKUP(S$7,$I$66:$DJ$120,ROWS($A$10:$A54)+2,FALSE)","v":31259},{"$f":"HLOOKUP(T$7,$I$66:$DJ$120,ROWS($A$10:$A54)+2,FALSE)","v":20362},{"$f":"HLOOKUP(U$7,$I$66:$DJ$120,ROWS($A$10:$A54)+2,FALSE)","v":5040},{"$f":"HLOOKUP(V$7,$I$66:$DJ$120,ROWS($A$10:$A54)+2,FALSE)","v":2387},{"$f":"HLOOKUP(W$7,$I$66:$DJ$120,ROWS($A$10:$A54)+2,FALSE)","v":19672},{"$f":"HLOOKUP(X$7,$I$66:$DJ$120,ROWS($A$10:$A54)+2,FALSE)","v":8264},{"$f":"HLOOKUP(Y$7,$I$66:$DJ$120,ROWS($A$10:$A54)+2,FALSE)","v":4934},{"$f":"HLOOKUP(Z$7,$I$66:$DJ$120,ROWS($A$10:$A54)+2,FALSE)","v":12699},{"$f":"HLOOKUP(AA$7,$I$66:$DJ$120,ROWS($A$10:$A54)+2,FALSE)","v":6040},{"$f":"HLOOKUP(AB$7,$I$66:$DJ$120,ROWS($A$10:$A54)+2,FALSE)","v":29348},{"$f":"HLOOKUP(AC$7,$I$66:$DJ$120,ROWS($A$10:$A54)+2,FALSE)","v":1293},{"$f":"HLOOKUP(AD$7,$I$66:$DJ$120,ROWS($A$10:$A54)+2,FALSE)","v":4969},{"$f":"HLOOKUP(AE$7,$I$66:$DJ$120,ROWS($A$10:$A54)+2,FALSE)","v":4813},{"$f":"HLOOKUP(AF$7,$I$66:$DJ$120,ROWS($A$10:$A54)+2,FALSE)","v":9501},{"$f":"HLOOKUP(AG$7,$I$66:$DJ$120,ROWS($A$10:$A54)+2,FALSE)","v":2803},{"$f":"HLOOKUP(AH$7,$I$66:$DJ$120,ROWS($A$10:$A54)+2,FALSE)","v":6402},{"$f":"HLOOKUP(AI$7,$I$66:$DJ$120,ROWS($A$10:$A54)+2,FALSE)","v":12319},{"$f":"HLOOKUP(AJ$7,$I$66:$DJ$120,ROWS($A$10:$A54)+2,FALSE)","v":1813},{"$f":"HLOOKUP(AK$7,$I$66:$DJ$120,ROWS($A$10:$A54)+2,FALSE)","v":4794},{"$f":"HLOOKUP(AL$7,$I$66:$DJ$120,ROWS($A$10:$A54)+2,FALSE)","v":8266},{"$f":"HLOOKUP(AM$7,$I$66:$DJ$120,ROWS($A$10:$A54)+2,FALSE)","v":761},{"$f":"HLOOKUP(AN$7,$I$66:$DJ$120,ROWS($A$10:$A54)+2,FALSE)","v":6797},{"$f":"HLOOKUP(AO$7,$I$66:$DJ$120,ROWS($A$10:$A54)+2,FALSE)","v":16762},{"$f":"HLOOKUP(AP$7,$I$66:$DJ$120,ROWS($A$10:$A54)+2,FALSE)","v":20274},{"$f":"HLOOKUP(AQ$7,$I$66:$DJ$120,ROWS($A$10:$A54)+2,FALSE)","v":22660},{"$f":"HLOOKUP(AR$7,$I$66:$DJ$120,ROWS($A$10:$A54)+2,FALSE)","v":989},{"$f":"HLOOKUP(AS$7,$I$66:$DJ$120,ROWS($A$10:$A54)+2,FALSE)","v":8728},{"$f":"HLOOKUP(AT$7,$I$66:$DJ$120,ROWS($A$10:$A54)+2,FALSE)","v":26284},{"$f":"HLOOKUP(AU$7,$I$66:$DJ$120,ROWS($A$10:$A54)+2,FALSE)","v":3827},{"$f":"HLOOKUP(AV$7,$I$66:$DJ$120,ROWS($A$10:$A54)+2,FALSE)","v":10449},{"$f":"HLOOKUP(AW$7,$I$66:$DJ$120,ROWS($A$10:$A54)+2,FALSE)","v":1763},{"$f":"HLOOKUP(AX$7,$I$66:$DJ$120,ROWS($A$10:$A54)+2,FALSE)","v":4470},{"$f":"HLOOKUP(AY$7,$I$66:$DJ$120,ROWS($A$10:$A54)+2,FALSE)","v":1264},{"$f":"HLOOKUP(AZ$7,$I$66:$DJ$120,ROWS($A$10:$A54)+2,FALSE)","v":10368},{"$f":"HLOOKUP(BA$7,$I$66:$DJ$120,ROWS($A$10:$A54)+2,FALSE)","v":"N/A"},{"$f":"HLOOKUP(BB$7,$I$66:$DJ$120,ROWS($A$10:$A54)+2,FALSE)","v":4610},{"$f":"HLOOKUP(BC$7,$I$66:$DJ$120,ROWS($A$10:$A54)+2,FALSE)","v":113},{"$f":"HLOOKUP(BD$7,$I$66:$DJ$120,ROWS($A$10:$A54)+2,FALSE)","v":17734},{"$f":"HLOOKUP(BE$7,$I$66:$DJ$120,ROWS($A$10:$A54)+2,FALSE)","v":11630},{"$f":"HLOOKUP(BF$7,$I$66:$DJ$120,ROWS($A$10:$A54)+2,FALSE)","v":1729},{"$f":"HLOOKUP(BG$7,$I$66:$DJ$120,ROWS($A$10:$A54)+2,FALSE)","v":4192},{"$f":"HLOOKUP(BH$7,$I$66:$DJ$120,ROWS($A$10:$A54)+2,FALSE)","v":2472},{"$f":"HLOOKUP(BI$7,$I$66:$DJ$120,ROWS($A$10:$A54)+2,FALSE)","v":4435},{"$f":"HLOOKUP(BJ$7+0.5,$I$66:$DJ$120,ROWS($A$10:$A54)+2,FALSE)","v":20202},{"$f":"HLOOKUP(BK$7+0.5,$I$66:$DJ$120,ROWS($A$10:$A54)+2,FALSE)","v":3132},{"$f":"HLOOKUP(BL$7+0.5,$I$66:$DJ$120,ROWS($A$10:$A54)+2,FALSE)","v":2614},{"$f":"HLOOKUP(BM$7+0.5,$I$66:$DJ$120,ROWS($A$10:$A54)+2,FALSE)","v":3870},{"$f":"HLOOKUP(BN$7+0.5,$I$66:$DJ$120,ROWS($A$10:$A54)+2,FALSE)","v":3771},{"$f":"HLOOKUP(BO$7+0.5,$I$66:$DJ$120,ROWS($A$10:$A54)+2,FALSE)","v":8792},{"$f":"HLOOKUP(BP$7+0.5,$I$66:$DJ$120,ROWS($A$10:$A54)+2,FALSE)","v":3638},{"$f":"HLOOKUP(BQ$7+0.5,$I$66:$DJ$120,ROWS($A$10:$A54)+2,FALSE)","v":1124},{"$f":"HLOOKUP(BR$7+0.5,$I$66:$DJ$120,ROWS($A$10:$A54)+2,FALSE)","v":168},{"$f":"HLOOKUP(BS$7+0.5,$I$66:$DJ$120,ROWS($A$10:$A54)+2,FALSE)","v":610},{"$f":"HLOOKUP(BT$7+0.5,$I$66:$DJ$120,ROWS($A$10:$A54)+2,FALSE)","v":6252},{"$f":"HLOOKUP(BU$7+0.5,$I$66:$DJ$120,ROWS($A$10:$A54)+2,FALSE)","v":3365},{"$f":"HLOOKUP(BV$7+0.5,$I$66:$DJ$120,ROWS($A$10:$A54)+2,FALSE)","v":2386},{"$f":"HLOOKUP(BW$7+0.5,$I$66:$DJ$120,ROWS($A$10:$A54)+2,FALSE)","v":1190},{"$f":"HLOOKUP(BX$7+0.5,$I$66:$DJ$120,ROWS($A$10:$A54)+2,FALSE)","v":3645},{"$f":"HLOOKUP(BY$7+0.5,$I$66:$DJ$120,ROWS($A$10:$A54)+2,FALSE)","v":2734},{"$f":"HLOOKUP(BZ$7+0.5,$I$66:$DJ$120,ROWS($A$10:$A54)+2,FALSE)","v":2063},{"$f":"HLOOKUP(CA$7+0.5,$I$66:$DJ$120,ROWS($A$10:$A54)+2,FALSE)","v":3202},{"$f":"HLOOKUP(CB$7+0.5,$I$66:$DJ$120,ROWS($A$10:$A54)+2,FALSE)","v":2224},{"$f":"HLOOKUP(CC$7+0.5,$I$66:$DJ$120,ROWS($A$10:$A54)+2,FALSE)","v":5712},{"$f":"HLOOKUP(CD$7+0.5,$I$66:$DJ$120,ROWS($A$10:$A54)+2,FALSE)","v":1284},{"$f":"HLOOKUP(CE$7+0.5,$I$66:$DJ$120,ROWS($A$10:$A54)+2,FALSE)","v":2026},{"$f":"HLOOKUP(CF$7+0.5,$I$66:$DJ$120,ROWS($A$10:$A54)+2,FALSE)","v":1584},{"$f":"HLOOKUP(CG$7+0.5,$I$66:$DJ$120,ROWS($A$10:$A54)+2,FALSE)","v":2273},{"$f":"HLOOKUP(CH$7+0.5,$I$66:$DJ$120,ROWS($A$10:$A54)+2,FALSE)","v":948},{"$f":"HLOOKUP(CI$7+0.5,$I$66:$DJ$120,ROWS($A$10:$A54)+2,FALSE)","v":2032},{"$f":"HLOOKUP(CJ$7+0.5,$I$66:$DJ$120,ROWS($A$10:$A54)+2,FALSE)","v":2205},{"$f":"HLOOKUP(CK$7+0.5,$I$66:$DJ$120,ROWS($A$10:$A54)+2,FALSE)","v":986},{"$f":"HLOOKUP(CL$7+0.5,$I$66:$DJ$120,ROWS($A$10:$A54)+2,FALSE)","v":2045},{"$f":"HLOOKUP(CM$7+0.5,$I$66:$DJ$120,ROWS($A$10:$A54)+2,FALSE)","v":4162},{"$f":"HLOOKUP(CN$7+0.5,$I$66:$DJ$120,ROWS($A$10:$A54)+2,FALSE)","v":749},{"$f":"HLOOKUP(CO$7+0.5,$I$66:$DJ$120,ROWS($A$10:$A54)+2,FALSE)","v":2141},{"$f":"HLOOKUP(CP$7+0.5,$I$66:$DJ$120,ROWS($A$10:$A54)+2,FALSE)","v":3127},{"$f":"HLOOKUP(CQ$7+0.5,$I$66:$DJ$120,ROWS($A$10:$A54)+2,FALSE)","v":4211},{"$f":"HLOOKUP(CR$7+0.5,$I$66:$DJ$120,ROWS($A$10:$A54)+2,FALSE)","v":6953},{"$f":"HLOOKUP(CS$7+0.5,$I$66:$DJ$120,ROWS($A$10:$A54)+2,FALSE)","v":542},{"$f":"HLOOKUP(CT$7+0.5,$I$66:$DJ$120,ROWS($A$10:$A54)+2,FALSE)","v":1739},{"$f":"HLOOKUP(CU$7+0.5,$I$66:$DJ$120,ROWS($A$10:$A54)+2,FALSE)","v":4418},{"$f":"HLOOKUP(CV$7+0.5,$I$66:$DJ$120,ROWS($A$10:$A54)+2,FALSE)","v":1684},{"$f":"HLOOKUP(CW$7+0.5,$I$66:$DJ$120,ROWS($A$10:$A54)+2,FALSE)","v":2158},{"$f":"HLOOKUP(CX$7+0.5,$I$66:$DJ$120,ROWS($A$10:$A54)+2,FALSE)","v":1605},{"$f":"HLOOKUP(CY$7+0.5,$I$66:$DJ$120,ROWS($A$10:$A54)+2,FALSE)","v":1665},{"$f":"HLOOKUP(CZ$7+0.5,$I$66:$DJ$120,ROWS($A$10:$A54)+2,FALSE)","v":757},{"$f":"HLOOKUP(DA$7+0.5,$I$66:$DJ$120,ROWS($A$10:$A54)+2,FALSE)","v":2623},{"$f":"HLOOKUP(DB$7+0.5,$I$66:$DJ$120,ROWS($A$10:$A54)+2,FALSE)","v":"N/A"},{"$f":"HLOOKUP(DC$7+0.5,$I$66:$DJ$120,ROWS($A$10:$A54)+2,FALSE)","v":2045},{"$f":"HLOOKUP(DD$7+0.5,$I$66:$DJ$120,ROWS($A$10:$A54)+2,FALSE)","v":135},{"$f":"HLOOKUP(DE$7+0.5,$I$66:$DJ$120,ROWS($A$10:$A54)+2,FALSE)","v":4904},{"$f":"HLOOKUP(DF$7+0.5,$I$66:$DJ$120,ROWS($A$10:$A54)+2,FALSE)","v":2741},{"$f":"HLOOKUP(DG$7+0.5,$I$66:$DJ$120,ROWS($A$10:$A54)+2,FALSE)","v":938},{"$f":"HLOOKUP(DH$7+0.5,$I$66:$DJ$120,ROWS($A$10:$A54)+2,FALSE)","v":1322},{"$f":"HLOOKUP(DI$7+0.5,$I$66:$DJ$120,ROWS($A$10:$A54)+2,FALSE)","v":1676},{"$f":"HLOOKUP(DJ$7+0.5,$I$66:$DJ$120,ROWS($A$10:$A54)+2,FALSE)","v":1611}]
[null,"Utah",2805440,2571,2324019,16852,373980,16586,{"$f":"HLOOKUP(I$7,$I$66:$DJ$120,ROWS($A$10:$A55)+2,FALSE)","v":87870},{"$f":"HLOOKUP(J$7,$I$66:$DJ$120,ROWS($A$10:$A55)+2,FALSE)","v":126},{"$f":"HLOOKUP(K$7,$I$66:$DJ$120,ROWS($A$10:$A55)+2,FALSE)","v":2819},{"$f":"HLOOKUP(L$7,$I$66:$DJ$120,ROWS($A$10:$A55)+2,FALSE)","v":7966},{"$f":"HLOOKUP(M$7,$I$66:$DJ$120,ROWS($A$10:$A55)+2,FALSE)","v":361},{"$f":"HLOOKUP(N$7,$I$66:$DJ$120,ROWS($A$10:$A55)+2,FALSE)","v":15286},{"$f":"HLOOKUP(O$7,$I$66:$DJ$120,ROWS($A$10:$A55)+2,FALSE)","v":5350},{"$f":"HLOOKUP(P$7,$I$66:$DJ$120,ROWS($A$10:$A55)+2,FALSE)","v":142},{"$f":"HLOOKUP(Q$7,$I$66:$DJ$120,ROWS($A$10:$A55)+2,FALSE)","v":0},{"$f":"HLOOKUP(R$7,$I$66:$DJ$120,ROWS($A$10:$A55)+2,FALSE)","v":0},{"$f":"HLOOKUP(S$7,$I$66:$DJ$120,ROWS($A$10:$A55)+2,FALSE)","v":2428},{"$f":"HLOOKUP(T$7,$I$66:$DJ$120,ROWS($A$10:$A55)+2,FALSE)","v":1142},{"$f":"HLOOKUP(U$7,$I$66:$DJ$120,ROWS($A$10:$A55)+2,FALSE)","v":1436},{"$f":"HLOOKUP(V$7,$I$66:$DJ$120,ROWS($A$10:$A55)+2,FALSE)","v":5129},{"$f":"HLOOKUP(W$7,$I$66:$DJ$120,ROWS($A$10:$A55)+2,FALSE)","v":1588},{"$f":"HLOOKUP(X$7,$I$66:$DJ$120,ROWS($A$10:$A55)+2,FALSE)","v":475},{"$f":"HLOOKUP(Y$7,$I$66:$DJ$120,ROWS($A$10:$A55)+2,FALSE)","v":2791},{"$f":"HLOOKUP(Z$7,$I$66:$DJ$120,ROWS($A$10:$A55)+2,FALSE)","v":398},{"$f":"HLOOKUP(AA$7,$I$66:$DJ$120,ROWS($A$10:$A55)+2,FALSE)","v":217},{"$f":"HLOOKUP(AB$7,$I$66:$DJ$120,ROWS($A$10:$A55)+2,FALSE)","v":345},{"$f":"HLOOKUP(AC$7,$I$66:$DJ$120,ROWS($A$10:$A55)+2,FALSE)","v":380},{"$f":"HLOOKUP(AD$7,$I$66:$DJ$120,ROWS($A$10:$A55)+2,FALSE)","v":613},{"$f":"HLOOKUP(AE$7,$I$66:$DJ$120,ROWS($A$10:$A55)+2,FALSE)","v":1503},{"$f":"HLOOKUP(AF$7,$I$66:$DJ$120,ROWS($A$10:$A55)+2,FALSE)","v":1670},{"$f":"HLOOKUP(AG$7,$I$66:$DJ$120,ROWS($A$10:$A55)+2,FALSE)","v":385},{"$f":"HLOOKUP(AH$7,$I$66:$DJ$120,ROWS($A$10:$A55)+2,FALSE)","v":284},{"$f":"HLOOKUP(AI$7,$I$66:$DJ$120,ROWS($A$10:$A55)+2,FALSE)","v":1553},{"$f":"HLOOKUP(AJ$7,$I$66:$DJ$120,ROWS($A$10:$A55)+2,FALSE)","v":1057},{"$f":"HLOOKUP(AK$7,$I$66:$DJ$120,ROWS($A$10:$A55)+2,FALSE)","v":489},{"$f":"HLOOKUP(AL$7,$I$66:$DJ$120,ROWS($A$10:$A55)+2,FALSE)","v":5391},{"$f":"HLOOKUP(AM$7,$I$66:$DJ$120,ROWS($A$10:$A55)+2,FALSE)","v":507},{"$f":"HLOOKUP(AN$7,$I$66:$DJ$120,ROWS($A$10:$A55)+2,FALSE)","v":437},{"$f":"HLOOKUP(AO$7,$I$66:$DJ$120,ROWS($A$10:$A55)+2,FALSE)","v":686},{"$f":"HLOOKUP(AP$7,$I$66:$DJ$120,ROWS($A$10:$A55)+2,FALSE)","v":2129},{"$f":"HLOOKUP(AQ$7,$I$66:$DJ$120,ROWS($A$10:$A55)+2,FALSE)","v":842},{"$f":"HLOOKUP(AR$7,$I$66:$DJ$120,ROWS($A$10:$A55)+2,FALSE)","v":175},{"$f":"HLOOKUP(AS$7,$I$66:$DJ$120,ROWS($A$10:$A55)+2,FALSE)","v":1875},{"$f":"HLOOKUP(AT$7,$I$66:$DJ$120,ROWS($A$10:$A55)+2,FALSE)","v":1338},{"$f":"HLOOKUP(AU$7,$I$66:$DJ$120,ROWS($A$10:$A55)+2,FALSE)","v":4089},{"$f":"HLOOKUP(AV$7,$I$66:$DJ$120,ROWS($A$10:$A55)+2,FALSE)","v":944},{"$f":"HLOOKUP(AW$7,$I$66:$DJ$120,ROWS($A$10:$A55)+2,FALSE)","v":351},{"$f":"HLOOKUP(AX$7,$I$66:$DJ$120,ROWS($A$10:$A55)+2,FALSE)","v":60},{"$f":"HLOOKUP(AY$7,$I$66:$DJ$120,ROWS($A$10:$A55)+2,FALSE)","v":47},{"$f":"HLOOKUP(AZ$7,$I$66:$DJ$120,ROWS($A$10:$A55)+2,FALSE)","v":863},{"$f":"HLOOKUP(BA$7,$I$66:$DJ$120,ROWS($A$10:$A55)+2,FALSE)","v":3605},{"$f":"HLOOKUP(BB$7,$I$66:$DJ$120,ROWS($A$10:$A55)+2,FALSE)","v":"N/A"},{"$f":"HLOOKUP(BC$7,$I$66:$DJ$120,ROWS($A$10:$A55)+2,FALSE)","v":39},{"$f":"HLOOKUP(BD$7,$I$66:$DJ$120,ROWS($A$10:$A55)+2,FALSE)","v":1369},{"$f":"HLOOKUP(BE$7,$I$66:$DJ$120,ROWS($A$10:$A55)+2,FALSE)","v":3529},{"$f":"HLOOKUP(BF$7,$I$66:$DJ$120,ROWS($A$10:$A55)+2,FALSE)","v":0},{"$f":"HLOOKUP(BG$7,$I$66:$DJ$120,ROWS($A$10:$A55)+2,FALSE)","v":1445},{"$f":"HLOOKUP(BH$7,$I$66:$DJ$120,ROWS($A$10:$A55)+2,FALSE)","v":2216},{"$f":"HLOOKUP(BI$7,$I$66:$DJ$120,ROWS($A$10:$A55)+2,FALSE)","v":239},{"$f":"HLOOKUP(BJ$7+0.5,$I$66:$DJ$120,ROWS($A$10:$A55)+2,FALSE)","v":7490},{"$f":"HLOOKUP(BK$7+0.5,$I$66:$DJ$120,ROWS($A$10:$A55)+2,FALSE)","v":171},{"$f":"HLOOKUP(BL$7+0.5,$I$66:$DJ$120,ROWS($A$10:$A55)+2,FALSE)","v":1292},{"$f":"HLOOKUP(BM$7+0.5,$I$66:$DJ$120,ROWS($A$10:$A55)+2,FALSE)","v":2419},{"$f":"HLOOKUP(BN$7+0.5,$I$66:$DJ$120,ROWS($A$10:$A55)+2,FALSE)","v":402},{"$f":"HLOOKUP(BO$7+0.5,$I$66:$DJ$120,ROWS($A$10:$A55)+2,FALSE)","v":2837},{"$f":"HLOOKUP(BP$7+0.5,$I$66:$DJ$120,ROWS($A$10:$A55)+2,FALSE)","v":1845},{"$f":"HLOOKUP(BQ$7+0.5,$I$66:$DJ$120,ROWS($A$10:$A55)+2,FALSE)","v":168},{"$f":"HLOOKUP(BR$7+0.5,$I$66:$DJ$120,ROWS($A$10:$A55)+2,FALSE)","v":181},{"$f":"HLOOKUP(BS$7+0.5,$I$66:$DJ$120,ROWS($A$10:$A55)+2,FALSE)","v":181},{"$f":"HLOOKUP(BT$7+0.5,$I$66:$DJ$120,ROWS($A$10:$A55)+2,FALSE)","v":1105},{"$f":"HLOOKUP(BU$7+0.5,$I$66:$DJ$120,ROWS($A$10:$A55)+2,FALSE)","v":622},{"$f":"HLOOKUP(BV$7+0.5,$I$66:$DJ$120,ROWS($A$10:$A55)+2,FALSE)","v":876},{"$f":"HLOOKUP(BW$7+0.5,$I$66:$DJ$120,ROWS($A$10:$A55)+2,FALSE)","v":1135},{"$f":"HLOOKUP(BX$7+0.5,$I$66:$DJ$120,ROWS($A$10:$A55)+2,FALSE)","v":802},{"$f":"HLOOKUP(BY$7+0.5,$I$66:$DJ$120,ROWS($A$10:$A55)+2,FALSE)","v":296},{"$f":"HLOOKUP(BZ$7+0.5,$I$66:$DJ$120,ROWS($A$10:$A55)+2,FALSE)","v":2779},{"$f":"HLOOKUP(CA$7+0.5,$I$66:$DJ$120,ROWS($A$10:$A55)+2,FALSE)","v":333},{"$f":"HLOOKUP(CB$7+0.5,$I$66:$DJ$120,ROWS($A$10:$A55)+2,FALSE)","v":221},{"$f":"HLOOKUP(CC$7+0.5,$I$66:$DJ$120,ROWS($A$10:$A55)+2,FALSE)","v":313},{"$f":"HLOOKUP(CD$7+0.5,$I$66:$DJ$120,ROWS($A$10:$A55)+2,FALSE)","v":339},{"$f":"HLOOKUP(CE$7+0.5,$I$66:$DJ$120,ROWS($A$10:$A55)+2,FALSE)","v":361},{"$f":"HLOOKUP(CF$7+0.5,$I$66:$DJ$120,ROWS($A$10:$A55)+2,FALSE)","v":1343},{"$f":"HLOOKUP(CG$7+0.5,$I$66:$DJ$120,ROWS($A$10:$A55)+2,FALSE)","v":1210},{"$f":"HLOOKUP(CH$7+0.5,$I$66:$DJ$120,ROWS($A$10:$A55)+2,FALSE)","v":300},{"$f":"HLOOKUP(CI$7+0.5,$I$66:$DJ$120,ROWS($A$10:$A55)+2,FALSE)","v":229},{"$f":"HLOOKUP(CJ$7+0.5,$I$66:$DJ$120,ROWS($A$10:$A55)+2,FALSE)","v":769},{"$f":"HLOOKUP(CK$7+0.5,$I$66:$DJ$120,ROWS($A$10:$A55)+2,FALSE)","v":729},{"$f":"HLOOKUP(CL$7+0.5,$I$66:$DJ$120,ROWS($A$10:$A55)+2,FALSE)","v":384},{"$f":"HLOOKUP(CM$7+0.5,$I$66:$DJ$120,ROWS($A$10:$A55)+2,FALSE)","v":1743},{"$f":"HLOOKUP(CN$7+0.5,$I$66:$DJ$120,ROWS($A$10:$A55)+2,FALSE)","v":442},{"$f":"HLOOKUP(CO$7+0.5,$I$66:$DJ$120,ROWS($A$10:$A55)+2,FALSE)","v":322},{"$f":"HLOOKUP(CP$7+0.5,$I$66:$DJ$120,ROWS($A$10:$A55)+2,FALSE)","v":505},{"$f":"HLOOKUP(CQ$7+0.5,$I$66:$DJ$120,ROWS($A$10:$A55)+2,FALSE)","v":924},{"$f":"HLOOKUP(CR$7+0.5,$I$66:$DJ$120,ROWS($A$10:$A55)+2,FALSE)","v":611},{"$f":"HLOOKUP(CS$7+0.5,$I$66:$DJ$120,ROWS($A$10:$A55)+2,FALSE)","v":218},{"$f":"HLOOKUP(CT$7+0.5,$I$66:$DJ$120,ROWS($A$10:$A55)+2,FALSE)","v":881},{"$f":"HLOOKUP(CU$7+0.5,$I$66:$DJ$120,ROWS($A$10:$A55)+2,FALSE)","v":691},{"$f":"HLOOKUP(CV$7+0.5,$I$66:$DJ$120,ROWS($A$10:$A55)+2,FALSE)","v":2693},{"$f":"HLOOKUP(CW$7+0.5,$I$66:$DJ$120,ROWS($A$10:$A55)+2,FALSE)","v":450},{"$f":"HLOOKUP(CX$7+0.5,$I$66:$DJ$120,ROWS($A$10:$A55)+2,FALSE)","v":571},{"$f":"HLOOKUP(CY$7+0.5,$I$66:$DJ$120,ROWS($A$10:$A55)+2,FALSE)","v":100},{"$f":"HLOOKUP(CZ$7+0.5,$I$66:$DJ$120,ROWS($A$10:$A55)+2,FALSE)","v":74},{"$f":"HLOOKUP(DA$7+0.5,$I$66:$DJ$120,ROWS($A$10:$A55)+2,FALSE)","v":529},{"$f":"HLOOKUP(DB$7+0.5,$I$66:$DJ$120,ROWS($A$10:$A55)+2,FALSE)","v":1278},{"$f":"HLOOKUP(DC$7+0.5,$I$66:$DJ$120,ROWS($A$10:$A55)+2,FALSE)","v":"N/A"},{"$f":"HLOOKUP(DD$7+0.5,$I$66:$DJ$120,ROWS($A$10:$A55)+2,FALSE)","v":63},{"$f":"HLOOKUP(DE$7+0.5,$I$66:$DJ$120,ROWS($A$10:$A55)+2,FALSE)","v":668},{"$f":"HLOOKUP(DF$7+0.5,$I$66:$DJ$120,ROWS($A$10:$A55)+2,FALSE)","v":1319},{"$f":"HLOOKUP(DG$7+0.5,$I$66:$DJ$120,ROWS($A$10:$A55)+2,FALSE)","v":181},{"$f":"HLOOKUP(DH$7+0.5,$I$66:$DJ$120,ROWS($A$10:$A55)+2,FALSE)","v":1512},{"$f":"HLOOKUP(DI$7+0.5,$I$66:$DJ$120,ROWS($A$10:$A55)+2,FALSE)","v":715},{"$f":"HLOOKUP(DJ$7+0.5,$I$66:$DJ$120,ROWS($A$10:$A55)+2,FALSE)","v":190}]
[null,"Vermont",620224,821,532237,5326,61242,5294,{"$f":"HLOOKUP(I$7,$I$66:$DJ$120,ROWS($A$10:$A56)+2,FALSE)","v":24431},{"$f":"HLOOKUP(J$7,$I$66:$DJ$120,ROWS($A$10:$A56)+2,FALSE)","v":16},{"$f":"HLOOKUP(K$7,$I$66:$DJ$120,ROWS($A$10:$A56)+2,FALSE)","v":93},{"$f":"HLOOKUP(L$7,$I$66:$DJ$120,ROWS($A$10:$A56)+2,FALSE)","v":127},{"$f":"HLOOKUP(M$7,$I$66:$DJ$120,ROWS($A$10:$A56)+2,FALSE)","v":0},{"$f":"HLOOKUP(N$7,$I$66:$DJ$120,ROWS($A$10:$A56)+2,FALSE)","v":1112},{"$f":"HLOOKUP(O$7,$I$66:$DJ$120,ROWS($A$10:$A56)+2,FALSE)","v":382},{"$f":"HLOOKUP(P$7,$I$66:$DJ$120,ROWS($A$10:$A56)+2,FALSE)","v":1626},{"$f":"HLOOKUP(Q$7,$I$66:$DJ$120,ROWS($A$10:$A56)+2,FALSE)","v":0},{"$f":"HLOOKUP(R$7,$I$66:$DJ$120,ROWS($A$10:$A56)+2,FALSE)","v":116},{"$f":"HLOOKUP(S$7,$I$66:$DJ$120,ROWS($A$10:$A56)+2,FALSE)","v":966},{"$f":"HLOOKUP(T$7,$I$66:$DJ$120,ROWS($A$10:$A56)+2,FALSE)","v":56},{"$f":"HLOOKUP(U$7,$I$66:$DJ$120,ROWS($A$10:$A56)+2,FALSE)","v":6},{"$f":"HLOOKUP(V$7,$I$66:$DJ$120,ROWS($A$10:$A56)+2,FALSE)","v":0},{"$f":"HLOOKUP(W$7,$I$66:$DJ$120,ROWS($A$10:$A56)+2,FALSE)","v":230},{"$f":"HLOOKUP(X$7,$I$66:$DJ$120,ROWS($A$10:$A56)+2,FALSE)","v":68},{"$f":"HLOOKUP(Y$7,$I$66:$DJ$120,ROWS($A$10:$A56)+2,FALSE)","v":30},{"$f":"HLOOKUP(Z$7,$I$66:$DJ$120,ROWS($A$10:$A56)+2,FALSE)","v":0},{"$f":"HLOOKUP(AA$7,$I$66:$DJ$120,ROWS($A$10:$A56)+2,FALSE)","v":1243},{"$f":"HLOOKUP(AB$7,$I$66:$DJ$120,ROWS($A$10:$A56)+2,FALSE)","v":73},{"$f":"HLOOKUP(AC$7,$I$66:$DJ$120,ROWS($A$10:$A56)+2,FALSE)","v":883},{"$f":"HLOOKUP(AD$7,$I$66:$DJ$120,ROWS($A$10:$A56)+2,FALSE)","v":862},{"$f":"HLOOKUP(AE$7,$I$66:$DJ$120,ROWS($A$10:$A56)+2,FALSE)","v":3318},{"$f":"HLOOKUP(AF$7,$I$66:$DJ$120,ROWS($A$10:$A56)+2,FALSE)","v":284},{"$f":"HLOOKUP(AG$7,$I$66:$DJ$120,ROWS($A$10:$A56)+2,FALSE)","v":315},{"$f":"HLOOKUP(AH$7,$I$66:$DJ$120,ROWS($A$10:$A56)+2,FALSE)","v":0},{"$f":"HLOOKUP(AI$7,$I$66:$DJ$120,ROWS($A$10:$A56)+2,FALSE)","v":23},{"$f":"HLOOKUP(AJ$7,$I$66:$DJ$120,ROWS($A$10:$A56)+2,FALSE)","v":147},{"$f":"HLOOKUP(AK$7,$I$66:$DJ$120,ROWS($A$10:$A56)+2,FALSE)","v":0},{"$f":"HLOOKUP(AL$7,$I$66:$DJ$120,ROWS($A$10:$A56)+2,FALSE)","v":17},{"$f":"HLOOKUP(AM$7,$I$66:$DJ$120,ROWS($A$10:$A56)+2,FALSE)","v":2893},{"$f":"HLOOKUP(AN$7,$I$66:$DJ$120,ROWS($A$10:$A56)+2,FALSE)","v":833},{"$f":"HLOOKUP(AO$7,$I$66:$DJ$120,ROWS($A$10:$A56)+2,FALSE)","v":74},{"$f":"HLOOKUP(AP$7,$I$66:$DJ$120,ROWS($A$10:$A56)+2,FALSE)","v":4780},{"$f":"HLOOKUP(AQ$7,$I$66:$DJ$120,ROWS($A$10:$A56)+2,FALSE)","v":328},{"$f":"HLOOKUP(AR$7,$I$66:$DJ$120,ROWS($A$10:$A56)+2,FALSE)","v":0},{"$f":"HLOOKUP(AS$7,$I$66:$DJ$120,ROWS($A$10:$A56)+2,FALSE)","v":214},{"$f":"HLOOKUP(AT$7,$I$66:$DJ$120,ROWS($A$10:$A56)+2,FALSE)","v":11},{"$f":"HLOOKUP(AU$7,$I$66:$DJ$120,ROWS($A$10:$A56)+2,FALSE)","v":26},{"$f":"HLOOKUP(AV$7,$I$66:$DJ$120,ROWS($A$10:$A56)+2,FALSE)","v":935},{"$f":"HLOOKUP(AW$7,$I$66:$DJ$120,ROWS($A$10:$A56)+2,FALSE)","v":341},{"$f":"HLOOKUP(AX$7,$I$66:$DJ$120,ROWS($A$10:$A56)+2,FALSE)","v":124},{"$f":"HLOOKUP(AY$7,$I$66:$DJ$120,ROWS($A$10:$A56)+2,FALSE)","v":39},{"$f":"HLOOKUP(AZ$7,$I$66:$DJ$120,ROWS($A$10:$A56)+2,FALSE)","v":193},{"$f":"HLOOKUP(BA$7,$I$66:$DJ$120,ROWS($A$10:$A56)+2,FALSE)","v":493},{"$f":"HLOOKUP(BB$7,$I$66:$DJ$120,ROWS($A$10:$A56)+2,FALSE)","v":81},{"$f":"HLOOKUP(BC$7,$I$66:$DJ$120,ROWS($A$10:$A56)+2,FALSE)","v":"N/A"},{"$f":"HLOOKUP(BD$7,$I$66:$DJ$120,ROWS($A$10:$A56)+2,FALSE)","v":728},{"$f":"HLOOKUP(BE$7,$I$66:$DJ$120,ROWS($A$10:$A56)+2,FALSE)","v":98},{"$f":"HLOOKUP(BF$7,$I$66:$DJ$120,ROWS($A$10:$A56)+2,FALSE)","v":0},{"$f":"HLOOKUP(BG$7,$I$66:$DJ$120,ROWS($A$10:$A56)+2,FALSE)","v":151},{"$f":"HLOOKUP(BH$7,$I$66:$DJ$120,ROWS($A$10:$A56)+2,FALSE)","v":96},{"$f":"HLOOKUP(BI$7,$I$66:$DJ$120,ROWS($A$10:$A56)+2,FALSE)","v":0},{"$f":"HLOOKUP(BJ$7+0.5,$I$66:$DJ$120,ROWS($A$10:$A56)+2,FALSE)","v":2713},{"$f":"HLOOKUP(BK$7+0.5,$I$66:$DJ$120,ROWS($A$10:$A56)+2,FALSE)","v":23},{"$f":"HLOOKUP(BL$7+0.5,$I$66:$DJ$120,ROWS($A$10:$A56)+2,FALSE)","v":153},{"$f":"HLOOKUP(BM$7+0.5,$I$66:$DJ$120,ROWS($A$10:$A56)+2,FALSE)","v":165},{"$f":"HLOOKUP(BN$7+0.5,$I$66:$DJ$120,ROWS($A$10:$A56)+2,FALSE)","v":143},{"$f":"HLOOKUP(BO$7+0.5,$I$66:$DJ$120,ROWS($A$10:$A56)+2,FALSE)","v":537},{"$f":"HLOOKUP(BP$7+0.5,$I$66:$DJ$120,ROWS($A$10:$A56)+2,FALSE)","v":296},{"$f":"HLOOKUP(BQ$7+0.5,$I$66:$DJ$120,ROWS($A$10:$A56)+2,FALSE)","v":540},{"$f":"HLOOKUP(BR$7+0.5,$I$66:$DJ$120,ROWS($A$10:$A56)+2,FALSE)","v":143},{"$f":"HLOOKUP(BS$7+0.5,$I$66:$DJ$120,ROWS($A$10:$A56)+2,FALSE)","v":134},{"$f":"HLOOKUP(BT$7+0.5,$I$66:$DJ$120,ROWS($A$10:$A56)+2,FALSE)","v":519},{"$f":"HLOOKUP(BU$7+0.5,$I$66:$DJ$120,ROWS($A$10:$A56)+2,FALSE)","v":81},{"$f":"HLOOKUP(BV$7+0.5,$I$66:$DJ$120,ROWS($A$10:$A56)+2,FALSE)","v":10},{"$f":"HLOOKUP(BW$7+0.5,$I$66:$DJ$120,ROWS($A$10:$A56)+2,FALSE)","v":143},{"$f":"HLOOKUP(BX$7+0.5,$I$66:$DJ$120,ROWS($A$10:$A56)+2,FALSE)","v":221},{"$f":"HLOOKUP(BY$7+0.5,$I$66:$DJ$120,ROWS($A$10:$A56)+2,FALSE)","v":81},{"$f":"HLOOKUP(BZ$7+0.5,$I$66:$DJ$120,ROWS($A$10:$A56)+2,FALSE)","v":43},{"$f":"HLOOKUP(CA$7+0.5,$I$66:$DJ$120,ROWS($A$10:$A56)+2,FALSE)","v":143},{"$f":"HLOOKUP(CB$7+0.5,$I$66:$DJ$120,ROWS($A$10:$A56)+2,FALSE)","v":1690},{"$f":"HLOOKUP(CC$7+0.5,$I$66:$DJ$120,ROWS($A$10:$A56)+2,FALSE)","v":105},{"$f":"HLOOKUP(CD$7+0.5,$I$66:$DJ$120,ROWS($A$10:$A56)+2,FALSE)","v":546},{"$f":"HLOOKUP(CE$7+0.5,$I$66:$DJ$120,ROWS($A$10:$A56)+2,FALSE)","v":396},{"$f":"HLOOKUP(CF$7+0.5,$I$66:$DJ$120,ROWS($A$10:$A56)+2,FALSE)","v":657},{"$f":"HLOOKUP(CG$7+0.5,$I$66:$DJ$120,ROWS($A$10:$A56)+2,FALSE)","v":246},{"$f":"HLOOKUP(CH$7+0.5,$I$66:$DJ$120,ROWS($A$10:$A56)+2,FALSE)","v":349},{"$f":"HLOOKUP(CI$7+0.5,$I$66:$DJ$120,ROWS($A$10:$A56)+2,FALSE)","v":143},{"$f":"HLOOKUP(CJ$7+0.5,$I$66:$DJ$120,ROWS($A$10:$A56)+2,FALSE)","v":26},{"$f":"HLOOKUP(CK$7+0.5,$I$66:$DJ$120,ROWS($A$10:$A56)+2,FALSE)","v":189},{"$f":"HLOOKUP(CL$7+0.5,$I$66:$DJ$120,ROWS($A$10:$A56)+2,FALSE)","v":143},{"$f":"HLOOKUP(CM$7+0.5,$I$66:$DJ$120,ROWS($A$10:$A56)+2,FALSE)","v":37},{"$f":"HLOOKUP(CN$7+0.5,$I$66:$DJ$120,ROWS($A$10:$A56)+2,FALSE)","v":812},{"$f":"HLOOKUP(CO$7+0.5,$I$66:$DJ$120,ROWS($A$10:$A56)+2,FALSE)","v":364},{"$f":"HLOOKUP(CP$7+0.5,$I$66:$DJ$120,ROWS($A$10:$A56)+2,FALSE)","v":89},{"$f":"HLOOKUP(CQ$7+0.5,$I$66:$DJ$120,ROWS($A$10:$A56)+2,FALSE)","v":921},{"$f":"HLOOKUP(CR$7+0.5,$I$66:$DJ$120,ROWS($A$10:$A56)+2,FALSE)","v":248},{"$f":"HLOOKUP(CS$7+0.5,$I$66:$DJ$120,ROWS($A$10:$A56)+2,FALSE)","v":143},{"$f":"HLOOKUP(CT$7+0.5,$I$66:$DJ$120,ROWS($A$10:$A56)+2,FALSE)","v":247},{"$f":"HLOOKUP(CU$7+0.5,$I$66:$DJ$120,ROWS($A$10:$A56)+2,FALSE)","v":13},{"$f":"HLOOKUP(CV$7+0.5,$I$66:$DJ$120,ROWS($A$10:$A56)+2,FALSE)","v":38},{"$f":"HLOOKUP(CW$7+0.5,$I$66:$DJ$120,ROWS($A$10:$A56)+2,FALSE)","v":525},{"$f":"HLOOKUP(CX$7+0.5,$I$66:$DJ$120,ROWS($A$10:$A56)+2,FALSE)","v":220},{"$f":"HLOOKUP(CY$7+0.5,$I$66:$DJ$120,ROWS($A$10:$A56)+2,FALSE)","v":208},{"$f":"HLOOKUP(CZ$7+0.5,$I$66:$DJ$120,ROWS($A$10:$A56)+2,FALSE)","v":66},{"$f":"HLOOKUP(DA$7+0.5,$I$66:$DJ$120,ROWS($A$10:$A56)+2,FALSE)","v":185},{"$f":"HLOOKUP(DB$7+0.5,$I$66:$DJ$120,ROWS($A$10:$A56)+2,FALSE)","v":334},{"$f":"HLOOKUP(DC$7+0.5,$I$66:$DJ$120,ROWS($A$10:$A56)+2,FALSE)","v":96},{"$f":"HLOOKUP(DD$7+0.5,$I$66:$DJ$120,ROWS($A$10:$A56)+2,FALSE)","v":"N/A"},{"$f":"HLOOKUP(DE$7+0.5,$I$66:$DJ$120,ROWS($A$10:$A56)+2,FALSE)","v":427},{"$f":"HLOOKUP(DF$7+0.5,$I$66:$DJ$120,ROWS($A$10:$A56)+2,FALSE)","v":109},{"$f":"HLOOKUP(DG$7+0.5,$I$66:$DJ$120,ROWS($A$10:$A56)+2,FALSE)","v":143},{"$f":"HLOOKUP(DH$7+0.5,$I$66:$DJ$120,ROWS($A$10:$A56)+2,FALSE)","v":115},{"$f":"HLOOKUP(DI$7+0.5,$I$66:$DJ$120,ROWS($A$10:$A56)+2,FALSE)","v":102},{"$f":"HLOOKUP(DJ$7+0.5,$I$66:$DJ$120,ROWS($A$10:$A56)+2,FALSE)","v":143}]
[null,"Virginia",8085389,4754,6857430,25550,915242,24032,{"$f":"HLOOKUP(I$7,$I$66:$DJ$120,ROWS($A$10:$A57)+2,FALSE)","v":250653},{"$f":"HLOOKUP(J$7,$I$66:$DJ$120,ROWS($A$10:$A57)+2,FALSE)","v":2515},{"$f":"HLOOKUP(K$7,$I$66:$DJ$120,ROWS($A$10:$A57)+2,FALSE)","v":1906},{"$f":"HLOOKUP(L$7,$I$66:$DJ$120,ROWS($A$10:$A57)+2,FALSE)","v":2420},{"$f":"HLOOKUP(M$7,$I$66:$DJ$120,ROWS($A$10:$A57)+2,FALSE)","v":445},{"$f":"HLOOKUP(N$7,$I$66:$DJ$120,ROWS($A$10:$A57)+2,FALSE)","v":14780},{"$f":"HLOOKUP(O$7,$I$66:$DJ$120,ROWS($A$10:$A57)+2,FALSE)","v":5352},{"$f":"HLOOKUP(P$7,$I$66:$DJ$120,ROWS($A$10:$A57)+2,FALSE)","v":2725},{"$f":"HLOOKUP(Q$7,$I$66:$DJ$120,ROWS($A$10:$A57)+2,FALSE)","v":2279},{"$f":"HLOOKUP(R$7,$I$66:$DJ$120,ROWS($A$10:$A57)+2,FALSE)","v":10964},{"$f":"HLOOKUP(S$7,$I$66:$DJ$120,ROWS($A$10:$A57)+2,FALSE)","v":19574},{"$f":"HLOOKUP(T$7,$I$66:$DJ$120,ROWS($A$10:$A57)+2,FALSE)","v":9535},{"$f":"HLOOKUP(U$7,$I$66:$DJ$120,ROWS($A$10:$A57)+2,FALSE)","v":3823},{"$f":"HLOOKUP(V$7,$I$66:$DJ$120,ROWS($A$10:$A57)+2,FALSE)","v":652},{"$f":"HLOOKUP(W$7,$I$66:$DJ$120,ROWS($A$10:$A57)+2,FALSE)","v":7089},{"$f":"HLOOKUP(X$7,$I$66:$DJ$120,ROWS($A$10:$A57)+2,FALSE)","v":2663},{"$f":"HLOOKUP(Y$7,$I$66:$DJ$120,ROWS($A$10:$A57)+2,FALSE)","v":221},{"$f":"HLOOKUP(Z$7,$I$66:$DJ$120,ROWS($A$10:$A57)+2,FALSE)","v":1144},{"$f":"HLOOKUP(AA$7,$I$66:$DJ$120,ROWS($A$10:$A57)+2,FALSE)","v":3908},{"$f":"HLOOKUP(AB$7,$I$66:$DJ$120,ROWS($A$10:$A57)+2,FALSE)","v":1638},{"$f":"HLOOKUP(AC$7,$I$66:$DJ$120,ROWS($A$10:$A57)+2,FALSE)","v":1144},{"$f":"HLOOKUP(AD$7,$I$66:$DJ$120,ROWS($A$10:$A57)+2,FALSE)","v":23925},{"$f":"HLOOKUP(AE$7,$I$66:$DJ$120,ROWS($A$10:$A57)+2,FALSE)","v":3767},{"$f":"HLOOKUP(AF$7,$I$66:$DJ$120,ROWS($A$10:$A57)+2,FALSE)","v":2982},{"$f":"HLOOKUP(AG$7,$I$66:$DJ$120,ROWS($A$10:$A57)+2,FALSE)","v":2294},{"$f":"HLOOKUP(AH$7,$I$66:$DJ$120,ROWS($A$10:$A57)+2,FALSE)","v":1344},{"$f":"HLOOKUP(AI$7,$I$66:$DJ$120,ROWS($A$10:$A57)+2,FALSE)","v":1914},{"$f":"HLOOKUP(AJ$7,$I$66:$DJ$120,ROWS($A$10:$A57)+2,FALSE)","v":658},{"$f":"HLOOKUP(AK$7,$I$66:$DJ$120,ROWS($A$10:$A57)+2,FALSE)","v":357},{"$f":"HLOOKUP(AL$7,$I$66:$DJ$120,ROWS($A$10:$A57)+2,FALSE)","v":973},{"$f":"HLOOKUP(AM$7,$I$66:$DJ$120,ROWS($A$10:$A57)+2,FALSE)","v":535},{"$f":"HLOOKUP(AN$7,$I$66:$DJ$120,ROWS($A$10:$A57)+2,FALSE)","v":9073},{"$f":"HLOOKUP(AO$7,$I$66:$DJ$120,ROWS($A$10:$A57)+2,FALSE)","v":947},{"$f":"HLOOKUP(AP$7,$I$66:$DJ$120,ROWS($A$10:$A57)+2,FALSE)","v":15893},{"$f":"HLOOKUP(AQ$7,$I$66:$DJ$120,ROWS($A$10:$A57)+2,FALSE)","v":25575},{"$f":"HLOOKUP(AR$7,$I$66:$DJ$120,ROWS($A$10:$A57)+2,FALSE)","v":852},{"$f":"HLOOKUP(AS$7,$I$66:$DJ$120,ROWS($A$10:$A57)+2,FALSE)","v":5622},{"$f":"HLOOKUP(AT$7,$I$66:$DJ$120,ROWS($A$10:$A57)+2,FALSE)","v":2810},{"$f":"HLOOKUP(AU$7,$I$66:$DJ$120,ROWS($A$10:$A57)+2,FALSE)","v":1541},{"$f":"HLOOKUP(AV$7,$I$66:$DJ$120,ROWS($A$10:$A57)+2,FALSE)","v":14190},{"$f":"HLOOKUP(AW$7,$I$66:$DJ$120,ROWS($A$10:$A57)+2,FALSE)","v":1605},{"$f":"HLOOKUP(AX$7,$I$66:$DJ$120,ROWS($A$10:$A57)+2,FALSE)","v":7936},{"$f":"HLOOKUP(AY$7,$I$66:$DJ$120,ROWS($A$10:$A57)+2,FALSE)","v":35},{"$f":"HLOOKUP(AZ$7,$I$66:$DJ$120,ROWS($A$10:$A57)+2,FALSE)","v":6189},{"$f":"HLOOKUP(BA$7,$I$66:$DJ$120,ROWS($A$10:$A57)+2,FALSE)","v":12944},{"$f":"HLOOKUP(BB$7,$I$66:$DJ$120,ROWS($A$10:$A57)+2,FALSE)","v":2092},{"$f":"HLOOKUP(BC$7,$I$66:$DJ$120,ROWS($A$10:$A57)+2,FALSE)","v":423},{"$f":"HLOOKUP(BD$7,$I$66:$DJ$120,ROWS($A$10:$A57)+2,FALSE)","v":"N/A"},{"$f":"HLOOKUP(BE$7,$I$66:$DJ$120,ROWS($A$10:$A57)+2,FALSE)","v":4160},{"$f":"HLOOKUP(BF$7,$I$66:$DJ$120,ROWS($A$10:$A57)+2,FALSE)","v":3839},{"$f":"HLOOKUP(BG$7,$I$66:$DJ$120,ROWS($A$10:$A57)+2,FALSE)","v":1258},{"$f":"HLOOKUP(BH$7,$I$66:$DJ$120,ROWS($A$10:$A57)+2,FALSE)","v":143},{"$f":"HLOOKUP(BI$7,$I$66:$DJ$120,ROWS($A$10:$A57)+2,FALSE)","v":516},{"$f":"HLOOKUP(BJ$7+0.5,$I$66:$DJ$120,ROWS($A$10:$A57)+2,FALSE)","v":11997},{"$f":"HLOOKUP(BK$7+0.5,$I$66:$DJ$120,ROWS($A$10:$A57)+2,FALSE)","v":990},{"$f":"HLOOKUP(BL$7+0.5,$I$66:$DJ$120,ROWS($A$10:$A57)+2,FALSE)","v":1287},{"$f":"HLOOKUP(BM$7+0.5,$I$66:$DJ$120,ROWS($A$10:$A57)+2,FALSE)","v":1030},{"$f":"HLOOKUP(BN$7+0.5,$I$66:$DJ$120,ROWS($A$10:$A57)+2,FALSE)","v":319},{"$f":"HLOOKUP(BO$7+0.5,$I$66:$DJ$120,ROWS($A$10:$A57)+2,FALSE)","v":2760},{"$f":"HLOOKUP(BP$7+0.5,$I$66:$DJ$120,ROWS($A$10:$A57)+2,FALSE)","v":1834},{"$f":"HLOOKUP(BQ$7+0.5,$I$66:$DJ$120,ROWS($A$10:$A57)+2,FALSE)","v":1001},{"$f":"HLOOKUP(BR$7+0.5,$I$66:$DJ$120,ROWS($A$10:$A57)+2,FALSE)","v":1465},{"$f":"HLOOKUP(BS$7+0.5,$I$66:$DJ$120,ROWS($A$10:$A57)+2,FALSE)","v":4084},{"$f":"HLOOKUP(BT$7+0.5,$I$66:$DJ$120,ROWS($A$10:$A57)+2,FALSE)","v":3694},{"$f":"HLOOKUP(BU$7+0.5,$I$66:$DJ$120,ROWS($A$10:$A57)+2,FALSE)","v":1889},{"$f":"HLOOKUP(BV$7+0.5,$I$66:$DJ$120,ROWS($A$10:$A57)+2,FALSE)","v":1460},{"$f":"HLOOKUP(BW$7+0.5,$I$66:$DJ$120,ROWS($A$10:$A57)+2,FALSE)","v":411},{"$f":"HLOOKUP(BX$7+0.5,$I$66:$DJ$120,ROWS($A$10:$A57)+2,FALSE)","v":3237},{"$f":"HLOOKUP(BY$7+0.5,$I$66:$DJ$120,ROWS($A$10:$A57)+2,FALSE)","v":1228},{"$f":"HLOOKUP(BZ$7+0.5,$I$66:$DJ$120,ROWS($A$10:$A57)+2,FALSE)","v":209},{"$f":"HLOOKUP(CA$7+0.5,$I$66:$DJ$120,ROWS($A$10:$A57)+2,FALSE)","v":669},{"$f":"HLOOKUP(CB$7+0.5,$I$66:$DJ$120,ROWS($A$10:$A57)+2,FALSE)","v":1422},{"$f":"HLOOKUP(CC$7+0.5,$I$66:$DJ$120,ROWS($A$10:$A57)+2,FALSE)","v":936},{"$f":"HLOOKUP(CD$7+0.5,$I$66:$DJ$120,ROWS($A$10:$A57)+2,FALSE)","v":689},{"$f":"HLOOKUP(CE$7+0.5,$I$66:$DJ$120,ROWS($A$10:$A57)+2,FALSE)","v":4264},{"$f":"HLOOKUP(CF$7+0.5,$I$66:$DJ$120,ROWS($A$10:$A57)+2,FALSE)","v":1503},{"$f":"HLOOKUP(CG$7+0.5,$I$66:$DJ$120,ROWS($A$10:$A57)+2,FALSE)","v":1136},{"$f":"HLOOKUP(CH$7+0.5,$I$66:$DJ$120,ROWS($A$10:$A57)+2,FALSE)","v":1414},{"$f":"HLOOKUP(CI$7+0.5,$I$66:$DJ$120,ROWS($A$10:$A57)+2,FALSE)","v":730},{"$f":"HLOOKUP(CJ$7+0.5,$I$66:$DJ$120,ROWS($A$10:$A57)+2,FALSE)","v":837},{"$f":"HLOOKUP(CK$7+0.5,$I$66:$DJ$120,ROWS($A$10:$A57)+2,FALSE)","v":433},{"$f":"HLOOKUP(CL$7+0.5,$I$66:$DJ$120,ROWS($A$10:$A57)+2,FALSE)","v":313},{"$f":"HLOOKUP(CM$7+0.5,$I$66:$DJ$120,ROWS($A$10:$A57)+2,FALSE)","v":522},{"$f":"HLOOKUP(CN$7+0.5,$I$66:$DJ$120,ROWS($A$10:$A57)+2,FALSE)","v":398},{"$f":"HLOOKUP(CO$7+0.5,$I$66:$DJ$120,ROWS($A$10:$A57)+2,FALSE)","v":2029},{"$f":"HLOOKUP(CP$7+0.5,$I$66:$DJ$120,ROWS($A$10:$A57)+2,FALSE)","v":637},{"$f":"HLOOKUP(CQ$7+0.5,$I$66:$DJ$120,ROWS($A$10:$A57)+2,FALSE)","v":3260},{"$f":"HLOOKUP(CR$7+0.5,$I$66:$DJ$120,ROWS($A$10:$A57)+2,FALSE)","v":4182},{"$f":"HLOOKUP(CS$7+0.5,$I$66:$DJ$120,ROWS($A$10:$A57)+2,FALSE)","v":1019},{"$f":"HLOOKUP(CT$7+0.5,$I$66:$DJ$120,ROWS($A$10:$A57)+2,FALSE)","v":1519},{"$f":"HLOOKUP(CU$7+0.5,$I$66:$DJ$120,ROWS($A$10:$A57)+2,FALSE)","v":1873},{"$f":"HLOOKUP(CV$7+0.5,$I$66:$DJ$120,ROWS($A$10:$A57)+2,FALSE)","v":1069},{"$f":"HLOOKUP(CW$7+0.5,$I$66:$DJ$120,ROWS($A$10:$A57)+2,FALSE)","v":2998},{"$f":"HLOOKUP(CX$7+0.5,$I$66:$DJ$120,ROWS($A$10:$A57)+2,FALSE)","v":731},{"$f":"HLOOKUP(CY$7+0.5,$I$66:$DJ$120,ROWS($A$10:$A57)+2,FALSE)","v":2435},{"$f":"HLOOKUP(CZ$7+0.5,$I$66:$DJ$120,ROWS($A$10:$A57)+2,FALSE)","v":57},{"$f":"HLOOKUP(DA$7+0.5,$I$66:$DJ$120,ROWS($A$10:$A57)+2,FALSE)","v":1858},{"$f":"HLOOKUP(DB$7+0.5,$I$66:$DJ$120,ROWS($A$10:$A57)+2,FALSE)","v":2828},{"$f":"HLOOKUP(DC$7+0.5,$I$66:$DJ$120,ROWS($A$10:$A57)+2,FALSE)","v":994},{"$f":"HLOOKUP(DD$7+0.5,$I$66:$DJ$120,ROWS($A$10:$A57)+2,FALSE)","v":437},{"$f":"HLOOKUP(DE$7+0.5,$I$66:$DJ$120,ROWS($A$10:$A57)+2,FALSE)","v":"N/A"},{"$f":"HLOOKUP(DF$7+0.5,$I$66:$DJ$120,ROWS($A$10:$A57)+2,FALSE)","v":1420},{"$f":"HLOOKUP(DG$7+0.5,$I$66:$DJ$120,ROWS($A$10:$A57)+2,FALSE)","v":1234},{"$f":"HLOOKUP(DH$7+0.5,$I$66:$DJ$120,ROWS($A$10:$A57)+2,FALSE)","v":880},{"$f":"HLOOKUP(DI$7+0.5,$I$66:$DJ$120,ROWS($A$10:$A57)+2,FALSE)","v":166},{"$f":"HLOOKUP(DJ$7+0.5,$I$66:$DJ$120,ROWS($A$10:$A57)+2,FALSE)","v":466}]
[null,"Washington",6815763,3864,5648199,25225,904695,24285,{"$f":"HLOOKUP(I$7,$I$66:$DJ$120,ROWS($A$10:$A58)+2,FALSE)","v":215494},{"$f":"HLOOKUP(J$7,$I$66:$DJ$120,ROWS($A$10:$A58)+2,FALSE)","v":1507},{"$f":"HLOOKUP(K$7,$I$66:$DJ$120,ROWS($A$10:$A58)+2,FALSE)","v":4328},{"$f":"HLOOKUP(L$7,$I$66:$DJ$120,ROWS($A$10:$A58)+2,FALSE)","v":8362},{"$f":"HLOOKUP(M$7,$I$66:$DJ$120,ROWS($A$10:$A58)+2,FALSE)","v":1413},{"$f":"HLOOKUP(N$7,$I$66:$DJ$120,ROWS($A$10:$A58)+2,FALSE)","v":45597},{"$f":"HLOOKUP(O$7,$I$66:$DJ$120,ROWS($A$10:$A58)+2,FALSE)","v":5195},{"$f":"HLOOKUP(P$7,$I$66:$DJ$120,ROWS($A$10:$A58)+2,FALSE)","v":2901},{"$f":"HLOOKUP(Q$7,$I$66:$DJ$120,ROWS($A$10:$A58)+2,FALSE)","v":100},{"$f":"HLOOKUP(R$7,$I$66:$DJ$120,ROWS($A$10:$A58)+2,FALSE)","v":773},{"$f":"HLOOKUP(S$7,$I$66:$DJ$120,ROWS($A$10:$A58)+2,FALSE)","v":9370},{"$f":"HLOOKUP(T$7,$I$66:$DJ$120,ROWS($A$10:$A58)+2,FALSE)","v":6363},{"$f":"HLOOKUP(U$7,$I$66:$DJ$120,ROWS($A$10:$A58)+2,FALSE)","v":5239},{"$f":"HLOOKUP(V$7,$I$66:$DJ$120,ROWS($A$10:$A58)+2,FALSE)","v":10604},{"$f":"HLOOKUP(W$7,$I$66:$DJ$120,ROWS($A$10:$A58)+2,FALSE)","v":4298},{"$f":"HLOOKUP(X$7,$I$66:$DJ$120,ROWS($A$10:$A58)+2,FALSE)","v":1089},{"$f":"HLOOKUP(Y$7,$I$66:$DJ$120,ROWS($A$10:$A58)+2,FALSE)","v":1159},{"$f":"HLOOKUP(Z$7,$I$66:$DJ$120,ROWS($A$10:$A58)+2,FALSE)","v":2544},{"$f":"HLOOKUP(AA$7,$I$66:$DJ$120,ROWS($A$10:$A58)+2,FALSE)","v":1368},{"$f":"HLOOKUP(AB$7,$I$66:$DJ$120,ROWS($A$10:$A58)+2,FALSE)","v":1646},{"$f":"HLOOKUP(AC$7,$I$66:$DJ$120,ROWS($A$10:$A58)+2,FALSE)","v":532},{"$f":"HLOOKUP(AD$7,$I$66:$DJ$120,ROWS($A$10:$A58)+2,FALSE)","v":1191},{"$f":"HLOOKUP(AE$7,$I$66:$DJ$120,ROWS($A$10:$A58)+2,FALSE)","v":2911},{"$f":"HLOOKUP(AF$7,$I$66:$DJ$120,ROWS($A$10:$A58)+2,FALSE)","v":3470},{"$f":"HLOOKUP(AG$7,$I$66:$DJ$120,ROWS($A$10:$A58)+2,FALSE)","v":2703},{"$f":"HLOOKUP(AH$7,$I$66:$DJ$120,ROWS($A$10:$A58)+2,FALSE)","v":615},{"$f":"HLOOKUP(AI$7,$I$66:$DJ$120,ROWS($A$10:$A58)+2,FALSE)","v":2802},{"$f":"HLOOKUP(AJ$7,$I$66:$DJ$120,ROWS($A$10:$A58)+2,FALSE)","v":2919},{"$f":"HLOOKUP(AK$7,$I$66:$DJ$120,ROWS($A$10:$A58)+2,FALSE)","v":682},{"$f":"HLOOKUP(AL$7,$I$66:$DJ$120,ROWS($A$10:$A58)+2,FALSE)","v":5671},{"$f":"HLOOKUP(AM$7,$I$66:$DJ$120,ROWS($A$10:$A58)+2,FALSE)","v":309},{"$f":"HLOOKUP(AN$7,$I$66:$DJ$120,ROWS($A$10:$A58)+2,FALSE)","v":2300},{"$f":"HLOOKUP(AO$7,$I$66:$DJ$120,ROWS($A$10:$A58)+2,FALSE)","v":872},{"$f":"HLOOKUP(AP$7,$I$66:$DJ$120,ROWS($A$10:$A58)+2,FALSE)","v":5562},{"$f":"HLOOKUP(AQ$7,$I$66:$DJ$120,ROWS($A$10:$A58)+2,FALSE)","v":4088},{"$f":"HLOOKUP(AR$7,$I$66:$DJ$120,ROWS($A$10:$A58)+2,FALSE)","v":217},{"$f":"HLOOKUP(AS$7,$I$66:$DJ$120,ROWS($A$10:$A58)+2,FALSE)","v":3192},{"$f":"HLOOKUP(AT$7,$I$66:$DJ$120,ROWS($A$10:$A58)+2,FALSE)","v":1223},{"$f":"HLOOKUP(AU$7,$I$66:$DJ$120,ROWS($A$10:$A58)+2,FALSE)","v":25525},{"$f":"HLOOKUP(AV$7,$I$66:$DJ$120,ROWS($A$10:$A58)+2,FALSE)","v":3397},{"$f":"HLOOKUP(AW$7,$I$66:$DJ$120,ROWS($A$10:$A58)+2,FALSE)","v":97},{"$f":"HLOOKUP(AX$7,$I$66:$DJ$120,ROWS($A$10:$A58)+2,FALSE)","v":2727},{"$f":"HLOOKUP(AY$7,$I$66:$DJ$120,ROWS($A$10:$A58)+2,FALSE)","v":94},{"$f":"HLOOKUP(AZ$7,$I$66:$DJ$120,ROWS($A$10:$A58)+2,FALSE)","v":3206},{"$f":"HLOOKUP(BA$7,$I$66:$DJ$120,ROWS($A$10:$A58)+2,FALSE)","v":14196},{"$f":"HLOOKUP(BB$7,$I$66:$DJ$120,ROWS($A$10:$A58)+2,FALSE)","v":5298},{"$f":"HLOOKUP(BC$7,$I$66:$DJ$120,ROWS($A$10:$A58)+2,FALSE)","v":223},{"$f":"HLOOKUP(BD$7,$I$66:$DJ$120,ROWS($A$10:$A58)+2,FALSE)","v":3839},{"$f":"HLOOKUP(BE$7,$I$66:$DJ$120,ROWS($A$10:$A58)+2,FALSE)","v":"N/A"},{"$f":"HLOOKUP(BF$7,$I$66:$DJ$120,ROWS($A$10:$A58)+2,FALSE)","v":215},{"$f":"HLOOKUP(BG$7,$I$66:$DJ$120,ROWS($A$10:$A58)+2,FALSE)","v":1168},{"$f":"HLOOKUP(BH$7,$I$66:$DJ$120,ROWS($A$10:$A58)+2,FALSE)","v":394},{"$f":"HLOOKUP(BI$7,$I$66:$DJ$120,ROWS($A$10:$A58)+2,FALSE)","v":1025},{"$f":"HLOOKUP(BJ$7+0.5,$I$66:$DJ$120,ROWS($A$10:$A58)+2,FALSE)","v":12552},{"$f":"HLOOKUP(BK$7+0.5,$I$66:$DJ$120,ROWS($A$10:$A58)+2,FALSE)","v":730},{"$f":"HLOOKUP(BL$7+0.5,$I$66:$DJ$120,ROWS($A$10:$A58)+2,FALSE)","v":1682},{"$f":"HLOOKUP(BM$7+0.5,$I$66:$DJ$120,ROWS($A$10:$A58)+2,FALSE)","v":2641},{"$f":"HLOOKUP(BN$7+0.5,$I$66:$DJ$120,ROWS($A$10:$A58)+2,FALSE)","v":1121},{"$f":"HLOOKUP(BO$7+0.5,$I$66:$DJ$120,ROWS($A$10:$A58)+2,FALSE)","v":5884},{"$f":"HLOOKUP(BP$7+0.5,$I$66:$DJ$120,ROWS($A$10:$A58)+2,FALSE)","v":2150},{"$f":"HLOOKUP(BQ$7+0.5,$I$66:$DJ$120,ROWS($A$10:$A58)+2,FALSE)","v":1138},{"$f":"HLOOKUP(BR$7+0.5,$I$66:$DJ$120,ROWS($A$10:$A58)+2,FALSE)","v":164},{"$f":"HLOOKUP(BS$7+0.5,$I$66:$DJ$120,ROWS($A$10:$A58)+2,FALSE)","v":528},{"$f":"HLOOKUP(BT$7+0.5,$I$66:$DJ$120,ROWS($A$10:$A58)+2,FALSE)","v":2417},{"$f":"HLOOKUP(BU$7+0.5,$I$66:$DJ$120,ROWS($A$10:$A58)+2,FALSE)","v":2288},{"$f":"HLOOKUP(BV$7+0.5,$I$66:$DJ$120,ROWS($A$10:$A58)+2,FALSE)","v":2393},{"$f":"HLOOKUP(BW$7+0.5,$I$66:$DJ$120,ROWS($A$10:$A58)+2,FALSE)","v":2191},{"$f":"HLOOKUP(BX$7+0.5,$I$66:$DJ$120,ROWS($A$10:$A58)+2,FALSE)","v":1727},{"$f":"HLOOKUP(BY$7+0.5,$I$66:$DJ$120,ROWS($A$10:$A58)+2,FALSE)","v":521},{"$f":"HLOOKUP(BZ$7+0.5,$I$66:$DJ$120,ROWS($A$10:$A58)+2,FALSE)","v":845},{"$f":"HLOOKUP(CA$7+0.5,$I$66:$DJ$120,ROWS($A$10:$A58)+2,FALSE)","v":1029},{"$f":"HLOOKUP(CB$7+0.5,$I$66:$DJ$120,ROWS($A$10:$A58)+2,FALSE)","v":911},{"$f":"HLOOKUP(CC$7+0.5,$I$66:$DJ$120,ROWS($A$10:$A58)+2,FALSE)","v":915},{"$f":"HLOOKUP(CD$7+0.5,$I$66:$DJ$120,ROWS($A$10:$A58)+2,FALSE)","v":655},{"$f":"HLOOKUP(CE$7+0.5,$I$66:$DJ$120,ROWS($A$10:$A58)+2,FALSE)","v":923},{"$f":"HLOOKUP(CF$7+0.5,$I$66:$DJ$120,ROWS($A$10:$A58)+2,FALSE)","v":1011},{"$f":"HLOOKUP(CG$7+0.5,$I$66:$DJ$120,ROWS($A$10:$A58)+2,FALSE)","v":1605},{"$f":"HLOOKUP(CH$7+0.5,$I$66:$DJ$120,ROWS($A$10:$A58)+2,FALSE)","v":1971},{"$f":"HLOOKUP(CI$7+0.5,$I$66:$DJ$120,ROWS($A$10:$A58)+2,FALSE)","v":444},{"$f":"HLOOKUP(CJ$7+0.5,$I$66:$DJ$120,ROWS($A$10:$A58)+2,FALSE)","v":1017},{"$f":"HLOOKUP(CK$7+0.5,$I$66:$DJ$120,ROWS($A$10:$A58)+2,FALSE)","v":1013},{"$f":"HLOOKUP(CL$7+0.5,$I$66:$DJ$120,ROWS($A$10:$A58)+2,FALSE)","v":456},{"$f":"HLOOKUP(CM$7+0.5,$I$66:$DJ$120,ROWS($A$10:$A58)+2,FALSE)","v":2919},{"$f":"HLOOKUP(CN$7+0.5,$I$66:$DJ$120,ROWS($A$10:$A58)+2,FALSE)","v":248},{"$f":"HLOOKUP(CO$7+0.5,$I$66:$DJ$120,ROWS($A$10:$A58)+2,FALSE)","v":1441},{"$f":"HLOOKUP(CP$7+0.5,$I$66:$DJ$120,ROWS($A$10:$A58)+2,FALSE)","v":527},{"$f":"HLOOKUP(CQ$7+0.5,$I$66:$DJ$120,ROWS($A$10:$A58)+2,FALSE)","v":1947},{"$f":"HLOOKUP(CR$7+0.5,$I$66:$DJ$120,ROWS($A$10:$A58)+2,FALSE)","v":1854},{"$f":"HLOOKUP(CS$7+0.5,$I$66:$DJ$120,ROWS($A$10:$A58)+2,FALSE)","v":200},{"$f":"HLOOKUP(CT$7+0.5,$I$66:$DJ$120,ROWS($A$10:$A58)+2,FALSE)","v":1400},{"$f":"HLOOKUP(CU$7+0.5,$I$66:$DJ$120,ROWS($A$10:$A58)+2,FALSE)","v":768},{"$f":"HLOOKUP(CV$7+0.5,$I$66:$DJ$120,ROWS($A$10:$A58)+2,FALSE)","v":4052},{"$f":"HLOOKUP(CW$7+0.5,$I$66:$DJ$120,ROWS($A$10:$A58)+2,FALSE)","v":1799},{"$f":"HLOOKUP(CX$7+0.5,$I$66:$DJ$120,ROWS($A$10:$A58)+2,FALSE)","v":162},{"$f":"HLOOKUP(CY$7+0.5,$I$66:$DJ$120,ROWS($A$10:$A58)+2,FALSE)","v":1542},{"$f":"HLOOKUP(CZ$7+0.5,$I$66:$DJ$120,ROWS($A$10:$A58)+2,FALSE)","v":155},{"$f":"HLOOKUP(DA$7+0.5,$I$66:$DJ$120,ROWS($A$10:$A58)+2,FALSE)","v":1819},{"$f":"HLOOKUP(DB$7+0.5,$I$66:$DJ$120,ROWS($A$10:$A58)+2,FALSE)","v":3417},{"$f":"HLOOKUP(DC$7+0.5,$I$66:$DJ$120,ROWS($A$10:$A58)+2,FALSE)","v":1995},{"$f":"HLOOKUP(DD$7+0.5,$I$66:$DJ$120,ROWS($A$10:$A58)+2,FALSE)","v":216},{"$f":"HLOOKUP(DE$7+0.5,$I$66:$DJ$120,ROWS($A$10:$A58)+2,FALSE)","v":1320},{"$f":"HLOOKUP(DF$7+0.5,$I$66:$DJ$120,ROWS($A$10:$A58)+2,FALSE)","v":"N/A"},{"$f":"HLOOKUP(DG$7+0.5,$I$66:$DJ$120,ROWS($A$10:$A58)+2,FALSE)","v":271},{"$f":"HLOOKUP(DH$7+0.5,$I$66:$DJ$120,ROWS($A$10:$A58)+2,FALSE)","v":638},{"$f":"HLOOKUP(DI$7+0.5,$I$66:$DJ$120,ROWS($A$10:$A58)+2,FALSE)","v":495},{"$f":"HLOOKUP(DJ$7+0.5,$I$66:$DJ$120,ROWS($A$10:$A58)+2,FALSE)","v":878}]
[null,"West Virginia",1837518,2090,1613322,11785,174112,11396,{"$f":"HLOOKUP(I$7,$I$66:$DJ$120,ROWS($A$10:$A59)+2,FALSE)","v":47125},{"$f":"HLOOKUP(J$7,$I$66:$DJ$120,ROWS($A$10:$A59)+2,FALSE)","v":477},{"$f":"HLOOKUP(K$7,$I$66:$DJ$120,ROWS($A$10:$A59)+2,FALSE)","v":306},{"$f":"HLOOKUP(L$7,$I$66:$DJ$120,ROWS($A$10:$A59)+2,FALSE)","v":79},{"$f":"HLOOKUP(M$7,$I$66:$DJ$120,ROWS($A$10:$A59)+2,FALSE)","v":0},{"$f":"HLOOKUP(N$7,$I$66:$DJ$120,ROWS($A$10:$A59)+2,FALSE)","v":1231},{"$f":"HLOOKUP(O$7,$I$66:$DJ$120,ROWS($A$10:$A59)+2,FALSE)","v":104},{"$f":"HLOOKUP(P$7,$I$66:$DJ$120,ROWS($A$10:$A59)+2,FALSE)","v":143},{"$f":"HLOOKUP(Q$7,$I$66:$DJ$120,ROWS($A$10:$A59)+2,FALSE)","v":674},{"$f":"HLOOKUP(R$7,$I$66:$DJ$120,ROWS($A$10:$A59)+2,FALSE)","v":294},{"$f":"HLOOKUP(S$7,$I$66:$DJ$120,ROWS($A$10:$A59)+2,FALSE)","v":1919},{"$f":"HLOOKUP(T$7,$I$66:$DJ$120,ROWS($A$10:$A59)+2,FALSE)","v":1108},{"$f":"HLOOKUP(U$7,$I$66:$DJ$120,ROWS($A$10:$A59)+2,FALSE)","v":166},{"$f":"HLOOKUP(V$7,$I$66:$DJ$120,ROWS($A$10:$A59)+2,FALSE)","v":181},{"$f":"HLOOKUP(W$7,$I$66:$DJ$120,ROWS($A$10:$A59)+2,FALSE)","v":220},{"$f":"HLOOKUP(X$7,$I$66:$DJ$120,ROWS($A$10:$A59)+2,FALSE)","v":328},{"$f":"HLOOKUP(Y$7,$I$66:$DJ$120,ROWS($A$10:$A59)+2,FALSE)","v":68},{"$f":"HLOOKUP(Z$7,$I$66:$DJ$120,ROWS($A$10:$A59)+2,FALSE)","v":39},{"$f":"HLOOKUP(AA$7,$I$66:$DJ$120,ROWS($A$10:$A59)+2,FALSE)","v":2249},{"$f":"HLOOKUP(AB$7,$I$66:$DJ$120,ROWS($A$10:$A59)+2,FALSE)","v":90},{"$f":"HLOOKUP(AC$7,$I$66:$DJ$120,ROWS($A$10:$A59)+2,FALSE)","v":35},{"$f":"HLOOKUP(AD$7,$I$66:$DJ$120,ROWS($A$10:$A59)+2,FALSE)","v":5352},{"$f":"HLOOKUP(AE$7,$I$66:$DJ$120,ROWS($A$10:$A59)+2,FALSE)","v":164},{"$f":"HLOOKUP(AF$7,$I$66:$DJ$120,ROWS($A$10:$A59)+2,FALSE)","v":778},{"$f":"HLOOKUP(AG$7,$I$66:$DJ$120,ROWS($A$10:$A59)+2,FALSE)","v":20},{"$f":"HLOOKUP(AH$7,$I$66:$DJ$120,ROWS($A$10:$A59)+2,FALSE)","v":0},{"$f":"HLOOKUP(AI$7,$I$66:$DJ$120,ROWS($A$10:$A59)+2,FALSE)","v":59},{"$f":"HLOOKUP(AJ$7,$I$66:$DJ$120,ROWS($A$10:$A59)+2,FALSE)","v":0},{"$f":"HLOOKUP(AK$7,$I$66:$DJ$120,ROWS($A$10:$A59)+2,FALSE)","v":0},{"$f":"HLOOKUP(AL$7,$I$66:$DJ$120,ROWS($A$10:$A59)+2,FALSE)","v":229},{"$f":"HLOOKUP(AM$7,$I$66:$DJ$120,ROWS($A$10:$A59)+2,FALSE)","v":129},{"$f":"HLOOKUP(AN$7,$I$66:$DJ$120,ROWS($A$10:$A59)+2,FALSE)","v":1213},{"$f":"HLOOKUP(AO$7,$I$66:$DJ$120,ROWS($A$10:$A59)+2,FALSE)","v":81},{"$f":"HLOOKUP(AP$7,$I$66:$DJ$120,ROWS($A$10:$A59)+2,FALSE)","v":1721},{"$f":"HLOOKUP(AQ$7,$I$66:$DJ$120,ROWS($A$10:$A59)+2,FALSE)","v":4683},{"$f":"HLOOKUP(AR$7,$I$66:$DJ$120,ROWS($A$10:$A59)+2,FALSE)","v":175},{"$f":"HLOOKUP(AS$7,$I$66:$DJ$120,ROWS($A$10:$A59)+2,FALSE)","v":6757},{"$f":"HLOOKUP(AT$7,$I$66:$DJ$120,ROWS($A$10:$A59)+2,FALSE)","v":520},{"$f":"HLOOKUP(AU$7,$I$66:$DJ$120,ROWS($A$10:$A59)+2,FALSE)","v":118},{"$f":"HLOOKUP(AV$7,$I$66:$DJ$120,ROWS($A$10:$A59)+2,FALSE)","v":5208},{"$f":"HLOOKUP(AW$7,$I$66:$DJ$120,ROWS($A$10:$A59)+2,FALSE)","v":0},{"$f":"HLOOKUP(AX$7,$I$66:$DJ$120,ROWS($A$10:$A59)+2,FALSE)","v":1098},{"$f":"HLOOKUP(AY$7,$I$66:$DJ$120,ROWS($A$10:$A59)+2,FALSE)","v":36},{"$f":"HLOOKUP(AZ$7,$I$66:$DJ$120,ROWS($A$10:$A59)+2,FALSE)","v":1061},{"$f":"HLOOKUP(BA$7,$I$66:$DJ$120,ROWS($A$10:$A59)+2,FALSE)","v":622},{"$f":"HLOOKUP(BB$7,$I$66:$DJ$120,ROWS($A$10:$A59)+2,FALSE)","v":0},{"$f":"HLOOKUP(BC$7,$I$66:$DJ$120,ROWS($A$10:$A59)+2,FALSE)","v":54},{"$f":"HLOOKUP(BD$7,$I$66:$DJ$120,ROWS($A$10:$A59)+2,FALSE)","v":6317},{"$f":"HLOOKUP(BE$7,$I$66:$DJ$120,ROWS($A$10:$A59)+2,FALSE)","v":297},{"$f":"HLOOKUP(BF$7,$I$66:$DJ$120,ROWS($A$10:$A59)+2,FALSE)","v":"N/A"},{"$f":"HLOOKUP(BG$7,$I$66:$DJ$120,ROWS($A$10:$A59)+2,FALSE)","v":470},{"$f":"HLOOKUP(BH$7,$I$66:$DJ$120,ROWS($A$10:$A59)+2,FALSE)","v":252},{"$f":"HLOOKUP(BI$7,$I$66:$DJ$120,ROWS($A$10:$A59)+2,FALSE)","v":79},{"$f":"HLOOKUP(BJ$7+0.5,$I$66:$DJ$120,ROWS($A$10:$A59)+2,FALSE)","v":4317},{"$f":"HLOOKUP(BK$7+0.5,$I$66:$DJ$120,ROWS($A$10:$A59)+2,FALSE)","v":339},{"$f":"HLOOKUP(BL$7+0.5,$I$66:$DJ$120,ROWS($A$10:$A59)+2,FALSE)","v":455},{"$f":"HLOOKUP(BM$7+0.5,$I$66:$DJ$120,ROWS($A$10:$A59)+2,FALSE)","v":129},{"$f":"HLOOKUP(BN$7+0.5,$I$66:$DJ$120,ROWS($A$10:$A59)+2,FALSE)","v":182},{"$f":"HLOOKUP(BO$7+0.5,$I$66:$DJ$120,ROWS($A$10:$A59)+2,FALSE)","v":516},{"$f":"HLOOKUP(BP$7+0.5,$I$66:$DJ$120,ROWS($A$10:$A59)+2,FALSE)","v":114},{"$f":"HLOOKUP(BQ$7+0.5,$I$66:$DJ$120,ROWS($A$10:$A59)+2,FALSE)","v":177},{"$f":"HLOOKUP(BR$7+0.5,$I$66:$DJ$120,ROWS($A$10:$A59)+2,FALSE)","v":525},{"$f":"HLOOKUP(BS$7+0.5,$I$66:$DJ$120,ROWS($A$10:$A59)+2,FALSE)","v":194},{"$f":"HLOOKUP(BT$7+0.5,$I$66:$DJ$120,ROWS($A$10:$A59)+2,FALSE)","v":666},{"$f":"HLOOKUP(BU$7+0.5,$I$66:$DJ$120,ROWS($A$10:$A59)+2,FALSE)","v":483},{"$f":"HLOOKUP(BV$7+0.5,$I$66:$DJ$120,ROWS($A$10:$A59)+2,FALSE)","v":277},{"$f":"HLOOKUP(BW$7+0.5,$I$66:$DJ$120,ROWS($A$10:$A59)+2,FALSE)","v":250},{"$f":"HLOOKUP(BX$7+0.5,$I$66:$DJ$120,ROWS($A$10:$A59)+2,FALSE)","v":190},{"$f":"HLOOKUP(BY$7+0.5,$I$66:$DJ$120,ROWS($A$10:$A59)+2,FALSE)","v":406},{"$f":"HLOOKUP(BZ$7+0.5,$I$66:$DJ$120,ROWS($A$10:$A59)+2,FALSE)","v":111},{"$f":"HLOOKUP(CA$7+0.5,$I$66:$DJ$120,ROWS($A$10:$A59)+2,FALSE)","v":64},{"$f":"HLOOKUP(CB$7+0.5,$I$66:$DJ$120,ROWS($A$10:$A59)+2,FALSE)","v":1019},{"$f":"HLOOKUP(CC$7+0.5,$I$66:$DJ$120,ROWS($A$10:$A59)+2,FALSE)","v":88},{"$f":"HLOOKUP(CD$7+0.5,$I$66:$DJ$120,ROWS($A$10:$A59)+2,FALSE)","v":74},{"$f":"HLOOKUP(CE$7+0.5,$I$66:$DJ$120,ROWS($A$10:$A59)+2,FALSE)","v":1897},{"$f":"HLOOKUP(CF$7+0.5,$I$66:$DJ$120,ROWS($A$10:$A59)+2,FALSE)","v":191},{"$f":"HLOOKUP(CG$7+0.5,$I$66:$DJ$120,ROWS($A$10:$A59)+2,FALSE)","v":581},{"$f":"HLOOKUP(CH$7+0.5,$I$66:$DJ$120,ROWS($A$10:$A59)+2,FALSE)","v":37},{"$f":"HLOOKUP(CI$7+0.5,$I$66:$DJ$120,ROWS($A$10:$A59)+2,FALSE)","v":182},{"$f":"HLOOKUP(CJ$7+0.5,$I$66:$DJ$120,ROWS($A$10:$A59)+2,FALSE)","v":76},{"$f":"HLOOKUP(CK$7+0.5,$I$66:$DJ$120,ROWS($A$10:$A59)+2,FALSE)","v":182},{"$f":"HLOOKUP(CL$7+0.5,$I$66:$DJ$120,ROWS($A$10:$A59)+2,FALSE)","v":182},{"$f":"HLOOKUP(CM$7+0.5,$I$66:$DJ$120,ROWS($A$10:$A59)+2,FALSE)","v":268},{"$f":"HLOOKUP(CN$7+0.5,$I$66:$DJ$120,ROWS($A$10:$A59)+2,FALSE)","v":147},{"$f":"HLOOKUP(CO$7+0.5,$I$66:$DJ$120,ROWS($A$10:$A59)+2,FALSE)","v":679},{"$f":"HLOOKUP(CP$7+0.5,$I$66:$DJ$120,ROWS($A$10:$A59)+2,FALSE)","v":90},{"$f":"HLOOKUP(CQ$7+0.5,$I$66:$DJ$120,ROWS($A$10:$A59)+2,FALSE)","v":965},{"$f":"HLOOKUP(CR$7+0.5,$I$66:$DJ$120,ROWS($A$10:$A59)+2,FALSE)","v":1933},{"$f":"HLOOKUP(CS$7+0.5,$I$66:$DJ$120,ROWS($A$10:$A59)+2,FALSE)","v":215},{"$f":"HLOOKUP(CT$7+0.5,$I$66:$DJ$120,ROWS($A$10:$A59)+2,FALSE)","v":1474},{"$f":"HLOOKUP(CU$7+0.5,$I$66:$DJ$120,ROWS($A$10:$A59)+2,FALSE)","v":447},{"$f":"HLOOKUP(CV$7+0.5,$I$66:$DJ$120,ROWS($A$10:$A59)+2,FALSE)","v":207},{"$f":"HLOOKUP(CW$7+0.5,$I$66:$DJ$120,ROWS($A$10:$A59)+2,FALSE)","v":1699},{"$f":"HLOOKUP(CX$7+0.5,$I$66:$DJ$120,ROWS($A$10:$A59)+2,FALSE)","v":182},{"$f":"HLOOKUP(CY$7+0.5,$I$66:$DJ$120,ROWS($A$10:$A59)+2,FALSE)","v":671},{"$f":"HLOOKUP(CZ$7+0.5,$I$66:$DJ$120,ROWS($A$10:$A59)+2,FALSE)","v":65},{"$f":"HLOOKUP(DA$7+0.5,$I$66:$DJ$120,ROWS($A$10:$A59)+2,FALSE)","v":513},{"$f":"HLOOKUP(DB$7+0.5,$I$66:$DJ$120,ROWS($A$10:$A59)+2,FALSE)","v":415},{"$f":"HLOOKUP(DC$7+0.5,$I$66:$DJ$120,ROWS($A$10:$A59)+2,FALSE)","v":182},{"$f":"HLOOKUP(DD$7+0.5,$I$66:$DJ$120,ROWS($A$10:$A59)+2,FALSE)","v":89},{"$f":"HLOOKUP(DE$7+0.5,$I$66:$DJ$120,ROWS($A$10:$A59)+2,FALSE)","v":1774},{"$f":"HLOOKUP(DF$7+0.5,$I$66:$DJ$120,ROWS($A$10:$A59)+2,FALSE)","v":285},{"$f":"HLOOKUP(DG$7+0.5,$I$66:$DJ$120,ROWS($A$10:$A59)+2,FALSE)","v":"N/A"},{"$f":"HLOOKUP(DH$7+0.5,$I$66:$DJ$120,ROWS($A$10:$A59)+2,FALSE)","v":555},{"$f":"HLOOKUP(DI$7+0.5,$I$66:$DJ$120,ROWS($A$10:$A59)+2,FALSE)","v":395},{"$f":"HLOOKUP(DJ$7+0.5,$I$66:$DJ$120,ROWS($A$10:$A59)+2,FALSE)","v":123}]
[null,"Wisconsin",5660677,3351,4849945,15530,693737,15440,{"$f":"HLOOKUP(I$7,$I$66:$DJ$120,ROWS($A$10:$A60)+2,FALSE)","v":99192},{"$f":"HLOOKUP(J$7,$I$66:$DJ$120,ROWS($A$10:$A60)+2,FALSE)","v":323},{"$f":"HLOOKUP(K$7,$I$66:$DJ$120,ROWS($A$10:$A60)+2,FALSE)","v":236},{"$f":"HLOOKUP(L$7,$I$66:$DJ$120,ROWS($A$10:$A60)+2,FALSE)","v":3257},{"$f":"HLOOKUP(M$7,$I$66:$DJ$120,ROWS($A$10:$A60)+2,FALSE)","v":253},{"$f":"HLOOKUP(N$7,$I$66:$DJ$120,ROWS($A$10:$A60)+2,FALSE)","v":5347},{"$f":"HLOOKUP(O$7,$I$66:$DJ$120,ROWS($A$10:$A60)+2,FALSE)","v":1600},{"$f":"HLOOKUP(P$7,$I$66:$DJ$120,ROWS($A$10:$A60)+2,FALSE)","v":657},{"$f":"HLOOKUP(Q$7,$I$66:$DJ$120,ROWS($A$10:$A60)+2,FALSE)","v":296},{"$f":"HLOOKUP(R$7,$I$66:$DJ$120,ROWS($A$10:$A60)+2,FALSE)","v":15},{"$f":"HLOOKUP(S$7,$I$66:$DJ$120,ROWS($A$10:$A60)+2,FALSE)","v":4937},{"$f":"HLOOKUP(T$7,$I$66:$DJ$120,ROWS($A$10:$A60)+2,FALSE)","v":970},{"$f":"HLOOKUP(U$7,$I$66:$DJ$120,ROWS($A$10:$A60)+2,FALSE)","v":333},{"$f":"HLOOKUP(V$7,$I$66:$DJ$120,ROWS($A$10:$A60)+2,FALSE)","v":360},{"$f":"HLOOKUP(W$7,$I$66:$DJ$120,ROWS($A$10:$A60)+2,FALSE)","v":22285},{"$f":"HLOOKUP(X$7,$I$66:$DJ$120,ROWS($A$10:$A60)+2,FALSE)","v":2480},{"$f":"HLOOKUP(Y$7,$I$66:$DJ$120,ROWS($A$10:$A60)+2,FALSE)","v":4161},{"$f":"HLOOKUP(Z$7,$I$66:$DJ$120,ROWS($A$10:$A60)+2,FALSE)","v":1160},{"$f":"HLOOKUP(AA$7,$I$66:$DJ$120,ROWS($A$10:$A60)+2,FALSE)","v":635},{"$f":"HLOOKUP(AB$7,$I$66:$DJ$120,ROWS($A$10:$A60)+2,FALSE)","v":598},{"$f":"HLOOKUP(AC$7,$I$66:$DJ$120,ROWS($A$10:$A60)+2,FALSE)","v":233},{"$f":"HLOOKUP(AD$7,$I$66:$DJ$120,ROWS($A$10:$A60)+2,FALSE)","v":1306},{"$f":"HLOOKUP(AE$7,$I$66:$DJ$120,ROWS($A$10:$A60)+2,FALSE)","v":489},{"$f":"HLOOKUP(AF$7,$I$66:$DJ$120,ROWS($A$10:$A60)+2,FALSE)","v":3917},{"$f":"HLOOKUP(AG$7,$I$66:$DJ$120,ROWS($A$10:$A60)+2,FALSE)","v":18965},{"$f":"HLOOKUP(AH$7,$I$66:$DJ$120,ROWS($A$10:$A60)+2,FALSE)","v":238},{"$f":"HLOOKUP(AI$7,$I$66:$DJ$120,ROWS($A$10:$A60)+2,FALSE)","v":1263},{"$f":"HLOOKUP(AJ$7,$I$66:$DJ$120,ROWS($A$10:$A60)+2,FALSE)","v":784},{"$f":"HLOOKUP(AK$7,$I$66:$DJ$120,ROWS($A$10:$A60)+2,FALSE)","v":324},{"$f":"HLOOKUP(AL$7,$I$66:$DJ$120,ROWS($A$10:$A60)+2,FALSE)","v":1163},{"$f":"HLOOKUP(AM$7,$I$66:$DJ$120,ROWS($A$10:$A60)+2,FALSE)","v":3},{"$f":"HLOOKUP(AN$7,$I$66:$DJ$120,ROWS($A$10:$A60)+2,FALSE)","v":606},{"$f":"HLOOKUP(AO$7,$I$66:$DJ$120,ROWS($A$10:$A60)+2,FALSE)","v":526},{"$f":"HLOOKUP(AP$7,$I$66:$DJ$120,ROWS($A$10:$A60)+2,FALSE)","v":2033},{"$f":"HLOOKUP(AQ$7,$I$66:$DJ$120,ROWS($A$10:$A60)+2,FALSE)","v":2939},{"$f":"HLOOKUP(AR$7,$I$66:$DJ$120,ROWS($A$10:$A60)+2,FALSE)","v":284},{"$f":"HLOOKUP(AS$7,$I$66:$DJ$120,ROWS($A$10:$A60)+2,FALSE)","v":2610},{"$f":"HLOOKUP(AT$7,$I$66:$DJ$120,ROWS($A$10:$A60)+2,FALSE)","v":289},{"$f":"HLOOKUP(AU$7,$I$66:$DJ$120,ROWS($A$10:$A60)+2,FALSE)","v":945},{"$f":"HLOOKUP(AV$7,$I$66:$DJ$120,ROWS($A$10:$A60)+2,FALSE)","v":1563},{"$f":"HLOOKUP(AW$7,$I$66:$DJ$120,ROWS($A$10:$A60)+2,FALSE)","v":144},{"$f":"HLOOKUP(AX$7,$I$66:$DJ$120,ROWS($A$10:$A60)+2,FALSE)","v":1053},{"$f":"HLOOKUP(AY$7,$I$66:$DJ$120,ROWS($A$10:$A60)+2,FALSE)","v":329},{"$f":"HLOOKUP(AZ$7,$I$66:$DJ$120,ROWS($A$10:$A60)+2,FALSE)","v":1051},{"$f":"HLOOKUP(BA$7,$I$66:$DJ$120,ROWS($A$10:$A60)+2,FALSE)","v":2765},{"$f":"HLOOKUP(BB$7,$I$66:$DJ$120,ROWS($A$10:$A60)+2,FALSE)","v":900},{"$f":"HLOOKUP(BC$7,$I$66:$DJ$120,ROWS($A$10:$A60)+2,FALSE)","v":62},{"$f":"HLOOKUP(BD$7,$I$66:$DJ$120,ROWS($A$10:$A60)+2,FALSE)","v":1267},{"$f":"HLOOKUP(BE$7,$I$66:$DJ$120,ROWS($A$10:$A60)+2,FALSE)","v":1208},{"$f":"HLOOKUP(BF$7,$I$66:$DJ$120,ROWS($A$10:$A60)+2,FALSE)","v":0},{"$f":"HLOOKUP(BG$7,$I$66:$DJ$120,ROWS($A$10:$A60)+2,FALSE)","v":"N/A"},{"$f":"HLOOKUP(BH$7,$I$66:$DJ$120,ROWS($A$10:$A60)+2,FALSE)","v":30},{"$f":"HLOOKUP(BI$7,$I$66:$DJ$120,ROWS($A$10:$A60)+2,FALSE)","v":975},{"$f":"HLOOKUP(BJ$7+0.5,$I$66:$DJ$120,ROWS($A$10:$A60)+2,FALSE)","v":6959},{"$f":"HLOOKUP(BK$7+0.5,$I$66:$DJ$120,ROWS($A$10:$A60)+2,FALSE)","v":262},{"$f":"HLOOKUP(BL$7+0.5,$I$66:$DJ$120,ROWS($A$10:$A60)+2,FALSE)","v":193},{"$f":"HLOOKUP(BM$7+0.5,$I$66:$DJ$120,ROWS($A$10:$A60)+2,FALSE)","v":1696},{"$f":"HLOOKUP(BN$7+0.5,$I$66:$DJ$120,ROWS($A$10:$A60)+2,FALSE)","v":216},{"$f":"HLOOKUP(BO$7+0.5,$I$66:$DJ$120,ROWS($A$10:$A60)+2,FALSE)","v":2126},{"$f":"HLOOKUP(BP$7+0.5,$I$66:$DJ$120,ROWS($A$10:$A60)+2,FALSE)","v":604},{"$f":"HLOOKUP(BQ$7+0.5,$I$66:$DJ$120,ROWS($A$10:$A60)+2,FALSE)","v":432},{"$f":"HLOOKUP(BR$7+0.5,$I$66:$DJ$120,ROWS($A$10:$A60)+2,FALSE)","v":475},{"$f":"HLOOKUP(BS$7+0.5,$I$66:$DJ$120,ROWS($A$10:$A60)+2,FALSE)","v":25},{"$f":"HLOOKUP(BT$7+0.5,$I$66:$DJ$120,ROWS($A$10:$A60)+2,FALSE)","v":1590},{"$f":"HLOOKUP(BU$7+0.5,$I$66:$DJ$120,ROWS($A$10:$A60)+2,FALSE)","v":396},{"$f":"HLOOKUP(BV$7+0.5,$I$66:$DJ$120,ROWS($A$10:$A60)+2,FALSE)","v":416},{"$f":"HLOOKUP(BW$7+0.5,$I$66:$DJ$120,ROWS($A$10:$A60)+2,FALSE)","v":231},{"$f":"HLOOKUP(BX$7+0.5,$I$66:$DJ$120,ROWS($A$10:$A60)+2,FALSE)","v":3020},{"$f":"HLOOKUP(BY$7+0.5,$I$66:$DJ$120,ROWS($A$10:$A60)+2,FALSE)","v":1136},{"$f":"HLOOKUP(BZ$7+0.5,$I$66:$DJ$120,ROWS($A$10:$A60)+2,FALSE)","v":1283},{"$f":"HLOOKUP(CA$7+0.5,$I$66:$DJ$120,ROWS($A$10:$A60)+2,FALSE)","v":1199},{"$f":"HLOOKUP(CB$7+0.5,$I$66:$DJ$120,ROWS($A$10:$A60)+2,FALSE)","v":502},{"$f":"HLOOKUP(CC$7+0.5,$I$66:$DJ$120,ROWS($A$10:$A60)+2,FALSE)","v":403},{"$f":"HLOOKUP(CD$7+0.5,$I$66:$DJ$120,ROWS($A$10:$A60)+2,FALSE)","v":195},{"$f":"HLOOKUP(CE$7+0.5,$I$66:$DJ$120,ROWS($A$10:$A60)+2,FALSE)","v":586},{"$f":"HLOOKUP(CF$7+0.5,$I$66:$DJ$120,ROWS($A$10:$A60)+2,FALSE)","v":356},{"$f":"HLOOKUP(CG$7+0.5,$I$66:$DJ$120,ROWS($A$10:$A60)+2,FALSE)","v":1160},{"$f":"HLOOKUP(CH$7+0.5,$I$66:$DJ$120,ROWS($A$10:$A60)+2,FALSE)","v":2405},{"$f":"HLOOKUP(CI$7+0.5,$I$66:$DJ$120,ROWS($A$10:$A60)+2,FALSE)","v":211},{"$f":"HLOOKUP(CJ$7+0.5,$I$66:$DJ$120,ROWS($A$10:$A60)+2,FALSE)","v":681},{"$f":"HLOOKUP(CK$7+0.5,$I$66:$DJ$120,ROWS($A$10:$A60)+2,FALSE)","v":512},{"$f":"HLOOKUP(CL$7+0.5,$I$66:$DJ$120,ROWS($A$10:$A60)+2,FALSE)","v":240},{"$f":"HLOOKUP(CM$7+0.5,$I$66:$DJ$120,ROWS($A$10:$A60)+2,FALSE)","v":682},{"$f":"HLOOKUP(CN$7+0.5,$I$66:$DJ$120,ROWS($A$10:$A60)+2,FALSE)","v":7},{"$f":"HLOOKUP(CO$7+0.5,$I$66:$DJ$120,ROWS($A$10:$A60)+2,FALSE)","v":477},{"$f":"HLOOKUP(CP$7+0.5,$I$66:$DJ$120,ROWS($A$10:$A60)+2,FALSE)","v":553},{"$f":"HLOOKUP(CQ$7+0.5,$I$66:$DJ$120,ROWS($A$10:$A60)+2,FALSE)","v":980},{"$f":"HLOOKUP(CR$7+0.5,$I$66:$DJ$120,ROWS($A$10:$A60)+2,FALSE)","v":1454},{"$f":"HLOOKUP(CS$7+0.5,$I$66:$DJ$120,ROWS($A$10:$A60)+2,FALSE)","v":318},{"$f":"HLOOKUP(CT$7+0.5,$I$66:$DJ$120,ROWS($A$10:$A60)+2,FALSE)","v":1053},{"$f":"HLOOKUP(CU$7+0.5,$I$66:$DJ$120,ROWS($A$10:$A60)+2,FALSE)","v":204},{"$f":"HLOOKUP(CV$7+0.5,$I$66:$DJ$120,ROWS($A$10:$A60)+2,FALSE)","v":601},{"$f":"HLOOKUP(CW$7+0.5,$I$66:$DJ$120,ROWS($A$10:$A60)+2,FALSE)","v":750},{"$f":"HLOOKUP(CX$7+0.5,$I$66:$DJ$120,ROWS($A$10:$A60)+2,FALSE)","v":157},{"$f":"HLOOKUP(CY$7+0.5,$I$66:$DJ$120,ROWS($A$10:$A60)+2,FALSE)","v":675},{"$f":"HLOOKUP(CZ$7+0.5,$I$66:$DJ$120,ROWS($A$10:$A60)+2,FALSE)","v":220},{"$f":"HLOOKUP(DA$7+0.5,$I$66:$DJ$120,ROWS($A$10:$A60)+2,FALSE)","v":638},{"$f":"HLOOKUP(DB$7+0.5,$I$66:$DJ$120,ROWS($A$10:$A60)+2,FALSE)","v":1112},{"$f":"HLOOKUP(DC$7+0.5,$I$66:$DJ$120,ROWS($A$10:$A60)+2,FALSE)","v":1091},{"$f":"HLOOKUP(DD$7+0.5,$I$66:$DJ$120,ROWS($A$10:$A60)+2,FALSE)","v":88},{"$f":"HLOOKUP(DE$7+0.5,$I$66:$DJ$120,ROWS($A$10:$A60)+2,FALSE)","v":916},{"$f":"HLOOKUP(DF$7+0.5,$I$66:$DJ$120,ROWS($A$10:$A60)+2,FALSE)","v":416},{"$f":"HLOOKUP(DG$7+0.5,$I$66:$DJ$120,ROWS($A$10:$A60)+2,FALSE)","v":145},{"$f":"HLOOKUP(DH$7+0.5,$I$66:$DJ$120,ROWS($A$10:$A60)+2,FALSE)","v":"N/A"},{"$f":"HLOOKUP(DI$7+0.5,$I$66:$DJ$120,ROWS($A$10:$A60)+2,FALSE)","v":46},{"$f":"HLOOKUP(DJ$7+0.5,$I$66:$DJ$120,ROWS($A$10:$A60)+2,FALSE)","v":943}]
[null,"Wyoming",569734,1083,459226,7512,77324,6960,{"$f":"HLOOKUP(I$7,$I$66:$DJ$120,ROWS($A$10:$A61)+2,FALSE)","v":31149},{"$f":"HLOOKUP(J$7,$I$66:$DJ$120,ROWS($A$10:$A61)+2,FALSE)","v":260},{"$f":"HLOOKUP(K$7,$I$66:$DJ$120,ROWS($A$10:$A61)+2,FALSE)","v":590},{"$f":"HLOOKUP(L$7,$I$66:$DJ$120,ROWS($A$10:$A61)+2,FALSE)","v":2014},{"$f":"HLOOKUP(M$7,$I$66:$DJ$120,ROWS($A$10:$A61)+2,FALSE)","v":244},{"$f":"HLOOKUP(N$7,$I$66:$DJ$120,ROWS($A$10:$A61)+2,FALSE)","v":2035},{"$f":"HLOOKUP(O$7,$I$66:$DJ$120,ROWS($A$10:$A61)+2,FALSE)","v":5599},{"$f":"HLOOKUP(P$7,$I$66:$DJ$120,ROWS($A$10:$A61)+2,FALSE)","v":0},{"$f":"HLOOKUP(Q$7,$I$66:$DJ$120,ROWS($A$10:$A61)+2,FALSE)","v":0},{"$f":"HLOOKUP(R$7,$I$66:$DJ$120,ROWS($A$10:$A61)+2,FALSE)","v":0},{"$f":"HLOOKUP(S$7,$I$66:$DJ$120,ROWS($A$10:$A61)+2,FALSE)","v":733},{"$f":"HLOOKUP(T$7,$I$66:$DJ$120,ROWS($A$10:$A61)+2,FALSE)","v":166},{"$f":"HLOOKUP(U$7,$I$66:$DJ$120,ROWS($A$10:$A61)+2,FALSE)","v":0},{"$f":"HLOOKUP(V$7,$I$66:$DJ$120,ROWS($A$10:$A61)+2,FALSE)","v":745},{"$f":"HLOOKUP(W$7,$I$66:$DJ$120,ROWS($A$10:$A61)+2,FALSE)","v":905},{"$f":"HLOOKUP(X$7,$I$66:$DJ$120,ROWS($A$10:$A61)+2,FALSE)","v":179},{"$f":"HLOOKUP(Y$7,$I$66:$DJ$120,ROWS($A$10:$A61)+2,FALSE)","v":259},{"$f":"HLOOKUP(Z$7,$I$66:$DJ$120,ROWS($A$10:$A61)+2,FALSE)","v":539},{"$f":"HLOOKUP(AA$7,$I$66:$DJ$120,ROWS($A$10:$A61)+2,FALSE)","v":4},{"$f":"HLOOKUP(AB$7,$I$66:$DJ$120,ROWS($A$10:$A61)+2,FALSE)","v":88},{"$f":"HLOOKUP(AC$7,$I$66:$DJ$120,ROWS($A$10:$A61)+2,FALSE)","v":0},{"$f":"HLOOKUP(AD$7,$I$66:$DJ$120,ROWS($A$10:$A61)+2,FALSE)","v":294},{"$f":"HLOOKUP(AE$7,$I$66:$DJ$120,ROWS($A$10:$A61)+2,FALSE)","v":548},{"$f":"HLOOKUP(AF$7,$I$66:$DJ$120,ROWS($A$10:$A61)+2,FALSE)","v":965},{"$f":"HLOOKUP(AG$7,$I$66:$DJ$120,ROWS($A$10:$A61)+2,FALSE)","v":290},{"$f":"HLOOKUP(AH$7,$I$66:$DJ$120,ROWS($A$10:$A61)+2,FALSE)","v":136},{"$f":"HLOOKUP(AI$7,$I$66:$DJ$120,ROWS($A$10:$A61)+2,FALSE)","v":244},{"$f":"HLOOKUP(AJ$7,$I$66:$DJ$120,ROWS($A$10:$A61)+2,FALSE)","v":1901},{"$f":"HLOOKUP(AK$7,$I$66:$DJ$120,ROWS($A$10:$A61)+2,FALSE)","v":1216},{"$f":"HLOOKUP(AL$7,$I$66:$DJ$120,ROWS($A$10:$A61)+2,FALSE)","v":355},{"$f":"HLOOKUP(AM$7,$I$66:$DJ$120,ROWS($A$10:$A61)+2,FALSE)","v":0},{"$f":"HLOOKUP(AN$7,$I$66:$DJ$120,ROWS($A$10:$A61)+2,FALSE)","v":121},{"$f":"HLOOKUP(AO$7,$I$66:$DJ$120,ROWS($A$10:$A61)+2,FALSE)","v":604},{"$f":"HLOOKUP(AP$7,$I$66:$DJ$120,ROWS($A$10:$A61)+2,FALSE)","v":231},{"$f":"HLOOKUP(AQ$7,$I$66:$DJ$120,ROWS($A$10:$A61)+2,FALSE)","v":459},{"$f":"HLOOKUP(AR$7,$I$66:$DJ$120,ROWS($A$10:$A61)+2,FALSE)","v":338},{"$f":"HLOOKUP(AS$7,$I$66:$DJ$120,ROWS($A$10:$A61)+2,FALSE)","v":819},{"$f":"HLOOKUP(AT$7,$I$66:$DJ$120,ROWS($A$10:$A61)+2,FALSE)","v":964},{"$f":"HLOOKUP(AU$7,$I$66:$DJ$120,ROWS($A$10:$A61)+2,FALSE)","v":893},{"$f":"HLOOKUP(AV$7,$I$66:$DJ$120,ROWS($A$10:$A61)+2,FALSE)","v":230},{"$f":"HLOOKUP(AW$7,$I$66:$DJ$120,ROWS($A$10:$A61)+2,FALSE)","v":0},{"$f":"HLOOKUP(AX$7,$I$66:$DJ$120,ROWS($A$10:$A61)+2,FALSE)","v":122},{"$f":"HLOOKUP(AY$7,$I$66:$DJ$120,ROWS($A$10:$A61)+2,FALSE)","v":1175},{"$f":"HLOOKUP(AZ$7,$I$66:$DJ$120,ROWS($A$10:$A61)+2,FALSE)","v":4},{"$f":"HLOOKUP(BA$7,$I$66:$DJ$120,ROWS($A$10:$A61)+2,FALSE)","v":1427},{"$f":"HLOOKUP(BB$7,$I$66:$DJ$120,ROWS($A$10:$A61)+2,FALSE)","v":1710},{"$f":"HLOOKUP(BC$7,$I$66:$DJ$120,ROWS($A$10:$A61)+2,FALSE)","v":0},{"$f":"HLOOKUP(BD$7,$I$66:$DJ$120,ROWS($A$10:$A61)+2,FALSE)","v":138},{"$f":"HLOOKUP(BE$7,$I$66:$DJ$120,ROWS($A$10:$A61)+2,FALSE)","v":1323},{"$f":"HLOOKUP(BF$7,$I$66:$DJ$120,ROWS($A$10:$A61)+2,FALSE)","v":0},{"$f":"HLOOKUP(BG$7,$I$66:$DJ$120,ROWS($A$10:$A61)+2,FALSE)","v":282},{"$f":"HLOOKUP(BH$7,$I$66:$DJ$120,ROWS($A$10:$A61)+2,FALSE)","v":"N/A"},{"$f":"HLOOKUP(BI$7,$I$66:$DJ$120,ROWS($A$10:$A61)+2,FALSE)","v":16},{"$f":"HLOOKUP(BJ$7+0.5,$I$66:$DJ$120,ROWS($A$10:$A61)+2,FALSE)","v":3430},{"$f":"HLOOKUP(BK$7+0.5,$I$66:$DJ$120,ROWS($A$10:$A61)+2,FALSE)","v":284},{"$f":"HLOOKUP(BL$7+0.5,$I$66:$DJ$120,ROWS($A$10:$A61)+2,FALSE)","v":661},{"$f":"HLOOKUP(BM$7+0.5,$I$66:$DJ$120,ROWS($A$10:$A61)+2,FALSE)","v":1234},{"$f":"HLOOKUP(BN$7+0.5,$I$66:$DJ$120,ROWS($A$10:$A61)+2,FALSE)","v":405},{"$f":"HLOOKUP(BO$7+0.5,$I$66:$DJ$120,ROWS($A$10:$A61)+2,FALSE)","v":720},{"$f":"HLOOKUP(BP$7+0.5,$I$66:$DJ$120,ROWS($A$10:$A61)+2,FALSE)","v":1618},{"$f":"HLOOKUP(BQ$7+0.5,$I$66:$DJ$120,ROWS($A$10:$A61)+2,FALSE)","v":185},{"$f":"HLOOKUP(BR$7+0.5,$I$66:$DJ$120,ROWS($A$10:$A61)+2,FALSE)","v":185},{"$f":"HLOOKUP(BS$7+0.5,$I$66:$DJ$120,ROWS($A$10:$A61)+2,FALSE)","v":185},{"$f":"HLOOKUP(BT$7+0.5,$I$66:$DJ$120,ROWS($A$10:$A61)+2,FALSE)","v":572},{"$f":"HLOOKUP(BU$7+0.5,$I$66:$DJ$120,ROWS($A$10:$A61)+2,FALSE)","v":173},{"$f":"HLOOKUP(BV$7+0.5,$I$66:$DJ$120,ROWS($A$10:$A61)+2,FALSE)","v":185},{"$f":"HLOOKUP(BW$7+0.5,$I$66:$DJ$120,ROWS($A$10:$A61)+2,FALSE)","v":481},{"$f":"HLOOKUP(BX$7+0.5,$I$66:$DJ$120,ROWS($A$10:$A61)+2,FALSE)","v":823},{"$f":"HLOOKUP(BY$7+0.5,$I$66:$DJ$120,ROWS($A$10:$A61)+2,FALSE)","v":179},{"$f":"HLOOKUP(BZ$7+0.5,$I$66:$DJ$120,ROWS($A$10:$A61)+2,FALSE)","v":273},{"$f":"HLOOKUP(CA$7+0.5,$I$66:$DJ$120,ROWS($A$10:$A61)+2,FALSE)","v":412},{"$f":"HLOOKUP(CB$7+0.5,$I$66:$DJ$120,ROWS($A$10:$A61)+2,FALSE)","v":10},{"$f":"HLOOKUP(CC$7+0.5,$I$66:$DJ$120,ROWS($A$10:$A61)+2,FALSE)","v":100},{"$f":"HLOOKUP(CD$7+0.5,$I$66:$DJ$120,ROWS($A$10:$A61)+2,FALSE)","v":185},{"$f":"HLOOKUP(CE$7+0.5,$I$66:$DJ$120,ROWS($A$10:$A61)+2,FALSE)","v":304},{"$f":"HLOOKUP(CF$7+0.5,$I$66:$DJ$120,ROWS($A$10:$A61)+2,FALSE)","v":638},{"$f":"HLOOKUP(CG$7+0.5,$I$66:$DJ$120,ROWS($A$10:$A61)+2,FALSE)","v":730},{"$f":"HLOOKUP(CH$7+0.5,$I$66:$DJ$120,ROWS($A$10:$A61)+2,FALSE)","v":240},{"$f":"HLOOKUP(CI$7+0.5,$I$66:$DJ$120,ROWS($A$10:$A61)+2,FALSE)","v":229},{"$f":"HLOOKUP(CJ$7+0.5,$I$66:$DJ$120,ROWS($A$10:$A61)+2,FALSE)","v":257},{"$f":"HLOOKUP(CK$7+0.5,$I$66:$DJ$120,ROWS($A$10:$A61)+2,FALSE)","v":789},{"$f":"HLOOKUP(CL$7+0.5,$I$66:$DJ$120,ROWS($A$10:$A61)+2,FALSE)","v":559},{"$f":"HLOOKUP(CM$7+0.5,$I$66:$DJ$120,ROWS($A$10:$A61)+2,FALSE)","v":304},{"$f":"HLOOKUP(CN$7+0.5,$I$66:$DJ$120,ROWS($A$10:$A61)+2,FALSE)","v":185},{"$f":"HLOOKUP(CO$7+0.5,$I$66:$DJ$120,ROWS($A$10:$A61)+2,FALSE)","v":147},{"$f":"HLOOKUP(CP$7+0.5,$I$66:$DJ$120,ROWS($A$10:$A61)+2,FALSE)","v":658},{"$f":"HLOOKUP(CQ$7+0.5,$I$66:$DJ$120,ROWS($A$10:$A61)+2,FALSE)","v":252},{"$f":"HLOOKUP(CR$7+0.5,$I$66:$DJ$120,ROWS($A$10:$A61)+2,FALSE)","v":399},{"$f":"HLOOKUP(CS$7+0.5,$I$66:$DJ$120,ROWS($A$10:$A61)+2,FALSE)","v":300},{"$f":"HLOOKUP(CT$7+0.5,$I$66:$DJ$120,ROWS($A$10:$A61)+2,FALSE)","v":447},{"$f":"HLOOKUP(CU$7+0.5,$I$66:$DJ$120,ROWS($A$10:$A61)+2,FALSE)","v":670},{"$f":"HLOOKUP(CV$7+0.5,$I$66:$DJ$120,ROWS($A$10:$A61)+2,FALSE)","v":605},{"$f":"HLOOKUP(CW$7+0.5,$I$66:$DJ$120,ROWS($A$10:$A61)+2,FALSE)","v":254},{"$f":"HLOOKUP(CX$7+0.5,$I$66:$DJ$120,ROWS($A$10:$A61)+2,FALSE)","v":185},{"$f":"HLOOKUP(CY$7+0.5,$I$66:$DJ$120,ROWS($A$10:$A61)+2,FALSE)","v":201},{"$f":"HLOOKUP(CZ$7+0.5,$I$66:$DJ$120,ROWS($A$10:$A61)+2,FALSE)","v":730},{"$f":"HLOOKUP(DA$7+0.5,$I$66:$DJ$120,ROWS($A$10:$A61)+2,FALSE)","v":7},{"$f":"HLOOKUP(DB$7+0.5,$I$66:$DJ$120,ROWS($A$10:$A61)+2,FALSE)","v":920},{"$f":"HLOOKUP(DC$7+0.5,$I$66:$DJ$120,ROWS($A$10:$A61)+2,FALSE)","v":948},{"$f":"HLOOKUP(DD$7+0.5,$I$66:$DJ$120,ROWS($A$10:$A61)+2,FALSE)","v":185},{"$f":"HLOOKUP(DE$7+0.5,$I$66:$DJ$120,ROWS($A$10:$A61)+2,FALSE)","v":169},{"$f":"HLOOKUP(DF$7+0.5,$I$66:$DJ$120,ROWS($A$10:$A61)+2,FALSE)","v":785},{"$f":"HLOOKUP(DG$7+0.5,$I$66:$DJ$120,ROWS($A$10:$A61)+2,FALSE)","v":185},{"$f":"HLOOKUP(DH$7+0.5,$I$66:$DJ$120,ROWS($A$10:$A61)+2,FALSE)","v":210},{"$f":"HLOOKUP(DI$7+0.5,$I$66:$DJ$120,ROWS($A$10:$A61)+2,FALSE)","v":"N/A"},{"$f":"HLOOKUP(DJ$7+0.5,$I$66:$DJ$120,ROWS($A$10:$A61)+2,FALSE)","v":27}]
[null,"Puerto Rico",3628402,2934,3366593,12125,238042,11523,{"$f":"HLOOKUP(I$7,$I$66:$DJ$120,ROWS($A$10:$A62)+2,FALSE)","v":20044},{"$f":"HLOOKUP(J$7,$I$66:$DJ$120,ROWS($A$10:$A62)+2,FALSE)","v":8},{"$f":"HLOOKUP(K$7,$I$66:$DJ$120,ROWS($A$10:$A62)+2,FALSE)","v":57},{"$f":"HLOOKUP(L$7,$I$66:$DJ$120,ROWS($A$10:$A62)+2,FALSE)","v":54},{"$f":"HLOOKUP(M$7,$I$66:$DJ$120,ROWS($A$10:$A62)+2,FALSE)","v":93},{"$f":"HLOOKUP(N$7,$I$66:$DJ$120,ROWS($A$10:$A62)+2,FALSE)","v":519},{"$f":"HLOOKUP(O$7,$I$66:$DJ$120,ROWS($A$10:$A62)+2,FALSE)","v":0},{"$f":"HLOOKUP(P$7,$I$66:$DJ$120,ROWS($A$10:$A62)+2,FALSE)","v":370},{"$f":"HLOOKUP(Q$7,$I$66:$DJ$120,ROWS($A$10:$A62)+2,FALSE)","v":0},{"$f":"HLOOKUP(R$7,$I$66:$DJ$120,ROWS($A$10:$A62)+2,FALSE)","v":0},{"$f":"HLOOKUP(S$7,$I$66:$DJ$120,ROWS($A$10:$A62)+2,FALSE)","v":4192},{"$f":"HLOOKUP(T$7,$I$66:$DJ$120,ROWS($A$10:$A62)+2,FALSE)","v":232},{"$f":"HLOOKUP(U$7,$I$66:$DJ$120,ROWS($A$10:$A62)+2,FALSE)","v":110},{"$f":"HLOOKUP(V$7,$I$66:$DJ$120,ROWS($A$10:$A62)+2,FALSE)","v":0},{"$f":"HLOOKUP(W$7,$I$66:$DJ$120,ROWS($A$10:$A62)+2,FALSE)","v":1021},{"$f":"HLOOKUP(X$7,$I$66:$DJ$120,ROWS($A$10:$A62)+2,FALSE)","v":121},{"$f":"HLOOKUP(Y$7,$I$66:$DJ$120,ROWS($A$10:$A62)+2,FALSE)","v":0},{"$f":"HLOOKUP(Z$7,$I$66:$DJ$120,ROWS($A$10:$A62)+2,FALSE)","v":143},{"$f":"HLOOKUP(AA$7,$I$66:$DJ$120,ROWS($A$10:$A62)+2,FALSE)","v":37},{"$f":"HLOOKUP(AB$7,$I$66:$DJ$120,ROWS($A$10:$A62)+2,FALSE)","v":59},{"$f":"HLOOKUP(AC$7,$I$66:$DJ$120,ROWS($A$10:$A62)+2,FALSE)","v":0},{"$f":"HLOOKUP(AD$7,$I$66:$DJ$120,ROWS($A$10:$A62)+2,FALSE)","v":108},{"$f":"HLOOKUP(AE$7,$I$66:$DJ$120,ROWS($A$10:$A62)+2,FALSE)","v":2258},{"$f":"HLOOKUP(AF$7,$I$66:$DJ$120,ROWS($A$10:$A62)+2,FALSE)","v":435},{"$f":"HLOOKUP(AG$7,$I$66:$DJ$120,ROWS($A$10:$A62)+2,FALSE)","v":0},{"$f":"HLOOKUP(AH$7,$I$66:$DJ$120,ROWS($A$10:$A62)+2,FALSE)","v":0},{"$f":"HLOOKUP(AI$7,$I$66:$DJ$120,ROWS($A$10:$A62)+2,FALSE)","v":0},{"$f":"HLOOKUP(AJ$7,$I$66:$DJ$120,ROWS($A$10:$A62)+2,FALSE)","v":0},{"$f":"HLOOKUP(AK$7,$I$66:$DJ$120,ROWS($A$10:$A62)+2,FALSE)","v":0},{"$f":"HLOOKUP(AL$7,$I$66:$DJ$120,ROWS($A$10:$A62)+2,FALSE)","v":0},{"$f":"HLOOKUP(AM$7,$I$66:$DJ$120,ROWS($A$10:$A62)+2,FALSE)","v":0},{"$f":"HLOOKUP(AN$7,$I$66:$DJ$120,ROWS($A$10:$A62)+2,FALSE)","v":1922},{"$f":"HLOOKUP(AO$7,$I$66:$DJ$120,ROWS($A$10:$A62)+2,FALSE)","v":28},{"$f":"HLOOKUP(AP$7,$I$66:$DJ$120,ROWS($A$10:$A62)+2,FALSE)","v":2314},{"$f":"HLOOKUP(AQ$7,$I$66:$DJ$120,ROWS($A$10:$A62)+2,FALSE)","v":638},{"$f":"HLOOKUP(AR$7,$I$66:$DJ$120,ROWS($A$10:$A62)+2,FALSE)","v":0},{"$f":"HLOOKUP(AS$7,$I$66:$DJ$120,ROWS($A$10:$A62)+2,FALSE)","v":328},{"$f":"HLOOKUP(AT$7,$I$66:$DJ$120,ROWS($A$10:$A62)+2,FALSE)","v":0},{"$f":"HLOOKUP(AU$7,$I$66:$DJ$120,ROWS($A$10:$A62)+2,FALSE)","v":0},{"$f":"HLOOKUP(AV$7,$I$66:$DJ$120,ROWS($A$10:$A62)+2,FALSE)","v":2313},{"$f":"HLOOKUP(AW$7,$I$66:$DJ$120,ROWS($A$10:$A62)+2,FALSE)","v":624},{"$f":"HLOOKUP(AX$7,$I$66:$DJ$120,ROWS($A$10:$A62)+2,FALSE)","v":4},{"$f":"HLOOKUP(AY$7,$I$66:$DJ$120,ROWS($A$10:$A62)+2,FALSE)","v":0},{"$f":"HLOOKUP(AZ$7,$I$66:$DJ$120,ROWS($A$10:$A62)+2,FALSE)","v":15},{"$f":"HLOOKUP(BA$7,$I$66:$DJ$120,ROWS($A$10:$A62)+2,FALSE)","v":360},{"$f":"HLOOKUP(BB$7,$I$66:$DJ$120,ROWS($A$10:$A62)+2,FALSE)","v":0},{"$f":"HLOOKUP(BC$7,$I$66:$DJ$120,ROWS($A$10:$A62)+2,FALSE)","v":0},{"$f":"HLOOKUP(BD$7,$I$66:$DJ$120,ROWS($A$10:$A62)+2,FALSE)","v":684},{"$f":"HLOOKUP(BE$7,$I$66:$DJ$120,ROWS($A$10:$A62)+2,FALSE)","v":0},{"$f":"HLOOKUP(BF$7,$I$66:$DJ$120,ROWS($A$10:$A62)+2,FALSE)","v":8},{"$f":"HLOOKUP(BG$7,$I$66:$DJ$120,ROWS($A$10:$A62)+2,FALSE)","v":989},{"$f":"HLOOKUP(BH$7,$I$66:$DJ$120,ROWS($A$10:$A62)+2,FALSE)","v":0},{"$f":"HLOOKUP(BI$7,$I$66:$DJ$120,ROWS($A$10:$A62)+2,FALSE)","v":"N/A"},{"$f":"HLOOKUP(BJ$7+0.5,$I$66:$DJ$120,ROWS($A$10:$A62)+2,FALSE)","v":2902},{"$f":"HLOOKUP(BK$7+0.5,$I$66:$DJ$120,ROWS($A$10:$A62)+2,FALSE)","v":15},{"$f":"HLOOKUP(BL$7+0.5,$I$66:$DJ$120,ROWS($A$10:$A62)+2,FALSE)","v":94},{"$f":"HLOOKUP(BM$7+0.5,$I$66:$DJ$120,ROWS($A$10:$A62)+2,FALSE)","v":90},{"$f":"HLOOKUP(BN$7+0.5,$I$66:$DJ$120,ROWS($A$10:$A62)+2,FALSE)","v":158},{"$f":"HLOOKUP(BO$7+0.5,$I$66:$DJ$120,ROWS($A$10:$A62)+2,FALSE)","v":484},{"$f":"HLOOKUP(BP$7+0.5,$I$66:$DJ$120,ROWS($A$10:$A62)+2,FALSE)","v":214},{"$f":"HLOOKUP(BQ$7+0.5,$I$66:$DJ$120,ROWS($A$10:$A62)+2,FALSE)","v":365},{"$f":"HLOOKUP(BR$7+0.5,$I$66:$DJ$120,ROWS($A$10:$A62)+2,FALSE)","v":214},{"$f":"HLOOKUP(BS$7+0.5,$I$66:$DJ$120,ROWS($A$10:$A62)+2,FALSE)","v":214},{"$f":"HLOOKUP(BT$7+0.5,$I$66:$DJ$120,ROWS($A$10:$A62)+2,FALSE)","v":1203},{"$f":"HLOOKUP(BU$7+0.5,$I$66:$DJ$120,ROWS($A$10:$A62)+2,FALSE)","v":300},{"$f":"HLOOKUP(BV$7+0.5,$I$66:$DJ$120,ROWS($A$10:$A62)+2,FALSE)","v":172},{"$f":"HLOOKUP(BW$7+0.5,$I$66:$DJ$120,ROWS($A$10:$A62)+2,FALSE)","v":214},{"$f":"HLOOKUP(BX$7+0.5,$I$66:$DJ$120,ROWS($A$10:$A62)+2,FALSE)","v":602},{"$f":"HLOOKUP(BY$7+0.5,$I$66:$DJ$120,ROWS($A$10:$A62)+2,FALSE)","v":153},{"$f":"HLOOKUP(BZ$7+0.5,$I$66:$DJ$120,ROWS($A$10:$A62)+2,FALSE)","v":214},{"$f":"HLOOKUP(CA$7+0.5,$I$66:$DJ$120,ROWS($A$10:$A62)+2,FALSE)","v":240},{"$f":"HLOOKUP(CB$7+0.5,$I$66:$DJ$120,ROWS($A$10:$A62)+2,FALSE)","v":72},{"$f":"HLOOKUP(CC$7+0.5,$I$66:$DJ$120,ROWS($A$10:$A62)+2,FALSE)","v":101},{"$f":"HLOOKUP(CD$7+0.5,$I$66:$DJ$120,ROWS($A$10:$A62)+2,FALSE)","v":214},{"$f":"HLOOKUP(CE$7+0.5,$I$66:$DJ$120,ROWS($A$10:$A62)+2,FALSE)","v":177},{"$f":"HLOOKUP(CF$7+0.5,$I$66:$DJ$120,ROWS($A$10:$A62)+2,FALSE)","v":1289},{"$f":"HLOOKUP(CG$7+0.5,$I$66:$DJ$120,ROWS($A$10:$A62)+2,FALSE)","v":451},{"$f":"HLOOKUP(CH$7+0.5,$I$66:$DJ$120,ROWS($A$10:$A62)+2,FALSE)","v":214},{"$f":"HLOOKUP(CI$7+0.5,$I$66:$DJ$120,ROWS($A$10:$A62)+2,FALSE)","v":214},{"$f":"HLOOKUP(CJ$7+0.5,$I$66:$DJ$120,ROWS($A$10:$A62)+2,FALSE)","v":214},{"$f":"HLOOKUP(CK$7+0.5,$I$66:$DJ$120,ROWS($A$10:$A62)+2,FALSE)","v":214},{"$f":"HLOOKUP(CL$7+0.5,$I$66:$DJ$120,ROWS($A$10:$A62)+2,FALSE)","v":214},{"$f":"HLOOKUP(CM$7+0.5,$I$66:$DJ$120,ROWS($A$10:$A62)+2,FALSE)","v":214},{"$f":"HLOOKUP(CN$7+0.5,$I$66:$DJ$120,ROWS($A$10:$A62)+2,FALSE)","v":214},{"$f":"HLOOKUP(CO$7+0.5,$I$66:$DJ$120,ROWS($A$10:$A62)+2,FALSE)","v":1129},{"$f":"HLOOKUP(CP$7+0.5,$I$66:$DJ$120,ROWS($A$10:$A62)+2,FALSE)","v":48},{"$f":"HLOOKUP(CQ$7+0.5,$I$66:$DJ$120,ROWS($A$10:$A62)+2,FALSE)","v":761},{"$f":"HLOOKUP(CR$7+0.5,$I$66:$DJ$120,ROWS($A$10:$A62)+2,FALSE)","v":565},{"$f":"HLOOKUP(CS$7+0.5,$I$66:$DJ$120,ROWS($A$10:$A62)+2,FALSE)","v":214},{"$f":"HLOOKUP(CT$7+0.5,$I$66:$DJ$120,ROWS($A$10:$A62)+2,FALSE)","v":499},{"$f":"HLOOKUP(CU$7+0.5,$I$66:$DJ$120,ROWS($A$10:$A62)+2,FALSE)","v":214},{"$f":"HLOOKUP(CV$7+0.5,$I$66:$DJ$120,ROWS($A$10:$A62)+2,FALSE)","v":214},{"$f":"HLOOKUP(CW$7+0.5,$I$66:$DJ$120,ROWS($A$10:$A62)+2,FALSE)","v":1063},{"$f":"HLOOKUP(CX$7+0.5,$I$66:$DJ$120,ROWS($A$10:$A62)+2,FALSE)","v":688},{"$f":"HLOOKUP(CY$7+0.5,$I$66:$DJ$120,ROWS($A$10:$A62)+2,FALSE)","v":7},{"$f":"HLOOKUP(CZ$7+0.5,$I$66:$DJ$120,ROWS($A$10:$A62)+2,FALSE)","v":214},{"$f":"HLOOKUP(DA$7+0.5,$I$66:$DJ$120,ROWS($A$10:$A62)+2,FALSE)","v":31},{"$f":"HLOOKUP(DB$7+0.5,$I$66:$DJ$120,ROWS($A$10:$A62)+2,FALSE)","v":291},{"$f":"HLOOKUP(DC$7+0.5,$I$66:$DJ$120,ROWS($A$10:$A62)+2,FALSE)","v":214},{"$f":"HLOOKUP(DD$7+0.5,$I$66:$DJ$120,ROWS($A$10:$A62)+2,FALSE)","v":214},{"$f":"HLOOKUP(DE$7+0.5,$I$66:$DJ$120,ROWS($A$10:$A62)+2,FALSE)","v":777},{"$f":"HLOOKUP(DF$7+0.5,$I$66:$DJ$120,ROWS($A$10:$A62)+2,FALSE)","v":214},{"$f":"HLOOKUP(DG$7+0.5,$I$66:$DJ$120,ROWS($A$10:$A62)+2,FALSE)","v":15},{"$f":"HLOOKUP(DH$7+0.5,$I$66:$DJ$120,ROWS($A$10:$A62)+2,FALSE)","v":654},{"$f":"HLOOKUP(DI$7+0.5,$I$66:$DJ$120,ROWS($A$10:$A62)+2,FALSE)","v":214},{"$f":"HLOOKUP(DJ$7+0.5,$I$66:$DJ$120,ROWS($A$10:$A62)+2,FALSE)","v":"N/A"}]
[]
[]
[]
[null,null,null,null,null,null,null,null,1,1.5,2,2.5,3,3.5,4,4.5,5,5.5,6,6.5,7,7.5,8,8.5,9,9.5,10,10.5,11,11.5,12,12.5,13,13.5,14,14.5,15,15.5,16,16.5,17,17.5,18,18.5,19,19.5,20,20.5,21,21.5,22,22.5,23,23.5,24,24.5,25,25.5,26,26.5,27,27.5,28,28.5,29,29.5,30,30.5,31,31.5,32,32.5,33,33.5,34,34.5,35,35.5,36,36.5,37,37.5,38,38.5,39,39.5,40,40.5,41,41.5,42,42.5,43,43.5,44,44.5,45,45.5,46,46.5,47,47.5,48,48.5,49,49.5,50,50.5,51,51.5,52,52.5,53,53.5]
[null,null,null,null,null,null,null,null,"Estimate","MOE","Estimate","MOE","Estimate","MOE","Estimate","MOE","Estimate","MOE","Estimate","MOE","Estimate","MOE","Estimate","MOE","Estimate","MOE","Estimate","MOE","Estimate","MOE","Estimate","MOE","Estimate","MOE","Estimate","MOE","Estimate","MOE","Estimate","MOE","Estimate","MOE","Estimate","MOE","Estimate","MOE","Estimate","MOE","Estimate","MOE","Estimate","MOE","Estimate","MOE","Estimate","MOE","Estimate","MOE","Estimate","MOE","Estimate","MOE","Estimate","MOE","Estimate","MOE","Estimate","MOE","Estimate","MOE","Estimate","MOE","Estimate","MOE","Estimate","MOE","Estimate","MOE","Estimate","MOE","Estimate","MOE","Estimate","MOE","Estimate","MOE","Estimate","MOE","Estimate","MOE","Estimate","MOE","Estimate","MOE","Estimate","MOE","Estimate","MOE","Estimate","MOE","Estimate","MOE","Estimate","MOE","Estimate","MOE","Estimate","MOE","Estimate","MOE","Estimate","MOE","Estimate","MOE"]
[null,null,null,null,null,null,null,null,7070345,58599,109210,9027,84068,7600,206842,12859,64967,6563,566986,19755,161530,10348,87023,5968,25149,3775,59513,6154,428325,18406,252262,12868,61509,6100,55191,6257,277953,12722,144597,8929,73325,6129,93134,7286,103004,7490,95956,7745,38574,5351,157664,9686,158156,10755,175733,9302,115946,8402,66947,7206,142754,9402,33832,4879,48816,4967,98882,9332,38696,3364,219202,11087,63921,5867,405864,15692,238663,13414,23959,3373,199202,10288,102572,9213,108182,7867,237156,10246,30498,3414,127418,8502,22534,2998,163843,8717,402187,15471,82165,8304,20056,2967,238540,11611,180462,9674,47425,5262,97724,5859,32228,5150,74500,8156]
[null,null,null,null,null,null,null,null,104600,8482,"N/A","N/A",1004,829,962,583,660,382,3077,1037,1386,1393,284,256,42,68,162,195,11244,2476,19920,3636,627,477,493,456,2722,1030,1347,536,345,337,865,760,2495,981,3104,1216,67,82,1513,847,334,272,2298,881,752,716,4952,1703,1555,836,101,132,151,167,1009,824,161,166,1702,1200,459,576,2709,1188,5133,1788,228,194,1411,576,194,157,200,169,1837,736,0,184,2811,1951,518,758,10539,2731,7468,2136,579,713,0,184,3170,1577,1034,684,128,156,760,605,88,107,619,551]
[null,null,null,null,null,null,null,null,33415,4385,1097,825,"N/A","N/A",1520,1441,196,202,3494,1643,556,279,0,143,0,143,356,459,1991,942,928,894,1376,805,538,387,58,118,260,235,13,24,221,272,161,196,120,145,66,62,508,591,297,289,563,426,192,191,56,76,819,628,371,334,1195,1128,803,382,118,206,116,156,263,219,736,576,920,784,264,359,1316,757,335,252,3174,1510,255,240,0,143,384,394,99,123,451,413,1488,760,330,347,79,108,1265,674,3725,1488,0,143,206,261,136,217,25,43]
[null,null,null,null,null,null,null,null,232457,14183,1331,1286,3717,1505,"N/A","N/A",1214,659,44889,5435,13790,6133,417,309,246,215,36,60,5553,2160,2263,961,2491,1285,2934,1362,10744,2614,2930,1447,2702,1000,2498,852,1328,997,724,442,616,593,3007,1288,1961,1083,9598,3471,8570,3050,293,215,2595,1099,1118,536,2293,1037,6712,2202,510,443,2564,1085,6946,1907,7402,2615,2721,939,877,444,7906,2239,1626,838,8587,3200,4280,1395,614,687,1070,573,1472,776,5075,1919,14788,3541,5916,1789,207,291,2763,1031,13247,2448,765,734,3765,1168,2786,1401,1791,1662]
[null,null,null,null,null,null,null,null,76948,7223,374,293,855,906,1677,954,"N/A","N/A",3525,1202,603,369,185,264,0,184,205,232,2682,1052,1525,1006,0,184,0,184,3576,1286,1172,587,409,330,1033,539,1310,884,3953,1340,17,39,169,209,254,262,1283,607,295,285,3689,2537,9105,2916,258,293,166,201,121,161,0,184,157,171,547,482,2262,1559,3057,2173,0,184,1135,626,9938,2371,193,179,516,475,59,103,52,71,673,588,4195,1127,11767,2841,269,216,0,184,1159,824,251,226,84,148,695,467,1498,2098,0,184]
[null,null,null,null,null,null,null,null,493641,19652,2509,983,6995,1948,38916,5726,3472,1354,"N/A","N/A",15150,2598,6764,2194,474,413,3199,1061,21004,3394,10790,2458,11906,2720,5331,1519,21251,3521,5891,1629,2284,987,2790,984,3763,1292,5180,1525,1256,951,7902,2347,14356,2682,8921,2069,8539,1942,2556,993,6729,1595,3060,1275,3302,2007,27968,3857,1327,615,12057,2447,5921,2240,31261,5136,11195,2366,1827,1272,10653,2869,6671,1795,22724,3271,10466,2392,1648,697,4110,1492,826,674,5802,1880,43005,5519,12172,2457,544,345,15625,3457,34569,4540,1413,1135,5681,1716,1886,1117,2323,1076]
[null,null,null,null,null,null,null,null,205060,11855,3108,1610,3457,1695,10589,2218,1043,580,22152,4260,"N/A","N/A",1317,677,70,133,488,387,8615,1907,5834,2086,2536,1020,2660,1468,6374,1617,4336,2128,2776,1486,5283,1843,2500,2135,5048,2468,20,40,2844,1196,5939,2238,3343,1293,2992,909,835,522,3771,1262,2021,923,4472,1729,3789,1433,679,308,2464,1179,6520,1851,7250,2604,4378,1678,1918,1071,4533,2214,4582,2102,2419,836,3950,1530,137,153,2383,1479,756,553,2535,1135,17355,3352,6398,2035,503,371,3796,1568,4853,1401,837,429,3000,1006,5602,2808,1144,903]
[null,null,null,null,null,null,null,null,80311,6574,46,103,439,511,3167,3028,200,228,3161,1015,367,341,"N/A","N/A",22,36,288,230,6578,1844,1702,971,408,476,97,155,912,583,53,90,0,193,0,193,124,159,909,733,1224,696,1752,748,8743,1587,753,539,605,564,276,293,358,330,50,91,45,74,172,166,1009,551,5665,1490,444,450,23310,3774,3379,1609,0,193,287,254,415,411,35,58,2214,1037,1558,689,940,665,0,193,260,216,3279,1568,45,69,709,556,1729,707,1593,1274,174,293,711,684,104,120,3228,1540]
[null,null,null,null,null,null,null,null,34757,4691,119,164,692,920,188,227,0,182,2221,2189,0,182,1489,679,"N/A","N/A",11,21,715,481,179,224,0,182,32,51,567,468,62,80,30,49,113,190,0,182,178,266,0,182,5649,1598,157,131,227,233,351,390,58,110,80,138,0,182,91,116,572,474,99,127,5846,2122,85,136,3566,1751,1349,809,0,182,191,201,0,182,0,182,6828,1815,135,185,298,235,0,182,344,440,133,158,166,279,0,182,1746,910,29,49,161,205,0,182,0,182,56,90]
[null,null,null,null,null,null,null,null,53830,5001,79,138,1247,715,902,646,35,59,4999,2108,677,546,618,439,78,127,"N/A","N/A",1705,661,1079,470,38,87,46,75,795,446,469,379,133,221,164,267,112,136,283,295,194,244,14120,2487,1524,717,944,670,393,240,44,74,337,354,0,197,172,182,42,69,197,183,1451,792,116,139,3085,851,985,503,0,197,651,429,0,197,157,182,1494,608,635,596,150,140,0,197,577,478,1473,826,116,145,267,250,9537,1762,481,358,293,219,721,420,215,303,0,197]
[null,null,null,null,null,null,null,null,537148,19784,18599,4762,10704,4327,6473,1865,3321,1136,20386,4221,8766,2537,8975,1882,1099,608,780,481,"N/A","N/A",42754,6205,3177,2730,1268,923,22565,3828,13803,2852,3864,1332,5661,3133,6912,1607,5550,2266,7348,3032,10442,2378,15159,2747,23400,3519,5460,2185,5490,3345,10666,3498,1758,2104,945,713,1241,515,2362,922,27606,4242,2853,1004,53009,5886,23133,3843,239,203,22927,4305,3142,1301,2919,1736,25659,4174,3050,1458,11366,2719,1070,762,16275,3583,28564,4750,2499,1348,2747,1190,25697,3965,4943,1710,3533,1587,6216,1993,773,567,21638,4641]
[null,null,null,null,null,null,null,null,277466,14075,13864,2903,2654,1444,6657,2675,1041,519,14174,3182,4710,2093,1829,824,226,246,1352,994,42870,5472,"N/A","N/A",1409,831,936,797,7143,1833,5972,2678,1687,1036,1497,707,6172,1972,4100,1490,222,178,3619,1621,4153,1720,9949,3100,2237,2164,3280,1372,3377,1479,251,224,1283,1001,3783,2622,15,27,4920,1544,915,512,13957,3960,16009,2963,207,250,7501,2501,3299,1818,453,472,9076,2622,440,620,18611,3871,257,291,17606,4620,16198,3367,20,35,84,142,10702,2094,1965,826,1237,625,3441,1725,106,154,1730,1190]
[null,null,null,null,null,null,null,null,55145,5749,608,479,1417,869,1865,695,24,54,9756,1508,1216,574,191,222,278,253,230,253,2780,1227,1448,639,"N/A","N/A",404,431,318,194,292,261,84,98,1135,709,485,630,207,183,91,147,2491,1610,1266,962,321,189,192,240,44,52,944,630,131,172,75,125,760,424,85,119,410,435,284,243,2382,1279,2241,1274,0,177,884,995,1095,933,1763,764,1087,770,106,176,644,460,459,726,1314,675,3300,1887,2183,1283,0,177,1393,755,5920,1901,197,330,295,234,50,66,336,436]
[null,null,null,null,null,null,null,null,59283,6040,575,838,1198,790,2424,1307,291,268,10280,2708,1186,614,44,81,120,199,116,124,2014,1608,583,848,206,194,"N/A","N/A",532,469,283,282,90,170,63,69,83,128,54,92,0,187,107,161,338,391,683,777,637,528,87,170,214,259,3800,2162,35,60,2535,1031,0,187,214,206,675,554,938,554,817,843,0,187,1018,753,93,108,4963,1377,169,181,0,187,205,238,118,192,1957,1539,1352,714,6617,3016,0,187,269,388,10398,1919,0,187,225,272,677,406,136,228]
[null,null,null,null,null,null,null,null,208755,10844,883,478,2250,1511,7139,2314,1587,643,14940,2770,3036,1235,955,634,234,228,1066,615,12687,2735,8745,3894,869,593,1384,868,"N/A","N/A",16907,2654,8529,1959,2009,988,2923,1049,1229,561,526,347,1865,755,3296,1088,12583,3412,6537,1781,2744,1178,13264,3449,228,183,1302,637,1478,817,283,255,2366,1097,1359,1078,7561,2307,3761,1150,196,184,6872,1834,1491,860,954,517,4588,1506,462,478,1583,875,394,444,4648,1468,16780,3035,1154,495,156,133,4311,1212,2704,971,1221,1224,14414,2249,302,309,2049,1480]
[null,null,null,null,null,null,null,null,134137,9664,1625,788,479,429,2763,1095,564,753,6033,1477,1225,531,823,595,639,831,1045,733,11472,2864,2258,1176,856,998,186,176,28436,4261,"N/A","N/A",1678,860,1624,785,11177,2929,736,416,0,184,1050,648,837,590,11017,2594,1543,732,1948,1655,4526,1802,134,191,591,541,1011,549,0,184,1537,1034,219,245,2316,724,2665,884,113,164,11235,2192,1198,725,387,239,2419,1101,0,184,1414,901,111,147,3547,1422,4490,1562,105,124,0,184,1932,1101,258,221,507,345,1727,769,1681,2023,136,194]
[null,null,null,null,null,null,null,null,75760,5982,503,400,951,814,1590,803,451,237,3268,1296,3252,1250,112,135,0,151,151,155,4335,2060,596,481,521,476,290,218,11969,2313,1716,1097,"N/A","N/A",918,500,819,609,763,568,78,125,419,287,585,520,946,497,7505,1826,751,621,4168,1021,452,305,7698,1806,681,602,56,93,1018,767,114,188,1230,819,734,428,833,617,1127,692,1465,974,348,302,451,353,0,151,943,556,1158,441,1148,871,3553,1275,886,880,0,151,268,200,919,485,22,41,3607,849,392,316,786,1190]
[null,null,null,null,null,null,null,null,88284,7145,853,609,333,407,3094,1630,2158,890,5411,2012,3746,1360,210,208,0,165,456,737,3118,1380,1896,1395,149,156,456,356,1702,582,1679,839,1527,860,"N/A","N/A",617,476,438,408,211,225,282,282,187,203,1125,682,682,367,452,501,21022,3073,300,326,4126,1245,851,606,0,165,267,228,1029,627,571,367,813,476,261,263,1310,638,8408,2299,848,557,918,672,18,31,556,375,154,195,1542,825,8468,2434,97,106,70,138,1705,853,3265,1675,139,132,486,530,278,239,82,147]
[null,null,null,null,null,null,null,null,112787,7854,4137,1628,304,370,1103,715,518,299,3415,1157,712,572,246,290,706,774,254,262,9232,2697,4173,1184,647,665,50,91,4445,1359,12203,2150,238,257,602,464,"N/A","N/A",666,294,46,80,1120,615,419,285,7302,1809,605,346,646,467,2381,1021,0,181,723,588,301,294,84,103,496,551,554,348,5239,1774,3643,1903,122,192,17041,3384,577,437,298,212,2226,964,0,181,1347,671,0,181,10064,2378,3345,1420,464,360,45,81,3319,1111,1988,998,3346,1472,1395,845,0,181,170,197]
[null,null,null,null,null,null,null,null,91215,6941,2329,1114,403,467,2021,1191,3645,2324,5139,1438,1433,1002,164,149,0,193,596,517,6534,2276,4478,1559,378,283,265,242,1229,466,1359,954,544,447,420,392,1649,1224,"N/A","N/A",251,334,642,701,549,354,1080,782,330,324,6791,1938,1591,684,428,524,745,538,931,682,11,21,975,575,150,188,2786,1105,2284,1152,64,113,1115,773,2159,1365,195,232,1239,616,737,695,1914,1377,0,193,2348,1546,24488,4076,277,288,45,72,1857,1033,1581,631,238,271,682,474,146,216,655,507]
[null,null,null,null,null,null,null,null,27523,3132,129,172,38,48,230,170,0,155,1610,860,314,287,1468,620,234,299,32,55,2926,1292,511,538,0,155,143,128,195,277,0,155,7,16,277,401,482,521,15,30,"N/A","N/A",325,263,3887,1167,116,123,430,359,79,134,69,112,0,155,82,136,35,56,3655,1077,405,281,272,320,2519,1180,1112,574,0,155,628,368,79,115,215,255,976,600,1024,656,173,143,0,155,985,1062,496,381,200,183,349,340,573,408,118,137,51,85,0,155,59,81,38,69]
[null,null,null,null,null,null,null,null,154983,8958,1261,713,1947,1123,760,359,136,159,8614,2155,1071,609,881,516,4100,1303,21213,3437,9610,2515,4610,2430,610,474,429,444,3621,1647,1210,709,569,389,1726,1123,715,602,606,441,332,261,"N/A","N/A",3977,1805,2167,973,1422,707,581,706,256,199,0,190,132,152,330,258,1124,820,6260,2244,638,453,11736,2585,7507,2284,116,94,2522,1035,463,447,378,426,15485,2922,82,95,2297,1139,0,190,1800,986,5612,1271,1061,831,589,598,20579,2668,1431,884,1957,799,460,371,0,190,294,249]
[null,null,null,null,null,null,null,null,142577,7863,636,622,890,600,1972,979,394,340,12770,2994,980,438,10525,2062,506,505,379,219,12890,2568,2789,1129,1108,564,188,164,2886,1041,677,497,151,251,565,429,52,87,1556,742,3907,1349,2381,895,"N/A","N/A",1337,680,966,367,155,186,453,218,49,81,182,189,787,544,13331,2144,8046,1874,521,364,19467,2432,2514,1003,81,133,1829,772,297,206,1528,1359,8236,1924,6863,1317,2477,1120,194,326,823,342,3694,1078,1027,666,2534,913,4098,1470,1653,696,385,569,584,445,264,404,4056,1883]
[null,null,null,null,null,null,null,null,133981,8566,2341,1013,1152,685,7168,3100,906,559,8085,1721,2363,967,798,506,114,164,274,282,13146,3306,4270,1652,291,238,242,371,10047,1702,10976,2324,993,495,805,608,3409,1388,1284,662,261,218,2201,1094,1720,764,"N/A","N/A",1127,512,922,671,2206,695,218,171,113,137,1354,715,446,342,1617,721,1318,685,5731,1680,3912,1056,265,202,11318,2251,705,307,811,440,2739,686,68,114,1822,797,66,77,3259,997,8638,2574,819,534,60,120,3057,855,2146,839,353,279,4768,1111,1277,862,782,797]
[null,null,null,null,null,null,null,null,101042,6534,1299,919,523,312,3065,861,375,222,8086,2263,3565,1095,696,360,0,139,310,353,2372,752,2235,1482,1277,1179,575,531,5896,1405,2026,1057,7220,1774,924,513,57,103,791,858,187,136,1841,2080,814,434,2212,822,"N/A","N/A",202,323,1709,750,1257,900,992,477,932,542,0,139,1038,546,322,224,1849,732,1745,956,6672,1485,2635,1248,1212,894,781,513,1106,570,299,226,1705,1448,3442,990,1738,1141,4001,1244,429,312,77,126,1037,434,1685,678,0,139,17618,2358,213,213,134,136]
[null,null,null,null,null,null,null,null,73500,7080,5141,1870,0,198,710,509,2680,1447,4371,1070,799,426,106,147,0,198,97,164,4676,1396,2669,865,184,191,586,597,2703,933,1200,621,160,275,400,339,446,276,8588,2293,163,167,379,262,67,113,1768,1071,568,385,"N/A","N/A",2634,1581,166,168,138,159,526,342,60,117,2127,1495,86,102,1492,660,1709,609,98,118,896,703,562,352,465,768,613,434,185,229,596,469,79,129,11643,2856,7230,2491,454,724,0,198,1929,1285,433,309,0,198,611,521,307,287,81,108]
[null,null,null,null,null,null,null,null,162930,8034,1333,768,2186,1289,2297,741,9434,2224,10717,2409,3798,1371,410,331,234,314,144,172,8374,1990,3451,1391,2114,1271,596,478,22001,2893,4184,1267,5956,1324,20218,3673,2291,1067,1178,651,996,1247,1246,717,810,486,2964,1169,2798,1265,1110,532,"N/A","N/A",511,506,1999,833,836,366,35,58,960,536,451,309,2834,918,3988,1420,636,462,3557,1317,5298,2199,1186,899,1535,639,361,582,2856,1625,527,542,3122,1350,9278,2841,3287,1733,318,413,2609,1081,2312,1093,148,181,2636,999,810,452,826,958]
[null,null,null,null,null,null,null,null,37690,4305,31,55,726,442,1548,938,63,102,5428,2229,2135,896,0,157,0,157,0,157,1875,1029,292,270,556,572,3385,1349,542,371,163,164,415,384,224,268,367,352,0,157,225,269,33,65,97,109,822,760,481,297,32,58,447,385,"N/A","N/A",108,149,968,499,115,177,156,198,259,178,482,371,1082,808,977,604,402,332,1018,948,2950,1687,457,362,0,157,230,304,191,142,45,40,1393,612,260,261,87,135,156,153,4783,1555,0,157,750,425,934,387,0,157]
[null,null,null,null,null,null,null,null,43266,4512,245,275,626,531,2406,1120,363,317,3438,1425,2023,791,0,149,0,149,0,149,1368,978,786,482,165,149,315,374,1193,546,290,214,6815,2803,3103,822,131,133,411,371,68,90,129,126,195,112,258,197,1489,1049,176,132,2223,836,108,156,"N/A","N/A",233,178,0,149,524,363,158,187,318,246,874,414,497,492,563,373,587,408,106,113,702,528,0,149,456,381,2507,677,232,184,3130,1218,229,230,79,131,1076,758,1327,673,111,152,316,218,917,371,0,149]
[null,null,null,null,null,null,null,null,124285,9956,761,724,2161,1047,8748,2540,353,404,49978,7637,6402,2736,143,181,373,521,468,759,3381,1488,745,477,2053,949,1503,743,2822,1412,362,341,714,592,1202,1085,952,651,421,296,209,286,934,689,318,267,1235,574,1157,718,783,658,694,516,1086,605,714,551,"N/A","N/A",175,230,912,600,1138,665,3521,1460,767,589,702,661,1407,791,1520,1384,3101,1186,1601,1078,336,548,480,403,0,200,1699,822,5484,1772,4605,1899,121,222,1135,832,2997,1103,100,161,1046,666,766,706,237,356]
[null,null,null,null,null,null,null,null,50484,5282,0,181,437,378,440,413,0,181,1514,935,572,637,1345,478,0,181,101,131,2746,1312,470,324,43,78,20,38,673,608,297,365,53,89,102,161,284,250,7,13,6118,1749,33,57,18990,3350,426,441,0,181,0,181,289,262,0,181,110,136,0,181,"N/A","N/A",591,330,223,279,2905,1027,1609,1456,0,181,324,240,186,266,208,299,890,561,1248,819,323,257,0,181,77,133,2150,1715,557,762,2960,1339,660,433,113,119,80,131,239,277,71,120,75,123]
[null,null,null,null,null,null,null,null,130223,7649,779,509,359,437,1328,704,57,70,4330,1070,380,264,3466,1711,1921,1383,840,637,10649,2430,3002,1032,22,41,113,134,2052,874,1039,559,357,405,426,405,631,614,339,343,430,388,3474,1241,4907,1730,324,191,570,429,106,165,384,363,67,112,35,58,908,526,126,219,"N/A","N/A",45,75,40495,4293,3236,1238,55,93,1452,596,1540,1537,760,587,23597,2976,429,410,2372,1386,581,644,1400,612,2509,1335,425,341,35,57,5024,1899,1847,1244,297,201,680,457,23,30,2574,1462]
[null,null,null,null,null,null,null,null,54693,5877,787,509,320,264,6391,1673,410,286,4536,1440,4780,1546,280,250,100,136,25,51,4707,2184,192,184,168,127,355,352,790,530,660,524,384,331,672,537,159,160,790,883,57,80,505,355,303,298,602,490,284,428,451,630,1216,793,139,162,194,220,604,853,268,259,252,271,"N/A","N/A",1111,618,335,373,41,82,1178,1049,1076,568,932,481,822,666,0,185,325,260,509,547,338,274,11955,2917,1382,889,81,103,1560,1330,1251,575,0,185,321,514,95,100,429,466]
[null,null,null,null,null,null,null,null,270053,11861,1364,864,4002,2016,4146,2468,247,203,24623,2557,3596,976,14595,2921,477,284,3936,1392,27392,3450,7592,1925,1598,734,607,472,8017,2204,3040,1128,955,658,1437,906,1753,808,1083,465,1345,536,7321,1575,15073,2292,5191,1445,1059,631,773,800,3310,1260,421,424,78,108,600,382,2760,1059,42574,4802,646,445,"N/A","N/A",10544,2568,77,129,4625,1103,1327,652,1055,716,22895,3206,3222,1538,5952,1542,0,185,1279,624,11231,2384,622,489,2764,1025,7939,2109,2614,840,921,689,979,507,396,370,7321,1791]
[null,null,null,null,null,null,null,null,273149,13136,4329,1544,1458,925,3493,1189,861,649,13883,2813,4790,2047,4914,1990,2180,1732,1801,687,26365,3750,16823,2851,1566,921,334,256,6378,2177,4532,2259,775,524,1595,748,1531,794,919,758,1259,972,9005,2221,3710,1158,6161,2547,1523,838,2377,1092,2623,1742,244,306,628,628,1627,807,754,525,11468,4262,1138,705,19891,3951,"N/A","N/A",206,232,9337,2484,1263,753,1333,772,12179,2356,290,198,25532,4732,351,186,9230,2122,12638,2381,1189,1040,445,291,26759,4229,5915,2630,2677,985,2266,980,604,687,2025,1218]
[null,null,null,null,null,null,null,null,38213,3616,83,142,70,105,1571,788,0,141,999,460,546,293,65,100,0,141,70,112,950,860,98,154,160,148,540,521,799,523,55,77,458,316,161,122,22,44,18,27,98,176,232,311,187,281,757,571,15257,2266,72,109,1490,1346,1776,709,950,764,854,572,0,141,140,231,161,228,331,331,231,243,"N/A","N/A",6,14,280,260,724,529,114,157,244,255,14,28,1754,822,746,694,1414,756,43,60,758,1014,403,309,1604,796,0,141,543,327,365,269,0,141]
[null,null,null,null,null,null,null,null,196391,9611,3705,2297,2207,1757,4929,1912,884,604,8995,1803,3180,1230,1355,887,1079,696,985,722,16366,2560,8052,2973,1198,591,412,295,9510,2157,13534,2157,1039,765,1166,617,13227,2976,2214,1011,1189,889,5026,2570,2189,808,16336,2656,1122,597,1017,865,3026,1068,276,292,1052,656,907,525,189,156,4703,2119,1361,817,8732,1741,5498,1525,453,346,"N/A","N/A",858,417,432,307,14147,2612,435,384,2445,1029,47,76,3542,1429,11760,2739,197,211,364,350,3193,1055,2862,2150,7820,2219,974,725,202,210,1403,910]
[null,null,null,null,null,null,null,null,108972,6570,1030,467,1279,600,2974,1435,5777,1187,8950,2184,4717,1556,0,149,380,288,151,148,5011,1525,2581,935,189,295,905,600,1100,487,1490,936,1088,689,7065,1535,1354,898,2562,1354,167,260,750,685,1233,906,1347,671,906,469,1850,752,5210,1349,798,710,300,208,1101,799,549,383,1523,748,1244,712,1981,936,1961,912,308,340,1148,533,"N/A","N/A",1261,771,494,285,0,149,569,346,108,154,2471,1035,25508,2960,2588,1465,197,316,1749,829,1574,575,368,298,1061,758,45,68,0,149]
[null,null,null,null,null,null,null,null,118925,7769,373,425,2513,953,7954,2060,165,158,31862,3767,4472,2133,381,457,0,193,696,919,1660,620,1032,523,2501,813,5093,1880,1676,1192,1380,1000,834,781,556,534,202,261,227,229,446,353,457,422,760,604,570,338,1792,799,186,237,403,269,2192,968,570,448,5935,2774,39,65,385,327,920,676,2379,1032,1482,1046,42,85,1411,789,725,546,"N/A","N/A",904,535,177,214,461,364,119,143,802,583,3347,1277,4793,2328,367,435,676,510,21224,3153,593,502,426,284,765,664,152,177]
[null,null,null,null,null,null,null,null,215500,8872,1926,1318,1658,857,3529,1256,573,315,7772,1558,2574,1488,3311,905,4814,1468,2921,830,14631,2565,4337,1703,245,180,359,350,3749,1137,1599,680,125,177,967,860,1233,604,694,431,988,675,17529,3084,5900,1368,2642,1235,1169,588,55,49,1171,575,135,169,214,187,1600,999,1138,609,33791,4576,1001,740,32898,4482,6380,1734,166,195,14319,2479,378,253,234,220,"N/A","N/A",771,472,3023,869,159,206,1273,533,6768,1688,1276,804,1012,873,11960,2213,1787,1202,6762,2075,1550,722,434,439,7847,2646]
[null,null,null,null,null,null,null,null,33446,3551,20,44,0,200,93,151,0,200,2146,811,332,315,4170,1101,0,200,313,381,2752,1143,168,211,120,145,0,200,385,382,0,200,0,200,27,47,286,405,24,45,279,249,482,325,11253,1937,230,169,131,131,0,200,210,158,0,200,188,250,25,48,611,385,1219,641,36,58,3603,1335,478,508,0,200,63,80,0,200,139,235,735,552,"N/A","N/A",481,609,0,200,120,199,823,433,0,200,53,76,1008,569,287,320,0,200,135,124,21,32,116,186]
[null,null,null,null,null,null,null,null,156705,9611,1665,635,1244,1016,2222,1160,839,526,5979,1473,1915,1059,1590,729,697,492,435,352,11552,2367,18570,3616,638,493,198,321,2125,1128,3802,1911,643,437,1064,855,1924,991,2709,2265,2077,942,3565,1205,2313,826,2966,1289,757,582,1407,802,1884,724,93,127,158,165,1025,834,917,696,6517,2181,1052,1085,10746,3642,24764,3907,656,650,4388,1326,555,354,255,202,6497,2067,538,332,"N/A","N/A",816,1252,3550,1136,5351,1482,566,425,298,244,9377,3040,1629,1165,1345,720,832,570,0,197,1070,890]
[null,null,null,null,null,null,null,null,26051,2891,0,147,855,1127,435,333,227,354,1494,663,1744,839,2,4,0,147,0,147,970,638,122,130,8,13,78,104,74,102,210,289,2441,932,403,295,0,147,0,147,0,147,60,65,61,101,892,747,3568,1023,34,48,474,274,248,208,2175,801,135,171,0,147,0,147,175,187,371,317,240,220,1725,823,64,77,21,36,667,583,515,633,0,147,158,159,"N/A","N/A",507,346,1715,1067,388,372,5,9,340,300,1026,681,131,216,314,413,979,735,134,235]
[null,null,null,null,null,null,null,null,177098,10625,12116,3309,1281,847,2250,907,3306,1731,8396,2447,2473,1156,936,900,176,222,180,203,15641,3639,16012,3114,1058,1052,787,817,7094,1891,5591,2209,617,556,2630,1972,13202,2695,2452,1206,1040,589,1743,867,1525,706,4507,1434,1178,896,10568,2321,2694,1254,308,278,432,389,735,443,271,287,783,507,751,640,6279,2008,5904,1834,7,16,6200,1742,2495,1410,1080,589,3329,999,26,55,4300,1280,0,193,"N/A","N/A",8716,2938,784,1131,133,133,8008,2159,1876,852,3248,1760,1622,727,358,382,717,499]
[null,null,null,null,null,null,null,null,507752,20202,9993,3132,6759,2614,18908,3870,13781,3771,62702,8792,16616,3638,2769,1124,181,168,1189,610,31259,6252,20362,3365,5040,2386,2387,1190,19672,3645,8264,2734,4934,2063,12699,3202,6040,2224,29348,5712,1293,1284,4969,2026,4813,1584,9501,2273,2803,948,6402,2032,12319,2205,1813,986,4794,2045,8266,4162,761,749,6797,2141,16762,3127,20274,4211,22660,6953,989,542,8728,1739,26284,4418,3827,1684,10449,2158,1763,1605,4470,1665,1264,757,10368,2623,"N/A","N/A",4610,2045,113,135,17734,4904,11630,2741,1729,938,4192,1322,2472,1676,4435,1611]
[null,null,null,null,null,null,null,null,87870,7490,126,171,2819,1292,7966,2419,361,402,15286,2837,5350,1845,142,168,0,181,0,181,2428,1105,1142,622,1436,876,5129,1135,1588,802,475,296,2791,2779,398,333,217,221,345,313,380,339,613,361,1503,1343,1670,1210,385,300,284,229,1553,769,1057,729,489,384,5391,1743,507,442,437,322,686,505,2129,924,842,611,175,218,1875,881,1338,691,4089,2693,944,450,351,571,60,100,47,74,863,529,3605,1278,"N/A","N/A",39,63,1369,668,3529,1319,0,181,1445,1512,2216,715,239,190]
[null,null,null,null,null,null,null,null,24431,2713,16,23,93,153,127,165,0,143,1112,537,382,296,1626,540,0,143,116,134,966,519,56,81,6,10,0,143,230,221,68,81,30,43,0,143,1243,1690,73,105,883,546,862,396,3318,657,284,246,315,349,0,143,23,26,147,189,0,143,17,37,2893,812,833,364,74,89,4780,921,328,248,0,143,214,247,11,13,26,38,935,525,341,220,124,208,39,66,193,185,493,334,81,96,"N/A","N/A",728,427,98,109,0,143,151,115,96,102,0,143]
[null,null,null,null,null,null,null,null,250653,11997,2515,990,1906,1287,2420,1030,445,319,14780,2760,5352,1834,2725,1001,2279,1465,10964,4084,19574,3694,9535,1889,3823,1460,652,411,7089,3237,2663,1228,221,209,1144,669,3908,1422,1638,936,1144,689,23925,4264,3767,1503,2982,1136,2294,1414,1344,730,1914,837,658,433,357,313,973,522,535,398,9073,2029,947,637,15893,3260,25575,4182,852,1019,5622,1519,2810,1873,1541,1069,14190,2998,1605,731,7936,2435,35,57,6189,1858,12944,2828,2092,994,423,437,"N/A","N/A",4160,1420,3839,1234,1258,880,143,166,516,466]
[null,null,null,null,null,null,null,null,215494,12552,1507,730,4328,1682,8362,2641,1413,1121,45597,5884,5195,2150,2901,1138,100,164,773,528,9370,2417,6363,2288,5239,2393,10604,2191,4298,1727,1089,521,1159,845,2544,1029,1368,911,1646,915,532,655,1191,923,2911,1011,3470,1605,2703,1971,615,444,2802,1017,2919,1013,682,456,5671,2919,309,248,2300,1441,872,527,5562,1947,4088,1854,217,200,3192,1400,1223,768,25525,4052,3397,1799,97,162,2727,1542,94,155,3206,1819,14196,3417,5298,1995,223,216,3839,1320,"N/A","N/A",215,271,1168,638,394,495,1025,878]
[null,null,null,null,null,null,null,null,47125,4317,477,339,306,455,79,129,0,182,1231,516,104,114,143,177,674,525,294,194,1919,666,1108,483,166,277,181,250,220,190,328,406,68,111,39,64,2249,1019,90,88,35,74,5352,1897,164,191,778,581,20,37,0,182,59,76,0,182,0,182,229,268,129,147,1213,679,81,90,1721,965,4683,1933,175,215,6757,1474,520,447,118,207,5208,1699,0,182,1098,671,36,65,1061,513,622,415,0,182,54,89,6317,1774,297,285,"N/A","N/A",470,555,252,395,79,123]
[null,null,null,null,null,null,null,null,99192,6959,323,262,236,193,3257,1696,253,216,5347,2126,1600,604,657,432,296,475,15,25,4937,1590,970,396,333,416,360,231,22285,3020,2480,1136,4161,1283,1160,1199,635,502,598,403,233,195,1306,586,489,356,3917,1160,18965,2405,238,211,1263,681,784,512,324,240,1163,682,3,7,606,477,526,553,2033,980,2939,1454,284,318,2610,1053,289,204,945,601,1563,750,144,157,1053,675,329,220,1051,638,2765,1112,900,1091,62,88,1267,916,1208,416,0,145,"N/A","N/A",30,46,975,943]
[null,null,null,null,null,null,null,null,31149,3430,260,284,590,661,2014,1234,244,405,2035,720,5599,1618,0,185,0,185,0,185,733,572,166,173,0,185,745,481,905,823,179,179,259,273,539,412,4,10,88,100,0,185,294,304,548,638,965,730,290,240,136,229,244,257,1901,789,1216,559,355,304,0,185,121,147,604,658,231,252,459,399,338,300,819,447,964,670,893,605,230,254,0,185,122,201,1175,730,4,7,1427,920,1710,948,0,185,138,169,1323,785,0,185,282,210,"N/A","N/A",16,27]
[null,null,null,null,null,null,null,null,20044,2902,8,15,57,94,54,90,93,158,519,484,0,214,370,365,0,214,0,214,4192,1203,232,300,110,172,0,214,1021,602,121,153,0,214,143,240,37,72,59,101,0,214,108,177,2258,1289,435,451,0,214,0,214,0,214,0,214,0,214,0,214,0,214,1922,1129,28,48,2314,761,638,565,0,214,328,499,0,214,0,214,2313,1063,624,688,4,7,0,214,15,31,360,291,0,214,0,214,684,777,0,214,8,15,989,654,0,214,"N/A","N/A"]

{"sheet":"r-AttributeofDestination","index":13,"n_rows":54,"n_cols":49,"rows_kept":54,"cut":false,"hidden":true,"merged":[]}
[null,"Previous Residence:","Persons under 5 years, percent, 2012                                                    PCT    1          6.4      0.0      13.3 CENSUS","Persons  under 18 years, percent, 2012                                                  PCT    1         23.5      0.0      41.4 CENSUS","Persons 65 years and over, percent, 2012                                                PCT    1         13.7      3.6      49.3 CENSUS","Female persons, percent, 2012                                                           PCT    1         50.8     30.1      57.0 CENSUS","White alone, percent, 2012                                                              PCT    1         77.9      4.1      99.2 CENSUS","Black or African American alone, percent, 2012                                          PCT    1         13.1      0.0      85.4 CENSUS","American Indian and Alaska Native alone, percent, 2012                                  PCT    1          1.2      0.0      93.2 CENSUS","Asian alone, percent, 2012                                                              PCT    1          5.1      0.0      43.3 CENSUS","Native Hawaiian and Other Pacific Islander alone, percent, 2012                         PCT    1          0.2      0.0      48.9 CENSUS","Two or More Races, percent, 2012                                                        PCT    1          2.4      0.0      29.5 CENSUS","Hispanic or Latino, percent, 2012                                                       PCT    1         16.9      0.2      95.6 CENSUS","White alone, not Hispanic or Latino, percent, 2012                                      PCT    1         63.0      3.2      98.6 CENSUS","Living in same house 1 year & over, percent, 2008-2012                                  PCT    1         84.8     50.8     100.0 CENSUS","Foreign born persons, percent, 2008-2012                                                PCT    1         12.9      0.0      58.9 CENSUS","Language other than English spoken at home, pct age 5+, 2008-2012                       PCT    1         20.5      0.0      95.4 CENSUS","High school graduate or higher, percent of persons age 25+, 2008-2012                   PCT    1         85.7     44.9      97.5 CENSUS","Bachelor's degree or higher, percent of persons age 25+, 2008-2012                      PCT    1         28.5      3.7      72.8 CENSUS","Veterans, 2008-2012                                                                     ABS    0     21853912        2  21853912 CENSUS","Mean travel time to work (minutes), workers age 16+, 2008-2012                          MIN    1         25.4      4.3      42.6 CENSUS","Housing units, 2012                                                                     ABS    0    132452405       50 132452405 CENSUS","Homeownership rate, 2008-2012                                                           PCT    1         65.5      0.0      94.7 CENSUS","Housing units in multi-unit structures, percent, 2008-2012                              PCT    1         25.9      0.0      98.4 CENSUS","Median value of owner-occupied housing units, 2008-2012                                 DOL    0       181400    19400    944100 CENSUS","Households, 2008-2012                                                                   ABS    0    115226802       35 115226802 CENSUS","Persons per household, 2008-2012                                                        AVG    2         2.61     1.29      4.70 CENSUS","Per capita money income in past 12 months (2012 dollars), 2008-2012                     DOL    0        28051     8809     61951 CENSUS","Median household income, 2008-2012                                                      DOL    0        53046    19624    122844 CENSUS","Persons below poverty level, percent, 2008-2012                                         PCT    1         14.9      0.0      49.5 CENSUS","Private nonfarm establishments, 2011                                                    ABS    0      7354043        3   7354043 CENSUS","Private nonfarm employment,  2011                                                       ABS    0    113425965       10 113425965 CENSUS","Private nonfarm employment, percent change, 2010-2011                                   PCT    1          1.3    -40.8     288.2 CENSUS","Nonemployer establishments, 2011                                                        ABS    0     22491080       13  22491080 CENSUS","Total number of firms, 2007                                                             ABS    0     27092908       27  27092908 CENSUS","Black-owned firms, percent, 2007                                                        PCT    1          7.1      0.2      66.7 CENSUS","American Indian- and Alaska Native-owned firms, percent, 2007                           PCT    1          0.9      0.2      71.8 CENSUS","Asian-owned firms, percent, 2007                                                        PCT    1          5.7      0.3      56.6 CENSUS","Native Hawaiian- and Other Pacific Islander-owned firms, percent, 2007                  PCT    1          0.1      0.0      10.5 CENSUS","Hispanic-owned firms, percent, 2007                                                     PCT    1          8.3      0.3      78.0 CENSUS","Women-owned firms, percent, 2007                                                        PCT    1         28.8      6.5      56.2 CENSUS","Manufacturers shipments, 2007 ($1,000)                                                  TH$    0   5319456312    569035319456312 CENSUS","Merchant wholesaler sales, 2007 ($1,000)                                                TH$    0   4174286516        04174286516 CENSUS","Retail sales, 2007 ($1,000)                                                             TH$    0   3917663456        03917663456 CENSUS","Retail sales per capita, 2007                                                           DOL    0        12990        0     80800 CENSUS","Accommodation and food services sales, 2007 ($1,000)                                    TH$    0    613795732        0 613795732 CENSUS","Building permits, 2012                                                                  ABS    0       829658        0    829658 CENSUS","Land area in square miles, 2010                                                         SQM    2   3531905.43        23531905.43 CENSUS","Population per square mile, 2010                                                        RTE    1         87.4      0.0   69467.5 CENSUS"]
[null,"United States",{"$f":"CORREL('Migration 2010'!$I$11:$I$62,Demographics!G$11:G$62)","v":5.1890940831223288E-2},{"$f":"CORREL('Migration 2010'!$I$11:$I$62,Demographics!H$11:H$62)","v":8.6990095098073913E-2},{"$f":"CORREL('Migration 2010'!$I$11:$I$62,Demographics!I$11:I$62)","v":-0.12863576525470602},{"$f":"CORREL('Migration 2010'!$I$11:$I$62,Demographics!J$11:J$62)","v":0.23473386345989614},{"$f":"CORREL('Migration 2010'!$I$11:$I$62,Demographics!K$11:K$62)","v":-0.20836576560686751},{"$f":"CORREL('Migration 2010'!$I$11:$I$62,Demographics!L$11:L$62)","v":0.30541549455328171},{"$f":"CORREL('Migration 2010'!$I$11:$I$62,Demographics!M$11:M$62)","v":-0.21987213315799281},{"$f":"CORREL('Migration 2010'!$I$11:$I$62,Demographics!N$11:N$62)","v":0.13047245134688215},{"$f":"CORREL('Migration 2010'!$I$11:$I$62,Demographics!O$11:O$62)","v":-0.10289552912607987},{"$f":"CORREL('Migration 2010'!$I$11:$I$62,Demographics!P$11:P$62)","v":-9.6860943939884342E-2},{"$f":"CORREL('Migration 2010'!$I$11:$I$62,Demographics!Q$11:Q$62)","v":0.54788789678457384},{"$f":"CORREL('Migration 2010'!$I$11:$I$62,Demographics!R$11:R$62)","v":-0.49985093229891475},{"$f":"CORREL('Migration 2010'!$I$11:$I$62,Demographics!S$11:S$62)","v":-4.0190139832930807E-2},{"$f":"CORREL('Migration 2010'!$I$11:$I$62,Demographics!T$11:T$62)","v":0.60091456847444735},{"$f":"CORREL('Migration 2010'!$I$11:$I$62,Demographics!U$11:U$62)","v":0.56790038563367862},{"$f":"CORREL('Migration 2010'!$I$11:$I$62,Demographics!V$11:V$62)","v":-0.47353625695079954},{"$f":"CORREL('Migration 2010'!$I$11:$I$62,Demographics!W$11:W$62)","v":0.11877560772422584},{"$f":"CORREL('Migration 2010'!$I$11:$I$62,Demographics!X$11:X$62)","v":0.95758835361265271},{"$f":"CORREL('Migration 2010'!$I$11:$I$62,Demographics!Y$11:Y$62)","v":0.50199517820394501},{"$f":"CORREL('Migration 2010'!$I$11:$I$62,Demographics!Z$11:Z$62)","v":0.92218161912120378},{"$f":"CORREL('Migration 2010'!$I$11:$I$62,Demographics!AA$11:AA$62)","v":-0.38390837456736399},{"$f":"CORREL('Migration 2010'!$I$11:$I$62,Demographics!AB$11:AB$62)","v":0.252917008490256},{"$f":"CORREL('Migration 2010'!$I$11:$I$62,Demographics!AC$11:AC$62)","v":0.10279920295066143},{"$f":"CORREL('Migration 2010'!$I$11:$I$62,Demographics!AD$11:AD$62)","v":0.90810107848298205},{"$f":"CORREL('Migration 2010'!$I$11:$I$62,Demographics!AE$11:AE$62)","v":0.36108008694316646},{"$f":"CORREL('Migration 2010'!$I$11:$I$62,Demographics!AF$11:AF$62)","v":6.3770818987432587E-2},{"$f":"CORREL('Migration 2010'!$I$11:$I$62,Demographics!AG$11:AG$62)","v":2.7385346149617053E-2},{"$f":"CORREL('Migration 2010'!$I$11:$I$62,Demographics!AH$11:AH$62)","v":0.23558854941285318},{"$f":"CORREL('Migration 2010'!$I$11:$I$62,Demographics!AI$11:AI$62)","v":0.8922105264672977},{"$f":"CORREL('Migration 2010'!$I$11:$I$62,Demographics!AJ$11:AJ$62)","v":0.89405534330668768},{"$f":"CORREL('Migration 2010'!$I$11:$I$62,Demographics!AK$11:AK$62)","v":0.28658021133062556},{"$f":"CORREL('Migration 2010'!$I$11:$I$62,Demographics!AL$11:AL$62)","v":0.90255162270802469},{"$f":"CORREL('Migration 2010'!$I$11:$I$62,Demographics!AM$11:AM$62)","v":0.89668607322630778},{"$f":"CORREL('Migration 2010'!$I$11:$I$62,Demographics!AN$11:AN$62)","v":0.36013347529483591},{"$f":"CORREL('Migration 2010'!$I$11:$I$62,Demographics!AO$11:AO$62)","v":-0.13292706743410487},{"$f":"CORREL('Migration 2010'!$I$11:$I$62,Demographics!AP$11:AP$62)","v":0.14973392132731683},{"$f":"CORREL('Migration 2010'!$I$11:$I$62,Demographics!AQ$11:AQ$62)","v":-8.2078295051464814E-2},{"$f":"CORREL('Migration 2010'!$I$11:$I$62,Demographics!AR$11:AR$62)","v":0.66794502612069773},{"$f":"CORREL('Migration 2010'!$I$11:$I$62,Demographics!AS$11:AS$62)","v":0.48111596263291007},{"$f":"CORREL('Migration 2010'!$I$11:$I$62,Demographics!AT$11:AT$62)","v":0.74123287514557101},{"$f":"CORREL('Migration 2010'!$I$11:$I$62,Demographics!AU$11:AU$62)","v":0.81729181325439182},{"$f":"CORREL('Migration 2010'!$I$11:$I$62,Demographics!AV$11:AV$62)","v":0.91055743789139376},{"$f":"CORREL('Migration 2010'!$I$11:$I$62,Demographics!AW$11:AW$62)","v":-0.26881101055901457},{"$f":"CORREL('Migration 2010'!$I$11:$I$62,Demographics!AX$11:AX$62)","v":0.8508942724014511},{"$f":"CORREL('Migration 2010'!$I$11:$I$62,Demographics!AY$11:AY$62)","v":0.87388980203227251},{"$f":"CORREL('Migration 2010'!$I$11:$I$62,Demographics!AZ$11:AZ$62)","v":0.12263002625796211},{"$f":"CORREL('Migration 2010'!$I$11:$I$62,Demographics!BA$11:BA$62)","v":0.11461254752477724}]
[null,"Alabama",{"$f":"CORREL('Migration 2010'!$J$11:$J$62,Demographics!G$11:G$62)","v":5.9640468531517901E-2},{"$f":"CORREL('Migration 2010'!$J$11:$J$62,Demographics!H$11:H$62)","v":8.680905410491796E-2},{"$f":"CORREL('Migration 2010'!$J$11:$J$62,Demographics!I$11:I$62)","v":-4.6347800357101052E-2},{"$f":"CORREL('Migration 2010'!$J$11:$J$62,Demographics!J$11:J$62)","v":0.27355854115933204},{"$f":"CORREL('Migration 2010'!$J$11:$J$62,Demographics!K$11:K$62)","v":-0.33053522182821876},{"$f":"CORREL('Migration 2010'!$J$11:$J$62,Demographics!L$11:L$62)","v":0.5711847025985739},{"$f":"CORREL('Migration 2010'!$J$11:$J$62,Demographics!M$11:M$62)","v":-0.18733836762656939},{"$f":"CORREL('Migration 2010'!$J$11:$J$62,Demographics!N$11:N$62)","v":-4.9983739572043155E-2},{"$f":"CORREL('Migration 2010'!$J$11:$J$62,Demographics!O$11:O$62)","v":-7.513436858610445E-2},{"$f":"CORREL('Migration 2010'!$J$11:$J$62,Demographics!P$11:P$62)","v":-0.1136288070019917},{"$f":"CORREL('Migration 2010'!$J$11:$J$62,Demographics!Q$11:Q$62)","v":0.16600422968950879},{"$f":"CORREL('Migration 2010'!$J$11:$J$62,Demographics!R$11:R$62)","v":-0.37089113793259687},{"$f":"CORREL('Migration 2010'!$J$11:$J$62,Demographics!S$11:S$62)","v":-5.1753236293865801E-2},{"$f":"CORREL('Migration 2010'!$J$11:$J$62,Demographics!T$11:T$62)","v":0.1812236123703507},{"$f":"CORREL('Migration 2010'!$J$11:$J$62,Demographics!U$11:U$62)","v":0.14858664509612476},{"$f":"CORREL('Migration 2010'!$J$11:$J$62,Demographics!V$11:V$62)","v":-0.50650479078636623},{"$f":"CORREL('Migration 2010'!$J$11:$J$62,Demographics!W$11:W$62)","v":-0.20885412482651711},{"$f":"CORREL('Migration 2010'!$J$11:$J$62,Demographics!X$11:X$62)","v":0.54260226744369966},{"$f":"CORREL('Migration 2010'!$J$11:$J$62,Demographics!Y$11:Y$62)","v":0.26681278306692191},{"$f":"CORREL('Migration 2010'!$J$11:$J$62,Demographics!Z$11:Z$62)","v":0.48509870316806047},{"$f":"CORREL('Migration 2010'!$J$11:$J$62,Demographics!AA$11:AA$62)","v":-5.9102453555774197E-2},{"$f":"CORREL('Migration 2010'!$J$11:$J$62,Demographics!AB$11:AB$62)","v":-4.3344250741184115E-2},{"$f":"CORREL('Migration 2010'!$J$11:$J$62,Demographics!AC$11:AC$62)","v":-0.18308761126704373},{"$f":"CORREL('Migration 2010'!$J$11:$J$62,Demographics!AD$11:AD$62)","v":0.4520158435472445},{"$f":"CORREL('Migration 2010'!$J$11:$J$62,Demographics!AE$11:AE$62)","v":0.22492499187808357},{"$f":"CORREL('Migration 2010'!$J$11:$J$62,Demographics!AF$11:AF$62)","v":-0.24150536591026409},{"$f":"CORREL('Migration 2010'!$J$11:$J$62,Demographics!AG$11:AG$62)","v":-0.27048153485515858},{"$f":"CORREL('Migration 2010'!$J$11:$J$62,Demographics!AH$11:AH$62)","v":0.45714336289606339},{"$f":"CORREL('Migration 2010'!$J$11:$J$62,Demographics!AI$11:AI$62)","v":0.42768540934707777},{"$f":"CORREL('Migration 2010'!$J$11:$J$62,Demographics!AJ$11:AJ$62)","v":0.42125824937696937},{"$f":"CORREL('Migration 2010'!$J$11:$J$62,Demographics!AK$11:AK$62)","v":0.14770141842806969},{"$f":"CORREL('Migration 2010'!$J$11:$J$62,Demographics!AL$11:AL$62)","v":0.48807397081596338},{"$f":"CORREL('Migration 2010'!$J$11:$J$62,Demographics!AM$11:AM$62)","v":0.46532644878269669},{"$f":"CORREL('Migration 2010'!$J$11:$J$62,Demographics!AN$11:AN$62)","v":0.61697526787571588},{"$f":"CORREL('Migration 2010'!$J$11:$J$62,Demographics!AO$11:AO$62)","v":-0.10597873781761012},{"$f":"CORREL('Migration 2010'!$J$11:$J$62,Demographics!AP$11:AP$62)","v":9.9140835622335225E-3},{"$f":"CORREL('Migration 2010'!$J$11:$J$62,Demographics!AQ$11:AQ$62)","v":-4.7388239703600538E-2},{"$f":"CORREL('Migration 2010'!$J$11:$J$62,Demographics!AR$11:AR$62)","v":0.40035242383351166},{"$f":"CORREL('Migration 2010'!$J$11:$J$62,Demographics!AS$11:AS$62)","v":0.24548581493658364},{"$f":"CORREL('Migration 2010'!$J$11:$J$62,Demographics!AT$11:AT$62)","v":0.36063346695268528},{"$f":"CORREL('Migration 2010'!$J$11:$J$62,Demographics!AU$11:AU$62)","v":0.37114323672277483},{"$f":"CORREL('Migration 2010'!$J$11:$J$62,Demographics!AV$11:AV$62)","v":0.45281949901098634},{"$f":"CORREL('Migration 2010'!$J$11:$J$62,Demographics!AW$11:AW$62)","v":-0.2317508941390545},{"$f":"CORREL('Migration 2010'!$J$11:$J$62,Demographics!AX$11:AX$62)","v":0.40428626895149561},{"$f":"CORREL('Migration 2010'!$J$11:$J$62,Demographics!AY$11:AY$62)","v":0.55269850755757555},{"$f":"CORREL('Migration 2010'!$J$11:$J$62,Demographics!AZ$11:AZ$62)","v":2.4305912821285493E-2},{"$f":"CORREL('Migration 2010'!$J$11:$J$62,Demographics!BA$11:BA$62)","v":1.2995166458708094E-3}]
[null,"Alaska",{"$f":"CORREL('Migration 2010'!$K$11:$K$62,Demographics!G$11:G$62)","v":0.23361400600521734},{"$f":"CORREL('Migration 2010'!$K$11:$K$62,Demographics!H$11:H$62)","v":0.22922007482269671},{"$f":"CORREL('Migration 2010'!$K$11:$K$62,Demographics!I$11:I$62)","v":-0.34586148082712126},{"$f":"CORREL('Migration 2010'!$K$11:$K$62,Demographics!J$11:J$62)","v":6.925082431081051E-3},{"$f":"CORREL('Migration 2010'!$K$11:$K$62,Demographics!K$11:K$62)","v":-0.156165104457273},{"$f":"CORREL('Migration 2010'!$K$11:$K$62,Demographics!L$11:L$62)","v":0.13724544226938223},{"$f":"CORREL('Migration 2010'!$K$11:$K$62,Demographics!M$11:M$62)","v":-9.0189180594579962E-2},{"$f":"CORREL('Migration 2010'!$K$11:$K$62,Demographics!N$11:N$62)","v":0.16390226155331425},{"$f":"CORREL('Migration 2010'!$K$11:$K$62,Demographics!O$11:O$62)","v":-4.2238746334195602E-2},{"$f":"CORREL('Migration 2010'!$K$11:$K$62,Demographics!P$11:P$62)","v":-2.2093259350084278E-2},{"$f":"CORREL('Migration 2010'!$K$11:$K$62,Demographics!Q$11:Q$62)","v":0.55508550501111831},{"$f":"CORREL('Migration 2010'!$K$11:$K$62,Demographics!R$11:R$62)","v":-0.46210352106303365},{"$f":"CORREL('Migration 2010'!$K$11:$K$62,Demographics!S$11:S$62)","v":-0.15422738343098497},{"$f":"CORREL('Migration 2010'!$K$11:$K$62,Demographics!T$11:T$62)","v":0.54037078062397093},{"$f":"CORREL('Migration 2010'!$K$11:$K$62,Demographics!U$11:U$62)","v":0.5579731390591538},{"$f":"CORREL('Migration 2010'!$K$11:$K$62,Demographics!V$11:V$62)","v":-0.4595366440226985},{"$f":"CORREL('Migration 2010'!$K$11:$K$62,Demographics!W$11:W$62)","v":6.4253391997127485E-2},{"$f":"CORREL('Migration 2010'!$K$11:$K$62,Demographics!X$11:X$62)","v":0.82406956354147443},{"$f":"CORREL('Migration 2010'!$K$11:$K$62,Demographics!Y$11:Y$62)","v":0.36472417138126539},{"$f":"CORREL('Migration 2010'!$K$11:$K$62,Demographics!Z$11:Z$62)","v":0.81524325867662595},{"$f":"CORREL('Migration 2010'!$K$11:$K$62,Demographics!AA$11:AA$62)","v":-0.43704192079915644},{"$f":"CORREL('Migration 2010'!$K$11:$K$62,Demographics!AB$11:AB$62)","v":0.19084907029623652},{"$f":"CORREL('Migration 2010'!$K$11:$K$62,Demographics!AC$11:AC$62)","v":0.14147032929891648},{"$f":"CORREL('Migration 2010'!$K$11:$K$62,Demographics!AD$11:AD$62)","v":0.8118738214165826},{"$f":"CORREL('Migration 2010'!$K$11:$K$62,Demographics!AE$11:AE$62)","v":0.4469838402252736},{"$f":"CORREL('Migration 2010'!$K$11:$K$62,Demographics!AF$11:AF$62)","v":4.372775865894768E-3},{"$f":"CORREL('Migration 2010'!$K$11:$K$62,Demographics!AG$11:AG$62)","v":3.9369132053044271E-2},{"$f":"CORREL('Migration 2010'!$K$11:$K$62,Demographics!AH$11:AH$62)","v":0.25159617661650696},{"$f":"CORREL('Migration 2010'!$K$11:$K$62,Demographics!AI$11:AI$62)","v":0.80461287008572369},{"$f":"CORREL('Migration 2010'!$K$11:$K$62,Demographics!AJ$11:AJ$62)","v":0.80417637132680475},{"$f":"CORREL('Migration 2010'!$K$11:$K$62,Demographics!AK$11:AK$62)","v":0.17931716896500513},{"$f":"CORREL('Migration 2010'!$K$11:$K$62,Demographics!AL$11:AL$62)","v":0.83313059173778647},{"$f":"CORREL('Migration 2010'!$K$11:$K$62,Demographics!AM$11:AM$62)","v":0.82035741504188786},{"$f":"CORREL('Migration 2010'!$K$11:$K$62,Demographics!AN$11:AN$62)","v":0.19883723720141569},{"$f":"CORREL('Migration 2010'!$K$11:$K$62,Demographics!AO$11:AO$62)","v":1.1457884601086345E-2},{"$f":"CORREL('Migration 2010'!$K$11:$K$62,Demographics!AP$11:AP$62)","v":0.17240134645500865},{"$f":"CORREL('Migration 2010'!$K$11:$K$62,Demographics!AQ$11:AQ$62)","v":-4.8436000041988753E-2},{"$f":"CORREL('Migration 2010'!$K$11:$K$62,Demographics!AR$11:AR$62)","v":0.62319160888261771},{"$f":"CORREL('Migration 2010'!$K$11:$K$62,Demographics!AS$11:AS$62)","v":0.36347768716571877},{"$f":"CORREL('Migration 2010'!$K$11:$K$62,Demographics!AT$11:AT$62)","v":0.70350763716394382},{"$f":"CORREL('Migration 2010'!$K$11:$K$62,Demographics!AU$11:AU$62)","v":0.78592019304091376},{"$f":"CORREL('Migration 2010'!$K$11:$K$62,Demographics!AV$11:AV$62)","v":0.82349353612750842},{"$f":"CORREL('Migration 2010'!$K$11:$K$62,Demographics!AW$11:AW$62)","v":-0.22681699606115791},{"$f":"CORREL('Migration 2010'!$K$11:$K$62,Demographics!AX$11:AX$62)","v":0.7635531278703459},{"$f":"CORREL('Migration 2010'!$K$11:$K$62,Demographics!AY$11:AY$62)","v":0.85592343477223987},{"$f":"CORREL('Migration 2010'!$K$11:$K$62,Demographics!AZ$11:AZ$62)","v":0.58944824542330698},{"$f":"CORREL('Migration 2010'!$K$11:$K$62,Demographics!BA$11:BA$62)","v":-4.1750799092758362E-2}]
[null,"Arizona",{"$f":"CORREL('Migration 2010'!$L$11:$L$62,Demographics!G$11:G$62)","v":0.29440266553605848},{"$f":"CORREL('Migration 2010'!$L$11:$L$62,Demographics!H$11:H$62)","v":0.32306161674681161},{"$f":"CORREL('Migration 2010'!$L$11:$L$62,Demographics!I$11:I$62)","v":-0.39805024938903444},{"$f":"CORREL('Migration 2010'!$L$11:$L$62,Demographics!J$11:J$62)","v":-0.17800465809228394},{"$f":"CORREL('Migration 2010'!$L$11:$L$62,Demographics!K$11:K$62)","v":-1.1282452449045624E-2},{"$f":"CORREL('Migration 2010'!$L$11:$L$62,Demographics!L$11:L$62)","v":-0.12253805839446279},{"$f":"CORREL('Migration 2010'!$L$11:$L$62,Demographics!M$11:M$62)","v":-1.0257021082467345E-2},{"$f":"CORREL('Migration 2010'!$L$11:$L$62,Demographics!N$11:N$62)","v":0.22785581017441159},{"$f":"CORREL('Migration 2010'!$L$11:$L$62,Demographics!O$11:O$62)","v":-5.9343296919259691E-3},{"$f":"CORREL('Migration 2010'!$L$11:$L$62,Demographics!P$11:P$62)","v":2.2380983957059015E-2},{"$f":"CORREL('Migration 2010'!$L$11:$L$62,Demographics!Q$11:Q$62)","v":0.69009249297100583},{"$f":"CORREL('Migration 2010'!$L$11:$L$62,Demographics!R$11:R$62)","v":-0.41701632698692109},{"$f":"CORREL('Migration 2010'!$L$11:$L$62,Demographics!S$11:S$62)","v":-0.26094621120869943},{"$f":"CORREL('Migration 2010'!$L$11:$L$62,Demographics!T$11:T$62)","v":0.54974494033260646},{"$f":"CORREL('Migration 2010'!$L$11:$L$62,Demographics!U$11:U$62)","v":0.62690559583238814},{"$f":"CORREL('Migration 2010'!$L$11:$L$62,Demographics!V$11:V$62)","v":-0.31061904817496627},{"$f":"CORREL('Migration 2010'!$L$11:$L$62,Demographics!W$11:W$62)","v":0.12734322675069878},{"$f":"CORREL('Migration 2010'!$L$11:$L$62,Demographics!X$11:X$62)","v":0.68555099181205703},{"$f":"CORREL('Migration 2010'!$L$11:$L$62,Demographics!Y$11:Y$62)","v":0.18004548868971179},{"$f":"CORREL('Migration 2010'!$L$11:$L$62,Demographics!Z$11:Z$62)","v":0.71037762074718691},{"$f":"CORREL('Migration 2010'!$L$11:$L$62,Demographics!AA$11:AA$62)","v":-0.45823248375712411},{"$f":"CORREL('Migration 2010'!$L$11:$L$62,Demographics!AB$11:AB$62)","v":0.15519262188613195},{"$f":"CORREL('Migration 2010'!$L$11:$L$62,Demographics!AC$11:AC$62)","v":0.25151497673328843},{"$f":"CORREL('Migration 2010'!$L$11:$L$62,Demographics!AD$11:AD$62)","v":0.72929491248955203},{"$f":"CORREL('Migration 2010'!$L$11:$L$62,Demographics!AE$11:AE$62)","v":0.5037025125104988},{"$f":"CORREL('Migration 2010'!$L$11:$L$62,Demographics!AF$11:AF$62)","v":2.9064271808498656E-2},{"$f":"CORREL('Migration 2010'!$L$11:$L$62,Demographics!AG$11:AG$62)","v":0.12361535348964578},{"$f":"CORREL('Migration 2010'!$L$11:$L$62,Demographics!AH$11:AH$62)","v":0.11355471892893637},{"$f":"CORREL('Migration 2010'!$L$11:$L$62,Demographics!AI$11:AI$62)","v":0.74027783941968672},{"$f":"CORREL('Migration 2010'!$L$11:$L$62,Demographics!AJ$11:AJ$62)","v":0.73887800971739048},{"$f":"CORREL('Migration 2010'!$L$11:$L$62,Demographics!AK$11:AK$62)","v":0.10344287844622707},{"$f":"CORREL('Migration 2010'!$L$11:$L$62,Demographics!AL$11:AL$62)","v":0.75563322570028935},{"$f":"CORREL('Migration 2010'!$L$11:$L$62,Demographics!AM$11:AM$62)","v":0.75329284670043628},{"$f":"CORREL('Migration 2010'!$L$11:$L$62,Demographics!AN$11:AN$62)","v":-7.1242147390576244E-2},{"$f":"CORREL('Migration 2010'!$L$11:$L$62,Demographics!AO$11:AO$62)","v":2.4023021146933089E-2},{"$f":"CORREL('Migration 2010'!$L$11:$L$62,Demographics!AP$11:AP$62)","v":0.20389530227993166},{"$f":"CORREL('Migration 2010'!$L$11:$L$62,Demographics!AQ$11:AQ$62)","v":-2.3610718081773435E-2},{"$f":"CORREL('Migration 2010'!$L$11:$L$62,Demographics!AR$11:AR$62)","v":0.56555219831029746},{"$f":"CORREL('Migration 2010'!$L$11:$L$62,Demographics!AS$11:AS$62)","v":0.30001982313778486},{"$f":"CORREL('Migration 2010'!$L$11:$L$62,Demographics!AT$11:AT$62)","v":0.66167421622351552},{"$f":"CORREL('Migration 2010'!$L$11:$L$62,Demographics!AU$11:AU$62)","v":0.75931144703357534},{"$f":"CORREL('Migration 2010'!$L$11:$L$62,Demographics!AV$11:AV$62)","v":0.75487144106113013},{"$f":"CORREL('Migration 2010'!$L$11:$L$62,Demographics!AW$11:AW$62)","v":-0.13639661202151737},{"$f":"CORREL('Migration 2010'!$L$11:$L$62,Demographics!AX$11:AX$62)","v":0.79224975912060425},{"$f":"CORREL('Migration 2010'!$L$11:$L$62,Demographics!AY$11:AY$62)","v":0.60221781045161316},{"$f":"CORREL('Migration 2010'!$L$11:$L$62,Demographics!AZ$11:AZ$62)","v":0.30165811833380451},{"$f":"CORREL('Migration 2010'!$L$11:$L$62,Demographics!BA$11:BA$62)","v":-9.8260195183076923E-2}]
[null,"Arkansas",{"$f":"CORREL('Migration 2010'!$M$11:$M$62,Demographics!G$11:G$62)","v":0.26270266088056099},{"$f":"CORREL('Migration 2010'!$M$11:$M$62,Demographics!H$11:H$62)","v":0.29447607208594545},{"$f":"CORREL('Migration 2010'!$M$11:$M$62,Demographics!I$11:I$62)","v":-0.22203101846179571},{"$f":"CORREL('Migration 2010'!$M$11:$M$62,Demographics!J$11:J$62)","v":7.0408623043383911E-2},{"$f":"CORREL('Migration 2010'!$M$11:$M$62,Demographics!K$11:K$62)","v":-0.11545982146451268},{"$f":"CORREL('Migration 2010'!$M$11:$M$62,Demographics!L$11:L$62)","v":0.21781810852524308},{"$f":"CORREL('Migration 2010'!$M$11:$M$62,Demographics!M$11:M$62)","v":-4.1028417298857485E-2},{"$f":"CORREL('Migration 2010'!$M$11:$M$62,Demographics!N$11:N$62)","v":-3.9831856211534074E-2},{"$f":"CORREL('Migration 2010'!$M$11:$M$62,Demographics!O$11:O$62)","v":-8.5038034421060754E-2},{"$f":"CORREL('Migration 2010'!$M$11:$M$62,Demographics!P$11:P$62)","v":-6.818826362364945E-2},{"$f":"CORREL('Migration 2010'!$M$11:$M$62,Demographics!Q$11:Q$62)","v":0.35083677586518247},{"$f":"CORREL('Migration 2010'!$M$11:$M$62,Demographics!R$11:R$62)","v":-0.32006070715333168},{"$f":"CORREL('Migration 2010'!$M$11:$M$62,Demographics!S$11:S$62)","v":-0.16734632145948913},{"$f":"CORREL('Migration 2010'!$M$11:$M$62,Demographics!T$11:T$62)","v":0.15845168109425847},{"$f":"CORREL('Migration 2010'!$M$11:$M$62,Demographics!U$11:U$62)","v":0.24373045186308567},{"$f":"CORREL('Migration 2010'!$M$11:$M$62,Demographics!V$11:V$62)","v":-0.4994934508372153},{"$f":"CORREL('Migration 2010'!$M$11:$M$62,Demographics!W$11:W$62)","v":-0.21846207574085605},{"$f":"CORREL('Migration 2010'!$M$11:$M$62,Demographics!X$11:X$62)","v":0.5464133345111678},{"$f":"CORREL('Migration 2010'!$M$11:$M$62,Demographics!Y$11:Y$62)","v":8.5547155438513753E-2},{"$f":"CORREL('Migration 2010'!$M$11:$M$62,Demographics!Z$11:Z$62)","v":0.52113666320044161},{"$f":"CORREL('Migration 2010'!$M$11:$M$62,Demographics!AA$11:AA$62)","v":-0.13185252757514807},{"$f":"CORREL('Migration 2010'!$M$11:$M$62,Demographics!AB$11:AB$62)","v":-9.4983441829461265E-2},{"$f":"CORREL('Migration 2010'!$M$11:$M$62,Demographics!AC$11:AC$62)","v":-0.22517426010997998},{"$f":"CORREL('Migration 2010'!$M$11:$M$62,Demographics!AD$11:AD$62)","v":0.51143363789447027},{"$f":"CORREL('Migration 2010'!$M$11:$M$62,Demographics!AE$11:AE$62)","v":0.25080268298680647},{"$f":"CORREL('Migration 2010'!$M$11:$M$62,Demographics!AF$11:AF$62)","v":-0.24288428153036845},{"$f":"CORREL('Migration 2010'!$M$11:$M$62,Demographics!AG$11:AG$62)","v":-0.23056461735081341},{"$f":"CORREL('Migration 2010'!$M$11:$M$62,Demographics!AH$11:AH$62)","v":0.39251359266571723},{"$f":"CORREL('Migration 2010'!$M$11:$M$62,Demographics!AI$11:AI$62)","v":0.46953035663343473},{"$f":"CORREL('Migration 2010'!$M$11:$M$62,Demographics!AJ$11:AJ$62)","v":0.50768881918961373},{"$f":"CORREL('Migration 2010'!$M$11:$M$62,Demographics!AK$11:AK$62)","v":0.21382863832302318},{"$f":"CORREL('Migration 2010'!$M$11:$M$62,Demographics!AL$11:AL$62)","v":0.52949570047411709},{"$f":"CORREL('Migration 2010'!$M$11:$M$62,Demographics!AM$11:AM$62)","v":0.4976081196841966},{"$f":"CORREL('Migration 2010'!$M$11:$M$62,Demographics!AN$11:AN$62)","v":0.21672881720861648},{"$f":"CORREL('Migration 2010'!$M$11:$M$62,Demographics!AO$11:AO$62)","v":4.4232631781371254E-2},{"$f":"CORREL('Migration 2010'!$M$11:$M$62,Demographics!AP$11:AP$62)","v":-2.9747949775809036E-3},{"$f":"CORREL('Migration 2010'!$M$11:$M$62,Demographics!AQ$11:AQ$62)","v":-7.0231518523850109E-2},{"$f":"CORREL('Migration 2010'!$M$11:$M$62,Demographics!AR$11:AR$62)","v":0.42787406097255659},{"$f":"CORREL('Migration 2010'!$M$11:$M$62,Demographics!AS$11:AS$62)","v":2.2823315748941059E-2},{"$f":"CORREL('Migration 2010'!$M$11:$M$62,Demographics!AT$11:AT$62)","v":0.645053508775569},{"$f":"CORREL('Migration 2010'!$M$11:$M$62,Demographics!AU$11:AU$62)","v":0.52527274107154198},{"$f":"CORREL('Migration 2010'!$M$11:$M$62,Demographics!AV$11:AV$62)","v":0.51599684209845875},{"$f":"CORREL('Migration 2010'!$M$11:$M$62,Demographics!AW$11:AW$62)","v":-0.23108131883790828},{"$f":"CORREL('Migration 2010'!$M$11:$M$62,Demographics!AX$11:AX$62)","v":0.44018788593300812},{"$f":"CORREL('Migration 2010'!$M$11:$M$62,Demographics!AY$11:AY$62)","v":0.77814633025782365},{"$f":"CORREL('Migration 2010'!$M$11:$M$62,Demographics!AZ$11:AZ$62)","v":0.25899235616792332},{"$f":"CORREL('Migration 2010'!$M$11:$M$62,Demographics!BA$11:BA$62)","v":-0.12067878509553004}]
[null,"California",{"$f":"CORREL('Migration 2010'!$N$11:$N$62,Demographics!G$11:G$62)","v":0.20347923990106614},{"$f":"CORREL('Migration 2010'!$N$11:$N$62,Demographics!H$11:H$62)","v":0.21810547408442632},{"$f":"CORREL('Migration 2010'!$N$11:$N$62,Demographics!I$11:I$62)","v":-0.24511262073262552},{"$f":"CORREL('Migration 2010'!$N$11:$N$62,Demographics!J$11:J$62)","v":-0.10040633808804428},{"$f":"CORREL('Migration 2010'!$N$11:$N$62,Demographics!K$11:K$62)","v":-6.777270294019741E-2},{"$f":"CORREL('Migration 2010'!$N$11:$N$62,Demographics!L$11:L$62)","v":-4.1864575100355489E-2},{"$f":"CORREL('Migration 2010'!$N$11:$N$62,Demographics!M$11:M$62)","v":-4.0060010701490158E-2},{"$f":"CORREL('Migration 2010'!$N$11:$N$62,Demographics!N$11:N$62)","v":0.18861454726845775},{"$f":"CORREL('Migration 2010'!$N$11:$N$62,Demographics!O$11:O$62)","v":5.4705146203459211E-2},{"$f":"CORREL('Migration 2010'!$N$11:$N$62,Demographics!P$11:P$62)","v":7.870688441249972E-2},{"$f":"CORREL('Migration 2010'!$N$11:$N$62,Demographics!Q$11:Q$62)","v":0.65470208710960431},{"$f":"CORREL('Migration 2010'!$N$11:$N$62,Demographics!R$11:R$62)","v":-0.43594480150075654},{"$f":"CORREL('Migration 2010'!$N$11:$N$62,Demographics!S$11:S$62)","v":-0.3923453894837497},{"$f":"CORREL('Migration 2010'!$N$11:$N$62,Demographics!T$11:T$62)","v":0.58414254418811218},{"$f":"CORREL('Migration 2010'!$N$11:$N$62,Demographics!U$11:U$62)","v":0.62530726920629787},{"$f":"CORREL('Migration 2010'!$N$11:$N$62,Demographics!V$11:V$62)","v":-0.24613775665579882},{"$f":"CORREL('Migration 2010'!$N$11:$N$62,Demographics!W$11:W$62)","v":0.12506708673052855},{"$f":"CORREL('Migration 2010'!$N$11:$N$62,Demographics!X$11:X$62)","v":0.60391636513402436},{"$f":"CORREL('Migration 2010'!$N$11:$N$62,Demographics!Y$11:Y$62)","v":0.29396769957355834},{"$f":"CORREL('Migration 2010'!$N$11:$N$62,Demographics!Z$11:Z$62)","v":0.58556118927989909},{"$f":"CORREL('Migration 2010'!$N$11:$N$62,Demographics!AA$11:AA$62)","v":-0.52258651688786195},{"$f":"CORREL('Migration 2010'!$N$11:$N$62,Demographics!AB$11:AB$62)","v":0.2508631408365018},{"$f":"CORREL('Migration 2010'!$N$11:$N$62,Demographics!AC$11:AC$62)","v":0.13558265486304344},{"$f":"CORREL('Migration 2010'!$N$11:$N$62,Demographics!AD$11:AD$62)","v":0.58780918642858371},{"$f":"CORREL('Migration 2010'!$N$11:$N$62,Demographics!AE$11:AE$62)","v":0.35968107593924026},{"$f":"CORREL('Migration 2010'!$N$11:$N$62,Demographics!AF$11:AF$62)","v":5.2803196196904621E-2},{"$f":"CORREL('Migration 2010'!$N$11:$N$62,Demographics!AG$11:AG$62)","v":7.8305413545115443E-2},{"$f":"CORREL('Migration 2010'!$N$11:$N$62,Demographics!AH$11:AH$62)","v":0.14205333894586214},{"$f":"CORREL('Migration 2010'!$N$11:$N$62,Demographics!AI$11:AI$62)","v":0.57911063171166244},{"$f":"CORREL('Migration 2010'!$N$11:$N$62,Demographics!AJ$11:AJ$62)","v":0.58660682701916134},{"$f":"CORREL('Migration 2010'!$N$11:$N$62,Demographics!AK$11:AK$62)","v":0.15503536773805618},{"$f":"CORREL('Migration 2010'!$N$11:$N$62,Demographics!AL$11:AL$62)","v":0.5981505615601036},{"$f":"CORREL('Migration 2010'!$N$11:$N$62,Demographics!AM$11:AM$62)","v":0.58755553700298435},{"$f":"CORREL('Migration 2010'!$N$11:$N$62,Demographics!AN$11:AN$62)","v":-3.9279045097724225E-3},{"$f":"CORREL('Migration 2010'!$N$11:$N$62,Demographics!AO$11:AO$62)","v":-1.7454229853079626E-2},{"$f":"CORREL('Migration 2010'!$N$11:$N$62,Demographics!AP$11:AP$62)","v":0.18366573663044489},{"$f":"CORREL('Migration 2010'!$N$11:$N$62,Demographics!AQ$11:AQ$62)","v":3.4935479233736175E-2},{"$f":"CORREL('Migration 2010'!$N$11:$N$62,Demographics!AR$11:AR$62)","v":0.56780426244270787},{"$f":"CORREL('Migration 2010'!$N$11:$N$62,Demographics!AS$11:AS$62)","v":0.36545854947110046},{"$f":"CORREL('Migration 2010'!$N$11:$N$62,Demographics!AT$11:AT$62)","v":0.4987756716079943},{"$f":"CORREL('Migration 2010'!$N$11:$N$62,Demographics!AU$11:AU$62)","v":0.57024895056181812},{"$f":"CORREL('Migration 2010'!$N$11:$N$62,Demographics!AV$11:AV$62)","v":0.61541155945197146},{"$f":"CORREL('Migration 2010'!$N$11:$N$62,Demographics!AW$11:AW$62)","v":-7.3780502025037623E-2},{"$f":"CORREL('Migration 2010'!$N$11:$N$62,Demographics!AX$11:AX$62)","v":0.66578108456419527},{"$f":"CORREL('Migration 2010'!$N$11:$N$62,Demographics!AY$11:AY$62)","v":0.7285436495447748},{"$f":"CORREL('Migration 2010'!$N$11:$N$62,Demographics!AZ$11:AZ$62)","v":0.26038248990767687},{"$f":"CORREL('Migration 2010'!$N$11:$N$62,Demographics!BA$11:BA$62)","v":-6.6505919405495176E-2}]
[null,"Colorado",{"$f":"CORREL('Migration 2010'!$O$11:$O$62,Demographics!G$11:G$62)","v":0.35737126807596264},{"$f":"CORREL('Migration 2010'!$O$11:$O$62,Demographics!H$11:H$62)","v":0.37241710457550853},{"$f":"CORREL('Migration 2010'!$O$11:$O$62,Demographics!I$11:I$62)","v":-0.33379043059529806},{"$f":"CORREL('Migration 2010'!$O$11:$O$62,Demographics!J$11:J$62)","v":-0.1741244118770528},{"$f":"CORREL('Migration 2010'!$O$11:$O$62,Demographics!K$11:K$62)","v":-2.0593049807347132E-2},{"$f":"CORREL('Migration 2010'!$O$11:$O$62,Demographics!L$11:L$62)","v":-4.7884221511617288E-2},{"$f":"CORREL('Migration 2010'!$O$11:$O$62,Demographics!M$11:M$62)","v":1.786424084984136E-2},{"$f":"CORREL('Migration 2010'!$O$11:$O$62,Demographics!N$11:N$62)","v":0.13876971293184867},{"$f":"CORREL('Migration 2010'!$O$11:$O$62,Demographics!O$11:O$62)","v":-4.5316995436150961E-2},{"$f":"CORREL('Migration 2010'!$O$11:$O$62,Demographics!P$11:P$62)","v":-2.0932206116568972E-2},{"$f":"CORREL('Migration 2010'!$O$11:$O$62,Demographics!Q$11:Q$62)","v":0.68418845124511352},{"$f":"CORREL('Migration 2010'!$O$11:$O$62,Demographics!R$11:R$62)","v":-0.43523677543927819},{"$f":"CORREL('Migration 2010'!$O$11:$O$62,Demographics!S$11:S$62)","v":-0.31522585742290499},{"$f":"CORREL('Migration 2010'!$O$11:$O$62,Demographics!T$11:T$62)","v":0.50307571089813519},{"$f":"CORREL('Migration 2010'!$O$11:$O$62,Demographics!U$11:U$62)","v":0.59229537451050662},{"$f":"CORREL('Migration 2010'!$O$11:$O$62,Demographics!V$11:V$62)","v":-0.31970599425759183},{"$f":"CORREL('Migration 2010'!$O$11:$O$62,Demographics!W$11:W$62)","v":2.9092728428452869E-2},{"$f":"CORREL('Migration 2010'!$O$11:$O$62,Demographics!X$11:X$62)","v":0.75420266720344675},{"$f":"CORREL('Migration 2010'!$O$11:$O$62,Demographics!Y$11:Y$62)","v":0.11823729081648035},{"$f":"CORREL('Migration 2010'!$O$11:$O$62,Demographics!Z$11:Z$62)","v":0.74880186272468263},{"$f":"CORREL('Migration 2010'!$O$11:$O$62,Demographics!AA$11:AA$62)","v":-0.37337000687932881},{"$f":"CORREL('Migration 2010'!$O$11:$O$62,Demographics!AB$11:AB$62)","v":6.9637396905341195E-2},{"$f":"CORREL('Migration 2010'!$O$11:$O$62,Demographics!AC$11:AC$62)","v":6.4188218522247972E-2},{"$f":"CORREL('Migration 2010'!$O$11:$O$62,Demographics!AD$11:AD$62)","v":0.75119751163282023},{"$f":"CORREL('Migration 2010'!$O$11:$O$62,Demographics!AE$11:AE$62)","v":0.45369935597987016},{"$f":"CORREL('Migration 2010'!$O$11:$O$62,Demographics!AF$11:AF$62)","v":-3.9864373273061741E-2},{"$f":"CORREL('Migration 2010'!$O$11:$O$62,Demographics!AG$11:AG$62)","v":3.9544847075754029E-2},{"$f":"CORREL('Migration 2010'!$O$11:$O$62,Demographics!AH$11:AH$62)","v":0.16121861739457707},{"$f":"CORREL('Migration 2010'!$O$11:$O$62,Demographics!AI$11:AI$62)","v":0.74059914706865415},{"$f":"CORREL('Migration 2010'!$O$11:$O$62,Demographics!AJ$11:AJ$62)","v":0.75407667541310897},{"$f":"CORREL('Migration 2010'!$O$11:$O$62,Demographics!AK$11:AK$62)","v":0.25321203923547647},{"$f":"CORREL('Migration 2010'!$O$11:$O$62,Demographics!AL$11:AL$62)","v":0.77513981958237377},{"$f":"CORREL('Migration 2010'!$O$11:$O$62,Demographics!AM$11:AM$62)","v":0.75940536571260264},{"$f":"CORREL('Migration 2010'!$O$11:$O$62,Demographics!AN$11:AN$62)","v":6.8792019326354781E-3},{"$f":"CORREL('Migration 2010'!$O$11:$O$62,Demographics!AO$11:AO$62)","v":4.4557156262234963E-2},{"$f":"CORREL('Migration 2010'!$O$11:$O$62,Demographics!AP$11:AP$62)","v":0.13512084776395608},{"$f":"CORREL('Migration 2010'!$O$11:$O$62,Demographics!AQ$11:AQ$62)","v":-5.6766911902183248E-2},{"$f":"CORREL('Migration 2010'!$O$11:$O$62,Demographics!AR$11:AR$62)","v":0.64854391103500464},{"$f":"CORREL('Migration 2010'!$O$11:$O$62,Demographics!AS$11:AS$62)","v":0.25315679502046484},{"$f":"CORREL('Migration 2010'!$O$11:$O$62,Demographics!AT$11:AT$62)","v":0.70942293378465282},{"$f":"CORREL('Migration 2010'!$O$11:$O$62,Demographics!AU$11:AU$62)","v":0.75614962668803831},{"$f":"CORREL('Migration 2010'!$O$11:$O$62,Demographics!AV$11:AV$62)","v":0.77504350365469099},{"$f":"CORREL('Migration 2010'!$O$11:$O$62,Demographics!AW$11:AW$62)","v":-0.11875343083990937},{"$f":"CORREL('Migration 2010'!$O$11:$O$62,Demographics!AX$11:AX$62)","v":0.74033713117967326},{"$f":"CORREL('Migration 2010'!$O$11:$O$62,Demographics!AY$11:AY$62)","v":0.79530868271811495},{"$f":"CORREL('Migration 2010'!$O$11:$O$62,Demographics!AZ$11:AZ$62)","v":0.38155213046688397},{"$f":"CORREL('Migration 2010'!$O$11:$O$62,Demographics!BA$11:BA$62)","v":-0.15160977593790384}]
[null,"Connecticut",{"$f":"CORREL('Migration 2010'!$P$11:$P$62,Demographics!G$11:G$62)","v":-0.37073436280515426},{"$f":"CORREL('Migration 2010'!$P$11:$P$62,Demographics!H$11:H$62)","v":-0.36700276093629852},{"$f":"CORREL('Migration 2010'!$P$11:$P$62,Demographics!I$11:I$62)","v":0.20294409655180687},{"$f":"CORREL('Migration 2010'!$P$11:$P$62,Demographics!J$11:J$62)","v":0.41672240347401229},{"$f":"CORREL('Migration 2010'!$P$11:$P$62,Demographics!K$11:K$62)","v":-0.112165677033332},{"$f":"CORREL('Migration 2010'!$P$11:$P$62,Demographics!L$11:L$62)","v":0.18714557401448845},{"$f":"CORREL('Migration 2010'!$P$11:$P$62,Demographics!M$11:M$62)","v":-0.22369716507121012},{"$f":"CORREL('Migration 2010'!$P$11:$P$62,Demographics!N$11:N$62)","v":0.1214253582530159},{"$f":"CORREL('Migration 2010'!$P$11:$P$62,Demographics!O$11:O$62)","v":-8.7745115892774617E-2},{"$f":"CORREL('Migration 2010'!$P$11:$P$62,Demographics!P$11:P$62)","v":-9.6877588826891695E-2},{"$f":"CORREL('Migration 2010'!$P$11:$P$62,Demographics!Q$11:Q$62)","v":0.18740623347602739},{"$f":"CORREL('Migration 2010'!$P$11:$P$62,Demographics!R$11:R$62)","v":-0.18263181612117574},{"$f":"CORREL('Migration 2010'!$P$11:$P$62,Demographics!S$11:S$62)","v":0.37619015284778717},{"$f":"CORREL('Migration 2010'!$P$11:$P$62,Demographics!T$11:T$62)","v":0.53879165708696841},{"$f":"CORREL('Migration 2010'!$P$11:$P$62,Demographics!U$11:U$62)","v":0.40209617364545502},{"$f":"CORREL('Migration 2010'!$P$11:$P$62,Demographics!V$11:V$62)","v":-0.1499121461074325},{"$f":"CORREL('Migration 2010'!$P$11:$P$62,Demographics!W$11:W$62)","v":0.39626837025301576},{"$f":"CORREL('Migration 2010'!$P$11:$P$62,Demographics!X$11:X$62)","v":0.46268389648883723},{"$f":"CORREL('Migration 2010'!$P$11:$P$62,Demographics!Y$11:Y$62)","v":0.53470645530091709},{"$f":"CORREL('Migration 2010'!$P$11:$P$62,Demographics!Z$11:Z$62)","v":0.5119186383450991},{"$f":"CORREL('Migration 2010'!$P$11:$P$62,Demographics!AA$11:AA$62)","v":-0.42610202735714542},{"$f":"CORREL('Migration 2010'!$P$11:$P$62,Demographics!AB$11:AB$62)","v":0.68460836609588127},{"$f":"CORREL('Migration 2010'!$P$11:$P$62,Demographics!AC$11:AC$62)","v":0.34775995918317437},{"$f":"CORREL('Migration 2010'!$P$11:$P$62,Demographics!AD$11:AD$62)","v":0.50172095821150431},{"$f":"CORREL('Migration 2010'!$P$11:$P$62,Demographics!AE$11:AE$62)","v":4.447905729477851E-2},{"$f":"CORREL('Migration 2010'!$P$11:$P$62,Demographics!AF$11:AF$62)","v":0.39662441817456429},{"$f":"CORREL('Migration 2010'!$P$11:$P$62,Demographics!AG$11:AG$62)","v":0.23674508199894684},{"$f":"CORREL('Migration 2010'!$P$11:$P$62,Demographics!AH$11:AH$62)","v":-8.4938476048808137E-2},{"$f":"CORREL('Migration 2010'!$P$11:$P$62,Demographics!AI$11:AI$62)","v":0.54078609148776757},{"$f":"CORREL('Migration 2010'!$P$11:$P$62,Demographics!AJ$11:AJ$62)","v":0.51005215275051696},{"$f":"CORREL('Migration 2010'!$P$11:$P$62,Demographics!AK$11:AK$62)","v":0.11232444448964998},{"$f":"CORREL('Migration 2010'!$P$11:$P$62,Demographics!AL$11:AL$62)","v":0.51418407225080032},{"$f":"CORREL('Migration 2010'!$P$11:$P$62,Demographics!AM$11:AM$62)","v":0.52893683544533554},{"$f":"CORREL('Migration 2010'!$P$11:$P$62,Demographics!AN$11:AN$62)","v":0.21570234422394841},{"$f":"CORREL('Migration 2010'!$P$11:$P$62,Demographics!AO$11:AO$62)","v":-0.17598940018521467},{"$f":"CORREL('Migration 2010'!$P$11:$P$62,Demographics!AP$11:AP$62)","v":0.11561435755500328},{"$f":"CORREL('Migration 2010'!$P$11:$P$62,Demographics!AQ$11:AQ$62)","v":-6.4598639494164944E-2},{"$f":"CORREL('Migration 2010'!$P$11:$P$62,Demographics!AR$11:AR$62)","v":0.34921995087298641},{"$f":"CORREL('Migration 2010'!$P$11:$P$62,Demographics!AS$11:AS$62)","v":0.35676610091044975},{"$f":"CORREL('Migration 2010'!$P$11:$P$62,Demographics!AT$11:AT$62)","v":0.16636236285370981},{"$f":"CORREL('Migration 2010'!$P$11:$P$62,Demographics!AU$11:AU$62)","v":0.44541336152739663},{"$f":"CORREL('Migration 2010'!$P$11:$P$62,Demographics!AV$11:AV$62)","v":0.49286710387002708},{"$f":"CORREL('Migration 2010'!$P$11:$P$62,Demographics!AW$11:AW$62)","v":-6.7776040965719805E-2},{"$f":"CORREL('Migration 2010'!$P$11:$P$62,Demographics!AX$11:AX$62)","v":0.50016367815486229},{"$f":"CORREL('Migration 2010'!$P$11:$P$62,Demographics!AY$11:AY$62)","v":0.25884641180549611},{"$f":"CORREL('Migration 2010'!$P$11:$P$62,Demographics!AZ$11:AZ$62)","v":-0.17984176270321064},{"$f":"CORREL('Migration 2010'!$P$11:$P$62,Demographics!BA$11:BA$62)","v":0.51922999489263189}]
[null,"Delaware",{"$f":"CORREL('Migration 2010'!$Q$11:$Q$62,Demographics!G$11:G$62)","v":-0.16627673213040645},{"$f":"CORREL('Migration 2010'!$Q$11:$Q$62,Demographics!H$11:H$62)","v":-0.17727922901325366},{"$f":"CORREL('Migration 2010'!$Q$11:$Q$62,Demographics!I$11:I$62)","v":8.8888813551811108E-2},{"$f":"CORREL('Migration 2010'!$Q$11:$Q$62,Demographics!J$11:J$62)","v":0.33937299144501687},{"$f":"CORREL('Migration 2010'!$Q$11:$Q$62,Demographics!K$11:K$62)","v":-0.24670620304770324},{"$f":"CORREL('Migration 2010'!$Q$11:$Q$62,Demographics!L$11:L$62)","v":0.3655110828845452},{"$f":"CORREL('Migration 2010'!$Q$11:$Q$62,Demographics!M$11:M$62)","v":-0.15550345584169861},{"$f":"CORREL('Migration 2010'!$Q$11:$Q$62,Demographics!N$11:N$62)","v":6.5894419726242562E-2},{"$f":"CORREL('Migration 2010'!$Q$11:$Q$62,Demographics!O$11:O$62)","v":-8.316540073111918E-2},{"$f":"CORREL('Migration 2010'!$Q$11:$Q$62,Demographics!P$11:P$62)","v":-7.5744734997388541E-2},{"$f":"CORREL('Migration 2010'!$Q$11:$Q$62,Demographics!Q$11:Q$62)","v":9.3127026550715128E-2},{"$f":"CORREL('Migration 2010'!$Q$11:$Q$62,Demographics!R$11:R$62)","v":-0.24357104373829508},{"$f":"CORREL('Migration 2010'!$Q$11:$Q$62,Demographics!S$11:S$62)","v":0.29532452015505861},{"$f":"CORREL('Migration 2010'!$Q$11:$Q$62,Demographics!T$11:T$62)","v":0.30004284630408579},{"$f":"CORREL('Migration 2010'!$Q$11:$Q$62,Demographics!U$11:U$62)","v":0.19145152514828934},{"$f":"CORREL('Migration 2010'!$Q$11:$Q$62,Demographics!V$11:V$62)","v":-5.3060150261770245E-2},{"$f":"CORREL('Migration 2010'!$Q$11:$Q$62,Demographics!W$11:W$62)","v":0.27471437753063654},{"$f":"CORREL('Migration 2010'!$Q$11:$Q$62,Demographics!X$11:X$62)","v":0.33451116633014771},{"$f":"CORREL('Migration 2010'!$Q$11:$Q$62,Demographics!Y$11:Y$62)","v":0.53963600333459294},{"$f":"CORREL('Migration 2010'!$Q$11:$Q$62,Demographics!Z$11:Z$62)","v":0.30853998813774935},{"$f":"CORREL('Migration 2010'!$Q$11:$Q$62,Demographics!AA$11:AA$62)","v":-5.0379782095957525E-2},{"$f":"CORREL('Migration 2010'!$Q$11:$Q$62,Demographics!AB$11:AB$62)","v":0.17757785038689267},{"$f":"CORREL('Migration 2010'!$Q$11:$Q$62,Demographics!AC$11:AC$62)","v":0.20323712449000078},{"$f":"CORREL('Migration 2010'!$Q$11:$Q$62,Demographics!AD$11:AD$62)","v":0.30149405908343585},{"$f":"CORREL('Migration 2010'!$Q$11:$Q$62,Demographics!AE$11:AE$62)","v":9.5485330750794642E-2},{"$f":"CORREL('Migration 2010'!$Q$11:$Q$62,Demographics!AF$11:AF$62)","v":0.34424515493670355},{"$f":"CORREL('Migration 2010'!$Q$11:$Q$62,Demographics!AG$11:AG$62)","v":0.30079901244603541},{"$f":"CORREL('Migration 2010'!$Q$11:$Q$62,Demographics!AH$11:AH$62)","v":-0.18288422437735316},{"$f":"CORREL('Migration 2010'!$Q$11:$Q$62,Demographics!AI$11:AI$62)","v":0.30354369445554558},{"$f":"CORREL('Migration 2010'!$Q$11:$Q$62,Demographics!AJ$11:AJ$62)","v":0.29831412571818355},{"$f":"CORREL('Migration 2010'!$Q$11:$Q$62,Demographics!AK$11:AK$62)","v":0.15591366887408117},{"$f":"CORREL('Migration 2010'!$Q$11:$Q$62,Demographics!AL$11:AL$62)","v":0.28455284432474032},{"$f":"CORREL('Migration 2010'!$Q$11:$Q$62,Demographics!AM$11:AM$62)","v":0.2939276675438463},{"$f":"CORREL('Migration 2010'!$Q$11:$Q$62,Demographics!AN$11:AN$62)","v":0.43846410436342931},{"$f":"CORREL('Migration 2010'!$Q$11:$Q$62,Demographics!AO$11:AO$62)","v":-0.11831344656741745},{"$f":"CORREL('Migration 2010'!$Q$11:$Q$62,Demographics!AP$11:AP$62)","v":8.4205302490513501E-2},{"$f":"CORREL('Migration 2010'!$Q$11:$Q$62,Demographics!AQ$11:AQ$62)","v":-5.989845173294945E-2},{"$f":"CORREL('Migration 2010'!$Q$11:$Q$62,Demographics!AR$11:AR$62)","v":0.23858536610741685},{"$f":"CORREL('Migration 2010'!$Q$11:$Q$62,Demographics!AS$11:AS$62)","v":0.40902562912710261},{"$f":"CORREL('Migration 2010'!$Q$11:$Q$62,Demographics!AT$11:AT$62)","v":8.1404721887190376E-2},{"$f":"CORREL('Migration 2010'!$Q$11:$Q$62,Demographics!AU$11:AU$62)","v":0.21172002991907676},{"$f":"CORREL('Migration 2010'!$Q$11:$Q$62,Demographics!AV$11:AV$62)","v":0.30283728485416883},{"$f":"CORREL('Migration 2010'!$Q$11:$Q$62,Demographics!AW$11:AW$62)","v":-5.0862937556906636E-2},{"$f":"CORREL('Migration 2010'!$Q$11:$Q$62,Demographics!AX$11:AX$62)","v":0.25168271882600995},{"$f":"CORREL('Migration 2010'!$Q$11:$Q$62,Demographics!AY$11:AY$62)","v":0.19564056053472173},{"$f":"CORREL('Migration 2010'!$Q$11:$Q$62,Demographics!AZ$11:AZ$62)","v":-0.13217138697771894},{"$f":"CORREL('Migration 2010'!$Q$11:$Q$62,Demographics!BA$11:BA$62)","v":0.33422396798422976}]
[null,"District of Columbia ",{"$f":"CORREL('Migration 2010'!$R$11:$R$62,Demographics!G$11:G$62)","v":-6.6482212377383679E-2},{"$f":"CORREL('Migration 2010'!$R$11:$R$62,Demographics!H$11:H$62)","v":-7.6139657188020543E-2},{"$f":"CORREL('Migration 2010'!$R$11:$R$62,Demographics!I$11:I$62)","v":-0.12939554043308268},{"$f":"CORREL('Migration 2010'!$R$11:$R$62,Demographics!J$11:J$62)","v":0.25003831004289345},{"$f":"CORREL('Migration 2010'!$R$11:$R$62,Demographics!K$11:K$62)","v":-0.28234120113576444},{"$f":"CORREL('Migration 2010'!$R$11:$R$62,Demographics!L$11:L$62)","v":0.35901588380364352},{"$f":"CORREL('Migration 2010'!$R$11:$R$62,Demographics!M$11:M$62)","v":-0.13563258687266203},{"$f":"CORREL('Migration 2010'!$R$11:$R$62,Demographics!N$11:N$62)","v":0.10599322005060061},{"$f":"CORREL('Migration 2010'!$R$11:$R$62,Demographics!O$11:O$62)","v":-5.6809623356578492E-2},{"$f":"CORREL('Migration 2010'!$R$11:$R$62,Demographics!P$11:P$62)","v":-2.9541454568285847E-2},{"$f":"CORREL('Migration 2010'!$R$11:$R$62,Demographics!Q$11:Q$62)","v":1.3900231632436819E-2},{"$f":"CORREL('Migration 2010'!$R$11:$R$62,Demographics!R$11:R$62)","v":-0.22726443682127728},{"$f":"CORREL('Migration 2010'!$R$11:$R$62,Demographics!S$11:S$62)","v":0.17622223742382986},{"$f":"CORREL('Migration 2010'!$R$11:$R$62,Demographics!T$11:T$62)","v":0.23617675803858282},{"$f":"CORREL('Migration 2010'!$R$11:$R$62,Demographics!U$11:U$62)","v":0.11885002856989398},{"$f":"CORREL('Migration 2010'!$R$11:$R$62,Demographics!V$11:V$62)","v":-2.2103443170658734E-2},{"$f":"CORREL('Migration 2010'!$R$11:$R$62,Demographics!W$11:W$62)","v":0.36181781900355203},{"$f":"CORREL('Migration 2010'!$R$11:$R$62,Demographics!X$11:X$62)","v":0.18815206389246472},{"$f":"CORREL('Migration 2010'!$R$11:$R$62,Demographics!Y$11:Y$62)","v":0.47789166101822167},{"$f":"CORREL('Migration 2010'!$R$11:$R$62,Demographics!Z$11:Z$62)","v":0.15959584308615135},{"$f":"CORREL('Migration 2010'!$R$11:$R$62,Demographics!AA$11:AA$62)","v":-5.5762318393705018E-2},{"$f":"CORREL('Migration 2010'!$R$11:$R$62,Demographics!AB$11:AB$62)","v":0.10208679957856538},{"$f":"CORREL('Migration 2010'!$R$11:$R$62,Demographics!AC$11:AC$62)","v":0.27321684932540552},{"$f":"CORREL('Migration 2010'!$R$11:$R$62,Demographics!AD$11:AD$62)","v":0.16636432209899629},{"$f":"CORREL('Migration 2010'!$R$11:$R$62,Demographics!AE$11:AE$62)","v":0.13278312033738862},{"$f":"CORREL('Migration 2010'!$R$11:$R$62,Demographics!AF$11:AF$62)","v":0.40717424694997528},{"$f":"CORREL('Migration 2010'!$R$11:$R$62,Demographics!AG$11:AG$62)","v":0.40176552071242438},{"$f":"CORREL('Migration 2010'!$R$11:$R$62,Demographics!AH$11:AH$62)","v":-0.25486728128472691},{"$f":"CORREL('Migration 2010'!$R$11:$R$62,Demographics!AI$11:AI$62)","v":0.16614584984447853},{"$f":"CORREL('Migration 2010'!$R$11:$R$62,Demographics!AJ$11:AJ$62)","v":0.16900251539572259},{"$f":"CORREL('Migration 2010'!$R$11:$R$62,Demographics!AK$11:AK$62)","v":9.1417108094562452E-2},{"$f":"CORREL('Migration 2010'!$R$11:$R$62,Demographics!AL$11:AL$62)","v":0.16017590748543462},{"$f":"CORREL('Migration 2010'!$R$11:$R$62,Demographics!AM$11:AM$62)","v":0.16472265674837508},{"$f":"CORREL('Migration 2010'!$R$11:$R$62,Demographics!AN$11:AN$62)","v":0.44392011614241145},{"$f":"CORREL('Migration 2010'!$R$11:$R$62,Demographics!AO$11:AO$62)","v":-9.2829705027187737E-2},{"$f":"CORREL('Migration 2010'!$R$11:$R$62,Demographics!AP$11:AP$62)","v":0.1131587083473438},{"$f":"CORREL('Migration 2010'!$R$11:$R$62,Demographics!AQ$11:AQ$62)","v":-3.756552629385318E-2},{"$f":"CORREL('Migration 2010'!$R$11:$R$62,Demographics!AR$11:AR$62)","v":8.0628248976867226E-2},{"$f":"CORREL('Migration 2010'!$R$11:$R$62,Demographics!AS$11:AS$62)","v":0.45305658464514625},{"$f":"CORREL('Migration 2010'!$R$11:$R$62,Demographics!AT$11:AT$62)","v":3.6186149523861351E-2},{"$f":"CORREL('Migration 2010'!$R$11:$R$62,Demographics!AU$11:AU$62)","v":0.10153268674598069},{"$f":"CORREL('Migration 2010'!$R$11:$R$62,Demographics!AV$11:AV$62)","v":0.17155814740010292},{"$f":"CORREL('Migration 2010'!$R$11:$R$62,Demographics!AW$11:AW$62)","v":-4.2992429739495783E-2},{"$f":"CORREL('Migration 2010'!$R$11:$R$62,Demographics!AX$11:AX$62)","v":0.15431566309612899},{"$f":"CORREL('Migration 2010'!$R$11:$R$62,Demographics!AY$11:AY$62)","v":0.10401855294741359},{"$f":"CORREL('Migration 2010'!$R$11:$R$62,Demographics!AZ$11:AZ$62)","v":-0.11989940881162517},{"$f":"CORREL('Migration 2010'!$R$11:$R$62,Demographics!BA$11:BA$62)","v":0.25506689539571786}]
[null,"Florida",{"$f":"CORREL('Migration 2010'!$S$11:$S$62,Demographics!G$11:G$62)","v":1.0047879767904725E-2},{"$f":"CORREL('Migration 2010'!$S$11:$S$62,Demographics!H$11:H$62)","v":6.5066234515837804E-2},{"$f":"CORREL('Migration 2010'!$S$11:$S$62,Demographics!I$11:I$62)","v":-0.24119970393914134},{"$f":"CORREL('Migration 2010'!$S$11:$S$62,Demographics!J$11:J$62)","v":0.39067479636233415},{"$f":"CORREL('Migration 2010'!$S$11:$S$62,Demographics!K$11:K$62)","v":-0.36508682628893024},{"$f":"CORREL('Migration 2010'!$S$11:$S$62,Demographics!L$11:L$62)","v":0.54598898423430209},{"$f":"CORREL('Migration 2010'!$S$11:$S$62,Demographics!M$11:M$62)","v":-0.25211050402258833},{"$f":"CORREL('Migration 2010'!$S$11:$S$62,Demographics!N$11:N$62)","v":8.0793507346017854E-2},{"$f":"CORREL('Migration 2010'!$S$11:$S$62,Demographics!O$11:O$62)","v":-8.7050168175689058E-2},{"$f":"CORREL('Migration 2010'!$S$11:$S$62,Demographics!P$11:P$62)","v":-0.10424771702911885},{"$f":"CORREL('Migration 2010'!$S$11:$S$62,Demographics!Q$11:Q$62)","v":0.19423390724712095},{"$f":"CORREL('Migration 2010'!$S$11:$S$62,Demographics!R$11:R$62)","v":-0.40289530939686713},{"$f":"CORREL('Migration 2010'!$S$11:$S$62,Demographics!S$11:S$62)","v":0.14246884982260807},{"$f":"CORREL('Migration 2010'!$S$11:$S$62,Demographics!T$11:T$62)","v":0.32870203942437787},{"$f":"CORREL('Migration 2010'!$S$11:$S$62,Demographics!U$11:U$62)","v":0.25694585731243169},{"$f":"CORREL('Migration 2010'!$S$11:$S$62,Demographics!V$11:V$62)","v":-0.4786339102394469},{"$f":"CORREL('Migration 2010'!$S$11:$S$62,Demographics!W$11:W$62)","v":7.2252361208910224E-2},{"$f":"CORREL('Migration 2010'!$S$11:$S$62,Demographics!X$11:X$62)","v":0.6870569624806645},{"$f":"CORREL('Migration 2010'!$S$11:$S$62,Demographics!Y$11:Y$62)","v":0.50527360882360539},{"$f":"CORREL('Migration 2010'!$S$11:$S$62,Demographics!Z$11:Z$62)","v":0.66935495014381441},{"$f":"CORREL('Migration 2010'!$S$11:$S$62,Demographics!AA$11:AA$62)","v":-0.30845998094816912},{"$f":"CORREL('Migration 2010'!$S$11:$S$62,Demographics!AB$11:AB$62)","v":0.1806003324783125},{"$f":"CORREL('Migration 2010'!$S$11:$S$62,Demographics!AC$11:AC$62)","v":2.8216433080177739E-2},{"$f":"CORREL('Migration 2010'!$S$11:$S$62,Demographics!AD$11:AD$62)","v":0.65618282436737441},{"$f":"CORREL('Migration 2010'!$S$11:$S$62,Demographics!AE$11:AE$62)","v":0.250744328681062},{"$f":"CORREL('Migration 2010'!$S$11:$S$62,Demographics!AF$11:AF$62)","v":1.8526751079820745E-2},{"$f":"CORREL('Migration 2010'!$S$11:$S$62,Demographics!AG$11:AG$62)","v":-3.9299977710570512E-2},{"$f":"CORREL('Migration 2010'!$S$11:$S$62,Demographics!AH$11:AH$62)","v":0.30126993751649761},{"$f":"CORREL('Migration 2010'!$S$11:$S$62,Demographics!AI$11:AI$62)","v":0.62667499236827695},{"$f":"CORREL('Migration 2010'!$S$11:$S$62,Demographics!AJ$11:AJ$62)","v":0.63575824452497676},{"$f":"CORREL('Migration 2010'!$S$11:$S$62,Demographics!AK$11:AK$62)","v":0.18578660124044671},{"$f":"CORREL('Migration 2010'!$S$11:$S$62,Demographics!AL$11:AL$62)","v":0.63817396529675041},{"$f":"CORREL('Migration 2010'!$S$11:$S$62,Demographics!AM$11:AM$62)","v":0.63222586529916314},{"$f":"CORREL('Migration 2010'!$S$11:$S$62,Demographics!AN$11:AN$62)","v":0.61224432296100262},{"$f":"CORREL('Migration 2010'!$S$11:$S$62,Demographics!AO$11:AO$62)","v":-0.14723786455929364},{"$f":"CORREL('Migration 2010'!$S$11:$S$62,Demographics!AP$11:AP$62)","v":0.12866302508875174},{"$f":"CORREL('Migration 2010'!$S$11:$S$62,Demographics!AQ$11:AQ$62)","v":-5.0476170589860446E-2},{"$f":"CORREL('Migration 2010'!$S$11:$S$62,Demographics!AR$11:AR$62)","v":0.27769070368432447},{"$f":"CORREL('Migration 2010'!$S$11:$S$62,Demographics!AS$11:AS$62)","v":0.46467193673743884},{"$f":"CORREL('Migration 2010'!$S$11:$S$62,Demographics!AT$11:AT$62)","v":0.57739135794269203},{"$f":"CORREL('Migration 2010'!$S$11:$S$62,Demographics!AU$11:AU$62)","v":0.57748133864971241},{"$f":"CORREL('Migration 2010'!$S$11:$S$62,Demographics!AV$11:AV$62)","v":0.62661322379295481},{"$f":"CORREL('Migration 2010'!$S$11:$S$62,Demographics!AW$11:AW$62)","v":-0.36731819341355104},{"$f":"CORREL('Migration 2010'!$S$11:$S$62,Demographics!AX$11:AX$62)","v":0.55617511386098162},{"$f":"CORREL('Migration 2010'!$S$11:$S$62,Demographics!AY$11:AY$62)","v":0.57038061395392869},{"$f":"CORREL('Migration 2010'!$S$11:$S$62,Demographics!AZ$11:AZ$62)","v":-1.424323447762308E-2},{"$f":"CORREL('Migration 2010'!$S$11:$S$62,Demographics!BA$11:BA$62)","v":0.15420843602768491}]
[null,"Georgia",{"$f":"CORREL('Migration 2010'!$T$11:$T$62,Demographics!G$11:G$62)","v":-4.8193856155414813E-2},{"$f":"CORREL('Migration 2010'!$T$11:$T$62,Demographics!H$11:H$62)","v":-5.2534580624512821E-2},{"$f":"CORREL('Migration 2010'!$T$11:$T$62,Demographics!I$11:I$62)","v":0.12100640022663366},{"$f":"CORREL('Migration 2010'!$T$11:$T$62,Demographics!J$11:J$62)","v":0.32754969567008158},{"$f":"CORREL('Migration 2010'!$T$11:$T$62,Demographics!K$11:K$62)","v":-0.26994872745776632},{"$f":"CORREL('Migration 2010'!$T$11:$T$62,Demographics!L$11:L$62)","v":0.49728700739992016},{"$f":"CORREL('Migration 2010'!$T$11:$T$62,Demographics!M$11:M$62)","v":-0.21193604565078364},{"$f":"CORREL('Migration 2010'!$T$11:$T$62,Demographics!N$11:N$62)","v":-3.2233940125147291E-2},{"$f":"CORREL('Migration 2010'!$T$11:$T$62,Demographics!O$11:O$62)","v":-8.6092701548782957E-2},{"$f":"CORREL('Migration 2010'!$T$11:$T$62,Demographics!P$11:P$62)","v":-0.11492567610769729},{"$f":"CORREL('Migration 2010'!$T$11:$T$62,Demographics!Q$11:Q$62)","v":0.22283666217608253},{"$f":"CORREL('Migration 2010'!$T$11:$T$62,Demographics!R$11:R$62)","v":-0.35628370885082572},{"$f":"CORREL('Migration 2010'!$T$11:$T$62,Demographics!S$11:S$62)","v":6.6408537524752589E-4},{"$f":"CORREL('Migration 2010'!$T$11:$T$62,Demographics!T$11:T$62)","v":0.25346392733646012},{"$f":"CORREL('Migration 2010'!$T$11:$T$62,Demographics!U$11:U$62)","v":0.20393548446296797},{"$f":"CORREL('Migration 2010'!$T$11:$T$62,Demographics!V$11:V$62)","v":-0.48120102046739627},{"$f":"CORREL('Migration 2010'!$T$11:$T$62,Demographics!W$11:W$62)","v":-0.13297559618282415},{"$f":"CORREL('Migration 2010'!$T$11:$T$62,Demographics!X$11:X$62)","v":0.66386764627713879},{"$f":"CORREL('Migration 2010'!$T$11:$T$62,Demographics!Y$11:Y$62)","v":0.29765564649120518},{"$f":"CORREL('Migration 2010'!$T$11:$T$62,Demographics!Z$11:Z$62)","v":0.59483605948239737},{"$f":"CORREL('Migration 2010'!$T$11:$T$62,Demographics!AA$11:AA$62)","v":-7.3389173011782161E-2},{"$f":"CORREL('Migration 2010'!$T$11:$T$62,Demographics!AB$11:AB$62)","v":3.3098496316777866E-2},{"$f":"CORREL('Migration 2010'!$T$11:$T$62,Demographics!AC$11:AC$62)","v":-0.13274264486638199},{"$f":"CORREL('Migration 2010'!$T$11:$T$62,Demographics!AD$11:AD$62)","v":0.55920051118215686},{"$f":"CORREL('Migration 2010'!$T$11:$T$62,Demographics!AE$11:AE$62)","v":0.14387746921531086},{"$f":"CORREL('Migration 2010'!$T$11:$T$62,Demographics!AF$11:AF$62)","v":-0.15107755980337434},{"$f":"CORREL('Migration 2010'!$T$11:$T$62,Demographics!AG$11:AG$62)","v":-0.22425849827105271},{"$f":"CORREL('Migration 2010'!$T$11:$T$62,Demographics!AH$11:AH$62)","v":0.35933434646631424},{"$f":"CORREL('Migration 2010'!$T$11:$T$62,Demographics!AI$11:AI$62)","v":0.5348997547255131},{"$f":"CORREL('Migration 2010'!$T$11:$T$62,Demographics!AJ$11:AJ$62)","v":0.52391286317824182},{"$f":"CORREL('Migration 2010'!$T$11:$T$62,Demographics!AK$11:AK$62)","v":0.22174569668598046},{"$f":"CORREL('Migration 2010'!$T$11:$T$62,Demographics!AL$11:AL$62)","v":0.56310406258344936},{"$f":"CORREL('Migration 2010'!$T$11:$T$62,Demographics!AM$11:AM$62)","v":0.55150547011546913},{"$f":"CORREL('Migration 2010'!$T$11:$T$62,Demographics!AN$11:AN$62)","v":0.51563850838893399},{"$f":"CORREL('Migration 2010'!$T$11:$T$62,Demographics!AO$11:AO$62)","v":-0.1261809192506208},{"$f":"CORREL('Migration 2010'!$T$11:$T$62,Demographics!AP$11:AP$62)","v":1.4129470431772139E-2},{"$f":"CORREL('Migration 2010'!$T$11:$T$62,Demographics!AQ$11:AQ$62)","v":-5.1938072607129002E-2},{"$f":"CORREL('Migration 2010'!$T$11:$T$62,Demographics!AR$11:AR$62)","v":0.46119812178259761},{"$f":"CORREL('Migration 2010'!$T$11:$T$62,Demographics!AS$11:AS$62)","v":0.2799379192561911},{"$f":"CORREL('Migration 2010'!$T$11:$T$62,Demographics!AT$11:AT$62)","v":0.41503706575203764},{"$f":"CORREL('Migration 2010'!$T$11:$T$62,Demographics!AU$11:AU$62)","v":0.42905404247501128},{"$f":"CORREL('Migration 2010'!$T$11:$T$62,Demographics!AV$11:AV$62)","v":0.55192924235926588},{"$f":"CORREL('Migration 2010'!$T$11:$T$62,Demographics!AW$11:AW$62)","v":-0.24048545368312779},{"$f":"CORREL('Migration 2010'!$T$11:$T$62,Demographics!AX$11:AX$62)","v":0.48644260194810207},{"$f":"CORREL('Migration 2010'!$T$11:$T$62,Demographics!AY$11:AY$62)","v":0.63740820434103562},{"$f":"CORREL('Migration 2010'!$T$11:$T$62,Demographics!AZ$11:AZ$62)","v":8.4014975714059848E-4},{"$f":"CORREL('Migration 2010'!$T$11:$T$62,Demographics!BA$11:BA$62)","v":5.1207102492471804E-2}]
[null,"Hawaii",{"$f":"CORREL('Migration 2010'!$U$11:$U$62,Demographics!G$11:G$62)","v":0.1869380216456481},{"$f":"CORREL('Migration 2010'!$U$11:$U$62,Demographics!H$11:H$62)","v":0.17877131875711691},{"$f":"CORREL('Migration 2010'!$U$11:$U$62,Demographics!I$11:I$62)","v":-0.34672177802048487},{"$f":"CORREL('Migration 2010'!$U$11:$U$62,Demographics!J$11:J$62)","v":-0.21473684222419939},{"$f":"CORREL('Migration 2010'!$U$11:$U$62,Demographics!K$11:K$62)","v":-0.19673854848330574},{"$f":"CORREL('Migration 2010'!$U$11:$U$62,Demographics!L$11:L$62)","v":-6.2883306468528383E-2},{"$f":"CORREL('Migration 2010'!$U$11:$U$62,Demographics!M$11:M$62)","v":1.101314177016912E-2},{"$f":"CORREL('Migration 2010'!$U$11:$U$62,Demographics!N$11:N$62)","v":0.72957302744796437},{"$f":"CORREL('Migration 2010'!$U$11:$U$62,Demographics!O$11:O$62)","v":0.46276787235634947},{"$f":"CORREL('Migration 2010'!$U$11:$U$62,Demographics!P$11:P$62)","v":0.40739614020523673},{"$f":"CORREL('Migration 2010'!$U$11:$U$62,Demographics!Q$11:Q$62)","v":0.59062576481604101},{"$f":"CORREL('Migration 2010'!$U$11:$U$62,Demographics!R$11:R$62)","v":-0.53016873007542875},{"$f":"CORREL('Migration 2010'!$U$11:$U$62,Demographics!S$11:S$62)","v":-0.37448224141119235},{"$f":"CORREL('Migration 2010'!$U$11:$U$62,Demographics!T$11:T$62)","v":0.64868616030802162},{"$f":"CORREL('Migration 2010'!$U$11:$U$62,Demographics!U$11:U$62)","v":0.63513072363409384},{"$f":"CORREL('Migration 2010'!$U$11:$U$62,Demographics!V$11:V$62)","v":-0.30272411582227243},{"$f":"CORREL('Migration 2010'!$U$11:$U$62,Demographics!W$11:W$62)","v":0.12449884073339133},{"$f":"CORREL('Migration 2010'!$U$11:$U$62,Demographics!X$11:X$62)","v":0.64313861368269698},{"$f":"CORREL('Migration 2010'!$U$11:$U$62,Demographics!Y$11:Y$62)","v":0.23479121468422112},{"$f":"CORREL('Migration 2010'!$U$11:$U$62,Demographics!Z$11:Z$62)","v":0.63767554556391093},{"$f":"CORREL('Migration 2010'!$U$11:$U$62,Demographics!AA$11:AA$62)","v":-0.62023616840050333},{"$f":"CORREL('Migration 2010'!$U$11:$U$62,Demographics!AB$11:AB$62)","v":0.23557814145042164},{"$f":"CORREL('Migration 2010'!$U$11:$U$62,Demographics!AC$11:AC$62)","v":0.41683269000508905},{"$f":"CORREL('Migration 2010'!$U$11:$U$62,Demographics!AD$11:AD$62)","v":0.65054566722238272},{"$f":"CORREL('Migration 2010'!$U$11:$U$62,Demographics!AE$11:AE$62)","v":0.50679503295221962},{"$f":"CORREL('Migration 2010'!$U$11:$U$62,Demographics!AF$11:AF$62)","v":0.12209979641698271},{"$f":"CORREL('Migration 2010'!$U$11:$U$62,Demographics!AG$11:AG$62)","v":0.21189575778973738},{"$f":"CORREL('Migration 2010'!$U$11:$U$62,Demographics!AH$11:AH$62)","v":4.9755734122837229E-2},{"$f":"CORREL('Migration 2010'!$U$11:$U$62,Demographics!AI$11:AI$62)","v":0.66361569337378068},{"$f":"CORREL('Migration 2010'!$U$11:$U$62,Demographics!AJ$11:AJ$62)","v":0.64968958945234956},{"$f":"CORREL('Migration 2010'!$U$11:$U$62,Demographics!AK$11:AK$62)","v":7.0878317160547225E-2},{"$f":"CORREL('Migration 2010'!$U$11:$U$62,Demographics!AL$11:AL$62)","v":0.67377147112109526},{"$f":"CORREL('Migration 2010'!$U$11:$U$62,Demographics!AM$11:AM$62)","v":0.67438437241280769},{"$f":"CORREL('Migration 2010'!$U$11:$U$62,Demographics!AN$11:AN$62)","v":-3.338413803300877E-2},{"$f":"CORREL('Migration 2010'!$U$11:$U$62,Demographics!AO$11:AO$62)","v":7.7943840723903993E-2},{"$f":"CORREL('Migration 2010'!$U$11:$U$62,Demographics!AP$11:AP$62)","v":0.72435549745428385},{"$f":"CORREL('Migration 2010'!$U$11:$U$62,Demographics!AQ$11:AQ$62)","v":0.66540277712179341},{"$f":"CORREL('Migration 2010'!$U$11:$U$62,Demographics!AR$11:AR$62)","v":0.48343139824658665},{"$f":"CORREL('Migration 2010'!$U$11:$U$62,Demographics!AS$11:AS$62)","v":0.36740806212304156},{"$f":"CORREL('Migration 2010'!$U$11:$U$62,Demographics!AT$11:AT$62)","v":0.52166052711671429},{"$f":"CORREL('Migration 2010'!$U$11:$U$62,Demographics!AU$11:AU$62)","v":0.65094843087884213},{"$f":"CORREL('Migration 2010'!$U$11:$U$62,Demographics!AV$11:AV$62)","v":0.68298952084253972},{"$f":"CORREL('Migration 2010'!$U$11:$U$62,Demographics!AW$11:AW$62)","v":-7.4180850033163132E-2},{"$f":"CORREL('Migration 2010'!$U$11:$U$62,Demographics!AX$11:AX$62)","v":0.77234338551413362},{"$f":"CORREL('Migration 2010'!$U$11:$U$62,Demographics!AY$11:AY$62)","v":0.55939919133469673},{"$f":"CORREL('Migration 2010'!$U$11:$U$62,Demographics!AZ$11:AZ$62)","v":0.33088276430579405},{"$f":"CORREL('Migration 2010'!$U$11:$U$62,Demographics!BA$11:BA$62)","v":-6.9574804003242646E-2}]
[null,"Idaho",{"$f":"CORREL('Migration 2010'!$V$11:$V$62,Demographics!G$11:G$62)","v":0.3515360671841829},{"$f":"CORREL('Migration 2010'!$V$11:$V$62,Demographics!H$11:H$62)","v":0.35049929985529332},{"$f":"CORREL('Migration 2010'!$V$11:$V$62,Demographics!I$11:I$62)","v":-0.33666439125223901},{"$f":"CORREL('Migration 2010'!$V$11:$V$62,Demographics!J$11:J$62)","v":-0.26790672014000849},{"$f":"CORREL('Migration 2010'!$V$11:$V$62,Demographics!K$11:K$62)","v":9.5461337366087071E-2},{"$f":"CORREL('Migration 2010'!$V$11:$V$62,Demographics!L$11:L$62)","v":-0.23504477280441138},{"$f":"CORREL('Migration 2010'!$V$11:$V$62,Demographics!M$11:M$62)","v":4.7878277591887133E-2},{"$f":"CORREL('Migration 2010'!$V$11:$V$62,Demographics!N$11:N$62)","v":0.1221236642910672},{"$f":"CORREL('Migration 2010'!$V$11:$V$62,Demographics!O$11:O$62)","v":3.8523173170406509E-2},{"$f":"CORREL('Migration 2010'!$V$11:$V$62,Demographics!P$11:P$62)","v":6.2404923617559886E-2},{"$f":"CORREL('Migration 2010'!$V$11:$V$62,Demographics!Q$11:Q$62)","v":0.27229312301558334},{"$f":"CORREL('Migration 2010'!$V$11:$V$62,Demographics!R$11:R$62)","v":-9.2899288145444264E-2},{"$f":"CORREL('Migration 2010'!$V$11:$V$62,Demographics!S$11:S$62)","v":-0.33526507548046042},{"$f":"CORREL('Migration 2010'!$V$11:$V$62,Demographics!T$11:T$62)","v":0.26938284369950871},{"$f":"CORREL('Migration 2010'!$V$11:$V$62,Demographics!U$11:U$62)","v":0.26629110096850794},{"$f":"CORREL('Migration 2010'!$V$11:$V$62,Demographics!V$11:V$62)","v":5.629063737838047E-2},{"$f":"CORREL('Migration 2010'!$V$11:$V$62,Demographics!W$11:W$62)","v":0.1210015637564455},{"$f":"CORREL('Migration 2010'!$V$11:$V$62,Demographics!X$11:X$62)","v":0.23148409081231203},{"$f":"CORREL('Migration 2010'!$V$11:$V$62,Demographics!Y$11:Y$62)","v":3.0620477522765029E-2},{"$f":"CORREL('Migration 2010'!$V$11:$V$62,Demographics!Z$11:Z$62)","v":0.20649430591137349},{"$f":"CORREL('Migration 2010'!$V$11:$V$62,Demographics!AA$11:AA$62)","v":-0.26568596701392899},{"$f":"CORREL('Migration 2010'!$V$11:$V$62,Demographics!AB$11:AB$62)","v":3.3118646249217211E-2},{"$f":"CORREL('Migration 2010'!$V$11:$V$62,Demographics!AC$11:AC$62)","v":0.22097515195535783},{"$f":"CORREL('Migration 2010'!$V$11:$V$62,Demographics!AD$11:AD$62)","v":0.21767761809549549},{"$f":"CORREL('Migration 2010'!$V$11:$V$62,Demographics!AE$11:AE$62)","v":0.35861593605116521},{"$f":"CORREL('Migration 2010'!$V$11:$V$62,Demographics!AF$11:AF$62)","v":1.3998803532523469E-3},{"$f":"CORREL('Migration 2010'!$V$11:$V$62,Demographics!AG$11:AG$62)","v":0.12976157316803066},{"$f":"CORREL('Migration 2010'!$V$11:$V$62,Demographics!AH$11:AH$62)","v":-2.8646237601742459E-2},{"$f":"CORREL('Migration 2010'!$V$11:$V$62,Demographics!AI$11:AI$62)","v":0.23405538098574299},{"$f":"CORREL('Migration 2010'!$V$11:$V$62,Demographics!AJ$11:AJ$62)","v":0.21161142386968732},{"$f":"CORREL('Migration 2010'!$V$11:$V$62,Demographics!AK$11:AK$62)","v":-2.0779952221521746E-2},{"$f":"CORREL('Migration 2010'!$V$11:$V$62,Demographics!AL$11:AL$62)","v":0.2141052241346211},{"$f":"CORREL('Migration 2010'!$V$11:$V$62,Demographics!AM$11:AM$62)","v":0.22336973479144578},{"$f":"CORREL('Migration 2010'!$V$11:$V$62,Demographics!AN$11:AN$62)","v":-0.23499903645272135},{"$f":"CORREL('Migration 2010'!$V$11:$V$62,Demographics!AO$11:AO$62)","v":4.6769055933627915E-2},{"$f":"CORREL('Migration 2010'!$V$11:$V$62,Demographics!AP$11:AP$62)","v":7.9426984632183603E-2},{"$f":"CORREL('Migration 2010'!$V$11:$V$62,Demographics!AQ$11:AQ$62)","v":-3.0536758796730304E-2},{"$f":"CORREL('Migration 2010'!$V$11:$V$62,Demographics!AR$11:AR$62)","v":0.16634995343559514},{"$f":"CORREL('Migration 2010'!$V$11:$V$62,Demographics!AS$11:AS$62)","v":8.2321598900286355E-2},{"$f":"CORREL('Migration 2010'!$V$11:$V$62,Demographics!AT$11:AT$62)","v":0.16617020587244447},{"$f":"CORREL('Migration 2010'!$V$11:$V$62,Demographics!AU$11:AU$62)","v":0.20563085118280774},{"$f":"CORREL('Migration 2010'!$V$11:$V$62,Demographics!AV$11:AV$62)","v":0.24169856062748241},{"$f":"CORREL('Migration 2010'!$V$11:$V$62,Demographics!AW$11:AW$62)","v":4.1974650166829948E-2},{"$f":"CORREL('Migration 2010'!$V$11:$V$62,Demographics!AX$11:AX$62)","v":0.24442673667298975},{"$f":"CORREL('Migration 2010'!$V$11:$V$62,Demographics!AY$11:AY$62)","v":0.24028518910391136},{"$f":"CORREL('Migration 2010'!$V$11:$V$62,Demographics!AZ$11:AZ$62)","v":0.17182874250509309},{"$f":"CORREL('Migration 2010'!$V$11:$V$62,Demographics!BA$11:BA$62)","v":-0.17030576571153033}]
[null,"Illinois",{"$f":"CORREL('Migration 2010'!$W$11:$W$62,Demographics!G$11:G$62)","v":3.9796415087786044E-2},{"$f":"CORREL('Migration 2010'!$W$11:$W$62,Demographics!H$11:H$62)","v":0.12335063871307562},{"$f":"CORREL('Migration 2010'!$W$11:$W$62,Demographics!I$11:I$62)","v":-3.6774645580146925E-2},{"$f":"CORREL('Migration 2010'!$W$11:$W$62,Demographics!J$11:J$62)","v":0.1329001247874807},{"$f":"CORREL('Migration 2010'!$W$11:$W$62,Demographics!K$11:K$62)","v":4.417801238028482E-2},{"$f":"CORREL('Migration 2010'!$W$11:$W$62,Demographics!L$11:L$62)","v":0.10003021059386295},{"$f":"CORREL('Migration 2010'!$W$11:$W$62,Demographics!M$11:M$62)","v":-0.23748765089016718},{"$f":"CORREL('Migration 2010'!$W$11:$W$62,Demographics!N$11:N$62)","v":-2.7479501942701035E-2},{"$f":"CORREL('Migration 2010'!$W$11:$W$62,Demographics!O$11:O$62)","v":-0.12881521737890636},{"$f":"CORREL('Migration 2010'!$W$11:$W$62,Demographics!P$11:P$62)","v":-0.14591423541510104},{"$f":"CORREL('Migration 2010'!$W$11:$W$62,Demographics!Q$11:Q$62)","v":0.23097093281209236},{"$f":"CORREL('Migration 2010'!$W$11:$W$62,Demographics!R$11:R$62)","v":-0.11767633130807939},{"$f":"CORREL('Migration 2010'!$W$11:$W$62,Demographics!S$11:S$62)","v":-4.3174072554205897E-2},{"$f":"CORREL('Migration 2010'!$W$11:$W$62,Demographics!T$11:T$62)","v":0.18578316744030118},{"$f":"CORREL('Migration 2010'!$W$11:$W$62,Demographics!U$11:U$62)","v":0.18792516148517791},{"$f":"CORREL('Migration 2010'!$W$11:$W$62,Demographics!V$11:V$62)","v":-0.20140235874902848},{"$f":"CORREL('Migration 2010'!$W$11:$W$62,Demographics!W$11:W$62)","v":-9.1788850094751753E-2},{"$f":"CORREL('Migration 2010'!$W$11:$W$62,Demographics!X$11:X$62)","v":0.6031270028689355},{"$f":"CORREL('Migration 2010'!$W$11:$W$62,Demographics!Y$11:Y$62)","v":0.15162877652377371},{"$f":"CORREL('Migration 2010'!$W$11:$W$62,Demographics!Z$11:Z$62)","v":0.57798158927726062},{"$f":"CORREL('Migration 2010'!$W$11:$W$62,Demographics!AA$11:AA$62)","v":-2.6253954776530711E-2},{"$f":"CORREL('Migration 2010'!$W$11:$W$62,Demographics!AB$11:AB$62)","v":3.3609791924855296E-2},{"$f":"CORREL('Migration 2010'!$W$11:$W$62,Demographics!AC$11:AC$62)","v":-0.14667764566544719},{"$f":"CORREL('Migration 2010'!$W$11:$W$62,Demographics!AD$11:AD$62)","v":0.56884760467427586},{"$f":"CORREL('Migration 2010'!$W$11:$W$62,Demographics!AE$11:AE$62)","v":9.1111912201259096E-2},{"$f":"CORREL('Migration 2010'!$W$11:$W$62,Demographics!AF$11:AF$62)","v":-9.8452670872209228E-2},{"$f":"CORREL('Migration 2010'!$W$11:$W$62,Demographics!AG$11:AG$62)","v":-0.10455077836405745},{"$f":"CORREL('Migration 2010'!$W$11:$W$62,Demographics!AH$11:AH$62)","v":0.14337903500005023},{"$f":"CORREL('Migration 2010'!$W$11:$W$62,Demographics!AI$11:AI$62)","v":0.54177024511591798},{"$f":"CORREL('Migration 2010'!$W$11:$W$62,Demographics!AJ$11:AJ$62)","v":0.56275461885140532},{"$f":"CORREL('Migration 2010'!$W$11:$W$62,Demographics!AK$11:AK$62)","v":0.28102145680248408},{"$f":"CORREL('Migration 2010'!$W$11:$W$62,Demographics!AL$11:AL$62)","v":0.53679470851779887},{"$f":"CORREL('Migration 2010'!$W$11:$W$62,Demographics!AM$11:AM$62)","v":0.53331101731598174},{"$f":"CORREL('Migration 2010'!$W$11:$W$62,Demographics!AN$11:AN$62)","v":0.13129482103398699},{"$f":"CORREL('Migration 2010'!$W$11:$W$62,Demographics!AO$11:AO$62)","v":-0.17856762621570199},{"$f":"CORREL('Migration 2010'!$W$11:$W$62,Demographics!AP$11:AP$62)","v":-1.8958927512077731E-2},{"$f":"CORREL('Migration 2010'!$W$11:$W$62,Demographics!AQ$11:AQ$62)","v":-0.10109056563690598},{"$f":"CORREL('Migration 2010'!$W$11:$W$62,Demographics!AR$11:AR$62)","v":0.30289490676343178},{"$f":"CORREL('Migration 2010'!$W$11:$W$62,Demographics!AS$11:AS$62)","v":0.15071191946832818},{"$f":"CORREL('Migration 2010'!$W$11:$W$62,Demographics!AT$11:AT$62)","v":0.61191842254226647},{"$f":"CORREL('Migration 2010'!$W$11:$W$62,Demographics!AU$11:AU$62)","v":0.49385660078076354},{"$f":"CORREL('Migration 2010'!$W$11:$W$62,Demographics!AV$11:AV$62)","v":0.55720655889563464},{"$f":"CORREL('Migration 2010'!$W$11:$W$62,Demographics!AW$11:AW$62)","v":-0.29302815587445563},{"$f":"CORREL('Migration 2010'!$W$11:$W$62,Demographics!AX$11:AX$62)","v":0.4920511467603137},{"$f":"CORREL('Migration 2010'!$W$11:$W$62,Demographics!AY$11:AY$62)","v":0.52545156827084594},{"$f":"CORREL('Migration 2010'!$W$11:$W$62,Demographics!AZ$11:AZ$62)","v":6.1805968792550625E-2},{"$f":"CORREL('Migration 2010'!$W$11:$W$62,Demographics!BA$11:BA$62)","v":-3.5250823751747186E-2}]
[null,"Indiana",{"$f":"CORREL('Migration 2010'!$X$11:$X$62,Demographics!G$11:G$62)","v":-3.7285931997594619E-2},{"$f":"CORREL('Migration 2010'!$X$11:$X$62,Demographics!H$11:H$62)","v":3.6165555425382745E-2},{"$f":"CORREL('Migration 2010'!$X$11:$X$62,Demographics!I$11:I$62)","v":-2.884214964845223E-2},{"$f":"CORREL('Migration 2010'!$X$11:$X$62,Demographics!J$11:J$62)","v":0.20287425493914515},{"$f":"CORREL('Migration 2010'!$X$11:$X$62,Demographics!K$11:K$62)","v":-3.2689194426825129E-2},{"$f":"CORREL('Migration 2010'!$X$11:$X$62,Demographics!L$11:L$62)","v":0.19092668525885148},{"$f":"CORREL('Migration 2010'!$X$11:$X$62,Demographics!M$11:M$62)","v":-0.23051375559046336},{"$f":"CORREL('Migration 2010'!$X$11:$X$62,Demographics!N$11:N$62)","v":-2.5257654890915856E-2},{"$f":"CORREL('Migration 2010'!$X$11:$X$62,Demographics!O$11:O$62)","v":-0.11543495705374776},{"$f":"CORREL('Migration 2010'!$X$11:$X$62,Demographics!P$11:P$62)","v":-0.14049582702831317},{"$f":"CORREL('Migration 2010'!$X$11:$X$62,Demographics!Q$11:Q$62)","v":0.16185095417616197},{"$f":"CORREL('Migration 2010'!$X$11:$X$62,Demographics!R$11:R$62)","v":-0.13657842189497579},{"$f":"CORREL('Migration 2010'!$X$11:$X$62,Demographics!S$11:S$62)","v":0.10152758336778187},{"$f":"CORREL('Migration 2010'!$X$11:$X$62,Demographics!T$11:T$62)","v":0.1829402763492535},{"$f":"CORREL('Migration 2010'!$X$11:$X$62,Demographics!U$11:U$62)","v":0.16468734959922116},{"$f":"CORREL('Migration 2010'!$X$11:$X$62,Demographics!V$11:V$62)","v":-0.30028001317553316},{"$f":"CORREL('Migration 2010'!$X$11:$X$62,Demographics!W$11:W$62)","v":-7.1300734596161763E-2},{"$f":"CORREL('Migration 2010'!$X$11:$X$62,Demographics!X$11:X$62)","v":0.54943556237116575},{"$f":"CORREL('Migration 2010'!$X$11:$X$62,Demographics!Y$11:Y$62)","v":0.26770862842323728},{"$f":"CORREL('Migration 2010'!$X$11:$X$62,Demographics!Z$11:Z$62)","v":0.54254819473389015},{"$f":"CORREL('Migration 2010'!$X$11:$X$62,Demographics!AA$11:AA$62)","v":-2.4584295940223055E-2},{"$f":"CORREL('Migration 2010'!$X$11:$X$62,Demographics!AB$11:AB$62)","v":0.12112564795484235},{"$f":"CORREL('Migration 2010'!$X$11:$X$62,Demographics!AC$11:AC$62)","v":-0.14374492489252313},{"$f":"CORREL('Migration 2010'!$X$11:$X$62,Demographics!AD$11:AD$62)","v":0.53741686392226673},{"$f":"CORREL('Migration 2010'!$X$11:$X$62,Demographics!AE$11:AE$62)","v":8.9614904449860852E-2},{"$f":"CORREL('Migration 2010'!$X$11:$X$62,Demographics!AF$11:AF$62)","v":-9.5307206311516054E-2},{"$f":"CORREL('Migration 2010'!$X$11:$X$62,Demographics!AG$11:AG$62)","v":-0.14278534659165015},{"$f":"CORREL('Migration 2010'!$X$11:$X$62,Demographics!AH$11:AH$62)","v":0.25385592240825405},{"$f":"CORREL('Migration 2010'!$X$11:$X$62,Demographics!AI$11:AI$62)","v":0.50461703772229594},{"$f":"CORREL('Migration 2010'!$X$11:$X$62,Demographics!AJ$11:AJ$62)","v":0.52691983180237534},{"$f":"CORREL('Migration 2010'!$X$11:$X$62,Demographics!AK$11:AK$62)","v":0.21736872460783294},{"$f":"CORREL('Migration 2010'!$X$11:$X$62,Demographics!AL$11:AL$62)","v":0.49607435745450823},{"$f":"CORREL('Migration 2010'!$X$11:$X$62,Demographics!AM$11:AM$62)","v":0.49587914539231243},{"$f":"CORREL('Migration 2010'!$X$11:$X$62,Demographics!AN$11:AN$62)","v":0.24096968949372272},{"$f":"CORREL('Migration 2010'!$X$11:$X$62,Demographics!AO$11:AO$62)","v":-0.17336807230378878},{"$f":"CORREL('Migration 2010'!$X$11:$X$62,Demographics!AP$11:AP$62)","v":-3.6677265092607942E-3},{"$f":"CORREL('Migration 2010'!$X$11:$X$62,Demographics!AQ$11:AQ$62)","v":-8.4310543754895065E-2},{"$f":"CORREL('Migration 2010'!$X$11:$X$62,Demographics!AR$11:AR$62)","v":0.21607804759535498},{"$f":"CORREL('Migration 2010'!$X$11:$X$62,Demographics!AS$11:AS$62)","v":0.28580157179886395},{"$f":"CORREL('Migration 2010'!$X$11:$X$62,Demographics!AT$11:AT$62)","v":0.57043579491552987},{"$f":"CORREL('Migration 2010'!$X$11:$X$62,Demographics!AU$11:AU$62)","v":0.49218368378547694},{"$f":"CORREL('Migration 2010'!$X$11:$X$62,Demographics!AV$11:AV$62)","v":0.51470392527137732},{"$f":"CORREL('Migration 2010'!$X$11:$X$62,Demographics!AW$11:AW$62)","v":-0.3239294884724499},{"$f":"CORREL('Migration 2010'!$X$11:$X$62,Demographics!AX$11:AX$62)","v":0.45124367757167705},{"$f":"CORREL('Migration 2010'!$X$11:$X$62,Demographics!AY$11:AY$62)","v":0.35764734703133755},{"$f":"CORREL('Migration 2010'!$X$11:$X$62,Demographics!AZ$11:AZ$62)","v":-1.1260599280715353E-2},{"$f":"CORREL('Migration 2010'!$X$11:$X$62,Demographics!BA$11:BA$62)","v":9.5015996478932923E-3}]
[null,"Iowa",{"$f":"CORREL('Migration 2010'!$Y$11:$Y$62,Demographics!G$11:G$62)","v":0.21091887596365633},{"$f":"CORREL('Migration 2010'!$Y$11:$Y$62,Demographics!H$11:H$62)","v":0.24011791996494472},{"$f":"CORREL('Migration 2010'!$Y$11:$Y$62,Demographics!I$11:I$62)","v":-0.1283464141349559},{"$f":"CORREL('Migration 2010'!$Y$11:$Y$62,Demographics!J$11:J$62)","v":-6.1996368083445039E-2},{"$f":"CORREL('Migration 2010'!$Y$11:$Y$62,Demographics!K$11:K$62)","v":0.11539114165414689},{"$f":"CORREL('Migration 2010'!$Y$11:$Y$62,Demographics!L$11:L$62)","v":-5.8524226903024223E-2},{"$f":"CORREL('Migration 2010'!$Y$11:$Y$62,Demographics!M$11:M$62)","v":-4.6381517940981797E-2},{"$f":"CORREL('Migration 2010'!$Y$11:$Y$62,Demographics!N$11:N$62)","v":-2.9973731483581109E-2},{"$f":"CORREL('Migration 2010'!$Y$11:$Y$62,Demographics!O$11:O$62)","v":-0.11627347186837184},{"$f":"CORREL('Migration 2010'!$Y$11:$Y$62,Demographics!P$11:P$62)","v":-0.11875052706546176},{"$f":"CORREL('Migration 2010'!$Y$11:$Y$62,Demographics!Q$11:Q$62)","v":0.20745546920708524},{"$f":"CORREL('Migration 2010'!$Y$11:$Y$62,Demographics!R$11:R$62)","v":-4.9924309441368553E-2},{"$f":"CORREL('Migration 2010'!$Y$11:$Y$62,Demographics!S$11:S$62)","v":-0.10767673209517162},{"$f":"CORREL('Migration 2010'!$Y$11:$Y$62,Demographics!T$11:T$62)","v":0.14891099697149021},{"$f":"CORREL('Migration 2010'!$Y$11:$Y$62,Demographics!U$11:U$62)","v":0.17035979694448936},{"$f":"CORREL('Migration 2010'!$Y$11:$Y$62,Demographics!V$11:V$62)","v":9.6763316100991238E-3},{"$f":"CORREL('Migration 2010'!$Y$11:$Y$62,Demographics!W$11:W$62)","v":6.9488564349045004E-2},{"$f":"CORREL('Migration 2010'!$Y$11:$Y$62,Demographics!X$11:X$62)","v":0.36539580807510125},{"$f":"CORREL('Migration 2010'!$Y$11:$Y$62,Demographics!Y$11:Y$62)","v":-9.0222343116136711E-3},{"$f":"CORREL('Migration 2010'!$Y$11:$Y$62,Demographics!Z$11:Z$62)","v":0.36218437323334068},{"$f":"CORREL('Migration 2010'!$Y$11:$Y$62,Demographics!AA$11:AA$62)","v":3.2635034404611151E-3},{"$f":"CORREL('Migration 2010'!$Y$11:$Y$62,Demographics!AB$11:AB$62)","v":5.1043529172426237E-2},{"$f":"CORREL('Migration 2010'!$Y$11:$Y$62,Demographics!AC$11:AC$62)","v":-0.15651239441410084},{"$f":"CORREL('Migration 2010'!$Y$11:$Y$62,Demographics!AD$11:AD$62)","v":0.36326613020099197},{"$f":"CORREL('Migration 2010'!$Y$11:$Y$62,Demographics!AE$11:AE$62)","v":3.2534719707851253E-2},{"$f":"CORREL('Migration 2010'!$Y$11:$Y$62,Demographics!AF$11:AF$62)","v":-2.5461887892771182E-2},{"$f":"CORREL('Migration 2010'!$Y$11:$Y$62,Demographics!AG$11:AG$62)","v":-2.7801323684472315E-2},{"$f":"CORREL('Migration 2010'!$Y$11:$Y$62,Demographics!AH$11:AH$62)","v":1.6677961505355814E-3},{"$f":"CORREL('Migration 2010'!$Y$11:$Y$62,Demographics!AI$11:AI$62)","v":0.36084713407884472},{"$f":"CORREL('Migration 2010'!$Y$11:$Y$62,Demographics!AJ$11:AJ$62)","v":0.37809162620659525},{"$f":"CORREL('Migration 2010'!$Y$11:$Y$62,Demographics!AK$11:AK$62)","v":0.24033873843700218},{"$f":"CORREL('Migration 2010'!$Y$11:$Y$62,Demographics!AL$11:AL$62)","v":0.34893813353707709},{"$f":"CORREL('Migration 2010'!$Y$11:$Y$62,Demographics!AM$11:AM$62)","v":0.34840729986989866},{"$f":"CORREL('Migration 2010'!$Y$11:$Y$62,Demographics!AN$11:AN$62)","v":-1.0900688232422778E-2},{"$f":"CORREL('Migration 2010'!$Y$11:$Y$62,Demographics!AO$11:AO$62)","v":-9.2845585192956395E-2},{"$f":"CORREL('Migration 2010'!$Y$11:$Y$62,Demographics!AP$11:AP$62)","v":-4.7472667209628783E-2},{"$f":"CORREL('Migration 2010'!$Y$11:$Y$62,Demographics!AQ$11:AQ$62)","v":-0.10195108504399727},{"$f":"CORREL('Migration 2010'!$Y$11:$Y$62,Demographics!AR$11:AR$62)","v":0.17108762822161303},{"$f":"CORREL('Migration 2010'!$Y$11:$Y$62,Demographics!AS$11:AS$62)","v":3.6037385207178606E-2},{"$f":"CORREL('Migration 2010'!$Y$11:$Y$62,Demographics!AT$11:AT$62)","v":0.39302033921606844},{"$f":"CORREL('Migration 2010'!$Y$11:$Y$62,Demographics!AU$11:AU$62)","v":0.37319555574306029},{"$f":"CORREL('Migration 2010'!$Y$11:$Y$62,Demographics!AV$11:AV$62)","v":0.37008738184072543},{"$f":"CORREL('Migration 2010'!$Y$11:$Y$62,Demographics!AW$11:AW$62)","v":-4.5210350346537087E-2},{"$f":"CORREL('Migration 2010'!$Y$11:$Y$62,Demographics!AX$11:AX$62)","v":0.32489670612196608},{"$f":"CORREL('Migration 2010'!$Y$11:$Y$62,Demographics!AY$11:AY$62)","v":0.31764580608264875},{"$f":"CORREL('Migration 2010'!$Y$11:$Y$62,Demographics!AZ$11:AZ$62)","v":0.11400838325467191},{"$f":"CORREL('Migration 2010'!$Y$11:$Y$62,Demographics!BA$11:BA$62)","v":-0.17376412726987717}]
[null,"Kansas",{"$f":"CORREL('Migration 2010'!$Z$11:$Z$62,Demographics!G$11:G$62)","v":0.14040672649454669},{"$f":"CORREL('Migration 2010'!$Z$11:$Z$62,Demographics!H$11:H$62)","v":0.15512397844584669},{"$f":"CORREL('Migration 2010'!$Z$11:$Z$62,Demographics!I$11:I$62)","v":-7.2113988548146948E-2},{"$f":"CORREL('Migration 2010'!$Z$11:$Z$62,Demographics!J$11:J$62)","v":5.2992702181539439E-2},{"$f":"CORREL('Migration 2010'!$Z$11:$Z$62,Demographics!K$11:K$62)","v":2.3302687163152216E-2},{"$f":"CORREL('Migration 2010'!$Z$11:$Z$62,Demographics!L$11:L$62)","v":4.5614109633349706E-2},{"$f":"CORREL('Migration 2010'!$Z$11:$Z$62,Demographics!M$11:M$62)","v":-7.194463716724353E-2},{"$f":"CORREL('Migration 2010'!$Z$11:$Z$62,Demographics!N$11:N$62)","v":-4.8061359801211602E-2},{"$f":"CORREL('Migration 2010'!$Z$11:$Z$62,Demographics!O$11:O$62)","v":-6.6240828114014091E-2},{"$f":"CORREL('Migration 2010'!$Z$11:$Z$62,Demographics!P$11:P$62)","v":-4.9372723712580981E-2},{"$f":"CORREL('Migration 2010'!$Z$11:$Z$62,Demographics!Q$11:Q$62)","v":0.16636341081769318},{"$f":"CORREL('Migration 2010'!$Z$11:$Z$62,Demographics!R$11:R$62)","v":-9.4453948521611555E-2},{"$f":"CORREL('Migration 2010'!$Z$11:$Z$62,Demographics!S$11:S$62)","v":-0.19126336784434453},{"$f":"CORREL('Migration 2010'!$Z$11:$Z$62,Demographics!T$11:T$62)","v":4.8405028897517105E-2},{"$f":"CORREL('Migration 2010'!$Z$11:$Z$62,Demographics!U$11:U$62)","v":8.2419785369904269E-2},{"$f":"CORREL('Migration 2010'!$Z$11:$Z$62,Demographics!V$11:V$62)","v":-0.20554750862443646},{"$f":"CORREL('Migration 2010'!$Z$11:$Z$62,Demographics!W$11:W$62)","v":-9.1992234871973749E-2},{"$f":"CORREL('Migration 2010'!$Z$11:$Z$62,Demographics!X$11:X$62)","v":0.35241487109447772},{"$f":"CORREL('Migration 2010'!$Z$11:$Z$62,Demographics!Y$11:Y$62)","v":3.2471687788792204E-2},{"$f":"CORREL('Migration 2010'!$Z$11:$Z$62,Demographics!Z$11:Z$62)","v":0.31796433642989191},{"$f":"CORREL('Migration 2010'!$Z$11:$Z$62,Demographics!AA$11:AA$62)","v":-5.891281703630509E-2},{"$f":"CORREL('Migration 2010'!$Z$11:$Z$62,Demographics!AB$11:AB$62)","v":-7.3826447739533424E-2},{"$f":"CORREL('Migration 2010'!$Z$11:$Z$62,Demographics!AC$11:AC$62)","v":-0.1722891287978944},{"$f":"CORREL('Migration 2010'!$Z$11:$Z$62,Demographics!AD$11:AD$62)","v":0.31171862183294985},{"$f":"CORREL('Migration 2010'!$Z$11:$Z$62,Demographics!AE$11:AE$62)","v":3.995331684751488E-2},{"$f":"CORREL('Migration 2010'!$Z$11:$Z$62,Demographics!AF$11:AF$62)","v":-0.13992559568778001},{"$f":"CORREL('Migration 2010'!$Z$11:$Z$62,Demographics!AG$11:AG$62)","v":-0.15823397650661866},{"$f":"CORREL('Migration 2010'!$Z$11:$Z$62,Demographics!AH$11:AH$62)","v":0.17270432809189129},{"$f":"CORREL('Migration 2010'!$Z$11:$Z$62,Demographics!AI$11:AI$62)","v":0.29294362530777251},{"$f":"CORREL('Migration 2010'!$Z$11:$Z$62,Demographics!AJ$11:AJ$62)","v":0.30788736574108816},{"$f":"CORREL('Migration 2010'!$Z$11:$Z$62,Demographics!AK$11:AK$62)","v":0.1058026661725727},{"$f":"CORREL('Migration 2010'!$Z$11:$Z$62,Demographics!AL$11:AL$62)","v":0.30367790432039582},{"$f":"CORREL('Migration 2010'!$Z$11:$Z$62,Demographics!AM$11:AM$62)","v":0.29449607618141499},{"$f":"CORREL('Migration 2010'!$Z$11:$Z$62,Demographics!AN$11:AN$62)","v":3.5783028435860731E-2},{"$f":"CORREL('Migration 2010'!$Z$11:$Z$62,Demographics!AO$11:AO$62)","v":-7.3651779022661764E-3},{"$f":"CORREL('Migration 2010'!$Z$11:$Z$62,Demographics!AP$11:AP$62)","v":-2.8264163355147344E-2},{"$f":"CORREL('Migration 2010'!$Z$11:$Z$62,Demographics!AQ$11:AQ$62)","v":-4.9757878512298695E-2},{"$f":"CORREL('Migration 2010'!$Z$11:$Z$62,Demographics!AR$11:AR$62)","v":0.20805669599254292},{"$f":"CORREL('Migration 2010'!$Z$11:$Z$62,Demographics!AS$11:AS$62)","v":-1.8913914441792957E-2},{"$f":"CORREL('Migration 2010'!$Z$11:$Z$62,Demographics!AT$11:AT$62)","v":0.34386196529106811},{"$f":"CORREL('Migration 2010'!$Z$11:$Z$62,Demographics!AU$11:AU$62)","v":0.29680070500615119},{"$f":"CORREL('Migration 2010'!$Z$11:$Z$62,Demographics!AV$11:AV$62)","v":0.30804190770908568},{"$f":"CORREL('Migration 2010'!$Z$11:$Z$62,Demographics!AW$11:AW$62)","v":-0.15723951394421748},{"$f":"CORREL('Migration 2010'!$Z$11:$Z$62,Demographics!AX$11:AX$62)","v":0.25270226718489858},{"$f":"CORREL('Migration 2010'!$Z$11:$Z$62,Demographics!AY$11:AY$62)","v":0.42215409575017793},{"$f":"CORREL('Migration 2010'!$Z$11:$Z$62,Demographics!AZ$11:AZ$62)","v":0.1382382774605441},{"$f":"CORREL('Migration 2010'!$Z$11:$Z$62,Demographics!BA$11:BA$62)","v":-0.13126758163483629}]
[null,"Kentucky",{"$f":"CORREL('Migration 2010'!$AA$11:$AA$62,Demographics!G$11:G$62)","v":3.5950429499668334E-2},{"$f":"CORREL('Migration 2010'!$AA$11:$AA$62,Demographics!H$11:H$62)","v":9.9234096724143947E-2},{"$f":"CORREL('Migration 2010'!$AA$11:$AA$62,Demographics!I$11:I$62)","v":-6.1360724213693367E-2},{"$f":"CORREL('Migration 2010'!$AA$11:$AA$62,Demographics!J$11:J$62)","v":0.22436389101176687},{"$f":"CORREL('Migration 2010'!$AA$11:$AA$62,Demographics!K$11:K$62)","v":-8.5819474045570818E-2},{"$f":"CORREL('Migration 2010'!$AA$11:$AA$62,Demographics!L$11:L$62)","v":0.29870647725803157},{"$f":"CORREL('Migration 2010'!$AA$11:$AA$62,Demographics!M$11:M$62)","v":-0.19226216678018201},{"$f":"CORREL('Migration 2010'!$AA$11:$AA$62,Demographics!N$11:N$62)","v":-0.1151303839113898},{"$f":"CORREL('Migration 2010'!$AA$11:$AA$62,Demographics!O$11:O$62)","v":-0.11774315960326476},{"$f":"CORREL('Migration 2010'!$AA$11:$AA$62,Demographics!P$11:P$62)","v":-0.1403204792851683},{"$f":"CORREL('Migration 2010'!$AA$11:$AA$62,Demographics!Q$11:Q$62)","v":4.5762622151073941E-2},{"$f":"CORREL('Migration 2010'!$AA$11:$AA$62,Demographics!R$11:R$62)","v":-0.11063076684220174},{"$f":"CORREL('Migration 2010'!$AA$11:$AA$62,Demographics!S$11:S$62)","v":-6.6088131494870486E-2},{"$f":"CORREL('Migration 2010'!$AA$11:$AA$62,Demographics!T$11:T$62)","v":-8.9905310500986678E-3},{"$f":"CORREL('Migration 2010'!$AA$11:$AA$62,Demographics!U$11:U$62)","v":-1.3759125021182339E-2},{"$f":"CORREL('Migration 2010'!$AA$11:$AA$62,Demographics!V$11:V$62)","v":-0.36851243260814365},{"$f":"CORREL('Migration 2010'!$AA$11:$AA$62,Demographics!W$11:W$62)","v":-0.28063378781781317},{"$f":"CORREL('Migration 2010'!$AA$11:$AA$62,Demographics!X$11:X$62)","v":0.50106370687013291},{"$f":"CORREL('Migration 2010'!$AA$11:$AA$62,Demographics!Y$11:Y$62)","v":0.14648189054708602},{"$f":"CORREL('Migration 2010'!$AA$11:$AA$62,Demographics!Z$11:Z$62)","v":0.44770488764010125},{"$f":"CORREL('Migration 2010'!$AA$11:$AA$62,Demographics!AA$11:AA$62)","v":2.0459173457289235E-2},{"$f":"CORREL('Migration 2010'!$AA$11:$AA$62,Demographics!AB$11:AB$62)","v":-0.12898048615316743},{"$f":"CORREL('Migration 2010'!$AA$11:$AA$62,Demographics!AC$11:AC$62)","v":-0.27878934901186464},{"$f":"CORREL('Migration 2010'!$AA$11:$AA$62,Demographics!AD$11:AD$62)","v":0.43458304607948944},{"$f":"CORREL('Migration 2010'!$AA$11:$AA$62,Demographics!AE$11:AE$62)","v":6.4383694633659186E-2},{"$f":"CORREL('Migration 2010'!$AA$11:$AA$62,Demographics!AF$11:AF$62)","v":-0.27514072586689509},{"$f":"CORREL('Migration 2010'!$AA$11:$AA$62,Demographics!AG$11:AG$62)","v":-0.30012340195024712},{"$f":"CORREL('Migration 2010'!$AA$11:$AA$62,Demographics!AH$11:AH$62)","v":0.3589408998029146},{"$f":"CORREL('Migration 2010'!$AA$11:$AA$62,Demographics!AI$11:AI$62)","v":0.37698260027247865},{"$f":"CORREL('Migration 2010'!$AA$11:$AA$62,Demographics!AJ$11:AJ$62)","v":0.4092226164045728},{"$f":"CORREL('Migration 2010'!$AA$11:$AA$62,Demographics!AK$11:AK$62)","v":0.26085639397677934},{"$f":"CORREL('Migration 2010'!$AA$11:$AA$62,Demographics!AL$11:AL$62)","v":0.39773598390368603},{"$f":"CORREL('Migration 2010'!$AA$11:$AA$62,Demographics!AM$11:AM$62)","v":0.38702313623502332},{"$f":"CORREL('Migration 2010'!$AA$11:$AA$62,Demographics!AN$11:AN$62)","v":0.31894626184508607},{"$f":"CORREL('Migration 2010'!$AA$11:$AA$62,Demographics!AO$11:AO$62)","v":-0.10304791947908322},{"$f":"CORREL('Migration 2010'!$AA$11:$AA$62,Demographics!AP$11:AP$62)","v":-7.1628275911460329E-2},{"$f":"CORREL('Migration 2010'!$AA$11:$AA$62,Demographics!AQ$11:AQ$62)","v":-9.3130738764714296E-2},{"$f":"CORREL('Migration 2010'!$AA$11:$AA$62,Demographics!AR$11:AR$62)","v":0.15186388429214509},{"$f":"CORREL('Migration 2010'!$AA$11:$AA$62,Demographics!AS$11:AS$62)","v":0.1259035643604848},{"$f":"CORREL('Migration 2010'!$AA$11:$AA$62,Demographics!AT$11:AT$62)","v":0.51945290907841113},{"$f":"CORREL('Migration 2010'!$AA$11:$AA$62,Demographics!AU$11:AU$62)","v":0.32420908657038794},{"$f":"CORREL('Migration 2010'!$AA$11:$AA$62,Demographics!AV$11:AV$62)","v":0.40448715815277753},{"$f":"CORREL('Migration 2010'!$AA$11:$AA$62,Demographics!AW$11:AW$62)","v":-0.34330601568536856},{"$f":"CORREL('Migration 2010'!$AA$11:$AA$62,Demographics!AX$11:AX$62)","v":0.33145413044393779},{"$f":"CORREL('Migration 2010'!$AA$11:$AA$62,Demographics!AY$11:AY$62)","v":0.40797259725558638},{"$f":"CORREL('Migration 2010'!$AA$11:$AA$62,Demographics!AZ$11:AZ$62)","v":2.7582812376225188E-2},{"$f":"CORREL('Migration 2010'!$AA$11:$AA$62,Demographics!BA$11:BA$62)","v":-4.5297791384222949E-2}]
[null,"Louisiana",{"$f":"CORREL('Migration 2010'!$AB$11:$AB$62,Demographics!G$11:G$62)","v":0.23407787395779697},{"$f":"CORREL('Migration 2010'!$AB$11:$AB$62,Demographics!H$11:H$62)","v":0.26832149554157819},{"$f":"CORREL('Migration 2010'!$AB$11:$AB$62,Demographics!I$11:I$62)","v":-0.22785997419623302},{"$f":"CORREL('Migration 2010'!$AB$11:$AB$62,Demographics!J$11:J$62)","v":6.1981240484934669E-2},{"$f":"CORREL('Migration 2010'!$AB$11:$AB$62,Demographics!K$11:K$62)","v":-0.1297312982243079},{"$f":"CORREL('Migration 2010'!$AB$11:$AB$62,Demographics!L$11:L$62)","v":0.25950098239588937},{"$f":"CORREL('Migration 2010'!$AB$11:$AB$62,Demographics!M$11:M$62)","v":-0.10059124373794645},{"$f":"CORREL('Migration 2010'!$AB$11:$AB$62,Demographics!N$11:N$62)","v":-2.3236900645698538E-2},{"$f":"CORREL('Migration 2010'!$AB$11:$AB$62,Demographics!O$11:O$62)","v":-6.583581673401015E-2},{"$f":"CORREL('Migration 2010'!$AB$11:$AB$62,Demographics!P$11:P$62)","v":-9.0946440404871168E-2},{"$f":"CORREL('Migration 2010'!$AB$11:$AB$62,Demographics!Q$11:Q$62)","v":0.39723497507473965},{"$f":"CORREL('Migration 2010'!$AB$11:$AB$62,Demographics!R$11:R$62)","v":-0.35771108969284876},{"$f":"CORREL('Migration 2010'!$AB$11:$AB$62,Demographics!S$11:S$62)","v":-0.13974705350321839},{"$f":"CORREL('Migration 2010'!$AB$11:$AB$62,Demographics!T$11:T$62)","v":0.21430115415668394},{"$f":"CORREL('Migration 2010'!$AB$11:$AB$62,Demographics!U$11:U$62)","v":0.30310864518672948},{"$f":"CORREL('Migration 2010'!$AB$11:$AB$62,Demographics!V$11:V$62)","v":-0.47315721814313355},{"$f":"CORREL('Migration 2010'!$AB$11:$AB$62,Demographics!W$11:W$62)","v":-0.1513737420897176},{"$f":"CORREL('Migration 2010'!$AB$11:$AB$62,Demographics!X$11:X$62)","v":0.55033367395521315},{"$f":"CORREL('Migration 2010'!$AB$11:$AB$62,Demographics!Y$11:Y$62)","v":0.13625391356499292},{"$f":"CORREL('Migration 2010'!$AB$11:$AB$62,Demographics!Z$11:Z$62)","v":0.52011818850862745},{"$f":"CORREL('Migration 2010'!$AB$11:$AB$62,Demographics!AA$11:AA$62)","v":-0.13058767294052193},{"$f":"CORREL('Migration 2010'!$AB$11:$AB$62,Demographics!AB$11:AB$62)","v":-2.9756566188422238E-2},{"$f":"CORREL('Migration 2010'!$AB$11:$AB$62,Demographics!AC$11:AC$62)","v":-0.19006488880432293},{"$f":"CORREL('Migration 2010'!$AB$11:$AB$62,Demographics!AD$11:AD$62)","v":0.50343104650854531},{"$f":"CORREL('Migration 2010'!$AB$11:$AB$62,Demographics!AE$11:AE$62)","v":0.27390599618081735},{"$f":"CORREL('Migration 2010'!$AB$11:$AB$62,Demographics!AF$11:AF$62)","v":-0.17699726592641576},{"$f":"CORREL('Migration 2010'!$AB$11:$AB$62,Demographics!AG$11:AG$62)","v":-0.15700802938792202},{"$f":"CORREL('Migration 2010'!$AB$11:$AB$62,Demographics!AH$11:AH$62)","v":0.34305647609516388},{"$f":"CORREL('Migration 2010'!$AB$11:$AB$62,Demographics!AI$11:AI$62)","v":0.45725157283219342},{"$f":"CORREL('Migration 2010'!$AB$11:$AB$62,Demographics!AJ$11:AJ$62)","v":0.49902200611688646},{"$f":"CORREL('Migration 2010'!$AB$11:$AB$62,Demographics!AK$11:AK$62)","v":0.22404459261270415},{"$f":"CORREL('Migration 2010'!$AB$11:$AB$62,Demographics!AL$11:AL$62)","v":0.52472557962790578},{"$f":"CORREL('Migration 2010'!$AB$11:$AB$62,Demographics!AM$11:AM$62)","v":0.48764704358459099},{"$f":"CORREL('Migration 2010'!$AB$11:$AB$62,Demographics!AN$11:AN$62)","v":0.27270103340386553},{"$f":"CORREL('Migration 2010'!$AB$11:$AB$62,Demographics!AO$11:AO$62)","v":-4.6273088639479126E-2},{"$f":"CORREL('Migration 2010'!$AB$11:$AB$62,Demographics!AP$11:AP$62)","v":1.4610692578681811E-2},{"$f":"CORREL('Migration 2010'!$AB$11:$AB$62,Demographics!AQ$11:AQ$62)","v":-4.8428316184167854E-2},{"$f":"CORREL('Migration 2010'!$AB$11:$AB$62,Demographics!AR$11:AR$62)","v":0.49890787733030184},{"$f":"CORREL('Migration 2010'!$AB$11:$AB$62,Demographics!AS$11:AS$62)","v":0.10758664186733785},{"$f":"CORREL('Migration 2010'!$AB$11:$AB$62,Demographics!AT$11:AT$62)","v":0.63947293340046207},{"$f":"CORREL('Migration 2010'!$AB$11:$AB$62,Demographics!AU$11:AU$62)","v":0.50920455867596837},{"$f":"CORREL('Migration 2010'!$AB$11:$AB$62,Demographics!AV$11:AV$62)","v":0.50823532372243807},{"$f":"CORREL('Migration 2010'!$AB$11:$AB$62,Demographics!AW$11:AW$62)","v":-0.16365457681133194},{"$f":"CORREL('Migration 2010'!$AB$11:$AB$62,Demographics!AX$11:AX$62)","v":0.4192182756192861},{"$f":"CORREL('Migration 2010'!$AB$11:$AB$62,Demographics!AY$11:AY$62)","v":0.8632883245592009},{"$f":"CORREL('Migration 2010'!$AB$11:$AB$62,Demographics!AZ$11:AZ$62)","v":0.28069741257863828},{"$f":"CORREL('Migration 2010'!$AB$11:$AB$62,Demographics!BA$11:BA$62)","v":-7.7290598563529531E-2}]
[null,"Maine",{"$f":"CORREL('Migration 2010'!$AC$11:$AC$62,Demographics!G$11:G$62)","v":-0.38846153534642602},{"$f":"CORREL('Migration 2010'!$AC$11:$AC$62,Demographics!H$11:H$62)","v":-0.36346734830415062},{"$f":"CORREL('Migration 2010'!$AC$11:$AC$62,Demographics!I$11:I$62)","v":0.22623628347521699},{"$f":"CORREL('Migration 2010'!$AC$11:$AC$62,Demographics!J$11:J$62)","v":0.2466877910801924},{"$f":"CORREL('Migration 2010'!$AC$11:$AC$62,Demographics!K$11:K$62)","v":1.0029364790480768E-2},{"$f":"CORREL('Migration 2010'!$AC$11:$AC$62,Demographics!L$11:L$62)","v":4.217157011523924E-2},{"$f":"CORREL('Migration 2010'!$AC$11:$AC$62,Demographics!M$11:M$62)","v":-0.15579770347279218},{"$f":"CORREL('Migration 2010'!$AC$11:$AC$62,Demographics!N$11:N$62)","v":5.6775950609951324E-2},{"$f":"CORREL('Migration 2010'!$AC$11:$AC$62,Demographics!O$11:O$62)","v":-8.5152730081969621E-2},{"$f":"CORREL('Migration 2010'!$AC$11:$AC$62,Demographics!P$11:P$62)","v":-8.1426060594864735E-2},{"$f":"CORREL('Migration 2010'!$AC$11:$AC$62,Demographics!Q$11:Q$62)","v":0.18116408373914081},{"$f":"CORREL('Migration 2010'!$AC$11:$AC$62,Demographics!R$11:R$62)","v":-9.8331313329700465E-2},{"$f":"CORREL('Migration 2010'!$AC$11:$AC$62,Demographics!S$11:S$62)","v":0.19621472223024303},{"$f":"CORREL('Migration 2010'!$AC$11:$AC$62,Demographics!T$11:T$62)","v":0.40073768611096433},{"$f":"CORREL('Migration 2010'!$AC$11:$AC$62,Demographics!U$11:U$62)","v":0.31936578066399834},{"$f":"CORREL('Migration 2010'!$AC$11:$AC$62,Demographics!V$11:V$62)","v":-3.2242565520844382E-2},{"$f":"CORREL('Migration 2010'!$AC$11:$AC$62,Demographics!W$11:W$62)","v":0.34715242734544682},{"$f":"CORREL('Migration 2010'!$AC$11:$AC$62,Demographics!X$11:X$62)","v":0.50480879404717383},{"$f":"CORREL('Migration 2010'!$AC$11:$AC$62,Demographics!Y$11:Y$62)","v":0.37318739465139655},{"$f":"CORREL('Migration 2010'!$AC$11:$AC$62,Demographics!Z$11:Z$62)","v":0.48687943308801468},{"$f":"CORREL('Migration 2010'!$AC$11:$AC$62,Demographics!AA$11:AA$62)","v":-0.18490923561313477},{"$f":"CORREL('Migration 2010'!$AC$11:$AC$62,Demographics!AB$11:AB$62)","v":0.42453609796375386},{"$f":"CORREL('Migration 2010'!$AC$11:$AC$62,Demographics!AC$11:AC$62)","v":0.25888723142471476},{"$f":"CORREL('Migration 2010'!$AC$11:$AC$62,Demographics!AD$11:AD$62)","v":0.46371890087822926},{"$f":"CORREL('Migration 2010'!$AC$11:$AC$62,Demographics!AE$11:AE$62)","v":1.4014708731959863E-2},{"$f":"CORREL('Migration 2010'!$AC$11:$AC$62,Demographics!AF$11:AF$62)","v":0.31848559732108173},{"$f":"CORREL('Migration 2010'!$AC$11:$AC$62,Demographics!AG$11:AG$62)","v":0.2155172815922102},{"$f":"CORREL('Migration 2010'!$AC$11:$AC$62,Demographics!AH$11:AH$62)","v":-0.15385775662928441},{"$f":"CORREL('Migration 2010'!$AC$11:$AC$62,Demographics!AI$11:AI$62)","v":0.48514649057302528},{"$f":"CORREL('Migration 2010'!$AC$11:$AC$62,Demographics!AJ$11:AJ$62)","v":0.46315621767737913},{"$f":"CORREL('Migration 2010'!$AC$11:$AC$62,Demographics!AK$11:AK$62)","v":4.4403384751853736E-2},{"$f":"CORREL('Migration 2010'!$AC$11:$AC$62,Demographics!AL$11:AL$62)","v":0.48107569956533947},{"$f":"CORREL('Migration 2010'!$AC$11:$AC$62,Demographics!AM$11:AM$62)","v":0.48571326727520292},{"$f":"CORREL('Migration 2010'!$AC$11:$AC$62,Demographics!AN$11:AN$62)","v":5.0729756819483801E-2},{"$f":"CORREL('Migration 2010'!$AC$11:$AC$62,Demographics!AO$11:AO$62)","v":-9.3692248086805194E-2},{"$f":"CORREL('Migration 2010'!$AC$11:$AC$62,Demographics!AP$11:AP$62)","v":3.7010680379992812E-2},{"$f":"CORREL('Migration 2010'!$AC$11:$AC$62,Demographics!AQ$11:AQ$62)","v":-6.8655904753198743E-2},{"$f":"CORREL('Migration 2010'!$AC$11:$AC$62,Demographics!AR$11:AR$62)","v":0.3860291778014267},{"$f":"CORREL('Migration 2010'!$AC$11:$AC$62,Demographics!AS$11:AS$62)","v":0.2333134096529465},{"$f":"CORREL('Migration 2010'!$AC$11:$AC$62,Demographics!AT$11:AT$62)","v":0.19229752231281466},{"$f":"CORREL('Migration 2010'!$AC$11:$AC$62,Demographics!AU$11:AU$62)","v":0.36203066083960023},{"$f":"CORREL('Migration 2010'!$AC$11:$AC$62,Demographics!AV$11:AV$62)","v":0.47491503206165875},{"$f":"CORREL('Migration 2010'!$AC$11:$AC$62,Demographics!AW$11:AW$62)","v":0.16883976182723565},{"$f":"CORREL('Migration 2010'!$AC$11:$AC$62,Demographics!AX$11:AX$62)","v":0.44916429645977846},{"$f":"CORREL('Migration 2010'!$AC$11:$AC$62,Demographics!AY$11:AY$62)","v":0.40146850808995843},{"$f":"CORREL('Migration 2010'!$AC$11:$AC$62,Demographics!AZ$11:AZ$62)","v":-5.8872446866336567E-2},{"$f":"CORREL('Migration 2010'!$AC$11:$AC$62,Demographics!BA$11:BA$62)","v":0.29968961458087418}]
[null,"Maryland",{"$f":"CORREL('Migration 2010'!$AD$11:$AD$62,Demographics!G$11:G$62)","v":-0.16872412308717505},{"$f":"CORREL('Migration 2010'!$AD$11:$AD$62,Demographics!H$11:H$62)","v":-0.17672684131841579},{"$f":"CORREL('Migration 2010'!$AD$11:$AD$62,Demographics!I$11:I$62)","v":8.2061963296480481E-2},{"$f":"CORREL('Migration 2010'!$AD$11:$AD$62,Demographics!J$11:J$62)","v":0.30257479052556907},{"$f":"CORREL('Migration 2010'!$AD$11:$AD$62,Demographics!K$11:K$62)","v":-0.21161345475920196},{"$f":"CORREL('Migration 2010'!$AD$11:$AD$62,Demographics!L$11:L$62)","v":0.31833754157504313},{"$f":"CORREL('Migration 2010'!$AD$11:$AD$62,Demographics!M$11:M$62)","v":-0.20710195935663403},{"$f":"CORREL('Migration 2010'!$AD$11:$AD$62,Demographics!N$11:N$62)","v":0.10099643491590123},{"$f":"CORREL('Migration 2010'!$AD$11:$AD$62,Demographics!O$11:O$62)","v":-7.8099079167274932E-2},{"$f":"CORREL('Migration 2010'!$AD$11:$AD$62,Demographics!P$11:P$62)","v":-7.2877826395582837E-2},{"$f":"CORREL('Migration 2010'!$AD$11:$AD$62,Demographics!Q$11:Q$62)","v":0.16536425181290046},{"$f":"CORREL('Migration 2010'!$AD$11:$AD$62,Demographics!R$11:R$62)","v":-0.26287393710728929},{"$f":"CORREL('Migration 2010'!$AD$11:$AD$62,Demographics!S$11:S$62)","v":0.22282422129957019},{"$f":"CORREL('Migration 2010'!$AD$11:$AD$62,Demographics!T$11:T$62)","v":0.3226599288812384},{"$f":"CORREL('Migration 2010'!$AD$11:$AD$62,Demographics!U$11:U$62)","v":0.24662253829595165},{"$f":"CORREL('Migration 2010'!$AD$11:$AD$62,Demographics!V$11:V$62)","v":-0.2421840565673164},{"$f":"CORREL('Migration 2010'!$AD$11:$AD$62,Demographics!W$11:W$62)","v":0.18862599981102299},{"$f":"CORREL('Migration 2010'!$AD$11:$AD$62,Demographics!X$11:X$62)","v":0.598206713652078},{"$f":"CORREL('Migration 2010'!$AD$11:$AD$62,Demographics!Y$11:Y$62)","v":0.45932117503052489},{"$f":"CORREL('Migration 2010'!$AD$11:$AD$62,Demographics!Z$11:Z$62)","v":0.5361797699107318},{"$f":"CORREL('Migration 2010'!$AD$11:$AD$62,Demographics!AA$11:AA$62)","v":-0.1043048255690375},{"$f":"CORREL('Migration 2010'!$AD$11:$AD$62,Demographics!AB$11:AB$62)","v":0.11099955646166067},{"$f":"CORREL('Migration 2010'!$AD$11:$AD$62,Demographics!AC$11:AC$62)","v":0.1507870186728183},{"$f":"CORREL('Migration 2010'!$AD$11:$AD$62,Demographics!AD$11:AD$62)","v":0.52938957007774179},{"$f":"CORREL('Migration 2010'!$AD$11:$AD$62,Demographics!AE$11:AE$62)","v":0.14125875115047615},{"$f":"CORREL('Migration 2010'!$AD$11:$AD$62,Demographics!AF$11:AF$62)","v":0.21585605823018222},{"$f":"CORREL('Migration 2010'!$AD$11:$AD$62,Demographics!AG$11:AG$62)","v":0.14434925663813619},{"$f":"CORREL('Migration 2010'!$AD$11:$AD$62,Demographics!AH$11:AH$62)","v":-2.8772284000173867E-2},{"$f":"CORREL('Migration 2010'!$AD$11:$AD$62,Demographics!AI$11:AI$62)","v":0.52130650565779058},{"$f":"CORREL('Migration 2010'!$AD$11:$AD$62,Demographics!AJ$11:AJ$62)","v":0.52443473717304834},{"$f":"CORREL('Migration 2010'!$AD$11:$AD$62,Demographics!AK$11:AK$62)","v":0.17181113793427774},{"$f":"CORREL('Migration 2010'!$AD$11:$AD$62,Demographics!AL$11:AL$62)","v":0.48987382919254535},{"$f":"CORREL('Migration 2010'!$AD$11:$AD$62,Demographics!AM$11:AM$62)","v":0.4986679809316017},{"$f":"CORREL('Migration 2010'!$AD$11:$AD$62,Demographics!AN$11:AN$62)","v":0.31648720659257118},{"$f":"CORREL('Migration 2010'!$AD$11:$AD$62,Demographics!AO$11:AO$62)","v":-0.15222798486817296},{"$f":"CORREL('Migration 2010'!$AD$11:$AD$62,Demographics!AP$11:AP$62)","v":0.12014253827997538},{"$f":"CORREL('Migration 2010'!$AD$11:$AD$62,Demographics!AQ$11:AQ$62)","v":-5.2577058681468815E-2},{"$f":"CORREL('Migration 2010'!$AD$11:$AD$62,Demographics!AR$11:AR$62)","v":0.30577868720007778},{"$f":"CORREL('Migration 2010'!$AD$11:$AD$62,Demographics!AS$11:AS$62)","v":0.36774539206179485},{"$f":"CORREL('Migration 2010'!$AD$11:$AD$62,Demographics!AT$11:AT$62)","v":0.34010506062856455},{"$f":"CORREL('Migration 2010'!$AD$11:$AD$62,Demographics!AU$11:AU$62)","v":0.39902382780504414},{"$f":"CORREL('Migration 2010'!$AD$11:$AD$62,Demographics!AV$11:AV$62)","v":0.5306872046045652},{"$f":"CORREL('Migration 2010'!$AD$11:$AD$62,Demographics!AW$11:AW$62)","v":-0.11055111291558739},{"$f":"CORREL('Migration 2010'!$AD$11:$AD$62,Demographics!AX$11:AX$62)","v":0.47549347825526023},{"$f":"CORREL('Migration 2010'!$AD$11:$AD$62,Demographics!AY$11:AY$62)","v":0.41083488445154576},{"$f":"CORREL('Migration 2010'!$AD$11:$AD$62,Demographics!AZ$11:AZ$62)","v":-7.658486885216087E-2},{"$f":"CORREL('Migration 2010'!$AD$11:$AD$62,Demographics!BA$11:BA$62)","v":0.21567360130260824}]
[null,"Massachusetts",{"$f":"CORREL('Migration 2010'!$AE$11:$AE$62,Demographics!G$11:G$62)","v":-0.41499606588441934},{"$f":"CORREL('Migration 2010'!$AE$11:$AE$62,Demographics!H$11:H$62)","v":-0.35041821159250308},{"$f":"CORREL('Migration 2010'!$AE$11:$AE$62,Demographics!I$11:I$62)","v":0.1510251826972748},{"$f":"CORREL('Migration 2010'!$AE$11:$AE$62,Demographics!J$11:J$62)","v":0.33392451991445815},{"$f":"CORREL('Migration 2010'!$AE$11:$AE$62,Demographics!K$11:K$62)","v":-4.9581847684779058E-2},{"$f":"CORREL('Migration 2010'!$AE$11:$AE$62,Demographics!L$11:L$62)","v":9.1201943910179301E-2},{"$f":"CORREL('Migration 2010'!$AE$11:$AE$62,Demographics!M$11:M$62)","v":-0.23197230885740749},{"$f":"CORREL('Migration 2010'!$AE$11:$AE$62,Demographics!N$11:N$62)","v":0.14366016704138826},{"$f":"CORREL('Migration 2010'!$AE$11:$AE$62,Demographics!O$11:O$62)","v":-8.0239304793632629E-2},{"$f":"CORREL('Migration 2010'!$AE$11:$AE$62,Demographics!P$11:P$62)","v":-8.4966006769772701E-2},{"$f":"CORREL('Migration 2010'!$AE$11:$AE$62,Demographics!Q$11:Q$62)","v":0.34870694251648832},{"$f":"CORREL('Migration 2010'!$AE$11:$AE$62,Demographics!R$11:R$62)","v":-0.23647766277639867},{"$f":"CORREL('Migration 2010'!$AE$11:$AE$62,Demographics!S$11:S$62)","v":0.34585683527683397},{"$f":"CORREL('Migration 2010'!$AE$11:$AE$62,Demographics!T$11:T$62)","v":0.58343024600275195},{"$f":"CORREL('Migration 2010'!$AE$11:$AE$62,Demographics!U$11:U$62)","v":0.50522958897298598},{"$f":"CORREL('Migration 2010'!$AE$11:$AE$62,Demographics!V$11:V$62)","v":-0.2065626294301614},{"$f":"CORREL('Migration 2010'!$AE$11:$AE$62,Demographics!W$11:W$62)","v":0.39054657392813175},{"$f":"CORREL('Migration 2010'!$AE$11:$AE$62,Demographics!X$11:X$62)","v":0.57763843634231593},{"$f":"CORREL('Migration 2010'!$AE$11:$AE$62,Demographics!Y$11:Y$62)","v":0.52579102277541789},{"$f":"CORREL('Migration 2010'!$AE$11:$AE$62,Demographics!Z$11:Z$62)","v":0.6186201290440827},{"$f":"CORREL('Migration 2010'!$AE$11:$AE$62,Demographics!AA$11:AA$62)","v":-0.40472185030866031},{"$f":"CORREL('Migration 2010'!$AE$11:$AE$62,Demographics!AB$11:AB$62)","v":0.64211836853084481},{"$f":"CORREL('Migration 2010'!$AE$11:$AE$62,Demographics!AC$11:AC$62)","v":0.3662174219045547},{"$f":"CORREL('Migration 2010'!$AE$11:$AE$62,Demographics!AD$11:AD$62)","v":0.61122158450805286},{"$f":"CORREL('Migration 2010'!$AE$11:$AE$62,Demographics!AE$11:AE$62)","v":0.12794282022868594},{"$f":"CORREL('Migration 2010'!$AE$11:$AE$62,Demographics!AF$11:AF$62)","v":0.3954469459798145},{"$f":"CORREL('Migration 2010'!$AE$11:$AE$62,Demographics!AG$11:AG$62)","v":0.27505938876483726},{"$f":"CORREL('Migration 2010'!$AE$11:$AE$62,Demographics!AH$11:AH$62)","v":-0.11340812142277383},{"$f":"CORREL('Migration 2010'!$AE$11:$AE$62,Demographics!AI$11:AI$62)","v":0.6438919535750256},{"$f":"CORREL('Migration 2010'!$AE$11:$AE$62,Demographics!AJ$11:AJ$62)","v":0.61330695659339352},{"$f":"CORREL('Migration 2010'!$AE$11:$AE$62,Demographics!AK$11:AK$62)","v":3.8495595613609744E-3},{"$f":"CORREL('Migration 2010'!$AE$11:$AE$62,Demographics!AL$11:AL$62)","v":0.64562758709519819},{"$f":"CORREL('Migration 2010'!$AE$11:$AE$62,Demographics!AM$11:AM$62)","v":0.65136731991082897},{"$f":"CORREL('Migration 2010'!$AE$11:$AE$62,Demographics!AN$11:AN$62)","v":0.13982626388485078},{"$f":"CORREL('Migration 2010'!$AE$11:$AE$62,Demographics!AO$11:AO$62)","v":-0.16752060278710248},{"$f":"CORREL('Migration 2010'!$AE$11:$AE$62,Demographics!AP$11:AP$62)","v":0.14177970626127315},{"$f":"CORREL('Migration 2010'!$AE$11:$AE$62,Demographics!AQ$11:AQ$62)","v":-5.2939083945590146E-2},{"$f":"CORREL('Migration 2010'!$AE$11:$AE$62,Demographics!AR$11:AR$62)","v":0.50697083514989949},{"$f":"CORREL('Migration 2010'!$AE$11:$AE$62,Demographics!AS$11:AS$62)","v":0.33057618185025306},{"$f":"CORREL('Migration 2010'!$AE$11:$AE$62,Demographics!AT$11:AT$62)","v":0.32345981333292451},{"$f":"CORREL('Migration 2010'!$AE$11:$AE$62,Demographics!AU$11:AU$62)","v":0.59702866674572452},{"$f":"CORREL('Migration 2010'!$AE$11:$AE$62,Demographics!AV$11:AV$62)","v":0.61912719389021198},{"$f":"CORREL('Migration 2010'!$AE$11:$AE$62,Demographics!AW$11:AW$62)","v":0.10249699193019493},{"$f":"CORREL('Migration 2010'!$AE$11:$AE$62,Demographics!AX$11:AX$62)","v":0.61788710637347488},{"$f":"CORREL('Migration 2010'!$AE$11:$AE$62,Demographics!AY$11:AY$62)","v":0.41848674517329026},{"$f":"CORREL('Migration 2010'!$AE$11:$AE$62,Demographics!AZ$11:AZ$62)","v":-0.10211636571438597},{"$f":"CORREL('Migration 2010'!$AE$11:$AE$62,Demographics!BA$11:BA$62)","v":0.4075472464126827}]
[null,"Michigan",{"$f":"CORREL('Migration 2010'!$AF$11:$AF$62,Demographics!G$11:G$62)","v":-3.1714770868736926E-2},{"$f":"CORREL('Migration 2010'!$AF$11:$AF$62,Demographics!H$11:H$62)","v":2.7300094069491656E-2},{"$f":"CORREL('Migration 2010'!$AF$11:$AF$62,Demographics!I$11:I$62)","v":1.6268890872873528E-2},{"$f":"CORREL('Migration 2010'!$AF$11:$AF$62,Demographics!J$11:J$62)","v":0.2075430928498774},{"$f":"CORREL('Migration 2010'!$AF$11:$AF$62,Demographics!K$11:K$62)","v":-0.10418421753225852},{"$f":"CORREL('Migration 2010'!$AF$11:$AF$62,Demographics!L$11:L$62)","v":0.25919756816059608},{"$f":"CORREL('Migration 2010'!$AF$11:$AF$62,Demographics!M$11:M$62)","v":-0.22174004356144805},{"$f":"CORREL('Migration 2010'!$AF$11:$AF$62,Demographics!N$11:N$62)","v":6.842575623118353E-3},{"$f":"CORREL('Migration 2010'!$AF$11:$AF$62,Demographics!O$11:O$62)","v":-0.11799200796385921},{"$f":"CORREL('Migration 2010'!$AF$11:$AF$62,Demographics!P$11:P$62)","v":-0.13249414248705579},{"$f":"CORREL('Migration 2010'!$AF$11:$AF$62,Demographics!Q$11:Q$62)","v":0.35623116499739788},{"$f":"CORREL('Migration 2010'!$AF$11:$AF$62,Demographics!R$11:R$62)","v":-0.30913669700734714},{"$f":"CORREL('Migration 2010'!$AF$11:$AF$62,Demographics!S$11:S$62)","v":-1.4023548058496262E-2},{"$f":"CORREL('Migration 2010'!$AF$11:$AF$62,Demographics!T$11:T$62)","v":0.35825403772154835},{"$f":"CORREL('Migration 2010'!$AF$11:$AF$62,Demographics!U$11:U$62)","v":0.34295223259739122},{"$f":"CORREL('Migration 2010'!$AF$11:$AF$62,Demographics!V$11:V$62)","v":-0.35325629663284513},{"$f":"CORREL('Migration 2010'!$AF$11:$AF$62,Demographics!W$11:W$62)","v":-6.6900488436836741E-2},{"$f":"CORREL('Migration 2010'!$AF$11:$AF$62,Demographics!X$11:X$62)","v":0.83703917342145451},{"$f":"CORREL('Migration 2010'!$AF$11:$AF$62,Demographics!Y$11:Y$62)","v":0.33459725344493585},{"$f":"CORREL('Migration 2010'!$AF$11:$AF$62,Demographics!Z$11:Z$62)","v":0.78284457399894236},{"$f":"CORREL('Migration 2010'!$AF$11:$AF$62,Demographics!AA$11:AA$62)","v":-0.15006103171504803},{"$f":"CORREL('Migration 2010'!$AF$11:$AF$62,Demographics!AB$11:AB$62)","v":0.15240223736229569},{"$f":"CORREL('Migration 2010'!$AF$11:$AF$62,Demographics!AC$11:AC$62)","v":-9.7501323019566974E-2},{"$f":"CORREL('Migration 2010'!$AF$11:$AF$62,Demographics!AD$11:AD$62)","v":0.75998459146689112},{"$f":"CORREL('Migration 2010'!$AF$11:$AF$62,Demographics!AE$11:AE$62)","v":0.18351645092245941},{"$f":"CORREL('Migration 2010'!$AF$11:$AF$62,Demographics!AF$11:AF$62)","v":-7.6044441951446703E-2},{"$f":"CORREL('Migration 2010'!$AF$11:$AF$62,Demographics!AG$11:AG$62)","v":-0.11629882523304973},{"$f":"CORREL('Migration 2010'!$AF$11:$AF$62,Demographics!AH$11:AH$62)","v":0.25207928166284221},{"$f":"CORREL('Migration 2010'!$AF$11:$AF$62,Demographics!AI$11:AI$62)","v":0.72475253835215658},{"$f":"CORREL('Migration 2010'!$AF$11:$AF$62,Demographics!AJ$11:AJ$62)","v":0.73962843348207996},{"$f":"CORREL('Migration 2010'!$AF$11:$AF$62,Demographics!AK$11:AK$62)","v":0.33539455287394321},{"$f":"CORREL('Migration 2010'!$AF$11:$AF$62,Demographics!AL$11:AL$62)","v":0.73440467147038524},{"$f":"CORREL('Migration 2010'!$AF$11:$AF$62,Demographics!AM$11:AM$62)","v":0.72735514534047874},{"$f":"CORREL('Migration 2010'!$AF$11:$AF$62,Demographics!AN$11:AN$62)","v":0.31027634121910036},{"$f":"CORREL('Migration 2010'!$AF$11:$AF$62,Demographics!AO$11:AO$62)","v":-0.15693423793586284},{"$f":"CORREL('Migration 2010'!$AF$11:$AF$62,Demographics!AP$11:AP$62)","v":3.4921470481917898E-2},{"$f":"CORREL('Migration 2010'!$AF$11:$AF$62,Demographics!AQ$11:AQ$62)","v":-8.8888485144334478E-2},{"$f":"CORREL('Migration 2010'!$AF$11:$AF$62,Demographics!AR$11:AR$62)","v":0.5267209865575363},{"$f":"CORREL('Migration 2010'!$AF$11:$AF$62,Demographics!AS$11:AS$62)","v":0.35213729546580624},{"$f":"CORREL('Migration 2010'!$AF$11:$AF$62,Demographics!AT$11:AT$62)","v":0.68152271758648508},{"$f":"CORREL('Migration 2010'!$AF$11:$AF$62,Demographics!AU$11:AU$62)","v":0.63189104008130881},{"$f":"CORREL('Migration 2010'!$AF$11:$AF$62,Demographics!AV$11:AV$62)","v":0.7479169743135583},{"$f":"CORREL('Migration 2010'!$AF$11:$AF$62,Demographics!AW$11:AW$62)","v":-0.27412560429106653},{"$f":"CORREL('Migration 2010'!$AF$11:$AF$62,Demographics!AX$11:AX$62)","v":0.67617033057660869},{"$f":"CORREL('Migration 2010'!$AF$11:$AF$62,Demographics!AY$11:AY$62)","v":0.68589561055260195},{"$f":"CORREL('Migration 2010'!$AF$11:$AF$62,Demographics!AZ$11:AZ$62)","v":7.3424290748569251E-2},{"$f":"CORREL('Migration 2010'!$AF$11:$AF$62,Demographics!BA$11:BA$62)","v":4.469090419775483E-2}]
[null,"Minnesota",{"$f":"CORREL('Migration 2010'!$AG$11:$AG$62,Demographics!G$11:G$62)","v":8.5590471672441965E-2},{"$f":"CORREL('Migration 2010'!$AG$11:$AG$62,Demographics!H$11:H$62)","v":3.7949256319858286E-2},{"$f":"CORREL('Migration 2010'!$AG$11:$AG$62,Demographics!I$11:I$62)","v":3.0461672659635078E-2},{"$f":"CORREL('Migration 2010'!$AG$11:$AG$62,Demographics!J$11:J$62)","v":-0.20467586492026865},{"$f":"CORREL('Migration 2010'!$AG$11:$AG$62,Demographics!K$11:K$62)","v":0.18460798600500003},{"$f":"CORREL('Migration 2010'!$AG$11:$AG$62,Demographics!L$11:L$62)","v":-0.16844120976695701},{"$f":"CORREL('Migration 2010'!$AG$11:$AG$62,Demographics!M$11:M$62)","v":6.2787940338405457E-2},{"$f":"CORREL('Migration 2010'!$AG$11:$AG$62,Demographics!N$11:N$62)","v":-5.9227455029921244E-2},{"$f":"CORREL('Migration 2010'!$AG$11:$AG$62,Demographics!O$11:O$62)","v":-9.5859967967454995E-2},{"$f":"CORREL('Migration 2010'!$AG$11:$AG$62,Demographics!P$11:P$62)","v":-0.11617799084269936},{"$f":"CORREL('Migration 2010'!$AG$11:$AG$62,Demographics!Q$11:Q$62)","v":0.10869704214618338},{"$f":"CORREL('Migration 2010'!$AG$11:$AG$62,Demographics!R$11:R$62)","v":7.023260356068374E-2},{"$f":"CORREL('Migration 2010'!$AG$11:$AG$62,Demographics!S$11:S$62)","v":-8.4910659608950667E-2},{"$f":"CORREL('Migration 2010'!$AG$11:$AG$62,Demographics!T$11:T$62)","v":2.7634889392662305E-2},{"$f":"CORREL('Migration 2010'!$AG$11:$AG$62,Demographics!U$11:U$62)","v":6.5418099459651061E-2},{"$f":"CORREL('Migration 2010'!$AG$11:$AG$62,Demographics!V$11:V$62)","v":0.11247189328783354},{"$f":"CORREL('Migration 2010'!$AG$11:$AG$62,Demographics!W$11:W$62)","v":-1.2387742726465964E-2},{"$f":"CORREL('Migration 2010'!$AG$11:$AG$62,Demographics!X$11:X$62)","v":0.24642267007745264},{"$f":"CORREL('Migration 2010'!$AG$11:$AG$62,Demographics!Y$11:Y$62)","v":-0.21826707545646667},{"$f":"CORREL('Migration 2010'!$AG$11:$AG$62,Demographics!Z$11:Z$62)","v":0.24866828137541075},{"$f":"CORREL('Migration 2010'!$AG$11:$AG$62,Demographics!AA$11:AA$62)","v":-6.5647451520170194E-2},{"$f":"CORREL('Migration 2010'!$AG$11:$AG$62,Demographics!AB$11:AB$62)","v":0.11651951255892377},{"$f":"CORREL('Migration 2010'!$AG$11:$AG$62,Demographics!AC$11:AC$62)","v":-0.13825181356847407},{"$f":"CORREL('Migration 2010'!$AG$11:$AG$62,Demographics!AD$11:AD$62)","v":0.24475251489242111},{"$f":"CORREL('Migration 2010'!$AG$11:$AG$62,Demographics!AE$11:AE$62)","v":-0.15463315102329656},{"$f":"CORREL('Migration 2010'!$AG$11:$AG$62,Demographics!AF$11:AF$62)","v":3.5000881802192481E-3},{"$f":"CORREL('Migration 2010'!$AG$11:$AG$62,Demographics!AG$11:AG$62)","v":-3.5987659809602328E-2},{"$f":"CORREL('Migration 2010'!$AG$11:$AG$62,Demographics!AH$11:AH$62)","v":-6.9352252609429316E-2},{"$f":"CORREL('Migration 2010'!$AG$11:$AG$62,Demographics!AI$11:AI$62)","v":0.24074701476271793},{"$f":"CORREL('Migration 2010'!$AG$11:$AG$62,Demographics!AJ$11:AJ$62)","v":0.25426531635710486},{"$f":"CORREL('Migration 2010'!$AG$11:$AG$62,Demographics!AK$11:AK$62)","v":0.35685353924061036},{"$f":"CORREL('Migration 2010'!$AG$11:$AG$62,Demographics!AL$11:AL$62)","v":0.2375521330575566},{"$f":"CORREL('Migration 2010'!$AG$11:$AG$62,Demographics!AM$11:AM$62)","v":0.23433631784573028},{"$f":"CORREL('Migration 2010'!$AG$11:$AG$62,Demographics!AN$11:AN$62)","v":-0.14362354856696588},{"$f":"CORREL('Migration 2010'!$AG$11:$AG$62,Demographics!AO$11:AO$62)","v":-5.8265589375510185E-2},{"$f":"CORREL('Migration 2010'!$AG$11:$AG$62,Demographics!AP$11:AP$62)","v":-7.4471783136347391E-2},{"$f":"CORREL('Migration 2010'!$AG$11:$AG$62,Demographics!AQ$11:AQ$62)","v":-8.0657836262416266E-2},{"$f":"CORREL('Migration 2010'!$AG$11:$AG$62,Demographics!AR$11:AR$62)","v":0.12716053627177182},{"$f":"CORREL('Migration 2010'!$AG$11:$AG$62,Demographics!AS$11:AS$62)","v":-0.12636342042930487},{"$f":"CORREL('Migration 2010'!$AG$11:$AG$62,Demographics!AT$11:AT$62)","v":0.26562919291897913},{"$f":"CORREL('Migration 2010'!$AG$11:$AG$62,Demographics!AU$11:AU$62)","v":0.22688476469064917},{"$f":"CORREL('Migration 2010'!$AG$11:$AG$62,Demographics!AV$11:AV$62)","v":0.24836908493535184},{"$f":"CORREL('Migration 2010'!$AG$11:$AG$62,Demographics!AW$11:AW$62)","v":6.2334610930072067E-2},{"$f":"CORREL('Migration 2010'!$AG$11:$AG$62,Demographics!AX$11:AX$62)","v":0.2107475485222044},{"$f":"CORREL('Migration 2010'!$AG$11:$AG$62,Demographics!AY$11:AY$62)","v":0.27655308985150484},{"$f":"CORREL('Migration 2010'!$AG$11:$AG$62,Demographics!AZ$11:AZ$62)","v":8.4419460610516125E-2},{"$f":"CORREL('Migration 2010'!$AG$11:$AG$62,Demographics!BA$11:BA$62)","v":-0.14088853308120261}]
[null,"Mississippi",{"$f":"CORREL('Migration 2010'!$AH$11:$AH$62,Demographics!G$11:G$62)","v":0.10395254671203331},{"$f":"CORREL('Migration 2010'!$AH$11:$AH$62,Demographics!H$11:H$62)","v":0.10113008271401017},{"$f":"CORREL('Migration 2010'!$AH$11:$AH$62,Demographics!I$11:I$62)","v":-4.2846517124790623E-2},{"$f":"CORREL('Migration 2010'!$AH$11:$AH$62,Demographics!J$11:J$62)","v":0.23844597934786518},{"$f":"CORREL('Migration 2010'!$AH$11:$AH$62,Demographics!K$11:K$62)","v":-0.24206403678615529},{"$f":"CORREL('Migration 2010'!$AH$11:$AH$62,Demographics!L$11:L$62)","v":0.4888327901485805},{"$f":"CORREL('Migration 2010'!$AH$11:$AH$62,Demographics!M$11:M$62)","v":-0.16050143191657804},{"$f":"CORREL('Migration 2010'!$AH$11:$AH$62,Demographics!N$11:N$62)","v":-7.6557531920654537E-2},{"$f":"CORREL('Migration 2010'!$AH$11:$AH$62,Demographics!O$11:O$62)","v":-8.6793911920402506E-2},{"$f":"CORREL('Migration 2010'!$AH$11:$AH$62,Demographics!P$11:P$62)","v":-0.12432279393447407},{"$f":"CORREL('Migration 2010'!$AH$11:$AH$62,Demographics!Q$11:Q$62)","v":0.19593415067160022},{"$f":"CORREL('Migration 2010'!$AH$11:$AH$62,Demographics!R$11:R$62)","v":-0.32091630194088394},{"$f":"CORREL('Migration 2010'!$AH$11:$AH$62,Demographics!S$11:S$62)","v":-9.0916452399682948E-2},{"$f":"CORREL('Migration 2010'!$AH$11:$AH$62,Demographics!T$11:T$62)","v":0.11422697918680388},{"$f":"CORREL('Migration 2010'!$AH$11:$AH$62,Demographics!U$11:U$62)","v":0.13272014466629065},{"$f":"CORREL('Migration 2010'!$AH$11:$AH$62,Demographics!V$11:V$62)","v":-0.59611805276010565},{"$f":"CORREL('Migration 2010'!$AH$11:$AH$62,Demographics!W$11:W$62)","v":-0.30367257246169266},{"$f":"CORREL('Migration 2010'!$AH$11:$AH$62,Demographics!X$11:X$62)","v":0.48951614658576426},{"$f":"CORREL('Migration 2010'!$AH$11:$AH$62,Demographics!Y$11:Y$62)","v":0.18336072693988181},{"$f":"CORREL('Migration 2010'!$AH$11:$AH$62,Demographics!Z$11:Z$62)","v":0.44300091839039696},{"$f":"CORREL('Migration 2010'!$AH$11:$AH$62,Demographics!AA$11:AA$62)","v":-8.5369947234165064E-2},{"$f":"CORREL('Migration 2010'!$AH$11:$AH$62,Demographics!AB$11:AB$62)","v":-9.0060621032234042E-2},{"$f":"CORREL('Migration 2010'!$AH$11:$AH$62,Demographics!AC$11:AC$62)","v":-0.22465994330697786},{"$f":"CORREL('Migration 2010'!$AH$11:$AH$62,Demographics!AD$11:AD$62)","v":0.41869835798368737},{"$f":"CORREL('Migration 2010'!$AH$11:$AH$62,Demographics!AE$11:AE$62)","v":0.16486029265135471},{"$f":"CORREL('Migration 2010'!$AH$11:$AH$62,Demographics!AF$11:AF$62)","v":-0.28516758219332872},{"$f":"CORREL('Migration 2010'!$AH$11:$AH$62,Demographics!AG$11:AG$62)","v":-0.3306718130840377},{"$f":"CORREL('Migration 2010'!$AH$11:$AH$62,Demographics!AH$11:AH$62)","v":0.49964085030703531},{"$f":"CORREL('Migration 2010'!$AH$11:$AH$62,Demographics!AI$11:AI$62)","v":0.38603851788579402},{"$f":"CORREL('Migration 2010'!$AH$11:$AH$62,Demographics!AJ$11:AJ$62)","v":0.39616451675310183},{"$f":"CORREL('Migration 2010'!$AH$11:$AH$62,Demographics!AK$11:AK$62)","v":0.1728686767450153},{"$f":"CORREL('Migration 2010'!$AH$11:$AH$62,Demographics!AL$11:AL$62)","v":0.44381453060203407},{"$f":"CORREL('Migration 2010'!$AH$11:$AH$62,Demographics!AM$11:AM$62)","v":0.41902978271151098},{"$f":"CORREL('Migration 2010'!$AH$11:$AH$62,Demographics!AN$11:AN$62)","v":0.47886662113363748},{"$f":"CORREL('Migration 2010'!$AH$11:$AH$62,Demographics!AO$11:AO$62)","v":-6.8553230087451678E-2},{"$f":"CORREL('Migration 2010'!$AH$11:$AH$62,Demographics!AP$11:AP$62)","v":-2.2968818151280612E-2},{"$f":"CORREL('Migration 2010'!$AH$11:$AH$62,Demographics!AQ$11:AQ$62)","v":-6.3342475144481089E-2},{"$f":"CORREL('Migration 2010'!$AH$11:$AH$62,Demographics!AR$11:AR$62)","v":0.37809986092583175},{"$f":"CORREL('Migration 2010'!$AH$11:$AH$62,Demographics!AS$11:AS$62)","v":0.10607057549757025},{"$f":"CORREL('Migration 2010'!$AH$11:$AH$62,Demographics!AT$11:AT$62)","v":0.44139042671402512},{"$f":"CORREL('Migration 2010'!$AH$11:$AH$62,Demographics!AU$11:AU$62)","v":0.36454263754208344},{"$f":"CORREL('Migration 2010'!$AH$11:$AH$62,Demographics!AV$11:AV$62)","v":0.41911598215111218},{"$f":"CORREL('Migration 2010'!$AH$11:$AH$62,Demographics!AW$11:AW$62)","v":-0.23220070713632077},{"$f":"CORREL('Migration 2010'!$AH$11:$AH$62,Demographics!AX$11:AX$62)","v":0.36743512802889144},{"$f":"CORREL('Migration 2010'!$AH$11:$AH$62,Demographics!AY$11:AY$62)","v":0.57780783768216926},{"$f":"CORREL('Migration 2010'!$AH$11:$AH$62,Demographics!AZ$11:AZ$62)","v":8.2772042557516842E-2},{"$f":"CORREL('Migration 2010'!$AH$11:$AH$62,Demographics!BA$11:BA$62)","v":-7.6864596152878162E-2}]
[null,"Missouri",{"$f":"CORREL('Migration 2010'!$AI$11:$AI$62,Demographics!G$11:G$62)","v":0.20148449757074191},{"$f":"CORREL('Migration 2010'!$AI$11:$AI$62,Demographics!H$11:H$62)","v":0.24165037515710971},{"$f":"CORREL('Migration 2010'!$AI$11:$AI$62,Demographics!I$11:I$62)","v":-0.11128938355192544},{"$f":"CORREL('Migration 2010'!$AI$11:$AI$62,Demographics!J$11:J$62)","v":3.8441246175342093E-2},{"$f":"CORREL('Migration 2010'!$AI$11:$AI$62,Demographics!K$11:K$62)","v":2.8154916575777129E-2},{"$f":"CORREL('Migration 2010'!$AI$11:$AI$62,Demographics!L$11:L$62)","v":6.8501611847990085E-2},{"$f":"CORREL('Migration 2010'!$AI$11:$AI$62,Demographics!M$11:M$62)","v":-0.15492114643598134},{"$f":"CORREL('Migration 2010'!$AI$11:$AI$62,Demographics!N$11:N$62)","v":-2.0250451777330043E-2},{"$f":"CORREL('Migration 2010'!$AI$11:$AI$62,Demographics!O$11:O$62)","v":-0.10199447081265736},{"$f":"CORREL('Migration 2010'!$AI$11:$AI$62,Demographics!P$11:P$62)","v":-9.0629724459361058E-2},{"$f":"CORREL('Migration 2010'!$AI$11:$AI$62,Demographics!Q$11:Q$62)","v":0.26297345802771305},{"$f":"CORREL('Migration 2010'!$AI$11:$AI$62,Demographics!R$11:R$62)","v":-0.14986871087332901},{"$f":"CORREL('Migration 2010'!$AI$11:$AI$62,Demographics!S$11:S$62)","v":-0.13269667436822807},{"$f":"CORREL('Migration 2010'!$AI$11:$AI$62,Demographics!T$11:T$62)","v":0.19190952568819841},{"$f":"CORREL('Migration 2010'!$AI$11:$AI$62,Demographics!U$11:U$62)","v":0.20206511727079424},{"$f":"CORREL('Migration 2010'!$AI$11:$AI$62,Demographics!V$11:V$62)","v":-0.18485607042451263},{"$f":"CORREL('Migration 2010'!$AI$11:$AI$62,Demographics!W$11:W$62)","v":-8.6041039285678269E-3},{"$f":"CORREL('Migration 2010'!$AI$11:$AI$62,Demographics!X$11:X$62)","v":0.39252401253128949},{"$f":"CORREL('Migration 2010'!$AI$11:$AI$62,Demographics!Y$11:Y$62)","v":2.9679705475943199E-2},{"$f":"CORREL('Migration 2010'!$AI$11:$AI$62,Demographics!Z$11:Z$62)","v":0.38164614364562738},{"$f":"CORREL('Migration 2010'!$AI$11:$AI$62,Demographics!AA$11:AA$62)","v":-7.3293553347651974E-2},{"$f":"CORREL('Migration 2010'!$AI$11:$AI$62,Demographics!AB$11:AB$62)","v":-1.0209354303545958E-2},{"$f":"CORREL('Migration 2010'!$AI$11:$AI$62,Demographics!AC$11:AC$62)","v":-0.18804642030004096},{"$f":"CORREL('Migration 2010'!$AI$11:$AI$62,Demographics!AD$11:AD$62)","v":0.37939547117082345},{"$f":"CORREL('Migration 2010'!$AI$11:$AI$62,Demographics!AE$11:AE$62)","v":0.11582436907121955},{"$f":"CORREL('Migration 2010'!$AI$11:$AI$62,Demographics!AF$11:AF$62)","v":-9.97824819581975E-2},{"$f":"CORREL('Migration 2010'!$AI$11:$AI$62,Demographics!AG$11:AG$62)","v":-0.10804942059435745},{"$f":"CORREL('Migration 2010'!$AI$11:$AI$62,Demographics!AH$11:AH$62)","v":0.14036371932286562},{"$f":"CORREL('Migration 2010'!$AI$11:$AI$62,Demographics!AI$11:AI$62)","v":0.36701619102676936},{"$f":"CORREL('Migration 2010'!$AI$11:$AI$62,Demographics!AJ$11:AJ$62)","v":0.38220787327747935},{"$f":"CORREL('Migration 2010'!$AI$11:$AI$62,Demographics!AK$11:AK$62)","v":1.7799292262875546E-2},{"$f":"CORREL('Migration 2010'!$AI$11:$AI$62,Demographics!AL$11:AL$62)","v":0.37345556668724122},{"$f":"CORREL('Migration 2010'!$AI$11:$AI$62,Demographics!AM$11:AM$62)","v":0.36553404276655155},{"$f":"CORREL('Migration 2010'!$AI$11:$AI$62,Demographics!AN$11:AN$62)","v":9.2163856489863916E-2},{"$f":"CORREL('Migration 2010'!$AI$11:$AI$62,Demographics!AO$11:AO$62)","v":-8.7566468901424013E-2},{"$f":"CORREL('Migration 2010'!$AI$11:$AI$62,Demographics!AP$11:AP$62)","v":-1.5983894920609368E-2},{"$f":"CORREL('Migration 2010'!$AI$11:$AI$62,Demographics!AQ$11:AQ$62)","v":-8.9729771968539679E-2},{"$f":"CORREL('Migration 2010'!$AI$11:$AI$62,Demographics!AR$11:AR$62)","v":0.25074593819272323},{"$f":"CORREL('Migration 2010'!$AI$11:$AI$62,Demographics!AS$11:AS$62)","v":0.16009111535320375},{"$f":"CORREL('Migration 2010'!$AI$11:$AI$62,Demographics!AT$11:AT$62)","v":0.42823319739879623},{"$f":"CORREL('Migration 2010'!$AI$11:$AI$62,Demographics!AU$11:AU$62)","v":0.38572841261415602},{"$f":"CORREL('Migration 2010'!$AI$11:$AI$62,Demographics!AV$11:AV$62)","v":0.37943565588996764},{"$f":"CORREL('Migration 2010'!$AI$11:$AI$62,Demographics!AW$11:AW$62)","v":-0.25257733052069209},{"$f":"CORREL('Migration 2010'!$AI$11:$AI$62,Demographics!AX$11:AX$62)","v":0.32842423266951543},{"$f":"CORREL('Migration 2010'!$AI$11:$AI$62,Demographics!AY$11:AY$62)","v":0.38129755414726307},{"$f":"CORREL('Migration 2010'!$AI$11:$AI$62,Demographics!AZ$11:AZ$62)","v":9.4014607292063651E-2},{"$f":"CORREL('Migration 2010'!$AI$11:$AI$62,Demographics!BA$11:BA$62)","v":-0.12183438821009573}]
[null,"Montana",{"$f":"CORREL('Migration 2010'!$AJ$11:$AJ$62,Demographics!G$11:G$62)","v":0.26240263509972195},{"$f":"CORREL('Migration 2010'!$AJ$11:$AJ$62,Demographics!H$11:H$62)","v":0.21888651401668635},{"$f":"CORREL('Migration 2010'!$AJ$11:$AJ$62,Demographics!I$11:I$62)","v":-0.30058387177172985},{"$f":"CORREL('Migration 2010'!$AJ$11:$AJ$62,Demographics!J$11:J$62)","v":-0.4408093217125108},{"$f":"CORREL('Migration 2010'!$AJ$11:$AJ$62,Demographics!K$11:K$62)","v":0.21680532268269037},{"$f":"CORREL('Migration 2010'!$AJ$11:$AJ$62,Demographics!L$11:L$62)","v":-0.39097675187141506},{"$f":"CORREL('Migration 2010'!$AJ$11:$AJ$62,Demographics!M$11:M$62)","v":0.13914769883114339},{"$f":"CORREL('Migration 2010'!$AJ$11:$AJ$62,Demographics!N$11:N$62)","v":9.1204911695480936E-2},{"$f":"CORREL('Migration 2010'!$AJ$11:$AJ$62,Demographics!O$11:O$62)","v":-1.1616220374871214E-3},{"$f":"CORREL('Migration 2010'!$AJ$11:$AJ$62,Demographics!P$11:P$62)","v":4.75950396574241E-2},{"$f":"CORREL('Migration 2010'!$AJ$11:$AJ$62,Demographics!Q$11:Q$62)","v":0.32460939150745011},{"$f":"CORREL('Migration 2010'!$AJ$11:$AJ$62,Demographics!R$11:R$62)","v":-2.8573202197556206E-2},{"$f":"CORREL('Migration 2010'!$AJ$11:$AJ$62,Demographics!S$11:S$62)","v":-0.42561672439535569},{"$f":"CORREL('Migration 2010'!$AJ$11:$AJ$62,Demographics!T$11:T$62)","v":0.22754579634293773},{"$f":"CORREL('Migration 2010'!$AJ$11:$AJ$62,Demographics!U$11:U$62)","v":0.26109470459084355},{"$f":"CORREL('Migration 2010'!$AJ$11:$AJ$62,Demographics!V$11:V$62)","v":0.19451695812175715},{"$f":"CORREL('Migration 2010'!$AJ$11:$AJ$62,Demographics!W$11:W$62)","v":0.17667761191004316},{"$f":"CORREL('Migration 2010'!$AJ$11:$AJ$62,Demographics!X$11:X$62)","v":0.17318157534442183},{"$f":"CORREL('Migration 2010'!$AJ$11:$AJ$62,Demographics!Y$11:Y$62)","v":-9.0383271750114069E-2},{"$f":"CORREL('Migration 2010'!$AJ$11:$AJ$62,Demographics!Z$11:Z$62)","v":0.15660710166577313},{"$f":"CORREL('Migration 2010'!$AJ$11:$AJ$62,Demographics!AA$11:AA$62)","v":-0.25708638294434438},{"$f":"CORREL('Migration 2010'!$AJ$11:$AJ$62,Demographics!AB$11:AB$62)","v":1.3221589733370965E-2},{"$f":"CORREL('Migration 2010'!$AJ$11:$AJ$62,Demographics!AC$11:AC$62)","v":0.22816381142120448},{"$f":"CORREL('Migration 2010'!$AJ$11:$AJ$62,Demographics!AD$11:AD$62)","v":0.17229457796624167},{"$f":"CORREL('Migration 2010'!$AJ$11:$AJ$62,Demographics!AE$11:AE$62)","v":0.17494010413884384},{"$f":"CORREL('Migration 2010'!$AJ$11:$AJ$62,Demographics!AF$11:AF$62)","v":8.1276122707458501E-2},{"$f":"CORREL('Migration 2010'!$AJ$11:$AJ$62,Demographics!AG$11:AG$62)","v":0.15114683680467239},{"$f":"CORREL('Migration 2010'!$AJ$11:$AJ$62,Demographics!AH$11:AH$62)","v":-9.4009868062011032E-2},{"$f":"CORREL('Migration 2010'!$AJ$11:$AJ$62,Demographics!AI$11:AI$62)","v":0.2015390249321648},{"$f":"CORREL('Migration 2010'!$AJ$11:$AJ$62,Demographics!AJ$11:AJ$62)","v":0.17192169186927506},{"$f":"CORREL('Migration 2010'!$AJ$11:$AJ$62,Demographics!AK$11:AK$62)","v":-4.2281733778257828E-2},{"$f":"CORREL('Migration 2010'!$AJ$11:$AJ$62,Demographics!AL$11:AL$62)","v":0.17990517732023617},{"$f":"CORREL('Migration 2010'!$AJ$11:$AJ$62,Demographics!AM$11:AM$62)","v":0.19054919541582219},{"$f":"CORREL('Migration 2010'!$AJ$11:$AJ$62,Demographics!AN$11:AN$62)","v":-0.36770601586148799},{"$f":"CORREL('Migration 2010'!$AJ$11:$AJ$62,Demographics!AO$11:AO$62)","v":8.6285395801579401E-2},{"$f":"CORREL('Migration 2010'!$AJ$11:$AJ$62,Demographics!AP$11:AP$62)","v":4.0599543005065512E-2},{"$f":"CORREL('Migration 2010'!$AJ$11:$AJ$62,Demographics!AQ$11:AQ$62)","v":-5.4182670125801309E-2},{"$f":"CORREL('Migration 2010'!$AJ$11:$AJ$62,Demographics!AR$11:AR$62)","v":0.17759311742000489},{"$f":"CORREL('Migration 2010'!$AJ$11:$AJ$62,Demographics!AS$11:AS$62)","v":9.7042915436687652E-2},{"$f":"CORREL('Migration 2010'!$AJ$11:$AJ$62,Demographics!AT$11:AT$62)","v":0.10239553478555001},{"$f":"CORREL('Migration 2010'!$AJ$11:$AJ$62,Demographics!AU$11:AU$62)","v":0.18194661146557456},{"$f":"CORREL('Migration 2010'!$AJ$11:$AJ$62,Demographics!AV$11:AV$62)","v":0.19860128828147475},{"$f":"CORREL('Migration 2010'!$AJ$11:$AJ$62,Demographics!AW$11:AW$62)","v":0.20047712921794217},{"$f":"CORREL('Migration 2010'!$AJ$11:$AJ$62,Demographics!AX$11:AX$62)","v":0.2111463244281164},{"$f":"CORREL('Migration 2010'!$AJ$11:$AJ$62,Demographics!AY$11:AY$62)","v":0.1822191123963911},{"$f":"CORREL('Migration 2010'!$AJ$11:$AJ$62,Demographics!AZ$11:AZ$62)","v":0.23268359855456835},{"$f":"CORREL('Migration 2010'!$AJ$11:$AJ$62,Demographics!BA$11:BA$62)","v":-0.26680692551656826}]
[null,"Nebraska",{"$f":"CORREL('Migration 2010'!$AK$11:$AK$62,Demographics!G$11:G$62)","v":0.25568784455676785},{"$f":"CORREL('Migration 2010'!$AK$11:$AK$62,Demographics!H$11:H$62)","v":0.24847966318816153},{"$f":"CORREL('Migration 2010'!$AK$11:$AK$62,Demographics!I$11:I$62)","v":-0.15623330850987596},{"$f":"CORREL('Migration 2010'!$AK$11:$AK$62,Demographics!J$11:J$62)","v":-0.24103028146803215},{"$f":"CORREL('Migration 2010'!$AK$11:$AK$62,Demographics!K$11:K$62)","v":0.22069858815648322},{"$f":"CORREL('Migration 2010'!$AK$11:$AK$62,Demographics!L$11:L$62)","v":-0.22056254660954103},{"$f":"CORREL('Migration 2010'!$AK$11:$AK$62,Demographics!M$11:M$62)","v":1.8716155738401782E-2},{"$f":"CORREL('Migration 2010'!$AK$11:$AK$62,Demographics!N$11:N$62)","v":-3.7626980605419295E-2},{"$f":"CORREL('Migration 2010'!$AK$11:$AK$62,Demographics!O$11:O$62)","v":-0.1081186002773208},{"$f":"CORREL('Migration 2010'!$AK$11:$AK$62,Demographics!P$11:P$62)","v":-8.923471180862802E-2},{"$f":"CORREL('Migration 2010'!$AK$11:$AK$62,Demographics!Q$11:Q$62)","v":0.39664139445590652},{"$f":"CORREL('Migration 2010'!$AK$11:$AK$62,Demographics!R$11:R$62)","v":-7.9502121226643935E-2},{"$f":"CORREL('Migration 2010'!$AK$11:$AK$62,Demographics!S$11:S$62)","v":-0.33626389417638941},{"$f":"CORREL('Migration 2010'!$AK$11:$AK$62,Demographics!T$11:T$62)","v":0.15958296388247165},{"$f":"CORREL('Migration 2010'!$AK$11:$AK$62,Demographics!U$11:U$62)","v":0.24616714680274857},{"$f":"CORREL('Migration 2010'!$AK$11:$AK$62,Demographics!V$11:V$62)","v":-4.9573618167132731E-2},{"$f":"CORREL('Migration 2010'!$AK$11:$AK$62,Demographics!W$11:W$62)","v":-8.3196395875454847E-3},{"$f":"CORREL('Migration 2010'!$AK$11:$AK$62,Demographics!X$11:X$62)","v":0.40854960209696173},{"$f":"CORREL('Migration 2010'!$AK$11:$AK$62,Demographics!Y$11:Y$62)","v":-0.18437024272893091},{"$f":"CORREL('Migration 2010'!$AK$11:$AK$62,Demographics!Z$11:Z$62)","v":0.399012898527763},{"$f":"CORREL('Migration 2010'!$AK$11:$AK$62,Demographics!AA$11:AA$62)","v":-0.13918913693044108},{"$f":"CORREL('Migration 2010'!$AK$11:$AK$62,Demographics!AB$11:AB$62)","v":-3.0724347662006116E-2},{"$f":"CORREL('Migration 2010'!$AK$11:$AK$62,Demographics!AC$11:AC$62)","v":-0.14595271876193974},{"$f":"CORREL('Migration 2010'!$AK$11:$AK$62,Demographics!AD$11:AD$62)","v":0.40074993462571695},{"$f":"CORREL('Migration 2010'!$AK$11:$AK$62,Demographics!AE$11:AE$62)","v":3.7543708154934408E-2},{"$f":"CORREL('Migration 2010'!$AK$11:$AK$62,Demographics!AF$11:AF$62)","v":-6.1183646935485704E-2},{"$f":"CORREL('Migration 2010'!$AK$11:$AK$62,Demographics!AG$11:AG$62)","v":-6.2109118699882948E-2},{"$f":"CORREL('Migration 2010'!$AK$11:$AK$62,Demographics!AH$11:AH$62)","v":4.4719369747563298E-2},{"$f":"CORREL('Migration 2010'!$AK$11:$AK$62,Demographics!AI$11:AI$62)","v":0.39732118069062161},{"$f":"CORREL('Migration 2010'!$AK$11:$AK$62,Demographics!AJ$11:AJ$62)","v":0.40830250300033738},{"$f":"CORREL('Migration 2010'!$AK$11:$AK$62,Demographics!AK$11:AK$62)","v":6.4409351713627883E-2},{"$f":"CORREL('Migration 2010'!$AK$11:$AK$62,Demographics!AL$11:AL$62)","v":0.41574454263027494},{"$f":"CORREL('Migration 2010'!$AK$11:$AK$62,Demographics!AM$11:AM$62)","v":0.40387999400975028},{"$f":"CORREL('Migration 2010'!$AK$11:$AK$62,Demographics!AN$11:AN$62)","v":-0.19966007137415978},{"$f":"CORREL('Migration 2010'!$AK$11:$AK$62,Demographics!AO$11:AO$62)","v":-3.4874398378811552E-2},{"$f":"CORREL('Migration 2010'!$AK$11:$AK$62,Demographics!AP$11:AP$62)","v":-4.3751934160690224E-2},{"$f":"CORREL('Migration 2010'!$AK$11:$AK$62,Demographics!AQ$11:AQ$62)","v":-9.6048897900286145E-2},{"$f":"CORREL('Migration 2010'!$AK$11:$AK$62,Demographics!AR$11:AR$62)","v":0.35434200041643904},{"$f":"CORREL('Migration 2010'!$AK$11:$AK$62,Demographics!AS$11:AS$62)","v":-2.8643829599690172E-2},{"$f":"CORREL('Migration 2010'!$AK$11:$AK$62,Demographics!AT$11:AT$62)","v":0.43833719870410087},{"$f":"CORREL('Migration 2010'!$AK$11:$AK$62,Demographics!AU$11:AU$62)","v":0.41330685791145488},{"$f":"CORREL('Migration 2010'!$AK$11:$AK$62,Demographics!AV$11:AV$62)","v":0.40714517690147289},{"$f":"CORREL('Migration 2010'!$AK$11:$AK$62,Demographics!AW$11:AW$62)","v":-5.2850992786973069E-2},{"$f":"CORREL('Migration 2010'!$AK$11:$AK$62,Demographics!AX$11:AX$62)","v":0.38214696615339094},{"$f":"CORREL('Migration 2010'!$AK$11:$AK$62,Demographics!AY$11:AY$62)","v":0.52028547903388267},{"$f":"CORREL('Migration 2010'!$AK$11:$AK$62,Demographics!AZ$11:AZ$62)","v":0.27117380757178411},{"$f":"CORREL('Migration 2010'!$AK$11:$AK$62,Demographics!BA$11:BA$62)","v":-0.23505346368357705}]
[null,"Nevada",{"$f":"CORREL('Migration 2010'!$AL$11:$AL$62,Demographics!G$11:G$62)","v":0.19524922331117411},{"$f":"CORREL('Migration 2010'!$AL$11:$AL$62,Demographics!H$11:H$62)","v":0.21376603396941579},{"$f":"CORREL('Migration 2010'!$AL$11:$AL$62,Demographics!I$11:I$62)","v":-0.20763973549996209},{"$f":"CORREL('Migration 2010'!$AL$11:$AL$62,Demographics!J$11:J$62)","v":-0.1058086925592758},{"$f":"CORREL('Migration 2010'!$AL$11:$AL$62,Demographics!K$11:K$62)","v":-6.7317263852622294E-2},{"$f":"CORREL('Migration 2010'!$AL$11:$AL$62,Demographics!L$11:L$62)","v":-9.8462361171857776E-2},{"$f":"CORREL('Migration 2010'!$AL$11:$AL$62,Demographics!M$11:M$62)","v":2.1434829254151386E-2},{"$f":"CORREL('Migration 2010'!$AL$11:$AL$62,Demographics!N$11:N$62)","v":0.26463445840942473},{"$f":"CORREL('Migration 2010'!$AL$11:$AL$62,Demographics!O$11:O$62)","v":3.7877950428484929E-2},{"$f":"CORREL('Migration 2010'!$AL$11:$AL$62,Demographics!P$11:P$62)","v":5.820732513848767E-2},{"$f":"CORREL('Migration 2010'!$AL$11:$AL$62,Demographics!Q$11:Q$62)","v":0.69080114862311626},{"$f":"CORREL('Migration 2010'!$AL$11:$AL$62,Demographics!R$11:R$62)","v":-0.46549303375996309},{"$f":"CORREL('Migration 2010'!$AL$11:$AL$62,Demographics!S$11:S$62)","v":-0.21821892561131712},{"$f":"CORREL('Migration 2010'!$AL$11:$AL$62,Demographics!T$11:T$62)","v":0.61297334884628241},{"$f":"CORREL('Migration 2010'!$AL$11:$AL$62,Demographics!U$11:U$62)","v":0.66866497043145257},{"$f":"CORREL('Migration 2010'!$AL$11:$AL$62,Demographics!V$11:V$62)","v":-0.34141558840068559},{"$f":"CORREL('Migration 2010'!$AL$11:$AL$62,Demographics!W$11:W$62)","v":9.1080062007958582E-2},{"$f":"CORREL('Migration 2010'!$AL$11:$AL$62,Demographics!X$11:X$62)","v":0.70109489252270329},{"$f":"CORREL('Migration 2010'!$AL$11:$AL$62,Demographics!Y$11:Y$62)","v":0.22282959617625953},{"$f":"CORREL('Migration 2010'!$AL$11:$AL$62,Demographics!Z$11:Z$62)","v":0.72220703993809887},{"$f":"CORREL('Migration 2010'!$AL$11:$AL$62,Demographics!AA$11:AA$62)","v":-0.48464476274955676},{"$f":"CORREL('Migration 2010'!$AL$11:$AL$62,Demographics!AB$11:AB$62)","v":0.17684641323506234},{"$f":"CORREL('Migration 2010'!$AL$11:$AL$62,Demographics!AC$11:AC$62)","v":0.29988264776164308},{"$f":"CORREL('Migration 2010'!$AL$11:$AL$62,Demographics!AD$11:AD$62)","v":0.73332692632891439},{"$f":"CORREL('Migration 2010'!$AL$11:$AL$62,Demographics!AE$11:AE$62)","v":0.50813241672365794},{"$f":"CORREL('Migration 2010'!$AL$11:$AL$62,Demographics!AF$11:AF$62)","v":9.7108952379301554E-3},{"$f":"CORREL('Migration 2010'!$AL$11:$AL$62,Demographics!AG$11:AG$62)","v":9.8827067529317372E-2},{"$f":"CORREL('Migration 2010'!$AL$11:$AL$62,Demographics!AH$11:AH$62)","v":0.15670601828324754},{"$f":"CORREL('Migration 2010'!$AL$11:$AL$62,Demographics!AI$11:AI$62)","v":0.74850748654681454},{"$f":"CORREL('Migration 2010'!$AL$11:$AL$62,Demographics!AJ$11:AJ$62)","v":0.731579374461508},{"$f":"CORREL('Migration 2010'!$AL$11:$AL$62,Demographics!AK$11:AK$62)","v":0.13582188661704933},{"$f":"CORREL('Migration 2010'!$AL$11:$AL$62,Demographics!AL$11:AL$62)","v":0.76652405136686308},{"$f":"CORREL('Migration 2010'!$AL$11:$AL$62,Demographics!AM$11:AM$62)","v":0.76699464184040755},{"$f":"CORREL('Migration 2010'!$AL$11:$AL$62,Demographics!AN$11:AN$62)","v":-5.2244639050795808E-2},{"$f":"CORREL('Migration 2010'!$AL$11:$AL$62,Demographics!AO$11:AO$62)","v":3.5508196959119491E-2},{"$f":"CORREL('Migration 2010'!$AL$11:$AL$62,Demographics!AP$11:AP$62)","v":0.24720945088653432},{"$f":"CORREL('Migration 2010'!$AL$11:$AL$62,Demographics!AQ$11:AQ$62)","v":1.9862454616735161E-2},{"$f":"CORREL('Migration 2010'!$AL$11:$AL$62,Demographics!AR$11:AR$62)","v":0.6155655784220242},{"$f":"CORREL('Migration 2010'!$AL$11:$AL$62,Demographics!AS$11:AS$62)","v":0.30844944665350404},{"$f":"CORREL('Migration 2010'!$AL$11:$AL$62,Demographics!AT$11:AT$62)","v":0.57089976377191887},{"$f":"CORREL('Migration 2010'!$AL$11:$AL$62,Demographics!AU$11:AU$62)","v":0.74258060463134801},{"$f":"CORREL('Migration 2010'!$AL$11:$AL$62,Demographics!AV$11:AV$62)","v":0.76610451143295477},{"$f":"CORREL('Migration 2010'!$AL$11:$AL$62,Demographics!AW$11:AW$62)","v":-0.1150668264898555},{"$f":"CORREL('Migration 2010'!$AL$11:$AL$62,Demographics!AX$11:AX$62)","v":0.80739993647783959},{"$f":"CORREL('Migration 2010'!$AL$11:$AL$62,Demographics!AY$11:AY$62)","v":0.5417209210370878},{"$f":"CORREL('Migration 2010'!$AL$11:$AL$62,Demographics!AZ$11:AZ$62)","v":0.23169163498359779},{"$f":"CORREL('Migration 2010'!$AL$11:$AL$62,Demographics!BA$11:BA$62)","v":-3.7488488627831766E-2}]
[null,"New Hampshire",{"$f":"CORREL('Migration 2010'!$AM$11:$AM$62,Demographics!G$11:G$62)","v":-0.42262661907733523},{"$f":"CORREL('Migration 2010'!$AM$11:$AM$62,Demographics!H$11:H$62)","v":-0.40010066915886339},{"$f":"CORREL('Migration 2010'!$AM$11:$AM$62,Demographics!I$11:I$62)","v":0.20944018381230758},{"$f":"CORREL('Migration 2010'!$AM$11:$AM$62,Demographics!J$11:J$62)","v":0.30013265327058836},{"$f":"CORREL('Migration 2010'!$AM$11:$AM$62,Demographics!K$11:K$62)","v":3.3589256309187999E-2},{"$f":"CORREL('Migration 2010'!$AM$11:$AM$62,Demographics!L$11:L$62)","v":-1.0440316864586274E-2},{"$f":"CORREL('Migration 2010'!$AM$11:$AM$62,Demographics!M$11:M$62)","v":-0.17780790193727741},{"$f":"CORREL('Migration 2010'!$AM$11:$AM$62,Demographics!N$11:N$62)","v":8.2335093976393034E-2},{"$f":"CORREL('Migration 2010'!$AM$11:$AM$62,Demographics!O$11:O$62)","v":-4.8465962623927904E-2},{"$f":"CORREL('Migration 2010'!$AM$11:$AM$62,Demographics!P$11:P$62)","v":-5.6911644080108542E-2},{"$f":"CORREL('Migration 2010'!$AM$11:$AM$62,Demographics!Q$11:Q$62)","v":5.8908390391173918E-2},{"$f":"CORREL('Migration 2010'!$AM$11:$AM$62,Demographics!R$11:R$62)","v":-6.4679870950451978E-4},{"$f":"CORREL('Migration 2010'!$AM$11:$AM$62,Demographics!S$11:S$62)","v":0.28199345028318301},{"$f":"CORREL('Migration 2010'!$AM$11:$AM$62,Demographics!T$11:T$62)","v":0.31338945425059866},{"$f":"CORREL('Migration 2010'!$AM$11:$AM$62,Demographics!U$11:U$62)","v":0.23702011454183544},{"$f":"CORREL('Migration 2010'!$AM$11:$AM$62,Demographics!V$11:V$62)","v":6.8811571847760794E-2},{"$f":"CORREL('Migration 2010'!$AM$11:$AM$62,Demographics!W$11:W$62)","v":0.45057776960510132},{"$f":"CORREL('Migration 2010'!$AM$11:$AM$62,Demographics!X$11:X$62)","v":0.21421635156396016},{"$f":"CORREL('Migration 2010'!$AM$11:$AM$62,Demographics!Y$11:Y$62)","v":0.34757842547288037},{"$f":"CORREL('Migration 2010'!$AM$11:$AM$62,Demographics!Z$11:Z$62)","v":0.24019293641245015},{"$f":"CORREL('Migration 2010'!$AM$11:$AM$62,Demographics!AA$11:AA$62)","v":-0.18974563724841315},{"$f":"CORREL('Migration 2010'!$AM$11:$AM$62,Demographics!AB$11:AB$62)","v":0.46260541075140765},{"$f":"CORREL('Migration 2010'!$AM$11:$AM$62,Demographics!AC$11:AC$62)","v":0.33813176162436193},{"$f":"CORREL('Migration 2010'!$AM$11:$AM$62,Demographics!AD$11:AD$62)","v":0.23285454518677959},{"$f":"CORREL('Migration 2010'!$AM$11:$AM$62,Demographics!AE$11:AE$62)","v":-8.2992797514156072E-2},{"$f":"CORREL('Migration 2010'!$AM$11:$AM$62,Demographics!AF$11:AF$62)","v":0.38095462437441641},{"$f":"CORREL('Migration 2010'!$AM$11:$AM$62,Demographics!AG$11:AG$62)","v":0.26569422106535268},{"$f":"CORREL('Migration 2010'!$AM$11:$AM$62,Demographics!AH$11:AH$62)","v":-0.20224830095009885},{"$f":"CORREL('Migration 2010'!$AM$11:$AM$62,Demographics!AI$11:AI$62)","v":0.2568855596741707},{"$f":"CORREL('Migration 2010'!$AM$11:$AM$62,Demographics!AJ$11:AJ$62)","v":0.25045595195333453},{"$f":"CORREL('Migration 2010'!$AM$11:$AM$62,Demographics!AK$11:AK$62)","v":1.160593696736333E-3},{"$f":"CORREL('Migration 2010'!$AM$11:$AM$62,Demographics!AL$11:AL$62)","v":0.25138515703747361},{"$f":"CORREL('Migration 2010'!$AM$11:$AM$62,Demographics!AM$11:AM$62)","v":0.25684761696850911},{"$f":"CORREL('Migration 2010'!$AM$11:$AM$62,Demographics!AN$11:AN$62)","v":9.7321007286797923E-3},{"$f":"CORREL('Migration 2010'!$AM$11:$AM$62,Demographics!AO$11:AO$62)","v":-0.12783712623525029},{"$f":"CORREL('Migration 2010'!$AM$11:$AM$62,Demographics!AP$11:AP$62)","v":5.2158570800737443E-2},{"$f":"CORREL('Migration 2010'!$AM$11:$AM$62,Demographics!AQ$11:AQ$62)","v":-3.0003553529966569E-2},{"$f":"CORREL('Migration 2010'!$AM$11:$AM$62,Demographics!AR$11:AR$62)","v":0.1659234430864647},{"$f":"CORREL('Migration 2010'!$AM$11:$AM$62,Demographics!AS$11:AS$62)","v":0.24256703859288864},{"$f":"CORREL('Migration 2010'!$AM$11:$AM$62,Demographics!AT$11:AT$62)","v":5.5204343991634659E-2},{"$f":"CORREL('Migration 2010'!$AM$11:$AM$62,Demographics!AU$11:AU$62)","v":0.20633298980666048},{"$f":"CORREL('Migration 2010'!$AM$11:$AM$62,Demographics!AV$11:AV$62)","v":0.23975032508225566},{"$f":"CORREL('Migration 2010'!$AM$11:$AM$62,Demographics!AW$11:AW$62)","v":9.3292441545313659E-2},{"$f":"CORREL('Migration 2010'!$AM$11:$AM$62,Demographics!AX$11:AX$62)","v":0.24552385987401418},{"$f":"CORREL('Migration 2010'!$AM$11:$AM$62,Demographics!AY$11:AY$62)","v":0.15846986644985098},{"$f":"CORREL('Migration 2010'!$AM$11:$AM$62,Demographics!AZ$11:AZ$62)","v":-0.14697177405359271},{"$f":"CORREL('Migration 2010'!$AM$11:$AM$62,Demographics!BA$11:BA$62)","v":0.39773111189339344}]
[null,"New Jersey",{"$f":"CORREL('Migration 2010'!$AN$11:$AN$62,Demographics!G$11:G$62)","v":-0.22908097787461196},{"$f":"CORREL('Migration 2010'!$AN$11:$AN$62,Demographics!H$11:H$62)","v":-0.23890210893371858},{"$f":"CORREL('Migration 2010'!$AN$11:$AN$62,Demographics!I$11:I$62)","v":0.18804227086029252},{"$f":"CORREL('Migration 2010'!$AN$11:$AN$62,Demographics!J$11:J$62)","v":0.32324443028531652},{"$f":"CORREL('Migration 2010'!$AN$11:$AN$62,Demographics!K$11:K$62)","v":-0.13613912014508514},{"$f":"CORREL('Migration 2010'!$AN$11:$AN$62,Demographics!L$11:L$62)","v":0.22004411053214937},{"$f":"CORREL('Migration 2010'!$AN$11:$AN$62,Demographics!M$11:M$62)","v":-0.18374803238105805},{"$f":"CORREL('Migration 2010'!$AN$11:$AN$62,Demographics!N$11:N$62)","v":8.7324737100508851E-2},{"$f":"CORREL('Migration 2010'!$AN$11:$AN$62,Demographics!O$11:O$62)","v":-7.8382754902480353E-2},{"$f":"CORREL('Migration 2010'!$AN$11:$AN$62,Demographics!P$11:P$62)","v":-8.4731572491756765E-2},{"$f":"CORREL('Migration 2010'!$AN$11:$AN$62,Demographics!Q$11:Q$62)","v":0.1722792187644549},{"$f":"CORREL('Migration 2010'!$AN$11:$AN$62,Demographics!R$11:R$62)","v":-0.19827575856326879},{"$f":"CORREL('Migration 2010'!$AN$11:$AN$62,Demographics!S$11:S$62)","v":0.35788310778527965},{"$f":"CORREL('Migration 2010'!$AN$11:$AN$62,Demographics!T$11:T$62)","v":0.39828191653752681},{"$f":"CORREL('Migration 2010'!$AN$11:$AN$62,Demographics!U$11:U$62)","v":0.30050164474319946},{"$f":"CORREL('Migration 2010'!$AN$11:$AN$62,Demographics!V$11:V$62)","v":-0.15895509152923593},{"$f":"CORREL('Migration 2010'!$AN$11:$AN$62,Demographics!W$11:W$62)","v":0.16731747585221371},{"$f":"CORREL('Migration 2010'!$AN$11:$AN$62,Demographics!X$11:X$62)","v":0.56550413053757953},{"$f":"CORREL('Migration 2010'!$AN$11:$AN$62,Demographics!Y$11:Y$62)","v":0.48038691791365518},{"$f":"CORREL('Migration 2010'!$AN$11:$AN$62,Demographics!Z$11:Z$62)","v":0.57821121738525572},{"$f":"CORREL('Migration 2010'!$AN$11:$AN$62,Demographics!AA$11:AA$62)","v":-0.26534889823158675},{"$f":"CORREL('Migration 2010'!$AN$11:$AN$62,Demographics!AB$11:AB$62)","v":0.3784956967721777},{"$f":"CORREL('Migration 2010'!$AN$11:$AN$62,Demographics!AC$11:AC$62)","v":0.15649743695860194},{"$f":"CORREL('Migration 2010'!$AN$11:$AN$62,Demographics!AD$11:AD$62)","v":0.57203923229170073},{"$f":"CORREL('Migration 2010'!$AN$11:$AN$62,Demographics!AE$11:AE$62)","v":7.1007611224351674E-2},{"$f":"CORREL('Migration 2010'!$AN$11:$AN$62,Demographics!AF$11:AF$62)","v":0.22004511792411613},{"$f":"CORREL('Migration 2010'!$AN$11:$AN$62,Demographics!AG$11:AG$62)","v":0.11276614395867827},{"$f":"CORREL('Migration 2010'!$AN$11:$AN$62,Demographics!AH$11:AH$62)","v":-2.162613579402593E-2},{"$f":"CORREL('Migration 2010'!$AN$11:$AN$62,Demographics!AI$11:AI$62)","v":0.58411115085635901},{"$f":"CORREL('Migration 2010'!$AN$11:$AN$62,Demographics!AJ$11:AJ$62)","v":0.57327274464574629},{"$f":"CORREL('Migration 2010'!$AN$11:$AN$62,Demographics!AK$11:AK$62)","v":0.21096088609675021},{"$f":"CORREL('Migration 2010'!$AN$11:$AN$62,Demographics!AL$11:AL$62)","v":0.53906580479307642},{"$f":"CORREL('Migration 2010'!$AN$11:$AN$62,Demographics!AM$11:AM$62)","v":0.55592977437646318},{"$f":"CORREL('Migration 2010'!$AN$11:$AN$62,Demographics!AN$11:AN$62)","v":0.23921681027440694},{"$f":"CORREL('Migration 2010'!$AN$11:$AN$62,Demographics!AO$11:AO$62)","v":-0.14031034758380134},{"$f":"CORREL('Migration 2010'!$AN$11:$AN$62,Demographics!AP$11:AP$62)","v":0.10805137675549141},{"$f":"CORREL('Migration 2010'!$AN$11:$AN$62,Demographics!AQ$11:AQ$62)","v":-5.8639439562211633E-2},{"$f":"CORREL('Migration 2010'!$AN$11:$AN$62,Demographics!AR$11:AR$62)","v":0.31971188137246814},{"$f":"CORREL('Migration 2010'!$AN$11:$AN$62,Demographics!AS$11:AS$62)","v":0.27338178335404051},{"$f":"CORREL('Migration 2010'!$AN$11:$AN$62,Demographics!AT$11:AT$62)","v":0.31168961190757133},{"$f":"CORREL('Migration 2010'!$AN$11:$AN$62,Demographics!AU$11:AU$62)","v":0.47735378848307086},{"$f":"CORREL('Migration 2010'!$AN$11:$AN$62,Demographics!AV$11:AV$62)","v":0.55559497538541169},{"$f":"CORREL('Migration 2010'!$AN$11:$AN$62,Demographics!AW$11:AW$62)","v":-0.11874756156278519},{"$f":"CORREL('Migration 2010'!$AN$11:$AN$62,Demographics!AX$11:AX$62)","v":0.5065094428740865},{"$f":"CORREL('Migration 2010'!$AN$11:$AN$62,Demographics!AY$11:AY$62)","v":0.32536407784932742},{"$f":"CORREL('Migration 2010'!$AN$11:$AN$62,Demographics!AZ$11:AZ$62)","v":-7.4239619623680128E-2},{"$f":"CORREL('Migration 2010'!$AN$11:$AN$62,Demographics!BA$11:BA$62)","v":0.31212567922473289}]
[null,"New Mexico",{"$f":"CORREL('Migration 2010'!$AO$11:$AO$62,Demographics!G$11:G$62)","v":0.30346899664391569},{"$f":"CORREL('Migration 2010'!$AO$11:$AO$62,Demographics!H$11:H$62)","v":0.3340046026346849},{"$f":"CORREL('Migration 2010'!$AO$11:$AO$62,Demographics!I$11:I$62)","v":-0.33942809592860662},{"$f":"CORREL('Migration 2010'!$AO$11:$AO$62,Demographics!J$11:J$62)","v":-0.12805795601486566},{"$f":"CORREL('Migration 2010'!$AO$11:$AO$62,Demographics!K$11:K$62)","v":-8.9291651570907096E-3},{"$f":"CORREL('Migration 2010'!$AO$11:$AO$62,Demographics!L$11:L$62)","v":-1.6177633708886665E-2},{"$f":"CORREL('Migration 2010'!$AO$11:$AO$62,Demographics!M$11:M$62)","v":7.0623839848847708E-2},{"$f":"CORREL('Migration 2010'!$AO$11:$AO$62,Demographics!N$11:N$62)","v":4.4702835355184385E-2},{"$f":"CORREL('Migration 2010'!$AO$11:$AO$62,Demographics!O$11:O$62)","v":-6.5114919580102626E-2},{"$f":"CORREL('Migration 2010'!$AO$11:$AO$62,Demographics!P$11:P$62)","v":-3.3028787736518905E-2},{"$f":"CORREL('Migration 2010'!$AO$11:$AO$62,Demographics!Q$11:Q$62)","v":0.73410453871234682},{"$f":"CORREL('Migration 2010'!$AO$11:$AO$62,Demographics!R$11:R$62)","v":-0.4162631681082723},{"$f":"CORREL('Migration 2010'!$AO$11:$AO$62,Demographics!S$11:S$62)","v":-0.31777548962190411},{"$f":"CORREL('Migration 2010'!$AO$11:$AO$62,Demographics!T$11:T$62)","v":0.35647506363346598},{"$f":"CORREL('Migration 2010'!$AO$11:$AO$62,Demographics!U$11:U$62)","v":0.51736178840321434},{"$f":"CORREL('Migration 2010'!$AO$11:$AO$62,Demographics!V$11:V$62)","v":-0.37023067868797938},{"$f":"CORREL('Migration 2010'!$AO$11:$AO$62,Demographics!W$11:W$62)","v":1.29554180361224E-2},{"$f":"CORREL('Migration 2010'!$AO$11:$AO$62,Demographics!X$11:X$62)","v":0.58626340323593806},{"$f":"CORREL('Migration 2010'!$AO$11:$AO$62,Demographics!Y$11:Y$62)","v":0.11299439627319688},{"$f":"CORREL('Migration 2010'!$AO$11:$AO$62,Demographics!Z$11:Z$62)","v":0.57213342483767404},{"$f":"CORREL('Migration 2010'!$AO$11:$AO$62,Demographics!AA$11:AA$62)","v":-0.28937674105028027},{"$f":"CORREL('Migration 2010'!$AO$11:$AO$62,Demographics!AB$11:AB$62)","v":1.5092954703908881E-2},{"$f":"CORREL('Migration 2010'!$AO$11:$AO$62,Demographics!AC$11:AC$62)","v":-3.918695888164099E-2},{"$f":"CORREL('Migration 2010'!$AO$11:$AO$62,Demographics!AD$11:AD$62)","v":0.56999138679876371},{"$f":"CORREL('Migration 2010'!$AO$11:$AO$62,Demographics!AE$11:AE$62)","v":0.34348724764569638},{"$f":"CORREL('Migration 2010'!$AO$11:$AO$62,Demographics!AF$11:AF$62)","v":-7.0886438377806144E-2},{"$f":"CORREL('Migration 2010'!$AO$11:$AO$62,Demographics!AG$11:AG$62)","v":-2.8167224219424313E-2},{"$f":"CORREL('Migration 2010'!$AO$11:$AO$62,Demographics!AH$11:AH$62)","v":0.23945515075260507},{"$f":"CORREL('Migration 2010'!$AO$11:$AO$62,Demographics!AI$11:AI$62)","v":0.53879174429069598},{"$f":"CORREL('Migration 2010'!$AO$11:$AO$62,Demographics!AJ$11:AJ$62)","v":0.57190091155545708},{"$f":"CORREL('Migration 2010'!$AO$11:$AO$62,Demographics!AK$11:AK$62)","v":0.22937487321678296},{"$f":"CORREL('Migration 2010'!$AO$11:$AO$62,Demographics!AL$11:AL$62)","v":0.58766947426574423},{"$f":"CORREL('Migration 2010'!$AO$11:$AO$62,Demographics!AM$11:AM$62)","v":0.5608775667999526},{"$f":"CORREL('Migration 2010'!$AO$11:$AO$62,Demographics!AN$11:AN$62)","v":1.9848641327600336E-2},{"$f":"CORREL('Migration 2010'!$AO$11:$AO$62,Demographics!AO$11:AO$62)","v":9.2171098424807071E-2},{"$f":"CORREL('Migration 2010'!$AO$11:$AO$62,Demographics!AP$11:AP$62)","v":5.7128725197457493E-2},{"$f":"CORREL('Migration 2010'!$AO$11:$AO$62,Demographics!AQ$11:AQ$62)","v":-6.5811906288246486E-2},{"$f":"CORREL('Migration 2010'!$AO$11:$AO$62,Demographics!AR$11:AR$62)","v":0.66354029161435446},{"$f":"CORREL('Migration 2010'!$AO$11:$AO$62,Demographics!AS$11:AS$62)","v":0.18814850621900517},{"$f":"CORREL('Migration 2010'!$AO$11:$AO$62,Demographics!AT$11:AT$62)","v":0.65172320185926436},{"$f":"CORREL('Migration 2010'!$AO$11:$AO$62,Demographics!AU$11:AU$62)","v":0.59167843839758272},{"$f":"CORREL('Migration 2010'!$AO$11:$AO$62,Demographics!AV$11:AV$62)","v":0.58370173516042412},{"$f":"CORREL('Migration 2010'!$AO$11:$AO$62,Demographics!AW$11:AW$62)","v":-0.10392198272876542},{"$f":"CORREL('Migration 2010'!$AO$11:$AO$62,Demographics!AX$11:AX$62)","v":0.52696700476771019},{"$f":"CORREL('Migration 2010'!$AO$11:$AO$62,Demographics!AY$11:AY$62)","v":0.83382332155065697},{"$f":"CORREL('Migration 2010'!$AO$11:$AO$62,Demographics!AZ$11:AZ$62)","v":0.38273413590298799},{"$f":"CORREL('Migration 2010'!$AO$11:$AO$62,Demographics!BA$11:BA$62)","v":-0.1403467940563182}]
[null,"New York",{"$f":"CORREL('Migration 2010'!$AP$11:$AP$62,Demographics!G$11:G$62)","v":-0.28019475588969428},{"$f":"CORREL('Migration 2010'!$AP$11:$AP$62,Demographics!H$11:H$62)","v":-0.23048317384830197},{"$f":"CORREL('Migration 2010'!$AP$11:$AP$62,Demographics!I$11:I$62)","v":0.19646379673926406},{"$f":"CORREL('Migration 2010'!$AP$11:$AP$62,Demographics!J$11:J$62)","v":0.36759776178111542},{"$f":"CORREL('Migration 2010'!$AP$11:$AP$62,Demographics!K$11:K$62)","v":-0.16094826883001973},{"$f":"CORREL('Migration 2010'!$AP$11:$AP$62,Demographics!L$11:L$62)","v":0.26506166467193382},{"$f":"CORREL('Migration 2010'!$AP$11:$AP$62,Demographics!M$11:M$62)","v":-0.24329925768970448},{"$f":"CORREL('Migration 2010'!$AP$11:$AP$62,Demographics!N$11:N$62)","v":0.11860608633226492},{"$f":"CORREL('Migration 2010'!$AP$11:$AP$62,Demographics!O$11:O$62)","v":-9.8362252982189216E-2},{"$f":"CORREL('Migration 2010'!$AP$11:$AP$62,Demographics!P$11:P$62)","v":-0.11098557818575765},{"$f":"CORREL('Migration 2010'!$AP$11:$AP$62,Demographics!Q$11:Q$62)","v":0.31885028076449179},{"$f":"CORREL('Migration 2010'!$AP$11:$AP$62,Demographics!R$11:R$62)","v":-0.31665755724413541},{"$f":"CORREL('Migration 2010'!$AP$11:$AP$62,Demographics!S$11:S$62)","v":0.33231168524733784},{"$f":"CORREL('Migration 2010'!$AP$11:$AP$62,Demographics!T$11:T$62)","v":0.58806724608409766},{"$f":"CORREL('Migration 2010'!$AP$11:$AP$62,Demographics!U$11:U$62)","v":0.47237018702159678},{"$f":"CORREL('Migration 2010'!$AP$11:$AP$62,Demographics!V$11:V$62)","v":-0.1792035623500125},{"$f":"CORREL('Migration 2010'!$AP$11:$AP$62,Demographics!W$11:W$62)","v":0.33148618054784401},{"$f":"CORREL('Migration 2010'!$AP$11:$AP$62,Demographics!X$11:X$62)","v":0.65323177821310396},{"$f":"CORREL('Migration 2010'!$AP$11:$AP$62,Demographics!Y$11:Y$62)","v":0.54688861367620623},{"$f":"CORREL('Migration 2010'!$AP$11:$AP$62,Demographics!Z$11:Z$62)","v":0.63331235577658807},{"$f":"CORREL('Migration 2010'!$AP$11:$AP$62,Demographics!AA$11:AA$62)","v":-0.16526413031373552},{"$f":"CORREL('Migration 2010'!$AP$11:$AP$62,Demographics!AB$11:AB$62)","v":0.43330182487730101},{"$f":"CORREL('Migration 2010'!$AP$11:$AP$62,Demographics!AC$11:AC$62)","v":0.27419912920326267},{"$f":"CORREL('Migration 2010'!$AP$11:$AP$62,Demographics!AD$11:AD$62)","v":0.61194335443493619},{"$f":"CORREL('Migration 2010'!$AP$11:$AP$62,Demographics!AE$11:AE$62)","v":0.18666216311637326},{"$f":"CORREL('Migration 2010'!$AP$11:$AP$62,Demographics!AF$11:AF$62)","v":0.37205444063416582},{"$f":"CORREL('Migration 2010'!$AP$11:$AP$62,Demographics!AG$11:AG$62)","v":0.27656846063113177},{"$f":"CORREL('Migration 2010'!$AP$11:$AP$62,Demographics!AH$11:AH$62)","v":-0.11406843302816698},{"$f":"CORREL('Migration 2010'!$AP$11:$AP$62,Demographics!AI$11:AI$62)","v":0.62958736616069499},{"$f":"CORREL('Migration 2010'!$AP$11:$AP$62,Demographics!AJ$11:AJ$62)","v":0.60942551592557193},{"$f":"CORREL('Migration 2010'!$AP$11:$AP$62,Demographics!AK$11:AK$62)","v":0.134134883539757},{"$f":"CORREL('Migration 2010'!$AP$11:$AP$62,Demographics!AL$11:AL$62)","v":0.60877802390617197},{"$f":"CORREL('Migration 2010'!$AP$11:$AP$62,Demographics!AM$11:AM$62)","v":0.61827411587889258},{"$f":"CORREL('Migration 2010'!$AP$11:$AP$62,Demographics!AN$11:AN$62)","v":0.28615978870992587},{"$f":"CORREL('Migration 2010'!$AP$11:$AP$62,Demographics!AO$11:AO$62)","v":-0.18709301224006622},{"$f":"CORREL('Migration 2010'!$AP$11:$AP$62,Demographics!AP$11:AP$62)","v":0.10761453056470519},{"$f":"CORREL('Migration 2010'!$AP$11:$AP$62,Demographics!AQ$11:AQ$62)","v":-7.1601317388178001E-2},{"$f":"CORREL('Migration 2010'!$AP$11:$AP$62,Demographics!AR$11:AR$62)","v":0.51960998806914782},{"$f":"CORREL('Migration 2010'!$AP$11:$AP$62,Demographics!AS$11:AS$62)","v":0.32498718957046246},{"$f":"CORREL('Migration 2010'!$AP$11:$AP$62,Demographics!AT$11:AT$62)","v":0.335452332734134},{"$f":"CORREL('Migration 2010'!$AP$11:$AP$62,Demographics!AU$11:AU$62)","v":0.57306653946347874},{"$f":"CORREL('Migration 2010'!$AP$11:$AP$62,Demographics!AV$11:AV$62)","v":0.63264339048036455},{"$f":"CORREL('Migration 2010'!$AP$11:$AP$62,Demographics!AW$11:AW$62)","v":1.871265132786841E-2},{"$f":"CORREL('Migration 2010'!$AP$11:$AP$62,Demographics!AX$11:AX$62)","v":0.58701202660050855},{"$f":"CORREL('Migration 2010'!$AP$11:$AP$62,Demographics!AY$11:AY$62)","v":0.50554806626272675},{"$f":"CORREL('Migration 2010'!$AP$11:$AP$62,Demographics!AZ$11:AZ$62)","v":-0.12038681546634833},{"$f":"CORREL('Migration 2010'!$AP$11:$AP$62,Demographics!BA$11:BA$62)","v":0.57543002827760548}]
[null,"North Carolina",{"$f":"CORREL('Migration 2010'!$AQ$11:$AQ$62,Demographics!G$11:G$62)","v":-6.3508703640774114E-2},{"$f":"CORREL('Migration 2010'!$AQ$11:$AQ$62,Demographics!H$11:H$62)","v":-6.6476118360709144E-2},{"$f":"CORREL('Migration 2010'!$AQ$11:$AQ$62,Demographics!I$11:I$62)","v":-1.7615664980544499E-2},{"$f":"CORREL('Migration 2010'!$AQ$11:$AQ$62,Demographics!J$11:J$62)","v":0.33377096912159715},{"$f":"CORREL('Migration 2010'!$AQ$11:$AQ$62,Demographics!K$11:K$62)","v":-0.30383480830323029},{"$f":"CORREL('Migration 2010'!$AQ$11:$AQ$62,Demographics!L$11:L$62)","v":0.47772766636776487},{"$f":"CORREL('Migration 2010'!$AQ$11:$AQ$62,Demographics!M$11:M$62)","v":-0.22924438993702023},{"$f":"CORREL('Migration 2010'!$AQ$11:$AQ$62,Demographics!N$11:N$62)","v":5.8999688638712786E-2},{"$f":"CORREL('Migration 2010'!$AQ$11:$AQ$62,Demographics!O$11:O$62)","v":-9.2226411620407608E-2},{"$f":"CORREL('Migration 2010'!$AQ$11:$AQ$62,Demographics!P$11:P$62)","v":-0.10293617450522714},{"$f":"CORREL('Migration 2010'!$AQ$11:$AQ$62,Demographics!Q$11:Q$62)","v":0.21869563843809936},{"$f":"CORREL('Migration 2010'!$AQ$11:$AQ$62,Demographics!R$11:R$62)","v":-0.37226377857862986},{"$f":"CORREL('Migration 2010'!$AQ$11:$AQ$62,Demographics!S$11:S$62)","v":9.9690352739483817E-2},{"$f":"CORREL('Migration 2010'!$AQ$11:$AQ$62,Demographics!T$11:T$62)","v":0.35602328167350683},{"$f":"CORREL('Migration 2010'!$AQ$11:$AQ$62,Demographics!U$11:U$62)","v":0.27327737721357265},{"$f":"CORREL('Migration 2010'!$AQ$11:$AQ$62,Demographics!V$11:V$62)","v":-0.39945055594156187},{"$f":"CORREL('Migration 2010'!$AQ$11:$AQ$62,Demographics!W$11:W$62)","v":9.7112100526619019E-2},{"$f":"CORREL('Migration 2010'!$AQ$11:$AQ$62,Demographics!X$11:X$62)","v":0.65336152193103991},{"$f":"CORREL('Migration 2010'!$AQ$11:$AQ$62,Demographics!Y$11:Y$62)","v":0.46620633884413143},{"$f":"CORREL('Migration 2010'!$AQ$11:$AQ$62,Demographics!Z$11:Z$62)","v":0.60198750785304156},{"$f":"CORREL('Migration 2010'!$AQ$11:$AQ$62,Demographics!AA$11:AA$62)","v":-0.19331149417974272},{"$f":"CORREL('Migration 2010'!$AQ$11:$AQ$62,Demographics!AB$11:AB$62)","v":0.1640710726947783},{"$f":"CORREL('Migration 2010'!$AQ$11:$AQ$62,Demographics!AC$11:AC$62)","v":3.8502468000246863E-2},{"$f":"CORREL('Migration 2010'!$AQ$11:$AQ$62,Demographics!AD$11:AD$62)","v":0.58406449808400995},{"$f":"CORREL('Migration 2010'!$AQ$11:$AQ$62,Demographics!AE$11:AE$62)","v":0.20851018988514786},{"$f":"CORREL('Migration 2010'!$AQ$11:$AQ$62,Demographics!AF$11:AF$62)","v":6.0515510598402086E-2},{"$f":"CORREL('Migration 2010'!$AQ$11:$AQ$62,Demographics!AG$11:AG$62)","v":-5.5262402792876494E-3},{"$f":"CORREL('Migration 2010'!$AQ$11:$AQ$62,Demographics!AH$11:AH$62)","v":0.18797923369339375},{"$f":"CORREL('Migration 2010'!$AQ$11:$AQ$62,Demographics!AI$11:AI$62)","v":0.57140248663718141},{"$f":"CORREL('Migration 2010'!$AQ$11:$AQ$62,Demographics!AJ$11:AJ$62)","v":0.56688147344412421},{"$f":"CORREL('Migration 2010'!$AQ$11:$AQ$62,Demographics!AK$11:AK$62)","v":0.20920953356406854},{"$f":"CORREL('Migration 2010'!$AQ$11:$AQ$62,Demographics!AL$11:AL$62)","v":0.57610834294762925},{"$f":"CORREL('Migration 2010'!$AQ$11:$AQ$62,Demographics!AM$11:AM$62)","v":0.57164220466722415},{"$f":"CORREL('Migration 2010'!$AQ$11:$AQ$62,Demographics!AN$11:AN$62)","v":0.50139775072959714},{"$f":"CORREL('Migration 2010'!$AQ$11:$AQ$62,Demographics!AO$11:AO$62)","v":-0.15548051036929614},{"$f":"CORREL('Migration 2010'!$AQ$11:$AQ$62,Demographics!AP$11:AP$62)","v":0.1045188991511059},{"$f":"CORREL('Migration 2010'!$AQ$11:$AQ$62,Demographics!AQ$11:AQ$62)","v":-5.7628687822116477E-2},{"$f":"CORREL('Migration 2010'!$AQ$11:$AQ$62,Demographics!AR$11:AR$62)","v":0.39882192573095082},{"$f":"CORREL('Migration 2010'!$AQ$11:$AQ$62,Demographics!AS$11:AS$62)","v":0.42433007065977241},{"$f":"CORREL('Migration 2010'!$AQ$11:$AQ$62,Demographics!AT$11:AT$62)","v":0.38929847455180039},{"$f":"CORREL('Migration 2010'!$AQ$11:$AQ$62,Demographics!AU$11:AU$62)","v":0.46969068654232249},{"$f":"CORREL('Migration 2010'!$AQ$11:$AQ$62,Demographics!AV$11:AV$62)","v":0.57489054820846586},{"$f":"CORREL('Migration 2010'!$AQ$11:$AQ$62,Demographics!AW$11:AW$62)","v":-0.24795878067426744},{"$f":"CORREL('Migration 2010'!$AQ$11:$AQ$62,Demographics!AX$11:AX$62)","v":0.52183406940981913},{"$f":"CORREL('Migration 2010'!$AQ$11:$AQ$62,Demographics!AY$11:AY$62)","v":0.5531394977599412},{"$f":"CORREL('Migration 2010'!$AQ$11:$AQ$62,Demographics!AZ$11:AZ$62)","v":-3.7024219565934366E-2},{"$f":"CORREL('Migration 2010'!$AQ$11:$AQ$62,Demographics!BA$11:BA$62)","v":0.1211725714957279}]
[null,"North Dakota",{"$f":"CORREL('Migration 2010'!$AR$11:$AR$62,Demographics!G$11:G$62)","v":0.12537824345971454},{"$f":"CORREL('Migration 2010'!$AR$11:$AR$62,Demographics!H$11:H$62)","v":9.6939174584894691E-2},{"$f":"CORREL('Migration 2010'!$AR$11:$AR$62,Demographics!I$11:I$62)","v":-3.9150806921598086E-2},{"$f":"CORREL('Migration 2010'!$AR$11:$AR$62,Demographics!J$11:J$62)","v":-0.17685325911776281},{"$f":"CORREL('Migration 2010'!$AR$11:$AR$62,Demographics!K$11:K$62)","v":0.15421093235046898},{"$f":"CORREL('Migration 2010'!$AR$11:$AR$62,Demographics!L$11:L$62)","v":-0.16718041973394815},{"$f":"CORREL('Migration 2010'!$AR$11:$AR$62,Demographics!M$11:M$62)","v":7.6255631974395305E-2},{"$f":"CORREL('Migration 2010'!$AR$11:$AR$62,Demographics!N$11:N$62)","v":-3.9457557398554506E-2},{"$f":"CORREL('Migration 2010'!$AR$11:$AR$62,Demographics!O$11:O$62)","v":-6.922626825475256E-2},{"$f":"CORREL('Migration 2010'!$AR$11:$AR$62,Demographics!P$11:P$62)","v":-6.4865380116878438E-2},{"$f":"CORREL('Migration 2010'!$AR$11:$AR$62,Demographics!Q$11:Q$62)","v":3.0263102666522951E-2},{"$f":"CORREL('Migration 2010'!$AR$11:$AR$62,Demographics!R$11:R$62)","v":9.4106741647705786E-2},{"$f":"CORREL('Migration 2010'!$AR$11:$AR$62,Demographics!S$11:S$62)","v":-5.0763063822783568E-2},{"$f":"CORREL('Migration 2010'!$AR$11:$AR$62,Demographics!T$11:T$62)","v":-2.779910401813096E-2},{"$f":"CORREL('Migration 2010'!$AR$11:$AR$62,Demographics!U$11:U$62)","v":7.1430603205195715E-3},{"$f":"CORREL('Migration 2010'!$AR$11:$AR$62,Demographics!V$11:V$62)","v":0.19393543469191835},{"$f":"CORREL('Migration 2010'!$AR$11:$AR$62,Demographics!W$11:W$62)","v":0.10535530413371168},{"$f":"CORREL('Migration 2010'!$AR$11:$AR$62,Demographics!X$11:X$62)","v":0.11554748637658696},{"$f":"CORREL('Migration 2010'!$AR$11:$AR$62,Demographics!Y$11:Y$62)","v":-0.1552210531564269},{"$f":"CORREL('Migration 2010'!$AR$11:$AR$62,Demographics!Z$11:Z$62)","v":0.10787590386375659},{"$f":"CORREL('Migration 2010'!$AR$11:$AR$62,Demographics!AA$11:AA$62)","v":0.14809630658227715},{"$f":"CORREL('Migration 2010'!$AR$11:$AR$62,Demographics!AB$11:AB$62)","v":-6.0273824528360664E-2},{"$f":"CORREL('Migration 2010'!$AR$11:$AR$62,Demographics!AC$11:AC$62)","v":-9.5833261094478359E-2},{"$f":"CORREL('Migration 2010'!$AR$11:$AR$62,Demographics!AD$11:AD$62)","v":0.10686547464610596},{"$f":"CORREL('Migration 2010'!$AR$11:$AR$62,Demographics!AE$11:AE$62)","v":-0.12420532715507854},{"$f":"CORREL('Migration 2010'!$AR$11:$AR$62,Demographics!AF$11:AF$62)","v":3.8211562951166331E-2},{"$f":"CORREL('Migration 2010'!$AR$11:$AR$62,Demographics!AG$11:AG$62)","v":1.4830970821614603E-2},{"$f":"CORREL('Migration 2010'!$AR$11:$AR$62,Demographics!AH$11:AH$62)","v":-8.5497991364889711E-2},{"$f":"CORREL('Migration 2010'!$AR$11:$AR$62,Demographics!AI$11:AI$62)","v":0.11072781768951968},{"$f":"CORREL('Migration 2010'!$AR$11:$AR$62,Demographics!AJ$11:AJ$62)","v":0.12780044368479684},{"$f":"CORREL('Migration 2010'!$AR$11:$AR$62,Demographics!AK$11:AK$62)","v":0.10459346182995292},{"$f":"CORREL('Migration 2010'!$AR$11:$AR$62,Demographics!AL$11:AL$62)","v":0.10919178856771668},{"$f":"CORREL('Migration 2010'!$AR$11:$AR$62,Demographics!AM$11:AM$62)","v":0.10506837634042503},{"$f":"CORREL('Migration 2010'!$AR$11:$AR$62,Demographics!AN$11:AN$62)","v":-0.1472856689760374},{"$f":"CORREL('Migration 2010'!$AR$11:$AR$62,Demographics!AO$11:AO$62)","v":-2.9252963146949442E-2},{"$f":"CORREL('Migration 2010'!$AR$11:$AR$62,Demographics!AP$11:AP$62)","v":-7.8433378777814561E-2},{"$f":"CORREL('Migration 2010'!$AR$11:$AR$62,Demographics!AQ$11:AQ$62)","v":-6.3456519758471594E-2},{"$f":"CORREL('Migration 2010'!$AR$11:$AR$62,Demographics!AR$11:AR$62)","v":4.7118641447008544E-2},{"$f":"CORREL('Migration 2010'!$AR$11:$AR$62,Demographics!AS$11:AS$62)","v":-0.12195033671145102},{"$f":"CORREL('Migration 2010'!$AR$11:$AR$62,Demographics!AT$11:AT$62)","v":0.1600364557826264},{"$f":"CORREL('Migration 2010'!$AR$11:$AR$62,Demographics!AU$11:AU$62)","v":0.1254718295461997},{"$f":"CORREL('Migration 2010'!$AR$11:$AR$62,Demographics!AV$11:AV$62)","v":0.11483932020186004},{"$f":"CORREL('Migration 2010'!$AR$11:$AR$62,Demographics!AW$11:AW$62)","v":9.222824312478313E-2},{"$f":"CORREL('Migration 2010'!$AR$11:$AR$62,Demographics!AX$11:AX$62)","v":7.4193454958158336E-2},{"$f":"CORREL('Migration 2010'!$AR$11:$AR$62,Demographics!AY$11:AY$62)","v":0.23271052387046537},{"$f":"CORREL('Migration 2010'!$AR$11:$AR$62,Demographics!AZ$11:AZ$62)","v":0.15121194668165455},{"$f":"CORREL('Migration 2010'!$AR$11:$AR$62,Demographics!BA$11:BA$62)","v":-0.18718418890857008}]
[null,"Ohio",{"$f":"CORREL('Migration 2010'!$AS$11:$AS$62,Demographics!G$11:G$62)","v":-0.12195117823915629},{"$f":"CORREL('Migration 2010'!$AS$11:$AS$62,Demographics!H$11:H$62)","v":-9.0927405169497919E-2},{"$f":"CORREL('Migration 2010'!$AS$11:$AS$62,Demographics!I$11:I$62)","v":0.14534047145079962},{"$f":"CORREL('Migration 2010'!$AS$11:$AS$62,Demographics!J$11:J$62)","v":0.28488692267819843},{"$f":"CORREL('Migration 2010'!$AS$11:$AS$62,Demographics!K$11:K$62)","v":-5.8551624658836066E-2},{"$f":"CORREL('Migration 2010'!$AS$11:$AS$62,Demographics!L$11:L$62)","v":0.24966615626444008},{"$f":"CORREL('Migration 2010'!$AS$11:$AS$62,Demographics!M$11:M$62)","v":-0.26880106000896492},{"$f":"CORREL('Migration 2010'!$AS$11:$AS$62,Demographics!N$11:N$62)","v":-4.2766357524919169E-2},{"$f":"CORREL('Migration 2010'!$AS$11:$AS$62,Demographics!O$11:O$62)","v":-0.12357367206745611},{"$f":"CORREL('Migration 2010'!$AS$11:$AS$62,Demographics!P$11:P$62)","v":-0.15050769511126924},{"$f":"CORREL('Migration 2010'!$AS$11:$AS$62,Demographics!Q$11:Q$62)","v":0.16869023309855852},{"$f":"CORREL('Migration 2010'!$AS$11:$AS$62,Demographics!R$11:R$62)","v":-0.15599281983394031},{"$f":"CORREL('Migration 2010'!$AS$11:$AS$62,Demographics!S$11:S$62)","v":0.11803406465159205},{"$f":"CORREL('Migration 2010'!$AS$11:$AS$62,Demographics!T$11:T$62)","v":0.21780154102999788},{"$f":"CORREL('Migration 2010'!$AS$11:$AS$62,Demographics!U$11:U$62)","v":0.16429487577984975},{"$f":"CORREL('Migration 2010'!$AS$11:$AS$62,Demographics!V$11:V$62)","v":-0.40622317758269516},{"$f":"CORREL('Migration 2010'!$AS$11:$AS$62,Demographics!W$11:W$62)","v":-0.17989369983756642},{"$f":"CORREL('Migration 2010'!$AS$11:$AS$62,Demographics!X$11:X$62)","v":0.68958836553443859},{"$f":"CORREL('Migration 2010'!$AS$11:$AS$62,Demographics!Y$11:Y$62)","v":0.35612797241112765},{"$f":"CORREL('Migration 2010'!$AS$11:$AS$62,Demographics!Z$11:Z$62)","v":0.63144811011331159},{"$f":"CORREL('Migration 2010'!$AS$11:$AS$62,Demographics!AA$11:AA$62)","v":-7.0945481279101859E-3},{"$f":"CORREL('Migration 2010'!$AS$11:$AS$62,Demographics!AB$11:AB$62)","v":5.8195859285728657E-3},{"$f":"CORREL('Migration 2010'!$AS$11:$AS$62,Demographics!AC$11:AC$62)","v":-0.16164865873028386},{"$f":"CORREL('Migration 2010'!$AS$11:$AS$62,Demographics!AD$11:AD$62)","v":0.60746376120958934},{"$f":"CORREL('Migration 2010'!$AS$11:$AS$62,Demographics!AE$11:AE$62)","v":0.10485857562510266},{"$f":"CORREL('Migration 2010'!$AS$11:$AS$62,Demographics!AF$11:AF$62)","v":-0.15691318861421397},{"$f":"CORREL('Migration 2010'!$AS$11:$AS$62,Demographics!AG$11:AG$62)","v":-0.21709898618521789},{"$f":"CORREL('Migration 2010'!$AS$11:$AS$62,Demographics!AH$11:AH$62)","v":0.31418635160369174},{"$f":"CORREL('Migration 2010'!$AS$11:$AS$62,Demographics!AI$11:AI$62)","v":0.57301614371336762},{"$f":"CORREL('Migration 2010'!$AS$11:$AS$62,Demographics!AJ$11:AJ$62)","v":0.57628354738217669},{"$f":"CORREL('Migration 2010'!$AS$11:$AS$62,Demographics!AK$11:AK$62)","v":0.306776827749692},{"$f":"CORREL('Migration 2010'!$AS$11:$AS$62,Demographics!AL$11:AL$62)","v":0.5680097132660733},{"$f":"CORREL('Migration 2010'!$AS$11:$AS$62,Demographics!AM$11:AM$62)","v":0.56855860672767722},{"$f":"CORREL('Migration 2010'!$AS$11:$AS$62,Demographics!AN$11:AN$62)","v":0.28022149096512289},{"$f":"CORREL('Migration 2010'!$AS$11:$AS$62,Demographics!AO$11:AO$62)","v":-0.19970387933888195},{"$f":"CORREL('Migration 2010'!$AS$11:$AS$62,Demographics!AP$11:AP$62)","v":5.6717280196372645E-4},{"$f":"CORREL('Migration 2010'!$AS$11:$AS$62,Demographics!AQ$11:AQ$62)","v":-9.4936034846391418E-2},{"$f":"CORREL('Migration 2010'!$AS$11:$AS$62,Demographics!AR$11:AR$62)","v":0.36476644603922681},{"$f":"CORREL('Migration 2010'!$AS$11:$AS$62,Demographics!AS$11:AS$62)","v":0.31360124305456183},{"$f":"CORREL('Migration 2010'!$AS$11:$AS$62,Demographics!AT$11:AT$62)","v":0.49311415581383844},{"$f":"CORREL('Migration 2010'!$AS$11:$AS$62,Demographics!AU$11:AU$62)","v":0.45726813594792726},{"$f":"CORREL('Migration 2010'!$AS$11:$AS$62,Demographics!AV$11:AV$62)","v":0.58588161763201452},{"$f":"CORREL('Migration 2010'!$AS$11:$AS$62,Demographics!AW$11:AW$62)","v":-0.3538927156437941},{"$f":"CORREL('Migration 2010'!$AS$11:$AS$62,Demographics!AX$11:AX$62)","v":0.50826382252161773},{"$f":"CORREL('Migration 2010'!$AS$11:$AS$62,Demographics!AY$11:AY$62)","v":0.49572628907501548},{"$f":"CORREL('Migration 2010'!$AS$11:$AS$62,Demographics!AZ$11:AZ$62)","v":-6.2639162779735497E-2},{"$f":"CORREL('Migration 2010'!$AS$11:$AS$62,Demographics!BA$11:BA$62)","v":5.6507150365681706E-2}]
[null,"Oklahoma",{"$f":"CORREL('Migration 2010'!$AT$11:$AT$62,Demographics!G$11:G$62)","v":0.30176973692202169},{"$f":"CORREL('Migration 2010'!$AT$11:$AT$62,Demographics!H$11:H$62)","v":0.33480291508739896},{"$f":"CORREL('Migration 2010'!$AT$11:$AT$62,Demographics!I$11:I$62)","v":-0.27275181887014927},{"$f":"CORREL('Migration 2010'!$AT$11:$AT$62,Demographics!J$11:J$62)","v":-4.3527982861804593E-2},{"$f":"CORREL('Migration 2010'!$AT$11:$AT$62,Demographics!K$11:K$62)","v":-1.3385163764644662E-2},{"$f":"CORREL('Migration 2010'!$AT$11:$AT$62,Demographics!L$11:L$62)","v":6.3581844471367346E-2},{"$f":"CORREL('Migration 2010'!$AT$11:$AT$62,Demographics!M$11:M$62)","v":-5.4957706332039773E-2},{"$f":"CORREL('Migration 2010'!$AT$11:$AT$62,Demographics!N$11:N$62)","v":-2.9147130291194792E-3},{"$f":"CORREL('Migration 2010'!$AT$11:$AT$62,Demographics!O$11:O$62)","v":-6.5385683597012523E-2},{"$f":"CORREL('Migration 2010'!$AT$11:$AT$62,Demographics!P$11:P$62)","v":-6.4756442782829174E-2},{"$f":"CORREL('Migration 2010'!$AT$11:$AT$62,Demographics!Q$11:Q$62)","v":0.46480880638847677},{"$f":"CORREL('Migration 2010'!$AT$11:$AT$62,Demographics!R$11:R$62)","v":-0.30612021920708915},{"$f":"CORREL('Migration 2010'!$AT$11:$AT$62,Demographics!S$11:S$62)","v":-0.25018493142176612},{"$f":"CORREL('Migration 2010'!$AT$11:$AT$62,Demographics!T$11:T$62)","v":0.24220201002154634},{"$f":"CORREL('Migration 2010'!$AT$11:$AT$62,Demographics!U$11:U$62)","v":0.34941418259514667},{"$f":"CORREL('Migration 2010'!$AT$11:$AT$62,Demographics!V$11:V$62)","v":-0.38892730755159149},{"$f":"CORREL('Migration 2010'!$AT$11:$AT$62,Demographics!W$11:W$62)","v":-0.10077558273606473},{"$f":"CORREL('Migration 2010'!$AT$11:$AT$62,Demographics!X$11:X$62)","v":0.53795790675985422},{"$f":"CORREL('Migration 2010'!$AT$11:$AT$62,Demographics!Y$11:Y$62)","v":4.5040421570374155E-2},{"$f":"CORREL('Migration 2010'!$AT$11:$AT$62,Demographics!Z$11:Z$62)","v":0.52376301998630759},{"$f":"CORREL('Migration 2010'!$AT$11:$AT$62,Demographics!AA$11:AA$62)","v":-0.2139370209302616},{"$f":"CORREL('Migration 2010'!$AT$11:$AT$62,Demographics!AB$11:AB$62)","v":-2.8123938468264682E-2},{"$f":"CORREL('Migration 2010'!$AT$11:$AT$62,Demographics!AC$11:AC$62)","v":-0.16613368743608906},{"$f":"CORREL('Migration 2010'!$AT$11:$AT$62,Demographics!AD$11:AD$62)","v":0.51658599824574647},{"$f":"CORREL('Migration 2010'!$AT$11:$AT$62,Demographics!AE$11:AE$62)","v":0.26654783749970301},{"$f":"CORREL('Migration 2010'!$AT$11:$AT$62,Demographics!AF$11:AF$62)","v":-0.16108497799282634},{"$f":"CORREL('Migration 2010'!$AT$11:$AT$62,Demographics!AG$11:AG$62)","v":-0.13129080464853693},{"$f":"CORREL('Migration 2010'!$AT$11:$AT$62,Demographics!AH$11:AH$62)","v":0.28289453961692457},{"$f":"CORREL('Migration 2010'!$AT$11:$AT$62,Demographics!AI$11:AI$62)","v":0.4811347611556771},{"$f":"CORREL('Migration 2010'!$AT$11:$AT$62,Demographics!AJ$11:AJ$62)","v":0.51624640823801249},{"$f":"CORREL('Migration 2010'!$AT$11:$AT$62,Demographics!AK$11:AK$62)","v":0.15692519836162239},{"$f":"CORREL('Migration 2010'!$AT$11:$AT$62,Demographics!AL$11:AL$62)","v":0.53355490767379365},{"$f":"CORREL('Migration 2010'!$AT$11:$AT$62,Demographics!AM$11:AM$62)","v":0.50385512931295384},{"$f":"CORREL('Migration 2010'!$AT$11:$AT$62,Demographics!AN$11:AN$62)","v":7.5399225814840307E-2},{"$f":"CORREL('Migration 2010'!$AT$11:$AT$62,Demographics!AO$11:AO$62)","v":2.0096783617740314E-2},{"$f":"CORREL('Migration 2010'!$AT$11:$AT$62,Demographics!AP$11:AP$62)","v":1.6099156227880846E-2},{"$f":"CORREL('Migration 2010'!$AT$11:$AT$62,Demographics!AQ$11:AQ$62)","v":-6.0891835104497694E-2},{"$f":"CORREL('Migration 2010'!$AT$11:$AT$62,Demographics!AR$11:AR$62)","v":0.48779751426315432},{"$f":"CORREL('Migration 2010'!$AT$11:$AT$62,Demographics!AS$11:AS$62)","v":9.2561429158852349E-2},{"$f":"CORREL('Migration 2010'!$AT$11:$AT$62,Demographics!AT$11:AT$62)","v":0.63909192990592034},{"$f":"CORREL('Migration 2010'!$AT$11:$AT$62,Demographics!AU$11:AU$62)","v":0.53956460087588898},{"$f":"CORREL('Migration 2010'!$AT$11:$AT$62,Demographics!AV$11:AV$62)","v":0.51861086919997301},{"$f":"CORREL('Migration 2010'!$AT$11:$AT$62,Demographics!AW$11:AW$62)","v":-0.22832546953855604},{"$f":"CORREL('Migration 2010'!$AT$11:$AT$62,Demographics!AX$11:AX$62)","v":0.4359073302908813},{"$f":"CORREL('Migration 2010'!$AT$11:$AT$62,Demographics!AY$11:AY$62)","v":0.79205365387711479},{"$f":"CORREL('Migration 2010'!$AT$11:$AT$62,Demographics!AZ$11:AZ$62)","v":0.35235219529405765},{"$f":"CORREL('Migration 2010'!$AT$11:$AT$62,Demographics!BA$11:BA$62)","v":-0.14062996541889064}]
[null,"Oregon",{"$f":"CORREL('Migration 2010'!$AU$11:$AU$62,Demographics!G$11:G$62)","v":0.14557937395245629},{"$f":"CORREL('Migration 2010'!$AU$11:$AU$62,Demographics!H$11:H$62)","v":0.12566486332513008},{"$f":"CORREL('Migration 2010'!$AU$11:$AU$62,Demographics!I$11:I$62)","v":-0.24630117408747926},{"$f":"CORREL('Migration 2010'!$AU$11:$AU$62,Demographics!J$11:J$62)","v":-0.19056818583031379},{"$f":"CORREL('Migration 2010'!$AU$11:$AU$62,Demographics!K$11:K$62)","v":-4.3682254482959572E-2},{"$f":"CORREL('Migration 2010'!$AU$11:$AU$62,Demographics!L$11:L$62)","v":-0.16405491506772341},{"$f":"CORREL('Migration 2010'!$AU$11:$AU$62,Demographics!M$11:M$62)","v":2.8323543444333035E-2},{"$f":"CORREL('Migration 2010'!$AU$11:$AU$62,Demographics!N$11:N$62)","v":0.27480794426567928},{"$f":"CORREL('Migration 2010'!$AU$11:$AU$62,Demographics!O$11:O$62)","v":6.8119624206940288E-2},{"$f":"CORREL('Migration 2010'!$AU$11:$AU$62,Demographics!P$11:P$62)","v":0.12127201870458736},{"$f":"CORREL('Migration 2010'!$AU$11:$AU$62,Demographics!Q$11:Q$62)","v":0.39968087588381773},{"$f":"CORREL('Migration 2010'!$AU$11:$AU$62,Demographics!R$11:R$62)","v":-0.2725337409217346},{"$f":"CORREL('Migration 2010'!$AU$11:$AU$62,Demographics!S$11:S$62)","v":-0.22773705848303655},{"$f":"CORREL('Migration 2010'!$AU$11:$AU$62,Demographics!T$11:T$62)","v":0.44978579862404933},{"$f":"CORREL('Migration 2010'!$AU$11:$AU$62,Demographics!U$11:U$62)","v":0.43950638887907778},{"$f":"CORREL('Migration 2010'!$AU$11:$AU$62,Demographics!V$11:V$62)","v":-9.3610861610332774E-2},{"$f":"CORREL('Migration 2010'!$AU$11:$AU$62,Demographics!W$11:W$62)","v":0.17879974044469091},{"$f":"CORREL('Migration 2010'!$AU$11:$AU$62,Demographics!X$11:X$62)","v":0.43820205527726569},{"$f":"CORREL('Migration 2010'!$AU$11:$AU$62,Demographics!Y$11:Y$62)","v":0.1796316566675665},{"$f":"CORREL('Migration 2010'!$AU$11:$AU$62,Demographics!Z$11:Z$62)","v":0.43475250701731183},{"$f":"CORREL('Migration 2010'!$AU$11:$AU$62,Demographics!AA$11:AA$62)","v":-0.42636036552251322},{"$f":"CORREL('Migration 2010'!$AU$11:$AU$62,Demographics!AB$11:AB$62)","v":0.15698332458991271},{"$f":"CORREL('Migration 2010'!$AU$11:$AU$62,Demographics!AC$11:AC$62)","v":0.3445518794770055},{"$f":"CORREL('Migration 2010'!$AU$11:$AU$62,Demographics!AD$11:AD$62)","v":0.45182561855836401},{"$f":"CORREL('Migration 2010'!$AU$11:$AU$62,Demographics!AE$11:AE$62)","v":0.29959653265308228},{"$f":"CORREL('Migration 2010'!$AU$11:$AU$62,Demographics!AF$11:AF$62)","v":0.13217898695322214},{"$f":"CORREL('Migration 2010'!$AU$11:$AU$62,Demographics!AG$11:AG$62)","v":0.19260485326008236},{"$f":"CORREL('Migration 2010'!$AU$11:$AU$62,Demographics!AH$11:AH$62)","v":-5.6755578941160749E-3},{"$f":"CORREL('Migration 2010'!$AU$11:$AU$62,Demographics!AI$11:AI$62)","v":0.47253944979072154},{"$f":"CORREL('Migration 2010'!$AU$11:$AU$62,Demographics!AJ$11:AJ$62)","v":0.44586526111903468},{"$f":"CORREL('Migration 2010'!$AU$11:$AU$62,Demographics!AK$11:AK$62)","v":5.7909366967238127E-2},{"$f":"CORREL('Migration 2010'!$AU$11:$AU$62,Demographics!AL$11:AL$62)","v":0.45446910414562874},{"$f":"CORREL('Migration 2010'!$AU$11:$AU$62,Demographics!AM$11:AM$62)","v":0.46606471434672853},{"$f":"CORREL('Migration 2010'!$AU$11:$AU$62,Demographics!AN$11:AN$62)","v":-0.15988087968282946},{"$f":"CORREL('Migration 2010'!$AU$11:$AU$62,Demographics!AO$11:AO$62)","v":5.1824921549383188E-2},{"$f":"CORREL('Migration 2010'!$AU$11:$AU$62,Demographics!AP$11:AP$62)","v":0.22707598827468919},{"$f":"CORREL('Migration 2010'!$AU$11:$AU$62,Demographics!AQ$11:AQ$62)","v":2.5655655428027051E-2},{"$f":"CORREL('Migration 2010'!$AU$11:$AU$62,Demographics!AR$11:AR$62)","v":0.29468694314284805},{"$f":"CORREL('Migration 2010'!$AU$11:$AU$62,Demographics!AS$11:AS$62)","v":0.23365291076659928},{"$f":"CORREL('Migration 2010'!$AU$11:$AU$62,Demographics!AT$11:AT$62)","v":0.33751441793223291},{"$f":"CORREL('Migration 2010'!$AU$11:$AU$62,Demographics!AU$11:AU$62)","v":0.45176073454405669},{"$f":"CORREL('Migration 2010'!$AU$11:$AU$62,Demographics!AV$11:AV$62)","v":0.47739071664342358},{"$f":"CORREL('Migration 2010'!$AU$11:$AU$62,Demographics!AW$11:AW$62)","v":-9.3728904319784158E-4},{"$f":"CORREL('Migration 2010'!$AU$11:$AU$62,Demographics!AX$11:AX$62)","v":0.50136081263656418},{"$f":"CORREL('Migration 2010'!$AU$11:$AU$62,Demographics!AY$11:AY$62)","v":0.34958906359451647},{"$f":"CORREL('Migration 2010'!$AU$11:$AU$62,Demographics!AZ$11:AZ$62)","v":0.18119727895070203},{"$f":"CORREL('Migration 2010'!$AU$11:$AU$62,Demographics!BA$11:BA$62)","v":-7.882383908744485E-2}]
[null,"Pennsylvania",{"$f":"CORREL('Migration 2010'!$AV$11:$AV$62,Demographics!G$11:G$62)","v":-0.20262329291735298},{"$f":"CORREL('Migration 2010'!$AV$11:$AV$62,Demographics!H$11:H$62)","v":-0.18840535505232686},{"$f":"CORREL('Migration 2010'!$AV$11:$AV$62,Demographics!I$11:I$62)","v":9.0072515764081276E-2},{"$f":"CORREL('Migration 2010'!$AV$11:$AV$62,Demographics!J$11:J$62)","v":0.42121652160975731},{"$f":"CORREL('Migration 2010'!$AV$11:$AV$62,Demographics!K$11:K$62)","v":-0.27026510123327724},{"$f":"CORREL('Migration 2010'!$AV$11:$AV$62,Demographics!L$11:L$62)","v":0.39073136884132526},{"$f":"CORREL('Migration 2010'!$AV$11:$AV$62,Demographics!M$11:M$62)","v":-0.2498645266572527},{"$f":"CORREL('Migration 2010'!$AV$11:$AV$62,Demographics!N$11:N$62)","v":0.15262106693416663},{"$f":"CORREL('Migration 2010'!$AV$11:$AV$62,Demographics!O$11:O$62)","v":-0.12219581067528362},{"$f":"CORREL('Migration 2010'!$AV$11:$AV$62,Demographics!P$11:P$62)","v":-0.11554173088857689},{"$f":"CORREL('Migration 2010'!$AV$11:$AV$62,Demographics!Q$11:Q$62)","v":0.29362708833596268},{"$f":"CORREL('Migration 2010'!$AV$11:$AV$62,Demographics!R$11:R$62)","v":-0.38038521424391053},{"$f":"CORREL('Migration 2010'!$AV$11:$AV$62,Demographics!S$11:S$62)","v":0.38185357044482271},{"$f":"CORREL('Migration 2010'!$AV$11:$AV$62,Demographics!T$11:T$62)","v":0.60448033708035265},{"$f":"CORREL('Migration 2010'!$AV$11:$AV$62,Demographics!U$11:U$62)","v":0.45812630346171779},{"$f":"CORREL('Migration 2010'!$AV$11:$AV$62,Demographics!V$11:V$62)","v":-0.25702067277727431},{"$f":"CORREL('Migration 2010'!$AV$11:$AV$62,Demographics!W$11:W$62)","v":0.30477405207645253},{"$f":"CORREL('Migration 2010'!$AV$11:$AV$62,Demographics!X$11:X$62)","v":0.63556114491901539},{"$f":"CORREL('Migration 2010'!$AV$11:$AV$62,Demographics!Y$11:Y$62)","v":0.689153651108386},{"$f":"CORREL('Migration 2010'!$AV$11:$AV$62,Demographics!Z$11:Z$62)","v":0.64557857245070627},{"$f":"CORREL('Migration 2010'!$AV$11:$AV$62,Demographics!AA$11:AA$62)","v":-0.29370801580031958},{"$f":"CORREL('Migration 2010'!$AV$11:$AV$62,Demographics!AB$11:AB$62)","v":0.44324559984215561},{"$f":"CORREL('Migration 2010'!$AV$11:$AV$62,Demographics!AC$11:AC$62)","v":0.29622563827464121},{"$f":"CORREL('Migration 2010'!$AV$11:$AV$62,Demographics!AD$11:AD$62)","v":0.6341847273477097},{"$f":"CORREL('Migration 2010'!$AV$11:$AV$62,Demographics!AE$11:AE$62)","v":0.22408820517237418},{"$f":"CORREL('Migration 2010'!$AV$11:$AV$62,Demographics!AF$11:AF$62)","v":0.36211230541553407},{"$f":"CORREL('Migration 2010'!$AV$11:$AV$62,Demographics!AG$11:AG$62)","v":0.28003081761756626},{"$f":"CORREL('Migration 2010'!$AV$11:$AV$62,Demographics!AH$11:AH$62)","v":-5.1758080523065075E-2},{"$f":"CORREL('Migration 2010'!$AV$11:$AV$62,Demographics!AI$11:AI$62)","v":0.64749353257199449},{"$f":"CORREL('Migration 2010'!$AV$11:$AV$62,Demographics!AJ$11:AJ$62)","v":0.62742175813592571},{"$f":"CORREL('Migration 2010'!$AV$11:$AV$62,Demographics!AK$11:AK$62)","v":0.18045106950762166},{"$f":"CORREL('Migration 2010'!$AV$11:$AV$62,Demographics!AL$11:AL$62)","v":0.61724080797146652},{"$f":"CORREL('Migration 2010'!$AV$11:$AV$62,Demographics!AM$11:AM$62)","v":0.62961893208054709},{"$f":"CORREL('Migration 2010'!$AV$11:$AV$62,Demographics!AN$11:AN$62)","v":0.43522863898097414},{"$f":"CORREL('Migration 2010'!$AV$11:$AV$62,Demographics!AO$11:AO$62)","v":-0.20072499351037884},{"$f":"CORREL('Migration 2010'!$AV$11:$AV$62,Demographics!AP$11:AP$62)","v":0.16533842374287946},{"$f":"CORREL('Migration 2010'!$AV$11:$AV$62,Demographics!AQ$11:AQ$62)","v":-8.6348763446356711E-2},{"$f":"CORREL('Migration 2010'!$AV$11:$AV$62,Demographics!AR$11:AR$62)","v":0.46267514637989782},{"$f":"CORREL('Migration 2010'!$AV$11:$AV$62,Demographics!AS$11:AS$62)","v":0.45618946567247481},{"$f":"CORREL('Migration 2010'!$AV$11:$AV$62,Demographics!AT$11:AT$62)","v":0.35214379493417652},{"$f":"CORREL('Migration 2010'!$AV$11:$AV$62,Demographics!AU$11:AU$62)","v":0.58313718566999917},{"$f":"CORREL('Migration 2010'!$AV$11:$AV$62,Demographics!AV$11:AV$62)","v":0.63039622074976487},{"$f":"CORREL('Migration 2010'!$AV$11:$AV$62,Demographics!AW$11:AW$62)","v":-0.13019690068148712},{"$f":"CORREL('Migration 2010'!$AV$11:$AV$62,Demographics!AX$11:AX$62)","v":0.59547529032469293},{"$f":"CORREL('Migration 2010'!$AV$11:$AV$62,Demographics!AY$11:AY$62)","v":0.4556595825528576},{"$f":"CORREL('Migration 2010'!$AV$11:$AV$62,Demographics!AZ$11:AZ$62)","v":-0.14914984337088558},{"$f":"CORREL('Migration 2010'!$AV$11:$AV$62,Demographics!BA$11:BA$62)","v":0.54139372360376981}]
[null,"Rhode Island",{"$f":"CORREL('Migration 2010'!$AW$11:$AW$62,Demographics!G$11:G$62)","v":-0.34384587061735011},{"$f":"CORREL('Migration 2010'!$AW$11:$AW$62,Demographics!H$11:H$62)","v":-0.31390291299552553},{"$f":"CORREL('Migration 2010'!$AW$11:$AW$62,Demographics!I$11:I$62)","v":0.11921462214867089},{"$f":"CORREL('Migration 2010'!$AW$11:$AW$62,Demographics!J$11:J$62)","v":0.3184164721404748},{"$f":"CORREL('Migration 2010'!$AW$11:$AW$62,Demographics!K$11:K$62)","v":-5.5013379044678345E-2},{"$f":"CORREL('Migration 2010'!$AW$11:$AW$62,Demographics!L$11:L$62)","v":4.8515038384578955E-2},{"$f":"CORREL('Migration 2010'!$AW$11:$AW$62,Demographics!M$11:M$62)","v":-0.19475367401757857},{"$f":"CORREL('Migration 2010'!$AW$11:$AW$62,Demographics!N$11:N$62)","v":0.14921444460566463},{"$f":"CORREL('Migration 2010'!$AW$11:$AW$62,Demographics!O$11:O$62)","v":-4.7408160276939905E-3},{"$f":"CORREL('Migration 2010'!$AW$11:$AW$62,Demographics!P$11:P$62)","v":-1.1787494290806822E-2},{"$f":"CORREL('Migration 2010'!$AW$11:$AW$62,Demographics!Q$11:Q$62)","v":0.10609855677524162},{"$f":"CORREL('Migration 2010'!$AW$11:$AW$62,Demographics!R$11:R$62)","v":-9.4358463346732854E-2},{"$f":"CORREL('Migration 2010'!$AW$11:$AW$62,Demographics!S$11:S$62)","v":0.29826264370400979},{"$f":"CORREL('Migration 2010'!$AW$11:$AW$62,Demographics!T$11:T$62)","v":0.38974141459638934},{"$f":"CORREL('Migration 2010'!$AW$11:$AW$62,Demographics!U$11:U$62)","v":0.30484978772787208},{"$f":"CORREL('Migration 2010'!$AW$11:$AW$62,Demographics!V$11:V$62)","v":2.630525064909778E-3},{"$f":"CORREL('Migration 2010'!$AW$11:$AW$62,Demographics!W$11:W$62)","v":0.47835999316501521},{"$f":"CORREL('Migration 2010'!$AW$11:$AW$62,Demographics!X$11:X$62)","v":0.23126004354496729},{"$f":"CORREL('Migration 2010'!$AW$11:$AW$62,Demographics!Y$11:Y$62)","v":0.43409454321985325},{"$f":"CORREL('Migration 2010'!$AW$11:$AW$62,Demographics!Z$11:Z$62)","v":0.25079005017408795},{"$f":"CORREL('Migration 2010'!$AW$11:$AW$62,Demographics!AA$11:AA$62)","v":-0.2522309718173556},{"$f":"CORREL('Migration 2010'!$AW$11:$AW$62,Demographics!AB$11:AB$62)","v":0.58895128828979859},{"$f":"CORREL('Migration 2010'!$AW$11:$AW$62,Demographics!AC$11:AC$62)","v":0.38193105290793239},{"$f":"CORREL('Migration 2010'!$AW$11:$AW$62,Demographics!AD$11:AD$62)","v":0.24786467813059387},{"$f":"CORREL('Migration 2010'!$AW$11:$AW$62,Demographics!AE$11:AE$62)","v":2.1721979931472245E-2},{"$f":"CORREL('Migration 2010'!$AW$11:$AW$62,Demographics!AF$11:AF$62)","v":0.4754098259246089},{"$f":"CORREL('Migration 2010'!$AW$11:$AW$62,Demographics!AG$11:AG$62)","v":0.36139751825432892},{"$f":"CORREL('Migration 2010'!$AW$11:$AW$62,Demographics!AH$11:AH$62)","v":-0.21692233018228729},{"$f":"CORREL('Migration 2010'!$AW$11:$AW$62,Demographics!AI$11:AI$62)","v":0.26062698312197802},{"$f":"CORREL('Migration 2010'!$AW$11:$AW$62,Demographics!AJ$11:AJ$62)","v":0.27201468615476909},{"$f":"CORREL('Migration 2010'!$AW$11:$AW$62,Demographics!AK$11:AK$62)","v":8.5043359171337624E-2},{"$f":"CORREL('Migration 2010'!$AW$11:$AW$62,Demographics!AL$11:AL$62)","v":0.24921586748726335},{"$f":"CORREL('Migration 2010'!$AW$11:$AW$62,Demographics!AM$11:AM$62)","v":0.25375432076531024},{"$f":"CORREL('Migration 2010'!$AW$11:$AW$62,Demographics!AN$11:AN$62)","v":6.5437482988122631E-2},{"$f":"CORREL('Migration 2010'!$AW$11:$AW$62,Demographics!AO$11:AO$62)","v":-0.15012281822468274},{"$f":"CORREL('Migration 2010'!$AW$11:$AW$62,Demographics!AP$11:AP$62)","v":0.1217698124645735},{"$f":"CORREL('Migration 2010'!$AW$11:$AW$62,Demographics!AQ$11:AQ$62)","v":1.2992367624574721E-2},{"$f":"CORREL('Migration 2010'!$AW$11:$AW$62,Demographics!AR$11:AR$62)","v":0.18252908633601622},{"$f":"CORREL('Migration 2010'!$AW$11:$AW$62,Demographics!AS$11:AS$62)","v":0.33464166983059684},{"$f":"CORREL('Migration 2010'!$AW$11:$AW$62,Demographics!AT$11:AT$62)","v":8.8762576264264273E-2},{"$f":"CORREL('Migration 2010'!$AW$11:$AW$62,Demographics!AU$11:AU$62)","v":0.22894185827318494},{"$f":"CORREL('Migration 2010'!$AW$11:$AW$62,Demographics!AV$11:AV$62)","v":0.25130722377263415},{"$f":"CORREL('Migration 2010'!$AW$11:$AW$62,Demographics!AW$11:AW$62)","v":2.0614028254330851E-2},{"$f":"CORREL('Migration 2010'!$AW$11:$AW$62,Demographics!AX$11:AX$62)","v":0.25307616903863872},{"$f":"CORREL('Migration 2010'!$AW$11:$AW$62,Demographics!AY$11:AY$62)","v":0.14671264907861276},{"$f":"CORREL('Migration 2010'!$AW$11:$AW$62,Demographics!AZ$11:AZ$62)","v":-0.17299650456288926},{"$f":"CORREL('Migration 2010'!$AW$11:$AW$62,Demographics!BA$11:BA$62)","v":0.56712960719388927}]
[null,"South Carolina",{"$f":"CORREL('Migration 2010'!$AX$11:$AX$62,Demographics!G$11:G$62)","v":3.8664841999138896E-3},{"$f":"CORREL('Migration 2010'!$AX$11:$AX$62,Demographics!H$11:H$62)","v":1.5162306970440227E-2},{"$f":"CORREL('Migration 2010'!$AX$11:$AX$62,Demographics!I$11:I$62)","v":-8.7796126876009448E-2},{"$f":"CORREL('Migration 2010'!$AX$11:$AX$62,Demographics!J$11:J$62)","v":0.2959243345227982},{"$f":"CORREL('Migration 2010'!$AX$11:$AX$62,Demographics!K$11:K$62)","v":-0.28405196447972664},{"$f":"CORREL('Migration 2010'!$AX$11:$AX$62,Demographics!L$11:L$62)","v":0.46488906418690118},{"$f":"CORREL('Migration 2010'!$AX$11:$AX$62,Demographics!M$11:M$62)","v":-0.1738842867248088},{"$f":"CORREL('Migration 2010'!$AX$11:$AX$62,Demographics!N$11:N$62)","v":1.4914995624597442E-2},{"$f":"CORREL('Migration 2010'!$AX$11:$AX$62,Demographics!O$11:O$62)","v":-8.484392167356393E-2},{"$f":"CORREL('Migration 2010'!$AX$11:$AX$62,Demographics!P$11:P$62)","v":-9.6956317624897911E-2},{"$f":"CORREL('Migration 2010'!$AX$11:$AX$62,Demographics!Q$11:Q$62)","v":0.12938282256559064},{"$f":"CORREL('Migration 2010'!$AX$11:$AX$62,Demographics!R$11:R$62)","v":-0.30049066026707566},{"$f":"CORREL('Migration 2010'!$AX$11:$AX$62,Demographics!S$11:S$62)","v":6.4462919084482071E-3},{"$f":"CORREL('Migration 2010'!$AX$11:$AX$62,Demographics!T$11:T$62)","v":0.2476523804598543},{"$f":"CORREL('Migration 2010'!$AX$11:$AX$62,Demographics!U$11:U$62)","v":0.16145996353803382},{"$f":"CORREL('Migration 2010'!$AX$11:$AX$62,Demographics!V$11:V$62)","v":-0.35440718641224961},{"$f":"CORREL('Migration 2010'!$AX$11:$AX$62,Demographics!W$11:W$62)","v":3.5789563241946785E-2},{"$f":"CORREL('Migration 2010'!$AX$11:$AX$62,Demographics!X$11:X$62)","v":0.52055379298567339},{"$f":"CORREL('Migration 2010'!$AX$11:$AX$62,Demographics!Y$11:Y$62)","v":0.31891701702653175},{"$f":"CORREL('Migration 2010'!$AX$11:$AX$62,Demographics!Z$11:Z$62)","v":0.48352610506867172},{"$f":"CORREL('Migration 2010'!$AX$11:$AX$62,Demographics!AA$11:AA$62)","v":-0.18147451755071684},{"$f":"CORREL('Migration 2010'!$AX$11:$AX$62,Demographics!AB$11:AB$62)","v":4.956945801879252E-2},{"$f":"CORREL('Migration 2010'!$AX$11:$AX$62,Demographics!AC$11:AC$62)","v":-2.3046532066135064E-2},{"$f":"CORREL('Migration 2010'!$AX$11:$AX$62,Demographics!AD$11:AD$62)","v":0.46453335359166348},{"$f":"CORREL('Migration 2010'!$AX$11:$AX$62,Demographics!AE$11:AE$62)","v":0.14299753825629843},{"$f":"CORREL('Migration 2010'!$AX$11:$AX$62,Demographics!AF$11:AF$62)","v":-4.2626664174091E-2},{"$f":"CORREL('Migration 2010'!$AX$11:$AX$62,Demographics!AG$11:AG$62)","v":-9.9308609976094323E-2},{"$f":"CORREL('Migration 2010'!$AX$11:$AX$62,Demographics!AH$11:AH$62)","v":0.25234161391868565},{"$f":"CORREL('Migration 2010'!$AX$11:$AX$62,Demographics!AI$11:AI$62)","v":0.44594546968627674},{"$f":"CORREL('Migration 2010'!$AX$11:$AX$62,Demographics!AJ$11:AJ$62)","v":0.43451389081599573},{"$f":"CORREL('Migration 2010'!$AX$11:$AX$62,Demographics!AK$11:AK$62)","v":0.15403294310817273},{"$f":"CORREL('Migration 2010'!$AX$11:$AX$62,Demographics!AL$11:AL$62)","v":0.45567760415461539},{"$f":"CORREL('Migration 2010'!$AX$11:$AX$62,Demographics!AM$11:AM$62)","v":0.45304935910177274},{"$f":"CORREL('Migration 2010'!$AX$11:$AX$62,Demographics!AN$11:AN$62)","v":0.49306713901120242},{"$f":"CORREL('Migration 2010'!$AX$11:$AX$62,Demographics!AO$11:AO$62)","v":-0.11158146049906445},{"$f":"CORREL('Migration 2010'!$AX$11:$AX$62,Demographics!AP$11:AP$62)","v":4.7814082920735114E-2},{"$f":"CORREL('Migration 2010'!$AX$11:$AX$62,Demographics!AQ$11:AQ$62)","v":-5.827632546619331E-2},{"$f":"CORREL('Migration 2010'!$AX$11:$AX$62,Demographics!AR$11:AR$62)","v":0.24175792725722434},{"$f":"CORREL('Migration 2010'!$AX$11:$AX$62,Demographics!AS$11:AS$62)","v":0.33811840386417991},{"$f":"CORREL('Migration 2010'!$AX$11:$AX$62,Demographics!AT$11:AT$62)","v":0.3385812393448136},{"$f":"CORREL('Migration 2010'!$AX$11:$AX$62,Demographics!AU$11:AU$62)","v":0.34916584314202753},{"$f":"CORREL('Migration 2010'!$AX$11:$AX$62,Demographics!AV$11:AV$62)","v":0.44455090515664519},{"$f":"CORREL('Migration 2010'!$AX$11:$AX$62,Demographics!AW$11:AW$62)","v":-0.21683543752984349},{"$f":"CORREL('Migration 2010'!$AX$11:$AX$62,Demographics!AX$11:AX$62)","v":0.3973209259465017},{"$f":"CORREL('Migration 2010'!$AX$11:$AX$62,Demographics!AY$11:AY$62)","v":0.51421216329308839},{"$f":"CORREL('Migration 2010'!$AX$11:$AX$62,Demographics!AZ$11:AZ$62)","v":-3.9412058770781903E-2},{"$f":"CORREL('Migration 2010'!$AX$11:$AX$62,Demographics!BA$11:BA$62)","v":6.3124778663398579E-2}]
[null,"South Dakota",{"$f":"CORREL('Migration 2010'!$AY$11:$AY$62,Demographics!G$11:G$62)","v":0.33889300118726712},{"$f":"CORREL('Migration 2010'!$AY$11:$AY$62,Demographics!H$11:H$62)","v":0.30952108285547525},{"$f":"CORREL('Migration 2010'!$AY$11:$AY$62,Demographics!I$11:I$62)","v":-0.24722666782792013},{"$f":"CORREL('Migration 2010'!$AY$11:$AY$62,Demographics!J$11:J$62)","v":-0.35118662954387514},{"$f":"CORREL('Migration 2010'!$AY$11:$AY$62,Demographics!K$11:K$62)","v":0.20432415649769084},{"$f":"CORREL('Migration 2010'!$AY$11:$AY$62,Demographics!L$11:L$62)","v":-0.28668845653745256},{"$f":"CORREL('Migration 2010'!$AY$11:$AY$62,Demographics!M$11:M$62)","v":3.140995386269127E-2},{"$f":"CORREL('Migration 2010'!$AY$11:$AY$62,Demographics!N$11:N$62)","v":4.3023320800938722E-2},{"$f":"CORREL('Migration 2010'!$AY$11:$AY$62,Demographics!O$11:O$62)","v":-2.7993112963047927E-2},{"$f":"CORREL('Migration 2010'!$AY$11:$AY$62,Demographics!P$11:P$62)","v":-2.255753526513956E-2},{"$f":"CORREL('Migration 2010'!$AY$11:$AY$62,Demographics!Q$11:Q$62)","v":0.2816281602573224},{"$f":"CORREL('Migration 2010'!$AY$11:$AY$62,Demographics!R$11:R$62)","v":-1.4234689973041947E-2},{"$f":"CORREL('Migration 2010'!$AY$11:$AY$62,Demographics!S$11:S$62)","v":-0.34971126096788291},{"$f":"CORREL('Migration 2010'!$AY$11:$AY$62,Demographics!T$11:T$62)","v":0.16199074069109948},{"$f":"CORREL('Migration 2010'!$AY$11:$AY$62,Demographics!U$11:U$62)","v":0.20436597570669648},{"$f":"CORREL('Migration 2010'!$AY$11:$AY$62,Demographics!V$11:V$62)","v":0.16912680524271326},{"$f":"CORREL('Migration 2010'!$AY$11:$AY$62,Demographics!W$11:W$62)","v":0.10647051558138407},{"$f":"CORREL('Migration 2010'!$AY$11:$AY$62,Demographics!X$11:X$62)","v":0.22801542023331964},{"$f":"CORREL('Migration 2010'!$AY$11:$AY$62,Demographics!Y$11:Y$62)","v":-0.22798176689183283},{"$f":"CORREL('Migration 2010'!$AY$11:$AY$62,Demographics!Z$11:Z$62)","v":0.2289993127281168},{"$f":"CORREL('Migration 2010'!$AY$11:$AY$62,Demographics!AA$11:AA$62)","v":-0.11065949773355079},{"$f":"CORREL('Migration 2010'!$AY$11:$AY$62,Demographics!AB$11:AB$62)","v":1.270170978276102E-3},{"$f":"CORREL('Migration 2010'!$AY$11:$AY$62,Demographics!AC$11:AC$62)","v":-6.0006475179275424E-2},{"$f":"CORREL('Migration 2010'!$AY$11:$AY$62,Demographics!AD$11:AD$62)","v":0.23548110576198264},{"$f":"CORREL('Migration 2010'!$AY$11:$AY$62,Demographics!AE$11:AE$62)","v":6.8847393489587405E-2},{"$f":"CORREL('Migration 2010'!$AY$11:$AY$62,Demographics!AF$11:AF$62)","v":1.6874659156567964E-2},{"$f":"CORREL('Migration 2010'!$AY$11:$AY$62,Demographics!AG$11:AG$62)","v":6.5259080101734507E-2},{"$f":"CORREL('Migration 2010'!$AY$11:$AY$62,Demographics!AH$11:AH$62)","v":-0.11030369444955862},{"$f":"CORREL('Migration 2010'!$AY$11:$AY$62,Demographics!AI$11:AI$62)","v":0.24522394571737391},{"$f":"CORREL('Migration 2010'!$AY$11:$AY$62,Demographics!AJ$11:AJ$62)","v":0.25405057241941231},{"$f":"CORREL('Migration 2010'!$AY$11:$AY$62,Demographics!AK$11:AK$62)","v":0.37020651850185377},{"$f":"CORREL('Migration 2010'!$AY$11:$AY$62,Demographics!AL$11:AL$62)","v":0.24555057963622684},{"$f":"CORREL('Migration 2010'!$AY$11:$AY$62,Demographics!AM$11:AM$62)","v":0.24262775751364929},{"$f":"CORREL('Migration 2010'!$AY$11:$AY$62,Demographics!AN$11:AN$62)","v":-0.25194761173030894},{"$f":"CORREL('Migration 2010'!$AY$11:$AY$62,Demographics!AO$11:AO$62)","v":-3.3441885491748896E-2},{"$f":"CORREL('Migration 2010'!$AY$11:$AY$62,Demographics!AP$11:AP$62)","v":-3.7374911828591921E-3},{"$f":"CORREL('Migration 2010'!$AY$11:$AY$62,Demographics!AQ$11:AQ$62)","v":-4.5924390923884478E-2},{"$f":"CORREL('Migration 2010'!$AY$11:$AY$62,Demographics!AR$11:AR$62)","v":0.16719460842501435},{"$f":"CORREL('Migration 2010'!$AY$11:$AY$62,Demographics!AS$11:AS$62)","v":-2.6538421422015988E-2},{"$f":"CORREL('Migration 2010'!$AY$11:$AY$62,Demographics!AT$11:AT$62)","v":0.24108157299398797},{"$f":"CORREL('Migration 2010'!$AY$11:$AY$62,Demographics!AU$11:AU$62)","v":0.24542346316387961},{"$f":"CORREL('Migration 2010'!$AY$11:$AY$62,Demographics!AV$11:AV$62)","v":0.24709423127367314},{"$f":"CORREL('Migration 2010'!$AY$11:$AY$62,Demographics!AW$11:AW$62)","v":6.3649478127614206E-2},{"$f":"CORREL('Migration 2010'!$AY$11:$AY$62,Demographics!AX$11:AX$62)","v":0.2521600474728844},{"$f":"CORREL('Migration 2010'!$AY$11:$AY$62,Demographics!AY$11:AY$62)","v":0.32049511161091782},{"$f":"CORREL('Migration 2010'!$AY$11:$AY$62,Demographics!AZ$11:AZ$62)","v":0.28241024806964576},{"$f":"CORREL('Migration 2010'!$AY$11:$AY$62,Demographics!BA$11:BA$62)","v":-0.29749637261968243}]
[null,"Tennessee",{"$f":"CORREL('Migration 2010'!$AZ$11:$AZ$62,Demographics!G$11:G$62)","v":9.9712626428872408E-2},{"$f":"CORREL('Migration 2010'!$AZ$11:$AZ$62,Demographics!H$11:H$62)","v":0.15504916063277296},{"$f":"CORREL('Migration 2010'!$AZ$11:$AZ$62,Demographics!I$11:I$62)","v":-0.1101416361229174},{"$f":"CORREL('Migration 2010'!$AZ$11:$AZ$62,Demographics!J$11:J$62)","v":0.30736129056504946},{"$f":"CORREL('Migration 2010'!$AZ$11:$AZ$62,Demographics!K$11:K$62)","v":-0.25861944042715168},{"$f":"CORREL('Migration 2010'!$AZ$11:$AZ$62,Demographics!L$11:L$62)","v":0.54702697915166831},{"$f":"CORREL('Migration 2010'!$AZ$11:$AZ$62,Demographics!M$11:M$62)","v":-0.23858432669795715},{"$f":"CORREL('Migration 2010'!$AZ$11:$AZ$62,Demographics!N$11:N$62)","v":-0.10589311995155222},{"$f":"CORREL('Migration 2010'!$AZ$11:$AZ$62,Demographics!O$11:O$62)","v":-0.13853162230640406},{"$f":"CORREL('Migration 2010'!$AZ$11:$AZ$62,Demographics!P$11:P$62)","v":-0.1803889643314531},{"$f":"CORREL('Migration 2010'!$AZ$11:$AZ$62,Demographics!Q$11:Q$62)","v":0.17031036842717082},{"$f":"CORREL('Migration 2010'!$AZ$11:$AZ$62,Demographics!R$11:R$62)","v":-0.32330787093793084},{"$f":"CORREL('Migration 2010'!$AZ$11:$AZ$62,Demographics!S$11:S$62)","v":-5.6562758589467042E-2},{"$f":"CORREL('Migration 2010'!$AZ$11:$AZ$62,Demographics!T$11:T$62)","v":0.1197690436737122},{"$f":"CORREL('Migration 2010'!$AZ$11:$AZ$62,Demographics!U$11:U$62)","v":0.10201064423034456},{"$f":"CORREL('Migration 2010'!$AZ$11:$AZ$62,Demographics!V$11:V$62)","v":-0.60418260138498459},{"$f":"CORREL('Migration 2010'!$AZ$11:$AZ$62,Demographics!W$11:W$62)","v":-0.26294351483303779},{"$f":"CORREL('Migration 2010'!$AZ$11:$AZ$62,Demographics!X$11:X$62)","v":0.60605209884178846},{"$f":"CORREL('Migration 2010'!$AZ$11:$AZ$62,Demographics!Y$11:Y$62)","v":0.26798223456555786},{"$f":"CORREL('Migration 2010'!$AZ$11:$AZ$62,Demographics!Z$11:Z$62)","v":0.54505873310202402},{"$f":"CORREL('Migration 2010'!$AZ$11:$AZ$62,Demographics!AA$11:AA$62)","v":-9.771347532238699E-3},{"$f":"CORREL('Migration 2010'!$AZ$11:$AZ$62,Demographics!AB$11:AB$62)","v":-0.13817259696806589},{"$f":"CORREL('Migration 2010'!$AZ$11:$AZ$62,Demographics!AC$11:AC$62)","v":-0.29008370970845454},{"$f":"CORREL('Migration 2010'!$AZ$11:$AZ$62,Demographics!AD$11:AD$62)","v":0.51790959485118004},{"$f":"CORREL('Migration 2010'!$AZ$11:$AZ$62,Demographics!AE$11:AE$62)","v":0.2063921599287934},{"$f":"CORREL('Migration 2010'!$AZ$11:$AZ$62,Demographics!AF$11:AF$62)","v":-0.30845519819706307},{"$f":"CORREL('Migration 2010'!$AZ$11:$AZ$62,Demographics!AG$11:AG$62)","v":-0.33522335204637532},{"$f":"CORREL('Migration 2010'!$AZ$11:$AZ$62,Demographics!AH$11:AH$62)","v":0.53694775353457902},{"$f":"CORREL('Migration 2010'!$AZ$11:$AZ$62,Demographics!AI$11:AI$62)","v":0.46780561013922767},{"$f":"CORREL('Migration 2010'!$AZ$11:$AZ$62,Demographics!AJ$11:AJ$62)","v":0.48288844153612398},{"$f":"CORREL('Migration 2010'!$AZ$11:$AZ$62,Demographics!AK$11:AK$62)","v":0.15588572773890266},{"$f":"CORREL('Migration 2010'!$AZ$11:$AZ$62,Demographics!AL$11:AL$62)","v":0.51625173007764413},{"$f":"CORREL('Migration 2010'!$AZ$11:$AZ$62,Demographics!AM$11:AM$62)","v":0.49434341237663187},{"$f":"CORREL('Migration 2010'!$AZ$11:$AZ$62,Demographics!AN$11:AN$62)","v":0.59046789155092716},{"$f":"CORREL('Migration 2010'!$AZ$11:$AZ$62,Demographics!AO$11:AO$62)","v":-0.14960504384092474},{"$f":"CORREL('Migration 2010'!$AZ$11:$AZ$62,Demographics!AP$11:AP$62)","v":-4.1331988618908792E-2},{"$f":"CORREL('Migration 2010'!$AZ$11:$AZ$62,Demographics!AQ$11:AQ$62)","v":-0.10345125379347139},{"$f":"CORREL('Migration 2010'!$AZ$11:$AZ$62,Demographics!AR$11:AR$62)","v":0.34783204963806741},{"$f":"CORREL('Migration 2010'!$AZ$11:$AZ$62,Demographics!AS$11:AS$62)","v":0.28673437313826206},{"$f":"CORREL('Migration 2010'!$AZ$11:$AZ$62,Demographics!AT$11:AT$62)","v":0.51423096981544469},{"$f":"CORREL('Migration 2010'!$AZ$11:$AZ$62,Demographics!AU$11:AU$62)","v":0.42879990362059256},{"$f":"CORREL('Migration 2010'!$AZ$11:$AZ$62,Demographics!AV$11:AV$62)","v":0.50125214635548876},{"$f":"CORREL('Migration 2010'!$AZ$11:$AZ$62,Demographics!AW$11:AW$62)","v":-0.38136035650015776},{"$f":"CORREL('Migration 2010'!$AZ$11:$AZ$62,Demographics!AX$11:AX$62)","v":0.41635014990594432},{"$f":"CORREL('Migration 2010'!$AZ$11:$AZ$62,Demographics!AY$11:AY$62)","v":0.63915688632088863},{"$f":"CORREL('Migration 2010'!$AZ$11:$AZ$62,Demographics!AZ$11:AZ$62)","v":4.628026755667887E-2},{"$f":"CORREL('Migration 2010'!$AZ$11:$AZ$62,Demographics!BA$11:BA$62)","v":-5.1547689174179297E-2}]
[null,"Texas",{"$f":"CORREL('Migration 2010'!$BA$11:$BA$62,Demographics!G$11:G$62)","v":0.20549766503905628},{"$f":"CORREL('Migration 2010'!$BA$11:$BA$62,Demographics!H$11:H$62)","v":0.19593886103349054},{"$f":"CORREL('Migration 2010'!$BA$11:$BA$62,Demographics!I$11:I$62)","v":-0.17501076814404923},{"$f":"CORREL('Migration 2010'!$BA$11:$BA$62,Demographics!J$11:J$62)","v":7.2908386229396466E-2},{"$f":"CORREL('Migration 2010'!$BA$11:$BA$62,Demographics!K$11:K$62)","v":-0.26553574475932745},{"$f":"CORREL('Migration 2010'!$BA$11:$BA$62,Demographics!L$11:L$62)","v":0.21538780243175348},{"$f":"CORREL('Migration 2010'!$BA$11:$BA$62,Demographics!M$11:M$62)","v":0.11230490428522014},{"$f":"CORREL('Migration 2010'!$BA$11:$BA$62,Demographics!N$11:N$62)","v":0.12237374460698033},{"$f":"CORREL('Migration 2010'!$BA$11:$BA$62,Demographics!O$11:O$62)","v":-9.897825066459455E-3},{"$f":"CORREL('Migration 2010'!$BA$11:$BA$62,Demographics!P$11:P$62)","v":6.1806116859725951E-2},{"$f":"CORREL('Migration 2010'!$BA$11:$BA$62,Demographics!Q$11:Q$62)","v":0.53176728939334783},{"$f":"CORREL('Migration 2010'!$BA$11:$BA$62,Demographics!R$11:R$62)","v":-0.52312712760661129},{"$f":"CORREL('Migration 2010'!$BA$11:$BA$62,Demographics!S$11:S$62)","v":-0.21457438995885175},{"$f":"CORREL('Migration 2010'!$BA$11:$BA$62,Demographics!T$11:T$62)","v":0.37815871994867717},{"$f":"CORREL('Migration 2010'!$BA$11:$BA$62,Demographics!U$11:U$62)","v":0.44648599696752983},{"$f":"CORREL('Migration 2010'!$BA$11:$BA$62,Demographics!V$11:V$62)","v":-0.48338609511813352},{"$f":"CORREL('Migration 2010'!$BA$11:$BA$62,Demographics!W$11:W$62)","v":-5.2450067020425511E-2},{"$f":"CORREL('Migration 2010'!$BA$11:$BA$62,Demographics!X$11:X$62)","v":0.64469987648339944},{"$f":"CORREL('Migration 2010'!$BA$11:$BA$62,Demographics!Y$11:Y$62)","v":0.2417487076335125},{"$f":"CORREL('Migration 2010'!$BA$11:$BA$62,Demographics!Z$11:Z$62)","v":0.61990568272703128},{"$f":"CORREL('Migration 2010'!$BA$11:$BA$62,Demographics!AA$11:AA$62)","v":-0.34211034862550699},{"$f":"CORREL('Migration 2010'!$BA$11:$BA$62,Demographics!AB$11:AB$62)","v":1.7740583086448304E-2},{"$f":"CORREL('Migration 2010'!$BA$11:$BA$62,Demographics!AC$11:AC$62)","v":4.7823638909410104E-2},{"$f":"CORREL('Migration 2010'!$BA$11:$BA$62,Demographics!AD$11:AD$62)","v":0.61438239191621258},{"$f":"CORREL('Migration 2010'!$BA$11:$BA$62,Demographics!AE$11:AE$62)","v":0.3266056883579645},{"$f":"CORREL('Migration 2010'!$BA$11:$BA$62,Demographics!AF$11:AF$62)","v":-0.12287221126219948},{"$f":"CORREL('Migration 2010'!$BA$11:$BA$62,Demographics!AG$11:AG$62)","v":-0.1324315689059869},{"$f":"CORREL('Migration 2010'!$BA$11:$BA$62,Demographics!AH$11:AH$62)","v":0.3774468898336234},{"$f":"CORREL('Migration 2010'!$BA$11:$BA$62,Demographics!AI$11:AI$62)","v":0.61255479959408232},{"$f":"CORREL('Migration 2010'!$BA$11:$BA$62,Demographics!AJ$11:AJ$62)","v":0.59674573803491981},{"$f":"CORREL('Migration 2010'!$BA$11:$BA$62,Demographics!AK$11:AK$62)","v":0.18336047242470371},{"$f":"CORREL('Migration 2010'!$BA$11:$BA$62,Demographics!AL$11:AL$62)","v":0.63401058191793824},{"$f":"CORREL('Migration 2010'!$BA$11:$BA$62,Demographics!AM$11:AM$62)","v":0.62715392212116372},{"$f":"CORREL('Migration 2010'!$BA$11:$BA$62,Demographics!AN$11:AN$62)","v":0.22637547176827566},{"$f":"CORREL('Migration 2010'!$BA$11:$BA$62,Demographics!AO$11:AO$62)","v":0.2212993903281088},{"$f":"CORREL('Migration 2010'!$BA$11:$BA$62,Demographics!AP$11:AP$62)","v":0.1448305749997511},{"$f":"CORREL('Migration 2010'!$BA$11:$BA$62,Demographics!AQ$11:AQ$62)","v":-1.1501504372267697E-2},{"$f":"CORREL('Migration 2010'!$BA$11:$BA$62,Demographics!AR$11:AR$62)","v":0.5658604426909376},{"$f":"CORREL('Migration 2010'!$BA$11:$BA$62,Demographics!AS$11:AS$62)","v":0.36203314809659881},{"$f":"CORREL('Migration 2010'!$BA$11:$BA$62,Demographics!AT$11:AT$62)","v":0.5200666470424381},{"$f":"CORREL('Migration 2010'!$BA$11:$BA$62,Demographics!AU$11:AU$62)","v":0.55127284766757068},{"$f":"CORREL('Migration 2010'!$BA$11:$BA$62,Demographics!AV$11:AV$62)","v":0.62127434000809423},{"$f":"CORREL('Migration 2010'!$BA$11:$BA$62,Demographics!AW$11:AW$62)","v":-0.33922970987830914},{"$f":"CORREL('Migration 2010'!$BA$11:$BA$62,Demographics!AX$11:AX$62)","v":0.60738741768305571},{"$f":"CORREL('Migration 2010'!$BA$11:$BA$62,Demographics!AY$11:AY$62)","v":0.66519693094442023},{"$f":"CORREL('Migration 2010'!$BA$11:$BA$62,Demographics!AZ$11:AZ$62)","v":0.10964010484707702},{"$f":"CORREL('Migration 2010'!$BA$11:$BA$62,Demographics!BA$11:BA$62)","v":-0.10248952492888432}]
[null,"Utah",{"$f":"CORREL('Migration 2010'!$BB$11:$BB$62,Demographics!G$11:G$62)","v":0.33706647589049205},{"$f":"CORREL('Migration 2010'!$BB$11:$BB$62,Demographics!H$11:H$62)","v":0.37348777739744743},{"$f":"CORREL('Migration 2010'!$BB$11:$BB$62,Demographics!I$11:I$62)","v":-0.297234640074509},{"$f":"CORREL('Migration 2010'!$BB$11:$BB$62,Demographics!J$11:J$62)","v":-0.31515915404098588},{"$f":"CORREL('Migration 2010'!$BB$11:$BB$62,Demographics!K$11:K$62)","v":8.7408426433495029E-2},{"$f":"CORREL('Migration 2010'!$BB$11:$BB$62,Demographics!L$11:L$62)","v":-0.22463593611886312},{"$f":"CORREL('Migration 2010'!$BB$11:$BB$62,Demographics!M$11:M$62)","v":7.0689492424492323E-2},{"$f":"CORREL('Migration 2010'!$BB$11:$BB$62,Demographics!N$11:N$62)","v":0.1415367988956184},{"$f":"CORREL('Migration 2010'!$BB$11:$BB$62,Demographics!O$11:O$62)","v":-8.3717445537116932E-3},{"$f":"CORREL('Migration 2010'!$BB$11:$BB$62,Demographics!P$11:P$62)","v":2.4770528383358276E-2},{"$f":"CORREL('Migration 2010'!$BB$11:$BB$62,Demographics!Q$11:Q$62)","v":0.60845179655097081},{"$f":"CORREL('Migration 2010'!$BB$11:$BB$62,Demographics!R$11:R$62)","v":-0.30289934713150363},{"$f":"CORREL('Migration 2010'!$BB$11:$BB$62,Demographics!S$11:S$62)","v":-0.50020931706879901},{"$f":"CORREL('Migration 2010'!$BB$11:$BB$62,Demographics!T$11:T$62)","v":0.44387965111789007},{"$f":"CORREL('Migration 2010'!$BB$11:$BB$62,Demographics!U$11:U$62)","v":0.50153243225048016},{"$f":"CORREL('Migration 2010'!$BB$11:$BB$62,Demographics!V$11:V$62)","v":-0.21347348964120824},{"$f":"CORREL('Migration 2010'!$BB$11:$BB$62,Demographics!W$11:W$62)","v":1.6811803937459718E-3},{"$f":"CORREL('Migration 2010'!$BB$11:$BB$62,Demographics!X$11:X$62)","v":0.45357702273532341},{"$f":"CORREL('Migration 2010'!$BB$11:$BB$62,Demographics!Y$11:Y$62)","v":6.2694039908141874E-2},{"$f":"CORREL('Migration 2010'!$BB$11:$BB$62,Demographics!Z$11:Z$62)","v":0.44802606280808038},{"$f":"CORREL('Migration 2010'!$BB$11:$BB$62,Demographics!AA$11:AA$62)","v":-0.39298651850090438},{"$f":"CORREL('Migration 2010'!$BB$11:$BB$62,Demographics!AB$11:AB$62)","v":2.3391383743770634E-2},{"$f":"CORREL('Migration 2010'!$BB$11:$BB$62,Demographics!AC$11:AC$62)","v":0.18979472194451372},{"$f":"CORREL('Migration 2010'!$BB$11:$BB$62,Demographics!AD$11:AD$62)","v":0.45486373445846529},{"$f":"CORREL('Migration 2010'!$BB$11:$BB$62,Demographics!AE$11:AE$62)","v":0.46732296883119895},{"$f":"CORREL('Migration 2010'!$BB$11:$BB$62,Demographics!AF$11:AF$62)","v":-6.5349230171771938E-2},{"$f":"CORREL('Migration 2010'!$BB$11:$BB$62,Demographics!AG$11:AG$62)","v":3.345669473567317E-2},{"$f":"CORREL('Migration 2010'!$BB$11:$BB$62,Demographics!AH$11:AH$62)","v":0.13474791573345307},{"$f":"CORREL('Migration 2010'!$BB$11:$BB$62,Demographics!AI$11:AI$62)","v":0.46873760616978027},{"$f":"CORREL('Migration 2010'!$BB$11:$BB$62,Demographics!AJ$11:AJ$62)","v":0.44829419055318348},{"$f":"CORREL('Migration 2010'!$BB$11:$BB$62,Demographics!AK$11:AK$62)","v":-1.9011367724228838E-2},{"$f":"CORREL('Migration 2010'!$BB$11:$BB$62,Demographics!AL$11:AL$62)","v":0.48571449090225965},{"$f":"CORREL('Migration 2010'!$BB$11:$BB$62,Demographics!AM$11:AM$62)","v":0.48547570899193726},{"$f":"CORREL('Migration 2010'!$BB$11:$BB$62,Demographics!AN$11:AN$62)","v":-0.18480288955526372},{"$f":"CORREL('Migration 2010'!$BB$11:$BB$62,Demographics!AO$11:AO$62)","v":5.5149266375490294E-2},{"$f":"CORREL('Migration 2010'!$BB$11:$BB$62,Demographics!AP$11:AP$62)","v":0.11757808957392421},{"$f":"CORREL('Migration 2010'!$BB$11:$BB$62,Demographics!AQ$11:AQ$62)","v":-4.2985952403458927E-2},{"$f":"CORREL('Migration 2010'!$BB$11:$BB$62,Demographics!AR$11:AR$62)","v":0.4691637583363284},{"$f":"CORREL('Migration 2010'!$BB$11:$BB$62,Demographics!AS$11:AS$62)","v":0.1284453889587136},{"$f":"CORREL('Migration 2010'!$BB$11:$BB$62,Demographics!AT$11:AT$62)","v":0.30819378586309037},{"$f":"CORREL('Migration 2010'!$BB$11:$BB$62,Demographics!AU$11:AU$62)","v":0.44969073979183694},{"$f":"CORREL('Migration 2010'!$BB$11:$BB$62,Demographics!AV$11:AV$62)","v":0.48658326382183176},{"$f":"CORREL('Migration 2010'!$BB$11:$BB$62,Demographics!AW$11:AW$62)","v":1.6204146978780337E-2},{"$f":"CORREL('Migration 2010'!$BB$11:$BB$62,Demographics!AX$11:AX$62)","v":0.55406509395818115},{"$f":"CORREL('Migration 2010'!$BB$11:$BB$62,Demographics!AY$11:AY$62)","v":0.40645190832300221},{"$f":"CORREL('Migration 2010'!$BB$11:$BB$62,Demographics!AZ$11:AZ$62)","v":0.30964824026791066},{"$f":"CORREL('Migration 2010'!$BB$11:$BB$62,Demographics!BA$11:BA$62)","v":-0.21218236136554189}]
[null,"Vermont",{"$f":"CORREL('Migration 2010'!$BC$11:$BC$62,Demographics!G$11:G$62)","v":-0.36010572954249048},{"$f":"CORREL('Migration 2010'!$BC$11:$BC$62,Demographics!H$11:H$62)","v":-0.3354096165536094},{"$f":"CORREL('Migration 2010'!$BC$11:$BC$62,Demographics!I$11:I$62)","v":0.10448940340624362},{"$f":"CORREL('Migration 2010'!$BC$11:$BC$62,Demographics!J$11:J$62)","v":0.19853101246879828},{"$f":"CORREL('Migration 2010'!$BC$11:$BC$62,Demographics!K$11:K$62)","v":4.4897233638232052E-2},{"$f":"CORREL('Migration 2010'!$BC$11:$BC$62,Demographics!L$11:L$62)","v":-2.1496880989224008E-2},{"$f":"CORREL('Migration 2010'!$BC$11:$BC$62,Demographics!M$11:M$62)","v":-0.11591851699321966},{"$f":"CORREL('Migration 2010'!$BC$11:$BC$62,Demographics!N$11:N$62)","v":6.7824921112963579E-2},{"$f":"CORREL('Migration 2010'!$BC$11:$BC$62,Demographics!O$11:O$62)","v":-8.9446379511809032E-2},{"$f":"CORREL('Migration 2010'!$BC$11:$BC$62,Demographics!P$11:P$62)","v":-8.0391083051982365E-2},{"$f":"CORREL('Migration 2010'!$BC$11:$BC$62,Demographics!Q$11:Q$62)","v":0.1312723772790173},{"$f":"CORREL('Migration 2010'!$BC$11:$BC$62,Demographics!R$11:R$62)","v":-3.1218993846981322E-2},{"$f":"CORREL('Migration 2010'!$BC$11:$BC$62,Demographics!S$11:S$62)","v":0.22917137374153163},{"$f":"CORREL('Migration 2010'!$BC$11:$BC$62,Demographics!T$11:T$62)","v":0.38033552286725042},{"$f":"CORREL('Migration 2010'!$BC$11:$BC$62,Demographics!U$11:U$62)","v":0.28321568065824732},{"$f":"CORREL('Migration 2010'!$BC$11:$BC$62,Demographics!V$11:V$62)","v":2.3137941761150135E-2},{"$f":"CORREL('Migration 2010'!$BC$11:$BC$62,Demographics!W$11:W$62)","v":0.40661800095147088},{"$f":"CORREL('Migration 2010'!$BC$11:$BC$62,Demographics!X$11:X$62)","v":0.26298908084864348},{"$f":"CORREL('Migration 2010'!$BC$11:$BC$62,Demographics!Y$11:Y$62)","v":0.47654209983167145},{"$f":"CORREL('Migration 2010'!$BC$11:$BC$62,Demographics!Z$11:Z$62)","v":0.30239241524038479},{"$f":"CORREL('Migration 2010'!$BC$11:$BC$62,Demographics!AA$11:AA$62)","v":-0.30817253004243372},{"$f":"CORREL('Migration 2010'!$BC$11:$BC$62,Demographics!AB$11:AB$62)","v":0.52101915227688422},{"$f":"CORREL('Migration 2010'!$BC$11:$BC$62,Demographics!AC$11:AC$62)","v":0.32076272123263339},{"$f":"CORREL('Migration 2010'!$BC$11:$BC$62,Demographics!AD$11:AD$62)","v":0.29645375122434958},{"$f":"CORREL('Migration 2010'!$BC$11:$BC$62,Demographics!AE$11:AE$62)","v":2.4408557102594875E-3},{"$f":"CORREL('Migration 2010'!$BC$11:$BC$62,Demographics!AF$11:AF$62)","v":0.38619495842912682},{"$f":"CORREL('Migration 2010'!$BC$11:$BC$62,Demographics!AG$11:AG$62)","v":0.28282963139124778},{"$f":"CORREL('Migration 2010'!$BC$11:$BC$62,Demographics!AH$11:AH$62)","v":-0.18785714090397793},{"$f":"CORREL('Migration 2010'!$BC$11:$BC$62,Demographics!AI$11:AI$62)","v":0.33993837681940037},{"$f":"CORREL('Migration 2010'!$BC$11:$BC$62,Demographics!AJ$11:AJ$62)","v":0.29929762477640975},{"$f":"CORREL('Migration 2010'!$BC$11:$BC$62,Demographics!AK$11:AK$62)","v":-0.14940672580468176},{"$f":"CORREL('Migration 2010'!$BC$11:$BC$62,Demographics!AL$11:AL$62)","v":0.31216221389257731},{"$f":"CORREL('Migration 2010'!$BC$11:$BC$62,Demographics!AM$11:AM$62)","v":0.32849931821494988},{"$f":"CORREL('Migration 2010'!$BC$11:$BC$62,Demographics!AN$11:AN$62)","v":1.3135920021432526E-2},{"$f":"CORREL('Migration 2010'!$BC$11:$BC$62,Demographics!AO$11:AO$62)","v":-6.7114498667238856E-2},{"$f":"CORREL('Migration 2010'!$BC$11:$BC$62,Demographics!AP$11:AP$62)","v":5.6538919555009108E-2},{"$f":"CORREL('Migration 2010'!$BC$11:$BC$62,Demographics!AQ$11:AQ$62)","v":-8.4266225437988659E-2},{"$f":"CORREL('Migration 2010'!$BC$11:$BC$62,Demographics!AR$11:AR$62)","v":0.23349556264527249},{"$f":"CORREL('Migration 2010'!$BC$11:$BC$62,Demographics!AS$11:AS$62)","v":0.27346072862398618},{"$f":"CORREL('Migration 2010'!$BC$11:$BC$62,Demographics!AT$11:AT$62)","v":-1.0421544975727368E-2},{"$f":"CORREL('Migration 2010'!$BC$11:$BC$62,Demographics!AU$11:AU$62)","v":0.25339329009250294},{"$f":"CORREL('Migration 2010'!$BC$11:$BC$62,Demographics!AV$11:AV$62)","v":0.29383865655657787},{"$f":"CORREL('Migration 2010'!$BC$11:$BC$62,Demographics!AW$11:AW$62)","v":0.21260953349139877},{"$f":"CORREL('Migration 2010'!$BC$11:$BC$62,Demographics!AX$11:AX$62)","v":0.30424238394062741},{"$f":"CORREL('Migration 2010'!$BC$11:$BC$62,Demographics!AY$11:AY$62)","v":0.11543089207135904},{"$f":"CORREL('Migration 2010'!$BC$11:$BC$62,Demographics!AZ$11:AZ$62)","v":-9.5718319710144814E-2},{"$f":"CORREL('Migration 2010'!$BC$11:$BC$62,Demographics!BA$11:BA$62)","v":0.1926206655943612}]
[null,"Virginia",{"$f":"CORREL('Migration 2010'!$BD$11:$BD$62,Demographics!G$11:G$62)","v":-5.097837052663555E-2},{"$f":"CORREL('Migration 2010'!$BD$11:$BD$62,Demographics!H$11:H$62)","v":-5.592927730549116E-2},{"$f":"CORREL('Migration 2010'!$BD$11:$BD$62,Demographics!I$11:I$62)","v":-2.6627881242984357E-2},{"$f":"CORREL('Migration 2010'!$BD$11:$BD$62,Demographics!J$11:J$62)","v":0.34543142450912417},{"$f":"CORREL('Migration 2010'!$BD$11:$BD$62,Demographics!K$11:K$62)","v":-0.30118512139082526},{"$f":"CORREL('Migration 2010'!$BD$11:$BD$62,Demographics!L$11:L$62)","v":0.42522156787463677},{"$f":"CORREL('Migration 2010'!$BD$11:$BD$62,Demographics!M$11:M$62)","v":-0.23219299741866237},{"$f":"CORREL('Migration 2010'!$BD$11:$BD$62,Demographics!N$11:N$62)","v":0.10346083441086605},{"$f":"CORREL('Migration 2010'!$BD$11:$BD$62,Demographics!O$11:O$62)","v":-5.5651851103391783E-2},{"$f":"CORREL('Migration 2010'!$BD$11:$BD$62,Demographics!P$11:P$62)","v":-5.7458792496708877E-2},{"$f":"CORREL('Migration 2010'!$BD$11:$BD$62,Demographics!Q$11:Q$62)","v":0.22926386446428135},{"$f":"CORREL('Migration 2010'!$BD$11:$BD$62,Demographics!R$11:R$62)","v":-0.37490579416256659},{"$f":"CORREL('Migration 2010'!$BD$11:$BD$62,Demographics!S$11:S$62)","v":0.11473201994047115},{"$f":"CORREL('Migration 2010'!$BD$11:$BD$62,Demographics!T$11:T$62)","v":0.39826668327448173},{"$f":"CORREL('Migration 2010'!$BD$11:$BD$62,Demographics!U$11:U$62)","v":0.29463617643294271},{"$f":"CORREL('Migration 2010'!$BD$11:$BD$62,Demographics!V$11:V$62)","v":-0.33581051256685274},{"$f":"CORREL('Migration 2010'!$BD$11:$BD$62,Demographics!W$11:W$62)","v":0.12964901418014002},{"$f":"CORREL('Migration 2010'!$BD$11:$BD$62,Demographics!X$11:X$62)","v":0.67221689824100517},{"$f":"CORREL('Migration 2010'!$BD$11:$BD$62,Demographics!Y$11:Y$62)","v":0.50529733771837426},{"$f":"CORREL('Migration 2010'!$BD$11:$BD$62,Demographics!Z$11:Z$62)","v":0.62801980690773096},{"$f":"CORREL('Migration 2010'!$BD$11:$BD$62,Demographics!AA$11:AA$62)","v":-0.19949338583952131},{"$f":"CORREL('Migration 2010'!$BD$11:$BD$62,Demographics!AB$11:AB$62)","v":0.1400309142057159},{"$f":"CORREL('Migration 2010'!$BD$11:$BD$62,Demographics!AC$11:AC$62)","v":0.12780504057100525},{"$f":"CORREL('Migration 2010'!$BD$11:$BD$62,Demographics!AD$11:AD$62)","v":0.61292903043470914},{"$f":"CORREL('Migration 2010'!$BD$11:$BD$62,Demographics!AE$11:AE$62)","v":0.22590306457261025},{"$f":"CORREL('Migration 2010'!$BD$11:$BD$62,Demographics!AF$11:AF$62)","v":0.11992819195965874},{"$f":"CORREL('Migration 2010'!$BD$11:$BD$62,Demographics!AG$11:AG$62)","v":9.1409666080356305E-2},{"$f":"CORREL('Migration 2010'!$BD$11:$BD$62,Demographics!AH$11:AH$62)","v":9.861540836091115E-2},{"$f":"CORREL('Migration 2010'!$BD$11:$BD$62,Demographics!AI$11:AI$62)","v":0.59137771098546588},{"$f":"CORREL('Migration 2010'!$BD$11:$BD$62,Demographics!AJ$11:AJ$62)","v":0.5902761837440631},{"$f":"CORREL('Migration 2010'!$BD$11:$BD$62,Demographics!AK$11:AK$62)","v":0.27486723200126711},{"$f":"CORREL('Migration 2010'!$BD$11:$BD$62,Demographics!AL$11:AL$62)","v":0.60041380195752614},{"$f":"CORREL('Migration 2010'!$BD$11:$BD$62,Demographics!AM$11:AM$62)","v":0.59901712720038836},{"$f":"CORREL('Migration 2010'!$BD$11:$BD$62,Demographics!AN$11:AN$62)","v":0.47242330999943249},{"$f":"CORREL('Migration 2010'!$BD$11:$BD$62,Demographics!AO$11:AO$62)","v":-0.14950267794380306},{"$f":"CORREL('Migration 2010'!$BD$11:$BD$62,Demographics!AP$11:AP$62)","v":0.12566201515272626},{"$f":"CORREL('Migration 2010'!$BD$11:$BD$62,Demographics!AQ$11:AQ$62)","v":-3.0657613272841031E-2},{"$f":"CORREL('Migration 2010'!$BD$11:$BD$62,Demographics!AR$11:AR$62)","v":0.3809880713097285},{"$f":"CORREL('Migration 2010'!$BD$11:$BD$62,Demographics!AS$11:AS$62)","v":0.45782136562611764},{"$f":"CORREL('Migration 2010'!$BD$11:$BD$62,Demographics!AT$11:AT$62)","v":0.45488047970809686},{"$f":"CORREL('Migration 2010'!$BD$11:$BD$62,Demographics!AU$11:AU$62)","v":0.48864392748287622},{"$f":"CORREL('Migration 2010'!$BD$11:$BD$62,Demographics!AV$11:AV$62)","v":0.60599745622213164},{"$f":"CORREL('Migration 2010'!$BD$11:$BD$62,Demographics!AW$11:AW$62)","v":-0.21198271990150705},{"$f":"CORREL('Migration 2010'!$BD$11:$BD$62,Demographics!AX$11:AX$62)","v":0.54830234069538353},{"$f":"CORREL('Migration 2010'!$BD$11:$BD$62,Demographics!AY$11:AY$62)","v":0.62590900638484004},{"$f":"CORREL('Migration 2010'!$BD$11:$BD$62,Demographics!AZ$11:AZ$62)","v":-4.228086194818037E-2},{"$f":"CORREL('Migration 2010'!$BD$11:$BD$62,Demographics!BA$11:BA$62)","v":0.21897674201738312}]
[null,"Washington",{"$f":"CORREL('Migration 2010'!$BE$11:$BE$62,Demographics!G$11:G$62)","v":0.18564547315336166},{"$f":"CORREL('Migration 2010'!$BE$11:$BE$62,Demographics!H$11:H$62)","v":0.19790726467158753},{"$f":"CORREL('Migration 2010'!$BE$11:$BE$62,Demographics!I$11:I$62)","v":-0.21734017506035166},{"$f":"CORREL('Migration 2010'!$BE$11:$BE$62,Demographics!J$11:J$62)","v":-0.15368965505463816},{"$f":"CORREL('Migration 2010'!$BE$11:$BE$62,Demographics!K$11:K$62)","v":-1.366054247112867E-2},{"$f":"CORREL('Migration 2010'!$BE$11:$BE$62,Demographics!L$11:L$62)","v":-0.15712107754175206},{"$f":"CORREL('Migration 2010'!$BE$11:$BE$62,Demographics!M$11:M$62)","v":5.5462847753514982E-2},{"$f":"CORREL('Migration 2010'!$BE$11:$BE$62,Demographics!N$11:N$62)","v":0.2162298993751571},{"$f":"CORREL('Migration 2010'!$BE$11:$BE$62,Demographics!O$11:O$62)","v":3.3337925192379152E-2},{"$f":"CORREL('Migration 2010'!$BE$11:$BE$62,Demographics!P$11:P$62)","v":8.0284924329584645E-2},{"$f":"CORREL('Migration 2010'!$BE$11:$BE$62,Demographics!Q$11:Q$62)","v":0.53028949181747642},{"$f":"CORREL('Migration 2010'!$BE$11:$BE$62,Demographics!R$11:R$62)","v":-0.32874107276624892},{"$f":"CORREL('Migration 2010'!$BE$11:$BE$62,Demographics!S$11:S$62)","v":-0.30885171168925946},{"$f":"CORREL('Migration 2010'!$BE$11:$BE$62,Demographics!T$11:T$62)","v":0.46819540849192548},{"$f":"CORREL('Migration 2010'!$BE$11:$BE$62,Demographics!U$11:U$62)","v":0.4990735526724247},{"$f":"CORREL('Migration 2010'!$BE$11:$BE$62,Demographics!V$11:V$62)","v":-0.21518065533857672},{"$f":"CORREL('Migration 2010'!$BE$11:$BE$62,Demographics!W$11:W$62)","v":0.11909080016924191},{"$f":"CORREL('Migration 2010'!$BE$11:$BE$62,Demographics!X$11:X$62)","v":0.49988517529873211},{"$f":"CORREL('Migration 2010'!$BE$11:$BE$62,Demographics!Y$11:Y$62)","v":0.11584221720141477},{"$f":"CORREL('Migration 2010'!$BE$11:$BE$62,Demographics!Z$11:Z$62)","v":0.51090907400127605},{"$f":"CORREL('Migration 2010'!$BE$11:$BE$62,Demographics!AA$11:AA$62)","v":-0.47431415026237267},{"$f":"CORREL('Migration 2010'!$BE$11:$BE$62,Demographics!AB$11:AB$62)","v":9.6466090755145256E-2},{"$f":"CORREL('Migration 2010'!$BE$11:$BE$62,Demographics!AC$11:AC$62)","v":0.30617919441993441},{"$f":"CORREL('Migration 2010'!$BE$11:$BE$62,Demographics!AD$11:AD$62)","v":0.52635877200127168},{"$f":"CORREL('Migration 2010'!$BE$11:$BE$62,Demographics!AE$11:AE$62)","v":0.39463783191902302},{"$f":"CORREL('Migration 2010'!$BE$11:$BE$62,Demographics!AF$11:AF$62)","v":-8.6936741780145183E-3},{"$f":"CORREL('Migration 2010'!$BE$11:$BE$62,Demographics!AG$11:AG$62)","v":7.0380208033532968E-2},{"$f":"CORREL('Migration 2010'!$BE$11:$BE$62,Demographics!AH$11:AH$62)","v":0.14346506296796166},{"$f":"CORREL('Migration 2010'!$BE$11:$BE$62,Demographics!AI$11:AI$62)","v":0.54514736992410107},{"$f":"CORREL('Migration 2010'!$BE$11:$BE$62,Demographics!AJ$11:AJ$62)","v":0.52367818664134769},{"$f":"CORREL('Migration 2010'!$BE$11:$BE$62,Demographics!AK$11:AK$62)","v":-7.4297627108874165E-2},{"$f":"CORREL('Migration 2010'!$BE$11:$BE$62,Demographics!AL$11:AL$62)","v":0.55455784313853007},{"$f":"CORREL('Migration 2010'!$BE$11:$BE$62,Demographics!AM$11:AM$62)","v":0.55748621756577488},{"$f":"CORREL('Migration 2010'!$BE$11:$BE$62,Demographics!AN$11:AN$62)","v":-0.10168969182164422},{"$f":"CORREL('Migration 2010'!$BE$11:$BE$62,Demographics!AO$11:AO$62)","v":6.4839864777051823E-2},{"$f":"CORREL('Migration 2010'!$BE$11:$BE$62,Demographics!AP$11:AP$62)","v":0.19422913432237163},{"$f":"CORREL('Migration 2010'!$BE$11:$BE$62,Demographics!AQ$11:AQ$62)","v":1.1957044920577416E-2},{"$f":"CORREL('Migration 2010'!$BE$11:$BE$62,Demographics!AR$11:AR$62)","v":0.40821043122349954},{"$f":"CORREL('Migration 2010'!$BE$11:$BE$62,Demographics!AS$11:AS$62)","v":0.27513556701070219},{"$f":"CORREL('Migration 2010'!$BE$11:$BE$62,Demographics!AT$11:AT$62)","v":0.39950192784378596},{"$f":"CORREL('Migration 2010'!$BE$11:$BE$62,Demographics!AU$11:AU$62)","v":0.54622990233507773},{"$f":"CORREL('Migration 2010'!$BE$11:$BE$62,Demographics!AV$11:AV$62)","v":0.55343486355384963},{"$f":"CORREL('Migration 2010'!$BE$11:$BE$62,Demographics!AW$11:AW$62)","v":-8.7189952113066987E-2},{"$f":"CORREL('Migration 2010'!$BE$11:$BE$62,Demographics!AX$11:AX$62)","v":0.58725763244013007},{"$f":"CORREL('Migration 2010'!$BE$11:$BE$62,Demographics!AY$11:AY$62)","v":0.38863383035851384},{"$f":"CORREL('Migration 2010'!$BE$11:$BE$62,Demographics!AZ$11:AZ$62)","v":0.26188138196204819},{"$f":"CORREL('Migration 2010'!$BE$11:$BE$62,Demographics!BA$11:BA$62)","v":-0.11068033415634214}]
[null,"West Virginia",{"$f":"CORREL('Migration 2010'!$BF$11:$BF$62,Demographics!G$11:G$62)","v":-0.16756603146489857},{"$f":"CORREL('Migration 2010'!$BF$11:$BF$62,Demographics!H$11:H$62)","v":-0.15297737933705638},{"$f":"CORREL('Migration 2010'!$BF$11:$BF$62,Demographics!I$11:I$62)","v":0.12818061316816803},{"$f":"CORREL('Migration 2010'!$BF$11:$BF$62,Demographics!J$11:J$62)","v":0.28994469823729807},{"$f":"CORREL('Migration 2010'!$BF$11:$BF$62,Demographics!K$11:K$62)","v":-0.15088807369084922},{"$f":"CORREL('Migration 2010'!$BF$11:$BF$62,Demographics!L$11:L$62)","v":0.29505634828216742},{"$f":"CORREL('Migration 2010'!$BF$11:$BF$62,Demographics!M$11:M$62)","v":-0.23658246594767457},{"$f":"CORREL('Migration 2010'!$BF$11:$BF$62,Demographics!N$11:N$62)","v":7.2275189450573159E-3},{"$f":"CORREL('Migration 2010'!$BF$11:$BF$62,Demographics!O$11:O$62)","v":-7.2389560801974728E-2},{"$f":"CORREL('Migration 2010'!$BF$11:$BF$62,Demographics!P$11:P$62)","v":-7.1416147200292018E-2},{"$f":"CORREL('Migration 2010'!$BF$11:$BF$62,Demographics!Q$11:Q$62)","v":2.3592848872167695E-2},{"$f":"CORREL('Migration 2010'!$BF$11:$BF$62,Demographics!R$11:R$62)","v":-0.13945174702029567},{"$f":"CORREL('Migration 2010'!$BF$11:$BF$62,Demographics!S$11:S$62)","v":0.14738257112876973},{"$f":"CORREL('Migration 2010'!$BF$11:$BF$62,Demographics!T$11:T$62)","v":0.13742034201266504},{"$f":"CORREL('Migration 2010'!$BF$11:$BF$62,Demographics!U$11:U$62)","v":6.0788190754439031E-2},{"$f":"CORREL('Migration 2010'!$BF$11:$BF$62,Demographics!V$11:V$62)","v":-0.1797333803031729},{"$f":"CORREL('Migration 2010'!$BF$11:$BF$62,Demographics!W$11:W$62)","v":4.3546488615891416E-2},{"$f":"CORREL('Migration 2010'!$BF$11:$BF$62,Demographics!X$11:X$62)","v":0.55100959810253347},{"$f":"CORREL('Migration 2010'!$BF$11:$BF$62,Demographics!Y$11:Y$62)","v":0.33114097805907261},{"$f":"CORREL('Migration 2010'!$BF$11:$BF$62,Demographics!Z$11:Z$62)","v":0.45554948432443787},{"$f":"CORREL('Migration 2010'!$BF$11:$BF$62,Demographics!AA$11:AA$62)","v":1.4271531355561024E-2},{"$f":"CORREL('Migration 2010'!$BF$11:$BF$62,Demographics!AB$11:AB$62)","v":1.6801264287887054E-2},{"$f":"CORREL('Migration 2010'!$BF$11:$BF$62,Demographics!AC$11:AC$62)","v":-1.4542007507323708E-2},{"$f":"CORREL('Migration 2010'!$BF$11:$BF$62,Demographics!AD$11:AD$62)","v":0.44172383169433654},{"$f":"CORREL('Migration 2010'!$BF$11:$BF$62,Demographics!AE$11:AE$62)","v":2.407700888897996E-2},{"$f":"CORREL('Migration 2010'!$BF$11:$BF$62,Demographics!AF$11:AF$62)","v":9.2925891432655131E-2},{"$f":"CORREL('Migration 2010'!$BF$11:$BF$62,Demographics!AG$11:AG$62)","v":2.7391368219317012E-2},{"$f":"CORREL('Migration 2010'!$BF$11:$BF$62,Demographics!AH$11:AH$62)","v":3.0065622519546344E-2},{"$f":"CORREL('Migration 2010'!$BF$11:$BF$62,Demographics!AI$11:AI$62)","v":0.39903222354838985},{"$f":"CORREL('Migration 2010'!$BF$11:$BF$62,Demographics!AJ$11:AJ$62)","v":0.42328852475176171},{"$f":"CORREL('Migration 2010'!$BF$11:$BF$62,Demographics!AK$11:AK$62)","v":0.25712875196975576},{"$f":"CORREL('Migration 2010'!$BF$11:$BF$62,Demographics!AL$11:AL$62)","v":0.38517646131596439},{"$f":"CORREL('Migration 2010'!$BF$11:$BF$62,Demographics!AM$11:AM$62)","v":0.38619233406368031},{"$f":"CORREL('Migration 2010'!$BF$11:$BF$62,Demographics!AN$11:AN$62)","v":0.30496481730420449},{"$f":"CORREL('Migration 2010'!$BF$11:$BF$62,Demographics!AO$11:AO$62)","v":-0.17936257759695912},{"$f":"CORREL('Migration 2010'!$BF$11:$BF$62,Demographics!AP$11:AP$62)","v":3.9635233768569512E-2},{"$f":"CORREL('Migration 2010'!$BF$11:$BF$62,Demographics!AQ$11:AQ$62)","v":-4.0490248579328258E-2},{"$f":"CORREL('Migration 2010'!$BF$11:$BF$62,Demographics!AR$11:AR$62)","v":0.21141212261620132},{"$f":"CORREL('Migration 2010'!$BF$11:$BF$62,Demographics!AS$11:AS$62)","v":0.29030042097678754},{"$f":"CORREL('Migration 2010'!$BF$11:$BF$62,Demographics!AT$11:AT$62)","v":0.35933705056340109},{"$f":"CORREL('Migration 2010'!$BF$11:$BF$62,Demographics!AU$11:AU$62)","v":0.27190284169103474},{"$f":"CORREL('Migration 2010'!$BF$11:$BF$62,Demographics!AV$11:AV$62)","v":0.42470270219146233},{"$f":"CORREL('Migration 2010'!$BF$11:$BF$62,Demographics!AW$11:AW$62)","v":-0.17839725902019077},{"$f":"CORREL('Migration 2010'!$BF$11:$BF$62,Demographics!AX$11:AX$62)","v":0.33863958260132154},{"$f":"CORREL('Migration 2010'!$BF$11:$BF$62,Demographics!AY$11:AY$62)","v":0.38814929740921877},{"$f":"CORREL('Migration 2010'!$BF$11:$BF$62,Demographics!AZ$11:AZ$62)","v":-0.10191775726903307},{"$f":"CORREL('Migration 2010'!$BF$11:$BF$62,Demographics!BA$11:BA$62)","v":0.15410071756401642}]
[null,"Wisconsin",{"$f":"CORREL('Migration 2010'!$BG$11:$BG$62,Demographics!G$11:G$62)","v":1.7562822875278279E-2},{"$f":"CORREL('Migration 2010'!$BG$11:$BG$62,Demographics!H$11:H$62)","v":6.5302805779532444E-2},{"$f":"CORREL('Migration 2010'!$BG$11:$BG$62,Demographics!I$11:I$62)","v":-5.135752812383907E-2},{"$f":"CORREL('Migration 2010'!$BG$11:$BG$62,Demographics!J$11:J$62)","v":3.9811677211781749E-2},{"$f":"CORREL('Migration 2010'!$BG$11:$BG$62,Demographics!K$11:K$62)","v":-7.5401113010551716E-3},{"$f":"CORREL('Migration 2010'!$BG$11:$BG$62,Demographics!L$11:L$62)","v":4.3569079993642269E-2},{"$f":"CORREL('Migration 2010'!$BG$11:$BG$62,Demographics!M$11:M$62)","v":-0.14166146146147438},{"$f":"CORREL('Migration 2010'!$BG$11:$BG$62,Demographics!N$11:N$62)","v":7.0760630066599176E-2},{"$f":"CORREL('Migration 2010'!$BG$11:$BG$62,Demographics!O$11:O$62)","v":-6.0134341418782607E-2},{"$f":"CORREL('Migration 2010'!$BG$11:$BG$62,Demographics!P$11:P$62)","v":-6.7380455777531545E-2},{"$f":"CORREL('Migration 2010'!$BG$11:$BG$62,Demographics!Q$11:Q$62)","v":0.21222894991648955},{"$f":"CORREL('Migration 2010'!$BG$11:$BG$62,Demographics!R$11:R$62)","v":-0.14321015617799987},{"$f":"CORREL('Migration 2010'!$BG$11:$BG$62,Demographics!S$11:S$62)","v":4.5856066498394715E-2},{"$f":"CORREL('Migration 2010'!$BG$11:$BG$62,Demographics!T$11:T$62)","v":0.26709740474038146},{"$f":"CORREL('Migration 2010'!$BG$11:$BG$62,Demographics!U$11:U$62)","v":0.24617816440581139},{"$f":"CORREL('Migration 2010'!$BG$11:$BG$62,Demographics!V$11:V$62)","v":-3.3120310945674115E-2},{"$f":"CORREL('Migration 2010'!$BG$11:$BG$62,Demographics!W$11:W$62)","v":0.13623475132850599},{"$f":"CORREL('Migration 2010'!$BG$11:$BG$62,Demographics!X$11:X$62)","v":0.46601720690583637},{"$f":"CORREL('Migration 2010'!$BG$11:$BG$62,Demographics!Y$11:Y$62)","v":0.20710505283874098},{"$f":"CORREL('Migration 2010'!$BG$11:$BG$62,Demographics!Z$11:Z$62)","v":0.46495627976110349},{"$f":"CORREL('Migration 2010'!$BG$11:$BG$62,Demographics!AA$11:AA$62)","v":3.3331635353635397E-2},{"$f":"CORREL('Migration 2010'!$BG$11:$BG$62,Demographics!AB$11:AB$62)","v":0.13723658140353073},{"$f":"CORREL('Migration 2010'!$BG$11:$BG$62,Demographics!AC$11:AC$62)","v":-1.4423537203232311E-2},{"$f":"CORREL('Migration 2010'!$BG$11:$BG$62,Demographics!AD$11:AD$62)","v":0.45977412735790396},{"$f":"CORREL('Migration 2010'!$BG$11:$BG$62,Demographics!AE$11:AE$62)","v":9.0765018238694622E-2},{"$f":"CORREL('Migration 2010'!$BG$11:$BG$62,Demographics!AF$11:AF$62)","v":7.2846754930546029E-2},{"$f":"CORREL('Migration 2010'!$BG$11:$BG$62,Demographics!AG$11:AG$62)","v":4.7454335035530197E-2},{"$f":"CORREL('Migration 2010'!$BG$11:$BG$62,Demographics!AH$11:AH$62)","v":2.9563833405101252E-2},{"$f":"CORREL('Migration 2010'!$BG$11:$BG$62,Demographics!AI$11:AI$62)","v":0.45644359754750891},{"$f":"CORREL('Migration 2010'!$BG$11:$BG$62,Demographics!AJ$11:AJ$62)","v":0.46718983844070155},{"$f":"CORREL('Migration 2010'!$BG$11:$BG$62,Demographics!AK$11:AK$62)","v":0.25423506672520729},{"$f":"CORREL('Migration 2010'!$BG$11:$BG$62,Demographics!AL$11:AL$62)","v":0.44525421586755665},{"$f":"CORREL('Migration 2010'!$BG$11:$BG$62,Demographics!AM$11:AM$62)","v":0.44778620785271822},{"$f":"CORREL('Migration 2010'!$BG$11:$BG$62,Demographics!AN$11:AN$62)","v":0.11063175955072184},{"$f":"CORREL('Migration 2010'!$BG$11:$BG$62,Demographics!AO$11:AO$62)","v":-0.12549245158277042},{"$f":"CORREL('Migration 2010'!$BG$11:$BG$62,Demographics!AP$11:AP$62)","v":4.5557588892963685E-2},{"$f":"CORREL('Migration 2010'!$BG$11:$BG$62,Demographics!AQ$11:AQ$62)","v":-4.0168414530097167E-2},{"$f":"CORREL('Migration 2010'!$BG$11:$BG$62,Demographics!AR$11:AR$62)","v":0.23987245485864514},{"$f":"CORREL('Migration 2010'!$BG$11:$BG$62,Demographics!AS$11:AS$62)","v":0.26989566432709217},{"$f":"CORREL('Migration 2010'!$BG$11:$BG$62,Demographics!AT$11:AT$62)","v":0.41969125270778124},{"$f":"CORREL('Migration 2010'!$BG$11:$BG$62,Demographics!AU$11:AU$62)","v":0.43772616136666531},{"$f":"CORREL('Migration 2010'!$BG$11:$BG$62,Demographics!AV$11:AV$62)","v":0.45737279019594473},{"$f":"CORREL('Migration 2010'!$BG$11:$BG$62,Demographics!AW$11:AW$62)","v":-0.15286230682626512},{"$f":"CORREL('Migration 2010'!$BG$11:$BG$62,Demographics!AX$11:AX$62)","v":0.41496244269629878},{"$f":"CORREL('Migration 2010'!$BG$11:$BG$62,Demographics!AY$11:AY$62)","v":0.35229160451168495},{"$f":"CORREL('Migration 2010'!$BG$11:$BG$62,Demographics!AZ$11:AZ$62)","v":6.0332825304180937E-2},{"$f":"CORREL('Migration 2010'!$BG$11:$BG$62,Demographics!BA$11:BA$62)","v":-6.2307387575645745E-2}]
[null,"Wyoming",{"$f":"CORREL('Migration 2010'!$BH$11:$BH$62,Demographics!G$11:G$62)","v":0.42261472428218699},{"$f":"CORREL('Migration 2010'!$BH$11:$BH$62,Demographics!H$11:H$62)","v":0.4361769874110436},{"$f":"CORREL('Migration 2010'!$BH$11:$BH$62,Demographics!I$11:I$62)","v":-0.35504206790819082},{"$f":"CORREL('Migration 2010'!$BH$11:$BH$62,Demographics!J$11:J$62)","v":-0.31910517664182764},{"$f":"CORREL('Migration 2010'!$BH$11:$BH$62,Demographics!K$11:K$62)","v":0.22380480150150209},{"$f":"CORREL('Migration 2010'!$BH$11:$BH$62,Demographics!L$11:L$62)","v":-0.2525910783534544},{"$f":"CORREL('Migration 2010'!$BH$11:$BH$62,Demographics!M$11:M$62)","v":0.1572550371755112},{"$f":"CORREL('Migration 2010'!$BH$11:$BH$62,Demographics!N$11:N$62)","v":-0.1048462478655276},{"$f":"CORREL('Migration 2010'!$BH$11:$BH$62,Demographics!O$11:O$62)","v":-7.1257047811217306E-2},{"$f":"CORREL('Migration 2010'!$BH$11:$BH$62,Demographics!P$11:P$62)","v":-3.4747586617011154E-2},{"$f":"CORREL('Migration 2010'!$BH$11:$BH$62,Demographics!Q$11:Q$62)","v":0.31351054543699874},{"$f":"CORREL('Migration 2010'!$BH$11:$BH$62,Demographics!R$11:R$62)","v":-2.2526638493354165E-2},{"$f":"CORREL('Migration 2010'!$BH$11:$BH$62,Demographics!S$11:S$62)","v":-0.40076786727120089},{"$f":"CORREL('Migration 2010'!$BH$11:$BH$62,Demographics!T$11:T$62)","v":1.7511658946053842E-2},{"$f":"CORREL('Migration 2010'!$BH$11:$BH$62,Demographics!U$11:U$62)","v":0.11189810691499529},{"$f":"CORREL('Migration 2010'!$BH$11:$BH$62,Demographics!V$11:V$62)","v":8.3753202498496132E-2},{"$f":"CORREL('Migration 2010'!$BH$11:$BH$62,Demographics!W$11:W$62)","v":0.13350346627464654},{"$f":"CORREL('Migration 2010'!$BH$11:$BH$62,Demographics!X$11:X$62)","v":0.1449595591899828},{"$f":"CORREL('Migration 2010'!$BH$11:$BH$62,Demographics!Y$11:Y$62)","v":-0.18628943021411795},{"$f":"CORREL('Migration 2010'!$BH$11:$BH$62,Demographics!Z$11:Z$62)","v":0.13310401457076174},{"$f":"CORREL('Migration 2010'!$BH$11:$BH$62,Demographics!AA$11:AA$62)","v":-3.8582800312937926E-2},{"$f":"CORREL('Migration 2010'!$BH$11:$BH$62,Demographics!AB$11:AB$62)","v":-0.16809589741116795},{"$f":"CORREL('Migration 2010'!$BH$11:$BH$62,Demographics!AC$11:AC$62)","v":-6.8126157004657711E-2},{"$f":"CORREL('Migration 2010'!$BH$11:$BH$62,Demographics!AD$11:AD$62)","v":0.13828110544868716},{"$f":"CORREL('Migration 2010'!$BH$11:$BH$62,Demographics!AE$11:AE$62)","v":0.18244825110155871},{"$f":"CORREL('Migration 2010'!$BH$11:$BH$62,Demographics!AF$11:AF$62)","v":-0.14202778860716345},{"$f":"CORREL('Migration 2010'!$BH$11:$BH$62,Demographics!AG$11:AG$62)","v":-7.5420266711844375E-2},{"$f":"CORREL('Migration 2010'!$BH$11:$BH$62,Demographics!AH$11:AH$62)","v":7.3376783729412309E-2},{"$f":"CORREL('Migration 2010'!$BH$11:$BH$62,Demographics!AI$11:AI$62)","v":0.15271666425840885},{"$f":"CORREL('Migration 2010'!$BH$11:$BH$62,Demographics!AJ$11:AJ$62)","v":0.1421821532831202},{"$f":"CORREL('Migration 2010'!$BH$11:$BH$62,Demographics!AK$11:AK$62)","v":6.1395088589300248E-2},{"$f":"CORREL('Migration 2010'!$BH$11:$BH$62,Demographics!AL$11:AL$62)","v":0.15741294929286301},{"$f":"CORREL('Migration 2010'!$BH$11:$BH$62,Demographics!AM$11:AM$62)","v":0.15451838947666782},{"$f":"CORREL('Migration 2010'!$BH$11:$BH$62,Demographics!AN$11:AN$62)","v":-0.23168460298474974},{"$f":"CORREL('Migration 2010'!$BH$11:$BH$62,Demographics!AO$11:AO$62)","v":0.10489913101675928},{"$f":"CORREL('Migration 2010'!$BH$11:$BH$62,Demographics!AP$11:AP$62)","v":-0.10338998867520834},{"$f":"CORREL('Migration 2010'!$BH$11:$BH$62,Demographics!AQ$11:AQ$62)","v":-9.333817807180507E-2},{"$f":"CORREL('Migration 2010'!$BH$11:$BH$62,Demographics!AR$11:AR$62)","v":0.18491947969838027},{"$f":"CORREL('Migration 2010'!$BH$11:$BH$62,Demographics!AS$11:AS$62)","v":-7.5057956386877206E-2},{"$f":"CORREL('Migration 2010'!$BH$11:$BH$62,Demographics!AT$11:AT$62)","v":0.1413209639030874},{"$f":"CORREL('Migration 2010'!$BH$11:$BH$62,Demographics!AU$11:AU$62)","v":0.1310440370482909},{"$f":"CORREL('Migration 2010'!$BH$11:$BH$62,Demographics!AV$11:AV$62)","v":0.14592451030194603},{"$f":"CORREL('Migration 2010'!$BH$11:$BH$62,Demographics!AW$11:AW$62)","v":-1.7196395845089068E-2},{"$f":"CORREL('Migration 2010'!$BH$11:$BH$62,Demographics!AX$11:AX$62)","v":0.10839949447634692},{"$f":"CORREL('Migration 2010'!$BH$11:$BH$62,Demographics!AY$11:AY$62)","v":0.28145561973533034},{"$f":"CORREL('Migration 2010'!$BH$11:$BH$62,Demographics!AZ$11:AZ$62)","v":0.22694747198860205},{"$f":"CORREL('Migration 2010'!$BH$11:$BH$62,Demographics!BA$11:BA$62)","v":-0.30297399585100349}]
[null,"Puerto Rico",{"$f":"CORREL('Migration 2010'!$BI$11:$BI$62,Demographics!G$11:G$62)","v":-0.23648859982318571},{"$f":"CORREL('Migration 2010'!$BI$11:$BI$62,Demographics!H$11:H$62)","v":-0.21851153366395401},{"$f":"CORREL('Migration 2010'!$BI$11:$BI$62,Demographics!I$11:I$62)","v":0.2708290591551844},{"$f":"CORREL('Migration 2010'!$BI$11:$BI$62,Demographics!J$11:J$62)","v":0.30997997960169271},{"$f":"CORREL('Migration 2010'!$BI$11:$BI$62,Demographics!K$11:K$62)","v":-9.1536742382064565E-2},{"$f":"CORREL('Migration 2010'!$BI$11:$BI$62,Demographics!L$11:L$62)","v":0.21179400239732474},{"$f":"CORREL('Migration 2010'!$BI$11:$BI$62,Demographics!M$11:M$62)","v":-0.19416962731044429},{"$f":"CORREL('Migration 2010'!$BI$11:$BI$62,Demographics!N$11:N$62)","v":3.3258962952762823E-2},{"$f":"CORREL('Migration 2010'!$BI$11:$BI$62,Demographics!O$11:O$62)","v":-9.9887299380730557E-2},{"$f":"CORREL('Migration 2010'!$BI$11:$BI$62,Demographics!P$11:P$62)","v":-0.11662932095713517},{"$f":"CORREL('Migration 2010'!$BI$11:$BI$62,Demographics!Q$11:Q$62)","v":0.30682329892453614},{"$f":"CORREL('Migration 2010'!$BI$11:$BI$62,Demographics!R$11:R$62)","v":-0.25336840823345047},{"$f":"CORREL('Migration 2010'!$BI$11:$BI$62,Demographics!S$11:S$62)","v":0.23742635645343929},{"$f":"CORREL('Migration 2010'!$BI$11:$BI$62,Demographics!T$11:T$62)","v":0.47101058590771633},{"$f":"CORREL('Migration 2010'!$BI$11:$BI$62,Demographics!U$11:U$62)","v":0.40312728308138734},{"$f":"CORREL('Migration 2010'!$BI$11:$BI$62,Demographics!V$11:V$62)","v":-0.18287404639699986},{"$f":"CORREL('Migration 2010'!$BI$11:$BI$62,Demographics!W$11:W$62)","v":0.13834608114307723},{"$f":"CORREL('Migration 2010'!$BI$11:$BI$62,Demographics!X$11:X$62)","v":0.66644185314719306},{"$f":"CORREL('Migration 2010'!$BI$11:$BI$62,Demographics!Y$11:Y$62)","v":0.42003372600936484},{"$f":"CORREL('Migration 2010'!$BI$11:$BI$62,Demographics!Z$11:Z$62)","v":0.64514051806822859},{"$f":"CORREL('Migration 2010'!$BI$11:$BI$62,Demographics!AA$11:AA$62)","v":-0.19321514108244944},{"$f":"CORREL('Migration 2010'!$BI$11:$BI$62,Demographics!AB$11:AB$62)","v":0.40594222001733232},{"$f":"CORREL('Migration 2010'!$BI$11:$BI$62,Demographics!AC$11:AC$62)","v":8.7966027075003381E-2},{"$f":"CORREL('Migration 2010'!$BI$11:$BI$62,Demographics!AD$11:AD$62)","v":0.61402307009945711},{"$f":"CORREL('Migration 2010'!$BI$11:$BI$62,Demographics!AE$11:AE$62)","v":0.10532482485819321},{"$f":"CORREL('Migration 2010'!$BI$11:$BI$62,Demographics!AF$11:AF$62)","v":0.16326046125078725},{"$f":"CORREL('Migration 2010'!$BI$11:$BI$62,Demographics!AG$11:AG$62)","v":5.1354778263563931E-2},{"$f":"CORREL('Migration 2010'!$BI$11:$BI$62,Demographics!AH$11:AH$62)","v":4.5727169184390216E-2},{"$f":"CORREL('Migration 2010'!$BI$11:$BI$62,Demographics!AI$11:AI$62)","v":0.62557645511043969},{"$f":"CORREL('Migration 2010'!$BI$11:$BI$62,Demographics!AJ$11:AJ$62)","v":0.60489145258575538},{"$f":"CORREL('Migration 2010'!$BI$11:$BI$62,Demographics!AK$11:AK$62)","v":0.20015049925957062},{"$f":"CORREL('Migration 2010'!$BI$11:$BI$62,Demographics!AL$11:AL$62)","v":0.61333698020953364},{"$f":"CORREL('Migration 2010'!$BI$11:$BI$62,Demographics!AM$11:AM$62)","v":0.61741355415529475},{"$f":"CORREL('Migration 2010'!$BI$11:$BI$62,Demographics!AN$11:AN$62)","v":0.23732542018239081},{"$f":"CORREL('Migration 2010'!$BI$11:$BI$62,Demographics!AO$11:AO$62)","v":-0.15042692561676596},{"$f":"CORREL('Migration 2010'!$BI$11:$BI$62,Demographics!AP$11:AP$62)","v":5.1632321673645253E-2},{"$f":"CORREL('Migration 2010'!$BI$11:$BI$62,Demographics!AQ$11:AQ$62)","v":-7.3982784427872081E-2},{"$f":"CORREL('Migration 2010'!$BI$11:$BI$62,Demographics!AR$11:AR$62)","v":0.56163125805078229},{"$f":"CORREL('Migration 2010'!$BI$11:$BI$62,Demographics!AS$11:AS$62)","v":0.29192723912210805},{"$f":"CORREL('Migration 2010'!$BI$11:$BI$62,Demographics!AT$11:AT$62)","v":0.331800705096579},{"$f":"CORREL('Migration 2010'!$BI$11:$BI$62,Demographics!AU$11:AU$62)","v":0.51198326483627521},{"$f":"CORREL('Migration 2010'!$BI$11:$BI$62,Demographics!AV$11:AV$62)","v":0.61244224425604987},{"$f":"CORREL('Migration 2010'!$BI$11:$BI$62,Demographics!AW$11:AW$62)","v":-6.9093674464447405E-2},{"$f":"CORREL('Migration 2010'!$BI$11:$BI$62,Demographics!AX$11:AX$62)","v":0.56082101217713076},{"$f":"CORREL('Migration 2010'!$BI$11:$BI$62,Demographics!AY$11:AY$62)","v":0.51466348058688893},{"$f":"CORREL('Migration 2010'!$BI$11:$BI$62,Demographics!AZ$11:AZ$62)","v":-4.6229296944050716E-2},{"$f":"CORREL('Migration 2010'!$BI$11:$BI$62,Demographics!BA$11:BA$62)","v":0.32573202117290895}]

{"sheet":"r-AttributeofOrigin","index":14,"n_rows":54,"n_cols":48,"rows_kept":54,"cut":false,"hidden":true,"merged":[]}
["Current Residence vs Attributes of Previous Residence:","Persons under 5 years, percent, 2012                                                    PCT    1          6.4      0.0      13.3 CENSUS","Persons  under 18 years, percent, 2012                                                  PCT    1         23.5      0.0      41.4 CENSUS","Persons 65 years and over, percent, 2012                                                PCT    1         13.7      3.6      49.3 CENSUS","Female persons, percent, 2012                                                           PCT    1         50.8     30.1      57.0 CENSUS","White alone, percent, 2012                                                              PCT    1         77.9      4.1      99.2 CENSUS","Black or African American alone, percent, 2012                                          PCT    1         13.1      0.0      85.4 CENSUS","American Indian and Alaska Native alone, percent, 2012                                  PCT    1          1.2      0.0      93.2 CENSUS","Asian alone, percent, 2012                                                              PCT    1          5.1      0.0      43.3 CENSUS","Native Hawaiian and Other Pacific Islander alone, percent, 2012                         PCT    1          0.2      0.0      48.9 CENSUS","Two or More Races, percent, 2012                                                        PCT    1          2.4      0.0      29.5 CENSUS","Hispanic or Latino, percent, 2012                                                       PCT    1         16.9      0.2      95.6 CENSUS","White alone, not Hispanic or Latino, percent, 2012                                      PCT    1         63.0      3.2      98.6 CENSUS","Living in same house 1 year & over, percent, 2008-2012                                  PCT    1         84.8     50.8     100.0 CENSUS","Foreign born persons, percent, 2008-2012                                                PCT    1         12.9      0.0      58.9 CENSUS","Language other than English spoken at home, pct age 5+, 2008-2012                       PCT    1         20.5      0.0      95.4 CENSUS","High school graduate or higher, percent of persons age 25+, 2008-2012                   PCT    1         85.7     44.9      97.5 CENSUS","Bachelor's degree or higher, percent of persons age 25+, 2008-2012                      PCT    1         28.5      3.7      72.8 CENSUS","Veterans, 2008-2012                                                                     ABS    0     21853912        2  21853912 CENSUS","Mean travel time to work (minutes), workers age 16+, 2008-2012                          MIN    1         25.4      4.3      42.6 CENSUS","Housing units, 2012                                                                     ABS    0    132452405       50 132452405 CENSUS","Homeownership rate, 2008-2012                                                           PCT    1         65.5      0.0      94.7 CENSUS","Housing units in multi-unit structures, percent, 2008-2012                              PCT    1         25.9      0.0      98.4 CENSUS","Median value of owner-occupied housing units, 2008-2012                                 DOL    0       181400    19400    944100 CENSUS","Households, 2008-2012                                                                   ABS    0    115226802       35 115226802 CENSUS","Persons per household, 2008-2012                                                        AVG    2         2.61     1.29      4.70 CENSUS","Per capita money income in past 12 months (2012 dollars), 2008-2012                     DOL    0        28051     8809     61951 CENSUS","Median household income, 2008-2012                                                      DOL    0        53046    19624    122844 CENSUS","Persons below poverty level, percent, 2008-2012                                         PCT    1         14.9      0.0      49.5 CENSUS","Private nonfarm establishments, 2011                                                    ABS    0      7354043        3   7354043 CENSUS","Private nonfarm employment,  2011                                                       ABS    0    113425965       10 113425965 CENSUS","Private nonfarm employment, percent change, 2010-2011                                   PCT    1          1.3    -40.8     288.2 CENSUS","Nonemployer establishments, 2011                                                        ABS    0     22491080       13  22491080 CENSUS","Total number of firms, 2007                                                             ABS    0     27092908       27  27092908 CENSUS","Black-owned firms, percent, 2007                                                        PCT    1          7.1      0.2      66.7 CENSUS","American Indian- and Alaska Native-owned firms, percent, 2007                           PCT    1          0.9      0.2      71.8 CENSUS","Asian-owned firms, percent, 2007                                                        PCT    1          5.7      0.3      56.6 CENSUS","Native Hawaiian- and Other Pacific Islander-owned firms, percent, 2007                  PCT    1          0.1      0.0      10.5 CENSUS","Hispanic-owned firms, percent, 2007                                                     PCT    1          8.3      0.3      78.0 CENSUS","Women-owned firms, percent, 2007                                                        PCT    1         28.8      6.5      56.2 CENSUS","Manufacturers shipments, 2007 ($1,000)                                                  TH$    0   5319456312    569035319456312 CENSUS","Merchant wholesaler sales, 2007 ($1,000)                                                TH$    0   4174286516        04174286516 CENSUS","Retail sales, 2007 ($1,000)                                                             TH$    0   3917663456        03917663456 CENSUS","Retail sales per capita, 2007                                                           DOL    0        12990        0     80800 CENSUS","Accommodation and food services sales, 2007 ($1,000)                                    TH$    0    613795732        0 613795732 CENSUS","Building permits, 2012                                                                  ABS    0       829658        0    829658 CENSUS","Land area in square miles, 2010                                                         SQM    2   3531905.43        23531905.43 CENSUS","Population per square mile, 2010                                                        RTE    1         87.4      0.0   69467.5 CENSUS"]
["United States",{"$f":"CORREL('Migration 2010'!J10:BI10,Demographics!G$11:G$62)","v":2.9300964179098603E-2},{"$f":"CORREL('Migration 2010'!K10:BJ10,Demographics!H$11:H$62)","v":-9.2794003501150579E-2},{"$f":"CORREL('Migration 2010'!L10:BK10,Demographics!I$11:I$62)","v":9.4804883609413054E-2},{"$f":"CORREL('Migration 2010'!M10:BL10,Demographics!J$11:J$62)","v":-5.121955558666428E-2},{"$f":"CORREL('Migration 2010'!N10:BM10,Demographics!K$11:K$62)","v":-1.1061000384066369E-2},{"$f":"CORREL('Migration 2010'!O10:BN10,Demographics!L$11:L$62)","v":-2.9747919634508551E-2},{"$f":"CORREL('Migration 2010'!P10:BO10,Demographics!M$11:M$62)","v":4.7529656020339706E-2},{"$f":"CORREL('Migration 2010'!Q10:BP10,Demographics!N$11:N$62)","v":-8.488549736484155E-2},{"$f":"CORREL('Migration 2010'!R10:BQ10,Demographics!O$11:O$62)","v":-8.1640788289451455E-2},{"$f":"CORREL('Migration 2010'!S10:BR10,Demographics!P$11:P$62)","v":8.6841864914126737E-2},{"$f":"CORREL('Migration 2010'!T10:BS10,Demographics!Q$11:Q$62)","v":-7.0778758489650762E-2},{"$f":"CORREL('Migration 2010'!U10:BT10,Demographics!R$11:R$62)","v":-0.15310190422736988},{"$f":"CORREL('Migration 2010'!V10:BU10,Demographics!S$11:S$62)","v":-4.4882423997992645E-2},{"$f":"CORREL('Migration 2010'!W10:BV10,Demographics!T$11:T$62)","v":4.8003233072963121E-3},{"$f":"CORREL('Migration 2010'!X10:BW10,Demographics!U$11:U$62)","v":-3.4292673131083818E-3},{"$f":"CORREL('Migration 2010'!Y10:BX10,Demographics!V$11:V$62)","v":-0.16025748423544733},{"$f":"CORREL('Migration 2010'!Z10:BY10,Demographics!W$11:W$62)","v":8.0211877214323296E-2},{"$f":"CORREL('Migration 2010'!AA10:BZ10,Demographics!X$11:X$62)","v":-9.9886500371400053E-2},{"$f":"CORREL('Migration 2010'!AB10:CA10,Demographics!Y$11:Y$62)","v":6.3478267689578247E-2},{"$f":"CORREL('Migration 2010'!AC10:CB10,Demographics!Z$11:Z$62)","v":-4.1671994842810058E-3},{"$f":"CORREL('Migration 2010'!AD10:CC10,Demographics!AA$11:AA$62)","v":0.17071609568140328},{"$f":"CORREL('Migration 2010'!AE10:CD10,Demographics!AB$11:AB$62)","v":1.8036773314632659E-2},{"$f":"CORREL('Migration 2010'!AF10:CE10,Demographics!AC$11:AC$62)","v":0.1437713629378419},{"$f":"CORREL('Migration 2010'!AG10:CF10,Demographics!AD$11:AD$62)","v":3.2989152678471238E-2},{"$f":"CORREL('Migration 2010'!AH10:CG10,Demographics!AE$11:AE$62)","v":3.7795141734849824E-2},{"$f":"CORREL('Migration 2010'!AI10:CH10,Demographics!AF$11:AF$62)","v":-4.7126382330409437E-2},{"$f":"CORREL('Migration 2010'!AJ10:CI10,Demographics!AG$11:AG$62)","v":0.19170029192024479},{"$f":"CORREL('Migration 2010'!AK10:CJ10,Demographics!AH$11:AH$62)","v":-0.1460179529363575},{"$f":"CORREL('Migration 2010'!AL10:CK10,Demographics!AI$11:AI$62)","v":0.25299201419522876},{"$f":"CORREL('Migration 2010'!AM10:CL10,Demographics!AJ$11:AJ$62)","v":0.14755592094084044},{"$f":"CORREL('Migration 2010'!AN10:CM10,Demographics!AK$11:AK$62)","v":-7.9038770657429716E-2},{"$f":"CORREL('Migration 2010'!AO10:CN10,Demographics!AL$11:AL$62)","v":2.356368487827179E-2},{"$f":"CORREL('Migration 2010'!AP10:CO10,Demographics!AM$11:AM$62)","v":-8.6367375974940458E-2},{"$f":"CORREL('Migration 2010'!AQ10:CP10,Demographics!AN$11:AN$62)","v":0.36390135377397254},{"$f":"CORREL('Migration 2010'!AR10:CQ10,Demographics!AO$11:AO$62)","v":0.15032998083679225},{"$f":"CORREL('Migration 2010'!AS10:CR10,Demographics!AP$11:AP$62)","v":0.38137258747584446},{"$f":"CORREL('Migration 2010'!AT10:CS10,Demographics!AQ$11:AQ$62)","v":0.23274907441313256},{"$f":"CORREL('Migration 2010'!AU10:CT10,Demographics!AR$11:AR$62)","v":0.11035131230130252},{"$f":"CORREL('Migration 2010'!AV10:CU10,Demographics!AS$11:AS$62)","v":0.25990185669174126},{"$f":"CORREL('Migration 2010'!AW10:CV10,Demographics!AT$11:AT$62)","v":0.29997375446288271},{"$f":"CORREL('Migration 2010'!AX10:CW10,Demographics!AU$11:AU$62)","v":1.2520334417679038E-2},{"$f":"CORREL('Migration 2010'!AY10:CX10,Demographics!AV$11:AV$62)","v":-4.8247249821562262E-2},{"$f":"CORREL('Migration 2010'!AZ10:CY10,Demographics!AW$11:AW$62)","v":-8.8333360212142203E-3},{"$f":"CORREL('Migration 2010'!BA10:CZ10,Demographics!AX$11:AX$62)","v":0.15366524639189305},{"$f":"CORREL('Migration 2010'!BB10:DA10,Demographics!AY$11:AY$62)","v":8.8061721537286853E-3},{"$f":"CORREL('Migration 2010'!BC10:DB10,Demographics!AZ$11:AZ$62)","v":0.68064343195621424},{"$f":"CORREL('Migration 2010'!BD10:DC10,Demographics!BA$11:BA$62)","v":-6.8768580788562017E-2}]
["Alabama",{"$f":"CORREL('Migration 2010'!J11:BI11,Demographics!G$11:G$62)","v":9.0601062449352232E-2},{"$f":"CORREL('Migration 2010'!K11:BJ11,Demographics!H$11:H$62)","v":-0.16098377677371589},{"$f":"CORREL('Migration 2010'!L11:BK11,Demographics!I$11:I$62)","v":5.7445428219301216E-2},{"$f":"CORREL('Migration 2010'!M11:BL11,Demographics!J$11:J$62)","v":0.23913404417268805},{"$f":"CORREL('Migration 2010'!N11:BM11,Demographics!K$11:K$62)","v":3.7447658285254259E-2},{"$f":"CORREL('Migration 2010'!O11:BN11,Demographics!L$11:L$62)","v":-0.21822820191061887},{"$f":"CORREL('Migration 2010'!P11:BO11,Demographics!M$11:M$62)","v":3.592908639831445E-2},{"$f":"CORREL('Migration 2010'!Q11:BP11,Demographics!N$11:N$62)","v":-9.848523335281828E-2},{"$f":"CORREL('Migration 2010'!R11:BQ11,Demographics!O$11:O$62)","v":-6.566777617295582E-3},{"$f":"CORREL('Migration 2010'!S11:BR11,Demographics!P$11:P$62)","v":7.3459732591326918E-2},{"$f":"CORREL('Migration 2010'!T11:BS11,Demographics!Q$11:Q$62)","v":-6.4363566943862222E-2},{"$f":"CORREL('Migration 2010'!U11:BT11,Demographics!R$11:R$62)","v":-0.19570785514106187},{"$f":"CORREL('Migration 2010'!V11:BU11,Demographics!S$11:S$62)","v":-2.8611325489492696E-2},{"$f":"CORREL('Migration 2010'!W11:BV11,Demographics!T$11:T$62)","v":0.17417415293905331},{"$f":"CORREL('Migration 2010'!X11:BW11,Demographics!U$11:U$62)","v":-1.0158987495625519E-2},{"$f":"CORREL('Migration 2010'!Y11:BX11,Demographics!V$11:V$62)","v":-9.5420392061525722E-2},{"$f":"CORREL('Migration 2010'!Z11:BY11,Demographics!W$11:W$62)","v":-1.9689284955274802E-2},{"$f":"CORREL('Migration 2010'!AA11:BZ11,Demographics!X$11:X$62)","v":-9.3593315917894895E-2},{"$f":"CORREL('Migration 2010'!AB11:CA11,Demographics!Y$11:Y$62)","v":-0.2031712295232686},{"$f":"CORREL('Migration 2010'!AC11:CB11,Demographics!Z$11:Z$62)","v":3.5852726417888184E-2},{"$f":"CORREL('Migration 2010'!AD11:CC11,Demographics!AA$11:AA$62)","v":-0.25965613900736478},{"$f":"CORREL('Migration 2010'!AE11:CD11,Demographics!AB$11:AB$62)","v":-3.3160860278204571E-2},{"$f":"CORREL('Migration 2010'!AF11:CE11,Demographics!AC$11:AC$62)","v":0.23563371030413219},{"$f":"CORREL('Migration 2010'!AG11:CF11,Demographics!AD$11:AD$62)","v":-0.15962243989006081},{"$f":"CORREL('Migration 2010'!AH11:CG11,Demographics!AE$11:AE$62)","v":4.0070368949539463E-2},{"$f":"CORREL('Migration 2010'!AI11:CH11,Demographics!AF$11:AF$62)","v":-0.12503349203344719},{"$f":"CORREL('Migration 2010'!AJ11:CI11,Demographics!AG$11:AG$62)","v":-0.1070839287515845},{"$f":"CORREL('Migration 2010'!AK11:CJ11,Demographics!AH$11:AH$62)","v":-9.6737311874940543E-2},{"$f":"CORREL('Migration 2010'!AL11:CK11,Demographics!AI$11:AI$62)","v":2.9203254631983911E-2},{"$f":"CORREL('Migration 2010'!AM11:CL11,Demographics!AJ$11:AJ$62)","v":0.10147331932882343},{"$f":"CORREL('Migration 2010'!AN11:CM11,Demographics!AK$11:AK$62)","v":3.3126042750352476E-2},{"$f":"CORREL('Migration 2010'!AO11:CN11,Demographics!AL$11:AL$62)","v":5.6683785760812622E-2},{"$f":"CORREL('Migration 2010'!AP11:CO11,Demographics!AM$11:AM$62)","v":-3.9006331373904718E-2},{"$f":"CORREL('Migration 2010'!AQ11:CP11,Demographics!AN$11:AN$62)","v":0.23623228511529729},{"$f":"CORREL('Migration 2010'!AR11:CQ11,Demographics!AO$11:AO$62)","v":4.4544561412884078E-2},{"$f":"CORREL('Migration 2010'!AS11:CR11,Demographics!AP$11:AP$62)","v":7.0115497282815575E-2},{"$f":"CORREL('Migration 2010'!AT11:CS11,Demographics!AQ$11:AQ$62)","v":-3.2914813498628293E-2},{"$f":"CORREL('Migration 2010'!AU11:CT11,Demographics!AR$11:AR$62)","v":-7.6077118049335229E-2},{"$f":"CORREL('Migration 2010'!AV11:CU11,Demographics!AS$11:AS$62)","v":0.1764095482184157},{"$f":"CORREL('Migration 2010'!AW11:CV11,Demographics!AT$11:AT$62)","v":0.25881552308934785},{"$f":"CORREL('Migration 2010'!AX11:CW11,Demographics!AU$11:AU$62)","v":-8.7976416468877619E-2},{"$f":"CORREL('Migration 2010'!AY11:CX11,Demographics!AV$11:AV$62)","v":-0.20433618528253103},{"$f":"CORREL('Migration 2010'!AZ11:CY11,Demographics!AW$11:AW$62)","v":-0.17349785946575588},{"$f":"CORREL('Migration 2010'!BA11:CZ11,Demographics!AX$11:AX$62)","v":0.18682639638324214},{"$f":"CORREL('Migration 2010'!BB11:DA11,Demographics!AY$11:AY$62)","v":-7.1400940277369693E-2},{"$f":"CORREL('Migration 2010'!BC11:DB11,Demographics!AZ$11:AZ$62)","v":2.6515767772066288E-2},{"$f":"CORREL('Migration 2010'!BD11:DC11,Demographics!BA$11:BA$62)","v":0.34643039016318161}]
["Alaska",{"$f":"CORREL('Migration 2010'!J12:BI12,Demographics!G$11:G$62)","v":0.27932147657764694},{"$f":"CORREL('Migration 2010'!K12:BJ12,Demographics!H$11:H$62)","v":8.7933191940920336E-2},{"$f":"CORREL('Migration 2010'!L12:BK12,Demographics!I$11:I$62)","v":0.19610403979363988},{"$f":"CORREL('Migration 2010'!M12:BL12,Demographics!J$11:J$62)","v":-0.24852010983944769},{"$f":"CORREL('Migration 2010'!N12:BM12,Demographics!K$11:K$62)","v":-5.0431975387414006E-3},{"$f":"CORREL('Migration 2010'!O12:BN12,Demographics!L$11:L$62)","v":-5.1581071662997843E-2},{"$f":"CORREL('Migration 2010'!P12:BO12,Demographics!M$11:M$62)","v":5.0109599431619543E-2},{"$f":"CORREL('Migration 2010'!Q12:BP12,Demographics!N$11:N$62)","v":-7.5844986256874525E-2},{"$f":"CORREL('Migration 2010'!R12:BQ12,Demographics!O$11:O$62)","v":5.4651078570351126E-2},{"$f":"CORREL('Migration 2010'!S12:BR12,Demographics!P$11:P$62)","v":-1.7365288420250567E-2},{"$f":"CORREL('Migration 2010'!T12:BS12,Demographics!Q$11:Q$62)","v":-8.7091265602699725E-2},{"$f":"CORREL('Migration 2010'!U12:BT12,Demographics!R$11:R$62)","v":-6.8962566974731701E-2},{"$f":"CORREL('Migration 2010'!V12:BU12,Demographics!S$11:S$62)","v":5.5180069179948478E-2},{"$f":"CORREL('Migration 2010'!W12:BV12,Demographics!T$11:T$62)","v":0.25032635054158675},{"$f":"CORREL('Migration 2010'!X12:BW12,Demographics!U$11:U$62)","v":-0.1148002940416115},{"$f":"CORREL('Migration 2010'!Y12:BX12,Demographics!V$11:V$62)","v":-6.3065197204518531E-2},{"$f":"CORREL('Migration 2010'!Z12:BY12,Demographics!W$11:W$62)","v":9.8873762046311573E-3},{"$f":"CORREL('Migration 2010'!AA12:BZ12,Demographics!X$11:X$62)","v":-2.2808129789270049E-2},{"$f":"CORREL('Migration 2010'!AB12:CA12,Demographics!Y$11:Y$62)","v":-0.21527045654671045},{"$f":"CORREL('Migration 2010'!AC12:CB12,Demographics!Z$11:Z$62)","v":-1.1082127126456112E-2},{"$f":"CORREL('Migration 2010'!AD12:CC12,Demographics!AA$11:AA$62)","v":-7.344349216330659E-2},{"$f":"CORREL('Migration 2010'!AE12:CD12,Demographics!AB$11:AB$62)","v":-0.21645818312710191},{"$f":"CORREL('Migration 2010'!AF12:CE12,Demographics!AC$11:AC$62)","v":0.14377359449455407},{"$f":"CORREL('Migration 2010'!AG12:CF12,Demographics!AD$11:AD$62)","v":-7.4207379159647466E-2},{"$f":"CORREL('Migration 2010'!AH12:CG12,Demographics!AE$11:AE$62)","v":-9.9427185081633201E-2},{"$f":"CORREL('Migration 2010'!AI12:CH12,Demographics!AF$11:AF$62)","v":-1.3726492260902411E-2},{"$f":"CORREL('Migration 2010'!AJ12:CI12,Demographics!AG$11:AG$62)","v":-2.8233478923006865E-2},{"$f":"CORREL('Migration 2010'!AK12:CJ12,Demographics!AH$11:AH$62)","v":3.0840741942153853E-2},{"$f":"CORREL('Migration 2010'!AL12:CK12,Demographics!AI$11:AI$62)","v":-9.1898492207672433E-2},{"$f":"CORREL('Migration 2010'!AM12:CL12,Demographics!AJ$11:AJ$62)","v":-4.1839332056540189E-2},{"$f":"CORREL('Migration 2010'!AN12:CM12,Demographics!AK$11:AK$62)","v":0.23233920033452057},{"$f":"CORREL('Migration 2010'!AO12:CN12,Demographics!AL$11:AL$62)","v":-0.12895412595369524},{"$f":"CORREL('Migration 2010'!AP12:CO12,Demographics!AM$11:AM$62)","v":0.15226644525831198},{"$f":"CORREL('Migration 2010'!AQ12:CP12,Demographics!AN$11:AN$62)","v":0.24721793156425273},{"$f":"CORREL('Migration 2010'!AR12:CQ12,Demographics!AO$11:AO$62)","v":-1.4651602991601054E-2},{"$f":"CORREL('Migration 2010'!AS12:CR12,Demographics!AP$11:AP$62)","v":-4.5651436701859859E-2},{"$f":"CORREL('Migration 2010'!AT12:CS12,Demographics!AQ$11:AQ$62)","v":0.29852725392624874},{"$f":"CORREL('Migration 2010'!AU12:CT12,Demographics!AR$11:AR$62)","v":-0.10388831033508038},{"$f":"CORREL('Migration 2010'!AV12:CU12,Demographics!AS$11:AS$62)","v":5.0041454720744109E-2},{"$f":"CORREL('Migration 2010'!AW12:CV12,Demographics!AT$11:AT$62)","v":0.39238080021876715},{"$f":"CORREL('Migration 2010'!AX12:CW12,Demographics!AU$11:AU$62)","v":3.7973164577888158E-2},{"$f":"CORREL('Migration 2010'!AY12:CX12,Demographics!AV$11:AV$62)","v":-0.12287801788816033},{"$f":"CORREL('Migration 2010'!AZ12:CY12,Demographics!AW$11:AW$62)","v":-0.14720096021050258},{"$f":"CORREL('Migration 2010'!BA12:CZ12,Demographics!AX$11:AX$62)","v":0.37788013958448841},{"$f":"CORREL('Migration 2010'!BB12:DA12,Demographics!AY$11:AY$62)","v":-0.15255351361452754},{"$f":"CORREL('Migration 2010'!BC12:DB12,Demographics!AZ$11:AZ$62)","v":-3.394426730888004E-2},{"$f":"CORREL('Migration 2010'!BD12:DC12,Demographics!BA$11:BA$62)","v":5.5043890648032362E-2}]
["Arizona",{"$f":"CORREL('Migration 2010'!J13:BI13,Demographics!G$11:G$62)","v":0.18919175934207388},{"$f":"CORREL('Migration 2010'!K13:BJ13,Demographics!H$11:H$62)","v":9.9207176401590269E-2},{"$f":"CORREL('Migration 2010'!L13:BK13,Demographics!I$11:I$62)","v":0.15518201434719969},{"$f":"CORREL('Migration 2010'!M13:BL13,Demographics!J$11:J$62)","v":-0.39710782589724586},{"$f":"CORREL('Migration 2010'!N13:BM13,Demographics!K$11:K$62)","v":-0.12486584721846827},{"$f":"CORREL('Migration 2010'!O13:BN13,Demographics!L$11:L$62)","v":5.1678921106035204E-2},{"$f":"CORREL('Migration 2010'!P13:BO13,Demographics!M$11:M$62)","v":7.4352759659044546E-2},{"$f":"CORREL('Migration 2010'!Q13:BP13,Demographics!N$11:N$62)","v":-0.11139007421345805},{"$f":"CORREL('Migration 2010'!R13:BQ13,Demographics!O$11:O$62)","v":-9.8043941856255451E-2},{"$f":"CORREL('Migration 2010'!S13:BR13,Demographics!P$11:P$62)","v":-0.12473130004603328},{"$f":"CORREL('Migration 2010'!T13:BS13,Demographics!Q$11:Q$62)","v":-0.12138728439017234},{"$f":"CORREL('Migration 2010'!U13:BT13,Demographics!R$11:R$62)","v":-0.10968322837416812},{"$f":"CORREL('Migration 2010'!V13:BU13,Demographics!S$11:S$62)","v":-2.7186571613320065E-2},{"$f":"CORREL('Migration 2010'!W13:BV13,Demographics!T$11:T$62)","v":-4.1756585996288544E-2},{"$f":"CORREL('Migration 2010'!X13:BW13,Demographics!U$11:U$62)","v":-2.6358621098209949E-2},{"$f":"CORREL('Migration 2010'!Y13:BX13,Demographics!V$11:V$62)","v":-0.10139517557797796},{"$f":"CORREL('Migration 2010'!Z13:BY13,Demographics!W$11:W$62)","v":-8.1032144149979737E-2},{"$f":"CORREL('Migration 2010'!AA13:BZ13,Demographics!X$11:X$62)","v":-7.2507668002236472E-2},{"$f":"CORREL('Migration 2010'!AB13:CA13,Demographics!Y$11:Y$62)","v":-2.0708224057273811E-2},{"$f":"CORREL('Migration 2010'!AC13:CB13,Demographics!Z$11:Z$62)","v":0.19239637092268136},{"$f":"CORREL('Migration 2010'!AD13:CC13,Demographics!AA$11:AA$62)","v":-3.1300889985620202E-2},{"$f":"CORREL('Migration 2010'!AE13:CD13,Demographics!AB$11:AB$62)","v":-0.21577834608397992},{"$f":"CORREL('Migration 2010'!AF13:CE13,Demographics!AC$11:AC$62)","v":0.15137807864657857},{"$f":"CORREL('Migration 2010'!AG13:CF13,Demographics!AD$11:AD$62)","v":-2.1874315393094194E-2},{"$f":"CORREL('Migration 2010'!AH13:CG13,Demographics!AE$11:AE$62)","v":0.14220488924536673},{"$f":"CORREL('Migration 2010'!AI13:CH13,Demographics!AF$11:AF$62)","v":-0.17307871157932528},{"$f":"CORREL('Migration 2010'!AJ13:CI13,Demographics!AG$11:AG$62)","v":2.8343960786337524E-2},{"$f":"CORREL('Migration 2010'!AK13:CJ13,Demographics!AH$11:AH$62)","v":-0.19706470753734628},{"$f":"CORREL('Migration 2010'!AL13:CK13,Demographics!AI$11:AI$62)","v":3.1519303500719402E-2},{"$f":"CORREL('Migration 2010'!AM13:CL13,Demographics!AJ$11:AJ$62)","v":3.1052035863776056E-2},{"$f":"CORREL('Migration 2010'!AN13:CM13,Demographics!AK$11:AK$62)","v":0.12145894171350641},{"$f":"CORREL('Migration 2010'!AO13:CN13,Demographics!AL$11:AL$62)","v":-3.0149970741988191E-2},{"$f":"CORREL('Migration 2010'!AP13:CO13,Demographics!AM$11:AM$62)","v":-0.10255100049091687},{"$f":"CORREL('Migration 2010'!AQ13:CP13,Demographics!AN$11:AN$62)","v":0.23298357162589409},{"$f":"CORREL('Migration 2010'!AR13:CQ13,Demographics!AO$11:AO$62)","v":2.9829379607265595E-2},{"$f":"CORREL('Migration 2010'!AS13:CR13,Demographics!AP$11:AP$62)","v":-2.2550245207496288E-2},{"$f":"CORREL('Migration 2010'!AT13:CS13,Demographics!AQ$11:AQ$62)","v":0.46822146196134895},{"$f":"CORREL('Migration 2010'!AU13:CT13,Demographics!AR$11:AR$62)","v":-7.0047757335177582E-2},{"$f":"CORREL('Migration 2010'!AV13:CU13,Demographics!AS$11:AS$62)","v":0.20239457991684928},{"$f":"CORREL('Migration 2010'!AW13:CV13,Demographics!AT$11:AT$62)","v":0.3595655705843071},{"$f":"CORREL('Migration 2010'!AX13:CW13,Demographics!AU$11:AU$62)","v":1.6219583053882391E-2},{"$f":"CORREL('Migration 2010'!AY13:CX13,Demographics!AV$11:AV$62)","v":-0.13754303287163638},{"$f":"CORREL('Migration 2010'!AZ13:CY13,Demographics!AW$11:AW$62)","v":-6.677172105564004E-2},{"$f":"CORREL('Migration 2010'!BA13:CZ13,Demographics!AX$11:AX$62)","v":0.45443335139025687},{"$f":"CORREL('Migration 2010'!BB13:DA13,Demographics!AY$11:AY$62)","v":-9.967962977962265E-2},{"$f":"CORREL('Migration 2010'!BC13:DB13,Demographics!AZ$11:AZ$62)","v":0.11441915611866357},{"$f":"CORREL('Migration 2010'!BD13:DC13,Demographics!BA$11:BA$62)","v":0.17174590356365085}]
["Arkansas",{"$f":"CORREL('Migration 2010'!J14:BI14,Demographics!G$11:G$62)","v":0.2958691607949116},{"$f":"CORREL('Migration 2010'!K14:BJ14,Demographics!H$11:H$62)","v":3.3754738579600999E-2},{"$f":"CORREL('Migration 2010'!L14:BK14,Demographics!I$11:I$62)","v":4.9660531710727727E-2},{"$f":"CORREL('Migration 2010'!M14:BL14,Demographics!J$11:J$62)","v":0.2005902084796386},{"$f":"CORREL('Migration 2010'!N14:BM14,Demographics!K$11:K$62)","v":7.3370124663181879E-2},{"$f":"CORREL('Migration 2010'!O14:BN14,Demographics!L$11:L$62)","v":-6.1650391401668087E-2},{"$f":"CORREL('Migration 2010'!P14:BO14,Demographics!M$11:M$62)","v":-9.9453225181368593E-2},{"$f":"CORREL('Migration 2010'!Q14:BP14,Demographics!N$11:N$62)","v":1.8757847817026142E-2},{"$f":"CORREL('Migration 2010'!R14:BQ14,Demographics!O$11:O$62)","v":-3.4816745601011147E-2},{"$f":"CORREL('Migration 2010'!S14:BR14,Demographics!P$11:P$62)","v":-6.3660788990559367E-2},{"$f":"CORREL('Migration 2010'!T14:BS14,Demographics!Q$11:Q$62)","v":-0.13489268949618774},{"$f":"CORREL('Migration 2010'!U14:BT14,Demographics!R$11:R$62)","v":-5.1559695526872631E-2},{"$f":"CORREL('Migration 2010'!V14:BU14,Demographics!S$11:S$62)","v":6.0353264461670032E-2},{"$f":"CORREL('Migration 2010'!W14:BV14,Demographics!T$11:T$62)","v":0.24348215893480096},{"$f":"CORREL('Migration 2010'!X14:BW14,Demographics!U$11:U$62)","v":5.8607906951568714E-2},{"$f":"CORREL('Migration 2010'!Y14:BX14,Demographics!V$11:V$62)","v":-9.9434134296708332E-2},{"$f":"CORREL('Migration 2010'!Z14:BY14,Demographics!W$11:W$62)","v":1.4125230671195911E-3},{"$f":"CORREL('Migration 2010'!AA14:BZ14,Demographics!X$11:X$62)","v":-0.14084169741352445},{"$f":"CORREL('Migration 2010'!AB14:CA14,Demographics!Y$11:Y$62)","v":-7.5958279683324192E-2},{"$f":"CORREL('Migration 2010'!AC14:CB14,Demographics!Z$11:Z$62)","v":-6.2882785546375594E-2},{"$f":"CORREL('Migration 2010'!AD14:CC14,Demographics!AA$11:AA$62)","v":-7.2464508948803075E-2},{"$f":"CORREL('Migration 2010'!AE14:CD14,Demographics!AB$11:AB$62)","v":-0.13390045906584919},{"$f":"CORREL('Migration 2010'!AF14:CE14,Demographics!AC$11:AC$62)","v":0.16067568353389552},{"$f":"CORREL('Migration 2010'!AG14:CF14,Demographics!AD$11:AD$62)","v":8.2175223431483549E-3},{"$f":"CORREL('Migration 2010'!AH14:CG14,Demographics!AE$11:AE$62)","v":-4.1671510427914955E-2},{"$f":"CORREL('Migration 2010'!AI14:CH14,Demographics!AF$11:AF$62)","v":-0.16031226607939844},{"$f":"CORREL('Migration 2010'!AJ14:CI14,Demographics!AG$11:AG$62)","v":-0.23350718542619336},{"$f":"CORREL('Migration 2010'!AK14:CJ14,Demographics!AH$11:AH$62)","v":-3.4043060515240343E-2},{"$f":"CORREL('Migration 2010'!AL14:CK14,Demographics!AI$11:AI$62)","v":-9.5148234415803931E-2},{"$f":"CORREL('Migration 2010'!AM14:CL14,Demographics!AJ$11:AJ$62)","v":-2.6063285427608423E-2},{"$f":"CORREL('Migration 2010'!AN14:CM14,Demographics!AK$11:AK$62)","v":9.1461496604455295E-2},{"$f":"CORREL('Migration 2010'!AO14:CN14,Demographics!AL$11:AL$62)","v":-1.9232444689540017E-2},{"$f":"CORREL('Migration 2010'!AP14:CO14,Demographics!AM$11:AM$62)","v":0.21942051446030914},{"$f":"CORREL('Migration 2010'!AQ14:CP14,Demographics!AN$11:AN$62)","v":0.31720469701666076},{"$f":"CORREL('Migration 2010'!AR14:CQ14,Demographics!AO$11:AO$62)","v":2.6842002823619888E-2},{"$f":"CORREL('Migration 2010'!AS14:CR14,Demographics!AP$11:AP$62)","v":-7.2974466723591716E-2},{"$f":"CORREL('Migration 2010'!AT14:CS14,Demographics!AQ$11:AQ$62)","v":-7.196529452552318E-2},{"$f":"CORREL('Migration 2010'!AU14:CT14,Demographics!AR$11:AR$62)","v":-9.0745003891310475E-2},{"$f":"CORREL('Migration 2010'!AV14:CU14,Demographics!AS$11:AS$62)","v":0.15129211381799432},{"$f":"CORREL('Migration 2010'!AW14:CV14,Demographics!AT$11:AT$62)","v":0.44336822548347826},{"$f":"CORREL('Migration 2010'!AX14:CW14,Demographics!AU$11:AU$62)","v":-0.10424936443860049},{"$f":"CORREL('Migration 2010'!AY14:CX14,Demographics!AV$11:AV$62)","v":-0.1258432278840611},{"$f":"CORREL('Migration 2010'!AZ14:CY14,Demographics!AW$11:AW$62)","v":-2.6920740430359757E-2},{"$f":"CORREL('Migration 2010'!BA14:CZ14,Demographics!AX$11:AX$62)","v":9.589193073325071E-2},{"$f":"CORREL('Migration 2010'!BB14:DA14,Demographics!AY$11:AY$62)","v":-0.11476106161917624},{"$f":"CORREL('Migration 2010'!BC14:DB14,Demographics!AZ$11:AZ$62)","v":-9.2138202465585919E-2},{"$f":"CORREL('Migration 2010'!BD14:DC14,Demographics!BA$11:BA$62)","v":0.18683014925326144}]
["California",{"$f":"CORREL('Migration 2010'!J15:BI15,Demographics!G$11:G$62)","v":0.16720069909307261},{"$f":"CORREL('Migration 2010'!K15:BJ15,Demographics!H$11:H$62)","v":7.7100716853766543E-2},{"$f":"CORREL('Migration 2010'!L15:BK15,Demographics!I$11:I$62)","v":0.20534330338565127},{"$f":"CORREL('Migration 2010'!M15:BL15,Demographics!J$11:J$62)","v":1.715157716686375E-2},{"$f":"CORREL('Migration 2010'!N15:BM15,Demographics!K$11:K$62)","v":-6.7435723037376438E-2},{"$f":"CORREL('Migration 2010'!O15:BN15,Demographics!L$11:L$62)","v":-8.5527559538168887E-3},{"$f":"CORREL('Migration 2010'!P15:BO15,Demographics!M$11:M$62)","v":0.17588549795965175},{"$f":"CORREL('Migration 2010'!Q15:BP15,Demographics!N$11:N$62)","v":-5.8408352356490237E-2},{"$f":"CORREL('Migration 2010'!R15:BQ15,Demographics!O$11:O$62)","v":-8.4368957039011899E-2},{"$f":"CORREL('Migration 2010'!S15:BR15,Demographics!P$11:P$62)","v":1.9832841741377585E-2},{"$f":"CORREL('Migration 2010'!T15:BS15,Demographics!Q$11:Q$62)","v":-0.12569550273213961},{"$f":"CORREL('Migration 2010'!U15:BT15,Demographics!R$11:R$62)","v":-2.7436521224810759E-2},{"$f":"CORREL('Migration 2010'!V15:BU15,Demographics!S$11:S$62)","v":-4.4092640567639292E-2},{"$f":"CORREL('Migration 2010'!W15:BV15,Demographics!T$11:T$62)","v":-7.2617403494241672E-2},{"$f":"CORREL('Migration 2010'!X15:BW15,Demographics!U$11:U$62)","v":-0.10958140893708053},{"$f":"CORREL('Migration 2010'!Y15:BX15,Demographics!V$11:V$62)","v":-0.12977033650711609},{"$f":"CORREL('Migration 2010'!Z15:BY15,Demographics!W$11:W$62)","v":7.7952314156394739E-2},{"$f":"CORREL('Migration 2010'!AA15:BZ15,Demographics!X$11:X$62)","v":-5.1363998935650926E-2},{"$f":"CORREL('Migration 2010'!AB15:CA15,Demographics!Y$11:Y$62)","v":5.3385109861938916E-3},{"$f":"CORREL('Migration 2010'!AC15:CB15,Demographics!Z$11:Z$62)","v":9.7756464926277736E-2},{"$f":"CORREL('Migration 2010'!AD15:CC15,Demographics!AA$11:AA$62)","v":4.2538515350028158E-2},{"$f":"CORREL('Migration 2010'!AE15:CD15,Demographics!AB$11:AB$62)","v":-0.19627957349603986},{"$f":"CORREL('Migration 2010'!AF15:CE15,Demographics!AC$11:AC$62)","v":0.14181837434348316},{"$f":"CORREL('Migration 2010'!AG15:CF15,Demographics!AD$11:AD$62)","v":5.6957174850032185E-3},{"$f":"CORREL('Migration 2010'!AH15:CG15,Demographics!AE$11:AE$62)","v":9.3542596277807727E-2},{"$f":"CORREL('Migration 2010'!AI15:CH15,Demographics!AF$11:AF$62)","v":-0.16116358783657292},{"$f":"CORREL('Migration 2010'!AJ15:CI15,Demographics!AG$11:AG$62)","v":0.17841033371601492},{"$f":"CORREL('Migration 2010'!AK15:CJ15,Demographics!AH$11:AH$62)","v":-0.20386277761559365},{"$f":"CORREL('Migration 2010'!AL15:CK15,Demographics!AI$11:AI$62)","v":0.13489213378868947},{"$f":"CORREL('Migration 2010'!AM15:CL15,Demographics!AJ$11:AJ$62)","v":2.3234876904209809E-2},{"$f":"CORREL('Migration 2010'!AN15:CM15,Demographics!AK$11:AK$62)","v":1.7528572682072554E-2},{"$f":"CORREL('Migration 2010'!AO15:CN15,Demographics!AL$11:AL$62)","v":-7.2838320435105408E-2},{"$f":"CORREL('Migration 2010'!AP15:CO15,Demographics!AM$11:AM$62)","v":-0.10246271635303676},{"$f":"CORREL('Migration 2010'!AQ15:CP15,Demographics!AN$11:AN$62)","v":0.27369882376840471},{"$f":"CORREL('Migration 2010'!AR15:CQ15,Demographics!AO$11:AO$62)","v":-8.2944882360869686E-3},{"$f":"CORREL('Migration 2010'!AS15:CR15,Demographics!AP$11:AP$62)","v":0.16200602440477402},{"$f":"CORREL('Migration 2010'!AT15:CS15,Demographics!AQ$11:AQ$62)","v":0.51506780728418189},{"$f":"CORREL('Migration 2010'!AU15:CT15,Demographics!AR$11:AR$62)","v":-8.6276808442400117E-3},{"$f":"CORREL('Migration 2010'!AV15:CU15,Demographics!AS$11:AS$62)","v":0.1709637253469441},{"$f":"CORREL('Migration 2010'!AW15:CV15,Demographics!AT$11:AT$62)","v":0.41997705604167718},{"$f":"CORREL('Migration 2010'!AX15:CW15,Demographics!AU$11:AU$62)","v":-5.1934308249749327E-3},{"$f":"CORREL('Migration 2010'!AY15:CX15,Demographics!AV$11:AV$62)","v":-9.7551174394286608E-2},{"$f":"CORREL('Migration 2010'!AZ15:CY15,Demographics!AW$11:AW$62)","v":-8.2489873318956991E-2},{"$f":"CORREL('Migration 2010'!BA15:CZ15,Demographics!AX$11:AX$62)","v":0.42907177961725729},{"$f":"CORREL('Migration 2010'!BB15:DA15,Demographics!AY$11:AY$62)","v":-7.8269944214229489E-2},{"$f":"CORREL('Migration 2010'!BC15:DB15,Demographics!AZ$11:AZ$62)","v":0.30289597388828943},{"$f":"CORREL('Migration 2010'!BD15:DC15,Demographics!BA$11:BA$62)","v":3.404473265555049E-2}]
["Colorado",{"$f":"CORREL('Migration 2010'!J16:BI16,Demographics!G$11:G$62)","v":0.28653297534368538},{"$f":"CORREL('Migration 2010'!K16:BJ16,Demographics!H$11:H$62)","v":8.1271315860874729E-2},{"$f":"CORREL('Migration 2010'!L16:BK16,Demographics!I$11:I$62)","v":0.20312693412272759},{"$f":"CORREL('Migration 2010'!M16:BL16,Demographics!J$11:J$62)","v":-0.25049905927982885},{"$f":"CORREL('Migration 2010'!N16:BM16,Demographics!K$11:K$62)","v":-5.3445005238770202E-2},{"$f":"CORREL('Migration 2010'!O16:BN16,Demographics!L$11:L$62)","v":-7.979566377798937E-2},{"$f":"CORREL('Migration 2010'!P16:BO16,Demographics!M$11:M$62)","v":-1.9982304210445258E-3},{"$f":"CORREL('Migration 2010'!Q16:BP16,Demographics!N$11:N$62)","v":-0.13485220445092647},{"$f":"CORREL('Migration 2010'!R16:BQ16,Demographics!O$11:O$62)","v":-7.2084892247217647E-2},{"$f":"CORREL('Migration 2010'!S16:BR16,Demographics!P$11:P$62)","v":-7.985875794230804E-2},{"$f":"CORREL('Migration 2010'!T16:BS16,Demographics!Q$11:Q$62)","v":-0.11357240375151094},{"$f":"CORREL('Migration 2010'!U16:BT16,Demographics!R$11:R$62)","v":-0.13928480802604359},{"$f":"CORREL('Migration 2010'!V16:BU16,Demographics!S$11:S$62)","v":1.888590441624503E-2},{"$f":"CORREL('Migration 2010'!W16:BV16,Demographics!T$11:T$62)","v":0.14785138721511881},{"$f":"CORREL('Migration 2010'!X16:BW16,Demographics!U$11:U$62)","v":-9.8622367848034923E-2},{"$f":"CORREL('Migration 2010'!Y16:BX16,Demographics!V$11:V$62)","v":-8.7096130895914975E-2},{"$f":"CORREL('Migration 2010'!Z16:BY16,Demographics!W$11:W$62)","v":-1.5609999782139786E-2},{"$f":"CORREL('Migration 2010'!AA16:BZ16,Demographics!X$11:X$62)","v":-4.8415474683891728E-2},{"$f":"CORREL('Migration 2010'!AB16:CA16,Demographics!Y$11:Y$62)","v":6.1334620526564366E-3},{"$f":"CORREL('Migration 2010'!AC16:CB16,Demographics!Z$11:Z$62)","v":1.5123788026325646E-2},{"$f":"CORREL('Migration 2010'!AD16:CC16,Demographics!AA$11:AA$62)","v":8.9772029024244894E-3},{"$f":"CORREL('Migration 2010'!AE16:CD16,Demographics!AB$11:AB$62)","v":-0.18380736107245355},{"$f":"CORREL('Migration 2010'!AF16:CE16,Demographics!AC$11:AC$62)","v":0.2340720789489695},{"$f":"CORREL('Migration 2010'!AG16:CF16,Demographics!AD$11:AD$62)","v":3.9451778066009455E-2},{"$f":"CORREL('Migration 2010'!AH16:CG16,Demographics!AE$11:AE$62)","v":-9.4284926683112238E-2},{"$f":"CORREL('Migration 2010'!AI16:CH16,Demographics!AF$11:AF$62)","v":-0.12429395408305645},{"$f":"CORREL('Migration 2010'!AJ16:CI16,Demographics!AG$11:AG$62)","v":-9.4534606287148909E-2},{"$f":"CORREL('Migration 2010'!AK16:CJ16,Demographics!AH$11:AH$62)","v":-8.9793321530792058E-2},{"$f":"CORREL('Migration 2010'!AL16:CK16,Demographics!AI$11:AI$62)","v":-3.3527079060720235E-4},{"$f":"CORREL('Migration 2010'!AM16:CL16,Demographics!AJ$11:AJ$62)","v":8.5145141080976063E-3},{"$f":"CORREL('Migration 2010'!AN16:CM16,Demographics!AK$11:AK$62)","v":0.14169265228602385},{"$f":"CORREL('Migration 2010'!AO16:CN16,Demographics!AL$11:AL$62)","v":-8.8745158904023014E-2},{"$f":"CORREL('Migration 2010'!AP16:CO16,Demographics!AM$11:AM$62)","v":-6.1464780960066766E-2},{"$f":"CORREL('Migration 2010'!AQ16:CP16,Demographics!AN$11:AN$62)","v":0.34263201676448352},{"$f":"CORREL('Migration 2010'!AR16:CQ16,Demographics!AO$11:AO$62)","v":-4.2123335553151661E-2},{"$f":"CORREL('Migration 2010'!AS16:CR16,Demographics!AP$11:AP$62)","v":-2.6737876987857859E-2},{"$f":"CORREL('Migration 2010'!AT16:CS16,Demographics!AQ$11:AQ$62)","v":0.21775287845125765},{"$f":"CORREL('Migration 2010'!AU16:CT16,Demographics!AR$11:AR$62)","v":-2.7115512894484207E-2},{"$f":"CORREL('Migration 2010'!AV16:CU16,Demographics!AS$11:AS$62)","v":0.10251794939030073},{"$f":"CORREL('Migration 2010'!AW16:CV16,Demographics!AT$11:AT$62)","v":0.44156840984659546},{"$f":"CORREL('Migration 2010'!AX16:CW16,Demographics!AU$11:AU$62)","v":-3.6102517281940256E-2},{"$f":"CORREL('Migration 2010'!AY16:CX16,Demographics!AV$11:AV$62)","v":-3.4355895836600467E-2},{"$f":"CORREL('Migration 2010'!AZ16:CY16,Demographics!AW$11:AW$62)","v":-6.8453158080613183E-2},{"$f":"CORREL('Migration 2010'!BA16:CZ16,Demographics!AX$11:AX$62)","v":0.20961411772696081},{"$f":"CORREL('Migration 2010'!BB16:DA16,Demographics!AY$11:AY$62)","v":-0.12902066144715449},{"$f":"CORREL('Migration 2010'!BC16:DB16,Demographics!AZ$11:AZ$62)","v":8.6696949833519152E-2},{"$f":"CORREL('Migration 2010'!BD16:DC16,Demographics!BA$11:BA$62)","v":0.17642422897660318}]
["Connecticut",{"$f":"CORREL('Migration 2010'!J17:BI17,Demographics!G$11:G$62)","v":-0.24938176509613721},{"$f":"CORREL('Migration 2010'!K17:BJ17,Demographics!H$11:H$62)","v":2.5461088449451566E-2},{"$f":"CORREL('Migration 2010'!L17:BK17,Demographics!I$11:I$62)","v":0.10823060247358085},{"$f":"CORREL('Migration 2010'!M17:BL17,Demographics!J$11:J$62)","v":-9.4170176954734355E-3},{"$f":"CORREL('Migration 2010'!N17:BM17,Demographics!K$11:K$62)","v":0.10631255684769005},{"$f":"CORREL('Migration 2010'!O17:BN17,Demographics!L$11:L$62)","v":-0.12787415100423266},{"$f":"CORREL('Migration 2010'!P17:BO17,Demographics!M$11:M$62)","v":0.11878603374851184},{"$f":"CORREL('Migration 2010'!Q17:BP17,Demographics!N$11:N$62)","v":-0.11798813666072525},{"$f":"CORREL('Migration 2010'!R17:BQ17,Demographics!O$11:O$62)","v":-5.7768293092535098E-3},{"$f":"CORREL('Migration 2010'!S17:BR17,Demographics!P$11:P$62)","v":-3.0579157226879546E-2},{"$f":"CORREL('Migration 2010'!T17:BS17,Demographics!Q$11:Q$62)","v":-0.12416262837932912},{"$f":"CORREL('Migration 2010'!U17:BT17,Demographics!R$11:R$62)","v":3.1867387477098975E-2},{"$f":"CORREL('Migration 2010'!V17:BU17,Demographics!S$11:S$62)","v":2.2650467501264707E-2},{"$f":"CORREL('Migration 2010'!W17:BV17,Demographics!T$11:T$62)","v":-0.16448591658775633},{"$f":"CORREL('Migration 2010'!X17:BW17,Demographics!U$11:U$62)","v":-0.14747639950329774},{"$f":"CORREL('Migration 2010'!Y17:BX17,Demographics!V$11:V$62)","v":-0.15964563858304526},{"$f":"CORREL('Migration 2010'!Z17:BY17,Demographics!W$11:W$62)","v":0.12190579253952075},{"$f":"CORREL('Migration 2010'!AA17:BZ17,Demographics!X$11:X$62)","v":0.13832644565806443},{"$f":"CORREL('Migration 2010'!AB17:CA17,Demographics!Y$11:Y$62)","v":-0.14063262822178338},{"$f":"CORREL('Migration 2010'!AC17:CB17,Demographics!Z$11:Z$62)","v":0.19483770235530234},{"$f":"CORREL('Migration 2010'!AD17:CC17,Demographics!AA$11:AA$62)","v":-5.5437774840944615E-2},{"$f":"CORREL('Migration 2010'!AE17:CD17,Demographics!AB$11:AB$62)","v":0.14239403111211354},{"$f":"CORREL('Migration 2010'!AF17:CE17,Demographics!AC$11:AC$62)","v":1.0546267723616776E-2},{"$f":"CORREL('Migration 2010'!AG17:CF17,Demographics!AD$11:AD$62)","v":0.2008744232176245},{"$f":"CORREL('Migration 2010'!AH17:CG17,Demographics!AE$11:AE$62)","v":-6.90109424876994E-2},{"$f":"CORREL('Migration 2010'!AI17:CH17,Demographics!AF$11:AF$62)","v":6.1869618214567615E-2},{"$f":"CORREL('Migration 2010'!AJ17:CI17,Demographics!AG$11:AG$62)","v":0.21427958924158697},{"$f":"CORREL('Migration 2010'!AK17:CJ17,Demographics!AH$11:AH$62)","v":-4.4398161536558609E-2},{"$f":"CORREL('Migration 2010'!AL17:CK17,Demographics!AI$11:AI$62)","v":0.54646681708146183},{"$f":"CORREL('Migration 2010'!AM17:CL17,Demographics!AJ$11:AJ$62)","v":-4.6144499364028708E-2},{"$f":"CORREL('Migration 2010'!AN17:CM17,Demographics!AK$11:AK$62)","v":0.19908812438788639},{"$f":"CORREL('Migration 2010'!AO17:CN17,Demographics!AL$11:AL$62)","v":-6.4014635936351066E-2},{"$f":"CORREL('Migration 2010'!AP17:CO17,Demographics!AM$11:AM$62)","v":-9.557199001294131E-2},{"$f":"CORREL('Migration 2010'!AQ17:CP17,Demographics!AN$11:AN$62)","v":9.9648185635564032E-2},{"$f":"CORREL('Migration 2010'!AR17:CQ17,Demographics!AO$11:AO$62)","v":-4.7295437150093635E-2},{"$f":"CORREL('Migration 2010'!AS17:CR17,Demographics!AP$11:AP$62)","v":4.6632716443145282E-2},{"$f":"CORREL('Migration 2010'!AT17:CS17,Demographics!AQ$11:AQ$62)","v":0.13737214802241124},{"$f":"CORREL('Migration 2010'!AU17:CT17,Demographics!AR$11:AR$62)","v":-0.13115743630563517},{"$f":"CORREL('Migration 2010'!AV17:CU17,Demographics!AS$11:AS$62)","v":5.1672372819579065E-2},{"$f":"CORREL('Migration 2010'!AW17:CV17,Demographics!AT$11:AT$62)","v":0.26918796195174788},{"$f":"CORREL('Migration 2010'!AX17:CW17,Demographics!AU$11:AU$62)","v":-0.157979167243299},{"$f":"CORREL('Migration 2010'!AY17:CX17,Demographics!AV$11:AV$62)","v":-0.11443513000835021},{"$f":"CORREL('Migration 2010'!AZ17:CY17,Demographics!AW$11:AW$62)","v":-0.13663102134851252},{"$f":"CORREL('Migration 2010'!BA17:CZ17,Demographics!AX$11:AX$62)","v":0.31923203535412292},{"$f":"CORREL('Migration 2010'!BB17:DA17,Demographics!AY$11:AY$62)","v":-0.10033448686182903},{"$f":"CORREL('Migration 2010'!BC17:DB17,Demographics!AZ$11:AZ$62)","v":-1.3382871778437539E-2},{"$f":"CORREL('Migration 2010'!BD17:DC17,Demographics!BA$11:BA$62)","v":0.37705752416368532}]
["Delaware",{"$f":"CORREL('Migration 2010'!J18:BI18,Demographics!G$11:G$62)","v":-0.25537120873974983},{"$f":"CORREL('Migration 2010'!K18:BJ18,Demographics!H$11:H$62)","v":-0.25169393911864407},{"$f":"CORREL('Migration 2010'!L18:BK18,Demographics!I$11:I$62)","v":-9.8607692094833277E-2},{"$f":"CORREL('Migration 2010'!M18:BL18,Demographics!J$11:J$62)","v":6.1195003892085563E-2},{"$f":"CORREL('Migration 2010'!N18:BM18,Demographics!K$11:K$62)","v":0.23935384762450704},{"$f":"CORREL('Migration 2010'!O18:BN18,Demographics!L$11:L$62)","v":-2.5596365353753255E-2},{"$f":"CORREL('Migration 2010'!P18:BO18,Demographics!M$11:M$62)","v":-1.2804804667266474E-2},{"$f":"CORREL('Migration 2010'!Q18:BP18,Demographics!N$11:N$62)","v":-0.10485103420324095},{"$f":"CORREL('Migration 2010'!R18:BQ18,Demographics!O$11:O$62)","v":-4.8582577145310337E-3},{"$f":"CORREL('Migration 2010'!S18:BR18,Demographics!P$11:P$62)","v":0.34569619818756336},{"$f":"CORREL('Migration 2010'!T18:BS18,Demographics!Q$11:Q$62)","v":3.3744699035049987E-2},{"$f":"CORREL('Migration 2010'!U18:BT18,Demographics!R$11:R$62)","v":0.16146648951679518},{"$f":"CORREL('Migration 2010'!V18:BU18,Demographics!S$11:S$62)","v":3.1530978858537721E-2},{"$f":"CORREL('Migration 2010'!W18:BV18,Demographics!T$11:T$62)","v":-0.17056540012199206},{"$f":"CORREL('Migration 2010'!X18:BW18,Demographics!U$11:U$62)","v":-0.13461548181775962},{"$f":"CORREL('Migration 2010'!Y18:BX18,Demographics!V$11:V$62)","v":0.16984146540490946},{"$f":"CORREL('Migration 2010'!Z18:BY18,Demographics!W$11:W$62)","v":-5.7471129064969109E-2},{"$f":"CORREL('Migration 2010'!AA18:BZ18,Demographics!X$11:X$62)","v":4.8808269799224077E-2},{"$f":"CORREL('Migration 2010'!AB18:CA18,Demographics!Y$11:Y$62)","v":6.1815520649822743E-2},{"$f":"CORREL('Migration 2010'!AC18:CB18,Demographics!Z$11:Z$62)","v":-4.6056755873252066E-2},{"$f":"CORREL('Migration 2010'!AD18:CC18,Demographics!AA$11:AA$62)","v":-9.4184743662564921E-2},{"$f":"CORREL('Migration 2010'!AE18:CD18,Demographics!AB$11:AB$62)","v":4.5824246296304695E-2},{"$f":"CORREL('Migration 2010'!AF18:CE18,Demographics!AC$11:AC$62)","v":-2.2775877737221704E-2},{"$f":"CORREL('Migration 2010'!AG18:CF18,Demographics!AD$11:AD$62)","v":-3.8314772005199497E-2},{"$f":"CORREL('Migration 2010'!AH18:CG18,Demographics!AE$11:AE$62)","v":-1.0091202360142148E-2},{"$f":"CORREL('Migration 2010'!AI18:CH18,Demographics!AF$11:AF$62)","v":0.10138474287915041},{"$f":"CORREL('Migration 2010'!AJ18:CI18,Demographics!AG$11:AG$62)","v":4.6991789822351755E-2},{"$f":"CORREL('Migration 2010'!AK18:CJ18,Demographics!AH$11:AH$62)","v":-6.5626266260209218E-2},{"$f":"CORREL('Migration 2010'!AL18:CK18,Demographics!AI$11:AI$62)","v":0.28652405789323476},{"$f":"CORREL('Migration 2010'!AM18:CL18,Demographics!AJ$11:AJ$62)","v":0.15318789861559207},{"$f":"CORREL('Migration 2010'!AN18:CM18,Demographics!AK$11:AK$62)","v":0.18238047311437777},{"$f":"CORREL('Migration 2010'!AO18:CN18,Demographics!AL$11:AL$62)","v":-0.11011413549219606},{"$f":"CORREL('Migration 2010'!AP18:CO18,Demographics!AM$11:AM$62)","v":-0.11771527100698442},{"$f":"CORREL('Migration 2010'!AQ18:CP18,Demographics!AN$11:AN$62)","v":-0.11371256220037952},{"$f":"CORREL('Migration 2010'!AR18:CQ18,Demographics!AO$11:AO$62)","v":-1.5461038082041571E-2},{"$f":"CORREL('Migration 2010'!AS18:CR18,Demographics!AP$11:AP$62)","v":-1.0869614986551899E-2},{"$f":"CORREL('Migration 2010'!AT18:CS18,Demographics!AQ$11:AQ$62)","v":-3.365282066328347E-2},{"$f":"CORREL('Migration 2010'!AU18:CT18,Demographics!AR$11:AR$62)","v":-0.16078508911178638},{"$f":"CORREL('Migration 2010'!AV18:CU18,Demographics!AS$11:AS$62)","v":3.7099838633615552E-2},{"$f":"CORREL('Migration 2010'!AW18:CV18,Demographics!AT$11:AT$62)","v":9.2838193241096961E-2},{"$f":"CORREL('Migration 2010'!AX18:CW18,Demographics!AU$11:AU$62)","v":-8.2641046582148631E-2},{"$f":"CORREL('Migration 2010'!AY18:CX18,Demographics!AV$11:AV$62)","v":-0.16826291031564111},{"$f":"CORREL('Migration 2010'!AZ18:CY18,Demographics!AW$11:AW$62)","v":-0.17812688994092274},{"$f":"CORREL('Migration 2010'!BA18:CZ18,Demographics!AX$11:AX$62)","v":0.20394506079843072},{"$f":"CORREL('Migration 2010'!BB18:DA18,Demographics!AY$11:AY$62)","v":-9.1366615640712898E-2},{"$f":"CORREL('Migration 2010'!BC18:DB18,Demographics!AZ$11:AZ$62)","v":-3.0411170857880861E-2},{"$f":"CORREL('Migration 2010'!BD18:DC18,Demographics!BA$11:BA$62)","v":0.26396071798726217}]
["District of Columbia ",{"$f":"CORREL('Migration 2010'!J19:BI19,Demographics!G$11:G$62)","v":-9.3814614617996089E-2},{"$f":"CORREL('Migration 2010'!K19:BJ19,Demographics!H$11:H$62)","v":-0.3582242128936749},{"$f":"CORREL('Migration 2010'!L19:BK19,Demographics!I$11:I$62)","v":-0.25120297180741824},{"$f":"CORREL('Migration 2010'!M19:BL19,Demographics!J$11:J$62)","v":-0.11299733874733123},{"$f":"CORREL('Migration 2010'!N19:BM19,Demographics!K$11:K$62)","v":0.1262006033782607},{"$f":"CORREL('Migration 2010'!O19:BN19,Demographics!L$11:L$62)","v":-0.19082591496300991},{"$f":"CORREL('Migration 2010'!P19:BO19,Demographics!M$11:M$62)","v":-7.2018162964639865E-2},{"$f":"CORREL('Migration 2010'!Q19:BP19,Demographics!N$11:N$62)","v":-5.8242277592175137E-2},{"$f":"CORREL('Migration 2010'!R19:BQ19,Demographics!O$11:O$62)","v":-4.4525425718984928E-2},{"$f":"CORREL('Migration 2010'!S19:BR19,Demographics!P$11:P$62)","v":0.76493668770832202},{"$f":"CORREL('Migration 2010'!T19:BS19,Demographics!Q$11:Q$62)","v":-6.5480739480197073E-2},{"$f":"CORREL('Migration 2010'!U19:BT19,Demographics!R$11:R$62)","v":8.5403213641212592E-3},{"$f":"CORREL('Migration 2010'!V19:BU19,Demographics!S$11:S$62)","v":-4.590105565360187E-2},{"$f":"CORREL('Migration 2010'!W19:BV19,Demographics!T$11:T$62)","v":-7.2005882521297318E-2},{"$f":"CORREL('Migration 2010'!X19:BW19,Demographics!U$11:U$62)","v":0.1129671154444729},{"$f":"CORREL('Migration 2010'!Y19:BX19,Demographics!V$11:V$62)","v":-2.0959887384903998E-2},{"$f":"CORREL('Migration 2010'!Z19:BY19,Demographics!W$11:W$62)","v":0.15775581067843292},{"$f":"CORREL('Migration 2010'!AA19:BZ19,Demographics!X$11:X$62)","v":-5.194222203697748E-2},{"$f":"CORREL('Migration 2010'!AB19:CA19,Demographics!Y$11:Y$62)","v":-5.2969655042998429E-2},{"$f":"CORREL('Migration 2010'!AC19:CB19,Demographics!Z$11:Z$62)","v":-0.12287586404303963},{"$f":"CORREL('Migration 2010'!AD19:CC19,Demographics!AA$11:AA$62)","v":-1.803154154182296E-2},{"$f":"CORREL('Migration 2010'!AE19:CD19,Demographics!AB$11:AB$62)","v":-8.2107584988724419E-2},{"$f":"CORREL('Migration 2010'!AF19:CE19,Demographics!AC$11:AC$62)","v":3.6867559109534452E-2},{"$f":"CORREL('Migration 2010'!AG19:CF19,Demographics!AD$11:AD$62)","v":-1.8982521741898926E-2},{"$f":"CORREL('Migration 2010'!AH19:CG19,Demographics!AE$11:AE$62)","v":-2.2347845194006722E-2},{"$f":"CORREL('Migration 2010'!AI19:CH19,Demographics!AF$11:AF$62)","v":0.21928366624167975},{"$f":"CORREL('Migration 2010'!AJ19:CI19,Demographics!AG$11:AG$62)","v":0.30300482008588592},{"$f":"CORREL('Migration 2010'!AK19:CJ19,Demographics!AH$11:AH$62)","v":-0.14733899870666484},{"$f":"CORREL('Migration 2010'!AL19:CK19,Demographics!AI$11:AI$62)","v":0.14419835578691226},{"$f":"CORREL('Migration 2010'!AM19:CL19,Demographics!AJ$11:AJ$62)","v":6.0756552042474779E-2},{"$f":"CORREL('Migration 2010'!AN19:CM19,Demographics!AK$11:AK$62)","v":-6.4537824530741554E-3},{"$f":"CORREL('Migration 2010'!AO19:CN19,Demographics!AL$11:AL$62)","v":-8.5897073580038646E-2},{"$f":"CORREL('Migration 2010'!AP19:CO19,Demographics!AM$11:AM$62)","v":-0.1280486501016683},{"$f":"CORREL('Migration 2010'!AQ19:CP19,Demographics!AN$11:AN$62)","v":0.15852223038148716},{"$f":"CORREL('Migration 2010'!AR19:CQ19,Demographics!AO$11:AO$62)","v":-4.746243920898776E-2},{"$f":"CORREL('Migration 2010'!AS19:CR19,Demographics!AP$11:AP$62)","v":0.69871346601651863},{"$f":"CORREL('Migration 2010'!AT19:CS19,Demographics!AQ$11:AQ$62)","v":-5.260152362916877E-2},{"$f":"CORREL('Migration 2010'!AU19:CT19,Demographics!AR$11:AR$62)","v":0.26003841585876392},{"$f":"CORREL('Migration 2010'!AV19:CU19,Demographics!AS$11:AS$62)","v":4.1195632914865214E-2},{"$f":"CORREL('Migration 2010'!AW19:CV19,Demographics!AT$11:AT$62)","v":3.9272711162812168E-2},{"$f":"CORREL('Migration 2010'!AX19:CW19,Demographics!AU$11:AU$62)","v":-4.8645655551798526E-2},{"$f":"CORREL('Migration 2010'!AY19:CX19,Demographics!AV$11:AV$62)","v":-5.7545565286265331E-2},{"$f":"CORREL('Migration 2010'!AZ19:CY19,Demographics!AW$11:AW$62)","v":-0.1682194537846583},{"$f":"CORREL('Migration 2010'!BA19:CZ19,Demographics!AX$11:AX$62)","v":0.10208726721691176},{"$f":"CORREL('Migration 2010'!BB19:DA19,Demographics!AY$11:AY$62)","v":9.1829072723267555E-3},{"$f":"CORREL('Migration 2010'!BC19:DB19,Demographics!AZ$11:AZ$62)","v":0.65030731596364644},{"$f":"CORREL('Migration 2010'!BD19:DC19,Demographics!BA$11:BA$62)","v":0.1066483288814334}]
["Florida",{"$f":"CORREL('Migration 2010'!J20:BI20,Demographics!G$11:G$62)","v":-0.10682442930196888},{"$f":"CORREL('Migration 2010'!K20:BJ20,Demographics!H$11:H$62)","v":-0.21348229176951733},{"$f":"CORREL('Migration 2010'!L20:BK20,Demographics!I$11:I$62)","v":-7.0007374744473175E-2},{"$f":"CORREL('Migration 2010'!M20:BL20,Demographics!J$11:J$62)","v":0.15036512022798171},{"$f":"CORREL('Migration 2010'!N20:BM20,Demographics!K$11:K$62)","v":8.6338371655994603E-2},{"$f":"CORREL('Migration 2010'!O20:BN20,Demographics!L$11:L$62)","v":-0.13347343521207505},{"$f":"CORREL('Migration 2010'!P20:BO20,Demographics!M$11:M$62)","v":3.790849577359811E-2},{"$f":"CORREL('Migration 2010'!Q20:BP20,Demographics!N$11:N$62)","v":-0.11083779093039696},{"$f":"CORREL('Migration 2010'!R20:BQ20,Demographics!O$11:O$62)","v":-5.0168181903279145E-2},{"$f":"CORREL('Migration 2010'!S20:BR20,Demographics!P$11:P$62)","v":0.10996271515583614},{"$f":"CORREL('Migration 2010'!T20:BS20,Demographics!Q$11:Q$62)","v":-0.13106960338189361},{"$f":"CORREL('Migration 2010'!U20:BT20,Demographics!R$11:R$62)","v":-9.1461107747505044E-2},{"$f":"CORREL('Migration 2010'!V20:BU20,Demographics!S$11:S$62)","v":1.6160472523474528E-3},{"$f":"CORREL('Migration 2010'!W20:BV20,Demographics!T$11:T$62)","v":-3.6910424437468482E-2},{"$f":"CORREL('Migration 2010'!X20:BW20,Demographics!U$11:U$62)","v":-6.3070896313519212E-2},{"$f":"CORREL('Migration 2010'!Y20:BX20,Demographics!V$11:V$62)","v":-0.17782381210334597},{"$f":"CORREL('Migration 2010'!Z20:BY20,Demographics!W$11:W$62)","v":5.4654175227598925E-2},{"$f":"CORREL('Migration 2010'!AA20:BZ20,Demographics!X$11:X$62)","v":-6.4113096296780192E-2},{"$f":"CORREL('Migration 2010'!AB20:CA20,Demographics!Y$11:Y$62)","v":-7.9280874484710093E-2},{"$f":"CORREL('Migration 2010'!AC20:CB20,Demographics!Z$11:Z$62)","v":0.10723462241088957},{"$f":"CORREL('Migration 2010'!AD20:CC20,Demographics!AA$11:AA$62)","v":1.2546161304990977E-2},{"$f":"CORREL('Migration 2010'!AE20:CD20,Demographics!AB$11:AB$62)","v":0.12429456945034698},{"$f":"CORREL('Migration 2010'!AF20:CE20,Demographics!AC$11:AC$62)","v":0.13473952788365975},{"$f":"CORREL('Migration 2010'!AG20:CF20,Demographics!AD$11:AD$62)","v":5.5363597990735182E-2},{"$f":"CORREL('Migration 2010'!AH20:CG20,Demographics!AE$11:AE$62)","v":8.7211579723000879E-2},{"$f":"CORREL('Migration 2010'!AI20:CH20,Demographics!AF$11:AF$62)","v":3.3208717378471218E-2},{"$f":"CORREL('Migration 2010'!AJ20:CI20,Demographics!AG$11:AG$62)","v":0.17494319336286357},{"$f":"CORREL('Migration 2010'!AK20:CJ20,Demographics!AH$11:AH$62)","v":-6.3358202096123806E-2},{"$f":"CORREL('Migration 2010'!AL20:CK20,Demographics!AI$11:AI$62)","v":0.39072283004175429},{"$f":"CORREL('Migration 2010'!AM20:CL20,Demographics!AJ$11:AJ$62)","v":0.11584992569161384},{"$f":"CORREL('Migration 2010'!AN20:CM20,Demographics!AK$11:AK$62)","v":6.4279504981406485E-2},{"$f":"CORREL('Migration 2010'!AO20:CN20,Demographics!AL$11:AL$62)","v":6.1201843597799073E-2},{"$f":"CORREL('Migration 2010'!AP20:CO20,Demographics!AM$11:AM$62)","v":-0.12377176067325804},{"$f":"CORREL('Migration 2010'!AQ20:CP20,Demographics!AN$11:AN$62)","v":0.31497946984372521},{"$f":"CORREL('Migration 2010'!AR20:CQ20,Demographics!AO$11:AO$62)","v":0.23217374814484643},{"$f":"CORREL('Migration 2010'!AS20:CR20,Demographics!AP$11:AP$62)","v":0.30420794299144566},{"$f":"CORREL('Migration 2010'!AT20:CS20,Demographics!AQ$11:AQ$62)","v":-3.8183864668077237E-2},{"$f":"CORREL('Migration 2010'!AU20:CT20,Demographics!AR$11:AR$62)","v":2.5550671460114742E-2},{"$f":"CORREL('Migration 2010'!AV20:CU20,Demographics!AS$11:AS$62)","v":0.2858185230791051},{"$f":"CORREL('Migration 2010'!AW20:CV20,Demographics!AT$11:AT$62)","v":0.26784585926408866},{"$f":"CORREL('Migration 2010'!AX20:CW20,Demographics!AU$11:AU$62)","v":-6.8211499590378491E-2},{"$f":"CORREL('Migration 2010'!AY20:CX20,Demographics!AV$11:AV$62)","v":-0.14292397744121521},{"$f":"CORREL('Migration 2010'!AZ20:CY20,Demographics!AW$11:AW$62)","v":-7.2896325337762066E-2},{"$f":"CORREL('Migration 2010'!BA20:CZ20,Demographics!AX$11:AX$62)","v":0.14989211911371322},{"$f":"CORREL('Migration 2010'!BB20:DA20,Demographics!AY$11:AY$62)","v":1.4775127985321821E-2},{"$f":"CORREL('Migration 2010'!BC20:DB20,Demographics!AZ$11:AZ$62)","v":0.4079296810585491},{"$f":"CORREL('Migration 2010'!BD20:DC20,Demographics!BA$11:BA$62)","v":0.19603337869143955}]
["Georgia",{"$f":"CORREL('Migration 2010'!J21:BI21,Demographics!G$11:G$62)","v":-0.14750366459001857},{"$f":"CORREL('Migration 2010'!K21:BJ21,Demographics!H$11:H$62)","v":-0.20087772077569763},{"$f":"CORREL('Migration 2010'!L21:BK21,Demographics!I$11:I$62)","v":0.12535928545331004},{"$f":"CORREL('Migration 2010'!M21:BL21,Demographics!J$11:J$62)","v":0.18570978900177817},{"$f":"CORREL('Migration 2010'!N21:BM21,Demographics!K$11:K$62)","v":0.14984396375848974},{"$f":"CORREL('Migration 2010'!O21:BN21,Demographics!L$11:L$62)","v":-0.15091355143421628},{"$f":"CORREL('Migration 2010'!P21:BO21,Demographics!M$11:M$62)","v":5.516784112298357E-2},{"$f":"CORREL('Migration 2010'!Q21:BP21,Demographics!N$11:N$62)","v":-7.0912951585487341E-2},{"$f":"CORREL('Migration 2010'!R21:BQ21,Demographics!O$11:O$62)","v":6.4705831292448477E-3},{"$f":"CORREL('Migration 2010'!S21:BR21,Demographics!P$11:P$62)","v":-3.1320403497140402E-2},{"$f":"CORREL('Migration 2010'!T21:BS21,Demographics!Q$11:Q$62)","v":-3.4260104552542685E-2},{"$f":"CORREL('Migration 2010'!U21:BT21,Demographics!R$11:R$62)","v":-0.10114104554038426},{"$f":"CORREL('Migration 2010'!V21:BU21,Demographics!S$11:S$62)","v":-9.7420437922181358E-2},{"$f":"CORREL('Migration 2010'!W21:BV21,Demographics!T$11:T$62)","v":4.762177221147005E-2},{"$f":"CORREL('Migration 2010'!X21:BW21,Demographics!U$11:U$62)","v":-5.8265088668422609E-2},{"$f":"CORREL('Migration 2010'!Y21:BX21,Demographics!V$11:V$62)","v":-0.13598728308354865},{"$f":"CORREL('Migration 2010'!Z21:BY21,Demographics!W$11:W$62)","v":-9.4449999560441061E-2},{"$f":"CORREL('Migration 2010'!AA21:BZ21,Demographics!X$11:X$62)","v":-5.2358465124755803E-2},{"$f":"CORREL('Migration 2010'!AB21:CA21,Demographics!Y$11:Y$62)","v":-0.17745367760401576},{"$f":"CORREL('Migration 2010'!AC21:CB21,Demographics!Z$11:Z$62)","v":3.1018633117675852E-2},{"$f":"CORREL('Migration 2010'!AD21:CC21,Demographics!AA$11:AA$62)","v":2.1651880211130837E-3},{"$f":"CORREL('Migration 2010'!AE21:CD21,Demographics!AB$11:AB$62)","v":-1.8420019593992146E-2},{"$f":"CORREL('Migration 2010'!AF21:CE21,Demographics!AC$11:AC$62)","v":0.31718929860037515},{"$f":"CORREL('Migration 2010'!AG21:CF21,Demographics!AD$11:AD$62)","v":-3.8649132761300407E-2},{"$f":"CORREL('Migration 2010'!AH21:CG21,Demographics!AE$11:AE$62)","v":3.557177914787394E-2},{"$f":"CORREL('Migration 2010'!AI21:CH21,Demographics!AF$11:AF$62)","v":-8.3325948641668104E-2},{"$f":"CORREL('Migration 2010'!AJ21:CI21,Demographics!AG$11:AG$62)","v":2.5417563448453265E-2},{"$f":"CORREL('Migration 2010'!AK21:CJ21,Demographics!AH$11:AH$62)","v":-0.19349107986224945},{"$f":"CORREL('Migration 2010'!AL21:CK21,Demographics!AI$11:AI$62)","v":9.966284902971384E-2},{"$f":"CORREL('Migration 2010'!AM21:CL21,Demographics!AJ$11:AJ$62)","v":0.26143615461849712},{"$f":"CORREL('Migration 2010'!AN21:CM21,Demographics!AK$11:AK$62)","v":-1.2204841771534863E-2},{"$f":"CORREL('Migration 2010'!AO21:CN21,Demographics!AL$11:AL$62)","v":0.21370101850750559},{"$f":"CORREL('Migration 2010'!AP21:CO21,Demographics!AM$11:AM$62)","v":-8.0576481048551599E-2},{"$f":"CORREL('Migration 2010'!AQ21:CP21,Demographics!AN$11:AN$62)","v":0.30472414163279982},{"$f":"CORREL('Migration 2010'!AR21:CQ21,Demographics!AO$11:AO$62)","v":0.16376639999063516},{"$f":"CORREL('Migration 2010'!AS21:CR21,Demographics!AP$11:AP$62)","v":0.13230989323095485},{"$f":"CORREL('Migration 2010'!AT21:CS21,Demographics!AQ$11:AQ$62)","v":6.3254041675658457E-2},{"$f":"CORREL('Migration 2010'!AU21:CT21,Demographics!AR$11:AR$62)","v":-2.7416014761843306E-2},{"$f":"CORREL('Migration 2010'!AV21:CU21,Demographics!AS$11:AS$62)","v":0.21989731160929332},{"$f":"CORREL('Migration 2010'!AW21:CV21,Demographics!AT$11:AT$62)","v":0.16407647090417912},{"$f":"CORREL('Migration 2010'!AX21:CW21,Demographics!AU$11:AU$62)","v":-0.11687274711758096},{"$f":"CORREL('Migration 2010'!AY21:CX21,Demographics!AV$11:AV$62)","v":-0.18085086966237138},{"$f":"CORREL('Migration 2010'!AZ21:CY21,Demographics!AW$11:AW$62)","v":-0.14592879284925972},{"$f":"CORREL('Migration 2010'!BA21:CZ21,Demographics!AX$11:AX$62)","v":0.28387948995715173},{"$f":"CORREL('Migration 2010'!BB21:DA21,Demographics!AY$11:AY$62)","v":-4.4592675825052948E-2},{"$f":"CORREL('Migration 2010'!BC21:DB21,Demographics!AZ$11:AZ$62)","v":0.27100700295230024},{"$f":"CORREL('Migration 2010'!BD21:DC21,Demographics!BA$11:BA$62)","v":0.21303275700926111}]
["Hawaii",{"$f":"CORREL('Migration 2010'!J22:BI22,Demographics!G$11:G$62)","v":9.0219914726411818E-2},{"$f":"CORREL('Migration 2010'!K22:BJ22,Demographics!H$11:H$62)","v":-3.2124790864635808E-2},{"$f":"CORREL('Migration 2010'!L22:BK22,Demographics!I$11:I$62)","v":0.11925983789905661},{"$f":"CORREL('Migration 2010'!M22:BL22,Demographics!J$11:J$62)","v":-0.34239173865598854},{"$f":"CORREL('Migration 2010'!N22:BM22,Demographics!K$11:K$62)","v":1.7438879931990427E-2},{"$f":"CORREL('Migration 2010'!O22:BN22,Demographics!L$11:L$62)","v":-0.13139614091311516},{"$f":"CORREL('Migration 2010'!P22:BO22,Demographics!M$11:M$62)","v":1.9967309726529658E-2},{"$f":"CORREL('Migration 2010'!Q22:BP22,Demographics!N$11:N$62)","v":-0.11771424848085664},{"$f":"CORREL('Migration 2010'!R22:BQ22,Demographics!O$11:O$62)","v":-1.7851367842029772E-2},{"$f":"CORREL('Migration 2010'!S22:BR22,Demographics!P$11:P$62)","v":-1.4476911545319181E-2},{"$f":"CORREL('Migration 2010'!T22:BS22,Demographics!Q$11:Q$62)","v":-0.15388849891687603},{"$f":"CORREL('Migration 2010'!U22:BT22,Demographics!R$11:R$62)","v":1.4109171950015547E-2},{"$f":"CORREL('Migration 2010'!V22:BU22,Demographics!S$11:S$62)","v":-5.7068845002822111E-2},{"$f":"CORREL('Migration 2010'!W22:BV22,Demographics!T$11:T$62)","v":7.3329023802110524E-2},{"$f":"CORREL('Migration 2010'!X22:BW22,Demographics!U$11:U$62)","v":-0.13159793510322929},{"$f":"CORREL('Migration 2010'!Y22:BX22,Demographics!V$11:V$62)","v":-0.15045688131991486},{"$f":"CORREL('Migration 2010'!Z22:BY22,Demographics!W$11:W$62)","v":6.0284910002514784E-2},{"$f":"CORREL('Migration 2010'!AA22:BZ22,Demographics!X$11:X$62)","v":2.1108789669476219E-3},{"$f":"CORREL('Migration 2010'!AB22:CA22,Demographics!Y$11:Y$62)","v":-0.18729521984885561},{"$f":"CORREL('Migration 2010'!AC22:CB22,Demographics!Z$11:Z$62)","v":0.14436127011073949},{"$f":"CORREL('Migration 2010'!AD22:CC22,Demographics!AA$11:AA$62)","v":-0.13425205712874907},{"$f":"CORREL('Migration 2010'!AE22:CD22,Demographics!AB$11:AB$62)","v":-0.28711924979839881},{"$f":"CORREL('Migration 2010'!AF22:CE22,Demographics!AC$11:AC$62)","v":0.23600630316277452},{"$f":"CORREL('Migration 2010'!AG22:CF22,Demographics!AD$11:AD$62)","v":-0.13087215285562373},{"$f":"CORREL('Migration 2010'!AH22:CG22,Demographics!AE$11:AE$62)","v":-8.456975705024701E-2},{"$f":"CORREL('Migration 2010'!AI22:CH22,Demographics!AF$11:AF$62)","v":-9.4146232636016847E-2},{"$f":"CORREL('Migration 2010'!AJ22:CI22,Demographics!AG$11:AG$62)","v":-4.4735178385894907E-2},{"$f":"CORREL('Migration 2010'!AK22:CJ22,Demographics!AH$11:AH$62)","v":-0.1507946267242754},{"$f":"CORREL('Migration 2010'!AL22:CK22,Demographics!AI$11:AI$62)","v":-6.7830565260464992E-2},{"$f":"CORREL('Migration 2010'!AM22:CL22,Demographics!AJ$11:AJ$62)","v":3.2116021361883948E-2},{"$f":"CORREL('Migration 2010'!AN22:CM22,Demographics!AK$11:AK$62)","v":0.21668805171542713},{"$f":"CORREL('Migration 2010'!AO22:CN22,Demographics!AL$11:AL$62)","v":-7.5319274738235437E-2},{"$f":"CORREL('Migration 2010'!AP22:CO22,Demographics!AM$11:AM$62)","v":-0.13072798237420399},{"$f":"CORREL('Migration 2010'!AQ22:CP22,Demographics!AN$11:AN$62)","v":0.27118497017652254},{"$f":"CORREL('Migration 2010'!AR22:CQ22,Demographics!AO$11:AO$62)","v":-0.11582759143274708},{"$f":"CORREL('Migration 2010'!AS22:CR22,Demographics!AP$11:AP$62)","v":0.20634121911332107},{"$f":"CORREL('Migration 2010'!AT22:CS22,Demographics!AQ$11:AQ$62)","v":0.18955215802593225},{"$f":"CORREL('Migration 2010'!AU22:CT22,Demographics!AR$11:AR$62)","v":-2.7956604455942148E-2},{"$f":"CORREL('Migration 2010'!AV22:CU22,Demographics!AS$11:AS$62)","v":5.0846092053273284E-2},{"$f":"CORREL('Migration 2010'!AW22:CV22,Demographics!AT$11:AT$62)","v":0.50459663277398747},{"$f":"CORREL('Migration 2010'!AX22:CW22,Demographics!AU$11:AU$62)","v":-0.11763168786844075},{"$f":"CORREL('Migration 2010'!AY22:CX22,Demographics!AV$11:AV$62)","v":-0.12532891441788624},{"$f":"CORREL('Migration 2010'!AZ22:CY22,Demographics!AW$11:AW$62)","v":-0.12865599338669706},{"$f":"CORREL('Migration 2010'!BA22:CZ22,Demographics!AX$11:AX$62)","v":0.2953894561543734},{"$f":"CORREL('Migration 2010'!BB22:DA22,Demographics!AY$11:AY$62)","v":-4.3037543713930378E-2},{"$f":"CORREL('Migration 2010'!BC22:DB22,Demographics!AZ$11:AZ$62)","v":0.19075107502866262},{"$f":"CORREL('Migration 2010'!BD22:DC22,Demographics!BA$11:BA$62)","v":0.12355566299906033}]
["Idaho",{"$f":"CORREL('Migration 2010'!J23:BI23,Demographics!G$11:G$62)","v":0.40740588280078477},{"$f":"CORREL('Migration 2010'!K23:BJ23,Demographics!H$11:H$62)","v":0.17874609939233013},{"$f":"CORREL('Migration 2010'!L23:BK23,Demographics!I$11:I$62)","v":0.16066276237568994},{"$f":"CORREL('Migration 2010'!M23:BL23,Demographics!J$11:J$62)","v":-0.49836413791659456},{"$f":"CORREL('Migration 2010'!N23:BM23,Demographics!K$11:K$62)","v":-0.12707709761651542},{"$f":"CORREL('Migration 2010'!O23:BN23,Demographics!L$11:L$62)","v":-8.1941513854263126E-3},{"$f":"CORREL('Migration 2010'!P23:BO23,Demographics!M$11:M$62)","v":0.22280169758530008},{"$f":"CORREL('Migration 2010'!Q23:BP23,Demographics!N$11:N$62)","v":-8.5665583432445527E-2},{"$f":"CORREL('Migration 2010'!R23:BQ23,Demographics!O$11:O$62)","v":-2.4752661263973012E-2},{"$f":"CORREL('Migration 2010'!S23:BR23,Demographics!P$11:P$62)","v":-0.11472081109134419},{"$f":"CORREL('Migration 2010'!T23:BS23,Demographics!Q$11:Q$62)","v":-0.10227743476018752},{"$f":"CORREL('Migration 2010'!U23:BT23,Demographics!R$11:R$62)","v":-1.2763311405854266E-2},{"$f":"CORREL('Migration 2010'!V23:BU23,Demographics!S$11:S$62)","v":0.22119819898247448},{"$f":"CORREL('Migration 2010'!W23:BV23,Demographics!T$11:T$62)","v":-9.6843438279370989E-2},{"$f":"CORREL('Migration 2010'!X23:BW23,Demographics!U$11:U$62)","v":5.240304503572786E-2},{"$f":"CORREL('Migration 2010'!Y23:BX23,Demographics!V$11:V$62)","v":2.3462609973775441E-2},{"$f":"CORREL('Migration 2010'!Z23:BY23,Demographics!W$11:W$62)","v":-0.12517091069700398},{"$f":"CORREL('Migration 2010'!AA23:BZ23,Demographics!X$11:X$62)","v":3.3718563059341185E-2},{"$f":"CORREL('Migration 2010'!AB23:CA23,Demographics!Y$11:Y$62)","v":-0.13122828946988888},{"$f":"CORREL('Migration 2010'!AC23:CB23,Demographics!Z$11:Z$62)","v":3.277457744859797E-2},{"$f":"CORREL('Migration 2010'!AD23:CC23,Demographics!AA$11:AA$62)","v":-0.10945960579279367},{"$f":"CORREL('Migration 2010'!AE23:CD23,Demographics!AB$11:AB$62)","v":-0.20049250624428927},{"$f":"CORREL('Migration 2010'!AF23:CE23,Demographics!AC$11:AC$62)","v":4.4727358293078058E-3},{"$f":"CORREL('Migration 2010'!AG23:CF23,Demographics!AD$11:AD$62)","v":-0.10161945879029323},{"$f":"CORREL('Migration 2010'!AH23:CG23,Demographics!AE$11:AE$62)","v":6.946784325317569E-2},{"$f":"CORREL('Migration 2010'!AI23:CH23,Demographics!AF$11:AF$62)","v":-8.0749928848887223E-2},{"$f":"CORREL('Migration 2010'!AJ23:CI23,Demographics!AG$11:AG$62)","v":3.7831876437725655E-2},{"$f":"CORREL('Migration 2010'!AK23:CJ23,Demographics!AH$11:AH$62)","v":-9.2880486701803433E-2},{"$f":"CORREL('Migration 2010'!AL23:CK23,Demographics!AI$11:AI$62)","v":-0.12619631114987076},{"$f":"CORREL('Migration 2010'!AM23:CL23,Demographics!AJ$11:AJ$62)","v":-8.3634623613709921E-2},{"$f":"CORREL('Migration 2010'!AN23:CM23,Demographics!AK$11:AK$62)","v":0.10615196194993533},{"$f":"CORREL('Migration 2010'!AO23:CN23,Demographics!AL$11:AL$62)","v":-6.5015509790253695E-2},{"$f":"CORREL('Migration 2010'!AP23:CO23,Demographics!AM$11:AM$62)","v":-7.5801030709932465E-2},{"$f":"CORREL('Migration 2010'!AQ23:CP23,Demographics!AN$11:AN$62)","v":-2.121121524039412E-2},{"$f":"CORREL('Migration 2010'!AR23:CQ23,Demographics!AO$11:AO$62)","v":-8.1436754361521577E-2},{"$f":"CORREL('Migration 2010'!AS23:CR23,Demographics!AP$11:AP$62)","v":-7.863239964892127E-2},{"$f":"CORREL('Migration 2010'!AT23:CS23,Demographics!AQ$11:AQ$62)","v":0.80931312797662891},{"$f":"CORREL('Migration 2010'!AU23:CT23,Demographics!AR$11:AR$62)","v":-8.1532144631313988E-2},{"$f":"CORREL('Migration 2010'!AV23:CU23,Demographics!AS$11:AS$62)","v":5.8732134794973412E-2},{"$f":"CORREL('Migration 2010'!AW23:CV23,Demographics!AT$11:AT$62)","v":8.668308680445759E-2},{"$f":"CORREL('Migration 2010'!AX23:CW23,Demographics!AU$11:AU$62)","v":0.21991716937217703},{"$f":"CORREL('Migration 2010'!AY23:CX23,Demographics!AV$11:AV$62)","v":-9.9321224636698097E-2},{"$f":"CORREL('Migration 2010'!AZ23:CY23,Demographics!AW$11:AW$62)","v":-6.629065323654125E-2},{"$f":"CORREL('Migration 2010'!BA23:CZ23,Demographics!AX$11:AX$62)","v":0.5514150775012997},{"$f":"CORREL('Migration 2010'!BB23:DA23,Demographics!AY$11:AY$62)","v":-8.1201736344161987E-2},{"$f":"CORREL('Migration 2010'!BC23:DB23,Demographics!AZ$11:AZ$62)","v":2.0653785931078517E-2},{"$f":"CORREL('Migration 2010'!BD23:DC23,Demographics!BA$11:BA$62)","v":5.9973531021259387E-2}]
["Illinois",{"$f":"CORREL('Migration 2010'!J24:BI24,Demographics!G$11:G$62)","v":1.4656632215680412E-2},{"$f":"CORREL('Migration 2010'!K24:BJ24,Demographics!H$11:H$62)","v":-5.3203096294987894E-2},{"$f":"CORREL('Migration 2010'!L24:BK24,Demographics!I$11:I$62)","v":-5.2839389762362125E-2},{"$f":"CORREL('Migration 2010'!M24:BL24,Demographics!J$11:J$62)","v":-9.9566150022595473E-2},{"$f":"CORREL('Migration 2010'!N24:BM24,Demographics!K$11:K$62)","v":-0.16391840695310697},{"$f":"CORREL('Migration 2010'!O24:BN24,Demographics!L$11:L$62)","v":0.12631681596119523},{"$f":"CORREL('Migration 2010'!P24:BO24,Demographics!M$11:M$62)","v":-0.10794619665470181},{"$f":"CORREL('Migration 2010'!Q24:BP24,Demographics!N$11:N$62)","v":-0.15083913697999382},{"$f":"CORREL('Migration 2010'!R24:BQ24,Demographics!O$11:O$62)","v":-9.7224140882582133E-2},{"$f":"CORREL('Migration 2010'!S24:BR24,Demographics!P$11:P$62)","v":-5.5084189844213149E-2},{"$f":"CORREL('Migration 2010'!T24:BS24,Demographics!Q$11:Q$62)","v":0.1579323602750784},{"$f":"CORREL('Migration 2010'!U24:BT24,Demographics!R$11:R$62)","v":-0.1272260528690673},{"$f":"CORREL('Migration 2010'!V24:BU24,Demographics!S$11:S$62)","v":-0.17156230861263153},{"$f":"CORREL('Migration 2010'!W24:BV24,Demographics!T$11:T$62)","v":7.7599081391697217E-2},{"$f":"CORREL('Migration 2010'!X24:BW24,Demographics!U$11:U$62)","v":-7.9711274913728883E-2},{"$f":"CORREL('Migration 2010'!Y24:BX24,Demographics!V$11:V$62)","v":-0.15239391568217966},{"$f":"CORREL('Migration 2010'!Z24:BY24,Demographics!W$11:W$62)","v":9.5571949483836318E-3},{"$f":"CORREL('Migration 2010'!AA24:BZ24,Demographics!X$11:X$62)","v":5.7994749429705332E-2},{"$f":"CORREL('Migration 2010'!AB24:CA24,Demographics!Y$11:Y$62)","v":-7.5189316836447209E-2},{"$f":"CORREL('Migration 2010'!AC24:CB24,Demographics!Z$11:Z$62)","v":7.1279246870176435E-2},{"$f":"CORREL('Migration 2010'!AD24:CC24,Demographics!AA$11:AA$62)","v":-2.3614020176218827E-2},{"$f":"CORREL('Migration 2010'!AE24:CD24,Demographics!AB$11:AB$62)","v":6.9595979756713694E-2},{"$f":"CORREL('Migration 2010'!AF24:CE24,Demographics!AC$11:AC$62)","v":7.102047123609552E-2},{"$f":"CORREL('Migration 2010'!AG24:CF24,Demographics!AD$11:AD$62)","v":-7.2498441291249466E-2},{"$f":"CORREL('Migration 2010'!AH24:CG24,Demographics!AE$11:AE$62)","v":0.11716126350264493},{"$f":"CORREL('Migration 2010'!AI24:CH24,Demographics!AF$11:AF$62)","v":-0.26685853776008694},{"$f":"CORREL('Migration 2010'!AJ24:CI24,Demographics!AG$11:AG$62)","v":4.3790388384753638E-3},{"$f":"CORREL('Migration 2010'!AK24:CJ24,Demographics!AH$11:AH$62)","v":-4.287634387002124E-2},{"$f":"CORREL('Migration 2010'!AL24:CK24,Demographics!AI$11:AI$62)","v":9.316586763943048E-2},{"$f":"CORREL('Migration 2010'!AM24:CL24,Demographics!AJ$11:AJ$62)","v":0.14162938245215789},{"$f":"CORREL('Migration 2010'!AN24:CM24,Demographics!AK$11:AK$62)","v":2.5875140949599803E-2},{"$f":"CORREL('Migration 2010'!AO24:CN24,Demographics!AL$11:AL$62)","v":-1.1239110051319806E-2},{"$f":"CORREL('Migration 2010'!AP24:CO24,Demographics!AM$11:AM$62)","v":-0.10790671369619351},{"$f":"CORREL('Migration 2010'!AQ24:CP24,Demographics!AN$11:AN$62)","v":0.19254512721664055},{"$f":"CORREL('Migration 2010'!AR24:CQ24,Demographics!AO$11:AO$62)","v":2.0208445689899875E-2},{"$f":"CORREL('Migration 2010'!AS24:CR24,Demographics!AP$11:AP$62)","v":5.3624539933718095E-2},{"$f":"CORREL('Migration 2010'!AT24:CS24,Demographics!AQ$11:AQ$62)","v":-3.452539977892282E-2},{"$f":"CORREL('Migration 2010'!AU24:CT24,Demographics!AR$11:AR$62)","v":-4.58648424129494E-2},{"$f":"CORREL('Migration 2010'!AV24:CU24,Demographics!AS$11:AS$62)","v":0.24787775282702029},{"$f":"CORREL('Migration 2010'!AW24:CV24,Demographics!AT$11:AT$62)","v":0.29047554593700126},{"$f":"CORREL('Migration 2010'!AX24:CW24,Demographics!AU$11:AU$62)","v":-5.3997958138753046E-3},{"$f":"CORREL('Migration 2010'!AY24:CX24,Demographics!AV$11:AV$62)","v":-0.15025052024513122},{"$f":"CORREL('Migration 2010'!AZ24:CY24,Demographics!AW$11:AW$62)","v":6.8516830114907612E-2},{"$f":"CORREL('Migration 2010'!BA24:CZ24,Demographics!AX$11:AX$62)","v":0.14152205038792279},{"$f":"CORREL('Migration 2010'!BB24:DA24,Demographics!AY$11:AY$62)","v":6.2929384572244142E-3},{"$f":"CORREL('Migration 2010'!BC24:DB24,Demographics!AZ$11:AZ$62)","v":0.1575550582058938},{"$f":"CORREL('Migration 2010'!BD24:DC24,Demographics!BA$11:BA$62)","v":0.24741892470480956}]
["Indiana",{"$f":"CORREL('Migration 2010'!J25:BI25,Demographics!G$11:G$62)","v":-2.9119285075840239E-2},{"$f":"CORREL('Migration 2010'!K25:BJ25,Demographics!H$11:H$62)","v":0.14105983753256279},{"$f":"CORREL('Migration 2010'!L25:BK25,Demographics!I$11:I$62)","v":3.4279748168762551E-2},{"$f":"CORREL('Migration 2010'!M25:BL25,Demographics!J$11:J$62)","v":0.11027616317614483},{"$f":"CORREL('Migration 2010'!N25:BM25,Demographics!K$11:K$62)","v":-2.9944784644126324E-2},{"$f":"CORREL('Migration 2010'!O25:BN25,Demographics!L$11:L$62)","v":-7.3818294244982707E-2},{"$f":"CORREL('Migration 2010'!P25:BO25,Demographics!M$11:M$62)","v":-0.13539186541419662},{"$f":"CORREL('Migration 2010'!Q25:BP25,Demographics!N$11:N$62)","v":-3.0700248315588874E-2},{"$f":"CORREL('Migration 2010'!R25:BQ25,Demographics!O$11:O$62)","v":-5.7652312925990407E-2},{"$f":"CORREL('Migration 2010'!S25:BR25,Demographics!P$11:P$62)","v":1.3541054146650687E-2},{"$f":"CORREL('Migration 2010'!T25:BS25,Demographics!Q$11:Q$62)","v":-9.9112095751252571E-2},{"$f":"CORREL('Migration 2010'!U25:BT25,Demographics!R$11:R$62)","v":-0.25766741365853263},{"$f":"CORREL('Migration 2010'!V25:BU25,Demographics!S$11:S$62)","v":-0.29091843036773163},{"$f":"CORREL('Migration 2010'!W25:BV25,Demographics!T$11:T$62)","v":0.10515432269735268},{"$f":"CORREL('Migration 2010'!X25:BW25,Demographics!U$11:U$62)","v":5.8012969421629326E-2},{"$f":"CORREL('Migration 2010'!Y25:BX25,Demographics!V$11:V$62)","v":-5.8028820319497181E-2},{"$f":"CORREL('Migration 2010'!Z25:BY25,Demographics!W$11:W$62)","v":2.3882755934359151E-2},{"$f":"CORREL('Migration 2010'!AA25:BZ25,Demographics!X$11:X$62)","v":-6.4219039316093948E-2},{"$f":"CORREL('Migration 2010'!AB25:CA25,Demographics!Y$11:Y$62)","v":-6.1085898894274397E-2},{"$f":"CORREL('Migration 2010'!AC25:CB25,Demographics!Z$11:Z$62)","v":-6.4273891530646554E-2},{"$f":"CORREL('Migration 2010'!AD25:CC25,Demographics!AA$11:AA$62)","v":7.323685232380985E-3},{"$f":"CORREL('Migration 2010'!AE25:CD25,Demographics!AB$11:AB$62)","v":-6.0177723084044503E-2},{"$f":"CORREL('Migration 2010'!AF25:CE25,Demographics!AC$11:AC$62)","v":0.1001577401594811},{"$f":"CORREL('Migration 2010'!AG25:CF25,Demographics!AD$11:AD$62)","v":-4.103565148077689E-2},{"$f":"CORREL('Migration 2010'!AH25:CG25,Demographics!AE$11:AE$62)","v":0.29617872870481532},{"$f":"CORREL('Migration 2010'!AI25:CH25,Demographics!AF$11:AF$62)","v":-0.13246397347032737},{"$f":"CORREL('Migration 2010'!AJ25:CI25,Demographics!AG$11:AG$62)","v":-0.11611708990818752},{"$f":"CORREL('Migration 2010'!AK25:CJ25,Demographics!AH$11:AH$62)","v":-8.3725110835558933E-2},{"$f":"CORREL('Migration 2010'!AL25:CK25,Demographics!AI$11:AI$62)","v":-7.7890667972969993E-2},{"$f":"CORREL('Migration 2010'!AM25:CL25,Demographics!AJ$11:AJ$62)","v":3.9766349165774123E-2},{"$f":"CORREL('Migration 2010'!AN25:CM25,Demographics!AK$11:AK$62)","v":0.11186682472197189},{"$f":"CORREL('Migration 2010'!AO25:CN25,Demographics!AL$11:AL$62)","v":0.39731795695312017},{"$f":"CORREL('Migration 2010'!AP25:CO25,Demographics!AM$11:AM$62)","v":-9.355248459729941E-2},{"$f":"CORREL('Migration 2010'!AQ25:CP25,Demographics!AN$11:AN$62)","v":0.1452337311186421},{"$f":"CORREL('Migration 2010'!AR25:CQ25,Demographics!AO$11:AO$62)","v":0.57343749466561333},{"$f":"CORREL('Migration 2010'!AS25:CR25,Demographics!AP$11:AP$62)","v":8.1044992602689409E-2},{"$f":"CORREL('Migration 2010'!AT25:CS25,Demographics!AQ$11:AQ$62)","v":-7.3856161334009185E-2},{"$f":"CORREL('Migration 2010'!AU25:CT25,Demographics!AR$11:AR$62)","v":2.0959004614821704E-2},{"$f":"CORREL('Migration 2010'!AV25:CU25,Demographics!AS$11:AS$62)","v":0.15653486414050988},{"$f":"CORREL('Migration 2010'!AW25:CV25,Demographics!AT$11:AT$62)","v":0.24239148060420851},{"$f":"CORREL('Migration 2010'!AX25:CW25,Demographics!AU$11:AU$62)","v":-5.027955552210666E-2},{"$f":"CORREL('Migration 2010'!AY25:CX25,Demographics!AV$11:AV$62)","v":-0.21164182967947234},{"$f":"CORREL('Migration 2010'!AZ25:CY25,Demographics!AW$11:AW$62)","v":-0.1432412891956612},{"$f":"CORREL('Migration 2010'!BA25:CZ25,Demographics!AX$11:AX$62)","v":0.17676719380217762},{"$f":"CORREL('Migration 2010'!BB25:DA25,Demographics!AY$11:AY$62)","v":-9.5410663856743849E-2},{"$f":"CORREL('Migration 2010'!BC25:DB25,Demographics!AZ$11:AZ$62)","v":0.1903009763161545},{"$f":"CORREL('Migration 2010'!BD25:DC25,Demographics!BA$11:BA$62)","v":0.33876412684041873}]
["Iowa",{"$f":"CORREL('Migration 2010'!J26:BI26,Demographics!G$11:G$62)","v":0.11067346388140777},{"$f":"CORREL('Migration 2010'!K26:BJ26,Demographics!H$11:H$62)","v":0.20205290691425179},{"$f":"CORREL('Migration 2010'!L26:BK26,Demographics!I$11:I$62)","v":0.11846454323381869},{"$f":"CORREL('Migration 2010'!M26:BL26,Demographics!J$11:J$62)","v":0.17129163164354697},{"$f":"CORREL('Migration 2010'!N26:BM26,Demographics!K$11:K$62)","v":9.4681291081205377E-2},{"$f":"CORREL('Migration 2010'!O26:BN26,Demographics!L$11:L$62)","v":0.33138455217068691},{"$f":"CORREL('Migration 2010'!P26:BO26,Demographics!M$11:M$62)","v":-0.1309370255234793},{"$f":"CORREL('Migration 2010'!Q26:BP26,Demographics!N$11:N$62)","v":-6.3291468091543984E-2},{"$f":"CORREL('Migration 2010'!R26:BQ26,Demographics!O$11:O$62)","v":-6.3330233284979706E-2},{"$f":"CORREL('Migration 2010'!S26:BR26,Demographics!P$11:P$62)","v":-4.4811772676258688E-2},{"$f":"CORREL('Migration 2010'!T26:BS26,Demographics!Q$11:Q$62)","v":-2.5816890008085302E-2},{"$f":"CORREL('Migration 2010'!U26:BT26,Demographics!R$11:R$62)","v":-6.4930485583805375E-2},{"$f":"CORREL('Migration 2010'!V26:BU26,Demographics!S$11:S$62)","v":-0.19639867674134029},{"$f":"CORREL('Migration 2010'!W26:BV26,Demographics!T$11:T$62)","v":-4.8912806233593877E-2},{"$f":"CORREL('Migration 2010'!X26:BW26,Demographics!U$11:U$62)","v":0.1718472819469723},{"$f":"CORREL('Migration 2010'!Y26:BX26,Demographics!V$11:V$62)","v":3.5313986715951283E-2},{"$f":"CORREL('Migration 2010'!Z26:BY26,Demographics!W$11:W$62)","v":-9.4538454904955299E-2},{"$f":"CORREL('Migration 2010'!AA26:BZ26,Demographics!X$11:X$62)","v":5.0560837639935539E-2},{"$f":"CORREL('Migration 2010'!AB26:CA26,Demographics!Y$11:Y$62)","v":-7.7586824084047892E-2},{"$f":"CORREL('Migration 2010'!AC26:CB26,Demographics!Z$11:Z$62)","v":0.38643362929825542},{"$f":"CORREL('Migration 2010'!AD26:CC26,Demographics!AA$11:AA$62)","v":-4.9333292954937144E-2},{"$f":"CORREL('Migration 2010'!AE26:CD26,Demographics!AB$11:AB$62)","v":5.4665343789963274E-2},{"$f":"CORREL('Migration 2010'!AF26:CE26,Demographics!AC$11:AC$62)","v":0.22113713198501317},{"$f":"CORREL('Migration 2010'!AG26:CF26,Demographics!AD$11:AD$62)","v":0.1922689522179114},{"$f":"CORREL('Migration 2010'!AH26:CG26,Demographics!AE$11:AE$62)","v":9.5620343460377441E-2},{"$f":"CORREL('Migration 2010'!AI26:CH26,Demographics!AF$11:AF$62)","v":-0.28294781360480253},{"$f":"CORREL('Migration 2010'!AJ26:CI26,Demographics!AG$11:AG$62)","v":-1.9531217993424069E-2},{"$f":"CORREL('Migration 2010'!AK26:CJ26,Demographics!AH$11:AH$62)","v":8.765797801574618E-2},{"$f":"CORREL('Migration 2010'!AL26:CK26,Demographics!AI$11:AI$62)","v":-6.2307194805595253E-2},{"$f":"CORREL('Migration 2010'!AM26:CL26,Demographics!AJ$11:AJ$62)","v":2.9067141739281894E-2},{"$f":"CORREL('Migration 2010'!AN26:CM26,Demographics!AK$11:AK$62)","v":0.2034540100003675},{"$f":"CORREL('Migration 2010'!AO26:CN26,Demographics!AL$11:AL$62)","v":-5.2225025311929706E-2},{"$f":"CORREL('Migration 2010'!AP26:CO26,Demographics!AM$11:AM$62)","v":1.3576419779656837E-2},{"$f":"CORREL('Migration 2010'!AQ26:CP26,Demographics!AN$11:AN$62)","v":0.15874825614393073},{"$f":"CORREL('Migration 2010'!AR26:CQ26,Demographics!AO$11:AO$62)","v":-0.1121858957855968},{"$f":"CORREL('Migration 2010'!AS26:CR26,Demographics!AP$11:AP$62)","v":-0.12054207334367871},{"$f":"CORREL('Migration 2010'!AT26:CS26,Demographics!AQ$11:AQ$62)","v":-4.0127566042606769E-2},{"$f":"CORREL('Migration 2010'!AU26:CT26,Demographics!AR$11:AR$62)","v":7.0636586839505661E-2},{"$f":"CORREL('Migration 2010'!AV26:CU26,Demographics!AS$11:AS$62)","v":7.5010847434311148E-2},{"$f":"CORREL('Migration 2010'!AW26:CV26,Demographics!AT$11:AT$62)","v":0.25431535371438235},{"$f":"CORREL('Migration 2010'!AX26:CW26,Demographics!AU$11:AU$62)","v":-0.15268833579941241},{"$f":"CORREL('Migration 2010'!AY26:CX26,Demographics!AV$11:AV$62)","v":-0.16582021734068847},{"$f":"CORREL('Migration 2010'!AZ26:CY26,Demographics!AW$11:AW$62)","v":-6.4441812608552265E-2},{"$f":"CORREL('Migration 2010'!BA26:CZ26,Demographics!AX$11:AX$62)","v":0.20652133465645275},{"$f":"CORREL('Migration 2010'!BB26:DA26,Demographics!AY$11:AY$62)","v":-1.1196352827899865E-2},{"$f":"CORREL('Migration 2010'!BC26:DB26,Demographics!AZ$11:AZ$62)","v":-9.1773054512291133E-2},{"$f":"CORREL('Migration 2010'!BD26:DC26,Demographics!BA$11:BA$62)","v":0.39747094944603079}]
["Kansas",{"$f":"CORREL('Migration 2010'!J27:BI27,Demographics!G$11:G$62)","v":0.1497349043203656},{"$f":"CORREL('Migration 2010'!K27:BJ27,Demographics!H$11:H$62)","v":0.11282618056125797},{"$f":"CORREL('Migration 2010'!L27:BK27,Demographics!I$11:I$62)","v":-1.3039552841404702E-2},{"$f":"CORREL('Migration 2010'!M27:BL27,Demographics!J$11:J$62)","v":6.0904661238966006E-2},{"$f":"CORREL('Migration 2010'!N27:BM27,Demographics!K$11:K$62)","v":1.0244755060039782E-2},{"$f":"CORREL('Migration 2010'!O27:BN27,Demographics!L$11:L$62)","v":0.23211956688008778},{"$f":"CORREL('Migration 2010'!P27:BO27,Demographics!M$11:M$62)","v":-0.10734472192238659},{"$f":"CORREL('Migration 2010'!Q27:BP27,Demographics!N$11:N$62)","v":-9.8896916797857531E-2},{"$f":"CORREL('Migration 2010'!R27:BQ27,Demographics!O$11:O$62)","v":-4.4268046066220368E-2},{"$f":"CORREL('Migration 2010'!S27:BR27,Demographics!P$11:P$62)","v":-1.6497111931647344E-2},{"$f":"CORREL('Migration 2010'!T27:BS27,Demographics!Q$11:Q$62)","v":-0.16051676853526503},{"$f":"CORREL('Migration 2010'!U27:BT27,Demographics!R$11:R$62)","v":8.4313103697717606E-2},{"$f":"CORREL('Migration 2010'!V27:BU27,Demographics!S$11:S$62)","v":0.13014079707567319},{"$f":"CORREL('Migration 2010'!W27:BV27,Demographics!T$11:T$62)","v":1.8689156192116744E-3},{"$f":"CORREL('Migration 2010'!X27:BW27,Demographics!U$11:U$62)","v":0.11070434299401766},{"$f":"CORREL('Migration 2010'!Y27:BX27,Demographics!V$11:V$62)","v":-0.14628195578409028},{"$f":"CORREL('Migration 2010'!Z27:BY27,Demographics!W$11:W$62)","v":-8.3940056398104541E-3},{"$f":"CORREL('Migration 2010'!AA27:BZ27,Demographics!X$11:X$62)","v":-0.10052172344581983},{"$f":"CORREL('Migration 2010'!AB27:CA27,Demographics!Y$11:Y$62)","v":-2.4543879163664292E-2},{"$f":"CORREL('Migration 2010'!AC27:CB27,Demographics!Z$11:Z$62)","v":-2.5852650048753152E-2},{"$f":"CORREL('Migration 2010'!AD27:CC27,Demographics!AA$11:AA$62)","v":-4.6685875882514473E-2},{"$f":"CORREL('Migration 2010'!AE27:CD27,Demographics!AB$11:AB$62)","v":4.3477278954570341E-2},{"$f":"CORREL('Migration 2010'!AF27:CE27,Demographics!AC$11:AC$62)","v":-2.0280434087915012E-2},{"$f":"CORREL('Migration 2010'!AG27:CF27,Demographics!AD$11:AD$62)","v":7.9731910984754434E-2},{"$f":"CORREL('Migration 2010'!AH27:CG27,Demographics!AE$11:AE$62)","v":0.12651963899928956},{"$f":"CORREL('Migration 2010'!AI27:CH27,Demographics!AF$11:AF$62)","v":-0.18007380380412558},{"$f":"CORREL('Migration 2010'!AJ27:CI27,Demographics!AG$11:AG$62)","v":-4.710558533346558E-2},{"$f":"CORREL('Migration 2010'!AK27:CJ27,Demographics!AH$11:AH$62)","v":3.3414940203039284E-2},{"$f":"CORREL('Migration 2010'!AL27:CK27,Demographics!AI$11:AI$62)","v":-6.0552177552275988E-2},{"$f":"CORREL('Migration 2010'!AM27:CL27,Demographics!AJ$11:AJ$62)","v":-8.1780711774761802E-2},{"$f":"CORREL('Migration 2010'!AN27:CM27,Demographics!AK$11:AK$62)","v":0.11160933804976061},{"$f":"CORREL('Migration 2010'!AO27:CN27,Demographics!AL$11:AL$62)","v":-9.1551617371615768E-2},{"$f":"CORREL('Migration 2010'!AP27:CO27,Demographics!AM$11:AM$62)","v":0.2401071849441522},{"$f":"CORREL('Migration 2010'!AQ27:CP27,Demographics!AN$11:AN$62)","v":0.18010490878568297},{"$f":"CORREL('Migration 2010'!AR27:CQ27,Demographics!AO$11:AO$62)","v":3.0333235677595015E-2},{"$f":"CORREL('Migration 2010'!AS27:CR27,Demographics!AP$11:AP$62)","v":9.4058463817422427E-3},{"$f":"CORREL('Migration 2010'!AT27:CS27,Demographics!AQ$11:AQ$62)","v":-1.2093314618432752E-2},{"$f":"CORREL('Migration 2010'!AU27:CT27,Demographics!AR$11:AR$62)","v":-1.0469861570073579E-2},{"$f":"CORREL('Migration 2010'!AV27:CU27,Demographics!AS$11:AS$62)","v":0.16086939105943734},{"$f":"CORREL('Migration 2010'!AW27:CV27,Demographics!AT$11:AT$62)","v":0.33067697144086727},{"$f":"CORREL('Migration 2010'!AX27:CW27,Demographics!AU$11:AU$62)","v":-0.1008716137842141},{"$f":"CORREL('Migration 2010'!AY27:CX27,Demographics!AV$11:AV$62)","v":-0.11641412170388075},{"$f":"CORREL('Migration 2010'!AZ27:CY27,Demographics!AW$11:AW$62)","v":-8.2467517421932812E-2},{"$f":"CORREL('Migration 2010'!BA27:CZ27,Demographics!AX$11:AX$62)","v":0.17780674148438788},{"$f":"CORREL('Migration 2010'!BB27:DA27,Demographics!AY$11:AY$62)","v":-0.21417163277556739},{"$f":"CORREL('Migration 2010'!BC27:DB27,Demographics!AZ$11:AZ$62)","v":3.7906308340225327E-2},{"$f":"CORREL('Migration 2010'!BD27:DC27,Demographics!BA$11:BA$62)","v":0.29952018661188889}]
["Kentucky",{"$f":"CORREL('Migration 2010'!J28:BI28,Demographics!G$11:G$62)","v":-3.2927628673879113E-2},{"$f":"CORREL('Migration 2010'!K28:BJ28,Demographics!H$11:H$62)","v":-8.7229781725866345E-2},{"$f":"CORREL('Migration 2010'!L28:BK28,Demographics!I$11:I$62)","v":-2.4908793289810775E-2},{"$f":"CORREL('Migration 2010'!M28:BL28,Demographics!J$11:J$62)","v":0.21906486406699902},{"$f":"CORREL('Migration 2010'!N28:BM28,Demographics!K$11:K$62)","v":6.1066359675242994E-2},{"$f":"CORREL('Migration 2010'!O28:BN28,Demographics!L$11:L$62)","v":-9.2396409766428697E-2},{"$f":"CORREL('Migration 2010'!P28:BO28,Demographics!M$11:M$62)","v":-1.4986808233390722E-2},{"$f":"CORREL('Migration 2010'!Q28:BP28,Demographics!N$11:N$62)","v":-7.3830243687978372E-2},{"$f":"CORREL('Migration 2010'!R28:BQ28,Demographics!O$11:O$62)","v":-5.1232532744035275E-2},{"$f":"CORREL('Migration 2010'!S28:BR28,Demographics!P$11:P$62)","v":-5.5833281431934938E-3},{"$f":"CORREL('Migration 2010'!T28:BS28,Demographics!Q$11:Q$62)","v":7.2015601622757511E-2},{"$f":"CORREL('Migration 2010'!U28:BT28,Demographics!R$11:R$62)","v":-0.24613577670501496},{"$f":"CORREL('Migration 2010'!V28:BU28,Demographics!S$11:S$62)","v":-3.7881776726985811E-2},{"$f":"CORREL('Migration 2010'!W28:BV28,Demographics!T$11:T$62)","v":-5.6009978755142608E-3},{"$f":"CORREL('Migration 2010'!X28:BW28,Demographics!U$11:U$62)","v":4.7275575297770829E-2},{"$f":"CORREL('Migration 2010'!Y28:BX28,Demographics!V$11:V$62)","v":2.7166263841606031E-2},{"$f":"CORREL('Migration 2010'!Z28:BY28,Demographics!W$11:W$62)","v":3.3061207796340031E-2},{"$f":"CORREL('Migration 2010'!AA28:BZ28,Demographics!X$11:X$62)","v":-3.9519510004367799E-2},{"$f":"CORREL('Migration 2010'!AB28:CA28,Demographics!Y$11:Y$62)","v":-0.12494653110215005},{"$f":"CORREL('Migration 2010'!AC28:CB28,Demographics!Z$11:Z$62)","v":-4.6724754402789268E-2},{"$f":"CORREL('Migration 2010'!AD28:CC28,Demographics!AA$11:AA$62)","v":4.1120481994486056E-2},{"$f":"CORREL('Migration 2010'!AE28:CD28,Demographics!AB$11:AB$62)","v":-9.3919260457437301E-3},{"$f":"CORREL('Migration 2010'!AF28:CE28,Demographics!AC$11:AC$62)","v":0.22492127751373317},{"$f":"CORREL('Migration 2010'!AG28:CF28,Demographics!AD$11:AD$62)","v":-0.14541397494186428},{"$f":"CORREL('Migration 2010'!AH28:CG28,Demographics!AE$11:AE$62)","v":0.30970199430530321},{"$f":"CORREL('Migration 2010'!AI28:CH28,Demographics!AF$11:AF$62)","v":-0.13743676998978108},{"$f":"CORREL('Migration 2010'!AJ28:CI28,Demographics!AG$11:AG$62)","v":-0.12220645015063152},{"$f":"CORREL('Migration 2010'!AK28:CJ28,Demographics!AH$11:AH$62)","v":-0.11871329650313377},{"$f":"CORREL('Migration 2010'!AL28:CK28,Demographics!AI$11:AI$62)","v":-0.13146811450253537},{"$f":"CORREL('Migration 2010'!AM28:CL28,Demographics!AJ$11:AJ$62)","v":0.13298791479630437},{"$f":"CORREL('Migration 2010'!AN28:CM28,Demographics!AK$11:AK$62)","v":-5.1648732094685346E-2},{"$f":"CORREL('Migration 2010'!AO28:CN28,Demographics!AL$11:AL$62)","v":0.40068141261960083},{"$f":"CORREL('Migration 2010'!AP28:CO28,Demographics!AM$11:AM$62)","v":-2.4999227400128853E-2},{"$f":"CORREL('Migration 2010'!AQ28:CP28,Demographics!AN$11:AN$62)","v":7.4321351845926323E-2},{"$f":"CORREL('Migration 2010'!AR28:CQ28,Demographics!AO$11:AO$62)","v":0.65435153020113057},{"$f":"CORREL('Migration 2010'!AS28:CR28,Demographics!AP$11:AP$62)","v":6.3698904653253133E-2},{"$f":"CORREL('Migration 2010'!AT28:CS28,Demographics!AQ$11:AQ$62)","v":-6.8761859123273081E-2},{"$f":"CORREL('Migration 2010'!AU28:CT28,Demographics!AR$11:AR$62)","v":2.9490158730234715E-2},{"$f":"CORREL('Migration 2010'!AV28:CU28,Demographics!AS$11:AS$62)","v":0.20027125532913737},{"$f":"CORREL('Migration 2010'!AW28:CV28,Demographics!AT$11:AT$62)","v":0.17386989188752508},{"$f":"CORREL('Migration 2010'!AX28:CW28,Demographics!AU$11:AU$62)","v":-6.8223148763129973E-2},{"$f":"CORREL('Migration 2010'!AY28:CX28,Demographics!AV$11:AV$62)","v":-0.19579252884693263},{"$f":"CORREL('Migration 2010'!AZ28:CY28,Demographics!AW$11:AW$62)","v":-0.14164653328345214},{"$f":"CORREL('Migration 2010'!BA28:CZ28,Demographics!AX$11:AX$62)","v":0.1629533686717487},{"$f":"CORREL('Migration 2010'!BB28:DA28,Demographics!AY$11:AY$62)","v":3.4694288769457342E-2},{"$f":"CORREL('Migration 2010'!BC28:DB28,Demographics!AZ$11:AZ$62)","v":0.20173019201098552},{"$f":"CORREL('Migration 2010'!BD28:DC28,Demographics!BA$11:BA$62)","v":0.28795685075662841}]
["Louisiana",{"$f":"CORREL('Migration 2010'!J29:BI29,Demographics!G$11:G$62)","v":0.22040023962339247},{"$f":"CORREL('Migration 2010'!K29:BJ29,Demographics!H$11:H$62)","v":-7.9509807547980052E-3},{"$f":"CORREL('Migration 2010'!L29:BK29,Demographics!I$11:I$62)","v":7.6435450677793601E-2},{"$f":"CORREL('Migration 2010'!M29:BL29,Demographics!J$11:J$62)","v":0.1555031622580417},{"$f":"CORREL('Migration 2010'!N29:BM29,Demographics!K$11:K$62)","v":5.343534147214813E-2},{"$f":"CORREL('Migration 2010'!O29:BN29,Demographics!L$11:L$62)","v":-8.5554097727765621E-2},{"$f":"CORREL('Migration 2010'!P29:BO29,Demographics!M$11:M$62)","v":-4.5811884268817819E-2},{"$f":"CORREL('Migration 2010'!Q29:BP29,Demographics!N$11:N$62)","v":-0.1598610969247535},{"$f":"CORREL('Migration 2010'!R29:BQ29,Demographics!O$11:O$62)","v":-2.8869115859221042E-2},{"$f":"CORREL('Migration 2010'!S29:BR29,Demographics!P$11:P$62)","v":-3.9821886292033273E-2},{"$f":"CORREL('Migration 2010'!T29:BS29,Demographics!Q$11:Q$62)","v":-7.6955506343146296E-2},{"$f":"CORREL('Migration 2010'!U29:BT29,Demographics!R$11:R$62)","v":-0.12193420653761737},{"$f":"CORREL('Migration 2010'!V29:BU29,Demographics!S$11:S$62)","v":-2.7237380890819993E-2},{"$f":"CORREL('Migration 2010'!W29:BV29,Demographics!T$11:T$62)","v":0.31516450301467508},{"$f":"CORREL('Migration 2010'!X29:BW29,Demographics!U$11:U$62)","v":-9.3223384118196528E-2},{"$f":"CORREL('Migration 2010'!Y29:BX29,Demographics!V$11:V$62)","v":-0.15977211107285971},{"$f":"CORREL('Migration 2010'!Z29:BY29,Demographics!W$11:W$62)","v":-1.1707860352765612E-2},{"$f":"CORREL('Migration 2010'!AA29:BZ29,Demographics!X$11:X$62)","v":-0.13355505244635585},{"$f":"CORREL('Migration 2010'!AB29:CA29,Demographics!Y$11:Y$62)","v":-7.736709792879308E-2},{"$f":"CORREL('Migration 2010'!AC29:CB29,Demographics!Z$11:Z$62)","v":-9.4255142489705727E-3},{"$f":"CORREL('Migration 2010'!AD29:CC29,Demographics!AA$11:AA$62)","v":-3.3684389075639587E-2},{"$f":"CORREL('Migration 2010'!AE29:CD29,Demographics!AB$11:AB$62)","v":-0.13054048555825068},{"$f":"CORREL('Migration 2010'!AF29:CE29,Demographics!AC$11:AC$62)","v":0.26293547813673634},{"$f":"CORREL('Migration 2010'!AG29:CF29,Demographics!AD$11:AD$62)","v":-6.1110674268143636E-2},{"$f":"CORREL('Migration 2010'!AH29:CG29,Demographics!AE$11:AE$62)","v":-0.13597323238485506},{"$f":"CORREL('Migration 2010'!AI29:CH29,Demographics!AF$11:AF$62)","v":-0.13138227903164443},{"$f":"CORREL('Migration 2010'!AJ29:CI29,Demographics!AG$11:AG$62)","v":-0.19239646136325281},{"$f":"CORREL('Migration 2010'!AK29:CJ29,Demographics!AH$11:AH$62)","v":-0.10369791943086458},{"$f":"CORREL('Migration 2010'!AL29:CK29,Demographics!AI$11:AI$62)","v":-6.2602833470461278E-2},{"$f":"CORREL('Migration 2010'!AM29:CL29,Demographics!AJ$11:AJ$62)","v":1.0710709358912331E-2},{"$f":"CORREL('Migration 2010'!AN29:CM29,Demographics!AK$11:AK$62)","v":0.11851412063204796},{"$f":"CORREL('Migration 2010'!AO29:CN29,Demographics!AL$11:AL$62)","v":-6.8232960680319046E-2},{"$f":"CORREL('Migration 2010'!AP29:CO29,Demographics!AM$11:AM$62)","v":-9.6057357228999066E-2},{"$f":"CORREL('Migration 2010'!AQ29:CP29,Demographics!AN$11:AN$62)","v":0.40142057051365937},{"$f":"CORREL('Migration 2010'!AR29:CQ29,Demographics!AO$11:AO$62)","v":-5.0826739437197406E-2},{"$f":"CORREL('Migration 2010'!AS29:CR29,Demographics!AP$11:AP$62)","v":-1.4912500194592494E-2},{"$f":"CORREL('Migration 2010'!AT29:CS29,Demographics!AQ$11:AQ$62)","v":-1.178979507022912E-2},{"$f":"CORREL('Migration 2010'!AU29:CT29,Demographics!AR$11:AR$62)","v":-6.2484860255825475E-2},{"$f":"CORREL('Migration 2010'!AV29:CU29,Demographics!AS$11:AS$62)","v":0.10428421156805553},{"$f":"CORREL('Migration 2010'!AW29:CV29,Demographics!AT$11:AT$62)","v":0.52121389207820235},{"$f":"CORREL('Migration 2010'!AX29:CW29,Demographics!AU$11:AU$62)","v":-9.3350436287983993E-2},{"$f":"CORREL('Migration 2010'!AY29:CX29,Demographics!AV$11:AV$62)","v":-5.7327865410417414E-2},{"$f":"CORREL('Migration 2010'!AZ29:CY29,Demographics!AW$11:AW$62)","v":-4.5282618138678843E-2},{"$f":"CORREL('Migration 2010'!BA29:CZ29,Demographics!AX$11:AX$62)","v":6.1193138672554472E-2},{"$f":"CORREL('Migration 2010'!BB29:DA29,Demographics!AY$11:AY$62)","v":0.13203558798620091},{"$f":"CORREL('Migration 2010'!BC29:DB29,Demographics!AZ$11:AZ$62)","v":-5.5543172500872498E-2},{"$f":"CORREL('Migration 2010'!BD29:DC29,Demographics!BA$11:BA$62)","v":0.25010808663115269}]
["Maine",{"$f":"CORREL('Migration 2010'!J30:BI30,Demographics!G$11:G$62)","v":-0.41885504685907299},{"$f":"CORREL('Migration 2010'!K30:BJ30,Demographics!H$11:H$62)","v":3.5619373611710428E-2},{"$f":"CORREL('Migration 2010'!L30:BK30,Demographics!I$11:I$62)","v":0.10806937403871267},{"$f":"CORREL('Migration 2010'!M30:BL30,Demographics!J$11:J$62)","v":-6.1377057805824073E-2},{"$f":"CORREL('Migration 2010'!N30:BM30,Demographics!K$11:K$62)","v":0.18945084998219586},{"$f":"CORREL('Migration 2010'!O30:BN30,Demographics!L$11:L$62)","v":6.4559566632936077E-2},{"$f":"CORREL('Migration 2010'!P30:BO30,Demographics!M$11:M$62)","v":-7.9587440051866562E-2},{"$f":"CORREL('Migration 2010'!Q30:BP30,Demographics!N$11:N$62)","v":-0.13925014208787451},{"$f":"CORREL('Migration 2010'!R30:BQ30,Demographics!O$11:O$62)","v":0.37507461093435507},{"$f":"CORREL('Migration 2010'!S30:BR30,Demographics!P$11:P$62)","v":-6.6073916673714136E-2},{"$f":"CORREL('Migration 2010'!T30:BS30,Demographics!Q$11:Q$62)","v":-0.22511207403572808},{"$f":"CORREL('Migration 2010'!U30:BT30,Demographics!R$11:R$62)","v":-4.5723492172131099E-2},{"$f":"CORREL('Migration 2010'!V30:BU30,Demographics!S$11:S$62)","v":5.7078415612249619E-2},{"$f":"CORREL('Migration 2010'!W30:BV30,Demographics!T$11:T$62)","v":-4.176530337388306E-2},{"$f":"CORREL('Migration 2010'!X30:BW30,Demographics!U$11:U$62)","v":-0.16023372551253995},{"$f":"CORREL('Migration 2010'!Y30:BX30,Demographics!V$11:V$62)","v":-8.8547348011939836E-2},{"$f":"CORREL('Migration 2010'!Z30:BY30,Demographics!W$11:W$62)","v":0.14946479559976944},{"$f":"CORREL('Migration 2010'!AA30:BZ30,Demographics!X$11:X$62)","v":0.2670052755138318},{"$f":"CORREL('Migration 2010'!AB30:CA30,Demographics!Y$11:Y$62)","v":-0.24455307223690587},{"$f":"CORREL('Migration 2010'!AC30:CB30,Demographics!Z$11:Z$62)","v":0.15854919184730026},{"$f":"CORREL('Migration 2010'!AD30:CC30,Demographics!AA$11:AA$62)","v":-0.20115993795589801},{"$f":"CORREL('Migration 2010'!AE30:CD30,Demographics!AB$11:AB$62)","v":-0.10435579529512044},{"$f":"CORREL('Migration 2010'!AF30:CE30,Demographics!AC$11:AC$62)","v":0.22862052288928558},{"$f":"CORREL('Migration 2010'!AG30:CF30,Demographics!AD$11:AD$62)","v":-2.8696894975547647E-2},{"$f":"CORREL('Migration 2010'!AH30:CG30,Demographics!AE$11:AE$62)","v":1.4675261840783854E-2},{"$f":"CORREL('Migration 2010'!AI30:CH30,Demographics!AF$11:AF$62)","v":0.15206700173091217},{"$f":"CORREL('Migration 2010'!AJ30:CI30,Demographics!AG$11:AG$62)","v":-0.15905911066586287},{"$f":"CORREL('Migration 2010'!AK30:CJ30,Demographics!AH$11:AH$62)","v":7.9708858604616767E-2},{"$f":"CORREL('Migration 2010'!AL30:CK30,Demographics!AI$11:AI$62)","v":7.228112123359022E-2},{"$f":"CORREL('Migration 2010'!AM30:CL30,Demographics!AJ$11:AJ$62)","v":8.7285041436884342E-3},{"$f":"CORREL('Migration 2010'!AN30:CM30,Demographics!AK$11:AK$62)","v":0.29126628752139094},{"$f":"CORREL('Migration 2010'!AO30:CN30,Demographics!AL$11:AL$62)","v":-9.7653810062275741E-3},{"$f":"CORREL('Migration 2010'!AP30:CO30,Demographics!AM$11:AM$62)","v":-0.15315946340277353},{"$f":"CORREL('Migration 2010'!AQ30:CP30,Demographics!AN$11:AN$62)","v":-7.946180472024722E-2},{"$f":"CORREL('Migration 2010'!AR30:CQ30,Demographics!AO$11:AO$62)","v":-4.5842339355450533E-2},{"$f":"CORREL('Migration 2010'!AS30:CR30,Demographics!AP$11:AP$62)","v":6.326126077204261E-2},{"$f":"CORREL('Migration 2010'!AT30:CS30,Demographics!AQ$11:AQ$62)","v":-3.8204702882825618E-2},{"$f":"CORREL('Migration 2010'!AU30:CT30,Demographics!AR$11:AR$62)","v":-0.11231966299537961},{"$f":"CORREL('Migration 2010'!AV30:CU30,Demographics!AS$11:AS$62)","v":-0.17315567376489852},{"$f":"CORREL('Migration 2010'!AW30:CV30,Demographics!AT$11:AT$62)","v":0.45383701262191634},{"$f":"CORREL('Migration 2010'!AX30:CW30,Demographics!AU$11:AU$62)","v":-4.2253004014975774E-2},{"$f":"CORREL('Migration 2010'!AY30:CX30,Demographics!AV$11:AV$62)","v":-0.12706838208605203},{"$f":"CORREL('Migration 2010'!AZ30:CY30,Demographics!AW$11:AW$62)","v":-0.22095978634355412},{"$f":"CORREL('Migration 2010'!BA30:CZ30,Demographics!AX$11:AX$62)","v":0.17793736580390437},{"$f":"CORREL('Migration 2010'!BB30:DA30,Demographics!AY$11:AY$62)","v":-0.15530350394501621},{"$f":"CORREL('Migration 2010'!BC30:DB30,Demographics!AZ$11:AZ$62)","v":-1.6515829384104546E-2},{"$f":"CORREL('Migration 2010'!BD30:DC30,Demographics!BA$11:BA$62)","v":0.23381688279619109}]
["Maryland",{"$f":"CORREL('Migration 2010'!J31:BI31,Demographics!G$11:G$62)","v":-0.15164904008282892},{"$f":"CORREL('Migration 2010'!K31:BJ31,Demographics!H$11:H$62)","v":-0.33489795448220594},{"$f":"CORREL('Migration 2010'!L31:BK31,Demographics!I$11:I$62)","v":-0.23842762577786333},{"$f":"CORREL('Migration 2010'!M31:BL31,Demographics!J$11:J$62)","v":-0.13466335822636027},{"$f":"CORREL('Migration 2010'!N31:BM31,Demographics!K$11:K$62)","v":7.5640575782086508E-2},{"$f":"CORREL('Migration 2010'!O31:BN31,Demographics!L$11:L$62)","v":-6.0529242987174818E-2},{"$f":"CORREL('Migration 2010'!P31:BO31,Demographics!M$11:M$62)","v":0.18642500746268348},{"$f":"CORREL('Migration 2010'!Q31:BP31,Demographics!N$11:N$62)","v":-6.573243826075284E-2},{"$f":"CORREL('Migration 2010'!R31:BQ31,Demographics!O$11:O$62)","v":-7.5501778219535715E-2},{"$f":"CORREL('Migration 2010'!S31:BR31,Demographics!P$11:P$62)","v":4.6281374321048209E-2},{"$f":"CORREL('Migration 2010'!T31:BS31,Demographics!Q$11:Q$62)","v":-4.7940168797595155E-2},{"$f":"CORREL('Migration 2010'!U31:BT31,Demographics!R$11:R$62)","v":0.14235663813387936},{"$f":"CORREL('Migration 2010'!V31:BU31,Demographics!S$11:S$62)","v":-1.5641252414735168E-2},{"$f":"CORREL('Migration 2010'!W31:BV31,Demographics!T$11:T$62)","v":-0.11598058588400564},{"$f":"CORREL('Migration 2010'!X31:BW31,Demographics!U$11:U$62)","v":5.7101964149830819E-2},{"$f":"CORREL('Migration 2010'!Y31:BX31,Demographics!V$11:V$62)","v":-0.12664123940358371},{"$f":"CORREL('Migration 2010'!Z31:BY31,Demographics!W$11:W$62)","v":0.15381013769929094},{"$f":"CORREL('Migration 2010'!AA31:BZ31,Demographics!X$11:X$62)","v":-6.984438695037147E-2},{"$f":"CORREL('Migration 2010'!AB31:CA31,Demographics!Y$11:Y$62)","v":4.7477032513908522E-2},{"$f":"CORREL('Migration 2010'!AC31:CB31,Demographics!Z$11:Z$62)","v":-0.10028233979557882},{"$f":"CORREL('Migration 2010'!AD31:CC31,Demographics!AA$11:AA$62)","v":-5.750967099299116E-2},{"$f":"CORREL('Migration 2010'!AE31:CD31,Demographics!AB$11:AB$62)","v":-4.4808042671213029E-2},{"$f":"CORREL('Migration 2010'!AF31:CE31,Demographics!AC$11:AC$62)","v":-2.4401218635466066E-3},{"$f":"CORREL('Migration 2010'!AG31:CF31,Demographics!AD$11:AD$62)","v":-9.9894826480069459E-3},{"$f":"CORREL('Migration 2010'!AH31:CG31,Demographics!AE$11:AE$62)","v":-2.7379450376846602E-2},{"$f":"CORREL('Migration 2010'!AI31:CH31,Demographics!AF$11:AF$62)","v":0.25921747350671853},{"$f":"CORREL('Migration 2010'!AJ31:CI31,Demographics!AG$11:AG$62)","v":0.25877564628790045},{"$f":"CORREL('Migration 2010'!AK31:CJ31,Demographics!AH$11:AH$62)","v":-0.14109651044101904},{"$f":"CORREL('Migration 2010'!AL31:CK31,Demographics!AI$11:AI$62)","v":0.17470469511512002},{"$f":"CORREL('Migration 2010'!AM31:CL31,Demographics!AJ$11:AJ$62)","v":0.12242327560121131},{"$f":"CORREL('Migration 2010'!AN31:CM31,Demographics!AK$11:AK$62)","v":-0.13761479471045862},{"$f":"CORREL('Migration 2010'!AO31:CN31,Demographics!AL$11:AL$62)","v":-9.0047417616998388E-2},{"$f":"CORREL('Migration 2010'!AP31:CO31,Demographics!AM$11:AM$62)","v":-0.1206681238674959},{"$f":"CORREL('Migration 2010'!AQ31:CP31,Demographics!AN$11:AN$62)","v":0.14306094237483991},{"$f":"CORREL('Migration 2010'!AR31:CQ31,Demographics!AO$11:AO$62)","v":1.3742874488344152E-2},{"$f":"CORREL('Migration 2010'!AS31:CR31,Demographics!AP$11:AP$62)","v":0.71068777740057609},{"$f":"CORREL('Migration 2010'!AT31:CS31,Demographics!AQ$11:AQ$62)","v":-2.5544090003225949E-2},{"$f":"CORREL('Migration 2010'!AU31:CT31,Demographics!AR$11:AR$62)","v":0.25965296240996844},{"$f":"CORREL('Migration 2010'!AV31:CU31,Demographics!AS$11:AS$62)","v":0.1724165775134697},{"$f":"CORREL('Migration 2010'!AW31:CV31,Demographics!AT$11:AT$62)","v":8.8800055313005694E-2},{"$f":"CORREL('Migration 2010'!AX31:CW31,Demographics!AU$11:AU$62)","v":-7.4477030402216628E-3},{"$f":"CORREL('Migration 2010'!AY31:CX31,Demographics!AV$11:AV$62)","v":-0.11752490067566269},{"$f":"CORREL('Migration 2010'!AZ31:CY31,Demographics!AW$11:AW$62)","v":-0.10502427450930099},{"$f":"CORREL('Migration 2010'!BA31:CZ31,Demographics!AX$11:AX$62)","v":2.7788899973357626E-2},{"$f":"CORREL('Migration 2010'!BB31:DA31,Demographics!AY$11:AY$62)","v":4.7107544382724763E-2},{"$f":"CORREL('Migration 2010'!BC31:DB31,Demographics!AZ$11:AZ$62)","v":0.74551545458024304},{"$f":"CORREL('Migration 2010'!BD31:DC31,Demographics!BA$11:BA$62)","v":2.5645760683181286E-2}]
["Massachusetts",{"$f":"CORREL('Migration 2010'!J32:BI32,Demographics!G$11:G$62)","v":-0.35263525058737988},{"$f":"CORREL('Migration 2010'!K32:BJ32,Demographics!H$11:H$62)","v":9.3626585485921746E-3},{"$f":"CORREL('Migration 2010'!L32:BK32,Demographics!I$11:I$62)","v":-2.561089938226244E-2},{"$f":"CORREL('Migration 2010'!M32:BL32,Demographics!J$11:J$62)","v":-0.1690071103545121},{"$f":"CORREL('Migration 2010'!N32:BM32,Demographics!K$11:K$62)","v":0.12686064527206997},{"$f":"CORREL('Migration 2010'!O32:BN32,Demographics!L$11:L$62)","v":-2.1640620168630613E-3},{"$f":"CORREL('Migration 2010'!P32:BO32,Demographics!M$11:M$62)","v":1.1959393016622636E-2},{"$f":"CORREL('Migration 2010'!Q32:BP32,Demographics!N$11:N$62)","v":-0.13409146323573634},{"$f":"CORREL('Migration 2010'!R32:BQ32,Demographics!O$11:O$62)","v":0.12677000603693292},{"$f":"CORREL('Migration 2010'!S32:BR32,Demographics!P$11:P$62)","v":6.8912233129043337E-3},{"$f":"CORREL('Migration 2010'!T32:BS32,Demographics!Q$11:Q$62)","v":-0.16174926733619743},{"$f":"CORREL('Migration 2010'!U32:BT32,Demographics!R$11:R$62)","v":-5.125790633861085E-3},{"$f":"CORREL('Migration 2010'!V32:BU32,Demographics!S$11:S$62)","v":5.5423381551235107E-2},{"$f":"CORREL('Migration 2010'!W32:BV32,Demographics!T$11:T$62)","v":-0.10583777095170427},{"$f":"CORREL('Migration 2010'!X32:BW32,Demographics!U$11:U$62)","v":-0.15065091170094608},{"$f":"CORREL('Migration 2010'!Y32:BX32,Demographics!V$11:V$62)","v":-0.29179504436502712},{"$f":"CORREL('Migration 2010'!Z32:BY32,Demographics!W$11:W$62)","v":5.5158505445825477E-2},{"$f":"CORREL('Migration 2010'!AA32:BZ32,Demographics!X$11:X$62)","v":-6.8856472180522432E-2},{"$f":"CORREL('Migration 2010'!AB32:CA32,Demographics!Y$11:Y$62)","v":-8.2808356124473584E-2},{"$f":"CORREL('Migration 2010'!AC32:CB32,Demographics!Z$11:Z$62)","v":0.1900215742465575},{"$f":"CORREL('Migration 2010'!AD32:CC32,Demographics!AA$11:AA$62)","v":1.3480075560932092E-2},{"$f":"CORREL('Migration 2010'!AE32:CD32,Demographics!AB$11:AB$62)","v":7.7040118152195275E-2},{"$f":"CORREL('Migration 2010'!AF32:CE32,Demographics!AC$11:AC$62)","v":9.5180175916243462E-2},{"$f":"CORREL('Migration 2010'!AG32:CF32,Demographics!AD$11:AD$62)","v":7.7954580976287685E-2},{"$f":"CORREL('Migration 2010'!AH32:CG32,Demographics!AE$11:AE$62)","v":-0.12807525448432297},{"$f":"CORREL('Migration 2010'!AI32:CH32,Demographics!AF$11:AF$62)","v":0.10828576750974415},{"$f":"CORREL('Migration 2010'!AJ32:CI32,Demographics!AG$11:AG$62)","v":8.3230993453028132E-2},{"$f":"CORREL('Migration 2010'!AK32:CJ32,Demographics!AH$11:AH$62)","v":-1.4786802308069986E-2},{"$f":"CORREL('Migration 2010'!AL32:CK32,Demographics!AI$11:AI$62)","v":0.32230662025602413},{"$f":"CORREL('Migration 2010'!AM32:CL32,Demographics!AJ$11:AJ$62)","v":4.1957084281831071E-2},{"$f":"CORREL('Migration 2010'!AN32:CM32,Demographics!AK$11:AK$62)","v":0.20902573373353439},{"$f":"CORREL('Migration 2010'!AO32:CN32,Demographics!AL$11:AL$62)","v":-0.10887685340844443},{"$f":"CORREL('Migration 2010'!AP32:CO32,Demographics!AM$11:AM$62)","v":-0.14557086664528532},{"$f":"CORREL('Migration 2010'!AQ32:CP32,Demographics!AN$11:AN$62)","v":0.2174887167045535},{"$f":"CORREL('Migration 2010'!AR32:CQ32,Demographics!AO$11:AO$62)","v":-5.3741362509324327E-2},{"$f":"CORREL('Migration 2010'!AS32:CR32,Demographics!AP$11:AP$62)","v":0.29071041057778868},{"$f":"CORREL('Migration 2010'!AT32:CS32,Demographics!AQ$11:AQ$62)","v":-6.3805601683518415E-3},{"$f":"CORREL('Migration 2010'!AU32:CT32,Demographics!AR$11:AR$62)","v":-3.9214149947467448E-3},{"$f":"CORREL('Migration 2010'!AV32:CU32,Demographics!AS$11:AS$62)","v":6.8152321235124564E-3},{"$f":"CORREL('Migration 2010'!AW32:CV32,Demographics!AT$11:AT$62)","v":0.38017829601984687},{"$f":"CORREL('Migration 2010'!AX32:CW32,Demographics!AU$11:AU$62)","v":-0.13906263462257173},{"$f":"CORREL('Migration 2010'!AY32:CX32,Demographics!AV$11:AV$62)","v":-5.3365471077934684E-2},{"$f":"CORREL('Migration 2010'!AZ32:CY32,Demographics!AW$11:AW$62)","v":-0.15115521963547418},{"$f":"CORREL('Migration 2010'!BA32:CZ32,Demographics!AX$11:AX$62)","v":0.18549457221467039},{"$f":"CORREL('Migration 2010'!BB32:DA32,Demographics!AY$11:AY$62)","v":-0.15456862782814101},{"$f":"CORREL('Migration 2010'!BC32:DB32,Demographics!AZ$11:AZ$62)","v":0.18672118485057013},{"$f":"CORREL('Migration 2010'!BD32:DC32,Demographics!BA$11:BA$62)","v":0.36354429689237966}]
["Michigan",{"$f":"CORREL('Migration 2010'!J33:BI33,Demographics!G$11:G$62)","v":-3.9502355061055594E-2},{"$f":"CORREL('Migration 2010'!K33:BJ33,Demographics!H$11:H$62)","v":1.7544068218277788E-2},{"$f":"CORREL('Migration 2010'!L33:BK33,Demographics!I$11:I$62)","v":9.5884231682661178E-2},{"$f":"CORREL('Migration 2010'!M33:BL33,Demographics!J$11:J$62)","v":0.10467017158359151},{"$f":"CORREL('Migration 2010'!N33:BM33,Demographics!K$11:K$62)","v":7.8669579441267068E-2},{"$f":"CORREL('Migration 2010'!O33:BN33,Demographics!L$11:L$62)","v":-7.8546014603356154E-2},{"$f":"CORREL('Migration 2010'!P33:BO33,Demographics!M$11:M$62)","v":-8.7737198413288461E-2},{"$f":"CORREL('Migration 2010'!Q33:BP33,Demographics!N$11:N$62)","v":-6.1601485308636982E-2},{"$f":"CORREL('Migration 2010'!R33:BQ33,Demographics!O$11:O$62)","v":-1.8541797724135722E-2},{"$f":"CORREL('Migration 2010'!S33:BR33,Demographics!P$11:P$62)","v":-7.0345360618415453E-2},{"$f":"CORREL('Migration 2010'!T33:BS33,Demographics!Q$11:Q$62)","v":4.5113906729737696E-2},{"$f":"CORREL('Migration 2010'!U33:BT33,Demographics!R$11:R$62)","v":-0.15298685725301389},{"$f":"CORREL('Migration 2010'!V33:BU33,Demographics!S$11:S$62)","v":-0.20035926616538843},{"$f":"CORREL('Migration 2010'!W33:BV33,Demographics!T$11:T$62)","v":-5.2400992413932847E-2},{"$f":"CORREL('Migration 2010'!X33:BW33,Demographics!U$11:U$62)","v":-7.2573655934146858E-2},{"$f":"CORREL('Migration 2010'!Y33:BX33,Demographics!V$11:V$62)","v":-1.487383891589085E-2},{"$f":"CORREL('Migration 2010'!Z33:BY33,Demographics!W$11:W$62)","v":-5.3378340197564621E-2},{"$f":"CORREL('Migration 2010'!AA33:BZ33,Demographics!X$11:X$62)","v":6.3571843476340829E-4},{"$f":"CORREL('Migration 2010'!AB33:CA33,Demographics!Y$11:Y$62)","v":-0.15414194016905219},{"$f":"CORREL('Migration 2010'!AC33:CB33,Demographics!Z$11:Z$62)","v":7.0357507337687863E-2},{"$f":"CORREL('Migration 2010'!AD33:CC33,Demographics!AA$11:AA$62)","v":3.9953617353189981E-2},{"$f":"CORREL('Migration 2010'!AE33:CD33,Demographics!AB$11:AB$62)","v":-1.5353205649012103E-2},{"$f":"CORREL('Migration 2010'!AF33:CE33,Demographics!AC$11:AC$62)","v":0.1843630076033736},{"$f":"CORREL('Migration 2010'!AG33:CF33,Demographics!AD$11:AD$62)","v":-0.15090064901611325},{"$f":"CORREL('Migration 2010'!AH33:CG33,Demographics!AE$11:AE$62)","v":0.21631843957506092},{"$f":"CORREL('Migration 2010'!AI33:CH33,Demographics!AF$11:AF$62)","v":-0.22664293404170477},{"$f":"CORREL('Migration 2010'!AJ33:CI33,Demographics!AG$11:AG$62)","v":-0.13365403122115671},{"$f":"CORREL('Migration 2010'!AK33:CJ33,Demographics!AH$11:AH$62)","v":-3.553188422857631E-2},{"$f":"CORREL('Migration 2010'!AL33:CK33,Demographics!AI$11:AI$62)","v":-4.5718028926048482E-2},{"$f":"CORREL('Migration 2010'!AM33:CL33,Demographics!AJ$11:AJ$62)","v":8.6302033336299891E-2},{"$f":"CORREL('Migration 2010'!AN33:CM33,Demographics!AK$11:AK$62)","v":1.9704147378653582E-2},{"$f":"CORREL('Migration 2010'!AO33:CN33,Demographics!AL$11:AL$62)","v":0.31264014104585064},{"$f":"CORREL('Migration 2010'!AP33:CO33,Demographics!AM$11:AM$62)","v":-1.7799276382313319E-2},{"$f":"CORREL('Migration 2010'!AQ33:CP33,Demographics!AN$11:AN$62)","v":0.16587393328421188},{"$f":"CORREL('Migration 2010'!AR33:CQ33,Demographics!AO$11:AO$62)","v":0.40520585517130753},{"$f":"CORREL('Migration 2010'!AS33:CR33,Demographics!AP$11:AP$62)","v":5.4638500494683323E-4},{"$f":"CORREL('Migration 2010'!AT33:CS33,Demographics!AQ$11:AQ$62)","v":-1.1704085296226557E-2},{"$f":"CORREL('Migration 2010'!AU33:CT33,Demographics!AR$11:AR$62)","v":-8.1207834423836556E-2},{"$f":"CORREL('Migration 2010'!AV33:CU33,Demographics!AS$11:AS$62)","v":0.21421524416502266},{"$f":"CORREL('Migration 2010'!AW33:CV33,Demographics!AT$11:AT$62)","v":0.33225862252495086},{"$f":"CORREL('Migration 2010'!AX33:CW33,Demographics!AU$11:AU$62)","v":-7.6339275600981653E-3},{"$f":"CORREL('Migration 2010'!AY33:CX33,Demographics!AV$11:AV$62)","v":-0.1928142637301391},{"$f":"CORREL('Migration 2010'!AZ33:CY33,Demographics!AW$11:AW$62)","v":9.5473908958642641E-3},{"$f":"CORREL('Migration 2010'!BA33:CZ33,Demographics!AX$11:AX$62)","v":0.19188036588012922},{"$f":"CORREL('Migration 2010'!BB33:DA33,Demographics!AY$11:AY$62)","v":-3.977283803399749E-2},{"$f":"CORREL('Migration 2010'!BC33:DB33,Demographics!AZ$11:AZ$62)","v":0.13901498006502308},{"$f":"CORREL('Migration 2010'!BD33:DC33,Demographics!BA$11:BA$62)","v":0.24986973704990756}]
["Minnesota",{"$f":"CORREL('Migration 2010'!J34:BI34,Demographics!G$11:G$62)","v":5.4503028133209903E-2},{"$f":"CORREL('Migration 2010'!K34:BJ34,Demographics!H$11:H$62)","v":-0.1115780071149855},{"$f":"CORREL('Migration 2010'!L34:BK34,Demographics!I$11:I$62)","v":-1.9786303255503894E-2},{"$f":"CORREL('Migration 2010'!M34:BL34,Demographics!J$11:J$62)","v":-3.8270640533792706E-2},{"$f":"CORREL('Migration 2010'!N34:BM34,Demographics!K$11:K$62)","v":6.5838197353941235E-3},{"$f":"CORREL('Migration 2010'!O34:BN34,Demographics!L$11:L$62)","v":-0.1422218081242331},{"$f":"CORREL('Migration 2010'!P34:BO34,Demographics!M$11:M$62)","v":-0.10613914257960157},{"$f":"CORREL('Migration 2010'!Q34:BP34,Demographics!N$11:N$62)","v":-0.13845970983921418},{"$f":"CORREL('Migration 2010'!R34:BQ34,Demographics!O$11:O$62)","v":-6.3907836038821053E-2},{"$f":"CORREL('Migration 2010'!S34:BR34,Demographics!P$11:P$62)","v":-4.8508435783533886E-2},{"$f":"CORREL('Migration 2010'!T34:BS34,Demographics!Q$11:Q$62)","v":3.897528791927557E-2},{"$f":"CORREL('Migration 2010'!U34:BT34,Demographics!R$11:R$62)","v":-2.9707553623688987E-2},{"$f":"CORREL('Migration 2010'!V34:BU34,Demographics!S$11:S$62)","v":-0.20269707751011623},{"$f":"CORREL('Migration 2010'!W34:BV34,Demographics!T$11:T$62)","v":4.2063155774206315E-2},{"$f":"CORREL('Migration 2010'!X34:BW34,Demographics!U$11:U$62)","v":-7.2512949223228554E-2},{"$f":"CORREL('Migration 2010'!Y34:BX34,Demographics!V$11:V$62)","v":0.11606678240957244},{"$f":"CORREL('Migration 2010'!Z34:BY34,Demographics!W$11:W$62)","v":-0.11596524839033236},{"$f":"CORREL('Migration 2010'!AA34:BZ34,Demographics!X$11:X$62)","v":0.17832754112277582},{"$f":"CORREL('Migration 2010'!AB34:CA34,Demographics!Y$11:Y$62)","v":-0.24591473946629414},{"$f":"CORREL('Migration 2010'!AC34:CB34,Demographics!Z$11:Z$62)","v":9.0307071182168103E-2},{"$f":"CORREL('Migration 2010'!AD34:CC34,Demographics!AA$11:AA$62)","v":8.8091969739808165E-2},{"$f":"CORREL('Migration 2010'!AE34:CD34,Demographics!AB$11:AB$62)","v":0.11548236786569939},{"$f":"CORREL('Migration 2010'!AF34:CE34,Demographics!AC$11:AC$62)","v":-2.6795669014197332E-2},{"$f":"CORREL('Migration 2010'!AG34:CF34,Demographics!AD$11:AD$62)","v":-0.13661584771621763},{"$f":"CORREL('Migration 2010'!AH34:CG34,Demographics!AE$11:AE$62)","v":1.8127119156153112E-2},{"$f":"CORREL('Migration 2010'!AI34:CH34,Demographics!AF$11:AF$62)","v":-0.2509071703418827},{"$f":"CORREL('Migration 2010'!AJ34:CI34,Demographics!AG$11:AG$62)","v":6.7023806693263022E-2},{"$f":"CORREL('Migration 2010'!AK34:CJ34,Demographics!AH$11:AH$62)","v":6.4826560474420935E-3},{"$f":"CORREL('Migration 2010'!AL34:CK34,Demographics!AI$11:AI$62)","v":-1.8003947353769868E-3},{"$f":"CORREL('Migration 2010'!AM34:CL34,Demographics!AJ$11:AJ$62)","v":-2.9483632640967348E-2},{"$f":"CORREL('Migration 2010'!AN34:CM34,Demographics!AK$11:AK$62)","v":-4.3815741024971787E-2},{"$f":"CORREL('Migration 2010'!AO34:CN34,Demographics!AL$11:AL$62)","v":-2.6508578939381067E-2},{"$f":"CORREL('Migration 2010'!AP34:CO34,Demographics!AM$11:AM$62)","v":-2.4398579607459898E-2},{"$f":"CORREL('Migration 2010'!AQ34:CP34,Demographics!AN$11:AN$62)","v":-1.3562602797604139E-2},{"$f":"CORREL('Migration 2010'!AR34:CQ34,Demographics!AO$11:AO$62)","v":-0.10760941728561249},{"$f":"CORREL('Migration 2010'!AS34:CR34,Demographics!AP$11:AP$62)","v":7.059305599542892E-3},{"$f":"CORREL('Migration 2010'!AT34:CS34,Demographics!AQ$11:AQ$62)","v":4.6827113775697446E-3},{"$f":"CORREL('Migration 2010'!AU34:CT34,Demographics!AR$11:AR$62)","v":4.2819865927843731E-2},{"$f":"CORREL('Migration 2010'!AV34:CU34,Demographics!AS$11:AS$62)","v":0.20167166001597717},{"$f":"CORREL('Migration 2010'!AW34:CV34,Demographics!AT$11:AT$62)","v":8.4045472450381756E-2},{"$f":"CORREL('Migration 2010'!AX34:CW34,Demographics!AU$11:AU$62)","v":0.11250459429274032},{"$f":"CORREL('Migration 2010'!AY34:CX34,Demographics!AV$11:AV$62)","v":-0.17927419848910278},{"$f":"CORREL('Migration 2010'!AZ34:CY34,Demographics!AW$11:AW$62)","v":0.20871751918454631},{"$f":"CORREL('Migration 2010'!BA34:CZ34,Demographics!AX$11:AX$62)","v":8.4810379655944346E-2},{"$f":"CORREL('Migration 2010'!BB34:DA34,Demographics!AY$11:AY$62)","v":6.6036224951680919E-2},{"$f":"CORREL('Migration 2010'!BC34:DB34,Demographics!AZ$11:AZ$62)","v":0.1791072892508381},{"$f":"CORREL('Migration 2010'!BD34:DC34,Demographics!BA$11:BA$62)","v":4.8690809231513824E-2}]
["Mississippi",{"$f":"CORREL('Migration 2010'!J35:BI35,Demographics!G$11:G$62)","v":0.12375463989290954},{"$f":"CORREL('Migration 2010'!K35:BJ35,Demographics!H$11:H$62)","v":-1.3540517226591615E-2},{"$f":"CORREL('Migration 2010'!L35:BK35,Demographics!I$11:I$62)","v":-6.7617414711556231E-2},{"$f":"CORREL('Migration 2010'!M35:BL35,Demographics!J$11:J$62)","v":0.19727682218297951},{"$f":"CORREL('Migration 2010'!N35:BM35,Demographics!K$11:K$62)","v":0.14591737524901122},{"$f":"CORREL('Migration 2010'!O35:BN35,Demographics!L$11:L$62)","v":-0.14248488966994288},{"$f":"CORREL('Migration 2010'!P35:BO35,Demographics!M$11:M$62)","v":0.10826247717500165},{"$f":"CORREL('Migration 2010'!Q35:BP35,Demographics!N$11:N$62)","v":0.32587619659537032},{"$f":"CORREL('Migration 2010'!R35:BQ35,Demographics!O$11:O$62)","v":-6.4661690104065306E-2},{"$f":"CORREL('Migration 2010'!S35:BR35,Demographics!P$11:P$62)","v":-3.695900549448658E-2},{"$f":"CORREL('Migration 2010'!T35:BS35,Demographics!Q$11:Q$62)","v":4.2160890110740291E-2},{"$f":"CORREL('Migration 2010'!U35:BT35,Demographics!R$11:R$62)","v":-0.25633590645010879},{"$f":"CORREL('Migration 2010'!V35:BU35,Demographics!S$11:S$62)","v":0.19811335797114724},{"$f":"CORREL('Migration 2010'!W35:BV35,Demographics!T$11:T$62)","v":0.11264133016225478},{"$f":"CORREL('Migration 2010'!X35:BW35,Demographics!U$11:U$62)","v":0.26375984955234621},{"$f":"CORREL('Migration 2010'!Y35:BX35,Demographics!V$11:V$62)","v":-7.7310274781389896E-2},{"$f":"CORREL('Migration 2010'!Z35:BY35,Demographics!W$11:W$62)","v":-8.2983054300655723E-2},{"$f":"CORREL('Migration 2010'!AA35:BZ35,Demographics!X$11:X$62)","v":-0.138871819637199},{"$f":"CORREL('Migration 2010'!AB35:CA35,Demographics!Y$11:Y$62)","v":-7.4596863684909129E-2},{"$f":"CORREL('Migration 2010'!AC35:CB35,Demographics!Z$11:Z$62)","v":1.8057407291846645E-2},{"$f":"CORREL('Migration 2010'!AD35:CC35,Demographics!AA$11:AA$62)","v":-3.1211526696831901E-2},{"$f":"CORREL('Migration 2010'!AE35:CD35,Demographics!AB$11:AB$62)","v":0.1453361097376234},{"$f":"CORREL('Migration 2010'!AF35:CE35,Demographics!AC$11:AC$62)","v":0.35069490467292624},{"$f":"CORREL('Migration 2010'!AG35:CF35,Demographics!AD$11:AD$62)","v":-0.13333126935159567},{"$f":"CORREL('Migration 2010'!AH35:CG35,Demographics!AE$11:AE$62)","v":-2.1486428030933594E-2},{"$f":"CORREL('Migration 2010'!AI35:CH35,Demographics!AF$11:AF$62)","v":-0.20711889244416123},{"$f":"CORREL('Migration 2010'!AJ35:CI35,Demographics!AG$11:AG$62)","v":-0.12711233062020011},{"$f":"CORREL('Migration 2010'!AK35:CJ35,Demographics!AH$11:AH$62)","v":-0.17132960578646139},{"$f":"CORREL('Migration 2010'!AL35:CK35,Demographics!AI$11:AI$62)","v":-4.1491396780476482E-2},{"$f":"CORREL('Migration 2010'!AM35:CL35,Demographics!AJ$11:AJ$62)","v":0.18849973889136498},{"$f":"CORREL('Migration 2010'!AN35:CM35,Demographics!AK$11:AK$62)","v":-0.10233572880858249},{"$f":"CORREL('Migration 2010'!AO35:CN35,Demographics!AL$11:AL$62)","v":-1.078153375980211E-2},{"$f":"CORREL('Migration 2010'!AP35:CO35,Demographics!AM$11:AM$62)","v":-2.0941748734866886E-2},{"$f":"CORREL('Migration 2010'!AQ35:CP35,Demographics!AN$11:AN$62)","v":0.36415473767692469},{"$f":"CORREL('Migration 2010'!AR35:CQ35,Demographics!AO$11:AO$62)","v":-3.2272558539662155E-2},{"$f":"CORREL('Migration 2010'!AS35:CR35,Demographics!AP$11:AP$62)","v":-5.3773185038000319E-2},{"$f":"CORREL('Migration 2010'!AT35:CS35,Demographics!AQ$11:AQ$62)","v":-6.6774738097851075E-2},{"$f":"CORREL('Migration 2010'!AU35:CT35,Demographics!AR$11:AR$62)","v":-0.11262682119202831},{"$f":"CORREL('Migration 2010'!AV35:CU35,Demographics!AS$11:AS$62)","v":0.19013494793397481},{"$f":"CORREL('Migration 2010'!AW35:CV35,Demographics!AT$11:AT$62)","v":0.27698756814388481},{"$f":"CORREL('Migration 2010'!AX35:CW35,Demographics!AU$11:AU$62)","v":-0.10774264435473151},{"$f":"CORREL('Migration 2010'!AY35:CX35,Demographics!AV$11:AV$62)","v":-0.16200665891847449},{"$f":"CORREL('Migration 2010'!AZ35:CY35,Demographics!AW$11:AW$62)","v":-8.5999309363494938E-2},{"$f":"CORREL('Migration 2010'!BA35:CZ35,Demographics!AX$11:AX$62)","v":0.26498284089796448},{"$f":"CORREL('Migration 2010'!BB35:DA35,Demographics!AY$11:AY$62)","v":4.9086444167861162E-2},{"$f":"CORREL('Migration 2010'!BC35:DB35,Demographics!AZ$11:AZ$62)","v":-8.7448779310607766E-2},{"$f":"CORREL('Migration 2010'!BD35:DC35,Demographics!BA$11:BA$62)","v":0.34424407009715985}]
["Missouri",{"$f":"CORREL('Migration 2010'!J36:BI36,Demographics!G$11:G$62)","v":0.19726023048067662},{"$f":"CORREL('Migration 2010'!K36:BJ36,Demographics!H$11:H$62)","v":0.16618277223775416},{"$f":"CORREL('Migration 2010'!L36:BK36,Demographics!I$11:I$62)","v":3.7414084650398004E-3},{"$f":"CORREL('Migration 2010'!M36:BL36,Demographics!J$11:J$62)","v":0.10518887179344129},{"$f":"CORREL('Migration 2010'!N36:BM36,Demographics!K$11:K$62)","v":3.7991283654974756E-2},{"$f":"CORREL('Migration 2010'!O36:BN36,Demographics!L$11:L$62)","v":-0.12631298893559872},{"$f":"CORREL('Migration 2010'!P36:BO36,Demographics!M$11:M$62)","v":-0.12958152040963919},{"$f":"CORREL('Migration 2010'!Q36:BP36,Demographics!N$11:N$62)","v":-4.8128005936406648E-2},{"$f":"CORREL('Migration 2010'!R36:BQ36,Demographics!O$11:O$62)","v":-4.2273038570360966E-2},{"$f":"CORREL('Migration 2010'!S36:BR36,Demographics!P$11:P$62)","v":-1.9798654460455558E-2},{"$f":"CORREL('Migration 2010'!T36:BS36,Demographics!Q$11:Q$62)","v":-2.2564990401202929E-2},{"$f":"CORREL('Migration 2010'!U36:BT36,Demographics!R$11:R$62)","v":-0.16457872457600681},{"$f":"CORREL('Migration 2010'!V36:BU36,Demographics!S$11:S$62)","v":-0.18687422326592745},{"$f":"CORREL('Migration 2010'!W36:BV36,Demographics!T$11:T$62)","v":-6.2592455675965705E-3},{"$f":"CORREL('Migration 2010'!X36:BW36,Demographics!U$11:U$62)","v":0.17577574413278962},{"$f":"CORREL('Migration 2010'!Y36:BX36,Demographics!V$11:V$62)","v":8.0937692283498064E-2},{"$f":"CORREL('Migration 2010'!Z36:BY36,Demographics!W$11:W$62)","v":-0.11241257915623519},{"$f":"CORREL('Migration 2010'!AA36:BZ36,Demographics!X$11:X$62)","v":-0.11275888864234337},{"$f":"CORREL('Migration 2010'!AB36:CA36,Demographics!Y$11:Y$62)","v":-0.13498686870966398},{"$f":"CORREL('Migration 2010'!AC36:CB36,Demographics!Z$11:Z$62)","v":3.7591780772177515E-2},{"$f":"CORREL('Migration 2010'!AD36:CC36,Demographics!AA$11:AA$62)","v":5.441410045503741E-2},{"$f":"CORREL('Migration 2010'!AE36:CD36,Demographics!AB$11:AB$62)","v":-0.14765848265811349},{"$f":"CORREL('Migration 2010'!AF36:CE36,Demographics!AC$11:AC$62)","v":0.2956506420087891},{"$f":"CORREL('Migration 2010'!AG36:CF36,Demographics!AD$11:AD$62)","v":0.11533588598082439},{"$f":"CORREL('Migration 2010'!AH36:CG36,Demographics!AE$11:AE$62)","v":-6.9228584493508216E-2},{"$f":"CORREL('Migration 2010'!AI36:CH36,Demographics!AF$11:AF$62)","v":-0.13754467971835152},{"$f":"CORREL('Migration 2010'!AJ36:CI36,Demographics!AG$11:AG$62)","v":-0.13673689204971601},{"$f":"CORREL('Migration 2010'!AK36:CJ36,Demographics!AH$11:AH$62)","v":-3.8761053229426995E-2},{"$f":"CORREL('Migration 2010'!AL36:CK36,Demographics!AI$11:AI$62)","v":-3.1080547136412836E-2},{"$f":"CORREL('Migration 2010'!AM36:CL36,Demographics!AJ$11:AJ$62)","v":-6.7860180124237127E-3},{"$f":"CORREL('Migration 2010'!AN36:CM36,Demographics!AK$11:AK$62)","v":0.10784378313279488},{"$f":"CORREL('Migration 2010'!AO36:CN36,Demographics!AL$11:AL$62)","v":-2.3385962665538201E-2},{"$f":"CORREL('Migration 2010'!AP36:CO36,Demographics!AM$11:AM$62)","v":4.6360301452358872E-2},{"$f":"CORREL('Migration 2010'!AQ36:CP36,Demographics!AN$11:AN$62)","v":0.34913666628131335},{"$f":"CORREL('Migration 2010'!AR36:CQ36,Demographics!AO$11:AO$62)","v":1.7439150029105396E-2},{"$f":"CORREL('Migration 2010'!AS36:CR36,Demographics!AP$11:AP$62)","v":0.10690906066645489},{"$f":"CORREL('Migration 2010'!AT36:CS36,Demographics!AQ$11:AQ$62)","v":-3.7687631505902201E-2},{"$f":"CORREL('Migration 2010'!AU36:CT36,Demographics!AR$11:AR$62)","v":5.6902421693186087E-2},{"$f":"CORREL('Migration 2010'!AV36:CU36,Demographics!AS$11:AS$62)","v":0.19639978548523696},{"$f":"CORREL('Migration 2010'!AW36:CV36,Demographics!AT$11:AT$62)","v":0.39776052277116103},{"$f":"CORREL('Migration 2010'!AX36:CW36,Demographics!AU$11:AU$62)","v":-0.11751081117758959},{"$f":"CORREL('Migration 2010'!AY36:CX36,Demographics!AV$11:AV$62)","v":-0.11912458628397599},{"$f":"CORREL('Migration 2010'!AZ36:CY36,Demographics!AW$11:AW$62)","v":-2.2177235157923261E-2},{"$f":"CORREL('Migration 2010'!BA36:CZ36,Demographics!AX$11:AX$62)","v":9.3378177693381303E-2},{"$f":"CORREL('Migration 2010'!BB36:DA36,Demographics!AY$11:AY$62)","v":-6.0170982128273959E-2},{"$f":"CORREL('Migration 2010'!BC36:DB36,Demographics!AZ$11:AZ$62)","v":0.12287420152607571},{"$f":"CORREL('Migration 2010'!BD36:DC36,Demographics!BA$11:BA$62)","v":0.26694425540652877}]
["Montana",{"$f":"CORREL('Migration 2010'!J37:BI37,Demographics!G$11:G$62)","v":0.26394827323490949},{"$f":"CORREL('Migration 2010'!K37:BJ37,Demographics!H$11:H$62)","v":0.10076388103829813},{"$f":"CORREL('Migration 2010'!L37:BK37,Demographics!I$11:I$62)","v":0.12415334206902502},{"$f":"CORREL('Migration 2010'!M37:BL37,Demographics!J$11:J$62)","v":-0.42330777652247409},{"$f":"CORREL('Migration 2010'!N37:BM37,Demographics!K$11:K$62)","v":-5.5186935631815356E-2},{"$f":"CORREL('Migration 2010'!O37:BN37,Demographics!L$11:L$62)","v":3.947477761806728E-2},{"$f":"CORREL('Migration 2010'!P37:BO37,Demographics!M$11:M$62)","v":0.10685333535505032},{"$f":"CORREL('Migration 2010'!Q37:BP37,Demographics!N$11:N$62)","v":-0.1728531786658101},{"$f":"CORREL('Migration 2010'!R37:BQ37,Demographics!O$11:O$62)","v":-4.4998606208311691E-2},{"$f":"CORREL('Migration 2010'!S37:BR37,Demographics!P$11:P$62)","v":-0.17172917291435694},{"$f":"CORREL('Migration 2010'!T37:BS37,Demographics!Q$11:Q$62)","v":-7.7534349541998795E-2},{"$f":"CORREL('Migration 2010'!U37:BT37,Demographics!R$11:R$62)","v":7.7969007539564567E-2},{"$f":"CORREL('Migration 2010'!V37:BU37,Demographics!S$11:S$62)","v":9.3256360039920536E-2},{"$f":"CORREL('Migration 2010'!W37:BV37,Demographics!T$11:T$62)","v":6.6969977929613941E-2},{"$f":"CORREL('Migration 2010'!X37:BW37,Demographics!U$11:U$62)","v":-6.0373853228205626E-2},{"$f":"CORREL('Migration 2010'!Y37:BX37,Demographics!V$11:V$62)","v":-2.7091949106941415E-2},{"$f":"CORREL('Migration 2010'!Z37:BY37,Demographics!W$11:W$62)","v":-0.13507082385519406},{"$f":"CORREL('Migration 2010'!AA37:BZ37,Demographics!X$11:X$62)","v":2.6025669941956493E-2},{"$f":"CORREL('Migration 2010'!AB37:CA37,Demographics!Y$11:Y$62)","v":-0.10765427287553808},{"$f":"CORREL('Migration 2010'!AC37:CB37,Demographics!Z$11:Z$62)","v":0.15898664887498734},{"$f":"CORREL('Migration 2010'!AD37:CC37,Demographics!AA$11:AA$62)","v":-0.20664409873184186},{"$f":"CORREL('Migration 2010'!AE37:CD37,Demographics!AB$11:AB$62)","v":-0.22198118456320085},{"$f":"CORREL('Migration 2010'!AF37:CE37,Demographics!AC$11:AC$62)","v":0.14955532901890509},{"$f":"CORREL('Migration 2010'!AG37:CF37,Demographics!AD$11:AD$62)","v":-8.3310743516375407E-2},{"$f":"CORREL('Migration 2010'!AH37:CG37,Demographics!AE$11:AE$62)","v":-2.5255736754598874E-2},{"$f":"CORREL('Migration 2010'!AI37:CH37,Demographics!AF$11:AF$62)","v":-9.2288444422339813E-2},{"$f":"CORREL('Migration 2010'!AJ37:CI37,Demographics!AG$11:AG$62)","v":4.3137027189690434E-4},{"$f":"CORREL('Migration 2010'!AK37:CJ37,Demographics!AH$11:AH$62)","v":-0.24035528980639939},{"$f":"CORREL('Migration 2010'!AL37:CK37,Demographics!AI$11:AI$62)","v":-0.11015447980198231},{"$f":"CORREL('Migration 2010'!AM37:CL37,Demographics!AJ$11:AJ$62)","v":2.3712442408492747E-2},{"$f":"CORREL('Migration 2010'!AN37:CM37,Demographics!AK$11:AK$62)","v":0.23992239524060643},{"$f":"CORREL('Migration 2010'!AO37:CN37,Demographics!AL$11:AL$62)","v":-0.23812243485098339},{"$f":"CORREL('Migration 2010'!AP37:CO37,Demographics!AM$11:AM$62)","v":-9.3092467756092617E-2},{"$f":"CORREL('Migration 2010'!AQ37:CP37,Demographics!AN$11:AN$62)","v":0.13934092836257816},{"$f":"CORREL('Migration 2010'!AR37:CQ37,Demographics!AO$11:AO$62)","v":-8.8755247231205148E-2},{"$f":"CORREL('Migration 2010'!AS37:CR37,Demographics!AP$11:AP$62)","v":-9.1432750258260267E-2},{"$f":"CORREL('Migration 2010'!AT37:CS37,Demographics!AQ$11:AQ$62)","v":0.47542979356981735},{"$f":"CORREL('Migration 2010'!AU37:CT37,Demographics!AR$11:AR$62)","v":-0.11924064639722366},{"$f":"CORREL('Migration 2010'!AV37:CU37,Demographics!AS$11:AS$62)","v":-5.2606768886801193E-2},{"$f":"CORREL('Migration 2010'!AW37:CV37,Demographics!AT$11:AT$62)","v":0.23218823715054665},{"$f":"CORREL('Migration 2010'!AX37:CW37,Demographics!AU$11:AU$62)","v":-5.8915170995036591E-2},{"$f":"CORREL('Migration 2010'!AY37:CX37,Demographics!AV$11:AV$62)","v":-5.7742443731520592E-2},{"$f":"CORREL('Migration 2010'!AZ37:CY37,Demographics!AW$11:AW$62)","v":-0.12449729005531217},{"$f":"CORREL('Migration 2010'!BA37:CZ37,Demographics!AX$11:AX$62)","v":0.53121711549279038},{"$f":"CORREL('Migration 2010'!BB37:DA37,Demographics!AY$11:AY$62)","v":6.87561222911416E-2},{"$f":"CORREL('Migration 2010'!BC37:DB37,Demographics!AZ$11:AZ$62)","v":-4.8771073318932101E-2},{"$f":"CORREL('Migration 2010'!BD37:DC37,Demographics!BA$11:BA$62)","v":0.16926016567775201}]
["Nebraska",{"$f":"CORREL('Migration 2010'!J38:BI38,Demographics!G$11:G$62)","v":0.28973900361001403},{"$f":"CORREL('Migration 2010'!K38:BJ38,Demographics!H$11:H$62)","v":0.1061940284162895},{"$f":"CORREL('Migration 2010'!L38:BK38,Demographics!I$11:I$62)","v":7.1620442274924256E-2},{"$f":"CORREL('Migration 2010'!M38:BL38,Demographics!J$11:J$62)","v":-0.10347930443645084},{"$f":"CORREL('Migration 2010'!N38:BM38,Demographics!K$11:K$62)","v":-0.26858214847131839},{"$f":"CORREL('Migration 2010'!O38:BN38,Demographics!L$11:L$62)","v":0.23112421802117805},{"$f":"CORREL('Migration 2010'!P38:BO38,Demographics!M$11:M$62)","v":-0.18327788948388871},{"$f":"CORREL('Migration 2010'!Q38:BP38,Demographics!N$11:N$62)","v":-0.20052963284240205},{"$f":"CORREL('Migration 2010'!R38:BQ38,Demographics!O$11:O$62)","v":-7.0430066554183504E-2},{"$f":"CORREL('Migration 2010'!S38:BR38,Demographics!P$11:P$62)","v":-0.1176587382389412},{"$f":"CORREL('Migration 2010'!T38:BS38,Demographics!Q$11:Q$62)","v":0.10068690455383876},{"$f":"CORREL('Migration 2010'!U38:BT38,Demographics!R$11:R$62)","v":-0.16680028954507209},{"$f":"CORREL('Migration 2010'!V38:BU38,Demographics!S$11:S$62)","v":-5.4883006581976897E-3},{"$f":"CORREL('Migration 2010'!W38:BV38,Demographics!T$11:T$62)","v":0.22558521297934228},{"$f":"CORREL('Migration 2010'!X38:BW38,Demographics!U$11:U$62)","v":4.9164206062912587E-2},{"$f":"CORREL('Migration 2010'!Y38:BX38,Demographics!V$11:V$62)","v":-9.6957655608659779E-2},{"$f":"CORREL('Migration 2010'!Z38:BY38,Demographics!W$11:W$62)","v":-0.14507357602041296},{"$f":"CORREL('Migration 2010'!AA38:BZ38,Demographics!X$11:X$62)","v":-2.6834063819093625E-2},{"$f":"CORREL('Migration 2010'!AB38:CA38,Demographics!Y$11:Y$62)","v":-0.15445791807160078},{"$f":"CORREL('Migration 2010'!AC38:CB38,Demographics!Z$11:Z$62)","v":0.14010967798824692},{"$f":"CORREL('Migration 2010'!AD38:CC38,Demographics!AA$11:AA$62)","v":-0.2187517913080434},{"$f":"CORREL('Migration 2010'!AE38:CD38,Demographics!AB$11:AB$62)","v":-0.14704305923891098},{"$f":"CORREL('Migration 2010'!AF38:CE38,Demographics!AC$11:AC$62)","v":0.15150423993935191},{"$f":"CORREL('Migration 2010'!AG38:CF38,Demographics!AD$11:AD$62)","v":-1.977736972821683E-2},{"$f":"CORREL('Migration 2010'!AH38:CG38,Demographics!AE$11:AE$62)","v":2.0291800240685061E-2},{"$f":"CORREL('Migration 2010'!AI38:CH38,Demographics!AF$11:AF$62)","v":-0.16317250128271546},{"$f":"CORREL('Migration 2010'!AJ38:CI38,Demographics!AG$11:AG$62)","v":-0.18375531925311953},{"$f":"CORREL('Migration 2010'!AK38:CJ38,Demographics!AH$11:AH$62)","v":-5.5965193836410465E-2},{"$f":"CORREL('Migration 2010'!AL38:CK38,Demographics!AI$11:AI$62)","v":-0.11097220132957428},{"$f":"CORREL('Migration 2010'!AM38:CL38,Demographics!AJ$11:AJ$62)","v":-0.11077167349311701},{"$f":"CORREL('Migration 2010'!AN38:CM38,Demographics!AK$11:AK$62)","v":0.21696653530602752},{"$f":"CORREL('Migration 2010'!AO38:CN38,Demographics!AL$11:AL$62)","v":-1.4606744333194018E-3},{"$f":"CORREL('Migration 2010'!AP38:CO38,Demographics!AM$11:AM$62)","v":6.3752231854968741E-3},{"$f":"CORREL('Migration 2010'!AQ38:CP38,Demographics!AN$11:AN$62)","v":0.17913070088462132},{"$f":"CORREL('Migration 2010'!AR38:CQ38,Demographics!AO$11:AO$62)","v":-7.2138848154886956E-2},{"$f":"CORREL('Migration 2010'!AS38:CR38,Demographics!AP$11:AP$62)","v":-5.4707070541431105E-2},{"$f":"CORREL('Migration 2010'!AT38:CS38,Demographics!AQ$11:AQ$62)","v":6.1422306101155587E-2},{"$f":"CORREL('Migration 2010'!AU38:CT38,Demographics!AR$11:AR$62)","v":0.18553236850567595},{"$f":"CORREL('Migration 2010'!AV38:CU38,Demographics!AS$11:AS$62)","v":-2.3724769431050893E-2},{"$f":"CORREL('Migration 2010'!AW38:CV38,Demographics!AT$11:AT$62)","v":0.28922982985778223},{"$f":"CORREL('Migration 2010'!AX38:CW38,Demographics!AU$11:AU$62)","v":-0.16491111890324733},{"$f":"CORREL('Migration 2010'!AY38:CX38,Demographics!AV$11:AV$62)","v":-7.5925710362826346E-2},{"$f":"CORREL('Migration 2010'!AZ38:CY38,Demographics!AW$11:AW$62)","v":-6.8561918251617435E-2},{"$f":"CORREL('Migration 2010'!BA38:CZ38,Demographics!AX$11:AX$62)","v":0.1581619036631981},{"$f":"CORREL('Migration 2010'!BB38:DA38,Demographics!AY$11:AY$62)","v":3.674773903536397E-2},{"$f":"CORREL('Migration 2010'!BC38:DB38,Demographics!AZ$11:AZ$62)","v":9.2897132639218147E-3},{"$f":"CORREL('Migration 2010'!BD38:DC38,Demographics!BA$11:BA$62)","v":0.28792619830990224}]
["Nevada",{"$f":"CORREL('Migration 2010'!J39:BI39,Demographics!G$11:G$62)","v":0.16796833323041699},{"$f":"CORREL('Migration 2010'!K39:BJ39,Demographics!H$11:H$62)","v":0.11522608692942556},{"$f":"CORREL('Migration 2010'!L39:BK39,Demographics!I$11:I$62)","v":0.12322571028283442},{"$f":"CORREL('Migration 2010'!M39:BL39,Demographics!J$11:J$62)","v":-0.48807512632002481},{"$f":"CORREL('Migration 2010'!N39:BM39,Demographics!K$11:K$62)","v":-0.11736660556144758},{"$f":"CORREL('Migration 2010'!O39:BN39,Demographics!L$11:L$62)","v":-2.4369965409154277E-2},{"$f":"CORREL('Migration 2010'!P39:BO39,Demographics!M$11:M$62)","v":-4.5108801954538688E-2},{"$f":"CORREL('Migration 2010'!Q39:BP39,Demographics!N$11:N$62)","v":-3.654035150106634E-2},{"$f":"CORREL('Migration 2010'!R39:BQ39,Demographics!O$11:O$62)","v":-5.4706920990275479E-2},{"$f":"CORREL('Migration 2010'!S39:BR39,Demographics!P$11:P$62)","v":-0.13305506103659626},{"$f":"CORREL('Migration 2010'!T39:BS39,Demographics!Q$11:Q$62)","v":-0.14688556208654494},{"$f":"CORREL('Migration 2010'!U39:BT39,Demographics!R$11:R$62)","v":-5.09233393061988E-2},{"$f":"CORREL('Migration 2010'!V39:BU39,Demographics!S$11:S$62)","v":0.11182009354704769},{"$f":"CORREL('Migration 2010'!W39:BV39,Demographics!T$11:T$62)","v":6.4079725262012041E-2},{"$f":"CORREL('Migration 2010'!X39:BW39,Demographics!U$11:U$62)","v":5.2654984060840536E-2},{"$f":"CORREL('Migration 2010'!Y39:BX39,Demographics!V$11:V$62)","v":-3.3585171367540739E-3},{"$f":"CORREL('Migration 2010'!Z39:BY39,Demographics!W$11:W$62)","v":-0.10632057071662879},{"$f":"CORREL('Migration 2010'!AA39:BZ39,Demographics!X$11:X$62)","v":4.2498067883505256E-2},{"$f":"CORREL('Migration 2010'!AB39:CA39,Demographics!Y$11:Y$62)","v":-0.2229389582969791},{"$f":"CORREL('Migration 2010'!AC39:CB39,Demographics!Z$11:Z$62)","v":9.8629015410414272E-2},{"$f":"CORREL('Migration 2010'!AD39:CC39,Demographics!AA$11:AA$62)","v":-0.2713875618421393},{"$f":"CORREL('Migration 2010'!AE39:CD39,Demographics!AB$11:AB$62)","v":-0.28315064925597982},{"$f":"CORREL('Migration 2010'!AF39:CE39,Demographics!AC$11:AC$62)","v":6.4162272139729318E-2},{"$f":"CORREL('Migration 2010'!AG39:CF39,Demographics!AD$11:AD$62)","v":-8.1076805354828085E-2},{"$f":"CORREL('Migration 2010'!AH39:CG39,Demographics!AE$11:AE$62)","v":2.8277982930351452E-2},{"$f":"CORREL('Migration 2010'!AI39:CH39,Demographics!AF$11:AF$62)","v":2.0339686833482317E-2},{"$f":"CORREL('Migration 2010'!AJ39:CI39,Demographics!AG$11:AG$62)","v":-8.7016136501824701E-2},{"$f":"CORREL('Migration 2010'!AK39:CJ39,Demographics!AH$11:AH$62)","v":7.9575005163833867E-3},{"$f":"CORREL('Migration 2010'!AL39:CK39,Demographics!AI$11:AI$62)","v":-0.10119827037535849},{"$f":"CORREL('Migration 2010'!AM39:CL39,Demographics!AJ$11:AJ$62)","v":-4.9589887600562307E-2},{"$f":"CORREL('Migration 2010'!AN39:CM39,Demographics!AK$11:AK$62)","v":0.34683813778301364},{"$f":"CORREL('Migration 2010'!AO39:CN39,Demographics!AL$11:AL$62)","v":-2.6035366999047547E-2},{"$f":"CORREL('Migration 2010'!AP39:CO39,Demographics!AM$11:AM$62)","v":-6.1400103635240316E-3},{"$f":"CORREL('Migration 2010'!AQ39:CP39,Demographics!AN$11:AN$62)","v":0.13703342318664152},{"$f":"CORREL('Migration 2010'!AR39:CQ39,Demographics!AO$11:AO$62)","v":-4.4453353824853784E-2},{"$f":"CORREL('Migration 2010'!AS39:CR39,Demographics!AP$11:AP$62)","v":-5.8462948044325277E-3},{"$f":"CORREL('Migration 2010'!AT39:CS39,Demographics!AQ$11:AQ$62)","v":0.18240091333370062},{"$f":"CORREL('Migration 2010'!AU39:CT39,Demographics!AR$11:AR$62)","v":-7.3826725013044464E-2},{"$f":"CORREL('Migration 2010'!AV39:CU39,Demographics!AS$11:AS$62)","v":-1.4005733266913298E-2},{"$f":"CORREL('Migration 2010'!AW39:CV39,Demographics!AT$11:AT$62)","v":0.28157867237182349},{"$f":"CORREL('Migration 2010'!AX39:CW39,Demographics!AU$11:AU$62)","v":7.4033736681044959E-2},{"$f":"CORREL('Migration 2010'!AY39:CX39,Demographics!AV$11:AV$62)","v":-0.17410640290353499},{"$f":"CORREL('Migration 2010'!AZ39:CY39,Demographics!AW$11:AW$62)","v":-0.20446214110823985},{"$f":"CORREL('Migration 2010'!BA39:CZ39,Demographics!AX$11:AX$62)","v":0.29162093080717288},{"$f":"CORREL('Migration 2010'!BB39:DA39,Demographics!AY$11:AY$62)","v":-0.16096451072669191},{"$f":"CORREL('Migration 2010'!BC39:DB39,Demographics!AZ$11:AZ$62)","v":-1.1986263513175438E-2},{"$f":"CORREL('Migration 2010'!BD39:DC39,Demographics!BA$11:BA$62)","v":0.17986105349911483}]
["New Hampshire",{"$f":"CORREL('Migration 2010'!J40:BI40,Demographics!G$11:G$62)","v":-0.36210180860812702},{"$f":"CORREL('Migration 2010'!K40:BJ40,Demographics!H$11:H$62)","v":9.684940595693374E-2},{"$f":"CORREL('Migration 2010'!L40:BK40,Demographics!I$11:I$62)","v":0.15505547803628855},{"$f":"CORREL('Migration 2010'!M40:BL40,Demographics!J$11:J$62)","v":4.6847510380273835E-2},{"$f":"CORREL('Migration 2010'!N40:BM40,Demographics!K$11:K$62)","v":0.20124104062963766},{"$f":"CORREL('Migration 2010'!O40:BN40,Demographics!L$11:L$62)","v":-8.372752000348091E-2},{"$f":"CORREL('Migration 2010'!P40:BO40,Demographics!M$11:M$62)","v":-8.8062463879835906E-2},{"$f":"CORREL('Migration 2010'!Q40:BP40,Demographics!N$11:N$62)","v":-0.11701710717985947},{"$f":"CORREL('Migration 2010'!R40:BQ40,Demographics!O$11:O$62)","v":0.19041223304293628},{"$f":"CORREL('Migration 2010'!S40:BR40,Demographics!P$11:P$62)","v":-5.082028923593665E-2},{"$f":"CORREL('Migration 2010'!T40:BS40,Demographics!Q$11:Q$62)","v":-6.3513207296478816E-2},{"$f":"CORREL('Migration 2010'!U40:BT40,Demographics!R$11:R$62)","v":-7.0669985480073791E-2},{"$f":"CORREL('Migration 2010'!V40:BU40,Demographics!S$11:S$62)","v":-1.6286214892971919E-2},{"$f":"CORREL('Migration 2010'!W40:BV40,Demographics!T$11:T$62)","v":0.17973401878982534},{"$f":"CORREL('Migration 2010'!X40:BW40,Demographics!U$11:U$62)","v":-1.5403601211436076E-2},{"$f":"CORREL('Migration 2010'!Y40:BX40,Demographics!V$11:V$62)","v":-1.7958969145514682E-2},{"$f":"CORREL('Migration 2010'!Z40:BY40,Demographics!W$11:W$62)","v":0.225170400912903},{"$f":"CORREL('Migration 2010'!AA40:BZ40,Demographics!X$11:X$62)","v":0.52640658829750031},{"$f":"CORREL('Migration 2010'!AB40:CA40,Demographics!Y$11:Y$62)","v":-0.26568669872174222},{"$f":"CORREL('Migration 2010'!AC40:CB40,Demographics!Z$11:Z$62)","v":4.0172215057275945E-2},{"$f":"CORREL('Migration 2010'!AD40:CC40,Demographics!AA$11:AA$62)","v":-0.18423790740259122},{"$f":"CORREL('Migration 2010'!AE40:CD40,Demographics!AB$11:AB$62)","v":-0.17542986518866624},{"$f":"CORREL('Migration 2010'!AF40:CE40,Demographics!AC$11:AC$62)","v":0.2139883293986444},{"$f":"CORREL('Migration 2010'!AG40:CF40,Demographics!AD$11:AD$62)","v":6.7803595628935759E-2},{"$f":"CORREL('Migration 2010'!AH40:CG40,Demographics!AE$11:AE$62)","v":-0.10594628143160671},{"$f":"CORREL('Migration 2010'!AI40:CH40,Demographics!AF$11:AF$62)","v":0.18009647422194272},{"$f":"CORREL('Migration 2010'!AJ40:CI40,Demographics!AG$11:AG$62)","v":-0.12579197675282905},{"$f":"CORREL('Migration 2010'!AK40:CJ40,Demographics!AH$11:AH$62)","v":1.4626873315467866E-2},{"$f":"CORREL('Migration 2010'!AL40:CK40,Demographics!AI$11:AI$62)","v":0.1322125806716743},{"$f":"CORREL('Migration 2010'!AM40:CL40,Demographics!AJ$11:AJ$62)","v":1.0551489634510672E-2},{"$f":"CORREL('Migration 2010'!AN40:CM40,Demographics!AK$11:AK$62)","v":0.19377006774444747},{"$f":"CORREL('Migration 2010'!AO40:CN40,Demographics!AL$11:AL$62)","v":1.5971100532614396E-2},{"$f":"CORREL('Migration 2010'!AP40:CO40,Demographics!AM$11:AM$62)","v":-7.5292458695206024E-2},{"$f":"CORREL('Migration 2010'!AQ40:CP40,Demographics!AN$11:AN$62)","v":-7.1865912670885823E-2},{"$f":"CORREL('Migration 2010'!AR40:CQ40,Demographics!AO$11:AO$62)","v":-0.12670820482255676},{"$f":"CORREL('Migration 2010'!AS40:CR40,Demographics!AP$11:AP$62)","v":3.3802565803555965E-2},{"$f":"CORREL('Migration 2010'!AT40:CS40,Demographics!AQ$11:AQ$62)","v":-6.6639245416779166E-2},{"$f":"CORREL('Migration 2010'!AU40:CT40,Demographics!AR$11:AR$62)","v":-0.12610703974614018},{"$f":"CORREL('Migration 2010'!AV40:CU40,Demographics!AS$11:AS$62)","v":-0.13194834455391344},{"$f":"CORREL('Migration 2010'!AW40:CV40,Demographics!AT$11:AT$62)","v":0.45631791806674044},{"$f":"CORREL('Migration 2010'!AX40:CW40,Demographics!AU$11:AU$62)","v":-0.10948701847631481},{"$f":"CORREL('Migration 2010'!AY40:CX40,Demographics!AV$11:AV$62)","v":0.18599818322028794},{"$f":"CORREL('Migration 2010'!AZ40:CY40,Demographics!AW$11:AW$62)","v":-0.27323501719592153},{"$f":"CORREL('Migration 2010'!BA40:CZ40,Demographics!AX$11:AX$62)","v":0.12656560602628131},{"$f":"CORREL('Migration 2010'!BB40:DA40,Demographics!AY$11:AY$62)","v":-0.11385022204199118},{"$f":"CORREL('Migration 2010'!BC40:DB40,Demographics!AZ$11:AZ$62)","v":-0.1143252335953471},{"$f":"CORREL('Migration 2010'!BD40:DC40,Demographics!BA$11:BA$62)","v":0.22975231083160103}]
["New Jersey",{"$f":"CORREL('Migration 2010'!J41:BI41,Demographics!G$11:G$62)","v":-0.16417709619055029},{"$f":"CORREL('Migration 2010'!K41:BJ41,Demographics!H$11:H$62)","v":-8.5538537397505648E-3},{"$f":"CORREL('Migration 2010'!L41:BK41,Demographics!I$11:I$62)","v":1.1336575029313806E-2},{"$f":"CORREL('Migration 2010'!M41:BL41,Demographics!J$11:J$62)","v":9.9577569895413932E-3},{"$f":"CORREL('Migration 2010'!N41:BM41,Demographics!K$11:K$62)","v":7.5663189976258871E-2},{"$f":"CORREL('Migration 2010'!O41:BN41,Demographics!L$11:L$62)","v":-5.2239487777540304E-2},{"$f":"CORREL('Migration 2010'!P41:BO41,Demographics!M$11:M$62)","v":0.14708901549664999},{"$f":"CORREL('Migration 2010'!Q41:BP41,Demographics!N$11:N$62)","v":-0.11640353558285935},{"$f":"CORREL('Migration 2010'!R41:BQ41,Demographics!O$11:O$62)","v":-3.3933642540912801E-2},{"$f":"CORREL('Migration 2010'!S41:BR41,Demographics!P$11:P$62)","v":1.5558426438809319E-2},{"$f":"CORREL('Migration 2010'!T41:BS41,Demographics!Q$11:Q$62)","v":-2.5618981928917123E-2},{"$f":"CORREL('Migration 2010'!U41:BT41,Demographics!R$11:R$62)","v":8.5626376139101346E-2},{"$f":"CORREL('Migration 2010'!V41:BU41,Demographics!S$11:S$62)","v":7.9903988794904166E-2},{"$f":"CORREL('Migration 2010'!W41:BV41,Demographics!T$11:T$62)","v":-0.16729510844242551},{"$f":"CORREL('Migration 2010'!X41:BW41,Demographics!U$11:U$62)","v":-0.15520240340156508},{"$f":"CORREL('Migration 2010'!Y41:BX41,Demographics!V$11:V$62)","v":-0.1053845383546604},{"$f":"CORREL('Migration 2010'!Z41:BY41,Demographics!W$11:W$62)","v":2.3677495487730793E-2},{"$f":"CORREL('Migration 2010'!AA41:BZ41,Demographics!X$11:X$62)","v":-3.8925883046157607E-2},{"$f":"CORREL('Migration 2010'!AB41:CA41,Demographics!Y$11:Y$62)","v":7.3347305602736335E-2},{"$f":"CORREL('Migration 2010'!AC41:CB41,Demographics!Z$11:Z$62)","v":0.10205436375813424},{"$f":"CORREL('Migration 2010'!AD41:CC41,Demographics!AA$11:AA$62)","v":9.1819169309896708E-3},{"$f":"CORREL('Migration 2010'!AE41:CD41,Demographics!AB$11:AB$62)","v":0.15721180998620743},{"$f":"CORREL('Migration 2010'!AF41:CE41,Demographics!AC$11:AC$62)","v":-3.7082853580728679E-2},{"$f":"CORREL('Migration 2010'!AG41:CF41,Demographics!AD$11:AD$62)","v":0.18680114985338975},{"$f":"CORREL('Migration 2010'!AH41:CG41,Demographics!AE$11:AE$62)","v":-2.3017829306461214E-2},{"$f":"CORREL('Migration 2010'!AI41:CH41,Demographics!AF$11:AF$62)","v":9.6564573121088182E-2},{"$f":"CORREL('Migration 2010'!AJ41:CI41,Demographics!AG$11:AG$62)","v":0.17060771919821893},{"$f":"CORREL('Migration 2010'!AK41:CJ41,Demographics!AH$11:AH$62)","v":-0.13052783232153731},{"$f":"CORREL('Migration 2010'!AL41:CK41,Demographics!AI$11:AI$62)","v":0.56274652952897131},{"$f":"CORREL('Migration 2010'!AM41:CL41,Demographics!AJ$11:AJ$62)","v":7.8641354904452856E-2},{"$f":"CORREL('Migration 2010'!AN41:CM41,Demographics!AK$11:AK$62)","v":0.20232204589440567},{"$f":"CORREL('Migration 2010'!AO41:CN41,Demographics!AL$11:AL$62)","v":-0.11728294304759918},{"$f":"CORREL('Migration 2010'!AP41:CO41,Demographics!AM$11:AM$62)","v":-9.2774996323913755E-2},{"$f":"CORREL('Migration 2010'!AQ41:CP41,Demographics!AN$11:AN$62)","v":2.3393948060642964E-2},{"$f":"CORREL('Migration 2010'!AR41:CQ41,Demographics!AO$11:AO$62)","v":-7.5036464904651937E-3},{"$f":"CORREL('Migration 2010'!AS41:CR41,Demographics!AP$11:AP$62)","v":-1.1348940265934932E-2},{"$f":"CORREL('Migration 2010'!AT41:CS41,Demographics!AQ$11:AQ$62)","v":-3.4554272573340525E-2},{"$f":"CORREL('Migration 2010'!AU41:CT41,Demographics!AR$11:AR$62)","v":-0.15266467256236124},{"$f":"CORREL('Migration 2010'!AV41:CU41,Demographics!AS$11:AS$62)","v":7.2584617714782432E-2},{"$f":"CORREL('Migration 2010'!AW41:CV41,Demographics!AT$11:AT$62)","v":0.22338082794335462},{"$f":"CORREL('Migration 2010'!AX41:CW41,Demographics!AU$11:AU$62)","v":-0.1941753766759404},{"$f":"CORREL('Migration 2010'!AY41:CX41,Demographics!AV$11:AV$62)","v":-0.13500916813791153},{"$f":"CORREL('Migration 2010'!AZ41:CY41,Demographics!AW$11:AW$62)","v":-0.18537389597403231},{"$f":"CORREL('Migration 2010'!BA41:CZ41,Demographics!AX$11:AX$62)","v":0.18888041458340984},{"$f":"CORREL('Migration 2010'!BB41:DA41,Demographics!AY$11:AY$62)","v":-0.11599454507780406},{"$f":"CORREL('Migration 2010'!BC41:DB41,Demographics!AZ$11:AZ$62)","v":1.7997068686502377E-2},{"$f":"CORREL('Migration 2010'!BD41:DC41,Demographics!BA$11:BA$62)","v":0.33201740273059516}]
["New Mexico",{"$f":"CORREL('Migration 2010'!J42:BI42,Demographics!G$11:G$62)","v":0.2817107409973027},{"$f":"CORREL('Migration 2010'!K42:BJ42,Demographics!H$11:H$62)","v":3.6120392416683231E-2},{"$f":"CORREL('Migration 2010'!L42:BK42,Demographics!I$11:I$62)","v":0.15065812956165431},{"$f":"CORREL('Migration 2010'!M42:BL42,Demographics!J$11:J$62)","v":-3.3786790667281533E-3},{"$f":"CORREL('Migration 2010'!N42:BM42,Demographics!K$11:K$62)","v":4.6084693582464725E-2},{"$f":"CORREL('Migration 2010'!O42:BN42,Demographics!L$11:L$62)","v":-9.1023669007922942E-2},{"$f":"CORREL('Migration 2010'!P42:BO42,Demographics!M$11:M$62)","v":-7.838396082477694E-3},{"$f":"CORREL('Migration 2010'!Q42:BP42,Demographics!N$11:N$62)","v":-0.12216566785372332},{"$f":"CORREL('Migration 2010'!R42:BQ42,Demographics!O$11:O$62)","v":-3.7910506892518181E-2},{"$f":"CORREL('Migration 2010'!S42:BR42,Demographics!P$11:P$62)","v":-1.4458142679145055E-2},{"$f":"CORREL('Migration 2010'!T42:BS42,Demographics!Q$11:Q$62)","v":-0.12586066682257888},{"$f":"CORREL('Migration 2010'!U42:BT42,Demographics!R$11:R$62)","v":-0.10892992303335708},{"$f":"CORREL('Migration 2010'!V42:BU42,Demographics!S$11:S$62)","v":4.7306965722658863E-2},{"$f":"CORREL('Migration 2010'!W42:BV42,Demographics!T$11:T$62)","v":0.2347688093432693},{"$f":"CORREL('Migration 2010'!X42:BW42,Demographics!U$11:U$62)","v":-0.12659383174154196},{"$f":"CORREL('Migration 2010'!Y42:BX42,Demographics!V$11:V$62)","v":-9.4992883570263031E-2},{"$f":"CORREL('Migration 2010'!Z42:BY42,Demographics!W$11:W$62)","v":-2.7470397928681784E-3},{"$f":"CORREL('Migration 2010'!AA42:BZ42,Demographics!X$11:X$62)","v":-1.6733837427868995E-2},{"$f":"CORREL('Migration 2010'!AB42:CA42,Demographics!Y$11:Y$62)","v":-9.9614079480244547E-2},{"$f":"CORREL('Migration 2010'!AC42:CB42,Demographics!Z$11:Z$62)","v":1.756907681457489E-2},{"$f":"CORREL('Migration 2010'!AD42:CC42,Demographics!AA$11:AA$62)","v":1.7943536196997432E-2},{"$f":"CORREL('Migration 2010'!AE42:CD42,Demographics!AB$11:AB$62)","v":-0.19875373678257036},{"$f":"CORREL('Migration 2010'!AF42:CE42,Demographics!AC$11:AC$62)","v":0.33246209791855486},{"$f":"CORREL('Migration 2010'!AG42:CF42,Demographics!AD$11:AD$62)","v":-3.4351190494965114E-2},{"$f":"CORREL('Migration 2010'!AH42:CG42,Demographics!AE$11:AE$62)","v":-6.719775016787953E-2},{"$f":"CORREL('Migration 2010'!AI42:CH42,Demographics!AF$11:AF$62)","v":-0.14060735950958728},{"$f":"CORREL('Migration 2010'!AJ42:CI42,Demographics!AG$11:AG$62)","v":-0.18455482209989796},{"$f":"CORREL('Migration 2010'!AK42:CJ42,Demographics!AH$11:AH$62)","v":-9.7926273800414673E-2},{"$f":"CORREL('Migration 2010'!AL42:CK42,Demographics!AI$11:AI$62)","v":-0.10652627045964813},{"$f":"CORREL('Migration 2010'!AM42:CL42,Demographics!AJ$11:AJ$62)","v":1.1885096242873841E-3},{"$f":"CORREL('Migration 2010'!AN42:CM42,Demographics!AK$11:AK$62)","v":0.14514028516100039},{"$f":"CORREL('Migration 2010'!AO42:CN42,Demographics!AL$11:AL$62)","v":-6.510099829402155E-2},{"$f":"CORREL('Migration 2010'!AP42:CO42,Demographics!AM$11:AM$62)","v":-8.757423338104646E-2},{"$f":"CORREL('Migration 2010'!AQ42:CP42,Demographics!AN$11:AN$62)","v":0.37138292903895076},{"$f":"CORREL('Migration 2010'!AR42:CQ42,Demographics!AO$11:AO$62)","v":-1.7283211046665858E-2},{"$f":"CORREL('Migration 2010'!AS42:CR42,Demographics!AP$11:AP$62)","v":-0.10819054190598078},{"$f":"CORREL('Migration 2010'!AT42:CS42,Demographics!AQ$11:AQ$62)","v":7.7104575741878678E-2},{"$f":"CORREL('Migration 2010'!AU42:CT42,Demographics!AR$11:AR$62)","v":-7.0531967661730463E-2},{"$f":"CORREL('Migration 2010'!AV42:CU42,Demographics!AS$11:AS$62)","v":9.0011581671729471E-2},{"$f":"CORREL('Migration 2010'!AW42:CV42,Demographics!AT$11:AT$62)","v":0.49777937827950836},{"$f":"CORREL('Migration 2010'!AX42:CW42,Demographics!AU$11:AU$62)","v":-0.10690630171490263},{"$f":"CORREL('Migration 2010'!AY42:CX42,Demographics!AV$11:AV$62)","v":-1.8947000683562889E-2},{"$f":"CORREL('Migration 2010'!AZ42:CY42,Demographics!AW$11:AW$62)","v":-0.1019040964277704},{"$f":"CORREL('Migration 2010'!BA42:CZ42,Demographics!AX$11:AX$62)","v":0.12554222490766556},{"$f":"CORREL('Migration 2010'!BB42:DA42,Demographics!AY$11:AY$62)","v":-0.16589354098783329},{"$f":"CORREL('Migration 2010'!BC42:DB42,Demographics!AZ$11:AZ$62)","v":-0.11827110014415916},{"$f":"CORREL('Migration 2010'!BD42:DC42,Demographics!BA$11:BA$62)","v":0.15768835582095619}]
["New York",{"$f":"CORREL('Migration 2010'!J43:BI43,Demographics!G$11:G$62)","v":-0.25159469430483355},{"$f":"CORREL('Migration 2010'!K43:BJ43,Demographics!H$11:H$62)","v":-0.25771594986778368},{"$f":"CORREL('Migration 2010'!L43:BK43,Demographics!I$11:I$62)","v":1.6113353113402843E-2},{"$f":"CORREL('Migration 2010'!M43:BL43,Demographics!J$11:J$62)","v":-4.3785994393054903E-2},{"$f":"CORREL('Migration 2010'!N43:BM43,Demographics!K$11:K$62)","v":0.22597565830696648},{"$f":"CORREL('Migration 2010'!O43:BN43,Demographics!L$11:L$62)","v":-4.1275816204600364E-2},{"$f":"CORREL('Migration 2010'!P43:BO43,Demographics!M$11:M$62)","v":-0.12295753983307585},{"$f":"CORREL('Migration 2010'!Q43:BP43,Demographics!N$11:N$62)","v":-0.10860042152962088},{"$f":"CORREL('Migration 2010'!R43:BQ43,Demographics!O$11:O$62)","v":4.0827782585682403E-4},{"$f":"CORREL('Migration 2010'!S43:BR43,Demographics!P$11:P$62)","v":-1.2934423211541665E-2},{"$f":"CORREL('Migration 2010'!T43:BS43,Demographics!Q$11:Q$62)","v":-4.1639728760192472E-2},{"$f":"CORREL('Migration 2010'!U43:BT43,Demographics!R$11:R$62)","v":0.14482958670922982},{"$f":"CORREL('Migration 2010'!V43:BU43,Demographics!S$11:S$62)","v":-3.5195819557631916E-2},{"$f":"CORREL('Migration 2010'!W43:BV43,Demographics!T$11:T$62)","v":-9.7777404777761617E-2},{"$f":"CORREL('Migration 2010'!X43:BW43,Demographics!U$11:U$62)","v":-0.12565030137252875},{"$f":"CORREL('Migration 2010'!Y43:BX43,Demographics!V$11:V$62)","v":0.11356489002935917},{"$f":"CORREL('Migration 2010'!Z43:BY43,Demographics!W$11:W$62)","v":-7.4979829802583789E-2},{"$f":"CORREL('Migration 2010'!AA43:BZ43,Demographics!X$11:X$62)","v":0.20238757397000209},{"$f":"CORREL('Migration 2010'!AB43:CA43,Demographics!Y$11:Y$62)","v":-0.15800355189165538},{"$f":"CORREL('Migration 2010'!AC43:CB43,Demographics!Z$11:Z$62)","v":-4.9211120259235575E-2},{"$f":"CORREL('Migration 2010'!AD43:CC43,Demographics!AA$11:AA$62)","v":-0.12752817580725032},{"$f":"CORREL('Migration 2010'!AE43:CD43,Demographics!AB$11:AB$62)","v":-0.10699580762805415},{"$f":"CORREL('Migration 2010'!AF43:CE43,Demographics!AC$11:AC$62)","v":0.26302152838197534},{"$f":"CORREL('Migration 2010'!AG43:CF43,Demographics!AD$11:AD$62)","v":-0.17337883230100845},{"$f":"CORREL('Migration 2010'!AH43:CG43,Demographics!AE$11:AE$62)","v":-1.8079370088168557E-2},{"$f":"CORREL('Migration 2010'!AI43:CH43,Demographics!AF$11:AF$62)","v":0.13455294420273017},{"$f":"CORREL('Migration 2010'!AJ43:CI43,Demographics!AG$11:AG$62)","v":3.5127841548251541E-2},{"$f":"CORREL('Migration 2010'!AK43:CJ43,Demographics!AH$11:AH$62)","v":7.6216162450910618E-2},{"$f":"CORREL('Migration 2010'!AL43:CK43,Demographics!AI$11:AI$62)","v":-3.7104178440073035E-2},{"$f":"CORREL('Migration 2010'!AM43:CL43,Demographics!AJ$11:AJ$62)","v":0.18005795461150889},{"$f":"CORREL('Migration 2010'!AN43:CM43,Demographics!AK$11:AK$62)","v":-1.3455762145108727E-2},{"$f":"CORREL('Migration 2010'!AO43:CN43,Demographics!AL$11:AL$62)","v":8.0910886477687044E-2},{"$f":"CORREL('Migration 2010'!AP43:CO43,Demographics!AM$11:AM$62)","v":-0.12539054608224895},{"$f":"CORREL('Migration 2010'!AQ43:CP43,Demographics!AN$11:AN$62)","v":0.192738654154613},{"$f":"CORREL('Migration 2010'!AR43:CQ43,Demographics!AO$11:AO$62)","v":5.8006891057941115E-2},{"$f":"CORREL('Migration 2010'!AS43:CR43,Demographics!AP$11:AP$62)","v":0.15080766259827608},{"$f":"CORREL('Migration 2010'!AT43:CS43,Demographics!AQ$11:AQ$62)","v":-1.4512868159060412E-2},{"$f":"CORREL('Migration 2010'!AU43:CT43,Demographics!AR$11:AR$62)","v":-7.8394945098430702E-2},{"$f":"CORREL('Migration 2010'!AV43:CU43,Demographics!AS$11:AS$62)","v":0.1065542116965993},{"$f":"CORREL('Migration 2010'!AW43:CV43,Demographics!AT$11:AT$62)","v":0.25726569627991974},{"$f":"CORREL('Migration 2010'!AX43:CW43,Demographics!AU$11:AU$62)","v":-5.6835743227970484E-2},{"$f":"CORREL('Migration 2010'!AY43:CX43,Demographics!AV$11:AV$62)","v":-3.7117962805527788E-2},{"$f":"CORREL('Migration 2010'!AZ43:CY43,Demographics!AW$11:AW$62)","v":-0.11567885667721256},{"$f":"CORREL('Migration 2010'!BA43:CZ43,Demographics!AX$11:AX$62)","v":0.19290777013587659},{"$f":"CORREL('Migration 2010'!BB43:DA43,Demographics!AY$11:AY$62)","v":-0.13962943286062576},{"$f":"CORREL('Migration 2010'!BC43:DB43,Demographics!AZ$11:AZ$62)","v":0.22687296429911274},{"$f":"CORREL('Migration 2010'!BD43:DC43,Demographics!BA$11:BA$62)","v":0.18338842510240877}]
["North Carolina",{"$f":"CORREL('Migration 2010'!J44:BI44,Demographics!G$11:G$62)","v":-0.12895118012173301},{"$f":"CORREL('Migration 2010'!K44:BJ44,Demographics!H$11:H$62)","v":-0.35550763800393459},{"$f":"CORREL('Migration 2010'!L44:BK44,Demographics!I$11:I$62)","v":-3.3064764045231412E-2},{"$f":"CORREL('Migration 2010'!M44:BL44,Demographics!J$11:J$62)","v":3.5214720438499138E-2},{"$f":"CORREL('Migration 2010'!N44:BM44,Demographics!K$11:K$62)","v":0.10352326197943157},{"$f":"CORREL('Migration 2010'!O44:BN44,Demographics!L$11:L$62)","v":-0.1673323925076444},{"$f":"CORREL('Migration 2010'!P44:BO44,Demographics!M$11:M$62)","v":6.1847733679826766E-2},{"$f":"CORREL('Migration 2010'!Q44:BP44,Demographics!N$11:N$62)","v":-0.11536176158063167},{"$f":"CORREL('Migration 2010'!R44:BQ44,Demographics!O$11:O$62)","v":-3.3159755988885807E-3},{"$f":"CORREL('Migration 2010'!S44:BR44,Demographics!P$11:P$62)","v":0.13872701834996803},{"$f":"CORREL('Migration 2010'!T44:BS44,Demographics!Q$11:Q$62)","v":-1.5871793728012208E-2},{"$f":"CORREL('Migration 2010'!U44:BT44,Demographics!R$11:R$62)","v":5.5990638405483538E-2},{"$f":"CORREL('Migration 2010'!V44:BU44,Demographics!S$11:S$62)","v":-0.22392060703234046},{"$f":"CORREL('Migration 2010'!W44:BV44,Demographics!T$11:T$62)","v":-4.5904963371088597E-2},{"$f":"CORREL('Migration 2010'!X44:BW44,Demographics!U$11:U$62)","v":-1.3062197103716356E-2},{"$f":"CORREL('Migration 2010'!Y44:BX44,Demographics!V$11:V$62)","v":-0.13675739554486541},{"$f":"CORREL('Migration 2010'!Z44:BY44,Demographics!W$11:W$62)","v":3.1598061654543617E-2},{"$f":"CORREL('Migration 2010'!AA44:BZ44,Demographics!X$11:X$62)","v":-9.7675452100570923E-2},{"$f":"CORREL('Migration 2010'!AB44:CA44,Demographics!Y$11:Y$62)","v":-2.6799573893488082E-2},{"$f":"CORREL('Migration 2010'!AC44:CB44,Demographics!Z$11:Z$62)","v":-3.1644524860595331E-2},{"$f":"CORREL('Migration 2010'!AD44:CC44,Demographics!AA$11:AA$62)","v":2.5185538757379781E-2},{"$f":"CORREL('Migration 2010'!AE44:CD44,Demographics!AB$11:AB$62)","v":-2.0645515675254897E-2},{"$f":"CORREL('Migration 2010'!AF44:CE44,Demographics!AC$11:AC$62)","v":-2.2981504924303231E-2},{"$f":"CORREL('Migration 2010'!AG44:CF44,Demographics!AD$11:AD$62)","v":-2.7723975285582968E-2},{"$f":"CORREL('Migration 2010'!AH44:CG44,Demographics!AE$11:AE$62)","v":-3.2072841005092625E-2},{"$f":"CORREL('Migration 2010'!AI44:CH44,Demographics!AF$11:AF$62)","v":0.12601691430197517},{"$f":"CORREL('Migration 2010'!AJ44:CI44,Demographics!AG$11:AG$62)","v":0.14300201346461766},{"$f":"CORREL('Migration 2010'!AK44:CJ44,Demographics!AH$11:AH$62)","v":-0.11326761289343805},{"$f":"CORREL('Migration 2010'!AL44:CK44,Demographics!AI$11:AI$62)","v":0.1424075609665198},{"$f":"CORREL('Migration 2010'!AM44:CL44,Demographics!AJ$11:AJ$62)","v":-2.0101515018345985E-2},{"$f":"CORREL('Migration 2010'!AN44:CM44,Demographics!AK$11:AK$62)","v":-9.0866631429089226E-2},{"$f":"CORREL('Migration 2010'!AO44:CN44,Demographics!AL$11:AL$62)","v":0.14934538532348429},{"$f":"CORREL('Migration 2010'!AP44:CO44,Demographics!AM$11:AM$62)","v":-8.3456783497899464E-2},{"$f":"CORREL('Migration 2010'!AQ44:CP44,Demographics!AN$11:AN$62)","v":0.24925858576230039},{"$f":"CORREL('Migration 2010'!AR44:CQ44,Demographics!AO$11:AO$62)","v":7.1966563087082977E-2},{"$f":"CORREL('Migration 2010'!AS44:CR44,Demographics!AP$11:AP$62)","v":0.52868129530440922},{"$f":"CORREL('Migration 2010'!AT44:CS44,Demographics!AQ$11:AQ$62)","v":-3.886610192470592E-3},{"$f":"CORREL('Migration 2010'!AU44:CT44,Demographics!AR$11:AR$62)","v":0.17339576090922962},{"$f":"CORREL('Migration 2010'!AV44:CU44,Demographics!AS$11:AS$62)","v":0.17030642023020384},{"$f":"CORREL('Migration 2010'!AW44:CV44,Demographics!AT$11:AT$62)","v":8.9123474269578867E-2},{"$f":"CORREL('Migration 2010'!AX44:CW44,Demographics!AU$11:AU$62)","v":-6.0408665172321345E-2},{"$f":"CORREL('Migration 2010'!AY44:CX44,Demographics!AV$11:AV$62)","v":-0.11002246754523841},{"$f":"CORREL('Migration 2010'!AZ44:CY44,Demographics!AW$11:AW$62)","v":-0.13610810243784502},{"$f":"CORREL('Migration 2010'!BA44:CZ44,Demographics!AX$11:AX$62)","v":6.3892682201701356E-2},{"$f":"CORREL('Migration 2010'!BB44:DA44,Demographics!AY$11:AY$62)","v":1.2170734819351272E-2},{"$f":"CORREL('Migration 2010'!BC44:DB44,Demographics!AZ$11:AZ$62)","v":0.68410941104349454},{"$f":"CORREL('Migration 2010'!BD44:DC44,Demographics!BA$11:BA$62)","v":7.2867817454519507E-2}]
["North Dakota",{"$f":"CORREL('Migration 2010'!J45:BI45,Demographics!G$11:G$62)","v":0.13716371670150773},{"$f":"CORREL('Migration 2010'!K45:BJ45,Demographics!H$11:H$62)","v":-4.5544886285744726E-2},{"$f":"CORREL('Migration 2010'!L45:BK45,Demographics!I$11:I$62)","v":4.8283520081100963E-2},{"$f":"CORREL('Migration 2010'!M45:BL45,Demographics!J$11:J$62)","v":0.1496124498318199},{"$f":"CORREL('Migration 2010'!N45:BM45,Demographics!K$11:K$62)","v":0.22337320002417188},{"$f":"CORREL('Migration 2010'!O45:BN45,Demographics!L$11:L$62)","v":0.26723448494999319},{"$f":"CORREL('Migration 2010'!P45:BO45,Demographics!M$11:M$62)","v":-0.10526028590081722},{"$f":"CORREL('Migration 2010'!Q45:BP45,Demographics!N$11:N$62)","v":-7.2751936953049282E-2},{"$f":"CORREL('Migration 2010'!R45:BQ45,Demographics!O$11:O$62)","v":-4.0575562035927742E-2},{"$f":"CORREL('Migration 2010'!S45:BR45,Demographics!P$11:P$62)","v":-8.0685381345498908E-2},{"$f":"CORREL('Migration 2010'!T45:BS45,Demographics!Q$11:Q$62)","v":5.7991523316831294E-2},{"$f":"CORREL('Migration 2010'!U45:BT45,Demographics!R$11:R$62)","v":0.12045898764484432},{"$f":"CORREL('Migration 2010'!V45:BU45,Demographics!S$11:S$62)","v":7.6467384498426008E-2},{"$f":"CORREL('Migration 2010'!W45:BV45,Demographics!T$11:T$62)","v":0.1039384821405301},{"$f":"CORREL('Migration 2010'!X45:BW45,Demographics!U$11:U$62)","v":0.14340892705198385},{"$f":"CORREL('Migration 2010'!Y45:BX45,Demographics!V$11:V$62)","v":4.5920920895664227E-3},{"$f":"CORREL('Migration 2010'!Z45:BY45,Demographics!W$11:W$62)","v":-3.9286621583983779E-2},{"$f":"CORREL('Migration 2010'!AA45:BZ45,Demographics!X$11:X$62)","v":-1.1266205499999573E-2},{"$f":"CORREL('Migration 2010'!AB45:CA45,Demographics!Y$11:Y$62)","v":-7.6952171504591202E-2},{"$f":"CORREL('Migration 2010'!AC45:CB45,Demographics!Z$11:Z$62)","v":0.57896054092422822},{"$f":"CORREL('Migration 2010'!AD45:CC45,Demographics!AA$11:AA$62)","v":-9.8245286138239657E-2},{"$f":"CORREL('Migration 2010'!AE45:CD45,Demographics!AB$11:AB$62)","v":-0.10773528092112551},{"$f":"CORREL('Migration 2010'!AF45:CE45,Demographics!AC$11:AC$62)","v":0.21777210252232199},{"$f":"CORREL('Migration 2010'!AG45:CF45,Demographics!AD$11:AD$62)","v":-7.5318613649149602E-2},{"$f":"CORREL('Migration 2010'!AH45:CG45,Demographics!AE$11:AE$62)","v":2.4133078800903377E-2},{"$f":"CORREL('Migration 2010'!AI45:CH45,Demographics!AF$11:AF$62)","v":-3.9727584447183502E-2},{"$f":"CORREL('Migration 2010'!AJ45:CI45,Demographics!AG$11:AG$62)","v":-0.13899559245840135},{"$f":"CORREL('Migration 2010'!AK45:CJ45,Demographics!AH$11:AH$62)","v":-0.10255603362505018},{"$f":"CORREL('Migration 2010'!AL45:CK45,Demographics!AI$11:AI$62)","v":-9.2514573622461904E-2},{"$f":"CORREL('Migration 2010'!AM45:CL45,Demographics!AJ$11:AJ$62)","v":2.1049989105736029E-2},{"$f":"CORREL('Migration 2010'!AN45:CM45,Demographics!AK$11:AK$62)","v":0.22860349416428502},{"$f":"CORREL('Migration 2010'!AO45:CN45,Demographics!AL$11:AL$62)","v":-0.11568998792445701},{"$f":"CORREL('Migration 2010'!AP45:CO45,Demographics!AM$11:AM$62)","v":-7.8371476112229346E-2},{"$f":"CORREL('Migration 2010'!AQ45:CP45,Demographics!AN$11:AN$62)","v":0.15939938181759777},{"$f":"CORREL('Migration 2010'!AR45:CQ45,Demographics!AO$11:AO$62)","v":-0.15691499666613209},{"$f":"CORREL('Migration 2010'!AS45:CR45,Demographics!AP$11:AP$62)","v":-0.15984288181591225},{"$f":"CORREL('Migration 2010'!AT45:CS45,Demographics!AQ$11:AQ$62)","v":3.5303790160148188E-2},{"$f":"CORREL('Migration 2010'!AU45:CT45,Demographics!AR$11:AR$62)","v":-5.1442802099181714E-2},{"$f":"CORREL('Migration 2010'!AV45:CU45,Demographics!AS$11:AS$62)","v":-2.8053601705946826E-2},{"$f":"CORREL('Migration 2010'!AW45:CV45,Demographics!AT$11:AT$62)","v":0.33156516616580894},{"$f":"CORREL('Migration 2010'!AX45:CW45,Demographics!AU$11:AU$62)","v":-0.12493627533575648},{"$f":"CORREL('Migration 2010'!AY45:CX45,Demographics!AV$11:AV$62)","v":-2.2438587236017344E-2},{"$f":"CORREL('Migration 2010'!AZ45:CY45,Demographics!AW$11:AW$62)","v":9.6176023792194504E-2},{"$f":"CORREL('Migration 2010'!BA45:CZ45,Demographics!AX$11:AX$62)","v":0.28236712770976174},{"$f":"CORREL('Migration 2010'!BB45:DA45,Demographics!AY$11:AY$62)","v":7.5129576825442981E-2},{"$f":"CORREL('Migration 2010'!BC45:DB45,Demographics!AZ$11:AZ$62)","v":-7.0273997136070757E-2},{"$f":"CORREL('Migration 2010'!BD45:DC45,Demographics!BA$11:BA$62)","v":0.44495714221124227}]
["Ohio",{"$f":"CORREL('Migration 2010'!J46:BI46,Demographics!G$11:G$62)","v":-0.16010629262579334},{"$f":"CORREL('Migration 2010'!K46:BJ46,Demographics!H$11:H$62)","v":-0.19247113482575579},{"$f":"CORREL('Migration 2010'!L46:BK46,Demographics!I$11:I$62)","v":1.016761042052536E-2},{"$f":"CORREL('Migration 2010'!M46:BL46,Demographics!J$11:J$62)","v":0.12988495792961099},{"$f":"CORREL('Migration 2010'!N46:BM46,Demographics!K$11:K$62)","v":4.5228611222119144E-2},{"$f":"CORREL('Migration 2010'!O46:BN46,Demographics!L$11:L$62)","v":-0.10600161681358058},{"$f":"CORREL('Migration 2010'!P46:BO46,Demographics!M$11:M$62)","v":-0.10774088996871151},{"$f":"CORREL('Migration 2010'!Q46:BP46,Demographics!N$11:N$62)","v":-0.17932271538549116},{"$f":"CORREL('Migration 2010'!R46:BQ46,Demographics!O$11:O$62)","v":-5.0186631116906334E-2},{"$f":"CORREL('Migration 2010'!S46:BR46,Demographics!P$11:P$62)","v":2.9890710332558773E-2},{"$f":"CORREL('Migration 2010'!T46:BS46,Demographics!Q$11:Q$62)","v":6.4721400191357012E-2},{"$f":"CORREL('Migration 2010'!U46:BT46,Demographics!R$11:R$62)","v":-0.2225074508246854},{"$f":"CORREL('Migration 2010'!V46:BU46,Demographics!S$11:S$62)","v":-0.29317312083620367},{"$f":"CORREL('Migration 2010'!W46:BV46,Demographics!T$11:T$62)","v":0.15784490105563184},{"$f":"CORREL('Migration 2010'!X46:BW46,Demographics!U$11:U$62)","v":-0.22550039385983106},{"$f":"CORREL('Migration 2010'!Y46:BX46,Demographics!V$11:V$62)","v":-8.4006550932851684E-2},{"$f":"CORREL('Migration 2010'!Z46:BY46,Demographics!W$11:W$62)","v":0.17147695181321046},{"$f":"CORREL('Migration 2010'!AA46:BZ46,Demographics!X$11:X$62)","v":-3.1587234709981496E-2},{"$f":"CORREL('Migration 2010'!AB46:CA46,Demographics!Y$11:Y$62)","v":0.15061503881308477},{"$f":"CORREL('Migration 2010'!AC46:CB46,Demographics!Z$11:Z$62)","v":-1.31101624308726E-2},{"$f":"CORREL('Migration 2010'!AD46:CC46,Demographics!AA$11:AA$62)","v":-0.1921458366246287},{"$f":"CORREL('Migration 2010'!AE46:CD46,Demographics!AB$11:AB$62)","v":-9.9106467198972065E-2},{"$f":"CORREL('Migration 2010'!AF46:CE46,Demographics!AC$11:AC$62)","v":0.12354691853432571},{"$f":"CORREL('Migration 2010'!AG46:CF46,Demographics!AD$11:AD$62)","v":-1.5634770141806455E-2},{"$f":"CORREL('Migration 2010'!AH46:CG46,Demographics!AE$11:AE$62)","v":5.0230261081122156E-2},{"$f":"CORREL('Migration 2010'!AI46:CH46,Demographics!AF$11:AF$62)","v":7.1188601331065013E-2},{"$f":"CORREL('Migration 2010'!AJ46:CI46,Demographics!AG$11:AG$62)","v":-2.8343872728810999E-3},{"$f":"CORREL('Migration 2010'!AK46:CJ46,Demographics!AH$11:AH$62)","v":-0.21407047132970811},{"$f":"CORREL('Migration 2010'!AL46:CK46,Demographics!AI$11:AI$62)","v":6.6808689076884045E-2},{"$f":"CORREL('Migration 2010'!AM46:CL46,Demographics!AJ$11:AJ$62)","v":0.25077545248120203},{"$f":"CORREL('Migration 2010'!AN46:CM46,Demographics!AK$11:AK$62)","v":3.5296345564777669E-2},{"$f":"CORREL('Migration 2010'!AO46:CN46,Demographics!AL$11:AL$62)","v":-0.11661518049947626},{"$f":"CORREL('Migration 2010'!AP46:CO46,Demographics!AM$11:AM$62)","v":-8.379088994311415E-2},{"$f":"CORREL('Migration 2010'!AQ46:CP46,Demographics!AN$11:AN$62)","v":0.16374538079633882},{"$f":"CORREL('Migration 2010'!AR46:CQ46,Demographics!AO$11:AO$62)","v":-1.1824479562949816E-2},{"$f":"CORREL('Migration 2010'!AS46:CR46,Demographics!AP$11:AP$62)","v":0.22977984715580407},{"$f":"CORREL('Migration 2010'!AT46:CS46,Demographics!AQ$11:AQ$62)","v":1.394954740422821E-2},{"$f":"CORREL('Migration 2010'!AU46:CT46,Demographics!AR$11:AR$62)","v":-4.8896264345363689E-3},{"$f":"CORREL('Migration 2010'!AV46:CU46,Demographics!AS$11:AS$62)","v":0.2406648265078383},{"$f":"CORREL('Migration 2010'!AW46:CV46,Demographics!AT$11:AT$62)","v":0.20581288131239492},{"$f":"CORREL('Migration 2010'!AX46:CW46,Demographics!AU$11:AU$62)","v":-0.12198745667683908},{"$f":"CORREL('Migration 2010'!AY46:CX46,Demographics!AV$11:AV$62)","v":-0.20731350248595615},{"$f":"CORREL('Migration 2010'!AZ46:CY46,Demographics!AW$11:AW$62)","v":-7.9121116155823137E-2},{"$f":"CORREL('Migration 2010'!BA46:CZ46,Demographics!AX$11:AX$62)","v":0.2428901004354424},{"$f":"CORREL('Migration 2010'!BB46:DA46,Demographics!AY$11:AY$62)","v":8.0691324246790666E-2},{"$f":"CORREL('Migration 2010'!BC46:DB46,Demographics!AZ$11:AZ$62)","v":0.26862764976743503},{"$f":"CORREL('Migration 2010'!BD46:DC46,Demographics!BA$11:BA$62)","v":0.1898342659020941}]
["Oklahoma",{"$f":"CORREL('Migration 2010'!J47:BI47,Demographics!G$11:G$62)","v":0.29043832468601405},{"$f":"CORREL('Migration 2010'!K47:BJ47,Demographics!H$11:H$62)","v":2.117007870113146E-2},{"$f":"CORREL('Migration 2010'!L47:BK47,Demographics!I$11:I$62)","v":4.7375621965908441E-3},{"$f":"CORREL('Migration 2010'!M47:BL47,Demographics!J$11:J$62)","v":5.9390055822408021E-2},{"$f":"CORREL('Migration 2010'!N47:BM47,Demographics!K$11:K$62)","v":8.4899244604267426E-2},{"$f":"CORREL('Migration 2010'!O47:BN47,Demographics!L$11:L$62)","v":-3.9850022744475321E-2},{"$f":"CORREL('Migration 2010'!P47:BO47,Demographics!M$11:M$62)","v":-5.6909663258037625E-2},{"$f":"CORREL('Migration 2010'!Q47:BP47,Demographics!N$11:N$62)","v":-5.8224751471157118E-2},{"$f":"CORREL('Migration 2010'!R47:BQ47,Demographics!O$11:O$62)","v":-3.9575753118191351E-2},{"$f":"CORREL('Migration 2010'!S47:BR47,Demographics!P$11:P$62)","v":-7.1210103892594925E-2},{"$f":"CORREL('Migration 2010'!T47:BS47,Demographics!Q$11:Q$62)","v":-7.2226169593112677E-2},{"$f":"CORREL('Migration 2010'!U47:BT47,Demographics!R$11:R$62)","v":-0.11641243310096963},{"$f":"CORREL('Migration 2010'!V47:BU47,Demographics!S$11:S$62)","v":4.6463642993069994E-2},{"$f":"CORREL('Migration 2010'!W47:BV47,Demographics!T$11:T$62)","v":0.24595510245303134},{"$f":"CORREL('Migration 2010'!X47:BW47,Demographics!U$11:U$62)","v":-3.7197897103697121E-2},{"$f":"CORREL('Migration 2010'!Y47:BX47,Demographics!V$11:V$62)","v":-0.12823794710340114},{"$f":"CORREL('Migration 2010'!Z47:BY47,Demographics!W$11:W$62)","v":-6.7023788958769287E-2},{"$f":"CORREL('Migration 2010'!AA47:BZ47,Demographics!X$11:X$62)","v":-0.10741053391571269},{"$f":"CORREL('Migration 2010'!AB47:CA47,Demographics!Y$11:Y$62)","v":-3.9864332999968707E-2},{"$f":"CORREL('Migration 2010'!AC47:CB47,Demographics!Z$11:Z$62)","v":-6.7415493149661276E-2},{"$f":"CORREL('Migration 2010'!AD47:CC47,Demographics!AA$11:AA$62)","v":3.3036600862599581E-2},{"$f":"CORREL('Migration 2010'!AE47:CD47,Demographics!AB$11:AB$62)","v":-0.14023096640881952},{"$f":"CORREL('Migration 2010'!AF47:CE47,Demographics!AC$11:AC$62)","v":0.28396331740678343},{"$f":"CORREL('Migration 2010'!AG47:CF47,Demographics!AD$11:AD$62)","v":-2.6076702222286832E-2},{"$f":"CORREL('Migration 2010'!AH47:CG47,Demographics!AE$11:AE$62)","v":-0.15310217374155474},{"$f":"CORREL('Migration 2010'!AI47:CH47,Demographics!AF$11:AF$62)","v":-0.10768147143036444},{"$f":"CORREL('Migration 2010'!AJ47:CI47,Demographics!AG$11:AG$62)","v":-0.16497457438006807},{"$f":"CORREL('Migration 2010'!AK47:CJ47,Demographics!AH$11:AH$62)","v":-9.4252640612080552E-2},{"$f":"CORREL('Migration 2010'!AL47:CK47,Demographics!AI$11:AI$62)","v":-9.6581725331885526E-2},{"$f":"CORREL('Migration 2010'!AM47:CL47,Demographics!AJ$11:AJ$62)","v":2.1766535171675223E-2},{"$f":"CORREL('Migration 2010'!AN47:CM47,Demographics!AK$11:AK$62)","v":9.2624789650529463E-2},{"$f":"CORREL('Migration 2010'!AO47:CN47,Demographics!AL$11:AL$62)","v":-7.84315457110316E-2},{"$f":"CORREL('Migration 2010'!AP47:CO47,Demographics!AM$11:AM$62)","v":-0.11831041894945984},{"$f":"CORREL('Migration 2010'!AQ47:CP47,Demographics!AN$11:AN$62)","v":0.40230463881679096},{"$f":"CORREL('Migration 2010'!AR47:CQ47,Demographics!AO$11:AO$62)","v":-5.2919317232752575E-2},{"$f":"CORREL('Migration 2010'!AS47:CR47,Demographics!AP$11:AP$62)","v":6.6790502969340429E-2},{"$f":"CORREL('Migration 2010'!AT47:CS47,Demographics!AQ$11:AQ$62)","v":4.4161360866940263E-3},{"$f":"CORREL('Migration 2010'!AU47:CT47,Demographics!AR$11:AR$62)","v":-1.4941551061240711E-2},{"$f":"CORREL('Migration 2010'!AV47:CU47,Demographics!AS$11:AS$62)","v":0.11636373171539934},{"$f":"CORREL('Migration 2010'!AW47:CV47,Demographics!AT$11:AT$62)","v":0.48636576104577034},{"$f":"CORREL('Migration 2010'!AX47:CW47,Demographics!AU$11:AU$62)","v":-9.8384826852752003E-2},{"$f":"CORREL('Migration 2010'!AY47:CX47,Demographics!AV$11:AV$62)","v":-2.7169769480271225E-2},{"$f":"CORREL('Migration 2010'!AZ47:CY47,Demographics!AW$11:AW$62)","v":-4.1015018316763477E-2},{"$f":"CORREL('Migration 2010'!BA47:CZ47,Demographics!AX$11:AX$62)","v":5.3814252614696918E-2},{"$f":"CORREL('Migration 2010'!BB47:DA47,Demographics!AY$11:AY$62)","v":-9.5254318223988832E-2},{"$f":"CORREL('Migration 2010'!BC47:DB47,Demographics!AZ$11:AZ$62)","v":4.1906127062080079E-2},{"$f":"CORREL('Migration 2010'!BD47:DC47,Demographics!BA$11:BA$62)","v":0.21053155408921745}]
["Oregon",{"$f":"CORREL('Migration 2010'!J48:BI48,Demographics!G$11:G$62)","v":0.13302541414497568},{"$f":"CORREL('Migration 2010'!K48:BJ48,Demographics!H$11:H$62)","v":5.1155685112876922E-2},{"$f":"CORREL('Migration 2010'!L48:BK48,Demographics!I$11:I$62)","v":0.15172638840868446},{"$f":"CORREL('Migration 2010'!M48:BL48,Demographics!J$11:J$62)","v":-0.51894363008474553},{"$f":"CORREL('Migration 2010'!N48:BM48,Demographics!K$11:K$62)","v":-8.0175812865341881E-2},{"$f":"CORREL('Migration 2010'!O48:BN48,Demographics!L$11:L$62)","v":7.0384346463548284E-2},{"$f":"CORREL('Migration 2010'!P48:BO48,Demographics!M$11:M$62)","v":0.2844622048444268},{"$f":"CORREL('Migration 2010'!Q48:BP48,Demographics!N$11:N$62)","v":-0.12968099127343222},{"$f":"CORREL('Migration 2010'!R48:BQ48,Demographics!O$11:O$62)","v":-4.5565521216792609E-2},{"$f":"CORREL('Migration 2010'!S48:BR48,Demographics!P$11:P$62)","v":-0.10641540548615266},{"$f":"CORREL('Migration 2010'!T48:BS48,Demographics!Q$11:Q$62)","v":-2.0888453291297418E-2},{"$f":"CORREL('Migration 2010'!U48:BT48,Demographics!R$11:R$62)","v":-2.674637948311197E-3},{"$f":"CORREL('Migration 2010'!V48:BU48,Demographics!S$11:S$62)","v":9.3253962136568433E-2},{"$f":"CORREL('Migration 2010'!W48:BV48,Demographics!T$11:T$62)","v":-0.11808925908742583},{"$f":"CORREL('Migration 2010'!X48:BW48,Demographics!U$11:U$62)","v":-4.198178818910954E-2},{"$f":"CORREL('Migration 2010'!Y48:BX48,Demographics!V$11:V$62)","v":-6.7021657159619843E-2},{"$f":"CORREL('Migration 2010'!Z48:BY48,Demographics!W$11:W$62)","v":-0.12175550811196631},{"$f":"CORREL('Migration 2010'!AA48:BZ48,Demographics!X$11:X$62)","v":8.2943208036739616E-2},{"$f":"CORREL('Migration 2010'!AB48:CA48,Demographics!Y$11:Y$62)","v":1.7933312817820964E-2},{"$f":"CORREL('Migration 2010'!AC48:CB48,Demographics!Z$11:Z$62)","v":5.8358841568273813E-3},{"$f":"CORREL('Migration 2010'!AD48:CC48,Demographics!AA$11:AA$62)","v":-0.10191976362560694},{"$f":"CORREL('Migration 2010'!AE48:CD48,Demographics!AB$11:AB$62)","v":-0.18635823583611294},{"$f":"CORREL('Migration 2010'!AF48:CE48,Demographics!AC$11:AC$62)","v":1.2626953438863681E-2},{"$f":"CORREL('Migration 2010'!AG48:CF48,Demographics!AD$11:AD$62)","v":-0.10136490344903797},{"$f":"CORREL('Migration 2010'!AH48:CG48,Demographics!AE$11:AE$62)","v":-2.5412744962716702E-2},{"$f":"CORREL('Migration 2010'!AI48:CH48,Demographics!AF$11:AF$62)","v":-7.0784568069540033E-2},{"$f":"CORREL('Migration 2010'!AJ48:CI48,Demographics!AG$11:AG$62)","v":0.13068750598576398},{"$f":"CORREL('Migration 2010'!AK48:CJ48,Demographics!AH$11:AH$62)","v":-0.2485743571954292},{"$f":"CORREL('Migration 2010'!AL48:CK48,Demographics!AI$11:AI$62)","v":-0.10174057706877851},{"$f":"CORREL('Migration 2010'!AM48:CL48,Demographics!AJ$11:AJ$62)","v":-5.7686301991796918E-2},{"$f":"CORREL('Migration 2010'!AN48:CM48,Demographics!AK$11:AK$62)","v":9.7522286373670344E-2},{"$f":"CORREL('Migration 2010'!AO48:CN48,Demographics!AL$11:AL$62)","v":-6.9572425380613007E-2},{"$f":"CORREL('Migration 2010'!AP48:CO48,Demographics!AM$11:AM$62)","v":-7.0095902763837176E-2},{"$f":"CORREL('Migration 2010'!AQ48:CP48,Demographics!AN$11:AN$62)","v":5.5720633691363784E-2},{"$f":"CORREL('Migration 2010'!AR48:CQ48,Demographics!AO$11:AO$62)","v":-5.4234775178402188E-2},{"$f":"CORREL('Migration 2010'!AS48:CR48,Demographics!AP$11:AP$62)","v":-8.3860373232317889E-2},{"$f":"CORREL('Migration 2010'!AT48:CS48,Demographics!AQ$11:AQ$62)","v":0.91440629024065434},{"$f":"CORREL('Migration 2010'!AU48:CT48,Demographics!AR$11:AR$62)","v":-6.715086281368525E-2},{"$f":"CORREL('Migration 2010'!AV48:CU48,Demographics!AS$11:AS$62)","v":6.5639424816836434E-2},{"$f":"CORREL('Migration 2010'!AW48:CV48,Demographics!AT$11:AT$62)","v":0.30989472035067189},{"$f":"CORREL('Migration 2010'!AX48:CW48,Demographics!AU$11:AU$62)","v":-8.6858144656550548E-2},{"$f":"CORREL('Migration 2010'!AY48:CX48,Demographics!AV$11:AV$62)","v":-8.9467940237368773E-2},{"$f":"CORREL('Migration 2010'!AZ48:CY48,Demographics!AW$11:AW$62)","v":-6.4701137538409517E-2},{"$f":"CORREL('Migration 2010'!BA48:CZ48,Demographics!AX$11:AX$62)","v":0.7169153125083747},{"$f":"CORREL('Migration 2010'!BB48:DA48,Demographics!AY$11:AY$62)","v":-6.1959175015699502E-2},{"$f":"CORREL('Migration 2010'!BC48:DB48,Demographics!AZ$11:AZ$62)","v":4.3761157656585038E-2},{"$f":"CORREL('Migration 2010'!BD48:DC48,Demographics!BA$11:BA$62)","v":-1.5536106053930878E-2}]
["Pennsylvania",{"$f":"CORREL('Migration 2010'!J49:BI49,Demographics!G$11:G$62)","v":-0.16655559465435515},{"$f":"CORREL('Migration 2010'!K49:BJ49,Demographics!H$11:H$62)","v":-0.26153003446815204},{"$f":"CORREL('Migration 2010'!L49:BK49,Demographics!I$11:I$62)","v":-0.10737787467067351},{"$f":"CORREL('Migration 2010'!M49:BL49,Demographics!J$11:J$62)","v":-1.1397624629221021E-2},{"$f":"CORREL('Migration 2010'!N49:BM49,Demographics!K$11:K$62)","v":0.17064519391890889},{"$f":"CORREL('Migration 2010'!O49:BN49,Demographics!L$11:L$62)","v":-0.11759664120367642},{"$f":"CORREL('Migration 2010'!P49:BO49,Demographics!M$11:M$62)","v":3.3080123781870194E-3},{"$f":"CORREL('Migration 2010'!Q49:BP49,Demographics!N$11:N$62)","v":-7.1291157260036167E-2},{"$f":"CORREL('Migration 2010'!R49:BQ49,Demographics!O$11:O$62)","v":-3.3745356782259331E-2},{"$f":"CORREL('Migration 2010'!S49:BR49,Demographics!P$11:P$62)","v":0.21166950387760042},{"$f":"CORREL('Migration 2010'!T49:BS49,Demographics!Q$11:Q$62)","v":-0.15824807246680034},{"$f":"CORREL('Migration 2010'!U49:BT49,Demographics!R$11:R$62)","v":0.10721524514380887},{"$f":"CORREL('Migration 2010'!V49:BU49,Demographics!S$11:S$62)","v":0.11251258871233427},{"$f":"CORREL('Migration 2010'!W49:BV49,Demographics!T$11:T$62)","v":-0.1483355697760308},{"$f":"CORREL('Migration 2010'!X49:BW49,Demographics!U$11:U$62)","v":-4.3340416620825488E-2},{"$f":"CORREL('Migration 2010'!Y49:BX49,Demographics!V$11:V$62)","v":-1.207499068968043E-2},{"$f":"CORREL('Migration 2010'!Z49:BY49,Demographics!W$11:W$62)","v":-3.2239495362572083E-2},{"$f":"CORREL('Migration 2010'!AA49:BZ49,Demographics!X$11:X$62)","v":1.2427966480649021E-2},{"$f":"CORREL('Migration 2010'!AB49:CA49,Demographics!Y$11:Y$62)","v":-0.16749510376268043},{"$f":"CORREL('Migration 2010'!AC49:CB49,Demographics!Z$11:Z$62)","v":-2.9261328064625666E-2},{"$f":"CORREL('Migration 2010'!AD49:CC49,Demographics!AA$11:AA$62)","v":-9.9078065784693643E-3},{"$f":"CORREL('Migration 2010'!AE49:CD49,Demographics!AB$11:AB$62)","v":0.15508003488127028},{"$f":"CORREL('Migration 2010'!AF49:CE49,Demographics!AC$11:AC$62)","v":0.11153750508454614},{"$f":"CORREL('Migration 2010'!AG49:CF49,Demographics!AD$11:AD$62)","v":3.7305930942153594E-3},{"$f":"CORREL('Migration 2010'!AH49:CG49,Demographics!AE$11:AE$62)","v":7.1348072345618047E-2},{"$f":"CORREL('Migration 2010'!AI49:CH49,Demographics!AF$11:AF$62)","v":0.14189124445071996},{"$f":"CORREL('Migration 2010'!AJ49:CI49,Demographics!AG$11:AG$62)","v":0.23792620581373949},{"$f":"CORREL('Migration 2010'!AK49:CJ49,Demographics!AH$11:AH$62)","v":0.10329324754601138},{"$f":"CORREL('Migration 2010'!AL49:CK49,Demographics!AI$11:AI$62)","v":0.27264011442663055},{"$f":"CORREL('Migration 2010'!AM49:CL49,Demographics!AJ$11:AJ$62)","v":-6.5784589877617483E-2},{"$f":"CORREL('Migration 2010'!AN49:CM49,Demographics!AK$11:AK$62)","v":3.7781366452678683E-2},{"$f":"CORREL('Migration 2010'!AO49:CN49,Demographics!AL$11:AL$62)","v":0.10963293040753799},{"$f":"CORREL('Migration 2010'!AP49:CO49,Demographics!AM$11:AM$62)","v":-0.11470913983546331},{"$f":"CORREL('Migration 2010'!AQ49:CP49,Demographics!AN$11:AN$62)","v":0.19318162216836413},{"$f":"CORREL('Migration 2010'!AR49:CQ49,Demographics!AO$11:AO$62)","v":0.37678530826204149},{"$f":"CORREL('Migration 2010'!AS49:CR49,Demographics!AP$11:AP$62)","v":0.30323435125851783},{"$f":"CORREL('Migration 2010'!AT49:CS49,Demographics!AQ$11:AQ$62)","v":2.1115022565978268E-2},{"$f":"CORREL('Migration 2010'!AU49:CT49,Demographics!AR$11:AR$62)","v":9.8585615614107197E-2},{"$f":"CORREL('Migration 2010'!AV49:CU49,Demographics!AS$11:AS$62)","v":0.18879533815096042},{"$f":"CORREL('Migration 2010'!AW49:CV49,Demographics!AT$11:AT$62)","v":0.18153815771039603},{"$f":"CORREL('Migration 2010'!AX49:CW49,Demographics!AU$11:AU$62)","v":-1.5803899268653703E-2},{"$f":"CORREL('Migration 2010'!AY49:CX49,Demographics!AV$11:AV$62)","v":-0.10480998850940221},{"$f":"CORREL('Migration 2010'!AZ49:CY49,Demographics!AW$11:AW$62)","v":-7.7423070554420326E-2},{"$f":"CORREL('Migration 2010'!BA49:CZ49,Demographics!AX$11:AX$62)","v":0.18331433778504638},{"$f":"CORREL('Migration 2010'!BB49:DA49,Demographics!AY$11:AY$62)","v":-5.8153966721050575E-2},{"$f":"CORREL('Migration 2010'!BC49:DB49,Demographics!AZ$11:AZ$62)","v":0.39149394336430449},{"$f":"CORREL('Migration 2010'!BD49:DC49,Demographics!BA$11:BA$62)","v":0.14474832331164031}]
["Rhode Island",{"$f":"CORREL('Migration 2010'!J50:BI50,Demographics!G$11:G$62)","v":-0.30762837996380837},{"$f":"CORREL('Migration 2010'!K50:BJ50,Demographics!H$11:H$62)","v":-5.2519015006496313E-2},{"$f":"CORREL('Migration 2010'!L50:BK50,Demographics!I$11:I$62)","v":9.880317935104338E-2},{"$f":"CORREL('Migration 2010'!M50:BL50,Demographics!J$11:J$62)","v":3.0251591428482733E-2},{"$f":"CORREL('Migration 2010'!N50:BM50,Demographics!K$11:K$62)","v":0.18362878460531451},{"$f":"CORREL('Migration 2010'!O50:BN50,Demographics!L$11:L$62)","v":-0.19859093275102541},{"$f":"CORREL('Migration 2010'!P50:BO50,Demographics!M$11:M$62)","v":-6.4132322478789971E-2},{"$f":"CORREL('Migration 2010'!Q50:BP50,Demographics!N$11:N$62)","v":-0.11846198591351283},{"$f":"CORREL('Migration 2010'!R50:BQ50,Demographics!O$11:O$62)","v":7.1814269149414892E-3},{"$f":"CORREL('Migration 2010'!S50:BR50,Demographics!P$11:P$62)","v":8.5667461462505604E-3},{"$f":"CORREL('Migration 2010'!T50:BS50,Demographics!Q$11:Q$62)","v":-0.12884715006696165},{"$f":"CORREL('Migration 2010'!U50:BT50,Demographics!R$11:R$62)","v":-4.080792941790418E-3},{"$f":"CORREL('Migration 2010'!V50:BU50,Demographics!S$11:S$62)","v":-1.8134511841963828E-2},{"$f":"CORREL('Migration 2010'!W50:BV50,Demographics!T$11:T$62)","v":-8.0982652303393715E-2},{"$f":"CORREL('Migration 2010'!X50:BW50,Demographics!U$11:U$62)","v":-0.12062035280506737},{"$f":"CORREL('Migration 2010'!Y50:BX50,Demographics!V$11:V$62)","v":-2.1332200251489131E-2},{"$f":"CORREL('Migration 2010'!Z50:BY50,Demographics!W$11:W$62)","v":0.17690794023012674},{"$f":"CORREL('Migration 2010'!AA50:BZ50,Demographics!X$11:X$62)","v":0.44735233569320054},{"$f":"CORREL('Migration 2010'!AB50:CA50,Demographics!Y$11:Y$62)","v":-0.25904515152193086},{"$f":"CORREL('Migration 2010'!AC50:CB50,Demographics!Z$11:Z$62)","v":8.8316584457457353E-2},{"$f":"CORREL('Migration 2010'!AD50:CC50,Demographics!AA$11:AA$62)","v":-0.22173771178447771},{"$f":"CORREL('Migration 2010'!AE50:CD50,Demographics!AB$11:AB$62)","v":-8.2875646489069352E-2},{"$f":"CORREL('Migration 2010'!AF50:CE50,Demographics!AC$11:AC$62)","v":0.19897956019544527},{"$f":"CORREL('Migration 2010'!AG50:CF50,Demographics!AD$11:AD$62)","v":9.6136884737262771E-2},{"$f":"CORREL('Migration 2010'!AH50:CG50,Demographics!AE$11:AE$62)","v":-4.6629972019280992E-2},{"$f":"CORREL('Migration 2010'!AI50:CH50,Demographics!AF$11:AF$62)","v":0.12425202262327074},{"$f":"CORREL('Migration 2010'!AJ50:CI50,Demographics!AG$11:AG$62)","v":0.1131316500220373},{"$f":"CORREL('Migration 2010'!AK50:CJ50,Demographics!AH$11:AH$62)","v":-7.655223223234485E-2},{"$f":"CORREL('Migration 2010'!AL50:CK50,Demographics!AI$11:AI$62)","v":0.34647546546786639},{"$f":"CORREL('Migration 2010'!AM50:CL50,Demographics!AJ$11:AJ$62)","v":3.5700020558388737E-2},{"$f":"CORREL('Migration 2010'!AN50:CM50,Demographics!AK$11:AK$62)","v":0.21678545388194348},{"$f":"CORREL('Migration 2010'!AO50:CN50,Demographics!AL$11:AL$62)","v":-3.1016325724396682E-2},{"$f":"CORREL('Migration 2010'!AP50:CO50,Demographics!AM$11:AM$62)","v":-9.6520654697280661E-2},{"$f":"CORREL('Migration 2010'!AQ50:CP50,Demographics!AN$11:AN$62)","v":-8.5321468032683399E-3},{"$f":"CORREL('Migration 2010'!AR50:CQ50,Demographics!AO$11:AO$62)","v":-0.11966400872835335},{"$f":"CORREL('Migration 2010'!AS50:CR50,Demographics!AP$11:AP$62)","v":0.14250912922384648},{"$f":"CORREL('Migration 2010'!AT50:CS50,Demographics!AQ$11:AQ$62)","v":-8.5076436518405171E-2},{"$f":"CORREL('Migration 2010'!AU50:CT50,Demographics!AR$11:AR$62)","v":-7.0890949268924433E-2},{"$f":"CORREL('Migration 2010'!AV50:CU50,Demographics!AS$11:AS$62)","v":-5.958977775142453E-2},{"$f":"CORREL('Migration 2010'!AW50:CV50,Demographics!AT$11:AT$62)","v":0.25359987221365493},{"$f":"CORREL('Migration 2010'!AX50:CW50,Demographics!AU$11:AU$62)","v":-0.17296732561155959},{"$f":"CORREL('Migration 2010'!AY50:CX50,Demographics!AV$11:AV$62)","v":-0.1321808030505725},{"$f":"CORREL('Migration 2010'!AZ50:CY50,Demographics!AW$11:AW$62)","v":-0.25365677886881444},{"$f":"CORREL('Migration 2010'!BA50:CZ50,Demographics!AX$11:AX$62)","v":0.19532594058132488},{"$f":"CORREL('Migration 2010'!BB50:DA50,Demographics!AY$11:AY$62)","v":-0.10720835667375615},{"$f":"CORREL('Migration 2010'!BC50:DB50,Demographics!AZ$11:AZ$62)","v":1.8663700198522058E-2},{"$f":"CORREL('Migration 2010'!BD50:DC50,Demographics!BA$11:BA$62)","v":0.29377365573525477}]
["South Carolina",{"$f":"CORREL('Migration 2010'!J51:BI51,Demographics!G$11:G$62)","v":-9.4873899205669965E-2},{"$f":"CORREL('Migration 2010'!K51:BJ51,Demographics!H$11:H$62)","v":-0.3278025128776863},{"$f":"CORREL('Migration 2010'!L51:BK51,Demographics!I$11:I$62)","v":-4.0105757209131017E-2},{"$f":"CORREL('Migration 2010'!M51:BL51,Demographics!J$11:J$62)","v":0.20156063587306644},{"$f":"CORREL('Migration 2010'!N51:BM51,Demographics!K$11:K$62)","v":0.2134698923386891},{"$f":"CORREL('Migration 2010'!O51:BN51,Demographics!L$11:L$62)","v":-0.19657329849924202},{"$f":"CORREL('Migration 2010'!P51:BO51,Demographics!M$11:M$62)","v":-4.1290945116517021E-2},{"$f":"CORREL('Migration 2010'!Q51:BP51,Demographics!N$11:N$62)","v":-0.12355698523401949},{"$f":"CORREL('Migration 2010'!R51:BQ51,Demographics!O$11:O$62)","v":-1.7923162078569106E-2},{"$f":"CORREL('Migration 2010'!S51:BR51,Demographics!P$11:P$62)","v":0.12154110742214239},{"$f":"CORREL('Migration 2010'!T51:BS51,Demographics!Q$11:Q$62)","v":-0.15905913090419396},{"$f":"CORREL('Migration 2010'!U51:BT51,Demographics!R$11:R$62)","v":1.4498457205523478E-2},{"$f":"CORREL('Migration 2010'!V51:BU51,Demographics!S$11:S$62)","v":4.4202896395259789E-2},{"$f":"CORREL('Migration 2010'!W51:BV51,Demographics!T$11:T$62)","v":5.2961551450111208E-2},{"$f":"CORREL('Migration 2010'!X51:BW51,Demographics!U$11:U$62)","v":-8.4456670790491184E-2},{"$f":"CORREL('Migration 2010'!Y51:BX51,Demographics!V$11:V$62)","v":-0.23032115111014009},{"$f":"CORREL('Migration 2010'!Z51:BY51,Demographics!W$11:W$62)","v":-5.7111673967799481E-2},{"$f":"CORREL('Migration 2010'!AA51:BZ51,Demographics!X$11:X$62)","v":-5.0803226618236212E-2},{"$f":"CORREL('Migration 2010'!AB51:CA51,Demographics!Y$11:Y$62)","v":-0.25194495508710113},{"$f":"CORREL('Migration 2010'!AC51:CB51,Demographics!Z$11:Z$62)","v":5.569718254202766E-3},{"$f":"CORREL('Migration 2010'!AD51:CC51,Demographics!AA$11:AA$62)","v":-0.10671770988057401},{"$f":"CORREL('Migration 2010'!AE51:CD51,Demographics!AB$11:AB$62)","v":-0.17099985739999848},{"$f":"CORREL('Migration 2010'!AF51:CE51,Demographics!AC$11:AC$62)","v":0.44773825941072942},{"$f":"CORREL('Migration 2010'!AG51:CF51,Demographics!AD$11:AD$62)","v":-9.5346378590861357E-4},{"$f":"CORREL('Migration 2010'!AH51:CG51,Demographics!AE$11:AE$62)","v":4.1891548673173719E-2},{"$f":"CORREL('Migration 2010'!AI51:CH51,Demographics!AF$11:AF$62)","v":0.14846849012154179},{"$f":"CORREL('Migration 2010'!AJ51:CI51,Demographics!AG$11:AG$62)","v":0.18140944820368479},{"$f":"CORREL('Migration 2010'!AK51:CJ51,Demographics!AH$11:AH$62)","v":-0.21655959363413921},{"$f":"CORREL('Migration 2010'!AL51:CK51,Demographics!AI$11:AI$62)","v":9.4934931463557526E-2},{"$f":"CORREL('Migration 2010'!AM51:CL51,Demographics!AJ$11:AJ$62)","v":0.4600553932439766},{"$f":"CORREL('Migration 2010'!AN51:CM51,Demographics!AK$11:AK$62)","v":5.7833720184329321E-2},{"$f":"CORREL('Migration 2010'!AO51:CN51,Demographics!AL$11:AL$62)","v":1.943516252799812E-2},{"$f":"CORREL('Migration 2010'!AP51:CO51,Demographics!AM$11:AM$62)","v":-0.11973503521971993},{"$f":"CORREL('Migration 2010'!AQ51:CP51,Demographics!AN$11:AN$62)","v":0.26645861994749137},{"$f":"CORREL('Migration 2010'!AR51:CQ51,Demographics!AO$11:AO$62)","v":8.4276187939614569E-2},{"$f":"CORREL('Migration 2010'!AS51:CR51,Demographics!AP$11:AP$62)","v":0.45424143460933986},{"$f":"CORREL('Migration 2010'!AT51:CS51,Demographics!AQ$11:AQ$62)","v":7.953908733418924E-2},{"$f":"CORREL('Migration 2010'!AU51:CT51,Demographics!AR$11:AR$62)","v":0.10222349072579261},{"$f":"CORREL('Migration 2010'!AV51:CU51,Demographics!AS$11:AS$62)","v":0.16075591758015226},{"$f":"CORREL('Migration 2010'!AW51:CV51,Demographics!AT$11:AT$62)","v":0.14508178611416472},{"$f":"CORREL('Migration 2010'!AX51:CW51,Demographics!AU$11:AU$62)","v":-9.214882722879833E-2},{"$f":"CORREL('Migration 2010'!AY51:CX51,Demographics!AV$11:AV$62)","v":-0.11380640670118221},{"$f":"CORREL('Migration 2010'!AZ51:CY51,Demographics!AW$11:AW$62)","v":-0.19522149237698333},{"$f":"CORREL('Migration 2010'!BA51:CZ51,Demographics!AX$11:AX$62)","v":0.27049988868937203},{"$f":"CORREL('Migration 2010'!BB51:DA51,Demographics!AY$11:AY$62)","v":-5.4690376433937447E-2},{"$f":"CORREL('Migration 2010'!BC51:DB51,Demographics!AZ$11:AZ$62)","v":0.44338449868104723},{"$f":"CORREL('Migration 2010'!BD51:DC51,Demographics!BA$11:BA$62)","v":0.14895641351711802}]
["South Dakota",{"$f":"CORREL('Migration 2010'!J52:BI52,Demographics!G$11:G$62)","v":0.18158188022819219},{"$f":"CORREL('Migration 2010'!K52:BJ52,Demographics!H$11:H$62)","v":-2.5573984943713525E-2},{"$f":"CORREL('Migration 2010'!L52:BK52,Demographics!I$11:I$62)","v":4.8125759300834861E-2},{"$f":"CORREL('Migration 2010'!M52:BL52,Demographics!J$11:J$62)","v":-7.1735025884094514E-3},{"$f":"CORREL('Migration 2010'!N52:BM52,Demographics!K$11:K$62)","v":-0.13541231158721007},{"$f":"CORREL('Migration 2010'!O52:BN52,Demographics!L$11:L$62)","v":0.29235948987446386},{"$f":"CORREL('Migration 2010'!P52:BO52,Demographics!M$11:M$62)","v":-9.9238610842737662E-2},{"$f":"CORREL('Migration 2010'!Q52:BP52,Demographics!N$11:N$62)","v":-0.12296210164120547},{"$f":"CORREL('Migration 2010'!R52:BQ52,Demographics!O$11:O$62)","v":-6.3979373301463444E-2},{"$f":"CORREL('Migration 2010'!S52:BR52,Demographics!P$11:P$62)","v":-0.15491318142437954},{"$f":"CORREL('Migration 2010'!T52:BS52,Demographics!Q$11:Q$62)","v":7.8643005367033628E-2},{"$f":"CORREL('Migration 2010'!U52:BT52,Demographics!R$11:R$62)","v":3.7474427690062859E-2},{"$f":"CORREL('Migration 2010'!V52:BU52,Demographics!S$11:S$62)","v":3.2823393219875242E-2},{"$f":"CORREL('Migration 2010'!W52:BV52,Demographics!T$11:T$62)","v":0.14522164250459507},{"$f":"CORREL('Migration 2010'!X52:BW52,Demographics!U$11:U$62)","v":0.12743037013090716},{"$f":"CORREL('Migration 2010'!Y52:BX52,Demographics!V$11:V$62)","v":-5.6028728820277499E-2},{"$f":"CORREL('Migration 2010'!Z52:BY52,Demographics!W$11:W$62)","v":-9.3763593922111144E-2},{"$f":"CORREL('Migration 2010'!AA52:BZ52,Demographics!X$11:X$62)","v":8.9669868837939995E-2},{"$f":"CORREL('Migration 2010'!AB52:CA52,Demographics!Y$11:Y$62)","v":-0.16238886573661571},{"$f":"CORREL('Migration 2010'!AC52:CB52,Demographics!Z$11:Z$62)","v":0.4348989469111918},{"$f":"CORREL('Migration 2010'!AD52:CC52,Demographics!AA$11:AA$62)","v":-4.8528831294463129E-2},{"$f":"CORREL('Migration 2010'!AE52:CD52,Demographics!AB$11:AB$62)","v":1.4987836497348602E-2},{"$f":"CORREL('Migration 2010'!AF52:CE52,Demographics!AC$11:AC$62)","v":0.22278627483740493},{"$f":"CORREL('Migration 2010'!AG52:CF52,Demographics!AD$11:AD$62)","v":8.669678364066119E-2},{"$f":"CORREL('Migration 2010'!AH52:CG52,Demographics!AE$11:AE$62)","v":0.11181748300366118},{"$f":"CORREL('Migration 2010'!AI52:CH52,Demographics!AF$11:AF$62)","v":-0.15435661872202577},{"$f":"CORREL('Migration 2010'!AJ52:CI52,Demographics!AG$11:AG$62)","v":5.5791728174001229E-2},{"$f":"CORREL('Migration 2010'!AK52:CJ52,Demographics!AH$11:AH$62)","v":-0.10714106920592222},{"$f":"CORREL('Migration 2010'!AL52:CK52,Demographics!AI$11:AI$62)","v":-7.2786742049893521E-2},{"$f":"CORREL('Migration 2010'!AM52:CL52,Demographics!AJ$11:AJ$62)","v":-6.1218979034645994E-2},{"$f":"CORREL('Migration 2010'!AN52:CM52,Demographics!AK$11:AK$62)","v":0.27890319133690905},{"$f":"CORREL('Migration 2010'!AO52:CN52,Demographics!AL$11:AL$62)","v":-0.16697712495967662},{"$f":"CORREL('Migration 2010'!AP52:CO52,Demographics!AM$11:AM$62)","v":-0.10565199291187914},{"$f":"CORREL('Migration 2010'!AQ52:CP52,Demographics!AN$11:AN$62)","v":1.4159347222760731E-3},{"$f":"CORREL('Migration 2010'!AR52:CQ52,Demographics!AO$11:AO$62)","v":-0.1209190228999501},{"$f":"CORREL('Migration 2010'!AS52:CR52,Demographics!AP$11:AP$62)","v":-0.14297123220640026},{"$f":"CORREL('Migration 2010'!AT52:CS52,Demographics!AQ$11:AQ$62)","v":0.28935670520396434},{"$f":"CORREL('Migration 2010'!AU52:CT52,Demographics!AR$11:AR$62)","v":0.21437147084944236},{"$f":"CORREL('Migration 2010'!AV52:CU52,Demographics!AS$11:AS$62)","v":-8.3615063410634627E-2},{"$f":"CORREL('Migration 2010'!AW52:CV52,Demographics!AT$11:AT$62)","v":0.22084054956183483},{"$f":"CORREL('Migration 2010'!AX52:CW52,Demographics!AU$11:AU$62)","v":-0.18997388568660722},{"$f":"CORREL('Migration 2010'!AY52:CX52,Demographics!AV$11:AV$62)","v":-0.11958977033190155},{"$f":"CORREL('Migration 2010'!AZ52:CY52,Demographics!AW$11:AW$62)","v":0.1314477510766846},{"$f":"CORREL('Migration 2010'!BA52:CZ52,Demographics!AX$11:AX$62)","v":0.38679030866983022},{"$f":"CORREL('Migration 2010'!BB52:DA52,Demographics!AY$11:AY$62)","v":0.18405301452624426},{"$f":"CORREL('Migration 2010'!BC52:DB52,Demographics!AZ$11:AZ$62)","v":-1.6350012206434682E-2},{"$f":"CORREL('Migration 2010'!BD52:DC52,Demographics!BA$11:BA$62)","v":0.36753569428611754}]
["Tennessee",{"$f":"CORREL('Migration 2010'!J53:BI53,Demographics!G$11:G$62)","v":4.6233114609000363E-2},{"$f":"CORREL('Migration 2010'!K53:BJ53,Demographics!H$11:H$62)","v":-0.16246177475195173},{"$f":"CORREL('Migration 2010'!L53:BK53,Demographics!I$11:I$62)","v":-6.4482819480957285E-2},{"$f":"CORREL('Migration 2010'!M53:BL53,Demographics!J$11:J$62)","v":0.17130722698084613},{"$f":"CORREL('Migration 2010'!N53:BM53,Demographics!K$11:K$62)","v":2.1346038296419147E-2},{"$f":"CORREL('Migration 2010'!O53:BN53,Demographics!L$11:L$62)","v":-0.24946496874854696},{"$f":"CORREL('Migration 2010'!P53:BO53,Demographics!M$11:M$62)","v":-0.12419082681816891},{"$f":"CORREL('Migration 2010'!Q53:BP53,Demographics!N$11:N$62)","v":-0.11786937946514205},{"$f":"CORREL('Migration 2010'!R53:BQ53,Demographics!O$11:O$62)","v":-5.619588105762989E-2},{"$f":"CORREL('Migration 2010'!S53:BR53,Demographics!P$11:P$62)","v":-1.4844717567646958E-2},{"$f":"CORREL('Migration 2010'!T53:BS53,Demographics!Q$11:Q$62)","v":-0.10659751746666593},{"$f":"CORREL('Migration 2010'!U53:BT53,Demographics!R$11:R$62)","v":-3.2305277522005779E-2},{"$f":"CORREL('Migration 2010'!V53:BU53,Demographics!S$11:S$62)","v":-0.29569411907249393},{"$f":"CORREL('Migration 2010'!W53:BV53,Demographics!T$11:T$62)","v":0.37492901730549377},{"$f":"CORREL('Migration 2010'!X53:BW53,Demographics!U$11:U$62)","v":-5.0963628848655421E-2},{"$f":"CORREL('Migration 2010'!Y53:BX53,Demographics!V$11:V$62)","v":-0.23165298771494078},{"$f":"CORREL('Migration 2010'!Z53:BY53,Demographics!W$11:W$62)","v":-2.9694466482831115E-2},{"$f":"CORREL('Migration 2010'!AA53:BZ53,Demographics!X$11:X$62)","v":-0.12665729758368485},{"$f":"CORREL('Migration 2010'!AB53:CA53,Demographics!Y$11:Y$62)","v":-0.15434084759838435},{"$f":"CORREL('Migration 2010'!AC53:CB53,Demographics!Z$11:Z$62)","v":1.237419574380778E-2},{"$f":"CORREL('Migration 2010'!AD53:CC53,Demographics!AA$11:AA$62)","v":-0.30377060584592341},{"$f":"CORREL('Migration 2010'!AE53:CD53,Demographics!AB$11:AB$62)","v":-0.22153540596968027},{"$f":"CORREL('Migration 2010'!AF53:CE53,Demographics!AC$11:AC$62)","v":0.18790461442917039},{"$f":"CORREL('Migration 2010'!AG53:CF53,Demographics!AD$11:AD$62)","v":-0.11388394104287813},{"$f":"CORREL('Migration 2010'!AH53:CG53,Demographics!AE$11:AE$62)","v":7.3149377227285844E-2},{"$f":"CORREL('Migration 2010'!AI53:CH53,Demographics!AF$11:AF$62)","v":-2.5857111288440215E-2},{"$f":"CORREL('Migration 2010'!AJ53:CI53,Demographics!AG$11:AG$62)","v":5.8246863023183881E-2},{"$f":"CORREL('Migration 2010'!AK53:CJ53,Demographics!AH$11:AH$62)","v":-0.14838983351548346},{"$f":"CORREL('Migration 2010'!AL53:CK53,Demographics!AI$11:AI$62)","v":-3.1756531745296371E-2},{"$f":"CORREL('Migration 2010'!AM53:CL53,Demographics!AJ$11:AJ$62)","v":0.12017819474130505},{"$f":"CORREL('Migration 2010'!AN53:CM53,Demographics!AK$11:AK$62)","v":7.1209948472445966E-2},{"$f":"CORREL('Migration 2010'!AO53:CN53,Demographics!AL$11:AL$62)","v":0.11597189688152164},{"$f":"CORREL('Migration 2010'!AP53:CO53,Demographics!AM$11:AM$62)","v":-0.14234951464033893},{"$f":"CORREL('Migration 2010'!AQ53:CP53,Demographics!AN$11:AN$62)","v":0.23946711133529822},{"$f":"CORREL('Migration 2010'!AR53:CQ53,Demographics!AO$11:AO$62)","v":0.13121946186458555},{"$f":"CORREL('Migration 2010'!AS53:CR53,Demographics!AP$11:AP$62)","v":0.4020307562745748},{"$f":"CORREL('Migration 2010'!AT53:CS53,Demographics!AQ$11:AQ$62)","v":-3.4542445413055768E-2},{"$f":"CORREL('Migration 2010'!AU53:CT53,Demographics!AR$11:AR$62)","v":7.5769910651110509E-2},{"$f":"CORREL('Migration 2010'!AV53:CU53,Demographics!AS$11:AS$62)","v":0.19457495783451159},{"$f":"CORREL('Migration 2010'!AW53:CV53,Demographics!AT$11:AT$62)","v":0.28715373151945067},{"$f":"CORREL('Migration 2010'!AX53:CW53,Demographics!AU$11:AU$62)","v":1.1530526612182575E-2},{"$f":"CORREL('Migration 2010'!AY53:CX53,Demographics!AV$11:AV$62)","v":-0.21155965528722995},{"$f":"CORREL('Migration 2010'!AZ53:CY53,Demographics!AW$11:AW$62)","v":-5.5635605244968606E-2},{"$f":"CORREL('Migration 2010'!BA53:CZ53,Demographics!AX$11:AX$62)","v":0.15281970712799609},{"$f":"CORREL('Migration 2010'!BB53:DA53,Demographics!AY$11:AY$62)","v":5.2364054629799796E-2},{"$f":"CORREL('Migration 2010'!BC53:DB53,Demographics!AZ$11:AZ$62)","v":0.40141908093296513},{"$f":"CORREL('Migration 2010'!BD53:DC53,Demographics!BA$11:BA$62)","v":0.21828383451674727}]
["Texas",{"$f":"CORREL('Migration 2010'!J54:BI54,Demographics!G$11:G$62)","v":0.17291117020580632},{"$f":"CORREL('Migration 2010'!K54:BJ54,Demographics!H$11:H$62)","v":4.1544615862672309E-2},{"$f":"CORREL('Migration 2010'!L54:BK54,Demographics!I$11:I$62)","v":3.7571038372537544E-2},{"$f":"CORREL('Migration 2010'!M54:BL54,Demographics!J$11:J$62)","v":-0.24266565263890433},{"$f":"CORREL('Migration 2010'!N54:BM54,Demographics!K$11:K$62)","v":-5.8311178260296734E-2},{"$f":"CORREL('Migration 2010'!O54:BN54,Demographics!L$11:L$62)","v":-0.12650760167206448},{"$f":"CORREL('Migration 2010'!P54:BO54,Demographics!M$11:M$62)","v":-6.0179368682754857E-2},{"$f":"CORREL('Migration 2010'!Q54:BP54,Demographics!N$11:N$62)","v":0.33434787966492113},{"$f":"CORREL('Migration 2010'!R54:BQ54,Demographics!O$11:O$62)","v":-5.7183919546930216E-2},{"$f":"CORREL('Migration 2010'!S54:BR54,Demographics!P$11:P$62)","v":-5.6210944724834892E-2},{"$f":"CORREL('Migration 2010'!T54:BS54,Demographics!Q$11:Q$62)","v":-0.17733978901800881},{"$f":"CORREL('Migration 2010'!U54:BT54,Demographics!R$11:R$62)","v":-0.15452932432699187},{"$f":"CORREL('Migration 2010'!V54:BU54,Demographics!S$11:S$62)","v":0.12546085457981479},{"$f":"CORREL('Migration 2010'!W54:BV54,Demographics!T$11:T$62)","v":-8.3954007144049228E-2},{"$f":"CORREL('Migration 2010'!X54:BW54,Demographics!U$11:U$62)","v":0.30302274288244996},{"$f":"CORREL('Migration 2010'!Y54:BX54,Demographics!V$11:V$62)","v":-0.14007527588501531},{"$f":"CORREL('Migration 2010'!Z54:BY54,Demographics!W$11:W$62)","v":5.299887884510477E-2},{"$f":"CORREL('Migration 2010'!AA54:BZ54,Demographics!X$11:X$62)","v":-0.13491378849601809},{"$f":"CORREL('Migration 2010'!AB54:CA54,Demographics!Y$11:Y$62)","v":1.032124489624958E-2},{"$f":"CORREL('Migration 2010'!AC54:CB54,Demographics!Z$11:Z$62)","v":9.6473056827576939E-2},{"$f":"CORREL('Migration 2010'!AD54:CC54,Demographics!AA$11:AA$62)","v":-0.24035834270786879},{"$f":"CORREL('Migration 2010'!AE54:CD54,Demographics!AB$11:AB$62)","v":-4.6277720606002729E-2},{"$f":"CORREL('Migration 2010'!AF54:CE54,Demographics!AC$11:AC$62)","v":6.0353018837609712E-2},{"$f":"CORREL('Migration 2010'!AG54:CF54,Demographics!AD$11:AD$62)","v":8.5718340134372559E-2},{"$f":"CORREL('Migration 2010'!AH54:CG54,Demographics!AE$11:AE$62)","v":0.25372502509631967},{"$f":"CORREL('Migration 2010'!AI54:CH54,Demographics!AF$11:AF$62)","v":8.9939877838447854E-2},{"$f":"CORREL('Migration 2010'!AJ54:CI54,Demographics!AG$11:AG$62)","v":0.20103785863582305},{"$f":"CORREL('Migration 2010'!AK54:CJ54,Demographics!AH$11:AH$62)","v":-0.11703826631064521},{"$f":"CORREL('Migration 2010'!AL54:CK54,Demographics!AI$11:AI$62)","v":0.18972990940597137},{"$f":"CORREL('Migration 2010'!AM54:CL54,Demographics!AJ$11:AJ$62)","v":6.6906794883102888E-2},{"$f":"CORREL('Migration 2010'!AN54:CM54,Demographics!AK$11:AK$62)","v":-4.6704547350869867E-2},{"$f":"CORREL('Migration 2010'!AO54:CN54,Demographics!AL$11:AL$62)","v":9.5888068111502859E-3},{"$f":"CORREL('Migration 2010'!AP54:CO54,Demographics!AM$11:AM$62)","v":0.29223582154957523},{"$f":"CORREL('Migration 2010'!AQ54:CP54,Demographics!AN$11:AN$62)","v":0.15981565854900973},{"$f":"CORREL('Migration 2010'!AR54:CQ54,Demographics!AO$11:AO$62)","v":0.1051305669660437},{"$f":"CORREL('Migration 2010'!AS54:CR54,Demographics!AP$11:AP$62)","v":0.21120064817205722},{"$f":"CORREL('Migration 2010'!AT54:CS54,Demographics!AQ$11:AQ$62)","v":0.14329603829656032},{"$f":"CORREL('Migration 2010'!AU54:CT54,Demographics!AR$11:AR$62)","v":6.7109663814332837E-2},{"$f":"CORREL('Migration 2010'!AV54:CU54,Demographics!AS$11:AS$62)","v":0.20638825371261726},{"$f":"CORREL('Migration 2010'!AW54:CV54,Demographics!AT$11:AT$62)","v":5.1219726719419101E-2},{"$f":"CORREL('Migration 2010'!AX54:CW54,Demographics!AU$11:AU$62)","v":-5.0070450928263947E-2},{"$f":"CORREL('Migration 2010'!AY54:CX54,Demographics!AV$11:AV$62)","v":-0.20830162488911258},{"$f":"CORREL('Migration 2010'!AZ54:CY54,Demographics!AW$11:AW$62)","v":-7.0069931916051653E-2},{"$f":"CORREL('Migration 2010'!BA54:CZ54,Demographics!AX$11:AX$62)","v":0.43261893958935277},{"$f":"CORREL('Migration 2010'!BB54:DA54,Demographics!AY$11:AY$62)","v":-3.209289611283421E-2},{"$f":"CORREL('Migration 2010'!BC54:DB54,Demographics!AZ$11:AZ$62)","v":0.33867659717094473},{"$f":"CORREL('Migration 2010'!BD54:DC54,Demographics!BA$11:BA$62)","v":0.21481430058252521}]
["Utah",{"$f":"CORREL('Migration 2010'!J55:BI55,Demographics!G$11:G$62)","v":0.34902809273644902},{"$f":"CORREL('Migration 2010'!K55:BJ55,Demographics!H$11:H$62)","v":0.10053014826062007},{"$f":"CORREL('Migration 2010'!L55:BK55,Demographics!I$11:I$62)","v":5.1613469086635257E-2},{"$f":"CORREL('Migration 2010'!M55:BL55,Demographics!J$11:J$62)","v":-0.33404556495866389},{"$f":"CORREL('Migration 2010'!N55:BM55,Demographics!K$11:K$62)","v":-0.12442856468198932},{"$f":"CORREL('Migration 2010'!O55:BN55,Demographics!L$11:L$62)","v":6.6963620723867329E-2},{"$f":"CORREL('Migration 2010'!P55:BO55,Demographics!M$11:M$62)","v":-6.9457065074660165E-3},{"$f":"CORREL('Migration 2010'!Q55:BP55,Demographics!N$11:N$62)","v":-0.10955069504625399},{"$f":"CORREL('Migration 2010'!R55:BQ55,Demographics!O$11:O$62)","v":-3.1491994022701378E-2},{"$f":"CORREL('Migration 2010'!S55:BR55,Demographics!P$11:P$62)","v":-0.10927961458298059},{"$f":"CORREL('Migration 2010'!T55:BS55,Demographics!Q$11:Q$62)","v":1.5593202967847851E-2},{"$f":"CORREL('Migration 2010'!U55:BT55,Demographics!R$11:R$62)","v":5.9458832061370669E-2},{"$f":"CORREL('Migration 2010'!V55:BU55,Demographics!S$11:S$62)","v":2.6353060636895746E-2},{"$f":"CORREL('Migration 2010'!W55:BV55,Demographics!T$11:T$62)","v":5.8161604971652238E-3},{"$f":"CORREL('Migration 2010'!X55:BW55,Demographics!U$11:U$62)","v":-0.1029264661538806},{"$f":"CORREL('Migration 2010'!Y55:BX55,Demographics!V$11:V$62)","v":-0.10070379127110735},{"$f":"CORREL('Migration 2010'!Z55:BY55,Demographics!W$11:W$62)","v":-6.8018527459766151E-2},{"$f":"CORREL('Migration 2010'!AA55:BZ55,Demographics!X$11:X$62)","v":1.4752687084565676E-2},{"$f":"CORREL('Migration 2010'!AB55:CA55,Demographics!Y$11:Y$62)","v":-7.0635618906137537E-2},{"$f":"CORREL('Migration 2010'!AC55:CB55,Demographics!Z$11:Z$62)","v":0.15793440258060562},{"$f":"CORREL('Migration 2010'!AD55:CC55,Demographics!AA$11:AA$62)","v":-0.13302318161638768},{"$f":"CORREL('Migration 2010'!AE55:CD55,Demographics!AB$11:AB$62)","v":-0.27389272231787559},{"$f":"CORREL('Migration 2010'!AF55:CE55,Demographics!AC$11:AC$62)","v":0.24649065569396908},{"$f":"CORREL('Migration 2010'!AG55:CF55,Demographics!AD$11:AD$62)","v":-6.2806322836308048E-2},{"$f":"CORREL('Migration 2010'!AH55:CG55,Demographics!AE$11:AE$62)","v":0.1241865273657462},{"$f":"CORREL('Migration 2010'!AI55:CH55,Demographics!AF$11:AF$62)","v":-7.3905742036156116E-2},{"$f":"CORREL('Migration 2010'!AJ55:CI55,Demographics!AG$11:AG$62)","v":-1.1479999518627455E-2},{"$f":"CORREL('Migration 2010'!AK55:CJ55,Demographics!AH$11:AH$62)","v":-0.20994505628552979},{"$f":"CORREL('Migration 2010'!AL55:CK55,Demographics!AI$11:AI$62)","v":-6.4053566941338388E-2},{"$f":"CORREL('Migration 2010'!AM55:CL55,Demographics!AJ$11:AJ$62)","v":-4.4005733607554907E-2},{"$f":"CORREL('Migration 2010'!AN55:CM55,Demographics!AK$11:AK$62)","v":0.1884334255766347},{"$f":"CORREL('Migration 2010'!AO55:CN55,Demographics!AL$11:AL$62)","v":-9.2541362670312793E-2},{"$f":"CORREL('Migration 2010'!AP55:CO55,Demographics!AM$11:AM$62)","v":-2.781374970118454E-2},{"$f":"CORREL('Migration 2010'!AQ55:CP55,Demographics!AN$11:AN$62)","v":0.23774405215968122},{"$f":"CORREL('Migration 2010'!AR55:CQ55,Demographics!AO$11:AO$62)","v":3.2339733010195958E-2},{"$f":"CORREL('Migration 2010'!AS55:CR55,Demographics!AP$11:AP$62)","v":0.20005592803626121},{"$f":"CORREL('Migration 2010'!AT55:CS55,Demographics!AQ$11:AQ$62)","v":0.29003133888233679},{"$f":"CORREL('Migration 2010'!AU55:CT55,Demographics!AR$11:AR$62)","v":2.0402567405321176E-2},{"$f":"CORREL('Migration 2010'!AV55:CU55,Demographics!AS$11:AS$62)","v":-7.025707043698548E-2},{"$f":"CORREL('Migration 2010'!AW55:CV55,Demographics!AT$11:AT$62)","v":0.27729112025959346},{"$f":"CORREL('Migration 2010'!AX55:CW55,Demographics!AU$11:AU$62)","v":-0.20081978531489381},{"$f":"CORREL('Migration 2010'!AY55:CX55,Demographics!AV$11:AV$62)","v":-4.5460489927357878E-2},{"$f":"CORREL('Migration 2010'!AZ55:CY55,Demographics!AW$11:AW$62)","v":-0.1904238435508919},{"$f":"CORREL('Migration 2010'!BA55:CZ55,Demographics!AX$11:AX$62)","v":0.35908993001739525},{"$f":"CORREL('Migration 2010'!BB55:DA55,Demographics!AY$11:AY$62)","v":-0.16637892008460919},{"$f":"CORREL('Migration 2010'!BC55:DB55,Demographics!AZ$11:AZ$62)","v":0.19298615023190502},{"$f":"CORREL('Migration 2010'!BD55:DC55,Demographics!BA$11:BA$62)","v":0.20277664619524702}]
["Vermont",{"$f":"CORREL('Migration 2010'!J56:BI56,Demographics!G$11:G$62)","v":-0.43451522251762176},{"$f":"CORREL('Migration 2010'!K56:BJ56,Demographics!H$11:H$62)","v":5.3942332201676872E-2},{"$f":"CORREL('Migration 2010'!L56:BK56,Demographics!I$11:I$62)","v":8.4850020069698204E-2},{"$f":"CORREL('Migration 2010'!M56:BL56,Demographics!J$11:J$62)","v":-2.6187673722604519E-2},{"$f":"CORREL('Migration 2010'!N56:BM56,Demographics!K$11:K$62)","v":0.20349418729058727},{"$f":"CORREL('Migration 2010'!O56:BN56,Demographics!L$11:L$62)","v":-9.1819242131950616E-3},{"$f":"CORREL('Migration 2010'!P56:BO56,Demographics!M$11:M$62)","v":7.54915475502343E-4},{"$f":"CORREL('Migration 2010'!Q56:BP56,Demographics!N$11:N$62)","v":-0.15601883001546141},{"$f":"CORREL('Migration 2010'!R56:BQ56,Demographics!O$11:O$62)","v":9.9877741623811828E-2},{"$f":"CORREL('Migration 2010'!S56:BR56,Demographics!P$11:P$62)","v":-4.0524235114639762E-2},{"$f":"CORREL('Migration 2010'!T56:BS56,Demographics!Q$11:Q$62)","v":-0.1551576684714224},{"$f":"CORREL('Migration 2010'!U56:BT56,Demographics!R$11:R$62)","v":-4.3534011169054591E-3},{"$f":"CORREL('Migration 2010'!V56:BU56,Demographics!S$11:S$62)","v":2.804113464618967E-2},{"$f":"CORREL('Migration 2010'!W56:BV56,Demographics!T$11:T$62)","v":-4.1825726365894475E-2},{"$f":"CORREL('Migration 2010'!X56:BW56,Demographics!U$11:U$62)","v":-0.18792462554609513},{"$f":"CORREL('Migration 2010'!Y56:BX56,Demographics!V$11:V$62)","v":-7.5706396098566817E-2},{"$f":"CORREL('Migration 2010'!Z56:BY56,Demographics!W$11:W$62)","v":0.16803958906141042},{"$f":"CORREL('Migration 2010'!AA56:BZ56,Demographics!X$11:X$62)","v":0.26226699961180777},{"$f":"CORREL('Migration 2010'!AB56:CA56,Demographics!Y$11:Y$62)","v":-0.24661333953756315},{"$f":"CORREL('Migration 2010'!AC56:CB56,Demographics!Z$11:Z$62)","v":0.19432442397821983},{"$f":"CORREL('Migration 2010'!AD56:CC56,Demographics!AA$11:AA$62)","v":-0.17429086133974608},{"$f":"CORREL('Migration 2010'!AE56:CD56,Demographics!AB$11:AB$62)","v":-1.2058714397868622E-2},{"$f":"CORREL('Migration 2010'!AF56:CE56,Demographics!AC$11:AC$62)","v":0.14044876762915789},{"$f":"CORREL('Migration 2010'!AG56:CF56,Demographics!AD$11:AD$62)","v":7.9019998748696099E-2},{"$f":"CORREL('Migration 2010'!AH56:CG56,Demographics!AE$11:AE$62)","v":-8.8171101423689488E-2},{"$f":"CORREL('Migration 2010'!AI56:CH56,Demographics!AF$11:AF$62)","v":0.10960496119705862},{"$f":"CORREL('Migration 2010'!AJ56:CI56,Demographics!AG$11:AG$62)","v":-2.4232380066692285E-2},{"$f":"CORREL('Migration 2010'!AK56:CJ56,Demographics!AH$11:AH$62)","v":2.0264356721627377E-2},{"$f":"CORREL('Migration 2010'!AL56:CK56,Demographics!AI$11:AI$62)","v":0.33495380975309419},{"$f":"CORREL('Migration 2010'!AM56:CL56,Demographics!AJ$11:AJ$62)","v":-3.0785762107445928E-2},{"$f":"CORREL('Migration 2010'!AN56:CM56,Demographics!AK$11:AK$62)","v":0.25104561741825704},{"$f":"CORREL('Migration 2010'!AO56:CN56,Demographics!AL$11:AL$62)","v":-5.361053601918489E-2},{"$f":"CORREL('Migration 2010'!AP56:CO56,Demographics!AM$11:AM$62)","v":-8.7585233732894743E-2},{"$f":"CORREL('Migration 2010'!AQ56:CP56,Demographics!AN$11:AN$62)","v":-9.1759438414236352E-2},{"$f":"CORREL('Migration 2010'!AR56:CQ56,Demographics!AO$11:AO$62)","v":-0.12826850700092612},{"$f":"CORREL('Migration 2010'!AS56:CR56,Demographics!AP$11:AP$62)","v":-2.469715576063641E-2},{"$f":"CORREL('Migration 2010'!AT56:CS56,Demographics!AQ$11:AQ$62)","v":-8.2760977735956448E-2},{"$f":"CORREL('Migration 2010'!AU56:CT56,Demographics!AR$11:AR$62)","v":-0.15734973088173723},{"$f":"CORREL('Migration 2010'!AV56:CU56,Demographics!AS$11:AS$62)","v":-7.8355110685396578E-2},{"$f":"CORREL('Migration 2010'!AW56:CV56,Demographics!AT$11:AT$62)","v":0.38844512140763343},{"$f":"CORREL('Migration 2010'!AX56:CW56,Demographics!AU$11:AU$62)","v":-0.11490436783557886},{"$f":"CORREL('Migration 2010'!AY56:CX56,Demographics!AV$11:AV$62)","v":-0.12626609437884717},{"$f":"CORREL('Migration 2010'!AZ56:CY56,Demographics!AW$11:AW$62)","v":-0.20177190999369476},{"$f":"CORREL('Migration 2010'!BA56:CZ56,Demographics!AX$11:AX$62)","v":0.17369018595777305},{"$f":"CORREL('Migration 2010'!BB56:DA56,Demographics!AY$11:AY$62)","v":-0.12069625308535335},{"$f":"CORREL('Migration 2010'!BC56:DB56,Demographics!AZ$11:AZ$62)","v":-0.11327563141503393},{"$f":"CORREL('Migration 2010'!BD56:DC56,Demographics!BA$11:BA$62)","v":0.28765327055476031}]
["Virginia",{"$f":"CORREL('Migration 2010'!J57:BI57,Demographics!G$11:G$62)","v":-9.1496455664879073E-2},{"$f":"CORREL('Migration 2010'!K57:BJ57,Demographics!H$11:H$62)","v":-0.30830378196293606},{"$f":"CORREL('Migration 2010'!L57:BK57,Demographics!I$11:I$62)","v":3.8461991036370699E-2},{"$f":"CORREL('Migration 2010'!M57:BL57,Demographics!J$11:J$62)","v":2.9966197655284091E-2},{"$f":"CORREL('Migration 2010'!N57:BM57,Demographics!K$11:K$62)","v":0.19032520834967204},{"$f":"CORREL('Migration 2010'!O57:BN57,Demographics!L$11:L$62)","v":-0.12802489790418667},{"$f":"CORREL('Migration 2010'!P57:BO57,Demographics!M$11:M$62)","v":4.5969346856304286E-2},{"$f":"CORREL('Migration 2010'!Q57:BP57,Demographics!N$11:N$62)","v":-0.11142984810886612},{"$f":"CORREL('Migration 2010'!R57:BQ57,Demographics!O$11:O$62)","v":-4.5408266019099724E-2},{"$f":"CORREL('Migration 2010'!S57:BR57,Demographics!P$11:P$62)","v":0.4487542319482159},{"$f":"CORREL('Migration 2010'!T57:BS57,Demographics!Q$11:Q$62)","v":-0.10871280157610017},{"$f":"CORREL('Migration 2010'!U57:BT57,Demographics!R$11:R$62)","v":-6.6181563277893998E-2},{"$f":"CORREL('Migration 2010'!V57:BU57,Demographics!S$11:S$62)","v":1.6366610055500358E-2},{"$f":"CORREL('Migration 2010'!W57:BV57,Demographics!T$11:T$62)","v":-1.4584732922010731E-2},{"$f":"CORREL('Migration 2010'!X57:BW57,Demographics!U$11:U$62)","v":-0.10414103418669236},{"$f":"CORREL('Migration 2010'!Y57:BX57,Demographics!V$11:V$62)","v":-0.14022013721831783},{"$f":"CORREL('Migration 2010'!Z57:BY57,Demographics!W$11:W$62)","v":-6.3865487433786977E-2},{"$f":"CORREL('Migration 2010'!AA57:BZ57,Demographics!X$11:X$62)","v":-9.0447456892867581E-2},{"$f":"CORREL('Migration 2010'!AB57:CA57,Demographics!Y$11:Y$62)","v":-6.3828908506510171E-2},{"$f":"CORREL('Migration 2010'!AC57:CB57,Demographics!Z$11:Z$62)","v":-8.5350037073717383E-2},{"$f":"CORREL('Migration 2010'!AD57:CC57,Demographics!AA$11:AA$62)","v":7.9673968664953961E-3},{"$f":"CORREL('Migration 2010'!AE57:CD57,Demographics!AB$11:AB$62)","v":-9.2152502497476071E-2},{"$f":"CORREL('Migration 2010'!AF57:CE57,Demographics!AC$11:AC$62)","v":0.40532675075951952},{"$f":"CORREL('Migration 2010'!AG57:CF57,Demographics!AD$11:AD$62)","v":3.7162595113847376E-2},{"$f":"CORREL('Migration 2010'!AH57:CG57,Demographics!AE$11:AE$62)","v":1.963785956088521E-2},{"$f":"CORREL('Migration 2010'!AI57:CH57,Demographics!AF$11:AF$62)","v":-3.8513094429684099E-2},{"$f":"CORREL('Migration 2010'!AJ57:CI57,Demographics!AG$11:AG$62)","v":9.4568268492397453E-2},{"$f":"CORREL('Migration 2010'!AK57:CJ57,Demographics!AH$11:AH$62)","v":-0.25845037353381056},{"$f":"CORREL('Migration 2010'!AL57:CK57,Demographics!AI$11:AI$62)","v":0.21135791913577623},{"$f":"CORREL('Migration 2010'!AM57:CL57,Demographics!AJ$11:AJ$62)","v":0.42061305064465604},{"$f":"CORREL('Migration 2010'!AN57:CM57,Demographics!AK$11:AK$62)","v":0.17817931869706483},{"$f":"CORREL('Migration 2010'!AO57:CN57,Demographics!AL$11:AL$62)","v":6.4305266884088899E-2},{"$f":"CORREL('Migration 2010'!AP57:CO57,Demographics!AM$11:AM$62)","v":-0.18072179993228626},{"$f":"CORREL('Migration 2010'!AQ57:CP57,Demographics!AN$11:AN$62)","v":0.31830928771448441},{"$f":"CORREL('Migration 2010'!AR57:CQ57,Demographics!AO$11:AO$62)","v":0.11252148400585649},{"$f":"CORREL('Migration 2010'!AS57:CR57,Demographics!AP$11:AP$62)","v":-0.12015271585612901},{"$f":"CORREL('Migration 2010'!AT57:CS57,Demographics!AQ$11:AQ$62)","v":7.6979777322981932E-2},{"$f":"CORREL('Migration 2010'!AU57:CT57,Demographics!AR$11:AR$62)","v":-0.21055142840920194},{"$f":"CORREL('Migration 2010'!AV57:CU57,Demographics!AS$11:AS$62)","v":0.22043712133033519},{"$f":"CORREL('Migration 2010'!AW57:CV57,Demographics!AT$11:AT$62)","v":0.32682189541756845},{"$f":"CORREL('Migration 2010'!AX57:CW57,Demographics!AU$11:AU$62)","v":-0.1070159474490207},{"$f":"CORREL('Migration 2010'!AY57:CX57,Demographics!AV$11:AV$62)","v":-0.15266181185336411},{"$f":"CORREL('Migration 2010'!AZ57:CY57,Demographics!AW$11:AW$62)","v":-9.1478235477322603E-2},{"$f":"CORREL('Migration 2010'!BA57:CZ57,Demographics!AX$11:AX$62)","v":0.313304872529372},{"$f":"CORREL('Migration 2010'!BB57:DA57,Demographics!AY$11:AY$62)","v":3.4192124347684802E-2},{"$f":"CORREL('Migration 2010'!BC57:DB57,Demographics!AZ$11:AZ$62)","v":-8.108802625718553E-2},{"$f":"CORREL('Migration 2010'!BD57:DC57,Demographics!BA$11:BA$62)","v":0.16733982824575147}]
["Washington",{"$f":"CORREL('Migration 2010'!J58:BI58,Demographics!G$11:G$62)","v":0.16002288955258795},{"$f":"CORREL('Migration 2010'!K58:BJ58,Demographics!H$11:H$62)","v":8.1885288051449678E-2},{"$f":"CORREL('Migration 2010'!L58:BK58,Demographics!I$11:I$62)","v":5.3601639109769776E-2},{"$f":"CORREL('Migration 2010'!M58:BL58,Demographics!J$11:J$62)","v":-0.49579933659127512},{"$f":"CORREL('Migration 2010'!N58:BM58,Demographics!K$11:K$62)","v":-0.14858655258427095},{"$f":"CORREL('Migration 2010'!O58:BN58,Demographics!L$11:L$62)","v":0.10027849670692633},{"$f":"CORREL('Migration 2010'!P58:BO58,Demographics!M$11:M$62)","v":0.24203965277737885},{"$f":"CORREL('Migration 2010'!Q58:BP58,Demographics!N$11:N$62)","v":3.356259371100908E-2},{"$f":"CORREL('Migration 2010'!R58:BQ58,Demographics!O$11:O$62)","v":-4.8487390516546637E-2},{"$f":"CORREL('Migration 2010'!S58:BR58,Demographics!P$11:P$62)","v":-4.2958165824862324E-2},{"$f":"CORREL('Migration 2010'!T58:BS58,Demographics!Q$11:Q$62)","v":1.9655299391010031E-2},{"$f":"CORREL('Migration 2010'!U58:BT58,Demographics!R$11:R$62)","v":0.1128522664844932},{"$f":"CORREL('Migration 2010'!V58:BU58,Demographics!S$11:S$62)","v":-6.0934275467375593E-2},{"$f":"CORREL('Migration 2010'!W58:BV58,Demographics!T$11:T$62)","v":-4.6232250092547812E-2},{"$f":"CORREL('Migration 2010'!X58:BW58,Demographics!U$11:U$62)","v":-2.8725652543905151E-2},{"$f":"CORREL('Migration 2010'!Y58:BX58,Demographics!V$11:V$62)","v":-6.7462107940682694E-3},{"$f":"CORREL('Migration 2010'!Z58:BY58,Demographics!W$11:W$62)","v":0.23131583832807609},{"$f":"CORREL('Migration 2010'!AA58:BZ58,Demographics!X$11:X$62)","v":1.5562506251346532E-2},{"$f":"CORREL('Migration 2010'!AB58:CA58,Demographics!Y$11:Y$62)","v":-0.11037182900062582},{"$f":"CORREL('Migration 2010'!AC58:CB58,Demographics!Z$11:Z$62)","v":1.6989465183453047E-2},{"$f":"CORREL('Migration 2010'!AD58:CC58,Demographics!AA$11:AA$62)","v":-3.7003201519746495E-2},{"$f":"CORREL('Migration 2010'!AE58:CD58,Demographics!AB$11:AB$62)","v":-0.22184465476353366},{"$f":"CORREL('Migration 2010'!AF58:CE58,Demographics!AC$11:AC$62)","v":3.6646171633433727E-2},{"$f":"CORREL('Migration 2010'!AG58:CF58,Demographics!AD$11:AD$62)","v":-3.6997680004085404E-2},{"$f":"CORREL('Migration 2010'!AH58:CG58,Demographics!AE$11:AE$62)","v":0.11687239757378329},{"$f":"CORREL('Migration 2010'!AI58:CH58,Demographics!AF$11:AF$62)","v":-0.13365377416153656},{"$f":"CORREL('Migration 2010'!AJ58:CI58,Demographics!AG$11:AG$62)","v":0.14056251475450077},{"$f":"CORREL('Migration 2010'!AK58:CJ58,Demographics!AH$11:AH$62)","v":3.5960515776786883E-2},{"$f":"CORREL('Migration 2010'!AL58:CK58,Demographics!AI$11:AI$62)","v":0.21542800236762524},{"$f":"CORREL('Migration 2010'!AM58:CL58,Demographics!AJ$11:AJ$62)","v":-3.1382886311531188E-2},{"$f":"CORREL('Migration 2010'!AN58:CM58,Demographics!AK$11:AK$62)","v":4.8571483462969002E-2},{"$f":"CORREL('Migration 2010'!AO58:CN58,Demographics!AL$11:AL$62)","v":-5.004279576792138E-2},{"$f":"CORREL('Migration 2010'!AP58:CO58,Demographics!AM$11:AM$62)","v":-9.6183992823170878E-3},{"$f":"CORREL('Migration 2010'!AQ58:CP58,Demographics!AN$11:AN$62)","v":0.14543267525048362},{"$f":"CORREL('Migration 2010'!AR58:CQ58,Demographics!AO$11:AO$62)","v":1.5912915281577941E-2},{"$f":"CORREL('Migration 2010'!AS58:CR58,Demographics!AP$11:AP$62)","v":0.15772906589164759},{"$f":"CORREL('Migration 2010'!AT58:CS58,Demographics!AQ$11:AQ$62)","v":0.22924097031479165},{"$f":"CORREL('Migration 2010'!AU58:CT58,Demographics!AR$11:AR$62)","v":-3.0482242954150501E-2},{"$f":"CORREL('Migration 2010'!AV58:CU58,Demographics!AS$11:AS$62)","v":6.058137702572363E-3},{"$f":"CORREL('Migration 2010'!AW58:CV58,Demographics!AT$11:AT$62)","v":0.33122835904717307},{"$f":"CORREL('Migration 2010'!AX58:CW58,Demographics!AU$11:AU$62)","v":-7.3979759669551204E-3},{"$f":"CORREL('Migration 2010'!AY58:CX58,Demographics!AV$11:AV$62)","v":-0.12147858114524127},{"$f":"CORREL('Migration 2010'!AZ58:CY58,Demographics!AW$11:AW$62)","v":-0.19281856116511054},{"$f":"CORREL('Migration 2010'!BA58:CZ58,Demographics!AX$11:AX$62)","v":0.21813166520298383},{"$f":"CORREL('Migration 2010'!BB58:DA58,Demographics!AY$11:AY$62)","v":-2.5601762950978591E-2},{"$f":"CORREL('Migration 2010'!BC58:DB58,Demographics!AZ$11:AZ$62)","v":0.24840903618427063},{"$f":"CORREL('Migration 2010'!BD58:DC58,Demographics!BA$11:BA$62)","v":0.22081414546094391}]
["West Virginia",{"$f":"CORREL('Migration 2010'!J59:BI59,Demographics!G$11:G$62)","v":-0.15183679999454286},{"$f":"CORREL('Migration 2010'!K59:BJ59,Demographics!H$11:H$62)","v":-0.36229641767696635},{"$f":"CORREL('Migration 2010'!L59:BK59,Demographics!I$11:I$62)","v":-0.21677598020910885},{"$f":"CORREL('Migration 2010'!M59:BL59,Demographics!J$11:J$62)","v":0.16249780852511073},{"$f":"CORREL('Migration 2010'!N59:BM59,Demographics!K$11:K$62)","v":0.22056041670192159},{"$f":"CORREL('Migration 2010'!O59:BN59,Demographics!L$11:L$62)","v":-7.0824389873257787E-2},{"$f":"CORREL('Migration 2010'!P59:BO59,Demographics!M$11:M$62)","v":-0.11826172006898528},{"$f":"CORREL('Migration 2010'!Q59:BP59,Demographics!N$11:N$62)","v":-2.8161958422393607E-2},{"$f":"CORREL('Migration 2010'!R59:BQ59,Demographics!O$11:O$62)","v":-5.0065314362479595E-2},{"$f":"CORREL('Migration 2010'!S59:BR59,Demographics!P$11:P$62)","v":0.26923267384106747},{"$f":"CORREL('Migration 2010'!T59:BS59,Demographics!Q$11:Q$62)","v":-6.1538168071055908E-2},{"$f":"CORREL('Migration 2010'!U59:BT59,Demographics!R$11:R$62)","v":-3.0660640907868034E-2},{"$f":"CORREL('Migration 2010'!V59:BU59,Demographics!S$11:S$62)","v":-2.0520982987259689E-3},{"$f":"CORREL('Migration 2010'!W59:BV59,Demographics!T$11:T$62)","v":-4.5584396509626188E-2},{"$f":"CORREL('Migration 2010'!X59:BW59,Demographics!U$11:U$62)","v":6.5871735033657036E-2},{"$f":"CORREL('Migration 2010'!Y59:BX59,Demographics!V$11:V$62)","v":5.0644647797082991E-2},{"$f":"CORREL('Migration 2010'!Z59:BY59,Demographics!W$11:W$62)","v":1.0099249253533777E-2},{"$f":"CORREL('Migration 2010'!AA59:BZ59,Demographics!X$11:X$62)","v":-7.5849789185795838E-2},{"$f":"CORREL('Migration 2010'!AB59:CA59,Demographics!Y$11:Y$62)","v":-2.6511517498629518E-2},{"$f":"CORREL('Migration 2010'!AC59:CB59,Demographics!Z$11:Z$62)","v":-0.14008803885504306},{"$f":"CORREL('Migration 2010'!AD59:CC59,Demographics!AA$11:AA$62)","v":2.6055443614565413E-2},{"$f":"CORREL('Migration 2010'!AE59:CD59,Demographics!AB$11:AB$62)","v":-0.19234310556184825},{"$f":"CORREL('Migration 2010'!AF59:CE59,Demographics!AC$11:AC$62)","v":0.1083314636249026},{"$f":"CORREL('Migration 2010'!AG59:CF59,Demographics!AD$11:AD$62)","v":-0.16343928272769001},{"$f":"CORREL('Migration 2010'!AH59:CG59,Demographics!AE$11:AE$62)","v":0.27573637856268035},{"$f":"CORREL('Migration 2010'!AI59:CH59,Demographics!AF$11:AF$62)","v":8.0275222475994987E-2},{"$f":"CORREL('Migration 2010'!AJ59:CI59,Demographics!AG$11:AG$62)","v":8.2637458858404369E-3},{"$f":"CORREL('Migration 2010'!AK59:CJ59,Demographics!AH$11:AH$62)","v":-0.18665961372111792},{"$f":"CORREL('Migration 2010'!AL59:CK59,Demographics!AI$11:AI$62)","v":-0.11270319099386231},{"$f":"CORREL('Migration 2010'!AM59:CL59,Demographics!AJ$11:AJ$62)","v":0.19028102638126212},{"$f":"CORREL('Migration 2010'!AN59:CM59,Demographics!AK$11:AK$62)","v":-1.3668472175558038E-2},{"$f":"CORREL('Migration 2010'!AO59:CN59,Demographics!AL$11:AL$62)","v":0.36506070535679225},{"$f":"CORREL('Migration 2010'!AP59:CO59,Demographics!AM$11:AM$62)","v":-0.10600044961567526},{"$f":"CORREL('Migration 2010'!AQ59:CP59,Demographics!AN$11:AN$62)","v":-1.1898606674049702E-2},{"$f":"CORREL('Migration 2010'!AR59:CQ59,Demographics!AO$11:AO$62)","v":0.52674473318155013},{"$f":"CORREL('Migration 2010'!AS59:CR59,Demographics!AP$11:AP$62)","v":0.30737616227568809},{"$f":"CORREL('Migration 2010'!AT59:CS59,Demographics!AQ$11:AQ$62)","v":-6.6001902857237421E-2},{"$f":"CORREL('Migration 2010'!AU59:CT59,Demographics!AR$11:AR$62)","v":0.12965246720097318},{"$f":"CORREL('Migration 2010'!AV59:CU59,Demographics!AS$11:AS$62)","v":6.6409572296079633E-2},{"$f":"CORREL('Migration 2010'!AW59:CV59,Demographics!AT$11:AT$62)","v":6.4900324500214657E-2},{"$f":"CORREL('Migration 2010'!AX59:CW59,Demographics!AU$11:AU$62)","v":-6.1359814344141235E-2},{"$f":"CORREL('Migration 2010'!AY59:CX59,Demographics!AV$11:AV$62)","v":-9.8593384378411725E-2},{"$f":"CORREL('Migration 2010'!AZ59:CY59,Demographics!AW$11:AW$62)","v":-0.13923055563104636},{"$f":"CORREL('Migration 2010'!BA59:CZ59,Demographics!AX$11:AX$62)","v":9.1924379766156167E-2},{"$f":"CORREL('Migration 2010'!BB59:DA59,Demographics!AY$11:AY$62)","v":2.8600049451360673E-2},{"$f":"CORREL('Migration 2010'!BC59:DB59,Demographics!AZ$11:AZ$62)","v":0.59260247385020781},{"$f":"CORREL('Migration 2010'!BD59:DC59,Demographics!BA$11:BA$62)","v":9.7489141737570228E-2}]
["Wisconsin",{"$f":"CORREL('Migration 2010'!J60:BI60,Demographics!G$11:G$62)","v":-7.6830517907363065E-4},{"$f":"CORREL('Migration 2010'!K60:BJ60,Demographics!H$11:H$62)","v":0.11837782490483699},{"$f":"CORREL('Migration 2010'!L60:BK60,Demographics!I$11:I$62)","v":8.1267462423388032E-2},{"$f":"CORREL('Migration 2010'!M60:BL60,Demographics!J$11:J$62)","v":0.16278801664304141},{"$f":"CORREL('Migration 2010'!N60:BM60,Demographics!K$11:K$62)","v":4.4545608706020576E-2},{"$f":"CORREL('Migration 2010'!O60:BN60,Demographics!L$11:L$62)","v":0.29875715718127399},{"$f":"CORREL('Migration 2010'!P60:BO60,Demographics!M$11:M$62)","v":-0.1176991778676893},{"$f":"CORREL('Migration 2010'!Q60:BP60,Demographics!N$11:N$62)","v":-7.0080351376061306E-2},{"$f":"CORREL('Migration 2010'!R60:BQ60,Demographics!O$11:O$62)","v":-3.1847880880959037E-2},{"$f":"CORREL('Migration 2010'!S60:BR60,Demographics!P$11:P$62)","v":-1.667133098412257E-2},{"$f":"CORREL('Migration 2010'!T60:BS60,Demographics!Q$11:Q$62)","v":2.1034102072151492E-2},{"$f":"CORREL('Migration 2010'!U60:BT60,Demographics!R$11:R$62)","v":-0.10937646701392134},{"$f":"CORREL('Migration 2010'!V60:BU60,Demographics!S$11:S$62)","v":-0.25347601177412604},{"$f":"CORREL('Migration 2010'!W60:BV60,Demographics!T$11:T$62)","v":-5.708808916511157E-3},{"$f":"CORREL('Migration 2010'!X60:BW60,Demographics!U$11:U$62)","v":0.12642642478575342},{"$f":"CORREL('Migration 2010'!Y60:BX60,Demographics!V$11:V$62)","v":-9.6636700407082624E-3},{"$f":"CORREL('Migration 2010'!Z60:BY60,Demographics!W$11:W$62)","v":2.1734334066733519E-2},{"$f":"CORREL('Migration 2010'!AA60:BZ60,Demographics!X$11:X$62)","v":-3.5254151384221041E-2},{"$f":"CORREL('Migration 2010'!AB60:CA60,Demographics!Y$11:Y$62)","v":-2.1766812246026324E-2},{"$f":"CORREL('Migration 2010'!AC60:CB60,Demographics!Z$11:Z$62)","v":0.54085105778844844},{"$f":"CORREL('Migration 2010'!AD60:CC60,Demographics!AA$11:AA$62)","v":-0.12270639002119416},{"$f":"CORREL('Migration 2010'!AE60:CD60,Demographics!AB$11:AB$62)","v":-0.10284664294769617},{"$f":"CORREL('Migration 2010'!AF60:CE60,Demographics!AC$11:AC$62)","v":0.1554763972381096},{"$f":"CORREL('Migration 2010'!AG60:CF60,Demographics!AD$11:AD$62)","v":-1.7467845299484266E-2},{"$f":"CORREL('Migration 2010'!AH60:CG60,Demographics!AE$11:AE$62)","v":0.12673234028797578},{"$f":"CORREL('Migration 2010'!AI60:CH60,Demographics!AF$11:AF$62)","v":-0.21278855846357697},{"$f":"CORREL('Migration 2010'!AJ60:CI60,Demographics!AG$11:AG$62)","v":-0.13626015685445467},{"$f":"CORREL('Migration 2010'!AK60:CJ60,Demographics!AH$11:AH$62)","v":-9.6735380755210543E-2},{"$f":"CORREL('Migration 2010'!AL60:CK60,Demographics!AI$11:AI$62)","v":-1.1276020729161573E-2},{"$f":"CORREL('Migration 2010'!AM60:CL60,Demographics!AJ$11:AJ$62)","v":0.11727388355934552},{"$f":"CORREL('Migration 2010'!AN60:CM60,Demographics!AK$11:AK$62)","v":0.26230430779614006},{"$f":"CORREL('Migration 2010'!AO60:CN60,Demographics!AL$11:AL$62)","v":5.6815979839894067E-2},{"$f":"CORREL('Migration 2010'!AP60:CO60,Demographics!AM$11:AM$62)","v":-0.12149754927769955},{"$f":"CORREL('Migration 2010'!AQ60:CP60,Demographics!AN$11:AN$62)","v":0.1189135411416349},{"$f":"CORREL('Migration 2010'!AR60:CQ60,Demographics!AO$11:AO$62)","v":3.4256144012621309E-2},{"$f":"CORREL('Migration 2010'!AS60:CR60,Demographics!AP$11:AP$62)","v":-9.377599177789625E-2},{"$f":"CORREL('Migration 2010'!AT60:CS60,Demographics!AQ$11:AQ$62)","v":4.855211942791266E-3},{"$f":"CORREL('Migration 2010'!AU60:CT60,Demographics!AR$11:AR$62)","v":-0.10370858317977825},{"$f":"CORREL('Migration 2010'!AV60:CU60,Demographics!AS$11:AS$62)","v":8.5286246059719642E-2},{"$f":"CORREL('Migration 2010'!AW60:CV60,Demographics!AT$11:AT$62)","v":0.2477295695541325},{"$f":"CORREL('Migration 2010'!AX60:CW60,Demographics!AU$11:AU$62)","v":-0.17320224044068427},{"$f":"CORREL('Migration 2010'!AY60:CX60,Demographics!AV$11:AV$62)","v":-0.17555821912868852},{"$f":"CORREL('Migration 2010'!AZ60:CY60,Demographics!AW$11:AW$62)","v":-0.15738596517211215},{"$f":"CORREL('Migration 2010'!BA60:CZ60,Demographics!AX$11:AX$62)","v":0.30720716518282282},{"$f":"CORREL('Migration 2010'!BB60:DA60,Demographics!AY$11:AY$62)","v":1.0817501618925073E-2},{"$f":"CORREL('Migration 2010'!BC60:DB60,Demographics!AZ$11:AZ$62)","v":-9.5234259532239615E-2},{"$f":"CORREL('Migration 2010'!BD60:DC60,Demographics!BA$11:BA$62)","v":0.46743479640242891}]
["Wyoming",{"$f":"CORREL('Migration 2010'!J61:BI61,Demographics!G$11:G$62)","v":0.45679054067691477},{"$f":"CORREL('Migration 2010'!K61:BJ61,Demographics!H$11:H$62)","v":0.16622877520092963},{"$f":"CORREL('Migration 2010'!L61:BK61,Demographics!I$11:I$62)","v":6.6764197307905296E-2},{"$f":"CORREL('Migration 2010'!M61:BL61,Demographics!J$11:J$62)","v":-0.23498626998043384},{"$f":"CORREL('Migration 2010'!N61:BM61,Demographics!K$11:K$62)","v":-9.9346058047052294E-2},{"$f":"CORREL('Migration 2010'!O61:BN61,Demographics!L$11:L$62)","v":2.0344863940905348E-2},{"$f":"CORREL('Migration 2010'!P61:BO61,Demographics!M$11:M$62)","v":-0.16278794625419021},{"$f":"CORREL('Migration 2010'!Q61:BP61,Demographics!N$11:N$62)","v":-0.14688546278957945},{"$f":"CORREL('Migration 2010'!R61:BQ61,Demographics!O$11:O$62)","v":-4.5466283615914954E-2},{"$f":"CORREL('Migration 2010'!S61:BR61,Demographics!P$11:P$62)","v":-0.13134806197783788},{"$f":"CORREL('Migration 2010'!T61:BS61,Demographics!Q$11:Q$62)","v":-0.1528463423050738},{"$f":"CORREL('Migration 2010'!U61:BT61,Demographics!R$11:R$62)","v":2.4252105075301424E-2},{"$f":"CORREL('Migration 2010'!V61:BU61,Demographics!S$11:S$62)","v":0.18444833988528608},{"$f":"CORREL('Migration 2010'!W61:BV61,Demographics!T$11:T$62)","v":0.16068264568274254},{"$f":"CORREL('Migration 2010'!X61:BW61,Demographics!U$11:U$62)","v":0.12860769961230478},{"$f":"CORREL('Migration 2010'!Y61:BX61,Demographics!V$11:V$62)","v":9.4363263847841508E-2},{"$f":"CORREL('Migration 2010'!Z61:BY61,Demographics!W$11:W$62)","v":-0.17784418651885853},{"$f":"CORREL('Migration 2010'!AA61:BZ61,Demographics!X$11:X$62)","v":0.20043097036268487},{"$f":"CORREL('Migration 2010'!AB61:CA61,Demographics!Y$11:Y$62)","v":-0.29795834810902205},{"$f":"CORREL('Migration 2010'!AC61:CB61,Demographics!Z$11:Z$62)","v":-3.2568562938451381E-3},{"$f":"CORREL('Migration 2010'!AD61:CC61,Demographics!AA$11:AA$62)","v":-0.15118729026311514},{"$f":"CORREL('Migration 2010'!AE61:CD61,Demographics!AB$11:AB$62)","v":-8.9740171087782275E-2},{"$f":"CORREL('Migration 2010'!AF61:CE61,Demographics!AC$11:AC$62)","v":0.23464509679141307},{"$f":"CORREL('Migration 2010'!AG61:CF61,Demographics!AD$11:AD$62)","v":9.9173949935642228E-2},{"$f":"CORREL('Migration 2010'!AH61:CG61,Demographics!AE$11:AE$62)","v":4.7212283954305996E-2},{"$f":"CORREL('Migration 2010'!AI61:CH61,Demographics!AF$11:AF$62)","v":3.1598270513052862E-2},{"$f":"CORREL('Migration 2010'!AJ61:CI61,Demographics!AG$11:AG$62)","v":-0.20352029223633233},{"$f":"CORREL('Migration 2010'!AK61:CJ61,Demographics!AH$11:AH$62)","v":0.12419260247374014},{"$f":"CORREL('Migration 2010'!AL61:CK61,Demographics!AI$11:AI$62)","v":-0.16338592267537208},{"$f":"CORREL('Migration 2010'!AM61:CL61,Demographics!AJ$11:AJ$62)","v":-0.1482182117924272},{"$f":"CORREL('Migration 2010'!AN61:CM61,Demographics!AK$11:AK$62)","v":0.29672236669759011},{"$f":"CORREL('Migration 2010'!AO61:CN61,Demographics!AL$11:AL$62)","v":-5.7825522362714883E-2},{"$f":"CORREL('Migration 2010'!AP61:CO61,Demographics!AM$11:AM$62)","v":-0.11277125879866001},{"$f":"CORREL('Migration 2010'!AQ61:CP61,Demographics!AN$11:AN$62)","v":7.0289863081466605E-2},{"$f":"CORREL('Migration 2010'!AR61:CQ61,Demographics!AO$11:AO$62)","v":-6.3452097049590095E-2},{"$f":"CORREL('Migration 2010'!AS61:CR61,Demographics!AP$11:AP$62)","v":-3.6901400036054029E-2},{"$f":"CORREL('Migration 2010'!AT61:CS61,Demographics!AQ$11:AQ$62)","v":-3.052890292724356E-3},{"$f":"CORREL('Migration 2010'!AU61:CT61,Demographics!AR$11:AR$62)","v":4.4726490905158442E-2},{"$f":"CORREL('Migration 2010'!AV61:CU61,Demographics!AS$11:AS$62)","v":-3.5643986084568494E-2},{"$f":"CORREL('Migration 2010'!AW61:CV61,Demographics!AT$11:AT$62)","v":0.17706427166240882},{"$f":"CORREL('Migration 2010'!AX61:CW61,Demographics!AU$11:AU$62)","v":0.23706235758414876},{"$f":"CORREL('Migration 2010'!AY61:CX61,Demographics!AV$11:AV$62)","v":-0.1548073545438165},{"$f":"CORREL('Migration 2010'!AZ61:CY61,Demographics!AW$11:AW$62)","v":-0.1198813175918174},{"$f":"CORREL('Migration 2010'!BA61:CZ61,Demographics!AX$11:AX$62)","v":0.10406221814214085},{"$f":"CORREL('Migration 2010'!BB61:DA61,Demographics!AY$11:AY$62)","v":-0.10765625296030668},{"$f":"CORREL('Migration 2010'!BC61:DB61,Demographics!AZ$11:AZ$62)","v":-9.2357019221395109E-2},{"$f":"CORREL('Migration 2010'!BD61:DC61,Demographics!BA$11:BA$62)","v":0.19064774100747284}]
["Puerto Rico",{"$f":"CORREL('Migration 2010'!J62:BI62,Demographics!G$11:G$62)","v":-0.19859366313714027},{"$f":"CORREL('Migration 2010'!K62:BJ62,Demographics!H$11:H$62)","v":7.7179804975252203E-2},{"$f":"CORREL('Migration 2010'!L62:BK62,Demographics!I$11:I$62)","v":0.11180840197995331},{"$f":"CORREL('Migration 2010'!M62:BL62,Demographics!J$11:J$62)","v":7.6844218664926481E-2},{"$f":"CORREL('Migration 2010'!N62:BM62,Demographics!K$11:K$62)","v":0.16577161735726531},{"$f":"CORREL('Migration 2010'!O62:BN62,Demographics!L$11:L$62)","v":-0.14580311240644059},{"$f":"CORREL('Migration 2010'!P62:BO62,Demographics!M$11:M$62)","v":-4.6395763804703991E-2},{"$f":"CORREL('Migration 2010'!Q62:BP62,Demographics!N$11:N$62)","v":-8.5900997520836408E-2},{"$f":"CORREL('Migration 2010'!R62:BQ62,Demographics!O$11:O$62)","v":5.0053154782066164E-2},{"$f":"CORREL('Migration 2010'!S62:BR62,Demographics!P$11:P$62)","v":-9.9009443584682597E-2},{"$f":"CORREL('Migration 2010'!T62:BS62,Demographics!Q$11:Q$62)","v":-0.12434949032876},{"$f":"CORREL('Migration 2010'!U62:BT62,Demographics!R$11:R$62)","v":8.3672669670601857E-2},{"$f":"CORREL('Migration 2010'!V62:BU62,Demographics!S$11:S$62)","v":-2.6625943014139768E-2},{"$f":"CORREL('Migration 2010'!W62:BV62,Demographics!T$11:T$62)","v":-0.13498586804787366},{"$f":"CORREL('Migration 2010'!X62:BW62,Demographics!U$11:U$62)","v":-0.18437914455601617},{"$f":"CORREL('Migration 2010'!Y62:BX62,Demographics!V$11:V$62)","v":-8.1147000351588661E-3},{"$f":"CORREL('Migration 2010'!Z62:BY62,Demographics!W$11:W$62)","v":2.6399062122728523E-2},{"$f":"CORREL('Migration 2010'!AA62:BZ62,Demographics!X$11:X$62)","v":0.14333215145021075},{"$f":"CORREL('Migration 2010'!AB62:CA62,Demographics!Y$11:Y$62)","v":-0.22966656576599467},{"$f":"CORREL('Migration 2010'!AC62:CB62,Demographics!Z$11:Z$62)","v":0.25709453890051154},{"$f":"CORREL('Migration 2010'!AD62:CC62,Demographics!AA$11:AA$62)","v":-0.21700950251027862},{"$f":"CORREL('Migration 2010'!AE62:CD62,Demographics!AB$11:AB$62)","v":5.6489481681517552E-2},{"$f":"CORREL('Migration 2010'!AF62:CE62,Demographics!AC$11:AC$62)","v":2.677997744294934E-2},{"$f":"CORREL('Migration 2010'!AG62:CF62,Demographics!AD$11:AD$62)","v":9.6337281759691265E-2},{"$f":"CORREL('Migration 2010'!AH62:CG62,Demographics!AE$11:AE$62)","v":-5.8703697966261563E-2},{"$f":"CORREL('Migration 2010'!AI62:CH62,Demographics!AF$11:AF$62)","v":4.3216425452925485E-2},{"$f":"CORREL('Migration 2010'!AJ62:CI62,Demographics!AG$11:AG$62)","v":-1.180431494877408E-2},{"$f":"CORREL('Migration 2010'!AK62:CJ62,Demographics!AH$11:AH$62)","v":2.2375729876618469E-2},{"$f":"CORREL('Migration 2010'!AL62:CK62,Demographics!AI$11:AI$62)","v":0.34035919084162403},{"$f":"CORREL('Migration 2010'!AM62:CL62,Demographics!AJ$11:AJ$62)","v":-2.2717393659904828E-2},{"$f":"CORREL('Migration 2010'!AN62:CM62,Demographics!AK$11:AK$62)","v":0.30703891962729918},{"$f":"CORREL('Migration 2010'!AO62:CN62,Demographics!AL$11:AL$62)","v":-8.4375500432002037E-2},{"$f":"CORREL('Migration 2010'!AP62:CO62,Demographics!AM$11:AM$62)","v":-0.11313001393903795},{"$f":"CORREL('Migration 2010'!AQ62:CP62,Demographics!AN$11:AN$62)","v":-6.4579460576289979E-2},{"$f":"CORREL('Migration 2010'!AR62:CQ62,Demographics!AO$11:AO$62)","v":-0.1206373654935974},{"$f":"CORREL('Migration 2010'!AS62:CR62,Demographics!AP$11:AP$62)","v":-8.1218202706542772E-2},{"$f":"CORREL('Migration 2010'!AT62:CS62,Demographics!AQ$11:AQ$62)","v":-0.11699247248645774},{"$f":"CORREL('Migration 2010'!AU62:CT62,Demographics!AR$11:AR$62)","v":-0.18915263659669992},{"$f":"CORREL('Migration 2010'!AV62:CU62,Demographics!AS$11:AS$62)","v":5.0251350572536385E-3},{"$f":"CORREL('Migration 2010'!AW62:CV62,Demographics!AT$11:AT$62)","v":0.24346858071439537},{"$f":"CORREL('Migration 2010'!AX62:CW62,Demographics!AU$11:AU$62)","v":2.9955867833577985E-2},{"$f":"CORREL('Migration 2010'!AY62:CX62,Demographics!AV$11:AV$62)","v":-0.14668384835736115},{"$f":"CORREL('Migration 2010'!AZ62:CY62,Demographics!AW$11:AW$62)","v":-0.11874403059552505},{"$f":"CORREL('Migration 2010'!BA62:CZ62,Demographics!AX$11:AX$62)","v":8.7391366122677575E-2},{"$f":"CORREL('Migration 2010'!BB62:DA62,Demographics!AY$11:AY$62)","v":-3.4027817597094695E-2},{"$f":"CORREL('Migration 2010'!BC62:DB62,Demographics!AZ$11:AZ$62)","v":-0.18746933742509045},{"$f":"CORREL('Migration 2010'!BD62:DC62,Demographics!BA$11:BA$62)","v":0.32022259713851003}]